{"text_format":"1","workbook":"xlsx","n_sheets":21,"sheets":["Frequently Asked Questions","Instructions","1-Cover Sheet","2-Narrative Summary","Activity 1","Activity 2","Activity 3","Activity 4","Activity 5","Activity 6","Activity 7","Activity 8","Activity 9","Activity 10","Competitive Activity 1","Competitive Activity 2","Certification","Summary Sheet","Grantee Data","Project Data","Drop Down Box"],"not_rendered":{"charts":0,"images":3,"macros":1,"external_links":3,"defined_names":156,"comments":0,"pivot_tables":0},"unopened":[],"bounds":{"document_bytes":16777216,"sheet_cells":100000,"rows_first":2000,"rows_last":500,"rows_between":2000,"halvings":0,"cell_chars":16384,"cell_head_chars":4096},"cells_cut":0,"cells_raw":0,"read":"whole","date_system":"1900"}

{"sheet":"Frequently Asked Questions","index":0,"n_rows":11,"n_cols":1,"rows_kept":11,"cut":false,"hidden":false,"merged":[[8,0,9,7],[10,0,10,7],[7,0,7,7],[5,0,6,7],[0,0,0,7],[2,0,2,7],[1,0,1,7],[3,0,4,7]]}
["Permanent Local Housing Allocation (PLHA) Program Annual Report Workbook\nFrequently Asked Questions (FAQs)"]
["This document provides frequently asked questions and answers for the PLHA Annual Report (report). Please use this as a guide when completing the report."]
["Helpful Hints\n\n1:  Executed Standard Agreement: document is considered “executed” when it has been signed by both the Grantee and the Department of Housing and Community Development (the Department).  \n2:  Report includes a hidden tab for each of the awarded Activity. Each individual Activity tab will appear for Grantee to complete the outcomes of PLHA funds expenditures when the report is completed correctly. See section titled “Tab 1 – Cover Sheet” for more information.\n3:  To complete the report as accurately as possible, the most current executed Standard Agreement, previous year(s) PLHA Annual Reports (if applicable), the approved Budget Revision form (if applicable), and all approved Request for Funds forms (if applicable) will be needed.\n4:  Complete ALL yellow cells in the report unless otherwise noted per instruction. See section titled “Individual Activity Tabs” for more information. It is important to complete the report to its entirety to minimize errors and avoid delays or the possibility of it being returned for corrections.\n5:  The awarded allocation amounts in the report must match one of the following documents, whichever is the most current:\n•  the percentage of each Activity noted in the most current executed Standard Agreement\n•  the approved Budget Revision form (if applicable)\n•  the Request for Funds form (if SGM approved the request for disbursement) \nIf information in the current executed Standard Agreement is inaccurate because there will be an amendment to the 5-Year Plan or an amended Standard Agreement is in the process of being executed, please complete the report with information as noted in the current executed Standard Agreement and provide an explanation of the changes/updates in the “Comments” section at the bottom of each individual Activity tab.   \n6:  To avoid errors with the report’s macros and formulas, use the drop-down arrow to select when a cell has that option.  Please type the information instead of cutting and pasting information from another document."]
["General Questions\n\n1:  Do I need to complete and submit the PLHA Annual Report even if I just received the executed Standard Agreement?\nA:  Yes.  If your Standard Agreement was executed within the reporting period, you are required to complete and submit the PLHA Annual Report even if you do not have anything to report at this time.  When completing the information in each cell, you may enter a zero or N/A where applicable and in the “Comments” section of each individual Activity tab, please provide additional information as requested in the instruction.\n2:  Do I need to complete and submit the PLHA Annual Report even if I have not requested or expended PLHA funds?\nA:  Yes.  If your Standard Agreement was executed within the reporting period, you are required to complete and submit the PLHA Annual Report even if you do not have anything to report at this time.  When completing the information in each cell, you may enter a zero or N/A where applicable and in the “Comments” section of each individual Activity tab, please provide additional information as requested in the instruction.\n3:  I submitted the report in previous year(s), but I have not applied for new allocation(s) or requested for PLHA funds or expended PLHA funds for this reporting period.  \nDo I need to complete and submit the PLHA Annual Report?\nA:  Yes.  You may enter a zero or N/A where applicable since the requested information is for the current reporting period and in the “Comments” section of each individual Activity tab, please provide additional information as requested in the instruction.\n*Please make sure to provide data in cells that request for previous year(s) information.  If the information is not consistent with previous year(s) data, include an explanation in the “Comments” section for the discrepancy.\n4:  Where can I find the PLHA Annual Report?   \nA:  The most current PLHA Annual Report is posted on HCD’s website at https://www.hcd.ca.gov/grants-and-funding/reporting-and-compliance-grant-programs under Permanent Local Housing Allocation (PLHA). \n*Remember to always check HCD’s website for any updated PLHA forms.  Outdated PLHA forms will not be processed and will be returned for correction.\n5:  Can I use my previous PLHA Annual Report and update the information?\nA:  No.  You must use the most current PLHA Annual Report posted on HCD’s website at https://www.hcd.ca.gov/grants-and-funding/reporting-and-compliance-grant-programs under Permanent Local Housing Allocation (PLHA).  Outdated PLHA forms will not be processed and will be returned for correction.\n6:  Why is the PLHA Annual Report not working properly?  \nA:  After downloading the report, click “Enable Editing” followed by “Enable Content” in yellow ribbon at the top of the document. This ensures that the form functions as intended with all macros, formulas, and capabilities enabled.  We strongly recommend you type in the information instead of cutting and pasting data from your other sources because this may cause your report to not register the information correctly due to the macros and formulas embedded in the workbook. Always use the drop-down arrow to make your selection when a cell has that option.  Please contact your IT if you continue to have issues with the report since it is possible that your department has set security measures for downloaded forms.  "]
[]
["Tab 1 – Cover Sheet:  After entering the Awarded Allocation Amount for each Activity under the “Awarded Activity Summary,” of the Cover Sheet an additional, corresponding tab for each awarded Activity will appear for you to complete.  Annual Report will be returned if it is missing individual Activity tabs or incomplete Activity tabs.\n   \n1:  What information is requested in the cell “If funds were delegated?”  \nA:  Complete this cell ONLY if you delegated another entity to administer your PLHA funds. If you are a City or County and you are administering the PLHA program, then you would leave this cell blank.\n2:  What is the “Reporting Period?”  \nA:  The reporting period for the current Annual Report is from “July 1 of previous year to June 30 of current year”\n3:  What amount should I input in the cell “Awarded Allocation Amount …”?\nA:  The awarded allocation amounts in the report must match one of the following documents, whichever is the most current:\n•  the percentage of each Activity noted in the most current executed Standard Agreement\n•  the approved Budget Revision form (if applicable)\n•  the Request for Funds form (if SGM approved the request for disbursement)  \n4:  The Activity or the percentage of each Activity in my most current executed Standard Agreement is incorrect or is different. In that case, what amount should I input?  \nA:  The awarded allocation amounts in the PLHA Annual Report must match the percentage of each Activity in your most current executed Standard Agreement or your approved Budget Revision form (if applicable) or the Request for Funds form (if SGM approved the request for disbursement). If you plan to make changes to your 5-Year Plan or if you are waiting for your amended Standard Agreement to be executed with updated information, you may complete the report with information as noted in the current executed Standard Agreement but provide an explanation of the changes/updates in the “Comments” section at the bottom of each individual Activity tab.\n5:  What amount should I input in the cell “Amount of the annual allocation’s funds that were disbursed by HCD for this activity?”\nA:  If you have not requested funds, please input $0.00.  If your SGM representative approved your request for funds for disbursement, please enter the amount that you requested for each of the applicable Activity. \n6:  What is the amount of PLHA funds for affordable owner-occupied workforce housing (AOWH)?\nA:  AOWH information can be found in your PLHA application and/or your approved 5-year Plan. The awarded amount is based on the information you provided during the application process.  Please work with your team to determine the appropriate amount your jurisdiction agrees to allocate for AOWH.\n7:  I don’t see the individual Activity tabs after I input the awarded allocation amount for each Activity.\nA:\n•  Make sure you click “Enable Editing” followed by “Enable Content” in yellow ribbon at the top of the document BEFORE you start completing the report. This ensures that the form functions as intended with all macros, formulas, and capabilities enabled. \n•  Delete the information in the cell, move the cursor away from the cell and click on another cell, go back to the cell that you just delete the information, and retype in the amount again instead of cutting and pasting the information from another document.\n•  Close the workbook, reopen it, and click on “Enable Editing” and “Enable Content” again.  \n•  Select any of the tabs, right click on the mouse, select “Unhide,” and select the awarded Activity.  The Activity cell should pop up for you to complete the information.\n•  Contact your IT since it is possible that your department has set security measures for downloaded forms.  "]
[]
["Tab 2 – Narrative Summary  \n \n1:  Some of these questions do not apply to me.  How should I complete them?\nA:  Complete all the yellow cells with as much information as possible. If a question or cell does not apply to you, please input an N/A to acknowledge that you have reviewed it.\n2:  How do I know if I will be using my PLHA funds for affordable owner-occupied workforce housing (AOWH)?\nA:  AOWH information can be found in your PLHA application and/or your approved 5-year Plan. The awarded amount is based on the information you provided during the application process. The response should be consistent with the information you input at the bottom of Tab 1 – Cover Sheet (and your previous year’s Annual Report).  "]
["Individual Activity Tabs\n\n1:  What are “Individual Activity Tabs?”  What type of information is required?\nA:  The individual Activity tabs (labeled Activity 1 through Activity 10) reflect expenditure information using PLHA funds for each Activity between July 1 of the previous year through June 30 of the current year.   \n2:  Some of these questions do not apply to me.  How should I complete them?\nA:  Complete all the yellow cells with as much information as possible. If a question or cell does not apply to you, please input a zero or N/A to acknowledge that you have reviewed it.\n3:  Does the report reflect all funding sources involved in the project or just with PLHA funds?\nA:  The data reported for each Activity tab should reflect only PLHA funded units and individuals served with PLHA monies for each Activity unless the cell specifically asks for information not associated with PLHA funds.\n*Make sure the information you provide this year is consistent with the previous year’s Annual Report (if applicable). If there are discrepancies such as different activities, different Activity percentage amount(s), population served, etc. from the previous year, please provide an explanation in the “Comments” section at the bottom of each Activity tab for the changes or discrepancies.\n*The PLHA Annual Report reflects data for only PLHA funds.  Outcomes or deliverable activities from using funding sources other than PLHA funds should not be included in the Annual Report unless the cell specifically asks for information not associated with PLHA funds.\n *Using PLHA funds as a reimbursement – if you have outcomes from using other funding sources, do not include this data since the report is requesting outcomes with PLHA monies.  You may report the data in the next Annual Report when you receive and reimbursed PLHA monies at that time.\n4:  What if I have not requested PLHA funds?  Do I leave the yellow cells blank?\nA:  If you have not requested PLHA funds during this reporting period, please input zero or N/A in the first row of each section of each Activity tab to acknowledge that the information is not applicable for this reporting period. Please provide an explanation in the “Comments” section at the bottom of each Activity tab.\n*It is important that you are aware of the expenditure deadline for each allocation year. The process to review documents and approve a request for funds may take time. From the time you submit your request for funds to the time you receive your check from the State Controller Office takes about 45 days. However, sometimes it may take longer if there are pending issues. \n5:  What if I requested PLHA funds but have not received the check from the State Controller Office?  \nA:  Provide as much information as you can. When you requested PLHA funds, you were required to provide agreements, contracts, and/or loan documents as verification of commitment. Therefore, you may be able to complete some information such as Name of Project, Project Address, and Activity Number. For the amounts of PLHA funds expended and number of units or households served with PLHA funds, you may input zero or N/A since you have not expended PLHA funds towards the activity.   Provide an explanation in the “Comments” section at the bottom of each Activity tab. \n6:  What if I requested PLHA funds and received the check from the State Controller Office but have not expended the funds?  \nA:  Provide as much information as you can. When you requested PLHA funds, you were required to provide agreements, contracts, and/or loan documents as verification of commitment.  Therefore, you may be able to complete some information such as Name of Project, Project Address, and Activity Number.  But for the amounts of PLHA funds expended and number of units or households served with PLHA funds, you may input zero or N/A since you have not expended PLHA funds towards the activity.  Please provide an explanation in the “Comments” section at the bottom of each Activity tab.\n7:  Do I need to complete the “Comments” section at the bottom of each individual Activity tab?\nA:  If you have not requested or expended your PLHA funds, please provide an explanation in the “Comments” section at the bottom of each Activity tab such as: describe the anticipated timeframe in which you will request and expend PLHA funds. If you are working with an SGM representative to request funds, include an explanation of the progress or status. If you requested funds but have not received the check from State Controller Office by the time the report is due, provide an explanation of the progress or status.  \n*Please provide any additional comments you would like to share with HCD in the “Comments” section.       \n8: What is the Cumulative Data section below the “Comments?”\nA:  Use information in the individual Activity tabs from the previous Annual Report’s Cumulative Data to complete the current Cumulative Data section.  Using last year’s Annual Report, add the amounts reported in the Total Prior to this Reporting Period column AND Total for this Reporting Period column and enter the result in the yellow cells of this year’s Cumulative Data that corresponds to each row.\nA.  If you did not submit an Annual Report in last year’s re, enter N/A in the yellow cells."]
[]
["Tab - Certification\n\n1:  Do I submit the PLHA Annual Report as a pdf or excel copy?\nA:  Use the drop-down arrow to select the “Signature Method.” \n*If the report is signed via “Certification by Printed Name,” please have the authorized representative(s) type in their name under “Signature of PLHA Administrator” AND “Signature of Authorized Executive Official” and submit just the excel copy. \n*If the report is signed via “Certification by Signature,” it is acceptable for the authorized representative to submit a PDF with either a DocuSign or wet ink signature.  Submit BOTH the pdf and excel copy.\n*Annual Report is not valid and will be returned if the signature cell(s) are left blank.  \n2:  Who should I input as the “Name of PLHA Administrator?”\nA:  It can be an authorized representative who is responsible for overseeing and administering the PLHA program.  \n*The PLHA Administrator is someone other than the Authorized Executive Official who will be signing the Annual Report.  Unless the only authorized person working on the PLHA program is also the Authorized Executive Official.  \n3:  Who should I input as the “Authorized Executive Official?” Can my manager or Executive Director sign the report since they are available to do so?  \nA:  The PLHA Annual Report must be signed by the authorized representative for the report to be acceptable (City Manager, CFO, CEO, or the person identified in the Resolution delegated to administer the PLHA program).\n*If the Authorized Executive Official would like to designate another person to sign the report on their behalf, SGM will need a letter signed by the Authorized Executive Official indicating the name and title of the designee. "]

{"sheet":"Instructions","index":1,"n_rows":10,"n_cols":1,"rows_kept":10,"cut":false,"hidden":false,"merged":[[9,0,47,7],[0,0,0,7],[1,0,2,7],[3,0,5,7],[6,0,8,7]]}
["Instructions for the Permanent Local Housing Allocation (PLHA) Program Annual Report Workbook\n(additional instructions are included in each tab)"]
["Pursuant to Health and Safety Code (HSC) Section 50470\nThe Department of Housing and Community Development (the Department) is authorized to provide funding based on Entitlement Formula Component HSC 50470(b)(2)(B)(I)(l), Non-Entitlement Formula Component HSC 50470(b)(2)(B)(I)(ll), and Non-Entitlement Competitive Grant Program Component HSC 50470(b)(2)(B)(I)(l) to eligible local governments in California for housing-related projects and programs that assist in addressing the unmet housing needs of their local communities."]
[]
["Annual Reporting\nChapter 364, Statutes of 2017 (SB 2, Atkins) was part of a 15-bill housing package aimed at addressing the state’s housing shortage and high housing costs.  The Department adopted Guidelines in October 2019.  Per Reporting Section 503 of the PLHA Guidelines, no later than July 31 of each year, a Grantee shall provide to the Department an annual report, in a format specified by the Department, including but not limited to the information requested in this workbook.  Per Cancellation and Termination Section 502(c) of the PLHA Guidelines, failure to meet reporting requirements will result in notice to the Grantee that it must satisfactorily cure any deficiencies within three months of the notice, or Grantee may be ineligible for any additional PLHA award.  If the Department does not receive a corrected Annual Report within the requested timeframe, there may be a delay in the approval of the request for funds."]
[]
[]
["Completion of the Annual Reporting Workbook\nAll fields in which information is requested must be completed by the Grantee within the three plus tabs of the reporting workbook as applicable.  Reporting workbooks which contain blank information will be considered incomplete and will be returned to the Grantee for completion.  Please complete all yellow cells.  If the requested information is not applicable, please enter a \"0\" or an \"N/A.\"  Any questions pertaining to the reporting requirements should be directed to the State Grants Management Representative (SGM Rep) assigned to the project.  If you do not have your SGM Rep's information, you may submit your email inquiry to PLHASGM@hcd.ca.gov.   Please submit your completed Annual Report to the SGM general inbox at PLHASGM@hcd.ca.gov and cc your SGM Rep if known.  "]
[]
[]
["Instructions \n\nNavigate through form fields using Tab key and fill in information as prompted.  In order to reduce errors with macros and formulas embedded in the workbook, please use the drop-down arrow to select when a cell has that option and manually type in the data instead of cutting and pasting information from another document.  To ensure the workbook functions as intended, please click \"Enable Editing\" followed by \"Enable Content\" in the yellow ribbon at the top of Tab 1 - Cover Sheet before entering any data. \n\nTab 1 - Cover Sheet - Per Reporting Section 503(a) of the PLHA Guidelines, please complete the table with requested information beginning on Row 8. \n\n1.  Use the drop-down menu to select the HCD Contract Number.  Contract number may be found in the executed Standard Agreement.  If Contract Number is not listed, please enter the contract number with the following naming convention: xx-PLHA-xxxxx for Formula allocation and xx-PLHACOM-xxxx for Competitive allocation.\n2.  Enter Preparer's information.\n3.  Use the drop-down menu to select the Contractor Name.  \n4.  If funds were delegated, enter the name of the Administering Local Government, Local Housing Trust Fund, or Regional Housing Trust Fund.\n5.  In Cell F/G 11, use drop-down menu to select whether your PLHA allocation is Competitive or Formula. Consult the PLHA final Guidelines and your executed Standard Agreement if you are uncertain which type of award you are receiving. Your selection will determine which Activity options are available for you to select on the rest of the Cover Sheet and in subsequent tabs throughout this workbook.\n6.  Enter the amount of PLHA funds expended during this reporting period to be used for Admin Costs.  This amount may be the total amount from the Admin Costs that were requested and approved by SGM during the previous reporting period and during this reporting period.\n7.  Under the Awarded Activity Summary, enter the amount awarded for each allocation year by activity.  If an allocation year has not yet been awarded (evidenced by a fully executed Standard Agreement or subsequent fully executed amendments to the Standard Agreement), please leave \"$0.00\" in the corresponding cell.  If PLHA funds have been awarded, the amount for each activity must match the most current executed Standard Agreement or the approved Budget Revision or the Request for Funds form for that allocation year.  Once the awarded amount for each allocation year is entered, a hidden Tab for the awarded activity will appear for you to provide additional information for the project(s) involved with the activity.  Please contact your IT if you do not see the hidden tabs for your awarded activity or if you continue to have issues with the report since it is possible that your Department has set security measures for downloaded forms.  Annual Report will be returned if the report is missing the individual Activity tabs or if the tabs are incomplete.\n8. Under the Awarded Activity Summary, enter the total amount of PLHA funds disbursed for each activity to date.  Disbursed means that PLHA funds have been requested by the Grantee and approved by SGM for the respective allocation and activity.  Check your Request for Funds (RFF) forms to calculate the total amount requested and approved by SGM.  If funds have been awarded, but have not yet been disbursed (requested by Grantee and approved by SGM), please leave \"$0.00\" in the corresponding cell.\n9.  Enter the amount of PLHA funds that have been set aside for AOWH.  Please refer to your PLHA application to confirm the amount you planned to allocate for AOWH or contact your SGM Representative for further assistance.\n10.  Enter the amount of PLHA funds that were disencumbered for each allocation year, if any.  If PLHA funds were disencumbered, a disencumbrance letter was emailed to the Authorized Represetative and cc'd all contacts that were included on the Contact Form.  Please contact your SGM Representative for further assistance.\n\nTab 2 – Narrative Summary \n\n1.  Respond to the three questions as accurately and thoroughly as possible.\n2.  If the question does not apply, please enter an \"N/A\" in the yellow cell to acknowledge that you have read the question and that it does not apply to your activity at this time.\n3.  For Question 1, please report the Program Income earned. This is any revenue generated directly from the investment of PLHA funds (loan repayments, interest, fees). This does not include matching funds or leveraged funds.  \n\nIndividual Activity Tabs \n\nFor each activity that you were awarded PLHA funds, there will be a corresponding Activity tab for you to provide activity-specific project outcomes and compliance information.  Please see the above Number 6 under Tab 1 - Cover Sheet for more information.  Data requested on these individual Activity tabs reflect outcomes that pertain to ONLY PLHA funds that were expended during this reporting period.  \n\nIf PLHA funds were awarded but funds have not been requested, please input an \"N/A\" or a \"0\" in each yellow cell on the first row of each section of each Activity tab to acknowledge that you have reviewed the information and provide an explanation in the section at the bottom of the Activity tab.\n\nIf PLHA funds were awarded and disbursed, but a check has not been received during this reporting period, please input an \"N/A\" or a \"0\" in each yellow cell on the first row of each section of each Activity tab to acknowledge that you have reviewed the information and provide an explanation in the section at the bottom of the Activity tab.  Once you receive the check and expend the PLHA funds, you may report the expenditures in next year's Annual Report.\n\nIf PLHA funds were awarded, disbursed, and the check was received, but funds have not yet been expended during this reporting period, please input an \"N/A\" or a \"0\" in each yellow cell on the first row of each section of each Activity tab to acknowledge that you have reviewed the information and provide an explanation in the section at the bottom of the Activity tab.  PLHA funds expended after the reporting period may be reported in next year's Annual Report.\n\nIf you have not requested PLHA funds and/or PLHA funds have not been disbursed during this reporting period, but you expended PLHA funds that you received prior to this reporting period, please enter the data as applicable since PLHA funds were used to operate the awarded activities.  Please provide an explanation in the section at the bottom of the Activity tab.\n\nIf other sources of fundings were used to operate the project and PLHA funds will be reimbursed at a later time, please input an \"N/A\" or a \"0\" in each yellow cell on the first row of each section of each Activity tab to acknowledge that you have reviewed the information and provide an explanation in the section at the bottom of the Activity tab.  PLHA funds expended after the reporting period may be reported in next year's Annual Report.\n\nAnnual Report will be returned if the report is missing the individual Activity tabs or if the tabs are incomplete.\n\nTab – Certification\n\nPursuant to the PLHA Final Guidelines Section 503 (b), “This report must be signed by BOTH the Local government’s PLHA administrator and the Local government’s City Manager (or his/her designee), or Chief Executive Officer (or his/her designee) or Chief Financial Officer (or his/her designee).”  If a designee is signing the Annual Report, a letter from the Authorized Executive Official  identifying the name and title of the designee must accompany the report (if not previously submitted to SGM).  \n\nFor each required signature, select the method of signing (electronic by printed name or by signature). The Department MUST receive the Annual Report  as an excel document.  If you choose to sign the certification manually or as E-sign, please submit BOTH the uploaded signature and the full Excel workbook.\n\n"]

{"sheet":"1-Cover Sheet","index":2,"n_rows":92,"n_cols":8,"rows_kept":92,"cut":false,"hidden":false,"merged":[[82,1,82,2],[80,1,80,2],[78,1,78,2],[11,4,11,6],[68,1,68,6],[1,1,2,2],[8,5,8,6],[12,1,12,6],[7,5,7,6],[9,5,9,6],[11,2,11,3],[7,2,7,3],[8,2,8,3],[9,2,9,3],[3,1,3,6],[4,1,4,6],[5,1,5,6],[6,1,6,6],[10,2,10,3],[10,5,10,6]]}
[null,"beginning of sheet 1 - Cover Page."]
[null,"DEPARTMENT OF HOUSING AND COMMUNITY DEVELOPMENT\nDIVISION OF STATE FINANCIAL ASSISTANCE \nSTATE GRANT MANAGEMENT BRANCH\n651 Bannon Street, 8th Floor\nSacramento, CA 95811\nPLHASGM@HCD.CA.GOV"]
[]
[null,"PERMANENT LOCAL HOUSING ALLOCATION (PLHA) PROGRAM"]
[null,"Annual Report"]
[null,"Cover Page"]
[null,"Last Revised: 7/16/2025"]
[null,"HCD Contract Number:","Select One",null,"Local Government (Contractor Name):","Select One"]
[null,"Preparer Name:",null,null,"If funds were delegated, provide the    name of the Administering Local   Government, Local Housing Trust \nFund, or Regional Housing Trust Fund:    "]
[null,"Preparer Email:",null,null,"                               Reporting Period:         ","July 1, 2024- June 30, 2025, Due July 31, 2025"]
[null,"Preparer Title:",null,null,"          Allocation Type Pursuant to  \n            Guidelines Articles III and IV:\n","Select One"]
[null,"Preparer Phone Number:",null,null,"Please click “Enable Editing” follow by “Enable Content” in the yellow ribbon at the top of this tab before entering information.  This ensures the macros and formulas in the workbook to function as intended.  Individual Activity tabs will automatically unhide for you to complete if the workbook is opened correctly."]
[null,"                                                                                                                       Awarded Activity Summary\n\n1. Please refer to the FAQs tab (Tab 1) and Instruction tab (Tab 2) within this workbook when completing the individual tabs.  Instructions are also included in each of the individual tabs. \n2. Annual Report will be returned if the report is incomplete, missing the individual Activity tabs for each awarded Activity, or data is inconsistent with previous year's Annual Report or the most current executed Standard Agreement, and/or Budget Revision, and/or Request for Funds form.\n3. Future requests of funds may be put on hold until the Annual Report is submitted and completed correctly.\n4. Before entering information in this workbook, click “Enable Editing” follow by “Enable Content” in the yellow ribbon at the top of this tab.  This step ensures that the workbook functions as intended with all macros, formulas, and capabilities enabled.\n\nInstructions:\n1. Data collected in the below cells reflect the total amounts awarded in the previous allocation years and during this reporting period. \n2. Awarded Allocation Amount must match the most current information from the executed Standard Agreement or the approved Budget Revision for that allocation year.  Leave cell $0.00 if a Standard Agreement or amended Standard Agreement has not been executed.\n3. Once the Awarded Allocation Amount for each Activity is entered, a hidden tab for the awarded activity will appear to enter additional information.  Please contact your IT department if you do not see the hidden tabs for your individual awarded Activity tab or if you continue to have issues with this workbook since it is possible that your department has set security measures for downloaded forms.\n4. Amount of PLHA Funds Disbursed is the total amount of PLHA funds that SGM approved for disbursement for each Activity per allocation year. Enter total amount already disbursed or total amount that was approved to be disbursed up to June 30th of this reporting period for each Activity per allocation year.  Please refer to your most recent Request for Funds form(s) or Budget Revision Form that were submitted and approved by SGM (up to June 30th of this reporting period).  If no funds were requested during this reporting period,  use previous year's Annual Report to enter the amount reported as disbursed at that time (if any).\n5. AOWH - Per PLHA Guidelines Article(1)(100)(a) and Article(3)(303)(e), twenty percent of the funding in the Building Homes and Jobs Trust Fund is required to be expended for Affordable Owner-Occupied Workforce Housing (AOWH).  If funding proposed in Local government Plans for AOWH activities is lower than 20 percent of the moneys available in the Fund, the Department may require Local governments to use a specific percentage of their annual formula allocations in some future year for AOWH activities as part of the annual funding process.  "]
[null,"Activity","2019 Allocation Amount \nPer Activity","2020 Allocation Amount \nPer Activity","2021 Allocation Amount \nPer Activity","2022 Allocation Amount \nPer Activity","2023 Allocation Amount \nPer Activity"]
[null,"Awarded Allocation Amount for Activity 1: §301(a)(1)",0,0,0,0,0,{"$f":"SUM(C15:G15)","v":0}]
[null,"Total amount of PLHA Funds Disbursed \nto Date for Activity 1 per Allocation Year",0,0,0,0,0,{"$f":"SUM(C16:G16)","v":0}]
[null,"Total Amount of PLHA Funds Disencumbered for Activity 1 per Allocation Year (if applicable)",0,0,0,0,0,{"$f":"SUM(C17:G17)","v":0}]
[null,"Awarded Allocation Amount for Activity 2: §301(a)(2)",0,0,0,0,0,0]
[null,"Amount of PLHA Awarded Funds Allocated for AOWH (See §303(e)) for Activity 2",0,0,0,0,0,0]
[null,"Total Amount of PLHA Funds Disbursed \nto Date for Activity 2 per Allocation Year",0,0,0,0,0,0]
[null,"Total Amount of PLHA Disbursed \nFunds Allocated for AOWH Activity 2",0,0,0,0,0,{"$f":"SUM(C21:G21)","v":0}]
[null,"Total Amount of PLHA Funds Expended Towards AOWH for Activity 2 to Date",0,0,0,0,0,{"$f":"SUM(C22:G22)","v":0}]
[null,"Total Amount of PLHA Funds Disencumbered for Activity 2 per Allocation Year (if applicable)",0,0,0,0,0,{"$f":"SUM(C23:G23)","v":0}]
[null,"Awarded Allocation Amount for Activity 3: §301(a)(3)",0,0,0,0,0,0]
[null,"Amount of PLHA Awarded Funds Allocated for AOWH (See §303(e)) for Activity 3",0,0,0,0,0,0]
[null,"Total Amount of PLHA Funds Disbursed \nto Date for Activity 3 per Allocation Year",0,0,0,0,0,0]
[null,"Total Amount of PLHA Disbursed \nFunds Allocated for AOWH Activity 3",0,0,0,0,0,{"$f":"SUM(C27:G27)","v":0}]
[null,"Total Amount of PLHA Funds Expended Towards AOWH for Activity 3 to Date",0,0,0,0,0,{"$f":"SUM(C28:G28)","v":0}]
[null,"Total Amount of PLHA Funds Disencumbered for Activity 3 per Allocation Year (if applicable)",0,0,0,0,0,{"$f":"SUM(C29:G29)","v":0}]
[null,"Awarded Allocation Amount for Activity 4: §301(a)(4)",0,0,0,0,0,0]
[null,"Amount of PLHA Awarded Funds Allocated for AOWH (See §303(e)) for Activity 4",0,0,0,0,0,0]
[null,"Total Amount of PLHA Funds Disbursed \nto Date for Activity 4 per Allocation Year",0,0,0,0,0,0]
[null,"Total Amount of PLHA Disbursed \nFunds Allocated for AOWH Activity 4 ",0,0,0,0,0,{"$f":"SUM(C33:G33)","v":0}]
[null,"Total Amount of PLHA Funds Expended Towards AOWH for Activity 4 to Date",0,0,0,0,0,{"$f":"SUM(C34:G34)","v":0}]
[null,"Total Amount of PLHA Funds Disencumbered for Activity 4 per Allocation Year (if applicable)",0,0,0,0,0,{"$f":"SUM(C35:G35)","v":0}]
[null,"Awarded Allocation Amount for Activity 5: §301(a)(5)",0,0,0,0,0,0]
[null,"Total Amount of PLHA Funds Disbursed \nto Date for Activity 5 per Allocation Year",0,0,0,0,0,0]
[null,"Total Amount of PLHA Funds Disencumbered for Activity 5 per Allocation Year (if applicable)",0,0,0,0,0,{"$f":"SUM(C38:G38)","v":0}]
[null,"Awarded Allocation Amount for Activity 6: §301(a)(6)",0,0,0,0,0,0]
[null,"Total Amount of PLHA Funds Disbursed \nto Date for Activity 6 per Allocation Year",0,0,0,0,0,0]
[null,"Total Amount of PLHA Funds Disencumbered for Activity 6 per Allocation Year (If applicable)",0,0,0,0,0,0]
[null,"Awarded Allocation Amount for Activity 7: §301(a)(7)",0,0,0,0,0,0]
[null,"Amount of PLHA Awarded Funds Allocated for AOWH (See §303(e)) for Activity 7\n(this amount is included in the \ndisbursed amount reported in Row 39)",0,0,0,0,0,0]
[null,"Total Amount of PLHA Funds Disbursed \nto Date for Activity 7 per Allocation Year",0,0,0,0,0,0]
[null,"Total Amount of PLHA Disbursed \nFunds Allocated for AOWH Activity 7\n(this amount is included in the \ndisbursed amount reported in Row 37)",0,0,0,0,0,0]
[null,"Total Amount of PLHA Funds Expended Towards AOWH for Activity 7 to Date",0,0,0,0,0,0]
[null,"Total Amount of PLHA Funds Disencumbered for Activity 7 per Allocation Year (if applicable)",0,0,0,0,0,0]
[null,"Awarded Allocation Amount for Activity 8: §301(a)(8)",0,0,0,0,0,0]
[null,"Amount of PLHA Awarded Funds Allocated for AOWH (See §303(e)) for Activity 8\n(this amount is included in the \ndisbursed amount reported in Row 44)",0,0,0,0,0,0]
[null,"Total Amount of PLHA Funds Disbursed \nto Date for Activity 8 per Allocation Year",0,0,0,0,0,0]
[null,"Total Amount of PLHA Disbursed \nFunds Allocated for AOWH Activity 8\n(this amount is included in the \ndisbursed amount reported in Row 46)",0,0,0,0,0,0]
[null,"Total Amount of PLHA Funds Expended Towards AOWH for Activity 8 to Date",0,0,0,0,0,0]
[null,"Total Amount of PLHA Funds Disencumbered for Activity 8 per Allocation Year (if applicable)",0,0,0,0,0,0]
[null,"Awarded Allocation Amount for Activity 9: §301(a)(9)",0,0,0,0,0,0]
[null,"Amount of PLHA Awarded Funds Allocated for AOWH (See §303(e)) for Activity 9\n(this amount is included in the \ndisbursed amount reported in Row 49)",0,0,0,0,0,0]
[null,"Total Amount of PLHA Funds Disbursed \nto Date for Activity 9 per Allocation Year",0,0,0,0,0,0]
[null,"Total Amount of PLHA Disbursed \nFunds Allocated for AOWH Activity 9\n(this amount is included in the \ndisbursed amount reported in Row 51)",0,0,0,0,0,0]
[null,"Total Amount of PLHA Funds Expended Towards AOWH for Activity 9 to Date",0,0,0,0,0,0]
[null,"Total Amount of PLHA Funds Disencumbered for Activity 9 per Allocation Year (if applicable)",0,0,0,0,0,0]
[null,"Awarded Allocation Amount for Activity 10: §301(a)(10)",0,0,0,0,0,0]
[null,"Amount of PLHA Awarded Funds Allocated for AOWH (See §303(e)) for Activity 10\n(this amount is included in the \ndisbursed amount reported in Row 54)",0,0,0,0,0,0]
[null,"Total Amount of PLHA Funds Disbursed \nto Date for Activity 10 per Allocation Year",0,0,0,0,0,0]
[null,"Total Amount of PLHA Disbursed \nFunds Allocated for AOWH Activity 10\n(this amount is included in the \ndisbursed amount reported in Row 56)",0,0,0,0,0,0]
[null,"Total Amount of PLHA Funds Expended Towards AOWH for Activity 10 to Date",0,0,0,0,0,0]
[null,"Total Amount of PLHA Funds Disencumbered \nfor Activity 10 per Allocation Year \n(if applicable)",0,0,0,0,0,0]
[null,"Awarded Allocation Amount for Admin: §301(b)",0,0,0,0,0,0]
[null,"Total Amount of PLHA Funds Disbursed \nto Date for Admin Costs per Allocation Year\n(cannot exceed 5% of the total \nawarded amount per allocation year)",0,0,0,0,0,0]
[null,"Total Amount of PLHA Funds Disencumbered for Admin Costs per Allocation Year \n(if applicable)",0,0,0,0,0,0]
[null,"HCD USE ONLY"]
[null,"Total Amount of PLHA Funds Awarded By HCD To Date:",{"$f":"SUM(C15,C18,C24,C30,C36,C39,C42,C48,C54,C60,C66)","v":0},{"$f":"SUM(D15,D18,D24,D30,D36,D39,D42,D48,D54,D60,D66)","v":0},{"$f":"SUM(E15,E18,E24,E30,E36,E39,E42,E48,E54,E60,E66)","v":0},{"$f":"SUM(F15,F18,F24,F30,F36,F39,F42,F48,F54,F60,F66)","v":0},{"$f":"SUM(G15,G18,G24,G30,G36,G39,G42,G48,G54,G60,G66)","v":0},0]
[null,"Total Amount of PLHA Funds Disbursed By HCD To Date:",{"$f":"SUM(C16,C20,C26,C32,C37,C40,C44,C50,C56,C62,C67)","v":0},{"$f":"SUM(D16,D20,D26,D32,D37,D40,D44,D50,D56,D62,D67)","v":0},{"$f":"SUM(E16,E20,E26,E32,E37,E40,E44,E50,E56,E62,E67)","v":0},{"$f":"SUM(F16,F20,F26,F32,F37,F40,F44,F50,F56,F62,F67)","v":0},{"$f":"SUM(G16,G20,G26,G32,G37,G40,G44,G50,G56,G62,G67)","v":0},0]
[null,"Total Amount of AWARDED PLHA Funds Allocated Towards AOWH",{"$f":"SUM(C19,C25,C31,C43,C49,C55,C61)","v":0},{"$f":"SUM(D19,D25,D31,D43,D49,D55,D61)","v":0},0,0,0,0]
[null,"Total Amount of DISBURSED PLHA Funds Allocated Towards AOWH ",{"$f":"SUM(C21,C27,C33,C45,C51,C57,C63)","v":0},{"$f":"SUM(D21,D27,D33,D45,D51,D57,D63)","v":0},{"$f":"SUM(E21,E27,E33,E45,E51,E57,E63)","v":0},{"$f":"SUM(F21,F27,F33,F45,F51,F57,F63)","v":0},{"$f":"SUM(G21,G27,G33,G45,G51,G57,G63)","v":0},0]
[null,"Total Amount of PLHA Funds EXPENDED Towards AOWH ",{"$f":"SUM(C22,C28,C34,C46,C52,C58,C64)","v":0},{"$f":"SUM(D22,D28,D34,D46,D52,D58,D64)","v":0},{"$f":"SUM(E22,E28,E34,E46,E52,E58,E64)","v":0},0,0,0]
[null,"Percentage of Awarded PLHA Funds Allocated Towards AOWH ",{"$f":"SUM(C72/C70)","v":{"$error":"#DIV/0!"}},{"$f":"SUM(D72/D70)","v":{"$error":"#DIV/0!"}},{"$error":"#DIV/0!"},{"$error":"#DIV/0!"},{"$error":"#DIV/0!"}]
[null,"Percentage of Disbursed PLHA Funds Allocated Towards AOWH ",{"$f":"SUM(C73/C71)","v":{"$error":"#DIV/0!"}},{"$f":"SUM(D73/D71)","v":{"$error":"#DIV/0!"}},{"$error":"#DIV/0!"},{"$error":"#DIV/0!"},{"$error":"#DIV/0!"}]
[null,"Total Amount of PLHA Funds Disencumbered By HCD To Date:",{"$f":"SUM(C17,C23,C29,C35,C38,C41,C47,C53,C59,C65,C68)","v":0},{"$f":"SUM(D17,D23,D29,D35,D38,D41,D47,D53,D59,D65,D68)","v":0},{"$f":"SUM(E17,E23,E29,E35,E38,E41,E47,E53,E59,E65,E68)","v":0},{"$f":"SUM(F17,F23,F29,F35,F38,F41,F47,F53,F59,F65,F68)","v":0},{"$f":"SUM(G17,G23,G29,G35,G38,G41,G47,G53,G59,G65,G68)","v":0},0]
[null,"Total Amount of PLHA Funds \nAfter Disencumbrance",{"$f":"SUM(C70-C77)","v":0},{"$f":"SUM(D70-D77)","v":0},{"$f":"SUM(E70-E77)","v":0},{"$f":"SUM(F70-F77)","v":0},{"$f":"SUM(G70-G77)","v":0},{"$f":"SUM(#REF!)","v":{"$error":"#REF!"}}]
[null,"Award Summary - Each applicable award year requires a separate annual report. \n1.  Use the dropdown list to select the awarded year.\n2.  Enter the awarded amount. Awarded amount must match the most current executed Standard Agreement.",null,null,null,null,null,0]
[null,"Please Select One",0,null,null,null,null,0]
[null,"Disbursement Summary \n1.  Have PLHA funds been requested and approved by SGM? Use the dropdown list to select your response.\n2.  If Yes, enter the total amount that was requested and approved by SGM.  If No (funds have been awarded but have not been requested and approved by SGM), enter \"$0.00\" in the cell.",null,null,null,null,null,0]
[null,"Please Select One",0,null,null,null,null,0]
[null,"Eligible Activity Summary \nPlease select the activity for which your awarded funds were applied.",null,null,null,null,null,0]
[null,"Activity","Award for this Activity? \nSelect Yes or No",null,null,null,null,0]
[null,"Activity 1 Competitive: §401(a)(1)","No",null,null,null,null,0]
[null,"Activity 2 Competitive: §401(a)(2)","No",null,null,null,null,0]
[null,"Administrative Costs Expended (§405(c))",0,null,null,null,null,0]
[null,null,null,null,null,null,null,0]
[null,null,null,null,null,null,null,0]
[null,null,null,null,null,null,null,0]
[null,null,null,null,null,null,null,0]
[null,null,null,null,null,null,null,{"$f":"SUM(C78:G78)","v":0}]

{"sheet":"2-Narrative Summary","index":3,"n_rows":26,"n_cols":5,"rows_kept":26,"cut":false,"hidden":false,"merged":[[25,0,25,7],[26,0,39,7],[9,6,9,7],[0,0,0,7],[1,0,1,7],[2,0,2,7],[10,0,10,7],[11,0,24,7],[6,0,6,7],[7,0,7,7],[8,0,8,1],[8,3,8,5],[8,6,8,7],[9,0,9,1],[9,3,9,5],[3,0,3,1],[3,2,3,3],[3,4,3,5],[3,6,3,7],[5,0,5,7],[4,0,4,7]]}
["PERMANENT LOCAL HOUSING ALLOCATION (PLHA) PROGRAM"]
["Annual Report"]
["Narrative Summary"]
["1a.  Total Amount of PLHA Funds Disbursed for Administrative Costs During This Reporting Period:",null,null,null,"1b.  Total Amount of PLHA Funds Expended on Administrative Costs During This Reporting Period:"]
["1c.  If you have not requested, received, or expended PLHA funds for Administrative Costs, please enter \"N/A\" or \"0\" in cells 1a and 1b and provide the anticipated timeframe in which you plan to request and/or expend the funds.  If you plan to allocate or have already allocated your awarded 5% Administrative Costs funds to another Activity, please indicate in the cell below the allocation year of the awarded Administrative Costs funds and the Activity.  Otherwise, please enter an \"N/A\" in the cell below."]
[]
["2. Please indicate how additional revenue was generated (e.g. loan repayments, interest, fees) from program funding during this reporting period and include a description of the generated revenue.  If not applicable, enter \"N/A\" to acknowlege that you do not have any revenues or income earned at this time.\n    \nIn addition, clarify how your estimate of households to be assisted was determined. (pursuant to Guidelines Section 302 (8))."]
[]
["2a. Program Income Earned this reporting period: ",null,null,"2b. Approximate Number of Households to be assisted with this period's Reuse Revenue: "]
["2c. Current Balance of Reuse Revenue: "]
["3. If your 5-Year Plan includes any of the following activities:  2, 3, 4, 7, 8, 9, or 10, please explain how the use of PLHA funds is providing Affordable Owner-Occupied Workforce Housing (AOWH) for individuals or families of low to moderate incomes.  See Guidelines §100(a) and §303(e)."]
[]
[]
[]
[]
[]
[]
[]
[]
[]
[]
[]
[]
[]
[]
["4. Please share any success stories you have encountered using PLHA funds for a project or an Activity.\n    Optional: Please feel free to submit any attachments and/or photos you would like to share to PLHASGM@hcd.ca.gov.  "]

{"sheet":"Activity 1","index":4,"n_rows":58,"n_cols":22,"rows_kept":58,"cut":false,"hidden":true,"merged":[[33,9,33,13],[34,9,34,13],[26,1,26,16],[27,1,27,16],[30,1,30,5],[31,1,31,5],[32,1,32,5],[33,1,33,5],[29,9,29,13],[2,1,2,21],[0,1,0,21],[1,1,1,21],[4,14,4,21],[14,13,14,16],[14,1,14,12],[3,13,3,14],[35,9,35,13],[36,9,36,13],[37,9,37,13],[4,9,4,13],[4,1,4,8],[34,1,34,5],[35,1,35,5],[36,1,36,5],[37,1,37,5],[29,1,29,5],[28,1,28,16],[24,1,24,16],[25,1,25,16],[31,9,31,13],[32,9,32,13],[30,9,30,13]]}
[null,"PERMANENT LOCAL HOUSING ALLOCATION (PLHA) FUND"]
[null,"Activity 1 Outcomes\n§301(a)(1) The predevelopment, development, acquisition, rehabilitation, and preservation of multifamily, residential live-work, rental housing that is Affordable to Extremeley low, -Very low-, Low-, or Moderate income households, including necessary operating subsidies"]
[null,"This tab captures Activity 1 outcomes and expenditures using PLHA funds during this reporting period (unless otherwise noted).  If PLHA funds have not been received and expended to operate the project during this reporting period, enter an \"N/A\" or a \"0\" in the yellow cells on the first row of each section and provide an explanation in the section below."]
[null,"Contract Number",{"$f":"'1-Cover Sheet'!C8","v":"Select One"},"Total Amount of PLHA\nFunds Awarded to Date ",{"$f":"(SUM('1-Cover Sheet'!C15:G15))","v":0},"Total Amount of PLHA\nFunds Disbursed to Date",{"$f":"(SUM('1-Cover Sheet'!C16:G16))","v":0},"Total Amount of Awarded\n PLHA Funds Not Yet\nDisbursed to Date",{"$f":"IFERROR(E4-G4,0)","v":0},"% of PLHA Funds \nDisbursed to Date",{"$f":"IFERROR(G4/E4,0)","v":0},"% of PLHA Funds \nNot Yet Disbursed to Date",{"$f":"IFERROR(I4/E4,0)","v":0},"Total Amount of PLHA Funds Disbursed \nDuring this Reporting Period",null,null,"Total Amount of PLHA Funds Expended During \nthis Reporting Period",{"$f":"SUM(J14:N14)","v":0},"Total Amount of Unexpended Funds During \nthis Reporting Period",{"$f":"IFERROR(P4-R4,0)","v":0},"% of PLHA Funds \nExpended During this Period \n(% may be higher than 100% if PLHA funds disbursed in previous reporting period\n were expended during this reporting period)",{"$f":"IFERROR(R4/P4,0)","v":0}]
[null,"General Project Information ",null,null,null,null,null,null,null,"Expenditure Breakdown - Please enter the amounts expended ONLY with PLHA funds.\n(Total amount expended should equate to the amount of PLHA funds received.  \nTotal amount may be less than the amount received if PLHA have not been fully expended) ",null,null,null,null,"Households or Individuals Served - Please enter the total number of households or individuals assisted with PLHA funds for each category.  \nNumber may be duplicated (example, a 65 year old veteran will be counted in the \"Seniors\" column and \"Veterans\" column)"]
[null,"Project \n(Project Name or Identifier)","Project Address\nStreet, City, Zip","Project County\n","Length of Affordability Restriction\n(in years), if applicable","Date of Affordability Covenant Expiration, if applicable","Total Cost of Project\n(includes PLHA and non-PLHA funds)","Developer Name","Grant or Loan","Amount of PLHA Funds Expended on Predevelopment","Amount of PLHA Funds  Expended on Construction and/or Development","Amount of PLHA Funds Expended on Acquisition","Amount of PLHA Funds Expended on Rehabilitation and/or Preservation","Amount of PLHA Funds  Expended on Operating Subsidies","Total Number of Individuals to Occupy Project","Total Number of Households to Occupy the Project","Number of Seniors to Occupy Project (65 and older)","Number of Veterans to Occupy Project","Number of Disabled Persons to Occupy Project","Number of Families with Minor Children to Occupy Project","Number of Transition-Aged Youth (18-24) to Occupy Project","Number of Farmworkers to \nOccupy Project"]
["Yes",null,null,"Select One",null,null,null,null,"Select One"]
["Yes",null,null,"Select One",null,null,null,null,"Select One"]
["Yes",null,null,"Select One",null,null,null,null,"Select One"]
["Yes",null,null,"Select One",null,null,null,null,"Select One"]
["Yes",null,null,"Select One",null,null,null,null,"Select One"]
["Yes",null,null,"Select One",null,null,null,null,"Select One"]
["Yes",null,null,"Select One",null,null,null,null,"Select One"]
[null,"Total",null,null,null,null,null,null,null,{"$f":"SUM(J7:J13)","v":0},0,0,0,0,0,0,{"$f":"SUM(Q7:Q13)","v":0},0,0,0,0,0]
[null,"Unit Details - Please enter the total number of units assisted with PLHA funds for each category (unless otherwise noted).  ",null,null,null,null,null,null,null,null,null,null,null,"Project Status and Evidence of Compliance"]
[null,"Project \n(Project Name or Identifier)","Total Number of Units in Project (includes PLHA and non-PLHA units)","Total Number of Units Restricted for Affordability in Project (includes only PLHA units)","Type of Housing","Number of Units Receiving Operating Subsidy","Number of ADA Accessible Units Developed, Rehabilitated, or Preserved","Number of Units Developed, Rehabilitated, or Preserved for Formerly Homeless Individuals ","Number of Extremely Low- Income Units Developed, Rehabilitated, or Preserved\n(Max 30% AMI)\n{Per Guidelines 101(n)}:","Number of Very Low-Income Units Developed, Rehabilitated, or Preserved\n(Max 50% AMI)\n{Per Guidelines 101(cc)}:","Total Number of Units at or below 60% AMI Developed, Rehabilitated, or Preserved","Number of Low(er)-Income Units Developed, Rehabilitated, or Preserved (Max 80% AMI)\n{Per Guidelines 101(s)}:","Number of Moderate-Income Units Developed, Rehabilitated, or Preserved\n(Max 120% AMI, or if in High Cost Area 150%)\n{Per Guidelines 101(t)}:","Project Status","Is Award Letter to Affordable Housing Project Attached?","Date of Project Completion \n(if applicable)","If Completed, is Certificate of Occupancy Attached?"]
[null,{"$f":"IF(B7=\"\",\"\",B7)","v":""},null,null,"Select One",null,null,null,null,null,null,null,null,"Select One","Select One",null,"Select One"]
[null,"",null,null,"Select One",null,null,null,null,null,null,null,null,"Select One","Select One",null,"Select One"]
[null,"",null,null,"Select One",null,null,null,null,null,null,null,null,"Select One","Select One",null,"Select One"]
[null,"",null,null,"Select One",null,null,null,null,null,null,null,null,"Select One","Select One",null,"Select One"]
[null,"",null,null,"Select One",null,null,null,null,null,null,null,null,"Select One","Select One",null,"Select One"]
[null,"",null,null,"Select One",null,null,null,null,null,null,null,null,"Select One","Select One",null,"Select One"]
[null,"",null,null,"Select One",null,null,null,null,null,null,null,null,"Select One","Select One",null,"Select One"]
[null,"Total",{"$f":"SUM(C17:C23)","v":0},{"$f":"SUM(D17:D23)","v":0},null,{"$f":"SUM(F17:F23)","v":0},{"$f":"SUM(G17:G23)","v":0},0,0,0,0,0,0]
[null,"Outcomes and Activity Expenditures - Please complete this section if PLHA funds HAVE NOT been requested and/or expended (if already disbursed) during this reporting period.  Annual Report will be returned if this section is left blank and there are no outcomes reported in the above sections.\n1.  If you have not requested PLHA funds for this activity, please enter \"N/A\" or \"0\" in the above cells and provide the anticipated timeframe in which you will request and expend funds.  Please be specific and describe the current status of this activity and/or your plan in fulfilling this activity with the awarded funds. If applicable, please describe the targeted beneficiaries of your project including services to be provided.\n2.  If you have requested or received PLHA funds but have not expended the funds, please enter \"N/A\" or \"0\" in the above cells and describe in detail the current status of this activity and/or your plan in fulfilling this activity with the awarded funds.  Please include a timeframe as to when you plan to expend the funds. If applicable, please describe the targeted beneficiaries of your project including services to be provided.\n3.  If you expended PLHA funds that were received during the last reporting period, please enter the data as requested above.  For example, even though you have not requested funds during this reporting period, you expended funds that were previously disbursed to you.  Please provide a clarification.  "]
[]
[null,"Additional Comments - Please complete this section if you plan or is in the process of making amendments to your 5-Year Plan, if you are encountering issues in completing your Activity, and/or if there are discrepancies that need to be clarified.\n1.  Please describe any proposed amendment(s) to the approved activities and schedule (pursuant to Guidelines Section 503(b)).\n2.  Please describe any issues or barriers you encountered such as in securing required entitlements, permits, zoning changes, and environmental clearances as applicable.\n3.  Please provide any additional information regarding this activity."]
[]
[null,"CUMULATIVE DATA - The information below is based ONLY on PLHA funded units and individuals served by PLHA funds for this Activity.  The Total Number of PLHA Funded Units or People Served amounts in this section reflect data from the execution of your contract to the current reporting period.  Annual Report will be returned if this section is left blank.\n1.  In order to complete this section, please refer to the Cumulative Data for Activity 1 from last year's Annual Report.\n2.  If an Annual Report was not required to be submitted in the last reporting period, please enter a zero for each of the yellow cell below.\n3.  If an Annual Report was submitted in the previous reporting period, please use that Annual Report to enter an amount in each yellow cell below by adding the amounts reported in the Total Prior to this Reporting Period AND Total for this Reporting Period that corresponds to each row.\n4.  If the data in the previous Annual Report was reported incorrectly, please provide the correct amounts below.  Please note that the amount requested in each yellow cell below reflects the total amount from the first time PLHA funds were used for the units and the people served to the previous year's reporting period.  PLHA funds used during this reporting period should ONLY be reported in the above sections.  In addition, please provide an explanation in the above Additional Comments section to explain the discrepancy between the data reported in this Annual Report and the previous Annual Report."]
[null,"PLHA FUNDED UNITS",null,null,null,null,"Total Prior to this Reporting Period","Total for this Reporting Period","Total Number \nof PLHA Funded Units to Date","PEOPLE SERVED",null,null,null,null,"Total Prior to this Reporting Period","Total for this Reporting Period","Total Number of\nPeople Served \nto Date"]
[null,"Number of Units Developed, Rehabilitated, or Preserved ",null,null,null,null,null,{"$f":"D24","v":0},{"$f":"SUM(G31:H31)","v":0},"Number of Individuals Occupying Projects",null,null,null,null,null,{"$f":"O14","v":0},{"$f":"SUM(O31:P31)","v":0}]
[null,"Number of ADA Accessible Units Developed, Rehabilitated or Preserved",null,null,null,null,null,{"$f":"G24","v":0},{"$f":"SUM(G32:H32)","v":0},"Number of Households Occupying Projects",null,null,null,null,null,{"$f":"P14","v":0},{"$f":"SUM(O32:P32)","v":0}]
[null,"Number of Units Developed, Rehabilitated or Preserved for Formerly Homeless Individuals ",null,null,null,null,null,{"$f":"H24","v":0},0,"Number of Seniors (65 and older) Occupying Projects",null,null,null,null,null,{"$f":"Q14","v":0},0]
[null,"Number of Extremely Low- Income Units Developed, Rehabilitated or Preserved\n(Max 30% AMI)\n{Per Guidelines 101(n)}:",null,null,null,null,null,{"$f":"I24","v":0},0,"Number of Veterans Occupying Projects",null,null,null,null,null,{"$f":"R14","v":0},0]
[null,"Number of Very Low-Income Units Developed, Rehabilitated or Preserved\n(Max 50% AMI)\n{Per Guidelines 101(cc)}:",null,null,null,null,null,{"$f":"J24","v":0},0,"Number of Disabled Persons Occupying Projects",null,null,null,null,null,{"$f":"S14","v":0},0]
[null,"Total Number of Units at or below 60% AMI Developed, Rehabilitated or Preserved",null,null,null,null,null,{"$f":"K24","v":0},0,"Number of Families with Minor Children Occupying Projects",null,null,null,null,null,{"$f":"T14","v":0},0]
[null,"Number of Low(er)-Income Units Developed, Rehabilitated or Preserved (Max 80% AMI)\n{Per Guidelines 101(s)}:",null,null,null,null,null,{"$f":"L24","v":0},0,"Number of Transition-Aged Youth (ages 18-24) Occupying Projects",null,null,null,null,null,{"$f":"U14","v":0},0]
[null,"Number of Moderate-Income Units Developed, Rehabilitated or Preserved\n(Max 120% AMI, or if in High Cost Area 150%)\n{Per Guidelines 101(t)}:",null,null,null,null,null,{"$f":"M24","v":0},0,"Number of Farmworkers Occupying Projects",null,null,null,null,null,{"$f":"V14","v":0},0]
[]
[]
[]
[]
[]
[]
[]
[]
[]
[]
[null,"Project",null,null,null,null,null,null,"Project Status"]
[null,{"$f":"B7","v":0},null,null,null,null,null,null,{"$f":"S17","v":0}]
[null,0,null,null,null,null,null,null,{"$f":"S18","v":0},"Completion Date"]
[null,0,null,null,null,null,null,null,0,{"$f":"U17","v":0}]
[null,0,null,null,null,null,null,null,0,{"$f":"U18","v":0}]
[null,0,null,null,null,null,null,null,0,0]
[null,0,null,null,null,null,null,null,0,0]
[null,0,null,null,null,null,null,null,0,0]
[null,null,null,null,null,null,null,null,null,0]
[null,null,null,null,null,null,null,null,null,0]

{"sheet":"Activity 2","index":5,"n_rows":45,"n_cols":23,"rows_kept":45,"cut":false,"hidden":true,"merged":[[33,1,33,5],[33,9,33,13],[34,1,34,5],[34,9,34,13],[35,1,35,5],[35,9,35,13],[30,9,30,13],[31,1,31,5],[31,9,31,13],[32,1,32,5],[32,9,32,13],[23,11,23,16],[0,1,0,22],[1,1,1,22],[2,1,2,22],[4,14,4,22],[3,13,3,14],[36,1,36,5],[36,9,36,13],[37,1,37,5],[37,9,37,13],[4,9,4,13],[25,1,25,16],[14,12,14,16],[14,1,14,11],[24,1,24,16],[4,1,4,8],[29,1,29,5],[29,9,29,13],[30,1,30,5],[26,1,26,16],[27,1,27,16],[28,1,28,16]]}
[null,"PERMANENT LOCAL HOUSING ALLOCATION (PLHA) FUND"]
[null,"Activity 2 Outcomes\n§301(a)(2) The predevelopment, development, acquisition, rehabilitation, and preservation of Affordable rental and ownership Housing Including Accessory Dwelling Units (ADUs), that meets the needs of a growing workforce earning up to 120% of AMI, or 150% of AMI in high-cost areas. ADUs shall be available for occupancy for a term of no less than 30 days."]
[null,"This tab captures Activity 2 outcomes and expenditures using PLHA funds during this reporting period (unless otherwise noted).  If PLHA funds have not been received and expended to operate the project during this reporting period, enter an \"N/A\" or a \"0\" in the yellow cells on the first row of each section and provide an explanation in the section below."]
[null,"Contract Number",{"$f":"'1-Cover Sheet'!C8","v":"Select One"},"Total Amount of PLHA\nFunds Awarded to Date ",{"$f":"(SUM('1-Cover Sheet'!C18:G18))","v":0},"Total Amount of PLHA\nFunds Disbursed to Date",{"$f":"(SUM('1-Cover Sheet'!C20:G20))","v":0},"Total Amount of Awarded\n PLHA Funds Not Yet\nDisbursed to Date",{"$f":"IFERROR(E4-G4,0)","v":0},"% of PLHA Funds \nDisbursed to Date",{"$f":"IFERROR(G4/E4,0)","v":0},"% of PLHA Funds \nNot Yet Disbursed to Date",{"$f":"IFERROR(I4/E4,0)","v":0},"Total Amount of PLHA Funds Disbursed \nDuring this Reporting Period",null,null,"Total Amount of PLHA Funds Expended During \nthis Reporting Period",{"$f":"SUM(J14:N14)","v":0},"Total Amount of Unexpended Funds During \nthis Reporting Period",{"$f":"IFERROR(P4-R4,0)","v":0},"% of PLHA Funds \nExpended During this Period \n(% may be higher than 100% if PLHA funds disbursed in previous reporting period\n was expended during this reporting period)",{"$f":"IFERROR(R4/P4,0)","v":0}]
[null,"General Project Information ",null,null,null,null,null,null,null,"Expenditure Breakdown - Please enter the amounts expended ONLY with PLHA funds.\n(Total amount expended should equate to the amount of PLHA funds received.  \nTotal amount may be less than the amount received if PLHA have not been fully expended) ",null,null,null,null,"Households or Individuals Served - Please enter the total number of households or individuals assisted with PLHA funds for each category.  \nNumber may be duplicated (example, a 65 year old veteran will be counted in the \"Seniors\" column and \"Veterans\" column)"]
[null,"Project \n(Project Name or Identifier)","Project Address\nStreet, City, Zip","Project County\n","Length of Affordability Restriction\n(in years), if applicable","Date of Affordability Covenant Expiration, if applicable","Total Cost of Project\n(includes PLHA and non-PLHA funds)","Developer Name","Grant or Loan","Amount of PLHA Funds Expended on Predevelopment\n(including AOWH if applicable)","Amount of PLHA Funds  Expended on Construction and/or Development\n(including AOWH if applicable)","Amount of PLHA Funds Expended on Acquisition\n(including AOWH if applicable)","Amount of PLHA Funds Expended on Rehabilitation and/or Preservation\n(including AOWH if applicable)","Amount of PLHA Funds  Expended on Operating Subsidies\n(including AOWH if applicable)","Amount of PLHA Funds Expended Towards AOWH","Number of Households to Occupy the Project","Number of Seniors to Occupy Project (65 and older)","Number of Veterans to Occupy Project","Number of Disabled Persons to Occupy Project","Number of Families with Minor Children to Occupy Project","Number of Transition-Aged Youth (18-24) to Occupy Project","Farmworkers to \nOccupy Project","Number of Individuals to Occupy Project"]
[null,null,null,"Select One",null,null,null,null,"Select One"]
[null,null,null,"Select One",null,null,null,null,"Select One"]
[null,null,null,"Select One",null,null,null,null,"Select One"]
[null,null,null,"Select One",null,null,null,null,"Select One"]
[null,null,null,"Select One",null,null,null,null,"Select One"]
[null,null,null,"Select One",null,null,null,null,"Select One"]
[null,null,null,"Select One",null,null,null,null,"Select One"]
[null,"Total",null,null,null,null,null,null,null,{"$f":"SUM(J7:J13)","v":0},0,0,0,0,0,0,{"$f":"SUM(Q7:Q13)","v":0},0,0,0,0,0,{"$f":"SUM(W7:W13)","v":0}]
[null,"Unit Details - Please enter the total number of units assisted with PLHA funds for each category.  ",null,null,null,null,null,null,null,null,null,null,"Project Status and Evidence of Compliance"]
[null,"Project \n(Project Name or Identifier)","Number of Housing Units Developed, Acquired, Rehabilitated, or Preserved (includes only PLHA units)","Type of Housing","Number of ADA-Accessible Units Developed, Rehabilitated, or Preserved","Number of Units Developed, Rehabilitated, or Preserved for Formerly Homeless Individuals","Number of Extremely Low- Income Units Developed, Rehabilitated, or Preserved\n(Max 30% AMI)\n{Per Guidelines 101(n)}:","Number of Very Low-Income Units Developed, Rehabilitated, or Preserved\n(Max 50% AMI)\n{Per Guidelines 101(cc)}:","Total Number of Units at or below 60% AMI Developed, Rehabilitated, or Preserved","Number of Low(er)-Income Units Developed, Rehabilitated, or Preserved (Max 80%AMI)\n{Per Guidelines 101(s)}:","Number of Moderate-Income Units Developed, Rehabilitated, or Preserved\n(Max 120% AMI, or if in High Cost Area 150%)\n{Per Guidelines 101(t)}:","Tax Credit Project","Is Deed Restriction Recorded?","Project Status","Is Award Letter to Affordable Housing Project Attached?","Date of Project Completion \n(if applicable)","If Completed, is Certificate of Occupancy Attached?"]
[null,{"$f":"IF(B7=\"\",\"\",B7)","v":""},null,"Select One",null,null,null,null,null,null,null,"Select One","Select One","Select One","Select One",null,"Select One"]
[null,{"$f":"IF(B8=\"\",\"\",B8)","v":""},null,"Select One",null,null,null,null,null,null,null,"Select One","Select One","Select One","Select One",null,"Select One"]
[null,"",null,"Select One",null,null,null,null,null,null,null,"Select One","Select One","Select One","Select One",null,"Select One"]
[null,"",null,"Select One",null,null,null,null,null,null,null,"Select One","Select One","Select One","Select One",null,"Select One"]
[null,"",null,"Select One",null,null,null,null,null,null,null,"Select One","Select One","Select One","Select One",null,"Select One"]
[null,"",null,"Select One",null,null,null,null,null,null,null,"Select One","Select One","Select One","Select One",null,"Select One"]
[null,"",null,"Select One",null,null,null,null,null,null,null,"Select One","Select One","Select One","Select One",null,"Select One"]
[null,"Total:",{"$f":"SUM(C17:C23)","v":0},null,{"$f":"SUM(E17:E23)","v":0},0,0,0,0,0,0]
[null,"Outcomes and Activity Expenditures - Please complete this section if PLHA funds HAVE NOT been requested and/or expended (if already disbursed) during this reporting period.  Annual Report will be returned if this section is left blank and there are no outcomes reported in the above sections.\n1.  If you have not requested PLHA funds for this activity, please enter \"N/A\" or \"0\" in the above cells and provide the anticipated timeframe in which you will request and expend funds.  Please be specific and describe the current status of this activity and/or your plan in fulfilling this activity with the awarded funds. If applicable, please describe the targeted beneficiaries of your project including services to be provided.\n2.  If you have requested or received PLHA funds but have not expended the funds, please enter \"N/A\" or \"0\" in the above cells and describe in detail the current status of this activity and/or your plan in fulfilling this activity with the awarded funds.  Please include a timeframe as to when you plan to expend the funds. If applicable, please describe the targeted beneficiaries of your project including services to be provided.\n3.  If you expended PLHA funds that were received during the last reporting period, please enter the data as requested above.  For example, even though you have not requested funds during this reporting period, you expended funds that were previously disbursed to you.  Please provide a clarification.  "]
[]
[null,"Additional Comments - Please complete this section if you plan or is in the process of making amendments to your 5-Year Plan, if you are encountering issues in completing your Activity, and/or if there are discrepancies that need to be clarified.\n1.  Please describe any proposed amendment(s) to the approved activities and schedule (pursuant to Guidelines Section 503(b)).\n2.  Please describe any issues or barriers you encountered such as in securing required entitlements, permits, zoning changes, and environmental clearances as applicable.\n3.  Please provide any additional information regarding this activity."]
[]
[null,"CUMULATIVE DATA - The information below is based ONLY on PLHA funded units and individuals served by PLHA funds for this Activity.  The Total Number of PLHA Funded Units or People Served amounts in this section reflect data from the execution of your contract to the current reporting period.  Annual Report will be returned if this section is left blank.\n1.  In order to complete this section, please refer to the Cumulative Data for Activity 2 from last year's Annual Report.\n2.  If an Annual Report was not required to be submitted in the last reporting period, please enter a zero for each of the yellow cell below.\n3.  If an Annual Report was submitted in the previous reporting period, please use that Annual Report to enter an amount in each yellow cell below by adding the amounts reported in the Total Prior to this Reporting Period AND Total for this Reporting Period that corresponds to each row.\n4.  If the data in the previous Annual Report was reported incorrectly, please provide the correct amounts below.  Please note that the amount requested in each yellow cell below reflects the total amount from the first time PLHA funds were used for the units and the people served to the previous year's reporting period.  PLHA funds used during this reporting period should ONLY be reported in the above sections.  In addition, please provide an explanation in the above Additional Comments section to explain the discrepancy between the data reported in this Annual Report and the previous Annual Report."]
[null,"PLHA FUNDED UNITS",null,null,null,null,"Total Prior to this Reporting Period","Total for this Reporting Period","Total Number \nof PLHA Funded Units to Date","PEOPLE SERVED",null,null,null,null,"Total Prior to this Reporting Period","Total for this Reporting Period","Total Number of\nPeople Served \nto Date"]
[null,"Number of Units Developed, Rehabilitated, or Preserved",null,null,null,null,null,{"$f":"C24","v":0},{"$f":"SUM(G31:H31)","v":0},"Number of Individuals Occupying Projects",null,null,null,null,null,{"$f":"W14","v":0},{"$f":"SUM(O31:P31)","v":0}]
[null,"Number of ADA Accessible Units Developed, Rehabilitated or Preserved",null,null,null,null,null,{"$f":"E24","v":0},{"$f":"SUM(G32:H32)","v":0},"Number of Households Occupying Projects",null,null,null,null,null,{"$f":"P14","v":0},{"$f":"SUM(O32:P32)","v":0}]
[null,"Number of Units Developed, Rehabilitated or Preserved for Formerly Homeless Individuals ",null,null,null,null,null,{"$f":"F24","v":0},0,"Number of Seniors (65 and older) Occupying Projects",null,null,null,null,null,{"$f":"Q14","v":0},0]
[null,"Number of Extremely Low- Income Units Developed, Rehabilitated or Preserved\n(Max 30% AMI)\n{Per Guidelines 101(n)}:",null,null,null,null,null,{"$f":"G24","v":0},0,"Number of Veterans Occupying Projects",null,null,null,null,null,{"$f":"R14","v":0},0]
[null,"Number of Very Low-Income Units Developed, Rehabilitated or Preserved\n(Max 50% AMI)\n{Per Guidelines 101(cc)}:",null,null,null,null,null,{"$f":"H24","v":0},0,"Number of Disabled Persons Occupying Projects",null,null,null,null,null,{"$f":"S14","v":0},0]
[null,"Total Number of Units at or below 60% AMI Developed, Rehabilitated or Preserved",null,null,null,null,null,{"$f":"I24","v":0},0,"Number of Families with Minor Children Occupying Projects",null,null,null,null,null,{"$f":"T14","v":0},0]
[null,"Number of Low(er)-Income Units Developed, Rehabilitated or Preserved (Max 80% AMI)\n{Per Guidelines 101(s)}:",null,null,null,null,null,{"$f":"J24","v":0},0,"Number of Transition-Aged Youth (ages 18-24) Occupying Projects",null,null,null,null,null,{"$f":"U14","v":0},0]
[null,"Number of Moderate-Income Units Developed, Rehabilitated or Preserved\n(Max 120% AMI, or if in High Cost Area 150%)\n{Per Guidelines 101(t)}:",null,null,null,null,null,{"$f":"K24","v":0},0,"Number of Farmworkers Occupying Projects",null,null,null,null,null,{"$f":"V14","v":0},0]
[null,null,null,{"$f":"N17","v":"Select One"}]
[null,null,null,"Select One"]
[null,null,null,"Select One"]
[null,null,null,"Select One"]
[null,null,null,"Select One"]
[null,null,null,"Select One"]
[null,null,null,"Select One"]

{"sheet":"Activity 3","index":6,"n_rows":44,"n_cols":19,"rows_kept":44,"cut":false,"hidden":true,"merged":[[5,1,5,18],[20,1,20,5],[15,1,15,17],[16,1,16,17],[17,1,17,17],[18,1,18,17],[19,1,19,17],[11,5,11,6],[12,5,12,6],[13,5,13,6],[6,5,6,6],[7,5,7,6],[8,5,8,6],[9,5,9,6],[10,5,10,6],[14,1,14,2],[23,1,23,5],[23,9,23,14],[24,1,24,5],[24,9,24,14],[20,9,20,14],[21,1,21,5],[21,9,21,14],[22,1,22,5],[22,9,22,14],[25,1,25,5],[25,9,25,14],[26,1,26,5],[26,9,26,14],[27,1,27,5],[27,9,27,14],[11,3,11,4],[12,3,12,4],[13,3,13,4],[6,1,6,2],[7,1,7,2],[8,1,8,2],[9,1,9,2],[10,1,10,2],[11,1,11,2],[12,1,12,2],[13,1,13,2],[6,3,6,4],[7,3,7,4],[8,3,8,4],[9,3,9,4],[10,3,10,4],[0,1,0,17],[2,1,2,17],[3,16,3,17],[4,7,4,17],[1,1,1,17],[3,14,3,15],[3,11,3,12]]}
[null,"PERMANENT LOCAL HOUSING ALLOCATION (PLHA) FUND"]
[null,"Activity 3 Outcomes\n§301(a)(3) Matching Portion of Funds placed into Local or Regional Housing Trust Funds"]
[null,"This tab captures Activity 3 outcomes and expenditures using PLHA funds during this reporting period (unless otherwise noted).  If PLHA funds have not been received and expended to operate the project during this reporting period, enter an \"N/A\" or a \"0\" in the yellow cells on the first row of each section and provide an explanation in the section below."]
[null,"Contract Number",{"$f":"'1-Cover Sheet'!C8","v":"Select One"},"Total Amount of PLHA\nFunds Awarded to Date ",{"$f":"(SUM('1-Cover Sheet'!C24:G24))","v":0},"Total Amount of PLHA\nFunds Disbursed to Date",{"$f":"(SUM('1-Cover Sheet'!C26:G26))","v":0},"Total Amount of Awarded\n PLHA Funds Not Yet\nDisbursed to Date",{"$f":"IFERROR(E4-G4,0)","v":0},"% of PLHA Funds \nDisbursed to Date",{"$f":"IFERROR(G4/E4,0)","v":0},"% of PLHA Funds \nNot Yet Disbursed to Date",null,{"$f":"IFERROR(I4/E4,0)","v":0},"Total Amount of PLHA Funds Disbursed \nDuring this Reporting Period"]
[null,"Total Amount of PLHA Funds Expended During \nthis Reporting Period",{"$f":"L15","v":0},"Total Amount of Unexpended Funds During \nthis Reporting Period",{"$f":"IFERROR(Q4-C5,0)","v":0},"% of PLHA Funds \nExpended During this Period \n(% may be higher than 100% if PLHA funds disbursed in previous reporting period\n was expended during this reporting period)",{"$f":"IFERROR(C5/Q4,0)","v":0}]
[null,"Trust Fund Details - Amount of PLHA funds expended should equate to the amount of PLHA funds received.  \nTotal amount may be less than the amount received if PLHA have not been fully expended."]
[null,"Project \n(Project Name or Identifier)",null,"Project Address\nStreet, City, Zip",null,"Project County\n",null,"Length of Affordability Restriction\n(in years), if applicable","Date of Affordability Covenant Expiration, if applicable","Total Cost of Project\nincluding PLHA and non-PLHA funds\n(including AOWH if applicable)","Amount of PLHA Funds Deposited into Trust Fund","Amount of PLHA Funds Expended on Activity Costs\n(including AOWH if applicable)","Local or Regional Trust","Type of Trust Fund","Type of Project being Funded","Project Status","Date of Project Completion \n(if applicable) ","Proof of Deposit Attached?","Amount of PLHA Funds Expended Towards AOWH"]
["Yes",null,null,null,null,"Select One",null,null,null,null,null,null,"Select One","Select One","Select One","Select One",null,"Select One"]
["Yes",null,null,null,null,"Select One",null,null,null,null,null,null,"Select One","Select One","Select One","Select One",null,"Select One"]
["Yes",null,null,null,null,"Select One",null,null,null,null,null,null,"Select One","Select One","Select One","Select One",null,"Select One"]
["Yes",null,null,null,null,"Select One",null,null,null,null,null,null,"Select One","Select One","Select One","Select One",null,"Select One"]
["Yes",null,null,null,null,"Select One",null,null,null,null,null,null,"Select One","Select One","Select One","Select One",null,"Select One"]
["Yes",null,null,null,null,"Select One",null,null,null,null,null,null,"Select One","Select One","Select One","Select One",null,"Select One"]
["Yes",null,null,null,null,"Select One",null,null,null,null,null,null,"Regional","Select One","Select One","Select One",null,"Select One"]
[null,"Total:",null,null,null,null,null,null,null,null,{"$f":"SUM(K8:K14)","v":0},{"$f":"SUM(L8:L14)","v":0},null,null,null,null,null,null,{"$f":"SUM(S8:S14)","v":0}]
[null,"Outcomes and Activity Expenditures - Please complete this section if PLHA funds HAVE NOT been requested and/or expended (if already disbursed) during this reporting period.  Annual Report will be returned if this section is left blank and there are no outcomes reported in the above sections.\n1.  If you have not requested PLHA funds for this activity, please enter \"N/A\" or \"0\" in the above cells and provide the anticipated timeframe in which you will request and expend funds.  Please be specific and describe the current status of this activity and/or your plan in fulfilling this activity with the awarded funds. If applicable, please describe the targeted beneficiaries of your project including services to be provided.\n2.  If you have requested or received PLHA funds but have not expended the funds, please enter \"N/A\" or \"0\" in the above cells and describe in detail the current status of this activity and/or your plan in fulfilling this activity with the awarded funds.  Please include a timeframe as to when you plan to expend the funds. If applicable, please describe the targeted beneficiaries of your project including services to be provided.\n3.  If you expended PLHA funds that were received during the last reporting period, please enter the data as requested above.  For example, even though you have not requested funds during this reporting period, you expended funds that were previously disbursed to you.  Please provide a clarification.  "]
[]
[null,"Additional Comments - Please complete this section if you plan or is in the process of making amendments to your 5-Year Plan, if you are encountering issues in completing your Activity, and/or if there are discrepancies that need to be clarified.\n1.  Please describe any proposed amendment(s) to the approved activities and schedule (pursuant to Guidelines Section 503(b)).\n2.  Please describe any issues or barriers you encountered such as in securing required entitlements, permits, zoning changes, and environmental clearances as applicable.\n3.  Please provide any additional information regarding this activity."]
[]
[null,"CUMULATIVE DATA - The information below is based ONLY on PLHA funded units and individuals served by PLHA funds for this Activity.  The Total Number of PLHA Funded Units or People Served amounts in this section reflect data from the execution of your contract to the current reporting period.  Annual Report will be returned if this section is left blank.\n1.  In order to complete this section, please refer to the Cumulative Data for Activity 3 from last year's Annual Report.\n2.  If an Annual Report was not required to be submitted in the last reporting period, please enter a zero for each of the yellow cell below.\n3.  If an Annual Report was submitted in the previous reporting period, please use that Annual Report to enter an amount in each yellow cell below by adding the amounts reported in the Total Prior to this Reporting Period AND Total for this Reporting Period that corresponds to each row.\n4.  If the data in the previous Annual Report was reported incorrectly, please provide the correct amounts below.  Please note that the amount requested in each yellow cell below reflects the total amount from the first time PLHA funds were used for the units and the people served to the previous year's reporting period.  PLHA funds used during this reporting period should ONLY be reported in the above sections.  In addition, please provide an explanation in the above Additional Comments section to explain the discrepancy between the data reported in this Annual Report and the previous Annual Report."]
[null,"PLHA FUNDED UNITS",null,null,null,null,"Total Prior to this Reporting Period","Total for this Reporting Period","Total Number \nof PLHA Funded Units to Date","PEOPLE SERVED",null,null,null,null,null,"Total Prior to this Reporting Period","Total for this Reporting Period","Total Number of\nPeople Served \nto Date"]
[null,"Total Number of Units for All Projects",null,null,null,null,null,null,{"$f":"SUM(G22:H22)","v":0},"Total Number of Individuals Assisted",null,null,null,null,null,null,null,{"$f":"SUM(P22:Q22)","v":0}]
[null,"Total Number of Rental Units for All Projects",null,null,null,null,null,null,{"$f":"SUM(G23:H23)","v":0}]
[null,"Total Number of Ownership Units for All Projects",null,null,null,null,null,null,{"$f":"SUM(G24:H24)","v":0}]
[null,"Total Number of ADUs for All Projects",null,null,null,null,null,null,{"$f":"SUM(G25:H25)","v":0}]
[]
[]
[]
[]
[]
[]
[]
[]
[]
[]
[]
[null,"Project","Total Spent","Project Status","Completion Date"]
[null,{"$f":"B8","v":0},0,{"$f":"G8","v":0}]
[null,0,0,0]
[null,0,0,0]
[null,0,0,0]
[null,0,0,0]
[null,0,0,0]
[null,0,0,0]

{"sheet":"Activity 4","index":7,"n_rows":24,"n_cols":17,"rows_kept":24,"cut":false,"hidden":true,"merged":[[12,1,12,2],[13,1,13,2],[14,1,14,2],[8,1,8,2],[9,1,9,2],[23,1,23,5],[23,9,23,13],[20,1,20,5],[21,1,21,5],[22,1,22,5],[22,9,22,13],[20,9,20,13],[21,9,21,13],[19,1,19,16],[6,1,6,2],[7,1,7,2],[0,1,0,13],[1,1,1,13],[2,1,2,13],[3,12,3,13],[4,12,4,13],[4,1,4,2],[5,1,5,14],[15,1,15,16],[16,1,16,16],[17,1,17,16],[18,1,18,16],[10,1,10,2],[11,1,11,2]]}
[null,"PERMANENT LOCAL HOUSING ALLOCATION (PLHA) FUND"]
[null,"Activity 4 Outcomes\n§301(a)(4) Matching portions of funds available through the Low- and Moderate-Income Housing Asset Fund (LMIHAF) pursuant to subdivision (d) of HSC Section 34176"]
[null,"This tab captures Activity 4 outcomes and expenditures using PLHA funds during this reporting period (unless otherwise noted).  \nIf PLHA funds have not been received and expended to operate the project during this reporting period, enter an \"N/A\" or a \"0\" in the yellow cells on the first row of each section and provide an explanation in the section provided below."]
[null,"Contract Number",{"$f":"'1-Cover Sheet'!C8","v":"Select One"},"Total Amount of PLHA\nFunds Awarded to Date ",{"$f":"(SUM('1-Cover Sheet'!C30:G30))","v":0},"Total Amount of PLHA\nFunds Disbursed to Date",{"$f":"(SUM('1-Cover Sheet'!C32:G32))","v":0},"Total Amount of Awarded\n PLHA Funds Not Yet\nDisbursed to Date",{"$f":"IFERROR(E4-G4,0)","v":0},"% of PLHA Funds \nDisbursed to Date",{"$f":"IFERROR(G4/E4,0)","v":0},"% of PLHA Funds \nNot Yet Disbursed to Date",{"$f":"IFERROR(I4/E4,0)","v":0}]
[null,"Total Amount of PLHA Funds Disbursed \nDuring this Reporting Period",null,null,"Total Amount of PLHA Funds Expended During \nthis Reporting Period",{"$f":"N15","v":0},"Total Amount of Unexpended Funds During \nthis Reporting Period",{"$f":"IFERROR(D5-F5,0)","v":0},"% of PLHA Funds \nExpended During this Period \n(% may be higher than 100% if PLHA funds disbursed in previous reporting period\n was expended during this reporting period)",{"$f":"IFERROR(F5/D5,0)","v":0}]
[null,"Trust Fund Details - Amount of PLHA funds expended should equate to the amount of PLHA funds received.  \nTotal amount may be less than the amount received if PLHA have not been fully expended. "]
[null,"Project \n(Project Name or Identifier)",null,"Project Address\nStreet, City, Zip","Project County\n","Length of Affordability Restriction\n(in years), if applicable","Date of Affordability Covenant Expiration, if applicable","Total Cost of Project\nincluding PLHA and non-PLHA funds\n(including AOWH if applicable)","Type of Project being Funded","Project Status","Date of Project Completion (if applicable) ","Amount of PLHA Funds Deposited into LMIHAF ","Proof of Deposit Attached?","Amount of PLHA Funds Expended on Activity Costs\n(including AOWH if applicable)","Amount of PLHA Funds Expended on AOWH"]
["Yes",null,null,null,"Select One",null,null,null,"Select One","Select One",null,null,"Select One"]
["Yes",null,null,null,"Select One",null,null,null,"Select One","Select One",null,null,"Select One"]
["Yes",null,null,null,"Select One",null,null,null,"Select One","Select One",null,null,"Select One"]
["Yes",null,null,null,"Select One",null,null,null,"Select One","Select One",null,null,"Select One"]
["Yes",null,null,null,"Select One",null,null,null,"Select One","Select One",null,null,"Select One"]
["Yes",null,null,null,"Select One",null,null,null,"Select One","Select One",null,null,"Select One"]
["Yes",null,null,null,"Select One",null,null,null,"Select One","Select One",null,null,"Select One"]
[null,"Total:",null,null,null,"g","g",null,null,null,null,{"$f":"SUM(L8:L14)","v":0},null,{"$f":"SUM(N8:N14)","v":0},{"$f":"SUM(O8:O14)","v":0}]
[null,"Outcomes and Activity Expenditures - Please complete this section if PLHA funds HAVE NOT been requested and/or expended (if already disbursed) during this reporting period.  Annual Report will be returned if this section is left blank and there are no outcomes reported in the above sections.\n1.  If you have not requested PLHA funds for this activity, please enter \"N/A\" or \"0\" in the above cells and provide the anticipated timeframe in which you will request and expend funds.  Please be specific and describe the current status of this activity and/or your plan in fulfilling this activity with the awarded funds. If applicable, please describe the targeted beneficiaries of your project including services to be provided.\n2.  If you have requested or received PLHA funds but have not expended the funds, please enter \"N/A\" or \"0\" in the above cells and describe in detail the current status of this activity and/or your plan in fulfilling this activity with the awarded funds.  Please include a timeframe as to when you plan to expend the funds. If applicable, please describe the targeted beneficiaries of your project including services to be provided.\n3.  If you expended PLHA funds that were received during the last reporting period, please enter the data as requested above.  For example, even though you have not requested funds during this reporting period, you expended funds that were previously disbursed to you.  Please provide a clarification.  "]
[]
[null,"Additional Comments - Please complete this section if you plan or is in the process of making amendments to your 5-Year Plan, if you are encountering issues in completing your Activity, and/or if there are discrepancies that need to be clarified.\n1.  Please describe any proposed amendment(s) to the approved activities and schedule (pursuant to Guidelines Section 503(b)).\n2.  Please describe any issues or barriers you encountered such as in securing required entitlements, permits, zoning changes, and environmental clearances as applicable.\n3.  Please provide any additional information regarding this activity."]
[]
[null,"CUMULATIVE DATA - The information below is based ONLY on PLHA funded units and individuals served by PLHA funds for this Activity.  The Total Number of PLHA Funded Units or People Served amounts in this section reflect data from the execution of your contract to the current reporting period.  Annual Report will be returned if this section is left blank.\n1.  In order to complete this section, please refer to the Cumulative Data for Activity 4 from last year's Annual Report.\n2.  If an Annual Report was not required to be submitted in the last reporting period, please enter a zero for each of the yellow cell below.\n3.  If an Annual Report was submitted in the previous reporting period, please use that Annual Report to enter an amount in each yellow cell below by adding the amounts reported in the Total Prior to this Reporting Period AND Total for this Reporting Period that corresponds to each row.\n4.  If the data in the previous Annual Report was reported incorrectly, please provide the correct amounts below.  Please note that the amount requested in each yellow cell below reflects the total amount from the first time PLHA funds were used for the units and the people served to the previous year's reporting period.  PLHA funds used during this reporting period should ONLY be reported in the above sections.  In addition, please provide an explanation in the above Additional Comments section to explain the discrepancy between the data reported in this Annual Report and the previous Annual Report."]
[null,"PLHA FUNDED UNITS",null,null,null,null,"Total Prior to this Reporting Period","Total for this Reporting Period","Total Number \nof PLHA Funded Units to Date","PEOPLE SERVED",null,null,null,null,"Total Prior to this Reporting Period","Total for this Reporting Period","Total Number of\nPeople Served \nto Date"]
[null,"Total Number of Units for All Projects",null,null,null,null,null,null,{"$f":"SUM(G22:H22)","v":0},"Total Number of Individuals Assisted",null,null,null,null,null,null,{"$f":"SUM(O22:P22)","v":0}]
[null,"Total Number of Rental Units for All Projects",null,null,null,null,null,null,{"$f":"SUM(G23:H23)","v":0}]
[null,"Total Number of Ownership Units for All Projects",null,null,null,null,null,null,{"$f":"SUM(G24:H24)","v":0}]

{"sheet":"Activity 5","index":8,"n_rows":44,"n_cols":18,"rows_kept":44,"cut":false,"hidden":true,"merged":[[12,3,12,4],[13,3,13,4],[0,1,0,17],[1,1,1,17],[2,1,2,17],[3,15,3,17],[4,7,4,17],[3,13,3,14],[24,1,24,5],[24,9,24,13],[21,1,21,16],[15,1,15,17],[16,1,16,17],[17,1,17,17],[18,1,18,17],[19,1,19,17],[20,1,20,17],[22,1,22,5],[22,9,22,13],[23,1,23,5],[23,9,23,13],[14,1,14,2],[5,1,5,17],[9,1,9,2],[10,1,10,2],[6,1,6,2],[7,1,7,2],[8,1,8,2],[6,3,6,4],[7,3,7,4],[8,3,8,4],[11,1,11,2],[12,1,12,2],[13,1,13,2],[9,3,9,4],[10,3,10,4],[11,3,11,4]]}
[null,"PERMANENT LOCAL HOUSING ALLOCATION (PLHA) FUND"]
[null,"Activity 5 Outcomes\n§301(a)(5) Capitalized Reserves for Services connected to the preservation and creation of new permanent supportive housing (PSH)."]
[null,"This tab captures Activity 5 outcomes and expenditures using PLHA funds during this reporting period (unless otherwise noted).  If PLHA funds have not been received and expended to operate the project during this reporting period, enter an \"N/A\" or a \"0\" in the yellow cells on the first row of each section and provide an explanation in the section provided below."]
[null,"Contract Number",{"$f":"'1-Cover Sheet'!C8","v":"Select One"},"Total Amount of PLHA\nFunds Awarded to Date ",{"$f":"(SUM('1-Cover Sheet'!C36:G36))","v":0},"Total Amount of PLHA\nFunds Disbursed to Date",{"$f":"(SUM('1-Cover Sheet'!C37:G37))","v":0},"Total Amount of Awarded\n PLHA Funds Not Yet\nDisbursed to Date",{"$f":"IFERROR(E4-G4,0)","v":0},"% of PLHA Funds \nDisbursed to Date",{"$f":"IFERROR(G4/E4,0)","v":0},"% of PLHA Funds \nNot Yet Disbursed to Date",{"$f":"IFERROR(I4/E4,0)","v":0},"Total Amount of PLHA Funds Disbursed \nDuring this Reporting Period"]
[null,"Total Amount of PLHA Funds Expended During \nthis Reporting Period",{"$f":"R15","v":0},"Total Amount of Unexpended Funds During \nthis Reporting Period",{"$f":"IFERROR(P4-C5,0)","v":0},"% of PLHA Funds \nExpended During this Period \n(% may be higher than 100% if PLHA funds disbursed in previous reporting period\n was expended during this reporting period)",{"$f":"IFERROR(C5/P4,0)","v":0}]
[null,"General Project Information - Amount of PLHA funds expended should equate to the amount of PLHA funds received.  \nTotal amount may be less than the amount received if PLHA have not been fully expended."]
[null,"Project \n(Project Name or Identifier)",null,"Project Address\nStreet, City, Zip",null,"Project County\n","Length of Affordability Restriction\n(in years), if applicable","Date of Affordability Covenant Expiration, if applicable","Total Cost of Project\n(includes PLHA and non-PLHA funds)","Number of Existing Permanent Supportive Housing Units Preserved by PLHA Funds","Number of New Permanent Supportive Units Created by PLHA Funds","Project Status","Date of Project Completion (if applicable) ","Amount of PLHA Deposited into Capitalized Reserves","New Balance of Capitalized Reserve Fund","Source of Additional Funds","Proof of Reserve Account Deposit and Current Bank Statement Attached?","Amount of PLHA Funds Expended on Activity Costs"]
["Yes",null,null,null,null,"Select One",null,null,null,null,null,"Select One",null,null,null,null,"Select One"]
["Yes",null,null,null,null,"Select One",null,null,null,null,null,"Select One",null,null,null,null,"Select One"]
["Yes",null,null,null,null,"Select One",null,null,null,null,null,"Select One",null,null,null,null,"Select One"]
["Yes",null,null,null,null,"Select One",null,null,null,null,null,"Select One",null,null,null,null,"Select One"]
["Yes",null,null,null,null,"Select One",null,null,null,null,null,"Select One",null,null,null,null,"Select One"]
["Yes",null,null,null,null,"Select One",null,null,null,null,null,"Select One",null,null,null,null,"Select One"]
["Yes",null,null,null,null,"Select One",null,null,null,null,null,"Select One",null,null,null,null,"Select One"]
[null,"Total:",null,null,null,null,null,null,null,{"$f":"SUM(J8:J14)","v":0},{"$f":"SUM(K8:K14)","v":0},null,null,{"$f":"SUM(N8:N14)","v":0},{"$f":"SUM(O8:O14)","v":0},null,null,{"$f":"SUM(R8:R14)","v":0}]
[null,"Describe the Services provided by PLHA funds in relation to preservation and creation of Permanent Supportive Housing \nPlease complete this section if PLHA funds have been requested and/or expended during this reporting period.  Enter an \"N/A\" if PLHA funds have not been requested.  Annual Report will be returned if this section is left blank and there are outcomes reported in the above sections.  "]
[]
[null,"Outcomes and Activity Expenditures - Please complete this section if PLHA funds HAVE NOT been requested and/or expended (if already disbursed) during this reporting period.  Annual Report will be returned if this section is left blank and there are no outcomes reported in the above sections.\n1.  If you have not requested PLHA funds for this activity, please enter \"N/A\" or \"0\" in the above cells and provide the anticipated timeframe in which you will request and expend funds.  Please be specific and describe the current status of this activity and/or your plan in fulfilling this activity with the awarded funds. If applicable, please describe the targeted beneficiaries of your project including services to be provided.\n2.  If you have requested or received PLHA funds but have not expended the funds, please enter \"N/A\" or \"0\" in the above cells and describe in detail the current status of this activity and/or your plan in fulfilling this activity with the awarded funds.  Please include a timeframe as to when you plan to expend the funds. If applicable, please describe the targeted beneficiaries of your project including services to be provided.\n3.  If you expended PLHA funds that were received during the last reporting period, please enter the data as requested above.  For example, even though you have not requested funds during this reporting period, you expended funds that were previously disbursed to you.  Please provide a clarification.  "]
[]
[null,"Additional Comments - Please complete this section if you plan or is in the process of making amendments to your 5-Year Plan, if you are encountering issues in completing your Activity, and/or if there are discrepancies that need to be clarified.\n1.  Please describe any proposed amendment(s) to the approved activities and schedule (pursuant to Guidelines Section 503(b)).\n2.  Please describe any issues or barriers you encountered such as in securing required entitlements, permits, zoning changes, and environmental clearances as applicable.\n3.  Please provide any additional information regarding this activity."]
[]
[null,"CUMULATIVE DATA - The information below is based ONLY on PLHA funded units and individuals served by PLHA funds for this Activity.  The Total Number of PLHA Funded Units or People Served amounts in this section reflect data from the execution of your contract to the current reporting period.  Annual Report will be returned if this section is left blank.\n1.  In order to complete this section, please refer to the Cumulative Data for Activity 5 from last year's Annual Report.\n2.  If an Annual Report was not required to be submitted in the last reporting period, please enter a zero for each of the yellow cell below.\n3.  If an Annual Report was submitted in the previous reporting period, please use that Annual Report to enter an amount in each yellow cell below by adding the amounts reported in the Total Prior to this Reporting Period AND Total for this Reporting Period that corresponds to each row.\n4.  If the data in the previous Annual Report was reported incorrectly, please provide the correct amounts below.  Please note that the amount requested in each yellow cell below reflects the total amount from the first time PLHA funds were used for the units and the people served to the previous year's reporting period.  PLHA funds used during this reporting period should ONLY be reported in the above sections.  In addition, please provide an explanation in the above Additional Comments section to explain the discrepancy between the data reported in this Annual Report and the previous Annual Report."]
[null,"PLHA FUNDED UNITS",null,null,null,null,"Total Prior to this Reporting Period","Total for this Reporting Period","Total Number \nof PLHA Funded Units to Date","PEOPLE SERVED",null,null,null,null,"Total Prior to this Reporting Period","Total for this Reporting Period","Total Number of\nPeople Served \nto Date"]
[null,"Number of Existing Permanent Supportive Housing Units Preserved ",null,null,null,null,null,{"$f":"J15","v":0},{"$f":"SUM(G24:H24)","v":0},"Number of Individuals Assisted",null,null,null,null,null,null,{"$f":"SUM(O24:P24)","v":0}]
[null,"Number of New Permanent Supportive Units ",null,null,null,null,null,{"$f":"K15","v":0},{"$f":"SUM(G25:H25)","v":0}]
[]
[]
[]
[]
[]
[]
[]
[]
[]
[]
[]
[null,"Project","Total Spent","Project Status","Completion Date"]
[null,{"$f":"B8","v":0},{"$f":"G8","v":0},{"$f":"E8","v":0}]
[null,0,0,0]
[null,0,0,0]
[null,0,0,0]
[null,0,0,0]
[null,0,0,0]
[null,0,0,0]

{"sheet":"Activity 6","index":9,"n_rows":59,"n_cols":22,"rows_kept":59,"cut":false,"hidden":true,"merged":[[49,1,49,5],[49,9,49,13],[46,1,46,5],[46,9,46,13],[47,1,47,5],[47,9,47,13],[48,1,48,5],[48,9,48,13],[40,1,40,16],[15,12,15,13],[16,12,16,13],[17,12,17,13],[18,12,18,13],[19,1,19,13],[15,1,15,2],[16,1,16,2],[17,1,17,2],[15,3,15,4],[16,3,16,4],[17,3,17,4],[18,3,18,4],[18,1,18,2],[41,1,41,16],[42,1,42,16],[43,1,43,16],[44,1,44,16],[45,1,45,16],[50,1,50,5],[50,9,50,13],[51,1,51,5],[51,9,51,13],[52,1,52,5],[52,9,52,13],[12,20,12,21],[13,20,13,21],[7,1,7,2],[7,3,7,4],[7,5,7,6],[7,20,7,21],[8,20,8,21],[9,20,9,21],[10,20,10,21],[11,20,11,21],[8,1,8,2],[8,3,8,4],[8,5,8,6],[9,1,9,2],[9,3,9,4],[9,5,9,6],[55,9,55,13],[56,9,56,13],[57,9,57,13],[58,9,58,13],[53,1,53,5],[53,9,53,13],[54,1,54,5],[54,9,54,13],[0,1,0,21],[1,1,1,21],[2,1,2,21],[5,20,5,21],[6,20,6,21],[5,1,5,2],[5,3,5,4],[5,5,5,6],[6,1,6,2],[6,3,6,4],[6,5,6,6],[3,13,3,14],[4,1,4,9],[4,10,4,21],[10,1,10,2],[10,3,10,4],[10,5,10,6],[11,1,11,2],[11,3,11,4],[11,5,11,6],[12,1,12,2],[12,3,12,4],[12,5,12,6],[13,1,13,2],[39,1,39,16],[29,11,29,13],[29,1,29,10],[38,12,38,13],[14,1,14,13]]}
[null,"PERMANENT LOCAL HOUSING ALLOCATION (PLHA) FUND"]
[null,"Activity 6 Outcomes\n§301(a)(6) Assisting persons who are experiencing or At risk of homelessness, including, but not limited to, providing rapid rehousing, rental assistance, supportive/case management services that allow people to obtain and retain housing, operating and capital costs for navigation centers and emergency shelters, and the new construction, rehabilitation, and preservation of permanent and transitional housing."]
[null,"This tab captures Activity 6 outcomes and expenditures using PLHA funds during this reporting period (unless otherwise noted).  If PLHA funds have not been received and expended to operate the project during this reporting period, enter an \"N/A\" or a \"0\" in the yellow cells on the first row of each section and provide an explanation in the section provided below."]
[null,"Contract Number",{"$f":"'1-Cover Sheet'!C8","v":"Select One"},"Total Amount of PLHA\nFunds Awarded to Date ",{"$f":"(SUM('1-Cover Sheet'!C39:G39))","v":0},"Total Amount of PLHA\nFunds Disbursed to Date",{"$f":"(SUM('1-Cover Sheet'!C40:G40))","v":0},"Total Amount of Awarded\n PLHA Funds Not Yet\nDisbursed to Date",{"$f":"IFERROR(E4-G4,0)","v":0},"% of PLHA Funds \nDisbursed to Date",{"$f":"IFERROR(G4/E4,0)","v":0},"% of PLHA Funds \nNot Yet Disbursed to Date",{"$f":"IFERROR(I4/E4,0)","v":0},"Total Amount of PLHA Funds Disbursed \nDuring this Reporting Period",null,null,"Total Amount of PLHA Funds Expended During \nthis Reporting Period",{"$f":"U14","v":0},"Total Amount of Unexpended Funds During \nthis Reporting Period",{"$f":"IFERROR(P4-R4,0)","v":0},"% of PLHA Funds \nExpended During this Period \n(% may be higher than 100% if PLHA funds disbursed in previous reporting period\n was expended during this reporting period)",{"$f":"IFERROR(R4/P4,0)","v":0}]
[null,"General Project Information",null,null,null,null,null,null,null,null,"Expenditure Breakdown - Please enter the amounts expended ONLY with PLHA funds.\n(Total amount expended should equate to the amount of PLHA funds received.  \nTotal amount may be less than the amount received if PLHA have not been fully expended) "]
[null,"Project \n(Project Name or Identifier)",null,"Project Address\nStreet, City, Zip",null,"Project County\n",null,"Length of Affordability Restriction\n(in years), if applicable","Date of Affordability Covenant Expiration, if applicable","Total Cost of Project\n(includes PLHA and non-PLHA funds)","Amount of PLHA Funds Expended on Rapid Re-Housing","Amount of PLHA Funds Expended on Rental Assistance","Amount of PLHA Funds Expended On Supportive/Case Management","Amount of PLHA Funds Expended on Operating and Capital Costs for Navigation Centers","Amount of PLHA Funds Expended On Operating and Capital Costs for Emergency Shelters","Amount of PLHA Funds Expended on New Construction of Permanent Housing","Amount of PLHA Funds Expended on New Construction of Transitional Housing","Amount of PLHA Funds Expended on Rehabilitation and/or Preservation of Permanent Housing","Amount of PLHA Funds Expended on Rehabilitation and/or Preservation of Transitional Housing","Amount of PLHA Funds Expended on Other eligible activities\n(please describe in additional comments)","Total Amount of PLHA Funds Expended"]
["Yes",null,null,null,null,"Select One",null,null,null,null,null,null,null,null,null,null,null,null,null,null,{"$f":"SUM(K7:T7)","v":0}]
["Yes",null,null,null,null,"Select One",null,null,null,null,null,null,null,null,null,null,null,null,null,null,{"$f":"SUM(K8:T8)","v":0}]
["Yes",null,null,null,null,"Select One",null,null,null,null,null,null,null,null,null,null,null,null,null,null,0]
["Yes",null,null,null,null,"Select One",null,null,null,null,null,null,null,null,null,null,null,null,null,null,0]
["Yes",null,null,null,null,"Select One",null,null,null,null,null,null,null,null,null,null,null,null,null,null,0]
["Yes",null,null,null,null,"Select One",null,null,null,null,null,null,null,null,null,null,null,null,null,null,0]
["Yes",null,null,null,null,"Select One",null,null,null,null,null,null,null,null,null,null,null,null,null,null,0]
[null,"Total:",null,null,null,null,null,null,null,null,{"$f":"SUM(K7:K13)","v":0},0,0,0,0,0,0,0,0,0,{"$f":"SUM(K14:T14)","v":0}]
[null,"Sub-Awards\n\nThis Activity may include subawards to Administrative Entities as defined in HSC Section 50490(a)(1-3) that were awarded CESH program or HEAP funds for rental assistance to continue assistance to these households (§301(a)(6)(A)).\nIf PLHA funds were awarded to subrecipients, enter the name of the awarded Administrative Entity, type of funding, and contract number from their previous funds (CESH or HEAP), amount awarded to the subrecipient and the date of the subrecipient award letter.\nIf project does not have CESH or HEAP funds, please enter N/A."]
[null,"Subawarded Administrative Entity Name:",null,null,null,"Subawarded PLHA Amount:",null,"Prior Source of Rental Assistance:","Select One","HCD CESH or HEAP \nContract Number: ",null,"Subrecipient Award Letter Attached?","Select One"]
[null,"Subawarded Administrative Entity Name:",null,null,null,"Subawarded PLHA Amount:",null,"Prior Source of Rental Assistance:","Select One","HCD CESH or HEAP \nContract Number: ",null,"Subrecipient Award Letter Attached?","Select One"]
[null,"Subawarded Administrative Entity Name:",null,null,null,"Subawarded PLHA Amount:",null,"Prior Source of Rental Assistance:","Select One","HCD CESH or HEAP \nContract Number: ",null,"Subrecipient Award Letter Attached?","Select One"]
[null,"Subawarded Administrative Entity Name:",null,null,null,"Subawarded PLHA Amount:",null,"Prior Source of Rental Assistance:","Select One","HCD CESH or HEAP \nContract Number: ",null,"Subrecipient Award Letter Attached?","Select One"]
[null,"Households or Individuals Served - Please enter the total number of households or individuals assisted with PLHA funds for each category.  \nNumber may be duplicated (example, a 65 year old veteran will be counted in the \"Seniors\" column and \"Veterans\" column)"]
[null,"Project \n(Project Name or Identifier)","Number of Individuals assisted by Rapid Rehousing","Number of Individuals assisted by Rental Assistance","Number of Individuals assisted by Supportive/Case Management","Total Number of Unduplicated Individuals assisted by project","Number of Individuals to Exit to Homelessness","Number of Individuals to Occupy Newly Constructed or Rehabilitated Permanent Housing","Number of Individuals to Occupy Newly Constructed or Rehabilitated Transitional Housing","Number of Seniors Assisted (65 and older)","Number of Veterans Assisted","Number of Disabled Persons Assisted","Number of Families with Minor Children Assisted","Number of Transition-Aged Youth (18-24) Assisted"]
[null,{"$f":"IF(B7=\"\",\"\",B7)","v":""}]
[null,""]
[null,""]
[null,""]
[null,""]
[null,""]
[null,""]
[null,"Total",{"$f":"SUM(C22:C28)","v":0},0,0,0,0,0,0,0,0,0,0,{"$f":"SUM(N22:N28)","v":0}]
[null,"Unit Details - Please enter the total number of units assisted with PLHA funds for each category.  ",null,null,null,null,null,null,null,null,null,"Project Status and Evidence of Compliance"]
[null,"Project \n(Project Name or Identifier)","Number of Housing Units Receiving Rapid-Rehousing Assistance","Number of Housing Units Receiving Rental Assistance","Number of Housing Units Receiving Supportive/Case Management Services","Number of Housing Units Receiving Operating or Capital subsidy ","Number of Emergency Shelter Beds Supported","Number of Permanent Units Developed, Rehabilitated or Preserved","Number of Transitional Units Developed, Rehabilitated or Preserved","Total number of unduplicated Units Developed, Rehabilitated or Preserved","Type of Housing Developed, Rehabilitated, or Preserved","Project Status","If Completed, is Certificate of Occupancy Attached?","Completion Date (if applicable) "]
[null,{"$f":"IF(B7=\"\",\"\",B7)","v":""},null,null,null,null,null,null,null,null,"Select One","Select One","Select One"]
[null,"",null,null,null,null,null,null,null,null,"Select One","Select One","Select One"]
[null,"",null,null,null,null,null,null,null,null,"Select One","Select One","Select One"]
[null,"",null,null,null,null,null,null,null,null,"Select One","Select One","Select One"]
[null,"",null,null,null,null,null,null,null,null,"Select One","Select One","Select One"]
[null,"",null,null,null,null,null,null,null,null,"Select One","Select One","Select One"]
[null,"",null,null,null,null,null,null,null,null,"Select One","Select One","Select One"]
[null,"Total",{"$f":"SUM(C32:C38)","v":0},{"$f":"SUM(D32:D38)","v":0},{"$f":"SUM(E32:E38)","v":0},0,0,0,0,0]
[null,"Explain how you are providing services consistent with the Housing First Practices per 25 CCR, Sec. 8409, Subdivision (b)(1)-(6) and in compliance with WIC, Sec. 8255(b)(8)\nPlease complete this section if PLHA funds have been requested and/or expended during this reporting period.  Enter an \"N/A\" if PLHA funds have not been requested.  Annual Report will be returned if this section is left blank and there are outcomes reported in the above sections.  "]
[]
[null,"Outcomes and Activity Expenditures - Please complete this section if PLHA funds HAVE NOT been requested and/or expended (if already disbursed) during this reporting period.  Annual Report will be returned if this section is left blank and there are no outcomes reported in the above sections.\n1.  If you have not requested PLHA funds for this activity, please enter \"N/A\" or \"0\" in the above cells and provide the anticipated timeframe in which you will request and expend funds.  Please be specific and describe the current status of this activity and/or your plan in fulfilling this activity with the awarded funds. If applicable, please describe the targeted beneficiaries of your project including services to be provided.\n2.  If you have requested or received PLHA funds but have not expended the funds, please enter \"N/A\" or \"0\" in the above cells and describe in detail the current status of this activity and/or your plan in fulfilling this activity with the awarded funds.  Please include a timeframe as to when you plan to expend the funds. If applicable, please describe the targeted beneficiaries of your project including services to be provided.\n3.  If you expended PLHA funds that were received during the last reporting period, please enter the data as requested above.  For example, even though you have not requested funds during this reporting period, you expended funds that were previously disbursed to you.  Please provide a clarification.  "]
[]
[null,"Additional Comments - Please complete this section if you plan or is in the process of making amendments to your 5-Year Plan, if you are encountering issues in completing your Activity, and/or if there are discrepancies that need to be clarified.\n1.  Please describe any proposed amendment(s) to the approved activities and schedule (pursuant to Guidelines Section 503(b)).\n2.  Please describe any issues or barriers you encountered such as in securing required entitlements, permits, zoning changes, and environmental clearances as applicable.\n3.  Please provide any additional information regarding this activity."]
[]
[null,"CUMULATIVE DATA - The information below is based ONLY on PLHA funded units and individuals served by PLHA funds for this Activity.  The Total Number of PLHA Funded Units or People Served amounts in this section reflect data from the execution of your contract to the current reporting period.  Annual Report will be returned if this section is left blank.\n1.  In order to complete this section, please refer to the Cumulative Data for Activity 6 from last year's Annual Report.\n2.  If an Annual Report was not required to be submitted in the last reporting period, please enter a zero for each of the yellow cell below.\n3.  If an Annual Report was submitted in the previous reporting period, please use that Annual Report to enter an amount in each yellow cell below by adding the amounts reported in the Total Prior to this Reporting Period AND Total for this Reporting Period that corresponds to each row.\n4.  If the data in the previous Annual Report was reported incorrectly, please provide the correct amounts below.  Please note that the amount requested in each yellow cell below reflects the total amount from the first time PLHA funds were used for the units and the people served to the previous year's reporting period.  PLHA funds used during this reporting period should ONLY be reported in the above sections.  In addition, please provide an explanation in the above Additional Comments section to explain the discrepancy between the data reported in this Annual Report and the previous Annual Report."]
[null,"PLHA FUNDED UNITS",null,null,null,null,"Total Prior to this Reporting Period","Total for this Reporting Period","Total Number \nof PLHA Funded Units to Date","PEOPLE SERVED",null,null,null,null,"Total Prior to this Reporting Period","Total for this Reporting Period","Total Number of\nPeople Served \nto Date"]
[null,"Number of Units Developed, Rehabilitated, or Preserved",null,null,null,null,null,{"$f":"J39","v":0},{"$f":"SUM(G48:H48)","v":0},"Total Unduplicated Persons Assisted by Project",null,null,null,null,null,{"$f":"F29","v":0},{"$f":"SUM(O48:P48)","v":0}]
[null,"Number of Housing Units Receiving Rapid-Rehousing Assistance",null,null,null,null,null,{"$f":"C39","v":0},{"$f":"SUM(G49:H49)","v":0},"Number of Persons Assisted by Rapid Rehousing",null,null,null,null,null,{"$f":"C29","v":0},{"$f":"SUM(O49:P49)","v":0}]
[null,"Number of Housing Units Receiving Rental Assistance",null,null,null,null,null,{"$f":"D39","v":0},0,"Number of Persons Assisted by Rental Assistance",null,null,null,null,null,{"$f":"D29","v":0},0]
[null,"Number of Housing Units Receiving Supportive/Case Management Services",null,null,null,null,null,{"$f":"E39","v":0},0,"Number of Persons Assisted by Supportive/Case Management",null,null,null,null,null,{"$f":"E29","v":0},0]
[null,"Number of Housing Units Receiving Operating or Capital subsidy \n\n",null,null,null,null,null,{"$f":"F39","v":0},0,"Number of Individuals to Exit to Homelessness",null,null,null,null,null,{"$f":"G29","v":0},0]
[null,"Number of Emergency Shelter Beds Supported",null,null,null,null,null,{"$f":"G39","v":0},0,"Number of Individuals to Occupy Newly Constructed or Rehabilitated Permanent Housing",null,null,null,null,null,{"$f":"H29","v":0},0]
[null,"Number of Permanent Units Developed, Rehabilitated or Preserved\n",null,null,null,null,null,{"$f":"H39","v":0},0,"Number of Individuals to Occupy Newly Constructed or Rehabilitated Transitional Housing",null,null,null,null,null,{"$f":"I29","v":0},0]
[null,"Number of Transitional Units Developed, Rehabilitated or Preserved\n\n",null,null,null,null,null,{"$f":"I39","v":0},0,"Number of Seniors Assisted (65 and older)",null,null,null,null,null,{"$f":"J29","v":0},0]
[null,null,null,null,null,null,null,null,null,"Number of Veterans Assisted",null,null,null,null,null,{"$f":"K29","v":0},{"$f":"SUM(O56:P56)","v":0}]
[null,null,null,null,null,null,null,null,null,"Number of Disabled Persons Assisted",null,null,null,null,null,{"$f":"L29","v":0},{"$f":"SUM(O57:P57)","v":0}]
[null,null,null,null,null,null,null,null,null,"Number of Families with Minor Children Assisted",null,null,null,null,null,{"$f":"M29","v":0},{"$f":"SUM(O58:P58)","v":0}]
[null,null,null,null,null,null,null,null,null,"Number of Transition-Aged Youth (18-24) Assisted",null,null,null,null,null,{"$f":"N29","v":0},{"$f":"SUM(O59:P59)","v":0}]

{"sheet":"Activity 7","index":10,"n_rows":37,"n_cols":22,"rows_kept":37,"cut":false,"hidden":true,"merged":[[19,1,19,3],[20,1,20,3],[21,1,21,3],[22,1,22,3],[23,1,23,3],[19,6,19,7],[17,4,17,5],[18,4,18,5],[19,4,19,5],[26,1,26,16],[24,1,24,16],[25,1,25,16],[20,6,20,7],[21,6,21,7],[22,6,22,7],[23,6,23,7],[20,4,20,5],[21,4,21,5],[22,4,22,5],[23,4,23,5],[17,1,17,3],[15,6,15,7],[16,6,16,7],[17,6,17,7],[18,6,18,7],[14,1,14,11],[15,1,15,3],[16,1,16,3],[18,1,18,3],[15,4,15,5],[16,4,16,5],[14,12,14,16],[12,5,12,6],[9,1,9,2],[9,3,9,4],[9,5,9,6],[10,1,10,2],[10,3,10,4],[11,1,11,2],[11,3,11,4],[11,5,11,6],[12,1,12,2],[12,3,12,4],[10,5,10,6],[36,1,36,5],[36,9,36,13],[31,1,31,5],[31,9,31,13],[32,1,32,5],[32,9,32,13],[33,1,33,5],[33,9,33,13],[34,1,34,5],[34,9,34,13],[35,1,35,5],[35,9,35,13],[27,1,27,16],[28,1,28,16],[29,1,29,5],[29,9,29,13],[30,1,30,5],[30,9,30,13],[3,13,3,14],[0,1,0,21],[1,1,1,21],[2,1,2,21],[5,1,5,2],[5,3,5,4],[5,5,5,6],[4,12,4,21],[4,1,4,10],[6,1,6,2],[6,3,6,4],[6,5,6,6],[7,1,7,2],[13,1,13,2],[7,3,7,4],[7,5,7,6],[8,1,8,2],[8,3,8,4],[8,5,8,6]]}
[null,"PERMANENT LOCAL HOUSING ALLOCATION (PLHA) FUND"]
[null,"Activity 7 Outcomes\n§301(a)(7) Accessibility modifications in Lower-income Owner-occupied housing."]
[null,"This tab captures Activity 7 outcomes and expenditures using PLHA funds during this reporting period (unless otherwise noted).  If PLHA funds have not been received and expended to operate the project during this reporting period, enter an \"N/A\" or a \"0\" in the yellow cells on the first row of each section and provide an explanation in the section provided below."]
[null,"Contract Number",{"$f":"'1-Cover Sheet'!C8","v":"Select One"},"Total Amount of PLHA\nFunds Awarded to Date ",{"$f":"(SUM('1-Cover Sheet'!C42:G42))","v":0},"Total Amount of PLHA\nFunds Disbursed to Date",{"$f":"(SUM('1-Cover Sheet'!C44:G44))","v":0},"Total Amount of Awarded\n PLHA Funds Not Yet\nDisbursed to Date",{"$f":"IFERROR(E4-G4,0)","v":0},"% of PLHA Funds \nDisbursed to Date",{"$f":"IFERROR(G4/E4,0)","v":0},"% of PLHA Funds \nNot Yet Disbursed to Date",{"$f":"IFERROR(I4/E4,0)","v":0},"Total Amount of PLHA Funds Disbursed \nDuring this Reporting Period",null,null,"Total Amount of PLHA Funds Expended During \nthis Reporting Period",{"$f":"M14","v":0},"Total Amount of Unexpended Funds During \nthis Reporting Period",{"$f":"IFERROR(P4-R4,0)","v":0},"% of PLHA Funds \nExpended During this Period \n(% may be higher than 100% if PLHA funds disbursed in previous reporting period\n was expended during this reporting period)",{"$f":"IFERROR(R4/P4,0)","v":0}]
[null,"General Project Information",null,null,null,null,null,null,null,null,null,null,"Households or Individuals Served - Please enter the total number of households or individuals assisted with PLHA funds for each category.  \nNumber may be duplicated (example, a 65 year old veteran will be counted in the \"Seniors\" column and \"Veterans\" column)"]
[null,"Project \n(Project Name or Identifier)",null,"Project Address\nStreet, City, Zip",null,"Project County\n",null,"Length of Affordability Restriction\n(in years), if applicable","Date of Affordability Covenant Expiration, if applicable","Total Cost of Project\nincluding PLHA and non-PLHA funds\n(including AOWH if applicable)","Developer Name","Amount of PLHA Funds Expended Towards AOWH","Amount of PLHA Funds Expended on Activity Costs\n(including AOWH if applicable)","Was Prevailing Wage Paid? ","How was Assistance Provided to Homeowner? ","Number of Individuals Assisted","Number of Households Assisted","Number of Seniors Assisted (65 and older)","Number of Veterans Assisted","Number of Disabled Persons Assisted","Number of Families with Minor Children Assisted","Number of Transition-Aged Youth (18-24) Assisted"]
["Yes",null,null,null,null,"Select One",null,null,null,null,null,null,null,null,"Select One"]
["Yes",null,null,null,null,"Select One",null,null,null,null,null,null,null,null,"Select One"]
["Yes",null,null,null,null,"Select One",null,null,null,null,null,null,null,null,"Select One"]
["Yes",null,null,null,null,"Select One",null,null,null,null,null,null,null,null,"Grant"]
["Yes",null,null,null,null,"Select One",null,null,null,null,null,null,null,null,"Select One"]
["Yes",null,null,null,null,"Select One",null,null,null,null,null,null,null,null,"Select One"]
["Yes",null,null,null,null,"Select One",null,null,null,null,null,null,null,null,"Select One"]
[null,"Total:",null,null,null,null,null,null,null,null,null,{"$f":"SUM(L7:L13)","v":0},{"$f":"SUM(M7:M13)","v":0},null,null,{"$f":"SUM(P7:P13)","v":0},{"$f":"SUM(Q7:Q13)","v":0},0,0,0,0,0]
[null,"Unit Details - Please enter the total number of units assisted with PLHA funds for each category.  ",null,null,null,null,null,null,null,null,null,null,"Project Status and Evidence of Compliance"]
[null,"Project \n(Project Name or Identifier)",null,null,"Total Number of Units in Project \n(includes only PLHA units)",null,"Type of Housing",null,"Number of Extremely Low- Income Units Rehabilitated\n(Max 30% AMI)\n{Per Guidelines 101(n)}:","Number of Very Low-Income Units Rehabilitated\n(Max 50% AMI)\n{Per Guidelines 101(cc)}:","Total Number of Units at or below 60% AMI Rehabilitated","Number of Low(er)-Income Units Rehabilitated (Max 80%AMI)\n{Per Guidelines 101(s)}:","Is Deed Restriction Recorded?","Proof of accessibility modifications made attached? \n(scope of work, invoices, etc)","Project Status","If Completed, is Certificate of Completion Attached?","Date of Completion (if applicable)"]
[null,{"$f":"IF(B7=\"\",\"\",B7)","v":""},null,null,null,null,"Select One",null,null,null,null,null,"Select One","Select One","Select One","Select One"]
[null,{"$f":"IF(B8=\"\",\"\",B8)","v":""},null,null,null,null,"Select One",null,null,null,null,null,"Select One","Select One","Under Construction","Select One"]
[null,"",null,null,null,null,"Select One",null,null,null,null,null,"Select One","Select One","Select One","Select One"]
[null,"",null,null,null,null,"Select One",null,null,null,null,null,"Select One","Select One","Select One","Select One"]
[null,"",null,null,null,null,"Select One",null,null,null,null,null,"Select One","Select One","Under Construction","Select One"]
[null,"",null,null,null,null,"Select One",null,null,null,null,null,"Select One","Select One","Select One","Select One"]
[null,"",null,null,null,null,"Select One",null,null,null,null,null,"Select One","Select One","Select One","Select One"]
[null,"Total:",null,null,{"$f":"SUM(E17:E23)","v":0},null,null,null,{"$f":"SUM(I17:I23)","v":0},{"$f":"SUM(J17:J23)","v":0},{"$f":"SUM(K17:K23)","v":0},{"$f":"SUM(L17:L23)","v":0}]
[null,"Outcomes and Activity Expenditures - Please complete this section if PLHA funds HAVE NOT been requested and/or expended (if already disbursed) during this reporting period.  Annual Report will be returned if this section is left blank and there are no outcomes reported in the above sections.\n1.  If you have not requested PLHA funds for this activity, please enter \"N/A\" or \"0\" in the above cells and provide the anticipated timeframe in which you will request and expend funds.  Please be specific and describe the current status of this activity and/or your plan in fulfilling this activity with the awarded funds. If applicable, please describe the targeted beneficiaries of your project including services to be provided.\n2.  If you have requested or received PLHA funds but have not expended the funds, please enter \"N/A\" or \"0\" in the above cells and describe in detail the current status of this activity and/or your plan in fulfilling this activity with the awarded funds.  Please include a timeframe as to when you plan to expend the funds. If applicable, please describe the targeted beneficiaries of your project including services to be provided.\n3.  If you expended PLHA funds that were received during the last reporting period, please enter the data as requested above.  For example, even though you have not requested funds during this reporting period, you expended funds that were previously disbursed to you.  Please provide a clarification.  "]
[]
[null,"Additional Comments - Please complete this section if you plan or is in the process of making amendments to your 5-Year Plan, if you are encountering issues in completing your Activity, and/or if there are discrepancies that need to be clarified.\n1.  Please describe any proposed amendment(s) to the approved activities and schedule (pursuant to Guidelines Section 503(b)).\n2.  Please describe any issues or barriers you encountered such as in securing required entitlements, permits, zoning changes, and environmental clearances as applicable.\n3.  Please provide any additional information regarding this activity."]
[]
[null,"CUMULATIVE DATA - The information below is based ONLY on PLHA funded units and individuals served by PLHA funds for this Activity.  The Total Number of PLHA Funded Units or People Served amounts in this section reflect data from the execution of your contract to the current reporting period.  Annual Report will be returned if this section is left blank.\n1.  In order to complete this section, please refer to the Cumulative Data for Activity 7 from last year's Annual Report.\n2.  If an Annual Report was not required to be submitted in the last reporting period, please enter a zero for each of the yellow cell below.\n3.  If an Annual Report was submitted in the previous reporting period, please use that Annual Report to enter an amount in each yellow cell below by adding the amounts reported in the Total Prior to this Reporting Period AND Total for this Reporting Period that corresponds to each row.\n4.  If the data in the previous Annual Report was reported incorrectly, please provide the correct amounts below.  Please note that the amount requested in each yellow cell below reflects the total amount from the first time PLHA funds were used for the units and the people served to the previous year's reporting period.  PLHA funds used during this reporting period should ONLY be reported in the above sections.  In addition, please provide an explanation in the above Additional Comments section to explain the discrepancy between the data reported in this Annual Report and the previous Annual Report."]
[null,"PLHA FUNDED UNITS",null,null,null,null,"Total Prior to this Reporting Period","Total for this Reporting Period","Total Number \nof PLHA Funded Units to Date","PEOPLE SERVED",null,null,null,null,"Total Prior to this Reporting Period","Total for this Reporting Period","Total Number of\nPeople Served \nto Date"]
[null,"Number of Units Rehabilitated ",null,null,null,null,null,{"$f":"E24","v":0},{"$f":"SUM(G31:H31)","v":0},"Number of Individuals Assisted",null,null,null,null,null,{"$f":"P14","v":0},{"$f":"SUM(O31:P31)","v":0}]
[null,"Number of Extremely Low- Income Units Rehabilitated\n(Max 30% AMI)\n{Per Guidelines 101(n)}:",null,null,null,null,null,{"$f":"I24","v":0},{"$f":"SUM(G32:H32)","v":0},"Number of Households Assisted",null,null,null,null,null,{"$f":"Q14","v":0},{"$f":"SUM(O32:P32)","v":0}]
[null,"Number of Very Low-Income Units Rehabilitated\n(Max 50% AMI)\n{Per Guidelines 101(cc)}:",null,null,null,null,null,{"$f":"J24","v":0},{"$f":"SUM(G33:H33)","v":0},"Number of Seniors (65 and older) Assisted",null,null,null,null,null,{"$f":"R14","v":0},0]
[null,"Total Number of Units at or below 60% AMI Rehabilitated",null,null,null,null,null,{"$f":"K24","v":0},{"$f":"SUM(G34:H34)","v":0},"Number of Veterans Assisted",null,null,null,null,null,{"$f":"S14","v":0},0]
[null,"Number of Low(er)-Income Units Rehabilitated (Max 80%AMI)\n{Per Guidelines 101(s)}:",null,null,null,null,null,{"$f":"L24","v":0},{"$f":"SUM(G35:H35)","v":0},"Number of Disabled Persons Assisted",null,null,null,null,null,{"$f":"T14","v":0},0]
[null,null,null,null,null,null,null,null,null,"Number of Families with Minor Children Assisted",null,null,null,null,null,{"$f":"U14","v":0},0]
[null,null,null,null,null,null,null,null,null,"Number of Transition-Aged Youth (ages 18-24) Assisted",null,null,null,null,null,{"$f":"V14","v":0},0]

{"sheet":"Activity 8","index":11,"n_rows":38,"n_cols":22,"rows_kept":38,"cut":false,"hidden":true,"merged":[[24,1,24,16],[33,9,33,13],[34,1,34,5],[34,9,34,13],[29,1,29,5],[29,9,29,13],[30,1,30,5],[30,9,30,13],[31,1,31,5],[31,9,31,13],[0,1,0,21],[1,1,1,21],[2,1,2,21],[14,1,14,11],[4,14,4,21],[4,1,4,13],[37,9,37,13],[3,13,3,14],[5,1,5,2],[6,1,6,2],[7,1,7,2],[8,1,8,2],[9,1,9,2],[10,1,10,2],[11,1,11,2],[12,1,12,2],[14,12,14,16],[15,1,15,2],[21,1,21,2],[22,1,22,2],[16,1,16,2],[25,1,25,16],[17,1,17,2],[18,1,18,2],[19,1,19,2],[20,1,20,2],[37,1,37,5],[26,1,26,16],[27,1,27,16],[28,1,28,16],[36,1,36,5],[36,9,36,13],[23,1,23,2],[35,1,35,5],[35,9,35,13],[32,1,32,5],[32,9,32,13],[33,1,33,5]]}
[null,"PERMANENT LOCAL HOUSING ALLOCATION (PLHA) FUND"]
[null,"Activity 8 Outcomes\n§301(a)(8) Efforts to acquire and rehabilitate foreclosed or vacant homes and apartments."]
[null,"This tab captures Activity 8 outcomes and expenditures using PLHA funds during this reporting period (unless otherwise noted).  If PLHA funds have not been received and expended to operate the project during this reporting period, enter an \"N/A\" or a \"0\" in the yellow cells on the first row of each section and provide an explanation in the section provided below."]
[null,"Contract Number",{"$f":"'1-Cover Sheet'!C8","v":"Select One"},"Total Amount of PLHA\nFunds Awarded to Date ",{"$f":"(SUM('1-Cover Sheet'!C48:G48))","v":0},"Total Amount of PLHA\nFunds Disbursed to Date",{"$f":"(SUM('1-Cover Sheet'!C50:G50))","v":0},"Total Amount of Awarded\n PLHA Funds Not Yet\nDisbursed to Date",{"$f":"IFERROR(E4-G4,0)","v":0},"% of PLHA Funds \nDisbursed to Date",{"$f":"IFERROR(G4/E4,0)","v":0},"% of PLHA Funds \nNot Yet Disbursed to Date",{"$f":"IFERROR(I4/E4,0)","v":0},"Total Amount of PLHA Funds Disbursed \nDuring this Reporting Period",null,null,"Total Amount of PLHA Funds Expended During \nthis Reporting Period",{"$f":"SUM(L14:M14)","v":0},"Total Amount of Unexpended Funds During \nthis Reporting Period",{"$f":"IFERROR(P4-R4,0)","v":0},"% of PLHA Funds \nExpended During this Period \n(% may be higher than 100% if PLHA funds disbursed in previous reporting period\n was expended during this reporting period)",{"$f":"IFERROR(R4/P4,0)","v":0}]
[null,"General Project Information and Expenditure Breakdown\n(Amount of PLHA funds expended should equate to the amount of PLHA funds received.  \nTotal amount may be less than the amount received if PLHA have not been fully expended) ",null,null,null,null,null,null,null,null,null,null,null,null,"Households or Individuals Served - Please enter the total number of households or individuals assisted with PLHA funds for each category.  \nNumber may be duplicated (example, a 65 year old veteran will be counted in the \"Seniors\" column and \"Veterans\" column)"]
[null,"Project \n(Project Name or Identifier)",null,"Project Address\nStreet, City, Zip","Project County\n","Length of Affordability Restriction\n(in years), if applicable","Date of Affordability Covenant Expiration, if applicable","Total Cost of Project\nincluding PLHA and non-PLHA funds\n(including AOWH if applicable)","Developer Name","Original Status of Property","Amount of PLHA Funds Expended Towards AOWH","Amount of PLHA Funds Expended on Acquisition\n(including AOWH if applicable)","Amount of PLHA Funds Expended on Rehabilitation\n(including AOWH if applicable)","Was Prevailing Wage Paid? ","Number of Individuals to Occupy Project","Number of Households to Occupy the Project","Number of Seniors (65 and older) to Occupy Project","Number of Veterans to Occupy Project","Number of Disabled Persons to Occupy Project","Number of Families with Minor Children to Occupy Project","Number of Transition-Aged Youth (ages 18-24) to Occupy Project","Number of Farmworkers to Occupy Project"]
["Yes",null,null,null,"Select One",null,null,null,null,"Select One"]
["Yes",null,null,null,"Select One",null,null,null,null,"Select One"]
["Yes",null,null,null,"Select One",null,null,null,null,"Select One"]
["Yes",null,null,null,"Select One",null,null,null,null,"Select One"]
["Yes",null,null,null,"Select One",null,null,null,null,"Select One"]
["Yes",null,null,null,"Select One",null,null,null,null,"Select One"]
["Yes",null,null,null,"Select One",null,null,null,null,"Select One"]
[null,"Total",null,null,null,null,null,null,{"$f":"SUM(L14:M14)","v":0},null,{"$f":"SUM(K7:K13)","v":0},{"$f":"SUM(L7:L13)","v":0},{"$f":"SUM(M7:M13)","v":0},null,{"$f":"SUM(O7:O13)","v":0},0,0,0,0,0,0,0]
[null,"Unit Details - Please enter the total number of units assisted with PLHA funds for each category.  ",null,null,null,null,null,null,null,null,null,null,"Project Status and Evidence of Compliance"]
[null,"Project \n(Project Name or Identifier)",null,"Number of Housing Units Acquired and Rehabilitated\n(includes only PLHA units)","Type of Housing","Number of ADA-Accessible Units Acquired and Rehabilitated","Number of Units Acquired and Rehabilitated for Formerly Homeless Individuals","Number of Extremely Low- Income Units Acquired and Rehabilitated\n(Max 30% AMI)\n{Per Guidelines 101(n)}:","Number of Low-Income Units Acquired and Rehabilitated\n(Max 50% AMI)\n{Per Guidelines 101(cc)}:","Total Number of Units at or below 60% AMI Acquired and Rehabilitated","Number of Low(er)-Income Units Acquired and Rehabilitated (Max 80%AMI)\n{Per Guidelines 101(s)}:","Number of Moderate-Income Units Acquired and Rehabilitated\n(Max 120% AMI, or if in High Cost Area 150%)\n{Per Guidelines 101(t)}:","Tax Credit Project","Is Deed Restriction Recorded?","Project Status","Date of Completion (if applicable)","If Completed, is Certificate of Completion attached?"]
[null,{"$f":"IF(B7=\"\",\"\",B7)","v":""},null,null,"Select One",null,null,null,null,null,null,null,"Select One","Select One","Select One",null,"Select One"]
[null,{"$f":"IF(B8=\"\",\"\",B8)","v":""},null,null,"Select One",null,null,null,null,null,null,null,"Select One","Select One","Select One",null,"Select One"]
[null,"",null,null,"Select One",null,null,null,null,null,null,null,"Select One","Select One","Select One",null,"Select One"]
[null,"",null,null,"Select One",null,null,null,null,null,null,null,"Select One","Select One","Select One",null,"Select One"]
[null,"",null,null,"Select One",null,null,null,null,null,null,null,"Select One","Select One","Select One",null,"Select One"]
[null,"",null,null,"Select One",null,null,null,null,null,null,null,"Select One","Select One","Select One",null,"Select One"]
[null,"",null,null,"Select One",null,null,null,null,null,null,null,"Select One","Select One","Select One",null,"Select One"]
[null,"Total",null,{"$f":"SUM(D17:D23)","v":0},null,{"$f":"SUM(F17:F23)","v":0},0,0,0,0,0,0]
[null,"Outcomes and Activity Expenditures - Please complete this section if PLHA funds HAVE NOT been requested and/or expended (if already disbursed) during this reporting period.  Annual Report will be returned if this section is left blank and there are no outcomes reported in the above sections.\n1.  If you have not requested PLHA funds for this activity, please enter \"N/A\" or \"0\" in the above cells and provide the anticipated timeframe in which you will request and expend funds.  Please be specific and describe the current status of this activity and/or your plan in fulfilling this activity with the awarded funds. If applicable, please describe the targeted beneficiaries of your project including services to be provided.\n2.  If you have requested or received PLHA funds but have not expended the funds, please enter \"N/A\" or \"0\" in the above cells and describe in detail the current status of this activity and/or your plan in fulfilling this activity with the awarded funds.  Please include a timeframe as to when you plan to expend the funds. If applicable, please describe the targeted beneficiaries of your project including services to be provided.\n3.  If you expended PLHA funds that were received during the last reporting period, please enter the data as requested above.  For example, even though you have not requested funds during this reporting period, you expended funds that were previously disbursed to you.  Please provide a clarification.  "]
[]
[null,"Additional Comments - Please complete this section if you plan or is in the process of making amendments to your 5-Year Plan, if you are encountering issues in completing your Activity, and/or if there are discrepancies that need to be clarified.\n1.  Please describe any proposed amendment(s) to the approved activities and schedule (pursuant to Guidelines Section 503(b)).\n2.  Please describe any issues or barriers you encountered such as in securing required entitlements, permits, zoning changes, and environmental clearances as applicable.\n3.  Please provide any additional information regarding this activity."]
[]
[null,"CUMULATIVE DATA - The information below is based ONLY on PLHA funded units and individuals served by PLHA funds for this Activity.  The Total Number of PLHA Funded Units or People Served amounts in this section reflect data from the execution of your contract to the current reporting period.  Annual Report will be returned if this section is left blank.\n1.  In order to complete this section, please refer to the Cumulative Data for Activity 8 from last year's Annual Report.\n2.  If an Annual Report was not required to be submitted in the last reporting period, please enter a zero for each of the yellow cell below.\n3.  If an Annual Report was submitted in the previous reporting period, please use that Annual Report to enter an amount in each yellow cell below by adding the amounts reported in the Total Prior to this Reporting Period AND Total for this Reporting Period that corresponds to each row.\n4.  If the data in the previous Annual Report was reported incorrectly, please provide the correct amounts below.  Please note that the amount requested in each yellow cell below reflects the total amount from the first time PLHA funds were used for the units and the people served to the previous year's reporting period.  PLHA funds used during this reporting period should ONLY be reported in the above sections.  In addition, please provide an explanation in the above Additional Comments section to explain the discrepancy between the data reported in this Annual Report and the previous Annual Report."]
[null,"PLHA FUNDED UNITS",null,null,null,null,"Total Prior to this Reporting Period","Total for this Reporting Period","Total Number \nof PLHA Funded Units to Date","PEOPLE SERVED",null,null,null,null,"Total Prior to this Reporting Period","Total for this Reporting Period","Total Number of\nPeople Served \nto Date"]
[null,"Number of Units Acquired and Rehabilitated ",null,null,null,null,null,{"$f":"D24","v":0},{"$f":"SUM(G31:H31)","v":0},"Number of Individuals Occupying Projects",null,null,null,null,null,{"$f":"O14","v":0},{"$f":"SUM(O31:P31)","v":0}]
[null,"Number of ADA Accessible Units Acquired and Rehabilitated",null,null,null,null,null,{"$f":"F24","v":0},{"$f":"SUM(G32:H32)","v":0},"Number of Households Occupying Projects",null,null,null,null,null,{"$f":"P14","v":0},{"$f":"SUM(O32:P32)","v":0}]
[null,"Number of Units Acquired and Rehabilitated for Formerly Homeless Individuals ",null,null,null,null,null,{"$f":"G24","v":0},0,"Number of Seniors (65 and older) Occupying Projects",null,null,null,null,null,{"$f":"Q14","v":0},0]
[null,"Number of Extremely Low- Income Units Acquired and Rehabilitated\n(Max 30% AMI)\n{Per Guidelines 101(n)}:",null,null,null,null,null,{"$f":"H24","v":0},0,"Number of Veterans Occupying Projects",null,null,null,null,null,{"$f":"R14","v":0},0]
[null,"Number of Low-Income Units Acquired and Rehabilitated\n(Max 50% AMI)\n{Per Guidelines 101(cc)}:",null,null,null,null,null,{"$f":"I24","v":0},0,"Number of Disabled Persons Occupying Projects",null,null,null,null,null,{"$f":"S14","v":0},0]
[null,"Total Number of Units at or below 60% AMI Acquired and Rehabilitated",null,null,null,null,null,{"$f":"J24","v":0},0,"Number of Families with Minor Children Occupying Projects",null,null,null,null,null,{"$f":"T14","v":0},0]
[null,"Number of Low(er)-Income Units Acquired and Rehabilitated (Max 80% AMI)\n{Per Guidelines 101(s)}:",null,null,null,null,null,{"$f":"N24","v":0},0,"Number of Transition-Aged Youth (ages 18-24) Occupying Projects",null,null,null,null,null,{"$f":"U14","v":0},0]
[null,"Number of Moderate-Income Units Acquired and Rehabilitated\n(Max 120% AMI, or if in High Cost Area 150%)\n{Per Guidelines 101(t)}:",null,null,null,null,null,{"$f":"L24","v":0},0,"Number of Farmworkers Occupying Projects",null,null,null,null,null,{"$f":"V14","v":0},0]

{"sheet":"Activity 9","index":12,"n_rows":38,"n_cols":22,"rows_kept":38,"cut":false,"hidden":true,"merged":[[7,3,7,4],[8,1,8,2],[13,1,13,2],[9,1,9,2],[9,3,9,4],[10,12,10,13],[11,12,11,13],[12,12,12,13],[5,12,5,13],[6,12,6,13],[7,12,7,13],[8,12,8,13],[9,12,9,13],[25,1,25,16],[26,1,26,16],[27,1,27,16],[28,1,28,16],[22,1,22,3],[36,9,36,13],[32,1,32,5],[33,1,33,5],[34,1,34,5],[35,1,35,5],[36,1,36,5],[33,9,33,13],[34,9,34,13],[29,1,29,5],[29,9,29,13],[35,9,35,13],[30,1,30,5],[30,9,30,13],[31,1,31,5],[31,9,31,13],[0,1,0,21],[1,1,1,21],[2,1,2,21],[14,11,14,16],[14,1,14,10],[4,14,4,21],[4,1,4,13],[12,1,12,2],[12,3,12,4],[8,3,8,4],[5,1,5,2],[5,3,5,4],[6,1,6,2],[10,1,10,2],[10,3,10,4],[11,1,11,2],[37,1,37,5],[37,9,37,13],[3,13,3,14],[15,1,15,3],[16,1,16,3],[17,1,17,3],[18,1,18,3],[19,1,19,3],[20,1,20,3],[21,1,21,3],[24,1,24,16],[11,3,11,4],[6,3,6,4],[7,1,7,2],[23,1,23,3],[32,9,32,13]]}
[null,"PERMANENT LOCAL HOUSING ALLOCATION (PLHA) FUND"]
[null,"Activity 9 Outcomes\n§301(a)(9) Homeownership opportunities, including, but not limited to, down payment assistance "]
[null,"This tab captures Activity 9 outcomes and expenditures using PLHA funds during this reporting period (unless otherwise noted).  If PLHA funds have not been received and expended to operate the project during this reporting period, enter an \"N/A\" or a \"0\" in the yellow cells on the first row of each section and provide an explanation in the section provided below."]
[null,"Contract Number",{"$f":"'1-Cover Sheet'!C8","v":"Select One"},"Total Amount of PLHA\nFunds Awarded to Date ",{"$f":"(SUM('1-Cover Sheet'!C54:G54))","v":0},"Total Amount of PLHA\nFunds Disbursed to Date",{"$f":"(SUM('1-Cover Sheet'!C56:G56))","v":0},"Total Amount of Awarded\n PLHA Funds Not Yet\nDisbursed to Date",{"$f":"IFERROR(E4-G4,0)","v":0},"% of PLHA Funds \nDisbursed to Date",{"$f":"IFERROR(G4/E4,0)","v":0},"% of PLHA Funds \nNot Yet Disbursed to Date",{"$f":"IFERROR(I4/E4,0)","v":0},"Total Amount of PLHA Funds Disbursed \nDuring this Reporting Period",null,null,"Total Amount of PLHA Funds Expended During \nthis Reporting Period",{"$f":"SUM(J14:K14)","v":0},"Total Amount of Unexpended Funds During \nthis Reporting Period",{"$f":"IFERROR(P4-R4,0)","v":0},"% of PLHA Funds \nExpended During this Period \n(% may be higher than 100% if PLHA funds disbursed in previous reporting period\n was expended during this reporting period)",{"$f":"IFERROR(R4/P4,0)","v":0}]
[null,"General Project Information and Expenditure Breakdown\n(Amount of PLHA funds expended should equate to the amount of PLHA funds received.  \nTotal amount may be less than the amount received if PLHA have not been fully expended) ",null,null,null,null,null,null,null,null,null,null,null,null,"Households or Individuals Served - Please enter the total number of households or individuals assisted with PLHA funds for each category.  \nNumber may be duplicated (example, a 65 year old veteran will be counted in the \"Seniors\" column and \"Veterans\" column)"]
[null,"Project \n(Project Name or Identifier)",null,"Project Address\nStreet, City, Zip",null,"Project County\nPlease select one","Length of Affordability Restriction\n(in years), if applicable","Date of Affordability Covenant Expiration, if applicable","Total Cost of Project\nincludingPLHA, non-PLHA funds \n(including AOWH if applicable)","Amount of PLHA Funds Expended on Down Payment Assistance\n(including AOWH if applicable)","Amount of PLHA Funds Expended on Other Homeownership Opportunities\n(including AOWH if applicable)","Amount of PLHA Funds Expended Towards AOWH\n","Description of Other Homeownership Opportunity Activities",null,"Number of Households Assisted","Number of Individuals Assisted","Number of Seniors (65 and older) Assisted","Number of Veterans Assisted","Number of Disabled Persons Assisted","Number of Families with Minor Children Assisted","Number of Transition-Aged Youth (ages 18-24) Assisted","Number of Farmworkers Assisted"]
["Yes",null,null,null,null,"Select One"]
["Yes",null,null,null,null,"Select One"]
["Yes",null,null,null,null,"Select One"]
["Yes",null,null,null,null,"Select One"]
["Yes",null,null,null,null,"Select One"]
["Yes",null,null,null,null,"Select One"]
["Yes",null,null,null,null,"Select One"]
[null,"Total:",null,null,null,null,null,null,null,{"$f":"SUM(J7:J13)","v":0},{"$f":"SUM(K7:K13)","v":0},{"$f":"SUM(L7:L13)","v":0},null,null,{"$f":"SUM(O7:O13)","v":0},{"$f":"SUM(P7:P13)","v":0},{"$f":"SUM(Q7:Q13)","v":0},0,0,0,0,0]
[null,"Unit Details - Please enter the total number of units assisted with PLHA funds for each category.  ",null,null,null,null,null,null,null,null,null,"Project Status and Evidence of Compliance"]
[null,"Project \n(Project Name or Identifier)\n",null,null,"Total Homeownership Units Assisted\n(includes only PLHA units)","Type of Housing","Number of Extremely Low- Income Households Assisted\n(Max 30% AMI)\n{Per Guidelines 101(n)}:","Number of Very Low-Income Households Assisted\n(Max 50% AMI)\n{Per Guidelines 101(cc)}:","Total Number of Households at or below 60% AMI Assisted\n","Number of Low(er)-Income Households Assisted (Max 80%AMI)\n{Per Guidelines 101(s)}:","Number of Moderate-Income Households Assisted\n(Max 120% AMI, or if in High Cost Area 150%)\n{Per Guidelines 101(t)}:","Is Deed Restriction Recorded?","Project Status","Are homeownership program policies attached? ","Are proof of awards to homeowners attached? ","Date of Project Completion \n(if applicable)","If Completed, is Certificate of Completion or Occupancy attached?"]
[null,{"$f":"IF(B7=\"\",\"\",B7)","v":""},null,null,null,"Select One",null,null,null,null,null,"Select One","Select One","Select One","Select One",null,"Select One"]
[null,{"$f":"IF(B8=\"\",\"\",B8)","v":""},null,null,null,"Select One",null,null,null,null,null,"Select One","Select One","Select One","Select One",null,"Select One"]
[null,"",null,null,null,"Select One",null,null,null,null,null,"Select One","Select One","Select One","Select One",null,"Select One"]
[null,"",null,null,null,"Select One",null,null,null,null,null,"Select One","Select One","Select One","Select One",null,"Select One"]
[null,"",null,null,null,"Select One",null,null,null,null,null,"Select One","Select One","Select One","Select One",null,"Select One"]
[null,"",null,null,null,"Select One",null,null,null,null,null,"Select One","Select One","Select One","Select One",null,"Select One"]
[null,"",null,null,null,"Select One",null,null,null,null,null,"Select One","Select One","Select One","Select One",null,"Select One"]
[null,"Total:",null,null,{"$f":"SUM(E17:E23)","v":0},null,{"$f":"SUM(G17:G23)","v":0},{"$f":"SUM(H17:H23)","v":0},{"$f":"SUM(I17:I23)","v":0},{"$f":"SUM(J17:J23)","v":0},{"$f":"SUM(K17:K23)","v":0}]
[null,"Outcomes and Activity Expenditures - Please complete this section if PLHA funds HAVE NOT been requested and/or expended (if already disbursed) during this reporting period.  Annual Report will be returned if this section is left blank and there are no outcomes reported in the above sections.\n1.  If you have not requested PLHA funds for this activity, please enter \"N/A\" or \"0\" in the above cells and provide the anticipated timeframe in which you will request and expend funds.  Please be specific and describe the current status of this activity and/or your plan in fulfilling this activity with the awarded funds. If applicable, please describe the targeted beneficiaries of your project including services to be provided.\n2.  If you have requested or received PLHA funds but have not expended the funds, please enter \"N/A\" or \"0\" in the above cells and describe in detail the current status of this activity and/or your plan in fulfilling this activity with the awarded funds.  Please include a timeframe as to when you plan to expend the funds. If applicable, please describe the targeted beneficiaries of your project including services to be provided.\n3.  If you expended PLHA funds that were received during the last reporting period, please enter the data as requested above.  For example, even though you have not requested funds during this reporting period, you expended funds that were previously disbursed to you.  Please provide a clarification.  "]
[]
[null,"Additional Comments - Please complete this section if you plan or is in the process of making amendments to your 5-Year Plan, if you are encountering issues in completing your Activity, and/or if there are discrepancies that need to be clarified.\n1.  Please describe any proposed amendment(s) to the approved activities and schedule (pursuant to Guidelines Section 503(b)).\n2.  Please describe any issues or barriers you encountered such as in securing required entitlements, permits, zoning changes, and environmental clearances as applicable.\n3.  Please provide any additional information regarding this activity."]
[]
[null,"CUMULATIVE DATA - The information below is based ONLY on PLHA funded units and individuals served by PLHA funds for this Activity.  The Total Number of PLHA Funded Units or People Served amounts in this section reflect data from the execution of your contract to the current reporting period.  Annual Report will be returned if this section is left blank.\n1.  In order to complete this section, please refer to the Cumulative Data for Activity 9 from last year's Annual Report.\n2.  If an Annual Report was not required to be submitted in the last reporting period, please enter a zero for each of the yellow cell below.\n3.  If an Annual Report was submitted in the previous reporting period, please use that Annual Report to enter an amount in each yellow cell below by adding the amounts reported in the Total Prior to this Reporting Period AND Total for this Reporting Period that corresponds to each row.\n4.  If the data in the previous Annual Report was reported incorrectly, please provide the correct amounts below.  Please note that the amount requested in each yellow cell below reflects the total amount from the first time PLHA funds were used for the units and the people served to the previous year's reporting period.  PLHA funds used during this reporting period should ONLY be reported in the above sections.  In addition, please provide an explanation in the above Additional Comments section to explain the discrepancy between the data reported in this Annual Report and the previous Annual Report."]
[null,"PLHA FUNDED UNITS",null,null,null,null,"Total Prior to this Reporting Period","Total for this Reporting Period","Total Number \nof PLHA Funded Units to Date","PEOPLE SERVED",null,null,null,null,"Total Prior to this Reporting Period","Total for this Reporting Period","Total Number of\nPeople Served \nto Date"]
[null,"Number of Homeownership Units Assisted ",null,null,null,null,null,{"$f":"E24","v":0},{"$f":"SUM(G31:H31)","v":0},"Number of Individuals Assisted",null,null,null,null,null,{"$f":"P14","v":0},{"$f":"SUM(O31:P31)","v":0}]
[null,"Number of Extremely Low- Income Households Assisted\n(Max 30% AMI)\n{Per Guidelines 101(n)}:",null,null,null,null,null,{"$f":"G24","v":0},0,"Number of Seniors (65 and older) Assisted",null,null,null,null,null,{"$f":"Q14","v":0},{"$f":"SUM(O32:P32)","v":0}]
[null,"Number of Very Low-Income Households Assisted\n(Max 50% AMI)\n{Per Guidelines 101(cc)}:",null,null,null,null,null,{"$f":"H24","v":0},0,"Number of Veterans Assisted",null,null,null,null,null,{"$f":"R14","v":0},0]
[null,"Total Number of Units at or below 60% AMI Assisted",null,null,null,null,null,{"$f":"I24","v":0},0,"Number of Disabled Persons Assisted",null,null,null,null,null,{"$f":"S14","v":0},0]
[null,"Number of Low(er)-Income Households Assisted (Max 80% AMI)\n{Per Guidelines 101(s)}:",null,null,null,null,null,{"$f":"J24","v":0},0,"Number of Families with Minor Children Assisted",null,null,null,null,null,{"$f":"T14","v":0},0]
[null,"Number of Moderate-Income Households Assisted\n(Max 120% AMI, or if in High Cost Area 150%)\n{Per Guidelines 101(t)}:",null,null,null,null,null,{"$f":"K24","v":0},0,"Number of Transition-Aged Youth (ages 18-24) Assisted",null,null,null,null,null,{"$f":"U14","v":0},0]
[null,null,null,null,null,null,null,null,null,"Number of Farmworkers Assisted",null,null,null,null,null,{"$f":"V14","v":0},0]
[null,null,null,null,null,null,null,null,null,"Number of Households Assisted",null,null,null,null,null,{"$f":"O14","v":0},0]

{"sheet":"Activity 10","index":13,"n_rows":38,"n_cols":22,"rows_kept":38,"cut":false,"hidden":true,"merged":[[13,1,13,2],[23,1,23,3],[33,1,33,5],[33,9,33,13],[34,1,34,5],[34,9,34,13],[26,1,26,16],[27,1,27,16],[28,1,28,16],[29,1,29,5],[29,9,29,13],[25,1,25,16],[19,1,19,3],[20,1,20,3],[21,1,21,3],[22,1,22,3],[35,1,35,5],[35,9,35,13],[30,1,30,5],[30,9,30,13],[31,1,31,5],[31,9,31,13],[32,1,32,5],[32,9,32,13],[0,1,0,21],[1,1,1,21],[2,1,2,21],[10,1,10,2],[10,3,10,4],[11,1,11,2],[11,3,11,4],[12,1,12,2],[12,3,12,4],[4,14,4,21],[4,1,4,13],[36,1,36,5],[36,9,36,13],[37,1,37,5],[37,9,37,13],[3,13,3,14],[5,1,5,2],[5,3,5,4],[6,1,6,2],[6,3,6,4],[7,1,7,2],[7,3,7,4],[8,1,8,2],[8,3,8,4],[9,1,9,2],[9,3,9,4],[24,1,24,16],[18,1,18,3],[14,14,14,16],[14,1,14,13],[15,1,15,3],[16,1,16,3],[17,1,17,3]]}
[null,"PERMANENT LOCAL HOUSING ALLOCATION (PLHA) FUND"]
[null,"Activity 10 Outcomes\n§301(a)(10) Fiscal incentives made by a county to a city within the county to incentivize approval of one or more Affordable housing Projects, or matching funds invested by a county in an Affordable housing development Project in a city within the county, provided that the city has made an equal or greater investment in the Project. The county fiscal incentives shall be in the form of a grant or low-interest loan to an affordable housing Project. Matching funds investments by both the county and the city also shall be a grant or low-interest deferred loan to the Affordable housing project."]
[null,"This tab captures Activity 10 outcomes and expenditures using PLHA funds during this reporting period (unless otherwise noted).  If PLHA funds have not been received and expended to operate the project during this reporting period, enter an \"N/A\" or a \"0\" in the yellow cells on the first row of each section and provide an explanation in the section provided below."]
[null,"Contract Number",{"$f":"'1-Cover Sheet'!C8","v":"Select One"},"Total Amount of PLHA\nFunds Awarded to Date ",{"$f":"(SUM('1-Cover Sheet'!C60:G60))","v":0},"Total Amount of PLHA\nFunds Disbursed to Date",{"$f":"(SUM('1-Cover Sheet'!C62:G62))","v":0},"Total Amount of Awarded\n PLHA Funds Not Yet\nDisbursed to Date",{"$f":"IFERROR(E4-G4,0)","v":0},"% of PLHA Funds \nDisbursed to Date",{"$f":"IFERROR(G4/E4,0)","v":0},"% of PLHA Funds \nNot Yet Disbursed to Date",{"$f":"IFERROR(I4/E4,0)","v":0},"Total Amount of PLHA Funds Disbursed \nDuring this Reporting Period",null,null,"Total Amount of PLHA Funds Expended During \nthis Reporting Period",{"$f":"L14","v":0},"Total Amount of Unexpended Funds During \nthis Reporting Period",{"$f":"IFERROR(P4-R4,0)","v":0},"% of PLHA Funds \nExpended During this Period \n(% may be higher than 100% if PLHA funds disbursed in previous reporting period\n were expended during this reporting period)",{"$f":"IFERROR(R4/P4,0)","v":0}]
[null,"Incentive and Match Details",null,null,null,null,null,null,null,null,null,null,null,null,"Households or Individuals Served - Please enter the total number of households or individuals assisted with PLHA funds for each category.  \nNumber may be duplicated (example, a 65 year old veteran will be counted in the \"Seniors\" column and \"Veterans\" column)"]
[null,"Project \n(Project Name or Identifier)",null,"Project Address\nStreet, City, Zip",null,"Project County\nPlease select one","Length of Affordability Restriction\n(in years), if applicable","Date of Affordability Covenant Expiration, if applicable","Total Cost of Project\nincluding PLHA and non-PLHA funds\n(including AOWH if applicable)","Name of City Receiving PLHA Funds","Amount of PLHA Funds Expended Towards AOWH","Amount of PLHA Funds Disbursed to City\n(including AOWH if applicable)","How were PLHA Funds Provided?\n{Per Guidelines 301(a)(10)}","Amount of Matching Funds Provided \n(if applicable)","Total Number of Individuals to Occupy Project","Total Number of Households to Occupy the Project","Seniors (65 and older) to Occupy Project","Veterans to Occupy Project","Disabled Persons to Occupy Project","Families with Minor Children to Occupy Project","Transition-Aged Youth (ages 18-24) to Occupy Project","Farmworkers to Occupy Project"]
["Yes",null,null,null,null,"Select One",null,null,null,null,null,null,"Select One"]
["Yes",null,null,null,null,"Select One",null,null,null,null,null,null,"Select One"]
["Yes",null,null,null,null,"Select One",null,null,null,null,null,null,"Select One"]
["Yes",null,null,null,null,"Select One",null,null,null,null,null,null,"Select One"]
["Yes",null,null,null,null,"Select One",null,null,null,null,null,null,"Select One"]
["Yes",null,null,null,null,"Select One",null,null,null,null,null,null,"Select One"]
["Yes",null,null,null,null,"Select One",null,null,null,null,null,null,"Select One"]
[null,"Total:",null,null,null,null,null,null,null,null,{"$f":"SUM(K7:K13)","v":0},{"$f":"SUM(L7:L13)","v":0},null,{"$f":"SUM(N7:N13)","v":0},{"$f":"SUM(O7:O13)","v":0},{"$f":"SUM(P7:P13)","v":0},{"$f":"SUM(Q7:Q13)","v":0},0,0,0,{"$f":"SUM(U7:U13)","v":0},{"$f":"SUM(V7:V13)","v":0}]
[null,"Unit Details - Please enter the total number of units assisted with PLHA funds for each category (unless otherwise noted).  ",null,null,null,null,null,null,null,null,null,null,null,null,"Project Status and Evidence of Compliance"]
[null,"Project \n(Project Name or Identifier)",null,null,"Total Number of Units in Project (includes PLHA and non-PLHA units)","Total Number of Units Restricted for Affordability in Project (includes only PLHA units)","Type of Housing","Number of ADA Accessible Units Developed, Rehabilitated or Preserved","Number of Units Developed, Rehabilitated or Preserved for Formerly Homeless Individuals ","Number of Extremely Low- Income Units Developed, Rehabilitated or Preserved\n(Max 30% AMI)\n{Per Guidelines 101(n)}:","Number of Very Low-Income Units Developed, Rehabilitated or Preserved\n(Max 50% AMI)\n{Per Guidelines 101(cc)}:","Total Number of Units at or below 60% AMI Developed, Rehabilitated or Preserved","Number of Low(er)-Income Units Developed, Rehabilitated or Preserved (Max 80% AMI)\n{Per Guidelines 101(s)}:","Number of Moderate-Income Units Developed, Rehabilitated or Preserved\n(Max 120% AMI, or if in High Cost Area 150%)\n{Per Guidelines 101(t)}:","Project Status","Proof of Incentive Paid Attached to Report","Date of Completion \n(if applicable)"]
[null,{"$f":"IF(B7=\"\",\"\",B7)","v":""},null,null,null,null,"Select One",null,null,null,null,null,null,null,"Select One","Select One"]
[null,{"$f":"IF(B8=\"\",\"\",B8)","v":""},null,null,null,null,"Select One",null,null,null,null,null,null,null,"Select One","Select One"]
[null,"",null,null,null,null,"Select One",null,null,null,null,null,null,null,"Select One","Select One"]
[null,"",null,null,null,null,"Select One",null,null,null,null,null,null,null,"Select One","Select One"]
[null,"",null,null,null,null,"Select One",null,null,null,null,null,null,null,"Select One","Select One"]
[null,"",null,null,null,null,"Select One",null,null,null,null,null,null,null,"Select One","Select One"]
[null,"",null,null,null,null,"Select One",null,null,null,null,null,null,null,"Select One","Select One"]
[null,"Total",null,null,{"$f":"SUM(E17:E23)","v":0},{"$f":"SUM(F17:F23)","v":0},null,{"$f":"SUM(H17:H23)","v":0},0,0,0,0,0,0]
[null,"Outcomes and Activity Expenditures - Please complete this section if PLHA funds HAVE NOT been requested and/or expended (if already disbursed) during this reporting period.  Annual Report will be returned if this section is left blank and there are no outcomes reported in the above sections.\n1.  If you have not requested PLHA funds for this activity, please enter \"N/A\" or \"0\" in the above cells and provide the anticipated timeframe in which you will request and expend funds.  Please be specific and describe the current status of this activity and/or your plan in fulfilling this activity with the awarded funds. If applicable, please describe the targeted beneficiaries of your project including services to be provided.\n2.  If you have requested or received PLHA funds but have not expended the funds, please enter \"N/A\" or \"0\" in the above cells and describe in detail the current status of this activity and/or your plan in fulfilling this activity with the awarded funds.  Please include a timeframe as to when you plan to expend the funds. If applicable, please describe the targeted beneficiaries of your project including services to be provided.\n3.  If you expended PLHA funds that were received during the last reporting period, please enter the data as requested above.  For example, even though you have not requested funds during this reporting period, you expended funds that were previously disbursed to you.  Please provide a clarification.  "]
[]
[null,"Additional Comments - Please complete this section if you plan or is in the process of making amendments to your 5-Year Plan, if you are encountering issues in completing your Activity, and/or if there are discrepancies that need to be clarified.\n1.  Please describe any proposed amendment(s) to the approved activities and schedule (pursuant to Guidelines Section 503(b)).\n2.  Please describe any issues or barriers you encountered such as in securing required entitlements, permits, zoning changes, and environmental clearances as applicable.\n3.  Please provide any additional information regarding this activity."]
[]
[null,"CUMULATIVE DATA - The information below is based ONLY on PLHA funded units and individuals served by PLHA funds for this Activity.  The total number of PLHA Funded Units or People Served amounts in this section reflect data from the execution of your contract to the current reporting period.  Annual Report will be returned if this section is left blank.\n1.  In order to complete this section, please refer to the Cumulative Data for Activity 10 from last year's Annual Report.\n2.  If an Annual Report was not required to be submitted in the last reporting period, please enter a zero for each of the yellow cell below.\n3.  If an Annual Report was submitted in the previous reporting period, please use that Annual Report to enter an amount in each yellow cell below by adding the amounts reported in the Total Prior to this Reporting Period AND Total for this Reporting Period that corresponds to each row.\n4.  If the data in the previous Annual Report was reported incorrectly, please provide the correct amounts below.  Please note that the amount requested in each yellow cell below reflects the total amount from the first time PLHA funds were used for the units and the people served to the previous year's reporting period.  PLHA funds used during this reporting period should ONLY be reported in the above sections.  In addition, please provide an explanation in the above Additional Comments section to explain the discrepancy between the data reported in this Annual Report and the previous Annual Report."]
[null,"PLHA FUNDED UNITS",null,null,null,null,"Total Prior to this Reporting Period","Total for this Reporting Period","Total Number \nof PLHA Funded Units to Date","PEOPLE SERVED",null,null,null,null,"Total Prior to this Reporting Period","Total for this Reporting Period","Total Number of\nPeople Served \nto Date"]
[null,"Number of Units Developed, Rehabilitated, or Preserved  ",null,null,null,null,null,{"$f":"F24","v":0},{"$f":"SUM(G31:H31)","v":0},"Number of Individuals Occupying Projects",null,null,null,null,null,{"$f":"O14","v":0},{"$f":"SUM(O31:P31)","v":0}]
[null,"Number of ADA Accessible Units Developed, Rehabilitated or Preserved",null,null,null,null,null,{"$f":"H24","v":0},{"$f":"SUM(G32:H32)","v":0},"Number of Households Occupying Projects",null,null,null,null,null,{"$f":"P14","v":0},{"$f":"SUM(O32:P32)","v":0}]
[null,"Number of Units Developed, Rehabilitated or Preserved for Formerly Homeless Individuals ",null,null,null,null,null,{"$f":"I24","v":0},0,"Number of Seniors (65 and older) Occupying Projects",null,null,null,null,null,{"$f":"Q14","v":0},0]
[null,"Number of Extremely Low- Income Units Developed, Rehabilitated or Preserved\n(Max 30% AMI)\n{Per Guidelines 101(n)}:",null,null,null,null,null,{"$f":"J24","v":0},0,"Number of Veterans Occupying Projects",null,null,null,null,null,{"$f":"R14","v":0},0]
[null,"Number of Very Low-Income Units Developed, Rehabilitated or Preserved\n(Max 50% AMI)\n{Per Guidelines 101(cc)}:",null,null,null,null,null,{"$f":"K24","v":0},0,"Number of Disabled Persons Occupying Projects",null,null,null,null,null,{"$f":"S14","v":0},0]
[null,"Total Number of Units at or below 60% AMI Developed, Rehabilitated or Preserved",null,null,null,null,null,{"$f":"L24","v":0},0,"Number of Families with Minor Children Occupying Projects",null,null,null,null,null,{"$f":"T14","v":0},0]
[null,"Number of Low(er)-Income Units Developed, Rehabilitated or Preserved (Max 80% AMI)\n{Per Guidelines 101(s)}:",null,null,null,null,null,{"$f":"M24","v":0},0,"Number of Transition-Aged Youth (ages 18-24) Occupying Projects",null,null,null,null,null,{"$f":"U14","v":0},0]
[null,"Number of Moderate-Income Units Developed, Rehabilitated or Preserved\n(Max 120% AMI, or if in High Cost Area 150%)\n{Per Guidelines 101(t)}:",null,null,null,null,null,{"$f":"N24","v":0},0,"Number of Farmworkers Occupying Projects",null,null,null,null,null,{"$f":"V14","v":0},0]

{"sheet":"Competitive Activity 1","index":14,"n_rows":54,"n_cols":21,"rows_kept":54,"cut":false,"hidden":true,"merged":[[35,13,35,15],[32,13,32,15],[33,13,33,15],[34,13,34,15],[32,1,32,3],[32,7,32,9],[33,7,33,9],[34,7,34,9],[35,7,35,9],[29,13,29,15],[30,13,30,15],[31,13,31,15],[29,1,29,3],[30,1,30,3],[31,1,31,3],[29,7,29,9],[30,7,30,9],[31,7,31,9],[27,13,27,15],[28,13,28,15],[28,1,28,3],[27,1,27,3],[27,7,27,9],[28,7,28,9],[26,1,26,12],[1,1,1,20],[0,1,0,20],[2,1,2,20],[3,18,3,19],[4,9,4,12],[4,1,4,8],[14,1,14,10],[14,11,14,15],[24,1,24,15],[4,13,4,20],[14,16,14,20],[25,1,25,15]]}
[null,"PERMANENT LOCAL HOUSING ALLOCATION (PLHA) FUND"]
[null,"Competitive Allocation Activity 1 Outcomes\n§401(a)(1) Development of new multifamily rental housing that is Affordable to households at or below 60% of AMI or substantial rehabilitation of multifamily rental housing that will be Affordable to households at or below 60% of AMI, but which is not currently restricted as Affordable housing."]
[null,"This tab captures Competitive Activity 1 outcomes and expenditures using PLHA funds during this reporting period (unless otherwise noted).  If PLHA funds have not been received and expended to operate the project during this reporting period, enter an \"N/A\" or a \"0\" in the yellow cells on the first row of each section and provide an explanation in the section provided below."]
[null,"Contract Number:",{"$f":"'1-Cover Sheet'!C8","v":"Select One"},"Total Amount of PLHA \nFunds Awarded",{"$f":"'1-Cover Sheet'!C80","v":0},"Total Amount of PLHA\nFunds Disbursed",{"$f":"'1-Cover Sheet'!C82","v":0},"Total Amount of Awarded\n PLHA Funds Not Yet\nDisbursed",{"$f":"IFERROR(E4-G4,0)","v":0},"% of PLHA Funds \nDisbursed ",{"$f":"IFERROR(G4/E4,0)","v":0},null,"Amount of PLHA Funds\n Expended on Activity",{"$f":"SUM(J14:M14)","v":0},"% of Activity Award Expended:",{"$f":"N4/E4","v":{"$error":"#DIV/0!"}},"Remaining Balance for Activity:",{"$f":"E4-N4","v":0},"% of Activity Funds Remaining:",null,{"$f":"R4/E4","v":{"$error":"#DIV/0!"}}]
[null,"General Project Information ",null,null,null,null,null,null,null,"Expenditure Breakdown - Please enter the amounts expended ONLY with PLHA funds.\n(Amount of PLHA funds expended should equate to the amount of PLHA funds received.  \nTotal amount may be less than the amount received if PLHA have not been fully expended) ",null,null,null,"Households or Individuals Served - Please enter the total number of households or individuals assisted with PLHA funds for each category.  \nNumber may be duplicated (example, a 65 year old veteran will be counted in the \"Seniors\" column and \"Veterans\" column)"]
[null,"Project \n(Project Name or Identifier)\n","Project Address\nStreet, City, Zip","Project County\n","Length of Affordability Restriction\n(in years), if applicable","Date of Affordability Covenant Expiration, if applicable","Total Cost of Project\n(includes PLHA and non-PLHA funds)","Developer Name","Is assistance offered as a Low Interest Deferred Loan? ","Amount of PLHA Funds Expended on Predevelopment","Amount of PLHA Funds Expended on New Construction/Development","Amount of PLHA Funds Expended on Acquisition","Amount of PLHA Funds Expended on Rehabilitation/Preservation","Total Number of Individuals to occupy project","Total Number of Households to occupy the project","Number of Seniors (65 and older) to occupy project","Number of Veterans to occupy project","Number of Disabled Persons to occupy project","Number of Families with Minor Children to occupy project","Number of Transition-Aged Youth (ages 18-24) to occupy project","Number of Farmworkers to occupy project"]
["Yes",null,null,"Select One",null,null,null,null,"Select One"]
["Yes",null,null,"Select One",null,null,null,null,"Select One"]
["Yes",null,null,"Select One",null,null,null,null,"Select One"]
["Yes",null,null,"Select One",null,null,null,null,"Select One"]
["Yes",null,null,"Select One",null,null,null,null,"Select One"]
["Yes",null,null,"Select One",null,null,null,null,"Select One"]
["Yes",null,null,"Select One",null,null,null,null,"Select One"]
[null,"Total:",null,null,null,null,null,null,null,{"$f":"SUM(J7:J13)","v":0},0,0,0,0,0,{"$f":"SUM(P7:P13)","v":0},0,0,0,0,0]
[null,"Unit Details - Please enter the total number of units assisted with PLHA funds for each category (unless otherwise noted).  ",null,null,null,null,null,null,null,null,null,"Project Status and Evidence of Compliance"]
[null,"Project","Total Number of Multifamily Rental Units in Project\n(includes PLHA and non-PLHA units) ","Total Number of Units Restricted to at or below 60% AMI in Project\n(includes only PLHA units)","Project Type","Type of Housing","Number of ADA Accessible Units Developed or Rehabilitated","Number of Units Developed or Rehabilitated for Formerly Homeless Individuals ","Number of Extremely Low- Income Units Developed or Rehabilitated\n(Max 30% AMI)\n{Per Guidelines 101(n)}:","Number of Very Low-Income Units Developed or Rehabilitated\n(Max 50% AMI)\n{Per Guidelines 101(cc)}:","Tax Credit Project","Project Status","Is Award Letter to Affordable Housing Project Attached?","Is Evidence that Rehabilitated Units were not restricted prior to rehabilitation attached?","Date of Project Completion \n(if applicable)","If Completed, is Certificate of Occupancy Attached?"]
[null,{"$f":"IF(B7=\"\",\"\",B7)","v":""},null,null,"Select One","Select One",null,null,null,null,"Select One","Select One","Select One","Select One",null,"Select One"]
[null,{"$f":"IF(B8=\"\",\"\",B8)","v":""},null,null,"Select One","Select One",null,null,null,null,"Select One","Select One","Select One","Select One",null,"Select One"]
[null,"",null,null,"Select One","Select One",null,null,null,null,"Select One","Select One","Select One","Select One",null,"Select One"]
[null,"",null,null,"Select One","Select One",null,null,null,null,"Select One","Select One","Select One","Select One",null,"Select One"]
[null,"",null,null,"Select One","Select One",null,null,null,null,"Select One","Select One","Select One","Select One",null,"Select One"]
[null,"",null,null,"Select One","Select One",null,null,null,null,"Select One","Select One","Select One","Select One",null,"Select One"]
[null,"",null,null,"Select One","Select One",null,null,null,null,"Select One","Select One","Select One","Select One",null,"Select One"]
[null,"Total:",{"$f":"SUM(C17:C23)","v":0},{"$f":"SUM(D17:D23)","v":0},null,null,{"$f":"SUM(G17:G23)","v":0},{"$f":"SUM(H17:H23)","v":0},{"$f":"SUM(I17:I23)","v":0},{"$f":"SUM(J17:J23)","v":0}]
[null,"Outcomes and Activity Expenditures - Please complete this section if PLHA funds HAVE NOT been requested and/or expended (if already disbursed) during this reporting period.  Annual Report will be returned if this section is left blank and there are no outcomes reported in the above sections.\n1.  If you have not requested PLHA funds for this activity, please enter \"N/A\" or \"0\" in the above cells and provide the anticipated timeframe in which you will request and expend funds.  Please be specific and describe the current status of this activity and/or your plan in fulfilling this activity with the awarded funds. If applicable, please describe the targeted beneficiaries of your project including services to be provided.\n2.  If you have requested or received PLHA funds but have not expended the funds, please enter \"N/A\" or \"0\" in the above cells and describe in detail the current status of this activity and/or your plan in fulfilling this activity with the awarded funds.  Please include a timeframe as to when you plan to expend the funds. If applicable, please describe the targeted beneficiaries of your project including services to be provided.\n3.  If you expended PLHA funds that were received during the last reporting period, please enter the data as requested above.  For example, even though you have not requested funds during this reporting period, you expended funds that were previously disbursed to you.  Please provide a clarification.  "]
[]
[null,"CUMULATIVE DATA - The information below is based ONLY on PLHA funded units and individuals served by PLHA funds for this Activity.  The total number of PLHA Funded Units or People Served amounts in this section reflect data from the execution of your contract to the current reporting period.  Annual Report will be returned if this section is left blank.\n1.  In order to complete this section, please refer to the Cumulative Data for Activity 10 from last year's Annual Report.\n2.  If an Annual Report was not required to be submitted in the last reporting period, please enter a zero for each of the yellow cell below.\n3.  If an Annual Report was submitted in the previous reporting period, please use that Annual Report to enter an amount in each yellow cell below by adding the amounts reported in the Total Prior to this Reporting Period AND Total for this Reporting Period that corresponds to each row.\n4.  If the data in the previous Annual Report was reported incorrectly, please provide the correct amounts below.  Please note that the amount requested in each yellow cell below reflects the total amount from the first time PLHA funds were used for the units and the people served to the previous year's reporting period.  PLHA funds used during this reporting period should ONLY be reported in the above sections.  In addition, please provide an explanation in the above Additional Comments section to explain the discrepancy between the data reported in this Annual Report and the previous Annual Report."]
[null,"PLHA FUNDED UNITS",null,null,"Total prior to this reporting period","Total for this reporting period","Total Number of PLHA \nFunded Units to Date","PEOPLE SERVED",null,null,"Total prior to this reporting period","Total for this reporting period","Total Number of People Served to Date"]
[null,"Total Number of Units at or below 60% AMI Developed, Rehabilitated or Preserved",null,null,null,{"$f":"D24","v":0},{"$f":"SUM(E29:F29)","v":0},"Number of Individuals Occupying Projects",null,null,null,{"$f":"N14","v":0},{"$f":"SUM(K29:L29)","v":0}]
[null,"Number of ADA Accessible Units Developed, Rehabilitated or Preserved",null,null,null,{"$f":"G24","v":0},{"$f":"SUM(E30:F30)","v":0},"Number of Households Occupying Projects",null,null,null,{"$f":"O14","v":0},{"$f":"SUM(K30:L30)","v":0}]
[null,"Number of Units Developed, Rehabilitated or Preserved for Formerly Homeless Individuals ",null,null,null,{"$f":"H24","v":0},0,"Number of Seniors (65 and older) Occupying Projects",null,null,null,{"$f":"P14","v":0},0]
[null,"Number of Extremely Low- Income Units Developed, Rehabilitated or Preserved\n(Max 30% AMI)\n{Per Guidelines 101(n)}:",null,null,null,{"$f":"I24","v":0},{"$f":"SUM(E32:F32)","v":0},"Number of Veterans Occupying Projects",null,null,null,{"$f":"Q14","v":0},0]
[null,"Number of Very Low-Income Units Developed, Rehabilitated or Preserved\n(Max 50% AMI)\n{Per Guidelines 101(cc)}:",null,null,null,{"$f":"J24","v":0},0,"Number of Disabled Persons Occupying Projects",null,null,null,{"$f":"R14","v":0},0]
[null,null,null,null,null,null,null,"Number of Families with Minor Children Occupying Projects",null,null,null,{"$f":"S14","v":0},0]
[null,null,null,null,null,null,null,"Number of Transition-Aged Youth (ages 18-24) Occupying Projects",null,null,null,{"$f":"T14","v":0},0]
[null,null,null,null,null,null,null,"Number of Farmworkers Occupying Projects",null,null,null,{"$f":"U14","v":0},0]
[]
[]
[]
[]
[]
[]
[]
[]
[]
[]
[null,"Project",null,null,null,null,null,"Total Spent","Project Status","Completion Date"]
[null,{"$f":"B7","v":0}]
[null,{"$f":"B8","v":0}]
[null,0]
[null,0]
[null,0]
[null,0]
[null,0]

{"sheet":"Competitive Activity 2","index":15,"n_rows":51,"n_cols":21,"rows_kept":51,"cut":false,"hidden":true,"merged":[[29,1,29,2],[30,1,30,2],[31,1,31,2],[32,1,32,2],[33,1,33,2],[14,1,14,13],[24,1,24,10],[24,11,24,13],[15,1,15,2],[19,1,19,2],[20,1,20,2],[21,1,21,2],[16,1,16,2],[17,1,17,2],[22,1,22,2],[23,1,23,2],[25,1,25,2],[26,1,26,2],[18,1,18,2],[27,1,27,2],[28,1,28,2],[41,1,41,5],[41,9,41,13],[42,1,42,5],[42,9,42,13],[43,1,43,5],[43,9,43,13],[38,1,38,16],[39,1,39,5],[39,9,39,13],[40,1,40,5],[40,9,40,13],[50,9,50,13],[44,1,44,5],[44,9,44,13],[45,1,45,5],[45,9,45,13],[46,1,46,5],[46,9,46,13],[47,9,47,13],[48,9,48,13],[49,9,49,13],[33,12,33,13],[34,1,34,16],[35,1,35,16],[36,1,36,16],[37,1,37,16],[10,1,10,2],[10,3,10,4],[10,5,10,6],[10,20,10,21],[13,20,13,21],[11,1,11,2],[11,3,11,4],[11,5,11,6],[11,20,11,21],[12,1,12,2],[12,3,12,4],[12,5,12,6],[12,20,12,21],[13,1,13,2],[8,20,8,21],[9,1,9,2],[9,3,9,4],[9,5,9,6],[9,20,9,21],[5,1,5,2],[5,3,5,4],[5,5,5,6],[5,20,5,21],[6,1,6,2],[6,3,6,4],[6,5,6,6],[6,20,6,21],[5,10,13,10],[7,1,7,2],[7,3,7,4],[7,5,7,6],[7,20,7,21],[8,1,8,2],[8,3,8,4],[8,5,8,6],[0,1,0,21],[1,1,1,21],[2,1,2,21],[4,1,4,9],[4,10,4,21],[3,17,3,18],[3,20,3,21]]}
[null,"PERMANENT LOCAL HOUSING ALLOCATION (PLHA) FUND"]
[null,"Competitive Allocation Activity 2 Outcomes\n§401(a)(2) Assisting persons who are experiencing or At risk of homelessness, including, but not limited to, through rapid rehousing, or rental assistance, supportive services and case management services that allow people to obtain and retain housing, operating and capital costs for navigation centers, or new construction, rehabilitation, or preservation of permanent or transitional rental housing."]
[null,"This tab captures Competitive Activity 2 outcomes and expenditures using PLHA funds during this reporting period (unless otherwise noted).  If PLHA funds have not been received and expended to operate the project during this reporting period, enter an \"N/A\" or a \"0\" in the yellow cells on the first row of each section and provide an explanation in the sections provided below."]
[null,"Contract Number",{"$f":"'1-Cover Sheet'!C8","v":"Select One"},"Total Amount of PLHA\nFunds Awarded ",{"$f":"'1-Cover Sheet'!C80","v":0},"Total Amount of PLHA\nFunds Disbursed ",{"$f":"'1-Cover Sheet'!C82","v":0},"Total Amount of Awarded\n PLHA Funds Not Yet\nDisbursed",{"$f":"IFERROR(E4-G4,0)","v":0},"% of PLHA Funds \nDisbursed ",{"$f":"IFERROR(G4/E4,0)","v":0},"Amount of PLHA Funds\n Expended on Activity",{"$f":"U14","v":0},"% of Activity Award Expended:",{"$f":"M4/E4","v":{"$error":"#DIV/0!"}},"Remaining Balance for Activity:",{"$f":"E4-M4","v":0},"% of Activity Funds Remaining:",null,{"$f":"Q4/E4","v":{"$error":"#DIV/0!"}}]
[null,"General Project Information",null,null,null,null,null,null,null,null,"Expenditure Breakdown - Please enter the amounts expended ONLY with PLHA funds.\n(Total amount expended should equate to the amount of PLHA funds received.  \nTotal amount may be less than the amount received if PLHA have not been fully expended) "]
[null,"Project \n(Project Name or Identifier)",null,"Project Address\nStreet, City, Zip",null,"Project County\n",null,"Length of Affordability Restriction\n(in years), if applicable","Date of Affordability Covenant Expiration, if applicable","Total Cost of Project\n(includes PLHA and non-PLHA funds)",null,"Amount of PLHA Funds Expended on Rapid Re-Housing","Amount of PLHA Funds Expended on Rental Assistance","Amount of PLHA Funds Expended On Supportive/Case Management","Amount of PLHA Funds Expended on Operating and Capital Costs for Navigation Centers","Amount of PLHA Funds Expended on New Construction of Permanent Housing","Amount of PLHA Funds Expended on New Construction of Transitional Housing","Amount of PLHA Funds Expended on Rehabilitation and/or Preservation of Permanent Housing","Amount of PLHA Funds Expended on Rehabilitation and/or Preservation of Transitional Housing","Amount of PLHA Funds Expended on Other eligible activities\n(please describe in additional comments)","Total Amount of PLHA Funds Expended"]
["Yes",null,null,null,null,"Select One",null,null,null,null,null,null,null,null,null,null,null,null,null,null,{"$f":"SUM(L7:T7)","v":0}]
["Yes",null,null,null,null,"Select One",null,null,null,null,null,null,null,null,null,null,null,null,null,null,{"$f":"SUM(L8:T8)","v":0}]
["Yes",null,null,null,null,"Select One",null,null,null,null,null,null,null,null,null,null,null,null,null,null,0]
["Yes",null,null,null,null,"Select One",null,null,null,null,null,null,null,null,null,null,null,null,null,null,0]
["Yes",null,null,null,null,"Select One",null,null,null,null,null,null,null,null,null,null,null,null,null,null,0]
["Yes",null,null,null,null,"Select One",null,null,null,null,null,null,null,null,null,null,null,null,null,null,0]
["Yes",null,null,null,null,"Select One",null,null,null,null,null,null,null,null,null,null,null,null,null,null,0]
[null,"Total:",null,null,null,null,null,null,null,null,null,{"$f":"SUM(L7:L13)","v":0},0,0,0,0,0,0,0,0,{"$f":"SUM(L14:T14)","v":0}]
[null,"Households or Individuals Served - Please enter the total number of households or individuals assisted with PLHA funds for each category.  \nNumber may be duplicated (example, a 65 year old veteran will be counted in the \"Seniors\" column and \"Veterans\" column)"]
[null,"Project \n(Project Name or Identifier)",null,"Number of Individuals assisted by Rapid Rehousing","Number of Individuals assisted by Rental Assistance","Number of Individuals assisted by Supportive/Case Management","Total Number of Unduplicated Individuals assisted by project","Number of Individuals to Occupy Newly Constructed or Rehabilitated Permanent Housing","Number of Individuals to Occupy Newly Constructed or Rehabilitated Transitional Housing","Number of Seniors Assisted (65 and older)","Number of Veterans Assisted","Number of Disabled Persons Assisted","Number of Families with Minor Children Assisted","Number of Transition-Aged Youth (18-24) Assisted"]
[null,{"$f":"IF(B7=\"\",\"\",B7)","v":""}]
[null,""]
[null,""]
[null,""]
[null,""]
[null,""]
[null,""]
[null,"Total",null,{"$f":"SUM(D17:D23)","v":0},0,0,0,{"$f":"SUM(H17:H23)","v":0},0,0,0,0,0,{"$f":"SUM(N17:N23)","v":0}]
[null,"Unit Details - Please enter the total number of units assisted with PLHA funds for each category.  ",null,null,null,null,null,null,null,null,null,"Project Status and Evidence of Compliance"]
[null,"Project \n(Project Name or Identifier)",null,"Number of Housing Units Receiving Rapid-Rehousing Assistance","Number of Housing Units Receiving Rental Assistance","Number of Housing Units Receiving Supportive/Case Management Services","Number of Housing Units Receiving Operating or Capital subsidy ","Number of Permanent Units Developed, Rehabilitated or Preserved","Number of Transitional Units Developed, Rehabilitated or Preserved","Total number of unduplicated Units Developed, Rehabilitated or Preserved","Type of Housing Developed, Rehabilitated, or Preserved","Project Status","If Completed, is Certificate of Occupancy Attached?","Completion Date (if applicable) "]
[null,{"$f":"IF(B7=\"\",\"\",B7)","v":""},null,null,null,null,null,null,null,null,"Select One","Select One","Select One"]
[null,"",null,null,null,null,null,null,null,null,"Select One","Select One","Select One"]
[null,"",null,null,null,null,null,null,null,null,"Select One","Select One","Select One"]
[null,"",null,null,null,null,null,null,null,null,"Select One","Select One","Select One"]
[null,"",null,null,null,null,null,null,null,null,"Select One","Select One","Select One"]
[null,"",null,null,null,null,null,null,null,null,"Select One","Acquired","Select One"]
[null,"",null,null,null,null,null,null,null,null,"Select One","Select One","Select One"]
[null,"Total",null,{"$f":"SUM(D27:D33)","v":0},{"$f":"SUM(E27:E33)","v":0},{"$f":"SUM(F27:F33)","v":0},0,{"$f":"SUM(H27:H33)","v":0},0,0]
[null,"Explain how you are providing services consistent with the Housing First Practices per 25 CCR, Sec. 8409, Subdivision (b)(1)-(6) and in compliance with WIC, Sec. 8255(b)(8)\nPlease complete this section if PLHA funds have been requested and/or expended during this reporting period.  Enter an \"N/A\" if PLHA funds have not been requested.  Annual Report will be returned if this section is left blank and there are outcomes reported in the above sections.  "]
[]
[null,"Outcomes and Activity Expenditures - Please complete this section if PLHA funds HAVE NOT been requested and/or expended (if already disbursed) during this reporting period.  Annual Report will be returned if this section is left blank and there are no outcomes reported in the above sections.\n1.  If you have not requested PLHA funds for this activity, please enter \"N/A\" or \"0\" in the above cells and provide the anticipated timeframe in which you will request and expend funds.  Please be specific and describe the current status of this activity and/or your plan in fulfilling this activity with the awarded funds. If applicable, please describe the targeted beneficiaries of your project including services to be provided.\n2.  If you have requested or received PLHA funds but have not expended the funds, please enter \"N/A\" or \"0\" in the above cells and describe in detail the current status of this activity and/or your plan in fulfilling this activity with the awarded funds.  Please include a timeframe as to when you plan to expend the funds. If applicable, please describe the targeted beneficiaries of your project including services to be provided.\n3.  If you expended PLHA funds that were received during the last reporting period, please enter the data as requested above.  For example, even though you have not requested funds during this reporting period, you expended funds that were previously disbursed to you.  Please provide a clarification.  "]
[]
[null,"CUMULATIVE DATA - The information below is based ONLY on PLHA funded units and individuals served by PLHA funds for this Activity.  The Total Number of PLHA Funded Units or People Served amounts in this section reflect data from the execution of your contract to the current reporting period.  Annual Report will be returned if this section is left blank.\n1.  In order to complete this section, please refer to the Cumulative Data for Competitive Activity 2 from last year's Annual Report.\n2.  If an Annual Report was not required to be submitted in the last reporting period, please enter a zero for each of the yellow cell below.\n3.  If an Annual Report was submitted in the previous reporting period, please use that Annual Report to enter an amount in each yellow cell below by adding the amounts reported in the Total Prior to this Reporting Period AND Total for this Reporting Period that corresponds to each row.\n4.  If the data in the previous Annual Report was reported incorrectly, please provide the correct amounts below.  Please note that the amount requested in each yellow cell below reflects the total amount from the first time PLHA funds were used for the units and the people served to the previous year's reporting period.  PLHA funds used during this reporting period should ONLY be reported in the above sections.  In addition, please provide an explanation in the above Additional Comments section to explain the discrepancy between the data reported in this Annual Report and the previous Annual Report."]
[null,"PLHA FUNDED UNITS",null,null,null,null,"Total Prior to this Reporting Period","Total for this Reporting Period","Total Number \nof PLHA Funded Units to Date","PEOPLE SERVED",null,null,null,null,"Total Prior to this Reporting Period","Total for this Reporting Period","Total Number of\nPeople Served \nto Date"]
[null,"Number of Housing Units Assisted",null,null,null,null,null,{"$f":"J34","v":0},{"$f":"SUM(G41:H41)","v":0},"Total Unduplicated persons assisted by project",null,null,null,null,null,{"$f":"G24","v":0},{"$f":"SUM(O41:P41)","v":0}]
[null,"Number of Housing Units Receiving Rapid-Rehousing Assistance",null,null,null,null,null,{"$f":"D34","v":0},{"$f":"SUM(G42:H42)","v":0},"Number of Persons Assisted by Rapid Rehousing",null,null,null,null,null,{"$f":"D24","v":0},{"$f":"SUM(O42:P42)","v":0}]
[null,"Number of Housing Units Receiving Rental Assistance",null,null,null,null,null,{"$f":"E34","v":0},0,"Number of Persons Assisted by Rental Assistance",null,null,null,null,null,{"$f":"E24","v":0},0]
[null,"Number of Housing Units Receiving Supportive/Case Management Services",null,null,null,null,null,{"$f":"F34","v":0},0,"Number of Persons Assisted by Supportive/Case Management",null,null,null,null,null,{"$f":"F24","v":0},0]
[null,"Number of Housing Units Receiving Operating or Capital subsidy \n\n",null,null,null,null,null,{"$f":"G34","v":0},0,"Number of Seniors Assisted (65 and older)",null,null,null,null,null,{"$f":"J24","v":0},0]
[null,"Number of Permanent Units Developed, Rehabilitated or Preserved\n",null,null,null,null,null,{"$f":"H34","v":0},0,"Number of Individuals to Occupy Newly Constructed or Rehabilitated Permanent Housing",null,null,null,null,null,{"$f":"H24","v":0},0]
[null,"Number of Transitional Units Developed, Rehabilitated or Preserved\n\n",null,null,null,null,null,{"$f":"I34","v":0},0,"Number of Individuals to Occupy Newly Constructed or Rehabilitated Transitional Housing",null,null,null,null,null,{"$f":"I24","v":0},0]
[null,null,null,null,null,null,null,null,null,"Number of Veterans Assisted",null,null,null,null,null,{"$f":"K24","v":0},{"$f":"SUM(O48:P48)","v":0}]
[null,null,null,null,null,null,null,null,null,"Number of Disabled Persons Assisted",null,null,null,null,null,{"$f":"L24","v":0},{"$f":"SUM(O49:P49)","v":0}]
[null,null,null,null,null,null,null,null,null,"Number of Families with Minor Children Assisted",null,null,null,null,null,{"$f":"M24","v":0},{"$f":"SUM(O50:P50)","v":0}]
[null,null,null,null,null,null,null,null,null,"Number of Transition-Aged Youth (18-24) Assisted",null,null,null,null,null,{"$f":"N24","v":0},{"$f":"SUM(O51:P51)","v":0}]

{"sheet":"Certification","index":16,"n_rows":13,"n_cols":7,"rows_kept":13,"cut":false,"hidden":false,"merged":[[13,0,13,3],[12,4,12,7],[13,4,13,7],[7,4,7,7],[10,4,10,7],[11,4,11,7],[8,4,8,7],[9,2,9,3],[11,0,11,3],[8,0,8,3],[9,0,9,1],[12,0,12,3],[7,0,7,3],[10,0,10,3],[0,2,0,4],[3,0,3,7],[0,6,0,7],[1,2,1,7],[2,0,2,7],[0,0,0,1],[1,0,1,1],[6,4,6,7],[6,0,6,3],[4,0,4,1],[4,2,4,3],[5,0,5,3],[5,4,5,7]]}
["Grantee Name:",null,{"$f":"'1-Cover Sheet'!F8","v":"Select One"},null,null,"HCD Grant Number:",{"$f":"'1-Cover Sheet'!C8","v":"Select One"}]
["Reporting Period:",null,{"$f":"'1-Cover Sheet'!F10","v":"July 1, 2024- June 30, 2025, Due July 31, 2025"}]
["CERTIFICATION"]
["***By signing this request, I certify to the best of my knowledge and belief that the request is true, complete, and accurate, and the expenditures, disbursements and cash receipts will be  for the purposes and objectives set forth in the terms and conditions of the State award. I am aware that any false, fictitious, or fraudulent information, or the omission of any material fact, may subject me to criminal, civil or administrative penalties for fraud, false statements, false claims or otherwise. (U.S. Code Title 18, Section 1001 and Title 31, Sections 3729-3730 and 3801-3812)\n\n*Please complete ALL the yellow cells in this tab.  Annual Report will be returned if this tab is not completed as requested or does not have BOTH signatures."]
["Signature Method: ",null,"Select One"]
["Printed Name of Authorized Executive Official \n(City Manager, CFO, CEO or designee per Guidelines 503(b))\n*If a designee is signing the Annual Report, a letter on official letterhead from the Authorized Executive Official identifying the name and title of the designee must accompany the report (if not previously submitted to SGM)  ",null,null,null,"Title of Authorized Executive Official"]
[]
["Signature of Authorized Executive Official",null,null,null,"Date"]
[]
["Signature Method: ",null,"Select One"]
["Printed Name of PLHA Administrator (per Guidelines 503(b))\n*The PLHA Administrator is someone authorized within the Local Government entity or Trust Fund that is overseeing PLHA activities and expenditures.",null,null,null,"Title of PLHA Administrator"]
[]
["Signature of PLHA Administrator  ",null,null,null,"Date"]

{"sheet":"Summary Sheet","index":17,"n_rows":37,"n_cols":21,"rows_kept":37,"cut":false,"hidden":true,"merged":[[33,18,33,19],[33,20,33,22],[42,3,42,4],[35,0,35,10],[34,0,34,10],[42,11,42,12],[38,1,38,2],[33,8,33,9],[37,3,37,4],[38,3,38,4],[27,10,27,11],[32,10,32,11],[29,10,29,11],[30,10,30,11],[31,10,31,11],[33,10,33,11],[33,6,33,7],[33,14,33,15],[33,16,33,17],[24,12,24,13],[25,6,25,7],[28,6,28,7],[24,6,24,7],[27,6,27,7],[40,5,40,7],[41,5,41,7],[32,6,32,7],[43,1,43,2],[39,1,39,2],[36,1,36,2],[40,1,40,2],[36,11,36,12],[40,11,40,12],[37,8,37,10],[38,8,38,10],[39,8,39,10],[40,8,40,10],[41,8,41,10],[39,11,39,12],[37,1,37,2],[42,5,42,7],[43,5,43,7],[36,3,36,4],[43,3,43,4],[42,1,42,2],[41,1,41,2],[39,3,39,4],[40,3,40,4],[41,3,41,4],[22,10,22,11],[8,0,9,2],[10,0,13,2],[8,3,8,8],[8,9,8,11],[14,0,14,2],[16,0,16,2],[19,10,19,11],[36,5,36,7],[36,8,36,10],[37,5,37,7],[38,5,38,7],[39,5,39,7],[30,6,30,7],[23,10,23,11],[24,10,24,11],[25,10,25,11],[26,10,26,11],[22,12,22,13],[19,12,19,13],[11,6,11,8],[10,12,10,14],[21,12,21,13],[8,12,8,14],[10,9,10,11],[10,3,10,5],[10,6,10,8],[15,5,15,14],[13,13,13,14],[9,3,9,8],[9,9,9,11],[22,8,22,9],[21,8,21,9],[20,8,20,9],[20,6,20,7],[21,6,21,7],[22,6,22,7],[9,12,9,14],[16,5,16,14],[14,3,14,4],[14,5,14,14],[16,3,16,4],[48,1,48,2],[49,1,49,2],[44,1,44,2],[46,1,46,2],[45,1,45,2],[47,1,47,2],[45,5,45,7],[46,5,46,7],[47,5,47,7],[48,5,48,7],[49,5,49,7],[44,5,44,7],[44,3,44,4],[45,3,45,4],[46,3,46,4],[47,3,47,4],[48,3,48,4],[49,3,49,4],[16,15,16,25],[17,15,17,25],[21,10,21,11],[15,0,15,2],[15,3,15,4],[11,15,11,25],[12,15,12,25],[13,15,13,25],[14,15,14,25],[20,12,20,13],[20,14,20,22],[21,14,21,22],[19,8,19,9],[19,6,19,7],[17,0,17,2],[17,3,17,4],[17,5,17,14],[12,3,12,8],[12,9,12,14],[13,3,13,8],[19,14,19,22],[15,15,15,25],[22,14,22,22],[23,14,23,22],[23,12,23,13],[18,0,18,22],[0,0,0,25],[1,0,2,25],[3,0,3,25],[4,0,4,24],[5,0,5,14],[5,15,5,25],[6,3,6,8],[6,9,6,11],[6,12,6,14],[6,0,7,2],[7,3,7,8],[7,9,7,11],[7,12,7,14],[6,15,6,25],[7,15,7,25],[11,3,11,5],[8,15,8,25],[9,15,9,25],[10,15,10,25],[20,10,20,11],[24,14,24,22],[25,14,25,22],[26,14,26,22],[27,14,27,22],[25,8,25,9],[24,8,24,9],[26,8,26,9],[36,13,36,15],[37,13,37,15],[32,8,32,9],[32,12,32,13],[32,14,32,22],[25,12,25,13],[27,8,27,9],[26,12,26,13],[27,12,27,13],[33,12,33,13],[28,10,28,11],[29,12,29,13],[30,12,30,13],[31,12,31,13],[29,8,29,9],[30,8,30,9],[31,8,31,9],[49,23,49,25],[45,11,45,12],[45,19,45,22],[45,23,45,25],[46,11,46,12],[46,19,46,22],[46,23,46,25],[47,11,47,12],[47,19,47,22],[47,23,47,25],[45,16,45,18],[46,16,46,18],[47,16,47,18],[48,16,48,18],[48,11,48,12],[48,19,48,22],[48,23,48,25],[49,16,49,18],[49,19,49,22],[42,23,42,25],[43,11,43,12],[43,19,43,22],[43,23,43,25],[44,11,44,12],[44,19,44,22],[44,23,44,25],[42,16,42,18],[43,16,43,18],[44,16,44,18],[44,13,44,15],[42,19,42,22],[40,23,40,25],[41,11,41,12],[41,19,41,22],[41,23,41,25],[39,16,39,18],[40,16,40,18],[41,16,41,18],[36,19,36,22],[36,23,36,25],[37,23,37,25],[37,19,37,22],[37,11,37,12],[38,11,38,12],[38,19,38,22],[38,23,38,25],[40,19,40,22],[39,23,39,25],[39,19,39,22],[36,16,36,18],[37,16,37,18],[38,16,38,18],[38,13,38,15],[49,8,49,10],[45,13,45,15],[46,13,46,15],[47,13,47,15],[48,13,48,15],[49,13,49,15],[49,11,49,12],[47,8,47,10],[48,8,48,10],[44,8,44,10],[45,8,45,10],[46,8,46,10],[11,9,11,11],[13,10,13,11],[26,6,26,7],[11,12,11,14],[23,8,23,9],[23,6,23,7],[39,13,39,15],[28,8,28,9],[28,12,28,13],[40,13,40,15],[41,13,41,15],[42,13,42,15],[43,13,43,15],[42,8,42,10],[43,8,43,10],[28,14,28,22],[29,6,29,7],[29,14,29,22],[30,14,30,22],[31,14,31,22],[31,6,31,7]]}
[]
["Permanent Local Housing Allocation (PLHA) "]
[]
["Review Workbook"]
["\n\n"]
["Section 1 - General Information -  Please complete all GREEN cells. Provide an explanation in the Comments section if a cell turns RED.",null,null,null,null,null,null,null,null,null,null,null,null,null,null,"Activity References"]
["Rep Information",null,null,"Reviewing Rep Name",null,null,null,null,null,"Review Start Date",null,null,"Review End Date",null,null,"Activity 1: §301(a)(1) The predevelopment, development, acquisition, rehabilitation, and preservation of multifamily, residential live-work, rental housing that is Affordable to Extremeley low, -Very low-, Low-, or Moderate income households, including necessary operating subsidies"]
[null,null,null,null,null,null,null,null,null,null,null,null,null,null,null,"Activity 2: §301(a)(2) The predevelopment, development, acquisition, rehabilitation, and preservation of Affordable rental and ownership Housing Including Accessory Dwelling Units (ADUs), that meets the needs of a growing workforce earning up to 120% of AMI, or 150% of AMI in high-cost areas. ADUs shall be available for occupancy for a term of no less than 30 days."]
["Manager Information",null,null,"Reviewing Manager Name",null,null,null,null,null,"Review Start Date",null,null,"Manager Approval Date",null,null,"Activity 3: §301(a)(3) Matching Portion of Funds placed into Local or Regional Housing Trust Funds"]
[null,null,null,null,null,null,null,null,null,null,null,null,null,null,null,"Activity 4: §301(a)(4) Matching portions of funds available through the Low- and Moderate-Income Housing Asset Fund pursuant to subdivision (d) of HSC Section 34176"]
["General Applicant Information",null,null,"Local Government Name",null,null,"Designated PLHA Administrator \n(if delegated by local govt.)",null,null,"Contract #",null,null,"Total PLHA Award Amount to date",null,null,"Activity 5: §301(a)(5) Capitalized Reserves for Services connected to the preservation and creation of new Permanent supportive housing."]
[null,null,null,{"$f":"'1-Cover Sheet'!F8","v":"Select One"},null,null,{"$f":"'1-Cover Sheet'!F9","v":0},null,null,{"$f":"'1-Cover Sheet'!C8","v":"Select One"},null,null,{"$f":"(SUM('1-Cover Sheet'!C70:G70))","v":0},null,null,"Activity 6: §301(a)(6) Assisting persons who are experiencing or At risk of homelessness, including, but not limited to, providing rapid rehousing, rental assistance, supportive/case management services that allow people to obtain and retain housing, operating and capital costs for navigation centers and emergency shelters, and the new construction, rehabilitation, and preservation of permanent and transitional housing."]
[null,null,null,"Preparer Name and Title",null,null,null,null,null,"Preparer Contact Information",null,null,null,null,null,"Activity 7: §301(a)(7) Accessibility modifications in Lower-income Owner-occupied housing."]
[null,null,null,{"$f":"_xlfn.CONCAT('1-Cover Sheet'!C9,\", \",'1-Cover Sheet'!C11)","v":", "},null,null,null,null,null,"Email:",{"$f":"'1-Cover Sheet'!C10","v":0},null,"Phone: ",{"$f":"'1-Cover Sheet'!C12","v":0},null,"Activity 8: §301(a)(8) Efforts to acquire and rehabilitate foreclosed or vacant homes and apartments."]
["General Review Questions:",null,null,"Response",null,"Comments",null,null,null,null,null,null,null,null,null,"Activity 9: §301(a)(9) Homeownership opportunities, including, but not limited to, down payment assistance"]
["Are all required fields (yellow cells) completed accurately? ",null,null,"Select One",null,null,null,null,null,null,null,null,null,null,null,"Activity 10: §301(a)(10) Fiscal incentives made by a county to a city within the county to incentivize approval of one or more Affordable housing Projects, or matching funds invested by a county in an Affordable housing development Project in a city within the county, provided that the city has made an equal or greater investment in the Project. The county fiscal incentives shall be in the form of a grant or low-interest loan to an affordable housing Project. Matching funds investments by both the county and the city also shall be a grant or low-interest deferred loan to the Affordable housing project."]
["Are there any cells or issues that are unresolved? ",null,null,"Select One",null,null,null,null,null,null,null,null,null,null,null,"Competitive Activity 1 : §401(a)(1) Development of new multifamily rental housing that is Affordable to households at or below 60% of AMI or substantial rehabilitation of multifamily rental housing that will be Affordable to households at or below 60% of AMI, but which is not currently restricted as Affordable housing."]
["Are there any concerns raised from grantee's responses to narrative questions? ",null,null,"Select One",null,null,null,null,null,null,null,null,null,null,null,"Competitive Activity 2 : §401(a)(2) Assistance to persons who are experiencing or At risk of homelessness, including, but not limited to, through rapid rehousing, or rental assistance, supportive services, and case management services, that allow people to obtain and retain housing, operating and capital costs for navigation centers, or new construction, rehabilitation, or preservation of permanent or transitional rental housing. "]
["Section 2 - Activity Outcomes - Please complete all GREEN cells. Provide an explanation in the Comments section if a cell turns RED."]
["Activity","Total Amount of PLHA Funds Awarded to Date\n(minus disencumbrance amount if any)","Total Amount of PLHA Funds Disbursed to Date","Total Amount of PLHA Funds Expended to Date \n\nComplete Disbursement Tracker with this year's reporting prior to entering the information below.","Total Amount of PLHA Funds Disbursed During This Reporting Period","Total Amount of PLHA Funds Expended During This Reporting Period","Amounts Disbursed and Expended Confirmed by RFFs and \nDisbursement Tracker? \n",null,"Number of Projects \nfor Each Activity",null,"Were There Any Ineligible Activities Performed with PLHA Funds?",null,"Was There Any Budget Revision Requested During this Reporting Period?\n\nIf Yes, please include the allocation year and Activity and/or amount change for the budget revision in the Comments section.",null,"Comments\nNote any issues and/or discrepancies between funds requested and expended, if there are budget revisions, \nor if exceptions were made for an Activity.  Refer to a specific Project Name if needed.\n\n"]
[1,{"$f":"SUM('1-Cover Sheet'!H15-'1-Cover Sheet'!H17)","v":0},{"$f":"'1-Cover Sheet'!H16","v":0},0,{"$f":"'Activity 1'!P4","v":0},{"$f":"'Activity 1'!R4","v":0},"Select One",null,{"$f":"COUNTA('Activity 1'!B7:B13)","v":0},null,"Select One",null,"Select One"]
[2,{"$f":"SUM('1-Cover Sheet'!H18-'1-Cover Sheet'!H23)","v":0},{"$f":"'1-Cover Sheet'!H20","v":0},0,{"$f":"'Activity 2'!P4","v":0},{"$f":"'Activity 2'!R4","v":0},"Select One",null,{"$f":"COUNTA('Activity 2'!B7:B13)","v":0},null,"Select One",null,"Select One"]
[3,{"$f":"SUM('1-Cover Sheet'!H24-'1-Cover Sheet'!H29)","v":0},{"$f":"'1-Cover Sheet'!H26","v":0},0,{"$f":"'Activity 3'!Q4","v":0},{"$f":"'Activity 3'!C5","v":0},"Select One",null,{"$f":"COUNTA('Activity 3'!B8:C14)","v":0},null,"Select One",null,"Select One"]
[4,{"$f":"SUM('1-Cover Sheet'!H30-'1-Cover Sheet'!H35)","v":0},{"$f":"'1-Cover Sheet'!H32","v":0},0,{"$f":"'Activity 4'!D5","v":0},{"$f":"'Activity 4'!F5","v":0},"Select One",null,{"$f":"COUNTA('Activity 4'!B8:C14)","v":0},null,"Select One",null,"Select One"]
[5,{"$f":"SUM('1-Cover Sheet'!H36-'1-Cover Sheet'!H38)","v":0},{"$f":"'1-Cover Sheet'!H37","v":0},0,{"$f":"'Activity 5'!P4","v":0},{"$f":"'Activity 5'!C5","v":0},"Select One",null,{"$f":"COUNTA('Activity 5'!B8:C14)","v":0},null,"Select One",null,"Select One"]
[6,{"$f":"SUM('1-Cover Sheet'!H39-'1-Cover Sheet'!H41)","v":0},{"$f":"'1-Cover Sheet'!H40","v":0},0,{"$f":"'Activity 6'!P4","v":0},{"$f":"'Activity 6'!R4","v":0},"Select One",null,{"$f":"COUNTA('Activity 6'!B7:C13)","v":0},null,"Select One",null,"Select One"]
[7,{"$f":"SUM('1-Cover Sheet'!H42-'1-Cover Sheet'!H47)","v":0},{"$f":"'1-Cover Sheet'!H44","v":0},0,{"$f":"'Activity 7'!P4","v":0},{"$f":"'Activity 7'!R4","v":0},"Select One",null,{"$f":"COUNTA('Activity 7'!B7:C13)","v":0},null,"Select One",null,"Select One"]
[8,{"$f":"SUM('1-Cover Sheet'!H48-'1-Cover Sheet'!H53)","v":0},{"$f":"'1-Cover Sheet'!H50","v":0},0,{"$f":"'Activity 8'!P4","v":0},{"$f":"'Activity 8'!R4","v":0},"Select One",null,{"$f":"COUNTA('Activity 8'!B7:C13)","v":0},null,"Select One",null,"Select One"]
[9,{"$f":"SUM('1-Cover Sheet'!H54-'1-Cover Sheet'!H59)","v":0},{"$f":"'1-Cover Sheet'!H56","v":0},0,{"$f":"'Activity 9'!P4","v":0},{"$f":"'Activity 9'!R4","v":0},"Select One",null,{"$f":"COUNTA('Activity 9'!B7:C13)","v":0},null,"Select One",null,"Select One"]
[10,{"$f":"SUM('1-Cover Sheet'!H60-'1-Cover Sheet'!H65)","v":0},{"$f":"'1-Cover Sheet'!H62","v":0},0,{"$f":"'Activity 10'!P4","v":0},{"$f":"'Activity 10'!R4","v":0},"Select One",null,{"$f":"COUNTA('Activity 10'!B7:C13)","v":0},null,"Select One",null,"Select One"]
["Competitive 1",{"$f":"'1-Cover Sheet'!C80","v":0},{"$f":"'1-Cover Sheet'!C82","v":0},0,null,null,"Select One",null,{"$f":"COUNTA('Competitive Activity 1'!B7:B13)","v":0},null,"Select One",null,"Select One"]
["Competitive 2",{"$f":"'1-Cover Sheet'!C80","v":0},{"$f":"'1-Cover Sheet'!C82","v":0},0,null,null,"Select One",null,{"$f":"COUNTA('Competitive Activity 2'!B7:B13)","v":0},null,"Select One",null,"Select One"]
["Administrative \nExpenses (Formula)",{"$f":"SUM('1-Cover Sheet'!H66-'1-Cover Sheet'!H68)","v":0},{"$f":"'1-Cover Sheet'!H67","v":0},0,{"$f":"'2-Narrative Summary'!C4","v":0},{"$f":"'2-Narrative Summary'!G4","v":0},"Select One",null,null,null,"Select One",null,"Select One"]
["Total:",{"$f":"SUM(B21:B33)","v":0},{"$f":"SUM(C21:C33)","v":0},{"$f":"SUM(D21:D33)","v":0},{"$f":"SUM(E21:E33)","v":0},0,"Total Amount of Activity Costs Disbursed During This Period (Formula)",null,{"$f":"SUM(E21:E32)","v":0},null,"Total Amount of Activity Costs Expended During This Period (Formula)",null,{"$f":"SUM(F21:F32)","v":0},null,"Total Amount of Admin Costs Disbursed During This Period (Formula)",null,{"$f":"E33","v":0},null,"Total Amount of Admin Costs Expended During This Period (Formula)",null,{"$f":"F33","v":0}]
["Section 3 (Optional) - Please use the section below to include comments or identify any additional issues for  this contract."]
["Rep and Manager Review Notes"]
["Date","Issue Identified",null,"Manager Response",null,"Action Taken",null,null,"Status \n(resolved, awaiting grantee response, \nawaiting manager input, etc)"]

{"sheet":"Grantee Data","index":18,"n_rows":2,"n_cols":793,"rows_kept":2,"cut":false,"hidden":true,"merged":[]}
["Contractor Name","Contract Number","Preparer Name","Preparer Title","Preparer Email","Reporting Period","Type of Allocation","Delegated Local Government OR Housing Trust Fund","HCD Rep Name","2019 Allocation Award","2020 Allocation Award","2021 Allocation Award","2022 Allocation Award","2023 Allocation Award","Total Amount Awarded for All Allocations (including Admin Costs)","2019 Admin Costs Award","2020 Admin Costs Award","2021 Admin Costs Award","2022 Admin Costs Award","2023 Admin Costs Award","Total Admin Costs Awarded","AOWH Allocated for 2019 Allocation","AOWH Allocated for 2020 Allocation","AOWH Allocated for 2021 Allocation","AOWH Allocated for 2022 Allocation","AOWH Allocated for 2023 Allocation","Total Amount Allocated for AOWH","AOWH Disbursed for 2019 Allocation","AOWH Disbursed for 2020 Allocation","AOWH Disbursed for 2021 Allocation","AOWH Disbursed for 2022 Allocation","AOWH Disbursed for 2023 Allocation","Total Amount Disbursed  for AOWH","Total Amount of PLHA Funds Disencumbered for 2019 Allocation","Total Amount of PLHA Funds Disencumbered for 2020 Allocation","Total Amount of PLHA Funds Disencumbered for 2021 Allocation","Total Amount of PLHA Funds Disencumbered for 2022 Allocation","Total Amount of PLHA Funds Disencumbered for 2023 Allocation","Total Amount of PLHA Funds Disencumbered","Total Amount of PLHA Funds Minus Disencumbered Amount for 2019 Allocation","Total Amount of PLHA Funds Minus Disencumbered Amount for 2020 Allocation","Total Amount of PLHA Funds Minus Disencumbered Amount for 2021 Allocation","Total Amount of PLHA Funds Minus Disencumbered Amount for 2022 Allocation","Total Amount of PLHA Funds Minus Disencumbered Amount for 2023 Allocation","Total Amount of PLHA Funds Minus Disencumbered Amount ","Activity Costs Disbursed\nDuring This Reporting Period","Activity Costs Expended \nDuring This Reporting Period","Admin Costs Disbursed\nDuring This Reporting Period","Admin Costs Expended \nDuring This Reporting Period","Program Income During \nthis Reporting Period ","# Households Assisted \nwith Reuse Revenue","Current Reuse \nRevenue Balance","Activity 1","Total Amount Awarded \nFunds for A1","2019 Award Allocated to A1","2019 Allocation Disbursed for A1","2020 Award Allocated to A1","2020 Allocation Disbursed for A1","2021 Award Allocated to A1","2021 Allocation Disbursed for A1","2022 Award Allocated to A1","2022 Allocation Disbursed for A1","2023 Award Allocated to A1","2023 Allocation Disbursed for A1","Activity 2","Total Amount Awarded \nFunds for A2","2019 Award Allocated to A2","2019 Allocation Disbursed for A2","2020 Award Allocated to A2","2020 Allocation Disbursed for A2","2021 Award Allocated to A2","2021 Allocation Disbursed for A2","2022 Award Allocated to A2","2022 Allocation Disbursed for A2","2023 Award Allocated to A2","2023 Allocation Disbursed for A2","Activity 3","Total Amount Awarded Funds for A3","2019 Award Allocated to A3","2019 Allocation Disbursed for A3","2020 Award Allocated to A3","2020 Allocation Disbursed for A3","2021 Award Allocated to A3","2021 Allocation Disbursed for A3","2022 Award Allocated to A3","2022 Allocation Disbursed for A3","2023 Award Allocated to A3","2023 Allocation Disbursed for A3","Activity 4","Total Amount Awarded Funds for  A4","2019 Award Allocated to A4","2019 Allocation Disbursed for A4","2020 Award Allocated to A4","2020 Allocation Disbursed for A4","2021 Award Allocated to A4","2021 Allocation Disbursed for A4","2022 Award Allocated to A4","2022 Allocation Disbursed for A4","2023 Award Allocated to A4","2023 Allocation Disbursed for A4","Activity 5","Total Amount Awarded Funds for A5","2019 Award Allocated to A5","2019 Allocation Disbursed for A5","2020 Award Allocated to A5","2020 Allocation Disbursed for A5","2021 Award Allocated to A5","2021 Allocation Disbursed for A5","2022 Award Allocated to A5","2022 Allocation Disbursed for A5","2023 Award Allocated to A5","2023 Allocation Disbursed for A5","Activity 6","Total Amount Awarded Funds for A6","2019 Award Allocated to A6","2019 Allocation Disbursed for A6","2020 Award Allocated to A6","2020 Allocation Disbursed for A6","2021 Award Allocated to A6","2021 Allocation Disbursed for A6","2022 Award Allocated to A6","2022 Allocation Disbursed for A6","2023 Award Allocated to A6","2023 Allocation Disbursed for A6","Activity 7","Total Amount Awarded Funds for A7","2019 Award Allocated to A7","2019 Allocation Disbursed for A7","2020 Award Allocated to A7","2020 Allocation Disbursed for A7","2021 Award Allocated to A7","2021 allocation Disbursed A7","2022 Award Allocated to A7","2022 Allocation Disbursed for A7","2023 Award Allocated to A7","2023 Allocation Disbursed for A7","Activity 8","Total Amount Awarded Funds for A8","2019 Award Allocated to A8","2019 Allocation Disbursed for A8","2020 Award Allocated to A8","2020 Allocation Disbursed for A8","2021 Award Allocated to A8","2021 Allocation Disbursed for A8","2022 Award Allocated to A8","2022 Allocation Disbursed for A8","2023 Award Allocated to A8","2023 Allocation Disbursed for A8","Activity 9","Total Amount Awarded Funds for A9","2019 Award Allocated to A9","2019 Allocation Disbursed for A9","2020 Award Allocated to A9","2020 Allocation Disbursed for A9","2021 Award Allocated to A9","2021 Allocation Disbursed for A9","2022 Award Allocated to A9","2022 Allocation Disbursed for A9","2023 Award Allocated to A9","2023 Allocation Disbursed for A9","Activity 10","Total Amount Awarded Funds for A10","2019 Award Allocated to A10","2019 Allocation Disbursed for A10","2020 Award Allocated to A10","2020 Allocation Disbursed for A10","2021 Award Allocated to A10","2021 Allocation Disbursed for A10","2022 Award Allocated to A10","2022 Allocation Disbursed for A10","2023 Award Allocated to A10","2023 Allocation Disbursed for A10","Competitive Award Year","Competitive Amount Awarded","Competitive Funds Disbursed?","Competitive Award \nAmount Disbursed","Competitive Admin Costs Expended","Competitive Activity 1","Competitive \nActivity 2","1. If awarded Admin Costs funds have not been requested or expended, provide a timeline to request or expend.  Provide the allocation year and the Activity if funds were allocated.","2. Please describe additional revenue generated from program funding in this reporting period and how revenue was generated (e.g. loan repayments, interest, fees). Please provide a description of how your estimate of households to be assisted was determined. ","4. Please share any success stories you've had from PLHA-funded projects","3. If your five-year plan includes any of the following activities:  2, 3, 4, 7, 8, 9, or 10, explain how you are targeting 20% of your allocation toward AOWH.  See Guidelines §303(e) \nIf AOWH is not applicable (e.g. if your plan only includes activities 1, 5, or 6), please enter \"N/A.\" ","A1. Number of Units Developed, Rehabilitated, or Preserved  (prior total)","A1. Number of ADA Accessible Units Developed, Rehabilitated or Preserved \n(prior total)","A1. Number of Units Developed, Rehabilitated or Preserved for Formerly Homeless Individuals (prior total)","A1. Number of Extremely Low- Income Units Developed, Rehabilitated or Preserved\n(Max 30% AMI) (prior total)","A1. Number of Very Low-Income Units Developed, Rehabilitated or Preserved\n(Max 50% AMI) (prior total)","A1. Total Number of Units at or below 60% AMI Developed, Rehabilitated or Preserved (prior total)","A1. Number of Low(er)-Income Units Developed, Rehabilitated or Preserved (Max 80% AMI) (prior total)","A1. Number of Moderate-Income Units Developed, Rehabilitated or Preserved\n(Max 120% AMI, or if in High Cost Area 150%) (prior total)","A1. Number of Units Developed, Rehabilitated, or Preserved (this period) ","A1. Number of ADA Accessible Units Developed, Rehabilitated or Preserved (this period) ","A1. Number of Units Developed, Rehabilitated or Preserved for Formerly Homeless Individuals (this period) ","A1. Number of Extremely Low- Income Units Developed, Rehabilitated or Preserved\n(Max 30% AMI) (this period) ","A1. Number of Very Low-Income Units Developed, Rehabilitated or Preserved (Max 50% AMI) (this period) ","A1. Total Number of Units at or below 60% AMI Developed, Rehabilitated or Preserved (this period) ","A1. Number of Low(er)-Income Units Developed, Rehabilitated or Preserved (Max 80% AMI) (this period) ","A1. Number of Moderate-Income Units Developed, Rehabilitated or Preserved\n(Max 120% AMI, or if in High Cost Area 150%) (this period) ","A1. Number of Individuals Occupying Projects (prior)","A1. Number of Households Occupying Projects (prior)","A1. Number of Seniors (65 and older) Occupying Projects (Prior)","A1. Number of Veterans Occupying Projects (prior)","A1. Number of Disabled Persons Occupying Projects (prior)","A1. Number of Families with Minor Children Occupying Projects (prior)","A1. Number of Transition-Aged Youth (ages 18-24) Occupying Projects (prior)","A1. Number of Farmworkers Occupying Projects (prior)","A1. Number of Individuals Occupying Projects (this period)","A1. Number of Households Occupying Projects(this period)","A1. Number of Seniors (65 and older) Occupying Projects (this period)","A1. Number of Veterans Occupying Projects(this period)","A1. Number of Disabled Persons Occupying Projects (this period)","A1. Number of Families with Minor Children Occupying Projects (this period)","A1. Number of Transition-Aged Youth (ages 18-24) Occupying Projects (this period)","A1. Number of Farmworkers Occupying Projects \n(this period)","Provide a timeline as to when awarded PLHA funds for Activity 1 will be requested and/or expended","Provide a description of amendments made or will be made to the 5-Year Plan and/or an explanation to issues encountered in completing  Activity 1","A2. Number of Units Developed, Rehabilitated, or Preserved (prior)","A2. Number of ADA Accessible Units Developed, Rehabilitated or Preserved (prior)","A2. Number of Units Developed, Rehabilitated or Preserved for Formerly Homeless Individuals (prior)","A2. Number of Extremely Low- Income Units Developed, Rehabilitated or Preserved\n(Max 30% AMI) (prior)","A2. Number of Very Low-Income Units Developed, Rehabilitated or Preserved\n(Max 50% AMI) (prior)","A2. Total Number of Units at or below 60% AMI Developed, Rehabilitated or Preserved (prior)","A2. Number of Low(er)-Income Units Developed, Rehabilitated or Preserved (Max 80% AMI) (prior)","A2. Number of Moderate-Income Units Developed, Rehabilitated or Preserved\n(Max 120% AMI, or if in High Cost Area 150%) (prior)","A2. Number of Units Developed, Rehabilitated, or Preserved \n(this period)","A2. Number of ADA Accessible Units Developed, Rehabilitated or Preserved (this period)","A2. Number of Units Developed, Rehabilitated or Preserved for Formerly Homeless Individuals (this period)","A2. Number of Extremely Low- Income Units Developed, Rehabilitated or Preserved\n(Max 30% AMI) (this period)","A2. Number of Very Low-Income Units Developed, Rehabilitated or Preserved\n(Max 50% AMI) (this period)","A2. Total Number of Units at or below 60% AMI Developed, Rehabilitated or Preserved(this period)","A2. Number of Low(er)-Income Units Developed, Rehabilitated or Preserved (Max 80% AMI) (this period)","A2. Number of Moderate-Income Units Developed, Rehabilitated or Preserved\n(Max 120% AMI, or if in High Cost Area 150%) (this period)","A2. Number of Individuals Occupying Projects (prior)","A2. Number of Households Occupying Projects (prior)","A2. Number of Seniors (65 and older) Occupying Projects (65 and older) Served (prior)","A2. NNumber of Veterans Occupying Projects (prior)","A2. Number of Disabled Persons Occupying Projects (prior)","A2.Number of Families with Minor Children Occupying Projects (prior)","A2. Number of Transition-Aged Youth (ages 18-24) Occupying Projects (prior)","A2. Number of Farmworkers Occupying Projects (prior)","A2. Number of Individuals Occupying Projects (this period)","A2. Number of Households Occupying Projects (this period)","A2. Number of Seniors (65 and older) Occupying Projects (this period)","A2. Number of Veterans Occupying Projects (this period)","A2. Number of Disabled Persons Occupying Projects (this period)","A2. Number of Families with Minor Children Occupying Projects (this period)","A2. Number of Transition-Aged Youth (ages 18-24) Occupying Projects (this period)","A2. Number of Farmworkers Occupying Projects (this period)","Provide a timeline as to when awarded PLHA funds for Activity 2 will be requested and/or expended","Provide a description of amendments made or will be made to the 5-Year Plan and/or an explanation to issues encountered in completing  Activity 2","A3. Total Number of Units for All Projects (prior)","A3. Total Number of Rental Units for All Projects (prior)","A3. Total Number of Ownership Units for All Projects (prior)","A3. Total Number of ADUs for All Projects (prior)","A3. Total Number of Units for All Projects (this period)","A3. Total Number of Rental Units for All Projects (this period)","A3. Total Number of Ownership Units for All Projects (this period)","A3. Total Number of ADUs for All Projects (this period)","A3. Total Number of Individuals Assisted (prior)","A3. Total Number of Individuals Assisted (this period)","Provide a timeline as to when awarded PLHA funds for Activity 3 will be requested and/or expended","Provide a description of amendments made or will be made to the 5-Year Plan and/or an explanation to issues encountered in completing  Activity 3","A4. Total Number of Units for All Projects (prior)","A4. Total Number of Rental Units for All Projects (prior)","A4. Total Number of Ownership Units for All Projects (prior)","A4. Total Number of Units for All Projects (this period)","A4. Total Number of Rental Units for All Projects (this period)","A4. Total Number of Ownership Units for All Projects (this period)","A4. Total Number of Individuals Assisted (prior)","A4. Total Number of Individuals Assisted (this period)","Provide a timeline as to when awarded PLHA funds for Activity 4 will be requested and/or expended","Provide a description of amendments made or will be made to the 5-Year Plan and/or an explanation to issues encountered in completing  Activity 4","A5. Number of Existing Permanent Supportive Housing Units Preserved  (prior)","A5. Number of New Permanent Supportive Units (prior)","A5. Number of Existing Permanent Supportive Housing Units Preserved  (this period)","A5. Number of New Permanent Supportive Units (this period)","A5. Number of Individuals Assisted (prior)","A5. Number of Individuals Assisted (this period)","Describe the Services provided by PLHA funds in relation to preservation and creation of Permanent Supportive Housing","Provide a timeline as to when awarded PLHA funds for Activity 5 will be requested and/or expended","Provide a description of amendments made or will be made to the 5-Year Plan and/or an explanation to issues encountered in completing  Activity 5","A6. SUB 1 AE Name ","A6. SUB 1 PLHA Award","A6. SUB 1 Prior Source","A6. SUB 1 HCD Contract","A6. SUB 2 AE Name","A6. SUB 2 PLHA Award","A6. SUB 2 Prior Source","A6. SUB2 HCD Contract","A6. SUB 3 AE Name","A6. SUB 3 PLHA Award","A6. SUB 3 Prior Source","A6. SUB 3 HCD Contract","A6. SUB 4 AE Name","A6. SUB 4 PLHA Award","A6. SUB 4 Prior Source","A6. SUB 4 HCD Contract","A6. Number of Units Developed, Rehabilitated, or Preserved (prior)","A6. Number of Housing Units Receiving Rapid-Rehousing Assistance (prior)","A6. Number of Housing Units Receiving Rental Assistance (prior)","A6. Number of Housing Units Receiving Supportive/Case Management Services (prior)","A6. Number of Housing Units Receiving Operating or Capital subsidy  (prior)","A6. Number of Emergency Shelter Beds Supported (prior)","A6. Number of Permanent Units Developed, Rehabilitated or Preserved (prior)","A6. Number of Transitional Units Developed, Rehabilitated or Preserved (prior)","A6. Number of Units Developed, Rehabilitated, or Preserved (this period)","A6. Number of Housing Units Receiving Rapid-Rehousing Assistance (this period)","A6. Number of Housing Units Receiving Rental Assistance (this period)","A6. Number of Housing Units Receiving Supportive/Case Management Services (this period)","A6. Number of Housing Units Receiving Operating or Capital subsidy  (this period)","A6. Number of Emergency Shelter Beds Supported (this period)","A6. Number of Permanent Units Developed, Rehabilitated or Preserved (this period)","A6. Number of Transitional Units Developed, Rehabilitated or Preserved (this period)","A6. Total Unduplicated Persons Assisted by Project (prior)","A6. Number of Persons Assisted by Rapid Rehousing (prior)","A6. Number of Persons Assisted by Rental Assistance (prior)","A6. Number of Persons Assisted by Supportive/Case Management (prior)","A6. Number of Individuals to Exit to Homelessness (prior)","A6. Number of Individuals to Occupy Newly Constructed or Rehabilitated Permanent Housing (prior)","A6. Number of Individuals to Occupy Newly Constructed or Rehabilitated Transitional Housing (prior)","A6. Number of Seniors Assisted (65 and older) (prior)","A6. Number of Veterans Assisted (prior)","A6. Number of Disabled Persons Assisted (prior)","A6. Number of Families with Minor Children Assisted (prior)","A6. Number of Transition-Aged Youth (18-24) Assisted (prior)","A6. Total Unduplicated Persons Assisted by Project (this period)","A6. Number of Persons Assisted by Rapid Rehousing (this period)","A6. Number of Persons Assisted by Rental Assistance (this period)","A6. Number of Persons Assisted by Supportive/Case Management (this period)","A6. Number of Individuals to Exit to Homelessness (this period)","A6. Number of Individuals to Occupy Newly Constructed or Rehabilitated Permanent Housing (this period)","A6. Number of Individuals to Occupy Newly Constructed or Rehabilitated Transitional Housing (this period)","A6. Number of Seniors Assisted (65 and older) (this period)","A6. Number of Veterans Assisted (this period)","A6. Number of Disabled Persons Assisted (this period)","A6. Number of Families with Minor Children Assisted (this period)","A6. Number of Transition-Aged Youth (18-24) Assisted (this period)","Explain how you are providing services consistent with the Housing First Practices","Provide a timeline as to when awarded PLHA funds for Activity 6 will be requested and/or expended","Provide a description of amendments made or will be made to the 5-Year Plan and/or an explanation to issues encountered in completing  Activity 6","A7. Number of Units Rehabilitated  (prior)","A7. Number of Extremely Low- Income Units Rehabilitated\n(Max 30% AMI) (prior)","A7. Number of Very Low-Income Units Rehabilitated\n(Max 50% AMI) (prior)","A7. Total Number of Units at or below 60% AMI Rehabilitated (prior)","A7. Number of Low(er)-Income Units Rehabilitated (Max 80%AMI) (prior)","A7. Number of Units Rehabilitated  (this period)","A7. Number of Extremely Low- Income Units Rehabilitated\n(Max 30% AMI) (this period)","A7. Number of Very Low-Income Units Rehabilitated\n(Max 50% AMI) (this period)","A7. Total Number of Units at or below 60% AMI Rehabilitated (this period)","A7. Number of Low(er)-Income Units Rehabilitated (Max 80%AMI) (this period)","A7. Number of Individuals Assisted (prior)","A7.  Number of Households Assisted (prior)","A7. Number of Seniors (65 and older) Assisted (prior)","A7. Number of Veterans Assisted (prior)","A7. Number of Disabled Persons Assisted (prior)","A7. Number of Families with Minor Children Assisted (prior)","A7. Number of Transition-Aged Youth (18-24) Assisted (prior)","A7. Number of Individuals Assisted (this period)","A7.  Number of Households Assisted (this period)","A7. Number of Seniors (65 and older) Assisted (this period)","A7. Number of Veterans Assisted (this period)","A7. Number of Disabled Persons Assisted(this period)","A7. Number of Families with Minor Children Assisted (this period)","A7. Number of Transition-Aged Youth (18-24) Assisted (this period)","Provide a timeline as to when awarded PLHA funds for Activity 7 will be requested and/or expended","Provide a description of amendments made or will be made to the 5-Year Plan and/or an explanation to issues encountered in completing  Activity 7","A8. Number of Units Acquired and Rehabilitated (prior)","A8. Number of ADA Accessible Units Acquired and Rehabilitated (prior)","A8. Number of Units Acquired and Rehabilitated for Formerly Homeless Individuals (prior)","A8. Number of Extremely Low- Income Units Acquired and Rehabilitated\n(Max 30% AMI) (prior)","A8. Number of Low-Income Units Acquired and Rehabilitated\n(Max 50% AMI) (prior)","A8. Total Number of Units at or below 60% AMI Acquired and Rehabilitated (prior)","A8. Number of Low(er)-Income Units Acquired and Rehabilitated (Max 80% AMI) (prior)","A8. Number of Moderate-Income Units Acquired and Rehabilitated\n(Max 120% AMI, or if in High Cost Area 150%) (prior)","A8. Number of Units Acquired and Rehabilitated (this period)","A8. Number of ADA Accessible Units Acquired and Rehabilitated (this period)","A8. Number of Units Acquired and Rehabilitated for Formerly Homeless Individuals (this period)","A8. Number of Extremely Low- Income Units Acquired and Rehabilitated\n(Max 30% AMI) (this period)","A8. Number of Low-Income Units Acquired and Rehabilitated\n(Max 50% AMI) (this period)","A8. Total Number of Units at or below 60% AMI Acquired and Rehabilitated (this period)","A8. Number of Low(er)-Income Units Acquired and Rehabilitated (Max 80% AMI) (this period)","A8. Number of Moderate-Income Units Acquired and Rehabilitated\n(Max 120% AMI, or if in High Cost Area 150%) (this period)","A8. Number of Individuals Occupying Projects (prior)","A8. Number of Households Occupying Projects (prior)","A8. Number of Seniors (65 and older) Occupying Projects (prior)","A8. Number of Veterans Occupying Projects (prior)","A8. Number of Disabled Persons Occupying Projects (prior)","A8. Number of Families with Minor Children Occupying Projects (prior)","A8. Number of Transition-Aged Youth (ages 18-24) Occupying Projects (prior)","A8. Number of Farmworkers Occupying Projects (prior)","A8. Number of Individuals Occupying Projects (this period)","A8. Number of Households Occupying Projects (this period)","A8. Number of Seniors (65 and older) Occupying Projects (this period)","A8. Number of Veterans Occupying Projects (this period)","A8. Number of Disabled Persons Occupying Projects (this period)","A8. Number of Families with Minor Children Occupying Projects (this period)","A8. Number of Transition-Aged Youth (ages 18-24) Occupying Projects (this period)","A8. Number of Farmworkers Occupying Projects (this period)","Provide a timeline as to when awarded PLHA funds for Activity 8 will be requested and/or expended","Provide a description of amendments made or will be made to the 5-Year Plan and/or an explanation to issues encountered in completing  Activity 8","A9. Number of Homeownership Units Assisted (prior)","A9. Number of Extremely Low- Income Households Assisted\n(Max 30% AMI) (prior)","A9. Number of Very Low-Income Households Assisted\n(Max 50% AMI) (prior)","A9. Total Number of Units at or below 60% AMI Assisted (prior)","A9. Number of Low(er)-Income Households Assisted (Max 80% AMI) (prior)","A9. Number of Moderate-Income Households Assisted\n(Max 120% AMI, or if in High Cost Area 150%) (prior)","A9. Number of Homeownership Units Assisted (this period)","A9. Number of Extremely Low- Income Households Assisted\n(Max 30% AMI) (this period)","A9. Number of Very Low-Income Households Assisted\n(Max 50% AMI) (this period)","A9. Total Number of Units at or below 60% AMI Assisted (this period)","A9. Number of Low(er)-Income Households Assisted (Max 80% AMI) (this period)","A9. Number of Moderate-Income Households Assisted\n(Max 120% AMI, or if in High Cost Area 150%) (this period)","A9. Number of Households Assisted (prior)","A9. Number of Individuals Assisted (prior)","A9. Number of Seniors (65 and older) Assisted (prior)","A9. Number of Veterans Assisted (prior)","A9. Number of Disabled Persons Assisted (prior)","A9. Number of Families with Minor Children Assisted (prior)","A9. Number of Transition-Aged Youth (ages 18-24) Assisted (prior)","A9. Number of Farmworkers Assisted (prior)","A9. Number of Households Assisted (this period)","A9. Number of Individuals Assisted (this period)","A9. Number of Seniors (65 and older) Assisted (this period)","A9. Number of Veterans Assisted (this period)","A9. Number of Disabled Persons Assisted (this period)","A9. Number of Families with Minor Children Assisted (this period)","A9. Number of Transition-Aged Youth (ages 18-24) Assisted (this period)","A9. Number of Farmworkers Assisted (this period)","Provide a timeline as to when awarded PLHA funds for Activity 9 will be requested and/or expended","Provide a description of amendments made or will be made to the 5-Year Plan and/or an explanation to issues encountered in completing  Activity 9","A10. Number of Units Developed, Rehabilitated, or Preserved (prior)","A10. Number of ADA Accessible Units Developed, Rehabilitated or Preserved (prior)","A10. Number of Units Developed, Rehabilitated or Preserved for Formerly Homeless Individuals (prior)","A10. Number of Extremely Low- Income Units Developed, Rehabilitated or Preserved\n(Max 30% AMI) (prior)","A10 Number of Very Low-Income Units Developed, Rehabilitated or Preserved\n(Max 50% AMI) (prior)","A10 Total Number of Units at or below 60% AMI Developed, Rehabilitated or Preserved (prior)","A10. Number of Low(er)-Income Units Developed, Rehabilitated or Preserved (Max 80% AMI) (prior)","A10. Number of Moderate-Income Units Developed, Rehabilitated or Preserved\n(Max 120% AMI, or if in High Cost Area 150%) (prior)","A10. Number of Units Developed, Rehabilitated, or Preserved (this period)","A10. Number of ADA Accessible Units Developed, Rehabilitated or Preserved (this period)","A10. Number of Units Developed, Rehabilitated or Preserved for Formerly Homeless Individuals (this period)","A10. Number of Extremely Low- Income Units Developed, Rehabilitated or Preserved\n(Max 30% AMI) (this period)","A10 Number of Very Low-Income Units Developed, Rehabilitated or Preserved\n(Max 50% AMI) (this period)","A10 Total Number of Units at or below 60% AMI Developed, Rehabilitated or Preserved (this period)","A10. Number of Low(er)-Income Units Developed, Rehabilitated or Preserved (Max 80% AMI) (this period)","A10. Number of Moderate-Income Units Developed, Rehabilitated or Preserved\n(Max 120% AMI, or if in High Cost Area 150%) (this period)","A10. Number of Individuals Occuping Projects (prior)","A10. Number of Households occupying the projects (prior)","A10. Number of Seniors (65 and older) Occupying Projects (prior)","A10. Number of Veterans Occupying Projects (prior)","A10. Number of Disabled Persons Occupying Projects (prior)","A10. Number of Families with Minor Children Occupying Projects (prior)","A10. Number of Transition-Aged Youth (ages 18-24) Occupying Projects (prior)","A10. Number of Farmworkers Occupying Projects (prior)","A10. Number of Individuals Occuping Projects (this period)","A10. Number of Households occupying the projects (this period)","A10. Number of Seniors (65 and older) Occupying Projects (this period)","A10. Number of Veterans Occupying Projects (this period)","A10. Number of Disabled Persons Occupying Projects (this period)","A10. Number of Families with Minor Children Occupying Projects (this period)","A10. Number of Transition-Aged Youth (ages 18-24) Occupying Projects (this period)","A10. Number of Farmworkers Occupying Projects (this period)","Provide a timeline as to when awarded PLHA funds for Activity 10 will be requested and/or expended","Provide a description of amendments made or will be made to the 5-Year Plan and/or an explanation to issues encountered in completing  Activity 10","CA1. Total Number of Units at or below 60% AMI Developed, Rehabilitated or Preserved (prior)","CA1. Number of ADA Accessible Units Developed, Rehabilitated or Preserved (prior)","CA1. Number of Units Developed, Rehabilitated or Preserved for Formerly Homeless Individuals (prior)","CA1. Number of Extremely Low- Income Units Developed, Rehabilitated or Preserved\n(Max 30% AMI) (prior)","CA1. Number of Very Low-Income Units Developed, Rehabilitated or Preserved\n(Max 50% AMI) (prior)","CA1. Total Number of Units at or below 60% AMI Developed, Rehabilitated or Preserved(this period)","CA1. Number of ADA Accessible Units Developed, Rehabilitated or Preserved (this period)","CA1. Number of Units Developed, Rehabilitated or Preserved for Formerly Homeless Individuals (this period)","CA1. Number of Extremely Low- Income Units Developed, Rehabilitated or Preserved\n(Max 30% AMI) (this period)","CA1. Number of Very Low-Income Units Developed, Rehabilitated or Preserved\n(Max 50% AMI) (this period)","CA1. Number of Individuals Occuping Projects (prior)","CA1. Number of Households occupying the projects (prior)","CA1. Number of Seniors (65 and older) Occupying Projects (prior)","CA1. Number of Veterans Occupying Projects (prior)","CA1. Number of Disabled Persons Occupying Projects (prior)","CA1. Number of Families with Minor Children Occupying Projects (prior)","CA1. Number of Transition-Aged Youth (ages 18-24) Occupying Projects (prior)","CA1. Number of Farmworkers Occupying Projects (prior)","CA1. Number of Individuals Occuping Projects (this period)","CA1. Number of Households occupying the projects (this period)","CA1. Number of Seniors (65 and older) Occupying Projects (this period)","CA1. Number of Veterans Occupying Projects (this period)","CA1. Number of Disabled Persons Occupying Projects (this period)","CA1. Number of Families with Minor Children Occupying Projects (this period)","CA1. Number of Transition-Aged Youth (ages 18-24) Occupying Projects (this period)","CA1. Number of Farmworkers Occupying Projects (this period)","Provide a timeline as to when awarded PLHA funds for Comp Act 1 will be requested and/or expended","CA2. Number of Housing Units Assisted (prior)","CA2. Number of Housing Units Receiving Rapid-Rehousing Assistance (prior)","CA2. Number of Housing Units Receiving Rental Assistance (prior)","CA2. Number of Housing Units Receiving Supportive/Case Management Services (prior)","CA2. Number of Units Receiving Operating or Capital subsidy (prior)","CA2. Number of Transitional Units Developed, Rehabilitated or Preserved (prior)","CA2. Number of Permanent Units Developed, Rehabilitated or Preserved (prior)","CA2. Number of Housing Units Assisted (this period)","CA2. Number of Housing Units Receiving Rapid-Rehousing Assistance (this period)","CA2. Number of Housing Units Receiving Rental Assistance (this period)","CA2. Number of Housing Units Receiving Supportive/Case Management Services (this period)","CA2. Number of Units Receiving Operating or Capital subsidy (this period)","CA2. Number of Transitional Units Developed, Rehabilitated or Preserved (this period)","CA2. Number of Permanent Units Developed, Rehabilitated or Preserved (this period)","CA2. Number of Persons assisted by Rapid Rehousing (prior)","CA2. Number of Persons assisted by Rental Assistance (prior)","CA2. Number of Persons assisted by Supportive/Case Management (prior)","CA2. Total Unduplicated persons assisted by project (prior)","CA2. Number of Individuals to Occupy Newly Constructed or Rehabilitated Transitional Housing (prior)","CA2. Number of Individuals to Occupy Newly Constructed or Rehabilitated Permanent Housing (prior)","CA2. Number of Seniors Assisted (65 and older) (prior)","CA2. Number of Veterans Assisted (prior)","CA2. Number of Disabled Persons Assisted (prior)","CA2. Number of Families with Minor Children Assisted (prior)","CA2. Number of Transition-Aged Youth (18-24) Assisted (prior)","CA2. Number of Persons assisted by Rapid Rehousing (this period)","CA2. Number of Persons assisted by Rental Assistance (this period)","CA2. Number of Persons assisted by Supportive/Case Management (this period)","CA2. Total Unduplicated persons assisted by project (this period)","CA2. Number of Individuals to Occupy Newly Constructed or Rehabilitated Transitional Housing (this period)","CA2. Number of Individuals to Occupy Newly Constructed or Rehabilitated Permanent Housing (this period)","CA2. Number of Seniors Assisted (65 and older) (this period)","CA2. Number of Veterans Assisted (this period)","CA2. Number of Disabled Persons Assisted (this period)","CA2. Number of Families with Minor Children Assisted (this period)","CA2. Number of Transition-Aged Youth (18-24) Assisted (this period)","Explain how you are providing services consistent with the Housing First Practices","Provide a timeline as to when awarded PLHA funds for Comp Act 1 will be requested and/or expended","A1 - 2019 Disencumbered","A1 - 2020 Disencumbered","A1 - 2021 Disencumbered","A1 - 2022 Disencumbered","A1 - 2023 Disencumbered","A1 - Total Disencumbered","A2 - 2019 Awarded Funds Allocated for AOWH","A2 - 2020 Awarded Funds Allocated for AOWH","A2 - 2021 Awarded Funds Allocated for AOWH","A2 - 2022 Awarded Funds Allocated for AOWH","A2 - 2023 Awarded Funds Allocated for AOWH","A2 - Total Awarded Funds Allocated for AOWH","A2 - 2019 Disbursed Funds Allocated for AOWH","A2 - 2020 Disbursed Funds Allocated for AOWH","A2 - 2021 Disbursed Funds Allocated for AOWH","A2 - 2022 Disbursed Funds Allocated for AOWH","A2 - 2023 Disbursed Funds Allocated for AOWH","A2 - Total Disbursed Funds Allocated for AOWH","A2 - 2019 Expended Funds Allocated for AOWH","A2 - 2020 Expended Funds Allocated for AOWH","A2 - 2021 Expended Funds Allocated for AOWH","A2 - 2022 Expended Funds Allocated for AOWH","A2 - 2023 Expended Funds Allocated for AOWH","A2 - Total Expended Funds Allocated for AOWH","A2 - 2019 Disencumbered","A2 - 2020 Disencumbered","A2 - 2021 Disencumbered","A2 - 2022 Disencumbered","A2 - 2023 Disencumbered","A2 - Total Disencumbered","A3 - 2019 Awarded Funds Allocated for AOWH","A3 - 2020 Awarded Funds Allocated for AOWH","A3 - 2021 Awarded Funds Allocated for AOWH","A3 - 2022 Awarded Funds Allocated for AOWH","A3 - 2023 Awarded Funds Allocated for AOWH","A3 - Total Awarded Funds Allocated for AOWH","A3 - 2019 Disbursed Funds Allocated for AOWH","A3 - 2020 Disbursed Funds Allocated for AOWH","A3 - 2021 Disbursed Funds Allocated for AOWH","A3 - 2022 Disbursed Funds Allocated for AOWH","A3 - 2023 Disbursed Funds Allocated for AOWH","A3 - Total Disbursed Funds Allocated for AOWH","A3 - 2019 Expended Funds Allocated for AOWH","A3 - 2020 Expended Funds Allocated for AOWH","A3 - 2021 Expended Funds Allocated for AOWH","A3 - 2022 Expended Funds Allocated for AOWH","A3 - 2023 Expended Funds Allocated for AOWH","A3 - Total Expended Funds Allocated for AOWH","A3 - 2019 Disencumbered","A3 - 2020 Disencumbered","A3 - 2021 Disencumbered","A3 - 2022 Disencumbered","A3 - 2023 Disencumbered","A3 - Total Disencumbered","A4 - 2019 Awarded Funds Allocated for AOWH","A4 - 2020 Awarded Funds Allocated for AOWH","A4 - 2021 Awarded Funds Allocated for AOWH","A4 - 2022 Awarded Funds Allocated for AOWH","A4 - 2023 Awarded Funds Allocated for AOWH","A4 - Total Awarded Funds Allocated for AOWH","A4 - 2019 Disbursed Funds Allocated for AOWH","A4 - 2020 Disbursed Funds Allocated for AOWH","A4 - 2021 Disbursed Funds Allocated for AOWH","A4 - 2022 Disbursed Funds Allocated for AOWH","A4 - 2023 Disbursed Funds Allocated for AOWH","A4 - Total Disbursed Funds Allocated for AOWH","A4 - 2019 Expended Funds Allocated for AOWH","A4 - 2020 Expended Funds Allocated for AOWH","A4 - 2021 Expended Funds Allocated for AOWH","A4 - 2022 Expended Funds Allocated for AOWH","A4 - 2023 Expended Funds Allocated for AOWH","A4 - Total Expended Funds Allocated for AOWH","A4 - 2019 Disencumbered","A4 - 2020 Disencumbered","A4 - 2021 Disencumbered","A4 - 2022 Disencumbered","A4 - 2023 Disencumbered","A4 - Total Disencumbered","A5 - 2019 Disencumbered","A5 - 2020 Disencumbered","A5 - 2021 Disencumbered","A5 - 2022 Disencumbered","A5 - 2023 Disencumbered","A5 - Total Disencumbered","A6 - 2019 Disencumbered","A6 - 2020 Disencumbered","A6 - 2021 Disencumbered","A6 - 2022 Disencumbered","A6 - 2023 Disencumbered","A6 - Total Disencumbered","A7 - 2019 Awarded Funds Allocated for AOWH","A7 - 2020 Awarded Funds Allocated for AOWH","A7 - 2021 Awarded Funds Allocated for AOWH","A7 - 2022 Awarded Funds Allocated for AOWH","A7 - 2023 Awarded Funds Allocated for AOWH","A7 - Total Awarded Funds Allocated for AOWH","A7 - 2019 Disbursed Funds Allocated for AOWH","A7 - 2020 Disbursed Funds Allocated for AOWH","A7 - 2021 Disbursed Funds Allocated for AOWH","A7 - 2022 Disbursed Funds Allocated for AOWH","A7 - 2023 Disbursed Funds Allocated for AOWH","A7 - Total Disbursed Funds Allocated for AOWH","A7 - 2019 Expended Funds Allocated for AOWH","A7 - 2020 Expended Funds Allocated for AOWH","A7 - 2021 Expended Funds Allocated for AOWH","A7 - 2022 Expended Funds Allocated for AOWH","A7 - 2023 Expended Funds Allocated for AOWH","A7 - Total Expended Funds Allocated for AOWH","A7 - 2019 Disencumbered","A7 - 2020 Disencumbered","A7 - 2021 Disencumbered","A7 - 2022 Disencumbered","A7 - 2023 Disencumbered","A7 - Total Disencumbered","A8 - 2019 Awarded Funds Allocated for AOWH","A8 - 2020 Awarded Funds Allocated for AOWH","A8 - 2021 Awarded Funds Allocated for AOWH","A8 - 2022 Awarded Funds Allocated for AOWH","A8 - 2023 Awarded Funds Allocated for AOWH","A8 - Total Awarded Funds Allocated for AOWH","A8 - 2019 Disbursed Funds Allocated for AOWH","A8 - 2020 Disbursed Funds Allocated for AOWH","A8 - 2021 Disbursed Funds Allocated for AOWH","A8 - 2022 Disbursed Funds Allocated for AOWH","A8 - 2023 Disbursed Funds Allocated for AOWH","A8 - Total Disbursed Funds Allocated for AOWH","A8 - 2019 Expended Funds Allocated for AOWH","A8 - 2020 Expended Funds Allocated for AOWH","A8 - 2021 Expended Funds Allocated for AOWH","A8 - 2022 Expended Funds Allocated for AOWH","A8 - 2023 Expended Funds Allocated for AOWH","A8 - Total Expended Funds Allocated for AOWH","A8 - 2019 Disencumbered","A8 - 2020 Disencumbered","A8 - 2021 Disencumbered","A8 - 2022 Disencumbered","A8 - 2023 Disencumbered","A8 - Total Disencumbered","A9 - 2019 Awarded Funds Allocated for AOWH","A9 - 2020 Awarded Funds Allocated for AOWH","A9 - 2021 Awarded Funds Allocated for AOWH","A9 - 2022 Awarded Funds Allocated for AOWH","A9 - 2023 Awarded Funds Allocated for AOWH","A9 - Total Awarded Funds Allocated for AOWH","A9 - 2019 Disbursed Funds Allocated for AOWH","A9 - 2020 Disbursed Funds Allocated for AOWH","A9 - 2021 Disbursed Funds Allocated for AOWH","A9 - 2022 Disbursed Funds Allocated for AOWH","A9 - 2023 Disbursed Funds Allocated for AOWH","A9 - Total Disbursed Funds Allocated for AOWH","A9 - 2019 Expended Funds Allocated for AOWH","A9 - 2020 Expended Funds Allocated for AOWH","A9 - 2021 Expended Funds Allocated for AOWH","A9 - 2022 Expended Funds Allocated for AOWH","A9 - 2023 Expended Funds Allocated for AOWH","A9 - Total Expended Funds Allocated for AOWH","A9 - 2019 Disencumbered","A9 - 2020 Disencumbered","A9 - 2021 Disencumbered","A9 - 2022 Disencumbered","A9 - 2023 Disencumbered","A9 - Total Disencumbered","A10 - 2019 Awarded Funds Allocated for AOWH","A10 - 2020 Awarded Funds Allocated for AOWH","A10  - 2021 Awarded Funds Allocated for AOWH","A10  - 2022 Awarded Funds Allocated for AOWH","A10  - 2023 Awarded Funds Allocated for AOWH","A10  - Total Awarded Funds Allocated for AOWH","A10 - 2019 Disbursed Funds Allocated for AOWH","A10 - 2020 Disbursed Funds Allocated for AOWH","A10  - 2021 Disbursed Funds Allocated for AOWH","A10  - 2022 Disbursed Funds Allocated for AOWH","A10  - 2023 Disbursed Funds Allocated for AOWH","A10 - Total Disbursed Funds Allocated for AOWH","A10  - 2019 Expended Funds Allocated for AOWH","A10  - 2020 Expended Funds Allocated for AOWH","A10  - 2021 Expended Funds Allocated for AOWH","A10 - 2022 Expended Funds Allocated for AOWH","A10 - 2023 Expended Funds Allocated for AOWH","A10  - Total Expended Funds Allocated for AOWH","A10  - 2019 Disencumbered","A10  - 2020 Disencumbered","A10 - 2021 Disencumbered","A10 - 2022 Disencumbered","A10 - 2023 Disencumbered","A10  - Total Disencumbered","A1 - Total Amount of PLHA Funds Expended to Date","A2 - Total Amount of PLHA Funds Expended to Date","A3 - Total Amount of PLHA Funds Expended to Date","A4 - Total Amount of PLHA Funds Expended to Date","A5 - Total Amount of PLHA Funds Expended to Date","A6 - Total Amount of PLHA Funds Expended to Date","A7 - Total Amount of PLHA Funds Expended to Date","A8 - Total Amount of PLHA Funds Expended to Date","A9 - Total Amount of PLHA Funds Expended to Date","A10 - Total Amount of PLHA Funds Expended to Date","C1 - Total Amount of PLHA Funds Expended to Date","C2 - Total Amount of PLHA Funds Expended to Date","Admin - Total Amount of PLHA Funds Expended to Date","Total Amount of PLHA Funds Expended to Date","A1 - Total Amount of PLHA Funds Awarded to Date (minus disencumbered amount)","A2 - Total Amount of PLHA Funds Awarded to Date (minus disencumbered amount)","A3 - Total Amount of PLHA Funds Awarded to Date (minus disencumbered amount)","A4 - Total Amount of PLHA Funds Awarded to Date (minus disencumbered amount)","A5 - Total Amount of PLHA Funds Awarded to Date (minus disencumbered amount)","A6 - Total Amount of PLHA Funds Awarded to Date (minus disencumbered amount)","A7 - Total Amount of PLHA Funds Awarded to Date (minus disencumbered amount)","A8 - Total Amount of PLHA Funds Awarded to Date (minus disencumbered amount)","A9 - Total Amount of PLHA Funds Awarded to Date (minus disencumbered amount)","A10 - Total Amount of PLHA Funds Awarded to Date (minus disencumbered amount)","C1 - Total Amount of PLHA Funds Awarded to Date (minus disencumbered amount)","C2 - Total Amount of PLHA Funds Awarded to Date (minus disencumbered amount)","Admin - Total Amount of PLHA Funds Awarded to Date (minus disencumbered amount)","Total Amount of PLHA Funds Awarded to Date ","A1 - Total Amount of PLHA Funds Disbursed to Date","A2 - Total Amount of PLHA Funds Disbursed to Date","A3 - Total Amount of PLHA Funds Disbursed to Date","A4 - Total Amount of PLHA Funds Disbursed to Date","A5 - Total Amount of PLHA Funds Disbursed to Date","A6 - Total Amount of PLHA Funds Disbursed to Date","A7 - Total Amount of PLHA Funds Disbursed to Date","A8 - Total Amount of PLHA Funds Disbursed to Date","A9 - Total Amount of PLHA Funds Disbursed to Date","A10 - Total Amount of PLHA Funds Disbursed to Date","C1 - Total Amount of PLHA Funds Disbursed to Date","C2 - Total Amount of PLHA Funds Disbursed to Date","Admin - Total Amount of PLHA Funds Disbursed to Date","Total Amount of PLHA Funds Disbursed to Date","A1 - Total Amount of PLHA Funds Expended this Period","A2 - Total Amount of PLHA Funds Expended this Period","A3 - Total Amount of PLHA Funds Expended this Period","A4 - Total Amount of PLHA Funds Expended this Period","A5 - Total Amount of PLHA Funds Expended this Period","A6 - Total Amount of PLHA Funds Expended this Period","A7 - Total Amount of PLHA Funds Expended this Period","A8 - Total Amount of PLHA Funds Expended this Period","A9 - Total Amount of PLHA Funds Expended this Period","A10 - Total Amount of PLHA Funds Expended this Period","C1 - Total Amount of PLHA Funds Expended this Period","C2 - Total Amount of PLHA Funds Expended this Period","Admin - Total Amount of PLHA Funds Expended this Period","Total Amount of PLHA Funds Expended this Period","A1 - Total Amount of PLHA Funds Disbursed this Period","A2 - Total Amount of PLHA Funds Disbursed this Period","A3 - Total Amount of PLHA Funds Disbursed this Period","A4 - Total Amount of PLHA Funds disbursed this Period","A5 - Total Amount of PLHA Funds Disbursed this Period","A6 - Total Amount of PLHA Funds Disbursed this Period","A7 - Total Amount of PLHA Funds Disbursed this Period","A8 - Total Amount of PLHA Funds Disbursed this Period","A9 - Total Amount of PLHA Funds Disbursed this Period","A10 - Total Amount of PLHA Funds Disbursed this Period","C1 - Total Amount of PLHA Funds Disbursed this Period","C2 - Total Amount of PLHA Funds Disbursed this Period","Admin - Total Amount of PLHA Funds Disbursed this Period","Total Amount of PLHA Funds Disbursed this Period","A2 - Total Amount of AOWH Expended this Period","A3 - Total Amount of AOWH Expended this Period","A4 - Total Amount of AOWH Expended this Period","A7 - Total Amount of AOWH Expended this Period","A8 - Total Amount of AOWH Expended this Period","A9 - Total Amount of AOWH Expended this Period","A10 - Total Amount of AOWH Expended this Period"]
[{"$f":"'1-Cover Sheet'!$F$8","v":"Select One"},{"$f":"'1-Cover Sheet'!C8","v":"Select One"},{"$f":"'1-Cover Sheet'!C9","v":0},{"$f":"'1-Cover Sheet'!C11","v":0},{"$f":"'1-Cover Sheet'!C10","v":0},{"$f":"'1-Cover Sheet'!F10","v":"July 1, 2024- June 30, 2025, Due July 31, 2025"},{"$f":"'1-Cover Sheet'!F11","v":"Select One"},{"$f":"'1-Cover Sheet'!F9","v":0},{"$f":"'Summary Sheet'!D8","v":0},{"$f":"'1-Cover Sheet'!C70","v":0},{"$f":"'1-Cover Sheet'!D70","v":0},{"$f":"'1-Cover Sheet'!E70","v":0},{"$f":"'1-Cover Sheet'!F70","v":0},{"$f":"'1-Cover Sheet'!G70","v":0},{"$f":"SUM(J2:N2)","v":0},{"$f":"'1-Cover Sheet'!C66","v":0},{"$f":"'1-Cover Sheet'!D66","v":0},{"$f":"'1-Cover Sheet'!E66","v":0},{"$f":"'1-Cover Sheet'!F66","v":0},{"$f":"'1-Cover Sheet'!G66","v":0},{"$f":"SUM(P2:T2)","v":0},{"$f":"'1-Cover Sheet'!C72","v":0},{"$f":"'1-Cover Sheet'!D72","v":0},{"$f":"'1-Cover Sheet'!E72","v":0},{"$f":"'1-Cover Sheet'!F72","v":0},{"$f":"'1-Cover Sheet'!G72","v":0},{"$f":"SUM(V2:Z2)","v":0},{"$f":"'1-Cover Sheet'!C73","v":0},{"$f":"'1-Cover Sheet'!D73","v":0},{"$f":"'1-Cover Sheet'!E73","v":0},{"$f":"'1-Cover Sheet'!F73","v":0},{"$f":"'1-Cover Sheet'!G73","v":0},{"$f":"SUM(AB2:AF2)","v":0},{"$f":"'1-Cover Sheet'!C77","v":0},{"$f":"'1-Cover Sheet'!D77","v":0},{"$f":"'1-Cover Sheet'!E77","v":0},{"$f":"'1-Cover Sheet'!F77","v":0},{"$f":"'1-Cover Sheet'!G77","v":0},{"$f":"SUM(AH2:AL2)","v":0},{"$f":"'1-Cover Sheet'!C78","v":0},{"$f":"'1-Cover Sheet'!D78","v":0},{"$f":"'1-Cover Sheet'!E78","v":0},{"$f":"'1-Cover Sheet'!F78","v":0},{"$f":"'1-Cover Sheet'!G78","v":0},{"$f":"SUM(AN2:AR2)","v":0},{"$f":"'Summary Sheet'!I34","v":0},{"$f":"'Summary Sheet'!M34","v":0},{"$f":"'Summary Sheet'!Q34","v":0},{"$f":"'Summary Sheet'!U34","v":0},{"$f":"'2-Narrative Summary'!C9","v":0},{"$f":"'2-Narrative Summary'!G9","v":0},{"$f":"'2-Narrative Summary'!C10","v":0},{"$f":"IF('1-Cover Sheet'!$H$15>0,\"Yes\",\"No\")","v":"No"},{"$f":"'1-Cover Sheet'!$H$15","v":0},{"$f":"'1-Cover Sheet'!C15","v":0},{"$f":"'1-Cover Sheet'!C16","v":0},{"$f":"'1-Cover Sheet'!D15","v":0},{"$f":"'1-Cover Sheet'!D16","v":0},{"$f":"'1-Cover Sheet'!E15","v":0},{"$f":"'1-Cover Sheet'!E16","v":0},{"$f":"'1-Cover Sheet'!F15","v":0},{"$f":"'1-Cover Sheet'!F16","v":0},{"$f":"'1-Cover Sheet'!G15","v":0},{"$f":"'1-Cover Sheet'!G16","v":0},{"$f":"IF('1-Cover Sheet'!$H$18>0,\"Yes\",\"No\")","v":"No"},{"$f":"'1-Cover Sheet'!$H$18","v":0},{"$f":"'1-Cover Sheet'!C18","v":0},{"$f":"'1-Cover Sheet'!C20","v":0},{"$f":"'1-Cover Sheet'!D18","v":0},{"$f":"'1-Cover Sheet'!D20","v":0},{"$f":"'1-Cover Sheet'!E18","v":0},{"$f":"'1-Cover Sheet'!E20","v":0},{"$f":"'1-Cover Sheet'!F18","v":0},{"$f":"'1-Cover Sheet'!F20","v":0},{"$f":"'1-Cover Sheet'!G18","v":0},{"$f":"'1-Cover Sheet'!G20","v":0},{"$f":"IF('1-Cover Sheet'!$H$24>0,\"Yes\",\"No\")","v":"No"},{"$f":"'1-Cover Sheet'!$H$24","v":0},{"$f":"'1-Cover Sheet'!C24","v":0},{"$f":"'1-Cover Sheet'!C26","v":0},{"$f":"'1-Cover Sheet'!D24","v":0},{"$f":"'1-Cover Sheet'!D26","v":0},{"$f":"'1-Cover Sheet'!E24","v":0},{"$f":"'1-Cover Sheet'!E26","v":0},{"$f":"'1-Cover Sheet'!F24","v":0},{"$f":"'1-Cover Sheet'!F26","v":0},{"$f":"'1-Cover Sheet'!G24","v":0},{"$f":"'1-Cover Sheet'!G26","v":0},{"$f":"IF('1-Cover Sheet'!$H$30>0,\"Yes\",\"No\")","v":"No"},{"$f":"'1-Cover Sheet'!$H$30","v":0},{"$f":"'1-Cover Sheet'!C30","v":0},{"$f":"'1-Cover Sheet'!C32","v":0},{"$f":"'1-Cover Sheet'!D30","v":0},{"$f":"'1-Cover Sheet'!D32","v":0},{"$f":"'1-Cover Sheet'!E30","v":0},{"$f":"'1-Cover Sheet'!E32","v":0},{"$f":"'1-Cover Sheet'!F30","v":0},{"$f":"'1-Cover Sheet'!F32","v":0},{"$f":"'1-Cover Sheet'!G30","v":0},{"$f":"'1-Cover Sheet'!G32","v":0},{"$f":"IF('1-Cover Sheet'!$H$36>0,\"Yes\",\"No\")","v":"No"},{"$f":"'1-Cover Sheet'!$H$36","v":0},{"$f":"'1-Cover Sheet'!C36","v":0},{"$f":"'1-Cover Sheet'!C37","v":0},{"$f":"'1-Cover Sheet'!D36","v":0},{"$f":"'1-Cover Sheet'!D37","v":0},{"$f":"'1-Cover Sheet'!E36","v":0},{"$f":"'1-Cover Sheet'!E37","v":0},{"$f":"'1-Cover Sheet'!F36","v":0},{"$f":"'1-Cover Sheet'!F37","v":0},{"$f":"'1-Cover Sheet'!G36","v":0},{"$f":"'1-Cover Sheet'!G37","v":0},{"$f":"IF('1-Cover Sheet'!$H$39>0,\"Yes\",\"No\")","v":"No"},{"$f":"'1-Cover Sheet'!$H$39","v":0},{"$f":"'1-Cover Sheet'!C39","v":0},{"$f":"'1-Cover Sheet'!C40","v":0},{"$f":"'1-Cover Sheet'!D39","v":0},{"$f":"'1-Cover Sheet'!D40","v":0},{"$f":"'1-Cover Sheet'!E39","v":0},{"$f":"'1-Cover Sheet'!E40","v":0},{"$f":"'1-Cover Sheet'!F39","v":0},{"$f":"'1-Cover Sheet'!F40","v":0},{"$f":"'1-Cover Sheet'!G39","v":0},{"$f":"'1-Cover Sheet'!G40","v":0},{"$f":"IF('1-Cover Sheet'!$H$42>0,\"Yes\",\"No\")","v":"No"},{"$f":"'1-Cover Sheet'!$H$42","v":0},{"$f":"'1-Cover Sheet'!C42","v":0},{"$f":"'1-Cover Sheet'!C44","v":0},{"$f":"'1-Cover Sheet'!D42","v":0},{"$f":"'1-Cover Sheet'!D44","v":0},{"$f":"'1-Cover Sheet'!E42","v":0},{"$f":"'1-Cover Sheet'!E44","v":0},{"$f":"'1-Cover Sheet'!F42","v":0},{"$f":"'1-Cover Sheet'!F44","v":0},{"$f":"'1-Cover Sheet'!G42","v":0},{"$f":"'1-Cover Sheet'!G44","v":0},{"$f":"IF('1-Cover Sheet'!$H$48>0,\"Yes\",\"No\")","v":"No"},{"$f":"'1-Cover Sheet'!$H$48","v":0},{"$f":"'1-Cover Sheet'!C48","v":0},{"$f":"'1-Cover Sheet'!C50","v":0},{"$f":"'1-Cover Sheet'!D48","v":0},{"$f":"'1-Cover Sheet'!D50","v":0},{"$f":"'1-Cover Sheet'!E48","v":0},{"$f":"'1-Cover Sheet'!E50","v":0},{"$f":"'1-Cover Sheet'!F48","v":0},{"$f":"'1-Cover Sheet'!F50","v":0},{"$f":"'1-Cover Sheet'!G48","v":0},{"$f":"'1-Cover Sheet'!G50","v":0},{"$f":"IF('1-Cover Sheet'!$H$54>0,\"Yes\",\"No\")","v":"No"},{"$f":"'1-Cover Sheet'!$H$54","v":0},{"$f":"'1-Cover Sheet'!C54","v":0},{"$f":"'1-Cover Sheet'!C56","v":0},{"$f":"'1-Cover Sheet'!D54","v":0},{"$f":"'1-Cover Sheet'!D56","v":0},{"$f":"'1-Cover Sheet'!E54","v":0},{"$f":"'1-Cover Sheet'!E56","v":0},{"$f":"'1-Cover Sheet'!F54","v":0},{"$f":"'1-Cover Sheet'!F56","v":0},{"$f":"'1-Cover Sheet'!G54","v":0},{"$f":"'1-Cover Sheet'!G56","v":0},{"$f":"IF('1-Cover Sheet'!$H$60>0,\"Yes\",\"No\")","v":"No"},{"$f":"'1-Cover Sheet'!$H$60","v":0},{"$f":"'1-Cover Sheet'!C60","v":0},{"$f":"'1-Cover Sheet'!C62","v":0},{"$f":"'1-Cover Sheet'!D60","v":0},{"$f":"'1-Cover Sheet'!D62","v":0},{"$f":"'1-Cover Sheet'!E60","v":0},{"$f":"'1-Cover Sheet'!E62","v":0},{"$f":"'1-Cover Sheet'!F60","v":0},{"$f":"'1-Cover Sheet'!F62","v":0},{"$f":"'1-Cover Sheet'!G60","v":0},{"$f":"'1-Cover Sheet'!G62","v":0},{"$f":"'1-Cover Sheet'!B80","v":"Please Select One"},{"$f":"'1-Cover Sheet'!C80","v":0},{"$f":"'1-Cover Sheet'!B82","v":"Please Select One"},{"$f":"'1-Cover Sheet'!C82","v":0},{"$f":"'1-Cover Sheet'!C87","v":0},{"$f":"'1-Cover Sheet'!C85","v":"No"},{"$f":"'1-Cover Sheet'!C86","v":"No"},{"$f":"'2-Narrative Summary'!A6","v":0},{"$f":"'2-Narrative Summary'!A8","v":0},{"$f":"'2-Narrative Summary'!A27","v":0},{"$f":"'2-Narrative Summary'!A12","v":0},{"$f":"'Activity 1'!G31","v":0},{"$f":"'Activity 1'!G32","v":0},{"$f":"'Activity 1'!G33","v":0},{"$f":"'Activity 1'!G34","v":0},{"$f":"'Activity 1'!G35","v":0},{"$f":"'Activity 1'!G36","v":0},{"$f":"'Activity 1'!G37","v":0},{"$f":"'Activity 1'!G38","v":0},{"$f":"'Activity 1'!H31","v":0},{"$f":"'Activity 1'!H32","v":0},{"$f":"'Activity 1'!H33","v":0},{"$f":"'Activity 1'!H34","v":0},{"$f":"'Activity 1'!H35","v":0},{"$f":"'Activity 1'!H36","v":0},{"$f":"'Activity 1'!H37","v":0},{"$f":"'Activity 1'!H38","v":0},{"$f":"'Activity 1'!O31","v":0},{"$f":"'Activity 1'!O32","v":0},{"$f":"'Activity 1'!O33","v":0},{"$f":"'Activity 1'!O34","v":0},{"$f":"'Activity 1'!O35","v":0},{"$f":"'Activity 1'!O36","v":0},{"$f":"'Activity 1'!O37","v":0},{"$f":"'Activity 1'!O38","v":0},{"$f":"'Activity 1'!P31","v":0},{"$f":"'Activity 1'!P32","v":0},{"$f":"'Activity 1'!P33","v":0},{"$f":"'Activity 1'!P34","v":0},{"$f":"'Activity 1'!P35","v":0},{"$f":"'Activity 1'!P36","v":0},{"$f":"'Activity 1'!P37","v":0},{"$f":"'Activity 1'!P38","v":0},{"$f":"'Activity 1'!B26","v":0},{"$f":"'Activity 1'!B28","v":0},{"$f":"'Activity 2'!G31","v":0},{"$f":"'Activity 2'!G32","v":0},{"$f":"'Activity 2'!G33","v":0},{"$f":"'Activity 2'!G34","v":0},{"$f":"'Activity 2'!G35","v":0},{"$f":"'Activity 2'!G36","v":0},{"$f":"'Activity 2'!G37","v":0},{"$f":"'Activity 2'!G38","v":0},{"$f":"'Activity 2'!H31","v":0},{"$f":"'Activity 2'!H32","v":0},{"$f":"'Activity 2'!H33","v":0},{"$f":"'Activity 2'!H34","v":0},{"$f":"'Activity 2'!H35","v":0},{"$f":"'Activity 2'!H36","v":0},{"$f":"'Activity 2'!H37","v":0},{"$f":"'Activity 2'!H38","v":0},{"$f":"'Activity 2'!O31","v":0},{"$f":"'Activity 2'!O32","v":0},{"$f":"'Activity 2'!O33","v":0},{"$f":"'Activity 2'!O34","v":0},{"$f":"'Activity 2'!O35","v":0},{"$f":"'Activity 2'!O36","v":0},{"$f":"'Activity 2'!O37","v":0},{"$f":"'Activity 2'!O38","v":0},{"$f":"'Activity 2'!P31","v":0},{"$f":"'Activity 2'!P32","v":0},{"$f":"'Activity 2'!P33","v":0},{"$f":"'Activity 2'!P34","v":0},{"$f":"'Activity 2'!P35","v":0},{"$f":"'Activity 2'!P36","v":0},{"$f":"'Activity 2'!P37","v":0},{"$f":"'Activity 2'!P38","v":0},{"$f":"'Activity 2'!B26","v":0},{"$f":"'Activity 2'!B28","v":0},{"$f":"'Activity 3'!G22","v":0},{"$f":"'Activity 3'!G23","v":0},{"$f":"'Activity 3'!G24","v":0},{"$f":"'Activity 3'!G25","v":0},{"$f":"'Activity 3'!H22","v":0},{"$f":"'Activity 3'!H23","v":0},{"$f":"'Activity 3'!H24","v":0},{"$f":"'Activity 3'!H25","v":0},{"$f":"'Activity 3'!P22","v":0},{"$f":"'Activity 3'!Q22","v":0},{"$f":"'Activity 3'!B17","v":0},{"$f":"'Activity 3'!B19","v":0},{"$f":"'Activity 4'!G22","v":0},{"$f":"'Activity 4'!G23","v":0},{"$f":"'Activity 4'!G24","v":0},{"$f":"'Activity 4'!H22","v":0},{"$f":"'Activity 4'!H23","v":0},{"$f":"'Activity 4'!H24","v":0},{"$f":"'Activity 4'!O22","v":0},{"$f":"'Activity 4'!P22","v":0},{"$f":"'Activity 4'!B17","v":0},{"$f":"'Activity 4'!B19","v":0},{"$f":"'Activity 5'!G24","v":0},{"$f":"'Activity 5'!G25","v":0},{"$f":"'Activity 5'!H24","v":0},{"$f":"'Activity 5'!H25","v":0},{"$f":"'Activity 5'!O24","v":0},{"$f":"'Activity 5'!P24","v":0},{"$f":"'Activity 5'!B17","v":0},{"$f":"'Activity 5'!B19","v":0},{"$f":"'Activity 5'!B21","v":0},{"$f":"'Activity 6'!D16","v":0},{"$f":"'Activity 6'!G16","v":0},{"$f":"'Activity 6'!I16","v":"Select One"},{"$f":"'Activity 6'!K16","v":0},{"$f":"'Activity 6'!D17","v":0},{"$f":"'Activity 6'!G17","v":0},{"$f":"'Activity 6'!I17","v":"Select One"},{"$f":"'Activity 6'!K17","v":0},{"$f":"'Activity 6'!D18","v":0},{"$f":"'Activity 6'!G18","v":0},{"$f":"'Activity 6'!I18","v":"Select One"},{"$f":"'Activity 6'!K18","v":0},{"$f":"'Activity 6'!D19","v":0},{"$f":"'Activity 6'!G19","v":0},{"$f":"'Activity 6'!I19","v":"Select One"},{"$f":"'Activity 6'!K19","v":0},{"$f":"'Activity 6'!G48","v":0},{"$f":"'Activity 6'!G49","v":0},{"$f":"'Activity 6'!G50","v":0},{"$f":"'Activity 6'!G51","v":0},{"$f":"'Activity 6'!G52","v":0},{"$f":"'Activity 6'!G53","v":0},{"$f":"'Activity 6'!G54","v":0},{"$f":"'Activity 6'!G55","v":0},{"$f":"'Activity 6'!H48","v":0},{"$f":"'Activity 6'!H49","v":0},{"$f":"'Activity 6'!H50","v":0},{"$f":"'Activity 6'!H51","v":0},{"$f":"'Activity 6'!H52","v":0},{"$f":"'Activity 6'!H53","v":0},{"$f":"'Activity 6'!H54","v":0},{"$f":"'Activity 6'!H55","v":0},{"$f":"'Activity 6'!O48","v":0},{"$f":"'Activity 6'!O49","v":0},{"$f":"'Activity 6'!O50","v":0},{"$f":"'Activity 6'!O51","v":0},{"$f":"'Activity 6'!O52","v":0},{"$f":"'Activity 6'!O53","v":0},{"$f":"'Activity 6'!O54","v":0},{"$f":"'Activity 6'!O55","v":0},{"$f":"'Activity 6'!O56","v":0},{"$f":"'Activity 6'!O57","v":0},{"$f":"'Activity 6'!O58","v":0},{"$f":"'Activity 6'!O59","v":0},{"$f":"'Activity 6'!P48","v":0},{"$f":"'Activity 6'!P49","v":0},{"$f":"'Activity 6'!P50","v":0},{"$f":"'Activity 6'!P51","v":0},{"$f":"'Activity 6'!P52","v":0},{"$f":"'Activity 6'!P53","v":0},{"$f":"'Activity 6'!P54","v":0},{"$f":"'Activity 6'!P55","v":0},{"$f":"'Activity 6'!P56","v":0},{"$f":"'Activity 6'!P57","v":0},{"$f":"'Activity 6'!P58","v":0},{"$f":"'Activity 6'!P59","v":0},{"$f":"'Activity 6'!B41","v":0},{"$f":"'Activity 6'!B43","v":0},{"$f":"'Activity 6'!B45","v":0},{"$f":"'Activity 7'!G31","v":0},{"$f":"'Activity 7'!G32","v":0},{"$f":"'Activity 7'!G33","v":0},{"$f":"'Activity 7'!G34","v":0},{"$f":"'Activity 7'!G35","v":0},{"$f":"'Activity 7'!H31","v":0},{"$f":"'Activity 7'!H32","v":0},{"$f":"'Activity 7'!H33","v":0},{"$f":"'Activity 7'!H34","v":0},{"$f":"'Activity 7'!H35","v":0},{"$f":"'Activity 7'!O31","v":0},{"$f":"'Activity 7'!O32","v":0},{"$f":"'Activity 7'!O33","v":0},{"$f":"'Activity 7'!O34","v":0},{"$f":"'Activity 7'!O35","v":0},{"$f":"'Activity 7'!O36","v":0},{"$f":"'Activity 7'!O37","v":0},{"$f":"'Activity 7'!P31","v":0},{"$f":"'Activity 7'!P32","v":0},{"$f":"'Activity 7'!P33","v":0},{"$f":"'Activity 7'!P34","v":0},{"$f":"'Activity 7'!P35","v":0},{"$f":"'Activity 7'!P36","v":0},{"$f":"'Activity 7'!P37","v":0},{"$f":"'Activity 7'!B26","v":0},{"$f":"'Activity 7'!B28","v":0},{"$f":"'Activity 8'!G31","v":0},{"$f":"'Activity 8'!G32","v":0},{"$f":"'Activity 8'!G33","v":0},{"$f":"'Activity 8'!G34","v":0},{"$f":"'Activity 8'!G35","v":0},{"$f":"'Activity 8'!G36","v":0},{"$f":"'Activity 8'!G37","v":0},{"$f":"'Activity 8'!G38","v":0},{"$f":"'Activity 8'!H31","v":0},{"$f":"'Activity 8'!H32","v":0},{"$f":"'Activity 8'!H33","v":0},{"$f":"'Activity 8'!H34","v":0},{"$f":"'Activity 8'!H35","v":0},{"$f":"'Activity 8'!H36","v":0},{"$f":"'Activity 8'!G37","v":0},{"$f":"'Activity 8'!G38","v":0},{"$f":"'Activity 8'!O31","v":0},{"$f":"'Activity 8'!O32","v":0},{"$f":"'Activity 8'!O33","v":0},{"$f":"'Activity 8'!O34","v":0},{"$f":"'Activity 8'!O35","v":0},{"$f":"'Activity 8'!O36","v":0},{"$f":"'Activity 8'!O37","v":0},{"$f":"'Activity 8'!O38","v":0},{"$f":"'Activity 8'!P31","v":0},{"$f":"'Activity 8'!P32","v":0},{"$f":"'Activity 8'!P33","v":0},{"$f":"'Activity 8'!P34","v":0},{"$f":"'Activity 8'!P35","v":0},{"$f":"'Activity 8'!P36","v":0},{"$f":"'Activity 8'!P37","v":0},{"$f":"'Activity 8'!P38","v":0},{"$f":"'Activity 8'!B26","v":0},{"$f":"'Activity 8'!B28","v":0},{"$f":"'Activity 9'!G31","v":0},{"$f":"'Activity 9'!G32","v":0},{"$f":"'Activity 9'!G33","v":0},{"$f":"'Activity 9'!G34","v":0},{"$f":"'Activity 9'!G35","v":0},{"$f":"'Activity 9'!G36","v":0},{"$f":"'Activity 9'!H31","v":0},{"$f":"'Activity 9'!H32","v":0},{"$f":"'Activity 9'!H33","v":0},{"$f":"'Activity 9'!H34","v":0},{"$f":"'Activity 9'!H35","v":0},{"$f":"'Activity 9'!H36","v":0},{"$f":"'Activity 9'!O38","v":0},{"$f":"'Activity 9'!O31","v":0},{"$f":"'Activity 9'!O32","v":0},{"$f":"'Activity 9'!O33","v":0},{"$f":"'Activity 9'!O34","v":0},{"$f":"'Activity 9'!O35","v":0},{"$f":"'Activity 9'!O36","v":0},{"$f":"'Activity 9'!O37","v":0},{"$f":"'Activity 9'!P38","v":0},{"$f":"'Activity 9'!P31","v":0},{"$f":"'Activity 9'!P32","v":0},{"$f":"'Activity 9'!P33","v":0},{"$f":"'Activity 9'!P34","v":0},{"$f":"'Activity 9'!P35","v":0},{"$f":"'Activity 9'!P36","v":0},{"$f":"'Activity 9'!P37","v":0},{"$f":"'Activity 9'!B26","v":0},{"$f":"'Activity 9'!B28","v":0},{"$f":"'Activity 10'!G31","v":0},{"$f":"'Activity 10'!G32","v":0},{"$f":"'Activity 10'!G33","v":0},{"$f":"'Activity 10'!G34","v":0},{"$f":"'Activity 10'!G35","v":0},{"$f":"'Activity 10'!G36","v":0},{"$f":"'Activity 10'!G37","v":0},{"$f":"'Activity 10'!G38","v":0},{"$f":"'Activity 10'!H31","v":0},{"$f":"'Activity 10'!H32","v":0},{"$f":"'Activity 10'!H33","v":0},{"$f":"'Activity 10'!H34","v":0},{"$f":"'Activity 10'!H35","v":0},{"$f":"'Activity 10'!H36","v":0},{"$f":"'Activity 10'!H37","v":0},{"$f":"'Activity 10'!H38","v":0},{"$f":"'Activity 10'!O31","v":0},{"$f":"'Activity 10'!O32","v":0},{"$f":"'Activity 10'!O33","v":0},{"$f":"'Activity 10'!O34","v":0},{"$f":"'Activity 10'!O35","v":0},{"$f":"'Activity 10'!O36","v":0},{"$f":"'Activity 10'!O37","v":0},{"$f":"'Activity 10'!O38","v":0},{"$f":"'Activity 10'!P31","v":0},{"$f":"'Activity 10'!P32","v":0},{"$f":"'Activity 10'!P33","v":0},{"$f":"'Activity 10'!P34","v":0},{"$f":"'Activity 10'!P35","v":0},{"$f":"'Activity 10'!P36","v":0},{"$f":"'Activity 10'!P37","v":0},{"$f":"'Activity 10'!P38","v":0},{"$f":"'Activity 10'!B26","v":0},{"$f":"'Activity 10'!B28","v":0},{"$f":"'Competitive Activity 1'!E29","v":0},{"$f":"'Competitive Activity 1'!E30","v":0},{"$f":"'Competitive Activity 1'!E32","v":0},{"$f":"'Competitive Activity 1'!E32","v":0},{"$f":"'Competitive Activity 1'!E33","v":0},{"$f":"'Competitive Activity 1'!F29","v":0},{"$f":"'Competitive Activity 1'!F30","v":0},{"$f":"'Competitive Activity 1'!F31","v":0},{"$f":"'Competitive Activity 1'!F32","v":0},{"$f":"'Competitive Activity 1'!F33","v":0},{"$f":"'Competitive Activity 1'!K29","v":0},{"$f":"'Competitive Activity 1'!K30","v":0},{"$f":"'Competitive Activity 1'!K31","v":0},{"$f":"'Competitive Activity 1'!K32","v":0},{"$f":"'Competitive Activity 1'!K33","v":0},{"$f":"'Competitive Activity 1'!K34","v":0},{"$f":"'Competitive Activity 1'!K35","v":0},{"$f":"'Competitive Activity 1'!K36","v":0},{"$f":"'Competitive Activity 1'!L29","v":0},{"$f":"'Competitive Activity 1'!L30","v":0},{"$f":"'Competitive Activity 1'!L31","v":0},{"$f":"'Competitive Activity 1'!L32","v":0},{"$f":"'Competitive Activity 1'!L33","v":0},{"$f":"'Competitive Activity 1'!K34","v":0},{"$f":"'Competitive Activity 1'!K35","v":0},{"$f":"'Competitive Activity 1'!K36","v":0},{"$f":"'Competitive Activity 1'!B26","v":0},{"$f":"'Competitive Activity 2'!G41","v":0},{"$f":"'Competitive Activity 2'!G42","v":0},{"$f":"'Competitive Activity 2'!G43","v":0},{"$f":"'Competitive Activity 2'!G44","v":0},{"$f":"'Competitive Activity 2'!G45","v":0},{"$f":"'Competitive Activity 2'!G47","v":0},{"$f":"'Competitive Activity 2'!G46","v":0},{"$f":"'Competitive Activity 2'!H41","v":0},{"$f":"'Competitive Activity 2'!H42","v":0},{"$f":"'Competitive Activity 2'!H43","v":0},{"$f":"'Competitive Activity 2'!H44","v":0},{"$f":"'Competitive Activity 2'!H45","v":0},{"$f":"'Competitive Activity 2'!H47","v":0},{"$f":"'Competitive Activity 2'!H46","v":0},{"$f":"'Competitive Activity 2'!O42","v":0},{"$f":"'Competitive Activity 2'!O43","v":0},{"$f":"'Competitive Activity 2'!O44","v":0},{"$f":"'Competitive Activity 2'!O41","v":0},{"$f":"'Competitive Activity 2'!O47","v":0},{"$f":"'Competitive Activity 2'!O46","v":0},{"$f":"'Competitive Activity 2'!O45","v":0},{"$f":"'Competitive Activity 2'!O48","v":0},{"$f":"'Competitive Activity 2'!O49","v":0},{"$f":"'Competitive Activity 2'!O50","v":0},{"$f":"'Competitive Activity 2'!O51","v":0},{"$f":"'Competitive Activity 2'!P42","v":0},{"$f":"'Competitive Activity 2'!P43","v":0},{"$f":"'Competitive Activity 2'!P44","v":0},{"$f":"'Competitive Activity 2'!P41","v":0},{"$f":"'Competitive Activity 2'!P47","v":0},{"$f":"'Competitive Activity 2'!P46","v":0},{"$f":"'Competitive Activity 2'!P45","v":0},{"$f":"'Competitive Activity 2'!P48","v":0},{"$f":"'Competitive Activity 2'!P49","v":0},{"$f":"'Competitive Activity 2'!O50","v":0},{"$f":"'Competitive Activity 2'!P51","v":0},{"$f":"'Competitive Activity 2'!B36","v":0},{"$f":"'Competitive Activity 2'!B38","v":0},{"$f":"'1-Cover Sheet'!C17","v":0},{"$f":"'1-Cover Sheet'!D17","v":0},{"$f":"'1-Cover Sheet'!E17","v":0},{"$f":"'1-Cover Sheet'!F17","v":0},{"$f":"'1-Cover Sheet'!G17","v":0},{"$f":"SUM(TK2:TO2)","v":0},{"$f":"'1-Cover Sheet'!C19","v":0},{"$f":"'1-Cover Sheet'!D19","v":0},{"$f":"'1-Cover Sheet'!E19","v":0},{"$f":"'1-Cover Sheet'!F19","v":0},{"$f":"'1-Cover Sheet'!G19","v":0},{"$f":"SUM(TQ2:TU2)","v":0},{"$f":"'1-Cover Sheet'!C21","v":0},{"$f":"'1-Cover Sheet'!D21","v":0},{"$f":"'1-Cover Sheet'!E21","v":0},{"$f":"'1-Cover Sheet'!F21","v":0},{"$f":"'1-Cover Sheet'!G21","v":0},{"$f":"SUM(TW2:UA2)","v":0},{"$f":"'1-Cover Sheet'!C22","v":0},{"$f":"'1-Cover Sheet'!D22","v":0},{"$f":"'1-Cover Sheet'!E22","v":0},{"$f":"'1-Cover Sheet'!F22","v":0},{"$f":"'1-Cover Sheet'!G22","v":0},{"$f":"SUM(UC2:UG2)","v":0},{"$f":"'1-Cover Sheet'!C23","v":0},{"$f":"'1-Cover Sheet'!D23","v":0},{"$f":"'1-Cover Sheet'!E23","v":0},{"$f":"'1-Cover Sheet'!F23","v":0},{"$f":"'1-Cover Sheet'!G23","v":0},{"$f":"SUM(UI2:UM2)","v":0},{"$f":"'1-Cover Sheet'!C25","v":0},{"$f":"'1-Cover Sheet'!D25","v":0},{"$f":"'1-Cover Sheet'!E25","v":0},{"$f":"'1-Cover Sheet'!F25","v":0},{"$f":"'1-Cover Sheet'!G25","v":0},{"$f":"SUM(UO2:US2)","v":0},{"$f":"'1-Cover Sheet'!C27","v":0},{"$f":"'1-Cover Sheet'!D27","v":0},{"$f":"'1-Cover Sheet'!E27","v":0},{"$f":"'1-Cover Sheet'!F27","v":0},{"$f":"'1-Cover Sheet'!G27","v":0},{"$f":"SUM(UU2:UY2)","v":0},{"$f":"'1-Cover Sheet'!C28","v":0},{"$f":"'1-Cover Sheet'!D28","v":0},{"$f":"'1-Cover Sheet'!E28","v":0},{"$f":"'1-Cover Sheet'!F28","v":0},{"$f":"'1-Cover Sheet'!G28","v":0},{"$f":"SUM(VA2:VE2)","v":0},{"$f":"'1-Cover Sheet'!C29","v":0},{"$f":"'1-Cover Sheet'!D29","v":0},{"$f":"'1-Cover Sheet'!E29","v":0},{"$f":"'1-Cover Sheet'!F29","v":0},{"$f":"'1-Cover Sheet'!G29","v":0},{"$f":"SUM(VG2:VK2)","v":0},{"$f":"'1-Cover Sheet'!C31","v":0},{"$f":"'1-Cover Sheet'!D31","v":0},{"$f":"'1-Cover Sheet'!E31","v":0},{"$f":"'1-Cover Sheet'!F31","v":0},{"$f":"'1-Cover Sheet'!G31","v":0},{"$f":"SUM(VM2:VQ2)","v":0},{"$f":"'1-Cover Sheet'!C33","v":0},{"$f":"'1-Cover Sheet'!D33","v":0},{"$f":"'1-Cover Sheet'!E33","v":0},{"$f":"'1-Cover Sheet'!F33","v":0},{"$f":"'1-Cover Sheet'!G33","v":0},{"$f":"SUM(VS2:VW2)","v":0},{"$f":"'1-Cover Sheet'!C34","v":0},{"$f":"'1-Cover Sheet'!D34","v":0},{"$f":"'1-Cover Sheet'!E34","v":0},{"$f":"'1-Cover Sheet'!F34","v":0},{"$f":"'1-Cover Sheet'!G34","v":0},{"$f":"SUM(VY2:WC2)","v":0},{"$f":"'1-Cover Sheet'!C35","v":0},{"$f":"'1-Cover Sheet'!D35","v":0},{"$f":"'1-Cover Sheet'!E35","v":0},{"$f":"'1-Cover Sheet'!F35","v":0},{"$f":"'1-Cover Sheet'!G35","v":0},{"$f":"SUM(WE2:WI2)","v":0},{"$f":"'1-Cover Sheet'!C38","v":0},{"$f":"'1-Cover Sheet'!D38","v":0},{"$f":"'1-Cover Sheet'!E38","v":0},{"$f":"'1-Cover Sheet'!F38","v":0},{"$f":"'1-Cover Sheet'!G38","v":0},{"$f":"SUM(WK2:WO2)","v":0},{"$f":"'1-Cover Sheet'!C41","v":0},{"$f":"'1-Cover Sheet'!D41","v":0},{"$f":"'1-Cover Sheet'!E41","v":0},{"$f":"'1-Cover Sheet'!F41","v":0},{"$f":"'1-Cover Sheet'!G41","v":0},{"$f":"SUM(WQ2:WU2)","v":0},{"$f":"'1-Cover Sheet'!C43","v":0},{"$f":"'1-Cover Sheet'!D43","v":0},{"$f":"'1-Cover Sheet'!E43","v":0},{"$f":"'1-Cover Sheet'!F43","v":0},{"$f":"'1-Cover Sheet'!G43","v":0},{"$f":"SUM(WW2:XA2)","v":0},{"$f":"'1-Cover Sheet'!C45","v":0},{"$f":"'1-Cover Sheet'!D45","v":0},{"$f":"'1-Cover Sheet'!E45","v":0},{"$f":"'1-Cover Sheet'!F45","v":0},{"$f":"'1-Cover Sheet'!G45","v":0},{"$f":"SUM(XC2:XG2)","v":0},{"$f":"'1-Cover Sheet'!C46","v":0},{"$f":"'1-Cover Sheet'!D46","v":0},{"$f":"'1-Cover Sheet'!E46","v":0},{"$f":"'1-Cover Sheet'!F46","v":0},{"$f":"'1-Cover Sheet'!G46","v":0},{"$f":"SUM(XI2:XM2)","v":0},{"$f":"'1-Cover Sheet'!C47","v":0},{"$f":"'1-Cover Sheet'!D47","v":0},{"$f":"'1-Cover Sheet'!E47","v":0},{"$f":"'1-Cover Sheet'!F47","v":0},{"$f":"'1-Cover Sheet'!G47","v":0},{"$f":"SUM(XO2:XS2)","v":0},{"$f":"'1-Cover Sheet'!C49","v":0},{"$f":"'1-Cover Sheet'!D49","v":0},{"$f":"'1-Cover Sheet'!E49","v":0},{"$f":"'1-Cover Sheet'!F49","v":0},{"$f":"'1-Cover Sheet'!G49","v":0},{"$f":"SUM(XU2:XY2)","v":0},{"$f":"'1-Cover Sheet'!C51","v":0},{"$f":"'1-Cover Sheet'!D51","v":0},{"$f":"'1-Cover Sheet'!E51","v":0},{"$f":"'1-Cover Sheet'!F51","v":0},{"$f":"'1-Cover Sheet'!G51","v":0},{"$f":"SUM(YA2:YE2)","v":0},{"$f":"'1-Cover Sheet'!C52","v":0},{"$f":"'1-Cover Sheet'!D52","v":0},{"$f":"'1-Cover Sheet'!E52","v":0},{"$f":"'1-Cover Sheet'!F52","v":0},{"$f":"'1-Cover Sheet'!G52","v":0},{"$f":"SUM(YG2:YK2)","v":0},{"$f":"'1-Cover Sheet'!C53","v":0},{"$f":"'1-Cover Sheet'!D53","v":0},{"$f":"'1-Cover Sheet'!E53","v":0},{"$f":"'1-Cover Sheet'!F53","v":0},{"$f":"'1-Cover Sheet'!G53","v":0},{"$f":"SUM(YM2:YQ2)","v":0},{"$f":"'1-Cover Sheet'!C55","v":0},{"$f":"'1-Cover Sheet'!D55","v":0},{"$f":"'1-Cover Sheet'!E55","v":0},{"$f":"'1-Cover Sheet'!F55","v":0},{"$f":"'1-Cover Sheet'!G55","v":0},{"$f":"SUM(YS2:YW2)","v":0},{"$f":"'1-Cover Sheet'!C57","v":0},{"$f":"'1-Cover Sheet'!D57","v":0},{"$f":"'1-Cover Sheet'!E57","v":0},{"$f":"'1-Cover Sheet'!F57","v":0},{"$f":"'1-Cover Sheet'!G57","v":0},{"$f":"SUM(YY2:ZC2)","v":0},{"$f":"'1-Cover Sheet'!C58","v":0},{"$f":"'1-Cover Sheet'!D58","v":0},{"$f":"'1-Cover Sheet'!E58","v":0},{"$f":"'1-Cover Sheet'!F58","v":0},{"$f":"'1-Cover Sheet'!G58","v":0},{"$f":"SUM(ZE2:ZI2)","v":0},{"$f":"'1-Cover Sheet'!C59","v":0},{"$f":"'1-Cover Sheet'!D59","v":0},{"$f":"'1-Cover Sheet'!E59","v":0},{"$f":"'1-Cover Sheet'!F59","v":0},{"$f":"'1-Cover Sheet'!G59","v":0},{"$f":"SUM(ZK2:ZO2)","v":0},{"$f":"'1-Cover Sheet'!C61","v":0},{"$f":"'1-Cover Sheet'!D61","v":0},{"$f":"'1-Cover Sheet'!E61","v":0},{"$f":"'1-Cover Sheet'!F61","v":0},{"$f":"'1-Cover Sheet'!G61","v":0},{"$f":"SUM(ZQ2:ZU2)","v":0},{"$f":"'1-Cover Sheet'!C63","v":0},{"$f":"'1-Cover Sheet'!D63","v":0},{"$f":"'1-Cover Sheet'!E63","v":0},{"$f":"'1-Cover Sheet'!F63","v":0},{"$f":"'1-Cover Sheet'!G63","v":0},{"$f":"SUM(ZW2:AAA2)","v":0},{"$f":"'1-Cover Sheet'!C64","v":0},{"$f":"'1-Cover Sheet'!D64","v":0},{"$f":"'1-Cover Sheet'!E64","v":0},{"$f":"'1-Cover Sheet'!F64","v":0},{"$f":"'1-Cover Sheet'!G64","v":0},{"$f":"SUM(AAC2:AAG2)","v":0},{"$f":"'1-Cover Sheet'!C65","v":0},{"$f":"'1-Cover Sheet'!D65","v":0},{"$f":"'1-Cover Sheet'!E65","v":0},{"$f":"'1-Cover Sheet'!F65","v":0},{"$f":"'1-Cover Sheet'!G65","v":0},{"$f":"SUM(AAI2:AAM2)","v":0},{"$f":"'Summary Sheet'!D21","v":0},{"$f":"'Summary Sheet'!D22","v":0},{"$f":"'Summary Sheet'!D23","v":0},{"$f":"'Summary Sheet'!D24","v":0},{"$f":"'Summary Sheet'!D25","v":0},{"$f":"'Summary Sheet'!D26","v":0},{"$f":"'Summary Sheet'!D27","v":0},{"$f":"'Summary Sheet'!D28","v":0},{"$f":"'Summary Sheet'!D29","v":0},{"$f":"'Summary Sheet'!D30","v":0},{"$f":"'Summary Sheet'!D31","v":0},{"$f":"'Summary Sheet'!D32","v":0},{"$f":"'Summary Sheet'!D33","v":0},{"$f":"SUM(AAO2:ABA2)","v":0},{"$f":"'Summary Sheet'!B21","v":0},{"$f":"'Summary Sheet'!B22","v":0},{"$f":"'Summary Sheet'!B23","v":0},{"$f":"'Summary Sheet'!B24","v":0},{"$f":"'Summary Sheet'!B25","v":0},{"$f":"'Summary Sheet'!B26","v":0},{"$f":"'Summary Sheet'!B27","v":0},{"$f":"'Summary Sheet'!B28","v":0},{"$f":"'Summary Sheet'!B29","v":0},{"$f":"'Summary Sheet'!B30","v":0},{"$f":"'Summary Sheet'!B31","v":0},{"$f":"'Summary Sheet'!B32","v":0},{"$f":"'Summary Sheet'!B33","v":0},{"$f":"SUM(ABC2:ABO2)","v":0},{"$f":"'Summary Sheet'!C21","v":0},{"$f":"'Summary Sheet'!C22","v":0},{"$f":"'Summary Sheet'!C23","v":0},{"$f":"'Summary Sheet'!C24","v":0},{"$f":"'Summary Sheet'!C25","v":0},{"$f":"'Summary Sheet'!C26","v":0},{"$f":"'Summary Sheet'!C27","v":0},{"$f":"'Summary Sheet'!C28","v":0},{"$f":"'Summary Sheet'!C29","v":0},{"$f":"'Summary Sheet'!C30","v":0},{"$f":"'Summary Sheet'!C31","v":0},{"$f":"'Summary Sheet'!C32","v":0},{"$f":"'Summary Sheet'!C33","v":0},{"$f":"SUM(ABQ2:ACC2)","v":0},{"$f":"'Summary Sheet'!F21","v":0},{"$f":"'Summary Sheet'!F22","v":0},{"$f":"'Summary Sheet'!F23","v":0},{"$f":"'Summary Sheet'!F24","v":0},{"$f":"'Summary Sheet'!F25","v":0},{"$f":"'Summary Sheet'!F26","v":0},{"$f":"'Summary Sheet'!F27","v":0},{"$f":"'Summary Sheet'!F28","v":0},{"$f":"'Summary Sheet'!F29","v":0},{"$f":"'Summary Sheet'!F30","v":0},{"$f":"'Summary Sheet'!F31","v":0},{"$f":"'Summary Sheet'!F32","v":0},{"$f":"'Summary Sheet'!F33","v":0},{"$f":"SUM(ACE2:ACQ2)","v":0},{"$f":"'Summary Sheet'!E21","v":0},{"$f":"'Summary Sheet'!E22","v":0},{"$f":"'Summary Sheet'!E23","v":0},{"$f":"'Summary Sheet'!E24","v":0},{"$f":"'Summary Sheet'!E25","v":0},{"$f":"'Summary Sheet'!E26","v":0},{"$f":"'Summary Sheet'!E27","v":0},{"$f":"'Summary Sheet'!E28","v":0},{"$f":"'Summary Sheet'!E29","v":0},{"$f":"'Summary Sheet'!E30","v":0},{"$f":"'Summary Sheet'!E31","v":0},{"$f":"'Summary Sheet'!E32","v":0},{"$f":"'Summary Sheet'!E33","v":0},{"$f":"SUM(ACS2:ADE2)","v":0},{"$f":"'Activity 2'!O14","v":0},{"$f":"'Activity 3'!S15","v":0},{"$f":"'Activity 4'!O15","v":0},{"$f":"'Activity 7'!L14","v":0},{"$f":"'Activity 8'!K14","v":0},{"$f":"'Activity 9'!L14","v":0},{"$f":"'Activity 10'!K14","v":0}]

{"sheet":"Project Data","index":19,"n_rows":85,"n_cols":279,"rows_kept":85,"cut":false,"hidden":true,"merged":[]}
["HCD Contract #","Grantee Name","SGM Rep","SGM Manager","Project Name","Project Address","County","Activity (if multiple, check manually)","Project Status","Date of Project Completion","Length of Aff Restrict. (yrs)","Aff Cov Exp. Date","Total Project Cost","Activity 1 Project? ","A1.Developer","A1.Grant/Loan","A1. $ Predevelopment","A1. $ Development","A1. $ Acquisition","A1. $ Rehab/Preserve","A1. $ COSR","Total Activity Costs","A1. # Occupants","A1. # Households","A1. Seniors","A1. Vets","A1. Disabled","A1. Familes w Minor","A1. TAY","A1. Farmworkers","A1. # Units Total","A1.# Units Restrict. ","A1.Housing Type","A1.# Units COSR","A1.# Units ADA","A1.# Units Homeless","A1.# ELI 30% Units","A1.# VLI 50% Units","A1.# 60% Units","A1.# LI 80% Units","A1.# Mod 120% Units","A1.Award Letter?","A1.Cert of Occ.","Activity 2 Project? ","A2. Developer","A2.$ Grant/Loan","A2.$ Predevelopment","A2.$ Development","A2.$ Acquisition","A2.$ Rehab/Preserve","A2.$ COSR","A2. Individuals to Occupy","A2. Households to Occupy","A2. Seniors","A2. Vets","A2. Disabled","A2. Familes w Minor","A2. TAY","A2. Farmworkers","A2. # Units Total","A2. Housing Type","A2. # Units ADA","A2. # Units Homeless","A2. # ELI 30% Units","A2. # VLI 50% Units","A2. # 60% Units","A2. # LI 80% Units","A2. # Mod 120% Units","Tax Credit Project","A2. Deed Restriction?","A2. Award Letter? ","A2. Cert of Occ.","Activity 3 Project?","A3. $ Deposit in TF","A3. PLHA Spent on Activity","A3. Local or Reg.","A3. TF Type","A3. Project Type","A3. Proof of Deposit?","Activity 4 Project?","A4.$ Deposit in LMIHAF","A4.Project Type","A4.Proof of Deposit?","Activity 5 Project?","A5.PSH Units Preserved","A5.PSH Created","A5.PLHA Deposited","A5.New Balance of CRF","A5.Source of Add. Funds","A5.Proof of Deposit?","A5. PLHA Expended on Activity","Activity 6 Project? ","A6.$ Exp. RRH","A6.$ Exp. Rental Asst.","A6.$ Exp. Case Mgmt","A6.$ Exp. Nav Centers","A6.$ Exp. Em.Shelt","A6.$ Exp PH New Const.","A6.$ Exp. TradH New Const.","A6.$ Exp PH Rehab/Preserv","A6.$ Exp TH Rehab/Preserv","A6.$ Exp Other","A6.Total PLHA Expended on Activity","A6.# Persons Asst RRH.","A6.# Persons Rental Asst..","A6.# Persons Case Mgmt","A6.# Persons Asst. TOTAL","A6.# Exit to Homeless","A6.# Occupants PH","A6.# Occupants TH","A6.# Seniors","A6.# Vets","A6.# Disabled","A6.#Families","A6.# TAY","A6.# Units RRH","A6.# Units Rental Asst.","A6.# Units Case Mgmt.","A6.# Units COSR","A6.# ES Beds","A6.# Perm Units","A6.# Tran Units","A6.# Units TOTAL","A6.Housing Type","A6.Cert of Occ?","Activity 7 Project?","A7.$ Exp.","A7.Contractor","A7.Prevail. Wage","A7.Grant or Loan?","A7.# Occupants","A7.# Households","A7.# Seniors","A7.# Vets","A7.# Disabled","A7.# Families","A7.# TAY","A7.# Units Total","A7.Housing Type","A7.# ELI 30% Units","A7.# VLI 50% Units","A7.# 60% Units","A7.# LI 80% Units","A7.Deed Restrict?","A7. Proof of Work ","A7.Cert of Comp.","Activity 8 Activity?","A8.Dev","A8.Orig. Status","A8. Yr Built","A8.$ Acquisition","A8.$ Rehab","A8. Prevail. Wage","A8.# Individuals","A8.# Households","A8. # Seniors","A8.# Vets","A8.# Disabled","A8.# Familes ","A8.# TAY","A8. Farmworker","A8.# PLHA Units Acq and Rehab","A8.Housing Type","A8.# Units ADA","A8.# Units Homeless","A8.# ELI 30% Units","A8.# VLI 50% Units","A8.# 60% Units","A8.# LI 80% Units","A8.# Mod 120% Units","A8. Tax Credit","A8.Deed Restrict","A8.Cert of Occ.","Activity 9 Project?","A9. $ Down Payment Asst.","A9. $ Other Homeowner Opp.","A9. Descrip. Homeownership Activities","A9. # Households","A9. # Individuals","A9. # Seniors","A9. # Vets","A9. # Disabled","A9. # Families","A9. # TAY","A9. Farmworkers","A9. # Homeowner Units","A9. Housing Type","A9. # ELI 30% Units","A9. # VLI 50% Units","A9. # 60% Units","A9. # LI 80% Units","A9. # Mod 120% Units","A9. Deed Restrict?","A9. Homeowner Policies?","A9. Proof of Awards?","A9. Cert of Occ.","Activity 10 project?","A10. Receiving City","A10.City Offering Asst?","A10.$ PLHA Disbursed","A10.How PLHA Provided","A10.$ Match Provided","A10.# Individuals","A10.# Households","A10.# Seniors","A10.# Vets","A10.# Disabled","A10.# Families","A10.# TAY","A10.# Farmworkers","A10.# Units","A10.# Restricted Units","A10.Housing Type","A10.# ADA Units","A10.# Units Former Homeless","A10.# ELI 30% Units","A10.# VLI 50% Units","A10.# 60% Units","A10.# LI 80% Units","A10.# Mod 120% Units","A10.Proof Incentive Paid","Comp. Activity 1?","CA1.Developer","CA1.Low-Asst Loan?","CA1.$ Predevelopment","CA1.$ Development","CA1.$ Acquisition","CA1.$ Rehab/Preserve","CA1.# Occupants","CA1.# Households","CA1.# Seniors","CA1.# Vets","CA1.# Disabled","CA1.# Families","CA1.# TAY","CA1.# Farmworkers","CA1.# MF Units Total","CA1.# PLHA Units <60%","CA1. Project Type","CA1.Housing Type","CA1.# Units ADA","CA1.# Units Homeless","CA1.# ELI 30% Units","CA1.# VLI 50% Units","Tax Credit","CA1.Award Letter?","CA1.Ev of Rehab","CA1.Cert of Occ.","Comp. Activity 2 Project?","CA2.$ Exp. RRH","CA2.$ Exp. Rental Asst.","CA2.$ Exp. Case Manage.","CA2.$ Exp. Nav Centers","CA2.$ Exp PH New Const.","CA2.$ Exp. Trans New Const.","CA2.$ Exp PH Rehab/Preserv","CA2.$ Exp TH Rehab/Preserv","CA2.$ Exp Other","CA2.Total PLHA Exp on CA2","CA2.# Persons Asst RRH.","CA2.# Persons Rental Asst..","CA2.# Persons Case Mgmt","CA2.# Persons Asst. TOTAL","CA2.# Occupants Trans H","CA2.# Occupants PH","CA2.# Seniors","CA2.# Vets","CA2.# Disabled","CA2.#Families","CA2.# TAY","CA2.# Units RRH","CA2.# Units Rental Asst.","CA2.# Units Case Mgmt.","CA2.# Units COSR","CA2. # PH Units","CA2.# Tran Units","CA2.# Units TOTAL","CA2.Housing Type","CA2.Cert of Occ?"]
[{"$f":"'1-Cover Sheet'!$C$8","v":"Select One"},{"$f":"'1-Cover Sheet'!$F$8","v":"Select One"},{"$f":"'Summary Sheet'!$D$8","v":0},{"$f":"'Summary Sheet'!$D$10","v":0},{"$f":"'Drop Down Box'!B166","v":0},{"$f":"'Drop Down Box'!C166","v":0},{"$f":"'Drop Down Box'!D166","v":"Select One"},{"$f":"_xlfn.XLOOKUP(E2,'Drop Down Box'!$B$166:$B$249,'Drop Down Box'!$A$166:$A$249,\"Unknown\",0)","v":"Activity 1"},{"$f":"_xlfn.XLOOKUP($E2,'Activity 1'!$B$17:$B$23,'Activity 1'!$N$17:$N$23,\"\",0)","v":""},{"$f":"_xlfn.XLOOKUP($E2,'Activity 1'!$B$17:$B$23,'Activity 1'!$P$17:$P$23,\"N/A\",0)","v":"N/A"},{"$f":"_xlfn.XLOOKUP($E2,'Activity 1'!$B$7:$B$13,'Activity 1'!E$7:E$13,0,0)","v":0},{"$f":"_xlfn.XLOOKUP($E2,'Activity 1'!$B$7:$B$13,'Activity 1'!F$7:F$13,0,0)","v":"00:00:00"},{"$f":"_xlfn.XLOOKUP($E2,'Activity 1'!$B$7:$B$13,'Activity 1'!G$7:G$13,0,0)","v":0},{"$f":"_xlfn.XLOOKUP($E2,'Activity 1'!$B$7:$B$13,'Activity 1'!$A$7:$A$13,\"No\",0,1)","v":"No"},{"$f":"_xlfn.XLOOKUP($E2,'Activity 1'!$B$7:$B$13,'Activity 1'!$H$7:$H$13,\"N/A\",0,1)","v":"N/A"},{"$f":"_xlfn.XLOOKUP($E2,'Activity 1'!$B$7:$B$13,'Activity 1'!I$7:I$13,\"N/A\",0,1)","v":"N/A"},{"$f":"_xlfn.XLOOKUP($E2,'Activity 1'!$B$7:$B$13,'Activity 1'!J$7:J$13,\"N/A\",0,1)","v":"N/A"},{"$f":"_xlfn.XLOOKUP($E2,'Activity 1'!$B$7:$B$13,'Activity 1'!K$7:K$13,\"N/A\",0,1)","v":"N/A"},{"$f":"_xlfn.XLOOKUP($E2,'Activity 1'!$B$7:$B$13,'Activity 1'!L$7:L$13,\"N/A\",0,1)","v":"N/A"},{"$f":"_xlfn.XLOOKUP($E2,'Activity 1'!$B$7:$B$13,'Activity 1'!M$7:M$13,\"N/A\",0,1)","v":"N/A"},{"$f":"_xlfn.XLOOKUP($E2,'Activity 1'!$B$7:$B$13,'Activity 1'!N$7:N$13,\"N/A\",0,1)","v":"N/A"},{"$f":"SUM(Q2:U2)","v":0},{"$f":"_xlfn.XLOOKUP($E2,'Activity 1'!$B$7:$B$13,'Activity 1'!O$7:O$13,\"N/A\",0,1)","v":"N/A"},{"$f":"_xlfn.XLOOKUP($E2,'Activity 1'!$B$7:$B$13,'Activity 1'!P$7:P$13,\"N/A\",0,1)","v":"N/A"},{"$f":"_xlfn.XLOOKUP($E2,'Activity 1'!$B$7:$B$13,'Activity 1'!Q$7:Q$13,\"N/A\",0,1)","v":"N/A"},{"$f":"_xlfn.XLOOKUP($E2,'Activity 1'!$B$7:$B$13,'Activity 1'!R$7:R$13,\"N/A\",0,1)","v":"N/A"},{"$f":"_xlfn.XLOOKUP($E2,'Activity 1'!$B$7:$B$13,'Activity 1'!S$7:S$13,\"N/A\",0,1)","v":"N/A"},{"$f":"_xlfn.XLOOKUP($E2,'Activity 1'!$B$7:$B$13,'Activity 1'!T$7:T$13,\"N/A\",0,1)","v":"N/A"},{"$f":"_xlfn.XLOOKUP($E2,'Activity 1'!$B$7:$B$13,'Activity 1'!U$7:U$13,\"N/A\",0,1)","v":"N/A"},{"$f":"_xlfn.XLOOKUP($E2,'Activity 1'!$B$7:$B$13,'Activity 1'!V$7:V$13,\"N/A\",0,1)","v":"N/A"},{"$f":"_xlfn.XLOOKUP($E2,'Activity 1'!$B$17:$B$23,'Activity 1'!C$17:C$23,\"N/A\",0,1)","v":"N/A"},{"$f":"_xlfn.XLOOKUP($E2,'Activity 1'!$B$17:$B$23,'Activity 1'!D$17:D$23,\"N/A\",0,1)","v":"N/A"},{"$f":"_xlfn.XLOOKUP($E2,'Activity 1'!$B$17:$B$23,'Activity 1'!E$17:E$23,\"N/A\",0,1)","v":"N/A"},{"$f":"_xlfn.XLOOKUP($E2,'Activity 1'!$B$17:$B$23,'Activity 1'!F$17:F$23,\"N/A\",0,1)","v":"N/A"},{"$f":"_xlfn.XLOOKUP($E2,'Activity 1'!$B$17:$B$23,'Activity 1'!G$17:G$23,\"N/A\",0,1)","v":"N/A"},{"$f":"_xlfn.XLOOKUP($E2,'Activity 1'!$B$17:$B$23,'Activity 1'!H$17:H$23,\"N/A\",0,1)","v":"N/A"},{"$f":"_xlfn.XLOOKUP($E2,'Activity 1'!$B$17:$B$23,'Activity 1'!I$17:I$23,\"N/A\",0,1)","v":"N/A"},{"$f":"_xlfn.XLOOKUP($E2,'Activity 1'!$B$17:$B$23,'Activity 1'!J$17:J$23,\"N/A\",0,1)","v":"N/A"},{"$f":"_xlfn.XLOOKUP($E2,'Activity 1'!$B$17:$B$23,'Activity 1'!K$17:K$23,\"N/A\",0,1)","v":"N/A"},{"$f":"_xlfn.XLOOKUP($E2,'Activity 1'!$B$17:$B$23,'Activity 1'!L$17:L$23,\"N/A\",0,1)","v":"N/A"},{"$f":"_xlfn.XLOOKUP($E2,'Activity 1'!$B$17:$B$23,'Activity 1'!M$17:M$23,\"N/A\",0,1)","v":"N/A"},{"$f":"_xlfn.XLOOKUP($E2,'Activity 1'!$B$17:$B$23,'Activity 1'!O$17:O$23,\"N/A\",0,1)","v":"N/A"},{"$f":"_xlfn.XLOOKUP($E2,'Activity 1'!$B$17:$B$23,'Activity 1'!Q$17:Q$23,\"N/A\",0,1)","v":"N/A"},{"$f":"_xlfn.XLOOKUP($E2,'Activity 2'!$B$7:$B$13,'Activity 2'!$A$7:$A$13,\"No\",0,1)","v":"No"},{"$f":"_xlfn.XLOOKUP($E2,'Activity 2'!B$7:B$13,'Activity 2'!H$7:H$13,\"N/A\",0)","v":"N/A"},{"$f":"_xlfn.XLOOKUP($E2,'Activity 2'!C$7:C$13,'Activity 2'!I$7:I$13,\"N/A\",0)","v":"N/A"},{"$f":"_xlfn.XLOOKUP($E2,'Activity 2'!D$7:D$13,'Activity 2'!J$7:J$13,\"N/A\",0)","v":"N/A"},{"$f":"_xlfn.XLOOKUP($E2,'Activity 2'!E$7:E$13,'Activity 2'!K$7:K$13,\"N/A\",0)","v":"N/A"},{"$f":"_xlfn.XLOOKUP($E2,'Activity 2'!F$7:F$13,'Activity 2'!L$7:L$13,\"N/A\",0)","v":"N/A"},{"$f":"_xlfn.XLOOKUP($E2,'Activity 2'!G$7:G$13,'Activity 2'!M$7:M$13,\"N/A\",0)","v":"N/A"},{"$f":"_xlfn.XLOOKUP($E2,'Activity 2'!H$7:H$13,'Activity 2'!N$7:N$13,\"N/A\",0)","v":"N/A"},{"$f":"_xlfn.XLOOKUP($E2,'Activity 2'!I$7:I$13,'Activity 2'!O$7:O$13,\"N/A\",0)","v":"N/A"},{"$f":"_xlfn.XLOOKUP($E2,'Activity 2'!J$7:J$13,'Activity 2'!P$7:P$13,\"N/A\",0)","v":"N/A"},{"$f":"_xlfn.XLOOKUP($E2,'Activity 2'!K$7:K$13,'Activity 2'!Q$7:Q$13,\"N/A\",0)","v":"N/A"},{"$f":"_xlfn.XLOOKUP($E2,'Activity 2'!L$7:L$13,'Activity 2'!R$7:R$13,\"N/A\",0)","v":"N/A"},{"$f":"_xlfn.XLOOKUP($E2,'Activity 2'!M$7:M$13,'Activity 2'!S$7:S$13,\"N/A\",0)","v":"N/A"},{"$f":"_xlfn.XLOOKUP($E2,'Activity 2'!N$7:N$13,'Activity 2'!T$7:T$13,\"N/A\",0)","v":"N/A"},{"$f":"_xlfn.XLOOKUP($E2,'Activity 2'!O$7:O$13,'Activity 2'!U$7:U$13,\"N/A\",0)","v":"N/A"},{"$f":"_xlfn.XLOOKUP($E2,'Activity 2'!P$7:P$13,'Activity 2'!V$7:V$13,\"N/A\",0)","v":"N/A"},{"$f":"_xlfn.XLOOKUP($E2,'Activity 2'!$B$17:$B$23,'Activity 2'!C$17:C$23,\"N/A\",0,1)","v":"N/A"},{"$f":"_xlfn.XLOOKUP($E2,'Activity 2'!$B$17:$B$23,'Activity 2'!D$17:D$23,\"N/A\",0,1)","v":"N/A"},{"$f":"_xlfn.XLOOKUP($E2,'Activity 2'!$B$17:$B$23,'Activity 2'!E$17:E$23,\"N/A\",0,1)","v":"N/A"},{"$f":"_xlfn.XLOOKUP($E2,'Activity 2'!$B$17:$B$23,'Activity 2'!F$17:F$23,\"N/A\",0,1)","v":"N/A"},{"$f":"_xlfn.XLOOKUP($E2,'Activity 2'!$B$17:$B$23,'Activity 2'!G$17:G$23,\"N/A\",0,1)","v":"N/A"},{"$f":"_xlfn.XLOOKUP($E2,'Activity 2'!$B$17:$B$23,'Activity 2'!H$17:H$23,\"N/A\",0,1)","v":"N/A"},{"$f":"_xlfn.XLOOKUP($E2,'Activity 2'!$B$17:$B$23,'Activity 2'!I$17:I$23,\"N/A\",0,1)","v":"N/A"},{"$f":"_xlfn.XLOOKUP($E2,'Activity 2'!$B$17:$B$23,'Activity 2'!J$17:J$23,\"N/A\",0,1)","v":"N/A"},{"$f":"_xlfn.XLOOKUP($E2,'Activity 2'!$B$17:$B$23,'Activity 2'!K$17:K$23,\"N/A\",0,1)","v":"N/A"},{"$f":"_xlfn.XLOOKUP($E2,'Activity 2'!$B$17:$B$23,'Activity 2'!L$17:L$23,\"N/A\",0,1)","v":"N/A"},{"$f":"_xlfn.XLOOKUP($E2,'Activity 2'!$B$17:$B$23,'Activity 2'!M$17:M$23,\"N/A\",0,1)","v":"N/A"},{"$f":"_xlfn.XLOOKUP($E2,'Activity 2'!$B$17:$B$23,'Activity 2'!O$17:O$23,\"N/A\",0,1)","v":"N/A"},{"$f":"_xlfn.XLOOKUP($E2,'Activity 2'!$B$17:$B$23,'Activity 2'!Q$17:Q$23,\"N/A\",0,1)","v":"N/A"},{"$f":"_xlfn.XLOOKUP($E2,'Activity 3'!$B$8:$B$14,'Activity 3'!A$8:A$14,\"No\",0,1)","v":"No"},{"$f":"_xlfn.XLOOKUP($E2,'Activity 3'!$B$8:$B$14,'Activity 3'!K$8:K$14,\"N/A\",0,1)","v":"N/A"},{"$f":"_xlfn.XLOOKUP($E2,'Activity 3'!$B$8:$B$14,'Activity 3'!L$8:L$14,\"N/A\",0,1)","v":"N/A"},{"$f":"_xlfn.XLOOKUP($E2,'Activity 3'!$B$8:$B$14,'Activity 3'!M$8:M$14,\"N/A\",0,1)","v":"N/A"},{"$f":"_xlfn.XLOOKUP($E2,'Activity 3'!$B$8:$B$14,'Activity 3'!N$8:N$14,\"N/A\",0,1)","v":"N/A"},{"$f":"_xlfn.XLOOKUP($E2,'Activity 3'!$B$8:$B$14,'Activity 3'!O$8:O$14,\"N/A\",0,1)","v":"N/A"},{"$f":"_xlfn.XLOOKUP($E2,'Activity 3'!$B$8:$B$14,'Activity 3'!R$8:R$14,\"N/A\",0,1)","v":"N/A"},{"$f":"_xlfn.XLOOKUP($E2,'Activity 4'!$B$8:$B$14,'Activity 4'!$A$8:$A$14,\"No\",0,1)","v":"No"},{"$f":"_xlfn.XLOOKUP($E2,'Activity 4'!$B$8:$B$14,'Activity 4'!L$8:L$14,\"N/A\",0,1)","v":"N/A"},{"$f":"_xlfn.XLOOKUP($E2,'Activity 4'!$B$8:$B$14,'Activity 4'!D$8:D$14,\"N/A\",0,1)","v":"N/A"},{"$f":"_xlfn.XLOOKUP($E2,'Activity 4'!$B$8:$B$14,'Activity 4'!G$8:G$14,\"N/A\",0,1)","v":"N/A"},{"$f":"_xlfn.XLOOKUP($E2,'Activity 5'!$B$8:$B$14,'Activity 5'!$A$8:$A$14,\"No\",0,1)","v":"No"},{"$f":"_xlfn.XLOOKUP($E2,'Activity 5'!$B$8:$B$14,'Activity 5'!J$8:J$14,\"N/A\",0,1)","v":"N/A"},{"$f":"_xlfn.XLOOKUP($E2,'Activity 5'!$B$8:$B$14,'Activity 5'!K$8:K$14,\"N/A\",0,1)","v":"N/A"},{"$f":"_xlfn.XLOOKUP($E2,'Activity 5'!$B$8:$B$14,'Activity 5'!N$8:N$14,\"N/A\",0,1)","v":"N/A"},{"$f":"_xlfn.XLOOKUP($E2,'Activity 5'!$B$8:$B$14,'Activity 5'!O$8:O$14,\"N/A\",0,1)","v":"N/A"},{"$f":"_xlfn.XLOOKUP($E2,'Activity 5'!$B$8:$B$14,'Activity 5'!P$8:P$14,\"N/A\",0,1)","v":"N/A"},{"$f":"_xlfn.XLOOKUP($E2,'Activity 5'!$B$8:$B$14,'Activity 5'!Q$8:Q$14,\"N/A\",0,1)","v":"N/A"},{"$f":"_xlfn.XLOOKUP($E2,'Activity 5'!$B$8:$B$14,'Activity 5'!R$8:R$14,\"N/A\",0,1)","v":"N/A"},{"$f":"_xlfn.XLOOKUP($E2,'Activity 6'!$B$7:$B$13,'Activity 6'!A$7:A$13,\"No\",0,1)","v":"No"},{"$f":"_xlfn.XLOOKUP($E2,'Activity 6'!$B$7:$B$13,'Activity 6'!K$7:K$13,\"N/A\",0,1)","v":"N/A"},{"$f":"_xlfn.XLOOKUP($E2,'Activity 6'!$B$7:$B$13,'Activity 6'!L$7:L$13,\"N/A\",0,1)","v":"N/A"},{"$f":"_xlfn.XLOOKUP($E2,'Activity 6'!$B$7:$B$13,'Activity 6'!M$7:M$13,\"N/A\",0,1)","v":"N/A"},{"$f":"_xlfn.XLOOKUP($E2,'Activity 6'!$B$7:$B$13,'Activity 6'!N$7:N$13,\"N/A\",0,1)","v":"N/A"},{"$f":"_xlfn.XLOOKUP($E2,'Activity 6'!$B$7:$B$13,'Activity 6'!O$7:O$13,\"N/A\",0,1)","v":"N/A"},{"$f":"_xlfn.XLOOKUP($E2,'Activity 6'!$B$7:$B$13,'Activity 6'!P$7:P$13,\"N/A\",0,1)","v":"N/A"},{"$f":"_xlfn.XLOOKUP($E2,'Activity 6'!$B$7:$B$13,'Activity 6'!Q$7:Q$13,\"N/A\",0,1)","v":"N/A"},{"$f":"_xlfn.XLOOKUP($E2,'Activity 6'!$B$7:$B$13,'Activity 6'!R$7:R$13,\"N/A\",0,1)","v":"N/A"},{"$f":"_xlfn.XLOOKUP($E2,'Activity 6'!$B$7:$B$13,'Activity 6'!S$7:S$13,\"N/A\",0,1)","v":"N/A"},{"$f":"_xlfn.XLOOKUP($E2,'Activity 6'!$B$7:$B$13,'Activity 6'!T$7:T$13,\"N/A\",0,1)","v":"N/A"},{"$f":"_xlfn.XLOOKUP($E2,'Activity 6'!$B$7:$B$13,'Activity 6'!U$7:U$13,\"N/A\",0,1)","v":"N/A"},{"$f":"_xlfn.XLOOKUP($E2,'Activity 6'!$B$22:$B$28,'Activity 6'!C$22:C$28,\"N/A\",0,1)","v":"N/A"},{"$f":"_xlfn.XLOOKUP($E2,'Activity 6'!$B$22:$B$28,'Activity 6'!D$22:D$28,\"N/A\",0,1)","v":"N/A"},{"$f":"_xlfn.XLOOKUP($E2,'Activity 6'!$B$22:$B$28,'Activity 6'!E$22:E$28,\"N/A\",0,1)","v":"N/A"},{"$f":"_xlfn.XLOOKUP($E2,'Activity 6'!$B$22:$B$28,'Activity 6'!F$22:F$28,\"N/A\",0,1)","v":"N/A"},{"$f":"_xlfn.XLOOKUP($E2,'Activity 6'!$B$22:$B$28,'Activity 6'!G$22:G$28,\"N/A\",0,1)","v":"N/A"},{"$f":"_xlfn.XLOOKUP($E2,'Activity 6'!$B$22:$B$28,'Activity 6'!H$22:H$28,\"N/A\",0,1)","v":"N/A"},{"$f":"_xlfn.XLOOKUP($E2,'Activity 6'!$B$22:$B$28,'Activity 6'!I$22:I$28,\"N/A\",0,1)","v":"N/A"},{"$f":"_xlfn.XLOOKUP($E2,'Activity 6'!$B$22:$B$28,'Activity 6'!J$22:J$28,\"N/A\",0,1)","v":"N/A"},{"$f":"_xlfn.XLOOKUP($E2,'Activity 6'!$B$22:$B$28,'Activity 6'!K$22:K$28,\"N/A\",0,1)","v":"N/A"},{"$f":"_xlfn.XLOOKUP($E2,'Activity 6'!$B$22:$B$28,'Activity 6'!L$22:L$28,\"N/A\",0,1)","v":"N/A"},{"$f":"_xlfn.XLOOKUP($E2,'Activity 6'!$B$22:$B$28,'Activity 6'!M$22:M$28,\"N/A\",0,1)","v":"N/A"},{"$f":"_xlfn.XLOOKUP($E2,'Activity 6'!$B$22:$B$28,'Activity 6'!N$22:N$28,\"N/A\",0,1)","v":"N/A"},{"$f":"_xlfn.XLOOKUP($E2,'Activity 6'!$B$32:$B$38,'Activity 6'!C$32:C$38,\"N/A\",0,1)","v":"N/A"},{"$f":"_xlfn.XLOOKUP($E2,'Activity 6'!$B$32:$B$38,'Activity 6'!D$32:D$38,\"N/A\",0,1)","v":"N/A"},{"$f":"_xlfn.XLOOKUP($E2,'Activity 6'!$B$32:$B$38,'Activity 6'!E$32:E$38,\"N/A\",0,1)","v":"N/A"},{"$f":"_xlfn.XLOOKUP($E2,'Activity 6'!$B$32:$B$38,'Activity 6'!F$32:F$38,\"N/A\",0,1)","v":"N/A"},{"$f":"_xlfn.XLOOKUP($E2,'Activity 6'!$B$32:$B$38,'Activity 6'!G$32:G$38,\"N/A\",0,1)","v":"N/A"},{"$f":"_xlfn.XLOOKUP($E2,'Activity 6'!$B$32:$B$38,'Activity 6'!H$32:H$38,\"N/A\",0,1)","v":"N/A"},{"$f":"_xlfn.XLOOKUP($E2,'Activity 6'!$B$32:$B$38,'Activity 6'!I$32:I$38,\"N/A\",0,1)","v":"N/A"},{"$f":"_xlfn.XLOOKUP($E2,'Activity 6'!$B$32:$B$38,'Activity 6'!J$32:J$38,\"N/A\",0,1)","v":"N/A"},{"$f":"_xlfn.XLOOKUP($E2,'Activity 6'!$B$32:$B$38,'Activity 6'!K$32:K$38,\"N/A\",0,1)","v":"N/A"},{"$f":"_xlfn.XLOOKUP($E2,'Activity 6'!$B$32:$B$38,'Activity 6'!M$32:M$38,\"N/A\",0,1)","v":"N/A"},{"$f":"_xlfn.XLOOKUP($E2,'Activity 7'!$B$7:$B$13,'Activity 7'!$A$7:$A$13,\"No\",0,1)","v":"No"},{"$f":"_xlfn.XLOOKUP($E2,'Activity 7'!$B$7:$B$13,'Activity 7'!M$7:M$13,\"N/A\",0,1)","v":"N/A"},{"$f":"_xlfn.XLOOKUP($E2,'Activity 7'!$B$7:$B$13,'Activity 7'!K$7:K$13,\"N/A\",0,1)","v":"N/A"},{"$f":"_xlfn.XLOOKUP($E2,'Activity 7'!$B$7:$B$13,'Activity 7'!N$7:N$13,\"N/A\",0,1)","v":"N/A"},{"$f":"_xlfn.XLOOKUP($E2,'Activity 7'!$B$7:$B$13,'Activity 7'!O$7:O$13,\"N/A\",0,1)","v":"N/A"},{"$f":"_xlfn.XLOOKUP($E2,'Activity 7'!$B$7:$B$13,'Activity 7'!P$7:P$13,\"N/A\",0,1)","v":"N/A"},{"$f":"_xlfn.XLOOKUP($E2,'Activity 7'!$B$7:$B$13,'Activity 7'!Q$7:Q$13,\"N/A\",0,1)","v":"N/A"},{"$f":"_xlfn.XLOOKUP($E2,'Activity 7'!$B$7:$B$13,'Activity 7'!R$7:R$13,\"N/A\",0,1)","v":"N/A"},{"$f":"_xlfn.XLOOKUP($E2,'Activity 7'!$B$7:$B$13,'Activity 7'!S$7:S$13,\"N/A\",0,1)","v":"N/A"},{"$f":"_xlfn.XLOOKUP($E2,'Activity 7'!$B$7:$B$13,'Activity 7'!T$7:T$13,\"N/A\",0,1)","v":"N/A"},{"$f":"_xlfn.XLOOKUP($E2,'Activity 7'!$B$7:$B$13,'Activity 7'!U$7:U$13,\"N/A\",0,1)","v":"N/A"},{"$f":"_xlfn.XLOOKUP($E2,'Activity 7'!$B$7:$B$13,'Activity 7'!V$7:V$13,\"N/A\",0,1)","v":"N/A"},{"$f":"_xlfn.XLOOKUP($E2,'Activity 7'!$B$17:$B$23,'Activity 7'!E$17:E$23,\"N/A\",0,1)","v":"N/A"},{"$f":"_xlfn.XLOOKUP($E2,'Activity 7'!$B$17:$B$23,'Activity 7'!G$17:G$23,\"N/A\",0,1)","v":"N/A"},{"$f":"_xlfn.XLOOKUP($E2,'Activity 7'!$B$17:$B$23,'Activity 7'!I$17:I$23,\"N/A\",0,1)","v":"N/A"},{"$f":"_xlfn.XLOOKUP($E2,'Activity 7'!$B$17:$B$23,'Activity 7'!J$17:J$23,\"N/A\",0,1)","v":"N/A"},{"$f":"_xlfn.XLOOKUP($E2,'Activity 7'!$B$17:$B$23,'Activity 7'!K$17:K$23,\"N/A\",0,1)","v":"N/A"},{"$f":"_xlfn.XLOOKUP($E2,'Activity 7'!$B$17:$B$23,'Activity 7'!L$17:L$23,\"N/A\",0,1)","v":"N/A"},{"$f":"_xlfn.XLOOKUP($E2,'Activity 7'!$B$17:$B$23,'Activity 7'!M$17:M$23,\"N/A\",0,1)","v":"N/A"},{"$f":"_xlfn.XLOOKUP($E2,'Activity 7'!$B$17:$B$23,'Activity 7'!N$17:N$23,\"N/A\",0,1)","v":"N/A"},{"$f":"_xlfn.XLOOKUP($E2,'Activity 7'!$B$17:$B$23,'Activity 7'!P$17:P$23,\"N/A\",0,1)","v":"N/A"},{"$f":"_xlfn.XLOOKUP($E2,'Activity 8'!$B$7:$B$13,'Activity 8'!A$7:A$13,\"No\",0,1)","v":"No"},{"$f":"_xlfn.XLOOKUP($E2,'Activity 8'!$B$7:$B$13,'Activity 8'!I$7:I$13,\"N/A\",0,1)","v":"N/A"},{"$f":"_xlfn.XLOOKUP($E2,'Activity 8'!$B$7:$B$13,'Activity 8'!J$7:J$13,\"N/A\",0,1)","v":"N/A"},{"$f":"_xlfn.XLOOKUP($E2,'Activity 8'!$B$7:$B$13,'Activity 8'!K$7:K$13,\"N/A\",0,1)","v":"N/A"},{"$f":"_xlfn.XLOOKUP($E2,'Activity 8'!$B$7:$B$13,'Activity 8'!L$7:L$13,\"N/A\",0,1)","v":"N/A"},{"$f":"_xlfn.XLOOKUP($E2,'Activity 8'!$B$7:$B$13,'Activity 8'!M$7:M$13,\"N/A\",0,1)","v":"N/A"},{"$f":"_xlfn.XLOOKUP($E2,'Activity 8'!$B$7:$B$13,'Activity 8'!N$7:N$13,\"N/A\",0,1)","v":"N/A"},{"$f":"_xlfn.XLOOKUP($E2,'Activity 8'!$B$7:$B$13,'Activity 8'!O$7:O$13,\"N/A\",0,1)","v":"N/A"},{"$f":"_xlfn.XLOOKUP($E2,'Activity 8'!$B$7:$B$13,'Activity 8'!P$7:P$13,\"N/A\",0,1)","v":"N/A"},{"$f":"_xlfn.XLOOKUP($E2,'Activity 8'!$B$7:$B$13,'Activity 8'!Q$7:Q$13,\"N/A\",0,1)","v":"N/A"},{"$f":"_xlfn.XLOOKUP($E2,'Activity 8'!$B$7:$B$13,'Activity 8'!R$7:R$13,\"N/A\",0,1)","v":"N/A"},{"$f":"_xlfn.XLOOKUP($E2,'Activity 8'!$B$7:$B$13,'Activity 8'!S$7:S$13,\"N/A\",0,1)","v":"N/A"},{"$f":"_xlfn.XLOOKUP($E2,'Activity 8'!$B$7:$B$13,'Activity 8'!T$7:T$13,\"N/A\",0,1)","v":"N/A"},{"$f":"_xlfn.XLOOKUP($E2,'Activity 8'!$B$7:$B$13,'Activity 8'!U$7:U$13,\"N/A\",0,1)","v":"N/A"},{"$f":"_xlfn.XLOOKUP($E2,'Activity 8'!$B$7:$B$13,'Activity 8'!V$7:V$13,\"N/A\",0,1)","v":"N/A"},{"$f":"_xlfn.XLOOKUP($E2,'Activity 8'!$B$17:$B$23,'Activity 8'!D$17:D$23,\"N/A\",0,1)","v":"N/A"},{"$f":"_xlfn.XLOOKUP($E2,'Activity 8'!$B$17:$B$23,'Activity 8'!E$17:E$23,\"N/A\",0,1)","v":"N/A"},{"$f":"_xlfn.XLOOKUP($E2,'Activity 8'!$B$17:$B$23,'Activity 8'!F$17:F$23,\"N/A\",0,1)","v":"N/A"},{"$f":"_xlfn.XLOOKUP($E2,'Activity 8'!$B$17:$B$23,'Activity 8'!G$17:G$23,\"N/A\",0,1)","v":"N/A"},{"$f":"_xlfn.XLOOKUP($E2,'Activity 8'!$B$17:$B$23,'Activity 8'!H$17:H$23,\"N/A\",0,1)","v":"N/A"},{"$f":"_xlfn.XLOOKUP($E2,'Activity 8'!$B$17:$B$23,'Activity 8'!I$17:I$23,\"N/A\",0,1)","v":"N/A"},{"$f":"_xlfn.XLOOKUP($E2,'Activity 8'!$B$17:$B$23,'Activity 8'!J$17:J$23,\"N/A\",0,1)","v":"N/A"},{"$f":"_xlfn.XLOOKUP($E2,'Activity 8'!$B$17:$B$23,'Activity 8'!K$17:K$23,\"N/A\",0,1)","v":"N/A"},{"$f":"_xlfn.XLOOKUP($E2,'Activity 8'!$B$17:$B$23,'Activity 8'!L$17:L$23,\"N/A\",0,1)","v":"N/A"},{"$f":"_xlfn.XLOOKUP($E2,'Activity 8'!$B$17:$B$23,'Activity 8'!M$17:M$23,\"N/A\",0,1)","v":"N/A"},{"$f":"_xlfn.XLOOKUP($E2,'Activity 8'!$B$17:$B$23,'Activity 8'!N$17:N$23,\"N/A\",0,1)","v":"N/A"},{"$f":"_xlfn.XLOOKUP($E2,'Activity 8'!$B$17:$B$23,'Activity 8'!P$17:P$23,\"N/A\",0,1)","v":"N/A"},{"$f":"_xlfn.XLOOKUP(E2,'Activity 9'!$B$7:$B$13,'Activity 9'!$A$7:$A$13,\"No\",0,1)","v":"No"},{"$f":"_xlfn.XLOOKUP($E2,'Activity 9'!$B$7:$B$13,'Activity 9'!J$7:J$13,\"N/A\",0,1)","v":"N/A"},{"$f":"_xlfn.XLOOKUP($E2,'Activity 9'!$B$7:$B$13,'Activity 9'!K$7:K$13,\"N/A\",0,1)","v":"N/A"},{"$f":"_xlfn.XLOOKUP($E2,'Activity 9'!$B$7:$B$13,'Activity 9'!L$7:L$13,\"N/A\",0,1)","v":"N/A"},{"$f":"_xlfn.XLOOKUP($E2,'Activity 9'!$B$7:$B$13,'Activity 9'!M$7:M$13,\"N/A\",0,1)","v":"N/A"},{"$f":"_xlfn.XLOOKUP($E2,'Activity 9'!$B$7:$B$13,'Activity 9'!N$7:N$13,\"N/A\",0,1)","v":"N/A"},{"$f":"_xlfn.XLOOKUP($E2,'Activity 9'!$B$7:$B$13,'Activity 9'!O$7:O$13,\"N/A\",0,1)","v":"N/A"},{"$f":"_xlfn.XLOOKUP($E2,'Activity 9'!$B$7:$B$13,'Activity 9'!P$7:P$13,\"N/A\",0,1)","v":"N/A"},{"$f":"_xlfn.XLOOKUP($E2,'Activity 9'!$B$7:$B$13,'Activity 9'!Q$7:Q$13,\"N/A\",0,1)","v":"N/A"},{"$f":"_xlfn.XLOOKUP($E2,'Activity 9'!$B$7:$B$13,'Activity 9'!R$7:R$13,\"N/A\",0,1)","v":"N/A"},{"$f":"_xlfn.XLOOKUP($E2,'Activity 9'!$B$7:$B$13,'Activity 9'!S$7:S$13,\"N/A\",0,1)","v":"N/A"},{"$f":"_xlfn.XLOOKUP($E2,'Activity 9'!$B$7:$B$13,'Activity 9'!T$7:T$13,\"N/A\",0,1)","v":"N/A"},{"$f":"_xlfn.XLOOKUP($E2,'Activity 9'!$B$17:$B$23,'Activity 9'!E$17:E$23,\"N/A\",0,1)","v":"N/A"},{"$f":"_xlfn.XLOOKUP($E2,'Activity 9'!$B$17:$B$23,'Activity 9'!F$17:F$23,\"N/A\",0,1)","v":"N/A"},{"$f":"_xlfn.XLOOKUP($E2,'Activity 9'!$B$17:$B$23,'Activity 9'!G$17:G$23,\"N/A\",0,1)","v":"N/A"},{"$f":"_xlfn.XLOOKUP($E2,'Activity 9'!$B$17:$B$23,'Activity 9'!H$17:H$23,\"N/A\",0,1)","v":"N/A"},{"$f":"_xlfn.XLOOKUP($E2,'Activity 9'!$B$17:$B$23,'Activity 9'!I$17:I$23,\"N/A\",0,1)","v":"N/A"},{"$f":"_xlfn.XLOOKUP($E2,'Activity 9'!$B$17:$B$23,'Activity 9'!J$17:J$23,\"N/A\",0,1)","v":"N/A"},{"$f":"_xlfn.XLOOKUP($E2,'Activity 9'!$B$17:$B$23,'Activity 9'!K$17:K$23,\"N/A\",0,1)","v":"N/A"},{"$f":"_xlfn.XLOOKUP($E2,'Activity 9'!$B$17:$B$23,'Activity 9'!L$17:L$23,\"N/A\",0,1)","v":"N/A"},{"$f":"_xlfn.XLOOKUP($E2,'Activity 9'!$B$17:$B$23,'Activity 9'!N$17:N$23,\"N/A\",0,1)","v":"N/A"},{"$f":"_xlfn.XLOOKUP($E2,'Activity 9'!$B$17:$B$23,'Activity 9'!O$17:O$23,\"N/A\",0,1)","v":"N/A"},{"$f":"_xlfn.XLOOKUP($E2,'Activity 9'!$B$17:$B$23,'Activity 9'!Q$17:Q$23,\"N/A\",0,1)","v":"N/A"},{"$f":"_xlfn.XLOOKUP($E2,'Activity 10'!$B$7:$B$13,'Activity 10'!A$7:A$13,\"No\",0,1)","v":"No"},{"$f":"_xlfn.XLOOKUP($E2,'Activity 10'!$B$7:$B$13,'Activity 10'!J$7:J$13,\"N/A\",0,1)","v":"N/A"},{"$f":"_xlfn.XLOOKUP($E2,'Activity 10'!$B$7:$B$13,'Activity 10'!K$7:K$13,\"N/A\",0,1)","v":"N/A"},{"$f":"_xlfn.XLOOKUP($E2,'Activity 10'!$B$7:$B$13,'Activity 10'!L$7:L$13,\"N/A\",0,1)","v":"N/A"},{"$f":"_xlfn.XLOOKUP($E2,'Activity 10'!$B$7:$B$13,'Activity 10'!M$7:M$13,\"N/A\",0,1)","v":"N/A"},{"$f":"_xlfn.XLOOKUP($E2,'Activity 10'!$B$7:$B$13,'Activity 10'!N$7:N$13,\"N/A\",0,1)","v":"N/A"},{"$f":"_xlfn.XLOOKUP($E2,'Activity 10'!$B$7:$B$13,'Activity 10'!O$7:O$13,\"N/A\",0,1)","v":"N/A"},{"$f":"_xlfn.XLOOKUP($E2,'Activity 10'!$B$7:$B$13,'Activity 10'!P$7:P$13,\"N/A\",0,1)","v":"N/A"},{"$f":"_xlfn.XLOOKUP($E2,'Activity 10'!$B$7:$B$13,'Activity 10'!Q$7:Q$13,\"N/A\",0,1)","v":"N/A"},{"$f":"_xlfn.XLOOKUP($E2,'Activity 10'!$B$7:$B$13,'Activity 10'!R$7:R$13,\"N/A\",0,1)","v":"N/A"},{"$f":"_xlfn.XLOOKUP($E2,'Activity 10'!$B$7:$B$13,'Activity 10'!S$7:S$13,\"N/A\",0,1)","v":"N/A"},{"$f":"_xlfn.XLOOKUP($E2,'Activity 10'!$B$7:$B$13,'Activity 10'!T$7:T$13,\"N/A\",0,1)","v":"N/A"},{"$f":"_xlfn.XLOOKUP($E2,'Activity 10'!$B$7:$B$13,'Activity 10'!U$7:U$13,\"N/A\",0,1)","v":"N/A"},{"$f":"_xlfn.XLOOKUP($E2,'Activity 10'!$B$7:$B$13,'Activity 10'!V$7:V$13,\"N/A\",0,1)","v":"N/A"},{"$f":"_xlfn.XLOOKUP($E2,'Activity 10'!$B$17:$B$23,'Activity 10'!E$17:E$23,\"N/A\",0,1)","v":"N/A"},{"$f":"_xlfn.XLOOKUP($E2,'Activity 10'!$B$17:$B$23,'Activity 10'!F$17:F$23,\"N/A\",0,1)","v":"N/A"},{"$f":"_xlfn.XLOOKUP($E2,'Activity 10'!$B$17:$B$23,'Activity 10'!G$17:G$23,\"N/A\",0,1)","v":"N/A"},{"$f":"_xlfn.XLOOKUP($E2,'Activity 10'!$B$17:$B$23,'Activity 10'!H$17:H$23,\"N/A\",0,1)","v":"N/A"},{"$f":"_xlfn.XLOOKUP($E2,'Activity 10'!$B$17:$B$23,'Activity 10'!I$17:I$23,\"N/A\",0,1)","v":"N/A"},{"$f":"_xlfn.XLOOKUP($E2,'Activity 10'!$B$17:$B$23,'Activity 10'!J$17:J$23,\"N/A\",0,1)","v":"N/A"},{"$f":"_xlfn.XLOOKUP($E2,'Activity 10'!$B$17:$B$23,'Activity 10'!K$17:K$23,\"N/A\",0,1)","v":"N/A"},{"$f":"_xlfn.XLOOKUP($E2,'Activity 10'!$B$17:$B$23,'Activity 10'!L$17:L$23,\"N/A\",0,1)","v":"N/A"},{"$f":"_xlfn.XLOOKUP($E2,'Activity 10'!$B$17:$B$23,'Activity 10'!M$17:M$23,\"N/A\",0,1)","v":"N/A"},{"$f":"_xlfn.XLOOKUP($E2,'Activity 10'!$B$17:$B$23,'Activity 10'!N$17:N$23,\"N/A\",0,1)","v":"N/A"},{"$f":"_xlfn.XLOOKUP($E2,'Activity 10'!$B$17:$B$23,'Activity 10'!P$17:P$23,\"N/A\",0,1)","v":"N/A"},{"$f":"_xlfn.XLOOKUP($E2,'Competitive Activity 1'!B$7:B$13,'Competitive Activity 1'!A$7:A$13,\"No\",0,1)","v":"No"},{"$f":"_xlfn.XLOOKUP($E2,'Competitive Activity 1'!$B$7:$B$13,'Competitive Activity 1'!H$7:H$13,\"N/A\",0,1)","v":"N/A"},{"$f":"_xlfn.XLOOKUP($E2,'Competitive Activity 1'!$B$7:$B$13,'Competitive Activity 1'!I$7:I$13,\"N/A\",0,1)","v":"N/A"},{"$f":"_xlfn.XLOOKUP($E2,'Competitive Activity 1'!$B$7:$B$13,'Competitive Activity 1'!J$7:J$13,\"N/A\",0,1)","v":"N/A"},{"$f":"_xlfn.XLOOKUP($E2,'Competitive Activity 1'!$B$7:$B$13,'Competitive Activity 1'!K$7:K$13,\"N/A\",0,1)","v":"N/A"},{"$f":"_xlfn.XLOOKUP($E2,'Competitive Activity 1'!$B$7:$B$13,'Competitive Activity 1'!L$7:L$13,\"N/A\",0,1)","v":"N/A"},{"$f":"_xlfn.XLOOKUP($E2,'Competitive Activity 1'!$B$7:$B$13,'Competitive Activity 1'!M$7:M$13,\"N/A\",0,1)","v":"N/A"},{"$f":"_xlfn.XLOOKUP($E2,'Competitive Activity 1'!$B$7:$B$13,'Competitive Activity 1'!N$7:N$13,\"N/A\",0,1)","v":"N/A"},{"$f":"_xlfn.XLOOKUP($E2,'Competitive Activity 1'!$B$7:$B$13,'Competitive Activity 1'!O$7:O$13,\"N/A\",0,1)","v":"N/A"},{"$f":"_xlfn.XLOOKUP($E2,'Competitive Activity 1'!$B$7:$B$13,'Competitive Activity 1'!P$7:P$13,\"N/A\",0,1)","v":"N/A"},{"$f":"_xlfn.XLOOKUP($E2,'Competitive Activity 1'!$B$7:$B$13,'Competitive Activity 1'!Q$7:Q$13,\"N/A\",0,1)","v":"N/A"},{"$f":"_xlfn.XLOOKUP($E2,'Competitive Activity 1'!$B$7:$B$13,'Competitive Activity 1'!R$7:R$13,\"N/A\",0,1)","v":"N/A"},{"$f":"_xlfn.XLOOKUP($E2,'Competitive Activity 1'!$B$7:$B$13,'Competitive Activity 1'!S$7:S$13,\"N/A\",0,1)","v":"N/A"},{"$f":"_xlfn.XLOOKUP($E2,'Competitive Activity 1'!$B$7:$B$13,'Competitive Activity 1'!T$7:T$13,\"N/A\",0,1)","v":"N/A"},{"$f":"_xlfn.XLOOKUP($E2,'Competitive Activity 1'!$B$7:$B$13,'Competitive Activity 1'!U$7:U$13,\"N/A\",0,1)","v":"N/A"},{"$f":"_xlfn.XLOOKUP($E2,'Competitive Activity 1'!$B$17:$B$23,'Competitive Activity 1'!C$17:C$23,\"N/A\",0,1)","v":"N/A"},{"$f":"_xlfn.XLOOKUP($E2,'Competitive Activity 1'!$B$17:$B$23,'Competitive Activity 1'!D$17:D$23,\"N/A\",0,1)","v":"N/A"},{"$f":"_xlfn.XLOOKUP($E2,'Competitive Activity 1'!$B$17:$B$23,'Competitive Activity 1'!E$17:E$23,\"N/A\",0,1)","v":"N/A"},{"$f":"_xlfn.XLOOKUP($E2,'Competitive Activity 1'!$B$17:$B$23,'Competitive Activity 1'!F$17:F$23,\"N/A\",0,1)","v":"N/A"},{"$f":"_xlfn.XLOOKUP($E2,'Competitive Activity 1'!$B$17:$B$23,'Competitive Activity 1'!G$17:G$23,\"N/A\",0,1)","v":"N/A"},{"$f":"_xlfn.XLOOKUP($E2,'Competitive Activity 1'!$B$17:$B$23,'Competitive Activity 1'!H$17:H$23,\"N/A\",0,1)","v":"N/A"},{"$f":"_xlfn.XLOOKUP($E2,'Competitive Activity 1'!$B$17:$B$23,'Competitive Activity 1'!I$17:I$23,\"N/A\",0,1)","v":"N/A"},{"$f":"_xlfn.XLOOKUP($E2,'Competitive Activity 1'!$B$17:$B$23,'Competitive Activity 1'!J$17:J$23,\"N/A\",0,1)","v":"N/A"},{"$f":"_xlfn.XLOOKUP($E2,'Competitive Activity 1'!$B$17:$B$23,'Competitive Activity 1'!K$17:K$23,\"N/A\",0,1)","v":"N/A"},{"$f":"_xlfn.XLOOKUP($E2,'Competitive Activity 1'!$B$17:$B$23,'Competitive Activity 1'!M$17:M$23,\"N/A\",0,1)","v":"N/A"},{"$f":"_xlfn.XLOOKUP($E2,'Competitive Activity 1'!$B$17:$B$23,'Competitive Activity 1'!N$17:N$23,\"N/A\",0,1)","v":"N/A"},{"$f":"_xlfn.XLOOKUP($E2,'Competitive Activity 1'!$B$17:$B$23,'Competitive Activity 1'!P$17:P$23,\"N/A\",0,1)","v":"N/A"},{"$f":"_xlfn.XLOOKUP($E2,'Competitive Activity 2'!$B$7:$B$13,'Competitive Activity 2'!A$7:A$13,\"No\",0)","v":"No"},{"$f":"_xlfn.XLOOKUP($E2,'Competitive Activity 2'!$B$7:$B$13,'Competitive Activity 2'!L$7:L$13,\"N/A\",0)","v":"N/A"},{"$f":"_xlfn.XLOOKUP($E2,'Competitive Activity 2'!$B$7:$B$13,'Competitive Activity 2'!M$7:M$13,\"N/A\",0)","v":"N/A"},{"$f":"_xlfn.XLOOKUP($E2,'Competitive Activity 2'!$B$7:$B$13,'Competitive Activity 2'!N$7:N$13,\"N/A\",0)","v":"N/A"},{"$f":"_xlfn.XLOOKUP($E2,'Competitive Activity 2'!$B$7:$B$13,'Competitive Activity 2'!O$7:O$13,\"N/A\",0)","v":"N/A"},{"$f":"_xlfn.XLOOKUP($E2,'Competitive Activity 2'!$B$7:$B$13,'Competitive Activity 2'!P$7:P$13,\"N/A\",0)","v":"N/A"},{"$f":"_xlfn.XLOOKUP($E2,'Competitive Activity 2'!$B$7:$B$13,'Competitive Activity 2'!Q$7:Q$13,\"N/A\",0)","v":"N/A"},{"$f":"_xlfn.XLOOKUP($E2,'Competitive Activity 2'!$B$7:$B$13,'Competitive Activity 2'!R$7:R$13,\"N/A\",0)","v":"N/A"},{"$f":"_xlfn.XLOOKUP($E2,'Competitive Activity 2'!$B$7:$B$13,'Competitive Activity 2'!S$7:S$13,\"N/A\",0)","v":"N/A"},{"$f":"_xlfn.XLOOKUP($E2,'Competitive Activity 2'!$B$7:$B$13,'Competitive Activity 2'!T$7:T$13,\"N/A\",0)","v":"N/A"},{"$f":"_xlfn.XLOOKUP($E2,'Competitive Activity 2'!$B$7:$B$13,'Competitive Activity 2'!U$7:U$13,\"N/A\",0)","v":"N/A"},{"$f":"_xlfn.XLOOKUP($E2,'Competitive Activity 2'!$B$17:$B$23,'Competitive Activity 2'!D$17:D$23,\"N/A\",0)","v":"N/A"},{"$f":"_xlfn.XLOOKUP($E2,'Competitive Activity 2'!$B$17:$B$23,'Competitive Activity 2'!E$17:E$23,\"N/A\",0)","v":"N/A"},{"$f":"_xlfn.XLOOKUP($E2,'Competitive Activity 2'!$B$17:$B$23,'Competitive Activity 2'!F$17:F$23,\"N/A\",0)","v":"N/A"},{"$f":"_xlfn.XLOOKUP($E2,'Competitive Activity 2'!$B$17:$B$23,'Competitive Activity 2'!G$17:G$23,\"N/A\",0)","v":"N/A"},{"$f":"_xlfn.XLOOKUP($E2,'Competitive Activity 2'!$B$17:$B$23,'Competitive Activity 2'!H$17:H$23,\"N/A\",0)","v":"N/A"},{"$f":"_xlfn.XLOOKUP($E2,'Competitive Activity 2'!$B$17:$B$23,'Competitive Activity 2'!I$17:I$23,\"N/A\",0)","v":"N/A"},{"$f":"_xlfn.XLOOKUP($E2,'Competitive Activity 2'!$B$17:$B$23,'Competitive Activity 2'!J$17:J$23,\"N/A\",0)","v":"N/A"},{"$f":"_xlfn.XLOOKUP($E2,'Competitive Activity 2'!$B$17:$B$23,'Competitive Activity 2'!K$17:K$23,\"N/A\",0)","v":"N/A"},{"$f":"_xlfn.XLOOKUP($E2,'Competitive Activity 2'!$B$17:$B$23,'Competitive Activity 2'!L$17:L$23,\"N/A\",0)","v":"N/A"},{"$f":"_xlfn.XLOOKUP($E2,'Competitive Activity 2'!$B$17:$B$23,'Competitive Activity 2'!M$17:M$23,\"N/A\",0)","v":"N/A"},{"$f":"_xlfn.XLOOKUP($E2,'Competitive Activity 2'!$B$17:$B$23,'Competitive Activity 2'!N$17:N$23,\"N/A\",0)","v":"N/A"},{"$f":"_xlfn.XLOOKUP($E2,'Competitive Activity 2'!$B$27:$B$33,'Competitive Activity 2'!D$27:D$33,\"N/A\",0)","v":"N/A"},{"$f":"_xlfn.XLOOKUP($E2,'Competitive Activity 2'!$B$27:$B$33,'Competitive Activity 2'!E$27:E$33,\"N/A\",0)","v":"N/A"},{"$f":"_xlfn.XLOOKUP($E2,'Competitive Activity 2'!$B$27:$B$33,'Competitive Activity 2'!F$27:F$33,\"N/A\",0)","v":"N/A"},{"$f":"_xlfn.XLOOKUP($E2,'Competitive Activity 2'!$B$27:$B$33,'Competitive Activity 2'!G$27:G$33,\"N/A\",0)","v":"N/A"},{"$f":"_xlfn.XLOOKUP($E2,'Competitive Activity 2'!$B$27:$B$33,'Competitive Activity 2'!H$27:H$33,\"N/A\",0)","v":"N/A"},{"$f":"_xlfn.XLOOKUP($E2,'Competitive Activity 2'!$B$27:$B$33,'Competitive Activity 2'!I$27:I$33,\"N/A\",0)","v":"N/A"},{"$f":"_xlfn.XLOOKUP($E2,'Competitive Activity 2'!$B$27:$B$33,'Competitive Activity 2'!J$27:J$33,\"N/A\",0)","v":"N/A"},{"$f":"_xlfn.XLOOKUP($E2,'Competitive Activity 2'!$B$27:$B$33,'Competitive Activity 2'!K$27:K$33,\"N/A\",0)","v":"N/A"},{"$f":"_xlfn.XLOOKUP($E2,'Competitive Activity 2'!$B$27:$B$33,'Competitive Activity 2'!M$27:M$33,\"N/A\",0)","v":"N/A"}]
[{"$f":"'1-Cover Sheet'!$C$8","v":"Select One"},{"$f":"'1-Cover Sheet'!$F$8","v":"Select One"},{"$f":"'Summary Sheet'!$D$8","v":0},{"$f":"'Summary Sheet'!$D$10","v":0},{"$f":"'Drop Down Box'!B167","v":0},{"$f":"'Drop Down Box'!C167","v":0},{"$f":"'Drop Down Box'!D167","v":"Select One"},{"$f":"_xlfn.XLOOKUP(E3,'Drop Down Box'!$B$166:$B$249,'Drop Down Box'!$A$166:$A$249,\"Unknown\",0)","v":"Activity 1"},{"$f":"_xlfn.XLOOKUP($E3,'Activity 1'!$B$17:$B$23,'Activity 1'!$N$17:$N$23,\"\",0)","v":""},{"$f":"_xlfn.XLOOKUP($E3,'Activity 1'!$B$17:$B$23,'Activity 1'!$P$17:$P$23,\"N/A\",0)","v":"N/A"},{"$f":"_xlfn.XLOOKUP($E3,'Activity 1'!$B$7:$B$13,'Activity 1'!E$7:E$13,0,0)","v":0},{"$f":"_xlfn.XLOOKUP($E3,'Activity 1'!$B$7:$B$13,'Activity 1'!F$7:F$13,0,0)","v":"00:00:00"},{"$f":"_xlfn.XLOOKUP($E3,'Activity 1'!$B$7:$B$13,'Activity 1'!G$7:G$13,0,0)","v":0},{"$f":"_xlfn.XLOOKUP($E3,'Activity 1'!$B$7:$B$13,'Activity 1'!$A$7:$A$13,\"No\",0,1)","v":"No"},{"$f":"_xlfn.XLOOKUP($E3,'Activity 1'!$B$7:$B$13,'Activity 1'!$H$7:$H$13,\"N/A\",0,1)","v":"N/A"},{"$f":"_xlfn.XLOOKUP($E3,'Activity 1'!$B$7:$B$13,'Activity 1'!I$7:I$13,\"N/A\",0,1)","v":"N/A"},{"$f":"_xlfn.XLOOKUP($E3,'Activity 1'!$B$7:$B$13,'Activity 1'!J$7:J$13,\"N/A\",0,1)","v":"N/A"},{"$f":"_xlfn.XLOOKUP($E3,'Activity 1'!$B$7:$B$13,'Activity 1'!K$7:K$13,\"N/A\",0,1)","v":"N/A"},{"$f":"_xlfn.XLOOKUP($E3,'Activity 1'!$B$7:$B$13,'Activity 1'!L$7:L$13,\"N/A\",0,1)","v":"N/A"},{"$f":"_xlfn.XLOOKUP($E3,'Activity 1'!$B$7:$B$13,'Activity 1'!M$7:M$13,\"N/A\",0,1)","v":"N/A"},{"$f":"_xlfn.XLOOKUP($E3,'Activity 1'!$B$7:$B$13,'Activity 1'!N$7:N$13,\"N/A\",0,1)","v":"N/A"},{"$f":"SUM(Q3:U3)","v":0},{"$f":"_xlfn.XLOOKUP($E3,'Activity 1'!$B$7:$B$13,'Activity 1'!O$7:O$13,\"N/A\",0,1)","v":"N/A"},{"$f":"_xlfn.XLOOKUP($E3,'Activity 1'!$B$7:$B$13,'Activity 1'!P$7:P$13,\"N/A\",0,1)","v":"N/A"},{"$f":"_xlfn.XLOOKUP($E3,'Activity 1'!$B$7:$B$13,'Activity 1'!Q$7:Q$13,\"N/A\",0,1)","v":"N/A"},{"$f":"_xlfn.XLOOKUP($E3,'Activity 1'!$B$7:$B$13,'Activity 1'!R$7:R$13,\"N/A\",0,1)","v":"N/A"},{"$f":"_xlfn.XLOOKUP($E3,'Activity 1'!$B$7:$B$13,'Activity 1'!S$7:S$13,\"N/A\",0,1)","v":"N/A"},{"$f":"_xlfn.XLOOKUP($E3,'Activity 1'!$B$7:$B$13,'Activity 1'!T$7:T$13,\"N/A\",0,1)","v":"N/A"},{"$f":"_xlfn.XLOOKUP($E3,'Activity 1'!$B$7:$B$13,'Activity 1'!U$7:U$13,\"N/A\",0,1)","v":"N/A"},{"$f":"_xlfn.XLOOKUP($E3,'Activity 1'!$B$7:$B$13,'Activity 1'!V$7:V$13,\"N/A\",0,1)","v":"N/A"},{"$f":"_xlfn.XLOOKUP($E3,'Activity 1'!$B$17:$B$23,'Activity 1'!C$17:C$23,\"N/A\",0,1)","v":"N/A"},{"$f":"_xlfn.XLOOKUP($E3,'Activity 1'!$B$17:$B$23,'Activity 1'!D$17:D$23,\"N/A\",0,1)","v":"N/A"},{"$f":"_xlfn.XLOOKUP($E3,'Activity 1'!$B$17:$B$23,'Activity 1'!E$17:E$23,\"N/A\",0,1)","v":"N/A"},{"$f":"_xlfn.XLOOKUP($E3,'Activity 1'!$B$17:$B$23,'Activity 1'!F$17:F$23,\"N/A\",0,1)","v":"N/A"},{"$f":"_xlfn.XLOOKUP($E3,'Activity 1'!$B$17:$B$23,'Activity 1'!G$17:G$23,\"N/A\",0,1)","v":"N/A"},{"$f":"_xlfn.XLOOKUP($E3,'Activity 1'!$B$17:$B$23,'Activity 1'!H$17:H$23,\"N/A\",0,1)","v":"N/A"},{"$f":"_xlfn.XLOOKUP($E3,'Activity 1'!$B$17:$B$23,'Activity 1'!I$17:I$23,\"N/A\",0,1)","v":"N/A"},{"$f":"_xlfn.XLOOKUP($E3,'Activity 1'!$B$17:$B$23,'Activity 1'!J$17:J$23,\"N/A\",0,1)","v":"N/A"},{"$f":"_xlfn.XLOOKUP($E3,'Activity 1'!$B$17:$B$23,'Activity 1'!K$17:K$23,\"N/A\",0,1)","v":"N/A"},{"$f":"_xlfn.XLOOKUP($E3,'Activity 1'!$B$17:$B$23,'Activity 1'!L$17:L$23,\"N/A\",0,1)","v":"N/A"},{"$f":"_xlfn.XLOOKUP($E3,'Activity 1'!$B$17:$B$23,'Activity 1'!M$17:M$23,\"N/A\",0,1)","v":"N/A"},{"$f":"_xlfn.XLOOKUP($E3,'Activity 1'!$B$17:$B$23,'Activity 1'!O$17:O$23,\"N/A\",0,1)","v":"N/A"},{"$f":"_xlfn.XLOOKUP($E3,'Activity 1'!$B$17:$B$23,'Activity 1'!Q$17:Q$23,\"N/A\",0,1)","v":"N/A"},{"$f":"_xlfn.XLOOKUP($E3,'Activity 2'!$B$7:$B$13,'Activity 2'!$A$7:$A$13,\"No\",0,1)","v":"No"},{"$f":"_xlfn.XLOOKUP($E3,'Activity 2'!B$7:B$13,'Activity 2'!H$7:H$13,\"N/A\",0)","v":"N/A"},{"$f":"_xlfn.XLOOKUP($E3,'Activity 2'!C$7:C$13,'Activity 2'!I$7:I$13,\"N/A\",0)","v":"N/A"},{"$f":"_xlfn.XLOOKUP($E3,'Activity 2'!D$7:D$13,'Activity 2'!J$7:J$13,\"N/A\",0)","v":"N/A"},{"$f":"_xlfn.XLOOKUP($E3,'Activity 2'!E$7:E$13,'Activity 2'!K$7:K$13,\"N/A\",0)","v":"N/A"},{"$f":"_xlfn.XLOOKUP($E3,'Activity 2'!F$7:F$13,'Activity 2'!L$7:L$13,\"N/A\",0)","v":"N/A"},{"$f":"_xlfn.XLOOKUP($E3,'Activity 2'!G$7:G$13,'Activity 2'!M$7:M$13,\"N/A\",0)","v":"N/A"},{"$f":"_xlfn.XLOOKUP($E3,'Activity 2'!H$7:H$13,'Activity 2'!N$7:N$13,\"N/A\",0)","v":"N/A"},{"$f":"_xlfn.XLOOKUP($E3,'Activity 2'!I$7:I$13,'Activity 2'!O$7:O$13,\"N/A\",0)","v":"N/A"},{"$f":"_xlfn.XLOOKUP($E3,'Activity 2'!J$7:J$13,'Activity 2'!P$7:P$13,\"N/A\",0)","v":"N/A"},{"$f":"_xlfn.XLOOKUP($E3,'Activity 2'!K$7:K$13,'Activity 2'!Q$7:Q$13,\"N/A\",0)","v":"N/A"},{"$f":"_xlfn.XLOOKUP($E3,'Activity 2'!L$7:L$13,'Activity 2'!R$7:R$13,\"N/A\",0)","v":"N/A"},{"$f":"_xlfn.XLOOKUP($E3,'Activity 2'!M$7:M$13,'Activity 2'!S$7:S$13,\"N/A\",0)","v":"N/A"},{"$f":"_xlfn.XLOOKUP($E3,'Activity 2'!N$7:N$13,'Activity 2'!T$7:T$13,\"N/A\",0)","v":"N/A"},{"$f":"_xlfn.XLOOKUP($E3,'Activity 2'!O$7:O$13,'Activity 2'!U$7:U$13,\"N/A\",0)","v":"N/A"},{"$f":"_xlfn.XLOOKUP($E3,'Activity 2'!P$7:P$13,'Activity 2'!V$7:V$13,\"N/A\",0)","v":"N/A"},{"$f":"_xlfn.XLOOKUP($E3,'Activity 2'!$B$17:$B$23,'Activity 2'!C$17:C$23,\"N/A\",0,1)","v":"N/A"},{"$f":"_xlfn.XLOOKUP($E3,'Activity 2'!$B$17:$B$23,'Activity 2'!D$17:D$23,\"N/A\",0,1)","v":"N/A"},{"$f":"_xlfn.XLOOKUP($E3,'Activity 2'!$B$17:$B$23,'Activity 2'!E$17:E$23,\"N/A\",0,1)","v":"N/A"},{"$f":"_xlfn.XLOOKUP($E3,'Activity 2'!$B$17:$B$23,'Activity 2'!F$17:F$23,\"N/A\",0,1)","v":"N/A"},{"$f":"_xlfn.XLOOKUP($E3,'Activity 2'!$B$17:$B$23,'Activity 2'!G$17:G$23,\"N/A\",0,1)","v":"N/A"},{"$f":"_xlfn.XLOOKUP($E3,'Activity 2'!$B$17:$B$23,'Activity 2'!H$17:H$23,\"N/A\",0,1)","v":"N/A"},{"$f":"_xlfn.XLOOKUP($E3,'Activity 2'!$B$17:$B$23,'Activity 2'!I$17:I$23,\"N/A\",0,1)","v":"N/A"},{"$f":"_xlfn.XLOOKUP($E3,'Activity 2'!$B$17:$B$23,'Activity 2'!J$17:J$23,\"N/A\",0,1)","v":"N/A"},{"$f":"_xlfn.XLOOKUP($E3,'Activity 2'!$B$17:$B$23,'Activity 2'!K$17:K$23,\"N/A\",0,1)","v":"N/A"},{"$f":"_xlfn.XLOOKUP($E3,'Activity 2'!$B$17:$B$23,'Activity 2'!L$17:L$23,\"N/A\",0,1)","v":"N/A"},{"$f":"_xlfn.XLOOKUP($E3,'Activity 2'!$B$17:$B$23,'Activity 2'!M$17:M$23,\"N/A\",0,1)","v":"N/A"},{"$f":"_xlfn.XLOOKUP($E3,'Activity 2'!$B$17:$B$23,'Activity 2'!O$17:O$23,\"N/A\",0,1)","v":"N/A"},{"$f":"_xlfn.XLOOKUP($E3,'Activity 2'!$B$17:$B$23,'Activity 2'!Q$17:Q$23,\"N/A\",0,1)","v":"N/A"},{"$f":"_xlfn.XLOOKUP($E3,'Activity 3'!$B$8:$B$14,'Activity 3'!A$8:A$14,\"No\",0,1)","v":"No"},{"$f":"_xlfn.XLOOKUP($E3,'Activity 3'!$B$8:$B$14,'Activity 3'!K$8:K$14,\"N/A\",0,1)","v":"N/A"},{"$f":"_xlfn.XLOOKUP($E3,'Activity 3'!$B$8:$B$14,'Activity 3'!L$8:L$14,\"N/A\",0,1)","v":"N/A"},{"$f":"_xlfn.XLOOKUP($E3,'Activity 3'!$B$8:$B$14,'Activity 3'!M$8:M$14,\"N/A\",0,1)","v":"N/A"},{"$f":"_xlfn.XLOOKUP($E3,'Activity 3'!$B$8:$B$14,'Activity 3'!N$8:N$14,\"N/A\",0,1)","v":"N/A"},{"$f":"_xlfn.XLOOKUP($E3,'Activity 3'!$B$8:$B$14,'Activity 3'!O$8:O$14,\"N/A\",0,1)","v":"N/A"},{"$f":"_xlfn.XLOOKUP($E3,'Activity 3'!$B$8:$B$14,'Activity 3'!R$8:R$14,\"N/A\",0,1)","v":"N/A"},{"$f":"_xlfn.XLOOKUP($E3,'Activity 4'!$B$8:$B$14,'Activity 4'!$A$8:$A$14,\"No\",0,1)","v":"No"},{"$f":"_xlfn.XLOOKUP($E3,'Activity 4'!$B$8:$B$14,'Activity 4'!L$8:L$14,\"N/A\",0,1)","v":"N/A"},{"$f":"_xlfn.XLOOKUP($E3,'Activity 4'!$B$8:$B$14,'Activity 4'!D$8:D$14,\"N/A\",0,1)","v":"N/A"},{"$f":"_xlfn.XLOOKUP($E3,'Activity 4'!$B$8:$B$14,'Activity 4'!G$8:G$14,\"N/A\",0,1)","v":"N/A"},{"$f":"_xlfn.XLOOKUP($E3,'Activity 5'!$B$8:$B$14,'Activity 5'!$A$8:$A$14,\"No\",0,1)","v":"No"},{"$f":"_xlfn.XLOOKUP($E3,'Activity 5'!$B$8:$B$14,'Activity 5'!J$8:J$14,\"N/A\",0,1)","v":"N/A"},{"$f":"_xlfn.XLOOKUP($E3,'Activity 5'!$B$8:$B$14,'Activity 5'!K$8:K$14,\"N/A\",0,1)","v":"N/A"},{"$f":"_xlfn.XLOOKUP($E3,'Activity 5'!$B$8:$B$14,'Activity 5'!N$8:N$14,\"N/A\",0,1)","v":"N/A"},{"$f":"_xlfn.XLOOKUP($E3,'Activity 5'!$B$8:$B$14,'Activity 5'!O$8:O$14,\"N/A\",0,1)","v":"N/A"},{"$f":"_xlfn.XLOOKUP($E3,'Activity 5'!$B$8:$B$14,'Activity 5'!P$8:P$14,\"N/A\",0,1)","v":"N/A"},{"$f":"_xlfn.XLOOKUP($E3,'Activity 5'!$B$8:$B$14,'Activity 5'!Q$8:Q$14,\"N/A\",0,1)","v":"N/A"},{"$f":"_xlfn.XLOOKUP($E3,'Activity 5'!$B$8:$B$14,'Activity 5'!R$8:R$14,\"N/A\",0,1)","v":"N/A"},{"$f":"_xlfn.XLOOKUP($E3,'Activity 6'!$B$7:$B$13,'Activity 6'!A$7:A$13,\"No\",0,1)","v":"No"},{"$f":"_xlfn.XLOOKUP($E3,'Activity 6'!$B$7:$B$13,'Activity 6'!K$7:K$13,\"N/A\",0,1)","v":"N/A"},{"$f":"_xlfn.XLOOKUP($E3,'Activity 6'!$B$7:$B$13,'Activity 6'!L$7:L$13,\"N/A\",0,1)","v":"N/A"},{"$f":"_xlfn.XLOOKUP($E3,'Activity 6'!$B$7:$B$13,'Activity 6'!M$7:M$13,\"N/A\",0,1)","v":"N/A"},{"$f":"_xlfn.XLOOKUP($E3,'Activity 6'!$B$7:$B$13,'Activity 6'!N$7:N$13,\"N/A\",0,1)","v":"N/A"},{"$f":"_xlfn.XLOOKUP($E3,'Activity 6'!$B$7:$B$13,'Activity 6'!O$7:O$13,\"N/A\",0,1)","v":"N/A"},{"$f":"_xlfn.XLOOKUP($E3,'Activity 6'!$B$7:$B$13,'Activity 6'!P$7:P$13,\"N/A\",0,1)","v":"N/A"},{"$f":"_xlfn.XLOOKUP($E3,'Activity 6'!$B$7:$B$13,'Activity 6'!Q$7:Q$13,\"N/A\",0,1)","v":"N/A"},{"$f":"_xlfn.XLOOKUP($E3,'Activity 6'!$B$7:$B$13,'Activity 6'!R$7:R$13,\"N/A\",0,1)","v":"N/A"},{"$f":"_xlfn.XLOOKUP($E3,'Activity 6'!$B$7:$B$13,'Activity 6'!S$7:S$13,\"N/A\",0,1)","v":"N/A"},{"$f":"_xlfn.XLOOKUP($E3,'Activity 6'!$B$7:$B$13,'Activity 6'!T$7:T$13,\"N/A\",0,1)","v":"N/A"},{"$f":"_xlfn.XLOOKUP($E3,'Activity 6'!$B$7:$B$13,'Activity 6'!U$7:U$13,\"N/A\",0,1)","v":"N/A"},{"$f":"_xlfn.XLOOKUP($E3,'Activity 6'!$B$22:$B$28,'Activity 6'!C$22:C$28,\"N/A\",0,1)","v":"N/A"},{"$f":"_xlfn.XLOOKUP($E3,'Activity 6'!$B$22:$B$28,'Activity 6'!D$22:D$28,\"N/A\",0,1)","v":"N/A"},{"$f":"_xlfn.XLOOKUP($E3,'Activity 6'!$B$22:$B$28,'Activity 6'!E$22:E$28,\"N/A\",0,1)","v":"N/A"},{"$f":"_xlfn.XLOOKUP($E3,'Activity 6'!$B$22:$B$28,'Activity 6'!F$22:F$28,\"N/A\",0,1)","v":"N/A"},{"$f":"_xlfn.XLOOKUP($E3,'Activity 6'!$B$22:$B$28,'Activity 6'!G$22:G$28,\"N/A\",0,1)","v":"N/A"},{"$f":"_xlfn.XLOOKUP($E3,'Activity 6'!$B$22:$B$28,'Activity 6'!H$22:H$28,\"N/A\",0,1)","v":"N/A"},{"$f":"_xlfn.XLOOKUP($E3,'Activity 6'!$B$22:$B$28,'Activity 6'!I$22:I$28,\"N/A\",0,1)","v":"N/A"},{"$f":"_xlfn.XLOOKUP($E3,'Activity 6'!$B$22:$B$28,'Activity 6'!J$22:J$28,\"N/A\",0,1)","v":"N/A"},{"$f":"_xlfn.XLOOKUP($E3,'Activity 6'!$B$22:$B$28,'Activity 6'!K$22:K$28,\"N/A\",0,1)","v":"N/A"},{"$f":"_xlfn.XLOOKUP($E3,'Activity 6'!$B$22:$B$28,'Activity 6'!L$22:L$28,\"N/A\",0,1)","v":"N/A"},{"$f":"_xlfn.XLOOKUP($E3,'Activity 6'!$B$22:$B$28,'Activity 6'!M$22:M$28,\"N/A\",0,1)","v":"N/A"},{"$f":"_xlfn.XLOOKUP($E3,'Activity 6'!$B$22:$B$28,'Activity 6'!N$22:N$28,\"N/A\",0,1)","v":"N/A"},{"$f":"_xlfn.XLOOKUP($E3,'Activity 6'!$B$32:$B$38,'Activity 6'!C$32:C$38,\"N/A\",0,1)","v":"N/A"},{"$f":"_xlfn.XLOOKUP($E3,'Activity 6'!$B$32:$B$38,'Activity 6'!D$32:D$38,\"N/A\",0,1)","v":"N/A"},{"$f":"_xlfn.XLOOKUP($E3,'Activity 6'!$B$32:$B$38,'Activity 6'!E$32:E$38,\"N/A\",0,1)","v":"N/A"},{"$f":"_xlfn.XLOOKUP($E3,'Activity 6'!$B$32:$B$38,'Activity 6'!F$32:F$38,\"N/A\",0,1)","v":"N/A"},{"$f":"_xlfn.XLOOKUP($E3,'Activity 6'!$B$32:$B$38,'Activity 6'!G$32:G$38,\"N/A\",0,1)","v":"N/A"},{"$f":"_xlfn.XLOOKUP($E3,'Activity 6'!$B$32:$B$38,'Activity 6'!H$32:H$38,\"N/A\",0,1)","v":"N/A"},{"$f":"_xlfn.XLOOKUP($E3,'Activity 6'!$B$32:$B$38,'Activity 6'!I$32:I$38,\"N/A\",0,1)","v":"N/A"},{"$f":"_xlfn.XLOOKUP($E3,'Activity 6'!$B$32:$B$38,'Activity 6'!J$32:J$38,\"N/A\",0,1)","v":"N/A"},{"$f":"_xlfn.XLOOKUP($E3,'Activity 6'!$B$32:$B$38,'Activity 6'!K$32:K$38,\"N/A\",0,1)","v":"N/A"},{"$f":"_xlfn.XLOOKUP($E3,'Activity 6'!$B$32:$B$38,'Activity 6'!M$32:M$38,\"N/A\",0,1)","v":"N/A"},{"$f":"_xlfn.XLOOKUP($E3,'Activity 7'!$B$7:$B$13,'Activity 7'!$A$7:$A$13,\"No\",0,1)","v":"No"},{"$f":"_xlfn.XLOOKUP($E3,'Activity 7'!$B$7:$B$13,'Activity 7'!M$7:M$13,\"N/A\",0,1)","v":"N/A"},{"$f":"_xlfn.XLOOKUP($E3,'Activity 7'!$B$7:$B$13,'Activity 7'!K$7:K$13,\"N/A\",0,1)","v":"N/A"},{"$f":"_xlfn.XLOOKUP($E3,'Activity 7'!$B$7:$B$13,'Activity 7'!N$7:N$13,\"N/A\",0,1)","v":"N/A"},{"$f":"_xlfn.XLOOKUP($E3,'Activity 7'!$B$7:$B$13,'Activity 7'!O$7:O$13,\"N/A\",0,1)","v":"N/A"},{"$f":"_xlfn.XLOOKUP($E3,'Activity 7'!$B$7:$B$13,'Activity 7'!P$7:P$13,\"N/A\",0,1)","v":"N/A"},{"$f":"_xlfn.XLOOKUP($E3,'Activity 7'!$B$7:$B$13,'Activity 7'!Q$7:Q$13,\"N/A\",0,1)","v":"N/A"},{"$f":"_xlfn.XLOOKUP($E3,'Activity 7'!$B$7:$B$13,'Activity 7'!R$7:R$13,\"N/A\",0,1)","v":"N/A"},{"$f":"_xlfn.XLOOKUP($E3,'Activity 7'!$B$7:$B$13,'Activity 7'!S$7:S$13,\"N/A\",0,1)","v":"N/A"},{"$f":"_xlfn.XLOOKUP($E3,'Activity 7'!$B$7:$B$13,'Activity 7'!T$7:T$13,\"N/A\",0,1)","v":"N/A"},{"$f":"_xlfn.XLOOKUP($E3,'Activity 7'!$B$7:$B$13,'Activity 7'!U$7:U$13,\"N/A\",0,1)","v":"N/A"},{"$f":"_xlfn.XLOOKUP($E3,'Activity 7'!$B$7:$B$13,'Activity 7'!V$7:V$13,\"N/A\",0,1)","v":"N/A"},{"$f":"_xlfn.XLOOKUP($E3,'Activity 7'!$B$17:$B$23,'Activity 7'!E$17:E$23,\"N/A\",0,1)","v":"N/A"},{"$f":"_xlfn.XLOOKUP($E3,'Activity 7'!$B$17:$B$23,'Activity 7'!G$17:G$23,\"N/A\",0,1)","v":"N/A"},{"$f":"_xlfn.XLOOKUP($E3,'Activity 7'!$B$17:$B$23,'Activity 7'!I$17:I$23,\"N/A\",0,1)","v":"N/A"},{"$f":"_xlfn.XLOOKUP($E3,'Activity 7'!$B$17:$B$23,'Activity 7'!J$17:J$23,\"N/A\",0,1)","v":"N/A"},{"$f":"_xlfn.XLOOKUP($E3,'Activity 7'!$B$17:$B$23,'Activity 7'!K$17:K$23,\"N/A\",0,1)","v":"N/A"},{"$f":"_xlfn.XLOOKUP($E3,'Activity 7'!$B$17:$B$23,'Activity 7'!L$17:L$23,\"N/A\",0,1)","v":"N/A"},{"$f":"_xlfn.XLOOKUP($E3,'Activity 7'!$B$17:$B$23,'Activity 7'!M$17:M$23,\"N/A\",0,1)","v":"N/A"},{"$f":"_xlfn.XLOOKUP($E3,'Activity 7'!$B$17:$B$23,'Activity 7'!N$17:N$23,\"N/A\",0,1)","v":"N/A"},{"$f":"_xlfn.XLOOKUP($E3,'Activity 7'!$B$17:$B$23,'Activity 7'!P$17:P$23,\"N/A\",0,1)","v":"N/A"},{"$f":"_xlfn.XLOOKUP($E3,'Activity 8'!$B$7:$B$13,'Activity 8'!A$7:A$13,\"No\",0,1)","v":"No"},{"$f":"_xlfn.XLOOKUP($E3,'Activity 8'!$B$7:$B$13,'Activity 8'!I$7:I$13,\"N/A\",0,1)","v":"N/A"},{"$f":"_xlfn.XLOOKUP($E3,'Activity 8'!$B$7:$B$13,'Activity 8'!J$7:J$13,\"N/A\",0,1)","v":"N/A"},{"$f":"_xlfn.XLOOKUP($E3,'Activity 8'!$B$7:$B$13,'Activity 8'!K$7:K$13,\"N/A\",0,1)","v":"N/A"},{"$f":"_xlfn.XLOOKUP($E3,'Activity 8'!$B$7:$B$13,'Activity 8'!L$7:L$13,\"N/A\",0,1)","v":"N/A"},{"$f":"_xlfn.XLOOKUP($E3,'Activity 8'!$B$7:$B$13,'Activity 8'!M$7:M$13,\"N/A\",0,1)","v":"N/A"},{"$f":"_xlfn.XLOOKUP($E3,'Activity 8'!$B$7:$B$13,'Activity 8'!N$7:N$13,\"N/A\",0,1)","v":"N/A"},{"$f":"_xlfn.XLOOKUP($E3,'Activity 8'!$B$7:$B$13,'Activity 8'!O$7:O$13,\"N/A\",0,1)","v":"N/A"},{"$f":"_xlfn.XLOOKUP($E3,'Activity 8'!$B$7:$B$13,'Activity 8'!P$7:P$13,\"N/A\",0,1)","v":"N/A"},{"$f":"_xlfn.XLOOKUP($E3,'Activity 8'!$B$7:$B$13,'Activity 8'!Q$7:Q$13,\"N/A\",0,1)","v":"N/A"},{"$f":"_xlfn.XLOOKUP($E3,'Activity 8'!$B$7:$B$13,'Activity 8'!R$7:R$13,\"N/A\",0,1)","v":"N/A"},{"$f":"_xlfn.XLOOKUP($E3,'Activity 8'!$B$7:$B$13,'Activity 8'!S$7:S$13,\"N/A\",0,1)","v":"N/A"},{"$f":"_xlfn.XLOOKUP($E3,'Activity 8'!$B$7:$B$13,'Activity 8'!T$7:T$13,\"N/A\",0,1)","v":"N/A"},{"$f":"_xlfn.XLOOKUP($E3,'Activity 8'!$B$7:$B$13,'Activity 8'!U$7:U$13,\"N/A\",0,1)","v":"N/A"},{"$f":"_xlfn.XLOOKUP($E3,'Activity 8'!$B$7:$B$13,'Activity 8'!V$7:V$13,\"N/A\",0,1)","v":"N/A"},{"$f":"_xlfn.XLOOKUP($E3,'Activity 8'!$B$17:$B$23,'Activity 8'!D$17:D$23,\"N/A\",0,1)","v":"N/A"},{"$f":"_xlfn.XLOOKUP($E3,'Activity 8'!$B$17:$B$23,'Activity 8'!E$17:E$23,\"N/A\",0,1)","v":"N/A"},{"$f":"_xlfn.XLOOKUP($E3,'Activity 8'!$B$17:$B$23,'Activity 8'!F$17:F$23,\"N/A\",0,1)","v":"N/A"},{"$f":"_xlfn.XLOOKUP($E3,'Activity 8'!$B$17:$B$23,'Activity 8'!G$17:G$23,\"N/A\",0,1)","v":"N/A"},{"$f":"_xlfn.XLOOKUP($E3,'Activity 8'!$B$17:$B$23,'Activity 8'!H$17:H$23,\"N/A\",0,1)","v":"N/A"},{"$f":"_xlfn.XLOOKUP($E3,'Activity 8'!$B$17:$B$23,'Activity 8'!I$17:I$23,\"N/A\",0,1)","v":"N/A"},{"$f":"_xlfn.XLOOKUP($E3,'Activity 8'!$B$17:$B$23,'Activity 8'!J$17:J$23,\"N/A\",0,1)","v":"N/A"},{"$f":"_xlfn.XLOOKUP($E3,'Activity 8'!$B$17:$B$23,'Activity 8'!K$17:K$23,\"N/A\",0,1)","v":"N/A"},{"$f":"_xlfn.XLOOKUP($E3,'Activity 8'!$B$17:$B$23,'Activity 8'!L$17:L$23,\"N/A\",0,1)","v":"N/A"},{"$f":"_xlfn.XLOOKUP($E3,'Activity 8'!$B$17:$B$23,'Activity 8'!M$17:M$23,\"N/A\",0,1)","v":"N/A"},{"$f":"_xlfn.XLOOKUP($E3,'Activity 8'!$B$17:$B$23,'Activity 8'!N$17:N$23,\"N/A\",0,1)","v":"N/A"},{"$f":"_xlfn.XLOOKUP($E3,'Activity 8'!$B$17:$B$23,'Activity 8'!P$17:P$23,\"N/A\",0,1)","v":"N/A"},{"$f":"_xlfn.XLOOKUP(E3,'Activity 9'!$B$7:$B$13,'Activity 9'!$A$7:$A$13,\"No\",0,1)","v":"No"},{"$f":"_xlfn.XLOOKUP($E3,'Activity 9'!$B$7:$B$13,'Activity 9'!J$7:J$13,\"N/A\",0,1)","v":"N/A"},{"$f":"_xlfn.XLOOKUP($E3,'Activity 9'!$B$7:$B$13,'Activity 9'!K$7:K$13,\"N/A\",0,1)","v":"N/A"},{"$f":"_xlfn.XLOOKUP($E3,'Activity 9'!$B$7:$B$13,'Activity 9'!L$7:L$13,\"N/A\",0,1)","v":"N/A"},{"$f":"_xlfn.XLOOKUP($E3,'Activity 9'!$B$7:$B$13,'Activity 9'!M$7:M$13,\"N/A\",0,1)","v":"N/A"},{"$f":"_xlfn.XLOOKUP($E3,'Activity 9'!$B$7:$B$13,'Activity 9'!N$7:N$13,\"N/A\",0,1)","v":"N/A"},{"$f":"_xlfn.XLOOKUP($E3,'Activity 9'!$B$7:$B$13,'Activity 9'!O$7:O$13,\"N/A\",0,1)","v":"N/A"},{"$f":"_xlfn.XLOOKUP($E3,'Activity 9'!$B$7:$B$13,'Activity 9'!P$7:P$13,\"N/A\",0,1)","v":"N/A"},{"$f":"_xlfn.XLOOKUP($E3,'Activity 9'!$B$7:$B$13,'Activity 9'!Q$7:Q$13,\"N/A\",0,1)","v":"N/A"},{"$f":"_xlfn.XLOOKUP($E3,'Activity 9'!$B$7:$B$13,'Activity 9'!R$7:R$13,\"N/A\",0,1)","v":"N/A"},{"$f":"_xlfn.XLOOKUP($E3,'Activity 9'!$B$7:$B$13,'Activity 9'!S$7:S$13,\"N/A\",0,1)","v":"N/A"},{"$f":"_xlfn.XLOOKUP($E3,'Activity 9'!$B$7:$B$13,'Activity 9'!T$7:T$13,\"N/A\",0,1)","v":"N/A"},{"$f":"_xlfn.XLOOKUP($E3,'Activity 9'!$B$17:$B$23,'Activity 9'!E$17:E$23,\"N/A\",0,1)","v":"N/A"},{"$f":"_xlfn.XLOOKUP($E3,'Activity 9'!$B$17:$B$23,'Activity 9'!F$17:F$23,\"N/A\",0,1)","v":"N/A"},{"$f":"_xlfn.XLOOKUP($E3,'Activity 9'!$B$17:$B$23,'Activity 9'!G$17:G$23,\"N/A\",0,1)","v":"N/A"},{"$f":"_xlfn.XLOOKUP($E3,'Activity 9'!$B$17:$B$23,'Activity 9'!H$17:H$23,\"N/A\",0,1)","v":"N/A"},{"$f":"_xlfn.XLOOKUP($E3,'Activity 9'!$B$17:$B$23,'Activity 9'!I$17:I$23,\"N/A\",0,1)","v":"N/A"},{"$f":"_xlfn.XLOOKUP($E3,'Activity 9'!$B$17:$B$23,'Activity 9'!J$17:J$23,\"N/A\",0,1)","v":"N/A"},{"$f":"_xlfn.XLOOKUP($E3,'Activity 9'!$B$17:$B$23,'Activity 9'!K$17:K$23,\"N/A\",0,1)","v":"N/A"},{"$f":"_xlfn.XLOOKUP($E3,'Activity 9'!$B$17:$B$23,'Activity 9'!L$17:L$23,\"N/A\",0,1)","v":"N/A"},{"$f":"_xlfn.XLOOKUP($E3,'Activity 9'!$B$17:$B$23,'Activity 9'!N$17:N$23,\"N/A\",0,1)","v":"N/A"},{"$f":"_xlfn.XLOOKUP($E3,'Activity 9'!$B$17:$B$23,'Activity 9'!O$17:O$23,\"N/A\",0,1)","v":"N/A"},{"$f":"_xlfn.XLOOKUP($E3,'Activity 9'!$B$17:$B$23,'Activity 9'!Q$17:Q$23,\"N/A\",0,1)","v":"N/A"},{"$f":"_xlfn.XLOOKUP($E3,'Activity 10'!$B$7:$B$13,'Activity 10'!A$7:A$13,\"No\",0,1)","v":"No"},{"$f":"_xlfn.XLOOKUP($E3,'Activity 10'!$B$7:$B$13,'Activity 10'!J$7:J$13,\"N/A\",0,1)","v":"N/A"},{"$f":"_xlfn.XLOOKUP($E3,'Activity 10'!$B$7:$B$13,'Activity 10'!K$7:K$13,\"N/A\",0,1)","v":"N/A"},{"$f":"_xlfn.XLOOKUP($E3,'Activity 10'!$B$7:$B$13,'Activity 10'!L$7:L$13,\"N/A\",0,1)","v":"N/A"},{"$f":"_xlfn.XLOOKUP($E3,'Activity 10'!$B$7:$B$13,'Activity 10'!M$7:M$13,\"N/A\",0,1)","v":"N/A"},{"$f":"_xlfn.XLOOKUP($E3,'Activity 10'!$B$7:$B$13,'Activity 10'!N$7:N$13,\"N/A\",0,1)","v":"N/A"},{"$f":"_xlfn.XLOOKUP($E3,'Activity 10'!$B$7:$B$13,'Activity 10'!O$7:O$13,\"N/A\",0,1)","v":"N/A"},{"$f":"_xlfn.XLOOKUP($E3,'Activity 10'!$B$7:$B$13,'Activity 10'!P$7:P$13,\"N/A\",0,1)","v":"N/A"},{"$f":"_xlfn.XLOOKUP($E3,'Activity 10'!$B$7:$B$13,'Activity 10'!Q$7:Q$13,\"N/A\",0,1)","v":"N/A"},{"$f":"_xlfn.XLOOKUP($E3,'Activity 10'!$B$7:$B$13,'Activity 10'!R$7:R$13,\"N/A\",0,1)","v":"N/A"},{"$f":"_xlfn.XLOOKUP($E3,'Activity 10'!$B$7:$B$13,'Activity 10'!S$7:S$13,\"N/A\",0,1)","v":"N/A"},{"$f":"_xlfn.XLOOKUP($E3,'Activity 10'!$B$7:$B$13,'Activity 10'!T$7:T$13,\"N/A\",0,1)","v":"N/A"},{"$f":"_xlfn.XLOOKUP($E3,'Activity 10'!$B$7:$B$13,'Activity 10'!U$7:U$13,\"N/A\",0,1)","v":"N/A"},{"$f":"_xlfn.XLOOKUP($E3,'Activity 10'!$B$7:$B$13,'Activity 10'!V$7:V$13,\"N/A\",0,1)","v":"N/A"},{"$f":"_xlfn.XLOOKUP($E3,'Activity 10'!$B$17:$B$23,'Activity 10'!E$17:E$23,\"N/A\",0,1)","v":"N/A"},{"$f":"_xlfn.XLOOKUP($E3,'Activity 10'!$B$17:$B$23,'Activity 10'!F$17:F$23,\"N/A\",0,1)","v":"N/A"},{"$f":"_xlfn.XLOOKUP($E3,'Activity 10'!$B$17:$B$23,'Activity 10'!G$17:G$23,\"N/A\",0,1)","v":"N/A"},{"$f":"_xlfn.XLOOKUP($E3,'Activity 10'!$B$17:$B$23,'Activity 10'!H$17:H$23,\"N/A\",0,1)","v":"N/A"},{"$f":"_xlfn.XLOOKUP($E3,'Activity 10'!$B$17:$B$23,'Activity 10'!I$17:I$23,\"N/A\",0,1)","v":"N/A"},{"$f":"_xlfn.XLOOKUP($E3,'Activity 10'!$B$17:$B$23,'Activity 10'!J$17:J$23,\"N/A\",0,1)","v":"N/A"},{"$f":"_xlfn.XLOOKUP($E3,'Activity 10'!$B$17:$B$23,'Activity 10'!K$17:K$23,\"N/A\",0,1)","v":"N/A"},{"$f":"_xlfn.XLOOKUP($E3,'Activity 10'!$B$17:$B$23,'Activity 10'!L$17:L$23,\"N/A\",0,1)","v":"N/A"},{"$f":"_xlfn.XLOOKUP($E3,'Activity 10'!$B$17:$B$23,'Activity 10'!M$17:M$23,\"N/A\",0,1)","v":"N/A"},{"$f":"_xlfn.XLOOKUP($E3,'Activity 10'!$B$17:$B$23,'Activity 10'!N$17:N$23,\"N/A\",0,1)","v":"N/A"},{"$f":"_xlfn.XLOOKUP($E3,'Activity 10'!$B$17:$B$23,'Activity 10'!P$17:P$23,\"N/A\",0,1)","v":"N/A"},{"$f":"_xlfn.XLOOKUP($E3,'Competitive Activity 1'!B$7:B$13,'Competitive Activity 1'!A$7:A$13,\"No\",0,1)","v":"No"},{"$f":"_xlfn.XLOOKUP($E3,'Competitive Activity 1'!$B$7:$B$13,'Competitive Activity 1'!H$7:H$13,\"N/A\",0,1)","v":"N/A"},{"$f":"_xlfn.XLOOKUP($E3,'Competitive Activity 1'!$B$7:$B$13,'Competitive Activity 1'!I$7:I$13,\"N/A\",0,1)","v":"N/A"},{"$f":"_xlfn.XLOOKUP($E3,'Competitive Activity 1'!$B$7:$B$13,'Competitive Activity 1'!J$7:J$13,\"N/A\",0,1)","v":"N/A"},{"$f":"_xlfn.XLOOKUP($E3,'Competitive Activity 1'!$B$7:$B$13,'Competitive Activity 1'!K$7:K$13,\"N/A\",0,1)","v":"N/A"},{"$f":"_xlfn.XLOOKUP($E3,'Competitive Activity 1'!$B$7:$B$13,'Competitive Activity 1'!L$7:L$13,\"N/A\",0,1)","v":"N/A"},{"$f":"_xlfn.XLOOKUP($E3,'Competitive Activity 1'!$B$7:$B$13,'Competitive Activity 1'!M$7:M$13,\"N/A\",0,1)","v":"N/A"},{"$f":"_xlfn.XLOOKUP($E3,'Competitive Activity 1'!$B$7:$B$13,'Competitive Activity 1'!N$7:N$13,\"N/A\",0,1)","v":"N/A"},{"$f":"_xlfn.XLOOKUP($E3,'Competitive Activity 1'!$B$7:$B$13,'Competitive Activity 1'!O$7:O$13,\"N/A\",0,1)","v":"N/A"},{"$f":"_xlfn.XLOOKUP($E3,'Competitive Activity 1'!$B$7:$B$13,'Competitive Activity 1'!P$7:P$13,\"N/A\",0,1)","v":"N/A"},{"$f":"_xlfn.XLOOKUP($E3,'Competitive Activity 1'!$B$7:$B$13,'Competitive Activity 1'!Q$7:Q$13,\"N/A\",0,1)","v":"N/A"},{"$f":"_xlfn.XLOOKUP($E3,'Competitive Activity 1'!$B$7:$B$13,'Competitive Activity 1'!R$7:R$13,\"N/A\",0,1)","v":"N/A"},{"$f":"_xlfn.XLOOKUP($E3,'Competitive Activity 1'!$B$7:$B$13,'Competitive Activity 1'!S$7:S$13,\"N/A\",0,1)","v":"N/A"},{"$f":"_xlfn.XLOOKUP($E3,'Competitive Activity 1'!$B$7:$B$13,'Competitive Activity 1'!T$7:T$13,\"N/A\",0,1)","v":"N/A"},{"$f":"_xlfn.XLOOKUP($E3,'Competitive Activity 1'!$B$7:$B$13,'Competitive Activity 1'!U$7:U$13,\"N/A\",0,1)","v":"N/A"},{"$f":"_xlfn.XLOOKUP($E3,'Competitive Activity 1'!$B$17:$B$23,'Competitive Activity 1'!C$17:C$23,\"N/A\",0,1)","v":"N/A"},{"$f":"_xlfn.XLOOKUP($E3,'Competitive Activity 1'!$B$17:$B$23,'Competitive Activity 1'!D$17:D$23,\"N/A\",0,1)","v":"N/A"},{"$f":"_xlfn.XLOOKUP($E3,'Competitive Activity 1'!$B$17:$B$23,'Competitive Activity 1'!E$17:E$23,\"N/A\",0,1)","v":"N/A"},{"$f":"_xlfn.XLOOKUP($E3,'Competitive Activity 1'!$B$17:$B$23,'Competitive Activity 1'!F$17:F$23,\"N/A\",0,1)","v":"N/A"},{"$f":"_xlfn.XLOOKUP($E3,'Competitive Activity 1'!$B$17:$B$23,'Competitive Activity 1'!G$17:G$23,\"N/A\",0,1)","v":"N/A"},{"$f":"_xlfn.XLOOKUP($E3,'Competitive Activity 1'!$B$17:$B$23,'Competitive Activity 1'!H$17:H$23,\"N/A\",0,1)","v":"N/A"},{"$f":"_xlfn.XLOOKUP($E3,'Competitive Activity 1'!$B$17:$B$23,'Competitive Activity 1'!I$17:I$23,\"N/A\",0,1)","v":"N/A"},{"$f":"_xlfn.XLOOKUP($E3,'Competitive Activity 1'!$B$17:$B$23,'Competitive Activity 1'!J$17:J$23,\"N/A\",0,1)","v":"N/A"},{"$f":"_xlfn.XLOOKUP($E3,'Competitive Activity 1'!$B$17:$B$23,'Competitive Activity 1'!K$17:K$23,\"N/A\",0,1)","v":"N/A"},{"$f":"_xlfn.XLOOKUP($E3,'Competitive Activity 1'!$B$17:$B$23,'Competitive Activity 1'!M$17:M$23,\"N/A\",0,1)","v":"N/A"},{"$f":"_xlfn.XLOOKUP($E3,'Competitive Activity 1'!$B$17:$B$23,'Competitive Activity 1'!N$17:N$23,\"N/A\",0,1)","v":"N/A"},{"$f":"_xlfn.XLOOKUP($E3,'Competitive Activity 1'!$B$17:$B$23,'Competitive Activity 1'!P$17:P$23,\"N/A\",0,1)","v":"N/A"},{"$f":"_xlfn.XLOOKUP($E3,'Competitive Activity 2'!$B$7:$B$13,'Competitive Activity 2'!A$7:A$13,\"No\",0)","v":"No"},{"$f":"_xlfn.XLOOKUP($E3,'Competitive Activity 2'!$B$7:$B$13,'Competitive Activity 2'!L$7:L$13,\"N/A\",0)","v":"N/A"},{"$f":"_xlfn.XLOOKUP($E3,'Competitive Activity 2'!$B$7:$B$13,'Competitive Activity 2'!M$7:M$13,\"N/A\",0)","v":"N/A"},{"$f":"_xlfn.XLOOKUP($E3,'Competitive Activity 2'!$B$7:$B$13,'Competitive Activity 2'!N$7:N$13,\"N/A\",0)","v":"N/A"},{"$f":"_xlfn.XLOOKUP($E3,'Competitive Activity 2'!$B$7:$B$13,'Competitive Activity 2'!O$7:O$13,\"N/A\",0)","v":"N/A"},{"$f":"_xlfn.XLOOKUP($E3,'Competitive Activity 2'!$B$7:$B$13,'Competitive Activity 2'!P$7:P$13,\"N/A\",0)","v":"N/A"},{"$f":"_xlfn.XLOOKUP($E3,'Competitive Activity 2'!$B$7:$B$13,'Competitive Activity 2'!Q$7:Q$13,\"N/A\",0)","v":"N/A"},{"$f":"_xlfn.XLOOKUP($E3,'Competitive Activity 2'!$B$7:$B$13,'Competitive Activity 2'!R$7:R$13,\"N/A\",0)","v":"N/A"},{"$f":"_xlfn.XLOOKUP($E3,'Competitive Activity 2'!$B$7:$B$13,'Competitive Activity 2'!S$7:S$13,\"N/A\",0)","v":"N/A"},{"$f":"_xlfn.XLOOKUP($E3,'Competitive Activity 2'!$B$7:$B$13,'Competitive Activity 2'!T$7:T$13,\"N/A\",0)","v":"N/A"},{"$f":"_xlfn.XLOOKUP($E3,'Competitive Activity 2'!$B$7:$B$13,'Competitive Activity 2'!U$7:U$13,\"N/A\",0)","v":"N/A"},{"$f":"_xlfn.XLOOKUP($E3,'Competitive Activity 2'!$B$17:$B$23,'Competitive Activity 2'!D$17:D$23,\"N/A\",0)","v":"N/A"},{"$f":"_xlfn.XLOOKUP($E3,'Competitive Activity 2'!$B$17:$B$23,'Competitive Activity 2'!E$17:E$23,\"N/A\",0)","v":"N/A"},{"$f":"_xlfn.XLOOKUP($E3,'Competitive Activity 2'!$B$17:$B$23,'Competitive Activity 2'!F$17:F$23,\"N/A\",0)","v":"N/A"},{"$f":"_xlfn.XLOOKUP($E3,'Competitive Activity 2'!$B$17:$B$23,'Competitive Activity 2'!G$17:G$23,\"N/A\",0)","v":"N/A"},{"$f":"_xlfn.XLOOKUP($E3,'Competitive Activity 2'!$B$17:$B$23,'Competitive Activity 2'!H$17:H$23,\"N/A\",0)","v":"N/A"},{"$f":"_xlfn.XLOOKUP($E3,'Competitive Activity 2'!$B$17:$B$23,'Competitive Activity 2'!I$17:I$23,\"N/A\",0)","v":"N/A"},{"$f":"_xlfn.XLOOKUP($E3,'Competitive Activity 2'!$B$17:$B$23,'Competitive Activity 2'!J$17:J$23,\"N/A\",0)","v":"N/A"},{"$f":"_xlfn.XLOOKUP($E3,'Competitive Activity 2'!$B$17:$B$23,'Competitive Activity 2'!K$17:K$23,\"N/A\",0)","v":"N/A"},{"$f":"_xlfn.XLOOKUP($E3,'Competitive Activity 2'!$B$17:$B$23,'Competitive Activity 2'!L$17:L$23,\"N/A\",0)","v":"N/A"},{"$f":"_xlfn.XLOOKUP($E3,'Competitive Activity 2'!$B$17:$B$23,'Competitive Activity 2'!M$17:M$23,\"N/A\",0)","v":"N/A"},{"$f":"_xlfn.XLOOKUP($E3,'Competitive Activity 2'!$B$17:$B$23,'Competitive Activity 2'!N$17:N$23,\"N/A\",0)","v":"N/A"},{"$f":"_xlfn.XLOOKUP($E3,'Competitive Activity 2'!$B$27:$B$33,'Competitive Activity 2'!D$27:D$33,\"N/A\",0)","v":"N/A"},{"$f":"_xlfn.XLOOKUP($E3,'Competitive Activity 2'!$B$27:$B$33,'Competitive Activity 2'!E$27:E$33,\"N/A\",0)","v":"N/A"},{"$f":"_xlfn.XLOOKUP($E3,'Competitive Activity 2'!$B$27:$B$33,'Competitive Activity 2'!F$27:F$33,\"N/A\",0)","v":"N/A"},{"$f":"_xlfn.XLOOKUP($E3,'Competitive Activity 2'!$B$27:$B$33,'Competitive Activity 2'!G$27:G$33,\"N/A\",0)","v":"N/A"},{"$f":"_xlfn.XLOOKUP($E3,'Competitive Activity 2'!$B$27:$B$33,'Competitive Activity 2'!H$27:H$33,\"N/A\",0)","v":"N/A"},{"$f":"_xlfn.XLOOKUP($E3,'Competitive Activity 2'!$B$27:$B$33,'Competitive Activity 2'!I$27:I$33,\"N/A\",0)","v":"N/A"},{"$f":"_xlfn.XLOOKUP($E3,'Competitive Activity 2'!$B$27:$B$33,'Competitive Activity 2'!J$27:J$33,\"N/A\",0)","v":"N/A"},{"$f":"_xlfn.XLOOKUP($E3,'Competitive Activity 2'!$B$27:$B$33,'Competitive Activity 2'!K$27:K$33,\"N/A\",0)","v":"N/A"},{"$f":"_xlfn.XLOOKUP($E3,'Competitive Activity 2'!$B$27:$B$33,'Competitive Activity 2'!M$27:M$33,\"N/A\",0)","v":"N/A"}]
[{"$f":"'1-Cover Sheet'!$C$8","v":"Select One"},{"$f":"'1-Cover Sheet'!$F$8","v":"Select One"},{"$f":"'Summary Sheet'!$D$8","v":0},{"$f":"'Summary Sheet'!$D$10","v":0},{"$f":"'Drop Down Box'!B168","v":0},{"$f":"'Drop Down Box'!C168","v":0},{"$f":"'Drop Down Box'!D168","v":"Select One"},{"$f":"_xlfn.XLOOKUP(E4,'Drop Down Box'!$B$166:$B$249,'Drop Down Box'!$A$166:$A$249,\"Unknown\",0)","v":"Activity 1"},{"$f":"_xlfn.XLOOKUP($E4,'Activity 1'!$B$17:$B$23,'Activity 1'!$N$17:$N$23,\"\",0)","v":""},{"$f":"_xlfn.XLOOKUP($E4,'Activity 1'!$B$17:$B$23,'Activity 1'!$P$17:$P$23,\"N/A\",0)","v":"N/A"},{"$f":"_xlfn.XLOOKUP($E4,'Activity 1'!$B$7:$B$13,'Activity 1'!E$7:E$13,0,0)","v":0},{"$f":"_xlfn.XLOOKUP($E4,'Activity 1'!$B$7:$B$13,'Activity 1'!F$7:F$13,0,0)","v":"00:00:00"},{"$f":"_xlfn.XLOOKUP($E4,'Activity 1'!$B$7:$B$13,'Activity 1'!G$7:G$13,0,0)","v":0},{"$f":"_xlfn.XLOOKUP($E4,'Activity 1'!$B$7:$B$13,'Activity 1'!$A$7:$A$13,\"No\",0,1)","v":"No"},{"$f":"_xlfn.XLOOKUP($E4,'Activity 1'!$B$7:$B$13,'Activity 1'!$H$7:$H$13,\"N/A\",0,1)","v":"N/A"},{"$f":"_xlfn.XLOOKUP($E4,'Activity 1'!$B$7:$B$13,'Activity 1'!I$7:I$13,\"N/A\",0,1)","v":"N/A"},{"$f":"_xlfn.XLOOKUP($E4,'Activity 1'!$B$7:$B$13,'Activity 1'!J$7:J$13,\"N/A\",0,1)","v":"N/A"},{"$f":"_xlfn.XLOOKUP($E4,'Activity 1'!$B$7:$B$13,'Activity 1'!K$7:K$13,\"N/A\",0,1)","v":"N/A"},{"$f":"_xlfn.XLOOKUP($E4,'Activity 1'!$B$7:$B$13,'Activity 1'!L$7:L$13,\"N/A\",0,1)","v":"N/A"},{"$f":"_xlfn.XLOOKUP($E4,'Activity 1'!$B$7:$B$13,'Activity 1'!M$7:M$13,\"N/A\",0,1)","v":"N/A"},{"$f":"_xlfn.XLOOKUP($E4,'Activity 1'!$B$7:$B$13,'Activity 1'!N$7:N$13,\"N/A\",0,1)","v":"N/A"},0,{"$f":"_xlfn.XLOOKUP($E4,'Activity 1'!$B$7:$B$13,'Activity 1'!O$7:O$13,\"N/A\",0,1)","v":"N/A"},{"$f":"_xlfn.XLOOKUP($E4,'Activity 1'!$B$7:$B$13,'Activity 1'!P$7:P$13,\"N/A\",0,1)","v":"N/A"},{"$f":"_xlfn.XLOOKUP($E4,'Activity 1'!$B$7:$B$13,'Activity 1'!Q$7:Q$13,\"N/A\",0,1)","v":"N/A"},{"$f":"_xlfn.XLOOKUP($E4,'Activity 1'!$B$7:$B$13,'Activity 1'!R$7:R$13,\"N/A\",0,1)","v":"N/A"},{"$f":"_xlfn.XLOOKUP($E4,'Activity 1'!$B$7:$B$13,'Activity 1'!S$7:S$13,\"N/A\",0,1)","v":"N/A"},{"$f":"_xlfn.XLOOKUP($E4,'Activity 1'!$B$7:$B$13,'Activity 1'!T$7:T$13,\"N/A\",0,1)","v":"N/A"},{"$f":"_xlfn.XLOOKUP($E4,'Activity 1'!$B$7:$B$13,'Activity 1'!U$7:U$13,\"N/A\",0,1)","v":"N/A"},{"$f":"_xlfn.XLOOKUP($E4,'Activity 1'!$B$7:$B$13,'Activity 1'!V$7:V$13,\"N/A\",0,1)","v":"N/A"},{"$f":"_xlfn.XLOOKUP($E4,'Activity 1'!$B$17:$B$23,'Activity 1'!C$17:C$23,\"N/A\",0,1)","v":"N/A"},{"$f":"_xlfn.XLOOKUP($E4,'Activity 1'!$B$17:$B$23,'Activity 1'!D$17:D$23,\"N/A\",0,1)","v":"N/A"},{"$f":"_xlfn.XLOOKUP($E4,'Activity 1'!$B$17:$B$23,'Activity 1'!E$17:E$23,\"N/A\",0,1)","v":"N/A"},{"$f":"_xlfn.XLOOKUP($E4,'Activity 1'!$B$17:$B$23,'Activity 1'!F$17:F$23,\"N/A\",0,1)","v":"N/A"},{"$f":"_xlfn.XLOOKUP($E4,'Activity 1'!$B$17:$B$23,'Activity 1'!G$17:G$23,\"N/A\",0,1)","v":"N/A"},{"$f":"_xlfn.XLOOKUP($E4,'Activity 1'!$B$17:$B$23,'Activity 1'!H$17:H$23,\"N/A\",0,1)","v":"N/A"},{"$f":"_xlfn.XLOOKUP($E4,'Activity 1'!$B$17:$B$23,'Activity 1'!I$17:I$23,\"N/A\",0,1)","v":"N/A"},{"$f":"_xlfn.XLOOKUP($E4,'Activity 1'!$B$17:$B$23,'Activity 1'!J$17:J$23,\"N/A\",0,1)","v":"N/A"},{"$f":"_xlfn.XLOOKUP($E4,'Activity 1'!$B$17:$B$23,'Activity 1'!K$17:K$23,\"N/A\",0,1)","v":"N/A"},{"$f":"_xlfn.XLOOKUP($E4,'Activity 1'!$B$17:$B$23,'Activity 1'!L$17:L$23,\"N/A\",0,1)","v":"N/A"},{"$f":"_xlfn.XLOOKUP($E4,'Activity 1'!$B$17:$B$23,'Activity 1'!M$17:M$23,\"N/A\",0,1)","v":"N/A"},{"$f":"_xlfn.XLOOKUP($E4,'Activity 1'!$B$17:$B$23,'Activity 1'!O$17:O$23,\"N/A\",0,1)","v":"N/A"},{"$f":"_xlfn.XLOOKUP($E4,'Activity 1'!$B$17:$B$23,'Activity 1'!Q$17:Q$23,\"N/A\",0,1)","v":"N/A"},{"$f":"_xlfn.XLOOKUP($E4,'Activity 2'!$B$7:$B$13,'Activity 2'!$A$7:$A$13,\"No\",0,1)","v":"No"},{"$f":"_xlfn.XLOOKUP($E4,'Activity 2'!B$7:B$13,'Activity 2'!H$7:H$13,\"N/A\",0)","v":"N/A"},{"$f":"_xlfn.XLOOKUP($E4,'Activity 2'!C$7:C$13,'Activity 2'!I$7:I$13,\"N/A\",0)","v":"N/A"},{"$f":"_xlfn.XLOOKUP($E4,'Activity 2'!D$7:D$13,'Activity 2'!J$7:J$13,\"N/A\",0)","v":"N/A"},{"$f":"_xlfn.XLOOKUP($E4,'Activity 2'!E$7:E$13,'Activity 2'!K$7:K$13,\"N/A\",0)","v":"N/A"},{"$f":"_xlfn.XLOOKUP($E4,'Activity 2'!F$7:F$13,'Activity 2'!L$7:L$13,\"N/A\",0)","v":"N/A"},{"$f":"_xlfn.XLOOKUP($E4,'Activity 2'!G$7:G$13,'Activity 2'!M$7:M$13,\"N/A\",0)","v":"N/A"},{"$f":"_xlfn.XLOOKUP($E4,'Activity 2'!H$7:H$13,'Activity 2'!N$7:N$13,\"N/A\",0)","v":"N/A"},{"$f":"_xlfn.XLOOKUP($E4,'Activity 2'!I$7:I$13,'Activity 2'!O$7:O$13,\"N/A\",0)","v":"N/A"},{"$f":"_xlfn.XLOOKUP($E4,'Activity 2'!J$7:J$13,'Activity 2'!P$7:P$13,\"N/A\",0)","v":"N/A"},{"$f":"_xlfn.XLOOKUP($E4,'Activity 2'!K$7:K$13,'Activity 2'!Q$7:Q$13,\"N/A\",0)","v":"N/A"},{"$f":"_xlfn.XLOOKUP($E4,'Activity 2'!L$7:L$13,'Activity 2'!R$7:R$13,\"N/A\",0)","v":"N/A"},{"$f":"_xlfn.XLOOKUP($E4,'Activity 2'!M$7:M$13,'Activity 2'!S$7:S$13,\"N/A\",0)","v":"N/A"},{"$f":"_xlfn.XLOOKUP($E4,'Activity 2'!N$7:N$13,'Activity 2'!T$7:T$13,\"N/A\",0)","v":"N/A"},{"$f":"_xlfn.XLOOKUP($E4,'Activity 2'!O$7:O$13,'Activity 2'!U$7:U$13,\"N/A\",0)","v":"N/A"},{"$f":"_xlfn.XLOOKUP($E4,'Activity 2'!P$7:P$13,'Activity 2'!V$7:V$13,\"N/A\",0)","v":"N/A"},{"$f":"_xlfn.XLOOKUP($E4,'Activity 2'!$B$17:$B$23,'Activity 2'!C$17:C$23,\"N/A\",0,1)","v":"N/A"},{"$f":"_xlfn.XLOOKUP($E4,'Activity 2'!$B$17:$B$23,'Activity 2'!D$17:D$23,\"N/A\",0,1)","v":"N/A"},{"$f":"_xlfn.XLOOKUP($E4,'Activity 2'!$B$17:$B$23,'Activity 2'!E$17:E$23,\"N/A\",0,1)","v":"N/A"},{"$f":"_xlfn.XLOOKUP($E4,'Activity 2'!$B$17:$B$23,'Activity 2'!F$17:F$23,\"N/A\",0,1)","v":"N/A"},{"$f":"_xlfn.XLOOKUP($E4,'Activity 2'!$B$17:$B$23,'Activity 2'!G$17:G$23,\"N/A\",0,1)","v":"N/A"},{"$f":"_xlfn.XLOOKUP($E4,'Activity 2'!$B$17:$B$23,'Activity 2'!H$17:H$23,\"N/A\",0,1)","v":"N/A"},{"$f":"_xlfn.XLOOKUP($E4,'Activity 2'!$B$17:$B$23,'Activity 2'!I$17:I$23,\"N/A\",0,1)","v":"N/A"},{"$f":"_xlfn.XLOOKUP($E4,'Activity 2'!$B$17:$B$23,'Activity 2'!J$17:J$23,\"N/A\",0,1)","v":"N/A"},{"$f":"_xlfn.XLOOKUP($E4,'Activity 2'!$B$17:$B$23,'Activity 2'!K$17:K$23,\"N/A\",0,1)","v":"N/A"},{"$f":"_xlfn.XLOOKUP($E4,'Activity 2'!$B$17:$B$23,'Activity 2'!L$17:L$23,\"N/A\",0,1)","v":"N/A"},{"$f":"_xlfn.XLOOKUP($E4,'Activity 2'!$B$17:$B$23,'Activity 2'!M$17:M$23,\"N/A\",0,1)","v":"N/A"},{"$f":"_xlfn.XLOOKUP($E4,'Activity 2'!$B$17:$B$23,'Activity 2'!O$17:O$23,\"N/A\",0,1)","v":"N/A"},{"$f":"_xlfn.XLOOKUP($E4,'Activity 2'!$B$17:$B$23,'Activity 2'!Q$17:Q$23,\"N/A\",0,1)","v":"N/A"},{"$f":"_xlfn.XLOOKUP($E4,'Activity 3'!$B$8:$B$14,'Activity 3'!A$8:A$14,\"No\",0,1)","v":"No"},{"$f":"_xlfn.XLOOKUP($E4,'Activity 3'!$B$8:$B$14,'Activity 3'!K$8:K$14,\"N/A\",0,1)","v":"N/A"},{"$f":"_xlfn.XLOOKUP($E4,'Activity 3'!$B$8:$B$14,'Activity 3'!L$8:L$14,\"N/A\",0,1)","v":"N/A"},{"$f":"_xlfn.XLOOKUP($E4,'Activity 3'!$B$8:$B$14,'Activity 3'!M$8:M$14,\"N/A\",0,1)","v":"N/A"},{"$f":"_xlfn.XLOOKUP($E4,'Activity 3'!$B$8:$B$14,'Activity 3'!N$8:N$14,\"N/A\",0,1)","v":"N/A"},{"$f":"_xlfn.XLOOKUP($E4,'Activity 3'!$B$8:$B$14,'Activity 3'!O$8:O$14,\"N/A\",0,1)","v":"N/A"},{"$f":"_xlfn.XLOOKUP($E4,'Activity 3'!$B$8:$B$14,'Activity 3'!R$8:R$14,\"N/A\",0,1)","v":"N/A"},{"$f":"_xlfn.XLOOKUP($E4,'Activity 4'!$B$8:$B$14,'Activity 4'!$A$8:$A$14,\"No\",0,1)","v":"No"},{"$f":"_xlfn.XLOOKUP($E4,'Activity 4'!$B$8:$B$14,'Activity 4'!L$8:L$14,\"N/A\",0,1)","v":"N/A"},{"$f":"_xlfn.XLOOKUP($E4,'Activity 4'!$B$8:$B$14,'Activity 4'!D$8:D$14,\"N/A\",0,1)","v":"N/A"},{"$f":"_xlfn.XLOOKUP($E4,'Activity 4'!$B$8:$B$14,'Activity 4'!G$8:G$14,\"N/A\",0,1)","v":"N/A"},{"$f":"_xlfn.XLOOKUP($E4,'Activity 5'!$B$8:$B$14,'Activity 5'!$A$8:$A$14,\"No\",0,1)","v":"No"},{"$f":"_xlfn.XLOOKUP($E4,'Activity 5'!$B$8:$B$14,'Activity 5'!J$8:J$14,\"N/A\",0,1)","v":"N/A"},{"$f":"_xlfn.XLOOKUP($E4,'Activity 5'!$B$8:$B$14,'Activity 5'!K$8:K$14,\"N/A\",0,1)","v":"N/A"},{"$f":"_xlfn.XLOOKUP($E4,'Activity 5'!$B$8:$B$14,'Activity 5'!N$8:N$14,\"N/A\",0,1)","v":"N/A"},{"$f":"_xlfn.XLOOKUP($E4,'Activity 5'!$B$8:$B$14,'Activity 5'!O$8:O$14,\"N/A\",0,1)","v":"N/A"},{"$f":"_xlfn.XLOOKUP($E4,'Activity 5'!$B$8:$B$14,'Activity 5'!P$8:P$14,\"N/A\",0,1)","v":"N/A"},{"$f":"_xlfn.XLOOKUP($E4,'Activity 5'!$B$8:$B$14,'Activity 5'!Q$8:Q$14,\"N/A\",0,1)","v":"N/A"},{"$f":"_xlfn.XLOOKUP($E4,'Activity 5'!$B$8:$B$14,'Activity 5'!R$8:R$14,\"N/A\",0,1)","v":"N/A"},{"$f":"_xlfn.XLOOKUP($E4,'Activity 6'!$B$7:$B$13,'Activity 6'!A$7:A$13,\"No\",0,1)","v":"No"},{"$f":"_xlfn.XLOOKUP($E4,'Activity 6'!$B$7:$B$13,'Activity 6'!K$7:K$13,\"N/A\",0,1)","v":"N/A"},{"$f":"_xlfn.XLOOKUP($E4,'Activity 6'!$B$7:$B$13,'Activity 6'!L$7:L$13,\"N/A\",0,1)","v":"N/A"},{"$f":"_xlfn.XLOOKUP($E4,'Activity 6'!$B$7:$B$13,'Activity 6'!M$7:M$13,\"N/A\",0,1)","v":"N/A"},{"$f":"_xlfn.XLOOKUP($E4,'Activity 6'!$B$7:$B$13,'Activity 6'!N$7:N$13,\"N/A\",0,1)","v":"N/A"},{"$f":"_xlfn.XLOOKUP($E4,'Activity 6'!$B$7:$B$13,'Activity 6'!O$7:O$13,\"N/A\",0,1)","v":"N/A"},{"$f":"_xlfn.XLOOKUP($E4,'Activity 6'!$B$7:$B$13,'Activity 6'!P$7:P$13,\"N/A\",0,1)","v":"N/A"},{"$f":"_xlfn.XLOOKUP($E4,'Activity 6'!$B$7:$B$13,'Activity 6'!Q$7:Q$13,\"N/A\",0,1)","v":"N/A"},{"$f":"_xlfn.XLOOKUP($E4,'Activity 6'!$B$7:$B$13,'Activity 6'!R$7:R$13,\"N/A\",0,1)","v":"N/A"},{"$f":"_xlfn.XLOOKUP($E4,'Activity 6'!$B$7:$B$13,'Activity 6'!S$7:S$13,\"N/A\",0,1)","v":"N/A"},{"$f":"_xlfn.XLOOKUP($E4,'Activity 6'!$B$7:$B$13,'Activity 6'!T$7:T$13,\"N/A\",0,1)","v":"N/A"},{"$f":"_xlfn.XLOOKUP($E4,'Activity 6'!$B$7:$B$13,'Activity 6'!U$7:U$13,\"N/A\",0,1)","v":"N/A"},{"$f":"_xlfn.XLOOKUP($E4,'Activity 6'!$B$22:$B$28,'Activity 6'!C$22:C$28,\"N/A\",0,1)","v":"N/A"},{"$f":"_xlfn.XLOOKUP($E4,'Activity 6'!$B$22:$B$28,'Activity 6'!D$22:D$28,\"N/A\",0,1)","v":"N/A"},{"$f":"_xlfn.XLOOKUP($E4,'Activity 6'!$B$22:$B$28,'Activity 6'!E$22:E$28,\"N/A\",0,1)","v":"N/A"},{"$f":"_xlfn.XLOOKUP($E4,'Activity 6'!$B$22:$B$28,'Activity 6'!F$22:F$28,\"N/A\",0,1)","v":"N/A"},{"$f":"_xlfn.XLOOKUP($E4,'Activity 6'!$B$22:$B$28,'Activity 6'!G$22:G$28,\"N/A\",0,1)","v":"N/A"},{"$f":"_xlfn.XLOOKUP($E4,'Activity 6'!$B$22:$B$28,'Activity 6'!H$22:H$28,\"N/A\",0,1)","v":"N/A"},{"$f":"_xlfn.XLOOKUP($E4,'Activity 6'!$B$22:$B$28,'Activity 6'!I$22:I$28,\"N/A\",0,1)","v":"N/A"},{"$f":"_xlfn.XLOOKUP($E4,'Activity 6'!$B$22:$B$28,'Activity 6'!J$22:J$28,\"N/A\",0,1)","v":"N/A"},{"$f":"_xlfn.XLOOKUP($E4,'Activity 6'!$B$22:$B$28,'Activity 6'!K$22:K$28,\"N/A\",0,1)","v":"N/A"},{"$f":"_xlfn.XLOOKUP($E4,'Activity 6'!$B$22:$B$28,'Activity 6'!L$22:L$28,\"N/A\",0,1)","v":"N/A"},{"$f":"_xlfn.XLOOKUP($E4,'Activity 6'!$B$22:$B$28,'Activity 6'!M$22:M$28,\"N/A\",0,1)","v":"N/A"},{"$f":"_xlfn.XLOOKUP($E4,'Activity 6'!$B$22:$B$28,'Activity 6'!N$22:N$28,\"N/A\",0,1)","v":"N/A"},{"$f":"_xlfn.XLOOKUP($E4,'Activity 6'!$B$32:$B$38,'Activity 6'!C$32:C$38,\"N/A\",0,1)","v":"N/A"},{"$f":"_xlfn.XLOOKUP($E4,'Activity 6'!$B$32:$B$38,'Activity 6'!D$32:D$38,\"N/A\",0,1)","v":"N/A"},{"$f":"_xlfn.XLOOKUP($E4,'Activity 6'!$B$32:$B$38,'Activity 6'!E$32:E$38,\"N/A\",0,1)","v":"N/A"},{"$f":"_xlfn.XLOOKUP($E4,'Activity 6'!$B$32:$B$38,'Activity 6'!F$32:F$38,\"N/A\",0,1)","v":"N/A"},{"$f":"_xlfn.XLOOKUP($E4,'Activity 6'!$B$32:$B$38,'Activity 6'!G$32:G$38,\"N/A\",0,1)","v":"N/A"},{"$f":"_xlfn.XLOOKUP($E4,'Activity 6'!$B$32:$B$38,'Activity 6'!H$32:H$38,\"N/A\",0,1)","v":"N/A"},{"$f":"_xlfn.XLOOKUP($E4,'Activity 6'!$B$32:$B$38,'Activity 6'!I$32:I$38,\"N/A\",0,1)","v":"N/A"},{"$f":"_xlfn.XLOOKUP($E4,'Activity 6'!$B$32:$B$38,'Activity 6'!J$32:J$38,\"N/A\",0,1)","v":"N/A"},{"$f":"_xlfn.XLOOKUP($E4,'Activity 6'!$B$32:$B$38,'Activity 6'!K$32:K$38,\"N/A\",0,1)","v":"N/A"},{"$f":"_xlfn.XLOOKUP($E4,'Activity 6'!$B$32:$B$38,'Activity 6'!M$32:M$38,\"N/A\",0,1)","v":"N/A"},{"$f":"_xlfn.XLOOKUP($E4,'Activity 7'!$B$7:$B$13,'Activity 7'!$A$7:$A$13,\"No\",0,1)","v":"No"},{"$f":"_xlfn.XLOOKUP($E4,'Activity 7'!$B$7:$B$13,'Activity 7'!M$7:M$13,\"N/A\",0,1)","v":"N/A"},{"$f":"_xlfn.XLOOKUP($E4,'Activity 7'!$B$7:$B$13,'Activity 7'!K$7:K$13,\"N/A\",0,1)","v":"N/A"},{"$f":"_xlfn.XLOOKUP($E4,'Activity 7'!$B$7:$B$13,'Activity 7'!N$7:N$13,\"N/A\",0,1)","v":"N/A"},{"$f":"_xlfn.XLOOKUP($E4,'Activity 7'!$B$7:$B$13,'Activity 7'!O$7:O$13,\"N/A\",0,1)","v":"N/A"},{"$f":"_xlfn.XLOOKUP($E4,'Activity 7'!$B$7:$B$13,'Activity 7'!P$7:P$13,\"N/A\",0,1)","v":"N/A"},{"$f":"_xlfn.XLOOKUP($E4,'Activity 7'!$B$7:$B$13,'Activity 7'!Q$7:Q$13,\"N/A\",0,1)","v":"N/A"},{"$f":"_xlfn.XLOOKUP($E4,'Activity 7'!$B$7:$B$13,'Activity 7'!R$7:R$13,\"N/A\",0,1)","v":"N/A"},{"$f":"_xlfn.XLOOKUP($E4,'Activity 7'!$B$7:$B$13,'Activity 7'!S$7:S$13,\"N/A\",0,1)","v":"N/A"},{"$f":"_xlfn.XLOOKUP($E4,'Activity 7'!$B$7:$B$13,'Activity 7'!T$7:T$13,\"N/A\",0,1)","v":"N/A"},{"$f":"_xlfn.XLOOKUP($E4,'Activity 7'!$B$7:$B$13,'Activity 7'!U$7:U$13,\"N/A\",0,1)","v":"N/A"},{"$f":"_xlfn.XLOOKUP($E4,'Activity 7'!$B$7:$B$13,'Activity 7'!V$7:V$13,\"N/A\",0,1)","v":"N/A"},{"$f":"_xlfn.XLOOKUP($E4,'Activity 7'!$B$17:$B$23,'Activity 7'!E$17:E$23,\"N/A\",0,1)","v":"N/A"},{"$f":"_xlfn.XLOOKUP($E4,'Activity 7'!$B$17:$B$23,'Activity 7'!G$17:G$23,\"N/A\",0,1)","v":"N/A"},{"$f":"_xlfn.XLOOKUP($E4,'Activity 7'!$B$17:$B$23,'Activity 7'!I$17:I$23,\"N/A\",0,1)","v":"N/A"},{"$f":"_xlfn.XLOOKUP($E4,'Activity 7'!$B$17:$B$23,'Activity 7'!J$17:J$23,\"N/A\",0,1)","v":"N/A"},{"$f":"_xlfn.XLOOKUP($E4,'Activity 7'!$B$17:$B$23,'Activity 7'!K$17:K$23,\"N/A\",0,1)","v":"N/A"},{"$f":"_xlfn.XLOOKUP($E4,'Activity 7'!$B$17:$B$23,'Activity 7'!L$17:L$23,\"N/A\",0,1)","v":"N/A"},{"$f":"_xlfn.XLOOKUP($E4,'Activity 7'!$B$17:$B$23,'Activity 7'!M$17:M$23,\"N/A\",0,1)","v":"N/A"},{"$f":"_xlfn.XLOOKUP($E4,'Activity 7'!$B$17:$B$23,'Activity 7'!N$17:N$23,\"N/A\",0,1)","v":"N/A"},{"$f":"_xlfn.XLOOKUP($E4,'Activity 7'!$B$17:$B$23,'Activity 7'!P$17:P$23,\"N/A\",0,1)","v":"N/A"},{"$f":"_xlfn.XLOOKUP($E4,'Activity 8'!$B$7:$B$13,'Activity 8'!A$7:A$13,\"No\",0,1)","v":"No"},{"$f":"_xlfn.XLOOKUP($E4,'Activity 8'!$B$7:$B$13,'Activity 8'!I$7:I$13,\"N/A\",0,1)","v":"N/A"},{"$f":"_xlfn.XLOOKUP($E4,'Activity 8'!$B$7:$B$13,'Activity 8'!J$7:J$13,\"N/A\",0,1)","v":"N/A"},{"$f":"_xlfn.XLOOKUP($E4,'Activity 8'!$B$7:$B$13,'Activity 8'!K$7:K$13,\"N/A\",0,1)","v":"N/A"},{"$f":"_xlfn.XLOOKUP($E4,'Activity 8'!$B$7:$B$13,'Activity 8'!L$7:L$13,\"N/A\",0,1)","v":"N/A"},{"$f":"_xlfn.XLOOKUP($E4,'Activity 8'!$B$7:$B$13,'Activity 8'!M$7:M$13,\"N/A\",0,1)","v":"N/A"},{"$f":"_xlfn.XLOOKUP($E4,'Activity 8'!$B$7:$B$13,'Activity 8'!N$7:N$13,\"N/A\",0,1)","v":"N/A"},{"$f":"_xlfn.XLOOKUP($E4,'Activity 8'!$B$7:$B$13,'Activity 8'!O$7:O$13,\"N/A\",0,1)","v":"N/A"},{"$f":"_xlfn.XLOOKUP($E4,'Activity 8'!$B$7:$B$13,'Activity 8'!P$7:P$13,\"N/A\",0,1)","v":"N/A"},{"$f":"_xlfn.XLOOKUP($E4,'Activity 8'!$B$7:$B$13,'Activity 8'!Q$7:Q$13,\"N/A\",0,1)","v":"N/A"},{"$f":"_xlfn.XLOOKUP($E4,'Activity 8'!$B$7:$B$13,'Activity 8'!R$7:R$13,\"N/A\",0,1)","v":"N/A"},{"$f":"_xlfn.XLOOKUP($E4,'Activity 8'!$B$7:$B$13,'Activity 8'!S$7:S$13,\"N/A\",0,1)","v":"N/A"},{"$f":"_xlfn.XLOOKUP($E4,'Activity 8'!$B$7:$B$13,'Activity 8'!T$7:T$13,\"N/A\",0,1)","v":"N/A"},{"$f":"_xlfn.XLOOKUP($E4,'Activity 8'!$B$7:$B$13,'Activity 8'!U$7:U$13,\"N/A\",0,1)","v":"N/A"},{"$f":"_xlfn.XLOOKUP($E4,'Activity 8'!$B$7:$B$13,'Activity 8'!V$7:V$13,\"N/A\",0,1)","v":"N/A"},{"$f":"_xlfn.XLOOKUP($E4,'Activity 8'!$B$17:$B$23,'Activity 8'!D$17:D$23,\"N/A\",0,1)","v":"N/A"},{"$f":"_xlfn.XLOOKUP($E4,'Activity 8'!$B$17:$B$23,'Activity 8'!E$17:E$23,\"N/A\",0,1)","v":"N/A"},{"$f":"_xlfn.XLOOKUP($E4,'Activity 8'!$B$17:$B$23,'Activity 8'!F$17:F$23,\"N/A\",0,1)","v":"N/A"},{"$f":"_xlfn.XLOOKUP($E4,'Activity 8'!$B$17:$B$23,'Activity 8'!G$17:G$23,\"N/A\",0,1)","v":"N/A"},{"$f":"_xlfn.XLOOKUP($E4,'Activity 8'!$B$17:$B$23,'Activity 8'!H$17:H$23,\"N/A\",0,1)","v":"N/A"},{"$f":"_xlfn.XLOOKUP($E4,'Activity 8'!$B$17:$B$23,'Activity 8'!I$17:I$23,\"N/A\",0,1)","v":"N/A"},{"$f":"_xlfn.XLOOKUP($E4,'Activity 8'!$B$17:$B$23,'Activity 8'!J$17:J$23,\"N/A\",0,1)","v":"N/A"},{"$f":"_xlfn.XLOOKUP($E4,'Activity 8'!$B$17:$B$23,'Activity 8'!K$17:K$23,\"N/A\",0,1)","v":"N/A"},{"$f":"_xlfn.XLOOKUP($E4,'Activity 8'!$B$17:$B$23,'Activity 8'!L$17:L$23,\"N/A\",0,1)","v":"N/A"},{"$f":"_xlfn.XLOOKUP($E4,'Activity 8'!$B$17:$B$23,'Activity 8'!M$17:M$23,\"N/A\",0,1)","v":"N/A"},{"$f":"_xlfn.XLOOKUP($E4,'Activity 8'!$B$17:$B$23,'Activity 8'!N$17:N$23,\"N/A\",0,1)","v":"N/A"},{"$f":"_xlfn.XLOOKUP($E4,'Activity 8'!$B$17:$B$23,'Activity 8'!P$17:P$23,\"N/A\",0,1)","v":"N/A"},{"$f":"_xlfn.XLOOKUP(E4,'Activity 9'!$B$7:$B$13,'Activity 9'!$A$7:$A$13,\"No\",0,1)","v":"No"},{"$f":"_xlfn.XLOOKUP($E4,'Activity 9'!$B$7:$B$13,'Activity 9'!J$7:J$13,\"N/A\",0,1)","v":"N/A"},{"$f":"_xlfn.XLOOKUP($E4,'Activity 9'!$B$7:$B$13,'Activity 9'!K$7:K$13,\"N/A\",0,1)","v":"N/A"},{"$f":"_xlfn.XLOOKUP($E4,'Activity 9'!$B$7:$B$13,'Activity 9'!L$7:L$13,\"N/A\",0,1)","v":"N/A"},{"$f":"_xlfn.XLOOKUP($E4,'Activity 9'!$B$7:$B$13,'Activity 9'!M$7:M$13,\"N/A\",0,1)","v":"N/A"},{"$f":"_xlfn.XLOOKUP($E4,'Activity 9'!$B$7:$B$13,'Activity 9'!N$7:N$13,\"N/A\",0,1)","v":"N/A"},{"$f":"_xlfn.XLOOKUP($E4,'Activity 9'!$B$7:$B$13,'Activity 9'!O$7:O$13,\"N/A\",0,1)","v":"N/A"},{"$f":"_xlfn.XLOOKUP($E4,'Activity 9'!$B$7:$B$13,'Activity 9'!P$7:P$13,\"N/A\",0,1)","v":"N/A"},{"$f":"_xlfn.XLOOKUP($E4,'Activity 9'!$B$7:$B$13,'Activity 9'!Q$7:Q$13,\"N/A\",0,1)","v":"N/A"},{"$f":"_xlfn.XLOOKUP($E4,'Activity 9'!$B$7:$B$13,'Activity 9'!R$7:R$13,\"N/A\",0,1)","v":"N/A"},{"$f":"_xlfn.XLOOKUP($E4,'Activity 9'!$B$7:$B$13,'Activity 9'!S$7:S$13,\"N/A\",0,1)","v":"N/A"},{"$f":"_xlfn.XLOOKUP($E4,'Activity 9'!$B$7:$B$13,'Activity 9'!T$7:T$13,\"N/A\",0,1)","v":"N/A"},{"$f":"_xlfn.XLOOKUP($E4,'Activity 9'!$B$17:$B$23,'Activity 9'!E$17:E$23,\"N/A\",0,1)","v":"N/A"},{"$f":"_xlfn.XLOOKUP($E4,'Activity 9'!$B$17:$B$23,'Activity 9'!F$17:F$23,\"N/A\",0,1)","v":"N/A"},{"$f":"_xlfn.XLOOKUP($E4,'Activity 9'!$B$17:$B$23,'Activity 9'!G$17:G$23,\"N/A\",0,1)","v":"N/A"},{"$f":"_xlfn.XLOOKUP($E4,'Activity 9'!$B$17:$B$23,'Activity 9'!H$17:H$23,\"N/A\",0,1)","v":"N/A"},{"$f":"_xlfn.XLOOKUP($E4,'Activity 9'!$B$17:$B$23,'Activity 9'!I$17:I$23,\"N/A\",0,1)","v":"N/A"},{"$f":"_xlfn.XLOOKUP($E4,'Activity 9'!$B$17:$B$23,'Activity 9'!J$17:J$23,\"N/A\",0,1)","v":"N/A"},{"$f":"_xlfn.XLOOKUP($E4,'Activity 9'!$B$17:$B$23,'Activity 9'!K$17:K$23,\"N/A\",0,1)","v":"N/A"},{"$f":"_xlfn.XLOOKUP($E4,'Activity 9'!$B$17:$B$23,'Activity 9'!L$17:L$23,\"N/A\",0,1)","v":"N/A"},{"$f":"_xlfn.XLOOKUP($E4,'Activity 9'!$B$17:$B$23,'Activity 9'!N$17:N$23,\"N/A\",0,1)","v":"N/A"},{"$f":"_xlfn.XLOOKUP($E4,'Activity 9'!$B$17:$B$23,'Activity 9'!O$17:O$23,\"N/A\",0,1)","v":"N/A"},{"$f":"_xlfn.XLOOKUP($E4,'Activity 9'!$B$17:$B$23,'Activity 9'!Q$17:Q$23,\"N/A\",0,1)","v":"N/A"},{"$f":"_xlfn.XLOOKUP($E4,'Activity 10'!$B$7:$B$13,'Activity 10'!A$7:A$13,\"No\",0,1)","v":"No"},{"$f":"_xlfn.XLOOKUP($E4,'Activity 10'!$B$7:$B$13,'Activity 10'!J$7:J$13,\"N/A\",0,1)","v":"N/A"},{"$f":"_xlfn.XLOOKUP($E4,'Activity 10'!$B$7:$B$13,'Activity 10'!K$7:K$13,\"N/A\",0,1)","v":"N/A"},{"$f":"_xlfn.XLOOKUP($E4,'Activity 10'!$B$7:$B$13,'Activity 10'!L$7:L$13,\"N/A\",0,1)","v":"N/A"},{"$f":"_xlfn.XLOOKUP($E4,'Activity 10'!$B$7:$B$13,'Activity 10'!M$7:M$13,\"N/A\",0,1)","v":"N/A"},{"$f":"_xlfn.XLOOKUP($E4,'Activity 10'!$B$7:$B$13,'Activity 10'!N$7:N$13,\"N/A\",0,1)","v":"N/A"},{"$f":"_xlfn.XLOOKUP($E4,'Activity 10'!$B$7:$B$13,'Activity 10'!O$7:O$13,\"N/A\",0,1)","v":"N/A"},{"$f":"_xlfn.XLOOKUP($E4,'Activity 10'!$B$7:$B$13,'Activity 10'!P$7:P$13,\"N/A\",0,1)","v":"N/A"},{"$f":"_xlfn.XLOOKUP($E4,'Activity 10'!$B$7:$B$13,'Activity 10'!Q$7:Q$13,\"N/A\",0,1)","v":"N/A"},{"$f":"_xlfn.XLOOKUP($E4,'Activity 10'!$B$7:$B$13,'Activity 10'!R$7:R$13,\"N/A\",0,1)","v":"N/A"},{"$f":"_xlfn.XLOOKUP($E4,'Activity 10'!$B$7:$B$13,'Activity 10'!S$7:S$13,\"N/A\",0,1)","v":"N/A"},{"$f":"_xlfn.XLOOKUP($E4,'Activity 10'!$B$7:$B$13,'Activity 10'!T$7:T$13,\"N/A\",0,1)","v":"N/A"},{"$f":"_xlfn.XLOOKUP($E4,'Activity 10'!$B$7:$B$13,'Activity 10'!U$7:U$13,\"N/A\",0,1)","v":"N/A"},{"$f":"_xlfn.XLOOKUP($E4,'Activity 10'!$B$7:$B$13,'Activity 10'!V$7:V$13,\"N/A\",0,1)","v":"N/A"},{"$f":"_xlfn.XLOOKUP($E4,'Activity 10'!$B$17:$B$23,'Activity 10'!E$17:E$23,\"N/A\",0,1)","v":"N/A"},{"$f":"_xlfn.XLOOKUP($E4,'Activity 10'!$B$17:$B$23,'Activity 10'!F$17:F$23,\"N/A\",0,1)","v":"N/A"},{"$f":"_xlfn.XLOOKUP($E4,'Activity 10'!$B$17:$B$23,'Activity 10'!G$17:G$23,\"N/A\",0,1)","v":"N/A"},{"$f":"_xlfn.XLOOKUP($E4,'Activity 10'!$B$17:$B$23,'Activity 10'!H$17:H$23,\"N/A\",0,1)","v":"N/A"},{"$f":"_xlfn.XLOOKUP($E4,'Activity 10'!$B$17:$B$23,'Activity 10'!I$17:I$23,\"N/A\",0,1)","v":"N/A"},{"$f":"_xlfn.XLOOKUP($E4,'Activity 10'!$B$17:$B$23,'Activity 10'!J$17:J$23,\"N/A\",0,1)","v":"N/A"},{"$f":"_xlfn.XLOOKUP($E4,'Activity 10'!$B$17:$B$23,'Activity 10'!K$17:K$23,\"N/A\",0,1)","v":"N/A"},{"$f":"_xlfn.XLOOKUP($E4,'Activity 10'!$B$17:$B$23,'Activity 10'!L$17:L$23,\"N/A\",0,1)","v":"N/A"},{"$f":"_xlfn.XLOOKUP($E4,'Activity 10'!$B$17:$B$23,'Activity 10'!M$17:M$23,\"N/A\",0,1)","v":"N/A"},{"$f":"_xlfn.XLOOKUP($E4,'Activity 10'!$B$17:$B$23,'Activity 10'!N$17:N$23,\"N/A\",0,1)","v":"N/A"},{"$f":"_xlfn.XLOOKUP($E4,'Activity 10'!$B$17:$B$23,'Activity 10'!P$17:P$23,\"N/A\",0,1)","v":"N/A"},{"$f":"_xlfn.XLOOKUP($E4,'Competitive Activity 1'!B$7:B$13,'Competitive Activity 1'!A$7:A$13,\"No\",0,1)","v":"No"},{"$f":"_xlfn.XLOOKUP($E4,'Competitive Activity 1'!$B$7:$B$13,'Competitive Activity 1'!H$7:H$13,\"N/A\",0,1)","v":"N/A"},{"$f":"_xlfn.XLOOKUP($E4,'Competitive Activity 1'!$B$7:$B$13,'Competitive Activity 1'!I$7:I$13,\"N/A\",0,1)","v":"N/A"},{"$f":"_xlfn.XLOOKUP($E4,'Competitive Activity 1'!$B$7:$B$13,'Competitive Activity 1'!J$7:J$13,\"N/A\",0,1)","v":"N/A"},{"$f":"_xlfn.XLOOKUP($E4,'Competitive Activity 1'!$B$7:$B$13,'Competitive Activity 1'!K$7:K$13,\"N/A\",0,1)","v":"N/A"},{"$f":"_xlfn.XLOOKUP($E4,'Competitive Activity 1'!$B$7:$B$13,'Competitive Activity 1'!L$7:L$13,\"N/A\",0,1)","v":"N/A"},{"$f":"_xlfn.XLOOKUP($E4,'Competitive Activity 1'!$B$7:$B$13,'Competitive Activity 1'!M$7:M$13,\"N/A\",0,1)","v":"N/A"},{"$f":"_xlfn.XLOOKUP($E4,'Competitive Activity 1'!$B$7:$B$13,'Competitive Activity 1'!N$7:N$13,\"N/A\",0,1)","v":"N/A"},{"$f":"_xlfn.XLOOKUP($E4,'Competitive Activity 1'!$B$7:$B$13,'Competitive Activity 1'!O$7:O$13,\"N/A\",0,1)","v":"N/A"},{"$f":"_xlfn.XLOOKUP($E4,'Competitive Activity 1'!$B$7:$B$13,'Competitive Activity 1'!P$7:P$13,\"N/A\",0,1)","v":"N/A"},{"$f":"_xlfn.XLOOKUP($E4,'Competitive Activity 1'!$B$7:$B$13,'Competitive Activity 1'!Q$7:Q$13,\"N/A\",0,1)","v":"N/A"},{"$f":"_xlfn.XLOOKUP($E4,'Competitive Activity 1'!$B$7:$B$13,'Competitive Activity 1'!R$7:R$13,\"N/A\",0,1)","v":"N/A"},{"$f":"_xlfn.XLOOKUP($E4,'Competitive Activity 1'!$B$7:$B$13,'Competitive Activity 1'!S$7:S$13,\"N/A\",0,1)","v":"N/A"},{"$f":"_xlfn.XLOOKUP($E4,'Competitive Activity 1'!$B$7:$B$13,'Competitive Activity 1'!T$7:T$13,\"N/A\",0,1)","v":"N/A"},{"$f":"_xlfn.XLOOKUP($E4,'Competitive Activity 1'!$B$7:$B$13,'Competitive Activity 1'!U$7:U$13,\"N/A\",0,1)","v":"N/A"},{"$f":"_xlfn.XLOOKUP($E4,'Competitive Activity 1'!$B$17:$B$23,'Competitive Activity 1'!C$17:C$23,\"N/A\",0,1)","v":"N/A"},{"$f":"_xlfn.XLOOKUP($E4,'Competitive Activity 1'!$B$17:$B$23,'Competitive Activity 1'!D$17:D$23,\"N/A\",0,1)","v":"N/A"},{"$f":"_xlfn.XLOOKUP($E4,'Competitive Activity 1'!$B$17:$B$23,'Competitive Activity 1'!E$17:E$23,\"N/A\",0,1)","v":"N/A"},{"$f":"_xlfn.XLOOKUP($E4,'Competitive Activity 1'!$B$17:$B$23,'Competitive Activity 1'!F$17:F$23,\"N/A\",0,1)","v":"N/A"},{"$f":"_xlfn.XLOOKUP($E4,'Competitive Activity 1'!$B$17:$B$23,'Competitive Activity 1'!G$17:G$23,\"N/A\",0,1)","v":"N/A"},{"$f":"_xlfn.XLOOKUP($E4,'Competitive Activity 1'!$B$17:$B$23,'Competitive Activity 1'!H$17:H$23,\"N/A\",0,1)","v":"N/A"},{"$f":"_xlfn.XLOOKUP($E4,'Competitive Activity 1'!$B$17:$B$23,'Competitive Activity 1'!I$17:I$23,\"N/A\",0,1)","v":"N/A"},{"$f":"_xlfn.XLOOKUP($E4,'Competitive Activity 1'!$B$17:$B$23,'Competitive Activity 1'!J$17:J$23,\"N/A\",0,1)","v":"N/A"},{"$f":"_xlfn.XLOOKUP($E4,'Competitive Activity 1'!$B$17:$B$23,'Competitive Activity 1'!K$17:K$23,\"N/A\",0,1)","v":"N/A"},{"$f":"_xlfn.XLOOKUP($E4,'Competitive Activity 1'!$B$17:$B$23,'Competitive Activity 1'!M$17:M$23,\"N/A\",0,1)","v":"N/A"},{"$f":"_xlfn.XLOOKUP($E4,'Competitive Activity 1'!$B$17:$B$23,'Competitive Activity 1'!N$17:N$23,\"N/A\",0,1)","v":"N/A"},{"$f":"_xlfn.XLOOKUP($E4,'Competitive Activity 1'!$B$17:$B$23,'Competitive Activity 1'!P$17:P$23,\"N/A\",0,1)","v":"N/A"},{"$f":"_xlfn.XLOOKUP($E4,'Competitive Activity 2'!$B$7:$B$13,'Competitive Activity 2'!A$7:A$13,\"No\",0)","v":"No"},{"$f":"_xlfn.XLOOKUP($E4,'Competitive Activity 2'!$B$7:$B$13,'Competitive Activity 2'!L$7:L$13,\"N/A\",0)","v":"N/A"},{"$f":"_xlfn.XLOOKUP($E4,'Competitive Activity 2'!$B$7:$B$13,'Competitive Activity 2'!M$7:M$13,\"N/A\",0)","v":"N/A"},{"$f":"_xlfn.XLOOKUP($E4,'Competitive Activity 2'!$B$7:$B$13,'Competitive Activity 2'!N$7:N$13,\"N/A\",0)","v":"N/A"},{"$f":"_xlfn.XLOOKUP($E4,'Competitive Activity 2'!$B$7:$B$13,'Competitive Activity 2'!O$7:O$13,\"N/A\",0)","v":"N/A"},{"$f":"_xlfn.XLOOKUP($E4,'Competitive Activity 2'!$B$7:$B$13,'Competitive Activity 2'!P$7:P$13,\"N/A\",0)","v":"N/A"},{"$f":"_xlfn.XLOOKUP($E4,'Competitive Activity 2'!$B$7:$B$13,'Competitive Activity 2'!Q$7:Q$13,\"N/A\",0)","v":"N/A"},{"$f":"_xlfn.XLOOKUP($E4,'Competitive Activity 2'!$B$7:$B$13,'Competitive Activity 2'!R$7:R$13,\"N/A\",0)","v":"N/A"},{"$f":"_xlfn.XLOOKUP($E4,'Competitive Activity 2'!$B$7:$B$13,'Competitive Activity 2'!S$7:S$13,\"N/A\",0)","v":"N/A"},{"$f":"_xlfn.XLOOKUP($E4,'Competitive Activity 2'!$B$7:$B$13,'Competitive Activity 2'!T$7:T$13,\"N/A\",0)","v":"N/A"},{"$f":"_xlfn.XLOOKUP($E4,'Competitive Activity 2'!$B$7:$B$13,'Competitive Activity 2'!U$7:U$13,\"N/A\",0)","v":"N/A"},{"$f":"_xlfn.XLOOKUP($E4,'Competitive Activity 2'!$B$17:$B$23,'Competitive Activity 2'!D$17:D$23,\"N/A\",0)","v":"N/A"},{"$f":"_xlfn.XLOOKUP($E4,'Competitive Activity 2'!$B$17:$B$23,'Competitive Activity 2'!E$17:E$23,\"N/A\",0)","v":"N/A"},{"$f":"_xlfn.XLOOKUP($E4,'Competitive Activity 2'!$B$17:$B$23,'Competitive Activity 2'!F$17:F$23,\"N/A\",0)","v":"N/A"},{"$f":"_xlfn.XLOOKUP($E4,'Competitive Activity 2'!$B$17:$B$23,'Competitive Activity 2'!G$17:G$23,\"N/A\",0)","v":"N/A"},{"$f":"_xlfn.XLOOKUP($E4,'Competitive Activity 2'!$B$17:$B$23,'Competitive Activity 2'!H$17:H$23,\"N/A\",0)","v":"N/A"},{"$f":"_xlfn.XLOOKUP($E4,'Competitive Activity 2'!$B$17:$B$23,'Competitive Activity 2'!I$17:I$23,\"N/A\",0)","v":"N/A"},{"$f":"_xlfn.XLOOKUP($E4,'Competitive Activity 2'!$B$17:$B$23,'Competitive Activity 2'!J$17:J$23,\"N/A\",0)","v":"N/A"},{"$f":"_xlfn.XLOOKUP($E4,'Competitive Activity 2'!$B$17:$B$23,'Competitive Activity 2'!K$17:K$23,\"N/A\",0)","v":"N/A"},{"$f":"_xlfn.XLOOKUP($E4,'Competitive Activity 2'!$B$17:$B$23,'Competitive Activity 2'!L$17:L$23,\"N/A\",0)","v":"N/A"},{"$f":"_xlfn.XLOOKUP($E4,'Competitive Activity 2'!$B$17:$B$23,'Competitive Activity 2'!M$17:M$23,\"N/A\",0)","v":"N/A"},{"$f":"_xlfn.XLOOKUP($E4,'Competitive Activity 2'!$B$17:$B$23,'Competitive Activity 2'!N$17:N$23,\"N/A\",0)","v":"N/A"},{"$f":"_xlfn.XLOOKUP($E4,'Competitive Activity 2'!$B$27:$B$33,'Competitive Activity 2'!D$27:D$33,\"N/A\",0)","v":"N/A"},{"$f":"_xlfn.XLOOKUP($E4,'Competitive Activity 2'!$B$27:$B$33,'Competitive Activity 2'!E$27:E$33,\"N/A\",0)","v":"N/A"},{"$f":"_xlfn.XLOOKUP($E4,'Competitive Activity 2'!$B$27:$B$33,'Competitive Activity 2'!F$27:F$33,\"N/A\",0)","v":"N/A"},{"$f":"_xlfn.XLOOKUP($E4,'Competitive Activity 2'!$B$27:$B$33,'Competitive Activity 2'!G$27:G$33,\"N/A\",0)","v":"N/A"},{"$f":"_xlfn.XLOOKUP($E4,'Competitive Activity 2'!$B$27:$B$33,'Competitive Activity 2'!H$27:H$33,\"N/A\",0)","v":"N/A"},{"$f":"_xlfn.XLOOKUP($E4,'Competitive Activity 2'!$B$27:$B$33,'Competitive Activity 2'!I$27:I$33,\"N/A\",0)","v":"N/A"},{"$f":"_xlfn.XLOOKUP($E4,'Competitive Activity 2'!$B$27:$B$33,'Competitive Activity 2'!J$27:J$33,\"N/A\",0)","v":"N/A"},{"$f":"_xlfn.XLOOKUP($E4,'Competitive Activity 2'!$B$27:$B$33,'Competitive Activity 2'!K$27:K$33,\"N/A\",0)","v":"N/A"},{"$f":"_xlfn.XLOOKUP($E4,'Competitive Activity 2'!$B$27:$B$33,'Competitive Activity 2'!M$27:M$33,\"N/A\",0)","v":"N/A"}]
[{"$f":"'1-Cover Sheet'!$C$8","v":"Select One"},{"$f":"'1-Cover Sheet'!$F$8","v":"Select One"},{"$f":"'Summary Sheet'!$D$8","v":0},{"$f":"'Summary Sheet'!$D$10","v":0},{"$f":"'Drop Down Box'!B169","v":0},{"$f":"'Drop Down Box'!C169","v":0},{"$f":"'Drop Down Box'!D169","v":"Select One"},{"$f":"_xlfn.XLOOKUP(E5,'Drop Down Box'!$B$166:$B$249,'Drop Down Box'!$A$166:$A$249,\"Unknown\",0)","v":"Activity 1"},{"$f":"_xlfn.XLOOKUP($E5,'Activity 1'!$B$17:$B$23,'Activity 1'!$N$17:$N$23,\"\",0)","v":""},{"$f":"_xlfn.XLOOKUP($E5,'Activity 1'!$B$17:$B$23,'Activity 1'!$P$17:$P$23,\"N/A\",0)","v":"N/A"},{"$f":"_xlfn.XLOOKUP($E5,'Activity 1'!$B$7:$B$13,'Activity 1'!E$7:E$13,0,0)","v":0},{"$f":"_xlfn.XLOOKUP($E5,'Activity 1'!$B$7:$B$13,'Activity 1'!F$7:F$13,0,0)","v":"00:00:00"},{"$f":"_xlfn.XLOOKUP($E5,'Activity 1'!$B$7:$B$13,'Activity 1'!G$7:G$13,0,0)","v":0},{"$f":"_xlfn.XLOOKUP($E5,'Activity 1'!$B$7:$B$13,'Activity 1'!$A$7:$A$13,\"No\",0,1)","v":"No"},{"$f":"_xlfn.XLOOKUP($E5,'Activity 1'!$B$7:$B$13,'Activity 1'!$H$7:$H$13,\"N/A\",0,1)","v":"N/A"},{"$f":"_xlfn.XLOOKUP($E5,'Activity 1'!$B$7:$B$13,'Activity 1'!I$7:I$13,\"N/A\",0,1)","v":"N/A"},{"$f":"_xlfn.XLOOKUP($E5,'Activity 1'!$B$7:$B$13,'Activity 1'!J$7:J$13,\"N/A\",0,1)","v":"N/A"},{"$f":"_xlfn.XLOOKUP($E5,'Activity 1'!$B$7:$B$13,'Activity 1'!K$7:K$13,\"N/A\",0,1)","v":"N/A"},{"$f":"_xlfn.XLOOKUP($E5,'Activity 1'!$B$7:$B$13,'Activity 1'!L$7:L$13,\"N/A\",0,1)","v":"N/A"},{"$f":"_xlfn.XLOOKUP($E5,'Activity 1'!$B$7:$B$13,'Activity 1'!M$7:M$13,\"N/A\",0,1)","v":"N/A"},{"$f":"_xlfn.XLOOKUP($E5,'Activity 1'!$B$7:$B$13,'Activity 1'!N$7:N$13,\"N/A\",0,1)","v":"N/A"},0,{"$f":"_xlfn.XLOOKUP($E5,'Activity 1'!$B$7:$B$13,'Activity 1'!O$7:O$13,\"N/A\",0,1)","v":"N/A"},{"$f":"_xlfn.XLOOKUP($E5,'Activity 1'!$B$7:$B$13,'Activity 1'!P$7:P$13,\"N/A\",0,1)","v":"N/A"},{"$f":"_xlfn.XLOOKUP($E5,'Activity 1'!$B$7:$B$13,'Activity 1'!Q$7:Q$13,\"N/A\",0,1)","v":"N/A"},{"$f":"_xlfn.XLOOKUP($E5,'Activity 1'!$B$7:$B$13,'Activity 1'!R$7:R$13,\"N/A\",0,1)","v":"N/A"},{"$f":"_xlfn.XLOOKUP($E5,'Activity 1'!$B$7:$B$13,'Activity 1'!S$7:S$13,\"N/A\",0,1)","v":"N/A"},{"$f":"_xlfn.XLOOKUP($E5,'Activity 1'!$B$7:$B$13,'Activity 1'!T$7:T$13,\"N/A\",0,1)","v":"N/A"},{"$f":"_xlfn.XLOOKUP($E5,'Activity 1'!$B$7:$B$13,'Activity 1'!U$7:U$13,\"N/A\",0,1)","v":"N/A"},{"$f":"_xlfn.XLOOKUP($E5,'Activity 1'!$B$7:$B$13,'Activity 1'!V$7:V$13,\"N/A\",0,1)","v":"N/A"},{"$f":"_xlfn.XLOOKUP($E5,'Activity 1'!$B$17:$B$23,'Activity 1'!C$17:C$23,\"N/A\",0,1)","v":"N/A"},{"$f":"_xlfn.XLOOKUP($E5,'Activity 1'!$B$17:$B$23,'Activity 1'!D$17:D$23,\"N/A\",0,1)","v":"N/A"},{"$f":"_xlfn.XLOOKUP($E5,'Activity 1'!$B$17:$B$23,'Activity 1'!E$17:E$23,\"N/A\",0,1)","v":"N/A"},{"$f":"_xlfn.XLOOKUP($E5,'Activity 1'!$B$17:$B$23,'Activity 1'!F$17:F$23,\"N/A\",0,1)","v":"N/A"},{"$f":"_xlfn.XLOOKUP($E5,'Activity 1'!$B$17:$B$23,'Activity 1'!G$17:G$23,\"N/A\",0,1)","v":"N/A"},{"$f":"_xlfn.XLOOKUP($E5,'Activity 1'!$B$17:$B$23,'Activity 1'!H$17:H$23,\"N/A\",0,1)","v":"N/A"},{"$f":"_xlfn.XLOOKUP($E5,'Activity 1'!$B$17:$B$23,'Activity 1'!I$17:I$23,\"N/A\",0,1)","v":"N/A"},{"$f":"_xlfn.XLOOKUP($E5,'Activity 1'!$B$17:$B$23,'Activity 1'!J$17:J$23,\"N/A\",0,1)","v":"N/A"},{"$f":"_xlfn.XLOOKUP($E5,'Activity 1'!$B$17:$B$23,'Activity 1'!K$17:K$23,\"N/A\",0,1)","v":"N/A"},{"$f":"_xlfn.XLOOKUP($E5,'Activity 1'!$B$17:$B$23,'Activity 1'!L$17:L$23,\"N/A\",0,1)","v":"N/A"},{"$f":"_xlfn.XLOOKUP($E5,'Activity 1'!$B$17:$B$23,'Activity 1'!M$17:M$23,\"N/A\",0,1)","v":"N/A"},{"$f":"_xlfn.XLOOKUP($E5,'Activity 1'!$B$17:$B$23,'Activity 1'!O$17:O$23,\"N/A\",0,1)","v":"N/A"},{"$f":"_xlfn.XLOOKUP($E5,'Activity 1'!$B$17:$B$23,'Activity 1'!Q$17:Q$23,\"N/A\",0,1)","v":"N/A"},{"$f":"_xlfn.XLOOKUP($E5,'Activity 2'!$B$7:$B$13,'Activity 2'!$A$7:$A$13,\"No\",0,1)","v":"No"},{"$f":"_xlfn.XLOOKUP($E5,'Activity 2'!B$7:B$13,'Activity 2'!H$7:H$13,\"N/A\",0)","v":"N/A"},{"$f":"_xlfn.XLOOKUP($E5,'Activity 2'!C$7:C$13,'Activity 2'!I$7:I$13,\"N/A\",0)","v":"N/A"},{"$f":"_xlfn.XLOOKUP($E5,'Activity 2'!D$7:D$13,'Activity 2'!J$7:J$13,\"N/A\",0)","v":"N/A"},{"$f":"_xlfn.XLOOKUP($E5,'Activity 2'!E$7:E$13,'Activity 2'!K$7:K$13,\"N/A\",0)","v":"N/A"},{"$f":"_xlfn.XLOOKUP($E5,'Activity 2'!F$7:F$13,'Activity 2'!L$7:L$13,\"N/A\",0)","v":"N/A"},{"$f":"_xlfn.XLOOKUP($E5,'Activity 2'!G$7:G$13,'Activity 2'!M$7:M$13,\"N/A\",0)","v":"N/A"},{"$f":"_xlfn.XLOOKUP($E5,'Activity 2'!H$7:H$13,'Activity 2'!N$7:N$13,\"N/A\",0)","v":"N/A"},{"$f":"_xlfn.XLOOKUP($E5,'Activity 2'!I$7:I$13,'Activity 2'!O$7:O$13,\"N/A\",0)","v":"N/A"},{"$f":"_xlfn.XLOOKUP($E5,'Activity 2'!J$7:J$13,'Activity 2'!P$7:P$13,\"N/A\",0)","v":"N/A"},{"$f":"_xlfn.XLOOKUP($E5,'Activity 2'!K$7:K$13,'Activity 2'!Q$7:Q$13,\"N/A\",0)","v":"N/A"},{"$f":"_xlfn.XLOOKUP($E5,'Activity 2'!L$7:L$13,'Activity 2'!R$7:R$13,\"N/A\",0)","v":"N/A"},{"$f":"_xlfn.XLOOKUP($E5,'Activity 2'!M$7:M$13,'Activity 2'!S$7:S$13,\"N/A\",0)","v":"N/A"},{"$f":"_xlfn.XLOOKUP($E5,'Activity 2'!N$7:N$13,'Activity 2'!T$7:T$13,\"N/A\",0)","v":"N/A"},{"$f":"_xlfn.XLOOKUP($E5,'Activity 2'!O$7:O$13,'Activity 2'!U$7:U$13,\"N/A\",0)","v":"N/A"},{"$f":"_xlfn.XLOOKUP($E5,'Activity 2'!P$7:P$13,'Activity 2'!V$7:V$13,\"N/A\",0)","v":"N/A"},{"$f":"_xlfn.XLOOKUP($E5,'Activity 2'!$B$17:$B$23,'Activity 2'!C$17:C$23,\"N/A\",0,1)","v":"N/A"},{"$f":"_xlfn.XLOOKUP($E5,'Activity 2'!$B$17:$B$23,'Activity 2'!D$17:D$23,\"N/A\",0,1)","v":"N/A"},{"$f":"_xlfn.XLOOKUP($E5,'Activity 2'!$B$17:$B$23,'Activity 2'!E$17:E$23,\"N/A\",0,1)","v":"N/A"},{"$f":"_xlfn.XLOOKUP($E5,'Activity 2'!$B$17:$B$23,'Activity 2'!F$17:F$23,\"N/A\",0,1)","v":"N/A"},{"$f":"_xlfn.XLOOKUP($E5,'Activity 2'!$B$17:$B$23,'Activity 2'!G$17:G$23,\"N/A\",0,1)","v":"N/A"},{"$f":"_xlfn.XLOOKUP($E5,'Activity 2'!$B$17:$B$23,'Activity 2'!H$17:H$23,\"N/A\",0,1)","v":"N/A"},{"$f":"_xlfn.XLOOKUP($E5,'Activity 2'!$B$17:$B$23,'Activity 2'!I$17:I$23,\"N/A\",0,1)","v":"N/A"},{"$f":"_xlfn.XLOOKUP($E5,'Activity 2'!$B$17:$B$23,'Activity 2'!J$17:J$23,\"N/A\",0,1)","v":"N/A"},{"$f":"_xlfn.XLOOKUP($E5,'Activity 2'!$B$17:$B$23,'Activity 2'!K$17:K$23,\"N/A\",0,1)","v":"N/A"},{"$f":"_xlfn.XLOOKUP($E5,'Activity 2'!$B$17:$B$23,'Activity 2'!L$17:L$23,\"N/A\",0,1)","v":"N/A"},{"$f":"_xlfn.XLOOKUP($E5,'Activity 2'!$B$17:$B$23,'Activity 2'!M$17:M$23,\"N/A\",0,1)","v":"N/A"},{"$f":"_xlfn.XLOOKUP($E5,'Activity 2'!$B$17:$B$23,'Activity 2'!O$17:O$23,\"N/A\",0,1)","v":"N/A"},{"$f":"_xlfn.XLOOKUP($E5,'Activity 2'!$B$17:$B$23,'Activity 2'!Q$17:Q$23,\"N/A\",0,1)","v":"N/A"},{"$f":"_xlfn.XLOOKUP($E5,'Activity 3'!$B$8:$B$14,'Activity 3'!A$8:A$14,\"No\",0,1)","v":"No"},{"$f":"_xlfn.XLOOKUP($E5,'Activity 3'!$B$8:$B$14,'Activity 3'!K$8:K$14,\"N/A\",0,1)","v":"N/A"},{"$f":"_xlfn.XLOOKUP($E5,'Activity 3'!$B$8:$B$14,'Activity 3'!L$8:L$14,\"N/A\",0,1)","v":"N/A"},{"$f":"_xlfn.XLOOKUP($E5,'Activity 3'!$B$8:$B$14,'Activity 3'!M$8:M$14,\"N/A\",0,1)","v":"N/A"},{"$f":"_xlfn.XLOOKUP($E5,'Activity 3'!$B$8:$B$14,'Activity 3'!N$8:N$14,\"N/A\",0,1)","v":"N/A"},{"$f":"_xlfn.XLOOKUP($E5,'Activity 3'!$B$8:$B$14,'Activity 3'!O$8:O$14,\"N/A\",0,1)","v":"N/A"},{"$f":"_xlfn.XLOOKUP($E5,'Activity 3'!$B$8:$B$14,'Activity 3'!R$8:R$14,\"N/A\",0,1)","v":"N/A"},{"$f":"_xlfn.XLOOKUP($E5,'Activity 4'!$B$8:$B$14,'Activity 4'!$A$8:$A$14,\"No\",0,1)","v":"No"},{"$f":"_xlfn.XLOOKUP($E5,'Activity 4'!$B$8:$B$14,'Activity 4'!L$8:L$14,\"N/A\",0,1)","v":"N/A"},{"$f":"_xlfn.XLOOKUP($E5,'Activity 4'!$B$8:$B$14,'Activity 4'!D$8:D$14,\"N/A\",0,1)","v":"N/A"},{"$f":"_xlfn.XLOOKUP($E5,'Activity 4'!$B$8:$B$14,'Activity 4'!G$8:G$14,\"N/A\",0,1)","v":"N/A"},{"$f":"_xlfn.XLOOKUP($E5,'Activity 5'!$B$8:$B$14,'Activity 5'!$A$8:$A$14,\"No\",0,1)","v":"No"},{"$f":"_xlfn.XLOOKUP($E5,'Activity 5'!$B$8:$B$14,'Activity 5'!J$8:J$14,\"N/A\",0,1)","v":"N/A"},{"$f":"_xlfn.XLOOKUP($E5,'Activity 5'!$B$8:$B$14,'Activity 5'!K$8:K$14,\"N/A\",0,1)","v":"N/A"},{"$f":"_xlfn.XLOOKUP($E5,'Activity 5'!$B$8:$B$14,'Activity 5'!N$8:N$14,\"N/A\",0,1)","v":"N/A"},{"$f":"_xlfn.XLOOKUP($E5,'Activity 5'!$B$8:$B$14,'Activity 5'!O$8:O$14,\"N/A\",0,1)","v":"N/A"},{"$f":"_xlfn.XLOOKUP($E5,'Activity 5'!$B$8:$B$14,'Activity 5'!P$8:P$14,\"N/A\",0,1)","v":"N/A"},{"$f":"_xlfn.XLOOKUP($E5,'Activity 5'!$B$8:$B$14,'Activity 5'!Q$8:Q$14,\"N/A\",0,1)","v":"N/A"},{"$f":"_xlfn.XLOOKUP($E5,'Activity 5'!$B$8:$B$14,'Activity 5'!R$8:R$14,\"N/A\",0,1)","v":"N/A"},{"$f":"_xlfn.XLOOKUP($E5,'Activity 6'!$B$7:$B$13,'Activity 6'!A$7:A$13,\"No\",0,1)","v":"No"},{"$f":"_xlfn.XLOOKUP($E5,'Activity 6'!$B$7:$B$13,'Activity 6'!K$7:K$13,\"N/A\",0,1)","v":"N/A"},{"$f":"_xlfn.XLOOKUP($E5,'Activity 6'!$B$7:$B$13,'Activity 6'!L$7:L$13,\"N/A\",0,1)","v":"N/A"},{"$f":"_xlfn.XLOOKUP($E5,'Activity 6'!$B$7:$B$13,'Activity 6'!M$7:M$13,\"N/A\",0,1)","v":"N/A"},{"$f":"_xlfn.XLOOKUP($E5,'Activity 6'!$B$7:$B$13,'Activity 6'!N$7:N$13,\"N/A\",0,1)","v":"N/A"},{"$f":"_xlfn.XLOOKUP($E5,'Activity 6'!$B$7:$B$13,'Activity 6'!O$7:O$13,\"N/A\",0,1)","v":"N/A"},{"$f":"_xlfn.XLOOKUP($E5,'Activity 6'!$B$7:$B$13,'Activity 6'!P$7:P$13,\"N/A\",0,1)","v":"N/A"},{"$f":"_xlfn.XLOOKUP($E5,'Activity 6'!$B$7:$B$13,'Activity 6'!Q$7:Q$13,\"N/A\",0,1)","v":"N/A"},{"$f":"_xlfn.XLOOKUP($E5,'Activity 6'!$B$7:$B$13,'Activity 6'!R$7:R$13,\"N/A\",0,1)","v":"N/A"},{"$f":"_xlfn.XLOOKUP($E5,'Activity 6'!$B$7:$B$13,'Activity 6'!S$7:S$13,\"N/A\",0,1)","v":"N/A"},{"$f":"_xlfn.XLOOKUP($E5,'Activity 6'!$B$7:$B$13,'Activity 6'!T$7:T$13,\"N/A\",0,1)","v":"N/A"},{"$f":"_xlfn.XLOOKUP($E5,'Activity 6'!$B$7:$B$13,'Activity 6'!U$7:U$13,\"N/A\",0,1)","v":"N/A"},{"$f":"_xlfn.XLOOKUP($E5,'Activity 6'!$B$22:$B$28,'Activity 6'!C$22:C$28,\"N/A\",0,1)","v":"N/A"},{"$f":"_xlfn.XLOOKUP($E5,'Activity 6'!$B$22:$B$28,'Activity 6'!D$22:D$28,\"N/A\",0,1)","v":"N/A"},{"$f":"_xlfn.XLOOKUP($E5,'Activity 6'!$B$22:$B$28,'Activity 6'!E$22:E$28,\"N/A\",0,1)","v":"N/A"},{"$f":"_xlfn.XLOOKUP($E5,'Activity 6'!$B$22:$B$28,'Activity 6'!F$22:F$28,\"N/A\",0,1)","v":"N/A"},{"$f":"_xlfn.XLOOKUP($E5,'Activity 6'!$B$22:$B$28,'Activity 6'!G$22:G$28,\"N/A\",0,1)","v":"N/A"},{"$f":"_xlfn.XLOOKUP($E5,'Activity 6'!$B$22:$B$28,'Activity 6'!H$22:H$28,\"N/A\",0,1)","v":"N/A"},{"$f":"_xlfn.XLOOKUP($E5,'Activity 6'!$B$22:$B$28,'Activity 6'!I$22:I$28,\"N/A\",0,1)","v":"N/A"},{"$f":"_xlfn.XLOOKUP($E5,'Activity 6'!$B$22:$B$28,'Activity 6'!J$22:J$28,\"N/A\",0,1)","v":"N/A"},{"$f":"_xlfn.XLOOKUP($E5,'Activity 6'!$B$22:$B$28,'Activity 6'!K$22:K$28,\"N/A\",0,1)","v":"N/A"},{"$f":"_xlfn.XLOOKUP($E5,'Activity 6'!$B$22:$B$28,'Activity 6'!L$22:L$28,\"N/A\",0,1)","v":"N/A"},{"$f":"_xlfn.XLOOKUP($E5,'Activity 6'!$B$22:$B$28,'Activity 6'!M$22:M$28,\"N/A\",0,1)","v":"N/A"},{"$f":"_xlfn.XLOOKUP($E5,'Activity 6'!$B$22:$B$28,'Activity 6'!N$22:N$28,\"N/A\",0,1)","v":"N/A"},{"$f":"_xlfn.XLOOKUP($E5,'Activity 6'!$B$32:$B$38,'Activity 6'!C$32:C$38,\"N/A\",0,1)","v":"N/A"},{"$f":"_xlfn.XLOOKUP($E5,'Activity 6'!$B$32:$B$38,'Activity 6'!D$32:D$38,\"N/A\",0,1)","v":"N/A"},{"$f":"_xlfn.XLOOKUP($E5,'Activity 6'!$B$32:$B$38,'Activity 6'!E$32:E$38,\"N/A\",0,1)","v":"N/A"},{"$f":"_xlfn.XLOOKUP($E5,'Activity 6'!$B$32:$B$38,'Activity 6'!F$32:F$38,\"N/A\",0,1)","v":"N/A"},{"$f":"_xlfn.XLOOKUP($E5,'Activity 6'!$B$32:$B$38,'Activity 6'!G$32:G$38,\"N/A\",0,1)","v":"N/A"},{"$f":"_xlfn.XLOOKUP($E5,'Activity 6'!$B$32:$B$38,'Activity 6'!H$32:H$38,\"N/A\",0,1)","v":"N/A"},{"$f":"_xlfn.XLOOKUP($E5,'Activity 6'!$B$32:$B$38,'Activity 6'!I$32:I$38,\"N/A\",0,1)","v":"N/A"},{"$f":"_xlfn.XLOOKUP($E5,'Activity 6'!$B$32:$B$38,'Activity 6'!J$32:J$38,\"N/A\",0,1)","v":"N/A"},{"$f":"_xlfn.XLOOKUP($E5,'Activity 6'!$B$32:$B$38,'Activity 6'!K$32:K$38,\"N/A\",0,1)","v":"N/A"},{"$f":"_xlfn.XLOOKUP($E5,'Activity 6'!$B$32:$B$38,'Activity 6'!M$32:M$38,\"N/A\",0,1)","v":"N/A"},{"$f":"_xlfn.XLOOKUP($E5,'Activity 7'!$B$7:$B$13,'Activity 7'!$A$7:$A$13,\"No\",0,1)","v":"No"},{"$f":"_xlfn.XLOOKUP($E5,'Activity 7'!$B$7:$B$13,'Activity 7'!M$7:M$13,\"N/A\",0,1)","v":"N/A"},{"$f":"_xlfn.XLOOKUP($E5,'Activity 7'!$B$7:$B$13,'Activity 7'!K$7:K$13,\"N/A\",0,1)","v":"N/A"},{"$f":"_xlfn.XLOOKUP($E5,'Activity 7'!$B$7:$B$13,'Activity 7'!N$7:N$13,\"N/A\",0,1)","v":"N/A"},{"$f":"_xlfn.XLOOKUP($E5,'Activity 7'!$B$7:$B$13,'Activity 7'!O$7:O$13,\"N/A\",0,1)","v":"N/A"},{"$f":"_xlfn.XLOOKUP($E5,'Activity 7'!$B$7:$B$13,'Activity 7'!P$7:P$13,\"N/A\",0,1)","v":"N/A"},{"$f":"_xlfn.XLOOKUP($E5,'Activity 7'!$B$7:$B$13,'Activity 7'!Q$7:Q$13,\"N/A\",0,1)","v":"N/A"},{"$f":"_xlfn.XLOOKUP($E5,'Activity 7'!$B$7:$B$13,'Activity 7'!R$7:R$13,\"N/A\",0,1)","v":"N/A"},{"$f":"_xlfn.XLOOKUP($E5,'Activity 7'!$B$7:$B$13,'Activity 7'!S$7:S$13,\"N/A\",0,1)","v":"N/A"},{"$f":"_xlfn.XLOOKUP($E5,'Activity 7'!$B$7:$B$13,'Activity 7'!T$7:T$13,\"N/A\",0,1)","v":"N/A"},{"$f":"_xlfn.XLOOKUP($E5,'Activity 7'!$B$7:$B$13,'Activity 7'!U$7:U$13,\"N/A\",0,1)","v":"N/A"},{"$f":"_xlfn.XLOOKUP($E5,'Activity 7'!$B$7:$B$13,'Activity 7'!V$7:V$13,\"N/A\",0,1)","v":"N/A"},{"$f":"_xlfn.XLOOKUP($E5,'Activity 7'!$B$17:$B$23,'Activity 7'!E$17:E$23,\"N/A\",0,1)","v":"N/A"},{"$f":"_xlfn.XLOOKUP($E5,'Activity 7'!$B$17:$B$23,'Activity 7'!G$17:G$23,\"N/A\",0,1)","v":"N/A"},{"$f":"_xlfn.XLOOKUP($E5,'Activity 7'!$B$17:$B$23,'Activity 7'!I$17:I$23,\"N/A\",0,1)","v":"N/A"},{"$f":"_xlfn.XLOOKUP($E5,'Activity 7'!$B$17:$B$23,'Activity 7'!J$17:J$23,\"N/A\",0,1)","v":"N/A"},{"$f":"_xlfn.XLOOKUP($E5,'Activity 7'!$B$17:$B$23,'Activity 7'!K$17:K$23,\"N/A\",0,1)","v":"N/A"},{"$f":"_xlfn.XLOOKUP($E5,'Activity 7'!$B$17:$B$23,'Activity 7'!L$17:L$23,\"N/A\",0,1)","v":"N/A"},{"$f":"_xlfn.XLOOKUP($E5,'Activity 7'!$B$17:$B$23,'Activity 7'!M$17:M$23,\"N/A\",0,1)","v":"N/A"},{"$f":"_xlfn.XLOOKUP($E5,'Activity 7'!$B$17:$B$23,'Activity 7'!N$17:N$23,\"N/A\",0,1)","v":"N/A"},{"$f":"_xlfn.XLOOKUP($E5,'Activity 7'!$B$17:$B$23,'Activity 7'!P$17:P$23,\"N/A\",0,1)","v":"N/A"},{"$f":"_xlfn.XLOOKUP($E5,'Activity 8'!$B$7:$B$13,'Activity 8'!A$7:A$13,\"No\",0,1)","v":"No"},{"$f":"_xlfn.XLOOKUP($E5,'Activity 8'!$B$7:$B$13,'Activity 8'!I$7:I$13,\"N/A\",0,1)","v":"N/A"},{"$f":"_xlfn.XLOOKUP($E5,'Activity 8'!$B$7:$B$13,'Activity 8'!J$7:J$13,\"N/A\",0,1)","v":"N/A"},{"$f":"_xlfn.XLOOKUP($E5,'Activity 8'!$B$7:$B$13,'Activity 8'!K$7:K$13,\"N/A\",0,1)","v":"N/A"},{"$f":"_xlfn.XLOOKUP($E5,'Activity 8'!$B$7:$B$13,'Activity 8'!L$7:L$13,\"N/A\",0,1)","v":"N/A"},{"$f":"_xlfn.XLOOKUP($E5,'Activity 8'!$B$7:$B$13,'Activity 8'!M$7:M$13,\"N/A\",0,1)","v":"N/A"},{"$f":"_xlfn.XLOOKUP($E5,'Activity 8'!$B$7:$B$13,'Activity 8'!N$7:N$13,\"N/A\",0,1)","v":"N/A"},{"$f":"_xlfn.XLOOKUP($E5,'Activity 8'!$B$7:$B$13,'Activity 8'!O$7:O$13,\"N/A\",0,1)","v":"N/A"},{"$f":"_xlfn.XLOOKUP($E5,'Activity 8'!$B$7:$B$13,'Activity 8'!P$7:P$13,\"N/A\",0,1)","v":"N/A"},{"$f":"_xlfn.XLOOKUP($E5,'Activity 8'!$B$7:$B$13,'Activity 8'!Q$7:Q$13,\"N/A\",0,1)","v":"N/A"},{"$f":"_xlfn.XLOOKUP($E5,'Activity 8'!$B$7:$B$13,'Activity 8'!R$7:R$13,\"N/A\",0,1)","v":"N/A"},{"$f":"_xlfn.XLOOKUP($E5,'Activity 8'!$B$7:$B$13,'Activity 8'!S$7:S$13,\"N/A\",0,1)","v":"N/A"},{"$f":"_xlfn.XLOOKUP($E5,'Activity 8'!$B$7:$B$13,'Activity 8'!T$7:T$13,\"N/A\",0,1)","v":"N/A"},{"$f":"_xlfn.XLOOKUP($E5,'Activity 8'!$B$7:$B$13,'Activity 8'!U$7:U$13,\"N/A\",0,1)","v":"N/A"},{"$f":"_xlfn.XLOOKUP($E5,'Activity 8'!$B$7:$B$13,'Activity 8'!V$7:V$13,\"N/A\",0,1)","v":"N/A"},{"$f":"_xlfn.XLOOKUP($E5,'Activity 8'!$B$17:$B$23,'Activity 8'!D$17:D$23,\"N/A\",0,1)","v":"N/A"},{"$f":"_xlfn.XLOOKUP($E5,'Activity 8'!$B$17:$B$23,'Activity 8'!E$17:E$23,\"N/A\",0,1)","v":"N/A"},{"$f":"_xlfn.XLOOKUP($E5,'Activity 8'!$B$17:$B$23,'Activity 8'!F$17:F$23,\"N/A\",0,1)","v":"N/A"},{"$f":"_xlfn.XLOOKUP($E5,'Activity 8'!$B$17:$B$23,'Activity 8'!G$17:G$23,\"N/A\",0,1)","v":"N/A"},{"$f":"_xlfn.XLOOKUP($E5,'Activity 8'!$B$17:$B$23,'Activity 8'!H$17:H$23,\"N/A\",0,1)","v":"N/A"},{"$f":"_xlfn.XLOOKUP($E5,'Activity 8'!$B$17:$B$23,'Activity 8'!I$17:I$23,\"N/A\",0,1)","v":"N/A"},{"$f":"_xlfn.XLOOKUP($E5,'Activity 8'!$B$17:$B$23,'Activity 8'!J$17:J$23,\"N/A\",0,1)","v":"N/A"},{"$f":"_xlfn.XLOOKUP($E5,'Activity 8'!$B$17:$B$23,'Activity 8'!K$17:K$23,\"N/A\",0,1)","v":"N/A"},{"$f":"_xlfn.XLOOKUP($E5,'Activity 8'!$B$17:$B$23,'Activity 8'!L$17:L$23,\"N/A\",0,1)","v":"N/A"},{"$f":"_xlfn.XLOOKUP($E5,'Activity 8'!$B$17:$B$23,'Activity 8'!M$17:M$23,\"N/A\",0,1)","v":"N/A"},{"$f":"_xlfn.XLOOKUP($E5,'Activity 8'!$B$17:$B$23,'Activity 8'!N$17:N$23,\"N/A\",0,1)","v":"N/A"},{"$f":"_xlfn.XLOOKUP($E5,'Activity 8'!$B$17:$B$23,'Activity 8'!P$17:P$23,\"N/A\",0,1)","v":"N/A"},{"$f":"_xlfn.XLOOKUP(E5,'Activity 9'!$B$7:$B$13,'Activity 9'!$A$7:$A$13,\"No\",0,1)","v":"No"},{"$f":"_xlfn.XLOOKUP($E5,'Activity 9'!$B$7:$B$13,'Activity 9'!J$7:J$13,\"N/A\",0,1)","v":"N/A"},{"$f":"_xlfn.XLOOKUP($E5,'Activity 9'!$B$7:$B$13,'Activity 9'!K$7:K$13,\"N/A\",0,1)","v":"N/A"},{"$f":"_xlfn.XLOOKUP($E5,'Activity 9'!$B$7:$B$13,'Activity 9'!L$7:L$13,\"N/A\",0,1)","v":"N/A"},{"$f":"_xlfn.XLOOKUP($E5,'Activity 9'!$B$7:$B$13,'Activity 9'!M$7:M$13,\"N/A\",0,1)","v":"N/A"},{"$f":"_xlfn.XLOOKUP($E5,'Activity 9'!$B$7:$B$13,'Activity 9'!N$7:N$13,\"N/A\",0,1)","v":"N/A"},{"$f":"_xlfn.XLOOKUP($E5,'Activity 9'!$B$7:$B$13,'Activity 9'!O$7:O$13,\"N/A\",0,1)","v":"N/A"},{"$f":"_xlfn.XLOOKUP($E5,'Activity 9'!$B$7:$B$13,'Activity 9'!P$7:P$13,\"N/A\",0,1)","v":"N/A"},{"$f":"_xlfn.XLOOKUP($E5,'Activity 9'!$B$7:$B$13,'Activity 9'!Q$7:Q$13,\"N/A\",0,1)","v":"N/A"},{"$f":"_xlfn.XLOOKUP($E5,'Activity 9'!$B$7:$B$13,'Activity 9'!R$7:R$13,\"N/A\",0,1)","v":"N/A"},{"$f":"_xlfn.XLOOKUP($E5,'Activity 9'!$B$7:$B$13,'Activity 9'!S$7:S$13,\"N/A\",0,1)","v":"N/A"},{"$f":"_xlfn.XLOOKUP($E5,'Activity 9'!$B$7:$B$13,'Activity 9'!T$7:T$13,\"N/A\",0,1)","v":"N/A"},{"$f":"_xlfn.XLOOKUP($E5,'Activity 9'!$B$17:$B$23,'Activity 9'!E$17:E$23,\"N/A\",0,1)","v":"N/A"},{"$f":"_xlfn.XLOOKUP($E5,'Activity 9'!$B$17:$B$23,'Activity 9'!F$17:F$23,\"N/A\",0,1)","v":"N/A"},{"$f":"_xlfn.XLOOKUP($E5,'Activity 9'!$B$17:$B$23,'Activity 9'!G$17:G$23,\"N/A\",0,1)","v":"N/A"},{"$f":"_xlfn.XLOOKUP($E5,'Activity 9'!$B$17:$B$23,'Activity 9'!H$17:H$23,\"N/A\",0,1)","v":"N/A"},{"$f":"_xlfn.XLOOKUP($E5,'Activity 9'!$B$17:$B$23,'Activity 9'!I$17:I$23,\"N/A\",0,1)","v":"N/A"},{"$f":"_xlfn.XLOOKUP($E5,'Activity 9'!$B$17:$B$23,'Activity 9'!J$17:J$23,\"N/A\",0,1)","v":"N/A"},{"$f":"_xlfn.XLOOKUP($E5,'Activity 9'!$B$17:$B$23,'Activity 9'!K$17:K$23,\"N/A\",0,1)","v":"N/A"},{"$f":"_xlfn.XLOOKUP($E5,'Activity 9'!$B$17:$B$23,'Activity 9'!L$17:L$23,\"N/A\",0,1)","v":"N/A"},{"$f":"_xlfn.XLOOKUP($E5,'Activity 9'!$B$17:$B$23,'Activity 9'!N$17:N$23,\"N/A\",0,1)","v":"N/A"},{"$f":"_xlfn.XLOOKUP($E5,'Activity 9'!$B$17:$B$23,'Activity 9'!O$17:O$23,\"N/A\",0,1)","v":"N/A"},{"$f":"_xlfn.XLOOKUP($E5,'Activity 9'!$B$17:$B$23,'Activity 9'!Q$17:Q$23,\"N/A\",0,1)","v":"N/A"},{"$f":"_xlfn.XLOOKUP($E5,'Activity 10'!$B$7:$B$13,'Activity 10'!A$7:A$13,\"No\",0,1)","v":"No"},{"$f":"_xlfn.XLOOKUP($E5,'Activity 10'!$B$7:$B$13,'Activity 10'!J$7:J$13,\"N/A\",0,1)","v":"N/A"},{"$f":"_xlfn.XLOOKUP($E5,'Activity 10'!$B$7:$B$13,'Activity 10'!K$7:K$13,\"N/A\",0,1)","v":"N/A"},{"$f":"_xlfn.XLOOKUP($E5,'Activity 10'!$B$7:$B$13,'Activity 10'!L$7:L$13,\"N/A\",0,1)","v":"N/A"},{"$f":"_xlfn.XLOOKUP($E5,'Activity 10'!$B$7:$B$13,'Activity 10'!M$7:M$13,\"N/A\",0,1)","v":"N/A"},{"$f":"_xlfn.XLOOKUP($E5,'Activity 10'!$B$7:$B$13,'Activity 10'!N$7:N$13,\"N/A\",0,1)","v":"N/A"},{"$f":"_xlfn.XLOOKUP($E5,'Activity 10'!$B$7:$B$13,'Activity 10'!O$7:O$13,\"N/A\",0,1)","v":"N/A"},{"$f":"_xlfn.XLOOKUP($E5,'Activity 10'!$B$7:$B$13,'Activity 10'!P$7:P$13,\"N/A\",0,1)","v":"N/A"},{"$f":"_xlfn.XLOOKUP($E5,'Activity 10'!$B$7:$B$13,'Activity 10'!Q$7:Q$13,\"N/A\",0,1)","v":"N/A"},{"$f":"_xlfn.XLOOKUP($E5,'Activity 10'!$B$7:$B$13,'Activity 10'!R$7:R$13,\"N/A\",0,1)","v":"N/A"},{"$f":"_xlfn.XLOOKUP($E5,'Activity 10'!$B$7:$B$13,'Activity 10'!S$7:S$13,\"N/A\",0,1)","v":"N/A"},{"$f":"_xlfn.XLOOKUP($E5,'Activity 10'!$B$7:$B$13,'Activity 10'!T$7:T$13,\"N/A\",0,1)","v":"N/A"},{"$f":"_xlfn.XLOOKUP($E5,'Activity 10'!$B$7:$B$13,'Activity 10'!U$7:U$13,\"N/A\",0,1)","v":"N/A"},{"$f":"_xlfn.XLOOKUP($E5,'Activity 10'!$B$7:$B$13,'Activity 10'!V$7:V$13,\"N/A\",0,1)","v":"N/A"},{"$f":"_xlfn.XLOOKUP($E5,'Activity 10'!$B$17:$B$23,'Activity 10'!E$17:E$23,\"N/A\",0,1)","v":"N/A"},{"$f":"_xlfn.XLOOKUP($E5,'Activity 10'!$B$17:$B$23,'Activity 10'!F$17:F$23,\"N/A\",0,1)","v":"N/A"},{"$f":"_xlfn.XLOOKUP($E5,'Activity 10'!$B$17:$B$23,'Activity 10'!G$17:G$23,\"N/A\",0,1)","v":"N/A"},{"$f":"_xlfn.XLOOKUP($E5,'Activity 10'!$B$17:$B$23,'Activity 10'!H$17:H$23,\"N/A\",0,1)","v":"N/A"},{"$f":"_xlfn.XLOOKUP($E5,'Activity 10'!$B$17:$B$23,'Activity 10'!I$17:I$23,\"N/A\",0,1)","v":"N/A"},{"$f":"_xlfn.XLOOKUP($E5,'Activity 10'!$B$17:$B$23,'Activity 10'!J$17:J$23,\"N/A\",0,1)","v":"N/A"},{"$f":"_xlfn.XLOOKUP($E5,'Activity 10'!$B$17:$B$23,'Activity 10'!K$17:K$23,\"N/A\",0,1)","v":"N/A"},{"$f":"_xlfn.XLOOKUP($E5,'Activity 10'!$B$17:$B$23,'Activity 10'!L$17:L$23,\"N/A\",0,1)","v":"N/A"},{"$f":"_xlfn.XLOOKUP($E5,'Activity 10'!$B$17:$B$23,'Activity 10'!M$17:M$23,\"N/A\",0,1)","v":"N/A"},{"$f":"_xlfn.XLOOKUP($E5,'Activity 10'!$B$17:$B$23,'Activity 10'!N$17:N$23,\"N/A\",0,1)","v":"N/A"},{"$f":"_xlfn.XLOOKUP($E5,'Activity 10'!$B$17:$B$23,'Activity 10'!P$17:P$23,\"N/A\",0,1)","v":"N/A"},{"$f":"_xlfn.XLOOKUP($E5,'Competitive Activity 1'!B$7:B$13,'Competitive Activity 1'!A$7:A$13,\"No\",0,1)","v":"No"},{"$f":"_xlfn.XLOOKUP($E5,'Competitive Activity 1'!$B$7:$B$13,'Competitive Activity 1'!H$7:H$13,\"N/A\",0,1)","v":"N/A"},{"$f":"_xlfn.XLOOKUP($E5,'Competitive Activity 1'!$B$7:$B$13,'Competitive Activity 1'!I$7:I$13,\"N/A\",0,1)","v":"N/A"},{"$f":"_xlfn.XLOOKUP($E5,'Competitive Activity 1'!$B$7:$B$13,'Competitive Activity 1'!J$7:J$13,\"N/A\",0,1)","v":"N/A"},{"$f":"_xlfn.XLOOKUP($E5,'Competitive Activity 1'!$B$7:$B$13,'Competitive Activity 1'!K$7:K$13,\"N/A\",0,1)","v":"N/A"},{"$f":"_xlfn.XLOOKUP($E5,'Competitive Activity 1'!$B$7:$B$13,'Competitive Activity 1'!L$7:L$13,\"N/A\",0,1)","v":"N/A"},{"$f":"_xlfn.XLOOKUP($E5,'Competitive Activity 1'!$B$7:$B$13,'Competitive Activity 1'!M$7:M$13,\"N/A\",0,1)","v":"N/A"},{"$f":"_xlfn.XLOOKUP($E5,'Competitive Activity 1'!$B$7:$B$13,'Competitive Activity 1'!N$7:N$13,\"N/A\",0,1)","v":"N/A"},{"$f":"_xlfn.XLOOKUP($E5,'Competitive Activity 1'!$B$7:$B$13,'Competitive Activity 1'!O$7:O$13,\"N/A\",0,1)","v":"N/A"},{"$f":"_xlfn.XLOOKUP($E5,'Competitive Activity 1'!$B$7:$B$13,'Competitive Activity 1'!P$7:P$13,\"N/A\",0,1)","v":"N/A"},{"$f":"_xlfn.XLOOKUP($E5,'Competitive Activity 1'!$B$7:$B$13,'Competitive Activity 1'!Q$7:Q$13,\"N/A\",0,1)","v":"N/A"},{"$f":"_xlfn.XLOOKUP($E5,'Competitive Activity 1'!$B$7:$B$13,'Competitive Activity 1'!R$7:R$13,\"N/A\",0,1)","v":"N/A"},{"$f":"_xlfn.XLOOKUP($E5,'Competitive Activity 1'!$B$7:$B$13,'Competitive Activity 1'!S$7:S$13,\"N/A\",0,1)","v":"N/A"},{"$f":"_xlfn.XLOOKUP($E5,'Competitive Activity 1'!$B$7:$B$13,'Competitive Activity 1'!T$7:T$13,\"N/A\",0,1)","v":"N/A"},{"$f":"_xlfn.XLOOKUP($E5,'Competitive Activity 1'!$B$7:$B$13,'Competitive Activity 1'!U$7:U$13,\"N/A\",0,1)","v":"N/A"},{"$f":"_xlfn.XLOOKUP($E5,'Competitive Activity 1'!$B$17:$B$23,'Competitive Activity 1'!C$17:C$23,\"N/A\",0,1)","v":"N/A"},{"$f":"_xlfn.XLOOKUP($E5,'Competitive Activity 1'!$B$17:$B$23,'Competitive Activity 1'!D$17:D$23,\"N/A\",0,1)","v":"N/A"},{"$f":"_xlfn.XLOOKUP($E5,'Competitive Activity 1'!$B$17:$B$23,'Competitive Activity 1'!E$17:E$23,\"N/A\",0,1)","v":"N/A"},{"$f":"_xlfn.XLOOKUP($E5,'Competitive Activity 1'!$B$17:$B$23,'Competitive Activity 1'!F$17:F$23,\"N/A\",0,1)","v":"N/A"},{"$f":"_xlfn.XLOOKUP($E5,'Competitive Activity 1'!$B$17:$B$23,'Competitive Activity 1'!G$17:G$23,\"N/A\",0,1)","v":"N/A"},{"$f":"_xlfn.XLOOKUP($E5,'Competitive Activity 1'!$B$17:$B$23,'Competitive Activity 1'!H$17:H$23,\"N/A\",0,1)","v":"N/A"},{"$f":"_xlfn.XLOOKUP($E5,'Competitive Activity 1'!$B$17:$B$23,'Competitive Activity 1'!I$17:I$23,\"N/A\",0,1)","v":"N/A"},{"$f":"_xlfn.XLOOKUP($E5,'Competitive Activity 1'!$B$17:$B$23,'Competitive Activity 1'!J$17:J$23,\"N/A\",0,1)","v":"N/A"},{"$f":"_xlfn.XLOOKUP($E5,'Competitive Activity 1'!$B$17:$B$23,'Competitive Activity 1'!K$17:K$23,\"N/A\",0,1)","v":"N/A"},{"$f":"_xlfn.XLOOKUP($E5,'Competitive Activity 1'!$B$17:$B$23,'Competitive Activity 1'!M$17:M$23,\"N/A\",0,1)","v":"N/A"},{"$f":"_xlfn.XLOOKUP($E5,'Competitive Activity 1'!$B$17:$B$23,'Competitive Activity 1'!N$17:N$23,\"N/A\",0,1)","v":"N/A"},{"$f":"_xlfn.XLOOKUP($E5,'Competitive Activity 1'!$B$17:$B$23,'Competitive Activity 1'!P$17:P$23,\"N/A\",0,1)","v":"N/A"},{"$f":"_xlfn.XLOOKUP($E5,'Competitive Activity 2'!$B$7:$B$13,'Competitive Activity 2'!A$7:A$13,\"No\",0)","v":"No"},{"$f":"_xlfn.XLOOKUP($E5,'Competitive Activity 2'!$B$7:$B$13,'Competitive Activity 2'!L$7:L$13,\"N/A\",0)","v":"N/A"},{"$f":"_xlfn.XLOOKUP($E5,'Competitive Activity 2'!$B$7:$B$13,'Competitive Activity 2'!M$7:M$13,\"N/A\",0)","v":"N/A"},{"$f":"_xlfn.XLOOKUP($E5,'Competitive Activity 2'!$B$7:$B$13,'Competitive Activity 2'!N$7:N$13,\"N/A\",0)","v":"N/A"},{"$f":"_xlfn.XLOOKUP($E5,'Competitive Activity 2'!$B$7:$B$13,'Competitive Activity 2'!O$7:O$13,\"N/A\",0)","v":"N/A"},{"$f":"_xlfn.XLOOKUP($E5,'Competitive Activity 2'!$B$7:$B$13,'Competitive Activity 2'!P$7:P$13,\"N/A\",0)","v":"N/A"},{"$f":"_xlfn.XLOOKUP($E5,'Competitive Activity 2'!$B$7:$B$13,'Competitive Activity 2'!Q$7:Q$13,\"N/A\",0)","v":"N/A"},{"$f":"_xlfn.XLOOKUP($E5,'Competitive Activity 2'!$B$7:$B$13,'Competitive Activity 2'!R$7:R$13,\"N/A\",0)","v":"N/A"},{"$f":"_xlfn.XLOOKUP($E5,'Competitive Activity 2'!$B$7:$B$13,'Competitive Activity 2'!S$7:S$13,\"N/A\",0)","v":"N/A"},{"$f":"_xlfn.XLOOKUP($E5,'Competitive Activity 2'!$B$7:$B$13,'Competitive Activity 2'!T$7:T$13,\"N/A\",0)","v":"N/A"},{"$f":"_xlfn.XLOOKUP($E5,'Competitive Activity 2'!$B$7:$B$13,'Competitive Activity 2'!U$7:U$13,\"N/A\",0)","v":"N/A"},{"$f":"_xlfn.XLOOKUP($E5,'Competitive Activity 2'!$B$17:$B$23,'Competitive Activity 2'!D$17:D$23,\"N/A\",0)","v":"N/A"},{"$f":"_xlfn.XLOOKUP($E5,'Competitive Activity 2'!$B$17:$B$23,'Competitive Activity 2'!E$17:E$23,\"N/A\",0)","v":"N/A"},{"$f":"_xlfn.XLOOKUP($E5,'Competitive Activity 2'!$B$17:$B$23,'Competitive Activity 2'!F$17:F$23,\"N/A\",0)","v":"N/A"},{"$f":"_xlfn.XLOOKUP($E5,'Competitive Activity 2'!$B$17:$B$23,'Competitive Activity 2'!G$17:G$23,\"N/A\",0)","v":"N/A"},{"$f":"_xlfn.XLOOKUP($E5,'Competitive Activity 2'!$B$17:$B$23,'Competitive Activity 2'!H$17:H$23,\"N/A\",0)","v":"N/A"},{"$f":"_xlfn.XLOOKUP($E5,'Competitive Activity 2'!$B$17:$B$23,'Competitive Activity 2'!I$17:I$23,\"N/A\",0)","v":"N/A"},{"$f":"_xlfn.XLOOKUP($E5,'Competitive Activity 2'!$B$17:$B$23,'Competitive Activity 2'!J$17:J$23,\"N/A\",0)","v":"N/A"},{"$f":"_xlfn.XLOOKUP($E5,'Competitive Activity 2'!$B$17:$B$23,'Competitive Activity 2'!K$17:K$23,\"N/A\",0)","v":"N/A"},{"$f":"_xlfn.XLOOKUP($E5,'Competitive Activity 2'!$B$17:$B$23,'Competitive Activity 2'!L$17:L$23,\"N/A\",0)","v":"N/A"},{"$f":"_xlfn.XLOOKUP($E5,'Competitive Activity 2'!$B$17:$B$23,'Competitive Activity 2'!M$17:M$23,\"N/A\",0)","v":"N/A"},{"$f":"_xlfn.XLOOKUP($E5,'Competitive Activity 2'!$B$17:$B$23,'Competitive Activity 2'!N$17:N$23,\"N/A\",0)","v":"N/A"},{"$f":"_xlfn.XLOOKUP($E5,'Competitive Activity 2'!$B$27:$B$33,'Competitive Activity 2'!D$27:D$33,\"N/A\",0)","v":"N/A"},{"$f":"_xlfn.XLOOKUP($E5,'Competitive Activity 2'!$B$27:$B$33,'Competitive Activity 2'!E$27:E$33,\"N/A\",0)","v":"N/A"},{"$f":"_xlfn.XLOOKUP($E5,'Competitive Activity 2'!$B$27:$B$33,'Competitive Activity 2'!F$27:F$33,\"N/A\",0)","v":"N/A"},{"$f":"_xlfn.XLOOKUP($E5,'Competitive Activity 2'!$B$27:$B$33,'Competitive Activity 2'!G$27:G$33,\"N/A\",0)","v":"N/A"},{"$f":"_xlfn.XLOOKUP($E5,'Competitive Activity 2'!$B$27:$B$33,'Competitive Activity 2'!H$27:H$33,\"N/A\",0)","v":"N/A"},{"$f":"_xlfn.XLOOKUP($E5,'Competitive Activity 2'!$B$27:$B$33,'Competitive Activity 2'!I$27:I$33,\"N/A\",0)","v":"N/A"},{"$f":"_xlfn.XLOOKUP($E5,'Competitive Activity 2'!$B$27:$B$33,'Competitive Activity 2'!J$27:J$33,\"N/A\",0)","v":"N/A"},{"$f":"_xlfn.XLOOKUP($E5,'Competitive Activity 2'!$B$27:$B$33,'Competitive Activity 2'!K$27:K$33,\"N/A\",0)","v":"N/A"},{"$f":"_xlfn.XLOOKUP($E5,'Competitive Activity 2'!$B$27:$B$33,'Competitive Activity 2'!M$27:M$33,\"N/A\",0)","v":"N/A"}]
[{"$f":"'1-Cover Sheet'!$C$8","v":"Select One"},{"$f":"'1-Cover Sheet'!$F$8","v":"Select One"},{"$f":"'Summary Sheet'!$D$8","v":0},{"$f":"'Summary Sheet'!$D$10","v":0},{"$f":"'Drop Down Box'!B170","v":0},{"$f":"'Drop Down Box'!C170","v":0},{"$f":"'Drop Down Box'!D170","v":"Select One"},{"$f":"_xlfn.XLOOKUP(E6,'Drop Down Box'!$B$166:$B$249,'Drop Down Box'!$A$166:$A$249,\"Unknown\",0)","v":"Activity 1"},{"$f":"_xlfn.XLOOKUP($E6,'Activity 1'!$B$17:$B$23,'Activity 1'!$N$17:$N$23,\"\",0)","v":""},{"$f":"_xlfn.XLOOKUP($E6,'Activity 1'!$B$17:$B$23,'Activity 1'!$P$17:$P$23,\"N/A\",0)","v":"N/A"},{"$f":"_xlfn.XLOOKUP($E6,'Activity 1'!$B$7:$B$13,'Activity 1'!E$7:E$13,0,0)","v":0},{"$f":"_xlfn.XLOOKUP($E6,'Activity 1'!$B$7:$B$13,'Activity 1'!F$7:F$13,0,0)","v":"00:00:00"},{"$f":"_xlfn.XLOOKUP($E6,'Activity 1'!$B$7:$B$13,'Activity 1'!G$7:G$13,0,0)","v":0},{"$f":"_xlfn.XLOOKUP($E6,'Activity 1'!$B$7:$B$13,'Activity 1'!$A$7:$A$13,\"No\",0,1)","v":"No"},{"$f":"_xlfn.XLOOKUP($E6,'Activity 1'!$B$7:$B$13,'Activity 1'!$H$7:$H$13,\"N/A\",0,1)","v":"N/A"},{"$f":"_xlfn.XLOOKUP($E6,'Activity 1'!$B$7:$B$13,'Activity 1'!I$7:I$13,\"N/A\",0,1)","v":"N/A"},{"$f":"_xlfn.XLOOKUP($E6,'Activity 1'!$B$7:$B$13,'Activity 1'!J$7:J$13,\"N/A\",0,1)","v":"N/A"},{"$f":"_xlfn.XLOOKUP($E6,'Activity 1'!$B$7:$B$13,'Activity 1'!K$7:K$13,\"N/A\",0,1)","v":"N/A"},{"$f":"_xlfn.XLOOKUP($E6,'Activity 1'!$B$7:$B$13,'Activity 1'!L$7:L$13,\"N/A\",0,1)","v":"N/A"},{"$f":"_xlfn.XLOOKUP($E6,'Activity 1'!$B$7:$B$13,'Activity 1'!M$7:M$13,\"N/A\",0,1)","v":"N/A"},{"$f":"_xlfn.XLOOKUP($E6,'Activity 1'!$B$7:$B$13,'Activity 1'!N$7:N$13,\"N/A\",0,1)","v":"N/A"},0,{"$f":"_xlfn.XLOOKUP($E6,'Activity 1'!$B$7:$B$13,'Activity 1'!O$7:O$13,\"N/A\",0,1)","v":"N/A"},{"$f":"_xlfn.XLOOKUP($E6,'Activity 1'!$B$7:$B$13,'Activity 1'!P$7:P$13,\"N/A\",0,1)","v":"N/A"},{"$f":"_xlfn.XLOOKUP($E6,'Activity 1'!$B$7:$B$13,'Activity 1'!Q$7:Q$13,\"N/A\",0,1)","v":"N/A"},{"$f":"_xlfn.XLOOKUP($E6,'Activity 1'!$B$7:$B$13,'Activity 1'!R$7:R$13,\"N/A\",0,1)","v":"N/A"},{"$f":"_xlfn.XLOOKUP($E6,'Activity 1'!$B$7:$B$13,'Activity 1'!S$7:S$13,\"N/A\",0,1)","v":"N/A"},{"$f":"_xlfn.XLOOKUP($E6,'Activity 1'!$B$7:$B$13,'Activity 1'!T$7:T$13,\"N/A\",0,1)","v":"N/A"},{"$f":"_xlfn.XLOOKUP($E6,'Activity 1'!$B$7:$B$13,'Activity 1'!U$7:U$13,\"N/A\",0,1)","v":"N/A"},{"$f":"_xlfn.XLOOKUP($E6,'Activity 1'!$B$7:$B$13,'Activity 1'!V$7:V$13,\"N/A\",0,1)","v":"N/A"},{"$f":"_xlfn.XLOOKUP($E6,'Activity 1'!$B$17:$B$23,'Activity 1'!C$17:C$23,\"N/A\",0,1)","v":"N/A"},{"$f":"_xlfn.XLOOKUP($E6,'Activity 1'!$B$17:$B$23,'Activity 1'!D$17:D$23,\"N/A\",0,1)","v":"N/A"},{"$f":"_xlfn.XLOOKUP($E6,'Activity 1'!$B$17:$B$23,'Activity 1'!E$17:E$23,\"N/A\",0,1)","v":"N/A"},{"$f":"_xlfn.XLOOKUP($E6,'Activity 1'!$B$17:$B$23,'Activity 1'!F$17:F$23,\"N/A\",0,1)","v":"N/A"},{"$f":"_xlfn.XLOOKUP($E6,'Activity 1'!$B$17:$B$23,'Activity 1'!G$17:G$23,\"N/A\",0,1)","v":"N/A"},{"$f":"_xlfn.XLOOKUP($E6,'Activity 1'!$B$17:$B$23,'Activity 1'!H$17:H$23,\"N/A\",0,1)","v":"N/A"},{"$f":"_xlfn.XLOOKUP($E6,'Activity 1'!$B$17:$B$23,'Activity 1'!I$17:I$23,\"N/A\",0,1)","v":"N/A"},{"$f":"_xlfn.XLOOKUP($E6,'Activity 1'!$B$17:$B$23,'Activity 1'!J$17:J$23,\"N/A\",0,1)","v":"N/A"},{"$f":"_xlfn.XLOOKUP($E6,'Activity 1'!$B$17:$B$23,'Activity 1'!K$17:K$23,\"N/A\",0,1)","v":"N/A"},{"$f":"_xlfn.XLOOKUP($E6,'Activity 1'!$B$17:$B$23,'Activity 1'!L$17:L$23,\"N/A\",0,1)","v":"N/A"},{"$f":"_xlfn.XLOOKUP($E6,'Activity 1'!$B$17:$B$23,'Activity 1'!M$17:M$23,\"N/A\",0,1)","v":"N/A"},{"$f":"_xlfn.XLOOKUP($E6,'Activity 1'!$B$17:$B$23,'Activity 1'!O$17:O$23,\"N/A\",0,1)","v":"N/A"},{"$f":"_xlfn.XLOOKUP($E6,'Activity 1'!$B$17:$B$23,'Activity 1'!Q$17:Q$23,\"N/A\",0,1)","v":"N/A"},{"$f":"_xlfn.XLOOKUP($E6,'Activity 2'!$B$7:$B$13,'Activity 2'!$A$7:$A$13,\"No\",0,1)","v":"No"},{"$f":"_xlfn.XLOOKUP($E6,'Activity 2'!B$7:B$13,'Activity 2'!H$7:H$13,\"N/A\",0)","v":"N/A"},{"$f":"_xlfn.XLOOKUP($E6,'Activity 2'!C$7:C$13,'Activity 2'!I$7:I$13,\"N/A\",0)","v":"N/A"},{"$f":"_xlfn.XLOOKUP($E6,'Activity 2'!D$7:D$13,'Activity 2'!J$7:J$13,\"N/A\",0)","v":"N/A"},{"$f":"_xlfn.XLOOKUP($E6,'Activity 2'!E$7:E$13,'Activity 2'!K$7:K$13,\"N/A\",0)","v":"N/A"},{"$f":"_xlfn.XLOOKUP($E6,'Activity 2'!F$7:F$13,'Activity 2'!L$7:L$13,\"N/A\",0)","v":"N/A"},{"$f":"_xlfn.XLOOKUP($E6,'Activity 2'!G$7:G$13,'Activity 2'!M$7:M$13,\"N/A\",0)","v":"N/A"},{"$f":"_xlfn.XLOOKUP($E6,'Activity 2'!H$7:H$13,'Activity 2'!N$7:N$13,\"N/A\",0)","v":"N/A"},{"$f":"_xlfn.XLOOKUP($E6,'Activity 2'!I$7:I$13,'Activity 2'!O$7:O$13,\"N/A\",0)","v":"N/A"},{"$f":"_xlfn.XLOOKUP($E6,'Activity 2'!J$7:J$13,'Activity 2'!P$7:P$13,\"N/A\",0)","v":"N/A"},{"$f":"_xlfn.XLOOKUP($E6,'Activity 2'!K$7:K$13,'Activity 2'!Q$7:Q$13,\"N/A\",0)","v":"N/A"},{"$f":"_xlfn.XLOOKUP($E6,'Activity 2'!L$7:L$13,'Activity 2'!R$7:R$13,\"N/A\",0)","v":"N/A"},{"$f":"_xlfn.XLOOKUP($E6,'Activity 2'!M$7:M$13,'Activity 2'!S$7:S$13,\"N/A\",0)","v":"N/A"},{"$f":"_xlfn.XLOOKUP($E6,'Activity 2'!N$7:N$13,'Activity 2'!T$7:T$13,\"N/A\",0)","v":"N/A"},{"$f":"_xlfn.XLOOKUP($E6,'Activity 2'!O$7:O$13,'Activity 2'!U$7:U$13,\"N/A\",0)","v":"N/A"},{"$f":"_xlfn.XLOOKUP($E6,'Activity 2'!P$7:P$13,'Activity 2'!V$7:V$13,\"N/A\",0)","v":"N/A"},{"$f":"_xlfn.XLOOKUP($E6,'Activity 2'!$B$17:$B$23,'Activity 2'!C$17:C$23,\"N/A\",0,1)","v":"N/A"},{"$f":"_xlfn.XLOOKUP($E6,'Activity 2'!$B$17:$B$23,'Activity 2'!D$17:D$23,\"N/A\",0,1)","v":"N/A"},{"$f":"_xlfn.XLOOKUP($E6,'Activity 2'!$B$17:$B$23,'Activity 2'!E$17:E$23,\"N/A\",0,1)","v":"N/A"},{"$f":"_xlfn.XLOOKUP($E6,'Activity 2'!$B$17:$B$23,'Activity 2'!F$17:F$23,\"N/A\",0,1)","v":"N/A"},{"$f":"_xlfn.XLOOKUP($E6,'Activity 2'!$B$17:$B$23,'Activity 2'!G$17:G$23,\"N/A\",0,1)","v":"N/A"},{"$f":"_xlfn.XLOOKUP($E6,'Activity 2'!$B$17:$B$23,'Activity 2'!H$17:H$23,\"N/A\",0,1)","v":"N/A"},{"$f":"_xlfn.XLOOKUP($E6,'Activity 2'!$B$17:$B$23,'Activity 2'!I$17:I$23,\"N/A\",0,1)","v":"N/A"},{"$f":"_xlfn.XLOOKUP($E6,'Activity 2'!$B$17:$B$23,'Activity 2'!J$17:J$23,\"N/A\",0,1)","v":"N/A"},{"$f":"_xlfn.XLOOKUP($E6,'Activity 2'!$B$17:$B$23,'Activity 2'!K$17:K$23,\"N/A\",0,1)","v":"N/A"},{"$f":"_xlfn.XLOOKUP($E6,'Activity 2'!$B$17:$B$23,'Activity 2'!L$17:L$23,\"N/A\",0,1)","v":"N/A"},{"$f":"_xlfn.XLOOKUP($E6,'Activity 2'!$B$17:$B$23,'Activity 2'!M$17:M$23,\"N/A\",0,1)","v":"N/A"},{"$f":"_xlfn.XLOOKUP($E6,'Activity 2'!$B$17:$B$23,'Activity 2'!O$17:O$23,\"N/A\",0,1)","v":"N/A"},{"$f":"_xlfn.XLOOKUP($E6,'Activity 2'!$B$17:$B$23,'Activity 2'!Q$17:Q$23,\"N/A\",0,1)","v":"N/A"},{"$f":"_xlfn.XLOOKUP($E6,'Activity 3'!$B$8:$B$14,'Activity 3'!A$8:A$14,\"No\",0,1)","v":"No"},{"$f":"_xlfn.XLOOKUP($E6,'Activity 3'!$B$8:$B$14,'Activity 3'!K$8:K$14,\"N/A\",0,1)","v":"N/A"},{"$f":"_xlfn.XLOOKUP($E6,'Activity 3'!$B$8:$B$14,'Activity 3'!L$8:L$14,\"N/A\",0,1)","v":"N/A"},{"$f":"_xlfn.XLOOKUP($E6,'Activity 3'!$B$8:$B$14,'Activity 3'!M$8:M$14,\"N/A\",0,1)","v":"N/A"},{"$f":"_xlfn.XLOOKUP($E6,'Activity 3'!$B$8:$B$14,'Activity 3'!N$8:N$14,\"N/A\",0,1)","v":"N/A"},{"$f":"_xlfn.XLOOKUP($E6,'Activity 3'!$B$8:$B$14,'Activity 3'!O$8:O$14,\"N/A\",0,1)","v":"N/A"},{"$f":"_xlfn.XLOOKUP($E6,'Activity 3'!$B$8:$B$14,'Activity 3'!R$8:R$14,\"N/A\",0,1)","v":"N/A"},{"$f":"_xlfn.XLOOKUP($E6,'Activity 4'!$B$8:$B$14,'Activity 4'!$A$8:$A$14,\"No\",0,1)","v":"No"},{"$f":"_xlfn.XLOOKUP($E6,'Activity 4'!$B$8:$B$14,'Activity 4'!L$8:L$14,\"N/A\",0,1)","v":"N/A"},{"$f":"_xlfn.XLOOKUP($E6,'Activity 4'!$B$8:$B$14,'Activity 4'!D$8:D$14,\"N/A\",0,1)","v":"N/A"},{"$f":"_xlfn.XLOOKUP($E6,'Activity 4'!$B$8:$B$14,'Activity 4'!G$8:G$14,\"N/A\",0,1)","v":"N/A"},{"$f":"_xlfn.XLOOKUP($E6,'Activity 5'!$B$8:$B$14,'Activity 5'!$A$8:$A$14,\"No\",0,1)","v":"No"},{"$f":"_xlfn.XLOOKUP($E6,'Activity 5'!$B$8:$B$14,'Activity 5'!J$8:J$14,\"N/A\",0,1)","v":"N/A"},{"$f":"_xlfn.XLOOKUP($E6,'Activity 5'!$B$8:$B$14,'Activity 5'!K$8:K$14,\"N/A\",0,1)","v":"N/A"},{"$f":"_xlfn.XLOOKUP($E6,'Activity 5'!$B$8:$B$14,'Activity 5'!N$8:N$14,\"N/A\",0,1)","v":"N/A"},{"$f":"_xlfn.XLOOKUP($E6,'Activity 5'!$B$8:$B$14,'Activity 5'!O$8:O$14,\"N/A\",0,1)","v":"N/A"},{"$f":"_xlfn.XLOOKUP($E6,'Activity 5'!$B$8:$B$14,'Activity 5'!P$8:P$14,\"N/A\",0,1)","v":"N/A"},{"$f":"_xlfn.XLOOKUP($E6,'Activity 5'!$B$8:$B$14,'Activity 5'!Q$8:Q$14,\"N/A\",0,1)","v":"N/A"},{"$f":"_xlfn.XLOOKUP($E6,'Activity 5'!$B$8:$B$14,'Activity 5'!R$8:R$14,\"N/A\",0,1)","v":"N/A"},{"$f":"_xlfn.XLOOKUP($E6,'Activity 6'!$B$7:$B$13,'Activity 6'!A$7:A$13,\"No\",0,1)","v":"No"},{"$f":"_xlfn.XLOOKUP($E6,'Activity 6'!$B$7:$B$13,'Activity 6'!K$7:K$13,\"N/A\",0,1)","v":"N/A"},{"$f":"_xlfn.XLOOKUP($E6,'Activity 6'!$B$7:$B$13,'Activity 6'!L$7:L$13,\"N/A\",0,1)","v":"N/A"},{"$f":"_xlfn.XLOOKUP($E6,'Activity 6'!$B$7:$B$13,'Activity 6'!M$7:M$13,\"N/A\",0,1)","v":"N/A"},{"$f":"_xlfn.XLOOKUP($E6,'Activity 6'!$B$7:$B$13,'Activity 6'!N$7:N$13,\"N/A\",0,1)","v":"N/A"},{"$f":"_xlfn.XLOOKUP($E6,'Activity 6'!$B$7:$B$13,'Activity 6'!O$7:O$13,\"N/A\",0,1)","v":"N/A"},{"$f":"_xlfn.XLOOKUP($E6,'Activity 6'!$B$7:$B$13,'Activity 6'!P$7:P$13,\"N/A\",0,1)","v":"N/A"},{"$f":"_xlfn.XLOOKUP($E6,'Activity 6'!$B$7:$B$13,'Activity 6'!Q$7:Q$13,\"N/A\",0,1)","v":"N/A"},{"$f":"_xlfn.XLOOKUP($E6,'Activity 6'!$B$7:$B$13,'Activity 6'!R$7:R$13,\"N/A\",0,1)","v":"N/A"},{"$f":"_xlfn.XLOOKUP($E6,'Activity 6'!$B$7:$B$13,'Activity 6'!S$7:S$13,\"N/A\",0,1)","v":"N/A"},{"$f":"_xlfn.XLOOKUP($E6,'Activity 6'!$B$7:$B$13,'Activity 6'!T$7:T$13,\"N/A\",0,1)","v":"N/A"},{"$f":"_xlfn.XLOOKUP($E6,'Activity 6'!$B$7:$B$13,'Activity 6'!U$7:U$13,\"N/A\",0,1)","v":"N/A"},{"$f":"_xlfn.XLOOKUP($E6,'Activity 6'!$B$22:$B$28,'Activity 6'!C$22:C$28,\"N/A\",0,1)","v":"N/A"},{"$f":"_xlfn.XLOOKUP($E6,'Activity 6'!$B$22:$B$28,'Activity 6'!D$22:D$28,\"N/A\",0,1)","v":"N/A"},{"$f":"_xlfn.XLOOKUP($E6,'Activity 6'!$B$22:$B$28,'Activity 6'!E$22:E$28,\"N/A\",0,1)","v":"N/A"},{"$f":"_xlfn.XLOOKUP($E6,'Activity 6'!$B$22:$B$28,'Activity 6'!F$22:F$28,\"N/A\",0,1)","v":"N/A"},{"$f":"_xlfn.XLOOKUP($E6,'Activity 6'!$B$22:$B$28,'Activity 6'!G$22:G$28,\"N/A\",0,1)","v":"N/A"},{"$f":"_xlfn.XLOOKUP($E6,'Activity 6'!$B$22:$B$28,'Activity 6'!H$22:H$28,\"N/A\",0,1)","v":"N/A"},{"$f":"_xlfn.XLOOKUP($E6,'Activity 6'!$B$22:$B$28,'Activity 6'!I$22:I$28,\"N/A\",0,1)","v":"N/A"},{"$f":"_xlfn.XLOOKUP($E6,'Activity 6'!$B$22:$B$28,'Activity 6'!J$22:J$28,\"N/A\",0,1)","v":"N/A"},{"$f":"_xlfn.XLOOKUP($E6,'Activity 6'!$B$22:$B$28,'Activity 6'!K$22:K$28,\"N/A\",0,1)","v":"N/A"},{"$f":"_xlfn.XLOOKUP($E6,'Activity 6'!$B$22:$B$28,'Activity 6'!L$22:L$28,\"N/A\",0,1)","v":"N/A"},{"$f":"_xlfn.XLOOKUP($E6,'Activity 6'!$B$22:$B$28,'Activity 6'!M$22:M$28,\"N/A\",0,1)","v":"N/A"},{"$f":"_xlfn.XLOOKUP($E6,'Activity 6'!$B$22:$B$28,'Activity 6'!N$22:N$28,\"N/A\",0,1)","v":"N/A"},{"$f":"_xlfn.XLOOKUP($E6,'Activity 6'!$B$32:$B$38,'Activity 6'!C$32:C$38,\"N/A\",0,1)","v":"N/A"},{"$f":"_xlfn.XLOOKUP($E6,'Activity 6'!$B$32:$B$38,'Activity 6'!D$32:D$38,\"N/A\",0,1)","v":"N/A"},{"$f":"_xlfn.XLOOKUP($E6,'Activity 6'!$B$32:$B$38,'Activity 6'!E$32:E$38,\"N/A\",0,1)","v":"N/A"},{"$f":"_xlfn.XLOOKUP($E6,'Activity 6'!$B$32:$B$38,'Activity 6'!F$32:F$38,\"N/A\",0,1)","v":"N/A"},{"$f":"_xlfn.XLOOKUP($E6,'Activity 6'!$B$32:$B$38,'Activity 6'!G$32:G$38,\"N/A\",0,1)","v":"N/A"},{"$f":"_xlfn.XLOOKUP($E6,'Activity 6'!$B$32:$B$38,'Activity 6'!H$32:H$38,\"N/A\",0,1)","v":"N/A"},{"$f":"_xlfn.XLOOKUP($E6,'Activity 6'!$B$32:$B$38,'Activity 6'!I$32:I$38,\"N/A\",0,1)","v":"N/A"},{"$f":"_xlfn.XLOOKUP($E6,'Activity 6'!$B$32:$B$38,'Activity 6'!J$32:J$38,\"N/A\",0,1)","v":"N/A"},{"$f":"_xlfn.XLOOKUP($E6,'Activity 6'!$B$32:$B$38,'Activity 6'!K$32:K$38,\"N/A\",0,1)","v":"N/A"},{"$f":"_xlfn.XLOOKUP($E6,'Activity 6'!$B$32:$B$38,'Activity 6'!M$32:M$38,\"N/A\",0,1)","v":"N/A"},{"$f":"_xlfn.XLOOKUP($E6,'Activity 7'!$B$7:$B$13,'Activity 7'!$A$7:$A$13,\"No\",0,1)","v":"No"},{"$f":"_xlfn.XLOOKUP($E6,'Activity 7'!$B$7:$B$13,'Activity 7'!M$7:M$13,\"N/A\",0,1)","v":"N/A"},{"$f":"_xlfn.XLOOKUP($E6,'Activity 7'!$B$7:$B$13,'Activity 7'!K$7:K$13,\"N/A\",0,1)","v":"N/A"},{"$f":"_xlfn.XLOOKUP($E6,'Activity 7'!$B$7:$B$13,'Activity 7'!N$7:N$13,\"N/A\",0,1)","v":"N/A"},{"$f":"_xlfn.XLOOKUP($E6,'Activity 7'!$B$7:$B$13,'Activity 7'!O$7:O$13,\"N/A\",0,1)","v":"N/A"},{"$f":"_xlfn.XLOOKUP($E6,'Activity 7'!$B$7:$B$13,'Activity 7'!P$7:P$13,\"N/A\",0,1)","v":"N/A"},{"$f":"_xlfn.XLOOKUP($E6,'Activity 7'!$B$7:$B$13,'Activity 7'!Q$7:Q$13,\"N/A\",0,1)","v":"N/A"},{"$f":"_xlfn.XLOOKUP($E6,'Activity 7'!$B$7:$B$13,'Activity 7'!R$7:R$13,\"N/A\",0,1)","v":"N/A"},{"$f":"_xlfn.XLOOKUP($E6,'Activity 7'!$B$7:$B$13,'Activity 7'!S$7:S$13,\"N/A\",0,1)","v":"N/A"},{"$f":"_xlfn.XLOOKUP($E6,'Activity 7'!$B$7:$B$13,'Activity 7'!T$7:T$13,\"N/A\",0,1)","v":"N/A"},{"$f":"_xlfn.XLOOKUP($E6,'Activity 7'!$B$7:$B$13,'Activity 7'!U$7:U$13,\"N/A\",0,1)","v":"N/A"},{"$f":"_xlfn.XLOOKUP($E6,'Activity 7'!$B$7:$B$13,'Activity 7'!V$7:V$13,\"N/A\",0,1)","v":"N/A"},{"$f":"_xlfn.XLOOKUP($E6,'Activity 7'!$B$17:$B$23,'Activity 7'!E$17:E$23,\"N/A\",0,1)","v":"N/A"},{"$f":"_xlfn.XLOOKUP($E6,'Activity 7'!$B$17:$B$23,'Activity 7'!G$17:G$23,\"N/A\",0,1)","v":"N/A"},{"$f":"_xlfn.XLOOKUP($E6,'Activity 7'!$B$17:$B$23,'Activity 7'!I$17:I$23,\"N/A\",0,1)","v":"N/A"},{"$f":"_xlfn.XLOOKUP($E6,'Activity 7'!$B$17:$B$23,'Activity 7'!J$17:J$23,\"N/A\",0,1)","v":"N/A"},{"$f":"_xlfn.XLOOKUP($E6,'Activity 7'!$B$17:$B$23,'Activity 7'!K$17:K$23,\"N/A\",0,1)","v":"N/A"},{"$f":"_xlfn.XLOOKUP($E6,'Activity 7'!$B$17:$B$23,'Activity 7'!L$17:L$23,\"N/A\",0,1)","v":"N/A"},{"$f":"_xlfn.XLOOKUP($E6,'Activity 7'!$B$17:$B$23,'Activity 7'!M$17:M$23,\"N/A\",0,1)","v":"N/A"},{"$f":"_xlfn.XLOOKUP($E6,'Activity 7'!$B$17:$B$23,'Activity 7'!N$17:N$23,\"N/A\",0,1)","v":"N/A"},{"$f":"_xlfn.XLOOKUP($E6,'Activity 7'!$B$17:$B$23,'Activity 7'!P$17:P$23,\"N/A\",0,1)","v":"N/A"},{"$f":"_xlfn.XLOOKUP($E6,'Activity 8'!$B$7:$B$13,'Activity 8'!A$7:A$13,\"No\",0,1)","v":"No"},{"$f":"_xlfn.XLOOKUP($E6,'Activity 8'!$B$7:$B$13,'Activity 8'!I$7:I$13,\"N/A\",0,1)","v":"N/A"},{"$f":"_xlfn.XLOOKUP($E6,'Activity 8'!$B$7:$B$13,'Activity 8'!J$7:J$13,\"N/A\",0,1)","v":"N/A"},{"$f":"_xlfn.XLOOKUP($E6,'Activity 8'!$B$7:$B$13,'Activity 8'!K$7:K$13,\"N/A\",0,1)","v":"N/A"},{"$f":"_xlfn.XLOOKUP($E6,'Activity 8'!$B$7:$B$13,'Activity 8'!L$7:L$13,\"N/A\",0,1)","v":"N/A"},{"$f":"_xlfn.XLOOKUP($E6,'Activity 8'!$B$7:$B$13,'Activity 8'!M$7:M$13,\"N/A\",0,1)","v":"N/A"},{"$f":"_xlfn.XLOOKUP($E6,'Activity 8'!$B$7:$B$13,'Activity 8'!N$7:N$13,\"N/A\",0,1)","v":"N/A"},{"$f":"_xlfn.XLOOKUP($E6,'Activity 8'!$B$7:$B$13,'Activity 8'!O$7:O$13,\"N/A\",0,1)","v":"N/A"},{"$f":"_xlfn.XLOOKUP($E6,'Activity 8'!$B$7:$B$13,'Activity 8'!P$7:P$13,\"N/A\",0,1)","v":"N/A"},{"$f":"_xlfn.XLOOKUP($E6,'Activity 8'!$B$7:$B$13,'Activity 8'!Q$7:Q$13,\"N/A\",0,1)","v":"N/A"},{"$f":"_xlfn.XLOOKUP($E6,'Activity 8'!$B$7:$B$13,'Activity 8'!R$7:R$13,\"N/A\",0,1)","v":"N/A"},{"$f":"_xlfn.XLOOKUP($E6,'Activity 8'!$B$7:$B$13,'Activity 8'!S$7:S$13,\"N/A\",0,1)","v":"N/A"},{"$f":"_xlfn.XLOOKUP($E6,'Activity 8'!$B$7:$B$13,'Activity 8'!T$7:T$13,\"N/A\",0,1)","v":"N/A"},{"$f":"_xlfn.XLOOKUP($E6,'Activity 8'!$B$7:$B$13,'Activity 8'!U$7:U$13,\"N/A\",0,1)","v":"N/A"},{"$f":"_xlfn.XLOOKUP($E6,'Activity 8'!$B$7:$B$13,'Activity 8'!V$7:V$13,\"N/A\",0,1)","v":"N/A"},{"$f":"_xlfn.XLOOKUP($E6,'Activity 8'!$B$17:$B$23,'Activity 8'!D$17:D$23,\"N/A\",0,1)","v":"N/A"},{"$f":"_xlfn.XLOOKUP($E6,'Activity 8'!$B$17:$B$23,'Activity 8'!E$17:E$23,\"N/A\",0,1)","v":"N/A"},{"$f":"_xlfn.XLOOKUP($E6,'Activity 8'!$B$17:$B$23,'Activity 8'!F$17:F$23,\"N/A\",0,1)","v":"N/A"},{"$f":"_xlfn.XLOOKUP($E6,'Activity 8'!$B$17:$B$23,'Activity 8'!G$17:G$23,\"N/A\",0,1)","v":"N/A"},{"$f":"_xlfn.XLOOKUP($E6,'Activity 8'!$B$17:$B$23,'Activity 8'!H$17:H$23,\"N/A\",0,1)","v":"N/A"},{"$f":"_xlfn.XLOOKUP($E6,'Activity 8'!$B$17:$B$23,'Activity 8'!I$17:I$23,\"N/A\",0,1)","v":"N/A"},{"$f":"_xlfn.XLOOKUP($E6,'Activity 8'!$B$17:$B$23,'Activity 8'!J$17:J$23,\"N/A\",0,1)","v":"N/A"},{"$f":"_xlfn.XLOOKUP($E6,'Activity 8'!$B$17:$B$23,'Activity 8'!K$17:K$23,\"N/A\",0,1)","v":"N/A"},{"$f":"_xlfn.XLOOKUP($E6,'Activity 8'!$B$17:$B$23,'Activity 8'!L$17:L$23,\"N/A\",0,1)","v":"N/A"},{"$f":"_xlfn.XLOOKUP($E6,'Activity 8'!$B$17:$B$23,'Activity 8'!M$17:M$23,\"N/A\",0,1)","v":"N/A"},{"$f":"_xlfn.XLOOKUP($E6,'Activity 8'!$B$17:$B$23,'Activity 8'!N$17:N$23,\"N/A\",0,1)","v":"N/A"},{"$f":"_xlfn.XLOOKUP($E6,'Activity 8'!$B$17:$B$23,'Activity 8'!P$17:P$23,\"N/A\",0,1)","v":"N/A"},{"$f":"_xlfn.XLOOKUP(E6,'Activity 9'!$B$7:$B$13,'Activity 9'!$A$7:$A$13,\"No\",0,1)","v":"No"},{"$f":"_xlfn.XLOOKUP($E6,'Activity 9'!$B$7:$B$13,'Activity 9'!J$7:J$13,\"N/A\",0,1)","v":"N/A"},{"$f":"_xlfn.XLOOKUP($E6,'Activity 9'!$B$7:$B$13,'Activity 9'!K$7:K$13,\"N/A\",0,1)","v":"N/A"},{"$f":"_xlfn.XLOOKUP($E6,'Activity 9'!$B$7:$B$13,'Activity 9'!L$7:L$13,\"N/A\",0,1)","v":"N/A"},{"$f":"_xlfn.XLOOKUP($E6,'Activity 9'!$B$7:$B$13,'Activity 9'!M$7:M$13,\"N/A\",0,1)","v":"N/A"},{"$f":"_xlfn.XLOOKUP($E6,'Activity 9'!$B$7:$B$13,'Activity 9'!N$7:N$13,\"N/A\",0,1)","v":"N/A"},{"$f":"_xlfn.XLOOKUP($E6,'Activity 9'!$B$7:$B$13,'Activity 9'!O$7:O$13,\"N/A\",0,1)","v":"N/A"},{"$f":"_xlfn.XLOOKUP($E6,'Activity 9'!$B$7:$B$13,'Activity 9'!P$7:P$13,\"N/A\",0,1)","v":"N/A"},{"$f":"_xlfn.XLOOKUP($E6,'Activity 9'!$B$7:$B$13,'Activity 9'!Q$7:Q$13,\"N/A\",0,1)","v":"N/A"},{"$f":"_xlfn.XLOOKUP($E6,'Activity 9'!$B$7:$B$13,'Activity 9'!R$7:R$13,\"N/A\",0,1)","v":"N/A"},{"$f":"_xlfn.XLOOKUP($E6,'Activity 9'!$B$7:$B$13,'Activity 9'!S$7:S$13,\"N/A\",0,1)","v":"N/A"},{"$f":"_xlfn.XLOOKUP($E6,'Activity 9'!$B$7:$B$13,'Activity 9'!T$7:T$13,\"N/A\",0,1)","v":"N/A"},{"$f":"_xlfn.XLOOKUP($E6,'Activity 9'!$B$17:$B$23,'Activity 9'!E$17:E$23,\"N/A\",0,1)","v":"N/A"},{"$f":"_xlfn.XLOOKUP($E6,'Activity 9'!$B$17:$B$23,'Activity 9'!F$17:F$23,\"N/A\",0,1)","v":"N/A"},{"$f":"_xlfn.XLOOKUP($E6,'Activity 9'!$B$17:$B$23,'Activity 9'!G$17:G$23,\"N/A\",0,1)","v":"N/A"},{"$f":"_xlfn.XLOOKUP($E6,'Activity 9'!$B$17:$B$23,'Activity 9'!H$17:H$23,\"N/A\",0,1)","v":"N/A"},{"$f":"_xlfn.XLOOKUP($E6,'Activity 9'!$B$17:$B$23,'Activity 9'!I$17:I$23,\"N/A\",0,1)","v":"N/A"},{"$f":"_xlfn.XLOOKUP($E6,'Activity 9'!$B$17:$B$23,'Activity 9'!J$17:J$23,\"N/A\",0,1)","v":"N/A"},{"$f":"_xlfn.XLOOKUP($E6,'Activity 9'!$B$17:$B$23,'Activity 9'!K$17:K$23,\"N/A\",0,1)","v":"N/A"},{"$f":"_xlfn.XLOOKUP($E6,'Activity 9'!$B$17:$B$23,'Activity 9'!L$17:L$23,\"N/A\",0,1)","v":"N/A"},{"$f":"_xlfn.XLOOKUP($E6,'Activity 9'!$B$17:$B$23,'Activity 9'!N$17:N$23,\"N/A\",0,1)","v":"N/A"},{"$f":"_xlfn.XLOOKUP($E6,'Activity 9'!$B$17:$B$23,'Activity 9'!O$17:O$23,\"N/A\",0,1)","v":"N/A"},{"$f":"_xlfn.XLOOKUP($E6,'Activity 9'!$B$17:$B$23,'Activity 9'!Q$17:Q$23,\"N/A\",0,1)","v":"N/A"},{"$f":"_xlfn.XLOOKUP($E6,'Activity 10'!$B$7:$B$13,'Activity 10'!A$7:A$13,\"No\",0,1)","v":"No"},{"$f":"_xlfn.XLOOKUP($E6,'Activity 10'!$B$7:$B$13,'Activity 10'!J$7:J$13,\"N/A\",0,1)","v":"N/A"},{"$f":"_xlfn.XLOOKUP($E6,'Activity 10'!$B$7:$B$13,'Activity 10'!K$7:K$13,\"N/A\",0,1)","v":"N/A"},{"$f":"_xlfn.XLOOKUP($E6,'Activity 10'!$B$7:$B$13,'Activity 10'!L$7:L$13,\"N/A\",0,1)","v":"N/A"},{"$f":"_xlfn.XLOOKUP($E6,'Activity 10'!$B$7:$B$13,'Activity 10'!M$7:M$13,\"N/A\",0,1)","v":"N/A"},{"$f":"_xlfn.XLOOKUP($E6,'Activity 10'!$B$7:$B$13,'Activity 10'!N$7:N$13,\"N/A\",0,1)","v":"N/A"},{"$f":"_xlfn.XLOOKUP($E6,'Activity 10'!$B$7:$B$13,'Activity 10'!O$7:O$13,\"N/A\",0,1)","v":"N/A"},{"$f":"_xlfn.XLOOKUP($E6,'Activity 10'!$B$7:$B$13,'Activity 10'!P$7:P$13,\"N/A\",0,1)","v":"N/A"},{"$f":"_xlfn.XLOOKUP($E6,'Activity 10'!$B$7:$B$13,'Activity 10'!Q$7:Q$13,\"N/A\",0,1)","v":"N/A"},{"$f":"_xlfn.XLOOKUP($E6,'Activity 10'!$B$7:$B$13,'Activity 10'!R$7:R$13,\"N/A\",0,1)","v":"N/A"},{"$f":"_xlfn.XLOOKUP($E6,'Activity 10'!$B$7:$B$13,'Activity 10'!S$7:S$13,\"N/A\",0,1)","v":"N/A"},{"$f":"_xlfn.XLOOKUP($E6,'Activity 10'!$B$7:$B$13,'Activity 10'!T$7:T$13,\"N/A\",0,1)","v":"N/A"},{"$f":"_xlfn.XLOOKUP($E6,'Activity 10'!$B$7:$B$13,'Activity 10'!U$7:U$13,\"N/A\",0,1)","v":"N/A"},{"$f":"_xlfn.XLOOKUP($E6,'Activity 10'!$B$7:$B$13,'Activity 10'!V$7:V$13,\"N/A\",0,1)","v":"N/A"},{"$f":"_xlfn.XLOOKUP($E6,'Activity 10'!$B$17:$B$23,'Activity 10'!E$17:E$23,\"N/A\",0,1)","v":"N/A"},{"$f":"_xlfn.XLOOKUP($E6,'Activity 10'!$B$17:$B$23,'Activity 10'!F$17:F$23,\"N/A\",0,1)","v":"N/A"},{"$f":"_xlfn.XLOOKUP($E6,'Activity 10'!$B$17:$B$23,'Activity 10'!G$17:G$23,\"N/A\",0,1)","v":"N/A"},{"$f":"_xlfn.XLOOKUP($E6,'Activity 10'!$B$17:$B$23,'Activity 10'!H$17:H$23,\"N/A\",0,1)","v":"N/A"},{"$f":"_xlfn.XLOOKUP($E6,'Activity 10'!$B$17:$B$23,'Activity 10'!I$17:I$23,\"N/A\",0,1)","v":"N/A"},{"$f":"_xlfn.XLOOKUP($E6,'Activity 10'!$B$17:$B$23,'Activity 10'!J$17:J$23,\"N/A\",0,1)","v":"N/A"},{"$f":"_xlfn.XLOOKUP($E6,'Activity 10'!$B$17:$B$23,'Activity 10'!K$17:K$23,\"N/A\",0,1)","v":"N/A"},{"$f":"_xlfn.XLOOKUP($E6,'Activity 10'!$B$17:$B$23,'Activity 10'!L$17:L$23,\"N/A\",0,1)","v":"N/A"},{"$f":"_xlfn.XLOOKUP($E6,'Activity 10'!$B$17:$B$23,'Activity 10'!M$17:M$23,\"N/A\",0,1)","v":"N/A"},{"$f":"_xlfn.XLOOKUP($E6,'Activity 10'!$B$17:$B$23,'Activity 10'!N$17:N$23,\"N/A\",0,1)","v":"N/A"},{"$f":"_xlfn.XLOOKUP($E6,'Activity 10'!$B$17:$B$23,'Activity 10'!P$17:P$23,\"N/A\",0,1)","v":"N/A"},{"$f":"_xlfn.XLOOKUP($E6,'Competitive Activity 1'!B$7:B$13,'Competitive Activity 1'!A$7:A$13,\"No\",0,1)","v":"No"},{"$f":"_xlfn.XLOOKUP($E6,'Competitive Activity 1'!$B$7:$B$13,'Competitive Activity 1'!H$7:H$13,\"N/A\",0,1)","v":"N/A"},{"$f":"_xlfn.XLOOKUP($E6,'Competitive Activity 1'!$B$7:$B$13,'Competitive Activity 1'!I$7:I$13,\"N/A\",0,1)","v":"N/A"},{"$f":"_xlfn.XLOOKUP($E6,'Competitive Activity 1'!$B$7:$B$13,'Competitive Activity 1'!J$7:J$13,\"N/A\",0,1)","v":"N/A"},{"$f":"_xlfn.XLOOKUP($E6,'Competitive Activity 1'!$B$7:$B$13,'Competitive Activity 1'!K$7:K$13,\"N/A\",0,1)","v":"N/A"},{"$f":"_xlfn.XLOOKUP($E6,'Competitive Activity 1'!$B$7:$B$13,'Competitive Activity 1'!L$7:L$13,\"N/A\",0,1)","v":"N/A"},{"$f":"_xlfn.XLOOKUP($E6,'Competitive Activity 1'!$B$7:$B$13,'Competitive Activity 1'!M$7:M$13,\"N/A\",0,1)","v":"N/A"},{"$f":"_xlfn.XLOOKUP($E6,'Competitive Activity 1'!$B$7:$B$13,'Competitive Activity 1'!N$7:N$13,\"N/A\",0,1)","v":"N/A"},{"$f":"_xlfn.XLOOKUP($E6,'Competitive Activity 1'!$B$7:$B$13,'Competitive Activity 1'!O$7:O$13,\"N/A\",0,1)","v":"N/A"},{"$f":"_xlfn.XLOOKUP($E6,'Competitive Activity 1'!$B$7:$B$13,'Competitive Activity 1'!P$7:P$13,\"N/A\",0,1)","v":"N/A"},{"$f":"_xlfn.XLOOKUP($E6,'Competitive Activity 1'!$B$7:$B$13,'Competitive Activity 1'!Q$7:Q$13,\"N/A\",0,1)","v":"N/A"},{"$f":"_xlfn.XLOOKUP($E6,'Competitive Activity 1'!$B$7:$B$13,'Competitive Activity 1'!R$7:R$13,\"N/A\",0,1)","v":"N/A"},{"$f":"_xlfn.XLOOKUP($E6,'Competitive Activity 1'!$B$7:$B$13,'Competitive Activity 1'!S$7:S$13,\"N/A\",0,1)","v":"N/A"},{"$f":"_xlfn.XLOOKUP($E6,'Competitive Activity 1'!$B$7:$B$13,'Competitive Activity 1'!T$7:T$13,\"N/A\",0,1)","v":"N/A"},{"$f":"_xlfn.XLOOKUP($E6,'Competitive Activity 1'!$B$7:$B$13,'Competitive Activity 1'!U$7:U$13,\"N/A\",0,1)","v":"N/A"},{"$f":"_xlfn.XLOOKUP($E6,'Competitive Activity 1'!$B$17:$B$23,'Competitive Activity 1'!C$17:C$23,\"N/A\",0,1)","v":"N/A"},{"$f":"_xlfn.XLOOKUP($E6,'Competitive Activity 1'!$B$17:$B$23,'Competitive Activity 1'!D$17:D$23,\"N/A\",0,1)","v":"N/A"},{"$f":"_xlfn.XLOOKUP($E6,'Competitive Activity 1'!$B$17:$B$23,'Competitive Activity 1'!E$17:E$23,\"N/A\",0,1)","v":"N/A"},{"$f":"_xlfn.XLOOKUP($E6,'Competitive Activity 1'!$B$17:$B$23,'Competitive Activity 1'!F$17:F$23,\"N/A\",0,1)","v":"N/A"},{"$f":"_xlfn.XLOOKUP($E6,'Competitive Activity 1'!$B$17:$B$23,'Competitive Activity 1'!G$17:G$23,\"N/A\",0,1)","v":"N/A"},{"$f":"_xlfn.XLOOKUP($E6,'Competitive Activity 1'!$B$17:$B$23,'Competitive Activity 1'!H$17:H$23,\"N/A\",0,1)","v":"N/A"},{"$f":"_xlfn.XLOOKUP($E6,'Competitive Activity 1'!$B$17:$B$23,'Competitive Activity 1'!I$17:I$23,\"N/A\",0,1)","v":"N/A"},{"$f":"_xlfn.XLOOKUP($E6,'Competitive Activity 1'!$B$17:$B$23,'Competitive Activity 1'!J$17:J$23,\"N/A\",0,1)","v":"N/A"},{"$f":"_xlfn.XLOOKUP($E6,'Competitive Activity 1'!$B$17:$B$23,'Competitive Activity 1'!K$17:K$23,\"N/A\",0,1)","v":"N/A"},{"$f":"_xlfn.XLOOKUP($E6,'Competitive Activity 1'!$B$17:$B$23,'Competitive Activity 1'!M$17:M$23,\"N/A\",0,1)","v":"N/A"},{"$f":"_xlfn.XLOOKUP($E6,'Competitive Activity 1'!$B$17:$B$23,'Competitive Activity 1'!N$17:N$23,\"N/A\",0,1)","v":"N/A"},{"$f":"_xlfn.XLOOKUP($E6,'Competitive Activity 1'!$B$17:$B$23,'Competitive Activity 1'!P$17:P$23,\"N/A\",0,1)","v":"N/A"},{"$f":"_xlfn.XLOOKUP($E6,'Competitive Activity 2'!$B$7:$B$13,'Competitive Activity 2'!A$7:A$13,\"No\",0)","v":"No"},{"$f":"_xlfn.XLOOKUP($E6,'Competitive Activity 2'!$B$7:$B$13,'Competitive Activity 2'!L$7:L$13,\"N/A\",0)","v":"N/A"},{"$f":"_xlfn.XLOOKUP($E6,'Competitive Activity 2'!$B$7:$B$13,'Competitive Activity 2'!M$7:M$13,\"N/A\",0)","v":"N/A"},{"$f":"_xlfn.XLOOKUP($E6,'Competitive Activity 2'!$B$7:$B$13,'Competitive Activity 2'!N$7:N$13,\"N/A\",0)","v":"N/A"},{"$f":"_xlfn.XLOOKUP($E6,'Competitive Activity 2'!$B$7:$B$13,'Competitive Activity 2'!O$7:O$13,\"N/A\",0)","v":"N/A"},{"$f":"_xlfn.XLOOKUP($E6,'Competitive Activity 2'!$B$7:$B$13,'Competitive Activity 2'!P$7:P$13,\"N/A\",0)","v":"N/A"},{"$f":"_xlfn.XLOOKUP($E6,'Competitive Activity 2'!$B$7:$B$13,'Competitive Activity 2'!Q$7:Q$13,\"N/A\",0)","v":"N/A"},{"$f":"_xlfn.XLOOKUP($E6,'Competitive Activity 2'!$B$7:$B$13,'Competitive Activity 2'!R$7:R$13,\"N/A\",0)","v":"N/A"},{"$f":"_xlfn.XLOOKUP($E6,'Competitive Activity 2'!$B$7:$B$13,'Competitive Activity 2'!S$7:S$13,\"N/A\",0)","v":"N/A"},{"$f":"_xlfn.XLOOKUP($E6,'Competitive Activity 2'!$B$7:$B$13,'Competitive Activity 2'!T$7:T$13,\"N/A\",0)","v":"N/A"},{"$f":"_xlfn.XLOOKUP($E6,'Competitive Activity 2'!$B$7:$B$13,'Competitive Activity 2'!U$7:U$13,\"N/A\",0)","v":"N/A"},{"$f":"_xlfn.XLOOKUP($E6,'Competitive Activity 2'!$B$17:$B$23,'Competitive Activity 2'!D$17:D$23,\"N/A\",0)","v":"N/A"},{"$f":"_xlfn.XLOOKUP($E6,'Competitive Activity 2'!$B$17:$B$23,'Competitive Activity 2'!E$17:E$23,\"N/A\",0)","v":"N/A"},{"$f":"_xlfn.XLOOKUP($E6,'Competitive Activity 2'!$B$17:$B$23,'Competitive Activity 2'!F$17:F$23,\"N/A\",0)","v":"N/A"},{"$f":"_xlfn.XLOOKUP($E6,'Competitive Activity 2'!$B$17:$B$23,'Competitive Activity 2'!G$17:G$23,\"N/A\",0)","v":"N/A"},{"$f":"_xlfn.XLOOKUP($E6,'Competitive Activity 2'!$B$17:$B$23,'Competitive Activity 2'!H$17:H$23,\"N/A\",0)","v":"N/A"},{"$f":"_xlfn.XLOOKUP($E6,'Competitive Activity 2'!$B$17:$B$23,'Competitive Activity 2'!I$17:I$23,\"N/A\",0)","v":"N/A"},{"$f":"_xlfn.XLOOKUP($E6,'Competitive Activity 2'!$B$17:$B$23,'Competitive Activity 2'!J$17:J$23,\"N/A\",0)","v":"N/A"},{"$f":"_xlfn.XLOOKUP($E6,'Competitive Activity 2'!$B$17:$B$23,'Competitive Activity 2'!K$17:K$23,\"N/A\",0)","v":"N/A"},{"$f":"_xlfn.XLOOKUP($E6,'Competitive Activity 2'!$B$17:$B$23,'Competitive Activity 2'!L$17:L$23,\"N/A\",0)","v":"N/A"},{"$f":"_xlfn.XLOOKUP($E6,'Competitive Activity 2'!$B$17:$B$23,'Competitive Activity 2'!M$17:M$23,\"N/A\",0)","v":"N/A"},{"$f":"_xlfn.XLOOKUP($E6,'Competitive Activity 2'!$B$17:$B$23,'Competitive Activity 2'!N$17:N$23,\"N/A\",0)","v":"N/A"},{"$f":"_xlfn.XLOOKUP($E6,'Competitive Activity 2'!$B$27:$B$33,'Competitive Activity 2'!D$27:D$33,\"N/A\",0)","v":"N/A"},{"$f":"_xlfn.XLOOKUP($E6,'Competitive Activity 2'!$B$27:$B$33,'Competitive Activity 2'!E$27:E$33,\"N/A\",0)","v":"N/A"},{"$f":"_xlfn.XLOOKUP($E6,'Competitive Activity 2'!$B$27:$B$33,'Competitive Activity 2'!F$27:F$33,\"N/A\",0)","v":"N/A"},{"$f":"_xlfn.XLOOKUP($E6,'Competitive Activity 2'!$B$27:$B$33,'Competitive Activity 2'!G$27:G$33,\"N/A\",0)","v":"N/A"},{"$f":"_xlfn.XLOOKUP($E6,'Competitive Activity 2'!$B$27:$B$33,'Competitive Activity 2'!H$27:H$33,\"N/A\",0)","v":"N/A"},{"$f":"_xlfn.XLOOKUP($E6,'Competitive Activity 2'!$B$27:$B$33,'Competitive Activity 2'!I$27:I$33,\"N/A\",0)","v":"N/A"},{"$f":"_xlfn.XLOOKUP($E6,'Competitive Activity 2'!$B$27:$B$33,'Competitive Activity 2'!J$27:J$33,\"N/A\",0)","v":"N/A"},{"$f":"_xlfn.XLOOKUP($E6,'Competitive Activity 2'!$B$27:$B$33,'Competitive Activity 2'!K$27:K$33,\"N/A\",0)","v":"N/A"},{"$f":"_xlfn.XLOOKUP($E6,'Competitive Activity 2'!$B$27:$B$33,'Competitive Activity 2'!M$27:M$33,\"N/A\",0)","v":"N/A"}]
[{"$f":"'1-Cover Sheet'!$C$8","v":"Select One"},{"$f":"'1-Cover Sheet'!$F$8","v":"Select One"},{"$f":"'Summary Sheet'!$D$8","v":0},{"$f":"'Summary Sheet'!$D$10","v":0},{"$f":"'Drop Down Box'!B171","v":0},{"$f":"'Drop Down Box'!C171","v":0},{"$f":"'Drop Down Box'!D171","v":"Select One"},{"$f":"_xlfn.XLOOKUP(E7,'Drop Down Box'!$B$166:$B$249,'Drop Down Box'!$A$166:$A$249,\"Unknown\",0)","v":"Activity 1"},{"$f":"_xlfn.XLOOKUP($E7,'Activity 1'!$B$17:$B$23,'Activity 1'!$N$17:$N$23,\"\",0)","v":""},{"$f":"_xlfn.XLOOKUP($E7,'Activity 1'!$B$17:$B$23,'Activity 1'!$P$17:$P$23,\"N/A\",0)","v":"N/A"},{"$f":"_xlfn.XLOOKUP($E7,'Activity 1'!$B$7:$B$13,'Activity 1'!E$7:E$13,0,0)","v":0},{"$f":"_xlfn.XLOOKUP($E7,'Activity 1'!$B$7:$B$13,'Activity 1'!F$7:F$13,0,0)","v":"00:00:00"},{"$f":"_xlfn.XLOOKUP($E7,'Activity 1'!$B$7:$B$13,'Activity 1'!G$7:G$13,0,0)","v":0},{"$f":"_xlfn.XLOOKUP($E7,'Activity 1'!$B$7:$B$13,'Activity 1'!$A$7:$A$13,\"No\",0,1)","v":"No"},{"$f":"_xlfn.XLOOKUP($E7,'Activity 1'!$B$7:$B$13,'Activity 1'!$H$7:$H$13,\"N/A\",0,1)","v":"N/A"},{"$f":"_xlfn.XLOOKUP($E7,'Activity 1'!$B$7:$B$13,'Activity 1'!I$7:I$13,\"N/A\",0,1)","v":"N/A"},{"$f":"_xlfn.XLOOKUP($E7,'Activity 1'!$B$7:$B$13,'Activity 1'!J$7:J$13,\"N/A\",0,1)","v":"N/A"},{"$f":"_xlfn.XLOOKUP($E7,'Activity 1'!$B$7:$B$13,'Activity 1'!K$7:K$13,\"N/A\",0,1)","v":"N/A"},{"$f":"_xlfn.XLOOKUP($E7,'Activity 1'!$B$7:$B$13,'Activity 1'!L$7:L$13,\"N/A\",0,1)","v":"N/A"},{"$f":"_xlfn.XLOOKUP($E7,'Activity 1'!$B$7:$B$13,'Activity 1'!M$7:M$13,\"N/A\",0,1)","v":"N/A"},{"$f":"_xlfn.XLOOKUP($E7,'Activity 1'!$B$7:$B$13,'Activity 1'!N$7:N$13,\"N/A\",0,1)","v":"N/A"},0,{"$f":"_xlfn.XLOOKUP($E7,'Activity 1'!$B$7:$B$13,'Activity 1'!O$7:O$13,\"N/A\",0,1)","v":"N/A"},{"$f":"_xlfn.XLOOKUP($E7,'Activity 1'!$B$7:$B$13,'Activity 1'!P$7:P$13,\"N/A\",0,1)","v":"N/A"},{"$f":"_xlfn.XLOOKUP($E7,'Activity 1'!$B$7:$B$13,'Activity 1'!Q$7:Q$13,\"N/A\",0,1)","v":"N/A"},{"$f":"_xlfn.XLOOKUP($E7,'Activity 1'!$B$7:$B$13,'Activity 1'!R$7:R$13,\"N/A\",0,1)","v":"N/A"},{"$f":"_xlfn.XLOOKUP($E7,'Activity 1'!$B$7:$B$13,'Activity 1'!S$7:S$13,\"N/A\",0,1)","v":"N/A"},{"$f":"_xlfn.XLOOKUP($E7,'Activity 1'!$B$7:$B$13,'Activity 1'!T$7:T$13,\"N/A\",0,1)","v":"N/A"},{"$f":"_xlfn.XLOOKUP($E7,'Activity 1'!$B$7:$B$13,'Activity 1'!U$7:U$13,\"N/A\",0,1)","v":"N/A"},{"$f":"_xlfn.XLOOKUP($E7,'Activity 1'!$B$7:$B$13,'Activity 1'!V$7:V$13,\"N/A\",0,1)","v":"N/A"},{"$f":"_xlfn.XLOOKUP($E7,'Activity 1'!$B$17:$B$23,'Activity 1'!C$17:C$23,\"N/A\",0,1)","v":"N/A"},{"$f":"_xlfn.XLOOKUP($E7,'Activity 1'!$B$17:$B$23,'Activity 1'!D$17:D$23,\"N/A\",0,1)","v":"N/A"},{"$f":"_xlfn.XLOOKUP($E7,'Activity 1'!$B$17:$B$23,'Activity 1'!E$17:E$23,\"N/A\",0,1)","v":"N/A"},{"$f":"_xlfn.XLOOKUP($E7,'Activity 1'!$B$17:$B$23,'Activity 1'!F$17:F$23,\"N/A\",0,1)","v":"N/A"},{"$f":"_xlfn.XLOOKUP($E7,'Activity 1'!$B$17:$B$23,'Activity 1'!G$17:G$23,\"N/A\",0,1)","v":"N/A"},{"$f":"_xlfn.XLOOKUP($E7,'Activity 1'!$B$17:$B$23,'Activity 1'!H$17:H$23,\"N/A\",0,1)","v":"N/A"},{"$f":"_xlfn.XLOOKUP($E7,'Activity 1'!$B$17:$B$23,'Activity 1'!I$17:I$23,\"N/A\",0,1)","v":"N/A"},{"$f":"_xlfn.XLOOKUP($E7,'Activity 1'!$B$17:$B$23,'Activity 1'!J$17:J$23,\"N/A\",0,1)","v":"N/A"},{"$f":"_xlfn.XLOOKUP($E7,'Activity 1'!$B$17:$B$23,'Activity 1'!K$17:K$23,\"N/A\",0,1)","v":"N/A"},{"$f":"_xlfn.XLOOKUP($E7,'Activity 1'!$B$17:$B$23,'Activity 1'!L$17:L$23,\"N/A\",0,1)","v":"N/A"},{"$f":"_xlfn.XLOOKUP($E7,'Activity 1'!$B$17:$B$23,'Activity 1'!M$17:M$23,\"N/A\",0,1)","v":"N/A"},{"$f":"_xlfn.XLOOKUP($E7,'Activity 1'!$B$17:$B$23,'Activity 1'!O$17:O$23,\"N/A\",0,1)","v":"N/A"},{"$f":"_xlfn.XLOOKUP($E7,'Activity 1'!$B$17:$B$23,'Activity 1'!Q$17:Q$23,\"N/A\",0,1)","v":"N/A"},{"$f":"_xlfn.XLOOKUP($E7,'Activity 2'!$B$7:$B$13,'Activity 2'!$A$7:$A$13,\"No\",0,1)","v":"No"},{"$f":"_xlfn.XLOOKUP($E7,'Activity 2'!B$7:B$13,'Activity 2'!H$7:H$13,\"N/A\",0)","v":"N/A"},{"$f":"_xlfn.XLOOKUP($E7,'Activity 2'!C$7:C$13,'Activity 2'!I$7:I$13,\"N/A\",0)","v":"N/A"},{"$f":"_xlfn.XLOOKUP($E7,'Activity 2'!D$7:D$13,'Activity 2'!J$7:J$13,\"N/A\",0)","v":"N/A"},{"$f":"_xlfn.XLOOKUP($E7,'Activity 2'!E$7:E$13,'Activity 2'!K$7:K$13,\"N/A\",0)","v":"N/A"},{"$f":"_xlfn.XLOOKUP($E7,'Activity 2'!F$7:F$13,'Activity 2'!L$7:L$13,\"N/A\",0)","v":"N/A"},{"$f":"_xlfn.XLOOKUP($E7,'Activity 2'!G$7:G$13,'Activity 2'!M$7:M$13,\"N/A\",0)","v":"N/A"},{"$f":"_xlfn.XLOOKUP($E7,'Activity 2'!H$7:H$13,'Activity 2'!N$7:N$13,\"N/A\",0)","v":"N/A"},{"$f":"_xlfn.XLOOKUP($E7,'Activity 2'!I$7:I$13,'Activity 2'!O$7:O$13,\"N/A\",0)","v":"N/A"},{"$f":"_xlfn.XLOOKUP($E7,'Activity 2'!J$7:J$13,'Activity 2'!P$7:P$13,\"N/A\",0)","v":"N/A"},{"$f":"_xlfn.XLOOKUP($E7,'Activity 2'!K$7:K$13,'Activity 2'!Q$7:Q$13,\"N/A\",0)","v":"N/A"},{"$f":"_xlfn.XLOOKUP($E7,'Activity 2'!L$7:L$13,'Activity 2'!R$7:R$13,\"N/A\",0)","v":"N/A"},{"$f":"_xlfn.XLOOKUP($E7,'Activity 2'!M$7:M$13,'Activity 2'!S$7:S$13,\"N/A\",0)","v":"N/A"},{"$f":"_xlfn.XLOOKUP($E7,'Activity 2'!N$7:N$13,'Activity 2'!T$7:T$13,\"N/A\",0)","v":"N/A"},{"$f":"_xlfn.XLOOKUP($E7,'Activity 2'!O$7:O$13,'Activity 2'!U$7:U$13,\"N/A\",0)","v":"N/A"},{"$f":"_xlfn.XLOOKUP($E7,'Activity 2'!P$7:P$13,'Activity 2'!V$7:V$13,\"N/A\",0)","v":"N/A"},{"$f":"_xlfn.XLOOKUP($E7,'Activity 2'!$B$17:$B$23,'Activity 2'!C$17:C$23,\"N/A\",0,1)","v":"N/A"},{"$f":"_xlfn.XLOOKUP($E7,'Activity 2'!$B$17:$B$23,'Activity 2'!D$17:D$23,\"N/A\",0,1)","v":"N/A"},{"$f":"_xlfn.XLOOKUP($E7,'Activity 2'!$B$17:$B$23,'Activity 2'!E$17:E$23,\"N/A\",0,1)","v":"N/A"},{"$f":"_xlfn.XLOOKUP($E7,'Activity 2'!$B$17:$B$23,'Activity 2'!F$17:F$23,\"N/A\",0,1)","v":"N/A"},{"$f":"_xlfn.XLOOKUP($E7,'Activity 2'!$B$17:$B$23,'Activity 2'!G$17:G$23,\"N/A\",0,1)","v":"N/A"},{"$f":"_xlfn.XLOOKUP($E7,'Activity 2'!$B$17:$B$23,'Activity 2'!H$17:H$23,\"N/A\",0,1)","v":"N/A"},{"$f":"_xlfn.XLOOKUP($E7,'Activity 2'!$B$17:$B$23,'Activity 2'!I$17:I$23,\"N/A\",0,1)","v":"N/A"},{"$f":"_xlfn.XLOOKUP($E7,'Activity 2'!$B$17:$B$23,'Activity 2'!J$17:J$23,\"N/A\",0,1)","v":"N/A"},{"$f":"_xlfn.XLOOKUP($E7,'Activity 2'!$B$17:$B$23,'Activity 2'!K$17:K$23,\"N/A\",0,1)","v":"N/A"},{"$f":"_xlfn.XLOOKUP($E7,'Activity 2'!$B$17:$B$23,'Activity 2'!L$17:L$23,\"N/A\",0,1)","v":"N/A"},{"$f":"_xlfn.XLOOKUP($E7,'Activity 2'!$B$17:$B$23,'Activity 2'!M$17:M$23,\"N/A\",0,1)","v":"N/A"},{"$f":"_xlfn.XLOOKUP($E7,'Activity 2'!$B$17:$B$23,'Activity 2'!O$17:O$23,\"N/A\",0,1)","v":"N/A"},{"$f":"_xlfn.XLOOKUP($E7,'Activity 2'!$B$17:$B$23,'Activity 2'!Q$17:Q$23,\"N/A\",0,1)","v":"N/A"},{"$f":"_xlfn.XLOOKUP($E7,'Activity 3'!$B$8:$B$14,'Activity 3'!A$8:A$14,\"No\",0,1)","v":"No"},{"$f":"_xlfn.XLOOKUP($E7,'Activity 3'!$B$8:$B$14,'Activity 3'!K$8:K$14,\"N/A\",0,1)","v":"N/A"},{"$f":"_xlfn.XLOOKUP($E7,'Activity 3'!$B$8:$B$14,'Activity 3'!L$8:L$14,\"N/A\",0,1)","v":"N/A"},{"$f":"_xlfn.XLOOKUP($E7,'Activity 3'!$B$8:$B$14,'Activity 3'!M$8:M$14,\"N/A\",0,1)","v":"N/A"},{"$f":"_xlfn.XLOOKUP($E7,'Activity 3'!$B$8:$B$14,'Activity 3'!N$8:N$14,\"N/A\",0,1)","v":"N/A"},{"$f":"_xlfn.XLOOKUP($E7,'Activity 3'!$B$8:$B$14,'Activity 3'!O$8:O$14,\"N/A\",0,1)","v":"N/A"},{"$f":"_xlfn.XLOOKUP($E7,'Activity 3'!$B$8:$B$14,'Activity 3'!R$8:R$14,\"N/A\",0,1)","v":"N/A"},{"$f":"_xlfn.XLOOKUP($E7,'Activity 4'!$B$8:$B$14,'Activity 4'!$A$8:$A$14,\"No\",0,1)","v":"No"},{"$f":"_xlfn.XLOOKUP($E7,'Activity 4'!$B$8:$B$14,'Activity 4'!L$8:L$14,\"N/A\",0,1)","v":"N/A"},{"$f":"_xlfn.XLOOKUP($E7,'Activity 4'!$B$8:$B$14,'Activity 4'!D$8:D$14,\"N/A\",0,1)","v":"N/A"},{"$f":"_xlfn.XLOOKUP($E7,'Activity 4'!$B$8:$B$14,'Activity 4'!G$8:G$14,\"N/A\",0,1)","v":"N/A"},{"$f":"_xlfn.XLOOKUP($E7,'Activity 5'!$B$8:$B$14,'Activity 5'!$A$8:$A$14,\"No\",0,1)","v":"No"},{"$f":"_xlfn.XLOOKUP($E7,'Activity 5'!$B$8:$B$14,'Activity 5'!J$8:J$14,\"N/A\",0,1)","v":"N/A"},{"$f":"_xlfn.XLOOKUP($E7,'Activity 5'!$B$8:$B$14,'Activity 5'!K$8:K$14,\"N/A\",0,1)","v":"N/A"},{"$f":"_xlfn.XLOOKUP($E7,'Activity 5'!$B$8:$B$14,'Activity 5'!N$8:N$14,\"N/A\",0,1)","v":"N/A"},{"$f":"_xlfn.XLOOKUP($E7,'Activity 5'!$B$8:$B$14,'Activity 5'!O$8:O$14,\"N/A\",0,1)","v":"N/A"},{"$f":"_xlfn.XLOOKUP($E7,'Activity 5'!$B$8:$B$14,'Activity 5'!P$8:P$14,\"N/A\",0,1)","v":"N/A"},{"$f":"_xlfn.XLOOKUP($E7,'Activity 5'!$B$8:$B$14,'Activity 5'!Q$8:Q$14,\"N/A\",0,1)","v":"N/A"},{"$f":"_xlfn.XLOOKUP($E7,'Activity 5'!$B$8:$B$14,'Activity 5'!R$8:R$14,\"N/A\",0,1)","v":"N/A"},{"$f":"_xlfn.XLOOKUP($E7,'Activity 6'!$B$7:$B$13,'Activity 6'!A$7:A$13,\"No\",0,1)","v":"No"},{"$f":"_xlfn.XLOOKUP($E7,'Activity 6'!$B$7:$B$13,'Activity 6'!K$7:K$13,\"N/A\",0,1)","v":"N/A"},{"$f":"_xlfn.XLOOKUP($E7,'Activity 6'!$B$7:$B$13,'Activity 6'!L$7:L$13,\"N/A\",0,1)","v":"N/A"},{"$f":"_xlfn.XLOOKUP($E7,'Activity 6'!$B$7:$B$13,'Activity 6'!M$7:M$13,\"N/A\",0,1)","v":"N/A"},{"$f":"_xlfn.XLOOKUP($E7,'Activity 6'!$B$7:$B$13,'Activity 6'!N$7:N$13,\"N/A\",0,1)","v":"N/A"},{"$f":"_xlfn.XLOOKUP($E7,'Activity 6'!$B$7:$B$13,'Activity 6'!O$7:O$13,\"N/A\",0,1)","v":"N/A"},{"$f":"_xlfn.XLOOKUP($E7,'Activity 6'!$B$7:$B$13,'Activity 6'!P$7:P$13,\"N/A\",0,1)","v":"N/A"},{"$f":"_xlfn.XLOOKUP($E7,'Activity 6'!$B$7:$B$13,'Activity 6'!Q$7:Q$13,\"N/A\",0,1)","v":"N/A"},{"$f":"_xlfn.XLOOKUP($E7,'Activity 6'!$B$7:$B$13,'Activity 6'!R$7:R$13,\"N/A\",0,1)","v":"N/A"},{"$f":"_xlfn.XLOOKUP($E7,'Activity 6'!$B$7:$B$13,'Activity 6'!S$7:S$13,\"N/A\",0,1)","v":"N/A"},{"$f":"_xlfn.XLOOKUP($E7,'Activity 6'!$B$7:$B$13,'Activity 6'!T$7:T$13,\"N/A\",0,1)","v":"N/A"},{"$f":"_xlfn.XLOOKUP($E7,'Activity 6'!$B$7:$B$13,'Activity 6'!U$7:U$13,\"N/A\",0,1)","v":"N/A"},{"$f":"_xlfn.XLOOKUP($E7,'Activity 6'!$B$22:$B$28,'Activity 6'!C$22:C$28,\"N/A\",0,1)","v":"N/A"},{"$f":"_xlfn.XLOOKUP($E7,'Activity 6'!$B$22:$B$28,'Activity 6'!D$22:D$28,\"N/A\",0,1)","v":"N/A"},{"$f":"_xlfn.XLOOKUP($E7,'Activity 6'!$B$22:$B$28,'Activity 6'!E$22:E$28,\"N/A\",0,1)","v":"N/A"},{"$f":"_xlfn.XLOOKUP($E7,'Activity 6'!$B$22:$B$28,'Activity 6'!F$22:F$28,\"N/A\",0,1)","v":"N/A"},{"$f":"_xlfn.XLOOKUP($E7,'Activity 6'!$B$22:$B$28,'Activity 6'!G$22:G$28,\"N/A\",0,1)","v":"N/A"},{"$f":"_xlfn.XLOOKUP($E7,'Activity 6'!$B$22:$B$28,'Activity 6'!H$22:H$28,\"N/A\",0,1)","v":"N/A"},{"$f":"_xlfn.XLOOKUP($E7,'Activity 6'!$B$22:$B$28,'Activity 6'!I$22:I$28,\"N/A\",0,1)","v":"N/A"},{"$f":"_xlfn.XLOOKUP($E7,'Activity 6'!$B$22:$B$28,'Activity 6'!J$22:J$28,\"N/A\",0,1)","v":"N/A"},{"$f":"_xlfn.XLOOKUP($E7,'Activity 6'!$B$22:$B$28,'Activity 6'!K$22:K$28,\"N/A\",0,1)","v":"N/A"},{"$f":"_xlfn.XLOOKUP($E7,'Activity 6'!$B$22:$B$28,'Activity 6'!L$22:L$28,\"N/A\",0,1)","v":"N/A"},{"$f":"_xlfn.XLOOKUP($E7,'Activity 6'!$B$22:$B$28,'Activity 6'!M$22:M$28,\"N/A\",0,1)","v":"N/A"},{"$f":"_xlfn.XLOOKUP($E7,'Activity 6'!$B$22:$B$28,'Activity 6'!N$22:N$28,\"N/A\",0,1)","v":"N/A"},{"$f":"_xlfn.XLOOKUP($E7,'Activity 6'!$B$32:$B$38,'Activity 6'!C$32:C$38,\"N/A\",0,1)","v":"N/A"},{"$f":"_xlfn.XLOOKUP($E7,'Activity 6'!$B$32:$B$38,'Activity 6'!D$32:D$38,\"N/A\",0,1)","v":"N/A"},{"$f":"_xlfn.XLOOKUP($E7,'Activity 6'!$B$32:$B$38,'Activity 6'!E$32:E$38,\"N/A\",0,1)","v":"N/A"},{"$f":"_xlfn.XLOOKUP($E7,'Activity 6'!$B$32:$B$38,'Activity 6'!F$32:F$38,\"N/A\",0,1)","v":"N/A"},{"$f":"_xlfn.XLOOKUP($E7,'Activity 6'!$B$32:$B$38,'Activity 6'!G$32:G$38,\"N/A\",0,1)","v":"N/A"},{"$f":"_xlfn.XLOOKUP($E7,'Activity 6'!$B$32:$B$38,'Activity 6'!H$32:H$38,\"N/A\",0,1)","v":"N/A"},{"$f":"_xlfn.XLOOKUP($E7,'Activity 6'!$B$32:$B$38,'Activity 6'!I$32:I$38,\"N/A\",0,1)","v":"N/A"},{"$f":"_xlfn.XLOOKUP($E7,'Activity 6'!$B$32:$B$38,'Activity 6'!J$32:J$38,\"N/A\",0,1)","v":"N/A"},{"$f":"_xlfn.XLOOKUP($E7,'Activity 6'!$B$32:$B$38,'Activity 6'!K$32:K$38,\"N/A\",0,1)","v":"N/A"},{"$f":"_xlfn.XLOOKUP($E7,'Activity 6'!$B$32:$B$38,'Activity 6'!M$32:M$38,\"N/A\",0,1)","v":"N/A"},{"$f":"_xlfn.XLOOKUP($E7,'Activity 7'!$B$7:$B$13,'Activity 7'!$A$7:$A$13,\"No\",0,1)","v":"No"},{"$f":"_xlfn.XLOOKUP($E7,'Activity 7'!$B$7:$B$13,'Activity 7'!M$7:M$13,\"N/A\",0,1)","v":"N/A"},{"$f":"_xlfn.XLOOKUP($E7,'Activity 7'!$B$7:$B$13,'Activity 7'!K$7:K$13,\"N/A\",0,1)","v":"N/A"},{"$f":"_xlfn.XLOOKUP($E7,'Activity 7'!$B$7:$B$13,'Activity 7'!N$7:N$13,\"N/A\",0,1)","v":"N/A"},{"$f":"_xlfn.XLOOKUP($E7,'Activity 7'!$B$7:$B$13,'Activity 7'!O$7:O$13,\"N/A\",0,1)","v":"N/A"},{"$f":"_xlfn.XLOOKUP($E7,'Activity 7'!$B$7:$B$13,'Activity 7'!P$7:P$13,\"N/A\",0,1)","v":"N/A"},{"$f":"_xlfn.XLOOKUP($E7,'Activity 7'!$B$7:$B$13,'Activity 7'!Q$7:Q$13,\"N/A\",0,1)","v":"N/A"},{"$f":"_xlfn.XLOOKUP($E7,'Activity 7'!$B$7:$B$13,'Activity 7'!R$7:R$13,\"N/A\",0,1)","v":"N/A"},{"$f":"_xlfn.XLOOKUP($E7,'Activity 7'!$B$7:$B$13,'Activity 7'!S$7:S$13,\"N/A\",0,1)","v":"N/A"},{"$f":"_xlfn.XLOOKUP($E7,'Activity 7'!$B$7:$B$13,'Activity 7'!T$7:T$13,\"N/A\",0,1)","v":"N/A"},{"$f":"_xlfn.XLOOKUP($E7,'Activity 7'!$B$7:$B$13,'Activity 7'!U$7:U$13,\"N/A\",0,1)","v":"N/A"},{"$f":"_xlfn.XLOOKUP($E7,'Activity 7'!$B$7:$B$13,'Activity 7'!V$7:V$13,\"N/A\",0,1)","v":"N/A"},{"$f":"_xlfn.XLOOKUP($E7,'Activity 7'!$B$17:$B$23,'Activity 7'!E$17:E$23,\"N/A\",0,1)","v":"N/A"},{"$f":"_xlfn.XLOOKUP($E7,'Activity 7'!$B$17:$B$23,'Activity 7'!G$17:G$23,\"N/A\",0,1)","v":"N/A"},{"$f":"_xlfn.XLOOKUP($E7,'Activity 7'!$B$17:$B$23,'Activity 7'!I$17:I$23,\"N/A\",0,1)","v":"N/A"},{"$f":"_xlfn.XLOOKUP($E7,'Activity 7'!$B$17:$B$23,'Activity 7'!J$17:J$23,\"N/A\",0,1)","v":"N/A"},{"$f":"_xlfn.XLOOKUP($E7,'Activity 7'!$B$17:$B$23,'Activity 7'!K$17:K$23,\"N/A\",0,1)","v":"N/A"},{"$f":"_xlfn.XLOOKUP($E7,'Activity 7'!$B$17:$B$23,'Activity 7'!L$17:L$23,\"N/A\",0,1)","v":"N/A"},{"$f":"_xlfn.XLOOKUP($E7,'Activity 7'!$B$17:$B$23,'Activity 7'!M$17:M$23,\"N/A\",0,1)","v":"N/A"},{"$f":"_xlfn.XLOOKUP($E7,'Activity 7'!$B$17:$B$23,'Activity 7'!N$17:N$23,\"N/A\",0,1)","v":"N/A"},{"$f":"_xlfn.XLOOKUP($E7,'Activity 7'!$B$17:$B$23,'Activity 7'!P$17:P$23,\"N/A\",0,1)","v":"N/A"},{"$f":"_xlfn.XLOOKUP($E7,'Activity 8'!$B$7:$B$13,'Activity 8'!A$7:A$13,\"No\",0,1)","v":"No"},{"$f":"_xlfn.XLOOKUP($E7,'Activity 8'!$B$7:$B$13,'Activity 8'!I$7:I$13,\"N/A\",0,1)","v":"N/A"},{"$f":"_xlfn.XLOOKUP($E7,'Activity 8'!$B$7:$B$13,'Activity 8'!J$7:J$13,\"N/A\",0,1)","v":"N/A"},{"$f":"_xlfn.XLOOKUP($E7,'Activity 8'!$B$7:$B$13,'Activity 8'!K$7:K$13,\"N/A\",0,1)","v":"N/A"},{"$f":"_xlfn.XLOOKUP($E7,'Activity 8'!$B$7:$B$13,'Activity 8'!L$7:L$13,\"N/A\",0,1)","v":"N/A"},{"$f":"_xlfn.XLOOKUP($E7,'Activity 8'!$B$7:$B$13,'Activity 8'!M$7:M$13,\"N/A\",0,1)","v":"N/A"},{"$f":"_xlfn.XLOOKUP($E7,'Activity 8'!$B$7:$B$13,'Activity 8'!N$7:N$13,\"N/A\",0,1)","v":"N/A"},{"$f":"_xlfn.XLOOKUP($E7,'Activity 8'!$B$7:$B$13,'Activity 8'!O$7:O$13,\"N/A\",0,1)","v":"N/A"},{"$f":"_xlfn.XLOOKUP($E7,'Activity 8'!$B$7:$B$13,'Activity 8'!P$7:P$13,\"N/A\",0,1)","v":"N/A"},{"$f":"_xlfn.XLOOKUP($E7,'Activity 8'!$B$7:$B$13,'Activity 8'!Q$7:Q$13,\"N/A\",0,1)","v":"N/A"},{"$f":"_xlfn.XLOOKUP($E7,'Activity 8'!$B$7:$B$13,'Activity 8'!R$7:R$13,\"N/A\",0,1)","v":"N/A"},{"$f":"_xlfn.XLOOKUP($E7,'Activity 8'!$B$7:$B$13,'Activity 8'!S$7:S$13,\"N/A\",0,1)","v":"N/A"},{"$f":"_xlfn.XLOOKUP($E7,'Activity 8'!$B$7:$B$13,'Activity 8'!T$7:T$13,\"N/A\",0,1)","v":"N/A"},{"$f":"_xlfn.XLOOKUP($E7,'Activity 8'!$B$7:$B$13,'Activity 8'!U$7:U$13,\"N/A\",0,1)","v":"N/A"},{"$f":"_xlfn.XLOOKUP($E7,'Activity 8'!$B$7:$B$13,'Activity 8'!V$7:V$13,\"N/A\",0,1)","v":"N/A"},{"$f":"_xlfn.XLOOKUP($E7,'Activity 8'!$B$17:$B$23,'Activity 8'!D$17:D$23,\"N/A\",0,1)","v":"N/A"},{"$f":"_xlfn.XLOOKUP($E7,'Activity 8'!$B$17:$B$23,'Activity 8'!E$17:E$23,\"N/A\",0,1)","v":"N/A"},{"$f":"_xlfn.XLOOKUP($E7,'Activity 8'!$B$17:$B$23,'Activity 8'!F$17:F$23,\"N/A\",0,1)","v":"N/A"},{"$f":"_xlfn.XLOOKUP($E7,'Activity 8'!$B$17:$B$23,'Activity 8'!G$17:G$23,\"N/A\",0,1)","v":"N/A"},{"$f":"_xlfn.XLOOKUP($E7,'Activity 8'!$B$17:$B$23,'Activity 8'!H$17:H$23,\"N/A\",0,1)","v":"N/A"},{"$f":"_xlfn.XLOOKUP($E7,'Activity 8'!$B$17:$B$23,'Activity 8'!I$17:I$23,\"N/A\",0,1)","v":"N/A"},{"$f":"_xlfn.XLOOKUP($E7,'Activity 8'!$B$17:$B$23,'Activity 8'!J$17:J$23,\"N/A\",0,1)","v":"N/A"},{"$f":"_xlfn.XLOOKUP($E7,'Activity 8'!$B$17:$B$23,'Activity 8'!K$17:K$23,\"N/A\",0,1)","v":"N/A"},{"$f":"_xlfn.XLOOKUP($E7,'Activity 8'!$B$17:$B$23,'Activity 8'!L$17:L$23,\"N/A\",0,1)","v":"N/A"},{"$f":"_xlfn.XLOOKUP($E7,'Activity 8'!$B$17:$B$23,'Activity 8'!M$17:M$23,\"N/A\",0,1)","v":"N/A"},{"$f":"_xlfn.XLOOKUP($E7,'Activity 8'!$B$17:$B$23,'Activity 8'!N$17:N$23,\"N/A\",0,1)","v":"N/A"},{"$f":"_xlfn.XLOOKUP($E7,'Activity 8'!$B$17:$B$23,'Activity 8'!P$17:P$23,\"N/A\",0,1)","v":"N/A"},{"$f":"_xlfn.XLOOKUP(E7,'Activity 9'!$B$7:$B$13,'Activity 9'!$A$7:$A$13,\"No\",0,1)","v":"No"},{"$f":"_xlfn.XLOOKUP($E7,'Activity 9'!$B$7:$B$13,'Activity 9'!J$7:J$13,\"N/A\",0,1)","v":"N/A"},{"$f":"_xlfn.XLOOKUP($E7,'Activity 9'!$B$7:$B$13,'Activity 9'!K$7:K$13,\"N/A\",0,1)","v":"N/A"},{"$f":"_xlfn.XLOOKUP($E7,'Activity 9'!$B$7:$B$13,'Activity 9'!L$7:L$13,\"N/A\",0,1)","v":"N/A"},{"$f":"_xlfn.XLOOKUP($E7,'Activity 9'!$B$7:$B$13,'Activity 9'!M$7:M$13,\"N/A\",0,1)","v":"N/A"},{"$f":"_xlfn.XLOOKUP($E7,'Activity 9'!$B$7:$B$13,'Activity 9'!N$7:N$13,\"N/A\",0,1)","v":"N/A"},{"$f":"_xlfn.XLOOKUP($E7,'Activity 9'!$B$7:$B$13,'Activity 9'!O$7:O$13,\"N/A\",0,1)","v":"N/A"},{"$f":"_xlfn.XLOOKUP($E7,'Activity 9'!$B$7:$B$13,'Activity 9'!P$7:P$13,\"N/A\",0,1)","v":"N/A"},{"$f":"_xlfn.XLOOKUP($E7,'Activity 9'!$B$7:$B$13,'Activity 9'!Q$7:Q$13,\"N/A\",0,1)","v":"N/A"},{"$f":"_xlfn.XLOOKUP($E7,'Activity 9'!$B$7:$B$13,'Activity 9'!R$7:R$13,\"N/A\",0,1)","v":"N/A"},{"$f":"_xlfn.XLOOKUP($E7,'Activity 9'!$B$7:$B$13,'Activity 9'!S$7:S$13,\"N/A\",0,1)","v":"N/A"},{"$f":"_xlfn.XLOOKUP($E7,'Activity 9'!$B$7:$B$13,'Activity 9'!T$7:T$13,\"N/A\",0,1)","v":"N/A"},{"$f":"_xlfn.XLOOKUP($E7,'Activity 9'!$B$17:$B$23,'Activity 9'!E$17:E$23,\"N/A\",0,1)","v":"N/A"},{"$f":"_xlfn.XLOOKUP($E7,'Activity 9'!$B$17:$B$23,'Activity 9'!F$17:F$23,\"N/A\",0,1)","v":"N/A"},{"$f":"_xlfn.XLOOKUP($E7,'Activity 9'!$B$17:$B$23,'Activity 9'!G$17:G$23,\"N/A\",0,1)","v":"N/A"},{"$f":"_xlfn.XLOOKUP($E7,'Activity 9'!$B$17:$B$23,'Activity 9'!H$17:H$23,\"N/A\",0,1)","v":"N/A"},{"$f":"_xlfn.XLOOKUP($E7,'Activity 9'!$B$17:$B$23,'Activity 9'!I$17:I$23,\"N/A\",0,1)","v":"N/A"},{"$f":"_xlfn.XLOOKUP($E7,'Activity 9'!$B$17:$B$23,'Activity 9'!J$17:J$23,\"N/A\",0,1)","v":"N/A"},{"$f":"_xlfn.XLOOKUP($E7,'Activity 9'!$B$17:$B$23,'Activity 9'!K$17:K$23,\"N/A\",0,1)","v":"N/A"},{"$f":"_xlfn.XLOOKUP($E7,'Activity 9'!$B$17:$B$23,'Activity 9'!L$17:L$23,\"N/A\",0,1)","v":"N/A"},{"$f":"_xlfn.XLOOKUP($E7,'Activity 9'!$B$17:$B$23,'Activity 9'!N$17:N$23,\"N/A\",0,1)","v":"N/A"},{"$f":"_xlfn.XLOOKUP($E7,'Activity 9'!$B$17:$B$23,'Activity 9'!O$17:O$23,\"N/A\",0,1)","v":"N/A"},{"$f":"_xlfn.XLOOKUP($E7,'Activity 9'!$B$17:$B$23,'Activity 9'!Q$17:Q$23,\"N/A\",0,1)","v":"N/A"},{"$f":"_xlfn.XLOOKUP($E7,'Activity 10'!$B$7:$B$13,'Activity 10'!A$7:A$13,\"No\",0,1)","v":"No"},{"$f":"_xlfn.XLOOKUP($E7,'Activity 10'!$B$7:$B$13,'Activity 10'!J$7:J$13,\"N/A\",0,1)","v":"N/A"},{"$f":"_xlfn.XLOOKUP($E7,'Activity 10'!$B$7:$B$13,'Activity 10'!K$7:K$13,\"N/A\",0,1)","v":"N/A"},{"$f":"_xlfn.XLOOKUP($E7,'Activity 10'!$B$7:$B$13,'Activity 10'!L$7:L$13,\"N/A\",0,1)","v":"N/A"},{"$f":"_xlfn.XLOOKUP($E7,'Activity 10'!$B$7:$B$13,'Activity 10'!M$7:M$13,\"N/A\",0,1)","v":"N/A"},{"$f":"_xlfn.XLOOKUP($E7,'Activity 10'!$B$7:$B$13,'Activity 10'!N$7:N$13,\"N/A\",0,1)","v":"N/A"},{"$f":"_xlfn.XLOOKUP($E7,'Activity 10'!$B$7:$B$13,'Activity 10'!O$7:O$13,\"N/A\",0,1)","v":"N/A"},{"$f":"_xlfn.XLOOKUP($E7,'Activity 10'!$B$7:$B$13,'Activity 10'!P$7:P$13,\"N/A\",0,1)","v":"N/A"},{"$f":"_xlfn.XLOOKUP($E7,'Activity 10'!$B$7:$B$13,'Activity 10'!Q$7:Q$13,\"N/A\",0,1)","v":"N/A"},{"$f":"_xlfn.XLOOKUP($E7,'Activity 10'!$B$7:$B$13,'Activity 10'!R$7:R$13,\"N/A\",0,1)","v":"N/A"},{"$f":"_xlfn.XLOOKUP($E7,'Activity 10'!$B$7:$B$13,'Activity 10'!S$7:S$13,\"N/A\",0,1)","v":"N/A"},{"$f":"_xlfn.XLOOKUP($E7,'Activity 10'!$B$7:$B$13,'Activity 10'!T$7:T$13,\"N/A\",0,1)","v":"N/A"},{"$f":"_xlfn.XLOOKUP($E7,'Activity 10'!$B$7:$B$13,'Activity 10'!U$7:U$13,\"N/A\",0,1)","v":"N/A"},{"$f":"_xlfn.XLOOKUP($E7,'Activity 10'!$B$7:$B$13,'Activity 10'!V$7:V$13,\"N/A\",0,1)","v":"N/A"},{"$f":"_xlfn.XLOOKUP($E7,'Activity 10'!$B$17:$B$23,'Activity 10'!E$17:E$23,\"N/A\",0,1)","v":"N/A"},{"$f":"_xlfn.XLOOKUP($E7,'Activity 10'!$B$17:$B$23,'Activity 10'!F$17:F$23,\"N/A\",0,1)","v":"N/A"},{"$f":"_xlfn.XLOOKUP($E7,'Activity 10'!$B$17:$B$23,'Activity 10'!G$17:G$23,\"N/A\",0,1)","v":"N/A"},{"$f":"_xlfn.XLOOKUP($E7,'Activity 10'!$B$17:$B$23,'Activity 10'!H$17:H$23,\"N/A\",0,1)","v":"N/A"},{"$f":"_xlfn.XLOOKUP($E7,'Activity 10'!$B$17:$B$23,'Activity 10'!I$17:I$23,\"N/A\",0,1)","v":"N/A"},{"$f":"_xlfn.XLOOKUP($E7,'Activity 10'!$B$17:$B$23,'Activity 10'!J$17:J$23,\"N/A\",0,1)","v":"N/A"},{"$f":"_xlfn.XLOOKUP($E7,'Activity 10'!$B$17:$B$23,'Activity 10'!K$17:K$23,\"N/A\",0,1)","v":"N/A"},{"$f":"_xlfn.XLOOKUP($E7,'Activity 10'!$B$17:$B$23,'Activity 10'!L$17:L$23,\"N/A\",0,1)","v":"N/A"},{"$f":"_xlfn.XLOOKUP($E7,'Activity 10'!$B$17:$B$23,'Activity 10'!M$17:M$23,\"N/A\",0,1)","v":"N/A"},{"$f":"_xlfn.XLOOKUP($E7,'Activity 10'!$B$17:$B$23,'Activity 10'!N$17:N$23,\"N/A\",0,1)","v":"N/A"},{"$f":"_xlfn.XLOOKUP($E7,'Activity 10'!$B$17:$B$23,'Activity 10'!P$17:P$23,\"N/A\",0,1)","v":"N/A"},{"$f":"_xlfn.XLOOKUP($E7,'Competitive Activity 1'!B$7:B$13,'Competitive Activity 1'!A$7:A$13,\"No\",0,1)","v":"No"},{"$f":"_xlfn.XLOOKUP($E7,'Competitive Activity 1'!$B$7:$B$13,'Competitive Activity 1'!H$7:H$13,\"N/A\",0,1)","v":"N/A"},{"$f":"_xlfn.XLOOKUP($E7,'Competitive Activity 1'!$B$7:$B$13,'Competitive Activity 1'!I$7:I$13,\"N/A\",0,1)","v":"N/A"},{"$f":"_xlfn.XLOOKUP($E7,'Competitive Activity 1'!$B$7:$B$13,'Competitive Activity 1'!J$7:J$13,\"N/A\",0,1)","v":"N/A"},{"$f":"_xlfn.XLOOKUP($E7,'Competitive Activity 1'!$B$7:$B$13,'Competitive Activity 1'!K$7:K$13,\"N/A\",0,1)","v":"N/A"},{"$f":"_xlfn.XLOOKUP($E7,'Competitive Activity 1'!$B$7:$B$13,'Competitive Activity 1'!L$7:L$13,\"N/A\",0,1)","v":"N/A"},{"$f":"_xlfn.XLOOKUP($E7,'Competitive Activity 1'!$B$7:$B$13,'Competitive Activity 1'!M$7:M$13,\"N/A\",0,1)","v":"N/A"},{"$f":"_xlfn.XLOOKUP($E7,'Competitive Activity 1'!$B$7:$B$13,'Competitive Activity 1'!N$7:N$13,\"N/A\",0,1)","v":"N/A"},{"$f":"_xlfn.XLOOKUP($E7,'Competitive Activity 1'!$B$7:$B$13,'Competitive Activity 1'!O$7:O$13,\"N/A\",0,1)","v":"N/A"},{"$f":"_xlfn.XLOOKUP($E7,'Competitive Activity 1'!$B$7:$B$13,'Competitive Activity 1'!P$7:P$13,\"N/A\",0,1)","v":"N/A"},{"$f":"_xlfn.XLOOKUP($E7,'Competitive Activity 1'!$B$7:$B$13,'Competitive Activity 1'!Q$7:Q$13,\"N/A\",0,1)","v":"N/A"},{"$f":"_xlfn.XLOOKUP($E7,'Competitive Activity 1'!$B$7:$B$13,'Competitive Activity 1'!R$7:R$13,\"N/A\",0,1)","v":"N/A"},{"$f":"_xlfn.XLOOKUP($E7,'Competitive Activity 1'!$B$7:$B$13,'Competitive Activity 1'!S$7:S$13,\"N/A\",0,1)","v":"N/A"},{"$f":"_xlfn.XLOOKUP($E7,'Competitive Activity 1'!$B$7:$B$13,'Competitive Activity 1'!T$7:T$13,\"N/A\",0,1)","v":"N/A"},{"$f":"_xlfn.XLOOKUP($E7,'Competitive Activity 1'!$B$7:$B$13,'Competitive Activity 1'!U$7:U$13,\"N/A\",0,1)","v":"N/A"},{"$f":"_xlfn.XLOOKUP($E7,'Competitive Activity 1'!$B$17:$B$23,'Competitive Activity 1'!C$17:C$23,\"N/A\",0,1)","v":"N/A"},{"$f":"_xlfn.XLOOKUP($E7,'Competitive Activity 1'!$B$17:$B$23,'Competitive Activity 1'!D$17:D$23,\"N/A\",0,1)","v":"N/A"},{"$f":"_xlfn.XLOOKUP($E7,'Competitive Activity 1'!$B$17:$B$23,'Competitive Activity 1'!E$17:E$23,\"N/A\",0,1)","v":"N/A"},{"$f":"_xlfn.XLOOKUP($E7,'Competitive Activity 1'!$B$17:$B$23,'Competitive Activity 1'!F$17:F$23,\"N/A\",0,1)","v":"N/A"},{"$f":"_xlfn.XLOOKUP($E7,'Competitive Activity 1'!$B$17:$B$23,'Competitive Activity 1'!G$17:G$23,\"N/A\",0,1)","v":"N/A"},{"$f":"_xlfn.XLOOKUP($E7,'Competitive Activity 1'!$B$17:$B$23,'Competitive Activity 1'!H$17:H$23,\"N/A\",0,1)","v":"N/A"},{"$f":"_xlfn.XLOOKUP($E7,'Competitive Activity 1'!$B$17:$B$23,'Competitive Activity 1'!I$17:I$23,\"N/A\",0,1)","v":"N/A"},{"$f":"_xlfn.XLOOKUP($E7,'Competitive Activity 1'!$B$17:$B$23,'Competitive Activity 1'!J$17:J$23,\"N/A\",0,1)","v":"N/A"},{"$f":"_xlfn.XLOOKUP($E7,'Competitive Activity 1'!$B$17:$B$23,'Competitive Activity 1'!K$17:K$23,\"N/A\",0,1)","v":"N/A"},{"$f":"_xlfn.XLOOKUP($E7,'Competitive Activity 1'!$B$17:$B$23,'Competitive Activity 1'!M$17:M$23,\"N/A\",0,1)","v":"N/A"},{"$f":"_xlfn.XLOOKUP($E7,'Competitive Activity 1'!$B$17:$B$23,'Competitive Activity 1'!N$17:N$23,\"N/A\",0,1)","v":"N/A"},{"$f":"_xlfn.XLOOKUP($E7,'Competitive Activity 1'!$B$17:$B$23,'Competitive Activity 1'!P$17:P$23,\"N/A\",0,1)","v":"N/A"},{"$f":"_xlfn.XLOOKUP($E7,'Competitive Activity 2'!$B$7:$B$13,'Competitive Activity 2'!A$7:A$13,\"No\",0)","v":"No"},{"$f":"_xlfn.XLOOKUP($E7,'Competitive Activity 2'!$B$7:$B$13,'Competitive Activity 2'!L$7:L$13,\"N/A\",0)","v":"N/A"},{"$f":"_xlfn.XLOOKUP($E7,'Competitive Activity 2'!$B$7:$B$13,'Competitive Activity 2'!M$7:M$13,\"N/A\",0)","v":"N/A"},{"$f":"_xlfn.XLOOKUP($E7,'Competitive Activity 2'!$B$7:$B$13,'Competitive Activity 2'!N$7:N$13,\"N/A\",0)","v":"N/A"},{"$f":"_xlfn.XLOOKUP($E7,'Competitive Activity 2'!$B$7:$B$13,'Competitive Activity 2'!O$7:O$13,\"N/A\",0)","v":"N/A"},{"$f":"_xlfn.XLOOKUP($E7,'Competitive Activity 2'!$B$7:$B$13,'Competitive Activity 2'!P$7:P$13,\"N/A\",0)","v":"N/A"},{"$f":"_xlfn.XLOOKUP($E7,'Competitive Activity 2'!$B$7:$B$13,'Competitive Activity 2'!Q$7:Q$13,\"N/A\",0)","v":"N/A"},{"$f":"_xlfn.XLOOKUP($E7,'Competitive Activity 2'!$B$7:$B$13,'Competitive Activity 2'!R$7:R$13,\"N/A\",0)","v":"N/A"},{"$f":"_xlfn.XLOOKUP($E7,'Competitive Activity 2'!$B$7:$B$13,'Competitive Activity 2'!S$7:S$13,\"N/A\",0)","v":"N/A"},{"$f":"_xlfn.XLOOKUP($E7,'Competitive Activity 2'!$B$7:$B$13,'Competitive Activity 2'!T$7:T$13,\"N/A\",0)","v":"N/A"},{"$f":"_xlfn.XLOOKUP($E7,'Competitive Activity 2'!$B$7:$B$13,'Competitive Activity 2'!U$7:U$13,\"N/A\",0)","v":"N/A"},{"$f":"_xlfn.XLOOKUP($E7,'Competitive Activity 2'!$B$17:$B$23,'Competitive Activity 2'!D$17:D$23,\"N/A\",0)","v":"N/A"},{"$f":"_xlfn.XLOOKUP($E7,'Competitive Activity 2'!$B$17:$B$23,'Competitive Activity 2'!E$17:E$23,\"N/A\",0)","v":"N/A"},{"$f":"_xlfn.XLOOKUP($E7,'Competitive Activity 2'!$B$17:$B$23,'Competitive Activity 2'!F$17:F$23,\"N/A\",0)","v":"N/A"},{"$f":"_xlfn.XLOOKUP($E7,'Competitive Activity 2'!$B$17:$B$23,'Competitive Activity 2'!G$17:G$23,\"N/A\",0)","v":"N/A"},{"$f":"_xlfn.XLOOKUP($E7,'Competitive Activity 2'!$B$17:$B$23,'Competitive Activity 2'!H$17:H$23,\"N/A\",0)","v":"N/A"},{"$f":"_xlfn.XLOOKUP($E7,'Competitive Activity 2'!$B$17:$B$23,'Competitive Activity 2'!I$17:I$23,\"N/A\",0)","v":"N/A"},{"$f":"_xlfn.XLOOKUP($E7,'Competitive Activity 2'!$B$17:$B$23,'Competitive Activity 2'!J$17:J$23,\"N/A\",0)","v":"N/A"},{"$f":"_xlfn.XLOOKUP($E7,'Competitive Activity 2'!$B$17:$B$23,'Competitive Activity 2'!K$17:K$23,\"N/A\",0)","v":"N/A"},{"$f":"_xlfn.XLOOKUP($E7,'Competitive Activity 2'!$B$17:$B$23,'Competitive Activity 2'!L$17:L$23,\"N/A\",0)","v":"N/A"},{"$f":"_xlfn.XLOOKUP($E7,'Competitive Activity 2'!$B$17:$B$23,'Competitive Activity 2'!M$17:M$23,\"N/A\",0)","v":"N/A"},{"$f":"_xlfn.XLOOKUP($E7,'Competitive Activity 2'!$B$17:$B$23,'Competitive Activity 2'!N$17:N$23,\"N/A\",0)","v":"N/A"},{"$f":"_xlfn.XLOOKUP($E7,'Competitive Activity 2'!$B$27:$B$33,'Competitive Activity 2'!D$27:D$33,\"N/A\",0)","v":"N/A"},{"$f":"_xlfn.XLOOKUP($E7,'Competitive Activity 2'!$B$27:$B$33,'Competitive Activity 2'!E$27:E$33,\"N/A\",0)","v":"N/A"},{"$f":"_xlfn.XLOOKUP($E7,'Competitive Activity 2'!$B$27:$B$33,'Competitive Activity 2'!F$27:F$33,\"N/A\",0)","v":"N/A"},{"$f":"_xlfn.XLOOKUP($E7,'Competitive Activity 2'!$B$27:$B$33,'Competitive Activity 2'!G$27:G$33,\"N/A\",0)","v":"N/A"},{"$f":"_xlfn.XLOOKUP($E7,'Competitive Activity 2'!$B$27:$B$33,'Competitive Activity 2'!H$27:H$33,\"N/A\",0)","v":"N/A"},{"$f":"_xlfn.XLOOKUP($E7,'Competitive Activity 2'!$B$27:$B$33,'Competitive Activity 2'!I$27:I$33,\"N/A\",0)","v":"N/A"},{"$f":"_xlfn.XLOOKUP($E7,'Competitive Activity 2'!$B$27:$B$33,'Competitive Activity 2'!J$27:J$33,\"N/A\",0)","v":"N/A"},{"$f":"_xlfn.XLOOKUP($E7,'Competitive Activity 2'!$B$27:$B$33,'Competitive Activity 2'!K$27:K$33,\"N/A\",0)","v":"N/A"},{"$f":"_xlfn.XLOOKUP($E7,'Competitive Activity 2'!$B$27:$B$33,'Competitive Activity 2'!M$27:M$33,\"N/A\",0)","v":"N/A"}]
[{"$f":"'1-Cover Sheet'!$C$8","v":"Select One"},{"$f":"'1-Cover Sheet'!$F$8","v":"Select One"},{"$f":"'Summary Sheet'!$D$8","v":0},{"$f":"'Summary Sheet'!$D$10","v":0},{"$f":"'Drop Down Box'!B172","v":0},{"$f":"'Drop Down Box'!C172","v":0},{"$f":"'Drop Down Box'!D172","v":"Select One"},{"$f":"_xlfn.XLOOKUP(E8,'Drop Down Box'!$B$166:$B$249,'Drop Down Box'!$A$166:$A$249,\"Unknown\",0)","v":"Activity 1"},{"$f":"_xlfn.XLOOKUP($E8,'Activity 1'!$B$17:$B$23,'Activity 1'!$N$17:$N$23,\"\",0)","v":""},{"$f":"_xlfn.XLOOKUP($E8,'Activity 1'!$B$17:$B$23,'Activity 1'!$P$17:$P$23,\"N/A\",0)","v":"N/A"},{"$f":"_xlfn.XLOOKUP($E8,'Activity 1'!$B$7:$B$13,'Activity 1'!E$7:E$13,0,0)","v":0},{"$f":"_xlfn.XLOOKUP($E8,'Activity 1'!$B$7:$B$13,'Activity 1'!F$7:F$13,0,0)","v":"00:00:00"},{"$f":"_xlfn.XLOOKUP($E8,'Activity 1'!$B$7:$B$13,'Activity 1'!G$7:G$13,0,0)","v":0},{"$f":"_xlfn.XLOOKUP($E8,'Activity 1'!$B$7:$B$13,'Activity 1'!$A$7:$A$13,\"No\",0,1)","v":"No"},{"$f":"_xlfn.XLOOKUP($E8,'Activity 1'!$B$7:$B$13,'Activity 1'!$H$7:$H$13,\"N/A\",0,1)","v":"N/A"},{"$f":"_xlfn.XLOOKUP($E8,'Activity 1'!$B$7:$B$13,'Activity 1'!I$7:I$13,\"N/A\",0,1)","v":"N/A"},{"$f":"_xlfn.XLOOKUP($E8,'Activity 1'!$B$7:$B$13,'Activity 1'!J$7:J$13,\"N/A\",0,1)","v":"N/A"},{"$f":"_xlfn.XLOOKUP($E8,'Activity 1'!$B$7:$B$13,'Activity 1'!K$7:K$13,\"N/A\",0,1)","v":"N/A"},{"$f":"_xlfn.XLOOKUP($E8,'Activity 1'!$B$7:$B$13,'Activity 1'!L$7:L$13,\"N/A\",0,1)","v":"N/A"},{"$f":"_xlfn.XLOOKUP($E8,'Activity 1'!$B$7:$B$13,'Activity 1'!M$7:M$13,\"N/A\",0,1)","v":"N/A"},{"$f":"_xlfn.XLOOKUP($E8,'Activity 1'!$B$7:$B$13,'Activity 1'!N$7:N$13,\"N/A\",0,1)","v":"N/A"},0,{"$f":"_xlfn.XLOOKUP($E8,'Activity 1'!$B$7:$B$13,'Activity 1'!O$7:O$13,\"N/A\",0,1)","v":"N/A"},{"$f":"_xlfn.XLOOKUP($E8,'Activity 1'!$B$7:$B$13,'Activity 1'!P$7:P$13,\"N/A\",0,1)","v":"N/A"},{"$f":"_xlfn.XLOOKUP($E8,'Activity 1'!$B$7:$B$13,'Activity 1'!Q$7:Q$13,\"N/A\",0,1)","v":"N/A"},{"$f":"_xlfn.XLOOKUP($E8,'Activity 1'!$B$7:$B$13,'Activity 1'!R$7:R$13,\"N/A\",0,1)","v":"N/A"},{"$f":"_xlfn.XLOOKUP($E8,'Activity 1'!$B$7:$B$13,'Activity 1'!S$7:S$13,\"N/A\",0,1)","v":"N/A"},{"$f":"_xlfn.XLOOKUP($E8,'Activity 1'!$B$7:$B$13,'Activity 1'!T$7:T$13,\"N/A\",0,1)","v":"N/A"},{"$f":"_xlfn.XLOOKUP($E8,'Activity 1'!$B$7:$B$13,'Activity 1'!U$7:U$13,\"N/A\",0,1)","v":"N/A"},{"$f":"_xlfn.XLOOKUP($E8,'Activity 1'!$B$7:$B$13,'Activity 1'!V$7:V$13,\"N/A\",0,1)","v":"N/A"},{"$f":"_xlfn.XLOOKUP($E8,'Activity 1'!$B$17:$B$23,'Activity 1'!C$17:C$23,\"N/A\",0,1)","v":"N/A"},{"$f":"_xlfn.XLOOKUP($E8,'Activity 1'!$B$17:$B$23,'Activity 1'!D$17:D$23,\"N/A\",0,1)","v":"N/A"},{"$f":"_xlfn.XLOOKUP($E8,'Activity 1'!$B$17:$B$23,'Activity 1'!E$17:E$23,\"N/A\",0,1)","v":"N/A"},{"$f":"_xlfn.XLOOKUP($E8,'Activity 1'!$B$17:$B$23,'Activity 1'!F$17:F$23,\"N/A\",0,1)","v":"N/A"},{"$f":"_xlfn.XLOOKUP($E8,'Activity 1'!$B$17:$B$23,'Activity 1'!G$17:G$23,\"N/A\",0,1)","v":"N/A"},{"$f":"_xlfn.XLOOKUP($E8,'Activity 1'!$B$17:$B$23,'Activity 1'!H$17:H$23,\"N/A\",0,1)","v":"N/A"},{"$f":"_xlfn.XLOOKUP($E8,'Activity 1'!$B$17:$B$23,'Activity 1'!I$17:I$23,\"N/A\",0,1)","v":"N/A"},{"$f":"_xlfn.XLOOKUP($E8,'Activity 1'!$B$17:$B$23,'Activity 1'!J$17:J$23,\"N/A\",0,1)","v":"N/A"},{"$f":"_xlfn.XLOOKUP($E8,'Activity 1'!$B$17:$B$23,'Activity 1'!K$17:K$23,\"N/A\",0,1)","v":"N/A"},{"$f":"_xlfn.XLOOKUP($E8,'Activity 1'!$B$17:$B$23,'Activity 1'!L$17:L$23,\"N/A\",0,1)","v":"N/A"},{"$f":"_xlfn.XLOOKUP($E8,'Activity 1'!$B$17:$B$23,'Activity 1'!M$17:M$23,\"N/A\",0,1)","v":"N/A"},{"$f":"_xlfn.XLOOKUP($E8,'Activity 1'!$B$17:$B$23,'Activity 1'!O$17:O$23,\"N/A\",0,1)","v":"N/A"},{"$f":"_xlfn.XLOOKUP($E8,'Activity 1'!$B$17:$B$23,'Activity 1'!Q$17:Q$23,\"N/A\",0,1)","v":"N/A"},{"$f":"_xlfn.XLOOKUP($E8,'Activity 2'!$B$7:$B$13,'Activity 2'!$A$7:$A$13,\"No\",0,1)","v":"No"},{"$f":"_xlfn.XLOOKUP($E8,'Activity 2'!B$7:B$13,'Activity 2'!H$7:H$13,\"N/A\",0)","v":"N/A"},{"$f":"_xlfn.XLOOKUP($E8,'Activity 2'!C$7:C$13,'Activity 2'!I$7:I$13,\"N/A\",0)","v":"N/A"},{"$f":"_xlfn.XLOOKUP($E8,'Activity 2'!D$7:D$13,'Activity 2'!J$7:J$13,\"N/A\",0)","v":"N/A"},{"$f":"_xlfn.XLOOKUP($E8,'Activity 2'!E$7:E$13,'Activity 2'!K$7:K$13,\"N/A\",0)","v":"N/A"},{"$f":"_xlfn.XLOOKUP($E8,'Activity 2'!F$7:F$13,'Activity 2'!L$7:L$13,\"N/A\",0)","v":"N/A"},{"$f":"_xlfn.XLOOKUP($E8,'Activity 2'!G$7:G$13,'Activity 2'!M$7:M$13,\"N/A\",0)","v":"N/A"},{"$f":"_xlfn.XLOOKUP($E8,'Activity 2'!H$7:H$13,'Activity 2'!N$7:N$13,\"N/A\",0)","v":"N/A"},{"$f":"_xlfn.XLOOKUP($E8,'Activity 2'!I$7:I$13,'Activity 2'!O$7:O$13,\"N/A\",0)","v":"N/A"},{"$f":"_xlfn.XLOOKUP($E8,'Activity 2'!J$7:J$13,'Activity 2'!P$7:P$13,\"N/A\",0)","v":"N/A"},{"$f":"_xlfn.XLOOKUP($E8,'Activity 2'!K$7:K$13,'Activity 2'!Q$7:Q$13,\"N/A\",0)","v":"N/A"},{"$f":"_xlfn.XLOOKUP($E8,'Activity 2'!L$7:L$13,'Activity 2'!R$7:R$13,\"N/A\",0)","v":"N/A"},{"$f":"_xlfn.XLOOKUP($E8,'Activity 2'!M$7:M$13,'Activity 2'!S$7:S$13,\"N/A\",0)","v":"N/A"},{"$f":"_xlfn.XLOOKUP($E8,'Activity 2'!N$7:N$13,'Activity 2'!T$7:T$13,\"N/A\",0)","v":"N/A"},{"$f":"_xlfn.XLOOKUP($E8,'Activity 2'!O$7:O$13,'Activity 2'!U$7:U$13,\"N/A\",0)","v":"N/A"},{"$f":"_xlfn.XLOOKUP($E8,'Activity 2'!P$7:P$13,'Activity 2'!V$7:V$13,\"N/A\",0)","v":"N/A"},{"$f":"_xlfn.XLOOKUP($E8,'Activity 2'!$B$17:$B$23,'Activity 2'!C$17:C$23,\"N/A\",0,1)","v":"N/A"},{"$f":"_xlfn.XLOOKUP($E8,'Activity 2'!$B$17:$B$23,'Activity 2'!D$17:D$23,\"N/A\",0,1)","v":"N/A"},{"$f":"_xlfn.XLOOKUP($E8,'Activity 2'!$B$17:$B$23,'Activity 2'!E$17:E$23,\"N/A\",0,1)","v":"N/A"},{"$f":"_xlfn.XLOOKUP($E8,'Activity 2'!$B$17:$B$23,'Activity 2'!F$17:F$23,\"N/A\",0,1)","v":"N/A"},{"$f":"_xlfn.XLOOKUP($E8,'Activity 2'!$B$17:$B$23,'Activity 2'!G$17:G$23,\"N/A\",0,1)","v":"N/A"},{"$f":"_xlfn.XLOOKUP($E8,'Activity 2'!$B$17:$B$23,'Activity 2'!H$17:H$23,\"N/A\",0,1)","v":"N/A"},{"$f":"_xlfn.XLOOKUP($E8,'Activity 2'!$B$17:$B$23,'Activity 2'!I$17:I$23,\"N/A\",0,1)","v":"N/A"},{"$f":"_xlfn.XLOOKUP($E8,'Activity 2'!$B$17:$B$23,'Activity 2'!J$17:J$23,\"N/A\",0,1)","v":"N/A"},{"$f":"_xlfn.XLOOKUP($E8,'Activity 2'!$B$17:$B$23,'Activity 2'!K$17:K$23,\"N/A\",0,1)","v":"N/A"},{"$f":"_xlfn.XLOOKUP($E8,'Activity 2'!$B$17:$B$23,'Activity 2'!L$17:L$23,\"N/A\",0,1)","v":"N/A"},{"$f":"_xlfn.XLOOKUP($E8,'Activity 2'!$B$17:$B$23,'Activity 2'!M$17:M$23,\"N/A\",0,1)","v":"N/A"},{"$f":"_xlfn.XLOOKUP($E8,'Activity 2'!$B$17:$B$23,'Activity 2'!O$17:O$23,\"N/A\",0,1)","v":"N/A"},{"$f":"_xlfn.XLOOKUP($E8,'Activity 2'!$B$17:$B$23,'Activity 2'!Q$17:Q$23,\"N/A\",0,1)","v":"N/A"},{"$f":"_xlfn.XLOOKUP($E8,'Activity 3'!$B$8:$B$14,'Activity 3'!A$8:A$14,\"No\",0,1)","v":"No"},{"$f":"_xlfn.XLOOKUP($E8,'Activity 3'!$B$8:$B$14,'Activity 3'!K$8:K$14,\"N/A\",0,1)","v":"N/A"},{"$f":"_xlfn.XLOOKUP($E8,'Activity 3'!$B$8:$B$14,'Activity 3'!L$8:L$14,\"N/A\",0,1)","v":"N/A"},{"$f":"_xlfn.XLOOKUP($E8,'Activity 3'!$B$8:$B$14,'Activity 3'!M$8:M$14,\"N/A\",0,1)","v":"N/A"},{"$f":"_xlfn.XLOOKUP($E8,'Activity 3'!$B$8:$B$14,'Activity 3'!N$8:N$14,\"N/A\",0,1)","v":"N/A"},{"$f":"_xlfn.XLOOKUP($E8,'Activity 3'!$B$8:$B$14,'Activity 3'!O$8:O$14,\"N/A\",0,1)","v":"N/A"},{"$f":"_xlfn.XLOOKUP($E8,'Activity 3'!$B$8:$B$14,'Activity 3'!R$8:R$14,\"N/A\",0,1)","v":"N/A"},{"$f":"_xlfn.XLOOKUP($E8,'Activity 4'!$B$8:$B$14,'Activity 4'!$A$8:$A$14,\"No\",0,1)","v":"No"},{"$f":"_xlfn.XLOOKUP($E8,'Activity 4'!$B$8:$B$14,'Activity 4'!L$8:L$14,\"N/A\",0,1)","v":"N/A"},{"$f":"_xlfn.XLOOKUP($E8,'Activity 4'!$B$8:$B$14,'Activity 4'!D$8:D$14,\"N/A\",0,1)","v":"N/A"},{"$f":"_xlfn.XLOOKUP($E8,'Activity 4'!$B$8:$B$14,'Activity 4'!G$8:G$14,\"N/A\",0,1)","v":"N/A"},{"$f":"_xlfn.XLOOKUP($E8,'Activity 5'!$B$8:$B$14,'Activity 5'!$A$8:$A$14,\"No\",0,1)","v":"No"},{"$f":"_xlfn.XLOOKUP($E8,'Activity 5'!$B$8:$B$14,'Activity 5'!J$8:J$14,\"N/A\",0,1)","v":"N/A"},{"$f":"_xlfn.XLOOKUP($E8,'Activity 5'!$B$8:$B$14,'Activity 5'!K$8:K$14,\"N/A\",0,1)","v":"N/A"},{"$f":"_xlfn.XLOOKUP($E8,'Activity 5'!$B$8:$B$14,'Activity 5'!N$8:N$14,\"N/A\",0,1)","v":"N/A"},{"$f":"_xlfn.XLOOKUP($E8,'Activity 5'!$B$8:$B$14,'Activity 5'!O$8:O$14,\"N/A\",0,1)","v":"N/A"},{"$f":"_xlfn.XLOOKUP($E8,'Activity 5'!$B$8:$B$14,'Activity 5'!P$8:P$14,\"N/A\",0,1)","v":"N/A"},{"$f":"_xlfn.XLOOKUP($E8,'Activity 5'!$B$8:$B$14,'Activity 5'!Q$8:Q$14,\"N/A\",0,1)","v":"N/A"},{"$f":"_xlfn.XLOOKUP($E8,'Activity 5'!$B$8:$B$14,'Activity 5'!R$8:R$14,\"N/A\",0,1)","v":"N/A"},{"$f":"_xlfn.XLOOKUP($E8,'Activity 6'!$B$7:$B$13,'Activity 6'!A$7:A$13,\"No\",0,1)","v":"No"},{"$f":"_xlfn.XLOOKUP($E8,'Activity 6'!$B$7:$B$13,'Activity 6'!K$7:K$13,\"N/A\",0,1)","v":"N/A"},{"$f":"_xlfn.XLOOKUP($E8,'Activity 6'!$B$7:$B$13,'Activity 6'!L$7:L$13,\"N/A\",0,1)","v":"N/A"},{"$f":"_xlfn.XLOOKUP($E8,'Activity 6'!$B$7:$B$13,'Activity 6'!M$7:M$13,\"N/A\",0,1)","v":"N/A"},{"$f":"_xlfn.XLOOKUP($E8,'Activity 6'!$B$7:$B$13,'Activity 6'!N$7:N$13,\"N/A\",0,1)","v":"N/A"},{"$f":"_xlfn.XLOOKUP($E8,'Activity 6'!$B$7:$B$13,'Activity 6'!O$7:O$13,\"N/A\",0,1)","v":"N/A"},{"$f":"_xlfn.XLOOKUP($E8,'Activity 6'!$B$7:$B$13,'Activity 6'!P$7:P$13,\"N/A\",0,1)","v":"N/A"},{"$f":"_xlfn.XLOOKUP($E8,'Activity 6'!$B$7:$B$13,'Activity 6'!Q$7:Q$13,\"N/A\",0,1)","v":"N/A"},{"$f":"_xlfn.XLOOKUP($E8,'Activity 6'!$B$7:$B$13,'Activity 6'!R$7:R$13,\"N/A\",0,1)","v":"N/A"},{"$f":"_xlfn.XLOOKUP($E8,'Activity 6'!$B$7:$B$13,'Activity 6'!S$7:S$13,\"N/A\",0,1)","v":"N/A"},{"$f":"_xlfn.XLOOKUP($E8,'Activity 6'!$B$7:$B$13,'Activity 6'!T$7:T$13,\"N/A\",0,1)","v":"N/A"},{"$f":"_xlfn.XLOOKUP($E8,'Activity 6'!$B$7:$B$13,'Activity 6'!U$7:U$13,\"N/A\",0,1)","v":"N/A"},{"$f":"_xlfn.XLOOKUP($E8,'Activity 6'!$B$22:$B$28,'Activity 6'!C$22:C$28,\"N/A\",0,1)","v":"N/A"},{"$f":"_xlfn.XLOOKUP($E8,'Activity 6'!$B$22:$B$28,'Activity 6'!D$22:D$28,\"N/A\",0,1)","v":"N/A"},{"$f":"_xlfn.XLOOKUP($E8,'Activity 6'!$B$22:$B$28,'Activity 6'!E$22:E$28,\"N/A\",0,1)","v":"N/A"},{"$f":"_xlfn.XLOOKUP($E8,'Activity 6'!$B$22:$B$28,'Activity 6'!F$22:F$28,\"N/A\",0,1)","v":"N/A"},{"$f":"_xlfn.XLOOKUP($E8,'Activity 6'!$B$22:$B$28,'Activity 6'!G$22:G$28,\"N/A\",0,1)","v":"N/A"},{"$f":"_xlfn.XLOOKUP($E8,'Activity 6'!$B$22:$B$28,'Activity 6'!H$22:H$28,\"N/A\",0,1)","v":"N/A"},{"$f":"_xlfn.XLOOKUP($E8,'Activity 6'!$B$22:$B$28,'Activity 6'!I$22:I$28,\"N/A\",0,1)","v":"N/A"},{"$f":"_xlfn.XLOOKUP($E8,'Activity 6'!$B$22:$B$28,'Activity 6'!J$22:J$28,\"N/A\",0,1)","v":"N/A"},{"$f":"_xlfn.XLOOKUP($E8,'Activity 6'!$B$22:$B$28,'Activity 6'!K$22:K$28,\"N/A\",0,1)","v":"N/A"},{"$f":"_xlfn.XLOOKUP($E8,'Activity 6'!$B$22:$B$28,'Activity 6'!L$22:L$28,\"N/A\",0,1)","v":"N/A"},{"$f":"_xlfn.XLOOKUP($E8,'Activity 6'!$B$22:$B$28,'Activity 6'!M$22:M$28,\"N/A\",0,1)","v":"N/A"},{"$f":"_xlfn.XLOOKUP($E8,'Activity 6'!$B$22:$B$28,'Activity 6'!N$22:N$28,\"N/A\",0,1)","v":"N/A"},{"$f":"_xlfn.XLOOKUP($E8,'Activity 6'!$B$32:$B$38,'Activity 6'!C$32:C$38,\"N/A\",0,1)","v":"N/A"},{"$f":"_xlfn.XLOOKUP($E8,'Activity 6'!$B$32:$B$38,'Activity 6'!D$32:D$38,\"N/A\",0,1)","v":"N/A"},{"$f":"_xlfn.XLOOKUP($E8,'Activity 6'!$B$32:$B$38,'Activity 6'!E$32:E$38,\"N/A\",0,1)","v":"N/A"},{"$f":"_xlfn.XLOOKUP($E8,'Activity 6'!$B$32:$B$38,'Activity 6'!F$32:F$38,\"N/A\",0,1)","v":"N/A"},{"$f":"_xlfn.XLOOKUP($E8,'Activity 6'!$B$32:$B$38,'Activity 6'!G$32:G$38,\"N/A\",0,1)","v":"N/A"},{"$f":"_xlfn.XLOOKUP($E8,'Activity 6'!$B$32:$B$38,'Activity 6'!H$32:H$38,\"N/A\",0,1)","v":"N/A"},{"$f":"_xlfn.XLOOKUP($E8,'Activity 6'!$B$32:$B$38,'Activity 6'!I$32:I$38,\"N/A\",0,1)","v":"N/A"},{"$f":"_xlfn.XLOOKUP($E8,'Activity 6'!$B$32:$B$38,'Activity 6'!J$32:J$38,\"N/A\",0,1)","v":"N/A"},{"$f":"_xlfn.XLOOKUP($E8,'Activity 6'!$B$32:$B$38,'Activity 6'!K$32:K$38,\"N/A\",0,1)","v":"N/A"},{"$f":"_xlfn.XLOOKUP($E8,'Activity 6'!$B$32:$B$38,'Activity 6'!M$32:M$38,\"N/A\",0,1)","v":"N/A"},{"$f":"_xlfn.XLOOKUP($E8,'Activity 7'!$B$7:$B$13,'Activity 7'!$A$7:$A$13,\"No\",0,1)","v":"No"},{"$f":"_xlfn.XLOOKUP($E8,'Activity 7'!$B$7:$B$13,'Activity 7'!M$7:M$13,\"N/A\",0,1)","v":"N/A"},{"$f":"_xlfn.XLOOKUP($E8,'Activity 7'!$B$7:$B$13,'Activity 7'!K$7:K$13,\"N/A\",0,1)","v":"N/A"},{"$f":"_xlfn.XLOOKUP($E8,'Activity 7'!$B$7:$B$13,'Activity 7'!N$7:N$13,\"N/A\",0,1)","v":"N/A"},{"$f":"_xlfn.XLOOKUP($E8,'Activity 7'!$B$7:$B$13,'Activity 7'!O$7:O$13,\"N/A\",0,1)","v":"N/A"},{"$f":"_xlfn.XLOOKUP($E8,'Activity 7'!$B$7:$B$13,'Activity 7'!P$7:P$13,\"N/A\",0,1)","v":"N/A"},{"$f":"_xlfn.XLOOKUP($E8,'Activity 7'!$B$7:$B$13,'Activity 7'!Q$7:Q$13,\"N/A\",0,1)","v":"N/A"},{"$f":"_xlfn.XLOOKUP($E8,'Activity 7'!$B$7:$B$13,'Activity 7'!R$7:R$13,\"N/A\",0,1)","v":"N/A"},{"$f":"_xlfn.XLOOKUP($E8,'Activity 7'!$B$7:$B$13,'Activity 7'!S$7:S$13,\"N/A\",0,1)","v":"N/A"},{"$f":"_xlfn.XLOOKUP($E8,'Activity 7'!$B$7:$B$13,'Activity 7'!T$7:T$13,\"N/A\",0,1)","v":"N/A"},{"$f":"_xlfn.XLOOKUP($E8,'Activity 7'!$B$7:$B$13,'Activity 7'!U$7:U$13,\"N/A\",0,1)","v":"N/A"},{"$f":"_xlfn.XLOOKUP($E8,'Activity 7'!$B$7:$B$13,'Activity 7'!V$7:V$13,\"N/A\",0,1)","v":"N/A"},{"$f":"_xlfn.XLOOKUP($E8,'Activity 7'!$B$17:$B$23,'Activity 7'!E$17:E$23,\"N/A\",0,1)","v":"N/A"},{"$f":"_xlfn.XLOOKUP($E8,'Activity 7'!$B$17:$B$23,'Activity 7'!G$17:G$23,\"N/A\",0,1)","v":"N/A"},{"$f":"_xlfn.XLOOKUP($E8,'Activity 7'!$B$17:$B$23,'Activity 7'!I$17:I$23,\"N/A\",0,1)","v":"N/A"},{"$f":"_xlfn.XLOOKUP($E8,'Activity 7'!$B$17:$B$23,'Activity 7'!J$17:J$23,\"N/A\",0,1)","v":"N/A"},{"$f":"_xlfn.XLOOKUP($E8,'Activity 7'!$B$17:$B$23,'Activity 7'!K$17:K$23,\"N/A\",0,1)","v":"N/A"},{"$f":"_xlfn.XLOOKUP($E8,'Activity 7'!$B$17:$B$23,'Activity 7'!L$17:L$23,\"N/A\",0,1)","v":"N/A"},{"$f":"_xlfn.XLOOKUP($E8,'Activity 7'!$B$17:$B$23,'Activity 7'!M$17:M$23,\"N/A\",0,1)","v":"N/A"},{"$f":"_xlfn.XLOOKUP($E8,'Activity 7'!$B$17:$B$23,'Activity 7'!N$17:N$23,\"N/A\",0,1)","v":"N/A"},{"$f":"_xlfn.XLOOKUP($E8,'Activity 7'!$B$17:$B$23,'Activity 7'!P$17:P$23,\"N/A\",0,1)","v":"N/A"},{"$f":"_xlfn.XLOOKUP($E8,'Activity 8'!$B$7:$B$13,'Activity 8'!A$7:A$13,\"No\",0,1)","v":"No"},{"$f":"_xlfn.XLOOKUP($E8,'Activity 8'!$B$7:$B$13,'Activity 8'!I$7:I$13,\"N/A\",0,1)","v":"N/A"},{"$f":"_xlfn.XLOOKUP($E8,'Activity 8'!$B$7:$B$13,'Activity 8'!J$7:J$13,\"N/A\",0,1)","v":"N/A"},{"$f":"_xlfn.XLOOKUP($E8,'Activity 8'!$B$7:$B$13,'Activity 8'!K$7:K$13,\"N/A\",0,1)","v":"N/A"},{"$f":"_xlfn.XLOOKUP($E8,'Activity 8'!$B$7:$B$13,'Activity 8'!L$7:L$13,\"N/A\",0,1)","v":"N/A"},{"$f":"_xlfn.XLOOKUP($E8,'Activity 8'!$B$7:$B$13,'Activity 8'!M$7:M$13,\"N/A\",0,1)","v":"N/A"},{"$f":"_xlfn.XLOOKUP($E8,'Activity 8'!$B$7:$B$13,'Activity 8'!N$7:N$13,\"N/A\",0,1)","v":"N/A"},{"$f":"_xlfn.XLOOKUP($E8,'Activity 8'!$B$7:$B$13,'Activity 8'!O$7:O$13,\"N/A\",0,1)","v":"N/A"},{"$f":"_xlfn.XLOOKUP($E8,'Activity 8'!$B$7:$B$13,'Activity 8'!P$7:P$13,\"N/A\",0,1)","v":"N/A"},{"$f":"_xlfn.XLOOKUP($E8,'Activity 8'!$B$7:$B$13,'Activity 8'!Q$7:Q$13,\"N/A\",0,1)","v":"N/A"},{"$f":"_xlfn.XLOOKUP($E8,'Activity 8'!$B$7:$B$13,'Activity 8'!R$7:R$13,\"N/A\",0,1)","v":"N/A"},{"$f":"_xlfn.XLOOKUP($E8,'Activity 8'!$B$7:$B$13,'Activity 8'!S$7:S$13,\"N/A\",0,1)","v":"N/A"},{"$f":"_xlfn.XLOOKUP($E8,'Activity 8'!$B$7:$B$13,'Activity 8'!T$7:T$13,\"N/A\",0,1)","v":"N/A"},{"$f":"_xlfn.XLOOKUP($E8,'Activity 8'!$B$7:$B$13,'Activity 8'!U$7:U$13,\"N/A\",0,1)","v":"N/A"},{"$f":"_xlfn.XLOOKUP($E8,'Activity 8'!$B$7:$B$13,'Activity 8'!V$7:V$13,\"N/A\",0,1)","v":"N/A"},{"$f":"_xlfn.XLOOKUP($E8,'Activity 8'!$B$17:$B$23,'Activity 8'!D$17:D$23,\"N/A\",0,1)","v":"N/A"},{"$f":"_xlfn.XLOOKUP($E8,'Activity 8'!$B$17:$B$23,'Activity 8'!E$17:E$23,\"N/A\",0,1)","v":"N/A"},{"$f":"_xlfn.XLOOKUP($E8,'Activity 8'!$B$17:$B$23,'Activity 8'!F$17:F$23,\"N/A\",0,1)","v":"N/A"},{"$f":"_xlfn.XLOOKUP($E8,'Activity 8'!$B$17:$B$23,'Activity 8'!G$17:G$23,\"N/A\",0,1)","v":"N/A"},{"$f":"_xlfn.XLOOKUP($E8,'Activity 8'!$B$17:$B$23,'Activity 8'!H$17:H$23,\"N/A\",0,1)","v":"N/A"},{"$f":"_xlfn.XLOOKUP($E8,'Activity 8'!$B$17:$B$23,'Activity 8'!I$17:I$23,\"N/A\",0,1)","v":"N/A"},{"$f":"_xlfn.XLOOKUP($E8,'Activity 8'!$B$17:$B$23,'Activity 8'!J$17:J$23,\"N/A\",0,1)","v":"N/A"},{"$f":"_xlfn.XLOOKUP($E8,'Activity 8'!$B$17:$B$23,'Activity 8'!K$17:K$23,\"N/A\",0,1)","v":"N/A"},{"$f":"_xlfn.XLOOKUP($E8,'Activity 8'!$B$17:$B$23,'Activity 8'!L$17:L$23,\"N/A\",0,1)","v":"N/A"},{"$f":"_xlfn.XLOOKUP($E8,'Activity 8'!$B$17:$B$23,'Activity 8'!M$17:M$23,\"N/A\",0,1)","v":"N/A"},{"$f":"_xlfn.XLOOKUP($E8,'Activity 8'!$B$17:$B$23,'Activity 8'!N$17:N$23,\"N/A\",0,1)","v":"N/A"},{"$f":"_xlfn.XLOOKUP($E8,'Activity 8'!$B$17:$B$23,'Activity 8'!P$17:P$23,\"N/A\",0,1)","v":"N/A"},{"$f":"_xlfn.XLOOKUP(E8,'Activity 9'!$B$7:$B$13,'Activity 9'!$A$7:$A$13,\"No\",0,1)","v":"No"},{"$f":"_xlfn.XLOOKUP($E8,'Activity 9'!$B$7:$B$13,'Activity 9'!J$7:J$13,\"N/A\",0,1)","v":"N/A"},{"$f":"_xlfn.XLOOKUP($E8,'Activity 9'!$B$7:$B$13,'Activity 9'!K$7:K$13,\"N/A\",0,1)","v":"N/A"},{"$f":"_xlfn.XLOOKUP($E8,'Activity 9'!$B$7:$B$13,'Activity 9'!L$7:L$13,\"N/A\",0,1)","v":"N/A"},{"$f":"_xlfn.XLOOKUP($E8,'Activity 9'!$B$7:$B$13,'Activity 9'!M$7:M$13,\"N/A\",0,1)","v":"N/A"},{"$f":"_xlfn.XLOOKUP($E8,'Activity 9'!$B$7:$B$13,'Activity 9'!N$7:N$13,\"N/A\",0,1)","v":"N/A"},{"$f":"_xlfn.XLOOKUP($E8,'Activity 9'!$B$7:$B$13,'Activity 9'!O$7:O$13,\"N/A\",0,1)","v":"N/A"},{"$f":"_xlfn.XLOOKUP($E8,'Activity 9'!$B$7:$B$13,'Activity 9'!P$7:P$13,\"N/A\",0,1)","v":"N/A"},{"$f":"_xlfn.XLOOKUP($E8,'Activity 9'!$B$7:$B$13,'Activity 9'!Q$7:Q$13,\"N/A\",0,1)","v":"N/A"},{"$f":"_xlfn.XLOOKUP($E8,'Activity 9'!$B$7:$B$13,'Activity 9'!R$7:R$13,\"N/A\",0,1)","v":"N/A"},{"$f":"_xlfn.XLOOKUP($E8,'Activity 9'!$B$7:$B$13,'Activity 9'!S$7:S$13,\"N/A\",0,1)","v":"N/A"},{"$f":"_xlfn.XLOOKUP($E8,'Activity 9'!$B$7:$B$13,'Activity 9'!T$7:T$13,\"N/A\",0,1)","v":"N/A"},{"$f":"_xlfn.XLOOKUP($E8,'Activity 9'!$B$17:$B$23,'Activity 9'!E$17:E$23,\"N/A\",0,1)","v":"N/A"},{"$f":"_xlfn.XLOOKUP($E8,'Activity 9'!$B$17:$B$23,'Activity 9'!F$17:F$23,\"N/A\",0,1)","v":"N/A"},{"$f":"_xlfn.XLOOKUP($E8,'Activity 9'!$B$17:$B$23,'Activity 9'!G$17:G$23,\"N/A\",0,1)","v":"N/A"},{"$f":"_xlfn.XLOOKUP($E8,'Activity 9'!$B$17:$B$23,'Activity 9'!H$17:H$23,\"N/A\",0,1)","v":"N/A"},{"$f":"_xlfn.XLOOKUP($E8,'Activity 9'!$B$17:$B$23,'Activity 9'!I$17:I$23,\"N/A\",0,1)","v":"N/A"},{"$f":"_xlfn.XLOOKUP($E8,'Activity 9'!$B$17:$B$23,'Activity 9'!J$17:J$23,\"N/A\",0,1)","v":"N/A"},{"$f":"_xlfn.XLOOKUP($E8,'Activity 9'!$B$17:$B$23,'Activity 9'!K$17:K$23,\"N/A\",0,1)","v":"N/A"},{"$f":"_xlfn.XLOOKUP($E8,'Activity 9'!$B$17:$B$23,'Activity 9'!L$17:L$23,\"N/A\",0,1)","v":"N/A"},{"$f":"_xlfn.XLOOKUP($E8,'Activity 9'!$B$17:$B$23,'Activity 9'!N$17:N$23,\"N/A\",0,1)","v":"N/A"},{"$f":"_xlfn.XLOOKUP($E8,'Activity 9'!$B$17:$B$23,'Activity 9'!O$17:O$23,\"N/A\",0,1)","v":"N/A"},{"$f":"_xlfn.XLOOKUP($E8,'Activity 9'!$B$17:$B$23,'Activity 9'!Q$17:Q$23,\"N/A\",0,1)","v":"N/A"},{"$f":"_xlfn.XLOOKUP($E8,'Activity 10'!$B$7:$B$13,'Activity 10'!A$7:A$13,\"No\",0,1)","v":"No"},{"$f":"_xlfn.XLOOKUP($E8,'Activity 10'!$B$7:$B$13,'Activity 10'!J$7:J$13,\"N/A\",0,1)","v":"N/A"},{"$f":"_xlfn.XLOOKUP($E8,'Activity 10'!$B$7:$B$13,'Activity 10'!K$7:K$13,\"N/A\",0,1)","v":"N/A"},{"$f":"_xlfn.XLOOKUP($E8,'Activity 10'!$B$7:$B$13,'Activity 10'!L$7:L$13,\"N/A\",0,1)","v":"N/A"},{"$f":"_xlfn.XLOOKUP($E8,'Activity 10'!$B$7:$B$13,'Activity 10'!M$7:M$13,\"N/A\",0,1)","v":"N/A"},{"$f":"_xlfn.XLOOKUP($E8,'Activity 10'!$B$7:$B$13,'Activity 10'!N$7:N$13,\"N/A\",0,1)","v":"N/A"},{"$f":"_xlfn.XLOOKUP($E8,'Activity 10'!$B$7:$B$13,'Activity 10'!O$7:O$13,\"N/A\",0,1)","v":"N/A"},{"$f":"_xlfn.XLOOKUP($E8,'Activity 10'!$B$7:$B$13,'Activity 10'!P$7:P$13,\"N/A\",0,1)","v":"N/A"},{"$f":"_xlfn.XLOOKUP($E8,'Activity 10'!$B$7:$B$13,'Activity 10'!Q$7:Q$13,\"N/A\",0,1)","v":"N/A"},{"$f":"_xlfn.XLOOKUP($E8,'Activity 10'!$B$7:$B$13,'Activity 10'!R$7:R$13,\"N/A\",0,1)","v":"N/A"},{"$f":"_xlfn.XLOOKUP($E8,'Activity 10'!$B$7:$B$13,'Activity 10'!S$7:S$13,\"N/A\",0,1)","v":"N/A"},{"$f":"_xlfn.XLOOKUP($E8,'Activity 10'!$B$7:$B$13,'Activity 10'!T$7:T$13,\"N/A\",0,1)","v":"N/A"},{"$f":"_xlfn.XLOOKUP($E8,'Activity 10'!$B$7:$B$13,'Activity 10'!U$7:U$13,\"N/A\",0,1)","v":"N/A"},{"$f":"_xlfn.XLOOKUP($E8,'Activity 10'!$B$7:$B$13,'Activity 10'!V$7:V$13,\"N/A\",0,1)","v":"N/A"},{"$f":"_xlfn.XLOOKUP($E8,'Activity 10'!$B$17:$B$23,'Activity 10'!E$17:E$23,\"N/A\",0,1)","v":"N/A"},{"$f":"_xlfn.XLOOKUP($E8,'Activity 10'!$B$17:$B$23,'Activity 10'!F$17:F$23,\"N/A\",0,1)","v":"N/A"},{"$f":"_xlfn.XLOOKUP($E8,'Activity 10'!$B$17:$B$23,'Activity 10'!G$17:G$23,\"N/A\",0,1)","v":"N/A"},{"$f":"_xlfn.XLOOKUP($E8,'Activity 10'!$B$17:$B$23,'Activity 10'!H$17:H$23,\"N/A\",0,1)","v":"N/A"},{"$f":"_xlfn.XLOOKUP($E8,'Activity 10'!$B$17:$B$23,'Activity 10'!I$17:I$23,\"N/A\",0,1)","v":"N/A"},{"$f":"_xlfn.XLOOKUP($E8,'Activity 10'!$B$17:$B$23,'Activity 10'!J$17:J$23,\"N/A\",0,1)","v":"N/A"},{"$f":"_xlfn.XLOOKUP($E8,'Activity 10'!$B$17:$B$23,'Activity 10'!K$17:K$23,\"N/A\",0,1)","v":"N/A"},{"$f":"_xlfn.XLOOKUP($E8,'Activity 10'!$B$17:$B$23,'Activity 10'!L$17:L$23,\"N/A\",0,1)","v":"N/A"},{"$f":"_xlfn.XLOOKUP($E8,'Activity 10'!$B$17:$B$23,'Activity 10'!M$17:M$23,\"N/A\",0,1)","v":"N/A"},{"$f":"_xlfn.XLOOKUP($E8,'Activity 10'!$B$17:$B$23,'Activity 10'!N$17:N$23,\"N/A\",0,1)","v":"N/A"},{"$f":"_xlfn.XLOOKUP($E8,'Activity 10'!$B$17:$B$23,'Activity 10'!P$17:P$23,\"N/A\",0,1)","v":"N/A"},{"$f":"_xlfn.XLOOKUP($E8,'Competitive Activity 1'!B$7:B$13,'Competitive Activity 1'!A$7:A$13,\"No\",0,1)","v":"No"},{"$f":"_xlfn.XLOOKUP($E8,'Competitive Activity 1'!$B$7:$B$13,'Competitive Activity 1'!H$7:H$13,\"N/A\",0,1)","v":"N/A"},{"$f":"_xlfn.XLOOKUP($E8,'Competitive Activity 1'!$B$7:$B$13,'Competitive Activity 1'!I$7:I$13,\"N/A\",0,1)","v":"N/A"},{"$f":"_xlfn.XLOOKUP($E8,'Competitive Activity 1'!$B$7:$B$13,'Competitive Activity 1'!J$7:J$13,\"N/A\",0,1)","v":"N/A"},{"$f":"_xlfn.XLOOKUP($E8,'Competitive Activity 1'!$B$7:$B$13,'Competitive Activity 1'!K$7:K$13,\"N/A\",0,1)","v":"N/A"},{"$f":"_xlfn.XLOOKUP($E8,'Competitive Activity 1'!$B$7:$B$13,'Competitive Activity 1'!L$7:L$13,\"N/A\",0,1)","v":"N/A"},{"$f":"_xlfn.XLOOKUP($E8,'Competitive Activity 1'!$B$7:$B$13,'Competitive Activity 1'!M$7:M$13,\"N/A\",0,1)","v":"N/A"},{"$f":"_xlfn.XLOOKUP($E8,'Competitive Activity 1'!$B$7:$B$13,'Competitive Activity 1'!N$7:N$13,\"N/A\",0,1)","v":"N/A"},{"$f":"_xlfn.XLOOKUP($E8,'Competitive Activity 1'!$B$7:$B$13,'Competitive Activity 1'!O$7:O$13,\"N/A\",0,1)","v":"N/A"},{"$f":"_xlfn.XLOOKUP($E8,'Competitive Activity 1'!$B$7:$B$13,'Competitive Activity 1'!P$7:P$13,\"N/A\",0,1)","v":"N/A"},{"$f":"_xlfn.XLOOKUP($E8,'Competitive Activity 1'!$B$7:$B$13,'Competitive Activity 1'!Q$7:Q$13,\"N/A\",0,1)","v":"N/A"},{"$f":"_xlfn.XLOOKUP($E8,'Competitive Activity 1'!$B$7:$B$13,'Competitive Activity 1'!R$7:R$13,\"N/A\",0,1)","v":"N/A"},{"$f":"_xlfn.XLOOKUP($E8,'Competitive Activity 1'!$B$7:$B$13,'Competitive Activity 1'!S$7:S$13,\"N/A\",0,1)","v":"N/A"},{"$f":"_xlfn.XLOOKUP($E8,'Competitive Activity 1'!$B$7:$B$13,'Competitive Activity 1'!T$7:T$13,\"N/A\",0,1)","v":"N/A"},{"$f":"_xlfn.XLOOKUP($E8,'Competitive Activity 1'!$B$7:$B$13,'Competitive Activity 1'!U$7:U$13,\"N/A\",0,1)","v":"N/A"},{"$f":"_xlfn.XLOOKUP($E8,'Competitive Activity 1'!$B$17:$B$23,'Competitive Activity 1'!C$17:C$23,\"N/A\",0,1)","v":"N/A"},{"$f":"_xlfn.XLOOKUP($E8,'Competitive Activity 1'!$B$17:$B$23,'Competitive Activity 1'!D$17:D$23,\"N/A\",0,1)","v":"N/A"},{"$f":"_xlfn.XLOOKUP($E8,'Competitive Activity 1'!$B$17:$B$23,'Competitive Activity 1'!E$17:E$23,\"N/A\",0,1)","v":"N/A"},{"$f":"_xlfn.XLOOKUP($E8,'Competitive Activity 1'!$B$17:$B$23,'Competitive Activity 1'!F$17:F$23,\"N/A\",0,1)","v":"N/A"},{"$f":"_xlfn.XLOOKUP($E8,'Competitive Activity 1'!$B$17:$B$23,'Competitive Activity 1'!G$17:G$23,\"N/A\",0,1)","v":"N/A"},{"$f":"_xlfn.XLOOKUP($E8,'Competitive Activity 1'!$B$17:$B$23,'Competitive Activity 1'!H$17:H$23,\"N/A\",0,1)","v":"N/A"},{"$f":"_xlfn.XLOOKUP($E8,'Competitive Activity 1'!$B$17:$B$23,'Competitive Activity 1'!I$17:I$23,\"N/A\",0,1)","v":"N/A"},{"$f":"_xlfn.XLOOKUP($E8,'Competitive Activity 1'!$B$17:$B$23,'Competitive Activity 1'!J$17:J$23,\"N/A\",0,1)","v":"N/A"},{"$f":"_xlfn.XLOOKUP($E8,'Competitive Activity 1'!$B$17:$B$23,'Competitive Activity 1'!K$17:K$23,\"N/A\",0,1)","v":"N/A"},{"$f":"_xlfn.XLOOKUP($E8,'Competitive Activity 1'!$B$17:$B$23,'Competitive Activity 1'!M$17:M$23,\"N/A\",0,1)","v":"N/A"},{"$f":"_xlfn.XLOOKUP($E8,'Competitive Activity 1'!$B$17:$B$23,'Competitive Activity 1'!N$17:N$23,\"N/A\",0,1)","v":"N/A"},{"$f":"_xlfn.XLOOKUP($E8,'Competitive Activity 1'!$B$17:$B$23,'Competitive Activity 1'!P$17:P$23,\"N/A\",0,1)","v":"N/A"},{"$f":"_xlfn.XLOOKUP($E8,'Competitive Activity 2'!$B$7:$B$13,'Competitive Activity 2'!A$7:A$13,\"No\",0)","v":"No"},{"$f":"_xlfn.XLOOKUP($E8,'Competitive Activity 2'!$B$7:$B$13,'Competitive Activity 2'!L$7:L$13,\"N/A\",0)","v":"N/A"},{"$f":"_xlfn.XLOOKUP($E8,'Competitive Activity 2'!$B$7:$B$13,'Competitive Activity 2'!M$7:M$13,\"N/A\",0)","v":"N/A"},{"$f":"_xlfn.XLOOKUP($E8,'Competitive Activity 2'!$B$7:$B$13,'Competitive Activity 2'!N$7:N$13,\"N/A\",0)","v":"N/A"},{"$f":"_xlfn.XLOOKUP($E8,'Competitive Activity 2'!$B$7:$B$13,'Competitive Activity 2'!O$7:O$13,\"N/A\",0)","v":"N/A"},{"$f":"_xlfn.XLOOKUP($E8,'Competitive Activity 2'!$B$7:$B$13,'Competitive Activity 2'!P$7:P$13,\"N/A\",0)","v":"N/A"},{"$f":"_xlfn.XLOOKUP($E8,'Competitive Activity 2'!$B$7:$B$13,'Competitive Activity 2'!Q$7:Q$13,\"N/A\",0)","v":"N/A"},{"$f":"_xlfn.XLOOKUP($E8,'Competitive Activity 2'!$B$7:$B$13,'Competitive Activity 2'!R$7:R$13,\"N/A\",0)","v":"N/A"},{"$f":"_xlfn.XLOOKUP($E8,'Competitive Activity 2'!$B$7:$B$13,'Competitive Activity 2'!S$7:S$13,\"N/A\",0)","v":"N/A"},{"$f":"_xlfn.XLOOKUP($E8,'Competitive Activity 2'!$B$7:$B$13,'Competitive Activity 2'!T$7:T$13,\"N/A\",0)","v":"N/A"},{"$f":"_xlfn.XLOOKUP($E8,'Competitive Activity 2'!$B$7:$B$13,'Competitive Activity 2'!U$7:U$13,\"N/A\",0)","v":"N/A"},{"$f":"_xlfn.XLOOKUP($E8,'Competitive Activity 2'!$B$17:$B$23,'Competitive Activity 2'!D$17:D$23,\"N/A\",0)","v":"N/A"},{"$f":"_xlfn.XLOOKUP($E8,'Competitive Activity 2'!$B$17:$B$23,'Competitive Activity 2'!E$17:E$23,\"N/A\",0)","v":"N/A"},{"$f":"_xlfn.XLOOKUP($E8,'Competitive Activity 2'!$B$17:$B$23,'Competitive Activity 2'!F$17:F$23,\"N/A\",0)","v":"N/A"},{"$f":"_xlfn.XLOOKUP($E8,'Competitive Activity 2'!$B$17:$B$23,'Competitive Activity 2'!G$17:G$23,\"N/A\",0)","v":"N/A"},{"$f":"_xlfn.XLOOKUP($E8,'Competitive Activity 2'!$B$17:$B$23,'Competitive Activity 2'!H$17:H$23,\"N/A\",0)","v":"N/A"},{"$f":"_xlfn.XLOOKUP($E8,'Competitive Activity 2'!$B$17:$B$23,'Competitive Activity 2'!I$17:I$23,\"N/A\",0)","v":"N/A"},{"$f":"_xlfn.XLOOKUP($E8,'Competitive Activity 2'!$B$17:$B$23,'Competitive Activity 2'!J$17:J$23,\"N/A\",0)","v":"N/A"},{"$f":"_xlfn.XLOOKUP($E8,'Competitive Activity 2'!$B$17:$B$23,'Competitive Activity 2'!K$17:K$23,\"N/A\",0)","v":"N/A"},{"$f":"_xlfn.XLOOKUP($E8,'Competitive Activity 2'!$B$17:$B$23,'Competitive Activity 2'!L$17:L$23,\"N/A\",0)","v":"N/A"},{"$f":"_xlfn.XLOOKUP($E8,'Competitive Activity 2'!$B$17:$B$23,'Competitive Activity 2'!M$17:M$23,\"N/A\",0)","v":"N/A"},{"$f":"_xlfn.XLOOKUP($E8,'Competitive Activity 2'!$B$17:$B$23,'Competitive Activity 2'!N$17:N$23,\"N/A\",0)","v":"N/A"},{"$f":"_xlfn.XLOOKUP($E8,'Competitive Activity 2'!$B$27:$B$33,'Competitive Activity 2'!D$27:D$33,\"N/A\",0)","v":"N/A"},{"$f":"_xlfn.XLOOKUP($E8,'Competitive Activity 2'!$B$27:$B$33,'Competitive Activity 2'!E$27:E$33,\"N/A\",0)","v":"N/A"},{"$f":"_xlfn.XLOOKUP($E8,'Competitive Activity 2'!$B$27:$B$33,'Competitive Activity 2'!F$27:F$33,\"N/A\",0)","v":"N/A"},{"$f":"_xlfn.XLOOKUP($E8,'Competitive Activity 2'!$B$27:$B$33,'Competitive Activity 2'!G$27:G$33,\"N/A\",0)","v":"N/A"},{"$f":"_xlfn.XLOOKUP($E8,'Competitive Activity 2'!$B$27:$B$33,'Competitive Activity 2'!H$27:H$33,\"N/A\",0)","v":"N/A"},{"$f":"_xlfn.XLOOKUP($E8,'Competitive Activity 2'!$B$27:$B$33,'Competitive Activity 2'!I$27:I$33,\"N/A\",0)","v":"N/A"},{"$f":"_xlfn.XLOOKUP($E8,'Competitive Activity 2'!$B$27:$B$33,'Competitive Activity 2'!J$27:J$33,\"N/A\",0)","v":"N/A"},{"$f":"_xlfn.XLOOKUP($E8,'Competitive Activity 2'!$B$27:$B$33,'Competitive Activity 2'!K$27:K$33,\"N/A\",0)","v":"N/A"},{"$f":"_xlfn.XLOOKUP($E8,'Competitive Activity 2'!$B$27:$B$33,'Competitive Activity 2'!M$27:M$33,\"N/A\",0)","v":"N/A"}]
[{"$f":"'1-Cover Sheet'!$C$8","v":"Select One"},{"$f":"'1-Cover Sheet'!$F$8","v":"Select One"},{"$f":"'Summary Sheet'!$D$8","v":0},{"$f":"'Summary Sheet'!$D$10","v":0},{"$f":"'Drop Down Box'!B173","v":0},{"$f":"'Drop Down Box'!C173","v":0},{"$f":"'Drop Down Box'!D173","v":"Select One"},{"$f":"_xlfn.XLOOKUP(E9,'Drop Down Box'!$B$166:$B$249,'Drop Down Box'!$A$166:$A$249,\"Unknown\",0)","v":"Activity 1"},{"$f":"_xlfn.XLOOKUP($E9,'Activity 2'!$B$17:$B$23,'Activity 2'!$N$17:$N$23,\"N/A\",0)","v":"N/A"},{"$f":"_xlfn.XLOOKUP($E9,'Activity 2'!$B$17:$B$23,'Activity 2'!$P$17:$P$23,\"N/A\",0)","v":"N/A"},{"$f":"_xlfn.XLOOKUP($E9,'Activity 2'!$B$7:$B$13,'Activity 2'!E$7:E$13,0,0)","v":0},{"$f":"_xlfn.XLOOKUP($E9,'Activity 2'!$B$7:$B$13,'Activity 2'!F$7:F$13,0,0)","v":"00:00:00"},{"$f":"_xlfn.XLOOKUP($E9,'Activity 2'!$B$7:$B$13,'Activity 2'!G$7:G$13,0,0)","v":0},{"$f":"_xlfn.XLOOKUP($E9,'Activity 1'!$B$7:$B$13,'Activity 1'!$A$7:$A$13,\"No\",0,1)","v":"No"},{"$f":"_xlfn.XLOOKUP($E9,'Activity 1'!$B$7:$B$13,'Activity 1'!$H$7:$H$13,\"N/A\",0,1)","v":"N/A"},{"$f":"_xlfn.XLOOKUP($E9,'Activity 1'!$B$7:$B$13,'Activity 1'!I$7:I$13,\"N/A\",0,1)","v":"N/A"},{"$f":"_xlfn.XLOOKUP($E9,'Activity 1'!$B$7:$B$13,'Activity 1'!J$7:J$13,\"N/A\",0,1)","v":"N/A"},{"$f":"_xlfn.XLOOKUP($E9,'Activity 1'!$B$7:$B$13,'Activity 1'!K$7:K$13,\"N/A\",0,1)","v":"N/A"},{"$f":"_xlfn.XLOOKUP($E9,'Activity 1'!$B$7:$B$13,'Activity 1'!L$7:L$13,\"N/A\",0,1)","v":"N/A"},{"$f":"_xlfn.XLOOKUP($E9,'Activity 1'!$B$7:$B$13,'Activity 1'!M$7:M$13,\"N/A\",0,1)","v":"N/A"},{"$f":"_xlfn.XLOOKUP($E9,'Activity 1'!$B$7:$B$13,'Activity 1'!N$7:N$13,\"N/A\",0,1)","v":"N/A"},{"$f":"SUM(Q9:U9)","v":0},{"$f":"_xlfn.XLOOKUP($E9,'Activity 1'!$B$7:$B$13,'Activity 1'!O$7:O$13,\"N/A\",0,1)","v":"N/A"},{"$f":"_xlfn.XLOOKUP($E9,'Activity 1'!$B$7:$B$13,'Activity 1'!P$7:P$13,\"N/A\",0,1)","v":"N/A"},{"$f":"_xlfn.XLOOKUP($E9,'Activity 1'!$B$7:$B$13,'Activity 1'!Q$7:Q$13,\"N/A\",0,1)","v":"N/A"},{"$f":"_xlfn.XLOOKUP($E9,'Activity 1'!$B$7:$B$13,'Activity 1'!R$7:R$13,\"N/A\",0,1)","v":"N/A"},{"$f":"_xlfn.XLOOKUP($E9,'Activity 1'!$B$7:$B$13,'Activity 1'!S$7:S$13,\"N/A\",0,1)","v":"N/A"},{"$f":"_xlfn.XLOOKUP($E9,'Activity 1'!$B$7:$B$13,'Activity 1'!T$7:T$13,\"N/A\",0,1)","v":"N/A"},{"$f":"_xlfn.XLOOKUP($E9,'Activity 1'!$B$7:$B$13,'Activity 1'!U$7:U$13,\"N/A\",0,1)","v":"N/A"},{"$f":"_xlfn.XLOOKUP($E9,'Activity 1'!$B$7:$B$13,'Activity 1'!V$7:V$13,\"N/A\",0,1)","v":"N/A"},{"$f":"_xlfn.XLOOKUP($E9,'Activity 1'!$B$17:$B$23,'Activity 1'!C$17:C$23,\"N/A\",0,1)","v":"N/A"},{"$f":"_xlfn.XLOOKUP($E9,'Activity 1'!$B$17:$B$23,'Activity 1'!D$17:D$23,\"N/A\",0,1)","v":"N/A"},{"$f":"_xlfn.XLOOKUP($E9,'Activity 1'!$B$17:$B$23,'Activity 1'!E$17:E$23,\"N/A\",0,1)","v":"N/A"},{"$f":"_xlfn.XLOOKUP($E9,'Activity 1'!$B$17:$B$23,'Activity 1'!F$17:F$23,\"N/A\",0,1)","v":"N/A"},{"$f":"_xlfn.XLOOKUP($E9,'Activity 1'!$B$17:$B$23,'Activity 1'!G$17:G$23,\"N/A\",0,1)","v":"N/A"},{"$f":"_xlfn.XLOOKUP($E9,'Activity 1'!$B$17:$B$23,'Activity 1'!H$17:H$23,\"N/A\",0,1)","v":"N/A"},{"$f":"_xlfn.XLOOKUP($E9,'Activity 1'!$B$17:$B$23,'Activity 1'!I$17:I$23,\"N/A\",0,1)","v":"N/A"},{"$f":"_xlfn.XLOOKUP($E9,'Activity 1'!$B$17:$B$23,'Activity 1'!J$17:J$23,\"N/A\",0,1)","v":"N/A"},{"$f":"_xlfn.XLOOKUP($E9,'Activity 1'!$B$17:$B$23,'Activity 1'!K$17:K$23,\"N/A\",0,1)","v":"N/A"},{"$f":"_xlfn.XLOOKUP($E9,'Activity 1'!$B$17:$B$23,'Activity 1'!L$17:L$23,\"N/A\",0,1)","v":"N/A"},{"$f":"_xlfn.XLOOKUP($E9,'Activity 1'!$B$17:$B$23,'Activity 1'!M$17:M$23,\"N/A\",0,1)","v":"N/A"},{"$f":"_xlfn.XLOOKUP($E9,'Activity 1'!$B$17:$B$23,'Activity 1'!O$17:O$23,\"N/A\",0,1)","v":"N/A"},{"$f":"_xlfn.XLOOKUP($E9,'Activity 1'!$B$17:$B$23,'Activity 1'!Q$17:Q$23,\"N/A\",0,1)","v":"N/A"},{"$f":"_xlfn.XLOOKUP($E9,'Activity 2'!$B$7:$B$13,'Activity 2'!$A$7:$A$13,\"No\",0,1)","v":"No"},{"$f":"_xlfn.XLOOKUP($E9,'Activity 2'!B$7:B$13,'Activity 2'!H$7:H$13,\"N/A\",0)","v":"N/A"},{"$f":"_xlfn.XLOOKUP($E9,'Activity 2'!C$7:C$13,'Activity 2'!I$7:I$13,\"N/A\",0)","v":"N/A"},{"$f":"_xlfn.XLOOKUP($E9,'Activity 2'!D$7:D$13,'Activity 2'!J$7:J$13,\"N/A\",0)","v":"N/A"},{"$f":"_xlfn.XLOOKUP($E9,'Activity 2'!E$7:E$13,'Activity 2'!K$7:K$13,\"N/A\",0)","v":"N/A"},{"$f":"_xlfn.XLOOKUP($E9,'Activity 2'!F$7:F$13,'Activity 2'!L$7:L$13,\"N/A\",0)","v":"N/A"},{"$f":"_xlfn.XLOOKUP($E9,'Activity 2'!G$7:G$13,'Activity 2'!M$7:M$13,\"N/A\",0)","v":"N/A"},{"$f":"_xlfn.XLOOKUP($E9,'Activity 2'!H$7:H$13,'Activity 2'!N$7:N$13,\"N/A\",0)","v":"N/A"},{"$f":"_xlfn.XLOOKUP($E9,'Activity 2'!I$7:I$13,'Activity 2'!O$7:O$13,\"N/A\",0)","v":"N/A"},{"$f":"_xlfn.XLOOKUP($E9,'Activity 2'!J$7:J$13,'Activity 2'!P$7:P$13,\"N/A\",0)","v":"N/A"},{"$f":"_xlfn.XLOOKUP($E9,'Activity 2'!K$7:K$13,'Activity 2'!Q$7:Q$13,\"N/A\",0)","v":"N/A"},{"$f":"_xlfn.XLOOKUP($E9,'Activity 2'!L$7:L$13,'Activity 2'!R$7:R$13,\"N/A\",0)","v":"N/A"},{"$f":"_xlfn.XLOOKUP($E9,'Activity 2'!M$7:M$13,'Activity 2'!S$7:S$13,\"N/A\",0)","v":"N/A"},{"$f":"_xlfn.XLOOKUP($E9,'Activity 2'!N$7:N$13,'Activity 2'!T$7:T$13,\"N/A\",0)","v":"N/A"},{"$f":"_xlfn.XLOOKUP($E9,'Activity 2'!O$7:O$13,'Activity 2'!U$7:U$13,\"N/A\",0)","v":"N/A"},{"$f":"_xlfn.XLOOKUP($E9,'Activity 2'!P$7:P$13,'Activity 2'!V$7:V$13,\"N/A\",0)","v":"N/A"},{"$f":"_xlfn.XLOOKUP($E9,'Activity 2'!$B$17:$B$23,'Activity 2'!C$17:C$23,\"N/A\",0,1)","v":"N/A"},{"$f":"_xlfn.XLOOKUP($E9,'Activity 2'!$B$17:$B$23,'Activity 2'!D$17:D$23,\"N/A\",0,1)","v":"N/A"},{"$f":"_xlfn.XLOOKUP($E9,'Activity 2'!$B$17:$B$23,'Activity 2'!E$17:E$23,\"N/A\",0,1)","v":"N/A"},{"$f":"_xlfn.XLOOKUP($E9,'Activity 2'!$B$17:$B$23,'Activity 2'!F$17:F$23,\"N/A\",0,1)","v":"N/A"},{"$f":"_xlfn.XLOOKUP($E9,'Activity 2'!$B$17:$B$23,'Activity 2'!G$17:G$23,\"N/A\",0,1)","v":"N/A"},{"$f":"_xlfn.XLOOKUP($E9,'Activity 2'!$B$17:$B$23,'Activity 2'!H$17:H$23,\"N/A\",0,1)","v":"N/A"},{"$f":"_xlfn.XLOOKUP($E9,'Activity 2'!$B$17:$B$23,'Activity 2'!I$17:I$23,\"N/A\",0,1)","v":"N/A"},{"$f":"_xlfn.XLOOKUP($E9,'Activity 2'!$B$17:$B$23,'Activity 2'!J$17:J$23,\"N/A\",0,1)","v":"N/A"},{"$f":"_xlfn.XLOOKUP($E9,'Activity 2'!$B$17:$B$23,'Activity 2'!K$17:K$23,\"N/A\",0,1)","v":"N/A"},{"$f":"_xlfn.XLOOKUP($E9,'Activity 2'!$B$17:$B$23,'Activity 2'!L$17:L$23,\"N/A\",0,1)","v":"N/A"},{"$f":"_xlfn.XLOOKUP($E9,'Activity 2'!$B$17:$B$23,'Activity 2'!M$17:M$23,\"N/A\",0,1)","v":"N/A"},{"$f":"_xlfn.XLOOKUP($E9,'Activity 2'!$B$17:$B$23,'Activity 2'!O$17:O$23,\"N/A\",0,1)","v":"N/A"},{"$f":"_xlfn.XLOOKUP($E9,'Activity 2'!$B$17:$B$23,'Activity 2'!Q$17:Q$23,\"N/A\",0,1)","v":"N/A"},{"$f":"_xlfn.XLOOKUP($E9,'Activity 3'!$B$8:$B$14,'Activity 3'!A$8:A$14,\"No\",0,1)","v":"No"},{"$f":"_xlfn.XLOOKUP($E9,'Activity 3'!$B$8:$B$14,'Activity 3'!K$8:K$14,\"N/A\",0,1)","v":"N/A"},{"$f":"_xlfn.XLOOKUP($E9,'Activity 3'!$B$8:$B$14,'Activity 3'!L$8:L$14,\"N/A\",0,1)","v":"N/A"},{"$f":"_xlfn.XLOOKUP($E9,'Activity 3'!$B$8:$B$14,'Activity 3'!M$8:M$14,\"N/A\",0,1)","v":"N/A"},{"$f":"_xlfn.XLOOKUP($E9,'Activity 3'!$B$8:$B$14,'Activity 3'!N$8:N$14,\"N/A\",0,1)","v":"N/A"},{"$f":"_xlfn.XLOOKUP($E9,'Activity 3'!$B$8:$B$14,'Activity 3'!O$8:O$14,\"N/A\",0,1)","v":"N/A"},{"$f":"_xlfn.XLOOKUP($E9,'Activity 3'!$B$8:$B$14,'Activity 3'!R$8:R$14,\"N/A\",0,1)","v":"N/A"},{"$f":"_xlfn.XLOOKUP($E9,'Activity 4'!$B$8:$B$14,'Activity 4'!$A$8:$A$14,\"No\",0,1)","v":"No"},{"$f":"_xlfn.XLOOKUP($E9,'Activity 4'!$B$8:$B$14,'Activity 4'!L$8:L$14,\"N/A\",0,1)","v":"N/A"},{"$f":"_xlfn.XLOOKUP($E9,'Activity 4'!$B$8:$B$14,'Activity 4'!D$8:D$14,\"N/A\",0,1)","v":"N/A"},{"$f":"_xlfn.XLOOKUP($E9,'Activity 4'!$B$8:$B$14,'Activity 4'!G$8:G$14,\"N/A\",0,1)","v":"N/A"},{"$f":"_xlfn.XLOOKUP($E9,'Activity 5'!$B$8:$B$14,'Activity 5'!$A$8:$A$14,\"No\",0,1)","v":"No"},{"$f":"_xlfn.XLOOKUP($E9,'Activity 5'!$B$8:$B$14,'Activity 5'!J$8:J$14,\"N/A\",0,1)","v":"N/A"},{"$f":"_xlfn.XLOOKUP($E9,'Activity 5'!$B$8:$B$14,'Activity 5'!K$8:K$14,\"N/A\",0,1)","v":"N/A"},{"$f":"_xlfn.XLOOKUP($E9,'Activity 5'!$B$8:$B$14,'Activity 5'!N$8:N$14,\"N/A\",0,1)","v":"N/A"},{"$f":"_xlfn.XLOOKUP($E9,'Activity 5'!$B$8:$B$14,'Activity 5'!O$8:O$14,\"N/A\",0,1)","v":"N/A"},{"$f":"_xlfn.XLOOKUP($E9,'Activity 5'!$B$8:$B$14,'Activity 5'!P$8:P$14,\"N/A\",0,1)","v":"N/A"},{"$f":"_xlfn.XLOOKUP($E9,'Activity 5'!$B$8:$B$14,'Activity 5'!Q$8:Q$14,\"N/A\",0,1)","v":"N/A"},{"$f":"_xlfn.XLOOKUP($E9,'Activity 5'!$B$8:$B$14,'Activity 5'!R$8:R$14,\"N/A\",0,1)","v":"N/A"},{"$f":"_xlfn.XLOOKUP($E9,'Activity 6'!$B$7:$B$13,'Activity 6'!A$7:A$13,\"No\",0,1)","v":"No"},{"$f":"_xlfn.XLOOKUP($E9,'Activity 6'!$B$7:$B$13,'Activity 6'!K$7:K$13,\"N/A\",0,1)","v":"N/A"},{"$f":"_xlfn.XLOOKUP($E9,'Activity 6'!$B$7:$B$13,'Activity 6'!L$7:L$13,\"N/A\",0,1)","v":"N/A"},{"$f":"_xlfn.XLOOKUP($E9,'Activity 6'!$B$7:$B$13,'Activity 6'!M$7:M$13,\"N/A\",0,1)","v":"N/A"},{"$f":"_xlfn.XLOOKUP($E9,'Activity 6'!$B$7:$B$13,'Activity 6'!N$7:N$13,\"N/A\",0,1)","v":"N/A"},{"$f":"_xlfn.XLOOKUP($E9,'Activity 6'!$B$7:$B$13,'Activity 6'!O$7:O$13,\"N/A\",0,1)","v":"N/A"},{"$f":"_xlfn.XLOOKUP($E9,'Activity 6'!$B$7:$B$13,'Activity 6'!P$7:P$13,\"N/A\",0,1)","v":"N/A"},{"$f":"_xlfn.XLOOKUP($E9,'Activity 6'!$B$7:$B$13,'Activity 6'!Q$7:Q$13,\"N/A\",0,1)","v":"N/A"},{"$f":"_xlfn.XLOOKUP($E9,'Activity 6'!$B$7:$B$13,'Activity 6'!R$7:R$13,\"N/A\",0,1)","v":"N/A"},{"$f":"_xlfn.XLOOKUP($E9,'Activity 6'!$B$7:$B$13,'Activity 6'!S$7:S$13,\"N/A\",0,1)","v":"N/A"},{"$f":"_xlfn.XLOOKUP($E9,'Activity 6'!$B$7:$B$13,'Activity 6'!T$7:T$13,\"N/A\",0,1)","v":"N/A"},{"$f":"_xlfn.XLOOKUP($E9,'Activity 6'!$B$7:$B$13,'Activity 6'!U$7:U$13,\"N/A\",0,1)","v":"N/A"},{"$f":"_xlfn.XLOOKUP($E9,'Activity 6'!$B$22:$B$28,'Activity 6'!C$22:C$28,\"N/A\",0,1)","v":"N/A"},{"$f":"_xlfn.XLOOKUP($E9,'Activity 6'!$B$22:$B$28,'Activity 6'!D$22:D$28,\"N/A\",0,1)","v":"N/A"},{"$f":"_xlfn.XLOOKUP($E9,'Activity 6'!$B$22:$B$28,'Activity 6'!E$22:E$28,\"N/A\",0,1)","v":"N/A"},{"$f":"_xlfn.XLOOKUP($E9,'Activity 6'!$B$22:$B$28,'Activity 6'!F$22:F$28,\"N/A\",0,1)","v":"N/A"},{"$f":"_xlfn.XLOOKUP($E9,'Activity 6'!$B$22:$B$28,'Activity 6'!G$22:G$28,\"N/A\",0,1)","v":"N/A"},{"$f":"_xlfn.XLOOKUP($E9,'Activity 6'!$B$22:$B$28,'Activity 6'!H$22:H$28,\"N/A\",0,1)","v":"N/A"},{"$f":"_xlfn.XLOOKUP($E9,'Activity 6'!$B$22:$B$28,'Activity 6'!I$22:I$28,\"N/A\",0,1)","v":"N/A"},{"$f":"_xlfn.XLOOKUP($E9,'Activity 6'!$B$22:$B$28,'Activity 6'!J$22:J$28,\"N/A\",0,1)","v":"N/A"},{"$f":"_xlfn.XLOOKUP($E9,'Activity 6'!$B$22:$B$28,'Activity 6'!K$22:K$28,\"N/A\",0,1)","v":"N/A"},{"$f":"_xlfn.XLOOKUP($E9,'Activity 6'!$B$22:$B$28,'Activity 6'!L$22:L$28,\"N/A\",0,1)","v":"N/A"},{"$f":"_xlfn.XLOOKUP($E9,'Activity 6'!$B$22:$B$28,'Activity 6'!M$22:M$28,\"N/A\",0,1)","v":"N/A"},{"$f":"_xlfn.XLOOKUP($E9,'Activity 6'!$B$22:$B$28,'Activity 6'!N$22:N$28,\"N/A\",0,1)","v":"N/A"},{"$f":"_xlfn.XLOOKUP($E9,'Activity 6'!$B$32:$B$38,'Activity 6'!C$32:C$38,\"N/A\",0,1)","v":"N/A"},{"$f":"_xlfn.XLOOKUP($E9,'Activity 6'!$B$32:$B$38,'Activity 6'!D$32:D$38,\"N/A\",0,1)","v":"N/A"},{"$f":"_xlfn.XLOOKUP($E9,'Activity 6'!$B$32:$B$38,'Activity 6'!E$32:E$38,\"N/A\",0,1)","v":"N/A"},{"$f":"_xlfn.XLOOKUP($E9,'Activity 6'!$B$32:$B$38,'Activity 6'!F$32:F$38,\"N/A\",0,1)","v":"N/A"},{"$f":"_xlfn.XLOOKUP($E9,'Activity 6'!$B$32:$B$38,'Activity 6'!G$32:G$38,\"N/A\",0,1)","v":"N/A"},{"$f":"_xlfn.XLOOKUP($E9,'Activity 6'!$B$32:$B$38,'Activity 6'!H$32:H$38,\"N/A\",0,1)","v":"N/A"},{"$f":"_xlfn.XLOOKUP($E9,'Activity 6'!$B$32:$B$38,'Activity 6'!I$32:I$38,\"N/A\",0,1)","v":"N/A"},{"$f":"_xlfn.XLOOKUP($E9,'Activity 6'!$B$32:$B$38,'Activity 6'!J$32:J$38,\"N/A\",0,1)","v":"N/A"},{"$f":"_xlfn.XLOOKUP($E9,'Activity 6'!$B$32:$B$38,'Activity 6'!K$32:K$38,\"N/A\",0,1)","v":"N/A"},{"$f":"_xlfn.XLOOKUP($E9,'Activity 6'!$B$32:$B$38,'Activity 6'!M$32:M$38,\"N/A\",0,1)","v":"N/A"},{"$f":"_xlfn.XLOOKUP($E9,'Activity 7'!$B$7:$B$13,'Activity 7'!$A$7:$A$13,\"No\",0,1)","v":"No"},{"$f":"_xlfn.XLOOKUP($E9,'Activity 7'!$B$7:$B$13,'Activity 7'!M$7:M$13,\"N/A\",0,1)","v":"N/A"},{"$f":"_xlfn.XLOOKUP($E9,'Activity 7'!$B$7:$B$13,'Activity 7'!K$7:K$13,\"N/A\",0,1)","v":"N/A"},{"$f":"_xlfn.XLOOKUP($E9,'Activity 7'!$B$7:$B$13,'Activity 7'!N$7:N$13,\"N/A\",0,1)","v":"N/A"},{"$f":"_xlfn.XLOOKUP($E9,'Activity 7'!$B$7:$B$13,'Activity 7'!O$7:O$13,\"N/A\",0,1)","v":"N/A"},{"$f":"_xlfn.XLOOKUP($E9,'Activity 7'!$B$7:$B$13,'Activity 7'!P$7:P$13,\"N/A\",0,1)","v":"N/A"},{"$f":"_xlfn.XLOOKUP($E9,'Activity 7'!$B$7:$B$13,'Activity 7'!Q$7:Q$13,\"N/A\",0,1)","v":"N/A"},{"$f":"_xlfn.XLOOKUP($E9,'Activity 7'!$B$7:$B$13,'Activity 7'!R$7:R$13,\"N/A\",0,1)","v":"N/A"},{"$f":"_xlfn.XLOOKUP($E9,'Activity 7'!$B$7:$B$13,'Activity 7'!S$7:S$13,\"N/A\",0,1)","v":"N/A"},{"$f":"_xlfn.XLOOKUP($E9,'Activity 7'!$B$7:$B$13,'Activity 7'!T$7:T$13,\"N/A\",0,1)","v":"N/A"},{"$f":"_xlfn.XLOOKUP($E9,'Activity 7'!$B$7:$B$13,'Activity 7'!U$7:U$13,\"N/A\",0,1)","v":"N/A"},{"$f":"_xlfn.XLOOKUP($E9,'Activity 7'!$B$7:$B$13,'Activity 7'!V$7:V$13,\"N/A\",0,1)","v":"N/A"},{"$f":"_xlfn.XLOOKUP($E9,'Activity 7'!$B$17:$B$23,'Activity 7'!E$17:E$23,\"N/A\",0,1)","v":"N/A"},{"$f":"_xlfn.XLOOKUP($E9,'Activity 7'!$B$17:$B$23,'Activity 7'!G$17:G$23,\"N/A\",0,1)","v":"N/A"},{"$f":"_xlfn.XLOOKUP($E9,'Activity 7'!$B$17:$B$23,'Activity 7'!I$17:I$23,\"N/A\",0,1)","v":"N/A"},{"$f":"_xlfn.XLOOKUP($E9,'Activity 7'!$B$17:$B$23,'Activity 7'!J$17:J$23,\"N/A\",0,1)","v":"N/A"},{"$f":"_xlfn.XLOOKUP($E9,'Activity 7'!$B$17:$B$23,'Activity 7'!K$17:K$23,\"N/A\",0,1)","v":"N/A"},{"$f":"_xlfn.XLOOKUP($E9,'Activity 7'!$B$17:$B$23,'Activity 7'!L$17:L$23,\"N/A\",0,1)","v":"N/A"},{"$f":"_xlfn.XLOOKUP($E9,'Activity 7'!$B$17:$B$23,'Activity 7'!M$17:M$23,\"N/A\",0,1)","v":"N/A"},{"$f":"_xlfn.XLOOKUP($E9,'Activity 7'!$B$17:$B$23,'Activity 7'!N$17:N$23,\"N/A\",0,1)","v":"N/A"},{"$f":"_xlfn.XLOOKUP($E9,'Activity 7'!$B$17:$B$23,'Activity 7'!P$17:P$23,\"N/A\",0,1)","v":"N/A"},{"$f":"_xlfn.XLOOKUP($E9,'Activity 8'!$B$7:$B$13,'Activity 8'!A$7:A$13,\"No\",0,1)","v":"No"},{"$f":"_xlfn.XLOOKUP($E9,'Activity 8'!$B$7:$B$13,'Activity 8'!I$7:I$13,\"N/A\",0,1)","v":"N/A"},{"$f":"_xlfn.XLOOKUP($E9,'Activity 8'!$B$7:$B$13,'Activity 8'!J$7:J$13,\"N/A\",0,1)","v":"N/A"},{"$f":"_xlfn.XLOOKUP($E9,'Activity 8'!$B$7:$B$13,'Activity 8'!K$7:K$13,\"N/A\",0,1)","v":"N/A"},{"$f":"_xlfn.XLOOKUP($E9,'Activity 8'!$B$7:$B$13,'Activity 8'!L$7:L$13,\"N/A\",0,1)","v":"N/A"},{"$f":"_xlfn.XLOOKUP($E9,'Activity 8'!$B$7:$B$13,'Activity 8'!M$7:M$13,\"N/A\",0,1)","v":"N/A"},{"$f":"_xlfn.XLOOKUP($E9,'Activity 8'!$B$7:$B$13,'Activity 8'!N$7:N$13,\"N/A\",0,1)","v":"N/A"},{"$f":"_xlfn.XLOOKUP($E9,'Activity 8'!$B$7:$B$13,'Activity 8'!O$7:O$13,\"N/A\",0,1)","v":"N/A"},{"$f":"_xlfn.XLOOKUP($E9,'Activity 8'!$B$7:$B$13,'Activity 8'!P$7:P$13,\"N/A\",0,1)","v":"N/A"},{"$f":"_xlfn.XLOOKUP($E9,'Activity 8'!$B$7:$B$13,'Activity 8'!Q$7:Q$13,\"N/A\",0,1)","v":"N/A"},{"$f":"_xlfn.XLOOKUP($E9,'Activity 8'!$B$7:$B$13,'Activity 8'!R$7:R$13,\"N/A\",0,1)","v":"N/A"},{"$f":"_xlfn.XLOOKUP($E9,'Activity 8'!$B$7:$B$13,'Activity 8'!S$7:S$13,\"N/A\",0,1)","v":"N/A"},{"$f":"_xlfn.XLOOKUP($E9,'Activity 8'!$B$7:$B$13,'Activity 8'!T$7:T$13,\"N/A\",0,1)","v":"N/A"},{"$f":"_xlfn.XLOOKUP($E9,'Activity 8'!$B$7:$B$13,'Activity 8'!U$7:U$13,\"N/A\",0,1)","v":"N/A"},{"$f":"_xlfn.XLOOKUP($E9,'Activity 8'!$B$7:$B$13,'Activity 8'!V$7:V$13,\"N/A\",0,1)","v":"N/A"},{"$f":"_xlfn.XLOOKUP($E9,'Activity 8'!$B$17:$B$23,'Activity 8'!D$17:D$23,\"N/A\",0,1)","v":"N/A"},{"$f":"_xlfn.XLOOKUP($E9,'Activity 8'!$B$17:$B$23,'Activity 8'!E$17:E$23,\"N/A\",0,1)","v":"N/A"},{"$f":"_xlfn.XLOOKUP($E9,'Activity 8'!$B$17:$B$23,'Activity 8'!F$17:F$23,\"N/A\",0,1)","v":"N/A"},{"$f":"_xlfn.XLOOKUP($E9,'Activity 8'!$B$17:$B$23,'Activity 8'!G$17:G$23,\"N/A\",0,1)","v":"N/A"},{"$f":"_xlfn.XLOOKUP($E9,'Activity 8'!$B$17:$B$23,'Activity 8'!H$17:H$23,\"N/A\",0,1)","v":"N/A"},{"$f":"_xlfn.XLOOKUP($E9,'Activity 8'!$B$17:$B$23,'Activity 8'!I$17:I$23,\"N/A\",0,1)","v":"N/A"},{"$f":"_xlfn.XLOOKUP($E9,'Activity 8'!$B$17:$B$23,'Activity 8'!J$17:J$23,\"N/A\",0,1)","v":"N/A"},{"$f":"_xlfn.XLOOKUP($E9,'Activity 8'!$B$17:$B$23,'Activity 8'!K$17:K$23,\"N/A\",0,1)","v":"N/A"},{"$f":"_xlfn.XLOOKUP($E9,'Activity 8'!$B$17:$B$23,'Activity 8'!L$17:L$23,\"N/A\",0,1)","v":"N/A"},{"$f":"_xlfn.XLOOKUP($E9,'Activity 8'!$B$17:$B$23,'Activity 8'!M$17:M$23,\"N/A\",0,1)","v":"N/A"},{"$f":"_xlfn.XLOOKUP($E9,'Activity 8'!$B$17:$B$23,'Activity 8'!N$17:N$23,\"N/A\",0,1)","v":"N/A"},{"$f":"_xlfn.XLOOKUP($E9,'Activity 8'!$B$17:$B$23,'Activity 8'!P$17:P$23,\"N/A\",0,1)","v":"N/A"},{"$f":"_xlfn.XLOOKUP(E9,'Activity 9'!$B$7:$B$13,'Activity 9'!$A$7:$A$13,\"No\",0,1)","v":"No"},{"$f":"_xlfn.XLOOKUP($E9,'Activity 9'!$B$7:$B$13,'Activity 9'!J$7:J$13,\"N/A\",0,1)","v":"N/A"},{"$f":"_xlfn.XLOOKUP($E9,'Activity 9'!$B$7:$B$13,'Activity 9'!K$7:K$13,\"N/A\",0,1)","v":"N/A"},{"$f":"_xlfn.XLOOKUP($E9,'Activity 9'!$B$7:$B$13,'Activity 9'!L$7:L$13,\"N/A\",0,1)","v":"N/A"},{"$f":"_xlfn.XLOOKUP($E9,'Activity 9'!$B$7:$B$13,'Activity 9'!M$7:M$13,\"N/A\",0,1)","v":"N/A"},{"$f":"_xlfn.XLOOKUP($E9,'Activity 9'!$B$7:$B$13,'Activity 9'!N$7:N$13,\"N/A\",0,1)","v":"N/A"},{"$f":"_xlfn.XLOOKUP($E9,'Activity 9'!$B$7:$B$13,'Activity 9'!O$7:O$13,\"N/A\",0,1)","v":"N/A"},{"$f":"_xlfn.XLOOKUP($E9,'Activity 9'!$B$7:$B$13,'Activity 9'!P$7:P$13,\"N/A\",0,1)","v":"N/A"},{"$f":"_xlfn.XLOOKUP($E9,'Activity 9'!$B$7:$B$13,'Activity 9'!Q$7:Q$13,\"N/A\",0,1)","v":"N/A"},{"$f":"_xlfn.XLOOKUP($E9,'Activity 9'!$B$7:$B$13,'Activity 9'!R$7:R$13,\"N/A\",0,1)","v":"N/A"},{"$f":"_xlfn.XLOOKUP($E9,'Activity 9'!$B$7:$B$13,'Activity 9'!S$7:S$13,\"N/A\",0,1)","v":"N/A"},{"$f":"_xlfn.XLOOKUP($E9,'Activity 9'!$B$7:$B$13,'Activity 9'!T$7:T$13,\"N/A\",0,1)","v":"N/A"},{"$f":"_xlfn.XLOOKUP($E9,'Activity 9'!$B$17:$B$23,'Activity 9'!E$17:E$23,\"N/A\",0,1)","v":"N/A"},{"$f":"_xlfn.XLOOKUP($E9,'Activity 9'!$B$17:$B$23,'Activity 9'!F$17:F$23,\"N/A\",0,1)","v":"N/A"},{"$f":"_xlfn.XLOOKUP($E9,'Activity 9'!$B$17:$B$23,'Activity 9'!G$17:G$23,\"N/A\",0,1)","v":"N/A"},{"$f":"_xlfn.XLOOKUP($E9,'Activity 9'!$B$17:$B$23,'Activity 9'!H$17:H$23,\"N/A\",0,1)","v":"N/A"},{"$f":"_xlfn.XLOOKUP($E9,'Activity 9'!$B$17:$B$23,'Activity 9'!I$17:I$23,\"N/A\",0,1)","v":"N/A"},{"$f":"_xlfn.XLOOKUP($E9,'Activity 9'!$B$17:$B$23,'Activity 9'!J$17:J$23,\"N/A\",0,1)","v":"N/A"},{"$f":"_xlfn.XLOOKUP($E9,'Activity 9'!$B$17:$B$23,'Activity 9'!K$17:K$23,\"N/A\",0,1)","v":"N/A"},{"$f":"_xlfn.XLOOKUP($E9,'Activity 9'!$B$17:$B$23,'Activity 9'!L$17:L$23,\"N/A\",0,1)","v":"N/A"},{"$f":"_xlfn.XLOOKUP($E9,'Activity 9'!$B$17:$B$23,'Activity 9'!N$17:N$23,\"N/A\",0,1)","v":"N/A"},{"$f":"_xlfn.XLOOKUP($E9,'Activity 9'!$B$17:$B$23,'Activity 9'!O$17:O$23,\"N/A\",0,1)","v":"N/A"},{"$f":"_xlfn.XLOOKUP($E9,'Activity 9'!$B$17:$B$23,'Activity 9'!Q$17:Q$23,\"N/A\",0,1)","v":"N/A"},{"$f":"_xlfn.XLOOKUP($E9,'Activity 10'!$B$7:$B$13,'Activity 10'!A$7:A$13,\"No\",0,1)","v":"No"},{"$f":"_xlfn.XLOOKUP($E9,'Activity 10'!$B$7:$B$13,'Activity 10'!J$7:J$13,\"N/A\",0,1)","v":"N/A"},{"$f":"_xlfn.XLOOKUP($E9,'Activity 10'!$B$7:$B$13,'Activity 10'!K$7:K$13,\"N/A\",0,1)","v":"N/A"},{"$f":"_xlfn.XLOOKUP($E9,'Activity 10'!$B$7:$B$13,'Activity 10'!L$7:L$13,\"N/A\",0,1)","v":"N/A"},{"$f":"_xlfn.XLOOKUP($E9,'Activity 10'!$B$7:$B$13,'Activity 10'!M$7:M$13,\"N/A\",0,1)","v":"N/A"},{"$f":"_xlfn.XLOOKUP($E9,'Activity 10'!$B$7:$B$13,'Activity 10'!N$7:N$13,\"N/A\",0,1)","v":"N/A"},{"$f":"_xlfn.XLOOKUP($E9,'Activity 10'!$B$7:$B$13,'Activity 10'!O$7:O$13,\"N/A\",0,1)","v":"N/A"},{"$f":"_xlfn.XLOOKUP($E9,'Activity 10'!$B$7:$B$13,'Activity 10'!P$7:P$13,\"N/A\",0,1)","v":"N/A"},{"$f":"_xlfn.XLOOKUP($E9,'Activity 10'!$B$7:$B$13,'Activity 10'!Q$7:Q$13,\"N/A\",0,1)","v":"N/A"},{"$f":"_xlfn.XLOOKUP($E9,'Activity 10'!$B$7:$B$13,'Activity 10'!R$7:R$13,\"N/A\",0,1)","v":"N/A"},{"$f":"_xlfn.XLOOKUP($E9,'Activity 10'!$B$7:$B$13,'Activity 10'!S$7:S$13,\"N/A\",0,1)","v":"N/A"},{"$f":"_xlfn.XLOOKUP($E9,'Activity 10'!$B$7:$B$13,'Activity 10'!T$7:T$13,\"N/A\",0,1)","v":"N/A"},{"$f":"_xlfn.XLOOKUP($E9,'Activity 10'!$B$7:$B$13,'Activity 10'!U$7:U$13,\"N/A\",0,1)","v":"N/A"},{"$f":"_xlfn.XLOOKUP($E9,'Activity 10'!$B$7:$B$13,'Activity 10'!V$7:V$13,\"N/A\",0,1)","v":"N/A"},{"$f":"_xlfn.XLOOKUP($E9,'Activity 10'!$B$17:$B$23,'Activity 10'!E$17:E$23,\"N/A\",0,1)","v":"N/A"},{"$f":"_xlfn.XLOOKUP($E9,'Activity 10'!$B$17:$B$23,'Activity 10'!F$17:F$23,\"N/A\",0,1)","v":"N/A"},{"$f":"_xlfn.XLOOKUP($E9,'Activity 10'!$B$17:$B$23,'Activity 10'!G$17:G$23,\"N/A\",0,1)","v":"N/A"},{"$f":"_xlfn.XLOOKUP($E9,'Activity 10'!$B$17:$B$23,'Activity 10'!H$17:H$23,\"N/A\",0,1)","v":"N/A"},{"$f":"_xlfn.XLOOKUP($E9,'Activity 10'!$B$17:$B$23,'Activity 10'!I$17:I$23,\"N/A\",0,1)","v":"N/A"},{"$f":"_xlfn.XLOOKUP($E9,'Activity 10'!$B$17:$B$23,'Activity 10'!J$17:J$23,\"N/A\",0,1)","v":"N/A"},{"$f":"_xlfn.XLOOKUP($E9,'Activity 10'!$B$17:$B$23,'Activity 10'!K$17:K$23,\"N/A\",0,1)","v":"N/A"},{"$f":"_xlfn.XLOOKUP($E9,'Activity 10'!$B$17:$B$23,'Activity 10'!L$17:L$23,\"N/A\",0,1)","v":"N/A"},{"$f":"_xlfn.XLOOKUP($E9,'Activity 10'!$B$17:$B$23,'Activity 10'!M$17:M$23,\"N/A\",0,1)","v":"N/A"},{"$f":"_xlfn.XLOOKUP($E9,'Activity 10'!$B$17:$B$23,'Activity 10'!N$17:N$23,\"N/A\",0,1)","v":"N/A"},{"$f":"_xlfn.XLOOKUP($E9,'Activity 10'!$B$17:$B$23,'Activity 10'!P$17:P$23,\"N/A\",0,1)","v":"N/A"},{"$f":"_xlfn.XLOOKUP($E9,'Competitive Activity 1'!B$7:B$13,'Competitive Activity 1'!A$7:A$13,\"No\",0,1)","v":"No"},{"$f":"_xlfn.XLOOKUP($E9,'Competitive Activity 1'!$B$7:$B$13,'Competitive Activity 1'!H$7:H$13,\"N/A\",0,1)","v":"N/A"},{"$f":"_xlfn.XLOOKUP($E9,'Competitive Activity 1'!$B$7:$B$13,'Competitive Activity 1'!I$7:I$13,\"N/A\",0,1)","v":"N/A"},{"$f":"_xlfn.XLOOKUP($E9,'Competitive Activity 1'!$B$7:$B$13,'Competitive Activity 1'!J$7:J$13,\"N/A\",0,1)","v":"N/A"},{"$f":"_xlfn.XLOOKUP($E9,'Competitive Activity 1'!$B$7:$B$13,'Competitive Activity 1'!K$7:K$13,\"N/A\",0,1)","v":"N/A"},{"$f":"_xlfn.XLOOKUP($E9,'Competitive Activity 1'!$B$7:$B$13,'Competitive Activity 1'!L$7:L$13,\"N/A\",0,1)","v":"N/A"},{"$f":"_xlfn.XLOOKUP($E9,'Competitive Activity 1'!$B$7:$B$13,'Competitive Activity 1'!M$7:M$13,\"N/A\",0,1)","v":"N/A"},{"$f":"_xlfn.XLOOKUP($E9,'Competitive Activity 1'!$B$7:$B$13,'Competitive Activity 1'!N$7:N$13,\"N/A\",0,1)","v":"N/A"},{"$f":"_xlfn.XLOOKUP($E9,'Competitive Activity 1'!$B$7:$B$13,'Competitive Activity 1'!O$7:O$13,\"N/A\",0,1)","v":"N/A"},{"$f":"_xlfn.XLOOKUP($E9,'Competitive Activity 1'!$B$7:$B$13,'Competitive Activity 1'!P$7:P$13,\"N/A\",0,1)","v":"N/A"},{"$f":"_xlfn.XLOOKUP($E9,'Competitive Activity 1'!$B$7:$B$13,'Competitive Activity 1'!Q$7:Q$13,\"N/A\",0,1)","v":"N/A"},{"$f":"_xlfn.XLOOKUP($E9,'Competitive Activity 1'!$B$7:$B$13,'Competitive Activity 1'!R$7:R$13,\"N/A\",0,1)","v":"N/A"},{"$f":"_xlfn.XLOOKUP($E9,'Competitive Activity 1'!$B$7:$B$13,'Competitive Activity 1'!S$7:S$13,\"N/A\",0,1)","v":"N/A"},{"$f":"_xlfn.XLOOKUP($E9,'Competitive Activity 1'!$B$7:$B$13,'Competitive Activity 1'!T$7:T$13,\"N/A\",0,1)","v":"N/A"},{"$f":"_xlfn.XLOOKUP($E9,'Competitive Activity 1'!$B$7:$B$13,'Competitive Activity 1'!U$7:U$13,\"N/A\",0,1)","v":"N/A"},{"$f":"_xlfn.XLOOKUP($E9,'Competitive Activity 1'!$B$17:$B$23,'Competitive Activity 1'!C$17:C$23,\"N/A\",0,1)","v":"N/A"},{"$f":"_xlfn.XLOOKUP($E9,'Competitive Activity 1'!$B$17:$B$23,'Competitive Activity 1'!D$17:D$23,\"N/A\",0,1)","v":"N/A"},{"$f":"_xlfn.XLOOKUP($E9,'Competitive Activity 1'!$B$17:$B$23,'Competitive Activity 1'!E$17:E$23,\"N/A\",0,1)","v":"N/A"},{"$f":"_xlfn.XLOOKUP($E9,'Competitive Activity 1'!$B$17:$B$23,'Competitive Activity 1'!F$17:F$23,\"N/A\",0,1)","v":"N/A"},{"$f":"_xlfn.XLOOKUP($E9,'Competitive Activity 1'!$B$17:$B$23,'Competitive Activity 1'!G$17:G$23,\"N/A\",0,1)","v":"N/A"},{"$f":"_xlfn.XLOOKUP($E9,'Competitive Activity 1'!$B$17:$B$23,'Competitive Activity 1'!H$17:H$23,\"N/A\",0,1)","v":"N/A"},{"$f":"_xlfn.XLOOKUP($E9,'Competitive Activity 1'!$B$17:$B$23,'Competitive Activity 1'!I$17:I$23,\"N/A\",0,1)","v":"N/A"},{"$f":"_xlfn.XLOOKUP($E9,'Competitive Activity 1'!$B$17:$B$23,'Competitive Activity 1'!J$17:J$23,\"N/A\",0,1)","v":"N/A"},{"$f":"_xlfn.XLOOKUP($E9,'Competitive Activity 1'!$B$17:$B$23,'Competitive Activity 1'!K$17:K$23,\"N/A\",0,1)","v":"N/A"},{"$f":"_xlfn.XLOOKUP($E9,'Competitive Activity 1'!$B$17:$B$23,'Competitive Activity 1'!M$17:M$23,\"N/A\",0,1)","v":"N/A"},{"$f":"_xlfn.XLOOKUP($E9,'Competitive Activity 1'!$B$17:$B$23,'Competitive Activity 1'!N$17:N$23,\"N/A\",0,1)","v":"N/A"},{"$f":"_xlfn.XLOOKUP($E9,'Competitive Activity 1'!$B$17:$B$23,'Competitive Activity 1'!P$17:P$23,\"N/A\",0,1)","v":"N/A"},{"$f":"_xlfn.XLOOKUP($E9,'Competitive Activity 2'!$B$7:$B$13,'Competitive Activity 2'!A$7:A$13,\"No\",0)","v":"No"},{"$f":"_xlfn.XLOOKUP($E9,'Competitive Activity 2'!$B$7:$B$13,'Competitive Activity 2'!L$7:L$13,\"N/A\",0)","v":"N/A"},{"$f":"_xlfn.XLOOKUP($E9,'Competitive Activity 2'!$B$7:$B$13,'Competitive Activity 2'!M$7:M$13,\"N/A\",0)","v":"N/A"},{"$f":"_xlfn.XLOOKUP($E9,'Competitive Activity 2'!$B$7:$B$13,'Competitive Activity 2'!N$7:N$13,\"N/A\",0)","v":"N/A"},{"$f":"_xlfn.XLOOKUP($E9,'Competitive Activity 2'!$B$7:$B$13,'Competitive Activity 2'!O$7:O$13,\"N/A\",0)","v":"N/A"},{"$f":"_xlfn.XLOOKUP($E9,'Competitive Activity 2'!$B$7:$B$13,'Competitive Activity 2'!P$7:P$13,\"N/A\",0)","v":"N/A"},{"$f":"_xlfn.XLOOKUP($E9,'Competitive Activity 2'!$B$7:$B$13,'Competitive Activity 2'!Q$7:Q$13,\"N/A\",0)","v":"N/A"},{"$f":"_xlfn.XLOOKUP($E9,'Competitive Activity 2'!$B$7:$B$13,'Competitive Activity 2'!R$7:R$13,\"N/A\",0)","v":"N/A"},{"$f":"_xlfn.XLOOKUP($E9,'Competitive Activity 2'!$B$7:$B$13,'Competitive Activity 2'!S$7:S$13,\"N/A\",0)","v":"N/A"},{"$f":"_xlfn.XLOOKUP($E9,'Competitive Activity 2'!$B$7:$B$13,'Competitive Activity 2'!T$7:T$13,\"N/A\",0)","v":"N/A"},{"$f":"_xlfn.XLOOKUP($E9,'Competitive Activity 2'!$B$7:$B$13,'Competitive Activity 2'!U$7:U$13,\"N/A\",0)","v":"N/A"},{"$f":"_xlfn.XLOOKUP($E9,'Competitive Activity 2'!$B$17:$B$23,'Competitive Activity 2'!D$17:D$23,\"N/A\",0)","v":"N/A"},{"$f":"_xlfn.XLOOKUP($E9,'Competitive Activity 2'!$B$17:$B$23,'Competitive Activity 2'!E$17:E$23,\"N/A\",0)","v":"N/A"},{"$f":"_xlfn.XLOOKUP($E9,'Competitive Activity 2'!$B$17:$B$23,'Competitive Activity 2'!F$17:F$23,\"N/A\",0)","v":"N/A"},{"$f":"_xlfn.XLOOKUP($E9,'Competitive Activity 2'!$B$17:$B$23,'Competitive Activity 2'!G$17:G$23,\"N/A\",0)","v":"N/A"},{"$f":"_xlfn.XLOOKUP($E9,'Competitive Activity 2'!$B$17:$B$23,'Competitive Activity 2'!H$17:H$23,\"N/A\",0)","v":"N/A"},{"$f":"_xlfn.XLOOKUP($E9,'Competitive Activity 2'!$B$17:$B$23,'Competitive Activity 2'!I$17:I$23,\"N/A\",0)","v":"N/A"},{"$f":"_xlfn.XLOOKUP($E9,'Competitive Activity 2'!$B$17:$B$23,'Competitive Activity 2'!J$17:J$23,\"N/A\",0)","v":"N/A"},{"$f":"_xlfn.XLOOKUP($E9,'Competitive Activity 2'!$B$17:$B$23,'Competitive Activity 2'!K$17:K$23,\"N/A\",0)","v":"N/A"},{"$f":"_xlfn.XLOOKUP($E9,'Competitive Activity 2'!$B$17:$B$23,'Competitive Activity 2'!L$17:L$23,\"N/A\",0)","v":"N/A"},{"$f":"_xlfn.XLOOKUP($E9,'Competitive Activity 2'!$B$17:$B$23,'Competitive Activity 2'!M$17:M$23,\"N/A\",0)","v":"N/A"},{"$f":"_xlfn.XLOOKUP($E9,'Competitive Activity 2'!$B$17:$B$23,'Competitive Activity 2'!N$17:N$23,\"N/A\",0)","v":"N/A"},{"$f":"_xlfn.XLOOKUP($E9,'Competitive Activity 2'!$B$27:$B$33,'Competitive Activity 2'!D$27:D$33,\"N/A\",0)","v":"N/A"},{"$f":"_xlfn.XLOOKUP($E9,'Competitive Activity 2'!$B$27:$B$33,'Competitive Activity 2'!E$27:E$33,\"N/A\",0)","v":"N/A"},{"$f":"_xlfn.XLOOKUP($E9,'Competitive Activity 2'!$B$27:$B$33,'Competitive Activity 2'!F$27:F$33,\"N/A\",0)","v":"N/A"},{"$f":"_xlfn.XLOOKUP($E9,'Competitive Activity 2'!$B$27:$B$33,'Competitive Activity 2'!G$27:G$33,\"N/A\",0)","v":"N/A"},{"$f":"_xlfn.XLOOKUP($E9,'Competitive Activity 2'!$B$27:$B$33,'Competitive Activity 2'!H$27:H$33,\"N/A\",0)","v":"N/A"},{"$f":"_xlfn.XLOOKUP($E9,'Competitive Activity 2'!$B$27:$B$33,'Competitive Activity 2'!I$27:I$33,\"N/A\",0)","v":"N/A"},{"$f":"_xlfn.XLOOKUP($E9,'Competitive Activity 2'!$B$27:$B$33,'Competitive Activity 2'!J$27:J$33,\"N/A\",0)","v":"N/A"},{"$f":"_xlfn.XLOOKUP($E9,'Competitive Activity 2'!$B$27:$B$33,'Competitive Activity 2'!K$27:K$33,\"N/A\",0)","v":"N/A"},{"$f":"_xlfn.XLOOKUP($E9,'Competitive Activity 2'!$B$27:$B$33,'Competitive Activity 2'!M$27:M$33,\"N/A\",0)","v":"N/A"}]
[{"$f":"'1-Cover Sheet'!$C$8","v":"Select One"},{"$f":"'1-Cover Sheet'!$F$8","v":"Select One"},{"$f":"'Summary Sheet'!$D$8","v":0},{"$f":"'Summary Sheet'!$D$10","v":0},{"$f":"'Drop Down Box'!B174","v":0},{"$f":"'Drop Down Box'!C174","v":0},{"$f":"'Drop Down Box'!D174","v":"Select One"},{"$f":"_xlfn.XLOOKUP(E10,'Drop Down Box'!$B$166:$B$249,'Drop Down Box'!$A$166:$A$249,\"Unknown\",0)","v":"Activity 1"},{"$f":"_xlfn.XLOOKUP($E10,'Activity 2'!$B$17:$B$23,'Activity 2'!$N$17:$N$23,\"N/A\",0)","v":"N/A"},{"$f":"_xlfn.XLOOKUP($E10,'Activity 2'!$B$17:$B$23,'Activity 2'!$P$17:$P$23,\"N/A\",0)","v":"N/A"},{"$f":"_xlfn.XLOOKUP($E10,'Activity 2'!$B$7:$B$13,'Activity 2'!E$7:E$13,0,0)","v":0},{"$f":"_xlfn.XLOOKUP($E10,'Activity 2'!$B$7:$B$13,'Activity 2'!F$7:F$13,0,0)","v":"00:00:00"},{"$f":"_xlfn.XLOOKUP($E10,'Activity 2'!$B$7:$B$13,'Activity 2'!G$7:G$13,0,0)","v":0},{"$f":"_xlfn.XLOOKUP($E10,'Activity 1'!$B$7:$B$13,'Activity 1'!$A$7:$A$13,\"No\",0,1)","v":"No"},{"$f":"_xlfn.XLOOKUP($E10,'Activity 1'!$B$7:$B$13,'Activity 1'!$H$7:$H$13,\"N/A\",0,1)","v":"N/A"},{"$f":"_xlfn.XLOOKUP($E10,'Activity 1'!$B$7:$B$13,'Activity 1'!I$7:I$13,\"N/A\",0,1)","v":"N/A"},{"$f":"_xlfn.XLOOKUP($E10,'Activity 1'!$B$7:$B$13,'Activity 1'!J$7:J$13,\"N/A\",0,1)","v":"N/A"},{"$f":"_xlfn.XLOOKUP($E10,'Activity 1'!$B$7:$B$13,'Activity 1'!K$7:K$13,\"N/A\",0,1)","v":"N/A"},{"$f":"_xlfn.XLOOKUP($E10,'Activity 1'!$B$7:$B$13,'Activity 1'!L$7:L$13,\"N/A\",0,1)","v":"N/A"},{"$f":"_xlfn.XLOOKUP($E10,'Activity 1'!$B$7:$B$13,'Activity 1'!M$7:M$13,\"N/A\",0,1)","v":"N/A"},{"$f":"_xlfn.XLOOKUP($E10,'Activity 1'!$B$7:$B$13,'Activity 1'!N$7:N$13,\"N/A\",0,1)","v":"N/A"},{"$f":"SUM(Q10:U10)","v":0},{"$f":"_xlfn.XLOOKUP($E10,'Activity 1'!$B$7:$B$13,'Activity 1'!O$7:O$13,\"N/A\",0,1)","v":"N/A"},{"$f":"_xlfn.XLOOKUP($E10,'Activity 1'!$B$7:$B$13,'Activity 1'!P$7:P$13,\"N/A\",0,1)","v":"N/A"},{"$f":"_xlfn.XLOOKUP($E10,'Activity 1'!$B$7:$B$13,'Activity 1'!Q$7:Q$13,\"N/A\",0,1)","v":"N/A"},{"$f":"_xlfn.XLOOKUP($E10,'Activity 1'!$B$7:$B$13,'Activity 1'!R$7:R$13,\"N/A\",0,1)","v":"N/A"},{"$f":"_xlfn.XLOOKUP($E10,'Activity 1'!$B$7:$B$13,'Activity 1'!S$7:S$13,\"N/A\",0,1)","v":"N/A"},{"$f":"_xlfn.XLOOKUP($E10,'Activity 1'!$B$7:$B$13,'Activity 1'!T$7:T$13,\"N/A\",0,1)","v":"N/A"},{"$f":"_xlfn.XLOOKUP($E10,'Activity 1'!$B$7:$B$13,'Activity 1'!U$7:U$13,\"N/A\",0,1)","v":"N/A"},{"$f":"_xlfn.XLOOKUP($E10,'Activity 1'!$B$7:$B$13,'Activity 1'!V$7:V$13,\"N/A\",0,1)","v":"N/A"},{"$f":"_xlfn.XLOOKUP($E10,'Activity 1'!$B$17:$B$23,'Activity 1'!C$17:C$23,\"N/A\",0,1)","v":"N/A"},{"$f":"_xlfn.XLOOKUP($E10,'Activity 1'!$B$17:$B$23,'Activity 1'!D$17:D$23,\"N/A\",0,1)","v":"N/A"},{"$f":"_xlfn.XLOOKUP($E10,'Activity 1'!$B$17:$B$23,'Activity 1'!E$17:E$23,\"N/A\",0,1)","v":"N/A"},{"$f":"_xlfn.XLOOKUP($E10,'Activity 1'!$B$17:$B$23,'Activity 1'!F$17:F$23,\"N/A\",0,1)","v":"N/A"},{"$f":"_xlfn.XLOOKUP($E10,'Activity 1'!$B$17:$B$23,'Activity 1'!G$17:G$23,\"N/A\",0,1)","v":"N/A"},{"$f":"_xlfn.XLOOKUP($E10,'Activity 1'!$B$17:$B$23,'Activity 1'!H$17:H$23,\"N/A\",0,1)","v":"N/A"},{"$f":"_xlfn.XLOOKUP($E10,'Activity 1'!$B$17:$B$23,'Activity 1'!I$17:I$23,\"N/A\",0,1)","v":"N/A"},{"$f":"_xlfn.XLOOKUP($E10,'Activity 1'!$B$17:$B$23,'Activity 1'!J$17:J$23,\"N/A\",0,1)","v":"N/A"},{"$f":"_xlfn.XLOOKUP($E10,'Activity 1'!$B$17:$B$23,'Activity 1'!K$17:K$23,\"N/A\",0,1)","v":"N/A"},{"$f":"_xlfn.XLOOKUP($E10,'Activity 1'!$B$17:$B$23,'Activity 1'!L$17:L$23,\"N/A\",0,1)","v":"N/A"},{"$f":"_xlfn.XLOOKUP($E10,'Activity 1'!$B$17:$B$23,'Activity 1'!M$17:M$23,\"N/A\",0,1)","v":"N/A"},{"$f":"_xlfn.XLOOKUP($E10,'Activity 1'!$B$17:$B$23,'Activity 1'!O$17:O$23,\"N/A\",0,1)","v":"N/A"},{"$f":"_xlfn.XLOOKUP($E10,'Activity 1'!$B$17:$B$23,'Activity 1'!Q$17:Q$23,\"N/A\",0,1)","v":"N/A"},{"$f":"_xlfn.XLOOKUP($E10,'Activity 2'!$B$7:$B$13,'Activity 2'!$A$7:$A$13,\"No\",0,1)","v":"No"},{"$f":"_xlfn.XLOOKUP($E10,'Activity 2'!B$7:B$13,'Activity 2'!H$7:H$13,\"N/A\",0)","v":"N/A"},{"$f":"_xlfn.XLOOKUP($E10,'Activity 2'!C$7:C$13,'Activity 2'!I$7:I$13,\"N/A\",0)","v":"N/A"},{"$f":"_xlfn.XLOOKUP($E10,'Activity 2'!D$7:D$13,'Activity 2'!J$7:J$13,\"N/A\",0)","v":"N/A"},{"$f":"_xlfn.XLOOKUP($E10,'Activity 2'!E$7:E$13,'Activity 2'!K$7:K$13,\"N/A\",0)","v":"N/A"},{"$f":"_xlfn.XLOOKUP($E10,'Activity 2'!F$7:F$13,'Activity 2'!L$7:L$13,\"N/A\",0)","v":"N/A"},{"$f":"_xlfn.XLOOKUP($E10,'Activity 2'!G$7:G$13,'Activity 2'!M$7:M$13,\"N/A\",0)","v":"N/A"},{"$f":"_xlfn.XLOOKUP($E10,'Activity 2'!H$7:H$13,'Activity 2'!N$7:N$13,\"N/A\",0)","v":"N/A"},{"$f":"_xlfn.XLOOKUP($E10,'Activity 2'!I$7:I$13,'Activity 2'!O$7:O$13,\"N/A\",0)","v":"N/A"},{"$f":"_xlfn.XLOOKUP($E10,'Activity 2'!J$7:J$13,'Activity 2'!P$7:P$13,\"N/A\",0)","v":"N/A"},{"$f":"_xlfn.XLOOKUP($E10,'Activity 2'!K$7:K$13,'Activity 2'!Q$7:Q$13,\"N/A\",0)","v":"N/A"},{"$f":"_xlfn.XLOOKUP($E10,'Activity 2'!L$7:L$13,'Activity 2'!R$7:R$13,\"N/A\",0)","v":"N/A"},{"$f":"_xlfn.XLOOKUP($E10,'Activity 2'!M$7:M$13,'Activity 2'!S$7:S$13,\"N/A\",0)","v":"N/A"},{"$f":"_xlfn.XLOOKUP($E10,'Activity 2'!N$7:N$13,'Activity 2'!T$7:T$13,\"N/A\",0)","v":"N/A"},{"$f":"_xlfn.XLOOKUP($E10,'Activity 2'!O$7:O$13,'Activity 2'!U$7:U$13,\"N/A\",0)","v":"N/A"},{"$f":"_xlfn.XLOOKUP($E10,'Activity 2'!P$7:P$13,'Activity 2'!V$7:V$13,\"N/A\",0)","v":"N/A"},{"$f":"_xlfn.XLOOKUP($E10,'Activity 2'!$B$17:$B$23,'Activity 2'!C$17:C$23,\"N/A\",0,1)","v":"N/A"},{"$f":"_xlfn.XLOOKUP($E10,'Activity 2'!$B$17:$B$23,'Activity 2'!D$17:D$23,\"N/A\",0,1)","v":"N/A"},{"$f":"_xlfn.XLOOKUP($E10,'Activity 2'!$B$17:$B$23,'Activity 2'!E$17:E$23,\"N/A\",0,1)","v":"N/A"},{"$f":"_xlfn.XLOOKUP($E10,'Activity 2'!$B$17:$B$23,'Activity 2'!F$17:F$23,\"N/A\",0,1)","v":"N/A"},{"$f":"_xlfn.XLOOKUP($E10,'Activity 2'!$B$17:$B$23,'Activity 2'!G$17:G$23,\"N/A\",0,1)","v":"N/A"},{"$f":"_xlfn.XLOOKUP($E10,'Activity 2'!$B$17:$B$23,'Activity 2'!H$17:H$23,\"N/A\",0,1)","v":"N/A"},{"$f":"_xlfn.XLOOKUP($E10,'Activity 2'!$B$17:$B$23,'Activity 2'!I$17:I$23,\"N/A\",0,1)","v":"N/A"},{"$f":"_xlfn.XLOOKUP($E10,'Activity 2'!$B$17:$B$23,'Activity 2'!J$17:J$23,\"N/A\",0,1)","v":"N/A"},{"$f":"_xlfn.XLOOKUP($E10,'Activity 2'!$B$17:$B$23,'Activity 2'!K$17:K$23,\"N/A\",0,1)","v":"N/A"},{"$f":"_xlfn.XLOOKUP($E10,'Activity 2'!$B$17:$B$23,'Activity 2'!L$17:L$23,\"N/A\",0,1)","v":"N/A"},{"$f":"_xlfn.XLOOKUP($E10,'Activity 2'!$B$17:$B$23,'Activity 2'!M$17:M$23,\"N/A\",0,1)","v":"N/A"},{"$f":"_xlfn.XLOOKUP($E10,'Activity 2'!$B$17:$B$23,'Activity 2'!O$17:O$23,\"N/A\",0,1)","v":"N/A"},{"$f":"_xlfn.XLOOKUP($E10,'Activity 2'!$B$17:$B$23,'Activity 2'!Q$17:Q$23,\"N/A\",0,1)","v":"N/A"},{"$f":"_xlfn.XLOOKUP($E10,'Activity 3'!$B$8:$B$14,'Activity 3'!A$8:A$14,\"No\",0,1)","v":"No"},{"$f":"_xlfn.XLOOKUP($E10,'Activity 3'!$B$8:$B$14,'Activity 3'!K$8:K$14,\"N/A\",0,1)","v":"N/A"},{"$f":"_xlfn.XLOOKUP($E10,'Activity 3'!$B$8:$B$14,'Activity 3'!L$8:L$14,\"N/A\",0,1)","v":"N/A"},{"$f":"_xlfn.XLOOKUP($E10,'Activity 3'!$B$8:$B$14,'Activity 3'!M$8:M$14,\"N/A\",0,1)","v":"N/A"},{"$f":"_xlfn.XLOOKUP($E10,'Activity 3'!$B$8:$B$14,'Activity 3'!N$8:N$14,\"N/A\",0,1)","v":"N/A"},{"$f":"_xlfn.XLOOKUP($E10,'Activity 3'!$B$8:$B$14,'Activity 3'!O$8:O$14,\"N/A\",0,1)","v":"N/A"},{"$f":"_xlfn.XLOOKUP($E10,'Activity 3'!$B$8:$B$14,'Activity 3'!R$8:R$14,\"N/A\",0,1)","v":"N/A"},{"$f":"_xlfn.XLOOKUP($E10,'Activity 4'!$B$8:$B$14,'Activity 4'!$A$8:$A$14,\"No\",0,1)","v":"No"},{"$f":"_xlfn.XLOOKUP($E10,'Activity 4'!$B$8:$B$14,'Activity 4'!L$8:L$14,\"N/A\",0,1)","v":"N/A"},{"$f":"_xlfn.XLOOKUP($E10,'Activity 4'!$B$8:$B$14,'Activity 4'!D$8:D$14,\"N/A\",0,1)","v":"N/A"},{"$f":"_xlfn.XLOOKUP($E10,'Activity 4'!$B$8:$B$14,'Activity 4'!G$8:G$14,\"N/A\",0,1)","v":"N/A"},{"$f":"_xlfn.XLOOKUP($E10,'Activity 5'!$B$8:$B$14,'Activity 5'!$A$8:$A$14,\"No\",0,1)","v":"No"},{"$f":"_xlfn.XLOOKUP($E10,'Activity 5'!$B$8:$B$14,'Activity 5'!J$8:J$14,\"N/A\",0,1)","v":"N/A"},{"$f":"_xlfn.XLOOKUP($E10,'Activity 5'!$B$8:$B$14,'Activity 5'!K$8:K$14,\"N/A\",0,1)","v":"N/A"},{"$f":"_xlfn.XLOOKUP($E10,'Activity 5'!$B$8:$B$14,'Activity 5'!N$8:N$14,\"N/A\",0,1)","v":"N/A"},{"$f":"_xlfn.XLOOKUP($E10,'Activity 5'!$B$8:$B$14,'Activity 5'!O$8:O$14,\"N/A\",0,1)","v":"N/A"},{"$f":"_xlfn.XLOOKUP($E10,'Activity 5'!$B$8:$B$14,'Activity 5'!P$8:P$14,\"N/A\",0,1)","v":"N/A"},{"$f":"_xlfn.XLOOKUP($E10,'Activity 5'!$B$8:$B$14,'Activity 5'!Q$8:Q$14,\"N/A\",0,1)","v":"N/A"},{"$f":"_xlfn.XLOOKUP($E10,'Activity 5'!$B$8:$B$14,'Activity 5'!R$8:R$14,\"N/A\",0,1)","v":"N/A"},{"$f":"_xlfn.XLOOKUP($E10,'Activity 6'!$B$7:$B$13,'Activity 6'!A$7:A$13,\"No\",0,1)","v":"No"},{"$f":"_xlfn.XLOOKUP($E10,'Activity 6'!$B$7:$B$13,'Activity 6'!K$7:K$13,\"N/A\",0,1)","v":"N/A"},{"$f":"_xlfn.XLOOKUP($E10,'Activity 6'!$B$7:$B$13,'Activity 6'!L$7:L$13,\"N/A\",0,1)","v":"N/A"},{"$f":"_xlfn.XLOOKUP($E10,'Activity 6'!$B$7:$B$13,'Activity 6'!M$7:M$13,\"N/A\",0,1)","v":"N/A"},{"$f":"_xlfn.XLOOKUP($E10,'Activity 6'!$B$7:$B$13,'Activity 6'!N$7:N$13,\"N/A\",0,1)","v":"N/A"},{"$f":"_xlfn.XLOOKUP($E10,'Activity 6'!$B$7:$B$13,'Activity 6'!O$7:O$13,\"N/A\",0,1)","v":"N/A"},{"$f":"_xlfn.XLOOKUP($E10,'Activity 6'!$B$7:$B$13,'Activity 6'!P$7:P$13,\"N/A\",0,1)","v":"N/A"},{"$f":"_xlfn.XLOOKUP($E10,'Activity 6'!$B$7:$B$13,'Activity 6'!Q$7:Q$13,\"N/A\",0,1)","v":"N/A"},{"$f":"_xlfn.XLOOKUP($E10,'Activity 6'!$B$7:$B$13,'Activity 6'!R$7:R$13,\"N/A\",0,1)","v":"N/A"},{"$f":"_xlfn.XLOOKUP($E10,'Activity 6'!$B$7:$B$13,'Activity 6'!S$7:S$13,\"N/A\",0,1)","v":"N/A"},{"$f":"_xlfn.XLOOKUP($E10,'Activity 6'!$B$7:$B$13,'Activity 6'!T$7:T$13,\"N/A\",0,1)","v":"N/A"},{"$f":"_xlfn.XLOOKUP($E10,'Activity 6'!$B$7:$B$13,'Activity 6'!U$7:U$13,\"N/A\",0,1)","v":"N/A"},{"$f":"_xlfn.XLOOKUP($E10,'Activity 6'!$B$22:$B$28,'Activity 6'!C$22:C$28,\"N/A\",0,1)","v":"N/A"},{"$f":"_xlfn.XLOOKUP($E10,'Activity 6'!$B$22:$B$28,'Activity 6'!D$22:D$28,\"N/A\",0,1)","v":"N/A"},{"$f":"_xlfn.XLOOKUP($E10,'Activity 6'!$B$22:$B$28,'Activity 6'!E$22:E$28,\"N/A\",0,1)","v":"N/A"},{"$f":"_xlfn.XLOOKUP($E10,'Activity 6'!$B$22:$B$28,'Activity 6'!F$22:F$28,\"N/A\",0,1)","v":"N/A"},{"$f":"_xlfn.XLOOKUP($E10,'Activity 6'!$B$22:$B$28,'Activity 6'!G$22:G$28,\"N/A\",0,1)","v":"N/A"},{"$f":"_xlfn.XLOOKUP($E10,'Activity 6'!$B$22:$B$28,'Activity 6'!H$22:H$28,\"N/A\",0,1)","v":"N/A"},{"$f":"_xlfn.XLOOKUP($E10,'Activity 6'!$B$22:$B$28,'Activity 6'!I$22:I$28,\"N/A\",0,1)","v":"N/A"},{"$f":"_xlfn.XLOOKUP($E10,'Activity 6'!$B$22:$B$28,'Activity 6'!J$22:J$28,\"N/A\",0,1)","v":"N/A"},{"$f":"_xlfn.XLOOKUP($E10,'Activity 6'!$B$22:$B$28,'Activity 6'!K$22:K$28,\"N/A\",0,1)","v":"N/A"},{"$f":"_xlfn.XLOOKUP($E10,'Activity 6'!$B$22:$B$28,'Activity 6'!L$22:L$28,\"N/A\",0,1)","v":"N/A"},{"$f":"_xlfn.XLOOKUP($E10,'Activity 6'!$B$22:$B$28,'Activity 6'!M$22:M$28,\"N/A\",0,1)","v":"N/A"},{"$f":"_xlfn.XLOOKUP($E10,'Activity 6'!$B$22:$B$28,'Activity 6'!N$22:N$28,\"N/A\",0,1)","v":"N/A"},{"$f":"_xlfn.XLOOKUP($E10,'Activity 6'!$B$32:$B$38,'Activity 6'!C$32:C$38,\"N/A\",0,1)","v":"N/A"},{"$f":"_xlfn.XLOOKUP($E10,'Activity 6'!$B$32:$B$38,'Activity 6'!D$32:D$38,\"N/A\",0,1)","v":"N/A"},{"$f":"_xlfn.XLOOKUP($E10,'Activity 6'!$B$32:$B$38,'Activity 6'!E$32:E$38,\"N/A\",0,1)","v":"N/A"},{"$f":"_xlfn.XLOOKUP($E10,'Activity 6'!$B$32:$B$38,'Activity 6'!F$32:F$38,\"N/A\",0,1)","v":"N/A"},{"$f":"_xlfn.XLOOKUP($E10,'Activity 6'!$B$32:$B$38,'Activity 6'!G$32:G$38,\"N/A\",0,1)","v":"N/A"},{"$f":"_xlfn.XLOOKUP($E10,'Activity 6'!$B$32:$B$38,'Activity 6'!H$32:H$38,\"N/A\",0,1)","v":"N/A"},{"$f":"_xlfn.XLOOKUP($E10,'Activity 6'!$B$32:$B$38,'Activity 6'!I$32:I$38,\"N/A\",0,1)","v":"N/A"},{"$f":"_xlfn.XLOOKUP($E10,'Activity 6'!$B$32:$B$38,'Activity 6'!J$32:J$38,\"N/A\",0,1)","v":"N/A"},{"$f":"_xlfn.XLOOKUP($E10,'Activity 6'!$B$32:$B$38,'Activity 6'!K$32:K$38,\"N/A\",0,1)","v":"N/A"},{"$f":"_xlfn.XLOOKUP($E10,'Activity 6'!$B$32:$B$38,'Activity 6'!M$32:M$38,\"N/A\",0,1)","v":"N/A"},{"$f":"_xlfn.XLOOKUP($E10,'Activity 7'!$B$7:$B$13,'Activity 7'!$A$7:$A$13,\"No\",0,1)","v":"No"},{"$f":"_xlfn.XLOOKUP($E10,'Activity 7'!$B$7:$B$13,'Activity 7'!M$7:M$13,\"N/A\",0,1)","v":"N/A"},{"$f":"_xlfn.XLOOKUP($E10,'Activity 7'!$B$7:$B$13,'Activity 7'!K$7:K$13,\"N/A\",0,1)","v":"N/A"},{"$f":"_xlfn.XLOOKUP($E10,'Activity 7'!$B$7:$B$13,'Activity 7'!N$7:N$13,\"N/A\",0,1)","v":"N/A"},{"$f":"_xlfn.XLOOKUP($E10,'Activity 7'!$B$7:$B$13,'Activity 7'!O$7:O$13,\"N/A\",0,1)","v":"N/A"},{"$f":"_xlfn.XLOOKUP($E10,'Activity 7'!$B$7:$B$13,'Activity 7'!P$7:P$13,\"N/A\",0,1)","v":"N/A"},{"$f":"_xlfn.XLOOKUP($E10,'Activity 7'!$B$7:$B$13,'Activity 7'!Q$7:Q$13,\"N/A\",0,1)","v":"N/A"},{"$f":"_xlfn.XLOOKUP($E10,'Activity 7'!$B$7:$B$13,'Activity 7'!R$7:R$13,\"N/A\",0,1)","v":"N/A"},{"$f":"_xlfn.XLOOKUP($E10,'Activity 7'!$B$7:$B$13,'Activity 7'!S$7:S$13,\"N/A\",0,1)","v":"N/A"},{"$f":"_xlfn.XLOOKUP($E10,'Activity 7'!$B$7:$B$13,'Activity 7'!T$7:T$13,\"N/A\",0,1)","v":"N/A"},{"$f":"_xlfn.XLOOKUP($E10,'Activity 7'!$B$7:$B$13,'Activity 7'!U$7:U$13,\"N/A\",0,1)","v":"N/A"},{"$f":"_xlfn.XLOOKUP($E10,'Activity 7'!$B$7:$B$13,'Activity 7'!V$7:V$13,\"N/A\",0,1)","v":"N/A"},{"$f":"_xlfn.XLOOKUP($E10,'Activity 7'!$B$17:$B$23,'Activity 7'!E$17:E$23,\"N/A\",0,1)","v":"N/A"},{"$f":"_xlfn.XLOOKUP($E10,'Activity 7'!$B$17:$B$23,'Activity 7'!G$17:G$23,\"N/A\",0,1)","v":"N/A"},{"$f":"_xlfn.XLOOKUP($E10,'Activity 7'!$B$17:$B$23,'Activity 7'!I$17:I$23,\"N/A\",0,1)","v":"N/A"},{"$f":"_xlfn.XLOOKUP($E10,'Activity 7'!$B$17:$B$23,'Activity 7'!J$17:J$23,\"N/A\",0,1)","v":"N/A"},{"$f":"_xlfn.XLOOKUP($E10,'Activity 7'!$B$17:$B$23,'Activity 7'!K$17:K$23,\"N/A\",0,1)","v":"N/A"},{"$f":"_xlfn.XLOOKUP($E10,'Activity 7'!$B$17:$B$23,'Activity 7'!L$17:L$23,\"N/A\",0,1)","v":"N/A"},{"$f":"_xlfn.XLOOKUP($E10,'Activity 7'!$B$17:$B$23,'Activity 7'!M$17:M$23,\"N/A\",0,1)","v":"N/A"},{"$f":"_xlfn.XLOOKUP($E10,'Activity 7'!$B$17:$B$23,'Activity 7'!N$17:N$23,\"N/A\",0,1)","v":"N/A"},{"$f":"_xlfn.XLOOKUP($E10,'Activity 7'!$B$17:$B$23,'Activity 7'!P$17:P$23,\"N/A\",0,1)","v":"N/A"},{"$f":"_xlfn.XLOOKUP($E10,'Activity 8'!$B$7:$B$13,'Activity 8'!A$7:A$13,\"No\",0,1)","v":"No"},{"$f":"_xlfn.XLOOKUP($E10,'Activity 8'!$B$7:$B$13,'Activity 8'!I$7:I$13,\"N/A\",0,1)","v":"N/A"},{"$f":"_xlfn.XLOOKUP($E10,'Activity 8'!$B$7:$B$13,'Activity 8'!J$7:J$13,\"N/A\",0,1)","v":"N/A"},{"$f":"_xlfn.XLOOKUP($E10,'Activity 8'!$B$7:$B$13,'Activity 8'!K$7:K$13,\"N/A\",0,1)","v":"N/A"},{"$f":"_xlfn.XLOOKUP($E10,'Activity 8'!$B$7:$B$13,'Activity 8'!L$7:L$13,\"N/A\",0,1)","v":"N/A"},{"$f":"_xlfn.XLOOKUP($E10,'Activity 8'!$B$7:$B$13,'Activity 8'!M$7:M$13,\"N/A\",0,1)","v":"N/A"},{"$f":"_xlfn.XLOOKUP($E10,'Activity 8'!$B$7:$B$13,'Activity 8'!N$7:N$13,\"N/A\",0,1)","v":"N/A"},{"$f":"_xlfn.XLOOKUP($E10,'Activity 8'!$B$7:$B$13,'Activity 8'!O$7:O$13,\"N/A\",0,1)","v":"N/A"},{"$f":"_xlfn.XLOOKUP($E10,'Activity 8'!$B$7:$B$13,'Activity 8'!P$7:P$13,\"N/A\",0,1)","v":"N/A"},{"$f":"_xlfn.XLOOKUP($E10,'Activity 8'!$B$7:$B$13,'Activity 8'!Q$7:Q$13,\"N/A\",0,1)","v":"N/A"},{"$f":"_xlfn.XLOOKUP($E10,'Activity 8'!$B$7:$B$13,'Activity 8'!R$7:R$13,\"N/A\",0,1)","v":"N/A"},{"$f":"_xlfn.XLOOKUP($E10,'Activity 8'!$B$7:$B$13,'Activity 8'!S$7:S$13,\"N/A\",0,1)","v":"N/A"},{"$f":"_xlfn.XLOOKUP($E10,'Activity 8'!$B$7:$B$13,'Activity 8'!T$7:T$13,\"N/A\",0,1)","v":"N/A"},{"$f":"_xlfn.XLOOKUP($E10,'Activity 8'!$B$7:$B$13,'Activity 8'!U$7:U$13,\"N/A\",0,1)","v":"N/A"},{"$f":"_xlfn.XLOOKUP($E10,'Activity 8'!$B$7:$B$13,'Activity 8'!V$7:V$13,\"N/A\",0,1)","v":"N/A"},{"$f":"_xlfn.XLOOKUP($E10,'Activity 8'!$B$17:$B$23,'Activity 8'!D$17:D$23,\"N/A\",0,1)","v":"N/A"},{"$f":"_xlfn.XLOOKUP($E10,'Activity 8'!$B$17:$B$23,'Activity 8'!E$17:E$23,\"N/A\",0,1)","v":"N/A"},{"$f":"_xlfn.XLOOKUP($E10,'Activity 8'!$B$17:$B$23,'Activity 8'!F$17:F$23,\"N/A\",0,1)","v":"N/A"},{"$f":"_xlfn.XLOOKUP($E10,'Activity 8'!$B$17:$B$23,'Activity 8'!G$17:G$23,\"N/A\",0,1)","v":"N/A"},{"$f":"_xlfn.XLOOKUP($E10,'Activity 8'!$B$17:$B$23,'Activity 8'!H$17:H$23,\"N/A\",0,1)","v":"N/A"},{"$f":"_xlfn.XLOOKUP($E10,'Activity 8'!$B$17:$B$23,'Activity 8'!I$17:I$23,\"N/A\",0,1)","v":"N/A"},{"$f":"_xlfn.XLOOKUP($E10,'Activity 8'!$B$17:$B$23,'Activity 8'!J$17:J$23,\"N/A\",0,1)","v":"N/A"},{"$f":"_xlfn.XLOOKUP($E10,'Activity 8'!$B$17:$B$23,'Activity 8'!K$17:K$23,\"N/A\",0,1)","v":"N/A"},{"$f":"_xlfn.XLOOKUP($E10,'Activity 8'!$B$17:$B$23,'Activity 8'!L$17:L$23,\"N/A\",0,1)","v":"N/A"},{"$f":"_xlfn.XLOOKUP($E10,'Activity 8'!$B$17:$B$23,'Activity 8'!M$17:M$23,\"N/A\",0,1)","v":"N/A"},{"$f":"_xlfn.XLOOKUP($E10,'Activity 8'!$B$17:$B$23,'Activity 8'!N$17:N$23,\"N/A\",0,1)","v":"N/A"},{"$f":"_xlfn.XLOOKUP($E10,'Activity 8'!$B$17:$B$23,'Activity 8'!P$17:P$23,\"N/A\",0,1)","v":"N/A"},{"$f":"_xlfn.XLOOKUP(E10,'Activity 9'!$B$7:$B$13,'Activity 9'!$A$7:$A$13,\"No\",0,1)","v":"No"},{"$f":"_xlfn.XLOOKUP($E10,'Activity 9'!$B$7:$B$13,'Activity 9'!J$7:J$13,\"N/A\",0,1)","v":"N/A"},{"$f":"_xlfn.XLOOKUP($E10,'Activity 9'!$B$7:$B$13,'Activity 9'!K$7:K$13,\"N/A\",0,1)","v":"N/A"},{"$f":"_xlfn.XLOOKUP($E10,'Activity 9'!$B$7:$B$13,'Activity 9'!L$7:L$13,\"N/A\",0,1)","v":"N/A"},{"$f":"_xlfn.XLOOKUP($E10,'Activity 9'!$B$7:$B$13,'Activity 9'!M$7:M$13,\"N/A\",0,1)","v":"N/A"},{"$f":"_xlfn.XLOOKUP($E10,'Activity 9'!$B$7:$B$13,'Activity 9'!N$7:N$13,\"N/A\",0,1)","v":"N/A"},{"$f":"_xlfn.XLOOKUP($E10,'Activity 9'!$B$7:$B$13,'Activity 9'!O$7:O$13,\"N/A\",0,1)","v":"N/A"},{"$f":"_xlfn.XLOOKUP($E10,'Activity 9'!$B$7:$B$13,'Activity 9'!P$7:P$13,\"N/A\",0,1)","v":"N/A"},{"$f":"_xlfn.XLOOKUP($E10,'Activity 9'!$B$7:$B$13,'Activity 9'!Q$7:Q$13,\"N/A\",0,1)","v":"N/A"},{"$f":"_xlfn.XLOOKUP($E10,'Activity 9'!$B$7:$B$13,'Activity 9'!R$7:R$13,\"N/A\",0,1)","v":"N/A"},{"$f":"_xlfn.XLOOKUP($E10,'Activity 9'!$B$7:$B$13,'Activity 9'!S$7:S$13,\"N/A\",0,1)","v":"N/A"},{"$f":"_xlfn.XLOOKUP($E10,'Activity 9'!$B$7:$B$13,'Activity 9'!T$7:T$13,\"N/A\",0,1)","v":"N/A"},{"$f":"_xlfn.XLOOKUP($E10,'Activity 9'!$B$17:$B$23,'Activity 9'!E$17:E$23,\"N/A\",0,1)","v":"N/A"},{"$f":"_xlfn.XLOOKUP($E10,'Activity 9'!$B$17:$B$23,'Activity 9'!F$17:F$23,\"N/A\",0,1)","v":"N/A"},{"$f":"_xlfn.XLOOKUP($E10,'Activity 9'!$B$17:$B$23,'Activity 9'!G$17:G$23,\"N/A\",0,1)","v":"N/A"},{"$f":"_xlfn.XLOOKUP($E10,'Activity 9'!$B$17:$B$23,'Activity 9'!H$17:H$23,\"N/A\",0,1)","v":"N/A"},{"$f":"_xlfn.XLOOKUP($E10,'Activity 9'!$B$17:$B$23,'Activity 9'!I$17:I$23,\"N/A\",0,1)","v":"N/A"},{"$f":"_xlfn.XLOOKUP($E10,'Activity 9'!$B$17:$B$23,'Activity 9'!J$17:J$23,\"N/A\",0,1)","v":"N/A"},{"$f":"_xlfn.XLOOKUP($E10,'Activity 9'!$B$17:$B$23,'Activity 9'!K$17:K$23,\"N/A\",0,1)","v":"N/A"},{"$f":"_xlfn.XLOOKUP($E10,'Activity 9'!$B$17:$B$23,'Activity 9'!L$17:L$23,\"N/A\",0,1)","v":"N/A"},{"$f":"_xlfn.XLOOKUP($E10,'Activity 9'!$B$17:$B$23,'Activity 9'!N$17:N$23,\"N/A\",0,1)","v":"N/A"},{"$f":"_xlfn.XLOOKUP($E10,'Activity 9'!$B$17:$B$23,'Activity 9'!O$17:O$23,\"N/A\",0,1)","v":"N/A"},{"$f":"_xlfn.XLOOKUP($E10,'Activity 9'!$B$17:$B$23,'Activity 9'!Q$17:Q$23,\"N/A\",0,1)","v":"N/A"},{"$f":"_xlfn.XLOOKUP($E10,'Activity 10'!$B$7:$B$13,'Activity 10'!A$7:A$13,\"No\",0,1)","v":"No"},{"$f":"_xlfn.XLOOKUP($E10,'Activity 10'!$B$7:$B$13,'Activity 10'!J$7:J$13,\"N/A\",0,1)","v":"N/A"},{"$f":"_xlfn.XLOOKUP($E10,'Activity 10'!$B$7:$B$13,'Activity 10'!K$7:K$13,\"N/A\",0,1)","v":"N/A"},{"$f":"_xlfn.XLOOKUP($E10,'Activity 10'!$B$7:$B$13,'Activity 10'!L$7:L$13,\"N/A\",0,1)","v":"N/A"},{"$f":"_xlfn.XLOOKUP($E10,'Activity 10'!$B$7:$B$13,'Activity 10'!M$7:M$13,\"N/A\",0,1)","v":"N/A"},{"$f":"_xlfn.XLOOKUP($E10,'Activity 10'!$B$7:$B$13,'Activity 10'!N$7:N$13,\"N/A\",0,1)","v":"N/A"},{"$f":"_xlfn.XLOOKUP($E10,'Activity 10'!$B$7:$B$13,'Activity 10'!O$7:O$13,\"N/A\",0,1)","v":"N/A"},{"$f":"_xlfn.XLOOKUP($E10,'Activity 10'!$B$7:$B$13,'Activity 10'!P$7:P$13,\"N/A\",0,1)","v":"N/A"},{"$f":"_xlfn.XLOOKUP($E10,'Activity 10'!$B$7:$B$13,'Activity 10'!Q$7:Q$13,\"N/A\",0,1)","v":"N/A"},{"$f":"_xlfn.XLOOKUP($E10,'Activity 10'!$B$7:$B$13,'Activity 10'!R$7:R$13,\"N/A\",0,1)","v":"N/A"},{"$f":"_xlfn.XLOOKUP($E10,'Activity 10'!$B$7:$B$13,'Activity 10'!S$7:S$13,\"N/A\",0,1)","v":"N/A"},{"$f":"_xlfn.XLOOKUP($E10,'Activity 10'!$B$7:$B$13,'Activity 10'!T$7:T$13,\"N/A\",0,1)","v":"N/A"},{"$f":"_xlfn.XLOOKUP($E10,'Activity 10'!$B$7:$B$13,'Activity 10'!U$7:U$13,\"N/A\",0,1)","v":"N/A"},{"$f":"_xlfn.XLOOKUP($E10,'Activity 10'!$B$7:$B$13,'Activity 10'!V$7:V$13,\"N/A\",0,1)","v":"N/A"},{"$f":"_xlfn.XLOOKUP($E10,'Activity 10'!$B$17:$B$23,'Activity 10'!E$17:E$23,\"N/A\",0,1)","v":"N/A"},{"$f":"_xlfn.XLOOKUP($E10,'Activity 10'!$B$17:$B$23,'Activity 10'!F$17:F$23,\"N/A\",0,1)","v":"N/A"},{"$f":"_xlfn.XLOOKUP($E10,'Activity 10'!$B$17:$B$23,'Activity 10'!G$17:G$23,\"N/A\",0,1)","v":"N/A"},{"$f":"_xlfn.XLOOKUP($E10,'Activity 10'!$B$17:$B$23,'Activity 10'!H$17:H$23,\"N/A\",0,1)","v":"N/A"},{"$f":"_xlfn.XLOOKUP($E10,'Activity 10'!$B$17:$B$23,'Activity 10'!I$17:I$23,\"N/A\",0,1)","v":"N/A"},{"$f":"_xlfn.XLOOKUP($E10,'Activity 10'!$B$17:$B$23,'Activity 10'!J$17:J$23,\"N/A\",0,1)","v":"N/A"},{"$f":"_xlfn.XLOOKUP($E10,'Activity 10'!$B$17:$B$23,'Activity 10'!K$17:K$23,\"N/A\",0,1)","v":"N/A"},{"$f":"_xlfn.XLOOKUP($E10,'Activity 10'!$B$17:$B$23,'Activity 10'!L$17:L$23,\"N/A\",0,1)","v":"N/A"},{"$f":"_xlfn.XLOOKUP($E10,'Activity 10'!$B$17:$B$23,'Activity 10'!M$17:M$23,\"N/A\",0,1)","v":"N/A"},{"$f":"_xlfn.XLOOKUP($E10,'Activity 10'!$B$17:$B$23,'Activity 10'!N$17:N$23,\"N/A\",0,1)","v":"N/A"},{"$f":"_xlfn.XLOOKUP($E10,'Activity 10'!$B$17:$B$23,'Activity 10'!P$17:P$23,\"N/A\",0,1)","v":"N/A"},{"$f":"_xlfn.XLOOKUP($E10,'Competitive Activity 1'!B$7:B$13,'Competitive Activity 1'!A$7:A$13,\"No\",0,1)","v":"No"},{"$f":"_xlfn.XLOOKUP($E10,'Competitive Activity 1'!$B$7:$B$13,'Competitive Activity 1'!H$7:H$13,\"N/A\",0,1)","v":"N/A"},{"$f":"_xlfn.XLOOKUP($E10,'Competitive Activity 1'!$B$7:$B$13,'Competitive Activity 1'!I$7:I$13,\"N/A\",0,1)","v":"N/A"},{"$f":"_xlfn.XLOOKUP($E10,'Competitive Activity 1'!$B$7:$B$13,'Competitive Activity 1'!J$7:J$13,\"N/A\",0,1)","v":"N/A"},{"$f":"_xlfn.XLOOKUP($E10,'Competitive Activity 1'!$B$7:$B$13,'Competitive Activity 1'!K$7:K$13,\"N/A\",0,1)","v":"N/A"},{"$f":"_xlfn.XLOOKUP($E10,'Competitive Activity 1'!$B$7:$B$13,'Competitive Activity 1'!L$7:L$13,\"N/A\",0,1)","v":"N/A"},{"$f":"_xlfn.XLOOKUP($E10,'Competitive Activity 1'!$B$7:$B$13,'Competitive Activity 1'!M$7:M$13,\"N/A\",0,1)","v":"N/A"},{"$f":"_xlfn.XLOOKUP($E10,'Competitive Activity 1'!$B$7:$B$13,'Competitive Activity 1'!N$7:N$13,\"N/A\",0,1)","v":"N/A"},{"$f":"_xlfn.XLOOKUP($E10,'Competitive Activity 1'!$B$7:$B$13,'Competitive Activity 1'!O$7:O$13,\"N/A\",0,1)","v":"N/A"},{"$f":"_xlfn.XLOOKUP($E10,'Competitive Activity 1'!$B$7:$B$13,'Competitive Activity 1'!P$7:P$13,\"N/A\",0,1)","v":"N/A"},{"$f":"_xlfn.XLOOKUP($E10,'Competitive Activity 1'!$B$7:$B$13,'Competitive Activity 1'!Q$7:Q$13,\"N/A\",0,1)","v":"N/A"},{"$f":"_xlfn.XLOOKUP($E10,'Competitive Activity 1'!$B$7:$B$13,'Competitive Activity 1'!R$7:R$13,\"N/A\",0,1)","v":"N/A"},{"$f":"_xlfn.XLOOKUP($E10,'Competitive Activity 1'!$B$7:$B$13,'Competitive Activity 1'!S$7:S$13,\"N/A\",0,1)","v":"N/A"},{"$f":"_xlfn.XLOOKUP($E10,'Competitive Activity 1'!$B$7:$B$13,'Competitive Activity 1'!T$7:T$13,\"N/A\",0,1)","v":"N/A"},{"$f":"_xlfn.XLOOKUP($E10,'Competitive Activity 1'!$B$7:$B$13,'Competitive Activity 1'!U$7:U$13,\"N/A\",0,1)","v":"N/A"},{"$f":"_xlfn.XLOOKUP($E10,'Competitive Activity 1'!$B$17:$B$23,'Competitive Activity 1'!C$17:C$23,\"N/A\",0,1)","v":"N/A"},{"$f":"_xlfn.XLOOKUP($E10,'Competitive Activity 1'!$B$17:$B$23,'Competitive Activity 1'!D$17:D$23,\"N/A\",0,1)","v":"N/A"},{"$f":"_xlfn.XLOOKUP($E10,'Competitive Activity 1'!$B$17:$B$23,'Competitive Activity 1'!E$17:E$23,\"N/A\",0,1)","v":"N/A"},{"$f":"_xlfn.XLOOKUP($E10,'Competitive Activity 1'!$B$17:$B$23,'Competitive Activity 1'!F$17:F$23,\"N/A\",0,1)","v":"N/A"},{"$f":"_xlfn.XLOOKUP($E10,'Competitive Activity 1'!$B$17:$B$23,'Competitive Activity 1'!G$17:G$23,\"N/A\",0,1)","v":"N/A"},{"$f":"_xlfn.XLOOKUP($E10,'Competitive Activity 1'!$B$17:$B$23,'Competitive Activity 1'!H$17:H$23,\"N/A\",0,1)","v":"N/A"},{"$f":"_xlfn.XLOOKUP($E10,'Competitive Activity 1'!$B$17:$B$23,'Competitive Activity 1'!I$17:I$23,\"N/A\",0,1)","v":"N/A"},{"$f":"_xlfn.XLOOKUP($E10,'Competitive Activity 1'!$B$17:$B$23,'Competitive Activity 1'!J$17:J$23,\"N/A\",0,1)","v":"N/A"},{"$f":"_xlfn.XLOOKUP($E10,'Competitive Activity 1'!$B$17:$B$23,'Competitive Activity 1'!K$17:K$23,\"N/A\",0,1)","v":"N/A"},{"$f":"_xlfn.XLOOKUP($E10,'Competitive Activity 1'!$B$17:$B$23,'Competitive Activity 1'!M$17:M$23,\"N/A\",0,1)","v":"N/A"},{"$f":"_xlfn.XLOOKUP($E10,'Competitive Activity 1'!$B$17:$B$23,'Competitive Activity 1'!N$17:N$23,\"N/A\",0,1)","v":"N/A"},{"$f":"_xlfn.XLOOKUP($E10,'Competitive Activity 1'!$B$17:$B$23,'Competitive Activity 1'!P$17:P$23,\"N/A\",0,1)","v":"N/A"},{"$f":"_xlfn.XLOOKUP($E10,'Competitive Activity 2'!$B$7:$B$13,'Competitive Activity 2'!A$7:A$13,\"No\",0)","v":"No"},{"$f":"_xlfn.XLOOKUP($E10,'Competitive Activity 2'!$B$7:$B$13,'Competitive Activity 2'!L$7:L$13,\"N/A\",0)","v":"N/A"},{"$f":"_xlfn.XLOOKUP($E10,'Competitive Activity 2'!$B$7:$B$13,'Competitive Activity 2'!M$7:M$13,\"N/A\",0)","v":"N/A"},{"$f":"_xlfn.XLOOKUP($E10,'Competitive Activity 2'!$B$7:$B$13,'Competitive Activity 2'!N$7:N$13,\"N/A\",0)","v":"N/A"},{"$f":"_xlfn.XLOOKUP($E10,'Competitive Activity 2'!$B$7:$B$13,'Competitive Activity 2'!O$7:O$13,\"N/A\",0)","v":"N/A"},{"$f":"_xlfn.XLOOKUP($E10,'Competitive Activity 2'!$B$7:$B$13,'Competitive Activity 2'!P$7:P$13,\"N/A\",0)","v":"N/A"},{"$f":"_xlfn.XLOOKUP($E10,'Competitive Activity 2'!$B$7:$B$13,'Competitive Activity 2'!Q$7:Q$13,\"N/A\",0)","v":"N/A"},{"$f":"_xlfn.XLOOKUP($E10,'Competitive Activity 2'!$B$7:$B$13,'Competitive Activity 2'!R$7:R$13,\"N/A\",0)","v":"N/A"},{"$f":"_xlfn.XLOOKUP($E10,'Competitive Activity 2'!$B$7:$B$13,'Competitive Activity 2'!S$7:S$13,\"N/A\",0)","v":"N/A"},{"$f":"_xlfn.XLOOKUP($E10,'Competitive Activity 2'!$B$7:$B$13,'Competitive Activity 2'!T$7:T$13,\"N/A\",0)","v":"N/A"},{"$f":"_xlfn.XLOOKUP($E10,'Competitive Activity 2'!$B$7:$B$13,'Competitive Activity 2'!U$7:U$13,\"N/A\",0)","v":"N/A"},{"$f":"_xlfn.XLOOKUP($E10,'Competitive Activity 2'!$B$17:$B$23,'Competitive Activity 2'!D$17:D$23,\"N/A\",0)","v":"N/A"},{"$f":"_xlfn.XLOOKUP($E10,'Competitive Activity 2'!$B$17:$B$23,'Competitive Activity 2'!E$17:E$23,\"N/A\",0)","v":"N/A"},{"$f":"_xlfn.XLOOKUP($E10,'Competitive Activity 2'!$B$17:$B$23,'Competitive Activity 2'!F$17:F$23,\"N/A\",0)","v":"N/A"},{"$f":"_xlfn.XLOOKUP($E10,'Competitive Activity 2'!$B$17:$B$23,'Competitive Activity 2'!G$17:G$23,\"N/A\",0)","v":"N/A"},{"$f":"_xlfn.XLOOKUP($E10,'Competitive Activity 2'!$B$17:$B$23,'Competitive Activity 2'!H$17:H$23,\"N/A\",0)","v":"N/A"},{"$f":"_xlfn.XLOOKUP($E10,'Competitive Activity 2'!$B$17:$B$23,'Competitive Activity 2'!I$17:I$23,\"N/A\",0)","v":"N/A"},{"$f":"_xlfn.XLOOKUP($E10,'Competitive Activity 2'!$B$17:$B$23,'Competitive Activity 2'!J$17:J$23,\"N/A\",0)","v":"N/A"},{"$f":"_xlfn.XLOOKUP($E10,'Competitive Activity 2'!$B$17:$B$23,'Competitive Activity 2'!K$17:K$23,\"N/A\",0)","v":"N/A"},{"$f":"_xlfn.XLOOKUP($E10,'Competitive Activity 2'!$B$17:$B$23,'Competitive Activity 2'!L$17:L$23,\"N/A\",0)","v":"N/A"},{"$f":"_xlfn.XLOOKUP($E10,'Competitive Activity 2'!$B$17:$B$23,'Competitive Activity 2'!M$17:M$23,\"N/A\",0)","v":"N/A"},{"$f":"_xlfn.XLOOKUP($E10,'Competitive Activity 2'!$B$17:$B$23,'Competitive Activity 2'!N$17:N$23,\"N/A\",0)","v":"N/A"},{"$f":"_xlfn.XLOOKUP($E10,'Competitive Activity 2'!$B$27:$B$33,'Competitive Activity 2'!D$27:D$33,\"N/A\",0)","v":"N/A"},{"$f":"_xlfn.XLOOKUP($E10,'Competitive Activity 2'!$B$27:$B$33,'Competitive Activity 2'!E$27:E$33,\"N/A\",0)","v":"N/A"},{"$f":"_xlfn.XLOOKUP($E10,'Competitive Activity 2'!$B$27:$B$33,'Competitive Activity 2'!F$27:F$33,\"N/A\",0)","v":"N/A"},{"$f":"_xlfn.XLOOKUP($E10,'Competitive Activity 2'!$B$27:$B$33,'Competitive Activity 2'!G$27:G$33,\"N/A\",0)","v":"N/A"},{"$f":"_xlfn.XLOOKUP($E10,'Competitive Activity 2'!$B$27:$B$33,'Competitive Activity 2'!H$27:H$33,\"N/A\",0)","v":"N/A"},{"$f":"_xlfn.XLOOKUP($E10,'Competitive Activity 2'!$B$27:$B$33,'Competitive Activity 2'!I$27:I$33,\"N/A\",0)","v":"N/A"},{"$f":"_xlfn.XLOOKUP($E10,'Competitive Activity 2'!$B$27:$B$33,'Competitive Activity 2'!J$27:J$33,\"N/A\",0)","v":"N/A"},{"$f":"_xlfn.XLOOKUP($E10,'Competitive Activity 2'!$B$27:$B$33,'Competitive Activity 2'!K$27:K$33,\"N/A\",0)","v":"N/A"},{"$f":"_xlfn.XLOOKUP($E10,'Competitive Activity 2'!$B$27:$B$33,'Competitive Activity 2'!M$27:M$33,\"N/A\",0)","v":"N/A"}]
[{"$f":"'1-Cover Sheet'!$C$8","v":"Select One"},{"$f":"'1-Cover Sheet'!$F$8","v":"Select One"},{"$f":"'Summary Sheet'!$D$8","v":0},{"$f":"'Summary Sheet'!$D$10","v":0},{"$f":"'Drop Down Box'!B175","v":0},{"$f":"'Drop Down Box'!C175","v":0},{"$f":"'Drop Down Box'!D175","v":"Select One"},{"$f":"_xlfn.XLOOKUP(E11,'Drop Down Box'!$B$166:$B$249,'Drop Down Box'!$A$166:$A$249,\"Unknown\",0)","v":"Activity 1"},{"$f":"_xlfn.XLOOKUP($E11,'Activity 2'!$B$17:$B$23,'Activity 2'!$N$17:$N$23,\"N/A\",0)","v":"N/A"},{"$f":"_xlfn.XLOOKUP($E11,'Activity 2'!$B$17:$B$23,'Activity 2'!$P$17:$P$23,\"N/A\",0)","v":"N/A"},{"$f":"_xlfn.XLOOKUP($E11,'Activity 2'!$B$7:$B$13,'Activity 2'!E$7:E$13,0,0)","v":0},{"$f":"_xlfn.XLOOKUP($E11,'Activity 2'!$B$7:$B$13,'Activity 2'!F$7:F$13,0,0)","v":"00:00:00"},{"$f":"_xlfn.XLOOKUP($E11,'Activity 2'!$B$7:$B$13,'Activity 2'!G$7:G$13,0,0)","v":0},{"$f":"_xlfn.XLOOKUP($E11,'Activity 1'!$B$7:$B$13,'Activity 1'!$A$7:$A$13,\"No\",0,1)","v":"No"},{"$f":"_xlfn.XLOOKUP($E11,'Activity 1'!$B$7:$B$13,'Activity 1'!$H$7:$H$13,\"N/A\",0,1)","v":"N/A"},{"$f":"_xlfn.XLOOKUP($E11,'Activity 1'!$B$7:$B$13,'Activity 1'!I$7:I$13,\"N/A\",0,1)","v":"N/A"},{"$f":"_xlfn.XLOOKUP($E11,'Activity 1'!$B$7:$B$13,'Activity 1'!J$7:J$13,\"N/A\",0,1)","v":"N/A"},{"$f":"_xlfn.XLOOKUP($E11,'Activity 1'!$B$7:$B$13,'Activity 1'!K$7:K$13,\"N/A\",0,1)","v":"N/A"},{"$f":"_xlfn.XLOOKUP($E11,'Activity 1'!$B$7:$B$13,'Activity 1'!L$7:L$13,\"N/A\",0,1)","v":"N/A"},{"$f":"_xlfn.XLOOKUP($E11,'Activity 1'!$B$7:$B$13,'Activity 1'!M$7:M$13,\"N/A\",0,1)","v":"N/A"},{"$f":"_xlfn.XLOOKUP($E11,'Activity 1'!$B$7:$B$13,'Activity 1'!N$7:N$13,\"N/A\",0,1)","v":"N/A"},0,{"$f":"_xlfn.XLOOKUP($E11,'Activity 1'!$B$7:$B$13,'Activity 1'!O$7:O$13,\"N/A\",0,1)","v":"N/A"},{"$f":"_xlfn.XLOOKUP($E11,'Activity 1'!$B$7:$B$13,'Activity 1'!P$7:P$13,\"N/A\",0,1)","v":"N/A"},{"$f":"_xlfn.XLOOKUP($E11,'Activity 1'!$B$7:$B$13,'Activity 1'!Q$7:Q$13,\"N/A\",0,1)","v":"N/A"},{"$f":"_xlfn.XLOOKUP($E11,'Activity 1'!$B$7:$B$13,'Activity 1'!R$7:R$13,\"N/A\",0,1)","v":"N/A"},{"$f":"_xlfn.XLOOKUP($E11,'Activity 1'!$B$7:$B$13,'Activity 1'!S$7:S$13,\"N/A\",0,1)","v":"N/A"},{"$f":"_xlfn.XLOOKUP($E11,'Activity 1'!$B$7:$B$13,'Activity 1'!T$7:T$13,\"N/A\",0,1)","v":"N/A"},{"$f":"_xlfn.XLOOKUP($E11,'Activity 1'!$B$7:$B$13,'Activity 1'!U$7:U$13,\"N/A\",0,1)","v":"N/A"},{"$f":"_xlfn.XLOOKUP($E11,'Activity 1'!$B$7:$B$13,'Activity 1'!V$7:V$13,\"N/A\",0,1)","v":"N/A"},{"$f":"_xlfn.XLOOKUP($E11,'Activity 1'!$B$17:$B$23,'Activity 1'!C$17:C$23,\"N/A\",0,1)","v":"N/A"},{"$f":"_xlfn.XLOOKUP($E11,'Activity 1'!$B$17:$B$23,'Activity 1'!D$17:D$23,\"N/A\",0,1)","v":"N/A"},{"$f":"_xlfn.XLOOKUP($E11,'Activity 1'!$B$17:$B$23,'Activity 1'!E$17:E$23,\"N/A\",0,1)","v":"N/A"},{"$f":"_xlfn.XLOOKUP($E11,'Activity 1'!$B$17:$B$23,'Activity 1'!F$17:F$23,\"N/A\",0,1)","v":"N/A"},{"$f":"_xlfn.XLOOKUP($E11,'Activity 1'!$B$17:$B$23,'Activity 1'!G$17:G$23,\"N/A\",0,1)","v":"N/A"},{"$f":"_xlfn.XLOOKUP($E11,'Activity 1'!$B$17:$B$23,'Activity 1'!H$17:H$23,\"N/A\",0,1)","v":"N/A"},{"$f":"_xlfn.XLOOKUP($E11,'Activity 1'!$B$17:$B$23,'Activity 1'!I$17:I$23,\"N/A\",0,1)","v":"N/A"},{"$f":"_xlfn.XLOOKUP($E11,'Activity 1'!$B$17:$B$23,'Activity 1'!J$17:J$23,\"N/A\",0,1)","v":"N/A"},{"$f":"_xlfn.XLOOKUP($E11,'Activity 1'!$B$17:$B$23,'Activity 1'!K$17:K$23,\"N/A\",0,1)","v":"N/A"},{"$f":"_xlfn.XLOOKUP($E11,'Activity 1'!$B$17:$B$23,'Activity 1'!L$17:L$23,\"N/A\",0,1)","v":"N/A"},{"$f":"_xlfn.XLOOKUP($E11,'Activity 1'!$B$17:$B$23,'Activity 1'!M$17:M$23,\"N/A\",0,1)","v":"N/A"},{"$f":"_xlfn.XLOOKUP($E11,'Activity 1'!$B$17:$B$23,'Activity 1'!O$17:O$23,\"N/A\",0,1)","v":"N/A"},{"$f":"_xlfn.XLOOKUP($E11,'Activity 1'!$B$17:$B$23,'Activity 1'!Q$17:Q$23,\"N/A\",0,1)","v":"N/A"},{"$f":"_xlfn.XLOOKUP($E11,'Activity 2'!$B$7:$B$13,'Activity 2'!$A$7:$A$13,\"No\",0,1)","v":"No"},{"$f":"_xlfn.XLOOKUP($E11,'Activity 2'!B$7:B$13,'Activity 2'!H$7:H$13,\"N/A\",0)","v":"N/A"},{"$f":"_xlfn.XLOOKUP($E11,'Activity 2'!C$7:C$13,'Activity 2'!I$7:I$13,\"N/A\",0)","v":"N/A"},{"$f":"_xlfn.XLOOKUP($E11,'Activity 2'!D$7:D$13,'Activity 2'!J$7:J$13,\"N/A\",0)","v":"N/A"},{"$f":"_xlfn.XLOOKUP($E11,'Activity 2'!E$7:E$13,'Activity 2'!K$7:K$13,\"N/A\",0)","v":"N/A"},{"$f":"_xlfn.XLOOKUP($E11,'Activity 2'!F$7:F$13,'Activity 2'!L$7:L$13,\"N/A\",0)","v":"N/A"},{"$f":"_xlfn.XLOOKUP($E11,'Activity 2'!G$7:G$13,'Activity 2'!M$7:M$13,\"N/A\",0)","v":"N/A"},{"$f":"_xlfn.XLOOKUP($E11,'Activity 2'!H$7:H$13,'Activity 2'!N$7:N$13,\"N/A\",0)","v":"N/A"},{"$f":"_xlfn.XLOOKUP($E11,'Activity 2'!I$7:I$13,'Activity 2'!O$7:O$13,\"N/A\",0)","v":"N/A"},{"$f":"_xlfn.XLOOKUP($E11,'Activity 2'!J$7:J$13,'Activity 2'!P$7:P$13,\"N/A\",0)","v":"N/A"},{"$f":"_xlfn.XLOOKUP($E11,'Activity 2'!K$7:K$13,'Activity 2'!Q$7:Q$13,\"N/A\",0)","v":"N/A"},{"$f":"_xlfn.XLOOKUP($E11,'Activity 2'!L$7:L$13,'Activity 2'!R$7:R$13,\"N/A\",0)","v":"N/A"},{"$f":"_xlfn.XLOOKUP($E11,'Activity 2'!M$7:M$13,'Activity 2'!S$7:S$13,\"N/A\",0)","v":"N/A"},{"$f":"_xlfn.XLOOKUP($E11,'Activity 2'!N$7:N$13,'Activity 2'!T$7:T$13,\"N/A\",0)","v":"N/A"},{"$f":"_xlfn.XLOOKUP($E11,'Activity 2'!O$7:O$13,'Activity 2'!U$7:U$13,\"N/A\",0)","v":"N/A"},{"$f":"_xlfn.XLOOKUP($E11,'Activity 2'!P$7:P$13,'Activity 2'!V$7:V$13,\"N/A\",0)","v":"N/A"},{"$f":"_xlfn.XLOOKUP($E11,'Activity 2'!$B$17:$B$23,'Activity 2'!C$17:C$23,\"N/A\",0,1)","v":"N/A"},{"$f":"_xlfn.XLOOKUP($E11,'Activity 2'!$B$17:$B$23,'Activity 2'!D$17:D$23,\"N/A\",0,1)","v":"N/A"},{"$f":"_xlfn.XLOOKUP($E11,'Activity 2'!$B$17:$B$23,'Activity 2'!E$17:E$23,\"N/A\",0,1)","v":"N/A"},{"$f":"_xlfn.XLOOKUP($E11,'Activity 2'!$B$17:$B$23,'Activity 2'!F$17:F$23,\"N/A\",0,1)","v":"N/A"},{"$f":"_xlfn.XLOOKUP($E11,'Activity 2'!$B$17:$B$23,'Activity 2'!G$17:G$23,\"N/A\",0,1)","v":"N/A"},{"$f":"_xlfn.XLOOKUP($E11,'Activity 2'!$B$17:$B$23,'Activity 2'!H$17:H$23,\"N/A\",0,1)","v":"N/A"},{"$f":"_xlfn.XLOOKUP($E11,'Activity 2'!$B$17:$B$23,'Activity 2'!I$17:I$23,\"N/A\",0,1)","v":"N/A"},{"$f":"_xlfn.XLOOKUP($E11,'Activity 2'!$B$17:$B$23,'Activity 2'!J$17:J$23,\"N/A\",0,1)","v":"N/A"},{"$f":"_xlfn.XLOOKUP($E11,'Activity 2'!$B$17:$B$23,'Activity 2'!K$17:K$23,\"N/A\",0,1)","v":"N/A"},{"$f":"_xlfn.XLOOKUP($E11,'Activity 2'!$B$17:$B$23,'Activity 2'!L$17:L$23,\"N/A\",0,1)","v":"N/A"},{"$f":"_xlfn.XLOOKUP($E11,'Activity 2'!$B$17:$B$23,'Activity 2'!M$17:M$23,\"N/A\",0,1)","v":"N/A"},{"$f":"_xlfn.XLOOKUP($E11,'Activity 2'!$B$17:$B$23,'Activity 2'!O$17:O$23,\"N/A\",0,1)","v":"N/A"},{"$f":"_xlfn.XLOOKUP($E11,'Activity 2'!$B$17:$B$23,'Activity 2'!Q$17:Q$23,\"N/A\",0,1)","v":"N/A"},{"$f":"_xlfn.XLOOKUP($E11,'Activity 3'!$B$8:$B$14,'Activity 3'!A$8:A$14,\"No\",0,1)","v":"No"},{"$f":"_xlfn.XLOOKUP($E11,'Activity 3'!$B$8:$B$14,'Activity 3'!K$8:K$14,\"N/A\",0,1)","v":"N/A"},{"$f":"_xlfn.XLOOKUP($E11,'Activity 3'!$B$8:$B$14,'Activity 3'!L$8:L$14,\"N/A\",0,1)","v":"N/A"},{"$f":"_xlfn.XLOOKUP($E11,'Activity 3'!$B$8:$B$14,'Activity 3'!M$8:M$14,\"N/A\",0,1)","v":"N/A"},{"$f":"_xlfn.XLOOKUP($E11,'Activity 3'!$B$8:$B$14,'Activity 3'!N$8:N$14,\"N/A\",0,1)","v":"N/A"},{"$f":"_xlfn.XLOOKUP($E11,'Activity 3'!$B$8:$B$14,'Activity 3'!O$8:O$14,\"N/A\",0,1)","v":"N/A"},{"$f":"_xlfn.XLOOKUP($E11,'Activity 3'!$B$8:$B$14,'Activity 3'!R$8:R$14,\"N/A\",0,1)","v":"N/A"},{"$f":"_xlfn.XLOOKUP($E11,'Activity 4'!$B$8:$B$14,'Activity 4'!$A$8:$A$14,\"No\",0,1)","v":"No"},{"$f":"_xlfn.XLOOKUP($E11,'Activity 4'!$B$8:$B$14,'Activity 4'!L$8:L$14,\"N/A\",0,1)","v":"N/A"},{"$f":"_xlfn.XLOOKUP($E11,'Activity 4'!$B$8:$B$14,'Activity 4'!D$8:D$14,\"N/A\",0,1)","v":"N/A"},{"$f":"_xlfn.XLOOKUP($E11,'Activity 4'!$B$8:$B$14,'Activity 4'!G$8:G$14,\"N/A\",0,1)","v":"N/A"},{"$f":"_xlfn.XLOOKUP($E11,'Activity 5'!$B$8:$B$14,'Activity 5'!$A$8:$A$14,\"No\",0,1)","v":"No"},{"$f":"_xlfn.XLOOKUP($E11,'Activity 5'!$B$8:$B$14,'Activity 5'!J$8:J$14,\"N/A\",0,1)","v":"N/A"},{"$f":"_xlfn.XLOOKUP($E11,'Activity 5'!$B$8:$B$14,'Activity 5'!K$8:K$14,\"N/A\",0,1)","v":"N/A"},{"$f":"_xlfn.XLOOKUP($E11,'Activity 5'!$B$8:$B$14,'Activity 5'!N$8:N$14,\"N/A\",0,1)","v":"N/A"},{"$f":"_xlfn.XLOOKUP($E11,'Activity 5'!$B$8:$B$14,'Activity 5'!O$8:O$14,\"N/A\",0,1)","v":"N/A"},{"$f":"_xlfn.XLOOKUP($E11,'Activity 5'!$B$8:$B$14,'Activity 5'!P$8:P$14,\"N/A\",0,1)","v":"N/A"},{"$f":"_xlfn.XLOOKUP($E11,'Activity 5'!$B$8:$B$14,'Activity 5'!Q$8:Q$14,\"N/A\",0,1)","v":"N/A"},{"$f":"_xlfn.XLOOKUP($E11,'Activity 5'!$B$8:$B$14,'Activity 5'!R$8:R$14,\"N/A\",0,1)","v":"N/A"},{"$f":"_xlfn.XLOOKUP($E11,'Activity 6'!$B$7:$B$13,'Activity 6'!A$7:A$13,\"No\",0,1)","v":"No"},{"$f":"_xlfn.XLOOKUP($E11,'Activity 6'!$B$7:$B$13,'Activity 6'!K$7:K$13,\"N/A\",0,1)","v":"N/A"},{"$f":"_xlfn.XLOOKUP($E11,'Activity 6'!$B$7:$B$13,'Activity 6'!L$7:L$13,\"N/A\",0,1)","v":"N/A"},{"$f":"_xlfn.XLOOKUP($E11,'Activity 6'!$B$7:$B$13,'Activity 6'!M$7:M$13,\"N/A\",0,1)","v":"N/A"},{"$f":"_xlfn.XLOOKUP($E11,'Activity 6'!$B$7:$B$13,'Activity 6'!N$7:N$13,\"N/A\",0,1)","v":"N/A"},{"$f":"_xlfn.XLOOKUP($E11,'Activity 6'!$B$7:$B$13,'Activity 6'!O$7:O$13,\"N/A\",0,1)","v":"N/A"},{"$f":"_xlfn.XLOOKUP($E11,'Activity 6'!$B$7:$B$13,'Activity 6'!P$7:P$13,\"N/A\",0,1)","v":"N/A"},{"$f":"_xlfn.XLOOKUP($E11,'Activity 6'!$B$7:$B$13,'Activity 6'!Q$7:Q$13,\"N/A\",0,1)","v":"N/A"},{"$f":"_xlfn.XLOOKUP($E11,'Activity 6'!$B$7:$B$13,'Activity 6'!R$7:R$13,\"N/A\",0,1)","v":"N/A"},{"$f":"_xlfn.XLOOKUP($E11,'Activity 6'!$B$7:$B$13,'Activity 6'!S$7:S$13,\"N/A\",0,1)","v":"N/A"},{"$f":"_xlfn.XLOOKUP($E11,'Activity 6'!$B$7:$B$13,'Activity 6'!T$7:T$13,\"N/A\",0,1)","v":"N/A"},{"$f":"_xlfn.XLOOKUP($E11,'Activity 6'!$B$7:$B$13,'Activity 6'!U$7:U$13,\"N/A\",0,1)","v":"N/A"},{"$f":"_xlfn.XLOOKUP($E11,'Activity 6'!$B$22:$B$28,'Activity 6'!C$22:C$28,\"N/A\",0,1)","v":"N/A"},{"$f":"_xlfn.XLOOKUP($E11,'Activity 6'!$B$22:$B$28,'Activity 6'!D$22:D$28,\"N/A\",0,1)","v":"N/A"},{"$f":"_xlfn.XLOOKUP($E11,'Activity 6'!$B$22:$B$28,'Activity 6'!E$22:E$28,\"N/A\",0,1)","v":"N/A"},{"$f":"_xlfn.XLOOKUP($E11,'Activity 6'!$B$22:$B$28,'Activity 6'!F$22:F$28,\"N/A\",0,1)","v":"N/A"},{"$f":"_xlfn.XLOOKUP($E11,'Activity 6'!$B$22:$B$28,'Activity 6'!G$22:G$28,\"N/A\",0,1)","v":"N/A"},{"$f":"_xlfn.XLOOKUP($E11,'Activity 6'!$B$22:$B$28,'Activity 6'!H$22:H$28,\"N/A\",0,1)","v":"N/A"},{"$f":"_xlfn.XLOOKUP($E11,'Activity 6'!$B$22:$B$28,'Activity 6'!I$22:I$28,\"N/A\",0,1)","v":"N/A"},{"$f":"_xlfn.XLOOKUP($E11,'Activity 6'!$B$22:$B$28,'Activity 6'!J$22:J$28,\"N/A\",0,1)","v":"N/A"},{"$f":"_xlfn.XLOOKUP($E11,'Activity 6'!$B$22:$B$28,'Activity 6'!K$22:K$28,\"N/A\",0,1)","v":"N/A"},{"$f":"_xlfn.XLOOKUP($E11,'Activity 6'!$B$22:$B$28,'Activity 6'!L$22:L$28,\"N/A\",0,1)","v":"N/A"},{"$f":"_xlfn.XLOOKUP($E11,'Activity 6'!$B$22:$B$28,'Activity 6'!M$22:M$28,\"N/A\",0,1)","v":"N/A"},{"$f":"_xlfn.XLOOKUP($E11,'Activity 6'!$B$22:$B$28,'Activity 6'!N$22:N$28,\"N/A\",0,1)","v":"N/A"},{"$f":"_xlfn.XLOOKUP($E11,'Activity 6'!$B$32:$B$38,'Activity 6'!C$32:C$38,\"N/A\",0,1)","v":"N/A"},{"$f":"_xlfn.XLOOKUP($E11,'Activity 6'!$B$32:$B$38,'Activity 6'!D$32:D$38,\"N/A\",0,1)","v":"N/A"},{"$f":"_xlfn.XLOOKUP($E11,'Activity 6'!$B$32:$B$38,'Activity 6'!E$32:E$38,\"N/A\",0,1)","v":"N/A"},{"$f":"_xlfn.XLOOKUP($E11,'Activity 6'!$B$32:$B$38,'Activity 6'!F$32:F$38,\"N/A\",0,1)","v":"N/A"},{"$f":"_xlfn.XLOOKUP($E11,'Activity 6'!$B$32:$B$38,'Activity 6'!G$32:G$38,\"N/A\",0,1)","v":"N/A"},{"$f":"_xlfn.XLOOKUP($E11,'Activity 6'!$B$32:$B$38,'Activity 6'!H$32:H$38,\"N/A\",0,1)","v":"N/A"},{"$f":"_xlfn.XLOOKUP($E11,'Activity 6'!$B$32:$B$38,'Activity 6'!I$32:I$38,\"N/A\",0,1)","v":"N/A"},{"$f":"_xlfn.XLOOKUP($E11,'Activity 6'!$B$32:$B$38,'Activity 6'!J$32:J$38,\"N/A\",0,1)","v":"N/A"},{"$f":"_xlfn.XLOOKUP($E11,'Activity 6'!$B$32:$B$38,'Activity 6'!K$32:K$38,\"N/A\",0,1)","v":"N/A"},{"$f":"_xlfn.XLOOKUP($E11,'Activity 6'!$B$32:$B$38,'Activity 6'!M$32:M$38,\"N/A\",0,1)","v":"N/A"},{"$f":"_xlfn.XLOOKUP($E11,'Activity 7'!$B$7:$B$13,'Activity 7'!$A$7:$A$13,\"No\",0,1)","v":"No"},{"$f":"_xlfn.XLOOKUP($E11,'Activity 7'!$B$7:$B$13,'Activity 7'!M$7:M$13,\"N/A\",0,1)","v":"N/A"},{"$f":"_xlfn.XLOOKUP($E11,'Activity 7'!$B$7:$B$13,'Activity 7'!K$7:K$13,\"N/A\",0,1)","v":"N/A"},{"$f":"_xlfn.XLOOKUP($E11,'Activity 7'!$B$7:$B$13,'Activity 7'!N$7:N$13,\"N/A\",0,1)","v":"N/A"},{"$f":"_xlfn.XLOOKUP($E11,'Activity 7'!$B$7:$B$13,'Activity 7'!O$7:O$13,\"N/A\",0,1)","v":"N/A"},{"$f":"_xlfn.XLOOKUP($E11,'Activity 7'!$B$7:$B$13,'Activity 7'!P$7:P$13,\"N/A\",0,1)","v":"N/A"},{"$f":"_xlfn.XLOOKUP($E11,'Activity 7'!$B$7:$B$13,'Activity 7'!Q$7:Q$13,\"N/A\",0,1)","v":"N/A"},{"$f":"_xlfn.XLOOKUP($E11,'Activity 7'!$B$7:$B$13,'Activity 7'!R$7:R$13,\"N/A\",0,1)","v":"N/A"},{"$f":"_xlfn.XLOOKUP($E11,'Activity 7'!$B$7:$B$13,'Activity 7'!S$7:S$13,\"N/A\",0,1)","v":"N/A"},{"$f":"_xlfn.XLOOKUP($E11,'Activity 7'!$B$7:$B$13,'Activity 7'!T$7:T$13,\"N/A\",0,1)","v":"N/A"},{"$f":"_xlfn.XLOOKUP($E11,'Activity 7'!$B$7:$B$13,'Activity 7'!U$7:U$13,\"N/A\",0,1)","v":"N/A"},{"$f":"_xlfn.XLOOKUP($E11,'Activity 7'!$B$7:$B$13,'Activity 7'!V$7:V$13,\"N/A\",0,1)","v":"N/A"},{"$f":"_xlfn.XLOOKUP($E11,'Activity 7'!$B$17:$B$23,'Activity 7'!E$17:E$23,\"N/A\",0,1)","v":"N/A"},{"$f":"_xlfn.XLOOKUP($E11,'Activity 7'!$B$17:$B$23,'Activity 7'!G$17:G$23,\"N/A\",0,1)","v":"N/A"},{"$f":"_xlfn.XLOOKUP($E11,'Activity 7'!$B$17:$B$23,'Activity 7'!I$17:I$23,\"N/A\",0,1)","v":"N/A"},{"$f":"_xlfn.XLOOKUP($E11,'Activity 7'!$B$17:$B$23,'Activity 7'!J$17:J$23,\"N/A\",0,1)","v":"N/A"},{"$f":"_xlfn.XLOOKUP($E11,'Activity 7'!$B$17:$B$23,'Activity 7'!K$17:K$23,\"N/A\",0,1)","v":"N/A"},{"$f":"_xlfn.XLOOKUP($E11,'Activity 7'!$B$17:$B$23,'Activity 7'!L$17:L$23,\"N/A\",0,1)","v":"N/A"},{"$f":"_xlfn.XLOOKUP($E11,'Activity 7'!$B$17:$B$23,'Activity 7'!M$17:M$23,\"N/A\",0,1)","v":"N/A"},{"$f":"_xlfn.XLOOKUP($E11,'Activity 7'!$B$17:$B$23,'Activity 7'!N$17:N$23,\"N/A\",0,1)","v":"N/A"},{"$f":"_xlfn.XLOOKUP($E11,'Activity 7'!$B$17:$B$23,'Activity 7'!P$17:P$23,\"N/A\",0,1)","v":"N/A"},{"$f":"_xlfn.XLOOKUP($E11,'Activity 8'!$B$7:$B$13,'Activity 8'!A$7:A$13,\"No\",0,1)","v":"No"},{"$f":"_xlfn.XLOOKUP($E11,'Activity 8'!$B$7:$B$13,'Activity 8'!I$7:I$13,\"N/A\",0,1)","v":"N/A"},{"$f":"_xlfn.XLOOKUP($E11,'Activity 8'!$B$7:$B$13,'Activity 8'!J$7:J$13,\"N/A\",0,1)","v":"N/A"},{"$f":"_xlfn.XLOOKUP($E11,'Activity 8'!$B$7:$B$13,'Activity 8'!K$7:K$13,\"N/A\",0,1)","v":"N/A"},{"$f":"_xlfn.XLOOKUP($E11,'Activity 8'!$B$7:$B$13,'Activity 8'!L$7:L$13,\"N/A\",0,1)","v":"N/A"},{"$f":"_xlfn.XLOOKUP($E11,'Activity 8'!$B$7:$B$13,'Activity 8'!M$7:M$13,\"N/A\",0,1)","v":"N/A"},{"$f":"_xlfn.XLOOKUP($E11,'Activity 8'!$B$7:$B$13,'Activity 8'!N$7:N$13,\"N/A\",0,1)","v":"N/A"},{"$f":"_xlfn.XLOOKUP($E11,'Activity 8'!$B$7:$B$13,'Activity 8'!O$7:O$13,\"N/A\",0,1)","v":"N/A"},{"$f":"_xlfn.XLOOKUP($E11,'Activity 8'!$B$7:$B$13,'Activity 8'!P$7:P$13,\"N/A\",0,1)","v":"N/A"},{"$f":"_xlfn.XLOOKUP($E11,'Activity 8'!$B$7:$B$13,'Activity 8'!Q$7:Q$13,\"N/A\",0,1)","v":"N/A"},{"$f":"_xlfn.XLOOKUP($E11,'Activity 8'!$B$7:$B$13,'Activity 8'!R$7:R$13,\"N/A\",0,1)","v":"N/A"},{"$f":"_xlfn.XLOOKUP($E11,'Activity 8'!$B$7:$B$13,'Activity 8'!S$7:S$13,\"N/A\",0,1)","v":"N/A"},{"$f":"_xlfn.XLOOKUP($E11,'Activity 8'!$B$7:$B$13,'Activity 8'!T$7:T$13,\"N/A\",0,1)","v":"N/A"},{"$f":"_xlfn.XLOOKUP($E11,'Activity 8'!$B$7:$B$13,'Activity 8'!U$7:U$13,\"N/A\",0,1)","v":"N/A"},{"$f":"_xlfn.XLOOKUP($E11,'Activity 8'!$B$7:$B$13,'Activity 8'!V$7:V$13,\"N/A\",0,1)","v":"N/A"},{"$f":"_xlfn.XLOOKUP($E11,'Activity 8'!$B$17:$B$23,'Activity 8'!D$17:D$23,\"N/A\",0,1)","v":"N/A"},{"$f":"_xlfn.XLOOKUP($E11,'Activity 8'!$B$17:$B$23,'Activity 8'!E$17:E$23,\"N/A\",0,1)","v":"N/A"},{"$f":"_xlfn.XLOOKUP($E11,'Activity 8'!$B$17:$B$23,'Activity 8'!F$17:F$23,\"N/A\",0,1)","v":"N/A"},{"$f":"_xlfn.XLOOKUP($E11,'Activity 8'!$B$17:$B$23,'Activity 8'!G$17:G$23,\"N/A\",0,1)","v":"N/A"},{"$f":"_xlfn.XLOOKUP($E11,'Activity 8'!$B$17:$B$23,'Activity 8'!H$17:H$23,\"N/A\",0,1)","v":"N/A"},{"$f":"_xlfn.XLOOKUP($E11,'Activity 8'!$B$17:$B$23,'Activity 8'!I$17:I$23,\"N/A\",0,1)","v":"N/A"},{"$f":"_xlfn.XLOOKUP($E11,'Activity 8'!$B$17:$B$23,'Activity 8'!J$17:J$23,\"N/A\",0,1)","v":"N/A"},{"$f":"_xlfn.XLOOKUP($E11,'Activity 8'!$B$17:$B$23,'Activity 8'!K$17:K$23,\"N/A\",0,1)","v":"N/A"},{"$f":"_xlfn.XLOOKUP($E11,'Activity 8'!$B$17:$B$23,'Activity 8'!L$17:L$23,\"N/A\",0,1)","v":"N/A"},{"$f":"_xlfn.XLOOKUP($E11,'Activity 8'!$B$17:$B$23,'Activity 8'!M$17:M$23,\"N/A\",0,1)","v":"N/A"},{"$f":"_xlfn.XLOOKUP($E11,'Activity 8'!$B$17:$B$23,'Activity 8'!N$17:N$23,\"N/A\",0,1)","v":"N/A"},{"$f":"_xlfn.XLOOKUP($E11,'Activity 8'!$B$17:$B$23,'Activity 8'!P$17:P$23,\"N/A\",0,1)","v":"N/A"},{"$f":"_xlfn.XLOOKUP(E11,'Activity 9'!$B$7:$B$13,'Activity 9'!$A$7:$A$13,\"No\",0,1)","v":"No"},{"$f":"_xlfn.XLOOKUP($E11,'Activity 9'!$B$7:$B$13,'Activity 9'!J$7:J$13,\"N/A\",0,1)","v":"N/A"},{"$f":"_xlfn.XLOOKUP($E11,'Activity 9'!$B$7:$B$13,'Activity 9'!K$7:K$13,\"N/A\",0,1)","v":"N/A"},{"$f":"_xlfn.XLOOKUP($E11,'Activity 9'!$B$7:$B$13,'Activity 9'!L$7:L$13,\"N/A\",0,1)","v":"N/A"},{"$f":"_xlfn.XLOOKUP($E11,'Activity 9'!$B$7:$B$13,'Activity 9'!M$7:M$13,\"N/A\",0,1)","v":"N/A"},{"$f":"_xlfn.XLOOKUP($E11,'Activity 9'!$B$7:$B$13,'Activity 9'!N$7:N$13,\"N/A\",0,1)","v":"N/A"},{"$f":"_xlfn.XLOOKUP($E11,'Activity 9'!$B$7:$B$13,'Activity 9'!O$7:O$13,\"N/A\",0,1)","v":"N/A"},{"$f":"_xlfn.XLOOKUP($E11,'Activity 9'!$B$7:$B$13,'Activity 9'!P$7:P$13,\"N/A\",0,1)","v":"N/A"},{"$f":"_xlfn.XLOOKUP($E11,'Activity 9'!$B$7:$B$13,'Activity 9'!Q$7:Q$13,\"N/A\",0,1)","v":"N/A"},{"$f":"_xlfn.XLOOKUP($E11,'Activity 9'!$B$7:$B$13,'Activity 9'!R$7:R$13,\"N/A\",0,1)","v":"N/A"},{"$f":"_xlfn.XLOOKUP($E11,'Activity 9'!$B$7:$B$13,'Activity 9'!S$7:S$13,\"N/A\",0,1)","v":"N/A"},{"$f":"_xlfn.XLOOKUP($E11,'Activity 9'!$B$7:$B$13,'Activity 9'!T$7:T$13,\"N/A\",0,1)","v":"N/A"},{"$f":"_xlfn.XLOOKUP($E11,'Activity 9'!$B$17:$B$23,'Activity 9'!E$17:E$23,\"N/A\",0,1)","v":"N/A"},{"$f":"_xlfn.XLOOKUP($E11,'Activity 9'!$B$17:$B$23,'Activity 9'!F$17:F$23,\"N/A\",0,1)","v":"N/A"},{"$f":"_xlfn.XLOOKUP($E11,'Activity 9'!$B$17:$B$23,'Activity 9'!G$17:G$23,\"N/A\",0,1)","v":"N/A"},{"$f":"_xlfn.XLOOKUP($E11,'Activity 9'!$B$17:$B$23,'Activity 9'!H$17:H$23,\"N/A\",0,1)","v":"N/A"},{"$f":"_xlfn.XLOOKUP($E11,'Activity 9'!$B$17:$B$23,'Activity 9'!I$17:I$23,\"N/A\",0,1)","v":"N/A"},{"$f":"_xlfn.XLOOKUP($E11,'Activity 9'!$B$17:$B$23,'Activity 9'!J$17:J$23,\"N/A\",0,1)","v":"N/A"},{"$f":"_xlfn.XLOOKUP($E11,'Activity 9'!$B$17:$B$23,'Activity 9'!K$17:K$23,\"N/A\",0,1)","v":"N/A"},{"$f":"_xlfn.XLOOKUP($E11,'Activity 9'!$B$17:$B$23,'Activity 9'!L$17:L$23,\"N/A\",0,1)","v":"N/A"},{"$f":"_xlfn.XLOOKUP($E11,'Activity 9'!$B$17:$B$23,'Activity 9'!N$17:N$23,\"N/A\",0,1)","v":"N/A"},{"$f":"_xlfn.XLOOKUP($E11,'Activity 9'!$B$17:$B$23,'Activity 9'!O$17:O$23,\"N/A\",0,1)","v":"N/A"},{"$f":"_xlfn.XLOOKUP($E11,'Activity 9'!$B$17:$B$23,'Activity 9'!Q$17:Q$23,\"N/A\",0,1)","v":"N/A"},{"$f":"_xlfn.XLOOKUP($E11,'Activity 10'!$B$7:$B$13,'Activity 10'!A$7:A$13,\"No\",0,1)","v":"No"},{"$f":"_xlfn.XLOOKUP($E11,'Activity 10'!$B$7:$B$13,'Activity 10'!J$7:J$13,\"N/A\",0,1)","v":"N/A"},{"$f":"_xlfn.XLOOKUP($E11,'Activity 10'!$B$7:$B$13,'Activity 10'!K$7:K$13,\"N/A\",0,1)","v":"N/A"},{"$f":"_xlfn.XLOOKUP($E11,'Activity 10'!$B$7:$B$13,'Activity 10'!L$7:L$13,\"N/A\",0,1)","v":"N/A"},{"$f":"_xlfn.XLOOKUP($E11,'Activity 10'!$B$7:$B$13,'Activity 10'!M$7:M$13,\"N/A\",0,1)","v":"N/A"},{"$f":"_xlfn.XLOOKUP($E11,'Activity 10'!$B$7:$B$13,'Activity 10'!N$7:N$13,\"N/A\",0,1)","v":"N/A"},{"$f":"_xlfn.XLOOKUP($E11,'Activity 10'!$B$7:$B$13,'Activity 10'!O$7:O$13,\"N/A\",0,1)","v":"N/A"},{"$f":"_xlfn.XLOOKUP($E11,'Activity 10'!$B$7:$B$13,'Activity 10'!P$7:P$13,\"N/A\",0,1)","v":"N/A"},{"$f":"_xlfn.XLOOKUP($E11,'Activity 10'!$B$7:$B$13,'Activity 10'!Q$7:Q$13,\"N/A\",0,1)","v":"N/A"},{"$f":"_xlfn.XLOOKUP($E11,'Activity 10'!$B$7:$B$13,'Activity 10'!R$7:R$13,\"N/A\",0,1)","v":"N/A"},{"$f":"_xlfn.XLOOKUP($E11,'Activity 10'!$B$7:$B$13,'Activity 10'!S$7:S$13,\"N/A\",0,1)","v":"N/A"},{"$f":"_xlfn.XLOOKUP($E11,'Activity 10'!$B$7:$B$13,'Activity 10'!T$7:T$13,\"N/A\",0,1)","v":"N/A"},{"$f":"_xlfn.XLOOKUP($E11,'Activity 10'!$B$7:$B$13,'Activity 10'!U$7:U$13,\"N/A\",0,1)","v":"N/A"},{"$f":"_xlfn.XLOOKUP($E11,'Activity 10'!$B$7:$B$13,'Activity 10'!V$7:V$13,\"N/A\",0,1)","v":"N/A"},{"$f":"_xlfn.XLOOKUP($E11,'Activity 10'!$B$17:$B$23,'Activity 10'!E$17:E$23,\"N/A\",0,1)","v":"N/A"},{"$f":"_xlfn.XLOOKUP($E11,'Activity 10'!$B$17:$B$23,'Activity 10'!F$17:F$23,\"N/A\",0,1)","v":"N/A"},{"$f":"_xlfn.XLOOKUP($E11,'Activity 10'!$B$17:$B$23,'Activity 10'!G$17:G$23,\"N/A\",0,1)","v":"N/A"},{"$f":"_xlfn.XLOOKUP($E11,'Activity 10'!$B$17:$B$23,'Activity 10'!H$17:H$23,\"N/A\",0,1)","v":"N/A"},{"$f":"_xlfn.XLOOKUP($E11,'Activity 10'!$B$17:$B$23,'Activity 10'!I$17:I$23,\"N/A\",0,1)","v":"N/A"},{"$f":"_xlfn.XLOOKUP($E11,'Activity 10'!$B$17:$B$23,'Activity 10'!J$17:J$23,\"N/A\",0,1)","v":"N/A"},{"$f":"_xlfn.XLOOKUP($E11,'Activity 10'!$B$17:$B$23,'Activity 10'!K$17:K$23,\"N/A\",0,1)","v":"N/A"},{"$f":"_xlfn.XLOOKUP($E11,'Activity 10'!$B$17:$B$23,'Activity 10'!L$17:L$23,\"N/A\",0,1)","v":"N/A"},{"$f":"_xlfn.XLOOKUP($E11,'Activity 10'!$B$17:$B$23,'Activity 10'!M$17:M$23,\"N/A\",0,1)","v":"N/A"},{"$f":"_xlfn.XLOOKUP($E11,'Activity 10'!$B$17:$B$23,'Activity 10'!N$17:N$23,\"N/A\",0,1)","v":"N/A"},{"$f":"_xlfn.XLOOKUP($E11,'Activity 10'!$B$17:$B$23,'Activity 10'!P$17:P$23,\"N/A\",0,1)","v":"N/A"},{"$f":"_xlfn.XLOOKUP($E11,'Competitive Activity 1'!B$7:B$13,'Competitive Activity 1'!A$7:A$13,\"No\",0,1)","v":"No"},{"$f":"_xlfn.XLOOKUP($E11,'Competitive Activity 1'!$B$7:$B$13,'Competitive Activity 1'!H$7:H$13,\"N/A\",0,1)","v":"N/A"},{"$f":"_xlfn.XLOOKUP($E11,'Competitive Activity 1'!$B$7:$B$13,'Competitive Activity 1'!I$7:I$13,\"N/A\",0,1)","v":"N/A"},{"$f":"_xlfn.XLOOKUP($E11,'Competitive Activity 1'!$B$7:$B$13,'Competitive Activity 1'!J$7:J$13,\"N/A\",0,1)","v":"N/A"},{"$f":"_xlfn.XLOOKUP($E11,'Competitive Activity 1'!$B$7:$B$13,'Competitive Activity 1'!K$7:K$13,\"N/A\",0,1)","v":"N/A"},{"$f":"_xlfn.XLOOKUP($E11,'Competitive Activity 1'!$B$7:$B$13,'Competitive Activity 1'!L$7:L$13,\"N/A\",0,1)","v":"N/A"},{"$f":"_xlfn.XLOOKUP($E11,'Competitive Activity 1'!$B$7:$B$13,'Competitive Activity 1'!M$7:M$13,\"N/A\",0,1)","v":"N/A"},{"$f":"_xlfn.XLOOKUP($E11,'Competitive Activity 1'!$B$7:$B$13,'Competitive Activity 1'!N$7:N$13,\"N/A\",0,1)","v":"N/A"},{"$f":"_xlfn.XLOOKUP($E11,'Competitive Activity 1'!$B$7:$B$13,'Competitive Activity 1'!O$7:O$13,\"N/A\",0,1)","v":"N/A"},{"$f":"_xlfn.XLOOKUP($E11,'Competitive Activity 1'!$B$7:$B$13,'Competitive Activity 1'!P$7:P$13,\"N/A\",0,1)","v":"N/A"},{"$f":"_xlfn.XLOOKUP($E11,'Competitive Activity 1'!$B$7:$B$13,'Competitive Activity 1'!Q$7:Q$13,\"N/A\",0,1)","v":"N/A"},{"$f":"_xlfn.XLOOKUP($E11,'Competitive Activity 1'!$B$7:$B$13,'Competitive Activity 1'!R$7:R$13,\"N/A\",0,1)","v":"N/A"},{"$f":"_xlfn.XLOOKUP($E11,'Competitive Activity 1'!$B$7:$B$13,'Competitive Activity 1'!S$7:S$13,\"N/A\",0,1)","v":"N/A"},{"$f":"_xlfn.XLOOKUP($E11,'Competitive Activity 1'!$B$7:$B$13,'Competitive Activity 1'!T$7:T$13,\"N/A\",0,1)","v":"N/A"},{"$f":"_xlfn.XLOOKUP($E11,'Competitive Activity 1'!$B$7:$B$13,'Competitive Activity 1'!U$7:U$13,\"N/A\",0,1)","v":"N/A"},{"$f":"_xlfn.XLOOKUP($E11,'Competitive Activity 1'!$B$17:$B$23,'Competitive Activity 1'!C$17:C$23,\"N/A\",0,1)","v":"N/A"},{"$f":"_xlfn.XLOOKUP($E11,'Competitive Activity 1'!$B$17:$B$23,'Competitive Activity 1'!D$17:D$23,\"N/A\",0,1)","v":"N/A"},{"$f":"_xlfn.XLOOKUP($E11,'Competitive Activity 1'!$B$17:$B$23,'Competitive Activity 1'!E$17:E$23,\"N/A\",0,1)","v":"N/A"},{"$f":"_xlfn.XLOOKUP($E11,'Competitive Activity 1'!$B$17:$B$23,'Competitive Activity 1'!F$17:F$23,\"N/A\",0,1)","v":"N/A"},{"$f":"_xlfn.XLOOKUP($E11,'Competitive Activity 1'!$B$17:$B$23,'Competitive Activity 1'!G$17:G$23,\"N/A\",0,1)","v":"N/A"},{"$f":"_xlfn.XLOOKUP($E11,'Competitive Activity 1'!$B$17:$B$23,'Competitive Activity 1'!H$17:H$23,\"N/A\",0,1)","v":"N/A"},{"$f":"_xlfn.XLOOKUP($E11,'Competitive Activity 1'!$B$17:$B$23,'Competitive Activity 1'!I$17:I$23,\"N/A\",0,1)","v":"N/A"},{"$f":"_xlfn.XLOOKUP($E11,'Competitive Activity 1'!$B$17:$B$23,'Competitive Activity 1'!J$17:J$23,\"N/A\",0,1)","v":"N/A"},{"$f":"_xlfn.XLOOKUP($E11,'Competitive Activity 1'!$B$17:$B$23,'Competitive Activity 1'!K$17:K$23,\"N/A\",0,1)","v":"N/A"},{"$f":"_xlfn.XLOOKUP($E11,'Competitive Activity 1'!$B$17:$B$23,'Competitive Activity 1'!M$17:M$23,\"N/A\",0,1)","v":"N/A"},{"$f":"_xlfn.XLOOKUP($E11,'Competitive Activity 1'!$B$17:$B$23,'Competitive Activity 1'!N$17:N$23,\"N/A\",0,1)","v":"N/A"},{"$f":"_xlfn.XLOOKUP($E11,'Competitive Activity 1'!$B$17:$B$23,'Competitive Activity 1'!P$17:P$23,\"N/A\",0,1)","v":"N/A"},{"$f":"_xlfn.XLOOKUP($E11,'Competitive Activity 2'!$B$7:$B$13,'Competitive Activity 2'!A$7:A$13,\"No\",0)","v":"No"},{"$f":"_xlfn.XLOOKUP($E11,'Competitive Activity 2'!$B$7:$B$13,'Competitive Activity 2'!L$7:L$13,\"N/A\",0)","v":"N/A"},{"$f":"_xlfn.XLOOKUP($E11,'Competitive Activity 2'!$B$7:$B$13,'Competitive Activity 2'!M$7:M$13,\"N/A\",0)","v":"N/A"},{"$f":"_xlfn.XLOOKUP($E11,'Competitive Activity 2'!$B$7:$B$13,'Competitive Activity 2'!N$7:N$13,\"N/A\",0)","v":"N/A"},{"$f":"_xlfn.XLOOKUP($E11,'Competitive Activity 2'!$B$7:$B$13,'Competitive Activity 2'!O$7:O$13,\"N/A\",0)","v":"N/A"},{"$f":"_xlfn.XLOOKUP($E11,'Competitive Activity 2'!$B$7:$B$13,'Competitive Activity 2'!P$7:P$13,\"N/A\",0)","v":"N/A"},{"$f":"_xlfn.XLOOKUP($E11,'Competitive Activity 2'!$B$7:$B$13,'Competitive Activity 2'!Q$7:Q$13,\"N/A\",0)","v":"N/A"},{"$f":"_xlfn.XLOOKUP($E11,'Competitive Activity 2'!$B$7:$B$13,'Competitive Activity 2'!R$7:R$13,\"N/A\",0)","v":"N/A"},{"$f":"_xlfn.XLOOKUP($E11,'Competitive Activity 2'!$B$7:$B$13,'Competitive Activity 2'!S$7:S$13,\"N/A\",0)","v":"N/A"},{"$f":"_xlfn.XLOOKUP($E11,'Competitive Activity 2'!$B$7:$B$13,'Competitive Activity 2'!T$7:T$13,\"N/A\",0)","v":"N/A"},{"$f":"_xlfn.XLOOKUP($E11,'Competitive Activity 2'!$B$7:$B$13,'Competitive Activity 2'!U$7:U$13,\"N/A\",0)","v":"N/A"},{"$f":"_xlfn.XLOOKUP($E11,'Competitive Activity 2'!$B$17:$B$23,'Competitive Activity 2'!D$17:D$23,\"N/A\",0)","v":"N/A"},{"$f":"_xlfn.XLOOKUP($E11,'Competitive Activity 2'!$B$17:$B$23,'Competitive Activity 2'!E$17:E$23,\"N/A\",0)","v":"N/A"},{"$f":"_xlfn.XLOOKUP($E11,'Competitive Activity 2'!$B$17:$B$23,'Competitive Activity 2'!F$17:F$23,\"N/A\",0)","v":"N/A"},{"$f":"_xlfn.XLOOKUP($E11,'Competitive Activity 2'!$B$17:$B$23,'Competitive Activity 2'!G$17:G$23,\"N/A\",0)","v":"N/A"},{"$f":"_xlfn.XLOOKUP($E11,'Competitive Activity 2'!$B$17:$B$23,'Competitive Activity 2'!H$17:H$23,\"N/A\",0)","v":"N/A"},{"$f":"_xlfn.XLOOKUP($E11,'Competitive Activity 2'!$B$17:$B$23,'Competitive Activity 2'!I$17:I$23,\"N/A\",0)","v":"N/A"},{"$f":"_xlfn.XLOOKUP($E11,'Competitive Activity 2'!$B$17:$B$23,'Competitive Activity 2'!J$17:J$23,\"N/A\",0)","v":"N/A"},{"$f":"_xlfn.XLOOKUP($E11,'Competitive Activity 2'!$B$17:$B$23,'Competitive Activity 2'!K$17:K$23,\"N/A\",0)","v":"N/A"},{"$f":"_xlfn.XLOOKUP($E11,'Competitive Activity 2'!$B$17:$B$23,'Competitive Activity 2'!L$17:L$23,\"N/A\",0)","v":"N/A"},{"$f":"_xlfn.XLOOKUP($E11,'Competitive Activity 2'!$B$17:$B$23,'Competitive Activity 2'!M$17:M$23,\"N/A\",0)","v":"N/A"},{"$f":"_xlfn.XLOOKUP($E11,'Competitive Activity 2'!$B$17:$B$23,'Competitive Activity 2'!N$17:N$23,\"N/A\",0)","v":"N/A"},{"$f":"_xlfn.XLOOKUP($E11,'Competitive Activity 2'!$B$27:$B$33,'Competitive Activity 2'!D$27:D$33,\"N/A\",0)","v":"N/A"},{"$f":"_xlfn.XLOOKUP($E11,'Competitive Activity 2'!$B$27:$B$33,'Competitive Activity 2'!E$27:E$33,\"N/A\",0)","v":"N/A"},{"$f":"_xlfn.XLOOKUP($E11,'Competitive Activity 2'!$B$27:$B$33,'Competitive Activity 2'!F$27:F$33,\"N/A\",0)","v":"N/A"},{"$f":"_xlfn.XLOOKUP($E11,'Competitive Activity 2'!$B$27:$B$33,'Competitive Activity 2'!G$27:G$33,\"N/A\",0)","v":"N/A"},{"$f":"_xlfn.XLOOKUP($E11,'Competitive Activity 2'!$B$27:$B$33,'Competitive Activity 2'!H$27:H$33,\"N/A\",0)","v":"N/A"},{"$f":"_xlfn.XLOOKUP($E11,'Competitive Activity 2'!$B$27:$B$33,'Competitive Activity 2'!I$27:I$33,\"N/A\",0)","v":"N/A"},{"$f":"_xlfn.XLOOKUP($E11,'Competitive Activity 2'!$B$27:$B$33,'Competitive Activity 2'!J$27:J$33,\"N/A\",0)","v":"N/A"},{"$f":"_xlfn.XLOOKUP($E11,'Competitive Activity 2'!$B$27:$B$33,'Competitive Activity 2'!K$27:K$33,\"N/A\",0)","v":"N/A"},{"$f":"_xlfn.XLOOKUP($E11,'Competitive Activity 2'!$B$27:$B$33,'Competitive Activity 2'!M$27:M$33,\"N/A\",0)","v":"N/A"}]
[{"$f":"'1-Cover Sheet'!$C$8","v":"Select One"},{"$f":"'1-Cover Sheet'!$F$8","v":"Select One"},{"$f":"'Summary Sheet'!$D$8","v":0},{"$f":"'Summary Sheet'!$D$10","v":0},{"$f":"'Drop Down Box'!B176","v":0},{"$f":"'Drop Down Box'!C176","v":0},{"$f":"'Drop Down Box'!D176","v":"Select One"},{"$f":"_xlfn.XLOOKUP(E12,'Drop Down Box'!$B$166:$B$249,'Drop Down Box'!$A$166:$A$249,\"Unknown\",0)","v":"Activity 1"},{"$f":"_xlfn.XLOOKUP($E12,'Activity 2'!$B$17:$B$23,'Activity 2'!$N$17:$N$23,\"N/A\",0)","v":"N/A"},{"$f":"_xlfn.XLOOKUP($E12,'Activity 2'!$B$17:$B$23,'Activity 2'!$P$17:$P$23,\"N/A\",0)","v":"N/A"},{"$f":"_xlfn.XLOOKUP($E12,'Activity 2'!$B$7:$B$13,'Activity 2'!E$7:E$13,0,0)","v":0},{"$f":"_xlfn.XLOOKUP($E12,'Activity 2'!$B$7:$B$13,'Activity 2'!F$7:F$13,0,0)","v":"00:00:00"},{"$f":"_xlfn.XLOOKUP($E12,'Activity 2'!$B$7:$B$13,'Activity 2'!G$7:G$13,0,0)","v":0},{"$f":"_xlfn.XLOOKUP($E12,'Activity 1'!$B$7:$B$13,'Activity 1'!$A$7:$A$13,\"No\",0,1)","v":"No"},{"$f":"_xlfn.XLOOKUP($E12,'Activity 1'!$B$7:$B$13,'Activity 1'!$H$7:$H$13,\"N/A\",0,1)","v":"N/A"},{"$f":"_xlfn.XLOOKUP($E12,'Activity 1'!$B$7:$B$13,'Activity 1'!I$7:I$13,\"N/A\",0,1)","v":"N/A"},{"$f":"_xlfn.XLOOKUP($E12,'Activity 1'!$B$7:$B$13,'Activity 1'!J$7:J$13,\"N/A\",0,1)","v":"N/A"},{"$f":"_xlfn.XLOOKUP($E12,'Activity 1'!$B$7:$B$13,'Activity 1'!K$7:K$13,\"N/A\",0,1)","v":"N/A"},{"$f":"_xlfn.XLOOKUP($E12,'Activity 1'!$B$7:$B$13,'Activity 1'!L$7:L$13,\"N/A\",0,1)","v":"N/A"},{"$f":"_xlfn.XLOOKUP($E12,'Activity 1'!$B$7:$B$13,'Activity 1'!M$7:M$13,\"N/A\",0,1)","v":"N/A"},{"$f":"_xlfn.XLOOKUP($E12,'Activity 1'!$B$7:$B$13,'Activity 1'!N$7:N$13,\"N/A\",0,1)","v":"N/A"},0,{"$f":"_xlfn.XLOOKUP($E12,'Activity 1'!$B$7:$B$13,'Activity 1'!O$7:O$13,\"N/A\",0,1)","v":"N/A"},{"$f":"_xlfn.XLOOKUP($E12,'Activity 1'!$B$7:$B$13,'Activity 1'!P$7:P$13,\"N/A\",0,1)","v":"N/A"},{"$f":"_xlfn.XLOOKUP($E12,'Activity 1'!$B$7:$B$13,'Activity 1'!Q$7:Q$13,\"N/A\",0,1)","v":"N/A"},{"$f":"_xlfn.XLOOKUP($E12,'Activity 1'!$B$7:$B$13,'Activity 1'!R$7:R$13,\"N/A\",0,1)","v":"N/A"},{"$f":"_xlfn.XLOOKUP($E12,'Activity 1'!$B$7:$B$13,'Activity 1'!S$7:S$13,\"N/A\",0,1)","v":"N/A"},{"$f":"_xlfn.XLOOKUP($E12,'Activity 1'!$B$7:$B$13,'Activity 1'!T$7:T$13,\"N/A\",0,1)","v":"N/A"},{"$f":"_xlfn.XLOOKUP($E12,'Activity 1'!$B$7:$B$13,'Activity 1'!U$7:U$13,\"N/A\",0,1)","v":"N/A"},{"$f":"_xlfn.XLOOKUP($E12,'Activity 1'!$B$7:$B$13,'Activity 1'!V$7:V$13,\"N/A\",0,1)","v":"N/A"},{"$f":"_xlfn.XLOOKUP($E12,'Activity 1'!$B$17:$B$23,'Activity 1'!C$17:C$23,\"N/A\",0,1)","v":"N/A"},{"$f":"_xlfn.XLOOKUP($E12,'Activity 1'!$B$17:$B$23,'Activity 1'!D$17:D$23,\"N/A\",0,1)","v":"N/A"},{"$f":"_xlfn.XLOOKUP($E12,'Activity 1'!$B$17:$B$23,'Activity 1'!E$17:E$23,\"N/A\",0,1)","v":"N/A"},{"$f":"_xlfn.XLOOKUP($E12,'Activity 1'!$B$17:$B$23,'Activity 1'!F$17:F$23,\"N/A\",0,1)","v":"N/A"},{"$f":"_xlfn.XLOOKUP($E12,'Activity 1'!$B$17:$B$23,'Activity 1'!G$17:G$23,\"N/A\",0,1)","v":"N/A"},{"$f":"_xlfn.XLOOKUP($E12,'Activity 1'!$B$17:$B$23,'Activity 1'!H$17:H$23,\"N/A\",0,1)","v":"N/A"},{"$f":"_xlfn.XLOOKUP($E12,'Activity 1'!$B$17:$B$23,'Activity 1'!I$17:I$23,\"N/A\",0,1)","v":"N/A"},{"$f":"_xlfn.XLOOKUP($E12,'Activity 1'!$B$17:$B$23,'Activity 1'!J$17:J$23,\"N/A\",0,1)","v":"N/A"},{"$f":"_xlfn.XLOOKUP($E12,'Activity 1'!$B$17:$B$23,'Activity 1'!K$17:K$23,\"N/A\",0,1)","v":"N/A"},{"$f":"_xlfn.XLOOKUP($E12,'Activity 1'!$B$17:$B$23,'Activity 1'!L$17:L$23,\"N/A\",0,1)","v":"N/A"},{"$f":"_xlfn.XLOOKUP($E12,'Activity 1'!$B$17:$B$23,'Activity 1'!M$17:M$23,\"N/A\",0,1)","v":"N/A"},{"$f":"_xlfn.XLOOKUP($E12,'Activity 1'!$B$17:$B$23,'Activity 1'!O$17:O$23,\"N/A\",0,1)","v":"N/A"},{"$f":"_xlfn.XLOOKUP($E12,'Activity 1'!$B$17:$B$23,'Activity 1'!Q$17:Q$23,\"N/A\",0,1)","v":"N/A"},{"$f":"_xlfn.XLOOKUP($E12,'Activity 2'!$B$7:$B$13,'Activity 2'!$A$7:$A$13,\"No\",0,1)","v":"No"},{"$f":"_xlfn.XLOOKUP($E12,'Activity 2'!B$7:B$13,'Activity 2'!H$7:H$13,\"N/A\",0)","v":"N/A"},{"$f":"_xlfn.XLOOKUP($E12,'Activity 2'!C$7:C$13,'Activity 2'!I$7:I$13,\"N/A\",0)","v":"N/A"},{"$f":"_xlfn.XLOOKUP($E12,'Activity 2'!D$7:D$13,'Activity 2'!J$7:J$13,\"N/A\",0)","v":"N/A"},{"$f":"_xlfn.XLOOKUP($E12,'Activity 2'!E$7:E$13,'Activity 2'!K$7:K$13,\"N/A\",0)","v":"N/A"},{"$f":"_xlfn.XLOOKUP($E12,'Activity 2'!F$7:F$13,'Activity 2'!L$7:L$13,\"N/A\",0)","v":"N/A"},{"$f":"_xlfn.XLOOKUP($E12,'Activity 2'!G$7:G$13,'Activity 2'!M$7:M$13,\"N/A\",0)","v":"N/A"},{"$f":"_xlfn.XLOOKUP($E12,'Activity 2'!H$7:H$13,'Activity 2'!N$7:N$13,\"N/A\",0)","v":"N/A"},{"$f":"_xlfn.XLOOKUP($E12,'Activity 2'!I$7:I$13,'Activity 2'!O$7:O$13,\"N/A\",0)","v":"N/A"},{"$f":"_xlfn.XLOOKUP($E12,'Activity 2'!J$7:J$13,'Activity 2'!P$7:P$13,\"N/A\",0)","v":"N/A"},{"$f":"_xlfn.XLOOKUP($E12,'Activity 2'!K$7:K$13,'Activity 2'!Q$7:Q$13,\"N/A\",0)","v":"N/A"},{"$f":"_xlfn.XLOOKUP($E12,'Activity 2'!L$7:L$13,'Activity 2'!R$7:R$13,\"N/A\",0)","v":"N/A"},{"$f":"_xlfn.XLOOKUP($E12,'Activity 2'!M$7:M$13,'Activity 2'!S$7:S$13,\"N/A\",0)","v":"N/A"},{"$f":"_xlfn.XLOOKUP($E12,'Activity 2'!N$7:N$13,'Activity 2'!T$7:T$13,\"N/A\",0)","v":"N/A"},{"$f":"_xlfn.XLOOKUP($E12,'Activity 2'!O$7:O$13,'Activity 2'!U$7:U$13,\"N/A\",0)","v":"N/A"},{"$f":"_xlfn.XLOOKUP($E12,'Activity 2'!P$7:P$13,'Activity 2'!V$7:V$13,\"N/A\",0)","v":"N/A"},{"$f":"_xlfn.XLOOKUP($E12,'Activity 2'!$B$17:$B$23,'Activity 2'!C$17:C$23,\"N/A\",0,1)","v":"N/A"},{"$f":"_xlfn.XLOOKUP($E12,'Activity 2'!$B$17:$B$23,'Activity 2'!D$17:D$23,\"N/A\",0,1)","v":"N/A"},{"$f":"_xlfn.XLOOKUP($E12,'Activity 2'!$B$17:$B$23,'Activity 2'!E$17:E$23,\"N/A\",0,1)","v":"N/A"},{"$f":"_xlfn.XLOOKUP($E12,'Activity 2'!$B$17:$B$23,'Activity 2'!F$17:F$23,\"N/A\",0,1)","v":"N/A"},{"$f":"_xlfn.XLOOKUP($E12,'Activity 2'!$B$17:$B$23,'Activity 2'!G$17:G$23,\"N/A\",0,1)","v":"N/A"},{"$f":"_xlfn.XLOOKUP($E12,'Activity 2'!$B$17:$B$23,'Activity 2'!H$17:H$23,\"N/A\",0,1)","v":"N/A"},{"$f":"_xlfn.XLOOKUP($E12,'Activity 2'!$B$17:$B$23,'Activity 2'!I$17:I$23,\"N/A\",0,1)","v":"N/A"},{"$f":"_xlfn.XLOOKUP($E12,'Activity 2'!$B$17:$B$23,'Activity 2'!J$17:J$23,\"N/A\",0,1)","v":"N/A"},{"$f":"_xlfn.XLOOKUP($E12,'Activity 2'!$B$17:$B$23,'Activity 2'!K$17:K$23,\"N/A\",0,1)","v":"N/A"},{"$f":"_xlfn.XLOOKUP($E12,'Activity 2'!$B$17:$B$23,'Activity 2'!L$17:L$23,\"N/A\",0,1)","v":"N/A"},{"$f":"_xlfn.XLOOKUP($E12,'Activity 2'!$B$17:$B$23,'Activity 2'!M$17:M$23,\"N/A\",0,1)","v":"N/A"},{"$f":"_xlfn.XLOOKUP($E12,'Activity 2'!$B$17:$B$23,'Activity 2'!O$17:O$23,\"N/A\",0,1)","v":"N/A"},{"$f":"_xlfn.XLOOKUP($E12,'Activity 2'!$B$17:$B$23,'Activity 2'!Q$17:Q$23,\"N/A\",0,1)","v":"N/A"},null,{"$f":"_xlfn.XLOOKUP($E12,'Activity 3'!$B$8:$B$14,'Activity 3'!K$8:K$14,\"N/A\",0,1)","v":"N/A"},{"$f":"_xlfn.XLOOKUP($E12,'Activity 3'!$B$8:$B$14,'Activity 3'!L$8:L$14,\"N/A\",0,1)","v":"N/A"},{"$f":"_xlfn.XLOOKUP($E12,'Activity 3'!$B$8:$B$14,'Activity 3'!M$8:M$14,\"N/A\",0,1)","v":"N/A"},{"$f":"_xlfn.XLOOKUP($E12,'Activity 3'!$B$8:$B$14,'Activity 3'!N$8:N$14,\"N/A\",0,1)","v":"N/A"},{"$f":"_xlfn.XLOOKUP($E12,'Activity 3'!$B$8:$B$14,'Activity 3'!O$8:O$14,\"N/A\",0,1)","v":"N/A"},{"$f":"_xlfn.XLOOKUP($E12,'Activity 3'!$B$8:$B$14,'Activity 3'!R$8:R$14,\"N/A\",0,1)","v":"N/A"},{"$f":"_xlfn.XLOOKUP($E12,'Activity 4'!$B$8:$B$14,'Activity 4'!$A$8:$A$14,\"No\",0,1)","v":"No"},{"$f":"_xlfn.XLOOKUP($E12,'Activity 4'!$B$8:$B$14,'Activity 4'!L$8:L$14,\"N/A\",0,1)","v":"N/A"},{"$f":"_xlfn.XLOOKUP($E12,'Activity 4'!$B$8:$B$14,'Activity 4'!I$8:I$14,\"N/A\",0,1)","v":"N/A"},{"$f":"_xlfn.XLOOKUP($E12,'Activity 4'!$B$8:$B$14,'Activity 4'!M$8:M$14,\"N/A\",0,1)","v":"N/A"},{"$f":"_xlfn.XLOOKUP($E12,'Activity 5'!$B$8:$B$14,'Activity 5'!$A$8:$A$14,\"No\",0,1)","v":"No"},{"$f":"_xlfn.XLOOKUP($E12,'Activity 5'!$B$8:$B$14,'Activity 5'!J$8:J$14,\"N/A\",0,1)","v":"N/A"},{"$f":"_xlfn.XLOOKUP($E12,'Activity 5'!$B$8:$B$14,'Activity 5'!K$8:K$14,\"N/A\",0,1)","v":"N/A"},{"$f":"_xlfn.XLOOKUP($E12,'Activity 5'!$B$8:$B$14,'Activity 5'!N$8:N$14,\"N/A\",0,1)","v":"N/A"},{"$f":"_xlfn.XLOOKUP($E12,'Activity 5'!$B$8:$B$14,'Activity 5'!O$8:O$14,\"N/A\",0,1)","v":"N/A"},{"$f":"_xlfn.XLOOKUP($E12,'Activity 5'!$B$8:$B$14,'Activity 5'!P$8:P$14,\"N/A\",0,1)","v":"N/A"},{"$f":"_xlfn.XLOOKUP($E12,'Activity 5'!$B$8:$B$14,'Activity 5'!Q$8:Q$14,\"N/A\",0,1)","v":"N/A"},{"$f":"_xlfn.XLOOKUP($E12,'Activity 5'!$B$8:$B$14,'Activity 5'!R$8:R$14,\"N/A\",0,1)","v":"N/A"},{"$f":"_xlfn.XLOOKUP($E12,'Activity 6'!$B$7:$B$13,'Activity 6'!A$7:A$13,\"No\",0,1)","v":"No"},{"$f":"_xlfn.XLOOKUP($E12,'Activity 6'!$B$7:$B$13,'Activity 6'!K$7:K$13,\"N/A\",0,1)","v":"N/A"},{"$f":"_xlfn.XLOOKUP($E12,'Activity 6'!$B$7:$B$13,'Activity 6'!L$7:L$13,\"N/A\",0,1)","v":"N/A"},{"$f":"_xlfn.XLOOKUP($E12,'Activity 6'!$B$7:$B$13,'Activity 6'!M$7:M$13,\"N/A\",0,1)","v":"N/A"},{"$f":"_xlfn.XLOOKUP($E12,'Activity 6'!$B$7:$B$13,'Activity 6'!N$7:N$13,\"N/A\",0,1)","v":"N/A"},{"$f":"_xlfn.XLOOKUP($E12,'Activity 6'!$B$7:$B$13,'Activity 6'!O$7:O$13,\"N/A\",0,1)","v":"N/A"},{"$f":"_xlfn.XLOOKUP($E12,'Activity 6'!$B$7:$B$13,'Activity 6'!P$7:P$13,\"N/A\",0,1)","v":"N/A"},{"$f":"_xlfn.XLOOKUP($E12,'Activity 6'!$B$7:$B$13,'Activity 6'!Q$7:Q$13,\"N/A\",0,1)","v":"N/A"},{"$f":"_xlfn.XLOOKUP($E12,'Activity 6'!$B$7:$B$13,'Activity 6'!R$7:R$13,\"N/A\",0,1)","v":"N/A"},{"$f":"_xlfn.XLOOKUP($E12,'Activity 6'!$B$7:$B$13,'Activity 6'!S$7:S$13,\"N/A\",0,1)","v":"N/A"},{"$f":"_xlfn.XLOOKUP($E12,'Activity 6'!$B$7:$B$13,'Activity 6'!T$7:T$13,\"N/A\",0,1)","v":"N/A"},{"$f":"_xlfn.XLOOKUP($E12,'Activity 6'!$B$7:$B$13,'Activity 6'!U$7:U$13,\"N/A\",0,1)","v":"N/A"},{"$f":"_xlfn.XLOOKUP($E12,'Activity 6'!$B$22:$B$28,'Activity 6'!C$22:C$28,\"N/A\",0,1)","v":"N/A"},{"$f":"_xlfn.XLOOKUP($E12,'Activity 6'!$B$22:$B$28,'Activity 6'!D$22:D$28,\"N/A\",0,1)","v":"N/A"},{"$f":"_xlfn.XLOOKUP($E12,'Activity 6'!$B$22:$B$28,'Activity 6'!E$22:E$28,\"N/A\",0,1)","v":"N/A"},{"$f":"_xlfn.XLOOKUP($E12,'Activity 6'!$B$22:$B$28,'Activity 6'!F$22:F$28,\"N/A\",0,1)","v":"N/A"},{"$f":"_xlfn.XLOOKUP($E12,'Activity 6'!$B$22:$B$28,'Activity 6'!G$22:G$28,\"N/A\",0,1)","v":"N/A"},{"$f":"_xlfn.XLOOKUP($E12,'Activity 6'!$B$22:$B$28,'Activity 6'!H$22:H$28,\"N/A\",0,1)","v":"N/A"},{"$f":"_xlfn.XLOOKUP($E12,'Activity 6'!$B$22:$B$28,'Activity 6'!I$22:I$28,\"N/A\",0,1)","v":"N/A"},{"$f":"_xlfn.XLOOKUP($E12,'Activity 6'!$B$22:$B$28,'Activity 6'!J$22:J$28,\"N/A\",0,1)","v":"N/A"},{"$f":"_xlfn.XLOOKUP($E12,'Activity 6'!$B$22:$B$28,'Activity 6'!K$22:K$28,\"N/A\",0,1)","v":"N/A"},{"$f":"_xlfn.XLOOKUP($E12,'Activity 6'!$B$22:$B$28,'Activity 6'!L$22:L$28,\"N/A\",0,1)","v":"N/A"},{"$f":"_xlfn.XLOOKUP($E12,'Activity 6'!$B$22:$B$28,'Activity 6'!M$22:M$28,\"N/A\",0,1)","v":"N/A"},{"$f":"_xlfn.XLOOKUP($E12,'Activity 6'!$B$22:$B$28,'Activity 6'!N$22:N$28,\"N/A\",0,1)","v":"N/A"},{"$f":"_xlfn.XLOOKUP($E12,'Activity 6'!$B$32:$B$38,'Activity 6'!C$32:C$38,\"N/A\",0,1)","v":"N/A"},{"$f":"_xlfn.XLOOKUP($E12,'Activity 6'!$B$32:$B$38,'Activity 6'!D$32:D$38,\"N/A\",0,1)","v":"N/A"},{"$f":"_xlfn.XLOOKUP($E12,'Activity 6'!$B$32:$B$38,'Activity 6'!E$32:E$38,\"N/A\",0,1)","v":"N/A"},{"$f":"_xlfn.XLOOKUP($E12,'Activity 6'!$B$32:$B$38,'Activity 6'!F$32:F$38,\"N/A\",0,1)","v":"N/A"},{"$f":"_xlfn.XLOOKUP($E12,'Activity 6'!$B$32:$B$38,'Activity 6'!G$32:G$38,\"N/A\",0,1)","v":"N/A"},{"$f":"_xlfn.XLOOKUP($E12,'Activity 6'!$B$32:$B$38,'Activity 6'!H$32:H$38,\"N/A\",0,1)","v":"N/A"},{"$f":"_xlfn.XLOOKUP($E12,'Activity 6'!$B$32:$B$38,'Activity 6'!I$32:I$38,\"N/A\",0,1)","v":"N/A"},{"$f":"_xlfn.XLOOKUP($E12,'Activity 6'!$B$32:$B$38,'Activity 6'!J$32:J$38,\"N/A\",0,1)","v":"N/A"},{"$f":"_xlfn.XLOOKUP($E12,'Activity 6'!$B$32:$B$38,'Activity 6'!K$32:K$38,\"N/A\",0,1)","v":"N/A"},{"$f":"_xlfn.XLOOKUP($E12,'Activity 6'!$B$32:$B$38,'Activity 6'!M$32:M$38,\"N/A\",0,1)","v":"N/A"},{"$f":"_xlfn.XLOOKUP($E12,'Activity 7'!$B$7:$B$13,'Activity 7'!$A$7:$A$13,\"No\",0,1)","v":"No"},{"$f":"_xlfn.XLOOKUP($E12,'Activity 7'!$B$7:$B$13,'Activity 7'!M$7:M$13,\"N/A\",0,1)","v":"N/A"},{"$f":"_xlfn.XLOOKUP($E12,'Activity 7'!$B$7:$B$13,'Activity 7'!K$7:K$13,\"N/A\",0,1)","v":"N/A"},{"$f":"_xlfn.XLOOKUP($E12,'Activity 7'!$B$7:$B$13,'Activity 7'!N$7:N$13,\"N/A\",0,1)","v":"N/A"},{"$f":"_xlfn.XLOOKUP($E12,'Activity 7'!$B$7:$B$13,'Activity 7'!O$7:O$13,\"N/A\",0,1)","v":"N/A"},{"$f":"_xlfn.XLOOKUP($E12,'Activity 7'!$B$7:$B$13,'Activity 7'!P$7:P$13,\"N/A\",0,1)","v":"N/A"},{"$f":"_xlfn.XLOOKUP($E12,'Activity 7'!$B$7:$B$13,'Activity 7'!Q$7:Q$13,\"N/A\",0,1)","v":"N/A"},{"$f":"_xlfn.XLOOKUP($E12,'Activity 7'!$B$7:$B$13,'Activity 7'!R$7:R$13,\"N/A\",0,1)","v":"N/A"},{"$f":"_xlfn.XLOOKUP($E12,'Activity 7'!$B$7:$B$13,'Activity 7'!S$7:S$13,\"N/A\",0,1)","v":"N/A"},{"$f":"_xlfn.XLOOKUP($E12,'Activity 7'!$B$7:$B$13,'Activity 7'!T$7:T$13,\"N/A\",0,1)","v":"N/A"},{"$f":"_xlfn.XLOOKUP($E12,'Activity 7'!$B$7:$B$13,'Activity 7'!U$7:U$13,\"N/A\",0,1)","v":"N/A"},{"$f":"_xlfn.XLOOKUP($E12,'Activity 7'!$B$7:$B$13,'Activity 7'!V$7:V$13,\"N/A\",0,1)","v":"N/A"},{"$f":"_xlfn.XLOOKUP($E12,'Activity 7'!$B$17:$B$23,'Activity 7'!E$17:E$23,\"N/A\",0,1)","v":"N/A"},{"$f":"_xlfn.XLOOKUP($E12,'Activity 7'!$B$17:$B$23,'Activity 7'!G$17:G$23,\"N/A\",0,1)","v":"N/A"},{"$f":"_xlfn.XLOOKUP($E12,'Activity 7'!$B$17:$B$23,'Activity 7'!I$17:I$23,\"N/A\",0,1)","v":"N/A"},{"$f":"_xlfn.XLOOKUP($E12,'Activity 7'!$B$17:$B$23,'Activity 7'!J$17:J$23,\"N/A\",0,1)","v":"N/A"},{"$f":"_xlfn.XLOOKUP($E12,'Activity 7'!$B$17:$B$23,'Activity 7'!K$17:K$23,\"N/A\",0,1)","v":"N/A"},{"$f":"_xlfn.XLOOKUP($E12,'Activity 7'!$B$17:$B$23,'Activity 7'!L$17:L$23,\"N/A\",0,1)","v":"N/A"},{"$f":"_xlfn.XLOOKUP($E12,'Activity 7'!$B$17:$B$23,'Activity 7'!M$17:M$23,\"N/A\",0,1)","v":"N/A"},{"$f":"_xlfn.XLOOKUP($E12,'Activity 7'!$B$17:$B$23,'Activity 7'!N$17:N$23,\"N/A\",0,1)","v":"N/A"},{"$f":"_xlfn.XLOOKUP($E12,'Activity 7'!$B$17:$B$23,'Activity 7'!P$17:P$23,\"N/A\",0,1)","v":"N/A"},{"$f":"_xlfn.XLOOKUP($E12,'Activity 8'!$B$7:$B$13,'Activity 8'!A$7:A$13,\"No\",0,1)","v":"No"},{"$f":"_xlfn.XLOOKUP($E12,'Activity 8'!$B$7:$B$13,'Activity 8'!I$7:I$13,\"N/A\",0,1)","v":"N/A"},{"$f":"_xlfn.XLOOKUP($E12,'Activity 8'!$B$7:$B$13,'Activity 8'!J$7:J$13,\"N/A\",0,1)","v":"N/A"},{"$f":"_xlfn.XLOOKUP($E12,'Activity 8'!$B$7:$B$13,'Activity 8'!K$7:K$13,\"N/A\",0,1)","v":"N/A"},{"$f":"_xlfn.XLOOKUP($E12,'Activity 8'!$B$7:$B$13,'Activity 8'!L$7:L$13,\"N/A\",0,1)","v":"N/A"},{"$f":"_xlfn.XLOOKUP($E12,'Activity 8'!$B$7:$B$13,'Activity 8'!M$7:M$13,\"N/A\",0,1)","v":"N/A"},{"$f":"_xlfn.XLOOKUP($E12,'Activity 8'!$B$7:$B$13,'Activity 8'!N$7:N$13,\"N/A\",0,1)","v":"N/A"},{"$f":"_xlfn.XLOOKUP($E12,'Activity 8'!$B$7:$B$13,'Activity 8'!O$7:O$13,\"N/A\",0,1)","v":"N/A"},{"$f":"_xlfn.XLOOKUP($E12,'Activity 8'!$B$7:$B$13,'Activity 8'!P$7:P$13,\"N/A\",0,1)","v":"N/A"},{"$f":"_xlfn.XLOOKUP($E12,'Activity 8'!$B$7:$B$13,'Activity 8'!Q$7:Q$13,\"N/A\",0,1)","v":"N/A"},{"$f":"_xlfn.XLOOKUP($E12,'Activity 8'!$B$7:$B$13,'Activity 8'!R$7:R$13,\"N/A\",0,1)","v":"N/A"},{"$f":"_xlfn.XLOOKUP($E12,'Activity 8'!$B$7:$B$13,'Activity 8'!S$7:S$13,\"N/A\",0,1)","v":"N/A"},{"$f":"_xlfn.XLOOKUP($E12,'Activity 8'!$B$7:$B$13,'Activity 8'!T$7:T$13,\"N/A\",0,1)","v":"N/A"},{"$f":"_xlfn.XLOOKUP($E12,'Activity 8'!$B$7:$B$13,'Activity 8'!U$7:U$13,\"N/A\",0,1)","v":"N/A"},{"$f":"_xlfn.XLOOKUP($E12,'Activity 8'!$B$7:$B$13,'Activity 8'!V$7:V$13,\"N/A\",0,1)","v":"N/A"},{"$f":"_xlfn.XLOOKUP($E12,'Activity 8'!$B$17:$B$23,'Activity 8'!D$17:D$23,\"N/A\",0,1)","v":"N/A"},{"$f":"_xlfn.XLOOKUP($E12,'Activity 8'!$B$17:$B$23,'Activity 8'!E$17:E$23,\"N/A\",0,1)","v":"N/A"},{"$f":"_xlfn.XLOOKUP($E12,'Activity 8'!$B$17:$B$23,'Activity 8'!F$17:F$23,\"N/A\",0,1)","v":"N/A"},{"$f":"_xlfn.XLOOKUP($E12,'Activity 8'!$B$17:$B$23,'Activity 8'!G$17:G$23,\"N/A\",0,1)","v":"N/A"},{"$f":"_xlfn.XLOOKUP($E12,'Activity 8'!$B$17:$B$23,'Activity 8'!H$17:H$23,\"N/A\",0,1)","v":"N/A"},{"$f":"_xlfn.XLOOKUP($E12,'Activity 8'!$B$17:$B$23,'Activity 8'!I$17:I$23,\"N/A\",0,1)","v":"N/A"},{"$f":"_xlfn.XLOOKUP($E12,'Activity 8'!$B$17:$B$23,'Activity 8'!J$17:J$23,\"N/A\",0,1)","v":"N/A"},{"$f":"_xlfn.XLOOKUP($E12,'Activity 8'!$B$17:$B$23,'Activity 8'!K$17:K$23,\"N/A\",0,1)","v":"N/A"},{"$f":"_xlfn.XLOOKUP($E12,'Activity 8'!$B$17:$B$23,'Activity 8'!L$17:L$23,\"N/A\",0,1)","v":"N/A"},{"$f":"_xlfn.XLOOKUP($E12,'Activity 8'!$B$17:$B$23,'Activity 8'!M$17:M$23,\"N/A\",0,1)","v":"N/A"},{"$f":"_xlfn.XLOOKUP($E12,'Activity 8'!$B$17:$B$23,'Activity 8'!N$17:N$23,\"N/A\",0,1)","v":"N/A"},{"$f":"_xlfn.XLOOKUP($E12,'Activity 8'!$B$17:$B$23,'Activity 8'!P$17:P$23,\"N/A\",0,1)","v":"N/A"},{"$f":"_xlfn.XLOOKUP(E12,'Activity 9'!$B$7:$B$13,'Activity 9'!$A$7:$A$13,\"No\",0,1)","v":"No"},{"$f":"_xlfn.XLOOKUP($E12,'Activity 9'!$B$7:$B$13,'Activity 9'!J$7:J$13,\"N/A\",0,1)","v":"N/A"},{"$f":"_xlfn.XLOOKUP($E12,'Activity 9'!$B$7:$B$13,'Activity 9'!K$7:K$13,\"N/A\",0,1)","v":"N/A"},{"$f":"_xlfn.XLOOKUP($E12,'Activity 9'!$B$7:$B$13,'Activity 9'!L$7:L$13,\"N/A\",0,1)","v":"N/A"},{"$f":"_xlfn.XLOOKUP($E12,'Activity 9'!$B$7:$B$13,'Activity 9'!M$7:M$13,\"N/A\",0,1)","v":"N/A"},{"$f":"_xlfn.XLOOKUP($E12,'Activity 9'!$B$7:$B$13,'Activity 9'!N$7:N$13,\"N/A\",0,1)","v":"N/A"},{"$f":"_xlfn.XLOOKUP($E12,'Activity 9'!$B$7:$B$13,'Activity 9'!O$7:O$13,\"N/A\",0,1)","v":"N/A"},{"$f":"_xlfn.XLOOKUP($E12,'Activity 9'!$B$7:$B$13,'Activity 9'!P$7:P$13,\"N/A\",0,1)","v":"N/A"},{"$f":"_xlfn.XLOOKUP($E12,'Activity 9'!$B$7:$B$13,'Activity 9'!Q$7:Q$13,\"N/A\",0,1)","v":"N/A"},{"$f":"_xlfn.XLOOKUP($E12,'Activity 9'!$B$7:$B$13,'Activity 9'!R$7:R$13,\"N/A\",0,1)","v":"N/A"},{"$f":"_xlfn.XLOOKUP($E12,'Activity 9'!$B$7:$B$13,'Activity 9'!S$7:S$13,\"N/A\",0,1)","v":"N/A"},{"$f":"_xlfn.XLOOKUP($E12,'Activity 9'!$B$7:$B$13,'Activity 9'!T$7:T$13,\"N/A\",0,1)","v":"N/A"},{"$f":"_xlfn.XLOOKUP($E12,'Activity 9'!$B$17:$B$23,'Activity 9'!E$17:E$23,\"N/A\",0,1)","v":"N/A"},{"$f":"_xlfn.XLOOKUP($E12,'Activity 9'!$B$17:$B$23,'Activity 9'!F$17:F$23,\"N/A\",0,1)","v":"N/A"},{"$f":"_xlfn.XLOOKUP($E12,'Activity 9'!$B$17:$B$23,'Activity 9'!G$17:G$23,\"N/A\",0,1)","v":"N/A"},{"$f":"_xlfn.XLOOKUP($E12,'Activity 9'!$B$17:$B$23,'Activity 9'!H$17:H$23,\"N/A\",0,1)","v":"N/A"},{"$f":"_xlfn.XLOOKUP($E12,'Activity 9'!$B$17:$B$23,'Activity 9'!I$17:I$23,\"N/A\",0,1)","v":"N/A"},{"$f":"_xlfn.XLOOKUP($E12,'Activity 9'!$B$17:$B$23,'Activity 9'!J$17:J$23,\"N/A\",0,1)","v":"N/A"},{"$f":"_xlfn.XLOOKUP($E12,'Activity 9'!$B$17:$B$23,'Activity 9'!K$17:K$23,\"N/A\",0,1)","v":"N/A"},{"$f":"_xlfn.XLOOKUP($E12,'Activity 9'!$B$17:$B$23,'Activity 9'!L$17:L$23,\"N/A\",0,1)","v":"N/A"},{"$f":"_xlfn.XLOOKUP($E12,'Activity 9'!$B$17:$B$23,'Activity 9'!N$17:N$23,\"N/A\",0,1)","v":"N/A"},{"$f":"_xlfn.XLOOKUP($E12,'Activity 9'!$B$17:$B$23,'Activity 9'!O$17:O$23,\"N/A\",0,1)","v":"N/A"},{"$f":"_xlfn.XLOOKUP($E12,'Activity 9'!$B$17:$B$23,'Activity 9'!Q$17:Q$23,\"N/A\",0,1)","v":"N/A"},{"$f":"_xlfn.XLOOKUP($E12,'Activity 10'!$B$7:$B$13,'Activity 10'!A$7:A$13,\"No\",0,1)","v":"No"},{"$f":"_xlfn.XLOOKUP($E12,'Activity 10'!$B$7:$B$13,'Activity 10'!J$7:J$13,\"N/A\",0,1)","v":"N/A"},{"$f":"_xlfn.XLOOKUP($E12,'Activity 10'!$B$7:$B$13,'Activity 10'!K$7:K$13,\"N/A\",0,1)","v":"N/A"},{"$f":"_xlfn.XLOOKUP($E12,'Activity 10'!$B$7:$B$13,'Activity 10'!L$7:L$13,\"N/A\",0,1)","v":"N/A"},{"$f":"_xlfn.XLOOKUP($E12,'Activity 10'!$B$7:$B$13,'Activity 10'!M$7:M$13,\"N/A\",0,1)","v":"N/A"},{"$f":"_xlfn.XLOOKUP($E12,'Activity 10'!$B$7:$B$13,'Activity 10'!N$7:N$13,\"N/A\",0,1)","v":"N/A"},{"$f":"_xlfn.XLOOKUP($E12,'Activity 10'!$B$7:$B$13,'Activity 10'!O$7:O$13,\"N/A\",0,1)","v":"N/A"},{"$f":"_xlfn.XLOOKUP($E12,'Activity 10'!$B$7:$B$13,'Activity 10'!P$7:P$13,\"N/A\",0,1)","v":"N/A"},{"$f":"_xlfn.XLOOKUP($E12,'Activity 10'!$B$7:$B$13,'Activity 10'!Q$7:Q$13,\"N/A\",0,1)","v":"N/A"},{"$f":"_xlfn.XLOOKUP($E12,'Activity 10'!$B$7:$B$13,'Activity 10'!R$7:R$13,\"N/A\",0,1)","v":"N/A"},{"$f":"_xlfn.XLOOKUP($E12,'Activity 10'!$B$7:$B$13,'Activity 10'!S$7:S$13,\"N/A\",0,1)","v":"N/A"},{"$f":"_xlfn.XLOOKUP($E12,'Activity 10'!$B$7:$B$13,'Activity 10'!T$7:T$13,\"N/A\",0,1)","v":"N/A"},{"$f":"_xlfn.XLOOKUP($E12,'Activity 10'!$B$7:$B$13,'Activity 10'!U$7:U$13,\"N/A\",0,1)","v":"N/A"},{"$f":"_xlfn.XLOOKUP($E12,'Activity 10'!$B$7:$B$13,'Activity 10'!V$7:V$13,\"N/A\",0,1)","v":"N/A"},{"$f":"_xlfn.XLOOKUP($E12,'Activity 10'!$B$17:$B$23,'Activity 10'!E$17:E$23,\"N/A\",0,1)","v":"N/A"},{"$f":"_xlfn.XLOOKUP($E12,'Activity 10'!$B$17:$B$23,'Activity 10'!F$17:F$23,\"N/A\",0,1)","v":"N/A"},{"$f":"_xlfn.XLOOKUP($E12,'Activity 10'!$B$17:$B$23,'Activity 10'!G$17:G$23,\"N/A\",0,1)","v":"N/A"},{"$f":"_xlfn.XLOOKUP($E12,'Activity 10'!$B$17:$B$23,'Activity 10'!H$17:H$23,\"N/A\",0,1)","v":"N/A"},{"$f":"_xlfn.XLOOKUP($E12,'Activity 10'!$B$17:$B$23,'Activity 10'!I$17:I$23,\"N/A\",0,1)","v":"N/A"},{"$f":"_xlfn.XLOOKUP($E12,'Activity 10'!$B$17:$B$23,'Activity 10'!J$17:J$23,\"N/A\",0,1)","v":"N/A"},{"$f":"_xlfn.XLOOKUP($E12,'Activity 10'!$B$17:$B$23,'Activity 10'!K$17:K$23,\"N/A\",0,1)","v":"N/A"},{"$f":"_xlfn.XLOOKUP($E12,'Activity 10'!$B$17:$B$23,'Activity 10'!L$17:L$23,\"N/A\",0,1)","v":"N/A"},{"$f":"_xlfn.XLOOKUP($E12,'Activity 10'!$B$17:$B$23,'Activity 10'!M$17:M$23,\"N/A\",0,1)","v":"N/A"},{"$f":"_xlfn.XLOOKUP($E12,'Activity 10'!$B$17:$B$23,'Activity 10'!N$17:N$23,\"N/A\",0,1)","v":"N/A"},{"$f":"_xlfn.XLOOKUP($E12,'Activity 10'!$B$17:$B$23,'Activity 10'!P$17:P$23,\"N/A\",0,1)","v":"N/A"},{"$f":"_xlfn.XLOOKUP($E12,'Competitive Activity 1'!B$7:B$13,'Competitive Activity 1'!A$7:A$13,\"No\",0,1)","v":"No"},{"$f":"_xlfn.XLOOKUP($E12,'Competitive Activity 1'!$B$7:$B$13,'Competitive Activity 1'!H$7:H$13,\"N/A\",0,1)","v":"N/A"},{"$f":"_xlfn.XLOOKUP($E12,'Competitive Activity 1'!$B$7:$B$13,'Competitive Activity 1'!I$7:I$13,\"N/A\",0,1)","v":"N/A"},{"$f":"_xlfn.XLOOKUP($E12,'Competitive Activity 1'!$B$7:$B$13,'Competitive Activity 1'!J$7:J$13,\"N/A\",0,1)","v":"N/A"},{"$f":"_xlfn.XLOOKUP($E12,'Competitive Activity 1'!$B$7:$B$13,'Competitive Activity 1'!K$7:K$13,\"N/A\",0,1)","v":"N/A"},{"$f":"_xlfn.XLOOKUP($E12,'Competitive Activity 1'!$B$7:$B$13,'Competitive Activity 1'!L$7:L$13,\"N/A\",0,1)","v":"N/A"},{"$f":"_xlfn.XLOOKUP($E12,'Competitive Activity 1'!$B$7:$B$13,'Competitive Activity 1'!M$7:M$13,\"N/A\",0,1)","v":"N/A"},{"$f":"_xlfn.XLOOKUP($E12,'Competitive Activity 1'!$B$7:$B$13,'Competitive Activity 1'!N$7:N$13,\"N/A\",0,1)","v":"N/A"},{"$f":"_xlfn.XLOOKUP($E12,'Competitive Activity 1'!$B$7:$B$13,'Competitive Activity 1'!O$7:O$13,\"N/A\",0,1)","v":"N/A"},{"$f":"_xlfn.XLOOKUP($E12,'Competitive Activity 1'!$B$7:$B$13,'Competitive Activity 1'!P$7:P$13,\"N/A\",0,1)","v":"N/A"},{"$f":"_xlfn.XLOOKUP($E12,'Competitive Activity 1'!$B$7:$B$13,'Competitive Activity 1'!Q$7:Q$13,\"N/A\",0,1)","v":"N/A"},{"$f":"_xlfn.XLOOKUP($E12,'Competitive Activity 1'!$B$7:$B$13,'Competitive Activity 1'!R$7:R$13,\"N/A\",0,1)","v":"N/A"},{"$f":"_xlfn.XLOOKUP($E12,'Competitive Activity 1'!$B$7:$B$13,'Competitive Activity 1'!S$7:S$13,\"N/A\",0,1)","v":"N/A"},{"$f":"_xlfn.XLOOKUP($E12,'Competitive Activity 1'!$B$7:$B$13,'Competitive Activity 1'!T$7:T$13,\"N/A\",0,1)","v":"N/A"},{"$f":"_xlfn.XLOOKUP($E12,'Competitive Activity 1'!$B$7:$B$13,'Competitive Activity 1'!U$7:U$13,\"N/A\",0,1)","v":"N/A"},{"$f":"_xlfn.XLOOKUP($E12,'Competitive Activity 1'!$B$17:$B$23,'Competitive Activity 1'!C$17:C$23,\"N/A\",0,1)","v":"N/A"},{"$f":"_xlfn.XLOOKUP($E12,'Competitive Activity 1'!$B$17:$B$23,'Competitive Activity 1'!D$17:D$23,\"N/A\",0,1)","v":"N/A"},{"$f":"_xlfn.XLOOKUP($E12,'Competitive Activity 1'!$B$17:$B$23,'Competitive Activity 1'!E$17:E$23,\"N/A\",0,1)","v":"N/A"},{"$f":"_xlfn.XLOOKUP($E12,'Competitive Activity 1'!$B$17:$B$23,'Competitive Activity 1'!F$17:F$23,\"N/A\",0,1)","v":"N/A"},{"$f":"_xlfn.XLOOKUP($E12,'Competitive Activity 1'!$B$17:$B$23,'Competitive Activity 1'!G$17:G$23,\"N/A\",0,1)","v":"N/A"},{"$f":"_xlfn.XLOOKUP($E12,'Competitive Activity 1'!$B$17:$B$23,'Competitive Activity 1'!H$17:H$23,\"N/A\",0,1)","v":"N/A"},{"$f":"_xlfn.XLOOKUP($E12,'Competitive Activity 1'!$B$17:$B$23,'Competitive Activity 1'!I$17:I$23,\"N/A\",0,1)","v":"N/A"},{"$f":"_xlfn.XLOOKUP($E12,'Competitive Activity 1'!$B$17:$B$23,'Competitive Activity 1'!J$17:J$23,\"N/A\",0,1)","v":"N/A"},{"$f":"_xlfn.XLOOKUP($E12,'Competitive Activity 1'!$B$17:$B$23,'Competitive Activity 1'!K$17:K$23,\"N/A\",0,1)","v":"N/A"},{"$f":"_xlfn.XLOOKUP($E12,'Competitive Activity 1'!$B$17:$B$23,'Competitive Activity 1'!M$17:M$23,\"N/A\",0,1)","v":"N/A"},{"$f":"_xlfn.XLOOKUP($E12,'Competitive Activity 1'!$B$17:$B$23,'Competitive Activity 1'!N$17:N$23,\"N/A\",0,1)","v":"N/A"},{"$f":"_xlfn.XLOOKUP($E12,'Competitive Activity 1'!$B$17:$B$23,'Competitive Activity 1'!P$17:P$23,\"N/A\",0,1)","v":"N/A"},{"$f":"_xlfn.XLOOKUP($E12,'Competitive Activity 2'!$B$7:$B$13,'Competitive Activity 2'!A$7:A$13,\"No\",0)","v":"No"},{"$f":"_xlfn.XLOOKUP($E12,'Competitive Activity 2'!$B$7:$B$13,'Competitive Activity 2'!L$7:L$13,\"N/A\",0)","v":"N/A"},{"$f":"_xlfn.XLOOKUP($E12,'Competitive Activity 2'!$B$7:$B$13,'Competitive Activity 2'!M$7:M$13,\"N/A\",0)","v":"N/A"},{"$f":"_xlfn.XLOOKUP($E12,'Competitive Activity 2'!$B$7:$B$13,'Competitive Activity 2'!N$7:N$13,\"N/A\",0)","v":"N/A"},{"$f":"_xlfn.XLOOKUP($E12,'Competitive Activity 2'!$B$7:$B$13,'Competitive Activity 2'!O$7:O$13,\"N/A\",0)","v":"N/A"},{"$f":"_xlfn.XLOOKUP($E12,'Competitive Activity 2'!$B$7:$B$13,'Competitive Activity 2'!P$7:P$13,\"N/A\",0)","v":"N/A"},{"$f":"_xlfn.XLOOKUP($E12,'Competitive Activity 2'!$B$7:$B$13,'Competitive Activity 2'!Q$7:Q$13,\"N/A\",0)","v":"N/A"},{"$f":"_xlfn.XLOOKUP($E12,'Competitive Activity 2'!$B$7:$B$13,'Competitive Activity 2'!R$7:R$13,\"N/A\",0)","v":"N/A"},{"$f":"_xlfn.XLOOKUP($E12,'Competitive Activity 2'!$B$7:$B$13,'Competitive Activity 2'!S$7:S$13,\"N/A\",0)","v":"N/A"},{"$f":"_xlfn.XLOOKUP($E12,'Competitive Activity 2'!$B$7:$B$13,'Competitive Activity 2'!T$7:T$13,\"N/A\",0)","v":"N/A"},{"$f":"_xlfn.XLOOKUP($E12,'Competitive Activity 2'!$B$7:$B$13,'Competitive Activity 2'!U$7:U$13,\"N/A\",0)","v":"N/A"},{"$f":"_xlfn.XLOOKUP($E12,'Competitive Activity 2'!$B$17:$B$23,'Competitive Activity 2'!D$17:D$23,\"N/A\",0)","v":"N/A"},{"$f":"_xlfn.XLOOKUP($E12,'Competitive Activity 2'!$B$17:$B$23,'Competitive Activity 2'!E$17:E$23,\"N/A\",0)","v":"N/A"},{"$f":"_xlfn.XLOOKUP($E12,'Competitive Activity 2'!$B$17:$B$23,'Competitive Activity 2'!F$17:F$23,\"N/A\",0)","v":"N/A"},{"$f":"_xlfn.XLOOKUP($E12,'Competitive Activity 2'!$B$17:$B$23,'Competitive Activity 2'!G$17:G$23,\"N/A\",0)","v":"N/A"},{"$f":"_xlfn.XLOOKUP($E12,'Competitive Activity 2'!$B$17:$B$23,'Competitive Activity 2'!H$17:H$23,\"N/A\",0)","v":"N/A"},{"$f":"_xlfn.XLOOKUP($E12,'Competitive Activity 2'!$B$17:$B$23,'Competitive Activity 2'!I$17:I$23,\"N/A\",0)","v":"N/A"},{"$f":"_xlfn.XLOOKUP($E12,'Competitive Activity 2'!$B$17:$B$23,'Competitive Activity 2'!J$17:J$23,\"N/A\",0)","v":"N/A"},{"$f":"_xlfn.XLOOKUP($E12,'Competitive Activity 2'!$B$17:$B$23,'Competitive Activity 2'!K$17:K$23,\"N/A\",0)","v":"N/A"},{"$f":"_xlfn.XLOOKUP($E12,'Competitive Activity 2'!$B$17:$B$23,'Competitive Activity 2'!L$17:L$23,\"N/A\",0)","v":"N/A"},{"$f":"_xlfn.XLOOKUP($E12,'Competitive Activity 2'!$B$17:$B$23,'Competitive Activity 2'!M$17:M$23,\"N/A\",0)","v":"N/A"},{"$f":"_xlfn.XLOOKUP($E12,'Competitive Activity 2'!$B$17:$B$23,'Competitive Activity 2'!N$17:N$23,\"N/A\",0)","v":"N/A"},{"$f":"_xlfn.XLOOKUP($E12,'Competitive Activity 2'!$B$27:$B$33,'Competitive Activity 2'!D$27:D$33,\"N/A\",0)","v":"N/A"},{"$f":"_xlfn.XLOOKUP($E12,'Competitive Activity 2'!$B$27:$B$33,'Competitive Activity 2'!E$27:E$33,\"N/A\",0)","v":"N/A"},{"$f":"_xlfn.XLOOKUP($E12,'Competitive Activity 2'!$B$27:$B$33,'Competitive Activity 2'!F$27:F$33,\"N/A\",0)","v":"N/A"},{"$f":"_xlfn.XLOOKUP($E12,'Competitive Activity 2'!$B$27:$B$33,'Competitive Activity 2'!G$27:G$33,\"N/A\",0)","v":"N/A"},{"$f":"_xlfn.XLOOKUP($E12,'Competitive Activity 2'!$B$27:$B$33,'Competitive Activity 2'!H$27:H$33,\"N/A\",0)","v":"N/A"},{"$f":"_xlfn.XLOOKUP($E12,'Competitive Activity 2'!$B$27:$B$33,'Competitive Activity 2'!I$27:I$33,\"N/A\",0)","v":"N/A"},{"$f":"_xlfn.XLOOKUP($E12,'Competitive Activity 2'!$B$27:$B$33,'Competitive Activity 2'!J$27:J$33,\"N/A\",0)","v":"N/A"},{"$f":"_xlfn.XLOOKUP($E12,'Competitive Activity 2'!$B$27:$B$33,'Competitive Activity 2'!K$27:K$33,\"N/A\",0)","v":"N/A"},{"$f":"_xlfn.XLOOKUP($E12,'Competitive Activity 2'!$B$27:$B$33,'Competitive Activity 2'!M$27:M$33,\"N/A\",0)","v":"N/A"}]
[{"$f":"'1-Cover Sheet'!$C$8","v":"Select One"},{"$f":"'1-Cover Sheet'!$F$8","v":"Select One"},{"$f":"'Summary Sheet'!$D$8","v":0},{"$f":"'Summary Sheet'!$D$10","v":0},{"$f":"'Drop Down Box'!B177","v":0},{"$f":"'Drop Down Box'!C177","v":0},{"$f":"'Drop Down Box'!D177","v":"Select One"},{"$f":"_xlfn.XLOOKUP(E13,'Drop Down Box'!$B$166:$B$249,'Drop Down Box'!$A$166:$A$249,\"Unknown\",0)","v":"Activity 1"},{"$f":"_xlfn.XLOOKUP($E13,'Activity 2'!$B$17:$B$23,'Activity 2'!$N$17:$N$23,\"N/A\",0)","v":"N/A"},{"$f":"_xlfn.XLOOKUP($E13,'Activity 2'!$B$17:$B$23,'Activity 2'!$P$17:$P$23,\"N/A\",0)","v":"N/A"},{"$f":"_xlfn.XLOOKUP($E13,'Activity 2'!$B$7:$B$13,'Activity 2'!E$7:E$13,0,0)","v":0},{"$f":"_xlfn.XLOOKUP($E13,'Activity 2'!$B$7:$B$13,'Activity 2'!F$7:F$13,0,0)","v":"00:00:00"},{"$f":"_xlfn.XLOOKUP($E13,'Activity 2'!$B$7:$B$13,'Activity 2'!G$7:G$13,0,0)","v":0},{"$f":"_xlfn.XLOOKUP($E13,'Activity 1'!$B$7:$B$13,'Activity 1'!$A$7:$A$13,\"No\",0,1)","v":"No"},{"$f":"_xlfn.XLOOKUP($E13,'Activity 1'!$B$7:$B$13,'Activity 1'!$H$7:$H$13,\"N/A\",0,1)","v":"N/A"},{"$f":"_xlfn.XLOOKUP($E13,'Activity 1'!$B$7:$B$13,'Activity 1'!I$7:I$13,\"N/A\",0,1)","v":"N/A"},{"$f":"_xlfn.XLOOKUP($E13,'Activity 1'!$B$7:$B$13,'Activity 1'!J$7:J$13,\"N/A\",0,1)","v":"N/A"},{"$f":"_xlfn.XLOOKUP($E13,'Activity 1'!$B$7:$B$13,'Activity 1'!K$7:K$13,\"N/A\",0,1)","v":"N/A"},{"$f":"_xlfn.XLOOKUP($E13,'Activity 1'!$B$7:$B$13,'Activity 1'!L$7:L$13,\"N/A\",0,1)","v":"N/A"},{"$f":"_xlfn.XLOOKUP($E13,'Activity 1'!$B$7:$B$13,'Activity 1'!M$7:M$13,\"N/A\",0,1)","v":"N/A"},{"$f":"_xlfn.XLOOKUP($E13,'Activity 1'!$B$7:$B$13,'Activity 1'!N$7:N$13,\"N/A\",0,1)","v":"N/A"},0,{"$f":"_xlfn.XLOOKUP($E13,'Activity 1'!$B$7:$B$13,'Activity 1'!O$7:O$13,\"N/A\",0,1)","v":"N/A"},{"$f":"_xlfn.XLOOKUP($E13,'Activity 1'!$B$7:$B$13,'Activity 1'!P$7:P$13,\"N/A\",0,1)","v":"N/A"},{"$f":"_xlfn.XLOOKUP($E13,'Activity 1'!$B$7:$B$13,'Activity 1'!Q$7:Q$13,\"N/A\",0,1)","v":"N/A"},{"$f":"_xlfn.XLOOKUP($E13,'Activity 1'!$B$7:$B$13,'Activity 1'!R$7:R$13,\"N/A\",0,1)","v":"N/A"},{"$f":"_xlfn.XLOOKUP($E13,'Activity 1'!$B$7:$B$13,'Activity 1'!S$7:S$13,\"N/A\",0,1)","v":"N/A"},{"$f":"_xlfn.XLOOKUP($E13,'Activity 1'!$B$7:$B$13,'Activity 1'!T$7:T$13,\"N/A\",0,1)","v":"N/A"},{"$f":"_xlfn.XLOOKUP($E13,'Activity 1'!$B$7:$B$13,'Activity 1'!U$7:U$13,\"N/A\",0,1)","v":"N/A"},{"$f":"_xlfn.XLOOKUP($E13,'Activity 1'!$B$7:$B$13,'Activity 1'!V$7:V$13,\"N/A\",0,1)","v":"N/A"},{"$f":"_xlfn.XLOOKUP($E13,'Activity 1'!$B$17:$B$23,'Activity 1'!C$17:C$23,\"N/A\",0,1)","v":"N/A"},{"$f":"_xlfn.XLOOKUP($E13,'Activity 1'!$B$17:$B$23,'Activity 1'!D$17:D$23,\"N/A\",0,1)","v":"N/A"},{"$f":"_xlfn.XLOOKUP($E13,'Activity 1'!$B$17:$B$23,'Activity 1'!E$17:E$23,\"N/A\",0,1)","v":"N/A"},{"$f":"_xlfn.XLOOKUP($E13,'Activity 1'!$B$17:$B$23,'Activity 1'!F$17:F$23,\"N/A\",0,1)","v":"N/A"},{"$f":"_xlfn.XLOOKUP($E13,'Activity 1'!$B$17:$B$23,'Activity 1'!G$17:G$23,\"N/A\",0,1)","v":"N/A"},{"$f":"_xlfn.XLOOKUP($E13,'Activity 1'!$B$17:$B$23,'Activity 1'!H$17:H$23,\"N/A\",0,1)","v":"N/A"},{"$f":"_xlfn.XLOOKUP($E13,'Activity 1'!$B$17:$B$23,'Activity 1'!I$17:I$23,\"N/A\",0,1)","v":"N/A"},{"$f":"_xlfn.XLOOKUP($E13,'Activity 1'!$B$17:$B$23,'Activity 1'!J$17:J$23,\"N/A\",0,1)","v":"N/A"},{"$f":"_xlfn.XLOOKUP($E13,'Activity 1'!$B$17:$B$23,'Activity 1'!K$17:K$23,\"N/A\",0,1)","v":"N/A"},{"$f":"_xlfn.XLOOKUP($E13,'Activity 1'!$B$17:$B$23,'Activity 1'!L$17:L$23,\"N/A\",0,1)","v":"N/A"},{"$f":"_xlfn.XLOOKUP($E13,'Activity 1'!$B$17:$B$23,'Activity 1'!M$17:M$23,\"N/A\",0,1)","v":"N/A"},{"$f":"_xlfn.XLOOKUP($E13,'Activity 1'!$B$17:$B$23,'Activity 1'!O$17:O$23,\"N/A\",0,1)","v":"N/A"},{"$f":"_xlfn.XLOOKUP($E13,'Activity 1'!$B$17:$B$23,'Activity 1'!Q$17:Q$23,\"N/A\",0,1)","v":"N/A"},{"$f":"_xlfn.XLOOKUP($E13,'Activity 2'!$B$7:$B$13,'Activity 2'!$A$7:$A$13,\"No\",0,1)","v":"No"},{"$f":"_xlfn.XLOOKUP($E13,'Activity 2'!B$7:B$13,'Activity 2'!H$7:H$13,\"N/A\",0)","v":"N/A"},{"$f":"_xlfn.XLOOKUP($E13,'Activity 2'!C$7:C$13,'Activity 2'!I$7:I$13,\"N/A\",0)","v":"N/A"},{"$f":"_xlfn.XLOOKUP($E13,'Activity 2'!D$7:D$13,'Activity 2'!J$7:J$13,\"N/A\",0)","v":"N/A"},{"$f":"_xlfn.XLOOKUP($E13,'Activity 2'!E$7:E$13,'Activity 2'!K$7:K$13,\"N/A\",0)","v":"N/A"},{"$f":"_xlfn.XLOOKUP($E13,'Activity 2'!F$7:F$13,'Activity 2'!L$7:L$13,\"N/A\",0)","v":"N/A"},{"$f":"_xlfn.XLOOKUP($E13,'Activity 2'!G$7:G$13,'Activity 2'!M$7:M$13,\"N/A\",0)","v":"N/A"},{"$f":"_xlfn.XLOOKUP($E13,'Activity 2'!H$7:H$13,'Activity 2'!N$7:N$13,\"N/A\",0)","v":"N/A"},{"$f":"_xlfn.XLOOKUP($E13,'Activity 2'!I$7:I$13,'Activity 2'!O$7:O$13,\"N/A\",0)","v":"N/A"},{"$f":"_xlfn.XLOOKUP($E13,'Activity 2'!J$7:J$13,'Activity 2'!P$7:P$13,\"N/A\",0)","v":"N/A"},{"$f":"_xlfn.XLOOKUP($E13,'Activity 2'!K$7:K$13,'Activity 2'!Q$7:Q$13,\"N/A\",0)","v":"N/A"},{"$f":"_xlfn.XLOOKUP($E13,'Activity 2'!L$7:L$13,'Activity 2'!R$7:R$13,\"N/A\",0)","v":"N/A"},{"$f":"_xlfn.XLOOKUP($E13,'Activity 2'!M$7:M$13,'Activity 2'!S$7:S$13,\"N/A\",0)","v":"N/A"},{"$f":"_xlfn.XLOOKUP($E13,'Activity 2'!N$7:N$13,'Activity 2'!T$7:T$13,\"N/A\",0)","v":"N/A"},{"$f":"_xlfn.XLOOKUP($E13,'Activity 2'!O$7:O$13,'Activity 2'!U$7:U$13,\"N/A\",0)","v":"N/A"},{"$f":"_xlfn.XLOOKUP($E13,'Activity 2'!P$7:P$13,'Activity 2'!V$7:V$13,\"N/A\",0)","v":"N/A"},{"$f":"_xlfn.XLOOKUP($E13,'Activity 2'!$B$17:$B$23,'Activity 2'!C$17:C$23,\"N/A\",0,1)","v":"N/A"},{"$f":"_xlfn.XLOOKUP($E13,'Activity 2'!$B$17:$B$23,'Activity 2'!D$17:D$23,\"N/A\",0,1)","v":"N/A"},{"$f":"_xlfn.XLOOKUP($E13,'Activity 2'!$B$17:$B$23,'Activity 2'!E$17:E$23,\"N/A\",0,1)","v":"N/A"},{"$f":"_xlfn.XLOOKUP($E13,'Activity 2'!$B$17:$B$23,'Activity 2'!F$17:F$23,\"N/A\",0,1)","v":"N/A"},{"$f":"_xlfn.XLOOKUP($E13,'Activity 2'!$B$17:$B$23,'Activity 2'!G$17:G$23,\"N/A\",0,1)","v":"N/A"},{"$f":"_xlfn.XLOOKUP($E13,'Activity 2'!$B$17:$B$23,'Activity 2'!H$17:H$23,\"N/A\",0,1)","v":"N/A"},{"$f":"_xlfn.XLOOKUP($E13,'Activity 2'!$B$17:$B$23,'Activity 2'!I$17:I$23,\"N/A\",0,1)","v":"N/A"},{"$f":"_xlfn.XLOOKUP($E13,'Activity 2'!$B$17:$B$23,'Activity 2'!J$17:J$23,\"N/A\",0,1)","v":"N/A"},{"$f":"_xlfn.XLOOKUP($E13,'Activity 2'!$B$17:$B$23,'Activity 2'!K$17:K$23,\"N/A\",0,1)","v":"N/A"},{"$f":"_xlfn.XLOOKUP($E13,'Activity 2'!$B$17:$B$23,'Activity 2'!L$17:L$23,\"N/A\",0,1)","v":"N/A"},{"$f":"_xlfn.XLOOKUP($E13,'Activity 2'!$B$17:$B$23,'Activity 2'!M$17:M$23,\"N/A\",0,1)","v":"N/A"},{"$f":"_xlfn.XLOOKUP($E13,'Activity 2'!$B$17:$B$23,'Activity 2'!O$17:O$23,\"N/A\",0,1)","v":"N/A"},{"$f":"_xlfn.XLOOKUP($E13,'Activity 2'!$B$17:$B$23,'Activity 2'!Q$17:Q$23,\"N/A\",0,1)","v":"N/A"},null,{"$f":"_xlfn.XLOOKUP($E13,'Activity 3'!$B$8:$B$14,'Activity 3'!K$8:K$14,\"N/A\",0,1)","v":"N/A"},{"$f":"_xlfn.XLOOKUP($E13,'Activity 3'!$B$8:$B$14,'Activity 3'!L$8:L$14,\"N/A\",0,1)","v":"N/A"},{"$f":"_xlfn.XLOOKUP($E13,'Activity 3'!$B$8:$B$14,'Activity 3'!M$8:M$14,\"N/A\",0,1)","v":"N/A"},{"$f":"_xlfn.XLOOKUP($E13,'Activity 3'!$B$8:$B$14,'Activity 3'!N$8:N$14,\"N/A\",0,1)","v":"N/A"},{"$f":"_xlfn.XLOOKUP($E13,'Activity 3'!$B$8:$B$14,'Activity 3'!O$8:O$14,\"N/A\",0,1)","v":"N/A"},{"$f":"_xlfn.XLOOKUP($E13,'Activity 3'!$B$8:$B$14,'Activity 3'!R$8:R$14,\"N/A\",0,1)","v":"N/A"},{"$f":"_xlfn.XLOOKUP($E13,'Activity 4'!$B$8:$B$14,'Activity 4'!$A$8:$A$14,\"No\",0,1)","v":"No"},{"$f":"_xlfn.XLOOKUP($E13,'Activity 4'!$B$8:$B$14,'Activity 4'!L$8:L$14,\"N/A\",0,1)","v":"N/A"},{"$f":"_xlfn.XLOOKUP($E13,'Activity 4'!$B$8:$B$14,'Activity 4'!I$8:I$14,\"N/A\",0,1)","v":"N/A"},{"$f":"_xlfn.XLOOKUP($E13,'Activity 4'!$B$8:$B$14,'Activity 4'!M$8:M$14,\"N/A\",0,1)","v":"N/A"},{"$f":"_xlfn.XLOOKUP($E13,'Activity 5'!$B$8:$B$14,'Activity 5'!$A$8:$A$14,\"No\",0,1)","v":"No"},{"$f":"_xlfn.XLOOKUP($E13,'Activity 5'!$B$8:$B$14,'Activity 5'!J$8:J$14,\"N/A\",0,1)","v":"N/A"},{"$f":"_xlfn.XLOOKUP($E13,'Activity 5'!$B$8:$B$14,'Activity 5'!K$8:K$14,\"N/A\",0,1)","v":"N/A"},{"$f":"_xlfn.XLOOKUP($E13,'Activity 5'!$B$8:$B$14,'Activity 5'!N$8:N$14,\"N/A\",0,1)","v":"N/A"},{"$f":"_xlfn.XLOOKUP($E13,'Activity 5'!$B$8:$B$14,'Activity 5'!O$8:O$14,\"N/A\",0,1)","v":"N/A"},{"$f":"_xlfn.XLOOKUP($E13,'Activity 5'!$B$8:$B$14,'Activity 5'!P$8:P$14,\"N/A\",0,1)","v":"N/A"},{"$f":"_xlfn.XLOOKUP($E13,'Activity 5'!$B$8:$B$14,'Activity 5'!Q$8:Q$14,\"N/A\",0,1)","v":"N/A"},{"$f":"_xlfn.XLOOKUP($E13,'Activity 5'!$B$8:$B$14,'Activity 5'!R$8:R$14,\"N/A\",0,1)","v":"N/A"},{"$f":"_xlfn.XLOOKUP($E13,'Activity 6'!$B$7:$B$13,'Activity 6'!A$7:A$13,\"No\",0,1)","v":"No"},{"$f":"_xlfn.XLOOKUP($E13,'Activity 6'!$B$7:$B$13,'Activity 6'!K$7:K$13,\"N/A\",0,1)","v":"N/A"},{"$f":"_xlfn.XLOOKUP($E13,'Activity 6'!$B$7:$B$13,'Activity 6'!L$7:L$13,\"N/A\",0,1)","v":"N/A"},{"$f":"_xlfn.XLOOKUP($E13,'Activity 6'!$B$7:$B$13,'Activity 6'!M$7:M$13,\"N/A\",0,1)","v":"N/A"},{"$f":"_xlfn.XLOOKUP($E13,'Activity 6'!$B$7:$B$13,'Activity 6'!N$7:N$13,\"N/A\",0,1)","v":"N/A"},{"$f":"_xlfn.XLOOKUP($E13,'Activity 6'!$B$7:$B$13,'Activity 6'!O$7:O$13,\"N/A\",0,1)","v":"N/A"},{"$f":"_xlfn.XLOOKUP($E13,'Activity 6'!$B$7:$B$13,'Activity 6'!P$7:P$13,\"N/A\",0,1)","v":"N/A"},{"$f":"_xlfn.XLOOKUP($E13,'Activity 6'!$B$7:$B$13,'Activity 6'!Q$7:Q$13,\"N/A\",0,1)","v":"N/A"},{"$f":"_xlfn.XLOOKUP($E13,'Activity 6'!$B$7:$B$13,'Activity 6'!R$7:R$13,\"N/A\",0,1)","v":"N/A"},{"$f":"_xlfn.XLOOKUP($E13,'Activity 6'!$B$7:$B$13,'Activity 6'!S$7:S$13,\"N/A\",0,1)","v":"N/A"},{"$f":"_xlfn.XLOOKUP($E13,'Activity 6'!$B$7:$B$13,'Activity 6'!T$7:T$13,\"N/A\",0,1)","v":"N/A"},{"$f":"_xlfn.XLOOKUP($E13,'Activity 6'!$B$7:$B$13,'Activity 6'!U$7:U$13,\"N/A\",0,1)","v":"N/A"},{"$f":"_xlfn.XLOOKUP($E13,'Activity 6'!$B$22:$B$28,'Activity 6'!C$22:C$28,\"N/A\",0,1)","v":"N/A"},{"$f":"_xlfn.XLOOKUP($E13,'Activity 6'!$B$22:$B$28,'Activity 6'!D$22:D$28,\"N/A\",0,1)","v":"N/A"},{"$f":"_xlfn.XLOOKUP($E13,'Activity 6'!$B$22:$B$28,'Activity 6'!E$22:E$28,\"N/A\",0,1)","v":"N/A"},{"$f":"_xlfn.XLOOKUP($E13,'Activity 6'!$B$22:$B$28,'Activity 6'!F$22:F$28,\"N/A\",0,1)","v":"N/A"},{"$f":"_xlfn.XLOOKUP($E13,'Activity 6'!$B$22:$B$28,'Activity 6'!G$22:G$28,\"N/A\",0,1)","v":"N/A"},{"$f":"_xlfn.XLOOKUP($E13,'Activity 6'!$B$22:$B$28,'Activity 6'!H$22:H$28,\"N/A\",0,1)","v":"N/A"},{"$f":"_xlfn.XLOOKUP($E13,'Activity 6'!$B$22:$B$28,'Activity 6'!I$22:I$28,\"N/A\",0,1)","v":"N/A"},{"$f":"_xlfn.XLOOKUP($E13,'Activity 6'!$B$22:$B$28,'Activity 6'!J$22:J$28,\"N/A\",0,1)","v":"N/A"},{"$f":"_xlfn.XLOOKUP($E13,'Activity 6'!$B$22:$B$28,'Activity 6'!K$22:K$28,\"N/A\",0,1)","v":"N/A"},{"$f":"_xlfn.XLOOKUP($E13,'Activity 6'!$B$22:$B$28,'Activity 6'!L$22:L$28,\"N/A\",0,1)","v":"N/A"},{"$f":"_xlfn.XLOOKUP($E13,'Activity 6'!$B$22:$B$28,'Activity 6'!M$22:M$28,\"N/A\",0,1)","v":"N/A"},{"$f":"_xlfn.XLOOKUP($E13,'Activity 6'!$B$22:$B$28,'Activity 6'!N$22:N$28,\"N/A\",0,1)","v":"N/A"},{"$f":"_xlfn.XLOOKUP($E13,'Activity 6'!$B$32:$B$38,'Activity 6'!C$32:C$38,\"N/A\",0,1)","v":"N/A"},{"$f":"_xlfn.XLOOKUP($E13,'Activity 6'!$B$32:$B$38,'Activity 6'!D$32:D$38,\"N/A\",0,1)","v":"N/A"},{"$f":"_xlfn.XLOOKUP($E13,'Activity 6'!$B$32:$B$38,'Activity 6'!E$32:E$38,\"N/A\",0,1)","v":"N/A"},{"$f":"_xlfn.XLOOKUP($E13,'Activity 6'!$B$32:$B$38,'Activity 6'!F$32:F$38,\"N/A\",0,1)","v":"N/A"},{"$f":"_xlfn.XLOOKUP($E13,'Activity 6'!$B$32:$B$38,'Activity 6'!G$32:G$38,\"N/A\",0,1)","v":"N/A"},{"$f":"_xlfn.XLOOKUP($E13,'Activity 6'!$B$32:$B$38,'Activity 6'!H$32:H$38,\"N/A\",0,1)","v":"N/A"},{"$f":"_xlfn.XLOOKUP($E13,'Activity 6'!$B$32:$B$38,'Activity 6'!I$32:I$38,\"N/A\",0,1)","v":"N/A"},{"$f":"_xlfn.XLOOKUP($E13,'Activity 6'!$B$32:$B$38,'Activity 6'!J$32:J$38,\"N/A\",0,1)","v":"N/A"},{"$f":"_xlfn.XLOOKUP($E13,'Activity 6'!$B$32:$B$38,'Activity 6'!K$32:K$38,\"N/A\",0,1)","v":"N/A"},{"$f":"_xlfn.XLOOKUP($E13,'Activity 6'!$B$32:$B$38,'Activity 6'!M$32:M$38,\"N/A\",0,1)","v":"N/A"},{"$f":"_xlfn.XLOOKUP($E13,'Activity 7'!$B$7:$B$13,'Activity 7'!$A$7:$A$13,\"No\",0,1)","v":"No"},{"$f":"_xlfn.XLOOKUP($E13,'Activity 7'!$B$7:$B$13,'Activity 7'!M$7:M$13,\"N/A\",0,1)","v":"N/A"},{"$f":"_xlfn.XLOOKUP($E13,'Activity 7'!$B$7:$B$13,'Activity 7'!K$7:K$13,\"N/A\",0,1)","v":"N/A"},{"$f":"_xlfn.XLOOKUP($E13,'Activity 7'!$B$7:$B$13,'Activity 7'!N$7:N$13,\"N/A\",0,1)","v":"N/A"},{"$f":"_xlfn.XLOOKUP($E13,'Activity 7'!$B$7:$B$13,'Activity 7'!O$7:O$13,\"N/A\",0,1)","v":"N/A"},{"$f":"_xlfn.XLOOKUP($E13,'Activity 7'!$B$7:$B$13,'Activity 7'!P$7:P$13,\"N/A\",0,1)","v":"N/A"},{"$f":"_xlfn.XLOOKUP($E13,'Activity 7'!$B$7:$B$13,'Activity 7'!Q$7:Q$13,\"N/A\",0,1)","v":"N/A"},{"$f":"_xlfn.XLOOKUP($E13,'Activity 7'!$B$7:$B$13,'Activity 7'!R$7:R$13,\"N/A\",0,1)","v":"N/A"},{"$f":"_xlfn.XLOOKUP($E13,'Activity 7'!$B$7:$B$13,'Activity 7'!S$7:S$13,\"N/A\",0,1)","v":"N/A"},{"$f":"_xlfn.XLOOKUP($E13,'Activity 7'!$B$7:$B$13,'Activity 7'!T$7:T$13,\"N/A\",0,1)","v":"N/A"},{"$f":"_xlfn.XLOOKUP($E13,'Activity 7'!$B$7:$B$13,'Activity 7'!U$7:U$13,\"N/A\",0,1)","v":"N/A"},{"$f":"_xlfn.XLOOKUP($E13,'Activity 7'!$B$7:$B$13,'Activity 7'!V$7:V$13,\"N/A\",0,1)","v":"N/A"},{"$f":"_xlfn.XLOOKUP($E13,'Activity 7'!$B$17:$B$23,'Activity 7'!E$17:E$23,\"N/A\",0,1)","v":"N/A"},{"$f":"_xlfn.XLOOKUP($E13,'Activity 7'!$B$17:$B$23,'Activity 7'!G$17:G$23,\"N/A\",0,1)","v":"N/A"},{"$f":"_xlfn.XLOOKUP($E13,'Activity 7'!$B$17:$B$23,'Activity 7'!I$17:I$23,\"N/A\",0,1)","v":"N/A"},{"$f":"_xlfn.XLOOKUP($E13,'Activity 7'!$B$17:$B$23,'Activity 7'!J$17:J$23,\"N/A\",0,1)","v":"N/A"},{"$f":"_xlfn.XLOOKUP($E13,'Activity 7'!$B$17:$B$23,'Activity 7'!K$17:K$23,\"N/A\",0,1)","v":"N/A"},{"$f":"_xlfn.XLOOKUP($E13,'Activity 7'!$B$17:$B$23,'Activity 7'!L$17:L$23,\"N/A\",0,1)","v":"N/A"},{"$f":"_xlfn.XLOOKUP($E13,'Activity 7'!$B$17:$B$23,'Activity 7'!M$17:M$23,\"N/A\",0,1)","v":"N/A"},{"$f":"_xlfn.XLOOKUP($E13,'Activity 7'!$B$17:$B$23,'Activity 7'!N$17:N$23,\"N/A\",0,1)","v":"N/A"},{"$f":"_xlfn.XLOOKUP($E13,'Activity 7'!$B$17:$B$23,'Activity 7'!P$17:P$23,\"N/A\",0,1)","v":"N/A"},{"$f":"_xlfn.XLOOKUP($E13,'Activity 8'!$B$7:$B$13,'Activity 8'!A$7:A$13,\"No\",0,1)","v":"No"},{"$f":"_xlfn.XLOOKUP($E13,'Activity 8'!$B$7:$B$13,'Activity 8'!I$7:I$13,\"N/A\",0,1)","v":"N/A"},{"$f":"_xlfn.XLOOKUP($E13,'Activity 8'!$B$7:$B$13,'Activity 8'!J$7:J$13,\"N/A\",0,1)","v":"N/A"},{"$f":"_xlfn.XLOOKUP($E13,'Activity 8'!$B$7:$B$13,'Activity 8'!K$7:K$13,\"N/A\",0,1)","v":"N/A"},{"$f":"_xlfn.XLOOKUP($E13,'Activity 8'!$B$7:$B$13,'Activity 8'!L$7:L$13,\"N/A\",0,1)","v":"N/A"},{"$f":"_xlfn.XLOOKUP($E13,'Activity 8'!$B$7:$B$13,'Activity 8'!M$7:M$13,\"N/A\",0,1)","v":"N/A"},{"$f":"_xlfn.XLOOKUP($E13,'Activity 8'!$B$7:$B$13,'Activity 8'!N$7:N$13,\"N/A\",0,1)","v":"N/A"},{"$f":"_xlfn.XLOOKUP($E13,'Activity 8'!$B$7:$B$13,'Activity 8'!O$7:O$13,\"N/A\",0,1)","v":"N/A"},{"$f":"_xlfn.XLOOKUP($E13,'Activity 8'!$B$7:$B$13,'Activity 8'!P$7:P$13,\"N/A\",0,1)","v":"N/A"},{"$f":"_xlfn.XLOOKUP($E13,'Activity 8'!$B$7:$B$13,'Activity 8'!Q$7:Q$13,\"N/A\",0,1)","v":"N/A"},{"$f":"_xlfn.XLOOKUP($E13,'Activity 8'!$B$7:$B$13,'Activity 8'!R$7:R$13,\"N/A\",0,1)","v":"N/A"},{"$f":"_xlfn.XLOOKUP($E13,'Activity 8'!$B$7:$B$13,'Activity 8'!S$7:S$13,\"N/A\",0,1)","v":"N/A"},{"$f":"_xlfn.XLOOKUP($E13,'Activity 8'!$B$7:$B$13,'Activity 8'!T$7:T$13,\"N/A\",0,1)","v":"N/A"},{"$f":"_xlfn.XLOOKUP($E13,'Activity 8'!$B$7:$B$13,'Activity 8'!U$7:U$13,\"N/A\",0,1)","v":"N/A"},{"$f":"_xlfn.XLOOKUP($E13,'Activity 8'!$B$7:$B$13,'Activity 8'!V$7:V$13,\"N/A\",0,1)","v":"N/A"},{"$f":"_xlfn.XLOOKUP($E13,'Activity 8'!$B$17:$B$23,'Activity 8'!D$17:D$23,\"N/A\",0,1)","v":"N/A"},{"$f":"_xlfn.XLOOKUP($E13,'Activity 8'!$B$17:$B$23,'Activity 8'!E$17:E$23,\"N/A\",0,1)","v":"N/A"},{"$f":"_xlfn.XLOOKUP($E13,'Activity 8'!$B$17:$B$23,'Activity 8'!F$17:F$23,\"N/A\",0,1)","v":"N/A"},{"$f":"_xlfn.XLOOKUP($E13,'Activity 8'!$B$17:$B$23,'Activity 8'!G$17:G$23,\"N/A\",0,1)","v":"N/A"},{"$f":"_xlfn.XLOOKUP($E13,'Activity 8'!$B$17:$B$23,'Activity 8'!H$17:H$23,\"N/A\",0,1)","v":"N/A"},{"$f":"_xlfn.XLOOKUP($E13,'Activity 8'!$B$17:$B$23,'Activity 8'!I$17:I$23,\"N/A\",0,1)","v":"N/A"},{"$f":"_xlfn.XLOOKUP($E13,'Activity 8'!$B$17:$B$23,'Activity 8'!J$17:J$23,\"N/A\",0,1)","v":"N/A"},{"$f":"_xlfn.XLOOKUP($E13,'Activity 8'!$B$17:$B$23,'Activity 8'!K$17:K$23,\"N/A\",0,1)","v":"N/A"},{"$f":"_xlfn.XLOOKUP($E13,'Activity 8'!$B$17:$B$23,'Activity 8'!L$17:L$23,\"N/A\",0,1)","v":"N/A"},{"$f":"_xlfn.XLOOKUP($E13,'Activity 8'!$B$17:$B$23,'Activity 8'!M$17:M$23,\"N/A\",0,1)","v":"N/A"},{"$f":"_xlfn.XLOOKUP($E13,'Activity 8'!$B$17:$B$23,'Activity 8'!N$17:N$23,\"N/A\",0,1)","v":"N/A"},{"$f":"_xlfn.XLOOKUP($E13,'Activity 8'!$B$17:$B$23,'Activity 8'!P$17:P$23,\"N/A\",0,1)","v":"N/A"},{"$f":"_xlfn.XLOOKUP(E13,'Activity 9'!$B$7:$B$13,'Activity 9'!$A$7:$A$13,\"No\",0,1)","v":"No"},{"$f":"_xlfn.XLOOKUP($E13,'Activity 9'!$B$7:$B$13,'Activity 9'!J$7:J$13,\"N/A\",0,1)","v":"N/A"},{"$f":"_xlfn.XLOOKUP($E13,'Activity 9'!$B$7:$B$13,'Activity 9'!K$7:K$13,\"N/A\",0,1)","v":"N/A"},{"$f":"_xlfn.XLOOKUP($E13,'Activity 9'!$B$7:$B$13,'Activity 9'!L$7:L$13,\"N/A\",0,1)","v":"N/A"},{"$f":"_xlfn.XLOOKUP($E13,'Activity 9'!$B$7:$B$13,'Activity 9'!M$7:M$13,\"N/A\",0,1)","v":"N/A"},{"$f":"_xlfn.XLOOKUP($E13,'Activity 9'!$B$7:$B$13,'Activity 9'!N$7:N$13,\"N/A\",0,1)","v":"N/A"},{"$f":"_xlfn.XLOOKUP($E13,'Activity 9'!$B$7:$B$13,'Activity 9'!O$7:O$13,\"N/A\",0,1)","v":"N/A"},{"$f":"_xlfn.XLOOKUP($E13,'Activity 9'!$B$7:$B$13,'Activity 9'!P$7:P$13,\"N/A\",0,1)","v":"N/A"},{"$f":"_xlfn.XLOOKUP($E13,'Activity 9'!$B$7:$B$13,'Activity 9'!Q$7:Q$13,\"N/A\",0,1)","v":"N/A"},{"$f":"_xlfn.XLOOKUP($E13,'Activity 9'!$B$7:$B$13,'Activity 9'!R$7:R$13,\"N/A\",0,1)","v":"N/A"},{"$f":"_xlfn.XLOOKUP($E13,'Activity 9'!$B$7:$B$13,'Activity 9'!S$7:S$13,\"N/A\",0,1)","v":"N/A"},{"$f":"_xlfn.XLOOKUP($E13,'Activity 9'!$B$7:$B$13,'Activity 9'!T$7:T$13,\"N/A\",0,1)","v":"N/A"},{"$f":"_xlfn.XLOOKUP($E13,'Activity 9'!$B$17:$B$23,'Activity 9'!E$17:E$23,\"N/A\",0,1)","v":"N/A"},{"$f":"_xlfn.XLOOKUP($E13,'Activity 9'!$B$17:$B$23,'Activity 9'!F$17:F$23,\"N/A\",0,1)","v":"N/A"},{"$f":"_xlfn.XLOOKUP($E13,'Activity 9'!$B$17:$B$23,'Activity 9'!G$17:G$23,\"N/A\",0,1)","v":"N/A"},{"$f":"_xlfn.XLOOKUP($E13,'Activity 9'!$B$17:$B$23,'Activity 9'!H$17:H$23,\"N/A\",0,1)","v":"N/A"},{"$f":"_xlfn.XLOOKUP($E13,'Activity 9'!$B$17:$B$23,'Activity 9'!I$17:I$23,\"N/A\",0,1)","v":"N/A"},{"$f":"_xlfn.XLOOKUP($E13,'Activity 9'!$B$17:$B$23,'Activity 9'!J$17:J$23,\"N/A\",0,1)","v":"N/A"},{"$f":"_xlfn.XLOOKUP($E13,'Activity 9'!$B$17:$B$23,'Activity 9'!K$17:K$23,\"N/A\",0,1)","v":"N/A"},{"$f":"_xlfn.XLOOKUP($E13,'Activity 9'!$B$17:$B$23,'Activity 9'!L$17:L$23,\"N/A\",0,1)","v":"N/A"},{"$f":"_xlfn.XLOOKUP($E13,'Activity 9'!$B$17:$B$23,'Activity 9'!N$17:N$23,\"N/A\",0,1)","v":"N/A"},{"$f":"_xlfn.XLOOKUP($E13,'Activity 9'!$B$17:$B$23,'Activity 9'!O$17:O$23,\"N/A\",0,1)","v":"N/A"},{"$f":"_xlfn.XLOOKUP($E13,'Activity 9'!$B$17:$B$23,'Activity 9'!Q$17:Q$23,\"N/A\",0,1)","v":"N/A"},{"$f":"_xlfn.XLOOKUP($E13,'Activity 10'!$B$7:$B$13,'Activity 10'!A$7:A$13,\"No\",0,1)","v":"No"},{"$f":"_xlfn.XLOOKUP($E13,'Activity 10'!$B$7:$B$13,'Activity 10'!J$7:J$13,\"N/A\",0,1)","v":"N/A"},{"$f":"_xlfn.XLOOKUP($E13,'Activity 10'!$B$7:$B$13,'Activity 10'!K$7:K$13,\"N/A\",0,1)","v":"N/A"},{"$f":"_xlfn.XLOOKUP($E13,'Activity 10'!$B$7:$B$13,'Activity 10'!L$7:L$13,\"N/A\",0,1)","v":"N/A"},{"$f":"_xlfn.XLOOKUP($E13,'Activity 10'!$B$7:$B$13,'Activity 10'!M$7:M$13,\"N/A\",0,1)","v":"N/A"},{"$f":"_xlfn.XLOOKUP($E13,'Activity 10'!$B$7:$B$13,'Activity 10'!N$7:N$13,\"N/A\",0,1)","v":"N/A"},{"$f":"_xlfn.XLOOKUP($E13,'Activity 10'!$B$7:$B$13,'Activity 10'!O$7:O$13,\"N/A\",0,1)","v":"N/A"},{"$f":"_xlfn.XLOOKUP($E13,'Activity 10'!$B$7:$B$13,'Activity 10'!P$7:P$13,\"N/A\",0,1)","v":"N/A"},{"$f":"_xlfn.XLOOKUP($E13,'Activity 10'!$B$7:$B$13,'Activity 10'!Q$7:Q$13,\"N/A\",0,1)","v":"N/A"},{"$f":"_xlfn.XLOOKUP($E13,'Activity 10'!$B$7:$B$13,'Activity 10'!R$7:R$13,\"N/A\",0,1)","v":"N/A"},{"$f":"_xlfn.XLOOKUP($E13,'Activity 10'!$B$7:$B$13,'Activity 10'!S$7:S$13,\"N/A\",0,1)","v":"N/A"},{"$f":"_xlfn.XLOOKUP($E13,'Activity 10'!$B$7:$B$13,'Activity 10'!T$7:T$13,\"N/A\",0,1)","v":"N/A"},{"$f":"_xlfn.XLOOKUP($E13,'Activity 10'!$B$7:$B$13,'Activity 10'!U$7:U$13,\"N/A\",0,1)","v":"N/A"},{"$f":"_xlfn.XLOOKUP($E13,'Activity 10'!$B$7:$B$13,'Activity 10'!V$7:V$13,\"N/A\",0,1)","v":"N/A"},{"$f":"_xlfn.XLOOKUP($E13,'Activity 10'!$B$17:$B$23,'Activity 10'!E$17:E$23,\"N/A\",0,1)","v":"N/A"},{"$f":"_xlfn.XLOOKUP($E13,'Activity 10'!$B$17:$B$23,'Activity 10'!F$17:F$23,\"N/A\",0,1)","v":"N/A"},{"$f":"_xlfn.XLOOKUP($E13,'Activity 10'!$B$17:$B$23,'Activity 10'!G$17:G$23,\"N/A\",0,1)","v":"N/A"},{"$f":"_xlfn.XLOOKUP($E13,'Activity 10'!$B$17:$B$23,'Activity 10'!H$17:H$23,\"N/A\",0,1)","v":"N/A"},{"$f":"_xlfn.XLOOKUP($E13,'Activity 10'!$B$17:$B$23,'Activity 10'!I$17:I$23,\"N/A\",0,1)","v":"N/A"},{"$f":"_xlfn.XLOOKUP($E13,'Activity 10'!$B$17:$B$23,'Activity 10'!J$17:J$23,\"N/A\",0,1)","v":"N/A"},{"$f":"_xlfn.XLOOKUP($E13,'Activity 10'!$B$17:$B$23,'Activity 10'!K$17:K$23,\"N/A\",0,1)","v":"N/A"},{"$f":"_xlfn.XLOOKUP($E13,'Activity 10'!$B$17:$B$23,'Activity 10'!L$17:L$23,\"N/A\",0,1)","v":"N/A"},{"$f":"_xlfn.XLOOKUP($E13,'Activity 10'!$B$17:$B$23,'Activity 10'!M$17:M$23,\"N/A\",0,1)","v":"N/A"},{"$f":"_xlfn.XLOOKUP($E13,'Activity 10'!$B$17:$B$23,'Activity 10'!N$17:N$23,\"N/A\",0,1)","v":"N/A"},{"$f":"_xlfn.XLOOKUP($E13,'Activity 10'!$B$17:$B$23,'Activity 10'!P$17:P$23,\"N/A\",0,1)","v":"N/A"},{"$f":"_xlfn.XLOOKUP($E13,'Competitive Activity 1'!B$7:B$13,'Competitive Activity 1'!A$7:A$13,\"No\",0,1)","v":"No"},{"$f":"_xlfn.XLOOKUP($E13,'Competitive Activity 1'!$B$7:$B$13,'Competitive Activity 1'!H$7:H$13,\"N/A\",0,1)","v":"N/A"},{"$f":"_xlfn.XLOOKUP($E13,'Competitive Activity 1'!$B$7:$B$13,'Competitive Activity 1'!I$7:I$13,\"N/A\",0,1)","v":"N/A"},{"$f":"_xlfn.XLOOKUP($E13,'Competitive Activity 1'!$B$7:$B$13,'Competitive Activity 1'!J$7:J$13,\"N/A\",0,1)","v":"N/A"},{"$f":"_xlfn.XLOOKUP($E13,'Competitive Activity 1'!$B$7:$B$13,'Competitive Activity 1'!K$7:K$13,\"N/A\",0,1)","v":"N/A"},{"$f":"_xlfn.XLOOKUP($E13,'Competitive Activity 1'!$B$7:$B$13,'Competitive Activity 1'!L$7:L$13,\"N/A\",0,1)","v":"N/A"},{"$f":"_xlfn.XLOOKUP($E13,'Competitive Activity 1'!$B$7:$B$13,'Competitive Activity 1'!M$7:M$13,\"N/A\",0,1)","v":"N/A"},{"$f":"_xlfn.XLOOKUP($E13,'Competitive Activity 1'!$B$7:$B$13,'Competitive Activity 1'!N$7:N$13,\"N/A\",0,1)","v":"N/A"},{"$f":"_xlfn.XLOOKUP($E13,'Competitive Activity 1'!$B$7:$B$13,'Competitive Activity 1'!O$7:O$13,\"N/A\",0,1)","v":"N/A"},{"$f":"_xlfn.XLOOKUP($E13,'Competitive Activity 1'!$B$7:$B$13,'Competitive Activity 1'!P$7:P$13,\"N/A\",0,1)","v":"N/A"},{"$f":"_xlfn.XLOOKUP($E13,'Competitive Activity 1'!$B$7:$B$13,'Competitive Activity 1'!Q$7:Q$13,\"N/A\",0,1)","v":"N/A"},{"$f":"_xlfn.XLOOKUP($E13,'Competitive Activity 1'!$B$7:$B$13,'Competitive Activity 1'!R$7:R$13,\"N/A\",0,1)","v":"N/A"},{"$f":"_xlfn.XLOOKUP($E13,'Competitive Activity 1'!$B$7:$B$13,'Competitive Activity 1'!S$7:S$13,\"N/A\",0,1)","v":"N/A"},{"$f":"_xlfn.XLOOKUP($E13,'Competitive Activity 1'!$B$7:$B$13,'Competitive Activity 1'!T$7:T$13,\"N/A\",0,1)","v":"N/A"},{"$f":"_xlfn.XLOOKUP($E13,'Competitive Activity 1'!$B$7:$B$13,'Competitive Activity 1'!U$7:U$13,\"N/A\",0,1)","v":"N/A"},{"$f":"_xlfn.XLOOKUP($E13,'Competitive Activity 1'!$B$17:$B$23,'Competitive Activity 1'!C$17:C$23,\"N/A\",0,1)","v":"N/A"},{"$f":"_xlfn.XLOOKUP($E13,'Competitive Activity 1'!$B$17:$B$23,'Competitive Activity 1'!D$17:D$23,\"N/A\",0,1)","v":"N/A"},{"$f":"_xlfn.XLOOKUP($E13,'Competitive Activity 1'!$B$17:$B$23,'Competitive Activity 1'!E$17:E$23,\"N/A\",0,1)","v":"N/A"},{"$f":"_xlfn.XLOOKUP($E13,'Competitive Activity 1'!$B$17:$B$23,'Competitive Activity 1'!F$17:F$23,\"N/A\",0,1)","v":"N/A"},{"$f":"_xlfn.XLOOKUP($E13,'Competitive Activity 1'!$B$17:$B$23,'Competitive Activity 1'!G$17:G$23,\"N/A\",0,1)","v":"N/A"},{"$f":"_xlfn.XLOOKUP($E13,'Competitive Activity 1'!$B$17:$B$23,'Competitive Activity 1'!H$17:H$23,\"N/A\",0,1)","v":"N/A"},{"$f":"_xlfn.XLOOKUP($E13,'Competitive Activity 1'!$B$17:$B$23,'Competitive Activity 1'!I$17:I$23,\"N/A\",0,1)","v":"N/A"},{"$f":"_xlfn.XLOOKUP($E13,'Competitive Activity 1'!$B$17:$B$23,'Competitive Activity 1'!J$17:J$23,\"N/A\",0,1)","v":"N/A"},{"$f":"_xlfn.XLOOKUP($E13,'Competitive Activity 1'!$B$17:$B$23,'Competitive Activity 1'!K$17:K$23,\"N/A\",0,1)","v":"N/A"},{"$f":"_xlfn.XLOOKUP($E13,'Competitive Activity 1'!$B$17:$B$23,'Competitive Activity 1'!M$17:M$23,\"N/A\",0,1)","v":"N/A"},{"$f":"_xlfn.XLOOKUP($E13,'Competitive Activity 1'!$B$17:$B$23,'Competitive Activity 1'!N$17:N$23,\"N/A\",0,1)","v":"N/A"},{"$f":"_xlfn.XLOOKUP($E13,'Competitive Activity 1'!$B$17:$B$23,'Competitive Activity 1'!P$17:P$23,\"N/A\",0,1)","v":"N/A"},{"$f":"_xlfn.XLOOKUP($E13,'Competitive Activity 2'!$B$7:$B$13,'Competitive Activity 2'!A$7:A$13,\"No\",0)","v":"No"},{"$f":"_xlfn.XLOOKUP($E13,'Competitive Activity 2'!$B$7:$B$13,'Competitive Activity 2'!L$7:L$13,\"N/A\",0)","v":"N/A"},{"$f":"_xlfn.XLOOKUP($E13,'Competitive Activity 2'!$B$7:$B$13,'Competitive Activity 2'!M$7:M$13,\"N/A\",0)","v":"N/A"},{"$f":"_xlfn.XLOOKUP($E13,'Competitive Activity 2'!$B$7:$B$13,'Competitive Activity 2'!N$7:N$13,\"N/A\",0)","v":"N/A"},{"$f":"_xlfn.XLOOKUP($E13,'Competitive Activity 2'!$B$7:$B$13,'Competitive Activity 2'!O$7:O$13,\"N/A\",0)","v":"N/A"},{"$f":"_xlfn.XLOOKUP($E13,'Competitive Activity 2'!$B$7:$B$13,'Competitive Activity 2'!P$7:P$13,\"N/A\",0)","v":"N/A"},{"$f":"_xlfn.XLOOKUP($E13,'Competitive Activity 2'!$B$7:$B$13,'Competitive Activity 2'!Q$7:Q$13,\"N/A\",0)","v":"N/A"},{"$f":"_xlfn.XLOOKUP($E13,'Competitive Activity 2'!$B$7:$B$13,'Competitive Activity 2'!R$7:R$13,\"N/A\",0)","v":"N/A"},{"$f":"_xlfn.XLOOKUP($E13,'Competitive Activity 2'!$B$7:$B$13,'Competitive Activity 2'!S$7:S$13,\"N/A\",0)","v":"N/A"},{"$f":"_xlfn.XLOOKUP($E13,'Competitive Activity 2'!$B$7:$B$13,'Competitive Activity 2'!T$7:T$13,\"N/A\",0)","v":"N/A"},{"$f":"_xlfn.XLOOKUP($E13,'Competitive Activity 2'!$B$7:$B$13,'Competitive Activity 2'!U$7:U$13,\"N/A\",0)","v":"N/A"},{"$f":"_xlfn.XLOOKUP($E13,'Competitive Activity 2'!$B$17:$B$23,'Competitive Activity 2'!D$17:D$23,\"N/A\",0)","v":"N/A"},{"$f":"_xlfn.XLOOKUP($E13,'Competitive Activity 2'!$B$17:$B$23,'Competitive Activity 2'!E$17:E$23,\"N/A\",0)","v":"N/A"},{"$f":"_xlfn.XLOOKUP($E13,'Competitive Activity 2'!$B$17:$B$23,'Competitive Activity 2'!F$17:F$23,\"N/A\",0)","v":"N/A"},{"$f":"_xlfn.XLOOKUP($E13,'Competitive Activity 2'!$B$17:$B$23,'Competitive Activity 2'!G$17:G$23,\"N/A\",0)","v":"N/A"},{"$f":"_xlfn.XLOOKUP($E13,'Competitive Activity 2'!$B$17:$B$23,'Competitive Activity 2'!H$17:H$23,\"N/A\",0)","v":"N/A"},{"$f":"_xlfn.XLOOKUP($E13,'Competitive Activity 2'!$B$17:$B$23,'Competitive Activity 2'!I$17:I$23,\"N/A\",0)","v":"N/A"},{"$f":"_xlfn.XLOOKUP($E13,'Competitive Activity 2'!$B$17:$B$23,'Competitive Activity 2'!J$17:J$23,\"N/A\",0)","v":"N/A"},{"$f":"_xlfn.XLOOKUP($E13,'Competitive Activity 2'!$B$17:$B$23,'Competitive Activity 2'!K$17:K$23,\"N/A\",0)","v":"N/A"},{"$f":"_xlfn.XLOOKUP($E13,'Competitive Activity 2'!$B$17:$B$23,'Competitive Activity 2'!L$17:L$23,\"N/A\",0)","v":"N/A"},{"$f":"_xlfn.XLOOKUP($E13,'Competitive Activity 2'!$B$17:$B$23,'Competitive Activity 2'!M$17:M$23,\"N/A\",0)","v":"N/A"},{"$f":"_xlfn.XLOOKUP($E13,'Competitive Activity 2'!$B$17:$B$23,'Competitive Activity 2'!N$17:N$23,\"N/A\",0)","v":"N/A"},{"$f":"_xlfn.XLOOKUP($E13,'Competitive Activity 2'!$B$27:$B$33,'Competitive Activity 2'!D$27:D$33,\"N/A\",0)","v":"N/A"},{"$f":"_xlfn.XLOOKUP($E13,'Competitive Activity 2'!$B$27:$B$33,'Competitive Activity 2'!E$27:E$33,\"N/A\",0)","v":"N/A"},{"$f":"_xlfn.XLOOKUP($E13,'Competitive Activity 2'!$B$27:$B$33,'Competitive Activity 2'!F$27:F$33,\"N/A\",0)","v":"N/A"},{"$f":"_xlfn.XLOOKUP($E13,'Competitive Activity 2'!$B$27:$B$33,'Competitive Activity 2'!G$27:G$33,\"N/A\",0)","v":"N/A"},{"$f":"_xlfn.XLOOKUP($E13,'Competitive Activity 2'!$B$27:$B$33,'Competitive Activity 2'!H$27:H$33,\"N/A\",0)","v":"N/A"},{"$f":"_xlfn.XLOOKUP($E13,'Competitive Activity 2'!$B$27:$B$33,'Competitive Activity 2'!I$27:I$33,\"N/A\",0)","v":"N/A"},{"$f":"_xlfn.XLOOKUP($E13,'Competitive Activity 2'!$B$27:$B$33,'Competitive Activity 2'!J$27:J$33,\"N/A\",0)","v":"N/A"},{"$f":"_xlfn.XLOOKUP($E13,'Competitive Activity 2'!$B$27:$B$33,'Competitive Activity 2'!K$27:K$33,\"N/A\",0)","v":"N/A"},{"$f":"_xlfn.XLOOKUP($E13,'Competitive Activity 2'!$B$27:$B$33,'Competitive Activity 2'!M$27:M$33,\"N/A\",0)","v":"N/A"}]
[{"$f":"'1-Cover Sheet'!$C$8","v":"Select One"},{"$f":"'1-Cover Sheet'!$F$8","v":"Select One"},{"$f":"'Summary Sheet'!$D$8","v":0},{"$f":"'Summary Sheet'!$D$10","v":0},{"$f":"'Drop Down Box'!B178","v":0},{"$f":"'Drop Down Box'!C178","v":0},{"$f":"'Drop Down Box'!D178","v":"Select One"},{"$f":"_xlfn.XLOOKUP(E14,'Drop Down Box'!$B$166:$B$249,'Drop Down Box'!$A$166:$A$249,\"Unknown\",0)","v":"Activity 1"},{"$f":"_xlfn.XLOOKUP($E14,'Activity 2'!$B$17:$B$23,'Activity 2'!$N$17:$N$23,\"N/A\",0)","v":"N/A"},{"$f":"_xlfn.XLOOKUP($E14,'Activity 2'!$B$17:$B$23,'Activity 2'!$P$17:$P$23,\"N/A\",0)","v":"N/A"},{"$f":"_xlfn.XLOOKUP($E14,'Activity 2'!$B$7:$B$13,'Activity 2'!E$7:E$13,0,0)","v":0},{"$f":"_xlfn.XLOOKUP($E14,'Activity 2'!$B$7:$B$13,'Activity 2'!F$7:F$13,0,0)","v":"00:00:00"},{"$f":"_xlfn.XLOOKUP($E14,'Activity 2'!$B$7:$B$13,'Activity 2'!G$7:G$13,0,0)","v":0},{"$f":"_xlfn.XLOOKUP($E14,'Activity 1'!$B$7:$B$13,'Activity 1'!$A$7:$A$13,\"No\",0,1)","v":"No"},{"$f":"_xlfn.XLOOKUP($E14,'Activity 1'!$B$7:$B$13,'Activity 1'!$H$7:$H$13,\"N/A\",0,1)","v":"N/A"},{"$f":"_xlfn.XLOOKUP($E14,'Activity 1'!$B$7:$B$13,'Activity 1'!I$7:I$13,\"N/A\",0,1)","v":"N/A"},{"$f":"_xlfn.XLOOKUP($E14,'Activity 1'!$B$7:$B$13,'Activity 1'!J$7:J$13,\"N/A\",0,1)","v":"N/A"},{"$f":"_xlfn.XLOOKUP($E14,'Activity 1'!$B$7:$B$13,'Activity 1'!K$7:K$13,\"N/A\",0,1)","v":"N/A"},{"$f":"_xlfn.XLOOKUP($E14,'Activity 1'!$B$7:$B$13,'Activity 1'!L$7:L$13,\"N/A\",0,1)","v":"N/A"},{"$f":"_xlfn.XLOOKUP($E14,'Activity 1'!$B$7:$B$13,'Activity 1'!M$7:M$13,\"N/A\",0,1)","v":"N/A"},{"$f":"_xlfn.XLOOKUP($E14,'Activity 1'!$B$7:$B$13,'Activity 1'!N$7:N$13,\"N/A\",0,1)","v":"N/A"},0,{"$f":"_xlfn.XLOOKUP($E14,'Activity 1'!$B$7:$B$13,'Activity 1'!O$7:O$13,\"N/A\",0,1)","v":"N/A"},{"$f":"_xlfn.XLOOKUP($E14,'Activity 1'!$B$7:$B$13,'Activity 1'!P$7:P$13,\"N/A\",0,1)","v":"N/A"},{"$f":"_xlfn.XLOOKUP($E14,'Activity 1'!$B$7:$B$13,'Activity 1'!Q$7:Q$13,\"N/A\",0,1)","v":"N/A"},{"$f":"_xlfn.XLOOKUP($E14,'Activity 1'!$B$7:$B$13,'Activity 1'!R$7:R$13,\"N/A\",0,1)","v":"N/A"},{"$f":"_xlfn.XLOOKUP($E14,'Activity 1'!$B$7:$B$13,'Activity 1'!S$7:S$13,\"N/A\",0,1)","v":"N/A"},{"$f":"_xlfn.XLOOKUP($E14,'Activity 1'!$B$7:$B$13,'Activity 1'!T$7:T$13,\"N/A\",0,1)","v":"N/A"},{"$f":"_xlfn.XLOOKUP($E14,'Activity 1'!$B$7:$B$13,'Activity 1'!U$7:U$13,\"N/A\",0,1)","v":"N/A"},{"$f":"_xlfn.XLOOKUP($E14,'Activity 1'!$B$7:$B$13,'Activity 1'!V$7:V$13,\"N/A\",0,1)","v":"N/A"},{"$f":"_xlfn.XLOOKUP($E14,'Activity 1'!$B$17:$B$23,'Activity 1'!C$17:C$23,\"N/A\",0,1)","v":"N/A"},{"$f":"_xlfn.XLOOKUP($E14,'Activity 1'!$B$17:$B$23,'Activity 1'!D$17:D$23,\"N/A\",0,1)","v":"N/A"},{"$f":"_xlfn.XLOOKUP($E14,'Activity 1'!$B$17:$B$23,'Activity 1'!E$17:E$23,\"N/A\",0,1)","v":"N/A"},{"$f":"_xlfn.XLOOKUP($E14,'Activity 1'!$B$17:$B$23,'Activity 1'!F$17:F$23,\"N/A\",0,1)","v":"N/A"},{"$f":"_xlfn.XLOOKUP($E14,'Activity 1'!$B$17:$B$23,'Activity 1'!G$17:G$23,\"N/A\",0,1)","v":"N/A"},{"$f":"_xlfn.XLOOKUP($E14,'Activity 1'!$B$17:$B$23,'Activity 1'!H$17:H$23,\"N/A\",0,1)","v":"N/A"},{"$f":"_xlfn.XLOOKUP($E14,'Activity 1'!$B$17:$B$23,'Activity 1'!I$17:I$23,\"N/A\",0,1)","v":"N/A"},{"$f":"_xlfn.XLOOKUP($E14,'Activity 1'!$B$17:$B$23,'Activity 1'!J$17:J$23,\"N/A\",0,1)","v":"N/A"},{"$f":"_xlfn.XLOOKUP($E14,'Activity 1'!$B$17:$B$23,'Activity 1'!K$17:K$23,\"N/A\",0,1)","v":"N/A"},{"$f":"_xlfn.XLOOKUP($E14,'Activity 1'!$B$17:$B$23,'Activity 1'!L$17:L$23,\"N/A\",0,1)","v":"N/A"},{"$f":"_xlfn.XLOOKUP($E14,'Activity 1'!$B$17:$B$23,'Activity 1'!M$17:M$23,\"N/A\",0,1)","v":"N/A"},{"$f":"_xlfn.XLOOKUP($E14,'Activity 1'!$B$17:$B$23,'Activity 1'!O$17:O$23,\"N/A\",0,1)","v":"N/A"},{"$f":"_xlfn.XLOOKUP($E14,'Activity 1'!$B$17:$B$23,'Activity 1'!Q$17:Q$23,\"N/A\",0,1)","v":"N/A"},{"$f":"_xlfn.XLOOKUP($E14,'Activity 2'!$B$7:$B$13,'Activity 2'!$A$7:$A$13,\"No\",0,1)","v":"No"},{"$f":"_xlfn.XLOOKUP($E14,'Activity 2'!B$7:B$13,'Activity 2'!H$7:H$13,\"N/A\",0)","v":"N/A"},{"$f":"_xlfn.XLOOKUP($E14,'Activity 2'!C$7:C$13,'Activity 2'!I$7:I$13,\"N/A\",0)","v":"N/A"},{"$f":"_xlfn.XLOOKUP($E14,'Activity 2'!D$7:D$13,'Activity 2'!J$7:J$13,\"N/A\",0)","v":"N/A"},{"$f":"_xlfn.XLOOKUP($E14,'Activity 2'!E$7:E$13,'Activity 2'!K$7:K$13,\"N/A\",0)","v":"N/A"},{"$f":"_xlfn.XLOOKUP($E14,'Activity 2'!F$7:F$13,'Activity 2'!L$7:L$13,\"N/A\",0)","v":"N/A"},{"$f":"_xlfn.XLOOKUP($E14,'Activity 2'!G$7:G$13,'Activity 2'!M$7:M$13,\"N/A\",0)","v":"N/A"},{"$f":"_xlfn.XLOOKUP($E14,'Activity 2'!H$7:H$13,'Activity 2'!N$7:N$13,\"N/A\",0)","v":"N/A"},{"$f":"_xlfn.XLOOKUP($E14,'Activity 2'!I$7:I$13,'Activity 2'!O$7:O$13,\"N/A\",0)","v":"N/A"},{"$f":"_xlfn.XLOOKUP($E14,'Activity 2'!J$7:J$13,'Activity 2'!P$7:P$13,\"N/A\",0)","v":"N/A"},{"$f":"_xlfn.XLOOKUP($E14,'Activity 2'!K$7:K$13,'Activity 2'!Q$7:Q$13,\"N/A\",0)","v":"N/A"},{"$f":"_xlfn.XLOOKUP($E14,'Activity 2'!L$7:L$13,'Activity 2'!R$7:R$13,\"N/A\",0)","v":"N/A"},{"$f":"_xlfn.XLOOKUP($E14,'Activity 2'!M$7:M$13,'Activity 2'!S$7:S$13,\"N/A\",0)","v":"N/A"},{"$f":"_xlfn.XLOOKUP($E14,'Activity 2'!N$7:N$13,'Activity 2'!T$7:T$13,\"N/A\",0)","v":"N/A"},{"$f":"_xlfn.XLOOKUP($E14,'Activity 2'!O$7:O$13,'Activity 2'!U$7:U$13,\"N/A\",0)","v":"N/A"},{"$f":"_xlfn.XLOOKUP($E14,'Activity 2'!P$7:P$13,'Activity 2'!V$7:V$13,\"N/A\",0)","v":"N/A"},{"$f":"_xlfn.XLOOKUP($E14,'Activity 2'!$B$17:$B$23,'Activity 2'!C$17:C$23,\"N/A\",0,1)","v":"N/A"},{"$f":"_xlfn.XLOOKUP($E14,'Activity 2'!$B$17:$B$23,'Activity 2'!D$17:D$23,\"N/A\",0,1)","v":"N/A"},{"$f":"_xlfn.XLOOKUP($E14,'Activity 2'!$B$17:$B$23,'Activity 2'!E$17:E$23,\"N/A\",0,1)","v":"N/A"},{"$f":"_xlfn.XLOOKUP($E14,'Activity 2'!$B$17:$B$23,'Activity 2'!F$17:F$23,\"N/A\",0,1)","v":"N/A"},{"$f":"_xlfn.XLOOKUP($E14,'Activity 2'!$B$17:$B$23,'Activity 2'!G$17:G$23,\"N/A\",0,1)","v":"N/A"},{"$f":"_xlfn.XLOOKUP($E14,'Activity 2'!$B$17:$B$23,'Activity 2'!H$17:H$23,\"N/A\",0,1)","v":"N/A"},{"$f":"_xlfn.XLOOKUP($E14,'Activity 2'!$B$17:$B$23,'Activity 2'!I$17:I$23,\"N/A\",0,1)","v":"N/A"},{"$f":"_xlfn.XLOOKUP($E14,'Activity 2'!$B$17:$B$23,'Activity 2'!J$17:J$23,\"N/A\",0,1)","v":"N/A"},{"$f":"_xlfn.XLOOKUP($E14,'Activity 2'!$B$17:$B$23,'Activity 2'!K$17:K$23,\"N/A\",0,1)","v":"N/A"},{"$f":"_xlfn.XLOOKUP($E14,'Activity 2'!$B$17:$B$23,'Activity 2'!L$17:L$23,\"N/A\",0,1)","v":"N/A"},{"$f":"_xlfn.XLOOKUP($E14,'Activity 2'!$B$17:$B$23,'Activity 2'!M$17:M$23,\"N/A\",0,1)","v":"N/A"},{"$f":"_xlfn.XLOOKUP($E14,'Activity 2'!$B$17:$B$23,'Activity 2'!O$17:O$23,\"N/A\",0,1)","v":"N/A"},{"$f":"_xlfn.XLOOKUP($E14,'Activity 2'!$B$17:$B$23,'Activity 2'!Q$17:Q$23,\"N/A\",0,1)","v":"N/A"},null,{"$f":"_xlfn.XLOOKUP($E14,'Activity 3'!$B$8:$B$14,'Activity 3'!K$8:K$14,\"N/A\",0,1)","v":"N/A"},{"$f":"_xlfn.XLOOKUP($E14,'Activity 3'!$B$8:$B$14,'Activity 3'!L$8:L$14,\"N/A\",0,1)","v":"N/A"},{"$f":"_xlfn.XLOOKUP($E14,'Activity 3'!$B$8:$B$14,'Activity 3'!M$8:M$14,\"N/A\",0,1)","v":"N/A"},{"$f":"_xlfn.XLOOKUP($E14,'Activity 3'!$B$8:$B$14,'Activity 3'!N$8:N$14,\"N/A\",0,1)","v":"N/A"},{"$f":"_xlfn.XLOOKUP($E14,'Activity 3'!$B$8:$B$14,'Activity 3'!O$8:O$14,\"N/A\",0,1)","v":"N/A"},{"$f":"_xlfn.XLOOKUP($E14,'Activity 3'!$B$8:$B$14,'Activity 3'!R$8:R$14,\"N/A\",0,1)","v":"N/A"},{"$f":"_xlfn.XLOOKUP($E14,'Activity 4'!$B$8:$B$14,'Activity 4'!$A$8:$A$14,\"No\",0,1)","v":"No"},{"$f":"_xlfn.XLOOKUP($E14,'Activity 4'!$B$8:$B$14,'Activity 4'!L$8:L$14,\"N/A\",0,1)","v":"N/A"},{"$f":"_xlfn.XLOOKUP($E14,'Activity 4'!$B$8:$B$14,'Activity 4'!I$8:I$14,\"N/A\",0,1)","v":"N/A"},{"$f":"_xlfn.XLOOKUP($E14,'Activity 4'!$B$8:$B$14,'Activity 4'!M$8:M$14,\"N/A\",0,1)","v":"N/A"},{"$f":"_xlfn.XLOOKUP($E14,'Activity 5'!$B$8:$B$14,'Activity 5'!$A$8:$A$14,\"No\",0,1)","v":"No"},{"$f":"_xlfn.XLOOKUP($E14,'Activity 5'!$B$8:$B$14,'Activity 5'!J$8:J$14,\"N/A\",0,1)","v":"N/A"},{"$f":"_xlfn.XLOOKUP($E14,'Activity 5'!$B$8:$B$14,'Activity 5'!K$8:K$14,\"N/A\",0,1)","v":"N/A"},{"$f":"_xlfn.XLOOKUP($E14,'Activity 5'!$B$8:$B$14,'Activity 5'!N$8:N$14,\"N/A\",0,1)","v":"N/A"},{"$f":"_xlfn.XLOOKUP($E14,'Activity 5'!$B$8:$B$14,'Activity 5'!O$8:O$14,\"N/A\",0,1)","v":"N/A"},{"$f":"_xlfn.XLOOKUP($E14,'Activity 5'!$B$8:$B$14,'Activity 5'!P$8:P$14,\"N/A\",0,1)","v":"N/A"},{"$f":"_xlfn.XLOOKUP($E14,'Activity 5'!$B$8:$B$14,'Activity 5'!Q$8:Q$14,\"N/A\",0,1)","v":"N/A"},{"$f":"_xlfn.XLOOKUP($E14,'Activity 5'!$B$8:$B$14,'Activity 5'!R$8:R$14,\"N/A\",0,1)","v":"N/A"},{"$f":"_xlfn.XLOOKUP($E14,'Activity 6'!$B$7:$B$13,'Activity 6'!A$7:A$13,\"No\",0,1)","v":"No"},{"$f":"_xlfn.XLOOKUP($E14,'Activity 6'!$B$7:$B$13,'Activity 6'!K$7:K$13,\"N/A\",0,1)","v":"N/A"},{"$f":"_xlfn.XLOOKUP($E14,'Activity 6'!$B$7:$B$13,'Activity 6'!L$7:L$13,\"N/A\",0,1)","v":"N/A"},{"$f":"_xlfn.XLOOKUP($E14,'Activity 6'!$B$7:$B$13,'Activity 6'!M$7:M$13,\"N/A\",0,1)","v":"N/A"},{"$f":"_xlfn.XLOOKUP($E14,'Activity 6'!$B$7:$B$13,'Activity 6'!N$7:N$13,\"N/A\",0,1)","v":"N/A"},{"$f":"_xlfn.XLOOKUP($E14,'Activity 6'!$B$7:$B$13,'Activity 6'!O$7:O$13,\"N/A\",0,1)","v":"N/A"},{"$f":"_xlfn.XLOOKUP($E14,'Activity 6'!$B$7:$B$13,'Activity 6'!P$7:P$13,\"N/A\",0,1)","v":"N/A"},{"$f":"_xlfn.XLOOKUP($E14,'Activity 6'!$B$7:$B$13,'Activity 6'!Q$7:Q$13,\"N/A\",0,1)","v":"N/A"},{"$f":"_xlfn.XLOOKUP($E14,'Activity 6'!$B$7:$B$13,'Activity 6'!R$7:R$13,\"N/A\",0,1)","v":"N/A"},{"$f":"_xlfn.XLOOKUP($E14,'Activity 6'!$B$7:$B$13,'Activity 6'!S$7:S$13,\"N/A\",0,1)","v":"N/A"},{"$f":"_xlfn.XLOOKUP($E14,'Activity 6'!$B$7:$B$13,'Activity 6'!T$7:T$13,\"N/A\",0,1)","v":"N/A"},{"$f":"_xlfn.XLOOKUP($E14,'Activity 6'!$B$7:$B$13,'Activity 6'!U$7:U$13,\"N/A\",0,1)","v":"N/A"},{"$f":"_xlfn.XLOOKUP($E14,'Activity 6'!$B$22:$B$28,'Activity 6'!C$22:C$28,\"N/A\",0,1)","v":"N/A"},{"$f":"_xlfn.XLOOKUP($E14,'Activity 6'!$B$22:$B$28,'Activity 6'!D$22:D$28,\"N/A\",0,1)","v":"N/A"},{"$f":"_xlfn.XLOOKUP($E14,'Activity 6'!$B$22:$B$28,'Activity 6'!E$22:E$28,\"N/A\",0,1)","v":"N/A"},{"$f":"_xlfn.XLOOKUP($E14,'Activity 6'!$B$22:$B$28,'Activity 6'!F$22:F$28,\"N/A\",0,1)","v":"N/A"},{"$f":"_xlfn.XLOOKUP($E14,'Activity 6'!$B$22:$B$28,'Activity 6'!G$22:G$28,\"N/A\",0,1)","v":"N/A"},{"$f":"_xlfn.XLOOKUP($E14,'Activity 6'!$B$22:$B$28,'Activity 6'!H$22:H$28,\"N/A\",0,1)","v":"N/A"},{"$f":"_xlfn.XLOOKUP($E14,'Activity 6'!$B$22:$B$28,'Activity 6'!I$22:I$28,\"N/A\",0,1)","v":"N/A"},{"$f":"_xlfn.XLOOKUP($E14,'Activity 6'!$B$22:$B$28,'Activity 6'!J$22:J$28,\"N/A\",0,1)","v":"N/A"},{"$f":"_xlfn.XLOOKUP($E14,'Activity 6'!$B$22:$B$28,'Activity 6'!K$22:K$28,\"N/A\",0,1)","v":"N/A"},{"$f":"_xlfn.XLOOKUP($E14,'Activity 6'!$B$22:$B$28,'Activity 6'!L$22:L$28,\"N/A\",0,1)","v":"N/A"},{"$f":"_xlfn.XLOOKUP($E14,'Activity 6'!$B$22:$B$28,'Activity 6'!M$22:M$28,\"N/A\",0,1)","v":"N/A"},{"$f":"_xlfn.XLOOKUP($E14,'Activity 6'!$B$22:$B$28,'Activity 6'!N$22:N$28,\"N/A\",0,1)","v":"N/A"},{"$f":"_xlfn.XLOOKUP($E14,'Activity 6'!$B$32:$B$38,'Activity 6'!C$32:C$38,\"N/A\",0,1)","v":"N/A"},{"$f":"_xlfn.XLOOKUP($E14,'Activity 6'!$B$32:$B$38,'Activity 6'!D$32:D$38,\"N/A\",0,1)","v":"N/A"},{"$f":"_xlfn.XLOOKUP($E14,'Activity 6'!$B$32:$B$38,'Activity 6'!E$32:E$38,\"N/A\",0,1)","v":"N/A"},{"$f":"_xlfn.XLOOKUP($E14,'Activity 6'!$B$32:$B$38,'Activity 6'!F$32:F$38,\"N/A\",0,1)","v":"N/A"},{"$f":"_xlfn.XLOOKUP($E14,'Activity 6'!$B$32:$B$38,'Activity 6'!G$32:G$38,\"N/A\",0,1)","v":"N/A"},{"$f":"_xlfn.XLOOKUP($E14,'Activity 6'!$B$32:$B$38,'Activity 6'!H$32:H$38,\"N/A\",0,1)","v":"N/A"},{"$f":"_xlfn.XLOOKUP($E14,'Activity 6'!$B$32:$B$38,'Activity 6'!I$32:I$38,\"N/A\",0,1)","v":"N/A"},{"$f":"_xlfn.XLOOKUP($E14,'Activity 6'!$B$32:$B$38,'Activity 6'!J$32:J$38,\"N/A\",0,1)","v":"N/A"},{"$f":"_xlfn.XLOOKUP($E14,'Activity 6'!$B$32:$B$38,'Activity 6'!K$32:K$38,\"N/A\",0,1)","v":"N/A"},{"$f":"_xlfn.XLOOKUP($E14,'Activity 6'!$B$32:$B$38,'Activity 6'!M$32:M$38,\"N/A\",0,1)","v":"N/A"},{"$f":"_xlfn.XLOOKUP($E14,'Activity 7'!$B$7:$B$13,'Activity 7'!$A$7:$A$13,\"No\",0,1)","v":"No"},{"$f":"_xlfn.XLOOKUP($E14,'Activity 7'!$B$7:$B$13,'Activity 7'!M$7:M$13,\"N/A\",0,1)","v":"N/A"},{"$f":"_xlfn.XLOOKUP($E14,'Activity 7'!$B$7:$B$13,'Activity 7'!K$7:K$13,\"N/A\",0,1)","v":"N/A"},{"$f":"_xlfn.XLOOKUP($E14,'Activity 7'!$B$7:$B$13,'Activity 7'!N$7:N$13,\"N/A\",0,1)","v":"N/A"},{"$f":"_xlfn.XLOOKUP($E14,'Activity 7'!$B$7:$B$13,'Activity 7'!O$7:O$13,\"N/A\",0,1)","v":"N/A"},{"$f":"_xlfn.XLOOKUP($E14,'Activity 7'!$B$7:$B$13,'Activity 7'!P$7:P$13,\"N/A\",0,1)","v":"N/A"},{"$f":"_xlfn.XLOOKUP($E14,'Activity 7'!$B$7:$B$13,'Activity 7'!Q$7:Q$13,\"N/A\",0,1)","v":"N/A"},{"$f":"_xlfn.XLOOKUP($E14,'Activity 7'!$B$7:$B$13,'Activity 7'!R$7:R$13,\"N/A\",0,1)","v":"N/A"},{"$f":"_xlfn.XLOOKUP($E14,'Activity 7'!$B$7:$B$13,'Activity 7'!S$7:S$13,\"N/A\",0,1)","v":"N/A"},{"$f":"_xlfn.XLOOKUP($E14,'Activity 7'!$B$7:$B$13,'Activity 7'!T$7:T$13,\"N/A\",0,1)","v":"N/A"},{"$f":"_xlfn.XLOOKUP($E14,'Activity 7'!$B$7:$B$13,'Activity 7'!U$7:U$13,\"N/A\",0,1)","v":"N/A"},{"$f":"_xlfn.XLOOKUP($E14,'Activity 7'!$B$7:$B$13,'Activity 7'!V$7:V$13,\"N/A\",0,1)","v":"N/A"},{"$f":"_xlfn.XLOOKUP($E14,'Activity 7'!$B$17:$B$23,'Activity 7'!E$17:E$23,\"N/A\",0,1)","v":"N/A"},{"$f":"_xlfn.XLOOKUP($E14,'Activity 7'!$B$17:$B$23,'Activity 7'!G$17:G$23,\"N/A\",0,1)","v":"N/A"},{"$f":"_xlfn.XLOOKUP($E14,'Activity 7'!$B$17:$B$23,'Activity 7'!I$17:I$23,\"N/A\",0,1)","v":"N/A"},{"$f":"_xlfn.XLOOKUP($E14,'Activity 7'!$B$17:$B$23,'Activity 7'!J$17:J$23,\"N/A\",0,1)","v":"N/A"},{"$f":"_xlfn.XLOOKUP($E14,'Activity 7'!$B$17:$B$23,'Activity 7'!K$17:K$23,\"N/A\",0,1)","v":"N/A"},{"$f":"_xlfn.XLOOKUP($E14,'Activity 7'!$B$17:$B$23,'Activity 7'!L$17:L$23,\"N/A\",0,1)","v":"N/A"},{"$f":"_xlfn.XLOOKUP($E14,'Activity 7'!$B$17:$B$23,'Activity 7'!M$17:M$23,\"N/A\",0,1)","v":"N/A"},{"$f":"_xlfn.XLOOKUP($E14,'Activity 7'!$B$17:$B$23,'Activity 7'!N$17:N$23,\"N/A\",0,1)","v":"N/A"},{"$f":"_xlfn.XLOOKUP($E14,'Activity 7'!$B$17:$B$23,'Activity 7'!P$17:P$23,\"N/A\",0,1)","v":"N/A"},{"$f":"_xlfn.XLOOKUP($E14,'Activity 8'!$B$7:$B$13,'Activity 8'!A$7:A$13,\"No\",0,1)","v":"No"},{"$f":"_xlfn.XLOOKUP($E14,'Activity 8'!$B$7:$B$13,'Activity 8'!I$7:I$13,\"N/A\",0,1)","v":"N/A"},{"$f":"_xlfn.XLOOKUP($E14,'Activity 8'!$B$7:$B$13,'Activity 8'!J$7:J$13,\"N/A\",0,1)","v":"N/A"},{"$f":"_xlfn.XLOOKUP($E14,'Activity 8'!$B$7:$B$13,'Activity 8'!K$7:K$13,\"N/A\",0,1)","v":"N/A"},{"$f":"_xlfn.XLOOKUP($E14,'Activity 8'!$B$7:$B$13,'Activity 8'!L$7:L$13,\"N/A\",0,1)","v":"N/A"},{"$f":"_xlfn.XLOOKUP($E14,'Activity 8'!$B$7:$B$13,'Activity 8'!M$7:M$13,\"N/A\",0,1)","v":"N/A"},{"$f":"_xlfn.XLOOKUP($E14,'Activity 8'!$B$7:$B$13,'Activity 8'!N$7:N$13,\"N/A\",0,1)","v":"N/A"},{"$f":"_xlfn.XLOOKUP($E14,'Activity 8'!$B$7:$B$13,'Activity 8'!O$7:O$13,\"N/A\",0,1)","v":"N/A"},{"$f":"_xlfn.XLOOKUP($E14,'Activity 8'!$B$7:$B$13,'Activity 8'!P$7:P$13,\"N/A\",0,1)","v":"N/A"},{"$f":"_xlfn.XLOOKUP($E14,'Activity 8'!$B$7:$B$13,'Activity 8'!Q$7:Q$13,\"N/A\",0,1)","v":"N/A"},{"$f":"_xlfn.XLOOKUP($E14,'Activity 8'!$B$7:$B$13,'Activity 8'!R$7:R$13,\"N/A\",0,1)","v":"N/A"},{"$f":"_xlfn.XLOOKUP($E14,'Activity 8'!$B$7:$B$13,'Activity 8'!S$7:S$13,\"N/A\",0,1)","v":"N/A"},{"$f":"_xlfn.XLOOKUP($E14,'Activity 8'!$B$7:$B$13,'Activity 8'!T$7:T$13,\"N/A\",0,1)","v":"N/A"},{"$f":"_xlfn.XLOOKUP($E14,'Activity 8'!$B$7:$B$13,'Activity 8'!U$7:U$13,\"N/A\",0,1)","v":"N/A"},{"$f":"_xlfn.XLOOKUP($E14,'Activity 8'!$B$7:$B$13,'Activity 8'!V$7:V$13,\"N/A\",0,1)","v":"N/A"},{"$f":"_xlfn.XLOOKUP($E14,'Activity 8'!$B$17:$B$23,'Activity 8'!D$17:D$23,\"N/A\",0,1)","v":"N/A"},{"$f":"_xlfn.XLOOKUP($E14,'Activity 8'!$B$17:$B$23,'Activity 8'!E$17:E$23,\"N/A\",0,1)","v":"N/A"},{"$f":"_xlfn.XLOOKUP($E14,'Activity 8'!$B$17:$B$23,'Activity 8'!F$17:F$23,\"N/A\",0,1)","v":"N/A"},{"$f":"_xlfn.XLOOKUP($E14,'Activity 8'!$B$17:$B$23,'Activity 8'!G$17:G$23,\"N/A\",0,1)","v":"N/A"},{"$f":"_xlfn.XLOOKUP($E14,'Activity 8'!$B$17:$B$23,'Activity 8'!H$17:H$23,\"N/A\",0,1)","v":"N/A"},{"$f":"_xlfn.XLOOKUP($E14,'Activity 8'!$B$17:$B$23,'Activity 8'!I$17:I$23,\"N/A\",0,1)","v":"N/A"},{"$f":"_xlfn.XLOOKUP($E14,'Activity 8'!$B$17:$B$23,'Activity 8'!J$17:J$23,\"N/A\",0,1)","v":"N/A"},{"$f":"_xlfn.XLOOKUP($E14,'Activity 8'!$B$17:$B$23,'Activity 8'!K$17:K$23,\"N/A\",0,1)","v":"N/A"},{"$f":"_xlfn.XLOOKUP($E14,'Activity 8'!$B$17:$B$23,'Activity 8'!L$17:L$23,\"N/A\",0,1)","v":"N/A"},{"$f":"_xlfn.XLOOKUP($E14,'Activity 8'!$B$17:$B$23,'Activity 8'!M$17:M$23,\"N/A\",0,1)","v":"N/A"},{"$f":"_xlfn.XLOOKUP($E14,'Activity 8'!$B$17:$B$23,'Activity 8'!N$17:N$23,\"N/A\",0,1)","v":"N/A"},{"$f":"_xlfn.XLOOKUP($E14,'Activity 8'!$B$17:$B$23,'Activity 8'!P$17:P$23,\"N/A\",0,1)","v":"N/A"},{"$f":"_xlfn.XLOOKUP(E14,'Activity 9'!$B$7:$B$13,'Activity 9'!$A$7:$A$13,\"No\",0,1)","v":"No"},{"$f":"_xlfn.XLOOKUP($E14,'Activity 9'!$B$7:$B$13,'Activity 9'!J$7:J$13,\"N/A\",0,1)","v":"N/A"},{"$f":"_xlfn.XLOOKUP($E14,'Activity 9'!$B$7:$B$13,'Activity 9'!K$7:K$13,\"N/A\",0,1)","v":"N/A"},{"$f":"_xlfn.XLOOKUP($E14,'Activity 9'!$B$7:$B$13,'Activity 9'!L$7:L$13,\"N/A\",0,1)","v":"N/A"},{"$f":"_xlfn.XLOOKUP($E14,'Activity 9'!$B$7:$B$13,'Activity 9'!M$7:M$13,\"N/A\",0,1)","v":"N/A"},{"$f":"_xlfn.XLOOKUP($E14,'Activity 9'!$B$7:$B$13,'Activity 9'!N$7:N$13,\"N/A\",0,1)","v":"N/A"},{"$f":"_xlfn.XLOOKUP($E14,'Activity 9'!$B$7:$B$13,'Activity 9'!O$7:O$13,\"N/A\",0,1)","v":"N/A"},{"$f":"_xlfn.XLOOKUP($E14,'Activity 9'!$B$7:$B$13,'Activity 9'!P$7:P$13,\"N/A\",0,1)","v":"N/A"},{"$f":"_xlfn.XLOOKUP($E14,'Activity 9'!$B$7:$B$13,'Activity 9'!Q$7:Q$13,\"N/A\",0,1)","v":"N/A"},{"$f":"_xlfn.XLOOKUP($E14,'Activity 9'!$B$7:$B$13,'Activity 9'!R$7:R$13,\"N/A\",0,1)","v":"N/A"},{"$f":"_xlfn.XLOOKUP($E14,'Activity 9'!$B$7:$B$13,'Activity 9'!S$7:S$13,\"N/A\",0,1)","v":"N/A"},{"$f":"_xlfn.XLOOKUP($E14,'Activity 9'!$B$7:$B$13,'Activity 9'!T$7:T$13,\"N/A\",0,1)","v":"N/A"},{"$f":"_xlfn.XLOOKUP($E14,'Activity 9'!$B$17:$B$23,'Activity 9'!E$17:E$23,\"N/A\",0,1)","v":"N/A"},{"$f":"_xlfn.XLOOKUP($E14,'Activity 9'!$B$17:$B$23,'Activity 9'!F$17:F$23,\"N/A\",0,1)","v":"N/A"},{"$f":"_xlfn.XLOOKUP($E14,'Activity 9'!$B$17:$B$23,'Activity 9'!G$17:G$23,\"N/A\",0,1)","v":"N/A"},{"$f":"_xlfn.XLOOKUP($E14,'Activity 9'!$B$17:$B$23,'Activity 9'!H$17:H$23,\"N/A\",0,1)","v":"N/A"},{"$f":"_xlfn.XLOOKUP($E14,'Activity 9'!$B$17:$B$23,'Activity 9'!I$17:I$23,\"N/A\",0,1)","v":"N/A"},{"$f":"_xlfn.XLOOKUP($E14,'Activity 9'!$B$17:$B$23,'Activity 9'!J$17:J$23,\"N/A\",0,1)","v":"N/A"},{"$f":"_xlfn.XLOOKUP($E14,'Activity 9'!$B$17:$B$23,'Activity 9'!K$17:K$23,\"N/A\",0,1)","v":"N/A"},{"$f":"_xlfn.XLOOKUP($E14,'Activity 9'!$B$17:$B$23,'Activity 9'!L$17:L$23,\"N/A\",0,1)","v":"N/A"},{"$f":"_xlfn.XLOOKUP($E14,'Activity 9'!$B$17:$B$23,'Activity 9'!N$17:N$23,\"N/A\",0,1)","v":"N/A"},{"$f":"_xlfn.XLOOKUP($E14,'Activity 9'!$B$17:$B$23,'Activity 9'!O$17:O$23,\"N/A\",0,1)","v":"N/A"},{"$f":"_xlfn.XLOOKUP($E14,'Activity 9'!$B$17:$B$23,'Activity 9'!Q$17:Q$23,\"N/A\",0,1)","v":"N/A"},{"$f":"_xlfn.XLOOKUP($E14,'Activity 10'!$B$7:$B$13,'Activity 10'!A$7:A$13,\"No\",0,1)","v":"No"},{"$f":"_xlfn.XLOOKUP($E14,'Activity 10'!$B$7:$B$13,'Activity 10'!J$7:J$13,\"N/A\",0,1)","v":"N/A"},{"$f":"_xlfn.XLOOKUP($E14,'Activity 10'!$B$7:$B$13,'Activity 10'!K$7:K$13,\"N/A\",0,1)","v":"N/A"},{"$f":"_xlfn.XLOOKUP($E14,'Activity 10'!$B$7:$B$13,'Activity 10'!L$7:L$13,\"N/A\",0,1)","v":"N/A"},{"$f":"_xlfn.XLOOKUP($E14,'Activity 10'!$B$7:$B$13,'Activity 10'!M$7:M$13,\"N/A\",0,1)","v":"N/A"},{"$f":"_xlfn.XLOOKUP($E14,'Activity 10'!$B$7:$B$13,'Activity 10'!N$7:N$13,\"N/A\",0,1)","v":"N/A"},{"$f":"_xlfn.XLOOKUP($E14,'Activity 10'!$B$7:$B$13,'Activity 10'!O$7:O$13,\"N/A\",0,1)","v":"N/A"},{"$f":"_xlfn.XLOOKUP($E14,'Activity 10'!$B$7:$B$13,'Activity 10'!P$7:P$13,\"N/A\",0,1)","v":"N/A"},{"$f":"_xlfn.XLOOKUP($E14,'Activity 10'!$B$7:$B$13,'Activity 10'!Q$7:Q$13,\"N/A\",0,1)","v":"N/A"},{"$f":"_xlfn.XLOOKUP($E14,'Activity 10'!$B$7:$B$13,'Activity 10'!R$7:R$13,\"N/A\",0,1)","v":"N/A"},{"$f":"_xlfn.XLOOKUP($E14,'Activity 10'!$B$7:$B$13,'Activity 10'!S$7:S$13,\"N/A\",0,1)","v":"N/A"},{"$f":"_xlfn.XLOOKUP($E14,'Activity 10'!$B$7:$B$13,'Activity 10'!T$7:T$13,\"N/A\",0,1)","v":"N/A"},{"$f":"_xlfn.XLOOKUP($E14,'Activity 10'!$B$7:$B$13,'Activity 10'!U$7:U$13,\"N/A\",0,1)","v":"N/A"},{"$f":"_xlfn.XLOOKUP($E14,'Activity 10'!$B$7:$B$13,'Activity 10'!V$7:V$13,\"N/A\",0,1)","v":"N/A"},{"$f":"_xlfn.XLOOKUP($E14,'Activity 10'!$B$17:$B$23,'Activity 10'!E$17:E$23,\"N/A\",0,1)","v":"N/A"},{"$f":"_xlfn.XLOOKUP($E14,'Activity 10'!$B$17:$B$23,'Activity 10'!F$17:F$23,\"N/A\",0,1)","v":"N/A"},{"$f":"_xlfn.XLOOKUP($E14,'Activity 10'!$B$17:$B$23,'Activity 10'!G$17:G$23,\"N/A\",0,1)","v":"N/A"},{"$f":"_xlfn.XLOOKUP($E14,'Activity 10'!$B$17:$B$23,'Activity 10'!H$17:H$23,\"N/A\",0,1)","v":"N/A"},{"$f":"_xlfn.XLOOKUP($E14,'Activity 10'!$B$17:$B$23,'Activity 10'!I$17:I$23,\"N/A\",0,1)","v":"N/A"},{"$f":"_xlfn.XLOOKUP($E14,'Activity 10'!$B$17:$B$23,'Activity 10'!J$17:J$23,\"N/A\",0,1)","v":"N/A"},{"$f":"_xlfn.XLOOKUP($E14,'Activity 10'!$B$17:$B$23,'Activity 10'!K$17:K$23,\"N/A\",0,1)","v":"N/A"},{"$f":"_xlfn.XLOOKUP($E14,'Activity 10'!$B$17:$B$23,'Activity 10'!L$17:L$23,\"N/A\",0,1)","v":"N/A"},{"$f":"_xlfn.XLOOKUP($E14,'Activity 10'!$B$17:$B$23,'Activity 10'!M$17:M$23,\"N/A\",0,1)","v":"N/A"},{"$f":"_xlfn.XLOOKUP($E14,'Activity 10'!$B$17:$B$23,'Activity 10'!N$17:N$23,\"N/A\",0,1)","v":"N/A"},{"$f":"_xlfn.XLOOKUP($E14,'Activity 10'!$B$17:$B$23,'Activity 10'!P$17:P$23,\"N/A\",0,1)","v":"N/A"},{"$f":"_xlfn.XLOOKUP($E14,'Competitive Activity 1'!B$7:B$13,'Competitive Activity 1'!A$7:A$13,\"No\",0,1)","v":"No"},{"$f":"_xlfn.XLOOKUP($E14,'Competitive Activity 1'!$B$7:$B$13,'Competitive Activity 1'!H$7:H$13,\"N/A\",0,1)","v":"N/A"},{"$f":"_xlfn.XLOOKUP($E14,'Competitive Activity 1'!$B$7:$B$13,'Competitive Activity 1'!I$7:I$13,\"N/A\",0,1)","v":"N/A"},{"$f":"_xlfn.XLOOKUP($E14,'Competitive Activity 1'!$B$7:$B$13,'Competitive Activity 1'!J$7:J$13,\"N/A\",0,1)","v":"N/A"},{"$f":"_xlfn.XLOOKUP($E14,'Competitive Activity 1'!$B$7:$B$13,'Competitive Activity 1'!K$7:K$13,\"N/A\",0,1)","v":"N/A"},{"$f":"_xlfn.XLOOKUP($E14,'Competitive Activity 1'!$B$7:$B$13,'Competitive Activity 1'!L$7:L$13,\"N/A\",0,1)","v":"N/A"},{"$f":"_xlfn.XLOOKUP($E14,'Competitive Activity 1'!$B$7:$B$13,'Competitive Activity 1'!M$7:M$13,\"N/A\",0,1)","v":"N/A"},{"$f":"_xlfn.XLOOKUP($E14,'Competitive Activity 1'!$B$7:$B$13,'Competitive Activity 1'!N$7:N$13,\"N/A\",0,1)","v":"N/A"},{"$f":"_xlfn.XLOOKUP($E14,'Competitive Activity 1'!$B$7:$B$13,'Competitive Activity 1'!O$7:O$13,\"N/A\",0,1)","v":"N/A"},{"$f":"_xlfn.XLOOKUP($E14,'Competitive Activity 1'!$B$7:$B$13,'Competitive Activity 1'!P$7:P$13,\"N/A\",0,1)","v":"N/A"},{"$f":"_xlfn.XLOOKUP($E14,'Competitive Activity 1'!$B$7:$B$13,'Competitive Activity 1'!Q$7:Q$13,\"N/A\",0,1)","v":"N/A"},{"$f":"_xlfn.XLOOKUP($E14,'Competitive Activity 1'!$B$7:$B$13,'Competitive Activity 1'!R$7:R$13,\"N/A\",0,1)","v":"N/A"},{"$f":"_xlfn.XLOOKUP($E14,'Competitive Activity 1'!$B$7:$B$13,'Competitive Activity 1'!S$7:S$13,\"N/A\",0,1)","v":"N/A"},{"$f":"_xlfn.XLOOKUP($E14,'Competitive Activity 1'!$B$7:$B$13,'Competitive Activity 1'!T$7:T$13,\"N/A\",0,1)","v":"N/A"},{"$f":"_xlfn.XLOOKUP($E14,'Competitive Activity 1'!$B$7:$B$13,'Competitive Activity 1'!U$7:U$13,\"N/A\",0,1)","v":"N/A"},{"$f":"_xlfn.XLOOKUP($E14,'Competitive Activity 1'!$B$17:$B$23,'Competitive Activity 1'!C$17:C$23,\"N/A\",0,1)","v":"N/A"},{"$f":"_xlfn.XLOOKUP($E14,'Competitive Activity 1'!$B$17:$B$23,'Competitive Activity 1'!D$17:D$23,\"N/A\",0,1)","v":"N/A"},{"$f":"_xlfn.XLOOKUP($E14,'Competitive Activity 1'!$B$17:$B$23,'Competitive Activity 1'!E$17:E$23,\"N/A\",0,1)","v":"N/A"},{"$f":"_xlfn.XLOOKUP($E14,'Competitive Activity 1'!$B$17:$B$23,'Competitive Activity 1'!F$17:F$23,\"N/A\",0,1)","v":"N/A"},{"$f":"_xlfn.XLOOKUP($E14,'Competitive Activity 1'!$B$17:$B$23,'Competitive Activity 1'!G$17:G$23,\"N/A\",0,1)","v":"N/A"},{"$f":"_xlfn.XLOOKUP($E14,'Competitive Activity 1'!$B$17:$B$23,'Competitive Activity 1'!H$17:H$23,\"N/A\",0,1)","v":"N/A"},{"$f":"_xlfn.XLOOKUP($E14,'Competitive Activity 1'!$B$17:$B$23,'Competitive Activity 1'!I$17:I$23,\"N/A\",0,1)","v":"N/A"},{"$f":"_xlfn.XLOOKUP($E14,'Competitive Activity 1'!$B$17:$B$23,'Competitive Activity 1'!J$17:J$23,\"N/A\",0,1)","v":"N/A"},{"$f":"_xlfn.XLOOKUP($E14,'Competitive Activity 1'!$B$17:$B$23,'Competitive Activity 1'!K$17:K$23,\"N/A\",0,1)","v":"N/A"},{"$f":"_xlfn.XLOOKUP($E14,'Competitive Activity 1'!$B$17:$B$23,'Competitive Activity 1'!M$17:M$23,\"N/A\",0,1)","v":"N/A"},{"$f":"_xlfn.XLOOKUP($E14,'Competitive Activity 1'!$B$17:$B$23,'Competitive Activity 1'!N$17:N$23,\"N/A\",0,1)","v":"N/A"},{"$f":"_xlfn.XLOOKUP($E14,'Competitive Activity 1'!$B$17:$B$23,'Competitive Activity 1'!P$17:P$23,\"N/A\",0,1)","v":"N/A"},{"$f":"_xlfn.XLOOKUP($E14,'Competitive Activity 2'!$B$7:$B$13,'Competitive Activity 2'!A$7:A$13,\"No\",0)","v":"No"},{"$f":"_xlfn.XLOOKUP($E14,'Competitive Activity 2'!$B$7:$B$13,'Competitive Activity 2'!L$7:L$13,\"N/A\",0)","v":"N/A"},{"$f":"_xlfn.XLOOKUP($E14,'Competitive Activity 2'!$B$7:$B$13,'Competitive Activity 2'!M$7:M$13,\"N/A\",0)","v":"N/A"},{"$f":"_xlfn.XLOOKUP($E14,'Competitive Activity 2'!$B$7:$B$13,'Competitive Activity 2'!N$7:N$13,\"N/A\",0)","v":"N/A"},{"$f":"_xlfn.XLOOKUP($E14,'Competitive Activity 2'!$B$7:$B$13,'Competitive Activity 2'!O$7:O$13,\"N/A\",0)","v":"N/A"},{"$f":"_xlfn.XLOOKUP($E14,'Competitive Activity 2'!$B$7:$B$13,'Competitive Activity 2'!P$7:P$13,\"N/A\",0)","v":"N/A"},{"$f":"_xlfn.XLOOKUP($E14,'Competitive Activity 2'!$B$7:$B$13,'Competitive Activity 2'!Q$7:Q$13,\"N/A\",0)","v":"N/A"},{"$f":"_xlfn.XLOOKUP($E14,'Competitive Activity 2'!$B$7:$B$13,'Competitive Activity 2'!R$7:R$13,\"N/A\",0)","v":"N/A"},{"$f":"_xlfn.XLOOKUP($E14,'Competitive Activity 2'!$B$7:$B$13,'Competitive Activity 2'!S$7:S$13,\"N/A\",0)","v":"N/A"},{"$f":"_xlfn.XLOOKUP($E14,'Competitive Activity 2'!$B$7:$B$13,'Competitive Activity 2'!T$7:T$13,\"N/A\",0)","v":"N/A"},{"$f":"_xlfn.XLOOKUP($E14,'Competitive Activity 2'!$B$7:$B$13,'Competitive Activity 2'!U$7:U$13,\"N/A\",0)","v":"N/A"},{"$f":"_xlfn.XLOOKUP($E14,'Competitive Activity 2'!$B$17:$B$23,'Competitive Activity 2'!D$17:D$23,\"N/A\",0)","v":"N/A"},{"$f":"_xlfn.XLOOKUP($E14,'Competitive Activity 2'!$B$17:$B$23,'Competitive Activity 2'!E$17:E$23,\"N/A\",0)","v":"N/A"},{"$f":"_xlfn.XLOOKUP($E14,'Competitive Activity 2'!$B$17:$B$23,'Competitive Activity 2'!F$17:F$23,\"N/A\",0)","v":"N/A"},{"$f":"_xlfn.XLOOKUP($E14,'Competitive Activity 2'!$B$17:$B$23,'Competitive Activity 2'!G$17:G$23,\"N/A\",0)","v":"N/A"},{"$f":"_xlfn.XLOOKUP($E14,'Competitive Activity 2'!$B$17:$B$23,'Competitive Activity 2'!H$17:H$23,\"N/A\",0)","v":"N/A"},{"$f":"_xlfn.XLOOKUP($E14,'Competitive Activity 2'!$B$17:$B$23,'Competitive Activity 2'!I$17:I$23,\"N/A\",0)","v":"N/A"},{"$f":"_xlfn.XLOOKUP($E14,'Competitive Activity 2'!$B$17:$B$23,'Competitive Activity 2'!J$17:J$23,\"N/A\",0)","v":"N/A"},{"$f":"_xlfn.XLOOKUP($E14,'Competitive Activity 2'!$B$17:$B$23,'Competitive Activity 2'!K$17:K$23,\"N/A\",0)","v":"N/A"},{"$f":"_xlfn.XLOOKUP($E14,'Competitive Activity 2'!$B$17:$B$23,'Competitive Activity 2'!L$17:L$23,\"N/A\",0)","v":"N/A"},{"$f":"_xlfn.XLOOKUP($E14,'Competitive Activity 2'!$B$17:$B$23,'Competitive Activity 2'!M$17:M$23,\"N/A\",0)","v":"N/A"},{"$f":"_xlfn.XLOOKUP($E14,'Competitive Activity 2'!$B$17:$B$23,'Competitive Activity 2'!N$17:N$23,\"N/A\",0)","v":"N/A"},{"$f":"_xlfn.XLOOKUP($E14,'Competitive Activity 2'!$B$27:$B$33,'Competitive Activity 2'!D$27:D$33,\"N/A\",0)","v":"N/A"},{"$f":"_xlfn.XLOOKUP($E14,'Competitive Activity 2'!$B$27:$B$33,'Competitive Activity 2'!E$27:E$33,\"N/A\",0)","v":"N/A"},{"$f":"_xlfn.XLOOKUP($E14,'Competitive Activity 2'!$B$27:$B$33,'Competitive Activity 2'!F$27:F$33,\"N/A\",0)","v":"N/A"},{"$f":"_xlfn.XLOOKUP($E14,'Competitive Activity 2'!$B$27:$B$33,'Competitive Activity 2'!G$27:G$33,\"N/A\",0)","v":"N/A"},{"$f":"_xlfn.XLOOKUP($E14,'Competitive Activity 2'!$B$27:$B$33,'Competitive Activity 2'!H$27:H$33,\"N/A\",0)","v":"N/A"},{"$f":"_xlfn.XLOOKUP($E14,'Competitive Activity 2'!$B$27:$B$33,'Competitive Activity 2'!I$27:I$33,\"N/A\",0)","v":"N/A"},{"$f":"_xlfn.XLOOKUP($E14,'Competitive Activity 2'!$B$27:$B$33,'Competitive Activity 2'!J$27:J$33,\"N/A\",0)","v":"N/A"},{"$f":"_xlfn.XLOOKUP($E14,'Competitive Activity 2'!$B$27:$B$33,'Competitive Activity 2'!K$27:K$33,\"N/A\",0)","v":"N/A"},{"$f":"_xlfn.XLOOKUP($E14,'Competitive Activity 2'!$B$27:$B$33,'Competitive Activity 2'!M$27:M$33,\"N/A\",0)","v":"N/A"}]
[{"$f":"'1-Cover Sheet'!$C$8","v":"Select One"},{"$f":"'1-Cover Sheet'!$F$8","v":"Select One"},{"$f":"'Summary Sheet'!$D$8","v":0},{"$f":"'Summary Sheet'!$D$10","v":0},{"$f":"'Drop Down Box'!B179","v":0},{"$f":"'Drop Down Box'!C179","v":0},{"$f":"'Drop Down Box'!D179","v":"Select One"},{"$f":"_xlfn.XLOOKUP(E15,'Drop Down Box'!$B$166:$B$249,'Drop Down Box'!$A$166:$A$249,\"Unknown\",0)","v":"Activity 1"},{"$f":"_xlfn.XLOOKUP($E15,'Activity 2'!$B$17:$B$23,'Activity 2'!$N$17:$N$23,\"N/A\",0)","v":"N/A"},{"$f":"_xlfn.XLOOKUP($E15,'Activity 2'!$B$17:$B$23,'Activity 2'!$P$17:$P$23,\"N/A\",0)","v":"N/A"},{"$f":"_xlfn.XLOOKUP($E15,'Activity 2'!$B$7:$B$13,'Activity 2'!E$7:E$13,0,0)","v":0},{"$f":"_xlfn.XLOOKUP($E15,'Activity 2'!$B$7:$B$13,'Activity 2'!F$7:F$13,0,0)","v":"00:00:00"},{"$f":"_xlfn.XLOOKUP($E15,'Activity 2'!$B$7:$B$13,'Activity 2'!G$7:G$13,0,0)","v":0},{"$f":"_xlfn.XLOOKUP($E15,'Activity 1'!$B$7:$B$13,'Activity 1'!$A$7:$A$13,\"No\",0,1)","v":"No"},{"$f":"_xlfn.XLOOKUP($E15,'Activity 1'!$B$7:$B$13,'Activity 1'!$H$7:$H$13,\"N/A\",0,1)","v":"N/A"},{"$f":"_xlfn.XLOOKUP($E15,'Activity 1'!$B$7:$B$13,'Activity 1'!I$7:I$13,\"N/A\",0,1)","v":"N/A"},{"$f":"_xlfn.XLOOKUP($E15,'Activity 1'!$B$7:$B$13,'Activity 1'!J$7:J$13,\"N/A\",0,1)","v":"N/A"},{"$f":"_xlfn.XLOOKUP($E15,'Activity 1'!$B$7:$B$13,'Activity 1'!K$7:K$13,\"N/A\",0,1)","v":"N/A"},{"$f":"_xlfn.XLOOKUP($E15,'Activity 1'!$B$7:$B$13,'Activity 1'!L$7:L$13,\"N/A\",0,1)","v":"N/A"},{"$f":"_xlfn.XLOOKUP($E15,'Activity 1'!$B$7:$B$13,'Activity 1'!M$7:M$13,\"N/A\",0,1)","v":"N/A"},{"$f":"_xlfn.XLOOKUP($E15,'Activity 1'!$B$7:$B$13,'Activity 1'!N$7:N$13,\"N/A\",0,1)","v":"N/A"},0,{"$f":"_xlfn.XLOOKUP($E15,'Activity 1'!$B$7:$B$13,'Activity 1'!O$7:O$13,\"N/A\",0,1)","v":"N/A"},{"$f":"_xlfn.XLOOKUP($E15,'Activity 1'!$B$7:$B$13,'Activity 1'!P$7:P$13,\"N/A\",0,1)","v":"N/A"},{"$f":"_xlfn.XLOOKUP($E15,'Activity 1'!$B$7:$B$13,'Activity 1'!Q$7:Q$13,\"N/A\",0,1)","v":"N/A"},{"$f":"_xlfn.XLOOKUP($E15,'Activity 1'!$B$7:$B$13,'Activity 1'!R$7:R$13,\"N/A\",0,1)","v":"N/A"},{"$f":"_xlfn.XLOOKUP($E15,'Activity 1'!$B$7:$B$13,'Activity 1'!S$7:S$13,\"N/A\",0,1)","v":"N/A"},{"$f":"_xlfn.XLOOKUP($E15,'Activity 1'!$B$7:$B$13,'Activity 1'!T$7:T$13,\"N/A\",0,1)","v":"N/A"},{"$f":"_xlfn.XLOOKUP($E15,'Activity 1'!$B$7:$B$13,'Activity 1'!U$7:U$13,\"N/A\",0,1)","v":"N/A"},{"$f":"_xlfn.XLOOKUP($E15,'Activity 1'!$B$7:$B$13,'Activity 1'!V$7:V$13,\"N/A\",0,1)","v":"N/A"},{"$f":"_xlfn.XLOOKUP($E15,'Activity 1'!$B$17:$B$23,'Activity 1'!C$17:C$23,\"N/A\",0,1)","v":"N/A"},{"$f":"_xlfn.XLOOKUP($E15,'Activity 1'!$B$17:$B$23,'Activity 1'!D$17:D$23,\"N/A\",0,1)","v":"N/A"},{"$f":"_xlfn.XLOOKUP($E15,'Activity 1'!$B$17:$B$23,'Activity 1'!E$17:E$23,\"N/A\",0,1)","v":"N/A"},{"$f":"_xlfn.XLOOKUP($E15,'Activity 1'!$B$17:$B$23,'Activity 1'!F$17:F$23,\"N/A\",0,1)","v":"N/A"},{"$f":"_xlfn.XLOOKUP($E15,'Activity 1'!$B$17:$B$23,'Activity 1'!G$17:G$23,\"N/A\",0,1)","v":"N/A"},{"$f":"_xlfn.XLOOKUP($E15,'Activity 1'!$B$17:$B$23,'Activity 1'!H$17:H$23,\"N/A\",0,1)","v":"N/A"},{"$f":"_xlfn.XLOOKUP($E15,'Activity 1'!$B$17:$B$23,'Activity 1'!I$17:I$23,\"N/A\",0,1)","v":"N/A"},{"$f":"_xlfn.XLOOKUP($E15,'Activity 1'!$B$17:$B$23,'Activity 1'!J$17:J$23,\"N/A\",0,1)","v":"N/A"},{"$f":"_xlfn.XLOOKUP($E15,'Activity 1'!$B$17:$B$23,'Activity 1'!K$17:K$23,\"N/A\",0,1)","v":"N/A"},{"$f":"_xlfn.XLOOKUP($E15,'Activity 1'!$B$17:$B$23,'Activity 1'!L$17:L$23,\"N/A\",0,1)","v":"N/A"},{"$f":"_xlfn.XLOOKUP($E15,'Activity 1'!$B$17:$B$23,'Activity 1'!M$17:M$23,\"N/A\",0,1)","v":"N/A"},{"$f":"_xlfn.XLOOKUP($E15,'Activity 1'!$B$17:$B$23,'Activity 1'!O$17:O$23,\"N/A\",0,1)","v":"N/A"},{"$f":"_xlfn.XLOOKUP($E15,'Activity 1'!$B$17:$B$23,'Activity 1'!Q$17:Q$23,\"N/A\",0,1)","v":"N/A"},{"$f":"_xlfn.XLOOKUP($E15,'Activity 2'!$B$7:$B$13,'Activity 2'!$A$7:$A$13,\"No\",0,1)","v":"No"},{"$f":"_xlfn.XLOOKUP($E15,'Activity 2'!B$7:B$13,'Activity 2'!H$7:H$13,\"N/A\",0)","v":"N/A"},{"$f":"_xlfn.XLOOKUP($E15,'Activity 2'!C$7:C$13,'Activity 2'!I$7:I$13,\"N/A\",0)","v":"N/A"},{"$f":"_xlfn.XLOOKUP($E15,'Activity 2'!D$7:D$13,'Activity 2'!J$7:J$13,\"N/A\",0)","v":"N/A"},{"$f":"_xlfn.XLOOKUP($E15,'Activity 2'!E$7:E$13,'Activity 2'!K$7:K$13,\"N/A\",0)","v":"N/A"},{"$f":"_xlfn.XLOOKUP($E15,'Activity 2'!F$7:F$13,'Activity 2'!L$7:L$13,\"N/A\",0)","v":"N/A"},{"$f":"_xlfn.XLOOKUP($E15,'Activity 2'!G$7:G$13,'Activity 2'!M$7:M$13,\"N/A\",0)","v":"N/A"},{"$f":"_xlfn.XLOOKUP($E15,'Activity 2'!H$7:H$13,'Activity 2'!N$7:N$13,\"N/A\",0)","v":"N/A"},{"$f":"_xlfn.XLOOKUP($E15,'Activity 2'!I$7:I$13,'Activity 2'!O$7:O$13,\"N/A\",0)","v":"N/A"},{"$f":"_xlfn.XLOOKUP($E15,'Activity 2'!J$7:J$13,'Activity 2'!P$7:P$13,\"N/A\",0)","v":"N/A"},{"$f":"_xlfn.XLOOKUP($E15,'Activity 2'!K$7:K$13,'Activity 2'!Q$7:Q$13,\"N/A\",0)","v":"N/A"},{"$f":"_xlfn.XLOOKUP($E15,'Activity 2'!L$7:L$13,'Activity 2'!R$7:R$13,\"N/A\",0)","v":"N/A"},{"$f":"_xlfn.XLOOKUP($E15,'Activity 2'!M$7:M$13,'Activity 2'!S$7:S$13,\"N/A\",0)","v":"N/A"},{"$f":"_xlfn.XLOOKUP($E15,'Activity 2'!N$7:N$13,'Activity 2'!T$7:T$13,\"N/A\",0)","v":"N/A"},{"$f":"_xlfn.XLOOKUP($E15,'Activity 2'!O$7:O$13,'Activity 2'!U$7:U$13,\"N/A\",0)","v":"N/A"},{"$f":"_xlfn.XLOOKUP($E15,'Activity 2'!P$7:P$13,'Activity 2'!V$7:V$13,\"N/A\",0)","v":"N/A"},{"$f":"_xlfn.XLOOKUP($E15,'Activity 2'!$B$17:$B$23,'Activity 2'!C$17:C$23,\"N/A\",0,1)","v":"N/A"},{"$f":"_xlfn.XLOOKUP($E15,'Activity 2'!$B$17:$B$23,'Activity 2'!D$17:D$23,\"N/A\",0,1)","v":"N/A"},{"$f":"_xlfn.XLOOKUP($E15,'Activity 2'!$B$17:$B$23,'Activity 2'!E$17:E$23,\"N/A\",0,1)","v":"N/A"},{"$f":"_xlfn.XLOOKUP($E15,'Activity 2'!$B$17:$B$23,'Activity 2'!F$17:F$23,\"N/A\",0,1)","v":"N/A"},{"$f":"_xlfn.XLOOKUP($E15,'Activity 2'!$B$17:$B$23,'Activity 2'!G$17:G$23,\"N/A\",0,1)","v":"N/A"},{"$f":"_xlfn.XLOOKUP($E15,'Activity 2'!$B$17:$B$23,'Activity 2'!H$17:H$23,\"N/A\",0,1)","v":"N/A"},{"$f":"_xlfn.XLOOKUP($E15,'Activity 2'!$B$17:$B$23,'Activity 2'!I$17:I$23,\"N/A\",0,1)","v":"N/A"},{"$f":"_xlfn.XLOOKUP($E15,'Activity 2'!$B$17:$B$23,'Activity 2'!J$17:J$23,\"N/A\",0,1)","v":"N/A"},{"$f":"_xlfn.XLOOKUP($E15,'Activity 2'!$B$17:$B$23,'Activity 2'!K$17:K$23,\"N/A\",0,1)","v":"N/A"},{"$f":"_xlfn.XLOOKUP($E15,'Activity 2'!$B$17:$B$23,'Activity 2'!L$17:L$23,\"N/A\",0,1)","v":"N/A"},{"$f":"_xlfn.XLOOKUP($E15,'Activity 2'!$B$17:$B$23,'Activity 2'!M$17:M$23,\"N/A\",0,1)","v":"N/A"},{"$f":"_xlfn.XLOOKUP($E15,'Activity 2'!$B$17:$B$23,'Activity 2'!O$17:O$23,\"N/A\",0,1)","v":"N/A"},{"$f":"_xlfn.XLOOKUP($E15,'Activity 2'!$B$17:$B$23,'Activity 2'!Q$17:Q$23,\"N/A\",0,1)","v":"N/A"},null,{"$f":"_xlfn.XLOOKUP($E15,'Activity 3'!$B$8:$B$14,'Activity 3'!K$8:K$14,\"N/A\",0,1)","v":"N/A"},{"$f":"_xlfn.XLOOKUP($E15,'Activity 3'!$B$8:$B$14,'Activity 3'!L$8:L$14,\"N/A\",0,1)","v":"N/A"},{"$f":"_xlfn.XLOOKUP($E15,'Activity 3'!$B$8:$B$14,'Activity 3'!M$8:M$14,\"N/A\",0,1)","v":"N/A"},{"$f":"_xlfn.XLOOKUP($E15,'Activity 3'!$B$8:$B$14,'Activity 3'!N$8:N$14,\"N/A\",0,1)","v":"N/A"},{"$f":"_xlfn.XLOOKUP($E15,'Activity 3'!$B$8:$B$14,'Activity 3'!O$8:O$14,\"N/A\",0,1)","v":"N/A"},{"$f":"_xlfn.XLOOKUP($E15,'Activity 3'!$B$8:$B$14,'Activity 3'!R$8:R$14,\"N/A\",0,1)","v":"N/A"},{"$f":"_xlfn.XLOOKUP($E15,'Activity 4'!$B$8:$B$14,'Activity 4'!$A$8:$A$14,\"No\",0,1)","v":"No"},{"$f":"_xlfn.XLOOKUP($E15,'Activity 4'!$B$8:$B$14,'Activity 4'!L$8:L$14,\"N/A\",0,1)","v":"N/A"},{"$f":"_xlfn.XLOOKUP($E15,'Activity 4'!$B$8:$B$14,'Activity 4'!I$8:I$14,\"N/A\",0,1)","v":"N/A"},{"$f":"_xlfn.XLOOKUP($E15,'Activity 4'!$B$8:$B$14,'Activity 4'!M$8:M$14,\"N/A\",0,1)","v":"N/A"},{"$f":"_xlfn.XLOOKUP($E15,'Activity 5'!$B$8:$B$14,'Activity 5'!$A$8:$A$14,\"No\",0,1)","v":"No"},{"$f":"_xlfn.XLOOKUP($E15,'Activity 5'!$B$8:$B$14,'Activity 5'!J$8:J$14,\"N/A\",0,1)","v":"N/A"},{"$f":"_xlfn.XLOOKUP($E15,'Activity 5'!$B$8:$B$14,'Activity 5'!K$8:K$14,\"N/A\",0,1)","v":"N/A"},{"$f":"_xlfn.XLOOKUP($E15,'Activity 5'!$B$8:$B$14,'Activity 5'!N$8:N$14,\"N/A\",0,1)","v":"N/A"},{"$f":"_xlfn.XLOOKUP($E15,'Activity 5'!$B$8:$B$14,'Activity 5'!O$8:O$14,\"N/A\",0,1)","v":"N/A"},{"$f":"_xlfn.XLOOKUP($E15,'Activity 5'!$B$8:$B$14,'Activity 5'!P$8:P$14,\"N/A\",0,1)","v":"N/A"},{"$f":"_xlfn.XLOOKUP($E15,'Activity 5'!$B$8:$B$14,'Activity 5'!Q$8:Q$14,\"N/A\",0,1)","v":"N/A"},{"$f":"_xlfn.XLOOKUP($E15,'Activity 5'!$B$8:$B$14,'Activity 5'!R$8:R$14,\"N/A\",0,1)","v":"N/A"},{"$f":"_xlfn.XLOOKUP($E15,'Activity 6'!$B$7:$B$13,'Activity 6'!A$7:A$13,\"No\",0,1)","v":"No"},{"$f":"_xlfn.XLOOKUP($E15,'Activity 6'!$B$7:$B$13,'Activity 6'!K$7:K$13,\"N/A\",0,1)","v":"N/A"},{"$f":"_xlfn.XLOOKUP($E15,'Activity 6'!$B$7:$B$13,'Activity 6'!L$7:L$13,\"N/A\",0,1)","v":"N/A"},{"$f":"_xlfn.XLOOKUP($E15,'Activity 6'!$B$7:$B$13,'Activity 6'!M$7:M$13,\"N/A\",0,1)","v":"N/A"},{"$f":"_xlfn.XLOOKUP($E15,'Activity 6'!$B$7:$B$13,'Activity 6'!N$7:N$13,\"N/A\",0,1)","v":"N/A"},{"$f":"_xlfn.XLOOKUP($E15,'Activity 6'!$B$7:$B$13,'Activity 6'!O$7:O$13,\"N/A\",0,1)","v":"N/A"},{"$f":"_xlfn.XLOOKUP($E15,'Activity 6'!$B$7:$B$13,'Activity 6'!P$7:P$13,\"N/A\",0,1)","v":"N/A"},{"$f":"_xlfn.XLOOKUP($E15,'Activity 6'!$B$7:$B$13,'Activity 6'!Q$7:Q$13,\"N/A\",0,1)","v":"N/A"},{"$f":"_xlfn.XLOOKUP($E15,'Activity 6'!$B$7:$B$13,'Activity 6'!R$7:R$13,\"N/A\",0,1)","v":"N/A"},{"$f":"_xlfn.XLOOKUP($E15,'Activity 6'!$B$7:$B$13,'Activity 6'!S$7:S$13,\"N/A\",0,1)","v":"N/A"},{"$f":"_xlfn.XLOOKUP($E15,'Activity 6'!$B$7:$B$13,'Activity 6'!T$7:T$13,\"N/A\",0,1)","v":"N/A"},{"$f":"_xlfn.XLOOKUP($E15,'Activity 6'!$B$7:$B$13,'Activity 6'!U$7:U$13,\"N/A\",0,1)","v":"N/A"},{"$f":"_xlfn.XLOOKUP($E15,'Activity 6'!$B$22:$B$28,'Activity 6'!C$22:C$28,\"N/A\",0,1)","v":"N/A"},{"$f":"_xlfn.XLOOKUP($E15,'Activity 6'!$B$22:$B$28,'Activity 6'!D$22:D$28,\"N/A\",0,1)","v":"N/A"},{"$f":"_xlfn.XLOOKUP($E15,'Activity 6'!$B$22:$B$28,'Activity 6'!E$22:E$28,\"N/A\",0,1)","v":"N/A"},{"$f":"_xlfn.XLOOKUP($E15,'Activity 6'!$B$22:$B$28,'Activity 6'!F$22:F$28,\"N/A\",0,1)","v":"N/A"},{"$f":"_xlfn.XLOOKUP($E15,'Activity 6'!$B$22:$B$28,'Activity 6'!G$22:G$28,\"N/A\",0,1)","v":"N/A"},{"$f":"_xlfn.XLOOKUP($E15,'Activity 6'!$B$22:$B$28,'Activity 6'!H$22:H$28,\"N/A\",0,1)","v":"N/A"},{"$f":"_xlfn.XLOOKUP($E15,'Activity 6'!$B$22:$B$28,'Activity 6'!I$22:I$28,\"N/A\",0,1)","v":"N/A"},{"$f":"_xlfn.XLOOKUP($E15,'Activity 6'!$B$22:$B$28,'Activity 6'!J$22:J$28,\"N/A\",0,1)","v":"N/A"},{"$f":"_xlfn.XLOOKUP($E15,'Activity 6'!$B$22:$B$28,'Activity 6'!K$22:K$28,\"N/A\",0,1)","v":"N/A"},{"$f":"_xlfn.XLOOKUP($E15,'Activity 6'!$B$22:$B$28,'Activity 6'!L$22:L$28,\"N/A\",0,1)","v":"N/A"},{"$f":"_xlfn.XLOOKUP($E15,'Activity 6'!$B$22:$B$28,'Activity 6'!M$22:M$28,\"N/A\",0,1)","v":"N/A"},{"$f":"_xlfn.XLOOKUP($E15,'Activity 6'!$B$22:$B$28,'Activity 6'!N$22:N$28,\"N/A\",0,1)","v":"N/A"},{"$f":"_xlfn.XLOOKUP($E15,'Activity 6'!$B$32:$B$38,'Activity 6'!C$32:C$38,\"N/A\",0,1)","v":"N/A"},{"$f":"_xlfn.XLOOKUP($E15,'Activity 6'!$B$32:$B$38,'Activity 6'!D$32:D$38,\"N/A\",0,1)","v":"N/A"},{"$f":"_xlfn.XLOOKUP($E15,'Activity 6'!$B$32:$B$38,'Activity 6'!E$32:E$38,\"N/A\",0,1)","v":"N/A"},{"$f":"_xlfn.XLOOKUP($E15,'Activity 6'!$B$32:$B$38,'Activity 6'!F$32:F$38,\"N/A\",0,1)","v":"N/A"},{"$f":"_xlfn.XLOOKUP($E15,'Activity 6'!$B$32:$B$38,'Activity 6'!G$32:G$38,\"N/A\",0,1)","v":"N/A"},{"$f":"_xlfn.XLOOKUP($E15,'Activity 6'!$B$32:$B$38,'Activity 6'!H$32:H$38,\"N/A\",0,1)","v":"N/A"},{"$f":"_xlfn.XLOOKUP($E15,'Activity 6'!$B$32:$B$38,'Activity 6'!I$32:I$38,\"N/A\",0,1)","v":"N/A"},{"$f":"_xlfn.XLOOKUP($E15,'Activity 6'!$B$32:$B$38,'Activity 6'!J$32:J$38,\"N/A\",0,1)","v":"N/A"},{"$f":"_xlfn.XLOOKUP($E15,'Activity 6'!$B$32:$B$38,'Activity 6'!K$32:K$38,\"N/A\",0,1)","v":"N/A"},{"$f":"_xlfn.XLOOKUP($E15,'Activity 6'!$B$32:$B$38,'Activity 6'!M$32:M$38,\"N/A\",0,1)","v":"N/A"},{"$f":"_xlfn.XLOOKUP($E15,'Activity 7'!$B$7:$B$13,'Activity 7'!$A$7:$A$13,\"No\",0,1)","v":"No"},{"$f":"_xlfn.XLOOKUP($E15,'Activity 7'!$B$7:$B$13,'Activity 7'!M$7:M$13,\"N/A\",0,1)","v":"N/A"},{"$f":"_xlfn.XLOOKUP($E15,'Activity 7'!$B$7:$B$13,'Activity 7'!K$7:K$13,\"N/A\",0,1)","v":"N/A"},{"$f":"_xlfn.XLOOKUP($E15,'Activity 7'!$B$7:$B$13,'Activity 7'!N$7:N$13,\"N/A\",0,1)","v":"N/A"},{"$f":"_xlfn.XLOOKUP($E15,'Activity 7'!$B$7:$B$13,'Activity 7'!O$7:O$13,\"N/A\",0,1)","v":"N/A"},{"$f":"_xlfn.XLOOKUP($E15,'Activity 7'!$B$7:$B$13,'Activity 7'!P$7:P$13,\"N/A\",0,1)","v":"N/A"},{"$f":"_xlfn.XLOOKUP($E15,'Activity 7'!$B$7:$B$13,'Activity 7'!Q$7:Q$13,\"N/A\",0,1)","v":"N/A"},{"$f":"_xlfn.XLOOKUP($E15,'Activity 7'!$B$7:$B$13,'Activity 7'!R$7:R$13,\"N/A\",0,1)","v":"N/A"},{"$f":"_xlfn.XLOOKUP($E15,'Activity 7'!$B$7:$B$13,'Activity 7'!S$7:S$13,\"N/A\",0,1)","v":"N/A"},{"$f":"_xlfn.XLOOKUP($E15,'Activity 7'!$B$7:$B$13,'Activity 7'!T$7:T$13,\"N/A\",0,1)","v":"N/A"},{"$f":"_xlfn.XLOOKUP($E15,'Activity 7'!$B$7:$B$13,'Activity 7'!U$7:U$13,\"N/A\",0,1)","v":"N/A"},{"$f":"_xlfn.XLOOKUP($E15,'Activity 7'!$B$7:$B$13,'Activity 7'!V$7:V$13,\"N/A\",0,1)","v":"N/A"},{"$f":"_xlfn.XLOOKUP($E15,'Activity 7'!$B$17:$B$23,'Activity 7'!E$17:E$23,\"N/A\",0,1)","v":"N/A"},{"$f":"_xlfn.XLOOKUP($E15,'Activity 7'!$B$17:$B$23,'Activity 7'!G$17:G$23,\"N/A\",0,1)","v":"N/A"},{"$f":"_xlfn.XLOOKUP($E15,'Activity 7'!$B$17:$B$23,'Activity 7'!I$17:I$23,\"N/A\",0,1)","v":"N/A"},{"$f":"_xlfn.XLOOKUP($E15,'Activity 7'!$B$17:$B$23,'Activity 7'!J$17:J$23,\"N/A\",0,1)","v":"N/A"},{"$f":"_xlfn.XLOOKUP($E15,'Activity 7'!$B$17:$B$23,'Activity 7'!K$17:K$23,\"N/A\",0,1)","v":"N/A"},{"$f":"_xlfn.XLOOKUP($E15,'Activity 7'!$B$17:$B$23,'Activity 7'!L$17:L$23,\"N/A\",0,1)","v":"N/A"},{"$f":"_xlfn.XLOOKUP($E15,'Activity 7'!$B$17:$B$23,'Activity 7'!M$17:M$23,\"N/A\",0,1)","v":"N/A"},{"$f":"_xlfn.XLOOKUP($E15,'Activity 7'!$B$17:$B$23,'Activity 7'!N$17:N$23,\"N/A\",0,1)","v":"N/A"},{"$f":"_xlfn.XLOOKUP($E15,'Activity 7'!$B$17:$B$23,'Activity 7'!P$17:P$23,\"N/A\",0,1)","v":"N/A"},{"$f":"_xlfn.XLOOKUP($E15,'Activity 8'!$B$7:$B$13,'Activity 8'!A$7:A$13,\"No\",0,1)","v":"No"},{"$f":"_xlfn.XLOOKUP($E15,'Activity 8'!$B$7:$B$13,'Activity 8'!I$7:I$13,\"N/A\",0,1)","v":"N/A"},{"$f":"_xlfn.XLOOKUP($E15,'Activity 8'!$B$7:$B$13,'Activity 8'!J$7:J$13,\"N/A\",0,1)","v":"N/A"},{"$f":"_xlfn.XLOOKUP($E15,'Activity 8'!$B$7:$B$13,'Activity 8'!K$7:K$13,\"N/A\",0,1)","v":"N/A"},{"$f":"_xlfn.XLOOKUP($E15,'Activity 8'!$B$7:$B$13,'Activity 8'!L$7:L$13,\"N/A\",0,1)","v":"N/A"},{"$f":"_xlfn.XLOOKUP($E15,'Activity 8'!$B$7:$B$13,'Activity 8'!M$7:M$13,\"N/A\",0,1)","v":"N/A"},{"$f":"_xlfn.XLOOKUP($E15,'Activity 8'!$B$7:$B$13,'Activity 8'!N$7:N$13,\"N/A\",0,1)","v":"N/A"},{"$f":"_xlfn.XLOOKUP($E15,'Activity 8'!$B$7:$B$13,'Activity 8'!O$7:O$13,\"N/A\",0,1)","v":"N/A"},{"$f":"_xlfn.XLOOKUP($E15,'Activity 8'!$B$7:$B$13,'Activity 8'!P$7:P$13,\"N/A\",0,1)","v":"N/A"},{"$f":"_xlfn.XLOOKUP($E15,'Activity 8'!$B$7:$B$13,'Activity 8'!Q$7:Q$13,\"N/A\",0,1)","v":"N/A"},{"$f":"_xlfn.XLOOKUP($E15,'Activity 8'!$B$7:$B$13,'Activity 8'!R$7:R$13,\"N/A\",0,1)","v":"N/A"},{"$f":"_xlfn.XLOOKUP($E15,'Activity 8'!$B$7:$B$13,'Activity 8'!S$7:S$13,\"N/A\",0,1)","v":"N/A"},{"$f":"_xlfn.XLOOKUP($E15,'Activity 8'!$B$7:$B$13,'Activity 8'!T$7:T$13,\"N/A\",0,1)","v":"N/A"},{"$f":"_xlfn.XLOOKUP($E15,'Activity 8'!$B$7:$B$13,'Activity 8'!U$7:U$13,\"N/A\",0,1)","v":"N/A"},{"$f":"_xlfn.XLOOKUP($E15,'Activity 8'!$B$7:$B$13,'Activity 8'!V$7:V$13,\"N/A\",0,1)","v":"N/A"},{"$f":"_xlfn.XLOOKUP($E15,'Activity 8'!$B$17:$B$23,'Activity 8'!D$17:D$23,\"N/A\",0,1)","v":"N/A"},{"$f":"_xlfn.XLOOKUP($E15,'Activity 8'!$B$17:$B$23,'Activity 8'!E$17:E$23,\"N/A\",0,1)","v":"N/A"},{"$f":"_xlfn.XLOOKUP($E15,'Activity 8'!$B$17:$B$23,'Activity 8'!F$17:F$23,\"N/A\",0,1)","v":"N/A"},{"$f":"_xlfn.XLOOKUP($E15,'Activity 8'!$B$17:$B$23,'Activity 8'!G$17:G$23,\"N/A\",0,1)","v":"N/A"},{"$f":"_xlfn.XLOOKUP($E15,'Activity 8'!$B$17:$B$23,'Activity 8'!H$17:H$23,\"N/A\",0,1)","v":"N/A"},{"$f":"_xlfn.XLOOKUP($E15,'Activity 8'!$B$17:$B$23,'Activity 8'!I$17:I$23,\"N/A\",0,1)","v":"N/A"},{"$f":"_xlfn.XLOOKUP($E15,'Activity 8'!$B$17:$B$23,'Activity 8'!J$17:J$23,\"N/A\",0,1)","v":"N/A"},{"$f":"_xlfn.XLOOKUP($E15,'Activity 8'!$B$17:$B$23,'Activity 8'!K$17:K$23,\"N/A\",0,1)","v":"N/A"},{"$f":"_xlfn.XLOOKUP($E15,'Activity 8'!$B$17:$B$23,'Activity 8'!L$17:L$23,\"N/A\",0,1)","v":"N/A"},{"$f":"_xlfn.XLOOKUP($E15,'Activity 8'!$B$17:$B$23,'Activity 8'!M$17:M$23,\"N/A\",0,1)","v":"N/A"},{"$f":"_xlfn.XLOOKUP($E15,'Activity 8'!$B$17:$B$23,'Activity 8'!N$17:N$23,\"N/A\",0,1)","v":"N/A"},{"$f":"_xlfn.XLOOKUP($E15,'Activity 8'!$B$17:$B$23,'Activity 8'!P$17:P$23,\"N/A\",0,1)","v":"N/A"},{"$f":"_xlfn.XLOOKUP(E15,'Activity 9'!$B$7:$B$13,'Activity 9'!$A$7:$A$13,\"No\",0,1)","v":"No"},{"$f":"_xlfn.XLOOKUP($E15,'Activity 9'!$B$7:$B$13,'Activity 9'!J$7:J$13,\"N/A\",0,1)","v":"N/A"},{"$f":"_xlfn.XLOOKUP($E15,'Activity 9'!$B$7:$B$13,'Activity 9'!K$7:K$13,\"N/A\",0,1)","v":"N/A"},{"$f":"_xlfn.XLOOKUP($E15,'Activity 9'!$B$7:$B$13,'Activity 9'!L$7:L$13,\"N/A\",0,1)","v":"N/A"},{"$f":"_xlfn.XLOOKUP($E15,'Activity 9'!$B$7:$B$13,'Activity 9'!M$7:M$13,\"N/A\",0,1)","v":"N/A"},{"$f":"_xlfn.XLOOKUP($E15,'Activity 9'!$B$7:$B$13,'Activity 9'!N$7:N$13,\"N/A\",0,1)","v":"N/A"},{"$f":"_xlfn.XLOOKUP($E15,'Activity 9'!$B$7:$B$13,'Activity 9'!O$7:O$13,\"N/A\",0,1)","v":"N/A"},{"$f":"_xlfn.XLOOKUP($E15,'Activity 9'!$B$7:$B$13,'Activity 9'!P$7:P$13,\"N/A\",0,1)","v":"N/A"},{"$f":"_xlfn.XLOOKUP($E15,'Activity 9'!$B$7:$B$13,'Activity 9'!Q$7:Q$13,\"N/A\",0,1)","v":"N/A"},{"$f":"_xlfn.XLOOKUP($E15,'Activity 9'!$B$7:$B$13,'Activity 9'!R$7:R$13,\"N/A\",0,1)","v":"N/A"},{"$f":"_xlfn.XLOOKUP($E15,'Activity 9'!$B$7:$B$13,'Activity 9'!S$7:S$13,\"N/A\",0,1)","v":"N/A"},{"$f":"_xlfn.XLOOKUP($E15,'Activity 9'!$B$7:$B$13,'Activity 9'!T$7:T$13,\"N/A\",0,1)","v":"N/A"},{"$f":"_xlfn.XLOOKUP($E15,'Activity 9'!$B$17:$B$23,'Activity 9'!E$17:E$23,\"N/A\",0,1)","v":"N/A"},{"$f":"_xlfn.XLOOKUP($E15,'Activity 9'!$B$17:$B$23,'Activity 9'!F$17:F$23,\"N/A\",0,1)","v":"N/A"},{"$f":"_xlfn.XLOOKUP($E15,'Activity 9'!$B$17:$B$23,'Activity 9'!G$17:G$23,\"N/A\",0,1)","v":"N/A"},{"$f":"_xlfn.XLOOKUP($E15,'Activity 9'!$B$17:$B$23,'Activity 9'!H$17:H$23,\"N/A\",0,1)","v":"N/A"},{"$f":"_xlfn.XLOOKUP($E15,'Activity 9'!$B$17:$B$23,'Activity 9'!I$17:I$23,\"N/A\",0,1)","v":"N/A"},{"$f":"_xlfn.XLOOKUP($E15,'Activity 9'!$B$17:$B$23,'Activity 9'!J$17:J$23,\"N/A\",0,1)","v":"N/A"},{"$f":"_xlfn.XLOOKUP($E15,'Activity 9'!$B$17:$B$23,'Activity 9'!K$17:K$23,\"N/A\",0,1)","v":"N/A"},{"$f":"_xlfn.XLOOKUP($E15,'Activity 9'!$B$17:$B$23,'Activity 9'!L$17:L$23,\"N/A\",0,1)","v":"N/A"},{"$f":"_xlfn.XLOOKUP($E15,'Activity 9'!$B$17:$B$23,'Activity 9'!N$17:N$23,\"N/A\",0,1)","v":"N/A"},{"$f":"_xlfn.XLOOKUP($E15,'Activity 9'!$B$17:$B$23,'Activity 9'!O$17:O$23,\"N/A\",0,1)","v":"N/A"},{"$f":"_xlfn.XLOOKUP($E15,'Activity 9'!$B$17:$B$23,'Activity 9'!Q$17:Q$23,\"N/A\",0,1)","v":"N/A"},{"$f":"_xlfn.XLOOKUP($E15,'Activity 10'!$B$7:$B$13,'Activity 10'!A$7:A$13,\"No\",0,1)","v":"No"},{"$f":"_xlfn.XLOOKUP($E15,'Activity 10'!$B$7:$B$13,'Activity 10'!J$7:J$13,\"N/A\",0,1)","v":"N/A"},{"$f":"_xlfn.XLOOKUP($E15,'Activity 10'!$B$7:$B$13,'Activity 10'!K$7:K$13,\"N/A\",0,1)","v":"N/A"},{"$f":"_xlfn.XLOOKUP($E15,'Activity 10'!$B$7:$B$13,'Activity 10'!L$7:L$13,\"N/A\",0,1)","v":"N/A"},{"$f":"_xlfn.XLOOKUP($E15,'Activity 10'!$B$7:$B$13,'Activity 10'!M$7:M$13,\"N/A\",0,1)","v":"N/A"},{"$f":"_xlfn.XLOOKUP($E15,'Activity 10'!$B$7:$B$13,'Activity 10'!N$7:N$13,\"N/A\",0,1)","v":"N/A"},{"$f":"_xlfn.XLOOKUP($E15,'Activity 10'!$B$7:$B$13,'Activity 10'!O$7:O$13,\"N/A\",0,1)","v":"N/A"},{"$f":"_xlfn.XLOOKUP($E15,'Activity 10'!$B$7:$B$13,'Activity 10'!P$7:P$13,\"N/A\",0,1)","v":"N/A"},{"$f":"_xlfn.XLOOKUP($E15,'Activity 10'!$B$7:$B$13,'Activity 10'!Q$7:Q$13,\"N/A\",0,1)","v":"N/A"},{"$f":"_xlfn.XLOOKUP($E15,'Activity 10'!$B$7:$B$13,'Activity 10'!R$7:R$13,\"N/A\",0,1)","v":"N/A"},{"$f":"_xlfn.XLOOKUP($E15,'Activity 10'!$B$7:$B$13,'Activity 10'!S$7:S$13,\"N/A\",0,1)","v":"N/A"},{"$f":"_xlfn.XLOOKUP($E15,'Activity 10'!$B$7:$B$13,'Activity 10'!T$7:T$13,\"N/A\",0,1)","v":"N/A"},{"$f":"_xlfn.XLOOKUP($E15,'Activity 10'!$B$7:$B$13,'Activity 10'!U$7:U$13,\"N/A\",0,1)","v":"N/A"},{"$f":"_xlfn.XLOOKUP($E15,'Activity 10'!$B$7:$B$13,'Activity 10'!V$7:V$13,\"N/A\",0,1)","v":"N/A"},{"$f":"_xlfn.XLOOKUP($E15,'Activity 10'!$B$17:$B$23,'Activity 10'!E$17:E$23,\"N/A\",0,1)","v":"N/A"},{"$f":"_xlfn.XLOOKUP($E15,'Activity 10'!$B$17:$B$23,'Activity 10'!F$17:F$23,\"N/A\",0,1)","v":"N/A"},{"$f":"_xlfn.XLOOKUP($E15,'Activity 10'!$B$17:$B$23,'Activity 10'!G$17:G$23,\"N/A\",0,1)","v":"N/A"},{"$f":"_xlfn.XLOOKUP($E15,'Activity 10'!$B$17:$B$23,'Activity 10'!H$17:H$23,\"N/A\",0,1)","v":"N/A"},{"$f":"_xlfn.XLOOKUP($E15,'Activity 10'!$B$17:$B$23,'Activity 10'!I$17:I$23,\"N/A\",0,1)","v":"N/A"},{"$f":"_xlfn.XLOOKUP($E15,'Activity 10'!$B$17:$B$23,'Activity 10'!J$17:J$23,\"N/A\",0,1)","v":"N/A"},{"$f":"_xlfn.XLOOKUP($E15,'Activity 10'!$B$17:$B$23,'Activity 10'!K$17:K$23,\"N/A\",0,1)","v":"N/A"},{"$f":"_xlfn.XLOOKUP($E15,'Activity 10'!$B$17:$B$23,'Activity 10'!L$17:L$23,\"N/A\",0,1)","v":"N/A"},{"$f":"_xlfn.XLOOKUP($E15,'Activity 10'!$B$17:$B$23,'Activity 10'!M$17:M$23,\"N/A\",0,1)","v":"N/A"},{"$f":"_xlfn.XLOOKUP($E15,'Activity 10'!$B$17:$B$23,'Activity 10'!N$17:N$23,\"N/A\",0,1)","v":"N/A"},{"$f":"_xlfn.XLOOKUP($E15,'Activity 10'!$B$17:$B$23,'Activity 10'!P$17:P$23,\"N/A\",0,1)","v":"N/A"},{"$f":"_xlfn.XLOOKUP($E15,'Competitive Activity 1'!B$7:B$13,'Competitive Activity 1'!A$7:A$13,\"No\",0,1)","v":"No"},{"$f":"_xlfn.XLOOKUP($E15,'Competitive Activity 1'!$B$7:$B$13,'Competitive Activity 1'!H$7:H$13,\"N/A\",0,1)","v":"N/A"},{"$f":"_xlfn.XLOOKUP($E15,'Competitive Activity 1'!$B$7:$B$13,'Competitive Activity 1'!I$7:I$13,\"N/A\",0,1)","v":"N/A"},{"$f":"_xlfn.XLOOKUP($E15,'Competitive Activity 1'!$B$7:$B$13,'Competitive Activity 1'!J$7:J$13,\"N/A\",0,1)","v":"N/A"},{"$f":"_xlfn.XLOOKUP($E15,'Competitive Activity 1'!$B$7:$B$13,'Competitive Activity 1'!K$7:K$13,\"N/A\",0,1)","v":"N/A"},{"$f":"_xlfn.XLOOKUP($E15,'Competitive Activity 1'!$B$7:$B$13,'Competitive Activity 1'!L$7:L$13,\"N/A\",0,1)","v":"N/A"},{"$f":"_xlfn.XLOOKUP($E15,'Competitive Activity 1'!$B$7:$B$13,'Competitive Activity 1'!M$7:M$13,\"N/A\",0,1)","v":"N/A"},{"$f":"_xlfn.XLOOKUP($E15,'Competitive Activity 1'!$B$7:$B$13,'Competitive Activity 1'!N$7:N$13,\"N/A\",0,1)","v":"N/A"},{"$f":"_xlfn.XLOOKUP($E15,'Competitive Activity 1'!$B$7:$B$13,'Competitive Activity 1'!O$7:O$13,\"N/A\",0,1)","v":"N/A"},{"$f":"_xlfn.XLOOKUP($E15,'Competitive Activity 1'!$B$7:$B$13,'Competitive Activity 1'!P$7:P$13,\"N/A\",0,1)","v":"N/A"},{"$f":"_xlfn.XLOOKUP($E15,'Competitive Activity 1'!$B$7:$B$13,'Competitive Activity 1'!Q$7:Q$13,\"N/A\",0,1)","v":"N/A"},{"$f":"_xlfn.XLOOKUP($E15,'Competitive Activity 1'!$B$7:$B$13,'Competitive Activity 1'!R$7:R$13,\"N/A\",0,1)","v":"N/A"},{"$f":"_xlfn.XLOOKUP($E15,'Competitive Activity 1'!$B$7:$B$13,'Competitive Activity 1'!S$7:S$13,\"N/A\",0,1)","v":"N/A"},{"$f":"_xlfn.XLOOKUP($E15,'Competitive Activity 1'!$B$7:$B$13,'Competitive Activity 1'!T$7:T$13,\"N/A\",0,1)","v":"N/A"},{"$f":"_xlfn.XLOOKUP($E15,'Competitive Activity 1'!$B$7:$B$13,'Competitive Activity 1'!U$7:U$13,\"N/A\",0,1)","v":"N/A"},{"$f":"_xlfn.XLOOKUP($E15,'Competitive Activity 1'!$B$17:$B$23,'Competitive Activity 1'!C$17:C$23,\"N/A\",0,1)","v":"N/A"},{"$f":"_xlfn.XLOOKUP($E15,'Competitive Activity 1'!$B$17:$B$23,'Competitive Activity 1'!D$17:D$23,\"N/A\",0,1)","v":"N/A"},{"$f":"_xlfn.XLOOKUP($E15,'Competitive Activity 1'!$B$17:$B$23,'Competitive Activity 1'!E$17:E$23,\"N/A\",0,1)","v":"N/A"},{"$f":"_xlfn.XLOOKUP($E15,'Competitive Activity 1'!$B$17:$B$23,'Competitive Activity 1'!F$17:F$23,\"N/A\",0,1)","v":"N/A"},{"$f":"_xlfn.XLOOKUP($E15,'Competitive Activity 1'!$B$17:$B$23,'Competitive Activity 1'!G$17:G$23,\"N/A\",0,1)","v":"N/A"},{"$f":"_xlfn.XLOOKUP($E15,'Competitive Activity 1'!$B$17:$B$23,'Competitive Activity 1'!H$17:H$23,\"N/A\",0,1)","v":"N/A"},{"$f":"_xlfn.XLOOKUP($E15,'Competitive Activity 1'!$B$17:$B$23,'Competitive Activity 1'!I$17:I$23,\"N/A\",0,1)","v":"N/A"},{"$f":"_xlfn.XLOOKUP($E15,'Competitive Activity 1'!$B$17:$B$23,'Competitive Activity 1'!J$17:J$23,\"N/A\",0,1)","v":"N/A"},{"$f":"_xlfn.XLOOKUP($E15,'Competitive Activity 1'!$B$17:$B$23,'Competitive Activity 1'!K$17:K$23,\"N/A\",0,1)","v":"N/A"},{"$f":"_xlfn.XLOOKUP($E15,'Competitive Activity 1'!$B$17:$B$23,'Competitive Activity 1'!M$17:M$23,\"N/A\",0,1)","v":"N/A"},{"$f":"_xlfn.XLOOKUP($E15,'Competitive Activity 1'!$B$17:$B$23,'Competitive Activity 1'!N$17:N$23,\"N/A\",0,1)","v":"N/A"},{"$f":"_xlfn.XLOOKUP($E15,'Competitive Activity 1'!$B$17:$B$23,'Competitive Activity 1'!P$17:P$23,\"N/A\",0,1)","v":"N/A"},{"$f":"_xlfn.XLOOKUP($E15,'Competitive Activity 2'!$B$7:$B$13,'Competitive Activity 2'!A$7:A$13,\"No\",0)","v":"No"},{"$f":"_xlfn.XLOOKUP($E15,'Competitive Activity 2'!$B$7:$B$13,'Competitive Activity 2'!L$7:L$13,\"N/A\",0)","v":"N/A"},{"$f":"_xlfn.XLOOKUP($E15,'Competitive Activity 2'!$B$7:$B$13,'Competitive Activity 2'!M$7:M$13,\"N/A\",0)","v":"N/A"},{"$f":"_xlfn.XLOOKUP($E15,'Competitive Activity 2'!$B$7:$B$13,'Competitive Activity 2'!N$7:N$13,\"N/A\",0)","v":"N/A"},{"$f":"_xlfn.XLOOKUP($E15,'Competitive Activity 2'!$B$7:$B$13,'Competitive Activity 2'!O$7:O$13,\"N/A\",0)","v":"N/A"},{"$f":"_xlfn.XLOOKUP($E15,'Competitive Activity 2'!$B$7:$B$13,'Competitive Activity 2'!P$7:P$13,\"N/A\",0)","v":"N/A"},{"$f":"_xlfn.XLOOKUP($E15,'Competitive Activity 2'!$B$7:$B$13,'Competitive Activity 2'!Q$7:Q$13,\"N/A\",0)","v":"N/A"},{"$f":"_xlfn.XLOOKUP($E15,'Competitive Activity 2'!$B$7:$B$13,'Competitive Activity 2'!R$7:R$13,\"N/A\",0)","v":"N/A"},{"$f":"_xlfn.XLOOKUP($E15,'Competitive Activity 2'!$B$7:$B$13,'Competitive Activity 2'!S$7:S$13,\"N/A\",0)","v":"N/A"},{"$f":"_xlfn.XLOOKUP($E15,'Competitive Activity 2'!$B$7:$B$13,'Competitive Activity 2'!T$7:T$13,\"N/A\",0)","v":"N/A"},{"$f":"_xlfn.XLOOKUP($E15,'Competitive Activity 2'!$B$7:$B$13,'Competitive Activity 2'!U$7:U$13,\"N/A\",0)","v":"N/A"},{"$f":"_xlfn.XLOOKUP($E15,'Competitive Activity 2'!$B$17:$B$23,'Competitive Activity 2'!D$17:D$23,\"N/A\",0)","v":"N/A"},{"$f":"_xlfn.XLOOKUP($E15,'Competitive Activity 2'!$B$17:$B$23,'Competitive Activity 2'!E$17:E$23,\"N/A\",0)","v":"N/A"},{"$f":"_xlfn.XLOOKUP($E15,'Competitive Activity 2'!$B$17:$B$23,'Competitive Activity 2'!F$17:F$23,\"N/A\",0)","v":"N/A"},{"$f":"_xlfn.XLOOKUP($E15,'Competitive Activity 2'!$B$17:$B$23,'Competitive Activity 2'!G$17:G$23,\"N/A\",0)","v":"N/A"},{"$f":"_xlfn.XLOOKUP($E15,'Competitive Activity 2'!$B$17:$B$23,'Competitive Activity 2'!H$17:H$23,\"N/A\",0)","v":"N/A"},{"$f":"_xlfn.XLOOKUP($E15,'Competitive Activity 2'!$B$17:$B$23,'Competitive Activity 2'!I$17:I$23,\"N/A\",0)","v":"N/A"},{"$f":"_xlfn.XLOOKUP($E15,'Competitive Activity 2'!$B$17:$B$23,'Competitive Activity 2'!J$17:J$23,\"N/A\",0)","v":"N/A"},{"$f":"_xlfn.XLOOKUP($E15,'Competitive Activity 2'!$B$17:$B$23,'Competitive Activity 2'!K$17:K$23,\"N/A\",0)","v":"N/A"},{"$f":"_xlfn.XLOOKUP($E15,'Competitive Activity 2'!$B$17:$B$23,'Competitive Activity 2'!L$17:L$23,\"N/A\",0)","v":"N/A"},{"$f":"_xlfn.XLOOKUP($E15,'Competitive Activity 2'!$B$17:$B$23,'Competitive Activity 2'!M$17:M$23,\"N/A\",0)","v":"N/A"},{"$f":"_xlfn.XLOOKUP($E15,'Competitive Activity 2'!$B$17:$B$23,'Competitive Activity 2'!N$17:N$23,\"N/A\",0)","v":"N/A"},{"$f":"_xlfn.XLOOKUP($E15,'Competitive Activity 2'!$B$27:$B$33,'Competitive Activity 2'!D$27:D$33,\"N/A\",0)","v":"N/A"},{"$f":"_xlfn.XLOOKUP($E15,'Competitive Activity 2'!$B$27:$B$33,'Competitive Activity 2'!E$27:E$33,\"N/A\",0)","v":"N/A"},{"$f":"_xlfn.XLOOKUP($E15,'Competitive Activity 2'!$B$27:$B$33,'Competitive Activity 2'!F$27:F$33,\"N/A\",0)","v":"N/A"},{"$f":"_xlfn.XLOOKUP($E15,'Competitive Activity 2'!$B$27:$B$33,'Competitive Activity 2'!G$27:G$33,\"N/A\",0)","v":"N/A"},{"$f":"_xlfn.XLOOKUP($E15,'Competitive Activity 2'!$B$27:$B$33,'Competitive Activity 2'!H$27:H$33,\"N/A\",0)","v":"N/A"},{"$f":"_xlfn.XLOOKUP($E15,'Competitive Activity 2'!$B$27:$B$33,'Competitive Activity 2'!I$27:I$33,\"N/A\",0)","v":"N/A"},{"$f":"_xlfn.XLOOKUP($E15,'Competitive Activity 2'!$B$27:$B$33,'Competitive Activity 2'!J$27:J$33,\"N/A\",0)","v":"N/A"},{"$f":"_xlfn.XLOOKUP($E15,'Competitive Activity 2'!$B$27:$B$33,'Competitive Activity 2'!K$27:K$33,\"N/A\",0)","v":"N/A"},{"$f":"_xlfn.XLOOKUP($E15,'Competitive Activity 2'!$B$27:$B$33,'Competitive Activity 2'!M$27:M$33,\"N/A\",0)","v":"N/A"}]
[{"$f":"'1-Cover Sheet'!$C$8","v":"Select One"},{"$f":"'1-Cover Sheet'!$F$8","v":"Select One"},{"$f":"'Summary Sheet'!$D$8","v":0},{"$f":"'Summary Sheet'!$D$10","v":0},{"$f":"'Drop Down Box'!B180","v":0},{"$f":"'Drop Down Box'!C180","v":0},{"$f":"'Drop Down Box'!D180","v":"Select One"},{"$f":"_xlfn.XLOOKUP(E16,'Drop Down Box'!$B$166:$B$249,'Drop Down Box'!$A$166:$A$249,\"Unknown\",0)","v":"Activity 1"},{"$f":"_xlfn.XLOOKUP(E16,'Activity 3'!B$8:B$14,'Activity 3'!P$8:P$14,\"N/A\",0)","v":"N/A"},{"$f":"_xlfn.XLOOKUP($E16,'Activity 3'!$B$8:$B$14,'Activity 3'!Q$8:Q$14,\"N/A\",0)","v":"N/A"},{"$f":"_xlfn.XLOOKUP($E16,'Activity 3'!$B$8:$B$14,'Activity 3'!H$8:H$14,\"N/A\",0)","v":"N/A"},{"$f":"_xlfn.XLOOKUP($E16,'Activity 3'!$B$8:$B$14,'Activity 3'!I8:I14,\"N/A\",0)","v":"N/A"},{"$f":"_xlfn.XLOOKUP($E16,'Activity 3'!$B$8:$B$14,'Activity 3'!J8:J14,\"N/A\",0)","v":"N/A"},{"$f":"_xlfn.XLOOKUP($E16,'Activity 1'!$B$7:$B$13,'Activity 1'!$A$7:$A$13,\"No\",0,1)","v":"No"},{"$f":"_xlfn.XLOOKUP($E16,'Activity 1'!$B$7:$B$13,'Activity 1'!$H$7:$H$13,\"N/A\",0,1)","v":"N/A"},{"$f":"_xlfn.XLOOKUP($E16,'Activity 1'!$B$7:$B$13,'Activity 1'!I$7:I$13,\"N/A\",0,1)","v":"N/A"},{"$f":"_xlfn.XLOOKUP($E16,'Activity 1'!$B$7:$B$13,'Activity 1'!J$7:J$13,\"N/A\",0,1)","v":"N/A"},{"$f":"_xlfn.XLOOKUP($E16,'Activity 1'!$B$7:$B$13,'Activity 1'!K$7:K$13,\"N/A\",0,1)","v":"N/A"},{"$f":"_xlfn.XLOOKUP($E16,'Activity 1'!$B$7:$B$13,'Activity 1'!L$7:L$13,\"N/A\",0,1)","v":"N/A"},{"$f":"_xlfn.XLOOKUP($E16,'Activity 1'!$B$7:$B$13,'Activity 1'!M$7:M$13,\"N/A\",0,1)","v":"N/A"},{"$f":"_xlfn.XLOOKUP($E16,'Activity 1'!$B$7:$B$13,'Activity 1'!N$7:N$13,\"N/A\",0,1)","v":"N/A"},0,{"$f":"_xlfn.XLOOKUP($E16,'Activity 1'!$B$7:$B$13,'Activity 1'!O$7:O$13,\"N/A\",0,1)","v":"N/A"},{"$f":"_xlfn.XLOOKUP($E16,'Activity 1'!$B$7:$B$13,'Activity 1'!P$7:P$13,\"N/A\",0,1)","v":"N/A"},{"$f":"_xlfn.XLOOKUP($E16,'Activity 1'!$B$7:$B$13,'Activity 1'!Q$7:Q$13,\"N/A\",0,1)","v":"N/A"},{"$f":"_xlfn.XLOOKUP($E16,'Activity 1'!$B$7:$B$13,'Activity 1'!R$7:R$13,\"N/A\",0,1)","v":"N/A"},{"$f":"_xlfn.XLOOKUP($E16,'Activity 1'!$B$7:$B$13,'Activity 1'!S$7:S$13,\"N/A\",0,1)","v":"N/A"},{"$f":"_xlfn.XLOOKUP($E16,'Activity 1'!$B$7:$B$13,'Activity 1'!T$7:T$13,\"N/A\",0,1)","v":"N/A"},{"$f":"_xlfn.XLOOKUP($E16,'Activity 1'!$B$7:$B$13,'Activity 1'!U$7:U$13,\"N/A\",0,1)","v":"N/A"},{"$f":"_xlfn.XLOOKUP($E16,'Activity 1'!$B$7:$B$13,'Activity 1'!V$7:V$13,\"N/A\",0,1)","v":"N/A"},{"$f":"_xlfn.XLOOKUP($E16,'Activity 1'!$B$17:$B$23,'Activity 1'!C$17:C$23,\"N/A\",0,1)","v":"N/A"},{"$f":"_xlfn.XLOOKUP($E16,'Activity 1'!$B$17:$B$23,'Activity 1'!D$17:D$23,\"N/A\",0,1)","v":"N/A"},{"$f":"_xlfn.XLOOKUP($E16,'Activity 1'!$B$17:$B$23,'Activity 1'!E$17:E$23,\"N/A\",0,1)","v":"N/A"},{"$f":"_xlfn.XLOOKUP($E16,'Activity 1'!$B$17:$B$23,'Activity 1'!F$17:F$23,\"N/A\",0,1)","v":"N/A"},{"$f":"_xlfn.XLOOKUP($E16,'Activity 1'!$B$17:$B$23,'Activity 1'!G$17:G$23,\"N/A\",0,1)","v":"N/A"},{"$f":"_xlfn.XLOOKUP($E16,'Activity 1'!$B$17:$B$23,'Activity 1'!H$17:H$23,\"N/A\",0,1)","v":"N/A"},{"$f":"_xlfn.XLOOKUP($E16,'Activity 1'!$B$17:$B$23,'Activity 1'!I$17:I$23,\"N/A\",0,1)","v":"N/A"},{"$f":"_xlfn.XLOOKUP($E16,'Activity 1'!$B$17:$B$23,'Activity 1'!J$17:J$23,\"N/A\",0,1)","v":"N/A"},{"$f":"_xlfn.XLOOKUP($E16,'Activity 1'!$B$17:$B$23,'Activity 1'!K$17:K$23,\"N/A\",0,1)","v":"N/A"},{"$f":"_xlfn.XLOOKUP($E16,'Activity 1'!$B$17:$B$23,'Activity 1'!L$17:L$23,\"N/A\",0,1)","v":"N/A"},{"$f":"_xlfn.XLOOKUP($E16,'Activity 1'!$B$17:$B$23,'Activity 1'!M$17:M$23,\"N/A\",0,1)","v":"N/A"},{"$f":"_xlfn.XLOOKUP($E16,'Activity 1'!$B$17:$B$23,'Activity 1'!O$17:O$23,\"N/A\",0,1)","v":"N/A"},{"$f":"_xlfn.XLOOKUP($E16,'Activity 1'!$B$17:$B$23,'Activity 1'!Q$17:Q$23,\"N/A\",0,1)","v":"N/A"},{"$f":"_xlfn.XLOOKUP($E16,'Activity 2'!$B$7:$B$13,'Activity 2'!$A$7:$A$13,\"No\",0,1)","v":"No"},{"$f":"_xlfn.XLOOKUP($E16,'Activity 2'!B$7:B$13,'Activity 2'!H$7:H$13,\"N/A\",0)","v":"N/A"},{"$f":"_xlfn.XLOOKUP($E16,'Activity 2'!C$7:C$13,'Activity 2'!I$7:I$13,\"N/A\",0)","v":"N/A"},{"$f":"_xlfn.XLOOKUP($E16,'Activity 2'!D$7:D$13,'Activity 2'!J$7:J$13,\"N/A\",0)","v":"N/A"},{"$f":"_xlfn.XLOOKUP($E16,'Activity 2'!E$7:E$13,'Activity 2'!K$7:K$13,\"N/A\",0)","v":"N/A"},{"$f":"_xlfn.XLOOKUP($E16,'Activity 2'!F$7:F$13,'Activity 2'!L$7:L$13,\"N/A\",0)","v":"N/A"},{"$f":"_xlfn.XLOOKUP($E16,'Activity 2'!G$7:G$13,'Activity 2'!M$7:M$13,\"N/A\",0)","v":"N/A"},{"$f":"_xlfn.XLOOKUP($E16,'Activity 2'!H$7:H$13,'Activity 2'!N$7:N$13,\"N/A\",0)","v":"N/A"},{"$f":"_xlfn.XLOOKUP($E16,'Activity 2'!I$7:I$13,'Activity 2'!O$7:O$13,\"N/A\",0)","v":"N/A"},{"$f":"_xlfn.XLOOKUP($E16,'Activity 2'!J$7:J$13,'Activity 2'!P$7:P$13,\"N/A\",0)","v":"N/A"},{"$f":"_xlfn.XLOOKUP($E16,'Activity 2'!K$7:K$13,'Activity 2'!Q$7:Q$13,\"N/A\",0)","v":"N/A"},{"$f":"_xlfn.XLOOKUP($E16,'Activity 2'!L$7:L$13,'Activity 2'!R$7:R$13,\"N/A\",0)","v":"N/A"},{"$f":"_xlfn.XLOOKUP($E16,'Activity 2'!M$7:M$13,'Activity 2'!S$7:S$13,\"N/A\",0)","v":"N/A"},{"$f":"_xlfn.XLOOKUP($E16,'Activity 2'!N$7:N$13,'Activity 2'!T$7:T$13,\"N/A\",0)","v":"N/A"},{"$f":"_xlfn.XLOOKUP($E16,'Activity 2'!O$7:O$13,'Activity 2'!U$7:U$13,\"N/A\",0)","v":"N/A"},{"$f":"_xlfn.XLOOKUP($E16,'Activity 2'!P$7:P$13,'Activity 2'!V$7:V$13,\"N/A\",0)","v":"N/A"},{"$f":"_xlfn.XLOOKUP($E16,'Activity 2'!$B$17:$B$23,'Activity 2'!C$17:C$23,\"N/A\",0,1)","v":"N/A"},{"$f":"_xlfn.XLOOKUP($E16,'Activity 2'!$B$17:$B$23,'Activity 2'!D$17:D$23,\"N/A\",0,1)","v":"N/A"},{"$f":"_xlfn.XLOOKUP($E16,'Activity 2'!$B$17:$B$23,'Activity 2'!E$17:E$23,\"N/A\",0,1)","v":"N/A"},{"$f":"_xlfn.XLOOKUP($E16,'Activity 2'!$B$17:$B$23,'Activity 2'!F$17:F$23,\"N/A\",0,1)","v":"N/A"},{"$f":"_xlfn.XLOOKUP($E16,'Activity 2'!$B$17:$B$23,'Activity 2'!G$17:G$23,\"N/A\",0,1)","v":"N/A"},{"$f":"_xlfn.XLOOKUP($E16,'Activity 2'!$B$17:$B$23,'Activity 2'!H$17:H$23,\"N/A\",0,1)","v":"N/A"},{"$f":"_xlfn.XLOOKUP($E16,'Activity 2'!$B$17:$B$23,'Activity 2'!I$17:I$23,\"N/A\",0,1)","v":"N/A"},{"$f":"_xlfn.XLOOKUP($E16,'Activity 2'!$B$17:$B$23,'Activity 2'!J$17:J$23,\"N/A\",0,1)","v":"N/A"},{"$f":"_xlfn.XLOOKUP($E16,'Activity 2'!$B$17:$B$23,'Activity 2'!K$17:K$23,\"N/A\",0,1)","v":"N/A"},{"$f":"_xlfn.XLOOKUP($E16,'Activity 2'!$B$17:$B$23,'Activity 2'!L$17:L$23,\"N/A\",0,1)","v":"N/A"},{"$f":"_xlfn.XLOOKUP($E16,'Activity 2'!$B$17:$B$23,'Activity 2'!M$17:M$23,\"N/A\",0,1)","v":"N/A"},{"$f":"_xlfn.XLOOKUP($E16,'Activity 2'!$B$17:$B$23,'Activity 2'!O$17:O$23,\"N/A\",0,1)","v":"N/A"},{"$f":"_xlfn.XLOOKUP($E16,'Activity 2'!$B$17:$B$23,'Activity 2'!Q$17:Q$23,\"N/A\",0,1)","v":"N/A"},null,{"$f":"_xlfn.XLOOKUP($E16,'Activity 3'!$B$8:$B$14,'Activity 3'!K$8:K$14,\"N/A\",0,1)","v":"N/A"},{"$f":"_xlfn.XLOOKUP($E16,'Activity 3'!$B$8:$B$14,'Activity 3'!L$8:L$14,\"N/A\",0,1)","v":"N/A"},{"$f":"_xlfn.XLOOKUP($E16,'Activity 3'!$B$8:$B$14,'Activity 3'!M$8:M$14,\"N/A\",0,1)","v":"N/A"},{"$f":"_xlfn.XLOOKUP($E16,'Activity 3'!$B$8:$B$14,'Activity 3'!N$8:N$14,\"N/A\",0,1)","v":"N/A"},{"$f":"_xlfn.XLOOKUP($E16,'Activity 3'!$B$8:$B$14,'Activity 3'!O$8:O$14,\"N/A\",0,1)","v":"N/A"},{"$f":"_xlfn.XLOOKUP($E16,'Activity 3'!$B$8:$B$14,'Activity 3'!R$8:R$14,\"N/A\",0,1)","v":"N/A"},{"$f":"_xlfn.XLOOKUP($E16,'Activity 4'!$B$8:$B$14,'Activity 4'!$A$8:$A$14,\"No\",0,1)","v":"No"},{"$f":"_xlfn.XLOOKUP($E16,'Activity 4'!$B$8:$B$14,'Activity 4'!L$8:L$14,\"N/A\",0,1)","v":"N/A"},{"$f":"_xlfn.XLOOKUP($E16,'Activity 4'!$B$8:$B$14,'Activity 4'!I$8:I$14,\"N/A\",0,1)","v":"N/A"},{"$f":"_xlfn.XLOOKUP($E16,'Activity 4'!$B$8:$B$14,'Activity 4'!M$8:M$14,\"N/A\",0,1)","v":"N/A"},{"$f":"_xlfn.XLOOKUP($E16,'Activity 5'!$B$8:$B$14,'Activity 5'!$A$8:$A$14,\"No\",0,1)","v":"No"},{"$f":"_xlfn.XLOOKUP($E16,'Activity 5'!$B$8:$B$14,'Activity 5'!J$8:J$14,\"N/A\",0,1)","v":"N/A"},{"$f":"_xlfn.XLOOKUP($E16,'Activity 5'!$B$8:$B$14,'Activity 5'!K$8:K$14,\"N/A\",0,1)","v":"N/A"},{"$f":"_xlfn.XLOOKUP($E16,'Activity 5'!$B$8:$B$14,'Activity 5'!N$8:N$14,\"N/A\",0,1)","v":"N/A"},{"$f":"_xlfn.XLOOKUP($E16,'Activity 5'!$B$8:$B$14,'Activity 5'!O$8:O$14,\"N/A\",0,1)","v":"N/A"},{"$f":"_xlfn.XLOOKUP($E16,'Activity 5'!$B$8:$B$14,'Activity 5'!P$8:P$14,\"N/A\",0,1)","v":"N/A"},{"$f":"_xlfn.XLOOKUP($E16,'Activity 5'!$B$8:$B$14,'Activity 5'!Q$8:Q$14,\"N/A\",0,1)","v":"N/A"},{"$f":"_xlfn.XLOOKUP($E16,'Activity 5'!$B$8:$B$14,'Activity 5'!R$8:R$14,\"N/A\",0,1)","v":"N/A"},{"$f":"_xlfn.XLOOKUP($E16,'Activity 6'!$B$7:$B$13,'Activity 6'!A$7:A$13,\"No\",0,1)","v":"No"},{"$f":"_xlfn.XLOOKUP($E16,'Activity 6'!$B$7:$B$13,'Activity 6'!K$7:K$13,\"N/A\",0,1)","v":"N/A"},{"$f":"_xlfn.XLOOKUP($E16,'Activity 6'!$B$7:$B$13,'Activity 6'!L$7:L$13,\"N/A\",0,1)","v":"N/A"},{"$f":"_xlfn.XLOOKUP($E16,'Activity 6'!$B$7:$B$13,'Activity 6'!M$7:M$13,\"N/A\",0,1)","v":"N/A"},{"$f":"_xlfn.XLOOKUP($E16,'Activity 6'!$B$7:$B$13,'Activity 6'!N$7:N$13,\"N/A\",0,1)","v":"N/A"},{"$f":"_xlfn.XLOOKUP($E16,'Activity 6'!$B$7:$B$13,'Activity 6'!O$7:O$13,\"N/A\",0,1)","v":"N/A"},{"$f":"_xlfn.XLOOKUP($E16,'Activity 6'!$B$7:$B$13,'Activity 6'!P$7:P$13,\"N/A\",0,1)","v":"N/A"},{"$f":"_xlfn.XLOOKUP($E16,'Activity 6'!$B$7:$B$13,'Activity 6'!Q$7:Q$13,\"N/A\",0,1)","v":"N/A"},{"$f":"_xlfn.XLOOKUP($E16,'Activity 6'!$B$7:$B$13,'Activity 6'!R$7:R$13,\"N/A\",0,1)","v":"N/A"},{"$f":"_xlfn.XLOOKUP($E16,'Activity 6'!$B$7:$B$13,'Activity 6'!S$7:S$13,\"N/A\",0,1)","v":"N/A"},{"$f":"_xlfn.XLOOKUP($E16,'Activity 6'!$B$7:$B$13,'Activity 6'!T$7:T$13,\"N/A\",0,1)","v":"N/A"},{"$f":"_xlfn.XLOOKUP($E16,'Activity 6'!$B$7:$B$13,'Activity 6'!U$7:U$13,\"N/A\",0,1)","v":"N/A"},{"$f":"_xlfn.XLOOKUP($E16,'Activity 6'!$B$22:$B$28,'Activity 6'!C$22:C$28,\"N/A\",0,1)","v":"N/A"},{"$f":"_xlfn.XLOOKUP($E16,'Activity 6'!$B$22:$B$28,'Activity 6'!D$22:D$28,\"N/A\",0,1)","v":"N/A"},{"$f":"_xlfn.XLOOKUP($E16,'Activity 6'!$B$22:$B$28,'Activity 6'!E$22:E$28,\"N/A\",0,1)","v":"N/A"},{"$f":"_xlfn.XLOOKUP($E16,'Activity 6'!$B$22:$B$28,'Activity 6'!F$22:F$28,\"N/A\",0,1)","v":"N/A"},{"$f":"_xlfn.XLOOKUP($E16,'Activity 6'!$B$22:$B$28,'Activity 6'!G$22:G$28,\"N/A\",0,1)","v":"N/A"},{"$f":"_xlfn.XLOOKUP($E16,'Activity 6'!$B$22:$B$28,'Activity 6'!H$22:H$28,\"N/A\",0,1)","v":"N/A"},{"$f":"_xlfn.XLOOKUP($E16,'Activity 6'!$B$22:$B$28,'Activity 6'!I$22:I$28,\"N/A\",0,1)","v":"N/A"},{"$f":"_xlfn.XLOOKUP($E16,'Activity 6'!$B$22:$B$28,'Activity 6'!J$22:J$28,\"N/A\",0,1)","v":"N/A"},{"$f":"_xlfn.XLOOKUP($E16,'Activity 6'!$B$22:$B$28,'Activity 6'!K$22:K$28,\"N/A\",0,1)","v":"N/A"},{"$f":"_xlfn.XLOOKUP($E16,'Activity 6'!$B$22:$B$28,'Activity 6'!L$22:L$28,\"N/A\",0,1)","v":"N/A"},{"$f":"_xlfn.XLOOKUP($E16,'Activity 6'!$B$22:$B$28,'Activity 6'!M$22:M$28,\"N/A\",0,1)","v":"N/A"},{"$f":"_xlfn.XLOOKUP($E16,'Activity 6'!$B$22:$B$28,'Activity 6'!N$22:N$28,\"N/A\",0,1)","v":"N/A"},{"$f":"_xlfn.XLOOKUP($E16,'Activity 6'!$B$32:$B$38,'Activity 6'!C$32:C$38,\"N/A\",0,1)","v":"N/A"},{"$f":"_xlfn.XLOOKUP($E16,'Activity 6'!$B$32:$B$38,'Activity 6'!D$32:D$38,\"N/A\",0,1)","v":"N/A"},{"$f":"_xlfn.XLOOKUP($E16,'Activity 6'!$B$32:$B$38,'Activity 6'!E$32:E$38,\"N/A\",0,1)","v":"N/A"},{"$f":"_xlfn.XLOOKUP($E16,'Activity 6'!$B$32:$B$38,'Activity 6'!F$32:F$38,\"N/A\",0,1)","v":"N/A"},{"$f":"_xlfn.XLOOKUP($E16,'Activity 6'!$B$32:$B$38,'Activity 6'!G$32:G$38,\"N/A\",0,1)","v":"N/A"},{"$f":"_xlfn.XLOOKUP($E16,'Activity 6'!$B$32:$B$38,'Activity 6'!H$32:H$38,\"N/A\",0,1)","v":"N/A"},{"$f":"_xlfn.XLOOKUP($E16,'Activity 6'!$B$32:$B$38,'Activity 6'!I$32:I$38,\"N/A\",0,1)","v":"N/A"},{"$f":"_xlfn.XLOOKUP($E16,'Activity 6'!$B$32:$B$38,'Activity 6'!J$32:J$38,\"N/A\",0,1)","v":"N/A"},{"$f":"_xlfn.XLOOKUP($E16,'Activity 6'!$B$32:$B$38,'Activity 6'!K$32:K$38,\"N/A\",0,1)","v":"N/A"},{"$f":"_xlfn.XLOOKUP($E16,'Activity 6'!$B$32:$B$38,'Activity 6'!M$32:M$38,\"N/A\",0,1)","v":"N/A"},{"$f":"_xlfn.XLOOKUP($E16,'Activity 7'!$B$7:$B$13,'Activity 7'!$A$7:$A$13,\"No\",0,1)","v":"No"},{"$f":"_xlfn.XLOOKUP($E16,'Activity 7'!$B$7:$B$13,'Activity 7'!M$7:M$13,\"N/A\",0,1)","v":"N/A"},{"$f":"_xlfn.XLOOKUP($E16,'Activity 7'!$B$7:$B$13,'Activity 7'!K$7:K$13,\"N/A\",0,1)","v":"N/A"},{"$f":"_xlfn.XLOOKUP($E16,'Activity 7'!$B$7:$B$13,'Activity 7'!N$7:N$13,\"N/A\",0,1)","v":"N/A"},{"$f":"_xlfn.XLOOKUP($E16,'Activity 7'!$B$7:$B$13,'Activity 7'!O$7:O$13,\"N/A\",0,1)","v":"N/A"},{"$f":"_xlfn.XLOOKUP($E16,'Activity 7'!$B$7:$B$13,'Activity 7'!P$7:P$13,\"N/A\",0,1)","v":"N/A"},{"$f":"_xlfn.XLOOKUP($E16,'Activity 7'!$B$7:$B$13,'Activity 7'!Q$7:Q$13,\"N/A\",0,1)","v":"N/A"},{"$f":"_xlfn.XLOOKUP($E16,'Activity 7'!$B$7:$B$13,'Activity 7'!R$7:R$13,\"N/A\",0,1)","v":"N/A"},{"$f":"_xlfn.XLOOKUP($E16,'Activity 7'!$B$7:$B$13,'Activity 7'!S$7:S$13,\"N/A\",0,1)","v":"N/A"},{"$f":"_xlfn.XLOOKUP($E16,'Activity 7'!$B$7:$B$13,'Activity 7'!T$7:T$13,\"N/A\",0,1)","v":"N/A"},{"$f":"_xlfn.XLOOKUP($E16,'Activity 7'!$B$7:$B$13,'Activity 7'!U$7:U$13,\"N/A\",0,1)","v":"N/A"},{"$f":"_xlfn.XLOOKUP($E16,'Activity 7'!$B$7:$B$13,'Activity 7'!V$7:V$13,\"N/A\",0,1)","v":"N/A"},{"$f":"_xlfn.XLOOKUP($E16,'Activity 7'!$B$17:$B$23,'Activity 7'!E$17:E$23,\"N/A\",0,1)","v":"N/A"},{"$f":"_xlfn.XLOOKUP($E16,'Activity 7'!$B$17:$B$23,'Activity 7'!G$17:G$23,\"N/A\",0,1)","v":"N/A"},{"$f":"_xlfn.XLOOKUP($E16,'Activity 7'!$B$17:$B$23,'Activity 7'!I$17:I$23,\"N/A\",0,1)","v":"N/A"},{"$f":"_xlfn.XLOOKUP($E16,'Activity 7'!$B$17:$B$23,'Activity 7'!J$17:J$23,\"N/A\",0,1)","v":"N/A"},{"$f":"_xlfn.XLOOKUP($E16,'Activity 7'!$B$17:$B$23,'Activity 7'!K$17:K$23,\"N/A\",0,1)","v":"N/A"},{"$f":"_xlfn.XLOOKUP($E16,'Activity 7'!$B$17:$B$23,'Activity 7'!L$17:L$23,\"N/A\",0,1)","v":"N/A"},{"$f":"_xlfn.XLOOKUP($E16,'Activity 7'!$B$17:$B$23,'Activity 7'!M$17:M$23,\"N/A\",0,1)","v":"N/A"},{"$f":"_xlfn.XLOOKUP($E16,'Activity 7'!$B$17:$B$23,'Activity 7'!N$17:N$23,\"N/A\",0,1)","v":"N/A"},{"$f":"_xlfn.XLOOKUP($E16,'Activity 7'!$B$17:$B$23,'Activity 7'!P$17:P$23,\"N/A\",0,1)","v":"N/A"},{"$f":"_xlfn.XLOOKUP($E16,'Activity 8'!$B$7:$B$13,'Activity 8'!A$7:A$13,\"No\",0,1)","v":"No"},{"$f":"_xlfn.XLOOKUP($E16,'Activity 8'!$B$7:$B$13,'Activity 8'!I$7:I$13,\"N/A\",0,1)","v":"N/A"},{"$f":"_xlfn.XLOOKUP($E16,'Activity 8'!$B$7:$B$13,'Activity 8'!J$7:J$13,\"N/A\",0,1)","v":"N/A"},{"$f":"_xlfn.XLOOKUP($E16,'Activity 8'!$B$7:$B$13,'Activity 8'!K$7:K$13,\"N/A\",0,1)","v":"N/A"},{"$f":"_xlfn.XLOOKUP($E16,'Activity 8'!$B$7:$B$13,'Activity 8'!L$7:L$13,\"N/A\",0,1)","v":"N/A"},{"$f":"_xlfn.XLOOKUP($E16,'Activity 8'!$B$7:$B$13,'Activity 8'!M$7:M$13,\"N/A\",0,1)","v":"N/A"},{"$f":"_xlfn.XLOOKUP($E16,'Activity 8'!$B$7:$B$13,'Activity 8'!N$7:N$13,\"N/A\",0,1)","v":"N/A"},{"$f":"_xlfn.XLOOKUP($E16,'Activity 8'!$B$7:$B$13,'Activity 8'!O$7:O$13,\"N/A\",0,1)","v":"N/A"},{"$f":"_xlfn.XLOOKUP($E16,'Activity 8'!$B$7:$B$13,'Activity 8'!P$7:P$13,\"N/A\",0,1)","v":"N/A"},{"$f":"_xlfn.XLOOKUP($E16,'Activity 8'!$B$7:$B$13,'Activity 8'!Q$7:Q$13,\"N/A\",0,1)","v":"N/A"},{"$f":"_xlfn.XLOOKUP($E16,'Activity 8'!$B$7:$B$13,'Activity 8'!R$7:R$13,\"N/A\",0,1)","v":"N/A"},{"$f":"_xlfn.XLOOKUP($E16,'Activity 8'!$B$7:$B$13,'Activity 8'!S$7:S$13,\"N/A\",0,1)","v":"N/A"},{"$f":"_xlfn.XLOOKUP($E16,'Activity 8'!$B$7:$B$13,'Activity 8'!T$7:T$13,\"N/A\",0,1)","v":"N/A"},{"$f":"_xlfn.XLOOKUP($E16,'Activity 8'!$B$7:$B$13,'Activity 8'!U$7:U$13,\"N/A\",0,1)","v":"N/A"},{"$f":"_xlfn.XLOOKUP($E16,'Activity 8'!$B$7:$B$13,'Activity 8'!V$7:V$13,\"N/A\",0,1)","v":"N/A"},{"$f":"_xlfn.XLOOKUP($E16,'Activity 8'!$B$17:$B$23,'Activity 8'!D$17:D$23,\"N/A\",0,1)","v":"N/A"},{"$f":"_xlfn.XLOOKUP($E16,'Activity 8'!$B$17:$B$23,'Activity 8'!E$17:E$23,\"N/A\",0,1)","v":"N/A"},{"$f":"_xlfn.XLOOKUP($E16,'Activity 8'!$B$17:$B$23,'Activity 8'!F$17:F$23,\"N/A\",0,1)","v":"N/A"},{"$f":"_xlfn.XLOOKUP($E16,'Activity 8'!$B$17:$B$23,'Activity 8'!G$17:G$23,\"N/A\",0,1)","v":"N/A"},{"$f":"_xlfn.XLOOKUP($E16,'Activity 8'!$B$17:$B$23,'Activity 8'!H$17:H$23,\"N/A\",0,1)","v":"N/A"},{"$f":"_xlfn.XLOOKUP($E16,'Activity 8'!$B$17:$B$23,'Activity 8'!I$17:I$23,\"N/A\",0,1)","v":"N/A"},{"$f":"_xlfn.XLOOKUP($E16,'Activity 8'!$B$17:$B$23,'Activity 8'!J$17:J$23,\"N/A\",0,1)","v":"N/A"},{"$f":"_xlfn.XLOOKUP($E16,'Activity 8'!$B$17:$B$23,'Activity 8'!K$17:K$23,\"N/A\",0,1)","v":"N/A"},{"$f":"_xlfn.XLOOKUP($E16,'Activity 8'!$B$17:$B$23,'Activity 8'!L$17:L$23,\"N/A\",0,1)","v":"N/A"},{"$f":"_xlfn.XLOOKUP($E16,'Activity 8'!$B$17:$B$23,'Activity 8'!M$17:M$23,\"N/A\",0,1)","v":"N/A"},{"$f":"_xlfn.XLOOKUP($E16,'Activity 8'!$B$17:$B$23,'Activity 8'!N$17:N$23,\"N/A\",0,1)","v":"N/A"},{"$f":"_xlfn.XLOOKUP($E16,'Activity 8'!$B$17:$B$23,'Activity 8'!P$17:P$23,\"N/A\",0,1)","v":"N/A"},{"$f":"_xlfn.XLOOKUP(E16,'Activity 9'!$B$7:$B$13,'Activity 9'!$A$7:$A$13,\"No\",0,1)","v":"No"},{"$f":"_xlfn.XLOOKUP($E16,'Activity 9'!$B$7:$B$13,'Activity 9'!J$7:J$13,\"N/A\",0,1)","v":"N/A"},{"$f":"_xlfn.XLOOKUP($E16,'Activity 9'!$B$7:$B$13,'Activity 9'!K$7:K$13,\"N/A\",0,1)","v":"N/A"},{"$f":"_xlfn.XLOOKUP($E16,'Activity 9'!$B$7:$B$13,'Activity 9'!L$7:L$13,\"N/A\",0,1)","v":"N/A"},{"$f":"_xlfn.XLOOKUP($E16,'Activity 9'!$B$7:$B$13,'Activity 9'!M$7:M$13,\"N/A\",0,1)","v":"N/A"},{"$f":"_xlfn.XLOOKUP($E16,'Activity 9'!$B$7:$B$13,'Activity 9'!N$7:N$13,\"N/A\",0,1)","v":"N/A"},{"$f":"_xlfn.XLOOKUP($E16,'Activity 9'!$B$7:$B$13,'Activity 9'!O$7:O$13,\"N/A\",0,1)","v":"N/A"},{"$f":"_xlfn.XLOOKUP($E16,'Activity 9'!$B$7:$B$13,'Activity 9'!P$7:P$13,\"N/A\",0,1)","v":"N/A"},{"$f":"_xlfn.XLOOKUP($E16,'Activity 9'!$B$7:$B$13,'Activity 9'!Q$7:Q$13,\"N/A\",0,1)","v":"N/A"},{"$f":"_xlfn.XLOOKUP($E16,'Activity 9'!$B$7:$B$13,'Activity 9'!R$7:R$13,\"N/A\",0,1)","v":"N/A"},{"$f":"_xlfn.XLOOKUP($E16,'Activity 9'!$B$7:$B$13,'Activity 9'!S$7:S$13,\"N/A\",0,1)","v":"N/A"},{"$f":"_xlfn.XLOOKUP($E16,'Activity 9'!$B$7:$B$13,'Activity 9'!T$7:T$13,\"N/A\",0,1)","v":"N/A"},{"$f":"_xlfn.XLOOKUP($E16,'Activity 9'!$B$17:$B$23,'Activity 9'!E$17:E$23,\"N/A\",0,1)","v":"N/A"},{"$f":"_xlfn.XLOOKUP($E16,'Activity 9'!$B$17:$B$23,'Activity 9'!F$17:F$23,\"N/A\",0,1)","v":"N/A"},{"$f":"_xlfn.XLOOKUP($E16,'Activity 9'!$B$17:$B$23,'Activity 9'!G$17:G$23,\"N/A\",0,1)","v":"N/A"},{"$f":"_xlfn.XLOOKUP($E16,'Activity 9'!$B$17:$B$23,'Activity 9'!H$17:H$23,\"N/A\",0,1)","v":"N/A"},{"$f":"_xlfn.XLOOKUP($E16,'Activity 9'!$B$17:$B$23,'Activity 9'!I$17:I$23,\"N/A\",0,1)","v":"N/A"},{"$f":"_xlfn.XLOOKUP($E16,'Activity 9'!$B$17:$B$23,'Activity 9'!J$17:J$23,\"N/A\",0,1)","v":"N/A"},{"$f":"_xlfn.XLOOKUP($E16,'Activity 9'!$B$17:$B$23,'Activity 9'!K$17:K$23,\"N/A\",0,1)","v":"N/A"},{"$f":"_xlfn.XLOOKUP($E16,'Activity 9'!$B$17:$B$23,'Activity 9'!L$17:L$23,\"N/A\",0,1)","v":"N/A"},{"$f":"_xlfn.XLOOKUP($E16,'Activity 9'!$B$17:$B$23,'Activity 9'!N$17:N$23,\"N/A\",0,1)","v":"N/A"},{"$f":"_xlfn.XLOOKUP($E16,'Activity 9'!$B$17:$B$23,'Activity 9'!O$17:O$23,\"N/A\",0,1)","v":"N/A"},{"$f":"_xlfn.XLOOKUP($E16,'Activity 9'!$B$17:$B$23,'Activity 9'!Q$17:Q$23,\"N/A\",0,1)","v":"N/A"},{"$f":"_xlfn.XLOOKUP($E16,'Activity 10'!$B$7:$B$13,'Activity 10'!A$7:A$13,\"No\",0,1)","v":"No"},{"$f":"_xlfn.XLOOKUP($E16,'Activity 10'!$B$7:$B$13,'Activity 10'!J$7:J$13,\"N/A\",0,1)","v":"N/A"},{"$f":"_xlfn.XLOOKUP($E16,'Activity 10'!$B$7:$B$13,'Activity 10'!K$7:K$13,\"N/A\",0,1)","v":"N/A"},{"$f":"_xlfn.XLOOKUP($E16,'Activity 10'!$B$7:$B$13,'Activity 10'!L$7:L$13,\"N/A\",0,1)","v":"N/A"},{"$f":"_xlfn.XLOOKUP($E16,'Activity 10'!$B$7:$B$13,'Activity 10'!M$7:M$13,\"N/A\",0,1)","v":"N/A"},{"$f":"_xlfn.XLOOKUP($E16,'Activity 10'!$B$7:$B$13,'Activity 10'!N$7:N$13,\"N/A\",0,1)","v":"N/A"},{"$f":"_xlfn.XLOOKUP($E16,'Activity 10'!$B$7:$B$13,'Activity 10'!O$7:O$13,\"N/A\",0,1)","v":"N/A"},{"$f":"_xlfn.XLOOKUP($E16,'Activity 10'!$B$7:$B$13,'Activity 10'!P$7:P$13,\"N/A\",0,1)","v":"N/A"},{"$f":"_xlfn.XLOOKUP($E16,'Activity 10'!$B$7:$B$13,'Activity 10'!Q$7:Q$13,\"N/A\",0,1)","v":"N/A"},{"$f":"_xlfn.XLOOKUP($E16,'Activity 10'!$B$7:$B$13,'Activity 10'!R$7:R$13,\"N/A\",0,1)","v":"N/A"},{"$f":"_xlfn.XLOOKUP($E16,'Activity 10'!$B$7:$B$13,'Activity 10'!S$7:S$13,\"N/A\",0,1)","v":"N/A"},{"$f":"_xlfn.XLOOKUP($E16,'Activity 10'!$B$7:$B$13,'Activity 10'!T$7:T$13,\"N/A\",0,1)","v":"N/A"},{"$f":"_xlfn.XLOOKUP($E16,'Activity 10'!$B$7:$B$13,'Activity 10'!U$7:U$13,\"N/A\",0,1)","v":"N/A"},{"$f":"_xlfn.XLOOKUP($E16,'Activity 10'!$B$7:$B$13,'Activity 10'!V$7:V$13,\"N/A\",0,1)","v":"N/A"},{"$f":"_xlfn.XLOOKUP($E16,'Activity 10'!$B$17:$B$23,'Activity 10'!E$17:E$23,\"N/A\",0,1)","v":"N/A"},{"$f":"_xlfn.XLOOKUP($E16,'Activity 10'!$B$17:$B$23,'Activity 10'!F$17:F$23,\"N/A\",0,1)","v":"N/A"},{"$f":"_xlfn.XLOOKUP($E16,'Activity 10'!$B$17:$B$23,'Activity 10'!G$17:G$23,\"N/A\",0,1)","v":"N/A"},{"$f":"_xlfn.XLOOKUP($E16,'Activity 10'!$B$17:$B$23,'Activity 10'!H$17:H$23,\"N/A\",0,1)","v":"N/A"},{"$f":"_xlfn.XLOOKUP($E16,'Activity 10'!$B$17:$B$23,'Activity 10'!I$17:I$23,\"N/A\",0,1)","v":"N/A"},{"$f":"_xlfn.XLOOKUP($E16,'Activity 10'!$B$17:$B$23,'Activity 10'!J$17:J$23,\"N/A\",0,1)","v":"N/A"},{"$f":"_xlfn.XLOOKUP($E16,'Activity 10'!$B$17:$B$23,'Activity 10'!K$17:K$23,\"N/A\",0,1)","v":"N/A"},{"$f":"_xlfn.XLOOKUP($E16,'Activity 10'!$B$17:$B$23,'Activity 10'!L$17:L$23,\"N/A\",0,1)","v":"N/A"},{"$f":"_xlfn.XLOOKUP($E16,'Activity 10'!$B$17:$B$23,'Activity 10'!M$17:M$23,\"N/A\",0,1)","v":"N/A"},{"$f":"_xlfn.XLOOKUP($E16,'Activity 10'!$B$17:$B$23,'Activity 10'!N$17:N$23,\"N/A\",0,1)","v":"N/A"},{"$f":"_xlfn.XLOOKUP($E16,'Activity 10'!$B$17:$B$23,'Activity 10'!P$17:P$23,\"N/A\",0,1)","v":"N/A"},{"$f":"_xlfn.XLOOKUP($E16,'Competitive Activity 1'!B$7:B$13,'Competitive Activity 1'!A$7:A$13,\"No\",0,1)","v":"No"},{"$f":"_xlfn.XLOOKUP($E16,'Competitive Activity 1'!$B$7:$B$13,'Competitive Activity 1'!H$7:H$13,\"N/A\",0,1)","v":"N/A"},{"$f":"_xlfn.XLOOKUP($E16,'Competitive Activity 1'!$B$7:$B$13,'Competitive Activity 1'!I$7:I$13,\"N/A\",0,1)","v":"N/A"},{"$f":"_xlfn.XLOOKUP($E16,'Competitive Activity 1'!$B$7:$B$13,'Competitive Activity 1'!J$7:J$13,\"N/A\",0,1)","v":"N/A"},{"$f":"_xlfn.XLOOKUP($E16,'Competitive Activity 1'!$B$7:$B$13,'Competitive Activity 1'!K$7:K$13,\"N/A\",0,1)","v":"N/A"},{"$f":"_xlfn.XLOOKUP($E16,'Competitive Activity 1'!$B$7:$B$13,'Competitive Activity 1'!L$7:L$13,\"N/A\",0,1)","v":"N/A"},{"$f":"_xlfn.XLOOKUP($E16,'Competitive Activity 1'!$B$7:$B$13,'Competitive Activity 1'!M$7:M$13,\"N/A\",0,1)","v":"N/A"},{"$f":"_xlfn.XLOOKUP($E16,'Competitive Activity 1'!$B$7:$B$13,'Competitive Activity 1'!N$7:N$13,\"N/A\",0,1)","v":"N/A"},{"$f":"_xlfn.XLOOKUP($E16,'Competitive Activity 1'!$B$7:$B$13,'Competitive Activity 1'!O$7:O$13,\"N/A\",0,1)","v":"N/A"},{"$f":"_xlfn.XLOOKUP($E16,'Competitive Activity 1'!$B$7:$B$13,'Competitive Activity 1'!P$7:P$13,\"N/A\",0,1)","v":"N/A"},{"$f":"_xlfn.XLOOKUP($E16,'Competitive Activity 1'!$B$7:$B$13,'Competitive Activity 1'!Q$7:Q$13,\"N/A\",0,1)","v":"N/A"},{"$f":"_xlfn.XLOOKUP($E16,'Competitive Activity 1'!$B$7:$B$13,'Competitive Activity 1'!R$7:R$13,\"N/A\",0,1)","v":"N/A"},{"$f":"_xlfn.XLOOKUP($E16,'Competitive Activity 1'!$B$7:$B$13,'Competitive Activity 1'!S$7:S$13,\"N/A\",0,1)","v":"N/A"},{"$f":"_xlfn.XLOOKUP($E16,'Competitive Activity 1'!$B$7:$B$13,'Competitive Activity 1'!T$7:T$13,\"N/A\",0,1)","v":"N/A"},{"$f":"_xlfn.XLOOKUP($E16,'Competitive Activity 1'!$B$7:$B$13,'Competitive Activity 1'!U$7:U$13,\"N/A\",0,1)","v":"N/A"},{"$f":"_xlfn.XLOOKUP($E16,'Competitive Activity 1'!$B$17:$B$23,'Competitive Activity 1'!C$17:C$23,\"N/A\",0,1)","v":"N/A"},{"$f":"_xlfn.XLOOKUP($E16,'Competitive Activity 1'!$B$17:$B$23,'Competitive Activity 1'!D$17:D$23,\"N/A\",0,1)","v":"N/A"},{"$f":"_xlfn.XLOOKUP($E16,'Competitive Activity 1'!$B$17:$B$23,'Competitive Activity 1'!E$17:E$23,\"N/A\",0,1)","v":"N/A"},{"$f":"_xlfn.XLOOKUP($E16,'Competitive Activity 1'!$B$17:$B$23,'Competitive Activity 1'!F$17:F$23,\"N/A\",0,1)","v":"N/A"},{"$f":"_xlfn.XLOOKUP($E16,'Competitive Activity 1'!$B$17:$B$23,'Competitive Activity 1'!G$17:G$23,\"N/A\",0,1)","v":"N/A"},{"$f":"_xlfn.XLOOKUP($E16,'Competitive Activity 1'!$B$17:$B$23,'Competitive Activity 1'!H$17:H$23,\"N/A\",0,1)","v":"N/A"},{"$f":"_xlfn.XLOOKUP($E16,'Competitive Activity 1'!$B$17:$B$23,'Competitive Activity 1'!I$17:I$23,\"N/A\",0,1)","v":"N/A"},{"$f":"_xlfn.XLOOKUP($E16,'Competitive Activity 1'!$B$17:$B$23,'Competitive Activity 1'!J$17:J$23,\"N/A\",0,1)","v":"N/A"},{"$f":"_xlfn.XLOOKUP($E16,'Competitive Activity 1'!$B$17:$B$23,'Competitive Activity 1'!K$17:K$23,\"N/A\",0,1)","v":"N/A"},{"$f":"_xlfn.XLOOKUP($E16,'Competitive Activity 1'!$B$17:$B$23,'Competitive Activity 1'!M$17:M$23,\"N/A\",0,1)","v":"N/A"},{"$f":"_xlfn.XLOOKUP($E16,'Competitive Activity 1'!$B$17:$B$23,'Competitive Activity 1'!N$17:N$23,\"N/A\",0,1)","v":"N/A"},{"$f":"_xlfn.XLOOKUP($E16,'Competitive Activity 1'!$B$17:$B$23,'Competitive Activity 1'!P$17:P$23,\"N/A\",0,1)","v":"N/A"},{"$f":"_xlfn.XLOOKUP($E16,'Competitive Activity 2'!$B$7:$B$13,'Competitive Activity 2'!A$7:A$13,\"No\",0)","v":"No"},{"$f":"_xlfn.XLOOKUP($E16,'Competitive Activity 2'!$B$7:$B$13,'Competitive Activity 2'!L$7:L$13,\"N/A\",0)","v":"N/A"},{"$f":"_xlfn.XLOOKUP($E16,'Competitive Activity 2'!$B$7:$B$13,'Competitive Activity 2'!M$7:M$13,\"N/A\",0)","v":"N/A"},{"$f":"_xlfn.XLOOKUP($E16,'Competitive Activity 2'!$B$7:$B$13,'Competitive Activity 2'!N$7:N$13,\"N/A\",0)","v":"N/A"},{"$f":"_xlfn.XLOOKUP($E16,'Competitive Activity 2'!$B$7:$B$13,'Competitive Activity 2'!O$7:O$13,\"N/A\",0)","v":"N/A"},{"$f":"_xlfn.XLOOKUP($E16,'Competitive Activity 2'!$B$7:$B$13,'Competitive Activity 2'!P$7:P$13,\"N/A\",0)","v":"N/A"},{"$f":"_xlfn.XLOOKUP($E16,'Competitive Activity 2'!$B$7:$B$13,'Competitive Activity 2'!Q$7:Q$13,\"N/A\",0)","v":"N/A"},{"$f":"_xlfn.XLOOKUP($E16,'Competitive Activity 2'!$B$7:$B$13,'Competitive Activity 2'!R$7:R$13,\"N/A\",0)","v":"N/A"},{"$f":"_xlfn.XLOOKUP($E16,'Competitive Activity 2'!$B$7:$B$13,'Competitive Activity 2'!S$7:S$13,\"N/A\",0)","v":"N/A"},{"$f":"_xlfn.XLOOKUP($E16,'Competitive Activity 2'!$B$7:$B$13,'Competitive Activity 2'!T$7:T$13,\"N/A\",0)","v":"N/A"},{"$f":"_xlfn.XLOOKUP($E16,'Competitive Activity 2'!$B$7:$B$13,'Competitive Activity 2'!U$7:U$13,\"N/A\",0)","v":"N/A"},{"$f":"_xlfn.XLOOKUP($E16,'Competitive Activity 2'!$B$17:$B$23,'Competitive Activity 2'!D$17:D$23,\"N/A\",0)","v":"N/A"},{"$f":"_xlfn.XLOOKUP($E16,'Competitive Activity 2'!$B$17:$B$23,'Competitive Activity 2'!E$17:E$23,\"N/A\",0)","v":"N/A"},{"$f":"_xlfn.XLOOKUP($E16,'Competitive Activity 2'!$B$17:$B$23,'Competitive Activity 2'!F$17:F$23,\"N/A\",0)","v":"N/A"},{"$f":"_xlfn.XLOOKUP($E16,'Competitive Activity 2'!$B$17:$B$23,'Competitive Activity 2'!G$17:G$23,\"N/A\",0)","v":"N/A"},{"$f":"_xlfn.XLOOKUP($E16,'Competitive Activity 2'!$B$17:$B$23,'Competitive Activity 2'!H$17:H$23,\"N/A\",0)","v":"N/A"},{"$f":"_xlfn.XLOOKUP($E16,'Competitive Activity 2'!$B$17:$B$23,'Competitive Activity 2'!I$17:I$23,\"N/A\",0)","v":"N/A"},{"$f":"_xlfn.XLOOKUP($E16,'Competitive Activity 2'!$B$17:$B$23,'Competitive Activity 2'!J$17:J$23,\"N/A\",0)","v":"N/A"},{"$f":"_xlfn.XLOOKUP($E16,'Competitive Activity 2'!$B$17:$B$23,'Competitive Activity 2'!K$17:K$23,\"N/A\",0)","v":"N/A"},{"$f":"_xlfn.XLOOKUP($E16,'Competitive Activity 2'!$B$17:$B$23,'Competitive Activity 2'!L$17:L$23,\"N/A\",0)","v":"N/A"},{"$f":"_xlfn.XLOOKUP($E16,'Competitive Activity 2'!$B$17:$B$23,'Competitive Activity 2'!M$17:M$23,\"N/A\",0)","v":"N/A"},{"$f":"_xlfn.XLOOKUP($E16,'Competitive Activity 2'!$B$17:$B$23,'Competitive Activity 2'!N$17:N$23,\"N/A\",0)","v":"N/A"},{"$f":"_xlfn.XLOOKUP($E16,'Competitive Activity 2'!$B$27:$B$33,'Competitive Activity 2'!D$27:D$33,\"N/A\",0)","v":"N/A"},{"$f":"_xlfn.XLOOKUP($E16,'Competitive Activity 2'!$B$27:$B$33,'Competitive Activity 2'!E$27:E$33,\"N/A\",0)","v":"N/A"},{"$f":"_xlfn.XLOOKUP($E16,'Competitive Activity 2'!$B$27:$B$33,'Competitive Activity 2'!F$27:F$33,\"N/A\",0)","v":"N/A"},{"$f":"_xlfn.XLOOKUP($E16,'Competitive Activity 2'!$B$27:$B$33,'Competitive Activity 2'!G$27:G$33,\"N/A\",0)","v":"N/A"},{"$f":"_xlfn.XLOOKUP($E16,'Competitive Activity 2'!$B$27:$B$33,'Competitive Activity 2'!H$27:H$33,\"N/A\",0)","v":"N/A"},{"$f":"_xlfn.XLOOKUP($E16,'Competitive Activity 2'!$B$27:$B$33,'Competitive Activity 2'!I$27:I$33,\"N/A\",0)","v":"N/A"},{"$f":"_xlfn.XLOOKUP($E16,'Competitive Activity 2'!$B$27:$B$33,'Competitive Activity 2'!J$27:J$33,\"N/A\",0)","v":"N/A"},{"$f":"_xlfn.XLOOKUP($E16,'Competitive Activity 2'!$B$27:$B$33,'Competitive Activity 2'!K$27:K$33,\"N/A\",0)","v":"N/A"},{"$f":"_xlfn.XLOOKUP($E16,'Competitive Activity 2'!$B$27:$B$33,'Competitive Activity 2'!M$27:M$33,\"N/A\",0)","v":"N/A"}]
[{"$f":"'1-Cover Sheet'!$C$8","v":"Select One"},{"$f":"'1-Cover Sheet'!$F$8","v":"Select One"},{"$f":"'Summary Sheet'!$D$8","v":0},{"$f":"'Summary Sheet'!$D$10","v":0},{"$f":"'Drop Down Box'!B181","v":0},{"$f":"'Drop Down Box'!C181","v":0},{"$f":"'Drop Down Box'!D181","v":"Select One"},{"$f":"_xlfn.XLOOKUP(E17,'Drop Down Box'!$B$166:$B$249,'Drop Down Box'!$A$166:$A$249,\"Unknown\",0)","v":"Activity 1"},{"$f":"_xlfn.XLOOKUP(E17,'Activity 3'!B$8:B$14,'Activity 3'!P$8:P$14,\"N/A\",0)","v":"N/A"},{"$f":"_xlfn.XLOOKUP($E17,'Activity 3'!$B$8:$B$14,'Activity 3'!Q$8:Q$14,\"N/A\",0)","v":"N/A"},{"$f":"_xlfn.XLOOKUP($E17,'Activity 3'!$B$8:$B$14,'Activity 3'!H$8:H$14,\"N/A\",0)","v":"N/A"},{"$f":"_xlfn.XLOOKUP(E17,'Activity 3'!B$8:B$14,'Activity 3'!I9:I15,\"N/A\",0)","v":"N/A"},{"$f":"_xlfn.XLOOKUP($E17,'Activity 3'!$B$8:$B$14,'Activity 3'!J9:J15,\"N/A\",0)","v":"N/A"},{"$f":"_xlfn.XLOOKUP($E17,'Activity 1'!$B$7:$B$13,'Activity 1'!$A$7:$A$13,\"No\",0,1)","v":"No"},{"$f":"_xlfn.XLOOKUP($E17,'Activity 1'!$B$7:$B$13,'Activity 1'!$H$7:$H$13,\"N/A\",0,1)","v":"N/A"},{"$f":"_xlfn.XLOOKUP($E17,'Activity 1'!$B$7:$B$13,'Activity 1'!I$7:I$13,\"N/A\",0,1)","v":"N/A"},{"$f":"_xlfn.XLOOKUP($E17,'Activity 1'!$B$7:$B$13,'Activity 1'!J$7:J$13,\"N/A\",0,1)","v":"N/A"},{"$f":"_xlfn.XLOOKUP($E17,'Activity 1'!$B$7:$B$13,'Activity 1'!K$7:K$13,\"N/A\",0,1)","v":"N/A"},{"$f":"_xlfn.XLOOKUP($E17,'Activity 1'!$B$7:$B$13,'Activity 1'!L$7:L$13,\"N/A\",0,1)","v":"N/A"},{"$f":"_xlfn.XLOOKUP($E17,'Activity 1'!$B$7:$B$13,'Activity 1'!M$7:M$13,\"N/A\",0,1)","v":"N/A"},{"$f":"_xlfn.XLOOKUP($E17,'Activity 1'!$B$7:$B$13,'Activity 1'!N$7:N$13,\"N/A\",0,1)","v":"N/A"},0,{"$f":"_xlfn.XLOOKUP($E17,'Activity 1'!$B$7:$B$13,'Activity 1'!O$7:O$13,\"N/A\",0,1)","v":"N/A"},{"$f":"_xlfn.XLOOKUP($E17,'Activity 1'!$B$7:$B$13,'Activity 1'!P$7:P$13,\"N/A\",0,1)","v":"N/A"},{"$f":"_xlfn.XLOOKUP($E17,'Activity 1'!$B$7:$B$13,'Activity 1'!Q$7:Q$13,\"N/A\",0,1)","v":"N/A"},{"$f":"_xlfn.XLOOKUP($E17,'Activity 1'!$B$7:$B$13,'Activity 1'!R$7:R$13,\"N/A\",0,1)","v":"N/A"},{"$f":"_xlfn.XLOOKUP($E17,'Activity 1'!$B$7:$B$13,'Activity 1'!S$7:S$13,\"N/A\",0,1)","v":"N/A"},{"$f":"_xlfn.XLOOKUP($E17,'Activity 1'!$B$7:$B$13,'Activity 1'!T$7:T$13,\"N/A\",0,1)","v":"N/A"},{"$f":"_xlfn.XLOOKUP($E17,'Activity 1'!$B$7:$B$13,'Activity 1'!U$7:U$13,\"N/A\",0,1)","v":"N/A"},{"$f":"_xlfn.XLOOKUP($E17,'Activity 1'!$B$7:$B$13,'Activity 1'!V$7:V$13,\"N/A\",0,1)","v":"N/A"},{"$f":"_xlfn.XLOOKUP($E17,'Activity 1'!$B$17:$B$23,'Activity 1'!C$17:C$23,\"N/A\",0,1)","v":"N/A"},{"$f":"_xlfn.XLOOKUP($E17,'Activity 1'!$B$17:$B$23,'Activity 1'!D$17:D$23,\"N/A\",0,1)","v":"N/A"},{"$f":"_xlfn.XLOOKUP($E17,'Activity 1'!$B$17:$B$23,'Activity 1'!E$17:E$23,\"N/A\",0,1)","v":"N/A"},{"$f":"_xlfn.XLOOKUP($E17,'Activity 1'!$B$17:$B$23,'Activity 1'!F$17:F$23,\"N/A\",0,1)","v":"N/A"},{"$f":"_xlfn.XLOOKUP($E17,'Activity 1'!$B$17:$B$23,'Activity 1'!G$17:G$23,\"N/A\",0,1)","v":"N/A"},{"$f":"_xlfn.XLOOKUP($E17,'Activity 1'!$B$17:$B$23,'Activity 1'!H$17:H$23,\"N/A\",0,1)","v":"N/A"},{"$f":"_xlfn.XLOOKUP($E17,'Activity 1'!$B$17:$B$23,'Activity 1'!I$17:I$23,\"N/A\",0,1)","v":"N/A"},{"$f":"_xlfn.XLOOKUP($E17,'Activity 1'!$B$17:$B$23,'Activity 1'!J$17:J$23,\"N/A\",0,1)","v":"N/A"},{"$f":"_xlfn.XLOOKUP($E17,'Activity 1'!$B$17:$B$23,'Activity 1'!K$17:K$23,\"N/A\",0,1)","v":"N/A"},{"$f":"_xlfn.XLOOKUP($E17,'Activity 1'!$B$17:$B$23,'Activity 1'!L$17:L$23,\"N/A\",0,1)","v":"N/A"},{"$f":"_xlfn.XLOOKUP($E17,'Activity 1'!$B$17:$B$23,'Activity 1'!M$17:M$23,\"N/A\",0,1)","v":"N/A"},{"$f":"_xlfn.XLOOKUP($E17,'Activity 1'!$B$17:$B$23,'Activity 1'!O$17:O$23,\"N/A\",0,1)","v":"N/A"},{"$f":"_xlfn.XLOOKUP($E17,'Activity 1'!$B$17:$B$23,'Activity 1'!Q$17:Q$23,\"N/A\",0,1)","v":"N/A"},{"$f":"_xlfn.XLOOKUP($E17,'Activity 2'!$B$7:$B$13,'Activity 2'!$A$7:$A$13,\"No\",0,1)","v":"No"},{"$f":"_xlfn.XLOOKUP($E17,'Activity 2'!B$7:B$13,'Activity 2'!H$7:H$13,\"N/A\",0)","v":"N/A"},{"$f":"_xlfn.XLOOKUP($E17,'Activity 2'!C$7:C$13,'Activity 2'!I$7:I$13,\"N/A\",0)","v":"N/A"},{"$f":"_xlfn.XLOOKUP($E17,'Activity 2'!D$7:D$13,'Activity 2'!J$7:J$13,\"N/A\",0)","v":"N/A"},{"$f":"_xlfn.XLOOKUP($E17,'Activity 2'!E$7:E$13,'Activity 2'!K$7:K$13,\"N/A\",0)","v":"N/A"},{"$f":"_xlfn.XLOOKUP($E17,'Activity 2'!F$7:F$13,'Activity 2'!L$7:L$13,\"N/A\",0)","v":"N/A"},{"$f":"_xlfn.XLOOKUP($E17,'Activity 2'!G$7:G$13,'Activity 2'!M$7:M$13,\"N/A\",0)","v":"N/A"},{"$f":"_xlfn.XLOOKUP($E17,'Activity 2'!H$7:H$13,'Activity 2'!N$7:N$13,\"N/A\",0)","v":"N/A"},{"$f":"_xlfn.XLOOKUP($E17,'Activity 2'!I$7:I$13,'Activity 2'!O$7:O$13,\"N/A\",0)","v":"N/A"},{"$f":"_xlfn.XLOOKUP($E17,'Activity 2'!J$7:J$13,'Activity 2'!P$7:P$13,\"N/A\",0)","v":"N/A"},{"$f":"_xlfn.XLOOKUP($E17,'Activity 2'!K$7:K$13,'Activity 2'!Q$7:Q$13,\"N/A\",0)","v":"N/A"},{"$f":"_xlfn.XLOOKUP($E17,'Activity 2'!L$7:L$13,'Activity 2'!R$7:R$13,\"N/A\",0)","v":"N/A"},{"$f":"_xlfn.XLOOKUP($E17,'Activity 2'!M$7:M$13,'Activity 2'!S$7:S$13,\"N/A\",0)","v":"N/A"},{"$f":"_xlfn.XLOOKUP($E17,'Activity 2'!N$7:N$13,'Activity 2'!T$7:T$13,\"N/A\",0)","v":"N/A"},{"$f":"_xlfn.XLOOKUP($E17,'Activity 2'!O$7:O$13,'Activity 2'!U$7:U$13,\"N/A\",0)","v":"N/A"},{"$f":"_xlfn.XLOOKUP($E17,'Activity 2'!P$7:P$13,'Activity 2'!V$7:V$13,\"N/A\",0)","v":"N/A"},{"$f":"_xlfn.XLOOKUP($E17,'Activity 2'!$B$17:$B$23,'Activity 2'!C$17:C$23,\"N/A\",0,1)","v":"N/A"},{"$f":"_xlfn.XLOOKUP($E17,'Activity 2'!$B$17:$B$23,'Activity 2'!D$17:D$23,\"N/A\",0,1)","v":"N/A"},{"$f":"_xlfn.XLOOKUP($E17,'Activity 2'!$B$17:$B$23,'Activity 2'!E$17:E$23,\"N/A\",0,1)","v":"N/A"},{"$f":"_xlfn.XLOOKUP($E17,'Activity 2'!$B$17:$B$23,'Activity 2'!F$17:F$23,\"N/A\",0,1)","v":"N/A"},{"$f":"_xlfn.XLOOKUP($E17,'Activity 2'!$B$17:$B$23,'Activity 2'!G$17:G$23,\"N/A\",0,1)","v":"N/A"},{"$f":"_xlfn.XLOOKUP($E17,'Activity 2'!$B$17:$B$23,'Activity 2'!H$17:H$23,\"N/A\",0,1)","v":"N/A"},{"$f":"_xlfn.XLOOKUP($E17,'Activity 2'!$B$17:$B$23,'Activity 2'!I$17:I$23,\"N/A\",0,1)","v":"N/A"},{"$f":"_xlfn.XLOOKUP($E17,'Activity 2'!$B$17:$B$23,'Activity 2'!J$17:J$23,\"N/A\",0,1)","v":"N/A"},{"$f":"_xlfn.XLOOKUP($E17,'Activity 2'!$B$17:$B$23,'Activity 2'!K$17:K$23,\"N/A\",0,1)","v":"N/A"},{"$f":"_xlfn.XLOOKUP($E17,'Activity 2'!$B$17:$B$23,'Activity 2'!L$17:L$23,\"N/A\",0,1)","v":"N/A"},{"$f":"_xlfn.XLOOKUP($E17,'Activity 2'!$B$17:$B$23,'Activity 2'!M$17:M$23,\"N/A\",0,1)","v":"N/A"},{"$f":"_xlfn.XLOOKUP($E17,'Activity 2'!$B$17:$B$23,'Activity 2'!O$17:O$23,\"N/A\",0,1)","v":"N/A"},{"$f":"_xlfn.XLOOKUP($E17,'Activity 2'!$B$17:$B$23,'Activity 2'!Q$17:Q$23,\"N/A\",0,1)","v":"N/A"},null,{"$f":"_xlfn.XLOOKUP($E17,'Activity 3'!$B$8:$B$14,'Activity 3'!K$8:K$14,\"N/A\",0,1)","v":"N/A"},{"$f":"_xlfn.XLOOKUP($E17,'Activity 3'!$B$8:$B$14,'Activity 3'!L$8:L$14,\"N/A\",0,1)","v":"N/A"},{"$f":"_xlfn.XLOOKUP($E17,'Activity 3'!$B$8:$B$14,'Activity 3'!M$8:M$14,\"N/A\",0,1)","v":"N/A"},{"$f":"_xlfn.XLOOKUP($E17,'Activity 3'!$B$8:$B$14,'Activity 3'!N$8:N$14,\"N/A\",0,1)","v":"N/A"},{"$f":"_xlfn.XLOOKUP($E17,'Activity 3'!$B$8:$B$14,'Activity 3'!O$8:O$14,\"N/A\",0,1)","v":"N/A"},{"$f":"_xlfn.XLOOKUP($E17,'Activity 3'!$B$8:$B$14,'Activity 3'!R$8:R$14,\"N/A\",0,1)","v":"N/A"},{"$f":"_xlfn.XLOOKUP($E17,'Activity 4'!$B$8:$B$14,'Activity 4'!$A$8:$A$14,\"No\",0,1)","v":"No"},{"$f":"_xlfn.XLOOKUP($E17,'Activity 4'!$B$8:$B$14,'Activity 4'!L$8:L$14,\"N/A\",0,1)","v":"N/A"},{"$f":"_xlfn.XLOOKUP($E17,'Activity 4'!$B$8:$B$14,'Activity 4'!I$8:I$14,\"N/A\",0,1)","v":"N/A"},{"$f":"_xlfn.XLOOKUP($E17,'Activity 4'!$B$8:$B$14,'Activity 4'!M$8:M$14,\"N/A\",0,1)","v":"N/A"},{"$f":"_xlfn.XLOOKUP($E17,'Activity 5'!$B$8:$B$14,'Activity 5'!$A$8:$A$14,\"No\",0,1)","v":"No"},{"$f":"_xlfn.XLOOKUP($E17,'Activity 5'!$B$8:$B$14,'Activity 5'!J$8:J$14,\"N/A\",0,1)","v":"N/A"},{"$f":"_xlfn.XLOOKUP($E17,'Activity 5'!$B$8:$B$14,'Activity 5'!K$8:K$14,\"N/A\",0,1)","v":"N/A"},{"$f":"_xlfn.XLOOKUP($E17,'Activity 5'!$B$8:$B$14,'Activity 5'!N$8:N$14,\"N/A\",0,1)","v":"N/A"},{"$f":"_xlfn.XLOOKUP($E17,'Activity 5'!$B$8:$B$14,'Activity 5'!O$8:O$14,\"N/A\",0,1)","v":"N/A"},{"$f":"_xlfn.XLOOKUP($E17,'Activity 5'!$B$8:$B$14,'Activity 5'!P$8:P$14,\"N/A\",0,1)","v":"N/A"},{"$f":"_xlfn.XLOOKUP($E17,'Activity 5'!$B$8:$B$14,'Activity 5'!Q$8:Q$14,\"N/A\",0,1)","v":"N/A"},{"$f":"_xlfn.XLOOKUP($E17,'Activity 5'!$B$8:$B$14,'Activity 5'!R$8:R$14,\"N/A\",0,1)","v":"N/A"},{"$f":"_xlfn.XLOOKUP($E17,'Activity 6'!$B$7:$B$13,'Activity 6'!A$7:A$13,\"No\",0,1)","v":"No"},{"$f":"_xlfn.XLOOKUP($E17,'Activity 6'!$B$7:$B$13,'Activity 6'!K$7:K$13,\"N/A\",0,1)","v":"N/A"},{"$f":"_xlfn.XLOOKUP($E17,'Activity 6'!$B$7:$B$13,'Activity 6'!L$7:L$13,\"N/A\",0,1)","v":"N/A"},{"$f":"_xlfn.XLOOKUP($E17,'Activity 6'!$B$7:$B$13,'Activity 6'!M$7:M$13,\"N/A\",0,1)","v":"N/A"},{"$f":"_xlfn.XLOOKUP($E17,'Activity 6'!$B$7:$B$13,'Activity 6'!N$7:N$13,\"N/A\",0,1)","v":"N/A"},{"$f":"_xlfn.XLOOKUP($E17,'Activity 6'!$B$7:$B$13,'Activity 6'!O$7:O$13,\"N/A\",0,1)","v":"N/A"},{"$f":"_xlfn.XLOOKUP($E17,'Activity 6'!$B$7:$B$13,'Activity 6'!P$7:P$13,\"N/A\",0,1)","v":"N/A"},{"$f":"_xlfn.XLOOKUP($E17,'Activity 6'!$B$7:$B$13,'Activity 6'!Q$7:Q$13,\"N/A\",0,1)","v":"N/A"},{"$f":"_xlfn.XLOOKUP($E17,'Activity 6'!$B$7:$B$13,'Activity 6'!R$7:R$13,\"N/A\",0,1)","v":"N/A"},{"$f":"_xlfn.XLOOKUP($E17,'Activity 6'!$B$7:$B$13,'Activity 6'!S$7:S$13,\"N/A\",0,1)","v":"N/A"},{"$f":"_xlfn.XLOOKUP($E17,'Activity 6'!$B$7:$B$13,'Activity 6'!T$7:T$13,\"N/A\",0,1)","v":"N/A"},{"$f":"_xlfn.XLOOKUP($E17,'Activity 6'!$B$7:$B$13,'Activity 6'!U$7:U$13,\"N/A\",0,1)","v":"N/A"},{"$f":"_xlfn.XLOOKUP($E17,'Activity 6'!$B$22:$B$28,'Activity 6'!C$22:C$28,\"N/A\",0,1)","v":"N/A"},{"$f":"_xlfn.XLOOKUP($E17,'Activity 6'!$B$22:$B$28,'Activity 6'!D$22:D$28,\"N/A\",0,1)","v":"N/A"},{"$f":"_xlfn.XLOOKUP($E17,'Activity 6'!$B$22:$B$28,'Activity 6'!E$22:E$28,\"N/A\",0,1)","v":"N/A"},{"$f":"_xlfn.XLOOKUP($E17,'Activity 6'!$B$22:$B$28,'Activity 6'!F$22:F$28,\"N/A\",0,1)","v":"N/A"},{"$f":"_xlfn.XLOOKUP($E17,'Activity 6'!$B$22:$B$28,'Activity 6'!G$22:G$28,\"N/A\",0,1)","v":"N/A"},{"$f":"_xlfn.XLOOKUP($E17,'Activity 6'!$B$22:$B$28,'Activity 6'!H$22:H$28,\"N/A\",0,1)","v":"N/A"},{"$f":"_xlfn.XLOOKUP($E17,'Activity 6'!$B$22:$B$28,'Activity 6'!I$22:I$28,\"N/A\",0,1)","v":"N/A"},{"$f":"_xlfn.XLOOKUP($E17,'Activity 6'!$B$22:$B$28,'Activity 6'!J$22:J$28,\"N/A\",0,1)","v":"N/A"},{"$f":"_xlfn.XLOOKUP($E17,'Activity 6'!$B$22:$B$28,'Activity 6'!K$22:K$28,\"N/A\",0,1)","v":"N/A"},{"$f":"_xlfn.XLOOKUP($E17,'Activity 6'!$B$22:$B$28,'Activity 6'!L$22:L$28,\"N/A\",0,1)","v":"N/A"},{"$f":"_xlfn.XLOOKUP($E17,'Activity 6'!$B$22:$B$28,'Activity 6'!M$22:M$28,\"N/A\",0,1)","v":"N/A"},{"$f":"_xlfn.XLOOKUP($E17,'Activity 6'!$B$22:$B$28,'Activity 6'!N$22:N$28,\"N/A\",0,1)","v":"N/A"},{"$f":"_xlfn.XLOOKUP($E17,'Activity 6'!$B$32:$B$38,'Activity 6'!C$32:C$38,\"N/A\",0,1)","v":"N/A"},{"$f":"_xlfn.XLOOKUP($E17,'Activity 6'!$B$32:$B$38,'Activity 6'!D$32:D$38,\"N/A\",0,1)","v":"N/A"},{"$f":"_xlfn.XLOOKUP($E17,'Activity 6'!$B$32:$B$38,'Activity 6'!E$32:E$38,\"N/A\",0,1)","v":"N/A"},{"$f":"_xlfn.XLOOKUP($E17,'Activity 6'!$B$32:$B$38,'Activity 6'!F$32:F$38,\"N/A\",0,1)","v":"N/A"},{"$f":"_xlfn.XLOOKUP($E17,'Activity 6'!$B$32:$B$38,'Activity 6'!G$32:G$38,\"N/A\",0,1)","v":"N/A"},{"$f":"_xlfn.XLOOKUP($E17,'Activity 6'!$B$32:$B$38,'Activity 6'!H$32:H$38,\"N/A\",0,1)","v":"N/A"},{"$f":"_xlfn.XLOOKUP($E17,'Activity 6'!$B$32:$B$38,'Activity 6'!I$32:I$38,\"N/A\",0,1)","v":"N/A"},{"$f":"_xlfn.XLOOKUP($E17,'Activity 6'!$B$32:$B$38,'Activity 6'!J$32:J$38,\"N/A\",0,1)","v":"N/A"},{"$f":"_xlfn.XLOOKUP($E17,'Activity 6'!$B$32:$B$38,'Activity 6'!K$32:K$38,\"N/A\",0,1)","v":"N/A"},{"$f":"_xlfn.XLOOKUP($E17,'Activity 6'!$B$32:$B$38,'Activity 6'!M$32:M$38,\"N/A\",0,1)","v":"N/A"},{"$f":"_xlfn.XLOOKUP($E17,'Activity 7'!$B$7:$B$13,'Activity 7'!$A$7:$A$13,\"No\",0,1)","v":"No"},{"$f":"_xlfn.XLOOKUP($E17,'Activity 7'!$B$7:$B$13,'Activity 7'!M$7:M$13,\"N/A\",0,1)","v":"N/A"},{"$f":"_xlfn.XLOOKUP($E17,'Activity 7'!$B$7:$B$13,'Activity 7'!K$7:K$13,\"N/A\",0,1)","v":"N/A"},{"$f":"_xlfn.XLOOKUP($E17,'Activity 7'!$B$7:$B$13,'Activity 7'!N$7:N$13,\"N/A\",0,1)","v":"N/A"},{"$f":"_xlfn.XLOOKUP($E17,'Activity 7'!$B$7:$B$13,'Activity 7'!O$7:O$13,\"N/A\",0,1)","v":"N/A"},{"$f":"_xlfn.XLOOKUP($E17,'Activity 7'!$B$7:$B$13,'Activity 7'!P$7:P$13,\"N/A\",0,1)","v":"N/A"},{"$f":"_xlfn.XLOOKUP($E17,'Activity 7'!$B$7:$B$13,'Activity 7'!Q$7:Q$13,\"N/A\",0,1)","v":"N/A"},{"$f":"_xlfn.XLOOKUP($E17,'Activity 7'!$B$7:$B$13,'Activity 7'!R$7:R$13,\"N/A\",0,1)","v":"N/A"},{"$f":"_xlfn.XLOOKUP($E17,'Activity 7'!$B$7:$B$13,'Activity 7'!S$7:S$13,\"N/A\",0,1)","v":"N/A"},{"$f":"_xlfn.XLOOKUP($E17,'Activity 7'!$B$7:$B$13,'Activity 7'!T$7:T$13,\"N/A\",0,1)","v":"N/A"},{"$f":"_xlfn.XLOOKUP($E17,'Activity 7'!$B$7:$B$13,'Activity 7'!U$7:U$13,\"N/A\",0,1)","v":"N/A"},{"$f":"_xlfn.XLOOKUP($E17,'Activity 7'!$B$7:$B$13,'Activity 7'!V$7:V$13,\"N/A\",0,1)","v":"N/A"},{"$f":"_xlfn.XLOOKUP($E17,'Activity 7'!$B$17:$B$23,'Activity 7'!E$17:E$23,\"N/A\",0,1)","v":"N/A"},{"$f":"_xlfn.XLOOKUP($E17,'Activity 7'!$B$17:$B$23,'Activity 7'!G$17:G$23,\"N/A\",0,1)","v":"N/A"},{"$f":"_xlfn.XLOOKUP($E17,'Activity 7'!$B$17:$B$23,'Activity 7'!I$17:I$23,\"N/A\",0,1)","v":"N/A"},{"$f":"_xlfn.XLOOKUP($E17,'Activity 7'!$B$17:$B$23,'Activity 7'!J$17:J$23,\"N/A\",0,1)","v":"N/A"},{"$f":"_xlfn.XLOOKUP($E17,'Activity 7'!$B$17:$B$23,'Activity 7'!K$17:K$23,\"N/A\",0,1)","v":"N/A"},{"$f":"_xlfn.XLOOKUP($E17,'Activity 7'!$B$17:$B$23,'Activity 7'!L$17:L$23,\"N/A\",0,1)","v":"N/A"},{"$f":"_xlfn.XLOOKUP($E17,'Activity 7'!$B$17:$B$23,'Activity 7'!M$17:M$23,\"N/A\",0,1)","v":"N/A"},{"$f":"_xlfn.XLOOKUP($E17,'Activity 7'!$B$17:$B$23,'Activity 7'!N$17:N$23,\"N/A\",0,1)","v":"N/A"},{"$f":"_xlfn.XLOOKUP($E17,'Activity 7'!$B$17:$B$23,'Activity 7'!P$17:P$23,\"N/A\",0,1)","v":"N/A"},{"$f":"_xlfn.XLOOKUP($E17,'Activity 8'!$B$7:$B$13,'Activity 8'!A$7:A$13,\"No\",0,1)","v":"No"},{"$f":"_xlfn.XLOOKUP($E17,'Activity 8'!$B$7:$B$13,'Activity 8'!I$7:I$13,\"N/A\",0,1)","v":"N/A"},{"$f":"_xlfn.XLOOKUP($E17,'Activity 8'!$B$7:$B$13,'Activity 8'!J$7:J$13,\"N/A\",0,1)","v":"N/A"},{"$f":"_xlfn.XLOOKUP($E17,'Activity 8'!$B$7:$B$13,'Activity 8'!K$7:K$13,\"N/A\",0,1)","v":"N/A"},{"$f":"_xlfn.XLOOKUP($E17,'Activity 8'!$B$7:$B$13,'Activity 8'!L$7:L$13,\"N/A\",0,1)","v":"N/A"},{"$f":"_xlfn.XLOOKUP($E17,'Activity 8'!$B$7:$B$13,'Activity 8'!M$7:M$13,\"N/A\",0,1)","v":"N/A"},{"$f":"_xlfn.XLOOKUP($E17,'Activity 8'!$B$7:$B$13,'Activity 8'!N$7:N$13,\"N/A\",0,1)","v":"N/A"},{"$f":"_xlfn.XLOOKUP($E17,'Activity 8'!$B$7:$B$13,'Activity 8'!O$7:O$13,\"N/A\",0,1)","v":"N/A"},{"$f":"_xlfn.XLOOKUP($E17,'Activity 8'!$B$7:$B$13,'Activity 8'!P$7:P$13,\"N/A\",0,1)","v":"N/A"},{"$f":"_xlfn.XLOOKUP($E17,'Activity 8'!$B$7:$B$13,'Activity 8'!Q$7:Q$13,\"N/A\",0,1)","v":"N/A"},{"$f":"_xlfn.XLOOKUP($E17,'Activity 8'!$B$7:$B$13,'Activity 8'!R$7:R$13,\"N/A\",0,1)","v":"N/A"},{"$f":"_xlfn.XLOOKUP($E17,'Activity 8'!$B$7:$B$13,'Activity 8'!S$7:S$13,\"N/A\",0,1)","v":"N/A"},{"$f":"_xlfn.XLOOKUP($E17,'Activity 8'!$B$7:$B$13,'Activity 8'!T$7:T$13,\"N/A\",0,1)","v":"N/A"},{"$f":"_xlfn.XLOOKUP($E17,'Activity 8'!$B$7:$B$13,'Activity 8'!U$7:U$13,\"N/A\",0,1)","v":"N/A"},{"$f":"_xlfn.XLOOKUP($E17,'Activity 8'!$B$7:$B$13,'Activity 8'!V$7:V$13,\"N/A\",0,1)","v":"N/A"},{"$f":"_xlfn.XLOOKUP($E17,'Activity 8'!$B$17:$B$23,'Activity 8'!D$17:D$23,\"N/A\",0,1)","v":"N/A"},{"$f":"_xlfn.XLOOKUP($E17,'Activity 8'!$B$17:$B$23,'Activity 8'!E$17:E$23,\"N/A\",0,1)","v":"N/A"},{"$f":"_xlfn.XLOOKUP($E17,'Activity 8'!$B$17:$B$23,'Activity 8'!F$17:F$23,\"N/A\",0,1)","v":"N/A"},{"$f":"_xlfn.XLOOKUP($E17,'Activity 8'!$B$17:$B$23,'Activity 8'!G$17:G$23,\"N/A\",0,1)","v":"N/A"},{"$f":"_xlfn.XLOOKUP($E17,'Activity 8'!$B$17:$B$23,'Activity 8'!H$17:H$23,\"N/A\",0,1)","v":"N/A"},{"$f":"_xlfn.XLOOKUP($E17,'Activity 8'!$B$17:$B$23,'Activity 8'!I$17:I$23,\"N/A\",0,1)","v":"N/A"},{"$f":"_xlfn.XLOOKUP($E17,'Activity 8'!$B$17:$B$23,'Activity 8'!J$17:J$23,\"N/A\",0,1)","v":"N/A"},{"$f":"_xlfn.XLOOKUP($E17,'Activity 8'!$B$17:$B$23,'Activity 8'!K$17:K$23,\"N/A\",0,1)","v":"N/A"},{"$f":"_xlfn.XLOOKUP($E17,'Activity 8'!$B$17:$B$23,'Activity 8'!L$17:L$23,\"N/A\",0,1)","v":"N/A"},{"$f":"_xlfn.XLOOKUP($E17,'Activity 8'!$B$17:$B$23,'Activity 8'!M$17:M$23,\"N/A\",0,1)","v":"N/A"},{"$f":"_xlfn.XLOOKUP($E17,'Activity 8'!$B$17:$B$23,'Activity 8'!N$17:N$23,\"N/A\",0,1)","v":"N/A"},{"$f":"_xlfn.XLOOKUP($E17,'Activity 8'!$B$17:$B$23,'Activity 8'!P$17:P$23,\"N/A\",0,1)","v":"N/A"},{"$f":"_xlfn.XLOOKUP(E17,'Activity 9'!$B$7:$B$13,'Activity 9'!$A$7:$A$13,\"No\",0,1)","v":"No"},{"$f":"_xlfn.XLOOKUP($E17,'Activity 9'!$B$7:$B$13,'Activity 9'!J$7:J$13,\"N/A\",0,1)","v":"N/A"},{"$f":"_xlfn.XLOOKUP($E17,'Activity 9'!$B$7:$B$13,'Activity 9'!K$7:K$13,\"N/A\",0,1)","v":"N/A"},{"$f":"_xlfn.XLOOKUP($E17,'Activity 9'!$B$7:$B$13,'Activity 9'!L$7:L$13,\"N/A\",0,1)","v":"N/A"},{"$f":"_xlfn.XLOOKUP($E17,'Activity 9'!$B$7:$B$13,'Activity 9'!M$7:M$13,\"N/A\",0,1)","v":"N/A"},{"$f":"_xlfn.XLOOKUP($E17,'Activity 9'!$B$7:$B$13,'Activity 9'!N$7:N$13,\"N/A\",0,1)","v":"N/A"},{"$f":"_xlfn.XLOOKUP($E17,'Activity 9'!$B$7:$B$13,'Activity 9'!O$7:O$13,\"N/A\",0,1)","v":"N/A"},{"$f":"_xlfn.XLOOKUP($E17,'Activity 9'!$B$7:$B$13,'Activity 9'!P$7:P$13,\"N/A\",0,1)","v":"N/A"},{"$f":"_xlfn.XLOOKUP($E17,'Activity 9'!$B$7:$B$13,'Activity 9'!Q$7:Q$13,\"N/A\",0,1)","v":"N/A"},{"$f":"_xlfn.XLOOKUP($E17,'Activity 9'!$B$7:$B$13,'Activity 9'!R$7:R$13,\"N/A\",0,1)","v":"N/A"},{"$f":"_xlfn.XLOOKUP($E17,'Activity 9'!$B$7:$B$13,'Activity 9'!S$7:S$13,\"N/A\",0,1)","v":"N/A"},{"$f":"_xlfn.XLOOKUP($E17,'Activity 9'!$B$7:$B$13,'Activity 9'!T$7:T$13,\"N/A\",0,1)","v":"N/A"},{"$f":"_xlfn.XLOOKUP($E17,'Activity 9'!$B$17:$B$23,'Activity 9'!E$17:E$23,\"N/A\",0,1)","v":"N/A"},{"$f":"_xlfn.XLOOKUP($E17,'Activity 9'!$B$17:$B$23,'Activity 9'!F$17:F$23,\"N/A\",0,1)","v":"N/A"},{"$f":"_xlfn.XLOOKUP($E17,'Activity 9'!$B$17:$B$23,'Activity 9'!G$17:G$23,\"N/A\",0,1)","v":"N/A"},{"$f":"_xlfn.XLOOKUP($E17,'Activity 9'!$B$17:$B$23,'Activity 9'!H$17:H$23,\"N/A\",0,1)","v":"N/A"},{"$f":"_xlfn.XLOOKUP($E17,'Activity 9'!$B$17:$B$23,'Activity 9'!I$17:I$23,\"N/A\",0,1)","v":"N/A"},{"$f":"_xlfn.XLOOKUP($E17,'Activity 9'!$B$17:$B$23,'Activity 9'!J$17:J$23,\"N/A\",0,1)","v":"N/A"},{"$f":"_xlfn.XLOOKUP($E17,'Activity 9'!$B$17:$B$23,'Activity 9'!K$17:K$23,\"N/A\",0,1)","v":"N/A"},{"$f":"_xlfn.XLOOKUP($E17,'Activity 9'!$B$17:$B$23,'Activity 9'!L$17:L$23,\"N/A\",0,1)","v":"N/A"},{"$f":"_xlfn.XLOOKUP($E17,'Activity 9'!$B$17:$B$23,'Activity 9'!N$17:N$23,\"N/A\",0,1)","v":"N/A"},{"$f":"_xlfn.XLOOKUP($E17,'Activity 9'!$B$17:$B$23,'Activity 9'!O$17:O$23,\"N/A\",0,1)","v":"N/A"},{"$f":"_xlfn.XLOOKUP($E17,'Activity 9'!$B$17:$B$23,'Activity 9'!Q$17:Q$23,\"N/A\",0,1)","v":"N/A"},{"$f":"_xlfn.XLOOKUP($E17,'Activity 10'!$B$7:$B$13,'Activity 10'!A$7:A$13,\"No\",0,1)","v":"No"},{"$f":"_xlfn.XLOOKUP($E17,'Activity 10'!$B$7:$B$13,'Activity 10'!J$7:J$13,\"N/A\",0,1)","v":"N/A"},{"$f":"_xlfn.XLOOKUP($E17,'Activity 10'!$B$7:$B$13,'Activity 10'!K$7:K$13,\"N/A\",0,1)","v":"N/A"},{"$f":"_xlfn.XLOOKUP($E17,'Activity 10'!$B$7:$B$13,'Activity 10'!L$7:L$13,\"N/A\",0,1)","v":"N/A"},{"$f":"_xlfn.XLOOKUP($E17,'Activity 10'!$B$7:$B$13,'Activity 10'!M$7:M$13,\"N/A\",0,1)","v":"N/A"},{"$f":"_xlfn.XLOOKUP($E17,'Activity 10'!$B$7:$B$13,'Activity 10'!N$7:N$13,\"N/A\",0,1)","v":"N/A"},{"$f":"_xlfn.XLOOKUP($E17,'Activity 10'!$B$7:$B$13,'Activity 10'!O$7:O$13,\"N/A\",0,1)","v":"N/A"},{"$f":"_xlfn.XLOOKUP($E17,'Activity 10'!$B$7:$B$13,'Activity 10'!P$7:P$13,\"N/A\",0,1)","v":"N/A"},{"$f":"_xlfn.XLOOKUP($E17,'Activity 10'!$B$7:$B$13,'Activity 10'!Q$7:Q$13,\"N/A\",0,1)","v":"N/A"},{"$f":"_xlfn.XLOOKUP($E17,'Activity 10'!$B$7:$B$13,'Activity 10'!R$7:R$13,\"N/A\",0,1)","v":"N/A"},{"$f":"_xlfn.XLOOKUP($E17,'Activity 10'!$B$7:$B$13,'Activity 10'!S$7:S$13,\"N/A\",0,1)","v":"N/A"},{"$f":"_xlfn.XLOOKUP($E17,'Activity 10'!$B$7:$B$13,'Activity 10'!T$7:T$13,\"N/A\",0,1)","v":"N/A"},{"$f":"_xlfn.XLOOKUP($E17,'Activity 10'!$B$7:$B$13,'Activity 10'!U$7:U$13,\"N/A\",0,1)","v":"N/A"},{"$f":"_xlfn.XLOOKUP($E17,'Activity 10'!$B$7:$B$13,'Activity 10'!V$7:V$13,\"N/A\",0,1)","v":"N/A"},{"$f":"_xlfn.XLOOKUP($E17,'Activity 10'!$B$17:$B$23,'Activity 10'!E$17:E$23,\"N/A\",0,1)","v":"N/A"},{"$f":"_xlfn.XLOOKUP($E17,'Activity 10'!$B$17:$B$23,'Activity 10'!F$17:F$23,\"N/A\",0,1)","v":"N/A"},{"$f":"_xlfn.XLOOKUP($E17,'Activity 10'!$B$17:$B$23,'Activity 10'!G$17:G$23,\"N/A\",0,1)","v":"N/A"},{"$f":"_xlfn.XLOOKUP($E17,'Activity 10'!$B$17:$B$23,'Activity 10'!H$17:H$23,\"N/A\",0,1)","v":"N/A"},{"$f":"_xlfn.XLOOKUP($E17,'Activity 10'!$B$17:$B$23,'Activity 10'!I$17:I$23,\"N/A\",0,1)","v":"N/A"},{"$f":"_xlfn.XLOOKUP($E17,'Activity 10'!$B$17:$B$23,'Activity 10'!J$17:J$23,\"N/A\",0,1)","v":"N/A"},{"$f":"_xlfn.XLOOKUP($E17,'Activity 10'!$B$17:$B$23,'Activity 10'!K$17:K$23,\"N/A\",0,1)","v":"N/A"},{"$f":"_xlfn.XLOOKUP($E17,'Activity 10'!$B$17:$B$23,'Activity 10'!L$17:L$23,\"N/A\",0,1)","v":"N/A"},{"$f":"_xlfn.XLOOKUP($E17,'Activity 10'!$B$17:$B$23,'Activity 10'!M$17:M$23,\"N/A\",0,1)","v":"N/A"},{"$f":"_xlfn.XLOOKUP($E17,'Activity 10'!$B$17:$B$23,'Activity 10'!N$17:N$23,\"N/A\",0,1)","v":"N/A"},{"$f":"_xlfn.XLOOKUP($E17,'Activity 10'!$B$17:$B$23,'Activity 10'!P$17:P$23,\"N/A\",0,1)","v":"N/A"},{"$f":"_xlfn.XLOOKUP($E17,'Competitive Activity 1'!B$7:B$13,'Competitive Activity 1'!A$7:A$13,\"No\",0,1)","v":"No"},{"$f":"_xlfn.XLOOKUP($E17,'Competitive Activity 1'!$B$7:$B$13,'Competitive Activity 1'!H$7:H$13,\"N/A\",0,1)","v":"N/A"},{"$f":"_xlfn.XLOOKUP($E17,'Competitive Activity 1'!$B$7:$B$13,'Competitive Activity 1'!I$7:I$13,\"N/A\",0,1)","v":"N/A"},{"$f":"_xlfn.XLOOKUP($E17,'Competitive Activity 1'!$B$7:$B$13,'Competitive Activity 1'!J$7:J$13,\"N/A\",0,1)","v":"N/A"},{"$f":"_xlfn.XLOOKUP($E17,'Competitive Activity 1'!$B$7:$B$13,'Competitive Activity 1'!K$7:K$13,\"N/A\",0,1)","v":"N/A"},{"$f":"_xlfn.XLOOKUP($E17,'Competitive Activity 1'!$B$7:$B$13,'Competitive Activity 1'!L$7:L$13,\"N/A\",0,1)","v":"N/A"},{"$f":"_xlfn.XLOOKUP($E17,'Competitive Activity 1'!$B$7:$B$13,'Competitive Activity 1'!M$7:M$13,\"N/A\",0,1)","v":"N/A"},{"$f":"_xlfn.XLOOKUP($E17,'Competitive Activity 1'!$B$7:$B$13,'Competitive Activity 1'!N$7:N$13,\"N/A\",0,1)","v":"N/A"},{"$f":"_xlfn.XLOOKUP($E17,'Competitive Activity 1'!$B$7:$B$13,'Competitive Activity 1'!O$7:O$13,\"N/A\",0,1)","v":"N/A"},{"$f":"_xlfn.XLOOKUP($E17,'Competitive Activity 1'!$B$7:$B$13,'Competitive Activity 1'!P$7:P$13,\"N/A\",0,1)","v":"N/A"},{"$f":"_xlfn.XLOOKUP($E17,'Competitive Activity 1'!$B$7:$B$13,'Competitive Activity 1'!Q$7:Q$13,\"N/A\",0,1)","v":"N/A"},{"$f":"_xlfn.XLOOKUP($E17,'Competitive Activity 1'!$B$7:$B$13,'Competitive Activity 1'!R$7:R$13,\"N/A\",0,1)","v":"N/A"},{"$f":"_xlfn.XLOOKUP($E17,'Competitive Activity 1'!$B$7:$B$13,'Competitive Activity 1'!S$7:S$13,\"N/A\",0,1)","v":"N/A"},{"$f":"_xlfn.XLOOKUP($E17,'Competitive Activity 1'!$B$7:$B$13,'Competitive Activity 1'!T$7:T$13,\"N/A\",0,1)","v":"N/A"},{"$f":"_xlfn.XLOOKUP($E17,'Competitive Activity 1'!$B$7:$B$13,'Competitive Activity 1'!U$7:U$13,\"N/A\",0,1)","v":"N/A"},{"$f":"_xlfn.XLOOKUP($E17,'Competitive Activity 1'!$B$17:$B$23,'Competitive Activity 1'!C$17:C$23,\"N/A\",0,1)","v":"N/A"},{"$f":"_xlfn.XLOOKUP($E17,'Competitive Activity 1'!$B$17:$B$23,'Competitive Activity 1'!D$17:D$23,\"N/A\",0,1)","v":"N/A"},{"$f":"_xlfn.XLOOKUP($E17,'Competitive Activity 1'!$B$17:$B$23,'Competitive Activity 1'!E$17:E$23,\"N/A\",0,1)","v":"N/A"},{"$f":"_xlfn.XLOOKUP($E17,'Competitive Activity 1'!$B$17:$B$23,'Competitive Activity 1'!F$17:F$23,\"N/A\",0,1)","v":"N/A"},{"$f":"_xlfn.XLOOKUP($E17,'Competitive Activity 1'!$B$17:$B$23,'Competitive Activity 1'!G$17:G$23,\"N/A\",0,1)","v":"N/A"},{"$f":"_xlfn.XLOOKUP($E17,'Competitive Activity 1'!$B$17:$B$23,'Competitive Activity 1'!H$17:H$23,\"N/A\",0,1)","v":"N/A"},{"$f":"_xlfn.XLOOKUP($E17,'Competitive Activity 1'!$B$17:$B$23,'Competitive Activity 1'!I$17:I$23,\"N/A\",0,1)","v":"N/A"},{"$f":"_xlfn.XLOOKUP($E17,'Competitive Activity 1'!$B$17:$B$23,'Competitive Activity 1'!J$17:J$23,\"N/A\",0,1)","v":"N/A"},{"$f":"_xlfn.XLOOKUP($E17,'Competitive Activity 1'!$B$17:$B$23,'Competitive Activity 1'!K$17:K$23,\"N/A\",0,1)","v":"N/A"},{"$f":"_xlfn.XLOOKUP($E17,'Competitive Activity 1'!$B$17:$B$23,'Competitive Activity 1'!M$17:M$23,\"N/A\",0,1)","v":"N/A"},{"$f":"_xlfn.XLOOKUP($E17,'Competitive Activity 1'!$B$17:$B$23,'Competitive Activity 1'!N$17:N$23,\"N/A\",0,1)","v":"N/A"},{"$f":"_xlfn.XLOOKUP($E17,'Competitive Activity 1'!$B$17:$B$23,'Competitive Activity 1'!P$17:P$23,\"N/A\",0,1)","v":"N/A"},{"$f":"_xlfn.XLOOKUP($E17,'Competitive Activity 2'!$B$7:$B$13,'Competitive Activity 2'!A$7:A$13,\"No\",0)","v":"No"},{"$f":"_xlfn.XLOOKUP($E17,'Competitive Activity 2'!$B$7:$B$13,'Competitive Activity 2'!L$7:L$13,\"N/A\",0)","v":"N/A"},{"$f":"_xlfn.XLOOKUP($E17,'Competitive Activity 2'!$B$7:$B$13,'Competitive Activity 2'!M$7:M$13,\"N/A\",0)","v":"N/A"},{"$f":"_xlfn.XLOOKUP($E17,'Competitive Activity 2'!$B$7:$B$13,'Competitive Activity 2'!N$7:N$13,\"N/A\",0)","v":"N/A"},{"$f":"_xlfn.XLOOKUP($E17,'Competitive Activity 2'!$B$7:$B$13,'Competitive Activity 2'!O$7:O$13,\"N/A\",0)","v":"N/A"},{"$f":"_xlfn.XLOOKUP($E17,'Competitive Activity 2'!$B$7:$B$13,'Competitive Activity 2'!P$7:P$13,\"N/A\",0)","v":"N/A"},{"$f":"_xlfn.XLOOKUP($E17,'Competitive Activity 2'!$B$7:$B$13,'Competitive Activity 2'!Q$7:Q$13,\"N/A\",0)","v":"N/A"},{"$f":"_xlfn.XLOOKUP($E17,'Competitive Activity 2'!$B$7:$B$13,'Competitive Activity 2'!R$7:R$13,\"N/A\",0)","v":"N/A"},{"$f":"_xlfn.XLOOKUP($E17,'Competitive Activity 2'!$B$7:$B$13,'Competitive Activity 2'!S$7:S$13,\"N/A\",0)","v":"N/A"},{"$f":"_xlfn.XLOOKUP($E17,'Competitive Activity 2'!$B$7:$B$13,'Competitive Activity 2'!T$7:T$13,\"N/A\",0)","v":"N/A"},{"$f":"_xlfn.XLOOKUP($E17,'Competitive Activity 2'!$B$7:$B$13,'Competitive Activity 2'!U$7:U$13,\"N/A\",0)","v":"N/A"},{"$f":"_xlfn.XLOOKUP($E17,'Competitive Activity 2'!$B$17:$B$23,'Competitive Activity 2'!D$17:D$23,\"N/A\",0)","v":"N/A"},{"$f":"_xlfn.XLOOKUP($E17,'Competitive Activity 2'!$B$17:$B$23,'Competitive Activity 2'!E$17:E$23,\"N/A\",0)","v":"N/A"},{"$f":"_xlfn.XLOOKUP($E17,'Competitive Activity 2'!$B$17:$B$23,'Competitive Activity 2'!F$17:F$23,\"N/A\",0)","v":"N/A"},{"$f":"_xlfn.XLOOKUP($E17,'Competitive Activity 2'!$B$17:$B$23,'Competitive Activity 2'!G$17:G$23,\"N/A\",0)","v":"N/A"},{"$f":"_xlfn.XLOOKUP($E17,'Competitive Activity 2'!$B$17:$B$23,'Competitive Activity 2'!H$17:H$23,\"N/A\",0)","v":"N/A"},{"$f":"_xlfn.XLOOKUP($E17,'Competitive Activity 2'!$B$17:$B$23,'Competitive Activity 2'!I$17:I$23,\"N/A\",0)","v":"N/A"},{"$f":"_xlfn.XLOOKUP($E17,'Competitive Activity 2'!$B$17:$B$23,'Competitive Activity 2'!J$17:J$23,\"N/A\",0)","v":"N/A"},{"$f":"_xlfn.XLOOKUP($E17,'Competitive Activity 2'!$B$17:$B$23,'Competitive Activity 2'!K$17:K$23,\"N/A\",0)","v":"N/A"},{"$f":"_xlfn.XLOOKUP($E17,'Competitive Activity 2'!$B$17:$B$23,'Competitive Activity 2'!L$17:L$23,\"N/A\",0)","v":"N/A"},{"$f":"_xlfn.XLOOKUP($E17,'Competitive Activity 2'!$B$17:$B$23,'Competitive Activity 2'!M$17:M$23,\"N/A\",0)","v":"N/A"},{"$f":"_xlfn.XLOOKUP($E17,'Competitive Activity 2'!$B$17:$B$23,'Competitive Activity 2'!N$17:N$23,\"N/A\",0)","v":"N/A"},{"$f":"_xlfn.XLOOKUP($E17,'Competitive Activity 2'!$B$27:$B$33,'Competitive Activity 2'!D$27:D$33,\"N/A\",0)","v":"N/A"},{"$f":"_xlfn.XLOOKUP($E17,'Competitive Activity 2'!$B$27:$B$33,'Competitive Activity 2'!E$27:E$33,\"N/A\",0)","v":"N/A"},{"$f":"_xlfn.XLOOKUP($E17,'Competitive Activity 2'!$B$27:$B$33,'Competitive Activity 2'!F$27:F$33,\"N/A\",0)","v":"N/A"},{"$f":"_xlfn.XLOOKUP($E17,'Competitive Activity 2'!$B$27:$B$33,'Competitive Activity 2'!G$27:G$33,\"N/A\",0)","v":"N/A"},{"$f":"_xlfn.XLOOKUP($E17,'Competitive Activity 2'!$B$27:$B$33,'Competitive Activity 2'!H$27:H$33,\"N/A\",0)","v":"N/A"},{"$f":"_xlfn.XLOOKUP($E17,'Competitive Activity 2'!$B$27:$B$33,'Competitive Activity 2'!I$27:I$33,\"N/A\",0)","v":"N/A"},{"$f":"_xlfn.XLOOKUP($E17,'Competitive Activity 2'!$B$27:$B$33,'Competitive Activity 2'!J$27:J$33,\"N/A\",0)","v":"N/A"},{"$f":"_xlfn.XLOOKUP($E17,'Competitive Activity 2'!$B$27:$B$33,'Competitive Activity 2'!K$27:K$33,\"N/A\",0)","v":"N/A"},{"$f":"_xlfn.XLOOKUP($E17,'Competitive Activity 2'!$B$27:$B$33,'Competitive Activity 2'!M$27:M$33,\"N/A\",0)","v":"N/A"}]
[{"$f":"'1-Cover Sheet'!$C$8","v":"Select One"},{"$f":"'1-Cover Sheet'!$F$8","v":"Select One"},{"$f":"'Summary Sheet'!$D$8","v":0},{"$f":"'Summary Sheet'!$D$10","v":0},{"$f":"'Drop Down Box'!B182","v":0},{"$f":"'Drop Down Box'!C182","v":0},{"$f":"'Drop Down Box'!D182","v":"Select One"},{"$f":"_xlfn.XLOOKUP(E18,'Drop Down Box'!$B$166:$B$249,'Drop Down Box'!$A$166:$A$249,\"Unknown\",0)","v":"Activity 1"},{"$f":"_xlfn.XLOOKUP(E18,'Activity 3'!B$8:B$14,'Activity 3'!P$8:P$14,\"N/A\",0)","v":"N/A"},{"$f":"_xlfn.XLOOKUP($E18,'Activity 3'!$B$8:$B$14,'Activity 3'!Q$8:Q$14,\"N/A\",0)","v":"N/A"},{"$f":"_xlfn.XLOOKUP($E18,'Activity 3'!$B$8:$B$14,'Activity 3'!H$8:H$14,\"N/A\",0)","v":"N/A"},{"$f":"_xlfn.XLOOKUP(E18,'Activity 3'!B$8:B$14,'Activity 3'!I10:I16,\"N/A\",0)","v":"N/A"},{"$f":"_xlfn.XLOOKUP($E18,'Activity 3'!$B$8:$B$14,'Activity 3'!J10:J16,\"N/A\",0)","v":"N/A"},{"$f":"_xlfn.XLOOKUP($E18,'Activity 1'!$B$7:$B$13,'Activity 1'!$A$7:$A$13,\"No\",0,1)","v":"No"},{"$f":"_xlfn.XLOOKUP($E18,'Activity 1'!$B$7:$B$13,'Activity 1'!$H$7:$H$13,\"N/A\",0,1)","v":"N/A"},{"$f":"_xlfn.XLOOKUP($E18,'Activity 1'!$B$7:$B$13,'Activity 1'!I$7:I$13,\"N/A\",0,1)","v":"N/A"},{"$f":"_xlfn.XLOOKUP($E18,'Activity 1'!$B$7:$B$13,'Activity 1'!J$7:J$13,\"N/A\",0,1)","v":"N/A"},{"$f":"_xlfn.XLOOKUP($E18,'Activity 1'!$B$7:$B$13,'Activity 1'!K$7:K$13,\"N/A\",0,1)","v":"N/A"},{"$f":"_xlfn.XLOOKUP($E18,'Activity 1'!$B$7:$B$13,'Activity 1'!L$7:L$13,\"N/A\",0,1)","v":"N/A"},{"$f":"_xlfn.XLOOKUP($E18,'Activity 1'!$B$7:$B$13,'Activity 1'!M$7:M$13,\"N/A\",0,1)","v":"N/A"},{"$f":"_xlfn.XLOOKUP($E18,'Activity 1'!$B$7:$B$13,'Activity 1'!N$7:N$13,\"N/A\",0,1)","v":"N/A"},0,{"$f":"_xlfn.XLOOKUP($E18,'Activity 1'!$B$7:$B$13,'Activity 1'!O$7:O$13,\"N/A\",0,1)","v":"N/A"},{"$f":"_xlfn.XLOOKUP($E18,'Activity 1'!$B$7:$B$13,'Activity 1'!P$7:P$13,\"N/A\",0,1)","v":"N/A"},{"$f":"_xlfn.XLOOKUP($E18,'Activity 1'!$B$7:$B$13,'Activity 1'!Q$7:Q$13,\"N/A\",0,1)","v":"N/A"},{"$f":"_xlfn.XLOOKUP($E18,'Activity 1'!$B$7:$B$13,'Activity 1'!R$7:R$13,\"N/A\",0,1)","v":"N/A"},{"$f":"_xlfn.XLOOKUP($E18,'Activity 1'!$B$7:$B$13,'Activity 1'!S$7:S$13,\"N/A\",0,1)","v":"N/A"},{"$f":"_xlfn.XLOOKUP($E18,'Activity 1'!$B$7:$B$13,'Activity 1'!T$7:T$13,\"N/A\",0,1)","v":"N/A"},{"$f":"_xlfn.XLOOKUP($E18,'Activity 1'!$B$7:$B$13,'Activity 1'!U$7:U$13,\"N/A\",0,1)","v":"N/A"},{"$f":"_xlfn.XLOOKUP($E18,'Activity 1'!$B$7:$B$13,'Activity 1'!V$7:V$13,\"N/A\",0,1)","v":"N/A"},{"$f":"_xlfn.XLOOKUP($E18,'Activity 1'!$B$17:$B$23,'Activity 1'!C$17:C$23,\"N/A\",0,1)","v":"N/A"},{"$f":"_xlfn.XLOOKUP($E18,'Activity 1'!$B$17:$B$23,'Activity 1'!D$17:D$23,\"N/A\",0,1)","v":"N/A"},{"$f":"_xlfn.XLOOKUP($E18,'Activity 1'!$B$17:$B$23,'Activity 1'!E$17:E$23,\"N/A\",0,1)","v":"N/A"},{"$f":"_xlfn.XLOOKUP($E18,'Activity 1'!$B$17:$B$23,'Activity 1'!F$17:F$23,\"N/A\",0,1)","v":"N/A"},{"$f":"_xlfn.XLOOKUP($E18,'Activity 1'!$B$17:$B$23,'Activity 1'!G$17:G$23,\"N/A\",0,1)","v":"N/A"},{"$f":"_xlfn.XLOOKUP($E18,'Activity 1'!$B$17:$B$23,'Activity 1'!H$17:H$23,\"N/A\",0,1)","v":"N/A"},{"$f":"_xlfn.XLOOKUP($E18,'Activity 1'!$B$17:$B$23,'Activity 1'!I$17:I$23,\"N/A\",0,1)","v":"N/A"},{"$f":"_xlfn.XLOOKUP($E18,'Activity 1'!$B$17:$B$23,'Activity 1'!J$17:J$23,\"N/A\",0,1)","v":"N/A"},{"$f":"_xlfn.XLOOKUP($E18,'Activity 1'!$B$17:$B$23,'Activity 1'!K$17:K$23,\"N/A\",0,1)","v":"N/A"},{"$f":"_xlfn.XLOOKUP($E18,'Activity 1'!$B$17:$B$23,'Activity 1'!L$17:L$23,\"N/A\",0,1)","v":"N/A"},{"$f":"_xlfn.XLOOKUP($E18,'Activity 1'!$B$17:$B$23,'Activity 1'!M$17:M$23,\"N/A\",0,1)","v":"N/A"},{"$f":"_xlfn.XLOOKUP($E18,'Activity 1'!$B$17:$B$23,'Activity 1'!O$17:O$23,\"N/A\",0,1)","v":"N/A"},{"$f":"_xlfn.XLOOKUP($E18,'Activity 1'!$B$17:$B$23,'Activity 1'!Q$17:Q$23,\"N/A\",0,1)","v":"N/A"},{"$f":"_xlfn.XLOOKUP($E18,'Activity 2'!$B$7:$B$13,'Activity 2'!$A$7:$A$13,\"No\",0,1)","v":"No"},{"$f":"_xlfn.XLOOKUP($E18,'Activity 2'!B$7:B$13,'Activity 2'!H$7:H$13,\"N/A\",0)","v":"N/A"},{"$f":"_xlfn.XLOOKUP($E18,'Activity 2'!C$7:C$13,'Activity 2'!I$7:I$13,\"N/A\",0)","v":"N/A"},{"$f":"_xlfn.XLOOKUP($E18,'Activity 2'!D$7:D$13,'Activity 2'!J$7:J$13,\"N/A\",0)","v":"N/A"},{"$f":"_xlfn.XLOOKUP($E18,'Activity 2'!E$7:E$13,'Activity 2'!K$7:K$13,\"N/A\",0)","v":"N/A"},{"$f":"_xlfn.XLOOKUP($E18,'Activity 2'!F$7:F$13,'Activity 2'!L$7:L$13,\"N/A\",0)","v":"N/A"},{"$f":"_xlfn.XLOOKUP($E18,'Activity 2'!G$7:G$13,'Activity 2'!M$7:M$13,\"N/A\",0)","v":"N/A"},{"$f":"_xlfn.XLOOKUP($E18,'Activity 2'!H$7:H$13,'Activity 2'!N$7:N$13,\"N/A\",0)","v":"N/A"},{"$f":"_xlfn.XLOOKUP($E18,'Activity 2'!I$7:I$13,'Activity 2'!O$7:O$13,\"N/A\",0)","v":"N/A"},{"$f":"_xlfn.XLOOKUP($E18,'Activity 2'!J$7:J$13,'Activity 2'!P$7:P$13,\"N/A\",0)","v":"N/A"},{"$f":"_xlfn.XLOOKUP($E18,'Activity 2'!K$7:K$13,'Activity 2'!Q$7:Q$13,\"N/A\",0)","v":"N/A"},{"$f":"_xlfn.XLOOKUP($E18,'Activity 2'!L$7:L$13,'Activity 2'!R$7:R$13,\"N/A\",0)","v":"N/A"},{"$f":"_xlfn.XLOOKUP($E18,'Activity 2'!M$7:M$13,'Activity 2'!S$7:S$13,\"N/A\",0)","v":"N/A"},{"$f":"_xlfn.XLOOKUP($E18,'Activity 2'!N$7:N$13,'Activity 2'!T$7:T$13,\"N/A\",0)","v":"N/A"},{"$f":"_xlfn.XLOOKUP($E18,'Activity 2'!O$7:O$13,'Activity 2'!U$7:U$13,\"N/A\",0)","v":"N/A"},{"$f":"_xlfn.XLOOKUP($E18,'Activity 2'!P$7:P$13,'Activity 2'!V$7:V$13,\"N/A\",0)","v":"N/A"},{"$f":"_xlfn.XLOOKUP($E18,'Activity 2'!$B$17:$B$23,'Activity 2'!C$17:C$23,\"N/A\",0,1)","v":"N/A"},{"$f":"_xlfn.XLOOKUP($E18,'Activity 2'!$B$17:$B$23,'Activity 2'!D$17:D$23,\"N/A\",0,1)","v":"N/A"},{"$f":"_xlfn.XLOOKUP($E18,'Activity 2'!$B$17:$B$23,'Activity 2'!E$17:E$23,\"N/A\",0,1)","v":"N/A"},{"$f":"_xlfn.XLOOKUP($E18,'Activity 2'!$B$17:$B$23,'Activity 2'!F$17:F$23,\"N/A\",0,1)","v":"N/A"},{"$f":"_xlfn.XLOOKUP($E18,'Activity 2'!$B$17:$B$23,'Activity 2'!G$17:G$23,\"N/A\",0,1)","v":"N/A"},{"$f":"_xlfn.XLOOKUP($E18,'Activity 2'!$B$17:$B$23,'Activity 2'!H$17:H$23,\"N/A\",0,1)","v":"N/A"},{"$f":"_xlfn.XLOOKUP($E18,'Activity 2'!$B$17:$B$23,'Activity 2'!I$17:I$23,\"N/A\",0,1)","v":"N/A"},{"$f":"_xlfn.XLOOKUP($E18,'Activity 2'!$B$17:$B$23,'Activity 2'!J$17:J$23,\"N/A\",0,1)","v":"N/A"},{"$f":"_xlfn.XLOOKUP($E18,'Activity 2'!$B$17:$B$23,'Activity 2'!K$17:K$23,\"N/A\",0,1)","v":"N/A"},{"$f":"_xlfn.XLOOKUP($E18,'Activity 2'!$B$17:$B$23,'Activity 2'!L$17:L$23,\"N/A\",0,1)","v":"N/A"},{"$f":"_xlfn.XLOOKUP($E18,'Activity 2'!$B$17:$B$23,'Activity 2'!M$17:M$23,\"N/A\",0,1)","v":"N/A"},{"$f":"_xlfn.XLOOKUP($E18,'Activity 2'!$B$17:$B$23,'Activity 2'!O$17:O$23,\"N/A\",0,1)","v":"N/A"},{"$f":"_xlfn.XLOOKUP($E18,'Activity 2'!$B$17:$B$23,'Activity 2'!Q$17:Q$23,\"N/A\",0,1)","v":"N/A"},null,{"$f":"_xlfn.XLOOKUP($E18,'Activity 3'!$B$8:$B$14,'Activity 3'!K$8:K$14,\"N/A\",0,1)","v":"N/A"},{"$f":"_xlfn.XLOOKUP($E18,'Activity 3'!$B$8:$B$14,'Activity 3'!L$8:L$14,\"N/A\",0,1)","v":"N/A"},{"$f":"_xlfn.XLOOKUP($E18,'Activity 3'!$B$8:$B$14,'Activity 3'!M$8:M$14,\"N/A\",0,1)","v":"N/A"},{"$f":"_xlfn.XLOOKUP($E18,'Activity 3'!$B$8:$B$14,'Activity 3'!N$8:N$14,\"N/A\",0,1)","v":"N/A"},{"$f":"_xlfn.XLOOKUP($E18,'Activity 3'!$B$8:$B$14,'Activity 3'!O$8:O$14,\"N/A\",0,1)","v":"N/A"},{"$f":"_xlfn.XLOOKUP($E18,'Activity 3'!$B$8:$B$14,'Activity 3'!R$8:R$14,\"N/A\",0,1)","v":"N/A"},{"$f":"_xlfn.XLOOKUP($E18,'Activity 4'!$B$8:$B$14,'Activity 4'!$A$8:$A$14,\"No\",0,1)","v":"No"},{"$f":"_xlfn.XLOOKUP($E18,'Activity 4'!$B$8:$B$14,'Activity 4'!L$8:L$14,\"N/A\",0,1)","v":"N/A"},{"$f":"_xlfn.XLOOKUP($E18,'Activity 4'!$B$8:$B$14,'Activity 4'!I$8:I$14,\"N/A\",0,1)","v":"N/A"},{"$f":"_xlfn.XLOOKUP($E18,'Activity 4'!$B$8:$B$14,'Activity 4'!M$8:M$14,\"N/A\",0,1)","v":"N/A"},{"$f":"_xlfn.XLOOKUP($E18,'Activity 5'!$B$8:$B$14,'Activity 5'!$A$8:$A$14,\"No\",0,1)","v":"No"},{"$f":"_xlfn.XLOOKUP($E18,'Activity 5'!$B$8:$B$14,'Activity 5'!J$8:J$14,\"N/A\",0,1)","v":"N/A"},{"$f":"_xlfn.XLOOKUP($E18,'Activity 5'!$B$8:$B$14,'Activity 5'!K$8:K$14,\"N/A\",0,1)","v":"N/A"},{"$f":"_xlfn.XLOOKUP($E18,'Activity 5'!$B$8:$B$14,'Activity 5'!N$8:N$14,\"N/A\",0,1)","v":"N/A"},{"$f":"_xlfn.XLOOKUP($E18,'Activity 5'!$B$8:$B$14,'Activity 5'!O$8:O$14,\"N/A\",0,1)","v":"N/A"},{"$f":"_xlfn.XLOOKUP($E18,'Activity 5'!$B$8:$B$14,'Activity 5'!P$8:P$14,\"N/A\",0,1)","v":"N/A"},{"$f":"_xlfn.XLOOKUP($E18,'Activity 5'!$B$8:$B$14,'Activity 5'!Q$8:Q$14,\"N/A\",0,1)","v":"N/A"},{"$f":"_xlfn.XLOOKUP($E18,'Activity 5'!$B$8:$B$14,'Activity 5'!R$8:R$14,\"N/A\",0,1)","v":"N/A"},{"$f":"_xlfn.XLOOKUP($E18,'Activity 6'!$B$7:$B$13,'Activity 6'!A$7:A$13,\"No\",0,1)","v":"No"},{"$f":"_xlfn.XLOOKUP($E18,'Activity 6'!$B$7:$B$13,'Activity 6'!K$7:K$13,\"N/A\",0,1)","v":"N/A"},{"$f":"_xlfn.XLOOKUP($E18,'Activity 6'!$B$7:$B$13,'Activity 6'!L$7:L$13,\"N/A\",0,1)","v":"N/A"},{"$f":"_xlfn.XLOOKUP($E18,'Activity 6'!$B$7:$B$13,'Activity 6'!M$7:M$13,\"N/A\",0,1)","v":"N/A"},{"$f":"_xlfn.XLOOKUP($E18,'Activity 6'!$B$7:$B$13,'Activity 6'!N$7:N$13,\"N/A\",0,1)","v":"N/A"},{"$f":"_xlfn.XLOOKUP($E18,'Activity 6'!$B$7:$B$13,'Activity 6'!O$7:O$13,\"N/A\",0,1)","v":"N/A"},{"$f":"_xlfn.XLOOKUP($E18,'Activity 6'!$B$7:$B$13,'Activity 6'!P$7:P$13,\"N/A\",0,1)","v":"N/A"},{"$f":"_xlfn.XLOOKUP($E18,'Activity 6'!$B$7:$B$13,'Activity 6'!Q$7:Q$13,\"N/A\",0,1)","v":"N/A"},{"$f":"_xlfn.XLOOKUP($E18,'Activity 6'!$B$7:$B$13,'Activity 6'!R$7:R$13,\"N/A\",0,1)","v":"N/A"},{"$f":"_xlfn.XLOOKUP($E18,'Activity 6'!$B$7:$B$13,'Activity 6'!S$7:S$13,\"N/A\",0,1)","v":"N/A"},{"$f":"_xlfn.XLOOKUP($E18,'Activity 6'!$B$7:$B$13,'Activity 6'!T$7:T$13,\"N/A\",0,1)","v":"N/A"},{"$f":"_xlfn.XLOOKUP($E18,'Activity 6'!$B$7:$B$13,'Activity 6'!U$7:U$13,\"N/A\",0,1)","v":"N/A"},{"$f":"_xlfn.XLOOKUP($E18,'Activity 6'!$B$22:$B$28,'Activity 6'!C$22:C$28,\"N/A\",0,1)","v":"N/A"},{"$f":"_xlfn.XLOOKUP($E18,'Activity 6'!$B$22:$B$28,'Activity 6'!D$22:D$28,\"N/A\",0,1)","v":"N/A"},{"$f":"_xlfn.XLOOKUP($E18,'Activity 6'!$B$22:$B$28,'Activity 6'!E$22:E$28,\"N/A\",0,1)","v":"N/A"},{"$f":"_xlfn.XLOOKUP($E18,'Activity 6'!$B$22:$B$28,'Activity 6'!F$22:F$28,\"N/A\",0,1)","v":"N/A"},{"$f":"_xlfn.XLOOKUP($E18,'Activity 6'!$B$22:$B$28,'Activity 6'!G$22:G$28,\"N/A\",0,1)","v":"N/A"},{"$f":"_xlfn.XLOOKUP($E18,'Activity 6'!$B$22:$B$28,'Activity 6'!H$22:H$28,\"N/A\",0,1)","v":"N/A"},{"$f":"_xlfn.XLOOKUP($E18,'Activity 6'!$B$22:$B$28,'Activity 6'!I$22:I$28,\"N/A\",0,1)","v":"N/A"},{"$f":"_xlfn.XLOOKUP($E18,'Activity 6'!$B$22:$B$28,'Activity 6'!J$22:J$28,\"N/A\",0,1)","v":"N/A"},{"$f":"_xlfn.XLOOKUP($E18,'Activity 6'!$B$22:$B$28,'Activity 6'!K$22:K$28,\"N/A\",0,1)","v":"N/A"},{"$f":"_xlfn.XLOOKUP($E18,'Activity 6'!$B$22:$B$28,'Activity 6'!L$22:L$28,\"N/A\",0,1)","v":"N/A"},{"$f":"_xlfn.XLOOKUP($E18,'Activity 6'!$B$22:$B$28,'Activity 6'!M$22:M$28,\"N/A\",0,1)","v":"N/A"},{"$f":"_xlfn.XLOOKUP($E18,'Activity 6'!$B$22:$B$28,'Activity 6'!N$22:N$28,\"N/A\",0,1)","v":"N/A"},{"$f":"_xlfn.XLOOKUP($E18,'Activity 6'!$B$32:$B$38,'Activity 6'!C$32:C$38,\"N/A\",0,1)","v":"N/A"},{"$f":"_xlfn.XLOOKUP($E18,'Activity 6'!$B$32:$B$38,'Activity 6'!D$32:D$38,\"N/A\",0,1)","v":"N/A"},{"$f":"_xlfn.XLOOKUP($E18,'Activity 6'!$B$32:$B$38,'Activity 6'!E$32:E$38,\"N/A\",0,1)","v":"N/A"},{"$f":"_xlfn.XLOOKUP($E18,'Activity 6'!$B$32:$B$38,'Activity 6'!F$32:F$38,\"N/A\",0,1)","v":"N/A"},{"$f":"_xlfn.XLOOKUP($E18,'Activity 6'!$B$32:$B$38,'Activity 6'!G$32:G$38,\"N/A\",0,1)","v":"N/A"},{"$f":"_xlfn.XLOOKUP($E18,'Activity 6'!$B$32:$B$38,'Activity 6'!H$32:H$38,\"N/A\",0,1)","v":"N/A"},{"$f":"_xlfn.XLOOKUP($E18,'Activity 6'!$B$32:$B$38,'Activity 6'!I$32:I$38,\"N/A\",0,1)","v":"N/A"},{"$f":"_xlfn.XLOOKUP($E18,'Activity 6'!$B$32:$B$38,'Activity 6'!J$32:J$38,\"N/A\",0,1)","v":"N/A"},{"$f":"_xlfn.XLOOKUP($E18,'Activity 6'!$B$32:$B$38,'Activity 6'!K$32:K$38,\"N/A\",0,1)","v":"N/A"},{"$f":"_xlfn.XLOOKUP($E18,'Activity 6'!$B$32:$B$38,'Activity 6'!M$32:M$38,\"N/A\",0,1)","v":"N/A"},{"$f":"_xlfn.XLOOKUP($E18,'Activity 7'!$B$7:$B$13,'Activity 7'!$A$7:$A$13,\"No\",0,1)","v":"No"},{"$f":"_xlfn.XLOOKUP($E18,'Activity 7'!$B$7:$B$13,'Activity 7'!M$7:M$13,\"N/A\",0,1)","v":"N/A"},{"$f":"_xlfn.XLOOKUP($E18,'Activity 7'!$B$7:$B$13,'Activity 7'!K$7:K$13,\"N/A\",0,1)","v":"N/A"},{"$f":"_xlfn.XLOOKUP($E18,'Activity 7'!$B$7:$B$13,'Activity 7'!N$7:N$13,\"N/A\",0,1)","v":"N/A"},{"$f":"_xlfn.XLOOKUP($E18,'Activity 7'!$B$7:$B$13,'Activity 7'!O$7:O$13,\"N/A\",0,1)","v":"N/A"},{"$f":"_xlfn.XLOOKUP($E18,'Activity 7'!$B$7:$B$13,'Activity 7'!P$7:P$13,\"N/A\",0,1)","v":"N/A"},{"$f":"_xlfn.XLOOKUP($E18,'Activity 7'!$B$7:$B$13,'Activity 7'!Q$7:Q$13,\"N/A\",0,1)","v":"N/A"},{"$f":"_xlfn.XLOOKUP($E18,'Activity 7'!$B$7:$B$13,'Activity 7'!R$7:R$13,\"N/A\",0,1)","v":"N/A"},{"$f":"_xlfn.XLOOKUP($E18,'Activity 7'!$B$7:$B$13,'Activity 7'!S$7:S$13,\"N/A\",0,1)","v":"N/A"},{"$f":"_xlfn.XLOOKUP($E18,'Activity 7'!$B$7:$B$13,'Activity 7'!T$7:T$13,\"N/A\",0,1)","v":"N/A"},{"$f":"_xlfn.XLOOKUP($E18,'Activity 7'!$B$7:$B$13,'Activity 7'!U$7:U$13,\"N/A\",0,1)","v":"N/A"},{"$f":"_xlfn.XLOOKUP($E18,'Activity 7'!$B$7:$B$13,'Activity 7'!V$7:V$13,\"N/A\",0,1)","v":"N/A"},{"$f":"_xlfn.XLOOKUP($E18,'Activity 7'!$B$17:$B$23,'Activity 7'!E$17:E$23,\"N/A\",0,1)","v":"N/A"},{"$f":"_xlfn.XLOOKUP($E18,'Activity 7'!$B$17:$B$23,'Activity 7'!G$17:G$23,\"N/A\",0,1)","v":"N/A"},{"$f":"_xlfn.XLOOKUP($E18,'Activity 7'!$B$17:$B$23,'Activity 7'!I$17:I$23,\"N/A\",0,1)","v":"N/A"},{"$f":"_xlfn.XLOOKUP($E18,'Activity 7'!$B$17:$B$23,'Activity 7'!J$17:J$23,\"N/A\",0,1)","v":"N/A"},{"$f":"_xlfn.XLOOKUP($E18,'Activity 7'!$B$17:$B$23,'Activity 7'!K$17:K$23,\"N/A\",0,1)","v":"N/A"},{"$f":"_xlfn.XLOOKUP($E18,'Activity 7'!$B$17:$B$23,'Activity 7'!L$17:L$23,\"N/A\",0,1)","v":"N/A"},{"$f":"_xlfn.XLOOKUP($E18,'Activity 7'!$B$17:$B$23,'Activity 7'!M$17:M$23,\"N/A\",0,1)","v":"N/A"},{"$f":"_xlfn.XLOOKUP($E18,'Activity 7'!$B$17:$B$23,'Activity 7'!N$17:N$23,\"N/A\",0,1)","v":"N/A"},{"$f":"_xlfn.XLOOKUP($E18,'Activity 7'!$B$17:$B$23,'Activity 7'!P$17:P$23,\"N/A\",0,1)","v":"N/A"},{"$f":"_xlfn.XLOOKUP($E18,'Activity 8'!$B$7:$B$13,'Activity 8'!A$7:A$13,\"No\",0,1)","v":"No"},{"$f":"_xlfn.XLOOKUP($E18,'Activity 8'!$B$7:$B$13,'Activity 8'!I$7:I$13,\"N/A\",0,1)","v":"N/A"},{"$f":"_xlfn.XLOOKUP($E18,'Activity 8'!$B$7:$B$13,'Activity 8'!J$7:J$13,\"N/A\",0,1)","v":"N/A"},{"$f":"_xlfn.XLOOKUP($E18,'Activity 8'!$B$7:$B$13,'Activity 8'!K$7:K$13,\"N/A\",0,1)","v":"N/A"},{"$f":"_xlfn.XLOOKUP($E18,'Activity 8'!$B$7:$B$13,'Activity 8'!L$7:L$13,\"N/A\",0,1)","v":"N/A"},{"$f":"_xlfn.XLOOKUP($E18,'Activity 8'!$B$7:$B$13,'Activity 8'!M$7:M$13,\"N/A\",0,1)","v":"N/A"},{"$f":"_xlfn.XLOOKUP($E18,'Activity 8'!$B$7:$B$13,'Activity 8'!N$7:N$13,\"N/A\",0,1)","v":"N/A"},{"$f":"_xlfn.XLOOKUP($E18,'Activity 8'!$B$7:$B$13,'Activity 8'!O$7:O$13,\"N/A\",0,1)","v":"N/A"},{"$f":"_xlfn.XLOOKUP($E18,'Activity 8'!$B$7:$B$13,'Activity 8'!P$7:P$13,\"N/A\",0,1)","v":"N/A"},{"$f":"_xlfn.XLOOKUP($E18,'Activity 8'!$B$7:$B$13,'Activity 8'!Q$7:Q$13,\"N/A\",0,1)","v":"N/A"},{"$f":"_xlfn.XLOOKUP($E18,'Activity 8'!$B$7:$B$13,'Activity 8'!R$7:R$13,\"N/A\",0,1)","v":"N/A"},{"$f":"_xlfn.XLOOKUP($E18,'Activity 8'!$B$7:$B$13,'Activity 8'!S$7:S$13,\"N/A\",0,1)","v":"N/A"},{"$f":"_xlfn.XLOOKUP($E18,'Activity 8'!$B$7:$B$13,'Activity 8'!T$7:T$13,\"N/A\",0,1)","v":"N/A"},{"$f":"_xlfn.XLOOKUP($E18,'Activity 8'!$B$7:$B$13,'Activity 8'!U$7:U$13,\"N/A\",0,1)","v":"N/A"},{"$f":"_xlfn.XLOOKUP($E18,'Activity 8'!$B$7:$B$13,'Activity 8'!V$7:V$13,\"N/A\",0,1)","v":"N/A"},{"$f":"_xlfn.XLOOKUP($E18,'Activity 8'!$B$17:$B$23,'Activity 8'!D$17:D$23,\"N/A\",0,1)","v":"N/A"},{"$f":"_xlfn.XLOOKUP($E18,'Activity 8'!$B$17:$B$23,'Activity 8'!E$17:E$23,\"N/A\",0,1)","v":"N/A"},{"$f":"_xlfn.XLOOKUP($E18,'Activity 8'!$B$17:$B$23,'Activity 8'!F$17:F$23,\"N/A\",0,1)","v":"N/A"},{"$f":"_xlfn.XLOOKUP($E18,'Activity 8'!$B$17:$B$23,'Activity 8'!G$17:G$23,\"N/A\",0,1)","v":"N/A"},{"$f":"_xlfn.XLOOKUP($E18,'Activity 8'!$B$17:$B$23,'Activity 8'!H$17:H$23,\"N/A\",0,1)","v":"N/A"},{"$f":"_xlfn.XLOOKUP($E18,'Activity 8'!$B$17:$B$23,'Activity 8'!I$17:I$23,\"N/A\",0,1)","v":"N/A"},{"$f":"_xlfn.XLOOKUP($E18,'Activity 8'!$B$17:$B$23,'Activity 8'!J$17:J$23,\"N/A\",0,1)","v":"N/A"},{"$f":"_xlfn.XLOOKUP($E18,'Activity 8'!$B$17:$B$23,'Activity 8'!K$17:K$23,\"N/A\",0,1)","v":"N/A"},{"$f":"_xlfn.XLOOKUP($E18,'Activity 8'!$B$17:$B$23,'Activity 8'!L$17:L$23,\"N/A\",0,1)","v":"N/A"},{"$f":"_xlfn.XLOOKUP($E18,'Activity 8'!$B$17:$B$23,'Activity 8'!M$17:M$23,\"N/A\",0,1)","v":"N/A"},{"$f":"_xlfn.XLOOKUP($E18,'Activity 8'!$B$17:$B$23,'Activity 8'!N$17:N$23,\"N/A\",0,1)","v":"N/A"},{"$f":"_xlfn.XLOOKUP($E18,'Activity 8'!$B$17:$B$23,'Activity 8'!P$17:P$23,\"N/A\",0,1)","v":"N/A"},{"$f":"_xlfn.XLOOKUP(E18,'Activity 9'!$B$7:$B$13,'Activity 9'!$A$7:$A$13,\"No\",0,1)","v":"No"},{"$f":"_xlfn.XLOOKUP($E18,'Activity 9'!$B$7:$B$13,'Activity 9'!J$7:J$13,\"N/A\",0,1)","v":"N/A"},{"$f":"_xlfn.XLOOKUP($E18,'Activity 9'!$B$7:$B$13,'Activity 9'!K$7:K$13,\"N/A\",0,1)","v":"N/A"},{"$f":"_xlfn.XLOOKUP($E18,'Activity 9'!$B$7:$B$13,'Activity 9'!L$7:L$13,\"N/A\",0,1)","v":"N/A"},{"$f":"_xlfn.XLOOKUP($E18,'Activity 9'!$B$7:$B$13,'Activity 9'!M$7:M$13,\"N/A\",0,1)","v":"N/A"},{"$f":"_xlfn.XLOOKUP($E18,'Activity 9'!$B$7:$B$13,'Activity 9'!N$7:N$13,\"N/A\",0,1)","v":"N/A"},{"$f":"_xlfn.XLOOKUP($E18,'Activity 9'!$B$7:$B$13,'Activity 9'!O$7:O$13,\"N/A\",0,1)","v":"N/A"},{"$f":"_xlfn.XLOOKUP($E18,'Activity 9'!$B$7:$B$13,'Activity 9'!P$7:P$13,\"N/A\",0,1)","v":"N/A"},{"$f":"_xlfn.XLOOKUP($E18,'Activity 9'!$B$7:$B$13,'Activity 9'!Q$7:Q$13,\"N/A\",0,1)","v":"N/A"},{"$f":"_xlfn.XLOOKUP($E18,'Activity 9'!$B$7:$B$13,'Activity 9'!R$7:R$13,\"N/A\",0,1)","v":"N/A"},{"$f":"_xlfn.XLOOKUP($E18,'Activity 9'!$B$7:$B$13,'Activity 9'!S$7:S$13,\"N/A\",0,1)","v":"N/A"},{"$f":"_xlfn.XLOOKUP($E18,'Activity 9'!$B$7:$B$13,'Activity 9'!T$7:T$13,\"N/A\",0,1)","v":"N/A"},{"$f":"_xlfn.XLOOKUP($E18,'Activity 9'!$B$17:$B$23,'Activity 9'!E$17:E$23,\"N/A\",0,1)","v":"N/A"},{"$f":"_xlfn.XLOOKUP($E18,'Activity 9'!$B$17:$B$23,'Activity 9'!F$17:F$23,\"N/A\",0,1)","v":"N/A"},{"$f":"_xlfn.XLOOKUP($E18,'Activity 9'!$B$17:$B$23,'Activity 9'!G$17:G$23,\"N/A\",0,1)","v":"N/A"},{"$f":"_xlfn.XLOOKUP($E18,'Activity 9'!$B$17:$B$23,'Activity 9'!H$17:H$23,\"N/A\",0,1)","v":"N/A"},{"$f":"_xlfn.XLOOKUP($E18,'Activity 9'!$B$17:$B$23,'Activity 9'!I$17:I$23,\"N/A\",0,1)","v":"N/A"},{"$f":"_xlfn.XLOOKUP($E18,'Activity 9'!$B$17:$B$23,'Activity 9'!J$17:J$23,\"N/A\",0,1)","v":"N/A"},{"$f":"_xlfn.XLOOKUP($E18,'Activity 9'!$B$17:$B$23,'Activity 9'!K$17:K$23,\"N/A\",0,1)","v":"N/A"},{"$f":"_xlfn.XLOOKUP($E18,'Activity 9'!$B$17:$B$23,'Activity 9'!L$17:L$23,\"N/A\",0,1)","v":"N/A"},{"$f":"_xlfn.XLOOKUP($E18,'Activity 9'!$B$17:$B$23,'Activity 9'!N$17:N$23,\"N/A\",0,1)","v":"N/A"},{"$f":"_xlfn.XLOOKUP($E18,'Activity 9'!$B$17:$B$23,'Activity 9'!O$17:O$23,\"N/A\",0,1)","v":"N/A"},{"$f":"_xlfn.XLOOKUP($E18,'Activity 9'!$B$17:$B$23,'Activity 9'!Q$17:Q$23,\"N/A\",0,1)","v":"N/A"},{"$f":"_xlfn.XLOOKUP($E18,'Activity 10'!$B$7:$B$13,'Activity 10'!A$7:A$13,\"No\",0,1)","v":"No"},{"$f":"_xlfn.XLOOKUP($E18,'Activity 10'!$B$7:$B$13,'Activity 10'!J$7:J$13,\"N/A\",0,1)","v":"N/A"},{"$f":"_xlfn.XLOOKUP($E18,'Activity 10'!$B$7:$B$13,'Activity 10'!K$7:K$13,\"N/A\",0,1)","v":"N/A"},{"$f":"_xlfn.XLOOKUP($E18,'Activity 10'!$B$7:$B$13,'Activity 10'!L$7:L$13,\"N/A\",0,1)","v":"N/A"},{"$f":"_xlfn.XLOOKUP($E18,'Activity 10'!$B$7:$B$13,'Activity 10'!M$7:M$13,\"N/A\",0,1)","v":"N/A"},{"$f":"_xlfn.XLOOKUP($E18,'Activity 10'!$B$7:$B$13,'Activity 10'!N$7:N$13,\"N/A\",0,1)","v":"N/A"},{"$f":"_xlfn.XLOOKUP($E18,'Activity 10'!$B$7:$B$13,'Activity 10'!O$7:O$13,\"N/A\",0,1)","v":"N/A"},{"$f":"_xlfn.XLOOKUP($E18,'Activity 10'!$B$7:$B$13,'Activity 10'!P$7:P$13,\"N/A\",0,1)","v":"N/A"},{"$f":"_xlfn.XLOOKUP($E18,'Activity 10'!$B$7:$B$13,'Activity 10'!Q$7:Q$13,\"N/A\",0,1)","v":"N/A"},{"$f":"_xlfn.XLOOKUP($E18,'Activity 10'!$B$7:$B$13,'Activity 10'!R$7:R$13,\"N/A\",0,1)","v":"N/A"},{"$f":"_xlfn.XLOOKUP($E18,'Activity 10'!$B$7:$B$13,'Activity 10'!S$7:S$13,\"N/A\",0,1)","v":"N/A"},{"$f":"_xlfn.XLOOKUP($E18,'Activity 10'!$B$7:$B$13,'Activity 10'!T$7:T$13,\"N/A\",0,1)","v":"N/A"},{"$f":"_xlfn.XLOOKUP($E18,'Activity 10'!$B$7:$B$13,'Activity 10'!U$7:U$13,\"N/A\",0,1)","v":"N/A"},{"$f":"_xlfn.XLOOKUP($E18,'Activity 10'!$B$7:$B$13,'Activity 10'!V$7:V$13,\"N/A\",0,1)","v":"N/A"},{"$f":"_xlfn.XLOOKUP($E18,'Activity 10'!$B$17:$B$23,'Activity 10'!E$17:E$23,\"N/A\",0,1)","v":"N/A"},{"$f":"_xlfn.XLOOKUP($E18,'Activity 10'!$B$17:$B$23,'Activity 10'!F$17:F$23,\"N/A\",0,1)","v":"N/A"},{"$f":"_xlfn.XLOOKUP($E18,'Activity 10'!$B$17:$B$23,'Activity 10'!G$17:G$23,\"N/A\",0,1)","v":"N/A"},{"$f":"_xlfn.XLOOKUP($E18,'Activity 10'!$B$17:$B$23,'Activity 10'!H$17:H$23,\"N/A\",0,1)","v":"N/A"},{"$f":"_xlfn.XLOOKUP($E18,'Activity 10'!$B$17:$B$23,'Activity 10'!I$17:I$23,\"N/A\",0,1)","v":"N/A"},{"$f":"_xlfn.XLOOKUP($E18,'Activity 10'!$B$17:$B$23,'Activity 10'!J$17:J$23,\"N/A\",0,1)","v":"N/A"},{"$f":"_xlfn.XLOOKUP($E18,'Activity 10'!$B$17:$B$23,'Activity 10'!K$17:K$23,\"N/A\",0,1)","v":"N/A"},{"$f":"_xlfn.XLOOKUP($E18,'Activity 10'!$B$17:$B$23,'Activity 10'!L$17:L$23,\"N/A\",0,1)","v":"N/A"},{"$f":"_xlfn.XLOOKUP($E18,'Activity 10'!$B$17:$B$23,'Activity 10'!M$17:M$23,\"N/A\",0,1)","v":"N/A"},{"$f":"_xlfn.XLOOKUP($E18,'Activity 10'!$B$17:$B$23,'Activity 10'!N$17:N$23,\"N/A\",0,1)","v":"N/A"},{"$f":"_xlfn.XLOOKUP($E18,'Activity 10'!$B$17:$B$23,'Activity 10'!P$17:P$23,\"N/A\",0,1)","v":"N/A"},{"$f":"_xlfn.XLOOKUP($E18,'Competitive Activity 1'!B$7:B$13,'Competitive Activity 1'!A$7:A$13,\"No\",0,1)","v":"No"},{"$f":"_xlfn.XLOOKUP($E18,'Competitive Activity 1'!$B$7:$B$13,'Competitive Activity 1'!H$7:H$13,\"N/A\",0,1)","v":"N/A"},{"$f":"_xlfn.XLOOKUP($E18,'Competitive Activity 1'!$B$7:$B$13,'Competitive Activity 1'!I$7:I$13,\"N/A\",0,1)","v":"N/A"},{"$f":"_xlfn.XLOOKUP($E18,'Competitive Activity 1'!$B$7:$B$13,'Competitive Activity 1'!J$7:J$13,\"N/A\",0,1)","v":"N/A"},{"$f":"_xlfn.XLOOKUP($E18,'Competitive Activity 1'!$B$7:$B$13,'Competitive Activity 1'!K$7:K$13,\"N/A\",0,1)","v":"N/A"},{"$f":"_xlfn.XLOOKUP($E18,'Competitive Activity 1'!$B$7:$B$13,'Competitive Activity 1'!L$7:L$13,\"N/A\",0,1)","v":"N/A"},{"$f":"_xlfn.XLOOKUP($E18,'Competitive Activity 1'!$B$7:$B$13,'Competitive Activity 1'!M$7:M$13,\"N/A\",0,1)","v":"N/A"},{"$f":"_xlfn.XLOOKUP($E18,'Competitive Activity 1'!$B$7:$B$13,'Competitive Activity 1'!N$7:N$13,\"N/A\",0,1)","v":"N/A"},{"$f":"_xlfn.XLOOKUP($E18,'Competitive Activity 1'!$B$7:$B$13,'Competitive Activity 1'!O$7:O$13,\"N/A\",0,1)","v":"N/A"},{"$f":"_xlfn.XLOOKUP($E18,'Competitive Activity 1'!$B$7:$B$13,'Competitive Activity 1'!P$7:P$13,\"N/A\",0,1)","v":"N/A"},{"$f":"_xlfn.XLOOKUP($E18,'Competitive Activity 1'!$B$7:$B$13,'Competitive Activity 1'!Q$7:Q$13,\"N/A\",0,1)","v":"N/A"},{"$f":"_xlfn.XLOOKUP($E18,'Competitive Activity 1'!$B$7:$B$13,'Competitive Activity 1'!R$7:R$13,\"N/A\",0,1)","v":"N/A"},{"$f":"_xlfn.XLOOKUP($E18,'Competitive Activity 1'!$B$7:$B$13,'Competitive Activity 1'!S$7:S$13,\"N/A\",0,1)","v":"N/A"},{"$f":"_xlfn.XLOOKUP($E18,'Competitive Activity 1'!$B$7:$B$13,'Competitive Activity 1'!T$7:T$13,\"N/A\",0,1)","v":"N/A"},{"$f":"_xlfn.XLOOKUP($E18,'Competitive Activity 1'!$B$7:$B$13,'Competitive Activity 1'!U$7:U$13,\"N/A\",0,1)","v":"N/A"},{"$f":"_xlfn.XLOOKUP($E18,'Competitive Activity 1'!$B$17:$B$23,'Competitive Activity 1'!C$17:C$23,\"N/A\",0,1)","v":"N/A"},{"$f":"_xlfn.XLOOKUP($E18,'Competitive Activity 1'!$B$17:$B$23,'Competitive Activity 1'!D$17:D$23,\"N/A\",0,1)","v":"N/A"},{"$f":"_xlfn.XLOOKUP($E18,'Competitive Activity 1'!$B$17:$B$23,'Competitive Activity 1'!E$17:E$23,\"N/A\",0,1)","v":"N/A"},{"$f":"_xlfn.XLOOKUP($E18,'Competitive Activity 1'!$B$17:$B$23,'Competitive Activity 1'!F$17:F$23,\"N/A\",0,1)","v":"N/A"},{"$f":"_xlfn.XLOOKUP($E18,'Competitive Activity 1'!$B$17:$B$23,'Competitive Activity 1'!G$17:G$23,\"N/A\",0,1)","v":"N/A"},{"$f":"_xlfn.XLOOKUP($E18,'Competitive Activity 1'!$B$17:$B$23,'Competitive Activity 1'!H$17:H$23,\"N/A\",0,1)","v":"N/A"},{"$f":"_xlfn.XLOOKUP($E18,'Competitive Activity 1'!$B$17:$B$23,'Competitive Activity 1'!I$17:I$23,\"N/A\",0,1)","v":"N/A"},{"$f":"_xlfn.XLOOKUP($E18,'Competitive Activity 1'!$B$17:$B$23,'Competitive Activity 1'!J$17:J$23,\"N/A\",0,1)","v":"N/A"},{"$f":"_xlfn.XLOOKUP($E18,'Competitive Activity 1'!$B$17:$B$23,'Competitive Activity 1'!K$17:K$23,\"N/A\",0,1)","v":"N/A"},{"$f":"_xlfn.XLOOKUP($E18,'Competitive Activity 1'!$B$17:$B$23,'Competitive Activity 1'!M$17:M$23,\"N/A\",0,1)","v":"N/A"},{"$f":"_xlfn.XLOOKUP($E18,'Competitive Activity 1'!$B$17:$B$23,'Competitive Activity 1'!N$17:N$23,\"N/A\",0,1)","v":"N/A"},{"$f":"_xlfn.XLOOKUP($E18,'Competitive Activity 1'!$B$17:$B$23,'Competitive Activity 1'!P$17:P$23,\"N/A\",0,1)","v":"N/A"},{"$f":"_xlfn.XLOOKUP($E18,'Competitive Activity 2'!$B$7:$B$13,'Competitive Activity 2'!A$7:A$13,\"No\",0)","v":"No"},{"$f":"_xlfn.XLOOKUP($E18,'Competitive Activity 2'!$B$7:$B$13,'Competitive Activity 2'!L$7:L$13,\"N/A\",0)","v":"N/A"},{"$f":"_xlfn.XLOOKUP($E18,'Competitive Activity 2'!$B$7:$B$13,'Competitive Activity 2'!M$7:M$13,\"N/A\",0)","v":"N/A"},{"$f":"_xlfn.XLOOKUP($E18,'Competitive Activity 2'!$B$7:$B$13,'Competitive Activity 2'!N$7:N$13,\"N/A\",0)","v":"N/A"},{"$f":"_xlfn.XLOOKUP($E18,'Competitive Activity 2'!$B$7:$B$13,'Competitive Activity 2'!O$7:O$13,\"N/A\",0)","v":"N/A"},{"$f":"_xlfn.XLOOKUP($E18,'Competitive Activity 2'!$B$7:$B$13,'Competitive Activity 2'!P$7:P$13,\"N/A\",0)","v":"N/A"},{"$f":"_xlfn.XLOOKUP($E18,'Competitive Activity 2'!$B$7:$B$13,'Competitive Activity 2'!Q$7:Q$13,\"N/A\",0)","v":"N/A"},{"$f":"_xlfn.XLOOKUP($E18,'Competitive Activity 2'!$B$7:$B$13,'Competitive Activity 2'!R$7:R$13,\"N/A\",0)","v":"N/A"},{"$f":"_xlfn.XLOOKUP($E18,'Competitive Activity 2'!$B$7:$B$13,'Competitive Activity 2'!S$7:S$13,\"N/A\",0)","v":"N/A"},{"$f":"_xlfn.XLOOKUP($E18,'Competitive Activity 2'!$B$7:$B$13,'Competitive Activity 2'!T$7:T$13,\"N/A\",0)","v":"N/A"},{"$f":"_xlfn.XLOOKUP($E18,'Competitive Activity 2'!$B$7:$B$13,'Competitive Activity 2'!U$7:U$13,\"N/A\",0)","v":"N/A"},{"$f":"_xlfn.XLOOKUP($E18,'Competitive Activity 2'!$B$17:$B$23,'Competitive Activity 2'!D$17:D$23,\"N/A\",0)","v":"N/A"},{"$f":"_xlfn.XLOOKUP($E18,'Competitive Activity 2'!$B$17:$B$23,'Competitive Activity 2'!E$17:E$23,\"N/A\",0)","v":"N/A"},{"$f":"_xlfn.XLOOKUP($E18,'Competitive Activity 2'!$B$17:$B$23,'Competitive Activity 2'!F$17:F$23,\"N/A\",0)","v":"N/A"},{"$f":"_xlfn.XLOOKUP($E18,'Competitive Activity 2'!$B$17:$B$23,'Competitive Activity 2'!G$17:G$23,\"N/A\",0)","v":"N/A"},{"$f":"_xlfn.XLOOKUP($E18,'Competitive Activity 2'!$B$17:$B$23,'Competitive Activity 2'!H$17:H$23,\"N/A\",0)","v":"N/A"},{"$f":"_xlfn.XLOOKUP($E18,'Competitive Activity 2'!$B$17:$B$23,'Competitive Activity 2'!I$17:I$23,\"N/A\",0)","v":"N/A"},{"$f":"_xlfn.XLOOKUP($E18,'Competitive Activity 2'!$B$17:$B$23,'Competitive Activity 2'!J$17:J$23,\"N/A\",0)","v":"N/A"},{"$f":"_xlfn.XLOOKUP($E18,'Competitive Activity 2'!$B$17:$B$23,'Competitive Activity 2'!K$17:K$23,\"N/A\",0)","v":"N/A"},{"$f":"_xlfn.XLOOKUP($E18,'Competitive Activity 2'!$B$17:$B$23,'Competitive Activity 2'!L$17:L$23,\"N/A\",0)","v":"N/A"},{"$f":"_xlfn.XLOOKUP($E18,'Competitive Activity 2'!$B$17:$B$23,'Competitive Activity 2'!M$17:M$23,\"N/A\",0)","v":"N/A"},{"$f":"_xlfn.XLOOKUP($E18,'Competitive Activity 2'!$B$17:$B$23,'Competitive Activity 2'!N$17:N$23,\"N/A\",0)","v":"N/A"},{"$f":"_xlfn.XLOOKUP($E18,'Competitive Activity 2'!$B$27:$B$33,'Competitive Activity 2'!D$27:D$33,\"N/A\",0)","v":"N/A"},{"$f":"_xlfn.XLOOKUP($E18,'Competitive Activity 2'!$B$27:$B$33,'Competitive Activity 2'!E$27:E$33,\"N/A\",0)","v":"N/A"},{"$f":"_xlfn.XLOOKUP($E18,'Competitive Activity 2'!$B$27:$B$33,'Competitive Activity 2'!F$27:F$33,\"N/A\",0)","v":"N/A"},{"$f":"_xlfn.XLOOKUP($E18,'Competitive Activity 2'!$B$27:$B$33,'Competitive Activity 2'!G$27:G$33,\"N/A\",0)","v":"N/A"},{"$f":"_xlfn.XLOOKUP($E18,'Competitive Activity 2'!$B$27:$B$33,'Competitive Activity 2'!H$27:H$33,\"N/A\",0)","v":"N/A"},{"$f":"_xlfn.XLOOKUP($E18,'Competitive Activity 2'!$B$27:$B$33,'Competitive Activity 2'!I$27:I$33,\"N/A\",0)","v":"N/A"},{"$f":"_xlfn.XLOOKUP($E18,'Competitive Activity 2'!$B$27:$B$33,'Competitive Activity 2'!J$27:J$33,\"N/A\",0)","v":"N/A"},{"$f":"_xlfn.XLOOKUP($E18,'Competitive Activity 2'!$B$27:$B$33,'Competitive Activity 2'!K$27:K$33,\"N/A\",0)","v":"N/A"},{"$f":"_xlfn.XLOOKUP($E18,'Competitive Activity 2'!$B$27:$B$33,'Competitive Activity 2'!M$27:M$33,\"N/A\",0)","v":"N/A"}]
[{"$f":"'1-Cover Sheet'!$C$8","v":"Select One"},{"$f":"'1-Cover Sheet'!$F$8","v":"Select One"},{"$f":"'Summary Sheet'!$D$8","v":0},{"$f":"'Summary Sheet'!$D$10","v":0},{"$f":"'Drop Down Box'!B183","v":0},{"$f":"'Drop Down Box'!C183","v":0},{"$f":"'Drop Down Box'!D183","v":"Select One"},{"$f":"_xlfn.XLOOKUP(E19,'Drop Down Box'!$B$166:$B$249,'Drop Down Box'!$A$166:$A$249,\"Unknown\",0)","v":"Activity 1"},{"$f":"_xlfn.XLOOKUP(E19,'Activity 3'!B$8:B$14,'Activity 3'!P$8:P$14,\"N/A\",0)","v":"N/A"},{"$f":"_xlfn.XLOOKUP($E19,'Activity 3'!$B$8:$B$14,'Activity 3'!Q$8:Q$14,\"N/A\",0)","v":"N/A"},{"$f":"_xlfn.XLOOKUP($E19,'Activity 3'!$B$8:$B$14,'Activity 3'!H$8:H$14,\"N/A\",0)","v":"N/A"},{"$f":"_xlfn.XLOOKUP(E19,'Activity 3'!B$8:B$14,'Activity 3'!I11:I17,\"N/A\",0)","v":"N/A"},{"$f":"_xlfn.XLOOKUP($E19,'Activity 3'!$B$8:$B$14,'Activity 3'!J11:J17,\"N/A\",0)","v":"N/A"},{"$f":"_xlfn.XLOOKUP($E19,'Activity 1'!$B$7:$B$13,'Activity 1'!$A$7:$A$13,\"No\",0,1)","v":"No"},{"$f":"_xlfn.XLOOKUP($E19,'Activity 1'!$B$7:$B$13,'Activity 1'!$H$7:$H$13,\"N/A\",0,1)","v":"N/A"},{"$f":"_xlfn.XLOOKUP($E19,'Activity 1'!$B$7:$B$13,'Activity 1'!I$7:I$13,\"N/A\",0,1)","v":"N/A"},{"$f":"_xlfn.XLOOKUP($E19,'Activity 1'!$B$7:$B$13,'Activity 1'!J$7:J$13,\"N/A\",0,1)","v":"N/A"},{"$f":"_xlfn.XLOOKUP($E19,'Activity 1'!$B$7:$B$13,'Activity 1'!K$7:K$13,\"N/A\",0,1)","v":"N/A"},{"$f":"_xlfn.XLOOKUP($E19,'Activity 1'!$B$7:$B$13,'Activity 1'!L$7:L$13,\"N/A\",0,1)","v":"N/A"},{"$f":"_xlfn.XLOOKUP($E19,'Activity 1'!$B$7:$B$13,'Activity 1'!M$7:M$13,\"N/A\",0,1)","v":"N/A"},{"$f":"_xlfn.XLOOKUP($E19,'Activity 1'!$B$7:$B$13,'Activity 1'!N$7:N$13,\"N/A\",0,1)","v":"N/A"},0,{"$f":"_xlfn.XLOOKUP($E19,'Activity 1'!$B$7:$B$13,'Activity 1'!O$7:O$13,\"N/A\",0,1)","v":"N/A"},{"$f":"_xlfn.XLOOKUP($E19,'Activity 1'!$B$7:$B$13,'Activity 1'!P$7:P$13,\"N/A\",0,1)","v":"N/A"},{"$f":"_xlfn.XLOOKUP($E19,'Activity 1'!$B$7:$B$13,'Activity 1'!Q$7:Q$13,\"N/A\",0,1)","v":"N/A"},{"$f":"_xlfn.XLOOKUP($E19,'Activity 1'!$B$7:$B$13,'Activity 1'!R$7:R$13,\"N/A\",0,1)","v":"N/A"},{"$f":"_xlfn.XLOOKUP($E19,'Activity 1'!$B$7:$B$13,'Activity 1'!S$7:S$13,\"N/A\",0,1)","v":"N/A"},{"$f":"_xlfn.XLOOKUP($E19,'Activity 1'!$B$7:$B$13,'Activity 1'!T$7:T$13,\"N/A\",0,1)","v":"N/A"},{"$f":"_xlfn.XLOOKUP($E19,'Activity 1'!$B$7:$B$13,'Activity 1'!U$7:U$13,\"N/A\",0,1)","v":"N/A"},{"$f":"_xlfn.XLOOKUP($E19,'Activity 1'!$B$7:$B$13,'Activity 1'!V$7:V$13,\"N/A\",0,1)","v":"N/A"},{"$f":"_xlfn.XLOOKUP($E19,'Activity 1'!$B$17:$B$23,'Activity 1'!C$17:C$23,\"N/A\",0,1)","v":"N/A"},{"$f":"_xlfn.XLOOKUP($E19,'Activity 1'!$B$17:$B$23,'Activity 1'!D$17:D$23,\"N/A\",0,1)","v":"N/A"},{"$f":"_xlfn.XLOOKUP($E19,'Activity 1'!$B$17:$B$23,'Activity 1'!E$17:E$23,\"N/A\",0,1)","v":"N/A"},{"$f":"_xlfn.XLOOKUP($E19,'Activity 1'!$B$17:$B$23,'Activity 1'!F$17:F$23,\"N/A\",0,1)","v":"N/A"},{"$f":"_xlfn.XLOOKUP($E19,'Activity 1'!$B$17:$B$23,'Activity 1'!G$17:G$23,\"N/A\",0,1)","v":"N/A"},{"$f":"_xlfn.XLOOKUP($E19,'Activity 1'!$B$17:$B$23,'Activity 1'!H$17:H$23,\"N/A\",0,1)","v":"N/A"},{"$f":"_xlfn.XLOOKUP($E19,'Activity 1'!$B$17:$B$23,'Activity 1'!I$17:I$23,\"N/A\",0,1)","v":"N/A"},{"$f":"_xlfn.XLOOKUP($E19,'Activity 1'!$B$17:$B$23,'Activity 1'!J$17:J$23,\"N/A\",0,1)","v":"N/A"},{"$f":"_xlfn.XLOOKUP($E19,'Activity 1'!$B$17:$B$23,'Activity 1'!K$17:K$23,\"N/A\",0,1)","v":"N/A"},{"$f":"_xlfn.XLOOKUP($E19,'Activity 1'!$B$17:$B$23,'Activity 1'!L$17:L$23,\"N/A\",0,1)","v":"N/A"},{"$f":"_xlfn.XLOOKUP($E19,'Activity 1'!$B$17:$B$23,'Activity 1'!M$17:M$23,\"N/A\",0,1)","v":"N/A"},{"$f":"_xlfn.XLOOKUP($E19,'Activity 1'!$B$17:$B$23,'Activity 1'!O$17:O$23,\"N/A\",0,1)","v":"N/A"},{"$f":"_xlfn.XLOOKUP($E19,'Activity 1'!$B$17:$B$23,'Activity 1'!Q$17:Q$23,\"N/A\",0,1)","v":"N/A"},{"$f":"_xlfn.XLOOKUP($E19,'Activity 2'!$B$7:$B$13,'Activity 2'!$A$7:$A$13,\"No\",0,1)","v":"No"},{"$f":"_xlfn.XLOOKUP($E19,'Activity 2'!B$7:B$13,'Activity 2'!H$7:H$13,\"N/A\",0)","v":"N/A"},{"$f":"_xlfn.XLOOKUP($E19,'Activity 2'!C$7:C$13,'Activity 2'!I$7:I$13,\"N/A\",0)","v":"N/A"},{"$f":"_xlfn.XLOOKUP($E19,'Activity 2'!D$7:D$13,'Activity 2'!J$7:J$13,\"N/A\",0)","v":"N/A"},{"$f":"_xlfn.XLOOKUP($E19,'Activity 2'!E$7:E$13,'Activity 2'!K$7:K$13,\"N/A\",0)","v":"N/A"},{"$f":"_xlfn.XLOOKUP($E19,'Activity 2'!F$7:F$13,'Activity 2'!L$7:L$13,\"N/A\",0)","v":"N/A"},{"$f":"_xlfn.XLOOKUP($E19,'Activity 2'!G$7:G$13,'Activity 2'!M$7:M$13,\"N/A\",0)","v":"N/A"},{"$f":"_xlfn.XLOOKUP($E19,'Activity 2'!H$7:H$13,'Activity 2'!N$7:N$13,\"N/A\",0)","v":"N/A"},{"$f":"_xlfn.XLOOKUP($E19,'Activity 2'!I$7:I$13,'Activity 2'!O$7:O$13,\"N/A\",0)","v":"N/A"},{"$f":"_xlfn.XLOOKUP($E19,'Activity 2'!J$7:J$13,'Activity 2'!P$7:P$13,\"N/A\",0)","v":"N/A"},{"$f":"_xlfn.XLOOKUP($E19,'Activity 2'!K$7:K$13,'Activity 2'!Q$7:Q$13,\"N/A\",0)","v":"N/A"},{"$f":"_xlfn.XLOOKUP($E19,'Activity 2'!L$7:L$13,'Activity 2'!R$7:R$13,\"N/A\",0)","v":"N/A"},{"$f":"_xlfn.XLOOKUP($E19,'Activity 2'!M$7:M$13,'Activity 2'!S$7:S$13,\"N/A\",0)","v":"N/A"},{"$f":"_xlfn.XLOOKUP($E19,'Activity 2'!N$7:N$13,'Activity 2'!T$7:T$13,\"N/A\",0)","v":"N/A"},{"$f":"_xlfn.XLOOKUP($E19,'Activity 2'!O$7:O$13,'Activity 2'!U$7:U$13,\"N/A\",0)","v":"N/A"},{"$f":"_xlfn.XLOOKUP($E19,'Activity 2'!P$7:P$13,'Activity 2'!V$7:V$13,\"N/A\",0)","v":"N/A"},{"$f":"_xlfn.XLOOKUP($E19,'Activity 2'!$B$17:$B$23,'Activity 2'!C$17:C$23,\"N/A\",0,1)","v":"N/A"},{"$f":"_xlfn.XLOOKUP($E19,'Activity 2'!$B$17:$B$23,'Activity 2'!D$17:D$23,\"N/A\",0,1)","v":"N/A"},{"$f":"_xlfn.XLOOKUP($E19,'Activity 2'!$B$17:$B$23,'Activity 2'!E$17:E$23,\"N/A\",0,1)","v":"N/A"},{"$f":"_xlfn.XLOOKUP($E19,'Activity 2'!$B$17:$B$23,'Activity 2'!F$17:F$23,\"N/A\",0,1)","v":"N/A"},{"$f":"_xlfn.XLOOKUP($E19,'Activity 2'!$B$17:$B$23,'Activity 2'!G$17:G$23,\"N/A\",0,1)","v":"N/A"},{"$f":"_xlfn.XLOOKUP($E19,'Activity 2'!$B$17:$B$23,'Activity 2'!H$17:H$23,\"N/A\",0,1)","v":"N/A"},{"$f":"_xlfn.XLOOKUP($E19,'Activity 2'!$B$17:$B$23,'Activity 2'!I$17:I$23,\"N/A\",0,1)","v":"N/A"},{"$f":"_xlfn.XLOOKUP($E19,'Activity 2'!$B$17:$B$23,'Activity 2'!J$17:J$23,\"N/A\",0,1)","v":"N/A"},{"$f":"_xlfn.XLOOKUP($E19,'Activity 2'!$B$17:$B$23,'Activity 2'!K$17:K$23,\"N/A\",0,1)","v":"N/A"},{"$f":"_xlfn.XLOOKUP($E19,'Activity 2'!$B$17:$B$23,'Activity 2'!L$17:L$23,\"N/A\",0,1)","v":"N/A"},{"$f":"_xlfn.XLOOKUP($E19,'Activity 2'!$B$17:$B$23,'Activity 2'!M$17:M$23,\"N/A\",0,1)","v":"N/A"},{"$f":"_xlfn.XLOOKUP($E19,'Activity 2'!$B$17:$B$23,'Activity 2'!O$17:O$23,\"N/A\",0,1)","v":"N/A"},{"$f":"_xlfn.XLOOKUP($E19,'Activity 2'!$B$17:$B$23,'Activity 2'!Q$17:Q$23,\"N/A\",0,1)","v":"N/A"},null,{"$f":"_xlfn.XLOOKUP($E19,'Activity 3'!$B$8:$B$14,'Activity 3'!K$8:K$14,\"N/A\",0,1)","v":"N/A"},{"$f":"_xlfn.XLOOKUP($E19,'Activity 3'!$B$8:$B$14,'Activity 3'!L$8:L$14,\"N/A\",0,1)","v":"N/A"},{"$f":"_xlfn.XLOOKUP($E19,'Activity 3'!$B$8:$B$14,'Activity 3'!M$8:M$14,\"N/A\",0,1)","v":"N/A"},{"$f":"_xlfn.XLOOKUP($E19,'Activity 3'!$B$8:$B$14,'Activity 3'!N$8:N$14,\"N/A\",0,1)","v":"N/A"},{"$f":"_xlfn.XLOOKUP($E19,'Activity 3'!$B$8:$B$14,'Activity 3'!O$8:O$14,\"N/A\",0,1)","v":"N/A"},{"$f":"_xlfn.XLOOKUP($E19,'Activity 3'!$B$8:$B$14,'Activity 3'!R$8:R$14,\"N/A\",0,1)","v":"N/A"},{"$f":"_xlfn.XLOOKUP($E19,'Activity 4'!$B$8:$B$14,'Activity 4'!$A$8:$A$14,\"No\",0,1)","v":"No"},{"$f":"_xlfn.XLOOKUP($E19,'Activity 4'!$B$8:$B$14,'Activity 4'!L$8:L$14,\"N/A\",0,1)","v":"N/A"},{"$f":"_xlfn.XLOOKUP($E19,'Activity 4'!$B$8:$B$14,'Activity 4'!I$8:I$14,\"N/A\",0,1)","v":"N/A"},{"$f":"_xlfn.XLOOKUP($E19,'Activity 4'!$B$8:$B$14,'Activity 4'!M$8:M$14,\"N/A\",0,1)","v":"N/A"},{"$f":"_xlfn.XLOOKUP($E19,'Activity 5'!$B$8:$B$14,'Activity 5'!$A$8:$A$14,\"No\",0,1)","v":"No"},{"$f":"_xlfn.XLOOKUP($E19,'Activity 5'!$B$8:$B$14,'Activity 5'!J$8:J$14,\"N/A\",0,1)","v":"N/A"},{"$f":"_xlfn.XLOOKUP($E19,'Activity 5'!$B$8:$B$14,'Activity 5'!K$8:K$14,\"N/A\",0,1)","v":"N/A"},{"$f":"_xlfn.XLOOKUP($E19,'Activity 5'!$B$8:$B$14,'Activity 5'!N$8:N$14,\"N/A\",0,1)","v":"N/A"},{"$f":"_xlfn.XLOOKUP($E19,'Activity 5'!$B$8:$B$14,'Activity 5'!O$8:O$14,\"N/A\",0,1)","v":"N/A"},{"$f":"_xlfn.XLOOKUP($E19,'Activity 5'!$B$8:$B$14,'Activity 5'!P$8:P$14,\"N/A\",0,1)","v":"N/A"},{"$f":"_xlfn.XLOOKUP($E19,'Activity 5'!$B$8:$B$14,'Activity 5'!Q$8:Q$14,\"N/A\",0,1)","v":"N/A"},{"$f":"_xlfn.XLOOKUP($E19,'Activity 5'!$B$8:$B$14,'Activity 5'!R$8:R$14,\"N/A\",0,1)","v":"N/A"},{"$f":"_xlfn.XLOOKUP($E19,'Activity 6'!$B$7:$B$13,'Activity 6'!A$7:A$13,\"No\",0,1)","v":"No"},{"$f":"_xlfn.XLOOKUP($E19,'Activity 6'!$B$7:$B$13,'Activity 6'!K$7:K$13,\"N/A\",0,1)","v":"N/A"},{"$f":"_xlfn.XLOOKUP($E19,'Activity 6'!$B$7:$B$13,'Activity 6'!L$7:L$13,\"N/A\",0,1)","v":"N/A"},{"$f":"_xlfn.XLOOKUP($E19,'Activity 6'!$B$7:$B$13,'Activity 6'!M$7:M$13,\"N/A\",0,1)","v":"N/A"},{"$f":"_xlfn.XLOOKUP($E19,'Activity 6'!$B$7:$B$13,'Activity 6'!N$7:N$13,\"N/A\",0,1)","v":"N/A"},{"$f":"_xlfn.XLOOKUP($E19,'Activity 6'!$B$7:$B$13,'Activity 6'!O$7:O$13,\"N/A\",0,1)","v":"N/A"},{"$f":"_xlfn.XLOOKUP($E19,'Activity 6'!$B$7:$B$13,'Activity 6'!P$7:P$13,\"N/A\",0,1)","v":"N/A"},{"$f":"_xlfn.XLOOKUP($E19,'Activity 6'!$B$7:$B$13,'Activity 6'!Q$7:Q$13,\"N/A\",0,1)","v":"N/A"},{"$f":"_xlfn.XLOOKUP($E19,'Activity 6'!$B$7:$B$13,'Activity 6'!R$7:R$13,\"N/A\",0,1)","v":"N/A"},{"$f":"_xlfn.XLOOKUP($E19,'Activity 6'!$B$7:$B$13,'Activity 6'!S$7:S$13,\"N/A\",0,1)","v":"N/A"},{"$f":"_xlfn.XLOOKUP($E19,'Activity 6'!$B$7:$B$13,'Activity 6'!T$7:T$13,\"N/A\",0,1)","v":"N/A"},{"$f":"_xlfn.XLOOKUP($E19,'Activity 6'!$B$7:$B$13,'Activity 6'!U$7:U$13,\"N/A\",0,1)","v":"N/A"},{"$f":"_xlfn.XLOOKUP($E19,'Activity 6'!$B$22:$B$28,'Activity 6'!C$22:C$28,\"N/A\",0,1)","v":"N/A"},{"$f":"_xlfn.XLOOKUP($E19,'Activity 6'!$B$22:$B$28,'Activity 6'!D$22:D$28,\"N/A\",0,1)","v":"N/A"},{"$f":"_xlfn.XLOOKUP($E19,'Activity 6'!$B$22:$B$28,'Activity 6'!E$22:E$28,\"N/A\",0,1)","v":"N/A"},{"$f":"_xlfn.XLOOKUP($E19,'Activity 6'!$B$22:$B$28,'Activity 6'!F$22:F$28,\"N/A\",0,1)","v":"N/A"},{"$f":"_xlfn.XLOOKUP($E19,'Activity 6'!$B$22:$B$28,'Activity 6'!G$22:G$28,\"N/A\",0,1)","v":"N/A"},{"$f":"_xlfn.XLOOKUP($E19,'Activity 6'!$B$22:$B$28,'Activity 6'!H$22:H$28,\"N/A\",0,1)","v":"N/A"},{"$f":"_xlfn.XLOOKUP($E19,'Activity 6'!$B$22:$B$28,'Activity 6'!I$22:I$28,\"N/A\",0,1)","v":"N/A"},{"$f":"_xlfn.XLOOKUP($E19,'Activity 6'!$B$22:$B$28,'Activity 6'!J$22:J$28,\"N/A\",0,1)","v":"N/A"},{"$f":"_xlfn.XLOOKUP($E19,'Activity 6'!$B$22:$B$28,'Activity 6'!K$22:K$28,\"N/A\",0,1)","v":"N/A"},{"$f":"_xlfn.XLOOKUP($E19,'Activity 6'!$B$22:$B$28,'Activity 6'!L$22:L$28,\"N/A\",0,1)","v":"N/A"},{"$f":"_xlfn.XLOOKUP($E19,'Activity 6'!$B$22:$B$28,'Activity 6'!M$22:M$28,\"N/A\",0,1)","v":"N/A"},{"$f":"_xlfn.XLOOKUP($E19,'Activity 6'!$B$22:$B$28,'Activity 6'!N$22:N$28,\"N/A\",0,1)","v":"N/A"},{"$f":"_xlfn.XLOOKUP($E19,'Activity 6'!$B$32:$B$38,'Activity 6'!C$32:C$38,\"N/A\",0,1)","v":"N/A"},{"$f":"_xlfn.XLOOKUP($E19,'Activity 6'!$B$32:$B$38,'Activity 6'!D$32:D$38,\"N/A\",0,1)","v":"N/A"},{"$f":"_xlfn.XLOOKUP($E19,'Activity 6'!$B$32:$B$38,'Activity 6'!E$32:E$38,\"N/A\",0,1)","v":"N/A"},{"$f":"_xlfn.XLOOKUP($E19,'Activity 6'!$B$32:$B$38,'Activity 6'!F$32:F$38,\"N/A\",0,1)","v":"N/A"},{"$f":"_xlfn.XLOOKUP($E19,'Activity 6'!$B$32:$B$38,'Activity 6'!G$32:G$38,\"N/A\",0,1)","v":"N/A"},{"$f":"_xlfn.XLOOKUP($E19,'Activity 6'!$B$32:$B$38,'Activity 6'!H$32:H$38,\"N/A\",0,1)","v":"N/A"},{"$f":"_xlfn.XLOOKUP($E19,'Activity 6'!$B$32:$B$38,'Activity 6'!I$32:I$38,\"N/A\",0,1)","v":"N/A"},{"$f":"_xlfn.XLOOKUP($E19,'Activity 6'!$B$32:$B$38,'Activity 6'!J$32:J$38,\"N/A\",0,1)","v":"N/A"},{"$f":"_xlfn.XLOOKUP($E19,'Activity 6'!$B$32:$B$38,'Activity 6'!K$32:K$38,\"N/A\",0,1)","v":"N/A"},{"$f":"_xlfn.XLOOKUP($E19,'Activity 6'!$B$32:$B$38,'Activity 6'!M$32:M$38,\"N/A\",0,1)","v":"N/A"},{"$f":"_xlfn.XLOOKUP($E19,'Activity 7'!$B$7:$B$13,'Activity 7'!$A$7:$A$13,\"No\",0,1)","v":"No"},{"$f":"_xlfn.XLOOKUP($E19,'Activity 7'!$B$7:$B$13,'Activity 7'!M$7:M$13,\"N/A\",0,1)","v":"N/A"},{"$f":"_xlfn.XLOOKUP($E19,'Activity 7'!$B$7:$B$13,'Activity 7'!K$7:K$13,\"N/A\",0,1)","v":"N/A"},{"$f":"_xlfn.XLOOKUP($E19,'Activity 7'!$B$7:$B$13,'Activity 7'!N$7:N$13,\"N/A\",0,1)","v":"N/A"},{"$f":"_xlfn.XLOOKUP($E19,'Activity 7'!$B$7:$B$13,'Activity 7'!O$7:O$13,\"N/A\",0,1)","v":"N/A"},{"$f":"_xlfn.XLOOKUP($E19,'Activity 7'!$B$7:$B$13,'Activity 7'!P$7:P$13,\"N/A\",0,1)","v":"N/A"},{"$f":"_xlfn.XLOOKUP($E19,'Activity 7'!$B$7:$B$13,'Activity 7'!Q$7:Q$13,\"N/A\",0,1)","v":"N/A"},{"$f":"_xlfn.XLOOKUP($E19,'Activity 7'!$B$7:$B$13,'Activity 7'!R$7:R$13,\"N/A\",0,1)","v":"N/A"},{"$f":"_xlfn.XLOOKUP($E19,'Activity 7'!$B$7:$B$13,'Activity 7'!S$7:S$13,\"N/A\",0,1)","v":"N/A"},{"$f":"_xlfn.XLOOKUP($E19,'Activity 7'!$B$7:$B$13,'Activity 7'!T$7:T$13,\"N/A\",0,1)","v":"N/A"},{"$f":"_xlfn.XLOOKUP($E19,'Activity 7'!$B$7:$B$13,'Activity 7'!U$7:U$13,\"N/A\",0,1)","v":"N/A"},{"$f":"_xlfn.XLOOKUP($E19,'Activity 7'!$B$7:$B$13,'Activity 7'!V$7:V$13,\"N/A\",0,1)","v":"N/A"},{"$f":"_xlfn.XLOOKUP($E19,'Activity 7'!$B$17:$B$23,'Activity 7'!E$17:E$23,\"N/A\",0,1)","v":"N/A"},{"$f":"_xlfn.XLOOKUP($E19,'Activity 7'!$B$17:$B$23,'Activity 7'!G$17:G$23,\"N/A\",0,1)","v":"N/A"},{"$f":"_xlfn.XLOOKUP($E19,'Activity 7'!$B$17:$B$23,'Activity 7'!I$17:I$23,\"N/A\",0,1)","v":"N/A"},{"$f":"_xlfn.XLOOKUP($E19,'Activity 7'!$B$17:$B$23,'Activity 7'!J$17:J$23,\"N/A\",0,1)","v":"N/A"},{"$f":"_xlfn.XLOOKUP($E19,'Activity 7'!$B$17:$B$23,'Activity 7'!K$17:K$23,\"N/A\",0,1)","v":"N/A"},{"$f":"_xlfn.XLOOKUP($E19,'Activity 7'!$B$17:$B$23,'Activity 7'!L$17:L$23,\"N/A\",0,1)","v":"N/A"},{"$f":"_xlfn.XLOOKUP($E19,'Activity 7'!$B$17:$B$23,'Activity 7'!M$17:M$23,\"N/A\",0,1)","v":"N/A"},{"$f":"_xlfn.XLOOKUP($E19,'Activity 7'!$B$17:$B$23,'Activity 7'!N$17:N$23,\"N/A\",0,1)","v":"N/A"},{"$f":"_xlfn.XLOOKUP($E19,'Activity 7'!$B$17:$B$23,'Activity 7'!P$17:P$23,\"N/A\",0,1)","v":"N/A"},{"$f":"_xlfn.XLOOKUP($E19,'Activity 8'!$B$7:$B$13,'Activity 8'!A$7:A$13,\"No\",0,1)","v":"No"},{"$f":"_xlfn.XLOOKUP($E19,'Activity 8'!$B$7:$B$13,'Activity 8'!I$7:I$13,\"N/A\",0,1)","v":"N/A"},{"$f":"_xlfn.XLOOKUP($E19,'Activity 8'!$B$7:$B$13,'Activity 8'!J$7:J$13,\"N/A\",0,1)","v":"N/A"},{"$f":"_xlfn.XLOOKUP($E19,'Activity 8'!$B$7:$B$13,'Activity 8'!K$7:K$13,\"N/A\",0,1)","v":"N/A"},{"$f":"_xlfn.XLOOKUP($E19,'Activity 8'!$B$7:$B$13,'Activity 8'!L$7:L$13,\"N/A\",0,1)","v":"N/A"},{"$f":"_xlfn.XLOOKUP($E19,'Activity 8'!$B$7:$B$13,'Activity 8'!M$7:M$13,\"N/A\",0,1)","v":"N/A"},{"$f":"_xlfn.XLOOKUP($E19,'Activity 8'!$B$7:$B$13,'Activity 8'!N$7:N$13,\"N/A\",0,1)","v":"N/A"},{"$f":"_xlfn.XLOOKUP($E19,'Activity 8'!$B$7:$B$13,'Activity 8'!O$7:O$13,\"N/A\",0,1)","v":"N/A"},{"$f":"_xlfn.XLOOKUP($E19,'Activity 8'!$B$7:$B$13,'Activity 8'!P$7:P$13,\"N/A\",0,1)","v":"N/A"},{"$f":"_xlfn.XLOOKUP($E19,'Activity 8'!$B$7:$B$13,'Activity 8'!Q$7:Q$13,\"N/A\",0,1)","v":"N/A"},{"$f":"_xlfn.XLOOKUP($E19,'Activity 8'!$B$7:$B$13,'Activity 8'!R$7:R$13,\"N/A\",0,1)","v":"N/A"},{"$f":"_xlfn.XLOOKUP($E19,'Activity 8'!$B$7:$B$13,'Activity 8'!S$7:S$13,\"N/A\",0,1)","v":"N/A"},{"$f":"_xlfn.XLOOKUP($E19,'Activity 8'!$B$7:$B$13,'Activity 8'!T$7:T$13,\"N/A\",0,1)","v":"N/A"},{"$f":"_xlfn.XLOOKUP($E19,'Activity 8'!$B$7:$B$13,'Activity 8'!U$7:U$13,\"N/A\",0,1)","v":"N/A"},{"$f":"_xlfn.XLOOKUP($E19,'Activity 8'!$B$7:$B$13,'Activity 8'!V$7:V$13,\"N/A\",0,1)","v":"N/A"},{"$f":"_xlfn.XLOOKUP($E19,'Activity 8'!$B$17:$B$23,'Activity 8'!D$17:D$23,\"N/A\",0,1)","v":"N/A"},{"$f":"_xlfn.XLOOKUP($E19,'Activity 8'!$B$17:$B$23,'Activity 8'!E$17:E$23,\"N/A\",0,1)","v":"N/A"},{"$f":"_xlfn.XLOOKUP($E19,'Activity 8'!$B$17:$B$23,'Activity 8'!F$17:F$23,\"N/A\",0,1)","v":"N/A"},{"$f":"_xlfn.XLOOKUP($E19,'Activity 8'!$B$17:$B$23,'Activity 8'!G$17:G$23,\"N/A\",0,1)","v":"N/A"},{"$f":"_xlfn.XLOOKUP($E19,'Activity 8'!$B$17:$B$23,'Activity 8'!H$17:H$23,\"N/A\",0,1)","v":"N/A"},{"$f":"_xlfn.XLOOKUP($E19,'Activity 8'!$B$17:$B$23,'Activity 8'!I$17:I$23,\"N/A\",0,1)","v":"N/A"},{"$f":"_xlfn.XLOOKUP($E19,'Activity 8'!$B$17:$B$23,'Activity 8'!J$17:J$23,\"N/A\",0,1)","v":"N/A"},{"$f":"_xlfn.XLOOKUP($E19,'Activity 8'!$B$17:$B$23,'Activity 8'!K$17:K$23,\"N/A\",0,1)","v":"N/A"},{"$f":"_xlfn.XLOOKUP($E19,'Activity 8'!$B$17:$B$23,'Activity 8'!L$17:L$23,\"N/A\",0,1)","v":"N/A"},{"$f":"_xlfn.XLOOKUP($E19,'Activity 8'!$B$17:$B$23,'Activity 8'!M$17:M$23,\"N/A\",0,1)","v":"N/A"},{"$f":"_xlfn.XLOOKUP($E19,'Activity 8'!$B$17:$B$23,'Activity 8'!N$17:N$23,\"N/A\",0,1)","v":"N/A"},{"$f":"_xlfn.XLOOKUP($E19,'Activity 8'!$B$17:$B$23,'Activity 8'!P$17:P$23,\"N/A\",0,1)","v":"N/A"},{"$f":"_xlfn.XLOOKUP(E19,'Activity 9'!$B$7:$B$13,'Activity 9'!$A$7:$A$13,\"No\",0,1)","v":"No"},{"$f":"_xlfn.XLOOKUP($E19,'Activity 9'!$B$7:$B$13,'Activity 9'!J$7:J$13,\"N/A\",0,1)","v":"N/A"},{"$f":"_xlfn.XLOOKUP($E19,'Activity 9'!$B$7:$B$13,'Activity 9'!K$7:K$13,\"N/A\",0,1)","v":"N/A"},{"$f":"_xlfn.XLOOKUP($E19,'Activity 9'!$B$7:$B$13,'Activity 9'!L$7:L$13,\"N/A\",0,1)","v":"N/A"},{"$f":"_xlfn.XLOOKUP($E19,'Activity 9'!$B$7:$B$13,'Activity 9'!M$7:M$13,\"N/A\",0,1)","v":"N/A"},{"$f":"_xlfn.XLOOKUP($E19,'Activity 9'!$B$7:$B$13,'Activity 9'!N$7:N$13,\"N/A\",0,1)","v":"N/A"},{"$f":"_xlfn.XLOOKUP($E19,'Activity 9'!$B$7:$B$13,'Activity 9'!O$7:O$13,\"N/A\",0,1)","v":"N/A"},{"$f":"_xlfn.XLOOKUP($E19,'Activity 9'!$B$7:$B$13,'Activity 9'!P$7:P$13,\"N/A\",0,1)","v":"N/A"},{"$f":"_xlfn.XLOOKUP($E19,'Activity 9'!$B$7:$B$13,'Activity 9'!Q$7:Q$13,\"N/A\",0,1)","v":"N/A"},{"$f":"_xlfn.XLOOKUP($E19,'Activity 9'!$B$7:$B$13,'Activity 9'!R$7:R$13,\"N/A\",0,1)","v":"N/A"},{"$f":"_xlfn.XLOOKUP($E19,'Activity 9'!$B$7:$B$13,'Activity 9'!S$7:S$13,\"N/A\",0,1)","v":"N/A"},{"$f":"_xlfn.XLOOKUP($E19,'Activity 9'!$B$7:$B$13,'Activity 9'!T$7:T$13,\"N/A\",0,1)","v":"N/A"},{"$f":"_xlfn.XLOOKUP($E19,'Activity 9'!$B$17:$B$23,'Activity 9'!E$17:E$23,\"N/A\",0,1)","v":"N/A"},{"$f":"_xlfn.XLOOKUP($E19,'Activity 9'!$B$17:$B$23,'Activity 9'!F$17:F$23,\"N/A\",0,1)","v":"N/A"},{"$f":"_xlfn.XLOOKUP($E19,'Activity 9'!$B$17:$B$23,'Activity 9'!G$17:G$23,\"N/A\",0,1)","v":"N/A"},{"$f":"_xlfn.XLOOKUP($E19,'Activity 9'!$B$17:$B$23,'Activity 9'!H$17:H$23,\"N/A\",0,1)","v":"N/A"},{"$f":"_xlfn.XLOOKUP($E19,'Activity 9'!$B$17:$B$23,'Activity 9'!I$17:I$23,\"N/A\",0,1)","v":"N/A"},{"$f":"_xlfn.XLOOKUP($E19,'Activity 9'!$B$17:$B$23,'Activity 9'!J$17:J$23,\"N/A\",0,1)","v":"N/A"},{"$f":"_xlfn.XLOOKUP($E19,'Activity 9'!$B$17:$B$23,'Activity 9'!K$17:K$23,\"N/A\",0,1)","v":"N/A"},{"$f":"_xlfn.XLOOKUP($E19,'Activity 9'!$B$17:$B$23,'Activity 9'!L$17:L$23,\"N/A\",0,1)","v":"N/A"},{"$f":"_xlfn.XLOOKUP($E19,'Activity 9'!$B$17:$B$23,'Activity 9'!N$17:N$23,\"N/A\",0,1)","v":"N/A"},{"$f":"_xlfn.XLOOKUP($E19,'Activity 9'!$B$17:$B$23,'Activity 9'!O$17:O$23,\"N/A\",0,1)","v":"N/A"},{"$f":"_xlfn.XLOOKUP($E19,'Activity 9'!$B$17:$B$23,'Activity 9'!Q$17:Q$23,\"N/A\",0,1)","v":"N/A"},{"$f":"_xlfn.XLOOKUP($E19,'Activity 10'!$B$7:$B$13,'Activity 10'!A$7:A$13,\"No\",0,1)","v":"No"},{"$f":"_xlfn.XLOOKUP($E19,'Activity 10'!$B$7:$B$13,'Activity 10'!J$7:J$13,\"N/A\",0,1)","v":"N/A"},{"$f":"_xlfn.XLOOKUP($E19,'Activity 10'!$B$7:$B$13,'Activity 10'!K$7:K$13,\"N/A\",0,1)","v":"N/A"},{"$f":"_xlfn.XLOOKUP($E19,'Activity 10'!$B$7:$B$13,'Activity 10'!L$7:L$13,\"N/A\",0,1)","v":"N/A"},{"$f":"_xlfn.XLOOKUP($E19,'Activity 10'!$B$7:$B$13,'Activity 10'!M$7:M$13,\"N/A\",0,1)","v":"N/A"},{"$f":"_xlfn.XLOOKUP($E19,'Activity 10'!$B$7:$B$13,'Activity 10'!N$7:N$13,\"N/A\",0,1)","v":"N/A"},{"$f":"_xlfn.XLOOKUP($E19,'Activity 10'!$B$7:$B$13,'Activity 10'!O$7:O$13,\"N/A\",0,1)","v":"N/A"},{"$f":"_xlfn.XLOOKUP($E19,'Activity 10'!$B$7:$B$13,'Activity 10'!P$7:P$13,\"N/A\",0,1)","v":"N/A"},{"$f":"_xlfn.XLOOKUP($E19,'Activity 10'!$B$7:$B$13,'Activity 10'!Q$7:Q$13,\"N/A\",0,1)","v":"N/A"},{"$f":"_xlfn.XLOOKUP($E19,'Activity 10'!$B$7:$B$13,'Activity 10'!R$7:R$13,\"N/A\",0,1)","v":"N/A"},{"$f":"_xlfn.XLOOKUP($E19,'Activity 10'!$B$7:$B$13,'Activity 10'!S$7:S$13,\"N/A\",0,1)","v":"N/A"},{"$f":"_xlfn.XLOOKUP($E19,'Activity 10'!$B$7:$B$13,'Activity 10'!T$7:T$13,\"N/A\",0,1)","v":"N/A"},{"$f":"_xlfn.XLOOKUP($E19,'Activity 10'!$B$7:$B$13,'Activity 10'!U$7:U$13,\"N/A\",0,1)","v":"N/A"},{"$f":"_xlfn.XLOOKUP($E19,'Activity 10'!$B$7:$B$13,'Activity 10'!V$7:V$13,\"N/A\",0,1)","v":"N/A"},{"$f":"_xlfn.XLOOKUP($E19,'Activity 10'!$B$17:$B$23,'Activity 10'!E$17:E$23,\"N/A\",0,1)","v":"N/A"},{"$f":"_xlfn.XLOOKUP($E19,'Activity 10'!$B$17:$B$23,'Activity 10'!F$17:F$23,\"N/A\",0,1)","v":"N/A"},{"$f":"_xlfn.XLOOKUP($E19,'Activity 10'!$B$17:$B$23,'Activity 10'!G$17:G$23,\"N/A\",0,1)","v":"N/A"},{"$f":"_xlfn.XLOOKUP($E19,'Activity 10'!$B$17:$B$23,'Activity 10'!H$17:H$23,\"N/A\",0,1)","v":"N/A"},{"$f":"_xlfn.XLOOKUP($E19,'Activity 10'!$B$17:$B$23,'Activity 10'!I$17:I$23,\"N/A\",0,1)","v":"N/A"},{"$f":"_xlfn.XLOOKUP($E19,'Activity 10'!$B$17:$B$23,'Activity 10'!J$17:J$23,\"N/A\",0,1)","v":"N/A"},{"$f":"_xlfn.XLOOKUP($E19,'Activity 10'!$B$17:$B$23,'Activity 10'!K$17:K$23,\"N/A\",0,1)","v":"N/A"},{"$f":"_xlfn.XLOOKUP($E19,'Activity 10'!$B$17:$B$23,'Activity 10'!L$17:L$23,\"N/A\",0,1)","v":"N/A"},{"$f":"_xlfn.XLOOKUP($E19,'Activity 10'!$B$17:$B$23,'Activity 10'!M$17:M$23,\"N/A\",0,1)","v":"N/A"},{"$f":"_xlfn.XLOOKUP($E19,'Activity 10'!$B$17:$B$23,'Activity 10'!N$17:N$23,\"N/A\",0,1)","v":"N/A"},{"$f":"_xlfn.XLOOKUP($E19,'Activity 10'!$B$17:$B$23,'Activity 10'!P$17:P$23,\"N/A\",0,1)","v":"N/A"},{"$f":"_xlfn.XLOOKUP($E19,'Competitive Activity 1'!B$7:B$13,'Competitive Activity 1'!A$7:A$13,\"No\",0,1)","v":"No"},{"$f":"_xlfn.XLOOKUP($E19,'Competitive Activity 1'!$B$7:$B$13,'Competitive Activity 1'!H$7:H$13,\"N/A\",0,1)","v":"N/A"},{"$f":"_xlfn.XLOOKUP($E19,'Competitive Activity 1'!$B$7:$B$13,'Competitive Activity 1'!I$7:I$13,\"N/A\",0,1)","v":"N/A"},{"$f":"_xlfn.XLOOKUP($E19,'Competitive Activity 1'!$B$7:$B$13,'Competitive Activity 1'!J$7:J$13,\"N/A\",0,1)","v":"N/A"},{"$f":"_xlfn.XLOOKUP($E19,'Competitive Activity 1'!$B$7:$B$13,'Competitive Activity 1'!K$7:K$13,\"N/A\",0,1)","v":"N/A"},{"$f":"_xlfn.XLOOKUP($E19,'Competitive Activity 1'!$B$7:$B$13,'Competitive Activity 1'!L$7:L$13,\"N/A\",0,1)","v":"N/A"},{"$f":"_xlfn.XLOOKUP($E19,'Competitive Activity 1'!$B$7:$B$13,'Competitive Activity 1'!M$7:M$13,\"N/A\",0,1)","v":"N/A"},{"$f":"_xlfn.XLOOKUP($E19,'Competitive Activity 1'!$B$7:$B$13,'Competitive Activity 1'!N$7:N$13,\"N/A\",0,1)","v":"N/A"},{"$f":"_xlfn.XLOOKUP($E19,'Competitive Activity 1'!$B$7:$B$13,'Competitive Activity 1'!O$7:O$13,\"N/A\",0,1)","v":"N/A"},{"$f":"_xlfn.XLOOKUP($E19,'Competitive Activity 1'!$B$7:$B$13,'Competitive Activity 1'!P$7:P$13,\"N/A\",0,1)","v":"N/A"},{"$f":"_xlfn.XLOOKUP($E19,'Competitive Activity 1'!$B$7:$B$13,'Competitive Activity 1'!Q$7:Q$13,\"N/A\",0,1)","v":"N/A"},{"$f":"_xlfn.XLOOKUP($E19,'Competitive Activity 1'!$B$7:$B$13,'Competitive Activity 1'!R$7:R$13,\"N/A\",0,1)","v":"N/A"},{"$f":"_xlfn.XLOOKUP($E19,'Competitive Activity 1'!$B$7:$B$13,'Competitive Activity 1'!S$7:S$13,\"N/A\",0,1)","v":"N/A"},{"$f":"_xlfn.XLOOKUP($E19,'Competitive Activity 1'!$B$7:$B$13,'Competitive Activity 1'!T$7:T$13,\"N/A\",0,1)","v":"N/A"},{"$f":"_xlfn.XLOOKUP($E19,'Competitive Activity 1'!$B$7:$B$13,'Competitive Activity 1'!U$7:U$13,\"N/A\",0,1)","v":"N/A"},{"$f":"_xlfn.XLOOKUP($E19,'Competitive Activity 1'!$B$17:$B$23,'Competitive Activity 1'!C$17:C$23,\"N/A\",0,1)","v":"N/A"},{"$f":"_xlfn.XLOOKUP($E19,'Competitive Activity 1'!$B$17:$B$23,'Competitive Activity 1'!D$17:D$23,\"N/A\",0,1)","v":"N/A"},{"$f":"_xlfn.XLOOKUP($E19,'Competitive Activity 1'!$B$17:$B$23,'Competitive Activity 1'!E$17:E$23,\"N/A\",0,1)","v":"N/A"},{"$f":"_xlfn.XLOOKUP($E19,'Competitive Activity 1'!$B$17:$B$23,'Competitive Activity 1'!F$17:F$23,\"N/A\",0,1)","v":"N/A"},{"$f":"_xlfn.XLOOKUP($E19,'Competitive Activity 1'!$B$17:$B$23,'Competitive Activity 1'!G$17:G$23,\"N/A\",0,1)","v":"N/A"},{"$f":"_xlfn.XLOOKUP($E19,'Competitive Activity 1'!$B$17:$B$23,'Competitive Activity 1'!H$17:H$23,\"N/A\",0,1)","v":"N/A"},{"$f":"_xlfn.XLOOKUP($E19,'Competitive Activity 1'!$B$17:$B$23,'Competitive Activity 1'!I$17:I$23,\"N/A\",0,1)","v":"N/A"},{"$f":"_xlfn.XLOOKUP($E19,'Competitive Activity 1'!$B$17:$B$23,'Competitive Activity 1'!J$17:J$23,\"N/A\",0,1)","v":"N/A"},{"$f":"_xlfn.XLOOKUP($E19,'Competitive Activity 1'!$B$17:$B$23,'Competitive Activity 1'!K$17:K$23,\"N/A\",0,1)","v":"N/A"},{"$f":"_xlfn.XLOOKUP($E19,'Competitive Activity 1'!$B$17:$B$23,'Competitive Activity 1'!M$17:M$23,\"N/A\",0,1)","v":"N/A"},{"$f":"_xlfn.XLOOKUP($E19,'Competitive Activity 1'!$B$17:$B$23,'Competitive Activity 1'!N$17:N$23,\"N/A\",0,1)","v":"N/A"},{"$f":"_xlfn.XLOOKUP($E19,'Competitive Activity 1'!$B$17:$B$23,'Competitive Activity 1'!P$17:P$23,\"N/A\",0,1)","v":"N/A"},{"$f":"_xlfn.XLOOKUP($E19,'Competitive Activity 2'!$B$7:$B$13,'Competitive Activity 2'!A$7:A$13,\"No\",0)","v":"No"},{"$f":"_xlfn.XLOOKUP($E19,'Competitive Activity 2'!$B$7:$B$13,'Competitive Activity 2'!L$7:L$13,\"N/A\",0)","v":"N/A"},{"$f":"_xlfn.XLOOKUP($E19,'Competitive Activity 2'!$B$7:$B$13,'Competitive Activity 2'!M$7:M$13,\"N/A\",0)","v":"N/A"},{"$f":"_xlfn.XLOOKUP($E19,'Competitive Activity 2'!$B$7:$B$13,'Competitive Activity 2'!N$7:N$13,\"N/A\",0)","v":"N/A"},{"$f":"_xlfn.XLOOKUP($E19,'Competitive Activity 2'!$B$7:$B$13,'Competitive Activity 2'!O$7:O$13,\"N/A\",0)","v":"N/A"},{"$f":"_xlfn.XLOOKUP($E19,'Competitive Activity 2'!$B$7:$B$13,'Competitive Activity 2'!P$7:P$13,\"N/A\",0)","v":"N/A"},{"$f":"_xlfn.XLOOKUP($E19,'Competitive Activity 2'!$B$7:$B$13,'Competitive Activity 2'!Q$7:Q$13,\"N/A\",0)","v":"N/A"},{"$f":"_xlfn.XLOOKUP($E19,'Competitive Activity 2'!$B$7:$B$13,'Competitive Activity 2'!R$7:R$13,\"N/A\",0)","v":"N/A"},{"$f":"_xlfn.XLOOKUP($E19,'Competitive Activity 2'!$B$7:$B$13,'Competitive Activity 2'!S$7:S$13,\"N/A\",0)","v":"N/A"},{"$f":"_xlfn.XLOOKUP($E19,'Competitive Activity 2'!$B$7:$B$13,'Competitive Activity 2'!T$7:T$13,\"N/A\",0)","v":"N/A"},{"$f":"_xlfn.XLOOKUP($E19,'Competitive Activity 2'!$B$7:$B$13,'Competitive Activity 2'!U$7:U$13,\"N/A\",0)","v":"N/A"},{"$f":"_xlfn.XLOOKUP($E19,'Competitive Activity 2'!$B$17:$B$23,'Competitive Activity 2'!D$17:D$23,\"N/A\",0)","v":"N/A"},{"$f":"_xlfn.XLOOKUP($E19,'Competitive Activity 2'!$B$17:$B$23,'Competitive Activity 2'!E$17:E$23,\"N/A\",0)","v":"N/A"},{"$f":"_xlfn.XLOOKUP($E19,'Competitive Activity 2'!$B$17:$B$23,'Competitive Activity 2'!F$17:F$23,\"N/A\",0)","v":"N/A"},{"$f":"_xlfn.XLOOKUP($E19,'Competitive Activity 2'!$B$17:$B$23,'Competitive Activity 2'!G$17:G$23,\"N/A\",0)","v":"N/A"},{"$f":"_xlfn.XLOOKUP($E19,'Competitive Activity 2'!$B$17:$B$23,'Competitive Activity 2'!H$17:H$23,\"N/A\",0)","v":"N/A"},{"$f":"_xlfn.XLOOKUP($E19,'Competitive Activity 2'!$B$17:$B$23,'Competitive Activity 2'!I$17:I$23,\"N/A\",0)","v":"N/A"},{"$f":"_xlfn.XLOOKUP($E19,'Competitive Activity 2'!$B$17:$B$23,'Competitive Activity 2'!J$17:J$23,\"N/A\",0)","v":"N/A"},{"$f":"_xlfn.XLOOKUP($E19,'Competitive Activity 2'!$B$17:$B$23,'Competitive Activity 2'!K$17:K$23,\"N/A\",0)","v":"N/A"},{"$f":"_xlfn.XLOOKUP($E19,'Competitive Activity 2'!$B$17:$B$23,'Competitive Activity 2'!L$17:L$23,\"N/A\",0)","v":"N/A"},{"$f":"_xlfn.XLOOKUP($E19,'Competitive Activity 2'!$B$17:$B$23,'Competitive Activity 2'!M$17:M$23,\"N/A\",0)","v":"N/A"},{"$f":"_xlfn.XLOOKUP($E19,'Competitive Activity 2'!$B$17:$B$23,'Competitive Activity 2'!N$17:N$23,\"N/A\",0)","v":"N/A"},{"$f":"_xlfn.XLOOKUP($E19,'Competitive Activity 2'!$B$27:$B$33,'Competitive Activity 2'!D$27:D$33,\"N/A\",0)","v":"N/A"},{"$f":"_xlfn.XLOOKUP($E19,'Competitive Activity 2'!$B$27:$B$33,'Competitive Activity 2'!E$27:E$33,\"N/A\",0)","v":"N/A"},{"$f":"_xlfn.XLOOKUP($E19,'Competitive Activity 2'!$B$27:$B$33,'Competitive Activity 2'!F$27:F$33,\"N/A\",0)","v":"N/A"},{"$f":"_xlfn.XLOOKUP($E19,'Competitive Activity 2'!$B$27:$B$33,'Competitive Activity 2'!G$27:G$33,\"N/A\",0)","v":"N/A"},{"$f":"_xlfn.XLOOKUP($E19,'Competitive Activity 2'!$B$27:$B$33,'Competitive Activity 2'!H$27:H$33,\"N/A\",0)","v":"N/A"},{"$f":"_xlfn.XLOOKUP($E19,'Competitive Activity 2'!$B$27:$B$33,'Competitive Activity 2'!I$27:I$33,\"N/A\",0)","v":"N/A"},{"$f":"_xlfn.XLOOKUP($E19,'Competitive Activity 2'!$B$27:$B$33,'Competitive Activity 2'!J$27:J$33,\"N/A\",0)","v":"N/A"},{"$f":"_xlfn.XLOOKUP($E19,'Competitive Activity 2'!$B$27:$B$33,'Competitive Activity 2'!K$27:K$33,\"N/A\",0)","v":"N/A"},{"$f":"_xlfn.XLOOKUP($E19,'Competitive Activity 2'!$B$27:$B$33,'Competitive Activity 2'!M$27:M$33,\"N/A\",0)","v":"N/A"}]
[{"$f":"'1-Cover Sheet'!$C$8","v":"Select One"},{"$f":"'1-Cover Sheet'!$F$8","v":"Select One"},{"$f":"'Summary Sheet'!$D$8","v":0},{"$f":"'Summary Sheet'!$D$10","v":0},{"$f":"'Drop Down Box'!B184","v":0},{"$f":"'Drop Down Box'!C184","v":0},{"$f":"'Drop Down Box'!D184","v":"Select One"},{"$f":"_xlfn.XLOOKUP(E20,'Drop Down Box'!$B$166:$B$249,'Drop Down Box'!$A$166:$A$249,\"Unknown\",0)","v":"Activity 1"},{"$f":"_xlfn.XLOOKUP(E20,'Activity 3'!B$8:B$14,'Activity 3'!P$8:P$14,\"N/A\",0)","v":"N/A"},{"$f":"_xlfn.XLOOKUP($E20,'Activity 3'!$B$8:$B$14,'Activity 3'!Q$8:Q$14,\"N/A\",0)","v":"N/A"},{"$f":"_xlfn.XLOOKUP($E20,'Activity 3'!$B$8:$B$14,'Activity 3'!H$8:H$14,\"N/A\",0)","v":"N/A"},{"$f":"_xlfn.XLOOKUP(E20,'Activity 3'!B$8:B$14,'Activity 3'!I12:I18,\"N/A\",0)","v":"N/A"},{"$f":"_xlfn.XLOOKUP($E20,'Activity 3'!$B$8:$B$14,'Activity 3'!J12:J18,\"N/A\",0)","v":"N/A"},{"$f":"_xlfn.XLOOKUP($E20,'Activity 1'!$B$7:$B$13,'Activity 1'!$A$7:$A$13,\"No\",0,1)","v":"No"},{"$f":"_xlfn.XLOOKUP($E20,'Activity 1'!$B$7:$B$13,'Activity 1'!$H$7:$H$13,\"N/A\",0,1)","v":"N/A"},{"$f":"_xlfn.XLOOKUP($E20,'Activity 1'!$B$7:$B$13,'Activity 1'!I$7:I$13,\"N/A\",0,1)","v":"N/A"},{"$f":"_xlfn.XLOOKUP($E20,'Activity 1'!$B$7:$B$13,'Activity 1'!J$7:J$13,\"N/A\",0,1)","v":"N/A"},{"$f":"_xlfn.XLOOKUP($E20,'Activity 1'!$B$7:$B$13,'Activity 1'!K$7:K$13,\"N/A\",0,1)","v":"N/A"},{"$f":"_xlfn.XLOOKUP($E20,'Activity 1'!$B$7:$B$13,'Activity 1'!L$7:L$13,\"N/A\",0,1)","v":"N/A"},{"$f":"_xlfn.XLOOKUP($E20,'Activity 1'!$B$7:$B$13,'Activity 1'!M$7:M$13,\"N/A\",0,1)","v":"N/A"},{"$f":"_xlfn.XLOOKUP($E20,'Activity 1'!$B$7:$B$13,'Activity 1'!N$7:N$13,\"N/A\",0,1)","v":"N/A"},0,{"$f":"_xlfn.XLOOKUP($E20,'Activity 1'!$B$7:$B$13,'Activity 1'!O$7:O$13,\"N/A\",0,1)","v":"N/A"},{"$f":"_xlfn.XLOOKUP($E20,'Activity 1'!$B$7:$B$13,'Activity 1'!P$7:P$13,\"N/A\",0,1)","v":"N/A"},{"$f":"_xlfn.XLOOKUP($E20,'Activity 1'!$B$7:$B$13,'Activity 1'!Q$7:Q$13,\"N/A\",0,1)","v":"N/A"},{"$f":"_xlfn.XLOOKUP($E20,'Activity 1'!$B$7:$B$13,'Activity 1'!R$7:R$13,\"N/A\",0,1)","v":"N/A"},{"$f":"_xlfn.XLOOKUP($E20,'Activity 1'!$B$7:$B$13,'Activity 1'!S$7:S$13,\"N/A\",0,1)","v":"N/A"},{"$f":"_xlfn.XLOOKUP($E20,'Activity 1'!$B$7:$B$13,'Activity 1'!T$7:T$13,\"N/A\",0,1)","v":"N/A"},{"$f":"_xlfn.XLOOKUP($E20,'Activity 1'!$B$7:$B$13,'Activity 1'!U$7:U$13,\"N/A\",0,1)","v":"N/A"},{"$f":"_xlfn.XLOOKUP($E20,'Activity 1'!$B$7:$B$13,'Activity 1'!V$7:V$13,\"N/A\",0,1)","v":"N/A"},{"$f":"_xlfn.XLOOKUP($E20,'Activity 1'!$B$17:$B$23,'Activity 1'!C$17:C$23,\"N/A\",0,1)","v":"N/A"},{"$f":"_xlfn.XLOOKUP($E20,'Activity 1'!$B$17:$B$23,'Activity 1'!D$17:D$23,\"N/A\",0,1)","v":"N/A"},{"$f":"_xlfn.XLOOKUP($E20,'Activity 1'!$B$17:$B$23,'Activity 1'!E$17:E$23,\"N/A\",0,1)","v":"N/A"},{"$f":"_xlfn.XLOOKUP($E20,'Activity 1'!$B$17:$B$23,'Activity 1'!F$17:F$23,\"N/A\",0,1)","v":"N/A"},{"$f":"_xlfn.XLOOKUP($E20,'Activity 1'!$B$17:$B$23,'Activity 1'!G$17:G$23,\"N/A\",0,1)","v":"N/A"},{"$f":"_xlfn.XLOOKUP($E20,'Activity 1'!$B$17:$B$23,'Activity 1'!H$17:H$23,\"N/A\",0,1)","v":"N/A"},{"$f":"_xlfn.XLOOKUP($E20,'Activity 1'!$B$17:$B$23,'Activity 1'!I$17:I$23,\"N/A\",0,1)","v":"N/A"},{"$f":"_xlfn.XLOOKUP($E20,'Activity 1'!$B$17:$B$23,'Activity 1'!J$17:J$23,\"N/A\",0,1)","v":"N/A"},{"$f":"_xlfn.XLOOKUP($E20,'Activity 1'!$B$17:$B$23,'Activity 1'!K$17:K$23,\"N/A\",0,1)","v":"N/A"},{"$f":"_xlfn.XLOOKUP($E20,'Activity 1'!$B$17:$B$23,'Activity 1'!L$17:L$23,\"N/A\",0,1)","v":"N/A"},{"$f":"_xlfn.XLOOKUP($E20,'Activity 1'!$B$17:$B$23,'Activity 1'!M$17:M$23,\"N/A\",0,1)","v":"N/A"},{"$f":"_xlfn.XLOOKUP($E20,'Activity 1'!$B$17:$B$23,'Activity 1'!O$17:O$23,\"N/A\",0,1)","v":"N/A"},{"$f":"_xlfn.XLOOKUP($E20,'Activity 1'!$B$17:$B$23,'Activity 1'!Q$17:Q$23,\"N/A\",0,1)","v":"N/A"},{"$f":"_xlfn.XLOOKUP($E20,'Activity 2'!$B$7:$B$13,'Activity 2'!$A$7:$A$13,\"No\",0,1)","v":"No"},{"$f":"_xlfn.XLOOKUP($E20,'Activity 2'!B$7:B$13,'Activity 2'!H$7:H$13,\"N/A\",0)","v":"N/A"},{"$f":"_xlfn.XLOOKUP($E20,'Activity 2'!C$7:C$13,'Activity 2'!I$7:I$13,\"N/A\",0)","v":"N/A"},{"$f":"_xlfn.XLOOKUP($E20,'Activity 2'!D$7:D$13,'Activity 2'!J$7:J$13,\"N/A\",0)","v":"N/A"},{"$f":"_xlfn.XLOOKUP($E20,'Activity 2'!E$7:E$13,'Activity 2'!K$7:K$13,\"N/A\",0)","v":"N/A"},{"$f":"_xlfn.XLOOKUP($E20,'Activity 2'!F$7:F$13,'Activity 2'!L$7:L$13,\"N/A\",0)","v":"N/A"},{"$f":"_xlfn.XLOOKUP($E20,'Activity 2'!G$7:G$13,'Activity 2'!M$7:M$13,\"N/A\",0)","v":"N/A"},{"$f":"_xlfn.XLOOKUP($E20,'Activity 2'!H$7:H$13,'Activity 2'!N$7:N$13,\"N/A\",0)","v":"N/A"},{"$f":"_xlfn.XLOOKUP($E20,'Activity 2'!I$7:I$13,'Activity 2'!O$7:O$13,\"N/A\",0)","v":"N/A"},{"$f":"_xlfn.XLOOKUP($E20,'Activity 2'!J$7:J$13,'Activity 2'!P$7:P$13,\"N/A\",0)","v":"N/A"},{"$f":"_xlfn.XLOOKUP($E20,'Activity 2'!K$7:K$13,'Activity 2'!Q$7:Q$13,\"N/A\",0)","v":"N/A"},{"$f":"_xlfn.XLOOKUP($E20,'Activity 2'!L$7:L$13,'Activity 2'!R$7:R$13,\"N/A\",0)","v":"N/A"},{"$f":"_xlfn.XLOOKUP($E20,'Activity 2'!M$7:M$13,'Activity 2'!S$7:S$13,\"N/A\",0)","v":"N/A"},{"$f":"_xlfn.XLOOKUP($E20,'Activity 2'!N$7:N$13,'Activity 2'!T$7:T$13,\"N/A\",0)","v":"N/A"},{"$f":"_xlfn.XLOOKUP($E20,'Activity 2'!O$7:O$13,'Activity 2'!U$7:U$13,\"N/A\",0)","v":"N/A"},{"$f":"_xlfn.XLOOKUP($E20,'Activity 2'!P$7:P$13,'Activity 2'!V$7:V$13,\"N/A\",0)","v":"N/A"},{"$f":"_xlfn.XLOOKUP($E20,'Activity 2'!$B$17:$B$23,'Activity 2'!C$17:C$23,\"N/A\",0,1)","v":"N/A"},{"$f":"_xlfn.XLOOKUP($E20,'Activity 2'!$B$17:$B$23,'Activity 2'!D$17:D$23,\"N/A\",0,1)","v":"N/A"},{"$f":"_xlfn.XLOOKUP($E20,'Activity 2'!$B$17:$B$23,'Activity 2'!E$17:E$23,\"N/A\",0,1)","v":"N/A"},{"$f":"_xlfn.XLOOKUP($E20,'Activity 2'!$B$17:$B$23,'Activity 2'!F$17:F$23,\"N/A\",0,1)","v":"N/A"},{"$f":"_xlfn.XLOOKUP($E20,'Activity 2'!$B$17:$B$23,'Activity 2'!G$17:G$23,\"N/A\",0,1)","v":"N/A"},{"$f":"_xlfn.XLOOKUP($E20,'Activity 2'!$B$17:$B$23,'Activity 2'!H$17:H$23,\"N/A\",0,1)","v":"N/A"},{"$f":"_xlfn.XLOOKUP($E20,'Activity 2'!$B$17:$B$23,'Activity 2'!I$17:I$23,\"N/A\",0,1)","v":"N/A"},{"$f":"_xlfn.XLOOKUP($E20,'Activity 2'!$B$17:$B$23,'Activity 2'!J$17:J$23,\"N/A\",0,1)","v":"N/A"},{"$f":"_xlfn.XLOOKUP($E20,'Activity 2'!$B$17:$B$23,'Activity 2'!K$17:K$23,\"N/A\",0,1)","v":"N/A"},{"$f":"_xlfn.XLOOKUP($E20,'Activity 2'!$B$17:$B$23,'Activity 2'!L$17:L$23,\"N/A\",0,1)","v":"N/A"},{"$f":"_xlfn.XLOOKUP($E20,'Activity 2'!$B$17:$B$23,'Activity 2'!M$17:M$23,\"N/A\",0,1)","v":"N/A"},{"$f":"_xlfn.XLOOKUP($E20,'Activity 2'!$B$17:$B$23,'Activity 2'!O$17:O$23,\"N/A\",0,1)","v":"N/A"},{"$f":"_xlfn.XLOOKUP($E20,'Activity 2'!$B$17:$B$23,'Activity 2'!Q$17:Q$23,\"N/A\",0,1)","v":"N/A"},null,{"$f":"_xlfn.XLOOKUP($E20,'Activity 3'!$B$8:$B$14,'Activity 3'!K$8:K$14,\"N/A\",0,1)","v":"N/A"},{"$f":"_xlfn.XLOOKUP($E20,'Activity 3'!$B$8:$B$14,'Activity 3'!L$8:L$14,\"N/A\",0,1)","v":"N/A"},{"$f":"_xlfn.XLOOKUP($E20,'Activity 3'!$B$8:$B$14,'Activity 3'!M$8:M$14,\"N/A\",0,1)","v":"N/A"},{"$f":"_xlfn.XLOOKUP($E20,'Activity 3'!$B$8:$B$14,'Activity 3'!N$8:N$14,\"N/A\",0,1)","v":"N/A"},{"$f":"_xlfn.XLOOKUP($E20,'Activity 3'!$B$8:$B$14,'Activity 3'!O$8:O$14,\"N/A\",0,1)","v":"N/A"},{"$f":"_xlfn.XLOOKUP($E20,'Activity 3'!$B$8:$B$14,'Activity 3'!R$8:R$14,\"N/A\",0,1)","v":"N/A"},{"$f":"_xlfn.XLOOKUP($E20,'Activity 4'!$B$8:$B$14,'Activity 4'!$A$8:$A$14,\"No\",0,1)","v":"No"},{"$f":"_xlfn.XLOOKUP($E20,'Activity 4'!$B$8:$B$14,'Activity 4'!L$8:L$14,\"N/A\",0,1)","v":"N/A"},{"$f":"_xlfn.XLOOKUP($E20,'Activity 4'!$B$8:$B$14,'Activity 4'!I$8:I$14,\"N/A\",0,1)","v":"N/A"},{"$f":"_xlfn.XLOOKUP($E20,'Activity 4'!$B$8:$B$14,'Activity 4'!M$8:M$14,\"N/A\",0,1)","v":"N/A"},{"$f":"_xlfn.XLOOKUP($E20,'Activity 5'!$B$8:$B$14,'Activity 5'!$A$8:$A$14,\"No\",0,1)","v":"No"},{"$f":"_xlfn.XLOOKUP($E20,'Activity 5'!$B$8:$B$14,'Activity 5'!J$8:J$14,\"N/A\",0,1)","v":"N/A"},{"$f":"_xlfn.XLOOKUP($E20,'Activity 5'!$B$8:$B$14,'Activity 5'!K$8:K$14,\"N/A\",0,1)","v":"N/A"},{"$f":"_xlfn.XLOOKUP($E20,'Activity 5'!$B$8:$B$14,'Activity 5'!N$8:N$14,\"N/A\",0,1)","v":"N/A"},{"$f":"_xlfn.XLOOKUP($E20,'Activity 5'!$B$8:$B$14,'Activity 5'!O$8:O$14,\"N/A\",0,1)","v":"N/A"},{"$f":"_xlfn.XLOOKUP($E20,'Activity 5'!$B$8:$B$14,'Activity 5'!P$8:P$14,\"N/A\",0,1)","v":"N/A"},{"$f":"_xlfn.XLOOKUP($E20,'Activity 5'!$B$8:$B$14,'Activity 5'!Q$8:Q$14,\"N/A\",0,1)","v":"N/A"},{"$f":"_xlfn.XLOOKUP($E20,'Activity 5'!$B$8:$B$14,'Activity 5'!R$8:R$14,\"N/A\",0,1)","v":"N/A"},{"$f":"_xlfn.XLOOKUP($E20,'Activity 6'!$B$7:$B$13,'Activity 6'!A$7:A$13,\"No\",0,1)","v":"No"},{"$f":"_xlfn.XLOOKUP($E20,'Activity 6'!$B$7:$B$13,'Activity 6'!K$7:K$13,\"N/A\",0,1)","v":"N/A"},{"$f":"_xlfn.XLOOKUP($E20,'Activity 6'!$B$7:$B$13,'Activity 6'!L$7:L$13,\"N/A\",0,1)","v":"N/A"},{"$f":"_xlfn.XLOOKUP($E20,'Activity 6'!$B$7:$B$13,'Activity 6'!M$7:M$13,\"N/A\",0,1)","v":"N/A"},{"$f":"_xlfn.XLOOKUP($E20,'Activity 6'!$B$7:$B$13,'Activity 6'!N$7:N$13,\"N/A\",0,1)","v":"N/A"},{"$f":"_xlfn.XLOOKUP($E20,'Activity 6'!$B$7:$B$13,'Activity 6'!O$7:O$13,\"N/A\",0,1)","v":"N/A"},{"$f":"_xlfn.XLOOKUP($E20,'Activity 6'!$B$7:$B$13,'Activity 6'!P$7:P$13,\"N/A\",0,1)","v":"N/A"},{"$f":"_xlfn.XLOOKUP($E20,'Activity 6'!$B$7:$B$13,'Activity 6'!Q$7:Q$13,\"N/A\",0,1)","v":"N/A"},{"$f":"_xlfn.XLOOKUP($E20,'Activity 6'!$B$7:$B$13,'Activity 6'!R$7:R$13,\"N/A\",0,1)","v":"N/A"},{"$f":"_xlfn.XLOOKUP($E20,'Activity 6'!$B$7:$B$13,'Activity 6'!S$7:S$13,\"N/A\",0,1)","v":"N/A"},{"$f":"_xlfn.XLOOKUP($E20,'Activity 6'!$B$7:$B$13,'Activity 6'!T$7:T$13,\"N/A\",0,1)","v":"N/A"},{"$f":"_xlfn.XLOOKUP($E20,'Activity 6'!$B$7:$B$13,'Activity 6'!U$7:U$13,\"N/A\",0,1)","v":"N/A"},{"$f":"_xlfn.XLOOKUP($E20,'Activity 6'!$B$22:$B$28,'Activity 6'!C$22:C$28,\"N/A\",0,1)","v":"N/A"},{"$f":"_xlfn.XLOOKUP($E20,'Activity 6'!$B$22:$B$28,'Activity 6'!D$22:D$28,\"N/A\",0,1)","v":"N/A"},{"$f":"_xlfn.XLOOKUP($E20,'Activity 6'!$B$22:$B$28,'Activity 6'!E$22:E$28,\"N/A\",0,1)","v":"N/A"},{"$f":"_xlfn.XLOOKUP($E20,'Activity 6'!$B$22:$B$28,'Activity 6'!F$22:F$28,\"N/A\",0,1)","v":"N/A"},{"$f":"_xlfn.XLOOKUP($E20,'Activity 6'!$B$22:$B$28,'Activity 6'!G$22:G$28,\"N/A\",0,1)","v":"N/A"},{"$f":"_xlfn.XLOOKUP($E20,'Activity 6'!$B$22:$B$28,'Activity 6'!H$22:H$28,\"N/A\",0,1)","v":"N/A"},{"$f":"_xlfn.XLOOKUP($E20,'Activity 6'!$B$22:$B$28,'Activity 6'!I$22:I$28,\"N/A\",0,1)","v":"N/A"},{"$f":"_xlfn.XLOOKUP($E20,'Activity 6'!$B$22:$B$28,'Activity 6'!J$22:J$28,\"N/A\",0,1)","v":"N/A"},{"$f":"_xlfn.XLOOKUP($E20,'Activity 6'!$B$22:$B$28,'Activity 6'!K$22:K$28,\"N/A\",0,1)","v":"N/A"},{"$f":"_xlfn.XLOOKUP($E20,'Activity 6'!$B$22:$B$28,'Activity 6'!L$22:L$28,\"N/A\",0,1)","v":"N/A"},{"$f":"_xlfn.XLOOKUP($E20,'Activity 6'!$B$22:$B$28,'Activity 6'!M$22:M$28,\"N/A\",0,1)","v":"N/A"},{"$f":"_xlfn.XLOOKUP($E20,'Activity 6'!$B$22:$B$28,'Activity 6'!N$22:N$28,\"N/A\",0,1)","v":"N/A"},{"$f":"_xlfn.XLOOKUP($E20,'Activity 6'!$B$32:$B$38,'Activity 6'!C$32:C$38,\"N/A\",0,1)","v":"N/A"},{"$f":"_xlfn.XLOOKUP($E20,'Activity 6'!$B$32:$B$38,'Activity 6'!D$32:D$38,\"N/A\",0,1)","v":"N/A"},{"$f":"_xlfn.XLOOKUP($E20,'Activity 6'!$B$32:$B$38,'Activity 6'!E$32:E$38,\"N/A\",0,1)","v":"N/A"},{"$f":"_xlfn.XLOOKUP($E20,'Activity 6'!$B$32:$B$38,'Activity 6'!F$32:F$38,\"N/A\",0,1)","v":"N/A"},{"$f":"_xlfn.XLOOKUP($E20,'Activity 6'!$B$32:$B$38,'Activity 6'!G$32:G$38,\"N/A\",0,1)","v":"N/A"},{"$f":"_xlfn.XLOOKUP($E20,'Activity 6'!$B$32:$B$38,'Activity 6'!H$32:H$38,\"N/A\",0,1)","v":"N/A"},{"$f":"_xlfn.XLOOKUP($E20,'Activity 6'!$B$32:$B$38,'Activity 6'!I$32:I$38,\"N/A\",0,1)","v":"N/A"},{"$f":"_xlfn.XLOOKUP($E20,'Activity 6'!$B$32:$B$38,'Activity 6'!J$32:J$38,\"N/A\",0,1)","v":"N/A"},{"$f":"_xlfn.XLOOKUP($E20,'Activity 6'!$B$32:$B$38,'Activity 6'!K$32:K$38,\"N/A\",0,1)","v":"N/A"},{"$f":"_xlfn.XLOOKUP($E20,'Activity 6'!$B$32:$B$38,'Activity 6'!M$32:M$38,\"N/A\",0,1)","v":"N/A"},{"$f":"_xlfn.XLOOKUP($E20,'Activity 7'!$B$7:$B$13,'Activity 7'!$A$7:$A$13,\"No\",0,1)","v":"No"},{"$f":"_xlfn.XLOOKUP($E20,'Activity 7'!$B$7:$B$13,'Activity 7'!M$7:M$13,\"N/A\",0,1)","v":"N/A"},{"$f":"_xlfn.XLOOKUP($E20,'Activity 7'!$B$7:$B$13,'Activity 7'!K$7:K$13,\"N/A\",0,1)","v":"N/A"},{"$f":"_xlfn.XLOOKUP($E20,'Activity 7'!$B$7:$B$13,'Activity 7'!N$7:N$13,\"N/A\",0,1)","v":"N/A"},{"$f":"_xlfn.XLOOKUP($E20,'Activity 7'!$B$7:$B$13,'Activity 7'!O$7:O$13,\"N/A\",0,1)","v":"N/A"},{"$f":"_xlfn.XLOOKUP($E20,'Activity 7'!$B$7:$B$13,'Activity 7'!P$7:P$13,\"N/A\",0,1)","v":"N/A"},{"$f":"_xlfn.XLOOKUP($E20,'Activity 7'!$B$7:$B$13,'Activity 7'!Q$7:Q$13,\"N/A\",0,1)","v":"N/A"},{"$f":"_xlfn.XLOOKUP($E20,'Activity 7'!$B$7:$B$13,'Activity 7'!R$7:R$13,\"N/A\",0,1)","v":"N/A"},{"$f":"_xlfn.XLOOKUP($E20,'Activity 7'!$B$7:$B$13,'Activity 7'!S$7:S$13,\"N/A\",0,1)","v":"N/A"},{"$f":"_xlfn.XLOOKUP($E20,'Activity 7'!$B$7:$B$13,'Activity 7'!T$7:T$13,\"N/A\",0,1)","v":"N/A"},{"$f":"_xlfn.XLOOKUP($E20,'Activity 7'!$B$7:$B$13,'Activity 7'!U$7:U$13,\"N/A\",0,1)","v":"N/A"},{"$f":"_xlfn.XLOOKUP($E20,'Activity 7'!$B$7:$B$13,'Activity 7'!V$7:V$13,\"N/A\",0,1)","v":"N/A"},{"$f":"_xlfn.XLOOKUP($E20,'Activity 7'!$B$17:$B$23,'Activity 7'!E$17:E$23,\"N/A\",0,1)","v":"N/A"},{"$f":"_xlfn.XLOOKUP($E20,'Activity 7'!$B$17:$B$23,'Activity 7'!G$17:G$23,\"N/A\",0,1)","v":"N/A"},{"$f":"_xlfn.XLOOKUP($E20,'Activity 7'!$B$17:$B$23,'Activity 7'!I$17:I$23,\"N/A\",0,1)","v":"N/A"},{"$f":"_xlfn.XLOOKUP($E20,'Activity 7'!$B$17:$B$23,'Activity 7'!J$17:J$23,\"N/A\",0,1)","v":"N/A"},{"$f":"_xlfn.XLOOKUP($E20,'Activity 7'!$B$17:$B$23,'Activity 7'!K$17:K$23,\"N/A\",0,1)","v":"N/A"},{"$f":"_xlfn.XLOOKUP($E20,'Activity 7'!$B$17:$B$23,'Activity 7'!L$17:L$23,\"N/A\",0,1)","v":"N/A"},{"$f":"_xlfn.XLOOKUP($E20,'Activity 7'!$B$17:$B$23,'Activity 7'!M$17:M$23,\"N/A\",0,1)","v":"N/A"},{"$f":"_xlfn.XLOOKUP($E20,'Activity 7'!$B$17:$B$23,'Activity 7'!N$17:N$23,\"N/A\",0,1)","v":"N/A"},{"$f":"_xlfn.XLOOKUP($E20,'Activity 7'!$B$17:$B$23,'Activity 7'!P$17:P$23,\"N/A\",0,1)","v":"N/A"},{"$f":"_xlfn.XLOOKUP($E20,'Activity 8'!$B$7:$B$13,'Activity 8'!A$7:A$13,\"No\",0,1)","v":"No"},{"$f":"_xlfn.XLOOKUP($E20,'Activity 8'!$B$7:$B$13,'Activity 8'!I$7:I$13,\"N/A\",0,1)","v":"N/A"},{"$f":"_xlfn.XLOOKUP($E20,'Activity 8'!$B$7:$B$13,'Activity 8'!J$7:J$13,\"N/A\",0,1)","v":"N/A"},{"$f":"_xlfn.XLOOKUP($E20,'Activity 8'!$B$7:$B$13,'Activity 8'!K$7:K$13,\"N/A\",0,1)","v":"N/A"},{"$f":"_xlfn.XLOOKUP($E20,'Activity 8'!$B$7:$B$13,'Activity 8'!L$7:L$13,\"N/A\",0,1)","v":"N/A"},{"$f":"_xlfn.XLOOKUP($E20,'Activity 8'!$B$7:$B$13,'Activity 8'!M$7:M$13,\"N/A\",0,1)","v":"N/A"},{"$f":"_xlfn.XLOOKUP($E20,'Activity 8'!$B$7:$B$13,'Activity 8'!N$7:N$13,\"N/A\",0,1)","v":"N/A"},{"$f":"_xlfn.XLOOKUP($E20,'Activity 8'!$B$7:$B$13,'Activity 8'!O$7:O$13,\"N/A\",0,1)","v":"N/A"},{"$f":"_xlfn.XLOOKUP($E20,'Activity 8'!$B$7:$B$13,'Activity 8'!P$7:P$13,\"N/A\",0,1)","v":"N/A"},{"$f":"_xlfn.XLOOKUP($E20,'Activity 8'!$B$7:$B$13,'Activity 8'!Q$7:Q$13,\"N/A\",0,1)","v":"N/A"},{"$f":"_xlfn.XLOOKUP($E20,'Activity 8'!$B$7:$B$13,'Activity 8'!R$7:R$13,\"N/A\",0,1)","v":"N/A"},{"$f":"_xlfn.XLOOKUP($E20,'Activity 8'!$B$7:$B$13,'Activity 8'!S$7:S$13,\"N/A\",0,1)","v":"N/A"},{"$f":"_xlfn.XLOOKUP($E20,'Activity 8'!$B$7:$B$13,'Activity 8'!T$7:T$13,\"N/A\",0,1)","v":"N/A"},{"$f":"_xlfn.XLOOKUP($E20,'Activity 8'!$B$7:$B$13,'Activity 8'!U$7:U$13,\"N/A\",0,1)","v":"N/A"},{"$f":"_xlfn.XLOOKUP($E20,'Activity 8'!$B$7:$B$13,'Activity 8'!V$7:V$13,\"N/A\",0,1)","v":"N/A"},{"$f":"_xlfn.XLOOKUP($E20,'Activity 8'!$B$17:$B$23,'Activity 8'!D$17:D$23,\"N/A\",0,1)","v":"N/A"},{"$f":"_xlfn.XLOOKUP($E20,'Activity 8'!$B$17:$B$23,'Activity 8'!E$17:E$23,\"N/A\",0,1)","v":"N/A"},{"$f":"_xlfn.XLOOKUP($E20,'Activity 8'!$B$17:$B$23,'Activity 8'!F$17:F$23,\"N/A\",0,1)","v":"N/A"},{"$f":"_xlfn.XLOOKUP($E20,'Activity 8'!$B$17:$B$23,'Activity 8'!G$17:G$23,\"N/A\",0,1)","v":"N/A"},{"$f":"_xlfn.XLOOKUP($E20,'Activity 8'!$B$17:$B$23,'Activity 8'!H$17:H$23,\"N/A\",0,1)","v":"N/A"},{"$f":"_xlfn.XLOOKUP($E20,'Activity 8'!$B$17:$B$23,'Activity 8'!I$17:I$23,\"N/A\",0,1)","v":"N/A"},{"$f":"_xlfn.XLOOKUP($E20,'Activity 8'!$B$17:$B$23,'Activity 8'!J$17:J$23,\"N/A\",0,1)","v":"N/A"},{"$f":"_xlfn.XLOOKUP($E20,'Activity 8'!$B$17:$B$23,'Activity 8'!K$17:K$23,\"N/A\",0,1)","v":"N/A"},{"$f":"_xlfn.XLOOKUP($E20,'Activity 8'!$B$17:$B$23,'Activity 8'!L$17:L$23,\"N/A\",0,1)","v":"N/A"},{"$f":"_xlfn.XLOOKUP($E20,'Activity 8'!$B$17:$B$23,'Activity 8'!M$17:M$23,\"N/A\",0,1)","v":"N/A"},{"$f":"_xlfn.XLOOKUP($E20,'Activity 8'!$B$17:$B$23,'Activity 8'!N$17:N$23,\"N/A\",0,1)","v":"N/A"},{"$f":"_xlfn.XLOOKUP($E20,'Activity 8'!$B$17:$B$23,'Activity 8'!P$17:P$23,\"N/A\",0,1)","v":"N/A"},{"$f":"_xlfn.XLOOKUP(E20,'Activity 9'!$B$7:$B$13,'Activity 9'!$A$7:$A$13,\"No\",0,1)","v":"No"},{"$f":"_xlfn.XLOOKUP($E20,'Activity 9'!$B$7:$B$13,'Activity 9'!J$7:J$13,\"N/A\",0,1)","v":"N/A"},{"$f":"_xlfn.XLOOKUP($E20,'Activity 9'!$B$7:$B$13,'Activity 9'!K$7:K$13,\"N/A\",0,1)","v":"N/A"},{"$f":"_xlfn.XLOOKUP($E20,'Activity 9'!$B$7:$B$13,'Activity 9'!L$7:L$13,\"N/A\",0,1)","v":"N/A"},{"$f":"_xlfn.XLOOKUP($E20,'Activity 9'!$B$7:$B$13,'Activity 9'!M$7:M$13,\"N/A\",0,1)","v":"N/A"},{"$f":"_xlfn.XLOOKUP($E20,'Activity 9'!$B$7:$B$13,'Activity 9'!N$7:N$13,\"N/A\",0,1)","v":"N/A"},{"$f":"_xlfn.XLOOKUP($E20,'Activity 9'!$B$7:$B$13,'Activity 9'!O$7:O$13,\"N/A\",0,1)","v":"N/A"},{"$f":"_xlfn.XLOOKUP($E20,'Activity 9'!$B$7:$B$13,'Activity 9'!P$7:P$13,\"N/A\",0,1)","v":"N/A"},{"$f":"_xlfn.XLOOKUP($E20,'Activity 9'!$B$7:$B$13,'Activity 9'!Q$7:Q$13,\"N/A\",0,1)","v":"N/A"},{"$f":"_xlfn.XLOOKUP($E20,'Activity 9'!$B$7:$B$13,'Activity 9'!R$7:R$13,\"N/A\",0,1)","v":"N/A"},{"$f":"_xlfn.XLOOKUP($E20,'Activity 9'!$B$7:$B$13,'Activity 9'!S$7:S$13,\"N/A\",0,1)","v":"N/A"},{"$f":"_xlfn.XLOOKUP($E20,'Activity 9'!$B$7:$B$13,'Activity 9'!T$7:T$13,\"N/A\",0,1)","v":"N/A"},{"$f":"_xlfn.XLOOKUP($E20,'Activity 9'!$B$17:$B$23,'Activity 9'!E$17:E$23,\"N/A\",0,1)","v":"N/A"},{"$f":"_xlfn.XLOOKUP($E20,'Activity 9'!$B$17:$B$23,'Activity 9'!F$17:F$23,\"N/A\",0,1)","v":"N/A"},{"$f":"_xlfn.XLOOKUP($E20,'Activity 9'!$B$17:$B$23,'Activity 9'!G$17:G$23,\"N/A\",0,1)","v":"N/A"},{"$f":"_xlfn.XLOOKUP($E20,'Activity 9'!$B$17:$B$23,'Activity 9'!H$17:H$23,\"N/A\",0,1)","v":"N/A"},{"$f":"_xlfn.XLOOKUP($E20,'Activity 9'!$B$17:$B$23,'Activity 9'!I$17:I$23,\"N/A\",0,1)","v":"N/A"},{"$f":"_xlfn.XLOOKUP($E20,'Activity 9'!$B$17:$B$23,'Activity 9'!J$17:J$23,\"N/A\",0,1)","v":"N/A"},{"$f":"_xlfn.XLOOKUP($E20,'Activity 9'!$B$17:$B$23,'Activity 9'!K$17:K$23,\"N/A\",0,1)","v":"N/A"},{"$f":"_xlfn.XLOOKUP($E20,'Activity 9'!$B$17:$B$23,'Activity 9'!L$17:L$23,\"N/A\",0,1)","v":"N/A"},{"$f":"_xlfn.XLOOKUP($E20,'Activity 9'!$B$17:$B$23,'Activity 9'!N$17:N$23,\"N/A\",0,1)","v":"N/A"},{"$f":"_xlfn.XLOOKUP($E20,'Activity 9'!$B$17:$B$23,'Activity 9'!O$17:O$23,\"N/A\",0,1)","v":"N/A"},{"$f":"_xlfn.XLOOKUP($E20,'Activity 9'!$B$17:$B$23,'Activity 9'!Q$17:Q$23,\"N/A\",0,1)","v":"N/A"},{"$f":"_xlfn.XLOOKUP($E20,'Activity 10'!$B$7:$B$13,'Activity 10'!A$7:A$13,\"No\",0,1)","v":"No"},{"$f":"_xlfn.XLOOKUP($E20,'Activity 10'!$B$7:$B$13,'Activity 10'!J$7:J$13,\"N/A\",0,1)","v":"N/A"},{"$f":"_xlfn.XLOOKUP($E20,'Activity 10'!$B$7:$B$13,'Activity 10'!K$7:K$13,\"N/A\",0,1)","v":"N/A"},{"$f":"_xlfn.XLOOKUP($E20,'Activity 10'!$B$7:$B$13,'Activity 10'!L$7:L$13,\"N/A\",0,1)","v":"N/A"},{"$f":"_xlfn.XLOOKUP($E20,'Activity 10'!$B$7:$B$13,'Activity 10'!M$7:M$13,\"N/A\",0,1)","v":"N/A"},{"$f":"_xlfn.XLOOKUP($E20,'Activity 10'!$B$7:$B$13,'Activity 10'!N$7:N$13,\"N/A\",0,1)","v":"N/A"},{"$f":"_xlfn.XLOOKUP($E20,'Activity 10'!$B$7:$B$13,'Activity 10'!O$7:O$13,\"N/A\",0,1)","v":"N/A"},{"$f":"_xlfn.XLOOKUP($E20,'Activity 10'!$B$7:$B$13,'Activity 10'!P$7:P$13,\"N/A\",0,1)","v":"N/A"},{"$f":"_xlfn.XLOOKUP($E20,'Activity 10'!$B$7:$B$13,'Activity 10'!Q$7:Q$13,\"N/A\",0,1)","v":"N/A"},{"$f":"_xlfn.XLOOKUP($E20,'Activity 10'!$B$7:$B$13,'Activity 10'!R$7:R$13,\"N/A\",0,1)","v":"N/A"},{"$f":"_xlfn.XLOOKUP($E20,'Activity 10'!$B$7:$B$13,'Activity 10'!S$7:S$13,\"N/A\",0,1)","v":"N/A"},{"$f":"_xlfn.XLOOKUP($E20,'Activity 10'!$B$7:$B$13,'Activity 10'!T$7:T$13,\"N/A\",0,1)","v":"N/A"},{"$f":"_xlfn.XLOOKUP($E20,'Activity 10'!$B$7:$B$13,'Activity 10'!U$7:U$13,\"N/A\",0,1)","v":"N/A"},{"$f":"_xlfn.XLOOKUP($E20,'Activity 10'!$B$7:$B$13,'Activity 10'!V$7:V$13,\"N/A\",0,1)","v":"N/A"},{"$f":"_xlfn.XLOOKUP($E20,'Activity 10'!$B$17:$B$23,'Activity 10'!E$17:E$23,\"N/A\",0,1)","v":"N/A"},{"$f":"_xlfn.XLOOKUP($E20,'Activity 10'!$B$17:$B$23,'Activity 10'!F$17:F$23,\"N/A\",0,1)","v":"N/A"},{"$f":"_xlfn.XLOOKUP($E20,'Activity 10'!$B$17:$B$23,'Activity 10'!G$17:G$23,\"N/A\",0,1)","v":"N/A"},{"$f":"_xlfn.XLOOKUP($E20,'Activity 10'!$B$17:$B$23,'Activity 10'!H$17:H$23,\"N/A\",0,1)","v":"N/A"},{"$f":"_xlfn.XLOOKUP($E20,'Activity 10'!$B$17:$B$23,'Activity 10'!I$17:I$23,\"N/A\",0,1)","v":"N/A"},{"$f":"_xlfn.XLOOKUP($E20,'Activity 10'!$B$17:$B$23,'Activity 10'!J$17:J$23,\"N/A\",0,1)","v":"N/A"},{"$f":"_xlfn.XLOOKUP($E20,'Activity 10'!$B$17:$B$23,'Activity 10'!K$17:K$23,\"N/A\",0,1)","v":"N/A"},{"$f":"_xlfn.XLOOKUP($E20,'Activity 10'!$B$17:$B$23,'Activity 10'!L$17:L$23,\"N/A\",0,1)","v":"N/A"},{"$f":"_xlfn.XLOOKUP($E20,'Activity 10'!$B$17:$B$23,'Activity 10'!M$17:M$23,\"N/A\",0,1)","v":"N/A"},{"$f":"_xlfn.XLOOKUP($E20,'Activity 10'!$B$17:$B$23,'Activity 10'!N$17:N$23,\"N/A\",0,1)","v":"N/A"},{"$f":"_xlfn.XLOOKUP($E20,'Activity 10'!$B$17:$B$23,'Activity 10'!P$17:P$23,\"N/A\",0,1)","v":"N/A"},{"$f":"_xlfn.XLOOKUP($E20,'Competitive Activity 1'!B$7:B$13,'Competitive Activity 1'!A$7:A$13,\"No\",0,1)","v":"No"},{"$f":"_xlfn.XLOOKUP($E20,'Competitive Activity 1'!$B$7:$B$13,'Competitive Activity 1'!H$7:H$13,\"N/A\",0,1)","v":"N/A"},{"$f":"_xlfn.XLOOKUP($E20,'Competitive Activity 1'!$B$7:$B$13,'Competitive Activity 1'!I$7:I$13,\"N/A\",0,1)","v":"N/A"},{"$f":"_xlfn.XLOOKUP($E20,'Competitive Activity 1'!$B$7:$B$13,'Competitive Activity 1'!J$7:J$13,\"N/A\",0,1)","v":"N/A"},{"$f":"_xlfn.XLOOKUP($E20,'Competitive Activity 1'!$B$7:$B$13,'Competitive Activity 1'!K$7:K$13,\"N/A\",0,1)","v":"N/A"},{"$f":"_xlfn.XLOOKUP($E20,'Competitive Activity 1'!$B$7:$B$13,'Competitive Activity 1'!L$7:L$13,\"N/A\",0,1)","v":"N/A"},{"$f":"_xlfn.XLOOKUP($E20,'Competitive Activity 1'!$B$7:$B$13,'Competitive Activity 1'!M$7:M$13,\"N/A\",0,1)","v":"N/A"},{"$f":"_xlfn.XLOOKUP($E20,'Competitive Activity 1'!$B$7:$B$13,'Competitive Activity 1'!N$7:N$13,\"N/A\",0,1)","v":"N/A"},{"$f":"_xlfn.XLOOKUP($E20,'Competitive Activity 1'!$B$7:$B$13,'Competitive Activity 1'!O$7:O$13,\"N/A\",0,1)","v":"N/A"},{"$f":"_xlfn.XLOOKUP($E20,'Competitive Activity 1'!$B$7:$B$13,'Competitive Activity 1'!P$7:P$13,\"N/A\",0,1)","v":"N/A"},{"$f":"_xlfn.XLOOKUP($E20,'Competitive Activity 1'!$B$7:$B$13,'Competitive Activity 1'!Q$7:Q$13,\"N/A\",0,1)","v":"N/A"},{"$f":"_xlfn.XLOOKUP($E20,'Competitive Activity 1'!$B$7:$B$13,'Competitive Activity 1'!R$7:R$13,\"N/A\",0,1)","v":"N/A"},{"$f":"_xlfn.XLOOKUP($E20,'Competitive Activity 1'!$B$7:$B$13,'Competitive Activity 1'!S$7:S$13,\"N/A\",0,1)","v":"N/A"},{"$f":"_xlfn.XLOOKUP($E20,'Competitive Activity 1'!$B$7:$B$13,'Competitive Activity 1'!T$7:T$13,\"N/A\",0,1)","v":"N/A"},{"$f":"_xlfn.XLOOKUP($E20,'Competitive Activity 1'!$B$7:$B$13,'Competitive Activity 1'!U$7:U$13,\"N/A\",0,1)","v":"N/A"},{"$f":"_xlfn.XLOOKUP($E20,'Competitive Activity 1'!$B$17:$B$23,'Competitive Activity 1'!C$17:C$23,\"N/A\",0,1)","v":"N/A"},{"$f":"_xlfn.XLOOKUP($E20,'Competitive Activity 1'!$B$17:$B$23,'Competitive Activity 1'!D$17:D$23,\"N/A\",0,1)","v":"N/A"},{"$f":"_xlfn.XLOOKUP($E20,'Competitive Activity 1'!$B$17:$B$23,'Competitive Activity 1'!E$17:E$23,\"N/A\",0,1)","v":"N/A"},{"$f":"_xlfn.XLOOKUP($E20,'Competitive Activity 1'!$B$17:$B$23,'Competitive Activity 1'!F$17:F$23,\"N/A\",0,1)","v":"N/A"},{"$f":"_xlfn.XLOOKUP($E20,'Competitive Activity 1'!$B$17:$B$23,'Competitive Activity 1'!G$17:G$23,\"N/A\",0,1)","v":"N/A"},{"$f":"_xlfn.XLOOKUP($E20,'Competitive Activity 1'!$B$17:$B$23,'Competitive Activity 1'!H$17:H$23,\"N/A\",0,1)","v":"N/A"},{"$f":"_xlfn.XLOOKUP($E20,'Competitive Activity 1'!$B$17:$B$23,'Competitive Activity 1'!I$17:I$23,\"N/A\",0,1)","v":"N/A"},{"$f":"_xlfn.XLOOKUP($E20,'Competitive Activity 1'!$B$17:$B$23,'Competitive Activity 1'!J$17:J$23,\"N/A\",0,1)","v":"N/A"},{"$f":"_xlfn.XLOOKUP($E20,'Competitive Activity 1'!$B$17:$B$23,'Competitive Activity 1'!K$17:K$23,\"N/A\",0,1)","v":"N/A"},{"$f":"_xlfn.XLOOKUP($E20,'Competitive Activity 1'!$B$17:$B$23,'Competitive Activity 1'!M$17:M$23,\"N/A\",0,1)","v":"N/A"},{"$f":"_xlfn.XLOOKUP($E20,'Competitive Activity 1'!$B$17:$B$23,'Competitive Activity 1'!N$17:N$23,\"N/A\",0,1)","v":"N/A"},{"$f":"_xlfn.XLOOKUP($E20,'Competitive Activity 1'!$B$17:$B$23,'Competitive Activity 1'!P$17:P$23,\"N/A\",0,1)","v":"N/A"},{"$f":"_xlfn.XLOOKUP($E20,'Competitive Activity 2'!$B$7:$B$13,'Competitive Activity 2'!A$7:A$13,\"No\",0)","v":"No"},{"$f":"_xlfn.XLOOKUP($E20,'Competitive Activity 2'!$B$7:$B$13,'Competitive Activity 2'!L$7:L$13,\"N/A\",0)","v":"N/A"},{"$f":"_xlfn.XLOOKUP($E20,'Competitive Activity 2'!$B$7:$B$13,'Competitive Activity 2'!M$7:M$13,\"N/A\",0)","v":"N/A"},{"$f":"_xlfn.XLOOKUP($E20,'Competitive Activity 2'!$B$7:$B$13,'Competitive Activity 2'!N$7:N$13,\"N/A\",0)","v":"N/A"},{"$f":"_xlfn.XLOOKUP($E20,'Competitive Activity 2'!$B$7:$B$13,'Competitive Activity 2'!O$7:O$13,\"N/A\",0)","v":"N/A"},{"$f":"_xlfn.XLOOKUP($E20,'Competitive Activity 2'!$B$7:$B$13,'Competitive Activity 2'!P$7:P$13,\"N/A\",0)","v":"N/A"},{"$f":"_xlfn.XLOOKUP($E20,'Competitive Activity 2'!$B$7:$B$13,'Competitive Activity 2'!Q$7:Q$13,\"N/A\",0)","v":"N/A"},{"$f":"_xlfn.XLOOKUP($E20,'Competitive Activity 2'!$B$7:$B$13,'Competitive Activity 2'!R$7:R$13,\"N/A\",0)","v":"N/A"},{"$f":"_xlfn.XLOOKUP($E20,'Competitive Activity 2'!$B$7:$B$13,'Competitive Activity 2'!S$7:S$13,\"N/A\",0)","v":"N/A"},{"$f":"_xlfn.XLOOKUP($E20,'Competitive Activity 2'!$B$7:$B$13,'Competitive Activity 2'!T$7:T$13,\"N/A\",0)","v":"N/A"},{"$f":"_xlfn.XLOOKUP($E20,'Competitive Activity 2'!$B$7:$B$13,'Competitive Activity 2'!U$7:U$13,\"N/A\",0)","v":"N/A"},{"$f":"_xlfn.XLOOKUP($E20,'Competitive Activity 2'!$B$17:$B$23,'Competitive Activity 2'!D$17:D$23,\"N/A\",0)","v":"N/A"},{"$f":"_xlfn.XLOOKUP($E20,'Competitive Activity 2'!$B$17:$B$23,'Competitive Activity 2'!E$17:E$23,\"N/A\",0)","v":"N/A"},{"$f":"_xlfn.XLOOKUP($E20,'Competitive Activity 2'!$B$17:$B$23,'Competitive Activity 2'!F$17:F$23,\"N/A\",0)","v":"N/A"},{"$f":"_xlfn.XLOOKUP($E20,'Competitive Activity 2'!$B$17:$B$23,'Competitive Activity 2'!G$17:G$23,\"N/A\",0)","v":"N/A"},{"$f":"_xlfn.XLOOKUP($E20,'Competitive Activity 2'!$B$17:$B$23,'Competitive Activity 2'!H$17:H$23,\"N/A\",0)","v":"N/A"},{"$f":"_xlfn.XLOOKUP($E20,'Competitive Activity 2'!$B$17:$B$23,'Competitive Activity 2'!I$17:I$23,\"N/A\",0)","v":"N/A"},{"$f":"_xlfn.XLOOKUP($E20,'Competitive Activity 2'!$B$17:$B$23,'Competitive Activity 2'!J$17:J$23,\"N/A\",0)","v":"N/A"},{"$f":"_xlfn.XLOOKUP($E20,'Competitive Activity 2'!$B$17:$B$23,'Competitive Activity 2'!K$17:K$23,\"N/A\",0)","v":"N/A"},{"$f":"_xlfn.XLOOKUP($E20,'Competitive Activity 2'!$B$17:$B$23,'Competitive Activity 2'!L$17:L$23,\"N/A\",0)","v":"N/A"},{"$f":"_xlfn.XLOOKUP($E20,'Competitive Activity 2'!$B$17:$B$23,'Competitive Activity 2'!M$17:M$23,\"N/A\",0)","v":"N/A"},{"$f":"_xlfn.XLOOKUP($E20,'Competitive Activity 2'!$B$17:$B$23,'Competitive Activity 2'!N$17:N$23,\"N/A\",0)","v":"N/A"},{"$f":"_xlfn.XLOOKUP($E20,'Competitive Activity 2'!$B$27:$B$33,'Competitive Activity 2'!D$27:D$33,\"N/A\",0)","v":"N/A"},{"$f":"_xlfn.XLOOKUP($E20,'Competitive Activity 2'!$B$27:$B$33,'Competitive Activity 2'!E$27:E$33,\"N/A\",0)","v":"N/A"},{"$f":"_xlfn.XLOOKUP($E20,'Competitive Activity 2'!$B$27:$B$33,'Competitive Activity 2'!F$27:F$33,\"N/A\",0)","v":"N/A"},{"$f":"_xlfn.XLOOKUP($E20,'Competitive Activity 2'!$B$27:$B$33,'Competitive Activity 2'!G$27:G$33,\"N/A\",0)","v":"N/A"},{"$f":"_xlfn.XLOOKUP($E20,'Competitive Activity 2'!$B$27:$B$33,'Competitive Activity 2'!H$27:H$33,\"N/A\",0)","v":"N/A"},{"$f":"_xlfn.XLOOKUP($E20,'Competitive Activity 2'!$B$27:$B$33,'Competitive Activity 2'!I$27:I$33,\"N/A\",0)","v":"N/A"},{"$f":"_xlfn.XLOOKUP($E20,'Competitive Activity 2'!$B$27:$B$33,'Competitive Activity 2'!J$27:J$33,\"N/A\",0)","v":"N/A"},{"$f":"_xlfn.XLOOKUP($E20,'Competitive Activity 2'!$B$27:$B$33,'Competitive Activity 2'!K$27:K$33,\"N/A\",0)","v":"N/A"},{"$f":"_xlfn.XLOOKUP($E20,'Competitive Activity 2'!$B$27:$B$33,'Competitive Activity 2'!M$27:M$33,\"N/A\",0)","v":"N/A"}]
[{"$f":"'1-Cover Sheet'!$C$8","v":"Select One"},{"$f":"'1-Cover Sheet'!$F$8","v":"Select One"},{"$f":"'Summary Sheet'!$D$8","v":0},{"$f":"'Summary Sheet'!$D$10","v":0},{"$f":"'Drop Down Box'!B185","v":0},{"$f":"'Drop Down Box'!C185","v":0},{"$f":"'Drop Down Box'!D185","v":"Select One"},{"$f":"_xlfn.XLOOKUP(E21,'Drop Down Box'!$B$166:$B$249,'Drop Down Box'!$A$166:$A$249,\"Unknown\",0)","v":"Activity 1"},{"$f":"_xlfn.XLOOKUP(E21,'Activity 3'!B$8:B$14,'Activity 3'!P$8:P$14,\"N/A\",0)","v":"N/A"},{"$f":"_xlfn.XLOOKUP($E21,'Activity 3'!$B$8:$B$14,'Activity 3'!Q$8:Q$14,\"N/A\",0)","v":"N/A"},{"$f":"_xlfn.XLOOKUP($E21,'Activity 3'!$B$8:$B$14,'Activity 3'!H$8:H$14,\"N/A\",0)","v":"N/A"},{"$f":"_xlfn.XLOOKUP(E21,'Activity 3'!B$8:B$14,'Activity 3'!I13:I19,\"N/A\",0)","v":"N/A"},{"$f":"_xlfn.XLOOKUP($E21,'Activity 3'!$B$8:$B$14,'Activity 3'!J13:J19,\"N/A\",0)","v":"N/A"},{"$f":"_xlfn.XLOOKUP($E21,'Activity 1'!$B$7:$B$13,'Activity 1'!$A$7:$A$13,\"No\",0,1)","v":"No"},{"$f":"_xlfn.XLOOKUP($E21,'Activity 1'!$B$7:$B$13,'Activity 1'!$H$7:$H$13,\"N/A\",0,1)","v":"N/A"},{"$f":"_xlfn.XLOOKUP($E21,'Activity 1'!$B$7:$B$13,'Activity 1'!I$7:I$13,\"N/A\",0,1)","v":"N/A"},{"$f":"_xlfn.XLOOKUP($E21,'Activity 1'!$B$7:$B$13,'Activity 1'!J$7:J$13,\"N/A\",0,1)","v":"N/A"},{"$f":"_xlfn.XLOOKUP($E21,'Activity 1'!$B$7:$B$13,'Activity 1'!K$7:K$13,\"N/A\",0,1)","v":"N/A"},{"$f":"_xlfn.XLOOKUP($E21,'Activity 1'!$B$7:$B$13,'Activity 1'!L$7:L$13,\"N/A\",0,1)","v":"N/A"},{"$f":"_xlfn.XLOOKUP($E21,'Activity 1'!$B$7:$B$13,'Activity 1'!M$7:M$13,\"N/A\",0,1)","v":"N/A"},{"$f":"_xlfn.XLOOKUP($E21,'Activity 1'!$B$7:$B$13,'Activity 1'!N$7:N$13,\"N/A\",0,1)","v":"N/A"},0,{"$f":"_xlfn.XLOOKUP($E21,'Activity 1'!$B$7:$B$13,'Activity 1'!O$7:O$13,\"N/A\",0,1)","v":"N/A"},{"$f":"_xlfn.XLOOKUP($E21,'Activity 1'!$B$7:$B$13,'Activity 1'!P$7:P$13,\"N/A\",0,1)","v":"N/A"},{"$f":"_xlfn.XLOOKUP($E21,'Activity 1'!$B$7:$B$13,'Activity 1'!Q$7:Q$13,\"N/A\",0,1)","v":"N/A"},{"$f":"_xlfn.XLOOKUP($E21,'Activity 1'!$B$7:$B$13,'Activity 1'!R$7:R$13,\"N/A\",0,1)","v":"N/A"},{"$f":"_xlfn.XLOOKUP($E21,'Activity 1'!$B$7:$B$13,'Activity 1'!S$7:S$13,\"N/A\",0,1)","v":"N/A"},{"$f":"_xlfn.XLOOKUP($E21,'Activity 1'!$B$7:$B$13,'Activity 1'!T$7:T$13,\"N/A\",0,1)","v":"N/A"},{"$f":"_xlfn.XLOOKUP($E21,'Activity 1'!$B$7:$B$13,'Activity 1'!U$7:U$13,\"N/A\",0,1)","v":"N/A"},{"$f":"_xlfn.XLOOKUP($E21,'Activity 1'!$B$7:$B$13,'Activity 1'!V$7:V$13,\"N/A\",0,1)","v":"N/A"},{"$f":"_xlfn.XLOOKUP($E21,'Activity 1'!$B$17:$B$23,'Activity 1'!C$17:C$23,\"N/A\",0,1)","v":"N/A"},{"$f":"_xlfn.XLOOKUP($E21,'Activity 1'!$B$17:$B$23,'Activity 1'!D$17:D$23,\"N/A\",0,1)","v":"N/A"},{"$f":"_xlfn.XLOOKUP($E21,'Activity 1'!$B$17:$B$23,'Activity 1'!E$17:E$23,\"N/A\",0,1)","v":"N/A"},{"$f":"_xlfn.XLOOKUP($E21,'Activity 1'!$B$17:$B$23,'Activity 1'!F$17:F$23,\"N/A\",0,1)","v":"N/A"},{"$f":"_xlfn.XLOOKUP($E21,'Activity 1'!$B$17:$B$23,'Activity 1'!G$17:G$23,\"N/A\",0,1)","v":"N/A"},{"$f":"_xlfn.XLOOKUP($E21,'Activity 1'!$B$17:$B$23,'Activity 1'!H$17:H$23,\"N/A\",0,1)","v":"N/A"},{"$f":"_xlfn.XLOOKUP($E21,'Activity 1'!$B$17:$B$23,'Activity 1'!I$17:I$23,\"N/A\",0,1)","v":"N/A"},{"$f":"_xlfn.XLOOKUP($E21,'Activity 1'!$B$17:$B$23,'Activity 1'!J$17:J$23,\"N/A\",0,1)","v":"N/A"},{"$f":"_xlfn.XLOOKUP($E21,'Activity 1'!$B$17:$B$23,'Activity 1'!K$17:K$23,\"N/A\",0,1)","v":"N/A"},{"$f":"_xlfn.XLOOKUP($E21,'Activity 1'!$B$17:$B$23,'Activity 1'!L$17:L$23,\"N/A\",0,1)","v":"N/A"},{"$f":"_xlfn.XLOOKUP($E21,'Activity 1'!$B$17:$B$23,'Activity 1'!M$17:M$23,\"N/A\",0,1)","v":"N/A"},{"$f":"_xlfn.XLOOKUP($E21,'Activity 1'!$B$17:$B$23,'Activity 1'!O$17:O$23,\"N/A\",0,1)","v":"N/A"},{"$f":"_xlfn.XLOOKUP($E21,'Activity 1'!$B$17:$B$23,'Activity 1'!Q$17:Q$23,\"N/A\",0,1)","v":"N/A"},{"$f":"_xlfn.XLOOKUP($E21,'Activity 2'!$B$7:$B$13,'Activity 2'!$A$7:$A$13,\"No\",0,1)","v":"No"},{"$f":"_xlfn.XLOOKUP($E21,'Activity 2'!B$7:B$13,'Activity 2'!H$7:H$13,\"N/A\",0)","v":"N/A"},{"$f":"_xlfn.XLOOKUP($E21,'Activity 2'!C$7:C$13,'Activity 2'!I$7:I$13,\"N/A\",0)","v":"N/A"},{"$f":"_xlfn.XLOOKUP($E21,'Activity 2'!D$7:D$13,'Activity 2'!J$7:J$13,\"N/A\",0)","v":"N/A"},{"$f":"_xlfn.XLOOKUP($E21,'Activity 2'!E$7:E$13,'Activity 2'!K$7:K$13,\"N/A\",0)","v":"N/A"},{"$f":"_xlfn.XLOOKUP($E21,'Activity 2'!F$7:F$13,'Activity 2'!L$7:L$13,\"N/A\",0)","v":"N/A"},{"$f":"_xlfn.XLOOKUP($E21,'Activity 2'!G$7:G$13,'Activity 2'!M$7:M$13,\"N/A\",0)","v":"N/A"},{"$f":"_xlfn.XLOOKUP($E21,'Activity 2'!H$7:H$13,'Activity 2'!N$7:N$13,\"N/A\",0)","v":"N/A"},{"$f":"_xlfn.XLOOKUP($E21,'Activity 2'!I$7:I$13,'Activity 2'!O$7:O$13,\"N/A\",0)","v":"N/A"},{"$f":"_xlfn.XLOOKUP($E21,'Activity 2'!J$7:J$13,'Activity 2'!P$7:P$13,\"N/A\",0)","v":"N/A"},{"$f":"_xlfn.XLOOKUP($E21,'Activity 2'!K$7:K$13,'Activity 2'!Q$7:Q$13,\"N/A\",0)","v":"N/A"},{"$f":"_xlfn.XLOOKUP($E21,'Activity 2'!L$7:L$13,'Activity 2'!R$7:R$13,\"N/A\",0)","v":"N/A"},{"$f":"_xlfn.XLOOKUP($E21,'Activity 2'!M$7:M$13,'Activity 2'!S$7:S$13,\"N/A\",0)","v":"N/A"},{"$f":"_xlfn.XLOOKUP($E21,'Activity 2'!N$7:N$13,'Activity 2'!T$7:T$13,\"N/A\",0)","v":"N/A"},{"$f":"_xlfn.XLOOKUP($E21,'Activity 2'!O$7:O$13,'Activity 2'!U$7:U$13,\"N/A\",0)","v":"N/A"},{"$f":"_xlfn.XLOOKUP($E21,'Activity 2'!P$7:P$13,'Activity 2'!V$7:V$13,\"N/A\",0)","v":"N/A"},{"$f":"_xlfn.XLOOKUP($E21,'Activity 2'!$B$17:$B$23,'Activity 2'!C$17:C$23,\"N/A\",0,1)","v":"N/A"},{"$f":"_xlfn.XLOOKUP($E21,'Activity 2'!$B$17:$B$23,'Activity 2'!D$17:D$23,\"N/A\",0,1)","v":"N/A"},{"$f":"_xlfn.XLOOKUP($E21,'Activity 2'!$B$17:$B$23,'Activity 2'!E$17:E$23,\"N/A\",0,1)","v":"N/A"},{"$f":"_xlfn.XLOOKUP($E21,'Activity 2'!$B$17:$B$23,'Activity 2'!F$17:F$23,\"N/A\",0,1)","v":"N/A"},{"$f":"_xlfn.XLOOKUP($E21,'Activity 2'!$B$17:$B$23,'Activity 2'!G$17:G$23,\"N/A\",0,1)","v":"N/A"},{"$f":"_xlfn.XLOOKUP($E21,'Activity 2'!$B$17:$B$23,'Activity 2'!H$17:H$23,\"N/A\",0,1)","v":"N/A"},{"$f":"_xlfn.XLOOKUP($E21,'Activity 2'!$B$17:$B$23,'Activity 2'!I$17:I$23,\"N/A\",0,1)","v":"N/A"},{"$f":"_xlfn.XLOOKUP($E21,'Activity 2'!$B$17:$B$23,'Activity 2'!J$17:J$23,\"N/A\",0,1)","v":"N/A"},{"$f":"_xlfn.XLOOKUP($E21,'Activity 2'!$B$17:$B$23,'Activity 2'!K$17:K$23,\"N/A\",0,1)","v":"N/A"},{"$f":"_xlfn.XLOOKUP($E21,'Activity 2'!$B$17:$B$23,'Activity 2'!L$17:L$23,\"N/A\",0,1)","v":"N/A"},{"$f":"_xlfn.XLOOKUP($E21,'Activity 2'!$B$17:$B$23,'Activity 2'!M$17:M$23,\"N/A\",0,1)","v":"N/A"},{"$f":"_xlfn.XLOOKUP($E21,'Activity 2'!$B$17:$B$23,'Activity 2'!O$17:O$23,\"N/A\",0,1)","v":"N/A"},{"$f":"_xlfn.XLOOKUP($E21,'Activity 2'!$B$17:$B$23,'Activity 2'!Q$17:Q$23,\"N/A\",0,1)","v":"N/A"},null,{"$f":"_xlfn.XLOOKUP($E21,'Activity 3'!$B$8:$B$14,'Activity 3'!K$8:K$14,\"N/A\",0,1)","v":"N/A"},{"$f":"_xlfn.XLOOKUP($E21,'Activity 3'!$B$8:$B$14,'Activity 3'!L$8:L$14,\"N/A\",0,1)","v":"N/A"},{"$f":"_xlfn.XLOOKUP($E21,'Activity 3'!$B$8:$B$14,'Activity 3'!M$8:M$14,\"N/A\",0,1)","v":"N/A"},{"$f":"_xlfn.XLOOKUP($E21,'Activity 3'!$B$8:$B$14,'Activity 3'!N$8:N$14,\"N/A\",0,1)","v":"N/A"},{"$f":"_xlfn.XLOOKUP($E21,'Activity 3'!$B$8:$B$14,'Activity 3'!O$8:O$14,\"N/A\",0,1)","v":"N/A"},{"$f":"_xlfn.XLOOKUP($E21,'Activity 3'!$B$8:$B$14,'Activity 3'!R$8:R$14,\"N/A\",0,1)","v":"N/A"},{"$f":"_xlfn.XLOOKUP($E21,'Activity 4'!$B$8:$B$14,'Activity 4'!$A$8:$A$14,\"No\",0,1)","v":"No"},{"$f":"_xlfn.XLOOKUP($E21,'Activity 4'!$B$8:$B$14,'Activity 4'!L$8:L$14,\"N/A\",0,1)","v":"N/A"},{"$f":"_xlfn.XLOOKUP($E21,'Activity 4'!$B$8:$B$14,'Activity 4'!I$8:I$14,\"N/A\",0,1)","v":"N/A"},{"$f":"_xlfn.XLOOKUP($E21,'Activity 4'!$B$8:$B$14,'Activity 4'!M$8:M$14,\"N/A\",0,1)","v":"N/A"},{"$f":"_xlfn.XLOOKUP($E21,'Activity 5'!$B$8:$B$14,'Activity 5'!$A$8:$A$14,\"No\",0,1)","v":"No"},{"$f":"_xlfn.XLOOKUP($E21,'Activity 5'!$B$8:$B$14,'Activity 5'!J$8:J$14,\"N/A\",0,1)","v":"N/A"},{"$f":"_xlfn.XLOOKUP($E21,'Activity 5'!$B$8:$B$14,'Activity 5'!K$8:K$14,\"N/A\",0,1)","v":"N/A"},{"$f":"_xlfn.XLOOKUP($E21,'Activity 5'!$B$8:$B$14,'Activity 5'!N$8:N$14,\"N/A\",0,1)","v":"N/A"},{"$f":"_xlfn.XLOOKUP($E21,'Activity 5'!$B$8:$B$14,'Activity 5'!O$8:O$14,\"N/A\",0,1)","v":"N/A"},{"$f":"_xlfn.XLOOKUP($E21,'Activity 5'!$B$8:$B$14,'Activity 5'!P$8:P$14,\"N/A\",0,1)","v":"N/A"},{"$f":"_xlfn.XLOOKUP($E21,'Activity 5'!$B$8:$B$14,'Activity 5'!Q$8:Q$14,\"N/A\",0,1)","v":"N/A"},{"$f":"_xlfn.XLOOKUP($E21,'Activity 5'!$B$8:$B$14,'Activity 5'!R$8:R$14,\"N/A\",0,1)","v":"N/A"},{"$f":"_xlfn.XLOOKUP($E21,'Activity 6'!$B$7:$B$13,'Activity 6'!A$7:A$13,\"No\",0,1)","v":"No"},{"$f":"_xlfn.XLOOKUP($E21,'Activity 6'!$B$7:$B$13,'Activity 6'!K$7:K$13,\"N/A\",0,1)","v":"N/A"},{"$f":"_xlfn.XLOOKUP($E21,'Activity 6'!$B$7:$B$13,'Activity 6'!L$7:L$13,\"N/A\",0,1)","v":"N/A"},{"$f":"_xlfn.XLOOKUP($E21,'Activity 6'!$B$7:$B$13,'Activity 6'!M$7:M$13,\"N/A\",0,1)","v":"N/A"},{"$f":"_xlfn.XLOOKUP($E21,'Activity 6'!$B$7:$B$13,'Activity 6'!N$7:N$13,\"N/A\",0,1)","v":"N/A"},{"$f":"_xlfn.XLOOKUP($E21,'Activity 6'!$B$7:$B$13,'Activity 6'!O$7:O$13,\"N/A\",0,1)","v":"N/A"},{"$f":"_xlfn.XLOOKUP($E21,'Activity 6'!$B$7:$B$13,'Activity 6'!P$7:P$13,\"N/A\",0,1)","v":"N/A"},{"$f":"_xlfn.XLOOKUP($E21,'Activity 6'!$B$7:$B$13,'Activity 6'!Q$7:Q$13,\"N/A\",0,1)","v":"N/A"},{"$f":"_xlfn.XLOOKUP($E21,'Activity 6'!$B$7:$B$13,'Activity 6'!R$7:R$13,\"N/A\",0,1)","v":"N/A"},{"$f":"_xlfn.XLOOKUP($E21,'Activity 6'!$B$7:$B$13,'Activity 6'!S$7:S$13,\"N/A\",0,1)","v":"N/A"},{"$f":"_xlfn.XLOOKUP($E21,'Activity 6'!$B$7:$B$13,'Activity 6'!T$7:T$13,\"N/A\",0,1)","v":"N/A"},{"$f":"_xlfn.XLOOKUP($E21,'Activity 6'!$B$7:$B$13,'Activity 6'!U$7:U$13,\"N/A\",0,1)","v":"N/A"},{"$f":"_xlfn.XLOOKUP($E21,'Activity 6'!$B$22:$B$28,'Activity 6'!C$22:C$28,\"N/A\",0,1)","v":"N/A"},{"$f":"_xlfn.XLOOKUP($E21,'Activity 6'!$B$22:$B$28,'Activity 6'!D$22:D$28,\"N/A\",0,1)","v":"N/A"},{"$f":"_xlfn.XLOOKUP($E21,'Activity 6'!$B$22:$B$28,'Activity 6'!E$22:E$28,\"N/A\",0,1)","v":"N/A"},{"$f":"_xlfn.XLOOKUP($E21,'Activity 6'!$B$22:$B$28,'Activity 6'!F$22:F$28,\"N/A\",0,1)","v":"N/A"},{"$f":"_xlfn.XLOOKUP($E21,'Activity 6'!$B$22:$B$28,'Activity 6'!G$22:G$28,\"N/A\",0,1)","v":"N/A"},{"$f":"_xlfn.XLOOKUP($E21,'Activity 6'!$B$22:$B$28,'Activity 6'!H$22:H$28,\"N/A\",0,1)","v":"N/A"},{"$f":"_xlfn.XLOOKUP($E21,'Activity 6'!$B$22:$B$28,'Activity 6'!I$22:I$28,\"N/A\",0,1)","v":"N/A"},{"$f":"_xlfn.XLOOKUP($E21,'Activity 6'!$B$22:$B$28,'Activity 6'!J$22:J$28,\"N/A\",0,1)","v":"N/A"},{"$f":"_xlfn.XLOOKUP($E21,'Activity 6'!$B$22:$B$28,'Activity 6'!K$22:K$28,\"N/A\",0,1)","v":"N/A"},{"$f":"_xlfn.XLOOKUP($E21,'Activity 6'!$B$22:$B$28,'Activity 6'!L$22:L$28,\"N/A\",0,1)","v":"N/A"},{"$f":"_xlfn.XLOOKUP($E21,'Activity 6'!$B$22:$B$28,'Activity 6'!M$22:M$28,\"N/A\",0,1)","v":"N/A"},{"$f":"_xlfn.XLOOKUP($E21,'Activity 6'!$B$22:$B$28,'Activity 6'!N$22:N$28,\"N/A\",0,1)","v":"N/A"},{"$f":"_xlfn.XLOOKUP($E21,'Activity 6'!$B$32:$B$38,'Activity 6'!C$32:C$38,\"N/A\",0,1)","v":"N/A"},{"$f":"_xlfn.XLOOKUP($E21,'Activity 6'!$B$32:$B$38,'Activity 6'!D$32:D$38,\"N/A\",0,1)","v":"N/A"},{"$f":"_xlfn.XLOOKUP($E21,'Activity 6'!$B$32:$B$38,'Activity 6'!E$32:E$38,\"N/A\",0,1)","v":"N/A"},{"$f":"_xlfn.XLOOKUP($E21,'Activity 6'!$B$32:$B$38,'Activity 6'!F$32:F$38,\"N/A\",0,1)","v":"N/A"},{"$f":"_xlfn.XLOOKUP($E21,'Activity 6'!$B$32:$B$38,'Activity 6'!G$32:G$38,\"N/A\",0,1)","v":"N/A"},{"$f":"_xlfn.XLOOKUP($E21,'Activity 6'!$B$32:$B$38,'Activity 6'!H$32:H$38,\"N/A\",0,1)","v":"N/A"},{"$f":"_xlfn.XLOOKUP($E21,'Activity 6'!$B$32:$B$38,'Activity 6'!I$32:I$38,\"N/A\",0,1)","v":"N/A"},{"$f":"_xlfn.XLOOKUP($E21,'Activity 6'!$B$32:$B$38,'Activity 6'!J$32:J$38,\"N/A\",0,1)","v":"N/A"},{"$f":"_xlfn.XLOOKUP($E21,'Activity 6'!$B$32:$B$38,'Activity 6'!K$32:K$38,\"N/A\",0,1)","v":"N/A"},{"$f":"_xlfn.XLOOKUP($E21,'Activity 6'!$B$32:$B$38,'Activity 6'!M$32:M$38,\"N/A\",0,1)","v":"N/A"},{"$f":"_xlfn.XLOOKUP($E21,'Activity 7'!$B$7:$B$13,'Activity 7'!$A$7:$A$13,\"No\",0,1)","v":"No"},{"$f":"_xlfn.XLOOKUP($E21,'Activity 7'!$B$7:$B$13,'Activity 7'!M$7:M$13,\"N/A\",0,1)","v":"N/A"},{"$f":"_xlfn.XLOOKUP($E21,'Activity 7'!$B$7:$B$13,'Activity 7'!K$7:K$13,\"N/A\",0,1)","v":"N/A"},{"$f":"_xlfn.XLOOKUP($E21,'Activity 7'!$B$7:$B$13,'Activity 7'!N$7:N$13,\"N/A\",0,1)","v":"N/A"},{"$f":"_xlfn.XLOOKUP($E21,'Activity 7'!$B$7:$B$13,'Activity 7'!O$7:O$13,\"N/A\",0,1)","v":"N/A"},{"$f":"_xlfn.XLOOKUP($E21,'Activity 7'!$B$7:$B$13,'Activity 7'!P$7:P$13,\"N/A\",0,1)","v":"N/A"},{"$f":"_xlfn.XLOOKUP($E21,'Activity 7'!$B$7:$B$13,'Activity 7'!Q$7:Q$13,\"N/A\",0,1)","v":"N/A"},{"$f":"_xlfn.XLOOKUP($E21,'Activity 7'!$B$7:$B$13,'Activity 7'!R$7:R$13,\"N/A\",0,1)","v":"N/A"},{"$f":"_xlfn.XLOOKUP($E21,'Activity 7'!$B$7:$B$13,'Activity 7'!S$7:S$13,\"N/A\",0,1)","v":"N/A"},{"$f":"_xlfn.XLOOKUP($E21,'Activity 7'!$B$7:$B$13,'Activity 7'!T$7:T$13,\"N/A\",0,1)","v":"N/A"},{"$f":"_xlfn.XLOOKUP($E21,'Activity 7'!$B$7:$B$13,'Activity 7'!U$7:U$13,\"N/A\",0,1)","v":"N/A"},{"$f":"_xlfn.XLOOKUP($E21,'Activity 7'!$B$7:$B$13,'Activity 7'!V$7:V$13,\"N/A\",0,1)","v":"N/A"},{"$f":"_xlfn.XLOOKUP($E21,'Activity 7'!$B$17:$B$23,'Activity 7'!E$17:E$23,\"N/A\",0,1)","v":"N/A"},{"$f":"_xlfn.XLOOKUP($E21,'Activity 7'!$B$17:$B$23,'Activity 7'!G$17:G$23,\"N/A\",0,1)","v":"N/A"},{"$f":"_xlfn.XLOOKUP($E21,'Activity 7'!$B$17:$B$23,'Activity 7'!I$17:I$23,\"N/A\",0,1)","v":"N/A"},{"$f":"_xlfn.XLOOKUP($E21,'Activity 7'!$B$17:$B$23,'Activity 7'!J$17:J$23,\"N/A\",0,1)","v":"N/A"},{"$f":"_xlfn.XLOOKUP($E21,'Activity 7'!$B$17:$B$23,'Activity 7'!K$17:K$23,\"N/A\",0,1)","v":"N/A"},{"$f":"_xlfn.XLOOKUP($E21,'Activity 7'!$B$17:$B$23,'Activity 7'!L$17:L$23,\"N/A\",0,1)","v":"N/A"},{"$f":"_xlfn.XLOOKUP($E21,'Activity 7'!$B$17:$B$23,'Activity 7'!M$17:M$23,\"N/A\",0,1)","v":"N/A"},{"$f":"_xlfn.XLOOKUP($E21,'Activity 7'!$B$17:$B$23,'Activity 7'!N$17:N$23,\"N/A\",0,1)","v":"N/A"},{"$f":"_xlfn.XLOOKUP($E21,'Activity 7'!$B$17:$B$23,'Activity 7'!P$17:P$23,\"N/A\",0,1)","v":"N/A"},{"$f":"_xlfn.XLOOKUP($E21,'Activity 8'!$B$7:$B$13,'Activity 8'!A$7:A$13,\"No\",0,1)","v":"No"},{"$f":"_xlfn.XLOOKUP($E21,'Activity 8'!$B$7:$B$13,'Activity 8'!I$7:I$13,\"N/A\",0,1)","v":"N/A"},{"$f":"_xlfn.XLOOKUP($E21,'Activity 8'!$B$7:$B$13,'Activity 8'!J$7:J$13,\"N/A\",0,1)","v":"N/A"},{"$f":"_xlfn.XLOOKUP($E21,'Activity 8'!$B$7:$B$13,'Activity 8'!K$7:K$13,\"N/A\",0,1)","v":"N/A"},{"$f":"_xlfn.XLOOKUP($E21,'Activity 8'!$B$7:$B$13,'Activity 8'!L$7:L$13,\"N/A\",0,1)","v":"N/A"},{"$f":"_xlfn.XLOOKUP($E21,'Activity 8'!$B$7:$B$13,'Activity 8'!M$7:M$13,\"N/A\",0,1)","v":"N/A"},{"$f":"_xlfn.XLOOKUP($E21,'Activity 8'!$B$7:$B$13,'Activity 8'!N$7:N$13,\"N/A\",0,1)","v":"N/A"},{"$f":"_xlfn.XLOOKUP($E21,'Activity 8'!$B$7:$B$13,'Activity 8'!O$7:O$13,\"N/A\",0,1)","v":"N/A"},{"$f":"_xlfn.XLOOKUP($E21,'Activity 8'!$B$7:$B$13,'Activity 8'!P$7:P$13,\"N/A\",0,1)","v":"N/A"},{"$f":"_xlfn.XLOOKUP($E21,'Activity 8'!$B$7:$B$13,'Activity 8'!Q$7:Q$13,\"N/A\",0,1)","v":"N/A"},{"$f":"_xlfn.XLOOKUP($E21,'Activity 8'!$B$7:$B$13,'Activity 8'!R$7:R$13,\"N/A\",0,1)","v":"N/A"},{"$f":"_xlfn.XLOOKUP($E21,'Activity 8'!$B$7:$B$13,'Activity 8'!S$7:S$13,\"N/A\",0,1)","v":"N/A"},{"$f":"_xlfn.XLOOKUP($E21,'Activity 8'!$B$7:$B$13,'Activity 8'!T$7:T$13,\"N/A\",0,1)","v":"N/A"},{"$f":"_xlfn.XLOOKUP($E21,'Activity 8'!$B$7:$B$13,'Activity 8'!U$7:U$13,\"N/A\",0,1)","v":"N/A"},{"$f":"_xlfn.XLOOKUP($E21,'Activity 8'!$B$7:$B$13,'Activity 8'!V$7:V$13,\"N/A\",0,1)","v":"N/A"},{"$f":"_xlfn.XLOOKUP($E21,'Activity 8'!$B$17:$B$23,'Activity 8'!D$17:D$23,\"N/A\",0,1)","v":"N/A"},{"$f":"_xlfn.XLOOKUP($E21,'Activity 8'!$B$17:$B$23,'Activity 8'!E$17:E$23,\"N/A\",0,1)","v":"N/A"},{"$f":"_xlfn.XLOOKUP($E21,'Activity 8'!$B$17:$B$23,'Activity 8'!F$17:F$23,\"N/A\",0,1)","v":"N/A"},{"$f":"_xlfn.XLOOKUP($E21,'Activity 8'!$B$17:$B$23,'Activity 8'!G$17:G$23,\"N/A\",0,1)","v":"N/A"},{"$f":"_xlfn.XLOOKUP($E21,'Activity 8'!$B$17:$B$23,'Activity 8'!H$17:H$23,\"N/A\",0,1)","v":"N/A"},{"$f":"_xlfn.XLOOKUP($E21,'Activity 8'!$B$17:$B$23,'Activity 8'!I$17:I$23,\"N/A\",0,1)","v":"N/A"},{"$f":"_xlfn.XLOOKUP($E21,'Activity 8'!$B$17:$B$23,'Activity 8'!J$17:J$23,\"N/A\",0,1)","v":"N/A"},{"$f":"_xlfn.XLOOKUP($E21,'Activity 8'!$B$17:$B$23,'Activity 8'!K$17:K$23,\"N/A\",0,1)","v":"N/A"},{"$f":"_xlfn.XLOOKUP($E21,'Activity 8'!$B$17:$B$23,'Activity 8'!L$17:L$23,\"N/A\",0,1)","v":"N/A"},{"$f":"_xlfn.XLOOKUP($E21,'Activity 8'!$B$17:$B$23,'Activity 8'!M$17:M$23,\"N/A\",0,1)","v":"N/A"},{"$f":"_xlfn.XLOOKUP($E21,'Activity 8'!$B$17:$B$23,'Activity 8'!N$17:N$23,\"N/A\",0,1)","v":"N/A"},{"$f":"_xlfn.XLOOKUP($E21,'Activity 8'!$B$17:$B$23,'Activity 8'!P$17:P$23,\"N/A\",0,1)","v":"N/A"},{"$f":"_xlfn.XLOOKUP(E21,'Activity 9'!$B$7:$B$13,'Activity 9'!$A$7:$A$13,\"No\",0,1)","v":"No"},{"$f":"_xlfn.XLOOKUP($E21,'Activity 9'!$B$7:$B$13,'Activity 9'!J$7:J$13,\"N/A\",0,1)","v":"N/A"},{"$f":"_xlfn.XLOOKUP($E21,'Activity 9'!$B$7:$B$13,'Activity 9'!K$7:K$13,\"N/A\",0,1)","v":"N/A"},{"$f":"_xlfn.XLOOKUP($E21,'Activity 9'!$B$7:$B$13,'Activity 9'!L$7:L$13,\"N/A\",0,1)","v":"N/A"},{"$f":"_xlfn.XLOOKUP($E21,'Activity 9'!$B$7:$B$13,'Activity 9'!M$7:M$13,\"N/A\",0,1)","v":"N/A"},{"$f":"_xlfn.XLOOKUP($E21,'Activity 9'!$B$7:$B$13,'Activity 9'!N$7:N$13,\"N/A\",0,1)","v":"N/A"},{"$f":"_xlfn.XLOOKUP($E21,'Activity 9'!$B$7:$B$13,'Activity 9'!O$7:O$13,\"N/A\",0,1)","v":"N/A"},{"$f":"_xlfn.XLOOKUP($E21,'Activity 9'!$B$7:$B$13,'Activity 9'!P$7:P$13,\"N/A\",0,1)","v":"N/A"},{"$f":"_xlfn.XLOOKUP($E21,'Activity 9'!$B$7:$B$13,'Activity 9'!Q$7:Q$13,\"N/A\",0,1)","v":"N/A"},{"$f":"_xlfn.XLOOKUP($E21,'Activity 9'!$B$7:$B$13,'Activity 9'!R$7:R$13,\"N/A\",0,1)","v":"N/A"},{"$f":"_xlfn.XLOOKUP($E21,'Activity 9'!$B$7:$B$13,'Activity 9'!S$7:S$13,\"N/A\",0,1)","v":"N/A"},{"$f":"_xlfn.XLOOKUP($E21,'Activity 9'!$B$7:$B$13,'Activity 9'!T$7:T$13,\"N/A\",0,1)","v":"N/A"},{"$f":"_xlfn.XLOOKUP($E21,'Activity 9'!$B$17:$B$23,'Activity 9'!E$17:E$23,\"N/A\",0,1)","v":"N/A"},{"$f":"_xlfn.XLOOKUP($E21,'Activity 9'!$B$17:$B$23,'Activity 9'!F$17:F$23,\"N/A\",0,1)","v":"N/A"},{"$f":"_xlfn.XLOOKUP($E21,'Activity 9'!$B$17:$B$23,'Activity 9'!G$17:G$23,\"N/A\",0,1)","v":"N/A"},{"$f":"_xlfn.XLOOKUP($E21,'Activity 9'!$B$17:$B$23,'Activity 9'!H$17:H$23,\"N/A\",0,1)","v":"N/A"},{"$f":"_xlfn.XLOOKUP($E21,'Activity 9'!$B$17:$B$23,'Activity 9'!I$17:I$23,\"N/A\",0,1)","v":"N/A"},{"$f":"_xlfn.XLOOKUP($E21,'Activity 9'!$B$17:$B$23,'Activity 9'!J$17:J$23,\"N/A\",0,1)","v":"N/A"},{"$f":"_xlfn.XLOOKUP($E21,'Activity 9'!$B$17:$B$23,'Activity 9'!K$17:K$23,\"N/A\",0,1)","v":"N/A"},{"$f":"_xlfn.XLOOKUP($E21,'Activity 9'!$B$17:$B$23,'Activity 9'!L$17:L$23,\"N/A\",0,1)","v":"N/A"},{"$f":"_xlfn.XLOOKUP($E21,'Activity 9'!$B$17:$B$23,'Activity 9'!N$17:N$23,\"N/A\",0,1)","v":"N/A"},{"$f":"_xlfn.XLOOKUP($E21,'Activity 9'!$B$17:$B$23,'Activity 9'!O$17:O$23,\"N/A\",0,1)","v":"N/A"},{"$f":"_xlfn.XLOOKUP($E21,'Activity 9'!$B$17:$B$23,'Activity 9'!Q$17:Q$23,\"N/A\",0,1)","v":"N/A"},{"$f":"_xlfn.XLOOKUP($E21,'Activity 10'!$B$7:$B$13,'Activity 10'!A$7:A$13,\"No\",0,1)","v":"No"},{"$f":"_xlfn.XLOOKUP($E21,'Activity 10'!$B$7:$B$13,'Activity 10'!J$7:J$13,\"N/A\",0,1)","v":"N/A"},{"$f":"_xlfn.XLOOKUP($E21,'Activity 10'!$B$7:$B$13,'Activity 10'!K$7:K$13,\"N/A\",0,1)","v":"N/A"},{"$f":"_xlfn.XLOOKUP($E21,'Activity 10'!$B$7:$B$13,'Activity 10'!L$7:L$13,\"N/A\",0,1)","v":"N/A"},{"$f":"_xlfn.XLOOKUP($E21,'Activity 10'!$B$7:$B$13,'Activity 10'!M$7:M$13,\"N/A\",0,1)","v":"N/A"},{"$f":"_xlfn.XLOOKUP($E21,'Activity 10'!$B$7:$B$13,'Activity 10'!N$7:N$13,\"N/A\",0,1)","v":"N/A"},{"$f":"_xlfn.XLOOKUP($E21,'Activity 10'!$B$7:$B$13,'Activity 10'!O$7:O$13,\"N/A\",0,1)","v":"N/A"},{"$f":"_xlfn.XLOOKUP($E21,'Activity 10'!$B$7:$B$13,'Activity 10'!P$7:P$13,\"N/A\",0,1)","v":"N/A"},{"$f":"_xlfn.XLOOKUP($E21,'Activity 10'!$B$7:$B$13,'Activity 10'!Q$7:Q$13,\"N/A\",0,1)","v":"N/A"},{"$f":"_xlfn.XLOOKUP($E21,'Activity 10'!$B$7:$B$13,'Activity 10'!R$7:R$13,\"N/A\",0,1)","v":"N/A"},{"$f":"_xlfn.XLOOKUP($E21,'Activity 10'!$B$7:$B$13,'Activity 10'!S$7:S$13,\"N/A\",0,1)","v":"N/A"},{"$f":"_xlfn.XLOOKUP($E21,'Activity 10'!$B$7:$B$13,'Activity 10'!T$7:T$13,\"N/A\",0,1)","v":"N/A"},{"$f":"_xlfn.XLOOKUP($E21,'Activity 10'!$B$7:$B$13,'Activity 10'!U$7:U$13,\"N/A\",0,1)","v":"N/A"},{"$f":"_xlfn.XLOOKUP($E21,'Activity 10'!$B$7:$B$13,'Activity 10'!V$7:V$13,\"N/A\",0,1)","v":"N/A"},{"$f":"_xlfn.XLOOKUP($E21,'Activity 10'!$B$17:$B$23,'Activity 10'!E$17:E$23,\"N/A\",0,1)","v":"N/A"},{"$f":"_xlfn.XLOOKUP($E21,'Activity 10'!$B$17:$B$23,'Activity 10'!F$17:F$23,\"N/A\",0,1)","v":"N/A"},{"$f":"_xlfn.XLOOKUP($E21,'Activity 10'!$B$17:$B$23,'Activity 10'!G$17:G$23,\"N/A\",0,1)","v":"N/A"},{"$f":"_xlfn.XLOOKUP($E21,'Activity 10'!$B$17:$B$23,'Activity 10'!H$17:H$23,\"N/A\",0,1)","v":"N/A"},{"$f":"_xlfn.XLOOKUP($E21,'Activity 10'!$B$17:$B$23,'Activity 10'!I$17:I$23,\"N/A\",0,1)","v":"N/A"},{"$f":"_xlfn.XLOOKUP($E21,'Activity 10'!$B$17:$B$23,'Activity 10'!J$17:J$23,\"N/A\",0,1)","v":"N/A"},{"$f":"_xlfn.XLOOKUP($E21,'Activity 10'!$B$17:$B$23,'Activity 10'!K$17:K$23,\"N/A\",0,1)","v":"N/A"},{"$f":"_xlfn.XLOOKUP($E21,'Activity 10'!$B$17:$B$23,'Activity 10'!L$17:L$23,\"N/A\",0,1)","v":"N/A"},{"$f":"_xlfn.XLOOKUP($E21,'Activity 10'!$B$17:$B$23,'Activity 10'!M$17:M$23,\"N/A\",0,1)","v":"N/A"},{"$f":"_xlfn.XLOOKUP($E21,'Activity 10'!$B$17:$B$23,'Activity 10'!N$17:N$23,\"N/A\",0,1)","v":"N/A"},{"$f":"_xlfn.XLOOKUP($E21,'Activity 10'!$B$17:$B$23,'Activity 10'!P$17:P$23,\"N/A\",0,1)","v":"N/A"},{"$f":"_xlfn.XLOOKUP($E21,'Competitive Activity 1'!B$7:B$13,'Competitive Activity 1'!A$7:A$13,\"No\",0,1)","v":"No"},{"$f":"_xlfn.XLOOKUP($E21,'Competitive Activity 1'!$B$7:$B$13,'Competitive Activity 1'!H$7:H$13,\"N/A\",0,1)","v":"N/A"},{"$f":"_xlfn.XLOOKUP($E21,'Competitive Activity 1'!$B$7:$B$13,'Competitive Activity 1'!I$7:I$13,\"N/A\",0,1)","v":"N/A"},{"$f":"_xlfn.XLOOKUP($E21,'Competitive Activity 1'!$B$7:$B$13,'Competitive Activity 1'!J$7:J$13,\"N/A\",0,1)","v":"N/A"},{"$f":"_xlfn.XLOOKUP($E21,'Competitive Activity 1'!$B$7:$B$13,'Competitive Activity 1'!K$7:K$13,\"N/A\",0,1)","v":"N/A"},{"$f":"_xlfn.XLOOKUP($E21,'Competitive Activity 1'!$B$7:$B$13,'Competitive Activity 1'!L$7:L$13,\"N/A\",0,1)","v":"N/A"},{"$f":"_xlfn.XLOOKUP($E21,'Competitive Activity 1'!$B$7:$B$13,'Competitive Activity 1'!M$7:M$13,\"N/A\",0,1)","v":"N/A"},{"$f":"_xlfn.XLOOKUP($E21,'Competitive Activity 1'!$B$7:$B$13,'Competitive Activity 1'!N$7:N$13,\"N/A\",0,1)","v":"N/A"},{"$f":"_xlfn.XLOOKUP($E21,'Competitive Activity 1'!$B$7:$B$13,'Competitive Activity 1'!O$7:O$13,\"N/A\",0,1)","v":"N/A"},{"$f":"_xlfn.XLOOKUP($E21,'Competitive Activity 1'!$B$7:$B$13,'Competitive Activity 1'!P$7:P$13,\"N/A\",0,1)","v":"N/A"},{"$f":"_xlfn.XLOOKUP($E21,'Competitive Activity 1'!$B$7:$B$13,'Competitive Activity 1'!Q$7:Q$13,\"N/A\",0,1)","v":"N/A"},{"$f":"_xlfn.XLOOKUP($E21,'Competitive Activity 1'!$B$7:$B$13,'Competitive Activity 1'!R$7:R$13,\"N/A\",0,1)","v":"N/A"},{"$f":"_xlfn.XLOOKUP($E21,'Competitive Activity 1'!$B$7:$B$13,'Competitive Activity 1'!S$7:S$13,\"N/A\",0,1)","v":"N/A"},{"$f":"_xlfn.XLOOKUP($E21,'Competitive Activity 1'!$B$7:$B$13,'Competitive Activity 1'!T$7:T$13,\"N/A\",0,1)","v":"N/A"},{"$f":"_xlfn.XLOOKUP($E21,'Competitive Activity 1'!$B$7:$B$13,'Competitive Activity 1'!U$7:U$13,\"N/A\",0,1)","v":"N/A"},{"$f":"_xlfn.XLOOKUP($E21,'Competitive Activity 1'!$B$17:$B$23,'Competitive Activity 1'!C$17:C$23,\"N/A\",0,1)","v":"N/A"},{"$f":"_xlfn.XLOOKUP($E21,'Competitive Activity 1'!$B$17:$B$23,'Competitive Activity 1'!D$17:D$23,\"N/A\",0,1)","v":"N/A"},{"$f":"_xlfn.XLOOKUP($E21,'Competitive Activity 1'!$B$17:$B$23,'Competitive Activity 1'!E$17:E$23,\"N/A\",0,1)","v":"N/A"},{"$f":"_xlfn.XLOOKUP($E21,'Competitive Activity 1'!$B$17:$B$23,'Competitive Activity 1'!F$17:F$23,\"N/A\",0,1)","v":"N/A"},{"$f":"_xlfn.XLOOKUP($E21,'Competitive Activity 1'!$B$17:$B$23,'Competitive Activity 1'!G$17:G$23,\"N/A\",0,1)","v":"N/A"},{"$f":"_xlfn.XLOOKUP($E21,'Competitive Activity 1'!$B$17:$B$23,'Competitive Activity 1'!H$17:H$23,\"N/A\",0,1)","v":"N/A"},{"$f":"_xlfn.XLOOKUP($E21,'Competitive Activity 1'!$B$17:$B$23,'Competitive Activity 1'!I$17:I$23,\"N/A\",0,1)","v":"N/A"},{"$f":"_xlfn.XLOOKUP($E21,'Competitive Activity 1'!$B$17:$B$23,'Competitive Activity 1'!J$17:J$23,\"N/A\",0,1)","v":"N/A"},{"$f":"_xlfn.XLOOKUP($E21,'Competitive Activity 1'!$B$17:$B$23,'Competitive Activity 1'!K$17:K$23,\"N/A\",0,1)","v":"N/A"},{"$f":"_xlfn.XLOOKUP($E21,'Competitive Activity 1'!$B$17:$B$23,'Competitive Activity 1'!M$17:M$23,\"N/A\",0,1)","v":"N/A"},{"$f":"_xlfn.XLOOKUP($E21,'Competitive Activity 1'!$B$17:$B$23,'Competitive Activity 1'!N$17:N$23,\"N/A\",0,1)","v":"N/A"},{"$f":"_xlfn.XLOOKUP($E21,'Competitive Activity 1'!$B$17:$B$23,'Competitive Activity 1'!P$17:P$23,\"N/A\",0,1)","v":"N/A"},{"$f":"_xlfn.XLOOKUP($E21,'Competitive Activity 2'!$B$7:$B$13,'Competitive Activity 2'!A$7:A$13,\"No\",0)","v":"No"},{"$f":"_xlfn.XLOOKUP($E21,'Competitive Activity 2'!$B$7:$B$13,'Competitive Activity 2'!L$7:L$13,\"N/A\",0)","v":"N/A"},{"$f":"_xlfn.XLOOKUP($E21,'Competitive Activity 2'!$B$7:$B$13,'Competitive Activity 2'!M$7:M$13,\"N/A\",0)","v":"N/A"},{"$f":"_xlfn.XLOOKUP($E21,'Competitive Activity 2'!$B$7:$B$13,'Competitive Activity 2'!N$7:N$13,\"N/A\",0)","v":"N/A"},{"$f":"_xlfn.XLOOKUP($E21,'Competitive Activity 2'!$B$7:$B$13,'Competitive Activity 2'!O$7:O$13,\"N/A\",0)","v":"N/A"},{"$f":"_xlfn.XLOOKUP($E21,'Competitive Activity 2'!$B$7:$B$13,'Competitive Activity 2'!P$7:P$13,\"N/A\",0)","v":"N/A"},{"$f":"_xlfn.XLOOKUP($E21,'Competitive Activity 2'!$B$7:$B$13,'Competitive Activity 2'!Q$7:Q$13,\"N/A\",0)","v":"N/A"},{"$f":"_xlfn.XLOOKUP($E21,'Competitive Activity 2'!$B$7:$B$13,'Competitive Activity 2'!R$7:R$13,\"N/A\",0)","v":"N/A"},{"$f":"_xlfn.XLOOKUP($E21,'Competitive Activity 2'!$B$7:$B$13,'Competitive Activity 2'!S$7:S$13,\"N/A\",0)","v":"N/A"},{"$f":"_xlfn.XLOOKUP($E21,'Competitive Activity 2'!$B$7:$B$13,'Competitive Activity 2'!T$7:T$13,\"N/A\",0)","v":"N/A"},{"$f":"_xlfn.XLOOKUP($E21,'Competitive Activity 2'!$B$7:$B$13,'Competitive Activity 2'!U$7:U$13,\"N/A\",0)","v":"N/A"},{"$f":"_xlfn.XLOOKUP($E21,'Competitive Activity 2'!$B$17:$B$23,'Competitive Activity 2'!D$17:D$23,\"N/A\",0)","v":"N/A"},{"$f":"_xlfn.XLOOKUP($E21,'Competitive Activity 2'!$B$17:$B$23,'Competitive Activity 2'!E$17:E$23,\"N/A\",0)","v":"N/A"},{"$f":"_xlfn.XLOOKUP($E21,'Competitive Activity 2'!$B$17:$B$23,'Competitive Activity 2'!F$17:F$23,\"N/A\",0)","v":"N/A"},{"$f":"_xlfn.XLOOKUP($E21,'Competitive Activity 2'!$B$17:$B$23,'Competitive Activity 2'!G$17:G$23,\"N/A\",0)","v":"N/A"},{"$f":"_xlfn.XLOOKUP($E21,'Competitive Activity 2'!$B$17:$B$23,'Competitive Activity 2'!H$17:H$23,\"N/A\",0)","v":"N/A"},{"$f":"_xlfn.XLOOKUP($E21,'Competitive Activity 2'!$B$17:$B$23,'Competitive Activity 2'!I$17:I$23,\"N/A\",0)","v":"N/A"},{"$f":"_xlfn.XLOOKUP($E21,'Competitive Activity 2'!$B$17:$B$23,'Competitive Activity 2'!J$17:J$23,\"N/A\",0)","v":"N/A"},{"$f":"_xlfn.XLOOKUP($E21,'Competitive Activity 2'!$B$17:$B$23,'Competitive Activity 2'!K$17:K$23,\"N/A\",0)","v":"N/A"},{"$f":"_xlfn.XLOOKUP($E21,'Competitive Activity 2'!$B$17:$B$23,'Competitive Activity 2'!L$17:L$23,\"N/A\",0)","v":"N/A"},{"$f":"_xlfn.XLOOKUP($E21,'Competitive Activity 2'!$B$17:$B$23,'Competitive Activity 2'!M$17:M$23,\"N/A\",0)","v":"N/A"},{"$f":"_xlfn.XLOOKUP($E21,'Competitive Activity 2'!$B$17:$B$23,'Competitive Activity 2'!N$17:N$23,\"N/A\",0)","v":"N/A"},{"$f":"_xlfn.XLOOKUP($E21,'Competitive Activity 2'!$B$27:$B$33,'Competitive Activity 2'!D$27:D$33,\"N/A\",0)","v":"N/A"},{"$f":"_xlfn.XLOOKUP($E21,'Competitive Activity 2'!$B$27:$B$33,'Competitive Activity 2'!E$27:E$33,\"N/A\",0)","v":"N/A"},{"$f":"_xlfn.XLOOKUP($E21,'Competitive Activity 2'!$B$27:$B$33,'Competitive Activity 2'!F$27:F$33,\"N/A\",0)","v":"N/A"},{"$f":"_xlfn.XLOOKUP($E21,'Competitive Activity 2'!$B$27:$B$33,'Competitive Activity 2'!G$27:G$33,\"N/A\",0)","v":"N/A"},{"$f":"_xlfn.XLOOKUP($E21,'Competitive Activity 2'!$B$27:$B$33,'Competitive Activity 2'!H$27:H$33,\"N/A\",0)","v":"N/A"},{"$f":"_xlfn.XLOOKUP($E21,'Competitive Activity 2'!$B$27:$B$33,'Competitive Activity 2'!I$27:I$33,\"N/A\",0)","v":"N/A"},{"$f":"_xlfn.XLOOKUP($E21,'Competitive Activity 2'!$B$27:$B$33,'Competitive Activity 2'!J$27:J$33,\"N/A\",0)","v":"N/A"},{"$f":"_xlfn.XLOOKUP($E21,'Competitive Activity 2'!$B$27:$B$33,'Competitive Activity 2'!K$27:K$33,\"N/A\",0)","v":"N/A"},{"$f":"_xlfn.XLOOKUP($E21,'Competitive Activity 2'!$B$27:$B$33,'Competitive Activity 2'!M$27:M$33,\"N/A\",0)","v":"N/A"}]
[{"$f":"'1-Cover Sheet'!$C$8","v":"Select One"},{"$f":"'1-Cover Sheet'!$F$8","v":"Select One"},{"$f":"'Summary Sheet'!$D$8","v":0},{"$f":"'Summary Sheet'!$D$10","v":0},{"$f":"'Drop Down Box'!B186","v":0},{"$f":"'Drop Down Box'!C186","v":0},{"$f":"'Drop Down Box'!D186","v":"Select One"},{"$f":"_xlfn.XLOOKUP(E22,'Drop Down Box'!$B$166:$B$249,'Drop Down Box'!$A$166:$A$249,\"Unknown\",0)","v":"Activity 1"},{"$f":"_xlfn.XLOOKUP(E22,'Activity 3'!B$8:B$14,'Activity 3'!P$8:P$14,\"N/A\",0)","v":"N/A"},{"$f":"_xlfn.XLOOKUP($E22,'Activity 3'!$B$8:$B$14,'Activity 3'!Q$8:Q$14,\"N/A\",0)","v":"N/A"},{"$f":"_xlfn.XLOOKUP($E22,'Activity 3'!$B$8:$B$14,'Activity 3'!H$8:H$14,\"N/A\",0)","v":"N/A"},{"$f":"_xlfn.XLOOKUP(E22,'Activity 3'!B$8:B$14,'Activity 3'!I14:I20,\"N/A\",0)","v":"N/A"},{"$f":"_xlfn.XLOOKUP($E22,'Activity 3'!$B$8:$B$14,'Activity 3'!J14:J20,\"N/A\",0)","v":"N/A"},{"$f":"_xlfn.XLOOKUP($E22,'Activity 1'!$B$7:$B$13,'Activity 1'!$A$7:$A$13,\"No\",0,1)","v":"No"},{"$f":"_xlfn.XLOOKUP($E22,'Activity 1'!$B$7:$B$13,'Activity 1'!$H$7:$H$13,\"N/A\",0,1)","v":"N/A"},{"$f":"_xlfn.XLOOKUP($E22,'Activity 1'!$B$7:$B$13,'Activity 1'!I$7:I$13,\"N/A\",0,1)","v":"N/A"},{"$f":"_xlfn.XLOOKUP($E22,'Activity 1'!$B$7:$B$13,'Activity 1'!J$7:J$13,\"N/A\",0,1)","v":"N/A"},{"$f":"_xlfn.XLOOKUP($E22,'Activity 1'!$B$7:$B$13,'Activity 1'!K$7:K$13,\"N/A\",0,1)","v":"N/A"},{"$f":"_xlfn.XLOOKUP($E22,'Activity 1'!$B$7:$B$13,'Activity 1'!L$7:L$13,\"N/A\",0,1)","v":"N/A"},{"$f":"_xlfn.XLOOKUP($E22,'Activity 1'!$B$7:$B$13,'Activity 1'!M$7:M$13,\"N/A\",0,1)","v":"N/A"},{"$f":"_xlfn.XLOOKUP($E22,'Activity 1'!$B$7:$B$13,'Activity 1'!N$7:N$13,\"N/A\",0,1)","v":"N/A"},0,{"$f":"_xlfn.XLOOKUP($E22,'Activity 1'!$B$7:$B$13,'Activity 1'!O$7:O$13,\"N/A\",0,1)","v":"N/A"},{"$f":"_xlfn.XLOOKUP($E22,'Activity 1'!$B$7:$B$13,'Activity 1'!P$7:P$13,\"N/A\",0,1)","v":"N/A"},{"$f":"_xlfn.XLOOKUP($E22,'Activity 1'!$B$7:$B$13,'Activity 1'!Q$7:Q$13,\"N/A\",0,1)","v":"N/A"},{"$f":"_xlfn.XLOOKUP($E22,'Activity 1'!$B$7:$B$13,'Activity 1'!R$7:R$13,\"N/A\",0,1)","v":"N/A"},{"$f":"_xlfn.XLOOKUP($E22,'Activity 1'!$B$7:$B$13,'Activity 1'!S$7:S$13,\"N/A\",0,1)","v":"N/A"},{"$f":"_xlfn.XLOOKUP($E22,'Activity 1'!$B$7:$B$13,'Activity 1'!T$7:T$13,\"N/A\",0,1)","v":"N/A"},{"$f":"_xlfn.XLOOKUP($E22,'Activity 1'!$B$7:$B$13,'Activity 1'!U$7:U$13,\"N/A\",0,1)","v":"N/A"},{"$f":"_xlfn.XLOOKUP($E22,'Activity 1'!$B$7:$B$13,'Activity 1'!V$7:V$13,\"N/A\",0,1)","v":"N/A"},{"$f":"_xlfn.XLOOKUP($E22,'Activity 1'!$B$17:$B$23,'Activity 1'!C$17:C$23,\"N/A\",0,1)","v":"N/A"},{"$f":"_xlfn.XLOOKUP($E22,'Activity 1'!$B$17:$B$23,'Activity 1'!D$17:D$23,\"N/A\",0,1)","v":"N/A"},{"$f":"_xlfn.XLOOKUP($E22,'Activity 1'!$B$17:$B$23,'Activity 1'!E$17:E$23,\"N/A\",0,1)","v":"N/A"},{"$f":"_xlfn.XLOOKUP($E22,'Activity 1'!$B$17:$B$23,'Activity 1'!F$17:F$23,\"N/A\",0,1)","v":"N/A"},{"$f":"_xlfn.XLOOKUP($E22,'Activity 1'!$B$17:$B$23,'Activity 1'!G$17:G$23,\"N/A\",0,1)","v":"N/A"},{"$f":"_xlfn.XLOOKUP($E22,'Activity 1'!$B$17:$B$23,'Activity 1'!H$17:H$23,\"N/A\",0,1)","v":"N/A"},{"$f":"_xlfn.XLOOKUP($E22,'Activity 1'!$B$17:$B$23,'Activity 1'!I$17:I$23,\"N/A\",0,1)","v":"N/A"},{"$f":"_xlfn.XLOOKUP($E22,'Activity 1'!$B$17:$B$23,'Activity 1'!J$17:J$23,\"N/A\",0,1)","v":"N/A"},{"$f":"_xlfn.XLOOKUP($E22,'Activity 1'!$B$17:$B$23,'Activity 1'!K$17:K$23,\"N/A\",0,1)","v":"N/A"},{"$f":"_xlfn.XLOOKUP($E22,'Activity 1'!$B$17:$B$23,'Activity 1'!L$17:L$23,\"N/A\",0,1)","v":"N/A"},{"$f":"_xlfn.XLOOKUP($E22,'Activity 1'!$B$17:$B$23,'Activity 1'!M$17:M$23,\"N/A\",0,1)","v":"N/A"},{"$f":"_xlfn.XLOOKUP($E22,'Activity 1'!$B$17:$B$23,'Activity 1'!O$17:O$23,\"N/A\",0,1)","v":"N/A"},{"$f":"_xlfn.XLOOKUP($E22,'Activity 1'!$B$17:$B$23,'Activity 1'!Q$17:Q$23,\"N/A\",0,1)","v":"N/A"},{"$f":"_xlfn.XLOOKUP($E22,'Activity 2'!$B$7:$B$13,'Activity 2'!$A$7:$A$13,\"No\",0,1)","v":"No"},{"$f":"_xlfn.XLOOKUP($E22,'Activity 2'!B$7:B$13,'Activity 2'!H$7:H$13,\"N/A\",0)","v":"N/A"},{"$f":"_xlfn.XLOOKUP($E22,'Activity 2'!C$7:C$13,'Activity 2'!I$7:I$13,\"N/A\",0)","v":"N/A"},{"$f":"_xlfn.XLOOKUP($E22,'Activity 2'!D$7:D$13,'Activity 2'!J$7:J$13,\"N/A\",0)","v":"N/A"},{"$f":"_xlfn.XLOOKUP($E22,'Activity 2'!E$7:E$13,'Activity 2'!K$7:K$13,\"N/A\",0)","v":"N/A"},{"$f":"_xlfn.XLOOKUP($E22,'Activity 2'!F$7:F$13,'Activity 2'!L$7:L$13,\"N/A\",0)","v":"N/A"},{"$f":"_xlfn.XLOOKUP($E22,'Activity 2'!G$7:G$13,'Activity 2'!M$7:M$13,\"N/A\",0)","v":"N/A"},{"$f":"_xlfn.XLOOKUP($E22,'Activity 2'!H$7:H$13,'Activity 2'!N$7:N$13,\"N/A\",0)","v":"N/A"},{"$f":"_xlfn.XLOOKUP($E22,'Activity 2'!I$7:I$13,'Activity 2'!O$7:O$13,\"N/A\",0)","v":"N/A"},{"$f":"_xlfn.XLOOKUP($E22,'Activity 2'!J$7:J$13,'Activity 2'!P$7:P$13,\"N/A\",0)","v":"N/A"},{"$f":"_xlfn.XLOOKUP($E22,'Activity 2'!K$7:K$13,'Activity 2'!Q$7:Q$13,\"N/A\",0)","v":"N/A"},{"$f":"_xlfn.XLOOKUP($E22,'Activity 2'!L$7:L$13,'Activity 2'!R$7:R$13,\"N/A\",0)","v":"N/A"},{"$f":"_xlfn.XLOOKUP($E22,'Activity 2'!M$7:M$13,'Activity 2'!S$7:S$13,\"N/A\",0)","v":"N/A"},{"$f":"_xlfn.XLOOKUP($E22,'Activity 2'!N$7:N$13,'Activity 2'!T$7:T$13,\"N/A\",0)","v":"N/A"},{"$f":"_xlfn.XLOOKUP($E22,'Activity 2'!O$7:O$13,'Activity 2'!U$7:U$13,\"N/A\",0)","v":"N/A"},{"$f":"_xlfn.XLOOKUP($E22,'Activity 2'!P$7:P$13,'Activity 2'!V$7:V$13,\"N/A\",0)","v":"N/A"},{"$f":"_xlfn.XLOOKUP($E22,'Activity 2'!$B$17:$B$23,'Activity 2'!C$17:C$23,\"N/A\",0,1)","v":"N/A"},{"$f":"_xlfn.XLOOKUP($E22,'Activity 2'!$B$17:$B$23,'Activity 2'!D$17:D$23,\"N/A\",0,1)","v":"N/A"},{"$f":"_xlfn.XLOOKUP($E22,'Activity 2'!$B$17:$B$23,'Activity 2'!E$17:E$23,\"N/A\",0,1)","v":"N/A"},{"$f":"_xlfn.XLOOKUP($E22,'Activity 2'!$B$17:$B$23,'Activity 2'!F$17:F$23,\"N/A\",0,1)","v":"N/A"},{"$f":"_xlfn.XLOOKUP($E22,'Activity 2'!$B$17:$B$23,'Activity 2'!G$17:G$23,\"N/A\",0,1)","v":"N/A"},{"$f":"_xlfn.XLOOKUP($E22,'Activity 2'!$B$17:$B$23,'Activity 2'!H$17:H$23,\"N/A\",0,1)","v":"N/A"},{"$f":"_xlfn.XLOOKUP($E22,'Activity 2'!$B$17:$B$23,'Activity 2'!I$17:I$23,\"N/A\",0,1)","v":"N/A"},{"$f":"_xlfn.XLOOKUP($E22,'Activity 2'!$B$17:$B$23,'Activity 2'!J$17:J$23,\"N/A\",0,1)","v":"N/A"},{"$f":"_xlfn.XLOOKUP($E22,'Activity 2'!$B$17:$B$23,'Activity 2'!K$17:K$23,\"N/A\",0,1)","v":"N/A"},{"$f":"_xlfn.XLOOKUP($E22,'Activity 2'!$B$17:$B$23,'Activity 2'!L$17:L$23,\"N/A\",0,1)","v":"N/A"},{"$f":"_xlfn.XLOOKUP($E22,'Activity 2'!$B$17:$B$23,'Activity 2'!M$17:M$23,\"N/A\",0,1)","v":"N/A"},{"$f":"_xlfn.XLOOKUP($E22,'Activity 2'!$B$17:$B$23,'Activity 2'!O$17:O$23,\"N/A\",0,1)","v":"N/A"},{"$f":"_xlfn.XLOOKUP($E22,'Activity 2'!$B$17:$B$23,'Activity 2'!Q$17:Q$23,\"N/A\",0,1)","v":"N/A"},null,{"$f":"_xlfn.XLOOKUP($E22,'Activity 3'!$B$8:$B$14,'Activity 3'!K$8:K$14,\"N/A\",0,1)","v":"N/A"},{"$f":"_xlfn.XLOOKUP($E22,'Activity 3'!$B$8:$B$14,'Activity 3'!L$8:L$14,\"N/A\",0,1)","v":"N/A"},{"$f":"_xlfn.XLOOKUP($E22,'Activity 3'!$B$8:$B$14,'Activity 3'!M$8:M$14,\"N/A\",0,1)","v":"N/A"},{"$f":"_xlfn.XLOOKUP($E22,'Activity 3'!$B$8:$B$14,'Activity 3'!N$8:N$14,\"N/A\",0,1)","v":"N/A"},{"$f":"_xlfn.XLOOKUP($E22,'Activity 3'!$B$8:$B$14,'Activity 3'!O$8:O$14,\"N/A\",0,1)","v":"N/A"},{"$f":"_xlfn.XLOOKUP($E22,'Activity 3'!$B$8:$B$14,'Activity 3'!R$8:R$14,\"N/A\",0,1)","v":"N/A"},{"$f":"_xlfn.XLOOKUP($E22,'Activity 4'!$B$8:$B$14,'Activity 4'!$A$8:$A$14,\"No\",0,1)","v":"No"},{"$f":"_xlfn.XLOOKUP($E22,'Activity 4'!$B$8:$B$14,'Activity 4'!L$8:L$14,\"N/A\",0,1)","v":"N/A"},{"$f":"_xlfn.XLOOKUP($E22,'Activity 4'!$B$8:$B$14,'Activity 4'!I$8:I$14,\"N/A\",0,1)","v":"N/A"},{"$f":"_xlfn.XLOOKUP($E22,'Activity 4'!$B$8:$B$14,'Activity 4'!M$8:M$14,\"N/A\",0,1)","v":"N/A"},{"$f":"_xlfn.XLOOKUP($E22,'Activity 5'!$B$8:$B$14,'Activity 5'!$A$8:$A$14,\"No\",0,1)","v":"No"},{"$f":"_xlfn.XLOOKUP($E22,'Activity 5'!$B$8:$B$14,'Activity 5'!J$8:J$14,\"N/A\",0,1)","v":"N/A"},{"$f":"_xlfn.XLOOKUP($E22,'Activity 5'!$B$8:$B$14,'Activity 5'!K$8:K$14,\"N/A\",0,1)","v":"N/A"},{"$f":"_xlfn.XLOOKUP($E22,'Activity 5'!$B$8:$B$14,'Activity 5'!N$8:N$14,\"N/A\",0,1)","v":"N/A"},{"$f":"_xlfn.XLOOKUP($E22,'Activity 5'!$B$8:$B$14,'Activity 5'!O$8:O$14,\"N/A\",0,1)","v":"N/A"},{"$f":"_xlfn.XLOOKUP($E22,'Activity 5'!$B$8:$B$14,'Activity 5'!P$8:P$14,\"N/A\",0,1)","v":"N/A"},{"$f":"_xlfn.XLOOKUP($E22,'Activity 5'!$B$8:$B$14,'Activity 5'!Q$8:Q$14,\"N/A\",0,1)","v":"N/A"},{"$f":"_xlfn.XLOOKUP($E22,'Activity 5'!$B$8:$B$14,'Activity 5'!R$8:R$14,\"N/A\",0,1)","v":"N/A"},{"$f":"_xlfn.XLOOKUP($E22,'Activity 6'!$B$7:$B$13,'Activity 6'!A$7:A$13,\"No\",0,1)","v":"No"},{"$f":"_xlfn.XLOOKUP($E22,'Activity 6'!$B$7:$B$13,'Activity 6'!K$7:K$13,\"N/A\",0,1)","v":"N/A"},{"$f":"_xlfn.XLOOKUP($E22,'Activity 6'!$B$7:$B$13,'Activity 6'!L$7:L$13,\"N/A\",0,1)","v":"N/A"},{"$f":"_xlfn.XLOOKUP($E22,'Activity 6'!$B$7:$B$13,'Activity 6'!M$7:M$13,\"N/A\",0,1)","v":"N/A"},{"$f":"_xlfn.XLOOKUP($E22,'Activity 6'!$B$7:$B$13,'Activity 6'!N$7:N$13,\"N/A\",0,1)","v":"N/A"},{"$f":"_xlfn.XLOOKUP($E22,'Activity 6'!$B$7:$B$13,'Activity 6'!O$7:O$13,\"N/A\",0,1)","v":"N/A"},{"$f":"_xlfn.XLOOKUP($E22,'Activity 6'!$B$7:$B$13,'Activity 6'!P$7:P$13,\"N/A\",0,1)","v":"N/A"},{"$f":"_xlfn.XLOOKUP($E22,'Activity 6'!$B$7:$B$13,'Activity 6'!Q$7:Q$13,\"N/A\",0,1)","v":"N/A"},{"$f":"_xlfn.XLOOKUP($E22,'Activity 6'!$B$7:$B$13,'Activity 6'!R$7:R$13,\"N/A\",0,1)","v":"N/A"},{"$f":"_xlfn.XLOOKUP($E22,'Activity 6'!$B$7:$B$13,'Activity 6'!S$7:S$13,\"N/A\",0,1)","v":"N/A"},{"$f":"_xlfn.XLOOKUP($E22,'Activity 6'!$B$7:$B$13,'Activity 6'!T$7:T$13,\"N/A\",0,1)","v":"N/A"},{"$f":"_xlfn.XLOOKUP($E22,'Activity 6'!$B$7:$B$13,'Activity 6'!U$7:U$13,\"N/A\",0,1)","v":"N/A"},{"$f":"_xlfn.XLOOKUP($E22,'Activity 6'!$B$22:$B$28,'Activity 6'!C$22:C$28,\"N/A\",0,1)","v":"N/A"},{"$f":"_xlfn.XLOOKUP($E22,'Activity 6'!$B$22:$B$28,'Activity 6'!D$22:D$28,\"N/A\",0,1)","v":"N/A"},{"$f":"_xlfn.XLOOKUP($E22,'Activity 6'!$B$22:$B$28,'Activity 6'!E$22:E$28,\"N/A\",0,1)","v":"N/A"},{"$f":"_xlfn.XLOOKUP($E22,'Activity 6'!$B$22:$B$28,'Activity 6'!F$22:F$28,\"N/A\",0,1)","v":"N/A"},{"$f":"_xlfn.XLOOKUP($E22,'Activity 6'!$B$22:$B$28,'Activity 6'!G$22:G$28,\"N/A\",0,1)","v":"N/A"},{"$f":"_xlfn.XLOOKUP($E22,'Activity 6'!$B$22:$B$28,'Activity 6'!H$22:H$28,\"N/A\",0,1)","v":"N/A"},{"$f":"_xlfn.XLOOKUP($E22,'Activity 6'!$B$22:$B$28,'Activity 6'!I$22:I$28,\"N/A\",0,1)","v":"N/A"},{"$f":"_xlfn.XLOOKUP($E22,'Activity 6'!$B$22:$B$28,'Activity 6'!J$22:J$28,\"N/A\",0,1)","v":"N/A"},{"$f":"_xlfn.XLOOKUP($E22,'Activity 6'!$B$22:$B$28,'Activity 6'!K$22:K$28,\"N/A\",0,1)","v":"N/A"},{"$f":"_xlfn.XLOOKUP($E22,'Activity 6'!$B$22:$B$28,'Activity 6'!L$22:L$28,\"N/A\",0,1)","v":"N/A"},{"$f":"_xlfn.XLOOKUP($E22,'Activity 6'!$B$22:$B$28,'Activity 6'!M$22:M$28,\"N/A\",0,1)","v":"N/A"},{"$f":"_xlfn.XLOOKUP($E22,'Activity 6'!$B$22:$B$28,'Activity 6'!N$22:N$28,\"N/A\",0,1)","v":"N/A"},{"$f":"_xlfn.XLOOKUP($E22,'Activity 6'!$B$32:$B$38,'Activity 6'!C$32:C$38,\"N/A\",0,1)","v":"N/A"},{"$f":"_xlfn.XLOOKUP($E22,'Activity 6'!$B$32:$B$38,'Activity 6'!D$32:D$38,\"N/A\",0,1)","v":"N/A"},{"$f":"_xlfn.XLOOKUP($E22,'Activity 6'!$B$32:$B$38,'Activity 6'!E$32:E$38,\"N/A\",0,1)","v":"N/A"},{"$f":"_xlfn.XLOOKUP($E22,'Activity 6'!$B$32:$B$38,'Activity 6'!F$32:F$38,\"N/A\",0,1)","v":"N/A"},{"$f":"_xlfn.XLOOKUP($E22,'Activity 6'!$B$32:$B$38,'Activity 6'!G$32:G$38,\"N/A\",0,1)","v":"N/A"},{"$f":"_xlfn.XLOOKUP($E22,'Activity 6'!$B$32:$B$38,'Activity 6'!H$32:H$38,\"N/A\",0,1)","v":"N/A"},{"$f":"_xlfn.XLOOKUP($E22,'Activity 6'!$B$32:$B$38,'Activity 6'!I$32:I$38,\"N/A\",0,1)","v":"N/A"},{"$f":"_xlfn.XLOOKUP($E22,'Activity 6'!$B$32:$B$38,'Activity 6'!J$32:J$38,\"N/A\",0,1)","v":"N/A"},{"$f":"_xlfn.XLOOKUP($E22,'Activity 6'!$B$32:$B$38,'Activity 6'!K$32:K$38,\"N/A\",0,1)","v":"N/A"},{"$f":"_xlfn.XLOOKUP($E22,'Activity 6'!$B$32:$B$38,'Activity 6'!M$32:M$38,\"N/A\",0,1)","v":"N/A"},{"$f":"_xlfn.XLOOKUP($E22,'Activity 7'!$B$7:$B$13,'Activity 7'!$A$7:$A$13,\"No\",0,1)","v":"No"},{"$f":"_xlfn.XLOOKUP($E22,'Activity 7'!$B$7:$B$13,'Activity 7'!M$7:M$13,\"N/A\",0,1)","v":"N/A"},{"$f":"_xlfn.XLOOKUP($E22,'Activity 7'!$B$7:$B$13,'Activity 7'!K$7:K$13,\"N/A\",0,1)","v":"N/A"},{"$f":"_xlfn.XLOOKUP($E22,'Activity 7'!$B$7:$B$13,'Activity 7'!N$7:N$13,\"N/A\",0,1)","v":"N/A"},{"$f":"_xlfn.XLOOKUP($E22,'Activity 7'!$B$7:$B$13,'Activity 7'!O$7:O$13,\"N/A\",0,1)","v":"N/A"},{"$f":"_xlfn.XLOOKUP($E22,'Activity 7'!$B$7:$B$13,'Activity 7'!P$7:P$13,\"N/A\",0,1)","v":"N/A"},{"$f":"_xlfn.XLOOKUP($E22,'Activity 7'!$B$7:$B$13,'Activity 7'!Q$7:Q$13,\"N/A\",0,1)","v":"N/A"},{"$f":"_xlfn.XLOOKUP($E22,'Activity 7'!$B$7:$B$13,'Activity 7'!R$7:R$13,\"N/A\",0,1)","v":"N/A"},{"$f":"_xlfn.XLOOKUP($E22,'Activity 7'!$B$7:$B$13,'Activity 7'!S$7:S$13,\"N/A\",0,1)","v":"N/A"},{"$f":"_xlfn.XLOOKUP($E22,'Activity 7'!$B$7:$B$13,'Activity 7'!T$7:T$13,\"N/A\",0,1)","v":"N/A"},{"$f":"_xlfn.XLOOKUP($E22,'Activity 7'!$B$7:$B$13,'Activity 7'!U$7:U$13,\"N/A\",0,1)","v":"N/A"},{"$f":"_xlfn.XLOOKUP($E22,'Activity 7'!$B$7:$B$13,'Activity 7'!V$7:V$13,\"N/A\",0,1)","v":"N/A"},{"$f":"_xlfn.XLOOKUP($E22,'Activity 7'!$B$17:$B$23,'Activity 7'!E$17:E$23,\"N/A\",0,1)","v":"N/A"},{"$f":"_xlfn.XLOOKUP($E22,'Activity 7'!$B$17:$B$23,'Activity 7'!G$17:G$23,\"N/A\",0,1)","v":"N/A"},{"$f":"_xlfn.XLOOKUP($E22,'Activity 7'!$B$17:$B$23,'Activity 7'!I$17:I$23,\"N/A\",0,1)","v":"N/A"},{"$f":"_xlfn.XLOOKUP($E22,'Activity 7'!$B$17:$B$23,'Activity 7'!J$17:J$23,\"N/A\",0,1)","v":"N/A"},{"$f":"_xlfn.XLOOKUP($E22,'Activity 7'!$B$17:$B$23,'Activity 7'!K$17:K$23,\"N/A\",0,1)","v":"N/A"},{"$f":"_xlfn.XLOOKUP($E22,'Activity 7'!$B$17:$B$23,'Activity 7'!L$17:L$23,\"N/A\",0,1)","v":"N/A"},{"$f":"_xlfn.XLOOKUP($E22,'Activity 7'!$B$17:$B$23,'Activity 7'!M$17:M$23,\"N/A\",0,1)","v":"N/A"},{"$f":"_xlfn.XLOOKUP($E22,'Activity 7'!$B$17:$B$23,'Activity 7'!N$17:N$23,\"N/A\",0,1)","v":"N/A"},{"$f":"_xlfn.XLOOKUP($E22,'Activity 7'!$B$17:$B$23,'Activity 7'!P$17:P$23,\"N/A\",0,1)","v":"N/A"},{"$f":"_xlfn.XLOOKUP($E22,'Activity 8'!$B$7:$B$13,'Activity 8'!A$7:A$13,\"No\",0,1)","v":"No"},{"$f":"_xlfn.XLOOKUP($E22,'Activity 8'!$B$7:$B$13,'Activity 8'!I$7:I$13,\"N/A\",0,1)","v":"N/A"},{"$f":"_xlfn.XLOOKUP($E22,'Activity 8'!$B$7:$B$13,'Activity 8'!J$7:J$13,\"N/A\",0,1)","v":"N/A"},{"$f":"_xlfn.XLOOKUP($E22,'Activity 8'!$B$7:$B$13,'Activity 8'!K$7:K$13,\"N/A\",0,1)","v":"N/A"},{"$f":"_xlfn.XLOOKUP($E22,'Activity 8'!$B$7:$B$13,'Activity 8'!L$7:L$13,\"N/A\",0,1)","v":"N/A"},{"$f":"_xlfn.XLOOKUP($E22,'Activity 8'!$B$7:$B$13,'Activity 8'!M$7:M$13,\"N/A\",0,1)","v":"N/A"},{"$f":"_xlfn.XLOOKUP($E22,'Activity 8'!$B$7:$B$13,'Activity 8'!N$7:N$13,\"N/A\",0,1)","v":"N/A"},{"$f":"_xlfn.XLOOKUP($E22,'Activity 8'!$B$7:$B$13,'Activity 8'!O$7:O$13,\"N/A\",0,1)","v":"N/A"},{"$f":"_xlfn.XLOOKUP($E22,'Activity 8'!$B$7:$B$13,'Activity 8'!P$7:P$13,\"N/A\",0,1)","v":"N/A"},{"$f":"_xlfn.XLOOKUP($E22,'Activity 8'!$B$7:$B$13,'Activity 8'!Q$7:Q$13,\"N/A\",0,1)","v":"N/A"},{"$f":"_xlfn.XLOOKUP($E22,'Activity 8'!$B$7:$B$13,'Activity 8'!R$7:R$13,\"N/A\",0,1)","v":"N/A"},{"$f":"_xlfn.XLOOKUP($E22,'Activity 8'!$B$7:$B$13,'Activity 8'!S$7:S$13,\"N/A\",0,1)","v":"N/A"},{"$f":"_xlfn.XLOOKUP($E22,'Activity 8'!$B$7:$B$13,'Activity 8'!T$7:T$13,\"N/A\",0,1)","v":"N/A"},{"$f":"_xlfn.XLOOKUP($E22,'Activity 8'!$B$7:$B$13,'Activity 8'!U$7:U$13,\"N/A\",0,1)","v":"N/A"},{"$f":"_xlfn.XLOOKUP($E22,'Activity 8'!$B$7:$B$13,'Activity 8'!V$7:V$13,\"N/A\",0,1)","v":"N/A"},{"$f":"_xlfn.XLOOKUP($E22,'Activity 8'!$B$17:$B$23,'Activity 8'!D$17:D$23,\"N/A\",0,1)","v":"N/A"},{"$f":"_xlfn.XLOOKUP($E22,'Activity 8'!$B$17:$B$23,'Activity 8'!E$17:E$23,\"N/A\",0,1)","v":"N/A"},{"$f":"_xlfn.XLOOKUP($E22,'Activity 8'!$B$17:$B$23,'Activity 8'!F$17:F$23,\"N/A\",0,1)","v":"N/A"},{"$f":"_xlfn.XLOOKUP($E22,'Activity 8'!$B$17:$B$23,'Activity 8'!G$17:G$23,\"N/A\",0,1)","v":"N/A"},{"$f":"_xlfn.XLOOKUP($E22,'Activity 8'!$B$17:$B$23,'Activity 8'!H$17:H$23,\"N/A\",0,1)","v":"N/A"},{"$f":"_xlfn.XLOOKUP($E22,'Activity 8'!$B$17:$B$23,'Activity 8'!I$17:I$23,\"N/A\",0,1)","v":"N/A"},{"$f":"_xlfn.XLOOKUP($E22,'Activity 8'!$B$17:$B$23,'Activity 8'!J$17:J$23,\"N/A\",0,1)","v":"N/A"},{"$f":"_xlfn.XLOOKUP($E22,'Activity 8'!$B$17:$B$23,'Activity 8'!K$17:K$23,\"N/A\",0,1)","v":"N/A"},{"$f":"_xlfn.XLOOKUP($E22,'Activity 8'!$B$17:$B$23,'Activity 8'!L$17:L$23,\"N/A\",0,1)","v":"N/A"},{"$f":"_xlfn.XLOOKUP($E22,'Activity 8'!$B$17:$B$23,'Activity 8'!M$17:M$23,\"N/A\",0,1)","v":"N/A"},{"$f":"_xlfn.XLOOKUP($E22,'Activity 8'!$B$17:$B$23,'Activity 8'!N$17:N$23,\"N/A\",0,1)","v":"N/A"},{"$f":"_xlfn.XLOOKUP($E22,'Activity 8'!$B$17:$B$23,'Activity 8'!P$17:P$23,\"N/A\",0,1)","v":"N/A"},{"$f":"_xlfn.XLOOKUP(E22,'Activity 9'!$B$7:$B$13,'Activity 9'!$A$7:$A$13,\"No\",0,1)","v":"No"},{"$f":"_xlfn.XLOOKUP($E22,'Activity 9'!$B$7:$B$13,'Activity 9'!J$7:J$13,\"N/A\",0,1)","v":"N/A"},{"$f":"_xlfn.XLOOKUP($E22,'Activity 9'!$B$7:$B$13,'Activity 9'!K$7:K$13,\"N/A\",0,1)","v":"N/A"},{"$f":"_xlfn.XLOOKUP($E22,'Activity 9'!$B$7:$B$13,'Activity 9'!L$7:L$13,\"N/A\",0,1)","v":"N/A"},{"$f":"_xlfn.XLOOKUP($E22,'Activity 9'!$B$7:$B$13,'Activity 9'!M$7:M$13,\"N/A\",0,1)","v":"N/A"},{"$f":"_xlfn.XLOOKUP($E22,'Activity 9'!$B$7:$B$13,'Activity 9'!N$7:N$13,\"N/A\",0,1)","v":"N/A"},{"$f":"_xlfn.XLOOKUP($E22,'Activity 9'!$B$7:$B$13,'Activity 9'!O$7:O$13,\"N/A\",0,1)","v":"N/A"},{"$f":"_xlfn.XLOOKUP($E22,'Activity 9'!$B$7:$B$13,'Activity 9'!P$7:P$13,\"N/A\",0,1)","v":"N/A"},{"$f":"_xlfn.XLOOKUP($E22,'Activity 9'!$B$7:$B$13,'Activity 9'!Q$7:Q$13,\"N/A\",0,1)","v":"N/A"},{"$f":"_xlfn.XLOOKUP($E22,'Activity 9'!$B$7:$B$13,'Activity 9'!R$7:R$13,\"N/A\",0,1)","v":"N/A"},{"$f":"_xlfn.XLOOKUP($E22,'Activity 9'!$B$7:$B$13,'Activity 9'!S$7:S$13,\"N/A\",0,1)","v":"N/A"},{"$f":"_xlfn.XLOOKUP($E22,'Activity 9'!$B$7:$B$13,'Activity 9'!T$7:T$13,\"N/A\",0,1)","v":"N/A"},{"$f":"_xlfn.XLOOKUP($E22,'Activity 9'!$B$17:$B$23,'Activity 9'!E$17:E$23,\"N/A\",0,1)","v":"N/A"},{"$f":"_xlfn.XLOOKUP($E22,'Activity 9'!$B$17:$B$23,'Activity 9'!F$17:F$23,\"N/A\",0,1)","v":"N/A"},{"$f":"_xlfn.XLOOKUP($E22,'Activity 9'!$B$17:$B$23,'Activity 9'!G$17:G$23,\"N/A\",0,1)","v":"N/A"},{"$f":"_xlfn.XLOOKUP($E22,'Activity 9'!$B$17:$B$23,'Activity 9'!H$17:H$23,\"N/A\",0,1)","v":"N/A"},{"$f":"_xlfn.XLOOKUP($E22,'Activity 9'!$B$17:$B$23,'Activity 9'!I$17:I$23,\"N/A\",0,1)","v":"N/A"},{"$f":"_xlfn.XLOOKUP($E22,'Activity 9'!$B$17:$B$23,'Activity 9'!J$17:J$23,\"N/A\",0,1)","v":"N/A"},{"$f":"_xlfn.XLOOKUP($E22,'Activity 9'!$B$17:$B$23,'Activity 9'!K$17:K$23,\"N/A\",0,1)","v":"N/A"},{"$f":"_xlfn.XLOOKUP($E22,'Activity 9'!$B$17:$B$23,'Activity 9'!L$17:L$23,\"N/A\",0,1)","v":"N/A"},{"$f":"_xlfn.XLOOKUP($E22,'Activity 9'!$B$17:$B$23,'Activity 9'!N$17:N$23,\"N/A\",0,1)","v":"N/A"},{"$f":"_xlfn.XLOOKUP($E22,'Activity 9'!$B$17:$B$23,'Activity 9'!O$17:O$23,\"N/A\",0,1)","v":"N/A"},{"$f":"_xlfn.XLOOKUP($E22,'Activity 9'!$B$17:$B$23,'Activity 9'!Q$17:Q$23,\"N/A\",0,1)","v":"N/A"},{"$f":"_xlfn.XLOOKUP($E22,'Activity 10'!$B$7:$B$13,'Activity 10'!A$7:A$13,\"No\",0,1)","v":"No"},{"$f":"_xlfn.XLOOKUP($E22,'Activity 10'!$B$7:$B$13,'Activity 10'!J$7:J$13,\"N/A\",0,1)","v":"N/A"},{"$f":"_xlfn.XLOOKUP($E22,'Activity 10'!$B$7:$B$13,'Activity 10'!K$7:K$13,\"N/A\",0,1)","v":"N/A"},{"$f":"_xlfn.XLOOKUP($E22,'Activity 10'!$B$7:$B$13,'Activity 10'!L$7:L$13,\"N/A\",0,1)","v":"N/A"},{"$f":"_xlfn.XLOOKUP($E22,'Activity 10'!$B$7:$B$13,'Activity 10'!M$7:M$13,\"N/A\",0,1)","v":"N/A"},{"$f":"_xlfn.XLOOKUP($E22,'Activity 10'!$B$7:$B$13,'Activity 10'!N$7:N$13,\"N/A\",0,1)","v":"N/A"},{"$f":"_xlfn.XLOOKUP($E22,'Activity 10'!$B$7:$B$13,'Activity 10'!O$7:O$13,\"N/A\",0,1)","v":"N/A"},{"$f":"_xlfn.XLOOKUP($E22,'Activity 10'!$B$7:$B$13,'Activity 10'!P$7:P$13,\"N/A\",0,1)","v":"N/A"},{"$f":"_xlfn.XLOOKUP($E22,'Activity 10'!$B$7:$B$13,'Activity 10'!Q$7:Q$13,\"N/A\",0,1)","v":"N/A"},{"$f":"_xlfn.XLOOKUP($E22,'Activity 10'!$B$7:$B$13,'Activity 10'!R$7:R$13,\"N/A\",0,1)","v":"N/A"},{"$f":"_xlfn.XLOOKUP($E22,'Activity 10'!$B$7:$B$13,'Activity 10'!S$7:S$13,\"N/A\",0,1)","v":"N/A"},{"$f":"_xlfn.XLOOKUP($E22,'Activity 10'!$B$7:$B$13,'Activity 10'!T$7:T$13,\"N/A\",0,1)","v":"N/A"},{"$f":"_xlfn.XLOOKUP($E22,'Activity 10'!$B$7:$B$13,'Activity 10'!U$7:U$13,\"N/A\",0,1)","v":"N/A"},{"$f":"_xlfn.XLOOKUP($E22,'Activity 10'!$B$7:$B$13,'Activity 10'!V$7:V$13,\"N/A\",0,1)","v":"N/A"},{"$f":"_xlfn.XLOOKUP($E22,'Activity 10'!$B$17:$B$23,'Activity 10'!E$17:E$23,\"N/A\",0,1)","v":"N/A"},{"$f":"_xlfn.XLOOKUP($E22,'Activity 10'!$B$17:$B$23,'Activity 10'!F$17:F$23,\"N/A\",0,1)","v":"N/A"},{"$f":"_xlfn.XLOOKUP($E22,'Activity 10'!$B$17:$B$23,'Activity 10'!G$17:G$23,\"N/A\",0,1)","v":"N/A"},{"$f":"_xlfn.XLOOKUP($E22,'Activity 10'!$B$17:$B$23,'Activity 10'!H$17:H$23,\"N/A\",0,1)","v":"N/A"},{"$f":"_xlfn.XLOOKUP($E22,'Activity 10'!$B$17:$B$23,'Activity 10'!I$17:I$23,\"N/A\",0,1)","v":"N/A"},{"$f":"_xlfn.XLOOKUP($E22,'Activity 10'!$B$17:$B$23,'Activity 10'!J$17:J$23,\"N/A\",0,1)","v":"N/A"},{"$f":"_xlfn.XLOOKUP($E22,'Activity 10'!$B$17:$B$23,'Activity 10'!K$17:K$23,\"N/A\",0,1)","v":"N/A"},{"$f":"_xlfn.XLOOKUP($E22,'Activity 10'!$B$17:$B$23,'Activity 10'!L$17:L$23,\"N/A\",0,1)","v":"N/A"},{"$f":"_xlfn.XLOOKUP($E22,'Activity 10'!$B$17:$B$23,'Activity 10'!M$17:M$23,\"N/A\",0,1)","v":"N/A"},{"$f":"_xlfn.XLOOKUP($E22,'Activity 10'!$B$17:$B$23,'Activity 10'!N$17:N$23,\"N/A\",0,1)","v":"N/A"},{"$f":"_xlfn.XLOOKUP($E22,'Activity 10'!$B$17:$B$23,'Activity 10'!P$17:P$23,\"N/A\",0,1)","v":"N/A"},{"$f":"_xlfn.XLOOKUP($E22,'Competitive Activity 1'!B$7:B$13,'Competitive Activity 1'!A$7:A$13,\"No\",0,1)","v":"No"},{"$f":"_xlfn.XLOOKUP($E22,'Competitive Activity 1'!$B$7:$B$13,'Competitive Activity 1'!H$7:H$13,\"N/A\",0,1)","v":"N/A"},{"$f":"_xlfn.XLOOKUP($E22,'Competitive Activity 1'!$B$7:$B$13,'Competitive Activity 1'!I$7:I$13,\"N/A\",0,1)","v":"N/A"},{"$f":"_xlfn.XLOOKUP($E22,'Competitive Activity 1'!$B$7:$B$13,'Competitive Activity 1'!J$7:J$13,\"N/A\",0,1)","v":"N/A"},{"$f":"_xlfn.XLOOKUP($E22,'Competitive Activity 1'!$B$7:$B$13,'Competitive Activity 1'!K$7:K$13,\"N/A\",0,1)","v":"N/A"},{"$f":"_xlfn.XLOOKUP($E22,'Competitive Activity 1'!$B$7:$B$13,'Competitive Activity 1'!L$7:L$13,\"N/A\",0,1)","v":"N/A"},{"$f":"_xlfn.XLOOKUP($E22,'Competitive Activity 1'!$B$7:$B$13,'Competitive Activity 1'!M$7:M$13,\"N/A\",0,1)","v":"N/A"},{"$f":"_xlfn.XLOOKUP($E22,'Competitive Activity 1'!$B$7:$B$13,'Competitive Activity 1'!N$7:N$13,\"N/A\",0,1)","v":"N/A"},{"$f":"_xlfn.XLOOKUP($E22,'Competitive Activity 1'!$B$7:$B$13,'Competitive Activity 1'!O$7:O$13,\"N/A\",0,1)","v":"N/A"},{"$f":"_xlfn.XLOOKUP($E22,'Competitive Activity 1'!$B$7:$B$13,'Competitive Activity 1'!P$7:P$13,\"N/A\",0,1)","v":"N/A"},{"$f":"_xlfn.XLOOKUP($E22,'Competitive Activity 1'!$B$7:$B$13,'Competitive Activity 1'!Q$7:Q$13,\"N/A\",0,1)","v":"N/A"},{"$f":"_xlfn.XLOOKUP($E22,'Competitive Activity 1'!$B$7:$B$13,'Competitive Activity 1'!R$7:R$13,\"N/A\",0,1)","v":"N/A"},{"$f":"_xlfn.XLOOKUP($E22,'Competitive Activity 1'!$B$7:$B$13,'Competitive Activity 1'!S$7:S$13,\"N/A\",0,1)","v":"N/A"},{"$f":"_xlfn.XLOOKUP($E22,'Competitive Activity 1'!$B$7:$B$13,'Competitive Activity 1'!T$7:T$13,\"N/A\",0,1)","v":"N/A"},{"$f":"_xlfn.XLOOKUP($E22,'Competitive Activity 1'!$B$7:$B$13,'Competitive Activity 1'!U$7:U$13,\"N/A\",0,1)","v":"N/A"},{"$f":"_xlfn.XLOOKUP($E22,'Competitive Activity 1'!$B$17:$B$23,'Competitive Activity 1'!C$17:C$23,\"N/A\",0,1)","v":"N/A"},{"$f":"_xlfn.XLOOKUP($E22,'Competitive Activity 1'!$B$17:$B$23,'Competitive Activity 1'!D$17:D$23,\"N/A\",0,1)","v":"N/A"},{"$f":"_xlfn.XLOOKUP($E22,'Competitive Activity 1'!$B$17:$B$23,'Competitive Activity 1'!E$17:E$23,\"N/A\",0,1)","v":"N/A"},{"$f":"_xlfn.XLOOKUP($E22,'Competitive Activity 1'!$B$17:$B$23,'Competitive Activity 1'!F$17:F$23,\"N/A\",0,1)","v":"N/A"},{"$f":"_xlfn.XLOOKUP($E22,'Competitive Activity 1'!$B$17:$B$23,'Competitive Activity 1'!G$17:G$23,\"N/A\",0,1)","v":"N/A"},{"$f":"_xlfn.XLOOKUP($E22,'Competitive Activity 1'!$B$17:$B$23,'Competitive Activity 1'!H$17:H$23,\"N/A\",0,1)","v":"N/A"},{"$f":"_xlfn.XLOOKUP($E22,'Competitive Activity 1'!$B$17:$B$23,'Competitive Activity 1'!I$17:I$23,\"N/A\",0,1)","v":"N/A"},{"$f":"_xlfn.XLOOKUP($E22,'Competitive Activity 1'!$B$17:$B$23,'Competitive Activity 1'!J$17:J$23,\"N/A\",0,1)","v":"N/A"},{"$f":"_xlfn.XLOOKUP($E22,'Competitive Activity 1'!$B$17:$B$23,'Competitive Activity 1'!K$17:K$23,\"N/A\",0,1)","v":"N/A"},{"$f":"_xlfn.XLOOKUP($E22,'Competitive Activity 1'!$B$17:$B$23,'Competitive Activity 1'!M$17:M$23,\"N/A\",0,1)","v":"N/A"},{"$f":"_xlfn.XLOOKUP($E22,'Competitive Activity 1'!$B$17:$B$23,'Competitive Activity 1'!N$17:N$23,\"N/A\",0,1)","v":"N/A"},{"$f":"_xlfn.XLOOKUP($E22,'Competitive Activity 1'!$B$17:$B$23,'Competitive Activity 1'!P$17:P$23,\"N/A\",0,1)","v":"N/A"},{"$f":"_xlfn.XLOOKUP($E22,'Competitive Activity 2'!$B$7:$B$13,'Competitive Activity 2'!A$7:A$13,\"No\",0)","v":"No"},{"$f":"_xlfn.XLOOKUP($E22,'Competitive Activity 2'!$B$7:$B$13,'Competitive Activity 2'!L$7:L$13,\"N/A\",0)","v":"N/A"},{"$f":"_xlfn.XLOOKUP($E22,'Competitive Activity 2'!$B$7:$B$13,'Competitive Activity 2'!M$7:M$13,\"N/A\",0)","v":"N/A"},{"$f":"_xlfn.XLOOKUP($E22,'Competitive Activity 2'!$B$7:$B$13,'Competitive Activity 2'!N$7:N$13,\"N/A\",0)","v":"N/A"},{"$f":"_xlfn.XLOOKUP($E22,'Competitive Activity 2'!$B$7:$B$13,'Competitive Activity 2'!O$7:O$13,\"N/A\",0)","v":"N/A"},{"$f":"_xlfn.XLOOKUP($E22,'Competitive Activity 2'!$B$7:$B$13,'Competitive Activity 2'!P$7:P$13,\"N/A\",0)","v":"N/A"},{"$f":"_xlfn.XLOOKUP($E22,'Competitive Activity 2'!$B$7:$B$13,'Competitive Activity 2'!Q$7:Q$13,\"N/A\",0)","v":"N/A"},{"$f":"_xlfn.XLOOKUP($E22,'Competitive Activity 2'!$B$7:$B$13,'Competitive Activity 2'!R$7:R$13,\"N/A\",0)","v":"N/A"},{"$f":"_xlfn.XLOOKUP($E22,'Competitive Activity 2'!$B$7:$B$13,'Competitive Activity 2'!S$7:S$13,\"N/A\",0)","v":"N/A"},{"$f":"_xlfn.XLOOKUP($E22,'Competitive Activity 2'!$B$7:$B$13,'Competitive Activity 2'!T$7:T$13,\"N/A\",0)","v":"N/A"},{"$f":"_xlfn.XLOOKUP($E22,'Competitive Activity 2'!$B$7:$B$13,'Competitive Activity 2'!U$7:U$13,\"N/A\",0)","v":"N/A"},{"$f":"_xlfn.XLOOKUP($E22,'Competitive Activity 2'!$B$17:$B$23,'Competitive Activity 2'!D$17:D$23,\"N/A\",0)","v":"N/A"},{"$f":"_xlfn.XLOOKUP($E22,'Competitive Activity 2'!$B$17:$B$23,'Competitive Activity 2'!E$17:E$23,\"N/A\",0)","v":"N/A"},{"$f":"_xlfn.XLOOKUP($E22,'Competitive Activity 2'!$B$17:$B$23,'Competitive Activity 2'!F$17:F$23,\"N/A\",0)","v":"N/A"},{"$f":"_xlfn.XLOOKUP($E22,'Competitive Activity 2'!$B$17:$B$23,'Competitive Activity 2'!G$17:G$23,\"N/A\",0)","v":"N/A"},{"$f":"_xlfn.XLOOKUP($E22,'Competitive Activity 2'!$B$17:$B$23,'Competitive Activity 2'!H$17:H$23,\"N/A\",0)","v":"N/A"},{"$f":"_xlfn.XLOOKUP($E22,'Competitive Activity 2'!$B$17:$B$23,'Competitive Activity 2'!I$17:I$23,\"N/A\",0)","v":"N/A"},{"$f":"_xlfn.XLOOKUP($E22,'Competitive Activity 2'!$B$17:$B$23,'Competitive Activity 2'!J$17:J$23,\"N/A\",0)","v":"N/A"},{"$f":"_xlfn.XLOOKUP($E22,'Competitive Activity 2'!$B$17:$B$23,'Competitive Activity 2'!K$17:K$23,\"N/A\",0)","v":"N/A"},{"$f":"_xlfn.XLOOKUP($E22,'Competitive Activity 2'!$B$17:$B$23,'Competitive Activity 2'!L$17:L$23,\"N/A\",0)","v":"N/A"},{"$f":"_xlfn.XLOOKUP($E22,'Competitive Activity 2'!$B$17:$B$23,'Competitive Activity 2'!M$17:M$23,\"N/A\",0)","v":"N/A"},{"$f":"_xlfn.XLOOKUP($E22,'Competitive Activity 2'!$B$17:$B$23,'Competitive Activity 2'!N$17:N$23,\"N/A\",0)","v":"N/A"},{"$f":"_xlfn.XLOOKUP($E22,'Competitive Activity 2'!$B$27:$B$33,'Competitive Activity 2'!D$27:D$33,\"N/A\",0)","v":"N/A"},{"$f":"_xlfn.XLOOKUP($E22,'Competitive Activity 2'!$B$27:$B$33,'Competitive Activity 2'!E$27:E$33,\"N/A\",0)","v":"N/A"},{"$f":"_xlfn.XLOOKUP($E22,'Competitive Activity 2'!$B$27:$B$33,'Competitive Activity 2'!F$27:F$33,\"N/A\",0)","v":"N/A"},{"$f":"_xlfn.XLOOKUP($E22,'Competitive Activity 2'!$B$27:$B$33,'Competitive Activity 2'!G$27:G$33,\"N/A\",0)","v":"N/A"},{"$f":"_xlfn.XLOOKUP($E22,'Competitive Activity 2'!$B$27:$B$33,'Competitive Activity 2'!H$27:H$33,\"N/A\",0)","v":"N/A"},{"$f":"_xlfn.XLOOKUP($E22,'Competitive Activity 2'!$B$27:$B$33,'Competitive Activity 2'!I$27:I$33,\"N/A\",0)","v":"N/A"},{"$f":"_xlfn.XLOOKUP($E22,'Competitive Activity 2'!$B$27:$B$33,'Competitive Activity 2'!J$27:J$33,\"N/A\",0)","v":"N/A"},{"$f":"_xlfn.XLOOKUP($E22,'Competitive Activity 2'!$B$27:$B$33,'Competitive Activity 2'!K$27:K$33,\"N/A\",0)","v":"N/A"},{"$f":"_xlfn.XLOOKUP($E22,'Competitive Activity 2'!$B$27:$B$33,'Competitive Activity 2'!M$27:M$33,\"N/A\",0)","v":"N/A"}]
[{"$f":"'1-Cover Sheet'!$C$8","v":"Select One"},{"$f":"'1-Cover Sheet'!$F$8","v":"Select One"},{"$f":"'Summary Sheet'!$D$8","v":0},{"$f":"'Summary Sheet'!$D$10","v":0},{"$f":"'Drop Down Box'!B187","v":0},{"$f":"'Drop Down Box'!C187","v":0},{"$f":"'Drop Down Box'!D187","v":"Select One"},{"$f":"_xlfn.XLOOKUP(E23,'Drop Down Box'!$B$166:$B$249,'Drop Down Box'!$A$166:$A$249,\"Unknown\",0)","v":"Activity 1"},{"$f":"_xlfn.XLOOKUP($E23,'Activity 4'!$B$8:$B$14,'Activity 4'!$J$8:$J$14,\"N/A\",0)","v":"N/A"},{"$f":"_xlfn.XLOOKUP($E23,'Activity 4'!$B$8:$B$14,'Activity 4'!$K$8:$K$14,\"N/A\",0)","v":"N/A"},{"$f":"_xlfn.XLOOKUP(E23,'Activity 4'!B8:B14,'Activity 4'!F8:F14,\"N/A\",0)","v":"N/A"},{"$f":"_xlfn.XLOOKUP($E23,'Activity 4'!B$8:B$14,'Activity 4'!G$8:G$14,\"N/A\",0)","v":"N/A"},{"$f":"_xlfn.XLOOKUP($E23,'Activity 4'!B$8:B$14,'Activity 4'!H$8:H$14,\"N/A\",0)","v":"N/A"},{"$f":"_xlfn.XLOOKUP($E23,'Activity 1'!$B$7:$B$13,'Activity 1'!$A$7:$A$13,\"No\",0,1)","v":"No"},{"$f":"_xlfn.XLOOKUP($E23,'Activity 1'!$B$7:$B$13,'Activity 1'!$H$7:$H$13,\"N/A\",0,1)","v":"N/A"},{"$f":"_xlfn.XLOOKUP($E23,'Activity 1'!$B$7:$B$13,'Activity 1'!I$7:I$13,\"N/A\",0,1)","v":"N/A"},{"$f":"_xlfn.XLOOKUP($E23,'Activity 1'!$B$7:$B$13,'Activity 1'!J$7:J$13,\"N/A\",0,1)","v":"N/A"},{"$f":"_xlfn.XLOOKUP($E23,'Activity 1'!$B$7:$B$13,'Activity 1'!K$7:K$13,\"N/A\",0,1)","v":"N/A"},{"$f":"_xlfn.XLOOKUP($E23,'Activity 1'!$B$7:$B$13,'Activity 1'!L$7:L$13,\"N/A\",0,1)","v":"N/A"},{"$f":"_xlfn.XLOOKUP($E23,'Activity 1'!$B$7:$B$13,'Activity 1'!M$7:M$13,\"N/A\",0,1)","v":"N/A"},{"$f":"_xlfn.XLOOKUP($E23,'Activity 1'!$B$7:$B$13,'Activity 1'!N$7:N$13,\"N/A\",0,1)","v":"N/A"},0,{"$f":"_xlfn.XLOOKUP($E23,'Activity 1'!$B$7:$B$13,'Activity 1'!O$7:O$13,\"N/A\",0,1)","v":"N/A"},{"$f":"_xlfn.XLOOKUP($E23,'Activity 1'!$B$7:$B$13,'Activity 1'!P$7:P$13,\"N/A\",0,1)","v":"N/A"},{"$f":"_xlfn.XLOOKUP($E23,'Activity 1'!$B$7:$B$13,'Activity 1'!Q$7:Q$13,\"N/A\",0,1)","v":"N/A"},{"$f":"_xlfn.XLOOKUP($E23,'Activity 1'!$B$7:$B$13,'Activity 1'!R$7:R$13,\"N/A\",0,1)","v":"N/A"},{"$f":"_xlfn.XLOOKUP($E23,'Activity 1'!$B$7:$B$13,'Activity 1'!S$7:S$13,\"N/A\",0,1)","v":"N/A"},{"$f":"_xlfn.XLOOKUP($E23,'Activity 1'!$B$7:$B$13,'Activity 1'!T$7:T$13,\"N/A\",0,1)","v":"N/A"},{"$f":"_xlfn.XLOOKUP($E23,'Activity 1'!$B$7:$B$13,'Activity 1'!U$7:U$13,\"N/A\",0,1)","v":"N/A"},{"$f":"_xlfn.XLOOKUP($E23,'Activity 1'!$B$7:$B$13,'Activity 1'!V$7:V$13,\"N/A\",0,1)","v":"N/A"},{"$f":"_xlfn.XLOOKUP($E23,'Activity 1'!$B$17:$B$23,'Activity 1'!C$17:C$23,\"N/A\",0,1)","v":"N/A"},{"$f":"_xlfn.XLOOKUP($E23,'Activity 1'!$B$17:$B$23,'Activity 1'!D$17:D$23,\"N/A\",0,1)","v":"N/A"},{"$f":"_xlfn.XLOOKUP($E23,'Activity 1'!$B$17:$B$23,'Activity 1'!E$17:E$23,\"N/A\",0,1)","v":"N/A"},{"$f":"_xlfn.XLOOKUP($E23,'Activity 1'!$B$17:$B$23,'Activity 1'!F$17:F$23,\"N/A\",0,1)","v":"N/A"},{"$f":"_xlfn.XLOOKUP($E23,'Activity 1'!$B$17:$B$23,'Activity 1'!G$17:G$23,\"N/A\",0,1)","v":"N/A"},{"$f":"_xlfn.XLOOKUP($E23,'Activity 1'!$B$17:$B$23,'Activity 1'!H$17:H$23,\"N/A\",0,1)","v":"N/A"},{"$f":"_xlfn.XLOOKUP($E23,'Activity 1'!$B$17:$B$23,'Activity 1'!I$17:I$23,\"N/A\",0,1)","v":"N/A"},{"$f":"_xlfn.XLOOKUP($E23,'Activity 1'!$B$17:$B$23,'Activity 1'!J$17:J$23,\"N/A\",0,1)","v":"N/A"},{"$f":"_xlfn.XLOOKUP($E23,'Activity 1'!$B$17:$B$23,'Activity 1'!K$17:K$23,\"N/A\",0,1)","v":"N/A"},{"$f":"_xlfn.XLOOKUP($E23,'Activity 1'!$B$17:$B$23,'Activity 1'!L$17:L$23,\"N/A\",0,1)","v":"N/A"},{"$f":"_xlfn.XLOOKUP($E23,'Activity 1'!$B$17:$B$23,'Activity 1'!M$17:M$23,\"N/A\",0,1)","v":"N/A"},{"$f":"_xlfn.XLOOKUP($E23,'Activity 1'!$B$17:$B$23,'Activity 1'!O$17:O$23,\"N/A\",0,1)","v":"N/A"},{"$f":"_xlfn.XLOOKUP($E23,'Activity 1'!$B$17:$B$23,'Activity 1'!Q$17:Q$23,\"N/A\",0,1)","v":"N/A"},{"$f":"_xlfn.XLOOKUP($E23,'Activity 2'!$B$7:$B$13,'Activity 2'!$A$7:$A$13,\"No\",0,1)","v":"No"},{"$f":"_xlfn.XLOOKUP($E23,'Activity 2'!B$7:B$13,'Activity 2'!H$7:H$13,\"N/A\",0)","v":"N/A"},{"$f":"_xlfn.XLOOKUP($E23,'Activity 2'!C$7:C$13,'Activity 2'!I$7:I$13,\"N/A\",0)","v":"N/A"},{"$f":"_xlfn.XLOOKUP($E23,'Activity 2'!D$7:D$13,'Activity 2'!J$7:J$13,\"N/A\",0)","v":"N/A"},{"$f":"_xlfn.XLOOKUP($E23,'Activity 2'!E$7:E$13,'Activity 2'!K$7:K$13,\"N/A\",0)","v":"N/A"},{"$f":"_xlfn.XLOOKUP($E23,'Activity 2'!F$7:F$13,'Activity 2'!L$7:L$13,\"N/A\",0)","v":"N/A"},{"$f":"_xlfn.XLOOKUP($E23,'Activity 2'!G$7:G$13,'Activity 2'!M$7:M$13,\"N/A\",0)","v":"N/A"},{"$f":"_xlfn.XLOOKUP($E23,'Activity 2'!H$7:H$13,'Activity 2'!N$7:N$13,\"N/A\",0)","v":"N/A"},{"$f":"_xlfn.XLOOKUP($E23,'Activity 2'!I$7:I$13,'Activity 2'!O$7:O$13,\"N/A\",0)","v":"N/A"},{"$f":"_xlfn.XLOOKUP($E23,'Activity 2'!J$7:J$13,'Activity 2'!P$7:P$13,\"N/A\",0)","v":"N/A"},{"$f":"_xlfn.XLOOKUP($E23,'Activity 2'!K$7:K$13,'Activity 2'!Q$7:Q$13,\"N/A\",0)","v":"N/A"},{"$f":"_xlfn.XLOOKUP($E23,'Activity 2'!L$7:L$13,'Activity 2'!R$7:R$13,\"N/A\",0)","v":"N/A"},{"$f":"_xlfn.XLOOKUP($E23,'Activity 2'!M$7:M$13,'Activity 2'!S$7:S$13,\"N/A\",0)","v":"N/A"},{"$f":"_xlfn.XLOOKUP($E23,'Activity 2'!N$7:N$13,'Activity 2'!T$7:T$13,\"N/A\",0)","v":"N/A"},{"$f":"_xlfn.XLOOKUP($E23,'Activity 2'!O$7:O$13,'Activity 2'!U$7:U$13,\"N/A\",0)","v":"N/A"},{"$f":"_xlfn.XLOOKUP($E23,'Activity 2'!P$7:P$13,'Activity 2'!V$7:V$13,\"N/A\",0)","v":"N/A"},{"$f":"_xlfn.XLOOKUP($E23,'Activity 2'!$B$17:$B$23,'Activity 2'!C$17:C$23,\"N/A\",0,1)","v":"N/A"},{"$f":"_xlfn.XLOOKUP($E23,'Activity 2'!$B$17:$B$23,'Activity 2'!D$17:D$23,\"N/A\",0,1)","v":"N/A"},{"$f":"_xlfn.XLOOKUP($E23,'Activity 2'!$B$17:$B$23,'Activity 2'!E$17:E$23,\"N/A\",0,1)","v":"N/A"},{"$f":"_xlfn.XLOOKUP($E23,'Activity 2'!$B$17:$B$23,'Activity 2'!F$17:F$23,\"N/A\",0,1)","v":"N/A"},{"$f":"_xlfn.XLOOKUP($E23,'Activity 2'!$B$17:$B$23,'Activity 2'!G$17:G$23,\"N/A\",0,1)","v":"N/A"},{"$f":"_xlfn.XLOOKUP($E23,'Activity 2'!$B$17:$B$23,'Activity 2'!H$17:H$23,\"N/A\",0,1)","v":"N/A"},{"$f":"_xlfn.XLOOKUP($E23,'Activity 2'!$B$17:$B$23,'Activity 2'!I$17:I$23,\"N/A\",0,1)","v":"N/A"},{"$f":"_xlfn.XLOOKUP($E23,'Activity 2'!$B$17:$B$23,'Activity 2'!J$17:J$23,\"N/A\",0,1)","v":"N/A"},{"$f":"_xlfn.XLOOKUP($E23,'Activity 2'!$B$17:$B$23,'Activity 2'!K$17:K$23,\"N/A\",0,1)","v":"N/A"},{"$f":"_xlfn.XLOOKUP($E23,'Activity 2'!$B$17:$B$23,'Activity 2'!L$17:L$23,\"N/A\",0,1)","v":"N/A"},{"$f":"_xlfn.XLOOKUP($E23,'Activity 2'!$B$17:$B$23,'Activity 2'!M$17:M$23,\"N/A\",0,1)","v":"N/A"},{"$f":"_xlfn.XLOOKUP($E23,'Activity 2'!$B$17:$B$23,'Activity 2'!O$17:O$23,\"N/A\",0,1)","v":"N/A"},{"$f":"_xlfn.XLOOKUP($E23,'Activity 2'!$B$17:$B$23,'Activity 2'!Q$17:Q$23,\"N/A\",0,1)","v":"N/A"},null,{"$f":"_xlfn.XLOOKUP($E23,'Activity 3'!$B$8:$B$14,'Activity 3'!K$8:K$14,\"N/A\",0,1)","v":"N/A"},{"$f":"_xlfn.XLOOKUP($E23,'Activity 3'!$B$8:$B$14,'Activity 3'!L$8:L$14,\"N/A\",0,1)","v":"N/A"},{"$f":"_xlfn.XLOOKUP($E23,'Activity 3'!$B$8:$B$14,'Activity 3'!M$8:M$14,\"N/A\",0,1)","v":"N/A"},{"$f":"_xlfn.XLOOKUP($E23,'Activity 3'!$B$8:$B$14,'Activity 3'!N$8:N$14,\"N/A\",0,1)","v":"N/A"},{"$f":"_xlfn.XLOOKUP($E23,'Activity 3'!$B$8:$B$14,'Activity 3'!O$8:O$14,\"N/A\",0,1)","v":"N/A"},{"$f":"_xlfn.XLOOKUP($E23,'Activity 3'!$B$8:$B$14,'Activity 3'!R$8:R$14,\"N/A\",0,1)","v":"N/A"},{"$f":"_xlfn.XLOOKUP($E23,'Activity 4'!$B$8:$B$14,'Activity 4'!$A$8:$A$14,\"No\",0,1)","v":"No"},{"$f":"_xlfn.XLOOKUP($E23,'Activity 4'!$B$8:$B$14,'Activity 4'!L$8:L$14,\"N/A\",0,1)","v":"N/A"},{"$f":"_xlfn.XLOOKUP($E23,'Activity 4'!$B$8:$B$14,'Activity 4'!I$8:I$14,\"N/A\",0,1)","v":"N/A"},{"$f":"_xlfn.XLOOKUP($E23,'Activity 4'!$B$8:$B$14,'Activity 4'!M$8:M$14,\"N/A\",0,1)","v":"N/A"},{"$f":"_xlfn.XLOOKUP($E23,'Activity 5'!$B$8:$B$14,'Activity 5'!$A$8:$A$14,\"No\",0,1)","v":"No"},{"$f":"_xlfn.XLOOKUP($E23,'Activity 5'!$B$8:$B$14,'Activity 5'!J$8:J$14,\"N/A\",0,1)","v":"N/A"},{"$f":"_xlfn.XLOOKUP($E23,'Activity 5'!$B$8:$B$14,'Activity 5'!K$8:K$14,\"N/A\",0,1)","v":"N/A"},{"$f":"_xlfn.XLOOKUP($E23,'Activity 5'!$B$8:$B$14,'Activity 5'!N$8:N$14,\"N/A\",0,1)","v":"N/A"},{"$f":"_xlfn.XLOOKUP($E23,'Activity 5'!$B$8:$B$14,'Activity 5'!O$8:O$14,\"N/A\",0,1)","v":"N/A"},{"$f":"_xlfn.XLOOKUP($E23,'Activity 5'!$B$8:$B$14,'Activity 5'!P$8:P$14,\"N/A\",0,1)","v":"N/A"},{"$f":"_xlfn.XLOOKUP($E23,'Activity 5'!$B$8:$B$14,'Activity 5'!Q$8:Q$14,\"N/A\",0,1)","v":"N/A"},{"$f":"_xlfn.XLOOKUP($E23,'Activity 5'!$B$8:$B$14,'Activity 5'!R$8:R$14,\"N/A\",0,1)","v":"N/A"},{"$f":"_xlfn.XLOOKUP($E23,'Activity 6'!$B$7:$B$13,'Activity 6'!A$7:A$13,\"No\",0,1)","v":"No"},{"$f":"_xlfn.XLOOKUP($E23,'Activity 6'!$B$7:$B$13,'Activity 6'!K$7:K$13,\"N/A\",0,1)","v":"N/A"},{"$f":"_xlfn.XLOOKUP($E23,'Activity 6'!$B$7:$B$13,'Activity 6'!L$7:L$13,\"N/A\",0,1)","v":"N/A"},{"$f":"_xlfn.XLOOKUP($E23,'Activity 6'!$B$7:$B$13,'Activity 6'!M$7:M$13,\"N/A\",0,1)","v":"N/A"},{"$f":"_xlfn.XLOOKUP($E23,'Activity 6'!$B$7:$B$13,'Activity 6'!N$7:N$13,\"N/A\",0,1)","v":"N/A"},{"$f":"_xlfn.XLOOKUP($E23,'Activity 6'!$B$7:$B$13,'Activity 6'!O$7:O$13,\"N/A\",0,1)","v":"N/A"},{"$f":"_xlfn.XLOOKUP($E23,'Activity 6'!$B$7:$B$13,'Activity 6'!P$7:P$13,\"N/A\",0,1)","v":"N/A"},{"$f":"_xlfn.XLOOKUP($E23,'Activity 6'!$B$7:$B$13,'Activity 6'!Q$7:Q$13,\"N/A\",0,1)","v":"N/A"},{"$f":"_xlfn.XLOOKUP($E23,'Activity 6'!$B$7:$B$13,'Activity 6'!R$7:R$13,\"N/A\",0,1)","v":"N/A"},{"$f":"_xlfn.XLOOKUP($E23,'Activity 6'!$B$7:$B$13,'Activity 6'!S$7:S$13,\"N/A\",0,1)","v":"N/A"},{"$f":"_xlfn.XLOOKUP($E23,'Activity 6'!$B$7:$B$13,'Activity 6'!T$7:T$13,\"N/A\",0,1)","v":"N/A"},{"$f":"_xlfn.XLOOKUP($E23,'Activity 6'!$B$7:$B$13,'Activity 6'!U$7:U$13,\"N/A\",0,1)","v":"N/A"},{"$f":"_xlfn.XLOOKUP($E23,'Activity 6'!$B$22:$B$28,'Activity 6'!C$22:C$28,\"N/A\",0,1)","v":"N/A"},{"$f":"_xlfn.XLOOKUP($E23,'Activity 6'!$B$22:$B$28,'Activity 6'!D$22:D$28,\"N/A\",0,1)","v":"N/A"},{"$f":"_xlfn.XLOOKUP($E23,'Activity 6'!$B$22:$B$28,'Activity 6'!E$22:E$28,\"N/A\",0,1)","v":"N/A"},{"$f":"_xlfn.XLOOKUP($E23,'Activity 6'!$B$22:$B$28,'Activity 6'!F$22:F$28,\"N/A\",0,1)","v":"N/A"},{"$f":"_xlfn.XLOOKUP($E23,'Activity 6'!$B$22:$B$28,'Activity 6'!G$22:G$28,\"N/A\",0,1)","v":"N/A"},{"$f":"_xlfn.XLOOKUP($E23,'Activity 6'!$B$22:$B$28,'Activity 6'!H$22:H$28,\"N/A\",0,1)","v":"N/A"},{"$f":"_xlfn.XLOOKUP($E23,'Activity 6'!$B$22:$B$28,'Activity 6'!I$22:I$28,\"N/A\",0,1)","v":"N/A"},{"$f":"_xlfn.XLOOKUP($E23,'Activity 6'!$B$22:$B$28,'Activity 6'!J$22:J$28,\"N/A\",0,1)","v":"N/A"},{"$f":"_xlfn.XLOOKUP($E23,'Activity 6'!$B$22:$B$28,'Activity 6'!K$22:K$28,\"N/A\",0,1)","v":"N/A"},{"$f":"_xlfn.XLOOKUP($E23,'Activity 6'!$B$22:$B$28,'Activity 6'!L$22:L$28,\"N/A\",0,1)","v":"N/A"},{"$f":"_xlfn.XLOOKUP($E23,'Activity 6'!$B$22:$B$28,'Activity 6'!M$22:M$28,\"N/A\",0,1)","v":"N/A"},{"$f":"_xlfn.XLOOKUP($E23,'Activity 6'!$B$22:$B$28,'Activity 6'!N$22:N$28,\"N/A\",0,1)","v":"N/A"},{"$f":"_xlfn.XLOOKUP($E23,'Activity 6'!$B$32:$B$38,'Activity 6'!C$32:C$38,\"N/A\",0,1)","v":"N/A"},{"$f":"_xlfn.XLOOKUP($E23,'Activity 6'!$B$32:$B$38,'Activity 6'!D$32:D$38,\"N/A\",0,1)","v":"N/A"},{"$f":"_xlfn.XLOOKUP($E23,'Activity 6'!$B$32:$B$38,'Activity 6'!E$32:E$38,\"N/A\",0,1)","v":"N/A"},{"$f":"_xlfn.XLOOKUP($E23,'Activity 6'!$B$32:$B$38,'Activity 6'!F$32:F$38,\"N/A\",0,1)","v":"N/A"},{"$f":"_xlfn.XLOOKUP($E23,'Activity 6'!$B$32:$B$38,'Activity 6'!G$32:G$38,\"N/A\",0,1)","v":"N/A"},{"$f":"_xlfn.XLOOKUP($E23,'Activity 6'!$B$32:$B$38,'Activity 6'!H$32:H$38,\"N/A\",0,1)","v":"N/A"},{"$f":"_xlfn.XLOOKUP($E23,'Activity 6'!$B$32:$B$38,'Activity 6'!I$32:I$38,\"N/A\",0,1)","v":"N/A"},{"$f":"_xlfn.XLOOKUP($E23,'Activity 6'!$B$32:$B$38,'Activity 6'!J$32:J$38,\"N/A\",0,1)","v":"N/A"},{"$f":"_xlfn.XLOOKUP($E23,'Activity 6'!$B$32:$B$38,'Activity 6'!K$32:K$38,\"N/A\",0,1)","v":"N/A"},{"$f":"_xlfn.XLOOKUP($E23,'Activity 6'!$B$32:$B$38,'Activity 6'!M$32:M$38,\"N/A\",0,1)","v":"N/A"},{"$f":"_xlfn.XLOOKUP($E23,'Activity 7'!$B$7:$B$13,'Activity 7'!$A$7:$A$13,\"No\",0,1)","v":"No"},{"$f":"_xlfn.XLOOKUP($E23,'Activity 7'!$B$7:$B$13,'Activity 7'!M$7:M$13,\"N/A\",0,1)","v":"N/A"},{"$f":"_xlfn.XLOOKUP($E23,'Activity 7'!$B$7:$B$13,'Activity 7'!K$7:K$13,\"N/A\",0,1)","v":"N/A"},{"$f":"_xlfn.XLOOKUP($E23,'Activity 7'!$B$7:$B$13,'Activity 7'!N$7:N$13,\"N/A\",0,1)","v":"N/A"},{"$f":"_xlfn.XLOOKUP($E23,'Activity 7'!$B$7:$B$13,'Activity 7'!O$7:O$13,\"N/A\",0,1)","v":"N/A"},{"$f":"_xlfn.XLOOKUP($E23,'Activity 7'!$B$7:$B$13,'Activity 7'!P$7:P$13,\"N/A\",0,1)","v":"N/A"},{"$f":"_xlfn.XLOOKUP($E23,'Activity 7'!$B$7:$B$13,'Activity 7'!Q$7:Q$13,\"N/A\",0,1)","v":"N/A"},{"$f":"_xlfn.XLOOKUP($E23,'Activity 7'!$B$7:$B$13,'Activity 7'!R$7:R$13,\"N/A\",0,1)","v":"N/A"},{"$f":"_xlfn.XLOOKUP($E23,'Activity 7'!$B$7:$B$13,'Activity 7'!S$7:S$13,\"N/A\",0,1)","v":"N/A"},{"$f":"_xlfn.XLOOKUP($E23,'Activity 7'!$B$7:$B$13,'Activity 7'!T$7:T$13,\"N/A\",0,1)","v":"N/A"},{"$f":"_xlfn.XLOOKUP($E23,'Activity 7'!$B$7:$B$13,'Activity 7'!U$7:U$13,\"N/A\",0,1)","v":"N/A"},{"$f":"_xlfn.XLOOKUP($E23,'Activity 7'!$B$7:$B$13,'Activity 7'!V$7:V$13,\"N/A\",0,1)","v":"N/A"},{"$f":"_xlfn.XLOOKUP($E23,'Activity 7'!$B$17:$B$23,'Activity 7'!E$17:E$23,\"N/A\",0,1)","v":"N/A"},{"$f":"_xlfn.XLOOKUP($E23,'Activity 7'!$B$17:$B$23,'Activity 7'!G$17:G$23,\"N/A\",0,1)","v":"N/A"},{"$f":"_xlfn.XLOOKUP($E23,'Activity 7'!$B$17:$B$23,'Activity 7'!I$17:I$23,\"N/A\",0,1)","v":"N/A"},{"$f":"_xlfn.XLOOKUP($E23,'Activity 7'!$B$17:$B$23,'Activity 7'!J$17:J$23,\"N/A\",0,1)","v":"N/A"},{"$f":"_xlfn.XLOOKUP($E23,'Activity 7'!$B$17:$B$23,'Activity 7'!K$17:K$23,\"N/A\",0,1)","v":"N/A"},{"$f":"_xlfn.XLOOKUP($E23,'Activity 7'!$B$17:$B$23,'Activity 7'!L$17:L$23,\"N/A\",0,1)","v":"N/A"},{"$f":"_xlfn.XLOOKUP($E23,'Activity 7'!$B$17:$B$23,'Activity 7'!M$17:M$23,\"N/A\",0,1)","v":"N/A"},{"$f":"_xlfn.XLOOKUP($E23,'Activity 7'!$B$17:$B$23,'Activity 7'!N$17:N$23,\"N/A\",0,1)","v":"N/A"},{"$f":"_xlfn.XLOOKUP($E23,'Activity 7'!$B$17:$B$23,'Activity 7'!P$17:P$23,\"N/A\",0,1)","v":"N/A"},{"$f":"_xlfn.XLOOKUP($E23,'Activity 8'!$B$7:$B$13,'Activity 8'!A$7:A$13,\"No\",0,1)","v":"No"},{"$f":"_xlfn.XLOOKUP($E23,'Activity 8'!$B$7:$B$13,'Activity 8'!I$7:I$13,\"N/A\",0,1)","v":"N/A"},{"$f":"_xlfn.XLOOKUP($E23,'Activity 8'!$B$7:$B$13,'Activity 8'!J$7:J$13,\"N/A\",0,1)","v":"N/A"},{"$f":"_xlfn.XLOOKUP($E23,'Activity 8'!$B$7:$B$13,'Activity 8'!K$7:K$13,\"N/A\",0,1)","v":"N/A"},{"$f":"_xlfn.XLOOKUP($E23,'Activity 8'!$B$7:$B$13,'Activity 8'!L$7:L$13,\"N/A\",0,1)","v":"N/A"},{"$f":"_xlfn.XLOOKUP($E23,'Activity 8'!$B$7:$B$13,'Activity 8'!M$7:M$13,\"N/A\",0,1)","v":"N/A"},{"$f":"_xlfn.XLOOKUP($E23,'Activity 8'!$B$7:$B$13,'Activity 8'!N$7:N$13,\"N/A\",0,1)","v":"N/A"},{"$f":"_xlfn.XLOOKUP($E23,'Activity 8'!$B$7:$B$13,'Activity 8'!O$7:O$13,\"N/A\",0,1)","v":"N/A"},{"$f":"_xlfn.XLOOKUP($E23,'Activity 8'!$B$7:$B$13,'Activity 8'!P$7:P$13,\"N/A\",0,1)","v":"N/A"},{"$f":"_xlfn.XLOOKUP($E23,'Activity 8'!$B$7:$B$13,'Activity 8'!Q$7:Q$13,\"N/A\",0,1)","v":"N/A"},{"$f":"_xlfn.XLOOKUP($E23,'Activity 8'!$B$7:$B$13,'Activity 8'!R$7:R$13,\"N/A\",0,1)","v":"N/A"},{"$f":"_xlfn.XLOOKUP($E23,'Activity 8'!$B$7:$B$13,'Activity 8'!S$7:S$13,\"N/A\",0,1)","v":"N/A"},{"$f":"_xlfn.XLOOKUP($E23,'Activity 8'!$B$7:$B$13,'Activity 8'!T$7:T$13,\"N/A\",0,1)","v":"N/A"},{"$f":"_xlfn.XLOOKUP($E23,'Activity 8'!$B$7:$B$13,'Activity 8'!U$7:U$13,\"N/A\",0,1)","v":"N/A"},{"$f":"_xlfn.XLOOKUP($E23,'Activity 8'!$B$7:$B$13,'Activity 8'!V$7:V$13,\"N/A\",0,1)","v":"N/A"},{"$f":"_xlfn.XLOOKUP($E23,'Activity 8'!$B$17:$B$23,'Activity 8'!D$17:D$23,\"N/A\",0,1)","v":"N/A"},{"$f":"_xlfn.XLOOKUP($E23,'Activity 8'!$B$17:$B$23,'Activity 8'!E$17:E$23,\"N/A\",0,1)","v":"N/A"},{"$f":"_xlfn.XLOOKUP($E23,'Activity 8'!$B$17:$B$23,'Activity 8'!F$17:F$23,\"N/A\",0,1)","v":"N/A"},{"$f":"_xlfn.XLOOKUP($E23,'Activity 8'!$B$17:$B$23,'Activity 8'!G$17:G$23,\"N/A\",0,1)","v":"N/A"},{"$f":"_xlfn.XLOOKUP($E23,'Activity 8'!$B$17:$B$23,'Activity 8'!H$17:H$23,\"N/A\",0,1)","v":"N/A"},{"$f":"_xlfn.XLOOKUP($E23,'Activity 8'!$B$17:$B$23,'Activity 8'!I$17:I$23,\"N/A\",0,1)","v":"N/A"},{"$f":"_xlfn.XLOOKUP($E23,'Activity 8'!$B$17:$B$23,'Activity 8'!J$17:J$23,\"N/A\",0,1)","v":"N/A"},{"$f":"_xlfn.XLOOKUP($E23,'Activity 8'!$B$17:$B$23,'Activity 8'!K$17:K$23,\"N/A\",0,1)","v":"N/A"},{"$f":"_xlfn.XLOOKUP($E23,'Activity 8'!$B$17:$B$23,'Activity 8'!L$17:L$23,\"N/A\",0,1)","v":"N/A"},{"$f":"_xlfn.XLOOKUP($E23,'Activity 8'!$B$17:$B$23,'Activity 8'!M$17:M$23,\"N/A\",0,1)","v":"N/A"},{"$f":"_xlfn.XLOOKUP($E23,'Activity 8'!$B$17:$B$23,'Activity 8'!N$17:N$23,\"N/A\",0,1)","v":"N/A"},{"$f":"_xlfn.XLOOKUP($E23,'Activity 8'!$B$17:$B$23,'Activity 8'!P$17:P$23,\"N/A\",0,1)","v":"N/A"},{"$f":"_xlfn.XLOOKUP(E23,'Activity 9'!$B$7:$B$13,'Activity 9'!$A$7:$A$13,\"No\",0,1)","v":"No"},{"$f":"_xlfn.XLOOKUP($E23,'Activity 9'!$B$7:$B$13,'Activity 9'!J$7:J$13,\"N/A\",0,1)","v":"N/A"},{"$f":"_xlfn.XLOOKUP($E23,'Activity 9'!$B$7:$B$13,'Activity 9'!K$7:K$13,\"N/A\",0,1)","v":"N/A"},{"$f":"_xlfn.XLOOKUP($E23,'Activity 9'!$B$7:$B$13,'Activity 9'!L$7:L$13,\"N/A\",0,1)","v":"N/A"},{"$f":"_xlfn.XLOOKUP($E23,'Activity 9'!$B$7:$B$13,'Activity 9'!M$7:M$13,\"N/A\",0,1)","v":"N/A"},{"$f":"_xlfn.XLOOKUP($E23,'Activity 9'!$B$7:$B$13,'Activity 9'!N$7:N$13,\"N/A\",0,1)","v":"N/A"},{"$f":"_xlfn.XLOOKUP($E23,'Activity 9'!$B$7:$B$13,'Activity 9'!O$7:O$13,\"N/A\",0,1)","v":"N/A"},{"$f":"_xlfn.XLOOKUP($E23,'Activity 9'!$B$7:$B$13,'Activity 9'!P$7:P$13,\"N/A\",0,1)","v":"N/A"},{"$f":"_xlfn.XLOOKUP($E23,'Activity 9'!$B$7:$B$13,'Activity 9'!Q$7:Q$13,\"N/A\",0,1)","v":"N/A"},{"$f":"_xlfn.XLOOKUP($E23,'Activity 9'!$B$7:$B$13,'Activity 9'!R$7:R$13,\"N/A\",0,1)","v":"N/A"},{"$f":"_xlfn.XLOOKUP($E23,'Activity 9'!$B$7:$B$13,'Activity 9'!S$7:S$13,\"N/A\",0,1)","v":"N/A"},{"$f":"_xlfn.XLOOKUP($E23,'Activity 9'!$B$7:$B$13,'Activity 9'!T$7:T$13,\"N/A\",0,1)","v":"N/A"},{"$f":"_xlfn.XLOOKUP($E23,'Activity 9'!$B$17:$B$23,'Activity 9'!E$17:E$23,\"N/A\",0,1)","v":"N/A"},{"$f":"_xlfn.XLOOKUP($E23,'Activity 9'!$B$17:$B$23,'Activity 9'!F$17:F$23,\"N/A\",0,1)","v":"N/A"},{"$f":"_xlfn.XLOOKUP($E23,'Activity 9'!$B$17:$B$23,'Activity 9'!G$17:G$23,\"N/A\",0,1)","v":"N/A"},{"$f":"_xlfn.XLOOKUP($E23,'Activity 9'!$B$17:$B$23,'Activity 9'!H$17:H$23,\"N/A\",0,1)","v":"N/A"},{"$f":"_xlfn.XLOOKUP($E23,'Activity 9'!$B$17:$B$23,'Activity 9'!I$17:I$23,\"N/A\",0,1)","v":"N/A"},{"$f":"_xlfn.XLOOKUP($E23,'Activity 9'!$B$17:$B$23,'Activity 9'!J$17:J$23,\"N/A\",0,1)","v":"N/A"},{"$f":"_xlfn.XLOOKUP($E23,'Activity 9'!$B$17:$B$23,'Activity 9'!K$17:K$23,\"N/A\",0,1)","v":"N/A"},{"$f":"_xlfn.XLOOKUP($E23,'Activity 9'!$B$17:$B$23,'Activity 9'!L$17:L$23,\"N/A\",0,1)","v":"N/A"},{"$f":"_xlfn.XLOOKUP($E23,'Activity 9'!$B$17:$B$23,'Activity 9'!N$17:N$23,\"N/A\",0,1)","v":"N/A"},{"$f":"_xlfn.XLOOKUP($E23,'Activity 9'!$B$17:$B$23,'Activity 9'!O$17:O$23,\"N/A\",0,1)","v":"N/A"},{"$f":"_xlfn.XLOOKUP($E23,'Activity 9'!$B$17:$B$23,'Activity 9'!Q$17:Q$23,\"N/A\",0,1)","v":"N/A"},{"$f":"_xlfn.XLOOKUP($E23,'Activity 10'!$B$7:$B$13,'Activity 10'!A$7:A$13,\"No\",0,1)","v":"No"},{"$f":"_xlfn.XLOOKUP($E23,'Activity 10'!$B$7:$B$13,'Activity 10'!J$7:J$13,\"N/A\",0,1)","v":"N/A"},{"$f":"_xlfn.XLOOKUP($E23,'Activity 10'!$B$7:$B$13,'Activity 10'!K$7:K$13,\"N/A\",0,1)","v":"N/A"},{"$f":"_xlfn.XLOOKUP($E23,'Activity 10'!$B$7:$B$13,'Activity 10'!L$7:L$13,\"N/A\",0,1)","v":"N/A"},{"$f":"_xlfn.XLOOKUP($E23,'Activity 10'!$B$7:$B$13,'Activity 10'!M$7:M$13,\"N/A\",0,1)","v":"N/A"},{"$f":"_xlfn.XLOOKUP($E23,'Activity 10'!$B$7:$B$13,'Activity 10'!N$7:N$13,\"N/A\",0,1)","v":"N/A"},{"$f":"_xlfn.XLOOKUP($E23,'Activity 10'!$B$7:$B$13,'Activity 10'!O$7:O$13,\"N/A\",0,1)","v":"N/A"},{"$f":"_xlfn.XLOOKUP($E23,'Activity 10'!$B$7:$B$13,'Activity 10'!P$7:P$13,\"N/A\",0,1)","v":"N/A"},{"$f":"_xlfn.XLOOKUP($E23,'Activity 10'!$B$7:$B$13,'Activity 10'!Q$7:Q$13,\"N/A\",0,1)","v":"N/A"},{"$f":"_xlfn.XLOOKUP($E23,'Activity 10'!$B$7:$B$13,'Activity 10'!R$7:R$13,\"N/A\",0,1)","v":"N/A"},{"$f":"_xlfn.XLOOKUP($E23,'Activity 10'!$B$7:$B$13,'Activity 10'!S$7:S$13,\"N/A\",0,1)","v":"N/A"},{"$f":"_xlfn.XLOOKUP($E23,'Activity 10'!$B$7:$B$13,'Activity 10'!T$7:T$13,\"N/A\",0,1)","v":"N/A"},{"$f":"_xlfn.XLOOKUP($E23,'Activity 10'!$B$7:$B$13,'Activity 10'!U$7:U$13,\"N/A\",0,1)","v":"N/A"},{"$f":"_xlfn.XLOOKUP($E23,'Activity 10'!$B$7:$B$13,'Activity 10'!V$7:V$13,\"N/A\",0,1)","v":"N/A"},{"$f":"_xlfn.XLOOKUP($E23,'Activity 10'!$B$17:$B$23,'Activity 10'!E$17:E$23,\"N/A\",0,1)","v":"N/A"},{"$f":"_xlfn.XLOOKUP($E23,'Activity 10'!$B$17:$B$23,'Activity 10'!F$17:F$23,\"N/A\",0,1)","v":"N/A"},{"$f":"_xlfn.XLOOKUP($E23,'Activity 10'!$B$17:$B$23,'Activity 10'!G$17:G$23,\"N/A\",0,1)","v":"N/A"},{"$f":"_xlfn.XLOOKUP($E23,'Activity 10'!$B$17:$B$23,'Activity 10'!H$17:H$23,\"N/A\",0,1)","v":"N/A"},{"$f":"_xlfn.XLOOKUP($E23,'Activity 10'!$B$17:$B$23,'Activity 10'!I$17:I$23,\"N/A\",0,1)","v":"N/A"},{"$f":"_xlfn.XLOOKUP($E23,'Activity 10'!$B$17:$B$23,'Activity 10'!J$17:J$23,\"N/A\",0,1)","v":"N/A"},{"$f":"_xlfn.XLOOKUP($E23,'Activity 10'!$B$17:$B$23,'Activity 10'!K$17:K$23,\"N/A\",0,1)","v":"N/A"},{"$f":"_xlfn.XLOOKUP($E23,'Activity 10'!$B$17:$B$23,'Activity 10'!L$17:L$23,\"N/A\",0,1)","v":"N/A"},{"$f":"_xlfn.XLOOKUP($E23,'Activity 10'!$B$17:$B$23,'Activity 10'!M$17:M$23,\"N/A\",0,1)","v":"N/A"},{"$f":"_xlfn.XLOOKUP($E23,'Activity 10'!$B$17:$B$23,'Activity 10'!N$17:N$23,\"N/A\",0,1)","v":"N/A"},{"$f":"_xlfn.XLOOKUP($E23,'Activity 10'!$B$17:$B$23,'Activity 10'!P$17:P$23,\"N/A\",0,1)","v":"N/A"},{"$f":"_xlfn.XLOOKUP($E23,'Competitive Activity 1'!B$7:B$13,'Competitive Activity 1'!A$7:A$13,\"No\",0,1)","v":"No"},{"$f":"_xlfn.XLOOKUP($E23,'Competitive Activity 1'!$B$7:$B$13,'Competitive Activity 1'!H$7:H$13,\"N/A\",0,1)","v":"N/A"},{"$f":"_xlfn.XLOOKUP($E23,'Competitive Activity 1'!$B$7:$B$13,'Competitive Activity 1'!I$7:I$13,\"N/A\",0,1)","v":"N/A"},{"$f":"_xlfn.XLOOKUP($E23,'Competitive Activity 1'!$B$7:$B$13,'Competitive Activity 1'!J$7:J$13,\"N/A\",0,1)","v":"N/A"},{"$f":"_xlfn.XLOOKUP($E23,'Competitive Activity 1'!$B$7:$B$13,'Competitive Activity 1'!K$7:K$13,\"N/A\",0,1)","v":"N/A"},{"$f":"_xlfn.XLOOKUP($E23,'Competitive Activity 1'!$B$7:$B$13,'Competitive Activity 1'!L$7:L$13,\"N/A\",0,1)","v":"N/A"},{"$f":"_xlfn.XLOOKUP($E23,'Competitive Activity 1'!$B$7:$B$13,'Competitive Activity 1'!M$7:M$13,\"N/A\",0,1)","v":"N/A"},{"$f":"_xlfn.XLOOKUP($E23,'Competitive Activity 1'!$B$7:$B$13,'Competitive Activity 1'!N$7:N$13,\"N/A\",0,1)","v":"N/A"},{"$f":"_xlfn.XLOOKUP($E23,'Competitive Activity 1'!$B$7:$B$13,'Competitive Activity 1'!O$7:O$13,\"N/A\",0,1)","v":"N/A"},{"$f":"_xlfn.XLOOKUP($E23,'Competitive Activity 1'!$B$7:$B$13,'Competitive Activity 1'!P$7:P$13,\"N/A\",0,1)","v":"N/A"},{"$f":"_xlfn.XLOOKUP($E23,'Competitive Activity 1'!$B$7:$B$13,'Competitive Activity 1'!Q$7:Q$13,\"N/A\",0,1)","v":"N/A"},{"$f":"_xlfn.XLOOKUP($E23,'Competitive Activity 1'!$B$7:$B$13,'Competitive Activity 1'!R$7:R$13,\"N/A\",0,1)","v":"N/A"},{"$f":"_xlfn.XLOOKUP($E23,'Competitive Activity 1'!$B$7:$B$13,'Competitive Activity 1'!S$7:S$13,\"N/A\",0,1)","v":"N/A"},{"$f":"_xlfn.XLOOKUP($E23,'Competitive Activity 1'!$B$7:$B$13,'Competitive Activity 1'!T$7:T$13,\"N/A\",0,1)","v":"N/A"},{"$f":"_xlfn.XLOOKUP($E23,'Competitive Activity 1'!$B$7:$B$13,'Competitive Activity 1'!U$7:U$13,\"N/A\",0,1)","v":"N/A"},{"$f":"_xlfn.XLOOKUP($E23,'Competitive Activity 1'!$B$17:$B$23,'Competitive Activity 1'!C$17:C$23,\"N/A\",0,1)","v":"N/A"},{"$f":"_xlfn.XLOOKUP($E23,'Competitive Activity 1'!$B$17:$B$23,'Competitive Activity 1'!D$17:D$23,\"N/A\",0,1)","v":"N/A"},{"$f":"_xlfn.XLOOKUP($E23,'Competitive Activity 1'!$B$17:$B$23,'Competitive Activity 1'!E$17:E$23,\"N/A\",0,1)","v":"N/A"},{"$f":"_xlfn.XLOOKUP($E23,'Competitive Activity 1'!$B$17:$B$23,'Competitive Activity 1'!F$17:F$23,\"N/A\",0,1)","v":"N/A"},{"$f":"_xlfn.XLOOKUP($E23,'Competitive Activity 1'!$B$17:$B$23,'Competitive Activity 1'!G$17:G$23,\"N/A\",0,1)","v":"N/A"},{"$f":"_xlfn.XLOOKUP($E23,'Competitive Activity 1'!$B$17:$B$23,'Competitive Activity 1'!H$17:H$23,\"N/A\",0,1)","v":"N/A"},{"$f":"_xlfn.XLOOKUP($E23,'Competitive Activity 1'!$B$17:$B$23,'Competitive Activity 1'!I$17:I$23,\"N/A\",0,1)","v":"N/A"},{"$f":"_xlfn.XLOOKUP($E23,'Competitive Activity 1'!$B$17:$B$23,'Competitive Activity 1'!J$17:J$23,\"N/A\",0,1)","v":"N/A"},{"$f":"_xlfn.XLOOKUP($E23,'Competitive Activity 1'!$B$17:$B$23,'Competitive Activity 1'!K$17:K$23,\"N/A\",0,1)","v":"N/A"},{"$f":"_xlfn.XLOOKUP($E23,'Competitive Activity 1'!$B$17:$B$23,'Competitive Activity 1'!M$17:M$23,\"N/A\",0,1)","v":"N/A"},{"$f":"_xlfn.XLOOKUP($E23,'Competitive Activity 1'!$B$17:$B$23,'Competitive Activity 1'!N$17:N$23,\"N/A\",0,1)","v":"N/A"},{"$f":"_xlfn.XLOOKUP($E23,'Competitive Activity 1'!$B$17:$B$23,'Competitive Activity 1'!P$17:P$23,\"N/A\",0,1)","v":"N/A"},{"$f":"_xlfn.XLOOKUP($E23,'Competitive Activity 2'!$B$7:$B$13,'Competitive Activity 2'!A$7:A$13,\"No\",0)","v":"No"},{"$f":"_xlfn.XLOOKUP($E23,'Competitive Activity 2'!$B$7:$B$13,'Competitive Activity 2'!L$7:L$13,\"N/A\",0)","v":"N/A"},{"$f":"_xlfn.XLOOKUP($E23,'Competitive Activity 2'!$B$7:$B$13,'Competitive Activity 2'!M$7:M$13,\"N/A\",0)","v":"N/A"},{"$f":"_xlfn.XLOOKUP($E23,'Competitive Activity 2'!$B$7:$B$13,'Competitive Activity 2'!N$7:N$13,\"N/A\",0)","v":"N/A"},{"$f":"_xlfn.XLOOKUP($E23,'Competitive Activity 2'!$B$7:$B$13,'Competitive Activity 2'!O$7:O$13,\"N/A\",0)","v":"N/A"},{"$f":"_xlfn.XLOOKUP($E23,'Competitive Activity 2'!$B$7:$B$13,'Competitive Activity 2'!P$7:P$13,\"N/A\",0)","v":"N/A"},{"$f":"_xlfn.XLOOKUP($E23,'Competitive Activity 2'!$B$7:$B$13,'Competitive Activity 2'!Q$7:Q$13,\"N/A\",0)","v":"N/A"},{"$f":"_xlfn.XLOOKUP($E23,'Competitive Activity 2'!$B$7:$B$13,'Competitive Activity 2'!R$7:R$13,\"N/A\",0)","v":"N/A"},{"$f":"_xlfn.XLOOKUP($E23,'Competitive Activity 2'!$B$7:$B$13,'Competitive Activity 2'!S$7:S$13,\"N/A\",0)","v":"N/A"},{"$f":"_xlfn.XLOOKUP($E23,'Competitive Activity 2'!$B$7:$B$13,'Competitive Activity 2'!T$7:T$13,\"N/A\",0)","v":"N/A"},{"$f":"_xlfn.XLOOKUP($E23,'Competitive Activity 2'!$B$7:$B$13,'Competitive Activity 2'!U$7:U$13,\"N/A\",0)","v":"N/A"},{"$f":"_xlfn.XLOOKUP($E23,'Competitive Activity 2'!$B$17:$B$23,'Competitive Activity 2'!D$17:D$23,\"N/A\",0)","v":"N/A"},{"$f":"_xlfn.XLOOKUP($E23,'Competitive Activity 2'!$B$17:$B$23,'Competitive Activity 2'!E$17:E$23,\"N/A\",0)","v":"N/A"},{"$f":"_xlfn.XLOOKUP($E23,'Competitive Activity 2'!$B$17:$B$23,'Competitive Activity 2'!F$17:F$23,\"N/A\",0)","v":"N/A"},{"$f":"_xlfn.XLOOKUP($E23,'Competitive Activity 2'!$B$17:$B$23,'Competitive Activity 2'!G$17:G$23,\"N/A\",0)","v":"N/A"},{"$f":"_xlfn.XLOOKUP($E23,'Competitive Activity 2'!$B$17:$B$23,'Competitive Activity 2'!H$17:H$23,\"N/A\",0)","v":"N/A"},{"$f":"_xlfn.XLOOKUP($E23,'Competitive Activity 2'!$B$17:$B$23,'Competitive Activity 2'!I$17:I$23,\"N/A\",0)","v":"N/A"},{"$f":"_xlfn.XLOOKUP($E23,'Competitive Activity 2'!$B$17:$B$23,'Competitive Activity 2'!J$17:J$23,\"N/A\",0)","v":"N/A"},{"$f":"_xlfn.XLOOKUP($E23,'Competitive Activity 2'!$B$17:$B$23,'Competitive Activity 2'!K$17:K$23,\"N/A\",0)","v":"N/A"},{"$f":"_xlfn.XLOOKUP($E23,'Competitive Activity 2'!$B$17:$B$23,'Competitive Activity 2'!L$17:L$23,\"N/A\",0)","v":"N/A"},{"$f":"_xlfn.XLOOKUP($E23,'Competitive Activity 2'!$B$17:$B$23,'Competitive Activity 2'!M$17:M$23,\"N/A\",0)","v":"N/A"},{"$f":"_xlfn.XLOOKUP($E23,'Competitive Activity 2'!$B$17:$B$23,'Competitive Activity 2'!N$17:N$23,\"N/A\",0)","v":"N/A"},{"$f":"_xlfn.XLOOKUP($E23,'Competitive Activity 2'!$B$27:$B$33,'Competitive Activity 2'!D$27:D$33,\"N/A\",0)","v":"N/A"},{"$f":"_xlfn.XLOOKUP($E23,'Competitive Activity 2'!$B$27:$B$33,'Competitive Activity 2'!E$27:E$33,\"N/A\",0)","v":"N/A"},{"$f":"_xlfn.XLOOKUP($E23,'Competitive Activity 2'!$B$27:$B$33,'Competitive Activity 2'!F$27:F$33,\"N/A\",0)","v":"N/A"},{"$f":"_xlfn.XLOOKUP($E23,'Competitive Activity 2'!$B$27:$B$33,'Competitive Activity 2'!G$27:G$33,\"N/A\",0)","v":"N/A"},{"$f":"_xlfn.XLOOKUP($E23,'Competitive Activity 2'!$B$27:$B$33,'Competitive Activity 2'!H$27:H$33,\"N/A\",0)","v":"N/A"},{"$f":"_xlfn.XLOOKUP($E23,'Competitive Activity 2'!$B$27:$B$33,'Competitive Activity 2'!I$27:I$33,\"N/A\",0)","v":"N/A"},{"$f":"_xlfn.XLOOKUP($E23,'Competitive Activity 2'!$B$27:$B$33,'Competitive Activity 2'!J$27:J$33,\"N/A\",0)","v":"N/A"},{"$f":"_xlfn.XLOOKUP($E23,'Competitive Activity 2'!$B$27:$B$33,'Competitive Activity 2'!K$27:K$33,\"N/A\",0)","v":"N/A"},{"$f":"_xlfn.XLOOKUP($E23,'Competitive Activity 2'!$B$27:$B$33,'Competitive Activity 2'!M$27:M$33,\"N/A\",0)","v":"N/A"}]
[{"$f":"'1-Cover Sheet'!$C$8","v":"Select One"},{"$f":"'1-Cover Sheet'!$F$8","v":"Select One"},{"$f":"'Summary Sheet'!$D$8","v":0},{"$f":"'Summary Sheet'!$D$10","v":0},{"$f":"'Drop Down Box'!B188","v":0},{"$f":"'Drop Down Box'!C188","v":0},{"$f":"'Drop Down Box'!D188","v":"Select One"},{"$f":"_xlfn.XLOOKUP(E24,'Drop Down Box'!$B$166:$B$249,'Drop Down Box'!$A$166:$A$249,\"Unknown\",0)","v":"Activity 1"},{"$f":"_xlfn.XLOOKUP($E24,'Activity 4'!$B$8:$B$14,'Activity 4'!$J$8:$J$14,\"N/A\",0)","v":"N/A"},{"$f":"_xlfn.XLOOKUP($E24,'Activity 4'!$B$8:$B$14,'Activity 4'!$K$8:$K$14,\"N/A\",0)","v":"N/A"},{"$f":"_xlfn.XLOOKUP(E24,'Activity 4'!B9:B15,'Activity 4'!F9:F15,\"N/A\",0)","v":"N/A"},{"$f":"_xlfn.XLOOKUP($E24,'Activity 4'!B$8:B$14,'Activity 4'!G$8:G$14,\"N/A\",0)","v":"N/A"},{"$f":"_xlfn.XLOOKUP($E24,'Activity 4'!B$8:B$14,'Activity 4'!H$8:H$14,\"N/A\",0)","v":"N/A"},{"$f":"_xlfn.XLOOKUP($E24,'Activity 1'!$B$7:$B$13,'Activity 1'!$A$7:$A$13,\"No\",0,1)","v":"No"},{"$f":"_xlfn.XLOOKUP($E24,'Activity 1'!$B$7:$B$13,'Activity 1'!$H$7:$H$13,\"N/A\",0,1)","v":"N/A"},{"$f":"_xlfn.XLOOKUP($E24,'Activity 1'!$B$7:$B$13,'Activity 1'!I$7:I$13,\"N/A\",0,1)","v":"N/A"},{"$f":"_xlfn.XLOOKUP($E24,'Activity 1'!$B$7:$B$13,'Activity 1'!J$7:J$13,\"N/A\",0,1)","v":"N/A"},{"$f":"_xlfn.XLOOKUP($E24,'Activity 1'!$B$7:$B$13,'Activity 1'!K$7:K$13,\"N/A\",0,1)","v":"N/A"},{"$f":"_xlfn.XLOOKUP($E24,'Activity 1'!$B$7:$B$13,'Activity 1'!L$7:L$13,\"N/A\",0,1)","v":"N/A"},{"$f":"_xlfn.XLOOKUP($E24,'Activity 1'!$B$7:$B$13,'Activity 1'!M$7:M$13,\"N/A\",0,1)","v":"N/A"},{"$f":"_xlfn.XLOOKUP($E24,'Activity 1'!$B$7:$B$13,'Activity 1'!N$7:N$13,\"N/A\",0,1)","v":"N/A"},0,{"$f":"_xlfn.XLOOKUP($E24,'Activity 1'!$B$7:$B$13,'Activity 1'!O$7:O$13,\"N/A\",0,1)","v":"N/A"},{"$f":"_xlfn.XLOOKUP($E24,'Activity 1'!$B$7:$B$13,'Activity 1'!P$7:P$13,\"N/A\",0,1)","v":"N/A"},{"$f":"_xlfn.XLOOKUP($E24,'Activity 1'!$B$7:$B$13,'Activity 1'!Q$7:Q$13,\"N/A\",0,1)","v":"N/A"},{"$f":"_xlfn.XLOOKUP($E24,'Activity 1'!$B$7:$B$13,'Activity 1'!R$7:R$13,\"N/A\",0,1)","v":"N/A"},{"$f":"_xlfn.XLOOKUP($E24,'Activity 1'!$B$7:$B$13,'Activity 1'!S$7:S$13,\"N/A\",0,1)","v":"N/A"},{"$f":"_xlfn.XLOOKUP($E24,'Activity 1'!$B$7:$B$13,'Activity 1'!T$7:T$13,\"N/A\",0,1)","v":"N/A"},{"$f":"_xlfn.XLOOKUP($E24,'Activity 1'!$B$7:$B$13,'Activity 1'!U$7:U$13,\"N/A\",0,1)","v":"N/A"},{"$f":"_xlfn.XLOOKUP($E24,'Activity 1'!$B$7:$B$13,'Activity 1'!V$7:V$13,\"N/A\",0,1)","v":"N/A"},{"$f":"_xlfn.XLOOKUP($E24,'Activity 1'!$B$17:$B$23,'Activity 1'!C$17:C$23,\"N/A\",0,1)","v":"N/A"},{"$f":"_xlfn.XLOOKUP($E24,'Activity 1'!$B$17:$B$23,'Activity 1'!D$17:D$23,\"N/A\",0,1)","v":"N/A"},{"$f":"_xlfn.XLOOKUP($E24,'Activity 1'!$B$17:$B$23,'Activity 1'!E$17:E$23,\"N/A\",0,1)","v":"N/A"},{"$f":"_xlfn.XLOOKUP($E24,'Activity 1'!$B$17:$B$23,'Activity 1'!F$17:F$23,\"N/A\",0,1)","v":"N/A"},{"$f":"_xlfn.XLOOKUP($E24,'Activity 1'!$B$17:$B$23,'Activity 1'!G$17:G$23,\"N/A\",0,1)","v":"N/A"},{"$f":"_xlfn.XLOOKUP($E24,'Activity 1'!$B$17:$B$23,'Activity 1'!H$17:H$23,\"N/A\",0,1)","v":"N/A"},{"$f":"_xlfn.XLOOKUP($E24,'Activity 1'!$B$17:$B$23,'Activity 1'!I$17:I$23,\"N/A\",0,1)","v":"N/A"},{"$f":"_xlfn.XLOOKUP($E24,'Activity 1'!$B$17:$B$23,'Activity 1'!J$17:J$23,\"N/A\",0,1)","v":"N/A"},{"$f":"_xlfn.XLOOKUP($E24,'Activity 1'!$B$17:$B$23,'Activity 1'!K$17:K$23,\"N/A\",0,1)","v":"N/A"},{"$f":"_xlfn.XLOOKUP($E24,'Activity 1'!$B$17:$B$23,'Activity 1'!L$17:L$23,\"N/A\",0,1)","v":"N/A"},{"$f":"_xlfn.XLOOKUP($E24,'Activity 1'!$B$17:$B$23,'Activity 1'!M$17:M$23,\"N/A\",0,1)","v":"N/A"},{"$f":"_xlfn.XLOOKUP($E24,'Activity 1'!$B$17:$B$23,'Activity 1'!O$17:O$23,\"N/A\",0,1)","v":"N/A"},{"$f":"_xlfn.XLOOKUP($E24,'Activity 1'!$B$17:$B$23,'Activity 1'!Q$17:Q$23,\"N/A\",0,1)","v":"N/A"},{"$f":"_xlfn.XLOOKUP($E24,'Activity 2'!$B$7:$B$13,'Activity 2'!$A$7:$A$13,\"No\",0,1)","v":"No"},{"$f":"_xlfn.XLOOKUP($E24,'Activity 2'!B$7:B$13,'Activity 2'!H$7:H$13,\"N/A\",0)","v":"N/A"},{"$f":"_xlfn.XLOOKUP($E24,'Activity 2'!C$7:C$13,'Activity 2'!I$7:I$13,\"N/A\",0)","v":"N/A"},{"$f":"_xlfn.XLOOKUP($E24,'Activity 2'!D$7:D$13,'Activity 2'!J$7:J$13,\"N/A\",0)","v":"N/A"},{"$f":"_xlfn.XLOOKUP($E24,'Activity 2'!E$7:E$13,'Activity 2'!K$7:K$13,\"N/A\",0)","v":"N/A"},{"$f":"_xlfn.XLOOKUP($E24,'Activity 2'!F$7:F$13,'Activity 2'!L$7:L$13,\"N/A\",0)","v":"N/A"},{"$f":"_xlfn.XLOOKUP($E24,'Activity 2'!G$7:G$13,'Activity 2'!M$7:M$13,\"N/A\",0)","v":"N/A"},{"$f":"_xlfn.XLOOKUP($E24,'Activity 2'!H$7:H$13,'Activity 2'!N$7:N$13,\"N/A\",0)","v":"N/A"},{"$f":"_xlfn.XLOOKUP($E24,'Activity 2'!I$7:I$13,'Activity 2'!O$7:O$13,\"N/A\",0)","v":"N/A"},{"$f":"_xlfn.XLOOKUP($E24,'Activity 2'!J$7:J$13,'Activity 2'!P$7:P$13,\"N/A\",0)","v":"N/A"},{"$f":"_xlfn.XLOOKUP($E24,'Activity 2'!K$7:K$13,'Activity 2'!Q$7:Q$13,\"N/A\",0)","v":"N/A"},{"$f":"_xlfn.XLOOKUP($E24,'Activity 2'!L$7:L$13,'Activity 2'!R$7:R$13,\"N/A\",0)","v":"N/A"},{"$f":"_xlfn.XLOOKUP($E24,'Activity 2'!M$7:M$13,'Activity 2'!S$7:S$13,\"N/A\",0)","v":"N/A"},{"$f":"_xlfn.XLOOKUP($E24,'Activity 2'!N$7:N$13,'Activity 2'!T$7:T$13,\"N/A\",0)","v":"N/A"},{"$f":"_xlfn.XLOOKUP($E24,'Activity 2'!O$7:O$13,'Activity 2'!U$7:U$13,\"N/A\",0)","v":"N/A"},{"$f":"_xlfn.XLOOKUP($E24,'Activity 2'!P$7:P$13,'Activity 2'!V$7:V$13,\"N/A\",0)","v":"N/A"},{"$f":"_xlfn.XLOOKUP($E24,'Activity 2'!$B$17:$B$23,'Activity 2'!C$17:C$23,\"N/A\",0,1)","v":"N/A"},{"$f":"_xlfn.XLOOKUP($E24,'Activity 2'!$B$17:$B$23,'Activity 2'!D$17:D$23,\"N/A\",0,1)","v":"N/A"},{"$f":"_xlfn.XLOOKUP($E24,'Activity 2'!$B$17:$B$23,'Activity 2'!E$17:E$23,\"N/A\",0,1)","v":"N/A"},{"$f":"_xlfn.XLOOKUP($E24,'Activity 2'!$B$17:$B$23,'Activity 2'!F$17:F$23,\"N/A\",0,1)","v":"N/A"},{"$f":"_xlfn.XLOOKUP($E24,'Activity 2'!$B$17:$B$23,'Activity 2'!G$17:G$23,\"N/A\",0,1)","v":"N/A"},{"$f":"_xlfn.XLOOKUP($E24,'Activity 2'!$B$17:$B$23,'Activity 2'!H$17:H$23,\"N/A\",0,1)","v":"N/A"},{"$f":"_xlfn.XLOOKUP($E24,'Activity 2'!$B$17:$B$23,'Activity 2'!I$17:I$23,\"N/A\",0,1)","v":"N/A"},{"$f":"_xlfn.XLOOKUP($E24,'Activity 2'!$B$17:$B$23,'Activity 2'!J$17:J$23,\"N/A\",0,1)","v":"N/A"},{"$f":"_xlfn.XLOOKUP($E24,'Activity 2'!$B$17:$B$23,'Activity 2'!K$17:K$23,\"N/A\",0,1)","v":"N/A"},{"$f":"_xlfn.XLOOKUP($E24,'Activity 2'!$B$17:$B$23,'Activity 2'!L$17:L$23,\"N/A\",0,1)","v":"N/A"},{"$f":"_xlfn.XLOOKUP($E24,'Activity 2'!$B$17:$B$23,'Activity 2'!M$17:M$23,\"N/A\",0,1)","v":"N/A"},{"$f":"_xlfn.XLOOKUP($E24,'Activity 2'!$B$17:$B$23,'Activity 2'!O$17:O$23,\"N/A\",0,1)","v":"N/A"},{"$f":"_xlfn.XLOOKUP($E24,'Activity 2'!$B$17:$B$23,'Activity 2'!Q$17:Q$23,\"N/A\",0,1)","v":"N/A"},null,{"$f":"_xlfn.XLOOKUP($E24,'Activity 3'!$B$8:$B$14,'Activity 3'!K$8:K$14,\"N/A\",0,1)","v":"N/A"},{"$f":"_xlfn.XLOOKUP($E24,'Activity 3'!$B$8:$B$14,'Activity 3'!L$8:L$14,\"N/A\",0,1)","v":"N/A"},{"$f":"_xlfn.XLOOKUP($E24,'Activity 3'!$B$8:$B$14,'Activity 3'!M$8:M$14,\"N/A\",0,1)","v":"N/A"},{"$f":"_xlfn.XLOOKUP($E24,'Activity 3'!$B$8:$B$14,'Activity 3'!N$8:N$14,\"N/A\",0,1)","v":"N/A"},{"$f":"_xlfn.XLOOKUP($E24,'Activity 3'!$B$8:$B$14,'Activity 3'!O$8:O$14,\"N/A\",0,1)","v":"N/A"},{"$f":"_xlfn.XLOOKUP($E24,'Activity 3'!$B$8:$B$14,'Activity 3'!R$8:R$14,\"N/A\",0,1)","v":"N/A"},{"$f":"_xlfn.XLOOKUP($E24,'Activity 4'!$B$8:$B$14,'Activity 4'!$A$8:$A$14,\"No\",0,1)","v":"No"},{"$f":"_xlfn.XLOOKUP($E24,'Activity 4'!$B$8:$B$14,'Activity 4'!L$8:L$14,\"N/A\",0,1)","v":"N/A"},{"$f":"_xlfn.XLOOKUP($E24,'Activity 4'!$B$8:$B$14,'Activity 4'!I$8:I$14,\"N/A\",0,1)","v":"N/A"},{"$f":"_xlfn.XLOOKUP($E24,'Activity 4'!$B$8:$B$14,'Activity 4'!M$8:M$14,\"N/A\",0,1)","v":"N/A"},{"$f":"_xlfn.XLOOKUP($E24,'Activity 5'!$B$8:$B$14,'Activity 5'!$A$8:$A$14,\"No\",0,1)","v":"No"},{"$f":"_xlfn.XLOOKUP($E24,'Activity 5'!$B$8:$B$14,'Activity 5'!J$8:J$14,\"N/A\",0,1)","v":"N/A"},{"$f":"_xlfn.XLOOKUP($E24,'Activity 5'!$B$8:$B$14,'Activity 5'!K$8:K$14,\"N/A\",0,1)","v":"N/A"},{"$f":"_xlfn.XLOOKUP($E24,'Activity 5'!$B$8:$B$14,'Activity 5'!N$8:N$14,\"N/A\",0,1)","v":"N/A"},{"$f":"_xlfn.XLOOKUP($E24,'Activity 5'!$B$8:$B$14,'Activity 5'!O$8:O$14,\"N/A\",0,1)","v":"N/A"},{"$f":"_xlfn.XLOOKUP($E24,'Activity 5'!$B$8:$B$14,'Activity 5'!P$8:P$14,\"N/A\",0,1)","v":"N/A"},{"$f":"_xlfn.XLOOKUP($E24,'Activity 5'!$B$8:$B$14,'Activity 5'!Q$8:Q$14,\"N/A\",0,1)","v":"N/A"},{"$f":"_xlfn.XLOOKUP($E24,'Activity 5'!$B$8:$B$14,'Activity 5'!R$8:R$14,\"N/A\",0,1)","v":"N/A"},{"$f":"_xlfn.XLOOKUP($E24,'Activity 6'!$B$7:$B$13,'Activity 6'!A$7:A$13,\"No\",0,1)","v":"No"},{"$f":"_xlfn.XLOOKUP($E24,'Activity 6'!$B$7:$B$13,'Activity 6'!K$7:K$13,\"N/A\",0,1)","v":"N/A"},{"$f":"_xlfn.XLOOKUP($E24,'Activity 6'!$B$7:$B$13,'Activity 6'!L$7:L$13,\"N/A\",0,1)","v":"N/A"},{"$f":"_xlfn.XLOOKUP($E24,'Activity 6'!$B$7:$B$13,'Activity 6'!M$7:M$13,\"N/A\",0,1)","v":"N/A"},{"$f":"_xlfn.XLOOKUP($E24,'Activity 6'!$B$7:$B$13,'Activity 6'!N$7:N$13,\"N/A\",0,1)","v":"N/A"},{"$f":"_xlfn.XLOOKUP($E24,'Activity 6'!$B$7:$B$13,'Activity 6'!O$7:O$13,\"N/A\",0,1)","v":"N/A"},{"$f":"_xlfn.XLOOKUP($E24,'Activity 6'!$B$7:$B$13,'Activity 6'!P$7:P$13,\"N/A\",0,1)","v":"N/A"},{"$f":"_xlfn.XLOOKUP($E24,'Activity 6'!$B$7:$B$13,'Activity 6'!Q$7:Q$13,\"N/A\",0,1)","v":"N/A"},{"$f":"_xlfn.XLOOKUP($E24,'Activity 6'!$B$7:$B$13,'Activity 6'!R$7:R$13,\"N/A\",0,1)","v":"N/A"},{"$f":"_xlfn.XLOOKUP($E24,'Activity 6'!$B$7:$B$13,'Activity 6'!S$7:S$13,\"N/A\",0,1)","v":"N/A"},{"$f":"_xlfn.XLOOKUP($E24,'Activity 6'!$B$7:$B$13,'Activity 6'!T$7:T$13,\"N/A\",0,1)","v":"N/A"},{"$f":"_xlfn.XLOOKUP($E24,'Activity 6'!$B$7:$B$13,'Activity 6'!U$7:U$13,\"N/A\",0,1)","v":"N/A"},{"$f":"_xlfn.XLOOKUP($E24,'Activity 6'!$B$22:$B$28,'Activity 6'!C$22:C$28,\"N/A\",0,1)","v":"N/A"},{"$f":"_xlfn.XLOOKUP($E24,'Activity 6'!$B$22:$B$28,'Activity 6'!D$22:D$28,\"N/A\",0,1)","v":"N/A"},{"$f":"_xlfn.XLOOKUP($E24,'Activity 6'!$B$22:$B$28,'Activity 6'!E$22:E$28,\"N/A\",0,1)","v":"N/A"},{"$f":"_xlfn.XLOOKUP($E24,'Activity 6'!$B$22:$B$28,'Activity 6'!F$22:F$28,\"N/A\",0,1)","v":"N/A"},{"$f":"_xlfn.XLOOKUP($E24,'Activity 6'!$B$22:$B$28,'Activity 6'!G$22:G$28,\"N/A\",0,1)","v":"N/A"},{"$f":"_xlfn.XLOOKUP($E24,'Activity 6'!$B$22:$B$28,'Activity 6'!H$22:H$28,\"N/A\",0,1)","v":"N/A"},{"$f":"_xlfn.XLOOKUP($E24,'Activity 6'!$B$22:$B$28,'Activity 6'!I$22:I$28,\"N/A\",0,1)","v":"N/A"},{"$f":"_xlfn.XLOOKUP($E24,'Activity 6'!$B$22:$B$28,'Activity 6'!J$22:J$28,\"N/A\",0,1)","v":"N/A"},{"$f":"_xlfn.XLOOKUP($E24,'Activity 6'!$B$22:$B$28,'Activity 6'!K$22:K$28,\"N/A\",0,1)","v":"N/A"},{"$f":"_xlfn.XLOOKUP($E24,'Activity 6'!$B$22:$B$28,'Activity 6'!L$22:L$28,\"N/A\",0,1)","v":"N/A"},{"$f":"_xlfn.XLOOKUP($E24,'Activity 6'!$B$22:$B$28,'Activity 6'!M$22:M$28,\"N/A\",0,1)","v":"N/A"},{"$f":"_xlfn.XLOOKUP($E24,'Activity 6'!$B$22:$B$28,'Activity 6'!N$22:N$28,\"N/A\",0,1)","v":"N/A"},{"$f":"_xlfn.XLOOKUP($E24,'Activity 6'!$B$32:$B$38,'Activity 6'!C$32:C$38,\"N/A\",0,1)","v":"N/A"},{"$f":"_xlfn.XLOOKUP($E24,'Activity 6'!$B$32:$B$38,'Activity 6'!D$32:D$38,\"N/A\",0,1)","v":"N/A"},{"$f":"_xlfn.XLOOKUP($E24,'Activity 6'!$B$32:$B$38,'Activity 6'!E$32:E$38,\"N/A\",0,1)","v":"N/A"},{"$f":"_xlfn.XLOOKUP($E24,'Activity 6'!$B$32:$B$38,'Activity 6'!F$32:F$38,\"N/A\",0,1)","v":"N/A"},{"$f":"_xlfn.XLOOKUP($E24,'Activity 6'!$B$32:$B$38,'Activity 6'!G$32:G$38,\"N/A\",0,1)","v":"N/A"},{"$f":"_xlfn.XLOOKUP($E24,'Activity 6'!$B$32:$B$38,'Activity 6'!H$32:H$38,\"N/A\",0,1)","v":"N/A"},{"$f":"_xlfn.XLOOKUP($E24,'Activity 6'!$B$32:$B$38,'Activity 6'!I$32:I$38,\"N/A\",0,1)","v":"N/A"},{"$f":"_xlfn.XLOOKUP($E24,'Activity 6'!$B$32:$B$38,'Activity 6'!J$32:J$38,\"N/A\",0,1)","v":"N/A"},{"$f":"_xlfn.XLOOKUP($E24,'Activity 6'!$B$32:$B$38,'Activity 6'!K$32:K$38,\"N/A\",0,1)","v":"N/A"},{"$f":"_xlfn.XLOOKUP($E24,'Activity 6'!$B$32:$B$38,'Activity 6'!M$32:M$38,\"N/A\",0,1)","v":"N/A"},{"$f":"_xlfn.XLOOKUP($E24,'Activity 7'!$B$7:$B$13,'Activity 7'!$A$7:$A$13,\"No\",0,1)","v":"No"},{"$f":"_xlfn.XLOOKUP($E24,'Activity 7'!$B$7:$B$13,'Activity 7'!M$7:M$13,\"N/A\",0,1)","v":"N/A"},{"$f":"_xlfn.XLOOKUP($E24,'Activity 7'!$B$7:$B$13,'Activity 7'!K$7:K$13,\"N/A\",0,1)","v":"N/A"},{"$f":"_xlfn.XLOOKUP($E24,'Activity 7'!$B$7:$B$13,'Activity 7'!N$7:N$13,\"N/A\",0,1)","v":"N/A"},{"$f":"_xlfn.XLOOKUP($E24,'Activity 7'!$B$7:$B$13,'Activity 7'!O$7:O$13,\"N/A\",0,1)","v":"N/A"},{"$f":"_xlfn.XLOOKUP($E24,'Activity 7'!$B$7:$B$13,'Activity 7'!P$7:P$13,\"N/A\",0,1)","v":"N/A"},{"$f":"_xlfn.XLOOKUP($E24,'Activity 7'!$B$7:$B$13,'Activity 7'!Q$7:Q$13,\"N/A\",0,1)","v":"N/A"},{"$f":"_xlfn.XLOOKUP($E24,'Activity 7'!$B$7:$B$13,'Activity 7'!R$7:R$13,\"N/A\",0,1)","v":"N/A"},{"$f":"_xlfn.XLOOKUP($E24,'Activity 7'!$B$7:$B$13,'Activity 7'!S$7:S$13,\"N/A\",0,1)","v":"N/A"},{"$f":"_xlfn.XLOOKUP($E24,'Activity 7'!$B$7:$B$13,'Activity 7'!T$7:T$13,\"N/A\",0,1)","v":"N/A"},{"$f":"_xlfn.XLOOKUP($E24,'Activity 7'!$B$7:$B$13,'Activity 7'!U$7:U$13,\"N/A\",0,1)","v":"N/A"},{"$f":"_xlfn.XLOOKUP($E24,'Activity 7'!$B$7:$B$13,'Activity 7'!V$7:V$13,\"N/A\",0,1)","v":"N/A"},{"$f":"_xlfn.XLOOKUP($E24,'Activity 7'!$B$17:$B$23,'Activity 7'!E$17:E$23,\"N/A\",0,1)","v":"N/A"},{"$f":"_xlfn.XLOOKUP($E24,'Activity 7'!$B$17:$B$23,'Activity 7'!G$17:G$23,\"N/A\",0,1)","v":"N/A"},{"$f":"_xlfn.XLOOKUP($E24,'Activity 7'!$B$17:$B$23,'Activity 7'!I$17:I$23,\"N/A\",0,1)","v":"N/A"},{"$f":"_xlfn.XLOOKUP($E24,'Activity 7'!$B$17:$B$23,'Activity 7'!J$17:J$23,\"N/A\",0,1)","v":"N/A"},{"$f":"_xlfn.XLOOKUP($E24,'Activity 7'!$B$17:$B$23,'Activity 7'!K$17:K$23,\"N/A\",0,1)","v":"N/A"},{"$f":"_xlfn.XLOOKUP($E24,'Activity 7'!$B$17:$B$23,'Activity 7'!L$17:L$23,\"N/A\",0,1)","v":"N/A"},{"$f":"_xlfn.XLOOKUP($E24,'Activity 7'!$B$17:$B$23,'Activity 7'!M$17:M$23,\"N/A\",0,1)","v":"N/A"},{"$f":"_xlfn.XLOOKUP($E24,'Activity 7'!$B$17:$B$23,'Activity 7'!N$17:N$23,\"N/A\",0,1)","v":"N/A"},{"$f":"_xlfn.XLOOKUP($E24,'Activity 7'!$B$17:$B$23,'Activity 7'!P$17:P$23,\"N/A\",0,1)","v":"N/A"},{"$f":"_xlfn.XLOOKUP($E24,'Activity 8'!$B$7:$B$13,'Activity 8'!A$7:A$13,\"No\",0,1)","v":"No"},{"$f":"_xlfn.XLOOKUP($E24,'Activity 8'!$B$7:$B$13,'Activity 8'!I$7:I$13,\"N/A\",0,1)","v":"N/A"},{"$f":"_xlfn.XLOOKUP($E24,'Activity 8'!$B$7:$B$13,'Activity 8'!J$7:J$13,\"N/A\",0,1)","v":"N/A"},{"$f":"_xlfn.XLOOKUP($E24,'Activity 8'!$B$7:$B$13,'Activity 8'!K$7:K$13,\"N/A\",0,1)","v":"N/A"},{"$f":"_xlfn.XLOOKUP($E24,'Activity 8'!$B$7:$B$13,'Activity 8'!L$7:L$13,\"N/A\",0,1)","v":"N/A"},{"$f":"_xlfn.XLOOKUP($E24,'Activity 8'!$B$7:$B$13,'Activity 8'!M$7:M$13,\"N/A\",0,1)","v":"N/A"},{"$f":"_xlfn.XLOOKUP($E24,'Activity 8'!$B$7:$B$13,'Activity 8'!N$7:N$13,\"N/A\",0,1)","v":"N/A"},{"$f":"_xlfn.XLOOKUP($E24,'Activity 8'!$B$7:$B$13,'Activity 8'!O$7:O$13,\"N/A\",0,1)","v":"N/A"},{"$f":"_xlfn.XLOOKUP($E24,'Activity 8'!$B$7:$B$13,'Activity 8'!P$7:P$13,\"N/A\",0,1)","v":"N/A"},{"$f":"_xlfn.XLOOKUP($E24,'Activity 8'!$B$7:$B$13,'Activity 8'!Q$7:Q$13,\"N/A\",0,1)","v":"N/A"},{"$f":"_xlfn.XLOOKUP($E24,'Activity 8'!$B$7:$B$13,'Activity 8'!R$7:R$13,\"N/A\",0,1)","v":"N/A"},{"$f":"_xlfn.XLOOKUP($E24,'Activity 8'!$B$7:$B$13,'Activity 8'!S$7:S$13,\"N/A\",0,1)","v":"N/A"},{"$f":"_xlfn.XLOOKUP($E24,'Activity 8'!$B$7:$B$13,'Activity 8'!T$7:T$13,\"N/A\",0,1)","v":"N/A"},{"$f":"_xlfn.XLOOKUP($E24,'Activity 8'!$B$7:$B$13,'Activity 8'!U$7:U$13,\"N/A\",0,1)","v":"N/A"},{"$f":"_xlfn.XLOOKUP($E24,'Activity 8'!$B$7:$B$13,'Activity 8'!V$7:V$13,\"N/A\",0,1)","v":"N/A"},{"$f":"_xlfn.XLOOKUP($E24,'Activity 8'!$B$17:$B$23,'Activity 8'!D$17:D$23,\"N/A\",0,1)","v":"N/A"},{"$f":"_xlfn.XLOOKUP($E24,'Activity 8'!$B$17:$B$23,'Activity 8'!E$17:E$23,\"N/A\",0,1)","v":"N/A"},{"$f":"_xlfn.XLOOKUP($E24,'Activity 8'!$B$17:$B$23,'Activity 8'!F$17:F$23,\"N/A\",0,1)","v":"N/A"},{"$f":"_xlfn.XLOOKUP($E24,'Activity 8'!$B$17:$B$23,'Activity 8'!G$17:G$23,\"N/A\",0,1)","v":"N/A"},{"$f":"_xlfn.XLOOKUP($E24,'Activity 8'!$B$17:$B$23,'Activity 8'!H$17:H$23,\"N/A\",0,1)","v":"N/A"},{"$f":"_xlfn.XLOOKUP($E24,'Activity 8'!$B$17:$B$23,'Activity 8'!I$17:I$23,\"N/A\",0,1)","v":"N/A"},{"$f":"_xlfn.XLOOKUP($E24,'Activity 8'!$B$17:$B$23,'Activity 8'!J$17:J$23,\"N/A\",0,1)","v":"N/A"},{"$f":"_xlfn.XLOOKUP($E24,'Activity 8'!$B$17:$B$23,'Activity 8'!K$17:K$23,\"N/A\",0,1)","v":"N/A"},{"$f":"_xlfn.XLOOKUP($E24,'Activity 8'!$B$17:$B$23,'Activity 8'!L$17:L$23,\"N/A\",0,1)","v":"N/A"},{"$f":"_xlfn.XLOOKUP($E24,'Activity 8'!$B$17:$B$23,'Activity 8'!M$17:M$23,\"N/A\",0,1)","v":"N/A"},{"$f":"_xlfn.XLOOKUP($E24,'Activity 8'!$B$17:$B$23,'Activity 8'!N$17:N$23,\"N/A\",0,1)","v":"N/A"},{"$f":"_xlfn.XLOOKUP($E24,'Activity 8'!$B$17:$B$23,'Activity 8'!P$17:P$23,\"N/A\",0,1)","v":"N/A"},{"$f":"_xlfn.XLOOKUP(E24,'Activity 9'!$B$7:$B$13,'Activity 9'!$A$7:$A$13,\"No\",0,1)","v":"No"},{"$f":"_xlfn.XLOOKUP($E24,'Activity 9'!$B$7:$B$13,'Activity 9'!J$7:J$13,\"N/A\",0,1)","v":"N/A"},{"$f":"_xlfn.XLOOKUP($E24,'Activity 9'!$B$7:$B$13,'Activity 9'!K$7:K$13,\"N/A\",0,1)","v":"N/A"},{"$f":"_xlfn.XLOOKUP($E24,'Activity 9'!$B$7:$B$13,'Activity 9'!L$7:L$13,\"N/A\",0,1)","v":"N/A"},{"$f":"_xlfn.XLOOKUP($E24,'Activity 9'!$B$7:$B$13,'Activity 9'!M$7:M$13,\"N/A\",0,1)","v":"N/A"},{"$f":"_xlfn.XLOOKUP($E24,'Activity 9'!$B$7:$B$13,'Activity 9'!N$7:N$13,\"N/A\",0,1)","v":"N/A"},{"$f":"_xlfn.XLOOKUP($E24,'Activity 9'!$B$7:$B$13,'Activity 9'!O$7:O$13,\"N/A\",0,1)","v":"N/A"},{"$f":"_xlfn.XLOOKUP($E24,'Activity 9'!$B$7:$B$13,'Activity 9'!P$7:P$13,\"N/A\",0,1)","v":"N/A"},{"$f":"_xlfn.XLOOKUP($E24,'Activity 9'!$B$7:$B$13,'Activity 9'!Q$7:Q$13,\"N/A\",0,1)","v":"N/A"},{"$f":"_xlfn.XLOOKUP($E24,'Activity 9'!$B$7:$B$13,'Activity 9'!R$7:R$13,\"N/A\",0,1)","v":"N/A"},{"$f":"_xlfn.XLOOKUP($E24,'Activity 9'!$B$7:$B$13,'Activity 9'!S$7:S$13,\"N/A\",0,1)","v":"N/A"},{"$f":"_xlfn.XLOOKUP($E24,'Activity 9'!$B$7:$B$13,'Activity 9'!T$7:T$13,\"N/A\",0,1)","v":"N/A"},{"$f":"_xlfn.XLOOKUP($E24,'Activity 9'!$B$17:$B$23,'Activity 9'!E$17:E$23,\"N/A\",0,1)","v":"N/A"},{"$f":"_xlfn.XLOOKUP($E24,'Activity 9'!$B$17:$B$23,'Activity 9'!F$17:F$23,\"N/A\",0,1)","v":"N/A"},{"$f":"_xlfn.XLOOKUP($E24,'Activity 9'!$B$17:$B$23,'Activity 9'!G$17:G$23,\"N/A\",0,1)","v":"N/A"},{"$f":"_xlfn.XLOOKUP($E24,'Activity 9'!$B$17:$B$23,'Activity 9'!H$17:H$23,\"N/A\",0,1)","v":"N/A"},{"$f":"_xlfn.XLOOKUP($E24,'Activity 9'!$B$17:$B$23,'Activity 9'!I$17:I$23,\"N/A\",0,1)","v":"N/A"},{"$f":"_xlfn.XLOOKUP($E24,'Activity 9'!$B$17:$B$23,'Activity 9'!J$17:J$23,\"N/A\",0,1)","v":"N/A"},{"$f":"_xlfn.XLOOKUP($E24,'Activity 9'!$B$17:$B$23,'Activity 9'!K$17:K$23,\"N/A\",0,1)","v":"N/A"},{"$f":"_xlfn.XLOOKUP($E24,'Activity 9'!$B$17:$B$23,'Activity 9'!L$17:L$23,\"N/A\",0,1)","v":"N/A"},{"$f":"_xlfn.XLOOKUP($E24,'Activity 9'!$B$17:$B$23,'Activity 9'!N$17:N$23,\"N/A\",0,1)","v":"N/A"},{"$f":"_xlfn.XLOOKUP($E24,'Activity 9'!$B$17:$B$23,'Activity 9'!O$17:O$23,\"N/A\",0,1)","v":"N/A"},{"$f":"_xlfn.XLOOKUP($E24,'Activity 9'!$B$17:$B$23,'Activity 9'!Q$17:Q$23,\"N/A\",0,1)","v":"N/A"},{"$f":"_xlfn.XLOOKUP($E24,'Activity 10'!$B$7:$B$13,'Activity 10'!A$7:A$13,\"No\",0,1)","v":"No"},{"$f":"_xlfn.XLOOKUP($E24,'Activity 10'!$B$7:$B$13,'Activity 10'!J$7:J$13,\"N/A\",0,1)","v":"N/A"},{"$f":"_xlfn.XLOOKUP($E24,'Activity 10'!$B$7:$B$13,'Activity 10'!K$7:K$13,\"N/A\",0,1)","v":"N/A"},{"$f":"_xlfn.XLOOKUP($E24,'Activity 10'!$B$7:$B$13,'Activity 10'!L$7:L$13,\"N/A\",0,1)","v":"N/A"},{"$f":"_xlfn.XLOOKUP($E24,'Activity 10'!$B$7:$B$13,'Activity 10'!M$7:M$13,\"N/A\",0,1)","v":"N/A"},{"$f":"_xlfn.XLOOKUP($E24,'Activity 10'!$B$7:$B$13,'Activity 10'!N$7:N$13,\"N/A\",0,1)","v":"N/A"},{"$f":"_xlfn.XLOOKUP($E24,'Activity 10'!$B$7:$B$13,'Activity 10'!O$7:O$13,\"N/A\",0,1)","v":"N/A"},{"$f":"_xlfn.XLOOKUP($E24,'Activity 10'!$B$7:$B$13,'Activity 10'!P$7:P$13,\"N/A\",0,1)","v":"N/A"},{"$f":"_xlfn.XLOOKUP($E24,'Activity 10'!$B$7:$B$13,'Activity 10'!Q$7:Q$13,\"N/A\",0,1)","v":"N/A"},{"$f":"_xlfn.XLOOKUP($E24,'Activity 10'!$B$7:$B$13,'Activity 10'!R$7:R$13,\"N/A\",0,1)","v":"N/A"},{"$f":"_xlfn.XLOOKUP($E24,'Activity 10'!$B$7:$B$13,'Activity 10'!S$7:S$13,\"N/A\",0,1)","v":"N/A"},{"$f":"_xlfn.XLOOKUP($E24,'Activity 10'!$B$7:$B$13,'Activity 10'!T$7:T$13,\"N/A\",0,1)","v":"N/A"},{"$f":"_xlfn.XLOOKUP($E24,'Activity 10'!$B$7:$B$13,'Activity 10'!U$7:U$13,\"N/A\",0,1)","v":"N/A"},{"$f":"_xlfn.XLOOKUP($E24,'Activity 10'!$B$7:$B$13,'Activity 10'!V$7:V$13,\"N/A\",0,1)","v":"N/A"},{"$f":"_xlfn.XLOOKUP($E24,'Activity 10'!$B$17:$B$23,'Activity 10'!E$17:E$23,\"N/A\",0,1)","v":"N/A"},{"$f":"_xlfn.XLOOKUP($E24,'Activity 10'!$B$17:$B$23,'Activity 10'!F$17:F$23,\"N/A\",0,1)","v":"N/A"},{"$f":"_xlfn.XLOOKUP($E24,'Activity 10'!$B$17:$B$23,'Activity 10'!G$17:G$23,\"N/A\",0,1)","v":"N/A"},{"$f":"_xlfn.XLOOKUP($E24,'Activity 10'!$B$17:$B$23,'Activity 10'!H$17:H$23,\"N/A\",0,1)","v":"N/A"},{"$f":"_xlfn.XLOOKUP($E24,'Activity 10'!$B$17:$B$23,'Activity 10'!I$17:I$23,\"N/A\",0,1)","v":"N/A"},{"$f":"_xlfn.XLOOKUP($E24,'Activity 10'!$B$17:$B$23,'Activity 10'!J$17:J$23,\"N/A\",0,1)","v":"N/A"},{"$f":"_xlfn.XLOOKUP($E24,'Activity 10'!$B$17:$B$23,'Activity 10'!K$17:K$23,\"N/A\",0,1)","v":"N/A"},{"$f":"_xlfn.XLOOKUP($E24,'Activity 10'!$B$17:$B$23,'Activity 10'!L$17:L$23,\"N/A\",0,1)","v":"N/A"},{"$f":"_xlfn.XLOOKUP($E24,'Activity 10'!$B$17:$B$23,'Activity 10'!M$17:M$23,\"N/A\",0,1)","v":"N/A"},{"$f":"_xlfn.XLOOKUP($E24,'Activity 10'!$B$17:$B$23,'Activity 10'!N$17:N$23,\"N/A\",0,1)","v":"N/A"},{"$f":"_xlfn.XLOOKUP($E24,'Activity 10'!$B$17:$B$23,'Activity 10'!P$17:P$23,\"N/A\",0,1)","v":"N/A"},{"$f":"_xlfn.XLOOKUP($E24,'Competitive Activity 1'!B$7:B$13,'Competitive Activity 1'!A$7:A$13,\"No\",0,1)","v":"No"},{"$f":"_xlfn.XLOOKUP($E24,'Competitive Activity 1'!$B$7:$B$13,'Competitive Activity 1'!H$7:H$13,\"N/A\",0,1)","v":"N/A"},{"$f":"_xlfn.XLOOKUP($E24,'Competitive Activity 1'!$B$7:$B$13,'Competitive Activity 1'!I$7:I$13,\"N/A\",0,1)","v":"N/A"},{"$f":"_xlfn.XLOOKUP($E24,'Competitive Activity 1'!$B$7:$B$13,'Competitive Activity 1'!J$7:J$13,\"N/A\",0,1)","v":"N/A"},{"$f":"_xlfn.XLOOKUP($E24,'Competitive Activity 1'!$B$7:$B$13,'Competitive Activity 1'!K$7:K$13,\"N/A\",0,1)","v":"N/A"},{"$f":"_xlfn.XLOOKUP($E24,'Competitive Activity 1'!$B$7:$B$13,'Competitive Activity 1'!L$7:L$13,\"N/A\",0,1)","v":"N/A"},{"$f":"_xlfn.XLOOKUP($E24,'Competitive Activity 1'!$B$7:$B$13,'Competitive Activity 1'!M$7:M$13,\"N/A\",0,1)","v":"N/A"},{"$f":"_xlfn.XLOOKUP($E24,'Competitive Activity 1'!$B$7:$B$13,'Competitive Activity 1'!N$7:N$13,\"N/A\",0,1)","v":"N/A"},{"$f":"_xlfn.XLOOKUP($E24,'Competitive Activity 1'!$B$7:$B$13,'Competitive Activity 1'!O$7:O$13,\"N/A\",0,1)","v":"N/A"},{"$f":"_xlfn.XLOOKUP($E24,'Competitive Activity 1'!$B$7:$B$13,'Competitive Activity 1'!P$7:P$13,\"N/A\",0,1)","v":"N/A"},{"$f":"_xlfn.XLOOKUP($E24,'Competitive Activity 1'!$B$7:$B$13,'Competitive Activity 1'!Q$7:Q$13,\"N/A\",0,1)","v":"N/A"},{"$f":"_xlfn.XLOOKUP($E24,'Competitive Activity 1'!$B$7:$B$13,'Competitive Activity 1'!R$7:R$13,\"N/A\",0,1)","v":"N/A"},{"$f":"_xlfn.XLOOKUP($E24,'Competitive Activity 1'!$B$7:$B$13,'Competitive Activity 1'!S$7:S$13,\"N/A\",0,1)","v":"N/A"},{"$f":"_xlfn.XLOOKUP($E24,'Competitive Activity 1'!$B$7:$B$13,'Competitive Activity 1'!T$7:T$13,\"N/A\",0,1)","v":"N/A"},{"$f":"_xlfn.XLOOKUP($E24,'Competitive Activity 1'!$B$7:$B$13,'Competitive Activity 1'!U$7:U$13,\"N/A\",0,1)","v":"N/A"},{"$f":"_xlfn.XLOOKUP($E24,'Competitive Activity 1'!$B$17:$B$23,'Competitive Activity 1'!C$17:C$23,\"N/A\",0,1)","v":"N/A"},{"$f":"_xlfn.XLOOKUP($E24,'Competitive Activity 1'!$B$17:$B$23,'Competitive Activity 1'!D$17:D$23,\"N/A\",0,1)","v":"N/A"},{"$f":"_xlfn.XLOOKUP($E24,'Competitive Activity 1'!$B$17:$B$23,'Competitive Activity 1'!E$17:E$23,\"N/A\",0,1)","v":"N/A"},{"$f":"_xlfn.XLOOKUP($E24,'Competitive Activity 1'!$B$17:$B$23,'Competitive Activity 1'!F$17:F$23,\"N/A\",0,1)","v":"N/A"},{"$f":"_xlfn.XLOOKUP($E24,'Competitive Activity 1'!$B$17:$B$23,'Competitive Activity 1'!G$17:G$23,\"N/A\",0,1)","v":"N/A"},{"$f":"_xlfn.XLOOKUP($E24,'Competitive Activity 1'!$B$17:$B$23,'Competitive Activity 1'!H$17:H$23,\"N/A\",0,1)","v":"N/A"},{"$f":"_xlfn.XLOOKUP($E24,'Competitive Activity 1'!$B$17:$B$23,'Competitive Activity 1'!I$17:I$23,\"N/A\",0,1)","v":"N/A"},{"$f":"_xlfn.XLOOKUP($E24,'Competitive Activity 1'!$B$17:$B$23,'Competitive Activity 1'!J$17:J$23,\"N/A\",0,1)","v":"N/A"},{"$f":"_xlfn.XLOOKUP($E24,'Competitive Activity 1'!$B$17:$B$23,'Competitive Activity 1'!K$17:K$23,\"N/A\",0,1)","v":"N/A"},{"$f":"_xlfn.XLOOKUP($E24,'Competitive Activity 1'!$B$17:$B$23,'Competitive Activity 1'!M$17:M$23,\"N/A\",0,1)","v":"N/A"},{"$f":"_xlfn.XLOOKUP($E24,'Competitive Activity 1'!$B$17:$B$23,'Competitive Activity 1'!N$17:N$23,\"N/A\",0,1)","v":"N/A"},{"$f":"_xlfn.XLOOKUP($E24,'Competitive Activity 1'!$B$17:$B$23,'Competitive Activity 1'!P$17:P$23,\"N/A\",0,1)","v":"N/A"},{"$f":"_xlfn.XLOOKUP($E24,'Competitive Activity 2'!$B$7:$B$13,'Competitive Activity 2'!A$7:A$13,\"No\",0)","v":"No"},{"$f":"_xlfn.XLOOKUP($E24,'Competitive Activity 2'!$B$7:$B$13,'Competitive Activity 2'!L$7:L$13,\"N/A\",0)","v":"N/A"},{"$f":"_xlfn.XLOOKUP($E24,'Competitive Activity 2'!$B$7:$B$13,'Competitive Activity 2'!M$7:M$13,\"N/A\",0)","v":"N/A"},{"$f":"_xlfn.XLOOKUP($E24,'Competitive Activity 2'!$B$7:$B$13,'Competitive Activity 2'!N$7:N$13,\"N/A\",0)","v":"N/A"},{"$f":"_xlfn.XLOOKUP($E24,'Competitive Activity 2'!$B$7:$B$13,'Competitive Activity 2'!O$7:O$13,\"N/A\",0)","v":"N/A"},{"$f":"_xlfn.XLOOKUP($E24,'Competitive Activity 2'!$B$7:$B$13,'Competitive Activity 2'!P$7:P$13,\"N/A\",0)","v":"N/A"},{"$f":"_xlfn.XLOOKUP($E24,'Competitive Activity 2'!$B$7:$B$13,'Competitive Activity 2'!Q$7:Q$13,\"N/A\",0)","v":"N/A"},{"$f":"_xlfn.XLOOKUP($E24,'Competitive Activity 2'!$B$7:$B$13,'Competitive Activity 2'!R$7:R$13,\"N/A\",0)","v":"N/A"},{"$f":"_xlfn.XLOOKUP($E24,'Competitive Activity 2'!$B$7:$B$13,'Competitive Activity 2'!S$7:S$13,\"N/A\",0)","v":"N/A"},{"$f":"_xlfn.XLOOKUP($E24,'Competitive Activity 2'!$B$7:$B$13,'Competitive Activity 2'!T$7:T$13,\"N/A\",0)","v":"N/A"},{"$f":"_xlfn.XLOOKUP($E24,'Competitive Activity 2'!$B$7:$B$13,'Competitive Activity 2'!U$7:U$13,\"N/A\",0)","v":"N/A"},{"$f":"_xlfn.XLOOKUP($E24,'Competitive Activity 2'!$B$17:$B$23,'Competitive Activity 2'!D$17:D$23,\"N/A\",0)","v":"N/A"},{"$f":"_xlfn.XLOOKUP($E24,'Competitive Activity 2'!$B$17:$B$23,'Competitive Activity 2'!E$17:E$23,\"N/A\",0)","v":"N/A"},{"$f":"_xlfn.XLOOKUP($E24,'Competitive Activity 2'!$B$17:$B$23,'Competitive Activity 2'!F$17:F$23,\"N/A\",0)","v":"N/A"},{"$f":"_xlfn.XLOOKUP($E24,'Competitive Activity 2'!$B$17:$B$23,'Competitive Activity 2'!G$17:G$23,\"N/A\",0)","v":"N/A"},{"$f":"_xlfn.XLOOKUP($E24,'Competitive Activity 2'!$B$17:$B$23,'Competitive Activity 2'!H$17:H$23,\"N/A\",0)","v":"N/A"},{"$f":"_xlfn.XLOOKUP($E24,'Competitive Activity 2'!$B$17:$B$23,'Competitive Activity 2'!I$17:I$23,\"N/A\",0)","v":"N/A"},{"$f":"_xlfn.XLOOKUP($E24,'Competitive Activity 2'!$B$17:$B$23,'Competitive Activity 2'!J$17:J$23,\"N/A\",0)","v":"N/A"},{"$f":"_xlfn.XLOOKUP($E24,'Competitive Activity 2'!$B$17:$B$23,'Competitive Activity 2'!K$17:K$23,\"N/A\",0)","v":"N/A"},{"$f":"_xlfn.XLOOKUP($E24,'Competitive Activity 2'!$B$17:$B$23,'Competitive Activity 2'!L$17:L$23,\"N/A\",0)","v":"N/A"},{"$f":"_xlfn.XLOOKUP($E24,'Competitive Activity 2'!$B$17:$B$23,'Competitive Activity 2'!M$17:M$23,\"N/A\",0)","v":"N/A"},{"$f":"_xlfn.XLOOKUP($E24,'Competitive Activity 2'!$B$17:$B$23,'Competitive Activity 2'!N$17:N$23,\"N/A\",0)","v":"N/A"},{"$f":"_xlfn.XLOOKUP($E24,'Competitive Activity 2'!$B$27:$B$33,'Competitive Activity 2'!D$27:D$33,\"N/A\",0)","v":"N/A"},{"$f":"_xlfn.XLOOKUP($E24,'Competitive Activity 2'!$B$27:$B$33,'Competitive Activity 2'!E$27:E$33,\"N/A\",0)","v":"N/A"},{"$f":"_xlfn.XLOOKUP($E24,'Competitive Activity 2'!$B$27:$B$33,'Competitive Activity 2'!F$27:F$33,\"N/A\",0)","v":"N/A"},{"$f":"_xlfn.XLOOKUP($E24,'Competitive Activity 2'!$B$27:$B$33,'Competitive Activity 2'!G$27:G$33,\"N/A\",0)","v":"N/A"},{"$f":"_xlfn.XLOOKUP($E24,'Competitive Activity 2'!$B$27:$B$33,'Competitive Activity 2'!H$27:H$33,\"N/A\",0)","v":"N/A"},{"$f":"_xlfn.XLOOKUP($E24,'Competitive Activity 2'!$B$27:$B$33,'Competitive Activity 2'!I$27:I$33,\"N/A\",0)","v":"N/A"},{"$f":"_xlfn.XLOOKUP($E24,'Competitive Activity 2'!$B$27:$B$33,'Competitive Activity 2'!J$27:J$33,\"N/A\",0)","v":"N/A"},{"$f":"_xlfn.XLOOKUP($E24,'Competitive Activity 2'!$B$27:$B$33,'Competitive Activity 2'!K$27:K$33,\"N/A\",0)","v":"N/A"},{"$f":"_xlfn.XLOOKUP($E24,'Competitive Activity 2'!$B$27:$B$33,'Competitive Activity 2'!M$27:M$33,\"N/A\",0)","v":"N/A"}]
[{"$f":"'1-Cover Sheet'!$C$8","v":"Select One"},{"$f":"'1-Cover Sheet'!$F$8","v":"Select One"},{"$f":"'Summary Sheet'!$D$8","v":0},{"$f":"'Summary Sheet'!$D$10","v":0},{"$f":"'Drop Down Box'!B189","v":0},{"$f":"'Drop Down Box'!C189","v":0},{"$f":"'Drop Down Box'!D189","v":"Select One"},{"$f":"_xlfn.XLOOKUP(E25,'Drop Down Box'!$B$166:$B$249,'Drop Down Box'!$A$166:$A$249,\"Unknown\",0)","v":"Activity 1"},{"$f":"_xlfn.XLOOKUP($E25,'Activity 4'!$B$8:$B$14,'Activity 4'!$J$8:$J$14,\"N/A\",0)","v":"N/A"},{"$f":"_xlfn.XLOOKUP($E25,'Activity 4'!$B$8:$B$14,'Activity 4'!$K$8:$K$14,\"N/A\",0)","v":"N/A"},{"$f":"_xlfn.XLOOKUP(E25,'Activity 4'!B10:B16,'Activity 4'!F10:F16,\"N/A\",0)","v":"N/A"},{"$f":"_xlfn.XLOOKUP($E25,'Activity 4'!B$8:B$14,'Activity 4'!G$8:G$14,\"N/A\",0)","v":"N/A"},{"$f":"_xlfn.XLOOKUP($E25,'Activity 4'!B$8:B$14,'Activity 4'!H$8:H$14,\"N/A\",0)","v":"N/A"},{"$f":"_xlfn.XLOOKUP($E25,'Activity 1'!$B$7:$B$13,'Activity 1'!$A$7:$A$13,\"No\",0,1)","v":"No"},{"$f":"_xlfn.XLOOKUP($E25,'Activity 1'!$B$7:$B$13,'Activity 1'!$H$7:$H$13,\"N/A\",0,1)","v":"N/A"},{"$f":"_xlfn.XLOOKUP($E25,'Activity 1'!$B$7:$B$13,'Activity 1'!I$7:I$13,\"N/A\",0,1)","v":"N/A"},{"$f":"_xlfn.XLOOKUP($E25,'Activity 1'!$B$7:$B$13,'Activity 1'!J$7:J$13,\"N/A\",0,1)","v":"N/A"},{"$f":"_xlfn.XLOOKUP($E25,'Activity 1'!$B$7:$B$13,'Activity 1'!K$7:K$13,\"N/A\",0,1)","v":"N/A"},{"$f":"_xlfn.XLOOKUP($E25,'Activity 1'!$B$7:$B$13,'Activity 1'!L$7:L$13,\"N/A\",0,1)","v":"N/A"},{"$f":"_xlfn.XLOOKUP($E25,'Activity 1'!$B$7:$B$13,'Activity 1'!M$7:M$13,\"N/A\",0,1)","v":"N/A"},{"$f":"_xlfn.XLOOKUP($E25,'Activity 1'!$B$7:$B$13,'Activity 1'!N$7:N$13,\"N/A\",0,1)","v":"N/A"},0,{"$f":"_xlfn.XLOOKUP($E25,'Activity 1'!$B$7:$B$13,'Activity 1'!O$7:O$13,\"N/A\",0,1)","v":"N/A"},{"$f":"_xlfn.XLOOKUP($E25,'Activity 1'!$B$7:$B$13,'Activity 1'!P$7:P$13,\"N/A\",0,1)","v":"N/A"},{"$f":"_xlfn.XLOOKUP($E25,'Activity 1'!$B$7:$B$13,'Activity 1'!Q$7:Q$13,\"N/A\",0,1)","v":"N/A"},{"$f":"_xlfn.XLOOKUP($E25,'Activity 1'!$B$7:$B$13,'Activity 1'!R$7:R$13,\"N/A\",0,1)","v":"N/A"},{"$f":"_xlfn.XLOOKUP($E25,'Activity 1'!$B$7:$B$13,'Activity 1'!S$7:S$13,\"N/A\",0,1)","v":"N/A"},{"$f":"_xlfn.XLOOKUP($E25,'Activity 1'!$B$7:$B$13,'Activity 1'!T$7:T$13,\"N/A\",0,1)","v":"N/A"},{"$f":"_xlfn.XLOOKUP($E25,'Activity 1'!$B$7:$B$13,'Activity 1'!U$7:U$13,\"N/A\",0,1)","v":"N/A"},{"$f":"_xlfn.XLOOKUP($E25,'Activity 1'!$B$7:$B$13,'Activity 1'!V$7:V$13,\"N/A\",0,1)","v":"N/A"},{"$f":"_xlfn.XLOOKUP($E25,'Activity 1'!$B$17:$B$23,'Activity 1'!C$17:C$23,\"N/A\",0,1)","v":"N/A"},{"$f":"_xlfn.XLOOKUP($E25,'Activity 1'!$B$17:$B$23,'Activity 1'!D$17:D$23,\"N/A\",0,1)","v":"N/A"},{"$f":"_xlfn.XLOOKUP($E25,'Activity 1'!$B$17:$B$23,'Activity 1'!E$17:E$23,\"N/A\",0,1)","v":"N/A"},{"$f":"_xlfn.XLOOKUP($E25,'Activity 1'!$B$17:$B$23,'Activity 1'!F$17:F$23,\"N/A\",0,1)","v":"N/A"},{"$f":"_xlfn.XLOOKUP($E25,'Activity 1'!$B$17:$B$23,'Activity 1'!G$17:G$23,\"N/A\",0,1)","v":"N/A"},{"$f":"_xlfn.XLOOKUP($E25,'Activity 1'!$B$17:$B$23,'Activity 1'!H$17:H$23,\"N/A\",0,1)","v":"N/A"},{"$f":"_xlfn.XLOOKUP($E25,'Activity 1'!$B$17:$B$23,'Activity 1'!I$17:I$23,\"N/A\",0,1)","v":"N/A"},{"$f":"_xlfn.XLOOKUP($E25,'Activity 1'!$B$17:$B$23,'Activity 1'!J$17:J$23,\"N/A\",0,1)","v":"N/A"},{"$f":"_xlfn.XLOOKUP($E25,'Activity 1'!$B$17:$B$23,'Activity 1'!K$17:K$23,\"N/A\",0,1)","v":"N/A"},{"$f":"_xlfn.XLOOKUP($E25,'Activity 1'!$B$17:$B$23,'Activity 1'!L$17:L$23,\"N/A\",0,1)","v":"N/A"},{"$f":"_xlfn.XLOOKUP($E25,'Activity 1'!$B$17:$B$23,'Activity 1'!M$17:M$23,\"N/A\",0,1)","v":"N/A"},{"$f":"_xlfn.XLOOKUP($E25,'Activity 1'!$B$17:$B$23,'Activity 1'!O$17:O$23,\"N/A\",0,1)","v":"N/A"},{"$f":"_xlfn.XLOOKUP($E25,'Activity 1'!$B$17:$B$23,'Activity 1'!Q$17:Q$23,\"N/A\",0,1)","v":"N/A"},{"$f":"_xlfn.XLOOKUP($E25,'Activity 2'!$B$7:$B$13,'Activity 2'!$A$7:$A$13,\"No\",0,1)","v":"No"},{"$f":"_xlfn.XLOOKUP($E25,'Activity 2'!B$7:B$13,'Activity 2'!H$7:H$13,\"N/A\",0)","v":"N/A"},{"$f":"_xlfn.XLOOKUP($E25,'Activity 2'!C$7:C$13,'Activity 2'!I$7:I$13,\"N/A\",0)","v":"N/A"},{"$f":"_xlfn.XLOOKUP($E25,'Activity 2'!D$7:D$13,'Activity 2'!J$7:J$13,\"N/A\",0)","v":"N/A"},{"$f":"_xlfn.XLOOKUP($E25,'Activity 2'!E$7:E$13,'Activity 2'!K$7:K$13,\"N/A\",0)","v":"N/A"},{"$f":"_xlfn.XLOOKUP($E25,'Activity 2'!F$7:F$13,'Activity 2'!L$7:L$13,\"N/A\",0)","v":"N/A"},{"$f":"_xlfn.XLOOKUP($E25,'Activity 2'!G$7:G$13,'Activity 2'!M$7:M$13,\"N/A\",0)","v":"N/A"},{"$f":"_xlfn.XLOOKUP($E25,'Activity 2'!H$7:H$13,'Activity 2'!N$7:N$13,\"N/A\",0)","v":"N/A"},{"$f":"_xlfn.XLOOKUP($E25,'Activity 2'!I$7:I$13,'Activity 2'!O$7:O$13,\"N/A\",0)","v":"N/A"},{"$f":"_xlfn.XLOOKUP($E25,'Activity 2'!J$7:J$13,'Activity 2'!P$7:P$13,\"N/A\",0)","v":"N/A"},{"$f":"_xlfn.XLOOKUP($E25,'Activity 2'!K$7:K$13,'Activity 2'!Q$7:Q$13,\"N/A\",0)","v":"N/A"},{"$f":"_xlfn.XLOOKUP($E25,'Activity 2'!L$7:L$13,'Activity 2'!R$7:R$13,\"N/A\",0)","v":"N/A"},{"$f":"_xlfn.XLOOKUP($E25,'Activity 2'!M$7:M$13,'Activity 2'!S$7:S$13,\"N/A\",0)","v":"N/A"},{"$f":"_xlfn.XLOOKUP($E25,'Activity 2'!N$7:N$13,'Activity 2'!T$7:T$13,\"N/A\",0)","v":"N/A"},{"$f":"_xlfn.XLOOKUP($E25,'Activity 2'!O$7:O$13,'Activity 2'!U$7:U$13,\"N/A\",0)","v":"N/A"},{"$f":"_xlfn.XLOOKUP($E25,'Activity 2'!P$7:P$13,'Activity 2'!V$7:V$13,\"N/A\",0)","v":"N/A"},{"$f":"_xlfn.XLOOKUP($E25,'Activity 2'!$B$17:$B$23,'Activity 2'!C$17:C$23,\"N/A\",0,1)","v":"N/A"},{"$f":"_xlfn.XLOOKUP($E25,'Activity 2'!$B$17:$B$23,'Activity 2'!D$17:D$23,\"N/A\",0,1)","v":"N/A"},{"$f":"_xlfn.XLOOKUP($E25,'Activity 2'!$B$17:$B$23,'Activity 2'!E$17:E$23,\"N/A\",0,1)","v":"N/A"},{"$f":"_xlfn.XLOOKUP($E25,'Activity 2'!$B$17:$B$23,'Activity 2'!F$17:F$23,\"N/A\",0,1)","v":"N/A"},{"$f":"_xlfn.XLOOKUP($E25,'Activity 2'!$B$17:$B$23,'Activity 2'!G$17:G$23,\"N/A\",0,1)","v":"N/A"},{"$f":"_xlfn.XLOOKUP($E25,'Activity 2'!$B$17:$B$23,'Activity 2'!H$17:H$23,\"N/A\",0,1)","v":"N/A"},{"$f":"_xlfn.XLOOKUP($E25,'Activity 2'!$B$17:$B$23,'Activity 2'!I$17:I$23,\"N/A\",0,1)","v":"N/A"},{"$f":"_xlfn.XLOOKUP($E25,'Activity 2'!$B$17:$B$23,'Activity 2'!J$17:J$23,\"N/A\",0,1)","v":"N/A"},{"$f":"_xlfn.XLOOKUP($E25,'Activity 2'!$B$17:$B$23,'Activity 2'!K$17:K$23,\"N/A\",0,1)","v":"N/A"},{"$f":"_xlfn.XLOOKUP($E25,'Activity 2'!$B$17:$B$23,'Activity 2'!L$17:L$23,\"N/A\",0,1)","v":"N/A"},{"$f":"_xlfn.XLOOKUP($E25,'Activity 2'!$B$17:$B$23,'Activity 2'!M$17:M$23,\"N/A\",0,1)","v":"N/A"},{"$f":"_xlfn.XLOOKUP($E25,'Activity 2'!$B$17:$B$23,'Activity 2'!O$17:O$23,\"N/A\",0,1)","v":"N/A"},{"$f":"_xlfn.XLOOKUP($E25,'Activity 2'!$B$17:$B$23,'Activity 2'!Q$17:Q$23,\"N/A\",0,1)","v":"N/A"},null,{"$f":"_xlfn.XLOOKUP($E25,'Activity 3'!$B$8:$B$14,'Activity 3'!K$8:K$14,\"N/A\",0,1)","v":"N/A"},{"$f":"_xlfn.XLOOKUP($E25,'Activity 3'!$B$8:$B$14,'Activity 3'!L$8:L$14,\"N/A\",0,1)","v":"N/A"},{"$f":"_xlfn.XLOOKUP($E25,'Activity 3'!$B$8:$B$14,'Activity 3'!M$8:M$14,\"N/A\",0,1)","v":"N/A"},{"$f":"_xlfn.XLOOKUP($E25,'Activity 3'!$B$8:$B$14,'Activity 3'!N$8:N$14,\"N/A\",0,1)","v":"N/A"},{"$f":"_xlfn.XLOOKUP($E25,'Activity 3'!$B$8:$B$14,'Activity 3'!O$8:O$14,\"N/A\",0,1)","v":"N/A"},{"$f":"_xlfn.XLOOKUP($E25,'Activity 3'!$B$8:$B$14,'Activity 3'!R$8:R$14,\"N/A\",0,1)","v":"N/A"},{"$f":"_xlfn.XLOOKUP($E25,'Activity 4'!$B$8:$B$14,'Activity 4'!$A$8:$A$14,\"No\",0,1)","v":"No"},{"$f":"_xlfn.XLOOKUP($E25,'Activity 4'!$B$8:$B$14,'Activity 4'!L$8:L$14,\"N/A\",0,1)","v":"N/A"},{"$f":"_xlfn.XLOOKUP($E25,'Activity 4'!$B$8:$B$14,'Activity 4'!I$8:I$14,\"N/A\",0,1)","v":"N/A"},{"$f":"_xlfn.XLOOKUP($E25,'Activity 4'!$B$8:$B$14,'Activity 4'!M$8:M$14,\"N/A\",0,1)","v":"N/A"},{"$f":"_xlfn.XLOOKUP($E25,'Activity 5'!$B$8:$B$14,'Activity 5'!$A$8:$A$14,\"No\",0,1)","v":"No"},{"$f":"_xlfn.XLOOKUP($E25,'Activity 5'!$B$8:$B$14,'Activity 5'!J$8:J$14,\"N/A\",0,1)","v":"N/A"},{"$f":"_xlfn.XLOOKUP($E25,'Activity 5'!$B$8:$B$14,'Activity 5'!K$8:K$14,\"N/A\",0,1)","v":"N/A"},{"$f":"_xlfn.XLOOKUP($E25,'Activity 5'!$B$8:$B$14,'Activity 5'!N$8:N$14,\"N/A\",0,1)","v":"N/A"},{"$f":"_xlfn.XLOOKUP($E25,'Activity 5'!$B$8:$B$14,'Activity 5'!O$8:O$14,\"N/A\",0,1)","v":"N/A"},{"$f":"_xlfn.XLOOKUP($E25,'Activity 5'!$B$8:$B$14,'Activity 5'!P$8:P$14,\"N/A\",0,1)","v":"N/A"},{"$f":"_xlfn.XLOOKUP($E25,'Activity 5'!$B$8:$B$14,'Activity 5'!Q$8:Q$14,\"N/A\",0,1)","v":"N/A"},{"$f":"_xlfn.XLOOKUP($E25,'Activity 5'!$B$8:$B$14,'Activity 5'!R$8:R$14,\"N/A\",0,1)","v":"N/A"},{"$f":"_xlfn.XLOOKUP($E25,'Activity 6'!$B$7:$B$13,'Activity 6'!A$7:A$13,\"No\",0,1)","v":"No"},{"$f":"_xlfn.XLOOKUP($E25,'Activity 6'!$B$7:$B$13,'Activity 6'!K$7:K$13,\"N/A\",0,1)","v":"N/A"},{"$f":"_xlfn.XLOOKUP($E25,'Activity 6'!$B$7:$B$13,'Activity 6'!L$7:L$13,\"N/A\",0,1)","v":"N/A"},{"$f":"_xlfn.XLOOKUP($E25,'Activity 6'!$B$7:$B$13,'Activity 6'!M$7:M$13,\"N/A\",0,1)","v":"N/A"},{"$f":"_xlfn.XLOOKUP($E25,'Activity 6'!$B$7:$B$13,'Activity 6'!N$7:N$13,\"N/A\",0,1)","v":"N/A"},{"$f":"_xlfn.XLOOKUP($E25,'Activity 6'!$B$7:$B$13,'Activity 6'!O$7:O$13,\"N/A\",0,1)","v":"N/A"},{"$f":"_xlfn.XLOOKUP($E25,'Activity 6'!$B$7:$B$13,'Activity 6'!P$7:P$13,\"N/A\",0,1)","v":"N/A"},{"$f":"_xlfn.XLOOKUP($E25,'Activity 6'!$B$7:$B$13,'Activity 6'!Q$7:Q$13,\"N/A\",0,1)","v":"N/A"},{"$f":"_xlfn.XLOOKUP($E25,'Activity 6'!$B$7:$B$13,'Activity 6'!R$7:R$13,\"N/A\",0,1)","v":"N/A"},{"$f":"_xlfn.XLOOKUP($E25,'Activity 6'!$B$7:$B$13,'Activity 6'!S$7:S$13,\"N/A\",0,1)","v":"N/A"},{"$f":"_xlfn.XLOOKUP($E25,'Activity 6'!$B$7:$B$13,'Activity 6'!T$7:T$13,\"N/A\",0,1)","v":"N/A"},{"$f":"_xlfn.XLOOKUP($E25,'Activity 6'!$B$7:$B$13,'Activity 6'!U$7:U$13,\"N/A\",0,1)","v":"N/A"},{"$f":"_xlfn.XLOOKUP($E25,'Activity 6'!$B$22:$B$28,'Activity 6'!C$22:C$28,\"N/A\",0,1)","v":"N/A"},{"$f":"_xlfn.XLOOKUP($E25,'Activity 6'!$B$22:$B$28,'Activity 6'!D$22:D$28,\"N/A\",0,1)","v":"N/A"},{"$f":"_xlfn.XLOOKUP($E25,'Activity 6'!$B$22:$B$28,'Activity 6'!E$22:E$28,\"N/A\",0,1)","v":"N/A"},{"$f":"_xlfn.XLOOKUP($E25,'Activity 6'!$B$22:$B$28,'Activity 6'!F$22:F$28,\"N/A\",0,1)","v":"N/A"},{"$f":"_xlfn.XLOOKUP($E25,'Activity 6'!$B$22:$B$28,'Activity 6'!G$22:G$28,\"N/A\",0,1)","v":"N/A"},{"$f":"_xlfn.XLOOKUP($E25,'Activity 6'!$B$22:$B$28,'Activity 6'!H$22:H$28,\"N/A\",0,1)","v":"N/A"},{"$f":"_xlfn.XLOOKUP($E25,'Activity 6'!$B$22:$B$28,'Activity 6'!I$22:I$28,\"N/A\",0,1)","v":"N/A"},{"$f":"_xlfn.XLOOKUP($E25,'Activity 6'!$B$22:$B$28,'Activity 6'!J$22:J$28,\"N/A\",0,1)","v":"N/A"},{"$f":"_xlfn.XLOOKUP($E25,'Activity 6'!$B$22:$B$28,'Activity 6'!K$22:K$28,\"N/A\",0,1)","v":"N/A"},{"$f":"_xlfn.XLOOKUP($E25,'Activity 6'!$B$22:$B$28,'Activity 6'!L$22:L$28,\"N/A\",0,1)","v":"N/A"},{"$f":"_xlfn.XLOOKUP($E25,'Activity 6'!$B$22:$B$28,'Activity 6'!M$22:M$28,\"N/A\",0,1)","v":"N/A"},{"$f":"_xlfn.XLOOKUP($E25,'Activity 6'!$B$22:$B$28,'Activity 6'!N$22:N$28,\"N/A\",0,1)","v":"N/A"},{"$f":"_xlfn.XLOOKUP($E25,'Activity 6'!$B$32:$B$38,'Activity 6'!C$32:C$38,\"N/A\",0,1)","v":"N/A"},{"$f":"_xlfn.XLOOKUP($E25,'Activity 6'!$B$32:$B$38,'Activity 6'!D$32:D$38,\"N/A\",0,1)","v":"N/A"},{"$f":"_xlfn.XLOOKUP($E25,'Activity 6'!$B$32:$B$38,'Activity 6'!E$32:E$38,\"N/A\",0,1)","v":"N/A"},{"$f":"_xlfn.XLOOKUP($E25,'Activity 6'!$B$32:$B$38,'Activity 6'!F$32:F$38,\"N/A\",0,1)","v":"N/A"},{"$f":"_xlfn.XLOOKUP($E25,'Activity 6'!$B$32:$B$38,'Activity 6'!G$32:G$38,\"N/A\",0,1)","v":"N/A"},{"$f":"_xlfn.XLOOKUP($E25,'Activity 6'!$B$32:$B$38,'Activity 6'!H$32:H$38,\"N/A\",0,1)","v":"N/A"},{"$f":"_xlfn.XLOOKUP($E25,'Activity 6'!$B$32:$B$38,'Activity 6'!I$32:I$38,\"N/A\",0,1)","v":"N/A"},{"$f":"_xlfn.XLOOKUP($E25,'Activity 6'!$B$32:$B$38,'Activity 6'!J$32:J$38,\"N/A\",0,1)","v":"N/A"},{"$f":"_xlfn.XLOOKUP($E25,'Activity 6'!$B$32:$B$38,'Activity 6'!K$32:K$38,\"N/A\",0,1)","v":"N/A"},{"$f":"_xlfn.XLOOKUP($E25,'Activity 6'!$B$32:$B$38,'Activity 6'!M$32:M$38,\"N/A\",0,1)","v":"N/A"},{"$f":"_xlfn.XLOOKUP($E25,'Activity 7'!$B$7:$B$13,'Activity 7'!$A$7:$A$13,\"No\",0,1)","v":"No"},{"$f":"_xlfn.XLOOKUP($E25,'Activity 7'!$B$7:$B$13,'Activity 7'!M$7:M$13,\"N/A\",0,1)","v":"N/A"},{"$f":"_xlfn.XLOOKUP($E25,'Activity 7'!$B$7:$B$13,'Activity 7'!K$7:K$13,\"N/A\",0,1)","v":"N/A"},{"$f":"_xlfn.XLOOKUP($E25,'Activity 7'!$B$7:$B$13,'Activity 7'!N$7:N$13,\"N/A\",0,1)","v":"N/A"},{"$f":"_xlfn.XLOOKUP($E25,'Activity 7'!$B$7:$B$13,'Activity 7'!O$7:O$13,\"N/A\",0,1)","v":"N/A"},{"$f":"_xlfn.XLOOKUP($E25,'Activity 7'!$B$7:$B$13,'Activity 7'!P$7:P$13,\"N/A\",0,1)","v":"N/A"},{"$f":"_xlfn.XLOOKUP($E25,'Activity 7'!$B$7:$B$13,'Activity 7'!Q$7:Q$13,\"N/A\",0,1)","v":"N/A"},{"$f":"_xlfn.XLOOKUP($E25,'Activity 7'!$B$7:$B$13,'Activity 7'!R$7:R$13,\"N/A\",0,1)","v":"N/A"},{"$f":"_xlfn.XLOOKUP($E25,'Activity 7'!$B$7:$B$13,'Activity 7'!S$7:S$13,\"N/A\",0,1)","v":"N/A"},{"$f":"_xlfn.XLOOKUP($E25,'Activity 7'!$B$7:$B$13,'Activity 7'!T$7:T$13,\"N/A\",0,1)","v":"N/A"},{"$f":"_xlfn.XLOOKUP($E25,'Activity 7'!$B$7:$B$13,'Activity 7'!U$7:U$13,\"N/A\",0,1)","v":"N/A"},{"$f":"_xlfn.XLOOKUP($E25,'Activity 7'!$B$7:$B$13,'Activity 7'!V$7:V$13,\"N/A\",0,1)","v":"N/A"},{"$f":"_xlfn.XLOOKUP($E25,'Activity 7'!$B$17:$B$23,'Activity 7'!E$17:E$23,\"N/A\",0,1)","v":"N/A"},{"$f":"_xlfn.XLOOKUP($E25,'Activity 7'!$B$17:$B$23,'Activity 7'!G$17:G$23,\"N/A\",0,1)","v":"N/A"},{"$f":"_xlfn.XLOOKUP($E25,'Activity 7'!$B$17:$B$23,'Activity 7'!I$17:I$23,\"N/A\",0,1)","v":"N/A"},{"$f":"_xlfn.XLOOKUP($E25,'Activity 7'!$B$17:$B$23,'Activity 7'!J$17:J$23,\"N/A\",0,1)","v":"N/A"},{"$f":"_xlfn.XLOOKUP($E25,'Activity 7'!$B$17:$B$23,'Activity 7'!K$17:K$23,\"N/A\",0,1)","v":"N/A"},{"$f":"_xlfn.XLOOKUP($E25,'Activity 7'!$B$17:$B$23,'Activity 7'!L$17:L$23,\"N/A\",0,1)","v":"N/A"},{"$f":"_xlfn.XLOOKUP($E25,'Activity 7'!$B$17:$B$23,'Activity 7'!M$17:M$23,\"N/A\",0,1)","v":"N/A"},{"$f":"_xlfn.XLOOKUP($E25,'Activity 7'!$B$17:$B$23,'Activity 7'!N$17:N$23,\"N/A\",0,1)","v":"N/A"},{"$f":"_xlfn.XLOOKUP($E25,'Activity 7'!$B$17:$B$23,'Activity 7'!P$17:P$23,\"N/A\",0,1)","v":"N/A"},{"$f":"_xlfn.XLOOKUP($E25,'Activity 8'!$B$7:$B$13,'Activity 8'!A$7:A$13,\"No\",0,1)","v":"No"},{"$f":"_xlfn.XLOOKUP($E25,'Activity 8'!$B$7:$B$13,'Activity 8'!I$7:I$13,\"N/A\",0,1)","v":"N/A"},{"$f":"_xlfn.XLOOKUP($E25,'Activity 8'!$B$7:$B$13,'Activity 8'!J$7:J$13,\"N/A\",0,1)","v":"N/A"},{"$f":"_xlfn.XLOOKUP($E25,'Activity 8'!$B$7:$B$13,'Activity 8'!K$7:K$13,\"N/A\",0,1)","v":"N/A"},{"$f":"_xlfn.XLOOKUP($E25,'Activity 8'!$B$7:$B$13,'Activity 8'!L$7:L$13,\"N/A\",0,1)","v":"N/A"},{"$f":"_xlfn.XLOOKUP($E25,'Activity 8'!$B$7:$B$13,'Activity 8'!M$7:M$13,\"N/A\",0,1)","v":"N/A"},{"$f":"_xlfn.XLOOKUP($E25,'Activity 8'!$B$7:$B$13,'Activity 8'!N$7:N$13,\"N/A\",0,1)","v":"N/A"},{"$f":"_xlfn.XLOOKUP($E25,'Activity 8'!$B$7:$B$13,'Activity 8'!O$7:O$13,\"N/A\",0,1)","v":"N/A"},{"$f":"_xlfn.XLOOKUP($E25,'Activity 8'!$B$7:$B$13,'Activity 8'!P$7:P$13,\"N/A\",0,1)","v":"N/A"},{"$f":"_xlfn.XLOOKUP($E25,'Activity 8'!$B$7:$B$13,'Activity 8'!Q$7:Q$13,\"N/A\",0,1)","v":"N/A"},{"$f":"_xlfn.XLOOKUP($E25,'Activity 8'!$B$7:$B$13,'Activity 8'!R$7:R$13,\"N/A\",0,1)","v":"N/A"},{"$f":"_xlfn.XLOOKUP($E25,'Activity 8'!$B$7:$B$13,'Activity 8'!S$7:S$13,\"N/A\",0,1)","v":"N/A"},{"$f":"_xlfn.XLOOKUP($E25,'Activity 8'!$B$7:$B$13,'Activity 8'!T$7:T$13,\"N/A\",0,1)","v":"N/A"},{"$f":"_xlfn.XLOOKUP($E25,'Activity 8'!$B$7:$B$13,'Activity 8'!U$7:U$13,\"N/A\",0,1)","v":"N/A"},{"$f":"_xlfn.XLOOKUP($E25,'Activity 8'!$B$7:$B$13,'Activity 8'!V$7:V$13,\"N/A\",0,1)","v":"N/A"},{"$f":"_xlfn.XLOOKUP($E25,'Activity 8'!$B$17:$B$23,'Activity 8'!D$17:D$23,\"N/A\",0,1)","v":"N/A"},{"$f":"_xlfn.XLOOKUP($E25,'Activity 8'!$B$17:$B$23,'Activity 8'!E$17:E$23,\"N/A\",0,1)","v":"N/A"},{"$f":"_xlfn.XLOOKUP($E25,'Activity 8'!$B$17:$B$23,'Activity 8'!F$17:F$23,\"N/A\",0,1)","v":"N/A"},{"$f":"_xlfn.XLOOKUP($E25,'Activity 8'!$B$17:$B$23,'Activity 8'!G$17:G$23,\"N/A\",0,1)","v":"N/A"},{"$f":"_xlfn.XLOOKUP($E25,'Activity 8'!$B$17:$B$23,'Activity 8'!H$17:H$23,\"N/A\",0,1)","v":"N/A"},{"$f":"_xlfn.XLOOKUP($E25,'Activity 8'!$B$17:$B$23,'Activity 8'!I$17:I$23,\"N/A\",0,1)","v":"N/A"},{"$f":"_xlfn.XLOOKUP($E25,'Activity 8'!$B$17:$B$23,'Activity 8'!J$17:J$23,\"N/A\",0,1)","v":"N/A"},{"$f":"_xlfn.XLOOKUP($E25,'Activity 8'!$B$17:$B$23,'Activity 8'!K$17:K$23,\"N/A\",0,1)","v":"N/A"},{"$f":"_xlfn.XLOOKUP($E25,'Activity 8'!$B$17:$B$23,'Activity 8'!L$17:L$23,\"N/A\",0,1)","v":"N/A"},{"$f":"_xlfn.XLOOKUP($E25,'Activity 8'!$B$17:$B$23,'Activity 8'!M$17:M$23,\"N/A\",0,1)","v":"N/A"},{"$f":"_xlfn.XLOOKUP($E25,'Activity 8'!$B$17:$B$23,'Activity 8'!N$17:N$23,\"N/A\",0,1)","v":"N/A"},{"$f":"_xlfn.XLOOKUP($E25,'Activity 8'!$B$17:$B$23,'Activity 8'!P$17:P$23,\"N/A\",0,1)","v":"N/A"},{"$f":"_xlfn.XLOOKUP(E25,'Activity 9'!$B$7:$B$13,'Activity 9'!$A$7:$A$13,\"No\",0,1)","v":"No"},{"$f":"_xlfn.XLOOKUP($E25,'Activity 9'!$B$7:$B$13,'Activity 9'!J$7:J$13,\"N/A\",0,1)","v":"N/A"},{"$f":"_xlfn.XLOOKUP($E25,'Activity 9'!$B$7:$B$13,'Activity 9'!K$7:K$13,\"N/A\",0,1)","v":"N/A"},{"$f":"_xlfn.XLOOKUP($E25,'Activity 9'!$B$7:$B$13,'Activity 9'!L$7:L$13,\"N/A\",0,1)","v":"N/A"},{"$f":"_xlfn.XLOOKUP($E25,'Activity 9'!$B$7:$B$13,'Activity 9'!M$7:M$13,\"N/A\",0,1)","v":"N/A"},{"$f":"_xlfn.XLOOKUP($E25,'Activity 9'!$B$7:$B$13,'Activity 9'!N$7:N$13,\"N/A\",0,1)","v":"N/A"},{"$f":"_xlfn.XLOOKUP($E25,'Activity 9'!$B$7:$B$13,'Activity 9'!O$7:O$13,\"N/A\",0,1)","v":"N/A"},{"$f":"_xlfn.XLOOKUP($E25,'Activity 9'!$B$7:$B$13,'Activity 9'!P$7:P$13,\"N/A\",0,1)","v":"N/A"},{"$f":"_xlfn.XLOOKUP($E25,'Activity 9'!$B$7:$B$13,'Activity 9'!Q$7:Q$13,\"N/A\",0,1)","v":"N/A"},{"$f":"_xlfn.XLOOKUP($E25,'Activity 9'!$B$7:$B$13,'Activity 9'!R$7:R$13,\"N/A\",0,1)","v":"N/A"},{"$f":"_xlfn.XLOOKUP($E25,'Activity 9'!$B$7:$B$13,'Activity 9'!S$7:S$13,\"N/A\",0,1)","v":"N/A"},{"$f":"_xlfn.XLOOKUP($E25,'Activity 9'!$B$7:$B$13,'Activity 9'!T$7:T$13,\"N/A\",0,1)","v":"N/A"},{"$f":"_xlfn.XLOOKUP($E25,'Activity 9'!$B$17:$B$23,'Activity 9'!E$17:E$23,\"N/A\",0,1)","v":"N/A"},{"$f":"_xlfn.XLOOKUP($E25,'Activity 9'!$B$17:$B$23,'Activity 9'!F$17:F$23,\"N/A\",0,1)","v":"N/A"},{"$f":"_xlfn.XLOOKUP($E25,'Activity 9'!$B$17:$B$23,'Activity 9'!G$17:G$23,\"N/A\",0,1)","v":"N/A"},{"$f":"_xlfn.XLOOKUP($E25,'Activity 9'!$B$17:$B$23,'Activity 9'!H$17:H$23,\"N/A\",0,1)","v":"N/A"},{"$f":"_xlfn.XLOOKUP($E25,'Activity 9'!$B$17:$B$23,'Activity 9'!I$17:I$23,\"N/A\",0,1)","v":"N/A"},{"$f":"_xlfn.XLOOKUP($E25,'Activity 9'!$B$17:$B$23,'Activity 9'!J$17:J$23,\"N/A\",0,1)","v":"N/A"},{"$f":"_xlfn.XLOOKUP($E25,'Activity 9'!$B$17:$B$23,'Activity 9'!K$17:K$23,\"N/A\",0,1)","v":"N/A"},{"$f":"_xlfn.XLOOKUP($E25,'Activity 9'!$B$17:$B$23,'Activity 9'!L$17:L$23,\"N/A\",0,1)","v":"N/A"},{"$f":"_xlfn.XLOOKUP($E25,'Activity 9'!$B$17:$B$23,'Activity 9'!N$17:N$23,\"N/A\",0,1)","v":"N/A"},{"$f":"_xlfn.XLOOKUP($E25,'Activity 9'!$B$17:$B$23,'Activity 9'!O$17:O$23,\"N/A\",0,1)","v":"N/A"},{"$f":"_xlfn.XLOOKUP($E25,'Activity 9'!$B$17:$B$23,'Activity 9'!Q$17:Q$23,\"N/A\",0,1)","v":"N/A"},{"$f":"_xlfn.XLOOKUP($E25,'Activity 10'!$B$7:$B$13,'Activity 10'!A$7:A$13,\"No\",0,1)","v":"No"},{"$f":"_xlfn.XLOOKUP($E25,'Activity 10'!$B$7:$B$13,'Activity 10'!J$7:J$13,\"N/A\",0,1)","v":"N/A"},{"$f":"_xlfn.XLOOKUP($E25,'Activity 10'!$B$7:$B$13,'Activity 10'!K$7:K$13,\"N/A\",0,1)","v":"N/A"},{"$f":"_xlfn.XLOOKUP($E25,'Activity 10'!$B$7:$B$13,'Activity 10'!L$7:L$13,\"N/A\",0,1)","v":"N/A"},{"$f":"_xlfn.XLOOKUP($E25,'Activity 10'!$B$7:$B$13,'Activity 10'!M$7:M$13,\"N/A\",0,1)","v":"N/A"},{"$f":"_xlfn.XLOOKUP($E25,'Activity 10'!$B$7:$B$13,'Activity 10'!N$7:N$13,\"N/A\",0,1)","v":"N/A"},{"$f":"_xlfn.XLOOKUP($E25,'Activity 10'!$B$7:$B$13,'Activity 10'!O$7:O$13,\"N/A\",0,1)","v":"N/A"},{"$f":"_xlfn.XLOOKUP($E25,'Activity 10'!$B$7:$B$13,'Activity 10'!P$7:P$13,\"N/A\",0,1)","v":"N/A"},{"$f":"_xlfn.XLOOKUP($E25,'Activity 10'!$B$7:$B$13,'Activity 10'!Q$7:Q$13,\"N/A\",0,1)","v":"N/A"},{"$f":"_xlfn.XLOOKUP($E25,'Activity 10'!$B$7:$B$13,'Activity 10'!R$7:R$13,\"N/A\",0,1)","v":"N/A"},{"$f":"_xlfn.XLOOKUP($E25,'Activity 10'!$B$7:$B$13,'Activity 10'!S$7:S$13,\"N/A\",0,1)","v":"N/A"},{"$f":"_xlfn.XLOOKUP($E25,'Activity 10'!$B$7:$B$13,'Activity 10'!T$7:T$13,\"N/A\",0,1)","v":"N/A"},{"$f":"_xlfn.XLOOKUP($E25,'Activity 10'!$B$7:$B$13,'Activity 10'!U$7:U$13,\"N/A\",0,1)","v":"N/A"},{"$f":"_xlfn.XLOOKUP($E25,'Activity 10'!$B$7:$B$13,'Activity 10'!V$7:V$13,\"N/A\",0,1)","v":"N/A"},{"$f":"_xlfn.XLOOKUP($E25,'Activity 10'!$B$17:$B$23,'Activity 10'!E$17:E$23,\"N/A\",0,1)","v":"N/A"},{"$f":"_xlfn.XLOOKUP($E25,'Activity 10'!$B$17:$B$23,'Activity 10'!F$17:F$23,\"N/A\",0,1)","v":"N/A"},{"$f":"_xlfn.XLOOKUP($E25,'Activity 10'!$B$17:$B$23,'Activity 10'!G$17:G$23,\"N/A\",0,1)","v":"N/A"},{"$f":"_xlfn.XLOOKUP($E25,'Activity 10'!$B$17:$B$23,'Activity 10'!H$17:H$23,\"N/A\",0,1)","v":"N/A"},{"$f":"_xlfn.XLOOKUP($E25,'Activity 10'!$B$17:$B$23,'Activity 10'!I$17:I$23,\"N/A\",0,1)","v":"N/A"},{"$f":"_xlfn.XLOOKUP($E25,'Activity 10'!$B$17:$B$23,'Activity 10'!J$17:J$23,\"N/A\",0,1)","v":"N/A"},{"$f":"_xlfn.XLOOKUP($E25,'Activity 10'!$B$17:$B$23,'Activity 10'!K$17:K$23,\"N/A\",0,1)","v":"N/A"},{"$f":"_xlfn.XLOOKUP($E25,'Activity 10'!$B$17:$B$23,'Activity 10'!L$17:L$23,\"N/A\",0,1)","v":"N/A"},{"$f":"_xlfn.XLOOKUP($E25,'Activity 10'!$B$17:$B$23,'Activity 10'!M$17:M$23,\"N/A\",0,1)","v":"N/A"},{"$f":"_xlfn.XLOOKUP($E25,'Activity 10'!$B$17:$B$23,'Activity 10'!N$17:N$23,\"N/A\",0,1)","v":"N/A"},{"$f":"_xlfn.XLOOKUP($E25,'Activity 10'!$B$17:$B$23,'Activity 10'!P$17:P$23,\"N/A\",0,1)","v":"N/A"},{"$f":"_xlfn.XLOOKUP($E25,'Competitive Activity 1'!B$7:B$13,'Competitive Activity 1'!A$7:A$13,\"No\",0,1)","v":"No"},{"$f":"_xlfn.XLOOKUP($E25,'Competitive Activity 1'!$B$7:$B$13,'Competitive Activity 1'!H$7:H$13,\"N/A\",0,1)","v":"N/A"},{"$f":"_xlfn.XLOOKUP($E25,'Competitive Activity 1'!$B$7:$B$13,'Competitive Activity 1'!I$7:I$13,\"N/A\",0,1)","v":"N/A"},{"$f":"_xlfn.XLOOKUP($E25,'Competitive Activity 1'!$B$7:$B$13,'Competitive Activity 1'!J$7:J$13,\"N/A\",0,1)","v":"N/A"},{"$f":"_xlfn.XLOOKUP($E25,'Competitive Activity 1'!$B$7:$B$13,'Competitive Activity 1'!K$7:K$13,\"N/A\",0,1)","v":"N/A"},{"$f":"_xlfn.XLOOKUP($E25,'Competitive Activity 1'!$B$7:$B$13,'Competitive Activity 1'!L$7:L$13,\"N/A\",0,1)","v":"N/A"},{"$f":"_xlfn.XLOOKUP($E25,'Competitive Activity 1'!$B$7:$B$13,'Competitive Activity 1'!M$7:M$13,\"N/A\",0,1)","v":"N/A"},{"$f":"_xlfn.XLOOKUP($E25,'Competitive Activity 1'!$B$7:$B$13,'Competitive Activity 1'!N$7:N$13,\"N/A\",0,1)","v":"N/A"},{"$f":"_xlfn.XLOOKUP($E25,'Competitive Activity 1'!$B$7:$B$13,'Competitive Activity 1'!O$7:O$13,\"N/A\",0,1)","v":"N/A"},{"$f":"_xlfn.XLOOKUP($E25,'Competitive Activity 1'!$B$7:$B$13,'Competitive Activity 1'!P$7:P$13,\"N/A\",0,1)","v":"N/A"},{"$f":"_xlfn.XLOOKUP($E25,'Competitive Activity 1'!$B$7:$B$13,'Competitive Activity 1'!Q$7:Q$13,\"N/A\",0,1)","v":"N/A"},{"$f":"_xlfn.XLOOKUP($E25,'Competitive Activity 1'!$B$7:$B$13,'Competitive Activity 1'!R$7:R$13,\"N/A\",0,1)","v":"N/A"},{"$f":"_xlfn.XLOOKUP($E25,'Competitive Activity 1'!$B$7:$B$13,'Competitive Activity 1'!S$7:S$13,\"N/A\",0,1)","v":"N/A"},{"$f":"_xlfn.XLOOKUP($E25,'Competitive Activity 1'!$B$7:$B$13,'Competitive Activity 1'!T$7:T$13,\"N/A\",0,1)","v":"N/A"},{"$f":"_xlfn.XLOOKUP($E25,'Competitive Activity 1'!$B$7:$B$13,'Competitive Activity 1'!U$7:U$13,\"N/A\",0,1)","v":"N/A"},{"$f":"_xlfn.XLOOKUP($E25,'Competitive Activity 1'!$B$17:$B$23,'Competitive Activity 1'!C$17:C$23,\"N/A\",0,1)","v":"N/A"},{"$f":"_xlfn.XLOOKUP($E25,'Competitive Activity 1'!$B$17:$B$23,'Competitive Activity 1'!D$17:D$23,\"N/A\",0,1)","v":"N/A"},{"$f":"_xlfn.XLOOKUP($E25,'Competitive Activity 1'!$B$17:$B$23,'Competitive Activity 1'!E$17:E$23,\"N/A\",0,1)","v":"N/A"},{"$f":"_xlfn.XLOOKUP($E25,'Competitive Activity 1'!$B$17:$B$23,'Competitive Activity 1'!F$17:F$23,\"N/A\",0,1)","v":"N/A"},{"$f":"_xlfn.XLOOKUP($E25,'Competitive Activity 1'!$B$17:$B$23,'Competitive Activity 1'!G$17:G$23,\"N/A\",0,1)","v":"N/A"},{"$f":"_xlfn.XLOOKUP($E25,'Competitive Activity 1'!$B$17:$B$23,'Competitive Activity 1'!H$17:H$23,\"N/A\",0,1)","v":"N/A"},{"$f":"_xlfn.XLOOKUP($E25,'Competitive Activity 1'!$B$17:$B$23,'Competitive Activity 1'!I$17:I$23,\"N/A\",0,1)","v":"N/A"},{"$f":"_xlfn.XLOOKUP($E25,'Competitive Activity 1'!$B$17:$B$23,'Competitive Activity 1'!J$17:J$23,\"N/A\",0,1)","v":"N/A"},{"$f":"_xlfn.XLOOKUP($E25,'Competitive Activity 1'!$B$17:$B$23,'Competitive Activity 1'!K$17:K$23,\"N/A\",0,1)","v":"N/A"},{"$f":"_xlfn.XLOOKUP($E25,'Competitive Activity 1'!$B$17:$B$23,'Competitive Activity 1'!M$17:M$23,\"N/A\",0,1)","v":"N/A"},{"$f":"_xlfn.XLOOKUP($E25,'Competitive Activity 1'!$B$17:$B$23,'Competitive Activity 1'!N$17:N$23,\"N/A\",0,1)","v":"N/A"},{"$f":"_xlfn.XLOOKUP($E25,'Competitive Activity 1'!$B$17:$B$23,'Competitive Activity 1'!P$17:P$23,\"N/A\",0,1)","v":"N/A"},{"$f":"_xlfn.XLOOKUP($E25,'Competitive Activity 2'!$B$7:$B$13,'Competitive Activity 2'!A$7:A$13,\"No\",0)","v":"No"},{"$f":"_xlfn.XLOOKUP($E25,'Competitive Activity 2'!$B$7:$B$13,'Competitive Activity 2'!L$7:L$13,\"N/A\",0)","v":"N/A"},{"$f":"_xlfn.XLOOKUP($E25,'Competitive Activity 2'!$B$7:$B$13,'Competitive Activity 2'!M$7:M$13,\"N/A\",0)","v":"N/A"},{"$f":"_xlfn.XLOOKUP($E25,'Competitive Activity 2'!$B$7:$B$13,'Competitive Activity 2'!N$7:N$13,\"N/A\",0)","v":"N/A"},{"$f":"_xlfn.XLOOKUP($E25,'Competitive Activity 2'!$B$7:$B$13,'Competitive Activity 2'!O$7:O$13,\"N/A\",0)","v":"N/A"},{"$f":"_xlfn.XLOOKUP($E25,'Competitive Activity 2'!$B$7:$B$13,'Competitive Activity 2'!P$7:P$13,\"N/A\",0)","v":"N/A"},{"$f":"_xlfn.XLOOKUP($E25,'Competitive Activity 2'!$B$7:$B$13,'Competitive Activity 2'!Q$7:Q$13,\"N/A\",0)","v":"N/A"},{"$f":"_xlfn.XLOOKUP($E25,'Competitive Activity 2'!$B$7:$B$13,'Competitive Activity 2'!R$7:R$13,\"N/A\",0)","v":"N/A"},{"$f":"_xlfn.XLOOKUP($E25,'Competitive Activity 2'!$B$7:$B$13,'Competitive Activity 2'!S$7:S$13,\"N/A\",0)","v":"N/A"},{"$f":"_xlfn.XLOOKUP($E25,'Competitive Activity 2'!$B$7:$B$13,'Competitive Activity 2'!T$7:T$13,\"N/A\",0)","v":"N/A"},{"$f":"_xlfn.XLOOKUP($E25,'Competitive Activity 2'!$B$7:$B$13,'Competitive Activity 2'!U$7:U$13,\"N/A\",0)","v":"N/A"},{"$f":"_xlfn.XLOOKUP($E25,'Competitive Activity 2'!$B$17:$B$23,'Competitive Activity 2'!D$17:D$23,\"N/A\",0)","v":"N/A"},{"$f":"_xlfn.XLOOKUP($E25,'Competitive Activity 2'!$B$17:$B$23,'Competitive Activity 2'!E$17:E$23,\"N/A\",0)","v":"N/A"},{"$f":"_xlfn.XLOOKUP($E25,'Competitive Activity 2'!$B$17:$B$23,'Competitive Activity 2'!F$17:F$23,\"N/A\",0)","v":"N/A"},{"$f":"_xlfn.XLOOKUP($E25,'Competitive Activity 2'!$B$17:$B$23,'Competitive Activity 2'!G$17:G$23,\"N/A\",0)","v":"N/A"},{"$f":"_xlfn.XLOOKUP($E25,'Competitive Activity 2'!$B$17:$B$23,'Competitive Activity 2'!H$17:H$23,\"N/A\",0)","v":"N/A"},{"$f":"_xlfn.XLOOKUP($E25,'Competitive Activity 2'!$B$17:$B$23,'Competitive Activity 2'!I$17:I$23,\"N/A\",0)","v":"N/A"},{"$f":"_xlfn.XLOOKUP($E25,'Competitive Activity 2'!$B$17:$B$23,'Competitive Activity 2'!J$17:J$23,\"N/A\",0)","v":"N/A"},{"$f":"_xlfn.XLOOKUP($E25,'Competitive Activity 2'!$B$17:$B$23,'Competitive Activity 2'!K$17:K$23,\"N/A\",0)","v":"N/A"},{"$f":"_xlfn.XLOOKUP($E25,'Competitive Activity 2'!$B$17:$B$23,'Competitive Activity 2'!L$17:L$23,\"N/A\",0)","v":"N/A"},{"$f":"_xlfn.XLOOKUP($E25,'Competitive Activity 2'!$B$17:$B$23,'Competitive Activity 2'!M$17:M$23,\"N/A\",0)","v":"N/A"},{"$f":"_xlfn.XLOOKUP($E25,'Competitive Activity 2'!$B$17:$B$23,'Competitive Activity 2'!N$17:N$23,\"N/A\",0)","v":"N/A"},{"$f":"_xlfn.XLOOKUP($E25,'Competitive Activity 2'!$B$27:$B$33,'Competitive Activity 2'!D$27:D$33,\"N/A\",0)","v":"N/A"},{"$f":"_xlfn.XLOOKUP($E25,'Competitive Activity 2'!$B$27:$B$33,'Competitive Activity 2'!E$27:E$33,\"N/A\",0)","v":"N/A"},{"$f":"_xlfn.XLOOKUP($E25,'Competitive Activity 2'!$B$27:$B$33,'Competitive Activity 2'!F$27:F$33,\"N/A\",0)","v":"N/A"},{"$f":"_xlfn.XLOOKUP($E25,'Competitive Activity 2'!$B$27:$B$33,'Competitive Activity 2'!G$27:G$33,\"N/A\",0)","v":"N/A"},{"$f":"_xlfn.XLOOKUP($E25,'Competitive Activity 2'!$B$27:$B$33,'Competitive Activity 2'!H$27:H$33,\"N/A\",0)","v":"N/A"},{"$f":"_xlfn.XLOOKUP($E25,'Competitive Activity 2'!$B$27:$B$33,'Competitive Activity 2'!I$27:I$33,\"N/A\",0)","v":"N/A"},{"$f":"_xlfn.XLOOKUP($E25,'Competitive Activity 2'!$B$27:$B$33,'Competitive Activity 2'!J$27:J$33,\"N/A\",0)","v":"N/A"},{"$f":"_xlfn.XLOOKUP($E25,'Competitive Activity 2'!$B$27:$B$33,'Competitive Activity 2'!K$27:K$33,\"N/A\",0)","v":"N/A"},{"$f":"_xlfn.XLOOKUP($E25,'Competitive Activity 2'!$B$27:$B$33,'Competitive Activity 2'!M$27:M$33,\"N/A\",0)","v":"N/A"}]
[{"$f":"'1-Cover Sheet'!$C$8","v":"Select One"},{"$f":"'1-Cover Sheet'!$F$8","v":"Select One"},{"$f":"'Summary Sheet'!$D$8","v":0},{"$f":"'Summary Sheet'!$D$10","v":0},{"$f":"'Drop Down Box'!B190","v":0},{"$f":"'Drop Down Box'!C190","v":0},{"$f":"'Drop Down Box'!D190","v":"Select One"},{"$f":"_xlfn.XLOOKUP(E26,'Drop Down Box'!$B$166:$B$249,'Drop Down Box'!$A$166:$A$249,\"Unknown\",0)","v":"Activity 1"},{"$f":"_xlfn.XLOOKUP($E26,'Activity 4'!$B$8:$B$14,'Activity 4'!$J$8:$J$14,\"N/A\",0)","v":"N/A"},{"$f":"_xlfn.XLOOKUP($E26,'Activity 4'!$B$8:$B$14,'Activity 4'!$K$8:$K$14,\"N/A\",0)","v":"N/A"},{"$f":"_xlfn.XLOOKUP(E26,'Activity 4'!B11:B17,'Activity 4'!F11:F17,\"N/A\",0)","v":"N/A"},{"$f":"_xlfn.XLOOKUP($E26,'Activity 4'!B$8:B$14,'Activity 4'!G$8:G$14,\"N/A\",0)","v":"N/A"},{"$f":"_xlfn.XLOOKUP($E26,'Activity 4'!B$8:B$14,'Activity 4'!H$8:H$14,\"N/A\",0)","v":"N/A"},{"$f":"_xlfn.XLOOKUP($E26,'Activity 1'!$B$7:$B$13,'Activity 1'!$A$7:$A$13,\"No\",0,1)","v":"No"},{"$f":"_xlfn.XLOOKUP($E26,'Activity 1'!$B$7:$B$13,'Activity 1'!$H$7:$H$13,\"N/A\",0,1)","v":"N/A"},{"$f":"_xlfn.XLOOKUP($E26,'Activity 1'!$B$7:$B$13,'Activity 1'!I$7:I$13,\"N/A\",0,1)","v":"N/A"},{"$f":"_xlfn.XLOOKUP($E26,'Activity 1'!$B$7:$B$13,'Activity 1'!J$7:J$13,\"N/A\",0,1)","v":"N/A"},{"$f":"_xlfn.XLOOKUP($E26,'Activity 1'!$B$7:$B$13,'Activity 1'!K$7:K$13,\"N/A\",0,1)","v":"N/A"},{"$f":"_xlfn.XLOOKUP($E26,'Activity 1'!$B$7:$B$13,'Activity 1'!L$7:L$13,\"N/A\",0,1)","v":"N/A"},{"$f":"_xlfn.XLOOKUP($E26,'Activity 1'!$B$7:$B$13,'Activity 1'!M$7:M$13,\"N/A\",0,1)","v":"N/A"},{"$f":"_xlfn.XLOOKUP($E26,'Activity 1'!$B$7:$B$13,'Activity 1'!N$7:N$13,\"N/A\",0,1)","v":"N/A"},0,{"$f":"_xlfn.XLOOKUP($E26,'Activity 1'!$B$7:$B$13,'Activity 1'!O$7:O$13,\"N/A\",0,1)","v":"N/A"},{"$f":"_xlfn.XLOOKUP($E26,'Activity 1'!$B$7:$B$13,'Activity 1'!P$7:P$13,\"N/A\",0,1)","v":"N/A"},{"$f":"_xlfn.XLOOKUP($E26,'Activity 1'!$B$7:$B$13,'Activity 1'!Q$7:Q$13,\"N/A\",0,1)","v":"N/A"},{"$f":"_xlfn.XLOOKUP($E26,'Activity 1'!$B$7:$B$13,'Activity 1'!R$7:R$13,\"N/A\",0,1)","v":"N/A"},{"$f":"_xlfn.XLOOKUP($E26,'Activity 1'!$B$7:$B$13,'Activity 1'!S$7:S$13,\"N/A\",0,1)","v":"N/A"},{"$f":"_xlfn.XLOOKUP($E26,'Activity 1'!$B$7:$B$13,'Activity 1'!T$7:T$13,\"N/A\",0,1)","v":"N/A"},{"$f":"_xlfn.XLOOKUP($E26,'Activity 1'!$B$7:$B$13,'Activity 1'!U$7:U$13,\"N/A\",0,1)","v":"N/A"},{"$f":"_xlfn.XLOOKUP($E26,'Activity 1'!$B$7:$B$13,'Activity 1'!V$7:V$13,\"N/A\",0,1)","v":"N/A"},{"$f":"_xlfn.XLOOKUP($E26,'Activity 1'!$B$17:$B$23,'Activity 1'!C$17:C$23,\"N/A\",0,1)","v":"N/A"},{"$f":"_xlfn.XLOOKUP($E26,'Activity 1'!$B$17:$B$23,'Activity 1'!D$17:D$23,\"N/A\",0,1)","v":"N/A"},{"$f":"_xlfn.XLOOKUP($E26,'Activity 1'!$B$17:$B$23,'Activity 1'!E$17:E$23,\"N/A\",0,1)","v":"N/A"},{"$f":"_xlfn.XLOOKUP($E26,'Activity 1'!$B$17:$B$23,'Activity 1'!F$17:F$23,\"N/A\",0,1)","v":"N/A"},{"$f":"_xlfn.XLOOKUP($E26,'Activity 1'!$B$17:$B$23,'Activity 1'!G$17:G$23,\"N/A\",0,1)","v":"N/A"},{"$f":"_xlfn.XLOOKUP($E26,'Activity 1'!$B$17:$B$23,'Activity 1'!H$17:H$23,\"N/A\",0,1)","v":"N/A"},{"$f":"_xlfn.XLOOKUP($E26,'Activity 1'!$B$17:$B$23,'Activity 1'!I$17:I$23,\"N/A\",0,1)","v":"N/A"},{"$f":"_xlfn.XLOOKUP($E26,'Activity 1'!$B$17:$B$23,'Activity 1'!J$17:J$23,\"N/A\",0,1)","v":"N/A"},{"$f":"_xlfn.XLOOKUP($E26,'Activity 1'!$B$17:$B$23,'Activity 1'!K$17:K$23,\"N/A\",0,1)","v":"N/A"},{"$f":"_xlfn.XLOOKUP($E26,'Activity 1'!$B$17:$B$23,'Activity 1'!L$17:L$23,\"N/A\",0,1)","v":"N/A"},{"$f":"_xlfn.XLOOKUP($E26,'Activity 1'!$B$17:$B$23,'Activity 1'!M$17:M$23,\"N/A\",0,1)","v":"N/A"},{"$f":"_xlfn.XLOOKUP($E26,'Activity 1'!$B$17:$B$23,'Activity 1'!O$17:O$23,\"N/A\",0,1)","v":"N/A"},{"$f":"_xlfn.XLOOKUP($E26,'Activity 1'!$B$17:$B$23,'Activity 1'!Q$17:Q$23,\"N/A\",0,1)","v":"N/A"},{"$f":"_xlfn.XLOOKUP($E26,'Activity 2'!$B$7:$B$13,'Activity 2'!$A$7:$A$13,\"No\",0,1)","v":"No"},{"$f":"_xlfn.XLOOKUP($E26,'Activity 2'!B$7:B$13,'Activity 2'!H$7:H$13,\"N/A\",0)","v":"N/A"},{"$f":"_xlfn.XLOOKUP($E26,'Activity 2'!C$7:C$13,'Activity 2'!I$7:I$13,\"N/A\",0)","v":"N/A"},{"$f":"_xlfn.XLOOKUP($E26,'Activity 2'!D$7:D$13,'Activity 2'!J$7:J$13,\"N/A\",0)","v":"N/A"},{"$f":"_xlfn.XLOOKUP($E26,'Activity 2'!E$7:E$13,'Activity 2'!K$7:K$13,\"N/A\",0)","v":"N/A"},{"$f":"_xlfn.XLOOKUP($E26,'Activity 2'!F$7:F$13,'Activity 2'!L$7:L$13,\"N/A\",0)","v":"N/A"},{"$f":"_xlfn.XLOOKUP($E26,'Activity 2'!G$7:G$13,'Activity 2'!M$7:M$13,\"N/A\",0)","v":"N/A"},{"$f":"_xlfn.XLOOKUP($E26,'Activity 2'!H$7:H$13,'Activity 2'!N$7:N$13,\"N/A\",0)","v":"N/A"},{"$f":"_xlfn.XLOOKUP($E26,'Activity 2'!I$7:I$13,'Activity 2'!O$7:O$13,\"N/A\",0)","v":"N/A"},{"$f":"_xlfn.XLOOKUP($E26,'Activity 2'!J$7:J$13,'Activity 2'!P$7:P$13,\"N/A\",0)","v":"N/A"},{"$f":"_xlfn.XLOOKUP($E26,'Activity 2'!K$7:K$13,'Activity 2'!Q$7:Q$13,\"N/A\",0)","v":"N/A"},{"$f":"_xlfn.XLOOKUP($E26,'Activity 2'!L$7:L$13,'Activity 2'!R$7:R$13,\"N/A\",0)","v":"N/A"},{"$f":"_xlfn.XLOOKUP($E26,'Activity 2'!M$7:M$13,'Activity 2'!S$7:S$13,\"N/A\",0)","v":"N/A"},{"$f":"_xlfn.XLOOKUP($E26,'Activity 2'!N$7:N$13,'Activity 2'!T$7:T$13,\"N/A\",0)","v":"N/A"},{"$f":"_xlfn.XLOOKUP($E26,'Activity 2'!O$7:O$13,'Activity 2'!U$7:U$13,\"N/A\",0)","v":"N/A"},{"$f":"_xlfn.XLOOKUP($E26,'Activity 2'!P$7:P$13,'Activity 2'!V$7:V$13,\"N/A\",0)","v":"N/A"},{"$f":"_xlfn.XLOOKUP($E26,'Activity 2'!$B$17:$B$23,'Activity 2'!C$17:C$23,\"N/A\",0,1)","v":"N/A"},{"$f":"_xlfn.XLOOKUP($E26,'Activity 2'!$B$17:$B$23,'Activity 2'!D$17:D$23,\"N/A\",0,1)","v":"N/A"},{"$f":"_xlfn.XLOOKUP($E26,'Activity 2'!$B$17:$B$23,'Activity 2'!E$17:E$23,\"N/A\",0,1)","v":"N/A"},{"$f":"_xlfn.XLOOKUP($E26,'Activity 2'!$B$17:$B$23,'Activity 2'!F$17:F$23,\"N/A\",0,1)","v":"N/A"},{"$f":"_xlfn.XLOOKUP($E26,'Activity 2'!$B$17:$B$23,'Activity 2'!G$17:G$23,\"N/A\",0,1)","v":"N/A"},{"$f":"_xlfn.XLOOKUP($E26,'Activity 2'!$B$17:$B$23,'Activity 2'!H$17:H$23,\"N/A\",0,1)","v":"N/A"},{"$f":"_xlfn.XLOOKUP($E26,'Activity 2'!$B$17:$B$23,'Activity 2'!I$17:I$23,\"N/A\",0,1)","v":"N/A"},{"$f":"_xlfn.XLOOKUP($E26,'Activity 2'!$B$17:$B$23,'Activity 2'!J$17:J$23,\"N/A\",0,1)","v":"N/A"},{"$f":"_xlfn.XLOOKUP($E26,'Activity 2'!$B$17:$B$23,'Activity 2'!K$17:K$23,\"N/A\",0,1)","v":"N/A"},{"$f":"_xlfn.XLOOKUP($E26,'Activity 2'!$B$17:$B$23,'Activity 2'!L$17:L$23,\"N/A\",0,1)","v":"N/A"},{"$f":"_xlfn.XLOOKUP($E26,'Activity 2'!$B$17:$B$23,'Activity 2'!M$17:M$23,\"N/A\",0,1)","v":"N/A"},{"$f":"_xlfn.XLOOKUP($E26,'Activity 2'!$B$17:$B$23,'Activity 2'!O$17:O$23,\"N/A\",0,1)","v":"N/A"},{"$f":"_xlfn.XLOOKUP($E26,'Activity 2'!$B$17:$B$23,'Activity 2'!Q$17:Q$23,\"N/A\",0,1)","v":"N/A"},null,{"$f":"_xlfn.XLOOKUP($E26,'Activity 3'!$B$8:$B$14,'Activity 3'!K$8:K$14,\"N/A\",0,1)","v":"N/A"},{"$f":"_xlfn.XLOOKUP($E26,'Activity 3'!$B$8:$B$14,'Activity 3'!L$8:L$14,\"N/A\",0,1)","v":"N/A"},{"$f":"_xlfn.XLOOKUP($E26,'Activity 3'!$B$8:$B$14,'Activity 3'!M$8:M$14,\"N/A\",0,1)","v":"N/A"},{"$f":"_xlfn.XLOOKUP($E26,'Activity 3'!$B$8:$B$14,'Activity 3'!N$8:N$14,\"N/A\",0,1)","v":"N/A"},{"$f":"_xlfn.XLOOKUP($E26,'Activity 3'!$B$8:$B$14,'Activity 3'!O$8:O$14,\"N/A\",0,1)","v":"N/A"},{"$f":"_xlfn.XLOOKUP($E26,'Activity 3'!$B$8:$B$14,'Activity 3'!R$8:R$14,\"N/A\",0,1)","v":"N/A"},{"$f":"_xlfn.XLOOKUP($E26,'Activity 4'!$B$8:$B$14,'Activity 4'!$A$8:$A$14,\"No\",0,1)","v":"No"},{"$f":"_xlfn.XLOOKUP($E26,'Activity 4'!$B$8:$B$14,'Activity 4'!L$8:L$14,\"N/A\",0,1)","v":"N/A"},{"$f":"_xlfn.XLOOKUP($E26,'Activity 4'!$B$8:$B$14,'Activity 4'!I$8:I$14,\"N/A\",0,1)","v":"N/A"},{"$f":"_xlfn.XLOOKUP($E26,'Activity 4'!$B$8:$B$14,'Activity 4'!M$8:M$14,\"N/A\",0,1)","v":"N/A"},{"$f":"_xlfn.XLOOKUP($E26,'Activity 5'!$B$8:$B$14,'Activity 5'!$A$8:$A$14,\"No\",0,1)","v":"No"},{"$f":"_xlfn.XLOOKUP($E26,'Activity 5'!$B$8:$B$14,'Activity 5'!J$8:J$14,\"N/A\",0,1)","v":"N/A"},{"$f":"_xlfn.XLOOKUP($E26,'Activity 5'!$B$8:$B$14,'Activity 5'!K$8:K$14,\"N/A\",0,1)","v":"N/A"},{"$f":"_xlfn.XLOOKUP($E26,'Activity 5'!$B$8:$B$14,'Activity 5'!N$8:N$14,\"N/A\",0,1)","v":"N/A"},{"$f":"_xlfn.XLOOKUP($E26,'Activity 5'!$B$8:$B$14,'Activity 5'!O$8:O$14,\"N/A\",0,1)","v":"N/A"},{"$f":"_xlfn.XLOOKUP($E26,'Activity 5'!$B$8:$B$14,'Activity 5'!P$8:P$14,\"N/A\",0,1)","v":"N/A"},{"$f":"_xlfn.XLOOKUP($E26,'Activity 5'!$B$8:$B$14,'Activity 5'!Q$8:Q$14,\"N/A\",0,1)","v":"N/A"},{"$f":"_xlfn.XLOOKUP($E26,'Activity 5'!$B$8:$B$14,'Activity 5'!R$8:R$14,\"N/A\",0,1)","v":"N/A"},{"$f":"_xlfn.XLOOKUP($E26,'Activity 6'!$B$7:$B$13,'Activity 6'!A$7:A$13,\"No\",0,1)","v":"No"},{"$f":"_xlfn.XLOOKUP($E26,'Activity 6'!$B$7:$B$13,'Activity 6'!K$7:K$13,\"N/A\",0,1)","v":"N/A"},{"$f":"_xlfn.XLOOKUP($E26,'Activity 6'!$B$7:$B$13,'Activity 6'!L$7:L$13,\"N/A\",0,1)","v":"N/A"},{"$f":"_xlfn.XLOOKUP($E26,'Activity 6'!$B$7:$B$13,'Activity 6'!M$7:M$13,\"N/A\",0,1)","v":"N/A"},{"$f":"_xlfn.XLOOKUP($E26,'Activity 6'!$B$7:$B$13,'Activity 6'!N$7:N$13,\"N/A\",0,1)","v":"N/A"},{"$f":"_xlfn.XLOOKUP($E26,'Activity 6'!$B$7:$B$13,'Activity 6'!O$7:O$13,\"N/A\",0,1)","v":"N/A"},{"$f":"_xlfn.XLOOKUP($E26,'Activity 6'!$B$7:$B$13,'Activity 6'!P$7:P$13,\"N/A\",0,1)","v":"N/A"},{"$f":"_xlfn.XLOOKUP($E26,'Activity 6'!$B$7:$B$13,'Activity 6'!Q$7:Q$13,\"N/A\",0,1)","v":"N/A"},{"$f":"_xlfn.XLOOKUP($E26,'Activity 6'!$B$7:$B$13,'Activity 6'!R$7:R$13,\"N/A\",0,1)","v":"N/A"},{"$f":"_xlfn.XLOOKUP($E26,'Activity 6'!$B$7:$B$13,'Activity 6'!S$7:S$13,\"N/A\",0,1)","v":"N/A"},{"$f":"_xlfn.XLOOKUP($E26,'Activity 6'!$B$7:$B$13,'Activity 6'!T$7:T$13,\"N/A\",0,1)","v":"N/A"},{"$f":"_xlfn.XLOOKUP($E26,'Activity 6'!$B$7:$B$13,'Activity 6'!U$7:U$13,\"N/A\",0,1)","v":"N/A"},{"$f":"_xlfn.XLOOKUP($E26,'Activity 6'!$B$22:$B$28,'Activity 6'!C$22:C$28,\"N/A\",0,1)","v":"N/A"},{"$f":"_xlfn.XLOOKUP($E26,'Activity 6'!$B$22:$B$28,'Activity 6'!D$22:D$28,\"N/A\",0,1)","v":"N/A"},{"$f":"_xlfn.XLOOKUP($E26,'Activity 6'!$B$22:$B$28,'Activity 6'!E$22:E$28,\"N/A\",0,1)","v":"N/A"},{"$f":"_xlfn.XLOOKUP($E26,'Activity 6'!$B$22:$B$28,'Activity 6'!F$22:F$28,\"N/A\",0,1)","v":"N/A"},{"$f":"_xlfn.XLOOKUP($E26,'Activity 6'!$B$22:$B$28,'Activity 6'!G$22:G$28,\"N/A\",0,1)","v":"N/A"},{"$f":"_xlfn.XLOOKUP($E26,'Activity 6'!$B$22:$B$28,'Activity 6'!H$22:H$28,\"N/A\",0,1)","v":"N/A"},{"$f":"_xlfn.XLOOKUP($E26,'Activity 6'!$B$22:$B$28,'Activity 6'!I$22:I$28,\"N/A\",0,1)","v":"N/A"},{"$f":"_xlfn.XLOOKUP($E26,'Activity 6'!$B$22:$B$28,'Activity 6'!J$22:J$28,\"N/A\",0,1)","v":"N/A"},{"$f":"_xlfn.XLOOKUP($E26,'Activity 6'!$B$22:$B$28,'Activity 6'!K$22:K$28,\"N/A\",0,1)","v":"N/A"},{"$f":"_xlfn.XLOOKUP($E26,'Activity 6'!$B$22:$B$28,'Activity 6'!L$22:L$28,\"N/A\",0,1)","v":"N/A"},{"$f":"_xlfn.XLOOKUP($E26,'Activity 6'!$B$22:$B$28,'Activity 6'!M$22:M$28,\"N/A\",0,1)","v":"N/A"},{"$f":"_xlfn.XLOOKUP($E26,'Activity 6'!$B$22:$B$28,'Activity 6'!N$22:N$28,\"N/A\",0,1)","v":"N/A"},{"$f":"_xlfn.XLOOKUP($E26,'Activity 6'!$B$32:$B$38,'Activity 6'!C$32:C$38,\"N/A\",0,1)","v":"N/A"},{"$f":"_xlfn.XLOOKUP($E26,'Activity 6'!$B$32:$B$38,'Activity 6'!D$32:D$38,\"N/A\",0,1)","v":"N/A"},{"$f":"_xlfn.XLOOKUP($E26,'Activity 6'!$B$32:$B$38,'Activity 6'!E$32:E$38,\"N/A\",0,1)","v":"N/A"},{"$f":"_xlfn.XLOOKUP($E26,'Activity 6'!$B$32:$B$38,'Activity 6'!F$32:F$38,\"N/A\",0,1)","v":"N/A"},{"$f":"_xlfn.XLOOKUP($E26,'Activity 6'!$B$32:$B$38,'Activity 6'!G$32:G$38,\"N/A\",0,1)","v":"N/A"},{"$f":"_xlfn.XLOOKUP($E26,'Activity 6'!$B$32:$B$38,'Activity 6'!H$32:H$38,\"N/A\",0,1)","v":"N/A"},{"$f":"_xlfn.XLOOKUP($E26,'Activity 6'!$B$32:$B$38,'Activity 6'!I$32:I$38,\"N/A\",0,1)","v":"N/A"},{"$f":"_xlfn.XLOOKUP($E26,'Activity 6'!$B$32:$B$38,'Activity 6'!J$32:J$38,\"N/A\",0,1)","v":"N/A"},{"$f":"_xlfn.XLOOKUP($E26,'Activity 6'!$B$32:$B$38,'Activity 6'!K$32:K$38,\"N/A\",0,1)","v":"N/A"},{"$f":"_xlfn.XLOOKUP($E26,'Activity 6'!$B$32:$B$38,'Activity 6'!M$32:M$38,\"N/A\",0,1)","v":"N/A"},{"$f":"_xlfn.XLOOKUP($E26,'Activity 7'!$B$7:$B$13,'Activity 7'!$A$7:$A$13,\"No\",0,1)","v":"No"},{"$f":"_xlfn.XLOOKUP($E26,'Activity 7'!$B$7:$B$13,'Activity 7'!M$7:M$13,\"N/A\",0,1)","v":"N/A"},{"$f":"_xlfn.XLOOKUP($E26,'Activity 7'!$B$7:$B$13,'Activity 7'!K$7:K$13,\"N/A\",0,1)","v":"N/A"},{"$f":"_xlfn.XLOOKUP($E26,'Activity 7'!$B$7:$B$13,'Activity 7'!N$7:N$13,\"N/A\",0,1)","v":"N/A"},{"$f":"_xlfn.XLOOKUP($E26,'Activity 7'!$B$7:$B$13,'Activity 7'!O$7:O$13,\"N/A\",0,1)","v":"N/A"},{"$f":"_xlfn.XLOOKUP($E26,'Activity 7'!$B$7:$B$13,'Activity 7'!P$7:P$13,\"N/A\",0,1)","v":"N/A"},{"$f":"_xlfn.XLOOKUP($E26,'Activity 7'!$B$7:$B$13,'Activity 7'!Q$7:Q$13,\"N/A\",0,1)","v":"N/A"},{"$f":"_xlfn.XLOOKUP($E26,'Activity 7'!$B$7:$B$13,'Activity 7'!R$7:R$13,\"N/A\",0,1)","v":"N/A"},{"$f":"_xlfn.XLOOKUP($E26,'Activity 7'!$B$7:$B$13,'Activity 7'!S$7:S$13,\"N/A\",0,1)","v":"N/A"},{"$f":"_xlfn.XLOOKUP($E26,'Activity 7'!$B$7:$B$13,'Activity 7'!T$7:T$13,\"N/A\",0,1)","v":"N/A"},{"$f":"_xlfn.XLOOKUP($E26,'Activity 7'!$B$7:$B$13,'Activity 7'!U$7:U$13,\"N/A\",0,1)","v":"N/A"},{"$f":"_xlfn.XLOOKUP($E26,'Activity 7'!$B$7:$B$13,'Activity 7'!V$7:V$13,\"N/A\",0,1)","v":"N/A"},{"$f":"_xlfn.XLOOKUP($E26,'Activity 7'!$B$17:$B$23,'Activity 7'!E$17:E$23,\"N/A\",0,1)","v":"N/A"},{"$f":"_xlfn.XLOOKUP($E26,'Activity 7'!$B$17:$B$23,'Activity 7'!G$17:G$23,\"N/A\",0,1)","v":"N/A"},{"$f":"_xlfn.XLOOKUP($E26,'Activity 7'!$B$17:$B$23,'Activity 7'!I$17:I$23,\"N/A\",0,1)","v":"N/A"},{"$f":"_xlfn.XLOOKUP($E26,'Activity 7'!$B$17:$B$23,'Activity 7'!J$17:J$23,\"N/A\",0,1)","v":"N/A"},{"$f":"_xlfn.XLOOKUP($E26,'Activity 7'!$B$17:$B$23,'Activity 7'!K$17:K$23,\"N/A\",0,1)","v":"N/A"},{"$f":"_xlfn.XLOOKUP($E26,'Activity 7'!$B$17:$B$23,'Activity 7'!L$17:L$23,\"N/A\",0,1)","v":"N/A"},{"$f":"_xlfn.XLOOKUP($E26,'Activity 7'!$B$17:$B$23,'Activity 7'!M$17:M$23,\"N/A\",0,1)","v":"N/A"},{"$f":"_xlfn.XLOOKUP($E26,'Activity 7'!$B$17:$B$23,'Activity 7'!N$17:N$23,\"N/A\",0,1)","v":"N/A"},{"$f":"_xlfn.XLOOKUP($E26,'Activity 7'!$B$17:$B$23,'Activity 7'!P$17:P$23,\"N/A\",0,1)","v":"N/A"},{"$f":"_xlfn.XLOOKUP($E26,'Activity 8'!$B$7:$B$13,'Activity 8'!A$7:A$13,\"No\",0,1)","v":"No"},{"$f":"_xlfn.XLOOKUP($E26,'Activity 8'!$B$7:$B$13,'Activity 8'!I$7:I$13,\"N/A\",0,1)","v":"N/A"},{"$f":"_xlfn.XLOOKUP($E26,'Activity 8'!$B$7:$B$13,'Activity 8'!J$7:J$13,\"N/A\",0,1)","v":"N/A"},{"$f":"_xlfn.XLOOKUP($E26,'Activity 8'!$B$7:$B$13,'Activity 8'!K$7:K$13,\"N/A\",0,1)","v":"N/A"},{"$f":"_xlfn.XLOOKUP($E26,'Activity 8'!$B$7:$B$13,'Activity 8'!L$7:L$13,\"N/A\",0,1)","v":"N/A"},{"$f":"_xlfn.XLOOKUP($E26,'Activity 8'!$B$7:$B$13,'Activity 8'!M$7:M$13,\"N/A\",0,1)","v":"N/A"},{"$f":"_xlfn.XLOOKUP($E26,'Activity 8'!$B$7:$B$13,'Activity 8'!N$7:N$13,\"N/A\",0,1)","v":"N/A"},{"$f":"_xlfn.XLOOKUP($E26,'Activity 8'!$B$7:$B$13,'Activity 8'!O$7:O$13,\"N/A\",0,1)","v":"N/A"},{"$f":"_xlfn.XLOOKUP($E26,'Activity 8'!$B$7:$B$13,'Activity 8'!P$7:P$13,\"N/A\",0,1)","v":"N/A"},{"$f":"_xlfn.XLOOKUP($E26,'Activity 8'!$B$7:$B$13,'Activity 8'!Q$7:Q$13,\"N/A\",0,1)","v":"N/A"},{"$f":"_xlfn.XLOOKUP($E26,'Activity 8'!$B$7:$B$13,'Activity 8'!R$7:R$13,\"N/A\",0,1)","v":"N/A"},{"$f":"_xlfn.XLOOKUP($E26,'Activity 8'!$B$7:$B$13,'Activity 8'!S$7:S$13,\"N/A\",0,1)","v":"N/A"},{"$f":"_xlfn.XLOOKUP($E26,'Activity 8'!$B$7:$B$13,'Activity 8'!T$7:T$13,\"N/A\",0,1)","v":"N/A"},{"$f":"_xlfn.XLOOKUP($E26,'Activity 8'!$B$7:$B$13,'Activity 8'!U$7:U$13,\"N/A\",0,1)","v":"N/A"},{"$f":"_xlfn.XLOOKUP($E26,'Activity 8'!$B$7:$B$13,'Activity 8'!V$7:V$13,\"N/A\",0,1)","v":"N/A"},{"$f":"_xlfn.XLOOKUP($E26,'Activity 8'!$B$17:$B$23,'Activity 8'!D$17:D$23,\"N/A\",0,1)","v":"N/A"},{"$f":"_xlfn.XLOOKUP($E26,'Activity 8'!$B$17:$B$23,'Activity 8'!E$17:E$23,\"N/A\",0,1)","v":"N/A"},{"$f":"_xlfn.XLOOKUP($E26,'Activity 8'!$B$17:$B$23,'Activity 8'!F$17:F$23,\"N/A\",0,1)","v":"N/A"},{"$f":"_xlfn.XLOOKUP($E26,'Activity 8'!$B$17:$B$23,'Activity 8'!G$17:G$23,\"N/A\",0,1)","v":"N/A"},{"$f":"_xlfn.XLOOKUP($E26,'Activity 8'!$B$17:$B$23,'Activity 8'!H$17:H$23,\"N/A\",0,1)","v":"N/A"},{"$f":"_xlfn.XLOOKUP($E26,'Activity 8'!$B$17:$B$23,'Activity 8'!I$17:I$23,\"N/A\",0,1)","v":"N/A"},{"$f":"_xlfn.XLOOKUP($E26,'Activity 8'!$B$17:$B$23,'Activity 8'!J$17:J$23,\"N/A\",0,1)","v":"N/A"},{"$f":"_xlfn.XLOOKUP($E26,'Activity 8'!$B$17:$B$23,'Activity 8'!K$17:K$23,\"N/A\",0,1)","v":"N/A"},{"$f":"_xlfn.XLOOKUP($E26,'Activity 8'!$B$17:$B$23,'Activity 8'!L$17:L$23,\"N/A\",0,1)","v":"N/A"},{"$f":"_xlfn.XLOOKUP($E26,'Activity 8'!$B$17:$B$23,'Activity 8'!M$17:M$23,\"N/A\",0,1)","v":"N/A"},{"$f":"_xlfn.XLOOKUP($E26,'Activity 8'!$B$17:$B$23,'Activity 8'!N$17:N$23,\"N/A\",0,1)","v":"N/A"},{"$f":"_xlfn.XLOOKUP($E26,'Activity 8'!$B$17:$B$23,'Activity 8'!P$17:P$23,\"N/A\",0,1)","v":"N/A"},{"$f":"_xlfn.XLOOKUP(E26,'Activity 9'!$B$7:$B$13,'Activity 9'!$A$7:$A$13,\"No\",0,1)","v":"No"},{"$f":"_xlfn.XLOOKUP($E26,'Activity 9'!$B$7:$B$13,'Activity 9'!J$7:J$13,\"N/A\",0,1)","v":"N/A"},{"$f":"_xlfn.XLOOKUP($E26,'Activity 9'!$B$7:$B$13,'Activity 9'!K$7:K$13,\"N/A\",0,1)","v":"N/A"},{"$f":"_xlfn.XLOOKUP($E26,'Activity 9'!$B$7:$B$13,'Activity 9'!L$7:L$13,\"N/A\",0,1)","v":"N/A"},{"$f":"_xlfn.XLOOKUP($E26,'Activity 9'!$B$7:$B$13,'Activity 9'!M$7:M$13,\"N/A\",0,1)","v":"N/A"},{"$f":"_xlfn.XLOOKUP($E26,'Activity 9'!$B$7:$B$13,'Activity 9'!N$7:N$13,\"N/A\",0,1)","v":"N/A"},{"$f":"_xlfn.XLOOKUP($E26,'Activity 9'!$B$7:$B$13,'Activity 9'!O$7:O$13,\"N/A\",0,1)","v":"N/A"},{"$f":"_xlfn.XLOOKUP($E26,'Activity 9'!$B$7:$B$13,'Activity 9'!P$7:P$13,\"N/A\",0,1)","v":"N/A"},{"$f":"_xlfn.XLOOKUP($E26,'Activity 9'!$B$7:$B$13,'Activity 9'!Q$7:Q$13,\"N/A\",0,1)","v":"N/A"},{"$f":"_xlfn.XLOOKUP($E26,'Activity 9'!$B$7:$B$13,'Activity 9'!R$7:R$13,\"N/A\",0,1)","v":"N/A"},{"$f":"_xlfn.XLOOKUP($E26,'Activity 9'!$B$7:$B$13,'Activity 9'!S$7:S$13,\"N/A\",0,1)","v":"N/A"},{"$f":"_xlfn.XLOOKUP($E26,'Activity 9'!$B$7:$B$13,'Activity 9'!T$7:T$13,\"N/A\",0,1)","v":"N/A"},{"$f":"_xlfn.XLOOKUP($E26,'Activity 9'!$B$17:$B$23,'Activity 9'!E$17:E$23,\"N/A\",0,1)","v":"N/A"},{"$f":"_xlfn.XLOOKUP($E26,'Activity 9'!$B$17:$B$23,'Activity 9'!F$17:F$23,\"N/A\",0,1)","v":"N/A"},{"$f":"_xlfn.XLOOKUP($E26,'Activity 9'!$B$17:$B$23,'Activity 9'!G$17:G$23,\"N/A\",0,1)","v":"N/A"},{"$f":"_xlfn.XLOOKUP($E26,'Activity 9'!$B$17:$B$23,'Activity 9'!H$17:H$23,\"N/A\",0,1)","v":"N/A"},{"$f":"_xlfn.XLOOKUP($E26,'Activity 9'!$B$17:$B$23,'Activity 9'!I$17:I$23,\"N/A\",0,1)","v":"N/A"},{"$f":"_xlfn.XLOOKUP($E26,'Activity 9'!$B$17:$B$23,'Activity 9'!J$17:J$23,\"N/A\",0,1)","v":"N/A"},{"$f":"_xlfn.XLOOKUP($E26,'Activity 9'!$B$17:$B$23,'Activity 9'!K$17:K$23,\"N/A\",0,1)","v":"N/A"},{"$f":"_xlfn.XLOOKUP($E26,'Activity 9'!$B$17:$B$23,'Activity 9'!L$17:L$23,\"N/A\",0,1)","v":"N/A"},{"$f":"_xlfn.XLOOKUP($E26,'Activity 9'!$B$17:$B$23,'Activity 9'!N$17:N$23,\"N/A\",0,1)","v":"N/A"},{"$f":"_xlfn.XLOOKUP($E26,'Activity 9'!$B$17:$B$23,'Activity 9'!O$17:O$23,\"N/A\",0,1)","v":"N/A"},{"$f":"_xlfn.XLOOKUP($E26,'Activity 9'!$B$17:$B$23,'Activity 9'!Q$17:Q$23,\"N/A\",0,1)","v":"N/A"},{"$f":"_xlfn.XLOOKUP($E26,'Activity 10'!$B$7:$B$13,'Activity 10'!A$7:A$13,\"No\",0,1)","v":"No"},{"$f":"_xlfn.XLOOKUP($E26,'Activity 10'!$B$7:$B$13,'Activity 10'!J$7:J$13,\"N/A\",0,1)","v":"N/A"},{"$f":"_xlfn.XLOOKUP($E26,'Activity 10'!$B$7:$B$13,'Activity 10'!K$7:K$13,\"N/A\",0,1)","v":"N/A"},{"$f":"_xlfn.XLOOKUP($E26,'Activity 10'!$B$7:$B$13,'Activity 10'!L$7:L$13,\"N/A\",0,1)","v":"N/A"},{"$f":"_xlfn.XLOOKUP($E26,'Activity 10'!$B$7:$B$13,'Activity 10'!M$7:M$13,\"N/A\",0,1)","v":"N/A"},{"$f":"_xlfn.XLOOKUP($E26,'Activity 10'!$B$7:$B$13,'Activity 10'!N$7:N$13,\"N/A\",0,1)","v":"N/A"},{"$f":"_xlfn.XLOOKUP($E26,'Activity 10'!$B$7:$B$13,'Activity 10'!O$7:O$13,\"N/A\",0,1)","v":"N/A"},{"$f":"_xlfn.XLOOKUP($E26,'Activity 10'!$B$7:$B$13,'Activity 10'!P$7:P$13,\"N/A\",0,1)","v":"N/A"},{"$f":"_xlfn.XLOOKUP($E26,'Activity 10'!$B$7:$B$13,'Activity 10'!Q$7:Q$13,\"N/A\",0,1)","v":"N/A"},{"$f":"_xlfn.XLOOKUP($E26,'Activity 10'!$B$7:$B$13,'Activity 10'!R$7:R$13,\"N/A\",0,1)","v":"N/A"},{"$f":"_xlfn.XLOOKUP($E26,'Activity 10'!$B$7:$B$13,'Activity 10'!S$7:S$13,\"N/A\",0,1)","v":"N/A"},{"$f":"_xlfn.XLOOKUP($E26,'Activity 10'!$B$7:$B$13,'Activity 10'!T$7:T$13,\"N/A\",0,1)","v":"N/A"},{"$f":"_xlfn.XLOOKUP($E26,'Activity 10'!$B$7:$B$13,'Activity 10'!U$7:U$13,\"N/A\",0,1)","v":"N/A"},{"$f":"_xlfn.XLOOKUP($E26,'Activity 10'!$B$7:$B$13,'Activity 10'!V$7:V$13,\"N/A\",0,1)","v":"N/A"},{"$f":"_xlfn.XLOOKUP($E26,'Activity 10'!$B$17:$B$23,'Activity 10'!E$17:E$23,\"N/A\",0,1)","v":"N/A"},{"$f":"_xlfn.XLOOKUP($E26,'Activity 10'!$B$17:$B$23,'Activity 10'!F$17:F$23,\"N/A\",0,1)","v":"N/A"},{"$f":"_xlfn.XLOOKUP($E26,'Activity 10'!$B$17:$B$23,'Activity 10'!G$17:G$23,\"N/A\",0,1)","v":"N/A"},{"$f":"_xlfn.XLOOKUP($E26,'Activity 10'!$B$17:$B$23,'Activity 10'!H$17:H$23,\"N/A\",0,1)","v":"N/A"},{"$f":"_xlfn.XLOOKUP($E26,'Activity 10'!$B$17:$B$23,'Activity 10'!I$17:I$23,\"N/A\",0,1)","v":"N/A"},{"$f":"_xlfn.XLOOKUP($E26,'Activity 10'!$B$17:$B$23,'Activity 10'!J$17:J$23,\"N/A\",0,1)","v":"N/A"},{"$f":"_xlfn.XLOOKUP($E26,'Activity 10'!$B$17:$B$23,'Activity 10'!K$17:K$23,\"N/A\",0,1)","v":"N/A"},{"$f":"_xlfn.XLOOKUP($E26,'Activity 10'!$B$17:$B$23,'Activity 10'!L$17:L$23,\"N/A\",0,1)","v":"N/A"},{"$f":"_xlfn.XLOOKUP($E26,'Activity 10'!$B$17:$B$23,'Activity 10'!M$17:M$23,\"N/A\",0,1)","v":"N/A"},{"$f":"_xlfn.XLOOKUP($E26,'Activity 10'!$B$17:$B$23,'Activity 10'!N$17:N$23,\"N/A\",0,1)","v":"N/A"},{"$f":"_xlfn.XLOOKUP($E26,'Activity 10'!$B$17:$B$23,'Activity 10'!P$17:P$23,\"N/A\",0,1)","v":"N/A"},{"$f":"_xlfn.XLOOKUP($E26,'Competitive Activity 1'!B$7:B$13,'Competitive Activity 1'!A$7:A$13,\"No\",0,1)","v":"No"},{"$f":"_xlfn.XLOOKUP($E26,'Competitive Activity 1'!$B$7:$B$13,'Competitive Activity 1'!H$7:H$13,\"N/A\",0,1)","v":"N/A"},{"$f":"_xlfn.XLOOKUP($E26,'Competitive Activity 1'!$B$7:$B$13,'Competitive Activity 1'!I$7:I$13,\"N/A\",0,1)","v":"N/A"},{"$f":"_xlfn.XLOOKUP($E26,'Competitive Activity 1'!$B$7:$B$13,'Competitive Activity 1'!J$7:J$13,\"N/A\",0,1)","v":"N/A"},{"$f":"_xlfn.XLOOKUP($E26,'Competitive Activity 1'!$B$7:$B$13,'Competitive Activity 1'!K$7:K$13,\"N/A\",0,1)","v":"N/A"},{"$f":"_xlfn.XLOOKUP($E26,'Competitive Activity 1'!$B$7:$B$13,'Competitive Activity 1'!L$7:L$13,\"N/A\",0,1)","v":"N/A"},{"$f":"_xlfn.XLOOKUP($E26,'Competitive Activity 1'!$B$7:$B$13,'Competitive Activity 1'!M$7:M$13,\"N/A\",0,1)","v":"N/A"},{"$f":"_xlfn.XLOOKUP($E26,'Competitive Activity 1'!$B$7:$B$13,'Competitive Activity 1'!N$7:N$13,\"N/A\",0,1)","v":"N/A"},{"$f":"_xlfn.XLOOKUP($E26,'Competitive Activity 1'!$B$7:$B$13,'Competitive Activity 1'!O$7:O$13,\"N/A\",0,1)","v":"N/A"},{"$f":"_xlfn.XLOOKUP($E26,'Competitive Activity 1'!$B$7:$B$13,'Competitive Activity 1'!P$7:P$13,\"N/A\",0,1)","v":"N/A"},{"$f":"_xlfn.XLOOKUP($E26,'Competitive Activity 1'!$B$7:$B$13,'Competitive Activity 1'!Q$7:Q$13,\"N/A\",0,1)","v":"N/A"},{"$f":"_xlfn.XLOOKUP($E26,'Competitive Activity 1'!$B$7:$B$13,'Competitive Activity 1'!R$7:R$13,\"N/A\",0,1)","v":"N/A"},{"$f":"_xlfn.XLOOKUP($E26,'Competitive Activity 1'!$B$7:$B$13,'Competitive Activity 1'!S$7:S$13,\"N/A\",0,1)","v":"N/A"},{"$f":"_xlfn.XLOOKUP($E26,'Competitive Activity 1'!$B$7:$B$13,'Competitive Activity 1'!T$7:T$13,\"N/A\",0,1)","v":"N/A"},{"$f":"_xlfn.XLOOKUP($E26,'Competitive Activity 1'!$B$7:$B$13,'Competitive Activity 1'!U$7:U$13,\"N/A\",0,1)","v":"N/A"},{"$f":"_xlfn.XLOOKUP($E26,'Competitive Activity 1'!$B$17:$B$23,'Competitive Activity 1'!C$17:C$23,\"N/A\",0,1)","v":"N/A"},{"$f":"_xlfn.XLOOKUP($E26,'Competitive Activity 1'!$B$17:$B$23,'Competitive Activity 1'!D$17:D$23,\"N/A\",0,1)","v":"N/A"},{"$f":"_xlfn.XLOOKUP($E26,'Competitive Activity 1'!$B$17:$B$23,'Competitive Activity 1'!E$17:E$23,\"N/A\",0,1)","v":"N/A"},{"$f":"_xlfn.XLOOKUP($E26,'Competitive Activity 1'!$B$17:$B$23,'Competitive Activity 1'!F$17:F$23,\"N/A\",0,1)","v":"N/A"},{"$f":"_xlfn.XLOOKUP($E26,'Competitive Activity 1'!$B$17:$B$23,'Competitive Activity 1'!G$17:G$23,\"N/A\",0,1)","v":"N/A"},{"$f":"_xlfn.XLOOKUP($E26,'Competitive Activity 1'!$B$17:$B$23,'Competitive Activity 1'!H$17:H$23,\"N/A\",0,1)","v":"N/A"},{"$f":"_xlfn.XLOOKUP($E26,'Competitive Activity 1'!$B$17:$B$23,'Competitive Activity 1'!I$17:I$23,\"N/A\",0,1)","v":"N/A"},{"$f":"_xlfn.XLOOKUP($E26,'Competitive Activity 1'!$B$17:$B$23,'Competitive Activity 1'!J$17:J$23,\"N/A\",0,1)","v":"N/A"},{"$f":"_xlfn.XLOOKUP($E26,'Competitive Activity 1'!$B$17:$B$23,'Competitive Activity 1'!K$17:K$23,\"N/A\",0,1)","v":"N/A"},{"$f":"_xlfn.XLOOKUP($E26,'Competitive Activity 1'!$B$17:$B$23,'Competitive Activity 1'!M$17:M$23,\"N/A\",0,1)","v":"N/A"},{"$f":"_xlfn.XLOOKUP($E26,'Competitive Activity 1'!$B$17:$B$23,'Competitive Activity 1'!N$17:N$23,\"N/A\",0,1)","v":"N/A"},{"$f":"_xlfn.XLOOKUP($E26,'Competitive Activity 1'!$B$17:$B$23,'Competitive Activity 1'!P$17:P$23,\"N/A\",0,1)","v":"N/A"},{"$f":"_xlfn.XLOOKUP($E26,'Competitive Activity 2'!$B$7:$B$13,'Competitive Activity 2'!A$7:A$13,\"No\",0)","v":"No"},{"$f":"_xlfn.XLOOKUP($E26,'Competitive Activity 2'!$B$7:$B$13,'Competitive Activity 2'!L$7:L$13,\"N/A\",0)","v":"N/A"},{"$f":"_xlfn.XLOOKUP($E26,'Competitive Activity 2'!$B$7:$B$13,'Competitive Activity 2'!M$7:M$13,\"N/A\",0)","v":"N/A"},{"$f":"_xlfn.XLOOKUP($E26,'Competitive Activity 2'!$B$7:$B$13,'Competitive Activity 2'!N$7:N$13,\"N/A\",0)","v":"N/A"},{"$f":"_xlfn.XLOOKUP($E26,'Competitive Activity 2'!$B$7:$B$13,'Competitive Activity 2'!O$7:O$13,\"N/A\",0)","v":"N/A"},{"$f":"_xlfn.XLOOKUP($E26,'Competitive Activity 2'!$B$7:$B$13,'Competitive Activity 2'!P$7:P$13,\"N/A\",0)","v":"N/A"},{"$f":"_xlfn.XLOOKUP($E26,'Competitive Activity 2'!$B$7:$B$13,'Competitive Activity 2'!Q$7:Q$13,\"N/A\",0)","v":"N/A"},{"$f":"_xlfn.XLOOKUP($E26,'Competitive Activity 2'!$B$7:$B$13,'Competitive Activity 2'!R$7:R$13,\"N/A\",0)","v":"N/A"},{"$f":"_xlfn.XLOOKUP($E26,'Competitive Activity 2'!$B$7:$B$13,'Competitive Activity 2'!S$7:S$13,\"N/A\",0)","v":"N/A"},{"$f":"_xlfn.XLOOKUP($E26,'Competitive Activity 2'!$B$7:$B$13,'Competitive Activity 2'!T$7:T$13,\"N/A\",0)","v":"N/A"},{"$f":"_xlfn.XLOOKUP($E26,'Competitive Activity 2'!$B$7:$B$13,'Competitive Activity 2'!U$7:U$13,\"N/A\",0)","v":"N/A"},{"$f":"_xlfn.XLOOKUP($E26,'Competitive Activity 2'!$B$17:$B$23,'Competitive Activity 2'!D$17:D$23,\"N/A\",0)","v":"N/A"},{"$f":"_xlfn.XLOOKUP($E26,'Competitive Activity 2'!$B$17:$B$23,'Competitive Activity 2'!E$17:E$23,\"N/A\",0)","v":"N/A"},{"$f":"_xlfn.XLOOKUP($E26,'Competitive Activity 2'!$B$17:$B$23,'Competitive Activity 2'!F$17:F$23,\"N/A\",0)","v":"N/A"},{"$f":"_xlfn.XLOOKUP($E26,'Competitive Activity 2'!$B$17:$B$23,'Competitive Activity 2'!G$17:G$23,\"N/A\",0)","v":"N/A"},{"$f":"_xlfn.XLOOKUP($E26,'Competitive Activity 2'!$B$17:$B$23,'Competitive Activity 2'!H$17:H$23,\"N/A\",0)","v":"N/A"},{"$f":"_xlfn.XLOOKUP($E26,'Competitive Activity 2'!$B$17:$B$23,'Competitive Activity 2'!I$17:I$23,\"N/A\",0)","v":"N/A"},{"$f":"_xlfn.XLOOKUP($E26,'Competitive Activity 2'!$B$17:$B$23,'Competitive Activity 2'!J$17:J$23,\"N/A\",0)","v":"N/A"},{"$f":"_xlfn.XLOOKUP($E26,'Competitive Activity 2'!$B$17:$B$23,'Competitive Activity 2'!K$17:K$23,\"N/A\",0)","v":"N/A"},{"$f":"_xlfn.XLOOKUP($E26,'Competitive Activity 2'!$B$17:$B$23,'Competitive Activity 2'!L$17:L$23,\"N/A\",0)","v":"N/A"},{"$f":"_xlfn.XLOOKUP($E26,'Competitive Activity 2'!$B$17:$B$23,'Competitive Activity 2'!M$17:M$23,\"N/A\",0)","v":"N/A"},{"$f":"_xlfn.XLOOKUP($E26,'Competitive Activity 2'!$B$17:$B$23,'Competitive Activity 2'!N$17:N$23,\"N/A\",0)","v":"N/A"},{"$f":"_xlfn.XLOOKUP($E26,'Competitive Activity 2'!$B$27:$B$33,'Competitive Activity 2'!D$27:D$33,\"N/A\",0)","v":"N/A"},{"$f":"_xlfn.XLOOKUP($E26,'Competitive Activity 2'!$B$27:$B$33,'Competitive Activity 2'!E$27:E$33,\"N/A\",0)","v":"N/A"},{"$f":"_xlfn.XLOOKUP($E26,'Competitive Activity 2'!$B$27:$B$33,'Competitive Activity 2'!F$27:F$33,\"N/A\",0)","v":"N/A"},{"$f":"_xlfn.XLOOKUP($E26,'Competitive Activity 2'!$B$27:$B$33,'Competitive Activity 2'!G$27:G$33,\"N/A\",0)","v":"N/A"},{"$f":"_xlfn.XLOOKUP($E26,'Competitive Activity 2'!$B$27:$B$33,'Competitive Activity 2'!H$27:H$33,\"N/A\",0)","v":"N/A"},{"$f":"_xlfn.XLOOKUP($E26,'Competitive Activity 2'!$B$27:$B$33,'Competitive Activity 2'!I$27:I$33,\"N/A\",0)","v":"N/A"},{"$f":"_xlfn.XLOOKUP($E26,'Competitive Activity 2'!$B$27:$B$33,'Competitive Activity 2'!J$27:J$33,\"N/A\",0)","v":"N/A"},{"$f":"_xlfn.XLOOKUP($E26,'Competitive Activity 2'!$B$27:$B$33,'Competitive Activity 2'!K$27:K$33,\"N/A\",0)","v":"N/A"},{"$f":"_xlfn.XLOOKUP($E26,'Competitive Activity 2'!$B$27:$B$33,'Competitive Activity 2'!M$27:M$33,\"N/A\",0)","v":"N/A"}]
[{"$f":"'1-Cover Sheet'!$C$8","v":"Select One"},{"$f":"'1-Cover Sheet'!$F$8","v":"Select One"},{"$f":"'Summary Sheet'!$D$8","v":0},{"$f":"'Summary Sheet'!$D$10","v":0},{"$f":"'Drop Down Box'!B191","v":0},{"$f":"'Drop Down Box'!C191","v":0},{"$f":"'Drop Down Box'!D191","v":"Select One"},{"$f":"_xlfn.XLOOKUP(E27,'Drop Down Box'!$B$166:$B$249,'Drop Down Box'!$A$166:$A$249,\"Unknown\",0)","v":"Activity 1"},{"$f":"_xlfn.XLOOKUP($E27,'Activity 4'!$B$8:$B$14,'Activity 4'!$J$8:$J$14,\"N/A\",0)","v":"N/A"},{"$f":"_xlfn.XLOOKUP($E27,'Activity 4'!$B$8:$B$14,'Activity 4'!$K$8:$K$14,\"N/A\",0)","v":"N/A"},{"$f":"_xlfn.XLOOKUP(E27,'Activity 4'!B12:B18,'Activity 4'!F12:F18,\"N/A\",0)","v":"N/A"},{"$f":"_xlfn.XLOOKUP($E27,'Activity 4'!B$8:B$14,'Activity 4'!G$8:G$14,\"N/A\",0)","v":"N/A"},{"$f":"_xlfn.XLOOKUP($E27,'Activity 4'!B$8:B$14,'Activity 4'!H$8:H$14,\"N/A\",0)","v":"N/A"},{"$f":"_xlfn.XLOOKUP($E27,'Activity 1'!$B$7:$B$13,'Activity 1'!$A$7:$A$13,\"No\",0,1)","v":"No"},{"$f":"_xlfn.XLOOKUP($E27,'Activity 1'!$B$7:$B$13,'Activity 1'!$H$7:$H$13,\"N/A\",0,1)","v":"N/A"},{"$f":"_xlfn.XLOOKUP($E27,'Activity 1'!$B$7:$B$13,'Activity 1'!I$7:I$13,\"N/A\",0,1)","v":"N/A"},{"$f":"_xlfn.XLOOKUP($E27,'Activity 1'!$B$7:$B$13,'Activity 1'!J$7:J$13,\"N/A\",0,1)","v":"N/A"},{"$f":"_xlfn.XLOOKUP($E27,'Activity 1'!$B$7:$B$13,'Activity 1'!K$7:K$13,\"N/A\",0,1)","v":"N/A"},{"$f":"_xlfn.XLOOKUP($E27,'Activity 1'!$B$7:$B$13,'Activity 1'!L$7:L$13,\"N/A\",0,1)","v":"N/A"},{"$f":"_xlfn.XLOOKUP($E27,'Activity 1'!$B$7:$B$13,'Activity 1'!M$7:M$13,\"N/A\",0,1)","v":"N/A"},{"$f":"_xlfn.XLOOKUP($E27,'Activity 1'!$B$7:$B$13,'Activity 1'!N$7:N$13,\"N/A\",0,1)","v":"N/A"},0,{"$f":"_xlfn.XLOOKUP($E27,'Activity 1'!$B$7:$B$13,'Activity 1'!O$7:O$13,\"N/A\",0,1)","v":"N/A"},{"$f":"_xlfn.XLOOKUP($E27,'Activity 1'!$B$7:$B$13,'Activity 1'!P$7:P$13,\"N/A\",0,1)","v":"N/A"},{"$f":"_xlfn.XLOOKUP($E27,'Activity 1'!$B$7:$B$13,'Activity 1'!Q$7:Q$13,\"N/A\",0,1)","v":"N/A"},{"$f":"_xlfn.XLOOKUP($E27,'Activity 1'!$B$7:$B$13,'Activity 1'!R$7:R$13,\"N/A\",0,1)","v":"N/A"},{"$f":"_xlfn.XLOOKUP($E27,'Activity 1'!$B$7:$B$13,'Activity 1'!S$7:S$13,\"N/A\",0,1)","v":"N/A"},{"$f":"_xlfn.XLOOKUP($E27,'Activity 1'!$B$7:$B$13,'Activity 1'!T$7:T$13,\"N/A\",0,1)","v":"N/A"},{"$f":"_xlfn.XLOOKUP($E27,'Activity 1'!$B$7:$B$13,'Activity 1'!U$7:U$13,\"N/A\",0,1)","v":"N/A"},{"$f":"_xlfn.XLOOKUP($E27,'Activity 1'!$B$7:$B$13,'Activity 1'!V$7:V$13,\"N/A\",0,1)","v":"N/A"},{"$f":"_xlfn.XLOOKUP($E27,'Activity 1'!$B$17:$B$23,'Activity 1'!C$17:C$23,\"N/A\",0,1)","v":"N/A"},{"$f":"_xlfn.XLOOKUP($E27,'Activity 1'!$B$17:$B$23,'Activity 1'!D$17:D$23,\"N/A\",0,1)","v":"N/A"},{"$f":"_xlfn.XLOOKUP($E27,'Activity 1'!$B$17:$B$23,'Activity 1'!E$17:E$23,\"N/A\",0,1)","v":"N/A"},{"$f":"_xlfn.XLOOKUP($E27,'Activity 1'!$B$17:$B$23,'Activity 1'!F$17:F$23,\"N/A\",0,1)","v":"N/A"},{"$f":"_xlfn.XLOOKUP($E27,'Activity 1'!$B$17:$B$23,'Activity 1'!G$17:G$23,\"N/A\",0,1)","v":"N/A"},{"$f":"_xlfn.XLOOKUP($E27,'Activity 1'!$B$17:$B$23,'Activity 1'!H$17:H$23,\"N/A\",0,1)","v":"N/A"},{"$f":"_xlfn.XLOOKUP($E27,'Activity 1'!$B$17:$B$23,'Activity 1'!I$17:I$23,\"N/A\",0,1)","v":"N/A"},{"$f":"_xlfn.XLOOKUP($E27,'Activity 1'!$B$17:$B$23,'Activity 1'!J$17:J$23,\"N/A\",0,1)","v":"N/A"},{"$f":"_xlfn.XLOOKUP($E27,'Activity 1'!$B$17:$B$23,'Activity 1'!K$17:K$23,\"N/A\",0,1)","v":"N/A"},{"$f":"_xlfn.XLOOKUP($E27,'Activity 1'!$B$17:$B$23,'Activity 1'!L$17:L$23,\"N/A\",0,1)","v":"N/A"},{"$f":"_xlfn.XLOOKUP($E27,'Activity 1'!$B$17:$B$23,'Activity 1'!M$17:M$23,\"N/A\",0,1)","v":"N/A"},{"$f":"_xlfn.XLOOKUP($E27,'Activity 1'!$B$17:$B$23,'Activity 1'!O$17:O$23,\"N/A\",0,1)","v":"N/A"},{"$f":"_xlfn.XLOOKUP($E27,'Activity 1'!$B$17:$B$23,'Activity 1'!Q$17:Q$23,\"N/A\",0,1)","v":"N/A"},{"$f":"_xlfn.XLOOKUP($E27,'Activity 2'!$B$7:$B$13,'Activity 2'!$A$7:$A$13,\"No\",0,1)","v":"No"},{"$f":"_xlfn.XLOOKUP($E27,'Activity 2'!B$7:B$13,'Activity 2'!H$7:H$13,\"N/A\",0)","v":"N/A"},{"$f":"_xlfn.XLOOKUP($E27,'Activity 2'!C$7:C$13,'Activity 2'!I$7:I$13,\"N/A\",0)","v":"N/A"},{"$f":"_xlfn.XLOOKUP($E27,'Activity 2'!D$7:D$13,'Activity 2'!J$7:J$13,\"N/A\",0)","v":"N/A"},{"$f":"_xlfn.XLOOKUP($E27,'Activity 2'!E$7:E$13,'Activity 2'!K$7:K$13,\"N/A\",0)","v":"N/A"},{"$f":"_xlfn.XLOOKUP($E27,'Activity 2'!F$7:F$13,'Activity 2'!L$7:L$13,\"N/A\",0)","v":"N/A"},{"$f":"_xlfn.XLOOKUP($E27,'Activity 2'!G$7:G$13,'Activity 2'!M$7:M$13,\"N/A\",0)","v":"N/A"},{"$f":"_xlfn.XLOOKUP($E27,'Activity 2'!H$7:H$13,'Activity 2'!N$7:N$13,\"N/A\",0)","v":"N/A"},{"$f":"_xlfn.XLOOKUP($E27,'Activity 2'!I$7:I$13,'Activity 2'!O$7:O$13,\"N/A\",0)","v":"N/A"},{"$f":"_xlfn.XLOOKUP($E27,'Activity 2'!J$7:J$13,'Activity 2'!P$7:P$13,\"N/A\",0)","v":"N/A"},{"$f":"_xlfn.XLOOKUP($E27,'Activity 2'!K$7:K$13,'Activity 2'!Q$7:Q$13,\"N/A\",0)","v":"N/A"},{"$f":"_xlfn.XLOOKUP($E27,'Activity 2'!L$7:L$13,'Activity 2'!R$7:R$13,\"N/A\",0)","v":"N/A"},{"$f":"_xlfn.XLOOKUP($E27,'Activity 2'!M$7:M$13,'Activity 2'!S$7:S$13,\"N/A\",0)","v":"N/A"},{"$f":"_xlfn.XLOOKUP($E27,'Activity 2'!N$7:N$13,'Activity 2'!T$7:T$13,\"N/A\",0)","v":"N/A"},{"$f":"_xlfn.XLOOKUP($E27,'Activity 2'!O$7:O$13,'Activity 2'!U$7:U$13,\"N/A\",0)","v":"N/A"},{"$f":"_xlfn.XLOOKUP($E27,'Activity 2'!P$7:P$13,'Activity 2'!V$7:V$13,\"N/A\",0)","v":"N/A"},{"$f":"_xlfn.XLOOKUP($E27,'Activity 2'!$B$17:$B$23,'Activity 2'!C$17:C$23,\"N/A\",0,1)","v":"N/A"},{"$f":"_xlfn.XLOOKUP($E27,'Activity 2'!$B$17:$B$23,'Activity 2'!D$17:D$23,\"N/A\",0,1)","v":"N/A"},{"$f":"_xlfn.XLOOKUP($E27,'Activity 2'!$B$17:$B$23,'Activity 2'!E$17:E$23,\"N/A\",0,1)","v":"N/A"},{"$f":"_xlfn.XLOOKUP($E27,'Activity 2'!$B$17:$B$23,'Activity 2'!F$17:F$23,\"N/A\",0,1)","v":"N/A"},{"$f":"_xlfn.XLOOKUP($E27,'Activity 2'!$B$17:$B$23,'Activity 2'!G$17:G$23,\"N/A\",0,1)","v":"N/A"},{"$f":"_xlfn.XLOOKUP($E27,'Activity 2'!$B$17:$B$23,'Activity 2'!H$17:H$23,\"N/A\",0,1)","v":"N/A"},{"$f":"_xlfn.XLOOKUP($E27,'Activity 2'!$B$17:$B$23,'Activity 2'!I$17:I$23,\"N/A\",0,1)","v":"N/A"},{"$f":"_xlfn.XLOOKUP($E27,'Activity 2'!$B$17:$B$23,'Activity 2'!J$17:J$23,\"N/A\",0,1)","v":"N/A"},{"$f":"_xlfn.XLOOKUP($E27,'Activity 2'!$B$17:$B$23,'Activity 2'!K$17:K$23,\"N/A\",0,1)","v":"N/A"},{"$f":"_xlfn.XLOOKUP($E27,'Activity 2'!$B$17:$B$23,'Activity 2'!L$17:L$23,\"N/A\",0,1)","v":"N/A"},{"$f":"_xlfn.XLOOKUP($E27,'Activity 2'!$B$17:$B$23,'Activity 2'!M$17:M$23,\"N/A\",0,1)","v":"N/A"},{"$f":"_xlfn.XLOOKUP($E27,'Activity 2'!$B$17:$B$23,'Activity 2'!O$17:O$23,\"N/A\",0,1)","v":"N/A"},{"$f":"_xlfn.XLOOKUP($E27,'Activity 2'!$B$17:$B$23,'Activity 2'!Q$17:Q$23,\"N/A\",0,1)","v":"N/A"},null,{"$f":"_xlfn.XLOOKUP($E27,'Activity 3'!$B$8:$B$14,'Activity 3'!K$8:K$14,\"N/A\",0,1)","v":"N/A"},{"$f":"_xlfn.XLOOKUP($E27,'Activity 3'!$B$8:$B$14,'Activity 3'!L$8:L$14,\"N/A\",0,1)","v":"N/A"},{"$f":"_xlfn.XLOOKUP($E27,'Activity 3'!$B$8:$B$14,'Activity 3'!M$8:M$14,\"N/A\",0,1)","v":"N/A"},{"$f":"_xlfn.XLOOKUP($E27,'Activity 3'!$B$8:$B$14,'Activity 3'!N$8:N$14,\"N/A\",0,1)","v":"N/A"},{"$f":"_xlfn.XLOOKUP($E27,'Activity 3'!$B$8:$B$14,'Activity 3'!O$8:O$14,\"N/A\",0,1)","v":"N/A"},{"$f":"_xlfn.XLOOKUP($E27,'Activity 3'!$B$8:$B$14,'Activity 3'!R$8:R$14,\"N/A\",0,1)","v":"N/A"},{"$f":"_xlfn.XLOOKUP($E27,'Activity 4'!$B$8:$B$14,'Activity 4'!$A$8:$A$14,\"No\",0,1)","v":"No"},{"$f":"_xlfn.XLOOKUP($E27,'Activity 4'!$B$8:$B$14,'Activity 4'!L$8:L$14,\"N/A\",0,1)","v":"N/A"},{"$f":"_xlfn.XLOOKUP($E27,'Activity 4'!$B$8:$B$14,'Activity 4'!I$8:I$14,\"N/A\",0,1)","v":"N/A"},{"$f":"_xlfn.XLOOKUP($E27,'Activity 4'!$B$8:$B$14,'Activity 4'!M$8:M$14,\"N/A\",0,1)","v":"N/A"},{"$f":"_xlfn.XLOOKUP($E27,'Activity 5'!$B$8:$B$14,'Activity 5'!$A$8:$A$14,\"No\",0,1)","v":"No"},{"$f":"_xlfn.XLOOKUP($E27,'Activity 5'!$B$8:$B$14,'Activity 5'!J$8:J$14,\"N/A\",0,1)","v":"N/A"},{"$f":"_xlfn.XLOOKUP($E27,'Activity 5'!$B$8:$B$14,'Activity 5'!K$8:K$14,\"N/A\",0,1)","v":"N/A"},{"$f":"_xlfn.XLOOKUP($E27,'Activity 5'!$B$8:$B$14,'Activity 5'!N$8:N$14,\"N/A\",0,1)","v":"N/A"},{"$f":"_xlfn.XLOOKUP($E27,'Activity 5'!$B$8:$B$14,'Activity 5'!O$8:O$14,\"N/A\",0,1)","v":"N/A"},{"$f":"_xlfn.XLOOKUP($E27,'Activity 5'!$B$8:$B$14,'Activity 5'!P$8:P$14,\"N/A\",0,1)","v":"N/A"},{"$f":"_xlfn.XLOOKUP($E27,'Activity 5'!$B$8:$B$14,'Activity 5'!Q$8:Q$14,\"N/A\",0,1)","v":"N/A"},{"$f":"_xlfn.XLOOKUP($E27,'Activity 5'!$B$8:$B$14,'Activity 5'!R$8:R$14,\"N/A\",0,1)","v":"N/A"},{"$f":"_xlfn.XLOOKUP($E27,'Activity 6'!$B$7:$B$13,'Activity 6'!A$7:A$13,\"No\",0,1)","v":"No"},{"$f":"_xlfn.XLOOKUP($E27,'Activity 6'!$B$7:$B$13,'Activity 6'!K$7:K$13,\"N/A\",0,1)","v":"N/A"},{"$f":"_xlfn.XLOOKUP($E27,'Activity 6'!$B$7:$B$13,'Activity 6'!L$7:L$13,\"N/A\",0,1)","v":"N/A"},{"$f":"_xlfn.XLOOKUP($E27,'Activity 6'!$B$7:$B$13,'Activity 6'!M$7:M$13,\"N/A\",0,1)","v":"N/A"},{"$f":"_xlfn.XLOOKUP($E27,'Activity 6'!$B$7:$B$13,'Activity 6'!N$7:N$13,\"N/A\",0,1)","v":"N/A"},{"$f":"_xlfn.XLOOKUP($E27,'Activity 6'!$B$7:$B$13,'Activity 6'!O$7:O$13,\"N/A\",0,1)","v":"N/A"},{"$f":"_xlfn.XLOOKUP($E27,'Activity 6'!$B$7:$B$13,'Activity 6'!P$7:P$13,\"N/A\",0,1)","v":"N/A"},{"$f":"_xlfn.XLOOKUP($E27,'Activity 6'!$B$7:$B$13,'Activity 6'!Q$7:Q$13,\"N/A\",0,1)","v":"N/A"},{"$f":"_xlfn.XLOOKUP($E27,'Activity 6'!$B$7:$B$13,'Activity 6'!R$7:R$13,\"N/A\",0,1)","v":"N/A"},{"$f":"_xlfn.XLOOKUP($E27,'Activity 6'!$B$7:$B$13,'Activity 6'!S$7:S$13,\"N/A\",0,1)","v":"N/A"},{"$f":"_xlfn.XLOOKUP($E27,'Activity 6'!$B$7:$B$13,'Activity 6'!T$7:T$13,\"N/A\",0,1)","v":"N/A"},{"$f":"_xlfn.XLOOKUP($E27,'Activity 6'!$B$7:$B$13,'Activity 6'!U$7:U$13,\"N/A\",0,1)","v":"N/A"},{"$f":"_xlfn.XLOOKUP($E27,'Activity 6'!$B$22:$B$28,'Activity 6'!C$22:C$28,\"N/A\",0,1)","v":"N/A"},{"$f":"_xlfn.XLOOKUP($E27,'Activity 6'!$B$22:$B$28,'Activity 6'!D$22:D$28,\"N/A\",0,1)","v":"N/A"},{"$f":"_xlfn.XLOOKUP($E27,'Activity 6'!$B$22:$B$28,'Activity 6'!E$22:E$28,\"N/A\",0,1)","v":"N/A"},{"$f":"_xlfn.XLOOKUP($E27,'Activity 6'!$B$22:$B$28,'Activity 6'!F$22:F$28,\"N/A\",0,1)","v":"N/A"},{"$f":"_xlfn.XLOOKUP($E27,'Activity 6'!$B$22:$B$28,'Activity 6'!G$22:G$28,\"N/A\",0,1)","v":"N/A"},{"$f":"_xlfn.XLOOKUP($E27,'Activity 6'!$B$22:$B$28,'Activity 6'!H$22:H$28,\"N/A\",0,1)","v":"N/A"},{"$f":"_xlfn.XLOOKUP($E27,'Activity 6'!$B$22:$B$28,'Activity 6'!I$22:I$28,\"N/A\",0,1)","v":"N/A"},{"$f":"_xlfn.XLOOKUP($E27,'Activity 6'!$B$22:$B$28,'Activity 6'!J$22:J$28,\"N/A\",0,1)","v":"N/A"},{"$f":"_xlfn.XLOOKUP($E27,'Activity 6'!$B$22:$B$28,'Activity 6'!K$22:K$28,\"N/A\",0,1)","v":"N/A"},{"$f":"_xlfn.XLOOKUP($E27,'Activity 6'!$B$22:$B$28,'Activity 6'!L$22:L$28,\"N/A\",0,1)","v":"N/A"},{"$f":"_xlfn.XLOOKUP($E27,'Activity 6'!$B$22:$B$28,'Activity 6'!M$22:M$28,\"N/A\",0,1)","v":"N/A"},{"$f":"_xlfn.XLOOKUP($E27,'Activity 6'!$B$22:$B$28,'Activity 6'!N$22:N$28,\"N/A\",0,1)","v":"N/A"},{"$f":"_xlfn.XLOOKUP($E27,'Activity 6'!$B$32:$B$38,'Activity 6'!C$32:C$38,\"N/A\",0,1)","v":"N/A"},{"$f":"_xlfn.XLOOKUP($E27,'Activity 6'!$B$32:$B$38,'Activity 6'!D$32:D$38,\"N/A\",0,1)","v":"N/A"},{"$f":"_xlfn.XLOOKUP($E27,'Activity 6'!$B$32:$B$38,'Activity 6'!E$32:E$38,\"N/A\",0,1)","v":"N/A"},{"$f":"_xlfn.XLOOKUP($E27,'Activity 6'!$B$32:$B$38,'Activity 6'!F$32:F$38,\"N/A\",0,1)","v":"N/A"},{"$f":"_xlfn.XLOOKUP($E27,'Activity 6'!$B$32:$B$38,'Activity 6'!G$32:G$38,\"N/A\",0,1)","v":"N/A"},{"$f":"_xlfn.XLOOKUP($E27,'Activity 6'!$B$32:$B$38,'Activity 6'!H$32:H$38,\"N/A\",0,1)","v":"N/A"},{"$f":"_xlfn.XLOOKUP($E27,'Activity 6'!$B$32:$B$38,'Activity 6'!I$32:I$38,\"N/A\",0,1)","v":"N/A"},{"$f":"_xlfn.XLOOKUP($E27,'Activity 6'!$B$32:$B$38,'Activity 6'!J$32:J$38,\"N/A\",0,1)","v":"N/A"},{"$f":"_xlfn.XLOOKUP($E27,'Activity 6'!$B$32:$B$38,'Activity 6'!K$32:K$38,\"N/A\",0,1)","v":"N/A"},{"$f":"_xlfn.XLOOKUP($E27,'Activity 6'!$B$32:$B$38,'Activity 6'!M$32:M$38,\"N/A\",0,1)","v":"N/A"},{"$f":"_xlfn.XLOOKUP($E27,'Activity 7'!$B$7:$B$13,'Activity 7'!$A$7:$A$13,\"No\",0,1)","v":"No"},{"$f":"_xlfn.XLOOKUP($E27,'Activity 7'!$B$7:$B$13,'Activity 7'!M$7:M$13,\"N/A\",0,1)","v":"N/A"},{"$f":"_xlfn.XLOOKUP($E27,'Activity 7'!$B$7:$B$13,'Activity 7'!K$7:K$13,\"N/A\",0,1)","v":"N/A"},{"$f":"_xlfn.XLOOKUP($E27,'Activity 7'!$B$7:$B$13,'Activity 7'!N$7:N$13,\"N/A\",0,1)","v":"N/A"},{"$f":"_xlfn.XLOOKUP($E27,'Activity 7'!$B$7:$B$13,'Activity 7'!O$7:O$13,\"N/A\",0,1)","v":"N/A"},{"$f":"_xlfn.XLOOKUP($E27,'Activity 7'!$B$7:$B$13,'Activity 7'!P$7:P$13,\"N/A\",0,1)","v":"N/A"},{"$f":"_xlfn.XLOOKUP($E27,'Activity 7'!$B$7:$B$13,'Activity 7'!Q$7:Q$13,\"N/A\",0,1)","v":"N/A"},{"$f":"_xlfn.XLOOKUP($E27,'Activity 7'!$B$7:$B$13,'Activity 7'!R$7:R$13,\"N/A\",0,1)","v":"N/A"},{"$f":"_xlfn.XLOOKUP($E27,'Activity 7'!$B$7:$B$13,'Activity 7'!S$7:S$13,\"N/A\",0,1)","v":"N/A"},{"$f":"_xlfn.XLOOKUP($E27,'Activity 7'!$B$7:$B$13,'Activity 7'!T$7:T$13,\"N/A\",0,1)","v":"N/A"},{"$f":"_xlfn.XLOOKUP($E27,'Activity 7'!$B$7:$B$13,'Activity 7'!U$7:U$13,\"N/A\",0,1)","v":"N/A"},{"$f":"_xlfn.XLOOKUP($E27,'Activity 7'!$B$7:$B$13,'Activity 7'!V$7:V$13,\"N/A\",0,1)","v":"N/A"},{"$f":"_xlfn.XLOOKUP($E27,'Activity 7'!$B$17:$B$23,'Activity 7'!E$17:E$23,\"N/A\",0,1)","v":"N/A"},{"$f":"_xlfn.XLOOKUP($E27,'Activity 7'!$B$17:$B$23,'Activity 7'!G$17:G$23,\"N/A\",0,1)","v":"N/A"},{"$f":"_xlfn.XLOOKUP($E27,'Activity 7'!$B$17:$B$23,'Activity 7'!I$17:I$23,\"N/A\",0,1)","v":"N/A"},{"$f":"_xlfn.XLOOKUP($E27,'Activity 7'!$B$17:$B$23,'Activity 7'!J$17:J$23,\"N/A\",0,1)","v":"N/A"},{"$f":"_xlfn.XLOOKUP($E27,'Activity 7'!$B$17:$B$23,'Activity 7'!K$17:K$23,\"N/A\",0,1)","v":"N/A"},{"$f":"_xlfn.XLOOKUP($E27,'Activity 7'!$B$17:$B$23,'Activity 7'!L$17:L$23,\"N/A\",0,1)","v":"N/A"},{"$f":"_xlfn.XLOOKUP($E27,'Activity 7'!$B$17:$B$23,'Activity 7'!M$17:M$23,\"N/A\",0,1)","v":"N/A"},{"$f":"_xlfn.XLOOKUP($E27,'Activity 7'!$B$17:$B$23,'Activity 7'!N$17:N$23,\"N/A\",0,1)","v":"N/A"},{"$f":"_xlfn.XLOOKUP($E27,'Activity 7'!$B$17:$B$23,'Activity 7'!P$17:P$23,\"N/A\",0,1)","v":"N/A"},{"$f":"_xlfn.XLOOKUP($E27,'Activity 8'!$B$7:$B$13,'Activity 8'!A$7:A$13,\"No\",0,1)","v":"No"},{"$f":"_xlfn.XLOOKUP($E27,'Activity 8'!$B$7:$B$13,'Activity 8'!I$7:I$13,\"N/A\",0,1)","v":"N/A"},{"$f":"_xlfn.XLOOKUP($E27,'Activity 8'!$B$7:$B$13,'Activity 8'!J$7:J$13,\"N/A\",0,1)","v":"N/A"},{"$f":"_xlfn.XLOOKUP($E27,'Activity 8'!$B$7:$B$13,'Activity 8'!K$7:K$13,\"N/A\",0,1)","v":"N/A"},{"$f":"_xlfn.XLOOKUP($E27,'Activity 8'!$B$7:$B$13,'Activity 8'!L$7:L$13,\"N/A\",0,1)","v":"N/A"},{"$f":"_xlfn.XLOOKUP($E27,'Activity 8'!$B$7:$B$13,'Activity 8'!M$7:M$13,\"N/A\",0,1)","v":"N/A"},{"$f":"_xlfn.XLOOKUP($E27,'Activity 8'!$B$7:$B$13,'Activity 8'!N$7:N$13,\"N/A\",0,1)","v":"N/A"},{"$f":"_xlfn.XLOOKUP($E27,'Activity 8'!$B$7:$B$13,'Activity 8'!O$7:O$13,\"N/A\",0,1)","v":"N/A"},{"$f":"_xlfn.XLOOKUP($E27,'Activity 8'!$B$7:$B$13,'Activity 8'!P$7:P$13,\"N/A\",0,1)","v":"N/A"},{"$f":"_xlfn.XLOOKUP($E27,'Activity 8'!$B$7:$B$13,'Activity 8'!Q$7:Q$13,\"N/A\",0,1)","v":"N/A"},{"$f":"_xlfn.XLOOKUP($E27,'Activity 8'!$B$7:$B$13,'Activity 8'!R$7:R$13,\"N/A\",0,1)","v":"N/A"},{"$f":"_xlfn.XLOOKUP($E27,'Activity 8'!$B$7:$B$13,'Activity 8'!S$7:S$13,\"N/A\",0,1)","v":"N/A"},{"$f":"_xlfn.XLOOKUP($E27,'Activity 8'!$B$7:$B$13,'Activity 8'!T$7:T$13,\"N/A\",0,1)","v":"N/A"},{"$f":"_xlfn.XLOOKUP($E27,'Activity 8'!$B$7:$B$13,'Activity 8'!U$7:U$13,\"N/A\",0,1)","v":"N/A"},{"$f":"_xlfn.XLOOKUP($E27,'Activity 8'!$B$7:$B$13,'Activity 8'!V$7:V$13,\"N/A\",0,1)","v":"N/A"},{"$f":"_xlfn.XLOOKUP($E27,'Activity 8'!$B$17:$B$23,'Activity 8'!D$17:D$23,\"N/A\",0,1)","v":"N/A"},{"$f":"_xlfn.XLOOKUP($E27,'Activity 8'!$B$17:$B$23,'Activity 8'!E$17:E$23,\"N/A\",0,1)","v":"N/A"},{"$f":"_xlfn.XLOOKUP($E27,'Activity 8'!$B$17:$B$23,'Activity 8'!F$17:F$23,\"N/A\",0,1)","v":"N/A"},{"$f":"_xlfn.XLOOKUP($E27,'Activity 8'!$B$17:$B$23,'Activity 8'!G$17:G$23,\"N/A\",0,1)","v":"N/A"},{"$f":"_xlfn.XLOOKUP($E27,'Activity 8'!$B$17:$B$23,'Activity 8'!H$17:H$23,\"N/A\",0,1)","v":"N/A"},{"$f":"_xlfn.XLOOKUP($E27,'Activity 8'!$B$17:$B$23,'Activity 8'!I$17:I$23,\"N/A\",0,1)","v":"N/A"},{"$f":"_xlfn.XLOOKUP($E27,'Activity 8'!$B$17:$B$23,'Activity 8'!J$17:J$23,\"N/A\",0,1)","v":"N/A"},{"$f":"_xlfn.XLOOKUP($E27,'Activity 8'!$B$17:$B$23,'Activity 8'!K$17:K$23,\"N/A\",0,1)","v":"N/A"},{"$f":"_xlfn.XLOOKUP($E27,'Activity 8'!$B$17:$B$23,'Activity 8'!L$17:L$23,\"N/A\",0,1)","v":"N/A"},{"$f":"_xlfn.XLOOKUP($E27,'Activity 8'!$B$17:$B$23,'Activity 8'!M$17:M$23,\"N/A\",0,1)","v":"N/A"},{"$f":"_xlfn.XLOOKUP($E27,'Activity 8'!$B$17:$B$23,'Activity 8'!N$17:N$23,\"N/A\",0,1)","v":"N/A"},{"$f":"_xlfn.XLOOKUP($E27,'Activity 8'!$B$17:$B$23,'Activity 8'!P$17:P$23,\"N/A\",0,1)","v":"N/A"},{"$f":"_xlfn.XLOOKUP(E27,'Activity 9'!$B$7:$B$13,'Activity 9'!$A$7:$A$13,\"No\",0,1)","v":"No"},{"$f":"_xlfn.XLOOKUP($E27,'Activity 9'!$B$7:$B$13,'Activity 9'!J$7:J$13,\"N/A\",0,1)","v":"N/A"},{"$f":"_xlfn.XLOOKUP($E27,'Activity 9'!$B$7:$B$13,'Activity 9'!K$7:K$13,\"N/A\",0,1)","v":"N/A"},{"$f":"_xlfn.XLOOKUP($E27,'Activity 9'!$B$7:$B$13,'Activity 9'!L$7:L$13,\"N/A\",0,1)","v":"N/A"},{"$f":"_xlfn.XLOOKUP($E27,'Activity 9'!$B$7:$B$13,'Activity 9'!M$7:M$13,\"N/A\",0,1)","v":"N/A"},{"$f":"_xlfn.XLOOKUP($E27,'Activity 9'!$B$7:$B$13,'Activity 9'!N$7:N$13,\"N/A\",0,1)","v":"N/A"},{"$f":"_xlfn.XLOOKUP($E27,'Activity 9'!$B$7:$B$13,'Activity 9'!O$7:O$13,\"N/A\",0,1)","v":"N/A"},{"$f":"_xlfn.XLOOKUP($E27,'Activity 9'!$B$7:$B$13,'Activity 9'!P$7:P$13,\"N/A\",0,1)","v":"N/A"},{"$f":"_xlfn.XLOOKUP($E27,'Activity 9'!$B$7:$B$13,'Activity 9'!Q$7:Q$13,\"N/A\",0,1)","v":"N/A"},{"$f":"_xlfn.XLOOKUP($E27,'Activity 9'!$B$7:$B$13,'Activity 9'!R$7:R$13,\"N/A\",0,1)","v":"N/A"},{"$f":"_xlfn.XLOOKUP($E27,'Activity 9'!$B$7:$B$13,'Activity 9'!S$7:S$13,\"N/A\",0,1)","v":"N/A"},{"$f":"_xlfn.XLOOKUP($E27,'Activity 9'!$B$7:$B$13,'Activity 9'!T$7:T$13,\"N/A\",0,1)","v":"N/A"},{"$f":"_xlfn.XLOOKUP($E27,'Activity 9'!$B$17:$B$23,'Activity 9'!E$17:E$23,\"N/A\",0,1)","v":"N/A"},{"$f":"_xlfn.XLOOKUP($E27,'Activity 9'!$B$17:$B$23,'Activity 9'!F$17:F$23,\"N/A\",0,1)","v":"N/A"},{"$f":"_xlfn.XLOOKUP($E27,'Activity 9'!$B$17:$B$23,'Activity 9'!G$17:G$23,\"N/A\",0,1)","v":"N/A"},{"$f":"_xlfn.XLOOKUP($E27,'Activity 9'!$B$17:$B$23,'Activity 9'!H$17:H$23,\"N/A\",0,1)","v":"N/A"},{"$f":"_xlfn.XLOOKUP($E27,'Activity 9'!$B$17:$B$23,'Activity 9'!I$17:I$23,\"N/A\",0,1)","v":"N/A"},{"$f":"_xlfn.XLOOKUP($E27,'Activity 9'!$B$17:$B$23,'Activity 9'!J$17:J$23,\"N/A\",0,1)","v":"N/A"},{"$f":"_xlfn.XLOOKUP($E27,'Activity 9'!$B$17:$B$23,'Activity 9'!K$17:K$23,\"N/A\",0,1)","v":"N/A"},{"$f":"_xlfn.XLOOKUP($E27,'Activity 9'!$B$17:$B$23,'Activity 9'!L$17:L$23,\"N/A\",0,1)","v":"N/A"},{"$f":"_xlfn.XLOOKUP($E27,'Activity 9'!$B$17:$B$23,'Activity 9'!N$17:N$23,\"N/A\",0,1)","v":"N/A"},{"$f":"_xlfn.XLOOKUP($E27,'Activity 9'!$B$17:$B$23,'Activity 9'!O$17:O$23,\"N/A\",0,1)","v":"N/A"},{"$f":"_xlfn.XLOOKUP($E27,'Activity 9'!$B$17:$B$23,'Activity 9'!Q$17:Q$23,\"N/A\",0,1)","v":"N/A"},{"$f":"_xlfn.XLOOKUP($E27,'Activity 10'!$B$7:$B$13,'Activity 10'!A$7:A$13,\"No\",0,1)","v":"No"},{"$f":"_xlfn.XLOOKUP($E27,'Activity 10'!$B$7:$B$13,'Activity 10'!J$7:J$13,\"N/A\",0,1)","v":"N/A"},{"$f":"_xlfn.XLOOKUP($E27,'Activity 10'!$B$7:$B$13,'Activity 10'!K$7:K$13,\"N/A\",0,1)","v":"N/A"},{"$f":"_xlfn.XLOOKUP($E27,'Activity 10'!$B$7:$B$13,'Activity 10'!L$7:L$13,\"N/A\",0,1)","v":"N/A"},{"$f":"_xlfn.XLOOKUP($E27,'Activity 10'!$B$7:$B$13,'Activity 10'!M$7:M$13,\"N/A\",0,1)","v":"N/A"},{"$f":"_xlfn.XLOOKUP($E27,'Activity 10'!$B$7:$B$13,'Activity 10'!N$7:N$13,\"N/A\",0,1)","v":"N/A"},{"$f":"_xlfn.XLOOKUP($E27,'Activity 10'!$B$7:$B$13,'Activity 10'!O$7:O$13,\"N/A\",0,1)","v":"N/A"},{"$f":"_xlfn.XLOOKUP($E27,'Activity 10'!$B$7:$B$13,'Activity 10'!P$7:P$13,\"N/A\",0,1)","v":"N/A"},{"$f":"_xlfn.XLOOKUP($E27,'Activity 10'!$B$7:$B$13,'Activity 10'!Q$7:Q$13,\"N/A\",0,1)","v":"N/A"},{"$f":"_xlfn.XLOOKUP($E27,'Activity 10'!$B$7:$B$13,'Activity 10'!R$7:R$13,\"N/A\",0,1)","v":"N/A"},{"$f":"_xlfn.XLOOKUP($E27,'Activity 10'!$B$7:$B$13,'Activity 10'!S$7:S$13,\"N/A\",0,1)","v":"N/A"},{"$f":"_xlfn.XLOOKUP($E27,'Activity 10'!$B$7:$B$13,'Activity 10'!T$7:T$13,\"N/A\",0,1)","v":"N/A"},{"$f":"_xlfn.XLOOKUP($E27,'Activity 10'!$B$7:$B$13,'Activity 10'!U$7:U$13,\"N/A\",0,1)","v":"N/A"},{"$f":"_xlfn.XLOOKUP($E27,'Activity 10'!$B$7:$B$13,'Activity 10'!V$7:V$13,\"N/A\",0,1)","v":"N/A"},{"$f":"_xlfn.XLOOKUP($E27,'Activity 10'!$B$17:$B$23,'Activity 10'!E$17:E$23,\"N/A\",0,1)","v":"N/A"},{"$f":"_xlfn.XLOOKUP($E27,'Activity 10'!$B$17:$B$23,'Activity 10'!F$17:F$23,\"N/A\",0,1)","v":"N/A"},{"$f":"_xlfn.XLOOKUP($E27,'Activity 10'!$B$17:$B$23,'Activity 10'!G$17:G$23,\"N/A\",0,1)","v":"N/A"},{"$f":"_xlfn.XLOOKUP($E27,'Activity 10'!$B$17:$B$23,'Activity 10'!H$17:H$23,\"N/A\",0,1)","v":"N/A"},{"$f":"_xlfn.XLOOKUP($E27,'Activity 10'!$B$17:$B$23,'Activity 10'!I$17:I$23,\"N/A\",0,1)","v":"N/A"},{"$f":"_xlfn.XLOOKUP($E27,'Activity 10'!$B$17:$B$23,'Activity 10'!J$17:J$23,\"N/A\",0,1)","v":"N/A"},{"$f":"_xlfn.XLOOKUP($E27,'Activity 10'!$B$17:$B$23,'Activity 10'!K$17:K$23,\"N/A\",0,1)","v":"N/A"},{"$f":"_xlfn.XLOOKUP($E27,'Activity 10'!$B$17:$B$23,'Activity 10'!L$17:L$23,\"N/A\",0,1)","v":"N/A"},{"$f":"_xlfn.XLOOKUP($E27,'Activity 10'!$B$17:$B$23,'Activity 10'!M$17:M$23,\"N/A\",0,1)","v":"N/A"},{"$f":"_xlfn.XLOOKUP($E27,'Activity 10'!$B$17:$B$23,'Activity 10'!N$17:N$23,\"N/A\",0,1)","v":"N/A"},{"$f":"_xlfn.XLOOKUP($E27,'Activity 10'!$B$17:$B$23,'Activity 10'!P$17:P$23,\"N/A\",0,1)","v":"N/A"},{"$f":"_xlfn.XLOOKUP($E27,'Competitive Activity 1'!B$7:B$13,'Competitive Activity 1'!A$7:A$13,\"No\",0,1)","v":"No"},{"$f":"_xlfn.XLOOKUP($E27,'Competitive Activity 1'!$B$7:$B$13,'Competitive Activity 1'!H$7:H$13,\"N/A\",0,1)","v":"N/A"},{"$f":"_xlfn.XLOOKUP($E27,'Competitive Activity 1'!$B$7:$B$13,'Competitive Activity 1'!I$7:I$13,\"N/A\",0,1)","v":"N/A"},{"$f":"_xlfn.XLOOKUP($E27,'Competitive Activity 1'!$B$7:$B$13,'Competitive Activity 1'!J$7:J$13,\"N/A\",0,1)","v":"N/A"},{"$f":"_xlfn.XLOOKUP($E27,'Competitive Activity 1'!$B$7:$B$13,'Competitive Activity 1'!K$7:K$13,\"N/A\",0,1)","v":"N/A"},{"$f":"_xlfn.XLOOKUP($E27,'Competitive Activity 1'!$B$7:$B$13,'Competitive Activity 1'!L$7:L$13,\"N/A\",0,1)","v":"N/A"},{"$f":"_xlfn.XLOOKUP($E27,'Competitive Activity 1'!$B$7:$B$13,'Competitive Activity 1'!M$7:M$13,\"N/A\",0,1)","v":"N/A"},{"$f":"_xlfn.XLOOKUP($E27,'Competitive Activity 1'!$B$7:$B$13,'Competitive Activity 1'!N$7:N$13,\"N/A\",0,1)","v":"N/A"},{"$f":"_xlfn.XLOOKUP($E27,'Competitive Activity 1'!$B$7:$B$13,'Competitive Activity 1'!O$7:O$13,\"N/A\",0,1)","v":"N/A"},{"$f":"_xlfn.XLOOKUP($E27,'Competitive Activity 1'!$B$7:$B$13,'Competitive Activity 1'!P$7:P$13,\"N/A\",0,1)","v":"N/A"},{"$f":"_xlfn.XLOOKUP($E27,'Competitive Activity 1'!$B$7:$B$13,'Competitive Activity 1'!Q$7:Q$13,\"N/A\",0,1)","v":"N/A"},{"$f":"_xlfn.XLOOKUP($E27,'Competitive Activity 1'!$B$7:$B$13,'Competitive Activity 1'!R$7:R$13,\"N/A\",0,1)","v":"N/A"},{"$f":"_xlfn.XLOOKUP($E27,'Competitive Activity 1'!$B$7:$B$13,'Competitive Activity 1'!S$7:S$13,\"N/A\",0,1)","v":"N/A"},{"$f":"_xlfn.XLOOKUP($E27,'Competitive Activity 1'!$B$7:$B$13,'Competitive Activity 1'!T$7:T$13,\"N/A\",0,1)","v":"N/A"},{"$f":"_xlfn.XLOOKUP($E27,'Competitive Activity 1'!$B$7:$B$13,'Competitive Activity 1'!U$7:U$13,\"N/A\",0,1)","v":"N/A"},{"$f":"_xlfn.XLOOKUP($E27,'Competitive Activity 1'!$B$17:$B$23,'Competitive Activity 1'!C$17:C$23,\"N/A\",0,1)","v":"N/A"},{"$f":"_xlfn.XLOOKUP($E27,'Competitive Activity 1'!$B$17:$B$23,'Competitive Activity 1'!D$17:D$23,\"N/A\",0,1)","v":"N/A"},{"$f":"_xlfn.XLOOKUP($E27,'Competitive Activity 1'!$B$17:$B$23,'Competitive Activity 1'!E$17:E$23,\"N/A\",0,1)","v":"N/A"},{"$f":"_xlfn.XLOOKUP($E27,'Competitive Activity 1'!$B$17:$B$23,'Competitive Activity 1'!F$17:F$23,\"N/A\",0,1)","v":"N/A"},{"$f":"_xlfn.XLOOKUP($E27,'Competitive Activity 1'!$B$17:$B$23,'Competitive Activity 1'!G$17:G$23,\"N/A\",0,1)","v":"N/A"},{"$f":"_xlfn.XLOOKUP($E27,'Competitive Activity 1'!$B$17:$B$23,'Competitive Activity 1'!H$17:H$23,\"N/A\",0,1)","v":"N/A"},{"$f":"_xlfn.XLOOKUP($E27,'Competitive Activity 1'!$B$17:$B$23,'Competitive Activity 1'!I$17:I$23,\"N/A\",0,1)","v":"N/A"},{"$f":"_xlfn.XLOOKUP($E27,'Competitive Activity 1'!$B$17:$B$23,'Competitive Activity 1'!J$17:J$23,\"N/A\",0,1)","v":"N/A"},{"$f":"_xlfn.XLOOKUP($E27,'Competitive Activity 1'!$B$17:$B$23,'Competitive Activity 1'!K$17:K$23,\"N/A\",0,1)","v":"N/A"},{"$f":"_xlfn.XLOOKUP($E27,'Competitive Activity 1'!$B$17:$B$23,'Competitive Activity 1'!M$17:M$23,\"N/A\",0,1)","v":"N/A"},{"$f":"_xlfn.XLOOKUP($E27,'Competitive Activity 1'!$B$17:$B$23,'Competitive Activity 1'!N$17:N$23,\"N/A\",0,1)","v":"N/A"},{"$f":"_xlfn.XLOOKUP($E27,'Competitive Activity 1'!$B$17:$B$23,'Competitive Activity 1'!P$17:P$23,\"N/A\",0,1)","v":"N/A"},{"$f":"_xlfn.XLOOKUP($E27,'Competitive Activity 2'!$B$7:$B$13,'Competitive Activity 2'!A$7:A$13,\"No\",0)","v":"No"},{"$f":"_xlfn.XLOOKUP($E27,'Competitive Activity 2'!$B$7:$B$13,'Competitive Activity 2'!L$7:L$13,\"N/A\",0)","v":"N/A"},{"$f":"_xlfn.XLOOKUP($E27,'Competitive Activity 2'!$B$7:$B$13,'Competitive Activity 2'!M$7:M$13,\"N/A\",0)","v":"N/A"},{"$f":"_xlfn.XLOOKUP($E27,'Competitive Activity 2'!$B$7:$B$13,'Competitive Activity 2'!N$7:N$13,\"N/A\",0)","v":"N/A"},{"$f":"_xlfn.XLOOKUP($E27,'Competitive Activity 2'!$B$7:$B$13,'Competitive Activity 2'!O$7:O$13,\"N/A\",0)","v":"N/A"},{"$f":"_xlfn.XLOOKUP($E27,'Competitive Activity 2'!$B$7:$B$13,'Competitive Activity 2'!P$7:P$13,\"N/A\",0)","v":"N/A"},{"$f":"_xlfn.XLOOKUP($E27,'Competitive Activity 2'!$B$7:$B$13,'Competitive Activity 2'!Q$7:Q$13,\"N/A\",0)","v":"N/A"},{"$f":"_xlfn.XLOOKUP($E27,'Competitive Activity 2'!$B$7:$B$13,'Competitive Activity 2'!R$7:R$13,\"N/A\",0)","v":"N/A"},{"$f":"_xlfn.XLOOKUP($E27,'Competitive Activity 2'!$B$7:$B$13,'Competitive Activity 2'!S$7:S$13,\"N/A\",0)","v":"N/A"},{"$f":"_xlfn.XLOOKUP($E27,'Competitive Activity 2'!$B$7:$B$13,'Competitive Activity 2'!T$7:T$13,\"N/A\",0)","v":"N/A"},{"$f":"_xlfn.XLOOKUP($E27,'Competitive Activity 2'!$B$7:$B$13,'Competitive Activity 2'!U$7:U$13,\"N/A\",0)","v":"N/A"},{"$f":"_xlfn.XLOOKUP($E27,'Competitive Activity 2'!$B$17:$B$23,'Competitive Activity 2'!D$17:D$23,\"N/A\",0)","v":"N/A"},{"$f":"_xlfn.XLOOKUP($E27,'Competitive Activity 2'!$B$17:$B$23,'Competitive Activity 2'!E$17:E$23,\"N/A\",0)","v":"N/A"},{"$f":"_xlfn.XLOOKUP($E27,'Competitive Activity 2'!$B$17:$B$23,'Competitive Activity 2'!F$17:F$23,\"N/A\",0)","v":"N/A"},{"$f":"_xlfn.XLOOKUP($E27,'Competitive Activity 2'!$B$17:$B$23,'Competitive Activity 2'!G$17:G$23,\"N/A\",0)","v":"N/A"},{"$f":"_xlfn.XLOOKUP($E27,'Competitive Activity 2'!$B$17:$B$23,'Competitive Activity 2'!H$17:H$23,\"N/A\",0)","v":"N/A"},{"$f":"_xlfn.XLOOKUP($E27,'Competitive Activity 2'!$B$17:$B$23,'Competitive Activity 2'!I$17:I$23,\"N/A\",0)","v":"N/A"},{"$f":"_xlfn.XLOOKUP($E27,'Competitive Activity 2'!$B$17:$B$23,'Competitive Activity 2'!J$17:J$23,\"N/A\",0)","v":"N/A"},{"$f":"_xlfn.XLOOKUP($E27,'Competitive Activity 2'!$B$17:$B$23,'Competitive Activity 2'!K$17:K$23,\"N/A\",0)","v":"N/A"},{"$f":"_xlfn.XLOOKUP($E27,'Competitive Activity 2'!$B$17:$B$23,'Competitive Activity 2'!L$17:L$23,\"N/A\",0)","v":"N/A"},{"$f":"_xlfn.XLOOKUP($E27,'Competitive Activity 2'!$B$17:$B$23,'Competitive Activity 2'!M$17:M$23,\"N/A\",0)","v":"N/A"},{"$f":"_xlfn.XLOOKUP($E27,'Competitive Activity 2'!$B$17:$B$23,'Competitive Activity 2'!N$17:N$23,\"N/A\",0)","v":"N/A"},{"$f":"_xlfn.XLOOKUP($E27,'Competitive Activity 2'!$B$27:$B$33,'Competitive Activity 2'!D$27:D$33,\"N/A\",0)","v":"N/A"},{"$f":"_xlfn.XLOOKUP($E27,'Competitive Activity 2'!$B$27:$B$33,'Competitive Activity 2'!E$27:E$33,\"N/A\",0)","v":"N/A"},{"$f":"_xlfn.XLOOKUP($E27,'Competitive Activity 2'!$B$27:$B$33,'Competitive Activity 2'!F$27:F$33,\"N/A\",0)","v":"N/A"},{"$f":"_xlfn.XLOOKUP($E27,'Competitive Activity 2'!$B$27:$B$33,'Competitive Activity 2'!G$27:G$33,\"N/A\",0)","v":"N/A"},{"$f":"_xlfn.XLOOKUP($E27,'Competitive Activity 2'!$B$27:$B$33,'Competitive Activity 2'!H$27:H$33,\"N/A\",0)","v":"N/A"},{"$f":"_xlfn.XLOOKUP($E27,'Competitive Activity 2'!$B$27:$B$33,'Competitive Activity 2'!I$27:I$33,\"N/A\",0)","v":"N/A"},{"$f":"_xlfn.XLOOKUP($E27,'Competitive Activity 2'!$B$27:$B$33,'Competitive Activity 2'!J$27:J$33,\"N/A\",0)","v":"N/A"},{"$f":"_xlfn.XLOOKUP($E27,'Competitive Activity 2'!$B$27:$B$33,'Competitive Activity 2'!K$27:K$33,\"N/A\",0)","v":"N/A"},{"$f":"_xlfn.XLOOKUP($E27,'Competitive Activity 2'!$B$27:$B$33,'Competitive Activity 2'!M$27:M$33,\"N/A\",0)","v":"N/A"}]
[{"$f":"'1-Cover Sheet'!$C$8","v":"Select One"},{"$f":"'1-Cover Sheet'!$F$8","v":"Select One"},{"$f":"'Summary Sheet'!$D$8","v":0},{"$f":"'Summary Sheet'!$D$10","v":0},{"$f":"'Drop Down Box'!B192","v":0},{"$f":"'Drop Down Box'!C192","v":0},{"$f":"'Drop Down Box'!D192","v":"Select One"},{"$f":"_xlfn.XLOOKUP(E28,'Drop Down Box'!$B$166:$B$249,'Drop Down Box'!$A$166:$A$249,\"Unknown\",0)","v":"Activity 1"},{"$f":"_xlfn.XLOOKUP($E28,'Activity 4'!$B$8:$B$14,'Activity 4'!$J$8:$J$14,\"N/A\",0)","v":"N/A"},{"$f":"_xlfn.XLOOKUP($E28,'Activity 4'!$B$8:$B$14,'Activity 4'!$K$8:$K$14,\"N/A\",0)","v":"N/A"},{"$f":"_xlfn.XLOOKUP(E28,'Activity 4'!B13:B19,'Activity 4'!F13:F19,\"N/A\",0)","v":"N/A"},{"$f":"_xlfn.XLOOKUP($E28,'Activity 4'!B$8:B$14,'Activity 4'!G$8:G$14,\"N/A\",0)","v":"N/A"},{"$f":"_xlfn.XLOOKUP($E28,'Activity 4'!B$8:B$14,'Activity 4'!H$8:H$14,\"N/A\",0)","v":"N/A"},{"$f":"_xlfn.XLOOKUP($E28,'Activity 1'!$B$7:$B$13,'Activity 1'!$A$7:$A$13,\"No\",0,1)","v":"No"},{"$f":"_xlfn.XLOOKUP($E28,'Activity 1'!$B$7:$B$13,'Activity 1'!$H$7:$H$13,\"N/A\",0,1)","v":"N/A"},{"$f":"_xlfn.XLOOKUP($E28,'Activity 1'!$B$7:$B$13,'Activity 1'!I$7:I$13,\"N/A\",0,1)","v":"N/A"},{"$f":"_xlfn.XLOOKUP($E28,'Activity 1'!$B$7:$B$13,'Activity 1'!J$7:J$13,\"N/A\",0,1)","v":"N/A"},{"$f":"_xlfn.XLOOKUP($E28,'Activity 1'!$B$7:$B$13,'Activity 1'!K$7:K$13,\"N/A\",0,1)","v":"N/A"},{"$f":"_xlfn.XLOOKUP($E28,'Activity 1'!$B$7:$B$13,'Activity 1'!L$7:L$13,\"N/A\",0,1)","v":"N/A"},{"$f":"_xlfn.XLOOKUP($E28,'Activity 1'!$B$7:$B$13,'Activity 1'!M$7:M$13,\"N/A\",0,1)","v":"N/A"},{"$f":"_xlfn.XLOOKUP($E28,'Activity 1'!$B$7:$B$13,'Activity 1'!N$7:N$13,\"N/A\",0,1)","v":"N/A"},0,{"$f":"_xlfn.XLOOKUP($E28,'Activity 1'!$B$7:$B$13,'Activity 1'!O$7:O$13,\"N/A\",0,1)","v":"N/A"},{"$f":"_xlfn.XLOOKUP($E28,'Activity 1'!$B$7:$B$13,'Activity 1'!P$7:P$13,\"N/A\",0,1)","v":"N/A"},{"$f":"_xlfn.XLOOKUP($E28,'Activity 1'!$B$7:$B$13,'Activity 1'!Q$7:Q$13,\"N/A\",0,1)","v":"N/A"},{"$f":"_xlfn.XLOOKUP($E28,'Activity 1'!$B$7:$B$13,'Activity 1'!R$7:R$13,\"N/A\",0,1)","v":"N/A"},{"$f":"_xlfn.XLOOKUP($E28,'Activity 1'!$B$7:$B$13,'Activity 1'!S$7:S$13,\"N/A\",0,1)","v":"N/A"},{"$f":"_xlfn.XLOOKUP($E28,'Activity 1'!$B$7:$B$13,'Activity 1'!T$7:T$13,\"N/A\",0,1)","v":"N/A"},{"$f":"_xlfn.XLOOKUP($E28,'Activity 1'!$B$7:$B$13,'Activity 1'!U$7:U$13,\"N/A\",0,1)","v":"N/A"},{"$f":"_xlfn.XLOOKUP($E28,'Activity 1'!$B$7:$B$13,'Activity 1'!V$7:V$13,\"N/A\",0,1)","v":"N/A"},{"$f":"_xlfn.XLOOKUP($E28,'Activity 1'!$B$17:$B$23,'Activity 1'!C$17:C$23,\"N/A\",0,1)","v":"N/A"},{"$f":"_xlfn.XLOOKUP($E28,'Activity 1'!$B$17:$B$23,'Activity 1'!D$17:D$23,\"N/A\",0,1)","v":"N/A"},{"$f":"_xlfn.XLOOKUP($E28,'Activity 1'!$B$17:$B$23,'Activity 1'!E$17:E$23,\"N/A\",0,1)","v":"N/A"},{"$f":"_xlfn.XLOOKUP($E28,'Activity 1'!$B$17:$B$23,'Activity 1'!F$17:F$23,\"N/A\",0,1)","v":"N/A"},{"$f":"_xlfn.XLOOKUP($E28,'Activity 1'!$B$17:$B$23,'Activity 1'!G$17:G$23,\"N/A\",0,1)","v":"N/A"},{"$f":"_xlfn.XLOOKUP($E28,'Activity 1'!$B$17:$B$23,'Activity 1'!H$17:H$23,\"N/A\",0,1)","v":"N/A"},{"$f":"_xlfn.XLOOKUP($E28,'Activity 1'!$B$17:$B$23,'Activity 1'!I$17:I$23,\"N/A\",0,1)","v":"N/A"},{"$f":"_xlfn.XLOOKUP($E28,'Activity 1'!$B$17:$B$23,'Activity 1'!J$17:J$23,\"N/A\",0,1)","v":"N/A"},{"$f":"_xlfn.XLOOKUP($E28,'Activity 1'!$B$17:$B$23,'Activity 1'!K$17:K$23,\"N/A\",0,1)","v":"N/A"},{"$f":"_xlfn.XLOOKUP($E28,'Activity 1'!$B$17:$B$23,'Activity 1'!L$17:L$23,\"N/A\",0,1)","v":"N/A"},{"$f":"_xlfn.XLOOKUP($E28,'Activity 1'!$B$17:$B$23,'Activity 1'!M$17:M$23,\"N/A\",0,1)","v":"N/A"},{"$f":"_xlfn.XLOOKUP($E28,'Activity 1'!$B$17:$B$23,'Activity 1'!O$17:O$23,\"N/A\",0,1)","v":"N/A"},{"$f":"_xlfn.XLOOKUP($E28,'Activity 1'!$B$17:$B$23,'Activity 1'!Q$17:Q$23,\"N/A\",0,1)","v":"N/A"},{"$f":"_xlfn.XLOOKUP($E28,'Activity 2'!$B$7:$B$13,'Activity 2'!$A$7:$A$13,\"No\",0,1)","v":"No"},{"$f":"_xlfn.XLOOKUP($E28,'Activity 2'!B$7:B$13,'Activity 2'!H$7:H$13,\"N/A\",0)","v":"N/A"},{"$f":"_xlfn.XLOOKUP($E28,'Activity 2'!C$7:C$13,'Activity 2'!I$7:I$13,\"N/A\",0)","v":"N/A"},{"$f":"_xlfn.XLOOKUP($E28,'Activity 2'!D$7:D$13,'Activity 2'!J$7:J$13,\"N/A\",0)","v":"N/A"},{"$f":"_xlfn.XLOOKUP($E28,'Activity 2'!E$7:E$13,'Activity 2'!K$7:K$13,\"N/A\",0)","v":"N/A"},{"$f":"_xlfn.XLOOKUP($E28,'Activity 2'!F$7:F$13,'Activity 2'!L$7:L$13,\"N/A\",0)","v":"N/A"},{"$f":"_xlfn.XLOOKUP($E28,'Activity 2'!G$7:G$13,'Activity 2'!M$7:M$13,\"N/A\",0)","v":"N/A"},{"$f":"_xlfn.XLOOKUP($E28,'Activity 2'!H$7:H$13,'Activity 2'!N$7:N$13,\"N/A\",0)","v":"N/A"},{"$f":"_xlfn.XLOOKUP($E28,'Activity 2'!I$7:I$13,'Activity 2'!O$7:O$13,\"N/A\",0)","v":"N/A"},{"$f":"_xlfn.XLOOKUP($E28,'Activity 2'!J$7:J$13,'Activity 2'!P$7:P$13,\"N/A\",0)","v":"N/A"},{"$f":"_xlfn.XLOOKUP($E28,'Activity 2'!K$7:K$13,'Activity 2'!Q$7:Q$13,\"N/A\",0)","v":"N/A"},{"$f":"_xlfn.XLOOKUP($E28,'Activity 2'!L$7:L$13,'Activity 2'!R$7:R$13,\"N/A\",0)","v":"N/A"},{"$f":"_xlfn.XLOOKUP($E28,'Activity 2'!M$7:M$13,'Activity 2'!S$7:S$13,\"N/A\",0)","v":"N/A"},{"$f":"_xlfn.XLOOKUP($E28,'Activity 2'!N$7:N$13,'Activity 2'!T$7:T$13,\"N/A\",0)","v":"N/A"},{"$f":"_xlfn.XLOOKUP($E28,'Activity 2'!O$7:O$13,'Activity 2'!U$7:U$13,\"N/A\",0)","v":"N/A"},{"$f":"_xlfn.XLOOKUP($E28,'Activity 2'!P$7:P$13,'Activity 2'!V$7:V$13,\"N/A\",0)","v":"N/A"},{"$f":"_xlfn.XLOOKUP($E28,'Activity 2'!$B$17:$B$23,'Activity 2'!C$17:C$23,\"N/A\",0,1)","v":"N/A"},{"$f":"_xlfn.XLOOKUP($E28,'Activity 2'!$B$17:$B$23,'Activity 2'!D$17:D$23,\"N/A\",0,1)","v":"N/A"},{"$f":"_xlfn.XLOOKUP($E28,'Activity 2'!$B$17:$B$23,'Activity 2'!E$17:E$23,\"N/A\",0,1)","v":"N/A"},{"$f":"_xlfn.XLOOKUP($E28,'Activity 2'!$B$17:$B$23,'Activity 2'!F$17:F$23,\"N/A\",0,1)","v":"N/A"},{"$f":"_xlfn.XLOOKUP($E28,'Activity 2'!$B$17:$B$23,'Activity 2'!G$17:G$23,\"N/A\",0,1)","v":"N/A"},{"$f":"_xlfn.XLOOKUP($E28,'Activity 2'!$B$17:$B$23,'Activity 2'!H$17:H$23,\"N/A\",0,1)","v":"N/A"},{"$f":"_xlfn.XLOOKUP($E28,'Activity 2'!$B$17:$B$23,'Activity 2'!I$17:I$23,\"N/A\",0,1)","v":"N/A"},{"$f":"_xlfn.XLOOKUP($E28,'Activity 2'!$B$17:$B$23,'Activity 2'!J$17:J$23,\"N/A\",0,1)","v":"N/A"},{"$f":"_xlfn.XLOOKUP($E28,'Activity 2'!$B$17:$B$23,'Activity 2'!K$17:K$23,\"N/A\",0,1)","v":"N/A"},{"$f":"_xlfn.XLOOKUP($E28,'Activity 2'!$B$17:$B$23,'Activity 2'!L$17:L$23,\"N/A\",0,1)","v":"N/A"},{"$f":"_xlfn.XLOOKUP($E28,'Activity 2'!$B$17:$B$23,'Activity 2'!M$17:M$23,\"N/A\",0,1)","v":"N/A"},{"$f":"_xlfn.XLOOKUP($E28,'Activity 2'!$B$17:$B$23,'Activity 2'!O$17:O$23,\"N/A\",0,1)","v":"N/A"},{"$f":"_xlfn.XLOOKUP($E28,'Activity 2'!$B$17:$B$23,'Activity 2'!Q$17:Q$23,\"N/A\",0,1)","v":"N/A"},null,{"$f":"_xlfn.XLOOKUP($E28,'Activity 3'!$B$8:$B$14,'Activity 3'!K$8:K$14,\"N/A\",0,1)","v":"N/A"},{"$f":"_xlfn.XLOOKUP($E28,'Activity 3'!$B$8:$B$14,'Activity 3'!L$8:L$14,\"N/A\",0,1)","v":"N/A"},{"$f":"_xlfn.XLOOKUP($E28,'Activity 3'!$B$8:$B$14,'Activity 3'!M$8:M$14,\"N/A\",0,1)","v":"N/A"},{"$f":"_xlfn.XLOOKUP($E28,'Activity 3'!$B$8:$B$14,'Activity 3'!N$8:N$14,\"N/A\",0,1)","v":"N/A"},{"$f":"_xlfn.XLOOKUP($E28,'Activity 3'!$B$8:$B$14,'Activity 3'!O$8:O$14,\"N/A\",0,1)","v":"N/A"},{"$f":"_xlfn.XLOOKUP($E28,'Activity 3'!$B$8:$B$14,'Activity 3'!R$8:R$14,\"N/A\",0,1)","v":"N/A"},{"$f":"_xlfn.XLOOKUP($E28,'Activity 4'!$B$8:$B$14,'Activity 4'!$A$8:$A$14,\"No\",0,1)","v":"No"},{"$f":"_xlfn.XLOOKUP($E28,'Activity 4'!$B$8:$B$14,'Activity 4'!L$8:L$14,\"N/A\",0,1)","v":"N/A"},{"$f":"_xlfn.XLOOKUP($E28,'Activity 4'!$B$8:$B$14,'Activity 4'!I$8:I$14,\"N/A\",0,1)","v":"N/A"},{"$f":"_xlfn.XLOOKUP($E28,'Activity 4'!$B$8:$B$14,'Activity 4'!M$8:M$14,\"N/A\",0,1)","v":"N/A"},{"$f":"_xlfn.XLOOKUP($E28,'Activity 5'!$B$8:$B$14,'Activity 5'!$A$8:$A$14,\"No\",0,1)","v":"No"},{"$f":"_xlfn.XLOOKUP($E28,'Activity 5'!$B$8:$B$14,'Activity 5'!J$8:J$14,\"N/A\",0,1)","v":"N/A"},{"$f":"_xlfn.XLOOKUP($E28,'Activity 5'!$B$8:$B$14,'Activity 5'!K$8:K$14,\"N/A\",0,1)","v":"N/A"},{"$f":"_xlfn.XLOOKUP($E28,'Activity 5'!$B$8:$B$14,'Activity 5'!N$8:N$14,\"N/A\",0,1)","v":"N/A"},{"$f":"_xlfn.XLOOKUP($E28,'Activity 5'!$B$8:$B$14,'Activity 5'!O$8:O$14,\"N/A\",0,1)","v":"N/A"},{"$f":"_xlfn.XLOOKUP($E28,'Activity 5'!$B$8:$B$14,'Activity 5'!P$8:P$14,\"N/A\",0,1)","v":"N/A"},{"$f":"_xlfn.XLOOKUP($E28,'Activity 5'!$B$8:$B$14,'Activity 5'!Q$8:Q$14,\"N/A\",0,1)","v":"N/A"},{"$f":"_xlfn.XLOOKUP($E28,'Activity 5'!$B$8:$B$14,'Activity 5'!R$8:R$14,\"N/A\",0,1)","v":"N/A"},{"$f":"_xlfn.XLOOKUP($E28,'Activity 6'!$B$7:$B$13,'Activity 6'!A$7:A$13,\"No\",0,1)","v":"No"},{"$f":"_xlfn.XLOOKUP($E28,'Activity 6'!$B$7:$B$13,'Activity 6'!K$7:K$13,\"N/A\",0,1)","v":"N/A"},{"$f":"_xlfn.XLOOKUP($E28,'Activity 6'!$B$7:$B$13,'Activity 6'!L$7:L$13,\"N/A\",0,1)","v":"N/A"},{"$f":"_xlfn.XLOOKUP($E28,'Activity 6'!$B$7:$B$13,'Activity 6'!M$7:M$13,\"N/A\",0,1)","v":"N/A"},{"$f":"_xlfn.XLOOKUP($E28,'Activity 6'!$B$7:$B$13,'Activity 6'!N$7:N$13,\"N/A\",0,1)","v":"N/A"},{"$f":"_xlfn.XLOOKUP($E28,'Activity 6'!$B$7:$B$13,'Activity 6'!O$7:O$13,\"N/A\",0,1)","v":"N/A"},{"$f":"_xlfn.XLOOKUP($E28,'Activity 6'!$B$7:$B$13,'Activity 6'!P$7:P$13,\"N/A\",0,1)","v":"N/A"},{"$f":"_xlfn.XLOOKUP($E28,'Activity 6'!$B$7:$B$13,'Activity 6'!Q$7:Q$13,\"N/A\",0,1)","v":"N/A"},{"$f":"_xlfn.XLOOKUP($E28,'Activity 6'!$B$7:$B$13,'Activity 6'!R$7:R$13,\"N/A\",0,1)","v":"N/A"},{"$f":"_xlfn.XLOOKUP($E28,'Activity 6'!$B$7:$B$13,'Activity 6'!S$7:S$13,\"N/A\",0,1)","v":"N/A"},{"$f":"_xlfn.XLOOKUP($E28,'Activity 6'!$B$7:$B$13,'Activity 6'!T$7:T$13,\"N/A\",0,1)","v":"N/A"},{"$f":"_xlfn.XLOOKUP($E28,'Activity 6'!$B$7:$B$13,'Activity 6'!U$7:U$13,\"N/A\",0,1)","v":"N/A"},{"$f":"_xlfn.XLOOKUP($E28,'Activity 6'!$B$22:$B$28,'Activity 6'!C$22:C$28,\"N/A\",0,1)","v":"N/A"},{"$f":"_xlfn.XLOOKUP($E28,'Activity 6'!$B$22:$B$28,'Activity 6'!D$22:D$28,\"N/A\",0,1)","v":"N/A"},{"$f":"_xlfn.XLOOKUP($E28,'Activity 6'!$B$22:$B$28,'Activity 6'!E$22:E$28,\"N/A\",0,1)","v":"N/A"},{"$f":"_xlfn.XLOOKUP($E28,'Activity 6'!$B$22:$B$28,'Activity 6'!F$22:F$28,\"N/A\",0,1)","v":"N/A"},{"$f":"_xlfn.XLOOKUP($E28,'Activity 6'!$B$22:$B$28,'Activity 6'!G$22:G$28,\"N/A\",0,1)","v":"N/A"},{"$f":"_xlfn.XLOOKUP($E28,'Activity 6'!$B$22:$B$28,'Activity 6'!H$22:H$28,\"N/A\",0,1)","v":"N/A"},{"$f":"_xlfn.XLOOKUP($E28,'Activity 6'!$B$22:$B$28,'Activity 6'!I$22:I$28,\"N/A\",0,1)","v":"N/A"},{"$f":"_xlfn.XLOOKUP($E28,'Activity 6'!$B$22:$B$28,'Activity 6'!J$22:J$28,\"N/A\",0,1)","v":"N/A"},{"$f":"_xlfn.XLOOKUP($E28,'Activity 6'!$B$22:$B$28,'Activity 6'!K$22:K$28,\"N/A\",0,1)","v":"N/A"},{"$f":"_xlfn.XLOOKUP($E28,'Activity 6'!$B$22:$B$28,'Activity 6'!L$22:L$28,\"N/A\",0,1)","v":"N/A"},{"$f":"_xlfn.XLOOKUP($E28,'Activity 6'!$B$22:$B$28,'Activity 6'!M$22:M$28,\"N/A\",0,1)","v":"N/A"},{"$f":"_xlfn.XLOOKUP($E28,'Activity 6'!$B$22:$B$28,'Activity 6'!N$22:N$28,\"N/A\",0,1)","v":"N/A"},{"$f":"_xlfn.XLOOKUP($E28,'Activity 6'!$B$32:$B$38,'Activity 6'!C$32:C$38,\"N/A\",0,1)","v":"N/A"},{"$f":"_xlfn.XLOOKUP($E28,'Activity 6'!$B$32:$B$38,'Activity 6'!D$32:D$38,\"N/A\",0,1)","v":"N/A"},{"$f":"_xlfn.XLOOKUP($E28,'Activity 6'!$B$32:$B$38,'Activity 6'!E$32:E$38,\"N/A\",0,1)","v":"N/A"},{"$f":"_xlfn.XLOOKUP($E28,'Activity 6'!$B$32:$B$38,'Activity 6'!F$32:F$38,\"N/A\",0,1)","v":"N/A"},{"$f":"_xlfn.XLOOKUP($E28,'Activity 6'!$B$32:$B$38,'Activity 6'!G$32:G$38,\"N/A\",0,1)","v":"N/A"},{"$f":"_xlfn.XLOOKUP($E28,'Activity 6'!$B$32:$B$38,'Activity 6'!H$32:H$38,\"N/A\",0,1)","v":"N/A"},{"$f":"_xlfn.XLOOKUP($E28,'Activity 6'!$B$32:$B$38,'Activity 6'!I$32:I$38,\"N/A\",0,1)","v":"N/A"},{"$f":"_xlfn.XLOOKUP($E28,'Activity 6'!$B$32:$B$38,'Activity 6'!J$32:J$38,\"N/A\",0,1)","v":"N/A"},{"$f":"_xlfn.XLOOKUP($E28,'Activity 6'!$B$32:$B$38,'Activity 6'!K$32:K$38,\"N/A\",0,1)","v":"N/A"},{"$f":"_xlfn.XLOOKUP($E28,'Activity 6'!$B$32:$B$38,'Activity 6'!M$32:M$38,\"N/A\",0,1)","v":"N/A"},{"$f":"_xlfn.XLOOKUP($E28,'Activity 7'!$B$7:$B$13,'Activity 7'!$A$7:$A$13,\"No\",0,1)","v":"No"},{"$f":"_xlfn.XLOOKUP($E28,'Activity 7'!$B$7:$B$13,'Activity 7'!M$7:M$13,\"N/A\",0,1)","v":"N/A"},{"$f":"_xlfn.XLOOKUP($E28,'Activity 7'!$B$7:$B$13,'Activity 7'!K$7:K$13,\"N/A\",0,1)","v":"N/A"},{"$f":"_xlfn.XLOOKUP($E28,'Activity 7'!$B$7:$B$13,'Activity 7'!N$7:N$13,\"N/A\",0,1)","v":"N/A"},{"$f":"_xlfn.XLOOKUP($E28,'Activity 7'!$B$7:$B$13,'Activity 7'!O$7:O$13,\"N/A\",0,1)","v":"N/A"},{"$f":"_xlfn.XLOOKUP($E28,'Activity 7'!$B$7:$B$13,'Activity 7'!P$7:P$13,\"N/A\",0,1)","v":"N/A"},{"$f":"_xlfn.XLOOKUP($E28,'Activity 7'!$B$7:$B$13,'Activity 7'!Q$7:Q$13,\"N/A\",0,1)","v":"N/A"},{"$f":"_xlfn.XLOOKUP($E28,'Activity 7'!$B$7:$B$13,'Activity 7'!R$7:R$13,\"N/A\",0,1)","v":"N/A"},{"$f":"_xlfn.XLOOKUP($E28,'Activity 7'!$B$7:$B$13,'Activity 7'!S$7:S$13,\"N/A\",0,1)","v":"N/A"},{"$f":"_xlfn.XLOOKUP($E28,'Activity 7'!$B$7:$B$13,'Activity 7'!T$7:T$13,\"N/A\",0,1)","v":"N/A"},{"$f":"_xlfn.XLOOKUP($E28,'Activity 7'!$B$7:$B$13,'Activity 7'!U$7:U$13,\"N/A\",0,1)","v":"N/A"},{"$f":"_xlfn.XLOOKUP($E28,'Activity 7'!$B$7:$B$13,'Activity 7'!V$7:V$13,\"N/A\",0,1)","v":"N/A"},{"$f":"_xlfn.XLOOKUP($E28,'Activity 7'!$B$17:$B$23,'Activity 7'!E$17:E$23,\"N/A\",0,1)","v":"N/A"},{"$f":"_xlfn.XLOOKUP($E28,'Activity 7'!$B$17:$B$23,'Activity 7'!G$17:G$23,\"N/A\",0,1)","v":"N/A"},{"$f":"_xlfn.XLOOKUP($E28,'Activity 7'!$B$17:$B$23,'Activity 7'!I$17:I$23,\"N/A\",0,1)","v":"N/A"},{"$f":"_xlfn.XLOOKUP($E28,'Activity 7'!$B$17:$B$23,'Activity 7'!J$17:J$23,\"N/A\",0,1)","v":"N/A"},{"$f":"_xlfn.XLOOKUP($E28,'Activity 7'!$B$17:$B$23,'Activity 7'!K$17:K$23,\"N/A\",0,1)","v":"N/A"},{"$f":"_xlfn.XLOOKUP($E28,'Activity 7'!$B$17:$B$23,'Activity 7'!L$17:L$23,\"N/A\",0,1)","v":"N/A"},{"$f":"_xlfn.XLOOKUP($E28,'Activity 7'!$B$17:$B$23,'Activity 7'!M$17:M$23,\"N/A\",0,1)","v":"N/A"},{"$f":"_xlfn.XLOOKUP($E28,'Activity 7'!$B$17:$B$23,'Activity 7'!N$17:N$23,\"N/A\",0,1)","v":"N/A"},{"$f":"_xlfn.XLOOKUP($E28,'Activity 7'!$B$17:$B$23,'Activity 7'!P$17:P$23,\"N/A\",0,1)","v":"N/A"},{"$f":"_xlfn.XLOOKUP($E28,'Activity 8'!$B$7:$B$13,'Activity 8'!A$7:A$13,\"No\",0,1)","v":"No"},{"$f":"_xlfn.XLOOKUP($E28,'Activity 8'!$B$7:$B$13,'Activity 8'!I$7:I$13,\"N/A\",0,1)","v":"N/A"},{"$f":"_xlfn.XLOOKUP($E28,'Activity 8'!$B$7:$B$13,'Activity 8'!J$7:J$13,\"N/A\",0,1)","v":"N/A"},{"$f":"_xlfn.XLOOKUP($E28,'Activity 8'!$B$7:$B$13,'Activity 8'!K$7:K$13,\"N/A\",0,1)","v":"N/A"},{"$f":"_xlfn.XLOOKUP($E28,'Activity 8'!$B$7:$B$13,'Activity 8'!L$7:L$13,\"N/A\",0,1)","v":"N/A"},{"$f":"_xlfn.XLOOKUP($E28,'Activity 8'!$B$7:$B$13,'Activity 8'!M$7:M$13,\"N/A\",0,1)","v":"N/A"},{"$f":"_xlfn.XLOOKUP($E28,'Activity 8'!$B$7:$B$13,'Activity 8'!N$7:N$13,\"N/A\",0,1)","v":"N/A"},{"$f":"_xlfn.XLOOKUP($E28,'Activity 8'!$B$7:$B$13,'Activity 8'!O$7:O$13,\"N/A\",0,1)","v":"N/A"},{"$f":"_xlfn.XLOOKUP($E28,'Activity 8'!$B$7:$B$13,'Activity 8'!P$7:P$13,\"N/A\",0,1)","v":"N/A"},{"$f":"_xlfn.XLOOKUP($E28,'Activity 8'!$B$7:$B$13,'Activity 8'!Q$7:Q$13,\"N/A\",0,1)","v":"N/A"},{"$f":"_xlfn.XLOOKUP($E28,'Activity 8'!$B$7:$B$13,'Activity 8'!R$7:R$13,\"N/A\",0,1)","v":"N/A"},{"$f":"_xlfn.XLOOKUP($E28,'Activity 8'!$B$7:$B$13,'Activity 8'!S$7:S$13,\"N/A\",0,1)","v":"N/A"},{"$f":"_xlfn.XLOOKUP($E28,'Activity 8'!$B$7:$B$13,'Activity 8'!T$7:T$13,\"N/A\",0,1)","v":"N/A"},{"$f":"_xlfn.XLOOKUP($E28,'Activity 8'!$B$7:$B$13,'Activity 8'!U$7:U$13,\"N/A\",0,1)","v":"N/A"},{"$f":"_xlfn.XLOOKUP($E28,'Activity 8'!$B$7:$B$13,'Activity 8'!V$7:V$13,\"N/A\",0,1)","v":"N/A"},{"$f":"_xlfn.XLOOKUP($E28,'Activity 8'!$B$17:$B$23,'Activity 8'!D$17:D$23,\"N/A\",0,1)","v":"N/A"},{"$f":"_xlfn.XLOOKUP($E28,'Activity 8'!$B$17:$B$23,'Activity 8'!E$17:E$23,\"N/A\",0,1)","v":"N/A"},{"$f":"_xlfn.XLOOKUP($E28,'Activity 8'!$B$17:$B$23,'Activity 8'!F$17:F$23,\"N/A\",0,1)","v":"N/A"},{"$f":"_xlfn.XLOOKUP($E28,'Activity 8'!$B$17:$B$23,'Activity 8'!G$17:G$23,\"N/A\",0,1)","v":"N/A"},{"$f":"_xlfn.XLOOKUP($E28,'Activity 8'!$B$17:$B$23,'Activity 8'!H$17:H$23,\"N/A\",0,1)","v":"N/A"},{"$f":"_xlfn.XLOOKUP($E28,'Activity 8'!$B$17:$B$23,'Activity 8'!I$17:I$23,\"N/A\",0,1)","v":"N/A"},{"$f":"_xlfn.XLOOKUP($E28,'Activity 8'!$B$17:$B$23,'Activity 8'!J$17:J$23,\"N/A\",0,1)","v":"N/A"},{"$f":"_xlfn.XLOOKUP($E28,'Activity 8'!$B$17:$B$23,'Activity 8'!K$17:K$23,\"N/A\",0,1)","v":"N/A"},{"$f":"_xlfn.XLOOKUP($E28,'Activity 8'!$B$17:$B$23,'Activity 8'!L$17:L$23,\"N/A\",0,1)","v":"N/A"},{"$f":"_xlfn.XLOOKUP($E28,'Activity 8'!$B$17:$B$23,'Activity 8'!M$17:M$23,\"N/A\",0,1)","v":"N/A"},{"$f":"_xlfn.XLOOKUP($E28,'Activity 8'!$B$17:$B$23,'Activity 8'!N$17:N$23,\"N/A\",0,1)","v":"N/A"},{"$f":"_xlfn.XLOOKUP($E28,'Activity 8'!$B$17:$B$23,'Activity 8'!P$17:P$23,\"N/A\",0,1)","v":"N/A"},{"$f":"_xlfn.XLOOKUP(E28,'Activity 9'!$B$7:$B$13,'Activity 9'!$A$7:$A$13,\"No\",0,1)","v":"No"},{"$f":"_xlfn.XLOOKUP($E28,'Activity 9'!$B$7:$B$13,'Activity 9'!J$7:J$13,\"N/A\",0,1)","v":"N/A"},{"$f":"_xlfn.XLOOKUP($E28,'Activity 9'!$B$7:$B$13,'Activity 9'!K$7:K$13,\"N/A\",0,1)","v":"N/A"},{"$f":"_xlfn.XLOOKUP($E28,'Activity 9'!$B$7:$B$13,'Activity 9'!L$7:L$13,\"N/A\",0,1)","v":"N/A"},{"$f":"_xlfn.XLOOKUP($E28,'Activity 9'!$B$7:$B$13,'Activity 9'!M$7:M$13,\"N/A\",0,1)","v":"N/A"},{"$f":"_xlfn.XLOOKUP($E28,'Activity 9'!$B$7:$B$13,'Activity 9'!N$7:N$13,\"N/A\",0,1)","v":"N/A"},{"$f":"_xlfn.XLOOKUP($E28,'Activity 9'!$B$7:$B$13,'Activity 9'!O$7:O$13,\"N/A\",0,1)","v":"N/A"},{"$f":"_xlfn.XLOOKUP($E28,'Activity 9'!$B$7:$B$13,'Activity 9'!P$7:P$13,\"N/A\",0,1)","v":"N/A"},{"$f":"_xlfn.XLOOKUP($E28,'Activity 9'!$B$7:$B$13,'Activity 9'!Q$7:Q$13,\"N/A\",0,1)","v":"N/A"},{"$f":"_xlfn.XLOOKUP($E28,'Activity 9'!$B$7:$B$13,'Activity 9'!R$7:R$13,\"N/A\",0,1)","v":"N/A"},{"$f":"_xlfn.XLOOKUP($E28,'Activity 9'!$B$7:$B$13,'Activity 9'!S$7:S$13,\"N/A\",0,1)","v":"N/A"},{"$f":"_xlfn.XLOOKUP($E28,'Activity 9'!$B$7:$B$13,'Activity 9'!T$7:T$13,\"N/A\",0,1)","v":"N/A"},{"$f":"_xlfn.XLOOKUP($E28,'Activity 9'!$B$17:$B$23,'Activity 9'!E$17:E$23,\"N/A\",0,1)","v":"N/A"},{"$f":"_xlfn.XLOOKUP($E28,'Activity 9'!$B$17:$B$23,'Activity 9'!F$17:F$23,\"N/A\",0,1)","v":"N/A"},{"$f":"_xlfn.XLOOKUP($E28,'Activity 9'!$B$17:$B$23,'Activity 9'!G$17:G$23,\"N/A\",0,1)","v":"N/A"},{"$f":"_xlfn.XLOOKUP($E28,'Activity 9'!$B$17:$B$23,'Activity 9'!H$17:H$23,\"N/A\",0,1)","v":"N/A"},{"$f":"_xlfn.XLOOKUP($E28,'Activity 9'!$B$17:$B$23,'Activity 9'!I$17:I$23,\"N/A\",0,1)","v":"N/A"},{"$f":"_xlfn.XLOOKUP($E28,'Activity 9'!$B$17:$B$23,'Activity 9'!J$17:J$23,\"N/A\",0,1)","v":"N/A"},{"$f":"_xlfn.XLOOKUP($E28,'Activity 9'!$B$17:$B$23,'Activity 9'!K$17:K$23,\"N/A\",0,1)","v":"N/A"},{"$f":"_xlfn.XLOOKUP($E28,'Activity 9'!$B$17:$B$23,'Activity 9'!L$17:L$23,\"N/A\",0,1)","v":"N/A"},{"$f":"_xlfn.XLOOKUP($E28,'Activity 9'!$B$17:$B$23,'Activity 9'!N$17:N$23,\"N/A\",0,1)","v":"N/A"},{"$f":"_xlfn.XLOOKUP($E28,'Activity 9'!$B$17:$B$23,'Activity 9'!O$17:O$23,\"N/A\",0,1)","v":"N/A"},{"$f":"_xlfn.XLOOKUP($E28,'Activity 9'!$B$17:$B$23,'Activity 9'!Q$17:Q$23,\"N/A\",0,1)","v":"N/A"},{"$f":"_xlfn.XLOOKUP($E28,'Activity 10'!$B$7:$B$13,'Activity 10'!A$7:A$13,\"No\",0,1)","v":"No"},{"$f":"_xlfn.XLOOKUP($E28,'Activity 10'!$B$7:$B$13,'Activity 10'!J$7:J$13,\"N/A\",0,1)","v":"N/A"},{"$f":"_xlfn.XLOOKUP($E28,'Activity 10'!$B$7:$B$13,'Activity 10'!K$7:K$13,\"N/A\",0,1)","v":"N/A"},{"$f":"_xlfn.XLOOKUP($E28,'Activity 10'!$B$7:$B$13,'Activity 10'!L$7:L$13,\"N/A\",0,1)","v":"N/A"},{"$f":"_xlfn.XLOOKUP($E28,'Activity 10'!$B$7:$B$13,'Activity 10'!M$7:M$13,\"N/A\",0,1)","v":"N/A"},{"$f":"_xlfn.XLOOKUP($E28,'Activity 10'!$B$7:$B$13,'Activity 10'!N$7:N$13,\"N/A\",0,1)","v":"N/A"},{"$f":"_xlfn.XLOOKUP($E28,'Activity 10'!$B$7:$B$13,'Activity 10'!O$7:O$13,\"N/A\",0,1)","v":"N/A"},{"$f":"_xlfn.XLOOKUP($E28,'Activity 10'!$B$7:$B$13,'Activity 10'!P$7:P$13,\"N/A\",0,1)","v":"N/A"},{"$f":"_xlfn.XLOOKUP($E28,'Activity 10'!$B$7:$B$13,'Activity 10'!Q$7:Q$13,\"N/A\",0,1)","v":"N/A"},{"$f":"_xlfn.XLOOKUP($E28,'Activity 10'!$B$7:$B$13,'Activity 10'!R$7:R$13,\"N/A\",0,1)","v":"N/A"},{"$f":"_xlfn.XLOOKUP($E28,'Activity 10'!$B$7:$B$13,'Activity 10'!S$7:S$13,\"N/A\",0,1)","v":"N/A"},{"$f":"_xlfn.XLOOKUP($E28,'Activity 10'!$B$7:$B$13,'Activity 10'!T$7:T$13,\"N/A\",0,1)","v":"N/A"},{"$f":"_xlfn.XLOOKUP($E28,'Activity 10'!$B$7:$B$13,'Activity 10'!U$7:U$13,\"N/A\",0,1)","v":"N/A"},{"$f":"_xlfn.XLOOKUP($E28,'Activity 10'!$B$7:$B$13,'Activity 10'!V$7:V$13,\"N/A\",0,1)","v":"N/A"},{"$f":"_xlfn.XLOOKUP($E28,'Activity 10'!$B$17:$B$23,'Activity 10'!E$17:E$23,\"N/A\",0,1)","v":"N/A"},{"$f":"_xlfn.XLOOKUP($E28,'Activity 10'!$B$17:$B$23,'Activity 10'!F$17:F$23,\"N/A\",0,1)","v":"N/A"},{"$f":"_xlfn.XLOOKUP($E28,'Activity 10'!$B$17:$B$23,'Activity 10'!G$17:G$23,\"N/A\",0,1)","v":"N/A"},{"$f":"_xlfn.XLOOKUP($E28,'Activity 10'!$B$17:$B$23,'Activity 10'!H$17:H$23,\"N/A\",0,1)","v":"N/A"},{"$f":"_xlfn.XLOOKUP($E28,'Activity 10'!$B$17:$B$23,'Activity 10'!I$17:I$23,\"N/A\",0,1)","v":"N/A"},{"$f":"_xlfn.XLOOKUP($E28,'Activity 10'!$B$17:$B$23,'Activity 10'!J$17:J$23,\"N/A\",0,1)","v":"N/A"},{"$f":"_xlfn.XLOOKUP($E28,'Activity 10'!$B$17:$B$23,'Activity 10'!K$17:K$23,\"N/A\",0,1)","v":"N/A"},{"$f":"_xlfn.XLOOKUP($E28,'Activity 10'!$B$17:$B$23,'Activity 10'!L$17:L$23,\"N/A\",0,1)","v":"N/A"},{"$f":"_xlfn.XLOOKUP($E28,'Activity 10'!$B$17:$B$23,'Activity 10'!M$17:M$23,\"N/A\",0,1)","v":"N/A"},{"$f":"_xlfn.XLOOKUP($E28,'Activity 10'!$B$17:$B$23,'Activity 10'!N$17:N$23,\"N/A\",0,1)","v":"N/A"},{"$f":"_xlfn.XLOOKUP($E28,'Activity 10'!$B$17:$B$23,'Activity 10'!P$17:P$23,\"N/A\",0,1)","v":"N/A"},{"$f":"_xlfn.XLOOKUP($E28,'Competitive Activity 1'!B$7:B$13,'Competitive Activity 1'!A$7:A$13,\"No\",0,1)","v":"No"},{"$f":"_xlfn.XLOOKUP($E28,'Competitive Activity 1'!$B$7:$B$13,'Competitive Activity 1'!H$7:H$13,\"N/A\",0,1)","v":"N/A"},{"$f":"_xlfn.XLOOKUP($E28,'Competitive Activity 1'!$B$7:$B$13,'Competitive Activity 1'!I$7:I$13,\"N/A\",0,1)","v":"N/A"},{"$f":"_xlfn.XLOOKUP($E28,'Competitive Activity 1'!$B$7:$B$13,'Competitive Activity 1'!J$7:J$13,\"N/A\",0,1)","v":"N/A"},{"$f":"_xlfn.XLOOKUP($E28,'Competitive Activity 1'!$B$7:$B$13,'Competitive Activity 1'!K$7:K$13,\"N/A\",0,1)","v":"N/A"},{"$f":"_xlfn.XLOOKUP($E28,'Competitive Activity 1'!$B$7:$B$13,'Competitive Activity 1'!L$7:L$13,\"N/A\",0,1)","v":"N/A"},{"$f":"_xlfn.XLOOKUP($E28,'Competitive Activity 1'!$B$7:$B$13,'Competitive Activity 1'!M$7:M$13,\"N/A\",0,1)","v":"N/A"},{"$f":"_xlfn.XLOOKUP($E28,'Competitive Activity 1'!$B$7:$B$13,'Competitive Activity 1'!N$7:N$13,\"N/A\",0,1)","v":"N/A"},{"$f":"_xlfn.XLOOKUP($E28,'Competitive Activity 1'!$B$7:$B$13,'Competitive Activity 1'!O$7:O$13,\"N/A\",0,1)","v":"N/A"},{"$f":"_xlfn.XLOOKUP($E28,'Competitive Activity 1'!$B$7:$B$13,'Competitive Activity 1'!P$7:P$13,\"N/A\",0,1)","v":"N/A"},{"$f":"_xlfn.XLOOKUP($E28,'Competitive Activity 1'!$B$7:$B$13,'Competitive Activity 1'!Q$7:Q$13,\"N/A\",0,1)","v":"N/A"},{"$f":"_xlfn.XLOOKUP($E28,'Competitive Activity 1'!$B$7:$B$13,'Competitive Activity 1'!R$7:R$13,\"N/A\",0,1)","v":"N/A"},{"$f":"_xlfn.XLOOKUP($E28,'Competitive Activity 1'!$B$7:$B$13,'Competitive Activity 1'!S$7:S$13,\"N/A\",0,1)","v":"N/A"},{"$f":"_xlfn.XLOOKUP($E28,'Competitive Activity 1'!$B$7:$B$13,'Competitive Activity 1'!T$7:T$13,\"N/A\",0,1)","v":"N/A"},{"$f":"_xlfn.XLOOKUP($E28,'Competitive Activity 1'!$B$7:$B$13,'Competitive Activity 1'!U$7:U$13,\"N/A\",0,1)","v":"N/A"},{"$f":"_xlfn.XLOOKUP($E28,'Competitive Activity 1'!$B$17:$B$23,'Competitive Activity 1'!C$17:C$23,\"N/A\",0,1)","v":"N/A"},{"$f":"_xlfn.XLOOKUP($E28,'Competitive Activity 1'!$B$17:$B$23,'Competitive Activity 1'!D$17:D$23,\"N/A\",0,1)","v":"N/A"},{"$f":"_xlfn.XLOOKUP($E28,'Competitive Activity 1'!$B$17:$B$23,'Competitive Activity 1'!E$17:E$23,\"N/A\",0,1)","v":"N/A"},{"$f":"_xlfn.XLOOKUP($E28,'Competitive Activity 1'!$B$17:$B$23,'Competitive Activity 1'!F$17:F$23,\"N/A\",0,1)","v":"N/A"},{"$f":"_xlfn.XLOOKUP($E28,'Competitive Activity 1'!$B$17:$B$23,'Competitive Activity 1'!G$17:G$23,\"N/A\",0,1)","v":"N/A"},{"$f":"_xlfn.XLOOKUP($E28,'Competitive Activity 1'!$B$17:$B$23,'Competitive Activity 1'!H$17:H$23,\"N/A\",0,1)","v":"N/A"},{"$f":"_xlfn.XLOOKUP($E28,'Competitive Activity 1'!$B$17:$B$23,'Competitive Activity 1'!I$17:I$23,\"N/A\",0,1)","v":"N/A"},{"$f":"_xlfn.XLOOKUP($E28,'Competitive Activity 1'!$B$17:$B$23,'Competitive Activity 1'!J$17:J$23,\"N/A\",0,1)","v":"N/A"},{"$f":"_xlfn.XLOOKUP($E28,'Competitive Activity 1'!$B$17:$B$23,'Competitive Activity 1'!K$17:K$23,\"N/A\",0,1)","v":"N/A"},{"$f":"_xlfn.XLOOKUP($E28,'Competitive Activity 1'!$B$17:$B$23,'Competitive Activity 1'!M$17:M$23,\"N/A\",0,1)","v":"N/A"},{"$f":"_xlfn.XLOOKUP($E28,'Competitive Activity 1'!$B$17:$B$23,'Competitive Activity 1'!N$17:N$23,\"N/A\",0,1)","v":"N/A"},{"$f":"_xlfn.XLOOKUP($E28,'Competitive Activity 1'!$B$17:$B$23,'Competitive Activity 1'!P$17:P$23,\"N/A\",0,1)","v":"N/A"},{"$f":"_xlfn.XLOOKUP($E28,'Competitive Activity 2'!$B$7:$B$13,'Competitive Activity 2'!A$7:A$13,\"No\",0)","v":"No"},{"$f":"_xlfn.XLOOKUP($E28,'Competitive Activity 2'!$B$7:$B$13,'Competitive Activity 2'!L$7:L$13,\"N/A\",0)","v":"N/A"},{"$f":"_xlfn.XLOOKUP($E28,'Competitive Activity 2'!$B$7:$B$13,'Competitive Activity 2'!M$7:M$13,\"N/A\",0)","v":"N/A"},{"$f":"_xlfn.XLOOKUP($E28,'Competitive Activity 2'!$B$7:$B$13,'Competitive Activity 2'!N$7:N$13,\"N/A\",0)","v":"N/A"},{"$f":"_xlfn.XLOOKUP($E28,'Competitive Activity 2'!$B$7:$B$13,'Competitive Activity 2'!O$7:O$13,\"N/A\",0)","v":"N/A"},{"$f":"_xlfn.XLOOKUP($E28,'Competitive Activity 2'!$B$7:$B$13,'Competitive Activity 2'!P$7:P$13,\"N/A\",0)","v":"N/A"},{"$f":"_xlfn.XLOOKUP($E28,'Competitive Activity 2'!$B$7:$B$13,'Competitive Activity 2'!Q$7:Q$13,\"N/A\",0)","v":"N/A"},{"$f":"_xlfn.XLOOKUP($E28,'Competitive Activity 2'!$B$7:$B$13,'Competitive Activity 2'!R$7:R$13,\"N/A\",0)","v":"N/A"},{"$f":"_xlfn.XLOOKUP($E28,'Competitive Activity 2'!$B$7:$B$13,'Competitive Activity 2'!S$7:S$13,\"N/A\",0)","v":"N/A"},{"$f":"_xlfn.XLOOKUP($E28,'Competitive Activity 2'!$B$7:$B$13,'Competitive Activity 2'!T$7:T$13,\"N/A\",0)","v":"N/A"},{"$f":"_xlfn.XLOOKUP($E28,'Competitive Activity 2'!$B$7:$B$13,'Competitive Activity 2'!U$7:U$13,\"N/A\",0)","v":"N/A"},{"$f":"_xlfn.XLOOKUP($E28,'Competitive Activity 2'!$B$17:$B$23,'Competitive Activity 2'!D$17:D$23,\"N/A\",0)","v":"N/A"},{"$f":"_xlfn.XLOOKUP($E28,'Competitive Activity 2'!$B$17:$B$23,'Competitive Activity 2'!E$17:E$23,\"N/A\",0)","v":"N/A"},{"$f":"_xlfn.XLOOKUP($E28,'Competitive Activity 2'!$B$17:$B$23,'Competitive Activity 2'!F$17:F$23,\"N/A\",0)","v":"N/A"},{"$f":"_xlfn.XLOOKUP($E28,'Competitive Activity 2'!$B$17:$B$23,'Competitive Activity 2'!G$17:G$23,\"N/A\",0)","v":"N/A"},{"$f":"_xlfn.XLOOKUP($E28,'Competitive Activity 2'!$B$17:$B$23,'Competitive Activity 2'!H$17:H$23,\"N/A\",0)","v":"N/A"},{"$f":"_xlfn.XLOOKUP($E28,'Competitive Activity 2'!$B$17:$B$23,'Competitive Activity 2'!I$17:I$23,\"N/A\",0)","v":"N/A"},{"$f":"_xlfn.XLOOKUP($E28,'Competitive Activity 2'!$B$17:$B$23,'Competitive Activity 2'!J$17:J$23,\"N/A\",0)","v":"N/A"},{"$f":"_xlfn.XLOOKUP($E28,'Competitive Activity 2'!$B$17:$B$23,'Competitive Activity 2'!K$17:K$23,\"N/A\",0)","v":"N/A"},{"$f":"_xlfn.XLOOKUP($E28,'Competitive Activity 2'!$B$17:$B$23,'Competitive Activity 2'!L$17:L$23,\"N/A\",0)","v":"N/A"},{"$f":"_xlfn.XLOOKUP($E28,'Competitive Activity 2'!$B$17:$B$23,'Competitive Activity 2'!M$17:M$23,\"N/A\",0)","v":"N/A"},{"$f":"_xlfn.XLOOKUP($E28,'Competitive Activity 2'!$B$17:$B$23,'Competitive Activity 2'!N$17:N$23,\"N/A\",0)","v":"N/A"},{"$f":"_xlfn.XLOOKUP($E28,'Competitive Activity 2'!$B$27:$B$33,'Competitive Activity 2'!D$27:D$33,\"N/A\",0)","v":"N/A"},{"$f":"_xlfn.XLOOKUP($E28,'Competitive Activity 2'!$B$27:$B$33,'Competitive Activity 2'!E$27:E$33,\"N/A\",0)","v":"N/A"},{"$f":"_xlfn.XLOOKUP($E28,'Competitive Activity 2'!$B$27:$B$33,'Competitive Activity 2'!F$27:F$33,\"N/A\",0)","v":"N/A"},{"$f":"_xlfn.XLOOKUP($E28,'Competitive Activity 2'!$B$27:$B$33,'Competitive Activity 2'!G$27:G$33,\"N/A\",0)","v":"N/A"},{"$f":"_xlfn.XLOOKUP($E28,'Competitive Activity 2'!$B$27:$B$33,'Competitive Activity 2'!H$27:H$33,\"N/A\",0)","v":"N/A"},{"$f":"_xlfn.XLOOKUP($E28,'Competitive Activity 2'!$B$27:$B$33,'Competitive Activity 2'!I$27:I$33,\"N/A\",0)","v":"N/A"},{"$f":"_xlfn.XLOOKUP($E28,'Competitive Activity 2'!$B$27:$B$33,'Competitive Activity 2'!J$27:J$33,\"N/A\",0)","v":"N/A"},{"$f":"_xlfn.XLOOKUP($E28,'Competitive Activity 2'!$B$27:$B$33,'Competitive Activity 2'!K$27:K$33,\"N/A\",0)","v":"N/A"},{"$f":"_xlfn.XLOOKUP($E28,'Competitive Activity 2'!$B$27:$B$33,'Competitive Activity 2'!M$27:M$33,\"N/A\",0)","v":"N/A"}]
[{"$f":"'1-Cover Sheet'!$C$8","v":"Select One"},{"$f":"'1-Cover Sheet'!$F$8","v":"Select One"},{"$f":"'Summary Sheet'!$D$8","v":0},{"$f":"'Summary Sheet'!$D$10","v":0},{"$f":"'Drop Down Box'!B193","v":0},{"$f":"'Drop Down Box'!C193","v":0},{"$f":"'Drop Down Box'!D193","v":"Select One"},{"$f":"_xlfn.XLOOKUP(E29,'Drop Down Box'!$B$166:$B$249,'Drop Down Box'!$A$166:$A$249,\"Unknown\",0)","v":"Activity 1"},{"$f":"_xlfn.XLOOKUP($E29,'Activity 4'!$B$8:$B$14,'Activity 4'!$J$8:$J$14,\"N/A\",0)","v":"N/A"},{"$f":"_xlfn.XLOOKUP($E29,'Activity 4'!$B$8:$B$14,'Activity 4'!$K$8:$K$14,\"N/A\",0)","v":"N/A"},{"$f":"_xlfn.XLOOKUP(E29,'Activity 4'!B14:B20,'Activity 4'!F14:F20,\"N/A\",0)","v":"N/A"},{"$f":"_xlfn.XLOOKUP($E29,'Activity 4'!B$8:B$14,'Activity 4'!G$8:G$14,\"N/A\",0)","v":"N/A"},{"$f":"_xlfn.XLOOKUP($E29,'Activity 4'!B$8:B$14,'Activity 4'!H$8:H$14,\"N/A\",0)","v":"N/A"},{"$f":"_xlfn.XLOOKUP($E29,'Activity 1'!$B$7:$B$13,'Activity 1'!$A$7:$A$13,\"No\",0,1)","v":"No"},{"$f":"_xlfn.XLOOKUP($E29,'Activity 1'!$B$7:$B$13,'Activity 1'!$H$7:$H$13,\"N/A\",0,1)","v":"N/A"},{"$f":"_xlfn.XLOOKUP($E29,'Activity 1'!$B$7:$B$13,'Activity 1'!I$7:I$13,\"N/A\",0,1)","v":"N/A"},{"$f":"_xlfn.XLOOKUP($E29,'Activity 1'!$B$7:$B$13,'Activity 1'!J$7:J$13,\"N/A\",0,1)","v":"N/A"},{"$f":"_xlfn.XLOOKUP($E29,'Activity 1'!$B$7:$B$13,'Activity 1'!K$7:K$13,\"N/A\",0,1)","v":"N/A"},{"$f":"_xlfn.XLOOKUP($E29,'Activity 1'!$B$7:$B$13,'Activity 1'!L$7:L$13,\"N/A\",0,1)","v":"N/A"},{"$f":"_xlfn.XLOOKUP($E29,'Activity 1'!$B$7:$B$13,'Activity 1'!M$7:M$13,\"N/A\",0,1)","v":"N/A"},{"$f":"_xlfn.XLOOKUP($E29,'Activity 1'!$B$7:$B$13,'Activity 1'!N$7:N$13,\"N/A\",0,1)","v":"N/A"},0,{"$f":"_xlfn.XLOOKUP($E29,'Activity 1'!$B$7:$B$13,'Activity 1'!O$7:O$13,\"N/A\",0,1)","v":"N/A"},{"$f":"_xlfn.XLOOKUP($E29,'Activity 1'!$B$7:$B$13,'Activity 1'!P$7:P$13,\"N/A\",0,1)","v":"N/A"},{"$f":"_xlfn.XLOOKUP($E29,'Activity 1'!$B$7:$B$13,'Activity 1'!Q$7:Q$13,\"N/A\",0,1)","v":"N/A"},{"$f":"_xlfn.XLOOKUP($E29,'Activity 1'!$B$7:$B$13,'Activity 1'!R$7:R$13,\"N/A\",0,1)","v":"N/A"},{"$f":"_xlfn.XLOOKUP($E29,'Activity 1'!$B$7:$B$13,'Activity 1'!S$7:S$13,\"N/A\",0,1)","v":"N/A"},{"$f":"_xlfn.XLOOKUP($E29,'Activity 1'!$B$7:$B$13,'Activity 1'!T$7:T$13,\"N/A\",0,1)","v":"N/A"},{"$f":"_xlfn.XLOOKUP($E29,'Activity 1'!$B$7:$B$13,'Activity 1'!U$7:U$13,\"N/A\",0,1)","v":"N/A"},{"$f":"_xlfn.XLOOKUP($E29,'Activity 1'!$B$7:$B$13,'Activity 1'!V$7:V$13,\"N/A\",0,1)","v":"N/A"},{"$f":"_xlfn.XLOOKUP($E29,'Activity 1'!$B$17:$B$23,'Activity 1'!C$17:C$23,\"N/A\",0,1)","v":"N/A"},{"$f":"_xlfn.XLOOKUP($E29,'Activity 1'!$B$17:$B$23,'Activity 1'!D$17:D$23,\"N/A\",0,1)","v":"N/A"},{"$f":"_xlfn.XLOOKUP($E29,'Activity 1'!$B$17:$B$23,'Activity 1'!E$17:E$23,\"N/A\",0,1)","v":"N/A"},{"$f":"_xlfn.XLOOKUP($E29,'Activity 1'!$B$17:$B$23,'Activity 1'!F$17:F$23,\"N/A\",0,1)","v":"N/A"},{"$f":"_xlfn.XLOOKUP($E29,'Activity 1'!$B$17:$B$23,'Activity 1'!G$17:G$23,\"N/A\",0,1)","v":"N/A"},{"$f":"_xlfn.XLOOKUP($E29,'Activity 1'!$B$17:$B$23,'Activity 1'!H$17:H$23,\"N/A\",0,1)","v":"N/A"},{"$f":"_xlfn.XLOOKUP($E29,'Activity 1'!$B$17:$B$23,'Activity 1'!I$17:I$23,\"N/A\",0,1)","v":"N/A"},{"$f":"_xlfn.XLOOKUP($E29,'Activity 1'!$B$17:$B$23,'Activity 1'!J$17:J$23,\"N/A\",0,1)","v":"N/A"},{"$f":"_xlfn.XLOOKUP($E29,'Activity 1'!$B$17:$B$23,'Activity 1'!K$17:K$23,\"N/A\",0,1)","v":"N/A"},{"$f":"_xlfn.XLOOKUP($E29,'Activity 1'!$B$17:$B$23,'Activity 1'!L$17:L$23,\"N/A\",0,1)","v":"N/A"},{"$f":"_xlfn.XLOOKUP($E29,'Activity 1'!$B$17:$B$23,'Activity 1'!M$17:M$23,\"N/A\",0,1)","v":"N/A"},{"$f":"_xlfn.XLOOKUP($E29,'Activity 1'!$B$17:$B$23,'Activity 1'!O$17:O$23,\"N/A\",0,1)","v":"N/A"},{"$f":"_xlfn.XLOOKUP($E29,'Activity 1'!$B$17:$B$23,'Activity 1'!Q$17:Q$23,\"N/A\",0,1)","v":"N/A"},{"$f":"_xlfn.XLOOKUP($E29,'Activity 2'!$B$7:$B$13,'Activity 2'!$A$7:$A$13,\"No\",0,1)","v":"No"},{"$f":"_xlfn.XLOOKUP($E29,'Activity 2'!B$7:B$13,'Activity 2'!H$7:H$13,\"N/A\",0)","v":"N/A"},{"$f":"_xlfn.XLOOKUP($E29,'Activity 2'!C$7:C$13,'Activity 2'!I$7:I$13,\"N/A\",0)","v":"N/A"},{"$f":"_xlfn.XLOOKUP($E29,'Activity 2'!D$7:D$13,'Activity 2'!J$7:J$13,\"N/A\",0)","v":"N/A"},{"$f":"_xlfn.XLOOKUP($E29,'Activity 2'!E$7:E$13,'Activity 2'!K$7:K$13,\"N/A\",0)","v":"N/A"},{"$f":"_xlfn.XLOOKUP($E29,'Activity 2'!F$7:F$13,'Activity 2'!L$7:L$13,\"N/A\",0)","v":"N/A"},{"$f":"_xlfn.XLOOKUP($E29,'Activity 2'!G$7:G$13,'Activity 2'!M$7:M$13,\"N/A\",0)","v":"N/A"},{"$f":"_xlfn.XLOOKUP($E29,'Activity 2'!H$7:H$13,'Activity 2'!N$7:N$13,\"N/A\",0)","v":"N/A"},{"$f":"_xlfn.XLOOKUP($E29,'Activity 2'!I$7:I$13,'Activity 2'!O$7:O$13,\"N/A\",0)","v":"N/A"},{"$f":"_xlfn.XLOOKUP($E29,'Activity 2'!J$7:J$13,'Activity 2'!P$7:P$13,\"N/A\",0)","v":"N/A"},{"$f":"_xlfn.XLOOKUP($E29,'Activity 2'!K$7:K$13,'Activity 2'!Q$7:Q$13,\"N/A\",0)","v":"N/A"},{"$f":"_xlfn.XLOOKUP($E29,'Activity 2'!L$7:L$13,'Activity 2'!R$7:R$13,\"N/A\",0)","v":"N/A"},{"$f":"_xlfn.XLOOKUP($E29,'Activity 2'!M$7:M$13,'Activity 2'!S$7:S$13,\"N/A\",0)","v":"N/A"},{"$f":"_xlfn.XLOOKUP($E29,'Activity 2'!N$7:N$13,'Activity 2'!T$7:T$13,\"N/A\",0)","v":"N/A"},{"$f":"_xlfn.XLOOKUP($E29,'Activity 2'!O$7:O$13,'Activity 2'!U$7:U$13,\"N/A\",0)","v":"N/A"},{"$f":"_xlfn.XLOOKUP($E29,'Activity 2'!P$7:P$13,'Activity 2'!V$7:V$13,\"N/A\",0)","v":"N/A"},{"$f":"_xlfn.XLOOKUP($E29,'Activity 2'!$B$17:$B$23,'Activity 2'!C$17:C$23,\"N/A\",0,1)","v":"N/A"},{"$f":"_xlfn.XLOOKUP($E29,'Activity 2'!$B$17:$B$23,'Activity 2'!D$17:D$23,\"N/A\",0,1)","v":"N/A"},{"$f":"_xlfn.XLOOKUP($E29,'Activity 2'!$B$17:$B$23,'Activity 2'!E$17:E$23,\"N/A\",0,1)","v":"N/A"},{"$f":"_xlfn.XLOOKUP($E29,'Activity 2'!$B$17:$B$23,'Activity 2'!F$17:F$23,\"N/A\",0,1)","v":"N/A"},{"$f":"_xlfn.XLOOKUP($E29,'Activity 2'!$B$17:$B$23,'Activity 2'!G$17:G$23,\"N/A\",0,1)","v":"N/A"},{"$f":"_xlfn.XLOOKUP($E29,'Activity 2'!$B$17:$B$23,'Activity 2'!H$17:H$23,\"N/A\",0,1)","v":"N/A"},{"$f":"_xlfn.XLOOKUP($E29,'Activity 2'!$B$17:$B$23,'Activity 2'!I$17:I$23,\"N/A\",0,1)","v":"N/A"},{"$f":"_xlfn.XLOOKUP($E29,'Activity 2'!$B$17:$B$23,'Activity 2'!J$17:J$23,\"N/A\",0,1)","v":"N/A"},{"$f":"_xlfn.XLOOKUP($E29,'Activity 2'!$B$17:$B$23,'Activity 2'!K$17:K$23,\"N/A\",0,1)","v":"N/A"},{"$f":"_xlfn.XLOOKUP($E29,'Activity 2'!$B$17:$B$23,'Activity 2'!L$17:L$23,\"N/A\",0,1)","v":"N/A"},{"$f":"_xlfn.XLOOKUP($E29,'Activity 2'!$B$17:$B$23,'Activity 2'!M$17:M$23,\"N/A\",0,1)","v":"N/A"},{"$f":"_xlfn.XLOOKUP($E29,'Activity 2'!$B$17:$B$23,'Activity 2'!O$17:O$23,\"N/A\",0,1)","v":"N/A"},{"$f":"_xlfn.XLOOKUP($E29,'Activity 2'!$B$17:$B$23,'Activity 2'!Q$17:Q$23,\"N/A\",0,1)","v":"N/A"},null,{"$f":"_xlfn.XLOOKUP($E29,'Activity 3'!$B$8:$B$14,'Activity 3'!K$8:K$14,\"N/A\",0,1)","v":"N/A"},{"$f":"_xlfn.XLOOKUP($E29,'Activity 3'!$B$8:$B$14,'Activity 3'!L$8:L$14,\"N/A\",0,1)","v":"N/A"},{"$f":"_xlfn.XLOOKUP($E29,'Activity 3'!$B$8:$B$14,'Activity 3'!M$8:M$14,\"N/A\",0,1)","v":"N/A"},{"$f":"_xlfn.XLOOKUP($E29,'Activity 3'!$B$8:$B$14,'Activity 3'!N$8:N$14,\"N/A\",0,1)","v":"N/A"},{"$f":"_xlfn.XLOOKUP($E29,'Activity 3'!$B$8:$B$14,'Activity 3'!O$8:O$14,\"N/A\",0,1)","v":"N/A"},{"$f":"_xlfn.XLOOKUP($E29,'Activity 3'!$B$8:$B$14,'Activity 3'!R$8:R$14,\"N/A\",0,1)","v":"N/A"},{"$f":"_xlfn.XLOOKUP($E29,'Activity 4'!$B$8:$B$14,'Activity 4'!$A$8:$A$14,\"No\",0,1)","v":"No"},{"$f":"_xlfn.XLOOKUP($E29,'Activity 4'!$B$8:$B$14,'Activity 4'!L$8:L$14,\"N/A\",0,1)","v":"N/A"},{"$f":"_xlfn.XLOOKUP($E29,'Activity 4'!$B$8:$B$14,'Activity 4'!I$8:I$14,\"N/A\",0,1)","v":"N/A"},{"$f":"_xlfn.XLOOKUP($E29,'Activity 4'!$B$8:$B$14,'Activity 4'!M$8:M$14,\"N/A\",0,1)","v":"N/A"},{"$f":"_xlfn.XLOOKUP($E29,'Activity 5'!$B$8:$B$14,'Activity 5'!$A$8:$A$14,\"No\",0,1)","v":"No"},{"$f":"_xlfn.XLOOKUP($E29,'Activity 5'!$B$8:$B$14,'Activity 5'!J$8:J$14,\"N/A\",0,1)","v":"N/A"},{"$f":"_xlfn.XLOOKUP($E29,'Activity 5'!$B$8:$B$14,'Activity 5'!K$8:K$14,\"N/A\",0,1)","v":"N/A"},{"$f":"_xlfn.XLOOKUP($E29,'Activity 5'!$B$8:$B$14,'Activity 5'!N$8:N$14,\"N/A\",0,1)","v":"N/A"},{"$f":"_xlfn.XLOOKUP($E29,'Activity 5'!$B$8:$B$14,'Activity 5'!O$8:O$14,\"N/A\",0,1)","v":"N/A"},{"$f":"_xlfn.XLOOKUP($E29,'Activity 5'!$B$8:$B$14,'Activity 5'!P$8:P$14,\"N/A\",0,1)","v":"N/A"},{"$f":"_xlfn.XLOOKUP($E29,'Activity 5'!$B$8:$B$14,'Activity 5'!Q$8:Q$14,\"N/A\",0,1)","v":"N/A"},{"$f":"_xlfn.XLOOKUP($E29,'Activity 5'!$B$8:$B$14,'Activity 5'!R$8:R$14,\"N/A\",0,1)","v":"N/A"},{"$f":"_xlfn.XLOOKUP($E29,'Activity 6'!$B$7:$B$13,'Activity 6'!A$7:A$13,\"No\",0,1)","v":"No"},{"$f":"_xlfn.XLOOKUP($E29,'Activity 6'!$B$7:$B$13,'Activity 6'!K$7:K$13,\"N/A\",0,1)","v":"N/A"},{"$f":"_xlfn.XLOOKUP($E29,'Activity 6'!$B$7:$B$13,'Activity 6'!L$7:L$13,\"N/A\",0,1)","v":"N/A"},{"$f":"_xlfn.XLOOKUP($E29,'Activity 6'!$B$7:$B$13,'Activity 6'!M$7:M$13,\"N/A\",0,1)","v":"N/A"},{"$f":"_xlfn.XLOOKUP($E29,'Activity 6'!$B$7:$B$13,'Activity 6'!N$7:N$13,\"N/A\",0,1)","v":"N/A"},{"$f":"_xlfn.XLOOKUP($E29,'Activity 6'!$B$7:$B$13,'Activity 6'!O$7:O$13,\"N/A\",0,1)","v":"N/A"},{"$f":"_xlfn.XLOOKUP($E29,'Activity 6'!$B$7:$B$13,'Activity 6'!P$7:P$13,\"N/A\",0,1)","v":"N/A"},{"$f":"_xlfn.XLOOKUP($E29,'Activity 6'!$B$7:$B$13,'Activity 6'!Q$7:Q$13,\"N/A\",0,1)","v":"N/A"},{"$f":"_xlfn.XLOOKUP($E29,'Activity 6'!$B$7:$B$13,'Activity 6'!R$7:R$13,\"N/A\",0,1)","v":"N/A"},{"$f":"_xlfn.XLOOKUP($E29,'Activity 6'!$B$7:$B$13,'Activity 6'!S$7:S$13,\"N/A\",0,1)","v":"N/A"},{"$f":"_xlfn.XLOOKUP($E29,'Activity 6'!$B$7:$B$13,'Activity 6'!T$7:T$13,\"N/A\",0,1)","v":"N/A"},{"$f":"_xlfn.XLOOKUP($E29,'Activity 6'!$B$7:$B$13,'Activity 6'!U$7:U$13,\"N/A\",0,1)","v":"N/A"},{"$f":"_xlfn.XLOOKUP($E29,'Activity 6'!$B$22:$B$28,'Activity 6'!C$22:C$28,\"N/A\",0,1)","v":"N/A"},{"$f":"_xlfn.XLOOKUP($E29,'Activity 6'!$B$22:$B$28,'Activity 6'!D$22:D$28,\"N/A\",0,1)","v":"N/A"},{"$f":"_xlfn.XLOOKUP($E29,'Activity 6'!$B$22:$B$28,'Activity 6'!E$22:E$28,\"N/A\",0,1)","v":"N/A"},{"$f":"_xlfn.XLOOKUP($E29,'Activity 6'!$B$22:$B$28,'Activity 6'!F$22:F$28,\"N/A\",0,1)","v":"N/A"},{"$f":"_xlfn.XLOOKUP($E29,'Activity 6'!$B$22:$B$28,'Activity 6'!G$22:G$28,\"N/A\",0,1)","v":"N/A"},{"$f":"_xlfn.XLOOKUP($E29,'Activity 6'!$B$22:$B$28,'Activity 6'!H$22:H$28,\"N/A\",0,1)","v":"N/A"},{"$f":"_xlfn.XLOOKUP($E29,'Activity 6'!$B$22:$B$28,'Activity 6'!I$22:I$28,\"N/A\",0,1)","v":"N/A"},{"$f":"_xlfn.XLOOKUP($E29,'Activity 6'!$B$22:$B$28,'Activity 6'!J$22:J$28,\"N/A\",0,1)","v":"N/A"},{"$f":"_xlfn.XLOOKUP($E29,'Activity 6'!$B$22:$B$28,'Activity 6'!K$22:K$28,\"N/A\",0,1)","v":"N/A"},{"$f":"_xlfn.XLOOKUP($E29,'Activity 6'!$B$22:$B$28,'Activity 6'!L$22:L$28,\"N/A\",0,1)","v":"N/A"},{"$f":"_xlfn.XLOOKUP($E29,'Activity 6'!$B$22:$B$28,'Activity 6'!M$22:M$28,\"N/A\",0,1)","v":"N/A"},{"$f":"_xlfn.XLOOKUP($E29,'Activity 6'!$B$22:$B$28,'Activity 6'!N$22:N$28,\"N/A\",0,1)","v":"N/A"},{"$f":"_xlfn.XLOOKUP($E29,'Activity 6'!$B$32:$B$38,'Activity 6'!C$32:C$38,\"N/A\",0,1)","v":"N/A"},{"$f":"_xlfn.XLOOKUP($E29,'Activity 6'!$B$32:$B$38,'Activity 6'!D$32:D$38,\"N/A\",0,1)","v":"N/A"},{"$f":"_xlfn.XLOOKUP($E29,'Activity 6'!$B$32:$B$38,'Activity 6'!E$32:E$38,\"N/A\",0,1)","v":"N/A"},{"$f":"_xlfn.XLOOKUP($E29,'Activity 6'!$B$32:$B$38,'Activity 6'!F$32:F$38,\"N/A\",0,1)","v":"N/A"},{"$f":"_xlfn.XLOOKUP($E29,'Activity 6'!$B$32:$B$38,'Activity 6'!G$32:G$38,\"N/A\",0,1)","v":"N/A"},{"$f":"_xlfn.XLOOKUP($E29,'Activity 6'!$B$32:$B$38,'Activity 6'!H$32:H$38,\"N/A\",0,1)","v":"N/A"},{"$f":"_xlfn.XLOOKUP($E29,'Activity 6'!$B$32:$B$38,'Activity 6'!I$32:I$38,\"N/A\",0,1)","v":"N/A"},{"$f":"_xlfn.XLOOKUP($E29,'Activity 6'!$B$32:$B$38,'Activity 6'!J$32:J$38,\"N/A\",0,1)","v":"N/A"},{"$f":"_xlfn.XLOOKUP($E29,'Activity 6'!$B$32:$B$38,'Activity 6'!K$32:K$38,\"N/A\",0,1)","v":"N/A"},{"$f":"_xlfn.XLOOKUP($E29,'Activity 6'!$B$32:$B$38,'Activity 6'!M$32:M$38,\"N/A\",0,1)","v":"N/A"},{"$f":"_xlfn.XLOOKUP($E29,'Activity 7'!$B$7:$B$13,'Activity 7'!$A$7:$A$13,\"No\",0,1)","v":"No"},{"$f":"_xlfn.XLOOKUP($E29,'Activity 7'!$B$7:$B$13,'Activity 7'!M$7:M$13,\"N/A\",0,1)","v":"N/A"},{"$f":"_xlfn.XLOOKUP($E29,'Activity 7'!$B$7:$B$13,'Activity 7'!K$7:K$13,\"N/A\",0,1)","v":"N/A"},{"$f":"_xlfn.XLOOKUP($E29,'Activity 7'!$B$7:$B$13,'Activity 7'!N$7:N$13,\"N/A\",0,1)","v":"N/A"},{"$f":"_xlfn.XLOOKUP($E29,'Activity 7'!$B$7:$B$13,'Activity 7'!O$7:O$13,\"N/A\",0,1)","v":"N/A"},{"$f":"_xlfn.XLOOKUP($E29,'Activity 7'!$B$7:$B$13,'Activity 7'!P$7:P$13,\"N/A\",0,1)","v":"N/A"},{"$f":"_xlfn.XLOOKUP($E29,'Activity 7'!$B$7:$B$13,'Activity 7'!Q$7:Q$13,\"N/A\",0,1)","v":"N/A"},{"$f":"_xlfn.XLOOKUP($E29,'Activity 7'!$B$7:$B$13,'Activity 7'!R$7:R$13,\"N/A\",0,1)","v":"N/A"},{"$f":"_xlfn.XLOOKUP($E29,'Activity 7'!$B$7:$B$13,'Activity 7'!S$7:S$13,\"N/A\",0,1)","v":"N/A"},{"$f":"_xlfn.XLOOKUP($E29,'Activity 7'!$B$7:$B$13,'Activity 7'!T$7:T$13,\"N/A\",0,1)","v":"N/A"},{"$f":"_xlfn.XLOOKUP($E29,'Activity 7'!$B$7:$B$13,'Activity 7'!U$7:U$13,\"N/A\",0,1)","v":"N/A"},{"$f":"_xlfn.XLOOKUP($E29,'Activity 7'!$B$7:$B$13,'Activity 7'!V$7:V$13,\"N/A\",0,1)","v":"N/A"},{"$f":"_xlfn.XLOOKUP($E29,'Activity 7'!$B$17:$B$23,'Activity 7'!E$17:E$23,\"N/A\",0,1)","v":"N/A"},{"$f":"_xlfn.XLOOKUP($E29,'Activity 7'!$B$17:$B$23,'Activity 7'!G$17:G$23,\"N/A\",0,1)","v":"N/A"},{"$f":"_xlfn.XLOOKUP($E29,'Activity 7'!$B$17:$B$23,'Activity 7'!I$17:I$23,\"N/A\",0,1)","v":"N/A"},{"$f":"_xlfn.XLOOKUP($E29,'Activity 7'!$B$17:$B$23,'Activity 7'!J$17:J$23,\"N/A\",0,1)","v":"N/A"},{"$f":"_xlfn.XLOOKUP($E29,'Activity 7'!$B$17:$B$23,'Activity 7'!K$17:K$23,\"N/A\",0,1)","v":"N/A"},{"$f":"_xlfn.XLOOKUP($E29,'Activity 7'!$B$17:$B$23,'Activity 7'!L$17:L$23,\"N/A\",0,1)","v":"N/A"},{"$f":"_xlfn.XLOOKUP($E29,'Activity 7'!$B$17:$B$23,'Activity 7'!M$17:M$23,\"N/A\",0,1)","v":"N/A"},{"$f":"_xlfn.XLOOKUP($E29,'Activity 7'!$B$17:$B$23,'Activity 7'!N$17:N$23,\"N/A\",0,1)","v":"N/A"},{"$f":"_xlfn.XLOOKUP($E29,'Activity 7'!$B$17:$B$23,'Activity 7'!P$17:P$23,\"N/A\",0,1)","v":"N/A"},{"$f":"_xlfn.XLOOKUP($E29,'Activity 8'!$B$7:$B$13,'Activity 8'!A$7:A$13,\"No\",0,1)","v":"No"},{"$f":"_xlfn.XLOOKUP($E29,'Activity 8'!$B$7:$B$13,'Activity 8'!I$7:I$13,\"N/A\",0,1)","v":"N/A"},{"$f":"_xlfn.XLOOKUP($E29,'Activity 8'!$B$7:$B$13,'Activity 8'!J$7:J$13,\"N/A\",0,1)","v":"N/A"},{"$f":"_xlfn.XLOOKUP($E29,'Activity 8'!$B$7:$B$13,'Activity 8'!K$7:K$13,\"N/A\",0,1)","v":"N/A"},{"$f":"_xlfn.XLOOKUP($E29,'Activity 8'!$B$7:$B$13,'Activity 8'!L$7:L$13,\"N/A\",0,1)","v":"N/A"},{"$f":"_xlfn.XLOOKUP($E29,'Activity 8'!$B$7:$B$13,'Activity 8'!M$7:M$13,\"N/A\",0,1)","v":"N/A"},{"$f":"_xlfn.XLOOKUP($E29,'Activity 8'!$B$7:$B$13,'Activity 8'!N$7:N$13,\"N/A\",0,1)","v":"N/A"},{"$f":"_xlfn.XLOOKUP($E29,'Activity 8'!$B$7:$B$13,'Activity 8'!O$7:O$13,\"N/A\",0,1)","v":"N/A"},{"$f":"_xlfn.XLOOKUP($E29,'Activity 8'!$B$7:$B$13,'Activity 8'!P$7:P$13,\"N/A\",0,1)","v":"N/A"},{"$f":"_xlfn.XLOOKUP($E29,'Activity 8'!$B$7:$B$13,'Activity 8'!Q$7:Q$13,\"N/A\",0,1)","v":"N/A"},{"$f":"_xlfn.XLOOKUP($E29,'Activity 8'!$B$7:$B$13,'Activity 8'!R$7:R$13,\"N/A\",0,1)","v":"N/A"},{"$f":"_xlfn.XLOOKUP($E29,'Activity 8'!$B$7:$B$13,'Activity 8'!S$7:S$13,\"N/A\",0,1)","v":"N/A"},{"$f":"_xlfn.XLOOKUP($E29,'Activity 8'!$B$7:$B$13,'Activity 8'!T$7:T$13,\"N/A\",0,1)","v":"N/A"},{"$f":"_xlfn.XLOOKUP($E29,'Activity 8'!$B$7:$B$13,'Activity 8'!U$7:U$13,\"N/A\",0,1)","v":"N/A"},{"$f":"_xlfn.XLOOKUP($E29,'Activity 8'!$B$7:$B$13,'Activity 8'!V$7:V$13,\"N/A\",0,1)","v":"N/A"},{"$f":"_xlfn.XLOOKUP($E29,'Activity 8'!$B$17:$B$23,'Activity 8'!D$17:D$23,\"N/A\",0,1)","v":"N/A"},{"$f":"_xlfn.XLOOKUP($E29,'Activity 8'!$B$17:$B$23,'Activity 8'!E$17:E$23,\"N/A\",0,1)","v":"N/A"},{"$f":"_xlfn.XLOOKUP($E29,'Activity 8'!$B$17:$B$23,'Activity 8'!F$17:F$23,\"N/A\",0,1)","v":"N/A"},{"$f":"_xlfn.XLOOKUP($E29,'Activity 8'!$B$17:$B$23,'Activity 8'!G$17:G$23,\"N/A\",0,1)","v":"N/A"},{"$f":"_xlfn.XLOOKUP($E29,'Activity 8'!$B$17:$B$23,'Activity 8'!H$17:H$23,\"N/A\",0,1)","v":"N/A"},{"$f":"_xlfn.XLOOKUP($E29,'Activity 8'!$B$17:$B$23,'Activity 8'!I$17:I$23,\"N/A\",0,1)","v":"N/A"},{"$f":"_xlfn.XLOOKUP($E29,'Activity 8'!$B$17:$B$23,'Activity 8'!J$17:J$23,\"N/A\",0,1)","v":"N/A"},{"$f":"_xlfn.XLOOKUP($E29,'Activity 8'!$B$17:$B$23,'Activity 8'!K$17:K$23,\"N/A\",0,1)","v":"N/A"},{"$f":"_xlfn.XLOOKUP($E29,'Activity 8'!$B$17:$B$23,'Activity 8'!L$17:L$23,\"N/A\",0,1)","v":"N/A"},{"$f":"_xlfn.XLOOKUP($E29,'Activity 8'!$B$17:$B$23,'Activity 8'!M$17:M$23,\"N/A\",0,1)","v":"N/A"},{"$f":"_xlfn.XLOOKUP($E29,'Activity 8'!$B$17:$B$23,'Activity 8'!N$17:N$23,\"N/A\",0,1)","v":"N/A"},{"$f":"_xlfn.XLOOKUP($E29,'Activity 8'!$B$17:$B$23,'Activity 8'!P$17:P$23,\"N/A\",0,1)","v":"N/A"},{"$f":"_xlfn.XLOOKUP(E29,'Activity 9'!$B$7:$B$13,'Activity 9'!$A$7:$A$13,\"No\",0,1)","v":"No"},{"$f":"_xlfn.XLOOKUP($E29,'Activity 9'!$B$7:$B$13,'Activity 9'!J$7:J$13,\"N/A\",0,1)","v":"N/A"},{"$f":"_xlfn.XLOOKUP($E29,'Activity 9'!$B$7:$B$13,'Activity 9'!K$7:K$13,\"N/A\",0,1)","v":"N/A"},{"$f":"_xlfn.XLOOKUP($E29,'Activity 9'!$B$7:$B$13,'Activity 9'!L$7:L$13,\"N/A\",0,1)","v":"N/A"},{"$f":"_xlfn.XLOOKUP($E29,'Activity 9'!$B$7:$B$13,'Activity 9'!M$7:M$13,\"N/A\",0,1)","v":"N/A"},{"$f":"_xlfn.XLOOKUP($E29,'Activity 9'!$B$7:$B$13,'Activity 9'!N$7:N$13,\"N/A\",0,1)","v":"N/A"},{"$f":"_xlfn.XLOOKUP($E29,'Activity 9'!$B$7:$B$13,'Activity 9'!O$7:O$13,\"N/A\",0,1)","v":"N/A"},{"$f":"_xlfn.XLOOKUP($E29,'Activity 9'!$B$7:$B$13,'Activity 9'!P$7:P$13,\"N/A\",0,1)","v":"N/A"},{"$f":"_xlfn.XLOOKUP($E29,'Activity 9'!$B$7:$B$13,'Activity 9'!Q$7:Q$13,\"N/A\",0,1)","v":"N/A"},{"$f":"_xlfn.XLOOKUP($E29,'Activity 9'!$B$7:$B$13,'Activity 9'!R$7:R$13,\"N/A\",0,1)","v":"N/A"},{"$f":"_xlfn.XLOOKUP($E29,'Activity 9'!$B$7:$B$13,'Activity 9'!S$7:S$13,\"N/A\",0,1)","v":"N/A"},{"$f":"_xlfn.XLOOKUP($E29,'Activity 9'!$B$7:$B$13,'Activity 9'!T$7:T$13,\"N/A\",0,1)","v":"N/A"},{"$f":"_xlfn.XLOOKUP($E29,'Activity 9'!$B$17:$B$23,'Activity 9'!E$17:E$23,\"N/A\",0,1)","v":"N/A"},{"$f":"_xlfn.XLOOKUP($E29,'Activity 9'!$B$17:$B$23,'Activity 9'!F$17:F$23,\"N/A\",0,1)","v":"N/A"},{"$f":"_xlfn.XLOOKUP($E29,'Activity 9'!$B$17:$B$23,'Activity 9'!G$17:G$23,\"N/A\",0,1)","v":"N/A"},{"$f":"_xlfn.XLOOKUP($E29,'Activity 9'!$B$17:$B$23,'Activity 9'!H$17:H$23,\"N/A\",0,1)","v":"N/A"},{"$f":"_xlfn.XLOOKUP($E29,'Activity 9'!$B$17:$B$23,'Activity 9'!I$17:I$23,\"N/A\",0,1)","v":"N/A"},{"$f":"_xlfn.XLOOKUP($E29,'Activity 9'!$B$17:$B$23,'Activity 9'!J$17:J$23,\"N/A\",0,1)","v":"N/A"},{"$f":"_xlfn.XLOOKUP($E29,'Activity 9'!$B$17:$B$23,'Activity 9'!K$17:K$23,\"N/A\",0,1)","v":"N/A"},{"$f":"_xlfn.XLOOKUP($E29,'Activity 9'!$B$17:$B$23,'Activity 9'!L$17:L$23,\"N/A\",0,1)","v":"N/A"},{"$f":"_xlfn.XLOOKUP($E29,'Activity 9'!$B$17:$B$23,'Activity 9'!N$17:N$23,\"N/A\",0,1)","v":"N/A"},{"$f":"_xlfn.XLOOKUP($E29,'Activity 9'!$B$17:$B$23,'Activity 9'!O$17:O$23,\"N/A\",0,1)","v":"N/A"},{"$f":"_xlfn.XLOOKUP($E29,'Activity 9'!$B$17:$B$23,'Activity 9'!Q$17:Q$23,\"N/A\",0,1)","v":"N/A"},{"$f":"_xlfn.XLOOKUP($E29,'Activity 10'!$B$7:$B$13,'Activity 10'!A$7:A$13,\"No\",0,1)","v":"No"},{"$f":"_xlfn.XLOOKUP($E29,'Activity 10'!$B$7:$B$13,'Activity 10'!J$7:J$13,\"N/A\",0,1)","v":"N/A"},{"$f":"_xlfn.XLOOKUP($E29,'Activity 10'!$B$7:$B$13,'Activity 10'!K$7:K$13,\"N/A\",0,1)","v":"N/A"},{"$f":"_xlfn.XLOOKUP($E29,'Activity 10'!$B$7:$B$13,'Activity 10'!L$7:L$13,\"N/A\",0,1)","v":"N/A"},{"$f":"_xlfn.XLOOKUP($E29,'Activity 10'!$B$7:$B$13,'Activity 10'!M$7:M$13,\"N/A\",0,1)","v":"N/A"},{"$f":"_xlfn.XLOOKUP($E29,'Activity 10'!$B$7:$B$13,'Activity 10'!N$7:N$13,\"N/A\",0,1)","v":"N/A"},{"$f":"_xlfn.XLOOKUP($E29,'Activity 10'!$B$7:$B$13,'Activity 10'!O$7:O$13,\"N/A\",0,1)","v":"N/A"},{"$f":"_xlfn.XLOOKUP($E29,'Activity 10'!$B$7:$B$13,'Activity 10'!P$7:P$13,\"N/A\",0,1)","v":"N/A"},{"$f":"_xlfn.XLOOKUP($E29,'Activity 10'!$B$7:$B$13,'Activity 10'!Q$7:Q$13,\"N/A\",0,1)","v":"N/A"},{"$f":"_xlfn.XLOOKUP($E29,'Activity 10'!$B$7:$B$13,'Activity 10'!R$7:R$13,\"N/A\",0,1)","v":"N/A"},{"$f":"_xlfn.XLOOKUP($E29,'Activity 10'!$B$7:$B$13,'Activity 10'!S$7:S$13,\"N/A\",0,1)","v":"N/A"},{"$f":"_xlfn.XLOOKUP($E29,'Activity 10'!$B$7:$B$13,'Activity 10'!T$7:T$13,\"N/A\",0,1)","v":"N/A"},{"$f":"_xlfn.XLOOKUP($E29,'Activity 10'!$B$7:$B$13,'Activity 10'!U$7:U$13,\"N/A\",0,1)","v":"N/A"},{"$f":"_xlfn.XLOOKUP($E29,'Activity 10'!$B$7:$B$13,'Activity 10'!V$7:V$13,\"N/A\",0,1)","v":"N/A"},{"$f":"_xlfn.XLOOKUP($E29,'Activity 10'!$B$17:$B$23,'Activity 10'!E$17:E$23,\"N/A\",0,1)","v":"N/A"},{"$f":"_xlfn.XLOOKUP($E29,'Activity 10'!$B$17:$B$23,'Activity 10'!F$17:F$23,\"N/A\",0,1)","v":"N/A"},{"$f":"_xlfn.XLOOKUP($E29,'Activity 10'!$B$17:$B$23,'Activity 10'!G$17:G$23,\"N/A\",0,1)","v":"N/A"},{"$f":"_xlfn.XLOOKUP($E29,'Activity 10'!$B$17:$B$23,'Activity 10'!H$17:H$23,\"N/A\",0,1)","v":"N/A"},{"$f":"_xlfn.XLOOKUP($E29,'Activity 10'!$B$17:$B$23,'Activity 10'!I$17:I$23,\"N/A\",0,1)","v":"N/A"},{"$f":"_xlfn.XLOOKUP($E29,'Activity 10'!$B$17:$B$23,'Activity 10'!J$17:J$23,\"N/A\",0,1)","v":"N/A"},{"$f":"_xlfn.XLOOKUP($E29,'Activity 10'!$B$17:$B$23,'Activity 10'!K$17:K$23,\"N/A\",0,1)","v":"N/A"},{"$f":"_xlfn.XLOOKUP($E29,'Activity 10'!$B$17:$B$23,'Activity 10'!L$17:L$23,\"N/A\",0,1)","v":"N/A"},{"$f":"_xlfn.XLOOKUP($E29,'Activity 10'!$B$17:$B$23,'Activity 10'!M$17:M$23,\"N/A\",0,1)","v":"N/A"},{"$f":"_xlfn.XLOOKUP($E29,'Activity 10'!$B$17:$B$23,'Activity 10'!N$17:N$23,\"N/A\",0,1)","v":"N/A"},{"$f":"_xlfn.XLOOKUP($E29,'Activity 10'!$B$17:$B$23,'Activity 10'!P$17:P$23,\"N/A\",0,1)","v":"N/A"},{"$f":"_xlfn.XLOOKUP($E29,'Competitive Activity 1'!B$7:B$13,'Competitive Activity 1'!A$7:A$13,\"No\",0,1)","v":"No"},{"$f":"_xlfn.XLOOKUP($E29,'Competitive Activity 1'!$B$7:$B$13,'Competitive Activity 1'!H$7:H$13,\"N/A\",0,1)","v":"N/A"},{"$f":"_xlfn.XLOOKUP($E29,'Competitive Activity 1'!$B$7:$B$13,'Competitive Activity 1'!I$7:I$13,\"N/A\",0,1)","v":"N/A"},{"$f":"_xlfn.XLOOKUP($E29,'Competitive Activity 1'!$B$7:$B$13,'Competitive Activity 1'!J$7:J$13,\"N/A\",0,1)","v":"N/A"},{"$f":"_xlfn.XLOOKUP($E29,'Competitive Activity 1'!$B$7:$B$13,'Competitive Activity 1'!K$7:K$13,\"N/A\",0,1)","v":"N/A"},{"$f":"_xlfn.XLOOKUP($E29,'Competitive Activity 1'!$B$7:$B$13,'Competitive Activity 1'!L$7:L$13,\"N/A\",0,1)","v":"N/A"},{"$f":"_xlfn.XLOOKUP($E29,'Competitive Activity 1'!$B$7:$B$13,'Competitive Activity 1'!M$7:M$13,\"N/A\",0,1)","v":"N/A"},{"$f":"_xlfn.XLOOKUP($E29,'Competitive Activity 1'!$B$7:$B$13,'Competitive Activity 1'!N$7:N$13,\"N/A\",0,1)","v":"N/A"},{"$f":"_xlfn.XLOOKUP($E29,'Competitive Activity 1'!$B$7:$B$13,'Competitive Activity 1'!O$7:O$13,\"N/A\",0,1)","v":"N/A"},{"$f":"_xlfn.XLOOKUP($E29,'Competitive Activity 1'!$B$7:$B$13,'Competitive Activity 1'!P$7:P$13,\"N/A\",0,1)","v":"N/A"},{"$f":"_xlfn.XLOOKUP($E29,'Competitive Activity 1'!$B$7:$B$13,'Competitive Activity 1'!Q$7:Q$13,\"N/A\",0,1)","v":"N/A"},{"$f":"_xlfn.XLOOKUP($E29,'Competitive Activity 1'!$B$7:$B$13,'Competitive Activity 1'!R$7:R$13,\"N/A\",0,1)","v":"N/A"},{"$f":"_xlfn.XLOOKUP($E29,'Competitive Activity 1'!$B$7:$B$13,'Competitive Activity 1'!S$7:S$13,\"N/A\",0,1)","v":"N/A"},{"$f":"_xlfn.XLOOKUP($E29,'Competitive Activity 1'!$B$7:$B$13,'Competitive Activity 1'!T$7:T$13,\"N/A\",0,1)","v":"N/A"},{"$f":"_xlfn.XLOOKUP($E29,'Competitive Activity 1'!$B$7:$B$13,'Competitive Activity 1'!U$7:U$13,\"N/A\",0,1)","v":"N/A"},{"$f":"_xlfn.XLOOKUP($E29,'Competitive Activity 1'!$B$17:$B$23,'Competitive Activity 1'!C$17:C$23,\"N/A\",0,1)","v":"N/A"},{"$f":"_xlfn.XLOOKUP($E29,'Competitive Activity 1'!$B$17:$B$23,'Competitive Activity 1'!D$17:D$23,\"N/A\",0,1)","v":"N/A"},{"$f":"_xlfn.XLOOKUP($E29,'Competitive Activity 1'!$B$17:$B$23,'Competitive Activity 1'!E$17:E$23,\"N/A\",0,1)","v":"N/A"},{"$f":"_xlfn.XLOOKUP($E29,'Competitive Activity 1'!$B$17:$B$23,'Competitive Activity 1'!F$17:F$23,\"N/A\",0,1)","v":"N/A"},{"$f":"_xlfn.XLOOKUP($E29,'Competitive Activity 1'!$B$17:$B$23,'Competitive Activity 1'!G$17:G$23,\"N/A\",0,1)","v":"N/A"},{"$f":"_xlfn.XLOOKUP($E29,'Competitive Activity 1'!$B$17:$B$23,'Competitive Activity 1'!H$17:H$23,\"N/A\",0,1)","v":"N/A"},{"$f":"_xlfn.XLOOKUP($E29,'Competitive Activity 1'!$B$17:$B$23,'Competitive Activity 1'!I$17:I$23,\"N/A\",0,1)","v":"N/A"},{"$f":"_xlfn.XLOOKUP($E29,'Competitive Activity 1'!$B$17:$B$23,'Competitive Activity 1'!J$17:J$23,\"N/A\",0,1)","v":"N/A"},{"$f":"_xlfn.XLOOKUP($E29,'Competitive Activity 1'!$B$17:$B$23,'Competitive Activity 1'!K$17:K$23,\"N/A\",0,1)","v":"N/A"},{"$f":"_xlfn.XLOOKUP($E29,'Competitive Activity 1'!$B$17:$B$23,'Competitive Activity 1'!M$17:M$23,\"N/A\",0,1)","v":"N/A"},{"$f":"_xlfn.XLOOKUP($E29,'Competitive Activity 1'!$B$17:$B$23,'Competitive Activity 1'!N$17:N$23,\"N/A\",0,1)","v":"N/A"},{"$f":"_xlfn.XLOOKUP($E29,'Competitive Activity 1'!$B$17:$B$23,'Competitive Activity 1'!P$17:P$23,\"N/A\",0,1)","v":"N/A"},{"$f":"_xlfn.XLOOKUP($E29,'Competitive Activity 2'!$B$7:$B$13,'Competitive Activity 2'!A$7:A$13,\"No\",0)","v":"No"},{"$f":"_xlfn.XLOOKUP($E29,'Competitive Activity 2'!$B$7:$B$13,'Competitive Activity 2'!L$7:L$13,\"N/A\",0)","v":"N/A"},{"$f":"_xlfn.XLOOKUP($E29,'Competitive Activity 2'!$B$7:$B$13,'Competitive Activity 2'!M$7:M$13,\"N/A\",0)","v":"N/A"},{"$f":"_xlfn.XLOOKUP($E29,'Competitive Activity 2'!$B$7:$B$13,'Competitive Activity 2'!N$7:N$13,\"N/A\",0)","v":"N/A"},{"$f":"_xlfn.XLOOKUP($E29,'Competitive Activity 2'!$B$7:$B$13,'Competitive Activity 2'!O$7:O$13,\"N/A\",0)","v":"N/A"},{"$f":"_xlfn.XLOOKUP($E29,'Competitive Activity 2'!$B$7:$B$13,'Competitive Activity 2'!P$7:P$13,\"N/A\",0)","v":"N/A"},{"$f":"_xlfn.XLOOKUP($E29,'Competitive Activity 2'!$B$7:$B$13,'Competitive Activity 2'!Q$7:Q$13,\"N/A\",0)","v":"N/A"},{"$f":"_xlfn.XLOOKUP($E29,'Competitive Activity 2'!$B$7:$B$13,'Competitive Activity 2'!R$7:R$13,\"N/A\",0)","v":"N/A"},{"$f":"_xlfn.XLOOKUP($E29,'Competitive Activity 2'!$B$7:$B$13,'Competitive Activity 2'!S$7:S$13,\"N/A\",0)","v":"N/A"},{"$f":"_xlfn.XLOOKUP($E29,'Competitive Activity 2'!$B$7:$B$13,'Competitive Activity 2'!T$7:T$13,\"N/A\",0)","v":"N/A"},{"$f":"_xlfn.XLOOKUP($E29,'Competitive Activity 2'!$B$7:$B$13,'Competitive Activity 2'!U$7:U$13,\"N/A\",0)","v":"N/A"},{"$f":"_xlfn.XLOOKUP($E29,'Competitive Activity 2'!$B$17:$B$23,'Competitive Activity 2'!D$17:D$23,\"N/A\",0)","v":"N/A"},{"$f":"_xlfn.XLOOKUP($E29,'Competitive Activity 2'!$B$17:$B$23,'Competitive Activity 2'!E$17:E$23,\"N/A\",0)","v":"N/A"},{"$f":"_xlfn.XLOOKUP($E29,'Competitive Activity 2'!$B$17:$B$23,'Competitive Activity 2'!F$17:F$23,\"N/A\",0)","v":"N/A"},{"$f":"_xlfn.XLOOKUP($E29,'Competitive Activity 2'!$B$17:$B$23,'Competitive Activity 2'!G$17:G$23,\"N/A\",0)","v":"N/A"},{"$f":"_xlfn.XLOOKUP($E29,'Competitive Activity 2'!$B$17:$B$23,'Competitive Activity 2'!H$17:H$23,\"N/A\",0)","v":"N/A"},{"$f":"_xlfn.XLOOKUP($E29,'Competitive Activity 2'!$B$17:$B$23,'Competitive Activity 2'!I$17:I$23,\"N/A\",0)","v":"N/A"},{"$f":"_xlfn.XLOOKUP($E29,'Competitive Activity 2'!$B$17:$B$23,'Competitive Activity 2'!J$17:J$23,\"N/A\",0)","v":"N/A"},{"$f":"_xlfn.XLOOKUP($E29,'Competitive Activity 2'!$B$17:$B$23,'Competitive Activity 2'!K$17:K$23,\"N/A\",0)","v":"N/A"},{"$f":"_xlfn.XLOOKUP($E29,'Competitive Activity 2'!$B$17:$B$23,'Competitive Activity 2'!L$17:L$23,\"N/A\",0)","v":"N/A"},{"$f":"_xlfn.XLOOKUP($E29,'Competitive Activity 2'!$B$17:$B$23,'Competitive Activity 2'!M$17:M$23,\"N/A\",0)","v":"N/A"},{"$f":"_xlfn.XLOOKUP($E29,'Competitive Activity 2'!$B$17:$B$23,'Competitive Activity 2'!N$17:N$23,\"N/A\",0)","v":"N/A"},{"$f":"_xlfn.XLOOKUP($E29,'Competitive Activity 2'!$B$27:$B$33,'Competitive Activity 2'!D$27:D$33,\"N/A\",0)","v":"N/A"},{"$f":"_xlfn.XLOOKUP($E29,'Competitive Activity 2'!$B$27:$B$33,'Competitive Activity 2'!E$27:E$33,\"N/A\",0)","v":"N/A"},{"$f":"_xlfn.XLOOKUP($E29,'Competitive Activity 2'!$B$27:$B$33,'Competitive Activity 2'!F$27:F$33,\"N/A\",0)","v":"N/A"},{"$f":"_xlfn.XLOOKUP($E29,'Competitive Activity 2'!$B$27:$B$33,'Competitive Activity 2'!G$27:G$33,\"N/A\",0)","v":"N/A"},{"$f":"_xlfn.XLOOKUP($E29,'Competitive Activity 2'!$B$27:$B$33,'Competitive Activity 2'!H$27:H$33,\"N/A\",0)","v":"N/A"},{"$f":"_xlfn.XLOOKUP($E29,'Competitive Activity 2'!$B$27:$B$33,'Competitive Activity 2'!I$27:I$33,\"N/A\",0)","v":"N/A"},{"$f":"_xlfn.XLOOKUP($E29,'Competitive Activity 2'!$B$27:$B$33,'Competitive Activity 2'!J$27:J$33,\"N/A\",0)","v":"N/A"},{"$f":"_xlfn.XLOOKUP($E29,'Competitive Activity 2'!$B$27:$B$33,'Competitive Activity 2'!K$27:K$33,\"N/A\",0)","v":"N/A"},{"$f":"_xlfn.XLOOKUP($E29,'Competitive Activity 2'!$B$27:$B$33,'Competitive Activity 2'!M$27:M$33,\"N/A\",0)","v":"N/A"}]
[{"$f":"'1-Cover Sheet'!$C$8","v":"Select One"},{"$f":"'1-Cover Sheet'!$F$8","v":"Select One"},{"$f":"'Summary Sheet'!$D$8","v":0},{"$f":"'Summary Sheet'!$D$10","v":0},{"$f":"'Drop Down Box'!B194","v":0},{"$f":"'Drop Down Box'!C194","v":0},{"$f":"'Drop Down Box'!D194","v":"Select One"},{"$f":"_xlfn.XLOOKUP(E30,'Drop Down Box'!$B$166:$B$249,'Drop Down Box'!$A$166:$A$249,\"Unknown\",0)","v":"Activity 1"},{"$f":"_xlfn.XLOOKUP($E30,'Activity 5'!$B$8:$B$14,'Activity 5'!$L$8:$L$14,\"N/A\",0)","v":"N/A"},{"$f":"_xlfn.XLOOKUP($E30,'Activity 5'!$B$8:$B$14,'Activity 5'!$M$8:$M$14,\"N/A\",0)","v":"N/A"},{"$f":"_xlfn.XLOOKUP($E30,'Activity 5'!$B$8:$B$14,'Activity 5'!$G$8:$G$14,\"N/A\",0)","v":"N/A"},{"$f":"_xlfn.XLOOKUP($E30,'Activity 5'!$B$8:$B$14,'Activity 5'!H$8:H$14,\"N/A\",0)","v":"N/A"},{"$f":"_xlfn.XLOOKUP($E30,'Activity 5'!$B$8:$B$14,'Activity 5'!I$8:I$14,\"N/A\",0)","v":"N/A"},{"$f":"_xlfn.XLOOKUP($E30,'Activity 1'!$B$7:$B$13,'Activity 1'!$A$7:$A$13,\"No\",0,1)","v":"No"},{"$f":"_xlfn.XLOOKUP($E30,'Activity 1'!$B$7:$B$13,'Activity 1'!$H$7:$H$13,\"N/A\",0,1)","v":"N/A"},{"$f":"_xlfn.XLOOKUP($E30,'Activity 1'!$B$7:$B$13,'Activity 1'!I$7:I$13,\"N/A\",0,1)","v":"N/A"},{"$f":"_xlfn.XLOOKUP($E30,'Activity 1'!$B$7:$B$13,'Activity 1'!J$7:J$13,\"N/A\",0,1)","v":"N/A"},{"$f":"_xlfn.XLOOKUP($E30,'Activity 1'!$B$7:$B$13,'Activity 1'!K$7:K$13,\"N/A\",0,1)","v":"N/A"},{"$f":"_xlfn.XLOOKUP($E30,'Activity 1'!$B$7:$B$13,'Activity 1'!L$7:L$13,\"N/A\",0,1)","v":"N/A"},{"$f":"_xlfn.XLOOKUP($E30,'Activity 1'!$B$7:$B$13,'Activity 1'!M$7:M$13,\"N/A\",0,1)","v":"N/A"},{"$f":"_xlfn.XLOOKUP($E30,'Activity 1'!$B$7:$B$13,'Activity 1'!N$7:N$13,\"N/A\",0,1)","v":"N/A"},0,{"$f":"_xlfn.XLOOKUP($E30,'Activity 1'!$B$7:$B$13,'Activity 1'!O$7:O$13,\"N/A\",0,1)","v":"N/A"},{"$f":"_xlfn.XLOOKUP($E30,'Activity 1'!$B$7:$B$13,'Activity 1'!P$7:P$13,\"N/A\",0,1)","v":"N/A"},{"$f":"_xlfn.XLOOKUP($E30,'Activity 1'!$B$7:$B$13,'Activity 1'!Q$7:Q$13,\"N/A\",0,1)","v":"N/A"},{"$f":"_xlfn.XLOOKUP($E30,'Activity 1'!$B$7:$B$13,'Activity 1'!R$7:R$13,\"N/A\",0,1)","v":"N/A"},{"$f":"_xlfn.XLOOKUP($E30,'Activity 1'!$B$7:$B$13,'Activity 1'!S$7:S$13,\"N/A\",0,1)","v":"N/A"},{"$f":"_xlfn.XLOOKUP($E30,'Activity 1'!$B$7:$B$13,'Activity 1'!T$7:T$13,\"N/A\",0,1)","v":"N/A"},{"$f":"_xlfn.XLOOKUP($E30,'Activity 1'!$B$7:$B$13,'Activity 1'!U$7:U$13,\"N/A\",0,1)","v":"N/A"},{"$f":"_xlfn.XLOOKUP($E30,'Activity 1'!$B$7:$B$13,'Activity 1'!V$7:V$13,\"N/A\",0,1)","v":"N/A"},{"$f":"_xlfn.XLOOKUP($E30,'Activity 1'!$B$17:$B$23,'Activity 1'!C$17:C$23,\"N/A\",0,1)","v":"N/A"},{"$f":"_xlfn.XLOOKUP($E30,'Activity 1'!$B$17:$B$23,'Activity 1'!D$17:D$23,\"N/A\",0,1)","v":"N/A"},{"$f":"_xlfn.XLOOKUP($E30,'Activity 1'!$B$17:$B$23,'Activity 1'!E$17:E$23,\"N/A\",0,1)","v":"N/A"},{"$f":"_xlfn.XLOOKUP($E30,'Activity 1'!$B$17:$B$23,'Activity 1'!F$17:F$23,\"N/A\",0,1)","v":"N/A"},{"$f":"_xlfn.XLOOKUP($E30,'Activity 1'!$B$17:$B$23,'Activity 1'!G$17:G$23,\"N/A\",0,1)","v":"N/A"},{"$f":"_xlfn.XLOOKUP($E30,'Activity 1'!$B$17:$B$23,'Activity 1'!H$17:H$23,\"N/A\",0,1)","v":"N/A"},{"$f":"_xlfn.XLOOKUP($E30,'Activity 1'!$B$17:$B$23,'Activity 1'!I$17:I$23,\"N/A\",0,1)","v":"N/A"},{"$f":"_xlfn.XLOOKUP($E30,'Activity 1'!$B$17:$B$23,'Activity 1'!J$17:J$23,\"N/A\",0,1)","v":"N/A"},{"$f":"_xlfn.XLOOKUP($E30,'Activity 1'!$B$17:$B$23,'Activity 1'!K$17:K$23,\"N/A\",0,1)","v":"N/A"},{"$f":"_xlfn.XLOOKUP($E30,'Activity 1'!$B$17:$B$23,'Activity 1'!L$17:L$23,\"N/A\",0,1)","v":"N/A"},{"$f":"_xlfn.XLOOKUP($E30,'Activity 1'!$B$17:$B$23,'Activity 1'!M$17:M$23,\"N/A\",0,1)","v":"N/A"},{"$f":"_xlfn.XLOOKUP($E30,'Activity 1'!$B$17:$B$23,'Activity 1'!O$17:O$23,\"N/A\",0,1)","v":"N/A"},{"$f":"_xlfn.XLOOKUP($E30,'Activity 1'!$B$17:$B$23,'Activity 1'!Q$17:Q$23,\"N/A\",0,1)","v":"N/A"},{"$f":"_xlfn.XLOOKUP($E30,'Activity 2'!$B$7:$B$13,'Activity 2'!$A$7:$A$13,\"No\",0,1)","v":"No"},{"$f":"_xlfn.XLOOKUP($E30,'Activity 2'!B$7:B$13,'Activity 2'!H$7:H$13,\"N/A\",0)","v":"N/A"},{"$f":"_xlfn.XLOOKUP($E30,'Activity 2'!C$7:C$13,'Activity 2'!I$7:I$13,\"N/A\",0)","v":"N/A"},{"$f":"_xlfn.XLOOKUP($E30,'Activity 2'!D$7:D$13,'Activity 2'!J$7:J$13,\"N/A\",0)","v":"N/A"},{"$f":"_xlfn.XLOOKUP($E30,'Activity 2'!E$7:E$13,'Activity 2'!K$7:K$13,\"N/A\",0)","v":"N/A"},{"$f":"_xlfn.XLOOKUP($E30,'Activity 2'!F$7:F$13,'Activity 2'!L$7:L$13,\"N/A\",0)","v":"N/A"},{"$f":"_xlfn.XLOOKUP($E30,'Activity 2'!G$7:G$13,'Activity 2'!M$7:M$13,\"N/A\",0)","v":"N/A"},{"$f":"_xlfn.XLOOKUP($E30,'Activity 2'!H$7:H$13,'Activity 2'!N$7:N$13,\"N/A\",0)","v":"N/A"},{"$f":"_xlfn.XLOOKUP($E30,'Activity 2'!I$7:I$13,'Activity 2'!O$7:O$13,\"N/A\",0)","v":"N/A"},{"$f":"_xlfn.XLOOKUP($E30,'Activity 2'!J$7:J$13,'Activity 2'!P$7:P$13,\"N/A\",0)","v":"N/A"},{"$f":"_xlfn.XLOOKUP($E30,'Activity 2'!K$7:K$13,'Activity 2'!Q$7:Q$13,\"N/A\",0)","v":"N/A"},{"$f":"_xlfn.XLOOKUP($E30,'Activity 2'!L$7:L$13,'Activity 2'!R$7:R$13,\"N/A\",0)","v":"N/A"},{"$f":"_xlfn.XLOOKUP($E30,'Activity 2'!M$7:M$13,'Activity 2'!S$7:S$13,\"N/A\",0)","v":"N/A"},{"$f":"_xlfn.XLOOKUP($E30,'Activity 2'!N$7:N$13,'Activity 2'!T$7:T$13,\"N/A\",0)","v":"N/A"},{"$f":"_xlfn.XLOOKUP($E30,'Activity 2'!O$7:O$13,'Activity 2'!U$7:U$13,\"N/A\",0)","v":"N/A"},{"$f":"_xlfn.XLOOKUP($E30,'Activity 2'!P$7:P$13,'Activity 2'!V$7:V$13,\"N/A\",0)","v":"N/A"},{"$f":"_xlfn.XLOOKUP($E30,'Activity 2'!$B$17:$B$23,'Activity 2'!C$17:C$23,\"N/A\",0,1)","v":"N/A"},{"$f":"_xlfn.XLOOKUP($E30,'Activity 2'!$B$17:$B$23,'Activity 2'!D$17:D$23,\"N/A\",0,1)","v":"N/A"},{"$f":"_xlfn.XLOOKUP($E30,'Activity 2'!$B$17:$B$23,'Activity 2'!E$17:E$23,\"N/A\",0,1)","v":"N/A"},{"$f":"_xlfn.XLOOKUP($E30,'Activity 2'!$B$17:$B$23,'Activity 2'!F$17:F$23,\"N/A\",0,1)","v":"N/A"},{"$f":"_xlfn.XLOOKUP($E30,'Activity 2'!$B$17:$B$23,'Activity 2'!G$17:G$23,\"N/A\",0,1)","v":"N/A"},{"$f":"_xlfn.XLOOKUP($E30,'Activity 2'!$B$17:$B$23,'Activity 2'!H$17:H$23,\"N/A\",0,1)","v":"N/A"},{"$f":"_xlfn.XLOOKUP($E30,'Activity 2'!$B$17:$B$23,'Activity 2'!I$17:I$23,\"N/A\",0,1)","v":"N/A"},{"$f":"_xlfn.XLOOKUP($E30,'Activity 2'!$B$17:$B$23,'Activity 2'!J$17:J$23,\"N/A\",0,1)","v":"N/A"},{"$f":"_xlfn.XLOOKUP($E30,'Activity 2'!$B$17:$B$23,'Activity 2'!K$17:K$23,\"N/A\",0,1)","v":"N/A"},{"$f":"_xlfn.XLOOKUP($E30,'Activity 2'!$B$17:$B$23,'Activity 2'!L$17:L$23,\"N/A\",0,1)","v":"N/A"},{"$f":"_xlfn.XLOOKUP($E30,'Activity 2'!$B$17:$B$23,'Activity 2'!M$17:M$23,\"N/A\",0,1)","v":"N/A"},{"$f":"_xlfn.XLOOKUP($E30,'Activity 2'!$B$17:$B$23,'Activity 2'!O$17:O$23,\"N/A\",0,1)","v":"N/A"},{"$f":"_xlfn.XLOOKUP($E30,'Activity 2'!$B$17:$B$23,'Activity 2'!Q$17:Q$23,\"N/A\",0,1)","v":"N/A"},null,{"$f":"_xlfn.XLOOKUP($E30,'Activity 3'!$B$8:$B$14,'Activity 3'!K$8:K$14,\"N/A\",0,1)","v":"N/A"},{"$f":"_xlfn.XLOOKUP($E30,'Activity 3'!$B$8:$B$14,'Activity 3'!L$8:L$14,\"N/A\",0,1)","v":"N/A"},{"$f":"_xlfn.XLOOKUP($E30,'Activity 3'!$B$8:$B$14,'Activity 3'!M$8:M$14,\"N/A\",0,1)","v":"N/A"},{"$f":"_xlfn.XLOOKUP($E30,'Activity 3'!$B$8:$B$14,'Activity 3'!N$8:N$14,\"N/A\",0,1)","v":"N/A"},{"$f":"_xlfn.XLOOKUP($E30,'Activity 3'!$B$8:$B$14,'Activity 3'!O$8:O$14,\"N/A\",0,1)","v":"N/A"},{"$f":"_xlfn.XLOOKUP($E30,'Activity 3'!$B$8:$B$14,'Activity 3'!R$8:R$14,\"N/A\",0,1)","v":"N/A"},{"$f":"_xlfn.XLOOKUP($E30,'Activity 4'!$B$8:$B$14,'Activity 4'!$A$8:$A$14,\"No\",0,1)","v":"No"},{"$f":"_xlfn.XLOOKUP($E30,'Activity 4'!$B$8:$B$14,'Activity 4'!L$8:L$14,\"N/A\",0,1)","v":"N/A"},{"$f":"_xlfn.XLOOKUP($E30,'Activity 4'!$B$8:$B$14,'Activity 4'!I$8:I$14,\"N/A\",0,1)","v":"N/A"},{"$f":"_xlfn.XLOOKUP($E30,'Activity 4'!$B$8:$B$14,'Activity 4'!M$8:M$14,\"N/A\",0,1)","v":"N/A"},{"$f":"_xlfn.XLOOKUP($E30,'Activity 5'!$B$8:$B$14,'Activity 5'!$A$8:$A$14,\"No\",0,1)","v":"No"},{"$f":"_xlfn.XLOOKUP($E30,'Activity 5'!$B$8:$B$14,'Activity 5'!J$8:J$14,\"N/A\",0,1)","v":"N/A"},{"$f":"_xlfn.XLOOKUP($E30,'Activity 5'!$B$8:$B$14,'Activity 5'!K$8:K$14,\"N/A\",0,1)","v":"N/A"},{"$f":"_xlfn.XLOOKUP($E30,'Activity 5'!$B$8:$B$14,'Activity 5'!N$8:N$14,\"N/A\",0,1)","v":"N/A"},{"$f":"_xlfn.XLOOKUP($E30,'Activity 5'!$B$8:$B$14,'Activity 5'!O$8:O$14,\"N/A\",0,1)","v":"N/A"},{"$f":"_xlfn.XLOOKUP($E30,'Activity 5'!$B$8:$B$14,'Activity 5'!P$8:P$14,\"N/A\",0,1)","v":"N/A"},{"$f":"_xlfn.XLOOKUP($E30,'Activity 5'!$B$8:$B$14,'Activity 5'!Q$8:Q$14,\"N/A\",0,1)","v":"N/A"},{"$f":"_xlfn.XLOOKUP($E30,'Activity 5'!$B$8:$B$14,'Activity 5'!R$8:R$14,\"N/A\",0,1)","v":"N/A"},{"$f":"_xlfn.XLOOKUP($E30,'Activity 6'!$B$7:$B$13,'Activity 6'!A$7:A$13,\"No\",0,1)","v":"No"},{"$f":"_xlfn.XLOOKUP($E30,'Activity 6'!$B$7:$B$13,'Activity 6'!K$7:K$13,\"N/A\",0,1)","v":"N/A"},{"$f":"_xlfn.XLOOKUP($E30,'Activity 6'!$B$7:$B$13,'Activity 6'!L$7:L$13,\"N/A\",0,1)","v":"N/A"},{"$f":"_xlfn.XLOOKUP($E30,'Activity 6'!$B$7:$B$13,'Activity 6'!M$7:M$13,\"N/A\",0,1)","v":"N/A"},{"$f":"_xlfn.XLOOKUP($E30,'Activity 6'!$B$7:$B$13,'Activity 6'!N$7:N$13,\"N/A\",0,1)","v":"N/A"},{"$f":"_xlfn.XLOOKUP($E30,'Activity 6'!$B$7:$B$13,'Activity 6'!O$7:O$13,\"N/A\",0,1)","v":"N/A"},{"$f":"_xlfn.XLOOKUP($E30,'Activity 6'!$B$7:$B$13,'Activity 6'!P$7:P$13,\"N/A\",0,1)","v":"N/A"},{"$f":"_xlfn.XLOOKUP($E30,'Activity 6'!$B$7:$B$13,'Activity 6'!Q$7:Q$13,\"N/A\",0,1)","v":"N/A"},{"$f":"_xlfn.XLOOKUP($E30,'Activity 6'!$B$7:$B$13,'Activity 6'!R$7:R$13,\"N/A\",0,1)","v":"N/A"},{"$f":"_xlfn.XLOOKUP($E30,'Activity 6'!$B$7:$B$13,'Activity 6'!S$7:S$13,\"N/A\",0,1)","v":"N/A"},{"$f":"_xlfn.XLOOKUP($E30,'Activity 6'!$B$7:$B$13,'Activity 6'!T$7:T$13,\"N/A\",0,1)","v":"N/A"},{"$f":"_xlfn.XLOOKUP($E30,'Activity 6'!$B$7:$B$13,'Activity 6'!U$7:U$13,\"N/A\",0,1)","v":"N/A"},{"$f":"_xlfn.XLOOKUP($E30,'Activity 6'!$B$22:$B$28,'Activity 6'!C$22:C$28,\"N/A\",0,1)","v":"N/A"},{"$f":"_xlfn.XLOOKUP($E30,'Activity 6'!$B$22:$B$28,'Activity 6'!D$22:D$28,\"N/A\",0,1)","v":"N/A"},{"$f":"_xlfn.XLOOKUP($E30,'Activity 6'!$B$22:$B$28,'Activity 6'!E$22:E$28,\"N/A\",0,1)","v":"N/A"},{"$f":"_xlfn.XLOOKUP($E30,'Activity 6'!$B$22:$B$28,'Activity 6'!F$22:F$28,\"N/A\",0,1)","v":"N/A"},{"$f":"_xlfn.XLOOKUP($E30,'Activity 6'!$B$22:$B$28,'Activity 6'!G$22:G$28,\"N/A\",0,1)","v":"N/A"},{"$f":"_xlfn.XLOOKUP($E30,'Activity 6'!$B$22:$B$28,'Activity 6'!H$22:H$28,\"N/A\",0,1)","v":"N/A"},{"$f":"_xlfn.XLOOKUP($E30,'Activity 6'!$B$22:$B$28,'Activity 6'!I$22:I$28,\"N/A\",0,1)","v":"N/A"},{"$f":"_xlfn.XLOOKUP($E30,'Activity 6'!$B$22:$B$28,'Activity 6'!J$22:J$28,\"N/A\",0,1)","v":"N/A"},{"$f":"_xlfn.XLOOKUP($E30,'Activity 6'!$B$22:$B$28,'Activity 6'!K$22:K$28,\"N/A\",0,1)","v":"N/A"},{"$f":"_xlfn.XLOOKUP($E30,'Activity 6'!$B$22:$B$28,'Activity 6'!L$22:L$28,\"N/A\",0,1)","v":"N/A"},{"$f":"_xlfn.XLOOKUP($E30,'Activity 6'!$B$22:$B$28,'Activity 6'!M$22:M$28,\"N/A\",0,1)","v":"N/A"},{"$f":"_xlfn.XLOOKUP($E30,'Activity 6'!$B$22:$B$28,'Activity 6'!N$22:N$28,\"N/A\",0,1)","v":"N/A"},{"$f":"_xlfn.XLOOKUP($E30,'Activity 6'!$B$32:$B$38,'Activity 6'!C$32:C$38,\"N/A\",0,1)","v":"N/A"},{"$f":"_xlfn.XLOOKUP($E30,'Activity 6'!$B$32:$B$38,'Activity 6'!D$32:D$38,\"N/A\",0,1)","v":"N/A"},{"$f":"_xlfn.XLOOKUP($E30,'Activity 6'!$B$32:$B$38,'Activity 6'!E$32:E$38,\"N/A\",0,1)","v":"N/A"},{"$f":"_xlfn.XLOOKUP($E30,'Activity 6'!$B$32:$B$38,'Activity 6'!F$32:F$38,\"N/A\",0,1)","v":"N/A"},{"$f":"_xlfn.XLOOKUP($E30,'Activity 6'!$B$32:$B$38,'Activity 6'!G$32:G$38,\"N/A\",0,1)","v":"N/A"},{"$f":"_xlfn.XLOOKUP($E30,'Activity 6'!$B$32:$B$38,'Activity 6'!H$32:H$38,\"N/A\",0,1)","v":"N/A"},{"$f":"_xlfn.XLOOKUP($E30,'Activity 6'!$B$32:$B$38,'Activity 6'!I$32:I$38,\"N/A\",0,1)","v":"N/A"},{"$f":"_xlfn.XLOOKUP($E30,'Activity 6'!$B$32:$B$38,'Activity 6'!J$32:J$38,\"N/A\",0,1)","v":"N/A"},{"$f":"_xlfn.XLOOKUP($E30,'Activity 6'!$B$32:$B$38,'Activity 6'!K$32:K$38,\"N/A\",0,1)","v":"N/A"},{"$f":"_xlfn.XLOOKUP($E30,'Activity 6'!$B$32:$B$38,'Activity 6'!M$32:M$38,\"N/A\",0,1)","v":"N/A"},{"$f":"_xlfn.XLOOKUP($E30,'Activity 7'!$B$7:$B$13,'Activity 7'!$A$7:$A$13,\"No\",0,1)","v":"No"},{"$f":"_xlfn.XLOOKUP($E30,'Activity 7'!$B$7:$B$13,'Activity 7'!M$7:M$13,\"N/A\",0,1)","v":"N/A"},{"$f":"_xlfn.XLOOKUP($E30,'Activity 7'!$B$7:$B$13,'Activity 7'!K$7:K$13,\"N/A\",0,1)","v":"N/A"},{"$f":"_xlfn.XLOOKUP($E30,'Activity 7'!$B$7:$B$13,'Activity 7'!N$7:N$13,\"N/A\",0,1)","v":"N/A"},{"$f":"_xlfn.XLOOKUP($E30,'Activity 7'!$B$7:$B$13,'Activity 7'!O$7:O$13,\"N/A\",0,1)","v":"N/A"},{"$f":"_xlfn.XLOOKUP($E30,'Activity 7'!$B$7:$B$13,'Activity 7'!P$7:P$13,\"N/A\",0,1)","v":"N/A"},{"$f":"_xlfn.XLOOKUP($E30,'Activity 7'!$B$7:$B$13,'Activity 7'!Q$7:Q$13,\"N/A\",0,1)","v":"N/A"},{"$f":"_xlfn.XLOOKUP($E30,'Activity 7'!$B$7:$B$13,'Activity 7'!R$7:R$13,\"N/A\",0,1)","v":"N/A"},{"$f":"_xlfn.XLOOKUP($E30,'Activity 7'!$B$7:$B$13,'Activity 7'!S$7:S$13,\"N/A\",0,1)","v":"N/A"},{"$f":"_xlfn.XLOOKUP($E30,'Activity 7'!$B$7:$B$13,'Activity 7'!T$7:T$13,\"N/A\",0,1)","v":"N/A"},{"$f":"_xlfn.XLOOKUP($E30,'Activity 7'!$B$7:$B$13,'Activity 7'!U$7:U$13,\"N/A\",0,1)","v":"N/A"},{"$f":"_xlfn.XLOOKUP($E30,'Activity 7'!$B$7:$B$13,'Activity 7'!V$7:V$13,\"N/A\",0,1)","v":"N/A"},{"$f":"_xlfn.XLOOKUP($E30,'Activity 7'!$B$17:$B$23,'Activity 7'!E$17:E$23,\"N/A\",0,1)","v":"N/A"},{"$f":"_xlfn.XLOOKUP($E30,'Activity 7'!$B$17:$B$23,'Activity 7'!G$17:G$23,\"N/A\",0,1)","v":"N/A"},{"$f":"_xlfn.XLOOKUP($E30,'Activity 7'!$B$17:$B$23,'Activity 7'!I$17:I$23,\"N/A\",0,1)","v":"N/A"},{"$f":"_xlfn.XLOOKUP($E30,'Activity 7'!$B$17:$B$23,'Activity 7'!J$17:J$23,\"N/A\",0,1)","v":"N/A"},{"$f":"_xlfn.XLOOKUP($E30,'Activity 7'!$B$17:$B$23,'Activity 7'!K$17:K$23,\"N/A\",0,1)","v":"N/A"},{"$f":"_xlfn.XLOOKUP($E30,'Activity 7'!$B$17:$B$23,'Activity 7'!L$17:L$23,\"N/A\",0,1)","v":"N/A"},{"$f":"_xlfn.XLOOKUP($E30,'Activity 7'!$B$17:$B$23,'Activity 7'!M$17:M$23,\"N/A\",0,1)","v":"N/A"},{"$f":"_xlfn.XLOOKUP($E30,'Activity 7'!$B$17:$B$23,'Activity 7'!N$17:N$23,\"N/A\",0,1)","v":"N/A"},{"$f":"_xlfn.XLOOKUP($E30,'Activity 7'!$B$17:$B$23,'Activity 7'!P$17:P$23,\"N/A\",0,1)","v":"N/A"},{"$f":"_xlfn.XLOOKUP($E30,'Activity 8'!$B$7:$B$13,'Activity 8'!A$7:A$13,\"No\",0,1)","v":"No"},{"$f":"_xlfn.XLOOKUP($E30,'Activity 8'!$B$7:$B$13,'Activity 8'!I$7:I$13,\"N/A\",0,1)","v":"N/A"},{"$f":"_xlfn.XLOOKUP($E30,'Activity 8'!$B$7:$B$13,'Activity 8'!J$7:J$13,\"N/A\",0,1)","v":"N/A"},{"$f":"_xlfn.XLOOKUP($E30,'Activity 8'!$B$7:$B$13,'Activity 8'!K$7:K$13,\"N/A\",0,1)","v":"N/A"},{"$f":"_xlfn.XLOOKUP($E30,'Activity 8'!$B$7:$B$13,'Activity 8'!L$7:L$13,\"N/A\",0,1)","v":"N/A"},{"$f":"_xlfn.XLOOKUP($E30,'Activity 8'!$B$7:$B$13,'Activity 8'!M$7:M$13,\"N/A\",0,1)","v":"N/A"},{"$f":"_xlfn.XLOOKUP($E30,'Activity 8'!$B$7:$B$13,'Activity 8'!N$7:N$13,\"N/A\",0,1)","v":"N/A"},{"$f":"_xlfn.XLOOKUP($E30,'Activity 8'!$B$7:$B$13,'Activity 8'!O$7:O$13,\"N/A\",0,1)","v":"N/A"},{"$f":"_xlfn.XLOOKUP($E30,'Activity 8'!$B$7:$B$13,'Activity 8'!P$7:P$13,\"N/A\",0,1)","v":"N/A"},{"$f":"_xlfn.XLOOKUP($E30,'Activity 8'!$B$7:$B$13,'Activity 8'!Q$7:Q$13,\"N/A\",0,1)","v":"N/A"},{"$f":"_xlfn.XLOOKUP($E30,'Activity 8'!$B$7:$B$13,'Activity 8'!R$7:R$13,\"N/A\",0,1)","v":"N/A"},{"$f":"_xlfn.XLOOKUP($E30,'Activity 8'!$B$7:$B$13,'Activity 8'!S$7:S$13,\"N/A\",0,1)","v":"N/A"},{"$f":"_xlfn.XLOOKUP($E30,'Activity 8'!$B$7:$B$13,'Activity 8'!T$7:T$13,\"N/A\",0,1)","v":"N/A"},{"$f":"_xlfn.XLOOKUP($E30,'Activity 8'!$B$7:$B$13,'Activity 8'!U$7:U$13,\"N/A\",0,1)","v":"N/A"},{"$f":"_xlfn.XLOOKUP($E30,'Activity 8'!$B$7:$B$13,'Activity 8'!V$7:V$13,\"N/A\",0,1)","v":"N/A"},{"$f":"_xlfn.XLOOKUP($E30,'Activity 8'!$B$17:$B$23,'Activity 8'!D$17:D$23,\"N/A\",0,1)","v":"N/A"},{"$f":"_xlfn.XLOOKUP($E30,'Activity 8'!$B$17:$B$23,'Activity 8'!E$17:E$23,\"N/A\",0,1)","v":"N/A"},{"$f":"_xlfn.XLOOKUP($E30,'Activity 8'!$B$17:$B$23,'Activity 8'!F$17:F$23,\"N/A\",0,1)","v":"N/A"},{"$f":"_xlfn.XLOOKUP($E30,'Activity 8'!$B$17:$B$23,'Activity 8'!G$17:G$23,\"N/A\",0,1)","v":"N/A"},{"$f":"_xlfn.XLOOKUP($E30,'Activity 8'!$B$17:$B$23,'Activity 8'!H$17:H$23,\"N/A\",0,1)","v":"N/A"},{"$f":"_xlfn.XLOOKUP($E30,'Activity 8'!$B$17:$B$23,'Activity 8'!I$17:I$23,\"N/A\",0,1)","v":"N/A"},{"$f":"_xlfn.XLOOKUP($E30,'Activity 8'!$B$17:$B$23,'Activity 8'!J$17:J$23,\"N/A\",0,1)","v":"N/A"},{"$f":"_xlfn.XLOOKUP($E30,'Activity 8'!$B$17:$B$23,'Activity 8'!K$17:K$23,\"N/A\",0,1)","v":"N/A"},{"$f":"_xlfn.XLOOKUP($E30,'Activity 8'!$B$17:$B$23,'Activity 8'!L$17:L$23,\"N/A\",0,1)","v":"N/A"},{"$f":"_xlfn.XLOOKUP($E30,'Activity 8'!$B$17:$B$23,'Activity 8'!M$17:M$23,\"N/A\",0,1)","v":"N/A"},{"$f":"_xlfn.XLOOKUP($E30,'Activity 8'!$B$17:$B$23,'Activity 8'!N$17:N$23,\"N/A\",0,1)","v":"N/A"},{"$f":"_xlfn.XLOOKUP($E30,'Activity 8'!$B$17:$B$23,'Activity 8'!P$17:P$23,\"N/A\",0,1)","v":"N/A"},{"$f":"_xlfn.XLOOKUP(E30,'Activity 9'!$B$7:$B$13,'Activity 9'!$A$7:$A$13,\"No\",0,1)","v":"No"},{"$f":"_xlfn.XLOOKUP($E30,'Activity 9'!$B$7:$B$13,'Activity 9'!J$7:J$13,\"N/A\",0,1)","v":"N/A"},{"$f":"_xlfn.XLOOKUP($E30,'Activity 9'!$B$7:$B$13,'Activity 9'!K$7:K$13,\"N/A\",0,1)","v":"N/A"},{"$f":"_xlfn.XLOOKUP($E30,'Activity 9'!$B$7:$B$13,'Activity 9'!L$7:L$13,\"N/A\",0,1)","v":"N/A"},{"$f":"_xlfn.XLOOKUP($E30,'Activity 9'!$B$7:$B$13,'Activity 9'!M$7:M$13,\"N/A\",0,1)","v":"N/A"},{"$f":"_xlfn.XLOOKUP($E30,'Activity 9'!$B$7:$B$13,'Activity 9'!N$7:N$13,\"N/A\",0,1)","v":"N/A"},{"$f":"_xlfn.XLOOKUP($E30,'Activity 9'!$B$7:$B$13,'Activity 9'!O$7:O$13,\"N/A\",0,1)","v":"N/A"},{"$f":"_xlfn.XLOOKUP($E30,'Activity 9'!$B$7:$B$13,'Activity 9'!P$7:P$13,\"N/A\",0,1)","v":"N/A"},{"$f":"_xlfn.XLOOKUP($E30,'Activity 9'!$B$7:$B$13,'Activity 9'!Q$7:Q$13,\"N/A\",0,1)","v":"N/A"},{"$f":"_xlfn.XLOOKUP($E30,'Activity 9'!$B$7:$B$13,'Activity 9'!R$7:R$13,\"N/A\",0,1)","v":"N/A"},{"$f":"_xlfn.XLOOKUP($E30,'Activity 9'!$B$7:$B$13,'Activity 9'!S$7:S$13,\"N/A\",0,1)","v":"N/A"},{"$f":"_xlfn.XLOOKUP($E30,'Activity 9'!$B$7:$B$13,'Activity 9'!T$7:T$13,\"N/A\",0,1)","v":"N/A"},{"$f":"_xlfn.XLOOKUP($E30,'Activity 9'!$B$17:$B$23,'Activity 9'!E$17:E$23,\"N/A\",0,1)","v":"N/A"},{"$f":"_xlfn.XLOOKUP($E30,'Activity 9'!$B$17:$B$23,'Activity 9'!F$17:F$23,\"N/A\",0,1)","v":"N/A"},{"$f":"_xlfn.XLOOKUP($E30,'Activity 9'!$B$17:$B$23,'Activity 9'!G$17:G$23,\"N/A\",0,1)","v":"N/A"},{"$f":"_xlfn.XLOOKUP($E30,'Activity 9'!$B$17:$B$23,'Activity 9'!H$17:H$23,\"N/A\",0,1)","v":"N/A"},{"$f":"_xlfn.XLOOKUP($E30,'Activity 9'!$B$17:$B$23,'Activity 9'!I$17:I$23,\"N/A\",0,1)","v":"N/A"},{"$f":"_xlfn.XLOOKUP($E30,'Activity 9'!$B$17:$B$23,'Activity 9'!J$17:J$23,\"N/A\",0,1)","v":"N/A"},{"$f":"_xlfn.XLOOKUP($E30,'Activity 9'!$B$17:$B$23,'Activity 9'!K$17:K$23,\"N/A\",0,1)","v":"N/A"},{"$f":"_xlfn.XLOOKUP($E30,'Activity 9'!$B$17:$B$23,'Activity 9'!L$17:L$23,\"N/A\",0,1)","v":"N/A"},{"$f":"_xlfn.XLOOKUP($E30,'Activity 9'!$B$17:$B$23,'Activity 9'!N$17:N$23,\"N/A\",0,1)","v":"N/A"},{"$f":"_xlfn.XLOOKUP($E30,'Activity 9'!$B$17:$B$23,'Activity 9'!O$17:O$23,\"N/A\",0,1)","v":"N/A"},{"$f":"_xlfn.XLOOKUP($E30,'Activity 9'!$B$17:$B$23,'Activity 9'!Q$17:Q$23,\"N/A\",0,1)","v":"N/A"},{"$f":"_xlfn.XLOOKUP($E30,'Activity 10'!$B$7:$B$13,'Activity 10'!A$7:A$13,\"No\",0,1)","v":"No"},{"$f":"_xlfn.XLOOKUP($E30,'Activity 10'!$B$7:$B$13,'Activity 10'!J$7:J$13,\"N/A\",0,1)","v":"N/A"},{"$f":"_xlfn.XLOOKUP($E30,'Activity 10'!$B$7:$B$13,'Activity 10'!K$7:K$13,\"N/A\",0,1)","v":"N/A"},{"$f":"_xlfn.XLOOKUP($E30,'Activity 10'!$B$7:$B$13,'Activity 10'!L$7:L$13,\"N/A\",0,1)","v":"N/A"},{"$f":"_xlfn.XLOOKUP($E30,'Activity 10'!$B$7:$B$13,'Activity 10'!M$7:M$13,\"N/A\",0,1)","v":"N/A"},{"$f":"_xlfn.XLOOKUP($E30,'Activity 10'!$B$7:$B$13,'Activity 10'!N$7:N$13,\"N/A\",0,1)","v":"N/A"},{"$f":"_xlfn.XLOOKUP($E30,'Activity 10'!$B$7:$B$13,'Activity 10'!O$7:O$13,\"N/A\",0,1)","v":"N/A"},{"$f":"_xlfn.XLOOKUP($E30,'Activity 10'!$B$7:$B$13,'Activity 10'!P$7:P$13,\"N/A\",0,1)","v":"N/A"},{"$f":"_xlfn.XLOOKUP($E30,'Activity 10'!$B$7:$B$13,'Activity 10'!Q$7:Q$13,\"N/A\",0,1)","v":"N/A"},{"$f":"_xlfn.XLOOKUP($E30,'Activity 10'!$B$7:$B$13,'Activity 10'!R$7:R$13,\"N/A\",0,1)","v":"N/A"},{"$f":"_xlfn.XLOOKUP($E30,'Activity 10'!$B$7:$B$13,'Activity 10'!S$7:S$13,\"N/A\",0,1)","v":"N/A"},{"$f":"_xlfn.XLOOKUP($E30,'Activity 10'!$B$7:$B$13,'Activity 10'!T$7:T$13,\"N/A\",0,1)","v":"N/A"},{"$f":"_xlfn.XLOOKUP($E30,'Activity 10'!$B$7:$B$13,'Activity 10'!U$7:U$13,\"N/A\",0,1)","v":"N/A"},{"$f":"_xlfn.XLOOKUP($E30,'Activity 10'!$B$7:$B$13,'Activity 10'!V$7:V$13,\"N/A\",0,1)","v":"N/A"},{"$f":"_xlfn.XLOOKUP($E30,'Activity 10'!$B$17:$B$23,'Activity 10'!E$17:E$23,\"N/A\",0,1)","v":"N/A"},{"$f":"_xlfn.XLOOKUP($E30,'Activity 10'!$B$17:$B$23,'Activity 10'!F$17:F$23,\"N/A\",0,1)","v":"N/A"},{"$f":"_xlfn.XLOOKUP($E30,'Activity 10'!$B$17:$B$23,'Activity 10'!G$17:G$23,\"N/A\",0,1)","v":"N/A"},{"$f":"_xlfn.XLOOKUP($E30,'Activity 10'!$B$17:$B$23,'Activity 10'!H$17:H$23,\"N/A\",0,1)","v":"N/A"},{"$f":"_xlfn.XLOOKUP($E30,'Activity 10'!$B$17:$B$23,'Activity 10'!I$17:I$23,\"N/A\",0,1)","v":"N/A"},{"$f":"_xlfn.XLOOKUP($E30,'Activity 10'!$B$17:$B$23,'Activity 10'!J$17:J$23,\"N/A\",0,1)","v":"N/A"},{"$f":"_xlfn.XLOOKUP($E30,'Activity 10'!$B$17:$B$23,'Activity 10'!K$17:K$23,\"N/A\",0,1)","v":"N/A"},{"$f":"_xlfn.XLOOKUP($E30,'Activity 10'!$B$17:$B$23,'Activity 10'!L$17:L$23,\"N/A\",0,1)","v":"N/A"},{"$f":"_xlfn.XLOOKUP($E30,'Activity 10'!$B$17:$B$23,'Activity 10'!M$17:M$23,\"N/A\",0,1)","v":"N/A"},{"$f":"_xlfn.XLOOKUP($E30,'Activity 10'!$B$17:$B$23,'Activity 10'!N$17:N$23,\"N/A\",0,1)","v":"N/A"},{"$f":"_xlfn.XLOOKUP($E30,'Activity 10'!$B$17:$B$23,'Activity 10'!P$17:P$23,\"N/A\",0,1)","v":"N/A"},{"$f":"_xlfn.XLOOKUP($E30,'Competitive Activity 1'!B$7:B$13,'Competitive Activity 1'!A$7:A$13,\"No\",0,1)","v":"No"},{"$f":"_xlfn.XLOOKUP($E30,'Competitive Activity 1'!$B$7:$B$13,'Competitive Activity 1'!H$7:H$13,\"N/A\",0,1)","v":"N/A"},{"$f":"_xlfn.XLOOKUP($E30,'Competitive Activity 1'!$B$7:$B$13,'Competitive Activity 1'!I$7:I$13,\"N/A\",0,1)","v":"N/A"},{"$f":"_xlfn.XLOOKUP($E30,'Competitive Activity 1'!$B$7:$B$13,'Competitive Activity 1'!J$7:J$13,\"N/A\",0,1)","v":"N/A"},{"$f":"_xlfn.XLOOKUP($E30,'Competitive Activity 1'!$B$7:$B$13,'Competitive Activity 1'!K$7:K$13,\"N/A\",0,1)","v":"N/A"},{"$f":"_xlfn.XLOOKUP($E30,'Competitive Activity 1'!$B$7:$B$13,'Competitive Activity 1'!L$7:L$13,\"N/A\",0,1)","v":"N/A"},{"$f":"_xlfn.XLOOKUP($E30,'Competitive Activity 1'!$B$7:$B$13,'Competitive Activity 1'!M$7:M$13,\"N/A\",0,1)","v":"N/A"},{"$f":"_xlfn.XLOOKUP($E30,'Competitive Activity 1'!$B$7:$B$13,'Competitive Activity 1'!N$7:N$13,\"N/A\",0,1)","v":"N/A"},{"$f":"_xlfn.XLOOKUP($E30,'Competitive Activity 1'!$B$7:$B$13,'Competitive Activity 1'!O$7:O$13,\"N/A\",0,1)","v":"N/A"},{"$f":"_xlfn.XLOOKUP($E30,'Competitive Activity 1'!$B$7:$B$13,'Competitive Activity 1'!P$7:P$13,\"N/A\",0,1)","v":"N/A"},{"$f":"_xlfn.XLOOKUP($E30,'Competitive Activity 1'!$B$7:$B$13,'Competitive Activity 1'!Q$7:Q$13,\"N/A\",0,1)","v":"N/A"},{"$f":"_xlfn.XLOOKUP($E30,'Competitive Activity 1'!$B$7:$B$13,'Competitive Activity 1'!R$7:R$13,\"N/A\",0,1)","v":"N/A"},{"$f":"_xlfn.XLOOKUP($E30,'Competitive Activity 1'!$B$7:$B$13,'Competitive Activity 1'!S$7:S$13,\"N/A\",0,1)","v":"N/A"},{"$f":"_xlfn.XLOOKUP($E30,'Competitive Activity 1'!$B$7:$B$13,'Competitive Activity 1'!T$7:T$13,\"N/A\",0,1)","v":"N/A"},{"$f":"_xlfn.XLOOKUP($E30,'Competitive Activity 1'!$B$7:$B$13,'Competitive Activity 1'!U$7:U$13,\"N/A\",0,1)","v":"N/A"},{"$f":"_xlfn.XLOOKUP($E30,'Competitive Activity 1'!$B$17:$B$23,'Competitive Activity 1'!C$17:C$23,\"N/A\",0,1)","v":"N/A"},{"$f":"_xlfn.XLOOKUP($E30,'Competitive Activity 1'!$B$17:$B$23,'Competitive Activity 1'!D$17:D$23,\"N/A\",0,1)","v":"N/A"},{"$f":"_xlfn.XLOOKUP($E30,'Competitive Activity 1'!$B$17:$B$23,'Competitive Activity 1'!E$17:E$23,\"N/A\",0,1)","v":"N/A"},{"$f":"_xlfn.XLOOKUP($E30,'Competitive Activity 1'!$B$17:$B$23,'Competitive Activity 1'!F$17:F$23,\"N/A\",0,1)","v":"N/A"},{"$f":"_xlfn.XLOOKUP($E30,'Competitive Activity 1'!$B$17:$B$23,'Competitive Activity 1'!G$17:G$23,\"N/A\",0,1)","v":"N/A"},{"$f":"_xlfn.XLOOKUP($E30,'Competitive Activity 1'!$B$17:$B$23,'Competitive Activity 1'!H$17:H$23,\"N/A\",0,1)","v":"N/A"},{"$f":"_xlfn.XLOOKUP($E30,'Competitive Activity 1'!$B$17:$B$23,'Competitive Activity 1'!I$17:I$23,\"N/A\",0,1)","v":"N/A"},{"$f":"_xlfn.XLOOKUP($E30,'Competitive Activity 1'!$B$17:$B$23,'Competitive Activity 1'!J$17:J$23,\"N/A\",0,1)","v":"N/A"},{"$f":"_xlfn.XLOOKUP($E30,'Competitive Activity 1'!$B$17:$B$23,'Competitive Activity 1'!K$17:K$23,\"N/A\",0,1)","v":"N/A"},{"$f":"_xlfn.XLOOKUP($E30,'Competitive Activity 1'!$B$17:$B$23,'Competitive Activity 1'!M$17:M$23,\"N/A\",0,1)","v":"N/A"},{"$f":"_xlfn.XLOOKUP($E30,'Competitive Activity 1'!$B$17:$B$23,'Competitive Activity 1'!N$17:N$23,\"N/A\",0,1)","v":"N/A"},{"$f":"_xlfn.XLOOKUP($E30,'Competitive Activity 1'!$B$17:$B$23,'Competitive Activity 1'!P$17:P$23,\"N/A\",0,1)","v":"N/A"},{"$f":"_xlfn.XLOOKUP($E30,'Competitive Activity 2'!$B$7:$B$13,'Competitive Activity 2'!A$7:A$13,\"No\",0)","v":"No"},{"$f":"_xlfn.XLOOKUP($E30,'Competitive Activity 2'!$B$7:$B$13,'Competitive Activity 2'!L$7:L$13,\"N/A\",0)","v":"N/A"},{"$f":"_xlfn.XLOOKUP($E30,'Competitive Activity 2'!$B$7:$B$13,'Competitive Activity 2'!M$7:M$13,\"N/A\",0)","v":"N/A"},{"$f":"_xlfn.XLOOKUP($E30,'Competitive Activity 2'!$B$7:$B$13,'Competitive Activity 2'!N$7:N$13,\"N/A\",0)","v":"N/A"},{"$f":"_xlfn.XLOOKUP($E30,'Competitive Activity 2'!$B$7:$B$13,'Competitive Activity 2'!O$7:O$13,\"N/A\",0)","v":"N/A"},{"$f":"_xlfn.XLOOKUP($E30,'Competitive Activity 2'!$B$7:$B$13,'Competitive Activity 2'!P$7:P$13,\"N/A\",0)","v":"N/A"},{"$f":"_xlfn.XLOOKUP($E30,'Competitive Activity 2'!$B$7:$B$13,'Competitive Activity 2'!Q$7:Q$13,\"N/A\",0)","v":"N/A"},{"$f":"_xlfn.XLOOKUP($E30,'Competitive Activity 2'!$B$7:$B$13,'Competitive Activity 2'!R$7:R$13,\"N/A\",0)","v":"N/A"},{"$f":"_xlfn.XLOOKUP($E30,'Competitive Activity 2'!$B$7:$B$13,'Competitive Activity 2'!S$7:S$13,\"N/A\",0)","v":"N/A"},{"$f":"_xlfn.XLOOKUP($E30,'Competitive Activity 2'!$B$7:$B$13,'Competitive Activity 2'!T$7:T$13,\"N/A\",0)","v":"N/A"},{"$f":"_xlfn.XLOOKUP($E30,'Competitive Activity 2'!$B$7:$B$13,'Competitive Activity 2'!U$7:U$13,\"N/A\",0)","v":"N/A"},{"$f":"_xlfn.XLOOKUP($E30,'Competitive Activity 2'!$B$17:$B$23,'Competitive Activity 2'!D$17:D$23,\"N/A\",0)","v":"N/A"},{"$f":"_xlfn.XLOOKUP($E30,'Competitive Activity 2'!$B$17:$B$23,'Competitive Activity 2'!E$17:E$23,\"N/A\",0)","v":"N/A"},{"$f":"_xlfn.XLOOKUP($E30,'Competitive Activity 2'!$B$17:$B$23,'Competitive Activity 2'!F$17:F$23,\"N/A\",0)","v":"N/A"},{"$f":"_xlfn.XLOOKUP($E30,'Competitive Activity 2'!$B$17:$B$23,'Competitive Activity 2'!G$17:G$23,\"N/A\",0)","v":"N/A"},{"$f":"_xlfn.XLOOKUP($E30,'Competitive Activity 2'!$B$17:$B$23,'Competitive Activity 2'!H$17:H$23,\"N/A\",0)","v":"N/A"},{"$f":"_xlfn.XLOOKUP($E30,'Competitive Activity 2'!$B$17:$B$23,'Competitive Activity 2'!I$17:I$23,\"N/A\",0)","v":"N/A"},{"$f":"_xlfn.XLOOKUP($E30,'Competitive Activity 2'!$B$17:$B$23,'Competitive Activity 2'!J$17:J$23,\"N/A\",0)","v":"N/A"},{"$f":"_xlfn.XLOOKUP($E30,'Competitive Activity 2'!$B$17:$B$23,'Competitive Activity 2'!K$17:K$23,\"N/A\",0)","v":"N/A"},{"$f":"_xlfn.XLOOKUP($E30,'Competitive Activity 2'!$B$17:$B$23,'Competitive Activity 2'!L$17:L$23,\"N/A\",0)","v":"N/A"},{"$f":"_xlfn.XLOOKUP($E30,'Competitive Activity 2'!$B$17:$B$23,'Competitive Activity 2'!M$17:M$23,\"N/A\",0)","v":"N/A"},{"$f":"_xlfn.XLOOKUP($E30,'Competitive Activity 2'!$B$17:$B$23,'Competitive Activity 2'!N$17:N$23,\"N/A\",0)","v":"N/A"},{"$f":"_xlfn.XLOOKUP($E30,'Competitive Activity 2'!$B$27:$B$33,'Competitive Activity 2'!D$27:D$33,\"N/A\",0)","v":"N/A"},{"$f":"_xlfn.XLOOKUP($E30,'Competitive Activity 2'!$B$27:$B$33,'Competitive Activity 2'!E$27:E$33,\"N/A\",0)","v":"N/A"},{"$f":"_xlfn.XLOOKUP($E30,'Competitive Activity 2'!$B$27:$B$33,'Competitive Activity 2'!F$27:F$33,\"N/A\",0)","v":"N/A"},{"$f":"_xlfn.XLOOKUP($E30,'Competitive Activity 2'!$B$27:$B$33,'Competitive Activity 2'!G$27:G$33,\"N/A\",0)","v":"N/A"},{"$f":"_xlfn.XLOOKUP($E30,'Competitive Activity 2'!$B$27:$B$33,'Competitive Activity 2'!H$27:H$33,\"N/A\",0)","v":"N/A"},{"$f":"_xlfn.XLOOKUP($E30,'Competitive Activity 2'!$B$27:$B$33,'Competitive Activity 2'!I$27:I$33,\"N/A\",0)","v":"N/A"},{"$f":"_xlfn.XLOOKUP($E30,'Competitive Activity 2'!$B$27:$B$33,'Competitive Activity 2'!J$27:J$33,\"N/A\",0)","v":"N/A"},{"$f":"_xlfn.XLOOKUP($E30,'Competitive Activity 2'!$B$27:$B$33,'Competitive Activity 2'!K$27:K$33,\"N/A\",0)","v":"N/A"},{"$f":"_xlfn.XLOOKUP($E30,'Competitive Activity 2'!$B$27:$B$33,'Competitive Activity 2'!M$27:M$33,\"N/A\",0)","v":"N/A"}]
[{"$f":"'1-Cover Sheet'!$C$8","v":"Select One"},{"$f":"'1-Cover Sheet'!$F$8","v":"Select One"},{"$f":"'Summary Sheet'!$D$8","v":0},{"$f":"'Summary Sheet'!$D$10","v":0},{"$f":"'Drop Down Box'!B195","v":0},{"$f":"'Drop Down Box'!C195","v":0},{"$f":"'Drop Down Box'!D195","v":"Select One"},{"$f":"_xlfn.XLOOKUP(E31,'Drop Down Box'!$B$166:$B$249,'Drop Down Box'!$A$166:$A$249,\"Unknown\",0)","v":"Activity 1"},{"$f":"_xlfn.XLOOKUP($E31,'Activity 5'!$B$8:$B$14,'Activity 5'!$L$8:$L$14,\"N/A\",0)","v":"N/A"},{"$f":"_xlfn.XLOOKUP($E31,'Activity 5'!$B$8:$B$14,'Activity 5'!$M$8:$M$14,\"N/A\",0)","v":"N/A"},{"$f":"_xlfn.XLOOKUP($E31,'Activity 5'!$B$8:$B$14,'Activity 5'!$G$8:$G$14,\"N/A\",0)","v":"N/A"},{"$f":"_xlfn.XLOOKUP($E31,'Activity 5'!$B$8:$B$14,'Activity 5'!$H$8:$H$14,\"N/A\",0)","v":"N/A"},{"$f":"_xlfn.XLOOKUP($E31,'Activity 5'!$B$8:$B$14,'Activity 5'!I$8:I$14,\"N/A\",0)","v":"N/A"},{"$f":"_xlfn.XLOOKUP($E31,'Activity 1'!$B$7:$B$13,'Activity 1'!$A$7:$A$13,\"No\",0,1)","v":"No"},{"$f":"_xlfn.XLOOKUP($E31,'Activity 1'!$B$7:$B$13,'Activity 1'!$H$7:$H$13,\"N/A\",0,1)","v":"N/A"},{"$f":"_xlfn.XLOOKUP($E31,'Activity 1'!$B$7:$B$13,'Activity 1'!I$7:I$13,\"N/A\",0,1)","v":"N/A"},{"$f":"_xlfn.XLOOKUP($E31,'Activity 1'!$B$7:$B$13,'Activity 1'!J$7:J$13,\"N/A\",0,1)","v":"N/A"},{"$f":"_xlfn.XLOOKUP($E31,'Activity 1'!$B$7:$B$13,'Activity 1'!K$7:K$13,\"N/A\",0,1)","v":"N/A"},{"$f":"_xlfn.XLOOKUP($E31,'Activity 1'!$B$7:$B$13,'Activity 1'!L$7:L$13,\"N/A\",0,1)","v":"N/A"},{"$f":"_xlfn.XLOOKUP($E31,'Activity 1'!$B$7:$B$13,'Activity 1'!M$7:M$13,\"N/A\",0,1)","v":"N/A"},{"$f":"_xlfn.XLOOKUP($E31,'Activity 1'!$B$7:$B$13,'Activity 1'!N$7:N$13,\"N/A\",0,1)","v":"N/A"},0,{"$f":"_xlfn.XLOOKUP($E31,'Activity 1'!$B$7:$B$13,'Activity 1'!O$7:O$13,\"N/A\",0,1)","v":"N/A"},{"$f":"_xlfn.XLOOKUP($E31,'Activity 1'!$B$7:$B$13,'Activity 1'!P$7:P$13,\"N/A\",0,1)","v":"N/A"},{"$f":"_xlfn.XLOOKUP($E31,'Activity 1'!$B$7:$B$13,'Activity 1'!Q$7:Q$13,\"N/A\",0,1)","v":"N/A"},{"$f":"_xlfn.XLOOKUP($E31,'Activity 1'!$B$7:$B$13,'Activity 1'!R$7:R$13,\"N/A\",0,1)","v":"N/A"},{"$f":"_xlfn.XLOOKUP($E31,'Activity 1'!$B$7:$B$13,'Activity 1'!S$7:S$13,\"N/A\",0,1)","v":"N/A"},{"$f":"_xlfn.XLOOKUP($E31,'Activity 1'!$B$7:$B$13,'Activity 1'!T$7:T$13,\"N/A\",0,1)","v":"N/A"},{"$f":"_xlfn.XLOOKUP($E31,'Activity 1'!$B$7:$B$13,'Activity 1'!U$7:U$13,\"N/A\",0,1)","v":"N/A"},{"$f":"_xlfn.XLOOKUP($E31,'Activity 1'!$B$7:$B$13,'Activity 1'!V$7:V$13,\"N/A\",0,1)","v":"N/A"},{"$f":"_xlfn.XLOOKUP($E31,'Activity 1'!$B$17:$B$23,'Activity 1'!C$17:C$23,\"N/A\",0,1)","v":"N/A"},{"$f":"_xlfn.XLOOKUP($E31,'Activity 1'!$B$17:$B$23,'Activity 1'!D$17:D$23,\"N/A\",0,1)","v":"N/A"},{"$f":"_xlfn.XLOOKUP($E31,'Activity 1'!$B$17:$B$23,'Activity 1'!E$17:E$23,\"N/A\",0,1)","v":"N/A"},{"$f":"_xlfn.XLOOKUP($E31,'Activity 1'!$B$17:$B$23,'Activity 1'!F$17:F$23,\"N/A\",0,1)","v":"N/A"},{"$f":"_xlfn.XLOOKUP($E31,'Activity 1'!$B$17:$B$23,'Activity 1'!G$17:G$23,\"N/A\",0,1)","v":"N/A"},{"$f":"_xlfn.XLOOKUP($E31,'Activity 1'!$B$17:$B$23,'Activity 1'!H$17:H$23,\"N/A\",0,1)","v":"N/A"},{"$f":"_xlfn.XLOOKUP($E31,'Activity 1'!$B$17:$B$23,'Activity 1'!I$17:I$23,\"N/A\",0,1)","v":"N/A"},{"$f":"_xlfn.XLOOKUP($E31,'Activity 1'!$B$17:$B$23,'Activity 1'!J$17:J$23,\"N/A\",0,1)","v":"N/A"},{"$f":"_xlfn.XLOOKUP($E31,'Activity 1'!$B$17:$B$23,'Activity 1'!K$17:K$23,\"N/A\",0,1)","v":"N/A"},{"$f":"_xlfn.XLOOKUP($E31,'Activity 1'!$B$17:$B$23,'Activity 1'!L$17:L$23,\"N/A\",0,1)","v":"N/A"},{"$f":"_xlfn.XLOOKUP($E31,'Activity 1'!$B$17:$B$23,'Activity 1'!M$17:M$23,\"N/A\",0,1)","v":"N/A"},{"$f":"_xlfn.XLOOKUP($E31,'Activity 1'!$B$17:$B$23,'Activity 1'!O$17:O$23,\"N/A\",0,1)","v":"N/A"},{"$f":"_xlfn.XLOOKUP($E31,'Activity 1'!$B$17:$B$23,'Activity 1'!Q$17:Q$23,\"N/A\",0,1)","v":"N/A"},{"$f":"_xlfn.XLOOKUP($E31,'Activity 2'!$B$7:$B$13,'Activity 2'!$A$7:$A$13,\"No\",0,1)","v":"No"},{"$f":"_xlfn.XLOOKUP($E31,'Activity 2'!B$7:B$13,'Activity 2'!H$7:H$13,\"N/A\",0)","v":"N/A"},{"$f":"_xlfn.XLOOKUP($E31,'Activity 2'!C$7:C$13,'Activity 2'!I$7:I$13,\"N/A\",0)","v":"N/A"},{"$f":"_xlfn.XLOOKUP($E31,'Activity 2'!D$7:D$13,'Activity 2'!J$7:J$13,\"N/A\",0)","v":"N/A"},{"$f":"_xlfn.XLOOKUP($E31,'Activity 2'!E$7:E$13,'Activity 2'!K$7:K$13,\"N/A\",0)","v":"N/A"},{"$f":"_xlfn.XLOOKUP($E31,'Activity 2'!F$7:F$13,'Activity 2'!L$7:L$13,\"N/A\",0)","v":"N/A"},{"$f":"_xlfn.XLOOKUP($E31,'Activity 2'!G$7:G$13,'Activity 2'!M$7:M$13,\"N/A\",0)","v":"N/A"},{"$f":"_xlfn.XLOOKUP($E31,'Activity 2'!H$7:H$13,'Activity 2'!N$7:N$13,\"N/A\",0)","v":"N/A"},{"$f":"_xlfn.XLOOKUP($E31,'Activity 2'!I$7:I$13,'Activity 2'!O$7:O$13,\"N/A\",0)","v":"N/A"},{"$f":"_xlfn.XLOOKUP($E31,'Activity 2'!J$7:J$13,'Activity 2'!P$7:P$13,\"N/A\",0)","v":"N/A"},{"$f":"_xlfn.XLOOKUP($E31,'Activity 2'!K$7:K$13,'Activity 2'!Q$7:Q$13,\"N/A\",0)","v":"N/A"},{"$f":"_xlfn.XLOOKUP($E31,'Activity 2'!L$7:L$13,'Activity 2'!R$7:R$13,\"N/A\",0)","v":"N/A"},{"$f":"_xlfn.XLOOKUP($E31,'Activity 2'!M$7:M$13,'Activity 2'!S$7:S$13,\"N/A\",0)","v":"N/A"},{"$f":"_xlfn.XLOOKUP($E31,'Activity 2'!N$7:N$13,'Activity 2'!T$7:T$13,\"N/A\",0)","v":"N/A"},{"$f":"_xlfn.XLOOKUP($E31,'Activity 2'!O$7:O$13,'Activity 2'!U$7:U$13,\"N/A\",0)","v":"N/A"},{"$f":"_xlfn.XLOOKUP($E31,'Activity 2'!P$7:P$13,'Activity 2'!V$7:V$13,\"N/A\",0)","v":"N/A"},{"$f":"_xlfn.XLOOKUP($E31,'Activity 2'!$B$17:$B$23,'Activity 2'!C$17:C$23,\"N/A\",0,1)","v":"N/A"},{"$f":"_xlfn.XLOOKUP($E31,'Activity 2'!$B$17:$B$23,'Activity 2'!D$17:D$23,\"N/A\",0,1)","v":"N/A"},{"$f":"_xlfn.XLOOKUP($E31,'Activity 2'!$B$17:$B$23,'Activity 2'!E$17:E$23,\"N/A\",0,1)","v":"N/A"},{"$f":"_xlfn.XLOOKUP($E31,'Activity 2'!$B$17:$B$23,'Activity 2'!F$17:F$23,\"N/A\",0,1)","v":"N/A"},{"$f":"_xlfn.XLOOKUP($E31,'Activity 2'!$B$17:$B$23,'Activity 2'!G$17:G$23,\"N/A\",0,1)","v":"N/A"},{"$f":"_xlfn.XLOOKUP($E31,'Activity 2'!$B$17:$B$23,'Activity 2'!H$17:H$23,\"N/A\",0,1)","v":"N/A"},{"$f":"_xlfn.XLOOKUP($E31,'Activity 2'!$B$17:$B$23,'Activity 2'!I$17:I$23,\"N/A\",0,1)","v":"N/A"},{"$f":"_xlfn.XLOOKUP($E31,'Activity 2'!$B$17:$B$23,'Activity 2'!J$17:J$23,\"N/A\",0,1)","v":"N/A"},{"$f":"_xlfn.XLOOKUP($E31,'Activity 2'!$B$17:$B$23,'Activity 2'!K$17:K$23,\"N/A\",0,1)","v":"N/A"},{"$f":"_xlfn.XLOOKUP($E31,'Activity 2'!$B$17:$B$23,'Activity 2'!L$17:L$23,\"N/A\",0,1)","v":"N/A"},{"$f":"_xlfn.XLOOKUP($E31,'Activity 2'!$B$17:$B$23,'Activity 2'!M$17:M$23,\"N/A\",0,1)","v":"N/A"},{"$f":"_xlfn.XLOOKUP($E31,'Activity 2'!$B$17:$B$23,'Activity 2'!O$17:O$23,\"N/A\",0,1)","v":"N/A"},{"$f":"_xlfn.XLOOKUP($E31,'Activity 2'!$B$17:$B$23,'Activity 2'!Q$17:Q$23,\"N/A\",0,1)","v":"N/A"},null,{"$f":"_xlfn.XLOOKUP($E31,'Activity 3'!$B$8:$B$14,'Activity 3'!K$8:K$14,\"N/A\",0,1)","v":"N/A"},{"$f":"_xlfn.XLOOKUP($E31,'Activity 3'!$B$8:$B$14,'Activity 3'!L$8:L$14,\"N/A\",0,1)","v":"N/A"},{"$f":"_xlfn.XLOOKUP($E31,'Activity 3'!$B$8:$B$14,'Activity 3'!M$8:M$14,\"N/A\",0,1)","v":"N/A"},{"$f":"_xlfn.XLOOKUP($E31,'Activity 3'!$B$8:$B$14,'Activity 3'!N$8:N$14,\"N/A\",0,1)","v":"N/A"},{"$f":"_xlfn.XLOOKUP($E31,'Activity 3'!$B$8:$B$14,'Activity 3'!O$8:O$14,\"N/A\",0,1)","v":"N/A"},{"$f":"_xlfn.XLOOKUP($E31,'Activity 3'!$B$8:$B$14,'Activity 3'!R$8:R$14,\"N/A\",0,1)","v":"N/A"},{"$f":"_xlfn.XLOOKUP($E31,'Activity 4'!$B$8:$B$14,'Activity 4'!$A$8:$A$14,\"No\",0,1)","v":"No"},{"$f":"_xlfn.XLOOKUP($E31,'Activity 4'!$B$8:$B$14,'Activity 4'!L$8:L$14,\"N/A\",0,1)","v":"N/A"},{"$f":"_xlfn.XLOOKUP($E31,'Activity 4'!$B$8:$B$14,'Activity 4'!I$8:I$14,\"N/A\",0,1)","v":"N/A"},{"$f":"_xlfn.XLOOKUP($E31,'Activity 4'!$B$8:$B$14,'Activity 4'!M$8:M$14,\"N/A\",0,1)","v":"N/A"},{"$f":"_xlfn.XLOOKUP($E31,'Activity 5'!$B$8:$B$14,'Activity 5'!$A$8:$A$14,\"No\",0,1)","v":"No"},{"$f":"_xlfn.XLOOKUP($E31,'Activity 5'!$B$8:$B$14,'Activity 5'!J$8:J$14,\"N/A\",0,1)","v":"N/A"},{"$f":"_xlfn.XLOOKUP($E31,'Activity 5'!$B$8:$B$14,'Activity 5'!K$8:K$14,\"N/A\",0,1)","v":"N/A"},{"$f":"_xlfn.XLOOKUP($E31,'Activity 5'!$B$8:$B$14,'Activity 5'!N$8:N$14,\"N/A\",0,1)","v":"N/A"},{"$f":"_xlfn.XLOOKUP($E31,'Activity 5'!$B$8:$B$14,'Activity 5'!O$8:O$14,\"N/A\",0,1)","v":"N/A"},{"$f":"_xlfn.XLOOKUP($E31,'Activity 5'!$B$8:$B$14,'Activity 5'!P$8:P$14,\"N/A\",0,1)","v":"N/A"},{"$f":"_xlfn.XLOOKUP($E31,'Activity 5'!$B$8:$B$14,'Activity 5'!Q$8:Q$14,\"N/A\",0,1)","v":"N/A"},{"$f":"_xlfn.XLOOKUP($E31,'Activity 5'!$B$8:$B$14,'Activity 5'!R$8:R$14,\"N/A\",0,1)","v":"N/A"},{"$f":"_xlfn.XLOOKUP($E31,'Activity 6'!$B$7:$B$13,'Activity 6'!A$7:A$13,\"No\",0,1)","v":"No"},{"$f":"_xlfn.XLOOKUP($E31,'Activity 6'!$B$7:$B$13,'Activity 6'!K$7:K$13,\"N/A\",0,1)","v":"N/A"},{"$f":"_xlfn.XLOOKUP($E31,'Activity 6'!$B$7:$B$13,'Activity 6'!L$7:L$13,\"N/A\",0,1)","v":"N/A"},{"$f":"_xlfn.XLOOKUP($E31,'Activity 6'!$B$7:$B$13,'Activity 6'!M$7:M$13,\"N/A\",0,1)","v":"N/A"},{"$f":"_xlfn.XLOOKUP($E31,'Activity 6'!$B$7:$B$13,'Activity 6'!N$7:N$13,\"N/A\",0,1)","v":"N/A"},{"$f":"_xlfn.XLOOKUP($E31,'Activity 6'!$B$7:$B$13,'Activity 6'!O$7:O$13,\"N/A\",0,1)","v":"N/A"},{"$f":"_xlfn.XLOOKUP($E31,'Activity 6'!$B$7:$B$13,'Activity 6'!P$7:P$13,\"N/A\",0,1)","v":"N/A"},{"$f":"_xlfn.XLOOKUP($E31,'Activity 6'!$B$7:$B$13,'Activity 6'!Q$7:Q$13,\"N/A\",0,1)","v":"N/A"},{"$f":"_xlfn.XLOOKUP($E31,'Activity 6'!$B$7:$B$13,'Activity 6'!R$7:R$13,\"N/A\",0,1)","v":"N/A"},{"$f":"_xlfn.XLOOKUP($E31,'Activity 6'!$B$7:$B$13,'Activity 6'!S$7:S$13,\"N/A\",0,1)","v":"N/A"},{"$f":"_xlfn.XLOOKUP($E31,'Activity 6'!$B$7:$B$13,'Activity 6'!T$7:T$13,\"N/A\",0,1)","v":"N/A"},{"$f":"_xlfn.XLOOKUP($E31,'Activity 6'!$B$7:$B$13,'Activity 6'!U$7:U$13,\"N/A\",0,1)","v":"N/A"},{"$f":"_xlfn.XLOOKUP($E31,'Activity 6'!$B$22:$B$28,'Activity 6'!C$22:C$28,\"N/A\",0,1)","v":"N/A"},{"$f":"_xlfn.XLOOKUP($E31,'Activity 6'!$B$22:$B$28,'Activity 6'!D$22:D$28,\"N/A\",0,1)","v":"N/A"},{"$f":"_xlfn.XLOOKUP($E31,'Activity 6'!$B$22:$B$28,'Activity 6'!E$22:E$28,\"N/A\",0,1)","v":"N/A"},{"$f":"_xlfn.XLOOKUP($E31,'Activity 6'!$B$22:$B$28,'Activity 6'!F$22:F$28,\"N/A\",0,1)","v":"N/A"},{"$f":"_xlfn.XLOOKUP($E31,'Activity 6'!$B$22:$B$28,'Activity 6'!G$22:G$28,\"N/A\",0,1)","v":"N/A"},{"$f":"_xlfn.XLOOKUP($E31,'Activity 6'!$B$22:$B$28,'Activity 6'!H$22:H$28,\"N/A\",0,1)","v":"N/A"},{"$f":"_xlfn.XLOOKUP($E31,'Activity 6'!$B$22:$B$28,'Activity 6'!I$22:I$28,\"N/A\",0,1)","v":"N/A"},{"$f":"_xlfn.XLOOKUP($E31,'Activity 6'!$B$22:$B$28,'Activity 6'!J$22:J$28,\"N/A\",0,1)","v":"N/A"},{"$f":"_xlfn.XLOOKUP($E31,'Activity 6'!$B$22:$B$28,'Activity 6'!K$22:K$28,\"N/A\",0,1)","v":"N/A"},{"$f":"_xlfn.XLOOKUP($E31,'Activity 6'!$B$22:$B$28,'Activity 6'!L$22:L$28,\"N/A\",0,1)","v":"N/A"},{"$f":"_xlfn.XLOOKUP($E31,'Activity 6'!$B$22:$B$28,'Activity 6'!M$22:M$28,\"N/A\",0,1)","v":"N/A"},{"$f":"_xlfn.XLOOKUP($E31,'Activity 6'!$B$22:$B$28,'Activity 6'!N$22:N$28,\"N/A\",0,1)","v":"N/A"},{"$f":"_xlfn.XLOOKUP($E31,'Activity 6'!$B$32:$B$38,'Activity 6'!C$32:C$38,\"N/A\",0,1)","v":"N/A"},{"$f":"_xlfn.XLOOKUP($E31,'Activity 6'!$B$32:$B$38,'Activity 6'!D$32:D$38,\"N/A\",0,1)","v":"N/A"},{"$f":"_xlfn.XLOOKUP($E31,'Activity 6'!$B$32:$B$38,'Activity 6'!E$32:E$38,\"N/A\",0,1)","v":"N/A"},{"$f":"_xlfn.XLOOKUP($E31,'Activity 6'!$B$32:$B$38,'Activity 6'!F$32:F$38,\"N/A\",0,1)","v":"N/A"},{"$f":"_xlfn.XLOOKUP($E31,'Activity 6'!$B$32:$B$38,'Activity 6'!G$32:G$38,\"N/A\",0,1)","v":"N/A"},{"$f":"_xlfn.XLOOKUP($E31,'Activity 6'!$B$32:$B$38,'Activity 6'!H$32:H$38,\"N/A\",0,1)","v":"N/A"},{"$f":"_xlfn.XLOOKUP($E31,'Activity 6'!$B$32:$B$38,'Activity 6'!I$32:I$38,\"N/A\",0,1)","v":"N/A"},{"$f":"_xlfn.XLOOKUP($E31,'Activity 6'!$B$32:$B$38,'Activity 6'!J$32:J$38,\"N/A\",0,1)","v":"N/A"},{"$f":"_xlfn.XLOOKUP($E31,'Activity 6'!$B$32:$B$38,'Activity 6'!K$32:K$38,\"N/A\",0,1)","v":"N/A"},{"$f":"_xlfn.XLOOKUP($E31,'Activity 6'!$B$32:$B$38,'Activity 6'!M$32:M$38,\"N/A\",0,1)","v":"N/A"},{"$f":"_xlfn.XLOOKUP($E31,'Activity 7'!$B$7:$B$13,'Activity 7'!$A$7:$A$13,\"No\",0,1)","v":"No"},{"$f":"_xlfn.XLOOKUP($E31,'Activity 7'!$B$7:$B$13,'Activity 7'!M$7:M$13,\"N/A\",0,1)","v":"N/A"},{"$f":"_xlfn.XLOOKUP($E31,'Activity 7'!$B$7:$B$13,'Activity 7'!K$7:K$13,\"N/A\",0,1)","v":"N/A"},{"$f":"_xlfn.XLOOKUP($E31,'Activity 7'!$B$7:$B$13,'Activity 7'!N$7:N$13,\"N/A\",0,1)","v":"N/A"},{"$f":"_xlfn.XLOOKUP($E31,'Activity 7'!$B$7:$B$13,'Activity 7'!O$7:O$13,\"N/A\",0,1)","v":"N/A"},{"$f":"_xlfn.XLOOKUP($E31,'Activity 7'!$B$7:$B$13,'Activity 7'!P$7:P$13,\"N/A\",0,1)","v":"N/A"},{"$f":"_xlfn.XLOOKUP($E31,'Activity 7'!$B$7:$B$13,'Activity 7'!Q$7:Q$13,\"N/A\",0,1)","v":"N/A"},{"$f":"_xlfn.XLOOKUP($E31,'Activity 7'!$B$7:$B$13,'Activity 7'!R$7:R$13,\"N/A\",0,1)","v":"N/A"},{"$f":"_xlfn.XLOOKUP($E31,'Activity 7'!$B$7:$B$13,'Activity 7'!S$7:S$13,\"N/A\",0,1)","v":"N/A"},{"$f":"_xlfn.XLOOKUP($E31,'Activity 7'!$B$7:$B$13,'Activity 7'!T$7:T$13,\"N/A\",0,1)","v":"N/A"},{"$f":"_xlfn.XLOOKUP($E31,'Activity 7'!$B$7:$B$13,'Activity 7'!U$7:U$13,\"N/A\",0,1)","v":"N/A"},{"$f":"_xlfn.XLOOKUP($E31,'Activity 7'!$B$7:$B$13,'Activity 7'!V$7:V$13,\"N/A\",0,1)","v":"N/A"},{"$f":"_xlfn.XLOOKUP($E31,'Activity 7'!$B$17:$B$23,'Activity 7'!E$17:E$23,\"N/A\",0,1)","v":"N/A"},{"$f":"_xlfn.XLOOKUP($E31,'Activity 7'!$B$17:$B$23,'Activity 7'!G$17:G$23,\"N/A\",0,1)","v":"N/A"},{"$f":"_xlfn.XLOOKUP($E31,'Activity 7'!$B$17:$B$23,'Activity 7'!I$17:I$23,\"N/A\",0,1)","v":"N/A"},{"$f":"_xlfn.XLOOKUP($E31,'Activity 7'!$B$17:$B$23,'Activity 7'!J$17:J$23,\"N/A\",0,1)","v":"N/A"},{"$f":"_xlfn.XLOOKUP($E31,'Activity 7'!$B$17:$B$23,'Activity 7'!K$17:K$23,\"N/A\",0,1)","v":"N/A"},{"$f":"_xlfn.XLOOKUP($E31,'Activity 7'!$B$17:$B$23,'Activity 7'!L$17:L$23,\"N/A\",0,1)","v":"N/A"},{"$f":"_xlfn.XLOOKUP($E31,'Activity 7'!$B$17:$B$23,'Activity 7'!M$17:M$23,\"N/A\",0,1)","v":"N/A"},{"$f":"_xlfn.XLOOKUP($E31,'Activity 7'!$B$17:$B$23,'Activity 7'!N$17:N$23,\"N/A\",0,1)","v":"N/A"},{"$f":"_xlfn.XLOOKUP($E31,'Activity 7'!$B$17:$B$23,'Activity 7'!P$17:P$23,\"N/A\",0,1)","v":"N/A"},{"$f":"_xlfn.XLOOKUP($E31,'Activity 8'!$B$7:$B$13,'Activity 8'!A$7:A$13,\"No\",0,1)","v":"No"},{"$f":"_xlfn.XLOOKUP($E31,'Activity 8'!$B$7:$B$13,'Activity 8'!I$7:I$13,\"N/A\",0,1)","v":"N/A"},{"$f":"_xlfn.XLOOKUP($E31,'Activity 8'!$B$7:$B$13,'Activity 8'!J$7:J$13,\"N/A\",0,1)","v":"N/A"},{"$f":"_xlfn.XLOOKUP($E31,'Activity 8'!$B$7:$B$13,'Activity 8'!K$7:K$13,\"N/A\",0,1)","v":"N/A"},{"$f":"_xlfn.XLOOKUP($E31,'Activity 8'!$B$7:$B$13,'Activity 8'!L$7:L$13,\"N/A\",0,1)","v":"N/A"},{"$f":"_xlfn.XLOOKUP($E31,'Activity 8'!$B$7:$B$13,'Activity 8'!M$7:M$13,\"N/A\",0,1)","v":"N/A"},{"$f":"_xlfn.XLOOKUP($E31,'Activity 8'!$B$7:$B$13,'Activity 8'!N$7:N$13,\"N/A\",0,1)","v":"N/A"},{"$f":"_xlfn.XLOOKUP($E31,'Activity 8'!$B$7:$B$13,'Activity 8'!O$7:O$13,\"N/A\",0,1)","v":"N/A"},{"$f":"_xlfn.XLOOKUP($E31,'Activity 8'!$B$7:$B$13,'Activity 8'!P$7:P$13,\"N/A\",0,1)","v":"N/A"},{"$f":"_xlfn.XLOOKUP($E31,'Activity 8'!$B$7:$B$13,'Activity 8'!Q$7:Q$13,\"N/A\",0,1)","v":"N/A"},{"$f":"_xlfn.XLOOKUP($E31,'Activity 8'!$B$7:$B$13,'Activity 8'!R$7:R$13,\"N/A\",0,1)","v":"N/A"},{"$f":"_xlfn.XLOOKUP($E31,'Activity 8'!$B$7:$B$13,'Activity 8'!S$7:S$13,\"N/A\",0,1)","v":"N/A"},{"$f":"_xlfn.XLOOKUP($E31,'Activity 8'!$B$7:$B$13,'Activity 8'!T$7:T$13,\"N/A\",0,1)","v":"N/A"},{"$f":"_xlfn.XLOOKUP($E31,'Activity 8'!$B$7:$B$13,'Activity 8'!U$7:U$13,\"N/A\",0,1)","v":"N/A"},{"$f":"_xlfn.XLOOKUP($E31,'Activity 8'!$B$7:$B$13,'Activity 8'!V$7:V$13,\"N/A\",0,1)","v":"N/A"},{"$f":"_xlfn.XLOOKUP($E31,'Activity 8'!$B$17:$B$23,'Activity 8'!D$17:D$23,\"N/A\",0,1)","v":"N/A"},{"$f":"_xlfn.XLOOKUP($E31,'Activity 8'!$B$17:$B$23,'Activity 8'!E$17:E$23,\"N/A\",0,1)","v":"N/A"},{"$f":"_xlfn.XLOOKUP($E31,'Activity 8'!$B$17:$B$23,'Activity 8'!F$17:F$23,\"N/A\",0,1)","v":"N/A"},{"$f":"_xlfn.XLOOKUP($E31,'Activity 8'!$B$17:$B$23,'Activity 8'!G$17:G$23,\"N/A\",0,1)","v":"N/A"},{"$f":"_xlfn.XLOOKUP($E31,'Activity 8'!$B$17:$B$23,'Activity 8'!H$17:H$23,\"N/A\",0,1)","v":"N/A"},{"$f":"_xlfn.XLOOKUP($E31,'Activity 8'!$B$17:$B$23,'Activity 8'!I$17:I$23,\"N/A\",0,1)","v":"N/A"},{"$f":"_xlfn.XLOOKUP($E31,'Activity 8'!$B$17:$B$23,'Activity 8'!J$17:J$23,\"N/A\",0,1)","v":"N/A"},{"$f":"_xlfn.XLOOKUP($E31,'Activity 8'!$B$17:$B$23,'Activity 8'!K$17:K$23,\"N/A\",0,1)","v":"N/A"},{"$f":"_xlfn.XLOOKUP($E31,'Activity 8'!$B$17:$B$23,'Activity 8'!L$17:L$23,\"N/A\",0,1)","v":"N/A"},{"$f":"_xlfn.XLOOKUP($E31,'Activity 8'!$B$17:$B$23,'Activity 8'!M$17:M$23,\"N/A\",0,1)","v":"N/A"},{"$f":"_xlfn.XLOOKUP($E31,'Activity 8'!$B$17:$B$23,'Activity 8'!N$17:N$23,\"N/A\",0,1)","v":"N/A"},{"$f":"_xlfn.XLOOKUP($E31,'Activity 8'!$B$17:$B$23,'Activity 8'!P$17:P$23,\"N/A\",0,1)","v":"N/A"},{"$f":"_xlfn.XLOOKUP(E31,'Activity 9'!$B$7:$B$13,'Activity 9'!$A$7:$A$13,\"No\",0,1)","v":"No"},{"$f":"_xlfn.XLOOKUP($E31,'Activity 9'!$B$7:$B$13,'Activity 9'!J$7:J$13,\"N/A\",0,1)","v":"N/A"},{"$f":"_xlfn.XLOOKUP($E31,'Activity 9'!$B$7:$B$13,'Activity 9'!K$7:K$13,\"N/A\",0,1)","v":"N/A"},{"$f":"_xlfn.XLOOKUP($E31,'Activity 9'!$B$7:$B$13,'Activity 9'!L$7:L$13,\"N/A\",0,1)","v":"N/A"},{"$f":"_xlfn.XLOOKUP($E31,'Activity 9'!$B$7:$B$13,'Activity 9'!M$7:M$13,\"N/A\",0,1)","v":"N/A"},{"$f":"_xlfn.XLOOKUP($E31,'Activity 9'!$B$7:$B$13,'Activity 9'!N$7:N$13,\"N/A\",0,1)","v":"N/A"},{"$f":"_xlfn.XLOOKUP($E31,'Activity 9'!$B$7:$B$13,'Activity 9'!O$7:O$13,\"N/A\",0,1)","v":"N/A"},{"$f":"_xlfn.XLOOKUP($E31,'Activity 9'!$B$7:$B$13,'Activity 9'!P$7:P$13,\"N/A\",0,1)","v":"N/A"},{"$f":"_xlfn.XLOOKUP($E31,'Activity 9'!$B$7:$B$13,'Activity 9'!Q$7:Q$13,\"N/A\",0,1)","v":"N/A"},{"$f":"_xlfn.XLOOKUP($E31,'Activity 9'!$B$7:$B$13,'Activity 9'!R$7:R$13,\"N/A\",0,1)","v":"N/A"},{"$f":"_xlfn.XLOOKUP($E31,'Activity 9'!$B$7:$B$13,'Activity 9'!S$7:S$13,\"N/A\",0,1)","v":"N/A"},{"$f":"_xlfn.XLOOKUP($E31,'Activity 9'!$B$7:$B$13,'Activity 9'!T$7:T$13,\"N/A\",0,1)","v":"N/A"},{"$f":"_xlfn.XLOOKUP($E31,'Activity 9'!$B$17:$B$23,'Activity 9'!E$17:E$23,\"N/A\",0,1)","v":"N/A"},{"$f":"_xlfn.XLOOKUP($E31,'Activity 9'!$B$17:$B$23,'Activity 9'!F$17:F$23,\"N/A\",0,1)","v":"N/A"},{"$f":"_xlfn.XLOOKUP($E31,'Activity 9'!$B$17:$B$23,'Activity 9'!G$17:G$23,\"N/A\",0,1)","v":"N/A"},{"$f":"_xlfn.XLOOKUP($E31,'Activity 9'!$B$17:$B$23,'Activity 9'!H$17:H$23,\"N/A\",0,1)","v":"N/A"},{"$f":"_xlfn.XLOOKUP($E31,'Activity 9'!$B$17:$B$23,'Activity 9'!I$17:I$23,\"N/A\",0,1)","v":"N/A"},{"$f":"_xlfn.XLOOKUP($E31,'Activity 9'!$B$17:$B$23,'Activity 9'!J$17:J$23,\"N/A\",0,1)","v":"N/A"},{"$f":"_xlfn.XLOOKUP($E31,'Activity 9'!$B$17:$B$23,'Activity 9'!K$17:K$23,\"N/A\",0,1)","v":"N/A"},{"$f":"_xlfn.XLOOKUP($E31,'Activity 9'!$B$17:$B$23,'Activity 9'!L$17:L$23,\"N/A\",0,1)","v":"N/A"},{"$f":"_xlfn.XLOOKUP($E31,'Activity 9'!$B$17:$B$23,'Activity 9'!N$17:N$23,\"N/A\",0,1)","v":"N/A"},{"$f":"_xlfn.XLOOKUP($E31,'Activity 9'!$B$17:$B$23,'Activity 9'!O$17:O$23,\"N/A\",0,1)","v":"N/A"},{"$f":"_xlfn.XLOOKUP($E31,'Activity 9'!$B$17:$B$23,'Activity 9'!Q$17:Q$23,\"N/A\",0,1)","v":"N/A"},{"$f":"_xlfn.XLOOKUP($E31,'Activity 10'!$B$7:$B$13,'Activity 10'!A$7:A$13,\"No\",0,1)","v":"No"},{"$f":"_xlfn.XLOOKUP($E31,'Activity 10'!$B$7:$B$13,'Activity 10'!J$7:J$13,\"N/A\",0,1)","v":"N/A"},{"$f":"_xlfn.XLOOKUP($E31,'Activity 10'!$B$7:$B$13,'Activity 10'!K$7:K$13,\"N/A\",0,1)","v":"N/A"},{"$f":"_xlfn.XLOOKUP($E31,'Activity 10'!$B$7:$B$13,'Activity 10'!L$7:L$13,\"N/A\",0,1)","v":"N/A"},{"$f":"_xlfn.XLOOKUP($E31,'Activity 10'!$B$7:$B$13,'Activity 10'!M$7:M$13,\"N/A\",0,1)","v":"N/A"},{"$f":"_xlfn.XLOOKUP($E31,'Activity 10'!$B$7:$B$13,'Activity 10'!N$7:N$13,\"N/A\",0,1)","v":"N/A"},{"$f":"_xlfn.XLOOKUP($E31,'Activity 10'!$B$7:$B$13,'Activity 10'!O$7:O$13,\"N/A\",0,1)","v":"N/A"},{"$f":"_xlfn.XLOOKUP($E31,'Activity 10'!$B$7:$B$13,'Activity 10'!P$7:P$13,\"N/A\",0,1)","v":"N/A"},{"$f":"_xlfn.XLOOKUP($E31,'Activity 10'!$B$7:$B$13,'Activity 10'!Q$7:Q$13,\"N/A\",0,1)","v":"N/A"},{"$f":"_xlfn.XLOOKUP($E31,'Activity 10'!$B$7:$B$13,'Activity 10'!R$7:R$13,\"N/A\",0,1)","v":"N/A"},{"$f":"_xlfn.XLOOKUP($E31,'Activity 10'!$B$7:$B$13,'Activity 10'!S$7:S$13,\"N/A\",0,1)","v":"N/A"},{"$f":"_xlfn.XLOOKUP($E31,'Activity 10'!$B$7:$B$13,'Activity 10'!T$7:T$13,\"N/A\",0,1)","v":"N/A"},{"$f":"_xlfn.XLOOKUP($E31,'Activity 10'!$B$7:$B$13,'Activity 10'!U$7:U$13,\"N/A\",0,1)","v":"N/A"},{"$f":"_xlfn.XLOOKUP($E31,'Activity 10'!$B$7:$B$13,'Activity 10'!V$7:V$13,\"N/A\",0,1)","v":"N/A"},{"$f":"_xlfn.XLOOKUP($E31,'Activity 10'!$B$17:$B$23,'Activity 10'!E$17:E$23,\"N/A\",0,1)","v":"N/A"},{"$f":"_xlfn.XLOOKUP($E31,'Activity 10'!$B$17:$B$23,'Activity 10'!F$17:F$23,\"N/A\",0,1)","v":"N/A"},{"$f":"_xlfn.XLOOKUP($E31,'Activity 10'!$B$17:$B$23,'Activity 10'!G$17:G$23,\"N/A\",0,1)","v":"N/A"},{"$f":"_xlfn.XLOOKUP($E31,'Activity 10'!$B$17:$B$23,'Activity 10'!H$17:H$23,\"N/A\",0,1)","v":"N/A"},{"$f":"_xlfn.XLOOKUP($E31,'Activity 10'!$B$17:$B$23,'Activity 10'!I$17:I$23,\"N/A\",0,1)","v":"N/A"},{"$f":"_xlfn.XLOOKUP($E31,'Activity 10'!$B$17:$B$23,'Activity 10'!J$17:J$23,\"N/A\",0,1)","v":"N/A"},{"$f":"_xlfn.XLOOKUP($E31,'Activity 10'!$B$17:$B$23,'Activity 10'!K$17:K$23,\"N/A\",0,1)","v":"N/A"},{"$f":"_xlfn.XLOOKUP($E31,'Activity 10'!$B$17:$B$23,'Activity 10'!L$17:L$23,\"N/A\",0,1)","v":"N/A"},{"$f":"_xlfn.XLOOKUP($E31,'Activity 10'!$B$17:$B$23,'Activity 10'!M$17:M$23,\"N/A\",0,1)","v":"N/A"},{"$f":"_xlfn.XLOOKUP($E31,'Activity 10'!$B$17:$B$23,'Activity 10'!N$17:N$23,\"N/A\",0,1)","v":"N/A"},{"$f":"_xlfn.XLOOKUP($E31,'Activity 10'!$B$17:$B$23,'Activity 10'!P$17:P$23,\"N/A\",0,1)","v":"N/A"},{"$f":"_xlfn.XLOOKUP($E31,'Competitive Activity 1'!B$7:B$13,'Competitive Activity 1'!A$7:A$13,\"No\",0,1)","v":"No"},{"$f":"_xlfn.XLOOKUP($E31,'Competitive Activity 1'!$B$7:$B$13,'Competitive Activity 1'!H$7:H$13,\"N/A\",0,1)","v":"N/A"},{"$f":"_xlfn.XLOOKUP($E31,'Competitive Activity 1'!$B$7:$B$13,'Competitive Activity 1'!I$7:I$13,\"N/A\",0,1)","v":"N/A"},{"$f":"_xlfn.XLOOKUP($E31,'Competitive Activity 1'!$B$7:$B$13,'Competitive Activity 1'!J$7:J$13,\"N/A\",0,1)","v":"N/A"},{"$f":"_xlfn.XLOOKUP($E31,'Competitive Activity 1'!$B$7:$B$13,'Competitive Activity 1'!K$7:K$13,\"N/A\",0,1)","v":"N/A"},{"$f":"_xlfn.XLOOKUP($E31,'Competitive Activity 1'!$B$7:$B$13,'Competitive Activity 1'!L$7:L$13,\"N/A\",0,1)","v":"N/A"},{"$f":"_xlfn.XLOOKUP($E31,'Competitive Activity 1'!$B$7:$B$13,'Competitive Activity 1'!M$7:M$13,\"N/A\",0,1)","v":"N/A"},{"$f":"_xlfn.XLOOKUP($E31,'Competitive Activity 1'!$B$7:$B$13,'Competitive Activity 1'!N$7:N$13,\"N/A\",0,1)","v":"N/A"},{"$f":"_xlfn.XLOOKUP($E31,'Competitive Activity 1'!$B$7:$B$13,'Competitive Activity 1'!O$7:O$13,\"N/A\",0,1)","v":"N/A"},{"$f":"_xlfn.XLOOKUP($E31,'Competitive Activity 1'!$B$7:$B$13,'Competitive Activity 1'!P$7:P$13,\"N/A\",0,1)","v":"N/A"},{"$f":"_xlfn.XLOOKUP($E31,'Competitive Activity 1'!$B$7:$B$13,'Competitive Activity 1'!Q$7:Q$13,\"N/A\",0,1)","v":"N/A"},{"$f":"_xlfn.XLOOKUP($E31,'Competitive Activity 1'!$B$7:$B$13,'Competitive Activity 1'!R$7:R$13,\"N/A\",0,1)","v":"N/A"},{"$f":"_xlfn.XLOOKUP($E31,'Competitive Activity 1'!$B$7:$B$13,'Competitive Activity 1'!S$7:S$13,\"N/A\",0,1)","v":"N/A"},{"$f":"_xlfn.XLOOKUP($E31,'Competitive Activity 1'!$B$7:$B$13,'Competitive Activity 1'!T$7:T$13,\"N/A\",0,1)","v":"N/A"},{"$f":"_xlfn.XLOOKUP($E31,'Competitive Activity 1'!$B$7:$B$13,'Competitive Activity 1'!U$7:U$13,\"N/A\",0,1)","v":"N/A"},{"$f":"_xlfn.XLOOKUP($E31,'Competitive Activity 1'!$B$17:$B$23,'Competitive Activity 1'!C$17:C$23,\"N/A\",0,1)","v":"N/A"},{"$f":"_xlfn.XLOOKUP($E31,'Competitive Activity 1'!$B$17:$B$23,'Competitive Activity 1'!D$17:D$23,\"N/A\",0,1)","v":"N/A"},{"$f":"_xlfn.XLOOKUP($E31,'Competitive Activity 1'!$B$17:$B$23,'Competitive Activity 1'!E$17:E$23,\"N/A\",0,1)","v":"N/A"},{"$f":"_xlfn.XLOOKUP($E31,'Competitive Activity 1'!$B$17:$B$23,'Competitive Activity 1'!F$17:F$23,\"N/A\",0,1)","v":"N/A"},{"$f":"_xlfn.XLOOKUP($E31,'Competitive Activity 1'!$B$17:$B$23,'Competitive Activity 1'!G$17:G$23,\"N/A\",0,1)","v":"N/A"},{"$f":"_xlfn.XLOOKUP($E31,'Competitive Activity 1'!$B$17:$B$23,'Competitive Activity 1'!H$17:H$23,\"N/A\",0,1)","v":"N/A"},{"$f":"_xlfn.XLOOKUP($E31,'Competitive Activity 1'!$B$17:$B$23,'Competitive Activity 1'!I$17:I$23,\"N/A\",0,1)","v":"N/A"},{"$f":"_xlfn.XLOOKUP($E31,'Competitive Activity 1'!$B$17:$B$23,'Competitive Activity 1'!J$17:J$23,\"N/A\",0,1)","v":"N/A"},{"$f":"_xlfn.XLOOKUP($E31,'Competitive Activity 1'!$B$17:$B$23,'Competitive Activity 1'!K$17:K$23,\"N/A\",0,1)","v":"N/A"},{"$f":"_xlfn.XLOOKUP($E31,'Competitive Activity 1'!$B$17:$B$23,'Competitive Activity 1'!M$17:M$23,\"N/A\",0,1)","v":"N/A"},{"$f":"_xlfn.XLOOKUP($E31,'Competitive Activity 1'!$B$17:$B$23,'Competitive Activity 1'!N$17:N$23,\"N/A\",0,1)","v":"N/A"},{"$f":"_xlfn.XLOOKUP($E31,'Competitive Activity 1'!$B$17:$B$23,'Competitive Activity 1'!P$17:P$23,\"N/A\",0,1)","v":"N/A"},{"$f":"_xlfn.XLOOKUP($E31,'Competitive Activity 2'!$B$7:$B$13,'Competitive Activity 2'!A$7:A$13,\"No\",0)","v":"No"},{"$f":"_xlfn.XLOOKUP($E31,'Competitive Activity 2'!$B$7:$B$13,'Competitive Activity 2'!L$7:L$13,\"N/A\",0)","v":"N/A"},{"$f":"_xlfn.XLOOKUP($E31,'Competitive Activity 2'!$B$7:$B$13,'Competitive Activity 2'!M$7:M$13,\"N/A\",0)","v":"N/A"},{"$f":"_xlfn.XLOOKUP($E31,'Competitive Activity 2'!$B$7:$B$13,'Competitive Activity 2'!N$7:N$13,\"N/A\",0)","v":"N/A"},{"$f":"_xlfn.XLOOKUP($E31,'Competitive Activity 2'!$B$7:$B$13,'Competitive Activity 2'!O$7:O$13,\"N/A\",0)","v":"N/A"},{"$f":"_xlfn.XLOOKUP($E31,'Competitive Activity 2'!$B$7:$B$13,'Competitive Activity 2'!P$7:P$13,\"N/A\",0)","v":"N/A"},{"$f":"_xlfn.XLOOKUP($E31,'Competitive Activity 2'!$B$7:$B$13,'Competitive Activity 2'!Q$7:Q$13,\"N/A\",0)","v":"N/A"},{"$f":"_xlfn.XLOOKUP($E31,'Competitive Activity 2'!$B$7:$B$13,'Competitive Activity 2'!R$7:R$13,\"N/A\",0)","v":"N/A"},{"$f":"_xlfn.XLOOKUP($E31,'Competitive Activity 2'!$B$7:$B$13,'Competitive Activity 2'!S$7:S$13,\"N/A\",0)","v":"N/A"},{"$f":"_xlfn.XLOOKUP($E31,'Competitive Activity 2'!$B$7:$B$13,'Competitive Activity 2'!T$7:T$13,\"N/A\",0)","v":"N/A"},{"$f":"_xlfn.XLOOKUP($E31,'Competitive Activity 2'!$B$7:$B$13,'Competitive Activity 2'!U$7:U$13,\"N/A\",0)","v":"N/A"},{"$f":"_xlfn.XLOOKUP($E31,'Competitive Activity 2'!$B$17:$B$23,'Competitive Activity 2'!D$17:D$23,\"N/A\",0)","v":"N/A"},{"$f":"_xlfn.XLOOKUP($E31,'Competitive Activity 2'!$B$17:$B$23,'Competitive Activity 2'!E$17:E$23,\"N/A\",0)","v":"N/A"},{"$f":"_xlfn.XLOOKUP($E31,'Competitive Activity 2'!$B$17:$B$23,'Competitive Activity 2'!F$17:F$23,\"N/A\",0)","v":"N/A"},{"$f":"_xlfn.XLOOKUP($E31,'Competitive Activity 2'!$B$17:$B$23,'Competitive Activity 2'!G$17:G$23,\"N/A\",0)","v":"N/A"},{"$f":"_xlfn.XLOOKUP($E31,'Competitive Activity 2'!$B$17:$B$23,'Competitive Activity 2'!H$17:H$23,\"N/A\",0)","v":"N/A"},{"$f":"_xlfn.XLOOKUP($E31,'Competitive Activity 2'!$B$17:$B$23,'Competitive Activity 2'!I$17:I$23,\"N/A\",0)","v":"N/A"},{"$f":"_xlfn.XLOOKUP($E31,'Competitive Activity 2'!$B$17:$B$23,'Competitive Activity 2'!J$17:J$23,\"N/A\",0)","v":"N/A"},{"$f":"_xlfn.XLOOKUP($E31,'Competitive Activity 2'!$B$17:$B$23,'Competitive Activity 2'!K$17:K$23,\"N/A\",0)","v":"N/A"},{"$f":"_xlfn.XLOOKUP($E31,'Competitive Activity 2'!$B$17:$B$23,'Competitive Activity 2'!L$17:L$23,\"N/A\",0)","v":"N/A"},{"$f":"_xlfn.XLOOKUP($E31,'Competitive Activity 2'!$B$17:$B$23,'Competitive Activity 2'!M$17:M$23,\"N/A\",0)","v":"N/A"},{"$f":"_xlfn.XLOOKUP($E31,'Competitive Activity 2'!$B$17:$B$23,'Competitive Activity 2'!N$17:N$23,\"N/A\",0)","v":"N/A"},{"$f":"_xlfn.XLOOKUP($E31,'Competitive Activity 2'!$B$27:$B$33,'Competitive Activity 2'!D$27:D$33,\"N/A\",0)","v":"N/A"},{"$f":"_xlfn.XLOOKUP($E31,'Competitive Activity 2'!$B$27:$B$33,'Competitive Activity 2'!E$27:E$33,\"N/A\",0)","v":"N/A"},{"$f":"_xlfn.XLOOKUP($E31,'Competitive Activity 2'!$B$27:$B$33,'Competitive Activity 2'!F$27:F$33,\"N/A\",0)","v":"N/A"},{"$f":"_xlfn.XLOOKUP($E31,'Competitive Activity 2'!$B$27:$B$33,'Competitive Activity 2'!G$27:G$33,\"N/A\",0)","v":"N/A"},{"$f":"_xlfn.XLOOKUP($E31,'Competitive Activity 2'!$B$27:$B$33,'Competitive Activity 2'!H$27:H$33,\"N/A\",0)","v":"N/A"},{"$f":"_xlfn.XLOOKUP($E31,'Competitive Activity 2'!$B$27:$B$33,'Competitive Activity 2'!I$27:I$33,\"N/A\",0)","v":"N/A"},{"$f":"_xlfn.XLOOKUP($E31,'Competitive Activity 2'!$B$27:$B$33,'Competitive Activity 2'!J$27:J$33,\"N/A\",0)","v":"N/A"},{"$f":"_xlfn.XLOOKUP($E31,'Competitive Activity 2'!$B$27:$B$33,'Competitive Activity 2'!K$27:K$33,\"N/A\",0)","v":"N/A"},{"$f":"_xlfn.XLOOKUP($E31,'Competitive Activity 2'!$B$27:$B$33,'Competitive Activity 2'!M$27:M$33,\"N/A\",0)","v":"N/A"}]
[{"$f":"'1-Cover Sheet'!$C$8","v":"Select One"},{"$f":"'1-Cover Sheet'!$F$8","v":"Select One"},{"$f":"'Summary Sheet'!$D$8","v":0},{"$f":"'Summary Sheet'!$D$10","v":0},{"$f":"'Drop Down Box'!B196","v":0},{"$f":"'Drop Down Box'!C196","v":0},{"$f":"'Drop Down Box'!D196","v":"Select One"},{"$f":"_xlfn.XLOOKUP(E32,'Drop Down Box'!$B$166:$B$249,'Drop Down Box'!$A$166:$A$249,\"Unknown\",0)","v":"Activity 1"},{"$f":"_xlfn.XLOOKUP($E32,'Activity 5'!$B$8:$B$14,'Activity 5'!$L$8:$L$14,\"N/A\",0)","v":"N/A"},{"$f":"_xlfn.XLOOKUP($E32,'Activity 5'!$B$8:$B$14,'Activity 5'!$M$8:$M$14,\"N/A\",0)","v":"N/A"},{"$f":"_xlfn.XLOOKUP($E32,'Activity 5'!$B$8:$B$14,'Activity 5'!$G$8:$G$14,\"N/A\",0)","v":"N/A"},{"$f":"_xlfn.XLOOKUP($E32,'Activity 5'!$B$8:$B$14,'Activity 5'!$H$8:$H$14,\"N/A\",0)","v":"N/A"},{"$f":"_xlfn.XLOOKUP($E32,'Activity 5'!$B$8:$B$14,'Activity 5'!I$8:I$14,\"N/A\",0)","v":"N/A"},{"$f":"_xlfn.XLOOKUP($E32,'Activity 1'!$B$7:$B$13,'Activity 1'!$A$7:$A$13,\"No\",0,1)","v":"No"},{"$f":"_xlfn.XLOOKUP($E32,'Activity 1'!$B$7:$B$13,'Activity 1'!$H$7:$H$13,\"N/A\",0,1)","v":"N/A"},{"$f":"_xlfn.XLOOKUP($E32,'Activity 1'!$B$7:$B$13,'Activity 1'!I$7:I$13,\"N/A\",0,1)","v":"N/A"},{"$f":"_xlfn.XLOOKUP($E32,'Activity 1'!$B$7:$B$13,'Activity 1'!J$7:J$13,\"N/A\",0,1)","v":"N/A"},{"$f":"_xlfn.XLOOKUP($E32,'Activity 1'!$B$7:$B$13,'Activity 1'!K$7:K$13,\"N/A\",0,1)","v":"N/A"},{"$f":"_xlfn.XLOOKUP($E32,'Activity 1'!$B$7:$B$13,'Activity 1'!L$7:L$13,\"N/A\",0,1)","v":"N/A"},{"$f":"_xlfn.XLOOKUP($E32,'Activity 1'!$B$7:$B$13,'Activity 1'!M$7:M$13,\"N/A\",0,1)","v":"N/A"},{"$f":"_xlfn.XLOOKUP($E32,'Activity 1'!$B$7:$B$13,'Activity 1'!N$7:N$13,\"N/A\",0,1)","v":"N/A"},0,{"$f":"_xlfn.XLOOKUP($E32,'Activity 1'!$B$7:$B$13,'Activity 1'!O$7:O$13,\"N/A\",0,1)","v":"N/A"},{"$f":"_xlfn.XLOOKUP($E32,'Activity 1'!$B$7:$B$13,'Activity 1'!P$7:P$13,\"N/A\",0,1)","v":"N/A"},{"$f":"_xlfn.XLOOKUP($E32,'Activity 1'!$B$7:$B$13,'Activity 1'!Q$7:Q$13,\"N/A\",0,1)","v":"N/A"},{"$f":"_xlfn.XLOOKUP($E32,'Activity 1'!$B$7:$B$13,'Activity 1'!R$7:R$13,\"N/A\",0,1)","v":"N/A"},{"$f":"_xlfn.XLOOKUP($E32,'Activity 1'!$B$7:$B$13,'Activity 1'!S$7:S$13,\"N/A\",0,1)","v":"N/A"},{"$f":"_xlfn.XLOOKUP($E32,'Activity 1'!$B$7:$B$13,'Activity 1'!T$7:T$13,\"N/A\",0,1)","v":"N/A"},{"$f":"_xlfn.XLOOKUP($E32,'Activity 1'!$B$7:$B$13,'Activity 1'!U$7:U$13,\"N/A\",0,1)","v":"N/A"},{"$f":"_xlfn.XLOOKUP($E32,'Activity 1'!$B$7:$B$13,'Activity 1'!V$7:V$13,\"N/A\",0,1)","v":"N/A"},{"$f":"_xlfn.XLOOKUP($E32,'Activity 1'!$B$17:$B$23,'Activity 1'!C$17:C$23,\"N/A\",0,1)","v":"N/A"},{"$f":"_xlfn.XLOOKUP($E32,'Activity 1'!$B$17:$B$23,'Activity 1'!D$17:D$23,\"N/A\",0,1)","v":"N/A"},{"$f":"_xlfn.XLOOKUP($E32,'Activity 1'!$B$17:$B$23,'Activity 1'!E$17:E$23,\"N/A\",0,1)","v":"N/A"},{"$f":"_xlfn.XLOOKUP($E32,'Activity 1'!$B$17:$B$23,'Activity 1'!F$17:F$23,\"N/A\",0,1)","v":"N/A"},{"$f":"_xlfn.XLOOKUP($E32,'Activity 1'!$B$17:$B$23,'Activity 1'!G$17:G$23,\"N/A\",0,1)","v":"N/A"},{"$f":"_xlfn.XLOOKUP($E32,'Activity 1'!$B$17:$B$23,'Activity 1'!H$17:H$23,\"N/A\",0,1)","v":"N/A"},{"$f":"_xlfn.XLOOKUP($E32,'Activity 1'!$B$17:$B$23,'Activity 1'!I$17:I$23,\"N/A\",0,1)","v":"N/A"},{"$f":"_xlfn.XLOOKUP($E32,'Activity 1'!$B$17:$B$23,'Activity 1'!J$17:J$23,\"N/A\",0,1)","v":"N/A"},{"$f":"_xlfn.XLOOKUP($E32,'Activity 1'!$B$17:$B$23,'Activity 1'!K$17:K$23,\"N/A\",0,1)","v":"N/A"},{"$f":"_xlfn.XLOOKUP($E32,'Activity 1'!$B$17:$B$23,'Activity 1'!L$17:L$23,\"N/A\",0,1)","v":"N/A"},{"$f":"_xlfn.XLOOKUP($E32,'Activity 1'!$B$17:$B$23,'Activity 1'!M$17:M$23,\"N/A\",0,1)","v":"N/A"},{"$f":"_xlfn.XLOOKUP($E32,'Activity 1'!$B$17:$B$23,'Activity 1'!O$17:O$23,\"N/A\",0,1)","v":"N/A"},{"$f":"_xlfn.XLOOKUP($E32,'Activity 1'!$B$17:$B$23,'Activity 1'!Q$17:Q$23,\"N/A\",0,1)","v":"N/A"},{"$f":"_xlfn.XLOOKUP($E32,'Activity 2'!$B$7:$B$13,'Activity 2'!$A$7:$A$13,\"No\",0,1)","v":"No"},{"$f":"_xlfn.XLOOKUP($E32,'Activity 2'!B$7:B$13,'Activity 2'!H$7:H$13,\"N/A\",0)","v":"N/A"},{"$f":"_xlfn.XLOOKUP($E32,'Activity 2'!C$7:C$13,'Activity 2'!I$7:I$13,\"N/A\",0)","v":"N/A"},{"$f":"_xlfn.XLOOKUP($E32,'Activity 2'!D$7:D$13,'Activity 2'!J$7:J$13,\"N/A\",0)","v":"N/A"},{"$f":"_xlfn.XLOOKUP($E32,'Activity 2'!E$7:E$13,'Activity 2'!K$7:K$13,\"N/A\",0)","v":"N/A"},{"$f":"_xlfn.XLOOKUP($E32,'Activity 2'!F$7:F$13,'Activity 2'!L$7:L$13,\"N/A\",0)","v":"N/A"},{"$f":"_xlfn.XLOOKUP($E32,'Activity 2'!G$7:G$13,'Activity 2'!M$7:M$13,\"N/A\",0)","v":"N/A"},{"$f":"_xlfn.XLOOKUP($E32,'Activity 2'!H$7:H$13,'Activity 2'!N$7:N$13,\"N/A\",0)","v":"N/A"},{"$f":"_xlfn.XLOOKUP($E32,'Activity 2'!I$7:I$13,'Activity 2'!O$7:O$13,\"N/A\",0)","v":"N/A"},{"$f":"_xlfn.XLOOKUP($E32,'Activity 2'!J$7:J$13,'Activity 2'!P$7:P$13,\"N/A\",0)","v":"N/A"},{"$f":"_xlfn.XLOOKUP($E32,'Activity 2'!K$7:K$13,'Activity 2'!Q$7:Q$13,\"N/A\",0)","v":"N/A"},{"$f":"_xlfn.XLOOKUP($E32,'Activity 2'!L$7:L$13,'Activity 2'!R$7:R$13,\"N/A\",0)","v":"N/A"},{"$f":"_xlfn.XLOOKUP($E32,'Activity 2'!M$7:M$13,'Activity 2'!S$7:S$13,\"N/A\",0)","v":"N/A"},{"$f":"_xlfn.XLOOKUP($E32,'Activity 2'!N$7:N$13,'Activity 2'!T$7:T$13,\"N/A\",0)","v":"N/A"},{"$f":"_xlfn.XLOOKUP($E32,'Activity 2'!O$7:O$13,'Activity 2'!U$7:U$13,\"N/A\",0)","v":"N/A"},{"$f":"_xlfn.XLOOKUP($E32,'Activity 2'!P$7:P$13,'Activity 2'!V$7:V$13,\"N/A\",0)","v":"N/A"},{"$f":"_xlfn.XLOOKUP($E32,'Activity 2'!$B$17:$B$23,'Activity 2'!C$17:C$23,\"N/A\",0,1)","v":"N/A"},{"$f":"_xlfn.XLOOKUP($E32,'Activity 2'!$B$17:$B$23,'Activity 2'!D$17:D$23,\"N/A\",0,1)","v":"N/A"},{"$f":"_xlfn.XLOOKUP($E32,'Activity 2'!$B$17:$B$23,'Activity 2'!E$17:E$23,\"N/A\",0,1)","v":"N/A"},{"$f":"_xlfn.XLOOKUP($E32,'Activity 2'!$B$17:$B$23,'Activity 2'!F$17:F$23,\"N/A\",0,1)","v":"N/A"},{"$f":"_xlfn.XLOOKUP($E32,'Activity 2'!$B$17:$B$23,'Activity 2'!G$17:G$23,\"N/A\",0,1)","v":"N/A"},{"$f":"_xlfn.XLOOKUP($E32,'Activity 2'!$B$17:$B$23,'Activity 2'!H$17:H$23,\"N/A\",0,1)","v":"N/A"},{"$f":"_xlfn.XLOOKUP($E32,'Activity 2'!$B$17:$B$23,'Activity 2'!I$17:I$23,\"N/A\",0,1)","v":"N/A"},{"$f":"_xlfn.XLOOKUP($E32,'Activity 2'!$B$17:$B$23,'Activity 2'!J$17:J$23,\"N/A\",0,1)","v":"N/A"},{"$f":"_xlfn.XLOOKUP($E32,'Activity 2'!$B$17:$B$23,'Activity 2'!K$17:K$23,\"N/A\",0,1)","v":"N/A"},{"$f":"_xlfn.XLOOKUP($E32,'Activity 2'!$B$17:$B$23,'Activity 2'!L$17:L$23,\"N/A\",0,1)","v":"N/A"},{"$f":"_xlfn.XLOOKUP($E32,'Activity 2'!$B$17:$B$23,'Activity 2'!M$17:M$23,\"N/A\",0,1)","v":"N/A"},{"$f":"_xlfn.XLOOKUP($E32,'Activity 2'!$B$17:$B$23,'Activity 2'!O$17:O$23,\"N/A\",0,1)","v":"N/A"},{"$f":"_xlfn.XLOOKUP($E32,'Activity 2'!$B$17:$B$23,'Activity 2'!Q$17:Q$23,\"N/A\",0,1)","v":"N/A"},null,{"$f":"_xlfn.XLOOKUP($E32,'Activity 3'!$B$8:$B$14,'Activity 3'!K$8:K$14,\"N/A\",0,1)","v":"N/A"},{"$f":"_xlfn.XLOOKUP($E32,'Activity 3'!$B$8:$B$14,'Activity 3'!L$8:L$14,\"N/A\",0,1)","v":"N/A"},{"$f":"_xlfn.XLOOKUP($E32,'Activity 3'!$B$8:$B$14,'Activity 3'!M$8:M$14,\"N/A\",0,1)","v":"N/A"},{"$f":"_xlfn.XLOOKUP($E32,'Activity 3'!$B$8:$B$14,'Activity 3'!N$8:N$14,\"N/A\",0,1)","v":"N/A"},{"$f":"_xlfn.XLOOKUP($E32,'Activity 3'!$B$8:$B$14,'Activity 3'!O$8:O$14,\"N/A\",0,1)","v":"N/A"},{"$f":"_xlfn.XLOOKUP($E32,'Activity 3'!$B$8:$B$14,'Activity 3'!R$8:R$14,\"N/A\",0,1)","v":"N/A"},{"$f":"_xlfn.XLOOKUP($E32,'Activity 4'!$B$8:$B$14,'Activity 4'!$A$8:$A$14,\"No\",0,1)","v":"No"},{"$f":"_xlfn.XLOOKUP($E32,'Activity 4'!$B$8:$B$14,'Activity 4'!L$8:L$14,\"N/A\",0,1)","v":"N/A"},{"$f":"_xlfn.XLOOKUP($E32,'Activity 4'!$B$8:$B$14,'Activity 4'!I$8:I$14,\"N/A\",0,1)","v":"N/A"},{"$f":"_xlfn.XLOOKUP($E32,'Activity 4'!$B$8:$B$14,'Activity 4'!M$8:M$14,\"N/A\",0,1)","v":"N/A"},{"$f":"_xlfn.XLOOKUP($E32,'Activity 5'!$B$8:$B$14,'Activity 5'!$A$8:$A$14,\"No\",0,1)","v":"No"},{"$f":"_xlfn.XLOOKUP($E32,'Activity 5'!$B$8:$B$14,'Activity 5'!J$8:J$14,\"N/A\",0,1)","v":"N/A"},{"$f":"_xlfn.XLOOKUP($E32,'Activity 5'!$B$8:$B$14,'Activity 5'!K$8:K$14,\"N/A\",0,1)","v":"N/A"},{"$f":"_xlfn.XLOOKUP($E32,'Activity 5'!$B$8:$B$14,'Activity 5'!N$8:N$14,\"N/A\",0,1)","v":"N/A"},{"$f":"_xlfn.XLOOKUP($E32,'Activity 5'!$B$8:$B$14,'Activity 5'!O$8:O$14,\"N/A\",0,1)","v":"N/A"},{"$f":"_xlfn.XLOOKUP($E32,'Activity 5'!$B$8:$B$14,'Activity 5'!P$8:P$14,\"N/A\",0,1)","v":"N/A"},{"$f":"_xlfn.XLOOKUP($E32,'Activity 5'!$B$8:$B$14,'Activity 5'!Q$8:Q$14,\"N/A\",0,1)","v":"N/A"},{"$f":"_xlfn.XLOOKUP($E32,'Activity 5'!$B$8:$B$14,'Activity 5'!R$8:R$14,\"N/A\",0,1)","v":"N/A"},{"$f":"_xlfn.XLOOKUP($E32,'Activity 6'!$B$7:$B$13,'Activity 6'!A$7:A$13,\"No\",0,1)","v":"No"},{"$f":"_xlfn.XLOOKUP($E32,'Activity 6'!$B$7:$B$13,'Activity 6'!K$7:K$13,\"N/A\",0,1)","v":"N/A"},{"$f":"_xlfn.XLOOKUP($E32,'Activity 6'!$B$7:$B$13,'Activity 6'!L$7:L$13,\"N/A\",0,1)","v":"N/A"},{"$f":"_xlfn.XLOOKUP($E32,'Activity 6'!$B$7:$B$13,'Activity 6'!M$7:M$13,\"N/A\",0,1)","v":"N/A"},{"$f":"_xlfn.XLOOKUP($E32,'Activity 6'!$B$7:$B$13,'Activity 6'!N$7:N$13,\"N/A\",0,1)","v":"N/A"},{"$f":"_xlfn.XLOOKUP($E32,'Activity 6'!$B$7:$B$13,'Activity 6'!O$7:O$13,\"N/A\",0,1)","v":"N/A"},{"$f":"_xlfn.XLOOKUP($E32,'Activity 6'!$B$7:$B$13,'Activity 6'!P$7:P$13,\"N/A\",0,1)","v":"N/A"},{"$f":"_xlfn.XLOOKUP($E32,'Activity 6'!$B$7:$B$13,'Activity 6'!Q$7:Q$13,\"N/A\",0,1)","v":"N/A"},{"$f":"_xlfn.XLOOKUP($E32,'Activity 6'!$B$7:$B$13,'Activity 6'!R$7:R$13,\"N/A\",0,1)","v":"N/A"},{"$f":"_xlfn.XLOOKUP($E32,'Activity 6'!$B$7:$B$13,'Activity 6'!S$7:S$13,\"N/A\",0,1)","v":"N/A"},{"$f":"_xlfn.XLOOKUP($E32,'Activity 6'!$B$7:$B$13,'Activity 6'!T$7:T$13,\"N/A\",0,1)","v":"N/A"},{"$f":"_xlfn.XLOOKUP($E32,'Activity 6'!$B$7:$B$13,'Activity 6'!U$7:U$13,\"N/A\",0,1)","v":"N/A"},{"$f":"_xlfn.XLOOKUP($E32,'Activity 6'!$B$22:$B$28,'Activity 6'!C$22:C$28,\"N/A\",0,1)","v":"N/A"},{"$f":"_xlfn.XLOOKUP($E32,'Activity 6'!$B$22:$B$28,'Activity 6'!D$22:D$28,\"N/A\",0,1)","v":"N/A"},{"$f":"_xlfn.XLOOKUP($E32,'Activity 6'!$B$22:$B$28,'Activity 6'!E$22:E$28,\"N/A\",0,1)","v":"N/A"},{"$f":"_xlfn.XLOOKUP($E32,'Activity 6'!$B$22:$B$28,'Activity 6'!F$22:F$28,\"N/A\",0,1)","v":"N/A"},{"$f":"_xlfn.XLOOKUP($E32,'Activity 6'!$B$22:$B$28,'Activity 6'!G$22:G$28,\"N/A\",0,1)","v":"N/A"},{"$f":"_xlfn.XLOOKUP($E32,'Activity 6'!$B$22:$B$28,'Activity 6'!H$22:H$28,\"N/A\",0,1)","v":"N/A"},{"$f":"_xlfn.XLOOKUP($E32,'Activity 6'!$B$22:$B$28,'Activity 6'!I$22:I$28,\"N/A\",0,1)","v":"N/A"},{"$f":"_xlfn.XLOOKUP($E32,'Activity 6'!$B$22:$B$28,'Activity 6'!J$22:J$28,\"N/A\",0,1)","v":"N/A"},{"$f":"_xlfn.XLOOKUP($E32,'Activity 6'!$B$22:$B$28,'Activity 6'!K$22:K$28,\"N/A\",0,1)","v":"N/A"},{"$f":"_xlfn.XLOOKUP($E32,'Activity 6'!$B$22:$B$28,'Activity 6'!L$22:L$28,\"N/A\",0,1)","v":"N/A"},{"$f":"_xlfn.XLOOKUP($E32,'Activity 6'!$B$22:$B$28,'Activity 6'!M$22:M$28,\"N/A\",0,1)","v":"N/A"},{"$f":"_xlfn.XLOOKUP($E32,'Activity 6'!$B$22:$B$28,'Activity 6'!N$22:N$28,\"N/A\",0,1)","v":"N/A"},{"$f":"_xlfn.XLOOKUP($E32,'Activity 6'!$B$32:$B$38,'Activity 6'!C$32:C$38,\"N/A\",0,1)","v":"N/A"},{"$f":"_xlfn.XLOOKUP($E32,'Activity 6'!$B$32:$B$38,'Activity 6'!D$32:D$38,\"N/A\",0,1)","v":"N/A"},{"$f":"_xlfn.XLOOKUP($E32,'Activity 6'!$B$32:$B$38,'Activity 6'!E$32:E$38,\"N/A\",0,1)","v":"N/A"},{"$f":"_xlfn.XLOOKUP($E32,'Activity 6'!$B$32:$B$38,'Activity 6'!F$32:F$38,\"N/A\",0,1)","v":"N/A"},{"$f":"_xlfn.XLOOKUP($E32,'Activity 6'!$B$32:$B$38,'Activity 6'!G$32:G$38,\"N/A\",0,1)","v":"N/A"},{"$f":"_xlfn.XLOOKUP($E32,'Activity 6'!$B$32:$B$38,'Activity 6'!H$32:H$38,\"N/A\",0,1)","v":"N/A"},{"$f":"_xlfn.XLOOKUP($E32,'Activity 6'!$B$32:$B$38,'Activity 6'!I$32:I$38,\"N/A\",0,1)","v":"N/A"},{"$f":"_xlfn.XLOOKUP($E32,'Activity 6'!$B$32:$B$38,'Activity 6'!J$32:J$38,\"N/A\",0,1)","v":"N/A"},{"$f":"_xlfn.XLOOKUP($E32,'Activity 6'!$B$32:$B$38,'Activity 6'!K$32:K$38,\"N/A\",0,1)","v":"N/A"},{"$f":"_xlfn.XLOOKUP($E32,'Activity 6'!$B$32:$B$38,'Activity 6'!M$32:M$38,\"N/A\",0,1)","v":"N/A"},{"$f":"_xlfn.XLOOKUP($E32,'Activity 7'!$B$7:$B$13,'Activity 7'!$A$7:$A$13,\"No\",0,1)","v":"No"},{"$f":"_xlfn.XLOOKUP($E32,'Activity 7'!$B$7:$B$13,'Activity 7'!M$7:M$13,\"N/A\",0,1)","v":"N/A"},{"$f":"_xlfn.XLOOKUP($E32,'Activity 7'!$B$7:$B$13,'Activity 7'!K$7:K$13,\"N/A\",0,1)","v":"N/A"},{"$f":"_xlfn.XLOOKUP($E32,'Activity 7'!$B$7:$B$13,'Activity 7'!N$7:N$13,\"N/A\",0,1)","v":"N/A"},{"$f":"_xlfn.XLOOKUP($E32,'Activity 7'!$B$7:$B$13,'Activity 7'!O$7:O$13,\"N/A\",0,1)","v":"N/A"},{"$f":"_xlfn.XLOOKUP($E32,'Activity 7'!$B$7:$B$13,'Activity 7'!P$7:P$13,\"N/A\",0,1)","v":"N/A"},{"$f":"_xlfn.XLOOKUP($E32,'Activity 7'!$B$7:$B$13,'Activity 7'!Q$7:Q$13,\"N/A\",0,1)","v":"N/A"},{"$f":"_xlfn.XLOOKUP($E32,'Activity 7'!$B$7:$B$13,'Activity 7'!R$7:R$13,\"N/A\",0,1)","v":"N/A"},{"$f":"_xlfn.XLOOKUP($E32,'Activity 7'!$B$7:$B$13,'Activity 7'!S$7:S$13,\"N/A\",0,1)","v":"N/A"},{"$f":"_xlfn.XLOOKUP($E32,'Activity 7'!$B$7:$B$13,'Activity 7'!T$7:T$13,\"N/A\",0,1)","v":"N/A"},{"$f":"_xlfn.XLOOKUP($E32,'Activity 7'!$B$7:$B$13,'Activity 7'!U$7:U$13,\"N/A\",0,1)","v":"N/A"},{"$f":"_xlfn.XLOOKUP($E32,'Activity 7'!$B$7:$B$13,'Activity 7'!V$7:V$13,\"N/A\",0,1)","v":"N/A"},{"$f":"_xlfn.XLOOKUP($E32,'Activity 7'!$B$17:$B$23,'Activity 7'!E$17:E$23,\"N/A\",0,1)","v":"N/A"},{"$f":"_xlfn.XLOOKUP($E32,'Activity 7'!$B$17:$B$23,'Activity 7'!G$17:G$23,\"N/A\",0,1)","v":"N/A"},{"$f":"_xlfn.XLOOKUP($E32,'Activity 7'!$B$17:$B$23,'Activity 7'!I$17:I$23,\"N/A\",0,1)","v":"N/A"},{"$f":"_xlfn.XLOOKUP($E32,'Activity 7'!$B$17:$B$23,'Activity 7'!J$17:J$23,\"N/A\",0,1)","v":"N/A"},{"$f":"_xlfn.XLOOKUP($E32,'Activity 7'!$B$17:$B$23,'Activity 7'!K$17:K$23,\"N/A\",0,1)","v":"N/A"},{"$f":"_xlfn.XLOOKUP($E32,'Activity 7'!$B$17:$B$23,'Activity 7'!L$17:L$23,\"N/A\",0,1)","v":"N/A"},{"$f":"_xlfn.XLOOKUP($E32,'Activity 7'!$B$17:$B$23,'Activity 7'!M$17:M$23,\"N/A\",0,1)","v":"N/A"},{"$f":"_xlfn.XLOOKUP($E32,'Activity 7'!$B$17:$B$23,'Activity 7'!N$17:N$23,\"N/A\",0,1)","v":"N/A"},{"$f":"_xlfn.XLOOKUP($E32,'Activity 7'!$B$17:$B$23,'Activity 7'!P$17:P$23,\"N/A\",0,1)","v":"N/A"},{"$f":"_xlfn.XLOOKUP($E32,'Activity 8'!$B$7:$B$13,'Activity 8'!A$7:A$13,\"No\",0,1)","v":"No"},{"$f":"_xlfn.XLOOKUP($E32,'Activity 8'!$B$7:$B$13,'Activity 8'!I$7:I$13,\"N/A\",0,1)","v":"N/A"},{"$f":"_xlfn.XLOOKUP($E32,'Activity 8'!$B$7:$B$13,'Activity 8'!J$7:J$13,\"N/A\",0,1)","v":"N/A"},{"$f":"_xlfn.XLOOKUP($E32,'Activity 8'!$B$7:$B$13,'Activity 8'!K$7:K$13,\"N/A\",0,1)","v":"N/A"},{"$f":"_xlfn.XLOOKUP($E32,'Activity 8'!$B$7:$B$13,'Activity 8'!L$7:L$13,\"N/A\",0,1)","v":"N/A"},{"$f":"_xlfn.XLOOKUP($E32,'Activity 8'!$B$7:$B$13,'Activity 8'!M$7:M$13,\"N/A\",0,1)","v":"N/A"},{"$f":"_xlfn.XLOOKUP($E32,'Activity 8'!$B$7:$B$13,'Activity 8'!N$7:N$13,\"N/A\",0,1)","v":"N/A"},{"$f":"_xlfn.XLOOKUP($E32,'Activity 8'!$B$7:$B$13,'Activity 8'!O$7:O$13,\"N/A\",0,1)","v":"N/A"},{"$f":"_xlfn.XLOOKUP($E32,'Activity 8'!$B$7:$B$13,'Activity 8'!P$7:P$13,\"N/A\",0,1)","v":"N/A"},{"$f":"_xlfn.XLOOKUP($E32,'Activity 8'!$B$7:$B$13,'Activity 8'!Q$7:Q$13,\"N/A\",0,1)","v":"N/A"},{"$f":"_xlfn.XLOOKUP($E32,'Activity 8'!$B$7:$B$13,'Activity 8'!R$7:R$13,\"N/A\",0,1)","v":"N/A"},{"$f":"_xlfn.XLOOKUP($E32,'Activity 8'!$B$7:$B$13,'Activity 8'!S$7:S$13,\"N/A\",0,1)","v":"N/A"},{"$f":"_xlfn.XLOOKUP($E32,'Activity 8'!$B$7:$B$13,'Activity 8'!T$7:T$13,\"N/A\",0,1)","v":"N/A"},{"$f":"_xlfn.XLOOKUP($E32,'Activity 8'!$B$7:$B$13,'Activity 8'!U$7:U$13,\"N/A\",0,1)","v":"N/A"},{"$f":"_xlfn.XLOOKUP($E32,'Activity 8'!$B$7:$B$13,'Activity 8'!V$7:V$13,\"N/A\",0,1)","v":"N/A"},{"$f":"_xlfn.XLOOKUP($E32,'Activity 8'!$B$17:$B$23,'Activity 8'!D$17:D$23,\"N/A\",0,1)","v":"N/A"},{"$f":"_xlfn.XLOOKUP($E32,'Activity 8'!$B$17:$B$23,'Activity 8'!E$17:E$23,\"N/A\",0,1)","v":"N/A"},{"$f":"_xlfn.XLOOKUP($E32,'Activity 8'!$B$17:$B$23,'Activity 8'!F$17:F$23,\"N/A\",0,1)","v":"N/A"},{"$f":"_xlfn.XLOOKUP($E32,'Activity 8'!$B$17:$B$23,'Activity 8'!G$17:G$23,\"N/A\",0,1)","v":"N/A"},{"$f":"_xlfn.XLOOKUP($E32,'Activity 8'!$B$17:$B$23,'Activity 8'!H$17:H$23,\"N/A\",0,1)","v":"N/A"},{"$f":"_xlfn.XLOOKUP($E32,'Activity 8'!$B$17:$B$23,'Activity 8'!I$17:I$23,\"N/A\",0,1)","v":"N/A"},{"$f":"_xlfn.XLOOKUP($E32,'Activity 8'!$B$17:$B$23,'Activity 8'!J$17:J$23,\"N/A\",0,1)","v":"N/A"},{"$f":"_xlfn.XLOOKUP($E32,'Activity 8'!$B$17:$B$23,'Activity 8'!K$17:K$23,\"N/A\",0,1)","v":"N/A"},{"$f":"_xlfn.XLOOKUP($E32,'Activity 8'!$B$17:$B$23,'Activity 8'!L$17:L$23,\"N/A\",0,1)","v":"N/A"},{"$f":"_xlfn.XLOOKUP($E32,'Activity 8'!$B$17:$B$23,'Activity 8'!M$17:M$23,\"N/A\",0,1)","v":"N/A"},{"$f":"_xlfn.XLOOKUP($E32,'Activity 8'!$B$17:$B$23,'Activity 8'!N$17:N$23,\"N/A\",0,1)","v":"N/A"},{"$f":"_xlfn.XLOOKUP($E32,'Activity 8'!$B$17:$B$23,'Activity 8'!P$17:P$23,\"N/A\",0,1)","v":"N/A"},{"$f":"_xlfn.XLOOKUP(E32,'Activity 9'!$B$7:$B$13,'Activity 9'!$A$7:$A$13,\"No\",0,1)","v":"No"},{"$f":"_xlfn.XLOOKUP($E32,'Activity 9'!$B$7:$B$13,'Activity 9'!J$7:J$13,\"N/A\",0,1)","v":"N/A"},{"$f":"_xlfn.XLOOKUP($E32,'Activity 9'!$B$7:$B$13,'Activity 9'!K$7:K$13,\"N/A\",0,1)","v":"N/A"},{"$f":"_xlfn.XLOOKUP($E32,'Activity 9'!$B$7:$B$13,'Activity 9'!L$7:L$13,\"N/A\",0,1)","v":"N/A"},{"$f":"_xlfn.XLOOKUP($E32,'Activity 9'!$B$7:$B$13,'Activity 9'!M$7:M$13,\"N/A\",0,1)","v":"N/A"},{"$f":"_xlfn.XLOOKUP($E32,'Activity 9'!$B$7:$B$13,'Activity 9'!N$7:N$13,\"N/A\",0,1)","v":"N/A"},{"$f":"_xlfn.XLOOKUP($E32,'Activity 9'!$B$7:$B$13,'Activity 9'!O$7:O$13,\"N/A\",0,1)","v":"N/A"},{"$f":"_xlfn.XLOOKUP($E32,'Activity 9'!$B$7:$B$13,'Activity 9'!P$7:P$13,\"N/A\",0,1)","v":"N/A"},{"$f":"_xlfn.XLOOKUP($E32,'Activity 9'!$B$7:$B$13,'Activity 9'!Q$7:Q$13,\"N/A\",0,1)","v":"N/A"},{"$f":"_xlfn.XLOOKUP($E32,'Activity 9'!$B$7:$B$13,'Activity 9'!R$7:R$13,\"N/A\",0,1)","v":"N/A"},{"$f":"_xlfn.XLOOKUP($E32,'Activity 9'!$B$7:$B$13,'Activity 9'!S$7:S$13,\"N/A\",0,1)","v":"N/A"},{"$f":"_xlfn.XLOOKUP($E32,'Activity 9'!$B$7:$B$13,'Activity 9'!T$7:T$13,\"N/A\",0,1)","v":"N/A"},{"$f":"_xlfn.XLOOKUP($E32,'Activity 9'!$B$17:$B$23,'Activity 9'!E$17:E$23,\"N/A\",0,1)","v":"N/A"},{"$f":"_xlfn.XLOOKUP($E32,'Activity 9'!$B$17:$B$23,'Activity 9'!F$17:F$23,\"N/A\",0,1)","v":"N/A"},{"$f":"_xlfn.XLOOKUP($E32,'Activity 9'!$B$17:$B$23,'Activity 9'!G$17:G$23,\"N/A\",0,1)","v":"N/A"},{"$f":"_xlfn.XLOOKUP($E32,'Activity 9'!$B$17:$B$23,'Activity 9'!H$17:H$23,\"N/A\",0,1)","v":"N/A"},{"$f":"_xlfn.XLOOKUP($E32,'Activity 9'!$B$17:$B$23,'Activity 9'!I$17:I$23,\"N/A\",0,1)","v":"N/A"},{"$f":"_xlfn.XLOOKUP($E32,'Activity 9'!$B$17:$B$23,'Activity 9'!J$17:J$23,\"N/A\",0,1)","v":"N/A"},{"$f":"_xlfn.XLOOKUP($E32,'Activity 9'!$B$17:$B$23,'Activity 9'!K$17:K$23,\"N/A\",0,1)","v":"N/A"},{"$f":"_xlfn.XLOOKUP($E32,'Activity 9'!$B$17:$B$23,'Activity 9'!L$17:L$23,\"N/A\",0,1)","v":"N/A"},{"$f":"_xlfn.XLOOKUP($E32,'Activity 9'!$B$17:$B$23,'Activity 9'!N$17:N$23,\"N/A\",0,1)","v":"N/A"},{"$f":"_xlfn.XLOOKUP($E32,'Activity 9'!$B$17:$B$23,'Activity 9'!O$17:O$23,\"N/A\",0,1)","v":"N/A"},{"$f":"_xlfn.XLOOKUP($E32,'Activity 9'!$B$17:$B$23,'Activity 9'!Q$17:Q$23,\"N/A\",0,1)","v":"N/A"},{"$f":"_xlfn.XLOOKUP($E32,'Activity 10'!$B$7:$B$13,'Activity 10'!A$7:A$13,\"No\",0,1)","v":"No"},{"$f":"_xlfn.XLOOKUP($E32,'Activity 10'!$B$7:$B$13,'Activity 10'!J$7:J$13,\"N/A\",0,1)","v":"N/A"},{"$f":"_xlfn.XLOOKUP($E32,'Activity 10'!$B$7:$B$13,'Activity 10'!K$7:K$13,\"N/A\",0,1)","v":"N/A"},{"$f":"_xlfn.XLOOKUP($E32,'Activity 10'!$B$7:$B$13,'Activity 10'!L$7:L$13,\"N/A\",0,1)","v":"N/A"},{"$f":"_xlfn.XLOOKUP($E32,'Activity 10'!$B$7:$B$13,'Activity 10'!M$7:M$13,\"N/A\",0,1)","v":"N/A"},{"$f":"_xlfn.XLOOKUP($E32,'Activity 10'!$B$7:$B$13,'Activity 10'!N$7:N$13,\"N/A\",0,1)","v":"N/A"},{"$f":"_xlfn.XLOOKUP($E32,'Activity 10'!$B$7:$B$13,'Activity 10'!O$7:O$13,\"N/A\",0,1)","v":"N/A"},{"$f":"_xlfn.XLOOKUP($E32,'Activity 10'!$B$7:$B$13,'Activity 10'!P$7:P$13,\"N/A\",0,1)","v":"N/A"},{"$f":"_xlfn.XLOOKUP($E32,'Activity 10'!$B$7:$B$13,'Activity 10'!Q$7:Q$13,\"N/A\",0,1)","v":"N/A"},{"$f":"_xlfn.XLOOKUP($E32,'Activity 10'!$B$7:$B$13,'Activity 10'!R$7:R$13,\"N/A\",0,1)","v":"N/A"},{"$f":"_xlfn.XLOOKUP($E32,'Activity 10'!$B$7:$B$13,'Activity 10'!S$7:S$13,\"N/A\",0,1)","v":"N/A"},{"$f":"_xlfn.XLOOKUP($E32,'Activity 10'!$B$7:$B$13,'Activity 10'!T$7:T$13,\"N/A\",0,1)","v":"N/A"},{"$f":"_xlfn.XLOOKUP($E32,'Activity 10'!$B$7:$B$13,'Activity 10'!U$7:U$13,\"N/A\",0,1)","v":"N/A"},{"$f":"_xlfn.XLOOKUP($E32,'Activity 10'!$B$7:$B$13,'Activity 10'!V$7:V$13,\"N/A\",0,1)","v":"N/A"},{"$f":"_xlfn.XLOOKUP($E32,'Activity 10'!$B$17:$B$23,'Activity 10'!E$17:E$23,\"N/A\",0,1)","v":"N/A"},{"$f":"_xlfn.XLOOKUP($E32,'Activity 10'!$B$17:$B$23,'Activity 10'!F$17:F$23,\"N/A\",0,1)","v":"N/A"},{"$f":"_xlfn.XLOOKUP($E32,'Activity 10'!$B$17:$B$23,'Activity 10'!G$17:G$23,\"N/A\",0,1)","v":"N/A"},{"$f":"_xlfn.XLOOKUP($E32,'Activity 10'!$B$17:$B$23,'Activity 10'!H$17:H$23,\"N/A\",0,1)","v":"N/A"},{"$f":"_xlfn.XLOOKUP($E32,'Activity 10'!$B$17:$B$23,'Activity 10'!I$17:I$23,\"N/A\",0,1)","v":"N/A"},{"$f":"_xlfn.XLOOKUP($E32,'Activity 10'!$B$17:$B$23,'Activity 10'!J$17:J$23,\"N/A\",0,1)","v":"N/A"},{"$f":"_xlfn.XLOOKUP($E32,'Activity 10'!$B$17:$B$23,'Activity 10'!K$17:K$23,\"N/A\",0,1)","v":"N/A"},{"$f":"_xlfn.XLOOKUP($E32,'Activity 10'!$B$17:$B$23,'Activity 10'!L$17:L$23,\"N/A\",0,1)","v":"N/A"},{"$f":"_xlfn.XLOOKUP($E32,'Activity 10'!$B$17:$B$23,'Activity 10'!M$17:M$23,\"N/A\",0,1)","v":"N/A"},{"$f":"_xlfn.XLOOKUP($E32,'Activity 10'!$B$17:$B$23,'Activity 10'!N$17:N$23,\"N/A\",0,1)","v":"N/A"},{"$f":"_xlfn.XLOOKUP($E32,'Activity 10'!$B$17:$B$23,'Activity 10'!P$17:P$23,\"N/A\",0,1)","v":"N/A"},{"$f":"_xlfn.XLOOKUP($E32,'Competitive Activity 1'!B$7:B$13,'Competitive Activity 1'!A$7:A$13,\"No\",0,1)","v":"No"},{"$f":"_xlfn.XLOOKUP($E32,'Competitive Activity 1'!$B$7:$B$13,'Competitive Activity 1'!H$7:H$13,\"N/A\",0,1)","v":"N/A"},{"$f":"_xlfn.XLOOKUP($E32,'Competitive Activity 1'!$B$7:$B$13,'Competitive Activity 1'!I$7:I$13,\"N/A\",0,1)","v":"N/A"},{"$f":"_xlfn.XLOOKUP($E32,'Competitive Activity 1'!$B$7:$B$13,'Competitive Activity 1'!J$7:J$13,\"N/A\",0,1)","v":"N/A"},{"$f":"_xlfn.XLOOKUP($E32,'Competitive Activity 1'!$B$7:$B$13,'Competitive Activity 1'!K$7:K$13,\"N/A\",0,1)","v":"N/A"},{"$f":"_xlfn.XLOOKUP($E32,'Competitive Activity 1'!$B$7:$B$13,'Competitive Activity 1'!L$7:L$13,\"N/A\",0,1)","v":"N/A"},{"$f":"_xlfn.XLOOKUP($E32,'Competitive Activity 1'!$B$7:$B$13,'Competitive Activity 1'!M$7:M$13,\"N/A\",0,1)","v":"N/A"},{"$f":"_xlfn.XLOOKUP($E32,'Competitive Activity 1'!$B$7:$B$13,'Competitive Activity 1'!N$7:N$13,\"N/A\",0,1)","v":"N/A"},{"$f":"_xlfn.XLOOKUP($E32,'Competitive Activity 1'!$B$7:$B$13,'Competitive Activity 1'!O$7:O$13,\"N/A\",0,1)","v":"N/A"},{"$f":"_xlfn.XLOOKUP($E32,'Competitive Activity 1'!$B$7:$B$13,'Competitive Activity 1'!P$7:P$13,\"N/A\",0,1)","v":"N/A"},{"$f":"_xlfn.XLOOKUP($E32,'Competitive Activity 1'!$B$7:$B$13,'Competitive Activity 1'!Q$7:Q$13,\"N/A\",0,1)","v":"N/A"},{"$f":"_xlfn.XLOOKUP($E32,'Competitive Activity 1'!$B$7:$B$13,'Competitive Activity 1'!R$7:R$13,\"N/A\",0,1)","v":"N/A"},{"$f":"_xlfn.XLOOKUP($E32,'Competitive Activity 1'!$B$7:$B$13,'Competitive Activity 1'!S$7:S$13,\"N/A\",0,1)","v":"N/A"},{"$f":"_xlfn.XLOOKUP($E32,'Competitive Activity 1'!$B$7:$B$13,'Competitive Activity 1'!T$7:T$13,\"N/A\",0,1)","v":"N/A"},{"$f":"_xlfn.XLOOKUP($E32,'Competitive Activity 1'!$B$7:$B$13,'Competitive Activity 1'!U$7:U$13,\"N/A\",0,1)","v":"N/A"},{"$f":"_xlfn.XLOOKUP($E32,'Competitive Activity 1'!$B$17:$B$23,'Competitive Activity 1'!C$17:C$23,\"N/A\",0,1)","v":"N/A"},{"$f":"_xlfn.XLOOKUP($E32,'Competitive Activity 1'!$B$17:$B$23,'Competitive Activity 1'!D$17:D$23,\"N/A\",0,1)","v":"N/A"},{"$f":"_xlfn.XLOOKUP($E32,'Competitive Activity 1'!$B$17:$B$23,'Competitive Activity 1'!E$17:E$23,\"N/A\",0,1)","v":"N/A"},{"$f":"_xlfn.XLOOKUP($E32,'Competitive Activity 1'!$B$17:$B$23,'Competitive Activity 1'!F$17:F$23,\"N/A\",0,1)","v":"N/A"},{"$f":"_xlfn.XLOOKUP($E32,'Competitive Activity 1'!$B$17:$B$23,'Competitive Activity 1'!G$17:G$23,\"N/A\",0,1)","v":"N/A"},{"$f":"_xlfn.XLOOKUP($E32,'Competitive Activity 1'!$B$17:$B$23,'Competitive Activity 1'!H$17:H$23,\"N/A\",0,1)","v":"N/A"},{"$f":"_xlfn.XLOOKUP($E32,'Competitive Activity 1'!$B$17:$B$23,'Competitive Activity 1'!I$17:I$23,\"N/A\",0,1)","v":"N/A"},{"$f":"_xlfn.XLOOKUP($E32,'Competitive Activity 1'!$B$17:$B$23,'Competitive Activity 1'!J$17:J$23,\"N/A\",0,1)","v":"N/A"},{"$f":"_xlfn.XLOOKUP($E32,'Competitive Activity 1'!$B$17:$B$23,'Competitive Activity 1'!K$17:K$23,\"N/A\",0,1)","v":"N/A"},{"$f":"_xlfn.XLOOKUP($E32,'Competitive Activity 1'!$B$17:$B$23,'Competitive Activity 1'!M$17:M$23,\"N/A\",0,1)","v":"N/A"},{"$f":"_xlfn.XLOOKUP($E32,'Competitive Activity 1'!$B$17:$B$23,'Competitive Activity 1'!N$17:N$23,\"N/A\",0,1)","v":"N/A"},{"$f":"_xlfn.XLOOKUP($E32,'Competitive Activity 1'!$B$17:$B$23,'Competitive Activity 1'!P$17:P$23,\"N/A\",0,1)","v":"N/A"},{"$f":"_xlfn.XLOOKUP($E32,'Competitive Activity 2'!$B$7:$B$13,'Competitive Activity 2'!A$7:A$13,\"No\",0)","v":"No"},{"$f":"_xlfn.XLOOKUP($E32,'Competitive Activity 2'!$B$7:$B$13,'Competitive Activity 2'!L$7:L$13,\"N/A\",0)","v":"N/A"},{"$f":"_xlfn.XLOOKUP($E32,'Competitive Activity 2'!$B$7:$B$13,'Competitive Activity 2'!M$7:M$13,\"N/A\",0)","v":"N/A"},{"$f":"_xlfn.XLOOKUP($E32,'Competitive Activity 2'!$B$7:$B$13,'Competitive Activity 2'!N$7:N$13,\"N/A\",0)","v":"N/A"},{"$f":"_xlfn.XLOOKUP($E32,'Competitive Activity 2'!$B$7:$B$13,'Competitive Activity 2'!O$7:O$13,\"N/A\",0)","v":"N/A"},{"$f":"_xlfn.XLOOKUP($E32,'Competitive Activity 2'!$B$7:$B$13,'Competitive Activity 2'!P$7:P$13,\"N/A\",0)","v":"N/A"},{"$f":"_xlfn.XLOOKUP($E32,'Competitive Activity 2'!$B$7:$B$13,'Competitive Activity 2'!Q$7:Q$13,\"N/A\",0)","v":"N/A"},{"$f":"_xlfn.XLOOKUP($E32,'Competitive Activity 2'!$B$7:$B$13,'Competitive Activity 2'!R$7:R$13,\"N/A\",0)","v":"N/A"},{"$f":"_xlfn.XLOOKUP($E32,'Competitive Activity 2'!$B$7:$B$13,'Competitive Activity 2'!S$7:S$13,\"N/A\",0)","v":"N/A"},{"$f":"_xlfn.XLOOKUP($E32,'Competitive Activity 2'!$B$7:$B$13,'Competitive Activity 2'!T$7:T$13,\"N/A\",0)","v":"N/A"},{"$f":"_xlfn.XLOOKUP($E32,'Competitive Activity 2'!$B$7:$B$13,'Competitive Activity 2'!U$7:U$13,\"N/A\",0)","v":"N/A"},{"$f":"_xlfn.XLOOKUP($E32,'Competitive Activity 2'!$B$17:$B$23,'Competitive Activity 2'!D$17:D$23,\"N/A\",0)","v":"N/A"},{"$f":"_xlfn.XLOOKUP($E32,'Competitive Activity 2'!$B$17:$B$23,'Competitive Activity 2'!E$17:E$23,\"N/A\",0)","v":"N/A"},{"$f":"_xlfn.XLOOKUP($E32,'Competitive Activity 2'!$B$17:$B$23,'Competitive Activity 2'!F$17:F$23,\"N/A\",0)","v":"N/A"},{"$f":"_xlfn.XLOOKUP($E32,'Competitive Activity 2'!$B$17:$B$23,'Competitive Activity 2'!G$17:G$23,\"N/A\",0)","v":"N/A"},{"$f":"_xlfn.XLOOKUP($E32,'Competitive Activity 2'!$B$17:$B$23,'Competitive Activity 2'!H$17:H$23,\"N/A\",0)","v":"N/A"},{"$f":"_xlfn.XLOOKUP($E32,'Competitive Activity 2'!$B$17:$B$23,'Competitive Activity 2'!I$17:I$23,\"N/A\",0)","v":"N/A"},{"$f":"_xlfn.XLOOKUP($E32,'Competitive Activity 2'!$B$17:$B$23,'Competitive Activity 2'!J$17:J$23,\"N/A\",0)","v":"N/A"},{"$f":"_xlfn.XLOOKUP($E32,'Competitive Activity 2'!$B$17:$B$23,'Competitive Activity 2'!K$17:K$23,\"N/A\",0)","v":"N/A"},{"$f":"_xlfn.XLOOKUP($E32,'Competitive Activity 2'!$B$17:$B$23,'Competitive Activity 2'!L$17:L$23,\"N/A\",0)","v":"N/A"},{"$f":"_xlfn.XLOOKUP($E32,'Competitive Activity 2'!$B$17:$B$23,'Competitive Activity 2'!M$17:M$23,\"N/A\",0)","v":"N/A"},{"$f":"_xlfn.XLOOKUP($E32,'Competitive Activity 2'!$B$17:$B$23,'Competitive Activity 2'!N$17:N$23,\"N/A\",0)","v":"N/A"},{"$f":"_xlfn.XLOOKUP($E32,'Competitive Activity 2'!$B$27:$B$33,'Competitive Activity 2'!D$27:D$33,\"N/A\",0)","v":"N/A"},{"$f":"_xlfn.XLOOKUP($E32,'Competitive Activity 2'!$B$27:$B$33,'Competitive Activity 2'!E$27:E$33,\"N/A\",0)","v":"N/A"},{"$f":"_xlfn.XLOOKUP($E32,'Competitive Activity 2'!$B$27:$B$33,'Competitive Activity 2'!F$27:F$33,\"N/A\",0)","v":"N/A"},{"$f":"_xlfn.XLOOKUP($E32,'Competitive Activity 2'!$B$27:$B$33,'Competitive Activity 2'!G$27:G$33,\"N/A\",0)","v":"N/A"},{"$f":"_xlfn.XLOOKUP($E32,'Competitive Activity 2'!$B$27:$B$33,'Competitive Activity 2'!H$27:H$33,\"N/A\",0)","v":"N/A"},{"$f":"_xlfn.XLOOKUP($E32,'Competitive Activity 2'!$B$27:$B$33,'Competitive Activity 2'!I$27:I$33,\"N/A\",0)","v":"N/A"},{"$f":"_xlfn.XLOOKUP($E32,'Competitive Activity 2'!$B$27:$B$33,'Competitive Activity 2'!J$27:J$33,\"N/A\",0)","v":"N/A"},{"$f":"_xlfn.XLOOKUP($E32,'Competitive Activity 2'!$B$27:$B$33,'Competitive Activity 2'!K$27:K$33,\"N/A\",0)","v":"N/A"},{"$f":"_xlfn.XLOOKUP($E32,'Competitive Activity 2'!$B$27:$B$33,'Competitive Activity 2'!M$27:M$33,\"N/A\",0)","v":"N/A"}]
[{"$f":"'1-Cover Sheet'!$C$8","v":"Select One"},{"$f":"'1-Cover Sheet'!$F$8","v":"Select One"},{"$f":"'Summary Sheet'!$D$8","v":0},{"$f":"'Summary Sheet'!$D$10","v":0},{"$f":"'Drop Down Box'!B197","v":0},{"$f":"'Drop Down Box'!C197","v":0},{"$f":"'Drop Down Box'!D197","v":"Select One"},{"$f":"_xlfn.XLOOKUP(E33,'Drop Down Box'!$B$166:$B$249,'Drop Down Box'!$A$166:$A$249,\"Unknown\",0)","v":"Activity 1"},{"$f":"_xlfn.XLOOKUP($E33,'Activity 5'!$B$8:$B$14,'Activity 5'!$L$8:$L$14,\"N/A\",0)","v":"N/A"},{"$f":"_xlfn.XLOOKUP($E33,'Activity 5'!$B$8:$B$14,'Activity 5'!$M$8:$M$14,\"N/A\",0)","v":"N/A"},{"$f":"_xlfn.XLOOKUP($E33,'Activity 5'!$B$8:$B$14,'Activity 5'!$G$8:$G$14,\"N/A\",0)","v":"N/A"},{"$f":"_xlfn.XLOOKUP($E33,'Activity 5'!$B$8:$B$14,'Activity 5'!$H$8:$H$14,\"N/A\",0)","v":"N/A"},{"$f":"_xlfn.XLOOKUP($E33,'Activity 5'!$B$8:$B$14,'Activity 5'!I$8:I$14,\"N/A\",0)","v":"N/A"},{"$f":"_xlfn.XLOOKUP($E33,'Activity 1'!$B$7:$B$13,'Activity 1'!$A$7:$A$13,\"No\",0,1)","v":"No"},{"$f":"_xlfn.XLOOKUP($E33,'Activity 1'!$B$7:$B$13,'Activity 1'!$H$7:$H$13,\"N/A\",0,1)","v":"N/A"},{"$f":"_xlfn.XLOOKUP($E33,'Activity 1'!$B$7:$B$13,'Activity 1'!I$7:I$13,\"N/A\",0,1)","v":"N/A"},{"$f":"_xlfn.XLOOKUP($E33,'Activity 1'!$B$7:$B$13,'Activity 1'!J$7:J$13,\"N/A\",0,1)","v":"N/A"},{"$f":"_xlfn.XLOOKUP($E33,'Activity 1'!$B$7:$B$13,'Activity 1'!K$7:K$13,\"N/A\",0,1)","v":"N/A"},{"$f":"_xlfn.XLOOKUP($E33,'Activity 1'!$B$7:$B$13,'Activity 1'!L$7:L$13,\"N/A\",0,1)","v":"N/A"},{"$f":"_xlfn.XLOOKUP($E33,'Activity 1'!$B$7:$B$13,'Activity 1'!M$7:M$13,\"N/A\",0,1)","v":"N/A"},{"$f":"_xlfn.XLOOKUP($E33,'Activity 1'!$B$7:$B$13,'Activity 1'!N$7:N$13,\"N/A\",0,1)","v":"N/A"},0,{"$f":"_xlfn.XLOOKUP($E33,'Activity 1'!$B$7:$B$13,'Activity 1'!O$7:O$13,\"N/A\",0,1)","v":"N/A"},{"$f":"_xlfn.XLOOKUP($E33,'Activity 1'!$B$7:$B$13,'Activity 1'!P$7:P$13,\"N/A\",0,1)","v":"N/A"},{"$f":"_xlfn.XLOOKUP($E33,'Activity 1'!$B$7:$B$13,'Activity 1'!Q$7:Q$13,\"N/A\",0,1)","v":"N/A"},{"$f":"_xlfn.XLOOKUP($E33,'Activity 1'!$B$7:$B$13,'Activity 1'!R$7:R$13,\"N/A\",0,1)","v":"N/A"},{"$f":"_xlfn.XLOOKUP($E33,'Activity 1'!$B$7:$B$13,'Activity 1'!S$7:S$13,\"N/A\",0,1)","v":"N/A"},{"$f":"_xlfn.XLOOKUP($E33,'Activity 1'!$B$7:$B$13,'Activity 1'!T$7:T$13,\"N/A\",0,1)","v":"N/A"},{"$f":"_xlfn.XLOOKUP($E33,'Activity 1'!$B$7:$B$13,'Activity 1'!U$7:U$13,\"N/A\",0,1)","v":"N/A"},{"$f":"_xlfn.XLOOKUP($E33,'Activity 1'!$B$7:$B$13,'Activity 1'!V$7:V$13,\"N/A\",0,1)","v":"N/A"},{"$f":"_xlfn.XLOOKUP($E33,'Activity 1'!$B$17:$B$23,'Activity 1'!C$17:C$23,\"N/A\",0,1)","v":"N/A"},{"$f":"_xlfn.XLOOKUP($E33,'Activity 1'!$B$17:$B$23,'Activity 1'!D$17:D$23,\"N/A\",0,1)","v":"N/A"},{"$f":"_xlfn.XLOOKUP($E33,'Activity 1'!$B$17:$B$23,'Activity 1'!E$17:E$23,\"N/A\",0,1)","v":"N/A"},{"$f":"_xlfn.XLOOKUP($E33,'Activity 1'!$B$17:$B$23,'Activity 1'!F$17:F$23,\"N/A\",0,1)","v":"N/A"},{"$f":"_xlfn.XLOOKUP($E33,'Activity 1'!$B$17:$B$23,'Activity 1'!G$17:G$23,\"N/A\",0,1)","v":"N/A"},{"$f":"_xlfn.XLOOKUP($E33,'Activity 1'!$B$17:$B$23,'Activity 1'!H$17:H$23,\"N/A\",0,1)","v":"N/A"},{"$f":"_xlfn.XLOOKUP($E33,'Activity 1'!$B$17:$B$23,'Activity 1'!I$17:I$23,\"N/A\",0,1)","v":"N/A"},{"$f":"_xlfn.XLOOKUP($E33,'Activity 1'!$B$17:$B$23,'Activity 1'!J$17:J$23,\"N/A\",0,1)","v":"N/A"},{"$f":"_xlfn.XLOOKUP($E33,'Activity 1'!$B$17:$B$23,'Activity 1'!K$17:K$23,\"N/A\",0,1)","v":"N/A"},{"$f":"_xlfn.XLOOKUP($E33,'Activity 1'!$B$17:$B$23,'Activity 1'!L$17:L$23,\"N/A\",0,1)","v":"N/A"},{"$f":"_xlfn.XLOOKUP($E33,'Activity 1'!$B$17:$B$23,'Activity 1'!M$17:M$23,\"N/A\",0,1)","v":"N/A"},{"$f":"_xlfn.XLOOKUP($E33,'Activity 1'!$B$17:$B$23,'Activity 1'!O$17:O$23,\"N/A\",0,1)","v":"N/A"},{"$f":"_xlfn.XLOOKUP($E33,'Activity 1'!$B$17:$B$23,'Activity 1'!Q$17:Q$23,\"N/A\",0,1)","v":"N/A"},{"$f":"_xlfn.XLOOKUP($E33,'Activity 2'!$B$7:$B$13,'Activity 2'!$A$7:$A$13,\"No\",0,1)","v":"No"},{"$f":"_xlfn.XLOOKUP($E33,'Activity 2'!B$7:B$13,'Activity 2'!H$7:H$13,\"N/A\",0)","v":"N/A"},{"$f":"_xlfn.XLOOKUP($E33,'Activity 2'!C$7:C$13,'Activity 2'!I$7:I$13,\"N/A\",0)","v":"N/A"},{"$f":"_xlfn.XLOOKUP($E33,'Activity 2'!D$7:D$13,'Activity 2'!J$7:J$13,\"N/A\",0)","v":"N/A"},{"$f":"_xlfn.XLOOKUP($E33,'Activity 2'!E$7:E$13,'Activity 2'!K$7:K$13,\"N/A\",0)","v":"N/A"},{"$f":"_xlfn.XLOOKUP($E33,'Activity 2'!F$7:F$13,'Activity 2'!L$7:L$13,\"N/A\",0)","v":"N/A"},{"$f":"_xlfn.XLOOKUP($E33,'Activity 2'!G$7:G$13,'Activity 2'!M$7:M$13,\"N/A\",0)","v":"N/A"},{"$f":"_xlfn.XLOOKUP($E33,'Activity 2'!H$7:H$13,'Activity 2'!N$7:N$13,\"N/A\",0)","v":"N/A"},{"$f":"_xlfn.XLOOKUP($E33,'Activity 2'!I$7:I$13,'Activity 2'!O$7:O$13,\"N/A\",0)","v":"N/A"},{"$f":"_xlfn.XLOOKUP($E33,'Activity 2'!J$7:J$13,'Activity 2'!P$7:P$13,\"N/A\",0)","v":"N/A"},{"$f":"_xlfn.XLOOKUP($E33,'Activity 2'!K$7:K$13,'Activity 2'!Q$7:Q$13,\"N/A\",0)","v":"N/A"},{"$f":"_xlfn.XLOOKUP($E33,'Activity 2'!L$7:L$13,'Activity 2'!R$7:R$13,\"N/A\",0)","v":"N/A"},{"$f":"_xlfn.XLOOKUP($E33,'Activity 2'!M$7:M$13,'Activity 2'!S$7:S$13,\"N/A\",0)","v":"N/A"},{"$f":"_xlfn.XLOOKUP($E33,'Activity 2'!N$7:N$13,'Activity 2'!T$7:T$13,\"N/A\",0)","v":"N/A"},{"$f":"_xlfn.XLOOKUP($E33,'Activity 2'!O$7:O$13,'Activity 2'!U$7:U$13,\"N/A\",0)","v":"N/A"},{"$f":"_xlfn.XLOOKUP($E33,'Activity 2'!P$7:P$13,'Activity 2'!V$7:V$13,\"N/A\",0)","v":"N/A"},{"$f":"_xlfn.XLOOKUP($E33,'Activity 2'!$B$17:$B$23,'Activity 2'!C$17:C$23,\"N/A\",0,1)","v":"N/A"},{"$f":"_xlfn.XLOOKUP($E33,'Activity 2'!$B$17:$B$23,'Activity 2'!D$17:D$23,\"N/A\",0,1)","v":"N/A"},{"$f":"_xlfn.XLOOKUP($E33,'Activity 2'!$B$17:$B$23,'Activity 2'!E$17:E$23,\"N/A\",0,1)","v":"N/A"},{"$f":"_xlfn.XLOOKUP($E33,'Activity 2'!$B$17:$B$23,'Activity 2'!F$17:F$23,\"N/A\",0,1)","v":"N/A"},{"$f":"_xlfn.XLOOKUP($E33,'Activity 2'!$B$17:$B$23,'Activity 2'!G$17:G$23,\"N/A\",0,1)","v":"N/A"},{"$f":"_xlfn.XLOOKUP($E33,'Activity 2'!$B$17:$B$23,'Activity 2'!H$17:H$23,\"N/A\",0,1)","v":"N/A"},{"$f":"_xlfn.XLOOKUP($E33,'Activity 2'!$B$17:$B$23,'Activity 2'!I$17:I$23,\"N/A\",0,1)","v":"N/A"},{"$f":"_xlfn.XLOOKUP($E33,'Activity 2'!$B$17:$B$23,'Activity 2'!J$17:J$23,\"N/A\",0,1)","v":"N/A"},{"$f":"_xlfn.XLOOKUP($E33,'Activity 2'!$B$17:$B$23,'Activity 2'!K$17:K$23,\"N/A\",0,1)","v":"N/A"},{"$f":"_xlfn.XLOOKUP($E33,'Activity 2'!$B$17:$B$23,'Activity 2'!L$17:L$23,\"N/A\",0,1)","v":"N/A"},{"$f":"_xlfn.XLOOKUP($E33,'Activity 2'!$B$17:$B$23,'Activity 2'!M$17:M$23,\"N/A\",0,1)","v":"N/A"},{"$f":"_xlfn.XLOOKUP($E33,'Activity 2'!$B$17:$B$23,'Activity 2'!O$17:O$23,\"N/A\",0,1)","v":"N/A"},{"$f":"_xlfn.XLOOKUP($E33,'Activity 2'!$B$17:$B$23,'Activity 2'!Q$17:Q$23,\"N/A\",0,1)","v":"N/A"},null,{"$f":"_xlfn.XLOOKUP($E33,'Activity 3'!$B$8:$B$14,'Activity 3'!K$8:K$14,\"N/A\",0,1)","v":"N/A"},{"$f":"_xlfn.XLOOKUP($E33,'Activity 3'!$B$8:$B$14,'Activity 3'!L$8:L$14,\"N/A\",0,1)","v":"N/A"},{"$f":"_xlfn.XLOOKUP($E33,'Activity 3'!$B$8:$B$14,'Activity 3'!M$8:M$14,\"N/A\",0,1)","v":"N/A"},{"$f":"_xlfn.XLOOKUP($E33,'Activity 3'!$B$8:$B$14,'Activity 3'!N$8:N$14,\"N/A\",0,1)","v":"N/A"},{"$f":"_xlfn.XLOOKUP($E33,'Activity 3'!$B$8:$B$14,'Activity 3'!O$8:O$14,\"N/A\",0,1)","v":"N/A"},{"$f":"_xlfn.XLOOKUP($E33,'Activity 3'!$B$8:$B$14,'Activity 3'!R$8:R$14,\"N/A\",0,1)","v":"N/A"},{"$f":"_xlfn.XLOOKUP($E33,'Activity 4'!$B$8:$B$14,'Activity 4'!$A$8:$A$14,\"No\",0,1)","v":"No"},{"$f":"_xlfn.XLOOKUP($E33,'Activity 4'!$B$8:$B$14,'Activity 4'!L$8:L$14,\"N/A\",0,1)","v":"N/A"},{"$f":"_xlfn.XLOOKUP($E33,'Activity 4'!$B$8:$B$14,'Activity 4'!I$8:I$14,\"N/A\",0,1)","v":"N/A"},{"$f":"_xlfn.XLOOKUP($E33,'Activity 4'!$B$8:$B$14,'Activity 4'!M$8:M$14,\"N/A\",0,1)","v":"N/A"},{"$f":"_xlfn.XLOOKUP($E33,'Activity 5'!$B$8:$B$14,'Activity 5'!$A$8:$A$14,\"No\",0,1)","v":"No"},{"$f":"_xlfn.XLOOKUP($E33,'Activity 5'!$B$8:$B$14,'Activity 5'!J$8:J$14,\"N/A\",0,1)","v":"N/A"},{"$f":"_xlfn.XLOOKUP($E33,'Activity 5'!$B$8:$B$14,'Activity 5'!K$8:K$14,\"N/A\",0,1)","v":"N/A"},{"$f":"_xlfn.XLOOKUP($E33,'Activity 5'!$B$8:$B$14,'Activity 5'!N$8:N$14,\"N/A\",0,1)","v":"N/A"},{"$f":"_xlfn.XLOOKUP($E33,'Activity 5'!$B$8:$B$14,'Activity 5'!O$8:O$14,\"N/A\",0,1)","v":"N/A"},{"$f":"_xlfn.XLOOKUP($E33,'Activity 5'!$B$8:$B$14,'Activity 5'!P$8:P$14,\"N/A\",0,1)","v":"N/A"},{"$f":"_xlfn.XLOOKUP($E33,'Activity 5'!$B$8:$B$14,'Activity 5'!Q$8:Q$14,\"N/A\",0,1)","v":"N/A"},{"$f":"_xlfn.XLOOKUP($E33,'Activity 5'!$B$8:$B$14,'Activity 5'!R$8:R$14,\"N/A\",0,1)","v":"N/A"},{"$f":"_xlfn.XLOOKUP($E33,'Activity 6'!$B$7:$B$13,'Activity 6'!A$7:A$13,\"No\",0,1)","v":"No"},{"$f":"_xlfn.XLOOKUP($E33,'Activity 6'!$B$7:$B$13,'Activity 6'!K$7:K$13,\"N/A\",0,1)","v":"N/A"},{"$f":"_xlfn.XLOOKUP($E33,'Activity 6'!$B$7:$B$13,'Activity 6'!L$7:L$13,\"N/A\",0,1)","v":"N/A"},{"$f":"_xlfn.XLOOKUP($E33,'Activity 6'!$B$7:$B$13,'Activity 6'!M$7:M$13,\"N/A\",0,1)","v":"N/A"},{"$f":"_xlfn.XLOOKUP($E33,'Activity 6'!$B$7:$B$13,'Activity 6'!N$7:N$13,\"N/A\",0,1)","v":"N/A"},{"$f":"_xlfn.XLOOKUP($E33,'Activity 6'!$B$7:$B$13,'Activity 6'!O$7:O$13,\"N/A\",0,1)","v":"N/A"},{"$f":"_xlfn.XLOOKUP($E33,'Activity 6'!$B$7:$B$13,'Activity 6'!P$7:P$13,\"N/A\",0,1)","v":"N/A"},{"$f":"_xlfn.XLOOKUP($E33,'Activity 6'!$B$7:$B$13,'Activity 6'!Q$7:Q$13,\"N/A\",0,1)","v":"N/A"},{"$f":"_xlfn.XLOOKUP($E33,'Activity 6'!$B$7:$B$13,'Activity 6'!R$7:R$13,\"N/A\",0,1)","v":"N/A"},{"$f":"_xlfn.XLOOKUP($E33,'Activity 6'!$B$7:$B$13,'Activity 6'!S$7:S$13,\"N/A\",0,1)","v":"N/A"},{"$f":"_xlfn.XLOOKUP($E33,'Activity 6'!$B$7:$B$13,'Activity 6'!T$7:T$13,\"N/A\",0,1)","v":"N/A"},{"$f":"_xlfn.XLOOKUP($E33,'Activity 6'!$B$7:$B$13,'Activity 6'!U$7:U$13,\"N/A\",0,1)","v":"N/A"},{"$f":"_xlfn.XLOOKUP($E33,'Activity 6'!$B$22:$B$28,'Activity 6'!C$22:C$28,\"N/A\",0,1)","v":"N/A"},{"$f":"_xlfn.XLOOKUP($E33,'Activity 6'!$B$22:$B$28,'Activity 6'!D$22:D$28,\"N/A\",0,1)","v":"N/A"},{"$f":"_xlfn.XLOOKUP($E33,'Activity 6'!$B$22:$B$28,'Activity 6'!E$22:E$28,\"N/A\",0,1)","v":"N/A"},{"$f":"_xlfn.XLOOKUP($E33,'Activity 6'!$B$22:$B$28,'Activity 6'!F$22:F$28,\"N/A\",0,1)","v":"N/A"},{"$f":"_xlfn.XLOOKUP($E33,'Activity 6'!$B$22:$B$28,'Activity 6'!G$22:G$28,\"N/A\",0,1)","v":"N/A"},{"$f":"_xlfn.XLOOKUP($E33,'Activity 6'!$B$22:$B$28,'Activity 6'!H$22:H$28,\"N/A\",0,1)","v":"N/A"},{"$f":"_xlfn.XLOOKUP($E33,'Activity 6'!$B$22:$B$28,'Activity 6'!I$22:I$28,\"N/A\",0,1)","v":"N/A"},{"$f":"_xlfn.XLOOKUP($E33,'Activity 6'!$B$22:$B$28,'Activity 6'!J$22:J$28,\"N/A\",0,1)","v":"N/A"},{"$f":"_xlfn.XLOOKUP($E33,'Activity 6'!$B$22:$B$28,'Activity 6'!K$22:K$28,\"N/A\",0,1)","v":"N/A"},{"$f":"_xlfn.XLOOKUP($E33,'Activity 6'!$B$22:$B$28,'Activity 6'!L$22:L$28,\"N/A\",0,1)","v":"N/A"},{"$f":"_xlfn.XLOOKUP($E33,'Activity 6'!$B$22:$B$28,'Activity 6'!M$22:M$28,\"N/A\",0,1)","v":"N/A"},{"$f":"_xlfn.XLOOKUP($E33,'Activity 6'!$B$22:$B$28,'Activity 6'!N$22:N$28,\"N/A\",0,1)","v":"N/A"},{"$f":"_xlfn.XLOOKUP($E33,'Activity 6'!$B$32:$B$38,'Activity 6'!C$32:C$38,\"N/A\",0,1)","v":"N/A"},{"$f":"_xlfn.XLOOKUP($E33,'Activity 6'!$B$32:$B$38,'Activity 6'!D$32:D$38,\"N/A\",0,1)","v":"N/A"},{"$f":"_xlfn.XLOOKUP($E33,'Activity 6'!$B$32:$B$38,'Activity 6'!E$32:E$38,\"N/A\",0,1)","v":"N/A"},{"$f":"_xlfn.XLOOKUP($E33,'Activity 6'!$B$32:$B$38,'Activity 6'!F$32:F$38,\"N/A\",0,1)","v":"N/A"},{"$f":"_xlfn.XLOOKUP($E33,'Activity 6'!$B$32:$B$38,'Activity 6'!G$32:G$38,\"N/A\",0,1)","v":"N/A"},{"$f":"_xlfn.XLOOKUP($E33,'Activity 6'!$B$32:$B$38,'Activity 6'!H$32:H$38,\"N/A\",0,1)","v":"N/A"},{"$f":"_xlfn.XLOOKUP($E33,'Activity 6'!$B$32:$B$38,'Activity 6'!I$32:I$38,\"N/A\",0,1)","v":"N/A"},{"$f":"_xlfn.XLOOKUP($E33,'Activity 6'!$B$32:$B$38,'Activity 6'!J$32:J$38,\"N/A\",0,1)","v":"N/A"},{"$f":"_xlfn.XLOOKUP($E33,'Activity 6'!$B$32:$B$38,'Activity 6'!K$32:K$38,\"N/A\",0,1)","v":"N/A"},{"$f":"_xlfn.XLOOKUP($E33,'Activity 6'!$B$32:$B$38,'Activity 6'!M$32:M$38,\"N/A\",0,1)","v":"N/A"},{"$f":"_xlfn.XLOOKUP($E33,'Activity 7'!$B$7:$B$13,'Activity 7'!$A$7:$A$13,\"No\",0,1)","v":"No"},{"$f":"_xlfn.XLOOKUP($E33,'Activity 7'!$B$7:$B$13,'Activity 7'!M$7:M$13,\"N/A\",0,1)","v":"N/A"},{"$f":"_xlfn.XLOOKUP($E33,'Activity 7'!$B$7:$B$13,'Activity 7'!K$7:K$13,\"N/A\",0,1)","v":"N/A"},{"$f":"_xlfn.XLOOKUP($E33,'Activity 7'!$B$7:$B$13,'Activity 7'!N$7:N$13,\"N/A\",0,1)","v":"N/A"},{"$f":"_xlfn.XLOOKUP($E33,'Activity 7'!$B$7:$B$13,'Activity 7'!O$7:O$13,\"N/A\",0,1)","v":"N/A"},{"$f":"_xlfn.XLOOKUP($E33,'Activity 7'!$B$7:$B$13,'Activity 7'!P$7:P$13,\"N/A\",0,1)","v":"N/A"},{"$f":"_xlfn.XLOOKUP($E33,'Activity 7'!$B$7:$B$13,'Activity 7'!Q$7:Q$13,\"N/A\",0,1)","v":"N/A"},{"$f":"_xlfn.XLOOKUP($E33,'Activity 7'!$B$7:$B$13,'Activity 7'!R$7:R$13,\"N/A\",0,1)","v":"N/A"},{"$f":"_xlfn.XLOOKUP($E33,'Activity 7'!$B$7:$B$13,'Activity 7'!S$7:S$13,\"N/A\",0,1)","v":"N/A"},{"$f":"_xlfn.XLOOKUP($E33,'Activity 7'!$B$7:$B$13,'Activity 7'!T$7:T$13,\"N/A\",0,1)","v":"N/A"},{"$f":"_xlfn.XLOOKUP($E33,'Activity 7'!$B$7:$B$13,'Activity 7'!U$7:U$13,\"N/A\",0,1)","v":"N/A"},{"$f":"_xlfn.XLOOKUP($E33,'Activity 7'!$B$7:$B$13,'Activity 7'!V$7:V$13,\"N/A\",0,1)","v":"N/A"},{"$f":"_xlfn.XLOOKUP($E33,'Activity 7'!$B$17:$B$23,'Activity 7'!E$17:E$23,\"N/A\",0,1)","v":"N/A"},{"$f":"_xlfn.XLOOKUP($E33,'Activity 7'!$B$17:$B$23,'Activity 7'!G$17:G$23,\"N/A\",0,1)","v":"N/A"},{"$f":"_xlfn.XLOOKUP($E33,'Activity 7'!$B$17:$B$23,'Activity 7'!I$17:I$23,\"N/A\",0,1)","v":"N/A"},{"$f":"_xlfn.XLOOKUP($E33,'Activity 7'!$B$17:$B$23,'Activity 7'!J$17:J$23,\"N/A\",0,1)","v":"N/A"},{"$f":"_xlfn.XLOOKUP($E33,'Activity 7'!$B$17:$B$23,'Activity 7'!K$17:K$23,\"N/A\",0,1)","v":"N/A"},{"$f":"_xlfn.XLOOKUP($E33,'Activity 7'!$B$17:$B$23,'Activity 7'!L$17:L$23,\"N/A\",0,1)","v":"N/A"},{"$f":"_xlfn.XLOOKUP($E33,'Activity 7'!$B$17:$B$23,'Activity 7'!M$17:M$23,\"N/A\",0,1)","v":"N/A"},{"$f":"_xlfn.XLOOKUP($E33,'Activity 7'!$B$17:$B$23,'Activity 7'!N$17:N$23,\"N/A\",0,1)","v":"N/A"},{"$f":"_xlfn.XLOOKUP($E33,'Activity 7'!$B$17:$B$23,'Activity 7'!P$17:P$23,\"N/A\",0,1)","v":"N/A"},{"$f":"_xlfn.XLOOKUP($E33,'Activity 8'!$B$7:$B$13,'Activity 8'!A$7:A$13,\"No\",0,1)","v":"No"},{"$f":"_xlfn.XLOOKUP($E33,'Activity 8'!$B$7:$B$13,'Activity 8'!I$7:I$13,\"N/A\",0,1)","v":"N/A"},{"$f":"_xlfn.XLOOKUP($E33,'Activity 8'!$B$7:$B$13,'Activity 8'!J$7:J$13,\"N/A\",0,1)","v":"N/A"},{"$f":"_xlfn.XLOOKUP($E33,'Activity 8'!$B$7:$B$13,'Activity 8'!K$7:K$13,\"N/A\",0,1)","v":"N/A"},{"$f":"_xlfn.XLOOKUP($E33,'Activity 8'!$B$7:$B$13,'Activity 8'!L$7:L$13,\"N/A\",0,1)","v":"N/A"},{"$f":"_xlfn.XLOOKUP($E33,'Activity 8'!$B$7:$B$13,'Activity 8'!M$7:M$13,\"N/A\",0,1)","v":"N/A"},{"$f":"_xlfn.XLOOKUP($E33,'Activity 8'!$B$7:$B$13,'Activity 8'!N$7:N$13,\"N/A\",0,1)","v":"N/A"},{"$f":"_xlfn.XLOOKUP($E33,'Activity 8'!$B$7:$B$13,'Activity 8'!O$7:O$13,\"N/A\",0,1)","v":"N/A"},{"$f":"_xlfn.XLOOKUP($E33,'Activity 8'!$B$7:$B$13,'Activity 8'!P$7:P$13,\"N/A\",0,1)","v":"N/A"},{"$f":"_xlfn.XLOOKUP($E33,'Activity 8'!$B$7:$B$13,'Activity 8'!Q$7:Q$13,\"N/A\",0,1)","v":"N/A"},{"$f":"_xlfn.XLOOKUP($E33,'Activity 8'!$B$7:$B$13,'Activity 8'!R$7:R$13,\"N/A\",0,1)","v":"N/A"},{"$f":"_xlfn.XLOOKUP($E33,'Activity 8'!$B$7:$B$13,'Activity 8'!S$7:S$13,\"N/A\",0,1)","v":"N/A"},{"$f":"_xlfn.XLOOKUP($E33,'Activity 8'!$B$7:$B$13,'Activity 8'!T$7:T$13,\"N/A\",0,1)","v":"N/A"},{"$f":"_xlfn.XLOOKUP($E33,'Activity 8'!$B$7:$B$13,'Activity 8'!U$7:U$13,\"N/A\",0,1)","v":"N/A"},{"$f":"_xlfn.XLOOKUP($E33,'Activity 8'!$B$7:$B$13,'Activity 8'!V$7:V$13,\"N/A\",0,1)","v":"N/A"},{"$f":"_xlfn.XLOOKUP($E33,'Activity 8'!$B$17:$B$23,'Activity 8'!D$17:D$23,\"N/A\",0,1)","v":"N/A"},{"$f":"_xlfn.XLOOKUP($E33,'Activity 8'!$B$17:$B$23,'Activity 8'!E$17:E$23,\"N/A\",0,1)","v":"N/A"},{"$f":"_xlfn.XLOOKUP($E33,'Activity 8'!$B$17:$B$23,'Activity 8'!F$17:F$23,\"N/A\",0,1)","v":"N/A"},{"$f":"_xlfn.XLOOKUP($E33,'Activity 8'!$B$17:$B$23,'Activity 8'!G$17:G$23,\"N/A\",0,1)","v":"N/A"},{"$f":"_xlfn.XLOOKUP($E33,'Activity 8'!$B$17:$B$23,'Activity 8'!H$17:H$23,\"N/A\",0,1)","v":"N/A"},{"$f":"_xlfn.XLOOKUP($E33,'Activity 8'!$B$17:$B$23,'Activity 8'!I$17:I$23,\"N/A\",0,1)","v":"N/A"},{"$f":"_xlfn.XLOOKUP($E33,'Activity 8'!$B$17:$B$23,'Activity 8'!J$17:J$23,\"N/A\",0,1)","v":"N/A"},{"$f":"_xlfn.XLOOKUP($E33,'Activity 8'!$B$17:$B$23,'Activity 8'!K$17:K$23,\"N/A\",0,1)","v":"N/A"},{"$f":"_xlfn.XLOOKUP($E33,'Activity 8'!$B$17:$B$23,'Activity 8'!L$17:L$23,\"N/A\",0,1)","v":"N/A"},{"$f":"_xlfn.XLOOKUP($E33,'Activity 8'!$B$17:$B$23,'Activity 8'!M$17:M$23,\"N/A\",0,1)","v":"N/A"},{"$f":"_xlfn.XLOOKUP($E33,'Activity 8'!$B$17:$B$23,'Activity 8'!N$17:N$23,\"N/A\",0,1)","v":"N/A"},{"$f":"_xlfn.XLOOKUP($E33,'Activity 8'!$B$17:$B$23,'Activity 8'!P$17:P$23,\"N/A\",0,1)","v":"N/A"},{"$f":"_xlfn.XLOOKUP(E33,'Activity 9'!$B$7:$B$13,'Activity 9'!$A$7:$A$13,\"No\",0,1)","v":"No"},{"$f":"_xlfn.XLOOKUP($E33,'Activity 9'!$B$7:$B$13,'Activity 9'!J$7:J$13,\"N/A\",0,1)","v":"N/A"},{"$f":"_xlfn.XLOOKUP($E33,'Activity 9'!$B$7:$B$13,'Activity 9'!K$7:K$13,\"N/A\",0,1)","v":"N/A"},{"$f":"_xlfn.XLOOKUP($E33,'Activity 9'!$B$7:$B$13,'Activity 9'!L$7:L$13,\"N/A\",0,1)","v":"N/A"},{"$f":"_xlfn.XLOOKUP($E33,'Activity 9'!$B$7:$B$13,'Activity 9'!M$7:M$13,\"N/A\",0,1)","v":"N/A"},{"$f":"_xlfn.XLOOKUP($E33,'Activity 9'!$B$7:$B$13,'Activity 9'!N$7:N$13,\"N/A\",0,1)","v":"N/A"},{"$f":"_xlfn.XLOOKUP($E33,'Activity 9'!$B$7:$B$13,'Activity 9'!O$7:O$13,\"N/A\",0,1)","v":"N/A"},{"$f":"_xlfn.XLOOKUP($E33,'Activity 9'!$B$7:$B$13,'Activity 9'!P$7:P$13,\"N/A\",0,1)","v":"N/A"},{"$f":"_xlfn.XLOOKUP($E33,'Activity 9'!$B$7:$B$13,'Activity 9'!Q$7:Q$13,\"N/A\",0,1)","v":"N/A"},{"$f":"_xlfn.XLOOKUP($E33,'Activity 9'!$B$7:$B$13,'Activity 9'!R$7:R$13,\"N/A\",0,1)","v":"N/A"},{"$f":"_xlfn.XLOOKUP($E33,'Activity 9'!$B$7:$B$13,'Activity 9'!S$7:S$13,\"N/A\",0,1)","v":"N/A"},{"$f":"_xlfn.XLOOKUP($E33,'Activity 9'!$B$7:$B$13,'Activity 9'!T$7:T$13,\"N/A\",0,1)","v":"N/A"},{"$f":"_xlfn.XLOOKUP($E33,'Activity 9'!$B$17:$B$23,'Activity 9'!E$17:E$23,\"N/A\",0,1)","v":"N/A"},{"$f":"_xlfn.XLOOKUP($E33,'Activity 9'!$B$17:$B$23,'Activity 9'!F$17:F$23,\"N/A\",0,1)","v":"N/A"},{"$f":"_xlfn.XLOOKUP($E33,'Activity 9'!$B$17:$B$23,'Activity 9'!G$17:G$23,\"N/A\",0,1)","v":"N/A"},{"$f":"_xlfn.XLOOKUP($E33,'Activity 9'!$B$17:$B$23,'Activity 9'!H$17:H$23,\"N/A\",0,1)","v":"N/A"},{"$f":"_xlfn.XLOOKUP($E33,'Activity 9'!$B$17:$B$23,'Activity 9'!I$17:I$23,\"N/A\",0,1)","v":"N/A"},{"$f":"_xlfn.XLOOKUP($E33,'Activity 9'!$B$17:$B$23,'Activity 9'!J$17:J$23,\"N/A\",0,1)","v":"N/A"},{"$f":"_xlfn.XLOOKUP($E33,'Activity 9'!$B$17:$B$23,'Activity 9'!K$17:K$23,\"N/A\",0,1)","v":"N/A"},{"$f":"_xlfn.XLOOKUP($E33,'Activity 9'!$B$17:$B$23,'Activity 9'!L$17:L$23,\"N/A\",0,1)","v":"N/A"},{"$f":"_xlfn.XLOOKUP($E33,'Activity 9'!$B$17:$B$23,'Activity 9'!N$17:N$23,\"N/A\",0,1)","v":"N/A"},{"$f":"_xlfn.XLOOKUP($E33,'Activity 9'!$B$17:$B$23,'Activity 9'!O$17:O$23,\"N/A\",0,1)","v":"N/A"},{"$f":"_xlfn.XLOOKUP($E33,'Activity 9'!$B$17:$B$23,'Activity 9'!Q$17:Q$23,\"N/A\",0,1)","v":"N/A"},{"$f":"_xlfn.XLOOKUP($E33,'Activity 10'!$B$7:$B$13,'Activity 10'!A$7:A$13,\"No\",0,1)","v":"No"},{"$f":"_xlfn.XLOOKUP($E33,'Activity 10'!$B$7:$B$13,'Activity 10'!J$7:J$13,\"N/A\",0,1)","v":"N/A"},{"$f":"_xlfn.XLOOKUP($E33,'Activity 10'!$B$7:$B$13,'Activity 10'!K$7:K$13,\"N/A\",0,1)","v":"N/A"},{"$f":"_xlfn.XLOOKUP($E33,'Activity 10'!$B$7:$B$13,'Activity 10'!L$7:L$13,\"N/A\",0,1)","v":"N/A"},{"$f":"_xlfn.XLOOKUP($E33,'Activity 10'!$B$7:$B$13,'Activity 10'!M$7:M$13,\"N/A\",0,1)","v":"N/A"},{"$f":"_xlfn.XLOOKUP($E33,'Activity 10'!$B$7:$B$13,'Activity 10'!N$7:N$13,\"N/A\",0,1)","v":"N/A"},{"$f":"_xlfn.XLOOKUP($E33,'Activity 10'!$B$7:$B$13,'Activity 10'!O$7:O$13,\"N/A\",0,1)","v":"N/A"},{"$f":"_xlfn.XLOOKUP($E33,'Activity 10'!$B$7:$B$13,'Activity 10'!P$7:P$13,\"N/A\",0,1)","v":"N/A"},{"$f":"_xlfn.XLOOKUP($E33,'Activity 10'!$B$7:$B$13,'Activity 10'!Q$7:Q$13,\"N/A\",0,1)","v":"N/A"},{"$f":"_xlfn.XLOOKUP($E33,'Activity 10'!$B$7:$B$13,'Activity 10'!R$7:R$13,\"N/A\",0,1)","v":"N/A"},{"$f":"_xlfn.XLOOKUP($E33,'Activity 10'!$B$7:$B$13,'Activity 10'!S$7:S$13,\"N/A\",0,1)","v":"N/A"},{"$f":"_xlfn.XLOOKUP($E33,'Activity 10'!$B$7:$B$13,'Activity 10'!T$7:T$13,\"N/A\",0,1)","v":"N/A"},{"$f":"_xlfn.XLOOKUP($E33,'Activity 10'!$B$7:$B$13,'Activity 10'!U$7:U$13,\"N/A\",0,1)","v":"N/A"},{"$f":"_xlfn.XLOOKUP($E33,'Activity 10'!$B$7:$B$13,'Activity 10'!V$7:V$13,\"N/A\",0,1)","v":"N/A"},{"$f":"_xlfn.XLOOKUP($E33,'Activity 10'!$B$17:$B$23,'Activity 10'!E$17:E$23,\"N/A\",0,1)","v":"N/A"},{"$f":"_xlfn.XLOOKUP($E33,'Activity 10'!$B$17:$B$23,'Activity 10'!F$17:F$23,\"N/A\",0,1)","v":"N/A"},{"$f":"_xlfn.XLOOKUP($E33,'Activity 10'!$B$17:$B$23,'Activity 10'!G$17:G$23,\"N/A\",0,1)","v":"N/A"},{"$f":"_xlfn.XLOOKUP($E33,'Activity 10'!$B$17:$B$23,'Activity 10'!H$17:H$23,\"N/A\",0,1)","v":"N/A"},{"$f":"_xlfn.XLOOKUP($E33,'Activity 10'!$B$17:$B$23,'Activity 10'!I$17:I$23,\"N/A\",0,1)","v":"N/A"},{"$f":"_xlfn.XLOOKUP($E33,'Activity 10'!$B$17:$B$23,'Activity 10'!J$17:J$23,\"N/A\",0,1)","v":"N/A"},{"$f":"_xlfn.XLOOKUP($E33,'Activity 10'!$B$17:$B$23,'Activity 10'!K$17:K$23,\"N/A\",0,1)","v":"N/A"},{"$f":"_xlfn.XLOOKUP($E33,'Activity 10'!$B$17:$B$23,'Activity 10'!L$17:L$23,\"N/A\",0,1)","v":"N/A"},{"$f":"_xlfn.XLOOKUP($E33,'Activity 10'!$B$17:$B$23,'Activity 10'!M$17:M$23,\"N/A\",0,1)","v":"N/A"},{"$f":"_xlfn.XLOOKUP($E33,'Activity 10'!$B$17:$B$23,'Activity 10'!N$17:N$23,\"N/A\",0,1)","v":"N/A"},{"$f":"_xlfn.XLOOKUP($E33,'Activity 10'!$B$17:$B$23,'Activity 10'!P$17:P$23,\"N/A\",0,1)","v":"N/A"},{"$f":"_xlfn.XLOOKUP($E33,'Competitive Activity 1'!B$7:B$13,'Competitive Activity 1'!A$7:A$13,\"No\",0,1)","v":"No"},{"$f":"_xlfn.XLOOKUP($E33,'Competitive Activity 1'!$B$7:$B$13,'Competitive Activity 1'!H$7:H$13,\"N/A\",0,1)","v":"N/A"},{"$f":"_xlfn.XLOOKUP($E33,'Competitive Activity 1'!$B$7:$B$13,'Competitive Activity 1'!I$7:I$13,\"N/A\",0,1)","v":"N/A"},{"$f":"_xlfn.XLOOKUP($E33,'Competitive Activity 1'!$B$7:$B$13,'Competitive Activity 1'!J$7:J$13,\"N/A\",0,1)","v":"N/A"},{"$f":"_xlfn.XLOOKUP($E33,'Competitive Activity 1'!$B$7:$B$13,'Competitive Activity 1'!K$7:K$13,\"N/A\",0,1)","v":"N/A"},{"$f":"_xlfn.XLOOKUP($E33,'Competitive Activity 1'!$B$7:$B$13,'Competitive Activity 1'!L$7:L$13,\"N/A\",0,1)","v":"N/A"},{"$f":"_xlfn.XLOOKUP($E33,'Competitive Activity 1'!$B$7:$B$13,'Competitive Activity 1'!M$7:M$13,\"N/A\",0,1)","v":"N/A"},{"$f":"_xlfn.XLOOKUP($E33,'Competitive Activity 1'!$B$7:$B$13,'Competitive Activity 1'!N$7:N$13,\"N/A\",0,1)","v":"N/A"},{"$f":"_xlfn.XLOOKUP($E33,'Competitive Activity 1'!$B$7:$B$13,'Competitive Activity 1'!O$7:O$13,\"N/A\",0,1)","v":"N/A"},{"$f":"_xlfn.XLOOKUP($E33,'Competitive Activity 1'!$B$7:$B$13,'Competitive Activity 1'!P$7:P$13,\"N/A\",0,1)","v":"N/A"},{"$f":"_xlfn.XLOOKUP($E33,'Competitive Activity 1'!$B$7:$B$13,'Competitive Activity 1'!Q$7:Q$13,\"N/A\",0,1)","v":"N/A"},{"$f":"_xlfn.XLOOKUP($E33,'Competitive Activity 1'!$B$7:$B$13,'Competitive Activity 1'!R$7:R$13,\"N/A\",0,1)","v":"N/A"},{"$f":"_xlfn.XLOOKUP($E33,'Competitive Activity 1'!$B$7:$B$13,'Competitive Activity 1'!S$7:S$13,\"N/A\",0,1)","v":"N/A"},{"$f":"_xlfn.XLOOKUP($E33,'Competitive Activity 1'!$B$7:$B$13,'Competitive Activity 1'!T$7:T$13,\"N/A\",0,1)","v":"N/A"},{"$f":"_xlfn.XLOOKUP($E33,'Competitive Activity 1'!$B$7:$B$13,'Competitive Activity 1'!U$7:U$13,\"N/A\",0,1)","v":"N/A"},{"$f":"_xlfn.XLOOKUP($E33,'Competitive Activity 1'!$B$17:$B$23,'Competitive Activity 1'!C$17:C$23,\"N/A\",0,1)","v":"N/A"},{"$f":"_xlfn.XLOOKUP($E33,'Competitive Activity 1'!$B$17:$B$23,'Competitive Activity 1'!D$17:D$23,\"N/A\",0,1)","v":"N/A"},{"$f":"_xlfn.XLOOKUP($E33,'Competitive Activity 1'!$B$17:$B$23,'Competitive Activity 1'!E$17:E$23,\"N/A\",0,1)","v":"N/A"},{"$f":"_xlfn.XLOOKUP($E33,'Competitive Activity 1'!$B$17:$B$23,'Competitive Activity 1'!F$17:F$23,\"N/A\",0,1)","v":"N/A"},{"$f":"_xlfn.XLOOKUP($E33,'Competitive Activity 1'!$B$17:$B$23,'Competitive Activity 1'!G$17:G$23,\"N/A\",0,1)","v":"N/A"},{"$f":"_xlfn.XLOOKUP($E33,'Competitive Activity 1'!$B$17:$B$23,'Competitive Activity 1'!H$17:H$23,\"N/A\",0,1)","v":"N/A"},{"$f":"_xlfn.XLOOKUP($E33,'Competitive Activity 1'!$B$17:$B$23,'Competitive Activity 1'!I$17:I$23,\"N/A\",0,1)","v":"N/A"},{"$f":"_xlfn.XLOOKUP($E33,'Competitive Activity 1'!$B$17:$B$23,'Competitive Activity 1'!J$17:J$23,\"N/A\",0,1)","v":"N/A"},{"$f":"_xlfn.XLOOKUP($E33,'Competitive Activity 1'!$B$17:$B$23,'Competitive Activity 1'!K$17:K$23,\"N/A\",0,1)","v":"N/A"},{"$f":"_xlfn.XLOOKUP($E33,'Competitive Activity 1'!$B$17:$B$23,'Competitive Activity 1'!M$17:M$23,\"N/A\",0,1)","v":"N/A"},{"$f":"_xlfn.XLOOKUP($E33,'Competitive Activity 1'!$B$17:$B$23,'Competitive Activity 1'!N$17:N$23,\"N/A\",0,1)","v":"N/A"},{"$f":"_xlfn.XLOOKUP($E33,'Competitive Activity 1'!$B$17:$B$23,'Competitive Activity 1'!P$17:P$23,\"N/A\",0,1)","v":"N/A"},{"$f":"_xlfn.XLOOKUP($E33,'Competitive Activity 2'!$B$7:$B$13,'Competitive Activity 2'!A$7:A$13,\"No\",0)","v":"No"},{"$f":"_xlfn.XLOOKUP($E33,'Competitive Activity 2'!$B$7:$B$13,'Competitive Activity 2'!L$7:L$13,\"N/A\",0)","v":"N/A"},{"$f":"_xlfn.XLOOKUP($E33,'Competitive Activity 2'!$B$7:$B$13,'Competitive Activity 2'!M$7:M$13,\"N/A\",0)","v":"N/A"},{"$f":"_xlfn.XLOOKUP($E33,'Competitive Activity 2'!$B$7:$B$13,'Competitive Activity 2'!N$7:N$13,\"N/A\",0)","v":"N/A"},{"$f":"_xlfn.XLOOKUP($E33,'Competitive Activity 2'!$B$7:$B$13,'Competitive Activity 2'!O$7:O$13,\"N/A\",0)","v":"N/A"},{"$f":"_xlfn.XLOOKUP($E33,'Competitive Activity 2'!$B$7:$B$13,'Competitive Activity 2'!P$7:P$13,\"N/A\",0)","v":"N/A"},{"$f":"_xlfn.XLOOKUP($E33,'Competitive Activity 2'!$B$7:$B$13,'Competitive Activity 2'!Q$7:Q$13,\"N/A\",0)","v":"N/A"},{"$f":"_xlfn.XLOOKUP($E33,'Competitive Activity 2'!$B$7:$B$13,'Competitive Activity 2'!R$7:R$13,\"N/A\",0)","v":"N/A"},{"$f":"_xlfn.XLOOKUP($E33,'Competitive Activity 2'!$B$7:$B$13,'Competitive Activity 2'!S$7:S$13,\"N/A\",0)","v":"N/A"},{"$f":"_xlfn.XLOOKUP($E33,'Competitive Activity 2'!$B$7:$B$13,'Competitive Activity 2'!T$7:T$13,\"N/A\",0)","v":"N/A"},{"$f":"_xlfn.XLOOKUP($E33,'Competitive Activity 2'!$B$7:$B$13,'Competitive Activity 2'!U$7:U$13,\"N/A\",0)","v":"N/A"},{"$f":"_xlfn.XLOOKUP($E33,'Competitive Activity 2'!$B$17:$B$23,'Competitive Activity 2'!D$17:D$23,\"N/A\",0)","v":"N/A"},{"$f":"_xlfn.XLOOKUP($E33,'Competitive Activity 2'!$B$17:$B$23,'Competitive Activity 2'!E$17:E$23,\"N/A\",0)","v":"N/A"},{"$f":"_xlfn.XLOOKUP($E33,'Competitive Activity 2'!$B$17:$B$23,'Competitive Activity 2'!F$17:F$23,\"N/A\",0)","v":"N/A"},{"$f":"_xlfn.XLOOKUP($E33,'Competitive Activity 2'!$B$17:$B$23,'Competitive Activity 2'!G$17:G$23,\"N/A\",0)","v":"N/A"},{"$f":"_xlfn.XLOOKUP($E33,'Competitive Activity 2'!$B$17:$B$23,'Competitive Activity 2'!H$17:H$23,\"N/A\",0)","v":"N/A"},{"$f":"_xlfn.XLOOKUP($E33,'Competitive Activity 2'!$B$17:$B$23,'Competitive Activity 2'!I$17:I$23,\"N/A\",0)","v":"N/A"},{"$f":"_xlfn.XLOOKUP($E33,'Competitive Activity 2'!$B$17:$B$23,'Competitive Activity 2'!J$17:J$23,\"N/A\",0)","v":"N/A"},{"$f":"_xlfn.XLOOKUP($E33,'Competitive Activity 2'!$B$17:$B$23,'Competitive Activity 2'!K$17:K$23,\"N/A\",0)","v":"N/A"},{"$f":"_xlfn.XLOOKUP($E33,'Competitive Activity 2'!$B$17:$B$23,'Competitive Activity 2'!L$17:L$23,\"N/A\",0)","v":"N/A"},{"$f":"_xlfn.XLOOKUP($E33,'Competitive Activity 2'!$B$17:$B$23,'Competitive Activity 2'!M$17:M$23,\"N/A\",0)","v":"N/A"},{"$f":"_xlfn.XLOOKUP($E33,'Competitive Activity 2'!$B$17:$B$23,'Competitive Activity 2'!N$17:N$23,\"N/A\",0)","v":"N/A"},{"$f":"_xlfn.XLOOKUP($E33,'Competitive Activity 2'!$B$27:$B$33,'Competitive Activity 2'!D$27:D$33,\"N/A\",0)","v":"N/A"},{"$f":"_xlfn.XLOOKUP($E33,'Competitive Activity 2'!$B$27:$B$33,'Competitive Activity 2'!E$27:E$33,\"N/A\",0)","v":"N/A"},{"$f":"_xlfn.XLOOKUP($E33,'Competitive Activity 2'!$B$27:$B$33,'Competitive Activity 2'!F$27:F$33,\"N/A\",0)","v":"N/A"},{"$f":"_xlfn.XLOOKUP($E33,'Competitive Activity 2'!$B$27:$B$33,'Competitive Activity 2'!G$27:G$33,\"N/A\",0)","v":"N/A"},{"$f":"_xlfn.XLOOKUP($E33,'Competitive Activity 2'!$B$27:$B$33,'Competitive Activity 2'!H$27:H$33,\"N/A\",0)","v":"N/A"},{"$f":"_xlfn.XLOOKUP($E33,'Competitive Activity 2'!$B$27:$B$33,'Competitive Activity 2'!I$27:I$33,\"N/A\",0)","v":"N/A"},{"$f":"_xlfn.XLOOKUP($E33,'Competitive Activity 2'!$B$27:$B$33,'Competitive Activity 2'!J$27:J$33,\"N/A\",0)","v":"N/A"},{"$f":"_xlfn.XLOOKUP($E33,'Competitive Activity 2'!$B$27:$B$33,'Competitive Activity 2'!K$27:K$33,\"N/A\",0)","v":"N/A"},{"$f":"_xlfn.XLOOKUP($E33,'Competitive Activity 2'!$B$27:$B$33,'Competitive Activity 2'!M$27:M$33,\"N/A\",0)","v":"N/A"}]
[{"$f":"'1-Cover Sheet'!$C$8","v":"Select One"},{"$f":"'1-Cover Sheet'!$F$8","v":"Select One"},{"$f":"'Summary Sheet'!$D$8","v":0},{"$f":"'Summary Sheet'!$D$10","v":0},{"$f":"'Drop Down Box'!B198","v":0},{"$f":"'Drop Down Box'!C198","v":0},{"$f":"'Drop Down Box'!D198","v":"Select One"},{"$f":"_xlfn.XLOOKUP(E34,'Drop Down Box'!$B$166:$B$249,'Drop Down Box'!$A$166:$A$249,\"Unknown\",0)","v":"Activity 1"},{"$f":"_xlfn.XLOOKUP($E34,'Activity 5'!$B$8:$B$14,'Activity 5'!$L$8:$L$14,\"N/A\",0)","v":"N/A"},{"$f":"_xlfn.XLOOKUP($E34,'Activity 5'!$B$8:$B$14,'Activity 5'!$M$8:$M$14,\"N/A\",0)","v":"N/A"},{"$f":"_xlfn.XLOOKUP($E34,'Activity 5'!$B$8:$B$14,'Activity 5'!$G$8:$G$14,\"N/A\",0)","v":"N/A"},{"$f":"_xlfn.XLOOKUP($E34,'Activity 5'!$B$8:$B$14,'Activity 5'!$H$8:$H$14,\"N/A\",0)","v":"N/A"},{"$f":"_xlfn.XLOOKUP($E34,'Activity 5'!$B$8:$B$14,'Activity 5'!I$8:I$14,\"N/A\",0)","v":"N/A"},{"$f":"_xlfn.XLOOKUP($E34,'Activity 1'!$B$7:$B$13,'Activity 1'!$A$7:$A$13,\"No\",0,1)","v":"No"},{"$f":"_xlfn.XLOOKUP($E34,'Activity 1'!$B$7:$B$13,'Activity 1'!$H$7:$H$13,\"N/A\",0,1)","v":"N/A"},{"$f":"_xlfn.XLOOKUP($E34,'Activity 1'!$B$7:$B$13,'Activity 1'!I$7:I$13,\"N/A\",0,1)","v":"N/A"},{"$f":"_xlfn.XLOOKUP($E34,'Activity 1'!$B$7:$B$13,'Activity 1'!J$7:J$13,\"N/A\",0,1)","v":"N/A"},{"$f":"_xlfn.XLOOKUP($E34,'Activity 1'!$B$7:$B$13,'Activity 1'!K$7:K$13,\"N/A\",0,1)","v":"N/A"},{"$f":"_xlfn.XLOOKUP($E34,'Activity 1'!$B$7:$B$13,'Activity 1'!L$7:L$13,\"N/A\",0,1)","v":"N/A"},{"$f":"_xlfn.XLOOKUP($E34,'Activity 1'!$B$7:$B$13,'Activity 1'!M$7:M$13,\"N/A\",0,1)","v":"N/A"},{"$f":"_xlfn.XLOOKUP($E34,'Activity 1'!$B$7:$B$13,'Activity 1'!N$7:N$13,\"N/A\",0,1)","v":"N/A"},0,{"$f":"_xlfn.XLOOKUP($E34,'Activity 1'!$B$7:$B$13,'Activity 1'!O$7:O$13,\"N/A\",0,1)","v":"N/A"},{"$f":"_xlfn.XLOOKUP($E34,'Activity 1'!$B$7:$B$13,'Activity 1'!P$7:P$13,\"N/A\",0,1)","v":"N/A"},{"$f":"_xlfn.XLOOKUP($E34,'Activity 1'!$B$7:$B$13,'Activity 1'!Q$7:Q$13,\"N/A\",0,1)","v":"N/A"},{"$f":"_xlfn.XLOOKUP($E34,'Activity 1'!$B$7:$B$13,'Activity 1'!R$7:R$13,\"N/A\",0,1)","v":"N/A"},{"$f":"_xlfn.XLOOKUP($E34,'Activity 1'!$B$7:$B$13,'Activity 1'!S$7:S$13,\"N/A\",0,1)","v":"N/A"},{"$f":"_xlfn.XLOOKUP($E34,'Activity 1'!$B$7:$B$13,'Activity 1'!T$7:T$13,\"N/A\",0,1)","v":"N/A"},{"$f":"_xlfn.XLOOKUP($E34,'Activity 1'!$B$7:$B$13,'Activity 1'!U$7:U$13,\"N/A\",0,1)","v":"N/A"},{"$f":"_xlfn.XLOOKUP($E34,'Activity 1'!$B$7:$B$13,'Activity 1'!V$7:V$13,\"N/A\",0,1)","v":"N/A"},{"$f":"_xlfn.XLOOKUP($E34,'Activity 1'!$B$17:$B$23,'Activity 1'!C$17:C$23,\"N/A\",0,1)","v":"N/A"},{"$f":"_xlfn.XLOOKUP($E34,'Activity 1'!$B$17:$B$23,'Activity 1'!D$17:D$23,\"N/A\",0,1)","v":"N/A"},{"$f":"_xlfn.XLOOKUP($E34,'Activity 1'!$B$17:$B$23,'Activity 1'!E$17:E$23,\"N/A\",0,1)","v":"N/A"},{"$f":"_xlfn.XLOOKUP($E34,'Activity 1'!$B$17:$B$23,'Activity 1'!F$17:F$23,\"N/A\",0,1)","v":"N/A"},{"$f":"_xlfn.XLOOKUP($E34,'Activity 1'!$B$17:$B$23,'Activity 1'!G$17:G$23,\"N/A\",0,1)","v":"N/A"},{"$f":"_xlfn.XLOOKUP($E34,'Activity 1'!$B$17:$B$23,'Activity 1'!H$17:H$23,\"N/A\",0,1)","v":"N/A"},{"$f":"_xlfn.XLOOKUP($E34,'Activity 1'!$B$17:$B$23,'Activity 1'!I$17:I$23,\"N/A\",0,1)","v":"N/A"},{"$f":"_xlfn.XLOOKUP($E34,'Activity 1'!$B$17:$B$23,'Activity 1'!J$17:J$23,\"N/A\",0,1)","v":"N/A"},{"$f":"_xlfn.XLOOKUP($E34,'Activity 1'!$B$17:$B$23,'Activity 1'!K$17:K$23,\"N/A\",0,1)","v":"N/A"},{"$f":"_xlfn.XLOOKUP($E34,'Activity 1'!$B$17:$B$23,'Activity 1'!L$17:L$23,\"N/A\",0,1)","v":"N/A"},{"$f":"_xlfn.XLOOKUP($E34,'Activity 1'!$B$17:$B$23,'Activity 1'!M$17:M$23,\"N/A\",0,1)","v":"N/A"},{"$f":"_xlfn.XLOOKUP($E34,'Activity 1'!$B$17:$B$23,'Activity 1'!O$17:O$23,\"N/A\",0,1)","v":"N/A"},{"$f":"_xlfn.XLOOKUP($E34,'Activity 1'!$B$17:$B$23,'Activity 1'!Q$17:Q$23,\"N/A\",0,1)","v":"N/A"},{"$f":"_xlfn.XLOOKUP($E34,'Activity 2'!$B$7:$B$13,'Activity 2'!$A$7:$A$13,\"No\",0,1)","v":"No"},{"$f":"_xlfn.XLOOKUP($E34,'Activity 2'!B$7:B$13,'Activity 2'!H$7:H$13,\"N/A\",0)","v":"N/A"},{"$f":"_xlfn.XLOOKUP($E34,'Activity 2'!C$7:C$13,'Activity 2'!I$7:I$13,\"N/A\",0)","v":"N/A"},{"$f":"_xlfn.XLOOKUP($E34,'Activity 2'!D$7:D$13,'Activity 2'!J$7:J$13,\"N/A\",0)","v":"N/A"},{"$f":"_xlfn.XLOOKUP($E34,'Activity 2'!E$7:E$13,'Activity 2'!K$7:K$13,\"N/A\",0)","v":"N/A"},{"$f":"_xlfn.XLOOKUP($E34,'Activity 2'!F$7:F$13,'Activity 2'!L$7:L$13,\"N/A\",0)","v":"N/A"},{"$f":"_xlfn.XLOOKUP($E34,'Activity 2'!G$7:G$13,'Activity 2'!M$7:M$13,\"N/A\",0)","v":"N/A"},{"$f":"_xlfn.XLOOKUP($E34,'Activity 2'!H$7:H$13,'Activity 2'!N$7:N$13,\"N/A\",0)","v":"N/A"},{"$f":"_xlfn.XLOOKUP($E34,'Activity 2'!I$7:I$13,'Activity 2'!O$7:O$13,\"N/A\",0)","v":"N/A"},{"$f":"_xlfn.XLOOKUP($E34,'Activity 2'!J$7:J$13,'Activity 2'!P$7:P$13,\"N/A\",0)","v":"N/A"},{"$f":"_xlfn.XLOOKUP($E34,'Activity 2'!K$7:K$13,'Activity 2'!Q$7:Q$13,\"N/A\",0)","v":"N/A"},{"$f":"_xlfn.XLOOKUP($E34,'Activity 2'!L$7:L$13,'Activity 2'!R$7:R$13,\"N/A\",0)","v":"N/A"},{"$f":"_xlfn.XLOOKUP($E34,'Activity 2'!M$7:M$13,'Activity 2'!S$7:S$13,\"N/A\",0)","v":"N/A"},{"$f":"_xlfn.XLOOKUP($E34,'Activity 2'!N$7:N$13,'Activity 2'!T$7:T$13,\"N/A\",0)","v":"N/A"},{"$f":"_xlfn.XLOOKUP($E34,'Activity 2'!O$7:O$13,'Activity 2'!U$7:U$13,\"N/A\",0)","v":"N/A"},{"$f":"_xlfn.XLOOKUP($E34,'Activity 2'!P$7:P$13,'Activity 2'!V$7:V$13,\"N/A\",0)","v":"N/A"},{"$f":"_xlfn.XLOOKUP($E34,'Activity 2'!$B$17:$B$23,'Activity 2'!C$17:C$23,\"N/A\",0,1)","v":"N/A"},{"$f":"_xlfn.XLOOKUP($E34,'Activity 2'!$B$17:$B$23,'Activity 2'!D$17:D$23,\"N/A\",0,1)","v":"N/A"},{"$f":"_xlfn.XLOOKUP($E34,'Activity 2'!$B$17:$B$23,'Activity 2'!E$17:E$23,\"N/A\",0,1)","v":"N/A"},{"$f":"_xlfn.XLOOKUP($E34,'Activity 2'!$B$17:$B$23,'Activity 2'!F$17:F$23,\"N/A\",0,1)","v":"N/A"},{"$f":"_xlfn.XLOOKUP($E34,'Activity 2'!$B$17:$B$23,'Activity 2'!G$17:G$23,\"N/A\",0,1)","v":"N/A"},{"$f":"_xlfn.XLOOKUP($E34,'Activity 2'!$B$17:$B$23,'Activity 2'!H$17:H$23,\"N/A\",0,1)","v":"N/A"},{"$f":"_xlfn.XLOOKUP($E34,'Activity 2'!$B$17:$B$23,'Activity 2'!I$17:I$23,\"N/A\",0,1)","v":"N/A"},{"$f":"_xlfn.XLOOKUP($E34,'Activity 2'!$B$17:$B$23,'Activity 2'!J$17:J$23,\"N/A\",0,1)","v":"N/A"},{"$f":"_xlfn.XLOOKUP($E34,'Activity 2'!$B$17:$B$23,'Activity 2'!K$17:K$23,\"N/A\",0,1)","v":"N/A"},{"$f":"_xlfn.XLOOKUP($E34,'Activity 2'!$B$17:$B$23,'Activity 2'!L$17:L$23,\"N/A\",0,1)","v":"N/A"},{"$f":"_xlfn.XLOOKUP($E34,'Activity 2'!$B$17:$B$23,'Activity 2'!M$17:M$23,\"N/A\",0,1)","v":"N/A"},{"$f":"_xlfn.XLOOKUP($E34,'Activity 2'!$B$17:$B$23,'Activity 2'!O$17:O$23,\"N/A\",0,1)","v":"N/A"},{"$f":"_xlfn.XLOOKUP($E34,'Activity 2'!$B$17:$B$23,'Activity 2'!Q$17:Q$23,\"N/A\",0,1)","v":"N/A"},null,{"$f":"_xlfn.XLOOKUP($E34,'Activity 3'!$B$8:$B$14,'Activity 3'!K$8:K$14,\"N/A\",0,1)","v":"N/A"},{"$f":"_xlfn.XLOOKUP($E34,'Activity 3'!$B$8:$B$14,'Activity 3'!L$8:L$14,\"N/A\",0,1)","v":"N/A"},{"$f":"_xlfn.XLOOKUP($E34,'Activity 3'!$B$8:$B$14,'Activity 3'!M$8:M$14,\"N/A\",0,1)","v":"N/A"},{"$f":"_xlfn.XLOOKUP($E34,'Activity 3'!$B$8:$B$14,'Activity 3'!N$8:N$14,\"N/A\",0,1)","v":"N/A"},{"$f":"_xlfn.XLOOKUP($E34,'Activity 3'!$B$8:$B$14,'Activity 3'!O$8:O$14,\"N/A\",0,1)","v":"N/A"},{"$f":"_xlfn.XLOOKUP($E34,'Activity 3'!$B$8:$B$14,'Activity 3'!R$8:R$14,\"N/A\",0,1)","v":"N/A"},{"$f":"_xlfn.XLOOKUP($E34,'Activity 4'!$B$8:$B$14,'Activity 4'!$A$8:$A$14,\"No\",0,1)","v":"No"},{"$f":"_xlfn.XLOOKUP($E34,'Activity 4'!$B$8:$B$14,'Activity 4'!L$8:L$14,\"N/A\",0,1)","v":"N/A"},{"$f":"_xlfn.XLOOKUP($E34,'Activity 4'!$B$8:$B$14,'Activity 4'!I$8:I$14,\"N/A\",0,1)","v":"N/A"},{"$f":"_xlfn.XLOOKUP($E34,'Activity 4'!$B$8:$B$14,'Activity 4'!M$8:M$14,\"N/A\",0,1)","v":"N/A"},{"$f":"_xlfn.XLOOKUP($E34,'Activity 5'!$B$8:$B$14,'Activity 5'!$A$8:$A$14,\"No\",0,1)","v":"No"},{"$f":"_xlfn.XLOOKUP($E34,'Activity 5'!$B$8:$B$14,'Activity 5'!J$8:J$14,\"N/A\",0,1)","v":"N/A"},{"$f":"_xlfn.XLOOKUP($E34,'Activity 5'!$B$8:$B$14,'Activity 5'!K$8:K$14,\"N/A\",0,1)","v":"N/A"},{"$f":"_xlfn.XLOOKUP($E34,'Activity 5'!$B$8:$B$14,'Activity 5'!N$8:N$14,\"N/A\",0,1)","v":"N/A"},{"$f":"_xlfn.XLOOKUP($E34,'Activity 5'!$B$8:$B$14,'Activity 5'!O$8:O$14,\"N/A\",0,1)","v":"N/A"},{"$f":"_xlfn.XLOOKUP($E34,'Activity 5'!$B$8:$B$14,'Activity 5'!P$8:P$14,\"N/A\",0,1)","v":"N/A"},{"$f":"_xlfn.XLOOKUP($E34,'Activity 5'!$B$8:$B$14,'Activity 5'!Q$8:Q$14,\"N/A\",0,1)","v":"N/A"},{"$f":"_xlfn.XLOOKUP($E34,'Activity 5'!$B$8:$B$14,'Activity 5'!R$8:R$14,\"N/A\",0,1)","v":"N/A"},{"$f":"_xlfn.XLOOKUP($E34,'Activity 6'!$B$7:$B$13,'Activity 6'!A$7:A$13,\"No\",0,1)","v":"No"},{"$f":"_xlfn.XLOOKUP($E34,'Activity 6'!$B$7:$B$13,'Activity 6'!K$7:K$13,\"N/A\",0,1)","v":"N/A"},{"$f":"_xlfn.XLOOKUP($E34,'Activity 6'!$B$7:$B$13,'Activity 6'!L$7:L$13,\"N/A\",0,1)","v":"N/A"},{"$f":"_xlfn.XLOOKUP($E34,'Activity 6'!$B$7:$B$13,'Activity 6'!M$7:M$13,\"N/A\",0,1)","v":"N/A"},{"$f":"_xlfn.XLOOKUP($E34,'Activity 6'!$B$7:$B$13,'Activity 6'!N$7:N$13,\"N/A\",0,1)","v":"N/A"},{"$f":"_xlfn.XLOOKUP($E34,'Activity 6'!$B$7:$B$13,'Activity 6'!O$7:O$13,\"N/A\",0,1)","v":"N/A"},{"$f":"_xlfn.XLOOKUP($E34,'Activity 6'!$B$7:$B$13,'Activity 6'!P$7:P$13,\"N/A\",0,1)","v":"N/A"},{"$f":"_xlfn.XLOOKUP($E34,'Activity 6'!$B$7:$B$13,'Activity 6'!Q$7:Q$13,\"N/A\",0,1)","v":"N/A"},{"$f":"_xlfn.XLOOKUP($E34,'Activity 6'!$B$7:$B$13,'Activity 6'!R$7:R$13,\"N/A\",0,1)","v":"N/A"},{"$f":"_xlfn.XLOOKUP($E34,'Activity 6'!$B$7:$B$13,'Activity 6'!S$7:S$13,\"N/A\",0,1)","v":"N/A"},{"$f":"_xlfn.XLOOKUP($E34,'Activity 6'!$B$7:$B$13,'Activity 6'!T$7:T$13,\"N/A\",0,1)","v":"N/A"},{"$f":"_xlfn.XLOOKUP($E34,'Activity 6'!$B$7:$B$13,'Activity 6'!U$7:U$13,\"N/A\",0,1)","v":"N/A"},{"$f":"_xlfn.XLOOKUP($E34,'Activity 6'!$B$22:$B$28,'Activity 6'!C$22:C$28,\"N/A\",0,1)","v":"N/A"},{"$f":"_xlfn.XLOOKUP($E34,'Activity 6'!$B$22:$B$28,'Activity 6'!D$22:D$28,\"N/A\",0,1)","v":"N/A"},{"$f":"_xlfn.XLOOKUP($E34,'Activity 6'!$B$22:$B$28,'Activity 6'!E$22:E$28,\"N/A\",0,1)","v":"N/A"},{"$f":"_xlfn.XLOOKUP($E34,'Activity 6'!$B$22:$B$28,'Activity 6'!F$22:F$28,\"N/A\",0,1)","v":"N/A"},{"$f":"_xlfn.XLOOKUP($E34,'Activity 6'!$B$22:$B$28,'Activity 6'!G$22:G$28,\"N/A\",0,1)","v":"N/A"},{"$f":"_xlfn.XLOOKUP($E34,'Activity 6'!$B$22:$B$28,'Activity 6'!H$22:H$28,\"N/A\",0,1)","v":"N/A"},{"$f":"_xlfn.XLOOKUP($E34,'Activity 6'!$B$22:$B$28,'Activity 6'!I$22:I$28,\"N/A\",0,1)","v":"N/A"},{"$f":"_xlfn.XLOOKUP($E34,'Activity 6'!$B$22:$B$28,'Activity 6'!J$22:J$28,\"N/A\",0,1)","v":"N/A"},{"$f":"_xlfn.XLOOKUP($E34,'Activity 6'!$B$22:$B$28,'Activity 6'!K$22:K$28,\"N/A\",0,1)","v":"N/A"},{"$f":"_xlfn.XLOOKUP($E34,'Activity 6'!$B$22:$B$28,'Activity 6'!L$22:L$28,\"N/A\",0,1)","v":"N/A"},{"$f":"_xlfn.XLOOKUP($E34,'Activity 6'!$B$22:$B$28,'Activity 6'!M$22:M$28,\"N/A\",0,1)","v":"N/A"},{"$f":"_xlfn.XLOOKUP($E34,'Activity 6'!$B$22:$B$28,'Activity 6'!N$22:N$28,\"N/A\",0,1)","v":"N/A"},{"$f":"_xlfn.XLOOKUP($E34,'Activity 6'!$B$32:$B$38,'Activity 6'!C$32:C$38,\"N/A\",0,1)","v":"N/A"},{"$f":"_xlfn.XLOOKUP($E34,'Activity 6'!$B$32:$B$38,'Activity 6'!D$32:D$38,\"N/A\",0,1)","v":"N/A"},{"$f":"_xlfn.XLOOKUP($E34,'Activity 6'!$B$32:$B$38,'Activity 6'!E$32:E$38,\"N/A\",0,1)","v":"N/A"},{"$f":"_xlfn.XLOOKUP($E34,'Activity 6'!$B$32:$B$38,'Activity 6'!F$32:F$38,\"N/A\",0,1)","v":"N/A"},{"$f":"_xlfn.XLOOKUP($E34,'Activity 6'!$B$32:$B$38,'Activity 6'!G$32:G$38,\"N/A\",0,1)","v":"N/A"},{"$f":"_xlfn.XLOOKUP($E34,'Activity 6'!$B$32:$B$38,'Activity 6'!H$32:H$38,\"N/A\",0,1)","v":"N/A"},{"$f":"_xlfn.XLOOKUP($E34,'Activity 6'!$B$32:$B$38,'Activity 6'!I$32:I$38,\"N/A\",0,1)","v":"N/A"},{"$f":"_xlfn.XLOOKUP($E34,'Activity 6'!$B$32:$B$38,'Activity 6'!J$32:J$38,\"N/A\",0,1)","v":"N/A"},{"$f":"_xlfn.XLOOKUP($E34,'Activity 6'!$B$32:$B$38,'Activity 6'!K$32:K$38,\"N/A\",0,1)","v":"N/A"},{"$f":"_xlfn.XLOOKUP($E34,'Activity 6'!$B$32:$B$38,'Activity 6'!M$32:M$38,\"N/A\",0,1)","v":"N/A"},{"$f":"_xlfn.XLOOKUP($E34,'Activity 7'!$B$7:$B$13,'Activity 7'!$A$7:$A$13,\"No\",0,1)","v":"No"},{"$f":"_xlfn.XLOOKUP($E34,'Activity 7'!$B$7:$B$13,'Activity 7'!M$7:M$13,\"N/A\",0,1)","v":"N/A"},{"$f":"_xlfn.XLOOKUP($E34,'Activity 7'!$B$7:$B$13,'Activity 7'!K$7:K$13,\"N/A\",0,1)","v":"N/A"},{"$f":"_xlfn.XLOOKUP($E34,'Activity 7'!$B$7:$B$13,'Activity 7'!N$7:N$13,\"N/A\",0,1)","v":"N/A"},{"$f":"_xlfn.XLOOKUP($E34,'Activity 7'!$B$7:$B$13,'Activity 7'!O$7:O$13,\"N/A\",0,1)","v":"N/A"},{"$f":"_xlfn.XLOOKUP($E34,'Activity 7'!$B$7:$B$13,'Activity 7'!P$7:P$13,\"N/A\",0,1)","v":"N/A"},{"$f":"_xlfn.XLOOKUP($E34,'Activity 7'!$B$7:$B$13,'Activity 7'!Q$7:Q$13,\"N/A\",0,1)","v":"N/A"},{"$f":"_xlfn.XLOOKUP($E34,'Activity 7'!$B$7:$B$13,'Activity 7'!R$7:R$13,\"N/A\",0,1)","v":"N/A"},{"$f":"_xlfn.XLOOKUP($E34,'Activity 7'!$B$7:$B$13,'Activity 7'!S$7:S$13,\"N/A\",0,1)","v":"N/A"},{"$f":"_xlfn.XLOOKUP($E34,'Activity 7'!$B$7:$B$13,'Activity 7'!T$7:T$13,\"N/A\",0,1)","v":"N/A"},{"$f":"_xlfn.XLOOKUP($E34,'Activity 7'!$B$7:$B$13,'Activity 7'!U$7:U$13,\"N/A\",0,1)","v":"N/A"},{"$f":"_xlfn.XLOOKUP($E34,'Activity 7'!$B$7:$B$13,'Activity 7'!V$7:V$13,\"N/A\",0,1)","v":"N/A"},{"$f":"_xlfn.XLOOKUP($E34,'Activity 7'!$B$17:$B$23,'Activity 7'!E$17:E$23,\"N/A\",0,1)","v":"N/A"},{"$f":"_xlfn.XLOOKUP($E34,'Activity 7'!$B$17:$B$23,'Activity 7'!G$17:G$23,\"N/A\",0,1)","v":"N/A"},{"$f":"_xlfn.XLOOKUP($E34,'Activity 7'!$B$17:$B$23,'Activity 7'!I$17:I$23,\"N/A\",0,1)","v":"N/A"},{"$f":"_xlfn.XLOOKUP($E34,'Activity 7'!$B$17:$B$23,'Activity 7'!J$17:J$23,\"N/A\",0,1)","v":"N/A"},{"$f":"_xlfn.XLOOKUP($E34,'Activity 7'!$B$17:$B$23,'Activity 7'!K$17:K$23,\"N/A\",0,1)","v":"N/A"},{"$f":"_xlfn.XLOOKUP($E34,'Activity 7'!$B$17:$B$23,'Activity 7'!L$17:L$23,\"N/A\",0,1)","v":"N/A"},{"$f":"_xlfn.XLOOKUP($E34,'Activity 7'!$B$17:$B$23,'Activity 7'!M$17:M$23,\"N/A\",0,1)","v":"N/A"},{"$f":"_xlfn.XLOOKUP($E34,'Activity 7'!$B$17:$B$23,'Activity 7'!N$17:N$23,\"N/A\",0,1)","v":"N/A"},{"$f":"_xlfn.XLOOKUP($E34,'Activity 7'!$B$17:$B$23,'Activity 7'!P$17:P$23,\"N/A\",0,1)","v":"N/A"},{"$f":"_xlfn.XLOOKUP($E34,'Activity 8'!$B$7:$B$13,'Activity 8'!A$7:A$13,\"No\",0,1)","v":"No"},{"$f":"_xlfn.XLOOKUP($E34,'Activity 8'!$B$7:$B$13,'Activity 8'!I$7:I$13,\"N/A\",0,1)","v":"N/A"},{"$f":"_xlfn.XLOOKUP($E34,'Activity 8'!$B$7:$B$13,'Activity 8'!J$7:J$13,\"N/A\",0,1)","v":"N/A"},{"$f":"_xlfn.XLOOKUP($E34,'Activity 8'!$B$7:$B$13,'Activity 8'!K$7:K$13,\"N/A\",0,1)","v":"N/A"},{"$f":"_xlfn.XLOOKUP($E34,'Activity 8'!$B$7:$B$13,'Activity 8'!L$7:L$13,\"N/A\",0,1)","v":"N/A"},{"$f":"_xlfn.XLOOKUP($E34,'Activity 8'!$B$7:$B$13,'Activity 8'!M$7:M$13,\"N/A\",0,1)","v":"N/A"},{"$f":"_xlfn.XLOOKUP($E34,'Activity 8'!$B$7:$B$13,'Activity 8'!N$7:N$13,\"N/A\",0,1)","v":"N/A"},{"$f":"_xlfn.XLOOKUP($E34,'Activity 8'!$B$7:$B$13,'Activity 8'!O$7:O$13,\"N/A\",0,1)","v":"N/A"},{"$f":"_xlfn.XLOOKUP($E34,'Activity 8'!$B$7:$B$13,'Activity 8'!P$7:P$13,\"N/A\",0,1)","v":"N/A"},{"$f":"_xlfn.XLOOKUP($E34,'Activity 8'!$B$7:$B$13,'Activity 8'!Q$7:Q$13,\"N/A\",0,1)","v":"N/A"},{"$f":"_xlfn.XLOOKUP($E34,'Activity 8'!$B$7:$B$13,'Activity 8'!R$7:R$13,\"N/A\",0,1)","v":"N/A"},{"$f":"_xlfn.XLOOKUP($E34,'Activity 8'!$B$7:$B$13,'Activity 8'!S$7:S$13,\"N/A\",0,1)","v":"N/A"},{"$f":"_xlfn.XLOOKUP($E34,'Activity 8'!$B$7:$B$13,'Activity 8'!T$7:T$13,\"N/A\",0,1)","v":"N/A"},{"$f":"_xlfn.XLOOKUP($E34,'Activity 8'!$B$7:$B$13,'Activity 8'!U$7:U$13,\"N/A\",0,1)","v":"N/A"},{"$f":"_xlfn.XLOOKUP($E34,'Activity 8'!$B$7:$B$13,'Activity 8'!V$7:V$13,\"N/A\",0,1)","v":"N/A"},{"$f":"_xlfn.XLOOKUP($E34,'Activity 8'!$B$17:$B$23,'Activity 8'!D$17:D$23,\"N/A\",0,1)","v":"N/A"},{"$f":"_xlfn.XLOOKUP($E34,'Activity 8'!$B$17:$B$23,'Activity 8'!E$17:E$23,\"N/A\",0,1)","v":"N/A"},{"$f":"_xlfn.XLOOKUP($E34,'Activity 8'!$B$17:$B$23,'Activity 8'!F$17:F$23,\"N/A\",0,1)","v":"N/A"},{"$f":"_xlfn.XLOOKUP($E34,'Activity 8'!$B$17:$B$23,'Activity 8'!G$17:G$23,\"N/A\",0,1)","v":"N/A"},{"$f":"_xlfn.XLOOKUP($E34,'Activity 8'!$B$17:$B$23,'Activity 8'!H$17:H$23,\"N/A\",0,1)","v":"N/A"},{"$f":"_xlfn.XLOOKUP($E34,'Activity 8'!$B$17:$B$23,'Activity 8'!I$17:I$23,\"N/A\",0,1)","v":"N/A"},{"$f":"_xlfn.XLOOKUP($E34,'Activity 8'!$B$17:$B$23,'Activity 8'!J$17:J$23,\"N/A\",0,1)","v":"N/A"},{"$f":"_xlfn.XLOOKUP($E34,'Activity 8'!$B$17:$B$23,'Activity 8'!K$17:K$23,\"N/A\",0,1)","v":"N/A"},{"$f":"_xlfn.XLOOKUP($E34,'Activity 8'!$B$17:$B$23,'Activity 8'!L$17:L$23,\"N/A\",0,1)","v":"N/A"},{"$f":"_xlfn.XLOOKUP($E34,'Activity 8'!$B$17:$B$23,'Activity 8'!M$17:M$23,\"N/A\",0,1)","v":"N/A"},{"$f":"_xlfn.XLOOKUP($E34,'Activity 8'!$B$17:$B$23,'Activity 8'!N$17:N$23,\"N/A\",0,1)","v":"N/A"},{"$f":"_xlfn.XLOOKUP($E34,'Activity 8'!$B$17:$B$23,'Activity 8'!P$17:P$23,\"N/A\",0,1)","v":"N/A"},{"$f":"_xlfn.XLOOKUP(E34,'Activity 9'!$B$7:$B$13,'Activity 9'!$A$7:$A$13,\"No\",0,1)","v":"No"},{"$f":"_xlfn.XLOOKUP($E34,'Activity 9'!$B$7:$B$13,'Activity 9'!J$7:J$13,\"N/A\",0,1)","v":"N/A"},{"$f":"_xlfn.XLOOKUP($E34,'Activity 9'!$B$7:$B$13,'Activity 9'!K$7:K$13,\"N/A\",0,1)","v":"N/A"},{"$f":"_xlfn.XLOOKUP($E34,'Activity 9'!$B$7:$B$13,'Activity 9'!L$7:L$13,\"N/A\",0,1)","v":"N/A"},{"$f":"_xlfn.XLOOKUP($E34,'Activity 9'!$B$7:$B$13,'Activity 9'!M$7:M$13,\"N/A\",0,1)","v":"N/A"},{"$f":"_xlfn.XLOOKUP($E34,'Activity 9'!$B$7:$B$13,'Activity 9'!N$7:N$13,\"N/A\",0,1)","v":"N/A"},{"$f":"_xlfn.XLOOKUP($E34,'Activity 9'!$B$7:$B$13,'Activity 9'!O$7:O$13,\"N/A\",0,1)","v":"N/A"},{"$f":"_xlfn.XLOOKUP($E34,'Activity 9'!$B$7:$B$13,'Activity 9'!P$7:P$13,\"N/A\",0,1)","v":"N/A"},{"$f":"_xlfn.XLOOKUP($E34,'Activity 9'!$B$7:$B$13,'Activity 9'!Q$7:Q$13,\"N/A\",0,1)","v":"N/A"},{"$f":"_xlfn.XLOOKUP($E34,'Activity 9'!$B$7:$B$13,'Activity 9'!R$7:R$13,\"N/A\",0,1)","v":"N/A"},{"$f":"_xlfn.XLOOKUP($E34,'Activity 9'!$B$7:$B$13,'Activity 9'!S$7:S$13,\"N/A\",0,1)","v":"N/A"},{"$f":"_xlfn.XLOOKUP($E34,'Activity 9'!$B$7:$B$13,'Activity 9'!T$7:T$13,\"N/A\",0,1)","v":"N/A"},{"$f":"_xlfn.XLOOKUP($E34,'Activity 9'!$B$17:$B$23,'Activity 9'!E$17:E$23,\"N/A\",0,1)","v":"N/A"},{"$f":"_xlfn.XLOOKUP($E34,'Activity 9'!$B$17:$B$23,'Activity 9'!F$17:F$23,\"N/A\",0,1)","v":"N/A"},{"$f":"_xlfn.XLOOKUP($E34,'Activity 9'!$B$17:$B$23,'Activity 9'!G$17:G$23,\"N/A\",0,1)","v":"N/A"},{"$f":"_xlfn.XLOOKUP($E34,'Activity 9'!$B$17:$B$23,'Activity 9'!H$17:H$23,\"N/A\",0,1)","v":"N/A"},{"$f":"_xlfn.XLOOKUP($E34,'Activity 9'!$B$17:$B$23,'Activity 9'!I$17:I$23,\"N/A\",0,1)","v":"N/A"},{"$f":"_xlfn.XLOOKUP($E34,'Activity 9'!$B$17:$B$23,'Activity 9'!J$17:J$23,\"N/A\",0,1)","v":"N/A"},{"$f":"_xlfn.XLOOKUP($E34,'Activity 9'!$B$17:$B$23,'Activity 9'!K$17:K$23,\"N/A\",0,1)","v":"N/A"},{"$f":"_xlfn.XLOOKUP($E34,'Activity 9'!$B$17:$B$23,'Activity 9'!L$17:L$23,\"N/A\",0,1)","v":"N/A"},{"$f":"_xlfn.XLOOKUP($E34,'Activity 9'!$B$17:$B$23,'Activity 9'!N$17:N$23,\"N/A\",0,1)","v":"N/A"},{"$f":"_xlfn.XLOOKUP($E34,'Activity 9'!$B$17:$B$23,'Activity 9'!O$17:O$23,\"N/A\",0,1)","v":"N/A"},{"$f":"_xlfn.XLOOKUP($E34,'Activity 9'!$B$17:$B$23,'Activity 9'!Q$17:Q$23,\"N/A\",0,1)","v":"N/A"},{"$f":"_xlfn.XLOOKUP($E34,'Activity 10'!$B$7:$B$13,'Activity 10'!A$7:A$13,\"No\",0,1)","v":"No"},{"$f":"_xlfn.XLOOKUP($E34,'Activity 10'!$B$7:$B$13,'Activity 10'!J$7:J$13,\"N/A\",0,1)","v":"N/A"},{"$f":"_xlfn.XLOOKUP($E34,'Activity 10'!$B$7:$B$13,'Activity 10'!K$7:K$13,\"N/A\",0,1)","v":"N/A"},{"$f":"_xlfn.XLOOKUP($E34,'Activity 10'!$B$7:$B$13,'Activity 10'!L$7:L$13,\"N/A\",0,1)","v":"N/A"},{"$f":"_xlfn.XLOOKUP($E34,'Activity 10'!$B$7:$B$13,'Activity 10'!M$7:M$13,\"N/A\",0,1)","v":"N/A"},{"$f":"_xlfn.XLOOKUP($E34,'Activity 10'!$B$7:$B$13,'Activity 10'!N$7:N$13,\"N/A\",0,1)","v":"N/A"},{"$f":"_xlfn.XLOOKUP($E34,'Activity 10'!$B$7:$B$13,'Activity 10'!O$7:O$13,\"N/A\",0,1)","v":"N/A"},{"$f":"_xlfn.XLOOKUP($E34,'Activity 10'!$B$7:$B$13,'Activity 10'!P$7:P$13,\"N/A\",0,1)","v":"N/A"},{"$f":"_xlfn.XLOOKUP($E34,'Activity 10'!$B$7:$B$13,'Activity 10'!Q$7:Q$13,\"N/A\",0,1)","v":"N/A"},{"$f":"_xlfn.XLOOKUP($E34,'Activity 10'!$B$7:$B$13,'Activity 10'!R$7:R$13,\"N/A\",0,1)","v":"N/A"},{"$f":"_xlfn.XLOOKUP($E34,'Activity 10'!$B$7:$B$13,'Activity 10'!S$7:S$13,\"N/A\",0,1)","v":"N/A"},{"$f":"_xlfn.XLOOKUP($E34,'Activity 10'!$B$7:$B$13,'Activity 10'!T$7:T$13,\"N/A\",0,1)","v":"N/A"},{"$f":"_xlfn.XLOOKUP($E34,'Activity 10'!$B$7:$B$13,'Activity 10'!U$7:U$13,\"N/A\",0,1)","v":"N/A"},{"$f":"_xlfn.XLOOKUP($E34,'Activity 10'!$B$7:$B$13,'Activity 10'!V$7:V$13,\"N/A\",0,1)","v":"N/A"},{"$f":"_xlfn.XLOOKUP($E34,'Activity 10'!$B$17:$B$23,'Activity 10'!E$17:E$23,\"N/A\",0,1)","v":"N/A"},{"$f":"_xlfn.XLOOKUP($E34,'Activity 10'!$B$17:$B$23,'Activity 10'!F$17:F$23,\"N/A\",0,1)","v":"N/A"},{"$f":"_xlfn.XLOOKUP($E34,'Activity 10'!$B$17:$B$23,'Activity 10'!G$17:G$23,\"N/A\",0,1)","v":"N/A"},{"$f":"_xlfn.XLOOKUP($E34,'Activity 10'!$B$17:$B$23,'Activity 10'!H$17:H$23,\"N/A\",0,1)","v":"N/A"},{"$f":"_xlfn.XLOOKUP($E34,'Activity 10'!$B$17:$B$23,'Activity 10'!I$17:I$23,\"N/A\",0,1)","v":"N/A"},{"$f":"_xlfn.XLOOKUP($E34,'Activity 10'!$B$17:$B$23,'Activity 10'!J$17:J$23,\"N/A\",0,1)","v":"N/A"},{"$f":"_xlfn.XLOOKUP($E34,'Activity 10'!$B$17:$B$23,'Activity 10'!K$17:K$23,\"N/A\",0,1)","v":"N/A"},{"$f":"_xlfn.XLOOKUP($E34,'Activity 10'!$B$17:$B$23,'Activity 10'!L$17:L$23,\"N/A\",0,1)","v":"N/A"},{"$f":"_xlfn.XLOOKUP($E34,'Activity 10'!$B$17:$B$23,'Activity 10'!M$17:M$23,\"N/A\",0,1)","v":"N/A"},{"$f":"_xlfn.XLOOKUP($E34,'Activity 10'!$B$17:$B$23,'Activity 10'!N$17:N$23,\"N/A\",0,1)","v":"N/A"},{"$f":"_xlfn.XLOOKUP($E34,'Activity 10'!$B$17:$B$23,'Activity 10'!P$17:P$23,\"N/A\",0,1)","v":"N/A"},{"$f":"_xlfn.XLOOKUP($E34,'Competitive Activity 1'!B$7:B$13,'Competitive Activity 1'!A$7:A$13,\"No\",0,1)","v":"No"},{"$f":"_xlfn.XLOOKUP($E34,'Competitive Activity 1'!$B$7:$B$13,'Competitive Activity 1'!H$7:H$13,\"N/A\",0,1)","v":"N/A"},{"$f":"_xlfn.XLOOKUP($E34,'Competitive Activity 1'!$B$7:$B$13,'Competitive Activity 1'!I$7:I$13,\"N/A\",0,1)","v":"N/A"},{"$f":"_xlfn.XLOOKUP($E34,'Competitive Activity 1'!$B$7:$B$13,'Competitive Activity 1'!J$7:J$13,\"N/A\",0,1)","v":"N/A"},{"$f":"_xlfn.XLOOKUP($E34,'Competitive Activity 1'!$B$7:$B$13,'Competitive Activity 1'!K$7:K$13,\"N/A\",0,1)","v":"N/A"},{"$f":"_xlfn.XLOOKUP($E34,'Competitive Activity 1'!$B$7:$B$13,'Competitive Activity 1'!L$7:L$13,\"N/A\",0,1)","v":"N/A"},{"$f":"_xlfn.XLOOKUP($E34,'Competitive Activity 1'!$B$7:$B$13,'Competitive Activity 1'!M$7:M$13,\"N/A\",0,1)","v":"N/A"},{"$f":"_xlfn.XLOOKUP($E34,'Competitive Activity 1'!$B$7:$B$13,'Competitive Activity 1'!N$7:N$13,\"N/A\",0,1)","v":"N/A"},{"$f":"_xlfn.XLOOKUP($E34,'Competitive Activity 1'!$B$7:$B$13,'Competitive Activity 1'!O$7:O$13,\"N/A\",0,1)","v":"N/A"},{"$f":"_xlfn.XLOOKUP($E34,'Competitive Activity 1'!$B$7:$B$13,'Competitive Activity 1'!P$7:P$13,\"N/A\",0,1)","v":"N/A"},{"$f":"_xlfn.XLOOKUP($E34,'Competitive Activity 1'!$B$7:$B$13,'Competitive Activity 1'!Q$7:Q$13,\"N/A\",0,1)","v":"N/A"},{"$f":"_xlfn.XLOOKUP($E34,'Competitive Activity 1'!$B$7:$B$13,'Competitive Activity 1'!R$7:R$13,\"N/A\",0,1)","v":"N/A"},{"$f":"_xlfn.XLOOKUP($E34,'Competitive Activity 1'!$B$7:$B$13,'Competitive Activity 1'!S$7:S$13,\"N/A\",0,1)","v":"N/A"},{"$f":"_xlfn.XLOOKUP($E34,'Competitive Activity 1'!$B$7:$B$13,'Competitive Activity 1'!T$7:T$13,\"N/A\",0,1)","v":"N/A"},{"$f":"_xlfn.XLOOKUP($E34,'Competitive Activity 1'!$B$7:$B$13,'Competitive Activity 1'!U$7:U$13,\"N/A\",0,1)","v":"N/A"},{"$f":"_xlfn.XLOOKUP($E34,'Competitive Activity 1'!$B$17:$B$23,'Competitive Activity 1'!C$17:C$23,\"N/A\",0,1)","v":"N/A"},{"$f":"_xlfn.XLOOKUP($E34,'Competitive Activity 1'!$B$17:$B$23,'Competitive Activity 1'!D$17:D$23,\"N/A\",0,1)","v":"N/A"},{"$f":"_xlfn.XLOOKUP($E34,'Competitive Activity 1'!$B$17:$B$23,'Competitive Activity 1'!E$17:E$23,\"N/A\",0,1)","v":"N/A"},{"$f":"_xlfn.XLOOKUP($E34,'Competitive Activity 1'!$B$17:$B$23,'Competitive Activity 1'!F$17:F$23,\"N/A\",0,1)","v":"N/A"},{"$f":"_xlfn.XLOOKUP($E34,'Competitive Activity 1'!$B$17:$B$23,'Competitive Activity 1'!G$17:G$23,\"N/A\",0,1)","v":"N/A"},{"$f":"_xlfn.XLOOKUP($E34,'Competitive Activity 1'!$B$17:$B$23,'Competitive Activity 1'!H$17:H$23,\"N/A\",0,1)","v":"N/A"},{"$f":"_xlfn.XLOOKUP($E34,'Competitive Activity 1'!$B$17:$B$23,'Competitive Activity 1'!I$17:I$23,\"N/A\",0,1)","v":"N/A"},{"$f":"_xlfn.XLOOKUP($E34,'Competitive Activity 1'!$B$17:$B$23,'Competitive Activity 1'!J$17:J$23,\"N/A\",0,1)","v":"N/A"},{"$f":"_xlfn.XLOOKUP($E34,'Competitive Activity 1'!$B$17:$B$23,'Competitive Activity 1'!K$17:K$23,\"N/A\",0,1)","v":"N/A"},{"$f":"_xlfn.XLOOKUP($E34,'Competitive Activity 1'!$B$17:$B$23,'Competitive Activity 1'!M$17:M$23,\"N/A\",0,1)","v":"N/A"},{"$f":"_xlfn.XLOOKUP($E34,'Competitive Activity 1'!$B$17:$B$23,'Competitive Activity 1'!N$17:N$23,\"N/A\",0,1)","v":"N/A"},{"$f":"_xlfn.XLOOKUP($E34,'Competitive Activity 1'!$B$17:$B$23,'Competitive Activity 1'!P$17:P$23,\"N/A\",0,1)","v":"N/A"},{"$f":"_xlfn.XLOOKUP($E34,'Competitive Activity 2'!$B$7:$B$13,'Competitive Activity 2'!A$7:A$13,\"No\",0)","v":"No"},{"$f":"_xlfn.XLOOKUP($E34,'Competitive Activity 2'!$B$7:$B$13,'Competitive Activity 2'!L$7:L$13,\"N/A\",0)","v":"N/A"},{"$f":"_xlfn.XLOOKUP($E34,'Competitive Activity 2'!$B$7:$B$13,'Competitive Activity 2'!M$7:M$13,\"N/A\",0)","v":"N/A"},{"$f":"_xlfn.XLOOKUP($E34,'Competitive Activity 2'!$B$7:$B$13,'Competitive Activity 2'!N$7:N$13,\"N/A\",0)","v":"N/A"},{"$f":"_xlfn.XLOOKUP($E34,'Competitive Activity 2'!$B$7:$B$13,'Competitive Activity 2'!O$7:O$13,\"N/A\",0)","v":"N/A"},{"$f":"_xlfn.XLOOKUP($E34,'Competitive Activity 2'!$B$7:$B$13,'Competitive Activity 2'!P$7:P$13,\"N/A\",0)","v":"N/A"},{"$f":"_xlfn.XLOOKUP($E34,'Competitive Activity 2'!$B$7:$B$13,'Competitive Activity 2'!Q$7:Q$13,\"N/A\",0)","v":"N/A"},{"$f":"_xlfn.XLOOKUP($E34,'Competitive Activity 2'!$B$7:$B$13,'Competitive Activity 2'!R$7:R$13,\"N/A\",0)","v":"N/A"},{"$f":"_xlfn.XLOOKUP($E34,'Competitive Activity 2'!$B$7:$B$13,'Competitive Activity 2'!S$7:S$13,\"N/A\",0)","v":"N/A"},{"$f":"_xlfn.XLOOKUP($E34,'Competitive Activity 2'!$B$7:$B$13,'Competitive Activity 2'!T$7:T$13,\"N/A\",0)","v":"N/A"},{"$f":"_xlfn.XLOOKUP($E34,'Competitive Activity 2'!$B$7:$B$13,'Competitive Activity 2'!U$7:U$13,\"N/A\",0)","v":"N/A"},{"$f":"_xlfn.XLOOKUP($E34,'Competitive Activity 2'!$B$17:$B$23,'Competitive Activity 2'!D$17:D$23,\"N/A\",0)","v":"N/A"},{"$f":"_xlfn.XLOOKUP($E34,'Competitive Activity 2'!$B$17:$B$23,'Competitive Activity 2'!E$17:E$23,\"N/A\",0)","v":"N/A"},{"$f":"_xlfn.XLOOKUP($E34,'Competitive Activity 2'!$B$17:$B$23,'Competitive Activity 2'!F$17:F$23,\"N/A\",0)","v":"N/A"},{"$f":"_xlfn.XLOOKUP($E34,'Competitive Activity 2'!$B$17:$B$23,'Competitive Activity 2'!G$17:G$23,\"N/A\",0)","v":"N/A"},{"$f":"_xlfn.XLOOKUP($E34,'Competitive Activity 2'!$B$17:$B$23,'Competitive Activity 2'!H$17:H$23,\"N/A\",0)","v":"N/A"},{"$f":"_xlfn.XLOOKUP($E34,'Competitive Activity 2'!$B$17:$B$23,'Competitive Activity 2'!I$17:I$23,\"N/A\",0)","v":"N/A"},{"$f":"_xlfn.XLOOKUP($E34,'Competitive Activity 2'!$B$17:$B$23,'Competitive Activity 2'!J$17:J$23,\"N/A\",0)","v":"N/A"},{"$f":"_xlfn.XLOOKUP($E34,'Competitive Activity 2'!$B$17:$B$23,'Competitive Activity 2'!K$17:K$23,\"N/A\",0)","v":"N/A"},{"$f":"_xlfn.XLOOKUP($E34,'Competitive Activity 2'!$B$17:$B$23,'Competitive Activity 2'!L$17:L$23,\"N/A\",0)","v":"N/A"},{"$f":"_xlfn.XLOOKUP($E34,'Competitive Activity 2'!$B$17:$B$23,'Competitive Activity 2'!M$17:M$23,\"N/A\",0)","v":"N/A"},{"$f":"_xlfn.XLOOKUP($E34,'Competitive Activity 2'!$B$17:$B$23,'Competitive Activity 2'!N$17:N$23,\"N/A\",0)","v":"N/A"},{"$f":"_xlfn.XLOOKUP($E34,'Competitive Activity 2'!$B$27:$B$33,'Competitive Activity 2'!D$27:D$33,\"N/A\",0)","v":"N/A"},{"$f":"_xlfn.XLOOKUP($E34,'Competitive Activity 2'!$B$27:$B$33,'Competitive Activity 2'!E$27:E$33,\"N/A\",0)","v":"N/A"},{"$f":"_xlfn.XLOOKUP($E34,'Competitive Activity 2'!$B$27:$B$33,'Competitive Activity 2'!F$27:F$33,\"N/A\",0)","v":"N/A"},{"$f":"_xlfn.XLOOKUP($E34,'Competitive Activity 2'!$B$27:$B$33,'Competitive Activity 2'!G$27:G$33,\"N/A\",0)","v":"N/A"},{"$f":"_xlfn.XLOOKUP($E34,'Competitive Activity 2'!$B$27:$B$33,'Competitive Activity 2'!H$27:H$33,\"N/A\",0)","v":"N/A"},{"$f":"_xlfn.XLOOKUP($E34,'Competitive Activity 2'!$B$27:$B$33,'Competitive Activity 2'!I$27:I$33,\"N/A\",0)","v":"N/A"},{"$f":"_xlfn.XLOOKUP($E34,'Competitive Activity 2'!$B$27:$B$33,'Competitive Activity 2'!J$27:J$33,\"N/A\",0)","v":"N/A"},{"$f":"_xlfn.XLOOKUP($E34,'Competitive Activity 2'!$B$27:$B$33,'Competitive Activity 2'!K$27:K$33,\"N/A\",0)","v":"N/A"},{"$f":"_xlfn.XLOOKUP($E34,'Competitive Activity 2'!$B$27:$B$33,'Competitive Activity 2'!M$27:M$33,\"N/A\",0)","v":"N/A"}]
[{"$f":"'1-Cover Sheet'!$C$8","v":"Select One"},{"$f":"'1-Cover Sheet'!$F$8","v":"Select One"},{"$f":"'Summary Sheet'!$D$8","v":0},{"$f":"'Summary Sheet'!$D$10","v":0},{"$f":"'Drop Down Box'!B199","v":0},{"$f":"'Drop Down Box'!C199","v":0},{"$f":"'Drop Down Box'!D199","v":"Select One"},{"$f":"_xlfn.XLOOKUP(E35,'Drop Down Box'!$B$166:$B$249,'Drop Down Box'!$A$166:$A$249,\"Unknown\",0)","v":"Activity 1"},{"$f":"_xlfn.XLOOKUP($E35,'Activity 5'!$B$8:$B$14,'Activity 5'!$L$8:$L$14,\"N/A\",0)","v":"N/A"},{"$f":"_xlfn.XLOOKUP($E35,'Activity 5'!$B$8:$B$14,'Activity 5'!$M$8:$M$14,\"N/A\",0)","v":"N/A"},{"$f":"_xlfn.XLOOKUP($E35,'Activity 5'!$B$8:$B$14,'Activity 5'!$G$8:$G$14,\"N/A\",0)","v":"N/A"},{"$f":"_xlfn.XLOOKUP($E35,'Activity 5'!$B$8:$B$14,'Activity 5'!$H$8:$H$14,\"N/A\",0)","v":"N/A"},{"$f":"_xlfn.XLOOKUP($E35,'Activity 5'!$B$8:$B$14,'Activity 5'!I$8:I$14,\"N/A\",0)","v":"N/A"},{"$f":"_xlfn.XLOOKUP($E35,'Activity 1'!$B$7:$B$13,'Activity 1'!$A$7:$A$13,\"No\",0,1)","v":"No"},{"$f":"_xlfn.XLOOKUP($E35,'Activity 1'!$B$7:$B$13,'Activity 1'!$H$7:$H$13,\"N/A\",0,1)","v":"N/A"},{"$f":"_xlfn.XLOOKUP($E35,'Activity 1'!$B$7:$B$13,'Activity 1'!I$7:I$13,\"N/A\",0,1)","v":"N/A"},{"$f":"_xlfn.XLOOKUP($E35,'Activity 1'!$B$7:$B$13,'Activity 1'!J$7:J$13,\"N/A\",0,1)","v":"N/A"},{"$f":"_xlfn.XLOOKUP($E35,'Activity 1'!$B$7:$B$13,'Activity 1'!K$7:K$13,\"N/A\",0,1)","v":"N/A"},{"$f":"_xlfn.XLOOKUP($E35,'Activity 1'!$B$7:$B$13,'Activity 1'!L$7:L$13,\"N/A\",0,1)","v":"N/A"},{"$f":"_xlfn.XLOOKUP($E35,'Activity 1'!$B$7:$B$13,'Activity 1'!M$7:M$13,\"N/A\",0,1)","v":"N/A"},{"$f":"_xlfn.XLOOKUP($E35,'Activity 1'!$B$7:$B$13,'Activity 1'!N$7:N$13,\"N/A\",0,1)","v":"N/A"},0,{"$f":"_xlfn.XLOOKUP($E35,'Activity 1'!$B$7:$B$13,'Activity 1'!O$7:O$13,\"N/A\",0,1)","v":"N/A"},{"$f":"_xlfn.XLOOKUP($E35,'Activity 1'!$B$7:$B$13,'Activity 1'!P$7:P$13,\"N/A\",0,1)","v":"N/A"},{"$f":"_xlfn.XLOOKUP($E35,'Activity 1'!$B$7:$B$13,'Activity 1'!Q$7:Q$13,\"N/A\",0,1)","v":"N/A"},{"$f":"_xlfn.XLOOKUP($E35,'Activity 1'!$B$7:$B$13,'Activity 1'!R$7:R$13,\"N/A\",0,1)","v":"N/A"},{"$f":"_xlfn.XLOOKUP($E35,'Activity 1'!$B$7:$B$13,'Activity 1'!S$7:S$13,\"N/A\",0,1)","v":"N/A"},{"$f":"_xlfn.XLOOKUP($E35,'Activity 1'!$B$7:$B$13,'Activity 1'!T$7:T$13,\"N/A\",0,1)","v":"N/A"},{"$f":"_xlfn.XLOOKUP($E35,'Activity 1'!$B$7:$B$13,'Activity 1'!U$7:U$13,\"N/A\",0,1)","v":"N/A"},{"$f":"_xlfn.XLOOKUP($E35,'Activity 1'!$B$7:$B$13,'Activity 1'!V$7:V$13,\"N/A\",0,1)","v":"N/A"},{"$f":"_xlfn.XLOOKUP($E35,'Activity 1'!$B$17:$B$23,'Activity 1'!C$17:C$23,\"N/A\",0,1)","v":"N/A"},{"$f":"_xlfn.XLOOKUP($E35,'Activity 1'!$B$17:$B$23,'Activity 1'!D$17:D$23,\"N/A\",0,1)","v":"N/A"},{"$f":"_xlfn.XLOOKUP($E35,'Activity 1'!$B$17:$B$23,'Activity 1'!E$17:E$23,\"N/A\",0,1)","v":"N/A"},{"$f":"_xlfn.XLOOKUP($E35,'Activity 1'!$B$17:$B$23,'Activity 1'!F$17:F$23,\"N/A\",0,1)","v":"N/A"},{"$f":"_xlfn.XLOOKUP($E35,'Activity 1'!$B$17:$B$23,'Activity 1'!G$17:G$23,\"N/A\",0,1)","v":"N/A"},{"$f":"_xlfn.XLOOKUP($E35,'Activity 1'!$B$17:$B$23,'Activity 1'!H$17:H$23,\"N/A\",0,1)","v":"N/A"},{"$f":"_xlfn.XLOOKUP($E35,'Activity 1'!$B$17:$B$23,'Activity 1'!I$17:I$23,\"N/A\",0,1)","v":"N/A"},{"$f":"_xlfn.XLOOKUP($E35,'Activity 1'!$B$17:$B$23,'Activity 1'!J$17:J$23,\"N/A\",0,1)","v":"N/A"},{"$f":"_xlfn.XLOOKUP($E35,'Activity 1'!$B$17:$B$23,'Activity 1'!K$17:K$23,\"N/A\",0,1)","v":"N/A"},{"$f":"_xlfn.XLOOKUP($E35,'Activity 1'!$B$17:$B$23,'Activity 1'!L$17:L$23,\"N/A\",0,1)","v":"N/A"},{"$f":"_xlfn.XLOOKUP($E35,'Activity 1'!$B$17:$B$23,'Activity 1'!M$17:M$23,\"N/A\",0,1)","v":"N/A"},{"$f":"_xlfn.XLOOKUP($E35,'Activity 1'!$B$17:$B$23,'Activity 1'!O$17:O$23,\"N/A\",0,1)","v":"N/A"},{"$f":"_xlfn.XLOOKUP($E35,'Activity 1'!$B$17:$B$23,'Activity 1'!Q$17:Q$23,\"N/A\",0,1)","v":"N/A"},{"$f":"_xlfn.XLOOKUP($E35,'Activity 2'!$B$7:$B$13,'Activity 2'!$A$7:$A$13,\"No\",0,1)","v":"No"},{"$f":"_xlfn.XLOOKUP($E35,'Activity 2'!B$7:B$13,'Activity 2'!H$7:H$13,\"N/A\",0)","v":"N/A"},{"$f":"_xlfn.XLOOKUP($E35,'Activity 2'!C$7:C$13,'Activity 2'!I$7:I$13,\"N/A\",0)","v":"N/A"},{"$f":"_xlfn.XLOOKUP($E35,'Activity 2'!D$7:D$13,'Activity 2'!J$7:J$13,\"N/A\",0)","v":"N/A"},{"$f":"_xlfn.XLOOKUP($E35,'Activity 2'!E$7:E$13,'Activity 2'!K$7:K$13,\"N/A\",0)","v":"N/A"},{"$f":"_xlfn.XLOOKUP($E35,'Activity 2'!F$7:F$13,'Activity 2'!L$7:L$13,\"N/A\",0)","v":"N/A"},{"$f":"_xlfn.XLOOKUP($E35,'Activity 2'!G$7:G$13,'Activity 2'!M$7:M$13,\"N/A\",0)","v":"N/A"},{"$f":"_xlfn.XLOOKUP($E35,'Activity 2'!H$7:H$13,'Activity 2'!N$7:N$13,\"N/A\",0)","v":"N/A"},{"$f":"_xlfn.XLOOKUP($E35,'Activity 2'!I$7:I$13,'Activity 2'!O$7:O$13,\"N/A\",0)","v":"N/A"},{"$f":"_xlfn.XLOOKUP($E35,'Activity 2'!J$7:J$13,'Activity 2'!P$7:P$13,\"N/A\",0)","v":"N/A"},{"$f":"_xlfn.XLOOKUP($E35,'Activity 2'!K$7:K$13,'Activity 2'!Q$7:Q$13,\"N/A\",0)","v":"N/A"},{"$f":"_xlfn.XLOOKUP($E35,'Activity 2'!L$7:L$13,'Activity 2'!R$7:R$13,\"N/A\",0)","v":"N/A"},{"$f":"_xlfn.XLOOKUP($E35,'Activity 2'!M$7:M$13,'Activity 2'!S$7:S$13,\"N/A\",0)","v":"N/A"},{"$f":"_xlfn.XLOOKUP($E35,'Activity 2'!N$7:N$13,'Activity 2'!T$7:T$13,\"N/A\",0)","v":"N/A"},{"$f":"_xlfn.XLOOKUP($E35,'Activity 2'!O$7:O$13,'Activity 2'!U$7:U$13,\"N/A\",0)","v":"N/A"},{"$f":"_xlfn.XLOOKUP($E35,'Activity 2'!P$7:P$13,'Activity 2'!V$7:V$13,\"N/A\",0)","v":"N/A"},{"$f":"_xlfn.XLOOKUP($E35,'Activity 2'!$B$17:$B$23,'Activity 2'!C$17:C$23,\"N/A\",0,1)","v":"N/A"},{"$f":"_xlfn.XLOOKUP($E35,'Activity 2'!$B$17:$B$23,'Activity 2'!D$17:D$23,\"N/A\",0,1)","v":"N/A"},{"$f":"_xlfn.XLOOKUP($E35,'Activity 2'!$B$17:$B$23,'Activity 2'!E$17:E$23,\"N/A\",0,1)","v":"N/A"},{"$f":"_xlfn.XLOOKUP($E35,'Activity 2'!$B$17:$B$23,'Activity 2'!F$17:F$23,\"N/A\",0,1)","v":"N/A"},{"$f":"_xlfn.XLOOKUP($E35,'Activity 2'!$B$17:$B$23,'Activity 2'!G$17:G$23,\"N/A\",0,1)","v":"N/A"},{"$f":"_xlfn.XLOOKUP($E35,'Activity 2'!$B$17:$B$23,'Activity 2'!H$17:H$23,\"N/A\",0,1)","v":"N/A"},{"$f":"_xlfn.XLOOKUP($E35,'Activity 2'!$B$17:$B$23,'Activity 2'!I$17:I$23,\"N/A\",0,1)","v":"N/A"},{"$f":"_xlfn.XLOOKUP($E35,'Activity 2'!$B$17:$B$23,'Activity 2'!J$17:J$23,\"N/A\",0,1)","v":"N/A"},{"$f":"_xlfn.XLOOKUP($E35,'Activity 2'!$B$17:$B$23,'Activity 2'!K$17:K$23,\"N/A\",0,1)","v":"N/A"},{"$f":"_xlfn.XLOOKUP($E35,'Activity 2'!$B$17:$B$23,'Activity 2'!L$17:L$23,\"N/A\",0,1)","v":"N/A"},{"$f":"_xlfn.XLOOKUP($E35,'Activity 2'!$B$17:$B$23,'Activity 2'!M$17:M$23,\"N/A\",0,1)","v":"N/A"},{"$f":"_xlfn.XLOOKUP($E35,'Activity 2'!$B$17:$B$23,'Activity 2'!O$17:O$23,\"N/A\",0,1)","v":"N/A"},{"$f":"_xlfn.XLOOKUP($E35,'Activity 2'!$B$17:$B$23,'Activity 2'!Q$17:Q$23,\"N/A\",0,1)","v":"N/A"},null,{"$f":"_xlfn.XLOOKUP($E35,'Activity 3'!$B$8:$B$14,'Activity 3'!K$8:K$14,\"N/A\",0,1)","v":"N/A"},{"$f":"_xlfn.XLOOKUP($E35,'Activity 3'!$B$8:$B$14,'Activity 3'!L$8:L$14,\"N/A\",0,1)","v":"N/A"},{"$f":"_xlfn.XLOOKUP($E35,'Activity 3'!$B$8:$B$14,'Activity 3'!M$8:M$14,\"N/A\",0,1)","v":"N/A"},{"$f":"_xlfn.XLOOKUP($E35,'Activity 3'!$B$8:$B$14,'Activity 3'!N$8:N$14,\"N/A\",0,1)","v":"N/A"},{"$f":"_xlfn.XLOOKUP($E35,'Activity 3'!$B$8:$B$14,'Activity 3'!O$8:O$14,\"N/A\",0,1)","v":"N/A"},{"$f":"_xlfn.XLOOKUP($E35,'Activity 3'!$B$8:$B$14,'Activity 3'!R$8:R$14,\"N/A\",0,1)","v":"N/A"},{"$f":"_xlfn.XLOOKUP($E35,'Activity 4'!$B$8:$B$14,'Activity 4'!$A$8:$A$14,\"No\",0,1)","v":"No"},{"$f":"_xlfn.XLOOKUP($E35,'Activity 4'!$B$8:$B$14,'Activity 4'!L$8:L$14,\"N/A\",0,1)","v":"N/A"},{"$f":"_xlfn.XLOOKUP($E35,'Activity 4'!$B$8:$B$14,'Activity 4'!I$8:I$14,\"N/A\",0,1)","v":"N/A"},{"$f":"_xlfn.XLOOKUP($E35,'Activity 4'!$B$8:$B$14,'Activity 4'!M$8:M$14,\"N/A\",0,1)","v":"N/A"},{"$f":"_xlfn.XLOOKUP($E35,'Activity 5'!$B$8:$B$14,'Activity 5'!$A$8:$A$14,\"No\",0,1)","v":"No"},{"$f":"_xlfn.XLOOKUP($E35,'Activity 5'!$B$8:$B$14,'Activity 5'!J$8:J$14,\"N/A\",0,1)","v":"N/A"},{"$f":"_xlfn.XLOOKUP($E35,'Activity 5'!$B$8:$B$14,'Activity 5'!K$8:K$14,\"N/A\",0,1)","v":"N/A"},{"$f":"_xlfn.XLOOKUP($E35,'Activity 5'!$B$8:$B$14,'Activity 5'!N$8:N$14,\"N/A\",0,1)","v":"N/A"},{"$f":"_xlfn.XLOOKUP($E35,'Activity 5'!$B$8:$B$14,'Activity 5'!O$8:O$14,\"N/A\",0,1)","v":"N/A"},{"$f":"_xlfn.XLOOKUP($E35,'Activity 5'!$B$8:$B$14,'Activity 5'!P$8:P$14,\"N/A\",0,1)","v":"N/A"},{"$f":"_xlfn.XLOOKUP($E35,'Activity 5'!$B$8:$B$14,'Activity 5'!Q$8:Q$14,\"N/A\",0,1)","v":"N/A"},{"$f":"_xlfn.XLOOKUP($E35,'Activity 5'!$B$8:$B$14,'Activity 5'!R$8:R$14,\"N/A\",0,1)","v":"N/A"},{"$f":"_xlfn.XLOOKUP($E35,'Activity 6'!$B$7:$B$13,'Activity 6'!A$7:A$13,\"No\",0,1)","v":"No"},{"$f":"_xlfn.XLOOKUP($E35,'Activity 6'!$B$7:$B$13,'Activity 6'!K$7:K$13,\"N/A\",0,1)","v":"N/A"},{"$f":"_xlfn.XLOOKUP($E35,'Activity 6'!$B$7:$B$13,'Activity 6'!L$7:L$13,\"N/A\",0,1)","v":"N/A"},{"$f":"_xlfn.XLOOKUP($E35,'Activity 6'!$B$7:$B$13,'Activity 6'!M$7:M$13,\"N/A\",0,1)","v":"N/A"},{"$f":"_xlfn.XLOOKUP($E35,'Activity 6'!$B$7:$B$13,'Activity 6'!N$7:N$13,\"N/A\",0,1)","v":"N/A"},{"$f":"_xlfn.XLOOKUP($E35,'Activity 6'!$B$7:$B$13,'Activity 6'!O$7:O$13,\"N/A\",0,1)","v":"N/A"},{"$f":"_xlfn.XLOOKUP($E35,'Activity 6'!$B$7:$B$13,'Activity 6'!P$7:P$13,\"N/A\",0,1)","v":"N/A"},{"$f":"_xlfn.XLOOKUP($E35,'Activity 6'!$B$7:$B$13,'Activity 6'!Q$7:Q$13,\"N/A\",0,1)","v":"N/A"},{"$f":"_xlfn.XLOOKUP($E35,'Activity 6'!$B$7:$B$13,'Activity 6'!R$7:R$13,\"N/A\",0,1)","v":"N/A"},{"$f":"_xlfn.XLOOKUP($E35,'Activity 6'!$B$7:$B$13,'Activity 6'!S$7:S$13,\"N/A\",0,1)","v":"N/A"},{"$f":"_xlfn.XLOOKUP($E35,'Activity 6'!$B$7:$B$13,'Activity 6'!T$7:T$13,\"N/A\",0,1)","v":"N/A"},{"$f":"_xlfn.XLOOKUP($E35,'Activity 6'!$B$7:$B$13,'Activity 6'!U$7:U$13,\"N/A\",0,1)","v":"N/A"},{"$f":"_xlfn.XLOOKUP($E35,'Activity 6'!$B$22:$B$28,'Activity 6'!C$22:C$28,\"N/A\",0,1)","v":"N/A"},{"$f":"_xlfn.XLOOKUP($E35,'Activity 6'!$B$22:$B$28,'Activity 6'!D$22:D$28,\"N/A\",0,1)","v":"N/A"},{"$f":"_xlfn.XLOOKUP($E35,'Activity 6'!$B$22:$B$28,'Activity 6'!E$22:E$28,\"N/A\",0,1)","v":"N/A"},{"$f":"_xlfn.XLOOKUP($E35,'Activity 6'!$B$22:$B$28,'Activity 6'!F$22:F$28,\"N/A\",0,1)","v":"N/A"},{"$f":"_xlfn.XLOOKUP($E35,'Activity 6'!$B$22:$B$28,'Activity 6'!G$22:G$28,\"N/A\",0,1)","v":"N/A"},{"$f":"_xlfn.XLOOKUP($E35,'Activity 6'!$B$22:$B$28,'Activity 6'!H$22:H$28,\"N/A\",0,1)","v":"N/A"},{"$f":"_xlfn.XLOOKUP($E35,'Activity 6'!$B$22:$B$28,'Activity 6'!I$22:I$28,\"N/A\",0,1)","v":"N/A"},{"$f":"_xlfn.XLOOKUP($E35,'Activity 6'!$B$22:$B$28,'Activity 6'!J$22:J$28,\"N/A\",0,1)","v":"N/A"},{"$f":"_xlfn.XLOOKUP($E35,'Activity 6'!$B$22:$B$28,'Activity 6'!K$22:K$28,\"N/A\",0,1)","v":"N/A"},{"$f":"_xlfn.XLOOKUP($E35,'Activity 6'!$B$22:$B$28,'Activity 6'!L$22:L$28,\"N/A\",0,1)","v":"N/A"},{"$f":"_xlfn.XLOOKUP($E35,'Activity 6'!$B$22:$B$28,'Activity 6'!M$22:M$28,\"N/A\",0,1)","v":"N/A"},{"$f":"_xlfn.XLOOKUP($E35,'Activity 6'!$B$22:$B$28,'Activity 6'!N$22:N$28,\"N/A\",0,1)","v":"N/A"},{"$f":"_xlfn.XLOOKUP($E35,'Activity 6'!$B$32:$B$38,'Activity 6'!C$32:C$38,\"N/A\",0,1)","v":"N/A"},{"$f":"_xlfn.XLOOKUP($E35,'Activity 6'!$B$32:$B$38,'Activity 6'!D$32:D$38,\"N/A\",0,1)","v":"N/A"},{"$f":"_xlfn.XLOOKUP($E35,'Activity 6'!$B$32:$B$38,'Activity 6'!E$32:E$38,\"N/A\",0,1)","v":"N/A"},{"$f":"_xlfn.XLOOKUP($E35,'Activity 6'!$B$32:$B$38,'Activity 6'!F$32:F$38,\"N/A\",0,1)","v":"N/A"},{"$f":"_xlfn.XLOOKUP($E35,'Activity 6'!$B$32:$B$38,'Activity 6'!G$32:G$38,\"N/A\",0,1)","v":"N/A"},{"$f":"_xlfn.XLOOKUP($E35,'Activity 6'!$B$32:$B$38,'Activity 6'!H$32:H$38,\"N/A\",0,1)","v":"N/A"},{"$f":"_xlfn.XLOOKUP($E35,'Activity 6'!$B$32:$B$38,'Activity 6'!I$32:I$38,\"N/A\",0,1)","v":"N/A"},{"$f":"_xlfn.XLOOKUP($E35,'Activity 6'!$B$32:$B$38,'Activity 6'!J$32:J$38,\"N/A\",0,1)","v":"N/A"},{"$f":"_xlfn.XLOOKUP($E35,'Activity 6'!$B$32:$B$38,'Activity 6'!K$32:K$38,\"N/A\",0,1)","v":"N/A"},{"$f":"_xlfn.XLOOKUP($E35,'Activity 6'!$B$32:$B$38,'Activity 6'!M$32:M$38,\"N/A\",0,1)","v":"N/A"},{"$f":"_xlfn.XLOOKUP($E35,'Activity 7'!$B$7:$B$13,'Activity 7'!$A$7:$A$13,\"No\",0,1)","v":"No"},{"$f":"_xlfn.XLOOKUP($E35,'Activity 7'!$B$7:$B$13,'Activity 7'!M$7:M$13,\"N/A\",0,1)","v":"N/A"},{"$f":"_xlfn.XLOOKUP($E35,'Activity 7'!$B$7:$B$13,'Activity 7'!K$7:K$13,\"N/A\",0,1)","v":"N/A"},{"$f":"_xlfn.XLOOKUP($E35,'Activity 7'!$B$7:$B$13,'Activity 7'!N$7:N$13,\"N/A\",0,1)","v":"N/A"},{"$f":"_xlfn.XLOOKUP($E35,'Activity 7'!$B$7:$B$13,'Activity 7'!O$7:O$13,\"N/A\",0,1)","v":"N/A"},{"$f":"_xlfn.XLOOKUP($E35,'Activity 7'!$B$7:$B$13,'Activity 7'!P$7:P$13,\"N/A\",0,1)","v":"N/A"},{"$f":"_xlfn.XLOOKUP($E35,'Activity 7'!$B$7:$B$13,'Activity 7'!Q$7:Q$13,\"N/A\",0,1)","v":"N/A"},{"$f":"_xlfn.XLOOKUP($E35,'Activity 7'!$B$7:$B$13,'Activity 7'!R$7:R$13,\"N/A\",0,1)","v":"N/A"},{"$f":"_xlfn.XLOOKUP($E35,'Activity 7'!$B$7:$B$13,'Activity 7'!S$7:S$13,\"N/A\",0,1)","v":"N/A"},{"$f":"_xlfn.XLOOKUP($E35,'Activity 7'!$B$7:$B$13,'Activity 7'!T$7:T$13,\"N/A\",0,1)","v":"N/A"},{"$f":"_xlfn.XLOOKUP($E35,'Activity 7'!$B$7:$B$13,'Activity 7'!U$7:U$13,\"N/A\",0,1)","v":"N/A"},{"$f":"_xlfn.XLOOKUP($E35,'Activity 7'!$B$7:$B$13,'Activity 7'!V$7:V$13,\"N/A\",0,1)","v":"N/A"},{"$f":"_xlfn.XLOOKUP($E35,'Activity 7'!$B$17:$B$23,'Activity 7'!E$17:E$23,\"N/A\",0,1)","v":"N/A"},{"$f":"_xlfn.XLOOKUP($E35,'Activity 7'!$B$17:$B$23,'Activity 7'!G$17:G$23,\"N/A\",0,1)","v":"N/A"},{"$f":"_xlfn.XLOOKUP($E35,'Activity 7'!$B$17:$B$23,'Activity 7'!I$17:I$23,\"N/A\",0,1)","v":"N/A"},{"$f":"_xlfn.XLOOKUP($E35,'Activity 7'!$B$17:$B$23,'Activity 7'!J$17:J$23,\"N/A\",0,1)","v":"N/A"},{"$f":"_xlfn.XLOOKUP($E35,'Activity 7'!$B$17:$B$23,'Activity 7'!K$17:K$23,\"N/A\",0,1)","v":"N/A"},{"$f":"_xlfn.XLOOKUP($E35,'Activity 7'!$B$17:$B$23,'Activity 7'!L$17:L$23,\"N/A\",0,1)","v":"N/A"},{"$f":"_xlfn.XLOOKUP($E35,'Activity 7'!$B$17:$B$23,'Activity 7'!M$17:M$23,\"N/A\",0,1)","v":"N/A"},{"$f":"_xlfn.XLOOKUP($E35,'Activity 7'!$B$17:$B$23,'Activity 7'!N$17:N$23,\"N/A\",0,1)","v":"N/A"},{"$f":"_xlfn.XLOOKUP($E35,'Activity 7'!$B$17:$B$23,'Activity 7'!P$17:P$23,\"N/A\",0,1)","v":"N/A"},{"$f":"_xlfn.XLOOKUP($E35,'Activity 8'!$B$7:$B$13,'Activity 8'!A$7:A$13,\"No\",0,1)","v":"No"},{"$f":"_xlfn.XLOOKUP($E35,'Activity 8'!$B$7:$B$13,'Activity 8'!I$7:I$13,\"N/A\",0,1)","v":"N/A"},{"$f":"_xlfn.XLOOKUP($E35,'Activity 8'!$B$7:$B$13,'Activity 8'!J$7:J$13,\"N/A\",0,1)","v":"N/A"},{"$f":"_xlfn.XLOOKUP($E35,'Activity 8'!$B$7:$B$13,'Activity 8'!K$7:K$13,\"N/A\",0,1)","v":"N/A"},{"$f":"_xlfn.XLOOKUP($E35,'Activity 8'!$B$7:$B$13,'Activity 8'!L$7:L$13,\"N/A\",0,1)","v":"N/A"},{"$f":"_xlfn.XLOOKUP($E35,'Activity 8'!$B$7:$B$13,'Activity 8'!M$7:M$13,\"N/A\",0,1)","v":"N/A"},{"$f":"_xlfn.XLOOKUP($E35,'Activity 8'!$B$7:$B$13,'Activity 8'!N$7:N$13,\"N/A\",0,1)","v":"N/A"},{"$f":"_xlfn.XLOOKUP($E35,'Activity 8'!$B$7:$B$13,'Activity 8'!O$7:O$13,\"N/A\",0,1)","v":"N/A"},{"$f":"_xlfn.XLOOKUP($E35,'Activity 8'!$B$7:$B$13,'Activity 8'!P$7:P$13,\"N/A\",0,1)","v":"N/A"},{"$f":"_xlfn.XLOOKUP($E35,'Activity 8'!$B$7:$B$13,'Activity 8'!Q$7:Q$13,\"N/A\",0,1)","v":"N/A"},{"$f":"_xlfn.XLOOKUP($E35,'Activity 8'!$B$7:$B$13,'Activity 8'!R$7:R$13,\"N/A\",0,1)","v":"N/A"},{"$f":"_xlfn.XLOOKUP($E35,'Activity 8'!$B$7:$B$13,'Activity 8'!S$7:S$13,\"N/A\",0,1)","v":"N/A"},{"$f":"_xlfn.XLOOKUP($E35,'Activity 8'!$B$7:$B$13,'Activity 8'!T$7:T$13,\"N/A\",0,1)","v":"N/A"},{"$f":"_xlfn.XLOOKUP($E35,'Activity 8'!$B$7:$B$13,'Activity 8'!U$7:U$13,\"N/A\",0,1)","v":"N/A"},{"$f":"_xlfn.XLOOKUP($E35,'Activity 8'!$B$7:$B$13,'Activity 8'!V$7:V$13,\"N/A\",0,1)","v":"N/A"},{"$f":"_xlfn.XLOOKUP($E35,'Activity 8'!$B$17:$B$23,'Activity 8'!D$17:D$23,\"N/A\",0,1)","v":"N/A"},{"$f":"_xlfn.XLOOKUP($E35,'Activity 8'!$B$17:$B$23,'Activity 8'!E$17:E$23,\"N/A\",0,1)","v":"N/A"},{"$f":"_xlfn.XLOOKUP($E35,'Activity 8'!$B$17:$B$23,'Activity 8'!F$17:F$23,\"N/A\",0,1)","v":"N/A"},{"$f":"_xlfn.XLOOKUP($E35,'Activity 8'!$B$17:$B$23,'Activity 8'!G$17:G$23,\"N/A\",0,1)","v":"N/A"},{"$f":"_xlfn.XLOOKUP($E35,'Activity 8'!$B$17:$B$23,'Activity 8'!H$17:H$23,\"N/A\",0,1)","v":"N/A"},{"$f":"_xlfn.XLOOKUP($E35,'Activity 8'!$B$17:$B$23,'Activity 8'!I$17:I$23,\"N/A\",0,1)","v":"N/A"},{"$f":"_xlfn.XLOOKUP($E35,'Activity 8'!$B$17:$B$23,'Activity 8'!J$17:J$23,\"N/A\",0,1)","v":"N/A"},{"$f":"_xlfn.XLOOKUP($E35,'Activity 8'!$B$17:$B$23,'Activity 8'!K$17:K$23,\"N/A\",0,1)","v":"N/A"},{"$f":"_xlfn.XLOOKUP($E35,'Activity 8'!$B$17:$B$23,'Activity 8'!L$17:L$23,\"N/A\",0,1)","v":"N/A"},{"$f":"_xlfn.XLOOKUP($E35,'Activity 8'!$B$17:$B$23,'Activity 8'!M$17:M$23,\"N/A\",0,1)","v":"N/A"},{"$f":"_xlfn.XLOOKUP($E35,'Activity 8'!$B$17:$B$23,'Activity 8'!N$17:N$23,\"N/A\",0,1)","v":"N/A"},{"$f":"_xlfn.XLOOKUP($E35,'Activity 8'!$B$17:$B$23,'Activity 8'!P$17:P$23,\"N/A\",0,1)","v":"N/A"},{"$f":"_xlfn.XLOOKUP(E35,'Activity 9'!$B$7:$B$13,'Activity 9'!$A$7:$A$13,\"No\",0,1)","v":"No"},{"$f":"_xlfn.XLOOKUP($E35,'Activity 9'!$B$7:$B$13,'Activity 9'!J$7:J$13,\"N/A\",0,1)","v":"N/A"},{"$f":"_xlfn.XLOOKUP($E35,'Activity 9'!$B$7:$B$13,'Activity 9'!K$7:K$13,\"N/A\",0,1)","v":"N/A"},{"$f":"_xlfn.XLOOKUP($E35,'Activity 9'!$B$7:$B$13,'Activity 9'!L$7:L$13,\"N/A\",0,1)","v":"N/A"},{"$f":"_xlfn.XLOOKUP($E35,'Activity 9'!$B$7:$B$13,'Activity 9'!M$7:M$13,\"N/A\",0,1)","v":"N/A"},{"$f":"_xlfn.XLOOKUP($E35,'Activity 9'!$B$7:$B$13,'Activity 9'!N$7:N$13,\"N/A\",0,1)","v":"N/A"},{"$f":"_xlfn.XLOOKUP($E35,'Activity 9'!$B$7:$B$13,'Activity 9'!O$7:O$13,\"N/A\",0,1)","v":"N/A"},{"$f":"_xlfn.XLOOKUP($E35,'Activity 9'!$B$7:$B$13,'Activity 9'!P$7:P$13,\"N/A\",0,1)","v":"N/A"},{"$f":"_xlfn.XLOOKUP($E35,'Activity 9'!$B$7:$B$13,'Activity 9'!Q$7:Q$13,\"N/A\",0,1)","v":"N/A"},{"$f":"_xlfn.XLOOKUP($E35,'Activity 9'!$B$7:$B$13,'Activity 9'!R$7:R$13,\"N/A\",0,1)","v":"N/A"},{"$f":"_xlfn.XLOOKUP($E35,'Activity 9'!$B$7:$B$13,'Activity 9'!S$7:S$13,\"N/A\",0,1)","v":"N/A"},{"$f":"_xlfn.XLOOKUP($E35,'Activity 9'!$B$7:$B$13,'Activity 9'!T$7:T$13,\"N/A\",0,1)","v":"N/A"},{"$f":"_xlfn.XLOOKUP($E35,'Activity 9'!$B$17:$B$23,'Activity 9'!E$17:E$23,\"N/A\",0,1)","v":"N/A"},{"$f":"_xlfn.XLOOKUP($E35,'Activity 9'!$B$17:$B$23,'Activity 9'!F$17:F$23,\"N/A\",0,1)","v":"N/A"},{"$f":"_xlfn.XLOOKUP($E35,'Activity 9'!$B$17:$B$23,'Activity 9'!G$17:G$23,\"N/A\",0,1)","v":"N/A"},{"$f":"_xlfn.XLOOKUP($E35,'Activity 9'!$B$17:$B$23,'Activity 9'!H$17:H$23,\"N/A\",0,1)","v":"N/A"},{"$f":"_xlfn.XLOOKUP($E35,'Activity 9'!$B$17:$B$23,'Activity 9'!I$17:I$23,\"N/A\",0,1)","v":"N/A"},{"$f":"_xlfn.XLOOKUP($E35,'Activity 9'!$B$17:$B$23,'Activity 9'!J$17:J$23,\"N/A\",0,1)","v":"N/A"},{"$f":"_xlfn.XLOOKUP($E35,'Activity 9'!$B$17:$B$23,'Activity 9'!K$17:K$23,\"N/A\",0,1)","v":"N/A"},{"$f":"_xlfn.XLOOKUP($E35,'Activity 9'!$B$17:$B$23,'Activity 9'!L$17:L$23,\"N/A\",0,1)","v":"N/A"},{"$f":"_xlfn.XLOOKUP($E35,'Activity 9'!$B$17:$B$23,'Activity 9'!N$17:N$23,\"N/A\",0,1)","v":"N/A"},{"$f":"_xlfn.XLOOKUP($E35,'Activity 9'!$B$17:$B$23,'Activity 9'!O$17:O$23,\"N/A\",0,1)","v":"N/A"},{"$f":"_xlfn.XLOOKUP($E35,'Activity 9'!$B$17:$B$23,'Activity 9'!Q$17:Q$23,\"N/A\",0,1)","v":"N/A"},{"$f":"_xlfn.XLOOKUP($E35,'Activity 10'!$B$7:$B$13,'Activity 10'!A$7:A$13,\"No\",0,1)","v":"No"},{"$f":"_xlfn.XLOOKUP($E35,'Activity 10'!$B$7:$B$13,'Activity 10'!J$7:J$13,\"N/A\",0,1)","v":"N/A"},{"$f":"_xlfn.XLOOKUP($E35,'Activity 10'!$B$7:$B$13,'Activity 10'!K$7:K$13,\"N/A\",0,1)","v":"N/A"},{"$f":"_xlfn.XLOOKUP($E35,'Activity 10'!$B$7:$B$13,'Activity 10'!L$7:L$13,\"N/A\",0,1)","v":"N/A"},{"$f":"_xlfn.XLOOKUP($E35,'Activity 10'!$B$7:$B$13,'Activity 10'!M$7:M$13,\"N/A\",0,1)","v":"N/A"},{"$f":"_xlfn.XLOOKUP($E35,'Activity 10'!$B$7:$B$13,'Activity 10'!N$7:N$13,\"N/A\",0,1)","v":"N/A"},{"$f":"_xlfn.XLOOKUP($E35,'Activity 10'!$B$7:$B$13,'Activity 10'!O$7:O$13,\"N/A\",0,1)","v":"N/A"},{"$f":"_xlfn.XLOOKUP($E35,'Activity 10'!$B$7:$B$13,'Activity 10'!P$7:P$13,\"N/A\",0,1)","v":"N/A"},{"$f":"_xlfn.XLOOKUP($E35,'Activity 10'!$B$7:$B$13,'Activity 10'!Q$7:Q$13,\"N/A\",0,1)","v":"N/A"},{"$f":"_xlfn.XLOOKUP($E35,'Activity 10'!$B$7:$B$13,'Activity 10'!R$7:R$13,\"N/A\",0,1)","v":"N/A"},{"$f":"_xlfn.XLOOKUP($E35,'Activity 10'!$B$7:$B$13,'Activity 10'!S$7:S$13,\"N/A\",0,1)","v":"N/A"},{"$f":"_xlfn.XLOOKUP($E35,'Activity 10'!$B$7:$B$13,'Activity 10'!T$7:T$13,\"N/A\",0,1)","v":"N/A"},{"$f":"_xlfn.XLOOKUP($E35,'Activity 10'!$B$7:$B$13,'Activity 10'!U$7:U$13,\"N/A\",0,1)","v":"N/A"},{"$f":"_xlfn.XLOOKUP($E35,'Activity 10'!$B$7:$B$13,'Activity 10'!V$7:V$13,\"N/A\",0,1)","v":"N/A"},{"$f":"_xlfn.XLOOKUP($E35,'Activity 10'!$B$17:$B$23,'Activity 10'!E$17:E$23,\"N/A\",0,1)","v":"N/A"},{"$f":"_xlfn.XLOOKUP($E35,'Activity 10'!$B$17:$B$23,'Activity 10'!F$17:F$23,\"N/A\",0,1)","v":"N/A"},{"$f":"_xlfn.XLOOKUP($E35,'Activity 10'!$B$17:$B$23,'Activity 10'!G$17:G$23,\"N/A\",0,1)","v":"N/A"},{"$f":"_xlfn.XLOOKUP($E35,'Activity 10'!$B$17:$B$23,'Activity 10'!H$17:H$23,\"N/A\",0,1)","v":"N/A"},{"$f":"_xlfn.XLOOKUP($E35,'Activity 10'!$B$17:$B$23,'Activity 10'!I$17:I$23,\"N/A\",0,1)","v":"N/A"},{"$f":"_xlfn.XLOOKUP($E35,'Activity 10'!$B$17:$B$23,'Activity 10'!J$17:J$23,\"N/A\",0,1)","v":"N/A"},{"$f":"_xlfn.XLOOKUP($E35,'Activity 10'!$B$17:$B$23,'Activity 10'!K$17:K$23,\"N/A\",0,1)","v":"N/A"},{"$f":"_xlfn.XLOOKUP($E35,'Activity 10'!$B$17:$B$23,'Activity 10'!L$17:L$23,\"N/A\",0,1)","v":"N/A"},{"$f":"_xlfn.XLOOKUP($E35,'Activity 10'!$B$17:$B$23,'Activity 10'!M$17:M$23,\"N/A\",0,1)","v":"N/A"},{"$f":"_xlfn.XLOOKUP($E35,'Activity 10'!$B$17:$B$23,'Activity 10'!N$17:N$23,\"N/A\",0,1)","v":"N/A"},{"$f":"_xlfn.XLOOKUP($E35,'Activity 10'!$B$17:$B$23,'Activity 10'!P$17:P$23,\"N/A\",0,1)","v":"N/A"},{"$f":"_xlfn.XLOOKUP($E35,'Competitive Activity 1'!B$7:B$13,'Competitive Activity 1'!A$7:A$13,\"No\",0,1)","v":"No"},{"$f":"_xlfn.XLOOKUP($E35,'Competitive Activity 1'!$B$7:$B$13,'Competitive Activity 1'!H$7:H$13,\"N/A\",0,1)","v":"N/A"},{"$f":"_xlfn.XLOOKUP($E35,'Competitive Activity 1'!$B$7:$B$13,'Competitive Activity 1'!I$7:I$13,\"N/A\",0,1)","v":"N/A"},{"$f":"_xlfn.XLOOKUP($E35,'Competitive Activity 1'!$B$7:$B$13,'Competitive Activity 1'!J$7:J$13,\"N/A\",0,1)","v":"N/A"},{"$f":"_xlfn.XLOOKUP($E35,'Competitive Activity 1'!$B$7:$B$13,'Competitive Activity 1'!K$7:K$13,\"N/A\",0,1)","v":"N/A"},{"$f":"_xlfn.XLOOKUP($E35,'Competitive Activity 1'!$B$7:$B$13,'Competitive Activity 1'!L$7:L$13,\"N/A\",0,1)","v":"N/A"},{"$f":"_xlfn.XLOOKUP($E35,'Competitive Activity 1'!$B$7:$B$13,'Competitive Activity 1'!M$7:M$13,\"N/A\",0,1)","v":"N/A"},{"$f":"_xlfn.XLOOKUP($E35,'Competitive Activity 1'!$B$7:$B$13,'Competitive Activity 1'!N$7:N$13,\"N/A\",0,1)","v":"N/A"},{"$f":"_xlfn.XLOOKUP($E35,'Competitive Activity 1'!$B$7:$B$13,'Competitive Activity 1'!O$7:O$13,\"N/A\",0,1)","v":"N/A"},{"$f":"_xlfn.XLOOKUP($E35,'Competitive Activity 1'!$B$7:$B$13,'Competitive Activity 1'!P$7:P$13,\"N/A\",0,1)","v":"N/A"},{"$f":"_xlfn.XLOOKUP($E35,'Competitive Activity 1'!$B$7:$B$13,'Competitive Activity 1'!Q$7:Q$13,\"N/A\",0,1)","v":"N/A"},{"$f":"_xlfn.XLOOKUP($E35,'Competitive Activity 1'!$B$7:$B$13,'Competitive Activity 1'!R$7:R$13,\"N/A\",0,1)","v":"N/A"},{"$f":"_xlfn.XLOOKUP($E35,'Competitive Activity 1'!$B$7:$B$13,'Competitive Activity 1'!S$7:S$13,\"N/A\",0,1)","v":"N/A"},{"$f":"_xlfn.XLOOKUP($E35,'Competitive Activity 1'!$B$7:$B$13,'Competitive Activity 1'!T$7:T$13,\"N/A\",0,1)","v":"N/A"},{"$f":"_xlfn.XLOOKUP($E35,'Competitive Activity 1'!$B$7:$B$13,'Competitive Activity 1'!U$7:U$13,\"N/A\",0,1)","v":"N/A"},{"$f":"_xlfn.XLOOKUP($E35,'Competitive Activity 1'!$B$17:$B$23,'Competitive Activity 1'!C$17:C$23,\"N/A\",0,1)","v":"N/A"},{"$f":"_xlfn.XLOOKUP($E35,'Competitive Activity 1'!$B$17:$B$23,'Competitive Activity 1'!D$17:D$23,\"N/A\",0,1)","v":"N/A"},{"$f":"_xlfn.XLOOKUP($E35,'Competitive Activity 1'!$B$17:$B$23,'Competitive Activity 1'!E$17:E$23,\"N/A\",0,1)","v":"N/A"},{"$f":"_xlfn.XLOOKUP($E35,'Competitive Activity 1'!$B$17:$B$23,'Competitive Activity 1'!F$17:F$23,\"N/A\",0,1)","v":"N/A"},{"$f":"_xlfn.XLOOKUP($E35,'Competitive Activity 1'!$B$17:$B$23,'Competitive Activity 1'!G$17:G$23,\"N/A\",0,1)","v":"N/A"},{"$f":"_xlfn.XLOOKUP($E35,'Competitive Activity 1'!$B$17:$B$23,'Competitive Activity 1'!H$17:H$23,\"N/A\",0,1)","v":"N/A"},{"$f":"_xlfn.XLOOKUP($E35,'Competitive Activity 1'!$B$17:$B$23,'Competitive Activity 1'!I$17:I$23,\"N/A\",0,1)","v":"N/A"},{"$f":"_xlfn.XLOOKUP($E35,'Competitive Activity 1'!$B$17:$B$23,'Competitive Activity 1'!J$17:J$23,\"N/A\",0,1)","v":"N/A"},{"$f":"_xlfn.XLOOKUP($E35,'Competitive Activity 1'!$B$17:$B$23,'Competitive Activity 1'!K$17:K$23,\"N/A\",0,1)","v":"N/A"},{"$f":"_xlfn.XLOOKUP($E35,'Competitive Activity 1'!$B$17:$B$23,'Competitive Activity 1'!M$17:M$23,\"N/A\",0,1)","v":"N/A"},{"$f":"_xlfn.XLOOKUP($E35,'Competitive Activity 1'!$B$17:$B$23,'Competitive Activity 1'!N$17:N$23,\"N/A\",0,1)","v":"N/A"},{"$f":"_xlfn.XLOOKUP($E35,'Competitive Activity 1'!$B$17:$B$23,'Competitive Activity 1'!P$17:P$23,\"N/A\",0,1)","v":"N/A"},{"$f":"_xlfn.XLOOKUP($E35,'Competitive Activity 2'!$B$7:$B$13,'Competitive Activity 2'!A$7:A$13,\"No\",0)","v":"No"},{"$f":"_xlfn.XLOOKUP($E35,'Competitive Activity 2'!$B$7:$B$13,'Competitive Activity 2'!L$7:L$13,\"N/A\",0)","v":"N/A"},{"$f":"_xlfn.XLOOKUP($E35,'Competitive Activity 2'!$B$7:$B$13,'Competitive Activity 2'!M$7:M$13,\"N/A\",0)","v":"N/A"},{"$f":"_xlfn.XLOOKUP($E35,'Competitive Activity 2'!$B$7:$B$13,'Competitive Activity 2'!N$7:N$13,\"N/A\",0)","v":"N/A"},{"$f":"_xlfn.XLOOKUP($E35,'Competitive Activity 2'!$B$7:$B$13,'Competitive Activity 2'!O$7:O$13,\"N/A\",0)","v":"N/A"},{"$f":"_xlfn.XLOOKUP($E35,'Competitive Activity 2'!$B$7:$B$13,'Competitive Activity 2'!P$7:P$13,\"N/A\",0)","v":"N/A"},{"$f":"_xlfn.XLOOKUP($E35,'Competitive Activity 2'!$B$7:$B$13,'Competitive Activity 2'!Q$7:Q$13,\"N/A\",0)","v":"N/A"},{"$f":"_xlfn.XLOOKUP($E35,'Competitive Activity 2'!$B$7:$B$13,'Competitive Activity 2'!R$7:R$13,\"N/A\",0)","v":"N/A"},{"$f":"_xlfn.XLOOKUP($E35,'Competitive Activity 2'!$B$7:$B$13,'Competitive Activity 2'!S$7:S$13,\"N/A\",0)","v":"N/A"},{"$f":"_xlfn.XLOOKUP($E35,'Competitive Activity 2'!$B$7:$B$13,'Competitive Activity 2'!T$7:T$13,\"N/A\",0)","v":"N/A"},{"$f":"_xlfn.XLOOKUP($E35,'Competitive Activity 2'!$B$7:$B$13,'Competitive Activity 2'!U$7:U$13,\"N/A\",0)","v":"N/A"},{"$f":"_xlfn.XLOOKUP($E35,'Competitive Activity 2'!$B$17:$B$23,'Competitive Activity 2'!D$17:D$23,\"N/A\",0)","v":"N/A"},{"$f":"_xlfn.XLOOKUP($E35,'Competitive Activity 2'!$B$17:$B$23,'Competitive Activity 2'!E$17:E$23,\"N/A\",0)","v":"N/A"},{"$f":"_xlfn.XLOOKUP($E35,'Competitive Activity 2'!$B$17:$B$23,'Competitive Activity 2'!F$17:F$23,\"N/A\",0)","v":"N/A"},{"$f":"_xlfn.XLOOKUP($E35,'Competitive Activity 2'!$B$17:$B$23,'Competitive Activity 2'!G$17:G$23,\"N/A\",0)","v":"N/A"},{"$f":"_xlfn.XLOOKUP($E35,'Competitive Activity 2'!$B$17:$B$23,'Competitive Activity 2'!H$17:H$23,\"N/A\",0)","v":"N/A"},{"$f":"_xlfn.XLOOKUP($E35,'Competitive Activity 2'!$B$17:$B$23,'Competitive Activity 2'!I$17:I$23,\"N/A\",0)","v":"N/A"},{"$f":"_xlfn.XLOOKUP($E35,'Competitive Activity 2'!$B$17:$B$23,'Competitive Activity 2'!J$17:J$23,\"N/A\",0)","v":"N/A"},{"$f":"_xlfn.XLOOKUP($E35,'Competitive Activity 2'!$B$17:$B$23,'Competitive Activity 2'!K$17:K$23,\"N/A\",0)","v":"N/A"},{"$f":"_xlfn.XLOOKUP($E35,'Competitive Activity 2'!$B$17:$B$23,'Competitive Activity 2'!L$17:L$23,\"N/A\",0)","v":"N/A"},{"$f":"_xlfn.XLOOKUP($E35,'Competitive Activity 2'!$B$17:$B$23,'Competitive Activity 2'!M$17:M$23,\"N/A\",0)","v":"N/A"},{"$f":"_xlfn.XLOOKUP($E35,'Competitive Activity 2'!$B$17:$B$23,'Competitive Activity 2'!N$17:N$23,\"N/A\",0)","v":"N/A"},{"$f":"_xlfn.XLOOKUP($E35,'Competitive Activity 2'!$B$27:$B$33,'Competitive Activity 2'!D$27:D$33,\"N/A\",0)","v":"N/A"},{"$f":"_xlfn.XLOOKUP($E35,'Competitive Activity 2'!$B$27:$B$33,'Competitive Activity 2'!E$27:E$33,\"N/A\",0)","v":"N/A"},{"$f":"_xlfn.XLOOKUP($E35,'Competitive Activity 2'!$B$27:$B$33,'Competitive Activity 2'!F$27:F$33,\"N/A\",0)","v":"N/A"},{"$f":"_xlfn.XLOOKUP($E35,'Competitive Activity 2'!$B$27:$B$33,'Competitive Activity 2'!G$27:G$33,\"N/A\",0)","v":"N/A"},{"$f":"_xlfn.XLOOKUP($E35,'Competitive Activity 2'!$B$27:$B$33,'Competitive Activity 2'!H$27:H$33,\"N/A\",0)","v":"N/A"},{"$f":"_xlfn.XLOOKUP($E35,'Competitive Activity 2'!$B$27:$B$33,'Competitive Activity 2'!I$27:I$33,\"N/A\",0)","v":"N/A"},{"$f":"_xlfn.XLOOKUP($E35,'Competitive Activity 2'!$B$27:$B$33,'Competitive Activity 2'!J$27:J$33,\"N/A\",0)","v":"N/A"},{"$f":"_xlfn.XLOOKUP($E35,'Competitive Activity 2'!$B$27:$B$33,'Competitive Activity 2'!K$27:K$33,\"N/A\",0)","v":"N/A"},{"$f":"_xlfn.XLOOKUP($E35,'Competitive Activity 2'!$B$27:$B$33,'Competitive Activity 2'!M$27:M$33,\"N/A\",0)","v":"N/A"}]
[{"$f":"'1-Cover Sheet'!$C$8","v":"Select One"},{"$f":"'1-Cover Sheet'!$F$8","v":"Select One"},{"$f":"'Summary Sheet'!$D$8","v":0},{"$f":"'Summary Sheet'!$D$10","v":0},{"$f":"'Drop Down Box'!B200","v":0},{"$f":"'Drop Down Box'!C200","v":0},{"$f":"'Drop Down Box'!D200","v":"Select One"},{"$f":"_xlfn.XLOOKUP(E36,'Drop Down Box'!$B$166:$B$249,'Drop Down Box'!$A$166:$A$249,\"Unknown\",0)","v":"Activity 1"},{"$f":"_xlfn.XLOOKUP($E36,'Activity 5'!$B$8:$B$14,'Activity 5'!$L$8:$L$14,\"N/A\",0)","v":"N/A"},{"$f":"_xlfn.XLOOKUP($E36,'Activity 5'!$B$8:$B$14,'Activity 5'!$M$8:$M$14,\"N/A\",0)","v":"N/A"},{"$f":"_xlfn.XLOOKUP($E36,'Activity 5'!$B$8:$B$14,'Activity 5'!$G$8:$G$14,\"N/A\",0)","v":"N/A"},{"$f":"_xlfn.XLOOKUP($E36,'Activity 5'!$B$8:$B$14,'Activity 5'!$H$8:$H$14,\"N/A\",0)","v":"N/A"},{"$f":"_xlfn.XLOOKUP($E36,'Activity 5'!$B$8:$B$14,'Activity 5'!I$8:I$14,\"N/A\",0)","v":"N/A"},{"$f":"_xlfn.XLOOKUP($E36,'Activity 1'!$B$7:$B$13,'Activity 1'!$A$7:$A$13,\"No\",0,1)","v":"No"},{"$f":"_xlfn.XLOOKUP($E36,'Activity 1'!$B$7:$B$13,'Activity 1'!$H$7:$H$13,\"N/A\",0,1)","v":"N/A"},{"$f":"_xlfn.XLOOKUP($E36,'Activity 1'!$B$7:$B$13,'Activity 1'!I$7:I$13,\"N/A\",0,1)","v":"N/A"},{"$f":"_xlfn.XLOOKUP($E36,'Activity 1'!$B$7:$B$13,'Activity 1'!J$7:J$13,\"N/A\",0,1)","v":"N/A"},{"$f":"_xlfn.XLOOKUP($E36,'Activity 1'!$B$7:$B$13,'Activity 1'!K$7:K$13,\"N/A\",0,1)","v":"N/A"},{"$f":"_xlfn.XLOOKUP($E36,'Activity 1'!$B$7:$B$13,'Activity 1'!L$7:L$13,\"N/A\",0,1)","v":"N/A"},{"$f":"_xlfn.XLOOKUP($E36,'Activity 1'!$B$7:$B$13,'Activity 1'!M$7:M$13,\"N/A\",0,1)","v":"N/A"},{"$f":"_xlfn.XLOOKUP($E36,'Activity 1'!$B$7:$B$13,'Activity 1'!N$7:N$13,\"N/A\",0,1)","v":"N/A"},0,{"$f":"_xlfn.XLOOKUP($E36,'Activity 1'!$B$7:$B$13,'Activity 1'!O$7:O$13,\"N/A\",0,1)","v":"N/A"},{"$f":"_xlfn.XLOOKUP($E36,'Activity 1'!$B$7:$B$13,'Activity 1'!P$7:P$13,\"N/A\",0,1)","v":"N/A"},{"$f":"_xlfn.XLOOKUP($E36,'Activity 1'!$B$7:$B$13,'Activity 1'!Q$7:Q$13,\"N/A\",0,1)","v":"N/A"},{"$f":"_xlfn.XLOOKUP($E36,'Activity 1'!$B$7:$B$13,'Activity 1'!R$7:R$13,\"N/A\",0,1)","v":"N/A"},{"$f":"_xlfn.XLOOKUP($E36,'Activity 1'!$B$7:$B$13,'Activity 1'!S$7:S$13,\"N/A\",0,1)","v":"N/A"},{"$f":"_xlfn.XLOOKUP($E36,'Activity 1'!$B$7:$B$13,'Activity 1'!T$7:T$13,\"N/A\",0,1)","v":"N/A"},{"$f":"_xlfn.XLOOKUP($E36,'Activity 1'!$B$7:$B$13,'Activity 1'!U$7:U$13,\"N/A\",0,1)","v":"N/A"},{"$f":"_xlfn.XLOOKUP($E36,'Activity 1'!$B$7:$B$13,'Activity 1'!V$7:V$13,\"N/A\",0,1)","v":"N/A"},{"$f":"_xlfn.XLOOKUP($E36,'Activity 1'!$B$17:$B$23,'Activity 1'!C$17:C$23,\"N/A\",0,1)","v":"N/A"},{"$f":"_xlfn.XLOOKUP($E36,'Activity 1'!$B$17:$B$23,'Activity 1'!D$17:D$23,\"N/A\",0,1)","v":"N/A"},{"$f":"_xlfn.XLOOKUP($E36,'Activity 1'!$B$17:$B$23,'Activity 1'!E$17:E$23,\"N/A\",0,1)","v":"N/A"},{"$f":"_xlfn.XLOOKUP($E36,'Activity 1'!$B$17:$B$23,'Activity 1'!F$17:F$23,\"N/A\",0,1)","v":"N/A"},{"$f":"_xlfn.XLOOKUP($E36,'Activity 1'!$B$17:$B$23,'Activity 1'!G$17:G$23,\"N/A\",0,1)","v":"N/A"},{"$f":"_xlfn.XLOOKUP($E36,'Activity 1'!$B$17:$B$23,'Activity 1'!H$17:H$23,\"N/A\",0,1)","v":"N/A"},{"$f":"_xlfn.XLOOKUP($E36,'Activity 1'!$B$17:$B$23,'Activity 1'!I$17:I$23,\"N/A\",0,1)","v":"N/A"},{"$f":"_xlfn.XLOOKUP($E36,'Activity 1'!$B$17:$B$23,'Activity 1'!J$17:J$23,\"N/A\",0,1)","v":"N/A"},{"$f":"_xlfn.XLOOKUP($E36,'Activity 1'!$B$17:$B$23,'Activity 1'!K$17:K$23,\"N/A\",0,1)","v":"N/A"},{"$f":"_xlfn.XLOOKUP($E36,'Activity 1'!$B$17:$B$23,'Activity 1'!L$17:L$23,\"N/A\",0,1)","v":"N/A"},{"$f":"_xlfn.XLOOKUP($E36,'Activity 1'!$B$17:$B$23,'Activity 1'!M$17:M$23,\"N/A\",0,1)","v":"N/A"},{"$f":"_xlfn.XLOOKUP($E36,'Activity 1'!$B$17:$B$23,'Activity 1'!O$17:O$23,\"N/A\",0,1)","v":"N/A"},{"$f":"_xlfn.XLOOKUP($E36,'Activity 1'!$B$17:$B$23,'Activity 1'!Q$17:Q$23,\"N/A\",0,1)","v":"N/A"},{"$f":"_xlfn.XLOOKUP($E36,'Activity 2'!$B$7:$B$13,'Activity 2'!$A$7:$A$13,\"No\",0,1)","v":"No"},{"$f":"_xlfn.XLOOKUP($E36,'Activity 2'!B$7:B$13,'Activity 2'!H$7:H$13,\"N/A\",0)","v":"N/A"},{"$f":"_xlfn.XLOOKUP($E36,'Activity 2'!C$7:C$13,'Activity 2'!I$7:I$13,\"N/A\",0)","v":"N/A"},{"$f":"_xlfn.XLOOKUP($E36,'Activity 2'!D$7:D$13,'Activity 2'!J$7:J$13,\"N/A\",0)","v":"N/A"},{"$f":"_xlfn.XLOOKUP($E36,'Activity 2'!E$7:E$13,'Activity 2'!K$7:K$13,\"N/A\",0)","v":"N/A"},{"$f":"_xlfn.XLOOKUP($E36,'Activity 2'!F$7:F$13,'Activity 2'!L$7:L$13,\"N/A\",0)","v":"N/A"},{"$f":"_xlfn.XLOOKUP($E36,'Activity 2'!G$7:G$13,'Activity 2'!M$7:M$13,\"N/A\",0)","v":"N/A"},{"$f":"_xlfn.XLOOKUP($E36,'Activity 2'!H$7:H$13,'Activity 2'!N$7:N$13,\"N/A\",0)","v":"N/A"},{"$f":"_xlfn.XLOOKUP($E36,'Activity 2'!I$7:I$13,'Activity 2'!O$7:O$13,\"N/A\",0)","v":"N/A"},{"$f":"_xlfn.XLOOKUP($E36,'Activity 2'!J$7:J$13,'Activity 2'!P$7:P$13,\"N/A\",0)","v":"N/A"},{"$f":"_xlfn.XLOOKUP($E36,'Activity 2'!K$7:K$13,'Activity 2'!Q$7:Q$13,\"N/A\",0)","v":"N/A"},{"$f":"_xlfn.XLOOKUP($E36,'Activity 2'!L$7:L$13,'Activity 2'!R$7:R$13,\"N/A\",0)","v":"N/A"},{"$f":"_xlfn.XLOOKUP($E36,'Activity 2'!M$7:M$13,'Activity 2'!S$7:S$13,\"N/A\",0)","v":"N/A"},{"$f":"_xlfn.XLOOKUP($E36,'Activity 2'!N$7:N$13,'Activity 2'!T$7:T$13,\"N/A\",0)","v":"N/A"},{"$f":"_xlfn.XLOOKUP($E36,'Activity 2'!O$7:O$13,'Activity 2'!U$7:U$13,\"N/A\",0)","v":"N/A"},{"$f":"_xlfn.XLOOKUP($E36,'Activity 2'!P$7:P$13,'Activity 2'!V$7:V$13,\"N/A\",0)","v":"N/A"},{"$f":"_xlfn.XLOOKUP($E36,'Activity 2'!$B$17:$B$23,'Activity 2'!C$17:C$23,\"N/A\",0,1)","v":"N/A"},{"$f":"_xlfn.XLOOKUP($E36,'Activity 2'!$B$17:$B$23,'Activity 2'!D$17:D$23,\"N/A\",0,1)","v":"N/A"},{"$f":"_xlfn.XLOOKUP($E36,'Activity 2'!$B$17:$B$23,'Activity 2'!E$17:E$23,\"N/A\",0,1)","v":"N/A"},{"$f":"_xlfn.XLOOKUP($E36,'Activity 2'!$B$17:$B$23,'Activity 2'!F$17:F$23,\"N/A\",0,1)","v":"N/A"},{"$f":"_xlfn.XLOOKUP($E36,'Activity 2'!$B$17:$B$23,'Activity 2'!G$17:G$23,\"N/A\",0,1)","v":"N/A"},{"$f":"_xlfn.XLOOKUP($E36,'Activity 2'!$B$17:$B$23,'Activity 2'!H$17:H$23,\"N/A\",0,1)","v":"N/A"},{"$f":"_xlfn.XLOOKUP($E36,'Activity 2'!$B$17:$B$23,'Activity 2'!I$17:I$23,\"N/A\",0,1)","v":"N/A"},{"$f":"_xlfn.XLOOKUP($E36,'Activity 2'!$B$17:$B$23,'Activity 2'!J$17:J$23,\"N/A\",0,1)","v":"N/A"},{"$f":"_xlfn.XLOOKUP($E36,'Activity 2'!$B$17:$B$23,'Activity 2'!K$17:K$23,\"N/A\",0,1)","v":"N/A"},{"$f":"_xlfn.XLOOKUP($E36,'Activity 2'!$B$17:$B$23,'Activity 2'!L$17:L$23,\"N/A\",0,1)","v":"N/A"},{"$f":"_xlfn.XLOOKUP($E36,'Activity 2'!$B$17:$B$23,'Activity 2'!M$17:M$23,\"N/A\",0,1)","v":"N/A"},{"$f":"_xlfn.XLOOKUP($E36,'Activity 2'!$B$17:$B$23,'Activity 2'!O$17:O$23,\"N/A\",0,1)","v":"N/A"},{"$f":"_xlfn.XLOOKUP($E36,'Activity 2'!$B$17:$B$23,'Activity 2'!Q$17:Q$23,\"N/A\",0,1)","v":"N/A"},null,{"$f":"_xlfn.XLOOKUP($E36,'Activity 3'!$B$8:$B$14,'Activity 3'!K$8:K$14,\"N/A\",0,1)","v":"N/A"},{"$f":"_xlfn.XLOOKUP($E36,'Activity 3'!$B$8:$B$14,'Activity 3'!L$8:L$14,\"N/A\",0,1)","v":"N/A"},{"$f":"_xlfn.XLOOKUP($E36,'Activity 3'!$B$8:$B$14,'Activity 3'!M$8:M$14,\"N/A\",0,1)","v":"N/A"},{"$f":"_xlfn.XLOOKUP($E36,'Activity 3'!$B$8:$B$14,'Activity 3'!N$8:N$14,\"N/A\",0,1)","v":"N/A"},{"$f":"_xlfn.XLOOKUP($E36,'Activity 3'!$B$8:$B$14,'Activity 3'!O$8:O$14,\"N/A\",0,1)","v":"N/A"},{"$f":"_xlfn.XLOOKUP($E36,'Activity 3'!$B$8:$B$14,'Activity 3'!R$8:R$14,\"N/A\",0,1)","v":"N/A"},{"$f":"_xlfn.XLOOKUP($E36,'Activity 4'!$B$8:$B$14,'Activity 4'!$A$8:$A$14,\"No\",0,1)","v":"No"},{"$f":"_xlfn.XLOOKUP($E36,'Activity 4'!$B$8:$B$14,'Activity 4'!L$8:L$14,\"N/A\",0,1)","v":"N/A"},{"$f":"_xlfn.XLOOKUP($E36,'Activity 4'!$B$8:$B$14,'Activity 4'!I$8:I$14,\"N/A\",0,1)","v":"N/A"},{"$f":"_xlfn.XLOOKUP($E36,'Activity 4'!$B$8:$B$14,'Activity 4'!M$8:M$14,\"N/A\",0,1)","v":"N/A"},{"$f":"_xlfn.XLOOKUP($E36,'Activity 5'!$B$8:$B$14,'Activity 5'!$A$8:$A$14,\"No\",0,1)","v":"No"},{"$f":"_xlfn.XLOOKUP($E36,'Activity 5'!$B$8:$B$14,'Activity 5'!J$8:J$14,\"N/A\",0,1)","v":"N/A"},{"$f":"_xlfn.XLOOKUP($E36,'Activity 5'!$B$8:$B$14,'Activity 5'!K$8:K$14,\"N/A\",0,1)","v":"N/A"},{"$f":"_xlfn.XLOOKUP($E36,'Activity 5'!$B$8:$B$14,'Activity 5'!N$8:N$14,\"N/A\",0,1)","v":"N/A"},{"$f":"_xlfn.XLOOKUP($E36,'Activity 5'!$B$8:$B$14,'Activity 5'!O$8:O$14,\"N/A\",0,1)","v":"N/A"},{"$f":"_xlfn.XLOOKUP($E36,'Activity 5'!$B$8:$B$14,'Activity 5'!P$8:P$14,\"N/A\",0,1)","v":"N/A"},{"$f":"_xlfn.XLOOKUP($E36,'Activity 5'!$B$8:$B$14,'Activity 5'!Q$8:Q$14,\"N/A\",0,1)","v":"N/A"},{"$f":"_xlfn.XLOOKUP($E36,'Activity 5'!$B$8:$B$14,'Activity 5'!R$8:R$14,\"N/A\",0,1)","v":"N/A"},{"$f":"_xlfn.XLOOKUP($E36,'Activity 6'!$B$7:$B$13,'Activity 6'!A$7:A$13,\"No\",0,1)","v":"No"},{"$f":"_xlfn.XLOOKUP($E36,'Activity 6'!$B$7:$B$13,'Activity 6'!K$7:K$13,\"N/A\",0,1)","v":"N/A"},{"$f":"_xlfn.XLOOKUP($E36,'Activity 6'!$B$7:$B$13,'Activity 6'!L$7:L$13,\"N/A\",0,1)","v":"N/A"},{"$f":"_xlfn.XLOOKUP($E36,'Activity 6'!$B$7:$B$13,'Activity 6'!M$7:M$13,\"N/A\",0,1)","v":"N/A"},{"$f":"_xlfn.XLOOKUP($E36,'Activity 6'!$B$7:$B$13,'Activity 6'!N$7:N$13,\"N/A\",0,1)","v":"N/A"},{"$f":"_xlfn.XLOOKUP($E36,'Activity 6'!$B$7:$B$13,'Activity 6'!O$7:O$13,\"N/A\",0,1)","v":"N/A"},{"$f":"_xlfn.XLOOKUP($E36,'Activity 6'!$B$7:$B$13,'Activity 6'!P$7:P$13,\"N/A\",0,1)","v":"N/A"},{"$f":"_xlfn.XLOOKUP($E36,'Activity 6'!$B$7:$B$13,'Activity 6'!Q$7:Q$13,\"N/A\",0,1)","v":"N/A"},{"$f":"_xlfn.XLOOKUP($E36,'Activity 6'!$B$7:$B$13,'Activity 6'!R$7:R$13,\"N/A\",0,1)","v":"N/A"},{"$f":"_xlfn.XLOOKUP($E36,'Activity 6'!$B$7:$B$13,'Activity 6'!S$7:S$13,\"N/A\",0,1)","v":"N/A"},{"$f":"_xlfn.XLOOKUP($E36,'Activity 6'!$B$7:$B$13,'Activity 6'!T$7:T$13,\"N/A\",0,1)","v":"N/A"},{"$f":"_xlfn.XLOOKUP($E36,'Activity 6'!$B$7:$B$13,'Activity 6'!U$7:U$13,\"N/A\",0,1)","v":"N/A"},{"$f":"_xlfn.XLOOKUP($E36,'Activity 6'!$B$22:$B$28,'Activity 6'!C$22:C$28,\"N/A\",0,1)","v":"N/A"},{"$f":"_xlfn.XLOOKUP($E36,'Activity 6'!$B$22:$B$28,'Activity 6'!D$22:D$28,\"N/A\",0,1)","v":"N/A"},{"$f":"_xlfn.XLOOKUP($E36,'Activity 6'!$B$22:$B$28,'Activity 6'!E$22:E$28,\"N/A\",0,1)","v":"N/A"},{"$f":"_xlfn.XLOOKUP($E36,'Activity 6'!$B$22:$B$28,'Activity 6'!F$22:F$28,\"N/A\",0,1)","v":"N/A"},{"$f":"_xlfn.XLOOKUP($E36,'Activity 6'!$B$22:$B$28,'Activity 6'!G$22:G$28,\"N/A\",0,1)","v":"N/A"},{"$f":"_xlfn.XLOOKUP($E36,'Activity 6'!$B$22:$B$28,'Activity 6'!H$22:H$28,\"N/A\",0,1)","v":"N/A"},{"$f":"_xlfn.XLOOKUP($E36,'Activity 6'!$B$22:$B$28,'Activity 6'!I$22:I$28,\"N/A\",0,1)","v":"N/A"},{"$f":"_xlfn.XLOOKUP($E36,'Activity 6'!$B$22:$B$28,'Activity 6'!J$22:J$28,\"N/A\",0,1)","v":"N/A"},{"$f":"_xlfn.XLOOKUP($E36,'Activity 6'!$B$22:$B$28,'Activity 6'!K$22:K$28,\"N/A\",0,1)","v":"N/A"},{"$f":"_xlfn.XLOOKUP($E36,'Activity 6'!$B$22:$B$28,'Activity 6'!L$22:L$28,\"N/A\",0,1)","v":"N/A"},{"$f":"_xlfn.XLOOKUP($E36,'Activity 6'!$B$22:$B$28,'Activity 6'!M$22:M$28,\"N/A\",0,1)","v":"N/A"},{"$f":"_xlfn.XLOOKUP($E36,'Activity 6'!$B$22:$B$28,'Activity 6'!N$22:N$28,\"N/A\",0,1)","v":"N/A"},{"$f":"_xlfn.XLOOKUP($E36,'Activity 6'!$B$32:$B$38,'Activity 6'!C$32:C$38,\"N/A\",0,1)","v":"N/A"},{"$f":"_xlfn.XLOOKUP($E36,'Activity 6'!$B$32:$B$38,'Activity 6'!D$32:D$38,\"N/A\",0,1)","v":"N/A"},{"$f":"_xlfn.XLOOKUP($E36,'Activity 6'!$B$32:$B$38,'Activity 6'!E$32:E$38,\"N/A\",0,1)","v":"N/A"},{"$f":"_xlfn.XLOOKUP($E36,'Activity 6'!$B$32:$B$38,'Activity 6'!F$32:F$38,\"N/A\",0,1)","v":"N/A"},{"$f":"_xlfn.XLOOKUP($E36,'Activity 6'!$B$32:$B$38,'Activity 6'!G$32:G$38,\"N/A\",0,1)","v":"N/A"},{"$f":"_xlfn.XLOOKUP($E36,'Activity 6'!$B$32:$B$38,'Activity 6'!H$32:H$38,\"N/A\",0,1)","v":"N/A"},{"$f":"_xlfn.XLOOKUP($E36,'Activity 6'!$B$32:$B$38,'Activity 6'!I$32:I$38,\"N/A\",0,1)","v":"N/A"},{"$f":"_xlfn.XLOOKUP($E36,'Activity 6'!$B$32:$B$38,'Activity 6'!J$32:J$38,\"N/A\",0,1)","v":"N/A"},{"$f":"_xlfn.XLOOKUP($E36,'Activity 6'!$B$32:$B$38,'Activity 6'!K$32:K$38,\"N/A\",0,1)","v":"N/A"},{"$f":"_xlfn.XLOOKUP($E36,'Activity 6'!$B$32:$B$38,'Activity 6'!M$32:M$38,\"N/A\",0,1)","v":"N/A"},{"$f":"_xlfn.XLOOKUP($E36,'Activity 7'!$B$7:$B$13,'Activity 7'!$A$7:$A$13,\"No\",0,1)","v":"No"},{"$f":"_xlfn.XLOOKUP($E36,'Activity 7'!$B$7:$B$13,'Activity 7'!M$7:M$13,\"N/A\",0,1)","v":"N/A"},{"$f":"_xlfn.XLOOKUP($E36,'Activity 7'!$B$7:$B$13,'Activity 7'!K$7:K$13,\"N/A\",0,1)","v":"N/A"},{"$f":"_xlfn.XLOOKUP($E36,'Activity 7'!$B$7:$B$13,'Activity 7'!N$7:N$13,\"N/A\",0,1)","v":"N/A"},{"$f":"_xlfn.XLOOKUP($E36,'Activity 7'!$B$7:$B$13,'Activity 7'!O$7:O$13,\"N/A\",0,1)","v":"N/A"},{"$f":"_xlfn.XLOOKUP($E36,'Activity 7'!$B$7:$B$13,'Activity 7'!P$7:P$13,\"N/A\",0,1)","v":"N/A"},{"$f":"_xlfn.XLOOKUP($E36,'Activity 7'!$B$7:$B$13,'Activity 7'!Q$7:Q$13,\"N/A\",0,1)","v":"N/A"},{"$f":"_xlfn.XLOOKUP($E36,'Activity 7'!$B$7:$B$13,'Activity 7'!R$7:R$13,\"N/A\",0,1)","v":"N/A"},{"$f":"_xlfn.XLOOKUP($E36,'Activity 7'!$B$7:$B$13,'Activity 7'!S$7:S$13,\"N/A\",0,1)","v":"N/A"},{"$f":"_xlfn.XLOOKUP($E36,'Activity 7'!$B$7:$B$13,'Activity 7'!T$7:T$13,\"N/A\",0,1)","v":"N/A"},{"$f":"_xlfn.XLOOKUP($E36,'Activity 7'!$B$7:$B$13,'Activity 7'!U$7:U$13,\"N/A\",0,1)","v":"N/A"},{"$f":"_xlfn.XLOOKUP($E36,'Activity 7'!$B$7:$B$13,'Activity 7'!V$7:V$13,\"N/A\",0,1)","v":"N/A"},{"$f":"_xlfn.XLOOKUP($E36,'Activity 7'!$B$17:$B$23,'Activity 7'!E$17:E$23,\"N/A\",0,1)","v":"N/A"},{"$f":"_xlfn.XLOOKUP($E36,'Activity 7'!$B$17:$B$23,'Activity 7'!G$17:G$23,\"N/A\",0,1)","v":"N/A"},{"$f":"_xlfn.XLOOKUP($E36,'Activity 7'!$B$17:$B$23,'Activity 7'!I$17:I$23,\"N/A\",0,1)","v":"N/A"},{"$f":"_xlfn.XLOOKUP($E36,'Activity 7'!$B$17:$B$23,'Activity 7'!J$17:J$23,\"N/A\",0,1)","v":"N/A"},{"$f":"_xlfn.XLOOKUP($E36,'Activity 7'!$B$17:$B$23,'Activity 7'!K$17:K$23,\"N/A\",0,1)","v":"N/A"},{"$f":"_xlfn.XLOOKUP($E36,'Activity 7'!$B$17:$B$23,'Activity 7'!L$17:L$23,\"N/A\",0,1)","v":"N/A"},{"$f":"_xlfn.XLOOKUP($E36,'Activity 7'!$B$17:$B$23,'Activity 7'!M$17:M$23,\"N/A\",0,1)","v":"N/A"},{"$f":"_xlfn.XLOOKUP($E36,'Activity 7'!$B$17:$B$23,'Activity 7'!N$17:N$23,\"N/A\",0,1)","v":"N/A"},{"$f":"_xlfn.XLOOKUP($E36,'Activity 7'!$B$17:$B$23,'Activity 7'!P$17:P$23,\"N/A\",0,1)","v":"N/A"},{"$f":"_xlfn.XLOOKUP($E36,'Activity 8'!$B$7:$B$13,'Activity 8'!A$7:A$13,\"No\",0,1)","v":"No"},{"$f":"_xlfn.XLOOKUP($E36,'Activity 8'!$B$7:$B$13,'Activity 8'!I$7:I$13,\"N/A\",0,1)","v":"N/A"},{"$f":"_xlfn.XLOOKUP($E36,'Activity 8'!$B$7:$B$13,'Activity 8'!J$7:J$13,\"N/A\",0,1)","v":"N/A"},{"$f":"_xlfn.XLOOKUP($E36,'Activity 8'!$B$7:$B$13,'Activity 8'!K$7:K$13,\"N/A\",0,1)","v":"N/A"},{"$f":"_xlfn.XLOOKUP($E36,'Activity 8'!$B$7:$B$13,'Activity 8'!L$7:L$13,\"N/A\",0,1)","v":"N/A"},{"$f":"_xlfn.XLOOKUP($E36,'Activity 8'!$B$7:$B$13,'Activity 8'!M$7:M$13,\"N/A\",0,1)","v":"N/A"},{"$f":"_xlfn.XLOOKUP($E36,'Activity 8'!$B$7:$B$13,'Activity 8'!N$7:N$13,\"N/A\",0,1)","v":"N/A"},{"$f":"_xlfn.XLOOKUP($E36,'Activity 8'!$B$7:$B$13,'Activity 8'!O$7:O$13,\"N/A\",0,1)","v":"N/A"},{"$f":"_xlfn.XLOOKUP($E36,'Activity 8'!$B$7:$B$13,'Activity 8'!P$7:P$13,\"N/A\",0,1)","v":"N/A"},{"$f":"_xlfn.XLOOKUP($E36,'Activity 8'!$B$7:$B$13,'Activity 8'!Q$7:Q$13,\"N/A\",0,1)","v":"N/A"},{"$f":"_xlfn.XLOOKUP($E36,'Activity 8'!$B$7:$B$13,'Activity 8'!R$7:R$13,\"N/A\",0,1)","v":"N/A"},{"$f":"_xlfn.XLOOKUP($E36,'Activity 8'!$B$7:$B$13,'Activity 8'!S$7:S$13,\"N/A\",0,1)","v":"N/A"},{"$f":"_xlfn.XLOOKUP($E36,'Activity 8'!$B$7:$B$13,'Activity 8'!T$7:T$13,\"N/A\",0,1)","v":"N/A"},{"$f":"_xlfn.XLOOKUP($E36,'Activity 8'!$B$7:$B$13,'Activity 8'!U$7:U$13,\"N/A\",0,1)","v":"N/A"},{"$f":"_xlfn.XLOOKUP($E36,'Activity 8'!$B$7:$B$13,'Activity 8'!V$7:V$13,\"N/A\",0,1)","v":"N/A"},{"$f":"_xlfn.XLOOKUP($E36,'Activity 8'!$B$17:$B$23,'Activity 8'!D$17:D$23,\"N/A\",0,1)","v":"N/A"},{"$f":"_xlfn.XLOOKUP($E36,'Activity 8'!$B$17:$B$23,'Activity 8'!E$17:E$23,\"N/A\",0,1)","v":"N/A"},{"$f":"_xlfn.XLOOKUP($E36,'Activity 8'!$B$17:$B$23,'Activity 8'!F$17:F$23,\"N/A\",0,1)","v":"N/A"},{"$f":"_xlfn.XLOOKUP($E36,'Activity 8'!$B$17:$B$23,'Activity 8'!G$17:G$23,\"N/A\",0,1)","v":"N/A"},{"$f":"_xlfn.XLOOKUP($E36,'Activity 8'!$B$17:$B$23,'Activity 8'!H$17:H$23,\"N/A\",0,1)","v":"N/A"},{"$f":"_xlfn.XLOOKUP($E36,'Activity 8'!$B$17:$B$23,'Activity 8'!I$17:I$23,\"N/A\",0,1)","v":"N/A"},{"$f":"_xlfn.XLOOKUP($E36,'Activity 8'!$B$17:$B$23,'Activity 8'!J$17:J$23,\"N/A\",0,1)","v":"N/A"},{"$f":"_xlfn.XLOOKUP($E36,'Activity 8'!$B$17:$B$23,'Activity 8'!K$17:K$23,\"N/A\",0,1)","v":"N/A"},{"$f":"_xlfn.XLOOKUP($E36,'Activity 8'!$B$17:$B$23,'Activity 8'!L$17:L$23,\"N/A\",0,1)","v":"N/A"},{"$f":"_xlfn.XLOOKUP($E36,'Activity 8'!$B$17:$B$23,'Activity 8'!M$17:M$23,\"N/A\",0,1)","v":"N/A"},{"$f":"_xlfn.XLOOKUP($E36,'Activity 8'!$B$17:$B$23,'Activity 8'!N$17:N$23,\"N/A\",0,1)","v":"N/A"},{"$f":"_xlfn.XLOOKUP($E36,'Activity 8'!$B$17:$B$23,'Activity 8'!P$17:P$23,\"N/A\",0,1)","v":"N/A"},{"$f":"_xlfn.XLOOKUP(E36,'Activity 9'!$B$7:$B$13,'Activity 9'!$A$7:$A$13,\"No\",0,1)","v":"No"},{"$f":"_xlfn.XLOOKUP($E36,'Activity 9'!$B$7:$B$13,'Activity 9'!J$7:J$13,\"N/A\",0,1)","v":"N/A"},{"$f":"_xlfn.XLOOKUP($E36,'Activity 9'!$B$7:$B$13,'Activity 9'!K$7:K$13,\"N/A\",0,1)","v":"N/A"},{"$f":"_xlfn.XLOOKUP($E36,'Activity 9'!$B$7:$B$13,'Activity 9'!L$7:L$13,\"N/A\",0,1)","v":"N/A"},{"$f":"_xlfn.XLOOKUP($E36,'Activity 9'!$B$7:$B$13,'Activity 9'!M$7:M$13,\"N/A\",0,1)","v":"N/A"},{"$f":"_xlfn.XLOOKUP($E36,'Activity 9'!$B$7:$B$13,'Activity 9'!N$7:N$13,\"N/A\",0,1)","v":"N/A"},{"$f":"_xlfn.XLOOKUP($E36,'Activity 9'!$B$7:$B$13,'Activity 9'!O$7:O$13,\"N/A\",0,1)","v":"N/A"},{"$f":"_xlfn.XLOOKUP($E36,'Activity 9'!$B$7:$B$13,'Activity 9'!P$7:P$13,\"N/A\",0,1)","v":"N/A"},{"$f":"_xlfn.XLOOKUP($E36,'Activity 9'!$B$7:$B$13,'Activity 9'!Q$7:Q$13,\"N/A\",0,1)","v":"N/A"},{"$f":"_xlfn.XLOOKUP($E36,'Activity 9'!$B$7:$B$13,'Activity 9'!R$7:R$13,\"N/A\",0,1)","v":"N/A"},{"$f":"_xlfn.XLOOKUP($E36,'Activity 9'!$B$7:$B$13,'Activity 9'!S$7:S$13,\"N/A\",0,1)","v":"N/A"},{"$f":"_xlfn.XLOOKUP($E36,'Activity 9'!$B$7:$B$13,'Activity 9'!T$7:T$13,\"N/A\",0,1)","v":"N/A"},{"$f":"_xlfn.XLOOKUP($E36,'Activity 9'!$B$17:$B$23,'Activity 9'!E$17:E$23,\"N/A\",0,1)","v":"N/A"},{"$f":"_xlfn.XLOOKUP($E36,'Activity 9'!$B$17:$B$23,'Activity 9'!F$17:F$23,\"N/A\",0,1)","v":"N/A"},{"$f":"_xlfn.XLOOKUP($E36,'Activity 9'!$B$17:$B$23,'Activity 9'!G$17:G$23,\"N/A\",0,1)","v":"N/A"},{"$f":"_xlfn.XLOOKUP($E36,'Activity 9'!$B$17:$B$23,'Activity 9'!H$17:H$23,\"N/A\",0,1)","v":"N/A"},{"$f":"_xlfn.XLOOKUP($E36,'Activity 9'!$B$17:$B$23,'Activity 9'!I$17:I$23,\"N/A\",0,1)","v":"N/A"},{"$f":"_xlfn.XLOOKUP($E36,'Activity 9'!$B$17:$B$23,'Activity 9'!J$17:J$23,\"N/A\",0,1)","v":"N/A"},{"$f":"_xlfn.XLOOKUP($E36,'Activity 9'!$B$17:$B$23,'Activity 9'!K$17:K$23,\"N/A\",0,1)","v":"N/A"},{"$f":"_xlfn.XLOOKUP($E36,'Activity 9'!$B$17:$B$23,'Activity 9'!L$17:L$23,\"N/A\",0,1)","v":"N/A"},{"$f":"_xlfn.XLOOKUP($E36,'Activity 9'!$B$17:$B$23,'Activity 9'!N$17:N$23,\"N/A\",0,1)","v":"N/A"},{"$f":"_xlfn.XLOOKUP($E36,'Activity 9'!$B$17:$B$23,'Activity 9'!O$17:O$23,\"N/A\",0,1)","v":"N/A"},{"$f":"_xlfn.XLOOKUP($E36,'Activity 9'!$B$17:$B$23,'Activity 9'!Q$17:Q$23,\"N/A\",0,1)","v":"N/A"},{"$f":"_xlfn.XLOOKUP($E36,'Activity 10'!$B$7:$B$13,'Activity 10'!A$7:A$13,\"No\",0,1)","v":"No"},{"$f":"_xlfn.XLOOKUP($E36,'Activity 10'!$B$7:$B$13,'Activity 10'!J$7:J$13,\"N/A\",0,1)","v":"N/A"},{"$f":"_xlfn.XLOOKUP($E36,'Activity 10'!$B$7:$B$13,'Activity 10'!K$7:K$13,\"N/A\",0,1)","v":"N/A"},{"$f":"_xlfn.XLOOKUP($E36,'Activity 10'!$B$7:$B$13,'Activity 10'!L$7:L$13,\"N/A\",0,1)","v":"N/A"},{"$f":"_xlfn.XLOOKUP($E36,'Activity 10'!$B$7:$B$13,'Activity 10'!M$7:M$13,\"N/A\",0,1)","v":"N/A"},{"$f":"_xlfn.XLOOKUP($E36,'Activity 10'!$B$7:$B$13,'Activity 10'!N$7:N$13,\"N/A\",0,1)","v":"N/A"},{"$f":"_xlfn.XLOOKUP($E36,'Activity 10'!$B$7:$B$13,'Activity 10'!O$7:O$13,\"N/A\",0,1)","v":"N/A"},{"$f":"_xlfn.XLOOKUP($E36,'Activity 10'!$B$7:$B$13,'Activity 10'!P$7:P$13,\"N/A\",0,1)","v":"N/A"},{"$f":"_xlfn.XLOOKUP($E36,'Activity 10'!$B$7:$B$13,'Activity 10'!Q$7:Q$13,\"N/A\",0,1)","v":"N/A"},{"$f":"_xlfn.XLOOKUP($E36,'Activity 10'!$B$7:$B$13,'Activity 10'!R$7:R$13,\"N/A\",0,1)","v":"N/A"},{"$f":"_xlfn.XLOOKUP($E36,'Activity 10'!$B$7:$B$13,'Activity 10'!S$7:S$13,\"N/A\",0,1)","v":"N/A"},{"$f":"_xlfn.XLOOKUP($E36,'Activity 10'!$B$7:$B$13,'Activity 10'!T$7:T$13,\"N/A\",0,1)","v":"N/A"},{"$f":"_xlfn.XLOOKUP($E36,'Activity 10'!$B$7:$B$13,'Activity 10'!U$7:U$13,\"N/A\",0,1)","v":"N/A"},{"$f":"_xlfn.XLOOKUP($E36,'Activity 10'!$B$7:$B$13,'Activity 10'!V$7:V$13,\"N/A\",0,1)","v":"N/A"},{"$f":"_xlfn.XLOOKUP($E36,'Activity 10'!$B$17:$B$23,'Activity 10'!E$17:E$23,\"N/A\",0,1)","v":"N/A"},{"$f":"_xlfn.XLOOKUP($E36,'Activity 10'!$B$17:$B$23,'Activity 10'!F$17:F$23,\"N/A\",0,1)","v":"N/A"},{"$f":"_xlfn.XLOOKUP($E36,'Activity 10'!$B$17:$B$23,'Activity 10'!G$17:G$23,\"N/A\",0,1)","v":"N/A"},{"$f":"_xlfn.XLOOKUP($E36,'Activity 10'!$B$17:$B$23,'Activity 10'!H$17:H$23,\"N/A\",0,1)","v":"N/A"},{"$f":"_xlfn.XLOOKUP($E36,'Activity 10'!$B$17:$B$23,'Activity 10'!I$17:I$23,\"N/A\",0,1)","v":"N/A"},{"$f":"_xlfn.XLOOKUP($E36,'Activity 10'!$B$17:$B$23,'Activity 10'!J$17:J$23,\"N/A\",0,1)","v":"N/A"},{"$f":"_xlfn.XLOOKUP($E36,'Activity 10'!$B$17:$B$23,'Activity 10'!K$17:K$23,\"N/A\",0,1)","v":"N/A"},{"$f":"_xlfn.XLOOKUP($E36,'Activity 10'!$B$17:$B$23,'Activity 10'!L$17:L$23,\"N/A\",0,1)","v":"N/A"},{"$f":"_xlfn.XLOOKUP($E36,'Activity 10'!$B$17:$B$23,'Activity 10'!M$17:M$23,\"N/A\",0,1)","v":"N/A"},{"$f":"_xlfn.XLOOKUP($E36,'Activity 10'!$B$17:$B$23,'Activity 10'!N$17:N$23,\"N/A\",0,1)","v":"N/A"},{"$f":"_xlfn.XLOOKUP($E36,'Activity 10'!$B$17:$B$23,'Activity 10'!P$17:P$23,\"N/A\",0,1)","v":"N/A"},{"$f":"_xlfn.XLOOKUP($E36,'Competitive Activity 1'!B$7:B$13,'Competitive Activity 1'!A$7:A$13,\"No\",0,1)","v":"No"},{"$f":"_xlfn.XLOOKUP($E36,'Competitive Activity 1'!$B$7:$B$13,'Competitive Activity 1'!H$7:H$13,\"N/A\",0,1)","v":"N/A"},{"$f":"_xlfn.XLOOKUP($E36,'Competitive Activity 1'!$B$7:$B$13,'Competitive Activity 1'!I$7:I$13,\"N/A\",0,1)","v":"N/A"},{"$f":"_xlfn.XLOOKUP($E36,'Competitive Activity 1'!$B$7:$B$13,'Competitive Activity 1'!J$7:J$13,\"N/A\",0,1)","v":"N/A"},{"$f":"_xlfn.XLOOKUP($E36,'Competitive Activity 1'!$B$7:$B$13,'Competitive Activity 1'!K$7:K$13,\"N/A\",0,1)","v":"N/A"},{"$f":"_xlfn.XLOOKUP($E36,'Competitive Activity 1'!$B$7:$B$13,'Competitive Activity 1'!L$7:L$13,\"N/A\",0,1)","v":"N/A"},{"$f":"_xlfn.XLOOKUP($E36,'Competitive Activity 1'!$B$7:$B$13,'Competitive Activity 1'!M$7:M$13,\"N/A\",0,1)","v":"N/A"},{"$f":"_xlfn.XLOOKUP($E36,'Competitive Activity 1'!$B$7:$B$13,'Competitive Activity 1'!N$7:N$13,\"N/A\",0,1)","v":"N/A"},{"$f":"_xlfn.XLOOKUP($E36,'Competitive Activity 1'!$B$7:$B$13,'Competitive Activity 1'!O$7:O$13,\"N/A\",0,1)","v":"N/A"},{"$f":"_xlfn.XLOOKUP($E36,'Competitive Activity 1'!$B$7:$B$13,'Competitive Activity 1'!P$7:P$13,\"N/A\",0,1)","v":"N/A"},{"$f":"_xlfn.XLOOKUP($E36,'Competitive Activity 1'!$B$7:$B$13,'Competitive Activity 1'!Q$7:Q$13,\"N/A\",0,1)","v":"N/A"},{"$f":"_xlfn.XLOOKUP($E36,'Competitive Activity 1'!$B$7:$B$13,'Competitive Activity 1'!R$7:R$13,\"N/A\",0,1)","v":"N/A"},{"$f":"_xlfn.XLOOKUP($E36,'Competitive Activity 1'!$B$7:$B$13,'Competitive Activity 1'!S$7:S$13,\"N/A\",0,1)","v":"N/A"},{"$f":"_xlfn.XLOOKUP($E36,'Competitive Activity 1'!$B$7:$B$13,'Competitive Activity 1'!T$7:T$13,\"N/A\",0,1)","v":"N/A"},{"$f":"_xlfn.XLOOKUP($E36,'Competitive Activity 1'!$B$7:$B$13,'Competitive Activity 1'!U$7:U$13,\"N/A\",0,1)","v":"N/A"},{"$f":"_xlfn.XLOOKUP($E36,'Competitive Activity 1'!$B$17:$B$23,'Competitive Activity 1'!C$17:C$23,\"N/A\",0,1)","v":"N/A"},{"$f":"_xlfn.XLOOKUP($E36,'Competitive Activity 1'!$B$17:$B$23,'Competitive Activity 1'!D$17:D$23,\"N/A\",0,1)","v":"N/A"},{"$f":"_xlfn.XLOOKUP($E36,'Competitive Activity 1'!$B$17:$B$23,'Competitive Activity 1'!E$17:E$23,\"N/A\",0,1)","v":"N/A"},{"$f":"_xlfn.XLOOKUP($E36,'Competitive Activity 1'!$B$17:$B$23,'Competitive Activity 1'!F$17:F$23,\"N/A\",0,1)","v":"N/A"},{"$f":"_xlfn.XLOOKUP($E36,'Competitive Activity 1'!$B$17:$B$23,'Competitive Activity 1'!G$17:G$23,\"N/A\",0,1)","v":"N/A"},{"$f":"_xlfn.XLOOKUP($E36,'Competitive Activity 1'!$B$17:$B$23,'Competitive Activity 1'!H$17:H$23,\"N/A\",0,1)","v":"N/A"},{"$f":"_xlfn.XLOOKUP($E36,'Competitive Activity 1'!$B$17:$B$23,'Competitive Activity 1'!I$17:I$23,\"N/A\",0,1)","v":"N/A"},{"$f":"_xlfn.XLOOKUP($E36,'Competitive Activity 1'!$B$17:$B$23,'Competitive Activity 1'!J$17:J$23,\"N/A\",0,1)","v":"N/A"},{"$f":"_xlfn.XLOOKUP($E36,'Competitive Activity 1'!$B$17:$B$23,'Competitive Activity 1'!K$17:K$23,\"N/A\",0,1)","v":"N/A"},{"$f":"_xlfn.XLOOKUP($E36,'Competitive Activity 1'!$B$17:$B$23,'Competitive Activity 1'!M$17:M$23,\"N/A\",0,1)","v":"N/A"},{"$f":"_xlfn.XLOOKUP($E36,'Competitive Activity 1'!$B$17:$B$23,'Competitive Activity 1'!N$17:N$23,\"N/A\",0,1)","v":"N/A"},{"$f":"_xlfn.XLOOKUP($E36,'Competitive Activity 1'!$B$17:$B$23,'Competitive Activity 1'!P$17:P$23,\"N/A\",0,1)","v":"N/A"},{"$f":"_xlfn.XLOOKUP($E36,'Competitive Activity 2'!$B$7:$B$13,'Competitive Activity 2'!A$7:A$13,\"No\",0)","v":"No"},{"$f":"_xlfn.XLOOKUP($E36,'Competitive Activity 2'!$B$7:$B$13,'Competitive Activity 2'!L$7:L$13,\"N/A\",0)","v":"N/A"},{"$f":"_xlfn.XLOOKUP($E36,'Competitive Activity 2'!$B$7:$B$13,'Competitive Activity 2'!M$7:M$13,\"N/A\",0)","v":"N/A"},{"$f":"_xlfn.XLOOKUP($E36,'Competitive Activity 2'!$B$7:$B$13,'Competitive Activity 2'!N$7:N$13,\"N/A\",0)","v":"N/A"},{"$f":"_xlfn.XLOOKUP($E36,'Competitive Activity 2'!$B$7:$B$13,'Competitive Activity 2'!O$7:O$13,\"N/A\",0)","v":"N/A"},{"$f":"_xlfn.XLOOKUP($E36,'Competitive Activity 2'!$B$7:$B$13,'Competitive Activity 2'!P$7:P$13,\"N/A\",0)","v":"N/A"},{"$f":"_xlfn.XLOOKUP($E36,'Competitive Activity 2'!$B$7:$B$13,'Competitive Activity 2'!Q$7:Q$13,\"N/A\",0)","v":"N/A"},{"$f":"_xlfn.XLOOKUP($E36,'Competitive Activity 2'!$B$7:$B$13,'Competitive Activity 2'!R$7:R$13,\"N/A\",0)","v":"N/A"},{"$f":"_xlfn.XLOOKUP($E36,'Competitive Activity 2'!$B$7:$B$13,'Competitive Activity 2'!S$7:S$13,\"N/A\",0)","v":"N/A"},{"$f":"_xlfn.XLOOKUP($E36,'Competitive Activity 2'!$B$7:$B$13,'Competitive Activity 2'!T$7:T$13,\"N/A\",0)","v":"N/A"},{"$f":"_xlfn.XLOOKUP($E36,'Competitive Activity 2'!$B$7:$B$13,'Competitive Activity 2'!U$7:U$13,\"N/A\",0)","v":"N/A"},{"$f":"_xlfn.XLOOKUP($E36,'Competitive Activity 2'!$B$17:$B$23,'Competitive Activity 2'!D$17:D$23,\"N/A\",0)","v":"N/A"},{"$f":"_xlfn.XLOOKUP($E36,'Competitive Activity 2'!$B$17:$B$23,'Competitive Activity 2'!E$17:E$23,\"N/A\",0)","v":"N/A"},{"$f":"_xlfn.XLOOKUP($E36,'Competitive Activity 2'!$B$17:$B$23,'Competitive Activity 2'!F$17:F$23,\"N/A\",0)","v":"N/A"},{"$f":"_xlfn.XLOOKUP($E36,'Competitive Activity 2'!$B$17:$B$23,'Competitive Activity 2'!G$17:G$23,\"N/A\",0)","v":"N/A"},{"$f":"_xlfn.XLOOKUP($E36,'Competitive Activity 2'!$B$17:$B$23,'Competitive Activity 2'!H$17:H$23,\"N/A\",0)","v":"N/A"},{"$f":"_xlfn.XLOOKUP($E36,'Competitive Activity 2'!$B$17:$B$23,'Competitive Activity 2'!I$17:I$23,\"N/A\",0)","v":"N/A"},{"$f":"_xlfn.XLOOKUP($E36,'Competitive Activity 2'!$B$17:$B$23,'Competitive Activity 2'!J$17:J$23,\"N/A\",0)","v":"N/A"},{"$f":"_xlfn.XLOOKUP($E36,'Competitive Activity 2'!$B$17:$B$23,'Competitive Activity 2'!K$17:K$23,\"N/A\",0)","v":"N/A"},{"$f":"_xlfn.XLOOKUP($E36,'Competitive Activity 2'!$B$17:$B$23,'Competitive Activity 2'!L$17:L$23,\"N/A\",0)","v":"N/A"},{"$f":"_xlfn.XLOOKUP($E36,'Competitive Activity 2'!$B$17:$B$23,'Competitive Activity 2'!M$17:M$23,\"N/A\",0)","v":"N/A"},{"$f":"_xlfn.XLOOKUP($E36,'Competitive Activity 2'!$B$17:$B$23,'Competitive Activity 2'!N$17:N$23,\"N/A\",0)","v":"N/A"},{"$f":"_xlfn.XLOOKUP($E36,'Competitive Activity 2'!$B$27:$B$33,'Competitive Activity 2'!D$27:D$33,\"N/A\",0)","v":"N/A"},{"$f":"_xlfn.XLOOKUP($E36,'Competitive Activity 2'!$B$27:$B$33,'Competitive Activity 2'!E$27:E$33,\"N/A\",0)","v":"N/A"},{"$f":"_xlfn.XLOOKUP($E36,'Competitive Activity 2'!$B$27:$B$33,'Competitive Activity 2'!F$27:F$33,\"N/A\",0)","v":"N/A"},{"$f":"_xlfn.XLOOKUP($E36,'Competitive Activity 2'!$B$27:$B$33,'Competitive Activity 2'!G$27:G$33,\"N/A\",0)","v":"N/A"},{"$f":"_xlfn.XLOOKUP($E36,'Competitive Activity 2'!$B$27:$B$33,'Competitive Activity 2'!H$27:H$33,\"N/A\",0)","v":"N/A"},{"$f":"_xlfn.XLOOKUP($E36,'Competitive Activity 2'!$B$27:$B$33,'Competitive Activity 2'!I$27:I$33,\"N/A\",0)","v":"N/A"},{"$f":"_xlfn.XLOOKUP($E36,'Competitive Activity 2'!$B$27:$B$33,'Competitive Activity 2'!J$27:J$33,\"N/A\",0)","v":"N/A"},{"$f":"_xlfn.XLOOKUP($E36,'Competitive Activity 2'!$B$27:$B$33,'Competitive Activity 2'!K$27:K$33,\"N/A\",0)","v":"N/A"},{"$f":"_xlfn.XLOOKUP($E36,'Competitive Activity 2'!$B$27:$B$33,'Competitive Activity 2'!M$27:M$33,\"N/A\",0)","v":"N/A"}]
[{"$f":"'1-Cover Sheet'!$C$8","v":"Select One"},{"$f":"'1-Cover Sheet'!$F$8","v":"Select One"},{"$f":"'Summary Sheet'!$D$8","v":0},{"$f":"'Summary Sheet'!$D$10","v":0},{"$f":"'Drop Down Box'!B201","v":0},{"$f":"'Drop Down Box'!C201","v":0},{"$f":"'Drop Down Box'!D201","v":"Select One"},{"$f":"_xlfn.XLOOKUP(E37,'Drop Down Box'!$B$166:$B$249,'Drop Down Box'!$A$166:$A$249,\"Unknown\",0)","v":"Activity 1"},{"$f":"_xlfn.XLOOKUP($E37,'Activity 6'!$B$32:$B$38,'Activity 6'!L$32:L$38,\"N/A\",0)","v":"N/A"},{"$f":"_xlfn.XLOOKUP($E37,'Activity 6'!$B$32:$B$38,'Activity 6'!N$32:N$38,\"N/A\",0)","v":"N/A"},{"$f":"_xlfn.XLOOKUP($E37,'Activity 6'!$B$7:$B$13,'Activity 6'!H$7:H$13,\"N/A\",0)","v":"N/A"},{"$f":"_xlfn.XLOOKUP($E37,'Activity 6'!$B$7:$B$13,'Activity 6'!I$7:I$13,\"N/A\",0)","v":"N/A"},{"$f":"_xlfn.XLOOKUP($E37,'Activity 6'!$B$7:$B$13,'Activity 6'!J$7:J$13,\"N/A\",0)","v":"N/A"},{"$f":"_xlfn.XLOOKUP($E37,'Activity 1'!$B$7:$B$13,'Activity 1'!$A$7:$A$13,\"No\",0,1)","v":"No"},{"$f":"_xlfn.XLOOKUP($E37,'Activity 1'!$B$7:$B$13,'Activity 1'!$H$7:$H$13,\"N/A\",0,1)","v":"N/A"},{"$f":"_xlfn.XLOOKUP($E37,'Activity 1'!$B$7:$B$13,'Activity 1'!I$7:I$13,\"N/A\",0,1)","v":"N/A"},{"$f":"_xlfn.XLOOKUP($E37,'Activity 1'!$B$7:$B$13,'Activity 1'!J$7:J$13,\"N/A\",0,1)","v":"N/A"},{"$f":"_xlfn.XLOOKUP($E37,'Activity 1'!$B$7:$B$13,'Activity 1'!K$7:K$13,\"N/A\",0,1)","v":"N/A"},{"$f":"_xlfn.XLOOKUP($E37,'Activity 1'!$B$7:$B$13,'Activity 1'!L$7:L$13,\"N/A\",0,1)","v":"N/A"},{"$f":"_xlfn.XLOOKUP($E37,'Activity 1'!$B$7:$B$13,'Activity 1'!M$7:M$13,\"N/A\",0,1)","v":"N/A"},{"$f":"_xlfn.XLOOKUP($E37,'Activity 1'!$B$7:$B$13,'Activity 1'!N$7:N$13,\"N/A\",0,1)","v":"N/A"},0,{"$f":"_xlfn.XLOOKUP($E37,'Activity 1'!$B$7:$B$13,'Activity 1'!O$7:O$13,\"N/A\",0,1)","v":"N/A"},{"$f":"_xlfn.XLOOKUP($E37,'Activity 1'!$B$7:$B$13,'Activity 1'!P$7:P$13,\"N/A\",0,1)","v":"N/A"},{"$f":"_xlfn.XLOOKUP($E37,'Activity 1'!$B$7:$B$13,'Activity 1'!Q$7:Q$13,\"N/A\",0,1)","v":"N/A"},{"$f":"_xlfn.XLOOKUP($E37,'Activity 1'!$B$7:$B$13,'Activity 1'!R$7:R$13,\"N/A\",0,1)","v":"N/A"},{"$f":"_xlfn.XLOOKUP($E37,'Activity 1'!$B$7:$B$13,'Activity 1'!S$7:S$13,\"N/A\",0,1)","v":"N/A"},{"$f":"_xlfn.XLOOKUP($E37,'Activity 1'!$B$7:$B$13,'Activity 1'!T$7:T$13,\"N/A\",0,1)","v":"N/A"},{"$f":"_xlfn.XLOOKUP($E37,'Activity 1'!$B$7:$B$13,'Activity 1'!U$7:U$13,\"N/A\",0,1)","v":"N/A"},{"$f":"_xlfn.XLOOKUP($E37,'Activity 1'!$B$7:$B$13,'Activity 1'!V$7:V$13,\"N/A\",0,1)","v":"N/A"},{"$f":"_xlfn.XLOOKUP($E37,'Activity 1'!$B$17:$B$23,'Activity 1'!C$17:C$23,\"N/A\",0,1)","v":"N/A"},{"$f":"_xlfn.XLOOKUP($E37,'Activity 1'!$B$17:$B$23,'Activity 1'!D$17:D$23,\"N/A\",0,1)","v":"N/A"},{"$f":"_xlfn.XLOOKUP($E37,'Activity 1'!$B$17:$B$23,'Activity 1'!E$17:E$23,\"N/A\",0,1)","v":"N/A"},{"$f":"_xlfn.XLOOKUP($E37,'Activity 1'!$B$17:$B$23,'Activity 1'!F$17:F$23,\"N/A\",0,1)","v":"N/A"},{"$f":"_xlfn.XLOOKUP($E37,'Activity 1'!$B$17:$B$23,'Activity 1'!G$17:G$23,\"N/A\",0,1)","v":"N/A"},{"$f":"_xlfn.XLOOKUP($E37,'Activity 1'!$B$17:$B$23,'Activity 1'!H$17:H$23,\"N/A\",0,1)","v":"N/A"},{"$f":"_xlfn.XLOOKUP($E37,'Activity 1'!$B$17:$B$23,'Activity 1'!I$17:I$23,\"N/A\",0,1)","v":"N/A"},{"$f":"_xlfn.XLOOKUP($E37,'Activity 1'!$B$17:$B$23,'Activity 1'!J$17:J$23,\"N/A\",0,1)","v":"N/A"},{"$f":"_xlfn.XLOOKUP($E37,'Activity 1'!$B$17:$B$23,'Activity 1'!K$17:K$23,\"N/A\",0,1)","v":"N/A"},{"$f":"_xlfn.XLOOKUP($E37,'Activity 1'!$B$17:$B$23,'Activity 1'!L$17:L$23,\"N/A\",0,1)","v":"N/A"},{"$f":"_xlfn.XLOOKUP($E37,'Activity 1'!$B$17:$B$23,'Activity 1'!M$17:M$23,\"N/A\",0,1)","v":"N/A"},{"$f":"_xlfn.XLOOKUP($E37,'Activity 1'!$B$17:$B$23,'Activity 1'!O$17:O$23,\"N/A\",0,1)","v":"N/A"},{"$f":"_xlfn.XLOOKUP($E37,'Activity 1'!$B$17:$B$23,'Activity 1'!Q$17:Q$23,\"N/A\",0,1)","v":"N/A"},{"$f":"_xlfn.XLOOKUP($E37,'Activity 2'!$B$7:$B$13,'Activity 2'!$A$7:$A$13,\"No\",0,1)","v":"No"},{"$f":"_xlfn.XLOOKUP($E37,'Activity 2'!B$7:B$13,'Activity 2'!H$7:H$13,\"N/A\",0)","v":"N/A"},{"$f":"_xlfn.XLOOKUP($E37,'Activity 2'!C$7:C$13,'Activity 2'!I$7:I$13,\"N/A\",0)","v":"N/A"},{"$f":"_xlfn.XLOOKUP($E37,'Activity 2'!D$7:D$13,'Activity 2'!J$7:J$13,\"N/A\",0)","v":"N/A"},{"$f":"_xlfn.XLOOKUP($E37,'Activity 2'!E$7:E$13,'Activity 2'!K$7:K$13,\"N/A\",0)","v":"N/A"},{"$f":"_xlfn.XLOOKUP($E37,'Activity 2'!F$7:F$13,'Activity 2'!L$7:L$13,\"N/A\",0)","v":"N/A"},{"$f":"_xlfn.XLOOKUP($E37,'Activity 2'!G$7:G$13,'Activity 2'!M$7:M$13,\"N/A\",0)","v":"N/A"},{"$f":"_xlfn.XLOOKUP($E37,'Activity 2'!H$7:H$13,'Activity 2'!N$7:N$13,\"N/A\",0)","v":"N/A"},{"$f":"_xlfn.XLOOKUP($E37,'Activity 2'!I$7:I$13,'Activity 2'!O$7:O$13,\"N/A\",0)","v":"N/A"},{"$f":"_xlfn.XLOOKUP($E37,'Activity 2'!J$7:J$13,'Activity 2'!P$7:P$13,\"N/A\",0)","v":"N/A"},{"$f":"_xlfn.XLOOKUP($E37,'Activity 2'!K$7:K$13,'Activity 2'!Q$7:Q$13,\"N/A\",0)","v":"N/A"},{"$f":"_xlfn.XLOOKUP($E37,'Activity 2'!L$7:L$13,'Activity 2'!R$7:R$13,\"N/A\",0)","v":"N/A"},{"$f":"_xlfn.XLOOKUP($E37,'Activity 2'!M$7:M$13,'Activity 2'!S$7:S$13,\"N/A\",0)","v":"N/A"},{"$f":"_xlfn.XLOOKUP($E37,'Activity 2'!N$7:N$13,'Activity 2'!T$7:T$13,\"N/A\",0)","v":"N/A"},{"$f":"_xlfn.XLOOKUP($E37,'Activity 2'!O$7:O$13,'Activity 2'!U$7:U$13,\"N/A\",0)","v":"N/A"},{"$f":"_xlfn.XLOOKUP($E37,'Activity 2'!P$7:P$13,'Activity 2'!V$7:V$13,\"N/A\",0)","v":"N/A"},{"$f":"_xlfn.XLOOKUP($E37,'Activity 2'!$B$17:$B$23,'Activity 2'!C$17:C$23,\"N/A\",0,1)","v":"N/A"},{"$f":"_xlfn.XLOOKUP($E37,'Activity 2'!$B$17:$B$23,'Activity 2'!D$17:D$23,\"N/A\",0,1)","v":"N/A"},{"$f":"_xlfn.XLOOKUP($E37,'Activity 2'!$B$17:$B$23,'Activity 2'!E$17:E$23,\"N/A\",0,1)","v":"N/A"},{"$f":"_xlfn.XLOOKUP($E37,'Activity 2'!$B$17:$B$23,'Activity 2'!F$17:F$23,\"N/A\",0,1)","v":"N/A"},{"$f":"_xlfn.XLOOKUP($E37,'Activity 2'!$B$17:$B$23,'Activity 2'!G$17:G$23,\"N/A\",0,1)","v":"N/A"},{"$f":"_xlfn.XLOOKUP($E37,'Activity 2'!$B$17:$B$23,'Activity 2'!H$17:H$23,\"N/A\",0,1)","v":"N/A"},{"$f":"_xlfn.XLOOKUP($E37,'Activity 2'!$B$17:$B$23,'Activity 2'!I$17:I$23,\"N/A\",0,1)","v":"N/A"},{"$f":"_xlfn.XLOOKUP($E37,'Activity 2'!$B$17:$B$23,'Activity 2'!J$17:J$23,\"N/A\",0,1)","v":"N/A"},{"$f":"_xlfn.XLOOKUP($E37,'Activity 2'!$B$17:$B$23,'Activity 2'!K$17:K$23,\"N/A\",0,1)","v":"N/A"},{"$f":"_xlfn.XLOOKUP($E37,'Activity 2'!$B$17:$B$23,'Activity 2'!L$17:L$23,\"N/A\",0,1)","v":"N/A"},{"$f":"_xlfn.XLOOKUP($E37,'Activity 2'!$B$17:$B$23,'Activity 2'!M$17:M$23,\"N/A\",0,1)","v":"N/A"},{"$f":"_xlfn.XLOOKUP($E37,'Activity 2'!$B$17:$B$23,'Activity 2'!O$17:O$23,\"N/A\",0,1)","v":"N/A"},{"$f":"_xlfn.XLOOKUP($E37,'Activity 2'!$B$17:$B$23,'Activity 2'!Q$17:Q$23,\"N/A\",0,1)","v":"N/A"},null,{"$f":"_xlfn.XLOOKUP($E37,'Activity 3'!$B$8:$B$14,'Activity 3'!K$8:K$14,\"N/A\",0,1)","v":"N/A"},{"$f":"_xlfn.XLOOKUP($E37,'Activity 3'!$B$8:$B$14,'Activity 3'!L$8:L$14,\"N/A\",0,1)","v":"N/A"},{"$f":"_xlfn.XLOOKUP($E37,'Activity 3'!$B$8:$B$14,'Activity 3'!M$8:M$14,\"N/A\",0,1)","v":"N/A"},{"$f":"_xlfn.XLOOKUP($E37,'Activity 3'!$B$8:$B$14,'Activity 3'!N$8:N$14,\"N/A\",0,1)","v":"N/A"},{"$f":"_xlfn.XLOOKUP($E37,'Activity 3'!$B$8:$B$14,'Activity 3'!O$8:O$14,\"N/A\",0,1)","v":"N/A"},{"$f":"_xlfn.XLOOKUP($E37,'Activity 3'!$B$8:$B$14,'Activity 3'!R$8:R$14,\"N/A\",0,1)","v":"N/A"},{"$f":"_xlfn.XLOOKUP($E37,'Activity 4'!$B$8:$B$14,'Activity 4'!$A$8:$A$14,\"No\",0,1)","v":"No"},{"$f":"_xlfn.XLOOKUP($E37,'Activity 4'!$B$8:$B$14,'Activity 4'!L$8:L$14,\"N/A\",0,1)","v":"N/A"},{"$f":"_xlfn.XLOOKUP($E37,'Activity 4'!$B$8:$B$14,'Activity 4'!I$8:I$14,\"N/A\",0,1)","v":"N/A"},{"$f":"_xlfn.XLOOKUP($E37,'Activity 4'!$B$8:$B$14,'Activity 4'!M$8:M$14,\"N/A\",0,1)","v":"N/A"},{"$f":"_xlfn.XLOOKUP($E37,'Activity 5'!$B$8:$B$14,'Activity 5'!$A$8:$A$14,\"No\",0,1)","v":"No"},{"$f":"_xlfn.XLOOKUP($E37,'Activity 5'!$B$8:$B$14,'Activity 5'!J$8:J$14,\"N/A\",0,1)","v":"N/A"},{"$f":"_xlfn.XLOOKUP($E37,'Activity 5'!$B$8:$B$14,'Activity 5'!K$8:K$14,\"N/A\",0,1)","v":"N/A"},{"$f":"_xlfn.XLOOKUP($E37,'Activity 5'!$B$8:$B$14,'Activity 5'!N$8:N$14,\"N/A\",0,1)","v":"N/A"},{"$f":"_xlfn.XLOOKUP($E37,'Activity 5'!$B$8:$B$14,'Activity 5'!O$8:O$14,\"N/A\",0,1)","v":"N/A"},{"$f":"_xlfn.XLOOKUP($E37,'Activity 5'!$B$8:$B$14,'Activity 5'!P$8:P$14,\"N/A\",0,1)","v":"N/A"},{"$f":"_xlfn.XLOOKUP($E37,'Activity 5'!$B$8:$B$14,'Activity 5'!Q$8:Q$14,\"N/A\",0,1)","v":"N/A"},{"$f":"_xlfn.XLOOKUP($E37,'Activity 5'!$B$8:$B$14,'Activity 5'!R$8:R$14,\"N/A\",0,1)","v":"N/A"},{"$f":"_xlfn.XLOOKUP($E37,'Activity 6'!$B$7:$B$13,'Activity 6'!A$7:A$13,\"No\",0,1)","v":"No"},{"$f":"_xlfn.XLOOKUP($E37,'Activity 6'!$B$7:$B$13,'Activity 6'!K$7:K$13,\"N/A\",0,1)","v":"N/A"},{"$f":"_xlfn.XLOOKUP($E37,'Activity 6'!$B$7:$B$13,'Activity 6'!L$7:L$13,\"N/A\",0,1)","v":"N/A"},{"$f":"_xlfn.XLOOKUP($E37,'Activity 6'!$B$7:$B$13,'Activity 6'!M$7:M$13,\"N/A\",0,1)","v":"N/A"},{"$f":"_xlfn.XLOOKUP($E37,'Activity 6'!$B$7:$B$13,'Activity 6'!N$7:N$13,\"N/A\",0,1)","v":"N/A"},{"$f":"_xlfn.XLOOKUP($E37,'Activity 6'!$B$7:$B$13,'Activity 6'!O$7:O$13,\"N/A\",0,1)","v":"N/A"},{"$f":"_xlfn.XLOOKUP($E37,'Activity 6'!$B$7:$B$13,'Activity 6'!P$7:P$13,\"N/A\",0,1)","v":"N/A"},{"$f":"_xlfn.XLOOKUP($E37,'Activity 6'!$B$7:$B$13,'Activity 6'!Q$7:Q$13,\"N/A\",0,1)","v":"N/A"},{"$f":"_xlfn.XLOOKUP($E37,'Activity 6'!$B$7:$B$13,'Activity 6'!R$7:R$13,\"N/A\",0,1)","v":"N/A"},{"$f":"_xlfn.XLOOKUP($E37,'Activity 6'!$B$7:$B$13,'Activity 6'!S$7:S$13,\"N/A\",0,1)","v":"N/A"},{"$f":"_xlfn.XLOOKUP($E37,'Activity 6'!$B$7:$B$13,'Activity 6'!T$7:T$13,\"N/A\",0,1)","v":"N/A"},{"$f":"_xlfn.XLOOKUP($E37,'Activity 6'!$B$7:$B$13,'Activity 6'!U$7:U$13,\"N/A\",0,1)","v":"N/A"},{"$f":"_xlfn.XLOOKUP($E37,'Activity 6'!$B$22:$B$28,'Activity 6'!C$22:C$28,\"N/A\",0,1)","v":"N/A"},{"$f":"_xlfn.XLOOKUP($E37,'Activity 6'!$B$22:$B$28,'Activity 6'!D$22:D$28,\"N/A\",0,1)","v":"N/A"},{"$f":"_xlfn.XLOOKUP($E37,'Activity 6'!$B$22:$B$28,'Activity 6'!E$22:E$28,\"N/A\",0,1)","v":"N/A"},{"$f":"_xlfn.XLOOKUP($E37,'Activity 6'!$B$22:$B$28,'Activity 6'!F$22:F$28,\"N/A\",0,1)","v":"N/A"},{"$f":"_xlfn.XLOOKUP($E37,'Activity 6'!$B$22:$B$28,'Activity 6'!G$22:G$28,\"N/A\",0,1)","v":"N/A"},{"$f":"_xlfn.XLOOKUP($E37,'Activity 6'!$B$22:$B$28,'Activity 6'!H$22:H$28,\"N/A\",0,1)","v":"N/A"},{"$f":"_xlfn.XLOOKUP($E37,'Activity 6'!$B$22:$B$28,'Activity 6'!I$22:I$28,\"N/A\",0,1)","v":"N/A"},{"$f":"_xlfn.XLOOKUP($E37,'Activity 6'!$B$22:$B$28,'Activity 6'!J$22:J$28,\"N/A\",0,1)","v":"N/A"},{"$f":"_xlfn.XLOOKUP($E37,'Activity 6'!$B$22:$B$28,'Activity 6'!K$22:K$28,\"N/A\",0,1)","v":"N/A"},{"$f":"_xlfn.XLOOKUP($E37,'Activity 6'!$B$22:$B$28,'Activity 6'!L$22:L$28,\"N/A\",0,1)","v":"N/A"},{"$f":"_xlfn.XLOOKUP($E37,'Activity 6'!$B$22:$B$28,'Activity 6'!M$22:M$28,\"N/A\",0,1)","v":"N/A"},{"$f":"_xlfn.XLOOKUP($E37,'Activity 6'!$B$22:$B$28,'Activity 6'!N$22:N$28,\"N/A\",0,1)","v":"N/A"},{"$f":"_xlfn.XLOOKUP($E37,'Activity 6'!$B$32:$B$38,'Activity 6'!C$32:C$38,\"N/A\",0,1)","v":"N/A"},{"$f":"_xlfn.XLOOKUP($E37,'Activity 6'!$B$32:$B$38,'Activity 6'!D$32:D$38,\"N/A\",0,1)","v":"N/A"},{"$f":"_xlfn.XLOOKUP($E37,'Activity 6'!$B$32:$B$38,'Activity 6'!E$32:E$38,\"N/A\",0,1)","v":"N/A"},{"$f":"_xlfn.XLOOKUP($E37,'Activity 6'!$B$32:$B$38,'Activity 6'!F$32:F$38,\"N/A\",0,1)","v":"N/A"},{"$f":"_xlfn.XLOOKUP($E37,'Activity 6'!$B$32:$B$38,'Activity 6'!G$32:G$38,\"N/A\",0,1)","v":"N/A"},{"$f":"_xlfn.XLOOKUP($E37,'Activity 6'!$B$32:$B$38,'Activity 6'!H$32:H$38,\"N/A\",0,1)","v":"N/A"},{"$f":"_xlfn.XLOOKUP($E37,'Activity 6'!$B$32:$B$38,'Activity 6'!I$32:I$38,\"N/A\",0,1)","v":"N/A"},{"$f":"_xlfn.XLOOKUP($E37,'Activity 6'!$B$32:$B$38,'Activity 6'!J$32:J$38,\"N/A\",0,1)","v":"N/A"},{"$f":"_xlfn.XLOOKUP($E37,'Activity 6'!$B$32:$B$38,'Activity 6'!K$32:K$38,\"N/A\",0,1)","v":"N/A"},{"$f":"_xlfn.XLOOKUP($E37,'Activity 6'!$B$32:$B$38,'Activity 6'!M$32:M$38,\"N/A\",0,1)","v":"N/A"},{"$f":"_xlfn.XLOOKUP($E37,'Activity 7'!$B$7:$B$13,'Activity 7'!$A$7:$A$13,\"No\",0,1)","v":"No"},{"$f":"_xlfn.XLOOKUP($E37,'Activity 7'!$B$7:$B$13,'Activity 7'!M$7:M$13,\"N/A\",0,1)","v":"N/A"},{"$f":"_xlfn.XLOOKUP($E37,'Activity 7'!$B$7:$B$13,'Activity 7'!K$7:K$13,\"N/A\",0,1)","v":"N/A"},{"$f":"_xlfn.XLOOKUP($E37,'Activity 7'!$B$7:$B$13,'Activity 7'!N$7:N$13,\"N/A\",0,1)","v":"N/A"},{"$f":"_xlfn.XLOOKUP($E37,'Activity 7'!$B$7:$B$13,'Activity 7'!O$7:O$13,\"N/A\",0,1)","v":"N/A"},{"$f":"_xlfn.XLOOKUP($E37,'Activity 7'!$B$7:$B$13,'Activity 7'!P$7:P$13,\"N/A\",0,1)","v":"N/A"},{"$f":"_xlfn.XLOOKUP($E37,'Activity 7'!$B$7:$B$13,'Activity 7'!Q$7:Q$13,\"N/A\",0,1)","v":"N/A"},{"$f":"_xlfn.XLOOKUP($E37,'Activity 7'!$B$7:$B$13,'Activity 7'!R$7:R$13,\"N/A\",0,1)","v":"N/A"},{"$f":"_xlfn.XLOOKUP($E37,'Activity 7'!$B$7:$B$13,'Activity 7'!S$7:S$13,\"N/A\",0,1)","v":"N/A"},{"$f":"_xlfn.XLOOKUP($E37,'Activity 7'!$B$7:$B$13,'Activity 7'!T$7:T$13,\"N/A\",0,1)","v":"N/A"},{"$f":"_xlfn.XLOOKUP($E37,'Activity 7'!$B$7:$B$13,'Activity 7'!U$7:U$13,\"N/A\",0,1)","v":"N/A"},{"$f":"_xlfn.XLOOKUP($E37,'Activity 7'!$B$7:$B$13,'Activity 7'!V$7:V$13,\"N/A\",0,1)","v":"N/A"},{"$f":"_xlfn.XLOOKUP($E37,'Activity 7'!$B$17:$B$23,'Activity 7'!E$17:E$23,\"N/A\",0,1)","v":"N/A"},{"$f":"_xlfn.XLOOKUP($E37,'Activity 7'!$B$17:$B$23,'Activity 7'!G$17:G$23,\"N/A\",0,1)","v":"N/A"},{"$f":"_xlfn.XLOOKUP($E37,'Activity 7'!$B$17:$B$23,'Activity 7'!I$17:I$23,\"N/A\",0,1)","v":"N/A"},{"$f":"_xlfn.XLOOKUP($E37,'Activity 7'!$B$17:$B$23,'Activity 7'!J$17:J$23,\"N/A\",0,1)","v":"N/A"},{"$f":"_xlfn.XLOOKUP($E37,'Activity 7'!$B$17:$B$23,'Activity 7'!K$17:K$23,\"N/A\",0,1)","v":"N/A"},{"$f":"_xlfn.XLOOKUP($E37,'Activity 7'!$B$17:$B$23,'Activity 7'!L$17:L$23,\"N/A\",0,1)","v":"N/A"},{"$f":"_xlfn.XLOOKUP($E37,'Activity 7'!$B$17:$B$23,'Activity 7'!M$17:M$23,\"N/A\",0,1)","v":"N/A"},{"$f":"_xlfn.XLOOKUP($E37,'Activity 7'!$B$17:$B$23,'Activity 7'!N$17:N$23,\"N/A\",0,1)","v":"N/A"},{"$f":"_xlfn.XLOOKUP($E37,'Activity 7'!$B$17:$B$23,'Activity 7'!P$17:P$23,\"N/A\",0,1)","v":"N/A"},{"$f":"_xlfn.XLOOKUP($E37,'Activity 8'!$B$7:$B$13,'Activity 8'!A$7:A$13,\"No\",0,1)","v":"No"},{"$f":"_xlfn.XLOOKUP($E37,'Activity 8'!$B$7:$B$13,'Activity 8'!I$7:I$13,\"N/A\",0,1)","v":"N/A"},{"$f":"_xlfn.XLOOKUP($E37,'Activity 8'!$B$7:$B$13,'Activity 8'!J$7:J$13,\"N/A\",0,1)","v":"N/A"},{"$f":"_xlfn.XLOOKUP($E37,'Activity 8'!$B$7:$B$13,'Activity 8'!K$7:K$13,\"N/A\",0,1)","v":"N/A"},{"$f":"_xlfn.XLOOKUP($E37,'Activity 8'!$B$7:$B$13,'Activity 8'!L$7:L$13,\"N/A\",0,1)","v":"N/A"},{"$f":"_xlfn.XLOOKUP($E37,'Activity 8'!$B$7:$B$13,'Activity 8'!M$7:M$13,\"N/A\",0,1)","v":"N/A"},{"$f":"_xlfn.XLOOKUP($E37,'Activity 8'!$B$7:$B$13,'Activity 8'!N$7:N$13,\"N/A\",0,1)","v":"N/A"},{"$f":"_xlfn.XLOOKUP($E37,'Activity 8'!$B$7:$B$13,'Activity 8'!O$7:O$13,\"N/A\",0,1)","v":"N/A"},{"$f":"_xlfn.XLOOKUP($E37,'Activity 8'!$B$7:$B$13,'Activity 8'!P$7:P$13,\"N/A\",0,1)","v":"N/A"},{"$f":"_xlfn.XLOOKUP($E37,'Activity 8'!$B$7:$B$13,'Activity 8'!Q$7:Q$13,\"N/A\",0,1)","v":"N/A"},{"$f":"_xlfn.XLOOKUP($E37,'Activity 8'!$B$7:$B$13,'Activity 8'!R$7:R$13,\"N/A\",0,1)","v":"N/A"},{"$f":"_xlfn.XLOOKUP($E37,'Activity 8'!$B$7:$B$13,'Activity 8'!S$7:S$13,\"N/A\",0,1)","v":"N/A"},{"$f":"_xlfn.XLOOKUP($E37,'Activity 8'!$B$7:$B$13,'Activity 8'!T$7:T$13,\"N/A\",0,1)","v":"N/A"},{"$f":"_xlfn.XLOOKUP($E37,'Activity 8'!$B$7:$B$13,'Activity 8'!U$7:U$13,\"N/A\",0,1)","v":"N/A"},{"$f":"_xlfn.XLOOKUP($E37,'Activity 8'!$B$7:$B$13,'Activity 8'!V$7:V$13,\"N/A\",0,1)","v":"N/A"},{"$f":"_xlfn.XLOOKUP($E37,'Activity 8'!$B$17:$B$23,'Activity 8'!D$17:D$23,\"N/A\",0,1)","v":"N/A"},{"$f":"_xlfn.XLOOKUP($E37,'Activity 8'!$B$17:$B$23,'Activity 8'!E$17:E$23,\"N/A\",0,1)","v":"N/A"},{"$f":"_xlfn.XLOOKUP($E37,'Activity 8'!$B$17:$B$23,'Activity 8'!F$17:F$23,\"N/A\",0,1)","v":"N/A"},{"$f":"_xlfn.XLOOKUP($E37,'Activity 8'!$B$17:$B$23,'Activity 8'!G$17:G$23,\"N/A\",0,1)","v":"N/A"},{"$f":"_xlfn.XLOOKUP($E37,'Activity 8'!$B$17:$B$23,'Activity 8'!H$17:H$23,\"N/A\",0,1)","v":"N/A"},{"$f":"_xlfn.XLOOKUP($E37,'Activity 8'!$B$17:$B$23,'Activity 8'!I$17:I$23,\"N/A\",0,1)","v":"N/A"},{"$f":"_xlfn.XLOOKUP($E37,'Activity 8'!$B$17:$B$23,'Activity 8'!J$17:J$23,\"N/A\",0,1)","v":"N/A"},{"$f":"_xlfn.XLOOKUP($E37,'Activity 8'!$B$17:$B$23,'Activity 8'!K$17:K$23,\"N/A\",0,1)","v":"N/A"},{"$f":"_xlfn.XLOOKUP($E37,'Activity 8'!$B$17:$B$23,'Activity 8'!L$17:L$23,\"N/A\",0,1)","v":"N/A"},{"$f":"_xlfn.XLOOKUP($E37,'Activity 8'!$B$17:$B$23,'Activity 8'!M$17:M$23,\"N/A\",0,1)","v":"N/A"},{"$f":"_xlfn.XLOOKUP($E37,'Activity 8'!$B$17:$B$23,'Activity 8'!N$17:N$23,\"N/A\",0,1)","v":"N/A"},{"$f":"_xlfn.XLOOKUP($E37,'Activity 8'!$B$17:$B$23,'Activity 8'!P$17:P$23,\"N/A\",0,1)","v":"N/A"},{"$f":"_xlfn.XLOOKUP(E37,'Activity 9'!$B$7:$B$13,'Activity 9'!$A$7:$A$13,\"No\",0,1)","v":"No"},{"$f":"_xlfn.XLOOKUP($E37,'Activity 9'!$B$7:$B$13,'Activity 9'!J$7:J$13,\"N/A\",0,1)","v":"N/A"},{"$f":"_xlfn.XLOOKUP($E37,'Activity 9'!$B$7:$B$13,'Activity 9'!K$7:K$13,\"N/A\",0,1)","v":"N/A"},{"$f":"_xlfn.XLOOKUP($E37,'Activity 9'!$B$7:$B$13,'Activity 9'!L$7:L$13,\"N/A\",0,1)","v":"N/A"},{"$f":"_xlfn.XLOOKUP($E37,'Activity 9'!$B$7:$B$13,'Activity 9'!M$7:M$13,\"N/A\",0,1)","v":"N/A"},{"$f":"_xlfn.XLOOKUP($E37,'Activity 9'!$B$7:$B$13,'Activity 9'!N$7:N$13,\"N/A\",0,1)","v":"N/A"},{"$f":"_xlfn.XLOOKUP($E37,'Activity 9'!$B$7:$B$13,'Activity 9'!O$7:O$13,\"N/A\",0,1)","v":"N/A"},{"$f":"_xlfn.XLOOKUP($E37,'Activity 9'!$B$7:$B$13,'Activity 9'!P$7:P$13,\"N/A\",0,1)","v":"N/A"},{"$f":"_xlfn.XLOOKUP($E37,'Activity 9'!$B$7:$B$13,'Activity 9'!Q$7:Q$13,\"N/A\",0,1)","v":"N/A"},{"$f":"_xlfn.XLOOKUP($E37,'Activity 9'!$B$7:$B$13,'Activity 9'!R$7:R$13,\"N/A\",0,1)","v":"N/A"},{"$f":"_xlfn.XLOOKUP($E37,'Activity 9'!$B$7:$B$13,'Activity 9'!S$7:S$13,\"N/A\",0,1)","v":"N/A"},{"$f":"_xlfn.XLOOKUP($E37,'Activity 9'!$B$7:$B$13,'Activity 9'!T$7:T$13,\"N/A\",0,1)","v":"N/A"},{"$f":"_xlfn.XLOOKUP($E37,'Activity 9'!$B$17:$B$23,'Activity 9'!E$17:E$23,\"N/A\",0,1)","v":"N/A"},{"$f":"_xlfn.XLOOKUP($E37,'Activity 9'!$B$17:$B$23,'Activity 9'!F$17:F$23,\"N/A\",0,1)","v":"N/A"},{"$f":"_xlfn.XLOOKUP($E37,'Activity 9'!$B$17:$B$23,'Activity 9'!G$17:G$23,\"N/A\",0,1)","v":"N/A"},{"$f":"_xlfn.XLOOKUP($E37,'Activity 9'!$B$17:$B$23,'Activity 9'!H$17:H$23,\"N/A\",0,1)","v":"N/A"},{"$f":"_xlfn.XLOOKUP($E37,'Activity 9'!$B$17:$B$23,'Activity 9'!I$17:I$23,\"N/A\",0,1)","v":"N/A"},{"$f":"_xlfn.XLOOKUP($E37,'Activity 9'!$B$17:$B$23,'Activity 9'!J$17:J$23,\"N/A\",0,1)","v":"N/A"},{"$f":"_xlfn.XLOOKUP($E37,'Activity 9'!$B$17:$B$23,'Activity 9'!K$17:K$23,\"N/A\",0,1)","v":"N/A"},{"$f":"_xlfn.XLOOKUP($E37,'Activity 9'!$B$17:$B$23,'Activity 9'!L$17:L$23,\"N/A\",0,1)","v":"N/A"},{"$f":"_xlfn.XLOOKUP($E37,'Activity 9'!$B$17:$B$23,'Activity 9'!N$17:N$23,\"N/A\",0,1)","v":"N/A"},{"$f":"_xlfn.XLOOKUP($E37,'Activity 9'!$B$17:$B$23,'Activity 9'!O$17:O$23,\"N/A\",0,1)","v":"N/A"},{"$f":"_xlfn.XLOOKUP($E37,'Activity 9'!$B$17:$B$23,'Activity 9'!Q$17:Q$23,\"N/A\",0,1)","v":"N/A"},{"$f":"_xlfn.XLOOKUP($E37,'Activity 10'!$B$7:$B$13,'Activity 10'!A$7:A$13,\"No\",0,1)","v":"No"},{"$f":"_xlfn.XLOOKUP($E37,'Activity 10'!$B$7:$B$13,'Activity 10'!J$7:J$13,\"N/A\",0,1)","v":"N/A"},{"$f":"_xlfn.XLOOKUP($E37,'Activity 10'!$B$7:$B$13,'Activity 10'!K$7:K$13,\"N/A\",0,1)","v":"N/A"},{"$f":"_xlfn.XLOOKUP($E37,'Activity 10'!$B$7:$B$13,'Activity 10'!L$7:L$13,\"N/A\",0,1)","v":"N/A"},{"$f":"_xlfn.XLOOKUP($E37,'Activity 10'!$B$7:$B$13,'Activity 10'!M$7:M$13,\"N/A\",0,1)","v":"N/A"},{"$f":"_xlfn.XLOOKUP($E37,'Activity 10'!$B$7:$B$13,'Activity 10'!N$7:N$13,\"N/A\",0,1)","v":"N/A"},{"$f":"_xlfn.XLOOKUP($E37,'Activity 10'!$B$7:$B$13,'Activity 10'!O$7:O$13,\"N/A\",0,1)","v":"N/A"},{"$f":"_xlfn.XLOOKUP($E37,'Activity 10'!$B$7:$B$13,'Activity 10'!P$7:P$13,\"N/A\",0,1)","v":"N/A"},{"$f":"_xlfn.XLOOKUP($E37,'Activity 10'!$B$7:$B$13,'Activity 10'!Q$7:Q$13,\"N/A\",0,1)","v":"N/A"},{"$f":"_xlfn.XLOOKUP($E37,'Activity 10'!$B$7:$B$13,'Activity 10'!R$7:R$13,\"N/A\",0,1)","v":"N/A"},{"$f":"_xlfn.XLOOKUP($E37,'Activity 10'!$B$7:$B$13,'Activity 10'!S$7:S$13,\"N/A\",0,1)","v":"N/A"},{"$f":"_xlfn.XLOOKUP($E37,'Activity 10'!$B$7:$B$13,'Activity 10'!T$7:T$13,\"N/A\",0,1)","v":"N/A"},{"$f":"_xlfn.XLOOKUP($E37,'Activity 10'!$B$7:$B$13,'Activity 10'!U$7:U$13,\"N/A\",0,1)","v":"N/A"},{"$f":"_xlfn.XLOOKUP($E37,'Activity 10'!$B$7:$B$13,'Activity 10'!V$7:V$13,\"N/A\",0,1)","v":"N/A"},{"$f":"_xlfn.XLOOKUP($E37,'Activity 10'!$B$17:$B$23,'Activity 10'!E$17:E$23,\"N/A\",0,1)","v":"N/A"},{"$f":"_xlfn.XLOOKUP($E37,'Activity 10'!$B$17:$B$23,'Activity 10'!F$17:F$23,\"N/A\",0,1)","v":"N/A"},{"$f":"_xlfn.XLOOKUP($E37,'Activity 10'!$B$17:$B$23,'Activity 10'!G$17:G$23,\"N/A\",0,1)","v":"N/A"},{"$f":"_xlfn.XLOOKUP($E37,'Activity 10'!$B$17:$B$23,'Activity 10'!H$17:H$23,\"N/A\",0,1)","v":"N/A"},{"$f":"_xlfn.XLOOKUP($E37,'Activity 10'!$B$17:$B$23,'Activity 10'!I$17:I$23,\"N/A\",0,1)","v":"N/A"},{"$f":"_xlfn.XLOOKUP($E37,'Activity 10'!$B$17:$B$23,'Activity 10'!J$17:J$23,\"N/A\",0,1)","v":"N/A"},{"$f":"_xlfn.XLOOKUP($E37,'Activity 10'!$B$17:$B$23,'Activity 10'!K$17:K$23,\"N/A\",0,1)","v":"N/A"},{"$f":"_xlfn.XLOOKUP($E37,'Activity 10'!$B$17:$B$23,'Activity 10'!L$17:L$23,\"N/A\",0,1)","v":"N/A"},{"$f":"_xlfn.XLOOKUP($E37,'Activity 10'!$B$17:$B$23,'Activity 10'!M$17:M$23,\"N/A\",0,1)","v":"N/A"},{"$f":"_xlfn.XLOOKUP($E37,'Activity 10'!$B$17:$B$23,'Activity 10'!N$17:N$23,\"N/A\",0,1)","v":"N/A"},{"$f":"_xlfn.XLOOKUP($E37,'Activity 10'!$B$17:$B$23,'Activity 10'!P$17:P$23,\"N/A\",0,1)","v":"N/A"},{"$f":"_xlfn.XLOOKUP($E37,'Competitive Activity 1'!B$7:B$13,'Competitive Activity 1'!A$7:A$13,\"No\",0,1)","v":"No"},{"$f":"_xlfn.XLOOKUP($E37,'Competitive Activity 1'!$B$7:$B$13,'Competitive Activity 1'!H$7:H$13,\"N/A\",0,1)","v":"N/A"},{"$f":"_xlfn.XLOOKUP($E37,'Competitive Activity 1'!$B$7:$B$13,'Competitive Activity 1'!I$7:I$13,\"N/A\",0,1)","v":"N/A"},{"$f":"_xlfn.XLOOKUP($E37,'Competitive Activity 1'!$B$7:$B$13,'Competitive Activity 1'!J$7:J$13,\"N/A\",0,1)","v":"N/A"},{"$f":"_xlfn.XLOOKUP($E37,'Competitive Activity 1'!$B$7:$B$13,'Competitive Activity 1'!K$7:K$13,\"N/A\",0,1)","v":"N/A"},{"$f":"_xlfn.XLOOKUP($E37,'Competitive Activity 1'!$B$7:$B$13,'Competitive Activity 1'!L$7:L$13,\"N/A\",0,1)","v":"N/A"},{"$f":"_xlfn.XLOOKUP($E37,'Competitive Activity 1'!$B$7:$B$13,'Competitive Activity 1'!M$7:M$13,\"N/A\",0,1)","v":"N/A"},{"$f":"_xlfn.XLOOKUP($E37,'Competitive Activity 1'!$B$7:$B$13,'Competitive Activity 1'!N$7:N$13,\"N/A\",0,1)","v":"N/A"},{"$f":"_xlfn.XLOOKUP($E37,'Competitive Activity 1'!$B$7:$B$13,'Competitive Activity 1'!O$7:O$13,\"N/A\",0,1)","v":"N/A"},{"$f":"_xlfn.XLOOKUP($E37,'Competitive Activity 1'!$B$7:$B$13,'Competitive Activity 1'!P$7:P$13,\"N/A\",0,1)","v":"N/A"},{"$f":"_xlfn.XLOOKUP($E37,'Competitive Activity 1'!$B$7:$B$13,'Competitive Activity 1'!Q$7:Q$13,\"N/A\",0,1)","v":"N/A"},{"$f":"_xlfn.XLOOKUP($E37,'Competitive Activity 1'!$B$7:$B$13,'Competitive Activity 1'!R$7:R$13,\"N/A\",0,1)","v":"N/A"},{"$f":"_xlfn.XLOOKUP($E37,'Competitive Activity 1'!$B$7:$B$13,'Competitive Activity 1'!S$7:S$13,\"N/A\",0,1)","v":"N/A"},{"$f":"_xlfn.XLOOKUP($E37,'Competitive Activity 1'!$B$7:$B$13,'Competitive Activity 1'!T$7:T$13,\"N/A\",0,1)","v":"N/A"},{"$f":"_xlfn.XLOOKUP($E37,'Competitive Activity 1'!$B$7:$B$13,'Competitive Activity 1'!U$7:U$13,\"N/A\",0,1)","v":"N/A"},{"$f":"_xlfn.XLOOKUP($E37,'Competitive Activity 1'!$B$17:$B$23,'Competitive Activity 1'!C$17:C$23,\"N/A\",0,1)","v":"N/A"},{"$f":"_xlfn.XLOOKUP($E37,'Competitive Activity 1'!$B$17:$B$23,'Competitive Activity 1'!D$17:D$23,\"N/A\",0,1)","v":"N/A"},{"$f":"_xlfn.XLOOKUP($E37,'Competitive Activity 1'!$B$17:$B$23,'Competitive Activity 1'!E$17:E$23,\"N/A\",0,1)","v":"N/A"},{"$f":"_xlfn.XLOOKUP($E37,'Competitive Activity 1'!$B$17:$B$23,'Competitive Activity 1'!F$17:F$23,\"N/A\",0,1)","v":"N/A"},{"$f":"_xlfn.XLOOKUP($E37,'Competitive Activity 1'!$B$17:$B$23,'Competitive Activity 1'!G$17:G$23,\"N/A\",0,1)","v":"N/A"},{"$f":"_xlfn.XLOOKUP($E37,'Competitive Activity 1'!$B$17:$B$23,'Competitive Activity 1'!H$17:H$23,\"N/A\",0,1)","v":"N/A"},{"$f":"_xlfn.XLOOKUP($E37,'Competitive Activity 1'!$B$17:$B$23,'Competitive Activity 1'!I$17:I$23,\"N/A\",0,1)","v":"N/A"},{"$f":"_xlfn.XLOOKUP($E37,'Competitive Activity 1'!$B$17:$B$23,'Competitive Activity 1'!J$17:J$23,\"N/A\",0,1)","v":"N/A"},{"$f":"_xlfn.XLOOKUP($E37,'Competitive Activity 1'!$B$17:$B$23,'Competitive Activity 1'!K$17:K$23,\"N/A\",0,1)","v":"N/A"},{"$f":"_xlfn.XLOOKUP($E37,'Competitive Activity 1'!$B$17:$B$23,'Competitive Activity 1'!M$17:M$23,\"N/A\",0,1)","v":"N/A"},{"$f":"_xlfn.XLOOKUP($E37,'Competitive Activity 1'!$B$17:$B$23,'Competitive Activity 1'!N$17:N$23,\"N/A\",0,1)","v":"N/A"},{"$f":"_xlfn.XLOOKUP($E37,'Competitive Activity 1'!$B$17:$B$23,'Competitive Activity 1'!P$17:P$23,\"N/A\",0,1)","v":"N/A"},{"$f":"_xlfn.XLOOKUP($E37,'Competitive Activity 2'!$B$7:$B$13,'Competitive Activity 2'!A$7:A$13,\"No\",0)","v":"No"},{"$f":"_xlfn.XLOOKUP($E37,'Competitive Activity 2'!$B$7:$B$13,'Competitive Activity 2'!L$7:L$13,\"N/A\",0)","v":"N/A"},{"$f":"_xlfn.XLOOKUP($E37,'Competitive Activity 2'!$B$7:$B$13,'Competitive Activity 2'!M$7:M$13,\"N/A\",0)","v":"N/A"},{"$f":"_xlfn.XLOOKUP($E37,'Competitive Activity 2'!$B$7:$B$13,'Competitive Activity 2'!N$7:N$13,\"N/A\",0)","v":"N/A"},{"$f":"_xlfn.XLOOKUP($E37,'Competitive Activity 2'!$B$7:$B$13,'Competitive Activity 2'!O$7:O$13,\"N/A\",0)","v":"N/A"},{"$f":"_xlfn.XLOOKUP($E37,'Competitive Activity 2'!$B$7:$B$13,'Competitive Activity 2'!P$7:P$13,\"N/A\",0)","v":"N/A"},{"$f":"_xlfn.XLOOKUP($E37,'Competitive Activity 2'!$B$7:$B$13,'Competitive Activity 2'!Q$7:Q$13,\"N/A\",0)","v":"N/A"},{"$f":"_xlfn.XLOOKUP($E37,'Competitive Activity 2'!$B$7:$B$13,'Competitive Activity 2'!R$7:R$13,\"N/A\",0)","v":"N/A"},{"$f":"_xlfn.XLOOKUP($E37,'Competitive Activity 2'!$B$7:$B$13,'Competitive Activity 2'!S$7:S$13,\"N/A\",0)","v":"N/A"},{"$f":"_xlfn.XLOOKUP($E37,'Competitive Activity 2'!$B$7:$B$13,'Competitive Activity 2'!T$7:T$13,\"N/A\",0)","v":"N/A"},{"$f":"_xlfn.XLOOKUP($E37,'Competitive Activity 2'!$B$7:$B$13,'Competitive Activity 2'!U$7:U$13,\"N/A\",0)","v":"N/A"},{"$f":"_xlfn.XLOOKUP($E37,'Competitive Activity 2'!$B$17:$B$23,'Competitive Activity 2'!D$17:D$23,\"N/A\",0)","v":"N/A"},{"$f":"_xlfn.XLOOKUP($E37,'Competitive Activity 2'!$B$17:$B$23,'Competitive Activity 2'!E$17:E$23,\"N/A\",0)","v":"N/A"},{"$f":"_xlfn.XLOOKUP($E37,'Competitive Activity 2'!$B$17:$B$23,'Competitive Activity 2'!F$17:F$23,\"N/A\",0)","v":"N/A"},{"$f":"_xlfn.XLOOKUP($E37,'Competitive Activity 2'!$B$17:$B$23,'Competitive Activity 2'!G$17:G$23,\"N/A\",0)","v":"N/A"},{"$f":"_xlfn.XLOOKUP($E37,'Competitive Activity 2'!$B$17:$B$23,'Competitive Activity 2'!H$17:H$23,\"N/A\",0)","v":"N/A"},{"$f":"_xlfn.XLOOKUP($E37,'Competitive Activity 2'!$B$17:$B$23,'Competitive Activity 2'!I$17:I$23,\"N/A\",0)","v":"N/A"},{"$f":"_xlfn.XLOOKUP($E37,'Competitive Activity 2'!$B$17:$B$23,'Competitive Activity 2'!J$17:J$23,\"N/A\",0)","v":"N/A"},{"$f":"_xlfn.XLOOKUP($E37,'Competitive Activity 2'!$B$17:$B$23,'Competitive Activity 2'!K$17:K$23,\"N/A\",0)","v":"N/A"},{"$f":"_xlfn.XLOOKUP($E37,'Competitive Activity 2'!$B$17:$B$23,'Competitive Activity 2'!L$17:L$23,\"N/A\",0)","v":"N/A"},{"$f":"_xlfn.XLOOKUP($E37,'Competitive Activity 2'!$B$17:$B$23,'Competitive Activity 2'!M$17:M$23,\"N/A\",0)","v":"N/A"},{"$f":"_xlfn.XLOOKUP($E37,'Competitive Activity 2'!$B$17:$B$23,'Competitive Activity 2'!N$17:N$23,\"N/A\",0)","v":"N/A"},{"$f":"_xlfn.XLOOKUP($E37,'Competitive Activity 2'!$B$27:$B$33,'Competitive Activity 2'!D$27:D$33,\"N/A\",0)","v":"N/A"},{"$f":"_xlfn.XLOOKUP($E37,'Competitive Activity 2'!$B$27:$B$33,'Competitive Activity 2'!E$27:E$33,\"N/A\",0)","v":"N/A"},{"$f":"_xlfn.XLOOKUP($E37,'Competitive Activity 2'!$B$27:$B$33,'Competitive Activity 2'!F$27:F$33,\"N/A\",0)","v":"N/A"},{"$f":"_xlfn.XLOOKUP($E37,'Competitive Activity 2'!$B$27:$B$33,'Competitive Activity 2'!G$27:G$33,\"N/A\",0)","v":"N/A"},{"$f":"_xlfn.XLOOKUP($E37,'Competitive Activity 2'!$B$27:$B$33,'Competitive Activity 2'!H$27:H$33,\"N/A\",0)","v":"N/A"},{"$f":"_xlfn.XLOOKUP($E37,'Competitive Activity 2'!$B$27:$B$33,'Competitive Activity 2'!I$27:I$33,\"N/A\",0)","v":"N/A"},{"$f":"_xlfn.XLOOKUP($E37,'Competitive Activity 2'!$B$27:$B$33,'Competitive Activity 2'!J$27:J$33,\"N/A\",0)","v":"N/A"},{"$f":"_xlfn.XLOOKUP($E37,'Competitive Activity 2'!$B$27:$B$33,'Competitive Activity 2'!K$27:K$33,\"N/A\",0)","v":"N/A"},{"$f":"_xlfn.XLOOKUP($E37,'Competitive Activity 2'!$B$27:$B$33,'Competitive Activity 2'!M$27:M$33,\"N/A\",0)","v":"N/A"}]
[{"$f":"'1-Cover Sheet'!$C$8","v":"Select One"},{"$f":"'1-Cover Sheet'!$F$8","v":"Select One"},{"$f":"'Summary Sheet'!$D$8","v":0},{"$f":"'Summary Sheet'!$D$10","v":0},{"$f":"'Drop Down Box'!B202","v":0},{"$f":"'Drop Down Box'!C202","v":0},{"$f":"'Drop Down Box'!D202","v":"Select One"},{"$f":"_xlfn.XLOOKUP(E38,'Drop Down Box'!$B$166:$B$249,'Drop Down Box'!$A$166:$A$249,\"Unknown\",0)","v":"Activity 1"},{"$f":"_xlfn.XLOOKUP($E38,'Activity 6'!$B$32:$B$38,'Activity 6'!$L$32:$L$38,\"N/A\",0)","v":"N/A"},{"$f":"_xlfn.XLOOKUP($E38,'Activity 6'!$B$32:$B$38,'Activity 6'!N$32:N$38,\"N/A\",0)","v":"N/A"},{"$f":"_xlfn.XLOOKUP($E38,'Activity 6'!$B$7:$B$13,'Activity 6'!H$7:H$13,\"N/A\",0)","v":"N/A"},{"$f":"_xlfn.XLOOKUP($E38,'Activity 6'!$B$7:$B$13,'Activity 6'!I$7:I$13,\"N/A\",0)","v":"N/A"},{"$f":"_xlfn.XLOOKUP($E38,'Activity 6'!$B$7:$B$13,'Activity 6'!J$7:J$13,\"N/A\",0)","v":"N/A"},{"$f":"_xlfn.XLOOKUP($E38,'Activity 1'!$B$7:$B$13,'Activity 1'!$A$7:$A$13,\"No\",0,1)","v":"No"},{"$f":"_xlfn.XLOOKUP($E38,'Activity 1'!$B$7:$B$13,'Activity 1'!$H$7:$H$13,\"N/A\",0,1)","v":"N/A"},{"$f":"_xlfn.XLOOKUP($E38,'Activity 1'!$B$7:$B$13,'Activity 1'!I$7:I$13,\"N/A\",0,1)","v":"N/A"},{"$f":"_xlfn.XLOOKUP($E38,'Activity 1'!$B$7:$B$13,'Activity 1'!J$7:J$13,\"N/A\",0,1)","v":"N/A"},{"$f":"_xlfn.XLOOKUP($E38,'Activity 1'!$B$7:$B$13,'Activity 1'!K$7:K$13,\"N/A\",0,1)","v":"N/A"},{"$f":"_xlfn.XLOOKUP($E38,'Activity 1'!$B$7:$B$13,'Activity 1'!L$7:L$13,\"N/A\",0,1)","v":"N/A"},{"$f":"_xlfn.XLOOKUP($E38,'Activity 1'!$B$7:$B$13,'Activity 1'!M$7:M$13,\"N/A\",0,1)","v":"N/A"},{"$f":"_xlfn.XLOOKUP($E38,'Activity 1'!$B$7:$B$13,'Activity 1'!N$7:N$13,\"N/A\",0,1)","v":"N/A"},0,{"$f":"_xlfn.XLOOKUP($E38,'Activity 1'!$B$7:$B$13,'Activity 1'!O$7:O$13,\"N/A\",0,1)","v":"N/A"},{"$f":"_xlfn.XLOOKUP($E38,'Activity 1'!$B$7:$B$13,'Activity 1'!P$7:P$13,\"N/A\",0,1)","v":"N/A"},{"$f":"_xlfn.XLOOKUP($E38,'Activity 1'!$B$7:$B$13,'Activity 1'!Q$7:Q$13,\"N/A\",0,1)","v":"N/A"},{"$f":"_xlfn.XLOOKUP($E38,'Activity 1'!$B$7:$B$13,'Activity 1'!R$7:R$13,\"N/A\",0,1)","v":"N/A"},{"$f":"_xlfn.XLOOKUP($E38,'Activity 1'!$B$7:$B$13,'Activity 1'!S$7:S$13,\"N/A\",0,1)","v":"N/A"},{"$f":"_xlfn.XLOOKUP($E38,'Activity 1'!$B$7:$B$13,'Activity 1'!T$7:T$13,\"N/A\",0,1)","v":"N/A"},{"$f":"_xlfn.XLOOKUP($E38,'Activity 1'!$B$7:$B$13,'Activity 1'!U$7:U$13,\"N/A\",0,1)","v":"N/A"},{"$f":"_xlfn.XLOOKUP($E38,'Activity 1'!$B$7:$B$13,'Activity 1'!V$7:V$13,\"N/A\",0,1)","v":"N/A"},{"$f":"_xlfn.XLOOKUP($E38,'Activity 1'!$B$17:$B$23,'Activity 1'!C$17:C$23,\"N/A\",0,1)","v":"N/A"},{"$f":"_xlfn.XLOOKUP($E38,'Activity 1'!$B$17:$B$23,'Activity 1'!D$17:D$23,\"N/A\",0,1)","v":"N/A"},{"$f":"_xlfn.XLOOKUP($E38,'Activity 1'!$B$17:$B$23,'Activity 1'!E$17:E$23,\"N/A\",0,1)","v":"N/A"},{"$f":"_xlfn.XLOOKUP($E38,'Activity 1'!$B$17:$B$23,'Activity 1'!F$17:F$23,\"N/A\",0,1)","v":"N/A"},{"$f":"_xlfn.XLOOKUP($E38,'Activity 1'!$B$17:$B$23,'Activity 1'!G$17:G$23,\"N/A\",0,1)","v":"N/A"},{"$f":"_xlfn.XLOOKUP($E38,'Activity 1'!$B$17:$B$23,'Activity 1'!H$17:H$23,\"N/A\",0,1)","v":"N/A"},{"$f":"_xlfn.XLOOKUP($E38,'Activity 1'!$B$17:$B$23,'Activity 1'!I$17:I$23,\"N/A\",0,1)","v":"N/A"},{"$f":"_xlfn.XLOOKUP($E38,'Activity 1'!$B$17:$B$23,'Activity 1'!J$17:J$23,\"N/A\",0,1)","v":"N/A"},{"$f":"_xlfn.XLOOKUP($E38,'Activity 1'!$B$17:$B$23,'Activity 1'!K$17:K$23,\"N/A\",0,1)","v":"N/A"},{"$f":"_xlfn.XLOOKUP($E38,'Activity 1'!$B$17:$B$23,'Activity 1'!L$17:L$23,\"N/A\",0,1)","v":"N/A"},{"$f":"_xlfn.XLOOKUP($E38,'Activity 1'!$B$17:$B$23,'Activity 1'!M$17:M$23,\"N/A\",0,1)","v":"N/A"},{"$f":"_xlfn.XLOOKUP($E38,'Activity 1'!$B$17:$B$23,'Activity 1'!O$17:O$23,\"N/A\",0,1)","v":"N/A"},{"$f":"_xlfn.XLOOKUP($E38,'Activity 1'!$B$17:$B$23,'Activity 1'!Q$17:Q$23,\"N/A\",0,1)","v":"N/A"},{"$f":"_xlfn.XLOOKUP($E38,'Activity 2'!$B$7:$B$13,'Activity 2'!$A$7:$A$13,\"No\",0,1)","v":"No"},{"$f":"_xlfn.XLOOKUP($E38,'Activity 2'!B$7:B$13,'Activity 2'!H$7:H$13,\"N/A\",0)","v":"N/A"},{"$f":"_xlfn.XLOOKUP($E38,'Activity 2'!C$7:C$13,'Activity 2'!I$7:I$13,\"N/A\",0)","v":"N/A"},{"$f":"_xlfn.XLOOKUP($E38,'Activity 2'!D$7:D$13,'Activity 2'!J$7:J$13,\"N/A\",0)","v":"N/A"},{"$f":"_xlfn.XLOOKUP($E38,'Activity 2'!E$7:E$13,'Activity 2'!K$7:K$13,\"N/A\",0)","v":"N/A"},{"$f":"_xlfn.XLOOKUP($E38,'Activity 2'!F$7:F$13,'Activity 2'!L$7:L$13,\"N/A\",0)","v":"N/A"},{"$f":"_xlfn.XLOOKUP($E38,'Activity 2'!G$7:G$13,'Activity 2'!M$7:M$13,\"N/A\",0)","v":"N/A"},{"$f":"_xlfn.XLOOKUP($E38,'Activity 2'!H$7:H$13,'Activity 2'!N$7:N$13,\"N/A\",0)","v":"N/A"},{"$f":"_xlfn.XLOOKUP($E38,'Activity 2'!I$7:I$13,'Activity 2'!O$7:O$13,\"N/A\",0)","v":"N/A"},{"$f":"_xlfn.XLOOKUP($E38,'Activity 2'!J$7:J$13,'Activity 2'!P$7:P$13,\"N/A\",0)","v":"N/A"},{"$f":"_xlfn.XLOOKUP($E38,'Activity 2'!K$7:K$13,'Activity 2'!Q$7:Q$13,\"N/A\",0)","v":"N/A"},{"$f":"_xlfn.XLOOKUP($E38,'Activity 2'!L$7:L$13,'Activity 2'!R$7:R$13,\"N/A\",0)","v":"N/A"},{"$f":"_xlfn.XLOOKUP($E38,'Activity 2'!M$7:M$13,'Activity 2'!S$7:S$13,\"N/A\",0)","v":"N/A"},{"$f":"_xlfn.XLOOKUP($E38,'Activity 2'!N$7:N$13,'Activity 2'!T$7:T$13,\"N/A\",0)","v":"N/A"},{"$f":"_xlfn.XLOOKUP($E38,'Activity 2'!O$7:O$13,'Activity 2'!U$7:U$13,\"N/A\",0)","v":"N/A"},{"$f":"_xlfn.XLOOKUP($E38,'Activity 2'!P$7:P$13,'Activity 2'!V$7:V$13,\"N/A\",0)","v":"N/A"},{"$f":"_xlfn.XLOOKUP($E38,'Activity 2'!$B$17:$B$23,'Activity 2'!C$17:C$23,\"N/A\",0,1)","v":"N/A"},{"$f":"_xlfn.XLOOKUP($E38,'Activity 2'!$B$17:$B$23,'Activity 2'!D$17:D$23,\"N/A\",0,1)","v":"N/A"},{"$f":"_xlfn.XLOOKUP($E38,'Activity 2'!$B$17:$B$23,'Activity 2'!E$17:E$23,\"N/A\",0,1)","v":"N/A"},{"$f":"_xlfn.XLOOKUP($E38,'Activity 2'!$B$17:$B$23,'Activity 2'!F$17:F$23,\"N/A\",0,1)","v":"N/A"},{"$f":"_xlfn.XLOOKUP($E38,'Activity 2'!$B$17:$B$23,'Activity 2'!G$17:G$23,\"N/A\",0,1)","v":"N/A"},{"$f":"_xlfn.XLOOKUP($E38,'Activity 2'!$B$17:$B$23,'Activity 2'!H$17:H$23,\"N/A\",0,1)","v":"N/A"},{"$f":"_xlfn.XLOOKUP($E38,'Activity 2'!$B$17:$B$23,'Activity 2'!I$17:I$23,\"N/A\",0,1)","v":"N/A"},{"$f":"_xlfn.XLOOKUP($E38,'Activity 2'!$B$17:$B$23,'Activity 2'!J$17:J$23,\"N/A\",0,1)","v":"N/A"},{"$f":"_xlfn.XLOOKUP($E38,'Activity 2'!$B$17:$B$23,'Activity 2'!K$17:K$23,\"N/A\",0,1)","v":"N/A"},{"$f":"_xlfn.XLOOKUP($E38,'Activity 2'!$B$17:$B$23,'Activity 2'!L$17:L$23,\"N/A\",0,1)","v":"N/A"},{"$f":"_xlfn.XLOOKUP($E38,'Activity 2'!$B$17:$B$23,'Activity 2'!M$17:M$23,\"N/A\",0,1)","v":"N/A"},{"$f":"_xlfn.XLOOKUP($E38,'Activity 2'!$B$17:$B$23,'Activity 2'!O$17:O$23,\"N/A\",0,1)","v":"N/A"},{"$f":"_xlfn.XLOOKUP($E38,'Activity 2'!$B$17:$B$23,'Activity 2'!Q$17:Q$23,\"N/A\",0,1)","v":"N/A"},null,{"$f":"_xlfn.XLOOKUP($E38,'Activity 3'!$B$8:$B$14,'Activity 3'!K$8:K$14,\"N/A\",0,1)","v":"N/A"},{"$f":"_xlfn.XLOOKUP($E38,'Activity 3'!$B$8:$B$14,'Activity 3'!L$8:L$14,\"N/A\",0,1)","v":"N/A"},{"$f":"_xlfn.XLOOKUP($E38,'Activity 3'!$B$8:$B$14,'Activity 3'!M$8:M$14,\"N/A\",0,1)","v":"N/A"},{"$f":"_xlfn.XLOOKUP($E38,'Activity 3'!$B$8:$B$14,'Activity 3'!N$8:N$14,\"N/A\",0,1)","v":"N/A"},{"$f":"_xlfn.XLOOKUP($E38,'Activity 3'!$B$8:$B$14,'Activity 3'!O$8:O$14,\"N/A\",0,1)","v":"N/A"},{"$f":"_xlfn.XLOOKUP($E38,'Activity 3'!$B$8:$B$14,'Activity 3'!R$8:R$14,\"N/A\",0,1)","v":"N/A"},{"$f":"_xlfn.XLOOKUP($E38,'Activity 4'!$B$8:$B$14,'Activity 4'!$A$8:$A$14,\"No\",0,1)","v":"No"},{"$f":"_xlfn.XLOOKUP($E38,'Activity 4'!$B$8:$B$14,'Activity 4'!L$8:L$14,\"N/A\",0,1)","v":"N/A"},{"$f":"_xlfn.XLOOKUP($E38,'Activity 4'!$B$8:$B$14,'Activity 4'!I$8:I$14,\"N/A\",0,1)","v":"N/A"},{"$f":"_xlfn.XLOOKUP($E38,'Activity 4'!$B$8:$B$14,'Activity 4'!M$8:M$14,\"N/A\",0,1)","v":"N/A"},{"$f":"_xlfn.XLOOKUP($E38,'Activity 5'!$B$8:$B$14,'Activity 5'!$A$8:$A$14,\"No\",0,1)","v":"No"},{"$f":"_xlfn.XLOOKUP($E38,'Activity 5'!$B$8:$B$14,'Activity 5'!J$8:J$14,\"N/A\",0,1)","v":"N/A"},{"$f":"_xlfn.XLOOKUP($E38,'Activity 5'!$B$8:$B$14,'Activity 5'!K$8:K$14,\"N/A\",0,1)","v":"N/A"},{"$f":"_xlfn.XLOOKUP($E38,'Activity 5'!$B$8:$B$14,'Activity 5'!N$8:N$14,\"N/A\",0,1)","v":"N/A"},{"$f":"_xlfn.XLOOKUP($E38,'Activity 5'!$B$8:$B$14,'Activity 5'!O$8:O$14,\"N/A\",0,1)","v":"N/A"},{"$f":"_xlfn.XLOOKUP($E38,'Activity 5'!$B$8:$B$14,'Activity 5'!P$8:P$14,\"N/A\",0,1)","v":"N/A"},{"$f":"_xlfn.XLOOKUP($E38,'Activity 5'!$B$8:$B$14,'Activity 5'!Q$8:Q$14,\"N/A\",0,1)","v":"N/A"},{"$f":"_xlfn.XLOOKUP($E38,'Activity 5'!$B$8:$B$14,'Activity 5'!R$8:R$14,\"N/A\",0,1)","v":"N/A"},{"$f":"_xlfn.XLOOKUP($E38,'Activity 6'!$B$7:$B$13,'Activity 6'!A$7:A$13,\"No\",0,1)","v":"No"},{"$f":"_xlfn.XLOOKUP($E38,'Activity 6'!$B$7:$B$13,'Activity 6'!K$7:K$13,\"N/A\",0,1)","v":"N/A"},{"$f":"_xlfn.XLOOKUP($E38,'Activity 6'!$B$7:$B$13,'Activity 6'!L$7:L$13,\"N/A\",0,1)","v":"N/A"},{"$f":"_xlfn.XLOOKUP($E38,'Activity 6'!$B$7:$B$13,'Activity 6'!M$7:M$13,\"N/A\",0,1)","v":"N/A"},{"$f":"_xlfn.XLOOKUP($E38,'Activity 6'!$B$7:$B$13,'Activity 6'!N$7:N$13,\"N/A\",0,1)","v":"N/A"},{"$f":"_xlfn.XLOOKUP($E38,'Activity 6'!$B$7:$B$13,'Activity 6'!O$7:O$13,\"N/A\",0,1)","v":"N/A"},{"$f":"_xlfn.XLOOKUP($E38,'Activity 6'!$B$7:$B$13,'Activity 6'!P$7:P$13,\"N/A\",0,1)","v":"N/A"},{"$f":"_xlfn.XLOOKUP($E38,'Activity 6'!$B$7:$B$13,'Activity 6'!Q$7:Q$13,\"N/A\",0,1)","v":"N/A"},{"$f":"_xlfn.XLOOKUP($E38,'Activity 6'!$B$7:$B$13,'Activity 6'!R$7:R$13,\"N/A\",0,1)","v":"N/A"},{"$f":"_xlfn.XLOOKUP($E38,'Activity 6'!$B$7:$B$13,'Activity 6'!S$7:S$13,\"N/A\",0,1)","v":"N/A"},{"$f":"_xlfn.XLOOKUP($E38,'Activity 6'!$B$7:$B$13,'Activity 6'!T$7:T$13,\"N/A\",0,1)","v":"N/A"},{"$f":"_xlfn.XLOOKUP($E38,'Activity 6'!$B$7:$B$13,'Activity 6'!U$7:U$13,\"N/A\",0,1)","v":"N/A"},{"$f":"_xlfn.XLOOKUP($E38,'Activity 6'!$B$22:$B$28,'Activity 6'!C$22:C$28,\"N/A\",0,1)","v":"N/A"},{"$f":"_xlfn.XLOOKUP($E38,'Activity 6'!$B$22:$B$28,'Activity 6'!D$22:D$28,\"N/A\",0,1)","v":"N/A"},{"$f":"_xlfn.XLOOKUP($E38,'Activity 6'!$B$22:$B$28,'Activity 6'!E$22:E$28,\"N/A\",0,1)","v":"N/A"},{"$f":"_xlfn.XLOOKUP($E38,'Activity 6'!$B$22:$B$28,'Activity 6'!F$22:F$28,\"N/A\",0,1)","v":"N/A"},{"$f":"_xlfn.XLOOKUP($E38,'Activity 6'!$B$22:$B$28,'Activity 6'!G$22:G$28,\"N/A\",0,1)","v":"N/A"},{"$f":"_xlfn.XLOOKUP($E38,'Activity 6'!$B$22:$B$28,'Activity 6'!H$22:H$28,\"N/A\",0,1)","v":"N/A"},{"$f":"_xlfn.XLOOKUP($E38,'Activity 6'!$B$22:$B$28,'Activity 6'!I$22:I$28,\"N/A\",0,1)","v":"N/A"},{"$f":"_xlfn.XLOOKUP($E38,'Activity 6'!$B$22:$B$28,'Activity 6'!J$22:J$28,\"N/A\",0,1)","v":"N/A"},{"$f":"_xlfn.XLOOKUP($E38,'Activity 6'!$B$22:$B$28,'Activity 6'!K$22:K$28,\"N/A\",0,1)","v":"N/A"},{"$f":"_xlfn.XLOOKUP($E38,'Activity 6'!$B$22:$B$28,'Activity 6'!L$22:L$28,\"N/A\",0,1)","v":"N/A"},{"$f":"_xlfn.XLOOKUP($E38,'Activity 6'!$B$22:$B$28,'Activity 6'!M$22:M$28,\"N/A\",0,1)","v":"N/A"},{"$f":"_xlfn.XLOOKUP($E38,'Activity 6'!$B$22:$B$28,'Activity 6'!N$22:N$28,\"N/A\",0,1)","v":"N/A"},{"$f":"_xlfn.XLOOKUP($E38,'Activity 6'!$B$32:$B$38,'Activity 6'!C$32:C$38,\"N/A\",0,1)","v":"N/A"},{"$f":"_xlfn.XLOOKUP($E38,'Activity 6'!$B$32:$B$38,'Activity 6'!D$32:D$38,\"N/A\",0,1)","v":"N/A"},{"$f":"_xlfn.XLOOKUP($E38,'Activity 6'!$B$32:$B$38,'Activity 6'!E$32:E$38,\"N/A\",0,1)","v":"N/A"},{"$f":"_xlfn.XLOOKUP($E38,'Activity 6'!$B$32:$B$38,'Activity 6'!F$32:F$38,\"N/A\",0,1)","v":"N/A"},{"$f":"_xlfn.XLOOKUP($E38,'Activity 6'!$B$32:$B$38,'Activity 6'!G$32:G$38,\"N/A\",0,1)","v":"N/A"},{"$f":"_xlfn.XLOOKUP($E38,'Activity 6'!$B$32:$B$38,'Activity 6'!H$32:H$38,\"N/A\",0,1)","v":"N/A"},{"$f":"_xlfn.XLOOKUP($E38,'Activity 6'!$B$32:$B$38,'Activity 6'!I$32:I$38,\"N/A\",0,1)","v":"N/A"},{"$f":"_xlfn.XLOOKUP($E38,'Activity 6'!$B$32:$B$38,'Activity 6'!J$32:J$38,\"N/A\",0,1)","v":"N/A"},{"$f":"_xlfn.XLOOKUP($E38,'Activity 6'!$B$32:$B$38,'Activity 6'!K$32:K$38,\"N/A\",0,1)","v":"N/A"},{"$f":"_xlfn.XLOOKUP($E38,'Activity 6'!$B$32:$B$38,'Activity 6'!M$32:M$38,\"N/A\",0,1)","v":"N/A"},{"$f":"_xlfn.XLOOKUP($E38,'Activity 7'!$B$7:$B$13,'Activity 7'!$A$7:$A$13,\"No\",0,1)","v":"No"},{"$f":"_xlfn.XLOOKUP($E38,'Activity 7'!$B$7:$B$13,'Activity 7'!M$7:M$13,\"N/A\",0,1)","v":"N/A"},{"$f":"_xlfn.XLOOKUP($E38,'Activity 7'!$B$7:$B$13,'Activity 7'!K$7:K$13,\"N/A\",0,1)","v":"N/A"},{"$f":"_xlfn.XLOOKUP($E38,'Activity 7'!$B$7:$B$13,'Activity 7'!N$7:N$13,\"N/A\",0,1)","v":"N/A"},{"$f":"_xlfn.XLOOKUP($E38,'Activity 7'!$B$7:$B$13,'Activity 7'!O$7:O$13,\"N/A\",0,1)","v":"N/A"},{"$f":"_xlfn.XLOOKUP($E38,'Activity 7'!$B$7:$B$13,'Activity 7'!P$7:P$13,\"N/A\",0,1)","v":"N/A"},{"$f":"_xlfn.XLOOKUP($E38,'Activity 7'!$B$7:$B$13,'Activity 7'!Q$7:Q$13,\"N/A\",0,1)","v":"N/A"},{"$f":"_xlfn.XLOOKUP($E38,'Activity 7'!$B$7:$B$13,'Activity 7'!R$7:R$13,\"N/A\",0,1)","v":"N/A"},{"$f":"_xlfn.XLOOKUP($E38,'Activity 7'!$B$7:$B$13,'Activity 7'!S$7:S$13,\"N/A\",0,1)","v":"N/A"},{"$f":"_xlfn.XLOOKUP($E38,'Activity 7'!$B$7:$B$13,'Activity 7'!T$7:T$13,\"N/A\",0,1)","v":"N/A"},{"$f":"_xlfn.XLOOKUP($E38,'Activity 7'!$B$7:$B$13,'Activity 7'!U$7:U$13,\"N/A\",0,1)","v":"N/A"},{"$f":"_xlfn.XLOOKUP($E38,'Activity 7'!$B$7:$B$13,'Activity 7'!V$7:V$13,\"N/A\",0,1)","v":"N/A"},{"$f":"_xlfn.XLOOKUP($E38,'Activity 7'!$B$17:$B$23,'Activity 7'!E$17:E$23,\"N/A\",0,1)","v":"N/A"},{"$f":"_xlfn.XLOOKUP($E38,'Activity 7'!$B$17:$B$23,'Activity 7'!G$17:G$23,\"N/A\",0,1)","v":"N/A"},{"$f":"_xlfn.XLOOKUP($E38,'Activity 7'!$B$17:$B$23,'Activity 7'!I$17:I$23,\"N/A\",0,1)","v":"N/A"},{"$f":"_xlfn.XLOOKUP($E38,'Activity 7'!$B$17:$B$23,'Activity 7'!J$17:J$23,\"N/A\",0,1)","v":"N/A"},{"$f":"_xlfn.XLOOKUP($E38,'Activity 7'!$B$17:$B$23,'Activity 7'!K$17:K$23,\"N/A\",0,1)","v":"N/A"},{"$f":"_xlfn.XLOOKUP($E38,'Activity 7'!$B$17:$B$23,'Activity 7'!L$17:L$23,\"N/A\",0,1)","v":"N/A"},{"$f":"_xlfn.XLOOKUP($E38,'Activity 7'!$B$17:$B$23,'Activity 7'!M$17:M$23,\"N/A\",0,1)","v":"N/A"},{"$f":"_xlfn.XLOOKUP($E38,'Activity 7'!$B$17:$B$23,'Activity 7'!N$17:N$23,\"N/A\",0,1)","v":"N/A"},{"$f":"_xlfn.XLOOKUP($E38,'Activity 7'!$B$17:$B$23,'Activity 7'!P$17:P$23,\"N/A\",0,1)","v":"N/A"},{"$f":"_xlfn.XLOOKUP($E38,'Activity 8'!$B$7:$B$13,'Activity 8'!A$7:A$13,\"No\",0,1)","v":"No"},{"$f":"_xlfn.XLOOKUP($E38,'Activity 8'!$B$7:$B$13,'Activity 8'!I$7:I$13,\"N/A\",0,1)","v":"N/A"},{"$f":"_xlfn.XLOOKUP($E38,'Activity 8'!$B$7:$B$13,'Activity 8'!J$7:J$13,\"N/A\",0,1)","v":"N/A"},{"$f":"_xlfn.XLOOKUP($E38,'Activity 8'!$B$7:$B$13,'Activity 8'!K$7:K$13,\"N/A\",0,1)","v":"N/A"},{"$f":"_xlfn.XLOOKUP($E38,'Activity 8'!$B$7:$B$13,'Activity 8'!L$7:L$13,\"N/A\",0,1)","v":"N/A"},{"$f":"_xlfn.XLOOKUP($E38,'Activity 8'!$B$7:$B$13,'Activity 8'!M$7:M$13,\"N/A\",0,1)","v":"N/A"},{"$f":"_xlfn.XLOOKUP($E38,'Activity 8'!$B$7:$B$13,'Activity 8'!N$7:N$13,\"N/A\",0,1)","v":"N/A"},{"$f":"_xlfn.XLOOKUP($E38,'Activity 8'!$B$7:$B$13,'Activity 8'!O$7:O$13,\"N/A\",0,1)","v":"N/A"},{"$f":"_xlfn.XLOOKUP($E38,'Activity 8'!$B$7:$B$13,'Activity 8'!P$7:P$13,\"N/A\",0,1)","v":"N/A"},{"$f":"_xlfn.XLOOKUP($E38,'Activity 8'!$B$7:$B$13,'Activity 8'!Q$7:Q$13,\"N/A\",0,1)","v":"N/A"},{"$f":"_xlfn.XLOOKUP($E38,'Activity 8'!$B$7:$B$13,'Activity 8'!R$7:R$13,\"N/A\",0,1)","v":"N/A"},{"$f":"_xlfn.XLOOKUP($E38,'Activity 8'!$B$7:$B$13,'Activity 8'!S$7:S$13,\"N/A\",0,1)","v":"N/A"},{"$f":"_xlfn.XLOOKUP($E38,'Activity 8'!$B$7:$B$13,'Activity 8'!T$7:T$13,\"N/A\",0,1)","v":"N/A"},{"$f":"_xlfn.XLOOKUP($E38,'Activity 8'!$B$7:$B$13,'Activity 8'!U$7:U$13,\"N/A\",0,1)","v":"N/A"},{"$f":"_xlfn.XLOOKUP($E38,'Activity 8'!$B$7:$B$13,'Activity 8'!V$7:V$13,\"N/A\",0,1)","v":"N/A"},{"$f":"_xlfn.XLOOKUP($E38,'Activity 8'!$B$17:$B$23,'Activity 8'!D$17:D$23,\"N/A\",0,1)","v":"N/A"},{"$f":"_xlfn.XLOOKUP($E38,'Activity 8'!$B$17:$B$23,'Activity 8'!E$17:E$23,\"N/A\",0,1)","v":"N/A"},{"$f":"_xlfn.XLOOKUP($E38,'Activity 8'!$B$17:$B$23,'Activity 8'!F$17:F$23,\"N/A\",0,1)","v":"N/A"},{"$f":"_xlfn.XLOOKUP($E38,'Activity 8'!$B$17:$B$23,'Activity 8'!G$17:G$23,\"N/A\",0,1)","v":"N/A"},{"$f":"_xlfn.XLOOKUP($E38,'Activity 8'!$B$17:$B$23,'Activity 8'!H$17:H$23,\"N/A\",0,1)","v":"N/A"},{"$f":"_xlfn.XLOOKUP($E38,'Activity 8'!$B$17:$B$23,'Activity 8'!I$17:I$23,\"N/A\",0,1)","v":"N/A"},{"$f":"_xlfn.XLOOKUP($E38,'Activity 8'!$B$17:$B$23,'Activity 8'!J$17:J$23,\"N/A\",0,1)","v":"N/A"},{"$f":"_xlfn.XLOOKUP($E38,'Activity 8'!$B$17:$B$23,'Activity 8'!K$17:K$23,\"N/A\",0,1)","v":"N/A"},{"$f":"_xlfn.XLOOKUP($E38,'Activity 8'!$B$17:$B$23,'Activity 8'!L$17:L$23,\"N/A\",0,1)","v":"N/A"},{"$f":"_xlfn.XLOOKUP($E38,'Activity 8'!$B$17:$B$23,'Activity 8'!M$17:M$23,\"N/A\",0,1)","v":"N/A"},{"$f":"_xlfn.XLOOKUP($E38,'Activity 8'!$B$17:$B$23,'Activity 8'!N$17:N$23,\"N/A\",0,1)","v":"N/A"},{"$f":"_xlfn.XLOOKUP($E38,'Activity 8'!$B$17:$B$23,'Activity 8'!P$17:P$23,\"N/A\",0,1)","v":"N/A"},{"$f":"_xlfn.XLOOKUP(E38,'Activity 9'!$B$7:$B$13,'Activity 9'!$A$7:$A$13,\"No\",0,1)","v":"No"},{"$f":"_xlfn.XLOOKUP($E38,'Activity 9'!$B$7:$B$13,'Activity 9'!J$7:J$13,\"N/A\",0,1)","v":"N/A"},{"$f":"_xlfn.XLOOKUP($E38,'Activity 9'!$B$7:$B$13,'Activity 9'!K$7:K$13,\"N/A\",0,1)","v":"N/A"},{"$f":"_xlfn.XLOOKUP($E38,'Activity 9'!$B$7:$B$13,'Activity 9'!L$7:L$13,\"N/A\",0,1)","v":"N/A"},{"$f":"_xlfn.XLOOKUP($E38,'Activity 9'!$B$7:$B$13,'Activity 9'!M$7:M$13,\"N/A\",0,1)","v":"N/A"},{"$f":"_xlfn.XLOOKUP($E38,'Activity 9'!$B$7:$B$13,'Activity 9'!N$7:N$13,\"N/A\",0,1)","v":"N/A"},{"$f":"_xlfn.XLOOKUP($E38,'Activity 9'!$B$7:$B$13,'Activity 9'!O$7:O$13,\"N/A\",0,1)","v":"N/A"},{"$f":"_xlfn.XLOOKUP($E38,'Activity 9'!$B$7:$B$13,'Activity 9'!P$7:P$13,\"N/A\",0,1)","v":"N/A"},{"$f":"_xlfn.XLOOKUP($E38,'Activity 9'!$B$7:$B$13,'Activity 9'!Q$7:Q$13,\"N/A\",0,1)","v":"N/A"},{"$f":"_xlfn.XLOOKUP($E38,'Activity 9'!$B$7:$B$13,'Activity 9'!R$7:R$13,\"N/A\",0,1)","v":"N/A"},{"$f":"_xlfn.XLOOKUP($E38,'Activity 9'!$B$7:$B$13,'Activity 9'!S$7:S$13,\"N/A\",0,1)","v":"N/A"},{"$f":"_xlfn.XLOOKUP($E38,'Activity 9'!$B$7:$B$13,'Activity 9'!T$7:T$13,\"N/A\",0,1)","v":"N/A"},{"$f":"_xlfn.XLOOKUP($E38,'Activity 9'!$B$17:$B$23,'Activity 9'!E$17:E$23,\"N/A\",0,1)","v":"N/A"},{"$f":"_xlfn.XLOOKUP($E38,'Activity 9'!$B$17:$B$23,'Activity 9'!F$17:F$23,\"N/A\",0,1)","v":"N/A"},{"$f":"_xlfn.XLOOKUP($E38,'Activity 9'!$B$17:$B$23,'Activity 9'!G$17:G$23,\"N/A\",0,1)","v":"N/A"},{"$f":"_xlfn.XLOOKUP($E38,'Activity 9'!$B$17:$B$23,'Activity 9'!H$17:H$23,\"N/A\",0,1)","v":"N/A"},{"$f":"_xlfn.XLOOKUP($E38,'Activity 9'!$B$17:$B$23,'Activity 9'!I$17:I$23,\"N/A\",0,1)","v":"N/A"},{"$f":"_xlfn.XLOOKUP($E38,'Activity 9'!$B$17:$B$23,'Activity 9'!J$17:J$23,\"N/A\",0,1)","v":"N/A"},{"$f":"_xlfn.XLOOKUP($E38,'Activity 9'!$B$17:$B$23,'Activity 9'!K$17:K$23,\"N/A\",0,1)","v":"N/A"},{"$f":"_xlfn.XLOOKUP($E38,'Activity 9'!$B$17:$B$23,'Activity 9'!L$17:L$23,\"N/A\",0,1)","v":"N/A"},{"$f":"_xlfn.XLOOKUP($E38,'Activity 9'!$B$17:$B$23,'Activity 9'!N$17:N$23,\"N/A\",0,1)","v":"N/A"},{"$f":"_xlfn.XLOOKUP($E38,'Activity 9'!$B$17:$B$23,'Activity 9'!O$17:O$23,\"N/A\",0,1)","v":"N/A"},{"$f":"_xlfn.XLOOKUP($E38,'Activity 9'!$B$17:$B$23,'Activity 9'!Q$17:Q$23,\"N/A\",0,1)","v":"N/A"},{"$f":"_xlfn.XLOOKUP($E38,'Activity 10'!$B$7:$B$13,'Activity 10'!A$7:A$13,\"No\",0,1)","v":"No"},{"$f":"_xlfn.XLOOKUP($E38,'Activity 10'!$B$7:$B$13,'Activity 10'!J$7:J$13,\"N/A\",0,1)","v":"N/A"},{"$f":"_xlfn.XLOOKUP($E38,'Activity 10'!$B$7:$B$13,'Activity 10'!K$7:K$13,\"N/A\",0,1)","v":"N/A"},{"$f":"_xlfn.XLOOKUP($E38,'Activity 10'!$B$7:$B$13,'Activity 10'!L$7:L$13,\"N/A\",0,1)","v":"N/A"},{"$f":"_xlfn.XLOOKUP($E38,'Activity 10'!$B$7:$B$13,'Activity 10'!M$7:M$13,\"N/A\",0,1)","v":"N/A"},{"$f":"_xlfn.XLOOKUP($E38,'Activity 10'!$B$7:$B$13,'Activity 10'!N$7:N$13,\"N/A\",0,1)","v":"N/A"},{"$f":"_xlfn.XLOOKUP($E38,'Activity 10'!$B$7:$B$13,'Activity 10'!O$7:O$13,\"N/A\",0,1)","v":"N/A"},{"$f":"_xlfn.XLOOKUP($E38,'Activity 10'!$B$7:$B$13,'Activity 10'!P$7:P$13,\"N/A\",0,1)","v":"N/A"},{"$f":"_xlfn.XLOOKUP($E38,'Activity 10'!$B$7:$B$13,'Activity 10'!Q$7:Q$13,\"N/A\",0,1)","v":"N/A"},{"$f":"_xlfn.XLOOKUP($E38,'Activity 10'!$B$7:$B$13,'Activity 10'!R$7:R$13,\"N/A\",0,1)","v":"N/A"},{"$f":"_xlfn.XLOOKUP($E38,'Activity 10'!$B$7:$B$13,'Activity 10'!S$7:S$13,\"N/A\",0,1)","v":"N/A"},{"$f":"_xlfn.XLOOKUP($E38,'Activity 10'!$B$7:$B$13,'Activity 10'!T$7:T$13,\"N/A\",0,1)","v":"N/A"},{"$f":"_xlfn.XLOOKUP($E38,'Activity 10'!$B$7:$B$13,'Activity 10'!U$7:U$13,\"N/A\",0,1)","v":"N/A"},{"$f":"_xlfn.XLOOKUP($E38,'Activity 10'!$B$7:$B$13,'Activity 10'!V$7:V$13,\"N/A\",0,1)","v":"N/A"},{"$f":"_xlfn.XLOOKUP($E38,'Activity 10'!$B$17:$B$23,'Activity 10'!E$17:E$23,\"N/A\",0,1)","v":"N/A"},{"$f":"_xlfn.XLOOKUP($E38,'Activity 10'!$B$17:$B$23,'Activity 10'!F$17:F$23,\"N/A\",0,1)","v":"N/A"},{"$f":"_xlfn.XLOOKUP($E38,'Activity 10'!$B$17:$B$23,'Activity 10'!G$17:G$23,\"N/A\",0,1)","v":"N/A"},{"$f":"_xlfn.XLOOKUP($E38,'Activity 10'!$B$17:$B$23,'Activity 10'!H$17:H$23,\"N/A\",0,1)","v":"N/A"},{"$f":"_xlfn.XLOOKUP($E38,'Activity 10'!$B$17:$B$23,'Activity 10'!I$17:I$23,\"N/A\",0,1)","v":"N/A"},{"$f":"_xlfn.XLOOKUP($E38,'Activity 10'!$B$17:$B$23,'Activity 10'!J$17:J$23,\"N/A\",0,1)","v":"N/A"},{"$f":"_xlfn.XLOOKUP($E38,'Activity 10'!$B$17:$B$23,'Activity 10'!K$17:K$23,\"N/A\",0,1)","v":"N/A"},{"$f":"_xlfn.XLOOKUP($E38,'Activity 10'!$B$17:$B$23,'Activity 10'!L$17:L$23,\"N/A\",0,1)","v":"N/A"},{"$f":"_xlfn.XLOOKUP($E38,'Activity 10'!$B$17:$B$23,'Activity 10'!M$17:M$23,\"N/A\",0,1)","v":"N/A"},{"$f":"_xlfn.XLOOKUP($E38,'Activity 10'!$B$17:$B$23,'Activity 10'!N$17:N$23,\"N/A\",0,1)","v":"N/A"},{"$f":"_xlfn.XLOOKUP($E38,'Activity 10'!$B$17:$B$23,'Activity 10'!P$17:P$23,\"N/A\",0,1)","v":"N/A"},{"$f":"_xlfn.XLOOKUP($E38,'Competitive Activity 1'!B$7:B$13,'Competitive Activity 1'!A$7:A$13,\"No\",0,1)","v":"No"},{"$f":"_xlfn.XLOOKUP($E38,'Competitive Activity 1'!$B$7:$B$13,'Competitive Activity 1'!H$7:H$13,\"N/A\",0,1)","v":"N/A"},{"$f":"_xlfn.XLOOKUP($E38,'Competitive Activity 1'!$B$7:$B$13,'Competitive Activity 1'!I$7:I$13,\"N/A\",0,1)","v":"N/A"},{"$f":"_xlfn.XLOOKUP($E38,'Competitive Activity 1'!$B$7:$B$13,'Competitive Activity 1'!J$7:J$13,\"N/A\",0,1)","v":"N/A"},{"$f":"_xlfn.XLOOKUP($E38,'Competitive Activity 1'!$B$7:$B$13,'Competitive Activity 1'!K$7:K$13,\"N/A\",0,1)","v":"N/A"},{"$f":"_xlfn.XLOOKUP($E38,'Competitive Activity 1'!$B$7:$B$13,'Competitive Activity 1'!L$7:L$13,\"N/A\",0,1)","v":"N/A"},{"$f":"_xlfn.XLOOKUP($E38,'Competitive Activity 1'!$B$7:$B$13,'Competitive Activity 1'!M$7:M$13,\"N/A\",0,1)","v":"N/A"},{"$f":"_xlfn.XLOOKUP($E38,'Competitive Activity 1'!$B$7:$B$13,'Competitive Activity 1'!N$7:N$13,\"N/A\",0,1)","v":"N/A"},{"$f":"_xlfn.XLOOKUP($E38,'Competitive Activity 1'!$B$7:$B$13,'Competitive Activity 1'!O$7:O$13,\"N/A\",0,1)","v":"N/A"},{"$f":"_xlfn.XLOOKUP($E38,'Competitive Activity 1'!$B$7:$B$13,'Competitive Activity 1'!P$7:P$13,\"N/A\",0,1)","v":"N/A"},{"$f":"_xlfn.XLOOKUP($E38,'Competitive Activity 1'!$B$7:$B$13,'Competitive Activity 1'!Q$7:Q$13,\"N/A\",0,1)","v":"N/A"},{"$f":"_xlfn.XLOOKUP($E38,'Competitive Activity 1'!$B$7:$B$13,'Competitive Activity 1'!R$7:R$13,\"N/A\",0,1)","v":"N/A"},{"$f":"_xlfn.XLOOKUP($E38,'Competitive Activity 1'!$B$7:$B$13,'Competitive Activity 1'!S$7:S$13,\"N/A\",0,1)","v":"N/A"},{"$f":"_xlfn.XLOOKUP($E38,'Competitive Activity 1'!$B$7:$B$13,'Competitive Activity 1'!T$7:T$13,\"N/A\",0,1)","v":"N/A"},{"$f":"_xlfn.XLOOKUP($E38,'Competitive Activity 1'!$B$7:$B$13,'Competitive Activity 1'!U$7:U$13,\"N/A\",0,1)","v":"N/A"},{"$f":"_xlfn.XLOOKUP($E38,'Competitive Activity 1'!$B$17:$B$23,'Competitive Activity 1'!C$17:C$23,\"N/A\",0,1)","v":"N/A"},{"$f":"_xlfn.XLOOKUP($E38,'Competitive Activity 1'!$B$17:$B$23,'Competitive Activity 1'!D$17:D$23,\"N/A\",0,1)","v":"N/A"},{"$f":"_xlfn.XLOOKUP($E38,'Competitive Activity 1'!$B$17:$B$23,'Competitive Activity 1'!E$17:E$23,\"N/A\",0,1)","v":"N/A"},{"$f":"_xlfn.XLOOKUP($E38,'Competitive Activity 1'!$B$17:$B$23,'Competitive Activity 1'!F$17:F$23,\"N/A\",0,1)","v":"N/A"},{"$f":"_xlfn.XLOOKUP($E38,'Competitive Activity 1'!$B$17:$B$23,'Competitive Activity 1'!G$17:G$23,\"N/A\",0,1)","v":"N/A"},{"$f":"_xlfn.XLOOKUP($E38,'Competitive Activity 1'!$B$17:$B$23,'Competitive Activity 1'!H$17:H$23,\"N/A\",0,1)","v":"N/A"},{"$f":"_xlfn.XLOOKUP($E38,'Competitive Activity 1'!$B$17:$B$23,'Competitive Activity 1'!I$17:I$23,\"N/A\",0,1)","v":"N/A"},{"$f":"_xlfn.XLOOKUP($E38,'Competitive Activity 1'!$B$17:$B$23,'Competitive Activity 1'!J$17:J$23,\"N/A\",0,1)","v":"N/A"},{"$f":"_xlfn.XLOOKUP($E38,'Competitive Activity 1'!$B$17:$B$23,'Competitive Activity 1'!K$17:K$23,\"N/A\",0,1)","v":"N/A"},{"$f":"_xlfn.XLOOKUP($E38,'Competitive Activity 1'!$B$17:$B$23,'Competitive Activity 1'!M$17:M$23,\"N/A\",0,1)","v":"N/A"},{"$f":"_xlfn.XLOOKUP($E38,'Competitive Activity 1'!$B$17:$B$23,'Competitive Activity 1'!N$17:N$23,\"N/A\",0,1)","v":"N/A"},{"$f":"_xlfn.XLOOKUP($E38,'Competitive Activity 1'!$B$17:$B$23,'Competitive Activity 1'!P$17:P$23,\"N/A\",0,1)","v":"N/A"},{"$f":"_xlfn.XLOOKUP($E38,'Competitive Activity 2'!$B$7:$B$13,'Competitive Activity 2'!A$7:A$13,\"No\",0)","v":"No"},{"$f":"_xlfn.XLOOKUP($E38,'Competitive Activity 2'!$B$7:$B$13,'Competitive Activity 2'!L$7:L$13,\"N/A\",0)","v":"N/A"},{"$f":"_xlfn.XLOOKUP($E38,'Competitive Activity 2'!$B$7:$B$13,'Competitive Activity 2'!M$7:M$13,\"N/A\",0)","v":"N/A"},{"$f":"_xlfn.XLOOKUP($E38,'Competitive Activity 2'!$B$7:$B$13,'Competitive Activity 2'!N$7:N$13,\"N/A\",0)","v":"N/A"},{"$f":"_xlfn.XLOOKUP($E38,'Competitive Activity 2'!$B$7:$B$13,'Competitive Activity 2'!O$7:O$13,\"N/A\",0)","v":"N/A"},{"$f":"_xlfn.XLOOKUP($E38,'Competitive Activity 2'!$B$7:$B$13,'Competitive Activity 2'!P$7:P$13,\"N/A\",0)","v":"N/A"},{"$f":"_xlfn.XLOOKUP($E38,'Competitive Activity 2'!$B$7:$B$13,'Competitive Activity 2'!Q$7:Q$13,\"N/A\",0)","v":"N/A"},{"$f":"_xlfn.XLOOKUP($E38,'Competitive Activity 2'!$B$7:$B$13,'Competitive Activity 2'!R$7:R$13,\"N/A\",0)","v":"N/A"},{"$f":"_xlfn.XLOOKUP($E38,'Competitive Activity 2'!$B$7:$B$13,'Competitive Activity 2'!S$7:S$13,\"N/A\",0)","v":"N/A"},{"$f":"_xlfn.XLOOKUP($E38,'Competitive Activity 2'!$B$7:$B$13,'Competitive Activity 2'!T$7:T$13,\"N/A\",0)","v":"N/A"},{"$f":"_xlfn.XLOOKUP($E38,'Competitive Activity 2'!$B$7:$B$13,'Competitive Activity 2'!U$7:U$13,\"N/A\",0)","v":"N/A"},{"$f":"_xlfn.XLOOKUP($E38,'Competitive Activity 2'!$B$17:$B$23,'Competitive Activity 2'!D$17:D$23,\"N/A\",0)","v":"N/A"},{"$f":"_xlfn.XLOOKUP($E38,'Competitive Activity 2'!$B$17:$B$23,'Competitive Activity 2'!E$17:E$23,\"N/A\",0)","v":"N/A"},{"$f":"_xlfn.XLOOKUP($E38,'Competitive Activity 2'!$B$17:$B$23,'Competitive Activity 2'!F$17:F$23,\"N/A\",0)","v":"N/A"},{"$f":"_xlfn.XLOOKUP($E38,'Competitive Activity 2'!$B$17:$B$23,'Competitive Activity 2'!G$17:G$23,\"N/A\",0)","v":"N/A"},{"$f":"_xlfn.XLOOKUP($E38,'Competitive Activity 2'!$B$17:$B$23,'Competitive Activity 2'!H$17:H$23,\"N/A\",0)","v":"N/A"},{"$f":"_xlfn.XLOOKUP($E38,'Competitive Activity 2'!$B$17:$B$23,'Competitive Activity 2'!I$17:I$23,\"N/A\",0)","v":"N/A"},{"$f":"_xlfn.XLOOKUP($E38,'Competitive Activity 2'!$B$17:$B$23,'Competitive Activity 2'!J$17:J$23,\"N/A\",0)","v":"N/A"},{"$f":"_xlfn.XLOOKUP($E38,'Competitive Activity 2'!$B$17:$B$23,'Competitive Activity 2'!K$17:K$23,\"N/A\",0)","v":"N/A"},{"$f":"_xlfn.XLOOKUP($E38,'Competitive Activity 2'!$B$17:$B$23,'Competitive Activity 2'!L$17:L$23,\"N/A\",0)","v":"N/A"},{"$f":"_xlfn.XLOOKUP($E38,'Competitive Activity 2'!$B$17:$B$23,'Competitive Activity 2'!M$17:M$23,\"N/A\",0)","v":"N/A"},{"$f":"_xlfn.XLOOKUP($E38,'Competitive Activity 2'!$B$17:$B$23,'Competitive Activity 2'!N$17:N$23,\"N/A\",0)","v":"N/A"},{"$f":"_xlfn.XLOOKUP($E38,'Competitive Activity 2'!$B$27:$B$33,'Competitive Activity 2'!D$27:D$33,\"N/A\",0)","v":"N/A"},{"$f":"_xlfn.XLOOKUP($E38,'Competitive Activity 2'!$B$27:$B$33,'Competitive Activity 2'!E$27:E$33,\"N/A\",0)","v":"N/A"},{"$f":"_xlfn.XLOOKUP($E38,'Competitive Activity 2'!$B$27:$B$33,'Competitive Activity 2'!F$27:F$33,\"N/A\",0)","v":"N/A"},{"$f":"_xlfn.XLOOKUP($E38,'Competitive Activity 2'!$B$27:$B$33,'Competitive Activity 2'!G$27:G$33,\"N/A\",0)","v":"N/A"},{"$f":"_xlfn.XLOOKUP($E38,'Competitive Activity 2'!$B$27:$B$33,'Competitive Activity 2'!H$27:H$33,\"N/A\",0)","v":"N/A"},{"$f":"_xlfn.XLOOKUP($E38,'Competitive Activity 2'!$B$27:$B$33,'Competitive Activity 2'!I$27:I$33,\"N/A\",0)","v":"N/A"},{"$f":"_xlfn.XLOOKUP($E38,'Competitive Activity 2'!$B$27:$B$33,'Competitive Activity 2'!J$27:J$33,\"N/A\",0)","v":"N/A"},{"$f":"_xlfn.XLOOKUP($E38,'Competitive Activity 2'!$B$27:$B$33,'Competitive Activity 2'!K$27:K$33,\"N/A\",0)","v":"N/A"},{"$f":"_xlfn.XLOOKUP($E38,'Competitive Activity 2'!$B$27:$B$33,'Competitive Activity 2'!M$27:M$33,\"N/A\",0)","v":"N/A"}]
[{"$f":"'1-Cover Sheet'!$C$8","v":"Select One"},{"$f":"'1-Cover Sheet'!$F$8","v":"Select One"},{"$f":"'Summary Sheet'!$D$8","v":0},{"$f":"'Summary Sheet'!$D$10","v":0},{"$f":"'Drop Down Box'!B203","v":0},{"$f":"'Drop Down Box'!C203","v":0},{"$f":"'Drop Down Box'!D203","v":"Select One"},{"$f":"_xlfn.XLOOKUP(E39,'Drop Down Box'!$B$166:$B$249,'Drop Down Box'!$A$166:$A$249,\"Unknown\",0)","v":"Activity 1"},{"$f":"_xlfn.XLOOKUP($E39,'Activity 6'!$B$32:$B$38,'Activity 6'!$L$32:$L$38,\"N/A\",0)","v":"N/A"},{"$f":"_xlfn.XLOOKUP($E39,'Activity 6'!$B$32:$B$38,'Activity 6'!N$32:N$38,\"N/A\",0)","v":"N/A"},{"$f":"_xlfn.XLOOKUP($E39,'Activity 6'!$B$7:$B$13,'Activity 6'!H$7:H$13,\"N/A\",0)","v":"N/A"},{"$f":"_xlfn.XLOOKUP($E39,'Activity 6'!$B$7:$B$13,'Activity 6'!I$7:I$13,\"N/A\",0)","v":"N/A"},{"$f":"_xlfn.XLOOKUP($E39,'Activity 6'!$B$7:$B$13,'Activity 6'!J$7:J$13,\"N/A\",0)","v":"N/A"},{"$f":"_xlfn.XLOOKUP($E39,'Activity 1'!$B$7:$B$13,'Activity 1'!$A$7:$A$13,\"No\",0,1)","v":"No"},{"$f":"_xlfn.XLOOKUP($E39,'Activity 1'!$B$7:$B$13,'Activity 1'!$H$7:$H$13,\"N/A\",0,1)","v":"N/A"},{"$f":"_xlfn.XLOOKUP($E39,'Activity 1'!$B$7:$B$13,'Activity 1'!I$7:I$13,\"N/A\",0,1)","v":"N/A"},{"$f":"_xlfn.XLOOKUP($E39,'Activity 1'!$B$7:$B$13,'Activity 1'!J$7:J$13,\"N/A\",0,1)","v":"N/A"},{"$f":"_xlfn.XLOOKUP($E39,'Activity 1'!$B$7:$B$13,'Activity 1'!K$7:K$13,\"N/A\",0,1)","v":"N/A"},{"$f":"_xlfn.XLOOKUP($E39,'Activity 1'!$B$7:$B$13,'Activity 1'!L$7:L$13,\"N/A\",0,1)","v":"N/A"},{"$f":"_xlfn.XLOOKUP($E39,'Activity 1'!$B$7:$B$13,'Activity 1'!M$7:M$13,\"N/A\",0,1)","v":"N/A"},{"$f":"_xlfn.XLOOKUP($E39,'Activity 1'!$B$7:$B$13,'Activity 1'!N$7:N$13,\"N/A\",0,1)","v":"N/A"},0,{"$f":"_xlfn.XLOOKUP($E39,'Activity 1'!$B$7:$B$13,'Activity 1'!O$7:O$13,\"N/A\",0,1)","v":"N/A"},{"$f":"_xlfn.XLOOKUP($E39,'Activity 1'!$B$7:$B$13,'Activity 1'!P$7:P$13,\"N/A\",0,1)","v":"N/A"},{"$f":"_xlfn.XLOOKUP($E39,'Activity 1'!$B$7:$B$13,'Activity 1'!Q$7:Q$13,\"N/A\",0,1)","v":"N/A"},{"$f":"_xlfn.XLOOKUP($E39,'Activity 1'!$B$7:$B$13,'Activity 1'!R$7:R$13,\"N/A\",0,1)","v":"N/A"},{"$f":"_xlfn.XLOOKUP($E39,'Activity 1'!$B$7:$B$13,'Activity 1'!S$7:S$13,\"N/A\",0,1)","v":"N/A"},{"$f":"_xlfn.XLOOKUP($E39,'Activity 1'!$B$7:$B$13,'Activity 1'!T$7:T$13,\"N/A\",0,1)","v":"N/A"},{"$f":"_xlfn.XLOOKUP($E39,'Activity 1'!$B$7:$B$13,'Activity 1'!U$7:U$13,\"N/A\",0,1)","v":"N/A"},{"$f":"_xlfn.XLOOKUP($E39,'Activity 1'!$B$7:$B$13,'Activity 1'!V$7:V$13,\"N/A\",0,1)","v":"N/A"},{"$f":"_xlfn.XLOOKUP($E39,'Activity 1'!$B$17:$B$23,'Activity 1'!C$17:C$23,\"N/A\",0,1)","v":"N/A"},{"$f":"_xlfn.XLOOKUP($E39,'Activity 1'!$B$17:$B$23,'Activity 1'!D$17:D$23,\"N/A\",0,1)","v":"N/A"},{"$f":"_xlfn.XLOOKUP($E39,'Activity 1'!$B$17:$B$23,'Activity 1'!E$17:E$23,\"N/A\",0,1)","v":"N/A"},{"$f":"_xlfn.XLOOKUP($E39,'Activity 1'!$B$17:$B$23,'Activity 1'!F$17:F$23,\"N/A\",0,1)","v":"N/A"},{"$f":"_xlfn.XLOOKUP($E39,'Activity 1'!$B$17:$B$23,'Activity 1'!G$17:G$23,\"N/A\",0,1)","v":"N/A"},{"$f":"_xlfn.XLOOKUP($E39,'Activity 1'!$B$17:$B$23,'Activity 1'!H$17:H$23,\"N/A\",0,1)","v":"N/A"},{"$f":"_xlfn.XLOOKUP($E39,'Activity 1'!$B$17:$B$23,'Activity 1'!I$17:I$23,\"N/A\",0,1)","v":"N/A"},{"$f":"_xlfn.XLOOKUP($E39,'Activity 1'!$B$17:$B$23,'Activity 1'!J$17:J$23,\"N/A\",0,1)","v":"N/A"},{"$f":"_xlfn.XLOOKUP($E39,'Activity 1'!$B$17:$B$23,'Activity 1'!K$17:K$23,\"N/A\",0,1)","v":"N/A"},{"$f":"_xlfn.XLOOKUP($E39,'Activity 1'!$B$17:$B$23,'Activity 1'!L$17:L$23,\"N/A\",0,1)","v":"N/A"},{"$f":"_xlfn.XLOOKUP($E39,'Activity 1'!$B$17:$B$23,'Activity 1'!M$17:M$23,\"N/A\",0,1)","v":"N/A"},{"$f":"_xlfn.XLOOKUP($E39,'Activity 1'!$B$17:$B$23,'Activity 1'!O$17:O$23,\"N/A\",0,1)","v":"N/A"},{"$f":"_xlfn.XLOOKUP($E39,'Activity 1'!$B$17:$B$23,'Activity 1'!Q$17:Q$23,\"N/A\",0,1)","v":"N/A"},{"$f":"_xlfn.XLOOKUP($E39,'Activity 2'!$B$7:$B$13,'Activity 2'!$A$7:$A$13,\"No\",0,1)","v":"No"},{"$f":"_xlfn.XLOOKUP($E39,'Activity 2'!B$7:B$13,'Activity 2'!H$7:H$13,\"N/A\",0)","v":"N/A"},{"$f":"_xlfn.XLOOKUP($E39,'Activity 2'!C$7:C$13,'Activity 2'!I$7:I$13,\"N/A\",0)","v":"N/A"},{"$f":"_xlfn.XLOOKUP($E39,'Activity 2'!D$7:D$13,'Activity 2'!J$7:J$13,\"N/A\",0)","v":"N/A"},{"$f":"_xlfn.XLOOKUP($E39,'Activity 2'!E$7:E$13,'Activity 2'!K$7:K$13,\"N/A\",0)","v":"N/A"},{"$f":"_xlfn.XLOOKUP($E39,'Activity 2'!F$7:F$13,'Activity 2'!L$7:L$13,\"N/A\",0)","v":"N/A"},{"$f":"_xlfn.XLOOKUP($E39,'Activity 2'!G$7:G$13,'Activity 2'!M$7:M$13,\"N/A\",0)","v":"N/A"},{"$f":"_xlfn.XLOOKUP($E39,'Activity 2'!H$7:H$13,'Activity 2'!N$7:N$13,\"N/A\",0)","v":"N/A"},{"$f":"_xlfn.XLOOKUP($E39,'Activity 2'!I$7:I$13,'Activity 2'!O$7:O$13,\"N/A\",0)","v":"N/A"},{"$f":"_xlfn.XLOOKUP($E39,'Activity 2'!J$7:J$13,'Activity 2'!P$7:P$13,\"N/A\",0)","v":"N/A"},{"$f":"_xlfn.XLOOKUP($E39,'Activity 2'!K$7:K$13,'Activity 2'!Q$7:Q$13,\"N/A\",0)","v":"N/A"},{"$f":"_xlfn.XLOOKUP($E39,'Activity 2'!L$7:L$13,'Activity 2'!R$7:R$13,\"N/A\",0)","v":"N/A"},{"$f":"_xlfn.XLOOKUP($E39,'Activity 2'!M$7:M$13,'Activity 2'!S$7:S$13,\"N/A\",0)","v":"N/A"},{"$f":"_xlfn.XLOOKUP($E39,'Activity 2'!N$7:N$13,'Activity 2'!T$7:T$13,\"N/A\",0)","v":"N/A"},{"$f":"_xlfn.XLOOKUP($E39,'Activity 2'!O$7:O$13,'Activity 2'!U$7:U$13,\"N/A\",0)","v":"N/A"},{"$f":"_xlfn.XLOOKUP($E39,'Activity 2'!P$7:P$13,'Activity 2'!V$7:V$13,\"N/A\",0)","v":"N/A"},{"$f":"_xlfn.XLOOKUP($E39,'Activity 2'!$B$17:$B$23,'Activity 2'!C$17:C$23,\"N/A\",0,1)","v":"N/A"},{"$f":"_xlfn.XLOOKUP($E39,'Activity 2'!$B$17:$B$23,'Activity 2'!D$17:D$23,\"N/A\",0,1)","v":"N/A"},{"$f":"_xlfn.XLOOKUP($E39,'Activity 2'!$B$17:$B$23,'Activity 2'!E$17:E$23,\"N/A\",0,1)","v":"N/A"},{"$f":"_xlfn.XLOOKUP($E39,'Activity 2'!$B$17:$B$23,'Activity 2'!F$17:F$23,\"N/A\",0,1)","v":"N/A"},{"$f":"_xlfn.XLOOKUP($E39,'Activity 2'!$B$17:$B$23,'Activity 2'!G$17:G$23,\"N/A\",0,1)","v":"N/A"},{"$f":"_xlfn.XLOOKUP($E39,'Activity 2'!$B$17:$B$23,'Activity 2'!H$17:H$23,\"N/A\",0,1)","v":"N/A"},{"$f":"_xlfn.XLOOKUP($E39,'Activity 2'!$B$17:$B$23,'Activity 2'!I$17:I$23,\"N/A\",0,1)","v":"N/A"},{"$f":"_xlfn.XLOOKUP($E39,'Activity 2'!$B$17:$B$23,'Activity 2'!J$17:J$23,\"N/A\",0,1)","v":"N/A"},{"$f":"_xlfn.XLOOKUP($E39,'Activity 2'!$B$17:$B$23,'Activity 2'!K$17:K$23,\"N/A\",0,1)","v":"N/A"},{"$f":"_xlfn.XLOOKUP($E39,'Activity 2'!$B$17:$B$23,'Activity 2'!L$17:L$23,\"N/A\",0,1)","v":"N/A"},{"$f":"_xlfn.XLOOKUP($E39,'Activity 2'!$B$17:$B$23,'Activity 2'!M$17:M$23,\"N/A\",0,1)","v":"N/A"},{"$f":"_xlfn.XLOOKUP($E39,'Activity 2'!$B$17:$B$23,'Activity 2'!O$17:O$23,\"N/A\",0,1)","v":"N/A"},{"$f":"_xlfn.XLOOKUP($E39,'Activity 2'!$B$17:$B$23,'Activity 2'!Q$17:Q$23,\"N/A\",0,1)","v":"N/A"},null,{"$f":"_xlfn.XLOOKUP($E39,'Activity 3'!$B$8:$B$14,'Activity 3'!K$8:K$14,\"N/A\",0,1)","v":"N/A"},{"$f":"_xlfn.XLOOKUP($E39,'Activity 3'!$B$8:$B$14,'Activity 3'!L$8:L$14,\"N/A\",0,1)","v":"N/A"},{"$f":"_xlfn.XLOOKUP($E39,'Activity 3'!$B$8:$B$14,'Activity 3'!M$8:M$14,\"N/A\",0,1)","v":"N/A"},{"$f":"_xlfn.XLOOKUP($E39,'Activity 3'!$B$8:$B$14,'Activity 3'!N$8:N$14,\"N/A\",0,1)","v":"N/A"},{"$f":"_xlfn.XLOOKUP($E39,'Activity 3'!$B$8:$B$14,'Activity 3'!O$8:O$14,\"N/A\",0,1)","v":"N/A"},{"$f":"_xlfn.XLOOKUP($E39,'Activity 3'!$B$8:$B$14,'Activity 3'!R$8:R$14,\"N/A\",0,1)","v":"N/A"},{"$f":"_xlfn.XLOOKUP($E39,'Activity 4'!$B$8:$B$14,'Activity 4'!$A$8:$A$14,\"No\",0,1)","v":"No"},{"$f":"_xlfn.XLOOKUP($E39,'Activity 4'!$B$8:$B$14,'Activity 4'!L$8:L$14,\"N/A\",0,1)","v":"N/A"},{"$f":"_xlfn.XLOOKUP($E39,'Activity 4'!$B$8:$B$14,'Activity 4'!I$8:I$14,\"N/A\",0,1)","v":"N/A"},{"$f":"_xlfn.XLOOKUP($E39,'Activity 4'!$B$8:$B$14,'Activity 4'!M$8:M$14,\"N/A\",0,1)","v":"N/A"},{"$f":"_xlfn.XLOOKUP($E39,'Activity 5'!$B$8:$B$14,'Activity 5'!$A$8:$A$14,\"No\",0,1)","v":"No"},{"$f":"_xlfn.XLOOKUP($E39,'Activity 5'!$B$8:$B$14,'Activity 5'!J$8:J$14,\"N/A\",0,1)","v":"N/A"},{"$f":"_xlfn.XLOOKUP($E39,'Activity 5'!$B$8:$B$14,'Activity 5'!K$8:K$14,\"N/A\",0,1)","v":"N/A"},{"$f":"_xlfn.XLOOKUP($E39,'Activity 5'!$B$8:$B$14,'Activity 5'!N$8:N$14,\"N/A\",0,1)","v":"N/A"},{"$f":"_xlfn.XLOOKUP($E39,'Activity 5'!$B$8:$B$14,'Activity 5'!O$8:O$14,\"N/A\",0,1)","v":"N/A"},{"$f":"_xlfn.XLOOKUP($E39,'Activity 5'!$B$8:$B$14,'Activity 5'!P$8:P$14,\"N/A\",0,1)","v":"N/A"},{"$f":"_xlfn.XLOOKUP($E39,'Activity 5'!$B$8:$B$14,'Activity 5'!Q$8:Q$14,\"N/A\",0,1)","v":"N/A"},{"$f":"_xlfn.XLOOKUP($E39,'Activity 5'!$B$8:$B$14,'Activity 5'!R$8:R$14,\"N/A\",0,1)","v":"N/A"},{"$f":"_xlfn.XLOOKUP($E39,'Activity 6'!$B$7:$B$13,'Activity 6'!A$7:A$13,\"No\",0,1)","v":"No"},{"$f":"_xlfn.XLOOKUP($E39,'Activity 6'!$B$7:$B$13,'Activity 6'!K$7:K$13,\"N/A\",0,1)","v":"N/A"},{"$f":"_xlfn.XLOOKUP($E39,'Activity 6'!$B$7:$B$13,'Activity 6'!L$7:L$13,\"N/A\",0,1)","v":"N/A"},{"$f":"_xlfn.XLOOKUP($E39,'Activity 6'!$B$7:$B$13,'Activity 6'!M$7:M$13,\"N/A\",0,1)","v":"N/A"},{"$f":"_xlfn.XLOOKUP($E39,'Activity 6'!$B$7:$B$13,'Activity 6'!N$7:N$13,\"N/A\",0,1)","v":"N/A"},{"$f":"_xlfn.XLOOKUP($E39,'Activity 6'!$B$7:$B$13,'Activity 6'!O$7:O$13,\"N/A\",0,1)","v":"N/A"},{"$f":"_xlfn.XLOOKUP($E39,'Activity 6'!$B$7:$B$13,'Activity 6'!P$7:P$13,\"N/A\",0,1)","v":"N/A"},{"$f":"_xlfn.XLOOKUP($E39,'Activity 6'!$B$7:$B$13,'Activity 6'!Q$7:Q$13,\"N/A\",0,1)","v":"N/A"},{"$f":"_xlfn.XLOOKUP($E39,'Activity 6'!$B$7:$B$13,'Activity 6'!R$7:R$13,\"N/A\",0,1)","v":"N/A"},{"$f":"_xlfn.XLOOKUP($E39,'Activity 6'!$B$7:$B$13,'Activity 6'!S$7:S$13,\"N/A\",0,1)","v":"N/A"},{"$f":"_xlfn.XLOOKUP($E39,'Activity 6'!$B$7:$B$13,'Activity 6'!T$7:T$13,\"N/A\",0,1)","v":"N/A"},{"$f":"_xlfn.XLOOKUP($E39,'Activity 6'!$B$7:$B$13,'Activity 6'!U$7:U$13,\"N/A\",0,1)","v":"N/A"},{"$f":"_xlfn.XLOOKUP($E39,'Activity 6'!$B$22:$B$28,'Activity 6'!C$22:C$28,\"N/A\",0,1)","v":"N/A"},{"$f":"_xlfn.XLOOKUP($E39,'Activity 6'!$B$22:$B$28,'Activity 6'!D$22:D$28,\"N/A\",0,1)","v":"N/A"},{"$f":"_xlfn.XLOOKUP($E39,'Activity 6'!$B$22:$B$28,'Activity 6'!E$22:E$28,\"N/A\",0,1)","v":"N/A"},{"$f":"_xlfn.XLOOKUP($E39,'Activity 6'!$B$22:$B$28,'Activity 6'!F$22:F$28,\"N/A\",0,1)","v":"N/A"},{"$f":"_xlfn.XLOOKUP($E39,'Activity 6'!$B$22:$B$28,'Activity 6'!G$22:G$28,\"N/A\",0,1)","v":"N/A"},{"$f":"_xlfn.XLOOKUP($E39,'Activity 6'!$B$22:$B$28,'Activity 6'!H$22:H$28,\"N/A\",0,1)","v":"N/A"},{"$f":"_xlfn.XLOOKUP($E39,'Activity 6'!$B$22:$B$28,'Activity 6'!I$22:I$28,\"N/A\",0,1)","v":"N/A"},{"$f":"_xlfn.XLOOKUP($E39,'Activity 6'!$B$22:$B$28,'Activity 6'!J$22:J$28,\"N/A\",0,1)","v":"N/A"},{"$f":"_xlfn.XLOOKUP($E39,'Activity 6'!$B$22:$B$28,'Activity 6'!K$22:K$28,\"N/A\",0,1)","v":"N/A"},{"$f":"_xlfn.XLOOKUP($E39,'Activity 6'!$B$22:$B$28,'Activity 6'!L$22:L$28,\"N/A\",0,1)","v":"N/A"},{"$f":"_xlfn.XLOOKUP($E39,'Activity 6'!$B$22:$B$28,'Activity 6'!M$22:M$28,\"N/A\",0,1)","v":"N/A"},{"$f":"_xlfn.XLOOKUP($E39,'Activity 6'!$B$22:$B$28,'Activity 6'!N$22:N$28,\"N/A\",0,1)","v":"N/A"},{"$f":"_xlfn.XLOOKUP($E39,'Activity 6'!$B$32:$B$38,'Activity 6'!C$32:C$38,\"N/A\",0,1)","v":"N/A"},{"$f":"_xlfn.XLOOKUP($E39,'Activity 6'!$B$32:$B$38,'Activity 6'!D$32:D$38,\"N/A\",0,1)","v":"N/A"},{"$f":"_xlfn.XLOOKUP($E39,'Activity 6'!$B$32:$B$38,'Activity 6'!E$32:E$38,\"N/A\",0,1)","v":"N/A"},{"$f":"_xlfn.XLOOKUP($E39,'Activity 6'!$B$32:$B$38,'Activity 6'!F$32:F$38,\"N/A\",0,1)","v":"N/A"},{"$f":"_xlfn.XLOOKUP($E39,'Activity 6'!$B$32:$B$38,'Activity 6'!G$32:G$38,\"N/A\",0,1)","v":"N/A"},{"$f":"_xlfn.XLOOKUP($E39,'Activity 6'!$B$32:$B$38,'Activity 6'!H$32:H$38,\"N/A\",0,1)","v":"N/A"},{"$f":"_xlfn.XLOOKUP($E39,'Activity 6'!$B$32:$B$38,'Activity 6'!I$32:I$38,\"N/A\",0,1)","v":"N/A"},{"$f":"_xlfn.XLOOKUP($E39,'Activity 6'!$B$32:$B$38,'Activity 6'!J$32:J$38,\"N/A\",0,1)","v":"N/A"},{"$f":"_xlfn.XLOOKUP($E39,'Activity 6'!$B$32:$B$38,'Activity 6'!K$32:K$38,\"N/A\",0,1)","v":"N/A"},{"$f":"_xlfn.XLOOKUP($E39,'Activity 6'!$B$32:$B$38,'Activity 6'!M$32:M$38,\"N/A\",0,1)","v":"N/A"},{"$f":"_xlfn.XLOOKUP($E39,'Activity 7'!$B$7:$B$13,'Activity 7'!$A$7:$A$13,\"No\",0,1)","v":"No"},{"$f":"_xlfn.XLOOKUP($E39,'Activity 7'!$B$7:$B$13,'Activity 7'!M$7:M$13,\"N/A\",0,1)","v":"N/A"},{"$f":"_xlfn.XLOOKUP($E39,'Activity 7'!$B$7:$B$13,'Activity 7'!K$7:K$13,\"N/A\",0,1)","v":"N/A"},{"$f":"_xlfn.XLOOKUP($E39,'Activity 7'!$B$7:$B$13,'Activity 7'!N$7:N$13,\"N/A\",0,1)","v":"N/A"},{"$f":"_xlfn.XLOOKUP($E39,'Activity 7'!$B$7:$B$13,'Activity 7'!O$7:O$13,\"N/A\",0,1)","v":"N/A"},{"$f":"_xlfn.XLOOKUP($E39,'Activity 7'!$B$7:$B$13,'Activity 7'!P$7:P$13,\"N/A\",0,1)","v":"N/A"},{"$f":"_xlfn.XLOOKUP($E39,'Activity 7'!$B$7:$B$13,'Activity 7'!Q$7:Q$13,\"N/A\",0,1)","v":"N/A"},{"$f":"_xlfn.XLOOKUP($E39,'Activity 7'!$B$7:$B$13,'Activity 7'!R$7:R$13,\"N/A\",0,1)","v":"N/A"},{"$f":"_xlfn.XLOOKUP($E39,'Activity 7'!$B$7:$B$13,'Activity 7'!S$7:S$13,\"N/A\",0,1)","v":"N/A"},{"$f":"_xlfn.XLOOKUP($E39,'Activity 7'!$B$7:$B$13,'Activity 7'!T$7:T$13,\"N/A\",0,1)","v":"N/A"},{"$f":"_xlfn.XLOOKUP($E39,'Activity 7'!$B$7:$B$13,'Activity 7'!U$7:U$13,\"N/A\",0,1)","v":"N/A"},{"$f":"_xlfn.XLOOKUP($E39,'Activity 7'!$B$7:$B$13,'Activity 7'!V$7:V$13,\"N/A\",0,1)","v":"N/A"},{"$f":"_xlfn.XLOOKUP($E39,'Activity 7'!$B$17:$B$23,'Activity 7'!E$17:E$23,\"N/A\",0,1)","v":"N/A"},{"$f":"_xlfn.XLOOKUP($E39,'Activity 7'!$B$17:$B$23,'Activity 7'!G$17:G$23,\"N/A\",0,1)","v":"N/A"},{"$f":"_xlfn.XLOOKUP($E39,'Activity 7'!$B$17:$B$23,'Activity 7'!I$17:I$23,\"N/A\",0,1)","v":"N/A"},{"$f":"_xlfn.XLOOKUP($E39,'Activity 7'!$B$17:$B$23,'Activity 7'!J$17:J$23,\"N/A\",0,1)","v":"N/A"},{"$f":"_xlfn.XLOOKUP($E39,'Activity 7'!$B$17:$B$23,'Activity 7'!K$17:K$23,\"N/A\",0,1)","v":"N/A"},{"$f":"_xlfn.XLOOKUP($E39,'Activity 7'!$B$17:$B$23,'Activity 7'!L$17:L$23,\"N/A\",0,1)","v":"N/A"},{"$f":"_xlfn.XLOOKUP($E39,'Activity 7'!$B$17:$B$23,'Activity 7'!M$17:M$23,\"N/A\",0,1)","v":"N/A"},{"$f":"_xlfn.XLOOKUP($E39,'Activity 7'!$B$17:$B$23,'Activity 7'!N$17:N$23,\"N/A\",0,1)","v":"N/A"},{"$f":"_xlfn.XLOOKUP($E39,'Activity 7'!$B$17:$B$23,'Activity 7'!P$17:P$23,\"N/A\",0,1)","v":"N/A"},{"$f":"_xlfn.XLOOKUP($E39,'Activity 8'!$B$7:$B$13,'Activity 8'!A$7:A$13,\"No\",0,1)","v":"No"},{"$f":"_xlfn.XLOOKUP($E39,'Activity 8'!$B$7:$B$13,'Activity 8'!I$7:I$13,\"N/A\",0,1)","v":"N/A"},{"$f":"_xlfn.XLOOKUP($E39,'Activity 8'!$B$7:$B$13,'Activity 8'!J$7:J$13,\"N/A\",0,1)","v":"N/A"},{"$f":"_xlfn.XLOOKUP($E39,'Activity 8'!$B$7:$B$13,'Activity 8'!K$7:K$13,\"N/A\",0,1)","v":"N/A"},{"$f":"_xlfn.XLOOKUP($E39,'Activity 8'!$B$7:$B$13,'Activity 8'!L$7:L$13,\"N/A\",0,1)","v":"N/A"},{"$f":"_xlfn.XLOOKUP($E39,'Activity 8'!$B$7:$B$13,'Activity 8'!M$7:M$13,\"N/A\",0,1)","v":"N/A"},{"$f":"_xlfn.XLOOKUP($E39,'Activity 8'!$B$7:$B$13,'Activity 8'!N$7:N$13,\"N/A\",0,1)","v":"N/A"},{"$f":"_xlfn.XLOOKUP($E39,'Activity 8'!$B$7:$B$13,'Activity 8'!O$7:O$13,\"N/A\",0,1)","v":"N/A"},{"$f":"_xlfn.XLOOKUP($E39,'Activity 8'!$B$7:$B$13,'Activity 8'!P$7:P$13,\"N/A\",0,1)","v":"N/A"},{"$f":"_xlfn.XLOOKUP($E39,'Activity 8'!$B$7:$B$13,'Activity 8'!Q$7:Q$13,\"N/A\",0,1)","v":"N/A"},{"$f":"_xlfn.XLOOKUP($E39,'Activity 8'!$B$7:$B$13,'Activity 8'!R$7:R$13,\"N/A\",0,1)","v":"N/A"},{"$f":"_xlfn.XLOOKUP($E39,'Activity 8'!$B$7:$B$13,'Activity 8'!S$7:S$13,\"N/A\",0,1)","v":"N/A"},{"$f":"_xlfn.XLOOKUP($E39,'Activity 8'!$B$7:$B$13,'Activity 8'!T$7:T$13,\"N/A\",0,1)","v":"N/A"},{"$f":"_xlfn.XLOOKUP($E39,'Activity 8'!$B$7:$B$13,'Activity 8'!U$7:U$13,\"N/A\",0,1)","v":"N/A"},{"$f":"_xlfn.XLOOKUP($E39,'Activity 8'!$B$7:$B$13,'Activity 8'!V$7:V$13,\"N/A\",0,1)","v":"N/A"},{"$f":"_xlfn.XLOOKUP($E39,'Activity 8'!$B$17:$B$23,'Activity 8'!D$17:D$23,\"N/A\",0,1)","v":"N/A"},{"$f":"_xlfn.XLOOKUP($E39,'Activity 8'!$B$17:$B$23,'Activity 8'!E$17:E$23,\"N/A\",0,1)","v":"N/A"},{"$f":"_xlfn.XLOOKUP($E39,'Activity 8'!$B$17:$B$23,'Activity 8'!F$17:F$23,\"N/A\",0,1)","v":"N/A"},{"$f":"_xlfn.XLOOKUP($E39,'Activity 8'!$B$17:$B$23,'Activity 8'!G$17:G$23,\"N/A\",0,1)","v":"N/A"},{"$f":"_xlfn.XLOOKUP($E39,'Activity 8'!$B$17:$B$23,'Activity 8'!H$17:H$23,\"N/A\",0,1)","v":"N/A"},{"$f":"_xlfn.XLOOKUP($E39,'Activity 8'!$B$17:$B$23,'Activity 8'!I$17:I$23,\"N/A\",0,1)","v":"N/A"},{"$f":"_xlfn.XLOOKUP($E39,'Activity 8'!$B$17:$B$23,'Activity 8'!J$17:J$23,\"N/A\",0,1)","v":"N/A"},{"$f":"_xlfn.XLOOKUP($E39,'Activity 8'!$B$17:$B$23,'Activity 8'!K$17:K$23,\"N/A\",0,1)","v":"N/A"},{"$f":"_xlfn.XLOOKUP($E39,'Activity 8'!$B$17:$B$23,'Activity 8'!L$17:L$23,\"N/A\",0,1)","v":"N/A"},{"$f":"_xlfn.XLOOKUP($E39,'Activity 8'!$B$17:$B$23,'Activity 8'!M$17:M$23,\"N/A\",0,1)","v":"N/A"},{"$f":"_xlfn.XLOOKUP($E39,'Activity 8'!$B$17:$B$23,'Activity 8'!N$17:N$23,\"N/A\",0,1)","v":"N/A"},{"$f":"_xlfn.XLOOKUP($E39,'Activity 8'!$B$17:$B$23,'Activity 8'!P$17:P$23,\"N/A\",0,1)","v":"N/A"},{"$f":"_xlfn.XLOOKUP(E39,'Activity 9'!$B$7:$B$13,'Activity 9'!$A$7:$A$13,\"No\",0,1)","v":"No"},{"$f":"_xlfn.XLOOKUP($E39,'Activity 9'!$B$7:$B$13,'Activity 9'!J$7:J$13,\"N/A\",0,1)","v":"N/A"},{"$f":"_xlfn.XLOOKUP($E39,'Activity 9'!$B$7:$B$13,'Activity 9'!K$7:K$13,\"N/A\",0,1)","v":"N/A"},{"$f":"_xlfn.XLOOKUP($E39,'Activity 9'!$B$7:$B$13,'Activity 9'!L$7:L$13,\"N/A\",0,1)","v":"N/A"},{"$f":"_xlfn.XLOOKUP($E39,'Activity 9'!$B$7:$B$13,'Activity 9'!M$7:M$13,\"N/A\",0,1)","v":"N/A"},{"$f":"_xlfn.XLOOKUP($E39,'Activity 9'!$B$7:$B$13,'Activity 9'!N$7:N$13,\"N/A\",0,1)","v":"N/A"},{"$f":"_xlfn.XLOOKUP($E39,'Activity 9'!$B$7:$B$13,'Activity 9'!O$7:O$13,\"N/A\",0,1)","v":"N/A"},{"$f":"_xlfn.XLOOKUP($E39,'Activity 9'!$B$7:$B$13,'Activity 9'!P$7:P$13,\"N/A\",0,1)","v":"N/A"},{"$f":"_xlfn.XLOOKUP($E39,'Activity 9'!$B$7:$B$13,'Activity 9'!Q$7:Q$13,\"N/A\",0,1)","v":"N/A"},{"$f":"_xlfn.XLOOKUP($E39,'Activity 9'!$B$7:$B$13,'Activity 9'!R$7:R$13,\"N/A\",0,1)","v":"N/A"},{"$f":"_xlfn.XLOOKUP($E39,'Activity 9'!$B$7:$B$13,'Activity 9'!S$7:S$13,\"N/A\",0,1)","v":"N/A"},{"$f":"_xlfn.XLOOKUP($E39,'Activity 9'!$B$7:$B$13,'Activity 9'!T$7:T$13,\"N/A\",0,1)","v":"N/A"},{"$f":"_xlfn.XLOOKUP($E39,'Activity 9'!$B$17:$B$23,'Activity 9'!E$17:E$23,\"N/A\",0,1)","v":"N/A"},{"$f":"_xlfn.XLOOKUP($E39,'Activity 9'!$B$17:$B$23,'Activity 9'!F$17:F$23,\"N/A\",0,1)","v":"N/A"},{"$f":"_xlfn.XLOOKUP($E39,'Activity 9'!$B$17:$B$23,'Activity 9'!G$17:G$23,\"N/A\",0,1)","v":"N/A"},{"$f":"_xlfn.XLOOKUP($E39,'Activity 9'!$B$17:$B$23,'Activity 9'!H$17:H$23,\"N/A\",0,1)","v":"N/A"},{"$f":"_xlfn.XLOOKUP($E39,'Activity 9'!$B$17:$B$23,'Activity 9'!I$17:I$23,\"N/A\",0,1)","v":"N/A"},{"$f":"_xlfn.XLOOKUP($E39,'Activity 9'!$B$17:$B$23,'Activity 9'!J$17:J$23,\"N/A\",0,1)","v":"N/A"},{"$f":"_xlfn.XLOOKUP($E39,'Activity 9'!$B$17:$B$23,'Activity 9'!K$17:K$23,\"N/A\",0,1)","v":"N/A"},{"$f":"_xlfn.XLOOKUP($E39,'Activity 9'!$B$17:$B$23,'Activity 9'!L$17:L$23,\"N/A\",0,1)","v":"N/A"},{"$f":"_xlfn.XLOOKUP($E39,'Activity 9'!$B$17:$B$23,'Activity 9'!N$17:N$23,\"N/A\",0,1)","v":"N/A"},{"$f":"_xlfn.XLOOKUP($E39,'Activity 9'!$B$17:$B$23,'Activity 9'!O$17:O$23,\"N/A\",0,1)","v":"N/A"},{"$f":"_xlfn.XLOOKUP($E39,'Activity 9'!$B$17:$B$23,'Activity 9'!Q$17:Q$23,\"N/A\",0,1)","v":"N/A"},{"$f":"_xlfn.XLOOKUP($E39,'Activity 10'!$B$7:$B$13,'Activity 10'!A$7:A$13,\"No\",0,1)","v":"No"},{"$f":"_xlfn.XLOOKUP($E39,'Activity 10'!$B$7:$B$13,'Activity 10'!J$7:J$13,\"N/A\",0,1)","v":"N/A"},{"$f":"_xlfn.XLOOKUP($E39,'Activity 10'!$B$7:$B$13,'Activity 10'!K$7:K$13,\"N/A\",0,1)","v":"N/A"},{"$f":"_xlfn.XLOOKUP($E39,'Activity 10'!$B$7:$B$13,'Activity 10'!L$7:L$13,\"N/A\",0,1)","v":"N/A"},{"$f":"_xlfn.XLOOKUP($E39,'Activity 10'!$B$7:$B$13,'Activity 10'!M$7:M$13,\"N/A\",0,1)","v":"N/A"},{"$f":"_xlfn.XLOOKUP($E39,'Activity 10'!$B$7:$B$13,'Activity 10'!N$7:N$13,\"N/A\",0,1)","v":"N/A"},{"$f":"_xlfn.XLOOKUP($E39,'Activity 10'!$B$7:$B$13,'Activity 10'!O$7:O$13,\"N/A\",0,1)","v":"N/A"},{"$f":"_xlfn.XLOOKUP($E39,'Activity 10'!$B$7:$B$13,'Activity 10'!P$7:P$13,\"N/A\",0,1)","v":"N/A"},{"$f":"_xlfn.XLOOKUP($E39,'Activity 10'!$B$7:$B$13,'Activity 10'!Q$7:Q$13,\"N/A\",0,1)","v":"N/A"},{"$f":"_xlfn.XLOOKUP($E39,'Activity 10'!$B$7:$B$13,'Activity 10'!R$7:R$13,\"N/A\",0,1)","v":"N/A"},{"$f":"_xlfn.XLOOKUP($E39,'Activity 10'!$B$7:$B$13,'Activity 10'!S$7:S$13,\"N/A\",0,1)","v":"N/A"},{"$f":"_xlfn.XLOOKUP($E39,'Activity 10'!$B$7:$B$13,'Activity 10'!T$7:T$13,\"N/A\",0,1)","v":"N/A"},{"$f":"_xlfn.XLOOKUP($E39,'Activity 10'!$B$7:$B$13,'Activity 10'!U$7:U$13,\"N/A\",0,1)","v":"N/A"},{"$f":"_xlfn.XLOOKUP($E39,'Activity 10'!$B$7:$B$13,'Activity 10'!V$7:V$13,\"N/A\",0,1)","v":"N/A"},{"$f":"_xlfn.XLOOKUP($E39,'Activity 10'!$B$17:$B$23,'Activity 10'!E$17:E$23,\"N/A\",0,1)","v":"N/A"},{"$f":"_xlfn.XLOOKUP($E39,'Activity 10'!$B$17:$B$23,'Activity 10'!F$17:F$23,\"N/A\",0,1)","v":"N/A"},{"$f":"_xlfn.XLOOKUP($E39,'Activity 10'!$B$17:$B$23,'Activity 10'!G$17:G$23,\"N/A\",0,1)","v":"N/A"},{"$f":"_xlfn.XLOOKUP($E39,'Activity 10'!$B$17:$B$23,'Activity 10'!H$17:H$23,\"N/A\",0,1)","v":"N/A"},{"$f":"_xlfn.XLOOKUP($E39,'Activity 10'!$B$17:$B$23,'Activity 10'!I$17:I$23,\"N/A\",0,1)","v":"N/A"},{"$f":"_xlfn.XLOOKUP($E39,'Activity 10'!$B$17:$B$23,'Activity 10'!J$17:J$23,\"N/A\",0,1)","v":"N/A"},{"$f":"_xlfn.XLOOKUP($E39,'Activity 10'!$B$17:$B$23,'Activity 10'!K$17:K$23,\"N/A\",0,1)","v":"N/A"},{"$f":"_xlfn.XLOOKUP($E39,'Activity 10'!$B$17:$B$23,'Activity 10'!L$17:L$23,\"N/A\",0,1)","v":"N/A"},{"$f":"_xlfn.XLOOKUP($E39,'Activity 10'!$B$17:$B$23,'Activity 10'!M$17:M$23,\"N/A\",0,1)","v":"N/A"},{"$f":"_xlfn.XLOOKUP($E39,'Activity 10'!$B$17:$B$23,'Activity 10'!N$17:N$23,\"N/A\",0,1)","v":"N/A"},{"$f":"_xlfn.XLOOKUP($E39,'Activity 10'!$B$17:$B$23,'Activity 10'!P$17:P$23,\"N/A\",0,1)","v":"N/A"},{"$f":"_xlfn.XLOOKUP($E39,'Competitive Activity 1'!B$7:B$13,'Competitive Activity 1'!A$7:A$13,\"No\",0,1)","v":"No"},{"$f":"_xlfn.XLOOKUP($E39,'Competitive Activity 1'!$B$7:$B$13,'Competitive Activity 1'!H$7:H$13,\"N/A\",0,1)","v":"N/A"},{"$f":"_xlfn.XLOOKUP($E39,'Competitive Activity 1'!$B$7:$B$13,'Competitive Activity 1'!I$7:I$13,\"N/A\",0,1)","v":"N/A"},{"$f":"_xlfn.XLOOKUP($E39,'Competitive Activity 1'!$B$7:$B$13,'Competitive Activity 1'!J$7:J$13,\"N/A\",0,1)","v":"N/A"},{"$f":"_xlfn.XLOOKUP($E39,'Competitive Activity 1'!$B$7:$B$13,'Competitive Activity 1'!K$7:K$13,\"N/A\",0,1)","v":"N/A"},{"$f":"_xlfn.XLOOKUP($E39,'Competitive Activity 1'!$B$7:$B$13,'Competitive Activity 1'!L$7:L$13,\"N/A\",0,1)","v":"N/A"},{"$f":"_xlfn.XLOOKUP($E39,'Competitive Activity 1'!$B$7:$B$13,'Competitive Activity 1'!M$7:M$13,\"N/A\",0,1)","v":"N/A"},{"$f":"_xlfn.XLOOKUP($E39,'Competitive Activity 1'!$B$7:$B$13,'Competitive Activity 1'!N$7:N$13,\"N/A\",0,1)","v":"N/A"},{"$f":"_xlfn.XLOOKUP($E39,'Competitive Activity 1'!$B$7:$B$13,'Competitive Activity 1'!O$7:O$13,\"N/A\",0,1)","v":"N/A"},{"$f":"_xlfn.XLOOKUP($E39,'Competitive Activity 1'!$B$7:$B$13,'Competitive Activity 1'!P$7:P$13,\"N/A\",0,1)","v":"N/A"},{"$f":"_xlfn.XLOOKUP($E39,'Competitive Activity 1'!$B$7:$B$13,'Competitive Activity 1'!Q$7:Q$13,\"N/A\",0,1)","v":"N/A"},{"$f":"_xlfn.XLOOKUP($E39,'Competitive Activity 1'!$B$7:$B$13,'Competitive Activity 1'!R$7:R$13,\"N/A\",0,1)","v":"N/A"},{"$f":"_xlfn.XLOOKUP($E39,'Competitive Activity 1'!$B$7:$B$13,'Competitive Activity 1'!S$7:S$13,\"N/A\",0,1)","v":"N/A"},{"$f":"_xlfn.XLOOKUP($E39,'Competitive Activity 1'!$B$7:$B$13,'Competitive Activity 1'!T$7:T$13,\"N/A\",0,1)","v":"N/A"},{"$f":"_xlfn.XLOOKUP($E39,'Competitive Activity 1'!$B$7:$B$13,'Competitive Activity 1'!U$7:U$13,\"N/A\",0,1)","v":"N/A"},{"$f":"_xlfn.XLOOKUP($E39,'Competitive Activity 1'!$B$17:$B$23,'Competitive Activity 1'!C$17:C$23,\"N/A\",0,1)","v":"N/A"},{"$f":"_xlfn.XLOOKUP($E39,'Competitive Activity 1'!$B$17:$B$23,'Competitive Activity 1'!D$17:D$23,\"N/A\",0,1)","v":"N/A"},{"$f":"_xlfn.XLOOKUP($E39,'Competitive Activity 1'!$B$17:$B$23,'Competitive Activity 1'!E$17:E$23,\"N/A\",0,1)","v":"N/A"},{"$f":"_xlfn.XLOOKUP($E39,'Competitive Activity 1'!$B$17:$B$23,'Competitive Activity 1'!F$17:F$23,\"N/A\",0,1)","v":"N/A"},{"$f":"_xlfn.XLOOKUP($E39,'Competitive Activity 1'!$B$17:$B$23,'Competitive Activity 1'!G$17:G$23,\"N/A\",0,1)","v":"N/A"},{"$f":"_xlfn.XLOOKUP($E39,'Competitive Activity 1'!$B$17:$B$23,'Competitive Activity 1'!H$17:H$23,\"N/A\",0,1)","v":"N/A"},{"$f":"_xlfn.XLOOKUP($E39,'Competitive Activity 1'!$B$17:$B$23,'Competitive Activity 1'!I$17:I$23,\"N/A\",0,1)","v":"N/A"},{"$f":"_xlfn.XLOOKUP($E39,'Competitive Activity 1'!$B$17:$B$23,'Competitive Activity 1'!J$17:J$23,\"N/A\",0,1)","v":"N/A"},{"$f":"_xlfn.XLOOKUP($E39,'Competitive Activity 1'!$B$17:$B$23,'Competitive Activity 1'!K$17:K$23,\"N/A\",0,1)","v":"N/A"},{"$f":"_xlfn.XLOOKUP($E39,'Competitive Activity 1'!$B$17:$B$23,'Competitive Activity 1'!M$17:M$23,\"N/A\",0,1)","v":"N/A"},{"$f":"_xlfn.XLOOKUP($E39,'Competitive Activity 1'!$B$17:$B$23,'Competitive Activity 1'!N$17:N$23,\"N/A\",0,1)","v":"N/A"},{"$f":"_xlfn.XLOOKUP($E39,'Competitive Activity 1'!$B$17:$B$23,'Competitive Activity 1'!P$17:P$23,\"N/A\",0,1)","v":"N/A"},{"$f":"_xlfn.XLOOKUP($E39,'Competitive Activity 2'!$B$7:$B$13,'Competitive Activity 2'!A$7:A$13,\"No\",0)","v":"No"},{"$f":"_xlfn.XLOOKUP($E39,'Competitive Activity 2'!$B$7:$B$13,'Competitive Activity 2'!L$7:L$13,\"N/A\",0)","v":"N/A"},{"$f":"_xlfn.XLOOKUP($E39,'Competitive Activity 2'!$B$7:$B$13,'Competitive Activity 2'!M$7:M$13,\"N/A\",0)","v":"N/A"},{"$f":"_xlfn.XLOOKUP($E39,'Competitive Activity 2'!$B$7:$B$13,'Competitive Activity 2'!N$7:N$13,\"N/A\",0)","v":"N/A"},{"$f":"_xlfn.XLOOKUP($E39,'Competitive Activity 2'!$B$7:$B$13,'Competitive Activity 2'!O$7:O$13,\"N/A\",0)","v":"N/A"},{"$f":"_xlfn.XLOOKUP($E39,'Competitive Activity 2'!$B$7:$B$13,'Competitive Activity 2'!P$7:P$13,\"N/A\",0)","v":"N/A"},{"$f":"_xlfn.XLOOKUP($E39,'Competitive Activity 2'!$B$7:$B$13,'Competitive Activity 2'!Q$7:Q$13,\"N/A\",0)","v":"N/A"},{"$f":"_xlfn.XLOOKUP($E39,'Competitive Activity 2'!$B$7:$B$13,'Competitive Activity 2'!R$7:R$13,\"N/A\",0)","v":"N/A"},{"$f":"_xlfn.XLOOKUP($E39,'Competitive Activity 2'!$B$7:$B$13,'Competitive Activity 2'!S$7:S$13,\"N/A\",0)","v":"N/A"},{"$f":"_xlfn.XLOOKUP($E39,'Competitive Activity 2'!$B$7:$B$13,'Competitive Activity 2'!T$7:T$13,\"N/A\",0)","v":"N/A"},{"$f":"_xlfn.XLOOKUP($E39,'Competitive Activity 2'!$B$7:$B$13,'Competitive Activity 2'!U$7:U$13,\"N/A\",0)","v":"N/A"},{"$f":"_xlfn.XLOOKUP($E39,'Competitive Activity 2'!$B$17:$B$23,'Competitive Activity 2'!D$17:D$23,\"N/A\",0)","v":"N/A"},{"$f":"_xlfn.XLOOKUP($E39,'Competitive Activity 2'!$B$17:$B$23,'Competitive Activity 2'!E$17:E$23,\"N/A\",0)","v":"N/A"},{"$f":"_xlfn.XLOOKUP($E39,'Competitive Activity 2'!$B$17:$B$23,'Competitive Activity 2'!F$17:F$23,\"N/A\",0)","v":"N/A"},{"$f":"_xlfn.XLOOKUP($E39,'Competitive Activity 2'!$B$17:$B$23,'Competitive Activity 2'!G$17:G$23,\"N/A\",0)","v":"N/A"},{"$f":"_xlfn.XLOOKUP($E39,'Competitive Activity 2'!$B$17:$B$23,'Competitive Activity 2'!H$17:H$23,\"N/A\",0)","v":"N/A"},{"$f":"_xlfn.XLOOKUP($E39,'Competitive Activity 2'!$B$17:$B$23,'Competitive Activity 2'!I$17:I$23,\"N/A\",0)","v":"N/A"},{"$f":"_xlfn.XLOOKUP($E39,'Competitive Activity 2'!$B$17:$B$23,'Competitive Activity 2'!J$17:J$23,\"N/A\",0)","v":"N/A"},{"$f":"_xlfn.XLOOKUP($E39,'Competitive Activity 2'!$B$17:$B$23,'Competitive Activity 2'!K$17:K$23,\"N/A\",0)","v":"N/A"},{"$f":"_xlfn.XLOOKUP($E39,'Competitive Activity 2'!$B$17:$B$23,'Competitive Activity 2'!L$17:L$23,\"N/A\",0)","v":"N/A"},{"$f":"_xlfn.XLOOKUP($E39,'Competitive Activity 2'!$B$17:$B$23,'Competitive Activity 2'!M$17:M$23,\"N/A\",0)","v":"N/A"},{"$f":"_xlfn.XLOOKUP($E39,'Competitive Activity 2'!$B$17:$B$23,'Competitive Activity 2'!N$17:N$23,\"N/A\",0)","v":"N/A"},{"$f":"_xlfn.XLOOKUP($E39,'Competitive Activity 2'!$B$27:$B$33,'Competitive Activity 2'!D$27:D$33,\"N/A\",0)","v":"N/A"},{"$f":"_xlfn.XLOOKUP($E39,'Competitive Activity 2'!$B$27:$B$33,'Competitive Activity 2'!E$27:E$33,\"N/A\",0)","v":"N/A"},{"$f":"_xlfn.XLOOKUP($E39,'Competitive Activity 2'!$B$27:$B$33,'Competitive Activity 2'!F$27:F$33,\"N/A\",0)","v":"N/A"},{"$f":"_xlfn.XLOOKUP($E39,'Competitive Activity 2'!$B$27:$B$33,'Competitive Activity 2'!G$27:G$33,\"N/A\",0)","v":"N/A"},{"$f":"_xlfn.XLOOKUP($E39,'Competitive Activity 2'!$B$27:$B$33,'Competitive Activity 2'!H$27:H$33,\"N/A\",0)","v":"N/A"},{"$f":"_xlfn.XLOOKUP($E39,'Competitive Activity 2'!$B$27:$B$33,'Competitive Activity 2'!I$27:I$33,\"N/A\",0)","v":"N/A"},{"$f":"_xlfn.XLOOKUP($E39,'Competitive Activity 2'!$B$27:$B$33,'Competitive Activity 2'!J$27:J$33,\"N/A\",0)","v":"N/A"},{"$f":"_xlfn.XLOOKUP($E39,'Competitive Activity 2'!$B$27:$B$33,'Competitive Activity 2'!K$27:K$33,\"N/A\",0)","v":"N/A"},{"$f":"_xlfn.XLOOKUP($E39,'Competitive Activity 2'!$B$27:$B$33,'Competitive Activity 2'!M$27:M$33,\"N/A\",0)","v":"N/A"}]
[{"$f":"'1-Cover Sheet'!$C$8","v":"Select One"},{"$f":"'1-Cover Sheet'!$F$8","v":"Select One"},{"$f":"'Summary Sheet'!$D$8","v":0},{"$f":"'Summary Sheet'!$D$10","v":0},{"$f":"'Drop Down Box'!B204","v":0},{"$f":"'Drop Down Box'!C204","v":0},{"$f":"'Drop Down Box'!D204","v":"Select One"},{"$f":"_xlfn.XLOOKUP(E40,'Drop Down Box'!$B$166:$B$249,'Drop Down Box'!$A$166:$A$249,\"Unknown\",0)","v":"Activity 1"},{"$f":"_xlfn.XLOOKUP($E40,'Activity 6'!$B$32:$B$38,'Activity 6'!$L$32:$L$38,\"N/A\",0)","v":"N/A"},{"$f":"_xlfn.XLOOKUP($E40,'Activity 6'!$B$32:$B$38,'Activity 6'!N$32:N$38,\"N/A\",0)","v":"N/A"},{"$f":"_xlfn.XLOOKUP($E40,'Activity 6'!$B$7:$B$13,'Activity 6'!H$7:H$13,\"N/A\",0)","v":"N/A"},{"$f":"_xlfn.XLOOKUP($E40,'Activity 6'!$B$7:$B$13,'Activity 6'!I$7:I$13,\"N/A\",0)","v":"N/A"},{"$f":"_xlfn.XLOOKUP($E40,'Activity 6'!$B$7:$B$13,'Activity 6'!J$7:J$13,\"N/A\",0)","v":"N/A"},{"$f":"_xlfn.XLOOKUP($E40,'Activity 1'!$B$7:$B$13,'Activity 1'!$A$7:$A$13,\"No\",0,1)","v":"No"},{"$f":"_xlfn.XLOOKUP($E40,'Activity 1'!$B$7:$B$13,'Activity 1'!$H$7:$H$13,\"N/A\",0,1)","v":"N/A"},{"$f":"_xlfn.XLOOKUP($E40,'Activity 1'!$B$7:$B$13,'Activity 1'!I$7:I$13,\"N/A\",0,1)","v":"N/A"},{"$f":"_xlfn.XLOOKUP($E40,'Activity 1'!$B$7:$B$13,'Activity 1'!J$7:J$13,\"N/A\",0,1)","v":"N/A"},{"$f":"_xlfn.XLOOKUP($E40,'Activity 1'!$B$7:$B$13,'Activity 1'!K$7:K$13,\"N/A\",0,1)","v":"N/A"},{"$f":"_xlfn.XLOOKUP($E40,'Activity 1'!$B$7:$B$13,'Activity 1'!L$7:L$13,\"N/A\",0,1)","v":"N/A"},{"$f":"_xlfn.XLOOKUP($E40,'Activity 1'!$B$7:$B$13,'Activity 1'!M$7:M$13,\"N/A\",0,1)","v":"N/A"},{"$f":"_xlfn.XLOOKUP($E40,'Activity 1'!$B$7:$B$13,'Activity 1'!N$7:N$13,\"N/A\",0,1)","v":"N/A"},0,{"$f":"_xlfn.XLOOKUP($E40,'Activity 1'!$B$7:$B$13,'Activity 1'!O$7:O$13,\"N/A\",0,1)","v":"N/A"},{"$f":"_xlfn.XLOOKUP($E40,'Activity 1'!$B$7:$B$13,'Activity 1'!P$7:P$13,\"N/A\",0,1)","v":"N/A"},{"$f":"_xlfn.XLOOKUP($E40,'Activity 1'!$B$7:$B$13,'Activity 1'!Q$7:Q$13,\"N/A\",0,1)","v":"N/A"},{"$f":"_xlfn.XLOOKUP($E40,'Activity 1'!$B$7:$B$13,'Activity 1'!R$7:R$13,\"N/A\",0,1)","v":"N/A"},{"$f":"_xlfn.XLOOKUP($E40,'Activity 1'!$B$7:$B$13,'Activity 1'!S$7:S$13,\"N/A\",0,1)","v":"N/A"},{"$f":"_xlfn.XLOOKUP($E40,'Activity 1'!$B$7:$B$13,'Activity 1'!T$7:T$13,\"N/A\",0,1)","v":"N/A"},{"$f":"_xlfn.XLOOKUP($E40,'Activity 1'!$B$7:$B$13,'Activity 1'!U$7:U$13,\"N/A\",0,1)","v":"N/A"},{"$f":"_xlfn.XLOOKUP($E40,'Activity 1'!$B$7:$B$13,'Activity 1'!V$7:V$13,\"N/A\",0,1)","v":"N/A"},{"$f":"_xlfn.XLOOKUP($E40,'Activity 1'!$B$17:$B$23,'Activity 1'!C$17:C$23,\"N/A\",0,1)","v":"N/A"},{"$f":"_xlfn.XLOOKUP($E40,'Activity 1'!$B$17:$B$23,'Activity 1'!D$17:D$23,\"N/A\",0,1)","v":"N/A"},{"$f":"_xlfn.XLOOKUP($E40,'Activity 1'!$B$17:$B$23,'Activity 1'!E$17:E$23,\"N/A\",0,1)","v":"N/A"},{"$f":"_xlfn.XLOOKUP($E40,'Activity 1'!$B$17:$B$23,'Activity 1'!F$17:F$23,\"N/A\",0,1)","v":"N/A"},{"$f":"_xlfn.XLOOKUP($E40,'Activity 1'!$B$17:$B$23,'Activity 1'!G$17:G$23,\"N/A\",0,1)","v":"N/A"},{"$f":"_xlfn.XLOOKUP($E40,'Activity 1'!$B$17:$B$23,'Activity 1'!H$17:H$23,\"N/A\",0,1)","v":"N/A"},{"$f":"_xlfn.XLOOKUP($E40,'Activity 1'!$B$17:$B$23,'Activity 1'!I$17:I$23,\"N/A\",0,1)","v":"N/A"},{"$f":"_xlfn.XLOOKUP($E40,'Activity 1'!$B$17:$B$23,'Activity 1'!J$17:J$23,\"N/A\",0,1)","v":"N/A"},{"$f":"_xlfn.XLOOKUP($E40,'Activity 1'!$B$17:$B$23,'Activity 1'!K$17:K$23,\"N/A\",0,1)","v":"N/A"},{"$f":"_xlfn.XLOOKUP($E40,'Activity 1'!$B$17:$B$23,'Activity 1'!L$17:L$23,\"N/A\",0,1)","v":"N/A"},{"$f":"_xlfn.XLOOKUP($E40,'Activity 1'!$B$17:$B$23,'Activity 1'!M$17:M$23,\"N/A\",0,1)","v":"N/A"},{"$f":"_xlfn.XLOOKUP($E40,'Activity 1'!$B$17:$B$23,'Activity 1'!O$17:O$23,\"N/A\",0,1)","v":"N/A"},{"$f":"_xlfn.XLOOKUP($E40,'Activity 1'!$B$17:$B$23,'Activity 1'!Q$17:Q$23,\"N/A\",0,1)","v":"N/A"},{"$f":"_xlfn.XLOOKUP($E40,'Activity 2'!$B$7:$B$13,'Activity 2'!$A$7:$A$13,\"No\",0,1)","v":"No"},{"$f":"_xlfn.XLOOKUP($E40,'Activity 2'!B$7:B$13,'Activity 2'!H$7:H$13,\"N/A\",0)","v":"N/A"},{"$f":"_xlfn.XLOOKUP($E40,'Activity 2'!C$7:C$13,'Activity 2'!I$7:I$13,\"N/A\",0)","v":"N/A"},{"$f":"_xlfn.XLOOKUP($E40,'Activity 2'!D$7:D$13,'Activity 2'!J$7:J$13,\"N/A\",0)","v":"N/A"},{"$f":"_xlfn.XLOOKUP($E40,'Activity 2'!E$7:E$13,'Activity 2'!K$7:K$13,\"N/A\",0)","v":"N/A"},{"$f":"_xlfn.XLOOKUP($E40,'Activity 2'!F$7:F$13,'Activity 2'!L$7:L$13,\"N/A\",0)","v":"N/A"},{"$f":"_xlfn.XLOOKUP($E40,'Activity 2'!G$7:G$13,'Activity 2'!M$7:M$13,\"N/A\",0)","v":"N/A"},{"$f":"_xlfn.XLOOKUP($E40,'Activity 2'!H$7:H$13,'Activity 2'!N$7:N$13,\"N/A\",0)","v":"N/A"},{"$f":"_xlfn.XLOOKUP($E40,'Activity 2'!I$7:I$13,'Activity 2'!O$7:O$13,\"N/A\",0)","v":"N/A"},{"$f":"_xlfn.XLOOKUP($E40,'Activity 2'!J$7:J$13,'Activity 2'!P$7:P$13,\"N/A\",0)","v":"N/A"},{"$f":"_xlfn.XLOOKUP($E40,'Activity 2'!K$7:K$13,'Activity 2'!Q$7:Q$13,\"N/A\",0)","v":"N/A"},{"$f":"_xlfn.XLOOKUP($E40,'Activity 2'!L$7:L$13,'Activity 2'!R$7:R$13,\"N/A\",0)","v":"N/A"},{"$f":"_xlfn.XLOOKUP($E40,'Activity 2'!M$7:M$13,'Activity 2'!S$7:S$13,\"N/A\",0)","v":"N/A"},{"$f":"_xlfn.XLOOKUP($E40,'Activity 2'!N$7:N$13,'Activity 2'!T$7:T$13,\"N/A\",0)","v":"N/A"},{"$f":"_xlfn.XLOOKUP($E40,'Activity 2'!O$7:O$13,'Activity 2'!U$7:U$13,\"N/A\",0)","v":"N/A"},{"$f":"_xlfn.XLOOKUP($E40,'Activity 2'!P$7:P$13,'Activity 2'!V$7:V$13,\"N/A\",0)","v":"N/A"},{"$f":"_xlfn.XLOOKUP($E40,'Activity 2'!$B$17:$B$23,'Activity 2'!C$17:C$23,\"N/A\",0,1)","v":"N/A"},{"$f":"_xlfn.XLOOKUP($E40,'Activity 2'!$B$17:$B$23,'Activity 2'!D$17:D$23,\"N/A\",0,1)","v":"N/A"},{"$f":"_xlfn.XLOOKUP($E40,'Activity 2'!$B$17:$B$23,'Activity 2'!E$17:E$23,\"N/A\",0,1)","v":"N/A"},{"$f":"_xlfn.XLOOKUP($E40,'Activity 2'!$B$17:$B$23,'Activity 2'!F$17:F$23,\"N/A\",0,1)","v":"N/A"},{"$f":"_xlfn.XLOOKUP($E40,'Activity 2'!$B$17:$B$23,'Activity 2'!G$17:G$23,\"N/A\",0,1)","v":"N/A"},{"$f":"_xlfn.XLOOKUP($E40,'Activity 2'!$B$17:$B$23,'Activity 2'!H$17:H$23,\"N/A\",0,1)","v":"N/A"},{"$f":"_xlfn.XLOOKUP($E40,'Activity 2'!$B$17:$B$23,'Activity 2'!I$17:I$23,\"N/A\",0,1)","v":"N/A"},{"$f":"_xlfn.XLOOKUP($E40,'Activity 2'!$B$17:$B$23,'Activity 2'!J$17:J$23,\"N/A\",0,1)","v":"N/A"},{"$f":"_xlfn.XLOOKUP($E40,'Activity 2'!$B$17:$B$23,'Activity 2'!K$17:K$23,\"N/A\",0,1)","v":"N/A"},{"$f":"_xlfn.XLOOKUP($E40,'Activity 2'!$B$17:$B$23,'Activity 2'!L$17:L$23,\"N/A\",0,1)","v":"N/A"},{"$f":"_xlfn.XLOOKUP($E40,'Activity 2'!$B$17:$B$23,'Activity 2'!M$17:M$23,\"N/A\",0,1)","v":"N/A"},{"$f":"_xlfn.XLOOKUP($E40,'Activity 2'!$B$17:$B$23,'Activity 2'!O$17:O$23,\"N/A\",0,1)","v":"N/A"},{"$f":"_xlfn.XLOOKUP($E40,'Activity 2'!$B$17:$B$23,'Activity 2'!Q$17:Q$23,\"N/A\",0,1)","v":"N/A"},null,{"$f":"_xlfn.XLOOKUP($E40,'Activity 3'!$B$8:$B$14,'Activity 3'!K$8:K$14,\"N/A\",0,1)","v":"N/A"},{"$f":"_xlfn.XLOOKUP($E40,'Activity 3'!$B$8:$B$14,'Activity 3'!L$8:L$14,\"N/A\",0,1)","v":"N/A"},{"$f":"_xlfn.XLOOKUP($E40,'Activity 3'!$B$8:$B$14,'Activity 3'!M$8:M$14,\"N/A\",0,1)","v":"N/A"},{"$f":"_xlfn.XLOOKUP($E40,'Activity 3'!$B$8:$B$14,'Activity 3'!N$8:N$14,\"N/A\",0,1)","v":"N/A"},{"$f":"_xlfn.XLOOKUP($E40,'Activity 3'!$B$8:$B$14,'Activity 3'!O$8:O$14,\"N/A\",0,1)","v":"N/A"},{"$f":"_xlfn.XLOOKUP($E40,'Activity 3'!$B$8:$B$14,'Activity 3'!R$8:R$14,\"N/A\",0,1)","v":"N/A"},{"$f":"_xlfn.XLOOKUP($E40,'Activity 4'!$B$8:$B$14,'Activity 4'!$A$8:$A$14,\"No\",0,1)","v":"No"},{"$f":"_xlfn.XLOOKUP($E40,'Activity 4'!$B$8:$B$14,'Activity 4'!L$8:L$14,\"N/A\",0,1)","v":"N/A"},{"$f":"_xlfn.XLOOKUP($E40,'Activity 4'!$B$8:$B$14,'Activity 4'!I$8:I$14,\"N/A\",0,1)","v":"N/A"},{"$f":"_xlfn.XLOOKUP($E40,'Activity 4'!$B$8:$B$14,'Activity 4'!M$8:M$14,\"N/A\",0,1)","v":"N/A"},{"$f":"_xlfn.XLOOKUP($E40,'Activity 5'!$B$8:$B$14,'Activity 5'!$A$8:$A$14,\"No\",0,1)","v":"No"},{"$f":"_xlfn.XLOOKUP($E40,'Activity 5'!$B$8:$B$14,'Activity 5'!J$8:J$14,\"N/A\",0,1)","v":"N/A"},{"$f":"_xlfn.XLOOKUP($E40,'Activity 5'!$B$8:$B$14,'Activity 5'!K$8:K$14,\"N/A\",0,1)","v":"N/A"},{"$f":"_xlfn.XLOOKUP($E40,'Activity 5'!$B$8:$B$14,'Activity 5'!N$8:N$14,\"N/A\",0,1)","v":"N/A"},{"$f":"_xlfn.XLOOKUP($E40,'Activity 5'!$B$8:$B$14,'Activity 5'!O$8:O$14,\"N/A\",0,1)","v":"N/A"},{"$f":"_xlfn.XLOOKUP($E40,'Activity 5'!$B$8:$B$14,'Activity 5'!P$8:P$14,\"N/A\",0,1)","v":"N/A"},{"$f":"_xlfn.XLOOKUP($E40,'Activity 5'!$B$8:$B$14,'Activity 5'!Q$8:Q$14,\"N/A\",0,1)","v":"N/A"},{"$f":"_xlfn.XLOOKUP($E40,'Activity 5'!$B$8:$B$14,'Activity 5'!R$8:R$14,\"N/A\",0,1)","v":"N/A"},{"$f":"_xlfn.XLOOKUP($E40,'Activity 6'!$B$7:$B$13,'Activity 6'!A$7:A$13,\"No\",0,1)","v":"No"},{"$f":"_xlfn.XLOOKUP($E40,'Activity 6'!$B$7:$B$13,'Activity 6'!K$7:K$13,\"N/A\",0,1)","v":"N/A"},{"$f":"_xlfn.XLOOKUP($E40,'Activity 6'!$B$7:$B$13,'Activity 6'!L$7:L$13,\"N/A\",0,1)","v":"N/A"},{"$f":"_xlfn.XLOOKUP($E40,'Activity 6'!$B$7:$B$13,'Activity 6'!M$7:M$13,\"N/A\",0,1)","v":"N/A"},{"$f":"_xlfn.XLOOKUP($E40,'Activity 6'!$B$7:$B$13,'Activity 6'!N$7:N$13,\"N/A\",0,1)","v":"N/A"},{"$f":"_xlfn.XLOOKUP($E40,'Activity 6'!$B$7:$B$13,'Activity 6'!O$7:O$13,\"N/A\",0,1)","v":"N/A"},{"$f":"_xlfn.XLOOKUP($E40,'Activity 6'!$B$7:$B$13,'Activity 6'!P$7:P$13,\"N/A\",0,1)","v":"N/A"},{"$f":"_xlfn.XLOOKUP($E40,'Activity 6'!$B$7:$B$13,'Activity 6'!Q$7:Q$13,\"N/A\",0,1)","v":"N/A"},{"$f":"_xlfn.XLOOKUP($E40,'Activity 6'!$B$7:$B$13,'Activity 6'!R$7:R$13,\"N/A\",0,1)","v":"N/A"},{"$f":"_xlfn.XLOOKUP($E40,'Activity 6'!$B$7:$B$13,'Activity 6'!S$7:S$13,\"N/A\",0,1)","v":"N/A"},{"$f":"_xlfn.XLOOKUP($E40,'Activity 6'!$B$7:$B$13,'Activity 6'!T$7:T$13,\"N/A\",0,1)","v":"N/A"},{"$f":"_xlfn.XLOOKUP($E40,'Activity 6'!$B$7:$B$13,'Activity 6'!U$7:U$13,\"N/A\",0,1)","v":"N/A"},{"$f":"_xlfn.XLOOKUP($E40,'Activity 6'!$B$22:$B$28,'Activity 6'!C$22:C$28,\"N/A\",0,1)","v":"N/A"},{"$f":"_xlfn.XLOOKUP($E40,'Activity 6'!$B$22:$B$28,'Activity 6'!D$22:D$28,\"N/A\",0,1)","v":"N/A"},{"$f":"_xlfn.XLOOKUP($E40,'Activity 6'!$B$22:$B$28,'Activity 6'!E$22:E$28,\"N/A\",0,1)","v":"N/A"},{"$f":"_xlfn.XLOOKUP($E40,'Activity 6'!$B$22:$B$28,'Activity 6'!F$22:F$28,\"N/A\",0,1)","v":"N/A"},{"$f":"_xlfn.XLOOKUP($E40,'Activity 6'!$B$22:$B$28,'Activity 6'!G$22:G$28,\"N/A\",0,1)","v":"N/A"},{"$f":"_xlfn.XLOOKUP($E40,'Activity 6'!$B$22:$B$28,'Activity 6'!H$22:H$28,\"N/A\",0,1)","v":"N/A"},{"$f":"_xlfn.XLOOKUP($E40,'Activity 6'!$B$22:$B$28,'Activity 6'!I$22:I$28,\"N/A\",0,1)","v":"N/A"},{"$f":"_xlfn.XLOOKUP($E40,'Activity 6'!$B$22:$B$28,'Activity 6'!J$22:J$28,\"N/A\",0,1)","v":"N/A"},{"$f":"_xlfn.XLOOKUP($E40,'Activity 6'!$B$22:$B$28,'Activity 6'!K$22:K$28,\"N/A\",0,1)","v":"N/A"},{"$f":"_xlfn.XLOOKUP($E40,'Activity 6'!$B$22:$B$28,'Activity 6'!L$22:L$28,\"N/A\",0,1)","v":"N/A"},{"$f":"_xlfn.XLOOKUP($E40,'Activity 6'!$B$22:$B$28,'Activity 6'!M$22:M$28,\"N/A\",0,1)","v":"N/A"},{"$f":"_xlfn.XLOOKUP($E40,'Activity 6'!$B$22:$B$28,'Activity 6'!N$22:N$28,\"N/A\",0,1)","v":"N/A"},{"$f":"_xlfn.XLOOKUP($E40,'Activity 6'!$B$32:$B$38,'Activity 6'!C$32:C$38,\"N/A\",0,1)","v":"N/A"},{"$f":"_xlfn.XLOOKUP($E40,'Activity 6'!$B$32:$B$38,'Activity 6'!D$32:D$38,\"N/A\",0,1)","v":"N/A"},{"$f":"_xlfn.XLOOKUP($E40,'Activity 6'!$B$32:$B$38,'Activity 6'!E$32:E$38,\"N/A\",0,1)","v":"N/A"},{"$f":"_xlfn.XLOOKUP($E40,'Activity 6'!$B$32:$B$38,'Activity 6'!F$32:F$38,\"N/A\",0,1)","v":"N/A"},{"$f":"_xlfn.XLOOKUP($E40,'Activity 6'!$B$32:$B$38,'Activity 6'!G$32:G$38,\"N/A\",0,1)","v":"N/A"},{"$f":"_xlfn.XLOOKUP($E40,'Activity 6'!$B$32:$B$38,'Activity 6'!H$32:H$38,\"N/A\",0,1)","v":"N/A"},{"$f":"_xlfn.XLOOKUP($E40,'Activity 6'!$B$32:$B$38,'Activity 6'!I$32:I$38,\"N/A\",0,1)","v":"N/A"},{"$f":"_xlfn.XLOOKUP($E40,'Activity 6'!$B$32:$B$38,'Activity 6'!J$32:J$38,\"N/A\",0,1)","v":"N/A"},{"$f":"_xlfn.XLOOKUP($E40,'Activity 6'!$B$32:$B$38,'Activity 6'!K$32:K$38,\"N/A\",0,1)","v":"N/A"},{"$f":"_xlfn.XLOOKUP($E40,'Activity 6'!$B$32:$B$38,'Activity 6'!M$32:M$38,\"N/A\",0,1)","v":"N/A"},{"$f":"_xlfn.XLOOKUP($E40,'Activity 7'!$B$7:$B$13,'Activity 7'!$A$7:$A$13,\"No\",0,1)","v":"No"},{"$f":"_xlfn.XLOOKUP($E40,'Activity 7'!$B$7:$B$13,'Activity 7'!M$7:M$13,\"N/A\",0,1)","v":"N/A"},{"$f":"_xlfn.XLOOKUP($E40,'Activity 7'!$B$7:$B$13,'Activity 7'!K$7:K$13,\"N/A\",0,1)","v":"N/A"},{"$f":"_xlfn.XLOOKUP($E40,'Activity 7'!$B$7:$B$13,'Activity 7'!N$7:N$13,\"N/A\",0,1)","v":"N/A"},{"$f":"_xlfn.XLOOKUP($E40,'Activity 7'!$B$7:$B$13,'Activity 7'!O$7:O$13,\"N/A\",0,1)","v":"N/A"},{"$f":"_xlfn.XLOOKUP($E40,'Activity 7'!$B$7:$B$13,'Activity 7'!P$7:P$13,\"N/A\",0,1)","v":"N/A"},{"$f":"_xlfn.XLOOKUP($E40,'Activity 7'!$B$7:$B$13,'Activity 7'!Q$7:Q$13,\"N/A\",0,1)","v":"N/A"},{"$f":"_xlfn.XLOOKUP($E40,'Activity 7'!$B$7:$B$13,'Activity 7'!R$7:R$13,\"N/A\",0,1)","v":"N/A"},{"$f":"_xlfn.XLOOKUP($E40,'Activity 7'!$B$7:$B$13,'Activity 7'!S$7:S$13,\"N/A\",0,1)","v":"N/A"},{"$f":"_xlfn.XLOOKUP($E40,'Activity 7'!$B$7:$B$13,'Activity 7'!T$7:T$13,\"N/A\",0,1)","v":"N/A"},{"$f":"_xlfn.XLOOKUP($E40,'Activity 7'!$B$7:$B$13,'Activity 7'!U$7:U$13,\"N/A\",0,1)","v":"N/A"},{"$f":"_xlfn.XLOOKUP($E40,'Activity 7'!$B$7:$B$13,'Activity 7'!V$7:V$13,\"N/A\",0,1)","v":"N/A"},{"$f":"_xlfn.XLOOKUP($E40,'Activity 7'!$B$17:$B$23,'Activity 7'!E$17:E$23,\"N/A\",0,1)","v":"N/A"},{"$f":"_xlfn.XLOOKUP($E40,'Activity 7'!$B$17:$B$23,'Activity 7'!G$17:G$23,\"N/A\",0,1)","v":"N/A"},{"$f":"_xlfn.XLOOKUP($E40,'Activity 7'!$B$17:$B$23,'Activity 7'!I$17:I$23,\"N/A\",0,1)","v":"N/A"},{"$f":"_xlfn.XLOOKUP($E40,'Activity 7'!$B$17:$B$23,'Activity 7'!J$17:J$23,\"N/A\",0,1)","v":"N/A"},{"$f":"_xlfn.XLOOKUP($E40,'Activity 7'!$B$17:$B$23,'Activity 7'!K$17:K$23,\"N/A\",0,1)","v":"N/A"},{"$f":"_xlfn.XLOOKUP($E40,'Activity 7'!$B$17:$B$23,'Activity 7'!L$17:L$23,\"N/A\",0,1)","v":"N/A"},{"$f":"_xlfn.XLOOKUP($E40,'Activity 7'!$B$17:$B$23,'Activity 7'!M$17:M$23,\"N/A\",0,1)","v":"N/A"},{"$f":"_xlfn.XLOOKUP($E40,'Activity 7'!$B$17:$B$23,'Activity 7'!N$17:N$23,\"N/A\",0,1)","v":"N/A"},{"$f":"_xlfn.XLOOKUP($E40,'Activity 7'!$B$17:$B$23,'Activity 7'!P$17:P$23,\"N/A\",0,1)","v":"N/A"},{"$f":"_xlfn.XLOOKUP($E40,'Activity 8'!$B$7:$B$13,'Activity 8'!A$7:A$13,\"No\",0,1)","v":"No"},{"$f":"_xlfn.XLOOKUP($E40,'Activity 8'!$B$7:$B$13,'Activity 8'!I$7:I$13,\"N/A\",0,1)","v":"N/A"},{"$f":"_xlfn.XLOOKUP($E40,'Activity 8'!$B$7:$B$13,'Activity 8'!J$7:J$13,\"N/A\",0,1)","v":"N/A"},{"$f":"_xlfn.XLOOKUP($E40,'Activity 8'!$B$7:$B$13,'Activity 8'!K$7:K$13,\"N/A\",0,1)","v":"N/A"},{"$f":"_xlfn.XLOOKUP($E40,'Activity 8'!$B$7:$B$13,'Activity 8'!L$7:L$13,\"N/A\",0,1)","v":"N/A"},{"$f":"_xlfn.XLOOKUP($E40,'Activity 8'!$B$7:$B$13,'Activity 8'!M$7:M$13,\"N/A\",0,1)","v":"N/A"},{"$f":"_xlfn.XLOOKUP($E40,'Activity 8'!$B$7:$B$13,'Activity 8'!N$7:N$13,\"N/A\",0,1)","v":"N/A"},{"$f":"_xlfn.XLOOKUP($E40,'Activity 8'!$B$7:$B$13,'Activity 8'!O$7:O$13,\"N/A\",0,1)","v":"N/A"},{"$f":"_xlfn.XLOOKUP($E40,'Activity 8'!$B$7:$B$13,'Activity 8'!P$7:P$13,\"N/A\",0,1)","v":"N/A"},{"$f":"_xlfn.XLOOKUP($E40,'Activity 8'!$B$7:$B$13,'Activity 8'!Q$7:Q$13,\"N/A\",0,1)","v":"N/A"},{"$f":"_xlfn.XLOOKUP($E40,'Activity 8'!$B$7:$B$13,'Activity 8'!R$7:R$13,\"N/A\",0,1)","v":"N/A"},{"$f":"_xlfn.XLOOKUP($E40,'Activity 8'!$B$7:$B$13,'Activity 8'!S$7:S$13,\"N/A\",0,1)","v":"N/A"},{"$f":"_xlfn.XLOOKUP($E40,'Activity 8'!$B$7:$B$13,'Activity 8'!T$7:T$13,\"N/A\",0,1)","v":"N/A"},{"$f":"_xlfn.XLOOKUP($E40,'Activity 8'!$B$7:$B$13,'Activity 8'!U$7:U$13,\"N/A\",0,1)","v":"N/A"},{"$f":"_xlfn.XLOOKUP($E40,'Activity 8'!$B$7:$B$13,'Activity 8'!V$7:V$13,\"N/A\",0,1)","v":"N/A"},{"$f":"_xlfn.XLOOKUP($E40,'Activity 8'!$B$17:$B$23,'Activity 8'!D$17:D$23,\"N/A\",0,1)","v":"N/A"},{"$f":"_xlfn.XLOOKUP($E40,'Activity 8'!$B$17:$B$23,'Activity 8'!E$17:E$23,\"N/A\",0,1)","v":"N/A"},{"$f":"_xlfn.XLOOKUP($E40,'Activity 8'!$B$17:$B$23,'Activity 8'!F$17:F$23,\"N/A\",0,1)","v":"N/A"},{"$f":"_xlfn.XLOOKUP($E40,'Activity 8'!$B$17:$B$23,'Activity 8'!G$17:G$23,\"N/A\",0,1)","v":"N/A"},{"$f":"_xlfn.XLOOKUP($E40,'Activity 8'!$B$17:$B$23,'Activity 8'!H$17:H$23,\"N/A\",0,1)","v":"N/A"},{"$f":"_xlfn.XLOOKUP($E40,'Activity 8'!$B$17:$B$23,'Activity 8'!I$17:I$23,\"N/A\",0,1)","v":"N/A"},{"$f":"_xlfn.XLOOKUP($E40,'Activity 8'!$B$17:$B$23,'Activity 8'!J$17:J$23,\"N/A\",0,1)","v":"N/A"},{"$f":"_xlfn.XLOOKUP($E40,'Activity 8'!$B$17:$B$23,'Activity 8'!K$17:K$23,\"N/A\",0,1)","v":"N/A"},{"$f":"_xlfn.XLOOKUP($E40,'Activity 8'!$B$17:$B$23,'Activity 8'!L$17:L$23,\"N/A\",0,1)","v":"N/A"},{"$f":"_xlfn.XLOOKUP($E40,'Activity 8'!$B$17:$B$23,'Activity 8'!M$17:M$23,\"N/A\",0,1)","v":"N/A"},{"$f":"_xlfn.XLOOKUP($E40,'Activity 8'!$B$17:$B$23,'Activity 8'!N$17:N$23,\"N/A\",0,1)","v":"N/A"},{"$f":"_xlfn.XLOOKUP($E40,'Activity 8'!$B$17:$B$23,'Activity 8'!P$17:P$23,\"N/A\",0,1)","v":"N/A"},{"$f":"_xlfn.XLOOKUP(E40,'Activity 9'!$B$7:$B$13,'Activity 9'!$A$7:$A$13,\"No\",0,1)","v":"No"},{"$f":"_xlfn.XLOOKUP($E40,'Activity 9'!$B$7:$B$13,'Activity 9'!J$7:J$13,\"N/A\",0,1)","v":"N/A"},{"$f":"_xlfn.XLOOKUP($E40,'Activity 9'!$B$7:$B$13,'Activity 9'!K$7:K$13,\"N/A\",0,1)","v":"N/A"},{"$f":"_xlfn.XLOOKUP($E40,'Activity 9'!$B$7:$B$13,'Activity 9'!L$7:L$13,\"N/A\",0,1)","v":"N/A"},{"$f":"_xlfn.XLOOKUP($E40,'Activity 9'!$B$7:$B$13,'Activity 9'!M$7:M$13,\"N/A\",0,1)","v":"N/A"},{"$f":"_xlfn.XLOOKUP($E40,'Activity 9'!$B$7:$B$13,'Activity 9'!N$7:N$13,\"N/A\",0,1)","v":"N/A"},{"$f":"_xlfn.XLOOKUP($E40,'Activity 9'!$B$7:$B$13,'Activity 9'!O$7:O$13,\"N/A\",0,1)","v":"N/A"},{"$f":"_xlfn.XLOOKUP($E40,'Activity 9'!$B$7:$B$13,'Activity 9'!P$7:P$13,\"N/A\",0,1)","v":"N/A"},{"$f":"_xlfn.XLOOKUP($E40,'Activity 9'!$B$7:$B$13,'Activity 9'!Q$7:Q$13,\"N/A\",0,1)","v":"N/A"},{"$f":"_xlfn.XLOOKUP($E40,'Activity 9'!$B$7:$B$13,'Activity 9'!R$7:R$13,\"N/A\",0,1)","v":"N/A"},{"$f":"_xlfn.XLOOKUP($E40,'Activity 9'!$B$7:$B$13,'Activity 9'!S$7:S$13,\"N/A\",0,1)","v":"N/A"},{"$f":"_xlfn.XLOOKUP($E40,'Activity 9'!$B$7:$B$13,'Activity 9'!T$7:T$13,\"N/A\",0,1)","v":"N/A"},{"$f":"_xlfn.XLOOKUP($E40,'Activity 9'!$B$17:$B$23,'Activity 9'!E$17:E$23,\"N/A\",0,1)","v":"N/A"},{"$f":"_xlfn.XLOOKUP($E40,'Activity 9'!$B$17:$B$23,'Activity 9'!F$17:F$23,\"N/A\",0,1)","v":"N/A"},{"$f":"_xlfn.XLOOKUP($E40,'Activity 9'!$B$17:$B$23,'Activity 9'!G$17:G$23,\"N/A\",0,1)","v":"N/A"},{"$f":"_xlfn.XLOOKUP($E40,'Activity 9'!$B$17:$B$23,'Activity 9'!H$17:H$23,\"N/A\",0,1)","v":"N/A"},{"$f":"_xlfn.XLOOKUP($E40,'Activity 9'!$B$17:$B$23,'Activity 9'!I$17:I$23,\"N/A\",0,1)","v":"N/A"},{"$f":"_xlfn.XLOOKUP($E40,'Activity 9'!$B$17:$B$23,'Activity 9'!J$17:J$23,\"N/A\",0,1)","v":"N/A"},{"$f":"_xlfn.XLOOKUP($E40,'Activity 9'!$B$17:$B$23,'Activity 9'!K$17:K$23,\"N/A\",0,1)","v":"N/A"},{"$f":"_xlfn.XLOOKUP($E40,'Activity 9'!$B$17:$B$23,'Activity 9'!L$17:L$23,\"N/A\",0,1)","v":"N/A"},{"$f":"_xlfn.XLOOKUP($E40,'Activity 9'!$B$17:$B$23,'Activity 9'!N$17:N$23,\"N/A\",0,1)","v":"N/A"},{"$f":"_xlfn.XLOOKUP($E40,'Activity 9'!$B$17:$B$23,'Activity 9'!O$17:O$23,\"N/A\",0,1)","v":"N/A"},{"$f":"_xlfn.XLOOKUP($E40,'Activity 9'!$B$17:$B$23,'Activity 9'!Q$17:Q$23,\"N/A\",0,1)","v":"N/A"},{"$f":"_xlfn.XLOOKUP($E40,'Activity 10'!$B$7:$B$13,'Activity 10'!A$7:A$13,\"No\",0,1)","v":"No"},{"$f":"_xlfn.XLOOKUP($E40,'Activity 10'!$B$7:$B$13,'Activity 10'!J$7:J$13,\"N/A\",0,1)","v":"N/A"},{"$f":"_xlfn.XLOOKUP($E40,'Activity 10'!$B$7:$B$13,'Activity 10'!K$7:K$13,\"N/A\",0,1)","v":"N/A"},{"$f":"_xlfn.XLOOKUP($E40,'Activity 10'!$B$7:$B$13,'Activity 10'!L$7:L$13,\"N/A\",0,1)","v":"N/A"},{"$f":"_xlfn.XLOOKUP($E40,'Activity 10'!$B$7:$B$13,'Activity 10'!M$7:M$13,\"N/A\",0,1)","v":"N/A"},{"$f":"_xlfn.XLOOKUP($E40,'Activity 10'!$B$7:$B$13,'Activity 10'!N$7:N$13,\"N/A\",0,1)","v":"N/A"},{"$f":"_xlfn.XLOOKUP($E40,'Activity 10'!$B$7:$B$13,'Activity 10'!O$7:O$13,\"N/A\",0,1)","v":"N/A"},{"$f":"_xlfn.XLOOKUP($E40,'Activity 10'!$B$7:$B$13,'Activity 10'!P$7:P$13,\"N/A\",0,1)","v":"N/A"},{"$f":"_xlfn.XLOOKUP($E40,'Activity 10'!$B$7:$B$13,'Activity 10'!Q$7:Q$13,\"N/A\",0,1)","v":"N/A"},{"$f":"_xlfn.XLOOKUP($E40,'Activity 10'!$B$7:$B$13,'Activity 10'!R$7:R$13,\"N/A\",0,1)","v":"N/A"},{"$f":"_xlfn.XLOOKUP($E40,'Activity 10'!$B$7:$B$13,'Activity 10'!S$7:S$13,\"N/A\",0,1)","v":"N/A"},{"$f":"_xlfn.XLOOKUP($E40,'Activity 10'!$B$7:$B$13,'Activity 10'!T$7:T$13,\"N/A\",0,1)","v":"N/A"},{"$f":"_xlfn.XLOOKUP($E40,'Activity 10'!$B$7:$B$13,'Activity 10'!U$7:U$13,\"N/A\",0,1)","v":"N/A"},{"$f":"_xlfn.XLOOKUP($E40,'Activity 10'!$B$7:$B$13,'Activity 10'!V$7:V$13,\"N/A\",0,1)","v":"N/A"},{"$f":"_xlfn.XLOOKUP($E40,'Activity 10'!$B$17:$B$23,'Activity 10'!E$17:E$23,\"N/A\",0,1)","v":"N/A"},{"$f":"_xlfn.XLOOKUP($E40,'Activity 10'!$B$17:$B$23,'Activity 10'!F$17:F$23,\"N/A\",0,1)","v":"N/A"},{"$f":"_xlfn.XLOOKUP($E40,'Activity 10'!$B$17:$B$23,'Activity 10'!G$17:G$23,\"N/A\",0,1)","v":"N/A"},{"$f":"_xlfn.XLOOKUP($E40,'Activity 10'!$B$17:$B$23,'Activity 10'!H$17:H$23,\"N/A\",0,1)","v":"N/A"},{"$f":"_xlfn.XLOOKUP($E40,'Activity 10'!$B$17:$B$23,'Activity 10'!I$17:I$23,\"N/A\",0,1)","v":"N/A"},{"$f":"_xlfn.XLOOKUP($E40,'Activity 10'!$B$17:$B$23,'Activity 10'!J$17:J$23,\"N/A\",0,1)","v":"N/A"},{"$f":"_xlfn.XLOOKUP($E40,'Activity 10'!$B$17:$B$23,'Activity 10'!K$17:K$23,\"N/A\",0,1)","v":"N/A"},{"$f":"_xlfn.XLOOKUP($E40,'Activity 10'!$B$17:$B$23,'Activity 10'!L$17:L$23,\"N/A\",0,1)","v":"N/A"},{"$f":"_xlfn.XLOOKUP($E40,'Activity 10'!$B$17:$B$23,'Activity 10'!M$17:M$23,\"N/A\",0,1)","v":"N/A"},{"$f":"_xlfn.XLOOKUP($E40,'Activity 10'!$B$17:$B$23,'Activity 10'!N$17:N$23,\"N/A\",0,1)","v":"N/A"},{"$f":"_xlfn.XLOOKUP($E40,'Activity 10'!$B$17:$B$23,'Activity 10'!P$17:P$23,\"N/A\",0,1)","v":"N/A"},{"$f":"_xlfn.XLOOKUP($E40,'Competitive Activity 1'!B$7:B$13,'Competitive Activity 1'!A$7:A$13,\"No\",0,1)","v":"No"},{"$f":"_xlfn.XLOOKUP($E40,'Competitive Activity 1'!$B$7:$B$13,'Competitive Activity 1'!H$7:H$13,\"N/A\",0,1)","v":"N/A"},{"$f":"_xlfn.XLOOKUP($E40,'Competitive Activity 1'!$B$7:$B$13,'Competitive Activity 1'!I$7:I$13,\"N/A\",0,1)","v":"N/A"},{"$f":"_xlfn.XLOOKUP($E40,'Competitive Activity 1'!$B$7:$B$13,'Competitive Activity 1'!J$7:J$13,\"N/A\",0,1)","v":"N/A"},{"$f":"_xlfn.XLOOKUP($E40,'Competitive Activity 1'!$B$7:$B$13,'Competitive Activity 1'!K$7:K$13,\"N/A\",0,1)","v":"N/A"},{"$f":"_xlfn.XLOOKUP($E40,'Competitive Activity 1'!$B$7:$B$13,'Competitive Activity 1'!L$7:L$13,\"N/A\",0,1)","v":"N/A"},{"$f":"_xlfn.XLOOKUP($E40,'Competitive Activity 1'!$B$7:$B$13,'Competitive Activity 1'!M$7:M$13,\"N/A\",0,1)","v":"N/A"},{"$f":"_xlfn.XLOOKUP($E40,'Competitive Activity 1'!$B$7:$B$13,'Competitive Activity 1'!N$7:N$13,\"N/A\",0,1)","v":"N/A"},{"$f":"_xlfn.XLOOKUP($E40,'Competitive Activity 1'!$B$7:$B$13,'Competitive Activity 1'!O$7:O$13,\"N/A\",0,1)","v":"N/A"},{"$f":"_xlfn.XLOOKUP($E40,'Competitive Activity 1'!$B$7:$B$13,'Competitive Activity 1'!P$7:P$13,\"N/A\",0,1)","v":"N/A"},{"$f":"_xlfn.XLOOKUP($E40,'Competitive Activity 1'!$B$7:$B$13,'Competitive Activity 1'!Q$7:Q$13,\"N/A\",0,1)","v":"N/A"},{"$f":"_xlfn.XLOOKUP($E40,'Competitive Activity 1'!$B$7:$B$13,'Competitive Activity 1'!R$7:R$13,\"N/A\",0,1)","v":"N/A"},{"$f":"_xlfn.XLOOKUP($E40,'Competitive Activity 1'!$B$7:$B$13,'Competitive Activity 1'!S$7:S$13,\"N/A\",0,1)","v":"N/A"},{"$f":"_xlfn.XLOOKUP($E40,'Competitive Activity 1'!$B$7:$B$13,'Competitive Activity 1'!T$7:T$13,\"N/A\",0,1)","v":"N/A"},{"$f":"_xlfn.XLOOKUP($E40,'Competitive Activity 1'!$B$7:$B$13,'Competitive Activity 1'!U$7:U$13,\"N/A\",0,1)","v":"N/A"},{"$f":"_xlfn.XLOOKUP($E40,'Competitive Activity 1'!$B$17:$B$23,'Competitive Activity 1'!C$17:C$23,\"N/A\",0,1)","v":"N/A"},{"$f":"_xlfn.XLOOKUP($E40,'Competitive Activity 1'!$B$17:$B$23,'Competitive Activity 1'!D$17:D$23,\"N/A\",0,1)","v":"N/A"},{"$f":"_xlfn.XLOOKUP($E40,'Competitive Activity 1'!$B$17:$B$23,'Competitive Activity 1'!E$17:E$23,\"N/A\",0,1)","v":"N/A"},{"$f":"_xlfn.XLOOKUP($E40,'Competitive Activity 1'!$B$17:$B$23,'Competitive Activity 1'!F$17:F$23,\"N/A\",0,1)","v":"N/A"},{"$f":"_xlfn.XLOOKUP($E40,'Competitive Activity 1'!$B$17:$B$23,'Competitive Activity 1'!G$17:G$23,\"N/A\",0,1)","v":"N/A"},{"$f":"_xlfn.XLOOKUP($E40,'Competitive Activity 1'!$B$17:$B$23,'Competitive Activity 1'!H$17:H$23,\"N/A\",0,1)","v":"N/A"},{"$f":"_xlfn.XLOOKUP($E40,'Competitive Activity 1'!$B$17:$B$23,'Competitive Activity 1'!I$17:I$23,\"N/A\",0,1)","v":"N/A"},{"$f":"_xlfn.XLOOKUP($E40,'Competitive Activity 1'!$B$17:$B$23,'Competitive Activity 1'!J$17:J$23,\"N/A\",0,1)","v":"N/A"},{"$f":"_xlfn.XLOOKUP($E40,'Competitive Activity 1'!$B$17:$B$23,'Competitive Activity 1'!K$17:K$23,\"N/A\",0,1)","v":"N/A"},{"$f":"_xlfn.XLOOKUP($E40,'Competitive Activity 1'!$B$17:$B$23,'Competitive Activity 1'!M$17:M$23,\"N/A\",0,1)","v":"N/A"},{"$f":"_xlfn.XLOOKUP($E40,'Competitive Activity 1'!$B$17:$B$23,'Competitive Activity 1'!N$17:N$23,\"N/A\",0,1)","v":"N/A"},{"$f":"_xlfn.XLOOKUP($E40,'Competitive Activity 1'!$B$17:$B$23,'Competitive Activity 1'!P$17:P$23,\"N/A\",0,1)","v":"N/A"},{"$f":"_xlfn.XLOOKUP($E40,'Competitive Activity 2'!$B$7:$B$13,'Competitive Activity 2'!A$7:A$13,\"No\",0)","v":"No"},{"$f":"_xlfn.XLOOKUP($E40,'Competitive Activity 2'!$B$7:$B$13,'Competitive Activity 2'!L$7:L$13,\"N/A\",0)","v":"N/A"},{"$f":"_xlfn.XLOOKUP($E40,'Competitive Activity 2'!$B$7:$B$13,'Competitive Activity 2'!M$7:M$13,\"N/A\",0)","v":"N/A"},{"$f":"_xlfn.XLOOKUP($E40,'Competitive Activity 2'!$B$7:$B$13,'Competitive Activity 2'!N$7:N$13,\"N/A\",0)","v":"N/A"},{"$f":"_xlfn.XLOOKUP($E40,'Competitive Activity 2'!$B$7:$B$13,'Competitive Activity 2'!O$7:O$13,\"N/A\",0)","v":"N/A"},{"$f":"_xlfn.XLOOKUP($E40,'Competitive Activity 2'!$B$7:$B$13,'Competitive Activity 2'!P$7:P$13,\"N/A\",0)","v":"N/A"},{"$f":"_xlfn.XLOOKUP($E40,'Competitive Activity 2'!$B$7:$B$13,'Competitive Activity 2'!Q$7:Q$13,\"N/A\",0)","v":"N/A"},{"$f":"_xlfn.XLOOKUP($E40,'Competitive Activity 2'!$B$7:$B$13,'Competitive Activity 2'!R$7:R$13,\"N/A\",0)","v":"N/A"},{"$f":"_xlfn.XLOOKUP($E40,'Competitive Activity 2'!$B$7:$B$13,'Competitive Activity 2'!S$7:S$13,\"N/A\",0)","v":"N/A"},{"$f":"_xlfn.XLOOKUP($E40,'Competitive Activity 2'!$B$7:$B$13,'Competitive Activity 2'!T$7:T$13,\"N/A\",0)","v":"N/A"},{"$f":"_xlfn.XLOOKUP($E40,'Competitive Activity 2'!$B$7:$B$13,'Competitive Activity 2'!U$7:U$13,\"N/A\",0)","v":"N/A"},{"$f":"_xlfn.XLOOKUP($E40,'Competitive Activity 2'!$B$17:$B$23,'Competitive Activity 2'!D$17:D$23,\"N/A\",0)","v":"N/A"},{"$f":"_xlfn.XLOOKUP($E40,'Competitive Activity 2'!$B$17:$B$23,'Competitive Activity 2'!E$17:E$23,\"N/A\",0)","v":"N/A"},{"$f":"_xlfn.XLOOKUP($E40,'Competitive Activity 2'!$B$17:$B$23,'Competitive Activity 2'!F$17:F$23,\"N/A\",0)","v":"N/A"},{"$f":"_xlfn.XLOOKUP($E40,'Competitive Activity 2'!$B$17:$B$23,'Competitive Activity 2'!G$17:G$23,\"N/A\",0)","v":"N/A"},{"$f":"_xlfn.XLOOKUP($E40,'Competitive Activity 2'!$B$17:$B$23,'Competitive Activity 2'!H$17:H$23,\"N/A\",0)","v":"N/A"},{"$f":"_xlfn.XLOOKUP($E40,'Competitive Activity 2'!$B$17:$B$23,'Competitive Activity 2'!I$17:I$23,\"N/A\",0)","v":"N/A"},{"$f":"_xlfn.XLOOKUP($E40,'Competitive Activity 2'!$B$17:$B$23,'Competitive Activity 2'!J$17:J$23,\"N/A\",0)","v":"N/A"},{"$f":"_xlfn.XLOOKUP($E40,'Competitive Activity 2'!$B$17:$B$23,'Competitive Activity 2'!K$17:K$23,\"N/A\",0)","v":"N/A"},{"$f":"_xlfn.XLOOKUP($E40,'Competitive Activity 2'!$B$17:$B$23,'Competitive Activity 2'!L$17:L$23,\"N/A\",0)","v":"N/A"},{"$f":"_xlfn.XLOOKUP($E40,'Competitive Activity 2'!$B$17:$B$23,'Competitive Activity 2'!M$17:M$23,\"N/A\",0)","v":"N/A"},{"$f":"_xlfn.XLOOKUP($E40,'Competitive Activity 2'!$B$17:$B$23,'Competitive Activity 2'!N$17:N$23,\"N/A\",0)","v":"N/A"},{"$f":"_xlfn.XLOOKUP($E40,'Competitive Activity 2'!$B$27:$B$33,'Competitive Activity 2'!D$27:D$33,\"N/A\",0)","v":"N/A"},{"$f":"_xlfn.XLOOKUP($E40,'Competitive Activity 2'!$B$27:$B$33,'Competitive Activity 2'!E$27:E$33,\"N/A\",0)","v":"N/A"},{"$f":"_xlfn.XLOOKUP($E40,'Competitive Activity 2'!$B$27:$B$33,'Competitive Activity 2'!F$27:F$33,\"N/A\",0)","v":"N/A"},{"$f":"_xlfn.XLOOKUP($E40,'Competitive Activity 2'!$B$27:$B$33,'Competitive Activity 2'!G$27:G$33,\"N/A\",0)","v":"N/A"},{"$f":"_xlfn.XLOOKUP($E40,'Competitive Activity 2'!$B$27:$B$33,'Competitive Activity 2'!H$27:H$33,\"N/A\",0)","v":"N/A"},{"$f":"_xlfn.XLOOKUP($E40,'Competitive Activity 2'!$B$27:$B$33,'Competitive Activity 2'!I$27:I$33,\"N/A\",0)","v":"N/A"},{"$f":"_xlfn.XLOOKUP($E40,'Competitive Activity 2'!$B$27:$B$33,'Competitive Activity 2'!J$27:J$33,\"N/A\",0)","v":"N/A"},{"$f":"_xlfn.XLOOKUP($E40,'Competitive Activity 2'!$B$27:$B$33,'Competitive Activity 2'!K$27:K$33,\"N/A\",0)","v":"N/A"},{"$f":"_xlfn.XLOOKUP($E40,'Competitive Activity 2'!$B$27:$B$33,'Competitive Activity 2'!M$27:M$33,\"N/A\",0)","v":"N/A"}]
[{"$f":"'1-Cover Sheet'!$C$8","v":"Select One"},{"$f":"'1-Cover Sheet'!$F$8","v":"Select One"},{"$f":"'Summary Sheet'!$D$8","v":0},{"$f":"'Summary Sheet'!$D$10","v":0},{"$f":"'Drop Down Box'!B205","v":0},{"$f":"'Drop Down Box'!C205","v":0},{"$f":"'Drop Down Box'!D205","v":"Select One"},{"$f":"_xlfn.XLOOKUP(E41,'Drop Down Box'!$B$166:$B$249,'Drop Down Box'!$A$166:$A$249,\"Unknown\",0)","v":"Activity 1"},{"$f":"_xlfn.XLOOKUP($E41,'Activity 6'!$B$32:$B$38,'Activity 6'!$L$32:$L$38,\"N/A\",0)","v":"N/A"},{"$f":"_xlfn.XLOOKUP($E41,'Activity 6'!$B$32:$B$38,'Activity 6'!N$32:N$38,\"N/A\",0)","v":"N/A"},{"$f":"_xlfn.XLOOKUP($E41,'Activity 6'!$B$7:$B$13,'Activity 6'!H$7:H$13,\"N/A\",0)","v":"N/A"},{"$f":"_xlfn.XLOOKUP($E41,'Activity 6'!$B$7:$B$13,'Activity 6'!I$7:I$13,\"N/A\",0)","v":"N/A"},{"$f":"_xlfn.XLOOKUP($E41,'Activity 6'!$B$7:$B$13,'Activity 6'!J$7:J$13,\"N/A\",0)","v":"N/A"},{"$f":"_xlfn.XLOOKUP($E41,'Activity 1'!$B$7:$B$13,'Activity 1'!$A$7:$A$13,\"No\",0,1)","v":"No"},{"$f":"_xlfn.XLOOKUP($E41,'Activity 1'!$B$7:$B$13,'Activity 1'!$H$7:$H$13,\"N/A\",0,1)","v":"N/A"},{"$f":"_xlfn.XLOOKUP($E41,'Activity 1'!$B$7:$B$13,'Activity 1'!I$7:I$13,\"N/A\",0,1)","v":"N/A"},{"$f":"_xlfn.XLOOKUP($E41,'Activity 1'!$B$7:$B$13,'Activity 1'!J$7:J$13,\"N/A\",0,1)","v":"N/A"},{"$f":"_xlfn.XLOOKUP($E41,'Activity 1'!$B$7:$B$13,'Activity 1'!K$7:K$13,\"N/A\",0,1)","v":"N/A"},{"$f":"_xlfn.XLOOKUP($E41,'Activity 1'!$B$7:$B$13,'Activity 1'!L$7:L$13,\"N/A\",0,1)","v":"N/A"},{"$f":"_xlfn.XLOOKUP($E41,'Activity 1'!$B$7:$B$13,'Activity 1'!M$7:M$13,\"N/A\",0,1)","v":"N/A"},{"$f":"_xlfn.XLOOKUP($E41,'Activity 1'!$B$7:$B$13,'Activity 1'!N$7:N$13,\"N/A\",0,1)","v":"N/A"},0,{"$f":"_xlfn.XLOOKUP($E41,'Activity 1'!$B$7:$B$13,'Activity 1'!O$7:O$13,\"N/A\",0,1)","v":"N/A"},{"$f":"_xlfn.XLOOKUP($E41,'Activity 1'!$B$7:$B$13,'Activity 1'!P$7:P$13,\"N/A\",0,1)","v":"N/A"},{"$f":"_xlfn.XLOOKUP($E41,'Activity 1'!$B$7:$B$13,'Activity 1'!Q$7:Q$13,\"N/A\",0,1)","v":"N/A"},{"$f":"_xlfn.XLOOKUP($E41,'Activity 1'!$B$7:$B$13,'Activity 1'!R$7:R$13,\"N/A\",0,1)","v":"N/A"},{"$f":"_xlfn.XLOOKUP($E41,'Activity 1'!$B$7:$B$13,'Activity 1'!S$7:S$13,\"N/A\",0,1)","v":"N/A"},{"$f":"_xlfn.XLOOKUP($E41,'Activity 1'!$B$7:$B$13,'Activity 1'!T$7:T$13,\"N/A\",0,1)","v":"N/A"},{"$f":"_xlfn.XLOOKUP($E41,'Activity 1'!$B$7:$B$13,'Activity 1'!U$7:U$13,\"N/A\",0,1)","v":"N/A"},{"$f":"_xlfn.XLOOKUP($E41,'Activity 1'!$B$7:$B$13,'Activity 1'!V$7:V$13,\"N/A\",0,1)","v":"N/A"},{"$f":"_xlfn.XLOOKUP($E41,'Activity 1'!$B$17:$B$23,'Activity 1'!C$17:C$23,\"N/A\",0,1)","v":"N/A"},{"$f":"_xlfn.XLOOKUP($E41,'Activity 1'!$B$17:$B$23,'Activity 1'!D$17:D$23,\"N/A\",0,1)","v":"N/A"},{"$f":"_xlfn.XLOOKUP($E41,'Activity 1'!$B$17:$B$23,'Activity 1'!E$17:E$23,\"N/A\",0,1)","v":"N/A"},{"$f":"_xlfn.XLOOKUP($E41,'Activity 1'!$B$17:$B$23,'Activity 1'!F$17:F$23,\"N/A\",0,1)","v":"N/A"},{"$f":"_xlfn.XLOOKUP($E41,'Activity 1'!$B$17:$B$23,'Activity 1'!G$17:G$23,\"N/A\",0,1)","v":"N/A"},{"$f":"_xlfn.XLOOKUP($E41,'Activity 1'!$B$17:$B$23,'Activity 1'!H$17:H$23,\"N/A\",0,1)","v":"N/A"},{"$f":"_xlfn.XLOOKUP($E41,'Activity 1'!$B$17:$B$23,'Activity 1'!I$17:I$23,\"N/A\",0,1)","v":"N/A"},{"$f":"_xlfn.XLOOKUP($E41,'Activity 1'!$B$17:$B$23,'Activity 1'!J$17:J$23,\"N/A\",0,1)","v":"N/A"},{"$f":"_xlfn.XLOOKUP($E41,'Activity 1'!$B$17:$B$23,'Activity 1'!K$17:K$23,\"N/A\",0,1)","v":"N/A"},{"$f":"_xlfn.XLOOKUP($E41,'Activity 1'!$B$17:$B$23,'Activity 1'!L$17:L$23,\"N/A\",0,1)","v":"N/A"},{"$f":"_xlfn.XLOOKUP($E41,'Activity 1'!$B$17:$B$23,'Activity 1'!M$17:M$23,\"N/A\",0,1)","v":"N/A"},{"$f":"_xlfn.XLOOKUP($E41,'Activity 1'!$B$17:$B$23,'Activity 1'!O$17:O$23,\"N/A\",0,1)","v":"N/A"},{"$f":"_xlfn.XLOOKUP($E41,'Activity 1'!$B$17:$B$23,'Activity 1'!Q$17:Q$23,\"N/A\",0,1)","v":"N/A"},{"$f":"_xlfn.XLOOKUP($E41,'Activity 2'!$B$7:$B$13,'Activity 2'!$A$7:$A$13,\"No\",0,1)","v":"No"},{"$f":"_xlfn.XLOOKUP($E41,'Activity 2'!B$7:B$13,'Activity 2'!H$7:H$13,\"N/A\",0)","v":"N/A"},{"$f":"_xlfn.XLOOKUP($E41,'Activity 2'!C$7:C$13,'Activity 2'!I$7:I$13,\"N/A\",0)","v":"N/A"},{"$f":"_xlfn.XLOOKUP($E41,'Activity 2'!D$7:D$13,'Activity 2'!J$7:J$13,\"N/A\",0)","v":"N/A"},{"$f":"_xlfn.XLOOKUP($E41,'Activity 2'!E$7:E$13,'Activity 2'!K$7:K$13,\"N/A\",0)","v":"N/A"},{"$f":"_xlfn.XLOOKUP($E41,'Activity 2'!F$7:F$13,'Activity 2'!L$7:L$13,\"N/A\",0)","v":"N/A"},{"$f":"_xlfn.XLOOKUP($E41,'Activity 2'!G$7:G$13,'Activity 2'!M$7:M$13,\"N/A\",0)","v":"N/A"},{"$f":"_xlfn.XLOOKUP($E41,'Activity 2'!H$7:H$13,'Activity 2'!N$7:N$13,\"N/A\",0)","v":"N/A"},{"$f":"_xlfn.XLOOKUP($E41,'Activity 2'!I$7:I$13,'Activity 2'!O$7:O$13,\"N/A\",0)","v":"N/A"},{"$f":"_xlfn.XLOOKUP($E41,'Activity 2'!J$7:J$13,'Activity 2'!P$7:P$13,\"N/A\",0)","v":"N/A"},{"$f":"_xlfn.XLOOKUP($E41,'Activity 2'!K$7:K$13,'Activity 2'!Q$7:Q$13,\"N/A\",0)","v":"N/A"},{"$f":"_xlfn.XLOOKUP($E41,'Activity 2'!L$7:L$13,'Activity 2'!R$7:R$13,\"N/A\",0)","v":"N/A"},{"$f":"_xlfn.XLOOKUP($E41,'Activity 2'!M$7:M$13,'Activity 2'!S$7:S$13,\"N/A\",0)","v":"N/A"},{"$f":"_xlfn.XLOOKUP($E41,'Activity 2'!N$7:N$13,'Activity 2'!T$7:T$13,\"N/A\",0)","v":"N/A"},{"$f":"_xlfn.XLOOKUP($E41,'Activity 2'!O$7:O$13,'Activity 2'!U$7:U$13,\"N/A\",0)","v":"N/A"},{"$f":"_xlfn.XLOOKUP($E41,'Activity 2'!P$7:P$13,'Activity 2'!V$7:V$13,\"N/A\",0)","v":"N/A"},{"$f":"_xlfn.XLOOKUP($E41,'Activity 2'!$B$17:$B$23,'Activity 2'!C$17:C$23,\"N/A\",0,1)","v":"N/A"},{"$f":"_xlfn.XLOOKUP($E41,'Activity 2'!$B$17:$B$23,'Activity 2'!D$17:D$23,\"N/A\",0,1)","v":"N/A"},{"$f":"_xlfn.XLOOKUP($E41,'Activity 2'!$B$17:$B$23,'Activity 2'!E$17:E$23,\"N/A\",0,1)","v":"N/A"},{"$f":"_xlfn.XLOOKUP($E41,'Activity 2'!$B$17:$B$23,'Activity 2'!F$17:F$23,\"N/A\",0,1)","v":"N/A"},{"$f":"_xlfn.XLOOKUP($E41,'Activity 2'!$B$17:$B$23,'Activity 2'!G$17:G$23,\"N/A\",0,1)","v":"N/A"},{"$f":"_xlfn.XLOOKUP($E41,'Activity 2'!$B$17:$B$23,'Activity 2'!H$17:H$23,\"N/A\",0,1)","v":"N/A"},{"$f":"_xlfn.XLOOKUP($E41,'Activity 2'!$B$17:$B$23,'Activity 2'!I$17:I$23,\"N/A\",0,1)","v":"N/A"},{"$f":"_xlfn.XLOOKUP($E41,'Activity 2'!$B$17:$B$23,'Activity 2'!J$17:J$23,\"N/A\",0,1)","v":"N/A"},{"$f":"_xlfn.XLOOKUP($E41,'Activity 2'!$B$17:$B$23,'Activity 2'!K$17:K$23,\"N/A\",0,1)","v":"N/A"},{"$f":"_xlfn.XLOOKUP($E41,'Activity 2'!$B$17:$B$23,'Activity 2'!L$17:L$23,\"N/A\",0,1)","v":"N/A"},{"$f":"_xlfn.XLOOKUP($E41,'Activity 2'!$B$17:$B$23,'Activity 2'!M$17:M$23,\"N/A\",0,1)","v":"N/A"},{"$f":"_xlfn.XLOOKUP($E41,'Activity 2'!$B$17:$B$23,'Activity 2'!O$17:O$23,\"N/A\",0,1)","v":"N/A"},{"$f":"_xlfn.XLOOKUP($E41,'Activity 2'!$B$17:$B$23,'Activity 2'!Q$17:Q$23,\"N/A\",0,1)","v":"N/A"},null,{"$f":"_xlfn.XLOOKUP($E41,'Activity 3'!$B$8:$B$14,'Activity 3'!K$8:K$14,\"N/A\",0,1)","v":"N/A"},{"$f":"_xlfn.XLOOKUP($E41,'Activity 3'!$B$8:$B$14,'Activity 3'!L$8:L$14,\"N/A\",0,1)","v":"N/A"},{"$f":"_xlfn.XLOOKUP($E41,'Activity 3'!$B$8:$B$14,'Activity 3'!M$8:M$14,\"N/A\",0,1)","v":"N/A"},{"$f":"_xlfn.XLOOKUP($E41,'Activity 3'!$B$8:$B$14,'Activity 3'!N$8:N$14,\"N/A\",0,1)","v":"N/A"},{"$f":"_xlfn.XLOOKUP($E41,'Activity 3'!$B$8:$B$14,'Activity 3'!O$8:O$14,\"N/A\",0,1)","v":"N/A"},{"$f":"_xlfn.XLOOKUP($E41,'Activity 3'!$B$8:$B$14,'Activity 3'!R$8:R$14,\"N/A\",0,1)","v":"N/A"},{"$f":"_xlfn.XLOOKUP($E41,'Activity 4'!$B$8:$B$14,'Activity 4'!$A$8:$A$14,\"No\",0,1)","v":"No"},{"$f":"_xlfn.XLOOKUP($E41,'Activity 4'!$B$8:$B$14,'Activity 4'!L$8:L$14,\"N/A\",0,1)","v":"N/A"},{"$f":"_xlfn.XLOOKUP($E41,'Activity 4'!$B$8:$B$14,'Activity 4'!I$8:I$14,\"N/A\",0,1)","v":"N/A"},{"$f":"_xlfn.XLOOKUP($E41,'Activity 4'!$B$8:$B$14,'Activity 4'!M$8:M$14,\"N/A\",0,1)","v":"N/A"},{"$f":"_xlfn.XLOOKUP($E41,'Activity 5'!$B$8:$B$14,'Activity 5'!$A$8:$A$14,\"No\",0,1)","v":"No"},{"$f":"_xlfn.XLOOKUP($E41,'Activity 5'!$B$8:$B$14,'Activity 5'!J$8:J$14,\"N/A\",0,1)","v":"N/A"},{"$f":"_xlfn.XLOOKUP($E41,'Activity 5'!$B$8:$B$14,'Activity 5'!K$8:K$14,\"N/A\",0,1)","v":"N/A"},{"$f":"_xlfn.XLOOKUP($E41,'Activity 5'!$B$8:$B$14,'Activity 5'!N$8:N$14,\"N/A\",0,1)","v":"N/A"},{"$f":"_xlfn.XLOOKUP($E41,'Activity 5'!$B$8:$B$14,'Activity 5'!O$8:O$14,\"N/A\",0,1)","v":"N/A"},{"$f":"_xlfn.XLOOKUP($E41,'Activity 5'!$B$8:$B$14,'Activity 5'!P$8:P$14,\"N/A\",0,1)","v":"N/A"},{"$f":"_xlfn.XLOOKUP($E41,'Activity 5'!$B$8:$B$14,'Activity 5'!Q$8:Q$14,\"N/A\",0,1)","v":"N/A"},{"$f":"_xlfn.XLOOKUP($E41,'Activity 5'!$B$8:$B$14,'Activity 5'!R$8:R$14,\"N/A\",0,1)","v":"N/A"},{"$f":"_xlfn.XLOOKUP($E41,'Activity 6'!$B$7:$B$13,'Activity 6'!A$7:A$13,\"No\",0,1)","v":"No"},{"$f":"_xlfn.XLOOKUP($E41,'Activity 6'!$B$7:$B$13,'Activity 6'!K$7:K$13,\"N/A\",0,1)","v":"N/A"},{"$f":"_xlfn.XLOOKUP($E41,'Activity 6'!$B$7:$B$13,'Activity 6'!L$7:L$13,\"N/A\",0,1)","v":"N/A"},{"$f":"_xlfn.XLOOKUP($E41,'Activity 6'!$B$7:$B$13,'Activity 6'!M$7:M$13,\"N/A\",0,1)","v":"N/A"},{"$f":"_xlfn.XLOOKUP($E41,'Activity 6'!$B$7:$B$13,'Activity 6'!N$7:N$13,\"N/A\",0,1)","v":"N/A"},{"$f":"_xlfn.XLOOKUP($E41,'Activity 6'!$B$7:$B$13,'Activity 6'!O$7:O$13,\"N/A\",0,1)","v":"N/A"},{"$f":"_xlfn.XLOOKUP($E41,'Activity 6'!$B$7:$B$13,'Activity 6'!P$7:P$13,\"N/A\",0,1)","v":"N/A"},{"$f":"_xlfn.XLOOKUP($E41,'Activity 6'!$B$7:$B$13,'Activity 6'!Q$7:Q$13,\"N/A\",0,1)","v":"N/A"},{"$f":"_xlfn.XLOOKUP($E41,'Activity 6'!$B$7:$B$13,'Activity 6'!R$7:R$13,\"N/A\",0,1)","v":"N/A"},{"$f":"_xlfn.XLOOKUP($E41,'Activity 6'!$B$7:$B$13,'Activity 6'!S$7:S$13,\"N/A\",0,1)","v":"N/A"},{"$f":"_xlfn.XLOOKUP($E41,'Activity 6'!$B$7:$B$13,'Activity 6'!T$7:T$13,\"N/A\",0,1)","v":"N/A"},{"$f":"_xlfn.XLOOKUP($E41,'Activity 6'!$B$7:$B$13,'Activity 6'!U$7:U$13,\"N/A\",0,1)","v":"N/A"},{"$f":"_xlfn.XLOOKUP($E41,'Activity 6'!$B$22:$B$28,'Activity 6'!C$22:C$28,\"N/A\",0,1)","v":"N/A"},{"$f":"_xlfn.XLOOKUP($E41,'Activity 6'!$B$22:$B$28,'Activity 6'!D$22:D$28,\"N/A\",0,1)","v":"N/A"},{"$f":"_xlfn.XLOOKUP($E41,'Activity 6'!$B$22:$B$28,'Activity 6'!E$22:E$28,\"N/A\",0,1)","v":"N/A"},{"$f":"_xlfn.XLOOKUP($E41,'Activity 6'!$B$22:$B$28,'Activity 6'!F$22:F$28,\"N/A\",0,1)","v":"N/A"},{"$f":"_xlfn.XLOOKUP($E41,'Activity 6'!$B$22:$B$28,'Activity 6'!G$22:G$28,\"N/A\",0,1)","v":"N/A"},{"$f":"_xlfn.XLOOKUP($E41,'Activity 6'!$B$22:$B$28,'Activity 6'!H$22:H$28,\"N/A\",0,1)","v":"N/A"},{"$f":"_xlfn.XLOOKUP($E41,'Activity 6'!$B$22:$B$28,'Activity 6'!I$22:I$28,\"N/A\",0,1)","v":"N/A"},{"$f":"_xlfn.XLOOKUP($E41,'Activity 6'!$B$22:$B$28,'Activity 6'!J$22:J$28,\"N/A\",0,1)","v":"N/A"},{"$f":"_xlfn.XLOOKUP($E41,'Activity 6'!$B$22:$B$28,'Activity 6'!K$22:K$28,\"N/A\",0,1)","v":"N/A"},{"$f":"_xlfn.XLOOKUP($E41,'Activity 6'!$B$22:$B$28,'Activity 6'!L$22:L$28,\"N/A\",0,1)","v":"N/A"},{"$f":"_xlfn.XLOOKUP($E41,'Activity 6'!$B$22:$B$28,'Activity 6'!M$22:M$28,\"N/A\",0,1)","v":"N/A"},{"$f":"_xlfn.XLOOKUP($E41,'Activity 6'!$B$22:$B$28,'Activity 6'!N$22:N$28,\"N/A\",0,1)","v":"N/A"},{"$f":"_xlfn.XLOOKUP($E41,'Activity 6'!$B$32:$B$38,'Activity 6'!C$32:C$38,\"N/A\",0,1)","v":"N/A"},{"$f":"_xlfn.XLOOKUP($E41,'Activity 6'!$B$32:$B$38,'Activity 6'!D$32:D$38,\"N/A\",0,1)","v":"N/A"},{"$f":"_xlfn.XLOOKUP($E41,'Activity 6'!$B$32:$B$38,'Activity 6'!E$32:E$38,\"N/A\",0,1)","v":"N/A"},{"$f":"_xlfn.XLOOKUP($E41,'Activity 6'!$B$32:$B$38,'Activity 6'!F$32:F$38,\"N/A\",0,1)","v":"N/A"},{"$f":"_xlfn.XLOOKUP($E41,'Activity 6'!$B$32:$B$38,'Activity 6'!G$32:G$38,\"N/A\",0,1)","v":"N/A"},{"$f":"_xlfn.XLOOKUP($E41,'Activity 6'!$B$32:$B$38,'Activity 6'!H$32:H$38,\"N/A\",0,1)","v":"N/A"},{"$f":"_xlfn.XLOOKUP($E41,'Activity 6'!$B$32:$B$38,'Activity 6'!I$32:I$38,\"N/A\",0,1)","v":"N/A"},{"$f":"_xlfn.XLOOKUP($E41,'Activity 6'!$B$32:$B$38,'Activity 6'!J$32:J$38,\"N/A\",0,1)","v":"N/A"},{"$f":"_xlfn.XLOOKUP($E41,'Activity 6'!$B$32:$B$38,'Activity 6'!K$32:K$38,\"N/A\",0,1)","v":"N/A"},{"$f":"_xlfn.XLOOKUP($E41,'Activity 6'!$B$32:$B$38,'Activity 6'!M$32:M$38,\"N/A\",0,1)","v":"N/A"},{"$f":"_xlfn.XLOOKUP($E41,'Activity 7'!$B$7:$B$13,'Activity 7'!$A$7:$A$13,\"No\",0,1)","v":"No"},{"$f":"_xlfn.XLOOKUP($E41,'Activity 7'!$B$7:$B$13,'Activity 7'!M$7:M$13,\"N/A\",0,1)","v":"N/A"},{"$f":"_xlfn.XLOOKUP($E41,'Activity 7'!$B$7:$B$13,'Activity 7'!K$7:K$13,\"N/A\",0,1)","v":"N/A"},{"$f":"_xlfn.XLOOKUP($E41,'Activity 7'!$B$7:$B$13,'Activity 7'!N$7:N$13,\"N/A\",0,1)","v":"N/A"},{"$f":"_xlfn.XLOOKUP($E41,'Activity 7'!$B$7:$B$13,'Activity 7'!O$7:O$13,\"N/A\",0,1)","v":"N/A"},{"$f":"_xlfn.XLOOKUP($E41,'Activity 7'!$B$7:$B$13,'Activity 7'!P$7:P$13,\"N/A\",0,1)","v":"N/A"},{"$f":"_xlfn.XLOOKUP($E41,'Activity 7'!$B$7:$B$13,'Activity 7'!Q$7:Q$13,\"N/A\",0,1)","v":"N/A"},{"$f":"_xlfn.XLOOKUP($E41,'Activity 7'!$B$7:$B$13,'Activity 7'!R$7:R$13,\"N/A\",0,1)","v":"N/A"},{"$f":"_xlfn.XLOOKUP($E41,'Activity 7'!$B$7:$B$13,'Activity 7'!S$7:S$13,\"N/A\",0,1)","v":"N/A"},{"$f":"_xlfn.XLOOKUP($E41,'Activity 7'!$B$7:$B$13,'Activity 7'!T$7:T$13,\"N/A\",0,1)","v":"N/A"},{"$f":"_xlfn.XLOOKUP($E41,'Activity 7'!$B$7:$B$13,'Activity 7'!U$7:U$13,\"N/A\",0,1)","v":"N/A"},{"$f":"_xlfn.XLOOKUP($E41,'Activity 7'!$B$7:$B$13,'Activity 7'!V$7:V$13,\"N/A\",0,1)","v":"N/A"},{"$f":"_xlfn.XLOOKUP($E41,'Activity 7'!$B$17:$B$23,'Activity 7'!E$17:E$23,\"N/A\",0,1)","v":"N/A"},{"$f":"_xlfn.XLOOKUP($E41,'Activity 7'!$B$17:$B$23,'Activity 7'!G$17:G$23,\"N/A\",0,1)","v":"N/A"},{"$f":"_xlfn.XLOOKUP($E41,'Activity 7'!$B$17:$B$23,'Activity 7'!I$17:I$23,\"N/A\",0,1)","v":"N/A"},{"$f":"_xlfn.XLOOKUP($E41,'Activity 7'!$B$17:$B$23,'Activity 7'!J$17:J$23,\"N/A\",0,1)","v":"N/A"},{"$f":"_xlfn.XLOOKUP($E41,'Activity 7'!$B$17:$B$23,'Activity 7'!K$17:K$23,\"N/A\",0,1)","v":"N/A"},{"$f":"_xlfn.XLOOKUP($E41,'Activity 7'!$B$17:$B$23,'Activity 7'!L$17:L$23,\"N/A\",0,1)","v":"N/A"},{"$f":"_xlfn.XLOOKUP($E41,'Activity 7'!$B$17:$B$23,'Activity 7'!M$17:M$23,\"N/A\",0,1)","v":"N/A"},{"$f":"_xlfn.XLOOKUP($E41,'Activity 7'!$B$17:$B$23,'Activity 7'!N$17:N$23,\"N/A\",0,1)","v":"N/A"},{"$f":"_xlfn.XLOOKUP($E41,'Activity 7'!$B$17:$B$23,'Activity 7'!P$17:P$23,\"N/A\",0,1)","v":"N/A"},{"$f":"_xlfn.XLOOKUP($E41,'Activity 8'!$B$7:$B$13,'Activity 8'!A$7:A$13,\"No\",0,1)","v":"No"},{"$f":"_xlfn.XLOOKUP($E41,'Activity 8'!$B$7:$B$13,'Activity 8'!I$7:I$13,\"N/A\",0,1)","v":"N/A"},{"$f":"_xlfn.XLOOKUP($E41,'Activity 8'!$B$7:$B$13,'Activity 8'!J$7:J$13,\"N/A\",0,1)","v":"N/A"},{"$f":"_xlfn.XLOOKUP($E41,'Activity 8'!$B$7:$B$13,'Activity 8'!K$7:K$13,\"N/A\",0,1)","v":"N/A"},{"$f":"_xlfn.XLOOKUP($E41,'Activity 8'!$B$7:$B$13,'Activity 8'!L$7:L$13,\"N/A\",0,1)","v":"N/A"},{"$f":"_xlfn.XLOOKUP($E41,'Activity 8'!$B$7:$B$13,'Activity 8'!M$7:M$13,\"N/A\",0,1)","v":"N/A"},{"$f":"_xlfn.XLOOKUP($E41,'Activity 8'!$B$7:$B$13,'Activity 8'!N$7:N$13,\"N/A\",0,1)","v":"N/A"},{"$f":"_xlfn.XLOOKUP($E41,'Activity 8'!$B$7:$B$13,'Activity 8'!O$7:O$13,\"N/A\",0,1)","v":"N/A"},{"$f":"_xlfn.XLOOKUP($E41,'Activity 8'!$B$7:$B$13,'Activity 8'!P$7:P$13,\"N/A\",0,1)","v":"N/A"},{"$f":"_xlfn.XLOOKUP($E41,'Activity 8'!$B$7:$B$13,'Activity 8'!Q$7:Q$13,\"N/A\",0,1)","v":"N/A"},{"$f":"_xlfn.XLOOKUP($E41,'Activity 8'!$B$7:$B$13,'Activity 8'!R$7:R$13,\"N/A\",0,1)","v":"N/A"},{"$f":"_xlfn.XLOOKUP($E41,'Activity 8'!$B$7:$B$13,'Activity 8'!S$7:S$13,\"N/A\",0,1)","v":"N/A"},{"$f":"_xlfn.XLOOKUP($E41,'Activity 8'!$B$7:$B$13,'Activity 8'!T$7:T$13,\"N/A\",0,1)","v":"N/A"},{"$f":"_xlfn.XLOOKUP($E41,'Activity 8'!$B$7:$B$13,'Activity 8'!U$7:U$13,\"N/A\",0,1)","v":"N/A"},{"$f":"_xlfn.XLOOKUP($E41,'Activity 8'!$B$7:$B$13,'Activity 8'!V$7:V$13,\"N/A\",0,1)","v":"N/A"},{"$f":"_xlfn.XLOOKUP($E41,'Activity 8'!$B$17:$B$23,'Activity 8'!D$17:D$23,\"N/A\",0,1)","v":"N/A"},{"$f":"_xlfn.XLOOKUP($E41,'Activity 8'!$B$17:$B$23,'Activity 8'!E$17:E$23,\"N/A\",0,1)","v":"N/A"},{"$f":"_xlfn.XLOOKUP($E41,'Activity 8'!$B$17:$B$23,'Activity 8'!F$17:F$23,\"N/A\",0,1)","v":"N/A"},{"$f":"_xlfn.XLOOKUP($E41,'Activity 8'!$B$17:$B$23,'Activity 8'!G$17:G$23,\"N/A\",0,1)","v":"N/A"},{"$f":"_xlfn.XLOOKUP($E41,'Activity 8'!$B$17:$B$23,'Activity 8'!H$17:H$23,\"N/A\",0,1)","v":"N/A"},{"$f":"_xlfn.XLOOKUP($E41,'Activity 8'!$B$17:$B$23,'Activity 8'!I$17:I$23,\"N/A\",0,1)","v":"N/A"},{"$f":"_xlfn.XLOOKUP($E41,'Activity 8'!$B$17:$B$23,'Activity 8'!J$17:J$23,\"N/A\",0,1)","v":"N/A"},{"$f":"_xlfn.XLOOKUP($E41,'Activity 8'!$B$17:$B$23,'Activity 8'!K$17:K$23,\"N/A\",0,1)","v":"N/A"},{"$f":"_xlfn.XLOOKUP($E41,'Activity 8'!$B$17:$B$23,'Activity 8'!L$17:L$23,\"N/A\",0,1)","v":"N/A"},{"$f":"_xlfn.XLOOKUP($E41,'Activity 8'!$B$17:$B$23,'Activity 8'!M$17:M$23,\"N/A\",0,1)","v":"N/A"},{"$f":"_xlfn.XLOOKUP($E41,'Activity 8'!$B$17:$B$23,'Activity 8'!N$17:N$23,\"N/A\",0,1)","v":"N/A"},{"$f":"_xlfn.XLOOKUP($E41,'Activity 8'!$B$17:$B$23,'Activity 8'!P$17:P$23,\"N/A\",0,1)","v":"N/A"},{"$f":"_xlfn.XLOOKUP(E41,'Activity 9'!$B$7:$B$13,'Activity 9'!$A$7:$A$13,\"No\",0,1)","v":"No"},{"$f":"_xlfn.XLOOKUP($E41,'Activity 9'!$B$7:$B$13,'Activity 9'!J$7:J$13,\"N/A\",0,1)","v":"N/A"},{"$f":"_xlfn.XLOOKUP($E41,'Activity 9'!$B$7:$B$13,'Activity 9'!K$7:K$13,\"N/A\",0,1)","v":"N/A"},{"$f":"_xlfn.XLOOKUP($E41,'Activity 9'!$B$7:$B$13,'Activity 9'!L$7:L$13,\"N/A\",0,1)","v":"N/A"},{"$f":"_xlfn.XLOOKUP($E41,'Activity 9'!$B$7:$B$13,'Activity 9'!M$7:M$13,\"N/A\",0,1)","v":"N/A"},{"$f":"_xlfn.XLOOKUP($E41,'Activity 9'!$B$7:$B$13,'Activity 9'!N$7:N$13,\"N/A\",0,1)","v":"N/A"},{"$f":"_xlfn.XLOOKUP($E41,'Activity 9'!$B$7:$B$13,'Activity 9'!O$7:O$13,\"N/A\",0,1)","v":"N/A"},{"$f":"_xlfn.XLOOKUP($E41,'Activity 9'!$B$7:$B$13,'Activity 9'!P$7:P$13,\"N/A\",0,1)","v":"N/A"},{"$f":"_xlfn.XLOOKUP($E41,'Activity 9'!$B$7:$B$13,'Activity 9'!Q$7:Q$13,\"N/A\",0,1)","v":"N/A"},{"$f":"_xlfn.XLOOKUP($E41,'Activity 9'!$B$7:$B$13,'Activity 9'!R$7:R$13,\"N/A\",0,1)","v":"N/A"},{"$f":"_xlfn.XLOOKUP($E41,'Activity 9'!$B$7:$B$13,'Activity 9'!S$7:S$13,\"N/A\",0,1)","v":"N/A"},{"$f":"_xlfn.XLOOKUP($E41,'Activity 9'!$B$7:$B$13,'Activity 9'!T$7:T$13,\"N/A\",0,1)","v":"N/A"},{"$f":"_xlfn.XLOOKUP($E41,'Activity 9'!$B$17:$B$23,'Activity 9'!E$17:E$23,\"N/A\",0,1)","v":"N/A"},{"$f":"_xlfn.XLOOKUP($E41,'Activity 9'!$B$17:$B$23,'Activity 9'!F$17:F$23,\"N/A\",0,1)","v":"N/A"},{"$f":"_xlfn.XLOOKUP($E41,'Activity 9'!$B$17:$B$23,'Activity 9'!G$17:G$23,\"N/A\",0,1)","v":"N/A"},{"$f":"_xlfn.XLOOKUP($E41,'Activity 9'!$B$17:$B$23,'Activity 9'!H$17:H$23,\"N/A\",0,1)","v":"N/A"},{"$f":"_xlfn.XLOOKUP($E41,'Activity 9'!$B$17:$B$23,'Activity 9'!I$17:I$23,\"N/A\",0,1)","v":"N/A"},{"$f":"_xlfn.XLOOKUP($E41,'Activity 9'!$B$17:$B$23,'Activity 9'!J$17:J$23,\"N/A\",0,1)","v":"N/A"},{"$f":"_xlfn.XLOOKUP($E41,'Activity 9'!$B$17:$B$23,'Activity 9'!K$17:K$23,\"N/A\",0,1)","v":"N/A"},{"$f":"_xlfn.XLOOKUP($E41,'Activity 9'!$B$17:$B$23,'Activity 9'!L$17:L$23,\"N/A\",0,1)","v":"N/A"},{"$f":"_xlfn.XLOOKUP($E41,'Activity 9'!$B$17:$B$23,'Activity 9'!N$17:N$23,\"N/A\",0,1)","v":"N/A"},{"$f":"_xlfn.XLOOKUP($E41,'Activity 9'!$B$17:$B$23,'Activity 9'!O$17:O$23,\"N/A\",0,1)","v":"N/A"},{"$f":"_xlfn.XLOOKUP($E41,'Activity 9'!$B$17:$B$23,'Activity 9'!Q$17:Q$23,\"N/A\",0,1)","v":"N/A"},{"$f":"_xlfn.XLOOKUP($E41,'Activity 10'!$B$7:$B$13,'Activity 10'!A$7:A$13,\"No\",0,1)","v":"No"},{"$f":"_xlfn.XLOOKUP($E41,'Activity 10'!$B$7:$B$13,'Activity 10'!J$7:J$13,\"N/A\",0,1)","v":"N/A"},{"$f":"_xlfn.XLOOKUP($E41,'Activity 10'!$B$7:$B$13,'Activity 10'!K$7:K$13,\"N/A\",0,1)","v":"N/A"},{"$f":"_xlfn.XLOOKUP($E41,'Activity 10'!$B$7:$B$13,'Activity 10'!L$7:L$13,\"N/A\",0,1)","v":"N/A"},{"$f":"_xlfn.XLOOKUP($E41,'Activity 10'!$B$7:$B$13,'Activity 10'!M$7:M$13,\"N/A\",0,1)","v":"N/A"},{"$f":"_xlfn.XLOOKUP($E41,'Activity 10'!$B$7:$B$13,'Activity 10'!N$7:N$13,\"N/A\",0,1)","v":"N/A"},{"$f":"_xlfn.XLOOKUP($E41,'Activity 10'!$B$7:$B$13,'Activity 10'!O$7:O$13,\"N/A\",0,1)","v":"N/A"},{"$f":"_xlfn.XLOOKUP($E41,'Activity 10'!$B$7:$B$13,'Activity 10'!P$7:P$13,\"N/A\",0,1)","v":"N/A"},{"$f":"_xlfn.XLOOKUP($E41,'Activity 10'!$B$7:$B$13,'Activity 10'!Q$7:Q$13,\"N/A\",0,1)","v":"N/A"},{"$f":"_xlfn.XLOOKUP($E41,'Activity 10'!$B$7:$B$13,'Activity 10'!R$7:R$13,\"N/A\",0,1)","v":"N/A"},{"$f":"_xlfn.XLOOKUP($E41,'Activity 10'!$B$7:$B$13,'Activity 10'!S$7:S$13,\"N/A\",0,1)","v":"N/A"},{"$f":"_xlfn.XLOOKUP($E41,'Activity 10'!$B$7:$B$13,'Activity 10'!T$7:T$13,\"N/A\",0,1)","v":"N/A"},{"$f":"_xlfn.XLOOKUP($E41,'Activity 10'!$B$7:$B$13,'Activity 10'!U$7:U$13,\"N/A\",0,1)","v":"N/A"},{"$f":"_xlfn.XLOOKUP($E41,'Activity 10'!$B$7:$B$13,'Activity 10'!V$7:V$13,\"N/A\",0,1)","v":"N/A"},{"$f":"_xlfn.XLOOKUP($E41,'Activity 10'!$B$17:$B$23,'Activity 10'!E$17:E$23,\"N/A\",0,1)","v":"N/A"},{"$f":"_xlfn.XLOOKUP($E41,'Activity 10'!$B$17:$B$23,'Activity 10'!F$17:F$23,\"N/A\",0,1)","v":"N/A"},{"$f":"_xlfn.XLOOKUP($E41,'Activity 10'!$B$17:$B$23,'Activity 10'!G$17:G$23,\"N/A\",0,1)","v":"N/A"},{"$f":"_xlfn.XLOOKUP($E41,'Activity 10'!$B$17:$B$23,'Activity 10'!H$17:H$23,\"N/A\",0,1)","v":"N/A"},{"$f":"_xlfn.XLOOKUP($E41,'Activity 10'!$B$17:$B$23,'Activity 10'!I$17:I$23,\"N/A\",0,1)","v":"N/A"},{"$f":"_xlfn.XLOOKUP($E41,'Activity 10'!$B$17:$B$23,'Activity 10'!J$17:J$23,\"N/A\",0,1)","v":"N/A"},{"$f":"_xlfn.XLOOKUP($E41,'Activity 10'!$B$17:$B$23,'Activity 10'!K$17:K$23,\"N/A\",0,1)","v":"N/A"},{"$f":"_xlfn.XLOOKUP($E41,'Activity 10'!$B$17:$B$23,'Activity 10'!L$17:L$23,\"N/A\",0,1)","v":"N/A"},{"$f":"_xlfn.XLOOKUP($E41,'Activity 10'!$B$17:$B$23,'Activity 10'!M$17:M$23,\"N/A\",0,1)","v":"N/A"},{"$f":"_xlfn.XLOOKUP($E41,'Activity 10'!$B$17:$B$23,'Activity 10'!N$17:N$23,\"N/A\",0,1)","v":"N/A"},{"$f":"_xlfn.XLOOKUP($E41,'Activity 10'!$B$17:$B$23,'Activity 10'!P$17:P$23,\"N/A\",0,1)","v":"N/A"},{"$f":"_xlfn.XLOOKUP($E41,'Competitive Activity 1'!B$7:B$13,'Competitive Activity 1'!A$7:A$13,\"No\",0,1)","v":"No"},{"$f":"_xlfn.XLOOKUP($E41,'Competitive Activity 1'!$B$7:$B$13,'Competitive Activity 1'!H$7:H$13,\"N/A\",0,1)","v":"N/A"},{"$f":"_xlfn.XLOOKUP($E41,'Competitive Activity 1'!$B$7:$B$13,'Competitive Activity 1'!I$7:I$13,\"N/A\",0,1)","v":"N/A"},{"$f":"_xlfn.XLOOKUP($E41,'Competitive Activity 1'!$B$7:$B$13,'Competitive Activity 1'!J$7:J$13,\"N/A\",0,1)","v":"N/A"},{"$f":"_xlfn.XLOOKUP($E41,'Competitive Activity 1'!$B$7:$B$13,'Competitive Activity 1'!K$7:K$13,\"N/A\",0,1)","v":"N/A"},{"$f":"_xlfn.XLOOKUP($E41,'Competitive Activity 1'!$B$7:$B$13,'Competitive Activity 1'!L$7:L$13,\"N/A\",0,1)","v":"N/A"},{"$f":"_xlfn.XLOOKUP($E41,'Competitive Activity 1'!$B$7:$B$13,'Competitive Activity 1'!M$7:M$13,\"N/A\",0,1)","v":"N/A"},{"$f":"_xlfn.XLOOKUP($E41,'Competitive Activity 1'!$B$7:$B$13,'Competitive Activity 1'!N$7:N$13,\"N/A\",0,1)","v":"N/A"},{"$f":"_xlfn.XLOOKUP($E41,'Competitive Activity 1'!$B$7:$B$13,'Competitive Activity 1'!O$7:O$13,\"N/A\",0,1)","v":"N/A"},{"$f":"_xlfn.XLOOKUP($E41,'Competitive Activity 1'!$B$7:$B$13,'Competitive Activity 1'!P$7:P$13,\"N/A\",0,1)","v":"N/A"},{"$f":"_xlfn.XLOOKUP($E41,'Competitive Activity 1'!$B$7:$B$13,'Competitive Activity 1'!Q$7:Q$13,\"N/A\",0,1)","v":"N/A"},{"$f":"_xlfn.XLOOKUP($E41,'Competitive Activity 1'!$B$7:$B$13,'Competitive Activity 1'!R$7:R$13,\"N/A\",0,1)","v":"N/A"},{"$f":"_xlfn.XLOOKUP($E41,'Competitive Activity 1'!$B$7:$B$13,'Competitive Activity 1'!S$7:S$13,\"N/A\",0,1)","v":"N/A"},{"$f":"_xlfn.XLOOKUP($E41,'Competitive Activity 1'!$B$7:$B$13,'Competitive Activity 1'!T$7:T$13,\"N/A\",0,1)","v":"N/A"},{"$f":"_xlfn.XLOOKUP($E41,'Competitive Activity 1'!$B$7:$B$13,'Competitive Activity 1'!U$7:U$13,\"N/A\",0,1)","v":"N/A"},{"$f":"_xlfn.XLOOKUP($E41,'Competitive Activity 1'!$B$17:$B$23,'Competitive Activity 1'!C$17:C$23,\"N/A\",0,1)","v":"N/A"},{"$f":"_xlfn.XLOOKUP($E41,'Competitive Activity 1'!$B$17:$B$23,'Competitive Activity 1'!D$17:D$23,\"N/A\",0,1)","v":"N/A"},{"$f":"_xlfn.XLOOKUP($E41,'Competitive Activity 1'!$B$17:$B$23,'Competitive Activity 1'!E$17:E$23,\"N/A\",0,1)","v":"N/A"},{"$f":"_xlfn.XLOOKUP($E41,'Competitive Activity 1'!$B$17:$B$23,'Competitive Activity 1'!F$17:F$23,\"N/A\",0,1)","v":"N/A"},{"$f":"_xlfn.XLOOKUP($E41,'Competitive Activity 1'!$B$17:$B$23,'Competitive Activity 1'!G$17:G$23,\"N/A\",0,1)","v":"N/A"},{"$f":"_xlfn.XLOOKUP($E41,'Competitive Activity 1'!$B$17:$B$23,'Competitive Activity 1'!H$17:H$23,\"N/A\",0,1)","v":"N/A"},{"$f":"_xlfn.XLOOKUP($E41,'Competitive Activity 1'!$B$17:$B$23,'Competitive Activity 1'!I$17:I$23,\"N/A\",0,1)","v":"N/A"},{"$f":"_xlfn.XLOOKUP($E41,'Competitive Activity 1'!$B$17:$B$23,'Competitive Activity 1'!J$17:J$23,\"N/A\",0,1)","v":"N/A"},{"$f":"_xlfn.XLOOKUP($E41,'Competitive Activity 1'!$B$17:$B$23,'Competitive Activity 1'!K$17:K$23,\"N/A\",0,1)","v":"N/A"},{"$f":"_xlfn.XLOOKUP($E41,'Competitive Activity 1'!$B$17:$B$23,'Competitive Activity 1'!M$17:M$23,\"N/A\",0,1)","v":"N/A"},{"$f":"_xlfn.XLOOKUP($E41,'Competitive Activity 1'!$B$17:$B$23,'Competitive Activity 1'!N$17:N$23,\"N/A\",0,1)","v":"N/A"},{"$f":"_xlfn.XLOOKUP($E41,'Competitive Activity 1'!$B$17:$B$23,'Competitive Activity 1'!P$17:P$23,\"N/A\",0,1)","v":"N/A"},{"$f":"_xlfn.XLOOKUP($E41,'Competitive Activity 2'!$B$7:$B$13,'Competitive Activity 2'!A$7:A$13,\"No\",0)","v":"No"},{"$f":"_xlfn.XLOOKUP($E41,'Competitive Activity 2'!$B$7:$B$13,'Competitive Activity 2'!L$7:L$13,\"N/A\",0)","v":"N/A"},{"$f":"_xlfn.XLOOKUP($E41,'Competitive Activity 2'!$B$7:$B$13,'Competitive Activity 2'!M$7:M$13,\"N/A\",0)","v":"N/A"},{"$f":"_xlfn.XLOOKUP($E41,'Competitive Activity 2'!$B$7:$B$13,'Competitive Activity 2'!N$7:N$13,\"N/A\",0)","v":"N/A"},{"$f":"_xlfn.XLOOKUP($E41,'Competitive Activity 2'!$B$7:$B$13,'Competitive Activity 2'!O$7:O$13,\"N/A\",0)","v":"N/A"},{"$f":"_xlfn.XLOOKUP($E41,'Competitive Activity 2'!$B$7:$B$13,'Competitive Activity 2'!P$7:P$13,\"N/A\",0)","v":"N/A"},{"$f":"_xlfn.XLOOKUP($E41,'Competitive Activity 2'!$B$7:$B$13,'Competitive Activity 2'!Q$7:Q$13,\"N/A\",0)","v":"N/A"},{"$f":"_xlfn.XLOOKUP($E41,'Competitive Activity 2'!$B$7:$B$13,'Competitive Activity 2'!R$7:R$13,\"N/A\",0)","v":"N/A"},{"$f":"_xlfn.XLOOKUP($E41,'Competitive Activity 2'!$B$7:$B$13,'Competitive Activity 2'!S$7:S$13,\"N/A\",0)","v":"N/A"},{"$f":"_xlfn.XLOOKUP($E41,'Competitive Activity 2'!$B$7:$B$13,'Competitive Activity 2'!T$7:T$13,\"N/A\",0)","v":"N/A"},{"$f":"_xlfn.XLOOKUP($E41,'Competitive Activity 2'!$B$7:$B$13,'Competitive Activity 2'!U$7:U$13,\"N/A\",0)","v":"N/A"},{"$f":"_xlfn.XLOOKUP($E41,'Competitive Activity 2'!$B$17:$B$23,'Competitive Activity 2'!D$17:D$23,\"N/A\",0)","v":"N/A"},{"$f":"_xlfn.XLOOKUP($E41,'Competitive Activity 2'!$B$17:$B$23,'Competitive Activity 2'!E$17:E$23,\"N/A\",0)","v":"N/A"},{"$f":"_xlfn.XLOOKUP($E41,'Competitive Activity 2'!$B$17:$B$23,'Competitive Activity 2'!F$17:F$23,\"N/A\",0)","v":"N/A"},{"$f":"_xlfn.XLOOKUP($E41,'Competitive Activity 2'!$B$17:$B$23,'Competitive Activity 2'!G$17:G$23,\"N/A\",0)","v":"N/A"},{"$f":"_xlfn.XLOOKUP($E41,'Competitive Activity 2'!$B$17:$B$23,'Competitive Activity 2'!H$17:H$23,\"N/A\",0)","v":"N/A"},{"$f":"_xlfn.XLOOKUP($E41,'Competitive Activity 2'!$B$17:$B$23,'Competitive Activity 2'!I$17:I$23,\"N/A\",0)","v":"N/A"},{"$f":"_xlfn.XLOOKUP($E41,'Competitive Activity 2'!$B$17:$B$23,'Competitive Activity 2'!J$17:J$23,\"N/A\",0)","v":"N/A"},{"$f":"_xlfn.XLOOKUP($E41,'Competitive Activity 2'!$B$17:$B$23,'Competitive Activity 2'!K$17:K$23,\"N/A\",0)","v":"N/A"},{"$f":"_xlfn.XLOOKUP($E41,'Competitive Activity 2'!$B$17:$B$23,'Competitive Activity 2'!L$17:L$23,\"N/A\",0)","v":"N/A"},{"$f":"_xlfn.XLOOKUP($E41,'Competitive Activity 2'!$B$17:$B$23,'Competitive Activity 2'!M$17:M$23,\"N/A\",0)","v":"N/A"},{"$f":"_xlfn.XLOOKUP($E41,'Competitive Activity 2'!$B$17:$B$23,'Competitive Activity 2'!N$17:N$23,\"N/A\",0)","v":"N/A"},{"$f":"_xlfn.XLOOKUP($E41,'Competitive Activity 2'!$B$27:$B$33,'Competitive Activity 2'!D$27:D$33,\"N/A\",0)","v":"N/A"},{"$f":"_xlfn.XLOOKUP($E41,'Competitive Activity 2'!$B$27:$B$33,'Competitive Activity 2'!E$27:E$33,\"N/A\",0)","v":"N/A"},{"$f":"_xlfn.XLOOKUP($E41,'Competitive Activity 2'!$B$27:$B$33,'Competitive Activity 2'!F$27:F$33,\"N/A\",0)","v":"N/A"},{"$f":"_xlfn.XLOOKUP($E41,'Competitive Activity 2'!$B$27:$B$33,'Competitive Activity 2'!G$27:G$33,\"N/A\",0)","v":"N/A"},{"$f":"_xlfn.XLOOKUP($E41,'Competitive Activity 2'!$B$27:$B$33,'Competitive Activity 2'!H$27:H$33,\"N/A\",0)","v":"N/A"},{"$f":"_xlfn.XLOOKUP($E41,'Competitive Activity 2'!$B$27:$B$33,'Competitive Activity 2'!I$27:I$33,\"N/A\",0)","v":"N/A"},{"$f":"_xlfn.XLOOKUP($E41,'Competitive Activity 2'!$B$27:$B$33,'Competitive Activity 2'!J$27:J$33,\"N/A\",0)","v":"N/A"},{"$f":"_xlfn.XLOOKUP($E41,'Competitive Activity 2'!$B$27:$B$33,'Competitive Activity 2'!K$27:K$33,\"N/A\",0)","v":"N/A"},{"$f":"_xlfn.XLOOKUP($E41,'Competitive Activity 2'!$B$27:$B$33,'Competitive Activity 2'!M$27:M$33,\"N/A\",0)","v":"N/A"}]
[{"$f":"'1-Cover Sheet'!$C$8","v":"Select One"},{"$f":"'1-Cover Sheet'!$F$8","v":"Select One"},{"$f":"'Summary Sheet'!$D$8","v":0},{"$f":"'Summary Sheet'!$D$10","v":0},{"$f":"'Drop Down Box'!B206","v":0},{"$f":"'Drop Down Box'!C206","v":0},{"$f":"'Drop Down Box'!D206","v":"Select One"},{"$f":"_xlfn.XLOOKUP(E42,'Drop Down Box'!$B$166:$B$249,'Drop Down Box'!$A$166:$A$249,\"Unknown\",0)","v":"Activity 1"},{"$f":"_xlfn.XLOOKUP($E42,'Activity 6'!$B$32:$B$38,'Activity 6'!$L$32:$L$38,\"N/A\",0)","v":"N/A"},{"$f":"_xlfn.XLOOKUP($E42,'Activity 6'!$B$32:$B$38,'Activity 6'!N$32:N$38,\"N/A\",0)","v":"N/A"},{"$f":"_xlfn.XLOOKUP($E42,'Activity 6'!$B$7:$B$13,'Activity 6'!H$7:H$13,\"N/A\",0)","v":"N/A"},{"$f":"_xlfn.XLOOKUP($E42,'Activity 6'!$B$7:$B$13,'Activity 6'!I$7:I$13,\"N/A\",0)","v":"N/A"},{"$f":"_xlfn.XLOOKUP($E42,'Activity 6'!$B$7:$B$13,'Activity 6'!J$7:J$13,\"N/A\",0)","v":"N/A"},{"$f":"_xlfn.XLOOKUP($E42,'Activity 1'!$B$7:$B$13,'Activity 1'!$A$7:$A$13,\"No\",0,1)","v":"No"},{"$f":"_xlfn.XLOOKUP($E42,'Activity 1'!$B$7:$B$13,'Activity 1'!$H$7:$H$13,\"N/A\",0,1)","v":"N/A"},{"$f":"_xlfn.XLOOKUP($E42,'Activity 1'!$B$7:$B$13,'Activity 1'!I$7:I$13,\"N/A\",0,1)","v":"N/A"},{"$f":"_xlfn.XLOOKUP($E42,'Activity 1'!$B$7:$B$13,'Activity 1'!J$7:J$13,\"N/A\",0,1)","v":"N/A"},{"$f":"_xlfn.XLOOKUP($E42,'Activity 1'!$B$7:$B$13,'Activity 1'!K$7:K$13,\"N/A\",0,1)","v":"N/A"},{"$f":"_xlfn.XLOOKUP($E42,'Activity 1'!$B$7:$B$13,'Activity 1'!L$7:L$13,\"N/A\",0,1)","v":"N/A"},{"$f":"_xlfn.XLOOKUP($E42,'Activity 1'!$B$7:$B$13,'Activity 1'!M$7:M$13,\"N/A\",0,1)","v":"N/A"},{"$f":"_xlfn.XLOOKUP($E42,'Activity 1'!$B$7:$B$13,'Activity 1'!N$7:N$13,\"N/A\",0,1)","v":"N/A"},0,{"$f":"_xlfn.XLOOKUP($E42,'Activity 1'!$B$7:$B$13,'Activity 1'!O$7:O$13,\"N/A\",0,1)","v":"N/A"},{"$f":"_xlfn.XLOOKUP($E42,'Activity 1'!$B$7:$B$13,'Activity 1'!P$7:P$13,\"N/A\",0,1)","v":"N/A"},{"$f":"_xlfn.XLOOKUP($E42,'Activity 1'!$B$7:$B$13,'Activity 1'!Q$7:Q$13,\"N/A\",0,1)","v":"N/A"},{"$f":"_xlfn.XLOOKUP($E42,'Activity 1'!$B$7:$B$13,'Activity 1'!R$7:R$13,\"N/A\",0,1)","v":"N/A"},{"$f":"_xlfn.XLOOKUP($E42,'Activity 1'!$B$7:$B$13,'Activity 1'!S$7:S$13,\"N/A\",0,1)","v":"N/A"},{"$f":"_xlfn.XLOOKUP($E42,'Activity 1'!$B$7:$B$13,'Activity 1'!T$7:T$13,\"N/A\",0,1)","v":"N/A"},{"$f":"_xlfn.XLOOKUP($E42,'Activity 1'!$B$7:$B$13,'Activity 1'!U$7:U$13,\"N/A\",0,1)","v":"N/A"},{"$f":"_xlfn.XLOOKUP($E42,'Activity 1'!$B$7:$B$13,'Activity 1'!V$7:V$13,\"N/A\",0,1)","v":"N/A"},{"$f":"_xlfn.XLOOKUP($E42,'Activity 1'!$B$17:$B$23,'Activity 1'!C$17:C$23,\"N/A\",0,1)","v":"N/A"},{"$f":"_xlfn.XLOOKUP($E42,'Activity 1'!$B$17:$B$23,'Activity 1'!D$17:D$23,\"N/A\",0,1)","v":"N/A"},{"$f":"_xlfn.XLOOKUP($E42,'Activity 1'!$B$17:$B$23,'Activity 1'!E$17:E$23,\"N/A\",0,1)","v":"N/A"},{"$f":"_xlfn.XLOOKUP($E42,'Activity 1'!$B$17:$B$23,'Activity 1'!F$17:F$23,\"N/A\",0,1)","v":"N/A"},{"$f":"_xlfn.XLOOKUP($E42,'Activity 1'!$B$17:$B$23,'Activity 1'!G$17:G$23,\"N/A\",0,1)","v":"N/A"},{"$f":"_xlfn.XLOOKUP($E42,'Activity 1'!$B$17:$B$23,'Activity 1'!H$17:H$23,\"N/A\",0,1)","v":"N/A"},{"$f":"_xlfn.XLOOKUP($E42,'Activity 1'!$B$17:$B$23,'Activity 1'!I$17:I$23,\"N/A\",0,1)","v":"N/A"},{"$f":"_xlfn.XLOOKUP($E42,'Activity 1'!$B$17:$B$23,'Activity 1'!J$17:J$23,\"N/A\",0,1)","v":"N/A"},{"$f":"_xlfn.XLOOKUP($E42,'Activity 1'!$B$17:$B$23,'Activity 1'!K$17:K$23,\"N/A\",0,1)","v":"N/A"},{"$f":"_xlfn.XLOOKUP($E42,'Activity 1'!$B$17:$B$23,'Activity 1'!L$17:L$23,\"N/A\",0,1)","v":"N/A"},{"$f":"_xlfn.XLOOKUP($E42,'Activity 1'!$B$17:$B$23,'Activity 1'!M$17:M$23,\"N/A\",0,1)","v":"N/A"},{"$f":"_xlfn.XLOOKUP($E42,'Activity 1'!$B$17:$B$23,'Activity 1'!O$17:O$23,\"N/A\",0,1)","v":"N/A"},{"$f":"_xlfn.XLOOKUP($E42,'Activity 1'!$B$17:$B$23,'Activity 1'!Q$17:Q$23,\"N/A\",0,1)","v":"N/A"},{"$f":"_xlfn.XLOOKUP($E42,'Activity 2'!$B$7:$B$13,'Activity 2'!$A$7:$A$13,\"No\",0,1)","v":"No"},{"$f":"_xlfn.XLOOKUP($E42,'Activity 2'!B$7:B$13,'Activity 2'!H$7:H$13,\"N/A\",0)","v":"N/A"},{"$f":"_xlfn.XLOOKUP($E42,'Activity 2'!C$7:C$13,'Activity 2'!I$7:I$13,\"N/A\",0)","v":"N/A"},{"$f":"_xlfn.XLOOKUP($E42,'Activity 2'!D$7:D$13,'Activity 2'!J$7:J$13,\"N/A\",0)","v":"N/A"},{"$f":"_xlfn.XLOOKUP($E42,'Activity 2'!E$7:E$13,'Activity 2'!K$7:K$13,\"N/A\",0)","v":"N/A"},{"$f":"_xlfn.XLOOKUP($E42,'Activity 2'!F$7:F$13,'Activity 2'!L$7:L$13,\"N/A\",0)","v":"N/A"},{"$f":"_xlfn.XLOOKUP($E42,'Activity 2'!G$7:G$13,'Activity 2'!M$7:M$13,\"N/A\",0)","v":"N/A"},{"$f":"_xlfn.XLOOKUP($E42,'Activity 2'!H$7:H$13,'Activity 2'!N$7:N$13,\"N/A\",0)","v":"N/A"},{"$f":"_xlfn.XLOOKUP($E42,'Activity 2'!I$7:I$13,'Activity 2'!O$7:O$13,\"N/A\",0)","v":"N/A"},{"$f":"_xlfn.XLOOKUP($E42,'Activity 2'!J$7:J$13,'Activity 2'!P$7:P$13,\"N/A\",0)","v":"N/A"},{"$f":"_xlfn.XLOOKUP($E42,'Activity 2'!K$7:K$13,'Activity 2'!Q$7:Q$13,\"N/A\",0)","v":"N/A"},{"$f":"_xlfn.XLOOKUP($E42,'Activity 2'!L$7:L$13,'Activity 2'!R$7:R$13,\"N/A\",0)","v":"N/A"},{"$f":"_xlfn.XLOOKUP($E42,'Activity 2'!M$7:M$13,'Activity 2'!S$7:S$13,\"N/A\",0)","v":"N/A"},{"$f":"_xlfn.XLOOKUP($E42,'Activity 2'!N$7:N$13,'Activity 2'!T$7:T$13,\"N/A\",0)","v":"N/A"},{"$f":"_xlfn.XLOOKUP($E42,'Activity 2'!O$7:O$13,'Activity 2'!U$7:U$13,\"N/A\",0)","v":"N/A"},{"$f":"_xlfn.XLOOKUP($E42,'Activity 2'!P$7:P$13,'Activity 2'!V$7:V$13,\"N/A\",0)","v":"N/A"},{"$f":"_xlfn.XLOOKUP($E42,'Activity 2'!$B$17:$B$23,'Activity 2'!C$17:C$23,\"N/A\",0,1)","v":"N/A"},{"$f":"_xlfn.XLOOKUP($E42,'Activity 2'!$B$17:$B$23,'Activity 2'!D$17:D$23,\"N/A\",0,1)","v":"N/A"},{"$f":"_xlfn.XLOOKUP($E42,'Activity 2'!$B$17:$B$23,'Activity 2'!E$17:E$23,\"N/A\",0,1)","v":"N/A"},{"$f":"_xlfn.XLOOKUP($E42,'Activity 2'!$B$17:$B$23,'Activity 2'!F$17:F$23,\"N/A\",0,1)","v":"N/A"},{"$f":"_xlfn.XLOOKUP($E42,'Activity 2'!$B$17:$B$23,'Activity 2'!G$17:G$23,\"N/A\",0,1)","v":"N/A"},{"$f":"_xlfn.XLOOKUP($E42,'Activity 2'!$B$17:$B$23,'Activity 2'!H$17:H$23,\"N/A\",0,1)","v":"N/A"},{"$f":"_xlfn.XLOOKUP($E42,'Activity 2'!$B$17:$B$23,'Activity 2'!I$17:I$23,\"N/A\",0,1)","v":"N/A"},{"$f":"_xlfn.XLOOKUP($E42,'Activity 2'!$B$17:$B$23,'Activity 2'!J$17:J$23,\"N/A\",0,1)","v":"N/A"},{"$f":"_xlfn.XLOOKUP($E42,'Activity 2'!$B$17:$B$23,'Activity 2'!K$17:K$23,\"N/A\",0,1)","v":"N/A"},{"$f":"_xlfn.XLOOKUP($E42,'Activity 2'!$B$17:$B$23,'Activity 2'!L$17:L$23,\"N/A\",0,1)","v":"N/A"},{"$f":"_xlfn.XLOOKUP($E42,'Activity 2'!$B$17:$B$23,'Activity 2'!M$17:M$23,\"N/A\",0,1)","v":"N/A"},{"$f":"_xlfn.XLOOKUP($E42,'Activity 2'!$B$17:$B$23,'Activity 2'!O$17:O$23,\"N/A\",0,1)","v":"N/A"},{"$f":"_xlfn.XLOOKUP($E42,'Activity 2'!$B$17:$B$23,'Activity 2'!Q$17:Q$23,\"N/A\",0,1)","v":"N/A"},null,{"$f":"_xlfn.XLOOKUP($E42,'Activity 3'!$B$8:$B$14,'Activity 3'!K$8:K$14,\"N/A\",0,1)","v":"N/A"},{"$f":"_xlfn.XLOOKUP($E42,'Activity 3'!$B$8:$B$14,'Activity 3'!L$8:L$14,\"N/A\",0,1)","v":"N/A"},{"$f":"_xlfn.XLOOKUP($E42,'Activity 3'!$B$8:$B$14,'Activity 3'!M$8:M$14,\"N/A\",0,1)","v":"N/A"},{"$f":"_xlfn.XLOOKUP($E42,'Activity 3'!$B$8:$B$14,'Activity 3'!N$8:N$14,\"N/A\",0,1)","v":"N/A"},{"$f":"_xlfn.XLOOKUP($E42,'Activity 3'!$B$8:$B$14,'Activity 3'!O$8:O$14,\"N/A\",0,1)","v":"N/A"},{"$f":"_xlfn.XLOOKUP($E42,'Activity 3'!$B$8:$B$14,'Activity 3'!R$8:R$14,\"N/A\",0,1)","v":"N/A"},{"$f":"_xlfn.XLOOKUP($E42,'Activity 4'!$B$8:$B$14,'Activity 4'!$A$8:$A$14,\"No\",0,1)","v":"No"},{"$f":"_xlfn.XLOOKUP($E42,'Activity 4'!$B$8:$B$14,'Activity 4'!L$8:L$14,\"N/A\",0,1)","v":"N/A"},{"$f":"_xlfn.XLOOKUP($E42,'Activity 4'!$B$8:$B$14,'Activity 4'!I$8:I$14,\"N/A\",0,1)","v":"N/A"},{"$f":"_xlfn.XLOOKUP($E42,'Activity 4'!$B$8:$B$14,'Activity 4'!M$8:M$14,\"N/A\",0,1)","v":"N/A"},{"$f":"_xlfn.XLOOKUP($E42,'Activity 5'!$B$8:$B$14,'Activity 5'!$A$8:$A$14,\"No\",0,1)","v":"No"},{"$f":"_xlfn.XLOOKUP($E42,'Activity 5'!$B$8:$B$14,'Activity 5'!J$8:J$14,\"N/A\",0,1)","v":"N/A"},{"$f":"_xlfn.XLOOKUP($E42,'Activity 5'!$B$8:$B$14,'Activity 5'!K$8:K$14,\"N/A\",0,1)","v":"N/A"},{"$f":"_xlfn.XLOOKUP($E42,'Activity 5'!$B$8:$B$14,'Activity 5'!N$8:N$14,\"N/A\",0,1)","v":"N/A"},{"$f":"_xlfn.XLOOKUP($E42,'Activity 5'!$B$8:$B$14,'Activity 5'!O$8:O$14,\"N/A\",0,1)","v":"N/A"},{"$f":"_xlfn.XLOOKUP($E42,'Activity 5'!$B$8:$B$14,'Activity 5'!P$8:P$14,\"N/A\",0,1)","v":"N/A"},{"$f":"_xlfn.XLOOKUP($E42,'Activity 5'!$B$8:$B$14,'Activity 5'!Q$8:Q$14,\"N/A\",0,1)","v":"N/A"},{"$f":"_xlfn.XLOOKUP($E42,'Activity 5'!$B$8:$B$14,'Activity 5'!R$8:R$14,\"N/A\",0,1)","v":"N/A"},{"$f":"_xlfn.XLOOKUP($E42,'Activity 6'!$B$7:$B$13,'Activity 6'!A$7:A$13,\"No\",0,1)","v":"No"},{"$f":"_xlfn.XLOOKUP($E42,'Activity 6'!$B$7:$B$13,'Activity 6'!K$7:K$13,\"N/A\",0,1)","v":"N/A"},{"$f":"_xlfn.XLOOKUP($E42,'Activity 6'!$B$7:$B$13,'Activity 6'!L$7:L$13,\"N/A\",0,1)","v":"N/A"},{"$f":"_xlfn.XLOOKUP($E42,'Activity 6'!$B$7:$B$13,'Activity 6'!M$7:M$13,\"N/A\",0,1)","v":"N/A"},{"$f":"_xlfn.XLOOKUP($E42,'Activity 6'!$B$7:$B$13,'Activity 6'!N$7:N$13,\"N/A\",0,1)","v":"N/A"},{"$f":"_xlfn.XLOOKUP($E42,'Activity 6'!$B$7:$B$13,'Activity 6'!O$7:O$13,\"N/A\",0,1)","v":"N/A"},{"$f":"_xlfn.XLOOKUP($E42,'Activity 6'!$B$7:$B$13,'Activity 6'!P$7:P$13,\"N/A\",0,1)","v":"N/A"},{"$f":"_xlfn.XLOOKUP($E42,'Activity 6'!$B$7:$B$13,'Activity 6'!Q$7:Q$13,\"N/A\",0,1)","v":"N/A"},{"$f":"_xlfn.XLOOKUP($E42,'Activity 6'!$B$7:$B$13,'Activity 6'!R$7:R$13,\"N/A\",0,1)","v":"N/A"},{"$f":"_xlfn.XLOOKUP($E42,'Activity 6'!$B$7:$B$13,'Activity 6'!S$7:S$13,\"N/A\",0,1)","v":"N/A"},{"$f":"_xlfn.XLOOKUP($E42,'Activity 6'!$B$7:$B$13,'Activity 6'!T$7:T$13,\"N/A\",0,1)","v":"N/A"},{"$f":"_xlfn.XLOOKUP($E42,'Activity 6'!$B$7:$B$13,'Activity 6'!U$7:U$13,\"N/A\",0,1)","v":"N/A"},{"$f":"_xlfn.XLOOKUP($E42,'Activity 6'!$B$22:$B$28,'Activity 6'!C$22:C$28,\"N/A\",0,1)","v":"N/A"},{"$f":"_xlfn.XLOOKUP($E42,'Activity 6'!$B$22:$B$28,'Activity 6'!D$22:D$28,\"N/A\",0,1)","v":"N/A"},{"$f":"_xlfn.XLOOKUP($E42,'Activity 6'!$B$22:$B$28,'Activity 6'!E$22:E$28,\"N/A\",0,1)","v":"N/A"},{"$f":"_xlfn.XLOOKUP($E42,'Activity 6'!$B$22:$B$28,'Activity 6'!F$22:F$28,\"N/A\",0,1)","v":"N/A"},{"$f":"_xlfn.XLOOKUP($E42,'Activity 6'!$B$22:$B$28,'Activity 6'!G$22:G$28,\"N/A\",0,1)","v":"N/A"},{"$f":"_xlfn.XLOOKUP($E42,'Activity 6'!$B$22:$B$28,'Activity 6'!H$22:H$28,\"N/A\",0,1)","v":"N/A"},{"$f":"_xlfn.XLOOKUP($E42,'Activity 6'!$B$22:$B$28,'Activity 6'!I$22:I$28,\"N/A\",0,1)","v":"N/A"},{"$f":"_xlfn.XLOOKUP($E42,'Activity 6'!$B$22:$B$28,'Activity 6'!J$22:J$28,\"N/A\",0,1)","v":"N/A"},{"$f":"_xlfn.XLOOKUP($E42,'Activity 6'!$B$22:$B$28,'Activity 6'!K$22:K$28,\"N/A\",0,1)","v":"N/A"},{"$f":"_xlfn.XLOOKUP($E42,'Activity 6'!$B$22:$B$28,'Activity 6'!L$22:L$28,\"N/A\",0,1)","v":"N/A"},{"$f":"_xlfn.XLOOKUP($E42,'Activity 6'!$B$22:$B$28,'Activity 6'!M$22:M$28,\"N/A\",0,1)","v":"N/A"},{"$f":"_xlfn.XLOOKUP($E42,'Activity 6'!$B$22:$B$28,'Activity 6'!N$22:N$28,\"N/A\",0,1)","v":"N/A"},{"$f":"_xlfn.XLOOKUP($E42,'Activity 6'!$B$32:$B$38,'Activity 6'!C$32:C$38,\"N/A\",0,1)","v":"N/A"},{"$f":"_xlfn.XLOOKUP($E42,'Activity 6'!$B$32:$B$38,'Activity 6'!D$32:D$38,\"N/A\",0,1)","v":"N/A"},{"$f":"_xlfn.XLOOKUP($E42,'Activity 6'!$B$32:$B$38,'Activity 6'!E$32:E$38,\"N/A\",0,1)","v":"N/A"},{"$f":"_xlfn.XLOOKUP($E42,'Activity 6'!$B$32:$B$38,'Activity 6'!F$32:F$38,\"N/A\",0,1)","v":"N/A"},{"$f":"_xlfn.XLOOKUP($E42,'Activity 6'!$B$32:$B$38,'Activity 6'!G$32:G$38,\"N/A\",0,1)","v":"N/A"},{"$f":"_xlfn.XLOOKUP($E42,'Activity 6'!$B$32:$B$38,'Activity 6'!H$32:H$38,\"N/A\",0,1)","v":"N/A"},{"$f":"_xlfn.XLOOKUP($E42,'Activity 6'!$B$32:$B$38,'Activity 6'!I$32:I$38,\"N/A\",0,1)","v":"N/A"},{"$f":"_xlfn.XLOOKUP($E42,'Activity 6'!$B$32:$B$38,'Activity 6'!J$32:J$38,\"N/A\",0,1)","v":"N/A"},{"$f":"_xlfn.XLOOKUP($E42,'Activity 6'!$B$32:$B$38,'Activity 6'!K$32:K$38,\"N/A\",0,1)","v":"N/A"},{"$f":"_xlfn.XLOOKUP($E42,'Activity 6'!$B$32:$B$38,'Activity 6'!M$32:M$38,\"N/A\",0,1)","v":"N/A"},{"$f":"_xlfn.XLOOKUP($E42,'Activity 7'!$B$7:$B$13,'Activity 7'!$A$7:$A$13,\"No\",0,1)","v":"No"},{"$f":"_xlfn.XLOOKUP($E42,'Activity 7'!$B$7:$B$13,'Activity 7'!M$7:M$13,\"N/A\",0,1)","v":"N/A"},{"$f":"_xlfn.XLOOKUP($E42,'Activity 7'!$B$7:$B$13,'Activity 7'!K$7:K$13,\"N/A\",0,1)","v":"N/A"},{"$f":"_xlfn.XLOOKUP($E42,'Activity 7'!$B$7:$B$13,'Activity 7'!N$7:N$13,\"N/A\",0,1)","v":"N/A"},{"$f":"_xlfn.XLOOKUP($E42,'Activity 7'!$B$7:$B$13,'Activity 7'!O$7:O$13,\"N/A\",0,1)","v":"N/A"},{"$f":"_xlfn.XLOOKUP($E42,'Activity 7'!$B$7:$B$13,'Activity 7'!P$7:P$13,\"N/A\",0,1)","v":"N/A"},{"$f":"_xlfn.XLOOKUP($E42,'Activity 7'!$B$7:$B$13,'Activity 7'!Q$7:Q$13,\"N/A\",0,1)","v":"N/A"},{"$f":"_xlfn.XLOOKUP($E42,'Activity 7'!$B$7:$B$13,'Activity 7'!R$7:R$13,\"N/A\",0,1)","v":"N/A"},{"$f":"_xlfn.XLOOKUP($E42,'Activity 7'!$B$7:$B$13,'Activity 7'!S$7:S$13,\"N/A\",0,1)","v":"N/A"},{"$f":"_xlfn.XLOOKUP($E42,'Activity 7'!$B$7:$B$13,'Activity 7'!T$7:T$13,\"N/A\",0,1)","v":"N/A"},{"$f":"_xlfn.XLOOKUP($E42,'Activity 7'!$B$7:$B$13,'Activity 7'!U$7:U$13,\"N/A\",0,1)","v":"N/A"},{"$f":"_xlfn.XLOOKUP($E42,'Activity 7'!$B$7:$B$13,'Activity 7'!V$7:V$13,\"N/A\",0,1)","v":"N/A"},{"$f":"_xlfn.XLOOKUP($E42,'Activity 7'!$B$17:$B$23,'Activity 7'!E$17:E$23,\"N/A\",0,1)","v":"N/A"},{"$f":"_xlfn.XLOOKUP($E42,'Activity 7'!$B$17:$B$23,'Activity 7'!G$17:G$23,\"N/A\",0,1)","v":"N/A"},{"$f":"_xlfn.XLOOKUP($E42,'Activity 7'!$B$17:$B$23,'Activity 7'!I$17:I$23,\"N/A\",0,1)","v":"N/A"},{"$f":"_xlfn.XLOOKUP($E42,'Activity 7'!$B$17:$B$23,'Activity 7'!J$17:J$23,\"N/A\",0,1)","v":"N/A"},{"$f":"_xlfn.XLOOKUP($E42,'Activity 7'!$B$17:$B$23,'Activity 7'!K$17:K$23,\"N/A\",0,1)","v":"N/A"},{"$f":"_xlfn.XLOOKUP($E42,'Activity 7'!$B$17:$B$23,'Activity 7'!L$17:L$23,\"N/A\",0,1)","v":"N/A"},{"$f":"_xlfn.XLOOKUP($E42,'Activity 7'!$B$17:$B$23,'Activity 7'!M$17:M$23,\"N/A\",0,1)","v":"N/A"},{"$f":"_xlfn.XLOOKUP($E42,'Activity 7'!$B$17:$B$23,'Activity 7'!N$17:N$23,\"N/A\",0,1)","v":"N/A"},{"$f":"_xlfn.XLOOKUP($E42,'Activity 7'!$B$17:$B$23,'Activity 7'!P$17:P$23,\"N/A\",0,1)","v":"N/A"},{"$f":"_xlfn.XLOOKUP($E42,'Activity 8'!$B$7:$B$13,'Activity 8'!A$7:A$13,\"No\",0,1)","v":"No"},{"$f":"_xlfn.XLOOKUP($E42,'Activity 8'!$B$7:$B$13,'Activity 8'!I$7:I$13,\"N/A\",0,1)","v":"N/A"},{"$f":"_xlfn.XLOOKUP($E42,'Activity 8'!$B$7:$B$13,'Activity 8'!J$7:J$13,\"N/A\",0,1)","v":"N/A"},{"$f":"_xlfn.XLOOKUP($E42,'Activity 8'!$B$7:$B$13,'Activity 8'!K$7:K$13,\"N/A\",0,1)","v":"N/A"},{"$f":"_xlfn.XLOOKUP($E42,'Activity 8'!$B$7:$B$13,'Activity 8'!L$7:L$13,\"N/A\",0,1)","v":"N/A"},{"$f":"_xlfn.XLOOKUP($E42,'Activity 8'!$B$7:$B$13,'Activity 8'!M$7:M$13,\"N/A\",0,1)","v":"N/A"},{"$f":"_xlfn.XLOOKUP($E42,'Activity 8'!$B$7:$B$13,'Activity 8'!N$7:N$13,\"N/A\",0,1)","v":"N/A"},{"$f":"_xlfn.XLOOKUP($E42,'Activity 8'!$B$7:$B$13,'Activity 8'!O$7:O$13,\"N/A\",0,1)","v":"N/A"},{"$f":"_xlfn.XLOOKUP($E42,'Activity 8'!$B$7:$B$13,'Activity 8'!P$7:P$13,\"N/A\",0,1)","v":"N/A"},{"$f":"_xlfn.XLOOKUP($E42,'Activity 8'!$B$7:$B$13,'Activity 8'!Q$7:Q$13,\"N/A\",0,1)","v":"N/A"},{"$f":"_xlfn.XLOOKUP($E42,'Activity 8'!$B$7:$B$13,'Activity 8'!R$7:R$13,\"N/A\",0,1)","v":"N/A"},{"$f":"_xlfn.XLOOKUP($E42,'Activity 8'!$B$7:$B$13,'Activity 8'!S$7:S$13,\"N/A\",0,1)","v":"N/A"},{"$f":"_xlfn.XLOOKUP($E42,'Activity 8'!$B$7:$B$13,'Activity 8'!T$7:T$13,\"N/A\",0,1)","v":"N/A"},{"$f":"_xlfn.XLOOKUP($E42,'Activity 8'!$B$7:$B$13,'Activity 8'!U$7:U$13,\"N/A\",0,1)","v":"N/A"},{"$f":"_xlfn.XLOOKUP($E42,'Activity 8'!$B$7:$B$13,'Activity 8'!V$7:V$13,\"N/A\",0,1)","v":"N/A"},{"$f":"_xlfn.XLOOKUP($E42,'Activity 8'!$B$17:$B$23,'Activity 8'!D$17:D$23,\"N/A\",0,1)","v":"N/A"},{"$f":"_xlfn.XLOOKUP($E42,'Activity 8'!$B$17:$B$23,'Activity 8'!E$17:E$23,\"N/A\",0,1)","v":"N/A"},{"$f":"_xlfn.XLOOKUP($E42,'Activity 8'!$B$17:$B$23,'Activity 8'!F$17:F$23,\"N/A\",0,1)","v":"N/A"},{"$f":"_xlfn.XLOOKUP($E42,'Activity 8'!$B$17:$B$23,'Activity 8'!G$17:G$23,\"N/A\",0,1)","v":"N/A"},{"$f":"_xlfn.XLOOKUP($E42,'Activity 8'!$B$17:$B$23,'Activity 8'!H$17:H$23,\"N/A\",0,1)","v":"N/A"},{"$f":"_xlfn.XLOOKUP($E42,'Activity 8'!$B$17:$B$23,'Activity 8'!I$17:I$23,\"N/A\",0,1)","v":"N/A"},{"$f":"_xlfn.XLOOKUP($E42,'Activity 8'!$B$17:$B$23,'Activity 8'!J$17:J$23,\"N/A\",0,1)","v":"N/A"},{"$f":"_xlfn.XLOOKUP($E42,'Activity 8'!$B$17:$B$23,'Activity 8'!K$17:K$23,\"N/A\",0,1)","v":"N/A"},{"$f":"_xlfn.XLOOKUP($E42,'Activity 8'!$B$17:$B$23,'Activity 8'!L$17:L$23,\"N/A\",0,1)","v":"N/A"},{"$f":"_xlfn.XLOOKUP($E42,'Activity 8'!$B$17:$B$23,'Activity 8'!M$17:M$23,\"N/A\",0,1)","v":"N/A"},{"$f":"_xlfn.XLOOKUP($E42,'Activity 8'!$B$17:$B$23,'Activity 8'!N$17:N$23,\"N/A\",0,1)","v":"N/A"},{"$f":"_xlfn.XLOOKUP($E42,'Activity 8'!$B$17:$B$23,'Activity 8'!P$17:P$23,\"N/A\",0,1)","v":"N/A"},{"$f":"_xlfn.XLOOKUP(E42,'Activity 9'!$B$7:$B$13,'Activity 9'!$A$7:$A$13,\"No\",0,1)","v":"No"},{"$f":"_xlfn.XLOOKUP($E42,'Activity 9'!$B$7:$B$13,'Activity 9'!J$7:J$13,\"N/A\",0,1)","v":"N/A"},{"$f":"_xlfn.XLOOKUP($E42,'Activity 9'!$B$7:$B$13,'Activity 9'!K$7:K$13,\"N/A\",0,1)","v":"N/A"},{"$f":"_xlfn.XLOOKUP($E42,'Activity 9'!$B$7:$B$13,'Activity 9'!L$7:L$13,\"N/A\",0,1)","v":"N/A"},{"$f":"_xlfn.XLOOKUP($E42,'Activity 9'!$B$7:$B$13,'Activity 9'!M$7:M$13,\"N/A\",0,1)","v":"N/A"},{"$f":"_xlfn.XLOOKUP($E42,'Activity 9'!$B$7:$B$13,'Activity 9'!N$7:N$13,\"N/A\",0,1)","v":"N/A"},{"$f":"_xlfn.XLOOKUP($E42,'Activity 9'!$B$7:$B$13,'Activity 9'!O$7:O$13,\"N/A\",0,1)","v":"N/A"},{"$f":"_xlfn.XLOOKUP($E42,'Activity 9'!$B$7:$B$13,'Activity 9'!P$7:P$13,\"N/A\",0,1)","v":"N/A"},{"$f":"_xlfn.XLOOKUP($E42,'Activity 9'!$B$7:$B$13,'Activity 9'!Q$7:Q$13,\"N/A\",0,1)","v":"N/A"},{"$f":"_xlfn.XLOOKUP($E42,'Activity 9'!$B$7:$B$13,'Activity 9'!R$7:R$13,\"N/A\",0,1)","v":"N/A"},{"$f":"_xlfn.XLOOKUP($E42,'Activity 9'!$B$7:$B$13,'Activity 9'!S$7:S$13,\"N/A\",0,1)","v":"N/A"},{"$f":"_xlfn.XLOOKUP($E42,'Activity 9'!$B$7:$B$13,'Activity 9'!T$7:T$13,\"N/A\",0,1)","v":"N/A"},{"$f":"_xlfn.XLOOKUP($E42,'Activity 9'!$B$17:$B$23,'Activity 9'!E$17:E$23,\"N/A\",0,1)","v":"N/A"},{"$f":"_xlfn.XLOOKUP($E42,'Activity 9'!$B$17:$B$23,'Activity 9'!F$17:F$23,\"N/A\",0,1)","v":"N/A"},{"$f":"_xlfn.XLOOKUP($E42,'Activity 9'!$B$17:$B$23,'Activity 9'!G$17:G$23,\"N/A\",0,1)","v":"N/A"},{"$f":"_xlfn.XLOOKUP($E42,'Activity 9'!$B$17:$B$23,'Activity 9'!H$17:H$23,\"N/A\",0,1)","v":"N/A"},{"$f":"_xlfn.XLOOKUP($E42,'Activity 9'!$B$17:$B$23,'Activity 9'!I$17:I$23,\"N/A\",0,1)","v":"N/A"},{"$f":"_xlfn.XLOOKUP($E42,'Activity 9'!$B$17:$B$23,'Activity 9'!J$17:J$23,\"N/A\",0,1)","v":"N/A"},{"$f":"_xlfn.XLOOKUP($E42,'Activity 9'!$B$17:$B$23,'Activity 9'!K$17:K$23,\"N/A\",0,1)","v":"N/A"},{"$f":"_xlfn.XLOOKUP($E42,'Activity 9'!$B$17:$B$23,'Activity 9'!L$17:L$23,\"N/A\",0,1)","v":"N/A"},{"$f":"_xlfn.XLOOKUP($E42,'Activity 9'!$B$17:$B$23,'Activity 9'!N$17:N$23,\"N/A\",0,1)","v":"N/A"},{"$f":"_xlfn.XLOOKUP($E42,'Activity 9'!$B$17:$B$23,'Activity 9'!O$17:O$23,\"N/A\",0,1)","v":"N/A"},{"$f":"_xlfn.XLOOKUP($E42,'Activity 9'!$B$17:$B$23,'Activity 9'!Q$17:Q$23,\"N/A\",0,1)","v":"N/A"},{"$f":"_xlfn.XLOOKUP($E42,'Activity 10'!$B$7:$B$13,'Activity 10'!A$7:A$13,\"No\",0,1)","v":"No"},{"$f":"_xlfn.XLOOKUP($E42,'Activity 10'!$B$7:$B$13,'Activity 10'!J$7:J$13,\"N/A\",0,1)","v":"N/A"},{"$f":"_xlfn.XLOOKUP($E42,'Activity 10'!$B$7:$B$13,'Activity 10'!K$7:K$13,\"N/A\",0,1)","v":"N/A"},{"$f":"_xlfn.XLOOKUP($E42,'Activity 10'!$B$7:$B$13,'Activity 10'!L$7:L$13,\"N/A\",0,1)","v":"N/A"},{"$f":"_xlfn.XLOOKUP($E42,'Activity 10'!$B$7:$B$13,'Activity 10'!M$7:M$13,\"N/A\",0,1)","v":"N/A"},{"$f":"_xlfn.XLOOKUP($E42,'Activity 10'!$B$7:$B$13,'Activity 10'!N$7:N$13,\"N/A\",0,1)","v":"N/A"},{"$f":"_xlfn.XLOOKUP($E42,'Activity 10'!$B$7:$B$13,'Activity 10'!O$7:O$13,\"N/A\",0,1)","v":"N/A"},{"$f":"_xlfn.XLOOKUP($E42,'Activity 10'!$B$7:$B$13,'Activity 10'!P$7:P$13,\"N/A\",0,1)","v":"N/A"},{"$f":"_xlfn.XLOOKUP($E42,'Activity 10'!$B$7:$B$13,'Activity 10'!Q$7:Q$13,\"N/A\",0,1)","v":"N/A"},{"$f":"_xlfn.XLOOKUP($E42,'Activity 10'!$B$7:$B$13,'Activity 10'!R$7:R$13,\"N/A\",0,1)","v":"N/A"},{"$f":"_xlfn.XLOOKUP($E42,'Activity 10'!$B$7:$B$13,'Activity 10'!S$7:S$13,\"N/A\",0,1)","v":"N/A"},{"$f":"_xlfn.XLOOKUP($E42,'Activity 10'!$B$7:$B$13,'Activity 10'!T$7:T$13,\"N/A\",0,1)","v":"N/A"},{"$f":"_xlfn.XLOOKUP($E42,'Activity 10'!$B$7:$B$13,'Activity 10'!U$7:U$13,\"N/A\",0,1)","v":"N/A"},{"$f":"_xlfn.XLOOKUP($E42,'Activity 10'!$B$7:$B$13,'Activity 10'!V$7:V$13,\"N/A\",0,1)","v":"N/A"},{"$f":"_xlfn.XLOOKUP($E42,'Activity 10'!$B$17:$B$23,'Activity 10'!E$17:E$23,\"N/A\",0,1)","v":"N/A"},{"$f":"_xlfn.XLOOKUP($E42,'Activity 10'!$B$17:$B$23,'Activity 10'!F$17:F$23,\"N/A\",0,1)","v":"N/A"},{"$f":"_xlfn.XLOOKUP($E42,'Activity 10'!$B$17:$B$23,'Activity 10'!G$17:G$23,\"N/A\",0,1)","v":"N/A"},{"$f":"_xlfn.XLOOKUP($E42,'Activity 10'!$B$17:$B$23,'Activity 10'!H$17:H$23,\"N/A\",0,1)","v":"N/A"},{"$f":"_xlfn.XLOOKUP($E42,'Activity 10'!$B$17:$B$23,'Activity 10'!I$17:I$23,\"N/A\",0,1)","v":"N/A"},{"$f":"_xlfn.XLOOKUP($E42,'Activity 10'!$B$17:$B$23,'Activity 10'!J$17:J$23,\"N/A\",0,1)","v":"N/A"},{"$f":"_xlfn.XLOOKUP($E42,'Activity 10'!$B$17:$B$23,'Activity 10'!K$17:K$23,\"N/A\",0,1)","v":"N/A"},{"$f":"_xlfn.XLOOKUP($E42,'Activity 10'!$B$17:$B$23,'Activity 10'!L$17:L$23,\"N/A\",0,1)","v":"N/A"},{"$f":"_xlfn.XLOOKUP($E42,'Activity 10'!$B$17:$B$23,'Activity 10'!M$17:M$23,\"N/A\",0,1)","v":"N/A"},{"$f":"_xlfn.XLOOKUP($E42,'Activity 10'!$B$17:$B$23,'Activity 10'!N$17:N$23,\"N/A\",0,1)","v":"N/A"},{"$f":"_xlfn.XLOOKUP($E42,'Activity 10'!$B$17:$B$23,'Activity 10'!P$17:P$23,\"N/A\",0,1)","v":"N/A"},{"$f":"_xlfn.XLOOKUP($E42,'Competitive Activity 1'!B$7:B$13,'Competitive Activity 1'!A$7:A$13,\"No\",0,1)","v":"No"},{"$f":"_xlfn.XLOOKUP($E42,'Competitive Activity 1'!$B$7:$B$13,'Competitive Activity 1'!H$7:H$13,\"N/A\",0,1)","v":"N/A"},{"$f":"_xlfn.XLOOKUP($E42,'Competitive Activity 1'!$B$7:$B$13,'Competitive Activity 1'!I$7:I$13,\"N/A\",0,1)","v":"N/A"},{"$f":"_xlfn.XLOOKUP($E42,'Competitive Activity 1'!$B$7:$B$13,'Competitive Activity 1'!J$7:J$13,\"N/A\",0,1)","v":"N/A"},{"$f":"_xlfn.XLOOKUP($E42,'Competitive Activity 1'!$B$7:$B$13,'Competitive Activity 1'!K$7:K$13,\"N/A\",0,1)","v":"N/A"},{"$f":"_xlfn.XLOOKUP($E42,'Competitive Activity 1'!$B$7:$B$13,'Competitive Activity 1'!L$7:L$13,\"N/A\",0,1)","v":"N/A"},{"$f":"_xlfn.XLOOKUP($E42,'Competitive Activity 1'!$B$7:$B$13,'Competitive Activity 1'!M$7:M$13,\"N/A\",0,1)","v":"N/A"},{"$f":"_xlfn.XLOOKUP($E42,'Competitive Activity 1'!$B$7:$B$13,'Competitive Activity 1'!N$7:N$13,\"N/A\",0,1)","v":"N/A"},{"$f":"_xlfn.XLOOKUP($E42,'Competitive Activity 1'!$B$7:$B$13,'Competitive Activity 1'!O$7:O$13,\"N/A\",0,1)","v":"N/A"},{"$f":"_xlfn.XLOOKUP($E42,'Competitive Activity 1'!$B$7:$B$13,'Competitive Activity 1'!P$7:P$13,\"N/A\",0,1)","v":"N/A"},{"$f":"_xlfn.XLOOKUP($E42,'Competitive Activity 1'!$B$7:$B$13,'Competitive Activity 1'!Q$7:Q$13,\"N/A\",0,1)","v":"N/A"},{"$f":"_xlfn.XLOOKUP($E42,'Competitive Activity 1'!$B$7:$B$13,'Competitive Activity 1'!R$7:R$13,\"N/A\",0,1)","v":"N/A"},{"$f":"_xlfn.XLOOKUP($E42,'Competitive Activity 1'!$B$7:$B$13,'Competitive Activity 1'!S$7:S$13,\"N/A\",0,1)","v":"N/A"},{"$f":"_xlfn.XLOOKUP($E42,'Competitive Activity 1'!$B$7:$B$13,'Competitive Activity 1'!T$7:T$13,\"N/A\",0,1)","v":"N/A"},{"$f":"_xlfn.XLOOKUP($E42,'Competitive Activity 1'!$B$7:$B$13,'Competitive Activity 1'!U$7:U$13,\"N/A\",0,1)","v":"N/A"},{"$f":"_xlfn.XLOOKUP($E42,'Competitive Activity 1'!$B$17:$B$23,'Competitive Activity 1'!C$17:C$23,\"N/A\",0,1)","v":"N/A"},{"$f":"_xlfn.XLOOKUP($E42,'Competitive Activity 1'!$B$17:$B$23,'Competitive Activity 1'!D$17:D$23,\"N/A\",0,1)","v":"N/A"},{"$f":"_xlfn.XLOOKUP($E42,'Competitive Activity 1'!$B$17:$B$23,'Competitive Activity 1'!E$17:E$23,\"N/A\",0,1)","v":"N/A"},{"$f":"_xlfn.XLOOKUP($E42,'Competitive Activity 1'!$B$17:$B$23,'Competitive Activity 1'!F$17:F$23,\"N/A\",0,1)","v":"N/A"},{"$f":"_xlfn.XLOOKUP($E42,'Competitive Activity 1'!$B$17:$B$23,'Competitive Activity 1'!G$17:G$23,\"N/A\",0,1)","v":"N/A"},{"$f":"_xlfn.XLOOKUP($E42,'Competitive Activity 1'!$B$17:$B$23,'Competitive Activity 1'!H$17:H$23,\"N/A\",0,1)","v":"N/A"},{"$f":"_xlfn.XLOOKUP($E42,'Competitive Activity 1'!$B$17:$B$23,'Competitive Activity 1'!I$17:I$23,\"N/A\",0,1)","v":"N/A"},{"$f":"_xlfn.XLOOKUP($E42,'Competitive Activity 1'!$B$17:$B$23,'Competitive Activity 1'!J$17:J$23,\"N/A\",0,1)","v":"N/A"},{"$f":"_xlfn.XLOOKUP($E42,'Competitive Activity 1'!$B$17:$B$23,'Competitive Activity 1'!K$17:K$23,\"N/A\",0,1)","v":"N/A"},{"$f":"_xlfn.XLOOKUP($E42,'Competitive Activity 1'!$B$17:$B$23,'Competitive Activity 1'!M$17:M$23,\"N/A\",0,1)","v":"N/A"},{"$f":"_xlfn.XLOOKUP($E42,'Competitive Activity 1'!$B$17:$B$23,'Competitive Activity 1'!N$17:N$23,\"N/A\",0,1)","v":"N/A"},{"$f":"_xlfn.XLOOKUP($E42,'Competitive Activity 1'!$B$17:$B$23,'Competitive Activity 1'!P$17:P$23,\"N/A\",0,1)","v":"N/A"},{"$f":"_xlfn.XLOOKUP($E42,'Competitive Activity 2'!$B$7:$B$13,'Competitive Activity 2'!A$7:A$13,\"No\",0)","v":"No"},{"$f":"_xlfn.XLOOKUP($E42,'Competitive Activity 2'!$B$7:$B$13,'Competitive Activity 2'!L$7:L$13,\"N/A\",0)","v":"N/A"},{"$f":"_xlfn.XLOOKUP($E42,'Competitive Activity 2'!$B$7:$B$13,'Competitive Activity 2'!M$7:M$13,\"N/A\",0)","v":"N/A"},{"$f":"_xlfn.XLOOKUP($E42,'Competitive Activity 2'!$B$7:$B$13,'Competitive Activity 2'!N$7:N$13,\"N/A\",0)","v":"N/A"},{"$f":"_xlfn.XLOOKUP($E42,'Competitive Activity 2'!$B$7:$B$13,'Competitive Activity 2'!O$7:O$13,\"N/A\",0)","v":"N/A"},{"$f":"_xlfn.XLOOKUP($E42,'Competitive Activity 2'!$B$7:$B$13,'Competitive Activity 2'!P$7:P$13,\"N/A\",0)","v":"N/A"},{"$f":"_xlfn.XLOOKUP($E42,'Competitive Activity 2'!$B$7:$B$13,'Competitive Activity 2'!Q$7:Q$13,\"N/A\",0)","v":"N/A"},{"$f":"_xlfn.XLOOKUP($E42,'Competitive Activity 2'!$B$7:$B$13,'Competitive Activity 2'!R$7:R$13,\"N/A\",0)","v":"N/A"},{"$f":"_xlfn.XLOOKUP($E42,'Competitive Activity 2'!$B$7:$B$13,'Competitive Activity 2'!S$7:S$13,\"N/A\",0)","v":"N/A"},{"$f":"_xlfn.XLOOKUP($E42,'Competitive Activity 2'!$B$7:$B$13,'Competitive Activity 2'!T$7:T$13,\"N/A\",0)","v":"N/A"},{"$f":"_xlfn.XLOOKUP($E42,'Competitive Activity 2'!$B$7:$B$13,'Competitive Activity 2'!U$7:U$13,\"N/A\",0)","v":"N/A"},{"$f":"_xlfn.XLOOKUP($E42,'Competitive Activity 2'!$B$17:$B$23,'Competitive Activity 2'!D$17:D$23,\"N/A\",0)","v":"N/A"},{"$f":"_xlfn.XLOOKUP($E42,'Competitive Activity 2'!$B$17:$B$23,'Competitive Activity 2'!E$17:E$23,\"N/A\",0)","v":"N/A"},{"$f":"_xlfn.XLOOKUP($E42,'Competitive Activity 2'!$B$17:$B$23,'Competitive Activity 2'!F$17:F$23,\"N/A\",0)","v":"N/A"},{"$f":"_xlfn.XLOOKUP($E42,'Competitive Activity 2'!$B$17:$B$23,'Competitive Activity 2'!G$17:G$23,\"N/A\",0)","v":"N/A"},{"$f":"_xlfn.XLOOKUP($E42,'Competitive Activity 2'!$B$17:$B$23,'Competitive Activity 2'!H$17:H$23,\"N/A\",0)","v":"N/A"},{"$f":"_xlfn.XLOOKUP($E42,'Competitive Activity 2'!$B$17:$B$23,'Competitive Activity 2'!I$17:I$23,\"N/A\",0)","v":"N/A"},{"$f":"_xlfn.XLOOKUP($E42,'Competitive Activity 2'!$B$17:$B$23,'Competitive Activity 2'!J$17:J$23,\"N/A\",0)","v":"N/A"},{"$f":"_xlfn.XLOOKUP($E42,'Competitive Activity 2'!$B$17:$B$23,'Competitive Activity 2'!K$17:K$23,\"N/A\",0)","v":"N/A"},{"$f":"_xlfn.XLOOKUP($E42,'Competitive Activity 2'!$B$17:$B$23,'Competitive Activity 2'!L$17:L$23,\"N/A\",0)","v":"N/A"},{"$f":"_xlfn.XLOOKUP($E42,'Competitive Activity 2'!$B$17:$B$23,'Competitive Activity 2'!M$17:M$23,\"N/A\",0)","v":"N/A"},{"$f":"_xlfn.XLOOKUP($E42,'Competitive Activity 2'!$B$17:$B$23,'Competitive Activity 2'!N$17:N$23,\"N/A\",0)","v":"N/A"},{"$f":"_xlfn.XLOOKUP($E42,'Competitive Activity 2'!$B$27:$B$33,'Competitive Activity 2'!D$27:D$33,\"N/A\",0)","v":"N/A"},{"$f":"_xlfn.XLOOKUP($E42,'Competitive Activity 2'!$B$27:$B$33,'Competitive Activity 2'!E$27:E$33,\"N/A\",0)","v":"N/A"},{"$f":"_xlfn.XLOOKUP($E42,'Competitive Activity 2'!$B$27:$B$33,'Competitive Activity 2'!F$27:F$33,\"N/A\",0)","v":"N/A"},{"$f":"_xlfn.XLOOKUP($E42,'Competitive Activity 2'!$B$27:$B$33,'Competitive Activity 2'!G$27:G$33,\"N/A\",0)","v":"N/A"},{"$f":"_xlfn.XLOOKUP($E42,'Competitive Activity 2'!$B$27:$B$33,'Competitive Activity 2'!H$27:H$33,\"N/A\",0)","v":"N/A"},{"$f":"_xlfn.XLOOKUP($E42,'Competitive Activity 2'!$B$27:$B$33,'Competitive Activity 2'!I$27:I$33,\"N/A\",0)","v":"N/A"},{"$f":"_xlfn.XLOOKUP($E42,'Competitive Activity 2'!$B$27:$B$33,'Competitive Activity 2'!J$27:J$33,\"N/A\",0)","v":"N/A"},{"$f":"_xlfn.XLOOKUP($E42,'Competitive Activity 2'!$B$27:$B$33,'Competitive Activity 2'!K$27:K$33,\"N/A\",0)","v":"N/A"},{"$f":"_xlfn.XLOOKUP($E42,'Competitive Activity 2'!$B$27:$B$33,'Competitive Activity 2'!M$27:M$33,\"N/A\",0)","v":"N/A"}]
[{"$f":"'1-Cover Sheet'!$C$8","v":"Select One"},{"$f":"'1-Cover Sheet'!$F$8","v":"Select One"},{"$f":"'Summary Sheet'!$D$8","v":0},{"$f":"'Summary Sheet'!$D$10","v":0},{"$f":"'Drop Down Box'!B207","v":0},{"$f":"'Drop Down Box'!C207","v":0},{"$f":"'Drop Down Box'!D207","v":"Select One"},{"$f":"_xlfn.XLOOKUP(E43,'Drop Down Box'!$B$166:$B$249,'Drop Down Box'!$A$166:$A$249,\"Unknown\",0)","v":"Activity 1"},{"$f":"_xlfn.XLOOKUP($E43,'Activity 6'!$B$32:$B$38,'Activity 6'!$L$32:$L$38,\"N/A\",0)","v":"N/A"},{"$f":"_xlfn.XLOOKUP($E43,'Activity 6'!$B$32:$B$38,'Activity 6'!N$32:N$38,\"N/A\",0)","v":"N/A"},{"$f":"_xlfn.XLOOKUP($E43,'Activity 6'!$B$7:$B$13,'Activity 6'!H$7:H$13,\"N/A\",0)","v":"N/A"},{"$f":"_xlfn.XLOOKUP($E43,'Activity 6'!$B$7:$B$13,'Activity 6'!I$7:I$13,\"N/A\",0)","v":"N/A"},{"$f":"_xlfn.XLOOKUP($E43,'Activity 6'!$B$7:$B$13,'Activity 6'!J$7:J$13,\"N/A\",0)","v":"N/A"},{"$f":"_xlfn.XLOOKUP($E43,'Activity 1'!$B$7:$B$13,'Activity 1'!$A$7:$A$13,\"No\",0,1)","v":"No"},{"$f":"_xlfn.XLOOKUP($E43,'Activity 1'!$B$7:$B$13,'Activity 1'!$H$7:$H$13,\"N/A\",0,1)","v":"N/A"},{"$f":"_xlfn.XLOOKUP($E43,'Activity 1'!$B$7:$B$13,'Activity 1'!I$7:I$13,\"N/A\",0,1)","v":"N/A"},{"$f":"_xlfn.XLOOKUP($E43,'Activity 1'!$B$7:$B$13,'Activity 1'!J$7:J$13,\"N/A\",0,1)","v":"N/A"},{"$f":"_xlfn.XLOOKUP($E43,'Activity 1'!$B$7:$B$13,'Activity 1'!K$7:K$13,\"N/A\",0,1)","v":"N/A"},{"$f":"_xlfn.XLOOKUP($E43,'Activity 1'!$B$7:$B$13,'Activity 1'!L$7:L$13,\"N/A\",0,1)","v":"N/A"},{"$f":"_xlfn.XLOOKUP($E43,'Activity 1'!$B$7:$B$13,'Activity 1'!M$7:M$13,\"N/A\",0,1)","v":"N/A"},{"$f":"_xlfn.XLOOKUP($E43,'Activity 1'!$B$7:$B$13,'Activity 1'!N$7:N$13,\"N/A\",0,1)","v":"N/A"},0,{"$f":"_xlfn.XLOOKUP($E43,'Activity 1'!$B$7:$B$13,'Activity 1'!O$7:O$13,\"N/A\",0,1)","v":"N/A"},{"$f":"_xlfn.XLOOKUP($E43,'Activity 1'!$B$7:$B$13,'Activity 1'!P$7:P$13,\"N/A\",0,1)","v":"N/A"},{"$f":"_xlfn.XLOOKUP($E43,'Activity 1'!$B$7:$B$13,'Activity 1'!Q$7:Q$13,\"N/A\",0,1)","v":"N/A"},{"$f":"_xlfn.XLOOKUP($E43,'Activity 1'!$B$7:$B$13,'Activity 1'!R$7:R$13,\"N/A\",0,1)","v":"N/A"},{"$f":"_xlfn.XLOOKUP($E43,'Activity 1'!$B$7:$B$13,'Activity 1'!S$7:S$13,\"N/A\",0,1)","v":"N/A"},{"$f":"_xlfn.XLOOKUP($E43,'Activity 1'!$B$7:$B$13,'Activity 1'!T$7:T$13,\"N/A\",0,1)","v":"N/A"},{"$f":"_xlfn.XLOOKUP($E43,'Activity 1'!$B$7:$B$13,'Activity 1'!U$7:U$13,\"N/A\",0,1)","v":"N/A"},{"$f":"_xlfn.XLOOKUP($E43,'Activity 1'!$B$7:$B$13,'Activity 1'!V$7:V$13,\"N/A\",0,1)","v":"N/A"},{"$f":"_xlfn.XLOOKUP($E43,'Activity 1'!$B$17:$B$23,'Activity 1'!C$17:C$23,\"N/A\",0,1)","v":"N/A"},{"$f":"_xlfn.XLOOKUP($E43,'Activity 1'!$B$17:$B$23,'Activity 1'!D$17:D$23,\"N/A\",0,1)","v":"N/A"},{"$f":"_xlfn.XLOOKUP($E43,'Activity 1'!$B$17:$B$23,'Activity 1'!E$17:E$23,\"N/A\",0,1)","v":"N/A"},{"$f":"_xlfn.XLOOKUP($E43,'Activity 1'!$B$17:$B$23,'Activity 1'!F$17:F$23,\"N/A\",0,1)","v":"N/A"},{"$f":"_xlfn.XLOOKUP($E43,'Activity 1'!$B$17:$B$23,'Activity 1'!G$17:G$23,\"N/A\",0,1)","v":"N/A"},{"$f":"_xlfn.XLOOKUP($E43,'Activity 1'!$B$17:$B$23,'Activity 1'!H$17:H$23,\"N/A\",0,1)","v":"N/A"},{"$f":"_xlfn.XLOOKUP($E43,'Activity 1'!$B$17:$B$23,'Activity 1'!I$17:I$23,\"N/A\",0,1)","v":"N/A"},{"$f":"_xlfn.XLOOKUP($E43,'Activity 1'!$B$17:$B$23,'Activity 1'!J$17:J$23,\"N/A\",0,1)","v":"N/A"},{"$f":"_xlfn.XLOOKUP($E43,'Activity 1'!$B$17:$B$23,'Activity 1'!K$17:K$23,\"N/A\",0,1)","v":"N/A"},{"$f":"_xlfn.XLOOKUP($E43,'Activity 1'!$B$17:$B$23,'Activity 1'!L$17:L$23,\"N/A\",0,1)","v":"N/A"},{"$f":"_xlfn.XLOOKUP($E43,'Activity 1'!$B$17:$B$23,'Activity 1'!M$17:M$23,\"N/A\",0,1)","v":"N/A"},{"$f":"_xlfn.XLOOKUP($E43,'Activity 1'!$B$17:$B$23,'Activity 1'!O$17:O$23,\"N/A\",0,1)","v":"N/A"},{"$f":"_xlfn.XLOOKUP($E43,'Activity 1'!$B$17:$B$23,'Activity 1'!Q$17:Q$23,\"N/A\",0,1)","v":"N/A"},{"$f":"_xlfn.XLOOKUP($E43,'Activity 2'!$B$7:$B$13,'Activity 2'!$A$7:$A$13,\"No\",0,1)","v":"No"},{"$f":"_xlfn.XLOOKUP($E43,'Activity 2'!B$7:B$13,'Activity 2'!H$7:H$13,\"N/A\",0)","v":"N/A"},{"$f":"_xlfn.XLOOKUP($E43,'Activity 2'!C$7:C$13,'Activity 2'!I$7:I$13,\"N/A\",0)","v":"N/A"},{"$f":"_xlfn.XLOOKUP($E43,'Activity 2'!D$7:D$13,'Activity 2'!J$7:J$13,\"N/A\",0)","v":"N/A"},{"$f":"_xlfn.XLOOKUP($E43,'Activity 2'!E$7:E$13,'Activity 2'!K$7:K$13,\"N/A\",0)","v":"N/A"},{"$f":"_xlfn.XLOOKUP($E43,'Activity 2'!F$7:F$13,'Activity 2'!L$7:L$13,\"N/A\",0)","v":"N/A"},{"$f":"_xlfn.XLOOKUP($E43,'Activity 2'!G$7:G$13,'Activity 2'!M$7:M$13,\"N/A\",0)","v":"N/A"},{"$f":"_xlfn.XLOOKUP($E43,'Activity 2'!H$7:H$13,'Activity 2'!N$7:N$13,\"N/A\",0)","v":"N/A"},{"$f":"_xlfn.XLOOKUP($E43,'Activity 2'!I$7:I$13,'Activity 2'!O$7:O$13,\"N/A\",0)","v":"N/A"},{"$f":"_xlfn.XLOOKUP($E43,'Activity 2'!J$7:J$13,'Activity 2'!P$7:P$13,\"N/A\",0)","v":"N/A"},{"$f":"_xlfn.XLOOKUP($E43,'Activity 2'!K$7:K$13,'Activity 2'!Q$7:Q$13,\"N/A\",0)","v":"N/A"},{"$f":"_xlfn.XLOOKUP($E43,'Activity 2'!L$7:L$13,'Activity 2'!R$7:R$13,\"N/A\",0)","v":"N/A"},{"$f":"_xlfn.XLOOKUP($E43,'Activity 2'!M$7:M$13,'Activity 2'!S$7:S$13,\"N/A\",0)","v":"N/A"},{"$f":"_xlfn.XLOOKUP($E43,'Activity 2'!N$7:N$13,'Activity 2'!T$7:T$13,\"N/A\",0)","v":"N/A"},{"$f":"_xlfn.XLOOKUP($E43,'Activity 2'!O$7:O$13,'Activity 2'!U$7:U$13,\"N/A\",0)","v":"N/A"},{"$f":"_xlfn.XLOOKUP($E43,'Activity 2'!P$7:P$13,'Activity 2'!V$7:V$13,\"N/A\",0)","v":"N/A"},{"$f":"_xlfn.XLOOKUP($E43,'Activity 2'!$B$17:$B$23,'Activity 2'!C$17:C$23,\"N/A\",0,1)","v":"N/A"},{"$f":"_xlfn.XLOOKUP($E43,'Activity 2'!$B$17:$B$23,'Activity 2'!D$17:D$23,\"N/A\",0,1)","v":"N/A"},{"$f":"_xlfn.XLOOKUP($E43,'Activity 2'!$B$17:$B$23,'Activity 2'!E$17:E$23,\"N/A\",0,1)","v":"N/A"},{"$f":"_xlfn.XLOOKUP($E43,'Activity 2'!$B$17:$B$23,'Activity 2'!F$17:F$23,\"N/A\",0,1)","v":"N/A"},{"$f":"_xlfn.XLOOKUP($E43,'Activity 2'!$B$17:$B$23,'Activity 2'!G$17:G$23,\"N/A\",0,1)","v":"N/A"},{"$f":"_xlfn.XLOOKUP($E43,'Activity 2'!$B$17:$B$23,'Activity 2'!H$17:H$23,\"N/A\",0,1)","v":"N/A"},{"$f":"_xlfn.XLOOKUP($E43,'Activity 2'!$B$17:$B$23,'Activity 2'!I$17:I$23,\"N/A\",0,1)","v":"N/A"},{"$f":"_xlfn.XLOOKUP($E43,'Activity 2'!$B$17:$B$23,'Activity 2'!J$17:J$23,\"N/A\",0,1)","v":"N/A"},{"$f":"_xlfn.XLOOKUP($E43,'Activity 2'!$B$17:$B$23,'Activity 2'!K$17:K$23,\"N/A\",0,1)","v":"N/A"},{"$f":"_xlfn.XLOOKUP($E43,'Activity 2'!$B$17:$B$23,'Activity 2'!L$17:L$23,\"N/A\",0,1)","v":"N/A"},{"$f":"_xlfn.XLOOKUP($E43,'Activity 2'!$B$17:$B$23,'Activity 2'!M$17:M$23,\"N/A\",0,1)","v":"N/A"},{"$f":"_xlfn.XLOOKUP($E43,'Activity 2'!$B$17:$B$23,'Activity 2'!O$17:O$23,\"N/A\",0,1)","v":"N/A"},{"$f":"_xlfn.XLOOKUP($E43,'Activity 2'!$B$17:$B$23,'Activity 2'!Q$17:Q$23,\"N/A\",0,1)","v":"N/A"},null,{"$f":"_xlfn.XLOOKUP($E43,'Activity 3'!$B$8:$B$14,'Activity 3'!K$8:K$14,\"N/A\",0,1)","v":"N/A"},{"$f":"_xlfn.XLOOKUP($E43,'Activity 3'!$B$8:$B$14,'Activity 3'!L$8:L$14,\"N/A\",0,1)","v":"N/A"},{"$f":"_xlfn.XLOOKUP($E43,'Activity 3'!$B$8:$B$14,'Activity 3'!M$8:M$14,\"N/A\",0,1)","v":"N/A"},{"$f":"_xlfn.XLOOKUP($E43,'Activity 3'!$B$8:$B$14,'Activity 3'!N$8:N$14,\"N/A\",0,1)","v":"N/A"},{"$f":"_xlfn.XLOOKUP($E43,'Activity 3'!$B$8:$B$14,'Activity 3'!O$8:O$14,\"N/A\",0,1)","v":"N/A"},{"$f":"_xlfn.XLOOKUP($E43,'Activity 3'!$B$8:$B$14,'Activity 3'!R$8:R$14,\"N/A\",0,1)","v":"N/A"},{"$f":"_xlfn.XLOOKUP($E43,'Activity 4'!$B$8:$B$14,'Activity 4'!$A$8:$A$14,\"No\",0,1)","v":"No"},{"$f":"_xlfn.XLOOKUP($E43,'Activity 4'!$B$8:$B$14,'Activity 4'!L$8:L$14,\"N/A\",0,1)","v":"N/A"},{"$f":"_xlfn.XLOOKUP($E43,'Activity 4'!$B$8:$B$14,'Activity 4'!I$8:I$14,\"N/A\",0,1)","v":"N/A"},{"$f":"_xlfn.XLOOKUP($E43,'Activity 4'!$B$8:$B$14,'Activity 4'!M$8:M$14,\"N/A\",0,1)","v":"N/A"},{"$f":"_xlfn.XLOOKUP($E43,'Activity 5'!$B$8:$B$14,'Activity 5'!$A$8:$A$14,\"No\",0,1)","v":"No"},{"$f":"_xlfn.XLOOKUP($E43,'Activity 5'!$B$8:$B$14,'Activity 5'!J$8:J$14,\"N/A\",0,1)","v":"N/A"},{"$f":"_xlfn.XLOOKUP($E43,'Activity 5'!$B$8:$B$14,'Activity 5'!K$8:K$14,\"N/A\",0,1)","v":"N/A"},{"$f":"_xlfn.XLOOKUP($E43,'Activity 5'!$B$8:$B$14,'Activity 5'!N$8:N$14,\"N/A\",0,1)","v":"N/A"},{"$f":"_xlfn.XLOOKUP($E43,'Activity 5'!$B$8:$B$14,'Activity 5'!O$8:O$14,\"N/A\",0,1)","v":"N/A"},{"$f":"_xlfn.XLOOKUP($E43,'Activity 5'!$B$8:$B$14,'Activity 5'!P$8:P$14,\"N/A\",0,1)","v":"N/A"},{"$f":"_xlfn.XLOOKUP($E43,'Activity 5'!$B$8:$B$14,'Activity 5'!Q$8:Q$14,\"N/A\",0,1)","v":"N/A"},{"$f":"_xlfn.XLOOKUP($E43,'Activity 5'!$B$8:$B$14,'Activity 5'!R$8:R$14,\"N/A\",0,1)","v":"N/A"},{"$f":"_xlfn.XLOOKUP($E43,'Activity 6'!$B$7:$B$13,'Activity 6'!A$7:A$13,\"No\",0,1)","v":"No"},{"$f":"_xlfn.XLOOKUP($E43,'Activity 6'!$B$7:$B$13,'Activity 6'!K$7:K$13,\"N/A\",0,1)","v":"N/A"},{"$f":"_xlfn.XLOOKUP($E43,'Activity 6'!$B$7:$B$13,'Activity 6'!L$7:L$13,\"N/A\",0,1)","v":"N/A"},{"$f":"_xlfn.XLOOKUP($E43,'Activity 6'!$B$7:$B$13,'Activity 6'!M$7:M$13,\"N/A\",0,1)","v":"N/A"},{"$f":"_xlfn.XLOOKUP($E43,'Activity 6'!$B$7:$B$13,'Activity 6'!N$7:N$13,\"N/A\",0,1)","v":"N/A"},{"$f":"_xlfn.XLOOKUP($E43,'Activity 6'!$B$7:$B$13,'Activity 6'!O$7:O$13,\"N/A\",0,1)","v":"N/A"},{"$f":"_xlfn.XLOOKUP($E43,'Activity 6'!$B$7:$B$13,'Activity 6'!P$7:P$13,\"N/A\",0,1)","v":"N/A"},{"$f":"_xlfn.XLOOKUP($E43,'Activity 6'!$B$7:$B$13,'Activity 6'!Q$7:Q$13,\"N/A\",0,1)","v":"N/A"},{"$f":"_xlfn.XLOOKUP($E43,'Activity 6'!$B$7:$B$13,'Activity 6'!R$7:R$13,\"N/A\",0,1)","v":"N/A"},{"$f":"_xlfn.XLOOKUP($E43,'Activity 6'!$B$7:$B$13,'Activity 6'!S$7:S$13,\"N/A\",0,1)","v":"N/A"},{"$f":"_xlfn.XLOOKUP($E43,'Activity 6'!$B$7:$B$13,'Activity 6'!T$7:T$13,\"N/A\",0,1)","v":"N/A"},{"$f":"_xlfn.XLOOKUP($E43,'Activity 6'!$B$7:$B$13,'Activity 6'!U$7:U$13,\"N/A\",0,1)","v":"N/A"},{"$f":"_xlfn.XLOOKUP($E43,'Activity 6'!$B$22:$B$28,'Activity 6'!C$22:C$28,\"N/A\",0,1)","v":"N/A"},{"$f":"_xlfn.XLOOKUP($E43,'Activity 6'!$B$22:$B$28,'Activity 6'!D$22:D$28,\"N/A\",0,1)","v":"N/A"},{"$f":"_xlfn.XLOOKUP($E43,'Activity 6'!$B$22:$B$28,'Activity 6'!E$22:E$28,\"N/A\",0,1)","v":"N/A"},{"$f":"_xlfn.XLOOKUP($E43,'Activity 6'!$B$22:$B$28,'Activity 6'!F$22:F$28,\"N/A\",0,1)","v":"N/A"},{"$f":"_xlfn.XLOOKUP($E43,'Activity 6'!$B$22:$B$28,'Activity 6'!G$22:G$28,\"N/A\",0,1)","v":"N/A"},{"$f":"_xlfn.XLOOKUP($E43,'Activity 6'!$B$22:$B$28,'Activity 6'!H$22:H$28,\"N/A\",0,1)","v":"N/A"},{"$f":"_xlfn.XLOOKUP($E43,'Activity 6'!$B$22:$B$28,'Activity 6'!I$22:I$28,\"N/A\",0,1)","v":"N/A"},{"$f":"_xlfn.XLOOKUP($E43,'Activity 6'!$B$22:$B$28,'Activity 6'!J$22:J$28,\"N/A\",0,1)","v":"N/A"},{"$f":"_xlfn.XLOOKUP($E43,'Activity 6'!$B$22:$B$28,'Activity 6'!K$22:K$28,\"N/A\",0,1)","v":"N/A"},{"$f":"_xlfn.XLOOKUP($E43,'Activity 6'!$B$22:$B$28,'Activity 6'!L$22:L$28,\"N/A\",0,1)","v":"N/A"},{"$f":"_xlfn.XLOOKUP($E43,'Activity 6'!$B$22:$B$28,'Activity 6'!M$22:M$28,\"N/A\",0,1)","v":"N/A"},{"$f":"_xlfn.XLOOKUP($E43,'Activity 6'!$B$22:$B$28,'Activity 6'!N$22:N$28,\"N/A\",0,1)","v":"N/A"},{"$f":"_xlfn.XLOOKUP($E43,'Activity 6'!$B$32:$B$38,'Activity 6'!C$32:C$38,\"N/A\",0,1)","v":"N/A"},{"$f":"_xlfn.XLOOKUP($E43,'Activity 6'!$B$32:$B$38,'Activity 6'!D$32:D$38,\"N/A\",0,1)","v":"N/A"},{"$f":"_xlfn.XLOOKUP($E43,'Activity 6'!$B$32:$B$38,'Activity 6'!E$32:E$38,\"N/A\",0,1)","v":"N/A"},{"$f":"_xlfn.XLOOKUP($E43,'Activity 6'!$B$32:$B$38,'Activity 6'!F$32:F$38,\"N/A\",0,1)","v":"N/A"},{"$f":"_xlfn.XLOOKUP($E43,'Activity 6'!$B$32:$B$38,'Activity 6'!G$32:G$38,\"N/A\",0,1)","v":"N/A"},{"$f":"_xlfn.XLOOKUP($E43,'Activity 6'!$B$32:$B$38,'Activity 6'!H$32:H$38,\"N/A\",0,1)","v":"N/A"},{"$f":"_xlfn.XLOOKUP($E43,'Activity 6'!$B$32:$B$38,'Activity 6'!I$32:I$38,\"N/A\",0,1)","v":"N/A"},{"$f":"_xlfn.XLOOKUP($E43,'Activity 6'!$B$32:$B$38,'Activity 6'!J$32:J$38,\"N/A\",0,1)","v":"N/A"},{"$f":"_xlfn.XLOOKUP($E43,'Activity 6'!$B$32:$B$38,'Activity 6'!K$32:K$38,\"N/A\",0,1)","v":"N/A"},{"$f":"_xlfn.XLOOKUP($E43,'Activity 6'!$B$32:$B$38,'Activity 6'!M$32:M$38,\"N/A\",0,1)","v":"N/A"},{"$f":"_xlfn.XLOOKUP($E43,'Activity 7'!$B$7:$B$13,'Activity 7'!$A$7:$A$13,\"No\",0,1)","v":"No"},{"$f":"_xlfn.XLOOKUP($E43,'Activity 7'!$B$7:$B$13,'Activity 7'!M$7:M$13,\"N/A\",0,1)","v":"N/A"},{"$f":"_xlfn.XLOOKUP($E43,'Activity 7'!$B$7:$B$13,'Activity 7'!K$7:K$13,\"N/A\",0,1)","v":"N/A"},{"$f":"_xlfn.XLOOKUP($E43,'Activity 7'!$B$7:$B$13,'Activity 7'!N$7:N$13,\"N/A\",0,1)","v":"N/A"},{"$f":"_xlfn.XLOOKUP($E43,'Activity 7'!$B$7:$B$13,'Activity 7'!O$7:O$13,\"N/A\",0,1)","v":"N/A"},{"$f":"_xlfn.XLOOKUP($E43,'Activity 7'!$B$7:$B$13,'Activity 7'!P$7:P$13,\"N/A\",0,1)","v":"N/A"},{"$f":"_xlfn.XLOOKUP($E43,'Activity 7'!$B$7:$B$13,'Activity 7'!Q$7:Q$13,\"N/A\",0,1)","v":"N/A"},{"$f":"_xlfn.XLOOKUP($E43,'Activity 7'!$B$7:$B$13,'Activity 7'!R$7:R$13,\"N/A\",0,1)","v":"N/A"},{"$f":"_xlfn.XLOOKUP($E43,'Activity 7'!$B$7:$B$13,'Activity 7'!S$7:S$13,\"N/A\",0,1)","v":"N/A"},{"$f":"_xlfn.XLOOKUP($E43,'Activity 7'!$B$7:$B$13,'Activity 7'!T$7:T$13,\"N/A\",0,1)","v":"N/A"},{"$f":"_xlfn.XLOOKUP($E43,'Activity 7'!$B$7:$B$13,'Activity 7'!U$7:U$13,\"N/A\",0,1)","v":"N/A"},{"$f":"_xlfn.XLOOKUP($E43,'Activity 7'!$B$7:$B$13,'Activity 7'!V$7:V$13,\"N/A\",0,1)","v":"N/A"},{"$f":"_xlfn.XLOOKUP($E43,'Activity 7'!$B$17:$B$23,'Activity 7'!E$17:E$23,\"N/A\",0,1)","v":"N/A"},{"$f":"_xlfn.XLOOKUP($E43,'Activity 7'!$B$17:$B$23,'Activity 7'!G$17:G$23,\"N/A\",0,1)","v":"N/A"},{"$f":"_xlfn.XLOOKUP($E43,'Activity 7'!$B$17:$B$23,'Activity 7'!I$17:I$23,\"N/A\",0,1)","v":"N/A"},{"$f":"_xlfn.XLOOKUP($E43,'Activity 7'!$B$17:$B$23,'Activity 7'!J$17:J$23,\"N/A\",0,1)","v":"N/A"},{"$f":"_xlfn.XLOOKUP($E43,'Activity 7'!$B$17:$B$23,'Activity 7'!K$17:K$23,\"N/A\",0,1)","v":"N/A"},{"$f":"_xlfn.XLOOKUP($E43,'Activity 7'!$B$17:$B$23,'Activity 7'!L$17:L$23,\"N/A\",0,1)","v":"N/A"},{"$f":"_xlfn.XLOOKUP($E43,'Activity 7'!$B$17:$B$23,'Activity 7'!M$17:M$23,\"N/A\",0,1)","v":"N/A"},{"$f":"_xlfn.XLOOKUP($E43,'Activity 7'!$B$17:$B$23,'Activity 7'!N$17:N$23,\"N/A\",0,1)","v":"N/A"},{"$f":"_xlfn.XLOOKUP($E43,'Activity 7'!$B$17:$B$23,'Activity 7'!P$17:P$23,\"N/A\",0,1)","v":"N/A"},{"$f":"_xlfn.XLOOKUP($E43,'Activity 8'!$B$7:$B$13,'Activity 8'!A$7:A$13,\"No\",0,1)","v":"No"},{"$f":"_xlfn.XLOOKUP($E43,'Activity 8'!$B$7:$B$13,'Activity 8'!I$7:I$13,\"N/A\",0,1)","v":"N/A"},{"$f":"_xlfn.XLOOKUP($E43,'Activity 8'!$B$7:$B$13,'Activity 8'!J$7:J$13,\"N/A\",0,1)","v":"N/A"},{"$f":"_xlfn.XLOOKUP($E43,'Activity 8'!$B$7:$B$13,'Activity 8'!K$7:K$13,\"N/A\",0,1)","v":"N/A"},{"$f":"_xlfn.XLOOKUP($E43,'Activity 8'!$B$7:$B$13,'Activity 8'!L$7:L$13,\"N/A\",0,1)","v":"N/A"},{"$f":"_xlfn.XLOOKUP($E43,'Activity 8'!$B$7:$B$13,'Activity 8'!M$7:M$13,\"N/A\",0,1)","v":"N/A"},{"$f":"_xlfn.XLOOKUP($E43,'Activity 8'!$B$7:$B$13,'Activity 8'!N$7:N$13,\"N/A\",0,1)","v":"N/A"},{"$f":"_xlfn.XLOOKUP($E43,'Activity 8'!$B$7:$B$13,'Activity 8'!O$7:O$13,\"N/A\",0,1)","v":"N/A"},{"$f":"_xlfn.XLOOKUP($E43,'Activity 8'!$B$7:$B$13,'Activity 8'!P$7:P$13,\"N/A\",0,1)","v":"N/A"},{"$f":"_xlfn.XLOOKUP($E43,'Activity 8'!$B$7:$B$13,'Activity 8'!Q$7:Q$13,\"N/A\",0,1)","v":"N/A"},{"$f":"_xlfn.XLOOKUP($E43,'Activity 8'!$B$7:$B$13,'Activity 8'!R$7:R$13,\"N/A\",0,1)","v":"N/A"},{"$f":"_xlfn.XLOOKUP($E43,'Activity 8'!$B$7:$B$13,'Activity 8'!S$7:S$13,\"N/A\",0,1)","v":"N/A"},{"$f":"_xlfn.XLOOKUP($E43,'Activity 8'!$B$7:$B$13,'Activity 8'!T$7:T$13,\"N/A\",0,1)","v":"N/A"},{"$f":"_xlfn.XLOOKUP($E43,'Activity 8'!$B$7:$B$13,'Activity 8'!U$7:U$13,\"N/A\",0,1)","v":"N/A"},{"$f":"_xlfn.XLOOKUP($E43,'Activity 8'!$B$7:$B$13,'Activity 8'!V$7:V$13,\"N/A\",0,1)","v":"N/A"},{"$f":"_xlfn.XLOOKUP($E43,'Activity 8'!$B$17:$B$23,'Activity 8'!D$17:D$23,\"N/A\",0,1)","v":"N/A"},{"$f":"_xlfn.XLOOKUP($E43,'Activity 8'!$B$17:$B$23,'Activity 8'!E$17:E$23,\"N/A\",0,1)","v":"N/A"},{"$f":"_xlfn.XLOOKUP($E43,'Activity 8'!$B$17:$B$23,'Activity 8'!F$17:F$23,\"N/A\",0,1)","v":"N/A"},{"$f":"_xlfn.XLOOKUP($E43,'Activity 8'!$B$17:$B$23,'Activity 8'!G$17:G$23,\"N/A\",0,1)","v":"N/A"},{"$f":"_xlfn.XLOOKUP($E43,'Activity 8'!$B$17:$B$23,'Activity 8'!H$17:H$23,\"N/A\",0,1)","v":"N/A"},{"$f":"_xlfn.XLOOKUP($E43,'Activity 8'!$B$17:$B$23,'Activity 8'!I$17:I$23,\"N/A\",0,1)","v":"N/A"},{"$f":"_xlfn.XLOOKUP($E43,'Activity 8'!$B$17:$B$23,'Activity 8'!J$17:J$23,\"N/A\",0,1)","v":"N/A"},{"$f":"_xlfn.XLOOKUP($E43,'Activity 8'!$B$17:$B$23,'Activity 8'!K$17:K$23,\"N/A\",0,1)","v":"N/A"},{"$f":"_xlfn.XLOOKUP($E43,'Activity 8'!$B$17:$B$23,'Activity 8'!L$17:L$23,\"N/A\",0,1)","v":"N/A"},{"$f":"_xlfn.XLOOKUP($E43,'Activity 8'!$B$17:$B$23,'Activity 8'!M$17:M$23,\"N/A\",0,1)","v":"N/A"},{"$f":"_xlfn.XLOOKUP($E43,'Activity 8'!$B$17:$B$23,'Activity 8'!N$17:N$23,\"N/A\",0,1)","v":"N/A"},{"$f":"_xlfn.XLOOKUP($E43,'Activity 8'!$B$17:$B$23,'Activity 8'!P$17:P$23,\"N/A\",0,1)","v":"N/A"},{"$f":"_xlfn.XLOOKUP(E43,'Activity 9'!$B$7:$B$13,'Activity 9'!$A$7:$A$13,\"No\",0,1)","v":"No"},{"$f":"_xlfn.XLOOKUP($E43,'Activity 9'!$B$7:$B$13,'Activity 9'!J$7:J$13,\"N/A\",0,1)","v":"N/A"},{"$f":"_xlfn.XLOOKUP($E43,'Activity 9'!$B$7:$B$13,'Activity 9'!K$7:K$13,\"N/A\",0,1)","v":"N/A"},{"$f":"_xlfn.XLOOKUP($E43,'Activity 9'!$B$7:$B$13,'Activity 9'!L$7:L$13,\"N/A\",0,1)","v":"N/A"},{"$f":"_xlfn.XLOOKUP($E43,'Activity 9'!$B$7:$B$13,'Activity 9'!M$7:M$13,\"N/A\",0,1)","v":"N/A"},{"$f":"_xlfn.XLOOKUP($E43,'Activity 9'!$B$7:$B$13,'Activity 9'!N$7:N$13,\"N/A\",0,1)","v":"N/A"},{"$f":"_xlfn.XLOOKUP($E43,'Activity 9'!$B$7:$B$13,'Activity 9'!O$7:O$13,\"N/A\",0,1)","v":"N/A"},{"$f":"_xlfn.XLOOKUP($E43,'Activity 9'!$B$7:$B$13,'Activity 9'!P$7:P$13,\"N/A\",0,1)","v":"N/A"},{"$f":"_xlfn.XLOOKUP($E43,'Activity 9'!$B$7:$B$13,'Activity 9'!Q$7:Q$13,\"N/A\",0,1)","v":"N/A"},{"$f":"_xlfn.XLOOKUP($E43,'Activity 9'!$B$7:$B$13,'Activity 9'!R$7:R$13,\"N/A\",0,1)","v":"N/A"},{"$f":"_xlfn.XLOOKUP($E43,'Activity 9'!$B$7:$B$13,'Activity 9'!S$7:S$13,\"N/A\",0,1)","v":"N/A"},{"$f":"_xlfn.XLOOKUP($E43,'Activity 9'!$B$7:$B$13,'Activity 9'!T$7:T$13,\"N/A\",0,1)","v":"N/A"},{"$f":"_xlfn.XLOOKUP($E43,'Activity 9'!$B$17:$B$23,'Activity 9'!E$17:E$23,\"N/A\",0,1)","v":"N/A"},{"$f":"_xlfn.XLOOKUP($E43,'Activity 9'!$B$17:$B$23,'Activity 9'!F$17:F$23,\"N/A\",0,1)","v":"N/A"},{"$f":"_xlfn.XLOOKUP($E43,'Activity 9'!$B$17:$B$23,'Activity 9'!G$17:G$23,\"N/A\",0,1)","v":"N/A"},{"$f":"_xlfn.XLOOKUP($E43,'Activity 9'!$B$17:$B$23,'Activity 9'!H$17:H$23,\"N/A\",0,1)","v":"N/A"},{"$f":"_xlfn.XLOOKUP($E43,'Activity 9'!$B$17:$B$23,'Activity 9'!I$17:I$23,\"N/A\",0,1)","v":"N/A"},{"$f":"_xlfn.XLOOKUP($E43,'Activity 9'!$B$17:$B$23,'Activity 9'!J$17:J$23,\"N/A\",0,1)","v":"N/A"},{"$f":"_xlfn.XLOOKUP($E43,'Activity 9'!$B$17:$B$23,'Activity 9'!K$17:K$23,\"N/A\",0,1)","v":"N/A"},{"$f":"_xlfn.XLOOKUP($E43,'Activity 9'!$B$17:$B$23,'Activity 9'!L$17:L$23,\"N/A\",0,1)","v":"N/A"},{"$f":"_xlfn.XLOOKUP($E43,'Activity 9'!$B$17:$B$23,'Activity 9'!N$17:N$23,\"N/A\",0,1)","v":"N/A"},{"$f":"_xlfn.XLOOKUP($E43,'Activity 9'!$B$17:$B$23,'Activity 9'!O$17:O$23,\"N/A\",0,1)","v":"N/A"},{"$f":"_xlfn.XLOOKUP($E43,'Activity 9'!$B$17:$B$23,'Activity 9'!Q$17:Q$23,\"N/A\",0,1)","v":"N/A"},{"$f":"_xlfn.XLOOKUP($E43,'Activity 10'!$B$7:$B$13,'Activity 10'!A$7:A$13,\"No\",0,1)","v":"No"},{"$f":"_xlfn.XLOOKUP($E43,'Activity 10'!$B$7:$B$13,'Activity 10'!J$7:J$13,\"N/A\",0,1)","v":"N/A"},{"$f":"_xlfn.XLOOKUP($E43,'Activity 10'!$B$7:$B$13,'Activity 10'!K$7:K$13,\"N/A\",0,1)","v":"N/A"},{"$f":"_xlfn.XLOOKUP($E43,'Activity 10'!$B$7:$B$13,'Activity 10'!L$7:L$13,\"N/A\",0,1)","v":"N/A"},{"$f":"_xlfn.XLOOKUP($E43,'Activity 10'!$B$7:$B$13,'Activity 10'!M$7:M$13,\"N/A\",0,1)","v":"N/A"},{"$f":"_xlfn.XLOOKUP($E43,'Activity 10'!$B$7:$B$13,'Activity 10'!N$7:N$13,\"N/A\",0,1)","v":"N/A"},{"$f":"_xlfn.XLOOKUP($E43,'Activity 10'!$B$7:$B$13,'Activity 10'!O$7:O$13,\"N/A\",0,1)","v":"N/A"},{"$f":"_xlfn.XLOOKUP($E43,'Activity 10'!$B$7:$B$13,'Activity 10'!P$7:P$13,\"N/A\",0,1)","v":"N/A"},{"$f":"_xlfn.XLOOKUP($E43,'Activity 10'!$B$7:$B$13,'Activity 10'!Q$7:Q$13,\"N/A\",0,1)","v":"N/A"},{"$f":"_xlfn.XLOOKUP($E43,'Activity 10'!$B$7:$B$13,'Activity 10'!R$7:R$13,\"N/A\",0,1)","v":"N/A"},{"$f":"_xlfn.XLOOKUP($E43,'Activity 10'!$B$7:$B$13,'Activity 10'!S$7:S$13,\"N/A\",0,1)","v":"N/A"},{"$f":"_xlfn.XLOOKUP($E43,'Activity 10'!$B$7:$B$13,'Activity 10'!T$7:T$13,\"N/A\",0,1)","v":"N/A"},{"$f":"_xlfn.XLOOKUP($E43,'Activity 10'!$B$7:$B$13,'Activity 10'!U$7:U$13,\"N/A\",0,1)","v":"N/A"},{"$f":"_xlfn.XLOOKUP($E43,'Activity 10'!$B$7:$B$13,'Activity 10'!V$7:V$13,\"N/A\",0,1)","v":"N/A"},{"$f":"_xlfn.XLOOKUP($E43,'Activity 10'!$B$17:$B$23,'Activity 10'!E$17:E$23,\"N/A\",0,1)","v":"N/A"},{"$f":"_xlfn.XLOOKUP($E43,'Activity 10'!$B$17:$B$23,'Activity 10'!F$17:F$23,\"N/A\",0,1)","v":"N/A"},{"$f":"_xlfn.XLOOKUP($E43,'Activity 10'!$B$17:$B$23,'Activity 10'!G$17:G$23,\"N/A\",0,1)","v":"N/A"},{"$f":"_xlfn.XLOOKUP($E43,'Activity 10'!$B$17:$B$23,'Activity 10'!H$17:H$23,\"N/A\",0,1)","v":"N/A"},{"$f":"_xlfn.XLOOKUP($E43,'Activity 10'!$B$17:$B$23,'Activity 10'!I$17:I$23,\"N/A\",0,1)","v":"N/A"},{"$f":"_xlfn.XLOOKUP($E43,'Activity 10'!$B$17:$B$23,'Activity 10'!J$17:J$23,\"N/A\",0,1)","v":"N/A"},{"$f":"_xlfn.XLOOKUP($E43,'Activity 10'!$B$17:$B$23,'Activity 10'!K$17:K$23,\"N/A\",0,1)","v":"N/A"},{"$f":"_xlfn.XLOOKUP($E43,'Activity 10'!$B$17:$B$23,'Activity 10'!L$17:L$23,\"N/A\",0,1)","v":"N/A"},{"$f":"_xlfn.XLOOKUP($E43,'Activity 10'!$B$17:$B$23,'Activity 10'!M$17:M$23,\"N/A\",0,1)","v":"N/A"},{"$f":"_xlfn.XLOOKUP($E43,'Activity 10'!$B$17:$B$23,'Activity 10'!N$17:N$23,\"N/A\",0,1)","v":"N/A"},{"$f":"_xlfn.XLOOKUP($E43,'Activity 10'!$B$17:$B$23,'Activity 10'!P$17:P$23,\"N/A\",0,1)","v":"N/A"},{"$f":"_xlfn.XLOOKUP($E43,'Competitive Activity 1'!B$7:B$13,'Competitive Activity 1'!A$7:A$13,\"No\",0,1)","v":"No"},{"$f":"_xlfn.XLOOKUP($E43,'Competitive Activity 1'!$B$7:$B$13,'Competitive Activity 1'!H$7:H$13,\"N/A\",0,1)","v":"N/A"},{"$f":"_xlfn.XLOOKUP($E43,'Competitive Activity 1'!$B$7:$B$13,'Competitive Activity 1'!I$7:I$13,\"N/A\",0,1)","v":"N/A"},{"$f":"_xlfn.XLOOKUP($E43,'Competitive Activity 1'!$B$7:$B$13,'Competitive Activity 1'!J$7:J$13,\"N/A\",0,1)","v":"N/A"},{"$f":"_xlfn.XLOOKUP($E43,'Competitive Activity 1'!$B$7:$B$13,'Competitive Activity 1'!K$7:K$13,\"N/A\",0,1)","v":"N/A"},{"$f":"_xlfn.XLOOKUP($E43,'Competitive Activity 1'!$B$7:$B$13,'Competitive Activity 1'!L$7:L$13,\"N/A\",0,1)","v":"N/A"},{"$f":"_xlfn.XLOOKUP($E43,'Competitive Activity 1'!$B$7:$B$13,'Competitive Activity 1'!M$7:M$13,\"N/A\",0,1)","v":"N/A"},{"$f":"_xlfn.XLOOKUP($E43,'Competitive Activity 1'!$B$7:$B$13,'Competitive Activity 1'!N$7:N$13,\"N/A\",0,1)","v":"N/A"},{"$f":"_xlfn.XLOOKUP($E43,'Competitive Activity 1'!$B$7:$B$13,'Competitive Activity 1'!O$7:O$13,\"N/A\",0,1)","v":"N/A"},{"$f":"_xlfn.XLOOKUP($E43,'Competitive Activity 1'!$B$7:$B$13,'Competitive Activity 1'!P$7:P$13,\"N/A\",0,1)","v":"N/A"},{"$f":"_xlfn.XLOOKUP($E43,'Competitive Activity 1'!$B$7:$B$13,'Competitive Activity 1'!Q$7:Q$13,\"N/A\",0,1)","v":"N/A"},{"$f":"_xlfn.XLOOKUP($E43,'Competitive Activity 1'!$B$7:$B$13,'Competitive Activity 1'!R$7:R$13,\"N/A\",0,1)","v":"N/A"},{"$f":"_xlfn.XLOOKUP($E43,'Competitive Activity 1'!$B$7:$B$13,'Competitive Activity 1'!S$7:S$13,\"N/A\",0,1)","v":"N/A"},{"$f":"_xlfn.XLOOKUP($E43,'Competitive Activity 1'!$B$7:$B$13,'Competitive Activity 1'!T$7:T$13,\"N/A\",0,1)","v":"N/A"},{"$f":"_xlfn.XLOOKUP($E43,'Competitive Activity 1'!$B$7:$B$13,'Competitive Activity 1'!U$7:U$13,\"N/A\",0,1)","v":"N/A"},{"$f":"_xlfn.XLOOKUP($E43,'Competitive Activity 1'!$B$17:$B$23,'Competitive Activity 1'!C$17:C$23,\"N/A\",0,1)","v":"N/A"},{"$f":"_xlfn.XLOOKUP($E43,'Competitive Activity 1'!$B$17:$B$23,'Competitive Activity 1'!D$17:D$23,\"N/A\",0,1)","v":"N/A"},{"$f":"_xlfn.XLOOKUP($E43,'Competitive Activity 1'!$B$17:$B$23,'Competitive Activity 1'!E$17:E$23,\"N/A\",0,1)","v":"N/A"},{"$f":"_xlfn.XLOOKUP($E43,'Competitive Activity 1'!$B$17:$B$23,'Competitive Activity 1'!F$17:F$23,\"N/A\",0,1)","v":"N/A"},{"$f":"_xlfn.XLOOKUP($E43,'Competitive Activity 1'!$B$17:$B$23,'Competitive Activity 1'!G$17:G$23,\"N/A\",0,1)","v":"N/A"},{"$f":"_xlfn.XLOOKUP($E43,'Competitive Activity 1'!$B$17:$B$23,'Competitive Activity 1'!H$17:H$23,\"N/A\",0,1)","v":"N/A"},{"$f":"_xlfn.XLOOKUP($E43,'Competitive Activity 1'!$B$17:$B$23,'Competitive Activity 1'!I$17:I$23,\"N/A\",0,1)","v":"N/A"},{"$f":"_xlfn.XLOOKUP($E43,'Competitive Activity 1'!$B$17:$B$23,'Competitive Activity 1'!J$17:J$23,\"N/A\",0,1)","v":"N/A"},{"$f":"_xlfn.XLOOKUP($E43,'Competitive Activity 1'!$B$17:$B$23,'Competitive Activity 1'!K$17:K$23,\"N/A\",0,1)","v":"N/A"},{"$f":"_xlfn.XLOOKUP($E43,'Competitive Activity 1'!$B$17:$B$23,'Competitive Activity 1'!M$17:M$23,\"N/A\",0,1)","v":"N/A"},{"$f":"_xlfn.XLOOKUP($E43,'Competitive Activity 1'!$B$17:$B$23,'Competitive Activity 1'!N$17:N$23,\"N/A\",0,1)","v":"N/A"},{"$f":"_xlfn.XLOOKUP($E43,'Competitive Activity 1'!$B$17:$B$23,'Competitive Activity 1'!P$17:P$23,\"N/A\",0,1)","v":"N/A"},{"$f":"_xlfn.XLOOKUP($E43,'Competitive Activity 2'!$B$7:$B$13,'Competitive Activity 2'!A$7:A$13,\"No\",0)","v":"No"},{"$f":"_xlfn.XLOOKUP($E43,'Competitive Activity 2'!$B$7:$B$13,'Competitive Activity 2'!L$7:L$13,\"N/A\",0)","v":"N/A"},{"$f":"_xlfn.XLOOKUP($E43,'Competitive Activity 2'!$B$7:$B$13,'Competitive Activity 2'!M$7:M$13,\"N/A\",0)","v":"N/A"},{"$f":"_xlfn.XLOOKUP($E43,'Competitive Activity 2'!$B$7:$B$13,'Competitive Activity 2'!N$7:N$13,\"N/A\",0)","v":"N/A"},{"$f":"_xlfn.XLOOKUP($E43,'Competitive Activity 2'!$B$7:$B$13,'Competitive Activity 2'!O$7:O$13,\"N/A\",0)","v":"N/A"},{"$f":"_xlfn.XLOOKUP($E43,'Competitive Activity 2'!$B$7:$B$13,'Competitive Activity 2'!P$7:P$13,\"N/A\",0)","v":"N/A"},{"$f":"_xlfn.XLOOKUP($E43,'Competitive Activity 2'!$B$7:$B$13,'Competitive Activity 2'!Q$7:Q$13,\"N/A\",0)","v":"N/A"},{"$f":"_xlfn.XLOOKUP($E43,'Competitive Activity 2'!$B$7:$B$13,'Competitive Activity 2'!R$7:R$13,\"N/A\",0)","v":"N/A"},{"$f":"_xlfn.XLOOKUP($E43,'Competitive Activity 2'!$B$7:$B$13,'Competitive Activity 2'!S$7:S$13,\"N/A\",0)","v":"N/A"},{"$f":"_xlfn.XLOOKUP($E43,'Competitive Activity 2'!$B$7:$B$13,'Competitive Activity 2'!T$7:T$13,\"N/A\",0)","v":"N/A"},{"$f":"_xlfn.XLOOKUP($E43,'Competitive Activity 2'!$B$7:$B$13,'Competitive Activity 2'!U$7:U$13,\"N/A\",0)","v":"N/A"},{"$f":"_xlfn.XLOOKUP($E43,'Competitive Activity 2'!$B$17:$B$23,'Competitive Activity 2'!D$17:D$23,\"N/A\",0)","v":"N/A"},{"$f":"_xlfn.XLOOKUP($E43,'Competitive Activity 2'!$B$17:$B$23,'Competitive Activity 2'!E$17:E$23,\"N/A\",0)","v":"N/A"},{"$f":"_xlfn.XLOOKUP($E43,'Competitive Activity 2'!$B$17:$B$23,'Competitive Activity 2'!F$17:F$23,\"N/A\",0)","v":"N/A"},{"$f":"_xlfn.XLOOKUP($E43,'Competitive Activity 2'!$B$17:$B$23,'Competitive Activity 2'!G$17:G$23,\"N/A\",0)","v":"N/A"},{"$f":"_xlfn.XLOOKUP($E43,'Competitive Activity 2'!$B$17:$B$23,'Competitive Activity 2'!H$17:H$23,\"N/A\",0)","v":"N/A"},{"$f":"_xlfn.XLOOKUP($E43,'Competitive Activity 2'!$B$17:$B$23,'Competitive Activity 2'!I$17:I$23,\"N/A\",0)","v":"N/A"},{"$f":"_xlfn.XLOOKUP($E43,'Competitive Activity 2'!$B$17:$B$23,'Competitive Activity 2'!J$17:J$23,\"N/A\",0)","v":"N/A"},{"$f":"_xlfn.XLOOKUP($E43,'Competitive Activity 2'!$B$17:$B$23,'Competitive Activity 2'!K$17:K$23,\"N/A\",0)","v":"N/A"},{"$f":"_xlfn.XLOOKUP($E43,'Competitive Activity 2'!$B$17:$B$23,'Competitive Activity 2'!L$17:L$23,\"N/A\",0)","v":"N/A"},{"$f":"_xlfn.XLOOKUP($E43,'Competitive Activity 2'!$B$17:$B$23,'Competitive Activity 2'!M$17:M$23,\"N/A\",0)","v":"N/A"},{"$f":"_xlfn.XLOOKUP($E43,'Competitive Activity 2'!$B$17:$B$23,'Competitive Activity 2'!N$17:N$23,\"N/A\",0)","v":"N/A"},{"$f":"_xlfn.XLOOKUP($E43,'Competitive Activity 2'!$B$27:$B$33,'Competitive Activity 2'!D$27:D$33,\"N/A\",0)","v":"N/A"},{"$f":"_xlfn.XLOOKUP($E43,'Competitive Activity 2'!$B$27:$B$33,'Competitive Activity 2'!E$27:E$33,\"N/A\",0)","v":"N/A"},{"$f":"_xlfn.XLOOKUP($E43,'Competitive Activity 2'!$B$27:$B$33,'Competitive Activity 2'!F$27:F$33,\"N/A\",0)","v":"N/A"},{"$f":"_xlfn.XLOOKUP($E43,'Competitive Activity 2'!$B$27:$B$33,'Competitive Activity 2'!G$27:G$33,\"N/A\",0)","v":"N/A"},{"$f":"_xlfn.XLOOKUP($E43,'Competitive Activity 2'!$B$27:$B$33,'Competitive Activity 2'!H$27:H$33,\"N/A\",0)","v":"N/A"},{"$f":"_xlfn.XLOOKUP($E43,'Competitive Activity 2'!$B$27:$B$33,'Competitive Activity 2'!I$27:I$33,\"N/A\",0)","v":"N/A"},{"$f":"_xlfn.XLOOKUP($E43,'Competitive Activity 2'!$B$27:$B$33,'Competitive Activity 2'!J$27:J$33,\"N/A\",0)","v":"N/A"},{"$f":"_xlfn.XLOOKUP($E43,'Competitive Activity 2'!$B$27:$B$33,'Competitive Activity 2'!K$27:K$33,\"N/A\",0)","v":"N/A"},{"$f":"_xlfn.XLOOKUP($E43,'Competitive Activity 2'!$B$27:$B$33,'Competitive Activity 2'!M$27:M$33,\"N/A\",0)","v":"N/A"}]
[{"$f":"'1-Cover Sheet'!$C$8","v":"Select One"},{"$f":"'1-Cover Sheet'!$F$8","v":"Select One"},{"$f":"'Summary Sheet'!$D$8","v":0},{"$f":"'Summary Sheet'!$D$10","v":0},{"$f":"'Drop Down Box'!B208","v":0},{"$f":"'Drop Down Box'!C208","v":0},{"$f":"'Drop Down Box'!D208","v":"Select One"},{"$f":"_xlfn.XLOOKUP(E44,'Drop Down Box'!$B$166:$B$249,'Drop Down Box'!$A$166:$A$249,\"Unknown\",0)","v":"Activity 1"},{"$f":"_xlfn.XLOOKUP($E44,'Activity 7'!$B$17:$B$23,'Activity 7'!$O$17:$O$23,\"N/A\",0)","v":"N/A"},{"$f":"_xlfn.XLOOKUP($E44,'Activity 7'!$B$17:$B$23,'Activity 7'!$Q$17:$Q$23,\"N/A\",0)","v":"N/A"},{"$f":"_xlfn.XLOOKUP($E44,'Activity 7'!$B$7:$B$13,'Activity 7'!H$7:H$13,\"N/A\",0)","v":"N/A"},{"$f":"_xlfn.XLOOKUP($E44,'Activity 7'!$B$7:$B$13,'Activity 7'!I$7:I$13,\"N/A\",0)","v":"N/A"},{"$f":"_xlfn.XLOOKUP($E44,'Activity 7'!$B$7:$B$13,'Activity 7'!J$7:J$13,\"N/A\",0)","v":"N/A"},{"$f":"_xlfn.XLOOKUP($E44,'Activity 1'!$B$7:$B$13,'Activity 1'!$A$7:$A$13,\"No\",0,1)","v":"No"},{"$f":"_xlfn.XLOOKUP($E44,'Activity 1'!$B$7:$B$13,'Activity 1'!$H$7:$H$13,\"N/A\",0,1)","v":"N/A"},{"$f":"_xlfn.XLOOKUP($E44,'Activity 1'!$B$7:$B$13,'Activity 1'!I$7:I$13,\"N/A\",0,1)","v":"N/A"},{"$f":"_xlfn.XLOOKUP($E44,'Activity 1'!$B$7:$B$13,'Activity 1'!J$7:J$13,\"N/A\",0,1)","v":"N/A"},{"$f":"_xlfn.XLOOKUP($E44,'Activity 1'!$B$7:$B$13,'Activity 1'!K$7:K$13,\"N/A\",0,1)","v":"N/A"},{"$f":"_xlfn.XLOOKUP($E44,'Activity 1'!$B$7:$B$13,'Activity 1'!L$7:L$13,\"N/A\",0,1)","v":"N/A"},{"$f":"_xlfn.XLOOKUP($E44,'Activity 1'!$B$7:$B$13,'Activity 1'!M$7:M$13,\"N/A\",0,1)","v":"N/A"},{"$f":"_xlfn.XLOOKUP($E44,'Activity 1'!$B$7:$B$13,'Activity 1'!N$7:N$13,\"N/A\",0,1)","v":"N/A"},0,{"$f":"_xlfn.XLOOKUP($E44,'Activity 1'!$B$7:$B$13,'Activity 1'!O$7:O$13,\"N/A\",0,1)","v":"N/A"},{"$f":"_xlfn.XLOOKUP($E44,'Activity 1'!$B$7:$B$13,'Activity 1'!P$7:P$13,\"N/A\",0,1)","v":"N/A"},{"$f":"_xlfn.XLOOKUP($E44,'Activity 1'!$B$7:$B$13,'Activity 1'!Q$7:Q$13,\"N/A\",0,1)","v":"N/A"},{"$f":"_xlfn.XLOOKUP($E44,'Activity 1'!$B$7:$B$13,'Activity 1'!R$7:R$13,\"N/A\",0,1)","v":"N/A"},{"$f":"_xlfn.XLOOKUP($E44,'Activity 1'!$B$7:$B$13,'Activity 1'!S$7:S$13,\"N/A\",0,1)","v":"N/A"},{"$f":"_xlfn.XLOOKUP($E44,'Activity 1'!$B$7:$B$13,'Activity 1'!T$7:T$13,\"N/A\",0,1)","v":"N/A"},{"$f":"_xlfn.XLOOKUP($E44,'Activity 1'!$B$7:$B$13,'Activity 1'!U$7:U$13,\"N/A\",0,1)","v":"N/A"},{"$f":"_xlfn.XLOOKUP($E44,'Activity 1'!$B$7:$B$13,'Activity 1'!V$7:V$13,\"N/A\",0,1)","v":"N/A"},{"$f":"_xlfn.XLOOKUP($E44,'Activity 1'!$B$17:$B$23,'Activity 1'!C$17:C$23,\"N/A\",0,1)","v":"N/A"},{"$f":"_xlfn.XLOOKUP($E44,'Activity 1'!$B$17:$B$23,'Activity 1'!D$17:D$23,\"N/A\",0,1)","v":"N/A"},{"$f":"_xlfn.XLOOKUP($E44,'Activity 1'!$B$17:$B$23,'Activity 1'!E$17:E$23,\"N/A\",0,1)","v":"N/A"},{"$f":"_xlfn.XLOOKUP($E44,'Activity 1'!$B$17:$B$23,'Activity 1'!F$17:F$23,\"N/A\",0,1)","v":"N/A"},{"$f":"_xlfn.XLOOKUP($E44,'Activity 1'!$B$17:$B$23,'Activity 1'!G$17:G$23,\"N/A\",0,1)","v":"N/A"},{"$f":"_xlfn.XLOOKUP($E44,'Activity 1'!$B$17:$B$23,'Activity 1'!H$17:H$23,\"N/A\",0,1)","v":"N/A"},{"$f":"_xlfn.XLOOKUP($E44,'Activity 1'!$B$17:$B$23,'Activity 1'!I$17:I$23,\"N/A\",0,1)","v":"N/A"},{"$f":"_xlfn.XLOOKUP($E44,'Activity 1'!$B$17:$B$23,'Activity 1'!J$17:J$23,\"N/A\",0,1)","v":"N/A"},{"$f":"_xlfn.XLOOKUP($E44,'Activity 1'!$B$17:$B$23,'Activity 1'!K$17:K$23,\"N/A\",0,1)","v":"N/A"},{"$f":"_xlfn.XLOOKUP($E44,'Activity 1'!$B$17:$B$23,'Activity 1'!L$17:L$23,\"N/A\",0,1)","v":"N/A"},{"$f":"_xlfn.XLOOKUP($E44,'Activity 1'!$B$17:$B$23,'Activity 1'!M$17:M$23,\"N/A\",0,1)","v":"N/A"},{"$f":"_xlfn.XLOOKUP($E44,'Activity 1'!$B$17:$B$23,'Activity 1'!O$17:O$23,\"N/A\",0,1)","v":"N/A"},{"$f":"_xlfn.XLOOKUP($E44,'Activity 1'!$B$17:$B$23,'Activity 1'!Q$17:Q$23,\"N/A\",0,1)","v":"N/A"},{"$f":"_xlfn.XLOOKUP($E44,'Activity 2'!$B$7:$B$13,'Activity 2'!$A$7:$A$13,\"No\",0,1)","v":"No"},{"$f":"_xlfn.XLOOKUP($E44,'Activity 2'!B$7:B$13,'Activity 2'!H$7:H$13,\"N/A\",0)","v":"N/A"},{"$f":"_xlfn.XLOOKUP($E44,'Activity 2'!C$7:C$13,'Activity 2'!I$7:I$13,\"N/A\",0)","v":"N/A"},{"$f":"_xlfn.XLOOKUP($E44,'Activity 2'!D$7:D$13,'Activity 2'!J$7:J$13,\"N/A\",0)","v":"N/A"},{"$f":"_xlfn.XLOOKUP($E44,'Activity 2'!E$7:E$13,'Activity 2'!K$7:K$13,\"N/A\",0)","v":"N/A"},{"$f":"_xlfn.XLOOKUP($E44,'Activity 2'!F$7:F$13,'Activity 2'!L$7:L$13,\"N/A\",0)","v":"N/A"},{"$f":"_xlfn.XLOOKUP($E44,'Activity 2'!G$7:G$13,'Activity 2'!M$7:M$13,\"N/A\",0)","v":"N/A"},{"$f":"_xlfn.XLOOKUP($E44,'Activity 2'!H$7:H$13,'Activity 2'!N$7:N$13,\"N/A\",0)","v":"N/A"},{"$f":"_xlfn.XLOOKUP($E44,'Activity 2'!I$7:I$13,'Activity 2'!O$7:O$13,\"N/A\",0)","v":"N/A"},{"$f":"_xlfn.XLOOKUP($E44,'Activity 2'!J$7:J$13,'Activity 2'!P$7:P$13,\"N/A\",0)","v":"N/A"},{"$f":"_xlfn.XLOOKUP($E44,'Activity 2'!K$7:K$13,'Activity 2'!Q$7:Q$13,\"N/A\",0)","v":"N/A"},{"$f":"_xlfn.XLOOKUP($E44,'Activity 2'!L$7:L$13,'Activity 2'!R$7:R$13,\"N/A\",0)","v":"N/A"},{"$f":"_xlfn.XLOOKUP($E44,'Activity 2'!M$7:M$13,'Activity 2'!S$7:S$13,\"N/A\",0)","v":"N/A"},{"$f":"_xlfn.XLOOKUP($E44,'Activity 2'!N$7:N$13,'Activity 2'!T$7:T$13,\"N/A\",0)","v":"N/A"},{"$f":"_xlfn.XLOOKUP($E44,'Activity 2'!O$7:O$13,'Activity 2'!U$7:U$13,\"N/A\",0)","v":"N/A"},{"$f":"_xlfn.XLOOKUP($E44,'Activity 2'!P$7:P$13,'Activity 2'!V$7:V$13,\"N/A\",0)","v":"N/A"},{"$f":"_xlfn.XLOOKUP($E44,'Activity 2'!$B$17:$B$23,'Activity 2'!C$17:C$23,\"N/A\",0,1)","v":"N/A"},{"$f":"_xlfn.XLOOKUP($E44,'Activity 2'!$B$17:$B$23,'Activity 2'!D$17:D$23,\"N/A\",0,1)","v":"N/A"},{"$f":"_xlfn.XLOOKUP($E44,'Activity 2'!$B$17:$B$23,'Activity 2'!E$17:E$23,\"N/A\",0,1)","v":"N/A"},{"$f":"_xlfn.XLOOKUP($E44,'Activity 2'!$B$17:$B$23,'Activity 2'!F$17:F$23,\"N/A\",0,1)","v":"N/A"},{"$f":"_xlfn.XLOOKUP($E44,'Activity 2'!$B$17:$B$23,'Activity 2'!G$17:G$23,\"N/A\",0,1)","v":"N/A"},{"$f":"_xlfn.XLOOKUP($E44,'Activity 2'!$B$17:$B$23,'Activity 2'!H$17:H$23,\"N/A\",0,1)","v":"N/A"},{"$f":"_xlfn.XLOOKUP($E44,'Activity 2'!$B$17:$B$23,'Activity 2'!I$17:I$23,\"N/A\",0,1)","v":"N/A"},{"$f":"_xlfn.XLOOKUP($E44,'Activity 2'!$B$17:$B$23,'Activity 2'!J$17:J$23,\"N/A\",0,1)","v":"N/A"},{"$f":"_xlfn.XLOOKUP($E44,'Activity 2'!$B$17:$B$23,'Activity 2'!K$17:K$23,\"N/A\",0,1)","v":"N/A"},{"$f":"_xlfn.XLOOKUP($E44,'Activity 2'!$B$17:$B$23,'Activity 2'!L$17:L$23,\"N/A\",0,1)","v":"N/A"},{"$f":"_xlfn.XLOOKUP($E44,'Activity 2'!$B$17:$B$23,'Activity 2'!M$17:M$23,\"N/A\",0,1)","v":"N/A"},{"$f":"_xlfn.XLOOKUP($E44,'Activity 2'!$B$17:$B$23,'Activity 2'!O$17:O$23,\"N/A\",0,1)","v":"N/A"},{"$f":"_xlfn.XLOOKUP($E44,'Activity 2'!$B$17:$B$23,'Activity 2'!Q$17:Q$23,\"N/A\",0,1)","v":"N/A"},null,{"$f":"_xlfn.XLOOKUP($E44,'Activity 3'!$B$8:$B$14,'Activity 3'!K$8:K$14,\"N/A\",0,1)","v":"N/A"},{"$f":"_xlfn.XLOOKUP($E44,'Activity 3'!$B$8:$B$14,'Activity 3'!L$8:L$14,\"N/A\",0,1)","v":"N/A"},{"$f":"_xlfn.XLOOKUP($E44,'Activity 3'!$B$8:$B$14,'Activity 3'!M$8:M$14,\"N/A\",0,1)","v":"N/A"},{"$f":"_xlfn.XLOOKUP($E44,'Activity 3'!$B$8:$B$14,'Activity 3'!N$8:N$14,\"N/A\",0,1)","v":"N/A"},{"$f":"_xlfn.XLOOKUP($E44,'Activity 3'!$B$8:$B$14,'Activity 3'!O$8:O$14,\"N/A\",0,1)","v":"N/A"},{"$f":"_xlfn.XLOOKUP($E44,'Activity 3'!$B$8:$B$14,'Activity 3'!R$8:R$14,\"N/A\",0,1)","v":"N/A"},{"$f":"_xlfn.XLOOKUP($E44,'Activity 4'!$B$8:$B$14,'Activity 4'!$A$8:$A$14,\"No\",0,1)","v":"No"},{"$f":"_xlfn.XLOOKUP($E44,'Activity 4'!$B$8:$B$14,'Activity 4'!L$8:L$14,\"N/A\",0,1)","v":"N/A"},{"$f":"_xlfn.XLOOKUP($E44,'Activity 4'!$B$8:$B$14,'Activity 4'!I$8:I$14,\"N/A\",0,1)","v":"N/A"},{"$f":"_xlfn.XLOOKUP($E44,'Activity 4'!$B$8:$B$14,'Activity 4'!M$8:M$14,\"N/A\",0,1)","v":"N/A"},{"$f":"_xlfn.XLOOKUP($E44,'Activity 5'!$B$8:$B$14,'Activity 5'!$A$8:$A$14,\"No\",0,1)","v":"No"},{"$f":"_xlfn.XLOOKUP($E44,'Activity 5'!$B$8:$B$14,'Activity 5'!J$8:J$14,\"N/A\",0,1)","v":"N/A"},{"$f":"_xlfn.XLOOKUP($E44,'Activity 5'!$B$8:$B$14,'Activity 5'!K$8:K$14,\"N/A\",0,1)","v":"N/A"},{"$f":"_xlfn.XLOOKUP($E44,'Activity 5'!$B$8:$B$14,'Activity 5'!N$8:N$14,\"N/A\",0,1)","v":"N/A"},{"$f":"_xlfn.XLOOKUP($E44,'Activity 5'!$B$8:$B$14,'Activity 5'!O$8:O$14,\"N/A\",0,1)","v":"N/A"},{"$f":"_xlfn.XLOOKUP($E44,'Activity 5'!$B$8:$B$14,'Activity 5'!P$8:P$14,\"N/A\",0,1)","v":"N/A"},{"$f":"_xlfn.XLOOKUP($E44,'Activity 5'!$B$8:$B$14,'Activity 5'!Q$8:Q$14,\"N/A\",0,1)","v":"N/A"},{"$f":"_xlfn.XLOOKUP($E44,'Activity 5'!$B$8:$B$14,'Activity 5'!R$8:R$14,\"N/A\",0,1)","v":"N/A"},{"$f":"_xlfn.XLOOKUP($E44,'Activity 6'!$B$7:$B$13,'Activity 6'!A$7:A$13,\"No\",0,1)","v":"No"},{"$f":"_xlfn.XLOOKUP($E44,'Activity 6'!$B$7:$B$13,'Activity 6'!K$7:K$13,\"N/A\",0,1)","v":"N/A"},{"$f":"_xlfn.XLOOKUP($E44,'Activity 6'!$B$7:$B$13,'Activity 6'!L$7:L$13,\"N/A\",0,1)","v":"N/A"},{"$f":"_xlfn.XLOOKUP($E44,'Activity 6'!$B$7:$B$13,'Activity 6'!M$7:M$13,\"N/A\",0,1)","v":"N/A"},{"$f":"_xlfn.XLOOKUP($E44,'Activity 6'!$B$7:$B$13,'Activity 6'!N$7:N$13,\"N/A\",0,1)","v":"N/A"},{"$f":"_xlfn.XLOOKUP($E44,'Activity 6'!$B$7:$B$13,'Activity 6'!O$7:O$13,\"N/A\",0,1)","v":"N/A"},{"$f":"_xlfn.XLOOKUP($E44,'Activity 6'!$B$7:$B$13,'Activity 6'!P$7:P$13,\"N/A\",0,1)","v":"N/A"},{"$f":"_xlfn.XLOOKUP($E44,'Activity 6'!$B$7:$B$13,'Activity 6'!Q$7:Q$13,\"N/A\",0,1)","v":"N/A"},{"$f":"_xlfn.XLOOKUP($E44,'Activity 6'!$B$7:$B$13,'Activity 6'!R$7:R$13,\"N/A\",0,1)","v":"N/A"},{"$f":"_xlfn.XLOOKUP($E44,'Activity 6'!$B$7:$B$13,'Activity 6'!S$7:S$13,\"N/A\",0,1)","v":"N/A"},{"$f":"_xlfn.XLOOKUP($E44,'Activity 6'!$B$7:$B$13,'Activity 6'!T$7:T$13,\"N/A\",0,1)","v":"N/A"},{"$f":"_xlfn.XLOOKUP($E44,'Activity 6'!$B$7:$B$13,'Activity 6'!U$7:U$13,\"N/A\",0,1)","v":"N/A"},{"$f":"_xlfn.XLOOKUP($E44,'Activity 6'!$B$22:$B$28,'Activity 6'!C$22:C$28,\"N/A\",0,1)","v":"N/A"},{"$f":"_xlfn.XLOOKUP($E44,'Activity 6'!$B$22:$B$28,'Activity 6'!D$22:D$28,\"N/A\",0,1)","v":"N/A"},{"$f":"_xlfn.XLOOKUP($E44,'Activity 6'!$B$22:$B$28,'Activity 6'!E$22:E$28,\"N/A\",0,1)","v":"N/A"},{"$f":"_xlfn.XLOOKUP($E44,'Activity 6'!$B$22:$B$28,'Activity 6'!F$22:F$28,\"N/A\",0,1)","v":"N/A"},{"$f":"_xlfn.XLOOKUP($E44,'Activity 6'!$B$22:$B$28,'Activity 6'!G$22:G$28,\"N/A\",0,1)","v":"N/A"},{"$f":"_xlfn.XLOOKUP($E44,'Activity 6'!$B$22:$B$28,'Activity 6'!H$22:H$28,\"N/A\",0,1)","v":"N/A"},{"$f":"_xlfn.XLOOKUP($E44,'Activity 6'!$B$22:$B$28,'Activity 6'!I$22:I$28,\"N/A\",0,1)","v":"N/A"},{"$f":"_xlfn.XLOOKUP($E44,'Activity 6'!$B$22:$B$28,'Activity 6'!J$22:J$28,\"N/A\",0,1)","v":"N/A"},{"$f":"_xlfn.XLOOKUP($E44,'Activity 6'!$B$22:$B$28,'Activity 6'!K$22:K$28,\"N/A\",0,1)","v":"N/A"},{"$f":"_xlfn.XLOOKUP($E44,'Activity 6'!$B$22:$B$28,'Activity 6'!L$22:L$28,\"N/A\",0,1)","v":"N/A"},{"$f":"_xlfn.XLOOKUP($E44,'Activity 6'!$B$22:$B$28,'Activity 6'!M$22:M$28,\"N/A\",0,1)","v":"N/A"},{"$f":"_xlfn.XLOOKUP($E44,'Activity 6'!$B$22:$B$28,'Activity 6'!N$22:N$28,\"N/A\",0,1)","v":"N/A"},{"$f":"_xlfn.XLOOKUP($E44,'Activity 6'!$B$32:$B$38,'Activity 6'!C$32:C$38,\"N/A\",0,1)","v":"N/A"},{"$f":"_xlfn.XLOOKUP($E44,'Activity 6'!$B$32:$B$38,'Activity 6'!D$32:D$38,\"N/A\",0,1)","v":"N/A"},{"$f":"_xlfn.XLOOKUP($E44,'Activity 6'!$B$32:$B$38,'Activity 6'!E$32:E$38,\"N/A\",0,1)","v":"N/A"},{"$f":"_xlfn.XLOOKUP($E44,'Activity 6'!$B$32:$B$38,'Activity 6'!F$32:F$38,\"N/A\",0,1)","v":"N/A"},{"$f":"_xlfn.XLOOKUP($E44,'Activity 6'!$B$32:$B$38,'Activity 6'!G$32:G$38,\"N/A\",0,1)","v":"N/A"},{"$f":"_xlfn.XLOOKUP($E44,'Activity 6'!$B$32:$B$38,'Activity 6'!H$32:H$38,\"N/A\",0,1)","v":"N/A"},{"$f":"_xlfn.XLOOKUP($E44,'Activity 6'!$B$32:$B$38,'Activity 6'!I$32:I$38,\"N/A\",0,1)","v":"N/A"},{"$f":"_xlfn.XLOOKUP($E44,'Activity 6'!$B$32:$B$38,'Activity 6'!J$32:J$38,\"N/A\",0,1)","v":"N/A"},{"$f":"_xlfn.XLOOKUP($E44,'Activity 6'!$B$32:$B$38,'Activity 6'!K$32:K$38,\"N/A\",0,1)","v":"N/A"},{"$f":"_xlfn.XLOOKUP($E44,'Activity 6'!$B$32:$B$38,'Activity 6'!M$32:M$38,\"N/A\",0,1)","v":"N/A"},{"$f":"_xlfn.XLOOKUP($E44,'Activity 7'!$B$7:$B$13,'Activity 7'!$A$7:$A$13,\"No\",0,1)","v":"No"},{"$f":"_xlfn.XLOOKUP($E44,'Activity 7'!$B$7:$B$13,'Activity 7'!M$7:M$13,\"N/A\",0,1)","v":"N/A"},{"$f":"_xlfn.XLOOKUP($E44,'Activity 7'!$B$7:$B$13,'Activity 7'!K$7:K$13,\"N/A\",0,1)","v":"N/A"},{"$f":"_xlfn.XLOOKUP($E44,'Activity 7'!$B$7:$B$13,'Activity 7'!N$7:N$13,\"N/A\",0,1)","v":"N/A"},{"$f":"_xlfn.XLOOKUP($E44,'Activity 7'!$B$7:$B$13,'Activity 7'!O$7:O$13,\"N/A\",0,1)","v":"N/A"},{"$f":"_xlfn.XLOOKUP($E44,'Activity 7'!$B$7:$B$13,'Activity 7'!P$7:P$13,\"N/A\",0,1)","v":"N/A"},{"$f":"_xlfn.XLOOKUP($E44,'Activity 7'!$B$7:$B$13,'Activity 7'!Q$7:Q$13,\"N/A\",0,1)","v":"N/A"},{"$f":"_xlfn.XLOOKUP($E44,'Activity 7'!$B$7:$B$13,'Activity 7'!R$7:R$13,\"N/A\",0,1)","v":"N/A"},{"$f":"_xlfn.XLOOKUP($E44,'Activity 7'!$B$7:$B$13,'Activity 7'!S$7:S$13,\"N/A\",0,1)","v":"N/A"},{"$f":"_xlfn.XLOOKUP($E44,'Activity 7'!$B$7:$B$13,'Activity 7'!T$7:T$13,\"N/A\",0,1)","v":"N/A"},{"$f":"_xlfn.XLOOKUP($E44,'Activity 7'!$B$7:$B$13,'Activity 7'!U$7:U$13,\"N/A\",0,1)","v":"N/A"},{"$f":"_xlfn.XLOOKUP($E44,'Activity 7'!$B$7:$B$13,'Activity 7'!V$7:V$13,\"N/A\",0,1)","v":"N/A"},{"$f":"_xlfn.XLOOKUP($E44,'Activity 7'!$B$17:$B$23,'Activity 7'!E$17:E$23,\"N/A\",0,1)","v":"N/A"},{"$f":"_xlfn.XLOOKUP($E44,'Activity 7'!$B$17:$B$23,'Activity 7'!G$17:G$23,\"N/A\",0,1)","v":"N/A"},{"$f":"_xlfn.XLOOKUP($E44,'Activity 7'!$B$17:$B$23,'Activity 7'!I$17:I$23,\"N/A\",0,1)","v":"N/A"},{"$f":"_xlfn.XLOOKUP($E44,'Activity 7'!$B$17:$B$23,'Activity 7'!J$17:J$23,\"N/A\",0,1)","v":"N/A"},{"$f":"_xlfn.XLOOKUP($E44,'Activity 7'!$B$17:$B$23,'Activity 7'!K$17:K$23,\"N/A\",0,1)","v":"N/A"},{"$f":"_xlfn.XLOOKUP($E44,'Activity 7'!$B$17:$B$23,'Activity 7'!L$17:L$23,\"N/A\",0,1)","v":"N/A"},{"$f":"_xlfn.XLOOKUP($E44,'Activity 7'!$B$17:$B$23,'Activity 7'!M$17:M$23,\"N/A\",0,1)","v":"N/A"},{"$f":"_xlfn.XLOOKUP($E44,'Activity 7'!$B$17:$B$23,'Activity 7'!N$17:N$23,\"N/A\",0,1)","v":"N/A"},{"$f":"_xlfn.XLOOKUP($E44,'Activity 7'!$B$17:$B$23,'Activity 7'!P$17:P$23,\"N/A\",0,1)","v":"N/A"},{"$f":"_xlfn.XLOOKUP($E44,'Activity 8'!$B$7:$B$13,'Activity 8'!A$7:A$13,\"No\",0,1)","v":"No"},{"$f":"_xlfn.XLOOKUP($E44,'Activity 8'!$B$7:$B$13,'Activity 8'!I$7:I$13,\"N/A\",0,1)","v":"N/A"},{"$f":"_xlfn.XLOOKUP($E44,'Activity 8'!$B$7:$B$13,'Activity 8'!J$7:J$13,\"N/A\",0,1)","v":"N/A"},{"$f":"_xlfn.XLOOKUP($E44,'Activity 8'!$B$7:$B$13,'Activity 8'!K$7:K$13,\"N/A\",0,1)","v":"N/A"},{"$f":"_xlfn.XLOOKUP($E44,'Activity 8'!$B$7:$B$13,'Activity 8'!L$7:L$13,\"N/A\",0,1)","v":"N/A"},{"$f":"_xlfn.XLOOKUP($E44,'Activity 8'!$B$7:$B$13,'Activity 8'!M$7:M$13,\"N/A\",0,1)","v":"N/A"},{"$f":"_xlfn.XLOOKUP($E44,'Activity 8'!$B$7:$B$13,'Activity 8'!N$7:N$13,\"N/A\",0,1)","v":"N/A"},{"$f":"_xlfn.XLOOKUP($E44,'Activity 8'!$B$7:$B$13,'Activity 8'!O$7:O$13,\"N/A\",0,1)","v":"N/A"},{"$f":"_xlfn.XLOOKUP($E44,'Activity 8'!$B$7:$B$13,'Activity 8'!P$7:P$13,\"N/A\",0,1)","v":"N/A"},{"$f":"_xlfn.XLOOKUP($E44,'Activity 8'!$B$7:$B$13,'Activity 8'!Q$7:Q$13,\"N/A\",0,1)","v":"N/A"},{"$f":"_xlfn.XLOOKUP($E44,'Activity 8'!$B$7:$B$13,'Activity 8'!R$7:R$13,\"N/A\",0,1)","v":"N/A"},{"$f":"_xlfn.XLOOKUP($E44,'Activity 8'!$B$7:$B$13,'Activity 8'!S$7:S$13,\"N/A\",0,1)","v":"N/A"},{"$f":"_xlfn.XLOOKUP($E44,'Activity 8'!$B$7:$B$13,'Activity 8'!T$7:T$13,\"N/A\",0,1)","v":"N/A"},{"$f":"_xlfn.XLOOKUP($E44,'Activity 8'!$B$7:$B$13,'Activity 8'!U$7:U$13,\"N/A\",0,1)","v":"N/A"},{"$f":"_xlfn.XLOOKUP($E44,'Activity 8'!$B$7:$B$13,'Activity 8'!V$7:V$13,\"N/A\",0,1)","v":"N/A"},{"$f":"_xlfn.XLOOKUP($E44,'Activity 8'!$B$17:$B$23,'Activity 8'!D$17:D$23,\"N/A\",0,1)","v":"N/A"},{"$f":"_xlfn.XLOOKUP($E44,'Activity 8'!$B$17:$B$23,'Activity 8'!E$17:E$23,\"N/A\",0,1)","v":"N/A"},{"$f":"_xlfn.XLOOKUP($E44,'Activity 8'!$B$17:$B$23,'Activity 8'!F$17:F$23,\"N/A\",0,1)","v":"N/A"},{"$f":"_xlfn.XLOOKUP($E44,'Activity 8'!$B$17:$B$23,'Activity 8'!G$17:G$23,\"N/A\",0,1)","v":"N/A"},{"$f":"_xlfn.XLOOKUP($E44,'Activity 8'!$B$17:$B$23,'Activity 8'!H$17:H$23,\"N/A\",0,1)","v":"N/A"},{"$f":"_xlfn.XLOOKUP($E44,'Activity 8'!$B$17:$B$23,'Activity 8'!I$17:I$23,\"N/A\",0,1)","v":"N/A"},{"$f":"_xlfn.XLOOKUP($E44,'Activity 8'!$B$17:$B$23,'Activity 8'!J$17:J$23,\"N/A\",0,1)","v":"N/A"},{"$f":"_xlfn.XLOOKUP($E44,'Activity 8'!$B$17:$B$23,'Activity 8'!K$17:K$23,\"N/A\",0,1)","v":"N/A"},{"$f":"_xlfn.XLOOKUP($E44,'Activity 8'!$B$17:$B$23,'Activity 8'!L$17:L$23,\"N/A\",0,1)","v":"N/A"},{"$f":"_xlfn.XLOOKUP($E44,'Activity 8'!$B$17:$B$23,'Activity 8'!M$17:M$23,\"N/A\",0,1)","v":"N/A"},{"$f":"_xlfn.XLOOKUP($E44,'Activity 8'!$B$17:$B$23,'Activity 8'!N$17:N$23,\"N/A\",0,1)","v":"N/A"},{"$f":"_xlfn.XLOOKUP($E44,'Activity 8'!$B$17:$B$23,'Activity 8'!P$17:P$23,\"N/A\",0,1)","v":"N/A"},{"$f":"_xlfn.XLOOKUP(E44,'Activity 9'!$B$7:$B$13,'Activity 9'!$A$7:$A$13,\"No\",0,1)","v":"No"},{"$f":"_xlfn.XLOOKUP($E44,'Activity 9'!$B$7:$B$13,'Activity 9'!J$7:J$13,\"N/A\",0,1)","v":"N/A"},{"$f":"_xlfn.XLOOKUP($E44,'Activity 9'!$B$7:$B$13,'Activity 9'!K$7:K$13,\"N/A\",0,1)","v":"N/A"},{"$f":"_xlfn.XLOOKUP($E44,'Activity 9'!$B$7:$B$13,'Activity 9'!L$7:L$13,\"N/A\",0,1)","v":"N/A"},{"$f":"_xlfn.XLOOKUP($E44,'Activity 9'!$B$7:$B$13,'Activity 9'!M$7:M$13,\"N/A\",0,1)","v":"N/A"},{"$f":"_xlfn.XLOOKUP($E44,'Activity 9'!$B$7:$B$13,'Activity 9'!N$7:N$13,\"N/A\",0,1)","v":"N/A"},{"$f":"_xlfn.XLOOKUP($E44,'Activity 9'!$B$7:$B$13,'Activity 9'!O$7:O$13,\"N/A\",0,1)","v":"N/A"},{"$f":"_xlfn.XLOOKUP($E44,'Activity 9'!$B$7:$B$13,'Activity 9'!P$7:P$13,\"N/A\",0,1)","v":"N/A"},{"$f":"_xlfn.XLOOKUP($E44,'Activity 9'!$B$7:$B$13,'Activity 9'!Q$7:Q$13,\"N/A\",0,1)","v":"N/A"},{"$f":"_xlfn.XLOOKUP($E44,'Activity 9'!$B$7:$B$13,'Activity 9'!R$7:R$13,\"N/A\",0,1)","v":"N/A"},{"$f":"_xlfn.XLOOKUP($E44,'Activity 9'!$B$7:$B$13,'Activity 9'!S$7:S$13,\"N/A\",0,1)","v":"N/A"},{"$f":"_xlfn.XLOOKUP($E44,'Activity 9'!$B$7:$B$13,'Activity 9'!T$7:T$13,\"N/A\",0,1)","v":"N/A"},{"$f":"_xlfn.XLOOKUP($E44,'Activity 9'!$B$17:$B$23,'Activity 9'!E$17:E$23,\"N/A\",0,1)","v":"N/A"},{"$f":"_xlfn.XLOOKUP($E44,'Activity 9'!$B$17:$B$23,'Activity 9'!F$17:F$23,\"N/A\",0,1)","v":"N/A"},{"$f":"_xlfn.XLOOKUP($E44,'Activity 9'!$B$17:$B$23,'Activity 9'!G$17:G$23,\"N/A\",0,1)","v":"N/A"},{"$f":"_xlfn.XLOOKUP($E44,'Activity 9'!$B$17:$B$23,'Activity 9'!H$17:H$23,\"N/A\",0,1)","v":"N/A"},{"$f":"_xlfn.XLOOKUP($E44,'Activity 9'!$B$17:$B$23,'Activity 9'!I$17:I$23,\"N/A\",0,1)","v":"N/A"},{"$f":"_xlfn.XLOOKUP($E44,'Activity 9'!$B$17:$B$23,'Activity 9'!J$17:J$23,\"N/A\",0,1)","v":"N/A"},{"$f":"_xlfn.XLOOKUP($E44,'Activity 9'!$B$17:$B$23,'Activity 9'!K$17:K$23,\"N/A\",0,1)","v":"N/A"},{"$f":"_xlfn.XLOOKUP($E44,'Activity 9'!$B$17:$B$23,'Activity 9'!L$17:L$23,\"N/A\",0,1)","v":"N/A"},{"$f":"_xlfn.XLOOKUP($E44,'Activity 9'!$B$17:$B$23,'Activity 9'!N$17:N$23,\"N/A\",0,1)","v":"N/A"},{"$f":"_xlfn.XLOOKUP($E44,'Activity 9'!$B$17:$B$23,'Activity 9'!O$17:O$23,\"N/A\",0,1)","v":"N/A"},{"$f":"_xlfn.XLOOKUP($E44,'Activity 9'!$B$17:$B$23,'Activity 9'!Q$17:Q$23,\"N/A\",0,1)","v":"N/A"},{"$f":"_xlfn.XLOOKUP($E44,'Activity 10'!$B$7:$B$13,'Activity 10'!A$7:A$13,\"No\",0,1)","v":"No"},{"$f":"_xlfn.XLOOKUP($E44,'Activity 10'!$B$7:$B$13,'Activity 10'!J$7:J$13,\"N/A\",0,1)","v":"N/A"},{"$f":"_xlfn.XLOOKUP($E44,'Activity 10'!$B$7:$B$13,'Activity 10'!K$7:K$13,\"N/A\",0,1)","v":"N/A"},{"$f":"_xlfn.XLOOKUP($E44,'Activity 10'!$B$7:$B$13,'Activity 10'!L$7:L$13,\"N/A\",0,1)","v":"N/A"},{"$f":"_xlfn.XLOOKUP($E44,'Activity 10'!$B$7:$B$13,'Activity 10'!M$7:M$13,\"N/A\",0,1)","v":"N/A"},{"$f":"_xlfn.XLOOKUP($E44,'Activity 10'!$B$7:$B$13,'Activity 10'!N$7:N$13,\"N/A\",0,1)","v":"N/A"},{"$f":"_xlfn.XLOOKUP($E44,'Activity 10'!$B$7:$B$13,'Activity 10'!O$7:O$13,\"N/A\",0,1)","v":"N/A"},{"$f":"_xlfn.XLOOKUP($E44,'Activity 10'!$B$7:$B$13,'Activity 10'!P$7:P$13,\"N/A\",0,1)","v":"N/A"},{"$f":"_xlfn.XLOOKUP($E44,'Activity 10'!$B$7:$B$13,'Activity 10'!Q$7:Q$13,\"N/A\",0,1)","v":"N/A"},{"$f":"_xlfn.XLOOKUP($E44,'Activity 10'!$B$7:$B$13,'Activity 10'!R$7:R$13,\"N/A\",0,1)","v":"N/A"},{"$f":"_xlfn.XLOOKUP($E44,'Activity 10'!$B$7:$B$13,'Activity 10'!S$7:S$13,\"N/A\",0,1)","v":"N/A"},{"$f":"_xlfn.XLOOKUP($E44,'Activity 10'!$B$7:$B$13,'Activity 10'!T$7:T$13,\"N/A\",0,1)","v":"N/A"},{"$f":"_xlfn.XLOOKUP($E44,'Activity 10'!$B$7:$B$13,'Activity 10'!U$7:U$13,\"N/A\",0,1)","v":"N/A"},{"$f":"_xlfn.XLOOKUP($E44,'Activity 10'!$B$7:$B$13,'Activity 10'!V$7:V$13,\"N/A\",0,1)","v":"N/A"},{"$f":"_xlfn.XLOOKUP($E44,'Activity 10'!$B$17:$B$23,'Activity 10'!E$17:E$23,\"N/A\",0,1)","v":"N/A"},{"$f":"_xlfn.XLOOKUP($E44,'Activity 10'!$B$17:$B$23,'Activity 10'!F$17:F$23,\"N/A\",0,1)","v":"N/A"},{"$f":"_xlfn.XLOOKUP($E44,'Activity 10'!$B$17:$B$23,'Activity 10'!G$17:G$23,\"N/A\",0,1)","v":"N/A"},{"$f":"_xlfn.XLOOKUP($E44,'Activity 10'!$B$17:$B$23,'Activity 10'!H$17:H$23,\"N/A\",0,1)","v":"N/A"},{"$f":"_xlfn.XLOOKUP($E44,'Activity 10'!$B$17:$B$23,'Activity 10'!I$17:I$23,\"N/A\",0,1)","v":"N/A"},{"$f":"_xlfn.XLOOKUP($E44,'Activity 10'!$B$17:$B$23,'Activity 10'!J$17:J$23,\"N/A\",0,1)","v":"N/A"},{"$f":"_xlfn.XLOOKUP($E44,'Activity 10'!$B$17:$B$23,'Activity 10'!K$17:K$23,\"N/A\",0,1)","v":"N/A"},{"$f":"_xlfn.XLOOKUP($E44,'Activity 10'!$B$17:$B$23,'Activity 10'!L$17:L$23,\"N/A\",0,1)","v":"N/A"},{"$f":"_xlfn.XLOOKUP($E44,'Activity 10'!$B$17:$B$23,'Activity 10'!M$17:M$23,\"N/A\",0,1)","v":"N/A"},{"$f":"_xlfn.XLOOKUP($E44,'Activity 10'!$B$17:$B$23,'Activity 10'!N$17:N$23,\"N/A\",0,1)","v":"N/A"},{"$f":"_xlfn.XLOOKUP($E44,'Activity 10'!$B$17:$B$23,'Activity 10'!P$17:P$23,\"N/A\",0,1)","v":"N/A"},{"$f":"_xlfn.XLOOKUP($E44,'Competitive Activity 1'!B$7:B$13,'Competitive Activity 1'!A$7:A$13,\"No\",0,1)","v":"No"},{"$f":"_xlfn.XLOOKUP($E44,'Competitive Activity 1'!$B$7:$B$13,'Competitive Activity 1'!H$7:H$13,\"N/A\",0,1)","v":"N/A"},{"$f":"_xlfn.XLOOKUP($E44,'Competitive Activity 1'!$B$7:$B$13,'Competitive Activity 1'!I$7:I$13,\"N/A\",0,1)","v":"N/A"},{"$f":"_xlfn.XLOOKUP($E44,'Competitive Activity 1'!$B$7:$B$13,'Competitive Activity 1'!J$7:J$13,\"N/A\",0,1)","v":"N/A"},{"$f":"_xlfn.XLOOKUP($E44,'Competitive Activity 1'!$B$7:$B$13,'Competitive Activity 1'!K$7:K$13,\"N/A\",0,1)","v":"N/A"},{"$f":"_xlfn.XLOOKUP($E44,'Competitive Activity 1'!$B$7:$B$13,'Competitive Activity 1'!L$7:L$13,\"N/A\",0,1)","v":"N/A"},{"$f":"_xlfn.XLOOKUP($E44,'Competitive Activity 1'!$B$7:$B$13,'Competitive Activity 1'!M$7:M$13,\"N/A\",0,1)","v":"N/A"},{"$f":"_xlfn.XLOOKUP($E44,'Competitive Activity 1'!$B$7:$B$13,'Competitive Activity 1'!N$7:N$13,\"N/A\",0,1)","v":"N/A"},{"$f":"_xlfn.XLOOKUP($E44,'Competitive Activity 1'!$B$7:$B$13,'Competitive Activity 1'!O$7:O$13,\"N/A\",0,1)","v":"N/A"},{"$f":"_xlfn.XLOOKUP($E44,'Competitive Activity 1'!$B$7:$B$13,'Competitive Activity 1'!P$7:P$13,\"N/A\",0,1)","v":"N/A"},{"$f":"_xlfn.XLOOKUP($E44,'Competitive Activity 1'!$B$7:$B$13,'Competitive Activity 1'!Q$7:Q$13,\"N/A\",0,1)","v":"N/A"},{"$f":"_xlfn.XLOOKUP($E44,'Competitive Activity 1'!$B$7:$B$13,'Competitive Activity 1'!R$7:R$13,\"N/A\",0,1)","v":"N/A"},{"$f":"_xlfn.XLOOKUP($E44,'Competitive Activity 1'!$B$7:$B$13,'Competitive Activity 1'!S$7:S$13,\"N/A\",0,1)","v":"N/A"},{"$f":"_xlfn.XLOOKUP($E44,'Competitive Activity 1'!$B$7:$B$13,'Competitive Activity 1'!T$7:T$13,\"N/A\",0,1)","v":"N/A"},{"$f":"_xlfn.XLOOKUP($E44,'Competitive Activity 1'!$B$7:$B$13,'Competitive Activity 1'!U$7:U$13,\"N/A\",0,1)","v":"N/A"},{"$f":"_xlfn.XLOOKUP($E44,'Competitive Activity 1'!$B$17:$B$23,'Competitive Activity 1'!C$17:C$23,\"N/A\",0,1)","v":"N/A"},{"$f":"_xlfn.XLOOKUP($E44,'Competitive Activity 1'!$B$17:$B$23,'Competitive Activity 1'!D$17:D$23,\"N/A\",0,1)","v":"N/A"},{"$f":"_xlfn.XLOOKUP($E44,'Competitive Activity 1'!$B$17:$B$23,'Competitive Activity 1'!E$17:E$23,\"N/A\",0,1)","v":"N/A"},{"$f":"_xlfn.XLOOKUP($E44,'Competitive Activity 1'!$B$17:$B$23,'Competitive Activity 1'!F$17:F$23,\"N/A\",0,1)","v":"N/A"},{"$f":"_xlfn.XLOOKUP($E44,'Competitive Activity 1'!$B$17:$B$23,'Competitive Activity 1'!G$17:G$23,\"N/A\",0,1)","v":"N/A"},{"$f":"_xlfn.XLOOKUP($E44,'Competitive Activity 1'!$B$17:$B$23,'Competitive Activity 1'!H$17:H$23,\"N/A\",0,1)","v":"N/A"},{"$f":"_xlfn.XLOOKUP($E44,'Competitive Activity 1'!$B$17:$B$23,'Competitive Activity 1'!I$17:I$23,\"N/A\",0,1)","v":"N/A"},{"$f":"_xlfn.XLOOKUP($E44,'Competitive Activity 1'!$B$17:$B$23,'Competitive Activity 1'!J$17:J$23,\"N/A\",0,1)","v":"N/A"},{"$f":"_xlfn.XLOOKUP($E44,'Competitive Activity 1'!$B$17:$B$23,'Competitive Activity 1'!K$17:K$23,\"N/A\",0,1)","v":"N/A"},{"$f":"_xlfn.XLOOKUP($E44,'Competitive Activity 1'!$B$17:$B$23,'Competitive Activity 1'!M$17:M$23,\"N/A\",0,1)","v":"N/A"},{"$f":"_xlfn.XLOOKUP($E44,'Competitive Activity 1'!$B$17:$B$23,'Competitive Activity 1'!N$17:N$23,\"N/A\",0,1)","v":"N/A"},{"$f":"_xlfn.XLOOKUP($E44,'Competitive Activity 1'!$B$17:$B$23,'Competitive Activity 1'!P$17:P$23,\"N/A\",0,1)","v":"N/A"},{"$f":"_xlfn.XLOOKUP($E44,'Competitive Activity 2'!$B$7:$B$13,'Competitive Activity 2'!A$7:A$13,\"No\",0)","v":"No"},{"$f":"_xlfn.XLOOKUP($E44,'Competitive Activity 2'!$B$7:$B$13,'Competitive Activity 2'!L$7:L$13,\"N/A\",0)","v":"N/A"},{"$f":"_xlfn.XLOOKUP($E44,'Competitive Activity 2'!$B$7:$B$13,'Competitive Activity 2'!M$7:M$13,\"N/A\",0)","v":"N/A"},{"$f":"_xlfn.XLOOKUP($E44,'Competitive Activity 2'!$B$7:$B$13,'Competitive Activity 2'!N$7:N$13,\"N/A\",0)","v":"N/A"},{"$f":"_xlfn.XLOOKUP($E44,'Competitive Activity 2'!$B$7:$B$13,'Competitive Activity 2'!O$7:O$13,\"N/A\",0)","v":"N/A"},{"$f":"_xlfn.XLOOKUP($E44,'Competitive Activity 2'!$B$7:$B$13,'Competitive Activity 2'!P$7:P$13,\"N/A\",0)","v":"N/A"},{"$f":"_xlfn.XLOOKUP($E44,'Competitive Activity 2'!$B$7:$B$13,'Competitive Activity 2'!Q$7:Q$13,\"N/A\",0)","v":"N/A"},{"$f":"_xlfn.XLOOKUP($E44,'Competitive Activity 2'!$B$7:$B$13,'Competitive Activity 2'!R$7:R$13,\"N/A\",0)","v":"N/A"},{"$f":"_xlfn.XLOOKUP($E44,'Competitive Activity 2'!$B$7:$B$13,'Competitive Activity 2'!S$7:S$13,\"N/A\",0)","v":"N/A"},{"$f":"_xlfn.XLOOKUP($E44,'Competitive Activity 2'!$B$7:$B$13,'Competitive Activity 2'!T$7:T$13,\"N/A\",0)","v":"N/A"},{"$f":"_xlfn.XLOOKUP($E44,'Competitive Activity 2'!$B$7:$B$13,'Competitive Activity 2'!U$7:U$13,\"N/A\",0)","v":"N/A"},{"$f":"_xlfn.XLOOKUP($E44,'Competitive Activity 2'!$B$17:$B$23,'Competitive Activity 2'!D$17:D$23,\"N/A\",0)","v":"N/A"},{"$f":"_xlfn.XLOOKUP($E44,'Competitive Activity 2'!$B$17:$B$23,'Competitive Activity 2'!E$17:E$23,\"N/A\",0)","v":"N/A"},{"$f":"_xlfn.XLOOKUP($E44,'Competitive Activity 2'!$B$17:$B$23,'Competitive Activity 2'!F$17:F$23,\"N/A\",0)","v":"N/A"},{"$f":"_xlfn.XLOOKUP($E44,'Competitive Activity 2'!$B$17:$B$23,'Competitive Activity 2'!G$17:G$23,\"N/A\",0)","v":"N/A"},{"$f":"_xlfn.XLOOKUP($E44,'Competitive Activity 2'!$B$17:$B$23,'Competitive Activity 2'!H$17:H$23,\"N/A\",0)","v":"N/A"},{"$f":"_xlfn.XLOOKUP($E44,'Competitive Activity 2'!$B$17:$B$23,'Competitive Activity 2'!I$17:I$23,\"N/A\",0)","v":"N/A"},{"$f":"_xlfn.XLOOKUP($E44,'Competitive Activity 2'!$B$17:$B$23,'Competitive Activity 2'!J$17:J$23,\"N/A\",0)","v":"N/A"},{"$f":"_xlfn.XLOOKUP($E44,'Competitive Activity 2'!$B$17:$B$23,'Competitive Activity 2'!K$17:K$23,\"N/A\",0)","v":"N/A"},{"$f":"_xlfn.XLOOKUP($E44,'Competitive Activity 2'!$B$17:$B$23,'Competitive Activity 2'!L$17:L$23,\"N/A\",0)","v":"N/A"},{"$f":"_xlfn.XLOOKUP($E44,'Competitive Activity 2'!$B$17:$B$23,'Competitive Activity 2'!M$17:M$23,\"N/A\",0)","v":"N/A"},{"$f":"_xlfn.XLOOKUP($E44,'Competitive Activity 2'!$B$17:$B$23,'Competitive Activity 2'!N$17:N$23,\"N/A\",0)","v":"N/A"},{"$f":"_xlfn.XLOOKUP($E44,'Competitive Activity 2'!$B$27:$B$33,'Competitive Activity 2'!D$27:D$33,\"N/A\",0)","v":"N/A"},{"$f":"_xlfn.XLOOKUP($E44,'Competitive Activity 2'!$B$27:$B$33,'Competitive Activity 2'!E$27:E$33,\"N/A\",0)","v":"N/A"},{"$f":"_xlfn.XLOOKUP($E44,'Competitive Activity 2'!$B$27:$B$33,'Competitive Activity 2'!F$27:F$33,\"N/A\",0)","v":"N/A"},{"$f":"_xlfn.XLOOKUP($E44,'Competitive Activity 2'!$B$27:$B$33,'Competitive Activity 2'!G$27:G$33,\"N/A\",0)","v":"N/A"},{"$f":"_xlfn.XLOOKUP($E44,'Competitive Activity 2'!$B$27:$B$33,'Competitive Activity 2'!H$27:H$33,\"N/A\",0)","v":"N/A"},{"$f":"_xlfn.XLOOKUP($E44,'Competitive Activity 2'!$B$27:$B$33,'Competitive Activity 2'!I$27:I$33,\"N/A\",0)","v":"N/A"},{"$f":"_xlfn.XLOOKUP($E44,'Competitive Activity 2'!$B$27:$B$33,'Competitive Activity 2'!J$27:J$33,\"N/A\",0)","v":"N/A"},{"$f":"_xlfn.XLOOKUP($E44,'Competitive Activity 2'!$B$27:$B$33,'Competitive Activity 2'!K$27:K$33,\"N/A\",0)","v":"N/A"},{"$f":"_xlfn.XLOOKUP($E44,'Competitive Activity 2'!$B$27:$B$33,'Competitive Activity 2'!M$27:M$33,\"N/A\",0)","v":"N/A"}]
[{"$f":"'1-Cover Sheet'!$C$8","v":"Select One"},{"$f":"'1-Cover Sheet'!$F$8","v":"Select One"},{"$f":"'Summary Sheet'!$D$8","v":0},{"$f":"'Summary Sheet'!$D$10","v":0},{"$f":"'Drop Down Box'!B209","v":0},{"$f":"'Drop Down Box'!C209","v":0},{"$f":"'Drop Down Box'!D209","v":"Select One"},{"$f":"_xlfn.XLOOKUP(E45,'Drop Down Box'!$B$166:$B$249,'Drop Down Box'!$A$166:$A$249,\"Unknown\",0)","v":"Activity 1"},{"$f":"_xlfn.XLOOKUP($E45,'Activity 7'!$B$17:$B$23,'Activity 7'!$O$17:$O$23,\"N/A\",0)","v":"N/A"},{"$f":"_xlfn.XLOOKUP($E45,'Activity 7'!$B$17:$B$23,'Activity 7'!$Q$17:$Q$23,\"N/A\",0)","v":"N/A"},{"$f":"_xlfn.XLOOKUP($E45,'Activity 7'!$B$7:$B$13,'Activity 7'!$H$7:$H$13,\"N/A\",0)","v":"N/A"},{"$f":"_xlfn.XLOOKUP($E45,'Activity 7'!$B$7:$B$13,'Activity 7'!I$7:I$13,\"N/A\",0)","v":"N/A"},{"$f":"_xlfn.XLOOKUP($E45,'Activity 7'!$B$7:$B$13,'Activity 7'!J$7:J$13,\"N/A\",0)","v":"N/A"},{"$f":"_xlfn.XLOOKUP($E45,'Activity 1'!$B$7:$B$13,'Activity 1'!$A$7:$A$13,\"No\",0,1)","v":"No"},{"$f":"_xlfn.XLOOKUP($E45,'Activity 1'!$B$7:$B$13,'Activity 1'!$H$7:$H$13,\"N/A\",0,1)","v":"N/A"},{"$f":"_xlfn.XLOOKUP($E45,'Activity 1'!$B$7:$B$13,'Activity 1'!I$7:I$13,\"N/A\",0,1)","v":"N/A"},{"$f":"_xlfn.XLOOKUP($E45,'Activity 1'!$B$7:$B$13,'Activity 1'!J$7:J$13,\"N/A\",0,1)","v":"N/A"},{"$f":"_xlfn.XLOOKUP($E45,'Activity 1'!$B$7:$B$13,'Activity 1'!K$7:K$13,\"N/A\",0,1)","v":"N/A"},{"$f":"_xlfn.XLOOKUP($E45,'Activity 1'!$B$7:$B$13,'Activity 1'!L$7:L$13,\"N/A\",0,1)","v":"N/A"},{"$f":"_xlfn.XLOOKUP($E45,'Activity 1'!$B$7:$B$13,'Activity 1'!M$7:M$13,\"N/A\",0,1)","v":"N/A"},{"$f":"_xlfn.XLOOKUP($E45,'Activity 1'!$B$7:$B$13,'Activity 1'!N$7:N$13,\"N/A\",0,1)","v":"N/A"},0,{"$f":"_xlfn.XLOOKUP($E45,'Activity 1'!$B$7:$B$13,'Activity 1'!O$7:O$13,\"N/A\",0,1)","v":"N/A"},{"$f":"_xlfn.XLOOKUP($E45,'Activity 1'!$B$7:$B$13,'Activity 1'!P$7:P$13,\"N/A\",0,1)","v":"N/A"},{"$f":"_xlfn.XLOOKUP($E45,'Activity 1'!$B$7:$B$13,'Activity 1'!Q$7:Q$13,\"N/A\",0,1)","v":"N/A"},{"$f":"_xlfn.XLOOKUP($E45,'Activity 1'!$B$7:$B$13,'Activity 1'!R$7:R$13,\"N/A\",0,1)","v":"N/A"},{"$f":"_xlfn.XLOOKUP($E45,'Activity 1'!$B$7:$B$13,'Activity 1'!S$7:S$13,\"N/A\",0,1)","v":"N/A"},{"$f":"_xlfn.XLOOKUP($E45,'Activity 1'!$B$7:$B$13,'Activity 1'!T$7:T$13,\"N/A\",0,1)","v":"N/A"},{"$f":"_xlfn.XLOOKUP($E45,'Activity 1'!$B$7:$B$13,'Activity 1'!U$7:U$13,\"N/A\",0,1)","v":"N/A"},{"$f":"_xlfn.XLOOKUP($E45,'Activity 1'!$B$7:$B$13,'Activity 1'!V$7:V$13,\"N/A\",0,1)","v":"N/A"},{"$f":"_xlfn.XLOOKUP($E45,'Activity 1'!$B$17:$B$23,'Activity 1'!C$17:C$23,\"N/A\",0,1)","v":"N/A"},{"$f":"_xlfn.XLOOKUP($E45,'Activity 1'!$B$17:$B$23,'Activity 1'!D$17:D$23,\"N/A\",0,1)","v":"N/A"},{"$f":"_xlfn.XLOOKUP($E45,'Activity 1'!$B$17:$B$23,'Activity 1'!E$17:E$23,\"N/A\",0,1)","v":"N/A"},{"$f":"_xlfn.XLOOKUP($E45,'Activity 1'!$B$17:$B$23,'Activity 1'!F$17:F$23,\"N/A\",0,1)","v":"N/A"},{"$f":"_xlfn.XLOOKUP($E45,'Activity 1'!$B$17:$B$23,'Activity 1'!G$17:G$23,\"N/A\",0,1)","v":"N/A"},{"$f":"_xlfn.XLOOKUP($E45,'Activity 1'!$B$17:$B$23,'Activity 1'!H$17:H$23,\"N/A\",0,1)","v":"N/A"},{"$f":"_xlfn.XLOOKUP($E45,'Activity 1'!$B$17:$B$23,'Activity 1'!I$17:I$23,\"N/A\",0,1)","v":"N/A"},{"$f":"_xlfn.XLOOKUP($E45,'Activity 1'!$B$17:$B$23,'Activity 1'!J$17:J$23,\"N/A\",0,1)","v":"N/A"},{"$f":"_xlfn.XLOOKUP($E45,'Activity 1'!$B$17:$B$23,'Activity 1'!K$17:K$23,\"N/A\",0,1)","v":"N/A"},{"$f":"_xlfn.XLOOKUP($E45,'Activity 1'!$B$17:$B$23,'Activity 1'!L$17:L$23,\"N/A\",0,1)","v":"N/A"},{"$f":"_xlfn.XLOOKUP($E45,'Activity 1'!$B$17:$B$23,'Activity 1'!M$17:M$23,\"N/A\",0,1)","v":"N/A"},{"$f":"_xlfn.XLOOKUP($E45,'Activity 1'!$B$17:$B$23,'Activity 1'!O$17:O$23,\"N/A\",0,1)","v":"N/A"},{"$f":"_xlfn.XLOOKUP($E45,'Activity 1'!$B$17:$B$23,'Activity 1'!Q$17:Q$23,\"N/A\",0,1)","v":"N/A"},{"$f":"_xlfn.XLOOKUP($E45,'Activity 2'!$B$7:$B$13,'Activity 2'!$A$7:$A$13,\"No\",0,1)","v":"No"},{"$f":"_xlfn.XLOOKUP($E45,'Activity 2'!B$7:B$13,'Activity 2'!H$7:H$13,\"N/A\",0)","v":"N/A"},{"$f":"_xlfn.XLOOKUP($E45,'Activity 2'!C$7:C$13,'Activity 2'!I$7:I$13,\"N/A\",0)","v":"N/A"},{"$f":"_xlfn.XLOOKUP($E45,'Activity 2'!D$7:D$13,'Activity 2'!J$7:J$13,\"N/A\",0)","v":"N/A"},{"$f":"_xlfn.XLOOKUP($E45,'Activity 2'!E$7:E$13,'Activity 2'!K$7:K$13,\"N/A\",0)","v":"N/A"},{"$f":"_xlfn.XLOOKUP($E45,'Activity 2'!F$7:F$13,'Activity 2'!L$7:L$13,\"N/A\",0)","v":"N/A"},{"$f":"_xlfn.XLOOKUP($E45,'Activity 2'!G$7:G$13,'Activity 2'!M$7:M$13,\"N/A\",0)","v":"N/A"},{"$f":"_xlfn.XLOOKUP($E45,'Activity 2'!H$7:H$13,'Activity 2'!N$7:N$13,\"N/A\",0)","v":"N/A"},{"$f":"_xlfn.XLOOKUP($E45,'Activity 2'!I$7:I$13,'Activity 2'!O$7:O$13,\"N/A\",0)","v":"N/A"},{"$f":"_xlfn.XLOOKUP($E45,'Activity 2'!J$7:J$13,'Activity 2'!P$7:P$13,\"N/A\",0)","v":"N/A"},{"$f":"_xlfn.XLOOKUP($E45,'Activity 2'!K$7:K$13,'Activity 2'!Q$7:Q$13,\"N/A\",0)","v":"N/A"},{"$f":"_xlfn.XLOOKUP($E45,'Activity 2'!L$7:L$13,'Activity 2'!R$7:R$13,\"N/A\",0)","v":"N/A"},{"$f":"_xlfn.XLOOKUP($E45,'Activity 2'!M$7:M$13,'Activity 2'!S$7:S$13,\"N/A\",0)","v":"N/A"},{"$f":"_xlfn.XLOOKUP($E45,'Activity 2'!N$7:N$13,'Activity 2'!T$7:T$13,\"N/A\",0)","v":"N/A"},{"$f":"_xlfn.XLOOKUP($E45,'Activity 2'!O$7:O$13,'Activity 2'!U$7:U$13,\"N/A\",0)","v":"N/A"},{"$f":"_xlfn.XLOOKUP($E45,'Activity 2'!P$7:P$13,'Activity 2'!V$7:V$13,\"N/A\",0)","v":"N/A"},{"$f":"_xlfn.XLOOKUP($E45,'Activity 2'!$B$17:$B$23,'Activity 2'!C$17:C$23,\"N/A\",0,1)","v":"N/A"},{"$f":"_xlfn.XLOOKUP($E45,'Activity 2'!$B$17:$B$23,'Activity 2'!D$17:D$23,\"N/A\",0,1)","v":"N/A"},{"$f":"_xlfn.XLOOKUP($E45,'Activity 2'!$B$17:$B$23,'Activity 2'!E$17:E$23,\"N/A\",0,1)","v":"N/A"},{"$f":"_xlfn.XLOOKUP($E45,'Activity 2'!$B$17:$B$23,'Activity 2'!F$17:F$23,\"N/A\",0,1)","v":"N/A"},{"$f":"_xlfn.XLOOKUP($E45,'Activity 2'!$B$17:$B$23,'Activity 2'!G$17:G$23,\"N/A\",0,1)","v":"N/A"},{"$f":"_xlfn.XLOOKUP($E45,'Activity 2'!$B$17:$B$23,'Activity 2'!H$17:H$23,\"N/A\",0,1)","v":"N/A"},{"$f":"_xlfn.XLOOKUP($E45,'Activity 2'!$B$17:$B$23,'Activity 2'!I$17:I$23,\"N/A\",0,1)","v":"N/A"},{"$f":"_xlfn.XLOOKUP($E45,'Activity 2'!$B$17:$B$23,'Activity 2'!J$17:J$23,\"N/A\",0,1)","v":"N/A"},{"$f":"_xlfn.XLOOKUP($E45,'Activity 2'!$B$17:$B$23,'Activity 2'!K$17:K$23,\"N/A\",0,1)","v":"N/A"},{"$f":"_xlfn.XLOOKUP($E45,'Activity 2'!$B$17:$B$23,'Activity 2'!L$17:L$23,\"N/A\",0,1)","v":"N/A"},{"$f":"_xlfn.XLOOKUP($E45,'Activity 2'!$B$17:$B$23,'Activity 2'!M$17:M$23,\"N/A\",0,1)","v":"N/A"},{"$f":"_xlfn.XLOOKUP($E45,'Activity 2'!$B$17:$B$23,'Activity 2'!O$17:O$23,\"N/A\",0,1)","v":"N/A"},{"$f":"_xlfn.XLOOKUP($E45,'Activity 2'!$B$17:$B$23,'Activity 2'!Q$17:Q$23,\"N/A\",0,1)","v":"N/A"},null,{"$f":"_xlfn.XLOOKUP($E45,'Activity 3'!$B$8:$B$14,'Activity 3'!K$8:K$14,\"N/A\",0,1)","v":"N/A"},{"$f":"_xlfn.XLOOKUP($E45,'Activity 3'!$B$8:$B$14,'Activity 3'!L$8:L$14,\"N/A\",0,1)","v":"N/A"},{"$f":"_xlfn.XLOOKUP($E45,'Activity 3'!$B$8:$B$14,'Activity 3'!M$8:M$14,\"N/A\",0,1)","v":"N/A"},{"$f":"_xlfn.XLOOKUP($E45,'Activity 3'!$B$8:$B$14,'Activity 3'!N$8:N$14,\"N/A\",0,1)","v":"N/A"},{"$f":"_xlfn.XLOOKUP($E45,'Activity 3'!$B$8:$B$14,'Activity 3'!O$8:O$14,\"N/A\",0,1)","v":"N/A"},{"$f":"_xlfn.XLOOKUP($E45,'Activity 3'!$B$8:$B$14,'Activity 3'!R$8:R$14,\"N/A\",0,1)","v":"N/A"},{"$f":"_xlfn.XLOOKUP($E45,'Activity 4'!$B$8:$B$14,'Activity 4'!$A$8:$A$14,\"No\",0,1)","v":"No"},{"$f":"_xlfn.XLOOKUP($E45,'Activity 4'!$B$8:$B$14,'Activity 4'!L$8:L$14,\"N/A\",0,1)","v":"N/A"},{"$f":"_xlfn.XLOOKUP($E45,'Activity 4'!$B$8:$B$14,'Activity 4'!I$8:I$14,\"N/A\",0,1)","v":"N/A"},{"$f":"_xlfn.XLOOKUP($E45,'Activity 4'!$B$8:$B$14,'Activity 4'!M$8:M$14,\"N/A\",0,1)","v":"N/A"},{"$f":"_xlfn.XLOOKUP($E45,'Activity 5'!$B$8:$B$14,'Activity 5'!$A$8:$A$14,\"No\",0,1)","v":"No"},{"$f":"_xlfn.XLOOKUP($E45,'Activity 5'!$B$8:$B$14,'Activity 5'!J$8:J$14,\"N/A\",0,1)","v":"N/A"},{"$f":"_xlfn.XLOOKUP($E45,'Activity 5'!$B$8:$B$14,'Activity 5'!K$8:K$14,\"N/A\",0,1)","v":"N/A"},{"$f":"_xlfn.XLOOKUP($E45,'Activity 5'!$B$8:$B$14,'Activity 5'!N$8:N$14,\"N/A\",0,1)","v":"N/A"},{"$f":"_xlfn.XLOOKUP($E45,'Activity 5'!$B$8:$B$14,'Activity 5'!O$8:O$14,\"N/A\",0,1)","v":"N/A"},{"$f":"_xlfn.XLOOKUP($E45,'Activity 5'!$B$8:$B$14,'Activity 5'!P$8:P$14,\"N/A\",0,1)","v":"N/A"},{"$f":"_xlfn.XLOOKUP($E45,'Activity 5'!$B$8:$B$14,'Activity 5'!Q$8:Q$14,\"N/A\",0,1)","v":"N/A"},{"$f":"_xlfn.XLOOKUP($E45,'Activity 5'!$B$8:$B$14,'Activity 5'!R$8:R$14,\"N/A\",0,1)","v":"N/A"},{"$f":"_xlfn.XLOOKUP($E45,'Activity 6'!$B$7:$B$13,'Activity 6'!A$7:A$13,\"No\",0,1)","v":"No"},{"$f":"_xlfn.XLOOKUP($E45,'Activity 6'!$B$7:$B$13,'Activity 6'!K$7:K$13,\"N/A\",0,1)","v":"N/A"},{"$f":"_xlfn.XLOOKUP($E45,'Activity 6'!$B$7:$B$13,'Activity 6'!L$7:L$13,\"N/A\",0,1)","v":"N/A"},{"$f":"_xlfn.XLOOKUP($E45,'Activity 6'!$B$7:$B$13,'Activity 6'!M$7:M$13,\"N/A\",0,1)","v":"N/A"},{"$f":"_xlfn.XLOOKUP($E45,'Activity 6'!$B$7:$B$13,'Activity 6'!N$7:N$13,\"N/A\",0,1)","v":"N/A"},{"$f":"_xlfn.XLOOKUP($E45,'Activity 6'!$B$7:$B$13,'Activity 6'!O$7:O$13,\"N/A\",0,1)","v":"N/A"},{"$f":"_xlfn.XLOOKUP($E45,'Activity 6'!$B$7:$B$13,'Activity 6'!P$7:P$13,\"N/A\",0,1)","v":"N/A"},{"$f":"_xlfn.XLOOKUP($E45,'Activity 6'!$B$7:$B$13,'Activity 6'!Q$7:Q$13,\"N/A\",0,1)","v":"N/A"},{"$f":"_xlfn.XLOOKUP($E45,'Activity 6'!$B$7:$B$13,'Activity 6'!R$7:R$13,\"N/A\",0,1)","v":"N/A"},{"$f":"_xlfn.XLOOKUP($E45,'Activity 6'!$B$7:$B$13,'Activity 6'!S$7:S$13,\"N/A\",0,1)","v":"N/A"},{"$f":"_xlfn.XLOOKUP($E45,'Activity 6'!$B$7:$B$13,'Activity 6'!T$7:T$13,\"N/A\",0,1)","v":"N/A"},{"$f":"_xlfn.XLOOKUP($E45,'Activity 6'!$B$7:$B$13,'Activity 6'!U$7:U$13,\"N/A\",0,1)","v":"N/A"},{"$f":"_xlfn.XLOOKUP($E45,'Activity 6'!$B$22:$B$28,'Activity 6'!C$22:C$28,\"N/A\",0,1)","v":"N/A"},{"$f":"_xlfn.XLOOKUP($E45,'Activity 6'!$B$22:$B$28,'Activity 6'!D$22:D$28,\"N/A\",0,1)","v":"N/A"},{"$f":"_xlfn.XLOOKUP($E45,'Activity 6'!$B$22:$B$28,'Activity 6'!E$22:E$28,\"N/A\",0,1)","v":"N/A"},{"$f":"_xlfn.XLOOKUP($E45,'Activity 6'!$B$22:$B$28,'Activity 6'!F$22:F$28,\"N/A\",0,1)","v":"N/A"},{"$f":"_xlfn.XLOOKUP($E45,'Activity 6'!$B$22:$B$28,'Activity 6'!G$22:G$28,\"N/A\",0,1)","v":"N/A"},{"$f":"_xlfn.XLOOKUP($E45,'Activity 6'!$B$22:$B$28,'Activity 6'!H$22:H$28,\"N/A\",0,1)","v":"N/A"},{"$f":"_xlfn.XLOOKUP($E45,'Activity 6'!$B$22:$B$28,'Activity 6'!I$22:I$28,\"N/A\",0,1)","v":"N/A"},{"$f":"_xlfn.XLOOKUP($E45,'Activity 6'!$B$22:$B$28,'Activity 6'!J$22:J$28,\"N/A\",0,1)","v":"N/A"},{"$f":"_xlfn.XLOOKUP($E45,'Activity 6'!$B$22:$B$28,'Activity 6'!K$22:K$28,\"N/A\",0,1)","v":"N/A"},{"$f":"_xlfn.XLOOKUP($E45,'Activity 6'!$B$22:$B$28,'Activity 6'!L$22:L$28,\"N/A\",0,1)","v":"N/A"},{"$f":"_xlfn.XLOOKUP($E45,'Activity 6'!$B$22:$B$28,'Activity 6'!M$22:M$28,\"N/A\",0,1)","v":"N/A"},{"$f":"_xlfn.XLOOKUP($E45,'Activity 6'!$B$22:$B$28,'Activity 6'!N$22:N$28,\"N/A\",0,1)","v":"N/A"},{"$f":"_xlfn.XLOOKUP($E45,'Activity 6'!$B$32:$B$38,'Activity 6'!C$32:C$38,\"N/A\",0,1)","v":"N/A"},{"$f":"_xlfn.XLOOKUP($E45,'Activity 6'!$B$32:$B$38,'Activity 6'!D$32:D$38,\"N/A\",0,1)","v":"N/A"},{"$f":"_xlfn.XLOOKUP($E45,'Activity 6'!$B$32:$B$38,'Activity 6'!E$32:E$38,\"N/A\",0,1)","v":"N/A"},{"$f":"_xlfn.XLOOKUP($E45,'Activity 6'!$B$32:$B$38,'Activity 6'!F$32:F$38,\"N/A\",0,1)","v":"N/A"},{"$f":"_xlfn.XLOOKUP($E45,'Activity 6'!$B$32:$B$38,'Activity 6'!G$32:G$38,\"N/A\",0,1)","v":"N/A"},{"$f":"_xlfn.XLOOKUP($E45,'Activity 6'!$B$32:$B$38,'Activity 6'!H$32:H$38,\"N/A\",0,1)","v":"N/A"},{"$f":"_xlfn.XLOOKUP($E45,'Activity 6'!$B$32:$B$38,'Activity 6'!I$32:I$38,\"N/A\",0,1)","v":"N/A"},{"$f":"_xlfn.XLOOKUP($E45,'Activity 6'!$B$32:$B$38,'Activity 6'!J$32:J$38,\"N/A\",0,1)","v":"N/A"},{"$f":"_xlfn.XLOOKUP($E45,'Activity 6'!$B$32:$B$38,'Activity 6'!K$32:K$38,\"N/A\",0,1)","v":"N/A"},{"$f":"_xlfn.XLOOKUP($E45,'Activity 6'!$B$32:$B$38,'Activity 6'!M$32:M$38,\"N/A\",0,1)","v":"N/A"},{"$f":"_xlfn.XLOOKUP($E45,'Activity 7'!$B$7:$B$13,'Activity 7'!$A$7:$A$13,\"No\",0,1)","v":"No"},{"$f":"_xlfn.XLOOKUP($E45,'Activity 7'!$B$7:$B$13,'Activity 7'!M$7:M$13,\"N/A\",0,1)","v":"N/A"},{"$f":"_xlfn.XLOOKUP($E45,'Activity 7'!$B$7:$B$13,'Activity 7'!K$7:K$13,\"N/A\",0,1)","v":"N/A"},{"$f":"_xlfn.XLOOKUP($E45,'Activity 7'!$B$7:$B$13,'Activity 7'!N$7:N$13,\"N/A\",0,1)","v":"N/A"},{"$f":"_xlfn.XLOOKUP($E45,'Activity 7'!$B$7:$B$13,'Activity 7'!O$7:O$13,\"N/A\",0,1)","v":"N/A"},{"$f":"_xlfn.XLOOKUP($E45,'Activity 7'!$B$7:$B$13,'Activity 7'!P$7:P$13,\"N/A\",0,1)","v":"N/A"},{"$f":"_xlfn.XLOOKUP($E45,'Activity 7'!$B$7:$B$13,'Activity 7'!Q$7:Q$13,\"N/A\",0,1)","v":"N/A"},{"$f":"_xlfn.XLOOKUP($E45,'Activity 7'!$B$7:$B$13,'Activity 7'!R$7:R$13,\"N/A\",0,1)","v":"N/A"},{"$f":"_xlfn.XLOOKUP($E45,'Activity 7'!$B$7:$B$13,'Activity 7'!S$7:S$13,\"N/A\",0,1)","v":"N/A"},{"$f":"_xlfn.XLOOKUP($E45,'Activity 7'!$B$7:$B$13,'Activity 7'!T$7:T$13,\"N/A\",0,1)","v":"N/A"},{"$f":"_xlfn.XLOOKUP($E45,'Activity 7'!$B$7:$B$13,'Activity 7'!U$7:U$13,\"N/A\",0,1)","v":"N/A"},{"$f":"_xlfn.XLOOKUP($E45,'Activity 7'!$B$7:$B$13,'Activity 7'!V$7:V$13,\"N/A\",0,1)","v":"N/A"},{"$f":"_xlfn.XLOOKUP($E45,'Activity 7'!$B$17:$B$23,'Activity 7'!E$17:E$23,\"N/A\",0,1)","v":"N/A"},{"$f":"_xlfn.XLOOKUP($E45,'Activity 7'!$B$17:$B$23,'Activity 7'!G$17:G$23,\"N/A\",0,1)","v":"N/A"},{"$f":"_xlfn.XLOOKUP($E45,'Activity 7'!$B$17:$B$23,'Activity 7'!I$17:I$23,\"N/A\",0,1)","v":"N/A"},{"$f":"_xlfn.XLOOKUP($E45,'Activity 7'!$B$17:$B$23,'Activity 7'!J$17:J$23,\"N/A\",0,1)","v":"N/A"},{"$f":"_xlfn.XLOOKUP($E45,'Activity 7'!$B$17:$B$23,'Activity 7'!K$17:K$23,\"N/A\",0,1)","v":"N/A"},{"$f":"_xlfn.XLOOKUP($E45,'Activity 7'!$B$17:$B$23,'Activity 7'!L$17:L$23,\"N/A\",0,1)","v":"N/A"},{"$f":"_xlfn.XLOOKUP($E45,'Activity 7'!$B$17:$B$23,'Activity 7'!M$17:M$23,\"N/A\",0,1)","v":"N/A"},{"$f":"_xlfn.XLOOKUP($E45,'Activity 7'!$B$17:$B$23,'Activity 7'!N$17:N$23,\"N/A\",0,1)","v":"N/A"},{"$f":"_xlfn.XLOOKUP($E45,'Activity 7'!$B$17:$B$23,'Activity 7'!P$17:P$23,\"N/A\",0,1)","v":"N/A"},{"$f":"_xlfn.XLOOKUP($E45,'Activity 8'!$B$7:$B$13,'Activity 8'!A$7:A$13,\"No\",0,1)","v":"No"},{"$f":"_xlfn.XLOOKUP($E45,'Activity 8'!$B$7:$B$13,'Activity 8'!I$7:I$13,\"N/A\",0,1)","v":"N/A"},{"$f":"_xlfn.XLOOKUP($E45,'Activity 8'!$B$7:$B$13,'Activity 8'!J$7:J$13,\"N/A\",0,1)","v":"N/A"},{"$f":"_xlfn.XLOOKUP($E45,'Activity 8'!$B$7:$B$13,'Activity 8'!K$7:K$13,\"N/A\",0,1)","v":"N/A"},{"$f":"_xlfn.XLOOKUP($E45,'Activity 8'!$B$7:$B$13,'Activity 8'!L$7:L$13,\"N/A\",0,1)","v":"N/A"},{"$f":"_xlfn.XLOOKUP($E45,'Activity 8'!$B$7:$B$13,'Activity 8'!M$7:M$13,\"N/A\",0,1)","v":"N/A"},{"$f":"_xlfn.XLOOKUP($E45,'Activity 8'!$B$7:$B$13,'Activity 8'!N$7:N$13,\"N/A\",0,1)","v":"N/A"},{"$f":"_xlfn.XLOOKUP($E45,'Activity 8'!$B$7:$B$13,'Activity 8'!O$7:O$13,\"N/A\",0,1)","v":"N/A"},{"$f":"_xlfn.XLOOKUP($E45,'Activity 8'!$B$7:$B$13,'Activity 8'!P$7:P$13,\"N/A\",0,1)","v":"N/A"},{"$f":"_xlfn.XLOOKUP($E45,'Activity 8'!$B$7:$B$13,'Activity 8'!Q$7:Q$13,\"N/A\",0,1)","v":"N/A"},{"$f":"_xlfn.XLOOKUP($E45,'Activity 8'!$B$7:$B$13,'Activity 8'!R$7:R$13,\"N/A\",0,1)","v":"N/A"},{"$f":"_xlfn.XLOOKUP($E45,'Activity 8'!$B$7:$B$13,'Activity 8'!S$7:S$13,\"N/A\",0,1)","v":"N/A"},{"$f":"_xlfn.XLOOKUP($E45,'Activity 8'!$B$7:$B$13,'Activity 8'!T$7:T$13,\"N/A\",0,1)","v":"N/A"},{"$f":"_xlfn.XLOOKUP($E45,'Activity 8'!$B$7:$B$13,'Activity 8'!U$7:U$13,\"N/A\",0,1)","v":"N/A"},{"$f":"_xlfn.XLOOKUP($E45,'Activity 8'!$B$7:$B$13,'Activity 8'!V$7:V$13,\"N/A\",0,1)","v":"N/A"},{"$f":"_xlfn.XLOOKUP($E45,'Activity 8'!$B$17:$B$23,'Activity 8'!D$17:D$23,\"N/A\",0,1)","v":"N/A"},{"$f":"_xlfn.XLOOKUP($E45,'Activity 8'!$B$17:$B$23,'Activity 8'!E$17:E$23,\"N/A\",0,1)","v":"N/A"},{"$f":"_xlfn.XLOOKUP($E45,'Activity 8'!$B$17:$B$23,'Activity 8'!F$17:F$23,\"N/A\",0,1)","v":"N/A"},{"$f":"_xlfn.XLOOKUP($E45,'Activity 8'!$B$17:$B$23,'Activity 8'!G$17:G$23,\"N/A\",0,1)","v":"N/A"},{"$f":"_xlfn.XLOOKUP($E45,'Activity 8'!$B$17:$B$23,'Activity 8'!H$17:H$23,\"N/A\",0,1)","v":"N/A"},{"$f":"_xlfn.XLOOKUP($E45,'Activity 8'!$B$17:$B$23,'Activity 8'!I$17:I$23,\"N/A\",0,1)","v":"N/A"},{"$f":"_xlfn.XLOOKUP($E45,'Activity 8'!$B$17:$B$23,'Activity 8'!J$17:J$23,\"N/A\",0,1)","v":"N/A"},{"$f":"_xlfn.XLOOKUP($E45,'Activity 8'!$B$17:$B$23,'Activity 8'!K$17:K$23,\"N/A\",0,1)","v":"N/A"},{"$f":"_xlfn.XLOOKUP($E45,'Activity 8'!$B$17:$B$23,'Activity 8'!L$17:L$23,\"N/A\",0,1)","v":"N/A"},{"$f":"_xlfn.XLOOKUP($E45,'Activity 8'!$B$17:$B$23,'Activity 8'!M$17:M$23,\"N/A\",0,1)","v":"N/A"},{"$f":"_xlfn.XLOOKUP($E45,'Activity 8'!$B$17:$B$23,'Activity 8'!N$17:N$23,\"N/A\",0,1)","v":"N/A"},{"$f":"_xlfn.XLOOKUP($E45,'Activity 8'!$B$17:$B$23,'Activity 8'!P$17:P$23,\"N/A\",0,1)","v":"N/A"},{"$f":"_xlfn.XLOOKUP(E45,'Activity 9'!$B$7:$B$13,'Activity 9'!$A$7:$A$13,\"No\",0,1)","v":"No"},{"$f":"_xlfn.XLOOKUP($E45,'Activity 9'!$B$7:$B$13,'Activity 9'!J$7:J$13,\"N/A\",0,1)","v":"N/A"},{"$f":"_xlfn.XLOOKUP($E45,'Activity 9'!$B$7:$B$13,'Activity 9'!K$7:K$13,\"N/A\",0,1)","v":"N/A"},{"$f":"_xlfn.XLOOKUP($E45,'Activity 9'!$B$7:$B$13,'Activity 9'!L$7:L$13,\"N/A\",0,1)","v":"N/A"},{"$f":"_xlfn.XLOOKUP($E45,'Activity 9'!$B$7:$B$13,'Activity 9'!M$7:M$13,\"N/A\",0,1)","v":"N/A"},{"$f":"_xlfn.XLOOKUP($E45,'Activity 9'!$B$7:$B$13,'Activity 9'!N$7:N$13,\"N/A\",0,1)","v":"N/A"},{"$f":"_xlfn.XLOOKUP($E45,'Activity 9'!$B$7:$B$13,'Activity 9'!O$7:O$13,\"N/A\",0,1)","v":"N/A"},{"$f":"_xlfn.XLOOKUP($E45,'Activity 9'!$B$7:$B$13,'Activity 9'!P$7:P$13,\"N/A\",0,1)","v":"N/A"},{"$f":"_xlfn.XLOOKUP($E45,'Activity 9'!$B$7:$B$13,'Activity 9'!Q$7:Q$13,\"N/A\",0,1)","v":"N/A"},{"$f":"_xlfn.XLOOKUP($E45,'Activity 9'!$B$7:$B$13,'Activity 9'!R$7:R$13,\"N/A\",0,1)","v":"N/A"},{"$f":"_xlfn.XLOOKUP($E45,'Activity 9'!$B$7:$B$13,'Activity 9'!S$7:S$13,\"N/A\",0,1)","v":"N/A"},{"$f":"_xlfn.XLOOKUP($E45,'Activity 9'!$B$7:$B$13,'Activity 9'!T$7:T$13,\"N/A\",0,1)","v":"N/A"},{"$f":"_xlfn.XLOOKUP($E45,'Activity 9'!$B$17:$B$23,'Activity 9'!E$17:E$23,\"N/A\",0,1)","v":"N/A"},{"$f":"_xlfn.XLOOKUP($E45,'Activity 9'!$B$17:$B$23,'Activity 9'!F$17:F$23,\"N/A\",0,1)","v":"N/A"},{"$f":"_xlfn.XLOOKUP($E45,'Activity 9'!$B$17:$B$23,'Activity 9'!G$17:G$23,\"N/A\",0,1)","v":"N/A"},{"$f":"_xlfn.XLOOKUP($E45,'Activity 9'!$B$17:$B$23,'Activity 9'!H$17:H$23,\"N/A\",0,1)","v":"N/A"},{"$f":"_xlfn.XLOOKUP($E45,'Activity 9'!$B$17:$B$23,'Activity 9'!I$17:I$23,\"N/A\",0,1)","v":"N/A"},{"$f":"_xlfn.XLOOKUP($E45,'Activity 9'!$B$17:$B$23,'Activity 9'!J$17:J$23,\"N/A\",0,1)","v":"N/A"},{"$f":"_xlfn.XLOOKUP($E45,'Activity 9'!$B$17:$B$23,'Activity 9'!K$17:K$23,\"N/A\",0,1)","v":"N/A"},{"$f":"_xlfn.XLOOKUP($E45,'Activity 9'!$B$17:$B$23,'Activity 9'!L$17:L$23,\"N/A\",0,1)","v":"N/A"},{"$f":"_xlfn.XLOOKUP($E45,'Activity 9'!$B$17:$B$23,'Activity 9'!N$17:N$23,\"N/A\",0,1)","v":"N/A"},{"$f":"_xlfn.XLOOKUP($E45,'Activity 9'!$B$17:$B$23,'Activity 9'!O$17:O$23,\"N/A\",0,1)","v":"N/A"},{"$f":"_xlfn.XLOOKUP($E45,'Activity 9'!$B$17:$B$23,'Activity 9'!Q$17:Q$23,\"N/A\",0,1)","v":"N/A"},{"$f":"_xlfn.XLOOKUP($E45,'Activity 10'!$B$7:$B$13,'Activity 10'!A$7:A$13,\"No\",0,1)","v":"No"},{"$f":"_xlfn.XLOOKUP($E45,'Activity 10'!$B$7:$B$13,'Activity 10'!J$7:J$13,\"N/A\",0,1)","v":"N/A"},{"$f":"_xlfn.XLOOKUP($E45,'Activity 10'!$B$7:$B$13,'Activity 10'!K$7:K$13,\"N/A\",0,1)","v":"N/A"},{"$f":"_xlfn.XLOOKUP($E45,'Activity 10'!$B$7:$B$13,'Activity 10'!L$7:L$13,\"N/A\",0,1)","v":"N/A"},{"$f":"_xlfn.XLOOKUP($E45,'Activity 10'!$B$7:$B$13,'Activity 10'!M$7:M$13,\"N/A\",0,1)","v":"N/A"},{"$f":"_xlfn.XLOOKUP($E45,'Activity 10'!$B$7:$B$13,'Activity 10'!N$7:N$13,\"N/A\",0,1)","v":"N/A"},{"$f":"_xlfn.XLOOKUP($E45,'Activity 10'!$B$7:$B$13,'Activity 10'!O$7:O$13,\"N/A\",0,1)","v":"N/A"},{"$f":"_xlfn.XLOOKUP($E45,'Activity 10'!$B$7:$B$13,'Activity 10'!P$7:P$13,\"N/A\",0,1)","v":"N/A"},{"$f":"_xlfn.XLOOKUP($E45,'Activity 10'!$B$7:$B$13,'Activity 10'!Q$7:Q$13,\"N/A\",0,1)","v":"N/A"},{"$f":"_xlfn.XLOOKUP($E45,'Activity 10'!$B$7:$B$13,'Activity 10'!R$7:R$13,\"N/A\",0,1)","v":"N/A"},{"$f":"_xlfn.XLOOKUP($E45,'Activity 10'!$B$7:$B$13,'Activity 10'!S$7:S$13,\"N/A\",0,1)","v":"N/A"},{"$f":"_xlfn.XLOOKUP($E45,'Activity 10'!$B$7:$B$13,'Activity 10'!T$7:T$13,\"N/A\",0,1)","v":"N/A"},{"$f":"_xlfn.XLOOKUP($E45,'Activity 10'!$B$7:$B$13,'Activity 10'!U$7:U$13,\"N/A\",0,1)","v":"N/A"},{"$f":"_xlfn.XLOOKUP($E45,'Activity 10'!$B$7:$B$13,'Activity 10'!V$7:V$13,\"N/A\",0,1)","v":"N/A"},{"$f":"_xlfn.XLOOKUP($E45,'Activity 10'!$B$17:$B$23,'Activity 10'!E$17:E$23,\"N/A\",0,1)","v":"N/A"},{"$f":"_xlfn.XLOOKUP($E45,'Activity 10'!$B$17:$B$23,'Activity 10'!F$17:F$23,\"N/A\",0,1)","v":"N/A"},{"$f":"_xlfn.XLOOKUP($E45,'Activity 10'!$B$17:$B$23,'Activity 10'!G$17:G$23,\"N/A\",0,1)","v":"N/A"},{"$f":"_xlfn.XLOOKUP($E45,'Activity 10'!$B$17:$B$23,'Activity 10'!H$17:H$23,\"N/A\",0,1)","v":"N/A"},{"$f":"_xlfn.XLOOKUP($E45,'Activity 10'!$B$17:$B$23,'Activity 10'!I$17:I$23,\"N/A\",0,1)","v":"N/A"},{"$f":"_xlfn.XLOOKUP($E45,'Activity 10'!$B$17:$B$23,'Activity 10'!J$17:J$23,\"N/A\",0,1)","v":"N/A"},{"$f":"_xlfn.XLOOKUP($E45,'Activity 10'!$B$17:$B$23,'Activity 10'!K$17:K$23,\"N/A\",0,1)","v":"N/A"},{"$f":"_xlfn.XLOOKUP($E45,'Activity 10'!$B$17:$B$23,'Activity 10'!L$17:L$23,\"N/A\",0,1)","v":"N/A"},{"$f":"_xlfn.XLOOKUP($E45,'Activity 10'!$B$17:$B$23,'Activity 10'!M$17:M$23,\"N/A\",0,1)","v":"N/A"},{"$f":"_xlfn.XLOOKUP($E45,'Activity 10'!$B$17:$B$23,'Activity 10'!N$17:N$23,\"N/A\",0,1)","v":"N/A"},{"$f":"_xlfn.XLOOKUP($E45,'Activity 10'!$B$17:$B$23,'Activity 10'!P$17:P$23,\"N/A\",0,1)","v":"N/A"},{"$f":"_xlfn.XLOOKUP($E45,'Competitive Activity 1'!B$7:B$13,'Competitive Activity 1'!A$7:A$13,\"No\",0,1)","v":"No"},{"$f":"_xlfn.XLOOKUP($E45,'Competitive Activity 1'!$B$7:$B$13,'Competitive Activity 1'!H$7:H$13,\"N/A\",0,1)","v":"N/A"},{"$f":"_xlfn.XLOOKUP($E45,'Competitive Activity 1'!$B$7:$B$13,'Competitive Activity 1'!I$7:I$13,\"N/A\",0,1)","v":"N/A"},{"$f":"_xlfn.XLOOKUP($E45,'Competitive Activity 1'!$B$7:$B$13,'Competitive Activity 1'!J$7:J$13,\"N/A\",0,1)","v":"N/A"},{"$f":"_xlfn.XLOOKUP($E45,'Competitive Activity 1'!$B$7:$B$13,'Competitive Activity 1'!K$7:K$13,\"N/A\",0,1)","v":"N/A"},{"$f":"_xlfn.XLOOKUP($E45,'Competitive Activity 1'!$B$7:$B$13,'Competitive Activity 1'!L$7:L$13,\"N/A\",0,1)","v":"N/A"},{"$f":"_xlfn.XLOOKUP($E45,'Competitive Activity 1'!$B$7:$B$13,'Competitive Activity 1'!M$7:M$13,\"N/A\",0,1)","v":"N/A"},{"$f":"_xlfn.XLOOKUP($E45,'Competitive Activity 1'!$B$7:$B$13,'Competitive Activity 1'!N$7:N$13,\"N/A\",0,1)","v":"N/A"},{"$f":"_xlfn.XLOOKUP($E45,'Competitive Activity 1'!$B$7:$B$13,'Competitive Activity 1'!O$7:O$13,\"N/A\",0,1)","v":"N/A"},{"$f":"_xlfn.XLOOKUP($E45,'Competitive Activity 1'!$B$7:$B$13,'Competitive Activity 1'!P$7:P$13,\"N/A\",0,1)","v":"N/A"},{"$f":"_xlfn.XLOOKUP($E45,'Competitive Activity 1'!$B$7:$B$13,'Competitive Activity 1'!Q$7:Q$13,\"N/A\",0,1)","v":"N/A"},{"$f":"_xlfn.XLOOKUP($E45,'Competitive Activity 1'!$B$7:$B$13,'Competitive Activity 1'!R$7:R$13,\"N/A\",0,1)","v":"N/A"},{"$f":"_xlfn.XLOOKUP($E45,'Competitive Activity 1'!$B$7:$B$13,'Competitive Activity 1'!S$7:S$13,\"N/A\",0,1)","v":"N/A"},{"$f":"_xlfn.XLOOKUP($E45,'Competitive Activity 1'!$B$7:$B$13,'Competitive Activity 1'!T$7:T$13,\"N/A\",0,1)","v":"N/A"},{"$f":"_xlfn.XLOOKUP($E45,'Competitive Activity 1'!$B$7:$B$13,'Competitive Activity 1'!U$7:U$13,\"N/A\",0,1)","v":"N/A"},{"$f":"_xlfn.XLOOKUP($E45,'Competitive Activity 1'!$B$17:$B$23,'Competitive Activity 1'!C$17:C$23,\"N/A\",0,1)","v":"N/A"},{"$f":"_xlfn.XLOOKUP($E45,'Competitive Activity 1'!$B$17:$B$23,'Competitive Activity 1'!D$17:D$23,\"N/A\",0,1)","v":"N/A"},{"$f":"_xlfn.XLOOKUP($E45,'Competitive Activity 1'!$B$17:$B$23,'Competitive Activity 1'!E$17:E$23,\"N/A\",0,1)","v":"N/A"},{"$f":"_xlfn.XLOOKUP($E45,'Competitive Activity 1'!$B$17:$B$23,'Competitive Activity 1'!F$17:F$23,\"N/A\",0,1)","v":"N/A"},{"$f":"_xlfn.XLOOKUP($E45,'Competitive Activity 1'!$B$17:$B$23,'Competitive Activity 1'!G$17:G$23,\"N/A\",0,1)","v":"N/A"},{"$f":"_xlfn.XLOOKUP($E45,'Competitive Activity 1'!$B$17:$B$23,'Competitive Activity 1'!H$17:H$23,\"N/A\",0,1)","v":"N/A"},{"$f":"_xlfn.XLOOKUP($E45,'Competitive Activity 1'!$B$17:$B$23,'Competitive Activity 1'!I$17:I$23,\"N/A\",0,1)","v":"N/A"},{"$f":"_xlfn.XLOOKUP($E45,'Competitive Activity 1'!$B$17:$B$23,'Competitive Activity 1'!J$17:J$23,\"N/A\",0,1)","v":"N/A"},{"$f":"_xlfn.XLOOKUP($E45,'Competitive Activity 1'!$B$17:$B$23,'Competitive Activity 1'!K$17:K$23,\"N/A\",0,1)","v":"N/A"},{"$f":"_xlfn.XLOOKUP($E45,'Competitive Activity 1'!$B$17:$B$23,'Competitive Activity 1'!M$17:M$23,\"N/A\",0,1)","v":"N/A"},{"$f":"_xlfn.XLOOKUP($E45,'Competitive Activity 1'!$B$17:$B$23,'Competitive Activity 1'!N$17:N$23,\"N/A\",0,1)","v":"N/A"},{"$f":"_xlfn.XLOOKUP($E45,'Competitive Activity 1'!$B$17:$B$23,'Competitive Activity 1'!P$17:P$23,\"N/A\",0,1)","v":"N/A"},{"$f":"_xlfn.XLOOKUP($E45,'Competitive Activity 2'!$B$7:$B$13,'Competitive Activity 2'!A$7:A$13,\"No\",0)","v":"No"},{"$f":"_xlfn.XLOOKUP($E45,'Competitive Activity 2'!$B$7:$B$13,'Competitive Activity 2'!L$7:L$13,\"N/A\",0)","v":"N/A"},{"$f":"_xlfn.XLOOKUP($E45,'Competitive Activity 2'!$B$7:$B$13,'Competitive Activity 2'!M$7:M$13,\"N/A\",0)","v":"N/A"},{"$f":"_xlfn.XLOOKUP($E45,'Competitive Activity 2'!$B$7:$B$13,'Competitive Activity 2'!N$7:N$13,\"N/A\",0)","v":"N/A"},{"$f":"_xlfn.XLOOKUP($E45,'Competitive Activity 2'!$B$7:$B$13,'Competitive Activity 2'!O$7:O$13,\"N/A\",0)","v":"N/A"},{"$f":"_xlfn.XLOOKUP($E45,'Competitive Activity 2'!$B$7:$B$13,'Competitive Activity 2'!P$7:P$13,\"N/A\",0)","v":"N/A"},{"$f":"_xlfn.XLOOKUP($E45,'Competitive Activity 2'!$B$7:$B$13,'Competitive Activity 2'!Q$7:Q$13,\"N/A\",0)","v":"N/A"},{"$f":"_xlfn.XLOOKUP($E45,'Competitive Activity 2'!$B$7:$B$13,'Competitive Activity 2'!R$7:R$13,\"N/A\",0)","v":"N/A"},{"$f":"_xlfn.XLOOKUP($E45,'Competitive Activity 2'!$B$7:$B$13,'Competitive Activity 2'!S$7:S$13,\"N/A\",0)","v":"N/A"},{"$f":"_xlfn.XLOOKUP($E45,'Competitive Activity 2'!$B$7:$B$13,'Competitive Activity 2'!T$7:T$13,\"N/A\",0)","v":"N/A"},{"$f":"_xlfn.XLOOKUP($E45,'Competitive Activity 2'!$B$7:$B$13,'Competitive Activity 2'!U$7:U$13,\"N/A\",0)","v":"N/A"},{"$f":"_xlfn.XLOOKUP($E45,'Competitive Activity 2'!$B$17:$B$23,'Competitive Activity 2'!D$17:D$23,\"N/A\",0)","v":"N/A"},{"$f":"_xlfn.XLOOKUP($E45,'Competitive Activity 2'!$B$17:$B$23,'Competitive Activity 2'!E$17:E$23,\"N/A\",0)","v":"N/A"},{"$f":"_xlfn.XLOOKUP($E45,'Competitive Activity 2'!$B$17:$B$23,'Competitive Activity 2'!F$17:F$23,\"N/A\",0)","v":"N/A"},{"$f":"_xlfn.XLOOKUP($E45,'Competitive Activity 2'!$B$17:$B$23,'Competitive Activity 2'!G$17:G$23,\"N/A\",0)","v":"N/A"},{"$f":"_xlfn.XLOOKUP($E45,'Competitive Activity 2'!$B$17:$B$23,'Competitive Activity 2'!H$17:H$23,\"N/A\",0)","v":"N/A"},{"$f":"_xlfn.XLOOKUP($E45,'Competitive Activity 2'!$B$17:$B$23,'Competitive Activity 2'!I$17:I$23,\"N/A\",0)","v":"N/A"},{"$f":"_xlfn.XLOOKUP($E45,'Competitive Activity 2'!$B$17:$B$23,'Competitive Activity 2'!J$17:J$23,\"N/A\",0)","v":"N/A"},{"$f":"_xlfn.XLOOKUP($E45,'Competitive Activity 2'!$B$17:$B$23,'Competitive Activity 2'!K$17:K$23,\"N/A\",0)","v":"N/A"},{"$f":"_xlfn.XLOOKUP($E45,'Competitive Activity 2'!$B$17:$B$23,'Competitive Activity 2'!L$17:L$23,\"N/A\",0)","v":"N/A"},{"$f":"_xlfn.XLOOKUP($E45,'Competitive Activity 2'!$B$17:$B$23,'Competitive Activity 2'!M$17:M$23,\"N/A\",0)","v":"N/A"},{"$f":"_xlfn.XLOOKUP($E45,'Competitive Activity 2'!$B$17:$B$23,'Competitive Activity 2'!N$17:N$23,\"N/A\",0)","v":"N/A"},{"$f":"_xlfn.XLOOKUP($E45,'Competitive Activity 2'!$B$27:$B$33,'Competitive Activity 2'!D$27:D$33,\"N/A\",0)","v":"N/A"},{"$f":"_xlfn.XLOOKUP($E45,'Competitive Activity 2'!$B$27:$B$33,'Competitive Activity 2'!E$27:E$33,\"N/A\",0)","v":"N/A"},{"$f":"_xlfn.XLOOKUP($E45,'Competitive Activity 2'!$B$27:$B$33,'Competitive Activity 2'!F$27:F$33,\"N/A\",0)","v":"N/A"},{"$f":"_xlfn.XLOOKUP($E45,'Competitive Activity 2'!$B$27:$B$33,'Competitive Activity 2'!G$27:G$33,\"N/A\",0)","v":"N/A"},{"$f":"_xlfn.XLOOKUP($E45,'Competitive Activity 2'!$B$27:$B$33,'Competitive Activity 2'!H$27:H$33,\"N/A\",0)","v":"N/A"},{"$f":"_xlfn.XLOOKUP($E45,'Competitive Activity 2'!$B$27:$B$33,'Competitive Activity 2'!I$27:I$33,\"N/A\",0)","v":"N/A"},{"$f":"_xlfn.XLOOKUP($E45,'Competitive Activity 2'!$B$27:$B$33,'Competitive Activity 2'!J$27:J$33,\"N/A\",0)","v":"N/A"},{"$f":"_xlfn.XLOOKUP($E45,'Competitive Activity 2'!$B$27:$B$33,'Competitive Activity 2'!K$27:K$33,\"N/A\",0)","v":"N/A"},{"$f":"_xlfn.XLOOKUP($E45,'Competitive Activity 2'!$B$27:$B$33,'Competitive Activity 2'!M$27:M$33,\"N/A\",0)","v":"N/A"}]
[{"$f":"'1-Cover Sheet'!$C$8","v":"Select One"},{"$f":"'1-Cover Sheet'!$F$8","v":"Select One"},{"$f":"'Summary Sheet'!$D$8","v":0},{"$f":"'Summary Sheet'!$D$10","v":0},{"$f":"'Drop Down Box'!B210","v":0},{"$f":"'Drop Down Box'!C210","v":0},{"$f":"'Drop Down Box'!D210","v":"Select One"},{"$f":"_xlfn.XLOOKUP(E46,'Drop Down Box'!$B$166:$B$249,'Drop Down Box'!$A$166:$A$249,\"Unknown\",0)","v":"Activity 1"},{"$f":"_xlfn.XLOOKUP($E46,'Activity 7'!$B$17:$B$23,'Activity 7'!$O$17:$O$23,\"N/A\",0)","v":"N/A"},{"$f":"_xlfn.XLOOKUP($E46,'Activity 7'!$B$17:$B$23,'Activity 7'!$Q$17:$Q$23,\"N/A\",0)","v":"N/A"},{"$f":"_xlfn.XLOOKUP($E46,'Activity 7'!$B$7:$B$13,'Activity 7'!$H$7:$H$13,\"N/A\",0)","v":"N/A"},{"$f":"_xlfn.XLOOKUP($E46,'Activity 7'!$B$7:$B$13,'Activity 7'!I$7:I$13,\"N/A\",0)","v":"N/A"},{"$f":"_xlfn.XLOOKUP($E46,'Activity 7'!$B$7:$B$13,'Activity 7'!J$7:J$13,\"N/A\",0)","v":"N/A"},{"$f":"_xlfn.XLOOKUP($E46,'Activity 1'!$B$7:$B$13,'Activity 1'!$A$7:$A$13,\"No\",0,1)","v":"No"},{"$f":"_xlfn.XLOOKUP($E46,'Activity 1'!$B$7:$B$13,'Activity 1'!$H$7:$H$13,\"N/A\",0,1)","v":"N/A"},{"$f":"_xlfn.XLOOKUP($E46,'Activity 1'!$B$7:$B$13,'Activity 1'!I$7:I$13,\"N/A\",0,1)","v":"N/A"},{"$f":"_xlfn.XLOOKUP($E46,'Activity 1'!$B$7:$B$13,'Activity 1'!J$7:J$13,\"N/A\",0,1)","v":"N/A"},{"$f":"_xlfn.XLOOKUP($E46,'Activity 1'!$B$7:$B$13,'Activity 1'!K$7:K$13,\"N/A\",0,1)","v":"N/A"},{"$f":"_xlfn.XLOOKUP($E46,'Activity 1'!$B$7:$B$13,'Activity 1'!L$7:L$13,\"N/A\",0,1)","v":"N/A"},{"$f":"_xlfn.XLOOKUP($E46,'Activity 1'!$B$7:$B$13,'Activity 1'!M$7:M$13,\"N/A\",0,1)","v":"N/A"},{"$f":"_xlfn.XLOOKUP($E46,'Activity 1'!$B$7:$B$13,'Activity 1'!N$7:N$13,\"N/A\",0,1)","v":"N/A"},0,{"$f":"_xlfn.XLOOKUP($E46,'Activity 1'!$B$7:$B$13,'Activity 1'!O$7:O$13,\"N/A\",0,1)","v":"N/A"},{"$f":"_xlfn.XLOOKUP($E46,'Activity 1'!$B$7:$B$13,'Activity 1'!P$7:P$13,\"N/A\",0,1)","v":"N/A"},{"$f":"_xlfn.XLOOKUP($E46,'Activity 1'!$B$7:$B$13,'Activity 1'!Q$7:Q$13,\"N/A\",0,1)","v":"N/A"},{"$f":"_xlfn.XLOOKUP($E46,'Activity 1'!$B$7:$B$13,'Activity 1'!R$7:R$13,\"N/A\",0,1)","v":"N/A"},{"$f":"_xlfn.XLOOKUP($E46,'Activity 1'!$B$7:$B$13,'Activity 1'!S$7:S$13,\"N/A\",0,1)","v":"N/A"},{"$f":"_xlfn.XLOOKUP($E46,'Activity 1'!$B$7:$B$13,'Activity 1'!T$7:T$13,\"N/A\",0,1)","v":"N/A"},{"$f":"_xlfn.XLOOKUP($E46,'Activity 1'!$B$7:$B$13,'Activity 1'!U$7:U$13,\"N/A\",0,1)","v":"N/A"},{"$f":"_xlfn.XLOOKUP($E46,'Activity 1'!$B$7:$B$13,'Activity 1'!V$7:V$13,\"N/A\",0,1)","v":"N/A"},{"$f":"_xlfn.XLOOKUP($E46,'Activity 1'!$B$17:$B$23,'Activity 1'!C$17:C$23,\"N/A\",0,1)","v":"N/A"},{"$f":"_xlfn.XLOOKUP($E46,'Activity 1'!$B$17:$B$23,'Activity 1'!D$17:D$23,\"N/A\",0,1)","v":"N/A"},{"$f":"_xlfn.XLOOKUP($E46,'Activity 1'!$B$17:$B$23,'Activity 1'!E$17:E$23,\"N/A\",0,1)","v":"N/A"},{"$f":"_xlfn.XLOOKUP($E46,'Activity 1'!$B$17:$B$23,'Activity 1'!F$17:F$23,\"N/A\",0,1)","v":"N/A"},{"$f":"_xlfn.XLOOKUP($E46,'Activity 1'!$B$17:$B$23,'Activity 1'!G$17:G$23,\"N/A\",0,1)","v":"N/A"},{"$f":"_xlfn.XLOOKUP($E46,'Activity 1'!$B$17:$B$23,'Activity 1'!H$17:H$23,\"N/A\",0,1)","v":"N/A"},{"$f":"_xlfn.XLOOKUP($E46,'Activity 1'!$B$17:$B$23,'Activity 1'!I$17:I$23,\"N/A\",0,1)","v":"N/A"},{"$f":"_xlfn.XLOOKUP($E46,'Activity 1'!$B$17:$B$23,'Activity 1'!J$17:J$23,\"N/A\",0,1)","v":"N/A"},{"$f":"_xlfn.XLOOKUP($E46,'Activity 1'!$B$17:$B$23,'Activity 1'!K$17:K$23,\"N/A\",0,1)","v":"N/A"},{"$f":"_xlfn.XLOOKUP($E46,'Activity 1'!$B$17:$B$23,'Activity 1'!L$17:L$23,\"N/A\",0,1)","v":"N/A"},{"$f":"_xlfn.XLOOKUP($E46,'Activity 1'!$B$17:$B$23,'Activity 1'!M$17:M$23,\"N/A\",0,1)","v":"N/A"},{"$f":"_xlfn.XLOOKUP($E46,'Activity 1'!$B$17:$B$23,'Activity 1'!O$17:O$23,\"N/A\",0,1)","v":"N/A"},{"$f":"_xlfn.XLOOKUP($E46,'Activity 1'!$B$17:$B$23,'Activity 1'!Q$17:Q$23,\"N/A\",0,1)","v":"N/A"},{"$f":"_xlfn.XLOOKUP($E46,'Activity 2'!$B$7:$B$13,'Activity 2'!$A$7:$A$13,\"No\",0,1)","v":"No"},{"$f":"_xlfn.XLOOKUP($E46,'Activity 2'!B$7:B$13,'Activity 2'!H$7:H$13,\"N/A\",0)","v":"N/A"},{"$f":"_xlfn.XLOOKUP($E46,'Activity 2'!C$7:C$13,'Activity 2'!I$7:I$13,\"N/A\",0)","v":"N/A"},{"$f":"_xlfn.XLOOKUP($E46,'Activity 2'!D$7:D$13,'Activity 2'!J$7:J$13,\"N/A\",0)","v":"N/A"},{"$f":"_xlfn.XLOOKUP($E46,'Activity 2'!E$7:E$13,'Activity 2'!K$7:K$13,\"N/A\",0)","v":"N/A"},{"$f":"_xlfn.XLOOKUP($E46,'Activity 2'!F$7:F$13,'Activity 2'!L$7:L$13,\"N/A\",0)","v":"N/A"},{"$f":"_xlfn.XLOOKUP($E46,'Activity 2'!G$7:G$13,'Activity 2'!M$7:M$13,\"N/A\",0)","v":"N/A"},{"$f":"_xlfn.XLOOKUP($E46,'Activity 2'!H$7:H$13,'Activity 2'!N$7:N$13,\"N/A\",0)","v":"N/A"},{"$f":"_xlfn.XLOOKUP($E46,'Activity 2'!I$7:I$13,'Activity 2'!O$7:O$13,\"N/A\",0)","v":"N/A"},{"$f":"_xlfn.XLOOKUP($E46,'Activity 2'!J$7:J$13,'Activity 2'!P$7:P$13,\"N/A\",0)","v":"N/A"},{"$f":"_xlfn.XLOOKUP($E46,'Activity 2'!K$7:K$13,'Activity 2'!Q$7:Q$13,\"N/A\",0)","v":"N/A"},{"$f":"_xlfn.XLOOKUP($E46,'Activity 2'!L$7:L$13,'Activity 2'!R$7:R$13,\"N/A\",0)","v":"N/A"},{"$f":"_xlfn.XLOOKUP($E46,'Activity 2'!M$7:M$13,'Activity 2'!S$7:S$13,\"N/A\",0)","v":"N/A"},{"$f":"_xlfn.XLOOKUP($E46,'Activity 2'!N$7:N$13,'Activity 2'!T$7:T$13,\"N/A\",0)","v":"N/A"},{"$f":"_xlfn.XLOOKUP($E46,'Activity 2'!O$7:O$13,'Activity 2'!U$7:U$13,\"N/A\",0)","v":"N/A"},{"$f":"_xlfn.XLOOKUP($E46,'Activity 2'!P$7:P$13,'Activity 2'!V$7:V$13,\"N/A\",0)","v":"N/A"},{"$f":"_xlfn.XLOOKUP($E46,'Activity 2'!$B$17:$B$23,'Activity 2'!C$17:C$23,\"N/A\",0,1)","v":"N/A"},{"$f":"_xlfn.XLOOKUP($E46,'Activity 2'!$B$17:$B$23,'Activity 2'!D$17:D$23,\"N/A\",0,1)","v":"N/A"},{"$f":"_xlfn.XLOOKUP($E46,'Activity 2'!$B$17:$B$23,'Activity 2'!E$17:E$23,\"N/A\",0,1)","v":"N/A"},{"$f":"_xlfn.XLOOKUP($E46,'Activity 2'!$B$17:$B$23,'Activity 2'!F$17:F$23,\"N/A\",0,1)","v":"N/A"},{"$f":"_xlfn.XLOOKUP($E46,'Activity 2'!$B$17:$B$23,'Activity 2'!G$17:G$23,\"N/A\",0,1)","v":"N/A"},{"$f":"_xlfn.XLOOKUP($E46,'Activity 2'!$B$17:$B$23,'Activity 2'!H$17:H$23,\"N/A\",0,1)","v":"N/A"},{"$f":"_xlfn.XLOOKUP($E46,'Activity 2'!$B$17:$B$23,'Activity 2'!I$17:I$23,\"N/A\",0,1)","v":"N/A"},{"$f":"_xlfn.XLOOKUP($E46,'Activity 2'!$B$17:$B$23,'Activity 2'!J$17:J$23,\"N/A\",0,1)","v":"N/A"},{"$f":"_xlfn.XLOOKUP($E46,'Activity 2'!$B$17:$B$23,'Activity 2'!K$17:K$23,\"N/A\",0,1)","v":"N/A"},{"$f":"_xlfn.XLOOKUP($E46,'Activity 2'!$B$17:$B$23,'Activity 2'!L$17:L$23,\"N/A\",0,1)","v":"N/A"},{"$f":"_xlfn.XLOOKUP($E46,'Activity 2'!$B$17:$B$23,'Activity 2'!M$17:M$23,\"N/A\",0,1)","v":"N/A"},{"$f":"_xlfn.XLOOKUP($E46,'Activity 2'!$B$17:$B$23,'Activity 2'!O$17:O$23,\"N/A\",0,1)","v":"N/A"},{"$f":"_xlfn.XLOOKUP($E46,'Activity 2'!$B$17:$B$23,'Activity 2'!Q$17:Q$23,\"N/A\",0,1)","v":"N/A"},null,{"$f":"_xlfn.XLOOKUP($E46,'Activity 3'!$B$8:$B$14,'Activity 3'!K$8:K$14,\"N/A\",0,1)","v":"N/A"},{"$f":"_xlfn.XLOOKUP($E46,'Activity 3'!$B$8:$B$14,'Activity 3'!L$8:L$14,\"N/A\",0,1)","v":"N/A"},{"$f":"_xlfn.XLOOKUP($E46,'Activity 3'!$B$8:$B$14,'Activity 3'!M$8:M$14,\"N/A\",0,1)","v":"N/A"},{"$f":"_xlfn.XLOOKUP($E46,'Activity 3'!$B$8:$B$14,'Activity 3'!N$8:N$14,\"N/A\",0,1)","v":"N/A"},{"$f":"_xlfn.XLOOKUP($E46,'Activity 3'!$B$8:$B$14,'Activity 3'!O$8:O$14,\"N/A\",0,1)","v":"N/A"},{"$f":"_xlfn.XLOOKUP($E46,'Activity 3'!$B$8:$B$14,'Activity 3'!R$8:R$14,\"N/A\",0,1)","v":"N/A"},{"$f":"_xlfn.XLOOKUP($E46,'Activity 4'!$B$8:$B$14,'Activity 4'!$A$8:$A$14,\"No\",0,1)","v":"No"},{"$f":"_xlfn.XLOOKUP($E46,'Activity 4'!$B$8:$B$14,'Activity 4'!L$8:L$14,\"N/A\",0,1)","v":"N/A"},{"$f":"_xlfn.XLOOKUP($E46,'Activity 4'!$B$8:$B$14,'Activity 4'!I$8:I$14,\"N/A\",0,1)","v":"N/A"},{"$f":"_xlfn.XLOOKUP($E46,'Activity 4'!$B$8:$B$14,'Activity 4'!M$8:M$14,\"N/A\",0,1)","v":"N/A"},{"$f":"_xlfn.XLOOKUP($E46,'Activity 5'!$B$8:$B$14,'Activity 5'!$A$8:$A$14,\"No\",0,1)","v":"No"},{"$f":"_xlfn.XLOOKUP($E46,'Activity 5'!$B$8:$B$14,'Activity 5'!J$8:J$14,\"N/A\",0,1)","v":"N/A"},{"$f":"_xlfn.XLOOKUP($E46,'Activity 5'!$B$8:$B$14,'Activity 5'!K$8:K$14,\"N/A\",0,1)","v":"N/A"},{"$f":"_xlfn.XLOOKUP($E46,'Activity 5'!$B$8:$B$14,'Activity 5'!N$8:N$14,\"N/A\",0,1)","v":"N/A"},{"$f":"_xlfn.XLOOKUP($E46,'Activity 5'!$B$8:$B$14,'Activity 5'!O$8:O$14,\"N/A\",0,1)","v":"N/A"},{"$f":"_xlfn.XLOOKUP($E46,'Activity 5'!$B$8:$B$14,'Activity 5'!P$8:P$14,\"N/A\",0,1)","v":"N/A"},{"$f":"_xlfn.XLOOKUP($E46,'Activity 5'!$B$8:$B$14,'Activity 5'!Q$8:Q$14,\"N/A\",0,1)","v":"N/A"},{"$f":"_xlfn.XLOOKUP($E46,'Activity 5'!$B$8:$B$14,'Activity 5'!R$8:R$14,\"N/A\",0,1)","v":"N/A"},{"$f":"_xlfn.XLOOKUP($E46,'Activity 6'!$B$7:$B$13,'Activity 6'!A$7:A$13,\"No\",0,1)","v":"No"},{"$f":"_xlfn.XLOOKUP($E46,'Activity 6'!$B$7:$B$13,'Activity 6'!K$7:K$13,\"N/A\",0,1)","v":"N/A"},{"$f":"_xlfn.XLOOKUP($E46,'Activity 6'!$B$7:$B$13,'Activity 6'!L$7:L$13,\"N/A\",0,1)","v":"N/A"},{"$f":"_xlfn.XLOOKUP($E46,'Activity 6'!$B$7:$B$13,'Activity 6'!M$7:M$13,\"N/A\",0,1)","v":"N/A"},{"$f":"_xlfn.XLOOKUP($E46,'Activity 6'!$B$7:$B$13,'Activity 6'!N$7:N$13,\"N/A\",0,1)","v":"N/A"},{"$f":"_xlfn.XLOOKUP($E46,'Activity 6'!$B$7:$B$13,'Activity 6'!O$7:O$13,\"N/A\",0,1)","v":"N/A"},{"$f":"_xlfn.XLOOKUP($E46,'Activity 6'!$B$7:$B$13,'Activity 6'!P$7:P$13,\"N/A\",0,1)","v":"N/A"},{"$f":"_xlfn.XLOOKUP($E46,'Activity 6'!$B$7:$B$13,'Activity 6'!Q$7:Q$13,\"N/A\",0,1)","v":"N/A"},{"$f":"_xlfn.XLOOKUP($E46,'Activity 6'!$B$7:$B$13,'Activity 6'!R$7:R$13,\"N/A\",0,1)","v":"N/A"},{"$f":"_xlfn.XLOOKUP($E46,'Activity 6'!$B$7:$B$13,'Activity 6'!S$7:S$13,\"N/A\",0,1)","v":"N/A"},{"$f":"_xlfn.XLOOKUP($E46,'Activity 6'!$B$7:$B$13,'Activity 6'!T$7:T$13,\"N/A\",0,1)","v":"N/A"},{"$f":"_xlfn.XLOOKUP($E46,'Activity 6'!$B$7:$B$13,'Activity 6'!U$7:U$13,\"N/A\",0,1)","v":"N/A"},{"$f":"_xlfn.XLOOKUP($E46,'Activity 6'!$B$22:$B$28,'Activity 6'!C$22:C$28,\"N/A\",0,1)","v":"N/A"},{"$f":"_xlfn.XLOOKUP($E46,'Activity 6'!$B$22:$B$28,'Activity 6'!D$22:D$28,\"N/A\",0,1)","v":"N/A"},{"$f":"_xlfn.XLOOKUP($E46,'Activity 6'!$B$22:$B$28,'Activity 6'!E$22:E$28,\"N/A\",0,1)","v":"N/A"},{"$f":"_xlfn.XLOOKUP($E46,'Activity 6'!$B$22:$B$28,'Activity 6'!F$22:F$28,\"N/A\",0,1)","v":"N/A"},{"$f":"_xlfn.XLOOKUP($E46,'Activity 6'!$B$22:$B$28,'Activity 6'!G$22:G$28,\"N/A\",0,1)","v":"N/A"},{"$f":"_xlfn.XLOOKUP($E46,'Activity 6'!$B$22:$B$28,'Activity 6'!H$22:H$28,\"N/A\",0,1)","v":"N/A"},{"$f":"_xlfn.XLOOKUP($E46,'Activity 6'!$B$22:$B$28,'Activity 6'!I$22:I$28,\"N/A\",0,1)","v":"N/A"},{"$f":"_xlfn.XLOOKUP($E46,'Activity 6'!$B$22:$B$28,'Activity 6'!J$22:J$28,\"N/A\",0,1)","v":"N/A"},{"$f":"_xlfn.XLOOKUP($E46,'Activity 6'!$B$22:$B$28,'Activity 6'!K$22:K$28,\"N/A\",0,1)","v":"N/A"},{"$f":"_xlfn.XLOOKUP($E46,'Activity 6'!$B$22:$B$28,'Activity 6'!L$22:L$28,\"N/A\",0,1)","v":"N/A"},{"$f":"_xlfn.XLOOKUP($E46,'Activity 6'!$B$22:$B$28,'Activity 6'!M$22:M$28,\"N/A\",0,1)","v":"N/A"},{"$f":"_xlfn.XLOOKUP($E46,'Activity 6'!$B$22:$B$28,'Activity 6'!N$22:N$28,\"N/A\",0,1)","v":"N/A"},{"$f":"_xlfn.XLOOKUP($E46,'Activity 6'!$B$32:$B$38,'Activity 6'!C$32:C$38,\"N/A\",0,1)","v":"N/A"},{"$f":"_xlfn.XLOOKUP($E46,'Activity 6'!$B$32:$B$38,'Activity 6'!D$32:D$38,\"N/A\",0,1)","v":"N/A"},{"$f":"_xlfn.XLOOKUP($E46,'Activity 6'!$B$32:$B$38,'Activity 6'!E$32:E$38,\"N/A\",0,1)","v":"N/A"},{"$f":"_xlfn.XLOOKUP($E46,'Activity 6'!$B$32:$B$38,'Activity 6'!F$32:F$38,\"N/A\",0,1)","v":"N/A"},{"$f":"_xlfn.XLOOKUP($E46,'Activity 6'!$B$32:$B$38,'Activity 6'!G$32:G$38,\"N/A\",0,1)","v":"N/A"},{"$f":"_xlfn.XLOOKUP($E46,'Activity 6'!$B$32:$B$38,'Activity 6'!H$32:H$38,\"N/A\",0,1)","v":"N/A"},{"$f":"_xlfn.XLOOKUP($E46,'Activity 6'!$B$32:$B$38,'Activity 6'!I$32:I$38,\"N/A\",0,1)","v":"N/A"},{"$f":"_xlfn.XLOOKUP($E46,'Activity 6'!$B$32:$B$38,'Activity 6'!J$32:J$38,\"N/A\",0,1)","v":"N/A"},{"$f":"_xlfn.XLOOKUP($E46,'Activity 6'!$B$32:$B$38,'Activity 6'!K$32:K$38,\"N/A\",0,1)","v":"N/A"},{"$f":"_xlfn.XLOOKUP($E46,'Activity 6'!$B$32:$B$38,'Activity 6'!M$32:M$38,\"N/A\",0,1)","v":"N/A"},{"$f":"_xlfn.XLOOKUP($E46,'Activity 7'!$B$7:$B$13,'Activity 7'!$A$7:$A$13,\"No\",0,1)","v":"No"},{"$f":"_xlfn.XLOOKUP($E46,'Activity 7'!$B$7:$B$13,'Activity 7'!M$7:M$13,\"N/A\",0,1)","v":"N/A"},{"$f":"_xlfn.XLOOKUP($E46,'Activity 7'!$B$7:$B$13,'Activity 7'!K$7:K$13,\"N/A\",0,1)","v":"N/A"},{"$f":"_xlfn.XLOOKUP($E46,'Activity 7'!$B$7:$B$13,'Activity 7'!N$7:N$13,\"N/A\",0,1)","v":"N/A"},{"$f":"_xlfn.XLOOKUP($E46,'Activity 7'!$B$7:$B$13,'Activity 7'!O$7:O$13,\"N/A\",0,1)","v":"N/A"},{"$f":"_xlfn.XLOOKUP($E46,'Activity 7'!$B$7:$B$13,'Activity 7'!P$7:P$13,\"N/A\",0,1)","v":"N/A"},{"$f":"_xlfn.XLOOKUP($E46,'Activity 7'!$B$7:$B$13,'Activity 7'!Q$7:Q$13,\"N/A\",0,1)","v":"N/A"},{"$f":"_xlfn.XLOOKUP($E46,'Activity 7'!$B$7:$B$13,'Activity 7'!R$7:R$13,\"N/A\",0,1)","v":"N/A"},{"$f":"_xlfn.XLOOKUP($E46,'Activity 7'!$B$7:$B$13,'Activity 7'!S$7:S$13,\"N/A\",0,1)","v":"N/A"},{"$f":"_xlfn.XLOOKUP($E46,'Activity 7'!$B$7:$B$13,'Activity 7'!T$7:T$13,\"N/A\",0,1)","v":"N/A"},{"$f":"_xlfn.XLOOKUP($E46,'Activity 7'!$B$7:$B$13,'Activity 7'!U$7:U$13,\"N/A\",0,1)","v":"N/A"},{"$f":"_xlfn.XLOOKUP($E46,'Activity 7'!$B$7:$B$13,'Activity 7'!V$7:V$13,\"N/A\",0,1)","v":"N/A"},{"$f":"_xlfn.XLOOKUP($E46,'Activity 7'!$B$17:$B$23,'Activity 7'!E$17:E$23,\"N/A\",0,1)","v":"N/A"},{"$f":"_xlfn.XLOOKUP($E46,'Activity 7'!$B$17:$B$23,'Activity 7'!G$17:G$23,\"N/A\",0,1)","v":"N/A"},{"$f":"_xlfn.XLOOKUP($E46,'Activity 7'!$B$17:$B$23,'Activity 7'!I$17:I$23,\"N/A\",0,1)","v":"N/A"},{"$f":"_xlfn.XLOOKUP($E46,'Activity 7'!$B$17:$B$23,'Activity 7'!J$17:J$23,\"N/A\",0,1)","v":"N/A"},{"$f":"_xlfn.XLOOKUP($E46,'Activity 7'!$B$17:$B$23,'Activity 7'!K$17:K$23,\"N/A\",0,1)","v":"N/A"},{"$f":"_xlfn.XLOOKUP($E46,'Activity 7'!$B$17:$B$23,'Activity 7'!L$17:L$23,\"N/A\",0,1)","v":"N/A"},{"$f":"_xlfn.XLOOKUP($E46,'Activity 7'!$B$17:$B$23,'Activity 7'!M$17:M$23,\"N/A\",0,1)","v":"N/A"},{"$f":"_xlfn.XLOOKUP($E46,'Activity 7'!$B$17:$B$23,'Activity 7'!N$17:N$23,\"N/A\",0,1)","v":"N/A"},{"$f":"_xlfn.XLOOKUP($E46,'Activity 7'!$B$17:$B$23,'Activity 7'!P$17:P$23,\"N/A\",0,1)","v":"N/A"},{"$f":"_xlfn.XLOOKUP($E46,'Activity 8'!$B$7:$B$13,'Activity 8'!A$7:A$13,\"No\",0,1)","v":"No"},{"$f":"_xlfn.XLOOKUP($E46,'Activity 8'!$B$7:$B$13,'Activity 8'!I$7:I$13,\"N/A\",0,1)","v":"N/A"},{"$f":"_xlfn.XLOOKUP($E46,'Activity 8'!$B$7:$B$13,'Activity 8'!J$7:J$13,\"N/A\",0,1)","v":"N/A"},{"$f":"_xlfn.XLOOKUP($E46,'Activity 8'!$B$7:$B$13,'Activity 8'!K$7:K$13,\"N/A\",0,1)","v":"N/A"},{"$f":"_xlfn.XLOOKUP($E46,'Activity 8'!$B$7:$B$13,'Activity 8'!L$7:L$13,\"N/A\",0,1)","v":"N/A"},{"$f":"_xlfn.XLOOKUP($E46,'Activity 8'!$B$7:$B$13,'Activity 8'!M$7:M$13,\"N/A\",0,1)","v":"N/A"},{"$f":"_xlfn.XLOOKUP($E46,'Activity 8'!$B$7:$B$13,'Activity 8'!N$7:N$13,\"N/A\",0,1)","v":"N/A"},{"$f":"_xlfn.XLOOKUP($E46,'Activity 8'!$B$7:$B$13,'Activity 8'!O$7:O$13,\"N/A\",0,1)","v":"N/A"},{"$f":"_xlfn.XLOOKUP($E46,'Activity 8'!$B$7:$B$13,'Activity 8'!P$7:P$13,\"N/A\",0,1)","v":"N/A"},{"$f":"_xlfn.XLOOKUP($E46,'Activity 8'!$B$7:$B$13,'Activity 8'!Q$7:Q$13,\"N/A\",0,1)","v":"N/A"},{"$f":"_xlfn.XLOOKUP($E46,'Activity 8'!$B$7:$B$13,'Activity 8'!R$7:R$13,\"N/A\",0,1)","v":"N/A"},{"$f":"_xlfn.XLOOKUP($E46,'Activity 8'!$B$7:$B$13,'Activity 8'!S$7:S$13,\"N/A\",0,1)","v":"N/A"},{"$f":"_xlfn.XLOOKUP($E46,'Activity 8'!$B$7:$B$13,'Activity 8'!T$7:T$13,\"N/A\",0,1)","v":"N/A"},{"$f":"_xlfn.XLOOKUP($E46,'Activity 8'!$B$7:$B$13,'Activity 8'!U$7:U$13,\"N/A\",0,1)","v":"N/A"},{"$f":"_xlfn.XLOOKUP($E46,'Activity 8'!$B$7:$B$13,'Activity 8'!V$7:V$13,\"N/A\",0,1)","v":"N/A"},{"$f":"_xlfn.XLOOKUP($E46,'Activity 8'!$B$17:$B$23,'Activity 8'!D$17:D$23,\"N/A\",0,1)","v":"N/A"},{"$f":"_xlfn.XLOOKUP($E46,'Activity 8'!$B$17:$B$23,'Activity 8'!E$17:E$23,\"N/A\",0,1)","v":"N/A"},{"$f":"_xlfn.XLOOKUP($E46,'Activity 8'!$B$17:$B$23,'Activity 8'!F$17:F$23,\"N/A\",0,1)","v":"N/A"},{"$f":"_xlfn.XLOOKUP($E46,'Activity 8'!$B$17:$B$23,'Activity 8'!G$17:G$23,\"N/A\",0,1)","v":"N/A"},{"$f":"_xlfn.XLOOKUP($E46,'Activity 8'!$B$17:$B$23,'Activity 8'!H$17:H$23,\"N/A\",0,1)","v":"N/A"},{"$f":"_xlfn.XLOOKUP($E46,'Activity 8'!$B$17:$B$23,'Activity 8'!I$17:I$23,\"N/A\",0,1)","v":"N/A"},{"$f":"_xlfn.XLOOKUP($E46,'Activity 8'!$B$17:$B$23,'Activity 8'!J$17:J$23,\"N/A\",0,1)","v":"N/A"},{"$f":"_xlfn.XLOOKUP($E46,'Activity 8'!$B$17:$B$23,'Activity 8'!K$17:K$23,\"N/A\",0,1)","v":"N/A"},{"$f":"_xlfn.XLOOKUP($E46,'Activity 8'!$B$17:$B$23,'Activity 8'!L$17:L$23,\"N/A\",0,1)","v":"N/A"},{"$f":"_xlfn.XLOOKUP($E46,'Activity 8'!$B$17:$B$23,'Activity 8'!M$17:M$23,\"N/A\",0,1)","v":"N/A"},{"$f":"_xlfn.XLOOKUP($E46,'Activity 8'!$B$17:$B$23,'Activity 8'!N$17:N$23,\"N/A\",0,1)","v":"N/A"},{"$f":"_xlfn.XLOOKUP($E46,'Activity 8'!$B$17:$B$23,'Activity 8'!P$17:P$23,\"N/A\",0,1)","v":"N/A"},{"$f":"_xlfn.XLOOKUP(E46,'Activity 9'!$B$7:$B$13,'Activity 9'!$A$7:$A$13,\"No\",0,1)","v":"No"},{"$f":"_xlfn.XLOOKUP($E46,'Activity 9'!$B$7:$B$13,'Activity 9'!J$7:J$13,\"N/A\",0,1)","v":"N/A"},{"$f":"_xlfn.XLOOKUP($E46,'Activity 9'!$B$7:$B$13,'Activity 9'!K$7:K$13,\"N/A\",0,1)","v":"N/A"},{"$f":"_xlfn.XLOOKUP($E46,'Activity 9'!$B$7:$B$13,'Activity 9'!L$7:L$13,\"N/A\",0,1)","v":"N/A"},{"$f":"_xlfn.XLOOKUP($E46,'Activity 9'!$B$7:$B$13,'Activity 9'!M$7:M$13,\"N/A\",0,1)","v":"N/A"},{"$f":"_xlfn.XLOOKUP($E46,'Activity 9'!$B$7:$B$13,'Activity 9'!N$7:N$13,\"N/A\",0,1)","v":"N/A"},{"$f":"_xlfn.XLOOKUP($E46,'Activity 9'!$B$7:$B$13,'Activity 9'!O$7:O$13,\"N/A\",0,1)","v":"N/A"},{"$f":"_xlfn.XLOOKUP($E46,'Activity 9'!$B$7:$B$13,'Activity 9'!P$7:P$13,\"N/A\",0,1)","v":"N/A"},{"$f":"_xlfn.XLOOKUP($E46,'Activity 9'!$B$7:$B$13,'Activity 9'!Q$7:Q$13,\"N/A\",0,1)","v":"N/A"},{"$f":"_xlfn.XLOOKUP($E46,'Activity 9'!$B$7:$B$13,'Activity 9'!R$7:R$13,\"N/A\",0,1)","v":"N/A"},{"$f":"_xlfn.XLOOKUP($E46,'Activity 9'!$B$7:$B$13,'Activity 9'!S$7:S$13,\"N/A\",0,1)","v":"N/A"},{"$f":"_xlfn.XLOOKUP($E46,'Activity 9'!$B$7:$B$13,'Activity 9'!T$7:T$13,\"N/A\",0,1)","v":"N/A"},{"$f":"_xlfn.XLOOKUP($E46,'Activity 9'!$B$17:$B$23,'Activity 9'!E$17:E$23,\"N/A\",0,1)","v":"N/A"},{"$f":"_xlfn.XLOOKUP($E46,'Activity 9'!$B$17:$B$23,'Activity 9'!F$17:F$23,\"N/A\",0,1)","v":"N/A"},{"$f":"_xlfn.XLOOKUP($E46,'Activity 9'!$B$17:$B$23,'Activity 9'!G$17:G$23,\"N/A\",0,1)","v":"N/A"},{"$f":"_xlfn.XLOOKUP($E46,'Activity 9'!$B$17:$B$23,'Activity 9'!H$17:H$23,\"N/A\",0,1)","v":"N/A"},{"$f":"_xlfn.XLOOKUP($E46,'Activity 9'!$B$17:$B$23,'Activity 9'!I$17:I$23,\"N/A\",0,1)","v":"N/A"},{"$f":"_xlfn.XLOOKUP($E46,'Activity 9'!$B$17:$B$23,'Activity 9'!J$17:J$23,\"N/A\",0,1)","v":"N/A"},{"$f":"_xlfn.XLOOKUP($E46,'Activity 9'!$B$17:$B$23,'Activity 9'!K$17:K$23,\"N/A\",0,1)","v":"N/A"},{"$f":"_xlfn.XLOOKUP($E46,'Activity 9'!$B$17:$B$23,'Activity 9'!L$17:L$23,\"N/A\",0,1)","v":"N/A"},{"$f":"_xlfn.XLOOKUP($E46,'Activity 9'!$B$17:$B$23,'Activity 9'!N$17:N$23,\"N/A\",0,1)","v":"N/A"},{"$f":"_xlfn.XLOOKUP($E46,'Activity 9'!$B$17:$B$23,'Activity 9'!O$17:O$23,\"N/A\",0,1)","v":"N/A"},{"$f":"_xlfn.XLOOKUP($E46,'Activity 9'!$B$17:$B$23,'Activity 9'!Q$17:Q$23,\"N/A\",0,1)","v":"N/A"},{"$f":"_xlfn.XLOOKUP($E46,'Activity 10'!$B$7:$B$13,'Activity 10'!A$7:A$13,\"No\",0,1)","v":"No"},{"$f":"_xlfn.XLOOKUP($E46,'Activity 10'!$B$7:$B$13,'Activity 10'!J$7:J$13,\"N/A\",0,1)","v":"N/A"},{"$f":"_xlfn.XLOOKUP($E46,'Activity 10'!$B$7:$B$13,'Activity 10'!K$7:K$13,\"N/A\",0,1)","v":"N/A"},{"$f":"_xlfn.XLOOKUP($E46,'Activity 10'!$B$7:$B$13,'Activity 10'!L$7:L$13,\"N/A\",0,1)","v":"N/A"},{"$f":"_xlfn.XLOOKUP($E46,'Activity 10'!$B$7:$B$13,'Activity 10'!M$7:M$13,\"N/A\",0,1)","v":"N/A"},{"$f":"_xlfn.XLOOKUP($E46,'Activity 10'!$B$7:$B$13,'Activity 10'!N$7:N$13,\"N/A\",0,1)","v":"N/A"},{"$f":"_xlfn.XLOOKUP($E46,'Activity 10'!$B$7:$B$13,'Activity 10'!O$7:O$13,\"N/A\",0,1)","v":"N/A"},{"$f":"_xlfn.XLOOKUP($E46,'Activity 10'!$B$7:$B$13,'Activity 10'!P$7:P$13,\"N/A\",0,1)","v":"N/A"},{"$f":"_xlfn.XLOOKUP($E46,'Activity 10'!$B$7:$B$13,'Activity 10'!Q$7:Q$13,\"N/A\",0,1)","v":"N/A"},{"$f":"_xlfn.XLOOKUP($E46,'Activity 10'!$B$7:$B$13,'Activity 10'!R$7:R$13,\"N/A\",0,1)","v":"N/A"},{"$f":"_xlfn.XLOOKUP($E46,'Activity 10'!$B$7:$B$13,'Activity 10'!S$7:S$13,\"N/A\",0,1)","v":"N/A"},{"$f":"_xlfn.XLOOKUP($E46,'Activity 10'!$B$7:$B$13,'Activity 10'!T$7:T$13,\"N/A\",0,1)","v":"N/A"},{"$f":"_xlfn.XLOOKUP($E46,'Activity 10'!$B$7:$B$13,'Activity 10'!U$7:U$13,\"N/A\",0,1)","v":"N/A"},{"$f":"_xlfn.XLOOKUP($E46,'Activity 10'!$B$7:$B$13,'Activity 10'!V$7:V$13,\"N/A\",0,1)","v":"N/A"},{"$f":"_xlfn.XLOOKUP($E46,'Activity 10'!$B$17:$B$23,'Activity 10'!E$17:E$23,\"N/A\",0,1)","v":"N/A"},{"$f":"_xlfn.XLOOKUP($E46,'Activity 10'!$B$17:$B$23,'Activity 10'!F$17:F$23,\"N/A\",0,1)","v":"N/A"},{"$f":"_xlfn.XLOOKUP($E46,'Activity 10'!$B$17:$B$23,'Activity 10'!G$17:G$23,\"N/A\",0,1)","v":"N/A"},{"$f":"_xlfn.XLOOKUP($E46,'Activity 10'!$B$17:$B$23,'Activity 10'!H$17:H$23,\"N/A\",0,1)","v":"N/A"},{"$f":"_xlfn.XLOOKUP($E46,'Activity 10'!$B$17:$B$23,'Activity 10'!I$17:I$23,\"N/A\",0,1)","v":"N/A"},{"$f":"_xlfn.XLOOKUP($E46,'Activity 10'!$B$17:$B$23,'Activity 10'!J$17:J$23,\"N/A\",0,1)","v":"N/A"},{"$f":"_xlfn.XLOOKUP($E46,'Activity 10'!$B$17:$B$23,'Activity 10'!K$17:K$23,\"N/A\",0,1)","v":"N/A"},{"$f":"_xlfn.XLOOKUP($E46,'Activity 10'!$B$17:$B$23,'Activity 10'!L$17:L$23,\"N/A\",0,1)","v":"N/A"},{"$f":"_xlfn.XLOOKUP($E46,'Activity 10'!$B$17:$B$23,'Activity 10'!M$17:M$23,\"N/A\",0,1)","v":"N/A"},{"$f":"_xlfn.XLOOKUP($E46,'Activity 10'!$B$17:$B$23,'Activity 10'!N$17:N$23,\"N/A\",0,1)","v":"N/A"},{"$f":"_xlfn.XLOOKUP($E46,'Activity 10'!$B$17:$B$23,'Activity 10'!P$17:P$23,\"N/A\",0,1)","v":"N/A"},{"$f":"_xlfn.XLOOKUP($E46,'Competitive Activity 1'!B$7:B$13,'Competitive Activity 1'!A$7:A$13,\"No\",0,1)","v":"No"},{"$f":"_xlfn.XLOOKUP($E46,'Competitive Activity 1'!$B$7:$B$13,'Competitive Activity 1'!H$7:H$13,\"N/A\",0,1)","v":"N/A"},{"$f":"_xlfn.XLOOKUP($E46,'Competitive Activity 1'!$B$7:$B$13,'Competitive Activity 1'!I$7:I$13,\"N/A\",0,1)","v":"N/A"},{"$f":"_xlfn.XLOOKUP($E46,'Competitive Activity 1'!$B$7:$B$13,'Competitive Activity 1'!J$7:J$13,\"N/A\",0,1)","v":"N/A"},{"$f":"_xlfn.XLOOKUP($E46,'Competitive Activity 1'!$B$7:$B$13,'Competitive Activity 1'!K$7:K$13,\"N/A\",0,1)","v":"N/A"},{"$f":"_xlfn.XLOOKUP($E46,'Competitive Activity 1'!$B$7:$B$13,'Competitive Activity 1'!L$7:L$13,\"N/A\",0,1)","v":"N/A"},{"$f":"_xlfn.XLOOKUP($E46,'Competitive Activity 1'!$B$7:$B$13,'Competitive Activity 1'!M$7:M$13,\"N/A\",0,1)","v":"N/A"},{"$f":"_xlfn.XLOOKUP($E46,'Competitive Activity 1'!$B$7:$B$13,'Competitive Activity 1'!N$7:N$13,\"N/A\",0,1)","v":"N/A"},{"$f":"_xlfn.XLOOKUP($E46,'Competitive Activity 1'!$B$7:$B$13,'Competitive Activity 1'!O$7:O$13,\"N/A\",0,1)","v":"N/A"},{"$f":"_xlfn.XLOOKUP($E46,'Competitive Activity 1'!$B$7:$B$13,'Competitive Activity 1'!P$7:P$13,\"N/A\",0,1)","v":"N/A"},{"$f":"_xlfn.XLOOKUP($E46,'Competitive Activity 1'!$B$7:$B$13,'Competitive Activity 1'!Q$7:Q$13,\"N/A\",0,1)","v":"N/A"},{"$f":"_xlfn.XLOOKUP($E46,'Competitive Activity 1'!$B$7:$B$13,'Competitive Activity 1'!R$7:R$13,\"N/A\",0,1)","v":"N/A"},{"$f":"_xlfn.XLOOKUP($E46,'Competitive Activity 1'!$B$7:$B$13,'Competitive Activity 1'!S$7:S$13,\"N/A\",0,1)","v":"N/A"},{"$f":"_xlfn.XLOOKUP($E46,'Competitive Activity 1'!$B$7:$B$13,'Competitive Activity 1'!T$7:T$13,\"N/A\",0,1)","v":"N/A"},{"$f":"_xlfn.XLOOKUP($E46,'Competitive Activity 1'!$B$7:$B$13,'Competitive Activity 1'!U$7:U$13,\"N/A\",0,1)","v":"N/A"},{"$f":"_xlfn.XLOOKUP($E46,'Competitive Activity 1'!$B$17:$B$23,'Competitive Activity 1'!C$17:C$23,\"N/A\",0,1)","v":"N/A"},{"$f":"_xlfn.XLOOKUP($E46,'Competitive Activity 1'!$B$17:$B$23,'Competitive Activity 1'!D$17:D$23,\"N/A\",0,1)","v":"N/A"},{"$f":"_xlfn.XLOOKUP($E46,'Competitive Activity 1'!$B$17:$B$23,'Competitive Activity 1'!E$17:E$23,\"N/A\",0,1)","v":"N/A"},{"$f":"_xlfn.XLOOKUP($E46,'Competitive Activity 1'!$B$17:$B$23,'Competitive Activity 1'!F$17:F$23,\"N/A\",0,1)","v":"N/A"},{"$f":"_xlfn.XLOOKUP($E46,'Competitive Activity 1'!$B$17:$B$23,'Competitive Activity 1'!G$17:G$23,\"N/A\",0,1)","v":"N/A"},{"$f":"_xlfn.XLOOKUP($E46,'Competitive Activity 1'!$B$17:$B$23,'Competitive Activity 1'!H$17:H$23,\"N/A\",0,1)","v":"N/A"},{"$f":"_xlfn.XLOOKUP($E46,'Competitive Activity 1'!$B$17:$B$23,'Competitive Activity 1'!I$17:I$23,\"N/A\",0,1)","v":"N/A"},{"$f":"_xlfn.XLOOKUP($E46,'Competitive Activity 1'!$B$17:$B$23,'Competitive Activity 1'!J$17:J$23,\"N/A\",0,1)","v":"N/A"},{"$f":"_xlfn.XLOOKUP($E46,'Competitive Activity 1'!$B$17:$B$23,'Competitive Activity 1'!K$17:K$23,\"N/A\",0,1)","v":"N/A"},{"$f":"_xlfn.XLOOKUP($E46,'Competitive Activity 1'!$B$17:$B$23,'Competitive Activity 1'!M$17:M$23,\"N/A\",0,1)","v":"N/A"},{"$f":"_xlfn.XLOOKUP($E46,'Competitive Activity 1'!$B$17:$B$23,'Competitive Activity 1'!N$17:N$23,\"N/A\",0,1)","v":"N/A"},{"$f":"_xlfn.XLOOKUP($E46,'Competitive Activity 1'!$B$17:$B$23,'Competitive Activity 1'!P$17:P$23,\"N/A\",0,1)","v":"N/A"},{"$f":"_xlfn.XLOOKUP($E46,'Competitive Activity 2'!$B$7:$B$13,'Competitive Activity 2'!A$7:A$13,\"No\",0)","v":"No"},{"$f":"_xlfn.XLOOKUP($E46,'Competitive Activity 2'!$B$7:$B$13,'Competitive Activity 2'!L$7:L$13,\"N/A\",0)","v":"N/A"},{"$f":"_xlfn.XLOOKUP($E46,'Competitive Activity 2'!$B$7:$B$13,'Competitive Activity 2'!M$7:M$13,\"N/A\",0)","v":"N/A"},{"$f":"_xlfn.XLOOKUP($E46,'Competitive Activity 2'!$B$7:$B$13,'Competitive Activity 2'!N$7:N$13,\"N/A\",0)","v":"N/A"},{"$f":"_xlfn.XLOOKUP($E46,'Competitive Activity 2'!$B$7:$B$13,'Competitive Activity 2'!O$7:O$13,\"N/A\",0)","v":"N/A"},{"$f":"_xlfn.XLOOKUP($E46,'Competitive Activity 2'!$B$7:$B$13,'Competitive Activity 2'!P$7:P$13,\"N/A\",0)","v":"N/A"},{"$f":"_xlfn.XLOOKUP($E46,'Competitive Activity 2'!$B$7:$B$13,'Competitive Activity 2'!Q$7:Q$13,\"N/A\",0)","v":"N/A"},{"$f":"_xlfn.XLOOKUP($E46,'Competitive Activity 2'!$B$7:$B$13,'Competitive Activity 2'!R$7:R$13,\"N/A\",0)","v":"N/A"},{"$f":"_xlfn.XLOOKUP($E46,'Competitive Activity 2'!$B$7:$B$13,'Competitive Activity 2'!S$7:S$13,\"N/A\",0)","v":"N/A"},{"$f":"_xlfn.XLOOKUP($E46,'Competitive Activity 2'!$B$7:$B$13,'Competitive Activity 2'!T$7:T$13,\"N/A\",0)","v":"N/A"},{"$f":"_xlfn.XLOOKUP($E46,'Competitive Activity 2'!$B$7:$B$13,'Competitive Activity 2'!U$7:U$13,\"N/A\",0)","v":"N/A"},{"$f":"_xlfn.XLOOKUP($E46,'Competitive Activity 2'!$B$17:$B$23,'Competitive Activity 2'!D$17:D$23,\"N/A\",0)","v":"N/A"},{"$f":"_xlfn.XLOOKUP($E46,'Competitive Activity 2'!$B$17:$B$23,'Competitive Activity 2'!E$17:E$23,\"N/A\",0)","v":"N/A"},{"$f":"_xlfn.XLOOKUP($E46,'Competitive Activity 2'!$B$17:$B$23,'Competitive Activity 2'!F$17:F$23,\"N/A\",0)","v":"N/A"},{"$f":"_xlfn.XLOOKUP($E46,'Competitive Activity 2'!$B$17:$B$23,'Competitive Activity 2'!G$17:G$23,\"N/A\",0)","v":"N/A"},{"$f":"_xlfn.XLOOKUP($E46,'Competitive Activity 2'!$B$17:$B$23,'Competitive Activity 2'!H$17:H$23,\"N/A\",0)","v":"N/A"},{"$f":"_xlfn.XLOOKUP($E46,'Competitive Activity 2'!$B$17:$B$23,'Competitive Activity 2'!I$17:I$23,\"N/A\",0)","v":"N/A"},{"$f":"_xlfn.XLOOKUP($E46,'Competitive Activity 2'!$B$17:$B$23,'Competitive Activity 2'!J$17:J$23,\"N/A\",0)","v":"N/A"},{"$f":"_xlfn.XLOOKUP($E46,'Competitive Activity 2'!$B$17:$B$23,'Competitive Activity 2'!K$17:K$23,\"N/A\",0)","v":"N/A"},{"$f":"_xlfn.XLOOKUP($E46,'Competitive Activity 2'!$B$17:$B$23,'Competitive Activity 2'!L$17:L$23,\"N/A\",0)","v":"N/A"},{"$f":"_xlfn.XLOOKUP($E46,'Competitive Activity 2'!$B$17:$B$23,'Competitive Activity 2'!M$17:M$23,\"N/A\",0)","v":"N/A"},{"$f":"_xlfn.XLOOKUP($E46,'Competitive Activity 2'!$B$17:$B$23,'Competitive Activity 2'!N$17:N$23,\"N/A\",0)","v":"N/A"},{"$f":"_xlfn.XLOOKUP($E46,'Competitive Activity 2'!$B$27:$B$33,'Competitive Activity 2'!D$27:D$33,\"N/A\",0)","v":"N/A"},{"$f":"_xlfn.XLOOKUP($E46,'Competitive Activity 2'!$B$27:$B$33,'Competitive Activity 2'!E$27:E$33,\"N/A\",0)","v":"N/A"},{"$f":"_xlfn.XLOOKUP($E46,'Competitive Activity 2'!$B$27:$B$33,'Competitive Activity 2'!F$27:F$33,\"N/A\",0)","v":"N/A"},{"$f":"_xlfn.XLOOKUP($E46,'Competitive Activity 2'!$B$27:$B$33,'Competitive Activity 2'!G$27:G$33,\"N/A\",0)","v":"N/A"},{"$f":"_xlfn.XLOOKUP($E46,'Competitive Activity 2'!$B$27:$B$33,'Competitive Activity 2'!H$27:H$33,\"N/A\",0)","v":"N/A"},{"$f":"_xlfn.XLOOKUP($E46,'Competitive Activity 2'!$B$27:$B$33,'Competitive Activity 2'!I$27:I$33,\"N/A\",0)","v":"N/A"},{"$f":"_xlfn.XLOOKUP($E46,'Competitive Activity 2'!$B$27:$B$33,'Competitive Activity 2'!J$27:J$33,\"N/A\",0)","v":"N/A"},{"$f":"_xlfn.XLOOKUP($E46,'Competitive Activity 2'!$B$27:$B$33,'Competitive Activity 2'!K$27:K$33,\"N/A\",0)","v":"N/A"},{"$f":"_xlfn.XLOOKUP($E46,'Competitive Activity 2'!$B$27:$B$33,'Competitive Activity 2'!M$27:M$33,\"N/A\",0)","v":"N/A"}]
[{"$f":"'1-Cover Sheet'!$C$8","v":"Select One"},{"$f":"'1-Cover Sheet'!$F$8","v":"Select One"},{"$f":"'Summary Sheet'!$D$8","v":0},{"$f":"'Summary Sheet'!$D$10","v":0},{"$f":"'Drop Down Box'!B211","v":0},{"$f":"'Drop Down Box'!C211","v":0},{"$f":"'Drop Down Box'!D211","v":"Select One"},{"$f":"_xlfn.XLOOKUP(E47,'Drop Down Box'!$B$166:$B$249,'Drop Down Box'!$A$166:$A$249,\"Unknown\",0)","v":"Activity 1"},{"$f":"_xlfn.XLOOKUP($E47,'Activity 7'!$B$17:$B$23,'Activity 7'!$O$17:$O$23,\"N/A\",0)","v":"N/A"},{"$f":"_xlfn.XLOOKUP($E47,'Activity 7'!$B$17:$B$23,'Activity 7'!$Q$17:$Q$23,\"N/A\",0)","v":"N/A"},{"$f":"_xlfn.XLOOKUP($E47,'Activity 7'!$B$7:$B$13,'Activity 7'!$H$7:$H$13,\"N/A\",0)","v":"N/A"},{"$f":"_xlfn.XLOOKUP($E47,'Activity 7'!$B$7:$B$13,'Activity 7'!I$7:I$13,\"N/A\",0)","v":"N/A"},{"$f":"_xlfn.XLOOKUP($E47,'Activity 7'!$B$7:$B$13,'Activity 7'!J$7:J$13,\"N/A\",0)","v":"N/A"},{"$f":"_xlfn.XLOOKUP($E47,'Activity 1'!$B$7:$B$13,'Activity 1'!$A$7:$A$13,\"No\",0,1)","v":"No"},{"$f":"_xlfn.XLOOKUP($E47,'Activity 1'!$B$7:$B$13,'Activity 1'!$H$7:$H$13,\"N/A\",0,1)","v":"N/A"},{"$f":"_xlfn.XLOOKUP($E47,'Activity 1'!$B$7:$B$13,'Activity 1'!I$7:I$13,\"N/A\",0,1)","v":"N/A"},{"$f":"_xlfn.XLOOKUP($E47,'Activity 1'!$B$7:$B$13,'Activity 1'!J$7:J$13,\"N/A\",0,1)","v":"N/A"},{"$f":"_xlfn.XLOOKUP($E47,'Activity 1'!$B$7:$B$13,'Activity 1'!K$7:K$13,\"N/A\",0,1)","v":"N/A"},{"$f":"_xlfn.XLOOKUP($E47,'Activity 1'!$B$7:$B$13,'Activity 1'!L$7:L$13,\"N/A\",0,1)","v":"N/A"},{"$f":"_xlfn.XLOOKUP($E47,'Activity 1'!$B$7:$B$13,'Activity 1'!M$7:M$13,\"N/A\",0,1)","v":"N/A"},{"$f":"_xlfn.XLOOKUP($E47,'Activity 1'!$B$7:$B$13,'Activity 1'!N$7:N$13,\"N/A\",0,1)","v":"N/A"},0,{"$f":"_xlfn.XLOOKUP($E47,'Activity 1'!$B$7:$B$13,'Activity 1'!O$7:O$13,\"N/A\",0,1)","v":"N/A"},{"$f":"_xlfn.XLOOKUP($E47,'Activity 1'!$B$7:$B$13,'Activity 1'!P$7:P$13,\"N/A\",0,1)","v":"N/A"},{"$f":"_xlfn.XLOOKUP($E47,'Activity 1'!$B$7:$B$13,'Activity 1'!Q$7:Q$13,\"N/A\",0,1)","v":"N/A"},{"$f":"_xlfn.XLOOKUP($E47,'Activity 1'!$B$7:$B$13,'Activity 1'!R$7:R$13,\"N/A\",0,1)","v":"N/A"},{"$f":"_xlfn.XLOOKUP($E47,'Activity 1'!$B$7:$B$13,'Activity 1'!S$7:S$13,\"N/A\",0,1)","v":"N/A"},{"$f":"_xlfn.XLOOKUP($E47,'Activity 1'!$B$7:$B$13,'Activity 1'!T$7:T$13,\"N/A\",0,1)","v":"N/A"},{"$f":"_xlfn.XLOOKUP($E47,'Activity 1'!$B$7:$B$13,'Activity 1'!U$7:U$13,\"N/A\",0,1)","v":"N/A"},{"$f":"_xlfn.XLOOKUP($E47,'Activity 1'!$B$7:$B$13,'Activity 1'!V$7:V$13,\"N/A\",0,1)","v":"N/A"},{"$f":"_xlfn.XLOOKUP($E47,'Activity 1'!$B$17:$B$23,'Activity 1'!C$17:C$23,\"N/A\",0,1)","v":"N/A"},{"$f":"_xlfn.XLOOKUP($E47,'Activity 1'!$B$17:$B$23,'Activity 1'!D$17:D$23,\"N/A\",0,1)","v":"N/A"},{"$f":"_xlfn.XLOOKUP($E47,'Activity 1'!$B$17:$B$23,'Activity 1'!E$17:E$23,\"N/A\",0,1)","v":"N/A"},{"$f":"_xlfn.XLOOKUP($E47,'Activity 1'!$B$17:$B$23,'Activity 1'!F$17:F$23,\"N/A\",0,1)","v":"N/A"},{"$f":"_xlfn.XLOOKUP($E47,'Activity 1'!$B$17:$B$23,'Activity 1'!G$17:G$23,\"N/A\",0,1)","v":"N/A"},{"$f":"_xlfn.XLOOKUP($E47,'Activity 1'!$B$17:$B$23,'Activity 1'!H$17:H$23,\"N/A\",0,1)","v":"N/A"},{"$f":"_xlfn.XLOOKUP($E47,'Activity 1'!$B$17:$B$23,'Activity 1'!I$17:I$23,\"N/A\",0,1)","v":"N/A"},{"$f":"_xlfn.XLOOKUP($E47,'Activity 1'!$B$17:$B$23,'Activity 1'!J$17:J$23,\"N/A\",0,1)","v":"N/A"},{"$f":"_xlfn.XLOOKUP($E47,'Activity 1'!$B$17:$B$23,'Activity 1'!K$17:K$23,\"N/A\",0,1)","v":"N/A"},{"$f":"_xlfn.XLOOKUP($E47,'Activity 1'!$B$17:$B$23,'Activity 1'!L$17:L$23,\"N/A\",0,1)","v":"N/A"},{"$f":"_xlfn.XLOOKUP($E47,'Activity 1'!$B$17:$B$23,'Activity 1'!M$17:M$23,\"N/A\",0,1)","v":"N/A"},{"$f":"_xlfn.XLOOKUP($E47,'Activity 1'!$B$17:$B$23,'Activity 1'!O$17:O$23,\"N/A\",0,1)","v":"N/A"},{"$f":"_xlfn.XLOOKUP($E47,'Activity 1'!$B$17:$B$23,'Activity 1'!Q$17:Q$23,\"N/A\",0,1)","v":"N/A"},{"$f":"_xlfn.XLOOKUP($E47,'Activity 2'!$B$7:$B$13,'Activity 2'!$A$7:$A$13,\"No\",0,1)","v":"No"},{"$f":"_xlfn.XLOOKUP($E47,'Activity 2'!B$7:B$13,'Activity 2'!H$7:H$13,\"N/A\",0)","v":"N/A"},{"$f":"_xlfn.XLOOKUP($E47,'Activity 2'!C$7:C$13,'Activity 2'!I$7:I$13,\"N/A\",0)","v":"N/A"},{"$f":"_xlfn.XLOOKUP($E47,'Activity 2'!D$7:D$13,'Activity 2'!J$7:J$13,\"N/A\",0)","v":"N/A"},{"$f":"_xlfn.XLOOKUP($E47,'Activity 2'!E$7:E$13,'Activity 2'!K$7:K$13,\"N/A\",0)","v":"N/A"},{"$f":"_xlfn.XLOOKUP($E47,'Activity 2'!F$7:F$13,'Activity 2'!L$7:L$13,\"N/A\",0)","v":"N/A"},{"$f":"_xlfn.XLOOKUP($E47,'Activity 2'!G$7:G$13,'Activity 2'!M$7:M$13,\"N/A\",0)","v":"N/A"},{"$f":"_xlfn.XLOOKUP($E47,'Activity 2'!H$7:H$13,'Activity 2'!N$7:N$13,\"N/A\",0)","v":"N/A"},{"$f":"_xlfn.XLOOKUP($E47,'Activity 2'!I$7:I$13,'Activity 2'!O$7:O$13,\"N/A\",0)","v":"N/A"},{"$f":"_xlfn.XLOOKUP($E47,'Activity 2'!J$7:J$13,'Activity 2'!P$7:P$13,\"N/A\",0)","v":"N/A"},{"$f":"_xlfn.XLOOKUP($E47,'Activity 2'!K$7:K$13,'Activity 2'!Q$7:Q$13,\"N/A\",0)","v":"N/A"},{"$f":"_xlfn.XLOOKUP($E47,'Activity 2'!L$7:L$13,'Activity 2'!R$7:R$13,\"N/A\",0)","v":"N/A"},{"$f":"_xlfn.XLOOKUP($E47,'Activity 2'!M$7:M$13,'Activity 2'!S$7:S$13,\"N/A\",0)","v":"N/A"},{"$f":"_xlfn.XLOOKUP($E47,'Activity 2'!N$7:N$13,'Activity 2'!T$7:T$13,\"N/A\",0)","v":"N/A"},{"$f":"_xlfn.XLOOKUP($E47,'Activity 2'!O$7:O$13,'Activity 2'!U$7:U$13,\"N/A\",0)","v":"N/A"},{"$f":"_xlfn.XLOOKUP($E47,'Activity 2'!P$7:P$13,'Activity 2'!V$7:V$13,\"N/A\",0)","v":"N/A"},{"$f":"_xlfn.XLOOKUP($E47,'Activity 2'!$B$17:$B$23,'Activity 2'!C$17:C$23,\"N/A\",0,1)","v":"N/A"},{"$f":"_xlfn.XLOOKUP($E47,'Activity 2'!$B$17:$B$23,'Activity 2'!D$17:D$23,\"N/A\",0,1)","v":"N/A"},{"$f":"_xlfn.XLOOKUP($E47,'Activity 2'!$B$17:$B$23,'Activity 2'!E$17:E$23,\"N/A\",0,1)","v":"N/A"},{"$f":"_xlfn.XLOOKUP($E47,'Activity 2'!$B$17:$B$23,'Activity 2'!F$17:F$23,\"N/A\",0,1)","v":"N/A"},{"$f":"_xlfn.XLOOKUP($E47,'Activity 2'!$B$17:$B$23,'Activity 2'!G$17:G$23,\"N/A\",0,1)","v":"N/A"},{"$f":"_xlfn.XLOOKUP($E47,'Activity 2'!$B$17:$B$23,'Activity 2'!H$17:H$23,\"N/A\",0,1)","v":"N/A"},{"$f":"_xlfn.XLOOKUP($E47,'Activity 2'!$B$17:$B$23,'Activity 2'!I$17:I$23,\"N/A\",0,1)","v":"N/A"},{"$f":"_xlfn.XLOOKUP($E47,'Activity 2'!$B$17:$B$23,'Activity 2'!J$17:J$23,\"N/A\",0,1)","v":"N/A"},{"$f":"_xlfn.XLOOKUP($E47,'Activity 2'!$B$17:$B$23,'Activity 2'!K$17:K$23,\"N/A\",0,1)","v":"N/A"},{"$f":"_xlfn.XLOOKUP($E47,'Activity 2'!$B$17:$B$23,'Activity 2'!L$17:L$23,\"N/A\",0,1)","v":"N/A"},{"$f":"_xlfn.XLOOKUP($E47,'Activity 2'!$B$17:$B$23,'Activity 2'!M$17:M$23,\"N/A\",0,1)","v":"N/A"},{"$f":"_xlfn.XLOOKUP($E47,'Activity 2'!$B$17:$B$23,'Activity 2'!O$17:O$23,\"N/A\",0,1)","v":"N/A"},{"$f":"_xlfn.XLOOKUP($E47,'Activity 2'!$B$17:$B$23,'Activity 2'!Q$17:Q$23,\"N/A\",0,1)","v":"N/A"},null,{"$f":"_xlfn.XLOOKUP($E47,'Activity 3'!$B$8:$B$14,'Activity 3'!K$8:K$14,\"N/A\",0,1)","v":"N/A"},{"$f":"_xlfn.XLOOKUP($E47,'Activity 3'!$B$8:$B$14,'Activity 3'!L$8:L$14,\"N/A\",0,1)","v":"N/A"},{"$f":"_xlfn.XLOOKUP($E47,'Activity 3'!$B$8:$B$14,'Activity 3'!M$8:M$14,\"N/A\",0,1)","v":"N/A"},{"$f":"_xlfn.XLOOKUP($E47,'Activity 3'!$B$8:$B$14,'Activity 3'!N$8:N$14,\"N/A\",0,1)","v":"N/A"},{"$f":"_xlfn.XLOOKUP($E47,'Activity 3'!$B$8:$B$14,'Activity 3'!O$8:O$14,\"N/A\",0,1)","v":"N/A"},{"$f":"_xlfn.XLOOKUP($E47,'Activity 3'!$B$8:$B$14,'Activity 3'!R$8:R$14,\"N/A\",0,1)","v":"N/A"},{"$f":"_xlfn.XLOOKUP($E47,'Activity 4'!$B$8:$B$14,'Activity 4'!$A$8:$A$14,\"No\",0,1)","v":"No"},{"$f":"_xlfn.XLOOKUP($E47,'Activity 4'!$B$8:$B$14,'Activity 4'!L$8:L$14,\"N/A\",0,1)","v":"N/A"},{"$f":"_xlfn.XLOOKUP($E47,'Activity 4'!$B$8:$B$14,'Activity 4'!I$8:I$14,\"N/A\",0,1)","v":"N/A"},{"$f":"_xlfn.XLOOKUP($E47,'Activity 4'!$B$8:$B$14,'Activity 4'!M$8:M$14,\"N/A\",0,1)","v":"N/A"},{"$f":"_xlfn.XLOOKUP($E47,'Activity 5'!$B$8:$B$14,'Activity 5'!$A$8:$A$14,\"No\",0,1)","v":"No"},{"$f":"_xlfn.XLOOKUP($E47,'Activity 5'!$B$8:$B$14,'Activity 5'!J$8:J$14,\"N/A\",0,1)","v":"N/A"},{"$f":"_xlfn.XLOOKUP($E47,'Activity 5'!$B$8:$B$14,'Activity 5'!K$8:K$14,\"N/A\",0,1)","v":"N/A"},{"$f":"_xlfn.XLOOKUP($E47,'Activity 5'!$B$8:$B$14,'Activity 5'!N$8:N$14,\"N/A\",0,1)","v":"N/A"},{"$f":"_xlfn.XLOOKUP($E47,'Activity 5'!$B$8:$B$14,'Activity 5'!O$8:O$14,\"N/A\",0,1)","v":"N/A"},{"$f":"_xlfn.XLOOKUP($E47,'Activity 5'!$B$8:$B$14,'Activity 5'!P$8:P$14,\"N/A\",0,1)","v":"N/A"},{"$f":"_xlfn.XLOOKUP($E47,'Activity 5'!$B$8:$B$14,'Activity 5'!Q$8:Q$14,\"N/A\",0,1)","v":"N/A"},{"$f":"_xlfn.XLOOKUP($E47,'Activity 5'!$B$8:$B$14,'Activity 5'!R$8:R$14,\"N/A\",0,1)","v":"N/A"},{"$f":"_xlfn.XLOOKUP($E47,'Activity 6'!$B$7:$B$13,'Activity 6'!A$7:A$13,\"No\",0,1)","v":"No"},{"$f":"_xlfn.XLOOKUP($E47,'Activity 6'!$B$7:$B$13,'Activity 6'!K$7:K$13,\"N/A\",0,1)","v":"N/A"},{"$f":"_xlfn.XLOOKUP($E47,'Activity 6'!$B$7:$B$13,'Activity 6'!L$7:L$13,\"N/A\",0,1)","v":"N/A"},{"$f":"_xlfn.XLOOKUP($E47,'Activity 6'!$B$7:$B$13,'Activity 6'!M$7:M$13,\"N/A\",0,1)","v":"N/A"},{"$f":"_xlfn.XLOOKUP($E47,'Activity 6'!$B$7:$B$13,'Activity 6'!N$7:N$13,\"N/A\",0,1)","v":"N/A"},{"$f":"_xlfn.XLOOKUP($E47,'Activity 6'!$B$7:$B$13,'Activity 6'!O$7:O$13,\"N/A\",0,1)","v":"N/A"},{"$f":"_xlfn.XLOOKUP($E47,'Activity 6'!$B$7:$B$13,'Activity 6'!P$7:P$13,\"N/A\",0,1)","v":"N/A"},{"$f":"_xlfn.XLOOKUP($E47,'Activity 6'!$B$7:$B$13,'Activity 6'!Q$7:Q$13,\"N/A\",0,1)","v":"N/A"},{"$f":"_xlfn.XLOOKUP($E47,'Activity 6'!$B$7:$B$13,'Activity 6'!R$7:R$13,\"N/A\",0,1)","v":"N/A"},{"$f":"_xlfn.XLOOKUP($E47,'Activity 6'!$B$7:$B$13,'Activity 6'!S$7:S$13,\"N/A\",0,1)","v":"N/A"},{"$f":"_xlfn.XLOOKUP($E47,'Activity 6'!$B$7:$B$13,'Activity 6'!T$7:T$13,\"N/A\",0,1)","v":"N/A"},{"$f":"_xlfn.XLOOKUP($E47,'Activity 6'!$B$7:$B$13,'Activity 6'!U$7:U$13,\"N/A\",0,1)","v":"N/A"},{"$f":"_xlfn.XLOOKUP($E47,'Activity 6'!$B$22:$B$28,'Activity 6'!C$22:C$28,\"N/A\",0,1)","v":"N/A"},{"$f":"_xlfn.XLOOKUP($E47,'Activity 6'!$B$22:$B$28,'Activity 6'!D$22:D$28,\"N/A\",0,1)","v":"N/A"},{"$f":"_xlfn.XLOOKUP($E47,'Activity 6'!$B$22:$B$28,'Activity 6'!E$22:E$28,\"N/A\",0,1)","v":"N/A"},{"$f":"_xlfn.XLOOKUP($E47,'Activity 6'!$B$22:$B$28,'Activity 6'!F$22:F$28,\"N/A\",0,1)","v":"N/A"},{"$f":"_xlfn.XLOOKUP($E47,'Activity 6'!$B$22:$B$28,'Activity 6'!G$22:G$28,\"N/A\",0,1)","v":"N/A"},{"$f":"_xlfn.XLOOKUP($E47,'Activity 6'!$B$22:$B$28,'Activity 6'!H$22:H$28,\"N/A\",0,1)","v":"N/A"},{"$f":"_xlfn.XLOOKUP($E47,'Activity 6'!$B$22:$B$28,'Activity 6'!I$22:I$28,\"N/A\",0,1)","v":"N/A"},{"$f":"_xlfn.XLOOKUP($E47,'Activity 6'!$B$22:$B$28,'Activity 6'!J$22:J$28,\"N/A\",0,1)","v":"N/A"},{"$f":"_xlfn.XLOOKUP($E47,'Activity 6'!$B$22:$B$28,'Activity 6'!K$22:K$28,\"N/A\",0,1)","v":"N/A"},{"$f":"_xlfn.XLOOKUP($E47,'Activity 6'!$B$22:$B$28,'Activity 6'!L$22:L$28,\"N/A\",0,1)","v":"N/A"},{"$f":"_xlfn.XLOOKUP($E47,'Activity 6'!$B$22:$B$28,'Activity 6'!M$22:M$28,\"N/A\",0,1)","v":"N/A"},{"$f":"_xlfn.XLOOKUP($E47,'Activity 6'!$B$22:$B$28,'Activity 6'!N$22:N$28,\"N/A\",0,1)","v":"N/A"},{"$f":"_xlfn.XLOOKUP($E47,'Activity 6'!$B$32:$B$38,'Activity 6'!C$32:C$38,\"N/A\",0,1)","v":"N/A"},{"$f":"_xlfn.XLOOKUP($E47,'Activity 6'!$B$32:$B$38,'Activity 6'!D$32:D$38,\"N/A\",0,1)","v":"N/A"},{"$f":"_xlfn.XLOOKUP($E47,'Activity 6'!$B$32:$B$38,'Activity 6'!E$32:E$38,\"N/A\",0,1)","v":"N/A"},{"$f":"_xlfn.XLOOKUP($E47,'Activity 6'!$B$32:$B$38,'Activity 6'!F$32:F$38,\"N/A\",0,1)","v":"N/A"},{"$f":"_xlfn.XLOOKUP($E47,'Activity 6'!$B$32:$B$38,'Activity 6'!G$32:G$38,\"N/A\",0,1)","v":"N/A"},{"$f":"_xlfn.XLOOKUP($E47,'Activity 6'!$B$32:$B$38,'Activity 6'!H$32:H$38,\"N/A\",0,1)","v":"N/A"},{"$f":"_xlfn.XLOOKUP($E47,'Activity 6'!$B$32:$B$38,'Activity 6'!I$32:I$38,\"N/A\",0,1)","v":"N/A"},{"$f":"_xlfn.XLOOKUP($E47,'Activity 6'!$B$32:$B$38,'Activity 6'!J$32:J$38,\"N/A\",0,1)","v":"N/A"},{"$f":"_xlfn.XLOOKUP($E47,'Activity 6'!$B$32:$B$38,'Activity 6'!K$32:K$38,\"N/A\",0,1)","v":"N/A"},{"$f":"_xlfn.XLOOKUP($E47,'Activity 6'!$B$32:$B$38,'Activity 6'!M$32:M$38,\"N/A\",0,1)","v":"N/A"},{"$f":"_xlfn.XLOOKUP($E47,'Activity 7'!$B$7:$B$13,'Activity 7'!$A$7:$A$13,\"No\",0,1)","v":"No"},{"$f":"_xlfn.XLOOKUP($E47,'Activity 7'!$B$7:$B$13,'Activity 7'!M$7:M$13,\"N/A\",0,1)","v":"N/A"},{"$f":"_xlfn.XLOOKUP($E47,'Activity 7'!$B$7:$B$13,'Activity 7'!K$7:K$13,\"N/A\",0,1)","v":"N/A"},{"$f":"_xlfn.XLOOKUP($E47,'Activity 7'!$B$7:$B$13,'Activity 7'!N$7:N$13,\"N/A\",0,1)","v":"N/A"},{"$f":"_xlfn.XLOOKUP($E47,'Activity 7'!$B$7:$B$13,'Activity 7'!O$7:O$13,\"N/A\",0,1)","v":"N/A"},{"$f":"_xlfn.XLOOKUP($E47,'Activity 7'!$B$7:$B$13,'Activity 7'!P$7:P$13,\"N/A\",0,1)","v":"N/A"},{"$f":"_xlfn.XLOOKUP($E47,'Activity 7'!$B$7:$B$13,'Activity 7'!Q$7:Q$13,\"N/A\",0,1)","v":"N/A"},{"$f":"_xlfn.XLOOKUP($E47,'Activity 7'!$B$7:$B$13,'Activity 7'!R$7:R$13,\"N/A\",0,1)","v":"N/A"},{"$f":"_xlfn.XLOOKUP($E47,'Activity 7'!$B$7:$B$13,'Activity 7'!S$7:S$13,\"N/A\",0,1)","v":"N/A"},{"$f":"_xlfn.XLOOKUP($E47,'Activity 7'!$B$7:$B$13,'Activity 7'!T$7:T$13,\"N/A\",0,1)","v":"N/A"},{"$f":"_xlfn.XLOOKUP($E47,'Activity 7'!$B$7:$B$13,'Activity 7'!U$7:U$13,\"N/A\",0,1)","v":"N/A"},{"$f":"_xlfn.XLOOKUP($E47,'Activity 7'!$B$7:$B$13,'Activity 7'!V$7:V$13,\"N/A\",0,1)","v":"N/A"},{"$f":"_xlfn.XLOOKUP($E47,'Activity 7'!$B$17:$B$23,'Activity 7'!E$17:E$23,\"N/A\",0,1)","v":"N/A"},{"$f":"_xlfn.XLOOKUP($E47,'Activity 7'!$B$17:$B$23,'Activity 7'!G$17:G$23,\"N/A\",0,1)","v":"N/A"},{"$f":"_xlfn.XLOOKUP($E47,'Activity 7'!$B$17:$B$23,'Activity 7'!I$17:I$23,\"N/A\",0,1)","v":"N/A"},{"$f":"_xlfn.XLOOKUP($E47,'Activity 7'!$B$17:$B$23,'Activity 7'!J$17:J$23,\"N/A\",0,1)","v":"N/A"},{"$f":"_xlfn.XLOOKUP($E47,'Activity 7'!$B$17:$B$23,'Activity 7'!K$17:K$23,\"N/A\",0,1)","v":"N/A"},{"$f":"_xlfn.XLOOKUP($E47,'Activity 7'!$B$17:$B$23,'Activity 7'!L$17:L$23,\"N/A\",0,1)","v":"N/A"},{"$f":"_xlfn.XLOOKUP($E47,'Activity 7'!$B$17:$B$23,'Activity 7'!M$17:M$23,\"N/A\",0,1)","v":"N/A"},{"$f":"_xlfn.XLOOKUP($E47,'Activity 7'!$B$17:$B$23,'Activity 7'!N$17:N$23,\"N/A\",0,1)","v":"N/A"},{"$f":"_xlfn.XLOOKUP($E47,'Activity 7'!$B$17:$B$23,'Activity 7'!P$17:P$23,\"N/A\",0,1)","v":"N/A"},{"$f":"_xlfn.XLOOKUP($E47,'Activity 8'!$B$7:$B$13,'Activity 8'!A$7:A$13,\"No\",0,1)","v":"No"},{"$f":"_xlfn.XLOOKUP($E47,'Activity 8'!$B$7:$B$13,'Activity 8'!I$7:I$13,\"N/A\",0,1)","v":"N/A"},{"$f":"_xlfn.XLOOKUP($E47,'Activity 8'!$B$7:$B$13,'Activity 8'!J$7:J$13,\"N/A\",0,1)","v":"N/A"},{"$f":"_xlfn.XLOOKUP($E47,'Activity 8'!$B$7:$B$13,'Activity 8'!K$7:K$13,\"N/A\",0,1)","v":"N/A"},{"$f":"_xlfn.XLOOKUP($E47,'Activity 8'!$B$7:$B$13,'Activity 8'!L$7:L$13,\"N/A\",0,1)","v":"N/A"},{"$f":"_xlfn.XLOOKUP($E47,'Activity 8'!$B$7:$B$13,'Activity 8'!M$7:M$13,\"N/A\",0,1)","v":"N/A"},{"$f":"_xlfn.XLOOKUP($E47,'Activity 8'!$B$7:$B$13,'Activity 8'!N$7:N$13,\"N/A\",0,1)","v":"N/A"},{"$f":"_xlfn.XLOOKUP($E47,'Activity 8'!$B$7:$B$13,'Activity 8'!O$7:O$13,\"N/A\",0,1)","v":"N/A"},{"$f":"_xlfn.XLOOKUP($E47,'Activity 8'!$B$7:$B$13,'Activity 8'!P$7:P$13,\"N/A\",0,1)","v":"N/A"},{"$f":"_xlfn.XLOOKUP($E47,'Activity 8'!$B$7:$B$13,'Activity 8'!Q$7:Q$13,\"N/A\",0,1)","v":"N/A"},{"$f":"_xlfn.XLOOKUP($E47,'Activity 8'!$B$7:$B$13,'Activity 8'!R$7:R$13,\"N/A\",0,1)","v":"N/A"},{"$f":"_xlfn.XLOOKUP($E47,'Activity 8'!$B$7:$B$13,'Activity 8'!S$7:S$13,\"N/A\",0,1)","v":"N/A"},{"$f":"_xlfn.XLOOKUP($E47,'Activity 8'!$B$7:$B$13,'Activity 8'!T$7:T$13,\"N/A\",0,1)","v":"N/A"},{"$f":"_xlfn.XLOOKUP($E47,'Activity 8'!$B$7:$B$13,'Activity 8'!U$7:U$13,\"N/A\",0,1)","v":"N/A"},{"$f":"_xlfn.XLOOKUP($E47,'Activity 8'!$B$7:$B$13,'Activity 8'!V$7:V$13,\"N/A\",0,1)","v":"N/A"},{"$f":"_xlfn.XLOOKUP($E47,'Activity 8'!$B$17:$B$23,'Activity 8'!D$17:D$23,\"N/A\",0,1)","v":"N/A"},{"$f":"_xlfn.XLOOKUP($E47,'Activity 8'!$B$17:$B$23,'Activity 8'!E$17:E$23,\"N/A\",0,1)","v":"N/A"},{"$f":"_xlfn.XLOOKUP($E47,'Activity 8'!$B$17:$B$23,'Activity 8'!F$17:F$23,\"N/A\",0,1)","v":"N/A"},{"$f":"_xlfn.XLOOKUP($E47,'Activity 8'!$B$17:$B$23,'Activity 8'!G$17:G$23,\"N/A\",0,1)","v":"N/A"},{"$f":"_xlfn.XLOOKUP($E47,'Activity 8'!$B$17:$B$23,'Activity 8'!H$17:H$23,\"N/A\",0,1)","v":"N/A"},{"$f":"_xlfn.XLOOKUP($E47,'Activity 8'!$B$17:$B$23,'Activity 8'!I$17:I$23,\"N/A\",0,1)","v":"N/A"},{"$f":"_xlfn.XLOOKUP($E47,'Activity 8'!$B$17:$B$23,'Activity 8'!J$17:J$23,\"N/A\",0,1)","v":"N/A"},{"$f":"_xlfn.XLOOKUP($E47,'Activity 8'!$B$17:$B$23,'Activity 8'!K$17:K$23,\"N/A\",0,1)","v":"N/A"},{"$f":"_xlfn.XLOOKUP($E47,'Activity 8'!$B$17:$B$23,'Activity 8'!L$17:L$23,\"N/A\",0,1)","v":"N/A"},{"$f":"_xlfn.XLOOKUP($E47,'Activity 8'!$B$17:$B$23,'Activity 8'!M$17:M$23,\"N/A\",0,1)","v":"N/A"},{"$f":"_xlfn.XLOOKUP($E47,'Activity 8'!$B$17:$B$23,'Activity 8'!N$17:N$23,\"N/A\",0,1)","v":"N/A"},{"$f":"_xlfn.XLOOKUP($E47,'Activity 8'!$B$17:$B$23,'Activity 8'!P$17:P$23,\"N/A\",0,1)","v":"N/A"},{"$f":"_xlfn.XLOOKUP(E47,'Activity 9'!$B$7:$B$13,'Activity 9'!$A$7:$A$13,\"No\",0,1)","v":"No"},{"$f":"_xlfn.XLOOKUP($E47,'Activity 9'!$B$7:$B$13,'Activity 9'!J$7:J$13,\"N/A\",0,1)","v":"N/A"},{"$f":"_xlfn.XLOOKUP($E47,'Activity 9'!$B$7:$B$13,'Activity 9'!K$7:K$13,\"N/A\",0,1)","v":"N/A"},{"$f":"_xlfn.XLOOKUP($E47,'Activity 9'!$B$7:$B$13,'Activity 9'!L$7:L$13,\"N/A\",0,1)","v":"N/A"},{"$f":"_xlfn.XLOOKUP($E47,'Activity 9'!$B$7:$B$13,'Activity 9'!M$7:M$13,\"N/A\",0,1)","v":"N/A"},{"$f":"_xlfn.XLOOKUP($E47,'Activity 9'!$B$7:$B$13,'Activity 9'!N$7:N$13,\"N/A\",0,1)","v":"N/A"},{"$f":"_xlfn.XLOOKUP($E47,'Activity 9'!$B$7:$B$13,'Activity 9'!O$7:O$13,\"N/A\",0,1)","v":"N/A"},{"$f":"_xlfn.XLOOKUP($E47,'Activity 9'!$B$7:$B$13,'Activity 9'!P$7:P$13,\"N/A\",0,1)","v":"N/A"},{"$f":"_xlfn.XLOOKUP($E47,'Activity 9'!$B$7:$B$13,'Activity 9'!Q$7:Q$13,\"N/A\",0,1)","v":"N/A"},{"$f":"_xlfn.XLOOKUP($E47,'Activity 9'!$B$7:$B$13,'Activity 9'!R$7:R$13,\"N/A\",0,1)","v":"N/A"},{"$f":"_xlfn.XLOOKUP($E47,'Activity 9'!$B$7:$B$13,'Activity 9'!S$7:S$13,\"N/A\",0,1)","v":"N/A"},{"$f":"_xlfn.XLOOKUP($E47,'Activity 9'!$B$7:$B$13,'Activity 9'!T$7:T$13,\"N/A\",0,1)","v":"N/A"},{"$f":"_xlfn.XLOOKUP($E47,'Activity 9'!$B$17:$B$23,'Activity 9'!E$17:E$23,\"N/A\",0,1)","v":"N/A"},{"$f":"_xlfn.XLOOKUP($E47,'Activity 9'!$B$17:$B$23,'Activity 9'!F$17:F$23,\"N/A\",0,1)","v":"N/A"},{"$f":"_xlfn.XLOOKUP($E47,'Activity 9'!$B$17:$B$23,'Activity 9'!G$17:G$23,\"N/A\",0,1)","v":"N/A"},{"$f":"_xlfn.XLOOKUP($E47,'Activity 9'!$B$17:$B$23,'Activity 9'!H$17:H$23,\"N/A\",0,1)","v":"N/A"},{"$f":"_xlfn.XLOOKUP($E47,'Activity 9'!$B$17:$B$23,'Activity 9'!I$17:I$23,\"N/A\",0,1)","v":"N/A"},{"$f":"_xlfn.XLOOKUP($E47,'Activity 9'!$B$17:$B$23,'Activity 9'!J$17:J$23,\"N/A\",0,1)","v":"N/A"},{"$f":"_xlfn.XLOOKUP($E47,'Activity 9'!$B$17:$B$23,'Activity 9'!K$17:K$23,\"N/A\",0,1)","v":"N/A"},{"$f":"_xlfn.XLOOKUP($E47,'Activity 9'!$B$17:$B$23,'Activity 9'!L$17:L$23,\"N/A\",0,1)","v":"N/A"},{"$f":"_xlfn.XLOOKUP($E47,'Activity 9'!$B$17:$B$23,'Activity 9'!N$17:N$23,\"N/A\",0,1)","v":"N/A"},{"$f":"_xlfn.XLOOKUP($E47,'Activity 9'!$B$17:$B$23,'Activity 9'!O$17:O$23,\"N/A\",0,1)","v":"N/A"},{"$f":"_xlfn.XLOOKUP($E47,'Activity 9'!$B$17:$B$23,'Activity 9'!Q$17:Q$23,\"N/A\",0,1)","v":"N/A"},{"$f":"_xlfn.XLOOKUP($E47,'Activity 10'!$B$7:$B$13,'Activity 10'!A$7:A$13,\"No\",0,1)","v":"No"},{"$f":"_xlfn.XLOOKUP($E47,'Activity 10'!$B$7:$B$13,'Activity 10'!J$7:J$13,\"N/A\",0,1)","v":"N/A"},{"$f":"_xlfn.XLOOKUP($E47,'Activity 10'!$B$7:$B$13,'Activity 10'!K$7:K$13,\"N/A\",0,1)","v":"N/A"},{"$f":"_xlfn.XLOOKUP($E47,'Activity 10'!$B$7:$B$13,'Activity 10'!L$7:L$13,\"N/A\",0,1)","v":"N/A"},{"$f":"_xlfn.XLOOKUP($E47,'Activity 10'!$B$7:$B$13,'Activity 10'!M$7:M$13,\"N/A\",0,1)","v":"N/A"},{"$f":"_xlfn.XLOOKUP($E47,'Activity 10'!$B$7:$B$13,'Activity 10'!N$7:N$13,\"N/A\",0,1)","v":"N/A"},{"$f":"_xlfn.XLOOKUP($E47,'Activity 10'!$B$7:$B$13,'Activity 10'!O$7:O$13,\"N/A\",0,1)","v":"N/A"},{"$f":"_xlfn.XLOOKUP($E47,'Activity 10'!$B$7:$B$13,'Activity 10'!P$7:P$13,\"N/A\",0,1)","v":"N/A"},{"$f":"_xlfn.XLOOKUP($E47,'Activity 10'!$B$7:$B$13,'Activity 10'!Q$7:Q$13,\"N/A\",0,1)","v":"N/A"},{"$f":"_xlfn.XLOOKUP($E47,'Activity 10'!$B$7:$B$13,'Activity 10'!R$7:R$13,\"N/A\",0,1)","v":"N/A"},{"$f":"_xlfn.XLOOKUP($E47,'Activity 10'!$B$7:$B$13,'Activity 10'!S$7:S$13,\"N/A\",0,1)","v":"N/A"},{"$f":"_xlfn.XLOOKUP($E47,'Activity 10'!$B$7:$B$13,'Activity 10'!T$7:T$13,\"N/A\",0,1)","v":"N/A"},{"$f":"_xlfn.XLOOKUP($E47,'Activity 10'!$B$7:$B$13,'Activity 10'!U$7:U$13,\"N/A\",0,1)","v":"N/A"},{"$f":"_xlfn.XLOOKUP($E47,'Activity 10'!$B$7:$B$13,'Activity 10'!V$7:V$13,\"N/A\",0,1)","v":"N/A"},{"$f":"_xlfn.XLOOKUP($E47,'Activity 10'!$B$17:$B$23,'Activity 10'!E$17:E$23,\"N/A\",0,1)","v":"N/A"},{"$f":"_xlfn.XLOOKUP($E47,'Activity 10'!$B$17:$B$23,'Activity 10'!F$17:F$23,\"N/A\",0,1)","v":"N/A"},{"$f":"_xlfn.XLOOKUP($E47,'Activity 10'!$B$17:$B$23,'Activity 10'!G$17:G$23,\"N/A\",0,1)","v":"N/A"},{"$f":"_xlfn.XLOOKUP($E47,'Activity 10'!$B$17:$B$23,'Activity 10'!H$17:H$23,\"N/A\",0,1)","v":"N/A"},{"$f":"_xlfn.XLOOKUP($E47,'Activity 10'!$B$17:$B$23,'Activity 10'!I$17:I$23,\"N/A\",0,1)","v":"N/A"},{"$f":"_xlfn.XLOOKUP($E47,'Activity 10'!$B$17:$B$23,'Activity 10'!J$17:J$23,\"N/A\",0,1)","v":"N/A"},{"$f":"_xlfn.XLOOKUP($E47,'Activity 10'!$B$17:$B$23,'Activity 10'!K$17:K$23,\"N/A\",0,1)","v":"N/A"},{"$f":"_xlfn.XLOOKUP($E47,'Activity 10'!$B$17:$B$23,'Activity 10'!L$17:L$23,\"N/A\",0,1)","v":"N/A"},{"$f":"_xlfn.XLOOKUP($E47,'Activity 10'!$B$17:$B$23,'Activity 10'!M$17:M$23,\"N/A\",0,1)","v":"N/A"},{"$f":"_xlfn.XLOOKUP($E47,'Activity 10'!$B$17:$B$23,'Activity 10'!N$17:N$23,\"N/A\",0,1)","v":"N/A"},{"$f":"_xlfn.XLOOKUP($E47,'Activity 10'!$B$17:$B$23,'Activity 10'!P$17:P$23,\"N/A\",0,1)","v":"N/A"},{"$f":"_xlfn.XLOOKUP($E47,'Competitive Activity 1'!B$7:B$13,'Competitive Activity 1'!A$7:A$13,\"No\",0,1)","v":"No"},{"$f":"_xlfn.XLOOKUP($E47,'Competitive Activity 1'!$B$7:$B$13,'Competitive Activity 1'!H$7:H$13,\"N/A\",0,1)","v":"N/A"},{"$f":"_xlfn.XLOOKUP($E47,'Competitive Activity 1'!$B$7:$B$13,'Competitive Activity 1'!I$7:I$13,\"N/A\",0,1)","v":"N/A"},{"$f":"_xlfn.XLOOKUP($E47,'Competitive Activity 1'!$B$7:$B$13,'Competitive Activity 1'!J$7:J$13,\"N/A\",0,1)","v":"N/A"},{"$f":"_xlfn.XLOOKUP($E47,'Competitive Activity 1'!$B$7:$B$13,'Competitive Activity 1'!K$7:K$13,\"N/A\",0,1)","v":"N/A"},{"$f":"_xlfn.XLOOKUP($E47,'Competitive Activity 1'!$B$7:$B$13,'Competitive Activity 1'!L$7:L$13,\"N/A\",0,1)","v":"N/A"},{"$f":"_xlfn.XLOOKUP($E47,'Competitive Activity 1'!$B$7:$B$13,'Competitive Activity 1'!M$7:M$13,\"N/A\",0,1)","v":"N/A"},{"$f":"_xlfn.XLOOKUP($E47,'Competitive Activity 1'!$B$7:$B$13,'Competitive Activity 1'!N$7:N$13,\"N/A\",0,1)","v":"N/A"},{"$f":"_xlfn.XLOOKUP($E47,'Competitive Activity 1'!$B$7:$B$13,'Competitive Activity 1'!O$7:O$13,\"N/A\",0,1)","v":"N/A"},{"$f":"_xlfn.XLOOKUP($E47,'Competitive Activity 1'!$B$7:$B$13,'Competitive Activity 1'!P$7:P$13,\"N/A\",0,1)","v":"N/A"},{"$f":"_xlfn.XLOOKUP($E47,'Competitive Activity 1'!$B$7:$B$13,'Competitive Activity 1'!Q$7:Q$13,\"N/A\",0,1)","v":"N/A"},{"$f":"_xlfn.XLOOKUP($E47,'Competitive Activity 1'!$B$7:$B$13,'Competitive Activity 1'!R$7:R$13,\"N/A\",0,1)","v":"N/A"},{"$f":"_xlfn.XLOOKUP($E47,'Competitive Activity 1'!$B$7:$B$13,'Competitive Activity 1'!S$7:S$13,\"N/A\",0,1)","v":"N/A"},{"$f":"_xlfn.XLOOKUP($E47,'Competitive Activity 1'!$B$7:$B$13,'Competitive Activity 1'!T$7:T$13,\"N/A\",0,1)","v":"N/A"},{"$f":"_xlfn.XLOOKUP($E47,'Competitive Activity 1'!$B$7:$B$13,'Competitive Activity 1'!U$7:U$13,\"N/A\",0,1)","v":"N/A"},{"$f":"_xlfn.XLOOKUP($E47,'Competitive Activity 1'!$B$17:$B$23,'Competitive Activity 1'!C$17:C$23,\"N/A\",0,1)","v":"N/A"},{"$f":"_xlfn.XLOOKUP($E47,'Competitive Activity 1'!$B$17:$B$23,'Competitive Activity 1'!D$17:D$23,\"N/A\",0,1)","v":"N/A"},{"$f":"_xlfn.XLOOKUP($E47,'Competitive Activity 1'!$B$17:$B$23,'Competitive Activity 1'!E$17:E$23,\"N/A\",0,1)","v":"N/A"},{"$f":"_xlfn.XLOOKUP($E47,'Competitive Activity 1'!$B$17:$B$23,'Competitive Activity 1'!F$17:F$23,\"N/A\",0,1)","v":"N/A"},{"$f":"_xlfn.XLOOKUP($E47,'Competitive Activity 1'!$B$17:$B$23,'Competitive Activity 1'!G$17:G$23,\"N/A\",0,1)","v":"N/A"},{"$f":"_xlfn.XLOOKUP($E47,'Competitive Activity 1'!$B$17:$B$23,'Competitive Activity 1'!H$17:H$23,\"N/A\",0,1)","v":"N/A"},{"$f":"_xlfn.XLOOKUP($E47,'Competitive Activity 1'!$B$17:$B$23,'Competitive Activity 1'!I$17:I$23,\"N/A\",0,1)","v":"N/A"},{"$f":"_xlfn.XLOOKUP($E47,'Competitive Activity 1'!$B$17:$B$23,'Competitive Activity 1'!J$17:J$23,\"N/A\",0,1)","v":"N/A"},{"$f":"_xlfn.XLOOKUP($E47,'Competitive Activity 1'!$B$17:$B$23,'Competitive Activity 1'!K$17:K$23,\"N/A\",0,1)","v":"N/A"},{"$f":"_xlfn.XLOOKUP($E47,'Competitive Activity 1'!$B$17:$B$23,'Competitive Activity 1'!M$17:M$23,\"N/A\",0,1)","v":"N/A"},{"$f":"_xlfn.XLOOKUP($E47,'Competitive Activity 1'!$B$17:$B$23,'Competitive Activity 1'!N$17:N$23,\"N/A\",0,1)","v":"N/A"},{"$f":"_xlfn.XLOOKUP($E47,'Competitive Activity 1'!$B$17:$B$23,'Competitive Activity 1'!P$17:P$23,\"N/A\",0,1)","v":"N/A"},{"$f":"_xlfn.XLOOKUP($E47,'Competitive Activity 2'!$B$7:$B$13,'Competitive Activity 2'!A$7:A$13,\"No\",0)","v":"No"},{"$f":"_xlfn.XLOOKUP($E47,'Competitive Activity 2'!$B$7:$B$13,'Competitive Activity 2'!L$7:L$13,\"N/A\",0)","v":"N/A"},{"$f":"_xlfn.XLOOKUP($E47,'Competitive Activity 2'!$B$7:$B$13,'Competitive Activity 2'!M$7:M$13,\"N/A\",0)","v":"N/A"},{"$f":"_xlfn.XLOOKUP($E47,'Competitive Activity 2'!$B$7:$B$13,'Competitive Activity 2'!N$7:N$13,\"N/A\",0)","v":"N/A"},{"$f":"_xlfn.XLOOKUP($E47,'Competitive Activity 2'!$B$7:$B$13,'Competitive Activity 2'!O$7:O$13,\"N/A\",0)","v":"N/A"},{"$f":"_xlfn.XLOOKUP($E47,'Competitive Activity 2'!$B$7:$B$13,'Competitive Activity 2'!P$7:P$13,\"N/A\",0)","v":"N/A"},{"$f":"_xlfn.XLOOKUP($E47,'Competitive Activity 2'!$B$7:$B$13,'Competitive Activity 2'!Q$7:Q$13,\"N/A\",0)","v":"N/A"},{"$f":"_xlfn.XLOOKUP($E47,'Competitive Activity 2'!$B$7:$B$13,'Competitive Activity 2'!R$7:R$13,\"N/A\",0)","v":"N/A"},{"$f":"_xlfn.XLOOKUP($E47,'Competitive Activity 2'!$B$7:$B$13,'Competitive Activity 2'!S$7:S$13,\"N/A\",0)","v":"N/A"},{"$f":"_xlfn.XLOOKUP($E47,'Competitive Activity 2'!$B$7:$B$13,'Competitive Activity 2'!T$7:T$13,\"N/A\",0)","v":"N/A"},{"$f":"_xlfn.XLOOKUP($E47,'Competitive Activity 2'!$B$7:$B$13,'Competitive Activity 2'!U$7:U$13,\"N/A\",0)","v":"N/A"},{"$f":"_xlfn.XLOOKUP($E47,'Competitive Activity 2'!$B$17:$B$23,'Competitive Activity 2'!D$17:D$23,\"N/A\",0)","v":"N/A"},{"$f":"_xlfn.XLOOKUP($E47,'Competitive Activity 2'!$B$17:$B$23,'Competitive Activity 2'!E$17:E$23,\"N/A\",0)","v":"N/A"},{"$f":"_xlfn.XLOOKUP($E47,'Competitive Activity 2'!$B$17:$B$23,'Competitive Activity 2'!F$17:F$23,\"N/A\",0)","v":"N/A"},{"$f":"_xlfn.XLOOKUP($E47,'Competitive Activity 2'!$B$17:$B$23,'Competitive Activity 2'!G$17:G$23,\"N/A\",0)","v":"N/A"},{"$f":"_xlfn.XLOOKUP($E47,'Competitive Activity 2'!$B$17:$B$23,'Competitive Activity 2'!H$17:H$23,\"N/A\",0)","v":"N/A"},{"$f":"_xlfn.XLOOKUP($E47,'Competitive Activity 2'!$B$17:$B$23,'Competitive Activity 2'!I$17:I$23,\"N/A\",0)","v":"N/A"},{"$f":"_xlfn.XLOOKUP($E47,'Competitive Activity 2'!$B$17:$B$23,'Competitive Activity 2'!J$17:J$23,\"N/A\",0)","v":"N/A"},{"$f":"_xlfn.XLOOKUP($E47,'Competitive Activity 2'!$B$17:$B$23,'Competitive Activity 2'!K$17:K$23,\"N/A\",0)","v":"N/A"},{"$f":"_xlfn.XLOOKUP($E47,'Competitive Activity 2'!$B$17:$B$23,'Competitive Activity 2'!L$17:L$23,\"N/A\",0)","v":"N/A"},{"$f":"_xlfn.XLOOKUP($E47,'Competitive Activity 2'!$B$17:$B$23,'Competitive Activity 2'!M$17:M$23,\"N/A\",0)","v":"N/A"},{"$f":"_xlfn.XLOOKUP($E47,'Competitive Activity 2'!$B$17:$B$23,'Competitive Activity 2'!N$17:N$23,\"N/A\",0)","v":"N/A"},{"$f":"_xlfn.XLOOKUP($E47,'Competitive Activity 2'!$B$27:$B$33,'Competitive Activity 2'!D$27:D$33,\"N/A\",0)","v":"N/A"},{"$f":"_xlfn.XLOOKUP($E47,'Competitive Activity 2'!$B$27:$B$33,'Competitive Activity 2'!E$27:E$33,\"N/A\",0)","v":"N/A"},{"$f":"_xlfn.XLOOKUP($E47,'Competitive Activity 2'!$B$27:$B$33,'Competitive Activity 2'!F$27:F$33,\"N/A\",0)","v":"N/A"},{"$f":"_xlfn.XLOOKUP($E47,'Competitive Activity 2'!$B$27:$B$33,'Competitive Activity 2'!G$27:G$33,\"N/A\",0)","v":"N/A"},{"$f":"_xlfn.XLOOKUP($E47,'Competitive Activity 2'!$B$27:$B$33,'Competitive Activity 2'!H$27:H$33,\"N/A\",0)","v":"N/A"},{"$f":"_xlfn.XLOOKUP($E47,'Competitive Activity 2'!$B$27:$B$33,'Competitive Activity 2'!I$27:I$33,\"N/A\",0)","v":"N/A"},{"$f":"_xlfn.XLOOKUP($E47,'Competitive Activity 2'!$B$27:$B$33,'Competitive Activity 2'!J$27:J$33,\"N/A\",0)","v":"N/A"},{"$f":"_xlfn.XLOOKUP($E47,'Competitive Activity 2'!$B$27:$B$33,'Competitive Activity 2'!K$27:K$33,\"N/A\",0)","v":"N/A"},{"$f":"_xlfn.XLOOKUP($E47,'Competitive Activity 2'!$B$27:$B$33,'Competitive Activity 2'!M$27:M$33,\"N/A\",0)","v":"N/A"}]
[{"$f":"'1-Cover Sheet'!$C$8","v":"Select One"},{"$f":"'1-Cover Sheet'!$F$8","v":"Select One"},{"$f":"'Summary Sheet'!$D$8","v":0},{"$f":"'Summary Sheet'!$D$10","v":0},{"$f":"'Drop Down Box'!B212","v":0},{"$f":"'Drop Down Box'!C212","v":0},{"$f":"'Drop Down Box'!D212","v":"Select One"},{"$f":"_xlfn.XLOOKUP(E48,'Drop Down Box'!$B$166:$B$249,'Drop Down Box'!$A$166:$A$249,\"Unknown\",0)","v":"Activity 1"},{"$f":"_xlfn.XLOOKUP($E48,'Activity 7'!$B$17:$B$23,'Activity 7'!$O$17:$O$23,\"N/A\",0)","v":"N/A"},{"$f":"_xlfn.XLOOKUP($E48,'Activity 7'!$B$17:$B$23,'Activity 7'!$Q$17:$Q$23,\"N/A\",0)","v":"N/A"},{"$f":"_xlfn.XLOOKUP($E48,'Activity 7'!$B$7:$B$13,'Activity 7'!$H$7:$H$13,\"N/A\",0)","v":"N/A"},{"$f":"_xlfn.XLOOKUP($E48,'Activity 7'!$B$7:$B$13,'Activity 7'!I$7:I$13,\"N/A\",0)","v":"N/A"},{"$f":"_xlfn.XLOOKUP($E48,'Activity 7'!$B$7:$B$13,'Activity 7'!J$7:J$13,\"N/A\",0)","v":"N/A"},{"$f":"_xlfn.XLOOKUP($E48,'Activity 1'!$B$7:$B$13,'Activity 1'!$A$7:$A$13,\"No\",0,1)","v":"No"},{"$f":"_xlfn.XLOOKUP($E48,'Activity 1'!$B$7:$B$13,'Activity 1'!$H$7:$H$13,\"N/A\",0,1)","v":"N/A"},{"$f":"_xlfn.XLOOKUP($E48,'Activity 1'!$B$7:$B$13,'Activity 1'!I$7:I$13,\"N/A\",0,1)","v":"N/A"},{"$f":"_xlfn.XLOOKUP($E48,'Activity 1'!$B$7:$B$13,'Activity 1'!J$7:J$13,\"N/A\",0,1)","v":"N/A"},{"$f":"_xlfn.XLOOKUP($E48,'Activity 1'!$B$7:$B$13,'Activity 1'!K$7:K$13,\"N/A\",0,1)","v":"N/A"},{"$f":"_xlfn.XLOOKUP($E48,'Activity 1'!$B$7:$B$13,'Activity 1'!L$7:L$13,\"N/A\",0,1)","v":"N/A"},{"$f":"_xlfn.XLOOKUP($E48,'Activity 1'!$B$7:$B$13,'Activity 1'!M$7:M$13,\"N/A\",0,1)","v":"N/A"},{"$f":"_xlfn.XLOOKUP($E48,'Activity 1'!$B$7:$B$13,'Activity 1'!N$7:N$13,\"N/A\",0,1)","v":"N/A"},0,{"$f":"_xlfn.XLOOKUP($E48,'Activity 1'!$B$7:$B$13,'Activity 1'!O$7:O$13,\"N/A\",0,1)","v":"N/A"},{"$f":"_xlfn.XLOOKUP($E48,'Activity 1'!$B$7:$B$13,'Activity 1'!P$7:P$13,\"N/A\",0,1)","v":"N/A"},{"$f":"_xlfn.XLOOKUP($E48,'Activity 1'!$B$7:$B$13,'Activity 1'!Q$7:Q$13,\"N/A\",0,1)","v":"N/A"},{"$f":"_xlfn.XLOOKUP($E48,'Activity 1'!$B$7:$B$13,'Activity 1'!R$7:R$13,\"N/A\",0,1)","v":"N/A"},{"$f":"_xlfn.XLOOKUP($E48,'Activity 1'!$B$7:$B$13,'Activity 1'!S$7:S$13,\"N/A\",0,1)","v":"N/A"},{"$f":"_xlfn.XLOOKUP($E48,'Activity 1'!$B$7:$B$13,'Activity 1'!T$7:T$13,\"N/A\",0,1)","v":"N/A"},{"$f":"_xlfn.XLOOKUP($E48,'Activity 1'!$B$7:$B$13,'Activity 1'!U$7:U$13,\"N/A\",0,1)","v":"N/A"},{"$f":"_xlfn.XLOOKUP($E48,'Activity 1'!$B$7:$B$13,'Activity 1'!V$7:V$13,\"N/A\",0,1)","v":"N/A"},{"$f":"_xlfn.XLOOKUP($E48,'Activity 1'!$B$17:$B$23,'Activity 1'!C$17:C$23,\"N/A\",0,1)","v":"N/A"},{"$f":"_xlfn.XLOOKUP($E48,'Activity 1'!$B$17:$B$23,'Activity 1'!D$17:D$23,\"N/A\",0,1)","v":"N/A"},{"$f":"_xlfn.XLOOKUP($E48,'Activity 1'!$B$17:$B$23,'Activity 1'!E$17:E$23,\"N/A\",0,1)","v":"N/A"},{"$f":"_xlfn.XLOOKUP($E48,'Activity 1'!$B$17:$B$23,'Activity 1'!F$17:F$23,\"N/A\",0,1)","v":"N/A"},{"$f":"_xlfn.XLOOKUP($E48,'Activity 1'!$B$17:$B$23,'Activity 1'!G$17:G$23,\"N/A\",0,1)","v":"N/A"},{"$f":"_xlfn.XLOOKUP($E48,'Activity 1'!$B$17:$B$23,'Activity 1'!H$17:H$23,\"N/A\",0,1)","v":"N/A"},{"$f":"_xlfn.XLOOKUP($E48,'Activity 1'!$B$17:$B$23,'Activity 1'!I$17:I$23,\"N/A\",0,1)","v":"N/A"},{"$f":"_xlfn.XLOOKUP($E48,'Activity 1'!$B$17:$B$23,'Activity 1'!J$17:J$23,\"N/A\",0,1)","v":"N/A"},{"$f":"_xlfn.XLOOKUP($E48,'Activity 1'!$B$17:$B$23,'Activity 1'!K$17:K$23,\"N/A\",0,1)","v":"N/A"},{"$f":"_xlfn.XLOOKUP($E48,'Activity 1'!$B$17:$B$23,'Activity 1'!L$17:L$23,\"N/A\",0,1)","v":"N/A"},{"$f":"_xlfn.XLOOKUP($E48,'Activity 1'!$B$17:$B$23,'Activity 1'!M$17:M$23,\"N/A\",0,1)","v":"N/A"},{"$f":"_xlfn.XLOOKUP($E48,'Activity 1'!$B$17:$B$23,'Activity 1'!O$17:O$23,\"N/A\",0,1)","v":"N/A"},{"$f":"_xlfn.XLOOKUP($E48,'Activity 1'!$B$17:$B$23,'Activity 1'!Q$17:Q$23,\"N/A\",0,1)","v":"N/A"},{"$f":"_xlfn.XLOOKUP($E48,'Activity 2'!$B$7:$B$13,'Activity 2'!$A$7:$A$13,\"No\",0,1)","v":"No"},{"$f":"_xlfn.XLOOKUP($E48,'Activity 2'!B$7:B$13,'Activity 2'!H$7:H$13,\"N/A\",0)","v":"N/A"},{"$f":"_xlfn.XLOOKUP($E48,'Activity 2'!C$7:C$13,'Activity 2'!I$7:I$13,\"N/A\",0)","v":"N/A"},{"$f":"_xlfn.XLOOKUP($E48,'Activity 2'!D$7:D$13,'Activity 2'!J$7:J$13,\"N/A\",0)","v":"N/A"},{"$f":"_xlfn.XLOOKUP($E48,'Activity 2'!E$7:E$13,'Activity 2'!K$7:K$13,\"N/A\",0)","v":"N/A"},{"$f":"_xlfn.XLOOKUP($E48,'Activity 2'!F$7:F$13,'Activity 2'!L$7:L$13,\"N/A\",0)","v":"N/A"},{"$f":"_xlfn.XLOOKUP($E48,'Activity 2'!G$7:G$13,'Activity 2'!M$7:M$13,\"N/A\",0)","v":"N/A"},{"$f":"_xlfn.XLOOKUP($E48,'Activity 2'!H$7:H$13,'Activity 2'!N$7:N$13,\"N/A\",0)","v":"N/A"},{"$f":"_xlfn.XLOOKUP($E48,'Activity 2'!I$7:I$13,'Activity 2'!O$7:O$13,\"N/A\",0)","v":"N/A"},{"$f":"_xlfn.XLOOKUP($E48,'Activity 2'!J$7:J$13,'Activity 2'!P$7:P$13,\"N/A\",0)","v":"N/A"},{"$f":"_xlfn.XLOOKUP($E48,'Activity 2'!K$7:K$13,'Activity 2'!Q$7:Q$13,\"N/A\",0)","v":"N/A"},{"$f":"_xlfn.XLOOKUP($E48,'Activity 2'!L$7:L$13,'Activity 2'!R$7:R$13,\"N/A\",0)","v":"N/A"},{"$f":"_xlfn.XLOOKUP($E48,'Activity 2'!M$7:M$13,'Activity 2'!S$7:S$13,\"N/A\",0)","v":"N/A"},{"$f":"_xlfn.XLOOKUP($E48,'Activity 2'!N$7:N$13,'Activity 2'!T$7:T$13,\"N/A\",0)","v":"N/A"},{"$f":"_xlfn.XLOOKUP($E48,'Activity 2'!O$7:O$13,'Activity 2'!U$7:U$13,\"N/A\",0)","v":"N/A"},{"$f":"_xlfn.XLOOKUP($E48,'Activity 2'!P$7:P$13,'Activity 2'!V$7:V$13,\"N/A\",0)","v":"N/A"},{"$f":"_xlfn.XLOOKUP($E48,'Activity 2'!$B$17:$B$23,'Activity 2'!C$17:C$23,\"N/A\",0,1)","v":"N/A"},{"$f":"_xlfn.XLOOKUP($E48,'Activity 2'!$B$17:$B$23,'Activity 2'!D$17:D$23,\"N/A\",0,1)","v":"N/A"},{"$f":"_xlfn.XLOOKUP($E48,'Activity 2'!$B$17:$B$23,'Activity 2'!E$17:E$23,\"N/A\",0,1)","v":"N/A"},{"$f":"_xlfn.XLOOKUP($E48,'Activity 2'!$B$17:$B$23,'Activity 2'!F$17:F$23,\"N/A\",0,1)","v":"N/A"},{"$f":"_xlfn.XLOOKUP($E48,'Activity 2'!$B$17:$B$23,'Activity 2'!G$17:G$23,\"N/A\",0,1)","v":"N/A"},{"$f":"_xlfn.XLOOKUP($E48,'Activity 2'!$B$17:$B$23,'Activity 2'!H$17:H$23,\"N/A\",0,1)","v":"N/A"},{"$f":"_xlfn.XLOOKUP($E48,'Activity 2'!$B$17:$B$23,'Activity 2'!I$17:I$23,\"N/A\",0,1)","v":"N/A"},{"$f":"_xlfn.XLOOKUP($E48,'Activity 2'!$B$17:$B$23,'Activity 2'!J$17:J$23,\"N/A\",0,1)","v":"N/A"},{"$f":"_xlfn.XLOOKUP($E48,'Activity 2'!$B$17:$B$23,'Activity 2'!K$17:K$23,\"N/A\",0,1)","v":"N/A"},{"$f":"_xlfn.XLOOKUP($E48,'Activity 2'!$B$17:$B$23,'Activity 2'!L$17:L$23,\"N/A\",0,1)","v":"N/A"},{"$f":"_xlfn.XLOOKUP($E48,'Activity 2'!$B$17:$B$23,'Activity 2'!M$17:M$23,\"N/A\",0,1)","v":"N/A"},{"$f":"_xlfn.XLOOKUP($E48,'Activity 2'!$B$17:$B$23,'Activity 2'!O$17:O$23,\"N/A\",0,1)","v":"N/A"},{"$f":"_xlfn.XLOOKUP($E48,'Activity 2'!$B$17:$B$23,'Activity 2'!Q$17:Q$23,\"N/A\",0,1)","v":"N/A"},null,{"$f":"_xlfn.XLOOKUP($E48,'Activity 3'!$B$8:$B$14,'Activity 3'!K$8:K$14,\"N/A\",0,1)","v":"N/A"},{"$f":"_xlfn.XLOOKUP($E48,'Activity 3'!$B$8:$B$14,'Activity 3'!L$8:L$14,\"N/A\",0,1)","v":"N/A"},{"$f":"_xlfn.XLOOKUP($E48,'Activity 3'!$B$8:$B$14,'Activity 3'!M$8:M$14,\"N/A\",0,1)","v":"N/A"},{"$f":"_xlfn.XLOOKUP($E48,'Activity 3'!$B$8:$B$14,'Activity 3'!N$8:N$14,\"N/A\",0,1)","v":"N/A"},{"$f":"_xlfn.XLOOKUP($E48,'Activity 3'!$B$8:$B$14,'Activity 3'!O$8:O$14,\"N/A\",0,1)","v":"N/A"},{"$f":"_xlfn.XLOOKUP($E48,'Activity 3'!$B$8:$B$14,'Activity 3'!R$8:R$14,\"N/A\",0,1)","v":"N/A"},{"$f":"_xlfn.XLOOKUP($E48,'Activity 4'!$B$8:$B$14,'Activity 4'!$A$8:$A$14,\"No\",0,1)","v":"No"},{"$f":"_xlfn.XLOOKUP($E48,'Activity 4'!$B$8:$B$14,'Activity 4'!L$8:L$14,\"N/A\",0,1)","v":"N/A"},{"$f":"_xlfn.XLOOKUP($E48,'Activity 4'!$B$8:$B$14,'Activity 4'!I$8:I$14,\"N/A\",0,1)","v":"N/A"},{"$f":"_xlfn.XLOOKUP($E48,'Activity 4'!$B$8:$B$14,'Activity 4'!M$8:M$14,\"N/A\",0,1)","v":"N/A"},{"$f":"_xlfn.XLOOKUP($E48,'Activity 5'!$B$8:$B$14,'Activity 5'!$A$8:$A$14,\"No\",0,1)","v":"No"},{"$f":"_xlfn.XLOOKUP($E48,'Activity 5'!$B$8:$B$14,'Activity 5'!J$8:J$14,\"N/A\",0,1)","v":"N/A"},{"$f":"_xlfn.XLOOKUP($E48,'Activity 5'!$B$8:$B$14,'Activity 5'!K$8:K$14,\"N/A\",0,1)","v":"N/A"},{"$f":"_xlfn.XLOOKUP($E48,'Activity 5'!$B$8:$B$14,'Activity 5'!N$8:N$14,\"N/A\",0,1)","v":"N/A"},{"$f":"_xlfn.XLOOKUP($E48,'Activity 5'!$B$8:$B$14,'Activity 5'!O$8:O$14,\"N/A\",0,1)","v":"N/A"},{"$f":"_xlfn.XLOOKUP($E48,'Activity 5'!$B$8:$B$14,'Activity 5'!P$8:P$14,\"N/A\",0,1)","v":"N/A"},{"$f":"_xlfn.XLOOKUP($E48,'Activity 5'!$B$8:$B$14,'Activity 5'!Q$8:Q$14,\"N/A\",0,1)","v":"N/A"},{"$f":"_xlfn.XLOOKUP($E48,'Activity 5'!$B$8:$B$14,'Activity 5'!R$8:R$14,\"N/A\",0,1)","v":"N/A"},{"$f":"_xlfn.XLOOKUP($E48,'Activity 6'!$B$7:$B$13,'Activity 6'!A$7:A$13,\"No\",0,1)","v":"No"},{"$f":"_xlfn.XLOOKUP($E48,'Activity 6'!$B$7:$B$13,'Activity 6'!K$7:K$13,\"N/A\",0,1)","v":"N/A"},{"$f":"_xlfn.XLOOKUP($E48,'Activity 6'!$B$7:$B$13,'Activity 6'!L$7:L$13,\"N/A\",0,1)","v":"N/A"},{"$f":"_xlfn.XLOOKUP($E48,'Activity 6'!$B$7:$B$13,'Activity 6'!M$7:M$13,\"N/A\",0,1)","v":"N/A"},{"$f":"_xlfn.XLOOKUP($E48,'Activity 6'!$B$7:$B$13,'Activity 6'!N$7:N$13,\"N/A\",0,1)","v":"N/A"},{"$f":"_xlfn.XLOOKUP($E48,'Activity 6'!$B$7:$B$13,'Activity 6'!O$7:O$13,\"N/A\",0,1)","v":"N/A"},{"$f":"_xlfn.XLOOKUP($E48,'Activity 6'!$B$7:$B$13,'Activity 6'!P$7:P$13,\"N/A\",0,1)","v":"N/A"},{"$f":"_xlfn.XLOOKUP($E48,'Activity 6'!$B$7:$B$13,'Activity 6'!Q$7:Q$13,\"N/A\",0,1)","v":"N/A"},{"$f":"_xlfn.XLOOKUP($E48,'Activity 6'!$B$7:$B$13,'Activity 6'!R$7:R$13,\"N/A\",0,1)","v":"N/A"},{"$f":"_xlfn.XLOOKUP($E48,'Activity 6'!$B$7:$B$13,'Activity 6'!S$7:S$13,\"N/A\",0,1)","v":"N/A"},{"$f":"_xlfn.XLOOKUP($E48,'Activity 6'!$B$7:$B$13,'Activity 6'!T$7:T$13,\"N/A\",0,1)","v":"N/A"},{"$f":"_xlfn.XLOOKUP($E48,'Activity 6'!$B$7:$B$13,'Activity 6'!U$7:U$13,\"N/A\",0,1)","v":"N/A"},{"$f":"_xlfn.XLOOKUP($E48,'Activity 6'!$B$22:$B$28,'Activity 6'!C$22:C$28,\"N/A\",0,1)","v":"N/A"},{"$f":"_xlfn.XLOOKUP($E48,'Activity 6'!$B$22:$B$28,'Activity 6'!D$22:D$28,\"N/A\",0,1)","v":"N/A"},{"$f":"_xlfn.XLOOKUP($E48,'Activity 6'!$B$22:$B$28,'Activity 6'!E$22:E$28,\"N/A\",0,1)","v":"N/A"},{"$f":"_xlfn.XLOOKUP($E48,'Activity 6'!$B$22:$B$28,'Activity 6'!F$22:F$28,\"N/A\",0,1)","v":"N/A"},{"$f":"_xlfn.XLOOKUP($E48,'Activity 6'!$B$22:$B$28,'Activity 6'!G$22:G$28,\"N/A\",0,1)","v":"N/A"},{"$f":"_xlfn.XLOOKUP($E48,'Activity 6'!$B$22:$B$28,'Activity 6'!H$22:H$28,\"N/A\",0,1)","v":"N/A"},{"$f":"_xlfn.XLOOKUP($E48,'Activity 6'!$B$22:$B$28,'Activity 6'!I$22:I$28,\"N/A\",0,1)","v":"N/A"},{"$f":"_xlfn.XLOOKUP($E48,'Activity 6'!$B$22:$B$28,'Activity 6'!J$22:J$28,\"N/A\",0,1)","v":"N/A"},{"$f":"_xlfn.XLOOKUP($E48,'Activity 6'!$B$22:$B$28,'Activity 6'!K$22:K$28,\"N/A\",0,1)","v":"N/A"},{"$f":"_xlfn.XLOOKUP($E48,'Activity 6'!$B$22:$B$28,'Activity 6'!L$22:L$28,\"N/A\",0,1)","v":"N/A"},{"$f":"_xlfn.XLOOKUP($E48,'Activity 6'!$B$22:$B$28,'Activity 6'!M$22:M$28,\"N/A\",0,1)","v":"N/A"},{"$f":"_xlfn.XLOOKUP($E48,'Activity 6'!$B$22:$B$28,'Activity 6'!N$22:N$28,\"N/A\",0,1)","v":"N/A"},{"$f":"_xlfn.XLOOKUP($E48,'Activity 6'!$B$32:$B$38,'Activity 6'!C$32:C$38,\"N/A\",0,1)","v":"N/A"},{"$f":"_xlfn.XLOOKUP($E48,'Activity 6'!$B$32:$B$38,'Activity 6'!D$32:D$38,\"N/A\",0,1)","v":"N/A"},{"$f":"_xlfn.XLOOKUP($E48,'Activity 6'!$B$32:$B$38,'Activity 6'!E$32:E$38,\"N/A\",0,1)","v":"N/A"},{"$f":"_xlfn.XLOOKUP($E48,'Activity 6'!$B$32:$B$38,'Activity 6'!F$32:F$38,\"N/A\",0,1)","v":"N/A"},{"$f":"_xlfn.XLOOKUP($E48,'Activity 6'!$B$32:$B$38,'Activity 6'!G$32:G$38,\"N/A\",0,1)","v":"N/A"},{"$f":"_xlfn.XLOOKUP($E48,'Activity 6'!$B$32:$B$38,'Activity 6'!H$32:H$38,\"N/A\",0,1)","v":"N/A"},{"$f":"_xlfn.XLOOKUP($E48,'Activity 6'!$B$32:$B$38,'Activity 6'!I$32:I$38,\"N/A\",0,1)","v":"N/A"},{"$f":"_xlfn.XLOOKUP($E48,'Activity 6'!$B$32:$B$38,'Activity 6'!J$32:J$38,\"N/A\",0,1)","v":"N/A"},{"$f":"_xlfn.XLOOKUP($E48,'Activity 6'!$B$32:$B$38,'Activity 6'!K$32:K$38,\"N/A\",0,1)","v":"N/A"},{"$f":"_xlfn.XLOOKUP($E48,'Activity 6'!$B$32:$B$38,'Activity 6'!M$32:M$38,\"N/A\",0,1)","v":"N/A"},{"$f":"_xlfn.XLOOKUP($E48,'Activity 7'!$B$7:$B$13,'Activity 7'!$A$7:$A$13,\"No\",0,1)","v":"No"},{"$f":"_xlfn.XLOOKUP($E48,'Activity 7'!$B$7:$B$13,'Activity 7'!M$7:M$13,\"N/A\",0,1)","v":"N/A"},{"$f":"_xlfn.XLOOKUP($E48,'Activity 7'!$B$7:$B$13,'Activity 7'!K$7:K$13,\"N/A\",0,1)","v":"N/A"},{"$f":"_xlfn.XLOOKUP($E48,'Activity 7'!$B$7:$B$13,'Activity 7'!N$7:N$13,\"N/A\",0,1)","v":"N/A"},{"$f":"_xlfn.XLOOKUP($E48,'Activity 7'!$B$7:$B$13,'Activity 7'!O$7:O$13,\"N/A\",0,1)","v":"N/A"},{"$f":"_xlfn.XLOOKUP($E48,'Activity 7'!$B$7:$B$13,'Activity 7'!P$7:P$13,\"N/A\",0,1)","v":"N/A"},{"$f":"_xlfn.XLOOKUP($E48,'Activity 7'!$B$7:$B$13,'Activity 7'!Q$7:Q$13,\"N/A\",0,1)","v":"N/A"},{"$f":"_xlfn.XLOOKUP($E48,'Activity 7'!$B$7:$B$13,'Activity 7'!R$7:R$13,\"N/A\",0,1)","v":"N/A"},{"$f":"_xlfn.XLOOKUP($E48,'Activity 7'!$B$7:$B$13,'Activity 7'!S$7:S$13,\"N/A\",0,1)","v":"N/A"},{"$f":"_xlfn.XLOOKUP($E48,'Activity 7'!$B$7:$B$13,'Activity 7'!T$7:T$13,\"N/A\",0,1)","v":"N/A"},{"$f":"_xlfn.XLOOKUP($E48,'Activity 7'!$B$7:$B$13,'Activity 7'!U$7:U$13,\"N/A\",0,1)","v":"N/A"},{"$f":"_xlfn.XLOOKUP($E48,'Activity 7'!$B$7:$B$13,'Activity 7'!V$7:V$13,\"N/A\",0,1)","v":"N/A"},{"$f":"_xlfn.XLOOKUP($E48,'Activity 7'!$B$17:$B$23,'Activity 7'!E$17:E$23,\"N/A\",0,1)","v":"N/A"},{"$f":"_xlfn.XLOOKUP($E48,'Activity 7'!$B$17:$B$23,'Activity 7'!G$17:G$23,\"N/A\",0,1)","v":"N/A"},{"$f":"_xlfn.XLOOKUP($E48,'Activity 7'!$B$17:$B$23,'Activity 7'!I$17:I$23,\"N/A\",0,1)","v":"N/A"},{"$f":"_xlfn.XLOOKUP($E48,'Activity 7'!$B$17:$B$23,'Activity 7'!J$17:J$23,\"N/A\",0,1)","v":"N/A"},{"$f":"_xlfn.XLOOKUP($E48,'Activity 7'!$B$17:$B$23,'Activity 7'!K$17:K$23,\"N/A\",0,1)","v":"N/A"},{"$f":"_xlfn.XLOOKUP($E48,'Activity 7'!$B$17:$B$23,'Activity 7'!L$17:L$23,\"N/A\",0,1)","v":"N/A"},{"$f":"_xlfn.XLOOKUP($E48,'Activity 7'!$B$17:$B$23,'Activity 7'!M$17:M$23,\"N/A\",0,1)","v":"N/A"},{"$f":"_xlfn.XLOOKUP($E48,'Activity 7'!$B$17:$B$23,'Activity 7'!N$17:N$23,\"N/A\",0,1)","v":"N/A"},{"$f":"_xlfn.XLOOKUP($E48,'Activity 7'!$B$17:$B$23,'Activity 7'!P$17:P$23,\"N/A\",0,1)","v":"N/A"},{"$f":"_xlfn.XLOOKUP($E48,'Activity 8'!$B$7:$B$13,'Activity 8'!A$7:A$13,\"No\",0,1)","v":"No"},{"$f":"_xlfn.XLOOKUP($E48,'Activity 8'!$B$7:$B$13,'Activity 8'!I$7:I$13,\"N/A\",0,1)","v":"N/A"},{"$f":"_xlfn.XLOOKUP($E48,'Activity 8'!$B$7:$B$13,'Activity 8'!J$7:J$13,\"N/A\",0,1)","v":"N/A"},{"$f":"_xlfn.XLOOKUP($E48,'Activity 8'!$B$7:$B$13,'Activity 8'!K$7:K$13,\"N/A\",0,1)","v":"N/A"},{"$f":"_xlfn.XLOOKUP($E48,'Activity 8'!$B$7:$B$13,'Activity 8'!L$7:L$13,\"N/A\",0,1)","v":"N/A"},{"$f":"_xlfn.XLOOKUP($E48,'Activity 8'!$B$7:$B$13,'Activity 8'!M$7:M$13,\"N/A\",0,1)","v":"N/A"},{"$f":"_xlfn.XLOOKUP($E48,'Activity 8'!$B$7:$B$13,'Activity 8'!N$7:N$13,\"N/A\",0,1)","v":"N/A"},{"$f":"_xlfn.XLOOKUP($E48,'Activity 8'!$B$7:$B$13,'Activity 8'!O$7:O$13,\"N/A\",0,1)","v":"N/A"},{"$f":"_xlfn.XLOOKUP($E48,'Activity 8'!$B$7:$B$13,'Activity 8'!P$7:P$13,\"N/A\",0,1)","v":"N/A"},{"$f":"_xlfn.XLOOKUP($E48,'Activity 8'!$B$7:$B$13,'Activity 8'!Q$7:Q$13,\"N/A\",0,1)","v":"N/A"},{"$f":"_xlfn.XLOOKUP($E48,'Activity 8'!$B$7:$B$13,'Activity 8'!R$7:R$13,\"N/A\",0,1)","v":"N/A"},{"$f":"_xlfn.XLOOKUP($E48,'Activity 8'!$B$7:$B$13,'Activity 8'!S$7:S$13,\"N/A\",0,1)","v":"N/A"},{"$f":"_xlfn.XLOOKUP($E48,'Activity 8'!$B$7:$B$13,'Activity 8'!T$7:T$13,\"N/A\",0,1)","v":"N/A"},{"$f":"_xlfn.XLOOKUP($E48,'Activity 8'!$B$7:$B$13,'Activity 8'!U$7:U$13,\"N/A\",0,1)","v":"N/A"},{"$f":"_xlfn.XLOOKUP($E48,'Activity 8'!$B$7:$B$13,'Activity 8'!V$7:V$13,\"N/A\",0,1)","v":"N/A"},{"$f":"_xlfn.XLOOKUP($E48,'Activity 8'!$B$17:$B$23,'Activity 8'!D$17:D$23,\"N/A\",0,1)","v":"N/A"},{"$f":"_xlfn.XLOOKUP($E48,'Activity 8'!$B$17:$B$23,'Activity 8'!E$17:E$23,\"N/A\",0,1)","v":"N/A"},{"$f":"_xlfn.XLOOKUP($E48,'Activity 8'!$B$17:$B$23,'Activity 8'!F$17:F$23,\"N/A\",0,1)","v":"N/A"},{"$f":"_xlfn.XLOOKUP($E48,'Activity 8'!$B$17:$B$23,'Activity 8'!G$17:G$23,\"N/A\",0,1)","v":"N/A"},{"$f":"_xlfn.XLOOKUP($E48,'Activity 8'!$B$17:$B$23,'Activity 8'!H$17:H$23,\"N/A\",0,1)","v":"N/A"},{"$f":"_xlfn.XLOOKUP($E48,'Activity 8'!$B$17:$B$23,'Activity 8'!I$17:I$23,\"N/A\",0,1)","v":"N/A"},{"$f":"_xlfn.XLOOKUP($E48,'Activity 8'!$B$17:$B$23,'Activity 8'!J$17:J$23,\"N/A\",0,1)","v":"N/A"},{"$f":"_xlfn.XLOOKUP($E48,'Activity 8'!$B$17:$B$23,'Activity 8'!K$17:K$23,\"N/A\",0,1)","v":"N/A"},{"$f":"_xlfn.XLOOKUP($E48,'Activity 8'!$B$17:$B$23,'Activity 8'!L$17:L$23,\"N/A\",0,1)","v":"N/A"},{"$f":"_xlfn.XLOOKUP($E48,'Activity 8'!$B$17:$B$23,'Activity 8'!M$17:M$23,\"N/A\",0,1)","v":"N/A"},{"$f":"_xlfn.XLOOKUP($E48,'Activity 8'!$B$17:$B$23,'Activity 8'!N$17:N$23,\"N/A\",0,1)","v":"N/A"},{"$f":"_xlfn.XLOOKUP($E48,'Activity 8'!$B$17:$B$23,'Activity 8'!P$17:P$23,\"N/A\",0,1)","v":"N/A"},{"$f":"_xlfn.XLOOKUP(E48,'Activity 9'!$B$7:$B$13,'Activity 9'!$A$7:$A$13,\"No\",0,1)","v":"No"},{"$f":"_xlfn.XLOOKUP($E48,'Activity 9'!$B$7:$B$13,'Activity 9'!J$7:J$13,\"N/A\",0,1)","v":"N/A"},{"$f":"_xlfn.XLOOKUP($E48,'Activity 9'!$B$7:$B$13,'Activity 9'!K$7:K$13,\"N/A\",0,1)","v":"N/A"},{"$f":"_xlfn.XLOOKUP($E48,'Activity 9'!$B$7:$B$13,'Activity 9'!L$7:L$13,\"N/A\",0,1)","v":"N/A"},{"$f":"_xlfn.XLOOKUP($E48,'Activity 9'!$B$7:$B$13,'Activity 9'!M$7:M$13,\"N/A\",0,1)","v":"N/A"},{"$f":"_xlfn.XLOOKUP($E48,'Activity 9'!$B$7:$B$13,'Activity 9'!N$7:N$13,\"N/A\",0,1)","v":"N/A"},{"$f":"_xlfn.XLOOKUP($E48,'Activity 9'!$B$7:$B$13,'Activity 9'!O$7:O$13,\"N/A\",0,1)","v":"N/A"},{"$f":"_xlfn.XLOOKUP($E48,'Activity 9'!$B$7:$B$13,'Activity 9'!P$7:P$13,\"N/A\",0,1)","v":"N/A"},{"$f":"_xlfn.XLOOKUP($E48,'Activity 9'!$B$7:$B$13,'Activity 9'!Q$7:Q$13,\"N/A\",0,1)","v":"N/A"},{"$f":"_xlfn.XLOOKUP($E48,'Activity 9'!$B$7:$B$13,'Activity 9'!R$7:R$13,\"N/A\",0,1)","v":"N/A"},{"$f":"_xlfn.XLOOKUP($E48,'Activity 9'!$B$7:$B$13,'Activity 9'!S$7:S$13,\"N/A\",0,1)","v":"N/A"},{"$f":"_xlfn.XLOOKUP($E48,'Activity 9'!$B$7:$B$13,'Activity 9'!T$7:T$13,\"N/A\",0,1)","v":"N/A"},{"$f":"_xlfn.XLOOKUP($E48,'Activity 9'!$B$17:$B$23,'Activity 9'!E$17:E$23,\"N/A\",0,1)","v":"N/A"},{"$f":"_xlfn.XLOOKUP($E48,'Activity 9'!$B$17:$B$23,'Activity 9'!F$17:F$23,\"N/A\",0,1)","v":"N/A"},{"$f":"_xlfn.XLOOKUP($E48,'Activity 9'!$B$17:$B$23,'Activity 9'!G$17:G$23,\"N/A\",0,1)","v":"N/A"},{"$f":"_xlfn.XLOOKUP($E48,'Activity 9'!$B$17:$B$23,'Activity 9'!H$17:H$23,\"N/A\",0,1)","v":"N/A"},{"$f":"_xlfn.XLOOKUP($E48,'Activity 9'!$B$17:$B$23,'Activity 9'!I$17:I$23,\"N/A\",0,1)","v":"N/A"},{"$f":"_xlfn.XLOOKUP($E48,'Activity 9'!$B$17:$B$23,'Activity 9'!J$17:J$23,\"N/A\",0,1)","v":"N/A"},{"$f":"_xlfn.XLOOKUP($E48,'Activity 9'!$B$17:$B$23,'Activity 9'!K$17:K$23,\"N/A\",0,1)","v":"N/A"},{"$f":"_xlfn.XLOOKUP($E48,'Activity 9'!$B$17:$B$23,'Activity 9'!L$17:L$23,\"N/A\",0,1)","v":"N/A"},{"$f":"_xlfn.XLOOKUP($E48,'Activity 9'!$B$17:$B$23,'Activity 9'!N$17:N$23,\"N/A\",0,1)","v":"N/A"},{"$f":"_xlfn.XLOOKUP($E48,'Activity 9'!$B$17:$B$23,'Activity 9'!O$17:O$23,\"N/A\",0,1)","v":"N/A"},{"$f":"_xlfn.XLOOKUP($E48,'Activity 9'!$B$17:$B$23,'Activity 9'!Q$17:Q$23,\"N/A\",0,1)","v":"N/A"},{"$f":"_xlfn.XLOOKUP($E48,'Activity 10'!$B$7:$B$13,'Activity 10'!A$7:A$13,\"No\",0,1)","v":"No"},{"$f":"_xlfn.XLOOKUP($E48,'Activity 10'!$B$7:$B$13,'Activity 10'!J$7:J$13,\"N/A\",0,1)","v":"N/A"},{"$f":"_xlfn.XLOOKUP($E48,'Activity 10'!$B$7:$B$13,'Activity 10'!K$7:K$13,\"N/A\",0,1)","v":"N/A"},{"$f":"_xlfn.XLOOKUP($E48,'Activity 10'!$B$7:$B$13,'Activity 10'!L$7:L$13,\"N/A\",0,1)","v":"N/A"},{"$f":"_xlfn.XLOOKUP($E48,'Activity 10'!$B$7:$B$13,'Activity 10'!M$7:M$13,\"N/A\",0,1)","v":"N/A"},{"$f":"_xlfn.XLOOKUP($E48,'Activity 10'!$B$7:$B$13,'Activity 10'!N$7:N$13,\"N/A\",0,1)","v":"N/A"},{"$f":"_xlfn.XLOOKUP($E48,'Activity 10'!$B$7:$B$13,'Activity 10'!O$7:O$13,\"N/A\",0,1)","v":"N/A"},{"$f":"_xlfn.XLOOKUP($E48,'Activity 10'!$B$7:$B$13,'Activity 10'!P$7:P$13,\"N/A\",0,1)","v":"N/A"},{"$f":"_xlfn.XLOOKUP($E48,'Activity 10'!$B$7:$B$13,'Activity 10'!Q$7:Q$13,\"N/A\",0,1)","v":"N/A"},{"$f":"_xlfn.XLOOKUP($E48,'Activity 10'!$B$7:$B$13,'Activity 10'!R$7:R$13,\"N/A\",0,1)","v":"N/A"},{"$f":"_xlfn.XLOOKUP($E48,'Activity 10'!$B$7:$B$13,'Activity 10'!S$7:S$13,\"N/A\",0,1)","v":"N/A"},{"$f":"_xlfn.XLOOKUP($E48,'Activity 10'!$B$7:$B$13,'Activity 10'!T$7:T$13,\"N/A\",0,1)","v":"N/A"},{"$f":"_xlfn.XLOOKUP($E48,'Activity 10'!$B$7:$B$13,'Activity 10'!U$7:U$13,\"N/A\",0,1)","v":"N/A"},{"$f":"_xlfn.XLOOKUP($E48,'Activity 10'!$B$7:$B$13,'Activity 10'!V$7:V$13,\"N/A\",0,1)","v":"N/A"},{"$f":"_xlfn.XLOOKUP($E48,'Activity 10'!$B$17:$B$23,'Activity 10'!E$17:E$23,\"N/A\",0,1)","v":"N/A"},{"$f":"_xlfn.XLOOKUP($E48,'Activity 10'!$B$17:$B$23,'Activity 10'!F$17:F$23,\"N/A\",0,1)","v":"N/A"},{"$f":"_xlfn.XLOOKUP($E48,'Activity 10'!$B$17:$B$23,'Activity 10'!G$17:G$23,\"N/A\",0,1)","v":"N/A"},{"$f":"_xlfn.XLOOKUP($E48,'Activity 10'!$B$17:$B$23,'Activity 10'!H$17:H$23,\"N/A\",0,1)","v":"N/A"},{"$f":"_xlfn.XLOOKUP($E48,'Activity 10'!$B$17:$B$23,'Activity 10'!I$17:I$23,\"N/A\",0,1)","v":"N/A"},{"$f":"_xlfn.XLOOKUP($E48,'Activity 10'!$B$17:$B$23,'Activity 10'!J$17:J$23,\"N/A\",0,1)","v":"N/A"},{"$f":"_xlfn.XLOOKUP($E48,'Activity 10'!$B$17:$B$23,'Activity 10'!K$17:K$23,\"N/A\",0,1)","v":"N/A"},{"$f":"_xlfn.XLOOKUP($E48,'Activity 10'!$B$17:$B$23,'Activity 10'!L$17:L$23,\"N/A\",0,1)","v":"N/A"},{"$f":"_xlfn.XLOOKUP($E48,'Activity 10'!$B$17:$B$23,'Activity 10'!M$17:M$23,\"N/A\",0,1)","v":"N/A"},{"$f":"_xlfn.XLOOKUP($E48,'Activity 10'!$B$17:$B$23,'Activity 10'!N$17:N$23,\"N/A\",0,1)","v":"N/A"},{"$f":"_xlfn.XLOOKUP($E48,'Activity 10'!$B$17:$B$23,'Activity 10'!P$17:P$23,\"N/A\",0,1)","v":"N/A"},{"$f":"_xlfn.XLOOKUP($E48,'Competitive Activity 1'!B$7:B$13,'Competitive Activity 1'!A$7:A$13,\"No\",0,1)","v":"No"},{"$f":"_xlfn.XLOOKUP($E48,'Competitive Activity 1'!$B$7:$B$13,'Competitive Activity 1'!H$7:H$13,\"N/A\",0,1)","v":"N/A"},{"$f":"_xlfn.XLOOKUP($E48,'Competitive Activity 1'!$B$7:$B$13,'Competitive Activity 1'!I$7:I$13,\"N/A\",0,1)","v":"N/A"},{"$f":"_xlfn.XLOOKUP($E48,'Competitive Activity 1'!$B$7:$B$13,'Competitive Activity 1'!J$7:J$13,\"N/A\",0,1)","v":"N/A"},{"$f":"_xlfn.XLOOKUP($E48,'Competitive Activity 1'!$B$7:$B$13,'Competitive Activity 1'!K$7:K$13,\"N/A\",0,1)","v":"N/A"},{"$f":"_xlfn.XLOOKUP($E48,'Competitive Activity 1'!$B$7:$B$13,'Competitive Activity 1'!L$7:L$13,\"N/A\",0,1)","v":"N/A"},{"$f":"_xlfn.XLOOKUP($E48,'Competitive Activity 1'!$B$7:$B$13,'Competitive Activity 1'!M$7:M$13,\"N/A\",0,1)","v":"N/A"},{"$f":"_xlfn.XLOOKUP($E48,'Competitive Activity 1'!$B$7:$B$13,'Competitive Activity 1'!N$7:N$13,\"N/A\",0,1)","v":"N/A"},{"$f":"_xlfn.XLOOKUP($E48,'Competitive Activity 1'!$B$7:$B$13,'Competitive Activity 1'!O$7:O$13,\"N/A\",0,1)","v":"N/A"},{"$f":"_xlfn.XLOOKUP($E48,'Competitive Activity 1'!$B$7:$B$13,'Competitive Activity 1'!P$7:P$13,\"N/A\",0,1)","v":"N/A"},{"$f":"_xlfn.XLOOKUP($E48,'Competitive Activity 1'!$B$7:$B$13,'Competitive Activity 1'!Q$7:Q$13,\"N/A\",0,1)","v":"N/A"},{"$f":"_xlfn.XLOOKUP($E48,'Competitive Activity 1'!$B$7:$B$13,'Competitive Activity 1'!R$7:R$13,\"N/A\",0,1)","v":"N/A"},{"$f":"_xlfn.XLOOKUP($E48,'Competitive Activity 1'!$B$7:$B$13,'Competitive Activity 1'!S$7:S$13,\"N/A\",0,1)","v":"N/A"},{"$f":"_xlfn.XLOOKUP($E48,'Competitive Activity 1'!$B$7:$B$13,'Competitive Activity 1'!T$7:T$13,\"N/A\",0,1)","v":"N/A"},{"$f":"_xlfn.XLOOKUP($E48,'Competitive Activity 1'!$B$7:$B$13,'Competitive Activity 1'!U$7:U$13,\"N/A\",0,1)","v":"N/A"},{"$f":"_xlfn.XLOOKUP($E48,'Competitive Activity 1'!$B$17:$B$23,'Competitive Activity 1'!C$17:C$23,\"N/A\",0,1)","v":"N/A"},{"$f":"_xlfn.XLOOKUP($E48,'Competitive Activity 1'!$B$17:$B$23,'Competitive Activity 1'!D$17:D$23,\"N/A\",0,1)","v":"N/A"},{"$f":"_xlfn.XLOOKUP($E48,'Competitive Activity 1'!$B$17:$B$23,'Competitive Activity 1'!E$17:E$23,\"N/A\",0,1)","v":"N/A"},{"$f":"_xlfn.XLOOKUP($E48,'Competitive Activity 1'!$B$17:$B$23,'Competitive Activity 1'!F$17:F$23,\"N/A\",0,1)","v":"N/A"},{"$f":"_xlfn.XLOOKUP($E48,'Competitive Activity 1'!$B$17:$B$23,'Competitive Activity 1'!G$17:G$23,\"N/A\",0,1)","v":"N/A"},{"$f":"_xlfn.XLOOKUP($E48,'Competitive Activity 1'!$B$17:$B$23,'Competitive Activity 1'!H$17:H$23,\"N/A\",0,1)","v":"N/A"},{"$f":"_xlfn.XLOOKUP($E48,'Competitive Activity 1'!$B$17:$B$23,'Competitive Activity 1'!I$17:I$23,\"N/A\",0,1)","v":"N/A"},{"$f":"_xlfn.XLOOKUP($E48,'Competitive Activity 1'!$B$17:$B$23,'Competitive Activity 1'!J$17:J$23,\"N/A\",0,1)","v":"N/A"},{"$f":"_xlfn.XLOOKUP($E48,'Competitive Activity 1'!$B$17:$B$23,'Competitive Activity 1'!K$17:K$23,\"N/A\",0,1)","v":"N/A"},{"$f":"_xlfn.XLOOKUP($E48,'Competitive Activity 1'!$B$17:$B$23,'Competitive Activity 1'!M$17:M$23,\"N/A\",0,1)","v":"N/A"},{"$f":"_xlfn.XLOOKUP($E48,'Competitive Activity 1'!$B$17:$B$23,'Competitive Activity 1'!N$17:N$23,\"N/A\",0,1)","v":"N/A"},{"$f":"_xlfn.XLOOKUP($E48,'Competitive Activity 1'!$B$17:$B$23,'Competitive Activity 1'!P$17:P$23,\"N/A\",0,1)","v":"N/A"},{"$f":"_xlfn.XLOOKUP($E48,'Competitive Activity 2'!$B$7:$B$13,'Competitive Activity 2'!A$7:A$13,\"No\",0)","v":"No"},{"$f":"_xlfn.XLOOKUP($E48,'Competitive Activity 2'!$B$7:$B$13,'Competitive Activity 2'!L$7:L$13,\"N/A\",0)","v":"N/A"},{"$f":"_xlfn.XLOOKUP($E48,'Competitive Activity 2'!$B$7:$B$13,'Competitive Activity 2'!M$7:M$13,\"N/A\",0)","v":"N/A"},{"$f":"_xlfn.XLOOKUP($E48,'Competitive Activity 2'!$B$7:$B$13,'Competitive Activity 2'!N$7:N$13,\"N/A\",0)","v":"N/A"},{"$f":"_xlfn.XLOOKUP($E48,'Competitive Activity 2'!$B$7:$B$13,'Competitive Activity 2'!O$7:O$13,\"N/A\",0)","v":"N/A"},{"$f":"_xlfn.XLOOKUP($E48,'Competitive Activity 2'!$B$7:$B$13,'Competitive Activity 2'!P$7:P$13,\"N/A\",0)","v":"N/A"},{"$f":"_xlfn.XLOOKUP($E48,'Competitive Activity 2'!$B$7:$B$13,'Competitive Activity 2'!Q$7:Q$13,\"N/A\",0)","v":"N/A"},{"$f":"_xlfn.XLOOKUP($E48,'Competitive Activity 2'!$B$7:$B$13,'Competitive Activity 2'!R$7:R$13,\"N/A\",0)","v":"N/A"},{"$f":"_xlfn.XLOOKUP($E48,'Competitive Activity 2'!$B$7:$B$13,'Competitive Activity 2'!S$7:S$13,\"N/A\",0)","v":"N/A"},{"$f":"_xlfn.XLOOKUP($E48,'Competitive Activity 2'!$B$7:$B$13,'Competitive Activity 2'!T$7:T$13,\"N/A\",0)","v":"N/A"},{"$f":"_xlfn.XLOOKUP($E48,'Competitive Activity 2'!$B$7:$B$13,'Competitive Activity 2'!U$7:U$13,\"N/A\",0)","v":"N/A"},{"$f":"_xlfn.XLOOKUP($E48,'Competitive Activity 2'!$B$17:$B$23,'Competitive Activity 2'!D$17:D$23,\"N/A\",0)","v":"N/A"},{"$f":"_xlfn.XLOOKUP($E48,'Competitive Activity 2'!$B$17:$B$23,'Competitive Activity 2'!E$17:E$23,\"N/A\",0)","v":"N/A"},{"$f":"_xlfn.XLOOKUP($E48,'Competitive Activity 2'!$B$17:$B$23,'Competitive Activity 2'!F$17:F$23,\"N/A\",0)","v":"N/A"},{"$f":"_xlfn.XLOOKUP($E48,'Competitive Activity 2'!$B$17:$B$23,'Competitive Activity 2'!G$17:G$23,\"N/A\",0)","v":"N/A"},{"$f":"_xlfn.XLOOKUP($E48,'Competitive Activity 2'!$B$17:$B$23,'Competitive Activity 2'!H$17:H$23,\"N/A\",0)","v":"N/A"},{"$f":"_xlfn.XLOOKUP($E48,'Competitive Activity 2'!$B$17:$B$23,'Competitive Activity 2'!I$17:I$23,\"N/A\",0)","v":"N/A"},{"$f":"_xlfn.XLOOKUP($E48,'Competitive Activity 2'!$B$17:$B$23,'Competitive Activity 2'!J$17:J$23,\"N/A\",0)","v":"N/A"},{"$f":"_xlfn.XLOOKUP($E48,'Competitive Activity 2'!$B$17:$B$23,'Competitive Activity 2'!K$17:K$23,\"N/A\",0)","v":"N/A"},{"$f":"_xlfn.XLOOKUP($E48,'Competitive Activity 2'!$B$17:$B$23,'Competitive Activity 2'!L$17:L$23,\"N/A\",0)","v":"N/A"},{"$f":"_xlfn.XLOOKUP($E48,'Competitive Activity 2'!$B$17:$B$23,'Competitive Activity 2'!M$17:M$23,\"N/A\",0)","v":"N/A"},{"$f":"_xlfn.XLOOKUP($E48,'Competitive Activity 2'!$B$17:$B$23,'Competitive Activity 2'!N$17:N$23,\"N/A\",0)","v":"N/A"},{"$f":"_xlfn.XLOOKUP($E48,'Competitive Activity 2'!$B$27:$B$33,'Competitive Activity 2'!D$27:D$33,\"N/A\",0)","v":"N/A"},{"$f":"_xlfn.XLOOKUP($E48,'Competitive Activity 2'!$B$27:$B$33,'Competitive Activity 2'!E$27:E$33,\"N/A\",0)","v":"N/A"},{"$f":"_xlfn.XLOOKUP($E48,'Competitive Activity 2'!$B$27:$B$33,'Competitive Activity 2'!F$27:F$33,\"N/A\",0)","v":"N/A"},{"$f":"_xlfn.XLOOKUP($E48,'Competitive Activity 2'!$B$27:$B$33,'Competitive Activity 2'!G$27:G$33,\"N/A\",0)","v":"N/A"},{"$f":"_xlfn.XLOOKUP($E48,'Competitive Activity 2'!$B$27:$B$33,'Competitive Activity 2'!H$27:H$33,\"N/A\",0)","v":"N/A"},{"$f":"_xlfn.XLOOKUP($E48,'Competitive Activity 2'!$B$27:$B$33,'Competitive Activity 2'!I$27:I$33,\"N/A\",0)","v":"N/A"},{"$f":"_xlfn.XLOOKUP($E48,'Competitive Activity 2'!$B$27:$B$33,'Competitive Activity 2'!J$27:J$33,\"N/A\",0)","v":"N/A"},{"$f":"_xlfn.XLOOKUP($E48,'Competitive Activity 2'!$B$27:$B$33,'Competitive Activity 2'!K$27:K$33,\"N/A\",0)","v":"N/A"},{"$f":"_xlfn.XLOOKUP($E48,'Competitive Activity 2'!$B$27:$B$33,'Competitive Activity 2'!M$27:M$33,\"N/A\",0)","v":"N/A"}]
[{"$f":"'1-Cover Sheet'!$C$8","v":"Select One"},{"$f":"'1-Cover Sheet'!$F$8","v":"Select One"},{"$f":"'Summary Sheet'!$D$8","v":0},{"$f":"'Summary Sheet'!$D$10","v":0},{"$f":"'Drop Down Box'!B213","v":0},{"$f":"'Drop Down Box'!C213","v":0},{"$f":"'Drop Down Box'!D213","v":"Select One"},{"$f":"_xlfn.XLOOKUP(E49,'Drop Down Box'!$B$166:$B$249,'Drop Down Box'!$A$166:$A$249,\"Unknown\",0)","v":"Activity 1"},{"$f":"_xlfn.XLOOKUP($E49,'Activity 7'!$B$17:$B$23,'Activity 7'!$O$17:$O$23,\"N/A\",0)","v":"N/A"},{"$f":"_xlfn.XLOOKUP($E49,'Activity 7'!$B$17:$B$23,'Activity 7'!$Q$17:$Q$23,\"N/A\",0)","v":"N/A"},{"$f":"_xlfn.XLOOKUP($E49,'Activity 7'!$B$7:$B$13,'Activity 7'!$H$7:$H$13,\"N/A\",0)","v":"N/A"},{"$f":"_xlfn.XLOOKUP($E49,'Activity 7'!$B$7:$B$13,'Activity 7'!I$7:I$13,\"N/A\",0)","v":"N/A"},{"$f":"_xlfn.XLOOKUP($E49,'Activity 7'!$B$7:$B$13,'Activity 7'!J$7:J$13,\"N/A\",0)","v":"N/A"},{"$f":"_xlfn.XLOOKUP($E49,'Activity 1'!$B$7:$B$13,'Activity 1'!$A$7:$A$13,\"No\",0,1)","v":"No"},{"$f":"_xlfn.XLOOKUP($E49,'Activity 1'!$B$7:$B$13,'Activity 1'!$H$7:$H$13,\"N/A\",0,1)","v":"N/A"},{"$f":"_xlfn.XLOOKUP($E49,'Activity 1'!$B$7:$B$13,'Activity 1'!I$7:I$13,\"N/A\",0,1)","v":"N/A"},{"$f":"_xlfn.XLOOKUP($E49,'Activity 1'!$B$7:$B$13,'Activity 1'!J$7:J$13,\"N/A\",0,1)","v":"N/A"},{"$f":"_xlfn.XLOOKUP($E49,'Activity 1'!$B$7:$B$13,'Activity 1'!K$7:K$13,\"N/A\",0,1)","v":"N/A"},{"$f":"_xlfn.XLOOKUP($E49,'Activity 1'!$B$7:$B$13,'Activity 1'!L$7:L$13,\"N/A\",0,1)","v":"N/A"},{"$f":"_xlfn.XLOOKUP($E49,'Activity 1'!$B$7:$B$13,'Activity 1'!M$7:M$13,\"N/A\",0,1)","v":"N/A"},{"$f":"_xlfn.XLOOKUP($E49,'Activity 1'!$B$7:$B$13,'Activity 1'!N$7:N$13,\"N/A\",0,1)","v":"N/A"},0,{"$f":"_xlfn.XLOOKUP($E49,'Activity 1'!$B$7:$B$13,'Activity 1'!O$7:O$13,\"N/A\",0,1)","v":"N/A"},{"$f":"_xlfn.XLOOKUP($E49,'Activity 1'!$B$7:$B$13,'Activity 1'!P$7:P$13,\"N/A\",0,1)","v":"N/A"},{"$f":"_xlfn.XLOOKUP($E49,'Activity 1'!$B$7:$B$13,'Activity 1'!Q$7:Q$13,\"N/A\",0,1)","v":"N/A"},{"$f":"_xlfn.XLOOKUP($E49,'Activity 1'!$B$7:$B$13,'Activity 1'!R$7:R$13,\"N/A\",0,1)","v":"N/A"},{"$f":"_xlfn.XLOOKUP($E49,'Activity 1'!$B$7:$B$13,'Activity 1'!S$7:S$13,\"N/A\",0,1)","v":"N/A"},{"$f":"_xlfn.XLOOKUP($E49,'Activity 1'!$B$7:$B$13,'Activity 1'!T$7:T$13,\"N/A\",0,1)","v":"N/A"},{"$f":"_xlfn.XLOOKUP($E49,'Activity 1'!$B$7:$B$13,'Activity 1'!U$7:U$13,\"N/A\",0,1)","v":"N/A"},{"$f":"_xlfn.XLOOKUP($E49,'Activity 1'!$B$7:$B$13,'Activity 1'!V$7:V$13,\"N/A\",0,1)","v":"N/A"},{"$f":"_xlfn.XLOOKUP($E49,'Activity 1'!$B$17:$B$23,'Activity 1'!C$17:C$23,\"N/A\",0,1)","v":"N/A"},{"$f":"_xlfn.XLOOKUP($E49,'Activity 1'!$B$17:$B$23,'Activity 1'!D$17:D$23,\"N/A\",0,1)","v":"N/A"},{"$f":"_xlfn.XLOOKUP($E49,'Activity 1'!$B$17:$B$23,'Activity 1'!E$17:E$23,\"N/A\",0,1)","v":"N/A"},{"$f":"_xlfn.XLOOKUP($E49,'Activity 1'!$B$17:$B$23,'Activity 1'!F$17:F$23,\"N/A\",0,1)","v":"N/A"},{"$f":"_xlfn.XLOOKUP($E49,'Activity 1'!$B$17:$B$23,'Activity 1'!G$17:G$23,\"N/A\",0,1)","v":"N/A"},{"$f":"_xlfn.XLOOKUP($E49,'Activity 1'!$B$17:$B$23,'Activity 1'!H$17:H$23,\"N/A\",0,1)","v":"N/A"},{"$f":"_xlfn.XLOOKUP($E49,'Activity 1'!$B$17:$B$23,'Activity 1'!I$17:I$23,\"N/A\",0,1)","v":"N/A"},{"$f":"_xlfn.XLOOKUP($E49,'Activity 1'!$B$17:$B$23,'Activity 1'!J$17:J$23,\"N/A\",0,1)","v":"N/A"},{"$f":"_xlfn.XLOOKUP($E49,'Activity 1'!$B$17:$B$23,'Activity 1'!K$17:K$23,\"N/A\",0,1)","v":"N/A"},{"$f":"_xlfn.XLOOKUP($E49,'Activity 1'!$B$17:$B$23,'Activity 1'!L$17:L$23,\"N/A\",0,1)","v":"N/A"},{"$f":"_xlfn.XLOOKUP($E49,'Activity 1'!$B$17:$B$23,'Activity 1'!M$17:M$23,\"N/A\",0,1)","v":"N/A"},{"$f":"_xlfn.XLOOKUP($E49,'Activity 1'!$B$17:$B$23,'Activity 1'!O$17:O$23,\"N/A\",0,1)","v":"N/A"},{"$f":"_xlfn.XLOOKUP($E49,'Activity 1'!$B$17:$B$23,'Activity 1'!Q$17:Q$23,\"N/A\",0,1)","v":"N/A"},{"$f":"_xlfn.XLOOKUP($E49,'Activity 2'!$B$7:$B$13,'Activity 2'!$A$7:$A$13,\"No\",0,1)","v":"No"},{"$f":"_xlfn.XLOOKUP($E49,'Activity 2'!B$7:B$13,'Activity 2'!H$7:H$13,\"N/A\",0)","v":"N/A"},{"$f":"_xlfn.XLOOKUP($E49,'Activity 2'!C$7:C$13,'Activity 2'!I$7:I$13,\"N/A\",0)","v":"N/A"},{"$f":"_xlfn.XLOOKUP($E49,'Activity 2'!D$7:D$13,'Activity 2'!J$7:J$13,\"N/A\",0)","v":"N/A"},{"$f":"_xlfn.XLOOKUP($E49,'Activity 2'!E$7:E$13,'Activity 2'!K$7:K$13,\"N/A\",0)","v":"N/A"},{"$f":"_xlfn.XLOOKUP($E49,'Activity 2'!F$7:F$13,'Activity 2'!L$7:L$13,\"N/A\",0)","v":"N/A"},{"$f":"_xlfn.XLOOKUP($E49,'Activity 2'!G$7:G$13,'Activity 2'!M$7:M$13,\"N/A\",0)","v":"N/A"},{"$f":"_xlfn.XLOOKUP($E49,'Activity 2'!H$7:H$13,'Activity 2'!N$7:N$13,\"N/A\",0)","v":"N/A"},{"$f":"_xlfn.XLOOKUP($E49,'Activity 2'!I$7:I$13,'Activity 2'!O$7:O$13,\"N/A\",0)","v":"N/A"},{"$f":"_xlfn.XLOOKUP($E49,'Activity 2'!J$7:J$13,'Activity 2'!P$7:P$13,\"N/A\",0)","v":"N/A"},{"$f":"_xlfn.XLOOKUP($E49,'Activity 2'!K$7:K$13,'Activity 2'!Q$7:Q$13,\"N/A\",0)","v":"N/A"},{"$f":"_xlfn.XLOOKUP($E49,'Activity 2'!L$7:L$13,'Activity 2'!R$7:R$13,\"N/A\",0)","v":"N/A"},{"$f":"_xlfn.XLOOKUP($E49,'Activity 2'!M$7:M$13,'Activity 2'!S$7:S$13,\"N/A\",0)","v":"N/A"},{"$f":"_xlfn.XLOOKUP($E49,'Activity 2'!N$7:N$13,'Activity 2'!T$7:T$13,\"N/A\",0)","v":"N/A"},{"$f":"_xlfn.XLOOKUP($E49,'Activity 2'!O$7:O$13,'Activity 2'!U$7:U$13,\"N/A\",0)","v":"N/A"},{"$f":"_xlfn.XLOOKUP($E49,'Activity 2'!P$7:P$13,'Activity 2'!V$7:V$13,\"N/A\",0)","v":"N/A"},{"$f":"_xlfn.XLOOKUP($E49,'Activity 2'!$B$17:$B$23,'Activity 2'!C$17:C$23,\"N/A\",0,1)","v":"N/A"},{"$f":"_xlfn.XLOOKUP($E49,'Activity 2'!$B$17:$B$23,'Activity 2'!D$17:D$23,\"N/A\",0,1)","v":"N/A"},{"$f":"_xlfn.XLOOKUP($E49,'Activity 2'!$B$17:$B$23,'Activity 2'!E$17:E$23,\"N/A\",0,1)","v":"N/A"},{"$f":"_xlfn.XLOOKUP($E49,'Activity 2'!$B$17:$B$23,'Activity 2'!F$17:F$23,\"N/A\",0,1)","v":"N/A"},{"$f":"_xlfn.XLOOKUP($E49,'Activity 2'!$B$17:$B$23,'Activity 2'!G$17:G$23,\"N/A\",0,1)","v":"N/A"},{"$f":"_xlfn.XLOOKUP($E49,'Activity 2'!$B$17:$B$23,'Activity 2'!H$17:H$23,\"N/A\",0,1)","v":"N/A"},{"$f":"_xlfn.XLOOKUP($E49,'Activity 2'!$B$17:$B$23,'Activity 2'!I$17:I$23,\"N/A\",0,1)","v":"N/A"},{"$f":"_xlfn.XLOOKUP($E49,'Activity 2'!$B$17:$B$23,'Activity 2'!J$17:J$23,\"N/A\",0,1)","v":"N/A"},{"$f":"_xlfn.XLOOKUP($E49,'Activity 2'!$B$17:$B$23,'Activity 2'!K$17:K$23,\"N/A\",0,1)","v":"N/A"},{"$f":"_xlfn.XLOOKUP($E49,'Activity 2'!$B$17:$B$23,'Activity 2'!L$17:L$23,\"N/A\",0,1)","v":"N/A"},{"$f":"_xlfn.XLOOKUP($E49,'Activity 2'!$B$17:$B$23,'Activity 2'!M$17:M$23,\"N/A\",0,1)","v":"N/A"},{"$f":"_xlfn.XLOOKUP($E49,'Activity 2'!$B$17:$B$23,'Activity 2'!O$17:O$23,\"N/A\",0,1)","v":"N/A"},{"$f":"_xlfn.XLOOKUP($E49,'Activity 2'!$B$17:$B$23,'Activity 2'!Q$17:Q$23,\"N/A\",0,1)","v":"N/A"},null,{"$f":"_xlfn.XLOOKUP($E49,'Activity 3'!$B$8:$B$14,'Activity 3'!K$8:K$14,\"N/A\",0,1)","v":"N/A"},{"$f":"_xlfn.XLOOKUP($E49,'Activity 3'!$B$8:$B$14,'Activity 3'!L$8:L$14,\"N/A\",0,1)","v":"N/A"},{"$f":"_xlfn.XLOOKUP($E49,'Activity 3'!$B$8:$B$14,'Activity 3'!M$8:M$14,\"N/A\",0,1)","v":"N/A"},{"$f":"_xlfn.XLOOKUP($E49,'Activity 3'!$B$8:$B$14,'Activity 3'!N$8:N$14,\"N/A\",0,1)","v":"N/A"},{"$f":"_xlfn.XLOOKUP($E49,'Activity 3'!$B$8:$B$14,'Activity 3'!O$8:O$14,\"N/A\",0,1)","v":"N/A"},{"$f":"_xlfn.XLOOKUP($E49,'Activity 3'!$B$8:$B$14,'Activity 3'!R$8:R$14,\"N/A\",0,1)","v":"N/A"},{"$f":"_xlfn.XLOOKUP($E49,'Activity 4'!$B$8:$B$14,'Activity 4'!$A$8:$A$14,\"No\",0,1)","v":"No"},{"$f":"_xlfn.XLOOKUP($E49,'Activity 4'!$B$8:$B$14,'Activity 4'!L$8:L$14,\"N/A\",0,1)","v":"N/A"},{"$f":"_xlfn.XLOOKUP($E49,'Activity 4'!$B$8:$B$14,'Activity 4'!I$8:I$14,\"N/A\",0,1)","v":"N/A"},{"$f":"_xlfn.XLOOKUP($E49,'Activity 4'!$B$8:$B$14,'Activity 4'!M$8:M$14,\"N/A\",0,1)","v":"N/A"},{"$f":"_xlfn.XLOOKUP($E49,'Activity 5'!$B$8:$B$14,'Activity 5'!$A$8:$A$14,\"No\",0,1)","v":"No"},{"$f":"_xlfn.XLOOKUP($E49,'Activity 5'!$B$8:$B$14,'Activity 5'!J$8:J$14,\"N/A\",0,1)","v":"N/A"},{"$f":"_xlfn.XLOOKUP($E49,'Activity 5'!$B$8:$B$14,'Activity 5'!K$8:K$14,\"N/A\",0,1)","v":"N/A"},{"$f":"_xlfn.XLOOKUP($E49,'Activity 5'!$B$8:$B$14,'Activity 5'!N$8:N$14,\"N/A\",0,1)","v":"N/A"},{"$f":"_xlfn.XLOOKUP($E49,'Activity 5'!$B$8:$B$14,'Activity 5'!O$8:O$14,\"N/A\",0,1)","v":"N/A"},{"$f":"_xlfn.XLOOKUP($E49,'Activity 5'!$B$8:$B$14,'Activity 5'!P$8:P$14,\"N/A\",0,1)","v":"N/A"},{"$f":"_xlfn.XLOOKUP($E49,'Activity 5'!$B$8:$B$14,'Activity 5'!Q$8:Q$14,\"N/A\",0,1)","v":"N/A"},{"$f":"_xlfn.XLOOKUP($E49,'Activity 5'!$B$8:$B$14,'Activity 5'!R$8:R$14,\"N/A\",0,1)","v":"N/A"},{"$f":"_xlfn.XLOOKUP($E49,'Activity 6'!$B$7:$B$13,'Activity 6'!A$7:A$13,\"No\",0,1)","v":"No"},{"$f":"_xlfn.XLOOKUP($E49,'Activity 6'!$B$7:$B$13,'Activity 6'!K$7:K$13,\"N/A\",0,1)","v":"N/A"},{"$f":"_xlfn.XLOOKUP($E49,'Activity 6'!$B$7:$B$13,'Activity 6'!L$7:L$13,\"N/A\",0,1)","v":"N/A"},{"$f":"_xlfn.XLOOKUP($E49,'Activity 6'!$B$7:$B$13,'Activity 6'!M$7:M$13,\"N/A\",0,1)","v":"N/A"},{"$f":"_xlfn.XLOOKUP($E49,'Activity 6'!$B$7:$B$13,'Activity 6'!N$7:N$13,\"N/A\",0,1)","v":"N/A"},{"$f":"_xlfn.XLOOKUP($E49,'Activity 6'!$B$7:$B$13,'Activity 6'!O$7:O$13,\"N/A\",0,1)","v":"N/A"},{"$f":"_xlfn.XLOOKUP($E49,'Activity 6'!$B$7:$B$13,'Activity 6'!P$7:P$13,\"N/A\",0,1)","v":"N/A"},{"$f":"_xlfn.XLOOKUP($E49,'Activity 6'!$B$7:$B$13,'Activity 6'!Q$7:Q$13,\"N/A\",0,1)","v":"N/A"},{"$f":"_xlfn.XLOOKUP($E49,'Activity 6'!$B$7:$B$13,'Activity 6'!R$7:R$13,\"N/A\",0,1)","v":"N/A"},{"$f":"_xlfn.XLOOKUP($E49,'Activity 6'!$B$7:$B$13,'Activity 6'!S$7:S$13,\"N/A\",0,1)","v":"N/A"},{"$f":"_xlfn.XLOOKUP($E49,'Activity 6'!$B$7:$B$13,'Activity 6'!T$7:T$13,\"N/A\",0,1)","v":"N/A"},{"$f":"_xlfn.XLOOKUP($E49,'Activity 6'!$B$7:$B$13,'Activity 6'!U$7:U$13,\"N/A\",0,1)","v":"N/A"},{"$f":"_xlfn.XLOOKUP($E49,'Activity 6'!$B$22:$B$28,'Activity 6'!C$22:C$28,\"N/A\",0,1)","v":"N/A"},{"$f":"_xlfn.XLOOKUP($E49,'Activity 6'!$B$22:$B$28,'Activity 6'!D$22:D$28,\"N/A\",0,1)","v":"N/A"},{"$f":"_xlfn.XLOOKUP($E49,'Activity 6'!$B$22:$B$28,'Activity 6'!E$22:E$28,\"N/A\",0,1)","v":"N/A"},{"$f":"_xlfn.XLOOKUP($E49,'Activity 6'!$B$22:$B$28,'Activity 6'!F$22:F$28,\"N/A\",0,1)","v":"N/A"},{"$f":"_xlfn.XLOOKUP($E49,'Activity 6'!$B$22:$B$28,'Activity 6'!G$22:G$28,\"N/A\",0,1)","v":"N/A"},{"$f":"_xlfn.XLOOKUP($E49,'Activity 6'!$B$22:$B$28,'Activity 6'!H$22:H$28,\"N/A\",0,1)","v":"N/A"},{"$f":"_xlfn.XLOOKUP($E49,'Activity 6'!$B$22:$B$28,'Activity 6'!I$22:I$28,\"N/A\",0,1)","v":"N/A"},{"$f":"_xlfn.XLOOKUP($E49,'Activity 6'!$B$22:$B$28,'Activity 6'!J$22:J$28,\"N/A\",0,1)","v":"N/A"},{"$f":"_xlfn.XLOOKUP($E49,'Activity 6'!$B$22:$B$28,'Activity 6'!K$22:K$28,\"N/A\",0,1)","v":"N/A"},{"$f":"_xlfn.XLOOKUP($E49,'Activity 6'!$B$22:$B$28,'Activity 6'!L$22:L$28,\"N/A\",0,1)","v":"N/A"},{"$f":"_xlfn.XLOOKUP($E49,'Activity 6'!$B$22:$B$28,'Activity 6'!M$22:M$28,\"N/A\",0,1)","v":"N/A"},{"$f":"_xlfn.XLOOKUP($E49,'Activity 6'!$B$22:$B$28,'Activity 6'!N$22:N$28,\"N/A\",0,1)","v":"N/A"},{"$f":"_xlfn.XLOOKUP($E49,'Activity 6'!$B$32:$B$38,'Activity 6'!C$32:C$38,\"N/A\",0,1)","v":"N/A"},{"$f":"_xlfn.XLOOKUP($E49,'Activity 6'!$B$32:$B$38,'Activity 6'!D$32:D$38,\"N/A\",0,1)","v":"N/A"},{"$f":"_xlfn.XLOOKUP($E49,'Activity 6'!$B$32:$B$38,'Activity 6'!E$32:E$38,\"N/A\",0,1)","v":"N/A"},{"$f":"_xlfn.XLOOKUP($E49,'Activity 6'!$B$32:$B$38,'Activity 6'!F$32:F$38,\"N/A\",0,1)","v":"N/A"},{"$f":"_xlfn.XLOOKUP($E49,'Activity 6'!$B$32:$B$38,'Activity 6'!G$32:G$38,\"N/A\",0,1)","v":"N/A"},{"$f":"_xlfn.XLOOKUP($E49,'Activity 6'!$B$32:$B$38,'Activity 6'!H$32:H$38,\"N/A\",0,1)","v":"N/A"},{"$f":"_xlfn.XLOOKUP($E49,'Activity 6'!$B$32:$B$38,'Activity 6'!I$32:I$38,\"N/A\",0,1)","v":"N/A"},{"$f":"_xlfn.XLOOKUP($E49,'Activity 6'!$B$32:$B$38,'Activity 6'!J$32:J$38,\"N/A\",0,1)","v":"N/A"},{"$f":"_xlfn.XLOOKUP($E49,'Activity 6'!$B$32:$B$38,'Activity 6'!K$32:K$38,\"N/A\",0,1)","v":"N/A"},{"$f":"_xlfn.XLOOKUP($E49,'Activity 6'!$B$32:$B$38,'Activity 6'!M$32:M$38,\"N/A\",0,1)","v":"N/A"},{"$f":"_xlfn.XLOOKUP($E49,'Activity 7'!$B$7:$B$13,'Activity 7'!$A$7:$A$13,\"No\",0,1)","v":"No"},{"$f":"_xlfn.XLOOKUP($E49,'Activity 7'!$B$7:$B$13,'Activity 7'!M$7:M$13,\"N/A\",0,1)","v":"N/A"},{"$f":"_xlfn.XLOOKUP($E49,'Activity 7'!$B$7:$B$13,'Activity 7'!K$7:K$13,\"N/A\",0,1)","v":"N/A"},{"$f":"_xlfn.XLOOKUP($E49,'Activity 7'!$B$7:$B$13,'Activity 7'!N$7:N$13,\"N/A\",0,1)","v":"N/A"},{"$f":"_xlfn.XLOOKUP($E49,'Activity 7'!$B$7:$B$13,'Activity 7'!O$7:O$13,\"N/A\",0,1)","v":"N/A"},{"$f":"_xlfn.XLOOKUP($E49,'Activity 7'!$B$7:$B$13,'Activity 7'!P$7:P$13,\"N/A\",0,1)","v":"N/A"},{"$f":"_xlfn.XLOOKUP($E49,'Activity 7'!$B$7:$B$13,'Activity 7'!Q$7:Q$13,\"N/A\",0,1)","v":"N/A"},{"$f":"_xlfn.XLOOKUP($E49,'Activity 7'!$B$7:$B$13,'Activity 7'!R$7:R$13,\"N/A\",0,1)","v":"N/A"},{"$f":"_xlfn.XLOOKUP($E49,'Activity 7'!$B$7:$B$13,'Activity 7'!S$7:S$13,\"N/A\",0,1)","v":"N/A"},{"$f":"_xlfn.XLOOKUP($E49,'Activity 7'!$B$7:$B$13,'Activity 7'!T$7:T$13,\"N/A\",0,1)","v":"N/A"},{"$f":"_xlfn.XLOOKUP($E49,'Activity 7'!$B$7:$B$13,'Activity 7'!U$7:U$13,\"N/A\",0,1)","v":"N/A"},{"$f":"_xlfn.XLOOKUP($E49,'Activity 7'!$B$7:$B$13,'Activity 7'!V$7:V$13,\"N/A\",0,1)","v":"N/A"},{"$f":"_xlfn.XLOOKUP($E49,'Activity 7'!$B$17:$B$23,'Activity 7'!E$17:E$23,\"N/A\",0,1)","v":"N/A"},{"$f":"_xlfn.XLOOKUP($E49,'Activity 7'!$B$17:$B$23,'Activity 7'!G$17:G$23,\"N/A\",0,1)","v":"N/A"},{"$f":"_xlfn.XLOOKUP($E49,'Activity 7'!$B$17:$B$23,'Activity 7'!I$17:I$23,\"N/A\",0,1)","v":"N/A"},{"$f":"_xlfn.XLOOKUP($E49,'Activity 7'!$B$17:$B$23,'Activity 7'!J$17:J$23,\"N/A\",0,1)","v":"N/A"},{"$f":"_xlfn.XLOOKUP($E49,'Activity 7'!$B$17:$B$23,'Activity 7'!K$17:K$23,\"N/A\",0,1)","v":"N/A"},{"$f":"_xlfn.XLOOKUP($E49,'Activity 7'!$B$17:$B$23,'Activity 7'!L$17:L$23,\"N/A\",0,1)","v":"N/A"},{"$f":"_xlfn.XLOOKUP($E49,'Activity 7'!$B$17:$B$23,'Activity 7'!M$17:M$23,\"N/A\",0,1)","v":"N/A"},{"$f":"_xlfn.XLOOKUP($E49,'Activity 7'!$B$17:$B$23,'Activity 7'!N$17:N$23,\"N/A\",0,1)","v":"N/A"},{"$f":"_xlfn.XLOOKUP($E49,'Activity 7'!$B$17:$B$23,'Activity 7'!P$17:P$23,\"N/A\",0,1)","v":"N/A"},{"$f":"_xlfn.XLOOKUP($E49,'Activity 8'!$B$7:$B$13,'Activity 8'!A$7:A$13,\"No\",0,1)","v":"No"},{"$f":"_xlfn.XLOOKUP($E49,'Activity 8'!$B$7:$B$13,'Activity 8'!I$7:I$13,\"N/A\",0,1)","v":"N/A"},{"$f":"_xlfn.XLOOKUP($E49,'Activity 8'!$B$7:$B$13,'Activity 8'!J$7:J$13,\"N/A\",0,1)","v":"N/A"},{"$f":"_xlfn.XLOOKUP($E49,'Activity 8'!$B$7:$B$13,'Activity 8'!K$7:K$13,\"N/A\",0,1)","v":"N/A"},{"$f":"_xlfn.XLOOKUP($E49,'Activity 8'!$B$7:$B$13,'Activity 8'!L$7:L$13,\"N/A\",0,1)","v":"N/A"},{"$f":"_xlfn.XLOOKUP($E49,'Activity 8'!$B$7:$B$13,'Activity 8'!M$7:M$13,\"N/A\",0,1)","v":"N/A"},{"$f":"_xlfn.XLOOKUP($E49,'Activity 8'!$B$7:$B$13,'Activity 8'!N$7:N$13,\"N/A\",0,1)","v":"N/A"},{"$f":"_xlfn.XLOOKUP($E49,'Activity 8'!$B$7:$B$13,'Activity 8'!O$7:O$13,\"N/A\",0,1)","v":"N/A"},{"$f":"_xlfn.XLOOKUP($E49,'Activity 8'!$B$7:$B$13,'Activity 8'!P$7:P$13,\"N/A\",0,1)","v":"N/A"},{"$f":"_xlfn.XLOOKUP($E49,'Activity 8'!$B$7:$B$13,'Activity 8'!Q$7:Q$13,\"N/A\",0,1)","v":"N/A"},{"$f":"_xlfn.XLOOKUP($E49,'Activity 8'!$B$7:$B$13,'Activity 8'!R$7:R$13,\"N/A\",0,1)","v":"N/A"},{"$f":"_xlfn.XLOOKUP($E49,'Activity 8'!$B$7:$B$13,'Activity 8'!S$7:S$13,\"N/A\",0,1)","v":"N/A"},{"$f":"_xlfn.XLOOKUP($E49,'Activity 8'!$B$7:$B$13,'Activity 8'!T$7:T$13,\"N/A\",0,1)","v":"N/A"},{"$f":"_xlfn.XLOOKUP($E49,'Activity 8'!$B$7:$B$13,'Activity 8'!U$7:U$13,\"N/A\",0,1)","v":"N/A"},{"$f":"_xlfn.XLOOKUP($E49,'Activity 8'!$B$7:$B$13,'Activity 8'!V$7:V$13,\"N/A\",0,1)","v":"N/A"},{"$f":"_xlfn.XLOOKUP($E49,'Activity 8'!$B$17:$B$23,'Activity 8'!D$17:D$23,\"N/A\",0,1)","v":"N/A"},{"$f":"_xlfn.XLOOKUP($E49,'Activity 8'!$B$17:$B$23,'Activity 8'!E$17:E$23,\"N/A\",0,1)","v":"N/A"},{"$f":"_xlfn.XLOOKUP($E49,'Activity 8'!$B$17:$B$23,'Activity 8'!F$17:F$23,\"N/A\",0,1)","v":"N/A"},{"$f":"_xlfn.XLOOKUP($E49,'Activity 8'!$B$17:$B$23,'Activity 8'!G$17:G$23,\"N/A\",0,1)","v":"N/A"},{"$f":"_xlfn.XLOOKUP($E49,'Activity 8'!$B$17:$B$23,'Activity 8'!H$17:H$23,\"N/A\",0,1)","v":"N/A"},{"$f":"_xlfn.XLOOKUP($E49,'Activity 8'!$B$17:$B$23,'Activity 8'!I$17:I$23,\"N/A\",0,1)","v":"N/A"},{"$f":"_xlfn.XLOOKUP($E49,'Activity 8'!$B$17:$B$23,'Activity 8'!J$17:J$23,\"N/A\",0,1)","v":"N/A"},{"$f":"_xlfn.XLOOKUP($E49,'Activity 8'!$B$17:$B$23,'Activity 8'!K$17:K$23,\"N/A\",0,1)","v":"N/A"},{"$f":"_xlfn.XLOOKUP($E49,'Activity 8'!$B$17:$B$23,'Activity 8'!L$17:L$23,\"N/A\",0,1)","v":"N/A"},{"$f":"_xlfn.XLOOKUP($E49,'Activity 8'!$B$17:$B$23,'Activity 8'!M$17:M$23,\"N/A\",0,1)","v":"N/A"},{"$f":"_xlfn.XLOOKUP($E49,'Activity 8'!$B$17:$B$23,'Activity 8'!N$17:N$23,\"N/A\",0,1)","v":"N/A"},{"$f":"_xlfn.XLOOKUP($E49,'Activity 8'!$B$17:$B$23,'Activity 8'!P$17:P$23,\"N/A\",0,1)","v":"N/A"},{"$f":"_xlfn.XLOOKUP(E49,'Activity 9'!$B$7:$B$13,'Activity 9'!$A$7:$A$13,\"No\",0,1)","v":"No"},{"$f":"_xlfn.XLOOKUP($E49,'Activity 9'!$B$7:$B$13,'Activity 9'!J$7:J$13,\"N/A\",0,1)","v":"N/A"},{"$f":"_xlfn.XLOOKUP($E49,'Activity 9'!$B$7:$B$13,'Activity 9'!K$7:K$13,\"N/A\",0,1)","v":"N/A"},{"$f":"_xlfn.XLOOKUP($E49,'Activity 9'!$B$7:$B$13,'Activity 9'!L$7:L$13,\"N/A\",0,1)","v":"N/A"},{"$f":"_xlfn.XLOOKUP($E49,'Activity 9'!$B$7:$B$13,'Activity 9'!M$7:M$13,\"N/A\",0,1)","v":"N/A"},{"$f":"_xlfn.XLOOKUP($E49,'Activity 9'!$B$7:$B$13,'Activity 9'!N$7:N$13,\"N/A\",0,1)","v":"N/A"},{"$f":"_xlfn.XLOOKUP($E49,'Activity 9'!$B$7:$B$13,'Activity 9'!O$7:O$13,\"N/A\",0,1)","v":"N/A"},{"$f":"_xlfn.XLOOKUP($E49,'Activity 9'!$B$7:$B$13,'Activity 9'!P$7:P$13,\"N/A\",0,1)","v":"N/A"},{"$f":"_xlfn.XLOOKUP($E49,'Activity 9'!$B$7:$B$13,'Activity 9'!Q$7:Q$13,\"N/A\",0,1)","v":"N/A"},{"$f":"_xlfn.XLOOKUP($E49,'Activity 9'!$B$7:$B$13,'Activity 9'!R$7:R$13,\"N/A\",0,1)","v":"N/A"},{"$f":"_xlfn.XLOOKUP($E49,'Activity 9'!$B$7:$B$13,'Activity 9'!S$7:S$13,\"N/A\",0,1)","v":"N/A"},{"$f":"_xlfn.XLOOKUP($E49,'Activity 9'!$B$7:$B$13,'Activity 9'!T$7:T$13,\"N/A\",0,1)","v":"N/A"},{"$f":"_xlfn.XLOOKUP($E49,'Activity 9'!$B$17:$B$23,'Activity 9'!E$17:E$23,\"N/A\",0,1)","v":"N/A"},{"$f":"_xlfn.XLOOKUP($E49,'Activity 9'!$B$17:$B$23,'Activity 9'!F$17:F$23,\"N/A\",0,1)","v":"N/A"},{"$f":"_xlfn.XLOOKUP($E49,'Activity 9'!$B$17:$B$23,'Activity 9'!G$17:G$23,\"N/A\",0,1)","v":"N/A"},{"$f":"_xlfn.XLOOKUP($E49,'Activity 9'!$B$17:$B$23,'Activity 9'!H$17:H$23,\"N/A\",0,1)","v":"N/A"},{"$f":"_xlfn.XLOOKUP($E49,'Activity 9'!$B$17:$B$23,'Activity 9'!I$17:I$23,\"N/A\",0,1)","v":"N/A"},{"$f":"_xlfn.XLOOKUP($E49,'Activity 9'!$B$17:$B$23,'Activity 9'!J$17:J$23,\"N/A\",0,1)","v":"N/A"},{"$f":"_xlfn.XLOOKUP($E49,'Activity 9'!$B$17:$B$23,'Activity 9'!K$17:K$23,\"N/A\",0,1)","v":"N/A"},{"$f":"_xlfn.XLOOKUP($E49,'Activity 9'!$B$17:$B$23,'Activity 9'!L$17:L$23,\"N/A\",0,1)","v":"N/A"},{"$f":"_xlfn.XLOOKUP($E49,'Activity 9'!$B$17:$B$23,'Activity 9'!N$17:N$23,\"N/A\",0,1)","v":"N/A"},{"$f":"_xlfn.XLOOKUP($E49,'Activity 9'!$B$17:$B$23,'Activity 9'!O$17:O$23,\"N/A\",0,1)","v":"N/A"},{"$f":"_xlfn.XLOOKUP($E49,'Activity 9'!$B$17:$B$23,'Activity 9'!Q$17:Q$23,\"N/A\",0,1)","v":"N/A"},{"$f":"_xlfn.XLOOKUP($E49,'Activity 10'!$B$7:$B$13,'Activity 10'!A$7:A$13,\"No\",0,1)","v":"No"},{"$f":"_xlfn.XLOOKUP($E49,'Activity 10'!$B$7:$B$13,'Activity 10'!J$7:J$13,\"N/A\",0,1)","v":"N/A"},{"$f":"_xlfn.XLOOKUP($E49,'Activity 10'!$B$7:$B$13,'Activity 10'!K$7:K$13,\"N/A\",0,1)","v":"N/A"},{"$f":"_xlfn.XLOOKUP($E49,'Activity 10'!$B$7:$B$13,'Activity 10'!L$7:L$13,\"N/A\",0,1)","v":"N/A"},{"$f":"_xlfn.XLOOKUP($E49,'Activity 10'!$B$7:$B$13,'Activity 10'!M$7:M$13,\"N/A\",0,1)","v":"N/A"},{"$f":"_xlfn.XLOOKUP($E49,'Activity 10'!$B$7:$B$13,'Activity 10'!N$7:N$13,\"N/A\",0,1)","v":"N/A"},{"$f":"_xlfn.XLOOKUP($E49,'Activity 10'!$B$7:$B$13,'Activity 10'!O$7:O$13,\"N/A\",0,1)","v":"N/A"},{"$f":"_xlfn.XLOOKUP($E49,'Activity 10'!$B$7:$B$13,'Activity 10'!P$7:P$13,\"N/A\",0,1)","v":"N/A"},{"$f":"_xlfn.XLOOKUP($E49,'Activity 10'!$B$7:$B$13,'Activity 10'!Q$7:Q$13,\"N/A\",0,1)","v":"N/A"},{"$f":"_xlfn.XLOOKUP($E49,'Activity 10'!$B$7:$B$13,'Activity 10'!R$7:R$13,\"N/A\",0,1)","v":"N/A"},{"$f":"_xlfn.XLOOKUP($E49,'Activity 10'!$B$7:$B$13,'Activity 10'!S$7:S$13,\"N/A\",0,1)","v":"N/A"},{"$f":"_xlfn.XLOOKUP($E49,'Activity 10'!$B$7:$B$13,'Activity 10'!T$7:T$13,\"N/A\",0,1)","v":"N/A"},{"$f":"_xlfn.XLOOKUP($E49,'Activity 10'!$B$7:$B$13,'Activity 10'!U$7:U$13,\"N/A\",0,1)","v":"N/A"},{"$f":"_xlfn.XLOOKUP($E49,'Activity 10'!$B$7:$B$13,'Activity 10'!V$7:V$13,\"N/A\",0,1)","v":"N/A"},{"$f":"_xlfn.XLOOKUP($E49,'Activity 10'!$B$17:$B$23,'Activity 10'!E$17:E$23,\"N/A\",0,1)","v":"N/A"},{"$f":"_xlfn.XLOOKUP($E49,'Activity 10'!$B$17:$B$23,'Activity 10'!F$17:F$23,\"N/A\",0,1)","v":"N/A"},{"$f":"_xlfn.XLOOKUP($E49,'Activity 10'!$B$17:$B$23,'Activity 10'!G$17:G$23,\"N/A\",0,1)","v":"N/A"},{"$f":"_xlfn.XLOOKUP($E49,'Activity 10'!$B$17:$B$23,'Activity 10'!H$17:H$23,\"N/A\",0,1)","v":"N/A"},{"$f":"_xlfn.XLOOKUP($E49,'Activity 10'!$B$17:$B$23,'Activity 10'!I$17:I$23,\"N/A\",0,1)","v":"N/A"},{"$f":"_xlfn.XLOOKUP($E49,'Activity 10'!$B$17:$B$23,'Activity 10'!J$17:J$23,\"N/A\",0,1)","v":"N/A"},{"$f":"_xlfn.XLOOKUP($E49,'Activity 10'!$B$17:$B$23,'Activity 10'!K$17:K$23,\"N/A\",0,1)","v":"N/A"},{"$f":"_xlfn.XLOOKUP($E49,'Activity 10'!$B$17:$B$23,'Activity 10'!L$17:L$23,\"N/A\",0,1)","v":"N/A"},{"$f":"_xlfn.XLOOKUP($E49,'Activity 10'!$B$17:$B$23,'Activity 10'!M$17:M$23,\"N/A\",0,1)","v":"N/A"},{"$f":"_xlfn.XLOOKUP($E49,'Activity 10'!$B$17:$B$23,'Activity 10'!N$17:N$23,\"N/A\",0,1)","v":"N/A"},{"$f":"_xlfn.XLOOKUP($E49,'Activity 10'!$B$17:$B$23,'Activity 10'!P$17:P$23,\"N/A\",0,1)","v":"N/A"},{"$f":"_xlfn.XLOOKUP($E49,'Competitive Activity 1'!B$7:B$13,'Competitive Activity 1'!A$7:A$13,\"No\",0,1)","v":"No"},{"$f":"_xlfn.XLOOKUP($E49,'Competitive Activity 1'!$B$7:$B$13,'Competitive Activity 1'!H$7:H$13,\"N/A\",0,1)","v":"N/A"},{"$f":"_xlfn.XLOOKUP($E49,'Competitive Activity 1'!$B$7:$B$13,'Competitive Activity 1'!I$7:I$13,\"N/A\",0,1)","v":"N/A"},{"$f":"_xlfn.XLOOKUP($E49,'Competitive Activity 1'!$B$7:$B$13,'Competitive Activity 1'!J$7:J$13,\"N/A\",0,1)","v":"N/A"},{"$f":"_xlfn.XLOOKUP($E49,'Competitive Activity 1'!$B$7:$B$13,'Competitive Activity 1'!K$7:K$13,\"N/A\",0,1)","v":"N/A"},{"$f":"_xlfn.XLOOKUP($E49,'Competitive Activity 1'!$B$7:$B$13,'Competitive Activity 1'!L$7:L$13,\"N/A\",0,1)","v":"N/A"},{"$f":"_xlfn.XLOOKUP($E49,'Competitive Activity 1'!$B$7:$B$13,'Competitive Activity 1'!M$7:M$13,\"N/A\",0,1)","v":"N/A"},{"$f":"_xlfn.XLOOKUP($E49,'Competitive Activity 1'!$B$7:$B$13,'Competitive Activity 1'!N$7:N$13,\"N/A\",0,1)","v":"N/A"},{"$f":"_xlfn.XLOOKUP($E49,'Competitive Activity 1'!$B$7:$B$13,'Competitive Activity 1'!O$7:O$13,\"N/A\",0,1)","v":"N/A"},{"$f":"_xlfn.XLOOKUP($E49,'Competitive Activity 1'!$B$7:$B$13,'Competitive Activity 1'!P$7:P$13,\"N/A\",0,1)","v":"N/A"},{"$f":"_xlfn.XLOOKUP($E49,'Competitive Activity 1'!$B$7:$B$13,'Competitive Activity 1'!Q$7:Q$13,\"N/A\",0,1)","v":"N/A"},{"$f":"_xlfn.XLOOKUP($E49,'Competitive Activity 1'!$B$7:$B$13,'Competitive Activity 1'!R$7:R$13,\"N/A\",0,1)","v":"N/A"},{"$f":"_xlfn.XLOOKUP($E49,'Competitive Activity 1'!$B$7:$B$13,'Competitive Activity 1'!S$7:S$13,\"N/A\",0,1)","v":"N/A"},{"$f":"_xlfn.XLOOKUP($E49,'Competitive Activity 1'!$B$7:$B$13,'Competitive Activity 1'!T$7:T$13,\"N/A\",0,1)","v":"N/A"},{"$f":"_xlfn.XLOOKUP($E49,'Competitive Activity 1'!$B$7:$B$13,'Competitive Activity 1'!U$7:U$13,\"N/A\",0,1)","v":"N/A"},{"$f":"_xlfn.XLOOKUP($E49,'Competitive Activity 1'!$B$17:$B$23,'Competitive Activity 1'!C$17:C$23,\"N/A\",0,1)","v":"N/A"},{"$f":"_xlfn.XLOOKUP($E49,'Competitive Activity 1'!$B$17:$B$23,'Competitive Activity 1'!D$17:D$23,\"N/A\",0,1)","v":"N/A"},{"$f":"_xlfn.XLOOKUP($E49,'Competitive Activity 1'!$B$17:$B$23,'Competitive Activity 1'!E$17:E$23,\"N/A\",0,1)","v":"N/A"},{"$f":"_xlfn.XLOOKUP($E49,'Competitive Activity 1'!$B$17:$B$23,'Competitive Activity 1'!F$17:F$23,\"N/A\",0,1)","v":"N/A"},{"$f":"_xlfn.XLOOKUP($E49,'Competitive Activity 1'!$B$17:$B$23,'Competitive Activity 1'!G$17:G$23,\"N/A\",0,1)","v":"N/A"},{"$f":"_xlfn.XLOOKUP($E49,'Competitive Activity 1'!$B$17:$B$23,'Competitive Activity 1'!H$17:H$23,\"N/A\",0,1)","v":"N/A"},{"$f":"_xlfn.XLOOKUP($E49,'Competitive Activity 1'!$B$17:$B$23,'Competitive Activity 1'!I$17:I$23,\"N/A\",0,1)","v":"N/A"},{"$f":"_xlfn.XLOOKUP($E49,'Competitive Activity 1'!$B$17:$B$23,'Competitive Activity 1'!J$17:J$23,\"N/A\",0,1)","v":"N/A"},{"$f":"_xlfn.XLOOKUP($E49,'Competitive Activity 1'!$B$17:$B$23,'Competitive Activity 1'!K$17:K$23,\"N/A\",0,1)","v":"N/A"},{"$f":"_xlfn.XLOOKUP($E49,'Competitive Activity 1'!$B$17:$B$23,'Competitive Activity 1'!M$17:M$23,\"N/A\",0,1)","v":"N/A"},{"$f":"_xlfn.XLOOKUP($E49,'Competitive Activity 1'!$B$17:$B$23,'Competitive Activity 1'!N$17:N$23,\"N/A\",0,1)","v":"N/A"},{"$f":"_xlfn.XLOOKUP($E49,'Competitive Activity 1'!$B$17:$B$23,'Competitive Activity 1'!P$17:P$23,\"N/A\",0,1)","v":"N/A"},{"$f":"_xlfn.XLOOKUP($E49,'Competitive Activity 2'!$B$7:$B$13,'Competitive Activity 2'!A$7:A$13,\"No\",0)","v":"No"},{"$f":"_xlfn.XLOOKUP($E49,'Competitive Activity 2'!$B$7:$B$13,'Competitive Activity 2'!L$7:L$13,\"N/A\",0)","v":"N/A"},{"$f":"_xlfn.XLOOKUP($E49,'Competitive Activity 2'!$B$7:$B$13,'Competitive Activity 2'!M$7:M$13,\"N/A\",0)","v":"N/A"},{"$f":"_xlfn.XLOOKUP($E49,'Competitive Activity 2'!$B$7:$B$13,'Competitive Activity 2'!N$7:N$13,\"N/A\",0)","v":"N/A"},{"$f":"_xlfn.XLOOKUP($E49,'Competitive Activity 2'!$B$7:$B$13,'Competitive Activity 2'!O$7:O$13,\"N/A\",0)","v":"N/A"},{"$f":"_xlfn.XLOOKUP($E49,'Competitive Activity 2'!$B$7:$B$13,'Competitive Activity 2'!P$7:P$13,\"N/A\",0)","v":"N/A"},{"$f":"_xlfn.XLOOKUP($E49,'Competitive Activity 2'!$B$7:$B$13,'Competitive Activity 2'!Q$7:Q$13,\"N/A\",0)","v":"N/A"},{"$f":"_xlfn.XLOOKUP($E49,'Competitive Activity 2'!$B$7:$B$13,'Competitive Activity 2'!R$7:R$13,\"N/A\",0)","v":"N/A"},{"$f":"_xlfn.XLOOKUP($E49,'Competitive Activity 2'!$B$7:$B$13,'Competitive Activity 2'!S$7:S$13,\"N/A\",0)","v":"N/A"},{"$f":"_xlfn.XLOOKUP($E49,'Competitive Activity 2'!$B$7:$B$13,'Competitive Activity 2'!T$7:T$13,\"N/A\",0)","v":"N/A"},{"$f":"_xlfn.XLOOKUP($E49,'Competitive Activity 2'!$B$7:$B$13,'Competitive Activity 2'!U$7:U$13,\"N/A\",0)","v":"N/A"},{"$f":"_xlfn.XLOOKUP($E49,'Competitive Activity 2'!$B$17:$B$23,'Competitive Activity 2'!D$17:D$23,\"N/A\",0)","v":"N/A"},{"$f":"_xlfn.XLOOKUP($E49,'Competitive Activity 2'!$B$17:$B$23,'Competitive Activity 2'!E$17:E$23,\"N/A\",0)","v":"N/A"},{"$f":"_xlfn.XLOOKUP($E49,'Competitive Activity 2'!$B$17:$B$23,'Competitive Activity 2'!F$17:F$23,\"N/A\",0)","v":"N/A"},{"$f":"_xlfn.XLOOKUP($E49,'Competitive Activity 2'!$B$17:$B$23,'Competitive Activity 2'!G$17:G$23,\"N/A\",0)","v":"N/A"},{"$f":"_xlfn.XLOOKUP($E49,'Competitive Activity 2'!$B$17:$B$23,'Competitive Activity 2'!H$17:H$23,\"N/A\",0)","v":"N/A"},{"$f":"_xlfn.XLOOKUP($E49,'Competitive Activity 2'!$B$17:$B$23,'Competitive Activity 2'!I$17:I$23,\"N/A\",0)","v":"N/A"},{"$f":"_xlfn.XLOOKUP($E49,'Competitive Activity 2'!$B$17:$B$23,'Competitive Activity 2'!J$17:J$23,\"N/A\",0)","v":"N/A"},{"$f":"_xlfn.XLOOKUP($E49,'Competitive Activity 2'!$B$17:$B$23,'Competitive Activity 2'!K$17:K$23,\"N/A\",0)","v":"N/A"},{"$f":"_xlfn.XLOOKUP($E49,'Competitive Activity 2'!$B$17:$B$23,'Competitive Activity 2'!L$17:L$23,\"N/A\",0)","v":"N/A"},{"$f":"_xlfn.XLOOKUP($E49,'Competitive Activity 2'!$B$17:$B$23,'Competitive Activity 2'!M$17:M$23,\"N/A\",0)","v":"N/A"},{"$f":"_xlfn.XLOOKUP($E49,'Competitive Activity 2'!$B$17:$B$23,'Competitive Activity 2'!N$17:N$23,\"N/A\",0)","v":"N/A"},{"$f":"_xlfn.XLOOKUP($E49,'Competitive Activity 2'!$B$27:$B$33,'Competitive Activity 2'!D$27:D$33,\"N/A\",0)","v":"N/A"},{"$f":"_xlfn.XLOOKUP($E49,'Competitive Activity 2'!$B$27:$B$33,'Competitive Activity 2'!E$27:E$33,\"N/A\",0)","v":"N/A"},{"$f":"_xlfn.XLOOKUP($E49,'Competitive Activity 2'!$B$27:$B$33,'Competitive Activity 2'!F$27:F$33,\"N/A\",0)","v":"N/A"},{"$f":"_xlfn.XLOOKUP($E49,'Competitive Activity 2'!$B$27:$B$33,'Competitive Activity 2'!G$27:G$33,\"N/A\",0)","v":"N/A"},{"$f":"_xlfn.XLOOKUP($E49,'Competitive Activity 2'!$B$27:$B$33,'Competitive Activity 2'!H$27:H$33,\"N/A\",0)","v":"N/A"},{"$f":"_xlfn.XLOOKUP($E49,'Competitive Activity 2'!$B$27:$B$33,'Competitive Activity 2'!I$27:I$33,\"N/A\",0)","v":"N/A"},{"$f":"_xlfn.XLOOKUP($E49,'Competitive Activity 2'!$B$27:$B$33,'Competitive Activity 2'!J$27:J$33,\"N/A\",0)","v":"N/A"},{"$f":"_xlfn.XLOOKUP($E49,'Competitive Activity 2'!$B$27:$B$33,'Competitive Activity 2'!K$27:K$33,\"N/A\",0)","v":"N/A"},{"$f":"_xlfn.XLOOKUP($E49,'Competitive Activity 2'!$B$27:$B$33,'Competitive Activity 2'!M$27:M$33,\"N/A\",0)","v":"N/A"}]
[{"$f":"'1-Cover Sheet'!$C$8","v":"Select One"},{"$f":"'1-Cover Sheet'!$F$8","v":"Select One"},{"$f":"'Summary Sheet'!$D$8","v":0},{"$f":"'Summary Sheet'!$D$10","v":0},{"$f":"'Drop Down Box'!B214","v":0},{"$f":"'Drop Down Box'!C214","v":0},{"$f":"'Drop Down Box'!D214","v":"Select One"},{"$f":"_xlfn.XLOOKUP(E50,'Drop Down Box'!$B$166:$B$249,'Drop Down Box'!$A$166:$A$249,\"Unknown\",0)","v":"Activity 1"},{"$f":"_xlfn.XLOOKUP($E50,'Activity 7'!$B$17:$B$23,'Activity 7'!$O$17:$O$23,\"N/A\",0)","v":"N/A"},{"$f":"_xlfn.XLOOKUP($E50,'Activity 7'!$B$17:$B$23,'Activity 7'!$Q$17:$Q$23,\"N/A\",0)","v":"N/A"},{"$f":"_xlfn.XLOOKUP($E50,'Activity 7'!$B$7:$B$13,'Activity 7'!$H$7:$H$13,\"N/A\",0)","v":"N/A"},{"$f":"_xlfn.XLOOKUP($E50,'Activity 7'!$B$7:$B$13,'Activity 7'!I$7:I$13,\"N/A\",0)","v":"N/A"},{"$f":"_xlfn.XLOOKUP($E50,'Activity 7'!$B$7:$B$13,'Activity 7'!J$7:J$13,\"N/A\",0)","v":"N/A"},{"$f":"_xlfn.XLOOKUP($E50,'Activity 1'!$B$7:$B$13,'Activity 1'!$A$7:$A$13,\"No\",0,1)","v":"No"},{"$f":"_xlfn.XLOOKUP($E50,'Activity 1'!$B$7:$B$13,'Activity 1'!$H$7:$H$13,\"N/A\",0,1)","v":"N/A"},{"$f":"_xlfn.XLOOKUP($E50,'Activity 1'!$B$7:$B$13,'Activity 1'!I$7:I$13,\"N/A\",0,1)","v":"N/A"},{"$f":"_xlfn.XLOOKUP($E50,'Activity 1'!$B$7:$B$13,'Activity 1'!J$7:J$13,\"N/A\",0,1)","v":"N/A"},{"$f":"_xlfn.XLOOKUP($E50,'Activity 1'!$B$7:$B$13,'Activity 1'!K$7:K$13,\"N/A\",0,1)","v":"N/A"},{"$f":"_xlfn.XLOOKUP($E50,'Activity 1'!$B$7:$B$13,'Activity 1'!L$7:L$13,\"N/A\",0,1)","v":"N/A"},{"$f":"_xlfn.XLOOKUP($E50,'Activity 1'!$B$7:$B$13,'Activity 1'!M$7:M$13,\"N/A\",0,1)","v":"N/A"},{"$f":"_xlfn.XLOOKUP($E50,'Activity 1'!$B$7:$B$13,'Activity 1'!N$7:N$13,\"N/A\",0,1)","v":"N/A"},0,{"$f":"_xlfn.XLOOKUP($E50,'Activity 1'!$B$7:$B$13,'Activity 1'!O$7:O$13,\"N/A\",0,1)","v":"N/A"},{"$f":"_xlfn.XLOOKUP($E50,'Activity 1'!$B$7:$B$13,'Activity 1'!P$7:P$13,\"N/A\",0,1)","v":"N/A"},{"$f":"_xlfn.XLOOKUP($E50,'Activity 1'!$B$7:$B$13,'Activity 1'!Q$7:Q$13,\"N/A\",0,1)","v":"N/A"},{"$f":"_xlfn.XLOOKUP($E50,'Activity 1'!$B$7:$B$13,'Activity 1'!R$7:R$13,\"N/A\",0,1)","v":"N/A"},{"$f":"_xlfn.XLOOKUP($E50,'Activity 1'!$B$7:$B$13,'Activity 1'!S$7:S$13,\"N/A\",0,1)","v":"N/A"},{"$f":"_xlfn.XLOOKUP($E50,'Activity 1'!$B$7:$B$13,'Activity 1'!T$7:T$13,\"N/A\",0,1)","v":"N/A"},{"$f":"_xlfn.XLOOKUP($E50,'Activity 1'!$B$7:$B$13,'Activity 1'!U$7:U$13,\"N/A\",0,1)","v":"N/A"},{"$f":"_xlfn.XLOOKUP($E50,'Activity 1'!$B$7:$B$13,'Activity 1'!V$7:V$13,\"N/A\",0,1)","v":"N/A"},{"$f":"_xlfn.XLOOKUP($E50,'Activity 1'!$B$17:$B$23,'Activity 1'!C$17:C$23,\"N/A\",0,1)","v":"N/A"},{"$f":"_xlfn.XLOOKUP($E50,'Activity 1'!$B$17:$B$23,'Activity 1'!D$17:D$23,\"N/A\",0,1)","v":"N/A"},{"$f":"_xlfn.XLOOKUP($E50,'Activity 1'!$B$17:$B$23,'Activity 1'!E$17:E$23,\"N/A\",0,1)","v":"N/A"},{"$f":"_xlfn.XLOOKUP($E50,'Activity 1'!$B$17:$B$23,'Activity 1'!F$17:F$23,\"N/A\",0,1)","v":"N/A"},{"$f":"_xlfn.XLOOKUP($E50,'Activity 1'!$B$17:$B$23,'Activity 1'!G$17:G$23,\"N/A\",0,1)","v":"N/A"},{"$f":"_xlfn.XLOOKUP($E50,'Activity 1'!$B$17:$B$23,'Activity 1'!H$17:H$23,\"N/A\",0,1)","v":"N/A"},{"$f":"_xlfn.XLOOKUP($E50,'Activity 1'!$B$17:$B$23,'Activity 1'!I$17:I$23,\"N/A\",0,1)","v":"N/A"},{"$f":"_xlfn.XLOOKUP($E50,'Activity 1'!$B$17:$B$23,'Activity 1'!J$17:J$23,\"N/A\",0,1)","v":"N/A"},{"$f":"_xlfn.XLOOKUP($E50,'Activity 1'!$B$17:$B$23,'Activity 1'!K$17:K$23,\"N/A\",0,1)","v":"N/A"},{"$f":"_xlfn.XLOOKUP($E50,'Activity 1'!$B$17:$B$23,'Activity 1'!L$17:L$23,\"N/A\",0,1)","v":"N/A"},{"$f":"_xlfn.XLOOKUP($E50,'Activity 1'!$B$17:$B$23,'Activity 1'!M$17:M$23,\"N/A\",0,1)","v":"N/A"},{"$f":"_xlfn.XLOOKUP($E50,'Activity 1'!$B$17:$B$23,'Activity 1'!O$17:O$23,\"N/A\",0,1)","v":"N/A"},{"$f":"_xlfn.XLOOKUP($E50,'Activity 1'!$B$17:$B$23,'Activity 1'!Q$17:Q$23,\"N/A\",0,1)","v":"N/A"},{"$f":"_xlfn.XLOOKUP($E50,'Activity 2'!$B$7:$B$13,'Activity 2'!$A$7:$A$13,\"No\",0,1)","v":"No"},{"$f":"_xlfn.XLOOKUP($E50,'Activity 2'!B$7:B$13,'Activity 2'!H$7:H$13,\"N/A\",0)","v":"N/A"},{"$f":"_xlfn.XLOOKUP($E50,'Activity 2'!C$7:C$13,'Activity 2'!I$7:I$13,\"N/A\",0)","v":"N/A"},{"$f":"_xlfn.XLOOKUP($E50,'Activity 2'!D$7:D$13,'Activity 2'!J$7:J$13,\"N/A\",0)","v":"N/A"},{"$f":"_xlfn.XLOOKUP($E50,'Activity 2'!E$7:E$13,'Activity 2'!K$7:K$13,\"N/A\",0)","v":"N/A"},{"$f":"_xlfn.XLOOKUP($E50,'Activity 2'!F$7:F$13,'Activity 2'!L$7:L$13,\"N/A\",0)","v":"N/A"},{"$f":"_xlfn.XLOOKUP($E50,'Activity 2'!G$7:G$13,'Activity 2'!M$7:M$13,\"N/A\",0)","v":"N/A"},{"$f":"_xlfn.XLOOKUP($E50,'Activity 2'!H$7:H$13,'Activity 2'!N$7:N$13,\"N/A\",0)","v":"N/A"},{"$f":"_xlfn.XLOOKUP($E50,'Activity 2'!I$7:I$13,'Activity 2'!O$7:O$13,\"N/A\",0)","v":"N/A"},{"$f":"_xlfn.XLOOKUP($E50,'Activity 2'!J$7:J$13,'Activity 2'!P$7:P$13,\"N/A\",0)","v":"N/A"},{"$f":"_xlfn.XLOOKUP($E50,'Activity 2'!K$7:K$13,'Activity 2'!Q$7:Q$13,\"N/A\",0)","v":"N/A"},{"$f":"_xlfn.XLOOKUP($E50,'Activity 2'!L$7:L$13,'Activity 2'!R$7:R$13,\"N/A\",0)","v":"N/A"},{"$f":"_xlfn.XLOOKUP($E50,'Activity 2'!M$7:M$13,'Activity 2'!S$7:S$13,\"N/A\",0)","v":"N/A"},{"$f":"_xlfn.XLOOKUP($E50,'Activity 2'!N$7:N$13,'Activity 2'!T$7:T$13,\"N/A\",0)","v":"N/A"},{"$f":"_xlfn.XLOOKUP($E50,'Activity 2'!O$7:O$13,'Activity 2'!U$7:U$13,\"N/A\",0)","v":"N/A"},{"$f":"_xlfn.XLOOKUP($E50,'Activity 2'!P$7:P$13,'Activity 2'!V$7:V$13,\"N/A\",0)","v":"N/A"},{"$f":"_xlfn.XLOOKUP($E50,'Activity 2'!$B$17:$B$23,'Activity 2'!C$17:C$23,\"N/A\",0,1)","v":"N/A"},{"$f":"_xlfn.XLOOKUP($E50,'Activity 2'!$B$17:$B$23,'Activity 2'!D$17:D$23,\"N/A\",0,1)","v":"N/A"},{"$f":"_xlfn.XLOOKUP($E50,'Activity 2'!$B$17:$B$23,'Activity 2'!E$17:E$23,\"N/A\",0,1)","v":"N/A"},{"$f":"_xlfn.XLOOKUP($E50,'Activity 2'!$B$17:$B$23,'Activity 2'!F$17:F$23,\"N/A\",0,1)","v":"N/A"},{"$f":"_xlfn.XLOOKUP($E50,'Activity 2'!$B$17:$B$23,'Activity 2'!G$17:G$23,\"N/A\",0,1)","v":"N/A"},{"$f":"_xlfn.XLOOKUP($E50,'Activity 2'!$B$17:$B$23,'Activity 2'!H$17:H$23,\"N/A\",0,1)","v":"N/A"},{"$f":"_xlfn.XLOOKUP($E50,'Activity 2'!$B$17:$B$23,'Activity 2'!I$17:I$23,\"N/A\",0,1)","v":"N/A"},{"$f":"_xlfn.XLOOKUP($E50,'Activity 2'!$B$17:$B$23,'Activity 2'!J$17:J$23,\"N/A\",0,1)","v":"N/A"},{"$f":"_xlfn.XLOOKUP($E50,'Activity 2'!$B$17:$B$23,'Activity 2'!K$17:K$23,\"N/A\",0,1)","v":"N/A"},{"$f":"_xlfn.XLOOKUP($E50,'Activity 2'!$B$17:$B$23,'Activity 2'!L$17:L$23,\"N/A\",0,1)","v":"N/A"},{"$f":"_xlfn.XLOOKUP($E50,'Activity 2'!$B$17:$B$23,'Activity 2'!M$17:M$23,\"N/A\",0,1)","v":"N/A"},{"$f":"_xlfn.XLOOKUP($E50,'Activity 2'!$B$17:$B$23,'Activity 2'!O$17:O$23,\"N/A\",0,1)","v":"N/A"},{"$f":"_xlfn.XLOOKUP($E50,'Activity 2'!$B$17:$B$23,'Activity 2'!Q$17:Q$23,\"N/A\",0,1)","v":"N/A"},null,{"$f":"_xlfn.XLOOKUP($E50,'Activity 3'!$B$8:$B$14,'Activity 3'!K$8:K$14,\"N/A\",0,1)","v":"N/A"},{"$f":"_xlfn.XLOOKUP($E50,'Activity 3'!$B$8:$B$14,'Activity 3'!L$8:L$14,\"N/A\",0,1)","v":"N/A"},{"$f":"_xlfn.XLOOKUP($E50,'Activity 3'!$B$8:$B$14,'Activity 3'!M$8:M$14,\"N/A\",0,1)","v":"N/A"},{"$f":"_xlfn.XLOOKUP($E50,'Activity 3'!$B$8:$B$14,'Activity 3'!N$8:N$14,\"N/A\",0,1)","v":"N/A"},{"$f":"_xlfn.XLOOKUP($E50,'Activity 3'!$B$8:$B$14,'Activity 3'!O$8:O$14,\"N/A\",0,1)","v":"N/A"},{"$f":"_xlfn.XLOOKUP($E50,'Activity 3'!$B$8:$B$14,'Activity 3'!R$8:R$14,\"N/A\",0,1)","v":"N/A"},{"$f":"_xlfn.XLOOKUP($E50,'Activity 4'!$B$8:$B$14,'Activity 4'!$A$8:$A$14,\"No\",0,1)","v":"No"},{"$f":"_xlfn.XLOOKUP($E50,'Activity 4'!$B$8:$B$14,'Activity 4'!L$8:L$14,\"N/A\",0,1)","v":"N/A"},{"$f":"_xlfn.XLOOKUP($E50,'Activity 4'!$B$8:$B$14,'Activity 4'!I$8:I$14,\"N/A\",0,1)","v":"N/A"},{"$f":"_xlfn.XLOOKUP($E50,'Activity 4'!$B$8:$B$14,'Activity 4'!M$8:M$14,\"N/A\",0,1)","v":"N/A"},{"$f":"_xlfn.XLOOKUP($E50,'Activity 5'!$B$8:$B$14,'Activity 5'!$A$8:$A$14,\"No\",0,1)","v":"No"},{"$f":"_xlfn.XLOOKUP($E50,'Activity 5'!$B$8:$B$14,'Activity 5'!J$8:J$14,\"N/A\",0,1)","v":"N/A"},{"$f":"_xlfn.XLOOKUP($E50,'Activity 5'!$B$8:$B$14,'Activity 5'!K$8:K$14,\"N/A\",0,1)","v":"N/A"},{"$f":"_xlfn.XLOOKUP($E50,'Activity 5'!$B$8:$B$14,'Activity 5'!N$8:N$14,\"N/A\",0,1)","v":"N/A"},{"$f":"_xlfn.XLOOKUP($E50,'Activity 5'!$B$8:$B$14,'Activity 5'!O$8:O$14,\"N/A\",0,1)","v":"N/A"},{"$f":"_xlfn.XLOOKUP($E50,'Activity 5'!$B$8:$B$14,'Activity 5'!P$8:P$14,\"N/A\",0,1)","v":"N/A"},{"$f":"_xlfn.XLOOKUP($E50,'Activity 5'!$B$8:$B$14,'Activity 5'!Q$8:Q$14,\"N/A\",0,1)","v":"N/A"},{"$f":"_xlfn.XLOOKUP($E50,'Activity 5'!$B$8:$B$14,'Activity 5'!R$8:R$14,\"N/A\",0,1)","v":"N/A"},{"$f":"_xlfn.XLOOKUP($E50,'Activity 6'!$B$7:$B$13,'Activity 6'!A$7:A$13,\"No\",0,1)","v":"No"},{"$f":"_xlfn.XLOOKUP($E50,'Activity 6'!$B$7:$B$13,'Activity 6'!K$7:K$13,\"N/A\",0,1)","v":"N/A"},{"$f":"_xlfn.XLOOKUP($E50,'Activity 6'!$B$7:$B$13,'Activity 6'!L$7:L$13,\"N/A\",0,1)","v":"N/A"},{"$f":"_xlfn.XLOOKUP($E50,'Activity 6'!$B$7:$B$13,'Activity 6'!M$7:M$13,\"N/A\",0,1)","v":"N/A"},{"$f":"_xlfn.XLOOKUP($E50,'Activity 6'!$B$7:$B$13,'Activity 6'!N$7:N$13,\"N/A\",0,1)","v":"N/A"},{"$f":"_xlfn.XLOOKUP($E50,'Activity 6'!$B$7:$B$13,'Activity 6'!O$7:O$13,\"N/A\",0,1)","v":"N/A"},{"$f":"_xlfn.XLOOKUP($E50,'Activity 6'!$B$7:$B$13,'Activity 6'!P$7:P$13,\"N/A\",0,1)","v":"N/A"},{"$f":"_xlfn.XLOOKUP($E50,'Activity 6'!$B$7:$B$13,'Activity 6'!Q$7:Q$13,\"N/A\",0,1)","v":"N/A"},{"$f":"_xlfn.XLOOKUP($E50,'Activity 6'!$B$7:$B$13,'Activity 6'!R$7:R$13,\"N/A\",0,1)","v":"N/A"},{"$f":"_xlfn.XLOOKUP($E50,'Activity 6'!$B$7:$B$13,'Activity 6'!S$7:S$13,\"N/A\",0,1)","v":"N/A"},{"$f":"_xlfn.XLOOKUP($E50,'Activity 6'!$B$7:$B$13,'Activity 6'!T$7:T$13,\"N/A\",0,1)","v":"N/A"},{"$f":"_xlfn.XLOOKUP($E50,'Activity 6'!$B$7:$B$13,'Activity 6'!U$7:U$13,\"N/A\",0,1)","v":"N/A"},{"$f":"_xlfn.XLOOKUP($E50,'Activity 6'!$B$22:$B$28,'Activity 6'!C$22:C$28,\"N/A\",0,1)","v":"N/A"},{"$f":"_xlfn.XLOOKUP($E50,'Activity 6'!$B$22:$B$28,'Activity 6'!D$22:D$28,\"N/A\",0,1)","v":"N/A"},{"$f":"_xlfn.XLOOKUP($E50,'Activity 6'!$B$22:$B$28,'Activity 6'!E$22:E$28,\"N/A\",0,1)","v":"N/A"},{"$f":"_xlfn.XLOOKUP($E50,'Activity 6'!$B$22:$B$28,'Activity 6'!F$22:F$28,\"N/A\",0,1)","v":"N/A"},{"$f":"_xlfn.XLOOKUP($E50,'Activity 6'!$B$22:$B$28,'Activity 6'!G$22:G$28,\"N/A\",0,1)","v":"N/A"},{"$f":"_xlfn.XLOOKUP($E50,'Activity 6'!$B$22:$B$28,'Activity 6'!H$22:H$28,\"N/A\",0,1)","v":"N/A"},{"$f":"_xlfn.XLOOKUP($E50,'Activity 6'!$B$22:$B$28,'Activity 6'!I$22:I$28,\"N/A\",0,1)","v":"N/A"},{"$f":"_xlfn.XLOOKUP($E50,'Activity 6'!$B$22:$B$28,'Activity 6'!J$22:J$28,\"N/A\",0,1)","v":"N/A"},{"$f":"_xlfn.XLOOKUP($E50,'Activity 6'!$B$22:$B$28,'Activity 6'!K$22:K$28,\"N/A\",0,1)","v":"N/A"},{"$f":"_xlfn.XLOOKUP($E50,'Activity 6'!$B$22:$B$28,'Activity 6'!L$22:L$28,\"N/A\",0,1)","v":"N/A"},{"$f":"_xlfn.XLOOKUP($E50,'Activity 6'!$B$22:$B$28,'Activity 6'!M$22:M$28,\"N/A\",0,1)","v":"N/A"},{"$f":"_xlfn.XLOOKUP($E50,'Activity 6'!$B$22:$B$28,'Activity 6'!N$22:N$28,\"N/A\",0,1)","v":"N/A"},{"$f":"_xlfn.XLOOKUP($E50,'Activity 6'!$B$32:$B$38,'Activity 6'!C$32:C$38,\"N/A\",0,1)","v":"N/A"},{"$f":"_xlfn.XLOOKUP($E50,'Activity 6'!$B$32:$B$38,'Activity 6'!D$32:D$38,\"N/A\",0,1)","v":"N/A"},{"$f":"_xlfn.XLOOKUP($E50,'Activity 6'!$B$32:$B$38,'Activity 6'!E$32:E$38,\"N/A\",0,1)","v":"N/A"},{"$f":"_xlfn.XLOOKUP($E50,'Activity 6'!$B$32:$B$38,'Activity 6'!F$32:F$38,\"N/A\",0,1)","v":"N/A"},{"$f":"_xlfn.XLOOKUP($E50,'Activity 6'!$B$32:$B$38,'Activity 6'!G$32:G$38,\"N/A\",0,1)","v":"N/A"},{"$f":"_xlfn.XLOOKUP($E50,'Activity 6'!$B$32:$B$38,'Activity 6'!H$32:H$38,\"N/A\",0,1)","v":"N/A"},{"$f":"_xlfn.XLOOKUP($E50,'Activity 6'!$B$32:$B$38,'Activity 6'!I$32:I$38,\"N/A\",0,1)","v":"N/A"},{"$f":"_xlfn.XLOOKUP($E50,'Activity 6'!$B$32:$B$38,'Activity 6'!J$32:J$38,\"N/A\",0,1)","v":"N/A"},{"$f":"_xlfn.XLOOKUP($E50,'Activity 6'!$B$32:$B$38,'Activity 6'!K$32:K$38,\"N/A\",0,1)","v":"N/A"},{"$f":"_xlfn.XLOOKUP($E50,'Activity 6'!$B$32:$B$38,'Activity 6'!M$32:M$38,\"N/A\",0,1)","v":"N/A"},{"$f":"_xlfn.XLOOKUP($E50,'Activity 7'!$B$7:$B$13,'Activity 7'!$A$7:$A$13,\"No\",0,1)","v":"No"},{"$f":"_xlfn.XLOOKUP($E50,'Activity 7'!$B$7:$B$13,'Activity 7'!M$7:M$13,\"N/A\",0,1)","v":"N/A"},{"$f":"_xlfn.XLOOKUP($E50,'Activity 7'!$B$7:$B$13,'Activity 7'!K$7:K$13,\"N/A\",0,1)","v":"N/A"},{"$f":"_xlfn.XLOOKUP($E50,'Activity 7'!$B$7:$B$13,'Activity 7'!N$7:N$13,\"N/A\",0,1)","v":"N/A"},{"$f":"_xlfn.XLOOKUP($E50,'Activity 7'!$B$7:$B$13,'Activity 7'!O$7:O$13,\"N/A\",0,1)","v":"N/A"},{"$f":"_xlfn.XLOOKUP($E50,'Activity 7'!$B$7:$B$13,'Activity 7'!P$7:P$13,\"N/A\",0,1)","v":"N/A"},{"$f":"_xlfn.XLOOKUP($E50,'Activity 7'!$B$7:$B$13,'Activity 7'!Q$7:Q$13,\"N/A\",0,1)","v":"N/A"},{"$f":"_xlfn.XLOOKUP($E50,'Activity 7'!$B$7:$B$13,'Activity 7'!R$7:R$13,\"N/A\",0,1)","v":"N/A"},{"$f":"_xlfn.XLOOKUP($E50,'Activity 7'!$B$7:$B$13,'Activity 7'!S$7:S$13,\"N/A\",0,1)","v":"N/A"},{"$f":"_xlfn.XLOOKUP($E50,'Activity 7'!$B$7:$B$13,'Activity 7'!T$7:T$13,\"N/A\",0,1)","v":"N/A"},{"$f":"_xlfn.XLOOKUP($E50,'Activity 7'!$B$7:$B$13,'Activity 7'!U$7:U$13,\"N/A\",0,1)","v":"N/A"},{"$f":"_xlfn.XLOOKUP($E50,'Activity 7'!$B$7:$B$13,'Activity 7'!V$7:V$13,\"N/A\",0,1)","v":"N/A"},{"$f":"_xlfn.XLOOKUP($E50,'Activity 7'!$B$17:$B$23,'Activity 7'!E$17:E$23,\"N/A\",0,1)","v":"N/A"},{"$f":"_xlfn.XLOOKUP($E50,'Activity 7'!$B$17:$B$23,'Activity 7'!G$17:G$23,\"N/A\",0,1)","v":"N/A"},{"$f":"_xlfn.XLOOKUP($E50,'Activity 7'!$B$17:$B$23,'Activity 7'!I$17:I$23,\"N/A\",0,1)","v":"N/A"},{"$f":"_xlfn.XLOOKUP($E50,'Activity 7'!$B$17:$B$23,'Activity 7'!J$17:J$23,\"N/A\",0,1)","v":"N/A"},{"$f":"_xlfn.XLOOKUP($E50,'Activity 7'!$B$17:$B$23,'Activity 7'!K$17:K$23,\"N/A\",0,1)","v":"N/A"},{"$f":"_xlfn.XLOOKUP($E50,'Activity 7'!$B$17:$B$23,'Activity 7'!L$17:L$23,\"N/A\",0,1)","v":"N/A"},{"$f":"_xlfn.XLOOKUP($E50,'Activity 7'!$B$17:$B$23,'Activity 7'!M$17:M$23,\"N/A\",0,1)","v":"N/A"},{"$f":"_xlfn.XLOOKUP($E50,'Activity 7'!$B$17:$B$23,'Activity 7'!N$17:N$23,\"N/A\",0,1)","v":"N/A"},{"$f":"_xlfn.XLOOKUP($E50,'Activity 7'!$B$17:$B$23,'Activity 7'!P$17:P$23,\"N/A\",0,1)","v":"N/A"},{"$f":"_xlfn.XLOOKUP($E50,'Activity 8'!$B$7:$B$13,'Activity 8'!A$7:A$13,\"No\",0,1)","v":"No"},{"$f":"_xlfn.XLOOKUP($E50,'Activity 8'!$B$7:$B$13,'Activity 8'!I$7:I$13,\"N/A\",0,1)","v":"N/A"},{"$f":"_xlfn.XLOOKUP($E50,'Activity 8'!$B$7:$B$13,'Activity 8'!J$7:J$13,\"N/A\",0,1)","v":"N/A"},{"$f":"_xlfn.XLOOKUP($E50,'Activity 8'!$B$7:$B$13,'Activity 8'!K$7:K$13,\"N/A\",0,1)","v":"N/A"},{"$f":"_xlfn.XLOOKUP($E50,'Activity 8'!$B$7:$B$13,'Activity 8'!L$7:L$13,\"N/A\",0,1)","v":"N/A"},{"$f":"_xlfn.XLOOKUP($E50,'Activity 8'!$B$7:$B$13,'Activity 8'!M$7:M$13,\"N/A\",0,1)","v":"N/A"},{"$f":"_xlfn.XLOOKUP($E50,'Activity 8'!$B$7:$B$13,'Activity 8'!N$7:N$13,\"N/A\",0,1)","v":"N/A"},{"$f":"_xlfn.XLOOKUP($E50,'Activity 8'!$B$7:$B$13,'Activity 8'!O$7:O$13,\"N/A\",0,1)","v":"N/A"},{"$f":"_xlfn.XLOOKUP($E50,'Activity 8'!$B$7:$B$13,'Activity 8'!P$7:P$13,\"N/A\",0,1)","v":"N/A"},{"$f":"_xlfn.XLOOKUP($E50,'Activity 8'!$B$7:$B$13,'Activity 8'!Q$7:Q$13,\"N/A\",0,1)","v":"N/A"},{"$f":"_xlfn.XLOOKUP($E50,'Activity 8'!$B$7:$B$13,'Activity 8'!R$7:R$13,\"N/A\",0,1)","v":"N/A"},{"$f":"_xlfn.XLOOKUP($E50,'Activity 8'!$B$7:$B$13,'Activity 8'!S$7:S$13,\"N/A\",0,1)","v":"N/A"},{"$f":"_xlfn.XLOOKUP($E50,'Activity 8'!$B$7:$B$13,'Activity 8'!T$7:T$13,\"N/A\",0,1)","v":"N/A"},{"$f":"_xlfn.XLOOKUP($E50,'Activity 8'!$B$7:$B$13,'Activity 8'!U$7:U$13,\"N/A\",0,1)","v":"N/A"},{"$f":"_xlfn.XLOOKUP($E50,'Activity 8'!$B$7:$B$13,'Activity 8'!V$7:V$13,\"N/A\",0,1)","v":"N/A"},{"$f":"_xlfn.XLOOKUP($E50,'Activity 8'!$B$17:$B$23,'Activity 8'!D$17:D$23,\"N/A\",0,1)","v":"N/A"},{"$f":"_xlfn.XLOOKUP($E50,'Activity 8'!$B$17:$B$23,'Activity 8'!E$17:E$23,\"N/A\",0,1)","v":"N/A"},{"$f":"_xlfn.XLOOKUP($E50,'Activity 8'!$B$17:$B$23,'Activity 8'!F$17:F$23,\"N/A\",0,1)","v":"N/A"},{"$f":"_xlfn.XLOOKUP($E50,'Activity 8'!$B$17:$B$23,'Activity 8'!G$17:G$23,\"N/A\",0,1)","v":"N/A"},{"$f":"_xlfn.XLOOKUP($E50,'Activity 8'!$B$17:$B$23,'Activity 8'!H$17:H$23,\"N/A\",0,1)","v":"N/A"},{"$f":"_xlfn.XLOOKUP($E50,'Activity 8'!$B$17:$B$23,'Activity 8'!I$17:I$23,\"N/A\",0,1)","v":"N/A"},{"$f":"_xlfn.XLOOKUP($E50,'Activity 8'!$B$17:$B$23,'Activity 8'!J$17:J$23,\"N/A\",0,1)","v":"N/A"},{"$f":"_xlfn.XLOOKUP($E50,'Activity 8'!$B$17:$B$23,'Activity 8'!K$17:K$23,\"N/A\",0,1)","v":"N/A"},{"$f":"_xlfn.XLOOKUP($E50,'Activity 8'!$B$17:$B$23,'Activity 8'!L$17:L$23,\"N/A\",0,1)","v":"N/A"},{"$f":"_xlfn.XLOOKUP($E50,'Activity 8'!$B$17:$B$23,'Activity 8'!M$17:M$23,\"N/A\",0,1)","v":"N/A"},{"$f":"_xlfn.XLOOKUP($E50,'Activity 8'!$B$17:$B$23,'Activity 8'!N$17:N$23,\"N/A\",0,1)","v":"N/A"},{"$f":"_xlfn.XLOOKUP($E50,'Activity 8'!$B$17:$B$23,'Activity 8'!P$17:P$23,\"N/A\",0,1)","v":"N/A"},{"$f":"_xlfn.XLOOKUP(E50,'Activity 9'!$B$7:$B$13,'Activity 9'!$A$7:$A$13,\"No\",0,1)","v":"No"},{"$f":"_xlfn.XLOOKUP($E50,'Activity 9'!$B$7:$B$13,'Activity 9'!J$7:J$13,\"N/A\",0,1)","v":"N/A"},{"$f":"_xlfn.XLOOKUP($E50,'Activity 9'!$B$7:$B$13,'Activity 9'!K$7:K$13,\"N/A\",0,1)","v":"N/A"},{"$f":"_xlfn.XLOOKUP($E50,'Activity 9'!$B$7:$B$13,'Activity 9'!L$7:L$13,\"N/A\",0,1)","v":"N/A"},{"$f":"_xlfn.XLOOKUP($E50,'Activity 9'!$B$7:$B$13,'Activity 9'!M$7:M$13,\"N/A\",0,1)","v":"N/A"},{"$f":"_xlfn.XLOOKUP($E50,'Activity 9'!$B$7:$B$13,'Activity 9'!N$7:N$13,\"N/A\",0,1)","v":"N/A"},{"$f":"_xlfn.XLOOKUP($E50,'Activity 9'!$B$7:$B$13,'Activity 9'!O$7:O$13,\"N/A\",0,1)","v":"N/A"},{"$f":"_xlfn.XLOOKUP($E50,'Activity 9'!$B$7:$B$13,'Activity 9'!P$7:P$13,\"N/A\",0,1)","v":"N/A"},{"$f":"_xlfn.XLOOKUP($E50,'Activity 9'!$B$7:$B$13,'Activity 9'!Q$7:Q$13,\"N/A\",0,1)","v":"N/A"},{"$f":"_xlfn.XLOOKUP($E50,'Activity 9'!$B$7:$B$13,'Activity 9'!R$7:R$13,\"N/A\",0,1)","v":"N/A"},{"$f":"_xlfn.XLOOKUP($E50,'Activity 9'!$B$7:$B$13,'Activity 9'!S$7:S$13,\"N/A\",0,1)","v":"N/A"},{"$f":"_xlfn.XLOOKUP($E50,'Activity 9'!$B$7:$B$13,'Activity 9'!T$7:T$13,\"N/A\",0,1)","v":"N/A"},{"$f":"_xlfn.XLOOKUP($E50,'Activity 9'!$B$17:$B$23,'Activity 9'!E$17:E$23,\"N/A\",0,1)","v":"N/A"},{"$f":"_xlfn.XLOOKUP($E50,'Activity 9'!$B$17:$B$23,'Activity 9'!F$17:F$23,\"N/A\",0,1)","v":"N/A"},{"$f":"_xlfn.XLOOKUP($E50,'Activity 9'!$B$17:$B$23,'Activity 9'!G$17:G$23,\"N/A\",0,1)","v":"N/A"},{"$f":"_xlfn.XLOOKUP($E50,'Activity 9'!$B$17:$B$23,'Activity 9'!H$17:H$23,\"N/A\",0,1)","v":"N/A"},{"$f":"_xlfn.XLOOKUP($E50,'Activity 9'!$B$17:$B$23,'Activity 9'!I$17:I$23,\"N/A\",0,1)","v":"N/A"},{"$f":"_xlfn.XLOOKUP($E50,'Activity 9'!$B$17:$B$23,'Activity 9'!J$17:J$23,\"N/A\",0,1)","v":"N/A"},{"$f":"_xlfn.XLOOKUP($E50,'Activity 9'!$B$17:$B$23,'Activity 9'!K$17:K$23,\"N/A\",0,1)","v":"N/A"},{"$f":"_xlfn.XLOOKUP($E50,'Activity 9'!$B$17:$B$23,'Activity 9'!L$17:L$23,\"N/A\",0,1)","v":"N/A"},{"$f":"_xlfn.XLOOKUP($E50,'Activity 9'!$B$17:$B$23,'Activity 9'!N$17:N$23,\"N/A\",0,1)","v":"N/A"},{"$f":"_xlfn.XLOOKUP($E50,'Activity 9'!$B$17:$B$23,'Activity 9'!O$17:O$23,\"N/A\",0,1)","v":"N/A"},{"$f":"_xlfn.XLOOKUP($E50,'Activity 9'!$B$17:$B$23,'Activity 9'!Q$17:Q$23,\"N/A\",0,1)","v":"N/A"},{"$f":"_xlfn.XLOOKUP($E50,'Activity 10'!$B$7:$B$13,'Activity 10'!A$7:A$13,\"No\",0,1)","v":"No"},{"$f":"_xlfn.XLOOKUP($E50,'Activity 10'!$B$7:$B$13,'Activity 10'!J$7:J$13,\"N/A\",0,1)","v":"N/A"},{"$f":"_xlfn.XLOOKUP($E50,'Activity 10'!$B$7:$B$13,'Activity 10'!K$7:K$13,\"N/A\",0,1)","v":"N/A"},{"$f":"_xlfn.XLOOKUP($E50,'Activity 10'!$B$7:$B$13,'Activity 10'!L$7:L$13,\"N/A\",0,1)","v":"N/A"},{"$f":"_xlfn.XLOOKUP($E50,'Activity 10'!$B$7:$B$13,'Activity 10'!M$7:M$13,\"N/A\",0,1)","v":"N/A"},{"$f":"_xlfn.XLOOKUP($E50,'Activity 10'!$B$7:$B$13,'Activity 10'!N$7:N$13,\"N/A\",0,1)","v":"N/A"},{"$f":"_xlfn.XLOOKUP($E50,'Activity 10'!$B$7:$B$13,'Activity 10'!O$7:O$13,\"N/A\",0,1)","v":"N/A"},{"$f":"_xlfn.XLOOKUP($E50,'Activity 10'!$B$7:$B$13,'Activity 10'!P$7:P$13,\"N/A\",0,1)","v":"N/A"},{"$f":"_xlfn.XLOOKUP($E50,'Activity 10'!$B$7:$B$13,'Activity 10'!Q$7:Q$13,\"N/A\",0,1)","v":"N/A"},{"$f":"_xlfn.XLOOKUP($E50,'Activity 10'!$B$7:$B$13,'Activity 10'!R$7:R$13,\"N/A\",0,1)","v":"N/A"},{"$f":"_xlfn.XLOOKUP($E50,'Activity 10'!$B$7:$B$13,'Activity 10'!S$7:S$13,\"N/A\",0,1)","v":"N/A"},{"$f":"_xlfn.XLOOKUP($E50,'Activity 10'!$B$7:$B$13,'Activity 10'!T$7:T$13,\"N/A\",0,1)","v":"N/A"},{"$f":"_xlfn.XLOOKUP($E50,'Activity 10'!$B$7:$B$13,'Activity 10'!U$7:U$13,\"N/A\",0,1)","v":"N/A"},{"$f":"_xlfn.XLOOKUP($E50,'Activity 10'!$B$7:$B$13,'Activity 10'!V$7:V$13,\"N/A\",0,1)","v":"N/A"},{"$f":"_xlfn.XLOOKUP($E50,'Activity 10'!$B$17:$B$23,'Activity 10'!E$17:E$23,\"N/A\",0,1)","v":"N/A"},{"$f":"_xlfn.XLOOKUP($E50,'Activity 10'!$B$17:$B$23,'Activity 10'!F$17:F$23,\"N/A\",0,1)","v":"N/A"},{"$f":"_xlfn.XLOOKUP($E50,'Activity 10'!$B$17:$B$23,'Activity 10'!G$17:G$23,\"N/A\",0,1)","v":"N/A"},{"$f":"_xlfn.XLOOKUP($E50,'Activity 10'!$B$17:$B$23,'Activity 10'!H$17:H$23,\"N/A\",0,1)","v":"N/A"},{"$f":"_xlfn.XLOOKUP($E50,'Activity 10'!$B$17:$B$23,'Activity 10'!I$17:I$23,\"N/A\",0,1)","v":"N/A"},{"$f":"_xlfn.XLOOKUP($E50,'Activity 10'!$B$17:$B$23,'Activity 10'!J$17:J$23,\"N/A\",0,1)","v":"N/A"},{"$f":"_xlfn.XLOOKUP($E50,'Activity 10'!$B$17:$B$23,'Activity 10'!K$17:K$23,\"N/A\",0,1)","v":"N/A"},{"$f":"_xlfn.XLOOKUP($E50,'Activity 10'!$B$17:$B$23,'Activity 10'!L$17:L$23,\"N/A\",0,1)","v":"N/A"},{"$f":"_xlfn.XLOOKUP($E50,'Activity 10'!$B$17:$B$23,'Activity 10'!M$17:M$23,\"N/A\",0,1)","v":"N/A"},{"$f":"_xlfn.XLOOKUP($E50,'Activity 10'!$B$17:$B$23,'Activity 10'!N$17:N$23,\"N/A\",0,1)","v":"N/A"},{"$f":"_xlfn.XLOOKUP($E50,'Activity 10'!$B$17:$B$23,'Activity 10'!P$17:P$23,\"N/A\",0,1)","v":"N/A"},{"$f":"_xlfn.XLOOKUP($E50,'Competitive Activity 1'!B$7:B$13,'Competitive Activity 1'!A$7:A$13,\"No\",0,1)","v":"No"},{"$f":"_xlfn.XLOOKUP($E50,'Competitive Activity 1'!$B$7:$B$13,'Competitive Activity 1'!H$7:H$13,\"N/A\",0,1)","v":"N/A"},{"$f":"_xlfn.XLOOKUP($E50,'Competitive Activity 1'!$B$7:$B$13,'Competitive Activity 1'!I$7:I$13,\"N/A\",0,1)","v":"N/A"},{"$f":"_xlfn.XLOOKUP($E50,'Competitive Activity 1'!$B$7:$B$13,'Competitive Activity 1'!J$7:J$13,\"N/A\",0,1)","v":"N/A"},{"$f":"_xlfn.XLOOKUP($E50,'Competitive Activity 1'!$B$7:$B$13,'Competitive Activity 1'!K$7:K$13,\"N/A\",0,1)","v":"N/A"},{"$f":"_xlfn.XLOOKUP($E50,'Competitive Activity 1'!$B$7:$B$13,'Competitive Activity 1'!L$7:L$13,\"N/A\",0,1)","v":"N/A"},{"$f":"_xlfn.XLOOKUP($E50,'Competitive Activity 1'!$B$7:$B$13,'Competitive Activity 1'!M$7:M$13,\"N/A\",0,1)","v":"N/A"},{"$f":"_xlfn.XLOOKUP($E50,'Competitive Activity 1'!$B$7:$B$13,'Competitive Activity 1'!N$7:N$13,\"N/A\",0,1)","v":"N/A"},{"$f":"_xlfn.XLOOKUP($E50,'Competitive Activity 1'!$B$7:$B$13,'Competitive Activity 1'!O$7:O$13,\"N/A\",0,1)","v":"N/A"},{"$f":"_xlfn.XLOOKUP($E50,'Competitive Activity 1'!$B$7:$B$13,'Competitive Activity 1'!P$7:P$13,\"N/A\",0,1)","v":"N/A"},{"$f":"_xlfn.XLOOKUP($E50,'Competitive Activity 1'!$B$7:$B$13,'Competitive Activity 1'!Q$7:Q$13,\"N/A\",0,1)","v":"N/A"},{"$f":"_xlfn.XLOOKUP($E50,'Competitive Activity 1'!$B$7:$B$13,'Competitive Activity 1'!R$7:R$13,\"N/A\",0,1)","v":"N/A"},{"$f":"_xlfn.XLOOKUP($E50,'Competitive Activity 1'!$B$7:$B$13,'Competitive Activity 1'!S$7:S$13,\"N/A\",0,1)","v":"N/A"},{"$f":"_xlfn.XLOOKUP($E50,'Competitive Activity 1'!$B$7:$B$13,'Competitive Activity 1'!T$7:T$13,\"N/A\",0,1)","v":"N/A"},{"$f":"_xlfn.XLOOKUP($E50,'Competitive Activity 1'!$B$7:$B$13,'Competitive Activity 1'!U$7:U$13,\"N/A\",0,1)","v":"N/A"},{"$f":"_xlfn.XLOOKUP($E50,'Competitive Activity 1'!$B$17:$B$23,'Competitive Activity 1'!C$17:C$23,\"N/A\",0,1)","v":"N/A"},{"$f":"_xlfn.XLOOKUP($E50,'Competitive Activity 1'!$B$17:$B$23,'Competitive Activity 1'!D$17:D$23,\"N/A\",0,1)","v":"N/A"},{"$f":"_xlfn.XLOOKUP($E50,'Competitive Activity 1'!$B$17:$B$23,'Competitive Activity 1'!E$17:E$23,\"N/A\",0,1)","v":"N/A"},{"$f":"_xlfn.XLOOKUP($E50,'Competitive Activity 1'!$B$17:$B$23,'Competitive Activity 1'!F$17:F$23,\"N/A\",0,1)","v":"N/A"},{"$f":"_xlfn.XLOOKUP($E50,'Competitive Activity 1'!$B$17:$B$23,'Competitive Activity 1'!G$17:G$23,\"N/A\",0,1)","v":"N/A"},{"$f":"_xlfn.XLOOKUP($E50,'Competitive Activity 1'!$B$17:$B$23,'Competitive Activity 1'!H$17:H$23,\"N/A\",0,1)","v":"N/A"},{"$f":"_xlfn.XLOOKUP($E50,'Competitive Activity 1'!$B$17:$B$23,'Competitive Activity 1'!I$17:I$23,\"N/A\",0,1)","v":"N/A"},{"$f":"_xlfn.XLOOKUP($E50,'Competitive Activity 1'!$B$17:$B$23,'Competitive Activity 1'!J$17:J$23,\"N/A\",0,1)","v":"N/A"},{"$f":"_xlfn.XLOOKUP($E50,'Competitive Activity 1'!$B$17:$B$23,'Competitive Activity 1'!K$17:K$23,\"N/A\",0,1)","v":"N/A"},{"$f":"_xlfn.XLOOKUP($E50,'Competitive Activity 1'!$B$17:$B$23,'Competitive Activity 1'!M$17:M$23,\"N/A\",0,1)","v":"N/A"},{"$f":"_xlfn.XLOOKUP($E50,'Competitive Activity 1'!$B$17:$B$23,'Competitive Activity 1'!N$17:N$23,\"N/A\",0,1)","v":"N/A"},{"$f":"_xlfn.XLOOKUP($E50,'Competitive Activity 1'!$B$17:$B$23,'Competitive Activity 1'!P$17:P$23,\"N/A\",0,1)","v":"N/A"},{"$f":"_xlfn.XLOOKUP($E50,'Competitive Activity 2'!$B$7:$B$13,'Competitive Activity 2'!A$7:A$13,\"No\",0)","v":"No"},{"$f":"_xlfn.XLOOKUP($E50,'Competitive Activity 2'!$B$7:$B$13,'Competitive Activity 2'!L$7:L$13,\"N/A\",0)","v":"N/A"},{"$f":"_xlfn.XLOOKUP($E50,'Competitive Activity 2'!$B$7:$B$13,'Competitive Activity 2'!M$7:M$13,\"N/A\",0)","v":"N/A"},{"$f":"_xlfn.XLOOKUP($E50,'Competitive Activity 2'!$B$7:$B$13,'Competitive Activity 2'!N$7:N$13,\"N/A\",0)","v":"N/A"},{"$f":"_xlfn.XLOOKUP($E50,'Competitive Activity 2'!$B$7:$B$13,'Competitive Activity 2'!O$7:O$13,\"N/A\",0)","v":"N/A"},{"$f":"_xlfn.XLOOKUP($E50,'Competitive Activity 2'!$B$7:$B$13,'Competitive Activity 2'!P$7:P$13,\"N/A\",0)","v":"N/A"},{"$f":"_xlfn.XLOOKUP($E50,'Competitive Activity 2'!$B$7:$B$13,'Competitive Activity 2'!Q$7:Q$13,\"N/A\",0)","v":"N/A"},{"$f":"_xlfn.XLOOKUP($E50,'Competitive Activity 2'!$B$7:$B$13,'Competitive Activity 2'!R$7:R$13,\"N/A\",0)","v":"N/A"},{"$f":"_xlfn.XLOOKUP($E50,'Competitive Activity 2'!$B$7:$B$13,'Competitive Activity 2'!S$7:S$13,\"N/A\",0)","v":"N/A"},{"$f":"_xlfn.XLOOKUP($E50,'Competitive Activity 2'!$B$7:$B$13,'Competitive Activity 2'!T$7:T$13,\"N/A\",0)","v":"N/A"},{"$f":"_xlfn.XLOOKUP($E50,'Competitive Activity 2'!$B$7:$B$13,'Competitive Activity 2'!U$7:U$13,\"N/A\",0)","v":"N/A"},{"$f":"_xlfn.XLOOKUP($E50,'Competitive Activity 2'!$B$17:$B$23,'Competitive Activity 2'!D$17:D$23,\"N/A\",0)","v":"N/A"},{"$f":"_xlfn.XLOOKUP($E50,'Competitive Activity 2'!$B$17:$B$23,'Competitive Activity 2'!E$17:E$23,\"N/A\",0)","v":"N/A"},{"$f":"_xlfn.XLOOKUP($E50,'Competitive Activity 2'!$B$17:$B$23,'Competitive Activity 2'!F$17:F$23,\"N/A\",0)","v":"N/A"},{"$f":"_xlfn.XLOOKUP($E50,'Competitive Activity 2'!$B$17:$B$23,'Competitive Activity 2'!G$17:G$23,\"N/A\",0)","v":"N/A"},{"$f":"_xlfn.XLOOKUP($E50,'Competitive Activity 2'!$B$17:$B$23,'Competitive Activity 2'!H$17:H$23,\"N/A\",0)","v":"N/A"},{"$f":"_xlfn.XLOOKUP($E50,'Competitive Activity 2'!$B$17:$B$23,'Competitive Activity 2'!I$17:I$23,\"N/A\",0)","v":"N/A"},{"$f":"_xlfn.XLOOKUP($E50,'Competitive Activity 2'!$B$17:$B$23,'Competitive Activity 2'!J$17:J$23,\"N/A\",0)","v":"N/A"},{"$f":"_xlfn.XLOOKUP($E50,'Competitive Activity 2'!$B$17:$B$23,'Competitive Activity 2'!K$17:K$23,\"N/A\",0)","v":"N/A"},{"$f":"_xlfn.XLOOKUP($E50,'Competitive Activity 2'!$B$17:$B$23,'Competitive Activity 2'!L$17:L$23,\"N/A\",0)","v":"N/A"},{"$f":"_xlfn.XLOOKUP($E50,'Competitive Activity 2'!$B$17:$B$23,'Competitive Activity 2'!M$17:M$23,\"N/A\",0)","v":"N/A"},{"$f":"_xlfn.XLOOKUP($E50,'Competitive Activity 2'!$B$17:$B$23,'Competitive Activity 2'!N$17:N$23,\"N/A\",0)","v":"N/A"},{"$f":"_xlfn.XLOOKUP($E50,'Competitive Activity 2'!$B$27:$B$33,'Competitive Activity 2'!D$27:D$33,\"N/A\",0)","v":"N/A"},{"$f":"_xlfn.XLOOKUP($E50,'Competitive Activity 2'!$B$27:$B$33,'Competitive Activity 2'!E$27:E$33,\"N/A\",0)","v":"N/A"},{"$f":"_xlfn.XLOOKUP($E50,'Competitive Activity 2'!$B$27:$B$33,'Competitive Activity 2'!F$27:F$33,\"N/A\",0)","v":"N/A"},{"$f":"_xlfn.XLOOKUP($E50,'Competitive Activity 2'!$B$27:$B$33,'Competitive Activity 2'!G$27:G$33,\"N/A\",0)","v":"N/A"},{"$f":"_xlfn.XLOOKUP($E50,'Competitive Activity 2'!$B$27:$B$33,'Competitive Activity 2'!H$27:H$33,\"N/A\",0)","v":"N/A"},{"$f":"_xlfn.XLOOKUP($E50,'Competitive Activity 2'!$B$27:$B$33,'Competitive Activity 2'!I$27:I$33,\"N/A\",0)","v":"N/A"},{"$f":"_xlfn.XLOOKUP($E50,'Competitive Activity 2'!$B$27:$B$33,'Competitive Activity 2'!J$27:J$33,\"N/A\",0)","v":"N/A"},{"$f":"_xlfn.XLOOKUP($E50,'Competitive Activity 2'!$B$27:$B$33,'Competitive Activity 2'!K$27:K$33,\"N/A\",0)","v":"N/A"},{"$f":"_xlfn.XLOOKUP($E50,'Competitive Activity 2'!$B$27:$B$33,'Competitive Activity 2'!M$27:M$33,\"N/A\",0)","v":"N/A"}]
[{"$f":"'1-Cover Sheet'!$C$8","v":"Select One"},{"$f":"'1-Cover Sheet'!$F$8","v":"Select One"},{"$f":"'Summary Sheet'!$D$8","v":0},{"$f":"'Summary Sheet'!$D$10","v":0},{"$f":"'Drop Down Box'!B215","v":0},{"$f":"'Drop Down Box'!C215","v":0},{"$f":"'Drop Down Box'!D215","v":"Select One"},{"$f":"_xlfn.XLOOKUP(E51,'Drop Down Box'!$B$166:$B$249,'Drop Down Box'!$A$166:$A$249,\"Unknown\",0)","v":"Activity 1"},{"$f":"_xlfn.XLOOKUP($E51,'Activity 8'!$B$17:$B$23,'Activity 8'!$O$17:$O$23,\"N/A\",0)","v":"N/A"},{"$f":"_xlfn.XLOOKUP($E51,'Activity 8'!$B$17:$B$23,'Activity 8'!$P$17:$P$23,\"N/A\",0)","v":"N/A"},{"$f":"_xlfn.XLOOKUP($E51,'Activity 8'!$B$7:$B$13,'Activity 8'!$F$7:$F$13,\"N/A\",0)","v":"N/A"},{"$f":"_xlfn.XLOOKUP($E51,'Activity 8'!$B$7:$B$13,'Activity 8'!G$7:G$13,\"N/A\",0)","v":"N/A"},{"$f":"_xlfn.XLOOKUP($E51,'Activity 8'!$B$7:$B$13,'Activity 8'!H$7:H$13,\"N/A\",0)","v":"N/A"},{"$f":"_xlfn.XLOOKUP($E51,'Activity 1'!$B$7:$B$13,'Activity 1'!$A$7:$A$13,\"No\",0,1)","v":"No"},{"$f":"_xlfn.XLOOKUP($E51,'Activity 1'!$B$7:$B$13,'Activity 1'!$H$7:$H$13,\"N/A\",0,1)","v":"N/A"},{"$f":"_xlfn.XLOOKUP($E51,'Activity 1'!$B$7:$B$13,'Activity 1'!I$7:I$13,\"N/A\",0,1)","v":"N/A"},{"$f":"_xlfn.XLOOKUP($E51,'Activity 1'!$B$7:$B$13,'Activity 1'!J$7:J$13,\"N/A\",0,1)","v":"N/A"},{"$f":"_xlfn.XLOOKUP($E51,'Activity 1'!$B$7:$B$13,'Activity 1'!K$7:K$13,\"N/A\",0,1)","v":"N/A"},{"$f":"_xlfn.XLOOKUP($E51,'Activity 1'!$B$7:$B$13,'Activity 1'!L$7:L$13,\"N/A\",0,1)","v":"N/A"},{"$f":"_xlfn.XLOOKUP($E51,'Activity 1'!$B$7:$B$13,'Activity 1'!M$7:M$13,\"N/A\",0,1)","v":"N/A"},{"$f":"_xlfn.XLOOKUP($E51,'Activity 1'!$B$7:$B$13,'Activity 1'!N$7:N$13,\"N/A\",0,1)","v":"N/A"},0,{"$f":"_xlfn.XLOOKUP($E51,'Activity 1'!$B$7:$B$13,'Activity 1'!O$7:O$13,\"N/A\",0,1)","v":"N/A"},{"$f":"_xlfn.XLOOKUP($E51,'Activity 1'!$B$7:$B$13,'Activity 1'!P$7:P$13,\"N/A\",0,1)","v":"N/A"},{"$f":"_xlfn.XLOOKUP($E51,'Activity 1'!$B$7:$B$13,'Activity 1'!Q$7:Q$13,\"N/A\",0,1)","v":"N/A"},{"$f":"_xlfn.XLOOKUP($E51,'Activity 1'!$B$7:$B$13,'Activity 1'!R$7:R$13,\"N/A\",0,1)","v":"N/A"},{"$f":"_xlfn.XLOOKUP($E51,'Activity 1'!$B$7:$B$13,'Activity 1'!S$7:S$13,\"N/A\",0,1)","v":"N/A"},{"$f":"_xlfn.XLOOKUP($E51,'Activity 1'!$B$7:$B$13,'Activity 1'!T$7:T$13,\"N/A\",0,1)","v":"N/A"},{"$f":"_xlfn.XLOOKUP($E51,'Activity 1'!$B$7:$B$13,'Activity 1'!U$7:U$13,\"N/A\",0,1)","v":"N/A"},{"$f":"_xlfn.XLOOKUP($E51,'Activity 1'!$B$7:$B$13,'Activity 1'!V$7:V$13,\"N/A\",0,1)","v":"N/A"},{"$f":"_xlfn.XLOOKUP($E51,'Activity 1'!$B$17:$B$23,'Activity 1'!C$17:C$23,\"N/A\",0,1)","v":"N/A"},{"$f":"_xlfn.XLOOKUP($E51,'Activity 1'!$B$17:$B$23,'Activity 1'!D$17:D$23,\"N/A\",0,1)","v":"N/A"},{"$f":"_xlfn.XLOOKUP($E51,'Activity 1'!$B$17:$B$23,'Activity 1'!E$17:E$23,\"N/A\",0,1)","v":"N/A"},{"$f":"_xlfn.XLOOKUP($E51,'Activity 1'!$B$17:$B$23,'Activity 1'!F$17:F$23,\"N/A\",0,1)","v":"N/A"},{"$f":"_xlfn.XLOOKUP($E51,'Activity 1'!$B$17:$B$23,'Activity 1'!G$17:G$23,\"N/A\",0,1)","v":"N/A"},{"$f":"_xlfn.XLOOKUP($E51,'Activity 1'!$B$17:$B$23,'Activity 1'!H$17:H$23,\"N/A\",0,1)","v":"N/A"},{"$f":"_xlfn.XLOOKUP($E51,'Activity 1'!$B$17:$B$23,'Activity 1'!I$17:I$23,\"N/A\",0,1)","v":"N/A"},{"$f":"_xlfn.XLOOKUP($E51,'Activity 1'!$B$17:$B$23,'Activity 1'!J$17:J$23,\"N/A\",0,1)","v":"N/A"},{"$f":"_xlfn.XLOOKUP($E51,'Activity 1'!$B$17:$B$23,'Activity 1'!K$17:K$23,\"N/A\",0,1)","v":"N/A"},{"$f":"_xlfn.XLOOKUP($E51,'Activity 1'!$B$17:$B$23,'Activity 1'!L$17:L$23,\"N/A\",0,1)","v":"N/A"},{"$f":"_xlfn.XLOOKUP($E51,'Activity 1'!$B$17:$B$23,'Activity 1'!M$17:M$23,\"N/A\",0,1)","v":"N/A"},{"$f":"_xlfn.XLOOKUP($E51,'Activity 1'!$B$17:$B$23,'Activity 1'!O$17:O$23,\"N/A\",0,1)","v":"N/A"},{"$f":"_xlfn.XLOOKUP($E51,'Activity 1'!$B$17:$B$23,'Activity 1'!Q$17:Q$23,\"N/A\",0,1)","v":"N/A"},{"$f":"_xlfn.XLOOKUP($E51,'Activity 2'!$B$7:$B$13,'Activity 2'!$A$7:$A$13,\"No\",0,1)","v":"No"},{"$f":"_xlfn.XLOOKUP($E51,'Activity 2'!B$7:B$13,'Activity 2'!H$7:H$13,\"N/A\",0)","v":"N/A"},{"$f":"_xlfn.XLOOKUP($E51,'Activity 2'!C$7:C$13,'Activity 2'!I$7:I$13,\"N/A\",0)","v":"N/A"},{"$f":"_xlfn.XLOOKUP($E51,'Activity 2'!D$7:D$13,'Activity 2'!J$7:J$13,\"N/A\",0)","v":"N/A"},{"$f":"_xlfn.XLOOKUP($E51,'Activity 2'!E$7:E$13,'Activity 2'!K$7:K$13,\"N/A\",0)","v":"N/A"},{"$f":"_xlfn.XLOOKUP($E51,'Activity 2'!F$7:F$13,'Activity 2'!L$7:L$13,\"N/A\",0)","v":"N/A"},{"$f":"_xlfn.XLOOKUP($E51,'Activity 2'!G$7:G$13,'Activity 2'!M$7:M$13,\"N/A\",0)","v":"N/A"},{"$f":"_xlfn.XLOOKUP($E51,'Activity 2'!H$7:H$13,'Activity 2'!N$7:N$13,\"N/A\",0)","v":"N/A"},{"$f":"_xlfn.XLOOKUP($E51,'Activity 2'!I$7:I$13,'Activity 2'!O$7:O$13,\"N/A\",0)","v":"N/A"},{"$f":"_xlfn.XLOOKUP($E51,'Activity 2'!J$7:J$13,'Activity 2'!P$7:P$13,\"N/A\",0)","v":"N/A"},{"$f":"_xlfn.XLOOKUP($E51,'Activity 2'!K$7:K$13,'Activity 2'!Q$7:Q$13,\"N/A\",0)","v":"N/A"},{"$f":"_xlfn.XLOOKUP($E51,'Activity 2'!L$7:L$13,'Activity 2'!R$7:R$13,\"N/A\",0)","v":"N/A"},{"$f":"_xlfn.XLOOKUP($E51,'Activity 2'!M$7:M$13,'Activity 2'!S$7:S$13,\"N/A\",0)","v":"N/A"},{"$f":"_xlfn.XLOOKUP($E51,'Activity 2'!N$7:N$13,'Activity 2'!T$7:T$13,\"N/A\",0)","v":"N/A"},{"$f":"_xlfn.XLOOKUP($E51,'Activity 2'!O$7:O$13,'Activity 2'!U$7:U$13,\"N/A\",0)","v":"N/A"},{"$f":"_xlfn.XLOOKUP($E51,'Activity 2'!P$7:P$13,'Activity 2'!V$7:V$13,\"N/A\",0)","v":"N/A"},{"$f":"_xlfn.XLOOKUP($E51,'Activity 2'!$B$17:$B$23,'Activity 2'!C$17:C$23,\"N/A\",0,1)","v":"N/A"},{"$f":"_xlfn.XLOOKUP($E51,'Activity 2'!$B$17:$B$23,'Activity 2'!D$17:D$23,\"N/A\",0,1)","v":"N/A"},{"$f":"_xlfn.XLOOKUP($E51,'Activity 2'!$B$17:$B$23,'Activity 2'!E$17:E$23,\"N/A\",0,1)","v":"N/A"},{"$f":"_xlfn.XLOOKUP($E51,'Activity 2'!$B$17:$B$23,'Activity 2'!F$17:F$23,\"N/A\",0,1)","v":"N/A"},{"$f":"_xlfn.XLOOKUP($E51,'Activity 2'!$B$17:$B$23,'Activity 2'!G$17:G$23,\"N/A\",0,1)","v":"N/A"},{"$f":"_xlfn.XLOOKUP($E51,'Activity 2'!$B$17:$B$23,'Activity 2'!H$17:H$23,\"N/A\",0,1)","v":"N/A"},{"$f":"_xlfn.XLOOKUP($E51,'Activity 2'!$B$17:$B$23,'Activity 2'!I$17:I$23,\"N/A\",0,1)","v":"N/A"},{"$f":"_xlfn.XLOOKUP($E51,'Activity 2'!$B$17:$B$23,'Activity 2'!J$17:J$23,\"N/A\",0,1)","v":"N/A"},{"$f":"_xlfn.XLOOKUP($E51,'Activity 2'!$B$17:$B$23,'Activity 2'!K$17:K$23,\"N/A\",0,1)","v":"N/A"},{"$f":"_xlfn.XLOOKUP($E51,'Activity 2'!$B$17:$B$23,'Activity 2'!L$17:L$23,\"N/A\",0,1)","v":"N/A"},{"$f":"_xlfn.XLOOKUP($E51,'Activity 2'!$B$17:$B$23,'Activity 2'!M$17:M$23,\"N/A\",0,1)","v":"N/A"},{"$f":"_xlfn.XLOOKUP($E51,'Activity 2'!$B$17:$B$23,'Activity 2'!O$17:O$23,\"N/A\",0,1)","v":"N/A"},{"$f":"_xlfn.XLOOKUP($E51,'Activity 2'!$B$17:$B$23,'Activity 2'!Q$17:Q$23,\"N/A\",0,1)","v":"N/A"},null,{"$f":"_xlfn.XLOOKUP($E51,'Activity 3'!$B$8:$B$14,'Activity 3'!K$8:K$14,\"N/A\",0,1)","v":"N/A"},{"$f":"_xlfn.XLOOKUP($E51,'Activity 3'!$B$8:$B$14,'Activity 3'!L$8:L$14,\"N/A\",0,1)","v":"N/A"},{"$f":"_xlfn.XLOOKUP($E51,'Activity 3'!$B$8:$B$14,'Activity 3'!M$8:M$14,\"N/A\",0,1)","v":"N/A"},{"$f":"_xlfn.XLOOKUP($E51,'Activity 3'!$B$8:$B$14,'Activity 3'!N$8:N$14,\"N/A\",0,1)","v":"N/A"},{"$f":"_xlfn.XLOOKUP($E51,'Activity 3'!$B$8:$B$14,'Activity 3'!O$8:O$14,\"N/A\",0,1)","v":"N/A"},{"$f":"_xlfn.XLOOKUP($E51,'Activity 3'!$B$8:$B$14,'Activity 3'!R$8:R$14,\"N/A\",0,1)","v":"N/A"},{"$f":"_xlfn.XLOOKUP($E51,'Activity 4'!$B$8:$B$14,'Activity 4'!$A$8:$A$14,\"No\",0,1)","v":"No"},{"$f":"_xlfn.XLOOKUP($E51,'Activity 4'!$B$8:$B$14,'Activity 4'!L$8:L$14,\"N/A\",0,1)","v":"N/A"},{"$f":"_xlfn.XLOOKUP($E51,'Activity 4'!$B$8:$B$14,'Activity 4'!I$8:I$14,\"N/A\",0,1)","v":"N/A"},{"$f":"_xlfn.XLOOKUP($E51,'Activity 4'!$B$8:$B$14,'Activity 4'!M$8:M$14,\"N/A\",0,1)","v":"N/A"},{"$f":"_xlfn.XLOOKUP($E51,'Activity 5'!$B$8:$B$14,'Activity 5'!$A$8:$A$14,\"No\",0,1)","v":"No"},{"$f":"_xlfn.XLOOKUP($E51,'Activity 5'!$B$8:$B$14,'Activity 5'!J$8:J$14,\"N/A\",0,1)","v":"N/A"},{"$f":"_xlfn.XLOOKUP($E51,'Activity 5'!$B$8:$B$14,'Activity 5'!K$8:K$14,\"N/A\",0,1)","v":"N/A"},{"$f":"_xlfn.XLOOKUP($E51,'Activity 5'!$B$8:$B$14,'Activity 5'!N$8:N$14,\"N/A\",0,1)","v":"N/A"},{"$f":"_xlfn.XLOOKUP($E51,'Activity 5'!$B$8:$B$14,'Activity 5'!O$8:O$14,\"N/A\",0,1)","v":"N/A"},{"$f":"_xlfn.XLOOKUP($E51,'Activity 5'!$B$8:$B$14,'Activity 5'!P$8:P$14,\"N/A\",0,1)","v":"N/A"},{"$f":"_xlfn.XLOOKUP($E51,'Activity 5'!$B$8:$B$14,'Activity 5'!Q$8:Q$14,\"N/A\",0,1)","v":"N/A"},{"$f":"_xlfn.XLOOKUP($E51,'Activity 5'!$B$8:$B$14,'Activity 5'!R$8:R$14,\"N/A\",0,1)","v":"N/A"},{"$f":"_xlfn.XLOOKUP($E51,'Activity 6'!$B$7:$B$13,'Activity 6'!A$7:A$13,\"No\",0,1)","v":"No"},{"$f":"_xlfn.XLOOKUP($E51,'Activity 6'!$B$7:$B$13,'Activity 6'!K$7:K$13,\"N/A\",0,1)","v":"N/A"},{"$f":"_xlfn.XLOOKUP($E51,'Activity 6'!$B$7:$B$13,'Activity 6'!L$7:L$13,\"N/A\",0,1)","v":"N/A"},{"$f":"_xlfn.XLOOKUP($E51,'Activity 6'!$B$7:$B$13,'Activity 6'!M$7:M$13,\"N/A\",0,1)","v":"N/A"},{"$f":"_xlfn.XLOOKUP($E51,'Activity 6'!$B$7:$B$13,'Activity 6'!N$7:N$13,\"N/A\",0,1)","v":"N/A"},{"$f":"_xlfn.XLOOKUP($E51,'Activity 6'!$B$7:$B$13,'Activity 6'!O$7:O$13,\"N/A\",0,1)","v":"N/A"},{"$f":"_xlfn.XLOOKUP($E51,'Activity 6'!$B$7:$B$13,'Activity 6'!P$7:P$13,\"N/A\",0,1)","v":"N/A"},{"$f":"_xlfn.XLOOKUP($E51,'Activity 6'!$B$7:$B$13,'Activity 6'!Q$7:Q$13,\"N/A\",0,1)","v":"N/A"},{"$f":"_xlfn.XLOOKUP($E51,'Activity 6'!$B$7:$B$13,'Activity 6'!R$7:R$13,\"N/A\",0,1)","v":"N/A"},{"$f":"_xlfn.XLOOKUP($E51,'Activity 6'!$B$7:$B$13,'Activity 6'!S$7:S$13,\"N/A\",0,1)","v":"N/A"},{"$f":"_xlfn.XLOOKUP($E51,'Activity 6'!$B$7:$B$13,'Activity 6'!T$7:T$13,\"N/A\",0,1)","v":"N/A"},{"$f":"_xlfn.XLOOKUP($E51,'Activity 6'!$B$7:$B$13,'Activity 6'!U$7:U$13,\"N/A\",0,1)","v":"N/A"},{"$f":"_xlfn.XLOOKUP($E51,'Activity 6'!$B$22:$B$28,'Activity 6'!C$22:C$28,\"N/A\",0,1)","v":"N/A"},{"$f":"_xlfn.XLOOKUP($E51,'Activity 6'!$B$22:$B$28,'Activity 6'!D$22:D$28,\"N/A\",0,1)","v":"N/A"},{"$f":"_xlfn.XLOOKUP($E51,'Activity 6'!$B$22:$B$28,'Activity 6'!E$22:E$28,\"N/A\",0,1)","v":"N/A"},{"$f":"_xlfn.XLOOKUP($E51,'Activity 6'!$B$22:$B$28,'Activity 6'!F$22:F$28,\"N/A\",0,1)","v":"N/A"},{"$f":"_xlfn.XLOOKUP($E51,'Activity 6'!$B$22:$B$28,'Activity 6'!G$22:G$28,\"N/A\",0,1)","v":"N/A"},{"$f":"_xlfn.XLOOKUP($E51,'Activity 6'!$B$22:$B$28,'Activity 6'!H$22:H$28,\"N/A\",0,1)","v":"N/A"},{"$f":"_xlfn.XLOOKUP($E51,'Activity 6'!$B$22:$B$28,'Activity 6'!I$22:I$28,\"N/A\",0,1)","v":"N/A"},{"$f":"_xlfn.XLOOKUP($E51,'Activity 6'!$B$22:$B$28,'Activity 6'!J$22:J$28,\"N/A\",0,1)","v":"N/A"},{"$f":"_xlfn.XLOOKUP($E51,'Activity 6'!$B$22:$B$28,'Activity 6'!K$22:K$28,\"N/A\",0,1)","v":"N/A"},{"$f":"_xlfn.XLOOKUP($E51,'Activity 6'!$B$22:$B$28,'Activity 6'!L$22:L$28,\"N/A\",0,1)","v":"N/A"},{"$f":"_xlfn.XLOOKUP($E51,'Activity 6'!$B$22:$B$28,'Activity 6'!M$22:M$28,\"N/A\",0,1)","v":"N/A"},{"$f":"_xlfn.XLOOKUP($E51,'Activity 6'!$B$22:$B$28,'Activity 6'!N$22:N$28,\"N/A\",0,1)","v":"N/A"},{"$f":"_xlfn.XLOOKUP($E51,'Activity 6'!$B$32:$B$38,'Activity 6'!C$32:C$38,\"N/A\",0,1)","v":"N/A"},{"$f":"_xlfn.XLOOKUP($E51,'Activity 6'!$B$32:$B$38,'Activity 6'!D$32:D$38,\"N/A\",0,1)","v":"N/A"},{"$f":"_xlfn.XLOOKUP($E51,'Activity 6'!$B$32:$B$38,'Activity 6'!E$32:E$38,\"N/A\",0,1)","v":"N/A"},{"$f":"_xlfn.XLOOKUP($E51,'Activity 6'!$B$32:$B$38,'Activity 6'!F$32:F$38,\"N/A\",0,1)","v":"N/A"},{"$f":"_xlfn.XLOOKUP($E51,'Activity 6'!$B$32:$B$38,'Activity 6'!G$32:G$38,\"N/A\",0,1)","v":"N/A"},{"$f":"_xlfn.XLOOKUP($E51,'Activity 6'!$B$32:$B$38,'Activity 6'!H$32:H$38,\"N/A\",0,1)","v":"N/A"},{"$f":"_xlfn.XLOOKUP($E51,'Activity 6'!$B$32:$B$38,'Activity 6'!I$32:I$38,\"N/A\",0,1)","v":"N/A"},{"$f":"_xlfn.XLOOKUP($E51,'Activity 6'!$B$32:$B$38,'Activity 6'!J$32:J$38,\"N/A\",0,1)","v":"N/A"},{"$f":"_xlfn.XLOOKUP($E51,'Activity 6'!$B$32:$B$38,'Activity 6'!K$32:K$38,\"N/A\",0,1)","v":"N/A"},{"$f":"_xlfn.XLOOKUP($E51,'Activity 6'!$B$32:$B$38,'Activity 6'!M$32:M$38,\"N/A\",0,1)","v":"N/A"},{"$f":"_xlfn.XLOOKUP($E51,'Activity 7'!$B$7:$B$13,'Activity 7'!$A$7:$A$13,\"No\",0,1)","v":"No"},{"$f":"_xlfn.XLOOKUP($E51,'Activity 7'!$B$7:$B$13,'Activity 7'!M$7:M$13,\"N/A\",0,1)","v":"N/A"},{"$f":"_xlfn.XLOOKUP($E51,'Activity 7'!$B$7:$B$13,'Activity 7'!K$7:K$13,\"N/A\",0,1)","v":"N/A"},{"$f":"_xlfn.XLOOKUP($E51,'Activity 7'!$B$7:$B$13,'Activity 7'!N$7:N$13,\"N/A\",0,1)","v":"N/A"},{"$f":"_xlfn.XLOOKUP($E51,'Activity 7'!$B$7:$B$13,'Activity 7'!O$7:O$13,\"N/A\",0,1)","v":"N/A"},{"$f":"_xlfn.XLOOKUP($E51,'Activity 7'!$B$7:$B$13,'Activity 7'!P$7:P$13,\"N/A\",0,1)","v":"N/A"},{"$f":"_xlfn.XLOOKUP($E51,'Activity 7'!$B$7:$B$13,'Activity 7'!Q$7:Q$13,\"N/A\",0,1)","v":"N/A"},{"$f":"_xlfn.XLOOKUP($E51,'Activity 7'!$B$7:$B$13,'Activity 7'!R$7:R$13,\"N/A\",0,1)","v":"N/A"},{"$f":"_xlfn.XLOOKUP($E51,'Activity 7'!$B$7:$B$13,'Activity 7'!S$7:S$13,\"N/A\",0,1)","v":"N/A"},{"$f":"_xlfn.XLOOKUP($E51,'Activity 7'!$B$7:$B$13,'Activity 7'!T$7:T$13,\"N/A\",0,1)","v":"N/A"},{"$f":"_xlfn.XLOOKUP($E51,'Activity 7'!$B$7:$B$13,'Activity 7'!U$7:U$13,\"N/A\",0,1)","v":"N/A"},{"$f":"_xlfn.XLOOKUP($E51,'Activity 7'!$B$7:$B$13,'Activity 7'!V$7:V$13,\"N/A\",0,1)","v":"N/A"},{"$f":"_xlfn.XLOOKUP($E51,'Activity 7'!$B$17:$B$23,'Activity 7'!E$17:E$23,\"N/A\",0,1)","v":"N/A"},{"$f":"_xlfn.XLOOKUP($E51,'Activity 7'!$B$17:$B$23,'Activity 7'!G$17:G$23,\"N/A\",0,1)","v":"N/A"},{"$f":"_xlfn.XLOOKUP($E51,'Activity 7'!$B$17:$B$23,'Activity 7'!I$17:I$23,\"N/A\",0,1)","v":"N/A"},{"$f":"_xlfn.XLOOKUP($E51,'Activity 7'!$B$17:$B$23,'Activity 7'!J$17:J$23,\"N/A\",0,1)","v":"N/A"},{"$f":"_xlfn.XLOOKUP($E51,'Activity 7'!$B$17:$B$23,'Activity 7'!K$17:K$23,\"N/A\",0,1)","v":"N/A"},{"$f":"_xlfn.XLOOKUP($E51,'Activity 7'!$B$17:$B$23,'Activity 7'!L$17:L$23,\"N/A\",0,1)","v":"N/A"},{"$f":"_xlfn.XLOOKUP($E51,'Activity 7'!$B$17:$B$23,'Activity 7'!M$17:M$23,\"N/A\",0,1)","v":"N/A"},{"$f":"_xlfn.XLOOKUP($E51,'Activity 7'!$B$17:$B$23,'Activity 7'!N$17:N$23,\"N/A\",0,1)","v":"N/A"},{"$f":"_xlfn.XLOOKUP($E51,'Activity 7'!$B$17:$B$23,'Activity 7'!P$17:P$23,\"N/A\",0,1)","v":"N/A"},{"$f":"_xlfn.XLOOKUP($E51,'Activity 8'!$B$7:$B$13,'Activity 8'!A$7:A$13,\"No\",0,1)","v":"No"},{"$f":"_xlfn.XLOOKUP($E51,'Activity 8'!$B$7:$B$13,'Activity 8'!I$7:I$13,\"N/A\",0,1)","v":"N/A"},{"$f":"_xlfn.XLOOKUP($E51,'Activity 8'!$B$7:$B$13,'Activity 8'!J$7:J$13,\"N/A\",0,1)","v":"N/A"},{"$f":"_xlfn.XLOOKUP($E51,'Activity 8'!$B$7:$B$13,'Activity 8'!K$7:K$13,\"N/A\",0,1)","v":"N/A"},{"$f":"_xlfn.XLOOKUP($E51,'Activity 8'!$B$7:$B$13,'Activity 8'!L$7:L$13,\"N/A\",0,1)","v":"N/A"},{"$f":"_xlfn.XLOOKUP($E51,'Activity 8'!$B$7:$B$13,'Activity 8'!M$7:M$13,\"N/A\",0,1)","v":"N/A"},{"$f":"_xlfn.XLOOKUP($E51,'Activity 8'!$B$7:$B$13,'Activity 8'!N$7:N$13,\"N/A\",0,1)","v":"N/A"},{"$f":"_xlfn.XLOOKUP($E51,'Activity 8'!$B$7:$B$13,'Activity 8'!O$7:O$13,\"N/A\",0,1)","v":"N/A"},{"$f":"_xlfn.XLOOKUP($E51,'Activity 8'!$B$7:$B$13,'Activity 8'!P$7:P$13,\"N/A\",0,1)","v":"N/A"},{"$f":"_xlfn.XLOOKUP($E51,'Activity 8'!$B$7:$B$13,'Activity 8'!Q$7:Q$13,\"N/A\",0,1)","v":"N/A"},{"$f":"_xlfn.XLOOKUP($E51,'Activity 8'!$B$7:$B$13,'Activity 8'!R$7:R$13,\"N/A\",0,1)","v":"N/A"},{"$f":"_xlfn.XLOOKUP($E51,'Activity 8'!$B$7:$B$13,'Activity 8'!S$7:S$13,\"N/A\",0,1)","v":"N/A"},{"$f":"_xlfn.XLOOKUP($E51,'Activity 8'!$B$7:$B$13,'Activity 8'!T$7:T$13,\"N/A\",0,1)","v":"N/A"},{"$f":"_xlfn.XLOOKUP($E51,'Activity 8'!$B$7:$B$13,'Activity 8'!U$7:U$13,\"N/A\",0,1)","v":"N/A"},{"$f":"_xlfn.XLOOKUP($E51,'Activity 8'!$B$7:$B$13,'Activity 8'!V$7:V$13,\"N/A\",0,1)","v":"N/A"},{"$f":"_xlfn.XLOOKUP($E51,'Activity 8'!$B$17:$B$23,'Activity 8'!D$17:D$23,\"N/A\",0,1)","v":"N/A"},{"$f":"_xlfn.XLOOKUP($E51,'Activity 8'!$B$17:$B$23,'Activity 8'!E$17:E$23,\"N/A\",0,1)","v":"N/A"},{"$f":"_xlfn.XLOOKUP($E51,'Activity 8'!$B$17:$B$23,'Activity 8'!F$17:F$23,\"N/A\",0,1)","v":"N/A"},{"$f":"_xlfn.XLOOKUP($E51,'Activity 8'!$B$17:$B$23,'Activity 8'!G$17:G$23,\"N/A\",0,1)","v":"N/A"},{"$f":"_xlfn.XLOOKUP($E51,'Activity 8'!$B$17:$B$23,'Activity 8'!H$17:H$23,\"N/A\",0,1)","v":"N/A"},{"$f":"_xlfn.XLOOKUP($E51,'Activity 8'!$B$17:$B$23,'Activity 8'!I$17:I$23,\"N/A\",0,1)","v":"N/A"},{"$f":"_xlfn.XLOOKUP($E51,'Activity 8'!$B$17:$B$23,'Activity 8'!J$17:J$23,\"N/A\",0,1)","v":"N/A"},{"$f":"_xlfn.XLOOKUP($E51,'Activity 8'!$B$17:$B$23,'Activity 8'!K$17:K$23,\"N/A\",0,1)","v":"N/A"},{"$f":"_xlfn.XLOOKUP($E51,'Activity 8'!$B$17:$B$23,'Activity 8'!L$17:L$23,\"N/A\",0,1)","v":"N/A"},{"$f":"_xlfn.XLOOKUP($E51,'Activity 8'!$B$17:$B$23,'Activity 8'!M$17:M$23,\"N/A\",0,1)","v":"N/A"},{"$f":"_xlfn.XLOOKUP($E51,'Activity 8'!$B$17:$B$23,'Activity 8'!N$17:N$23,\"N/A\",0,1)","v":"N/A"},{"$f":"_xlfn.XLOOKUP($E51,'Activity 8'!$B$17:$B$23,'Activity 8'!P$17:P$23,\"N/A\",0,1)","v":"N/A"},{"$f":"_xlfn.XLOOKUP(E51,'Activity 9'!$B$7:$B$13,'Activity 9'!$A$7:$A$13,\"No\",0,1)","v":"No"},{"$f":"_xlfn.XLOOKUP($E51,'Activity 9'!$B$7:$B$13,'Activity 9'!J$7:J$13,\"N/A\",0,1)","v":"N/A"},{"$f":"_xlfn.XLOOKUP($E51,'Activity 9'!$B$7:$B$13,'Activity 9'!K$7:K$13,\"N/A\",0,1)","v":"N/A"},{"$f":"_xlfn.XLOOKUP($E51,'Activity 9'!$B$7:$B$13,'Activity 9'!L$7:L$13,\"N/A\",0,1)","v":"N/A"},{"$f":"_xlfn.XLOOKUP($E51,'Activity 9'!$B$7:$B$13,'Activity 9'!M$7:M$13,\"N/A\",0,1)","v":"N/A"},{"$f":"_xlfn.XLOOKUP($E51,'Activity 9'!$B$7:$B$13,'Activity 9'!N$7:N$13,\"N/A\",0,1)","v":"N/A"},{"$f":"_xlfn.XLOOKUP($E51,'Activity 9'!$B$7:$B$13,'Activity 9'!O$7:O$13,\"N/A\",0,1)","v":"N/A"},{"$f":"_xlfn.XLOOKUP($E51,'Activity 9'!$B$7:$B$13,'Activity 9'!P$7:P$13,\"N/A\",0,1)","v":"N/A"},{"$f":"_xlfn.XLOOKUP($E51,'Activity 9'!$B$7:$B$13,'Activity 9'!Q$7:Q$13,\"N/A\",0,1)","v":"N/A"},{"$f":"_xlfn.XLOOKUP($E51,'Activity 9'!$B$7:$B$13,'Activity 9'!R$7:R$13,\"N/A\",0,1)","v":"N/A"},{"$f":"_xlfn.XLOOKUP($E51,'Activity 9'!$B$7:$B$13,'Activity 9'!S$7:S$13,\"N/A\",0,1)","v":"N/A"},{"$f":"_xlfn.XLOOKUP($E51,'Activity 9'!$B$7:$B$13,'Activity 9'!T$7:T$13,\"N/A\",0,1)","v":"N/A"},{"$f":"_xlfn.XLOOKUP($E51,'Activity 9'!$B$17:$B$23,'Activity 9'!E$17:E$23,\"N/A\",0,1)","v":"N/A"},{"$f":"_xlfn.XLOOKUP($E51,'Activity 9'!$B$17:$B$23,'Activity 9'!F$17:F$23,\"N/A\",0,1)","v":"N/A"},{"$f":"_xlfn.XLOOKUP($E51,'Activity 9'!$B$17:$B$23,'Activity 9'!G$17:G$23,\"N/A\",0,1)","v":"N/A"},{"$f":"_xlfn.XLOOKUP($E51,'Activity 9'!$B$17:$B$23,'Activity 9'!H$17:H$23,\"N/A\",0,1)","v":"N/A"},{"$f":"_xlfn.XLOOKUP($E51,'Activity 9'!$B$17:$B$23,'Activity 9'!I$17:I$23,\"N/A\",0,1)","v":"N/A"},{"$f":"_xlfn.XLOOKUP($E51,'Activity 9'!$B$17:$B$23,'Activity 9'!J$17:J$23,\"N/A\",0,1)","v":"N/A"},{"$f":"_xlfn.XLOOKUP($E51,'Activity 9'!$B$17:$B$23,'Activity 9'!K$17:K$23,\"N/A\",0,1)","v":"N/A"},{"$f":"_xlfn.XLOOKUP($E51,'Activity 9'!$B$17:$B$23,'Activity 9'!L$17:L$23,\"N/A\",0,1)","v":"N/A"},{"$f":"_xlfn.XLOOKUP($E51,'Activity 9'!$B$17:$B$23,'Activity 9'!N$17:N$23,\"N/A\",0,1)","v":"N/A"},{"$f":"_xlfn.XLOOKUP($E51,'Activity 9'!$B$17:$B$23,'Activity 9'!O$17:O$23,\"N/A\",0,1)","v":"N/A"},{"$f":"_xlfn.XLOOKUP($E51,'Activity 9'!$B$17:$B$23,'Activity 9'!Q$17:Q$23,\"N/A\",0,1)","v":"N/A"},{"$f":"_xlfn.XLOOKUP($E51,'Activity 10'!$B$7:$B$13,'Activity 10'!A$7:A$13,\"No\",0,1)","v":"No"},{"$f":"_xlfn.XLOOKUP($E51,'Activity 10'!$B$7:$B$13,'Activity 10'!J$7:J$13,\"N/A\",0,1)","v":"N/A"},{"$f":"_xlfn.XLOOKUP($E51,'Activity 10'!$B$7:$B$13,'Activity 10'!K$7:K$13,\"N/A\",0,1)","v":"N/A"},{"$f":"_xlfn.XLOOKUP($E51,'Activity 10'!$B$7:$B$13,'Activity 10'!L$7:L$13,\"N/A\",0,1)","v":"N/A"},{"$f":"_xlfn.XLOOKUP($E51,'Activity 10'!$B$7:$B$13,'Activity 10'!M$7:M$13,\"N/A\",0,1)","v":"N/A"},{"$f":"_xlfn.XLOOKUP($E51,'Activity 10'!$B$7:$B$13,'Activity 10'!N$7:N$13,\"N/A\",0,1)","v":"N/A"},{"$f":"_xlfn.XLOOKUP($E51,'Activity 10'!$B$7:$B$13,'Activity 10'!O$7:O$13,\"N/A\",0,1)","v":"N/A"},{"$f":"_xlfn.XLOOKUP($E51,'Activity 10'!$B$7:$B$13,'Activity 10'!P$7:P$13,\"N/A\",0,1)","v":"N/A"},{"$f":"_xlfn.XLOOKUP($E51,'Activity 10'!$B$7:$B$13,'Activity 10'!Q$7:Q$13,\"N/A\",0,1)","v":"N/A"},{"$f":"_xlfn.XLOOKUP($E51,'Activity 10'!$B$7:$B$13,'Activity 10'!R$7:R$13,\"N/A\",0,1)","v":"N/A"},{"$f":"_xlfn.XLOOKUP($E51,'Activity 10'!$B$7:$B$13,'Activity 10'!S$7:S$13,\"N/A\",0,1)","v":"N/A"},{"$f":"_xlfn.XLOOKUP($E51,'Activity 10'!$B$7:$B$13,'Activity 10'!T$7:T$13,\"N/A\",0,1)","v":"N/A"},{"$f":"_xlfn.XLOOKUP($E51,'Activity 10'!$B$7:$B$13,'Activity 10'!U$7:U$13,\"N/A\",0,1)","v":"N/A"},{"$f":"_xlfn.XLOOKUP($E51,'Activity 10'!$B$7:$B$13,'Activity 10'!V$7:V$13,\"N/A\",0,1)","v":"N/A"},{"$f":"_xlfn.XLOOKUP($E51,'Activity 10'!$B$17:$B$23,'Activity 10'!E$17:E$23,\"N/A\",0,1)","v":"N/A"},{"$f":"_xlfn.XLOOKUP($E51,'Activity 10'!$B$17:$B$23,'Activity 10'!F$17:F$23,\"N/A\",0,1)","v":"N/A"},{"$f":"_xlfn.XLOOKUP($E51,'Activity 10'!$B$17:$B$23,'Activity 10'!G$17:G$23,\"N/A\",0,1)","v":"N/A"},{"$f":"_xlfn.XLOOKUP($E51,'Activity 10'!$B$17:$B$23,'Activity 10'!H$17:H$23,\"N/A\",0,1)","v":"N/A"},{"$f":"_xlfn.XLOOKUP($E51,'Activity 10'!$B$17:$B$23,'Activity 10'!I$17:I$23,\"N/A\",0,1)","v":"N/A"},{"$f":"_xlfn.XLOOKUP($E51,'Activity 10'!$B$17:$B$23,'Activity 10'!J$17:J$23,\"N/A\",0,1)","v":"N/A"},{"$f":"_xlfn.XLOOKUP($E51,'Activity 10'!$B$17:$B$23,'Activity 10'!K$17:K$23,\"N/A\",0,1)","v":"N/A"},{"$f":"_xlfn.XLOOKUP($E51,'Activity 10'!$B$17:$B$23,'Activity 10'!L$17:L$23,\"N/A\",0,1)","v":"N/A"},{"$f":"_xlfn.XLOOKUP($E51,'Activity 10'!$B$17:$B$23,'Activity 10'!M$17:M$23,\"N/A\",0,1)","v":"N/A"},{"$f":"_xlfn.XLOOKUP($E51,'Activity 10'!$B$17:$B$23,'Activity 10'!N$17:N$23,\"N/A\",0,1)","v":"N/A"},{"$f":"_xlfn.XLOOKUP($E51,'Activity 10'!$B$17:$B$23,'Activity 10'!P$17:P$23,\"N/A\",0,1)","v":"N/A"},{"$f":"_xlfn.XLOOKUP($E51,'Competitive Activity 1'!B$7:B$13,'Competitive Activity 1'!A$7:A$13,\"No\",0,1)","v":"No"},{"$f":"_xlfn.XLOOKUP($E51,'Competitive Activity 1'!$B$7:$B$13,'Competitive Activity 1'!H$7:H$13,\"N/A\",0,1)","v":"N/A"},{"$f":"_xlfn.XLOOKUP($E51,'Competitive Activity 1'!$B$7:$B$13,'Competitive Activity 1'!I$7:I$13,\"N/A\",0,1)","v":"N/A"},{"$f":"_xlfn.XLOOKUP($E51,'Competitive Activity 1'!$B$7:$B$13,'Competitive Activity 1'!J$7:J$13,\"N/A\",0,1)","v":"N/A"},{"$f":"_xlfn.XLOOKUP($E51,'Competitive Activity 1'!$B$7:$B$13,'Competitive Activity 1'!K$7:K$13,\"N/A\",0,1)","v":"N/A"},{"$f":"_xlfn.XLOOKUP($E51,'Competitive Activity 1'!$B$7:$B$13,'Competitive Activity 1'!L$7:L$13,\"N/A\",0,1)","v":"N/A"},{"$f":"_xlfn.XLOOKUP($E51,'Competitive Activity 1'!$B$7:$B$13,'Competitive Activity 1'!M$7:M$13,\"N/A\",0,1)","v":"N/A"},{"$f":"_xlfn.XLOOKUP($E51,'Competitive Activity 1'!$B$7:$B$13,'Competitive Activity 1'!N$7:N$13,\"N/A\",0,1)","v":"N/A"},{"$f":"_xlfn.XLOOKUP($E51,'Competitive Activity 1'!$B$7:$B$13,'Competitive Activity 1'!O$7:O$13,\"N/A\",0,1)","v":"N/A"},{"$f":"_xlfn.XLOOKUP($E51,'Competitive Activity 1'!$B$7:$B$13,'Competitive Activity 1'!P$7:P$13,\"N/A\",0,1)","v":"N/A"},{"$f":"_xlfn.XLOOKUP($E51,'Competitive Activity 1'!$B$7:$B$13,'Competitive Activity 1'!Q$7:Q$13,\"N/A\",0,1)","v":"N/A"},{"$f":"_xlfn.XLOOKUP($E51,'Competitive Activity 1'!$B$7:$B$13,'Competitive Activity 1'!R$7:R$13,\"N/A\",0,1)","v":"N/A"},{"$f":"_xlfn.XLOOKUP($E51,'Competitive Activity 1'!$B$7:$B$13,'Competitive Activity 1'!S$7:S$13,\"N/A\",0,1)","v":"N/A"},{"$f":"_xlfn.XLOOKUP($E51,'Competitive Activity 1'!$B$7:$B$13,'Competitive Activity 1'!T$7:T$13,\"N/A\",0,1)","v":"N/A"},{"$f":"_xlfn.XLOOKUP($E51,'Competitive Activity 1'!$B$7:$B$13,'Competitive Activity 1'!U$7:U$13,\"N/A\",0,1)","v":"N/A"},{"$f":"_xlfn.XLOOKUP($E51,'Competitive Activity 1'!$B$17:$B$23,'Competitive Activity 1'!C$17:C$23,\"N/A\",0,1)","v":"N/A"},{"$f":"_xlfn.XLOOKUP($E51,'Competitive Activity 1'!$B$17:$B$23,'Competitive Activity 1'!D$17:D$23,\"N/A\",0,1)","v":"N/A"},{"$f":"_xlfn.XLOOKUP($E51,'Competitive Activity 1'!$B$17:$B$23,'Competitive Activity 1'!E$17:E$23,\"N/A\",0,1)","v":"N/A"},{"$f":"_xlfn.XLOOKUP($E51,'Competitive Activity 1'!$B$17:$B$23,'Competitive Activity 1'!F$17:F$23,\"N/A\",0,1)","v":"N/A"},{"$f":"_xlfn.XLOOKUP($E51,'Competitive Activity 1'!$B$17:$B$23,'Competitive Activity 1'!G$17:G$23,\"N/A\",0,1)","v":"N/A"},{"$f":"_xlfn.XLOOKUP($E51,'Competitive Activity 1'!$B$17:$B$23,'Competitive Activity 1'!H$17:H$23,\"N/A\",0,1)","v":"N/A"},{"$f":"_xlfn.XLOOKUP($E51,'Competitive Activity 1'!$B$17:$B$23,'Competitive Activity 1'!I$17:I$23,\"N/A\",0,1)","v":"N/A"},{"$f":"_xlfn.XLOOKUP($E51,'Competitive Activity 1'!$B$17:$B$23,'Competitive Activity 1'!J$17:J$23,\"N/A\",0,1)","v":"N/A"},{"$f":"_xlfn.XLOOKUP($E51,'Competitive Activity 1'!$B$17:$B$23,'Competitive Activity 1'!K$17:K$23,\"N/A\",0,1)","v":"N/A"},{"$f":"_xlfn.XLOOKUP($E51,'Competitive Activity 1'!$B$17:$B$23,'Competitive Activity 1'!M$17:M$23,\"N/A\",0,1)","v":"N/A"},{"$f":"_xlfn.XLOOKUP($E51,'Competitive Activity 1'!$B$17:$B$23,'Competitive Activity 1'!N$17:N$23,\"N/A\",0,1)","v":"N/A"},{"$f":"_xlfn.XLOOKUP($E51,'Competitive Activity 1'!$B$17:$B$23,'Competitive Activity 1'!P$17:P$23,\"N/A\",0,1)","v":"N/A"},{"$f":"_xlfn.XLOOKUP($E51,'Competitive Activity 2'!$B$7:$B$13,'Competitive Activity 2'!A$7:A$13,\"No\",0)","v":"No"},{"$f":"_xlfn.XLOOKUP($E51,'Competitive Activity 2'!$B$7:$B$13,'Competitive Activity 2'!L$7:L$13,\"N/A\",0)","v":"N/A"},{"$f":"_xlfn.XLOOKUP($E51,'Competitive Activity 2'!$B$7:$B$13,'Competitive Activity 2'!M$7:M$13,\"N/A\",0)","v":"N/A"},{"$f":"_xlfn.XLOOKUP($E51,'Competitive Activity 2'!$B$7:$B$13,'Competitive Activity 2'!N$7:N$13,\"N/A\",0)","v":"N/A"},{"$f":"_xlfn.XLOOKUP($E51,'Competitive Activity 2'!$B$7:$B$13,'Competitive Activity 2'!O$7:O$13,\"N/A\",0)","v":"N/A"},{"$f":"_xlfn.XLOOKUP($E51,'Competitive Activity 2'!$B$7:$B$13,'Competitive Activity 2'!P$7:P$13,\"N/A\",0)","v":"N/A"},{"$f":"_xlfn.XLOOKUP($E51,'Competitive Activity 2'!$B$7:$B$13,'Competitive Activity 2'!Q$7:Q$13,\"N/A\",0)","v":"N/A"},{"$f":"_xlfn.XLOOKUP($E51,'Competitive Activity 2'!$B$7:$B$13,'Competitive Activity 2'!R$7:R$13,\"N/A\",0)","v":"N/A"},{"$f":"_xlfn.XLOOKUP($E51,'Competitive Activity 2'!$B$7:$B$13,'Competitive Activity 2'!S$7:S$13,\"N/A\",0)","v":"N/A"},{"$f":"_xlfn.XLOOKUP($E51,'Competitive Activity 2'!$B$7:$B$13,'Competitive Activity 2'!T$7:T$13,\"N/A\",0)","v":"N/A"},{"$f":"_xlfn.XLOOKUP($E51,'Competitive Activity 2'!$B$7:$B$13,'Competitive Activity 2'!U$7:U$13,\"N/A\",0)","v":"N/A"},{"$f":"_xlfn.XLOOKUP($E51,'Competitive Activity 2'!$B$17:$B$23,'Competitive Activity 2'!D$17:D$23,\"N/A\",0)","v":"N/A"},{"$f":"_xlfn.XLOOKUP($E51,'Competitive Activity 2'!$B$17:$B$23,'Competitive Activity 2'!E$17:E$23,\"N/A\",0)","v":"N/A"},{"$f":"_xlfn.XLOOKUP($E51,'Competitive Activity 2'!$B$17:$B$23,'Competitive Activity 2'!F$17:F$23,\"N/A\",0)","v":"N/A"},{"$f":"_xlfn.XLOOKUP($E51,'Competitive Activity 2'!$B$17:$B$23,'Competitive Activity 2'!G$17:G$23,\"N/A\",0)","v":"N/A"},{"$f":"_xlfn.XLOOKUP($E51,'Competitive Activity 2'!$B$17:$B$23,'Competitive Activity 2'!H$17:H$23,\"N/A\",0)","v":"N/A"},{"$f":"_xlfn.XLOOKUP($E51,'Competitive Activity 2'!$B$17:$B$23,'Competitive Activity 2'!I$17:I$23,\"N/A\",0)","v":"N/A"},{"$f":"_xlfn.XLOOKUP($E51,'Competitive Activity 2'!$B$17:$B$23,'Competitive Activity 2'!J$17:J$23,\"N/A\",0)","v":"N/A"},{"$f":"_xlfn.XLOOKUP($E51,'Competitive Activity 2'!$B$17:$B$23,'Competitive Activity 2'!K$17:K$23,\"N/A\",0)","v":"N/A"},{"$f":"_xlfn.XLOOKUP($E51,'Competitive Activity 2'!$B$17:$B$23,'Competitive Activity 2'!L$17:L$23,\"N/A\",0)","v":"N/A"},{"$f":"_xlfn.XLOOKUP($E51,'Competitive Activity 2'!$B$17:$B$23,'Competitive Activity 2'!M$17:M$23,\"N/A\",0)","v":"N/A"},{"$f":"_xlfn.XLOOKUP($E51,'Competitive Activity 2'!$B$17:$B$23,'Competitive Activity 2'!N$17:N$23,\"N/A\",0)","v":"N/A"},{"$f":"_xlfn.XLOOKUP($E51,'Competitive Activity 2'!$B$27:$B$33,'Competitive Activity 2'!D$27:D$33,\"N/A\",0)","v":"N/A"},{"$f":"_xlfn.XLOOKUP($E51,'Competitive Activity 2'!$B$27:$B$33,'Competitive Activity 2'!E$27:E$33,\"N/A\",0)","v":"N/A"},{"$f":"_xlfn.XLOOKUP($E51,'Competitive Activity 2'!$B$27:$B$33,'Competitive Activity 2'!F$27:F$33,\"N/A\",0)","v":"N/A"},{"$f":"_xlfn.XLOOKUP($E51,'Competitive Activity 2'!$B$27:$B$33,'Competitive Activity 2'!G$27:G$33,\"N/A\",0)","v":"N/A"},{"$f":"_xlfn.XLOOKUP($E51,'Competitive Activity 2'!$B$27:$B$33,'Competitive Activity 2'!H$27:H$33,\"N/A\",0)","v":"N/A"},{"$f":"_xlfn.XLOOKUP($E51,'Competitive Activity 2'!$B$27:$B$33,'Competitive Activity 2'!I$27:I$33,\"N/A\",0)","v":"N/A"},{"$f":"_xlfn.XLOOKUP($E51,'Competitive Activity 2'!$B$27:$B$33,'Competitive Activity 2'!J$27:J$33,\"N/A\",0)","v":"N/A"},{"$f":"_xlfn.XLOOKUP($E51,'Competitive Activity 2'!$B$27:$B$33,'Competitive Activity 2'!K$27:K$33,\"N/A\",0)","v":"N/A"},{"$f":"_xlfn.XLOOKUP($E51,'Competitive Activity 2'!$B$27:$B$33,'Competitive Activity 2'!M$27:M$33,\"N/A\",0)","v":"N/A"}]
[{"$f":"'1-Cover Sheet'!$C$8","v":"Select One"},{"$f":"'1-Cover Sheet'!$F$8","v":"Select One"},{"$f":"'Summary Sheet'!$D$8","v":0},{"$f":"'Summary Sheet'!$D$10","v":0},{"$f":"'Drop Down Box'!B216","v":0},{"$f":"'Drop Down Box'!C216","v":0},{"$f":"'Drop Down Box'!D216","v":"Select One"},{"$f":"_xlfn.XLOOKUP(E52,'Drop Down Box'!$B$166:$B$249,'Drop Down Box'!$A$166:$A$249,\"Unknown\",0)","v":"Activity 1"},{"$f":"_xlfn.XLOOKUP($E52,'Activity 8'!$B$17:$B$23,'Activity 8'!$O$17:$O$23,\"N/A\",0)","v":"N/A"},{"$f":"_xlfn.XLOOKUP($E52,'Activity 8'!$B$17:$B$23,'Activity 8'!$P$17:$P$23,\"N/A\",0)","v":"N/A"},{"$f":"_xlfn.XLOOKUP($E52,'Activity 8'!$B$7:$B$13,'Activity 8'!$F$7:$F$13,\"N/A\",0)","v":"N/A"},{"$f":"_xlfn.XLOOKUP($E52,'Activity 8'!$B$7:$B$13,'Activity 8'!$G$7:$G$13,\"N/A\",0)","v":"N/A"},{"$f":"_xlfn.XLOOKUP($E52,'Activity 8'!$B$7:$B$13,'Activity 8'!H$7:H$13,\"N/A\",0)","v":"N/A"},{"$f":"_xlfn.XLOOKUP($E52,'Activity 1'!$B$7:$B$13,'Activity 1'!$A$7:$A$13,\"No\",0,1)","v":"No"},{"$f":"_xlfn.XLOOKUP($E52,'Activity 1'!$B$7:$B$13,'Activity 1'!$H$7:$H$13,\"N/A\",0,1)","v":"N/A"},{"$f":"_xlfn.XLOOKUP($E52,'Activity 1'!$B$7:$B$13,'Activity 1'!I$7:I$13,\"N/A\",0,1)","v":"N/A"},{"$f":"_xlfn.XLOOKUP($E52,'Activity 1'!$B$7:$B$13,'Activity 1'!J$7:J$13,\"N/A\",0,1)","v":"N/A"},{"$f":"_xlfn.XLOOKUP($E52,'Activity 1'!$B$7:$B$13,'Activity 1'!K$7:K$13,\"N/A\",0,1)","v":"N/A"},{"$f":"_xlfn.XLOOKUP($E52,'Activity 1'!$B$7:$B$13,'Activity 1'!L$7:L$13,\"N/A\",0,1)","v":"N/A"},{"$f":"_xlfn.XLOOKUP($E52,'Activity 1'!$B$7:$B$13,'Activity 1'!M$7:M$13,\"N/A\",0,1)","v":"N/A"},{"$f":"_xlfn.XLOOKUP($E52,'Activity 1'!$B$7:$B$13,'Activity 1'!N$7:N$13,\"N/A\",0,1)","v":"N/A"},0,{"$f":"_xlfn.XLOOKUP($E52,'Activity 1'!$B$7:$B$13,'Activity 1'!O$7:O$13,\"N/A\",0,1)","v":"N/A"},{"$f":"_xlfn.XLOOKUP($E52,'Activity 1'!$B$7:$B$13,'Activity 1'!P$7:P$13,\"N/A\",0,1)","v":"N/A"},{"$f":"_xlfn.XLOOKUP($E52,'Activity 1'!$B$7:$B$13,'Activity 1'!Q$7:Q$13,\"N/A\",0,1)","v":"N/A"},{"$f":"_xlfn.XLOOKUP($E52,'Activity 1'!$B$7:$B$13,'Activity 1'!R$7:R$13,\"N/A\",0,1)","v":"N/A"},{"$f":"_xlfn.XLOOKUP($E52,'Activity 1'!$B$7:$B$13,'Activity 1'!S$7:S$13,\"N/A\",0,1)","v":"N/A"},{"$f":"_xlfn.XLOOKUP($E52,'Activity 1'!$B$7:$B$13,'Activity 1'!T$7:T$13,\"N/A\",0,1)","v":"N/A"},{"$f":"_xlfn.XLOOKUP($E52,'Activity 1'!$B$7:$B$13,'Activity 1'!U$7:U$13,\"N/A\",0,1)","v":"N/A"},{"$f":"_xlfn.XLOOKUP($E52,'Activity 1'!$B$7:$B$13,'Activity 1'!V$7:V$13,\"N/A\",0,1)","v":"N/A"},{"$f":"_xlfn.XLOOKUP($E52,'Activity 1'!$B$17:$B$23,'Activity 1'!C$17:C$23,\"N/A\",0,1)","v":"N/A"},{"$f":"_xlfn.XLOOKUP($E52,'Activity 1'!$B$17:$B$23,'Activity 1'!D$17:D$23,\"N/A\",0,1)","v":"N/A"},{"$f":"_xlfn.XLOOKUP($E52,'Activity 1'!$B$17:$B$23,'Activity 1'!E$17:E$23,\"N/A\",0,1)","v":"N/A"},{"$f":"_xlfn.XLOOKUP($E52,'Activity 1'!$B$17:$B$23,'Activity 1'!F$17:F$23,\"N/A\",0,1)","v":"N/A"},{"$f":"_xlfn.XLOOKUP($E52,'Activity 1'!$B$17:$B$23,'Activity 1'!G$17:G$23,\"N/A\",0,1)","v":"N/A"},{"$f":"_xlfn.XLOOKUP($E52,'Activity 1'!$B$17:$B$23,'Activity 1'!H$17:H$23,\"N/A\",0,1)","v":"N/A"},{"$f":"_xlfn.XLOOKUP($E52,'Activity 1'!$B$17:$B$23,'Activity 1'!I$17:I$23,\"N/A\",0,1)","v":"N/A"},{"$f":"_xlfn.XLOOKUP($E52,'Activity 1'!$B$17:$B$23,'Activity 1'!J$17:J$23,\"N/A\",0,1)","v":"N/A"},{"$f":"_xlfn.XLOOKUP($E52,'Activity 1'!$B$17:$B$23,'Activity 1'!K$17:K$23,\"N/A\",0,1)","v":"N/A"},{"$f":"_xlfn.XLOOKUP($E52,'Activity 1'!$B$17:$B$23,'Activity 1'!L$17:L$23,\"N/A\",0,1)","v":"N/A"},{"$f":"_xlfn.XLOOKUP($E52,'Activity 1'!$B$17:$B$23,'Activity 1'!M$17:M$23,\"N/A\",0,1)","v":"N/A"},{"$f":"_xlfn.XLOOKUP($E52,'Activity 1'!$B$17:$B$23,'Activity 1'!O$17:O$23,\"N/A\",0,1)","v":"N/A"},{"$f":"_xlfn.XLOOKUP($E52,'Activity 1'!$B$17:$B$23,'Activity 1'!Q$17:Q$23,\"N/A\",0,1)","v":"N/A"},{"$f":"_xlfn.XLOOKUP($E52,'Activity 2'!$B$7:$B$13,'Activity 2'!$A$7:$A$13,\"No\",0,1)","v":"No"},{"$f":"_xlfn.XLOOKUP($E52,'Activity 2'!B$7:B$13,'Activity 2'!H$7:H$13,\"N/A\",0)","v":"N/A"},{"$f":"_xlfn.XLOOKUP($E52,'Activity 2'!C$7:C$13,'Activity 2'!I$7:I$13,\"N/A\",0)","v":"N/A"},{"$f":"_xlfn.XLOOKUP($E52,'Activity 2'!D$7:D$13,'Activity 2'!J$7:J$13,\"N/A\",0)","v":"N/A"},{"$f":"_xlfn.XLOOKUP($E52,'Activity 2'!E$7:E$13,'Activity 2'!K$7:K$13,\"N/A\",0)","v":"N/A"},{"$f":"_xlfn.XLOOKUP($E52,'Activity 2'!F$7:F$13,'Activity 2'!L$7:L$13,\"N/A\",0)","v":"N/A"},{"$f":"_xlfn.XLOOKUP($E52,'Activity 2'!G$7:G$13,'Activity 2'!M$7:M$13,\"N/A\",0)","v":"N/A"},{"$f":"_xlfn.XLOOKUP($E52,'Activity 2'!H$7:H$13,'Activity 2'!N$7:N$13,\"N/A\",0)","v":"N/A"},{"$f":"_xlfn.XLOOKUP($E52,'Activity 2'!I$7:I$13,'Activity 2'!O$7:O$13,\"N/A\",0)","v":"N/A"},{"$f":"_xlfn.XLOOKUP($E52,'Activity 2'!J$7:J$13,'Activity 2'!P$7:P$13,\"N/A\",0)","v":"N/A"},{"$f":"_xlfn.XLOOKUP($E52,'Activity 2'!K$7:K$13,'Activity 2'!Q$7:Q$13,\"N/A\",0)","v":"N/A"},{"$f":"_xlfn.XLOOKUP($E52,'Activity 2'!L$7:L$13,'Activity 2'!R$7:R$13,\"N/A\",0)","v":"N/A"},{"$f":"_xlfn.XLOOKUP($E52,'Activity 2'!M$7:M$13,'Activity 2'!S$7:S$13,\"N/A\",0)","v":"N/A"},{"$f":"_xlfn.XLOOKUP($E52,'Activity 2'!N$7:N$13,'Activity 2'!T$7:T$13,\"N/A\",0)","v":"N/A"},{"$f":"_xlfn.XLOOKUP($E52,'Activity 2'!O$7:O$13,'Activity 2'!U$7:U$13,\"N/A\",0)","v":"N/A"},{"$f":"_xlfn.XLOOKUP($E52,'Activity 2'!P$7:P$13,'Activity 2'!V$7:V$13,\"N/A\",0)","v":"N/A"},{"$f":"_xlfn.XLOOKUP($E52,'Activity 2'!$B$17:$B$23,'Activity 2'!C$17:C$23,\"N/A\",0,1)","v":"N/A"},{"$f":"_xlfn.XLOOKUP($E52,'Activity 2'!$B$17:$B$23,'Activity 2'!D$17:D$23,\"N/A\",0,1)","v":"N/A"},{"$f":"_xlfn.XLOOKUP($E52,'Activity 2'!$B$17:$B$23,'Activity 2'!E$17:E$23,\"N/A\",0,1)","v":"N/A"},{"$f":"_xlfn.XLOOKUP($E52,'Activity 2'!$B$17:$B$23,'Activity 2'!F$17:F$23,\"N/A\",0,1)","v":"N/A"},{"$f":"_xlfn.XLOOKUP($E52,'Activity 2'!$B$17:$B$23,'Activity 2'!G$17:G$23,\"N/A\",0,1)","v":"N/A"},{"$f":"_xlfn.XLOOKUP($E52,'Activity 2'!$B$17:$B$23,'Activity 2'!H$17:H$23,\"N/A\",0,1)","v":"N/A"},{"$f":"_xlfn.XLOOKUP($E52,'Activity 2'!$B$17:$B$23,'Activity 2'!I$17:I$23,\"N/A\",0,1)","v":"N/A"},{"$f":"_xlfn.XLOOKUP($E52,'Activity 2'!$B$17:$B$23,'Activity 2'!J$17:J$23,\"N/A\",0,1)","v":"N/A"},{"$f":"_xlfn.XLOOKUP($E52,'Activity 2'!$B$17:$B$23,'Activity 2'!K$17:K$23,\"N/A\",0,1)","v":"N/A"},{"$f":"_xlfn.XLOOKUP($E52,'Activity 2'!$B$17:$B$23,'Activity 2'!L$17:L$23,\"N/A\",0,1)","v":"N/A"},{"$f":"_xlfn.XLOOKUP($E52,'Activity 2'!$B$17:$B$23,'Activity 2'!M$17:M$23,\"N/A\",0,1)","v":"N/A"},{"$f":"_xlfn.XLOOKUP($E52,'Activity 2'!$B$17:$B$23,'Activity 2'!O$17:O$23,\"N/A\",0,1)","v":"N/A"},{"$f":"_xlfn.XLOOKUP($E52,'Activity 2'!$B$17:$B$23,'Activity 2'!Q$17:Q$23,\"N/A\",0,1)","v":"N/A"},null,{"$f":"_xlfn.XLOOKUP($E52,'Activity 3'!$B$8:$B$14,'Activity 3'!K$8:K$14,\"N/A\",0,1)","v":"N/A"},{"$f":"_xlfn.XLOOKUP($E52,'Activity 3'!$B$8:$B$14,'Activity 3'!L$8:L$14,\"N/A\",0,1)","v":"N/A"},{"$f":"_xlfn.XLOOKUP($E52,'Activity 3'!$B$8:$B$14,'Activity 3'!M$8:M$14,\"N/A\",0,1)","v":"N/A"},{"$f":"_xlfn.XLOOKUP($E52,'Activity 3'!$B$8:$B$14,'Activity 3'!N$8:N$14,\"N/A\",0,1)","v":"N/A"},{"$f":"_xlfn.XLOOKUP($E52,'Activity 3'!$B$8:$B$14,'Activity 3'!O$8:O$14,\"N/A\",0,1)","v":"N/A"},{"$f":"_xlfn.XLOOKUP($E52,'Activity 3'!$B$8:$B$14,'Activity 3'!R$8:R$14,\"N/A\",0,1)","v":"N/A"},{"$f":"_xlfn.XLOOKUP($E52,'Activity 4'!$B$8:$B$14,'Activity 4'!$A$8:$A$14,\"No\",0,1)","v":"No"},{"$f":"_xlfn.XLOOKUP($E52,'Activity 4'!$B$8:$B$14,'Activity 4'!L$8:L$14,\"N/A\",0,1)","v":"N/A"},{"$f":"_xlfn.XLOOKUP($E52,'Activity 4'!$B$8:$B$14,'Activity 4'!I$8:I$14,\"N/A\",0,1)","v":"N/A"},{"$f":"_xlfn.XLOOKUP($E52,'Activity 4'!$B$8:$B$14,'Activity 4'!M$8:M$14,\"N/A\",0,1)","v":"N/A"},{"$f":"_xlfn.XLOOKUP($E52,'Activity 5'!$B$8:$B$14,'Activity 5'!$A$8:$A$14,\"No\",0,1)","v":"No"},{"$f":"_xlfn.XLOOKUP($E52,'Activity 5'!$B$8:$B$14,'Activity 5'!J$8:J$14,\"N/A\",0,1)","v":"N/A"},{"$f":"_xlfn.XLOOKUP($E52,'Activity 5'!$B$8:$B$14,'Activity 5'!K$8:K$14,\"N/A\",0,1)","v":"N/A"},{"$f":"_xlfn.XLOOKUP($E52,'Activity 5'!$B$8:$B$14,'Activity 5'!N$8:N$14,\"N/A\",0,1)","v":"N/A"},{"$f":"_xlfn.XLOOKUP($E52,'Activity 5'!$B$8:$B$14,'Activity 5'!O$8:O$14,\"N/A\",0,1)","v":"N/A"},{"$f":"_xlfn.XLOOKUP($E52,'Activity 5'!$B$8:$B$14,'Activity 5'!P$8:P$14,\"N/A\",0,1)","v":"N/A"},{"$f":"_xlfn.XLOOKUP($E52,'Activity 5'!$B$8:$B$14,'Activity 5'!Q$8:Q$14,\"N/A\",0,1)","v":"N/A"},{"$f":"_xlfn.XLOOKUP($E52,'Activity 5'!$B$8:$B$14,'Activity 5'!R$8:R$14,\"N/A\",0,1)","v":"N/A"},{"$f":"_xlfn.XLOOKUP($E52,'Activity 6'!$B$7:$B$13,'Activity 6'!A$7:A$13,\"No\",0,1)","v":"No"},{"$f":"_xlfn.XLOOKUP($E52,'Activity 6'!$B$7:$B$13,'Activity 6'!K$7:K$13,\"N/A\",0,1)","v":"N/A"},{"$f":"_xlfn.XLOOKUP($E52,'Activity 6'!$B$7:$B$13,'Activity 6'!L$7:L$13,\"N/A\",0,1)","v":"N/A"},{"$f":"_xlfn.XLOOKUP($E52,'Activity 6'!$B$7:$B$13,'Activity 6'!M$7:M$13,\"N/A\",0,1)","v":"N/A"},{"$f":"_xlfn.XLOOKUP($E52,'Activity 6'!$B$7:$B$13,'Activity 6'!N$7:N$13,\"N/A\",0,1)","v":"N/A"},{"$f":"_xlfn.XLOOKUP($E52,'Activity 6'!$B$7:$B$13,'Activity 6'!O$7:O$13,\"N/A\",0,1)","v":"N/A"},{"$f":"_xlfn.XLOOKUP($E52,'Activity 6'!$B$7:$B$13,'Activity 6'!P$7:P$13,\"N/A\",0,1)","v":"N/A"},{"$f":"_xlfn.XLOOKUP($E52,'Activity 6'!$B$7:$B$13,'Activity 6'!Q$7:Q$13,\"N/A\",0,1)","v":"N/A"},{"$f":"_xlfn.XLOOKUP($E52,'Activity 6'!$B$7:$B$13,'Activity 6'!R$7:R$13,\"N/A\",0,1)","v":"N/A"},{"$f":"_xlfn.XLOOKUP($E52,'Activity 6'!$B$7:$B$13,'Activity 6'!S$7:S$13,\"N/A\",0,1)","v":"N/A"},{"$f":"_xlfn.XLOOKUP($E52,'Activity 6'!$B$7:$B$13,'Activity 6'!T$7:T$13,\"N/A\",0,1)","v":"N/A"},{"$f":"_xlfn.XLOOKUP($E52,'Activity 6'!$B$7:$B$13,'Activity 6'!U$7:U$13,\"N/A\",0,1)","v":"N/A"},{"$f":"_xlfn.XLOOKUP($E52,'Activity 6'!$B$22:$B$28,'Activity 6'!C$22:C$28,\"N/A\",0,1)","v":"N/A"},{"$f":"_xlfn.XLOOKUP($E52,'Activity 6'!$B$22:$B$28,'Activity 6'!D$22:D$28,\"N/A\",0,1)","v":"N/A"},{"$f":"_xlfn.XLOOKUP($E52,'Activity 6'!$B$22:$B$28,'Activity 6'!E$22:E$28,\"N/A\",0,1)","v":"N/A"},{"$f":"_xlfn.XLOOKUP($E52,'Activity 6'!$B$22:$B$28,'Activity 6'!F$22:F$28,\"N/A\",0,1)","v":"N/A"},{"$f":"_xlfn.XLOOKUP($E52,'Activity 6'!$B$22:$B$28,'Activity 6'!G$22:G$28,\"N/A\",0,1)","v":"N/A"},{"$f":"_xlfn.XLOOKUP($E52,'Activity 6'!$B$22:$B$28,'Activity 6'!H$22:H$28,\"N/A\",0,1)","v":"N/A"},{"$f":"_xlfn.XLOOKUP($E52,'Activity 6'!$B$22:$B$28,'Activity 6'!I$22:I$28,\"N/A\",0,1)","v":"N/A"},{"$f":"_xlfn.XLOOKUP($E52,'Activity 6'!$B$22:$B$28,'Activity 6'!J$22:J$28,\"N/A\",0,1)","v":"N/A"},{"$f":"_xlfn.XLOOKUP($E52,'Activity 6'!$B$22:$B$28,'Activity 6'!K$22:K$28,\"N/A\",0,1)","v":"N/A"},{"$f":"_xlfn.XLOOKUP($E52,'Activity 6'!$B$22:$B$28,'Activity 6'!L$22:L$28,\"N/A\",0,1)","v":"N/A"},{"$f":"_xlfn.XLOOKUP($E52,'Activity 6'!$B$22:$B$28,'Activity 6'!M$22:M$28,\"N/A\",0,1)","v":"N/A"},{"$f":"_xlfn.XLOOKUP($E52,'Activity 6'!$B$22:$B$28,'Activity 6'!N$22:N$28,\"N/A\",0,1)","v":"N/A"},{"$f":"_xlfn.XLOOKUP($E52,'Activity 6'!$B$32:$B$38,'Activity 6'!C$32:C$38,\"N/A\",0,1)","v":"N/A"},{"$f":"_xlfn.XLOOKUP($E52,'Activity 6'!$B$32:$B$38,'Activity 6'!D$32:D$38,\"N/A\",0,1)","v":"N/A"},{"$f":"_xlfn.XLOOKUP($E52,'Activity 6'!$B$32:$B$38,'Activity 6'!E$32:E$38,\"N/A\",0,1)","v":"N/A"},{"$f":"_xlfn.XLOOKUP($E52,'Activity 6'!$B$32:$B$38,'Activity 6'!F$32:F$38,\"N/A\",0,1)","v":"N/A"},{"$f":"_xlfn.XLOOKUP($E52,'Activity 6'!$B$32:$B$38,'Activity 6'!G$32:G$38,\"N/A\",0,1)","v":"N/A"},{"$f":"_xlfn.XLOOKUP($E52,'Activity 6'!$B$32:$B$38,'Activity 6'!H$32:H$38,\"N/A\",0,1)","v":"N/A"},{"$f":"_xlfn.XLOOKUP($E52,'Activity 6'!$B$32:$B$38,'Activity 6'!I$32:I$38,\"N/A\",0,1)","v":"N/A"},{"$f":"_xlfn.XLOOKUP($E52,'Activity 6'!$B$32:$B$38,'Activity 6'!J$32:J$38,\"N/A\",0,1)","v":"N/A"},{"$f":"_xlfn.XLOOKUP($E52,'Activity 6'!$B$32:$B$38,'Activity 6'!K$32:K$38,\"N/A\",0,1)","v":"N/A"},{"$f":"_xlfn.XLOOKUP($E52,'Activity 6'!$B$32:$B$38,'Activity 6'!M$32:M$38,\"N/A\",0,1)","v":"N/A"},{"$f":"_xlfn.XLOOKUP($E52,'Activity 7'!$B$7:$B$13,'Activity 7'!$A$7:$A$13,\"No\",0,1)","v":"No"},{"$f":"_xlfn.XLOOKUP($E52,'Activity 7'!$B$7:$B$13,'Activity 7'!M$7:M$13,\"N/A\",0,1)","v":"N/A"},{"$f":"_xlfn.XLOOKUP($E52,'Activity 7'!$B$7:$B$13,'Activity 7'!K$7:K$13,\"N/A\",0,1)","v":"N/A"},{"$f":"_xlfn.XLOOKUP($E52,'Activity 7'!$B$7:$B$13,'Activity 7'!N$7:N$13,\"N/A\",0,1)","v":"N/A"},{"$f":"_xlfn.XLOOKUP($E52,'Activity 7'!$B$7:$B$13,'Activity 7'!O$7:O$13,\"N/A\",0,1)","v":"N/A"},{"$f":"_xlfn.XLOOKUP($E52,'Activity 7'!$B$7:$B$13,'Activity 7'!P$7:P$13,\"N/A\",0,1)","v":"N/A"},{"$f":"_xlfn.XLOOKUP($E52,'Activity 7'!$B$7:$B$13,'Activity 7'!Q$7:Q$13,\"N/A\",0,1)","v":"N/A"},{"$f":"_xlfn.XLOOKUP($E52,'Activity 7'!$B$7:$B$13,'Activity 7'!R$7:R$13,\"N/A\",0,1)","v":"N/A"},{"$f":"_xlfn.XLOOKUP($E52,'Activity 7'!$B$7:$B$13,'Activity 7'!S$7:S$13,\"N/A\",0,1)","v":"N/A"},{"$f":"_xlfn.XLOOKUP($E52,'Activity 7'!$B$7:$B$13,'Activity 7'!T$7:T$13,\"N/A\",0,1)","v":"N/A"},{"$f":"_xlfn.XLOOKUP($E52,'Activity 7'!$B$7:$B$13,'Activity 7'!U$7:U$13,\"N/A\",0,1)","v":"N/A"},{"$f":"_xlfn.XLOOKUP($E52,'Activity 7'!$B$7:$B$13,'Activity 7'!V$7:V$13,\"N/A\",0,1)","v":"N/A"},{"$f":"_xlfn.XLOOKUP($E52,'Activity 7'!$B$17:$B$23,'Activity 7'!E$17:E$23,\"N/A\",0,1)","v":"N/A"},{"$f":"_xlfn.XLOOKUP($E52,'Activity 7'!$B$17:$B$23,'Activity 7'!G$17:G$23,\"N/A\",0,1)","v":"N/A"},{"$f":"_xlfn.XLOOKUP($E52,'Activity 7'!$B$17:$B$23,'Activity 7'!I$17:I$23,\"N/A\",0,1)","v":"N/A"},{"$f":"_xlfn.XLOOKUP($E52,'Activity 7'!$B$17:$B$23,'Activity 7'!J$17:J$23,\"N/A\",0,1)","v":"N/A"},{"$f":"_xlfn.XLOOKUP($E52,'Activity 7'!$B$17:$B$23,'Activity 7'!K$17:K$23,\"N/A\",0,1)","v":"N/A"},{"$f":"_xlfn.XLOOKUP($E52,'Activity 7'!$B$17:$B$23,'Activity 7'!L$17:L$23,\"N/A\",0,1)","v":"N/A"},{"$f":"_xlfn.XLOOKUP($E52,'Activity 7'!$B$17:$B$23,'Activity 7'!M$17:M$23,\"N/A\",0,1)","v":"N/A"},{"$f":"_xlfn.XLOOKUP($E52,'Activity 7'!$B$17:$B$23,'Activity 7'!N$17:N$23,\"N/A\",0,1)","v":"N/A"},{"$f":"_xlfn.XLOOKUP($E52,'Activity 7'!$B$17:$B$23,'Activity 7'!P$17:P$23,\"N/A\",0,1)","v":"N/A"},{"$f":"_xlfn.XLOOKUP($E52,'Activity 8'!$B$7:$B$13,'Activity 8'!A$7:A$13,\"No\",0,1)","v":"No"},{"$f":"_xlfn.XLOOKUP($E52,'Activity 8'!$B$7:$B$13,'Activity 8'!I$7:I$13,\"N/A\",0,1)","v":"N/A"},{"$f":"_xlfn.XLOOKUP($E52,'Activity 8'!$B$7:$B$13,'Activity 8'!J$7:J$13,\"N/A\",0,1)","v":"N/A"},{"$f":"_xlfn.XLOOKUP($E52,'Activity 8'!$B$7:$B$13,'Activity 8'!K$7:K$13,\"N/A\",0,1)","v":"N/A"},{"$f":"_xlfn.XLOOKUP($E52,'Activity 8'!$B$7:$B$13,'Activity 8'!L$7:L$13,\"N/A\",0,1)","v":"N/A"},{"$f":"_xlfn.XLOOKUP($E52,'Activity 8'!$B$7:$B$13,'Activity 8'!M$7:M$13,\"N/A\",0,1)","v":"N/A"},{"$f":"_xlfn.XLOOKUP($E52,'Activity 8'!$B$7:$B$13,'Activity 8'!N$7:N$13,\"N/A\",0,1)","v":"N/A"},{"$f":"_xlfn.XLOOKUP($E52,'Activity 8'!$B$7:$B$13,'Activity 8'!O$7:O$13,\"N/A\",0,1)","v":"N/A"},{"$f":"_xlfn.XLOOKUP($E52,'Activity 8'!$B$7:$B$13,'Activity 8'!P$7:P$13,\"N/A\",0,1)","v":"N/A"},{"$f":"_xlfn.XLOOKUP($E52,'Activity 8'!$B$7:$B$13,'Activity 8'!Q$7:Q$13,\"N/A\",0,1)","v":"N/A"},{"$f":"_xlfn.XLOOKUP($E52,'Activity 8'!$B$7:$B$13,'Activity 8'!R$7:R$13,\"N/A\",0,1)","v":"N/A"},{"$f":"_xlfn.XLOOKUP($E52,'Activity 8'!$B$7:$B$13,'Activity 8'!S$7:S$13,\"N/A\",0,1)","v":"N/A"},{"$f":"_xlfn.XLOOKUP($E52,'Activity 8'!$B$7:$B$13,'Activity 8'!T$7:T$13,\"N/A\",0,1)","v":"N/A"},{"$f":"_xlfn.XLOOKUP($E52,'Activity 8'!$B$7:$B$13,'Activity 8'!U$7:U$13,\"N/A\",0,1)","v":"N/A"},{"$f":"_xlfn.XLOOKUP($E52,'Activity 8'!$B$7:$B$13,'Activity 8'!V$7:V$13,\"N/A\",0,1)","v":"N/A"},{"$f":"_xlfn.XLOOKUP($E52,'Activity 8'!$B$17:$B$23,'Activity 8'!D$17:D$23,\"N/A\",0,1)","v":"N/A"},{"$f":"_xlfn.XLOOKUP($E52,'Activity 8'!$B$17:$B$23,'Activity 8'!E$17:E$23,\"N/A\",0,1)","v":"N/A"},{"$f":"_xlfn.XLOOKUP($E52,'Activity 8'!$B$17:$B$23,'Activity 8'!F$17:F$23,\"N/A\",0,1)","v":"N/A"},{"$f":"_xlfn.XLOOKUP($E52,'Activity 8'!$B$17:$B$23,'Activity 8'!G$17:G$23,\"N/A\",0,1)","v":"N/A"},{"$f":"_xlfn.XLOOKUP($E52,'Activity 8'!$B$17:$B$23,'Activity 8'!H$17:H$23,\"N/A\",0,1)","v":"N/A"},{"$f":"_xlfn.XLOOKUP($E52,'Activity 8'!$B$17:$B$23,'Activity 8'!I$17:I$23,\"N/A\",0,1)","v":"N/A"},{"$f":"_xlfn.XLOOKUP($E52,'Activity 8'!$B$17:$B$23,'Activity 8'!J$17:J$23,\"N/A\",0,1)","v":"N/A"},{"$f":"_xlfn.XLOOKUP($E52,'Activity 8'!$B$17:$B$23,'Activity 8'!K$17:K$23,\"N/A\",0,1)","v":"N/A"},{"$f":"_xlfn.XLOOKUP($E52,'Activity 8'!$B$17:$B$23,'Activity 8'!L$17:L$23,\"N/A\",0,1)","v":"N/A"},{"$f":"_xlfn.XLOOKUP($E52,'Activity 8'!$B$17:$B$23,'Activity 8'!M$17:M$23,\"N/A\",0,1)","v":"N/A"},{"$f":"_xlfn.XLOOKUP($E52,'Activity 8'!$B$17:$B$23,'Activity 8'!N$17:N$23,\"N/A\",0,1)","v":"N/A"},{"$f":"_xlfn.XLOOKUP($E52,'Activity 8'!$B$17:$B$23,'Activity 8'!P$17:P$23,\"N/A\",0,1)","v":"N/A"},{"$f":"_xlfn.XLOOKUP(E52,'Activity 9'!$B$7:$B$13,'Activity 9'!$A$7:$A$13,\"No\",0,1)","v":"No"},{"$f":"_xlfn.XLOOKUP($E52,'Activity 9'!$B$7:$B$13,'Activity 9'!J$7:J$13,\"N/A\",0,1)","v":"N/A"},{"$f":"_xlfn.XLOOKUP($E52,'Activity 9'!$B$7:$B$13,'Activity 9'!K$7:K$13,\"N/A\",0,1)","v":"N/A"},{"$f":"_xlfn.XLOOKUP($E52,'Activity 9'!$B$7:$B$13,'Activity 9'!L$7:L$13,\"N/A\",0,1)","v":"N/A"},{"$f":"_xlfn.XLOOKUP($E52,'Activity 9'!$B$7:$B$13,'Activity 9'!M$7:M$13,\"N/A\",0,1)","v":"N/A"},{"$f":"_xlfn.XLOOKUP($E52,'Activity 9'!$B$7:$B$13,'Activity 9'!N$7:N$13,\"N/A\",0,1)","v":"N/A"},{"$f":"_xlfn.XLOOKUP($E52,'Activity 9'!$B$7:$B$13,'Activity 9'!O$7:O$13,\"N/A\",0,1)","v":"N/A"},{"$f":"_xlfn.XLOOKUP($E52,'Activity 9'!$B$7:$B$13,'Activity 9'!P$7:P$13,\"N/A\",0,1)","v":"N/A"},{"$f":"_xlfn.XLOOKUP($E52,'Activity 9'!$B$7:$B$13,'Activity 9'!Q$7:Q$13,\"N/A\",0,1)","v":"N/A"},{"$f":"_xlfn.XLOOKUP($E52,'Activity 9'!$B$7:$B$13,'Activity 9'!R$7:R$13,\"N/A\",0,1)","v":"N/A"},{"$f":"_xlfn.XLOOKUP($E52,'Activity 9'!$B$7:$B$13,'Activity 9'!S$7:S$13,\"N/A\",0,1)","v":"N/A"},{"$f":"_xlfn.XLOOKUP($E52,'Activity 9'!$B$7:$B$13,'Activity 9'!T$7:T$13,\"N/A\",0,1)","v":"N/A"},{"$f":"_xlfn.XLOOKUP($E52,'Activity 9'!$B$17:$B$23,'Activity 9'!E$17:E$23,\"N/A\",0,1)","v":"N/A"},{"$f":"_xlfn.XLOOKUP($E52,'Activity 9'!$B$17:$B$23,'Activity 9'!F$17:F$23,\"N/A\",0,1)","v":"N/A"},{"$f":"_xlfn.XLOOKUP($E52,'Activity 9'!$B$17:$B$23,'Activity 9'!G$17:G$23,\"N/A\",0,1)","v":"N/A"},{"$f":"_xlfn.XLOOKUP($E52,'Activity 9'!$B$17:$B$23,'Activity 9'!H$17:H$23,\"N/A\",0,1)","v":"N/A"},{"$f":"_xlfn.XLOOKUP($E52,'Activity 9'!$B$17:$B$23,'Activity 9'!I$17:I$23,\"N/A\",0,1)","v":"N/A"},{"$f":"_xlfn.XLOOKUP($E52,'Activity 9'!$B$17:$B$23,'Activity 9'!J$17:J$23,\"N/A\",0,1)","v":"N/A"},{"$f":"_xlfn.XLOOKUP($E52,'Activity 9'!$B$17:$B$23,'Activity 9'!K$17:K$23,\"N/A\",0,1)","v":"N/A"},{"$f":"_xlfn.XLOOKUP($E52,'Activity 9'!$B$17:$B$23,'Activity 9'!L$17:L$23,\"N/A\",0,1)","v":"N/A"},{"$f":"_xlfn.XLOOKUP($E52,'Activity 9'!$B$17:$B$23,'Activity 9'!N$17:N$23,\"N/A\",0,1)","v":"N/A"},{"$f":"_xlfn.XLOOKUP($E52,'Activity 9'!$B$17:$B$23,'Activity 9'!O$17:O$23,\"N/A\",0,1)","v":"N/A"},{"$f":"_xlfn.XLOOKUP($E52,'Activity 9'!$B$17:$B$23,'Activity 9'!Q$17:Q$23,\"N/A\",0,1)","v":"N/A"},{"$f":"_xlfn.XLOOKUP($E52,'Activity 10'!$B$7:$B$13,'Activity 10'!A$7:A$13,\"No\",0,1)","v":"No"},{"$f":"_xlfn.XLOOKUP($E52,'Activity 10'!$B$7:$B$13,'Activity 10'!J$7:J$13,\"N/A\",0,1)","v":"N/A"},{"$f":"_xlfn.XLOOKUP($E52,'Activity 10'!$B$7:$B$13,'Activity 10'!K$7:K$13,\"N/A\",0,1)","v":"N/A"},{"$f":"_xlfn.XLOOKUP($E52,'Activity 10'!$B$7:$B$13,'Activity 10'!L$7:L$13,\"N/A\",0,1)","v":"N/A"},{"$f":"_xlfn.XLOOKUP($E52,'Activity 10'!$B$7:$B$13,'Activity 10'!M$7:M$13,\"N/A\",0,1)","v":"N/A"},{"$f":"_xlfn.XLOOKUP($E52,'Activity 10'!$B$7:$B$13,'Activity 10'!N$7:N$13,\"N/A\",0,1)","v":"N/A"},{"$f":"_xlfn.XLOOKUP($E52,'Activity 10'!$B$7:$B$13,'Activity 10'!O$7:O$13,\"N/A\",0,1)","v":"N/A"},{"$f":"_xlfn.XLOOKUP($E52,'Activity 10'!$B$7:$B$13,'Activity 10'!P$7:P$13,\"N/A\",0,1)","v":"N/A"},{"$f":"_xlfn.XLOOKUP($E52,'Activity 10'!$B$7:$B$13,'Activity 10'!Q$7:Q$13,\"N/A\",0,1)","v":"N/A"},{"$f":"_xlfn.XLOOKUP($E52,'Activity 10'!$B$7:$B$13,'Activity 10'!R$7:R$13,\"N/A\",0,1)","v":"N/A"},{"$f":"_xlfn.XLOOKUP($E52,'Activity 10'!$B$7:$B$13,'Activity 10'!S$7:S$13,\"N/A\",0,1)","v":"N/A"},{"$f":"_xlfn.XLOOKUP($E52,'Activity 10'!$B$7:$B$13,'Activity 10'!T$7:T$13,\"N/A\",0,1)","v":"N/A"},{"$f":"_xlfn.XLOOKUP($E52,'Activity 10'!$B$7:$B$13,'Activity 10'!U$7:U$13,\"N/A\",0,1)","v":"N/A"},{"$f":"_xlfn.XLOOKUP($E52,'Activity 10'!$B$7:$B$13,'Activity 10'!V$7:V$13,\"N/A\",0,1)","v":"N/A"},{"$f":"_xlfn.XLOOKUP($E52,'Activity 10'!$B$17:$B$23,'Activity 10'!E$17:E$23,\"N/A\",0,1)","v":"N/A"},{"$f":"_xlfn.XLOOKUP($E52,'Activity 10'!$B$17:$B$23,'Activity 10'!F$17:F$23,\"N/A\",0,1)","v":"N/A"},{"$f":"_xlfn.XLOOKUP($E52,'Activity 10'!$B$17:$B$23,'Activity 10'!G$17:G$23,\"N/A\",0,1)","v":"N/A"},{"$f":"_xlfn.XLOOKUP($E52,'Activity 10'!$B$17:$B$23,'Activity 10'!H$17:H$23,\"N/A\",0,1)","v":"N/A"},{"$f":"_xlfn.XLOOKUP($E52,'Activity 10'!$B$17:$B$23,'Activity 10'!I$17:I$23,\"N/A\",0,1)","v":"N/A"},{"$f":"_xlfn.XLOOKUP($E52,'Activity 10'!$B$17:$B$23,'Activity 10'!J$17:J$23,\"N/A\",0,1)","v":"N/A"},{"$f":"_xlfn.XLOOKUP($E52,'Activity 10'!$B$17:$B$23,'Activity 10'!K$17:K$23,\"N/A\",0,1)","v":"N/A"},{"$f":"_xlfn.XLOOKUP($E52,'Activity 10'!$B$17:$B$23,'Activity 10'!L$17:L$23,\"N/A\",0,1)","v":"N/A"},{"$f":"_xlfn.XLOOKUP($E52,'Activity 10'!$B$17:$B$23,'Activity 10'!M$17:M$23,\"N/A\",0,1)","v":"N/A"},{"$f":"_xlfn.XLOOKUP($E52,'Activity 10'!$B$17:$B$23,'Activity 10'!N$17:N$23,\"N/A\",0,1)","v":"N/A"},{"$f":"_xlfn.XLOOKUP($E52,'Activity 10'!$B$17:$B$23,'Activity 10'!P$17:P$23,\"N/A\",0,1)","v":"N/A"},{"$f":"_xlfn.XLOOKUP($E52,'Competitive Activity 1'!B$7:B$13,'Competitive Activity 1'!A$7:A$13,\"No\",0,1)","v":"No"},{"$f":"_xlfn.XLOOKUP($E52,'Competitive Activity 1'!$B$7:$B$13,'Competitive Activity 1'!H$7:H$13,\"N/A\",0,1)","v":"N/A"},{"$f":"_xlfn.XLOOKUP($E52,'Competitive Activity 1'!$B$7:$B$13,'Competitive Activity 1'!I$7:I$13,\"N/A\",0,1)","v":"N/A"},{"$f":"_xlfn.XLOOKUP($E52,'Competitive Activity 1'!$B$7:$B$13,'Competitive Activity 1'!J$7:J$13,\"N/A\",0,1)","v":"N/A"},{"$f":"_xlfn.XLOOKUP($E52,'Competitive Activity 1'!$B$7:$B$13,'Competitive Activity 1'!K$7:K$13,\"N/A\",0,1)","v":"N/A"},{"$f":"_xlfn.XLOOKUP($E52,'Competitive Activity 1'!$B$7:$B$13,'Competitive Activity 1'!L$7:L$13,\"N/A\",0,1)","v":"N/A"},{"$f":"_xlfn.XLOOKUP($E52,'Competitive Activity 1'!$B$7:$B$13,'Competitive Activity 1'!M$7:M$13,\"N/A\",0,1)","v":"N/A"},{"$f":"_xlfn.XLOOKUP($E52,'Competitive Activity 1'!$B$7:$B$13,'Competitive Activity 1'!N$7:N$13,\"N/A\",0,1)","v":"N/A"},{"$f":"_xlfn.XLOOKUP($E52,'Competitive Activity 1'!$B$7:$B$13,'Competitive Activity 1'!O$7:O$13,\"N/A\",0,1)","v":"N/A"},{"$f":"_xlfn.XLOOKUP($E52,'Competitive Activity 1'!$B$7:$B$13,'Competitive Activity 1'!P$7:P$13,\"N/A\",0,1)","v":"N/A"},{"$f":"_xlfn.XLOOKUP($E52,'Competitive Activity 1'!$B$7:$B$13,'Competitive Activity 1'!Q$7:Q$13,\"N/A\",0,1)","v":"N/A"},{"$f":"_xlfn.XLOOKUP($E52,'Competitive Activity 1'!$B$7:$B$13,'Competitive Activity 1'!R$7:R$13,\"N/A\",0,1)","v":"N/A"},{"$f":"_xlfn.XLOOKUP($E52,'Competitive Activity 1'!$B$7:$B$13,'Competitive Activity 1'!S$7:S$13,\"N/A\",0,1)","v":"N/A"},{"$f":"_xlfn.XLOOKUP($E52,'Competitive Activity 1'!$B$7:$B$13,'Competitive Activity 1'!T$7:T$13,\"N/A\",0,1)","v":"N/A"},{"$f":"_xlfn.XLOOKUP($E52,'Competitive Activity 1'!$B$7:$B$13,'Competitive Activity 1'!U$7:U$13,\"N/A\",0,1)","v":"N/A"},{"$f":"_xlfn.XLOOKUP($E52,'Competitive Activity 1'!$B$17:$B$23,'Competitive Activity 1'!C$17:C$23,\"N/A\",0,1)","v":"N/A"},{"$f":"_xlfn.XLOOKUP($E52,'Competitive Activity 1'!$B$17:$B$23,'Competitive Activity 1'!D$17:D$23,\"N/A\",0,1)","v":"N/A"},{"$f":"_xlfn.XLOOKUP($E52,'Competitive Activity 1'!$B$17:$B$23,'Competitive Activity 1'!E$17:E$23,\"N/A\",0,1)","v":"N/A"},{"$f":"_xlfn.XLOOKUP($E52,'Competitive Activity 1'!$B$17:$B$23,'Competitive Activity 1'!F$17:F$23,\"N/A\",0,1)","v":"N/A"},{"$f":"_xlfn.XLOOKUP($E52,'Competitive Activity 1'!$B$17:$B$23,'Competitive Activity 1'!G$17:G$23,\"N/A\",0,1)","v":"N/A"},{"$f":"_xlfn.XLOOKUP($E52,'Competitive Activity 1'!$B$17:$B$23,'Competitive Activity 1'!H$17:H$23,\"N/A\",0,1)","v":"N/A"},{"$f":"_xlfn.XLOOKUP($E52,'Competitive Activity 1'!$B$17:$B$23,'Competitive Activity 1'!I$17:I$23,\"N/A\",0,1)","v":"N/A"},{"$f":"_xlfn.XLOOKUP($E52,'Competitive Activity 1'!$B$17:$B$23,'Competitive Activity 1'!J$17:J$23,\"N/A\",0,1)","v":"N/A"},{"$f":"_xlfn.XLOOKUP($E52,'Competitive Activity 1'!$B$17:$B$23,'Competitive Activity 1'!K$17:K$23,\"N/A\",0,1)","v":"N/A"},{"$f":"_xlfn.XLOOKUP($E52,'Competitive Activity 1'!$B$17:$B$23,'Competitive Activity 1'!M$17:M$23,\"N/A\",0,1)","v":"N/A"},{"$f":"_xlfn.XLOOKUP($E52,'Competitive Activity 1'!$B$17:$B$23,'Competitive Activity 1'!N$17:N$23,\"N/A\",0,1)","v":"N/A"},{"$f":"_xlfn.XLOOKUP($E52,'Competitive Activity 1'!$B$17:$B$23,'Competitive Activity 1'!P$17:P$23,\"N/A\",0,1)","v":"N/A"},{"$f":"_xlfn.XLOOKUP($E52,'Competitive Activity 2'!$B$7:$B$13,'Competitive Activity 2'!A$7:A$13,\"No\",0)","v":"No"},{"$f":"_xlfn.XLOOKUP($E52,'Competitive Activity 2'!$B$7:$B$13,'Competitive Activity 2'!L$7:L$13,\"N/A\",0)","v":"N/A"},{"$f":"_xlfn.XLOOKUP($E52,'Competitive Activity 2'!$B$7:$B$13,'Competitive Activity 2'!M$7:M$13,\"N/A\",0)","v":"N/A"},{"$f":"_xlfn.XLOOKUP($E52,'Competitive Activity 2'!$B$7:$B$13,'Competitive Activity 2'!N$7:N$13,\"N/A\",0)","v":"N/A"},{"$f":"_xlfn.XLOOKUP($E52,'Competitive Activity 2'!$B$7:$B$13,'Competitive Activity 2'!O$7:O$13,\"N/A\",0)","v":"N/A"},{"$f":"_xlfn.XLOOKUP($E52,'Competitive Activity 2'!$B$7:$B$13,'Competitive Activity 2'!P$7:P$13,\"N/A\",0)","v":"N/A"},{"$f":"_xlfn.XLOOKUP($E52,'Competitive Activity 2'!$B$7:$B$13,'Competitive Activity 2'!Q$7:Q$13,\"N/A\",0)","v":"N/A"},{"$f":"_xlfn.XLOOKUP($E52,'Competitive Activity 2'!$B$7:$B$13,'Competitive Activity 2'!R$7:R$13,\"N/A\",0)","v":"N/A"},{"$f":"_xlfn.XLOOKUP($E52,'Competitive Activity 2'!$B$7:$B$13,'Competitive Activity 2'!S$7:S$13,\"N/A\",0)","v":"N/A"},{"$f":"_xlfn.XLOOKUP($E52,'Competitive Activity 2'!$B$7:$B$13,'Competitive Activity 2'!T$7:T$13,\"N/A\",0)","v":"N/A"},{"$f":"_xlfn.XLOOKUP($E52,'Competitive Activity 2'!$B$7:$B$13,'Competitive Activity 2'!U$7:U$13,\"N/A\",0)","v":"N/A"},{"$f":"_xlfn.XLOOKUP($E52,'Competitive Activity 2'!$B$17:$B$23,'Competitive Activity 2'!D$17:D$23,\"N/A\",0)","v":"N/A"},{"$f":"_xlfn.XLOOKUP($E52,'Competitive Activity 2'!$B$17:$B$23,'Competitive Activity 2'!E$17:E$23,\"N/A\",0)","v":"N/A"},{"$f":"_xlfn.XLOOKUP($E52,'Competitive Activity 2'!$B$17:$B$23,'Competitive Activity 2'!F$17:F$23,\"N/A\",0)","v":"N/A"},{"$f":"_xlfn.XLOOKUP($E52,'Competitive Activity 2'!$B$17:$B$23,'Competitive Activity 2'!G$17:G$23,\"N/A\",0)","v":"N/A"},{"$f":"_xlfn.XLOOKUP($E52,'Competitive Activity 2'!$B$17:$B$23,'Competitive Activity 2'!H$17:H$23,\"N/A\",0)","v":"N/A"},{"$f":"_xlfn.XLOOKUP($E52,'Competitive Activity 2'!$B$17:$B$23,'Competitive Activity 2'!I$17:I$23,\"N/A\",0)","v":"N/A"},{"$f":"_xlfn.XLOOKUP($E52,'Competitive Activity 2'!$B$17:$B$23,'Competitive Activity 2'!J$17:J$23,\"N/A\",0)","v":"N/A"},{"$f":"_xlfn.XLOOKUP($E52,'Competitive Activity 2'!$B$17:$B$23,'Competitive Activity 2'!K$17:K$23,\"N/A\",0)","v":"N/A"},{"$f":"_xlfn.XLOOKUP($E52,'Competitive Activity 2'!$B$17:$B$23,'Competitive Activity 2'!L$17:L$23,\"N/A\",0)","v":"N/A"},{"$f":"_xlfn.XLOOKUP($E52,'Competitive Activity 2'!$B$17:$B$23,'Competitive Activity 2'!M$17:M$23,\"N/A\",0)","v":"N/A"},{"$f":"_xlfn.XLOOKUP($E52,'Competitive Activity 2'!$B$17:$B$23,'Competitive Activity 2'!N$17:N$23,\"N/A\",0)","v":"N/A"},{"$f":"_xlfn.XLOOKUP($E52,'Competitive Activity 2'!$B$27:$B$33,'Competitive Activity 2'!D$27:D$33,\"N/A\",0)","v":"N/A"},{"$f":"_xlfn.XLOOKUP($E52,'Competitive Activity 2'!$B$27:$B$33,'Competitive Activity 2'!E$27:E$33,\"N/A\",0)","v":"N/A"},{"$f":"_xlfn.XLOOKUP($E52,'Competitive Activity 2'!$B$27:$B$33,'Competitive Activity 2'!F$27:F$33,\"N/A\",0)","v":"N/A"},{"$f":"_xlfn.XLOOKUP($E52,'Competitive Activity 2'!$B$27:$B$33,'Competitive Activity 2'!G$27:G$33,\"N/A\",0)","v":"N/A"},{"$f":"_xlfn.XLOOKUP($E52,'Competitive Activity 2'!$B$27:$B$33,'Competitive Activity 2'!H$27:H$33,\"N/A\",0)","v":"N/A"},{"$f":"_xlfn.XLOOKUP($E52,'Competitive Activity 2'!$B$27:$B$33,'Competitive Activity 2'!I$27:I$33,\"N/A\",0)","v":"N/A"},{"$f":"_xlfn.XLOOKUP($E52,'Competitive Activity 2'!$B$27:$B$33,'Competitive Activity 2'!J$27:J$33,\"N/A\",0)","v":"N/A"},{"$f":"_xlfn.XLOOKUP($E52,'Competitive Activity 2'!$B$27:$B$33,'Competitive Activity 2'!K$27:K$33,\"N/A\",0)","v":"N/A"},{"$f":"_xlfn.XLOOKUP($E52,'Competitive Activity 2'!$B$27:$B$33,'Competitive Activity 2'!M$27:M$33,\"N/A\",0)","v":"N/A"}]
[{"$f":"'1-Cover Sheet'!$C$8","v":"Select One"},{"$f":"'1-Cover Sheet'!$F$8","v":"Select One"},{"$f":"'Summary Sheet'!$D$8","v":0},{"$f":"'Summary Sheet'!$D$10","v":0},{"$f":"'Drop Down Box'!B217","v":0},{"$f":"'Drop Down Box'!C217","v":0},{"$f":"'Drop Down Box'!D217","v":"Select One"},{"$f":"_xlfn.XLOOKUP(E53,'Drop Down Box'!$B$166:$B$249,'Drop Down Box'!$A$166:$A$249,\"Unknown\",0)","v":"Activity 1"},{"$f":"_xlfn.XLOOKUP($E53,'Activity 8'!$B$17:$B$23,'Activity 8'!$O$17:$O$23,\"N/A\",0)","v":"N/A"},{"$f":"_xlfn.XLOOKUP($E53,'Activity 8'!$B$17:$B$23,'Activity 8'!$P$17:$P$23,\"N/A\",0)","v":"N/A"},{"$f":"_xlfn.XLOOKUP($E53,'Activity 8'!$B$7:$B$13,'Activity 8'!$F$7:$F$13,\"N/A\",0)","v":"N/A"},{"$f":"_xlfn.XLOOKUP($E53,'Activity 8'!$B$7:$B$13,'Activity 8'!$G$7:$G$13,\"N/A\",0)","v":"N/A"},{"$f":"_xlfn.XLOOKUP($E53,'Activity 8'!$B$7:$B$13,'Activity 8'!H$7:H$13,\"N/A\",0)","v":"N/A"},{"$f":"_xlfn.XLOOKUP($E53,'Activity 1'!$B$7:$B$13,'Activity 1'!$A$7:$A$13,\"No\",0,1)","v":"No"},{"$f":"_xlfn.XLOOKUP($E53,'Activity 1'!$B$7:$B$13,'Activity 1'!$H$7:$H$13,\"N/A\",0,1)","v":"N/A"},{"$f":"_xlfn.XLOOKUP($E53,'Activity 1'!$B$7:$B$13,'Activity 1'!I$7:I$13,\"N/A\",0,1)","v":"N/A"},{"$f":"_xlfn.XLOOKUP($E53,'Activity 1'!$B$7:$B$13,'Activity 1'!J$7:J$13,\"N/A\",0,1)","v":"N/A"},{"$f":"_xlfn.XLOOKUP($E53,'Activity 1'!$B$7:$B$13,'Activity 1'!K$7:K$13,\"N/A\",0,1)","v":"N/A"},{"$f":"_xlfn.XLOOKUP($E53,'Activity 1'!$B$7:$B$13,'Activity 1'!L$7:L$13,\"N/A\",0,1)","v":"N/A"},{"$f":"_xlfn.XLOOKUP($E53,'Activity 1'!$B$7:$B$13,'Activity 1'!M$7:M$13,\"N/A\",0,1)","v":"N/A"},{"$f":"_xlfn.XLOOKUP($E53,'Activity 1'!$B$7:$B$13,'Activity 1'!N$7:N$13,\"N/A\",0,1)","v":"N/A"},0,{"$f":"_xlfn.XLOOKUP($E53,'Activity 1'!$B$7:$B$13,'Activity 1'!O$7:O$13,\"N/A\",0,1)","v":"N/A"},{"$f":"_xlfn.XLOOKUP($E53,'Activity 1'!$B$7:$B$13,'Activity 1'!P$7:P$13,\"N/A\",0,1)","v":"N/A"},{"$f":"_xlfn.XLOOKUP($E53,'Activity 1'!$B$7:$B$13,'Activity 1'!Q$7:Q$13,\"N/A\",0,1)","v":"N/A"},{"$f":"_xlfn.XLOOKUP($E53,'Activity 1'!$B$7:$B$13,'Activity 1'!R$7:R$13,\"N/A\",0,1)","v":"N/A"},{"$f":"_xlfn.XLOOKUP($E53,'Activity 1'!$B$7:$B$13,'Activity 1'!S$7:S$13,\"N/A\",0,1)","v":"N/A"},{"$f":"_xlfn.XLOOKUP($E53,'Activity 1'!$B$7:$B$13,'Activity 1'!T$7:T$13,\"N/A\",0,1)","v":"N/A"},{"$f":"_xlfn.XLOOKUP($E53,'Activity 1'!$B$7:$B$13,'Activity 1'!U$7:U$13,\"N/A\",0,1)","v":"N/A"},{"$f":"_xlfn.XLOOKUP($E53,'Activity 1'!$B$7:$B$13,'Activity 1'!V$7:V$13,\"N/A\",0,1)","v":"N/A"},{"$f":"_xlfn.XLOOKUP($E53,'Activity 1'!$B$17:$B$23,'Activity 1'!C$17:C$23,\"N/A\",0,1)","v":"N/A"},{"$f":"_xlfn.XLOOKUP($E53,'Activity 1'!$B$17:$B$23,'Activity 1'!D$17:D$23,\"N/A\",0,1)","v":"N/A"},{"$f":"_xlfn.XLOOKUP($E53,'Activity 1'!$B$17:$B$23,'Activity 1'!E$17:E$23,\"N/A\",0,1)","v":"N/A"},{"$f":"_xlfn.XLOOKUP($E53,'Activity 1'!$B$17:$B$23,'Activity 1'!F$17:F$23,\"N/A\",0,1)","v":"N/A"},{"$f":"_xlfn.XLOOKUP($E53,'Activity 1'!$B$17:$B$23,'Activity 1'!G$17:G$23,\"N/A\",0,1)","v":"N/A"},{"$f":"_xlfn.XLOOKUP($E53,'Activity 1'!$B$17:$B$23,'Activity 1'!H$17:H$23,\"N/A\",0,1)","v":"N/A"},{"$f":"_xlfn.XLOOKUP($E53,'Activity 1'!$B$17:$B$23,'Activity 1'!I$17:I$23,\"N/A\",0,1)","v":"N/A"},{"$f":"_xlfn.XLOOKUP($E53,'Activity 1'!$B$17:$B$23,'Activity 1'!J$17:J$23,\"N/A\",0,1)","v":"N/A"},{"$f":"_xlfn.XLOOKUP($E53,'Activity 1'!$B$17:$B$23,'Activity 1'!K$17:K$23,\"N/A\",0,1)","v":"N/A"},{"$f":"_xlfn.XLOOKUP($E53,'Activity 1'!$B$17:$B$23,'Activity 1'!L$17:L$23,\"N/A\",0,1)","v":"N/A"},{"$f":"_xlfn.XLOOKUP($E53,'Activity 1'!$B$17:$B$23,'Activity 1'!M$17:M$23,\"N/A\",0,1)","v":"N/A"},{"$f":"_xlfn.XLOOKUP($E53,'Activity 1'!$B$17:$B$23,'Activity 1'!O$17:O$23,\"N/A\",0,1)","v":"N/A"},{"$f":"_xlfn.XLOOKUP($E53,'Activity 1'!$B$17:$B$23,'Activity 1'!Q$17:Q$23,\"N/A\",0,1)","v":"N/A"},{"$f":"_xlfn.XLOOKUP($E53,'Activity 2'!$B$7:$B$13,'Activity 2'!$A$7:$A$13,\"No\",0,1)","v":"No"},{"$f":"_xlfn.XLOOKUP($E53,'Activity 2'!B$7:B$13,'Activity 2'!H$7:H$13,\"N/A\",0)","v":"N/A"},{"$f":"_xlfn.XLOOKUP($E53,'Activity 2'!C$7:C$13,'Activity 2'!I$7:I$13,\"N/A\",0)","v":"N/A"},{"$f":"_xlfn.XLOOKUP($E53,'Activity 2'!D$7:D$13,'Activity 2'!J$7:J$13,\"N/A\",0)","v":"N/A"},{"$f":"_xlfn.XLOOKUP($E53,'Activity 2'!E$7:E$13,'Activity 2'!K$7:K$13,\"N/A\",0)","v":"N/A"},{"$f":"_xlfn.XLOOKUP($E53,'Activity 2'!F$7:F$13,'Activity 2'!L$7:L$13,\"N/A\",0)","v":"N/A"},{"$f":"_xlfn.XLOOKUP($E53,'Activity 2'!G$7:G$13,'Activity 2'!M$7:M$13,\"N/A\",0)","v":"N/A"},{"$f":"_xlfn.XLOOKUP($E53,'Activity 2'!H$7:H$13,'Activity 2'!N$7:N$13,\"N/A\",0)","v":"N/A"},{"$f":"_xlfn.XLOOKUP($E53,'Activity 2'!I$7:I$13,'Activity 2'!O$7:O$13,\"N/A\",0)","v":"N/A"},{"$f":"_xlfn.XLOOKUP($E53,'Activity 2'!J$7:J$13,'Activity 2'!P$7:P$13,\"N/A\",0)","v":"N/A"},{"$f":"_xlfn.XLOOKUP($E53,'Activity 2'!K$7:K$13,'Activity 2'!Q$7:Q$13,\"N/A\",0)","v":"N/A"},{"$f":"_xlfn.XLOOKUP($E53,'Activity 2'!L$7:L$13,'Activity 2'!R$7:R$13,\"N/A\",0)","v":"N/A"},{"$f":"_xlfn.XLOOKUP($E53,'Activity 2'!M$7:M$13,'Activity 2'!S$7:S$13,\"N/A\",0)","v":"N/A"},{"$f":"_xlfn.XLOOKUP($E53,'Activity 2'!N$7:N$13,'Activity 2'!T$7:T$13,\"N/A\",0)","v":"N/A"},{"$f":"_xlfn.XLOOKUP($E53,'Activity 2'!O$7:O$13,'Activity 2'!U$7:U$13,\"N/A\",0)","v":"N/A"},{"$f":"_xlfn.XLOOKUP($E53,'Activity 2'!P$7:P$13,'Activity 2'!V$7:V$13,\"N/A\",0)","v":"N/A"},{"$f":"_xlfn.XLOOKUP($E53,'Activity 2'!$B$17:$B$23,'Activity 2'!C$17:C$23,\"N/A\",0,1)","v":"N/A"},{"$f":"_xlfn.XLOOKUP($E53,'Activity 2'!$B$17:$B$23,'Activity 2'!D$17:D$23,\"N/A\",0,1)","v":"N/A"},{"$f":"_xlfn.XLOOKUP($E53,'Activity 2'!$B$17:$B$23,'Activity 2'!E$17:E$23,\"N/A\",0,1)","v":"N/A"},{"$f":"_xlfn.XLOOKUP($E53,'Activity 2'!$B$17:$B$23,'Activity 2'!F$17:F$23,\"N/A\",0,1)","v":"N/A"},{"$f":"_xlfn.XLOOKUP($E53,'Activity 2'!$B$17:$B$23,'Activity 2'!G$17:G$23,\"N/A\",0,1)","v":"N/A"},{"$f":"_xlfn.XLOOKUP($E53,'Activity 2'!$B$17:$B$23,'Activity 2'!H$17:H$23,\"N/A\",0,1)","v":"N/A"},{"$f":"_xlfn.XLOOKUP($E53,'Activity 2'!$B$17:$B$23,'Activity 2'!I$17:I$23,\"N/A\",0,1)","v":"N/A"},{"$f":"_xlfn.XLOOKUP($E53,'Activity 2'!$B$17:$B$23,'Activity 2'!J$17:J$23,\"N/A\",0,1)","v":"N/A"},{"$f":"_xlfn.XLOOKUP($E53,'Activity 2'!$B$17:$B$23,'Activity 2'!K$17:K$23,\"N/A\",0,1)","v":"N/A"},{"$f":"_xlfn.XLOOKUP($E53,'Activity 2'!$B$17:$B$23,'Activity 2'!L$17:L$23,\"N/A\",0,1)","v":"N/A"},{"$f":"_xlfn.XLOOKUP($E53,'Activity 2'!$B$17:$B$23,'Activity 2'!M$17:M$23,\"N/A\",0,1)","v":"N/A"},{"$f":"_xlfn.XLOOKUP($E53,'Activity 2'!$B$17:$B$23,'Activity 2'!O$17:O$23,\"N/A\",0,1)","v":"N/A"},{"$f":"_xlfn.XLOOKUP($E53,'Activity 2'!$B$17:$B$23,'Activity 2'!Q$17:Q$23,\"N/A\",0,1)","v":"N/A"},null,{"$f":"_xlfn.XLOOKUP($E53,'Activity 3'!$B$8:$B$14,'Activity 3'!K$8:K$14,\"N/A\",0,1)","v":"N/A"},{"$f":"_xlfn.XLOOKUP($E53,'Activity 3'!$B$8:$B$14,'Activity 3'!L$8:L$14,\"N/A\",0,1)","v":"N/A"},{"$f":"_xlfn.XLOOKUP($E53,'Activity 3'!$B$8:$B$14,'Activity 3'!M$8:M$14,\"N/A\",0,1)","v":"N/A"},{"$f":"_xlfn.XLOOKUP($E53,'Activity 3'!$B$8:$B$14,'Activity 3'!N$8:N$14,\"N/A\",0,1)","v":"N/A"},{"$f":"_xlfn.XLOOKUP($E53,'Activity 3'!$B$8:$B$14,'Activity 3'!O$8:O$14,\"N/A\",0,1)","v":"N/A"},{"$f":"_xlfn.XLOOKUP($E53,'Activity 3'!$B$8:$B$14,'Activity 3'!R$8:R$14,\"N/A\",0,1)","v":"N/A"},{"$f":"_xlfn.XLOOKUP($E53,'Activity 4'!$B$8:$B$14,'Activity 4'!$A$8:$A$14,\"No\",0,1)","v":"No"},{"$f":"_xlfn.XLOOKUP($E53,'Activity 4'!$B$8:$B$14,'Activity 4'!L$8:L$14,\"N/A\",0,1)","v":"N/A"},{"$f":"_xlfn.XLOOKUP($E53,'Activity 4'!$B$8:$B$14,'Activity 4'!I$8:I$14,\"N/A\",0,1)","v":"N/A"},{"$f":"_xlfn.XLOOKUP($E53,'Activity 4'!$B$8:$B$14,'Activity 4'!M$8:M$14,\"N/A\",0,1)","v":"N/A"},{"$f":"_xlfn.XLOOKUP($E53,'Activity 5'!$B$8:$B$14,'Activity 5'!$A$8:$A$14,\"No\",0,1)","v":"No"},{"$f":"_xlfn.XLOOKUP($E53,'Activity 5'!$B$8:$B$14,'Activity 5'!J$8:J$14,\"N/A\",0,1)","v":"N/A"},{"$f":"_xlfn.XLOOKUP($E53,'Activity 5'!$B$8:$B$14,'Activity 5'!K$8:K$14,\"N/A\",0,1)","v":"N/A"},{"$f":"_xlfn.XLOOKUP($E53,'Activity 5'!$B$8:$B$14,'Activity 5'!N$8:N$14,\"N/A\",0,1)","v":"N/A"},{"$f":"_xlfn.XLOOKUP($E53,'Activity 5'!$B$8:$B$14,'Activity 5'!O$8:O$14,\"N/A\",0,1)","v":"N/A"},{"$f":"_xlfn.XLOOKUP($E53,'Activity 5'!$B$8:$B$14,'Activity 5'!P$8:P$14,\"N/A\",0,1)","v":"N/A"},{"$f":"_xlfn.XLOOKUP($E53,'Activity 5'!$B$8:$B$14,'Activity 5'!Q$8:Q$14,\"N/A\",0,1)","v":"N/A"},{"$f":"_xlfn.XLOOKUP($E53,'Activity 5'!$B$8:$B$14,'Activity 5'!R$8:R$14,\"N/A\",0,1)","v":"N/A"},{"$f":"_xlfn.XLOOKUP($E53,'Activity 6'!$B$7:$B$13,'Activity 6'!A$7:A$13,\"No\",0,1)","v":"No"},{"$f":"_xlfn.XLOOKUP($E53,'Activity 6'!$B$7:$B$13,'Activity 6'!K$7:K$13,\"N/A\",0,1)","v":"N/A"},{"$f":"_xlfn.XLOOKUP($E53,'Activity 6'!$B$7:$B$13,'Activity 6'!L$7:L$13,\"N/A\",0,1)","v":"N/A"},{"$f":"_xlfn.XLOOKUP($E53,'Activity 6'!$B$7:$B$13,'Activity 6'!M$7:M$13,\"N/A\",0,1)","v":"N/A"},{"$f":"_xlfn.XLOOKUP($E53,'Activity 6'!$B$7:$B$13,'Activity 6'!N$7:N$13,\"N/A\",0,1)","v":"N/A"},{"$f":"_xlfn.XLOOKUP($E53,'Activity 6'!$B$7:$B$13,'Activity 6'!O$7:O$13,\"N/A\",0,1)","v":"N/A"},{"$f":"_xlfn.XLOOKUP($E53,'Activity 6'!$B$7:$B$13,'Activity 6'!P$7:P$13,\"N/A\",0,1)","v":"N/A"},{"$f":"_xlfn.XLOOKUP($E53,'Activity 6'!$B$7:$B$13,'Activity 6'!Q$7:Q$13,\"N/A\",0,1)","v":"N/A"},{"$f":"_xlfn.XLOOKUP($E53,'Activity 6'!$B$7:$B$13,'Activity 6'!R$7:R$13,\"N/A\",0,1)","v":"N/A"},{"$f":"_xlfn.XLOOKUP($E53,'Activity 6'!$B$7:$B$13,'Activity 6'!S$7:S$13,\"N/A\",0,1)","v":"N/A"},{"$f":"_xlfn.XLOOKUP($E53,'Activity 6'!$B$7:$B$13,'Activity 6'!T$7:T$13,\"N/A\",0,1)","v":"N/A"},{"$f":"_xlfn.XLOOKUP($E53,'Activity 6'!$B$7:$B$13,'Activity 6'!U$7:U$13,\"N/A\",0,1)","v":"N/A"},{"$f":"_xlfn.XLOOKUP($E53,'Activity 6'!$B$22:$B$28,'Activity 6'!C$22:C$28,\"N/A\",0,1)","v":"N/A"},{"$f":"_xlfn.XLOOKUP($E53,'Activity 6'!$B$22:$B$28,'Activity 6'!D$22:D$28,\"N/A\",0,1)","v":"N/A"},{"$f":"_xlfn.XLOOKUP($E53,'Activity 6'!$B$22:$B$28,'Activity 6'!E$22:E$28,\"N/A\",0,1)","v":"N/A"},{"$f":"_xlfn.XLOOKUP($E53,'Activity 6'!$B$22:$B$28,'Activity 6'!F$22:F$28,\"N/A\",0,1)","v":"N/A"},{"$f":"_xlfn.XLOOKUP($E53,'Activity 6'!$B$22:$B$28,'Activity 6'!G$22:G$28,\"N/A\",0,1)","v":"N/A"},{"$f":"_xlfn.XLOOKUP($E53,'Activity 6'!$B$22:$B$28,'Activity 6'!H$22:H$28,\"N/A\",0,1)","v":"N/A"},{"$f":"_xlfn.XLOOKUP($E53,'Activity 6'!$B$22:$B$28,'Activity 6'!I$22:I$28,\"N/A\",0,1)","v":"N/A"},{"$f":"_xlfn.XLOOKUP($E53,'Activity 6'!$B$22:$B$28,'Activity 6'!J$22:J$28,\"N/A\",0,1)","v":"N/A"},{"$f":"_xlfn.XLOOKUP($E53,'Activity 6'!$B$22:$B$28,'Activity 6'!K$22:K$28,\"N/A\",0,1)","v":"N/A"},{"$f":"_xlfn.XLOOKUP($E53,'Activity 6'!$B$22:$B$28,'Activity 6'!L$22:L$28,\"N/A\",0,1)","v":"N/A"},{"$f":"_xlfn.XLOOKUP($E53,'Activity 6'!$B$22:$B$28,'Activity 6'!M$22:M$28,\"N/A\",0,1)","v":"N/A"},{"$f":"_xlfn.XLOOKUP($E53,'Activity 6'!$B$22:$B$28,'Activity 6'!N$22:N$28,\"N/A\",0,1)","v":"N/A"},{"$f":"_xlfn.XLOOKUP($E53,'Activity 6'!$B$32:$B$38,'Activity 6'!C$32:C$38,\"N/A\",0,1)","v":"N/A"},{"$f":"_xlfn.XLOOKUP($E53,'Activity 6'!$B$32:$B$38,'Activity 6'!D$32:D$38,\"N/A\",0,1)","v":"N/A"},{"$f":"_xlfn.XLOOKUP($E53,'Activity 6'!$B$32:$B$38,'Activity 6'!E$32:E$38,\"N/A\",0,1)","v":"N/A"},{"$f":"_xlfn.XLOOKUP($E53,'Activity 6'!$B$32:$B$38,'Activity 6'!F$32:F$38,\"N/A\",0,1)","v":"N/A"},{"$f":"_xlfn.XLOOKUP($E53,'Activity 6'!$B$32:$B$38,'Activity 6'!G$32:G$38,\"N/A\",0,1)","v":"N/A"},{"$f":"_xlfn.XLOOKUP($E53,'Activity 6'!$B$32:$B$38,'Activity 6'!H$32:H$38,\"N/A\",0,1)","v":"N/A"},{"$f":"_xlfn.XLOOKUP($E53,'Activity 6'!$B$32:$B$38,'Activity 6'!I$32:I$38,\"N/A\",0,1)","v":"N/A"},{"$f":"_xlfn.XLOOKUP($E53,'Activity 6'!$B$32:$B$38,'Activity 6'!J$32:J$38,\"N/A\",0,1)","v":"N/A"},{"$f":"_xlfn.XLOOKUP($E53,'Activity 6'!$B$32:$B$38,'Activity 6'!K$32:K$38,\"N/A\",0,1)","v":"N/A"},{"$f":"_xlfn.XLOOKUP($E53,'Activity 6'!$B$32:$B$38,'Activity 6'!M$32:M$38,\"N/A\",0,1)","v":"N/A"},{"$f":"_xlfn.XLOOKUP($E53,'Activity 7'!$B$7:$B$13,'Activity 7'!$A$7:$A$13,\"No\",0,1)","v":"No"},{"$f":"_xlfn.XLOOKUP($E53,'Activity 7'!$B$7:$B$13,'Activity 7'!M$7:M$13,\"N/A\",0,1)","v":"N/A"},{"$f":"_xlfn.XLOOKUP($E53,'Activity 7'!$B$7:$B$13,'Activity 7'!K$7:K$13,\"N/A\",0,1)","v":"N/A"},{"$f":"_xlfn.XLOOKUP($E53,'Activity 7'!$B$7:$B$13,'Activity 7'!N$7:N$13,\"N/A\",0,1)","v":"N/A"},{"$f":"_xlfn.XLOOKUP($E53,'Activity 7'!$B$7:$B$13,'Activity 7'!O$7:O$13,\"N/A\",0,1)","v":"N/A"},{"$f":"_xlfn.XLOOKUP($E53,'Activity 7'!$B$7:$B$13,'Activity 7'!P$7:P$13,\"N/A\",0,1)","v":"N/A"},{"$f":"_xlfn.XLOOKUP($E53,'Activity 7'!$B$7:$B$13,'Activity 7'!Q$7:Q$13,\"N/A\",0,1)","v":"N/A"},{"$f":"_xlfn.XLOOKUP($E53,'Activity 7'!$B$7:$B$13,'Activity 7'!R$7:R$13,\"N/A\",0,1)","v":"N/A"},{"$f":"_xlfn.XLOOKUP($E53,'Activity 7'!$B$7:$B$13,'Activity 7'!S$7:S$13,\"N/A\",0,1)","v":"N/A"},{"$f":"_xlfn.XLOOKUP($E53,'Activity 7'!$B$7:$B$13,'Activity 7'!T$7:T$13,\"N/A\",0,1)","v":"N/A"},{"$f":"_xlfn.XLOOKUP($E53,'Activity 7'!$B$7:$B$13,'Activity 7'!U$7:U$13,\"N/A\",0,1)","v":"N/A"},{"$f":"_xlfn.XLOOKUP($E53,'Activity 7'!$B$7:$B$13,'Activity 7'!V$7:V$13,\"N/A\",0,1)","v":"N/A"},{"$f":"_xlfn.XLOOKUP($E53,'Activity 7'!$B$17:$B$23,'Activity 7'!E$17:E$23,\"N/A\",0,1)","v":"N/A"},{"$f":"_xlfn.XLOOKUP($E53,'Activity 7'!$B$17:$B$23,'Activity 7'!G$17:G$23,\"N/A\",0,1)","v":"N/A"},{"$f":"_xlfn.XLOOKUP($E53,'Activity 7'!$B$17:$B$23,'Activity 7'!I$17:I$23,\"N/A\",0,1)","v":"N/A"},{"$f":"_xlfn.XLOOKUP($E53,'Activity 7'!$B$17:$B$23,'Activity 7'!J$17:J$23,\"N/A\",0,1)","v":"N/A"},{"$f":"_xlfn.XLOOKUP($E53,'Activity 7'!$B$17:$B$23,'Activity 7'!K$17:K$23,\"N/A\",0,1)","v":"N/A"},{"$f":"_xlfn.XLOOKUP($E53,'Activity 7'!$B$17:$B$23,'Activity 7'!L$17:L$23,\"N/A\",0,1)","v":"N/A"},{"$f":"_xlfn.XLOOKUP($E53,'Activity 7'!$B$17:$B$23,'Activity 7'!M$17:M$23,\"N/A\",0,1)","v":"N/A"},{"$f":"_xlfn.XLOOKUP($E53,'Activity 7'!$B$17:$B$23,'Activity 7'!N$17:N$23,\"N/A\",0,1)","v":"N/A"},{"$f":"_xlfn.XLOOKUP($E53,'Activity 7'!$B$17:$B$23,'Activity 7'!P$17:P$23,\"N/A\",0,1)","v":"N/A"},{"$f":"_xlfn.XLOOKUP($E53,'Activity 8'!$B$7:$B$13,'Activity 8'!A$7:A$13,\"No\",0,1)","v":"No"},{"$f":"_xlfn.XLOOKUP($E53,'Activity 8'!$B$7:$B$13,'Activity 8'!I$7:I$13,\"N/A\",0,1)","v":"N/A"},{"$f":"_xlfn.XLOOKUP($E53,'Activity 8'!$B$7:$B$13,'Activity 8'!J$7:J$13,\"N/A\",0,1)","v":"N/A"},{"$f":"_xlfn.XLOOKUP($E53,'Activity 8'!$B$7:$B$13,'Activity 8'!K$7:K$13,\"N/A\",0,1)","v":"N/A"},{"$f":"_xlfn.XLOOKUP($E53,'Activity 8'!$B$7:$B$13,'Activity 8'!L$7:L$13,\"N/A\",0,1)","v":"N/A"},{"$f":"_xlfn.XLOOKUP($E53,'Activity 8'!$B$7:$B$13,'Activity 8'!M$7:M$13,\"N/A\",0,1)","v":"N/A"},{"$f":"_xlfn.XLOOKUP($E53,'Activity 8'!$B$7:$B$13,'Activity 8'!N$7:N$13,\"N/A\",0,1)","v":"N/A"},{"$f":"_xlfn.XLOOKUP($E53,'Activity 8'!$B$7:$B$13,'Activity 8'!O$7:O$13,\"N/A\",0,1)","v":"N/A"},{"$f":"_xlfn.XLOOKUP($E53,'Activity 8'!$B$7:$B$13,'Activity 8'!P$7:P$13,\"N/A\",0,1)","v":"N/A"},{"$f":"_xlfn.XLOOKUP($E53,'Activity 8'!$B$7:$B$13,'Activity 8'!Q$7:Q$13,\"N/A\",0,1)","v":"N/A"},{"$f":"_xlfn.XLOOKUP($E53,'Activity 8'!$B$7:$B$13,'Activity 8'!R$7:R$13,\"N/A\",0,1)","v":"N/A"},{"$f":"_xlfn.XLOOKUP($E53,'Activity 8'!$B$7:$B$13,'Activity 8'!S$7:S$13,\"N/A\",0,1)","v":"N/A"},{"$f":"_xlfn.XLOOKUP($E53,'Activity 8'!$B$7:$B$13,'Activity 8'!T$7:T$13,\"N/A\",0,1)","v":"N/A"},{"$f":"_xlfn.XLOOKUP($E53,'Activity 8'!$B$7:$B$13,'Activity 8'!U$7:U$13,\"N/A\",0,1)","v":"N/A"},{"$f":"_xlfn.XLOOKUP($E53,'Activity 8'!$B$7:$B$13,'Activity 8'!V$7:V$13,\"N/A\",0,1)","v":"N/A"},{"$f":"_xlfn.XLOOKUP($E53,'Activity 8'!$B$17:$B$23,'Activity 8'!D$17:D$23,\"N/A\",0,1)","v":"N/A"},{"$f":"_xlfn.XLOOKUP($E53,'Activity 8'!$B$17:$B$23,'Activity 8'!E$17:E$23,\"N/A\",0,1)","v":"N/A"},{"$f":"_xlfn.XLOOKUP($E53,'Activity 8'!$B$17:$B$23,'Activity 8'!F$17:F$23,\"N/A\",0,1)","v":"N/A"},{"$f":"_xlfn.XLOOKUP($E53,'Activity 8'!$B$17:$B$23,'Activity 8'!G$17:G$23,\"N/A\",0,1)","v":"N/A"},{"$f":"_xlfn.XLOOKUP($E53,'Activity 8'!$B$17:$B$23,'Activity 8'!H$17:H$23,\"N/A\",0,1)","v":"N/A"},{"$f":"_xlfn.XLOOKUP($E53,'Activity 8'!$B$17:$B$23,'Activity 8'!I$17:I$23,\"N/A\",0,1)","v":"N/A"},{"$f":"_xlfn.XLOOKUP($E53,'Activity 8'!$B$17:$B$23,'Activity 8'!J$17:J$23,\"N/A\",0,1)","v":"N/A"},{"$f":"_xlfn.XLOOKUP($E53,'Activity 8'!$B$17:$B$23,'Activity 8'!K$17:K$23,\"N/A\",0,1)","v":"N/A"},{"$f":"_xlfn.XLOOKUP($E53,'Activity 8'!$B$17:$B$23,'Activity 8'!L$17:L$23,\"N/A\",0,1)","v":"N/A"},{"$f":"_xlfn.XLOOKUP($E53,'Activity 8'!$B$17:$B$23,'Activity 8'!M$17:M$23,\"N/A\",0,1)","v":"N/A"},{"$f":"_xlfn.XLOOKUP($E53,'Activity 8'!$B$17:$B$23,'Activity 8'!N$17:N$23,\"N/A\",0,1)","v":"N/A"},{"$f":"_xlfn.XLOOKUP($E53,'Activity 8'!$B$17:$B$23,'Activity 8'!P$17:P$23,\"N/A\",0,1)","v":"N/A"},{"$f":"_xlfn.XLOOKUP(E53,'Activity 9'!$B$7:$B$13,'Activity 9'!$A$7:$A$13,\"No\",0,1)","v":"No"},{"$f":"_xlfn.XLOOKUP($E53,'Activity 9'!$B$7:$B$13,'Activity 9'!J$7:J$13,\"N/A\",0,1)","v":"N/A"},{"$f":"_xlfn.XLOOKUP($E53,'Activity 9'!$B$7:$B$13,'Activity 9'!K$7:K$13,\"N/A\",0,1)","v":"N/A"},{"$f":"_xlfn.XLOOKUP($E53,'Activity 9'!$B$7:$B$13,'Activity 9'!L$7:L$13,\"N/A\",0,1)","v":"N/A"},{"$f":"_xlfn.XLOOKUP($E53,'Activity 9'!$B$7:$B$13,'Activity 9'!M$7:M$13,\"N/A\",0,1)","v":"N/A"},{"$f":"_xlfn.XLOOKUP($E53,'Activity 9'!$B$7:$B$13,'Activity 9'!N$7:N$13,\"N/A\",0,1)","v":"N/A"},{"$f":"_xlfn.XLOOKUP($E53,'Activity 9'!$B$7:$B$13,'Activity 9'!O$7:O$13,\"N/A\",0,1)","v":"N/A"},{"$f":"_xlfn.XLOOKUP($E53,'Activity 9'!$B$7:$B$13,'Activity 9'!P$7:P$13,\"N/A\",0,1)","v":"N/A"},{"$f":"_xlfn.XLOOKUP($E53,'Activity 9'!$B$7:$B$13,'Activity 9'!Q$7:Q$13,\"N/A\",0,1)","v":"N/A"},{"$f":"_xlfn.XLOOKUP($E53,'Activity 9'!$B$7:$B$13,'Activity 9'!R$7:R$13,\"N/A\",0,1)","v":"N/A"},{"$f":"_xlfn.XLOOKUP($E53,'Activity 9'!$B$7:$B$13,'Activity 9'!S$7:S$13,\"N/A\",0,1)","v":"N/A"},{"$f":"_xlfn.XLOOKUP($E53,'Activity 9'!$B$7:$B$13,'Activity 9'!T$7:T$13,\"N/A\",0,1)","v":"N/A"},{"$f":"_xlfn.XLOOKUP($E53,'Activity 9'!$B$17:$B$23,'Activity 9'!E$17:E$23,\"N/A\",0,1)","v":"N/A"},{"$f":"_xlfn.XLOOKUP($E53,'Activity 9'!$B$17:$B$23,'Activity 9'!F$17:F$23,\"N/A\",0,1)","v":"N/A"},{"$f":"_xlfn.XLOOKUP($E53,'Activity 9'!$B$17:$B$23,'Activity 9'!G$17:G$23,\"N/A\",0,1)","v":"N/A"},{"$f":"_xlfn.XLOOKUP($E53,'Activity 9'!$B$17:$B$23,'Activity 9'!H$17:H$23,\"N/A\",0,1)","v":"N/A"},{"$f":"_xlfn.XLOOKUP($E53,'Activity 9'!$B$17:$B$23,'Activity 9'!I$17:I$23,\"N/A\",0,1)","v":"N/A"},{"$f":"_xlfn.XLOOKUP($E53,'Activity 9'!$B$17:$B$23,'Activity 9'!J$17:J$23,\"N/A\",0,1)","v":"N/A"},{"$f":"_xlfn.XLOOKUP($E53,'Activity 9'!$B$17:$B$23,'Activity 9'!K$17:K$23,\"N/A\",0,1)","v":"N/A"},{"$f":"_xlfn.XLOOKUP($E53,'Activity 9'!$B$17:$B$23,'Activity 9'!L$17:L$23,\"N/A\",0,1)","v":"N/A"},{"$f":"_xlfn.XLOOKUP($E53,'Activity 9'!$B$17:$B$23,'Activity 9'!N$17:N$23,\"N/A\",0,1)","v":"N/A"},{"$f":"_xlfn.XLOOKUP($E53,'Activity 9'!$B$17:$B$23,'Activity 9'!O$17:O$23,\"N/A\",0,1)","v":"N/A"},{"$f":"_xlfn.XLOOKUP($E53,'Activity 9'!$B$17:$B$23,'Activity 9'!Q$17:Q$23,\"N/A\",0,1)","v":"N/A"},{"$f":"_xlfn.XLOOKUP($E53,'Activity 10'!$B$7:$B$13,'Activity 10'!A$7:A$13,\"No\",0,1)","v":"No"},{"$f":"_xlfn.XLOOKUP($E53,'Activity 10'!$B$7:$B$13,'Activity 10'!J$7:J$13,\"N/A\",0,1)","v":"N/A"},{"$f":"_xlfn.XLOOKUP($E53,'Activity 10'!$B$7:$B$13,'Activity 10'!K$7:K$13,\"N/A\",0,1)","v":"N/A"},{"$f":"_xlfn.XLOOKUP($E53,'Activity 10'!$B$7:$B$13,'Activity 10'!L$7:L$13,\"N/A\",0,1)","v":"N/A"},{"$f":"_xlfn.XLOOKUP($E53,'Activity 10'!$B$7:$B$13,'Activity 10'!M$7:M$13,\"N/A\",0,1)","v":"N/A"},{"$f":"_xlfn.XLOOKUP($E53,'Activity 10'!$B$7:$B$13,'Activity 10'!N$7:N$13,\"N/A\",0,1)","v":"N/A"},{"$f":"_xlfn.XLOOKUP($E53,'Activity 10'!$B$7:$B$13,'Activity 10'!O$7:O$13,\"N/A\",0,1)","v":"N/A"},{"$f":"_xlfn.XLOOKUP($E53,'Activity 10'!$B$7:$B$13,'Activity 10'!P$7:P$13,\"N/A\",0,1)","v":"N/A"},{"$f":"_xlfn.XLOOKUP($E53,'Activity 10'!$B$7:$B$13,'Activity 10'!Q$7:Q$13,\"N/A\",0,1)","v":"N/A"},{"$f":"_xlfn.XLOOKUP($E53,'Activity 10'!$B$7:$B$13,'Activity 10'!R$7:R$13,\"N/A\",0,1)","v":"N/A"},{"$f":"_xlfn.XLOOKUP($E53,'Activity 10'!$B$7:$B$13,'Activity 10'!S$7:S$13,\"N/A\",0,1)","v":"N/A"},{"$f":"_xlfn.XLOOKUP($E53,'Activity 10'!$B$7:$B$13,'Activity 10'!T$7:T$13,\"N/A\",0,1)","v":"N/A"},{"$f":"_xlfn.XLOOKUP($E53,'Activity 10'!$B$7:$B$13,'Activity 10'!U$7:U$13,\"N/A\",0,1)","v":"N/A"},{"$f":"_xlfn.XLOOKUP($E53,'Activity 10'!$B$7:$B$13,'Activity 10'!V$7:V$13,\"N/A\",0,1)","v":"N/A"},{"$f":"_xlfn.XLOOKUP($E53,'Activity 10'!$B$17:$B$23,'Activity 10'!E$17:E$23,\"N/A\",0,1)","v":"N/A"},{"$f":"_xlfn.XLOOKUP($E53,'Activity 10'!$B$17:$B$23,'Activity 10'!F$17:F$23,\"N/A\",0,1)","v":"N/A"},{"$f":"_xlfn.XLOOKUP($E53,'Activity 10'!$B$17:$B$23,'Activity 10'!G$17:G$23,\"N/A\",0,1)","v":"N/A"},{"$f":"_xlfn.XLOOKUP($E53,'Activity 10'!$B$17:$B$23,'Activity 10'!H$17:H$23,\"N/A\",0,1)","v":"N/A"},{"$f":"_xlfn.XLOOKUP($E53,'Activity 10'!$B$17:$B$23,'Activity 10'!I$17:I$23,\"N/A\",0,1)","v":"N/A"},{"$f":"_xlfn.XLOOKUP($E53,'Activity 10'!$B$17:$B$23,'Activity 10'!J$17:J$23,\"N/A\",0,1)","v":"N/A"},{"$f":"_xlfn.XLOOKUP($E53,'Activity 10'!$B$17:$B$23,'Activity 10'!K$17:K$23,\"N/A\",0,1)","v":"N/A"},{"$f":"_xlfn.XLOOKUP($E53,'Activity 10'!$B$17:$B$23,'Activity 10'!L$17:L$23,\"N/A\",0,1)","v":"N/A"},{"$f":"_xlfn.XLOOKUP($E53,'Activity 10'!$B$17:$B$23,'Activity 10'!M$17:M$23,\"N/A\",0,1)","v":"N/A"},{"$f":"_xlfn.XLOOKUP($E53,'Activity 10'!$B$17:$B$23,'Activity 10'!N$17:N$23,\"N/A\",0,1)","v":"N/A"},{"$f":"_xlfn.XLOOKUP($E53,'Activity 10'!$B$17:$B$23,'Activity 10'!P$17:P$23,\"N/A\",0,1)","v":"N/A"},{"$f":"_xlfn.XLOOKUP($E53,'Competitive Activity 1'!B$7:B$13,'Competitive Activity 1'!A$7:A$13,\"No\",0,1)","v":"No"},{"$f":"_xlfn.XLOOKUP($E53,'Competitive Activity 1'!$B$7:$B$13,'Competitive Activity 1'!H$7:H$13,\"N/A\",0,1)","v":"N/A"},{"$f":"_xlfn.XLOOKUP($E53,'Competitive Activity 1'!$B$7:$B$13,'Competitive Activity 1'!I$7:I$13,\"N/A\",0,1)","v":"N/A"},{"$f":"_xlfn.XLOOKUP($E53,'Competitive Activity 1'!$B$7:$B$13,'Competitive Activity 1'!J$7:J$13,\"N/A\",0,1)","v":"N/A"},{"$f":"_xlfn.XLOOKUP($E53,'Competitive Activity 1'!$B$7:$B$13,'Competitive Activity 1'!K$7:K$13,\"N/A\",0,1)","v":"N/A"},{"$f":"_xlfn.XLOOKUP($E53,'Competitive Activity 1'!$B$7:$B$13,'Competitive Activity 1'!L$7:L$13,\"N/A\",0,1)","v":"N/A"},{"$f":"_xlfn.XLOOKUP($E53,'Competitive Activity 1'!$B$7:$B$13,'Competitive Activity 1'!M$7:M$13,\"N/A\",0,1)","v":"N/A"},{"$f":"_xlfn.XLOOKUP($E53,'Competitive Activity 1'!$B$7:$B$13,'Competitive Activity 1'!N$7:N$13,\"N/A\",0,1)","v":"N/A"},{"$f":"_xlfn.XLOOKUP($E53,'Competitive Activity 1'!$B$7:$B$13,'Competitive Activity 1'!O$7:O$13,\"N/A\",0,1)","v":"N/A"},{"$f":"_xlfn.XLOOKUP($E53,'Competitive Activity 1'!$B$7:$B$13,'Competitive Activity 1'!P$7:P$13,\"N/A\",0,1)","v":"N/A"},{"$f":"_xlfn.XLOOKUP($E53,'Competitive Activity 1'!$B$7:$B$13,'Competitive Activity 1'!Q$7:Q$13,\"N/A\",0,1)","v":"N/A"},{"$f":"_xlfn.XLOOKUP($E53,'Competitive Activity 1'!$B$7:$B$13,'Competitive Activity 1'!R$7:R$13,\"N/A\",0,1)","v":"N/A"},{"$f":"_xlfn.XLOOKUP($E53,'Competitive Activity 1'!$B$7:$B$13,'Competitive Activity 1'!S$7:S$13,\"N/A\",0,1)","v":"N/A"},{"$f":"_xlfn.XLOOKUP($E53,'Competitive Activity 1'!$B$7:$B$13,'Competitive Activity 1'!T$7:T$13,\"N/A\",0,1)","v":"N/A"},{"$f":"_xlfn.XLOOKUP($E53,'Competitive Activity 1'!$B$7:$B$13,'Competitive Activity 1'!U$7:U$13,\"N/A\",0,1)","v":"N/A"},{"$f":"_xlfn.XLOOKUP($E53,'Competitive Activity 1'!$B$17:$B$23,'Competitive Activity 1'!C$17:C$23,\"N/A\",0,1)","v":"N/A"},{"$f":"_xlfn.XLOOKUP($E53,'Competitive Activity 1'!$B$17:$B$23,'Competitive Activity 1'!D$17:D$23,\"N/A\",0,1)","v":"N/A"},{"$f":"_xlfn.XLOOKUP($E53,'Competitive Activity 1'!$B$17:$B$23,'Competitive Activity 1'!E$17:E$23,\"N/A\",0,1)","v":"N/A"},{"$f":"_xlfn.XLOOKUP($E53,'Competitive Activity 1'!$B$17:$B$23,'Competitive Activity 1'!F$17:F$23,\"N/A\",0,1)","v":"N/A"},{"$f":"_xlfn.XLOOKUP($E53,'Competitive Activity 1'!$B$17:$B$23,'Competitive Activity 1'!G$17:G$23,\"N/A\",0,1)","v":"N/A"},{"$f":"_xlfn.XLOOKUP($E53,'Competitive Activity 1'!$B$17:$B$23,'Competitive Activity 1'!H$17:H$23,\"N/A\",0,1)","v":"N/A"},{"$f":"_xlfn.XLOOKUP($E53,'Competitive Activity 1'!$B$17:$B$23,'Competitive Activity 1'!I$17:I$23,\"N/A\",0,1)","v":"N/A"},{"$f":"_xlfn.XLOOKUP($E53,'Competitive Activity 1'!$B$17:$B$23,'Competitive Activity 1'!J$17:J$23,\"N/A\",0,1)","v":"N/A"},{"$f":"_xlfn.XLOOKUP($E53,'Competitive Activity 1'!$B$17:$B$23,'Competitive Activity 1'!K$17:K$23,\"N/A\",0,1)","v":"N/A"},{"$f":"_xlfn.XLOOKUP($E53,'Competitive Activity 1'!$B$17:$B$23,'Competitive Activity 1'!M$17:M$23,\"N/A\",0,1)","v":"N/A"},{"$f":"_xlfn.XLOOKUP($E53,'Competitive Activity 1'!$B$17:$B$23,'Competitive Activity 1'!N$17:N$23,\"N/A\",0,1)","v":"N/A"},{"$f":"_xlfn.XLOOKUP($E53,'Competitive Activity 1'!$B$17:$B$23,'Competitive Activity 1'!P$17:P$23,\"N/A\",0,1)","v":"N/A"},{"$f":"_xlfn.XLOOKUP($E53,'Competitive Activity 2'!$B$7:$B$13,'Competitive Activity 2'!A$7:A$13,\"No\",0)","v":"No"},{"$f":"_xlfn.XLOOKUP($E53,'Competitive Activity 2'!$B$7:$B$13,'Competitive Activity 2'!L$7:L$13,\"N/A\",0)","v":"N/A"},{"$f":"_xlfn.XLOOKUP($E53,'Competitive Activity 2'!$B$7:$B$13,'Competitive Activity 2'!M$7:M$13,\"N/A\",0)","v":"N/A"},{"$f":"_xlfn.XLOOKUP($E53,'Competitive Activity 2'!$B$7:$B$13,'Competitive Activity 2'!N$7:N$13,\"N/A\",0)","v":"N/A"},{"$f":"_xlfn.XLOOKUP($E53,'Competitive Activity 2'!$B$7:$B$13,'Competitive Activity 2'!O$7:O$13,\"N/A\",0)","v":"N/A"},{"$f":"_xlfn.XLOOKUP($E53,'Competitive Activity 2'!$B$7:$B$13,'Competitive Activity 2'!P$7:P$13,\"N/A\",0)","v":"N/A"},{"$f":"_xlfn.XLOOKUP($E53,'Competitive Activity 2'!$B$7:$B$13,'Competitive Activity 2'!Q$7:Q$13,\"N/A\",0)","v":"N/A"},{"$f":"_xlfn.XLOOKUP($E53,'Competitive Activity 2'!$B$7:$B$13,'Competitive Activity 2'!R$7:R$13,\"N/A\",0)","v":"N/A"},{"$f":"_xlfn.XLOOKUP($E53,'Competitive Activity 2'!$B$7:$B$13,'Competitive Activity 2'!S$7:S$13,\"N/A\",0)","v":"N/A"},{"$f":"_xlfn.XLOOKUP($E53,'Competitive Activity 2'!$B$7:$B$13,'Competitive Activity 2'!T$7:T$13,\"N/A\",0)","v":"N/A"},{"$f":"_xlfn.XLOOKUP($E53,'Competitive Activity 2'!$B$7:$B$13,'Competitive Activity 2'!U$7:U$13,\"N/A\",0)","v":"N/A"},{"$f":"_xlfn.XLOOKUP($E53,'Competitive Activity 2'!$B$17:$B$23,'Competitive Activity 2'!D$17:D$23,\"N/A\",0)","v":"N/A"},{"$f":"_xlfn.XLOOKUP($E53,'Competitive Activity 2'!$B$17:$B$23,'Competitive Activity 2'!E$17:E$23,\"N/A\",0)","v":"N/A"},{"$f":"_xlfn.XLOOKUP($E53,'Competitive Activity 2'!$B$17:$B$23,'Competitive Activity 2'!F$17:F$23,\"N/A\",0)","v":"N/A"},{"$f":"_xlfn.XLOOKUP($E53,'Competitive Activity 2'!$B$17:$B$23,'Competitive Activity 2'!G$17:G$23,\"N/A\",0)","v":"N/A"},{"$f":"_xlfn.XLOOKUP($E53,'Competitive Activity 2'!$B$17:$B$23,'Competitive Activity 2'!H$17:H$23,\"N/A\",0)","v":"N/A"},{"$f":"_xlfn.XLOOKUP($E53,'Competitive Activity 2'!$B$17:$B$23,'Competitive Activity 2'!I$17:I$23,\"N/A\",0)","v":"N/A"},{"$f":"_xlfn.XLOOKUP($E53,'Competitive Activity 2'!$B$17:$B$23,'Competitive Activity 2'!J$17:J$23,\"N/A\",0)","v":"N/A"},{"$f":"_xlfn.XLOOKUP($E53,'Competitive Activity 2'!$B$17:$B$23,'Competitive Activity 2'!K$17:K$23,\"N/A\",0)","v":"N/A"},{"$f":"_xlfn.XLOOKUP($E53,'Competitive Activity 2'!$B$17:$B$23,'Competitive Activity 2'!L$17:L$23,\"N/A\",0)","v":"N/A"},{"$f":"_xlfn.XLOOKUP($E53,'Competitive Activity 2'!$B$17:$B$23,'Competitive Activity 2'!M$17:M$23,\"N/A\",0)","v":"N/A"},{"$f":"_xlfn.XLOOKUP($E53,'Competitive Activity 2'!$B$17:$B$23,'Competitive Activity 2'!N$17:N$23,\"N/A\",0)","v":"N/A"},{"$f":"_xlfn.XLOOKUP($E53,'Competitive Activity 2'!$B$27:$B$33,'Competitive Activity 2'!D$27:D$33,\"N/A\",0)","v":"N/A"},{"$f":"_xlfn.XLOOKUP($E53,'Competitive Activity 2'!$B$27:$B$33,'Competitive Activity 2'!E$27:E$33,\"N/A\",0)","v":"N/A"},{"$f":"_xlfn.XLOOKUP($E53,'Competitive Activity 2'!$B$27:$B$33,'Competitive Activity 2'!F$27:F$33,\"N/A\",0)","v":"N/A"},{"$f":"_xlfn.XLOOKUP($E53,'Competitive Activity 2'!$B$27:$B$33,'Competitive Activity 2'!G$27:G$33,\"N/A\",0)","v":"N/A"},{"$f":"_xlfn.XLOOKUP($E53,'Competitive Activity 2'!$B$27:$B$33,'Competitive Activity 2'!H$27:H$33,\"N/A\",0)","v":"N/A"},{"$f":"_xlfn.XLOOKUP($E53,'Competitive Activity 2'!$B$27:$B$33,'Competitive Activity 2'!I$27:I$33,\"N/A\",0)","v":"N/A"},{"$f":"_xlfn.XLOOKUP($E53,'Competitive Activity 2'!$B$27:$B$33,'Competitive Activity 2'!J$27:J$33,\"N/A\",0)","v":"N/A"},{"$f":"_xlfn.XLOOKUP($E53,'Competitive Activity 2'!$B$27:$B$33,'Competitive Activity 2'!K$27:K$33,\"N/A\",0)","v":"N/A"},{"$f":"_xlfn.XLOOKUP($E53,'Competitive Activity 2'!$B$27:$B$33,'Competitive Activity 2'!M$27:M$33,\"N/A\",0)","v":"N/A"}]
[{"$f":"'1-Cover Sheet'!$C$8","v":"Select One"},{"$f":"'1-Cover Sheet'!$F$8","v":"Select One"},{"$f":"'Summary Sheet'!$D$8","v":0},{"$f":"'Summary Sheet'!$D$10","v":0},{"$f":"'Drop Down Box'!B218","v":0},{"$f":"'Drop Down Box'!C218","v":0},{"$f":"'Drop Down Box'!D218","v":"Select One"},{"$f":"_xlfn.XLOOKUP(E54,'Drop Down Box'!$B$166:$B$249,'Drop Down Box'!$A$166:$A$249,\"Unknown\",0)","v":"Activity 1"},{"$f":"_xlfn.XLOOKUP($E54,'Activity 8'!$B$17:$B$23,'Activity 8'!$O$17:$O$23,\"N/A\",0)","v":"N/A"},{"$f":"_xlfn.XLOOKUP($E54,'Activity 8'!$B$17:$B$23,'Activity 8'!$P$17:$P$23,\"N/A\",0)","v":"N/A"},{"$f":"_xlfn.XLOOKUP($E54,'Activity 8'!$B$7:$B$13,'Activity 8'!$F$7:$F$13,\"N/A\",0)","v":"N/A"},{"$f":"_xlfn.XLOOKUP($E54,'Activity 8'!$B$7:$B$13,'Activity 8'!$G$7:$G$13,\"N/A\",0)","v":"N/A"},{"$f":"_xlfn.XLOOKUP($E54,'Activity 8'!$B$7:$B$13,'Activity 8'!H$7:H$13,\"N/A\",0)","v":"N/A"},{"$f":"_xlfn.XLOOKUP($E54,'Activity 1'!$B$7:$B$13,'Activity 1'!$A$7:$A$13,\"No\",0,1)","v":"No"},{"$f":"_xlfn.XLOOKUP($E54,'Activity 1'!$B$7:$B$13,'Activity 1'!$H$7:$H$13,\"N/A\",0,1)","v":"N/A"},{"$f":"_xlfn.XLOOKUP($E54,'Activity 1'!$B$7:$B$13,'Activity 1'!I$7:I$13,\"N/A\",0,1)","v":"N/A"},{"$f":"_xlfn.XLOOKUP($E54,'Activity 1'!$B$7:$B$13,'Activity 1'!J$7:J$13,\"N/A\",0,1)","v":"N/A"},{"$f":"_xlfn.XLOOKUP($E54,'Activity 1'!$B$7:$B$13,'Activity 1'!K$7:K$13,\"N/A\",0,1)","v":"N/A"},{"$f":"_xlfn.XLOOKUP($E54,'Activity 1'!$B$7:$B$13,'Activity 1'!L$7:L$13,\"N/A\",0,1)","v":"N/A"},{"$f":"_xlfn.XLOOKUP($E54,'Activity 1'!$B$7:$B$13,'Activity 1'!M$7:M$13,\"N/A\",0,1)","v":"N/A"},{"$f":"_xlfn.XLOOKUP($E54,'Activity 1'!$B$7:$B$13,'Activity 1'!N$7:N$13,\"N/A\",0,1)","v":"N/A"},0,{"$f":"_xlfn.XLOOKUP($E54,'Activity 1'!$B$7:$B$13,'Activity 1'!O$7:O$13,\"N/A\",0,1)","v":"N/A"},{"$f":"_xlfn.XLOOKUP($E54,'Activity 1'!$B$7:$B$13,'Activity 1'!P$7:P$13,\"N/A\",0,1)","v":"N/A"},{"$f":"_xlfn.XLOOKUP($E54,'Activity 1'!$B$7:$B$13,'Activity 1'!Q$7:Q$13,\"N/A\",0,1)","v":"N/A"},{"$f":"_xlfn.XLOOKUP($E54,'Activity 1'!$B$7:$B$13,'Activity 1'!R$7:R$13,\"N/A\",0,1)","v":"N/A"},{"$f":"_xlfn.XLOOKUP($E54,'Activity 1'!$B$7:$B$13,'Activity 1'!S$7:S$13,\"N/A\",0,1)","v":"N/A"},{"$f":"_xlfn.XLOOKUP($E54,'Activity 1'!$B$7:$B$13,'Activity 1'!T$7:T$13,\"N/A\",0,1)","v":"N/A"},{"$f":"_xlfn.XLOOKUP($E54,'Activity 1'!$B$7:$B$13,'Activity 1'!U$7:U$13,\"N/A\",0,1)","v":"N/A"},{"$f":"_xlfn.XLOOKUP($E54,'Activity 1'!$B$7:$B$13,'Activity 1'!V$7:V$13,\"N/A\",0,1)","v":"N/A"},{"$f":"_xlfn.XLOOKUP($E54,'Activity 1'!$B$17:$B$23,'Activity 1'!C$17:C$23,\"N/A\",0,1)","v":"N/A"},{"$f":"_xlfn.XLOOKUP($E54,'Activity 1'!$B$17:$B$23,'Activity 1'!D$17:D$23,\"N/A\",0,1)","v":"N/A"},{"$f":"_xlfn.XLOOKUP($E54,'Activity 1'!$B$17:$B$23,'Activity 1'!E$17:E$23,\"N/A\",0,1)","v":"N/A"},{"$f":"_xlfn.XLOOKUP($E54,'Activity 1'!$B$17:$B$23,'Activity 1'!F$17:F$23,\"N/A\",0,1)","v":"N/A"},{"$f":"_xlfn.XLOOKUP($E54,'Activity 1'!$B$17:$B$23,'Activity 1'!G$17:G$23,\"N/A\",0,1)","v":"N/A"},{"$f":"_xlfn.XLOOKUP($E54,'Activity 1'!$B$17:$B$23,'Activity 1'!H$17:H$23,\"N/A\",0,1)","v":"N/A"},{"$f":"_xlfn.XLOOKUP($E54,'Activity 1'!$B$17:$B$23,'Activity 1'!I$17:I$23,\"N/A\",0,1)","v":"N/A"},{"$f":"_xlfn.XLOOKUP($E54,'Activity 1'!$B$17:$B$23,'Activity 1'!J$17:J$23,\"N/A\",0,1)","v":"N/A"},{"$f":"_xlfn.XLOOKUP($E54,'Activity 1'!$B$17:$B$23,'Activity 1'!K$17:K$23,\"N/A\",0,1)","v":"N/A"},{"$f":"_xlfn.XLOOKUP($E54,'Activity 1'!$B$17:$B$23,'Activity 1'!L$17:L$23,\"N/A\",0,1)","v":"N/A"},{"$f":"_xlfn.XLOOKUP($E54,'Activity 1'!$B$17:$B$23,'Activity 1'!M$17:M$23,\"N/A\",0,1)","v":"N/A"},{"$f":"_xlfn.XLOOKUP($E54,'Activity 1'!$B$17:$B$23,'Activity 1'!O$17:O$23,\"N/A\",0,1)","v":"N/A"},{"$f":"_xlfn.XLOOKUP($E54,'Activity 1'!$B$17:$B$23,'Activity 1'!Q$17:Q$23,\"N/A\",0,1)","v":"N/A"},{"$f":"_xlfn.XLOOKUP($E54,'Activity 2'!$B$7:$B$13,'Activity 2'!$A$7:$A$13,\"No\",0,1)","v":"No"},{"$f":"_xlfn.XLOOKUP($E54,'Activity 2'!B$7:B$13,'Activity 2'!H$7:H$13,\"N/A\",0)","v":"N/A"},{"$f":"_xlfn.XLOOKUP($E54,'Activity 2'!C$7:C$13,'Activity 2'!I$7:I$13,\"N/A\",0)","v":"N/A"},{"$f":"_xlfn.XLOOKUP($E54,'Activity 2'!D$7:D$13,'Activity 2'!J$7:J$13,\"N/A\",0)","v":"N/A"},{"$f":"_xlfn.XLOOKUP($E54,'Activity 2'!E$7:E$13,'Activity 2'!K$7:K$13,\"N/A\",0)","v":"N/A"},{"$f":"_xlfn.XLOOKUP($E54,'Activity 2'!F$7:F$13,'Activity 2'!L$7:L$13,\"N/A\",0)","v":"N/A"},{"$f":"_xlfn.XLOOKUP($E54,'Activity 2'!G$7:G$13,'Activity 2'!M$7:M$13,\"N/A\",0)","v":"N/A"},{"$f":"_xlfn.XLOOKUP($E54,'Activity 2'!H$7:H$13,'Activity 2'!N$7:N$13,\"N/A\",0)","v":"N/A"},{"$f":"_xlfn.XLOOKUP($E54,'Activity 2'!I$7:I$13,'Activity 2'!O$7:O$13,\"N/A\",0)","v":"N/A"},{"$f":"_xlfn.XLOOKUP($E54,'Activity 2'!J$7:J$13,'Activity 2'!P$7:P$13,\"N/A\",0)","v":"N/A"},{"$f":"_xlfn.XLOOKUP($E54,'Activity 2'!K$7:K$13,'Activity 2'!Q$7:Q$13,\"N/A\",0)","v":"N/A"},{"$f":"_xlfn.XLOOKUP($E54,'Activity 2'!L$7:L$13,'Activity 2'!R$7:R$13,\"N/A\",0)","v":"N/A"},{"$f":"_xlfn.XLOOKUP($E54,'Activity 2'!M$7:M$13,'Activity 2'!S$7:S$13,\"N/A\",0)","v":"N/A"},{"$f":"_xlfn.XLOOKUP($E54,'Activity 2'!N$7:N$13,'Activity 2'!T$7:T$13,\"N/A\",0)","v":"N/A"},{"$f":"_xlfn.XLOOKUP($E54,'Activity 2'!O$7:O$13,'Activity 2'!U$7:U$13,\"N/A\",0)","v":"N/A"},{"$f":"_xlfn.XLOOKUP($E54,'Activity 2'!P$7:P$13,'Activity 2'!V$7:V$13,\"N/A\",0)","v":"N/A"},{"$f":"_xlfn.XLOOKUP($E54,'Activity 2'!$B$17:$B$23,'Activity 2'!C$17:C$23,\"N/A\",0,1)","v":"N/A"},{"$f":"_xlfn.XLOOKUP($E54,'Activity 2'!$B$17:$B$23,'Activity 2'!D$17:D$23,\"N/A\",0,1)","v":"N/A"},{"$f":"_xlfn.XLOOKUP($E54,'Activity 2'!$B$17:$B$23,'Activity 2'!E$17:E$23,\"N/A\",0,1)","v":"N/A"},{"$f":"_xlfn.XLOOKUP($E54,'Activity 2'!$B$17:$B$23,'Activity 2'!F$17:F$23,\"N/A\",0,1)","v":"N/A"},{"$f":"_xlfn.XLOOKUP($E54,'Activity 2'!$B$17:$B$23,'Activity 2'!G$17:G$23,\"N/A\",0,1)","v":"N/A"},{"$f":"_xlfn.XLOOKUP($E54,'Activity 2'!$B$17:$B$23,'Activity 2'!H$17:H$23,\"N/A\",0,1)","v":"N/A"},{"$f":"_xlfn.XLOOKUP($E54,'Activity 2'!$B$17:$B$23,'Activity 2'!I$17:I$23,\"N/A\",0,1)","v":"N/A"},{"$f":"_xlfn.XLOOKUP($E54,'Activity 2'!$B$17:$B$23,'Activity 2'!J$17:J$23,\"N/A\",0,1)","v":"N/A"},{"$f":"_xlfn.XLOOKUP($E54,'Activity 2'!$B$17:$B$23,'Activity 2'!K$17:K$23,\"N/A\",0,1)","v":"N/A"},{"$f":"_xlfn.XLOOKUP($E54,'Activity 2'!$B$17:$B$23,'Activity 2'!L$17:L$23,\"N/A\",0,1)","v":"N/A"},{"$f":"_xlfn.XLOOKUP($E54,'Activity 2'!$B$17:$B$23,'Activity 2'!M$17:M$23,\"N/A\",0,1)","v":"N/A"},{"$f":"_xlfn.XLOOKUP($E54,'Activity 2'!$B$17:$B$23,'Activity 2'!O$17:O$23,\"N/A\",0,1)","v":"N/A"},{"$f":"_xlfn.XLOOKUP($E54,'Activity 2'!$B$17:$B$23,'Activity 2'!Q$17:Q$23,\"N/A\",0,1)","v":"N/A"},null,{"$f":"_xlfn.XLOOKUP($E54,'Activity 3'!$B$8:$B$14,'Activity 3'!K$8:K$14,\"N/A\",0,1)","v":"N/A"},{"$f":"_xlfn.XLOOKUP($E54,'Activity 3'!$B$8:$B$14,'Activity 3'!L$8:L$14,\"N/A\",0,1)","v":"N/A"},{"$f":"_xlfn.XLOOKUP($E54,'Activity 3'!$B$8:$B$14,'Activity 3'!M$8:M$14,\"N/A\",0,1)","v":"N/A"},{"$f":"_xlfn.XLOOKUP($E54,'Activity 3'!$B$8:$B$14,'Activity 3'!N$8:N$14,\"N/A\",0,1)","v":"N/A"},{"$f":"_xlfn.XLOOKUP($E54,'Activity 3'!$B$8:$B$14,'Activity 3'!O$8:O$14,\"N/A\",0,1)","v":"N/A"},{"$f":"_xlfn.XLOOKUP($E54,'Activity 3'!$B$8:$B$14,'Activity 3'!R$8:R$14,\"N/A\",0,1)","v":"N/A"},{"$f":"_xlfn.XLOOKUP($E54,'Activity 4'!$B$8:$B$14,'Activity 4'!$A$8:$A$14,\"No\",0,1)","v":"No"},{"$f":"_xlfn.XLOOKUP($E54,'Activity 4'!$B$8:$B$14,'Activity 4'!L$8:L$14,\"N/A\",0,1)","v":"N/A"},{"$f":"_xlfn.XLOOKUP($E54,'Activity 4'!$B$8:$B$14,'Activity 4'!I$8:I$14,\"N/A\",0,1)","v":"N/A"},{"$f":"_xlfn.XLOOKUP($E54,'Activity 4'!$B$8:$B$14,'Activity 4'!M$8:M$14,\"N/A\",0,1)","v":"N/A"},{"$f":"_xlfn.XLOOKUP($E54,'Activity 5'!$B$8:$B$14,'Activity 5'!$A$8:$A$14,\"No\",0,1)","v":"No"},{"$f":"_xlfn.XLOOKUP($E54,'Activity 5'!$B$8:$B$14,'Activity 5'!J$8:J$14,\"N/A\",0,1)","v":"N/A"},{"$f":"_xlfn.XLOOKUP($E54,'Activity 5'!$B$8:$B$14,'Activity 5'!K$8:K$14,\"N/A\",0,1)","v":"N/A"},{"$f":"_xlfn.XLOOKUP($E54,'Activity 5'!$B$8:$B$14,'Activity 5'!N$8:N$14,\"N/A\",0,1)","v":"N/A"},{"$f":"_xlfn.XLOOKUP($E54,'Activity 5'!$B$8:$B$14,'Activity 5'!O$8:O$14,\"N/A\",0,1)","v":"N/A"},{"$f":"_xlfn.XLOOKUP($E54,'Activity 5'!$B$8:$B$14,'Activity 5'!P$8:P$14,\"N/A\",0,1)","v":"N/A"},{"$f":"_xlfn.XLOOKUP($E54,'Activity 5'!$B$8:$B$14,'Activity 5'!Q$8:Q$14,\"N/A\",0,1)","v":"N/A"},{"$f":"_xlfn.XLOOKUP($E54,'Activity 5'!$B$8:$B$14,'Activity 5'!R$8:R$14,\"N/A\",0,1)","v":"N/A"},{"$f":"_xlfn.XLOOKUP($E54,'Activity 6'!$B$7:$B$13,'Activity 6'!A$7:A$13,\"No\",0,1)","v":"No"},{"$f":"_xlfn.XLOOKUP($E54,'Activity 6'!$B$7:$B$13,'Activity 6'!K$7:K$13,\"N/A\",0,1)","v":"N/A"},{"$f":"_xlfn.XLOOKUP($E54,'Activity 6'!$B$7:$B$13,'Activity 6'!L$7:L$13,\"N/A\",0,1)","v":"N/A"},{"$f":"_xlfn.XLOOKUP($E54,'Activity 6'!$B$7:$B$13,'Activity 6'!M$7:M$13,\"N/A\",0,1)","v":"N/A"},{"$f":"_xlfn.XLOOKUP($E54,'Activity 6'!$B$7:$B$13,'Activity 6'!N$7:N$13,\"N/A\",0,1)","v":"N/A"},{"$f":"_xlfn.XLOOKUP($E54,'Activity 6'!$B$7:$B$13,'Activity 6'!O$7:O$13,\"N/A\",0,1)","v":"N/A"},{"$f":"_xlfn.XLOOKUP($E54,'Activity 6'!$B$7:$B$13,'Activity 6'!P$7:P$13,\"N/A\",0,1)","v":"N/A"},{"$f":"_xlfn.XLOOKUP($E54,'Activity 6'!$B$7:$B$13,'Activity 6'!Q$7:Q$13,\"N/A\",0,1)","v":"N/A"},{"$f":"_xlfn.XLOOKUP($E54,'Activity 6'!$B$7:$B$13,'Activity 6'!R$7:R$13,\"N/A\",0,1)","v":"N/A"},{"$f":"_xlfn.XLOOKUP($E54,'Activity 6'!$B$7:$B$13,'Activity 6'!S$7:S$13,\"N/A\",0,1)","v":"N/A"},{"$f":"_xlfn.XLOOKUP($E54,'Activity 6'!$B$7:$B$13,'Activity 6'!T$7:T$13,\"N/A\",0,1)","v":"N/A"},{"$f":"_xlfn.XLOOKUP($E54,'Activity 6'!$B$7:$B$13,'Activity 6'!U$7:U$13,\"N/A\",0,1)","v":"N/A"},{"$f":"_xlfn.XLOOKUP($E54,'Activity 6'!$B$22:$B$28,'Activity 6'!C$22:C$28,\"N/A\",0,1)","v":"N/A"},{"$f":"_xlfn.XLOOKUP($E54,'Activity 6'!$B$22:$B$28,'Activity 6'!D$22:D$28,\"N/A\",0,1)","v":"N/A"},{"$f":"_xlfn.XLOOKUP($E54,'Activity 6'!$B$22:$B$28,'Activity 6'!E$22:E$28,\"N/A\",0,1)","v":"N/A"},{"$f":"_xlfn.XLOOKUP($E54,'Activity 6'!$B$22:$B$28,'Activity 6'!F$22:F$28,\"N/A\",0,1)","v":"N/A"},{"$f":"_xlfn.XLOOKUP($E54,'Activity 6'!$B$22:$B$28,'Activity 6'!G$22:G$28,\"N/A\",0,1)","v":"N/A"},{"$f":"_xlfn.XLOOKUP($E54,'Activity 6'!$B$22:$B$28,'Activity 6'!H$22:H$28,\"N/A\",0,1)","v":"N/A"},{"$f":"_xlfn.XLOOKUP($E54,'Activity 6'!$B$22:$B$28,'Activity 6'!I$22:I$28,\"N/A\",0,1)","v":"N/A"},{"$f":"_xlfn.XLOOKUP($E54,'Activity 6'!$B$22:$B$28,'Activity 6'!J$22:J$28,\"N/A\",0,1)","v":"N/A"},{"$f":"_xlfn.XLOOKUP($E54,'Activity 6'!$B$22:$B$28,'Activity 6'!K$22:K$28,\"N/A\",0,1)","v":"N/A"},{"$f":"_xlfn.XLOOKUP($E54,'Activity 6'!$B$22:$B$28,'Activity 6'!L$22:L$28,\"N/A\",0,1)","v":"N/A"},{"$f":"_xlfn.XLOOKUP($E54,'Activity 6'!$B$22:$B$28,'Activity 6'!M$22:M$28,\"N/A\",0,1)","v":"N/A"},{"$f":"_xlfn.XLOOKUP($E54,'Activity 6'!$B$22:$B$28,'Activity 6'!N$22:N$28,\"N/A\",0,1)","v":"N/A"},{"$f":"_xlfn.XLOOKUP($E54,'Activity 6'!$B$32:$B$38,'Activity 6'!C$32:C$38,\"N/A\",0,1)","v":"N/A"},{"$f":"_xlfn.XLOOKUP($E54,'Activity 6'!$B$32:$B$38,'Activity 6'!D$32:D$38,\"N/A\",0,1)","v":"N/A"},{"$f":"_xlfn.XLOOKUP($E54,'Activity 6'!$B$32:$B$38,'Activity 6'!E$32:E$38,\"N/A\",0,1)","v":"N/A"},{"$f":"_xlfn.XLOOKUP($E54,'Activity 6'!$B$32:$B$38,'Activity 6'!F$32:F$38,\"N/A\",0,1)","v":"N/A"},{"$f":"_xlfn.XLOOKUP($E54,'Activity 6'!$B$32:$B$38,'Activity 6'!G$32:G$38,\"N/A\",0,1)","v":"N/A"},{"$f":"_xlfn.XLOOKUP($E54,'Activity 6'!$B$32:$B$38,'Activity 6'!H$32:H$38,\"N/A\",0,1)","v":"N/A"},{"$f":"_xlfn.XLOOKUP($E54,'Activity 6'!$B$32:$B$38,'Activity 6'!I$32:I$38,\"N/A\",0,1)","v":"N/A"},{"$f":"_xlfn.XLOOKUP($E54,'Activity 6'!$B$32:$B$38,'Activity 6'!J$32:J$38,\"N/A\",0,1)","v":"N/A"},{"$f":"_xlfn.XLOOKUP($E54,'Activity 6'!$B$32:$B$38,'Activity 6'!K$32:K$38,\"N/A\",0,1)","v":"N/A"},{"$f":"_xlfn.XLOOKUP($E54,'Activity 6'!$B$32:$B$38,'Activity 6'!M$32:M$38,\"N/A\",0,1)","v":"N/A"},{"$f":"_xlfn.XLOOKUP($E54,'Activity 7'!$B$7:$B$13,'Activity 7'!$A$7:$A$13,\"No\",0,1)","v":"No"},{"$f":"_xlfn.XLOOKUP($E54,'Activity 7'!$B$7:$B$13,'Activity 7'!M$7:M$13,\"N/A\",0,1)","v":"N/A"},{"$f":"_xlfn.XLOOKUP($E54,'Activity 7'!$B$7:$B$13,'Activity 7'!K$7:K$13,\"N/A\",0,1)","v":"N/A"},{"$f":"_xlfn.XLOOKUP($E54,'Activity 7'!$B$7:$B$13,'Activity 7'!N$7:N$13,\"N/A\",0,1)","v":"N/A"},{"$f":"_xlfn.XLOOKUP($E54,'Activity 7'!$B$7:$B$13,'Activity 7'!O$7:O$13,\"N/A\",0,1)","v":"N/A"},{"$f":"_xlfn.XLOOKUP($E54,'Activity 7'!$B$7:$B$13,'Activity 7'!P$7:P$13,\"N/A\",0,1)","v":"N/A"},{"$f":"_xlfn.XLOOKUP($E54,'Activity 7'!$B$7:$B$13,'Activity 7'!Q$7:Q$13,\"N/A\",0,1)","v":"N/A"},{"$f":"_xlfn.XLOOKUP($E54,'Activity 7'!$B$7:$B$13,'Activity 7'!R$7:R$13,\"N/A\",0,1)","v":"N/A"},{"$f":"_xlfn.XLOOKUP($E54,'Activity 7'!$B$7:$B$13,'Activity 7'!S$7:S$13,\"N/A\",0,1)","v":"N/A"},{"$f":"_xlfn.XLOOKUP($E54,'Activity 7'!$B$7:$B$13,'Activity 7'!T$7:T$13,\"N/A\",0,1)","v":"N/A"},{"$f":"_xlfn.XLOOKUP($E54,'Activity 7'!$B$7:$B$13,'Activity 7'!U$7:U$13,\"N/A\",0,1)","v":"N/A"},{"$f":"_xlfn.XLOOKUP($E54,'Activity 7'!$B$7:$B$13,'Activity 7'!V$7:V$13,\"N/A\",0,1)","v":"N/A"},{"$f":"_xlfn.XLOOKUP($E54,'Activity 7'!$B$17:$B$23,'Activity 7'!E$17:E$23,\"N/A\",0,1)","v":"N/A"},{"$f":"_xlfn.XLOOKUP($E54,'Activity 7'!$B$17:$B$23,'Activity 7'!G$17:G$23,\"N/A\",0,1)","v":"N/A"},{"$f":"_xlfn.XLOOKUP($E54,'Activity 7'!$B$17:$B$23,'Activity 7'!I$17:I$23,\"N/A\",0,1)","v":"N/A"},{"$f":"_xlfn.XLOOKUP($E54,'Activity 7'!$B$17:$B$23,'Activity 7'!J$17:J$23,\"N/A\",0,1)","v":"N/A"},{"$f":"_xlfn.XLOOKUP($E54,'Activity 7'!$B$17:$B$23,'Activity 7'!K$17:K$23,\"N/A\",0,1)","v":"N/A"},{"$f":"_xlfn.XLOOKUP($E54,'Activity 7'!$B$17:$B$23,'Activity 7'!L$17:L$23,\"N/A\",0,1)","v":"N/A"},{"$f":"_xlfn.XLOOKUP($E54,'Activity 7'!$B$17:$B$23,'Activity 7'!M$17:M$23,\"N/A\",0,1)","v":"N/A"},{"$f":"_xlfn.XLOOKUP($E54,'Activity 7'!$B$17:$B$23,'Activity 7'!N$17:N$23,\"N/A\",0,1)","v":"N/A"},{"$f":"_xlfn.XLOOKUP($E54,'Activity 7'!$B$17:$B$23,'Activity 7'!P$17:P$23,\"N/A\",0,1)","v":"N/A"},{"$f":"_xlfn.XLOOKUP($E54,'Activity 8'!$B$7:$B$13,'Activity 8'!A$7:A$13,\"No\",0,1)","v":"No"},{"$f":"_xlfn.XLOOKUP($E54,'Activity 8'!$B$7:$B$13,'Activity 8'!I$7:I$13,\"N/A\",0,1)","v":"N/A"},{"$f":"_xlfn.XLOOKUP($E54,'Activity 8'!$B$7:$B$13,'Activity 8'!J$7:J$13,\"N/A\",0,1)","v":"N/A"},{"$f":"_xlfn.XLOOKUP($E54,'Activity 8'!$B$7:$B$13,'Activity 8'!K$7:K$13,\"N/A\",0,1)","v":"N/A"},{"$f":"_xlfn.XLOOKUP($E54,'Activity 8'!$B$7:$B$13,'Activity 8'!L$7:L$13,\"N/A\",0,1)","v":"N/A"},{"$f":"_xlfn.XLOOKUP($E54,'Activity 8'!$B$7:$B$13,'Activity 8'!M$7:M$13,\"N/A\",0,1)","v":"N/A"},{"$f":"_xlfn.XLOOKUP($E54,'Activity 8'!$B$7:$B$13,'Activity 8'!N$7:N$13,\"N/A\",0,1)","v":"N/A"},{"$f":"_xlfn.XLOOKUP($E54,'Activity 8'!$B$7:$B$13,'Activity 8'!O$7:O$13,\"N/A\",0,1)","v":"N/A"},{"$f":"_xlfn.XLOOKUP($E54,'Activity 8'!$B$7:$B$13,'Activity 8'!P$7:P$13,\"N/A\",0,1)","v":"N/A"},{"$f":"_xlfn.XLOOKUP($E54,'Activity 8'!$B$7:$B$13,'Activity 8'!Q$7:Q$13,\"N/A\",0,1)","v":"N/A"},{"$f":"_xlfn.XLOOKUP($E54,'Activity 8'!$B$7:$B$13,'Activity 8'!R$7:R$13,\"N/A\",0,1)","v":"N/A"},{"$f":"_xlfn.XLOOKUP($E54,'Activity 8'!$B$7:$B$13,'Activity 8'!S$7:S$13,\"N/A\",0,1)","v":"N/A"},{"$f":"_xlfn.XLOOKUP($E54,'Activity 8'!$B$7:$B$13,'Activity 8'!T$7:T$13,\"N/A\",0,1)","v":"N/A"},{"$f":"_xlfn.XLOOKUP($E54,'Activity 8'!$B$7:$B$13,'Activity 8'!U$7:U$13,\"N/A\",0,1)","v":"N/A"},{"$f":"_xlfn.XLOOKUP($E54,'Activity 8'!$B$7:$B$13,'Activity 8'!V$7:V$13,\"N/A\",0,1)","v":"N/A"},{"$f":"_xlfn.XLOOKUP($E54,'Activity 8'!$B$17:$B$23,'Activity 8'!D$17:D$23,\"N/A\",0,1)","v":"N/A"},{"$f":"_xlfn.XLOOKUP($E54,'Activity 8'!$B$17:$B$23,'Activity 8'!E$17:E$23,\"N/A\",0,1)","v":"N/A"},{"$f":"_xlfn.XLOOKUP($E54,'Activity 8'!$B$17:$B$23,'Activity 8'!F$17:F$23,\"N/A\",0,1)","v":"N/A"},{"$f":"_xlfn.XLOOKUP($E54,'Activity 8'!$B$17:$B$23,'Activity 8'!G$17:G$23,\"N/A\",0,1)","v":"N/A"},{"$f":"_xlfn.XLOOKUP($E54,'Activity 8'!$B$17:$B$23,'Activity 8'!H$17:H$23,\"N/A\",0,1)","v":"N/A"},{"$f":"_xlfn.XLOOKUP($E54,'Activity 8'!$B$17:$B$23,'Activity 8'!I$17:I$23,\"N/A\",0,1)","v":"N/A"},{"$f":"_xlfn.XLOOKUP($E54,'Activity 8'!$B$17:$B$23,'Activity 8'!J$17:J$23,\"N/A\",0,1)","v":"N/A"},{"$f":"_xlfn.XLOOKUP($E54,'Activity 8'!$B$17:$B$23,'Activity 8'!K$17:K$23,\"N/A\",0,1)","v":"N/A"},{"$f":"_xlfn.XLOOKUP($E54,'Activity 8'!$B$17:$B$23,'Activity 8'!L$17:L$23,\"N/A\",0,1)","v":"N/A"},{"$f":"_xlfn.XLOOKUP($E54,'Activity 8'!$B$17:$B$23,'Activity 8'!M$17:M$23,\"N/A\",0,1)","v":"N/A"},{"$f":"_xlfn.XLOOKUP($E54,'Activity 8'!$B$17:$B$23,'Activity 8'!N$17:N$23,\"N/A\",0,1)","v":"N/A"},{"$f":"_xlfn.XLOOKUP($E54,'Activity 8'!$B$17:$B$23,'Activity 8'!P$17:P$23,\"N/A\",0,1)","v":"N/A"},{"$f":"_xlfn.XLOOKUP(E54,'Activity 9'!$B$7:$B$13,'Activity 9'!$A$7:$A$13,\"No\",0,1)","v":"No"},{"$f":"_xlfn.XLOOKUP($E54,'Activity 9'!$B$7:$B$13,'Activity 9'!J$7:J$13,\"N/A\",0,1)","v":"N/A"},{"$f":"_xlfn.XLOOKUP($E54,'Activity 9'!$B$7:$B$13,'Activity 9'!K$7:K$13,\"N/A\",0,1)","v":"N/A"},{"$f":"_xlfn.XLOOKUP($E54,'Activity 9'!$B$7:$B$13,'Activity 9'!L$7:L$13,\"N/A\",0,1)","v":"N/A"},{"$f":"_xlfn.XLOOKUP($E54,'Activity 9'!$B$7:$B$13,'Activity 9'!M$7:M$13,\"N/A\",0,1)","v":"N/A"},{"$f":"_xlfn.XLOOKUP($E54,'Activity 9'!$B$7:$B$13,'Activity 9'!N$7:N$13,\"N/A\",0,1)","v":"N/A"},{"$f":"_xlfn.XLOOKUP($E54,'Activity 9'!$B$7:$B$13,'Activity 9'!O$7:O$13,\"N/A\",0,1)","v":"N/A"},{"$f":"_xlfn.XLOOKUP($E54,'Activity 9'!$B$7:$B$13,'Activity 9'!P$7:P$13,\"N/A\",0,1)","v":"N/A"},{"$f":"_xlfn.XLOOKUP($E54,'Activity 9'!$B$7:$B$13,'Activity 9'!Q$7:Q$13,\"N/A\",0,1)","v":"N/A"},{"$f":"_xlfn.XLOOKUP($E54,'Activity 9'!$B$7:$B$13,'Activity 9'!R$7:R$13,\"N/A\",0,1)","v":"N/A"},{"$f":"_xlfn.XLOOKUP($E54,'Activity 9'!$B$7:$B$13,'Activity 9'!S$7:S$13,\"N/A\",0,1)","v":"N/A"},{"$f":"_xlfn.XLOOKUP($E54,'Activity 9'!$B$7:$B$13,'Activity 9'!T$7:T$13,\"N/A\",0,1)","v":"N/A"},{"$f":"_xlfn.XLOOKUP($E54,'Activity 9'!$B$17:$B$23,'Activity 9'!E$17:E$23,\"N/A\",0,1)","v":"N/A"},{"$f":"_xlfn.XLOOKUP($E54,'Activity 9'!$B$17:$B$23,'Activity 9'!F$17:F$23,\"N/A\",0,1)","v":"N/A"},{"$f":"_xlfn.XLOOKUP($E54,'Activity 9'!$B$17:$B$23,'Activity 9'!G$17:G$23,\"N/A\",0,1)","v":"N/A"},{"$f":"_xlfn.XLOOKUP($E54,'Activity 9'!$B$17:$B$23,'Activity 9'!H$17:H$23,\"N/A\",0,1)","v":"N/A"},{"$f":"_xlfn.XLOOKUP($E54,'Activity 9'!$B$17:$B$23,'Activity 9'!I$17:I$23,\"N/A\",0,1)","v":"N/A"},{"$f":"_xlfn.XLOOKUP($E54,'Activity 9'!$B$17:$B$23,'Activity 9'!J$17:J$23,\"N/A\",0,1)","v":"N/A"},{"$f":"_xlfn.XLOOKUP($E54,'Activity 9'!$B$17:$B$23,'Activity 9'!K$17:K$23,\"N/A\",0,1)","v":"N/A"},{"$f":"_xlfn.XLOOKUP($E54,'Activity 9'!$B$17:$B$23,'Activity 9'!L$17:L$23,\"N/A\",0,1)","v":"N/A"},{"$f":"_xlfn.XLOOKUP($E54,'Activity 9'!$B$17:$B$23,'Activity 9'!N$17:N$23,\"N/A\",0,1)","v":"N/A"},{"$f":"_xlfn.XLOOKUP($E54,'Activity 9'!$B$17:$B$23,'Activity 9'!O$17:O$23,\"N/A\",0,1)","v":"N/A"},{"$f":"_xlfn.XLOOKUP($E54,'Activity 9'!$B$17:$B$23,'Activity 9'!Q$17:Q$23,\"N/A\",0,1)","v":"N/A"},{"$f":"_xlfn.XLOOKUP($E54,'Activity 10'!$B$7:$B$13,'Activity 10'!A$7:A$13,\"No\",0,1)","v":"No"},{"$f":"_xlfn.XLOOKUP($E54,'Activity 10'!$B$7:$B$13,'Activity 10'!J$7:J$13,\"N/A\",0,1)","v":"N/A"},{"$f":"_xlfn.XLOOKUP($E54,'Activity 10'!$B$7:$B$13,'Activity 10'!K$7:K$13,\"N/A\",0,1)","v":"N/A"},{"$f":"_xlfn.XLOOKUP($E54,'Activity 10'!$B$7:$B$13,'Activity 10'!L$7:L$13,\"N/A\",0,1)","v":"N/A"},{"$f":"_xlfn.XLOOKUP($E54,'Activity 10'!$B$7:$B$13,'Activity 10'!M$7:M$13,\"N/A\",0,1)","v":"N/A"},{"$f":"_xlfn.XLOOKUP($E54,'Activity 10'!$B$7:$B$13,'Activity 10'!N$7:N$13,\"N/A\",0,1)","v":"N/A"},{"$f":"_xlfn.XLOOKUP($E54,'Activity 10'!$B$7:$B$13,'Activity 10'!O$7:O$13,\"N/A\",0,1)","v":"N/A"},{"$f":"_xlfn.XLOOKUP($E54,'Activity 10'!$B$7:$B$13,'Activity 10'!P$7:P$13,\"N/A\",0,1)","v":"N/A"},{"$f":"_xlfn.XLOOKUP($E54,'Activity 10'!$B$7:$B$13,'Activity 10'!Q$7:Q$13,\"N/A\",0,1)","v":"N/A"},{"$f":"_xlfn.XLOOKUP($E54,'Activity 10'!$B$7:$B$13,'Activity 10'!R$7:R$13,\"N/A\",0,1)","v":"N/A"},{"$f":"_xlfn.XLOOKUP($E54,'Activity 10'!$B$7:$B$13,'Activity 10'!S$7:S$13,\"N/A\",0,1)","v":"N/A"},{"$f":"_xlfn.XLOOKUP($E54,'Activity 10'!$B$7:$B$13,'Activity 10'!T$7:T$13,\"N/A\",0,1)","v":"N/A"},{"$f":"_xlfn.XLOOKUP($E54,'Activity 10'!$B$7:$B$13,'Activity 10'!U$7:U$13,\"N/A\",0,1)","v":"N/A"},{"$f":"_xlfn.XLOOKUP($E54,'Activity 10'!$B$7:$B$13,'Activity 10'!V$7:V$13,\"N/A\",0,1)","v":"N/A"},{"$f":"_xlfn.XLOOKUP($E54,'Activity 10'!$B$17:$B$23,'Activity 10'!E$17:E$23,\"N/A\",0,1)","v":"N/A"},{"$f":"_xlfn.XLOOKUP($E54,'Activity 10'!$B$17:$B$23,'Activity 10'!F$17:F$23,\"N/A\",0,1)","v":"N/A"},{"$f":"_xlfn.XLOOKUP($E54,'Activity 10'!$B$17:$B$23,'Activity 10'!G$17:G$23,\"N/A\",0,1)","v":"N/A"},{"$f":"_xlfn.XLOOKUP($E54,'Activity 10'!$B$17:$B$23,'Activity 10'!H$17:H$23,\"N/A\",0,1)","v":"N/A"},{"$f":"_xlfn.XLOOKUP($E54,'Activity 10'!$B$17:$B$23,'Activity 10'!I$17:I$23,\"N/A\",0,1)","v":"N/A"},{"$f":"_xlfn.XLOOKUP($E54,'Activity 10'!$B$17:$B$23,'Activity 10'!J$17:J$23,\"N/A\",0,1)","v":"N/A"},{"$f":"_xlfn.XLOOKUP($E54,'Activity 10'!$B$17:$B$23,'Activity 10'!K$17:K$23,\"N/A\",0,1)","v":"N/A"},{"$f":"_xlfn.XLOOKUP($E54,'Activity 10'!$B$17:$B$23,'Activity 10'!L$17:L$23,\"N/A\",0,1)","v":"N/A"},{"$f":"_xlfn.XLOOKUP($E54,'Activity 10'!$B$17:$B$23,'Activity 10'!M$17:M$23,\"N/A\",0,1)","v":"N/A"},{"$f":"_xlfn.XLOOKUP($E54,'Activity 10'!$B$17:$B$23,'Activity 10'!N$17:N$23,\"N/A\",0,1)","v":"N/A"},{"$f":"_xlfn.XLOOKUP($E54,'Activity 10'!$B$17:$B$23,'Activity 10'!P$17:P$23,\"N/A\",0,1)","v":"N/A"},{"$f":"_xlfn.XLOOKUP($E54,'Competitive Activity 1'!B$7:B$13,'Competitive Activity 1'!A$7:A$13,\"No\",0,1)","v":"No"},{"$f":"_xlfn.XLOOKUP($E54,'Competitive Activity 1'!$B$7:$B$13,'Competitive Activity 1'!H$7:H$13,\"N/A\",0,1)","v":"N/A"},{"$f":"_xlfn.XLOOKUP($E54,'Competitive Activity 1'!$B$7:$B$13,'Competitive Activity 1'!I$7:I$13,\"N/A\",0,1)","v":"N/A"},{"$f":"_xlfn.XLOOKUP($E54,'Competitive Activity 1'!$B$7:$B$13,'Competitive Activity 1'!J$7:J$13,\"N/A\",0,1)","v":"N/A"},{"$f":"_xlfn.XLOOKUP($E54,'Competitive Activity 1'!$B$7:$B$13,'Competitive Activity 1'!K$7:K$13,\"N/A\",0,1)","v":"N/A"},{"$f":"_xlfn.XLOOKUP($E54,'Competitive Activity 1'!$B$7:$B$13,'Competitive Activity 1'!L$7:L$13,\"N/A\",0,1)","v":"N/A"},{"$f":"_xlfn.XLOOKUP($E54,'Competitive Activity 1'!$B$7:$B$13,'Competitive Activity 1'!M$7:M$13,\"N/A\",0,1)","v":"N/A"},{"$f":"_xlfn.XLOOKUP($E54,'Competitive Activity 1'!$B$7:$B$13,'Competitive Activity 1'!N$7:N$13,\"N/A\",0,1)","v":"N/A"},{"$f":"_xlfn.XLOOKUP($E54,'Competitive Activity 1'!$B$7:$B$13,'Competitive Activity 1'!O$7:O$13,\"N/A\",0,1)","v":"N/A"},{"$f":"_xlfn.XLOOKUP($E54,'Competitive Activity 1'!$B$7:$B$13,'Competitive Activity 1'!P$7:P$13,\"N/A\",0,1)","v":"N/A"},{"$f":"_xlfn.XLOOKUP($E54,'Competitive Activity 1'!$B$7:$B$13,'Competitive Activity 1'!Q$7:Q$13,\"N/A\",0,1)","v":"N/A"},{"$f":"_xlfn.XLOOKUP($E54,'Competitive Activity 1'!$B$7:$B$13,'Competitive Activity 1'!R$7:R$13,\"N/A\",0,1)","v":"N/A"},{"$f":"_xlfn.XLOOKUP($E54,'Competitive Activity 1'!$B$7:$B$13,'Competitive Activity 1'!S$7:S$13,\"N/A\",0,1)","v":"N/A"},{"$f":"_xlfn.XLOOKUP($E54,'Competitive Activity 1'!$B$7:$B$13,'Competitive Activity 1'!T$7:T$13,\"N/A\",0,1)","v":"N/A"},{"$f":"_xlfn.XLOOKUP($E54,'Competitive Activity 1'!$B$7:$B$13,'Competitive Activity 1'!U$7:U$13,\"N/A\",0,1)","v":"N/A"},{"$f":"_xlfn.XLOOKUP($E54,'Competitive Activity 1'!$B$17:$B$23,'Competitive Activity 1'!C$17:C$23,\"N/A\",0,1)","v":"N/A"},{"$f":"_xlfn.XLOOKUP($E54,'Competitive Activity 1'!$B$17:$B$23,'Competitive Activity 1'!D$17:D$23,\"N/A\",0,1)","v":"N/A"},{"$f":"_xlfn.XLOOKUP($E54,'Competitive Activity 1'!$B$17:$B$23,'Competitive Activity 1'!E$17:E$23,\"N/A\",0,1)","v":"N/A"},{"$f":"_xlfn.XLOOKUP($E54,'Competitive Activity 1'!$B$17:$B$23,'Competitive Activity 1'!F$17:F$23,\"N/A\",0,1)","v":"N/A"},{"$f":"_xlfn.XLOOKUP($E54,'Competitive Activity 1'!$B$17:$B$23,'Competitive Activity 1'!G$17:G$23,\"N/A\",0,1)","v":"N/A"},{"$f":"_xlfn.XLOOKUP($E54,'Competitive Activity 1'!$B$17:$B$23,'Competitive Activity 1'!H$17:H$23,\"N/A\",0,1)","v":"N/A"},{"$f":"_xlfn.XLOOKUP($E54,'Competitive Activity 1'!$B$17:$B$23,'Competitive Activity 1'!I$17:I$23,\"N/A\",0,1)","v":"N/A"},{"$f":"_xlfn.XLOOKUP($E54,'Competitive Activity 1'!$B$17:$B$23,'Competitive Activity 1'!J$17:J$23,\"N/A\",0,1)","v":"N/A"},{"$f":"_xlfn.XLOOKUP($E54,'Competitive Activity 1'!$B$17:$B$23,'Competitive Activity 1'!K$17:K$23,\"N/A\",0,1)","v":"N/A"},{"$f":"_xlfn.XLOOKUP($E54,'Competitive Activity 1'!$B$17:$B$23,'Competitive Activity 1'!M$17:M$23,\"N/A\",0,1)","v":"N/A"},{"$f":"_xlfn.XLOOKUP($E54,'Competitive Activity 1'!$B$17:$B$23,'Competitive Activity 1'!N$17:N$23,\"N/A\",0,1)","v":"N/A"},{"$f":"_xlfn.XLOOKUP($E54,'Competitive Activity 1'!$B$17:$B$23,'Competitive Activity 1'!P$17:P$23,\"N/A\",0,1)","v":"N/A"},{"$f":"_xlfn.XLOOKUP($E54,'Competitive Activity 2'!$B$7:$B$13,'Competitive Activity 2'!A$7:A$13,\"No\",0)","v":"No"},{"$f":"_xlfn.XLOOKUP($E54,'Competitive Activity 2'!$B$7:$B$13,'Competitive Activity 2'!L$7:L$13,\"N/A\",0)","v":"N/A"},{"$f":"_xlfn.XLOOKUP($E54,'Competitive Activity 2'!$B$7:$B$13,'Competitive Activity 2'!M$7:M$13,\"N/A\",0)","v":"N/A"},{"$f":"_xlfn.XLOOKUP($E54,'Competitive Activity 2'!$B$7:$B$13,'Competitive Activity 2'!N$7:N$13,\"N/A\",0)","v":"N/A"},{"$f":"_xlfn.XLOOKUP($E54,'Competitive Activity 2'!$B$7:$B$13,'Competitive Activity 2'!O$7:O$13,\"N/A\",0)","v":"N/A"},{"$f":"_xlfn.XLOOKUP($E54,'Competitive Activity 2'!$B$7:$B$13,'Competitive Activity 2'!P$7:P$13,\"N/A\",0)","v":"N/A"},{"$f":"_xlfn.XLOOKUP($E54,'Competitive Activity 2'!$B$7:$B$13,'Competitive Activity 2'!Q$7:Q$13,\"N/A\",0)","v":"N/A"},{"$f":"_xlfn.XLOOKUP($E54,'Competitive Activity 2'!$B$7:$B$13,'Competitive Activity 2'!R$7:R$13,\"N/A\",0)","v":"N/A"},{"$f":"_xlfn.XLOOKUP($E54,'Competitive Activity 2'!$B$7:$B$13,'Competitive Activity 2'!S$7:S$13,\"N/A\",0)","v":"N/A"},{"$f":"_xlfn.XLOOKUP($E54,'Competitive Activity 2'!$B$7:$B$13,'Competitive Activity 2'!T$7:T$13,\"N/A\",0)","v":"N/A"},{"$f":"_xlfn.XLOOKUP($E54,'Competitive Activity 2'!$B$7:$B$13,'Competitive Activity 2'!U$7:U$13,\"N/A\",0)","v":"N/A"},{"$f":"_xlfn.XLOOKUP($E54,'Competitive Activity 2'!$B$17:$B$23,'Competitive Activity 2'!D$17:D$23,\"N/A\",0)","v":"N/A"},{"$f":"_xlfn.XLOOKUP($E54,'Competitive Activity 2'!$B$17:$B$23,'Competitive Activity 2'!E$17:E$23,\"N/A\",0)","v":"N/A"},{"$f":"_xlfn.XLOOKUP($E54,'Competitive Activity 2'!$B$17:$B$23,'Competitive Activity 2'!F$17:F$23,\"N/A\",0)","v":"N/A"},{"$f":"_xlfn.XLOOKUP($E54,'Competitive Activity 2'!$B$17:$B$23,'Competitive Activity 2'!G$17:G$23,\"N/A\",0)","v":"N/A"},{"$f":"_xlfn.XLOOKUP($E54,'Competitive Activity 2'!$B$17:$B$23,'Competitive Activity 2'!H$17:H$23,\"N/A\",0)","v":"N/A"},{"$f":"_xlfn.XLOOKUP($E54,'Competitive Activity 2'!$B$17:$B$23,'Competitive Activity 2'!I$17:I$23,\"N/A\",0)","v":"N/A"},{"$f":"_xlfn.XLOOKUP($E54,'Competitive Activity 2'!$B$17:$B$23,'Competitive Activity 2'!J$17:J$23,\"N/A\",0)","v":"N/A"},{"$f":"_xlfn.XLOOKUP($E54,'Competitive Activity 2'!$B$17:$B$23,'Competitive Activity 2'!K$17:K$23,\"N/A\",0)","v":"N/A"},{"$f":"_xlfn.XLOOKUP($E54,'Competitive Activity 2'!$B$17:$B$23,'Competitive Activity 2'!L$17:L$23,\"N/A\",0)","v":"N/A"},{"$f":"_xlfn.XLOOKUP($E54,'Competitive Activity 2'!$B$17:$B$23,'Competitive Activity 2'!M$17:M$23,\"N/A\",0)","v":"N/A"},{"$f":"_xlfn.XLOOKUP($E54,'Competitive Activity 2'!$B$17:$B$23,'Competitive Activity 2'!N$17:N$23,\"N/A\",0)","v":"N/A"},{"$f":"_xlfn.XLOOKUP($E54,'Competitive Activity 2'!$B$27:$B$33,'Competitive Activity 2'!D$27:D$33,\"N/A\",0)","v":"N/A"},{"$f":"_xlfn.XLOOKUP($E54,'Competitive Activity 2'!$B$27:$B$33,'Competitive Activity 2'!E$27:E$33,\"N/A\",0)","v":"N/A"},{"$f":"_xlfn.XLOOKUP($E54,'Competitive Activity 2'!$B$27:$B$33,'Competitive Activity 2'!F$27:F$33,\"N/A\",0)","v":"N/A"},{"$f":"_xlfn.XLOOKUP($E54,'Competitive Activity 2'!$B$27:$B$33,'Competitive Activity 2'!G$27:G$33,\"N/A\",0)","v":"N/A"},{"$f":"_xlfn.XLOOKUP($E54,'Competitive Activity 2'!$B$27:$B$33,'Competitive Activity 2'!H$27:H$33,\"N/A\",0)","v":"N/A"},{"$f":"_xlfn.XLOOKUP($E54,'Competitive Activity 2'!$B$27:$B$33,'Competitive Activity 2'!I$27:I$33,\"N/A\",0)","v":"N/A"},{"$f":"_xlfn.XLOOKUP($E54,'Competitive Activity 2'!$B$27:$B$33,'Competitive Activity 2'!J$27:J$33,\"N/A\",0)","v":"N/A"},{"$f":"_xlfn.XLOOKUP($E54,'Competitive Activity 2'!$B$27:$B$33,'Competitive Activity 2'!K$27:K$33,\"N/A\",0)","v":"N/A"},{"$f":"_xlfn.XLOOKUP($E54,'Competitive Activity 2'!$B$27:$B$33,'Competitive Activity 2'!M$27:M$33,\"N/A\",0)","v":"N/A"}]
[{"$f":"'1-Cover Sheet'!$C$8","v":"Select One"},{"$f":"'1-Cover Sheet'!$F$8","v":"Select One"},{"$f":"'Summary Sheet'!$D$8","v":0},{"$f":"'Summary Sheet'!$D$10","v":0},{"$f":"'Drop Down Box'!B219","v":0},{"$f":"'Drop Down Box'!C219","v":0},{"$f":"'Drop Down Box'!D219","v":"Select One"},{"$f":"_xlfn.XLOOKUP(E55,'Drop Down Box'!$B$166:$B$249,'Drop Down Box'!$A$166:$A$249,\"Unknown\",0)","v":"Activity 1"},{"$f":"_xlfn.XLOOKUP($E55,'Activity 8'!$B$17:$B$23,'Activity 8'!$O$17:$O$23,\"N/A\",0)","v":"N/A"},{"$f":"_xlfn.XLOOKUP($E55,'Activity 8'!$B$17:$B$23,'Activity 8'!$P$17:$P$23,\"N/A\",0)","v":"N/A"},{"$f":"_xlfn.XLOOKUP($E55,'Activity 8'!$B$7:$B$13,'Activity 8'!$F$7:$F$13,\"N/A\",0)","v":"N/A"},{"$f":"_xlfn.XLOOKUP($E55,'Activity 8'!$B$7:$B$13,'Activity 8'!$G$7:$G$13,\"N/A\",0)","v":"N/A"},{"$f":"_xlfn.XLOOKUP($E55,'Activity 8'!$B$7:$B$13,'Activity 8'!H$7:H$13,\"N/A\",0)","v":"N/A"},{"$f":"_xlfn.XLOOKUP($E55,'Activity 1'!$B$7:$B$13,'Activity 1'!$A$7:$A$13,\"No\",0,1)","v":"No"},{"$f":"_xlfn.XLOOKUP($E55,'Activity 1'!$B$7:$B$13,'Activity 1'!$H$7:$H$13,\"N/A\",0,1)","v":"N/A"},{"$f":"_xlfn.XLOOKUP($E55,'Activity 1'!$B$7:$B$13,'Activity 1'!I$7:I$13,\"N/A\",0,1)","v":"N/A"},{"$f":"_xlfn.XLOOKUP($E55,'Activity 1'!$B$7:$B$13,'Activity 1'!J$7:J$13,\"N/A\",0,1)","v":"N/A"},{"$f":"_xlfn.XLOOKUP($E55,'Activity 1'!$B$7:$B$13,'Activity 1'!K$7:K$13,\"N/A\",0,1)","v":"N/A"},{"$f":"_xlfn.XLOOKUP($E55,'Activity 1'!$B$7:$B$13,'Activity 1'!L$7:L$13,\"N/A\",0,1)","v":"N/A"},{"$f":"_xlfn.XLOOKUP($E55,'Activity 1'!$B$7:$B$13,'Activity 1'!M$7:M$13,\"N/A\",0,1)","v":"N/A"},{"$f":"_xlfn.XLOOKUP($E55,'Activity 1'!$B$7:$B$13,'Activity 1'!N$7:N$13,\"N/A\",0,1)","v":"N/A"},0,{"$f":"_xlfn.XLOOKUP($E55,'Activity 1'!$B$7:$B$13,'Activity 1'!O$7:O$13,\"N/A\",0,1)","v":"N/A"},{"$f":"_xlfn.XLOOKUP($E55,'Activity 1'!$B$7:$B$13,'Activity 1'!P$7:P$13,\"N/A\",0,1)","v":"N/A"},{"$f":"_xlfn.XLOOKUP($E55,'Activity 1'!$B$7:$B$13,'Activity 1'!Q$7:Q$13,\"N/A\",0,1)","v":"N/A"},{"$f":"_xlfn.XLOOKUP($E55,'Activity 1'!$B$7:$B$13,'Activity 1'!R$7:R$13,\"N/A\",0,1)","v":"N/A"},{"$f":"_xlfn.XLOOKUP($E55,'Activity 1'!$B$7:$B$13,'Activity 1'!S$7:S$13,\"N/A\",0,1)","v":"N/A"},{"$f":"_xlfn.XLOOKUP($E55,'Activity 1'!$B$7:$B$13,'Activity 1'!T$7:T$13,\"N/A\",0,1)","v":"N/A"},{"$f":"_xlfn.XLOOKUP($E55,'Activity 1'!$B$7:$B$13,'Activity 1'!U$7:U$13,\"N/A\",0,1)","v":"N/A"},{"$f":"_xlfn.XLOOKUP($E55,'Activity 1'!$B$7:$B$13,'Activity 1'!V$7:V$13,\"N/A\",0,1)","v":"N/A"},{"$f":"_xlfn.XLOOKUP($E55,'Activity 1'!$B$17:$B$23,'Activity 1'!C$17:C$23,\"N/A\",0,1)","v":"N/A"},{"$f":"_xlfn.XLOOKUP($E55,'Activity 1'!$B$17:$B$23,'Activity 1'!D$17:D$23,\"N/A\",0,1)","v":"N/A"},{"$f":"_xlfn.XLOOKUP($E55,'Activity 1'!$B$17:$B$23,'Activity 1'!E$17:E$23,\"N/A\",0,1)","v":"N/A"},{"$f":"_xlfn.XLOOKUP($E55,'Activity 1'!$B$17:$B$23,'Activity 1'!F$17:F$23,\"N/A\",0,1)","v":"N/A"},{"$f":"_xlfn.XLOOKUP($E55,'Activity 1'!$B$17:$B$23,'Activity 1'!G$17:G$23,\"N/A\",0,1)","v":"N/A"},{"$f":"_xlfn.XLOOKUP($E55,'Activity 1'!$B$17:$B$23,'Activity 1'!H$17:H$23,\"N/A\",0,1)","v":"N/A"},{"$f":"_xlfn.XLOOKUP($E55,'Activity 1'!$B$17:$B$23,'Activity 1'!I$17:I$23,\"N/A\",0,1)","v":"N/A"},{"$f":"_xlfn.XLOOKUP($E55,'Activity 1'!$B$17:$B$23,'Activity 1'!J$17:J$23,\"N/A\",0,1)","v":"N/A"},{"$f":"_xlfn.XLOOKUP($E55,'Activity 1'!$B$17:$B$23,'Activity 1'!K$17:K$23,\"N/A\",0,1)","v":"N/A"},{"$f":"_xlfn.XLOOKUP($E55,'Activity 1'!$B$17:$B$23,'Activity 1'!L$17:L$23,\"N/A\",0,1)","v":"N/A"},{"$f":"_xlfn.XLOOKUP($E55,'Activity 1'!$B$17:$B$23,'Activity 1'!M$17:M$23,\"N/A\",0,1)","v":"N/A"},{"$f":"_xlfn.XLOOKUP($E55,'Activity 1'!$B$17:$B$23,'Activity 1'!O$17:O$23,\"N/A\",0,1)","v":"N/A"},{"$f":"_xlfn.XLOOKUP($E55,'Activity 1'!$B$17:$B$23,'Activity 1'!Q$17:Q$23,\"N/A\",0,1)","v":"N/A"},{"$f":"_xlfn.XLOOKUP($E55,'Activity 2'!$B$7:$B$13,'Activity 2'!$A$7:$A$13,\"No\",0,1)","v":"No"},{"$f":"_xlfn.XLOOKUP($E55,'Activity 2'!B$7:B$13,'Activity 2'!H$7:H$13,\"N/A\",0)","v":"N/A"},{"$f":"_xlfn.XLOOKUP($E55,'Activity 2'!C$7:C$13,'Activity 2'!I$7:I$13,\"N/A\",0)","v":"N/A"},{"$f":"_xlfn.XLOOKUP($E55,'Activity 2'!D$7:D$13,'Activity 2'!J$7:J$13,\"N/A\",0)","v":"N/A"},{"$f":"_xlfn.XLOOKUP($E55,'Activity 2'!E$7:E$13,'Activity 2'!K$7:K$13,\"N/A\",0)","v":"N/A"},{"$f":"_xlfn.XLOOKUP($E55,'Activity 2'!F$7:F$13,'Activity 2'!L$7:L$13,\"N/A\",0)","v":"N/A"},{"$f":"_xlfn.XLOOKUP($E55,'Activity 2'!G$7:G$13,'Activity 2'!M$7:M$13,\"N/A\",0)","v":"N/A"},{"$f":"_xlfn.XLOOKUP($E55,'Activity 2'!H$7:H$13,'Activity 2'!N$7:N$13,\"N/A\",0)","v":"N/A"},{"$f":"_xlfn.XLOOKUP($E55,'Activity 2'!I$7:I$13,'Activity 2'!O$7:O$13,\"N/A\",0)","v":"N/A"},{"$f":"_xlfn.XLOOKUP($E55,'Activity 2'!J$7:J$13,'Activity 2'!P$7:P$13,\"N/A\",0)","v":"N/A"},{"$f":"_xlfn.XLOOKUP($E55,'Activity 2'!K$7:K$13,'Activity 2'!Q$7:Q$13,\"N/A\",0)","v":"N/A"},{"$f":"_xlfn.XLOOKUP($E55,'Activity 2'!L$7:L$13,'Activity 2'!R$7:R$13,\"N/A\",0)","v":"N/A"},{"$f":"_xlfn.XLOOKUP($E55,'Activity 2'!M$7:M$13,'Activity 2'!S$7:S$13,\"N/A\",0)","v":"N/A"},{"$f":"_xlfn.XLOOKUP($E55,'Activity 2'!N$7:N$13,'Activity 2'!T$7:T$13,\"N/A\",0)","v":"N/A"},{"$f":"_xlfn.XLOOKUP($E55,'Activity 2'!O$7:O$13,'Activity 2'!U$7:U$13,\"N/A\",0)","v":"N/A"},{"$f":"_xlfn.XLOOKUP($E55,'Activity 2'!P$7:P$13,'Activity 2'!V$7:V$13,\"N/A\",0)","v":"N/A"},{"$f":"_xlfn.XLOOKUP($E55,'Activity 2'!$B$17:$B$23,'Activity 2'!C$17:C$23,\"N/A\",0,1)","v":"N/A"},{"$f":"_xlfn.XLOOKUP($E55,'Activity 2'!$B$17:$B$23,'Activity 2'!D$17:D$23,\"N/A\",0,1)","v":"N/A"},{"$f":"_xlfn.XLOOKUP($E55,'Activity 2'!$B$17:$B$23,'Activity 2'!E$17:E$23,\"N/A\",0,1)","v":"N/A"},{"$f":"_xlfn.XLOOKUP($E55,'Activity 2'!$B$17:$B$23,'Activity 2'!F$17:F$23,\"N/A\",0,1)","v":"N/A"},{"$f":"_xlfn.XLOOKUP($E55,'Activity 2'!$B$17:$B$23,'Activity 2'!G$17:G$23,\"N/A\",0,1)","v":"N/A"},{"$f":"_xlfn.XLOOKUP($E55,'Activity 2'!$B$17:$B$23,'Activity 2'!H$17:H$23,\"N/A\",0,1)","v":"N/A"},{"$f":"_xlfn.XLOOKUP($E55,'Activity 2'!$B$17:$B$23,'Activity 2'!I$17:I$23,\"N/A\",0,1)","v":"N/A"},{"$f":"_xlfn.XLOOKUP($E55,'Activity 2'!$B$17:$B$23,'Activity 2'!J$17:J$23,\"N/A\",0,1)","v":"N/A"},{"$f":"_xlfn.XLOOKUP($E55,'Activity 2'!$B$17:$B$23,'Activity 2'!K$17:K$23,\"N/A\",0,1)","v":"N/A"},{"$f":"_xlfn.XLOOKUP($E55,'Activity 2'!$B$17:$B$23,'Activity 2'!L$17:L$23,\"N/A\",0,1)","v":"N/A"},{"$f":"_xlfn.XLOOKUP($E55,'Activity 2'!$B$17:$B$23,'Activity 2'!M$17:M$23,\"N/A\",0,1)","v":"N/A"},{"$f":"_xlfn.XLOOKUP($E55,'Activity 2'!$B$17:$B$23,'Activity 2'!O$17:O$23,\"N/A\",0,1)","v":"N/A"},{"$f":"_xlfn.XLOOKUP($E55,'Activity 2'!$B$17:$B$23,'Activity 2'!Q$17:Q$23,\"N/A\",0,1)","v":"N/A"},null,{"$f":"_xlfn.XLOOKUP($E55,'Activity 3'!$B$8:$B$14,'Activity 3'!K$8:K$14,\"N/A\",0,1)","v":"N/A"},{"$f":"_xlfn.XLOOKUP($E55,'Activity 3'!$B$8:$B$14,'Activity 3'!L$8:L$14,\"N/A\",0,1)","v":"N/A"},{"$f":"_xlfn.XLOOKUP($E55,'Activity 3'!$B$8:$B$14,'Activity 3'!M$8:M$14,\"N/A\",0,1)","v":"N/A"},{"$f":"_xlfn.XLOOKUP($E55,'Activity 3'!$B$8:$B$14,'Activity 3'!N$8:N$14,\"N/A\",0,1)","v":"N/A"},{"$f":"_xlfn.XLOOKUP($E55,'Activity 3'!$B$8:$B$14,'Activity 3'!O$8:O$14,\"N/A\",0,1)","v":"N/A"},{"$f":"_xlfn.XLOOKUP($E55,'Activity 3'!$B$8:$B$14,'Activity 3'!R$8:R$14,\"N/A\",0,1)","v":"N/A"},{"$f":"_xlfn.XLOOKUP($E55,'Activity 4'!$B$8:$B$14,'Activity 4'!$A$8:$A$14,\"No\",0,1)","v":"No"},{"$f":"_xlfn.XLOOKUP($E55,'Activity 4'!$B$8:$B$14,'Activity 4'!L$8:L$14,\"N/A\",0,1)","v":"N/A"},{"$f":"_xlfn.XLOOKUP($E55,'Activity 4'!$B$8:$B$14,'Activity 4'!I$8:I$14,\"N/A\",0,1)","v":"N/A"},{"$f":"_xlfn.XLOOKUP($E55,'Activity 4'!$B$8:$B$14,'Activity 4'!M$8:M$14,\"N/A\",0,1)","v":"N/A"},{"$f":"_xlfn.XLOOKUP($E55,'Activity 5'!$B$8:$B$14,'Activity 5'!$A$8:$A$14,\"No\",0,1)","v":"No"},{"$f":"_xlfn.XLOOKUP($E55,'Activity 5'!$B$8:$B$14,'Activity 5'!J$8:J$14,\"N/A\",0,1)","v":"N/A"},{"$f":"_xlfn.XLOOKUP($E55,'Activity 5'!$B$8:$B$14,'Activity 5'!K$8:K$14,\"N/A\",0,1)","v":"N/A"},{"$f":"_xlfn.XLOOKUP($E55,'Activity 5'!$B$8:$B$14,'Activity 5'!N$8:N$14,\"N/A\",0,1)","v":"N/A"},{"$f":"_xlfn.XLOOKUP($E55,'Activity 5'!$B$8:$B$14,'Activity 5'!O$8:O$14,\"N/A\",0,1)","v":"N/A"},{"$f":"_xlfn.XLOOKUP($E55,'Activity 5'!$B$8:$B$14,'Activity 5'!P$8:P$14,\"N/A\",0,1)","v":"N/A"},{"$f":"_xlfn.XLOOKUP($E55,'Activity 5'!$B$8:$B$14,'Activity 5'!Q$8:Q$14,\"N/A\",0,1)","v":"N/A"},{"$f":"_xlfn.XLOOKUP($E55,'Activity 5'!$B$8:$B$14,'Activity 5'!R$8:R$14,\"N/A\",0,1)","v":"N/A"},{"$f":"_xlfn.XLOOKUP($E55,'Activity 6'!$B$7:$B$13,'Activity 6'!A$7:A$13,\"No\",0,1)","v":"No"},{"$f":"_xlfn.XLOOKUP($E55,'Activity 6'!$B$7:$B$13,'Activity 6'!K$7:K$13,\"N/A\",0,1)","v":"N/A"},{"$f":"_xlfn.XLOOKUP($E55,'Activity 6'!$B$7:$B$13,'Activity 6'!L$7:L$13,\"N/A\",0,1)","v":"N/A"},{"$f":"_xlfn.XLOOKUP($E55,'Activity 6'!$B$7:$B$13,'Activity 6'!M$7:M$13,\"N/A\",0,1)","v":"N/A"},{"$f":"_xlfn.XLOOKUP($E55,'Activity 6'!$B$7:$B$13,'Activity 6'!N$7:N$13,\"N/A\",0,1)","v":"N/A"},{"$f":"_xlfn.XLOOKUP($E55,'Activity 6'!$B$7:$B$13,'Activity 6'!O$7:O$13,\"N/A\",0,1)","v":"N/A"},{"$f":"_xlfn.XLOOKUP($E55,'Activity 6'!$B$7:$B$13,'Activity 6'!P$7:P$13,\"N/A\",0,1)","v":"N/A"},{"$f":"_xlfn.XLOOKUP($E55,'Activity 6'!$B$7:$B$13,'Activity 6'!Q$7:Q$13,\"N/A\",0,1)","v":"N/A"},{"$f":"_xlfn.XLOOKUP($E55,'Activity 6'!$B$7:$B$13,'Activity 6'!R$7:R$13,\"N/A\",0,1)","v":"N/A"},{"$f":"_xlfn.XLOOKUP($E55,'Activity 6'!$B$7:$B$13,'Activity 6'!S$7:S$13,\"N/A\",0,1)","v":"N/A"},{"$f":"_xlfn.XLOOKUP($E55,'Activity 6'!$B$7:$B$13,'Activity 6'!T$7:T$13,\"N/A\",0,1)","v":"N/A"},{"$f":"_xlfn.XLOOKUP($E55,'Activity 6'!$B$7:$B$13,'Activity 6'!U$7:U$13,\"N/A\",0,1)","v":"N/A"},{"$f":"_xlfn.XLOOKUP($E55,'Activity 6'!$B$22:$B$28,'Activity 6'!C$22:C$28,\"N/A\",0,1)","v":"N/A"},{"$f":"_xlfn.XLOOKUP($E55,'Activity 6'!$B$22:$B$28,'Activity 6'!D$22:D$28,\"N/A\",0,1)","v":"N/A"},{"$f":"_xlfn.XLOOKUP($E55,'Activity 6'!$B$22:$B$28,'Activity 6'!E$22:E$28,\"N/A\",0,1)","v":"N/A"},{"$f":"_xlfn.XLOOKUP($E55,'Activity 6'!$B$22:$B$28,'Activity 6'!F$22:F$28,\"N/A\",0,1)","v":"N/A"},{"$f":"_xlfn.XLOOKUP($E55,'Activity 6'!$B$22:$B$28,'Activity 6'!G$22:G$28,\"N/A\",0,1)","v":"N/A"},{"$f":"_xlfn.XLOOKUP($E55,'Activity 6'!$B$22:$B$28,'Activity 6'!H$22:H$28,\"N/A\",0,1)","v":"N/A"},{"$f":"_xlfn.XLOOKUP($E55,'Activity 6'!$B$22:$B$28,'Activity 6'!I$22:I$28,\"N/A\",0,1)","v":"N/A"},{"$f":"_xlfn.XLOOKUP($E55,'Activity 6'!$B$22:$B$28,'Activity 6'!J$22:J$28,\"N/A\",0,1)","v":"N/A"},{"$f":"_xlfn.XLOOKUP($E55,'Activity 6'!$B$22:$B$28,'Activity 6'!K$22:K$28,\"N/A\",0,1)","v":"N/A"},{"$f":"_xlfn.XLOOKUP($E55,'Activity 6'!$B$22:$B$28,'Activity 6'!L$22:L$28,\"N/A\",0,1)","v":"N/A"},{"$f":"_xlfn.XLOOKUP($E55,'Activity 6'!$B$22:$B$28,'Activity 6'!M$22:M$28,\"N/A\",0,1)","v":"N/A"},{"$f":"_xlfn.XLOOKUP($E55,'Activity 6'!$B$22:$B$28,'Activity 6'!N$22:N$28,\"N/A\",0,1)","v":"N/A"},{"$f":"_xlfn.XLOOKUP($E55,'Activity 6'!$B$32:$B$38,'Activity 6'!C$32:C$38,\"N/A\",0,1)","v":"N/A"},{"$f":"_xlfn.XLOOKUP($E55,'Activity 6'!$B$32:$B$38,'Activity 6'!D$32:D$38,\"N/A\",0,1)","v":"N/A"},{"$f":"_xlfn.XLOOKUP($E55,'Activity 6'!$B$32:$B$38,'Activity 6'!E$32:E$38,\"N/A\",0,1)","v":"N/A"},{"$f":"_xlfn.XLOOKUP($E55,'Activity 6'!$B$32:$B$38,'Activity 6'!F$32:F$38,\"N/A\",0,1)","v":"N/A"},{"$f":"_xlfn.XLOOKUP($E55,'Activity 6'!$B$32:$B$38,'Activity 6'!G$32:G$38,\"N/A\",0,1)","v":"N/A"},{"$f":"_xlfn.XLOOKUP($E55,'Activity 6'!$B$32:$B$38,'Activity 6'!H$32:H$38,\"N/A\",0,1)","v":"N/A"},{"$f":"_xlfn.XLOOKUP($E55,'Activity 6'!$B$32:$B$38,'Activity 6'!I$32:I$38,\"N/A\",0,1)","v":"N/A"},{"$f":"_xlfn.XLOOKUP($E55,'Activity 6'!$B$32:$B$38,'Activity 6'!J$32:J$38,\"N/A\",0,1)","v":"N/A"},{"$f":"_xlfn.XLOOKUP($E55,'Activity 6'!$B$32:$B$38,'Activity 6'!K$32:K$38,\"N/A\",0,1)","v":"N/A"},{"$f":"_xlfn.XLOOKUP($E55,'Activity 6'!$B$32:$B$38,'Activity 6'!M$32:M$38,\"N/A\",0,1)","v":"N/A"},{"$f":"_xlfn.XLOOKUP($E55,'Activity 7'!$B$7:$B$13,'Activity 7'!$A$7:$A$13,\"No\",0,1)","v":"No"},{"$f":"_xlfn.XLOOKUP($E55,'Activity 7'!$B$7:$B$13,'Activity 7'!M$7:M$13,\"N/A\",0,1)","v":"N/A"},{"$f":"_xlfn.XLOOKUP($E55,'Activity 7'!$B$7:$B$13,'Activity 7'!K$7:K$13,\"N/A\",0,1)","v":"N/A"},{"$f":"_xlfn.XLOOKUP($E55,'Activity 7'!$B$7:$B$13,'Activity 7'!N$7:N$13,\"N/A\",0,1)","v":"N/A"},{"$f":"_xlfn.XLOOKUP($E55,'Activity 7'!$B$7:$B$13,'Activity 7'!O$7:O$13,\"N/A\",0,1)","v":"N/A"},{"$f":"_xlfn.XLOOKUP($E55,'Activity 7'!$B$7:$B$13,'Activity 7'!P$7:P$13,\"N/A\",0,1)","v":"N/A"},{"$f":"_xlfn.XLOOKUP($E55,'Activity 7'!$B$7:$B$13,'Activity 7'!Q$7:Q$13,\"N/A\",0,1)","v":"N/A"},{"$f":"_xlfn.XLOOKUP($E55,'Activity 7'!$B$7:$B$13,'Activity 7'!R$7:R$13,\"N/A\",0,1)","v":"N/A"},{"$f":"_xlfn.XLOOKUP($E55,'Activity 7'!$B$7:$B$13,'Activity 7'!S$7:S$13,\"N/A\",0,1)","v":"N/A"},{"$f":"_xlfn.XLOOKUP($E55,'Activity 7'!$B$7:$B$13,'Activity 7'!T$7:T$13,\"N/A\",0,1)","v":"N/A"},{"$f":"_xlfn.XLOOKUP($E55,'Activity 7'!$B$7:$B$13,'Activity 7'!U$7:U$13,\"N/A\",0,1)","v":"N/A"},{"$f":"_xlfn.XLOOKUP($E55,'Activity 7'!$B$7:$B$13,'Activity 7'!V$7:V$13,\"N/A\",0,1)","v":"N/A"},{"$f":"_xlfn.XLOOKUP($E55,'Activity 7'!$B$17:$B$23,'Activity 7'!E$17:E$23,\"N/A\",0,1)","v":"N/A"},{"$f":"_xlfn.XLOOKUP($E55,'Activity 7'!$B$17:$B$23,'Activity 7'!G$17:G$23,\"N/A\",0,1)","v":"N/A"},{"$f":"_xlfn.XLOOKUP($E55,'Activity 7'!$B$17:$B$23,'Activity 7'!I$17:I$23,\"N/A\",0,1)","v":"N/A"},{"$f":"_xlfn.XLOOKUP($E55,'Activity 7'!$B$17:$B$23,'Activity 7'!J$17:J$23,\"N/A\",0,1)","v":"N/A"},{"$f":"_xlfn.XLOOKUP($E55,'Activity 7'!$B$17:$B$23,'Activity 7'!K$17:K$23,\"N/A\",0,1)","v":"N/A"},{"$f":"_xlfn.XLOOKUP($E55,'Activity 7'!$B$17:$B$23,'Activity 7'!L$17:L$23,\"N/A\",0,1)","v":"N/A"},{"$f":"_xlfn.XLOOKUP($E55,'Activity 7'!$B$17:$B$23,'Activity 7'!M$17:M$23,\"N/A\",0,1)","v":"N/A"},{"$f":"_xlfn.XLOOKUP($E55,'Activity 7'!$B$17:$B$23,'Activity 7'!N$17:N$23,\"N/A\",0,1)","v":"N/A"},{"$f":"_xlfn.XLOOKUP($E55,'Activity 7'!$B$17:$B$23,'Activity 7'!P$17:P$23,\"N/A\",0,1)","v":"N/A"},{"$f":"_xlfn.XLOOKUP($E55,'Activity 8'!$B$7:$B$13,'Activity 8'!A$7:A$13,\"No\",0,1)","v":"No"},{"$f":"_xlfn.XLOOKUP($E55,'Activity 8'!$B$7:$B$13,'Activity 8'!I$7:I$13,\"N/A\",0,1)","v":"N/A"},{"$f":"_xlfn.XLOOKUP($E55,'Activity 8'!$B$7:$B$13,'Activity 8'!J$7:J$13,\"N/A\",0,1)","v":"N/A"},{"$f":"_xlfn.XLOOKUP($E55,'Activity 8'!$B$7:$B$13,'Activity 8'!K$7:K$13,\"N/A\",0,1)","v":"N/A"},{"$f":"_xlfn.XLOOKUP($E55,'Activity 8'!$B$7:$B$13,'Activity 8'!L$7:L$13,\"N/A\",0,1)","v":"N/A"},{"$f":"_xlfn.XLOOKUP($E55,'Activity 8'!$B$7:$B$13,'Activity 8'!M$7:M$13,\"N/A\",0,1)","v":"N/A"},{"$f":"_xlfn.XLOOKUP($E55,'Activity 8'!$B$7:$B$13,'Activity 8'!N$7:N$13,\"N/A\",0,1)","v":"N/A"},{"$f":"_xlfn.XLOOKUP($E55,'Activity 8'!$B$7:$B$13,'Activity 8'!O$7:O$13,\"N/A\",0,1)","v":"N/A"},{"$f":"_xlfn.XLOOKUP($E55,'Activity 8'!$B$7:$B$13,'Activity 8'!P$7:P$13,\"N/A\",0,1)","v":"N/A"},{"$f":"_xlfn.XLOOKUP($E55,'Activity 8'!$B$7:$B$13,'Activity 8'!Q$7:Q$13,\"N/A\",0,1)","v":"N/A"},{"$f":"_xlfn.XLOOKUP($E55,'Activity 8'!$B$7:$B$13,'Activity 8'!R$7:R$13,\"N/A\",0,1)","v":"N/A"},{"$f":"_xlfn.XLOOKUP($E55,'Activity 8'!$B$7:$B$13,'Activity 8'!S$7:S$13,\"N/A\",0,1)","v":"N/A"},{"$f":"_xlfn.XLOOKUP($E55,'Activity 8'!$B$7:$B$13,'Activity 8'!T$7:T$13,\"N/A\",0,1)","v":"N/A"},{"$f":"_xlfn.XLOOKUP($E55,'Activity 8'!$B$7:$B$13,'Activity 8'!U$7:U$13,\"N/A\",0,1)","v":"N/A"},{"$f":"_xlfn.XLOOKUP($E55,'Activity 8'!$B$7:$B$13,'Activity 8'!V$7:V$13,\"N/A\",0,1)","v":"N/A"},{"$f":"_xlfn.XLOOKUP($E55,'Activity 8'!$B$17:$B$23,'Activity 8'!D$17:D$23,\"N/A\",0,1)","v":"N/A"},{"$f":"_xlfn.XLOOKUP($E55,'Activity 8'!$B$17:$B$23,'Activity 8'!E$17:E$23,\"N/A\",0,1)","v":"N/A"},{"$f":"_xlfn.XLOOKUP($E55,'Activity 8'!$B$17:$B$23,'Activity 8'!F$17:F$23,\"N/A\",0,1)","v":"N/A"},{"$f":"_xlfn.XLOOKUP($E55,'Activity 8'!$B$17:$B$23,'Activity 8'!G$17:G$23,\"N/A\",0,1)","v":"N/A"},{"$f":"_xlfn.XLOOKUP($E55,'Activity 8'!$B$17:$B$23,'Activity 8'!H$17:H$23,\"N/A\",0,1)","v":"N/A"},{"$f":"_xlfn.XLOOKUP($E55,'Activity 8'!$B$17:$B$23,'Activity 8'!I$17:I$23,\"N/A\",0,1)","v":"N/A"},{"$f":"_xlfn.XLOOKUP($E55,'Activity 8'!$B$17:$B$23,'Activity 8'!J$17:J$23,\"N/A\",0,1)","v":"N/A"},{"$f":"_xlfn.XLOOKUP($E55,'Activity 8'!$B$17:$B$23,'Activity 8'!K$17:K$23,\"N/A\",0,1)","v":"N/A"},{"$f":"_xlfn.XLOOKUP($E55,'Activity 8'!$B$17:$B$23,'Activity 8'!L$17:L$23,\"N/A\",0,1)","v":"N/A"},{"$f":"_xlfn.XLOOKUP($E55,'Activity 8'!$B$17:$B$23,'Activity 8'!M$17:M$23,\"N/A\",0,1)","v":"N/A"},{"$f":"_xlfn.XLOOKUP($E55,'Activity 8'!$B$17:$B$23,'Activity 8'!N$17:N$23,\"N/A\",0,1)","v":"N/A"},{"$f":"_xlfn.XLOOKUP($E55,'Activity 8'!$B$17:$B$23,'Activity 8'!P$17:P$23,\"N/A\",0,1)","v":"N/A"},{"$f":"_xlfn.XLOOKUP(E55,'Activity 9'!$B$7:$B$13,'Activity 9'!$A$7:$A$13,\"No\",0,1)","v":"No"},{"$f":"_xlfn.XLOOKUP($E55,'Activity 9'!$B$7:$B$13,'Activity 9'!J$7:J$13,\"N/A\",0,1)","v":"N/A"},{"$f":"_xlfn.XLOOKUP($E55,'Activity 9'!$B$7:$B$13,'Activity 9'!K$7:K$13,\"N/A\",0,1)","v":"N/A"},{"$f":"_xlfn.XLOOKUP($E55,'Activity 9'!$B$7:$B$13,'Activity 9'!L$7:L$13,\"N/A\",0,1)","v":"N/A"},{"$f":"_xlfn.XLOOKUP($E55,'Activity 9'!$B$7:$B$13,'Activity 9'!M$7:M$13,\"N/A\",0,1)","v":"N/A"},{"$f":"_xlfn.XLOOKUP($E55,'Activity 9'!$B$7:$B$13,'Activity 9'!N$7:N$13,\"N/A\",0,1)","v":"N/A"},{"$f":"_xlfn.XLOOKUP($E55,'Activity 9'!$B$7:$B$13,'Activity 9'!O$7:O$13,\"N/A\",0,1)","v":"N/A"},{"$f":"_xlfn.XLOOKUP($E55,'Activity 9'!$B$7:$B$13,'Activity 9'!P$7:P$13,\"N/A\",0,1)","v":"N/A"},{"$f":"_xlfn.XLOOKUP($E55,'Activity 9'!$B$7:$B$13,'Activity 9'!Q$7:Q$13,\"N/A\",0,1)","v":"N/A"},{"$f":"_xlfn.XLOOKUP($E55,'Activity 9'!$B$7:$B$13,'Activity 9'!R$7:R$13,\"N/A\",0,1)","v":"N/A"},{"$f":"_xlfn.XLOOKUP($E55,'Activity 9'!$B$7:$B$13,'Activity 9'!S$7:S$13,\"N/A\",0,1)","v":"N/A"},{"$f":"_xlfn.XLOOKUP($E55,'Activity 9'!$B$7:$B$13,'Activity 9'!T$7:T$13,\"N/A\",0,1)","v":"N/A"},{"$f":"_xlfn.XLOOKUP($E55,'Activity 9'!$B$17:$B$23,'Activity 9'!E$17:E$23,\"N/A\",0,1)","v":"N/A"},{"$f":"_xlfn.XLOOKUP($E55,'Activity 9'!$B$17:$B$23,'Activity 9'!F$17:F$23,\"N/A\",0,1)","v":"N/A"},{"$f":"_xlfn.XLOOKUP($E55,'Activity 9'!$B$17:$B$23,'Activity 9'!G$17:G$23,\"N/A\",0,1)","v":"N/A"},{"$f":"_xlfn.XLOOKUP($E55,'Activity 9'!$B$17:$B$23,'Activity 9'!H$17:H$23,\"N/A\",0,1)","v":"N/A"},{"$f":"_xlfn.XLOOKUP($E55,'Activity 9'!$B$17:$B$23,'Activity 9'!I$17:I$23,\"N/A\",0,1)","v":"N/A"},{"$f":"_xlfn.XLOOKUP($E55,'Activity 9'!$B$17:$B$23,'Activity 9'!J$17:J$23,\"N/A\",0,1)","v":"N/A"},{"$f":"_xlfn.XLOOKUP($E55,'Activity 9'!$B$17:$B$23,'Activity 9'!K$17:K$23,\"N/A\",0,1)","v":"N/A"},{"$f":"_xlfn.XLOOKUP($E55,'Activity 9'!$B$17:$B$23,'Activity 9'!L$17:L$23,\"N/A\",0,1)","v":"N/A"},{"$f":"_xlfn.XLOOKUP($E55,'Activity 9'!$B$17:$B$23,'Activity 9'!N$17:N$23,\"N/A\",0,1)","v":"N/A"},{"$f":"_xlfn.XLOOKUP($E55,'Activity 9'!$B$17:$B$23,'Activity 9'!O$17:O$23,\"N/A\",0,1)","v":"N/A"},{"$f":"_xlfn.XLOOKUP($E55,'Activity 9'!$B$17:$B$23,'Activity 9'!Q$17:Q$23,\"N/A\",0,1)","v":"N/A"},{"$f":"_xlfn.XLOOKUP($E55,'Activity 10'!$B$7:$B$13,'Activity 10'!A$7:A$13,\"No\",0,1)","v":"No"},{"$f":"_xlfn.XLOOKUP($E55,'Activity 10'!$B$7:$B$13,'Activity 10'!J$7:J$13,\"N/A\",0,1)","v":"N/A"},{"$f":"_xlfn.XLOOKUP($E55,'Activity 10'!$B$7:$B$13,'Activity 10'!K$7:K$13,\"N/A\",0,1)","v":"N/A"},{"$f":"_xlfn.XLOOKUP($E55,'Activity 10'!$B$7:$B$13,'Activity 10'!L$7:L$13,\"N/A\",0,1)","v":"N/A"},{"$f":"_xlfn.XLOOKUP($E55,'Activity 10'!$B$7:$B$13,'Activity 10'!M$7:M$13,\"N/A\",0,1)","v":"N/A"},{"$f":"_xlfn.XLOOKUP($E55,'Activity 10'!$B$7:$B$13,'Activity 10'!N$7:N$13,\"N/A\",0,1)","v":"N/A"},{"$f":"_xlfn.XLOOKUP($E55,'Activity 10'!$B$7:$B$13,'Activity 10'!O$7:O$13,\"N/A\",0,1)","v":"N/A"},{"$f":"_xlfn.XLOOKUP($E55,'Activity 10'!$B$7:$B$13,'Activity 10'!P$7:P$13,\"N/A\",0,1)","v":"N/A"},{"$f":"_xlfn.XLOOKUP($E55,'Activity 10'!$B$7:$B$13,'Activity 10'!Q$7:Q$13,\"N/A\",0,1)","v":"N/A"},{"$f":"_xlfn.XLOOKUP($E55,'Activity 10'!$B$7:$B$13,'Activity 10'!R$7:R$13,\"N/A\",0,1)","v":"N/A"},{"$f":"_xlfn.XLOOKUP($E55,'Activity 10'!$B$7:$B$13,'Activity 10'!S$7:S$13,\"N/A\",0,1)","v":"N/A"},{"$f":"_xlfn.XLOOKUP($E55,'Activity 10'!$B$7:$B$13,'Activity 10'!T$7:T$13,\"N/A\",0,1)","v":"N/A"},{"$f":"_xlfn.XLOOKUP($E55,'Activity 10'!$B$7:$B$13,'Activity 10'!U$7:U$13,\"N/A\",0,1)","v":"N/A"},{"$f":"_xlfn.XLOOKUP($E55,'Activity 10'!$B$7:$B$13,'Activity 10'!V$7:V$13,\"N/A\",0,1)","v":"N/A"},{"$f":"_xlfn.XLOOKUP($E55,'Activity 10'!$B$17:$B$23,'Activity 10'!E$17:E$23,\"N/A\",0,1)","v":"N/A"},{"$f":"_xlfn.XLOOKUP($E55,'Activity 10'!$B$17:$B$23,'Activity 10'!F$17:F$23,\"N/A\",0,1)","v":"N/A"},{"$f":"_xlfn.XLOOKUP($E55,'Activity 10'!$B$17:$B$23,'Activity 10'!G$17:G$23,\"N/A\",0,1)","v":"N/A"},{"$f":"_xlfn.XLOOKUP($E55,'Activity 10'!$B$17:$B$23,'Activity 10'!H$17:H$23,\"N/A\",0,1)","v":"N/A"},{"$f":"_xlfn.XLOOKUP($E55,'Activity 10'!$B$17:$B$23,'Activity 10'!I$17:I$23,\"N/A\",0,1)","v":"N/A"},{"$f":"_xlfn.XLOOKUP($E55,'Activity 10'!$B$17:$B$23,'Activity 10'!J$17:J$23,\"N/A\",0,1)","v":"N/A"},{"$f":"_xlfn.XLOOKUP($E55,'Activity 10'!$B$17:$B$23,'Activity 10'!K$17:K$23,\"N/A\",0,1)","v":"N/A"},{"$f":"_xlfn.XLOOKUP($E55,'Activity 10'!$B$17:$B$23,'Activity 10'!L$17:L$23,\"N/A\",0,1)","v":"N/A"},{"$f":"_xlfn.XLOOKUP($E55,'Activity 10'!$B$17:$B$23,'Activity 10'!M$17:M$23,\"N/A\",0,1)","v":"N/A"},{"$f":"_xlfn.XLOOKUP($E55,'Activity 10'!$B$17:$B$23,'Activity 10'!N$17:N$23,\"N/A\",0,1)","v":"N/A"},{"$f":"_xlfn.XLOOKUP($E55,'Activity 10'!$B$17:$B$23,'Activity 10'!P$17:P$23,\"N/A\",0,1)","v":"N/A"},{"$f":"_xlfn.XLOOKUP($E55,'Competitive Activity 1'!B$7:B$13,'Competitive Activity 1'!A$7:A$13,\"No\",0,1)","v":"No"},{"$f":"_xlfn.XLOOKUP($E55,'Competitive Activity 1'!$B$7:$B$13,'Competitive Activity 1'!H$7:H$13,\"N/A\",0,1)","v":"N/A"},{"$f":"_xlfn.XLOOKUP($E55,'Competitive Activity 1'!$B$7:$B$13,'Competitive Activity 1'!I$7:I$13,\"N/A\",0,1)","v":"N/A"},{"$f":"_xlfn.XLOOKUP($E55,'Competitive Activity 1'!$B$7:$B$13,'Competitive Activity 1'!J$7:J$13,\"N/A\",0,1)","v":"N/A"},{"$f":"_xlfn.XLOOKUP($E55,'Competitive Activity 1'!$B$7:$B$13,'Competitive Activity 1'!K$7:K$13,\"N/A\",0,1)","v":"N/A"},{"$f":"_xlfn.XLOOKUP($E55,'Competitive Activity 1'!$B$7:$B$13,'Competitive Activity 1'!L$7:L$13,\"N/A\",0,1)","v":"N/A"},{"$f":"_xlfn.XLOOKUP($E55,'Competitive Activity 1'!$B$7:$B$13,'Competitive Activity 1'!M$7:M$13,\"N/A\",0,1)","v":"N/A"},{"$f":"_xlfn.XLOOKUP($E55,'Competitive Activity 1'!$B$7:$B$13,'Competitive Activity 1'!N$7:N$13,\"N/A\",0,1)","v":"N/A"},{"$f":"_xlfn.XLOOKUP($E55,'Competitive Activity 1'!$B$7:$B$13,'Competitive Activity 1'!O$7:O$13,\"N/A\",0,1)","v":"N/A"},{"$f":"_xlfn.XLOOKUP($E55,'Competitive Activity 1'!$B$7:$B$13,'Competitive Activity 1'!P$7:P$13,\"N/A\",0,1)","v":"N/A"},{"$f":"_xlfn.XLOOKUP($E55,'Competitive Activity 1'!$B$7:$B$13,'Competitive Activity 1'!Q$7:Q$13,\"N/A\",0,1)","v":"N/A"},{"$f":"_xlfn.XLOOKUP($E55,'Competitive Activity 1'!$B$7:$B$13,'Competitive Activity 1'!R$7:R$13,\"N/A\",0,1)","v":"N/A"},{"$f":"_xlfn.XLOOKUP($E55,'Competitive Activity 1'!$B$7:$B$13,'Competitive Activity 1'!S$7:S$13,\"N/A\",0,1)","v":"N/A"},{"$f":"_xlfn.XLOOKUP($E55,'Competitive Activity 1'!$B$7:$B$13,'Competitive Activity 1'!T$7:T$13,\"N/A\",0,1)","v":"N/A"},{"$f":"_xlfn.XLOOKUP($E55,'Competitive Activity 1'!$B$7:$B$13,'Competitive Activity 1'!U$7:U$13,\"N/A\",0,1)","v":"N/A"},{"$f":"_xlfn.XLOOKUP($E55,'Competitive Activity 1'!$B$17:$B$23,'Competitive Activity 1'!C$17:C$23,\"N/A\",0,1)","v":"N/A"},{"$f":"_xlfn.XLOOKUP($E55,'Competitive Activity 1'!$B$17:$B$23,'Competitive Activity 1'!D$17:D$23,\"N/A\",0,1)","v":"N/A"},{"$f":"_xlfn.XLOOKUP($E55,'Competitive Activity 1'!$B$17:$B$23,'Competitive Activity 1'!E$17:E$23,\"N/A\",0,1)","v":"N/A"},{"$f":"_xlfn.XLOOKUP($E55,'Competitive Activity 1'!$B$17:$B$23,'Competitive Activity 1'!F$17:F$23,\"N/A\",0,1)","v":"N/A"},{"$f":"_xlfn.XLOOKUP($E55,'Competitive Activity 1'!$B$17:$B$23,'Competitive Activity 1'!G$17:G$23,\"N/A\",0,1)","v":"N/A"},{"$f":"_xlfn.XLOOKUP($E55,'Competitive Activity 1'!$B$17:$B$23,'Competitive Activity 1'!H$17:H$23,\"N/A\",0,1)","v":"N/A"},{"$f":"_xlfn.XLOOKUP($E55,'Competitive Activity 1'!$B$17:$B$23,'Competitive Activity 1'!I$17:I$23,\"N/A\",0,1)","v":"N/A"},{"$f":"_xlfn.XLOOKUP($E55,'Competitive Activity 1'!$B$17:$B$23,'Competitive Activity 1'!J$17:J$23,\"N/A\",0,1)","v":"N/A"},{"$f":"_xlfn.XLOOKUP($E55,'Competitive Activity 1'!$B$17:$B$23,'Competitive Activity 1'!K$17:K$23,\"N/A\",0,1)","v":"N/A"},{"$f":"_xlfn.XLOOKUP($E55,'Competitive Activity 1'!$B$17:$B$23,'Competitive Activity 1'!M$17:M$23,\"N/A\",0,1)","v":"N/A"},{"$f":"_xlfn.XLOOKUP($E55,'Competitive Activity 1'!$B$17:$B$23,'Competitive Activity 1'!N$17:N$23,\"N/A\",0,1)","v":"N/A"},{"$f":"_xlfn.XLOOKUP($E55,'Competitive Activity 1'!$B$17:$B$23,'Competitive Activity 1'!P$17:P$23,\"N/A\",0,1)","v":"N/A"},{"$f":"_xlfn.XLOOKUP($E55,'Competitive Activity 2'!$B$7:$B$13,'Competitive Activity 2'!A$7:A$13,\"No\",0)","v":"No"},{"$f":"_xlfn.XLOOKUP($E55,'Competitive Activity 2'!$B$7:$B$13,'Competitive Activity 2'!L$7:L$13,\"N/A\",0)","v":"N/A"},{"$f":"_xlfn.XLOOKUP($E55,'Competitive Activity 2'!$B$7:$B$13,'Competitive Activity 2'!M$7:M$13,\"N/A\",0)","v":"N/A"},{"$f":"_xlfn.XLOOKUP($E55,'Competitive Activity 2'!$B$7:$B$13,'Competitive Activity 2'!N$7:N$13,\"N/A\",0)","v":"N/A"},{"$f":"_xlfn.XLOOKUP($E55,'Competitive Activity 2'!$B$7:$B$13,'Competitive Activity 2'!O$7:O$13,\"N/A\",0)","v":"N/A"},{"$f":"_xlfn.XLOOKUP($E55,'Competitive Activity 2'!$B$7:$B$13,'Competitive Activity 2'!P$7:P$13,\"N/A\",0)","v":"N/A"},{"$f":"_xlfn.XLOOKUP($E55,'Competitive Activity 2'!$B$7:$B$13,'Competitive Activity 2'!Q$7:Q$13,\"N/A\",0)","v":"N/A"},{"$f":"_xlfn.XLOOKUP($E55,'Competitive Activity 2'!$B$7:$B$13,'Competitive Activity 2'!R$7:R$13,\"N/A\",0)","v":"N/A"},{"$f":"_xlfn.XLOOKUP($E55,'Competitive Activity 2'!$B$7:$B$13,'Competitive Activity 2'!S$7:S$13,\"N/A\",0)","v":"N/A"},{"$f":"_xlfn.XLOOKUP($E55,'Competitive Activity 2'!$B$7:$B$13,'Competitive Activity 2'!T$7:T$13,\"N/A\",0)","v":"N/A"},{"$f":"_xlfn.XLOOKUP($E55,'Competitive Activity 2'!$B$7:$B$13,'Competitive Activity 2'!U$7:U$13,\"N/A\",0)","v":"N/A"},{"$f":"_xlfn.XLOOKUP($E55,'Competitive Activity 2'!$B$17:$B$23,'Competitive Activity 2'!D$17:D$23,\"N/A\",0)","v":"N/A"},{"$f":"_xlfn.XLOOKUP($E55,'Competitive Activity 2'!$B$17:$B$23,'Competitive Activity 2'!E$17:E$23,\"N/A\",0)","v":"N/A"},{"$f":"_xlfn.XLOOKUP($E55,'Competitive Activity 2'!$B$17:$B$23,'Competitive Activity 2'!F$17:F$23,\"N/A\",0)","v":"N/A"},{"$f":"_xlfn.XLOOKUP($E55,'Competitive Activity 2'!$B$17:$B$23,'Competitive Activity 2'!G$17:G$23,\"N/A\",0)","v":"N/A"},{"$f":"_xlfn.XLOOKUP($E55,'Competitive Activity 2'!$B$17:$B$23,'Competitive Activity 2'!H$17:H$23,\"N/A\",0)","v":"N/A"},{"$f":"_xlfn.XLOOKUP($E55,'Competitive Activity 2'!$B$17:$B$23,'Competitive Activity 2'!I$17:I$23,\"N/A\",0)","v":"N/A"},{"$f":"_xlfn.XLOOKUP($E55,'Competitive Activity 2'!$B$17:$B$23,'Competitive Activity 2'!J$17:J$23,\"N/A\",0)","v":"N/A"},{"$f":"_xlfn.XLOOKUP($E55,'Competitive Activity 2'!$B$17:$B$23,'Competitive Activity 2'!K$17:K$23,\"N/A\",0)","v":"N/A"},{"$f":"_xlfn.XLOOKUP($E55,'Competitive Activity 2'!$B$17:$B$23,'Competitive Activity 2'!L$17:L$23,\"N/A\",0)","v":"N/A"},{"$f":"_xlfn.XLOOKUP($E55,'Competitive Activity 2'!$B$17:$B$23,'Competitive Activity 2'!M$17:M$23,\"N/A\",0)","v":"N/A"},{"$f":"_xlfn.XLOOKUP($E55,'Competitive Activity 2'!$B$17:$B$23,'Competitive Activity 2'!N$17:N$23,\"N/A\",0)","v":"N/A"},{"$f":"_xlfn.XLOOKUP($E55,'Competitive Activity 2'!$B$27:$B$33,'Competitive Activity 2'!D$27:D$33,\"N/A\",0)","v":"N/A"},{"$f":"_xlfn.XLOOKUP($E55,'Competitive Activity 2'!$B$27:$B$33,'Competitive Activity 2'!E$27:E$33,\"N/A\",0)","v":"N/A"},{"$f":"_xlfn.XLOOKUP($E55,'Competitive Activity 2'!$B$27:$B$33,'Competitive Activity 2'!F$27:F$33,\"N/A\",0)","v":"N/A"},{"$f":"_xlfn.XLOOKUP($E55,'Competitive Activity 2'!$B$27:$B$33,'Competitive Activity 2'!G$27:G$33,\"N/A\",0)","v":"N/A"},{"$f":"_xlfn.XLOOKUP($E55,'Competitive Activity 2'!$B$27:$B$33,'Competitive Activity 2'!H$27:H$33,\"N/A\",0)","v":"N/A"},{"$f":"_xlfn.XLOOKUP($E55,'Competitive Activity 2'!$B$27:$B$33,'Competitive Activity 2'!I$27:I$33,\"N/A\",0)","v":"N/A"},{"$f":"_xlfn.XLOOKUP($E55,'Competitive Activity 2'!$B$27:$B$33,'Competitive Activity 2'!J$27:J$33,\"N/A\",0)","v":"N/A"},{"$f":"_xlfn.XLOOKUP($E55,'Competitive Activity 2'!$B$27:$B$33,'Competitive Activity 2'!K$27:K$33,\"N/A\",0)","v":"N/A"},{"$f":"_xlfn.XLOOKUP($E55,'Competitive Activity 2'!$B$27:$B$33,'Competitive Activity 2'!M$27:M$33,\"N/A\",0)","v":"N/A"}]
[{"$f":"'1-Cover Sheet'!$C$8","v":"Select One"},{"$f":"'1-Cover Sheet'!$F$8","v":"Select One"},{"$f":"'Summary Sheet'!$D$8","v":0},{"$f":"'Summary Sheet'!$D$10","v":0},{"$f":"'Drop Down Box'!B220","v":0},{"$f":"'Drop Down Box'!C220","v":0},{"$f":"'Drop Down Box'!D220","v":"Select One"},{"$f":"_xlfn.XLOOKUP(E56,'Drop Down Box'!$B$166:$B$249,'Drop Down Box'!$A$166:$A$249,\"Unknown\",0)","v":"Activity 1"},{"$f":"_xlfn.XLOOKUP($E56,'Activity 8'!$B$17:$B$23,'Activity 8'!$O$17:$O$23,\"N/A\",0)","v":"N/A"},{"$f":"_xlfn.XLOOKUP($E56,'Activity 8'!$B$17:$B$23,'Activity 8'!$P$17:$P$23,\"N/A\",0)","v":"N/A"},{"$f":"_xlfn.XLOOKUP($E56,'Activity 8'!$B$7:$B$13,'Activity 8'!$F$7:$F$13,\"N/A\",0)","v":"N/A"},{"$f":"_xlfn.XLOOKUP($E56,'Activity 8'!$B$7:$B$13,'Activity 8'!$G$7:$G$13,\"N/A\",0)","v":"N/A"},{"$f":"_xlfn.XLOOKUP($E56,'Activity 8'!$B$7:$B$13,'Activity 8'!H$7:H$13,\"N/A\",0)","v":"N/A"},{"$f":"_xlfn.XLOOKUP($E56,'Activity 1'!$B$7:$B$13,'Activity 1'!$A$7:$A$13,\"No\",0,1)","v":"No"},{"$f":"_xlfn.XLOOKUP($E56,'Activity 1'!$B$7:$B$13,'Activity 1'!$H$7:$H$13,\"N/A\",0,1)","v":"N/A"},{"$f":"_xlfn.XLOOKUP($E56,'Activity 1'!$B$7:$B$13,'Activity 1'!I$7:I$13,\"N/A\",0,1)","v":"N/A"},{"$f":"_xlfn.XLOOKUP($E56,'Activity 1'!$B$7:$B$13,'Activity 1'!J$7:J$13,\"N/A\",0,1)","v":"N/A"},{"$f":"_xlfn.XLOOKUP($E56,'Activity 1'!$B$7:$B$13,'Activity 1'!K$7:K$13,\"N/A\",0,1)","v":"N/A"},{"$f":"_xlfn.XLOOKUP($E56,'Activity 1'!$B$7:$B$13,'Activity 1'!L$7:L$13,\"N/A\",0,1)","v":"N/A"},{"$f":"_xlfn.XLOOKUP($E56,'Activity 1'!$B$7:$B$13,'Activity 1'!M$7:M$13,\"N/A\",0,1)","v":"N/A"},{"$f":"_xlfn.XLOOKUP($E56,'Activity 1'!$B$7:$B$13,'Activity 1'!N$7:N$13,\"N/A\",0,1)","v":"N/A"},0,{"$f":"_xlfn.XLOOKUP($E56,'Activity 1'!$B$7:$B$13,'Activity 1'!O$7:O$13,\"N/A\",0,1)","v":"N/A"},{"$f":"_xlfn.XLOOKUP($E56,'Activity 1'!$B$7:$B$13,'Activity 1'!P$7:P$13,\"N/A\",0,1)","v":"N/A"},{"$f":"_xlfn.XLOOKUP($E56,'Activity 1'!$B$7:$B$13,'Activity 1'!Q$7:Q$13,\"N/A\",0,1)","v":"N/A"},{"$f":"_xlfn.XLOOKUP($E56,'Activity 1'!$B$7:$B$13,'Activity 1'!R$7:R$13,\"N/A\",0,1)","v":"N/A"},{"$f":"_xlfn.XLOOKUP($E56,'Activity 1'!$B$7:$B$13,'Activity 1'!S$7:S$13,\"N/A\",0,1)","v":"N/A"},{"$f":"_xlfn.XLOOKUP($E56,'Activity 1'!$B$7:$B$13,'Activity 1'!T$7:T$13,\"N/A\",0,1)","v":"N/A"},{"$f":"_xlfn.XLOOKUP($E56,'Activity 1'!$B$7:$B$13,'Activity 1'!U$7:U$13,\"N/A\",0,1)","v":"N/A"},{"$f":"_xlfn.XLOOKUP($E56,'Activity 1'!$B$7:$B$13,'Activity 1'!V$7:V$13,\"N/A\",0,1)","v":"N/A"},{"$f":"_xlfn.XLOOKUP($E56,'Activity 1'!$B$17:$B$23,'Activity 1'!C$17:C$23,\"N/A\",0,1)","v":"N/A"},{"$f":"_xlfn.XLOOKUP($E56,'Activity 1'!$B$17:$B$23,'Activity 1'!D$17:D$23,\"N/A\",0,1)","v":"N/A"},{"$f":"_xlfn.XLOOKUP($E56,'Activity 1'!$B$17:$B$23,'Activity 1'!E$17:E$23,\"N/A\",0,1)","v":"N/A"},{"$f":"_xlfn.XLOOKUP($E56,'Activity 1'!$B$17:$B$23,'Activity 1'!F$17:F$23,\"N/A\",0,1)","v":"N/A"},{"$f":"_xlfn.XLOOKUP($E56,'Activity 1'!$B$17:$B$23,'Activity 1'!G$17:G$23,\"N/A\",0,1)","v":"N/A"},{"$f":"_xlfn.XLOOKUP($E56,'Activity 1'!$B$17:$B$23,'Activity 1'!H$17:H$23,\"N/A\",0,1)","v":"N/A"},{"$f":"_xlfn.XLOOKUP($E56,'Activity 1'!$B$17:$B$23,'Activity 1'!I$17:I$23,\"N/A\",0,1)","v":"N/A"},{"$f":"_xlfn.XLOOKUP($E56,'Activity 1'!$B$17:$B$23,'Activity 1'!J$17:J$23,\"N/A\",0,1)","v":"N/A"},{"$f":"_xlfn.XLOOKUP($E56,'Activity 1'!$B$17:$B$23,'Activity 1'!K$17:K$23,\"N/A\",0,1)","v":"N/A"},{"$f":"_xlfn.XLOOKUP($E56,'Activity 1'!$B$17:$B$23,'Activity 1'!L$17:L$23,\"N/A\",0,1)","v":"N/A"},{"$f":"_xlfn.XLOOKUP($E56,'Activity 1'!$B$17:$B$23,'Activity 1'!M$17:M$23,\"N/A\",0,1)","v":"N/A"},{"$f":"_xlfn.XLOOKUP($E56,'Activity 1'!$B$17:$B$23,'Activity 1'!O$17:O$23,\"N/A\",0,1)","v":"N/A"},{"$f":"_xlfn.XLOOKUP($E56,'Activity 1'!$B$17:$B$23,'Activity 1'!Q$17:Q$23,\"N/A\",0,1)","v":"N/A"},{"$f":"_xlfn.XLOOKUP($E56,'Activity 2'!$B$7:$B$13,'Activity 2'!$A$7:$A$13,\"No\",0,1)","v":"No"},{"$f":"_xlfn.XLOOKUP($E56,'Activity 2'!B$7:B$13,'Activity 2'!H$7:H$13,\"N/A\",0)","v":"N/A"},{"$f":"_xlfn.XLOOKUP($E56,'Activity 2'!C$7:C$13,'Activity 2'!I$7:I$13,\"N/A\",0)","v":"N/A"},{"$f":"_xlfn.XLOOKUP($E56,'Activity 2'!D$7:D$13,'Activity 2'!J$7:J$13,\"N/A\",0)","v":"N/A"},{"$f":"_xlfn.XLOOKUP($E56,'Activity 2'!E$7:E$13,'Activity 2'!K$7:K$13,\"N/A\",0)","v":"N/A"},{"$f":"_xlfn.XLOOKUP($E56,'Activity 2'!F$7:F$13,'Activity 2'!L$7:L$13,\"N/A\",0)","v":"N/A"},{"$f":"_xlfn.XLOOKUP($E56,'Activity 2'!G$7:G$13,'Activity 2'!M$7:M$13,\"N/A\",0)","v":"N/A"},{"$f":"_xlfn.XLOOKUP($E56,'Activity 2'!H$7:H$13,'Activity 2'!N$7:N$13,\"N/A\",0)","v":"N/A"},{"$f":"_xlfn.XLOOKUP($E56,'Activity 2'!I$7:I$13,'Activity 2'!O$7:O$13,\"N/A\",0)","v":"N/A"},{"$f":"_xlfn.XLOOKUP($E56,'Activity 2'!J$7:J$13,'Activity 2'!P$7:P$13,\"N/A\",0)","v":"N/A"},{"$f":"_xlfn.XLOOKUP($E56,'Activity 2'!K$7:K$13,'Activity 2'!Q$7:Q$13,\"N/A\",0)","v":"N/A"},{"$f":"_xlfn.XLOOKUP($E56,'Activity 2'!L$7:L$13,'Activity 2'!R$7:R$13,\"N/A\",0)","v":"N/A"},{"$f":"_xlfn.XLOOKUP($E56,'Activity 2'!M$7:M$13,'Activity 2'!S$7:S$13,\"N/A\",0)","v":"N/A"},{"$f":"_xlfn.XLOOKUP($E56,'Activity 2'!N$7:N$13,'Activity 2'!T$7:T$13,\"N/A\",0)","v":"N/A"},{"$f":"_xlfn.XLOOKUP($E56,'Activity 2'!O$7:O$13,'Activity 2'!U$7:U$13,\"N/A\",0)","v":"N/A"},{"$f":"_xlfn.XLOOKUP($E56,'Activity 2'!P$7:P$13,'Activity 2'!V$7:V$13,\"N/A\",0)","v":"N/A"},{"$f":"_xlfn.XLOOKUP($E56,'Activity 2'!$B$17:$B$23,'Activity 2'!C$17:C$23,\"N/A\",0,1)","v":"N/A"},{"$f":"_xlfn.XLOOKUP($E56,'Activity 2'!$B$17:$B$23,'Activity 2'!D$17:D$23,\"N/A\",0,1)","v":"N/A"},{"$f":"_xlfn.XLOOKUP($E56,'Activity 2'!$B$17:$B$23,'Activity 2'!E$17:E$23,\"N/A\",0,1)","v":"N/A"},{"$f":"_xlfn.XLOOKUP($E56,'Activity 2'!$B$17:$B$23,'Activity 2'!F$17:F$23,\"N/A\",0,1)","v":"N/A"},{"$f":"_xlfn.XLOOKUP($E56,'Activity 2'!$B$17:$B$23,'Activity 2'!G$17:G$23,\"N/A\",0,1)","v":"N/A"},{"$f":"_xlfn.XLOOKUP($E56,'Activity 2'!$B$17:$B$23,'Activity 2'!H$17:H$23,\"N/A\",0,1)","v":"N/A"},{"$f":"_xlfn.XLOOKUP($E56,'Activity 2'!$B$17:$B$23,'Activity 2'!I$17:I$23,\"N/A\",0,1)","v":"N/A"},{"$f":"_xlfn.XLOOKUP($E56,'Activity 2'!$B$17:$B$23,'Activity 2'!J$17:J$23,\"N/A\",0,1)","v":"N/A"},{"$f":"_xlfn.XLOOKUP($E56,'Activity 2'!$B$17:$B$23,'Activity 2'!K$17:K$23,\"N/A\",0,1)","v":"N/A"},{"$f":"_xlfn.XLOOKUP($E56,'Activity 2'!$B$17:$B$23,'Activity 2'!L$17:L$23,\"N/A\",0,1)","v":"N/A"},{"$f":"_xlfn.XLOOKUP($E56,'Activity 2'!$B$17:$B$23,'Activity 2'!M$17:M$23,\"N/A\",0,1)","v":"N/A"},{"$f":"_xlfn.XLOOKUP($E56,'Activity 2'!$B$17:$B$23,'Activity 2'!O$17:O$23,\"N/A\",0,1)","v":"N/A"},{"$f":"_xlfn.XLOOKUP($E56,'Activity 2'!$B$17:$B$23,'Activity 2'!Q$17:Q$23,\"N/A\",0,1)","v":"N/A"},null,{"$f":"_xlfn.XLOOKUP($E56,'Activity 3'!$B$8:$B$14,'Activity 3'!K$8:K$14,\"N/A\",0,1)","v":"N/A"},{"$f":"_xlfn.XLOOKUP($E56,'Activity 3'!$B$8:$B$14,'Activity 3'!L$8:L$14,\"N/A\",0,1)","v":"N/A"},{"$f":"_xlfn.XLOOKUP($E56,'Activity 3'!$B$8:$B$14,'Activity 3'!M$8:M$14,\"N/A\",0,1)","v":"N/A"},{"$f":"_xlfn.XLOOKUP($E56,'Activity 3'!$B$8:$B$14,'Activity 3'!N$8:N$14,\"N/A\",0,1)","v":"N/A"},{"$f":"_xlfn.XLOOKUP($E56,'Activity 3'!$B$8:$B$14,'Activity 3'!O$8:O$14,\"N/A\",0,1)","v":"N/A"},{"$f":"_xlfn.XLOOKUP($E56,'Activity 3'!$B$8:$B$14,'Activity 3'!R$8:R$14,\"N/A\",0,1)","v":"N/A"},{"$f":"_xlfn.XLOOKUP($E56,'Activity 4'!$B$8:$B$14,'Activity 4'!$A$8:$A$14,\"No\",0,1)","v":"No"},{"$f":"_xlfn.XLOOKUP($E56,'Activity 4'!$B$8:$B$14,'Activity 4'!L$8:L$14,\"N/A\",0,1)","v":"N/A"},{"$f":"_xlfn.XLOOKUP($E56,'Activity 4'!$B$8:$B$14,'Activity 4'!I$8:I$14,\"N/A\",0,1)","v":"N/A"},{"$f":"_xlfn.XLOOKUP($E56,'Activity 4'!$B$8:$B$14,'Activity 4'!M$8:M$14,\"N/A\",0,1)","v":"N/A"},{"$f":"_xlfn.XLOOKUP($E56,'Activity 5'!$B$8:$B$14,'Activity 5'!$A$8:$A$14,\"No\",0,1)","v":"No"},{"$f":"_xlfn.XLOOKUP($E56,'Activity 5'!$B$8:$B$14,'Activity 5'!J$8:J$14,\"N/A\",0,1)","v":"N/A"},{"$f":"_xlfn.XLOOKUP($E56,'Activity 5'!$B$8:$B$14,'Activity 5'!K$8:K$14,\"N/A\",0,1)","v":"N/A"},{"$f":"_xlfn.XLOOKUP($E56,'Activity 5'!$B$8:$B$14,'Activity 5'!N$8:N$14,\"N/A\",0,1)","v":"N/A"},{"$f":"_xlfn.XLOOKUP($E56,'Activity 5'!$B$8:$B$14,'Activity 5'!O$8:O$14,\"N/A\",0,1)","v":"N/A"},{"$f":"_xlfn.XLOOKUP($E56,'Activity 5'!$B$8:$B$14,'Activity 5'!P$8:P$14,\"N/A\",0,1)","v":"N/A"},{"$f":"_xlfn.XLOOKUP($E56,'Activity 5'!$B$8:$B$14,'Activity 5'!Q$8:Q$14,\"N/A\",0,1)","v":"N/A"},{"$f":"_xlfn.XLOOKUP($E56,'Activity 5'!$B$8:$B$14,'Activity 5'!R$8:R$14,\"N/A\",0,1)","v":"N/A"},{"$f":"_xlfn.XLOOKUP($E56,'Activity 6'!$B$7:$B$13,'Activity 6'!A$7:A$13,\"No\",0,1)","v":"No"},{"$f":"_xlfn.XLOOKUP($E56,'Activity 6'!$B$7:$B$13,'Activity 6'!K$7:K$13,\"N/A\",0,1)","v":"N/A"},{"$f":"_xlfn.XLOOKUP($E56,'Activity 6'!$B$7:$B$13,'Activity 6'!L$7:L$13,\"N/A\",0,1)","v":"N/A"},{"$f":"_xlfn.XLOOKUP($E56,'Activity 6'!$B$7:$B$13,'Activity 6'!M$7:M$13,\"N/A\",0,1)","v":"N/A"},{"$f":"_xlfn.XLOOKUP($E56,'Activity 6'!$B$7:$B$13,'Activity 6'!N$7:N$13,\"N/A\",0,1)","v":"N/A"},{"$f":"_xlfn.XLOOKUP($E56,'Activity 6'!$B$7:$B$13,'Activity 6'!O$7:O$13,\"N/A\",0,1)","v":"N/A"},{"$f":"_xlfn.XLOOKUP($E56,'Activity 6'!$B$7:$B$13,'Activity 6'!P$7:P$13,\"N/A\",0,1)","v":"N/A"},{"$f":"_xlfn.XLOOKUP($E56,'Activity 6'!$B$7:$B$13,'Activity 6'!Q$7:Q$13,\"N/A\",0,1)","v":"N/A"},{"$f":"_xlfn.XLOOKUP($E56,'Activity 6'!$B$7:$B$13,'Activity 6'!R$7:R$13,\"N/A\",0,1)","v":"N/A"},{"$f":"_xlfn.XLOOKUP($E56,'Activity 6'!$B$7:$B$13,'Activity 6'!S$7:S$13,\"N/A\",0,1)","v":"N/A"},{"$f":"_xlfn.XLOOKUP($E56,'Activity 6'!$B$7:$B$13,'Activity 6'!T$7:T$13,\"N/A\",0,1)","v":"N/A"},{"$f":"_xlfn.XLOOKUP($E56,'Activity 6'!$B$7:$B$13,'Activity 6'!U$7:U$13,\"N/A\",0,1)","v":"N/A"},{"$f":"_xlfn.XLOOKUP($E56,'Activity 6'!$B$22:$B$28,'Activity 6'!C$22:C$28,\"N/A\",0,1)","v":"N/A"},{"$f":"_xlfn.XLOOKUP($E56,'Activity 6'!$B$22:$B$28,'Activity 6'!D$22:D$28,\"N/A\",0,1)","v":"N/A"},{"$f":"_xlfn.XLOOKUP($E56,'Activity 6'!$B$22:$B$28,'Activity 6'!E$22:E$28,\"N/A\",0,1)","v":"N/A"},{"$f":"_xlfn.XLOOKUP($E56,'Activity 6'!$B$22:$B$28,'Activity 6'!F$22:F$28,\"N/A\",0,1)","v":"N/A"},{"$f":"_xlfn.XLOOKUP($E56,'Activity 6'!$B$22:$B$28,'Activity 6'!G$22:G$28,\"N/A\",0,1)","v":"N/A"},{"$f":"_xlfn.XLOOKUP($E56,'Activity 6'!$B$22:$B$28,'Activity 6'!H$22:H$28,\"N/A\",0,1)","v":"N/A"},{"$f":"_xlfn.XLOOKUP($E56,'Activity 6'!$B$22:$B$28,'Activity 6'!I$22:I$28,\"N/A\",0,1)","v":"N/A"},{"$f":"_xlfn.XLOOKUP($E56,'Activity 6'!$B$22:$B$28,'Activity 6'!J$22:J$28,\"N/A\",0,1)","v":"N/A"},{"$f":"_xlfn.XLOOKUP($E56,'Activity 6'!$B$22:$B$28,'Activity 6'!K$22:K$28,\"N/A\",0,1)","v":"N/A"},{"$f":"_xlfn.XLOOKUP($E56,'Activity 6'!$B$22:$B$28,'Activity 6'!L$22:L$28,\"N/A\",0,1)","v":"N/A"},{"$f":"_xlfn.XLOOKUP($E56,'Activity 6'!$B$22:$B$28,'Activity 6'!M$22:M$28,\"N/A\",0,1)","v":"N/A"},{"$f":"_xlfn.XLOOKUP($E56,'Activity 6'!$B$22:$B$28,'Activity 6'!N$22:N$28,\"N/A\",0,1)","v":"N/A"},{"$f":"_xlfn.XLOOKUP($E56,'Activity 6'!$B$32:$B$38,'Activity 6'!C$32:C$38,\"N/A\",0,1)","v":"N/A"},{"$f":"_xlfn.XLOOKUP($E56,'Activity 6'!$B$32:$B$38,'Activity 6'!D$32:D$38,\"N/A\",0,1)","v":"N/A"},{"$f":"_xlfn.XLOOKUP($E56,'Activity 6'!$B$32:$B$38,'Activity 6'!E$32:E$38,\"N/A\",0,1)","v":"N/A"},{"$f":"_xlfn.XLOOKUP($E56,'Activity 6'!$B$32:$B$38,'Activity 6'!F$32:F$38,\"N/A\",0,1)","v":"N/A"},{"$f":"_xlfn.XLOOKUP($E56,'Activity 6'!$B$32:$B$38,'Activity 6'!G$32:G$38,\"N/A\",0,1)","v":"N/A"},{"$f":"_xlfn.XLOOKUP($E56,'Activity 6'!$B$32:$B$38,'Activity 6'!H$32:H$38,\"N/A\",0,1)","v":"N/A"},{"$f":"_xlfn.XLOOKUP($E56,'Activity 6'!$B$32:$B$38,'Activity 6'!I$32:I$38,\"N/A\",0,1)","v":"N/A"},{"$f":"_xlfn.XLOOKUP($E56,'Activity 6'!$B$32:$B$38,'Activity 6'!J$32:J$38,\"N/A\",0,1)","v":"N/A"},{"$f":"_xlfn.XLOOKUP($E56,'Activity 6'!$B$32:$B$38,'Activity 6'!K$32:K$38,\"N/A\",0,1)","v":"N/A"},{"$f":"_xlfn.XLOOKUP($E56,'Activity 6'!$B$32:$B$38,'Activity 6'!M$32:M$38,\"N/A\",0,1)","v":"N/A"},{"$f":"_xlfn.XLOOKUP($E56,'Activity 7'!$B$7:$B$13,'Activity 7'!$A$7:$A$13,\"No\",0,1)","v":"No"},{"$f":"_xlfn.XLOOKUP($E56,'Activity 7'!$B$7:$B$13,'Activity 7'!M$7:M$13,\"N/A\",0,1)","v":"N/A"},{"$f":"_xlfn.XLOOKUP($E56,'Activity 7'!$B$7:$B$13,'Activity 7'!K$7:K$13,\"N/A\",0,1)","v":"N/A"},{"$f":"_xlfn.XLOOKUP($E56,'Activity 7'!$B$7:$B$13,'Activity 7'!N$7:N$13,\"N/A\",0,1)","v":"N/A"},{"$f":"_xlfn.XLOOKUP($E56,'Activity 7'!$B$7:$B$13,'Activity 7'!O$7:O$13,\"N/A\",0,1)","v":"N/A"},{"$f":"_xlfn.XLOOKUP($E56,'Activity 7'!$B$7:$B$13,'Activity 7'!P$7:P$13,\"N/A\",0,1)","v":"N/A"},{"$f":"_xlfn.XLOOKUP($E56,'Activity 7'!$B$7:$B$13,'Activity 7'!Q$7:Q$13,\"N/A\",0,1)","v":"N/A"},{"$f":"_xlfn.XLOOKUP($E56,'Activity 7'!$B$7:$B$13,'Activity 7'!R$7:R$13,\"N/A\",0,1)","v":"N/A"},{"$f":"_xlfn.XLOOKUP($E56,'Activity 7'!$B$7:$B$13,'Activity 7'!S$7:S$13,\"N/A\",0,1)","v":"N/A"},{"$f":"_xlfn.XLOOKUP($E56,'Activity 7'!$B$7:$B$13,'Activity 7'!T$7:T$13,\"N/A\",0,1)","v":"N/A"},{"$f":"_xlfn.XLOOKUP($E56,'Activity 7'!$B$7:$B$13,'Activity 7'!U$7:U$13,\"N/A\",0,1)","v":"N/A"},{"$f":"_xlfn.XLOOKUP($E56,'Activity 7'!$B$7:$B$13,'Activity 7'!V$7:V$13,\"N/A\",0,1)","v":"N/A"},{"$f":"_xlfn.XLOOKUP($E56,'Activity 7'!$B$17:$B$23,'Activity 7'!E$17:E$23,\"N/A\",0,1)","v":"N/A"},{"$f":"_xlfn.XLOOKUP($E56,'Activity 7'!$B$17:$B$23,'Activity 7'!G$17:G$23,\"N/A\",0,1)","v":"N/A"},{"$f":"_xlfn.XLOOKUP($E56,'Activity 7'!$B$17:$B$23,'Activity 7'!I$17:I$23,\"N/A\",0,1)","v":"N/A"},{"$f":"_xlfn.XLOOKUP($E56,'Activity 7'!$B$17:$B$23,'Activity 7'!J$17:J$23,\"N/A\",0,1)","v":"N/A"},{"$f":"_xlfn.XLOOKUP($E56,'Activity 7'!$B$17:$B$23,'Activity 7'!K$17:K$23,\"N/A\",0,1)","v":"N/A"},{"$f":"_xlfn.XLOOKUP($E56,'Activity 7'!$B$17:$B$23,'Activity 7'!L$17:L$23,\"N/A\",0,1)","v":"N/A"},{"$f":"_xlfn.XLOOKUP($E56,'Activity 7'!$B$17:$B$23,'Activity 7'!M$17:M$23,\"N/A\",0,1)","v":"N/A"},{"$f":"_xlfn.XLOOKUP($E56,'Activity 7'!$B$17:$B$23,'Activity 7'!N$17:N$23,\"N/A\",0,1)","v":"N/A"},{"$f":"_xlfn.XLOOKUP($E56,'Activity 7'!$B$17:$B$23,'Activity 7'!P$17:P$23,\"N/A\",0,1)","v":"N/A"},{"$f":"_xlfn.XLOOKUP($E56,'Activity 8'!$B$7:$B$13,'Activity 8'!A$7:A$13,\"No\",0,1)","v":"No"},{"$f":"_xlfn.XLOOKUP($E56,'Activity 8'!$B$7:$B$13,'Activity 8'!I$7:I$13,\"N/A\",0,1)","v":"N/A"},{"$f":"_xlfn.XLOOKUP($E56,'Activity 8'!$B$7:$B$13,'Activity 8'!J$7:J$13,\"N/A\",0,1)","v":"N/A"},{"$f":"_xlfn.XLOOKUP($E56,'Activity 8'!$B$7:$B$13,'Activity 8'!K$7:K$13,\"N/A\",0,1)","v":"N/A"},{"$f":"_xlfn.XLOOKUP($E56,'Activity 8'!$B$7:$B$13,'Activity 8'!L$7:L$13,\"N/A\",0,1)","v":"N/A"},{"$f":"_xlfn.XLOOKUP($E56,'Activity 8'!$B$7:$B$13,'Activity 8'!M$7:M$13,\"N/A\",0,1)","v":"N/A"},{"$f":"_xlfn.XLOOKUP($E56,'Activity 8'!$B$7:$B$13,'Activity 8'!N$7:N$13,\"N/A\",0,1)","v":"N/A"},{"$f":"_xlfn.XLOOKUP($E56,'Activity 8'!$B$7:$B$13,'Activity 8'!O$7:O$13,\"N/A\",0,1)","v":"N/A"},{"$f":"_xlfn.XLOOKUP($E56,'Activity 8'!$B$7:$B$13,'Activity 8'!P$7:P$13,\"N/A\",0,1)","v":"N/A"},{"$f":"_xlfn.XLOOKUP($E56,'Activity 8'!$B$7:$B$13,'Activity 8'!Q$7:Q$13,\"N/A\",0,1)","v":"N/A"},{"$f":"_xlfn.XLOOKUP($E56,'Activity 8'!$B$7:$B$13,'Activity 8'!R$7:R$13,\"N/A\",0,1)","v":"N/A"},{"$f":"_xlfn.XLOOKUP($E56,'Activity 8'!$B$7:$B$13,'Activity 8'!S$7:S$13,\"N/A\",0,1)","v":"N/A"},{"$f":"_xlfn.XLOOKUP($E56,'Activity 8'!$B$7:$B$13,'Activity 8'!T$7:T$13,\"N/A\",0,1)","v":"N/A"},{"$f":"_xlfn.XLOOKUP($E56,'Activity 8'!$B$7:$B$13,'Activity 8'!U$7:U$13,\"N/A\",0,1)","v":"N/A"},{"$f":"_xlfn.XLOOKUP($E56,'Activity 8'!$B$7:$B$13,'Activity 8'!V$7:V$13,\"N/A\",0,1)","v":"N/A"},{"$f":"_xlfn.XLOOKUP($E56,'Activity 8'!$B$17:$B$23,'Activity 8'!D$17:D$23,\"N/A\",0,1)","v":"N/A"},{"$f":"_xlfn.XLOOKUP($E56,'Activity 8'!$B$17:$B$23,'Activity 8'!E$17:E$23,\"N/A\",0,1)","v":"N/A"},{"$f":"_xlfn.XLOOKUP($E56,'Activity 8'!$B$17:$B$23,'Activity 8'!F$17:F$23,\"N/A\",0,1)","v":"N/A"},{"$f":"_xlfn.XLOOKUP($E56,'Activity 8'!$B$17:$B$23,'Activity 8'!G$17:G$23,\"N/A\",0,1)","v":"N/A"},{"$f":"_xlfn.XLOOKUP($E56,'Activity 8'!$B$17:$B$23,'Activity 8'!H$17:H$23,\"N/A\",0,1)","v":"N/A"},{"$f":"_xlfn.XLOOKUP($E56,'Activity 8'!$B$17:$B$23,'Activity 8'!I$17:I$23,\"N/A\",0,1)","v":"N/A"},{"$f":"_xlfn.XLOOKUP($E56,'Activity 8'!$B$17:$B$23,'Activity 8'!J$17:J$23,\"N/A\",0,1)","v":"N/A"},{"$f":"_xlfn.XLOOKUP($E56,'Activity 8'!$B$17:$B$23,'Activity 8'!K$17:K$23,\"N/A\",0,1)","v":"N/A"},{"$f":"_xlfn.XLOOKUP($E56,'Activity 8'!$B$17:$B$23,'Activity 8'!L$17:L$23,\"N/A\",0,1)","v":"N/A"},{"$f":"_xlfn.XLOOKUP($E56,'Activity 8'!$B$17:$B$23,'Activity 8'!M$17:M$23,\"N/A\",0,1)","v":"N/A"},{"$f":"_xlfn.XLOOKUP($E56,'Activity 8'!$B$17:$B$23,'Activity 8'!N$17:N$23,\"N/A\",0,1)","v":"N/A"},{"$f":"_xlfn.XLOOKUP($E56,'Activity 8'!$B$17:$B$23,'Activity 8'!P$17:P$23,\"N/A\",0,1)","v":"N/A"},{"$f":"_xlfn.XLOOKUP(E56,'Activity 9'!$B$7:$B$13,'Activity 9'!$A$7:$A$13,\"No\",0,1)","v":"No"},{"$f":"_xlfn.XLOOKUP($E56,'Activity 9'!$B$7:$B$13,'Activity 9'!J$7:J$13,\"N/A\",0,1)","v":"N/A"},{"$f":"_xlfn.XLOOKUP($E56,'Activity 9'!$B$7:$B$13,'Activity 9'!K$7:K$13,\"N/A\",0,1)","v":"N/A"},{"$f":"_xlfn.XLOOKUP($E56,'Activity 9'!$B$7:$B$13,'Activity 9'!L$7:L$13,\"N/A\",0,1)","v":"N/A"},{"$f":"_xlfn.XLOOKUP($E56,'Activity 9'!$B$7:$B$13,'Activity 9'!M$7:M$13,\"N/A\",0,1)","v":"N/A"},{"$f":"_xlfn.XLOOKUP($E56,'Activity 9'!$B$7:$B$13,'Activity 9'!N$7:N$13,\"N/A\",0,1)","v":"N/A"},{"$f":"_xlfn.XLOOKUP($E56,'Activity 9'!$B$7:$B$13,'Activity 9'!O$7:O$13,\"N/A\",0,1)","v":"N/A"},{"$f":"_xlfn.XLOOKUP($E56,'Activity 9'!$B$7:$B$13,'Activity 9'!P$7:P$13,\"N/A\",0,1)","v":"N/A"},{"$f":"_xlfn.XLOOKUP($E56,'Activity 9'!$B$7:$B$13,'Activity 9'!Q$7:Q$13,\"N/A\",0,1)","v":"N/A"},{"$f":"_xlfn.XLOOKUP($E56,'Activity 9'!$B$7:$B$13,'Activity 9'!R$7:R$13,\"N/A\",0,1)","v":"N/A"},{"$f":"_xlfn.XLOOKUP($E56,'Activity 9'!$B$7:$B$13,'Activity 9'!S$7:S$13,\"N/A\",0,1)","v":"N/A"},{"$f":"_xlfn.XLOOKUP($E56,'Activity 9'!$B$7:$B$13,'Activity 9'!T$7:T$13,\"N/A\",0,1)","v":"N/A"},{"$f":"_xlfn.XLOOKUP($E56,'Activity 9'!$B$17:$B$23,'Activity 9'!E$17:E$23,\"N/A\",0,1)","v":"N/A"},{"$f":"_xlfn.XLOOKUP($E56,'Activity 9'!$B$17:$B$23,'Activity 9'!F$17:F$23,\"N/A\",0,1)","v":"N/A"},{"$f":"_xlfn.XLOOKUP($E56,'Activity 9'!$B$17:$B$23,'Activity 9'!G$17:G$23,\"N/A\",0,1)","v":"N/A"},{"$f":"_xlfn.XLOOKUP($E56,'Activity 9'!$B$17:$B$23,'Activity 9'!H$17:H$23,\"N/A\",0,1)","v":"N/A"},{"$f":"_xlfn.XLOOKUP($E56,'Activity 9'!$B$17:$B$23,'Activity 9'!I$17:I$23,\"N/A\",0,1)","v":"N/A"},{"$f":"_xlfn.XLOOKUP($E56,'Activity 9'!$B$17:$B$23,'Activity 9'!J$17:J$23,\"N/A\",0,1)","v":"N/A"},{"$f":"_xlfn.XLOOKUP($E56,'Activity 9'!$B$17:$B$23,'Activity 9'!K$17:K$23,\"N/A\",0,1)","v":"N/A"},{"$f":"_xlfn.XLOOKUP($E56,'Activity 9'!$B$17:$B$23,'Activity 9'!L$17:L$23,\"N/A\",0,1)","v":"N/A"},{"$f":"_xlfn.XLOOKUP($E56,'Activity 9'!$B$17:$B$23,'Activity 9'!N$17:N$23,\"N/A\",0,1)","v":"N/A"},{"$f":"_xlfn.XLOOKUP($E56,'Activity 9'!$B$17:$B$23,'Activity 9'!O$17:O$23,\"N/A\",0,1)","v":"N/A"},{"$f":"_xlfn.XLOOKUP($E56,'Activity 9'!$B$17:$B$23,'Activity 9'!Q$17:Q$23,\"N/A\",0,1)","v":"N/A"},{"$f":"_xlfn.XLOOKUP($E56,'Activity 10'!$B$7:$B$13,'Activity 10'!A$7:A$13,\"No\",0,1)","v":"No"},{"$f":"_xlfn.XLOOKUP($E56,'Activity 10'!$B$7:$B$13,'Activity 10'!J$7:J$13,\"N/A\",0,1)","v":"N/A"},{"$f":"_xlfn.XLOOKUP($E56,'Activity 10'!$B$7:$B$13,'Activity 10'!K$7:K$13,\"N/A\",0,1)","v":"N/A"},{"$f":"_xlfn.XLOOKUP($E56,'Activity 10'!$B$7:$B$13,'Activity 10'!L$7:L$13,\"N/A\",0,1)","v":"N/A"},{"$f":"_xlfn.XLOOKUP($E56,'Activity 10'!$B$7:$B$13,'Activity 10'!M$7:M$13,\"N/A\",0,1)","v":"N/A"},{"$f":"_xlfn.XLOOKUP($E56,'Activity 10'!$B$7:$B$13,'Activity 10'!N$7:N$13,\"N/A\",0,1)","v":"N/A"},{"$f":"_xlfn.XLOOKUP($E56,'Activity 10'!$B$7:$B$13,'Activity 10'!O$7:O$13,\"N/A\",0,1)","v":"N/A"},{"$f":"_xlfn.XLOOKUP($E56,'Activity 10'!$B$7:$B$13,'Activity 10'!P$7:P$13,\"N/A\",0,1)","v":"N/A"},{"$f":"_xlfn.XLOOKUP($E56,'Activity 10'!$B$7:$B$13,'Activity 10'!Q$7:Q$13,\"N/A\",0,1)","v":"N/A"},{"$f":"_xlfn.XLOOKUP($E56,'Activity 10'!$B$7:$B$13,'Activity 10'!R$7:R$13,\"N/A\",0,1)","v":"N/A"},{"$f":"_xlfn.XLOOKUP($E56,'Activity 10'!$B$7:$B$13,'Activity 10'!S$7:S$13,\"N/A\",0,1)","v":"N/A"},{"$f":"_xlfn.XLOOKUP($E56,'Activity 10'!$B$7:$B$13,'Activity 10'!T$7:T$13,\"N/A\",0,1)","v":"N/A"},{"$f":"_xlfn.XLOOKUP($E56,'Activity 10'!$B$7:$B$13,'Activity 10'!U$7:U$13,\"N/A\",0,1)","v":"N/A"},{"$f":"_xlfn.XLOOKUP($E56,'Activity 10'!$B$7:$B$13,'Activity 10'!V$7:V$13,\"N/A\",0,1)","v":"N/A"},{"$f":"_xlfn.XLOOKUP($E56,'Activity 10'!$B$17:$B$23,'Activity 10'!E$17:E$23,\"N/A\",0,1)","v":"N/A"},{"$f":"_xlfn.XLOOKUP($E56,'Activity 10'!$B$17:$B$23,'Activity 10'!F$17:F$23,\"N/A\",0,1)","v":"N/A"},{"$f":"_xlfn.XLOOKUP($E56,'Activity 10'!$B$17:$B$23,'Activity 10'!G$17:G$23,\"N/A\",0,1)","v":"N/A"},{"$f":"_xlfn.XLOOKUP($E56,'Activity 10'!$B$17:$B$23,'Activity 10'!H$17:H$23,\"N/A\",0,1)","v":"N/A"},{"$f":"_xlfn.XLOOKUP($E56,'Activity 10'!$B$17:$B$23,'Activity 10'!I$17:I$23,\"N/A\",0,1)","v":"N/A"},{"$f":"_xlfn.XLOOKUP($E56,'Activity 10'!$B$17:$B$23,'Activity 10'!J$17:J$23,\"N/A\",0,1)","v":"N/A"},{"$f":"_xlfn.XLOOKUP($E56,'Activity 10'!$B$17:$B$23,'Activity 10'!K$17:K$23,\"N/A\",0,1)","v":"N/A"},{"$f":"_xlfn.XLOOKUP($E56,'Activity 10'!$B$17:$B$23,'Activity 10'!L$17:L$23,\"N/A\",0,1)","v":"N/A"},{"$f":"_xlfn.XLOOKUP($E56,'Activity 10'!$B$17:$B$23,'Activity 10'!M$17:M$23,\"N/A\",0,1)","v":"N/A"},{"$f":"_xlfn.XLOOKUP($E56,'Activity 10'!$B$17:$B$23,'Activity 10'!N$17:N$23,\"N/A\",0,1)","v":"N/A"},{"$f":"_xlfn.XLOOKUP($E56,'Activity 10'!$B$17:$B$23,'Activity 10'!P$17:P$23,\"N/A\",0,1)","v":"N/A"},{"$f":"_xlfn.XLOOKUP($E56,'Competitive Activity 1'!B$7:B$13,'Competitive Activity 1'!A$7:A$13,\"No\",0,1)","v":"No"},{"$f":"_xlfn.XLOOKUP($E56,'Competitive Activity 1'!$B$7:$B$13,'Competitive Activity 1'!H$7:H$13,\"N/A\",0,1)","v":"N/A"},{"$f":"_xlfn.XLOOKUP($E56,'Competitive Activity 1'!$B$7:$B$13,'Competitive Activity 1'!I$7:I$13,\"N/A\",0,1)","v":"N/A"},{"$f":"_xlfn.XLOOKUP($E56,'Competitive Activity 1'!$B$7:$B$13,'Competitive Activity 1'!J$7:J$13,\"N/A\",0,1)","v":"N/A"},{"$f":"_xlfn.XLOOKUP($E56,'Competitive Activity 1'!$B$7:$B$13,'Competitive Activity 1'!K$7:K$13,\"N/A\",0,1)","v":"N/A"},{"$f":"_xlfn.XLOOKUP($E56,'Competitive Activity 1'!$B$7:$B$13,'Competitive Activity 1'!L$7:L$13,\"N/A\",0,1)","v":"N/A"},{"$f":"_xlfn.XLOOKUP($E56,'Competitive Activity 1'!$B$7:$B$13,'Competitive Activity 1'!M$7:M$13,\"N/A\",0,1)","v":"N/A"},{"$f":"_xlfn.XLOOKUP($E56,'Competitive Activity 1'!$B$7:$B$13,'Competitive Activity 1'!N$7:N$13,\"N/A\",0,1)","v":"N/A"},{"$f":"_xlfn.XLOOKUP($E56,'Competitive Activity 1'!$B$7:$B$13,'Competitive Activity 1'!O$7:O$13,\"N/A\",0,1)","v":"N/A"},{"$f":"_xlfn.XLOOKUP($E56,'Competitive Activity 1'!$B$7:$B$13,'Competitive Activity 1'!P$7:P$13,\"N/A\",0,1)","v":"N/A"},{"$f":"_xlfn.XLOOKUP($E56,'Competitive Activity 1'!$B$7:$B$13,'Competitive Activity 1'!Q$7:Q$13,\"N/A\",0,1)","v":"N/A"},{"$f":"_xlfn.XLOOKUP($E56,'Competitive Activity 1'!$B$7:$B$13,'Competitive Activity 1'!R$7:R$13,\"N/A\",0,1)","v":"N/A"},{"$f":"_xlfn.XLOOKUP($E56,'Competitive Activity 1'!$B$7:$B$13,'Competitive Activity 1'!S$7:S$13,\"N/A\",0,1)","v":"N/A"},{"$f":"_xlfn.XLOOKUP($E56,'Competitive Activity 1'!$B$7:$B$13,'Competitive Activity 1'!T$7:T$13,\"N/A\",0,1)","v":"N/A"},{"$f":"_xlfn.XLOOKUP($E56,'Competitive Activity 1'!$B$7:$B$13,'Competitive Activity 1'!U$7:U$13,\"N/A\",0,1)","v":"N/A"},{"$f":"_xlfn.XLOOKUP($E56,'Competitive Activity 1'!$B$17:$B$23,'Competitive Activity 1'!C$17:C$23,\"N/A\",0,1)","v":"N/A"},{"$f":"_xlfn.XLOOKUP($E56,'Competitive Activity 1'!$B$17:$B$23,'Competitive Activity 1'!D$17:D$23,\"N/A\",0,1)","v":"N/A"},{"$f":"_xlfn.XLOOKUP($E56,'Competitive Activity 1'!$B$17:$B$23,'Competitive Activity 1'!E$17:E$23,\"N/A\",0,1)","v":"N/A"},{"$f":"_xlfn.XLOOKUP($E56,'Competitive Activity 1'!$B$17:$B$23,'Competitive Activity 1'!F$17:F$23,\"N/A\",0,1)","v":"N/A"},{"$f":"_xlfn.XLOOKUP($E56,'Competitive Activity 1'!$B$17:$B$23,'Competitive Activity 1'!G$17:G$23,\"N/A\",0,1)","v":"N/A"},{"$f":"_xlfn.XLOOKUP($E56,'Competitive Activity 1'!$B$17:$B$23,'Competitive Activity 1'!H$17:H$23,\"N/A\",0,1)","v":"N/A"},{"$f":"_xlfn.XLOOKUP($E56,'Competitive Activity 1'!$B$17:$B$23,'Competitive Activity 1'!I$17:I$23,\"N/A\",0,1)","v":"N/A"},{"$f":"_xlfn.XLOOKUP($E56,'Competitive Activity 1'!$B$17:$B$23,'Competitive Activity 1'!J$17:J$23,\"N/A\",0,1)","v":"N/A"},{"$f":"_xlfn.XLOOKUP($E56,'Competitive Activity 1'!$B$17:$B$23,'Competitive Activity 1'!K$17:K$23,\"N/A\",0,1)","v":"N/A"},{"$f":"_xlfn.XLOOKUP($E56,'Competitive Activity 1'!$B$17:$B$23,'Competitive Activity 1'!M$17:M$23,\"N/A\",0,1)","v":"N/A"},{"$f":"_xlfn.XLOOKUP($E56,'Competitive Activity 1'!$B$17:$B$23,'Competitive Activity 1'!N$17:N$23,\"N/A\",0,1)","v":"N/A"},{"$f":"_xlfn.XLOOKUP($E56,'Competitive Activity 1'!$B$17:$B$23,'Competitive Activity 1'!P$17:P$23,\"N/A\",0,1)","v":"N/A"},{"$f":"_xlfn.XLOOKUP($E56,'Competitive Activity 2'!$B$7:$B$13,'Competitive Activity 2'!A$7:A$13,\"No\",0)","v":"No"},{"$f":"_xlfn.XLOOKUP($E56,'Competitive Activity 2'!$B$7:$B$13,'Competitive Activity 2'!L$7:L$13,\"N/A\",0)","v":"N/A"},{"$f":"_xlfn.XLOOKUP($E56,'Competitive Activity 2'!$B$7:$B$13,'Competitive Activity 2'!M$7:M$13,\"N/A\",0)","v":"N/A"},{"$f":"_xlfn.XLOOKUP($E56,'Competitive Activity 2'!$B$7:$B$13,'Competitive Activity 2'!N$7:N$13,\"N/A\",0)","v":"N/A"},{"$f":"_xlfn.XLOOKUP($E56,'Competitive Activity 2'!$B$7:$B$13,'Competitive Activity 2'!O$7:O$13,\"N/A\",0)","v":"N/A"},{"$f":"_xlfn.XLOOKUP($E56,'Competitive Activity 2'!$B$7:$B$13,'Competitive Activity 2'!P$7:P$13,\"N/A\",0)","v":"N/A"},{"$f":"_xlfn.XLOOKUP($E56,'Competitive Activity 2'!$B$7:$B$13,'Competitive Activity 2'!Q$7:Q$13,\"N/A\",0)","v":"N/A"},{"$f":"_xlfn.XLOOKUP($E56,'Competitive Activity 2'!$B$7:$B$13,'Competitive Activity 2'!R$7:R$13,\"N/A\",0)","v":"N/A"},{"$f":"_xlfn.XLOOKUP($E56,'Competitive Activity 2'!$B$7:$B$13,'Competitive Activity 2'!S$7:S$13,\"N/A\",0)","v":"N/A"},{"$f":"_xlfn.XLOOKUP($E56,'Competitive Activity 2'!$B$7:$B$13,'Competitive Activity 2'!T$7:T$13,\"N/A\",0)","v":"N/A"},{"$f":"_xlfn.XLOOKUP($E56,'Competitive Activity 2'!$B$7:$B$13,'Competitive Activity 2'!U$7:U$13,\"N/A\",0)","v":"N/A"},{"$f":"_xlfn.XLOOKUP($E56,'Competitive Activity 2'!$B$17:$B$23,'Competitive Activity 2'!D$17:D$23,\"N/A\",0)","v":"N/A"},{"$f":"_xlfn.XLOOKUP($E56,'Competitive Activity 2'!$B$17:$B$23,'Competitive Activity 2'!E$17:E$23,\"N/A\",0)","v":"N/A"},{"$f":"_xlfn.XLOOKUP($E56,'Competitive Activity 2'!$B$17:$B$23,'Competitive Activity 2'!F$17:F$23,\"N/A\",0)","v":"N/A"},{"$f":"_xlfn.XLOOKUP($E56,'Competitive Activity 2'!$B$17:$B$23,'Competitive Activity 2'!G$17:G$23,\"N/A\",0)","v":"N/A"},{"$f":"_xlfn.XLOOKUP($E56,'Competitive Activity 2'!$B$17:$B$23,'Competitive Activity 2'!H$17:H$23,\"N/A\",0)","v":"N/A"},{"$f":"_xlfn.XLOOKUP($E56,'Competitive Activity 2'!$B$17:$B$23,'Competitive Activity 2'!I$17:I$23,\"N/A\",0)","v":"N/A"},{"$f":"_xlfn.XLOOKUP($E56,'Competitive Activity 2'!$B$17:$B$23,'Competitive Activity 2'!J$17:J$23,\"N/A\",0)","v":"N/A"},{"$f":"_xlfn.XLOOKUP($E56,'Competitive Activity 2'!$B$17:$B$23,'Competitive Activity 2'!K$17:K$23,\"N/A\",0)","v":"N/A"},{"$f":"_xlfn.XLOOKUP($E56,'Competitive Activity 2'!$B$17:$B$23,'Competitive Activity 2'!L$17:L$23,\"N/A\",0)","v":"N/A"},{"$f":"_xlfn.XLOOKUP($E56,'Competitive Activity 2'!$B$17:$B$23,'Competitive Activity 2'!M$17:M$23,\"N/A\",0)","v":"N/A"},{"$f":"_xlfn.XLOOKUP($E56,'Competitive Activity 2'!$B$17:$B$23,'Competitive Activity 2'!N$17:N$23,\"N/A\",0)","v":"N/A"},{"$f":"_xlfn.XLOOKUP($E56,'Competitive Activity 2'!$B$27:$B$33,'Competitive Activity 2'!D$27:D$33,\"N/A\",0)","v":"N/A"},{"$f":"_xlfn.XLOOKUP($E56,'Competitive Activity 2'!$B$27:$B$33,'Competitive Activity 2'!E$27:E$33,\"N/A\",0)","v":"N/A"},{"$f":"_xlfn.XLOOKUP($E56,'Competitive Activity 2'!$B$27:$B$33,'Competitive Activity 2'!F$27:F$33,\"N/A\",0)","v":"N/A"},{"$f":"_xlfn.XLOOKUP($E56,'Competitive Activity 2'!$B$27:$B$33,'Competitive Activity 2'!G$27:G$33,\"N/A\",0)","v":"N/A"},{"$f":"_xlfn.XLOOKUP($E56,'Competitive Activity 2'!$B$27:$B$33,'Competitive Activity 2'!H$27:H$33,\"N/A\",0)","v":"N/A"},{"$f":"_xlfn.XLOOKUP($E56,'Competitive Activity 2'!$B$27:$B$33,'Competitive Activity 2'!I$27:I$33,\"N/A\",0)","v":"N/A"},{"$f":"_xlfn.XLOOKUP($E56,'Competitive Activity 2'!$B$27:$B$33,'Competitive Activity 2'!J$27:J$33,\"N/A\",0)","v":"N/A"},{"$f":"_xlfn.XLOOKUP($E56,'Competitive Activity 2'!$B$27:$B$33,'Competitive Activity 2'!K$27:K$33,\"N/A\",0)","v":"N/A"},{"$f":"_xlfn.XLOOKUP($E56,'Competitive Activity 2'!$B$27:$B$33,'Competitive Activity 2'!M$27:M$33,\"N/A\",0)","v":"N/A"}]
[{"$f":"'1-Cover Sheet'!$C$8","v":"Select One"},{"$f":"'1-Cover Sheet'!$F$8","v":"Select One"},{"$f":"'Summary Sheet'!$D$8","v":0},{"$f":"'Summary Sheet'!$D$10","v":0},{"$f":"'Drop Down Box'!B221","v":0},{"$f":"'Drop Down Box'!C221","v":0},{"$f":"'Drop Down Box'!D221","v":"Select One"},{"$f":"_xlfn.XLOOKUP(E57,'Drop Down Box'!$B$166:$B$249,'Drop Down Box'!$A$166:$A$249,\"Unknown\",0)","v":"Activity 1"},{"$f":"_xlfn.XLOOKUP($E57,'Activity 8'!$B$17:$B$23,'Activity 8'!$O$17:$O$23,\"N/A\",0)","v":"N/A"},{"$f":"_xlfn.XLOOKUP($E57,'Activity 8'!$B$17:$B$23,'Activity 8'!$P$17:$P$23,\"N/A\",0)","v":"N/A"},{"$f":"_xlfn.XLOOKUP($E57,'Activity 8'!$B$7:$B$13,'Activity 8'!$F$7:$F$13,\"N/A\",0)","v":"N/A"},{"$f":"_xlfn.XLOOKUP($E57,'Activity 8'!$B$7:$B$13,'Activity 8'!$G$7:$G$13,\"N/A\",0)","v":"N/A"},{"$f":"_xlfn.XLOOKUP($E57,'Activity 8'!$B$7:$B$13,'Activity 8'!H$7:H$13,\"N/A\",0)","v":"N/A"},{"$f":"_xlfn.XLOOKUP($E57,'Activity 1'!$B$7:$B$13,'Activity 1'!$A$7:$A$13,\"No\",0,1)","v":"No"},{"$f":"_xlfn.XLOOKUP($E57,'Activity 1'!$B$7:$B$13,'Activity 1'!$H$7:$H$13,\"N/A\",0,1)","v":"N/A"},{"$f":"_xlfn.XLOOKUP($E57,'Activity 1'!$B$7:$B$13,'Activity 1'!I$7:I$13,\"N/A\",0,1)","v":"N/A"},{"$f":"_xlfn.XLOOKUP($E57,'Activity 1'!$B$7:$B$13,'Activity 1'!J$7:J$13,\"N/A\",0,1)","v":"N/A"},{"$f":"_xlfn.XLOOKUP($E57,'Activity 1'!$B$7:$B$13,'Activity 1'!K$7:K$13,\"N/A\",0,1)","v":"N/A"},{"$f":"_xlfn.XLOOKUP($E57,'Activity 1'!$B$7:$B$13,'Activity 1'!L$7:L$13,\"N/A\",0,1)","v":"N/A"},{"$f":"_xlfn.XLOOKUP($E57,'Activity 1'!$B$7:$B$13,'Activity 1'!M$7:M$13,\"N/A\",0,1)","v":"N/A"},{"$f":"_xlfn.XLOOKUP($E57,'Activity 1'!$B$7:$B$13,'Activity 1'!N$7:N$13,\"N/A\",0,1)","v":"N/A"},0,{"$f":"_xlfn.XLOOKUP($E57,'Activity 1'!$B$7:$B$13,'Activity 1'!O$7:O$13,\"N/A\",0,1)","v":"N/A"},{"$f":"_xlfn.XLOOKUP($E57,'Activity 1'!$B$7:$B$13,'Activity 1'!P$7:P$13,\"N/A\",0,1)","v":"N/A"},{"$f":"_xlfn.XLOOKUP($E57,'Activity 1'!$B$7:$B$13,'Activity 1'!Q$7:Q$13,\"N/A\",0,1)","v":"N/A"},{"$f":"_xlfn.XLOOKUP($E57,'Activity 1'!$B$7:$B$13,'Activity 1'!R$7:R$13,\"N/A\",0,1)","v":"N/A"},{"$f":"_xlfn.XLOOKUP($E57,'Activity 1'!$B$7:$B$13,'Activity 1'!S$7:S$13,\"N/A\",0,1)","v":"N/A"},{"$f":"_xlfn.XLOOKUP($E57,'Activity 1'!$B$7:$B$13,'Activity 1'!T$7:T$13,\"N/A\",0,1)","v":"N/A"},{"$f":"_xlfn.XLOOKUP($E57,'Activity 1'!$B$7:$B$13,'Activity 1'!U$7:U$13,\"N/A\",0,1)","v":"N/A"},{"$f":"_xlfn.XLOOKUP($E57,'Activity 1'!$B$7:$B$13,'Activity 1'!V$7:V$13,\"N/A\",0,1)","v":"N/A"},{"$f":"_xlfn.XLOOKUP($E57,'Activity 1'!$B$17:$B$23,'Activity 1'!C$17:C$23,\"N/A\",0,1)","v":"N/A"},{"$f":"_xlfn.XLOOKUP($E57,'Activity 1'!$B$17:$B$23,'Activity 1'!D$17:D$23,\"N/A\",0,1)","v":"N/A"},{"$f":"_xlfn.XLOOKUP($E57,'Activity 1'!$B$17:$B$23,'Activity 1'!E$17:E$23,\"N/A\",0,1)","v":"N/A"},{"$f":"_xlfn.XLOOKUP($E57,'Activity 1'!$B$17:$B$23,'Activity 1'!F$17:F$23,\"N/A\",0,1)","v":"N/A"},{"$f":"_xlfn.XLOOKUP($E57,'Activity 1'!$B$17:$B$23,'Activity 1'!G$17:G$23,\"N/A\",0,1)","v":"N/A"},{"$f":"_xlfn.XLOOKUP($E57,'Activity 1'!$B$17:$B$23,'Activity 1'!H$17:H$23,\"N/A\",0,1)","v":"N/A"},{"$f":"_xlfn.XLOOKUP($E57,'Activity 1'!$B$17:$B$23,'Activity 1'!I$17:I$23,\"N/A\",0,1)","v":"N/A"},{"$f":"_xlfn.XLOOKUP($E57,'Activity 1'!$B$17:$B$23,'Activity 1'!J$17:J$23,\"N/A\",0,1)","v":"N/A"},{"$f":"_xlfn.XLOOKUP($E57,'Activity 1'!$B$17:$B$23,'Activity 1'!K$17:K$23,\"N/A\",0,1)","v":"N/A"},{"$f":"_xlfn.XLOOKUP($E57,'Activity 1'!$B$17:$B$23,'Activity 1'!L$17:L$23,\"N/A\",0,1)","v":"N/A"},{"$f":"_xlfn.XLOOKUP($E57,'Activity 1'!$B$17:$B$23,'Activity 1'!M$17:M$23,\"N/A\",0,1)","v":"N/A"},{"$f":"_xlfn.XLOOKUP($E57,'Activity 1'!$B$17:$B$23,'Activity 1'!O$17:O$23,\"N/A\",0,1)","v":"N/A"},{"$f":"_xlfn.XLOOKUP($E57,'Activity 1'!$B$17:$B$23,'Activity 1'!Q$17:Q$23,\"N/A\",0,1)","v":"N/A"},{"$f":"_xlfn.XLOOKUP($E57,'Activity 2'!$B$7:$B$13,'Activity 2'!$A$7:$A$13,\"No\",0,1)","v":"No"},{"$f":"_xlfn.XLOOKUP($E57,'Activity 2'!B$7:B$13,'Activity 2'!H$7:H$13,\"N/A\",0)","v":"N/A"},{"$f":"_xlfn.XLOOKUP($E57,'Activity 2'!C$7:C$13,'Activity 2'!I$7:I$13,\"N/A\",0)","v":"N/A"},{"$f":"_xlfn.XLOOKUP($E57,'Activity 2'!D$7:D$13,'Activity 2'!J$7:J$13,\"N/A\",0)","v":"N/A"},{"$f":"_xlfn.XLOOKUP($E57,'Activity 2'!E$7:E$13,'Activity 2'!K$7:K$13,\"N/A\",0)","v":"N/A"},{"$f":"_xlfn.XLOOKUP($E57,'Activity 2'!F$7:F$13,'Activity 2'!L$7:L$13,\"N/A\",0)","v":"N/A"},{"$f":"_xlfn.XLOOKUP($E57,'Activity 2'!G$7:G$13,'Activity 2'!M$7:M$13,\"N/A\",0)","v":"N/A"},{"$f":"_xlfn.XLOOKUP($E57,'Activity 2'!H$7:H$13,'Activity 2'!N$7:N$13,\"N/A\",0)","v":"N/A"},{"$f":"_xlfn.XLOOKUP($E57,'Activity 2'!I$7:I$13,'Activity 2'!O$7:O$13,\"N/A\",0)","v":"N/A"},{"$f":"_xlfn.XLOOKUP($E57,'Activity 2'!J$7:J$13,'Activity 2'!P$7:P$13,\"N/A\",0)","v":"N/A"},{"$f":"_xlfn.XLOOKUP($E57,'Activity 2'!K$7:K$13,'Activity 2'!Q$7:Q$13,\"N/A\",0)","v":"N/A"},{"$f":"_xlfn.XLOOKUP($E57,'Activity 2'!L$7:L$13,'Activity 2'!R$7:R$13,\"N/A\",0)","v":"N/A"},{"$f":"_xlfn.XLOOKUP($E57,'Activity 2'!M$7:M$13,'Activity 2'!S$7:S$13,\"N/A\",0)","v":"N/A"},{"$f":"_xlfn.XLOOKUP($E57,'Activity 2'!N$7:N$13,'Activity 2'!T$7:T$13,\"N/A\",0)","v":"N/A"},{"$f":"_xlfn.XLOOKUP($E57,'Activity 2'!O$7:O$13,'Activity 2'!U$7:U$13,\"N/A\",0)","v":"N/A"},{"$f":"_xlfn.XLOOKUP($E57,'Activity 2'!P$7:P$13,'Activity 2'!V$7:V$13,\"N/A\",0)","v":"N/A"},{"$f":"_xlfn.XLOOKUP($E57,'Activity 2'!$B$17:$B$23,'Activity 2'!C$17:C$23,\"N/A\",0,1)","v":"N/A"},{"$f":"_xlfn.XLOOKUP($E57,'Activity 2'!$B$17:$B$23,'Activity 2'!D$17:D$23,\"N/A\",0,1)","v":"N/A"},{"$f":"_xlfn.XLOOKUP($E57,'Activity 2'!$B$17:$B$23,'Activity 2'!E$17:E$23,\"N/A\",0,1)","v":"N/A"},{"$f":"_xlfn.XLOOKUP($E57,'Activity 2'!$B$17:$B$23,'Activity 2'!F$17:F$23,\"N/A\",0,1)","v":"N/A"},{"$f":"_xlfn.XLOOKUP($E57,'Activity 2'!$B$17:$B$23,'Activity 2'!G$17:G$23,\"N/A\",0,1)","v":"N/A"},{"$f":"_xlfn.XLOOKUP($E57,'Activity 2'!$B$17:$B$23,'Activity 2'!H$17:H$23,\"N/A\",0,1)","v":"N/A"},{"$f":"_xlfn.XLOOKUP($E57,'Activity 2'!$B$17:$B$23,'Activity 2'!I$17:I$23,\"N/A\",0,1)","v":"N/A"},{"$f":"_xlfn.XLOOKUP($E57,'Activity 2'!$B$17:$B$23,'Activity 2'!J$17:J$23,\"N/A\",0,1)","v":"N/A"},{"$f":"_xlfn.XLOOKUP($E57,'Activity 2'!$B$17:$B$23,'Activity 2'!K$17:K$23,\"N/A\",0,1)","v":"N/A"},{"$f":"_xlfn.XLOOKUP($E57,'Activity 2'!$B$17:$B$23,'Activity 2'!L$17:L$23,\"N/A\",0,1)","v":"N/A"},{"$f":"_xlfn.XLOOKUP($E57,'Activity 2'!$B$17:$B$23,'Activity 2'!M$17:M$23,\"N/A\",0,1)","v":"N/A"},{"$f":"_xlfn.XLOOKUP($E57,'Activity 2'!$B$17:$B$23,'Activity 2'!O$17:O$23,\"N/A\",0,1)","v":"N/A"},{"$f":"_xlfn.XLOOKUP($E57,'Activity 2'!$B$17:$B$23,'Activity 2'!Q$17:Q$23,\"N/A\",0,1)","v":"N/A"},null,{"$f":"_xlfn.XLOOKUP($E57,'Activity 3'!$B$8:$B$14,'Activity 3'!K$8:K$14,\"N/A\",0,1)","v":"N/A"},{"$f":"_xlfn.XLOOKUP($E57,'Activity 3'!$B$8:$B$14,'Activity 3'!L$8:L$14,\"N/A\",0,1)","v":"N/A"},{"$f":"_xlfn.XLOOKUP($E57,'Activity 3'!$B$8:$B$14,'Activity 3'!M$8:M$14,\"N/A\",0,1)","v":"N/A"},{"$f":"_xlfn.XLOOKUP($E57,'Activity 3'!$B$8:$B$14,'Activity 3'!N$8:N$14,\"N/A\",0,1)","v":"N/A"},{"$f":"_xlfn.XLOOKUP($E57,'Activity 3'!$B$8:$B$14,'Activity 3'!O$8:O$14,\"N/A\",0,1)","v":"N/A"},{"$f":"_xlfn.XLOOKUP($E57,'Activity 3'!$B$8:$B$14,'Activity 3'!R$8:R$14,\"N/A\",0,1)","v":"N/A"},{"$f":"_xlfn.XLOOKUP($E57,'Activity 4'!$B$8:$B$14,'Activity 4'!$A$8:$A$14,\"No\",0,1)","v":"No"},{"$f":"_xlfn.XLOOKUP($E57,'Activity 4'!$B$8:$B$14,'Activity 4'!L$8:L$14,\"N/A\",0,1)","v":"N/A"},{"$f":"_xlfn.XLOOKUP($E57,'Activity 4'!$B$8:$B$14,'Activity 4'!I$8:I$14,\"N/A\",0,1)","v":"N/A"},{"$f":"_xlfn.XLOOKUP($E57,'Activity 4'!$B$8:$B$14,'Activity 4'!M$8:M$14,\"N/A\",0,1)","v":"N/A"},{"$f":"_xlfn.XLOOKUP($E57,'Activity 5'!$B$8:$B$14,'Activity 5'!$A$8:$A$14,\"No\",0,1)","v":"No"},{"$f":"_xlfn.XLOOKUP($E57,'Activity 5'!$B$8:$B$14,'Activity 5'!J$8:J$14,\"N/A\",0,1)","v":"N/A"},{"$f":"_xlfn.XLOOKUP($E57,'Activity 5'!$B$8:$B$14,'Activity 5'!K$8:K$14,\"N/A\",0,1)","v":"N/A"},{"$f":"_xlfn.XLOOKUP($E57,'Activity 5'!$B$8:$B$14,'Activity 5'!N$8:N$14,\"N/A\",0,1)","v":"N/A"},{"$f":"_xlfn.XLOOKUP($E57,'Activity 5'!$B$8:$B$14,'Activity 5'!O$8:O$14,\"N/A\",0,1)","v":"N/A"},{"$f":"_xlfn.XLOOKUP($E57,'Activity 5'!$B$8:$B$14,'Activity 5'!P$8:P$14,\"N/A\",0,1)","v":"N/A"},{"$f":"_xlfn.XLOOKUP($E57,'Activity 5'!$B$8:$B$14,'Activity 5'!Q$8:Q$14,\"N/A\",0,1)","v":"N/A"},{"$f":"_xlfn.XLOOKUP($E57,'Activity 5'!$B$8:$B$14,'Activity 5'!R$8:R$14,\"N/A\",0,1)","v":"N/A"},{"$f":"_xlfn.XLOOKUP($E57,'Activity 6'!$B$7:$B$13,'Activity 6'!A$7:A$13,\"No\",0,1)","v":"No"},{"$f":"_xlfn.XLOOKUP($E57,'Activity 6'!$B$7:$B$13,'Activity 6'!K$7:K$13,\"N/A\",0,1)","v":"N/A"},{"$f":"_xlfn.XLOOKUP($E57,'Activity 6'!$B$7:$B$13,'Activity 6'!L$7:L$13,\"N/A\",0,1)","v":"N/A"},{"$f":"_xlfn.XLOOKUP($E57,'Activity 6'!$B$7:$B$13,'Activity 6'!M$7:M$13,\"N/A\",0,1)","v":"N/A"},{"$f":"_xlfn.XLOOKUP($E57,'Activity 6'!$B$7:$B$13,'Activity 6'!N$7:N$13,\"N/A\",0,1)","v":"N/A"},{"$f":"_xlfn.XLOOKUP($E57,'Activity 6'!$B$7:$B$13,'Activity 6'!O$7:O$13,\"N/A\",0,1)","v":"N/A"},{"$f":"_xlfn.XLOOKUP($E57,'Activity 6'!$B$7:$B$13,'Activity 6'!P$7:P$13,\"N/A\",0,1)","v":"N/A"},{"$f":"_xlfn.XLOOKUP($E57,'Activity 6'!$B$7:$B$13,'Activity 6'!Q$7:Q$13,\"N/A\",0,1)","v":"N/A"},{"$f":"_xlfn.XLOOKUP($E57,'Activity 6'!$B$7:$B$13,'Activity 6'!R$7:R$13,\"N/A\",0,1)","v":"N/A"},{"$f":"_xlfn.XLOOKUP($E57,'Activity 6'!$B$7:$B$13,'Activity 6'!S$7:S$13,\"N/A\",0,1)","v":"N/A"},{"$f":"_xlfn.XLOOKUP($E57,'Activity 6'!$B$7:$B$13,'Activity 6'!T$7:T$13,\"N/A\",0,1)","v":"N/A"},{"$f":"_xlfn.XLOOKUP($E57,'Activity 6'!$B$7:$B$13,'Activity 6'!U$7:U$13,\"N/A\",0,1)","v":"N/A"},{"$f":"_xlfn.XLOOKUP($E57,'Activity 6'!$B$22:$B$28,'Activity 6'!C$22:C$28,\"N/A\",0,1)","v":"N/A"},{"$f":"_xlfn.XLOOKUP($E57,'Activity 6'!$B$22:$B$28,'Activity 6'!D$22:D$28,\"N/A\",0,1)","v":"N/A"},{"$f":"_xlfn.XLOOKUP($E57,'Activity 6'!$B$22:$B$28,'Activity 6'!E$22:E$28,\"N/A\",0,1)","v":"N/A"},{"$f":"_xlfn.XLOOKUP($E57,'Activity 6'!$B$22:$B$28,'Activity 6'!F$22:F$28,\"N/A\",0,1)","v":"N/A"},{"$f":"_xlfn.XLOOKUP($E57,'Activity 6'!$B$22:$B$28,'Activity 6'!G$22:G$28,\"N/A\",0,1)","v":"N/A"},{"$f":"_xlfn.XLOOKUP($E57,'Activity 6'!$B$22:$B$28,'Activity 6'!H$22:H$28,\"N/A\",0,1)","v":"N/A"},{"$f":"_xlfn.XLOOKUP($E57,'Activity 6'!$B$22:$B$28,'Activity 6'!I$22:I$28,\"N/A\",0,1)","v":"N/A"},{"$f":"_xlfn.XLOOKUP($E57,'Activity 6'!$B$22:$B$28,'Activity 6'!J$22:J$28,\"N/A\",0,1)","v":"N/A"},{"$f":"_xlfn.XLOOKUP($E57,'Activity 6'!$B$22:$B$28,'Activity 6'!K$22:K$28,\"N/A\",0,1)","v":"N/A"},{"$f":"_xlfn.XLOOKUP($E57,'Activity 6'!$B$22:$B$28,'Activity 6'!L$22:L$28,\"N/A\",0,1)","v":"N/A"},{"$f":"_xlfn.XLOOKUP($E57,'Activity 6'!$B$22:$B$28,'Activity 6'!M$22:M$28,\"N/A\",0,1)","v":"N/A"},{"$f":"_xlfn.XLOOKUP($E57,'Activity 6'!$B$22:$B$28,'Activity 6'!N$22:N$28,\"N/A\",0,1)","v":"N/A"},{"$f":"_xlfn.XLOOKUP($E57,'Activity 6'!$B$32:$B$38,'Activity 6'!C$32:C$38,\"N/A\",0,1)","v":"N/A"},{"$f":"_xlfn.XLOOKUP($E57,'Activity 6'!$B$32:$B$38,'Activity 6'!D$32:D$38,\"N/A\",0,1)","v":"N/A"},{"$f":"_xlfn.XLOOKUP($E57,'Activity 6'!$B$32:$B$38,'Activity 6'!E$32:E$38,\"N/A\",0,1)","v":"N/A"},{"$f":"_xlfn.XLOOKUP($E57,'Activity 6'!$B$32:$B$38,'Activity 6'!F$32:F$38,\"N/A\",0,1)","v":"N/A"},{"$f":"_xlfn.XLOOKUP($E57,'Activity 6'!$B$32:$B$38,'Activity 6'!G$32:G$38,\"N/A\",0,1)","v":"N/A"},{"$f":"_xlfn.XLOOKUP($E57,'Activity 6'!$B$32:$B$38,'Activity 6'!H$32:H$38,\"N/A\",0,1)","v":"N/A"},{"$f":"_xlfn.XLOOKUP($E57,'Activity 6'!$B$32:$B$38,'Activity 6'!I$32:I$38,\"N/A\",0,1)","v":"N/A"},{"$f":"_xlfn.XLOOKUP($E57,'Activity 6'!$B$32:$B$38,'Activity 6'!J$32:J$38,\"N/A\",0,1)","v":"N/A"},{"$f":"_xlfn.XLOOKUP($E57,'Activity 6'!$B$32:$B$38,'Activity 6'!K$32:K$38,\"N/A\",0,1)","v":"N/A"},{"$f":"_xlfn.XLOOKUP($E57,'Activity 6'!$B$32:$B$38,'Activity 6'!M$32:M$38,\"N/A\",0,1)","v":"N/A"},{"$f":"_xlfn.XLOOKUP($E57,'Activity 7'!$B$7:$B$13,'Activity 7'!$A$7:$A$13,\"No\",0,1)","v":"No"},{"$f":"_xlfn.XLOOKUP($E57,'Activity 7'!$B$7:$B$13,'Activity 7'!M$7:M$13,\"N/A\",0,1)","v":"N/A"},{"$f":"_xlfn.XLOOKUP($E57,'Activity 7'!$B$7:$B$13,'Activity 7'!K$7:K$13,\"N/A\",0,1)","v":"N/A"},{"$f":"_xlfn.XLOOKUP($E57,'Activity 7'!$B$7:$B$13,'Activity 7'!N$7:N$13,\"N/A\",0,1)","v":"N/A"},{"$f":"_xlfn.XLOOKUP($E57,'Activity 7'!$B$7:$B$13,'Activity 7'!O$7:O$13,\"N/A\",0,1)","v":"N/A"},{"$f":"_xlfn.XLOOKUP($E57,'Activity 7'!$B$7:$B$13,'Activity 7'!P$7:P$13,\"N/A\",0,1)","v":"N/A"},{"$f":"_xlfn.XLOOKUP($E57,'Activity 7'!$B$7:$B$13,'Activity 7'!Q$7:Q$13,\"N/A\",0,1)","v":"N/A"},{"$f":"_xlfn.XLOOKUP($E57,'Activity 7'!$B$7:$B$13,'Activity 7'!R$7:R$13,\"N/A\",0,1)","v":"N/A"},{"$f":"_xlfn.XLOOKUP($E57,'Activity 7'!$B$7:$B$13,'Activity 7'!S$7:S$13,\"N/A\",0,1)","v":"N/A"},{"$f":"_xlfn.XLOOKUP($E57,'Activity 7'!$B$7:$B$13,'Activity 7'!T$7:T$13,\"N/A\",0,1)","v":"N/A"},{"$f":"_xlfn.XLOOKUP($E57,'Activity 7'!$B$7:$B$13,'Activity 7'!U$7:U$13,\"N/A\",0,1)","v":"N/A"},{"$f":"_xlfn.XLOOKUP($E57,'Activity 7'!$B$7:$B$13,'Activity 7'!V$7:V$13,\"N/A\",0,1)","v":"N/A"},{"$f":"_xlfn.XLOOKUP($E57,'Activity 7'!$B$17:$B$23,'Activity 7'!E$17:E$23,\"N/A\",0,1)","v":"N/A"},{"$f":"_xlfn.XLOOKUP($E57,'Activity 7'!$B$17:$B$23,'Activity 7'!G$17:G$23,\"N/A\",0,1)","v":"N/A"},{"$f":"_xlfn.XLOOKUP($E57,'Activity 7'!$B$17:$B$23,'Activity 7'!I$17:I$23,\"N/A\",0,1)","v":"N/A"},{"$f":"_xlfn.XLOOKUP($E57,'Activity 7'!$B$17:$B$23,'Activity 7'!J$17:J$23,\"N/A\",0,1)","v":"N/A"},{"$f":"_xlfn.XLOOKUP($E57,'Activity 7'!$B$17:$B$23,'Activity 7'!K$17:K$23,\"N/A\",0,1)","v":"N/A"},{"$f":"_xlfn.XLOOKUP($E57,'Activity 7'!$B$17:$B$23,'Activity 7'!L$17:L$23,\"N/A\",0,1)","v":"N/A"},{"$f":"_xlfn.XLOOKUP($E57,'Activity 7'!$B$17:$B$23,'Activity 7'!M$17:M$23,\"N/A\",0,1)","v":"N/A"},{"$f":"_xlfn.XLOOKUP($E57,'Activity 7'!$B$17:$B$23,'Activity 7'!N$17:N$23,\"N/A\",0,1)","v":"N/A"},{"$f":"_xlfn.XLOOKUP($E57,'Activity 7'!$B$17:$B$23,'Activity 7'!P$17:P$23,\"N/A\",0,1)","v":"N/A"},{"$f":"_xlfn.XLOOKUP($E57,'Activity 8'!$B$7:$B$13,'Activity 8'!A$7:A$13,\"No\",0,1)","v":"No"},{"$f":"_xlfn.XLOOKUP($E57,'Activity 8'!$B$7:$B$13,'Activity 8'!I$7:I$13,\"N/A\",0,1)","v":"N/A"},{"$f":"_xlfn.XLOOKUP($E57,'Activity 8'!$B$7:$B$13,'Activity 8'!J$7:J$13,\"N/A\",0,1)","v":"N/A"},{"$f":"_xlfn.XLOOKUP($E57,'Activity 8'!$B$7:$B$13,'Activity 8'!K$7:K$13,\"N/A\",0,1)","v":"N/A"},{"$f":"_xlfn.XLOOKUP($E57,'Activity 8'!$B$7:$B$13,'Activity 8'!L$7:L$13,\"N/A\",0,1)","v":"N/A"},{"$f":"_xlfn.XLOOKUP($E57,'Activity 8'!$B$7:$B$13,'Activity 8'!M$7:M$13,\"N/A\",0,1)","v":"N/A"},{"$f":"_xlfn.XLOOKUP($E57,'Activity 8'!$B$7:$B$13,'Activity 8'!N$7:N$13,\"N/A\",0,1)","v":"N/A"},{"$f":"_xlfn.XLOOKUP($E57,'Activity 8'!$B$7:$B$13,'Activity 8'!O$7:O$13,\"N/A\",0,1)","v":"N/A"},{"$f":"_xlfn.XLOOKUP($E57,'Activity 8'!$B$7:$B$13,'Activity 8'!P$7:P$13,\"N/A\",0,1)","v":"N/A"},{"$f":"_xlfn.XLOOKUP($E57,'Activity 8'!$B$7:$B$13,'Activity 8'!Q$7:Q$13,\"N/A\",0,1)","v":"N/A"},{"$f":"_xlfn.XLOOKUP($E57,'Activity 8'!$B$7:$B$13,'Activity 8'!R$7:R$13,\"N/A\",0,1)","v":"N/A"},{"$f":"_xlfn.XLOOKUP($E57,'Activity 8'!$B$7:$B$13,'Activity 8'!S$7:S$13,\"N/A\",0,1)","v":"N/A"},{"$f":"_xlfn.XLOOKUP($E57,'Activity 8'!$B$7:$B$13,'Activity 8'!T$7:T$13,\"N/A\",0,1)","v":"N/A"},{"$f":"_xlfn.XLOOKUP($E57,'Activity 8'!$B$7:$B$13,'Activity 8'!U$7:U$13,\"N/A\",0,1)","v":"N/A"},{"$f":"_xlfn.XLOOKUP($E57,'Activity 8'!$B$7:$B$13,'Activity 8'!V$7:V$13,\"N/A\",0,1)","v":"N/A"},{"$f":"_xlfn.XLOOKUP($E57,'Activity 8'!$B$17:$B$23,'Activity 8'!D$17:D$23,\"N/A\",0,1)","v":"N/A"},{"$f":"_xlfn.XLOOKUP($E57,'Activity 8'!$B$17:$B$23,'Activity 8'!E$17:E$23,\"N/A\",0,1)","v":"N/A"},{"$f":"_xlfn.XLOOKUP($E57,'Activity 8'!$B$17:$B$23,'Activity 8'!F$17:F$23,\"N/A\",0,1)","v":"N/A"},{"$f":"_xlfn.XLOOKUP($E57,'Activity 8'!$B$17:$B$23,'Activity 8'!G$17:G$23,\"N/A\",0,1)","v":"N/A"},{"$f":"_xlfn.XLOOKUP($E57,'Activity 8'!$B$17:$B$23,'Activity 8'!H$17:H$23,\"N/A\",0,1)","v":"N/A"},{"$f":"_xlfn.XLOOKUP($E57,'Activity 8'!$B$17:$B$23,'Activity 8'!I$17:I$23,\"N/A\",0,1)","v":"N/A"},{"$f":"_xlfn.XLOOKUP($E57,'Activity 8'!$B$17:$B$23,'Activity 8'!J$17:J$23,\"N/A\",0,1)","v":"N/A"},{"$f":"_xlfn.XLOOKUP($E57,'Activity 8'!$B$17:$B$23,'Activity 8'!K$17:K$23,\"N/A\",0,1)","v":"N/A"},{"$f":"_xlfn.XLOOKUP($E57,'Activity 8'!$B$17:$B$23,'Activity 8'!L$17:L$23,\"N/A\",0,1)","v":"N/A"},{"$f":"_xlfn.XLOOKUP($E57,'Activity 8'!$B$17:$B$23,'Activity 8'!M$17:M$23,\"N/A\",0,1)","v":"N/A"},{"$f":"_xlfn.XLOOKUP($E57,'Activity 8'!$B$17:$B$23,'Activity 8'!N$17:N$23,\"N/A\",0,1)","v":"N/A"},{"$f":"_xlfn.XLOOKUP($E57,'Activity 8'!$B$17:$B$23,'Activity 8'!P$17:P$23,\"N/A\",0,1)","v":"N/A"},{"$f":"_xlfn.XLOOKUP(E57,'Activity 9'!$B$7:$B$13,'Activity 9'!$A$7:$A$13,\"No\",0,1)","v":"No"},{"$f":"_xlfn.XLOOKUP($E57,'Activity 9'!$B$7:$B$13,'Activity 9'!J$7:J$13,\"N/A\",0,1)","v":"N/A"},{"$f":"_xlfn.XLOOKUP($E57,'Activity 9'!$B$7:$B$13,'Activity 9'!K$7:K$13,\"N/A\",0,1)","v":"N/A"},{"$f":"_xlfn.XLOOKUP($E57,'Activity 9'!$B$7:$B$13,'Activity 9'!L$7:L$13,\"N/A\",0,1)","v":"N/A"},{"$f":"_xlfn.XLOOKUP($E57,'Activity 9'!$B$7:$B$13,'Activity 9'!M$7:M$13,\"N/A\",0,1)","v":"N/A"},{"$f":"_xlfn.XLOOKUP($E57,'Activity 9'!$B$7:$B$13,'Activity 9'!N$7:N$13,\"N/A\",0,1)","v":"N/A"},{"$f":"_xlfn.XLOOKUP($E57,'Activity 9'!$B$7:$B$13,'Activity 9'!O$7:O$13,\"N/A\",0,1)","v":"N/A"},{"$f":"_xlfn.XLOOKUP($E57,'Activity 9'!$B$7:$B$13,'Activity 9'!P$7:P$13,\"N/A\",0,1)","v":"N/A"},{"$f":"_xlfn.XLOOKUP($E57,'Activity 9'!$B$7:$B$13,'Activity 9'!Q$7:Q$13,\"N/A\",0,1)","v":"N/A"},{"$f":"_xlfn.XLOOKUP($E57,'Activity 9'!$B$7:$B$13,'Activity 9'!R$7:R$13,\"N/A\",0,1)","v":"N/A"},{"$f":"_xlfn.XLOOKUP($E57,'Activity 9'!$B$7:$B$13,'Activity 9'!S$7:S$13,\"N/A\",0,1)","v":"N/A"},{"$f":"_xlfn.XLOOKUP($E57,'Activity 9'!$B$7:$B$13,'Activity 9'!T$7:T$13,\"N/A\",0,1)","v":"N/A"},{"$f":"_xlfn.XLOOKUP($E57,'Activity 9'!$B$17:$B$23,'Activity 9'!E$17:E$23,\"N/A\",0,1)","v":"N/A"},{"$f":"_xlfn.XLOOKUP($E57,'Activity 9'!$B$17:$B$23,'Activity 9'!F$17:F$23,\"N/A\",0,1)","v":"N/A"},{"$f":"_xlfn.XLOOKUP($E57,'Activity 9'!$B$17:$B$23,'Activity 9'!G$17:G$23,\"N/A\",0,1)","v":"N/A"},{"$f":"_xlfn.XLOOKUP($E57,'Activity 9'!$B$17:$B$23,'Activity 9'!H$17:H$23,\"N/A\",0,1)","v":"N/A"},{"$f":"_xlfn.XLOOKUP($E57,'Activity 9'!$B$17:$B$23,'Activity 9'!I$17:I$23,\"N/A\",0,1)","v":"N/A"},{"$f":"_xlfn.XLOOKUP($E57,'Activity 9'!$B$17:$B$23,'Activity 9'!J$17:J$23,\"N/A\",0,1)","v":"N/A"},{"$f":"_xlfn.XLOOKUP($E57,'Activity 9'!$B$17:$B$23,'Activity 9'!K$17:K$23,\"N/A\",0,1)","v":"N/A"},{"$f":"_xlfn.XLOOKUP($E57,'Activity 9'!$B$17:$B$23,'Activity 9'!L$17:L$23,\"N/A\",0,1)","v":"N/A"},{"$f":"_xlfn.XLOOKUP($E57,'Activity 9'!$B$17:$B$23,'Activity 9'!N$17:N$23,\"N/A\",0,1)","v":"N/A"},{"$f":"_xlfn.XLOOKUP($E57,'Activity 9'!$B$17:$B$23,'Activity 9'!O$17:O$23,\"N/A\",0,1)","v":"N/A"},{"$f":"_xlfn.XLOOKUP($E57,'Activity 9'!$B$17:$B$23,'Activity 9'!Q$17:Q$23,\"N/A\",0,1)","v":"N/A"},{"$f":"_xlfn.XLOOKUP($E57,'Activity 10'!$B$7:$B$13,'Activity 10'!A$7:A$13,\"No\",0,1)","v":"No"},{"$f":"_xlfn.XLOOKUP($E57,'Activity 10'!$B$7:$B$13,'Activity 10'!J$7:J$13,\"N/A\",0,1)","v":"N/A"},{"$f":"_xlfn.XLOOKUP($E57,'Activity 10'!$B$7:$B$13,'Activity 10'!K$7:K$13,\"N/A\",0,1)","v":"N/A"},{"$f":"_xlfn.XLOOKUP($E57,'Activity 10'!$B$7:$B$13,'Activity 10'!L$7:L$13,\"N/A\",0,1)","v":"N/A"},{"$f":"_xlfn.XLOOKUP($E57,'Activity 10'!$B$7:$B$13,'Activity 10'!M$7:M$13,\"N/A\",0,1)","v":"N/A"},{"$f":"_xlfn.XLOOKUP($E57,'Activity 10'!$B$7:$B$13,'Activity 10'!N$7:N$13,\"N/A\",0,1)","v":"N/A"},{"$f":"_xlfn.XLOOKUP($E57,'Activity 10'!$B$7:$B$13,'Activity 10'!O$7:O$13,\"N/A\",0,1)","v":"N/A"},{"$f":"_xlfn.XLOOKUP($E57,'Activity 10'!$B$7:$B$13,'Activity 10'!P$7:P$13,\"N/A\",0,1)","v":"N/A"},{"$f":"_xlfn.XLOOKUP($E57,'Activity 10'!$B$7:$B$13,'Activity 10'!Q$7:Q$13,\"N/A\",0,1)","v":"N/A"},{"$f":"_xlfn.XLOOKUP($E57,'Activity 10'!$B$7:$B$13,'Activity 10'!R$7:R$13,\"N/A\",0,1)","v":"N/A"},{"$f":"_xlfn.XLOOKUP($E57,'Activity 10'!$B$7:$B$13,'Activity 10'!S$7:S$13,\"N/A\",0,1)","v":"N/A"},{"$f":"_xlfn.XLOOKUP($E57,'Activity 10'!$B$7:$B$13,'Activity 10'!T$7:T$13,\"N/A\",0,1)","v":"N/A"},{"$f":"_xlfn.XLOOKUP($E57,'Activity 10'!$B$7:$B$13,'Activity 10'!U$7:U$13,\"N/A\",0,1)","v":"N/A"},{"$f":"_xlfn.XLOOKUP($E57,'Activity 10'!$B$7:$B$13,'Activity 10'!V$7:V$13,\"N/A\",0,1)","v":"N/A"},{"$f":"_xlfn.XLOOKUP($E57,'Activity 10'!$B$17:$B$23,'Activity 10'!E$17:E$23,\"N/A\",0,1)","v":"N/A"},{"$f":"_xlfn.XLOOKUP($E57,'Activity 10'!$B$17:$B$23,'Activity 10'!F$17:F$23,\"N/A\",0,1)","v":"N/A"},{"$f":"_xlfn.XLOOKUP($E57,'Activity 10'!$B$17:$B$23,'Activity 10'!G$17:G$23,\"N/A\",0,1)","v":"N/A"},{"$f":"_xlfn.XLOOKUP($E57,'Activity 10'!$B$17:$B$23,'Activity 10'!H$17:H$23,\"N/A\",0,1)","v":"N/A"},{"$f":"_xlfn.XLOOKUP($E57,'Activity 10'!$B$17:$B$23,'Activity 10'!I$17:I$23,\"N/A\",0,1)","v":"N/A"},{"$f":"_xlfn.XLOOKUP($E57,'Activity 10'!$B$17:$B$23,'Activity 10'!J$17:J$23,\"N/A\",0,1)","v":"N/A"},{"$f":"_xlfn.XLOOKUP($E57,'Activity 10'!$B$17:$B$23,'Activity 10'!K$17:K$23,\"N/A\",0,1)","v":"N/A"},{"$f":"_xlfn.XLOOKUP($E57,'Activity 10'!$B$17:$B$23,'Activity 10'!L$17:L$23,\"N/A\",0,1)","v":"N/A"},{"$f":"_xlfn.XLOOKUP($E57,'Activity 10'!$B$17:$B$23,'Activity 10'!M$17:M$23,\"N/A\",0,1)","v":"N/A"},{"$f":"_xlfn.XLOOKUP($E57,'Activity 10'!$B$17:$B$23,'Activity 10'!N$17:N$23,\"N/A\",0,1)","v":"N/A"},{"$f":"_xlfn.XLOOKUP($E57,'Activity 10'!$B$17:$B$23,'Activity 10'!P$17:P$23,\"N/A\",0,1)","v":"N/A"},{"$f":"_xlfn.XLOOKUP($E57,'Competitive Activity 1'!B$7:B$13,'Competitive Activity 1'!A$7:A$13,\"No\",0,1)","v":"No"},{"$f":"_xlfn.XLOOKUP($E57,'Competitive Activity 1'!$B$7:$B$13,'Competitive Activity 1'!H$7:H$13,\"N/A\",0,1)","v":"N/A"},{"$f":"_xlfn.XLOOKUP($E57,'Competitive Activity 1'!$B$7:$B$13,'Competitive Activity 1'!I$7:I$13,\"N/A\",0,1)","v":"N/A"},{"$f":"_xlfn.XLOOKUP($E57,'Competitive Activity 1'!$B$7:$B$13,'Competitive Activity 1'!J$7:J$13,\"N/A\",0,1)","v":"N/A"},{"$f":"_xlfn.XLOOKUP($E57,'Competitive Activity 1'!$B$7:$B$13,'Competitive Activity 1'!K$7:K$13,\"N/A\",0,1)","v":"N/A"},{"$f":"_xlfn.XLOOKUP($E57,'Competitive Activity 1'!$B$7:$B$13,'Competitive Activity 1'!L$7:L$13,\"N/A\",0,1)","v":"N/A"},{"$f":"_xlfn.XLOOKUP($E57,'Competitive Activity 1'!$B$7:$B$13,'Competitive Activity 1'!M$7:M$13,\"N/A\",0,1)","v":"N/A"},{"$f":"_xlfn.XLOOKUP($E57,'Competitive Activity 1'!$B$7:$B$13,'Competitive Activity 1'!N$7:N$13,\"N/A\",0,1)","v":"N/A"},{"$f":"_xlfn.XLOOKUP($E57,'Competitive Activity 1'!$B$7:$B$13,'Competitive Activity 1'!O$7:O$13,\"N/A\",0,1)","v":"N/A"},{"$f":"_xlfn.XLOOKUP($E57,'Competitive Activity 1'!$B$7:$B$13,'Competitive Activity 1'!P$7:P$13,\"N/A\",0,1)","v":"N/A"},{"$f":"_xlfn.XLOOKUP($E57,'Competitive Activity 1'!$B$7:$B$13,'Competitive Activity 1'!Q$7:Q$13,\"N/A\",0,1)","v":"N/A"},{"$f":"_xlfn.XLOOKUP($E57,'Competitive Activity 1'!$B$7:$B$13,'Competitive Activity 1'!R$7:R$13,\"N/A\",0,1)","v":"N/A"},{"$f":"_xlfn.XLOOKUP($E57,'Competitive Activity 1'!$B$7:$B$13,'Competitive Activity 1'!S$7:S$13,\"N/A\",0,1)","v":"N/A"},{"$f":"_xlfn.XLOOKUP($E57,'Competitive Activity 1'!$B$7:$B$13,'Competitive Activity 1'!T$7:T$13,\"N/A\",0,1)","v":"N/A"},{"$f":"_xlfn.XLOOKUP($E57,'Competitive Activity 1'!$B$7:$B$13,'Competitive Activity 1'!U$7:U$13,\"N/A\",0,1)","v":"N/A"},{"$f":"_xlfn.XLOOKUP($E57,'Competitive Activity 1'!$B$17:$B$23,'Competitive Activity 1'!C$17:C$23,\"N/A\",0,1)","v":"N/A"},{"$f":"_xlfn.XLOOKUP($E57,'Competitive Activity 1'!$B$17:$B$23,'Competitive Activity 1'!D$17:D$23,\"N/A\",0,1)","v":"N/A"},{"$f":"_xlfn.XLOOKUP($E57,'Competitive Activity 1'!$B$17:$B$23,'Competitive Activity 1'!E$17:E$23,\"N/A\",0,1)","v":"N/A"},{"$f":"_xlfn.XLOOKUP($E57,'Competitive Activity 1'!$B$17:$B$23,'Competitive Activity 1'!F$17:F$23,\"N/A\",0,1)","v":"N/A"},{"$f":"_xlfn.XLOOKUP($E57,'Competitive Activity 1'!$B$17:$B$23,'Competitive Activity 1'!G$17:G$23,\"N/A\",0,1)","v":"N/A"},{"$f":"_xlfn.XLOOKUP($E57,'Competitive Activity 1'!$B$17:$B$23,'Competitive Activity 1'!H$17:H$23,\"N/A\",0,1)","v":"N/A"},{"$f":"_xlfn.XLOOKUP($E57,'Competitive Activity 1'!$B$17:$B$23,'Competitive Activity 1'!I$17:I$23,\"N/A\",0,1)","v":"N/A"},{"$f":"_xlfn.XLOOKUP($E57,'Competitive Activity 1'!$B$17:$B$23,'Competitive Activity 1'!J$17:J$23,\"N/A\",0,1)","v":"N/A"},{"$f":"_xlfn.XLOOKUP($E57,'Competitive Activity 1'!$B$17:$B$23,'Competitive Activity 1'!K$17:K$23,\"N/A\",0,1)","v":"N/A"},{"$f":"_xlfn.XLOOKUP($E57,'Competitive Activity 1'!$B$17:$B$23,'Competitive Activity 1'!M$17:M$23,\"N/A\",0,1)","v":"N/A"},{"$f":"_xlfn.XLOOKUP($E57,'Competitive Activity 1'!$B$17:$B$23,'Competitive Activity 1'!N$17:N$23,\"N/A\",0,1)","v":"N/A"},{"$f":"_xlfn.XLOOKUP($E57,'Competitive Activity 1'!$B$17:$B$23,'Competitive Activity 1'!P$17:P$23,\"N/A\",0,1)","v":"N/A"},{"$f":"_xlfn.XLOOKUP($E57,'Competitive Activity 2'!$B$7:$B$13,'Competitive Activity 2'!A$7:A$13,\"No\",0)","v":"No"},{"$f":"_xlfn.XLOOKUP($E57,'Competitive Activity 2'!$B$7:$B$13,'Competitive Activity 2'!L$7:L$13,\"N/A\",0)","v":"N/A"},{"$f":"_xlfn.XLOOKUP($E57,'Competitive Activity 2'!$B$7:$B$13,'Competitive Activity 2'!M$7:M$13,\"N/A\",0)","v":"N/A"},{"$f":"_xlfn.XLOOKUP($E57,'Competitive Activity 2'!$B$7:$B$13,'Competitive Activity 2'!N$7:N$13,\"N/A\",0)","v":"N/A"},{"$f":"_xlfn.XLOOKUP($E57,'Competitive Activity 2'!$B$7:$B$13,'Competitive Activity 2'!O$7:O$13,\"N/A\",0)","v":"N/A"},{"$f":"_xlfn.XLOOKUP($E57,'Competitive Activity 2'!$B$7:$B$13,'Competitive Activity 2'!P$7:P$13,\"N/A\",0)","v":"N/A"},{"$f":"_xlfn.XLOOKUP($E57,'Competitive Activity 2'!$B$7:$B$13,'Competitive Activity 2'!Q$7:Q$13,\"N/A\",0)","v":"N/A"},{"$f":"_xlfn.XLOOKUP($E57,'Competitive Activity 2'!$B$7:$B$13,'Competitive Activity 2'!R$7:R$13,\"N/A\",0)","v":"N/A"},{"$f":"_xlfn.XLOOKUP($E57,'Competitive Activity 2'!$B$7:$B$13,'Competitive Activity 2'!S$7:S$13,\"N/A\",0)","v":"N/A"},{"$f":"_xlfn.XLOOKUP($E57,'Competitive Activity 2'!$B$7:$B$13,'Competitive Activity 2'!T$7:T$13,\"N/A\",0)","v":"N/A"},{"$f":"_xlfn.XLOOKUP($E57,'Competitive Activity 2'!$B$7:$B$13,'Competitive Activity 2'!U$7:U$13,\"N/A\",0)","v":"N/A"},{"$f":"_xlfn.XLOOKUP($E57,'Competitive Activity 2'!$B$17:$B$23,'Competitive Activity 2'!D$17:D$23,\"N/A\",0)","v":"N/A"},{"$f":"_xlfn.XLOOKUP($E57,'Competitive Activity 2'!$B$17:$B$23,'Competitive Activity 2'!E$17:E$23,\"N/A\",0)","v":"N/A"},{"$f":"_xlfn.XLOOKUP($E57,'Competitive Activity 2'!$B$17:$B$23,'Competitive Activity 2'!F$17:F$23,\"N/A\",0)","v":"N/A"},{"$f":"_xlfn.XLOOKUP($E57,'Competitive Activity 2'!$B$17:$B$23,'Competitive Activity 2'!G$17:G$23,\"N/A\",0)","v":"N/A"},{"$f":"_xlfn.XLOOKUP($E57,'Competitive Activity 2'!$B$17:$B$23,'Competitive Activity 2'!H$17:H$23,\"N/A\",0)","v":"N/A"},{"$f":"_xlfn.XLOOKUP($E57,'Competitive Activity 2'!$B$17:$B$23,'Competitive Activity 2'!I$17:I$23,\"N/A\",0)","v":"N/A"},{"$f":"_xlfn.XLOOKUP($E57,'Competitive Activity 2'!$B$17:$B$23,'Competitive Activity 2'!J$17:J$23,\"N/A\",0)","v":"N/A"},{"$f":"_xlfn.XLOOKUP($E57,'Competitive Activity 2'!$B$17:$B$23,'Competitive Activity 2'!K$17:K$23,\"N/A\",0)","v":"N/A"},{"$f":"_xlfn.XLOOKUP($E57,'Competitive Activity 2'!$B$17:$B$23,'Competitive Activity 2'!L$17:L$23,\"N/A\",0)","v":"N/A"},{"$f":"_xlfn.XLOOKUP($E57,'Competitive Activity 2'!$B$17:$B$23,'Competitive Activity 2'!M$17:M$23,\"N/A\",0)","v":"N/A"},{"$f":"_xlfn.XLOOKUP($E57,'Competitive Activity 2'!$B$17:$B$23,'Competitive Activity 2'!N$17:N$23,\"N/A\",0)","v":"N/A"},{"$f":"_xlfn.XLOOKUP($E57,'Competitive Activity 2'!$B$27:$B$33,'Competitive Activity 2'!D$27:D$33,\"N/A\",0)","v":"N/A"},{"$f":"_xlfn.XLOOKUP($E57,'Competitive Activity 2'!$B$27:$B$33,'Competitive Activity 2'!E$27:E$33,\"N/A\",0)","v":"N/A"},{"$f":"_xlfn.XLOOKUP($E57,'Competitive Activity 2'!$B$27:$B$33,'Competitive Activity 2'!F$27:F$33,\"N/A\",0)","v":"N/A"},{"$f":"_xlfn.XLOOKUP($E57,'Competitive Activity 2'!$B$27:$B$33,'Competitive Activity 2'!G$27:G$33,\"N/A\",0)","v":"N/A"},{"$f":"_xlfn.XLOOKUP($E57,'Competitive Activity 2'!$B$27:$B$33,'Competitive Activity 2'!H$27:H$33,\"N/A\",0)","v":"N/A"},{"$f":"_xlfn.XLOOKUP($E57,'Competitive Activity 2'!$B$27:$B$33,'Competitive Activity 2'!I$27:I$33,\"N/A\",0)","v":"N/A"},{"$f":"_xlfn.XLOOKUP($E57,'Competitive Activity 2'!$B$27:$B$33,'Competitive Activity 2'!J$27:J$33,\"N/A\",0)","v":"N/A"},{"$f":"_xlfn.XLOOKUP($E57,'Competitive Activity 2'!$B$27:$B$33,'Competitive Activity 2'!K$27:K$33,\"N/A\",0)","v":"N/A"},{"$f":"_xlfn.XLOOKUP($E57,'Competitive Activity 2'!$B$27:$B$33,'Competitive Activity 2'!M$27:M$33,\"N/A\",0)","v":"N/A"}]
[{"$f":"'1-Cover Sheet'!$C$8","v":"Select One"},{"$f":"'1-Cover Sheet'!$F$8","v":"Select One"},{"$f":"'Summary Sheet'!$D$8","v":0},{"$f":"'Summary Sheet'!$D$10","v":0},{"$f":"'Drop Down Box'!B222","v":0},{"$f":"'Drop Down Box'!C222","v":0},{"$f":"'Drop Down Box'!D222","v":"Select One"},{"$f":"_xlfn.XLOOKUP(E58,'Drop Down Box'!$B$166:$B$249,'Drop Down Box'!$A$166:$A$249,\"Unknown\",0)","v":"Activity 1"},{"$f":"_xlfn.XLOOKUP($E58,'Activity 9'!$B$17:$B$23,'Activity 9'!$M$17:$M$23,\"N/A\",0)","v":"N/A"},{"$f":"_xlfn.XLOOKUP($E58,'Activity 9'!$B$17:$B$23,'Activity 9'!$P$17:$P$23,\"N/A\",0)","v":"N/A"},{"$f":"_xlfn.XLOOKUP($E58,'Activity 9'!$B$7:$B$13,'Activity 9'!G$7:G$13,\"N/A\",0)","v":"N/A"},{"$f":"_xlfn.XLOOKUP($E58,'Activity 9'!$B$7:$B$13,'Activity 9'!H$7:H$13,\"N/A\",0)","v":"N/A"},{"$f":"_xlfn.XLOOKUP($E58,'Activity 9'!$B$7:$B$13,'Activity 9'!I$7:I$13,\"N/A\",0)","v":"N/A"},{"$f":"_xlfn.XLOOKUP($E58,'Activity 1'!$B$7:$B$13,'Activity 1'!$A$7:$A$13,\"No\",0,1)","v":"No"},{"$f":"_xlfn.XLOOKUP($E58,'Activity 1'!$B$7:$B$13,'Activity 1'!$H$7:$H$13,\"N/A\",0,1)","v":"N/A"},{"$f":"_xlfn.XLOOKUP($E58,'Activity 1'!$B$7:$B$13,'Activity 1'!I$7:I$13,\"N/A\",0,1)","v":"N/A"},{"$f":"_xlfn.XLOOKUP($E58,'Activity 1'!$B$7:$B$13,'Activity 1'!J$7:J$13,\"N/A\",0,1)","v":"N/A"},{"$f":"_xlfn.XLOOKUP($E58,'Activity 1'!$B$7:$B$13,'Activity 1'!K$7:K$13,\"N/A\",0,1)","v":"N/A"},{"$f":"_xlfn.XLOOKUP($E58,'Activity 1'!$B$7:$B$13,'Activity 1'!L$7:L$13,\"N/A\",0,1)","v":"N/A"},{"$f":"_xlfn.XLOOKUP($E58,'Activity 1'!$B$7:$B$13,'Activity 1'!M$7:M$13,\"N/A\",0,1)","v":"N/A"},{"$f":"_xlfn.XLOOKUP($E58,'Activity 1'!$B$7:$B$13,'Activity 1'!N$7:N$13,\"N/A\",0,1)","v":"N/A"},0,{"$f":"_xlfn.XLOOKUP($E58,'Activity 1'!$B$7:$B$13,'Activity 1'!O$7:O$13,\"N/A\",0,1)","v":"N/A"},{"$f":"_xlfn.XLOOKUP($E58,'Activity 1'!$B$7:$B$13,'Activity 1'!P$7:P$13,\"N/A\",0,1)","v":"N/A"},{"$f":"_xlfn.XLOOKUP($E58,'Activity 1'!$B$7:$B$13,'Activity 1'!Q$7:Q$13,\"N/A\",0,1)","v":"N/A"},{"$f":"_xlfn.XLOOKUP($E58,'Activity 1'!$B$7:$B$13,'Activity 1'!R$7:R$13,\"N/A\",0,1)","v":"N/A"},{"$f":"_xlfn.XLOOKUP($E58,'Activity 1'!$B$7:$B$13,'Activity 1'!S$7:S$13,\"N/A\",0,1)","v":"N/A"},{"$f":"_xlfn.XLOOKUP($E58,'Activity 1'!$B$7:$B$13,'Activity 1'!T$7:T$13,\"N/A\",0,1)","v":"N/A"},{"$f":"_xlfn.XLOOKUP($E58,'Activity 1'!$B$7:$B$13,'Activity 1'!U$7:U$13,\"N/A\",0,1)","v":"N/A"},{"$f":"_xlfn.XLOOKUP($E58,'Activity 1'!$B$7:$B$13,'Activity 1'!V$7:V$13,\"N/A\",0,1)","v":"N/A"},{"$f":"_xlfn.XLOOKUP($E58,'Activity 1'!$B$17:$B$23,'Activity 1'!C$17:C$23,\"N/A\",0,1)","v":"N/A"},{"$f":"_xlfn.XLOOKUP($E58,'Activity 1'!$B$17:$B$23,'Activity 1'!D$17:D$23,\"N/A\",0,1)","v":"N/A"},{"$f":"_xlfn.XLOOKUP($E58,'Activity 1'!$B$17:$B$23,'Activity 1'!E$17:E$23,\"N/A\",0,1)","v":"N/A"},{"$f":"_xlfn.XLOOKUP($E58,'Activity 1'!$B$17:$B$23,'Activity 1'!F$17:F$23,\"N/A\",0,1)","v":"N/A"},{"$f":"_xlfn.XLOOKUP($E58,'Activity 1'!$B$17:$B$23,'Activity 1'!G$17:G$23,\"N/A\",0,1)","v":"N/A"},{"$f":"_xlfn.XLOOKUP($E58,'Activity 1'!$B$17:$B$23,'Activity 1'!H$17:H$23,\"N/A\",0,1)","v":"N/A"},{"$f":"_xlfn.XLOOKUP($E58,'Activity 1'!$B$17:$B$23,'Activity 1'!I$17:I$23,\"N/A\",0,1)","v":"N/A"},{"$f":"_xlfn.XLOOKUP($E58,'Activity 1'!$B$17:$B$23,'Activity 1'!J$17:J$23,\"N/A\",0,1)","v":"N/A"},{"$f":"_xlfn.XLOOKUP($E58,'Activity 1'!$B$17:$B$23,'Activity 1'!K$17:K$23,\"N/A\",0,1)","v":"N/A"},{"$f":"_xlfn.XLOOKUP($E58,'Activity 1'!$B$17:$B$23,'Activity 1'!L$17:L$23,\"N/A\",0,1)","v":"N/A"},{"$f":"_xlfn.XLOOKUP($E58,'Activity 1'!$B$17:$B$23,'Activity 1'!M$17:M$23,\"N/A\",0,1)","v":"N/A"},{"$f":"_xlfn.XLOOKUP($E58,'Activity 1'!$B$17:$B$23,'Activity 1'!O$17:O$23,\"N/A\",0,1)","v":"N/A"},{"$f":"_xlfn.XLOOKUP($E58,'Activity 1'!$B$17:$B$23,'Activity 1'!Q$17:Q$23,\"N/A\",0,1)","v":"N/A"},{"$f":"_xlfn.XLOOKUP($E58,'Activity 2'!$B$7:$B$13,'Activity 2'!$A$7:$A$13,\"No\",0,1)","v":"No"},{"$f":"_xlfn.XLOOKUP($E58,'Activity 2'!B$7:B$13,'Activity 2'!H$7:H$13,\"N/A\",0)","v":"N/A"},{"$f":"_xlfn.XLOOKUP($E58,'Activity 2'!C$7:C$13,'Activity 2'!I$7:I$13,\"N/A\",0)","v":"N/A"},{"$f":"_xlfn.XLOOKUP($E58,'Activity 2'!D$7:D$13,'Activity 2'!J$7:J$13,\"N/A\",0)","v":"N/A"},{"$f":"_xlfn.XLOOKUP($E58,'Activity 2'!E$7:E$13,'Activity 2'!K$7:K$13,\"N/A\",0)","v":"N/A"},{"$f":"_xlfn.XLOOKUP($E58,'Activity 2'!F$7:F$13,'Activity 2'!L$7:L$13,\"N/A\",0)","v":"N/A"},{"$f":"_xlfn.XLOOKUP($E58,'Activity 2'!G$7:G$13,'Activity 2'!M$7:M$13,\"N/A\",0)","v":"N/A"},{"$f":"_xlfn.XLOOKUP($E58,'Activity 2'!H$7:H$13,'Activity 2'!N$7:N$13,\"N/A\",0)","v":"N/A"},{"$f":"_xlfn.XLOOKUP($E58,'Activity 2'!I$7:I$13,'Activity 2'!O$7:O$13,\"N/A\",0)","v":"N/A"},{"$f":"_xlfn.XLOOKUP($E58,'Activity 2'!J$7:J$13,'Activity 2'!P$7:P$13,\"N/A\",0)","v":"N/A"},{"$f":"_xlfn.XLOOKUP($E58,'Activity 2'!K$7:K$13,'Activity 2'!Q$7:Q$13,\"N/A\",0)","v":"N/A"},{"$f":"_xlfn.XLOOKUP($E58,'Activity 2'!L$7:L$13,'Activity 2'!R$7:R$13,\"N/A\",0)","v":"N/A"},{"$f":"_xlfn.XLOOKUP($E58,'Activity 2'!M$7:M$13,'Activity 2'!S$7:S$13,\"N/A\",0)","v":"N/A"},{"$f":"_xlfn.XLOOKUP($E58,'Activity 2'!N$7:N$13,'Activity 2'!T$7:T$13,\"N/A\",0)","v":"N/A"},{"$f":"_xlfn.XLOOKUP($E58,'Activity 2'!O$7:O$13,'Activity 2'!U$7:U$13,\"N/A\",0)","v":"N/A"},{"$f":"_xlfn.XLOOKUP($E58,'Activity 2'!P$7:P$13,'Activity 2'!V$7:V$13,\"N/A\",0)","v":"N/A"},{"$f":"_xlfn.XLOOKUP($E58,'Activity 2'!$B$17:$B$23,'Activity 2'!C$17:C$23,\"N/A\",0,1)","v":"N/A"},{"$f":"_xlfn.XLOOKUP($E58,'Activity 2'!$B$17:$B$23,'Activity 2'!D$17:D$23,\"N/A\",0,1)","v":"N/A"},{"$f":"_xlfn.XLOOKUP($E58,'Activity 2'!$B$17:$B$23,'Activity 2'!E$17:E$23,\"N/A\",0,1)","v":"N/A"},{"$f":"_xlfn.XLOOKUP($E58,'Activity 2'!$B$17:$B$23,'Activity 2'!F$17:F$23,\"N/A\",0,1)","v":"N/A"},{"$f":"_xlfn.XLOOKUP($E58,'Activity 2'!$B$17:$B$23,'Activity 2'!G$17:G$23,\"N/A\",0,1)","v":"N/A"},{"$f":"_xlfn.XLOOKUP($E58,'Activity 2'!$B$17:$B$23,'Activity 2'!H$17:H$23,\"N/A\",0,1)","v":"N/A"},{"$f":"_xlfn.XLOOKUP($E58,'Activity 2'!$B$17:$B$23,'Activity 2'!I$17:I$23,\"N/A\",0,1)","v":"N/A"},{"$f":"_xlfn.XLOOKUP($E58,'Activity 2'!$B$17:$B$23,'Activity 2'!J$17:J$23,\"N/A\",0,1)","v":"N/A"},{"$f":"_xlfn.XLOOKUP($E58,'Activity 2'!$B$17:$B$23,'Activity 2'!K$17:K$23,\"N/A\",0,1)","v":"N/A"},{"$f":"_xlfn.XLOOKUP($E58,'Activity 2'!$B$17:$B$23,'Activity 2'!L$17:L$23,\"N/A\",0,1)","v":"N/A"},{"$f":"_xlfn.XLOOKUP($E58,'Activity 2'!$B$17:$B$23,'Activity 2'!M$17:M$23,\"N/A\",0,1)","v":"N/A"},{"$f":"_xlfn.XLOOKUP($E58,'Activity 2'!$B$17:$B$23,'Activity 2'!O$17:O$23,\"N/A\",0,1)","v":"N/A"},{"$f":"_xlfn.XLOOKUP($E58,'Activity 2'!$B$17:$B$23,'Activity 2'!Q$17:Q$23,\"N/A\",0,1)","v":"N/A"},null,{"$f":"_xlfn.XLOOKUP($E58,'Activity 3'!$B$8:$B$14,'Activity 3'!K$8:K$14,\"N/A\",0,1)","v":"N/A"},{"$f":"_xlfn.XLOOKUP($E58,'Activity 3'!$B$8:$B$14,'Activity 3'!L$8:L$14,\"N/A\",0,1)","v":"N/A"},{"$f":"_xlfn.XLOOKUP($E58,'Activity 3'!$B$8:$B$14,'Activity 3'!M$8:M$14,\"N/A\",0,1)","v":"N/A"},{"$f":"_xlfn.XLOOKUP($E58,'Activity 3'!$B$8:$B$14,'Activity 3'!N$8:N$14,\"N/A\",0,1)","v":"N/A"},{"$f":"_xlfn.XLOOKUP($E58,'Activity 3'!$B$8:$B$14,'Activity 3'!O$8:O$14,\"N/A\",0,1)","v":"N/A"},{"$f":"_xlfn.XLOOKUP($E58,'Activity 3'!$B$8:$B$14,'Activity 3'!R$8:R$14,\"N/A\",0,1)","v":"N/A"},{"$f":"_xlfn.XLOOKUP($E58,'Activity 4'!$B$8:$B$14,'Activity 4'!$A$8:$A$14,\"No\",0,1)","v":"No"},{"$f":"_xlfn.XLOOKUP($E58,'Activity 4'!$B$8:$B$14,'Activity 4'!L$8:L$14,\"N/A\",0,1)","v":"N/A"},{"$f":"_xlfn.XLOOKUP($E58,'Activity 4'!$B$8:$B$14,'Activity 4'!I$8:I$14,\"N/A\",0,1)","v":"N/A"},{"$f":"_xlfn.XLOOKUP($E58,'Activity 4'!$B$8:$B$14,'Activity 4'!M$8:M$14,\"N/A\",0,1)","v":"N/A"},{"$f":"_xlfn.XLOOKUP($E58,'Activity 5'!$B$8:$B$14,'Activity 5'!$A$8:$A$14,\"No\",0,1)","v":"No"},{"$f":"_xlfn.XLOOKUP($E58,'Activity 5'!$B$8:$B$14,'Activity 5'!J$8:J$14,\"N/A\",0,1)","v":"N/A"},{"$f":"_xlfn.XLOOKUP($E58,'Activity 5'!$B$8:$B$14,'Activity 5'!K$8:K$14,\"N/A\",0,1)","v":"N/A"},{"$f":"_xlfn.XLOOKUP($E58,'Activity 5'!$B$8:$B$14,'Activity 5'!N$8:N$14,\"N/A\",0,1)","v":"N/A"},{"$f":"_xlfn.XLOOKUP($E58,'Activity 5'!$B$8:$B$14,'Activity 5'!O$8:O$14,\"N/A\",0,1)","v":"N/A"},{"$f":"_xlfn.XLOOKUP($E58,'Activity 5'!$B$8:$B$14,'Activity 5'!P$8:P$14,\"N/A\",0,1)","v":"N/A"},{"$f":"_xlfn.XLOOKUP($E58,'Activity 5'!$B$8:$B$14,'Activity 5'!Q$8:Q$14,\"N/A\",0,1)","v":"N/A"},{"$f":"_xlfn.XLOOKUP($E58,'Activity 5'!$B$8:$B$14,'Activity 5'!R$8:R$14,\"N/A\",0,1)","v":"N/A"},{"$f":"_xlfn.XLOOKUP($E58,'Activity 6'!$B$7:$B$13,'Activity 6'!A$7:A$13,\"No\",0,1)","v":"No"},{"$f":"_xlfn.XLOOKUP($E58,'Activity 6'!$B$7:$B$13,'Activity 6'!K$7:K$13,\"N/A\",0,1)","v":"N/A"},{"$f":"_xlfn.XLOOKUP($E58,'Activity 6'!$B$7:$B$13,'Activity 6'!L$7:L$13,\"N/A\",0,1)","v":"N/A"},{"$f":"_xlfn.XLOOKUP($E58,'Activity 6'!$B$7:$B$13,'Activity 6'!M$7:M$13,\"N/A\",0,1)","v":"N/A"},{"$f":"_xlfn.XLOOKUP($E58,'Activity 6'!$B$7:$B$13,'Activity 6'!N$7:N$13,\"N/A\",0,1)","v":"N/A"},{"$f":"_xlfn.XLOOKUP($E58,'Activity 6'!$B$7:$B$13,'Activity 6'!O$7:O$13,\"N/A\",0,1)","v":"N/A"},{"$f":"_xlfn.XLOOKUP($E58,'Activity 6'!$B$7:$B$13,'Activity 6'!P$7:P$13,\"N/A\",0,1)","v":"N/A"},{"$f":"_xlfn.XLOOKUP($E58,'Activity 6'!$B$7:$B$13,'Activity 6'!Q$7:Q$13,\"N/A\",0,1)","v":"N/A"},{"$f":"_xlfn.XLOOKUP($E58,'Activity 6'!$B$7:$B$13,'Activity 6'!R$7:R$13,\"N/A\",0,1)","v":"N/A"},{"$f":"_xlfn.XLOOKUP($E58,'Activity 6'!$B$7:$B$13,'Activity 6'!S$7:S$13,\"N/A\",0,1)","v":"N/A"},{"$f":"_xlfn.XLOOKUP($E58,'Activity 6'!$B$7:$B$13,'Activity 6'!T$7:T$13,\"N/A\",0,1)","v":"N/A"},{"$f":"_xlfn.XLOOKUP($E58,'Activity 6'!$B$7:$B$13,'Activity 6'!U$7:U$13,\"N/A\",0,1)","v":"N/A"},{"$f":"_xlfn.XLOOKUP($E58,'Activity 6'!$B$22:$B$28,'Activity 6'!C$22:C$28,\"N/A\",0,1)","v":"N/A"},{"$f":"_xlfn.XLOOKUP($E58,'Activity 6'!$B$22:$B$28,'Activity 6'!D$22:D$28,\"N/A\",0,1)","v":"N/A"},{"$f":"_xlfn.XLOOKUP($E58,'Activity 6'!$B$22:$B$28,'Activity 6'!E$22:E$28,\"N/A\",0,1)","v":"N/A"},{"$f":"_xlfn.XLOOKUP($E58,'Activity 6'!$B$22:$B$28,'Activity 6'!F$22:F$28,\"N/A\",0,1)","v":"N/A"},{"$f":"_xlfn.XLOOKUP($E58,'Activity 6'!$B$22:$B$28,'Activity 6'!G$22:G$28,\"N/A\",0,1)","v":"N/A"},{"$f":"_xlfn.XLOOKUP($E58,'Activity 6'!$B$22:$B$28,'Activity 6'!H$22:H$28,\"N/A\",0,1)","v":"N/A"},{"$f":"_xlfn.XLOOKUP($E58,'Activity 6'!$B$22:$B$28,'Activity 6'!I$22:I$28,\"N/A\",0,1)","v":"N/A"},{"$f":"_xlfn.XLOOKUP($E58,'Activity 6'!$B$22:$B$28,'Activity 6'!J$22:J$28,\"N/A\",0,1)","v":"N/A"},{"$f":"_xlfn.XLOOKUP($E58,'Activity 6'!$B$22:$B$28,'Activity 6'!K$22:K$28,\"N/A\",0,1)","v":"N/A"},{"$f":"_xlfn.XLOOKUP($E58,'Activity 6'!$B$22:$B$28,'Activity 6'!L$22:L$28,\"N/A\",0,1)","v":"N/A"},{"$f":"_xlfn.XLOOKUP($E58,'Activity 6'!$B$22:$B$28,'Activity 6'!M$22:M$28,\"N/A\",0,1)","v":"N/A"},{"$f":"_xlfn.XLOOKUP($E58,'Activity 6'!$B$22:$B$28,'Activity 6'!N$22:N$28,\"N/A\",0,1)","v":"N/A"},{"$f":"_xlfn.XLOOKUP($E58,'Activity 6'!$B$32:$B$38,'Activity 6'!C$32:C$38,\"N/A\",0,1)","v":"N/A"},{"$f":"_xlfn.XLOOKUP($E58,'Activity 6'!$B$32:$B$38,'Activity 6'!D$32:D$38,\"N/A\",0,1)","v":"N/A"},{"$f":"_xlfn.XLOOKUP($E58,'Activity 6'!$B$32:$B$38,'Activity 6'!E$32:E$38,\"N/A\",0,1)","v":"N/A"},{"$f":"_xlfn.XLOOKUP($E58,'Activity 6'!$B$32:$B$38,'Activity 6'!F$32:F$38,\"N/A\",0,1)","v":"N/A"},{"$f":"_xlfn.XLOOKUP($E58,'Activity 6'!$B$32:$B$38,'Activity 6'!G$32:G$38,\"N/A\",0,1)","v":"N/A"},{"$f":"_xlfn.XLOOKUP($E58,'Activity 6'!$B$32:$B$38,'Activity 6'!H$32:H$38,\"N/A\",0,1)","v":"N/A"},{"$f":"_xlfn.XLOOKUP($E58,'Activity 6'!$B$32:$B$38,'Activity 6'!I$32:I$38,\"N/A\",0,1)","v":"N/A"},{"$f":"_xlfn.XLOOKUP($E58,'Activity 6'!$B$32:$B$38,'Activity 6'!J$32:J$38,\"N/A\",0,1)","v":"N/A"},{"$f":"_xlfn.XLOOKUP($E58,'Activity 6'!$B$32:$B$38,'Activity 6'!K$32:K$38,\"N/A\",0,1)","v":"N/A"},{"$f":"_xlfn.XLOOKUP($E58,'Activity 6'!$B$32:$B$38,'Activity 6'!M$32:M$38,\"N/A\",0,1)","v":"N/A"},{"$f":"_xlfn.XLOOKUP($E58,'Activity 7'!$B$7:$B$13,'Activity 7'!$A$7:$A$13,\"No\",0,1)","v":"No"},{"$f":"_xlfn.XLOOKUP($E58,'Activity 7'!$B$7:$B$13,'Activity 7'!M$7:M$13,\"N/A\",0,1)","v":"N/A"},{"$f":"_xlfn.XLOOKUP($E58,'Activity 7'!$B$7:$B$13,'Activity 7'!K$7:K$13,\"N/A\",0,1)","v":"N/A"},{"$f":"_xlfn.XLOOKUP($E58,'Activity 7'!$B$7:$B$13,'Activity 7'!N$7:N$13,\"N/A\",0,1)","v":"N/A"},{"$f":"_xlfn.XLOOKUP($E58,'Activity 7'!$B$7:$B$13,'Activity 7'!O$7:O$13,\"N/A\",0,1)","v":"N/A"},{"$f":"_xlfn.XLOOKUP($E58,'Activity 7'!$B$7:$B$13,'Activity 7'!P$7:P$13,\"N/A\",0,1)","v":"N/A"},{"$f":"_xlfn.XLOOKUP($E58,'Activity 7'!$B$7:$B$13,'Activity 7'!Q$7:Q$13,\"N/A\",0,1)","v":"N/A"},{"$f":"_xlfn.XLOOKUP($E58,'Activity 7'!$B$7:$B$13,'Activity 7'!R$7:R$13,\"N/A\",0,1)","v":"N/A"},{"$f":"_xlfn.XLOOKUP($E58,'Activity 7'!$B$7:$B$13,'Activity 7'!S$7:S$13,\"N/A\",0,1)","v":"N/A"},{"$f":"_xlfn.XLOOKUP($E58,'Activity 7'!$B$7:$B$13,'Activity 7'!T$7:T$13,\"N/A\",0,1)","v":"N/A"},{"$f":"_xlfn.XLOOKUP($E58,'Activity 7'!$B$7:$B$13,'Activity 7'!U$7:U$13,\"N/A\",0,1)","v":"N/A"},{"$f":"_xlfn.XLOOKUP($E58,'Activity 7'!$B$7:$B$13,'Activity 7'!V$7:V$13,\"N/A\",0,1)","v":"N/A"},{"$f":"_xlfn.XLOOKUP($E58,'Activity 7'!$B$17:$B$23,'Activity 7'!E$17:E$23,\"N/A\",0,1)","v":"N/A"},{"$f":"_xlfn.XLOOKUP($E58,'Activity 7'!$B$17:$B$23,'Activity 7'!G$17:G$23,\"N/A\",0,1)","v":"N/A"},{"$f":"_xlfn.XLOOKUP($E58,'Activity 7'!$B$17:$B$23,'Activity 7'!I$17:I$23,\"N/A\",0,1)","v":"N/A"},{"$f":"_xlfn.XLOOKUP($E58,'Activity 7'!$B$17:$B$23,'Activity 7'!J$17:J$23,\"N/A\",0,1)","v":"N/A"},{"$f":"_xlfn.XLOOKUP($E58,'Activity 7'!$B$17:$B$23,'Activity 7'!K$17:K$23,\"N/A\",0,1)","v":"N/A"},{"$f":"_xlfn.XLOOKUP($E58,'Activity 7'!$B$17:$B$23,'Activity 7'!L$17:L$23,\"N/A\",0,1)","v":"N/A"},{"$f":"_xlfn.XLOOKUP($E58,'Activity 7'!$B$17:$B$23,'Activity 7'!M$17:M$23,\"N/A\",0,1)","v":"N/A"},{"$f":"_xlfn.XLOOKUP($E58,'Activity 7'!$B$17:$B$23,'Activity 7'!N$17:N$23,\"N/A\",0,1)","v":"N/A"},{"$f":"_xlfn.XLOOKUP($E58,'Activity 7'!$B$17:$B$23,'Activity 7'!P$17:P$23,\"N/A\",0,1)","v":"N/A"},{"$f":"_xlfn.XLOOKUP($E58,'Activity 8'!$B$7:$B$13,'Activity 8'!A$7:A$13,\"No\",0,1)","v":"No"},{"$f":"_xlfn.XLOOKUP($E58,'Activity 8'!$B$7:$B$13,'Activity 8'!I$7:I$13,\"N/A\",0,1)","v":"N/A"},{"$f":"_xlfn.XLOOKUP($E58,'Activity 8'!$B$7:$B$13,'Activity 8'!J$7:J$13,\"N/A\",0,1)","v":"N/A"},{"$f":"_xlfn.XLOOKUP($E58,'Activity 8'!$B$7:$B$13,'Activity 8'!K$7:K$13,\"N/A\",0,1)","v":"N/A"},{"$f":"_xlfn.XLOOKUP($E58,'Activity 8'!$B$7:$B$13,'Activity 8'!L$7:L$13,\"N/A\",0,1)","v":"N/A"},{"$f":"_xlfn.XLOOKUP($E58,'Activity 8'!$B$7:$B$13,'Activity 8'!M$7:M$13,\"N/A\",0,1)","v":"N/A"},{"$f":"_xlfn.XLOOKUP($E58,'Activity 8'!$B$7:$B$13,'Activity 8'!N$7:N$13,\"N/A\",0,1)","v":"N/A"},{"$f":"_xlfn.XLOOKUP($E58,'Activity 8'!$B$7:$B$13,'Activity 8'!O$7:O$13,\"N/A\",0,1)","v":"N/A"},{"$f":"_xlfn.XLOOKUP($E58,'Activity 8'!$B$7:$B$13,'Activity 8'!P$7:P$13,\"N/A\",0,1)","v":"N/A"},{"$f":"_xlfn.XLOOKUP($E58,'Activity 8'!$B$7:$B$13,'Activity 8'!Q$7:Q$13,\"N/A\",0,1)","v":"N/A"},{"$f":"_xlfn.XLOOKUP($E58,'Activity 8'!$B$7:$B$13,'Activity 8'!R$7:R$13,\"N/A\",0,1)","v":"N/A"},{"$f":"_xlfn.XLOOKUP($E58,'Activity 8'!$B$7:$B$13,'Activity 8'!S$7:S$13,\"N/A\",0,1)","v":"N/A"},{"$f":"_xlfn.XLOOKUP($E58,'Activity 8'!$B$7:$B$13,'Activity 8'!T$7:T$13,\"N/A\",0,1)","v":"N/A"},{"$f":"_xlfn.XLOOKUP($E58,'Activity 8'!$B$7:$B$13,'Activity 8'!U$7:U$13,\"N/A\",0,1)","v":"N/A"},{"$f":"_xlfn.XLOOKUP($E58,'Activity 8'!$B$7:$B$13,'Activity 8'!V$7:V$13,\"N/A\",0,1)","v":"N/A"},{"$f":"_xlfn.XLOOKUP($E58,'Activity 8'!$B$17:$B$23,'Activity 8'!D$17:D$23,\"N/A\",0,1)","v":"N/A"},{"$f":"_xlfn.XLOOKUP($E58,'Activity 8'!$B$17:$B$23,'Activity 8'!E$17:E$23,\"N/A\",0,1)","v":"N/A"},{"$f":"_xlfn.XLOOKUP($E58,'Activity 8'!$B$17:$B$23,'Activity 8'!F$17:F$23,\"N/A\",0,1)","v":"N/A"},{"$f":"_xlfn.XLOOKUP($E58,'Activity 8'!$B$17:$B$23,'Activity 8'!G$17:G$23,\"N/A\",0,1)","v":"N/A"},{"$f":"_xlfn.XLOOKUP($E58,'Activity 8'!$B$17:$B$23,'Activity 8'!H$17:H$23,\"N/A\",0,1)","v":"N/A"},{"$f":"_xlfn.XLOOKUP($E58,'Activity 8'!$B$17:$B$23,'Activity 8'!I$17:I$23,\"N/A\",0,1)","v":"N/A"},{"$f":"_xlfn.XLOOKUP($E58,'Activity 8'!$B$17:$B$23,'Activity 8'!J$17:J$23,\"N/A\",0,1)","v":"N/A"},{"$f":"_xlfn.XLOOKUP($E58,'Activity 8'!$B$17:$B$23,'Activity 8'!K$17:K$23,\"N/A\",0,1)","v":"N/A"},{"$f":"_xlfn.XLOOKUP($E58,'Activity 8'!$B$17:$B$23,'Activity 8'!L$17:L$23,\"N/A\",0,1)","v":"N/A"},{"$f":"_xlfn.XLOOKUP($E58,'Activity 8'!$B$17:$B$23,'Activity 8'!M$17:M$23,\"N/A\",0,1)","v":"N/A"},{"$f":"_xlfn.XLOOKUP($E58,'Activity 8'!$B$17:$B$23,'Activity 8'!N$17:N$23,\"N/A\",0,1)","v":"N/A"},{"$f":"_xlfn.XLOOKUP($E58,'Activity 8'!$B$17:$B$23,'Activity 8'!P$17:P$23,\"N/A\",0,1)","v":"N/A"},{"$f":"_xlfn.XLOOKUP(E58,'Activity 9'!$B$7:$B$13,'Activity 9'!$A$7:$A$13,\"No\",0,1)","v":"No"},{"$f":"_xlfn.XLOOKUP($E58,'Activity 9'!$B$7:$B$13,'Activity 9'!J$7:J$13,\"N/A\",0,1)","v":"N/A"},{"$f":"_xlfn.XLOOKUP($E58,'Activity 9'!$B$7:$B$13,'Activity 9'!K$7:K$13,\"N/A\",0,1)","v":"N/A"},{"$f":"_xlfn.XLOOKUP($E58,'Activity 9'!$B$7:$B$13,'Activity 9'!L$7:L$13,\"N/A\",0,1)","v":"N/A"},{"$f":"_xlfn.XLOOKUP($E58,'Activity 9'!$B$7:$B$13,'Activity 9'!M$7:M$13,\"N/A\",0,1)","v":"N/A"},{"$f":"_xlfn.XLOOKUP($E58,'Activity 9'!$B$7:$B$13,'Activity 9'!N$7:N$13,\"N/A\",0,1)","v":"N/A"},{"$f":"_xlfn.XLOOKUP($E58,'Activity 9'!$B$7:$B$13,'Activity 9'!O$7:O$13,\"N/A\",0,1)","v":"N/A"},{"$f":"_xlfn.XLOOKUP($E58,'Activity 9'!$B$7:$B$13,'Activity 9'!P$7:P$13,\"N/A\",0,1)","v":"N/A"},{"$f":"_xlfn.XLOOKUP($E58,'Activity 9'!$B$7:$B$13,'Activity 9'!Q$7:Q$13,\"N/A\",0,1)","v":"N/A"},{"$f":"_xlfn.XLOOKUP($E58,'Activity 9'!$B$7:$B$13,'Activity 9'!R$7:R$13,\"N/A\",0,1)","v":"N/A"},{"$f":"_xlfn.XLOOKUP($E58,'Activity 9'!$B$7:$B$13,'Activity 9'!S$7:S$13,\"N/A\",0,1)","v":"N/A"},{"$f":"_xlfn.XLOOKUP($E58,'Activity 9'!$B$7:$B$13,'Activity 9'!T$7:T$13,\"N/A\",0,1)","v":"N/A"},{"$f":"_xlfn.XLOOKUP($E58,'Activity 9'!$B$17:$B$23,'Activity 9'!E$17:E$23,\"N/A\",0,1)","v":"N/A"},{"$f":"_xlfn.XLOOKUP($E58,'Activity 9'!$B$17:$B$23,'Activity 9'!F$17:F$23,\"N/A\",0,1)","v":"N/A"},{"$f":"_xlfn.XLOOKUP($E58,'Activity 9'!$B$17:$B$23,'Activity 9'!G$17:G$23,\"N/A\",0,1)","v":"N/A"},{"$f":"_xlfn.XLOOKUP($E58,'Activity 9'!$B$17:$B$23,'Activity 9'!H$17:H$23,\"N/A\",0,1)","v":"N/A"},{"$f":"_xlfn.XLOOKUP($E58,'Activity 9'!$B$17:$B$23,'Activity 9'!I$17:I$23,\"N/A\",0,1)","v":"N/A"},{"$f":"_xlfn.XLOOKUP($E58,'Activity 9'!$B$17:$B$23,'Activity 9'!J$17:J$23,\"N/A\",0,1)","v":"N/A"},{"$f":"_xlfn.XLOOKUP($E58,'Activity 9'!$B$17:$B$23,'Activity 9'!K$17:K$23,\"N/A\",0,1)","v":"N/A"},{"$f":"_xlfn.XLOOKUP($E58,'Activity 9'!$B$17:$B$23,'Activity 9'!L$17:L$23,\"N/A\",0,1)","v":"N/A"},{"$f":"_xlfn.XLOOKUP($E58,'Activity 9'!$B$17:$B$23,'Activity 9'!N$17:N$23,\"N/A\",0,1)","v":"N/A"},{"$f":"_xlfn.XLOOKUP($E58,'Activity 9'!$B$17:$B$23,'Activity 9'!O$17:O$23,\"N/A\",0,1)","v":"N/A"},{"$f":"_xlfn.XLOOKUP($E58,'Activity 9'!$B$17:$B$23,'Activity 9'!Q$17:Q$23,\"N/A\",0,1)","v":"N/A"},{"$f":"_xlfn.XLOOKUP($E58,'Activity 10'!$B$7:$B$13,'Activity 10'!A$7:A$13,\"No\",0,1)","v":"No"},{"$f":"_xlfn.XLOOKUP($E58,'Activity 10'!$B$7:$B$13,'Activity 10'!J$7:J$13,\"N/A\",0,1)","v":"N/A"},{"$f":"_xlfn.XLOOKUP($E58,'Activity 10'!$B$7:$B$13,'Activity 10'!K$7:K$13,\"N/A\",0,1)","v":"N/A"},{"$f":"_xlfn.XLOOKUP($E58,'Activity 10'!$B$7:$B$13,'Activity 10'!L$7:L$13,\"N/A\",0,1)","v":"N/A"},{"$f":"_xlfn.XLOOKUP($E58,'Activity 10'!$B$7:$B$13,'Activity 10'!M$7:M$13,\"N/A\",0,1)","v":"N/A"},{"$f":"_xlfn.XLOOKUP($E58,'Activity 10'!$B$7:$B$13,'Activity 10'!N$7:N$13,\"N/A\",0,1)","v":"N/A"},{"$f":"_xlfn.XLOOKUP($E58,'Activity 10'!$B$7:$B$13,'Activity 10'!O$7:O$13,\"N/A\",0,1)","v":"N/A"},{"$f":"_xlfn.XLOOKUP($E58,'Activity 10'!$B$7:$B$13,'Activity 10'!P$7:P$13,\"N/A\",0,1)","v":"N/A"},{"$f":"_xlfn.XLOOKUP($E58,'Activity 10'!$B$7:$B$13,'Activity 10'!Q$7:Q$13,\"N/A\",0,1)","v":"N/A"},{"$f":"_xlfn.XLOOKUP($E58,'Activity 10'!$B$7:$B$13,'Activity 10'!R$7:R$13,\"N/A\",0,1)","v":"N/A"},{"$f":"_xlfn.XLOOKUP($E58,'Activity 10'!$B$7:$B$13,'Activity 10'!S$7:S$13,\"N/A\",0,1)","v":"N/A"},{"$f":"_xlfn.XLOOKUP($E58,'Activity 10'!$B$7:$B$13,'Activity 10'!T$7:T$13,\"N/A\",0,1)","v":"N/A"},{"$f":"_xlfn.XLOOKUP($E58,'Activity 10'!$B$7:$B$13,'Activity 10'!U$7:U$13,\"N/A\",0,1)","v":"N/A"},{"$f":"_xlfn.XLOOKUP($E58,'Activity 10'!$B$7:$B$13,'Activity 10'!V$7:V$13,\"N/A\",0,1)","v":"N/A"},{"$f":"_xlfn.XLOOKUP($E58,'Activity 10'!$B$17:$B$23,'Activity 10'!E$17:E$23,\"N/A\",0,1)","v":"N/A"},{"$f":"_xlfn.XLOOKUP($E58,'Activity 10'!$B$17:$B$23,'Activity 10'!F$17:F$23,\"N/A\",0,1)","v":"N/A"},{"$f":"_xlfn.XLOOKUP($E58,'Activity 10'!$B$17:$B$23,'Activity 10'!G$17:G$23,\"N/A\",0,1)","v":"N/A"},{"$f":"_xlfn.XLOOKUP($E58,'Activity 10'!$B$17:$B$23,'Activity 10'!H$17:H$23,\"N/A\",0,1)","v":"N/A"},{"$f":"_xlfn.XLOOKUP($E58,'Activity 10'!$B$17:$B$23,'Activity 10'!I$17:I$23,\"N/A\",0,1)","v":"N/A"},{"$f":"_xlfn.XLOOKUP($E58,'Activity 10'!$B$17:$B$23,'Activity 10'!J$17:J$23,\"N/A\",0,1)","v":"N/A"},{"$f":"_xlfn.XLOOKUP($E58,'Activity 10'!$B$17:$B$23,'Activity 10'!K$17:K$23,\"N/A\",0,1)","v":"N/A"},{"$f":"_xlfn.XLOOKUP($E58,'Activity 10'!$B$17:$B$23,'Activity 10'!L$17:L$23,\"N/A\",0,1)","v":"N/A"},{"$f":"_xlfn.XLOOKUP($E58,'Activity 10'!$B$17:$B$23,'Activity 10'!M$17:M$23,\"N/A\",0,1)","v":"N/A"},{"$f":"_xlfn.XLOOKUP($E58,'Activity 10'!$B$17:$B$23,'Activity 10'!N$17:N$23,\"N/A\",0,1)","v":"N/A"},{"$f":"_xlfn.XLOOKUP($E58,'Activity 10'!$B$17:$B$23,'Activity 10'!P$17:P$23,\"N/A\",0,1)","v":"N/A"},{"$f":"_xlfn.XLOOKUP($E58,'Competitive Activity 1'!B$7:B$13,'Competitive Activity 1'!A$7:A$13,\"No\",0,1)","v":"No"},{"$f":"_xlfn.XLOOKUP($E58,'Competitive Activity 1'!$B$7:$B$13,'Competitive Activity 1'!H$7:H$13,\"N/A\",0,1)","v":"N/A"},{"$f":"_xlfn.XLOOKUP($E58,'Competitive Activity 1'!$B$7:$B$13,'Competitive Activity 1'!I$7:I$13,\"N/A\",0,1)","v":"N/A"},{"$f":"_xlfn.XLOOKUP($E58,'Competitive Activity 1'!$B$7:$B$13,'Competitive Activity 1'!J$7:J$13,\"N/A\",0,1)","v":"N/A"},{"$f":"_xlfn.XLOOKUP($E58,'Competitive Activity 1'!$B$7:$B$13,'Competitive Activity 1'!K$7:K$13,\"N/A\",0,1)","v":"N/A"},{"$f":"_xlfn.XLOOKUP($E58,'Competitive Activity 1'!$B$7:$B$13,'Competitive Activity 1'!L$7:L$13,\"N/A\",0,1)","v":"N/A"},{"$f":"_xlfn.XLOOKUP($E58,'Competitive Activity 1'!$B$7:$B$13,'Competitive Activity 1'!M$7:M$13,\"N/A\",0,1)","v":"N/A"},{"$f":"_xlfn.XLOOKUP($E58,'Competitive Activity 1'!$B$7:$B$13,'Competitive Activity 1'!N$7:N$13,\"N/A\",0,1)","v":"N/A"},{"$f":"_xlfn.XLOOKUP($E58,'Competitive Activity 1'!$B$7:$B$13,'Competitive Activity 1'!O$7:O$13,\"N/A\",0,1)","v":"N/A"},{"$f":"_xlfn.XLOOKUP($E58,'Competitive Activity 1'!$B$7:$B$13,'Competitive Activity 1'!P$7:P$13,\"N/A\",0,1)","v":"N/A"},{"$f":"_xlfn.XLOOKUP($E58,'Competitive Activity 1'!$B$7:$B$13,'Competitive Activity 1'!Q$7:Q$13,\"N/A\",0,1)","v":"N/A"},{"$f":"_xlfn.XLOOKUP($E58,'Competitive Activity 1'!$B$7:$B$13,'Competitive Activity 1'!R$7:R$13,\"N/A\",0,1)","v":"N/A"},{"$f":"_xlfn.XLOOKUP($E58,'Competitive Activity 1'!$B$7:$B$13,'Competitive Activity 1'!S$7:S$13,\"N/A\",0,1)","v":"N/A"},{"$f":"_xlfn.XLOOKUP($E58,'Competitive Activity 1'!$B$7:$B$13,'Competitive Activity 1'!T$7:T$13,\"N/A\",0,1)","v":"N/A"},{"$f":"_xlfn.XLOOKUP($E58,'Competitive Activity 1'!$B$7:$B$13,'Competitive Activity 1'!U$7:U$13,\"N/A\",0,1)","v":"N/A"},{"$f":"_xlfn.XLOOKUP($E58,'Competitive Activity 1'!$B$17:$B$23,'Competitive Activity 1'!C$17:C$23,\"N/A\",0,1)","v":"N/A"},{"$f":"_xlfn.XLOOKUP($E58,'Competitive Activity 1'!$B$17:$B$23,'Competitive Activity 1'!D$17:D$23,\"N/A\",0,1)","v":"N/A"},{"$f":"_xlfn.XLOOKUP($E58,'Competitive Activity 1'!$B$17:$B$23,'Competitive Activity 1'!E$17:E$23,\"N/A\",0,1)","v":"N/A"},{"$f":"_xlfn.XLOOKUP($E58,'Competitive Activity 1'!$B$17:$B$23,'Competitive Activity 1'!F$17:F$23,\"N/A\",0,1)","v":"N/A"},{"$f":"_xlfn.XLOOKUP($E58,'Competitive Activity 1'!$B$17:$B$23,'Competitive Activity 1'!G$17:G$23,\"N/A\",0,1)","v":"N/A"},{"$f":"_xlfn.XLOOKUP($E58,'Competitive Activity 1'!$B$17:$B$23,'Competitive Activity 1'!H$17:H$23,\"N/A\",0,1)","v":"N/A"},{"$f":"_xlfn.XLOOKUP($E58,'Competitive Activity 1'!$B$17:$B$23,'Competitive Activity 1'!I$17:I$23,\"N/A\",0,1)","v":"N/A"},{"$f":"_xlfn.XLOOKUP($E58,'Competitive Activity 1'!$B$17:$B$23,'Competitive Activity 1'!J$17:J$23,\"N/A\",0,1)","v":"N/A"},{"$f":"_xlfn.XLOOKUP($E58,'Competitive Activity 1'!$B$17:$B$23,'Competitive Activity 1'!K$17:K$23,\"N/A\",0,1)","v":"N/A"},{"$f":"_xlfn.XLOOKUP($E58,'Competitive Activity 1'!$B$17:$B$23,'Competitive Activity 1'!M$17:M$23,\"N/A\",0,1)","v":"N/A"},{"$f":"_xlfn.XLOOKUP($E58,'Competitive Activity 1'!$B$17:$B$23,'Competitive Activity 1'!N$17:N$23,\"N/A\",0,1)","v":"N/A"},{"$f":"_xlfn.XLOOKUP($E58,'Competitive Activity 1'!$B$17:$B$23,'Competitive Activity 1'!P$17:P$23,\"N/A\",0,1)","v":"N/A"},{"$f":"_xlfn.XLOOKUP($E58,'Competitive Activity 2'!$B$7:$B$13,'Competitive Activity 2'!A$7:A$13,\"No\",0)","v":"No"},{"$f":"_xlfn.XLOOKUP($E58,'Competitive Activity 2'!$B$7:$B$13,'Competitive Activity 2'!L$7:L$13,\"N/A\",0)","v":"N/A"},{"$f":"_xlfn.XLOOKUP($E58,'Competitive Activity 2'!$B$7:$B$13,'Competitive Activity 2'!M$7:M$13,\"N/A\",0)","v":"N/A"},{"$f":"_xlfn.XLOOKUP($E58,'Competitive Activity 2'!$B$7:$B$13,'Competitive Activity 2'!N$7:N$13,\"N/A\",0)","v":"N/A"},{"$f":"_xlfn.XLOOKUP($E58,'Competitive Activity 2'!$B$7:$B$13,'Competitive Activity 2'!O$7:O$13,\"N/A\",0)","v":"N/A"},{"$f":"_xlfn.XLOOKUP($E58,'Competitive Activity 2'!$B$7:$B$13,'Competitive Activity 2'!P$7:P$13,\"N/A\",0)","v":"N/A"},{"$f":"_xlfn.XLOOKUP($E58,'Competitive Activity 2'!$B$7:$B$13,'Competitive Activity 2'!Q$7:Q$13,\"N/A\",0)","v":"N/A"},{"$f":"_xlfn.XLOOKUP($E58,'Competitive Activity 2'!$B$7:$B$13,'Competitive Activity 2'!R$7:R$13,\"N/A\",0)","v":"N/A"},{"$f":"_xlfn.XLOOKUP($E58,'Competitive Activity 2'!$B$7:$B$13,'Competitive Activity 2'!S$7:S$13,\"N/A\",0)","v":"N/A"},{"$f":"_xlfn.XLOOKUP($E58,'Competitive Activity 2'!$B$7:$B$13,'Competitive Activity 2'!T$7:T$13,\"N/A\",0)","v":"N/A"},{"$f":"_xlfn.XLOOKUP($E58,'Competitive Activity 2'!$B$7:$B$13,'Competitive Activity 2'!U$7:U$13,\"N/A\",0)","v":"N/A"},{"$f":"_xlfn.XLOOKUP($E58,'Competitive Activity 2'!$B$17:$B$23,'Competitive Activity 2'!D$17:D$23,\"N/A\",0)","v":"N/A"},{"$f":"_xlfn.XLOOKUP($E58,'Competitive Activity 2'!$B$17:$B$23,'Competitive Activity 2'!E$17:E$23,\"N/A\",0)","v":"N/A"},{"$f":"_xlfn.XLOOKUP($E58,'Competitive Activity 2'!$B$17:$B$23,'Competitive Activity 2'!F$17:F$23,\"N/A\",0)","v":"N/A"},{"$f":"_xlfn.XLOOKUP($E58,'Competitive Activity 2'!$B$17:$B$23,'Competitive Activity 2'!G$17:G$23,\"N/A\",0)","v":"N/A"},{"$f":"_xlfn.XLOOKUP($E58,'Competitive Activity 2'!$B$17:$B$23,'Competitive Activity 2'!H$17:H$23,\"N/A\",0)","v":"N/A"},{"$f":"_xlfn.XLOOKUP($E58,'Competitive Activity 2'!$B$17:$B$23,'Competitive Activity 2'!I$17:I$23,\"N/A\",0)","v":"N/A"},{"$f":"_xlfn.XLOOKUP($E58,'Competitive Activity 2'!$B$17:$B$23,'Competitive Activity 2'!J$17:J$23,\"N/A\",0)","v":"N/A"},{"$f":"_xlfn.XLOOKUP($E58,'Competitive Activity 2'!$B$17:$B$23,'Competitive Activity 2'!K$17:K$23,\"N/A\",0)","v":"N/A"},{"$f":"_xlfn.XLOOKUP($E58,'Competitive Activity 2'!$B$17:$B$23,'Competitive Activity 2'!L$17:L$23,\"N/A\",0)","v":"N/A"},{"$f":"_xlfn.XLOOKUP($E58,'Competitive Activity 2'!$B$17:$B$23,'Competitive Activity 2'!M$17:M$23,\"N/A\",0)","v":"N/A"},{"$f":"_xlfn.XLOOKUP($E58,'Competitive Activity 2'!$B$17:$B$23,'Competitive Activity 2'!N$17:N$23,\"N/A\",0)","v":"N/A"},{"$f":"_xlfn.XLOOKUP($E58,'Competitive Activity 2'!$B$27:$B$33,'Competitive Activity 2'!D$27:D$33,\"N/A\",0)","v":"N/A"},{"$f":"_xlfn.XLOOKUP($E58,'Competitive Activity 2'!$B$27:$B$33,'Competitive Activity 2'!E$27:E$33,\"N/A\",0)","v":"N/A"},{"$f":"_xlfn.XLOOKUP($E58,'Competitive Activity 2'!$B$27:$B$33,'Competitive Activity 2'!F$27:F$33,\"N/A\",0)","v":"N/A"},{"$f":"_xlfn.XLOOKUP($E58,'Competitive Activity 2'!$B$27:$B$33,'Competitive Activity 2'!G$27:G$33,\"N/A\",0)","v":"N/A"},{"$f":"_xlfn.XLOOKUP($E58,'Competitive Activity 2'!$B$27:$B$33,'Competitive Activity 2'!H$27:H$33,\"N/A\",0)","v":"N/A"},{"$f":"_xlfn.XLOOKUP($E58,'Competitive Activity 2'!$B$27:$B$33,'Competitive Activity 2'!I$27:I$33,\"N/A\",0)","v":"N/A"},{"$f":"_xlfn.XLOOKUP($E58,'Competitive Activity 2'!$B$27:$B$33,'Competitive Activity 2'!J$27:J$33,\"N/A\",0)","v":"N/A"},{"$f":"_xlfn.XLOOKUP($E58,'Competitive Activity 2'!$B$27:$B$33,'Competitive Activity 2'!K$27:K$33,\"N/A\",0)","v":"N/A"},{"$f":"_xlfn.XLOOKUP($E58,'Competitive Activity 2'!$B$27:$B$33,'Competitive Activity 2'!M$27:M$33,\"N/A\",0)","v":"N/A"}]
[{"$f":"'1-Cover Sheet'!$C$8","v":"Select One"},{"$f":"'1-Cover Sheet'!$F$8","v":"Select One"},{"$f":"'Summary Sheet'!$D$8","v":0},{"$f":"'Summary Sheet'!$D$10","v":0},{"$f":"'Drop Down Box'!B223","v":0},{"$f":"'Drop Down Box'!C223","v":0},{"$f":"'Drop Down Box'!D223","v":"Select One"},{"$f":"_xlfn.XLOOKUP(E59,'Drop Down Box'!$B$166:$B$249,'Drop Down Box'!$A$166:$A$249,\"Unknown\",0)","v":"Activity 1"},{"$f":"_xlfn.XLOOKUP($E59,'Activity 9'!$B$17:$B$23,'Activity 9'!$M$17:$M$23,\"N/A\",0)","v":"N/A"},{"$f":"_xlfn.XLOOKUP($E59,'Activity 9'!$B$17:$B$23,'Activity 9'!$P$17:$P$23,\"N/A\",0)","v":"N/A"},{"$f":"_xlfn.XLOOKUP($E59,'Activity 9'!$B$7:$B$13,'Activity 9'!G$7:G$13,\"N/A\",0)","v":"N/A"},{"$f":"_xlfn.XLOOKUP($E59,'Activity 9'!$B$7:$B$13,'Activity 9'!H$7:H$13,\"N/A\",0)","v":"N/A"},{"$f":"_xlfn.XLOOKUP($E59,'Activity 9'!$B$7:$B$13,'Activity 9'!I$7:I$13,\"N/A\",0)","v":"N/A"},{"$f":"_xlfn.XLOOKUP($E59,'Activity 1'!$B$7:$B$13,'Activity 1'!$A$7:$A$13,\"No\",0,1)","v":"No"},{"$f":"_xlfn.XLOOKUP($E59,'Activity 1'!$B$7:$B$13,'Activity 1'!$H$7:$H$13,\"N/A\",0,1)","v":"N/A"},{"$f":"_xlfn.XLOOKUP($E59,'Activity 1'!$B$7:$B$13,'Activity 1'!I$7:I$13,\"N/A\",0,1)","v":"N/A"},{"$f":"_xlfn.XLOOKUP($E59,'Activity 1'!$B$7:$B$13,'Activity 1'!J$7:J$13,\"N/A\",0,1)","v":"N/A"},{"$f":"_xlfn.XLOOKUP($E59,'Activity 1'!$B$7:$B$13,'Activity 1'!K$7:K$13,\"N/A\",0,1)","v":"N/A"},{"$f":"_xlfn.XLOOKUP($E59,'Activity 1'!$B$7:$B$13,'Activity 1'!L$7:L$13,\"N/A\",0,1)","v":"N/A"},{"$f":"_xlfn.XLOOKUP($E59,'Activity 1'!$B$7:$B$13,'Activity 1'!M$7:M$13,\"N/A\",0,1)","v":"N/A"},{"$f":"_xlfn.XLOOKUP($E59,'Activity 1'!$B$7:$B$13,'Activity 1'!N$7:N$13,\"N/A\",0,1)","v":"N/A"},0,{"$f":"_xlfn.XLOOKUP($E59,'Activity 1'!$B$7:$B$13,'Activity 1'!O$7:O$13,\"N/A\",0,1)","v":"N/A"},{"$f":"_xlfn.XLOOKUP($E59,'Activity 1'!$B$7:$B$13,'Activity 1'!P$7:P$13,\"N/A\",0,1)","v":"N/A"},{"$f":"_xlfn.XLOOKUP($E59,'Activity 1'!$B$7:$B$13,'Activity 1'!Q$7:Q$13,\"N/A\",0,1)","v":"N/A"},{"$f":"_xlfn.XLOOKUP($E59,'Activity 1'!$B$7:$B$13,'Activity 1'!R$7:R$13,\"N/A\",0,1)","v":"N/A"},{"$f":"_xlfn.XLOOKUP($E59,'Activity 1'!$B$7:$B$13,'Activity 1'!S$7:S$13,\"N/A\",0,1)","v":"N/A"},{"$f":"_xlfn.XLOOKUP($E59,'Activity 1'!$B$7:$B$13,'Activity 1'!T$7:T$13,\"N/A\",0,1)","v":"N/A"},{"$f":"_xlfn.XLOOKUP($E59,'Activity 1'!$B$7:$B$13,'Activity 1'!U$7:U$13,\"N/A\",0,1)","v":"N/A"},{"$f":"_xlfn.XLOOKUP($E59,'Activity 1'!$B$7:$B$13,'Activity 1'!V$7:V$13,\"N/A\",0,1)","v":"N/A"},{"$f":"_xlfn.XLOOKUP($E59,'Activity 1'!$B$17:$B$23,'Activity 1'!C$17:C$23,\"N/A\",0,1)","v":"N/A"},{"$f":"_xlfn.XLOOKUP($E59,'Activity 1'!$B$17:$B$23,'Activity 1'!D$17:D$23,\"N/A\",0,1)","v":"N/A"},{"$f":"_xlfn.XLOOKUP($E59,'Activity 1'!$B$17:$B$23,'Activity 1'!E$17:E$23,\"N/A\",0,1)","v":"N/A"},{"$f":"_xlfn.XLOOKUP($E59,'Activity 1'!$B$17:$B$23,'Activity 1'!F$17:F$23,\"N/A\",0,1)","v":"N/A"},{"$f":"_xlfn.XLOOKUP($E59,'Activity 1'!$B$17:$B$23,'Activity 1'!G$17:G$23,\"N/A\",0,1)","v":"N/A"},{"$f":"_xlfn.XLOOKUP($E59,'Activity 1'!$B$17:$B$23,'Activity 1'!H$17:H$23,\"N/A\",0,1)","v":"N/A"},{"$f":"_xlfn.XLOOKUP($E59,'Activity 1'!$B$17:$B$23,'Activity 1'!I$17:I$23,\"N/A\",0,1)","v":"N/A"},{"$f":"_xlfn.XLOOKUP($E59,'Activity 1'!$B$17:$B$23,'Activity 1'!J$17:J$23,\"N/A\",0,1)","v":"N/A"},{"$f":"_xlfn.XLOOKUP($E59,'Activity 1'!$B$17:$B$23,'Activity 1'!K$17:K$23,\"N/A\",0,1)","v":"N/A"},{"$f":"_xlfn.XLOOKUP($E59,'Activity 1'!$B$17:$B$23,'Activity 1'!L$17:L$23,\"N/A\",0,1)","v":"N/A"},{"$f":"_xlfn.XLOOKUP($E59,'Activity 1'!$B$17:$B$23,'Activity 1'!M$17:M$23,\"N/A\",0,1)","v":"N/A"},{"$f":"_xlfn.XLOOKUP($E59,'Activity 1'!$B$17:$B$23,'Activity 1'!O$17:O$23,\"N/A\",0,1)","v":"N/A"},{"$f":"_xlfn.XLOOKUP($E59,'Activity 1'!$B$17:$B$23,'Activity 1'!Q$17:Q$23,\"N/A\",0,1)","v":"N/A"},{"$f":"_xlfn.XLOOKUP($E59,'Activity 2'!$B$7:$B$13,'Activity 2'!$A$7:$A$13,\"No\",0,1)","v":"No"},{"$f":"_xlfn.XLOOKUP($E59,'Activity 2'!B$7:B$13,'Activity 2'!H$7:H$13,\"N/A\",0)","v":"N/A"},{"$f":"_xlfn.XLOOKUP($E59,'Activity 2'!C$7:C$13,'Activity 2'!I$7:I$13,\"N/A\",0)","v":"N/A"},{"$f":"_xlfn.XLOOKUP($E59,'Activity 2'!D$7:D$13,'Activity 2'!J$7:J$13,\"N/A\",0)","v":"N/A"},{"$f":"_xlfn.XLOOKUP($E59,'Activity 2'!E$7:E$13,'Activity 2'!K$7:K$13,\"N/A\",0)","v":"N/A"},{"$f":"_xlfn.XLOOKUP($E59,'Activity 2'!F$7:F$13,'Activity 2'!L$7:L$13,\"N/A\",0)","v":"N/A"},{"$f":"_xlfn.XLOOKUP($E59,'Activity 2'!G$7:G$13,'Activity 2'!M$7:M$13,\"N/A\",0)","v":"N/A"},{"$f":"_xlfn.XLOOKUP($E59,'Activity 2'!H$7:H$13,'Activity 2'!N$7:N$13,\"N/A\",0)","v":"N/A"},{"$f":"_xlfn.XLOOKUP($E59,'Activity 2'!I$7:I$13,'Activity 2'!O$7:O$13,\"N/A\",0)","v":"N/A"},{"$f":"_xlfn.XLOOKUP($E59,'Activity 2'!J$7:J$13,'Activity 2'!P$7:P$13,\"N/A\",0)","v":"N/A"},{"$f":"_xlfn.XLOOKUP($E59,'Activity 2'!K$7:K$13,'Activity 2'!Q$7:Q$13,\"N/A\",0)","v":"N/A"},{"$f":"_xlfn.XLOOKUP($E59,'Activity 2'!L$7:L$13,'Activity 2'!R$7:R$13,\"N/A\",0)","v":"N/A"},{"$f":"_xlfn.XLOOKUP($E59,'Activity 2'!M$7:M$13,'Activity 2'!S$7:S$13,\"N/A\",0)","v":"N/A"},{"$f":"_xlfn.XLOOKUP($E59,'Activity 2'!N$7:N$13,'Activity 2'!T$7:T$13,\"N/A\",0)","v":"N/A"},{"$f":"_xlfn.XLOOKUP($E59,'Activity 2'!O$7:O$13,'Activity 2'!U$7:U$13,\"N/A\",0)","v":"N/A"},{"$f":"_xlfn.XLOOKUP($E59,'Activity 2'!P$7:P$13,'Activity 2'!V$7:V$13,\"N/A\",0)","v":"N/A"},{"$f":"_xlfn.XLOOKUP($E59,'Activity 2'!$B$17:$B$23,'Activity 2'!C$17:C$23,\"N/A\",0,1)","v":"N/A"},{"$f":"_xlfn.XLOOKUP($E59,'Activity 2'!$B$17:$B$23,'Activity 2'!D$17:D$23,\"N/A\",0,1)","v":"N/A"},{"$f":"_xlfn.XLOOKUP($E59,'Activity 2'!$B$17:$B$23,'Activity 2'!E$17:E$23,\"N/A\",0,1)","v":"N/A"},{"$f":"_xlfn.XLOOKUP($E59,'Activity 2'!$B$17:$B$23,'Activity 2'!F$17:F$23,\"N/A\",0,1)","v":"N/A"},{"$f":"_xlfn.XLOOKUP($E59,'Activity 2'!$B$17:$B$23,'Activity 2'!G$17:G$23,\"N/A\",0,1)","v":"N/A"},{"$f":"_xlfn.XLOOKUP($E59,'Activity 2'!$B$17:$B$23,'Activity 2'!H$17:H$23,\"N/A\",0,1)","v":"N/A"},{"$f":"_xlfn.XLOOKUP($E59,'Activity 2'!$B$17:$B$23,'Activity 2'!I$17:I$23,\"N/A\",0,1)","v":"N/A"},{"$f":"_xlfn.XLOOKUP($E59,'Activity 2'!$B$17:$B$23,'Activity 2'!J$17:J$23,\"N/A\",0,1)","v":"N/A"},{"$f":"_xlfn.XLOOKUP($E59,'Activity 2'!$B$17:$B$23,'Activity 2'!K$17:K$23,\"N/A\",0,1)","v":"N/A"},{"$f":"_xlfn.XLOOKUP($E59,'Activity 2'!$B$17:$B$23,'Activity 2'!L$17:L$23,\"N/A\",0,1)","v":"N/A"},{"$f":"_xlfn.XLOOKUP($E59,'Activity 2'!$B$17:$B$23,'Activity 2'!M$17:M$23,\"N/A\",0,1)","v":"N/A"},{"$f":"_xlfn.XLOOKUP($E59,'Activity 2'!$B$17:$B$23,'Activity 2'!O$17:O$23,\"N/A\",0,1)","v":"N/A"},{"$f":"_xlfn.XLOOKUP($E59,'Activity 2'!$B$17:$B$23,'Activity 2'!Q$17:Q$23,\"N/A\",0,1)","v":"N/A"},null,{"$f":"_xlfn.XLOOKUP($E59,'Activity 3'!$B$8:$B$14,'Activity 3'!K$8:K$14,\"N/A\",0,1)","v":"N/A"},{"$f":"_xlfn.XLOOKUP($E59,'Activity 3'!$B$8:$B$14,'Activity 3'!L$8:L$14,\"N/A\",0,1)","v":"N/A"},{"$f":"_xlfn.XLOOKUP($E59,'Activity 3'!$B$8:$B$14,'Activity 3'!M$8:M$14,\"N/A\",0,1)","v":"N/A"},{"$f":"_xlfn.XLOOKUP($E59,'Activity 3'!$B$8:$B$14,'Activity 3'!N$8:N$14,\"N/A\",0,1)","v":"N/A"},{"$f":"_xlfn.XLOOKUP($E59,'Activity 3'!$B$8:$B$14,'Activity 3'!O$8:O$14,\"N/A\",0,1)","v":"N/A"},{"$f":"_xlfn.XLOOKUP($E59,'Activity 3'!$B$8:$B$14,'Activity 3'!R$8:R$14,\"N/A\",0,1)","v":"N/A"},{"$f":"_xlfn.XLOOKUP($E59,'Activity 4'!$B$8:$B$14,'Activity 4'!$A$8:$A$14,\"No\",0,1)","v":"No"},{"$f":"_xlfn.XLOOKUP($E59,'Activity 4'!$B$8:$B$14,'Activity 4'!L$8:L$14,\"N/A\",0,1)","v":"N/A"},{"$f":"_xlfn.XLOOKUP($E59,'Activity 4'!$B$8:$B$14,'Activity 4'!I$8:I$14,\"N/A\",0,1)","v":"N/A"},{"$f":"_xlfn.XLOOKUP($E59,'Activity 4'!$B$8:$B$14,'Activity 4'!M$8:M$14,\"N/A\",0,1)","v":"N/A"},{"$f":"_xlfn.XLOOKUP($E59,'Activity 5'!$B$8:$B$14,'Activity 5'!$A$8:$A$14,\"No\",0,1)","v":"No"},{"$f":"_xlfn.XLOOKUP($E59,'Activity 5'!$B$8:$B$14,'Activity 5'!J$8:J$14,\"N/A\",0,1)","v":"N/A"},{"$f":"_xlfn.XLOOKUP($E59,'Activity 5'!$B$8:$B$14,'Activity 5'!K$8:K$14,\"N/A\",0,1)","v":"N/A"},{"$f":"_xlfn.XLOOKUP($E59,'Activity 5'!$B$8:$B$14,'Activity 5'!N$8:N$14,\"N/A\",0,1)","v":"N/A"},{"$f":"_xlfn.XLOOKUP($E59,'Activity 5'!$B$8:$B$14,'Activity 5'!O$8:O$14,\"N/A\",0,1)","v":"N/A"},{"$f":"_xlfn.XLOOKUP($E59,'Activity 5'!$B$8:$B$14,'Activity 5'!P$8:P$14,\"N/A\",0,1)","v":"N/A"},{"$f":"_xlfn.XLOOKUP($E59,'Activity 5'!$B$8:$B$14,'Activity 5'!Q$8:Q$14,\"N/A\",0,1)","v":"N/A"},{"$f":"_xlfn.XLOOKUP($E59,'Activity 5'!$B$8:$B$14,'Activity 5'!R$8:R$14,\"N/A\",0,1)","v":"N/A"},{"$f":"_xlfn.XLOOKUP($E59,'Activity 6'!$B$7:$B$13,'Activity 6'!A$7:A$13,\"No\",0,1)","v":"No"},{"$f":"_xlfn.XLOOKUP($E59,'Activity 6'!$B$7:$B$13,'Activity 6'!K$7:K$13,\"N/A\",0,1)","v":"N/A"},{"$f":"_xlfn.XLOOKUP($E59,'Activity 6'!$B$7:$B$13,'Activity 6'!L$7:L$13,\"N/A\",0,1)","v":"N/A"},{"$f":"_xlfn.XLOOKUP($E59,'Activity 6'!$B$7:$B$13,'Activity 6'!M$7:M$13,\"N/A\",0,1)","v":"N/A"},{"$f":"_xlfn.XLOOKUP($E59,'Activity 6'!$B$7:$B$13,'Activity 6'!N$7:N$13,\"N/A\",0,1)","v":"N/A"},{"$f":"_xlfn.XLOOKUP($E59,'Activity 6'!$B$7:$B$13,'Activity 6'!O$7:O$13,\"N/A\",0,1)","v":"N/A"},{"$f":"_xlfn.XLOOKUP($E59,'Activity 6'!$B$7:$B$13,'Activity 6'!P$7:P$13,\"N/A\",0,1)","v":"N/A"},{"$f":"_xlfn.XLOOKUP($E59,'Activity 6'!$B$7:$B$13,'Activity 6'!Q$7:Q$13,\"N/A\",0,1)","v":"N/A"},{"$f":"_xlfn.XLOOKUP($E59,'Activity 6'!$B$7:$B$13,'Activity 6'!R$7:R$13,\"N/A\",0,1)","v":"N/A"},{"$f":"_xlfn.XLOOKUP($E59,'Activity 6'!$B$7:$B$13,'Activity 6'!S$7:S$13,\"N/A\",0,1)","v":"N/A"},{"$f":"_xlfn.XLOOKUP($E59,'Activity 6'!$B$7:$B$13,'Activity 6'!T$7:T$13,\"N/A\",0,1)","v":"N/A"},{"$f":"_xlfn.XLOOKUP($E59,'Activity 6'!$B$7:$B$13,'Activity 6'!U$7:U$13,\"N/A\",0,1)","v":"N/A"},{"$f":"_xlfn.XLOOKUP($E59,'Activity 6'!$B$22:$B$28,'Activity 6'!C$22:C$28,\"N/A\",0,1)","v":"N/A"},{"$f":"_xlfn.XLOOKUP($E59,'Activity 6'!$B$22:$B$28,'Activity 6'!D$22:D$28,\"N/A\",0,1)","v":"N/A"},{"$f":"_xlfn.XLOOKUP($E59,'Activity 6'!$B$22:$B$28,'Activity 6'!E$22:E$28,\"N/A\",0,1)","v":"N/A"},{"$f":"_xlfn.XLOOKUP($E59,'Activity 6'!$B$22:$B$28,'Activity 6'!F$22:F$28,\"N/A\",0,1)","v":"N/A"},{"$f":"_xlfn.XLOOKUP($E59,'Activity 6'!$B$22:$B$28,'Activity 6'!G$22:G$28,\"N/A\",0,1)","v":"N/A"},{"$f":"_xlfn.XLOOKUP($E59,'Activity 6'!$B$22:$B$28,'Activity 6'!H$22:H$28,\"N/A\",0,1)","v":"N/A"},{"$f":"_xlfn.XLOOKUP($E59,'Activity 6'!$B$22:$B$28,'Activity 6'!I$22:I$28,\"N/A\",0,1)","v":"N/A"},{"$f":"_xlfn.XLOOKUP($E59,'Activity 6'!$B$22:$B$28,'Activity 6'!J$22:J$28,\"N/A\",0,1)","v":"N/A"},{"$f":"_xlfn.XLOOKUP($E59,'Activity 6'!$B$22:$B$28,'Activity 6'!K$22:K$28,\"N/A\",0,1)","v":"N/A"},{"$f":"_xlfn.XLOOKUP($E59,'Activity 6'!$B$22:$B$28,'Activity 6'!L$22:L$28,\"N/A\",0,1)","v":"N/A"},{"$f":"_xlfn.XLOOKUP($E59,'Activity 6'!$B$22:$B$28,'Activity 6'!M$22:M$28,\"N/A\",0,1)","v":"N/A"},{"$f":"_xlfn.XLOOKUP($E59,'Activity 6'!$B$22:$B$28,'Activity 6'!N$22:N$28,\"N/A\",0,1)","v":"N/A"},{"$f":"_xlfn.XLOOKUP($E59,'Activity 6'!$B$32:$B$38,'Activity 6'!C$32:C$38,\"N/A\",0,1)","v":"N/A"},{"$f":"_xlfn.XLOOKUP($E59,'Activity 6'!$B$32:$B$38,'Activity 6'!D$32:D$38,\"N/A\",0,1)","v":"N/A"},{"$f":"_xlfn.XLOOKUP($E59,'Activity 6'!$B$32:$B$38,'Activity 6'!E$32:E$38,\"N/A\",0,1)","v":"N/A"},{"$f":"_xlfn.XLOOKUP($E59,'Activity 6'!$B$32:$B$38,'Activity 6'!F$32:F$38,\"N/A\",0,1)","v":"N/A"},{"$f":"_xlfn.XLOOKUP($E59,'Activity 6'!$B$32:$B$38,'Activity 6'!G$32:G$38,\"N/A\",0,1)","v":"N/A"},{"$f":"_xlfn.XLOOKUP($E59,'Activity 6'!$B$32:$B$38,'Activity 6'!H$32:H$38,\"N/A\",0,1)","v":"N/A"},{"$f":"_xlfn.XLOOKUP($E59,'Activity 6'!$B$32:$B$38,'Activity 6'!I$32:I$38,\"N/A\",0,1)","v":"N/A"},{"$f":"_xlfn.XLOOKUP($E59,'Activity 6'!$B$32:$B$38,'Activity 6'!J$32:J$38,\"N/A\",0,1)","v":"N/A"},{"$f":"_xlfn.XLOOKUP($E59,'Activity 6'!$B$32:$B$38,'Activity 6'!K$32:K$38,\"N/A\",0,1)","v":"N/A"},{"$f":"_xlfn.XLOOKUP($E59,'Activity 6'!$B$32:$B$38,'Activity 6'!M$32:M$38,\"N/A\",0,1)","v":"N/A"},{"$f":"_xlfn.XLOOKUP($E59,'Activity 7'!$B$7:$B$13,'Activity 7'!$A$7:$A$13,\"No\",0,1)","v":"No"},{"$f":"_xlfn.XLOOKUP($E59,'Activity 7'!$B$7:$B$13,'Activity 7'!M$7:M$13,\"N/A\",0,1)","v":"N/A"},{"$f":"_xlfn.XLOOKUP($E59,'Activity 7'!$B$7:$B$13,'Activity 7'!K$7:K$13,\"N/A\",0,1)","v":"N/A"},{"$f":"_xlfn.XLOOKUP($E59,'Activity 7'!$B$7:$B$13,'Activity 7'!N$7:N$13,\"N/A\",0,1)","v":"N/A"},{"$f":"_xlfn.XLOOKUP($E59,'Activity 7'!$B$7:$B$13,'Activity 7'!O$7:O$13,\"N/A\",0,1)","v":"N/A"},{"$f":"_xlfn.XLOOKUP($E59,'Activity 7'!$B$7:$B$13,'Activity 7'!P$7:P$13,\"N/A\",0,1)","v":"N/A"},{"$f":"_xlfn.XLOOKUP($E59,'Activity 7'!$B$7:$B$13,'Activity 7'!Q$7:Q$13,\"N/A\",0,1)","v":"N/A"},{"$f":"_xlfn.XLOOKUP($E59,'Activity 7'!$B$7:$B$13,'Activity 7'!R$7:R$13,\"N/A\",0,1)","v":"N/A"},{"$f":"_xlfn.XLOOKUP($E59,'Activity 7'!$B$7:$B$13,'Activity 7'!S$7:S$13,\"N/A\",0,1)","v":"N/A"},{"$f":"_xlfn.XLOOKUP($E59,'Activity 7'!$B$7:$B$13,'Activity 7'!T$7:T$13,\"N/A\",0,1)","v":"N/A"},{"$f":"_xlfn.XLOOKUP($E59,'Activity 7'!$B$7:$B$13,'Activity 7'!U$7:U$13,\"N/A\",0,1)","v":"N/A"},{"$f":"_xlfn.XLOOKUP($E59,'Activity 7'!$B$7:$B$13,'Activity 7'!V$7:V$13,\"N/A\",0,1)","v":"N/A"},{"$f":"_xlfn.XLOOKUP($E59,'Activity 7'!$B$17:$B$23,'Activity 7'!E$17:E$23,\"N/A\",0,1)","v":"N/A"},{"$f":"_xlfn.XLOOKUP($E59,'Activity 7'!$B$17:$B$23,'Activity 7'!G$17:G$23,\"N/A\",0,1)","v":"N/A"},{"$f":"_xlfn.XLOOKUP($E59,'Activity 7'!$B$17:$B$23,'Activity 7'!I$17:I$23,\"N/A\",0,1)","v":"N/A"},{"$f":"_xlfn.XLOOKUP($E59,'Activity 7'!$B$17:$B$23,'Activity 7'!J$17:J$23,\"N/A\",0,1)","v":"N/A"},{"$f":"_xlfn.XLOOKUP($E59,'Activity 7'!$B$17:$B$23,'Activity 7'!K$17:K$23,\"N/A\",0,1)","v":"N/A"},{"$f":"_xlfn.XLOOKUP($E59,'Activity 7'!$B$17:$B$23,'Activity 7'!L$17:L$23,\"N/A\",0,1)","v":"N/A"},{"$f":"_xlfn.XLOOKUP($E59,'Activity 7'!$B$17:$B$23,'Activity 7'!M$17:M$23,\"N/A\",0,1)","v":"N/A"},{"$f":"_xlfn.XLOOKUP($E59,'Activity 7'!$B$17:$B$23,'Activity 7'!N$17:N$23,\"N/A\",0,1)","v":"N/A"},{"$f":"_xlfn.XLOOKUP($E59,'Activity 7'!$B$17:$B$23,'Activity 7'!P$17:P$23,\"N/A\",0,1)","v":"N/A"},{"$f":"_xlfn.XLOOKUP($E59,'Activity 8'!$B$7:$B$13,'Activity 8'!A$7:A$13,\"No\",0,1)","v":"No"},{"$f":"_xlfn.XLOOKUP($E59,'Activity 8'!$B$7:$B$13,'Activity 8'!I$7:I$13,\"N/A\",0,1)","v":"N/A"},{"$f":"_xlfn.XLOOKUP($E59,'Activity 8'!$B$7:$B$13,'Activity 8'!J$7:J$13,\"N/A\",0,1)","v":"N/A"},{"$f":"_xlfn.XLOOKUP($E59,'Activity 8'!$B$7:$B$13,'Activity 8'!K$7:K$13,\"N/A\",0,1)","v":"N/A"},{"$f":"_xlfn.XLOOKUP($E59,'Activity 8'!$B$7:$B$13,'Activity 8'!L$7:L$13,\"N/A\",0,1)","v":"N/A"},{"$f":"_xlfn.XLOOKUP($E59,'Activity 8'!$B$7:$B$13,'Activity 8'!M$7:M$13,\"N/A\",0,1)","v":"N/A"},{"$f":"_xlfn.XLOOKUP($E59,'Activity 8'!$B$7:$B$13,'Activity 8'!N$7:N$13,\"N/A\",0,1)","v":"N/A"},{"$f":"_xlfn.XLOOKUP($E59,'Activity 8'!$B$7:$B$13,'Activity 8'!O$7:O$13,\"N/A\",0,1)","v":"N/A"},{"$f":"_xlfn.XLOOKUP($E59,'Activity 8'!$B$7:$B$13,'Activity 8'!P$7:P$13,\"N/A\",0,1)","v":"N/A"},{"$f":"_xlfn.XLOOKUP($E59,'Activity 8'!$B$7:$B$13,'Activity 8'!Q$7:Q$13,\"N/A\",0,1)","v":"N/A"},{"$f":"_xlfn.XLOOKUP($E59,'Activity 8'!$B$7:$B$13,'Activity 8'!R$7:R$13,\"N/A\",0,1)","v":"N/A"},{"$f":"_xlfn.XLOOKUP($E59,'Activity 8'!$B$7:$B$13,'Activity 8'!S$7:S$13,\"N/A\",0,1)","v":"N/A"},{"$f":"_xlfn.XLOOKUP($E59,'Activity 8'!$B$7:$B$13,'Activity 8'!T$7:T$13,\"N/A\",0,1)","v":"N/A"},{"$f":"_xlfn.XLOOKUP($E59,'Activity 8'!$B$7:$B$13,'Activity 8'!U$7:U$13,\"N/A\",0,1)","v":"N/A"},{"$f":"_xlfn.XLOOKUP($E59,'Activity 8'!$B$7:$B$13,'Activity 8'!V$7:V$13,\"N/A\",0,1)","v":"N/A"},{"$f":"_xlfn.XLOOKUP($E59,'Activity 8'!$B$17:$B$23,'Activity 8'!D$17:D$23,\"N/A\",0,1)","v":"N/A"},{"$f":"_xlfn.XLOOKUP($E59,'Activity 8'!$B$17:$B$23,'Activity 8'!E$17:E$23,\"N/A\",0,1)","v":"N/A"},{"$f":"_xlfn.XLOOKUP($E59,'Activity 8'!$B$17:$B$23,'Activity 8'!F$17:F$23,\"N/A\",0,1)","v":"N/A"},{"$f":"_xlfn.XLOOKUP($E59,'Activity 8'!$B$17:$B$23,'Activity 8'!G$17:G$23,\"N/A\",0,1)","v":"N/A"},{"$f":"_xlfn.XLOOKUP($E59,'Activity 8'!$B$17:$B$23,'Activity 8'!H$17:H$23,\"N/A\",0,1)","v":"N/A"},{"$f":"_xlfn.XLOOKUP($E59,'Activity 8'!$B$17:$B$23,'Activity 8'!I$17:I$23,\"N/A\",0,1)","v":"N/A"},{"$f":"_xlfn.XLOOKUP($E59,'Activity 8'!$B$17:$B$23,'Activity 8'!J$17:J$23,\"N/A\",0,1)","v":"N/A"},{"$f":"_xlfn.XLOOKUP($E59,'Activity 8'!$B$17:$B$23,'Activity 8'!K$17:K$23,\"N/A\",0,1)","v":"N/A"},{"$f":"_xlfn.XLOOKUP($E59,'Activity 8'!$B$17:$B$23,'Activity 8'!L$17:L$23,\"N/A\",0,1)","v":"N/A"},{"$f":"_xlfn.XLOOKUP($E59,'Activity 8'!$B$17:$B$23,'Activity 8'!M$17:M$23,\"N/A\",0,1)","v":"N/A"},{"$f":"_xlfn.XLOOKUP($E59,'Activity 8'!$B$17:$B$23,'Activity 8'!N$17:N$23,\"N/A\",0,1)","v":"N/A"},{"$f":"_xlfn.XLOOKUP($E59,'Activity 8'!$B$17:$B$23,'Activity 8'!P$17:P$23,\"N/A\",0,1)","v":"N/A"},{"$f":"_xlfn.XLOOKUP(E59,'Activity 9'!$B$7:$B$13,'Activity 9'!$A$7:$A$13,\"No\",0,1)","v":"No"},{"$f":"_xlfn.XLOOKUP($E59,'Activity 9'!$B$7:$B$13,'Activity 9'!J$7:J$13,\"N/A\",0,1)","v":"N/A"},{"$f":"_xlfn.XLOOKUP($E59,'Activity 9'!$B$7:$B$13,'Activity 9'!K$7:K$13,\"N/A\",0,1)","v":"N/A"},{"$f":"_xlfn.XLOOKUP($E59,'Activity 9'!$B$7:$B$13,'Activity 9'!L$7:L$13,\"N/A\",0,1)","v":"N/A"},{"$f":"_xlfn.XLOOKUP($E59,'Activity 9'!$B$7:$B$13,'Activity 9'!M$7:M$13,\"N/A\",0,1)","v":"N/A"},{"$f":"_xlfn.XLOOKUP($E59,'Activity 9'!$B$7:$B$13,'Activity 9'!N$7:N$13,\"N/A\",0,1)","v":"N/A"},{"$f":"_xlfn.XLOOKUP($E59,'Activity 9'!$B$7:$B$13,'Activity 9'!O$7:O$13,\"N/A\",0,1)","v":"N/A"},{"$f":"_xlfn.XLOOKUP($E59,'Activity 9'!$B$7:$B$13,'Activity 9'!P$7:P$13,\"N/A\",0,1)","v":"N/A"},{"$f":"_xlfn.XLOOKUP($E59,'Activity 9'!$B$7:$B$13,'Activity 9'!Q$7:Q$13,\"N/A\",0,1)","v":"N/A"},{"$f":"_xlfn.XLOOKUP($E59,'Activity 9'!$B$7:$B$13,'Activity 9'!R$7:R$13,\"N/A\",0,1)","v":"N/A"},{"$f":"_xlfn.XLOOKUP($E59,'Activity 9'!$B$7:$B$13,'Activity 9'!S$7:S$13,\"N/A\",0,1)","v":"N/A"},{"$f":"_xlfn.XLOOKUP($E59,'Activity 9'!$B$7:$B$13,'Activity 9'!T$7:T$13,\"N/A\",0,1)","v":"N/A"},{"$f":"_xlfn.XLOOKUP($E59,'Activity 9'!$B$17:$B$23,'Activity 9'!E$17:E$23,\"N/A\",0,1)","v":"N/A"},{"$f":"_xlfn.XLOOKUP($E59,'Activity 9'!$B$17:$B$23,'Activity 9'!F$17:F$23,\"N/A\",0,1)","v":"N/A"},{"$f":"_xlfn.XLOOKUP($E59,'Activity 9'!$B$17:$B$23,'Activity 9'!G$17:G$23,\"N/A\",0,1)","v":"N/A"},{"$f":"_xlfn.XLOOKUP($E59,'Activity 9'!$B$17:$B$23,'Activity 9'!H$17:H$23,\"N/A\",0,1)","v":"N/A"},{"$f":"_xlfn.XLOOKUP($E59,'Activity 9'!$B$17:$B$23,'Activity 9'!I$17:I$23,\"N/A\",0,1)","v":"N/A"},{"$f":"_xlfn.XLOOKUP($E59,'Activity 9'!$B$17:$B$23,'Activity 9'!J$17:J$23,\"N/A\",0,1)","v":"N/A"},{"$f":"_xlfn.XLOOKUP($E59,'Activity 9'!$B$17:$B$23,'Activity 9'!K$17:K$23,\"N/A\",0,1)","v":"N/A"},{"$f":"_xlfn.XLOOKUP($E59,'Activity 9'!$B$17:$B$23,'Activity 9'!L$17:L$23,\"N/A\",0,1)","v":"N/A"},{"$f":"_xlfn.XLOOKUP($E59,'Activity 9'!$B$17:$B$23,'Activity 9'!N$17:N$23,\"N/A\",0,1)","v":"N/A"},{"$f":"_xlfn.XLOOKUP($E59,'Activity 9'!$B$17:$B$23,'Activity 9'!O$17:O$23,\"N/A\",0,1)","v":"N/A"},{"$f":"_xlfn.XLOOKUP($E59,'Activity 9'!$B$17:$B$23,'Activity 9'!Q$17:Q$23,\"N/A\",0,1)","v":"N/A"},{"$f":"_xlfn.XLOOKUP($E59,'Activity 10'!$B$7:$B$13,'Activity 10'!A$7:A$13,\"No\",0,1)","v":"No"},{"$f":"_xlfn.XLOOKUP($E59,'Activity 10'!$B$7:$B$13,'Activity 10'!J$7:J$13,\"N/A\",0,1)","v":"N/A"},{"$f":"_xlfn.XLOOKUP($E59,'Activity 10'!$B$7:$B$13,'Activity 10'!K$7:K$13,\"N/A\",0,1)","v":"N/A"},{"$f":"_xlfn.XLOOKUP($E59,'Activity 10'!$B$7:$B$13,'Activity 10'!L$7:L$13,\"N/A\",0,1)","v":"N/A"},{"$f":"_xlfn.XLOOKUP($E59,'Activity 10'!$B$7:$B$13,'Activity 10'!M$7:M$13,\"N/A\",0,1)","v":"N/A"},{"$f":"_xlfn.XLOOKUP($E59,'Activity 10'!$B$7:$B$13,'Activity 10'!N$7:N$13,\"N/A\",0,1)","v":"N/A"},{"$f":"_xlfn.XLOOKUP($E59,'Activity 10'!$B$7:$B$13,'Activity 10'!O$7:O$13,\"N/A\",0,1)","v":"N/A"},{"$f":"_xlfn.XLOOKUP($E59,'Activity 10'!$B$7:$B$13,'Activity 10'!P$7:P$13,\"N/A\",0,1)","v":"N/A"},{"$f":"_xlfn.XLOOKUP($E59,'Activity 10'!$B$7:$B$13,'Activity 10'!Q$7:Q$13,\"N/A\",0,1)","v":"N/A"},{"$f":"_xlfn.XLOOKUP($E59,'Activity 10'!$B$7:$B$13,'Activity 10'!R$7:R$13,\"N/A\",0,1)","v":"N/A"},{"$f":"_xlfn.XLOOKUP($E59,'Activity 10'!$B$7:$B$13,'Activity 10'!S$7:S$13,\"N/A\",0,1)","v":"N/A"},{"$f":"_xlfn.XLOOKUP($E59,'Activity 10'!$B$7:$B$13,'Activity 10'!T$7:T$13,\"N/A\",0,1)","v":"N/A"},{"$f":"_xlfn.XLOOKUP($E59,'Activity 10'!$B$7:$B$13,'Activity 10'!U$7:U$13,\"N/A\",0,1)","v":"N/A"},{"$f":"_xlfn.XLOOKUP($E59,'Activity 10'!$B$7:$B$13,'Activity 10'!V$7:V$13,\"N/A\",0,1)","v":"N/A"},{"$f":"_xlfn.XLOOKUP($E59,'Activity 10'!$B$17:$B$23,'Activity 10'!E$17:E$23,\"N/A\",0,1)","v":"N/A"},{"$f":"_xlfn.XLOOKUP($E59,'Activity 10'!$B$17:$B$23,'Activity 10'!F$17:F$23,\"N/A\",0,1)","v":"N/A"},{"$f":"_xlfn.XLOOKUP($E59,'Activity 10'!$B$17:$B$23,'Activity 10'!G$17:G$23,\"N/A\",0,1)","v":"N/A"},{"$f":"_xlfn.XLOOKUP($E59,'Activity 10'!$B$17:$B$23,'Activity 10'!H$17:H$23,\"N/A\",0,1)","v":"N/A"},{"$f":"_xlfn.XLOOKUP($E59,'Activity 10'!$B$17:$B$23,'Activity 10'!I$17:I$23,\"N/A\",0,1)","v":"N/A"},{"$f":"_xlfn.XLOOKUP($E59,'Activity 10'!$B$17:$B$23,'Activity 10'!J$17:J$23,\"N/A\",0,1)","v":"N/A"},{"$f":"_xlfn.XLOOKUP($E59,'Activity 10'!$B$17:$B$23,'Activity 10'!K$17:K$23,\"N/A\",0,1)","v":"N/A"},{"$f":"_xlfn.XLOOKUP($E59,'Activity 10'!$B$17:$B$23,'Activity 10'!L$17:L$23,\"N/A\",0,1)","v":"N/A"},{"$f":"_xlfn.XLOOKUP($E59,'Activity 10'!$B$17:$B$23,'Activity 10'!M$17:M$23,\"N/A\",0,1)","v":"N/A"},{"$f":"_xlfn.XLOOKUP($E59,'Activity 10'!$B$17:$B$23,'Activity 10'!N$17:N$23,\"N/A\",0,1)","v":"N/A"},{"$f":"_xlfn.XLOOKUP($E59,'Activity 10'!$B$17:$B$23,'Activity 10'!P$17:P$23,\"N/A\",0,1)","v":"N/A"},{"$f":"_xlfn.XLOOKUP($E59,'Competitive Activity 1'!B$7:B$13,'Competitive Activity 1'!A$7:A$13,\"No\",0,1)","v":"No"},{"$f":"_xlfn.XLOOKUP($E59,'Competitive Activity 1'!$B$7:$B$13,'Competitive Activity 1'!H$7:H$13,\"N/A\",0,1)","v":"N/A"},{"$f":"_xlfn.XLOOKUP($E59,'Competitive Activity 1'!$B$7:$B$13,'Competitive Activity 1'!I$7:I$13,\"N/A\",0,1)","v":"N/A"},{"$f":"_xlfn.XLOOKUP($E59,'Competitive Activity 1'!$B$7:$B$13,'Competitive Activity 1'!J$7:J$13,\"N/A\",0,1)","v":"N/A"},{"$f":"_xlfn.XLOOKUP($E59,'Competitive Activity 1'!$B$7:$B$13,'Competitive Activity 1'!K$7:K$13,\"N/A\",0,1)","v":"N/A"},{"$f":"_xlfn.XLOOKUP($E59,'Competitive Activity 1'!$B$7:$B$13,'Competitive Activity 1'!L$7:L$13,\"N/A\",0,1)","v":"N/A"},{"$f":"_xlfn.XLOOKUP($E59,'Competitive Activity 1'!$B$7:$B$13,'Competitive Activity 1'!M$7:M$13,\"N/A\",0,1)","v":"N/A"},{"$f":"_xlfn.XLOOKUP($E59,'Competitive Activity 1'!$B$7:$B$13,'Competitive Activity 1'!N$7:N$13,\"N/A\",0,1)","v":"N/A"},{"$f":"_xlfn.XLOOKUP($E59,'Competitive Activity 1'!$B$7:$B$13,'Competitive Activity 1'!O$7:O$13,\"N/A\",0,1)","v":"N/A"},{"$f":"_xlfn.XLOOKUP($E59,'Competitive Activity 1'!$B$7:$B$13,'Competitive Activity 1'!P$7:P$13,\"N/A\",0,1)","v":"N/A"},{"$f":"_xlfn.XLOOKUP($E59,'Competitive Activity 1'!$B$7:$B$13,'Competitive Activity 1'!Q$7:Q$13,\"N/A\",0,1)","v":"N/A"},{"$f":"_xlfn.XLOOKUP($E59,'Competitive Activity 1'!$B$7:$B$13,'Competitive Activity 1'!R$7:R$13,\"N/A\",0,1)","v":"N/A"},{"$f":"_xlfn.XLOOKUP($E59,'Competitive Activity 1'!$B$7:$B$13,'Competitive Activity 1'!S$7:S$13,\"N/A\",0,1)","v":"N/A"},{"$f":"_xlfn.XLOOKUP($E59,'Competitive Activity 1'!$B$7:$B$13,'Competitive Activity 1'!T$7:T$13,\"N/A\",0,1)","v":"N/A"},{"$f":"_xlfn.XLOOKUP($E59,'Competitive Activity 1'!$B$7:$B$13,'Competitive Activity 1'!U$7:U$13,\"N/A\",0,1)","v":"N/A"},{"$f":"_xlfn.XLOOKUP($E59,'Competitive Activity 1'!$B$17:$B$23,'Competitive Activity 1'!C$17:C$23,\"N/A\",0,1)","v":"N/A"},{"$f":"_xlfn.XLOOKUP($E59,'Competitive Activity 1'!$B$17:$B$23,'Competitive Activity 1'!D$17:D$23,\"N/A\",0,1)","v":"N/A"},{"$f":"_xlfn.XLOOKUP($E59,'Competitive Activity 1'!$B$17:$B$23,'Competitive Activity 1'!E$17:E$23,\"N/A\",0,1)","v":"N/A"},{"$f":"_xlfn.XLOOKUP($E59,'Competitive Activity 1'!$B$17:$B$23,'Competitive Activity 1'!F$17:F$23,\"N/A\",0,1)","v":"N/A"},{"$f":"_xlfn.XLOOKUP($E59,'Competitive Activity 1'!$B$17:$B$23,'Competitive Activity 1'!G$17:G$23,\"N/A\",0,1)","v":"N/A"},{"$f":"_xlfn.XLOOKUP($E59,'Competitive Activity 1'!$B$17:$B$23,'Competitive Activity 1'!H$17:H$23,\"N/A\",0,1)","v":"N/A"},{"$f":"_xlfn.XLOOKUP($E59,'Competitive Activity 1'!$B$17:$B$23,'Competitive Activity 1'!I$17:I$23,\"N/A\",0,1)","v":"N/A"},{"$f":"_xlfn.XLOOKUP($E59,'Competitive Activity 1'!$B$17:$B$23,'Competitive Activity 1'!J$17:J$23,\"N/A\",0,1)","v":"N/A"},{"$f":"_xlfn.XLOOKUP($E59,'Competitive Activity 1'!$B$17:$B$23,'Competitive Activity 1'!K$17:K$23,\"N/A\",0,1)","v":"N/A"},{"$f":"_xlfn.XLOOKUP($E59,'Competitive Activity 1'!$B$17:$B$23,'Competitive Activity 1'!M$17:M$23,\"N/A\",0,1)","v":"N/A"},{"$f":"_xlfn.XLOOKUP($E59,'Competitive Activity 1'!$B$17:$B$23,'Competitive Activity 1'!N$17:N$23,\"N/A\",0,1)","v":"N/A"},{"$f":"_xlfn.XLOOKUP($E59,'Competitive Activity 1'!$B$17:$B$23,'Competitive Activity 1'!P$17:P$23,\"N/A\",0,1)","v":"N/A"},{"$f":"_xlfn.XLOOKUP($E59,'Competitive Activity 2'!$B$7:$B$13,'Competitive Activity 2'!A$7:A$13,\"No\",0)","v":"No"},{"$f":"_xlfn.XLOOKUP($E59,'Competitive Activity 2'!$B$7:$B$13,'Competitive Activity 2'!L$7:L$13,\"N/A\",0)","v":"N/A"},{"$f":"_xlfn.XLOOKUP($E59,'Competitive Activity 2'!$B$7:$B$13,'Competitive Activity 2'!M$7:M$13,\"N/A\",0)","v":"N/A"},{"$f":"_xlfn.XLOOKUP($E59,'Competitive Activity 2'!$B$7:$B$13,'Competitive Activity 2'!N$7:N$13,\"N/A\",0)","v":"N/A"},{"$f":"_xlfn.XLOOKUP($E59,'Competitive Activity 2'!$B$7:$B$13,'Competitive Activity 2'!O$7:O$13,\"N/A\",0)","v":"N/A"},{"$f":"_xlfn.XLOOKUP($E59,'Competitive Activity 2'!$B$7:$B$13,'Competitive Activity 2'!P$7:P$13,\"N/A\",0)","v":"N/A"},{"$f":"_xlfn.XLOOKUP($E59,'Competitive Activity 2'!$B$7:$B$13,'Competitive Activity 2'!Q$7:Q$13,\"N/A\",0)","v":"N/A"},{"$f":"_xlfn.XLOOKUP($E59,'Competitive Activity 2'!$B$7:$B$13,'Competitive Activity 2'!R$7:R$13,\"N/A\",0)","v":"N/A"},{"$f":"_xlfn.XLOOKUP($E59,'Competitive Activity 2'!$B$7:$B$13,'Competitive Activity 2'!S$7:S$13,\"N/A\",0)","v":"N/A"},{"$f":"_xlfn.XLOOKUP($E59,'Competitive Activity 2'!$B$7:$B$13,'Competitive Activity 2'!T$7:T$13,\"N/A\",0)","v":"N/A"},{"$f":"_xlfn.XLOOKUP($E59,'Competitive Activity 2'!$B$7:$B$13,'Competitive Activity 2'!U$7:U$13,\"N/A\",0)","v":"N/A"},{"$f":"_xlfn.XLOOKUP($E59,'Competitive Activity 2'!$B$17:$B$23,'Competitive Activity 2'!D$17:D$23,\"N/A\",0)","v":"N/A"},{"$f":"_xlfn.XLOOKUP($E59,'Competitive Activity 2'!$B$17:$B$23,'Competitive Activity 2'!E$17:E$23,\"N/A\",0)","v":"N/A"},{"$f":"_xlfn.XLOOKUP($E59,'Competitive Activity 2'!$B$17:$B$23,'Competitive Activity 2'!F$17:F$23,\"N/A\",0)","v":"N/A"},{"$f":"_xlfn.XLOOKUP($E59,'Competitive Activity 2'!$B$17:$B$23,'Competitive Activity 2'!G$17:G$23,\"N/A\",0)","v":"N/A"},{"$f":"_xlfn.XLOOKUP($E59,'Competitive Activity 2'!$B$17:$B$23,'Competitive Activity 2'!H$17:H$23,\"N/A\",0)","v":"N/A"},{"$f":"_xlfn.XLOOKUP($E59,'Competitive Activity 2'!$B$17:$B$23,'Competitive Activity 2'!I$17:I$23,\"N/A\",0)","v":"N/A"},{"$f":"_xlfn.XLOOKUP($E59,'Competitive Activity 2'!$B$17:$B$23,'Competitive Activity 2'!J$17:J$23,\"N/A\",0)","v":"N/A"},{"$f":"_xlfn.XLOOKUP($E59,'Competitive Activity 2'!$B$17:$B$23,'Competitive Activity 2'!K$17:K$23,\"N/A\",0)","v":"N/A"},{"$f":"_xlfn.XLOOKUP($E59,'Competitive Activity 2'!$B$17:$B$23,'Competitive Activity 2'!L$17:L$23,\"N/A\",0)","v":"N/A"},{"$f":"_xlfn.XLOOKUP($E59,'Competitive Activity 2'!$B$17:$B$23,'Competitive Activity 2'!M$17:M$23,\"N/A\",0)","v":"N/A"},{"$f":"_xlfn.XLOOKUP($E59,'Competitive Activity 2'!$B$17:$B$23,'Competitive Activity 2'!N$17:N$23,\"N/A\",0)","v":"N/A"},{"$f":"_xlfn.XLOOKUP($E59,'Competitive Activity 2'!$B$27:$B$33,'Competitive Activity 2'!D$27:D$33,\"N/A\",0)","v":"N/A"},{"$f":"_xlfn.XLOOKUP($E59,'Competitive Activity 2'!$B$27:$B$33,'Competitive Activity 2'!E$27:E$33,\"N/A\",0)","v":"N/A"},{"$f":"_xlfn.XLOOKUP($E59,'Competitive Activity 2'!$B$27:$B$33,'Competitive Activity 2'!F$27:F$33,\"N/A\",0)","v":"N/A"},{"$f":"_xlfn.XLOOKUP($E59,'Competitive Activity 2'!$B$27:$B$33,'Competitive Activity 2'!G$27:G$33,\"N/A\",0)","v":"N/A"},{"$f":"_xlfn.XLOOKUP($E59,'Competitive Activity 2'!$B$27:$B$33,'Competitive Activity 2'!H$27:H$33,\"N/A\",0)","v":"N/A"},{"$f":"_xlfn.XLOOKUP($E59,'Competitive Activity 2'!$B$27:$B$33,'Competitive Activity 2'!I$27:I$33,\"N/A\",0)","v":"N/A"},{"$f":"_xlfn.XLOOKUP($E59,'Competitive Activity 2'!$B$27:$B$33,'Competitive Activity 2'!J$27:J$33,\"N/A\",0)","v":"N/A"},{"$f":"_xlfn.XLOOKUP($E59,'Competitive Activity 2'!$B$27:$B$33,'Competitive Activity 2'!K$27:K$33,\"N/A\",0)","v":"N/A"},{"$f":"_xlfn.XLOOKUP($E59,'Competitive Activity 2'!$B$27:$B$33,'Competitive Activity 2'!M$27:M$33,\"N/A\",0)","v":"N/A"}]
[{"$f":"'1-Cover Sheet'!$C$8","v":"Select One"},{"$f":"'1-Cover Sheet'!$F$8","v":"Select One"},{"$f":"'Summary Sheet'!$D$8","v":0},{"$f":"'Summary Sheet'!$D$10","v":0},{"$f":"'Drop Down Box'!B224","v":0},{"$f":"'Drop Down Box'!C224","v":0},{"$f":"'Drop Down Box'!D224","v":"Select One"},{"$f":"_xlfn.XLOOKUP(E60,'Drop Down Box'!$B$166:$B$249,'Drop Down Box'!$A$166:$A$249,\"Unknown\",0)","v":"Activity 1"},{"$f":"_xlfn.XLOOKUP($E60,'Activity 9'!$B$17:$B$23,'Activity 9'!$M$17:$M$23,\"N/A\",0)","v":"N/A"},{"$f":"_xlfn.XLOOKUP($E60,'Activity 9'!$B$17:$B$23,'Activity 9'!$P$17:$P$23,\"N/A\",0)","v":"N/A"},{"$f":"_xlfn.XLOOKUP($E60,'Activity 9'!$B$7:$B$13,'Activity 9'!G$7:G$13,\"N/A\",0)","v":"N/A"},{"$f":"_xlfn.XLOOKUP($E60,'Activity 9'!$B$7:$B$13,'Activity 9'!H$7:H$13,\"N/A\",0)","v":"N/A"},{"$f":"_xlfn.XLOOKUP($E60,'Activity 9'!$B$7:$B$13,'Activity 9'!I$7:I$13,\"N/A\",0)","v":"N/A"},{"$f":"_xlfn.XLOOKUP($E60,'Activity 1'!$B$7:$B$13,'Activity 1'!$A$7:$A$13,\"No\",0,1)","v":"No"},{"$f":"_xlfn.XLOOKUP($E60,'Activity 1'!$B$7:$B$13,'Activity 1'!$H$7:$H$13,\"N/A\",0,1)","v":"N/A"},{"$f":"_xlfn.XLOOKUP($E60,'Activity 1'!$B$7:$B$13,'Activity 1'!I$7:I$13,\"N/A\",0,1)","v":"N/A"},{"$f":"_xlfn.XLOOKUP($E60,'Activity 1'!$B$7:$B$13,'Activity 1'!J$7:J$13,\"N/A\",0,1)","v":"N/A"},{"$f":"_xlfn.XLOOKUP($E60,'Activity 1'!$B$7:$B$13,'Activity 1'!K$7:K$13,\"N/A\",0,1)","v":"N/A"},{"$f":"_xlfn.XLOOKUP($E60,'Activity 1'!$B$7:$B$13,'Activity 1'!L$7:L$13,\"N/A\",0,1)","v":"N/A"},{"$f":"_xlfn.XLOOKUP($E60,'Activity 1'!$B$7:$B$13,'Activity 1'!M$7:M$13,\"N/A\",0,1)","v":"N/A"},{"$f":"_xlfn.XLOOKUP($E60,'Activity 1'!$B$7:$B$13,'Activity 1'!N$7:N$13,\"N/A\",0,1)","v":"N/A"},0,{"$f":"_xlfn.XLOOKUP($E60,'Activity 1'!$B$7:$B$13,'Activity 1'!O$7:O$13,\"N/A\",0,1)","v":"N/A"},{"$f":"_xlfn.XLOOKUP($E60,'Activity 1'!$B$7:$B$13,'Activity 1'!P$7:P$13,\"N/A\",0,1)","v":"N/A"},{"$f":"_xlfn.XLOOKUP($E60,'Activity 1'!$B$7:$B$13,'Activity 1'!Q$7:Q$13,\"N/A\",0,1)","v":"N/A"},{"$f":"_xlfn.XLOOKUP($E60,'Activity 1'!$B$7:$B$13,'Activity 1'!R$7:R$13,\"N/A\",0,1)","v":"N/A"},{"$f":"_xlfn.XLOOKUP($E60,'Activity 1'!$B$7:$B$13,'Activity 1'!S$7:S$13,\"N/A\",0,1)","v":"N/A"},{"$f":"_xlfn.XLOOKUP($E60,'Activity 1'!$B$7:$B$13,'Activity 1'!T$7:T$13,\"N/A\",0,1)","v":"N/A"},{"$f":"_xlfn.XLOOKUP($E60,'Activity 1'!$B$7:$B$13,'Activity 1'!U$7:U$13,\"N/A\",0,1)","v":"N/A"},{"$f":"_xlfn.XLOOKUP($E60,'Activity 1'!$B$7:$B$13,'Activity 1'!V$7:V$13,\"N/A\",0,1)","v":"N/A"},{"$f":"_xlfn.XLOOKUP($E60,'Activity 1'!$B$17:$B$23,'Activity 1'!C$17:C$23,\"N/A\",0,1)","v":"N/A"},{"$f":"_xlfn.XLOOKUP($E60,'Activity 1'!$B$17:$B$23,'Activity 1'!D$17:D$23,\"N/A\",0,1)","v":"N/A"},{"$f":"_xlfn.XLOOKUP($E60,'Activity 1'!$B$17:$B$23,'Activity 1'!E$17:E$23,\"N/A\",0,1)","v":"N/A"},{"$f":"_xlfn.XLOOKUP($E60,'Activity 1'!$B$17:$B$23,'Activity 1'!F$17:F$23,\"N/A\",0,1)","v":"N/A"},{"$f":"_xlfn.XLOOKUP($E60,'Activity 1'!$B$17:$B$23,'Activity 1'!G$17:G$23,\"N/A\",0,1)","v":"N/A"},{"$f":"_xlfn.XLOOKUP($E60,'Activity 1'!$B$17:$B$23,'Activity 1'!H$17:H$23,\"N/A\",0,1)","v":"N/A"},{"$f":"_xlfn.XLOOKUP($E60,'Activity 1'!$B$17:$B$23,'Activity 1'!I$17:I$23,\"N/A\",0,1)","v":"N/A"},{"$f":"_xlfn.XLOOKUP($E60,'Activity 1'!$B$17:$B$23,'Activity 1'!J$17:J$23,\"N/A\",0,1)","v":"N/A"},{"$f":"_xlfn.XLOOKUP($E60,'Activity 1'!$B$17:$B$23,'Activity 1'!K$17:K$23,\"N/A\",0,1)","v":"N/A"},{"$f":"_xlfn.XLOOKUP($E60,'Activity 1'!$B$17:$B$23,'Activity 1'!L$17:L$23,\"N/A\",0,1)","v":"N/A"},{"$f":"_xlfn.XLOOKUP($E60,'Activity 1'!$B$17:$B$23,'Activity 1'!M$17:M$23,\"N/A\",0,1)","v":"N/A"},{"$f":"_xlfn.XLOOKUP($E60,'Activity 1'!$B$17:$B$23,'Activity 1'!O$17:O$23,\"N/A\",0,1)","v":"N/A"},{"$f":"_xlfn.XLOOKUP($E60,'Activity 1'!$B$17:$B$23,'Activity 1'!Q$17:Q$23,\"N/A\",0,1)","v":"N/A"},{"$f":"_xlfn.XLOOKUP($E60,'Activity 2'!$B$7:$B$13,'Activity 2'!$A$7:$A$13,\"No\",0,1)","v":"No"},{"$f":"_xlfn.XLOOKUP($E60,'Activity 2'!B$7:B$13,'Activity 2'!H$7:H$13,\"N/A\",0)","v":"N/A"},{"$f":"_xlfn.XLOOKUP($E60,'Activity 2'!C$7:C$13,'Activity 2'!I$7:I$13,\"N/A\",0)","v":"N/A"},{"$f":"_xlfn.XLOOKUP($E60,'Activity 2'!D$7:D$13,'Activity 2'!J$7:J$13,\"N/A\",0)","v":"N/A"},{"$f":"_xlfn.XLOOKUP($E60,'Activity 2'!E$7:E$13,'Activity 2'!K$7:K$13,\"N/A\",0)","v":"N/A"},{"$f":"_xlfn.XLOOKUP($E60,'Activity 2'!F$7:F$13,'Activity 2'!L$7:L$13,\"N/A\",0)","v":"N/A"},{"$f":"_xlfn.XLOOKUP($E60,'Activity 2'!G$7:G$13,'Activity 2'!M$7:M$13,\"N/A\",0)","v":"N/A"},{"$f":"_xlfn.XLOOKUP($E60,'Activity 2'!H$7:H$13,'Activity 2'!N$7:N$13,\"N/A\",0)","v":"N/A"},{"$f":"_xlfn.XLOOKUP($E60,'Activity 2'!I$7:I$13,'Activity 2'!O$7:O$13,\"N/A\",0)","v":"N/A"},{"$f":"_xlfn.XLOOKUP($E60,'Activity 2'!J$7:J$13,'Activity 2'!P$7:P$13,\"N/A\",0)","v":"N/A"},{"$f":"_xlfn.XLOOKUP($E60,'Activity 2'!K$7:K$13,'Activity 2'!Q$7:Q$13,\"N/A\",0)","v":"N/A"},{"$f":"_xlfn.XLOOKUP($E60,'Activity 2'!L$7:L$13,'Activity 2'!R$7:R$13,\"N/A\",0)","v":"N/A"},{"$f":"_xlfn.XLOOKUP($E60,'Activity 2'!M$7:M$13,'Activity 2'!S$7:S$13,\"N/A\",0)","v":"N/A"},{"$f":"_xlfn.XLOOKUP($E60,'Activity 2'!N$7:N$13,'Activity 2'!T$7:T$13,\"N/A\",0)","v":"N/A"},{"$f":"_xlfn.XLOOKUP($E60,'Activity 2'!O$7:O$13,'Activity 2'!U$7:U$13,\"N/A\",0)","v":"N/A"},{"$f":"_xlfn.XLOOKUP($E60,'Activity 2'!P$7:P$13,'Activity 2'!V$7:V$13,\"N/A\",0)","v":"N/A"},{"$f":"_xlfn.XLOOKUP($E60,'Activity 2'!$B$17:$B$23,'Activity 2'!C$17:C$23,\"N/A\",0,1)","v":"N/A"},{"$f":"_xlfn.XLOOKUP($E60,'Activity 2'!$B$17:$B$23,'Activity 2'!D$17:D$23,\"N/A\",0,1)","v":"N/A"},{"$f":"_xlfn.XLOOKUP($E60,'Activity 2'!$B$17:$B$23,'Activity 2'!E$17:E$23,\"N/A\",0,1)","v":"N/A"},{"$f":"_xlfn.XLOOKUP($E60,'Activity 2'!$B$17:$B$23,'Activity 2'!F$17:F$23,\"N/A\",0,1)","v":"N/A"},{"$f":"_xlfn.XLOOKUP($E60,'Activity 2'!$B$17:$B$23,'Activity 2'!G$17:G$23,\"N/A\",0,1)","v":"N/A"},{"$f":"_xlfn.XLOOKUP($E60,'Activity 2'!$B$17:$B$23,'Activity 2'!H$17:H$23,\"N/A\",0,1)","v":"N/A"},{"$f":"_xlfn.XLOOKUP($E60,'Activity 2'!$B$17:$B$23,'Activity 2'!I$17:I$23,\"N/A\",0,1)","v":"N/A"},{"$f":"_xlfn.XLOOKUP($E60,'Activity 2'!$B$17:$B$23,'Activity 2'!J$17:J$23,\"N/A\",0,1)","v":"N/A"},{"$f":"_xlfn.XLOOKUP($E60,'Activity 2'!$B$17:$B$23,'Activity 2'!K$17:K$23,\"N/A\",0,1)","v":"N/A"},{"$f":"_xlfn.XLOOKUP($E60,'Activity 2'!$B$17:$B$23,'Activity 2'!L$17:L$23,\"N/A\",0,1)","v":"N/A"},{"$f":"_xlfn.XLOOKUP($E60,'Activity 2'!$B$17:$B$23,'Activity 2'!M$17:M$23,\"N/A\",0,1)","v":"N/A"},{"$f":"_xlfn.XLOOKUP($E60,'Activity 2'!$B$17:$B$23,'Activity 2'!O$17:O$23,\"N/A\",0,1)","v":"N/A"},{"$f":"_xlfn.XLOOKUP($E60,'Activity 2'!$B$17:$B$23,'Activity 2'!Q$17:Q$23,\"N/A\",0,1)","v":"N/A"},null,{"$f":"_xlfn.XLOOKUP($E60,'Activity 3'!$B$8:$B$14,'Activity 3'!K$8:K$14,\"N/A\",0,1)","v":"N/A"},{"$f":"_xlfn.XLOOKUP($E60,'Activity 3'!$B$8:$B$14,'Activity 3'!L$8:L$14,\"N/A\",0,1)","v":"N/A"},{"$f":"_xlfn.XLOOKUP($E60,'Activity 3'!$B$8:$B$14,'Activity 3'!M$8:M$14,\"N/A\",0,1)","v":"N/A"},{"$f":"_xlfn.XLOOKUP($E60,'Activity 3'!$B$8:$B$14,'Activity 3'!N$8:N$14,\"N/A\",0,1)","v":"N/A"},{"$f":"_xlfn.XLOOKUP($E60,'Activity 3'!$B$8:$B$14,'Activity 3'!O$8:O$14,\"N/A\",0,1)","v":"N/A"},{"$f":"_xlfn.XLOOKUP($E60,'Activity 3'!$B$8:$B$14,'Activity 3'!R$8:R$14,\"N/A\",0,1)","v":"N/A"},{"$f":"_xlfn.XLOOKUP($E60,'Activity 4'!$B$8:$B$14,'Activity 4'!$A$8:$A$14,\"No\",0,1)","v":"No"},{"$f":"_xlfn.XLOOKUP($E60,'Activity 4'!$B$8:$B$14,'Activity 4'!L$8:L$14,\"N/A\",0,1)","v":"N/A"},{"$f":"_xlfn.XLOOKUP($E60,'Activity 4'!$B$8:$B$14,'Activity 4'!I$8:I$14,\"N/A\",0,1)","v":"N/A"},{"$f":"_xlfn.XLOOKUP($E60,'Activity 4'!$B$8:$B$14,'Activity 4'!M$8:M$14,\"N/A\",0,1)","v":"N/A"},{"$f":"_xlfn.XLOOKUP($E60,'Activity 5'!$B$8:$B$14,'Activity 5'!$A$8:$A$14,\"No\",0,1)","v":"No"},{"$f":"_xlfn.XLOOKUP($E60,'Activity 5'!$B$8:$B$14,'Activity 5'!J$8:J$14,\"N/A\",0,1)","v":"N/A"},{"$f":"_xlfn.XLOOKUP($E60,'Activity 5'!$B$8:$B$14,'Activity 5'!K$8:K$14,\"N/A\",0,1)","v":"N/A"},{"$f":"_xlfn.XLOOKUP($E60,'Activity 5'!$B$8:$B$14,'Activity 5'!N$8:N$14,\"N/A\",0,1)","v":"N/A"},{"$f":"_xlfn.XLOOKUP($E60,'Activity 5'!$B$8:$B$14,'Activity 5'!O$8:O$14,\"N/A\",0,1)","v":"N/A"},{"$f":"_xlfn.XLOOKUP($E60,'Activity 5'!$B$8:$B$14,'Activity 5'!P$8:P$14,\"N/A\",0,1)","v":"N/A"},{"$f":"_xlfn.XLOOKUP($E60,'Activity 5'!$B$8:$B$14,'Activity 5'!Q$8:Q$14,\"N/A\",0,1)","v":"N/A"},{"$f":"_xlfn.XLOOKUP($E60,'Activity 5'!$B$8:$B$14,'Activity 5'!R$8:R$14,\"N/A\",0,1)","v":"N/A"},{"$f":"_xlfn.XLOOKUP($E60,'Activity 6'!$B$7:$B$13,'Activity 6'!A$7:A$13,\"No\",0,1)","v":"No"},{"$f":"_xlfn.XLOOKUP($E60,'Activity 6'!$B$7:$B$13,'Activity 6'!K$7:K$13,\"N/A\",0,1)","v":"N/A"},{"$f":"_xlfn.XLOOKUP($E60,'Activity 6'!$B$7:$B$13,'Activity 6'!L$7:L$13,\"N/A\",0,1)","v":"N/A"},{"$f":"_xlfn.XLOOKUP($E60,'Activity 6'!$B$7:$B$13,'Activity 6'!M$7:M$13,\"N/A\",0,1)","v":"N/A"},{"$f":"_xlfn.XLOOKUP($E60,'Activity 6'!$B$7:$B$13,'Activity 6'!N$7:N$13,\"N/A\",0,1)","v":"N/A"},{"$f":"_xlfn.XLOOKUP($E60,'Activity 6'!$B$7:$B$13,'Activity 6'!O$7:O$13,\"N/A\",0,1)","v":"N/A"},{"$f":"_xlfn.XLOOKUP($E60,'Activity 6'!$B$7:$B$13,'Activity 6'!P$7:P$13,\"N/A\",0,1)","v":"N/A"},{"$f":"_xlfn.XLOOKUP($E60,'Activity 6'!$B$7:$B$13,'Activity 6'!Q$7:Q$13,\"N/A\",0,1)","v":"N/A"},{"$f":"_xlfn.XLOOKUP($E60,'Activity 6'!$B$7:$B$13,'Activity 6'!R$7:R$13,\"N/A\",0,1)","v":"N/A"},{"$f":"_xlfn.XLOOKUP($E60,'Activity 6'!$B$7:$B$13,'Activity 6'!S$7:S$13,\"N/A\",0,1)","v":"N/A"},{"$f":"_xlfn.XLOOKUP($E60,'Activity 6'!$B$7:$B$13,'Activity 6'!T$7:T$13,\"N/A\",0,1)","v":"N/A"},{"$f":"_xlfn.XLOOKUP($E60,'Activity 6'!$B$7:$B$13,'Activity 6'!U$7:U$13,\"N/A\",0,1)","v":"N/A"},{"$f":"_xlfn.XLOOKUP($E60,'Activity 6'!$B$22:$B$28,'Activity 6'!C$22:C$28,\"N/A\",0,1)","v":"N/A"},{"$f":"_xlfn.XLOOKUP($E60,'Activity 6'!$B$22:$B$28,'Activity 6'!D$22:D$28,\"N/A\",0,1)","v":"N/A"},{"$f":"_xlfn.XLOOKUP($E60,'Activity 6'!$B$22:$B$28,'Activity 6'!E$22:E$28,\"N/A\",0,1)","v":"N/A"},{"$f":"_xlfn.XLOOKUP($E60,'Activity 6'!$B$22:$B$28,'Activity 6'!F$22:F$28,\"N/A\",0,1)","v":"N/A"},{"$f":"_xlfn.XLOOKUP($E60,'Activity 6'!$B$22:$B$28,'Activity 6'!G$22:G$28,\"N/A\",0,1)","v":"N/A"},{"$f":"_xlfn.XLOOKUP($E60,'Activity 6'!$B$22:$B$28,'Activity 6'!H$22:H$28,\"N/A\",0,1)","v":"N/A"},{"$f":"_xlfn.XLOOKUP($E60,'Activity 6'!$B$22:$B$28,'Activity 6'!I$22:I$28,\"N/A\",0,1)","v":"N/A"},{"$f":"_xlfn.XLOOKUP($E60,'Activity 6'!$B$22:$B$28,'Activity 6'!J$22:J$28,\"N/A\",0,1)","v":"N/A"},{"$f":"_xlfn.XLOOKUP($E60,'Activity 6'!$B$22:$B$28,'Activity 6'!K$22:K$28,\"N/A\",0,1)","v":"N/A"},{"$f":"_xlfn.XLOOKUP($E60,'Activity 6'!$B$22:$B$28,'Activity 6'!L$22:L$28,\"N/A\",0,1)","v":"N/A"},{"$f":"_xlfn.XLOOKUP($E60,'Activity 6'!$B$22:$B$28,'Activity 6'!M$22:M$28,\"N/A\",0,1)","v":"N/A"},{"$f":"_xlfn.XLOOKUP($E60,'Activity 6'!$B$22:$B$28,'Activity 6'!N$22:N$28,\"N/A\",0,1)","v":"N/A"},{"$f":"_xlfn.XLOOKUP($E60,'Activity 6'!$B$32:$B$38,'Activity 6'!C$32:C$38,\"N/A\",0,1)","v":"N/A"},{"$f":"_xlfn.XLOOKUP($E60,'Activity 6'!$B$32:$B$38,'Activity 6'!D$32:D$38,\"N/A\",0,1)","v":"N/A"},{"$f":"_xlfn.XLOOKUP($E60,'Activity 6'!$B$32:$B$38,'Activity 6'!E$32:E$38,\"N/A\",0,1)","v":"N/A"},{"$f":"_xlfn.XLOOKUP($E60,'Activity 6'!$B$32:$B$38,'Activity 6'!F$32:F$38,\"N/A\",0,1)","v":"N/A"},{"$f":"_xlfn.XLOOKUP($E60,'Activity 6'!$B$32:$B$38,'Activity 6'!G$32:G$38,\"N/A\",0,1)","v":"N/A"},{"$f":"_xlfn.XLOOKUP($E60,'Activity 6'!$B$32:$B$38,'Activity 6'!H$32:H$38,\"N/A\",0,1)","v":"N/A"},{"$f":"_xlfn.XLOOKUP($E60,'Activity 6'!$B$32:$B$38,'Activity 6'!I$32:I$38,\"N/A\",0,1)","v":"N/A"},{"$f":"_xlfn.XLOOKUP($E60,'Activity 6'!$B$32:$B$38,'Activity 6'!J$32:J$38,\"N/A\",0,1)","v":"N/A"},{"$f":"_xlfn.XLOOKUP($E60,'Activity 6'!$B$32:$B$38,'Activity 6'!K$32:K$38,\"N/A\",0,1)","v":"N/A"},{"$f":"_xlfn.XLOOKUP($E60,'Activity 6'!$B$32:$B$38,'Activity 6'!M$32:M$38,\"N/A\",0,1)","v":"N/A"},{"$f":"_xlfn.XLOOKUP($E60,'Activity 7'!$B$7:$B$13,'Activity 7'!$A$7:$A$13,\"No\",0,1)","v":"No"},{"$f":"_xlfn.XLOOKUP($E60,'Activity 7'!$B$7:$B$13,'Activity 7'!M$7:M$13,\"N/A\",0,1)","v":"N/A"},{"$f":"_xlfn.XLOOKUP($E60,'Activity 7'!$B$7:$B$13,'Activity 7'!K$7:K$13,\"N/A\",0,1)","v":"N/A"},{"$f":"_xlfn.XLOOKUP($E60,'Activity 7'!$B$7:$B$13,'Activity 7'!N$7:N$13,\"N/A\",0,1)","v":"N/A"},{"$f":"_xlfn.XLOOKUP($E60,'Activity 7'!$B$7:$B$13,'Activity 7'!O$7:O$13,\"N/A\",0,1)","v":"N/A"},{"$f":"_xlfn.XLOOKUP($E60,'Activity 7'!$B$7:$B$13,'Activity 7'!P$7:P$13,\"N/A\",0,1)","v":"N/A"},{"$f":"_xlfn.XLOOKUP($E60,'Activity 7'!$B$7:$B$13,'Activity 7'!Q$7:Q$13,\"N/A\",0,1)","v":"N/A"},{"$f":"_xlfn.XLOOKUP($E60,'Activity 7'!$B$7:$B$13,'Activity 7'!R$7:R$13,\"N/A\",0,1)","v":"N/A"},{"$f":"_xlfn.XLOOKUP($E60,'Activity 7'!$B$7:$B$13,'Activity 7'!S$7:S$13,\"N/A\",0,1)","v":"N/A"},{"$f":"_xlfn.XLOOKUP($E60,'Activity 7'!$B$7:$B$13,'Activity 7'!T$7:T$13,\"N/A\",0,1)","v":"N/A"},{"$f":"_xlfn.XLOOKUP($E60,'Activity 7'!$B$7:$B$13,'Activity 7'!U$7:U$13,\"N/A\",0,1)","v":"N/A"},{"$f":"_xlfn.XLOOKUP($E60,'Activity 7'!$B$7:$B$13,'Activity 7'!V$7:V$13,\"N/A\",0,1)","v":"N/A"},{"$f":"_xlfn.XLOOKUP($E60,'Activity 7'!$B$17:$B$23,'Activity 7'!E$17:E$23,\"N/A\",0,1)","v":"N/A"},{"$f":"_xlfn.XLOOKUP($E60,'Activity 7'!$B$17:$B$23,'Activity 7'!G$17:G$23,\"N/A\",0,1)","v":"N/A"},{"$f":"_xlfn.XLOOKUP($E60,'Activity 7'!$B$17:$B$23,'Activity 7'!I$17:I$23,\"N/A\",0,1)","v":"N/A"},{"$f":"_xlfn.XLOOKUP($E60,'Activity 7'!$B$17:$B$23,'Activity 7'!J$17:J$23,\"N/A\",0,1)","v":"N/A"},{"$f":"_xlfn.XLOOKUP($E60,'Activity 7'!$B$17:$B$23,'Activity 7'!K$17:K$23,\"N/A\",0,1)","v":"N/A"},{"$f":"_xlfn.XLOOKUP($E60,'Activity 7'!$B$17:$B$23,'Activity 7'!L$17:L$23,\"N/A\",0,1)","v":"N/A"},{"$f":"_xlfn.XLOOKUP($E60,'Activity 7'!$B$17:$B$23,'Activity 7'!M$17:M$23,\"N/A\",0,1)","v":"N/A"},{"$f":"_xlfn.XLOOKUP($E60,'Activity 7'!$B$17:$B$23,'Activity 7'!N$17:N$23,\"N/A\",0,1)","v":"N/A"},{"$f":"_xlfn.XLOOKUP($E60,'Activity 7'!$B$17:$B$23,'Activity 7'!P$17:P$23,\"N/A\",0,1)","v":"N/A"},{"$f":"_xlfn.XLOOKUP($E60,'Activity 8'!$B$7:$B$13,'Activity 8'!A$7:A$13,\"No\",0,1)","v":"No"},{"$f":"_xlfn.XLOOKUP($E60,'Activity 8'!$B$7:$B$13,'Activity 8'!I$7:I$13,\"N/A\",0,1)","v":"N/A"},{"$f":"_xlfn.XLOOKUP($E60,'Activity 8'!$B$7:$B$13,'Activity 8'!J$7:J$13,\"N/A\",0,1)","v":"N/A"},{"$f":"_xlfn.XLOOKUP($E60,'Activity 8'!$B$7:$B$13,'Activity 8'!K$7:K$13,\"N/A\",0,1)","v":"N/A"},{"$f":"_xlfn.XLOOKUP($E60,'Activity 8'!$B$7:$B$13,'Activity 8'!L$7:L$13,\"N/A\",0,1)","v":"N/A"},{"$f":"_xlfn.XLOOKUP($E60,'Activity 8'!$B$7:$B$13,'Activity 8'!M$7:M$13,\"N/A\",0,1)","v":"N/A"},{"$f":"_xlfn.XLOOKUP($E60,'Activity 8'!$B$7:$B$13,'Activity 8'!N$7:N$13,\"N/A\",0,1)","v":"N/A"},{"$f":"_xlfn.XLOOKUP($E60,'Activity 8'!$B$7:$B$13,'Activity 8'!O$7:O$13,\"N/A\",0,1)","v":"N/A"},{"$f":"_xlfn.XLOOKUP($E60,'Activity 8'!$B$7:$B$13,'Activity 8'!P$7:P$13,\"N/A\",0,1)","v":"N/A"},{"$f":"_xlfn.XLOOKUP($E60,'Activity 8'!$B$7:$B$13,'Activity 8'!Q$7:Q$13,\"N/A\",0,1)","v":"N/A"},{"$f":"_xlfn.XLOOKUP($E60,'Activity 8'!$B$7:$B$13,'Activity 8'!R$7:R$13,\"N/A\",0,1)","v":"N/A"},{"$f":"_xlfn.XLOOKUP($E60,'Activity 8'!$B$7:$B$13,'Activity 8'!S$7:S$13,\"N/A\",0,1)","v":"N/A"},{"$f":"_xlfn.XLOOKUP($E60,'Activity 8'!$B$7:$B$13,'Activity 8'!T$7:T$13,\"N/A\",0,1)","v":"N/A"},{"$f":"_xlfn.XLOOKUP($E60,'Activity 8'!$B$7:$B$13,'Activity 8'!U$7:U$13,\"N/A\",0,1)","v":"N/A"},{"$f":"_xlfn.XLOOKUP($E60,'Activity 8'!$B$7:$B$13,'Activity 8'!V$7:V$13,\"N/A\",0,1)","v":"N/A"},{"$f":"_xlfn.XLOOKUP($E60,'Activity 8'!$B$17:$B$23,'Activity 8'!D$17:D$23,\"N/A\",0,1)","v":"N/A"},{"$f":"_xlfn.XLOOKUP($E60,'Activity 8'!$B$17:$B$23,'Activity 8'!E$17:E$23,\"N/A\",0,1)","v":"N/A"},{"$f":"_xlfn.XLOOKUP($E60,'Activity 8'!$B$17:$B$23,'Activity 8'!F$17:F$23,\"N/A\",0,1)","v":"N/A"},{"$f":"_xlfn.XLOOKUP($E60,'Activity 8'!$B$17:$B$23,'Activity 8'!G$17:G$23,\"N/A\",0,1)","v":"N/A"},{"$f":"_xlfn.XLOOKUP($E60,'Activity 8'!$B$17:$B$23,'Activity 8'!H$17:H$23,\"N/A\",0,1)","v":"N/A"},{"$f":"_xlfn.XLOOKUP($E60,'Activity 8'!$B$17:$B$23,'Activity 8'!I$17:I$23,\"N/A\",0,1)","v":"N/A"},{"$f":"_xlfn.XLOOKUP($E60,'Activity 8'!$B$17:$B$23,'Activity 8'!J$17:J$23,\"N/A\",0,1)","v":"N/A"},{"$f":"_xlfn.XLOOKUP($E60,'Activity 8'!$B$17:$B$23,'Activity 8'!K$17:K$23,\"N/A\",0,1)","v":"N/A"},{"$f":"_xlfn.XLOOKUP($E60,'Activity 8'!$B$17:$B$23,'Activity 8'!L$17:L$23,\"N/A\",0,1)","v":"N/A"},{"$f":"_xlfn.XLOOKUP($E60,'Activity 8'!$B$17:$B$23,'Activity 8'!M$17:M$23,\"N/A\",0,1)","v":"N/A"},{"$f":"_xlfn.XLOOKUP($E60,'Activity 8'!$B$17:$B$23,'Activity 8'!N$17:N$23,\"N/A\",0,1)","v":"N/A"},{"$f":"_xlfn.XLOOKUP($E60,'Activity 8'!$B$17:$B$23,'Activity 8'!P$17:P$23,\"N/A\",0,1)","v":"N/A"},{"$f":"_xlfn.XLOOKUP(E60,'Activity 9'!$B$7:$B$13,'Activity 9'!$A$7:$A$13,\"No\",0,1)","v":"No"},{"$f":"_xlfn.XLOOKUP($E60,'Activity 9'!$B$7:$B$13,'Activity 9'!J$7:J$13,\"N/A\",0,1)","v":"N/A"},{"$f":"_xlfn.XLOOKUP($E60,'Activity 9'!$B$7:$B$13,'Activity 9'!K$7:K$13,\"N/A\",0,1)","v":"N/A"},{"$f":"_xlfn.XLOOKUP($E60,'Activity 9'!$B$7:$B$13,'Activity 9'!L$7:L$13,\"N/A\",0,1)","v":"N/A"},{"$f":"_xlfn.XLOOKUP($E60,'Activity 9'!$B$7:$B$13,'Activity 9'!M$7:M$13,\"N/A\",0,1)","v":"N/A"},{"$f":"_xlfn.XLOOKUP($E60,'Activity 9'!$B$7:$B$13,'Activity 9'!N$7:N$13,\"N/A\",0,1)","v":"N/A"},{"$f":"_xlfn.XLOOKUP($E60,'Activity 9'!$B$7:$B$13,'Activity 9'!O$7:O$13,\"N/A\",0,1)","v":"N/A"},{"$f":"_xlfn.XLOOKUP($E60,'Activity 9'!$B$7:$B$13,'Activity 9'!P$7:P$13,\"N/A\",0,1)","v":"N/A"},{"$f":"_xlfn.XLOOKUP($E60,'Activity 9'!$B$7:$B$13,'Activity 9'!Q$7:Q$13,\"N/A\",0,1)","v":"N/A"},{"$f":"_xlfn.XLOOKUP($E60,'Activity 9'!$B$7:$B$13,'Activity 9'!R$7:R$13,\"N/A\",0,1)","v":"N/A"},{"$f":"_xlfn.XLOOKUP($E60,'Activity 9'!$B$7:$B$13,'Activity 9'!S$7:S$13,\"N/A\",0,1)","v":"N/A"},{"$f":"_xlfn.XLOOKUP($E60,'Activity 9'!$B$7:$B$13,'Activity 9'!T$7:T$13,\"N/A\",0,1)","v":"N/A"},{"$f":"_xlfn.XLOOKUP($E60,'Activity 9'!$B$17:$B$23,'Activity 9'!E$17:E$23,\"N/A\",0,1)","v":"N/A"},{"$f":"_xlfn.XLOOKUP($E60,'Activity 9'!$B$17:$B$23,'Activity 9'!F$17:F$23,\"N/A\",0,1)","v":"N/A"},{"$f":"_xlfn.XLOOKUP($E60,'Activity 9'!$B$17:$B$23,'Activity 9'!G$17:G$23,\"N/A\",0,1)","v":"N/A"},{"$f":"_xlfn.XLOOKUP($E60,'Activity 9'!$B$17:$B$23,'Activity 9'!H$17:H$23,\"N/A\",0,1)","v":"N/A"},{"$f":"_xlfn.XLOOKUP($E60,'Activity 9'!$B$17:$B$23,'Activity 9'!I$17:I$23,\"N/A\",0,1)","v":"N/A"},{"$f":"_xlfn.XLOOKUP($E60,'Activity 9'!$B$17:$B$23,'Activity 9'!J$17:J$23,\"N/A\",0,1)","v":"N/A"},{"$f":"_xlfn.XLOOKUP($E60,'Activity 9'!$B$17:$B$23,'Activity 9'!K$17:K$23,\"N/A\",0,1)","v":"N/A"},{"$f":"_xlfn.XLOOKUP($E60,'Activity 9'!$B$17:$B$23,'Activity 9'!L$17:L$23,\"N/A\",0,1)","v":"N/A"},{"$f":"_xlfn.XLOOKUP($E60,'Activity 9'!$B$17:$B$23,'Activity 9'!N$17:N$23,\"N/A\",0,1)","v":"N/A"},{"$f":"_xlfn.XLOOKUP($E60,'Activity 9'!$B$17:$B$23,'Activity 9'!O$17:O$23,\"N/A\",0,1)","v":"N/A"},{"$f":"_xlfn.XLOOKUP($E60,'Activity 9'!$B$17:$B$23,'Activity 9'!Q$17:Q$23,\"N/A\",0,1)","v":"N/A"},{"$f":"_xlfn.XLOOKUP($E60,'Activity 10'!$B$7:$B$13,'Activity 10'!A$7:A$13,\"No\",0,1)","v":"No"},{"$f":"_xlfn.XLOOKUP($E60,'Activity 10'!$B$7:$B$13,'Activity 10'!J$7:J$13,\"N/A\",0,1)","v":"N/A"},{"$f":"_xlfn.XLOOKUP($E60,'Activity 10'!$B$7:$B$13,'Activity 10'!K$7:K$13,\"N/A\",0,1)","v":"N/A"},{"$f":"_xlfn.XLOOKUP($E60,'Activity 10'!$B$7:$B$13,'Activity 10'!L$7:L$13,\"N/A\",0,1)","v":"N/A"},{"$f":"_xlfn.XLOOKUP($E60,'Activity 10'!$B$7:$B$13,'Activity 10'!M$7:M$13,\"N/A\",0,1)","v":"N/A"},{"$f":"_xlfn.XLOOKUP($E60,'Activity 10'!$B$7:$B$13,'Activity 10'!N$7:N$13,\"N/A\",0,1)","v":"N/A"},{"$f":"_xlfn.XLOOKUP($E60,'Activity 10'!$B$7:$B$13,'Activity 10'!O$7:O$13,\"N/A\",0,1)","v":"N/A"},{"$f":"_xlfn.XLOOKUP($E60,'Activity 10'!$B$7:$B$13,'Activity 10'!P$7:P$13,\"N/A\",0,1)","v":"N/A"},{"$f":"_xlfn.XLOOKUP($E60,'Activity 10'!$B$7:$B$13,'Activity 10'!Q$7:Q$13,\"N/A\",0,1)","v":"N/A"},{"$f":"_xlfn.XLOOKUP($E60,'Activity 10'!$B$7:$B$13,'Activity 10'!R$7:R$13,\"N/A\",0,1)","v":"N/A"},{"$f":"_xlfn.XLOOKUP($E60,'Activity 10'!$B$7:$B$13,'Activity 10'!S$7:S$13,\"N/A\",0,1)","v":"N/A"},{"$f":"_xlfn.XLOOKUP($E60,'Activity 10'!$B$7:$B$13,'Activity 10'!T$7:T$13,\"N/A\",0,1)","v":"N/A"},{"$f":"_xlfn.XLOOKUP($E60,'Activity 10'!$B$7:$B$13,'Activity 10'!U$7:U$13,\"N/A\",0,1)","v":"N/A"},{"$f":"_xlfn.XLOOKUP($E60,'Activity 10'!$B$7:$B$13,'Activity 10'!V$7:V$13,\"N/A\",0,1)","v":"N/A"},{"$f":"_xlfn.XLOOKUP($E60,'Activity 10'!$B$17:$B$23,'Activity 10'!E$17:E$23,\"N/A\",0,1)","v":"N/A"},{"$f":"_xlfn.XLOOKUP($E60,'Activity 10'!$B$17:$B$23,'Activity 10'!F$17:F$23,\"N/A\",0,1)","v":"N/A"},{"$f":"_xlfn.XLOOKUP($E60,'Activity 10'!$B$17:$B$23,'Activity 10'!G$17:G$23,\"N/A\",0,1)","v":"N/A"},{"$f":"_xlfn.XLOOKUP($E60,'Activity 10'!$B$17:$B$23,'Activity 10'!H$17:H$23,\"N/A\",0,1)","v":"N/A"},{"$f":"_xlfn.XLOOKUP($E60,'Activity 10'!$B$17:$B$23,'Activity 10'!I$17:I$23,\"N/A\",0,1)","v":"N/A"},{"$f":"_xlfn.XLOOKUP($E60,'Activity 10'!$B$17:$B$23,'Activity 10'!J$17:J$23,\"N/A\",0,1)","v":"N/A"},{"$f":"_xlfn.XLOOKUP($E60,'Activity 10'!$B$17:$B$23,'Activity 10'!K$17:K$23,\"N/A\",0,1)","v":"N/A"},{"$f":"_xlfn.XLOOKUP($E60,'Activity 10'!$B$17:$B$23,'Activity 10'!L$17:L$23,\"N/A\",0,1)","v":"N/A"},{"$f":"_xlfn.XLOOKUP($E60,'Activity 10'!$B$17:$B$23,'Activity 10'!M$17:M$23,\"N/A\",0,1)","v":"N/A"},{"$f":"_xlfn.XLOOKUP($E60,'Activity 10'!$B$17:$B$23,'Activity 10'!N$17:N$23,\"N/A\",0,1)","v":"N/A"},{"$f":"_xlfn.XLOOKUP($E60,'Activity 10'!$B$17:$B$23,'Activity 10'!P$17:P$23,\"N/A\",0,1)","v":"N/A"},{"$f":"_xlfn.XLOOKUP($E60,'Competitive Activity 1'!B$7:B$13,'Competitive Activity 1'!A$7:A$13,\"No\",0,1)","v":"No"},{"$f":"_xlfn.XLOOKUP($E60,'Competitive Activity 1'!$B$7:$B$13,'Competitive Activity 1'!H$7:H$13,\"N/A\",0,1)","v":"N/A"},{"$f":"_xlfn.XLOOKUP($E60,'Competitive Activity 1'!$B$7:$B$13,'Competitive Activity 1'!I$7:I$13,\"N/A\",0,1)","v":"N/A"},{"$f":"_xlfn.XLOOKUP($E60,'Competitive Activity 1'!$B$7:$B$13,'Competitive Activity 1'!J$7:J$13,\"N/A\",0,1)","v":"N/A"},{"$f":"_xlfn.XLOOKUP($E60,'Competitive Activity 1'!$B$7:$B$13,'Competitive Activity 1'!K$7:K$13,\"N/A\",0,1)","v":"N/A"},{"$f":"_xlfn.XLOOKUP($E60,'Competitive Activity 1'!$B$7:$B$13,'Competitive Activity 1'!L$7:L$13,\"N/A\",0,1)","v":"N/A"},{"$f":"_xlfn.XLOOKUP($E60,'Competitive Activity 1'!$B$7:$B$13,'Competitive Activity 1'!M$7:M$13,\"N/A\",0,1)","v":"N/A"},{"$f":"_xlfn.XLOOKUP($E60,'Competitive Activity 1'!$B$7:$B$13,'Competitive Activity 1'!N$7:N$13,\"N/A\",0,1)","v":"N/A"},{"$f":"_xlfn.XLOOKUP($E60,'Competitive Activity 1'!$B$7:$B$13,'Competitive Activity 1'!O$7:O$13,\"N/A\",0,1)","v":"N/A"},{"$f":"_xlfn.XLOOKUP($E60,'Competitive Activity 1'!$B$7:$B$13,'Competitive Activity 1'!P$7:P$13,\"N/A\",0,1)","v":"N/A"},{"$f":"_xlfn.XLOOKUP($E60,'Competitive Activity 1'!$B$7:$B$13,'Competitive Activity 1'!Q$7:Q$13,\"N/A\",0,1)","v":"N/A"},{"$f":"_xlfn.XLOOKUP($E60,'Competitive Activity 1'!$B$7:$B$13,'Competitive Activity 1'!R$7:R$13,\"N/A\",0,1)","v":"N/A"},{"$f":"_xlfn.XLOOKUP($E60,'Competitive Activity 1'!$B$7:$B$13,'Competitive Activity 1'!S$7:S$13,\"N/A\",0,1)","v":"N/A"},{"$f":"_xlfn.XLOOKUP($E60,'Competitive Activity 1'!$B$7:$B$13,'Competitive Activity 1'!T$7:T$13,\"N/A\",0,1)","v":"N/A"},{"$f":"_xlfn.XLOOKUP($E60,'Competitive Activity 1'!$B$7:$B$13,'Competitive Activity 1'!U$7:U$13,\"N/A\",0,1)","v":"N/A"},{"$f":"_xlfn.XLOOKUP($E60,'Competitive Activity 1'!$B$17:$B$23,'Competitive Activity 1'!C$17:C$23,\"N/A\",0,1)","v":"N/A"},{"$f":"_xlfn.XLOOKUP($E60,'Competitive Activity 1'!$B$17:$B$23,'Competitive Activity 1'!D$17:D$23,\"N/A\",0,1)","v":"N/A"},{"$f":"_xlfn.XLOOKUP($E60,'Competitive Activity 1'!$B$17:$B$23,'Competitive Activity 1'!E$17:E$23,\"N/A\",0,1)","v":"N/A"},{"$f":"_xlfn.XLOOKUP($E60,'Competitive Activity 1'!$B$17:$B$23,'Competitive Activity 1'!F$17:F$23,\"N/A\",0,1)","v":"N/A"},{"$f":"_xlfn.XLOOKUP($E60,'Competitive Activity 1'!$B$17:$B$23,'Competitive Activity 1'!G$17:G$23,\"N/A\",0,1)","v":"N/A"},{"$f":"_xlfn.XLOOKUP($E60,'Competitive Activity 1'!$B$17:$B$23,'Competitive Activity 1'!H$17:H$23,\"N/A\",0,1)","v":"N/A"},{"$f":"_xlfn.XLOOKUP($E60,'Competitive Activity 1'!$B$17:$B$23,'Competitive Activity 1'!I$17:I$23,\"N/A\",0,1)","v":"N/A"},{"$f":"_xlfn.XLOOKUP($E60,'Competitive Activity 1'!$B$17:$B$23,'Competitive Activity 1'!J$17:J$23,\"N/A\",0,1)","v":"N/A"},{"$f":"_xlfn.XLOOKUP($E60,'Competitive Activity 1'!$B$17:$B$23,'Competitive Activity 1'!K$17:K$23,\"N/A\",0,1)","v":"N/A"},{"$f":"_xlfn.XLOOKUP($E60,'Competitive Activity 1'!$B$17:$B$23,'Competitive Activity 1'!M$17:M$23,\"N/A\",0,1)","v":"N/A"},{"$f":"_xlfn.XLOOKUP($E60,'Competitive Activity 1'!$B$17:$B$23,'Competitive Activity 1'!N$17:N$23,\"N/A\",0,1)","v":"N/A"},{"$f":"_xlfn.XLOOKUP($E60,'Competitive Activity 1'!$B$17:$B$23,'Competitive Activity 1'!P$17:P$23,\"N/A\",0,1)","v":"N/A"},{"$f":"_xlfn.XLOOKUP($E60,'Competitive Activity 2'!$B$7:$B$13,'Competitive Activity 2'!A$7:A$13,\"No\",0)","v":"No"},{"$f":"_xlfn.XLOOKUP($E60,'Competitive Activity 2'!$B$7:$B$13,'Competitive Activity 2'!L$7:L$13,\"N/A\",0)","v":"N/A"},{"$f":"_xlfn.XLOOKUP($E60,'Competitive Activity 2'!$B$7:$B$13,'Competitive Activity 2'!M$7:M$13,\"N/A\",0)","v":"N/A"},{"$f":"_xlfn.XLOOKUP($E60,'Competitive Activity 2'!$B$7:$B$13,'Competitive Activity 2'!N$7:N$13,\"N/A\",0)","v":"N/A"},{"$f":"_xlfn.XLOOKUP($E60,'Competitive Activity 2'!$B$7:$B$13,'Competitive Activity 2'!O$7:O$13,\"N/A\",0)","v":"N/A"},{"$f":"_xlfn.XLOOKUP($E60,'Competitive Activity 2'!$B$7:$B$13,'Competitive Activity 2'!P$7:P$13,\"N/A\",0)","v":"N/A"},{"$f":"_xlfn.XLOOKUP($E60,'Competitive Activity 2'!$B$7:$B$13,'Competitive Activity 2'!Q$7:Q$13,\"N/A\",0)","v":"N/A"},{"$f":"_xlfn.XLOOKUP($E60,'Competitive Activity 2'!$B$7:$B$13,'Competitive Activity 2'!R$7:R$13,\"N/A\",0)","v":"N/A"},{"$f":"_xlfn.XLOOKUP($E60,'Competitive Activity 2'!$B$7:$B$13,'Competitive Activity 2'!S$7:S$13,\"N/A\",0)","v":"N/A"},{"$f":"_xlfn.XLOOKUP($E60,'Competitive Activity 2'!$B$7:$B$13,'Competitive Activity 2'!T$7:T$13,\"N/A\",0)","v":"N/A"},{"$f":"_xlfn.XLOOKUP($E60,'Competitive Activity 2'!$B$7:$B$13,'Competitive Activity 2'!U$7:U$13,\"N/A\",0)","v":"N/A"},{"$f":"_xlfn.XLOOKUP($E60,'Competitive Activity 2'!$B$17:$B$23,'Competitive Activity 2'!D$17:D$23,\"N/A\",0)","v":"N/A"},{"$f":"_xlfn.XLOOKUP($E60,'Competitive Activity 2'!$B$17:$B$23,'Competitive Activity 2'!E$17:E$23,\"N/A\",0)","v":"N/A"},{"$f":"_xlfn.XLOOKUP($E60,'Competitive Activity 2'!$B$17:$B$23,'Competitive Activity 2'!F$17:F$23,\"N/A\",0)","v":"N/A"},{"$f":"_xlfn.XLOOKUP($E60,'Competitive Activity 2'!$B$17:$B$23,'Competitive Activity 2'!G$17:G$23,\"N/A\",0)","v":"N/A"},{"$f":"_xlfn.XLOOKUP($E60,'Competitive Activity 2'!$B$17:$B$23,'Competitive Activity 2'!H$17:H$23,\"N/A\",0)","v":"N/A"},{"$f":"_xlfn.XLOOKUP($E60,'Competitive Activity 2'!$B$17:$B$23,'Competitive Activity 2'!I$17:I$23,\"N/A\",0)","v":"N/A"},{"$f":"_xlfn.XLOOKUP($E60,'Competitive Activity 2'!$B$17:$B$23,'Competitive Activity 2'!J$17:J$23,\"N/A\",0)","v":"N/A"},{"$f":"_xlfn.XLOOKUP($E60,'Competitive Activity 2'!$B$17:$B$23,'Competitive Activity 2'!K$17:K$23,\"N/A\",0)","v":"N/A"},{"$f":"_xlfn.XLOOKUP($E60,'Competitive Activity 2'!$B$17:$B$23,'Competitive Activity 2'!L$17:L$23,\"N/A\",0)","v":"N/A"},{"$f":"_xlfn.XLOOKUP($E60,'Competitive Activity 2'!$B$17:$B$23,'Competitive Activity 2'!M$17:M$23,\"N/A\",0)","v":"N/A"},{"$f":"_xlfn.XLOOKUP($E60,'Competitive Activity 2'!$B$17:$B$23,'Competitive Activity 2'!N$17:N$23,\"N/A\",0)","v":"N/A"},{"$f":"_xlfn.XLOOKUP($E60,'Competitive Activity 2'!$B$27:$B$33,'Competitive Activity 2'!D$27:D$33,\"N/A\",0)","v":"N/A"},{"$f":"_xlfn.XLOOKUP($E60,'Competitive Activity 2'!$B$27:$B$33,'Competitive Activity 2'!E$27:E$33,\"N/A\",0)","v":"N/A"},{"$f":"_xlfn.XLOOKUP($E60,'Competitive Activity 2'!$B$27:$B$33,'Competitive Activity 2'!F$27:F$33,\"N/A\",0)","v":"N/A"},{"$f":"_xlfn.XLOOKUP($E60,'Competitive Activity 2'!$B$27:$B$33,'Competitive Activity 2'!G$27:G$33,\"N/A\",0)","v":"N/A"},{"$f":"_xlfn.XLOOKUP($E60,'Competitive Activity 2'!$B$27:$B$33,'Competitive Activity 2'!H$27:H$33,\"N/A\",0)","v":"N/A"},{"$f":"_xlfn.XLOOKUP($E60,'Competitive Activity 2'!$B$27:$B$33,'Competitive Activity 2'!I$27:I$33,\"N/A\",0)","v":"N/A"},{"$f":"_xlfn.XLOOKUP($E60,'Competitive Activity 2'!$B$27:$B$33,'Competitive Activity 2'!J$27:J$33,\"N/A\",0)","v":"N/A"},{"$f":"_xlfn.XLOOKUP($E60,'Competitive Activity 2'!$B$27:$B$33,'Competitive Activity 2'!K$27:K$33,\"N/A\",0)","v":"N/A"},{"$f":"_xlfn.XLOOKUP($E60,'Competitive Activity 2'!$B$27:$B$33,'Competitive Activity 2'!M$27:M$33,\"N/A\",0)","v":"N/A"}]
[{"$f":"'1-Cover Sheet'!$C$8","v":"Select One"},{"$f":"'1-Cover Sheet'!$F$8","v":"Select One"},{"$f":"'Summary Sheet'!$D$8","v":0},{"$f":"'Summary Sheet'!$D$10","v":0},{"$f":"'Drop Down Box'!B225","v":0},{"$f":"'Drop Down Box'!C225","v":0},{"$f":"'Drop Down Box'!D225","v":"Select One"},{"$f":"_xlfn.XLOOKUP(E61,'Drop Down Box'!$B$166:$B$249,'Drop Down Box'!$A$166:$A$249,\"Unknown\",0)","v":"Activity 1"},{"$f":"_xlfn.XLOOKUP($E61,'Activity 9'!$B$17:$B$23,'Activity 9'!$M$17:$M$23,\"N/A\",0)","v":"N/A"},{"$f":"_xlfn.XLOOKUP($E61,'Activity 9'!$B$17:$B$23,'Activity 9'!$P$17:$P$23,\"N/A\",0)","v":"N/A"},{"$f":"_xlfn.XLOOKUP($E61,'Activity 9'!$B$7:$B$13,'Activity 9'!G$7:G$13,\"N/A\",0)","v":"N/A"},{"$f":"_xlfn.XLOOKUP($E61,'Activity 9'!$B$7:$B$13,'Activity 9'!H$7:H$13,\"N/A\",0)","v":"N/A"},{"$f":"_xlfn.XLOOKUP($E61,'Activity 9'!$B$7:$B$13,'Activity 9'!I$7:I$13,\"N/A\",0)","v":"N/A"},{"$f":"_xlfn.XLOOKUP($E61,'Activity 1'!$B$7:$B$13,'Activity 1'!$A$7:$A$13,\"No\",0,1)","v":"No"},{"$f":"_xlfn.XLOOKUP($E61,'Activity 1'!$B$7:$B$13,'Activity 1'!$H$7:$H$13,\"N/A\",0,1)","v":"N/A"},{"$f":"_xlfn.XLOOKUP($E61,'Activity 1'!$B$7:$B$13,'Activity 1'!I$7:I$13,\"N/A\",0,1)","v":"N/A"},{"$f":"_xlfn.XLOOKUP($E61,'Activity 1'!$B$7:$B$13,'Activity 1'!J$7:J$13,\"N/A\",0,1)","v":"N/A"},{"$f":"_xlfn.XLOOKUP($E61,'Activity 1'!$B$7:$B$13,'Activity 1'!K$7:K$13,\"N/A\",0,1)","v":"N/A"},{"$f":"_xlfn.XLOOKUP($E61,'Activity 1'!$B$7:$B$13,'Activity 1'!L$7:L$13,\"N/A\",0,1)","v":"N/A"},{"$f":"_xlfn.XLOOKUP($E61,'Activity 1'!$B$7:$B$13,'Activity 1'!M$7:M$13,\"N/A\",0,1)","v":"N/A"},{"$f":"_xlfn.XLOOKUP($E61,'Activity 1'!$B$7:$B$13,'Activity 1'!N$7:N$13,\"N/A\",0,1)","v":"N/A"},0,{"$f":"_xlfn.XLOOKUP($E61,'Activity 1'!$B$7:$B$13,'Activity 1'!O$7:O$13,\"N/A\",0,1)","v":"N/A"},{"$f":"_xlfn.XLOOKUP($E61,'Activity 1'!$B$7:$B$13,'Activity 1'!P$7:P$13,\"N/A\",0,1)","v":"N/A"},{"$f":"_xlfn.XLOOKUP($E61,'Activity 1'!$B$7:$B$13,'Activity 1'!Q$7:Q$13,\"N/A\",0,1)","v":"N/A"},{"$f":"_xlfn.XLOOKUP($E61,'Activity 1'!$B$7:$B$13,'Activity 1'!R$7:R$13,\"N/A\",0,1)","v":"N/A"},{"$f":"_xlfn.XLOOKUP($E61,'Activity 1'!$B$7:$B$13,'Activity 1'!S$7:S$13,\"N/A\",0,1)","v":"N/A"},{"$f":"_xlfn.XLOOKUP($E61,'Activity 1'!$B$7:$B$13,'Activity 1'!T$7:T$13,\"N/A\",0,1)","v":"N/A"},{"$f":"_xlfn.XLOOKUP($E61,'Activity 1'!$B$7:$B$13,'Activity 1'!U$7:U$13,\"N/A\",0,1)","v":"N/A"},{"$f":"_xlfn.XLOOKUP($E61,'Activity 1'!$B$7:$B$13,'Activity 1'!V$7:V$13,\"N/A\",0,1)","v":"N/A"},{"$f":"_xlfn.XLOOKUP($E61,'Activity 1'!$B$17:$B$23,'Activity 1'!C$17:C$23,\"N/A\",0,1)","v":"N/A"},{"$f":"_xlfn.XLOOKUP($E61,'Activity 1'!$B$17:$B$23,'Activity 1'!D$17:D$23,\"N/A\",0,1)","v":"N/A"},{"$f":"_xlfn.XLOOKUP($E61,'Activity 1'!$B$17:$B$23,'Activity 1'!E$17:E$23,\"N/A\",0,1)","v":"N/A"},{"$f":"_xlfn.XLOOKUP($E61,'Activity 1'!$B$17:$B$23,'Activity 1'!F$17:F$23,\"N/A\",0,1)","v":"N/A"},{"$f":"_xlfn.XLOOKUP($E61,'Activity 1'!$B$17:$B$23,'Activity 1'!G$17:G$23,\"N/A\",0,1)","v":"N/A"},{"$f":"_xlfn.XLOOKUP($E61,'Activity 1'!$B$17:$B$23,'Activity 1'!H$17:H$23,\"N/A\",0,1)","v":"N/A"},{"$f":"_xlfn.XLOOKUP($E61,'Activity 1'!$B$17:$B$23,'Activity 1'!I$17:I$23,\"N/A\",0,1)","v":"N/A"},{"$f":"_xlfn.XLOOKUP($E61,'Activity 1'!$B$17:$B$23,'Activity 1'!J$17:J$23,\"N/A\",0,1)","v":"N/A"},{"$f":"_xlfn.XLOOKUP($E61,'Activity 1'!$B$17:$B$23,'Activity 1'!K$17:K$23,\"N/A\",0,1)","v":"N/A"},{"$f":"_xlfn.XLOOKUP($E61,'Activity 1'!$B$17:$B$23,'Activity 1'!L$17:L$23,\"N/A\",0,1)","v":"N/A"},{"$f":"_xlfn.XLOOKUP($E61,'Activity 1'!$B$17:$B$23,'Activity 1'!M$17:M$23,\"N/A\",0,1)","v":"N/A"},{"$f":"_xlfn.XLOOKUP($E61,'Activity 1'!$B$17:$B$23,'Activity 1'!O$17:O$23,\"N/A\",0,1)","v":"N/A"},{"$f":"_xlfn.XLOOKUP($E61,'Activity 1'!$B$17:$B$23,'Activity 1'!Q$17:Q$23,\"N/A\",0,1)","v":"N/A"},{"$f":"_xlfn.XLOOKUP($E61,'Activity 2'!$B$7:$B$13,'Activity 2'!$A$7:$A$13,\"No\",0,1)","v":"No"},{"$f":"_xlfn.XLOOKUP($E61,'Activity 2'!B$7:B$13,'Activity 2'!H$7:H$13,\"N/A\",0)","v":"N/A"},{"$f":"_xlfn.XLOOKUP($E61,'Activity 2'!C$7:C$13,'Activity 2'!I$7:I$13,\"N/A\",0)","v":"N/A"},{"$f":"_xlfn.XLOOKUP($E61,'Activity 2'!D$7:D$13,'Activity 2'!J$7:J$13,\"N/A\",0)","v":"N/A"},{"$f":"_xlfn.XLOOKUP($E61,'Activity 2'!E$7:E$13,'Activity 2'!K$7:K$13,\"N/A\",0)","v":"N/A"},{"$f":"_xlfn.XLOOKUP($E61,'Activity 2'!F$7:F$13,'Activity 2'!L$7:L$13,\"N/A\",0)","v":"N/A"},{"$f":"_xlfn.XLOOKUP($E61,'Activity 2'!G$7:G$13,'Activity 2'!M$7:M$13,\"N/A\",0)","v":"N/A"},{"$f":"_xlfn.XLOOKUP($E61,'Activity 2'!H$7:H$13,'Activity 2'!N$7:N$13,\"N/A\",0)","v":"N/A"},{"$f":"_xlfn.XLOOKUP($E61,'Activity 2'!I$7:I$13,'Activity 2'!O$7:O$13,\"N/A\",0)","v":"N/A"},{"$f":"_xlfn.XLOOKUP($E61,'Activity 2'!J$7:J$13,'Activity 2'!P$7:P$13,\"N/A\",0)","v":"N/A"},{"$f":"_xlfn.XLOOKUP($E61,'Activity 2'!K$7:K$13,'Activity 2'!Q$7:Q$13,\"N/A\",0)","v":"N/A"},{"$f":"_xlfn.XLOOKUP($E61,'Activity 2'!L$7:L$13,'Activity 2'!R$7:R$13,\"N/A\",0)","v":"N/A"},{"$f":"_xlfn.XLOOKUP($E61,'Activity 2'!M$7:M$13,'Activity 2'!S$7:S$13,\"N/A\",0)","v":"N/A"},{"$f":"_xlfn.XLOOKUP($E61,'Activity 2'!N$7:N$13,'Activity 2'!T$7:T$13,\"N/A\",0)","v":"N/A"},{"$f":"_xlfn.XLOOKUP($E61,'Activity 2'!O$7:O$13,'Activity 2'!U$7:U$13,\"N/A\",0)","v":"N/A"},{"$f":"_xlfn.XLOOKUP($E61,'Activity 2'!P$7:P$13,'Activity 2'!V$7:V$13,\"N/A\",0)","v":"N/A"},{"$f":"_xlfn.XLOOKUP($E61,'Activity 2'!$B$17:$B$23,'Activity 2'!C$17:C$23,\"N/A\",0,1)","v":"N/A"},{"$f":"_xlfn.XLOOKUP($E61,'Activity 2'!$B$17:$B$23,'Activity 2'!D$17:D$23,\"N/A\",0,1)","v":"N/A"},{"$f":"_xlfn.XLOOKUP($E61,'Activity 2'!$B$17:$B$23,'Activity 2'!E$17:E$23,\"N/A\",0,1)","v":"N/A"},{"$f":"_xlfn.XLOOKUP($E61,'Activity 2'!$B$17:$B$23,'Activity 2'!F$17:F$23,\"N/A\",0,1)","v":"N/A"},{"$f":"_xlfn.XLOOKUP($E61,'Activity 2'!$B$17:$B$23,'Activity 2'!G$17:G$23,\"N/A\",0,1)","v":"N/A"},{"$f":"_xlfn.XLOOKUP($E61,'Activity 2'!$B$17:$B$23,'Activity 2'!H$17:H$23,\"N/A\",0,1)","v":"N/A"},{"$f":"_xlfn.XLOOKUP($E61,'Activity 2'!$B$17:$B$23,'Activity 2'!I$17:I$23,\"N/A\",0,1)","v":"N/A"},{"$f":"_xlfn.XLOOKUP($E61,'Activity 2'!$B$17:$B$23,'Activity 2'!J$17:J$23,\"N/A\",0,1)","v":"N/A"},{"$f":"_xlfn.XLOOKUP($E61,'Activity 2'!$B$17:$B$23,'Activity 2'!K$17:K$23,\"N/A\",0,1)","v":"N/A"},{"$f":"_xlfn.XLOOKUP($E61,'Activity 2'!$B$17:$B$23,'Activity 2'!L$17:L$23,\"N/A\",0,1)","v":"N/A"},{"$f":"_xlfn.XLOOKUP($E61,'Activity 2'!$B$17:$B$23,'Activity 2'!M$17:M$23,\"N/A\",0,1)","v":"N/A"},{"$f":"_xlfn.XLOOKUP($E61,'Activity 2'!$B$17:$B$23,'Activity 2'!O$17:O$23,\"N/A\",0,1)","v":"N/A"},{"$f":"_xlfn.XLOOKUP($E61,'Activity 2'!$B$17:$B$23,'Activity 2'!Q$17:Q$23,\"N/A\",0,1)","v":"N/A"},null,{"$f":"_xlfn.XLOOKUP($E61,'Activity 3'!$B$8:$B$14,'Activity 3'!K$8:K$14,\"N/A\",0,1)","v":"N/A"},{"$f":"_xlfn.XLOOKUP($E61,'Activity 3'!$B$8:$B$14,'Activity 3'!L$8:L$14,\"N/A\",0,1)","v":"N/A"},{"$f":"_xlfn.XLOOKUP($E61,'Activity 3'!$B$8:$B$14,'Activity 3'!M$8:M$14,\"N/A\",0,1)","v":"N/A"},{"$f":"_xlfn.XLOOKUP($E61,'Activity 3'!$B$8:$B$14,'Activity 3'!N$8:N$14,\"N/A\",0,1)","v":"N/A"},{"$f":"_xlfn.XLOOKUP($E61,'Activity 3'!$B$8:$B$14,'Activity 3'!O$8:O$14,\"N/A\",0,1)","v":"N/A"},{"$f":"_xlfn.XLOOKUP($E61,'Activity 3'!$B$8:$B$14,'Activity 3'!R$8:R$14,\"N/A\",0,1)","v":"N/A"},{"$f":"_xlfn.XLOOKUP($E61,'Activity 4'!$B$8:$B$14,'Activity 4'!$A$8:$A$14,\"No\",0,1)","v":"No"},{"$f":"_xlfn.XLOOKUP($E61,'Activity 4'!$B$8:$B$14,'Activity 4'!L$8:L$14,\"N/A\",0,1)","v":"N/A"},{"$f":"_xlfn.XLOOKUP($E61,'Activity 4'!$B$8:$B$14,'Activity 4'!I$8:I$14,\"N/A\",0,1)","v":"N/A"},{"$f":"_xlfn.XLOOKUP($E61,'Activity 4'!$B$8:$B$14,'Activity 4'!M$8:M$14,\"N/A\",0,1)","v":"N/A"},{"$f":"_xlfn.XLOOKUP($E61,'Activity 5'!$B$8:$B$14,'Activity 5'!$A$8:$A$14,\"No\",0,1)","v":"No"},{"$f":"_xlfn.XLOOKUP($E61,'Activity 5'!$B$8:$B$14,'Activity 5'!J$8:J$14,\"N/A\",0,1)","v":"N/A"},{"$f":"_xlfn.XLOOKUP($E61,'Activity 5'!$B$8:$B$14,'Activity 5'!K$8:K$14,\"N/A\",0,1)","v":"N/A"},{"$f":"_xlfn.XLOOKUP($E61,'Activity 5'!$B$8:$B$14,'Activity 5'!N$8:N$14,\"N/A\",0,1)","v":"N/A"},{"$f":"_xlfn.XLOOKUP($E61,'Activity 5'!$B$8:$B$14,'Activity 5'!O$8:O$14,\"N/A\",0,1)","v":"N/A"},{"$f":"_xlfn.XLOOKUP($E61,'Activity 5'!$B$8:$B$14,'Activity 5'!P$8:P$14,\"N/A\",0,1)","v":"N/A"},{"$f":"_xlfn.XLOOKUP($E61,'Activity 5'!$B$8:$B$14,'Activity 5'!Q$8:Q$14,\"N/A\",0,1)","v":"N/A"},{"$f":"_xlfn.XLOOKUP($E61,'Activity 5'!$B$8:$B$14,'Activity 5'!R$8:R$14,\"N/A\",0,1)","v":"N/A"},{"$f":"_xlfn.XLOOKUP($E61,'Activity 6'!$B$7:$B$13,'Activity 6'!A$7:A$13,\"No\",0,1)","v":"No"},{"$f":"_xlfn.XLOOKUP($E61,'Activity 6'!$B$7:$B$13,'Activity 6'!K$7:K$13,\"N/A\",0,1)","v":"N/A"},{"$f":"_xlfn.XLOOKUP($E61,'Activity 6'!$B$7:$B$13,'Activity 6'!L$7:L$13,\"N/A\",0,1)","v":"N/A"},{"$f":"_xlfn.XLOOKUP($E61,'Activity 6'!$B$7:$B$13,'Activity 6'!M$7:M$13,\"N/A\",0,1)","v":"N/A"},{"$f":"_xlfn.XLOOKUP($E61,'Activity 6'!$B$7:$B$13,'Activity 6'!N$7:N$13,\"N/A\",0,1)","v":"N/A"},{"$f":"_xlfn.XLOOKUP($E61,'Activity 6'!$B$7:$B$13,'Activity 6'!O$7:O$13,\"N/A\",0,1)","v":"N/A"},{"$f":"_xlfn.XLOOKUP($E61,'Activity 6'!$B$7:$B$13,'Activity 6'!P$7:P$13,\"N/A\",0,1)","v":"N/A"},{"$f":"_xlfn.XLOOKUP($E61,'Activity 6'!$B$7:$B$13,'Activity 6'!Q$7:Q$13,\"N/A\",0,1)","v":"N/A"},{"$f":"_xlfn.XLOOKUP($E61,'Activity 6'!$B$7:$B$13,'Activity 6'!R$7:R$13,\"N/A\",0,1)","v":"N/A"},{"$f":"_xlfn.XLOOKUP($E61,'Activity 6'!$B$7:$B$13,'Activity 6'!S$7:S$13,\"N/A\",0,1)","v":"N/A"},{"$f":"_xlfn.XLOOKUP($E61,'Activity 6'!$B$7:$B$13,'Activity 6'!T$7:T$13,\"N/A\",0,1)","v":"N/A"},{"$f":"_xlfn.XLOOKUP($E61,'Activity 6'!$B$7:$B$13,'Activity 6'!U$7:U$13,\"N/A\",0,1)","v":"N/A"},{"$f":"_xlfn.XLOOKUP($E61,'Activity 6'!$B$22:$B$28,'Activity 6'!C$22:C$28,\"N/A\",0,1)","v":"N/A"},{"$f":"_xlfn.XLOOKUP($E61,'Activity 6'!$B$22:$B$28,'Activity 6'!D$22:D$28,\"N/A\",0,1)","v":"N/A"},{"$f":"_xlfn.XLOOKUP($E61,'Activity 6'!$B$22:$B$28,'Activity 6'!E$22:E$28,\"N/A\",0,1)","v":"N/A"},{"$f":"_xlfn.XLOOKUP($E61,'Activity 6'!$B$22:$B$28,'Activity 6'!F$22:F$28,\"N/A\",0,1)","v":"N/A"},{"$f":"_xlfn.XLOOKUP($E61,'Activity 6'!$B$22:$B$28,'Activity 6'!G$22:G$28,\"N/A\",0,1)","v":"N/A"},{"$f":"_xlfn.XLOOKUP($E61,'Activity 6'!$B$22:$B$28,'Activity 6'!H$22:H$28,\"N/A\",0,1)","v":"N/A"},{"$f":"_xlfn.XLOOKUP($E61,'Activity 6'!$B$22:$B$28,'Activity 6'!I$22:I$28,\"N/A\",0,1)","v":"N/A"},{"$f":"_xlfn.XLOOKUP($E61,'Activity 6'!$B$22:$B$28,'Activity 6'!J$22:J$28,\"N/A\",0,1)","v":"N/A"},{"$f":"_xlfn.XLOOKUP($E61,'Activity 6'!$B$22:$B$28,'Activity 6'!K$22:K$28,\"N/A\",0,1)","v":"N/A"},{"$f":"_xlfn.XLOOKUP($E61,'Activity 6'!$B$22:$B$28,'Activity 6'!L$22:L$28,\"N/A\",0,1)","v":"N/A"},{"$f":"_xlfn.XLOOKUP($E61,'Activity 6'!$B$22:$B$28,'Activity 6'!M$22:M$28,\"N/A\",0,1)","v":"N/A"},{"$f":"_xlfn.XLOOKUP($E61,'Activity 6'!$B$22:$B$28,'Activity 6'!N$22:N$28,\"N/A\",0,1)","v":"N/A"},{"$f":"_xlfn.XLOOKUP($E61,'Activity 6'!$B$32:$B$38,'Activity 6'!C$32:C$38,\"N/A\",0,1)","v":"N/A"},{"$f":"_xlfn.XLOOKUP($E61,'Activity 6'!$B$32:$B$38,'Activity 6'!D$32:D$38,\"N/A\",0,1)","v":"N/A"},{"$f":"_xlfn.XLOOKUP($E61,'Activity 6'!$B$32:$B$38,'Activity 6'!E$32:E$38,\"N/A\",0,1)","v":"N/A"},{"$f":"_xlfn.XLOOKUP($E61,'Activity 6'!$B$32:$B$38,'Activity 6'!F$32:F$38,\"N/A\",0,1)","v":"N/A"},{"$f":"_xlfn.XLOOKUP($E61,'Activity 6'!$B$32:$B$38,'Activity 6'!G$32:G$38,\"N/A\",0,1)","v":"N/A"},{"$f":"_xlfn.XLOOKUP($E61,'Activity 6'!$B$32:$B$38,'Activity 6'!H$32:H$38,\"N/A\",0,1)","v":"N/A"},{"$f":"_xlfn.XLOOKUP($E61,'Activity 6'!$B$32:$B$38,'Activity 6'!I$32:I$38,\"N/A\",0,1)","v":"N/A"},{"$f":"_xlfn.XLOOKUP($E61,'Activity 6'!$B$32:$B$38,'Activity 6'!J$32:J$38,\"N/A\",0,1)","v":"N/A"},{"$f":"_xlfn.XLOOKUP($E61,'Activity 6'!$B$32:$B$38,'Activity 6'!K$32:K$38,\"N/A\",0,1)","v":"N/A"},{"$f":"_xlfn.XLOOKUP($E61,'Activity 6'!$B$32:$B$38,'Activity 6'!M$32:M$38,\"N/A\",0,1)","v":"N/A"},{"$f":"_xlfn.XLOOKUP($E61,'Activity 7'!$B$7:$B$13,'Activity 7'!$A$7:$A$13,\"No\",0,1)","v":"No"},{"$f":"_xlfn.XLOOKUP($E61,'Activity 7'!$B$7:$B$13,'Activity 7'!M$7:M$13,\"N/A\",0,1)","v":"N/A"},{"$f":"_xlfn.XLOOKUP($E61,'Activity 7'!$B$7:$B$13,'Activity 7'!K$7:K$13,\"N/A\",0,1)","v":"N/A"},{"$f":"_xlfn.XLOOKUP($E61,'Activity 7'!$B$7:$B$13,'Activity 7'!N$7:N$13,\"N/A\",0,1)","v":"N/A"},{"$f":"_xlfn.XLOOKUP($E61,'Activity 7'!$B$7:$B$13,'Activity 7'!O$7:O$13,\"N/A\",0,1)","v":"N/A"},{"$f":"_xlfn.XLOOKUP($E61,'Activity 7'!$B$7:$B$13,'Activity 7'!P$7:P$13,\"N/A\",0,1)","v":"N/A"},{"$f":"_xlfn.XLOOKUP($E61,'Activity 7'!$B$7:$B$13,'Activity 7'!Q$7:Q$13,\"N/A\",0,1)","v":"N/A"},{"$f":"_xlfn.XLOOKUP($E61,'Activity 7'!$B$7:$B$13,'Activity 7'!R$7:R$13,\"N/A\",0,1)","v":"N/A"},{"$f":"_xlfn.XLOOKUP($E61,'Activity 7'!$B$7:$B$13,'Activity 7'!S$7:S$13,\"N/A\",0,1)","v":"N/A"},{"$f":"_xlfn.XLOOKUP($E61,'Activity 7'!$B$7:$B$13,'Activity 7'!T$7:T$13,\"N/A\",0,1)","v":"N/A"},{"$f":"_xlfn.XLOOKUP($E61,'Activity 7'!$B$7:$B$13,'Activity 7'!U$7:U$13,\"N/A\",0,1)","v":"N/A"},{"$f":"_xlfn.XLOOKUP($E61,'Activity 7'!$B$7:$B$13,'Activity 7'!V$7:V$13,\"N/A\",0,1)","v":"N/A"},{"$f":"_xlfn.XLOOKUP($E61,'Activity 7'!$B$17:$B$23,'Activity 7'!E$17:E$23,\"N/A\",0,1)","v":"N/A"},{"$f":"_xlfn.XLOOKUP($E61,'Activity 7'!$B$17:$B$23,'Activity 7'!G$17:G$23,\"N/A\",0,1)","v":"N/A"},{"$f":"_xlfn.XLOOKUP($E61,'Activity 7'!$B$17:$B$23,'Activity 7'!I$17:I$23,\"N/A\",0,1)","v":"N/A"},{"$f":"_xlfn.XLOOKUP($E61,'Activity 7'!$B$17:$B$23,'Activity 7'!J$17:J$23,\"N/A\",0,1)","v":"N/A"},{"$f":"_xlfn.XLOOKUP($E61,'Activity 7'!$B$17:$B$23,'Activity 7'!K$17:K$23,\"N/A\",0,1)","v":"N/A"},{"$f":"_xlfn.XLOOKUP($E61,'Activity 7'!$B$17:$B$23,'Activity 7'!L$17:L$23,\"N/A\",0,1)","v":"N/A"},{"$f":"_xlfn.XLOOKUP($E61,'Activity 7'!$B$17:$B$23,'Activity 7'!M$17:M$23,\"N/A\",0,1)","v":"N/A"},{"$f":"_xlfn.XLOOKUP($E61,'Activity 7'!$B$17:$B$23,'Activity 7'!N$17:N$23,\"N/A\",0,1)","v":"N/A"},{"$f":"_xlfn.XLOOKUP($E61,'Activity 7'!$B$17:$B$23,'Activity 7'!P$17:P$23,\"N/A\",0,1)","v":"N/A"},{"$f":"_xlfn.XLOOKUP($E61,'Activity 8'!$B$7:$B$13,'Activity 8'!A$7:A$13,\"No\",0,1)","v":"No"},{"$f":"_xlfn.XLOOKUP($E61,'Activity 8'!$B$7:$B$13,'Activity 8'!I$7:I$13,\"N/A\",0,1)","v":"N/A"},{"$f":"_xlfn.XLOOKUP($E61,'Activity 8'!$B$7:$B$13,'Activity 8'!J$7:J$13,\"N/A\",0,1)","v":"N/A"},{"$f":"_xlfn.XLOOKUP($E61,'Activity 8'!$B$7:$B$13,'Activity 8'!K$7:K$13,\"N/A\",0,1)","v":"N/A"},{"$f":"_xlfn.XLOOKUP($E61,'Activity 8'!$B$7:$B$13,'Activity 8'!L$7:L$13,\"N/A\",0,1)","v":"N/A"},{"$f":"_xlfn.XLOOKUP($E61,'Activity 8'!$B$7:$B$13,'Activity 8'!M$7:M$13,\"N/A\",0,1)","v":"N/A"},{"$f":"_xlfn.XLOOKUP($E61,'Activity 8'!$B$7:$B$13,'Activity 8'!N$7:N$13,\"N/A\",0,1)","v":"N/A"},{"$f":"_xlfn.XLOOKUP($E61,'Activity 8'!$B$7:$B$13,'Activity 8'!O$7:O$13,\"N/A\",0,1)","v":"N/A"},{"$f":"_xlfn.XLOOKUP($E61,'Activity 8'!$B$7:$B$13,'Activity 8'!P$7:P$13,\"N/A\",0,1)","v":"N/A"},{"$f":"_xlfn.XLOOKUP($E61,'Activity 8'!$B$7:$B$13,'Activity 8'!Q$7:Q$13,\"N/A\",0,1)","v":"N/A"},{"$f":"_xlfn.XLOOKUP($E61,'Activity 8'!$B$7:$B$13,'Activity 8'!R$7:R$13,\"N/A\",0,1)","v":"N/A"},{"$f":"_xlfn.XLOOKUP($E61,'Activity 8'!$B$7:$B$13,'Activity 8'!S$7:S$13,\"N/A\",0,1)","v":"N/A"},{"$f":"_xlfn.XLOOKUP($E61,'Activity 8'!$B$7:$B$13,'Activity 8'!T$7:T$13,\"N/A\",0,1)","v":"N/A"},{"$f":"_xlfn.XLOOKUP($E61,'Activity 8'!$B$7:$B$13,'Activity 8'!U$7:U$13,\"N/A\",0,1)","v":"N/A"},{"$f":"_xlfn.XLOOKUP($E61,'Activity 8'!$B$7:$B$13,'Activity 8'!V$7:V$13,\"N/A\",0,1)","v":"N/A"},{"$f":"_xlfn.XLOOKUP($E61,'Activity 8'!$B$17:$B$23,'Activity 8'!D$17:D$23,\"N/A\",0,1)","v":"N/A"},{"$f":"_xlfn.XLOOKUP($E61,'Activity 8'!$B$17:$B$23,'Activity 8'!E$17:E$23,\"N/A\",0,1)","v":"N/A"},{"$f":"_xlfn.XLOOKUP($E61,'Activity 8'!$B$17:$B$23,'Activity 8'!F$17:F$23,\"N/A\",0,1)","v":"N/A"},{"$f":"_xlfn.XLOOKUP($E61,'Activity 8'!$B$17:$B$23,'Activity 8'!G$17:G$23,\"N/A\",0,1)","v":"N/A"},{"$f":"_xlfn.XLOOKUP($E61,'Activity 8'!$B$17:$B$23,'Activity 8'!H$17:H$23,\"N/A\",0,1)","v":"N/A"},{"$f":"_xlfn.XLOOKUP($E61,'Activity 8'!$B$17:$B$23,'Activity 8'!I$17:I$23,\"N/A\",0,1)","v":"N/A"},{"$f":"_xlfn.XLOOKUP($E61,'Activity 8'!$B$17:$B$23,'Activity 8'!J$17:J$23,\"N/A\",0,1)","v":"N/A"},{"$f":"_xlfn.XLOOKUP($E61,'Activity 8'!$B$17:$B$23,'Activity 8'!K$17:K$23,\"N/A\",0,1)","v":"N/A"},{"$f":"_xlfn.XLOOKUP($E61,'Activity 8'!$B$17:$B$23,'Activity 8'!L$17:L$23,\"N/A\",0,1)","v":"N/A"},{"$f":"_xlfn.XLOOKUP($E61,'Activity 8'!$B$17:$B$23,'Activity 8'!M$17:M$23,\"N/A\",0,1)","v":"N/A"},{"$f":"_xlfn.XLOOKUP($E61,'Activity 8'!$B$17:$B$23,'Activity 8'!N$17:N$23,\"N/A\",0,1)","v":"N/A"},{"$f":"_xlfn.XLOOKUP($E61,'Activity 8'!$B$17:$B$23,'Activity 8'!P$17:P$23,\"N/A\",0,1)","v":"N/A"},{"$f":"_xlfn.XLOOKUP(E61,'Activity 9'!$B$7:$B$13,'Activity 9'!$A$7:$A$13,\"No\",0,1)","v":"No"},{"$f":"_xlfn.XLOOKUP($E61,'Activity 9'!$B$7:$B$13,'Activity 9'!J$7:J$13,\"N/A\",0,1)","v":"N/A"},{"$f":"_xlfn.XLOOKUP($E61,'Activity 9'!$B$7:$B$13,'Activity 9'!K$7:K$13,\"N/A\",0,1)","v":"N/A"},{"$f":"_xlfn.XLOOKUP($E61,'Activity 9'!$B$7:$B$13,'Activity 9'!L$7:L$13,\"N/A\",0,1)","v":"N/A"},{"$f":"_xlfn.XLOOKUP($E61,'Activity 9'!$B$7:$B$13,'Activity 9'!M$7:M$13,\"N/A\",0,1)","v":"N/A"},{"$f":"_xlfn.XLOOKUP($E61,'Activity 9'!$B$7:$B$13,'Activity 9'!N$7:N$13,\"N/A\",0,1)","v":"N/A"},{"$f":"_xlfn.XLOOKUP($E61,'Activity 9'!$B$7:$B$13,'Activity 9'!O$7:O$13,\"N/A\",0,1)","v":"N/A"},{"$f":"_xlfn.XLOOKUP($E61,'Activity 9'!$B$7:$B$13,'Activity 9'!P$7:P$13,\"N/A\",0,1)","v":"N/A"},{"$f":"_xlfn.XLOOKUP($E61,'Activity 9'!$B$7:$B$13,'Activity 9'!Q$7:Q$13,\"N/A\",0,1)","v":"N/A"},{"$f":"_xlfn.XLOOKUP($E61,'Activity 9'!$B$7:$B$13,'Activity 9'!R$7:R$13,\"N/A\",0,1)","v":"N/A"},{"$f":"_xlfn.XLOOKUP($E61,'Activity 9'!$B$7:$B$13,'Activity 9'!S$7:S$13,\"N/A\",0,1)","v":"N/A"},{"$f":"_xlfn.XLOOKUP($E61,'Activity 9'!$B$7:$B$13,'Activity 9'!T$7:T$13,\"N/A\",0,1)","v":"N/A"},{"$f":"_xlfn.XLOOKUP($E61,'Activity 9'!$B$17:$B$23,'Activity 9'!E$17:E$23,\"N/A\",0,1)","v":"N/A"},{"$f":"_xlfn.XLOOKUP($E61,'Activity 9'!$B$17:$B$23,'Activity 9'!F$17:F$23,\"N/A\",0,1)","v":"N/A"},{"$f":"_xlfn.XLOOKUP($E61,'Activity 9'!$B$17:$B$23,'Activity 9'!G$17:G$23,\"N/A\",0,1)","v":"N/A"},{"$f":"_xlfn.XLOOKUP($E61,'Activity 9'!$B$17:$B$23,'Activity 9'!H$17:H$23,\"N/A\",0,1)","v":"N/A"},{"$f":"_xlfn.XLOOKUP($E61,'Activity 9'!$B$17:$B$23,'Activity 9'!I$17:I$23,\"N/A\",0,1)","v":"N/A"},{"$f":"_xlfn.XLOOKUP($E61,'Activity 9'!$B$17:$B$23,'Activity 9'!J$17:J$23,\"N/A\",0,1)","v":"N/A"},{"$f":"_xlfn.XLOOKUP($E61,'Activity 9'!$B$17:$B$23,'Activity 9'!K$17:K$23,\"N/A\",0,1)","v":"N/A"},{"$f":"_xlfn.XLOOKUP($E61,'Activity 9'!$B$17:$B$23,'Activity 9'!L$17:L$23,\"N/A\",0,1)","v":"N/A"},{"$f":"_xlfn.XLOOKUP($E61,'Activity 9'!$B$17:$B$23,'Activity 9'!N$17:N$23,\"N/A\",0,1)","v":"N/A"},{"$f":"_xlfn.XLOOKUP($E61,'Activity 9'!$B$17:$B$23,'Activity 9'!O$17:O$23,\"N/A\",0,1)","v":"N/A"},{"$f":"_xlfn.XLOOKUP($E61,'Activity 9'!$B$17:$B$23,'Activity 9'!Q$17:Q$23,\"N/A\",0,1)","v":"N/A"},{"$f":"_xlfn.XLOOKUP($E61,'Activity 10'!$B$7:$B$13,'Activity 10'!A$7:A$13,\"No\",0,1)","v":"No"},{"$f":"_xlfn.XLOOKUP($E61,'Activity 10'!$B$7:$B$13,'Activity 10'!J$7:J$13,\"N/A\",0,1)","v":"N/A"},{"$f":"_xlfn.XLOOKUP($E61,'Activity 10'!$B$7:$B$13,'Activity 10'!K$7:K$13,\"N/A\",0,1)","v":"N/A"},{"$f":"_xlfn.XLOOKUP($E61,'Activity 10'!$B$7:$B$13,'Activity 10'!L$7:L$13,\"N/A\",0,1)","v":"N/A"},{"$f":"_xlfn.XLOOKUP($E61,'Activity 10'!$B$7:$B$13,'Activity 10'!M$7:M$13,\"N/A\",0,1)","v":"N/A"},{"$f":"_xlfn.XLOOKUP($E61,'Activity 10'!$B$7:$B$13,'Activity 10'!N$7:N$13,\"N/A\",0,1)","v":"N/A"},{"$f":"_xlfn.XLOOKUP($E61,'Activity 10'!$B$7:$B$13,'Activity 10'!O$7:O$13,\"N/A\",0,1)","v":"N/A"},{"$f":"_xlfn.XLOOKUP($E61,'Activity 10'!$B$7:$B$13,'Activity 10'!P$7:P$13,\"N/A\",0,1)","v":"N/A"},{"$f":"_xlfn.XLOOKUP($E61,'Activity 10'!$B$7:$B$13,'Activity 10'!Q$7:Q$13,\"N/A\",0,1)","v":"N/A"},{"$f":"_xlfn.XLOOKUP($E61,'Activity 10'!$B$7:$B$13,'Activity 10'!R$7:R$13,\"N/A\",0,1)","v":"N/A"},{"$f":"_xlfn.XLOOKUP($E61,'Activity 10'!$B$7:$B$13,'Activity 10'!S$7:S$13,\"N/A\",0,1)","v":"N/A"},{"$f":"_xlfn.XLOOKUP($E61,'Activity 10'!$B$7:$B$13,'Activity 10'!T$7:T$13,\"N/A\",0,1)","v":"N/A"},{"$f":"_xlfn.XLOOKUP($E61,'Activity 10'!$B$7:$B$13,'Activity 10'!U$7:U$13,\"N/A\",0,1)","v":"N/A"},{"$f":"_xlfn.XLOOKUP($E61,'Activity 10'!$B$7:$B$13,'Activity 10'!V$7:V$13,\"N/A\",0,1)","v":"N/A"},{"$f":"_xlfn.XLOOKUP($E61,'Activity 10'!$B$17:$B$23,'Activity 10'!E$17:E$23,\"N/A\",0,1)","v":"N/A"},{"$f":"_xlfn.XLOOKUP($E61,'Activity 10'!$B$17:$B$23,'Activity 10'!F$17:F$23,\"N/A\",0,1)","v":"N/A"},{"$f":"_xlfn.XLOOKUP($E61,'Activity 10'!$B$17:$B$23,'Activity 10'!G$17:G$23,\"N/A\",0,1)","v":"N/A"},{"$f":"_xlfn.XLOOKUP($E61,'Activity 10'!$B$17:$B$23,'Activity 10'!H$17:H$23,\"N/A\",0,1)","v":"N/A"},{"$f":"_xlfn.XLOOKUP($E61,'Activity 10'!$B$17:$B$23,'Activity 10'!I$17:I$23,\"N/A\",0,1)","v":"N/A"},{"$f":"_xlfn.XLOOKUP($E61,'Activity 10'!$B$17:$B$23,'Activity 10'!J$17:J$23,\"N/A\",0,1)","v":"N/A"},{"$f":"_xlfn.XLOOKUP($E61,'Activity 10'!$B$17:$B$23,'Activity 10'!K$17:K$23,\"N/A\",0,1)","v":"N/A"},{"$f":"_xlfn.XLOOKUP($E61,'Activity 10'!$B$17:$B$23,'Activity 10'!L$17:L$23,\"N/A\",0,1)","v":"N/A"},{"$f":"_xlfn.XLOOKUP($E61,'Activity 10'!$B$17:$B$23,'Activity 10'!M$17:M$23,\"N/A\",0,1)","v":"N/A"},{"$f":"_xlfn.XLOOKUP($E61,'Activity 10'!$B$17:$B$23,'Activity 10'!N$17:N$23,\"N/A\",0,1)","v":"N/A"},{"$f":"_xlfn.XLOOKUP($E61,'Activity 10'!$B$17:$B$23,'Activity 10'!P$17:P$23,\"N/A\",0,1)","v":"N/A"},{"$f":"_xlfn.XLOOKUP($E61,'Competitive Activity 1'!B$7:B$13,'Competitive Activity 1'!A$7:A$13,\"No\",0,1)","v":"No"},{"$f":"_xlfn.XLOOKUP($E61,'Competitive Activity 1'!$B$7:$B$13,'Competitive Activity 1'!H$7:H$13,\"N/A\",0,1)","v":"N/A"},{"$f":"_xlfn.XLOOKUP($E61,'Competitive Activity 1'!$B$7:$B$13,'Competitive Activity 1'!I$7:I$13,\"N/A\",0,1)","v":"N/A"},{"$f":"_xlfn.XLOOKUP($E61,'Competitive Activity 1'!$B$7:$B$13,'Competitive Activity 1'!J$7:J$13,\"N/A\",0,1)","v":"N/A"},{"$f":"_xlfn.XLOOKUP($E61,'Competitive Activity 1'!$B$7:$B$13,'Competitive Activity 1'!K$7:K$13,\"N/A\",0,1)","v":"N/A"},{"$f":"_xlfn.XLOOKUP($E61,'Competitive Activity 1'!$B$7:$B$13,'Competitive Activity 1'!L$7:L$13,\"N/A\",0,1)","v":"N/A"},{"$f":"_xlfn.XLOOKUP($E61,'Competitive Activity 1'!$B$7:$B$13,'Competitive Activity 1'!M$7:M$13,\"N/A\",0,1)","v":"N/A"},{"$f":"_xlfn.XLOOKUP($E61,'Competitive Activity 1'!$B$7:$B$13,'Competitive Activity 1'!N$7:N$13,\"N/A\",0,1)","v":"N/A"},{"$f":"_xlfn.XLOOKUP($E61,'Competitive Activity 1'!$B$7:$B$13,'Competitive Activity 1'!O$7:O$13,\"N/A\",0,1)","v":"N/A"},{"$f":"_xlfn.XLOOKUP($E61,'Competitive Activity 1'!$B$7:$B$13,'Competitive Activity 1'!P$7:P$13,\"N/A\",0,1)","v":"N/A"},{"$f":"_xlfn.XLOOKUP($E61,'Competitive Activity 1'!$B$7:$B$13,'Competitive Activity 1'!Q$7:Q$13,\"N/A\",0,1)","v":"N/A"},{"$f":"_xlfn.XLOOKUP($E61,'Competitive Activity 1'!$B$7:$B$13,'Competitive Activity 1'!R$7:R$13,\"N/A\",0,1)","v":"N/A"},{"$f":"_xlfn.XLOOKUP($E61,'Competitive Activity 1'!$B$7:$B$13,'Competitive Activity 1'!S$7:S$13,\"N/A\",0,1)","v":"N/A"},{"$f":"_xlfn.XLOOKUP($E61,'Competitive Activity 1'!$B$7:$B$13,'Competitive Activity 1'!T$7:T$13,\"N/A\",0,1)","v":"N/A"},{"$f":"_xlfn.XLOOKUP($E61,'Competitive Activity 1'!$B$7:$B$13,'Competitive Activity 1'!U$7:U$13,\"N/A\",0,1)","v":"N/A"},{"$f":"_xlfn.XLOOKUP($E61,'Competitive Activity 1'!$B$17:$B$23,'Competitive Activity 1'!C$17:C$23,\"N/A\",0,1)","v":"N/A"},{"$f":"_xlfn.XLOOKUP($E61,'Competitive Activity 1'!$B$17:$B$23,'Competitive Activity 1'!D$17:D$23,\"N/A\",0,1)","v":"N/A"},{"$f":"_xlfn.XLOOKUP($E61,'Competitive Activity 1'!$B$17:$B$23,'Competitive Activity 1'!E$17:E$23,\"N/A\",0,1)","v":"N/A"},{"$f":"_xlfn.XLOOKUP($E61,'Competitive Activity 1'!$B$17:$B$23,'Competitive Activity 1'!F$17:F$23,\"N/A\",0,1)","v":"N/A"},{"$f":"_xlfn.XLOOKUP($E61,'Competitive Activity 1'!$B$17:$B$23,'Competitive Activity 1'!G$17:G$23,\"N/A\",0,1)","v":"N/A"},{"$f":"_xlfn.XLOOKUP($E61,'Competitive Activity 1'!$B$17:$B$23,'Competitive Activity 1'!H$17:H$23,\"N/A\",0,1)","v":"N/A"},{"$f":"_xlfn.XLOOKUP($E61,'Competitive Activity 1'!$B$17:$B$23,'Competitive Activity 1'!I$17:I$23,\"N/A\",0,1)","v":"N/A"},{"$f":"_xlfn.XLOOKUP($E61,'Competitive Activity 1'!$B$17:$B$23,'Competitive Activity 1'!J$17:J$23,\"N/A\",0,1)","v":"N/A"},{"$f":"_xlfn.XLOOKUP($E61,'Competitive Activity 1'!$B$17:$B$23,'Competitive Activity 1'!K$17:K$23,\"N/A\",0,1)","v":"N/A"},{"$f":"_xlfn.XLOOKUP($E61,'Competitive Activity 1'!$B$17:$B$23,'Competitive Activity 1'!M$17:M$23,\"N/A\",0,1)","v":"N/A"},{"$f":"_xlfn.XLOOKUP($E61,'Competitive Activity 1'!$B$17:$B$23,'Competitive Activity 1'!N$17:N$23,\"N/A\",0,1)","v":"N/A"},{"$f":"_xlfn.XLOOKUP($E61,'Competitive Activity 1'!$B$17:$B$23,'Competitive Activity 1'!P$17:P$23,\"N/A\",0,1)","v":"N/A"},{"$f":"_xlfn.XLOOKUP($E61,'Competitive Activity 2'!$B$7:$B$13,'Competitive Activity 2'!A$7:A$13,\"No\",0)","v":"No"},{"$f":"_xlfn.XLOOKUP($E61,'Competitive Activity 2'!$B$7:$B$13,'Competitive Activity 2'!L$7:L$13,\"N/A\",0)","v":"N/A"},{"$f":"_xlfn.XLOOKUP($E61,'Competitive Activity 2'!$B$7:$B$13,'Competitive Activity 2'!M$7:M$13,\"N/A\",0)","v":"N/A"},{"$f":"_xlfn.XLOOKUP($E61,'Competitive Activity 2'!$B$7:$B$13,'Competitive Activity 2'!N$7:N$13,\"N/A\",0)","v":"N/A"},{"$f":"_xlfn.XLOOKUP($E61,'Competitive Activity 2'!$B$7:$B$13,'Competitive Activity 2'!O$7:O$13,\"N/A\",0)","v":"N/A"},{"$f":"_xlfn.XLOOKUP($E61,'Competitive Activity 2'!$B$7:$B$13,'Competitive Activity 2'!P$7:P$13,\"N/A\",0)","v":"N/A"},{"$f":"_xlfn.XLOOKUP($E61,'Competitive Activity 2'!$B$7:$B$13,'Competitive Activity 2'!Q$7:Q$13,\"N/A\",0)","v":"N/A"},{"$f":"_xlfn.XLOOKUP($E61,'Competitive Activity 2'!$B$7:$B$13,'Competitive Activity 2'!R$7:R$13,\"N/A\",0)","v":"N/A"},{"$f":"_xlfn.XLOOKUP($E61,'Competitive Activity 2'!$B$7:$B$13,'Competitive Activity 2'!S$7:S$13,\"N/A\",0)","v":"N/A"},{"$f":"_xlfn.XLOOKUP($E61,'Competitive Activity 2'!$B$7:$B$13,'Competitive Activity 2'!T$7:T$13,\"N/A\",0)","v":"N/A"},{"$f":"_xlfn.XLOOKUP($E61,'Competitive Activity 2'!$B$7:$B$13,'Competitive Activity 2'!U$7:U$13,\"N/A\",0)","v":"N/A"},{"$f":"_xlfn.XLOOKUP($E61,'Competitive Activity 2'!$B$17:$B$23,'Competitive Activity 2'!D$17:D$23,\"N/A\",0)","v":"N/A"},{"$f":"_xlfn.XLOOKUP($E61,'Competitive Activity 2'!$B$17:$B$23,'Competitive Activity 2'!E$17:E$23,\"N/A\",0)","v":"N/A"},{"$f":"_xlfn.XLOOKUP($E61,'Competitive Activity 2'!$B$17:$B$23,'Competitive Activity 2'!F$17:F$23,\"N/A\",0)","v":"N/A"},{"$f":"_xlfn.XLOOKUP($E61,'Competitive Activity 2'!$B$17:$B$23,'Competitive Activity 2'!G$17:G$23,\"N/A\",0)","v":"N/A"},{"$f":"_xlfn.XLOOKUP($E61,'Competitive Activity 2'!$B$17:$B$23,'Competitive Activity 2'!H$17:H$23,\"N/A\",0)","v":"N/A"},{"$f":"_xlfn.XLOOKUP($E61,'Competitive Activity 2'!$B$17:$B$23,'Competitive Activity 2'!I$17:I$23,\"N/A\",0)","v":"N/A"},{"$f":"_xlfn.XLOOKUP($E61,'Competitive Activity 2'!$B$17:$B$23,'Competitive Activity 2'!J$17:J$23,\"N/A\",0)","v":"N/A"},{"$f":"_xlfn.XLOOKUP($E61,'Competitive Activity 2'!$B$17:$B$23,'Competitive Activity 2'!K$17:K$23,\"N/A\",0)","v":"N/A"},{"$f":"_xlfn.XLOOKUP($E61,'Competitive Activity 2'!$B$17:$B$23,'Competitive Activity 2'!L$17:L$23,\"N/A\",0)","v":"N/A"},{"$f":"_xlfn.XLOOKUP($E61,'Competitive Activity 2'!$B$17:$B$23,'Competitive Activity 2'!M$17:M$23,\"N/A\",0)","v":"N/A"},{"$f":"_xlfn.XLOOKUP($E61,'Competitive Activity 2'!$B$17:$B$23,'Competitive Activity 2'!N$17:N$23,\"N/A\",0)","v":"N/A"},{"$f":"_xlfn.XLOOKUP($E61,'Competitive Activity 2'!$B$27:$B$33,'Competitive Activity 2'!D$27:D$33,\"N/A\",0)","v":"N/A"},{"$f":"_xlfn.XLOOKUP($E61,'Competitive Activity 2'!$B$27:$B$33,'Competitive Activity 2'!E$27:E$33,\"N/A\",0)","v":"N/A"},{"$f":"_xlfn.XLOOKUP($E61,'Competitive Activity 2'!$B$27:$B$33,'Competitive Activity 2'!F$27:F$33,\"N/A\",0)","v":"N/A"},{"$f":"_xlfn.XLOOKUP($E61,'Competitive Activity 2'!$B$27:$B$33,'Competitive Activity 2'!G$27:G$33,\"N/A\",0)","v":"N/A"},{"$f":"_xlfn.XLOOKUP($E61,'Competitive Activity 2'!$B$27:$B$33,'Competitive Activity 2'!H$27:H$33,\"N/A\",0)","v":"N/A"},{"$f":"_xlfn.XLOOKUP($E61,'Competitive Activity 2'!$B$27:$B$33,'Competitive Activity 2'!I$27:I$33,\"N/A\",0)","v":"N/A"},{"$f":"_xlfn.XLOOKUP($E61,'Competitive Activity 2'!$B$27:$B$33,'Competitive Activity 2'!J$27:J$33,\"N/A\",0)","v":"N/A"},{"$f":"_xlfn.XLOOKUP($E61,'Competitive Activity 2'!$B$27:$B$33,'Competitive Activity 2'!K$27:K$33,\"N/A\",0)","v":"N/A"},{"$f":"_xlfn.XLOOKUP($E61,'Competitive Activity 2'!$B$27:$B$33,'Competitive Activity 2'!M$27:M$33,\"N/A\",0)","v":"N/A"}]
[{"$f":"'1-Cover Sheet'!$C$8","v":"Select One"},{"$f":"'1-Cover Sheet'!$F$8","v":"Select One"},{"$f":"'Summary Sheet'!$D$8","v":0},{"$f":"'Summary Sheet'!$D$10","v":0},{"$f":"'Drop Down Box'!B226","v":0},{"$f":"'Drop Down Box'!C226","v":0},{"$f":"'Drop Down Box'!D226","v":"Select One"},{"$f":"_xlfn.XLOOKUP(E62,'Drop Down Box'!$B$166:$B$249,'Drop Down Box'!$A$166:$A$249,\"Unknown\",0)","v":"Activity 1"},{"$f":"_xlfn.XLOOKUP($E62,'Activity 9'!$B$17:$B$23,'Activity 9'!$M$17:$M$23,\"N/A\",0)","v":"N/A"},{"$f":"_xlfn.XLOOKUP($E62,'Activity 9'!$B$17:$B$23,'Activity 9'!$P$17:$P$23,\"N/A\",0)","v":"N/A"},{"$f":"_xlfn.XLOOKUP($E62,'Activity 9'!$B$7:$B$13,'Activity 9'!G$7:G$13,\"N/A\",0)","v":"N/A"},{"$f":"_xlfn.XLOOKUP($E62,'Activity 9'!$B$7:$B$13,'Activity 9'!H$7:H$13,\"N/A\",0)","v":"N/A"},{"$f":"_xlfn.XLOOKUP($E62,'Activity 9'!$B$7:$B$13,'Activity 9'!I$7:I$13,\"N/A\",0)","v":"N/A"},{"$f":"_xlfn.XLOOKUP($E62,'Activity 1'!$B$7:$B$13,'Activity 1'!$A$7:$A$13,\"No\",0,1)","v":"No"},{"$f":"_xlfn.XLOOKUP($E62,'Activity 1'!$B$7:$B$13,'Activity 1'!$H$7:$H$13,\"N/A\",0,1)","v":"N/A"},{"$f":"_xlfn.XLOOKUP($E62,'Activity 1'!$B$7:$B$13,'Activity 1'!I$7:I$13,\"N/A\",0,1)","v":"N/A"},{"$f":"_xlfn.XLOOKUP($E62,'Activity 1'!$B$7:$B$13,'Activity 1'!J$7:J$13,\"N/A\",0,1)","v":"N/A"},{"$f":"_xlfn.XLOOKUP($E62,'Activity 1'!$B$7:$B$13,'Activity 1'!K$7:K$13,\"N/A\",0,1)","v":"N/A"},{"$f":"_xlfn.XLOOKUP($E62,'Activity 1'!$B$7:$B$13,'Activity 1'!L$7:L$13,\"N/A\",0,1)","v":"N/A"},{"$f":"_xlfn.XLOOKUP($E62,'Activity 1'!$B$7:$B$13,'Activity 1'!M$7:M$13,\"N/A\",0,1)","v":"N/A"},{"$f":"_xlfn.XLOOKUP($E62,'Activity 1'!$B$7:$B$13,'Activity 1'!N$7:N$13,\"N/A\",0,1)","v":"N/A"},0,{"$f":"_xlfn.XLOOKUP($E62,'Activity 1'!$B$7:$B$13,'Activity 1'!O$7:O$13,\"N/A\",0,1)","v":"N/A"},{"$f":"_xlfn.XLOOKUP($E62,'Activity 1'!$B$7:$B$13,'Activity 1'!P$7:P$13,\"N/A\",0,1)","v":"N/A"},{"$f":"_xlfn.XLOOKUP($E62,'Activity 1'!$B$7:$B$13,'Activity 1'!Q$7:Q$13,\"N/A\",0,1)","v":"N/A"},{"$f":"_xlfn.XLOOKUP($E62,'Activity 1'!$B$7:$B$13,'Activity 1'!R$7:R$13,\"N/A\",0,1)","v":"N/A"},{"$f":"_xlfn.XLOOKUP($E62,'Activity 1'!$B$7:$B$13,'Activity 1'!S$7:S$13,\"N/A\",0,1)","v":"N/A"},{"$f":"_xlfn.XLOOKUP($E62,'Activity 1'!$B$7:$B$13,'Activity 1'!T$7:T$13,\"N/A\",0,1)","v":"N/A"},{"$f":"_xlfn.XLOOKUP($E62,'Activity 1'!$B$7:$B$13,'Activity 1'!U$7:U$13,\"N/A\",0,1)","v":"N/A"},{"$f":"_xlfn.XLOOKUP($E62,'Activity 1'!$B$7:$B$13,'Activity 1'!V$7:V$13,\"N/A\",0,1)","v":"N/A"},{"$f":"_xlfn.XLOOKUP($E62,'Activity 1'!$B$17:$B$23,'Activity 1'!C$17:C$23,\"N/A\",0,1)","v":"N/A"},{"$f":"_xlfn.XLOOKUP($E62,'Activity 1'!$B$17:$B$23,'Activity 1'!D$17:D$23,\"N/A\",0,1)","v":"N/A"},{"$f":"_xlfn.XLOOKUP($E62,'Activity 1'!$B$17:$B$23,'Activity 1'!E$17:E$23,\"N/A\",0,1)","v":"N/A"},{"$f":"_xlfn.XLOOKUP($E62,'Activity 1'!$B$17:$B$23,'Activity 1'!F$17:F$23,\"N/A\",0,1)","v":"N/A"},{"$f":"_xlfn.XLOOKUP($E62,'Activity 1'!$B$17:$B$23,'Activity 1'!G$17:G$23,\"N/A\",0,1)","v":"N/A"},{"$f":"_xlfn.XLOOKUP($E62,'Activity 1'!$B$17:$B$23,'Activity 1'!H$17:H$23,\"N/A\",0,1)","v":"N/A"},{"$f":"_xlfn.XLOOKUP($E62,'Activity 1'!$B$17:$B$23,'Activity 1'!I$17:I$23,\"N/A\",0,1)","v":"N/A"},{"$f":"_xlfn.XLOOKUP($E62,'Activity 1'!$B$17:$B$23,'Activity 1'!J$17:J$23,\"N/A\",0,1)","v":"N/A"},{"$f":"_xlfn.XLOOKUP($E62,'Activity 1'!$B$17:$B$23,'Activity 1'!K$17:K$23,\"N/A\",0,1)","v":"N/A"},{"$f":"_xlfn.XLOOKUP($E62,'Activity 1'!$B$17:$B$23,'Activity 1'!L$17:L$23,\"N/A\",0,1)","v":"N/A"},{"$f":"_xlfn.XLOOKUP($E62,'Activity 1'!$B$17:$B$23,'Activity 1'!M$17:M$23,\"N/A\",0,1)","v":"N/A"},{"$f":"_xlfn.XLOOKUP($E62,'Activity 1'!$B$17:$B$23,'Activity 1'!O$17:O$23,\"N/A\",0,1)","v":"N/A"},{"$f":"_xlfn.XLOOKUP($E62,'Activity 1'!$B$17:$B$23,'Activity 1'!Q$17:Q$23,\"N/A\",0,1)","v":"N/A"},{"$f":"_xlfn.XLOOKUP($E62,'Activity 2'!$B$7:$B$13,'Activity 2'!$A$7:$A$13,\"No\",0,1)","v":"No"},{"$f":"_xlfn.XLOOKUP($E62,'Activity 2'!B$7:B$13,'Activity 2'!H$7:H$13,\"N/A\",0)","v":"N/A"},{"$f":"_xlfn.XLOOKUP($E62,'Activity 2'!C$7:C$13,'Activity 2'!I$7:I$13,\"N/A\",0)","v":"N/A"},{"$f":"_xlfn.XLOOKUP($E62,'Activity 2'!D$7:D$13,'Activity 2'!J$7:J$13,\"N/A\",0)","v":"N/A"},{"$f":"_xlfn.XLOOKUP($E62,'Activity 2'!E$7:E$13,'Activity 2'!K$7:K$13,\"N/A\",0)","v":"N/A"},{"$f":"_xlfn.XLOOKUP($E62,'Activity 2'!F$7:F$13,'Activity 2'!L$7:L$13,\"N/A\",0)","v":"N/A"},{"$f":"_xlfn.XLOOKUP($E62,'Activity 2'!G$7:G$13,'Activity 2'!M$7:M$13,\"N/A\",0)","v":"N/A"},{"$f":"_xlfn.XLOOKUP($E62,'Activity 2'!H$7:H$13,'Activity 2'!N$7:N$13,\"N/A\",0)","v":"N/A"},{"$f":"_xlfn.XLOOKUP($E62,'Activity 2'!I$7:I$13,'Activity 2'!O$7:O$13,\"N/A\",0)","v":"N/A"},{"$f":"_xlfn.XLOOKUP($E62,'Activity 2'!J$7:J$13,'Activity 2'!P$7:P$13,\"N/A\",0)","v":"N/A"},{"$f":"_xlfn.XLOOKUP($E62,'Activity 2'!K$7:K$13,'Activity 2'!Q$7:Q$13,\"N/A\",0)","v":"N/A"},{"$f":"_xlfn.XLOOKUP($E62,'Activity 2'!L$7:L$13,'Activity 2'!R$7:R$13,\"N/A\",0)","v":"N/A"},{"$f":"_xlfn.XLOOKUP($E62,'Activity 2'!M$7:M$13,'Activity 2'!S$7:S$13,\"N/A\",0)","v":"N/A"},{"$f":"_xlfn.XLOOKUP($E62,'Activity 2'!N$7:N$13,'Activity 2'!T$7:T$13,\"N/A\",0)","v":"N/A"},{"$f":"_xlfn.XLOOKUP($E62,'Activity 2'!O$7:O$13,'Activity 2'!U$7:U$13,\"N/A\",0)","v":"N/A"},{"$f":"_xlfn.XLOOKUP($E62,'Activity 2'!P$7:P$13,'Activity 2'!V$7:V$13,\"N/A\",0)","v":"N/A"},{"$f":"_xlfn.XLOOKUP($E62,'Activity 2'!$B$17:$B$23,'Activity 2'!C$17:C$23,\"N/A\",0,1)","v":"N/A"},{"$f":"_xlfn.XLOOKUP($E62,'Activity 2'!$B$17:$B$23,'Activity 2'!D$17:D$23,\"N/A\",0,1)","v":"N/A"},{"$f":"_xlfn.XLOOKUP($E62,'Activity 2'!$B$17:$B$23,'Activity 2'!E$17:E$23,\"N/A\",0,1)","v":"N/A"},{"$f":"_xlfn.XLOOKUP($E62,'Activity 2'!$B$17:$B$23,'Activity 2'!F$17:F$23,\"N/A\",0,1)","v":"N/A"},{"$f":"_xlfn.XLOOKUP($E62,'Activity 2'!$B$17:$B$23,'Activity 2'!G$17:G$23,\"N/A\",0,1)","v":"N/A"},{"$f":"_xlfn.XLOOKUP($E62,'Activity 2'!$B$17:$B$23,'Activity 2'!H$17:H$23,\"N/A\",0,1)","v":"N/A"},{"$f":"_xlfn.XLOOKUP($E62,'Activity 2'!$B$17:$B$23,'Activity 2'!I$17:I$23,\"N/A\",0,1)","v":"N/A"},{"$f":"_xlfn.XLOOKUP($E62,'Activity 2'!$B$17:$B$23,'Activity 2'!J$17:J$23,\"N/A\",0,1)","v":"N/A"},{"$f":"_xlfn.XLOOKUP($E62,'Activity 2'!$B$17:$B$23,'Activity 2'!K$17:K$23,\"N/A\",0,1)","v":"N/A"},{"$f":"_xlfn.XLOOKUP($E62,'Activity 2'!$B$17:$B$23,'Activity 2'!L$17:L$23,\"N/A\",0,1)","v":"N/A"},{"$f":"_xlfn.XLOOKUP($E62,'Activity 2'!$B$17:$B$23,'Activity 2'!M$17:M$23,\"N/A\",0,1)","v":"N/A"},{"$f":"_xlfn.XLOOKUP($E62,'Activity 2'!$B$17:$B$23,'Activity 2'!O$17:O$23,\"N/A\",0,1)","v":"N/A"},{"$f":"_xlfn.XLOOKUP($E62,'Activity 2'!$B$17:$B$23,'Activity 2'!Q$17:Q$23,\"N/A\",0,1)","v":"N/A"},null,{"$f":"_xlfn.XLOOKUP($E62,'Activity 3'!$B$8:$B$14,'Activity 3'!K$8:K$14,\"N/A\",0,1)","v":"N/A"},{"$f":"_xlfn.XLOOKUP($E62,'Activity 3'!$B$8:$B$14,'Activity 3'!L$8:L$14,\"N/A\",0,1)","v":"N/A"},{"$f":"_xlfn.XLOOKUP($E62,'Activity 3'!$B$8:$B$14,'Activity 3'!M$8:M$14,\"N/A\",0,1)","v":"N/A"},{"$f":"_xlfn.XLOOKUP($E62,'Activity 3'!$B$8:$B$14,'Activity 3'!N$8:N$14,\"N/A\",0,1)","v":"N/A"},{"$f":"_xlfn.XLOOKUP($E62,'Activity 3'!$B$8:$B$14,'Activity 3'!O$8:O$14,\"N/A\",0,1)","v":"N/A"},{"$f":"_xlfn.XLOOKUP($E62,'Activity 3'!$B$8:$B$14,'Activity 3'!R$8:R$14,\"N/A\",0,1)","v":"N/A"},{"$f":"_xlfn.XLOOKUP($E62,'Activity 4'!$B$8:$B$14,'Activity 4'!$A$8:$A$14,\"No\",0,1)","v":"No"},{"$f":"_xlfn.XLOOKUP($E62,'Activity 4'!$B$8:$B$14,'Activity 4'!L$8:L$14,\"N/A\",0,1)","v":"N/A"},{"$f":"_xlfn.XLOOKUP($E62,'Activity 4'!$B$8:$B$14,'Activity 4'!I$8:I$14,\"N/A\",0,1)","v":"N/A"},{"$f":"_xlfn.XLOOKUP($E62,'Activity 4'!$B$8:$B$14,'Activity 4'!M$8:M$14,\"N/A\",0,1)","v":"N/A"},{"$f":"_xlfn.XLOOKUP($E62,'Activity 5'!$B$8:$B$14,'Activity 5'!$A$8:$A$14,\"No\",0,1)","v":"No"},{"$f":"_xlfn.XLOOKUP($E62,'Activity 5'!$B$8:$B$14,'Activity 5'!J$8:J$14,\"N/A\",0,1)","v":"N/A"},{"$f":"_xlfn.XLOOKUP($E62,'Activity 5'!$B$8:$B$14,'Activity 5'!K$8:K$14,\"N/A\",0,1)","v":"N/A"},{"$f":"_xlfn.XLOOKUP($E62,'Activity 5'!$B$8:$B$14,'Activity 5'!N$8:N$14,\"N/A\",0,1)","v":"N/A"},{"$f":"_xlfn.XLOOKUP($E62,'Activity 5'!$B$8:$B$14,'Activity 5'!O$8:O$14,\"N/A\",0,1)","v":"N/A"},{"$f":"_xlfn.XLOOKUP($E62,'Activity 5'!$B$8:$B$14,'Activity 5'!P$8:P$14,\"N/A\",0,1)","v":"N/A"},{"$f":"_xlfn.XLOOKUP($E62,'Activity 5'!$B$8:$B$14,'Activity 5'!Q$8:Q$14,\"N/A\",0,1)","v":"N/A"},{"$f":"_xlfn.XLOOKUP($E62,'Activity 5'!$B$8:$B$14,'Activity 5'!R$8:R$14,\"N/A\",0,1)","v":"N/A"},{"$f":"_xlfn.XLOOKUP($E62,'Activity 6'!$B$7:$B$13,'Activity 6'!A$7:A$13,\"No\",0,1)","v":"No"},{"$f":"_xlfn.XLOOKUP($E62,'Activity 6'!$B$7:$B$13,'Activity 6'!K$7:K$13,\"N/A\",0,1)","v":"N/A"},{"$f":"_xlfn.XLOOKUP($E62,'Activity 6'!$B$7:$B$13,'Activity 6'!L$7:L$13,\"N/A\",0,1)","v":"N/A"},{"$f":"_xlfn.XLOOKUP($E62,'Activity 6'!$B$7:$B$13,'Activity 6'!M$7:M$13,\"N/A\",0,1)","v":"N/A"},{"$f":"_xlfn.XLOOKUP($E62,'Activity 6'!$B$7:$B$13,'Activity 6'!N$7:N$13,\"N/A\",0,1)","v":"N/A"},{"$f":"_xlfn.XLOOKUP($E62,'Activity 6'!$B$7:$B$13,'Activity 6'!O$7:O$13,\"N/A\",0,1)","v":"N/A"},{"$f":"_xlfn.XLOOKUP($E62,'Activity 6'!$B$7:$B$13,'Activity 6'!P$7:P$13,\"N/A\",0,1)","v":"N/A"},{"$f":"_xlfn.XLOOKUP($E62,'Activity 6'!$B$7:$B$13,'Activity 6'!Q$7:Q$13,\"N/A\",0,1)","v":"N/A"},{"$f":"_xlfn.XLOOKUP($E62,'Activity 6'!$B$7:$B$13,'Activity 6'!R$7:R$13,\"N/A\",0,1)","v":"N/A"},{"$f":"_xlfn.XLOOKUP($E62,'Activity 6'!$B$7:$B$13,'Activity 6'!S$7:S$13,\"N/A\",0,1)","v":"N/A"},{"$f":"_xlfn.XLOOKUP($E62,'Activity 6'!$B$7:$B$13,'Activity 6'!T$7:T$13,\"N/A\",0,1)","v":"N/A"},{"$f":"_xlfn.XLOOKUP($E62,'Activity 6'!$B$7:$B$13,'Activity 6'!U$7:U$13,\"N/A\",0,1)","v":"N/A"},{"$f":"_xlfn.XLOOKUP($E62,'Activity 6'!$B$22:$B$28,'Activity 6'!C$22:C$28,\"N/A\",0,1)","v":"N/A"},{"$f":"_xlfn.XLOOKUP($E62,'Activity 6'!$B$22:$B$28,'Activity 6'!D$22:D$28,\"N/A\",0,1)","v":"N/A"},{"$f":"_xlfn.XLOOKUP($E62,'Activity 6'!$B$22:$B$28,'Activity 6'!E$22:E$28,\"N/A\",0,1)","v":"N/A"},{"$f":"_xlfn.XLOOKUP($E62,'Activity 6'!$B$22:$B$28,'Activity 6'!F$22:F$28,\"N/A\",0,1)","v":"N/A"},{"$f":"_xlfn.XLOOKUP($E62,'Activity 6'!$B$22:$B$28,'Activity 6'!G$22:G$28,\"N/A\",0,1)","v":"N/A"},{"$f":"_xlfn.XLOOKUP($E62,'Activity 6'!$B$22:$B$28,'Activity 6'!H$22:H$28,\"N/A\",0,1)","v":"N/A"},{"$f":"_xlfn.XLOOKUP($E62,'Activity 6'!$B$22:$B$28,'Activity 6'!I$22:I$28,\"N/A\",0,1)","v":"N/A"},{"$f":"_xlfn.XLOOKUP($E62,'Activity 6'!$B$22:$B$28,'Activity 6'!J$22:J$28,\"N/A\",0,1)","v":"N/A"},{"$f":"_xlfn.XLOOKUP($E62,'Activity 6'!$B$22:$B$28,'Activity 6'!K$22:K$28,\"N/A\",0,1)","v":"N/A"},{"$f":"_xlfn.XLOOKUP($E62,'Activity 6'!$B$22:$B$28,'Activity 6'!L$22:L$28,\"N/A\",0,1)","v":"N/A"},{"$f":"_xlfn.XLOOKUP($E62,'Activity 6'!$B$22:$B$28,'Activity 6'!M$22:M$28,\"N/A\",0,1)","v":"N/A"},{"$f":"_xlfn.XLOOKUP($E62,'Activity 6'!$B$22:$B$28,'Activity 6'!N$22:N$28,\"N/A\",0,1)","v":"N/A"},{"$f":"_xlfn.XLOOKUP($E62,'Activity 6'!$B$32:$B$38,'Activity 6'!C$32:C$38,\"N/A\",0,1)","v":"N/A"},{"$f":"_xlfn.XLOOKUP($E62,'Activity 6'!$B$32:$B$38,'Activity 6'!D$32:D$38,\"N/A\",0,1)","v":"N/A"},{"$f":"_xlfn.XLOOKUP($E62,'Activity 6'!$B$32:$B$38,'Activity 6'!E$32:E$38,\"N/A\",0,1)","v":"N/A"},{"$f":"_xlfn.XLOOKUP($E62,'Activity 6'!$B$32:$B$38,'Activity 6'!F$32:F$38,\"N/A\",0,1)","v":"N/A"},{"$f":"_xlfn.XLOOKUP($E62,'Activity 6'!$B$32:$B$38,'Activity 6'!G$32:G$38,\"N/A\",0,1)","v":"N/A"},{"$f":"_xlfn.XLOOKUP($E62,'Activity 6'!$B$32:$B$38,'Activity 6'!H$32:H$38,\"N/A\",0,1)","v":"N/A"},{"$f":"_xlfn.XLOOKUP($E62,'Activity 6'!$B$32:$B$38,'Activity 6'!I$32:I$38,\"N/A\",0,1)","v":"N/A"},{"$f":"_xlfn.XLOOKUP($E62,'Activity 6'!$B$32:$B$38,'Activity 6'!J$32:J$38,\"N/A\",0,1)","v":"N/A"},{"$f":"_xlfn.XLOOKUP($E62,'Activity 6'!$B$32:$B$38,'Activity 6'!K$32:K$38,\"N/A\",0,1)","v":"N/A"},{"$f":"_xlfn.XLOOKUP($E62,'Activity 6'!$B$32:$B$38,'Activity 6'!M$32:M$38,\"N/A\",0,1)","v":"N/A"},{"$f":"_xlfn.XLOOKUP($E62,'Activity 7'!$B$7:$B$13,'Activity 7'!$A$7:$A$13,\"No\",0,1)","v":"No"},{"$f":"_xlfn.XLOOKUP($E62,'Activity 7'!$B$7:$B$13,'Activity 7'!M$7:M$13,\"N/A\",0,1)","v":"N/A"},{"$f":"_xlfn.XLOOKUP($E62,'Activity 7'!$B$7:$B$13,'Activity 7'!K$7:K$13,\"N/A\",0,1)","v":"N/A"},{"$f":"_xlfn.XLOOKUP($E62,'Activity 7'!$B$7:$B$13,'Activity 7'!N$7:N$13,\"N/A\",0,1)","v":"N/A"},{"$f":"_xlfn.XLOOKUP($E62,'Activity 7'!$B$7:$B$13,'Activity 7'!O$7:O$13,\"N/A\",0,1)","v":"N/A"},{"$f":"_xlfn.XLOOKUP($E62,'Activity 7'!$B$7:$B$13,'Activity 7'!P$7:P$13,\"N/A\",0,1)","v":"N/A"},{"$f":"_xlfn.XLOOKUP($E62,'Activity 7'!$B$7:$B$13,'Activity 7'!Q$7:Q$13,\"N/A\",0,1)","v":"N/A"},{"$f":"_xlfn.XLOOKUP($E62,'Activity 7'!$B$7:$B$13,'Activity 7'!R$7:R$13,\"N/A\",0,1)","v":"N/A"},{"$f":"_xlfn.XLOOKUP($E62,'Activity 7'!$B$7:$B$13,'Activity 7'!S$7:S$13,\"N/A\",0,1)","v":"N/A"},{"$f":"_xlfn.XLOOKUP($E62,'Activity 7'!$B$7:$B$13,'Activity 7'!T$7:T$13,\"N/A\",0,1)","v":"N/A"},{"$f":"_xlfn.XLOOKUP($E62,'Activity 7'!$B$7:$B$13,'Activity 7'!U$7:U$13,\"N/A\",0,1)","v":"N/A"},{"$f":"_xlfn.XLOOKUP($E62,'Activity 7'!$B$7:$B$13,'Activity 7'!V$7:V$13,\"N/A\",0,1)","v":"N/A"},{"$f":"_xlfn.XLOOKUP($E62,'Activity 7'!$B$17:$B$23,'Activity 7'!E$17:E$23,\"N/A\",0,1)","v":"N/A"},{"$f":"_xlfn.XLOOKUP($E62,'Activity 7'!$B$17:$B$23,'Activity 7'!G$17:G$23,\"N/A\",0,1)","v":"N/A"},{"$f":"_xlfn.XLOOKUP($E62,'Activity 7'!$B$17:$B$23,'Activity 7'!I$17:I$23,\"N/A\",0,1)","v":"N/A"},{"$f":"_xlfn.XLOOKUP($E62,'Activity 7'!$B$17:$B$23,'Activity 7'!J$17:J$23,\"N/A\",0,1)","v":"N/A"},{"$f":"_xlfn.XLOOKUP($E62,'Activity 7'!$B$17:$B$23,'Activity 7'!K$17:K$23,\"N/A\",0,1)","v":"N/A"},{"$f":"_xlfn.XLOOKUP($E62,'Activity 7'!$B$17:$B$23,'Activity 7'!L$17:L$23,\"N/A\",0,1)","v":"N/A"},{"$f":"_xlfn.XLOOKUP($E62,'Activity 7'!$B$17:$B$23,'Activity 7'!M$17:M$23,\"N/A\",0,1)","v":"N/A"},{"$f":"_xlfn.XLOOKUP($E62,'Activity 7'!$B$17:$B$23,'Activity 7'!N$17:N$23,\"N/A\",0,1)","v":"N/A"},{"$f":"_xlfn.XLOOKUP($E62,'Activity 7'!$B$17:$B$23,'Activity 7'!P$17:P$23,\"N/A\",0,1)","v":"N/A"},{"$f":"_xlfn.XLOOKUP($E62,'Activity 8'!$B$7:$B$13,'Activity 8'!A$7:A$13,\"No\",0,1)","v":"No"},{"$f":"_xlfn.XLOOKUP($E62,'Activity 8'!$B$7:$B$13,'Activity 8'!I$7:I$13,\"N/A\",0,1)","v":"N/A"},{"$f":"_xlfn.XLOOKUP($E62,'Activity 8'!$B$7:$B$13,'Activity 8'!J$7:J$13,\"N/A\",0,1)","v":"N/A"},{"$f":"_xlfn.XLOOKUP($E62,'Activity 8'!$B$7:$B$13,'Activity 8'!K$7:K$13,\"N/A\",0,1)","v":"N/A"},{"$f":"_xlfn.XLOOKUP($E62,'Activity 8'!$B$7:$B$13,'Activity 8'!L$7:L$13,\"N/A\",0,1)","v":"N/A"},{"$f":"_xlfn.XLOOKUP($E62,'Activity 8'!$B$7:$B$13,'Activity 8'!M$7:M$13,\"N/A\",0,1)","v":"N/A"},{"$f":"_xlfn.XLOOKUP($E62,'Activity 8'!$B$7:$B$13,'Activity 8'!N$7:N$13,\"N/A\",0,1)","v":"N/A"},{"$f":"_xlfn.XLOOKUP($E62,'Activity 8'!$B$7:$B$13,'Activity 8'!O$7:O$13,\"N/A\",0,1)","v":"N/A"},{"$f":"_xlfn.XLOOKUP($E62,'Activity 8'!$B$7:$B$13,'Activity 8'!P$7:P$13,\"N/A\",0,1)","v":"N/A"},{"$f":"_xlfn.XLOOKUP($E62,'Activity 8'!$B$7:$B$13,'Activity 8'!Q$7:Q$13,\"N/A\",0,1)","v":"N/A"},{"$f":"_xlfn.XLOOKUP($E62,'Activity 8'!$B$7:$B$13,'Activity 8'!R$7:R$13,\"N/A\",0,1)","v":"N/A"},{"$f":"_xlfn.XLOOKUP($E62,'Activity 8'!$B$7:$B$13,'Activity 8'!S$7:S$13,\"N/A\",0,1)","v":"N/A"},{"$f":"_xlfn.XLOOKUP($E62,'Activity 8'!$B$7:$B$13,'Activity 8'!T$7:T$13,\"N/A\",0,1)","v":"N/A"},{"$f":"_xlfn.XLOOKUP($E62,'Activity 8'!$B$7:$B$13,'Activity 8'!U$7:U$13,\"N/A\",0,1)","v":"N/A"},{"$f":"_xlfn.XLOOKUP($E62,'Activity 8'!$B$7:$B$13,'Activity 8'!V$7:V$13,\"N/A\",0,1)","v":"N/A"},{"$f":"_xlfn.XLOOKUP($E62,'Activity 8'!$B$17:$B$23,'Activity 8'!D$17:D$23,\"N/A\",0,1)","v":"N/A"},{"$f":"_xlfn.XLOOKUP($E62,'Activity 8'!$B$17:$B$23,'Activity 8'!E$17:E$23,\"N/A\",0,1)","v":"N/A"},{"$f":"_xlfn.XLOOKUP($E62,'Activity 8'!$B$17:$B$23,'Activity 8'!F$17:F$23,\"N/A\",0,1)","v":"N/A"},{"$f":"_xlfn.XLOOKUP($E62,'Activity 8'!$B$17:$B$23,'Activity 8'!G$17:G$23,\"N/A\",0,1)","v":"N/A"},{"$f":"_xlfn.XLOOKUP($E62,'Activity 8'!$B$17:$B$23,'Activity 8'!H$17:H$23,\"N/A\",0,1)","v":"N/A"},{"$f":"_xlfn.XLOOKUP($E62,'Activity 8'!$B$17:$B$23,'Activity 8'!I$17:I$23,\"N/A\",0,1)","v":"N/A"},{"$f":"_xlfn.XLOOKUP($E62,'Activity 8'!$B$17:$B$23,'Activity 8'!J$17:J$23,\"N/A\",0,1)","v":"N/A"},{"$f":"_xlfn.XLOOKUP($E62,'Activity 8'!$B$17:$B$23,'Activity 8'!K$17:K$23,\"N/A\",0,1)","v":"N/A"},{"$f":"_xlfn.XLOOKUP($E62,'Activity 8'!$B$17:$B$23,'Activity 8'!L$17:L$23,\"N/A\",0,1)","v":"N/A"},{"$f":"_xlfn.XLOOKUP($E62,'Activity 8'!$B$17:$B$23,'Activity 8'!M$17:M$23,\"N/A\",0,1)","v":"N/A"},{"$f":"_xlfn.XLOOKUP($E62,'Activity 8'!$B$17:$B$23,'Activity 8'!N$17:N$23,\"N/A\",0,1)","v":"N/A"},{"$f":"_xlfn.XLOOKUP($E62,'Activity 8'!$B$17:$B$23,'Activity 8'!P$17:P$23,\"N/A\",0,1)","v":"N/A"},{"$f":"_xlfn.XLOOKUP(E62,'Activity 9'!$B$7:$B$13,'Activity 9'!$A$7:$A$13,\"No\",0,1)","v":"No"},{"$f":"_xlfn.XLOOKUP($E62,'Activity 9'!$B$7:$B$13,'Activity 9'!J$7:J$13,\"N/A\",0,1)","v":"N/A"},{"$f":"_xlfn.XLOOKUP($E62,'Activity 9'!$B$7:$B$13,'Activity 9'!K$7:K$13,\"N/A\",0,1)","v":"N/A"},{"$f":"_xlfn.XLOOKUP($E62,'Activity 9'!$B$7:$B$13,'Activity 9'!L$7:L$13,\"N/A\",0,1)","v":"N/A"},{"$f":"_xlfn.XLOOKUP($E62,'Activity 9'!$B$7:$B$13,'Activity 9'!M$7:M$13,\"N/A\",0,1)","v":"N/A"},{"$f":"_xlfn.XLOOKUP($E62,'Activity 9'!$B$7:$B$13,'Activity 9'!N$7:N$13,\"N/A\",0,1)","v":"N/A"},{"$f":"_xlfn.XLOOKUP($E62,'Activity 9'!$B$7:$B$13,'Activity 9'!O$7:O$13,\"N/A\",0,1)","v":"N/A"},{"$f":"_xlfn.XLOOKUP($E62,'Activity 9'!$B$7:$B$13,'Activity 9'!P$7:P$13,\"N/A\",0,1)","v":"N/A"},{"$f":"_xlfn.XLOOKUP($E62,'Activity 9'!$B$7:$B$13,'Activity 9'!Q$7:Q$13,\"N/A\",0,1)","v":"N/A"},{"$f":"_xlfn.XLOOKUP($E62,'Activity 9'!$B$7:$B$13,'Activity 9'!R$7:R$13,\"N/A\",0,1)","v":"N/A"},{"$f":"_xlfn.XLOOKUP($E62,'Activity 9'!$B$7:$B$13,'Activity 9'!S$7:S$13,\"N/A\",0,1)","v":"N/A"},{"$f":"_xlfn.XLOOKUP($E62,'Activity 9'!$B$7:$B$13,'Activity 9'!T$7:T$13,\"N/A\",0,1)","v":"N/A"},{"$f":"_xlfn.XLOOKUP($E62,'Activity 9'!$B$17:$B$23,'Activity 9'!E$17:E$23,\"N/A\",0,1)","v":"N/A"},{"$f":"_xlfn.XLOOKUP($E62,'Activity 9'!$B$17:$B$23,'Activity 9'!F$17:F$23,\"N/A\",0,1)","v":"N/A"},{"$f":"_xlfn.XLOOKUP($E62,'Activity 9'!$B$17:$B$23,'Activity 9'!G$17:G$23,\"N/A\",0,1)","v":"N/A"},{"$f":"_xlfn.XLOOKUP($E62,'Activity 9'!$B$17:$B$23,'Activity 9'!H$17:H$23,\"N/A\",0,1)","v":"N/A"},{"$f":"_xlfn.XLOOKUP($E62,'Activity 9'!$B$17:$B$23,'Activity 9'!I$17:I$23,\"N/A\",0,1)","v":"N/A"},{"$f":"_xlfn.XLOOKUP($E62,'Activity 9'!$B$17:$B$23,'Activity 9'!J$17:J$23,\"N/A\",0,1)","v":"N/A"},{"$f":"_xlfn.XLOOKUP($E62,'Activity 9'!$B$17:$B$23,'Activity 9'!K$17:K$23,\"N/A\",0,1)","v":"N/A"},{"$f":"_xlfn.XLOOKUP($E62,'Activity 9'!$B$17:$B$23,'Activity 9'!L$17:L$23,\"N/A\",0,1)","v":"N/A"},{"$f":"_xlfn.XLOOKUP($E62,'Activity 9'!$B$17:$B$23,'Activity 9'!N$17:N$23,\"N/A\",0,1)","v":"N/A"},{"$f":"_xlfn.XLOOKUP($E62,'Activity 9'!$B$17:$B$23,'Activity 9'!O$17:O$23,\"N/A\",0,1)","v":"N/A"},{"$f":"_xlfn.XLOOKUP($E62,'Activity 9'!$B$17:$B$23,'Activity 9'!Q$17:Q$23,\"N/A\",0,1)","v":"N/A"},{"$f":"_xlfn.XLOOKUP($E62,'Activity 10'!$B$7:$B$13,'Activity 10'!A$7:A$13,\"No\",0,1)","v":"No"},{"$f":"_xlfn.XLOOKUP($E62,'Activity 10'!$B$7:$B$13,'Activity 10'!J$7:J$13,\"N/A\",0,1)","v":"N/A"},{"$f":"_xlfn.XLOOKUP($E62,'Activity 10'!$B$7:$B$13,'Activity 10'!K$7:K$13,\"N/A\",0,1)","v":"N/A"},{"$f":"_xlfn.XLOOKUP($E62,'Activity 10'!$B$7:$B$13,'Activity 10'!L$7:L$13,\"N/A\",0,1)","v":"N/A"},{"$f":"_xlfn.XLOOKUP($E62,'Activity 10'!$B$7:$B$13,'Activity 10'!M$7:M$13,\"N/A\",0,1)","v":"N/A"},{"$f":"_xlfn.XLOOKUP($E62,'Activity 10'!$B$7:$B$13,'Activity 10'!N$7:N$13,\"N/A\",0,1)","v":"N/A"},{"$f":"_xlfn.XLOOKUP($E62,'Activity 10'!$B$7:$B$13,'Activity 10'!O$7:O$13,\"N/A\",0,1)","v":"N/A"},{"$f":"_xlfn.XLOOKUP($E62,'Activity 10'!$B$7:$B$13,'Activity 10'!P$7:P$13,\"N/A\",0,1)","v":"N/A"},{"$f":"_xlfn.XLOOKUP($E62,'Activity 10'!$B$7:$B$13,'Activity 10'!Q$7:Q$13,\"N/A\",0,1)","v":"N/A"},{"$f":"_xlfn.XLOOKUP($E62,'Activity 10'!$B$7:$B$13,'Activity 10'!R$7:R$13,\"N/A\",0,1)","v":"N/A"},{"$f":"_xlfn.XLOOKUP($E62,'Activity 10'!$B$7:$B$13,'Activity 10'!S$7:S$13,\"N/A\",0,1)","v":"N/A"},{"$f":"_xlfn.XLOOKUP($E62,'Activity 10'!$B$7:$B$13,'Activity 10'!T$7:T$13,\"N/A\",0,1)","v":"N/A"},{"$f":"_xlfn.XLOOKUP($E62,'Activity 10'!$B$7:$B$13,'Activity 10'!U$7:U$13,\"N/A\",0,1)","v":"N/A"},{"$f":"_xlfn.XLOOKUP($E62,'Activity 10'!$B$7:$B$13,'Activity 10'!V$7:V$13,\"N/A\",0,1)","v":"N/A"},{"$f":"_xlfn.XLOOKUP($E62,'Activity 10'!$B$17:$B$23,'Activity 10'!E$17:E$23,\"N/A\",0,1)","v":"N/A"},{"$f":"_xlfn.XLOOKUP($E62,'Activity 10'!$B$17:$B$23,'Activity 10'!F$17:F$23,\"N/A\",0,1)","v":"N/A"},{"$f":"_xlfn.XLOOKUP($E62,'Activity 10'!$B$17:$B$23,'Activity 10'!G$17:G$23,\"N/A\",0,1)","v":"N/A"},{"$f":"_xlfn.XLOOKUP($E62,'Activity 10'!$B$17:$B$23,'Activity 10'!H$17:H$23,\"N/A\",0,1)","v":"N/A"},{"$f":"_xlfn.XLOOKUP($E62,'Activity 10'!$B$17:$B$23,'Activity 10'!I$17:I$23,\"N/A\",0,1)","v":"N/A"},{"$f":"_xlfn.XLOOKUP($E62,'Activity 10'!$B$17:$B$23,'Activity 10'!J$17:J$23,\"N/A\",0,1)","v":"N/A"},{"$f":"_xlfn.XLOOKUP($E62,'Activity 10'!$B$17:$B$23,'Activity 10'!K$17:K$23,\"N/A\",0,1)","v":"N/A"},{"$f":"_xlfn.XLOOKUP($E62,'Activity 10'!$B$17:$B$23,'Activity 10'!L$17:L$23,\"N/A\",0,1)","v":"N/A"},{"$f":"_xlfn.XLOOKUP($E62,'Activity 10'!$B$17:$B$23,'Activity 10'!M$17:M$23,\"N/A\",0,1)","v":"N/A"},{"$f":"_xlfn.XLOOKUP($E62,'Activity 10'!$B$17:$B$23,'Activity 10'!N$17:N$23,\"N/A\",0,1)","v":"N/A"},{"$f":"_xlfn.XLOOKUP($E62,'Activity 10'!$B$17:$B$23,'Activity 10'!P$17:P$23,\"N/A\",0,1)","v":"N/A"},{"$f":"_xlfn.XLOOKUP($E62,'Competitive Activity 1'!B$7:B$13,'Competitive Activity 1'!A$7:A$13,\"No\",0,1)","v":"No"},{"$f":"_xlfn.XLOOKUP($E62,'Competitive Activity 1'!$B$7:$B$13,'Competitive Activity 1'!H$7:H$13,\"N/A\",0,1)","v":"N/A"},{"$f":"_xlfn.XLOOKUP($E62,'Competitive Activity 1'!$B$7:$B$13,'Competitive Activity 1'!I$7:I$13,\"N/A\",0,1)","v":"N/A"},{"$f":"_xlfn.XLOOKUP($E62,'Competitive Activity 1'!$B$7:$B$13,'Competitive Activity 1'!J$7:J$13,\"N/A\",0,1)","v":"N/A"},{"$f":"_xlfn.XLOOKUP($E62,'Competitive Activity 1'!$B$7:$B$13,'Competitive Activity 1'!K$7:K$13,\"N/A\",0,1)","v":"N/A"},{"$f":"_xlfn.XLOOKUP($E62,'Competitive Activity 1'!$B$7:$B$13,'Competitive Activity 1'!L$7:L$13,\"N/A\",0,1)","v":"N/A"},{"$f":"_xlfn.XLOOKUP($E62,'Competitive Activity 1'!$B$7:$B$13,'Competitive Activity 1'!M$7:M$13,\"N/A\",0,1)","v":"N/A"},{"$f":"_xlfn.XLOOKUP($E62,'Competitive Activity 1'!$B$7:$B$13,'Competitive Activity 1'!N$7:N$13,\"N/A\",0,1)","v":"N/A"},{"$f":"_xlfn.XLOOKUP($E62,'Competitive Activity 1'!$B$7:$B$13,'Competitive Activity 1'!O$7:O$13,\"N/A\",0,1)","v":"N/A"},{"$f":"_xlfn.XLOOKUP($E62,'Competitive Activity 1'!$B$7:$B$13,'Competitive Activity 1'!P$7:P$13,\"N/A\",0,1)","v":"N/A"},{"$f":"_xlfn.XLOOKUP($E62,'Competitive Activity 1'!$B$7:$B$13,'Competitive Activity 1'!Q$7:Q$13,\"N/A\",0,1)","v":"N/A"},{"$f":"_xlfn.XLOOKUP($E62,'Competitive Activity 1'!$B$7:$B$13,'Competitive Activity 1'!R$7:R$13,\"N/A\",0,1)","v":"N/A"},{"$f":"_xlfn.XLOOKUP($E62,'Competitive Activity 1'!$B$7:$B$13,'Competitive Activity 1'!S$7:S$13,\"N/A\",0,1)","v":"N/A"},{"$f":"_xlfn.XLOOKUP($E62,'Competitive Activity 1'!$B$7:$B$13,'Competitive Activity 1'!T$7:T$13,\"N/A\",0,1)","v":"N/A"},{"$f":"_xlfn.XLOOKUP($E62,'Competitive Activity 1'!$B$7:$B$13,'Competitive Activity 1'!U$7:U$13,\"N/A\",0,1)","v":"N/A"},{"$f":"_xlfn.XLOOKUP($E62,'Competitive Activity 1'!$B$17:$B$23,'Competitive Activity 1'!C$17:C$23,\"N/A\",0,1)","v":"N/A"},{"$f":"_xlfn.XLOOKUP($E62,'Competitive Activity 1'!$B$17:$B$23,'Competitive Activity 1'!D$17:D$23,\"N/A\",0,1)","v":"N/A"},{"$f":"_xlfn.XLOOKUP($E62,'Competitive Activity 1'!$B$17:$B$23,'Competitive Activity 1'!E$17:E$23,\"N/A\",0,1)","v":"N/A"},{"$f":"_xlfn.XLOOKUP($E62,'Competitive Activity 1'!$B$17:$B$23,'Competitive Activity 1'!F$17:F$23,\"N/A\",0,1)","v":"N/A"},{"$f":"_xlfn.XLOOKUP($E62,'Competitive Activity 1'!$B$17:$B$23,'Competitive Activity 1'!G$17:G$23,\"N/A\",0,1)","v":"N/A"},{"$f":"_xlfn.XLOOKUP($E62,'Competitive Activity 1'!$B$17:$B$23,'Competitive Activity 1'!H$17:H$23,\"N/A\",0,1)","v":"N/A"},{"$f":"_xlfn.XLOOKUP($E62,'Competitive Activity 1'!$B$17:$B$23,'Competitive Activity 1'!I$17:I$23,\"N/A\",0,1)","v":"N/A"},{"$f":"_xlfn.XLOOKUP($E62,'Competitive Activity 1'!$B$17:$B$23,'Competitive Activity 1'!J$17:J$23,\"N/A\",0,1)","v":"N/A"},{"$f":"_xlfn.XLOOKUP($E62,'Competitive Activity 1'!$B$17:$B$23,'Competitive Activity 1'!K$17:K$23,\"N/A\",0,1)","v":"N/A"},{"$f":"_xlfn.XLOOKUP($E62,'Competitive Activity 1'!$B$17:$B$23,'Competitive Activity 1'!M$17:M$23,\"N/A\",0,1)","v":"N/A"},{"$f":"_xlfn.XLOOKUP($E62,'Competitive Activity 1'!$B$17:$B$23,'Competitive Activity 1'!N$17:N$23,\"N/A\",0,1)","v":"N/A"},{"$f":"_xlfn.XLOOKUP($E62,'Competitive Activity 1'!$B$17:$B$23,'Competitive Activity 1'!P$17:P$23,\"N/A\",0,1)","v":"N/A"},{"$f":"_xlfn.XLOOKUP($E62,'Competitive Activity 2'!$B$7:$B$13,'Competitive Activity 2'!A$7:A$13,\"No\",0)","v":"No"},{"$f":"_xlfn.XLOOKUP($E62,'Competitive Activity 2'!$B$7:$B$13,'Competitive Activity 2'!L$7:L$13,\"N/A\",0)","v":"N/A"},{"$f":"_xlfn.XLOOKUP($E62,'Competitive Activity 2'!$B$7:$B$13,'Competitive Activity 2'!M$7:M$13,\"N/A\",0)","v":"N/A"},{"$f":"_xlfn.XLOOKUP($E62,'Competitive Activity 2'!$B$7:$B$13,'Competitive Activity 2'!N$7:N$13,\"N/A\",0)","v":"N/A"},{"$f":"_xlfn.XLOOKUP($E62,'Competitive Activity 2'!$B$7:$B$13,'Competitive Activity 2'!O$7:O$13,\"N/A\",0)","v":"N/A"},{"$f":"_xlfn.XLOOKUP($E62,'Competitive Activity 2'!$B$7:$B$13,'Competitive Activity 2'!P$7:P$13,\"N/A\",0)","v":"N/A"},{"$f":"_xlfn.XLOOKUP($E62,'Competitive Activity 2'!$B$7:$B$13,'Competitive Activity 2'!Q$7:Q$13,\"N/A\",0)","v":"N/A"},{"$f":"_xlfn.XLOOKUP($E62,'Competitive Activity 2'!$B$7:$B$13,'Competitive Activity 2'!R$7:R$13,\"N/A\",0)","v":"N/A"},{"$f":"_xlfn.XLOOKUP($E62,'Competitive Activity 2'!$B$7:$B$13,'Competitive Activity 2'!S$7:S$13,\"N/A\",0)","v":"N/A"},{"$f":"_xlfn.XLOOKUP($E62,'Competitive Activity 2'!$B$7:$B$13,'Competitive Activity 2'!T$7:T$13,\"N/A\",0)","v":"N/A"},{"$f":"_xlfn.XLOOKUP($E62,'Competitive Activity 2'!$B$7:$B$13,'Competitive Activity 2'!U$7:U$13,\"N/A\",0)","v":"N/A"},{"$f":"_xlfn.XLOOKUP($E62,'Competitive Activity 2'!$B$17:$B$23,'Competitive Activity 2'!D$17:D$23,\"N/A\",0)","v":"N/A"},{"$f":"_xlfn.XLOOKUP($E62,'Competitive Activity 2'!$B$17:$B$23,'Competitive Activity 2'!E$17:E$23,\"N/A\",0)","v":"N/A"},{"$f":"_xlfn.XLOOKUP($E62,'Competitive Activity 2'!$B$17:$B$23,'Competitive Activity 2'!F$17:F$23,\"N/A\",0)","v":"N/A"},{"$f":"_xlfn.XLOOKUP($E62,'Competitive Activity 2'!$B$17:$B$23,'Competitive Activity 2'!G$17:G$23,\"N/A\",0)","v":"N/A"},{"$f":"_xlfn.XLOOKUP($E62,'Competitive Activity 2'!$B$17:$B$23,'Competitive Activity 2'!H$17:H$23,\"N/A\",0)","v":"N/A"},{"$f":"_xlfn.XLOOKUP($E62,'Competitive Activity 2'!$B$17:$B$23,'Competitive Activity 2'!I$17:I$23,\"N/A\",0)","v":"N/A"},{"$f":"_xlfn.XLOOKUP($E62,'Competitive Activity 2'!$B$17:$B$23,'Competitive Activity 2'!J$17:J$23,\"N/A\",0)","v":"N/A"},{"$f":"_xlfn.XLOOKUP($E62,'Competitive Activity 2'!$B$17:$B$23,'Competitive Activity 2'!K$17:K$23,\"N/A\",0)","v":"N/A"},{"$f":"_xlfn.XLOOKUP($E62,'Competitive Activity 2'!$B$17:$B$23,'Competitive Activity 2'!L$17:L$23,\"N/A\",0)","v":"N/A"},{"$f":"_xlfn.XLOOKUP($E62,'Competitive Activity 2'!$B$17:$B$23,'Competitive Activity 2'!M$17:M$23,\"N/A\",0)","v":"N/A"},{"$f":"_xlfn.XLOOKUP($E62,'Competitive Activity 2'!$B$17:$B$23,'Competitive Activity 2'!N$17:N$23,\"N/A\",0)","v":"N/A"},{"$f":"_xlfn.XLOOKUP($E62,'Competitive Activity 2'!$B$27:$B$33,'Competitive Activity 2'!D$27:D$33,\"N/A\",0)","v":"N/A"},{"$f":"_xlfn.XLOOKUP($E62,'Competitive Activity 2'!$B$27:$B$33,'Competitive Activity 2'!E$27:E$33,\"N/A\",0)","v":"N/A"},{"$f":"_xlfn.XLOOKUP($E62,'Competitive Activity 2'!$B$27:$B$33,'Competitive Activity 2'!F$27:F$33,\"N/A\",0)","v":"N/A"},{"$f":"_xlfn.XLOOKUP($E62,'Competitive Activity 2'!$B$27:$B$33,'Competitive Activity 2'!G$27:G$33,\"N/A\",0)","v":"N/A"},{"$f":"_xlfn.XLOOKUP($E62,'Competitive Activity 2'!$B$27:$B$33,'Competitive Activity 2'!H$27:H$33,\"N/A\",0)","v":"N/A"},{"$f":"_xlfn.XLOOKUP($E62,'Competitive Activity 2'!$B$27:$B$33,'Competitive Activity 2'!I$27:I$33,\"N/A\",0)","v":"N/A"},{"$f":"_xlfn.XLOOKUP($E62,'Competitive Activity 2'!$B$27:$B$33,'Competitive Activity 2'!J$27:J$33,\"N/A\",0)","v":"N/A"},{"$f":"_xlfn.XLOOKUP($E62,'Competitive Activity 2'!$B$27:$B$33,'Competitive Activity 2'!K$27:K$33,\"N/A\",0)","v":"N/A"},{"$f":"_xlfn.XLOOKUP($E62,'Competitive Activity 2'!$B$27:$B$33,'Competitive Activity 2'!M$27:M$33,\"N/A\",0)","v":"N/A"}]
[{"$f":"'1-Cover Sheet'!$C$8","v":"Select One"},{"$f":"'1-Cover Sheet'!$F$8","v":"Select One"},{"$f":"'Summary Sheet'!$D$8","v":0},{"$f":"'Summary Sheet'!$D$10","v":0},{"$f":"'Drop Down Box'!B227","v":0},{"$f":"'Drop Down Box'!C227","v":0},{"$f":"'Drop Down Box'!D227","v":"Select One"},{"$f":"_xlfn.XLOOKUP(E63,'Drop Down Box'!$B$166:$B$249,'Drop Down Box'!$A$166:$A$249,\"Unknown\",0)","v":"Activity 1"},{"$f":"_xlfn.XLOOKUP($E63,'Activity 9'!$B$17:$B$23,'Activity 9'!$M$17:$M$23,\"N/A\",0)","v":"N/A"},{"$f":"_xlfn.XLOOKUP($E63,'Activity 9'!$B$17:$B$23,'Activity 9'!$P$17:$P$23,\"N/A\",0)","v":"N/A"},{"$f":"_xlfn.XLOOKUP($E63,'Activity 9'!$B$7:$B$13,'Activity 9'!G$7:G$13,\"N/A\",0)","v":"N/A"},{"$f":"_xlfn.XLOOKUP($E63,'Activity 9'!$B$7:$B$13,'Activity 9'!H$7:H$13,\"N/A\",0)","v":"N/A"},{"$f":"_xlfn.XLOOKUP($E63,'Activity 9'!$B$7:$B$13,'Activity 9'!I$7:I$13,\"N/A\",0)","v":"N/A"},{"$f":"_xlfn.XLOOKUP($E63,'Activity 1'!$B$7:$B$13,'Activity 1'!$A$7:$A$13,\"No\",0,1)","v":"No"},{"$f":"_xlfn.XLOOKUP($E63,'Activity 1'!$B$7:$B$13,'Activity 1'!$H$7:$H$13,\"N/A\",0,1)","v":"N/A"},{"$f":"_xlfn.XLOOKUP($E63,'Activity 1'!$B$7:$B$13,'Activity 1'!I$7:I$13,\"N/A\",0,1)","v":"N/A"},{"$f":"_xlfn.XLOOKUP($E63,'Activity 1'!$B$7:$B$13,'Activity 1'!J$7:J$13,\"N/A\",0,1)","v":"N/A"},{"$f":"_xlfn.XLOOKUP($E63,'Activity 1'!$B$7:$B$13,'Activity 1'!K$7:K$13,\"N/A\",0,1)","v":"N/A"},{"$f":"_xlfn.XLOOKUP($E63,'Activity 1'!$B$7:$B$13,'Activity 1'!L$7:L$13,\"N/A\",0,1)","v":"N/A"},{"$f":"_xlfn.XLOOKUP($E63,'Activity 1'!$B$7:$B$13,'Activity 1'!M$7:M$13,\"N/A\",0,1)","v":"N/A"},{"$f":"_xlfn.XLOOKUP($E63,'Activity 1'!$B$7:$B$13,'Activity 1'!N$7:N$13,\"N/A\",0,1)","v":"N/A"},0,{"$f":"_xlfn.XLOOKUP($E63,'Activity 1'!$B$7:$B$13,'Activity 1'!O$7:O$13,\"N/A\",0,1)","v":"N/A"},{"$f":"_xlfn.XLOOKUP($E63,'Activity 1'!$B$7:$B$13,'Activity 1'!P$7:P$13,\"N/A\",0,1)","v":"N/A"},{"$f":"_xlfn.XLOOKUP($E63,'Activity 1'!$B$7:$B$13,'Activity 1'!Q$7:Q$13,\"N/A\",0,1)","v":"N/A"},{"$f":"_xlfn.XLOOKUP($E63,'Activity 1'!$B$7:$B$13,'Activity 1'!R$7:R$13,\"N/A\",0,1)","v":"N/A"},{"$f":"_xlfn.XLOOKUP($E63,'Activity 1'!$B$7:$B$13,'Activity 1'!S$7:S$13,\"N/A\",0,1)","v":"N/A"},{"$f":"_xlfn.XLOOKUP($E63,'Activity 1'!$B$7:$B$13,'Activity 1'!T$7:T$13,\"N/A\",0,1)","v":"N/A"},{"$f":"_xlfn.XLOOKUP($E63,'Activity 1'!$B$7:$B$13,'Activity 1'!U$7:U$13,\"N/A\",0,1)","v":"N/A"},{"$f":"_xlfn.XLOOKUP($E63,'Activity 1'!$B$7:$B$13,'Activity 1'!V$7:V$13,\"N/A\",0,1)","v":"N/A"},{"$f":"_xlfn.XLOOKUP($E63,'Activity 1'!$B$17:$B$23,'Activity 1'!C$17:C$23,\"N/A\",0,1)","v":"N/A"},{"$f":"_xlfn.XLOOKUP($E63,'Activity 1'!$B$17:$B$23,'Activity 1'!D$17:D$23,\"N/A\",0,1)","v":"N/A"},{"$f":"_xlfn.XLOOKUP($E63,'Activity 1'!$B$17:$B$23,'Activity 1'!E$17:E$23,\"N/A\",0,1)","v":"N/A"},{"$f":"_xlfn.XLOOKUP($E63,'Activity 1'!$B$17:$B$23,'Activity 1'!F$17:F$23,\"N/A\",0,1)","v":"N/A"},{"$f":"_xlfn.XLOOKUP($E63,'Activity 1'!$B$17:$B$23,'Activity 1'!G$17:G$23,\"N/A\",0,1)","v":"N/A"},{"$f":"_xlfn.XLOOKUP($E63,'Activity 1'!$B$17:$B$23,'Activity 1'!H$17:H$23,\"N/A\",0,1)","v":"N/A"},{"$f":"_xlfn.XLOOKUP($E63,'Activity 1'!$B$17:$B$23,'Activity 1'!I$17:I$23,\"N/A\",0,1)","v":"N/A"},{"$f":"_xlfn.XLOOKUP($E63,'Activity 1'!$B$17:$B$23,'Activity 1'!J$17:J$23,\"N/A\",0,1)","v":"N/A"},{"$f":"_xlfn.XLOOKUP($E63,'Activity 1'!$B$17:$B$23,'Activity 1'!K$17:K$23,\"N/A\",0,1)","v":"N/A"},{"$f":"_xlfn.XLOOKUP($E63,'Activity 1'!$B$17:$B$23,'Activity 1'!L$17:L$23,\"N/A\",0,1)","v":"N/A"},{"$f":"_xlfn.XLOOKUP($E63,'Activity 1'!$B$17:$B$23,'Activity 1'!M$17:M$23,\"N/A\",0,1)","v":"N/A"},{"$f":"_xlfn.XLOOKUP($E63,'Activity 1'!$B$17:$B$23,'Activity 1'!O$17:O$23,\"N/A\",0,1)","v":"N/A"},{"$f":"_xlfn.XLOOKUP($E63,'Activity 1'!$B$17:$B$23,'Activity 1'!Q$17:Q$23,\"N/A\",0,1)","v":"N/A"},{"$f":"_xlfn.XLOOKUP($E63,'Activity 2'!$B$7:$B$13,'Activity 2'!$A$7:$A$13,\"No\",0,1)","v":"No"},{"$f":"_xlfn.XLOOKUP($E63,'Activity 2'!B$7:B$13,'Activity 2'!H$7:H$13,\"N/A\",0)","v":"N/A"},{"$f":"_xlfn.XLOOKUP($E63,'Activity 2'!C$7:C$13,'Activity 2'!I$7:I$13,\"N/A\",0)","v":"N/A"},{"$f":"_xlfn.XLOOKUP($E63,'Activity 2'!D$7:D$13,'Activity 2'!J$7:J$13,\"N/A\",0)","v":"N/A"},{"$f":"_xlfn.XLOOKUP($E63,'Activity 2'!E$7:E$13,'Activity 2'!K$7:K$13,\"N/A\",0)","v":"N/A"},{"$f":"_xlfn.XLOOKUP($E63,'Activity 2'!F$7:F$13,'Activity 2'!L$7:L$13,\"N/A\",0)","v":"N/A"},{"$f":"_xlfn.XLOOKUP($E63,'Activity 2'!G$7:G$13,'Activity 2'!M$7:M$13,\"N/A\",0)","v":"N/A"},{"$f":"_xlfn.XLOOKUP($E63,'Activity 2'!H$7:H$13,'Activity 2'!N$7:N$13,\"N/A\",0)","v":"N/A"},{"$f":"_xlfn.XLOOKUP($E63,'Activity 2'!I$7:I$13,'Activity 2'!O$7:O$13,\"N/A\",0)","v":"N/A"},{"$f":"_xlfn.XLOOKUP($E63,'Activity 2'!J$7:J$13,'Activity 2'!P$7:P$13,\"N/A\",0)","v":"N/A"},{"$f":"_xlfn.XLOOKUP($E63,'Activity 2'!K$7:K$13,'Activity 2'!Q$7:Q$13,\"N/A\",0)","v":"N/A"},{"$f":"_xlfn.XLOOKUP($E63,'Activity 2'!L$7:L$13,'Activity 2'!R$7:R$13,\"N/A\",0)","v":"N/A"},{"$f":"_xlfn.XLOOKUP($E63,'Activity 2'!M$7:M$13,'Activity 2'!S$7:S$13,\"N/A\",0)","v":"N/A"},{"$f":"_xlfn.XLOOKUP($E63,'Activity 2'!N$7:N$13,'Activity 2'!T$7:T$13,\"N/A\",0)","v":"N/A"},{"$f":"_xlfn.XLOOKUP($E63,'Activity 2'!O$7:O$13,'Activity 2'!U$7:U$13,\"N/A\",0)","v":"N/A"},{"$f":"_xlfn.XLOOKUP($E63,'Activity 2'!P$7:P$13,'Activity 2'!V$7:V$13,\"N/A\",0)","v":"N/A"},{"$f":"_xlfn.XLOOKUP($E63,'Activity 2'!$B$17:$B$23,'Activity 2'!C$17:C$23,\"N/A\",0,1)","v":"N/A"},{"$f":"_xlfn.XLOOKUP($E63,'Activity 2'!$B$17:$B$23,'Activity 2'!D$17:D$23,\"N/A\",0,1)","v":"N/A"},{"$f":"_xlfn.XLOOKUP($E63,'Activity 2'!$B$17:$B$23,'Activity 2'!E$17:E$23,\"N/A\",0,1)","v":"N/A"},{"$f":"_xlfn.XLOOKUP($E63,'Activity 2'!$B$17:$B$23,'Activity 2'!F$17:F$23,\"N/A\",0,1)","v":"N/A"},{"$f":"_xlfn.XLOOKUP($E63,'Activity 2'!$B$17:$B$23,'Activity 2'!G$17:G$23,\"N/A\",0,1)","v":"N/A"},{"$f":"_xlfn.XLOOKUP($E63,'Activity 2'!$B$17:$B$23,'Activity 2'!H$17:H$23,\"N/A\",0,1)","v":"N/A"},{"$f":"_xlfn.XLOOKUP($E63,'Activity 2'!$B$17:$B$23,'Activity 2'!I$17:I$23,\"N/A\",0,1)","v":"N/A"},{"$f":"_xlfn.XLOOKUP($E63,'Activity 2'!$B$17:$B$23,'Activity 2'!J$17:J$23,\"N/A\",0,1)","v":"N/A"},{"$f":"_xlfn.XLOOKUP($E63,'Activity 2'!$B$17:$B$23,'Activity 2'!K$17:K$23,\"N/A\",0,1)","v":"N/A"},{"$f":"_xlfn.XLOOKUP($E63,'Activity 2'!$B$17:$B$23,'Activity 2'!L$17:L$23,\"N/A\",0,1)","v":"N/A"},{"$f":"_xlfn.XLOOKUP($E63,'Activity 2'!$B$17:$B$23,'Activity 2'!M$17:M$23,\"N/A\",0,1)","v":"N/A"},{"$f":"_xlfn.XLOOKUP($E63,'Activity 2'!$B$17:$B$23,'Activity 2'!O$17:O$23,\"N/A\",0,1)","v":"N/A"},{"$f":"_xlfn.XLOOKUP($E63,'Activity 2'!$B$17:$B$23,'Activity 2'!Q$17:Q$23,\"N/A\",0,1)","v":"N/A"},null,{"$f":"_xlfn.XLOOKUP($E63,'Activity 3'!$B$8:$B$14,'Activity 3'!K$8:K$14,\"N/A\",0,1)","v":"N/A"},{"$f":"_xlfn.XLOOKUP($E63,'Activity 3'!$B$8:$B$14,'Activity 3'!L$8:L$14,\"N/A\",0,1)","v":"N/A"},{"$f":"_xlfn.XLOOKUP($E63,'Activity 3'!$B$8:$B$14,'Activity 3'!M$8:M$14,\"N/A\",0,1)","v":"N/A"},{"$f":"_xlfn.XLOOKUP($E63,'Activity 3'!$B$8:$B$14,'Activity 3'!N$8:N$14,\"N/A\",0,1)","v":"N/A"},{"$f":"_xlfn.XLOOKUP($E63,'Activity 3'!$B$8:$B$14,'Activity 3'!O$8:O$14,\"N/A\",0,1)","v":"N/A"},{"$f":"_xlfn.XLOOKUP($E63,'Activity 3'!$B$8:$B$14,'Activity 3'!R$8:R$14,\"N/A\",0,1)","v":"N/A"},{"$f":"_xlfn.XLOOKUP($E63,'Activity 4'!$B$8:$B$14,'Activity 4'!$A$8:$A$14,\"No\",0,1)","v":"No"},{"$f":"_xlfn.XLOOKUP($E63,'Activity 4'!$B$8:$B$14,'Activity 4'!L$8:L$14,\"N/A\",0,1)","v":"N/A"},{"$f":"_xlfn.XLOOKUP($E63,'Activity 4'!$B$8:$B$14,'Activity 4'!I$8:I$14,\"N/A\",0,1)","v":"N/A"},{"$f":"_xlfn.XLOOKUP($E63,'Activity 4'!$B$8:$B$14,'Activity 4'!M$8:M$14,\"N/A\",0,1)","v":"N/A"},{"$f":"_xlfn.XLOOKUP($E63,'Activity 5'!$B$8:$B$14,'Activity 5'!$A$8:$A$14,\"No\",0,1)","v":"No"},{"$f":"_xlfn.XLOOKUP($E63,'Activity 5'!$B$8:$B$14,'Activity 5'!J$8:J$14,\"N/A\",0,1)","v":"N/A"},{"$f":"_xlfn.XLOOKUP($E63,'Activity 5'!$B$8:$B$14,'Activity 5'!K$8:K$14,\"N/A\",0,1)","v":"N/A"},{"$f":"_xlfn.XLOOKUP($E63,'Activity 5'!$B$8:$B$14,'Activity 5'!N$8:N$14,\"N/A\",0,1)","v":"N/A"},{"$f":"_xlfn.XLOOKUP($E63,'Activity 5'!$B$8:$B$14,'Activity 5'!O$8:O$14,\"N/A\",0,1)","v":"N/A"},{"$f":"_xlfn.XLOOKUP($E63,'Activity 5'!$B$8:$B$14,'Activity 5'!P$8:P$14,\"N/A\",0,1)","v":"N/A"},{"$f":"_xlfn.XLOOKUP($E63,'Activity 5'!$B$8:$B$14,'Activity 5'!Q$8:Q$14,\"N/A\",0,1)","v":"N/A"},{"$f":"_xlfn.XLOOKUP($E63,'Activity 5'!$B$8:$B$14,'Activity 5'!R$8:R$14,\"N/A\",0,1)","v":"N/A"},{"$f":"_xlfn.XLOOKUP($E63,'Activity 6'!$B$7:$B$13,'Activity 6'!A$7:A$13,\"No\",0,1)","v":"No"},{"$f":"_xlfn.XLOOKUP($E63,'Activity 6'!$B$7:$B$13,'Activity 6'!K$7:K$13,\"N/A\",0,1)","v":"N/A"},{"$f":"_xlfn.XLOOKUP($E63,'Activity 6'!$B$7:$B$13,'Activity 6'!L$7:L$13,\"N/A\",0,1)","v":"N/A"},{"$f":"_xlfn.XLOOKUP($E63,'Activity 6'!$B$7:$B$13,'Activity 6'!M$7:M$13,\"N/A\",0,1)","v":"N/A"},{"$f":"_xlfn.XLOOKUP($E63,'Activity 6'!$B$7:$B$13,'Activity 6'!N$7:N$13,\"N/A\",0,1)","v":"N/A"},{"$f":"_xlfn.XLOOKUP($E63,'Activity 6'!$B$7:$B$13,'Activity 6'!O$7:O$13,\"N/A\",0,1)","v":"N/A"},{"$f":"_xlfn.XLOOKUP($E63,'Activity 6'!$B$7:$B$13,'Activity 6'!P$7:P$13,\"N/A\",0,1)","v":"N/A"},{"$f":"_xlfn.XLOOKUP($E63,'Activity 6'!$B$7:$B$13,'Activity 6'!Q$7:Q$13,\"N/A\",0,1)","v":"N/A"},{"$f":"_xlfn.XLOOKUP($E63,'Activity 6'!$B$7:$B$13,'Activity 6'!R$7:R$13,\"N/A\",0,1)","v":"N/A"},{"$f":"_xlfn.XLOOKUP($E63,'Activity 6'!$B$7:$B$13,'Activity 6'!S$7:S$13,\"N/A\",0,1)","v":"N/A"},{"$f":"_xlfn.XLOOKUP($E63,'Activity 6'!$B$7:$B$13,'Activity 6'!T$7:T$13,\"N/A\",0,1)","v":"N/A"},{"$f":"_xlfn.XLOOKUP($E63,'Activity 6'!$B$7:$B$13,'Activity 6'!U$7:U$13,\"N/A\",0,1)","v":"N/A"},{"$f":"_xlfn.XLOOKUP($E63,'Activity 6'!$B$22:$B$28,'Activity 6'!C$22:C$28,\"N/A\",0,1)","v":"N/A"},{"$f":"_xlfn.XLOOKUP($E63,'Activity 6'!$B$22:$B$28,'Activity 6'!D$22:D$28,\"N/A\",0,1)","v":"N/A"},{"$f":"_xlfn.XLOOKUP($E63,'Activity 6'!$B$22:$B$28,'Activity 6'!E$22:E$28,\"N/A\",0,1)","v":"N/A"},{"$f":"_xlfn.XLOOKUP($E63,'Activity 6'!$B$22:$B$28,'Activity 6'!F$22:F$28,\"N/A\",0,1)","v":"N/A"},{"$f":"_xlfn.XLOOKUP($E63,'Activity 6'!$B$22:$B$28,'Activity 6'!G$22:G$28,\"N/A\",0,1)","v":"N/A"},{"$f":"_xlfn.XLOOKUP($E63,'Activity 6'!$B$22:$B$28,'Activity 6'!H$22:H$28,\"N/A\",0,1)","v":"N/A"},{"$f":"_xlfn.XLOOKUP($E63,'Activity 6'!$B$22:$B$28,'Activity 6'!I$22:I$28,\"N/A\",0,1)","v":"N/A"},{"$f":"_xlfn.XLOOKUP($E63,'Activity 6'!$B$22:$B$28,'Activity 6'!J$22:J$28,\"N/A\",0,1)","v":"N/A"},{"$f":"_xlfn.XLOOKUP($E63,'Activity 6'!$B$22:$B$28,'Activity 6'!K$22:K$28,\"N/A\",0,1)","v":"N/A"},{"$f":"_xlfn.XLOOKUP($E63,'Activity 6'!$B$22:$B$28,'Activity 6'!L$22:L$28,\"N/A\",0,1)","v":"N/A"},{"$f":"_xlfn.XLOOKUP($E63,'Activity 6'!$B$22:$B$28,'Activity 6'!M$22:M$28,\"N/A\",0,1)","v":"N/A"},{"$f":"_xlfn.XLOOKUP($E63,'Activity 6'!$B$22:$B$28,'Activity 6'!N$22:N$28,\"N/A\",0,1)","v":"N/A"},{"$f":"_xlfn.XLOOKUP($E63,'Activity 6'!$B$32:$B$38,'Activity 6'!C$32:C$38,\"N/A\",0,1)","v":"N/A"},{"$f":"_xlfn.XLOOKUP($E63,'Activity 6'!$B$32:$B$38,'Activity 6'!D$32:D$38,\"N/A\",0,1)","v":"N/A"},{"$f":"_xlfn.XLOOKUP($E63,'Activity 6'!$B$32:$B$38,'Activity 6'!E$32:E$38,\"N/A\",0,1)","v":"N/A"},{"$f":"_xlfn.XLOOKUP($E63,'Activity 6'!$B$32:$B$38,'Activity 6'!F$32:F$38,\"N/A\",0,1)","v":"N/A"},{"$f":"_xlfn.XLOOKUP($E63,'Activity 6'!$B$32:$B$38,'Activity 6'!G$32:G$38,\"N/A\",0,1)","v":"N/A"},{"$f":"_xlfn.XLOOKUP($E63,'Activity 6'!$B$32:$B$38,'Activity 6'!H$32:H$38,\"N/A\",0,1)","v":"N/A"},{"$f":"_xlfn.XLOOKUP($E63,'Activity 6'!$B$32:$B$38,'Activity 6'!I$32:I$38,\"N/A\",0,1)","v":"N/A"},{"$f":"_xlfn.XLOOKUP($E63,'Activity 6'!$B$32:$B$38,'Activity 6'!J$32:J$38,\"N/A\",0,1)","v":"N/A"},{"$f":"_xlfn.XLOOKUP($E63,'Activity 6'!$B$32:$B$38,'Activity 6'!K$32:K$38,\"N/A\",0,1)","v":"N/A"},{"$f":"_xlfn.XLOOKUP($E63,'Activity 6'!$B$32:$B$38,'Activity 6'!M$32:M$38,\"N/A\",0,1)","v":"N/A"},{"$f":"_xlfn.XLOOKUP($E63,'Activity 7'!$B$7:$B$13,'Activity 7'!$A$7:$A$13,\"No\",0,1)","v":"No"},{"$f":"_xlfn.XLOOKUP($E63,'Activity 7'!$B$7:$B$13,'Activity 7'!M$7:M$13,\"N/A\",0,1)","v":"N/A"},{"$f":"_xlfn.XLOOKUP($E63,'Activity 7'!$B$7:$B$13,'Activity 7'!K$7:K$13,\"N/A\",0,1)","v":"N/A"},{"$f":"_xlfn.XLOOKUP($E63,'Activity 7'!$B$7:$B$13,'Activity 7'!N$7:N$13,\"N/A\",0,1)","v":"N/A"},{"$f":"_xlfn.XLOOKUP($E63,'Activity 7'!$B$7:$B$13,'Activity 7'!O$7:O$13,\"N/A\",0,1)","v":"N/A"},{"$f":"_xlfn.XLOOKUP($E63,'Activity 7'!$B$7:$B$13,'Activity 7'!P$7:P$13,\"N/A\",0,1)","v":"N/A"},{"$f":"_xlfn.XLOOKUP($E63,'Activity 7'!$B$7:$B$13,'Activity 7'!Q$7:Q$13,\"N/A\",0,1)","v":"N/A"},{"$f":"_xlfn.XLOOKUP($E63,'Activity 7'!$B$7:$B$13,'Activity 7'!R$7:R$13,\"N/A\",0,1)","v":"N/A"},{"$f":"_xlfn.XLOOKUP($E63,'Activity 7'!$B$7:$B$13,'Activity 7'!S$7:S$13,\"N/A\",0,1)","v":"N/A"},{"$f":"_xlfn.XLOOKUP($E63,'Activity 7'!$B$7:$B$13,'Activity 7'!T$7:T$13,\"N/A\",0,1)","v":"N/A"},{"$f":"_xlfn.XLOOKUP($E63,'Activity 7'!$B$7:$B$13,'Activity 7'!U$7:U$13,\"N/A\",0,1)","v":"N/A"},{"$f":"_xlfn.XLOOKUP($E63,'Activity 7'!$B$7:$B$13,'Activity 7'!V$7:V$13,\"N/A\",0,1)","v":"N/A"},{"$f":"_xlfn.XLOOKUP($E63,'Activity 7'!$B$17:$B$23,'Activity 7'!E$17:E$23,\"N/A\",0,1)","v":"N/A"},{"$f":"_xlfn.XLOOKUP($E63,'Activity 7'!$B$17:$B$23,'Activity 7'!G$17:G$23,\"N/A\",0,1)","v":"N/A"},{"$f":"_xlfn.XLOOKUP($E63,'Activity 7'!$B$17:$B$23,'Activity 7'!I$17:I$23,\"N/A\",0,1)","v":"N/A"},{"$f":"_xlfn.XLOOKUP($E63,'Activity 7'!$B$17:$B$23,'Activity 7'!J$17:J$23,\"N/A\",0,1)","v":"N/A"},{"$f":"_xlfn.XLOOKUP($E63,'Activity 7'!$B$17:$B$23,'Activity 7'!K$17:K$23,\"N/A\",0,1)","v":"N/A"},{"$f":"_xlfn.XLOOKUP($E63,'Activity 7'!$B$17:$B$23,'Activity 7'!L$17:L$23,\"N/A\",0,1)","v":"N/A"},{"$f":"_xlfn.XLOOKUP($E63,'Activity 7'!$B$17:$B$23,'Activity 7'!M$17:M$23,\"N/A\",0,1)","v":"N/A"},{"$f":"_xlfn.XLOOKUP($E63,'Activity 7'!$B$17:$B$23,'Activity 7'!N$17:N$23,\"N/A\",0,1)","v":"N/A"},{"$f":"_xlfn.XLOOKUP($E63,'Activity 7'!$B$17:$B$23,'Activity 7'!P$17:P$23,\"N/A\",0,1)","v":"N/A"},{"$f":"_xlfn.XLOOKUP($E63,'Activity 8'!$B$7:$B$13,'Activity 8'!A$7:A$13,\"No\",0,1)","v":"No"},{"$f":"_xlfn.XLOOKUP($E63,'Activity 8'!$B$7:$B$13,'Activity 8'!I$7:I$13,\"N/A\",0,1)","v":"N/A"},{"$f":"_xlfn.XLOOKUP($E63,'Activity 8'!$B$7:$B$13,'Activity 8'!J$7:J$13,\"N/A\",0,1)","v":"N/A"},{"$f":"_xlfn.XLOOKUP($E63,'Activity 8'!$B$7:$B$13,'Activity 8'!K$7:K$13,\"N/A\",0,1)","v":"N/A"},{"$f":"_xlfn.XLOOKUP($E63,'Activity 8'!$B$7:$B$13,'Activity 8'!L$7:L$13,\"N/A\",0,1)","v":"N/A"},{"$f":"_xlfn.XLOOKUP($E63,'Activity 8'!$B$7:$B$13,'Activity 8'!M$7:M$13,\"N/A\",0,1)","v":"N/A"},{"$f":"_xlfn.XLOOKUP($E63,'Activity 8'!$B$7:$B$13,'Activity 8'!N$7:N$13,\"N/A\",0,1)","v":"N/A"},{"$f":"_xlfn.XLOOKUP($E63,'Activity 8'!$B$7:$B$13,'Activity 8'!O$7:O$13,\"N/A\",0,1)","v":"N/A"},{"$f":"_xlfn.XLOOKUP($E63,'Activity 8'!$B$7:$B$13,'Activity 8'!P$7:P$13,\"N/A\",0,1)","v":"N/A"},{"$f":"_xlfn.XLOOKUP($E63,'Activity 8'!$B$7:$B$13,'Activity 8'!Q$7:Q$13,\"N/A\",0,1)","v":"N/A"},{"$f":"_xlfn.XLOOKUP($E63,'Activity 8'!$B$7:$B$13,'Activity 8'!R$7:R$13,\"N/A\",0,1)","v":"N/A"},{"$f":"_xlfn.XLOOKUP($E63,'Activity 8'!$B$7:$B$13,'Activity 8'!S$7:S$13,\"N/A\",0,1)","v":"N/A"},{"$f":"_xlfn.XLOOKUP($E63,'Activity 8'!$B$7:$B$13,'Activity 8'!T$7:T$13,\"N/A\",0,1)","v":"N/A"},{"$f":"_xlfn.XLOOKUP($E63,'Activity 8'!$B$7:$B$13,'Activity 8'!U$7:U$13,\"N/A\",0,1)","v":"N/A"},{"$f":"_xlfn.XLOOKUP($E63,'Activity 8'!$B$7:$B$13,'Activity 8'!V$7:V$13,\"N/A\",0,1)","v":"N/A"},{"$f":"_xlfn.XLOOKUP($E63,'Activity 8'!$B$17:$B$23,'Activity 8'!D$17:D$23,\"N/A\",0,1)","v":"N/A"},{"$f":"_xlfn.XLOOKUP($E63,'Activity 8'!$B$17:$B$23,'Activity 8'!E$17:E$23,\"N/A\",0,1)","v":"N/A"},{"$f":"_xlfn.XLOOKUP($E63,'Activity 8'!$B$17:$B$23,'Activity 8'!F$17:F$23,\"N/A\",0,1)","v":"N/A"},{"$f":"_xlfn.XLOOKUP($E63,'Activity 8'!$B$17:$B$23,'Activity 8'!G$17:G$23,\"N/A\",0,1)","v":"N/A"},{"$f":"_xlfn.XLOOKUP($E63,'Activity 8'!$B$17:$B$23,'Activity 8'!H$17:H$23,\"N/A\",0,1)","v":"N/A"},{"$f":"_xlfn.XLOOKUP($E63,'Activity 8'!$B$17:$B$23,'Activity 8'!I$17:I$23,\"N/A\",0,1)","v":"N/A"},{"$f":"_xlfn.XLOOKUP($E63,'Activity 8'!$B$17:$B$23,'Activity 8'!J$17:J$23,\"N/A\",0,1)","v":"N/A"},{"$f":"_xlfn.XLOOKUP($E63,'Activity 8'!$B$17:$B$23,'Activity 8'!K$17:K$23,\"N/A\",0,1)","v":"N/A"},{"$f":"_xlfn.XLOOKUP($E63,'Activity 8'!$B$17:$B$23,'Activity 8'!L$17:L$23,\"N/A\",0,1)","v":"N/A"},{"$f":"_xlfn.XLOOKUP($E63,'Activity 8'!$B$17:$B$23,'Activity 8'!M$17:M$23,\"N/A\",0,1)","v":"N/A"},{"$f":"_xlfn.XLOOKUP($E63,'Activity 8'!$B$17:$B$23,'Activity 8'!N$17:N$23,\"N/A\",0,1)","v":"N/A"},{"$f":"_xlfn.XLOOKUP($E63,'Activity 8'!$B$17:$B$23,'Activity 8'!P$17:P$23,\"N/A\",0,1)","v":"N/A"},{"$f":"_xlfn.XLOOKUP(E63,'Activity 9'!$B$7:$B$13,'Activity 9'!$A$7:$A$13,\"No\",0,1)","v":"No"},{"$f":"_xlfn.XLOOKUP($E63,'Activity 9'!$B$7:$B$13,'Activity 9'!J$7:J$13,\"N/A\",0,1)","v":"N/A"},{"$f":"_xlfn.XLOOKUP($E63,'Activity 9'!$B$7:$B$13,'Activity 9'!K$7:K$13,\"N/A\",0,1)","v":"N/A"},{"$f":"_xlfn.XLOOKUP($E63,'Activity 9'!$B$7:$B$13,'Activity 9'!L$7:L$13,\"N/A\",0,1)","v":"N/A"},{"$f":"_xlfn.XLOOKUP($E63,'Activity 9'!$B$7:$B$13,'Activity 9'!M$7:M$13,\"N/A\",0,1)","v":"N/A"},{"$f":"_xlfn.XLOOKUP($E63,'Activity 9'!$B$7:$B$13,'Activity 9'!N$7:N$13,\"N/A\",0,1)","v":"N/A"},{"$f":"_xlfn.XLOOKUP($E63,'Activity 9'!$B$7:$B$13,'Activity 9'!O$7:O$13,\"N/A\",0,1)","v":"N/A"},{"$f":"_xlfn.XLOOKUP($E63,'Activity 9'!$B$7:$B$13,'Activity 9'!P$7:P$13,\"N/A\",0,1)","v":"N/A"},{"$f":"_xlfn.XLOOKUP($E63,'Activity 9'!$B$7:$B$13,'Activity 9'!Q$7:Q$13,\"N/A\",0,1)","v":"N/A"},{"$f":"_xlfn.XLOOKUP($E63,'Activity 9'!$B$7:$B$13,'Activity 9'!R$7:R$13,\"N/A\",0,1)","v":"N/A"},{"$f":"_xlfn.XLOOKUP($E63,'Activity 9'!$B$7:$B$13,'Activity 9'!S$7:S$13,\"N/A\",0,1)","v":"N/A"},{"$f":"_xlfn.XLOOKUP($E63,'Activity 9'!$B$7:$B$13,'Activity 9'!T$7:T$13,\"N/A\",0,1)","v":"N/A"},{"$f":"_xlfn.XLOOKUP($E63,'Activity 9'!$B$17:$B$23,'Activity 9'!E$17:E$23,\"N/A\",0,1)","v":"N/A"},{"$f":"_xlfn.XLOOKUP($E63,'Activity 9'!$B$17:$B$23,'Activity 9'!F$17:F$23,\"N/A\",0,1)","v":"N/A"},{"$f":"_xlfn.XLOOKUP($E63,'Activity 9'!$B$17:$B$23,'Activity 9'!G$17:G$23,\"N/A\",0,1)","v":"N/A"},{"$f":"_xlfn.XLOOKUP($E63,'Activity 9'!$B$17:$B$23,'Activity 9'!H$17:H$23,\"N/A\",0,1)","v":"N/A"},{"$f":"_xlfn.XLOOKUP($E63,'Activity 9'!$B$17:$B$23,'Activity 9'!I$17:I$23,\"N/A\",0,1)","v":"N/A"},{"$f":"_xlfn.XLOOKUP($E63,'Activity 9'!$B$17:$B$23,'Activity 9'!J$17:J$23,\"N/A\",0,1)","v":"N/A"},{"$f":"_xlfn.XLOOKUP($E63,'Activity 9'!$B$17:$B$23,'Activity 9'!K$17:K$23,\"N/A\",0,1)","v":"N/A"},{"$f":"_xlfn.XLOOKUP($E63,'Activity 9'!$B$17:$B$23,'Activity 9'!L$17:L$23,\"N/A\",0,1)","v":"N/A"},{"$f":"_xlfn.XLOOKUP($E63,'Activity 9'!$B$17:$B$23,'Activity 9'!N$17:N$23,\"N/A\",0,1)","v":"N/A"},{"$f":"_xlfn.XLOOKUP($E63,'Activity 9'!$B$17:$B$23,'Activity 9'!O$17:O$23,\"N/A\",0,1)","v":"N/A"},{"$f":"_xlfn.XLOOKUP($E63,'Activity 9'!$B$17:$B$23,'Activity 9'!Q$17:Q$23,\"N/A\",0,1)","v":"N/A"},{"$f":"_xlfn.XLOOKUP($E63,'Activity 10'!$B$7:$B$13,'Activity 10'!A$7:A$13,\"No\",0,1)","v":"No"},{"$f":"_xlfn.XLOOKUP($E63,'Activity 10'!$B$7:$B$13,'Activity 10'!J$7:J$13,\"N/A\",0,1)","v":"N/A"},{"$f":"_xlfn.XLOOKUP($E63,'Activity 10'!$B$7:$B$13,'Activity 10'!K$7:K$13,\"N/A\",0,1)","v":"N/A"},{"$f":"_xlfn.XLOOKUP($E63,'Activity 10'!$B$7:$B$13,'Activity 10'!L$7:L$13,\"N/A\",0,1)","v":"N/A"},{"$f":"_xlfn.XLOOKUP($E63,'Activity 10'!$B$7:$B$13,'Activity 10'!M$7:M$13,\"N/A\",0,1)","v":"N/A"},{"$f":"_xlfn.XLOOKUP($E63,'Activity 10'!$B$7:$B$13,'Activity 10'!N$7:N$13,\"N/A\",0,1)","v":"N/A"},{"$f":"_xlfn.XLOOKUP($E63,'Activity 10'!$B$7:$B$13,'Activity 10'!O$7:O$13,\"N/A\",0,1)","v":"N/A"},{"$f":"_xlfn.XLOOKUP($E63,'Activity 10'!$B$7:$B$13,'Activity 10'!P$7:P$13,\"N/A\",0,1)","v":"N/A"},{"$f":"_xlfn.XLOOKUP($E63,'Activity 10'!$B$7:$B$13,'Activity 10'!Q$7:Q$13,\"N/A\",0,1)","v":"N/A"},{"$f":"_xlfn.XLOOKUP($E63,'Activity 10'!$B$7:$B$13,'Activity 10'!R$7:R$13,\"N/A\",0,1)","v":"N/A"},{"$f":"_xlfn.XLOOKUP($E63,'Activity 10'!$B$7:$B$13,'Activity 10'!S$7:S$13,\"N/A\",0,1)","v":"N/A"},{"$f":"_xlfn.XLOOKUP($E63,'Activity 10'!$B$7:$B$13,'Activity 10'!T$7:T$13,\"N/A\",0,1)","v":"N/A"},{"$f":"_xlfn.XLOOKUP($E63,'Activity 10'!$B$7:$B$13,'Activity 10'!U$7:U$13,\"N/A\",0,1)","v":"N/A"},{"$f":"_xlfn.XLOOKUP($E63,'Activity 10'!$B$7:$B$13,'Activity 10'!V$7:V$13,\"N/A\",0,1)","v":"N/A"},{"$f":"_xlfn.XLOOKUP($E63,'Activity 10'!$B$17:$B$23,'Activity 10'!E$17:E$23,\"N/A\",0,1)","v":"N/A"},{"$f":"_xlfn.XLOOKUP($E63,'Activity 10'!$B$17:$B$23,'Activity 10'!F$17:F$23,\"N/A\",0,1)","v":"N/A"},{"$f":"_xlfn.XLOOKUP($E63,'Activity 10'!$B$17:$B$23,'Activity 10'!G$17:G$23,\"N/A\",0,1)","v":"N/A"},{"$f":"_xlfn.XLOOKUP($E63,'Activity 10'!$B$17:$B$23,'Activity 10'!H$17:H$23,\"N/A\",0,1)","v":"N/A"},{"$f":"_xlfn.XLOOKUP($E63,'Activity 10'!$B$17:$B$23,'Activity 10'!I$17:I$23,\"N/A\",0,1)","v":"N/A"},{"$f":"_xlfn.XLOOKUP($E63,'Activity 10'!$B$17:$B$23,'Activity 10'!J$17:J$23,\"N/A\",0,1)","v":"N/A"},{"$f":"_xlfn.XLOOKUP($E63,'Activity 10'!$B$17:$B$23,'Activity 10'!K$17:K$23,\"N/A\",0,1)","v":"N/A"},{"$f":"_xlfn.XLOOKUP($E63,'Activity 10'!$B$17:$B$23,'Activity 10'!L$17:L$23,\"N/A\",0,1)","v":"N/A"},{"$f":"_xlfn.XLOOKUP($E63,'Activity 10'!$B$17:$B$23,'Activity 10'!M$17:M$23,\"N/A\",0,1)","v":"N/A"},{"$f":"_xlfn.XLOOKUP($E63,'Activity 10'!$B$17:$B$23,'Activity 10'!N$17:N$23,\"N/A\",0,1)","v":"N/A"},{"$f":"_xlfn.XLOOKUP($E63,'Activity 10'!$B$17:$B$23,'Activity 10'!P$17:P$23,\"N/A\",0,1)","v":"N/A"},{"$f":"_xlfn.XLOOKUP($E63,'Competitive Activity 1'!B$7:B$13,'Competitive Activity 1'!A$7:A$13,\"No\",0,1)","v":"No"},{"$f":"_xlfn.XLOOKUP($E63,'Competitive Activity 1'!$B$7:$B$13,'Competitive Activity 1'!H$7:H$13,\"N/A\",0,1)","v":"N/A"},{"$f":"_xlfn.XLOOKUP($E63,'Competitive Activity 1'!$B$7:$B$13,'Competitive Activity 1'!I$7:I$13,\"N/A\",0,1)","v":"N/A"},{"$f":"_xlfn.XLOOKUP($E63,'Competitive Activity 1'!$B$7:$B$13,'Competitive Activity 1'!J$7:J$13,\"N/A\",0,1)","v":"N/A"},{"$f":"_xlfn.XLOOKUP($E63,'Competitive Activity 1'!$B$7:$B$13,'Competitive Activity 1'!K$7:K$13,\"N/A\",0,1)","v":"N/A"},{"$f":"_xlfn.XLOOKUP($E63,'Competitive Activity 1'!$B$7:$B$13,'Competitive Activity 1'!L$7:L$13,\"N/A\",0,1)","v":"N/A"},{"$f":"_xlfn.XLOOKUP($E63,'Competitive Activity 1'!$B$7:$B$13,'Competitive Activity 1'!M$7:M$13,\"N/A\",0,1)","v":"N/A"},{"$f":"_xlfn.XLOOKUP($E63,'Competitive Activity 1'!$B$7:$B$13,'Competitive Activity 1'!N$7:N$13,\"N/A\",0,1)","v":"N/A"},{"$f":"_xlfn.XLOOKUP($E63,'Competitive Activity 1'!$B$7:$B$13,'Competitive Activity 1'!O$7:O$13,\"N/A\",0,1)","v":"N/A"},{"$f":"_xlfn.XLOOKUP($E63,'Competitive Activity 1'!$B$7:$B$13,'Competitive Activity 1'!P$7:P$13,\"N/A\",0,1)","v":"N/A"},{"$f":"_xlfn.XLOOKUP($E63,'Competitive Activity 1'!$B$7:$B$13,'Competitive Activity 1'!Q$7:Q$13,\"N/A\",0,1)","v":"N/A"},{"$f":"_xlfn.XLOOKUP($E63,'Competitive Activity 1'!$B$7:$B$13,'Competitive Activity 1'!R$7:R$13,\"N/A\",0,1)","v":"N/A"},{"$f":"_xlfn.XLOOKUP($E63,'Competitive Activity 1'!$B$7:$B$13,'Competitive Activity 1'!S$7:S$13,\"N/A\",0,1)","v":"N/A"},{"$f":"_xlfn.XLOOKUP($E63,'Competitive Activity 1'!$B$7:$B$13,'Competitive Activity 1'!T$7:T$13,\"N/A\",0,1)","v":"N/A"},{"$f":"_xlfn.XLOOKUP($E63,'Competitive Activity 1'!$B$7:$B$13,'Competitive Activity 1'!U$7:U$13,\"N/A\",0,1)","v":"N/A"},{"$f":"_xlfn.XLOOKUP($E63,'Competitive Activity 1'!$B$17:$B$23,'Competitive Activity 1'!C$17:C$23,\"N/A\",0,1)","v":"N/A"},{"$f":"_xlfn.XLOOKUP($E63,'Competitive Activity 1'!$B$17:$B$23,'Competitive Activity 1'!D$17:D$23,\"N/A\",0,1)","v":"N/A"},{"$f":"_xlfn.XLOOKUP($E63,'Competitive Activity 1'!$B$17:$B$23,'Competitive Activity 1'!E$17:E$23,\"N/A\",0,1)","v":"N/A"},{"$f":"_xlfn.XLOOKUP($E63,'Competitive Activity 1'!$B$17:$B$23,'Competitive Activity 1'!F$17:F$23,\"N/A\",0,1)","v":"N/A"},{"$f":"_xlfn.XLOOKUP($E63,'Competitive Activity 1'!$B$17:$B$23,'Competitive Activity 1'!G$17:G$23,\"N/A\",0,1)","v":"N/A"},{"$f":"_xlfn.XLOOKUP($E63,'Competitive Activity 1'!$B$17:$B$23,'Competitive Activity 1'!H$17:H$23,\"N/A\",0,1)","v":"N/A"},{"$f":"_xlfn.XLOOKUP($E63,'Competitive Activity 1'!$B$17:$B$23,'Competitive Activity 1'!I$17:I$23,\"N/A\",0,1)","v":"N/A"},{"$f":"_xlfn.XLOOKUP($E63,'Competitive Activity 1'!$B$17:$B$23,'Competitive Activity 1'!J$17:J$23,\"N/A\",0,1)","v":"N/A"},{"$f":"_xlfn.XLOOKUP($E63,'Competitive Activity 1'!$B$17:$B$23,'Competitive Activity 1'!K$17:K$23,\"N/A\",0,1)","v":"N/A"},{"$f":"_xlfn.XLOOKUP($E63,'Competitive Activity 1'!$B$17:$B$23,'Competitive Activity 1'!M$17:M$23,\"N/A\",0,1)","v":"N/A"},{"$f":"_xlfn.XLOOKUP($E63,'Competitive Activity 1'!$B$17:$B$23,'Competitive Activity 1'!N$17:N$23,\"N/A\",0,1)","v":"N/A"},{"$f":"_xlfn.XLOOKUP($E63,'Competitive Activity 1'!$B$17:$B$23,'Competitive Activity 1'!P$17:P$23,\"N/A\",0,1)","v":"N/A"},{"$f":"_xlfn.XLOOKUP($E63,'Competitive Activity 2'!$B$7:$B$13,'Competitive Activity 2'!A$7:A$13,\"No\",0)","v":"No"},{"$f":"_xlfn.XLOOKUP($E63,'Competitive Activity 2'!$B$7:$B$13,'Competitive Activity 2'!L$7:L$13,\"N/A\",0)","v":"N/A"},{"$f":"_xlfn.XLOOKUP($E63,'Competitive Activity 2'!$B$7:$B$13,'Competitive Activity 2'!M$7:M$13,\"N/A\",0)","v":"N/A"},{"$f":"_xlfn.XLOOKUP($E63,'Competitive Activity 2'!$B$7:$B$13,'Competitive Activity 2'!N$7:N$13,\"N/A\",0)","v":"N/A"},{"$f":"_xlfn.XLOOKUP($E63,'Competitive Activity 2'!$B$7:$B$13,'Competitive Activity 2'!O$7:O$13,\"N/A\",0)","v":"N/A"},{"$f":"_xlfn.XLOOKUP($E63,'Competitive Activity 2'!$B$7:$B$13,'Competitive Activity 2'!P$7:P$13,\"N/A\",0)","v":"N/A"},{"$f":"_xlfn.XLOOKUP($E63,'Competitive Activity 2'!$B$7:$B$13,'Competitive Activity 2'!Q$7:Q$13,\"N/A\",0)","v":"N/A"},{"$f":"_xlfn.XLOOKUP($E63,'Competitive Activity 2'!$B$7:$B$13,'Competitive Activity 2'!R$7:R$13,\"N/A\",0)","v":"N/A"},{"$f":"_xlfn.XLOOKUP($E63,'Competitive Activity 2'!$B$7:$B$13,'Competitive Activity 2'!S$7:S$13,\"N/A\",0)","v":"N/A"},{"$f":"_xlfn.XLOOKUP($E63,'Competitive Activity 2'!$B$7:$B$13,'Competitive Activity 2'!T$7:T$13,\"N/A\",0)","v":"N/A"},{"$f":"_xlfn.XLOOKUP($E63,'Competitive Activity 2'!$B$7:$B$13,'Competitive Activity 2'!U$7:U$13,\"N/A\",0)","v":"N/A"},{"$f":"_xlfn.XLOOKUP($E63,'Competitive Activity 2'!$B$17:$B$23,'Competitive Activity 2'!D$17:D$23,\"N/A\",0)","v":"N/A"},{"$f":"_xlfn.XLOOKUP($E63,'Competitive Activity 2'!$B$17:$B$23,'Competitive Activity 2'!E$17:E$23,\"N/A\",0)","v":"N/A"},{"$f":"_xlfn.XLOOKUP($E63,'Competitive Activity 2'!$B$17:$B$23,'Competitive Activity 2'!F$17:F$23,\"N/A\",0)","v":"N/A"},{"$f":"_xlfn.XLOOKUP($E63,'Competitive Activity 2'!$B$17:$B$23,'Competitive Activity 2'!G$17:G$23,\"N/A\",0)","v":"N/A"},{"$f":"_xlfn.XLOOKUP($E63,'Competitive Activity 2'!$B$17:$B$23,'Competitive Activity 2'!H$17:H$23,\"N/A\",0)","v":"N/A"},{"$f":"_xlfn.XLOOKUP($E63,'Competitive Activity 2'!$B$17:$B$23,'Competitive Activity 2'!I$17:I$23,\"N/A\",0)","v":"N/A"},{"$f":"_xlfn.XLOOKUP($E63,'Competitive Activity 2'!$B$17:$B$23,'Competitive Activity 2'!J$17:J$23,\"N/A\",0)","v":"N/A"},{"$f":"_xlfn.XLOOKUP($E63,'Competitive Activity 2'!$B$17:$B$23,'Competitive Activity 2'!K$17:K$23,\"N/A\",0)","v":"N/A"},{"$f":"_xlfn.XLOOKUP($E63,'Competitive Activity 2'!$B$17:$B$23,'Competitive Activity 2'!L$17:L$23,\"N/A\",0)","v":"N/A"},{"$f":"_xlfn.XLOOKUP($E63,'Competitive Activity 2'!$B$17:$B$23,'Competitive Activity 2'!M$17:M$23,\"N/A\",0)","v":"N/A"},{"$f":"_xlfn.XLOOKUP($E63,'Competitive Activity 2'!$B$17:$B$23,'Competitive Activity 2'!N$17:N$23,\"N/A\",0)","v":"N/A"},{"$f":"_xlfn.XLOOKUP($E63,'Competitive Activity 2'!$B$27:$B$33,'Competitive Activity 2'!D$27:D$33,\"N/A\",0)","v":"N/A"},{"$f":"_xlfn.XLOOKUP($E63,'Competitive Activity 2'!$B$27:$B$33,'Competitive Activity 2'!E$27:E$33,\"N/A\",0)","v":"N/A"},{"$f":"_xlfn.XLOOKUP($E63,'Competitive Activity 2'!$B$27:$B$33,'Competitive Activity 2'!F$27:F$33,\"N/A\",0)","v":"N/A"},{"$f":"_xlfn.XLOOKUP($E63,'Competitive Activity 2'!$B$27:$B$33,'Competitive Activity 2'!G$27:G$33,\"N/A\",0)","v":"N/A"},{"$f":"_xlfn.XLOOKUP($E63,'Competitive Activity 2'!$B$27:$B$33,'Competitive Activity 2'!H$27:H$33,\"N/A\",0)","v":"N/A"},{"$f":"_xlfn.XLOOKUP($E63,'Competitive Activity 2'!$B$27:$B$33,'Competitive Activity 2'!I$27:I$33,\"N/A\",0)","v":"N/A"},{"$f":"_xlfn.XLOOKUP($E63,'Competitive Activity 2'!$B$27:$B$33,'Competitive Activity 2'!J$27:J$33,\"N/A\",0)","v":"N/A"},{"$f":"_xlfn.XLOOKUP($E63,'Competitive Activity 2'!$B$27:$B$33,'Competitive Activity 2'!K$27:K$33,\"N/A\",0)","v":"N/A"},{"$f":"_xlfn.XLOOKUP($E63,'Competitive Activity 2'!$B$27:$B$33,'Competitive Activity 2'!M$27:M$33,\"N/A\",0)","v":"N/A"}]
[{"$f":"'1-Cover Sheet'!$C$8","v":"Select One"},{"$f":"'1-Cover Sheet'!$F$8","v":"Select One"},{"$f":"'Summary Sheet'!$D$8","v":0},{"$f":"'Summary Sheet'!$D$10","v":0},{"$f":"'Drop Down Box'!B228","v":0},{"$f":"'Drop Down Box'!C228","v":0},{"$f":"'Drop Down Box'!D228","v":"Select One"},{"$f":"_xlfn.XLOOKUP(E64,'Drop Down Box'!$B$166:$B$249,'Drop Down Box'!$A$166:$A$249,\"Unknown\",0)","v":"Activity 1"},{"$f":"_xlfn.XLOOKUP($E64,'Activity 9'!$B$17:$B$23,'Activity 9'!$M$17:$M$23,\"N/A\",0)","v":"N/A"},{"$f":"_xlfn.XLOOKUP($E64,'Activity 9'!$B$17:$B$23,'Activity 9'!$P$17:$P$23,\"N/A\",0)","v":"N/A"},{"$f":"_xlfn.XLOOKUP($E64,'Activity 9'!$B$7:$B$13,'Activity 9'!G$7:G$13,\"N/A\",0)","v":"N/A"},{"$f":"_xlfn.XLOOKUP($E64,'Activity 9'!$B$7:$B$13,'Activity 9'!H$7:H$13,\"N/A\",0)","v":"N/A"},{"$f":"_xlfn.XLOOKUP($E64,'Activity 9'!$B$7:$B$13,'Activity 9'!I$7:I$13,\"N/A\",0)","v":"N/A"},{"$f":"_xlfn.XLOOKUP($E64,'Activity 1'!$B$7:$B$13,'Activity 1'!$A$7:$A$13,\"No\",0,1)","v":"No"},{"$f":"_xlfn.XLOOKUP($E64,'Activity 1'!$B$7:$B$13,'Activity 1'!$H$7:$H$13,\"N/A\",0,1)","v":"N/A"},{"$f":"_xlfn.XLOOKUP($E64,'Activity 1'!$B$7:$B$13,'Activity 1'!I$7:I$13,\"N/A\",0,1)","v":"N/A"},{"$f":"_xlfn.XLOOKUP($E64,'Activity 1'!$B$7:$B$13,'Activity 1'!J$7:J$13,\"N/A\",0,1)","v":"N/A"},{"$f":"_xlfn.XLOOKUP($E64,'Activity 1'!$B$7:$B$13,'Activity 1'!K$7:K$13,\"N/A\",0,1)","v":"N/A"},{"$f":"_xlfn.XLOOKUP($E64,'Activity 1'!$B$7:$B$13,'Activity 1'!L$7:L$13,\"N/A\",0,1)","v":"N/A"},{"$f":"_xlfn.XLOOKUP($E64,'Activity 1'!$B$7:$B$13,'Activity 1'!M$7:M$13,\"N/A\",0,1)","v":"N/A"},{"$f":"_xlfn.XLOOKUP($E64,'Activity 1'!$B$7:$B$13,'Activity 1'!N$7:N$13,\"N/A\",0,1)","v":"N/A"},0,{"$f":"_xlfn.XLOOKUP($E64,'Activity 1'!$B$7:$B$13,'Activity 1'!O$7:O$13,\"N/A\",0,1)","v":"N/A"},{"$f":"_xlfn.XLOOKUP($E64,'Activity 1'!$B$7:$B$13,'Activity 1'!P$7:P$13,\"N/A\",0,1)","v":"N/A"},{"$f":"_xlfn.XLOOKUP($E64,'Activity 1'!$B$7:$B$13,'Activity 1'!Q$7:Q$13,\"N/A\",0,1)","v":"N/A"},{"$f":"_xlfn.XLOOKUP($E64,'Activity 1'!$B$7:$B$13,'Activity 1'!R$7:R$13,\"N/A\",0,1)","v":"N/A"},{"$f":"_xlfn.XLOOKUP($E64,'Activity 1'!$B$7:$B$13,'Activity 1'!S$7:S$13,\"N/A\",0,1)","v":"N/A"},{"$f":"_xlfn.XLOOKUP($E64,'Activity 1'!$B$7:$B$13,'Activity 1'!T$7:T$13,\"N/A\",0,1)","v":"N/A"},{"$f":"_xlfn.XLOOKUP($E64,'Activity 1'!$B$7:$B$13,'Activity 1'!U$7:U$13,\"N/A\",0,1)","v":"N/A"},{"$f":"_xlfn.XLOOKUP($E64,'Activity 1'!$B$7:$B$13,'Activity 1'!V$7:V$13,\"N/A\",0,1)","v":"N/A"},{"$f":"_xlfn.XLOOKUP($E64,'Activity 1'!$B$17:$B$23,'Activity 1'!C$17:C$23,\"N/A\",0,1)","v":"N/A"},{"$f":"_xlfn.XLOOKUP($E64,'Activity 1'!$B$17:$B$23,'Activity 1'!D$17:D$23,\"N/A\",0,1)","v":"N/A"},{"$f":"_xlfn.XLOOKUP($E64,'Activity 1'!$B$17:$B$23,'Activity 1'!E$17:E$23,\"N/A\",0,1)","v":"N/A"},{"$f":"_xlfn.XLOOKUP($E64,'Activity 1'!$B$17:$B$23,'Activity 1'!F$17:F$23,\"N/A\",0,1)","v":"N/A"},{"$f":"_xlfn.XLOOKUP($E64,'Activity 1'!$B$17:$B$23,'Activity 1'!G$17:G$23,\"N/A\",0,1)","v":"N/A"},{"$f":"_xlfn.XLOOKUP($E64,'Activity 1'!$B$17:$B$23,'Activity 1'!H$17:H$23,\"N/A\",0,1)","v":"N/A"},{"$f":"_xlfn.XLOOKUP($E64,'Activity 1'!$B$17:$B$23,'Activity 1'!I$17:I$23,\"N/A\",0,1)","v":"N/A"},{"$f":"_xlfn.XLOOKUP($E64,'Activity 1'!$B$17:$B$23,'Activity 1'!J$17:J$23,\"N/A\",0,1)","v":"N/A"},{"$f":"_xlfn.XLOOKUP($E64,'Activity 1'!$B$17:$B$23,'Activity 1'!K$17:K$23,\"N/A\",0,1)","v":"N/A"},{"$f":"_xlfn.XLOOKUP($E64,'Activity 1'!$B$17:$B$23,'Activity 1'!L$17:L$23,\"N/A\",0,1)","v":"N/A"},{"$f":"_xlfn.XLOOKUP($E64,'Activity 1'!$B$17:$B$23,'Activity 1'!M$17:M$23,\"N/A\",0,1)","v":"N/A"},{"$f":"_xlfn.XLOOKUP($E64,'Activity 1'!$B$17:$B$23,'Activity 1'!O$17:O$23,\"N/A\",0,1)","v":"N/A"},{"$f":"_xlfn.XLOOKUP($E64,'Activity 1'!$B$17:$B$23,'Activity 1'!Q$17:Q$23,\"N/A\",0,1)","v":"N/A"},{"$f":"_xlfn.XLOOKUP($E64,'Activity 2'!$B$7:$B$13,'Activity 2'!$A$7:$A$13,\"No\",0,1)","v":"No"},{"$f":"_xlfn.XLOOKUP($E64,'Activity 2'!B$7:B$13,'Activity 2'!H$7:H$13,\"N/A\",0)","v":"N/A"},{"$f":"_xlfn.XLOOKUP($E64,'Activity 2'!C$7:C$13,'Activity 2'!I$7:I$13,\"N/A\",0)","v":"N/A"},{"$f":"_xlfn.XLOOKUP($E64,'Activity 2'!D$7:D$13,'Activity 2'!J$7:J$13,\"N/A\",0)","v":"N/A"},{"$f":"_xlfn.XLOOKUP($E64,'Activity 2'!E$7:E$13,'Activity 2'!K$7:K$13,\"N/A\",0)","v":"N/A"},{"$f":"_xlfn.XLOOKUP($E64,'Activity 2'!F$7:F$13,'Activity 2'!L$7:L$13,\"N/A\",0)","v":"N/A"},{"$f":"_xlfn.XLOOKUP($E64,'Activity 2'!G$7:G$13,'Activity 2'!M$7:M$13,\"N/A\",0)","v":"N/A"},{"$f":"_xlfn.XLOOKUP($E64,'Activity 2'!H$7:H$13,'Activity 2'!N$7:N$13,\"N/A\",0)","v":"N/A"},{"$f":"_xlfn.XLOOKUP($E64,'Activity 2'!I$7:I$13,'Activity 2'!O$7:O$13,\"N/A\",0)","v":"N/A"},{"$f":"_xlfn.XLOOKUP($E64,'Activity 2'!J$7:J$13,'Activity 2'!P$7:P$13,\"N/A\",0)","v":"N/A"},{"$f":"_xlfn.XLOOKUP($E64,'Activity 2'!K$7:K$13,'Activity 2'!Q$7:Q$13,\"N/A\",0)","v":"N/A"},{"$f":"_xlfn.XLOOKUP($E64,'Activity 2'!L$7:L$13,'Activity 2'!R$7:R$13,\"N/A\",0)","v":"N/A"},{"$f":"_xlfn.XLOOKUP($E64,'Activity 2'!M$7:M$13,'Activity 2'!S$7:S$13,\"N/A\",0)","v":"N/A"},{"$f":"_xlfn.XLOOKUP($E64,'Activity 2'!N$7:N$13,'Activity 2'!T$7:T$13,\"N/A\",0)","v":"N/A"},{"$f":"_xlfn.XLOOKUP($E64,'Activity 2'!O$7:O$13,'Activity 2'!U$7:U$13,\"N/A\",0)","v":"N/A"},{"$f":"_xlfn.XLOOKUP($E64,'Activity 2'!P$7:P$13,'Activity 2'!V$7:V$13,\"N/A\",0)","v":"N/A"},{"$f":"_xlfn.XLOOKUP($E64,'Activity 2'!$B$17:$B$23,'Activity 2'!C$17:C$23,\"N/A\",0,1)","v":"N/A"},{"$f":"_xlfn.XLOOKUP($E64,'Activity 2'!$B$17:$B$23,'Activity 2'!D$17:D$23,\"N/A\",0,1)","v":"N/A"},{"$f":"_xlfn.XLOOKUP($E64,'Activity 2'!$B$17:$B$23,'Activity 2'!E$17:E$23,\"N/A\",0,1)","v":"N/A"},{"$f":"_xlfn.XLOOKUP($E64,'Activity 2'!$B$17:$B$23,'Activity 2'!F$17:F$23,\"N/A\",0,1)","v":"N/A"},{"$f":"_xlfn.XLOOKUP($E64,'Activity 2'!$B$17:$B$23,'Activity 2'!G$17:G$23,\"N/A\",0,1)","v":"N/A"},{"$f":"_xlfn.XLOOKUP($E64,'Activity 2'!$B$17:$B$23,'Activity 2'!H$17:H$23,\"N/A\",0,1)","v":"N/A"},{"$f":"_xlfn.XLOOKUP($E64,'Activity 2'!$B$17:$B$23,'Activity 2'!I$17:I$23,\"N/A\",0,1)","v":"N/A"},{"$f":"_xlfn.XLOOKUP($E64,'Activity 2'!$B$17:$B$23,'Activity 2'!J$17:J$23,\"N/A\",0,1)","v":"N/A"},{"$f":"_xlfn.XLOOKUP($E64,'Activity 2'!$B$17:$B$23,'Activity 2'!K$17:K$23,\"N/A\",0,1)","v":"N/A"},{"$f":"_xlfn.XLOOKUP($E64,'Activity 2'!$B$17:$B$23,'Activity 2'!L$17:L$23,\"N/A\",0,1)","v":"N/A"},{"$f":"_xlfn.XLOOKUP($E64,'Activity 2'!$B$17:$B$23,'Activity 2'!M$17:M$23,\"N/A\",0,1)","v":"N/A"},{"$f":"_xlfn.XLOOKUP($E64,'Activity 2'!$B$17:$B$23,'Activity 2'!O$17:O$23,\"N/A\",0,1)","v":"N/A"},{"$f":"_xlfn.XLOOKUP($E64,'Activity 2'!$B$17:$B$23,'Activity 2'!Q$17:Q$23,\"N/A\",0,1)","v":"N/A"},null,{"$f":"_xlfn.XLOOKUP($E64,'Activity 3'!$B$8:$B$14,'Activity 3'!K$8:K$14,\"N/A\",0,1)","v":"N/A"},{"$f":"_xlfn.XLOOKUP($E64,'Activity 3'!$B$8:$B$14,'Activity 3'!L$8:L$14,\"N/A\",0,1)","v":"N/A"},{"$f":"_xlfn.XLOOKUP($E64,'Activity 3'!$B$8:$B$14,'Activity 3'!M$8:M$14,\"N/A\",0,1)","v":"N/A"},{"$f":"_xlfn.XLOOKUP($E64,'Activity 3'!$B$8:$B$14,'Activity 3'!N$8:N$14,\"N/A\",0,1)","v":"N/A"},{"$f":"_xlfn.XLOOKUP($E64,'Activity 3'!$B$8:$B$14,'Activity 3'!O$8:O$14,\"N/A\",0,1)","v":"N/A"},{"$f":"_xlfn.XLOOKUP($E64,'Activity 3'!$B$8:$B$14,'Activity 3'!R$8:R$14,\"N/A\",0,1)","v":"N/A"},{"$f":"_xlfn.XLOOKUP($E64,'Activity 4'!$B$8:$B$14,'Activity 4'!$A$8:$A$14,\"No\",0,1)","v":"No"},{"$f":"_xlfn.XLOOKUP($E64,'Activity 4'!$B$8:$B$14,'Activity 4'!L$8:L$14,\"N/A\",0,1)","v":"N/A"},{"$f":"_xlfn.XLOOKUP($E64,'Activity 4'!$B$8:$B$14,'Activity 4'!I$8:I$14,\"N/A\",0,1)","v":"N/A"},{"$f":"_xlfn.XLOOKUP($E64,'Activity 4'!$B$8:$B$14,'Activity 4'!M$8:M$14,\"N/A\",0,1)","v":"N/A"},{"$f":"_xlfn.XLOOKUP($E64,'Activity 5'!$B$8:$B$14,'Activity 5'!$A$8:$A$14,\"No\",0,1)","v":"No"},{"$f":"_xlfn.XLOOKUP($E64,'Activity 5'!$B$8:$B$14,'Activity 5'!J$8:J$14,\"N/A\",0,1)","v":"N/A"},{"$f":"_xlfn.XLOOKUP($E64,'Activity 5'!$B$8:$B$14,'Activity 5'!K$8:K$14,\"N/A\",0,1)","v":"N/A"},{"$f":"_xlfn.XLOOKUP($E64,'Activity 5'!$B$8:$B$14,'Activity 5'!N$8:N$14,\"N/A\",0,1)","v":"N/A"},{"$f":"_xlfn.XLOOKUP($E64,'Activity 5'!$B$8:$B$14,'Activity 5'!O$8:O$14,\"N/A\",0,1)","v":"N/A"},{"$f":"_xlfn.XLOOKUP($E64,'Activity 5'!$B$8:$B$14,'Activity 5'!P$8:P$14,\"N/A\",0,1)","v":"N/A"},{"$f":"_xlfn.XLOOKUP($E64,'Activity 5'!$B$8:$B$14,'Activity 5'!Q$8:Q$14,\"N/A\",0,1)","v":"N/A"},{"$f":"_xlfn.XLOOKUP($E64,'Activity 5'!$B$8:$B$14,'Activity 5'!R$8:R$14,\"N/A\",0,1)","v":"N/A"},{"$f":"_xlfn.XLOOKUP($E64,'Activity 6'!$B$7:$B$13,'Activity 6'!A$7:A$13,\"No\",0,1)","v":"No"},{"$f":"_xlfn.XLOOKUP($E64,'Activity 6'!$B$7:$B$13,'Activity 6'!K$7:K$13,\"N/A\",0,1)","v":"N/A"},{"$f":"_xlfn.XLOOKUP($E64,'Activity 6'!$B$7:$B$13,'Activity 6'!L$7:L$13,\"N/A\",0,1)","v":"N/A"},{"$f":"_xlfn.XLOOKUP($E64,'Activity 6'!$B$7:$B$13,'Activity 6'!M$7:M$13,\"N/A\",0,1)","v":"N/A"},{"$f":"_xlfn.XLOOKUP($E64,'Activity 6'!$B$7:$B$13,'Activity 6'!N$7:N$13,\"N/A\",0,1)","v":"N/A"},{"$f":"_xlfn.XLOOKUP($E64,'Activity 6'!$B$7:$B$13,'Activity 6'!O$7:O$13,\"N/A\",0,1)","v":"N/A"},{"$f":"_xlfn.XLOOKUP($E64,'Activity 6'!$B$7:$B$13,'Activity 6'!P$7:P$13,\"N/A\",0,1)","v":"N/A"},{"$f":"_xlfn.XLOOKUP($E64,'Activity 6'!$B$7:$B$13,'Activity 6'!Q$7:Q$13,\"N/A\",0,1)","v":"N/A"},{"$f":"_xlfn.XLOOKUP($E64,'Activity 6'!$B$7:$B$13,'Activity 6'!R$7:R$13,\"N/A\",0,1)","v":"N/A"},{"$f":"_xlfn.XLOOKUP($E64,'Activity 6'!$B$7:$B$13,'Activity 6'!S$7:S$13,\"N/A\",0,1)","v":"N/A"},{"$f":"_xlfn.XLOOKUP($E64,'Activity 6'!$B$7:$B$13,'Activity 6'!T$7:T$13,\"N/A\",0,1)","v":"N/A"},{"$f":"_xlfn.XLOOKUP($E64,'Activity 6'!$B$7:$B$13,'Activity 6'!U$7:U$13,\"N/A\",0,1)","v":"N/A"},{"$f":"_xlfn.XLOOKUP($E64,'Activity 6'!$B$22:$B$28,'Activity 6'!C$22:C$28,\"N/A\",0,1)","v":"N/A"},{"$f":"_xlfn.XLOOKUP($E64,'Activity 6'!$B$22:$B$28,'Activity 6'!D$22:D$28,\"N/A\",0,1)","v":"N/A"},{"$f":"_xlfn.XLOOKUP($E64,'Activity 6'!$B$22:$B$28,'Activity 6'!E$22:E$28,\"N/A\",0,1)","v":"N/A"},{"$f":"_xlfn.XLOOKUP($E64,'Activity 6'!$B$22:$B$28,'Activity 6'!F$22:F$28,\"N/A\",0,1)","v":"N/A"},{"$f":"_xlfn.XLOOKUP($E64,'Activity 6'!$B$22:$B$28,'Activity 6'!G$22:G$28,\"N/A\",0,1)","v":"N/A"},{"$f":"_xlfn.XLOOKUP($E64,'Activity 6'!$B$22:$B$28,'Activity 6'!H$22:H$28,\"N/A\",0,1)","v":"N/A"},{"$f":"_xlfn.XLOOKUP($E64,'Activity 6'!$B$22:$B$28,'Activity 6'!I$22:I$28,\"N/A\",0,1)","v":"N/A"},{"$f":"_xlfn.XLOOKUP($E64,'Activity 6'!$B$22:$B$28,'Activity 6'!J$22:J$28,\"N/A\",0,1)","v":"N/A"},{"$f":"_xlfn.XLOOKUP($E64,'Activity 6'!$B$22:$B$28,'Activity 6'!K$22:K$28,\"N/A\",0,1)","v":"N/A"},{"$f":"_xlfn.XLOOKUP($E64,'Activity 6'!$B$22:$B$28,'Activity 6'!L$22:L$28,\"N/A\",0,1)","v":"N/A"},{"$f":"_xlfn.XLOOKUP($E64,'Activity 6'!$B$22:$B$28,'Activity 6'!M$22:M$28,\"N/A\",0,1)","v":"N/A"},{"$f":"_xlfn.XLOOKUP($E64,'Activity 6'!$B$22:$B$28,'Activity 6'!N$22:N$28,\"N/A\",0,1)","v":"N/A"},{"$f":"_xlfn.XLOOKUP($E64,'Activity 6'!$B$32:$B$38,'Activity 6'!C$32:C$38,\"N/A\",0,1)","v":"N/A"},{"$f":"_xlfn.XLOOKUP($E64,'Activity 6'!$B$32:$B$38,'Activity 6'!D$32:D$38,\"N/A\",0,1)","v":"N/A"},{"$f":"_xlfn.XLOOKUP($E64,'Activity 6'!$B$32:$B$38,'Activity 6'!E$32:E$38,\"N/A\",0,1)","v":"N/A"},{"$f":"_xlfn.XLOOKUP($E64,'Activity 6'!$B$32:$B$38,'Activity 6'!F$32:F$38,\"N/A\",0,1)","v":"N/A"},{"$f":"_xlfn.XLOOKUP($E64,'Activity 6'!$B$32:$B$38,'Activity 6'!G$32:G$38,\"N/A\",0,1)","v":"N/A"},{"$f":"_xlfn.XLOOKUP($E64,'Activity 6'!$B$32:$B$38,'Activity 6'!H$32:H$38,\"N/A\",0,1)","v":"N/A"},{"$f":"_xlfn.XLOOKUP($E64,'Activity 6'!$B$32:$B$38,'Activity 6'!I$32:I$38,\"N/A\",0,1)","v":"N/A"},{"$f":"_xlfn.XLOOKUP($E64,'Activity 6'!$B$32:$B$38,'Activity 6'!J$32:J$38,\"N/A\",0,1)","v":"N/A"},{"$f":"_xlfn.XLOOKUP($E64,'Activity 6'!$B$32:$B$38,'Activity 6'!K$32:K$38,\"N/A\",0,1)","v":"N/A"},{"$f":"_xlfn.XLOOKUP($E64,'Activity 6'!$B$32:$B$38,'Activity 6'!M$32:M$38,\"N/A\",0,1)","v":"N/A"},{"$f":"_xlfn.XLOOKUP($E64,'Activity 7'!$B$7:$B$13,'Activity 7'!$A$7:$A$13,\"No\",0,1)","v":"No"},{"$f":"_xlfn.XLOOKUP($E64,'Activity 7'!$B$7:$B$13,'Activity 7'!M$7:M$13,\"N/A\",0,1)","v":"N/A"},{"$f":"_xlfn.XLOOKUP($E64,'Activity 7'!$B$7:$B$13,'Activity 7'!K$7:K$13,\"N/A\",0,1)","v":"N/A"},{"$f":"_xlfn.XLOOKUP($E64,'Activity 7'!$B$7:$B$13,'Activity 7'!N$7:N$13,\"N/A\",0,1)","v":"N/A"},{"$f":"_xlfn.XLOOKUP($E64,'Activity 7'!$B$7:$B$13,'Activity 7'!O$7:O$13,\"N/A\",0,1)","v":"N/A"},{"$f":"_xlfn.XLOOKUP($E64,'Activity 7'!$B$7:$B$13,'Activity 7'!P$7:P$13,\"N/A\",0,1)","v":"N/A"},{"$f":"_xlfn.XLOOKUP($E64,'Activity 7'!$B$7:$B$13,'Activity 7'!Q$7:Q$13,\"N/A\",0,1)","v":"N/A"},{"$f":"_xlfn.XLOOKUP($E64,'Activity 7'!$B$7:$B$13,'Activity 7'!R$7:R$13,\"N/A\",0,1)","v":"N/A"},{"$f":"_xlfn.XLOOKUP($E64,'Activity 7'!$B$7:$B$13,'Activity 7'!S$7:S$13,\"N/A\",0,1)","v":"N/A"},{"$f":"_xlfn.XLOOKUP($E64,'Activity 7'!$B$7:$B$13,'Activity 7'!T$7:T$13,\"N/A\",0,1)","v":"N/A"},{"$f":"_xlfn.XLOOKUP($E64,'Activity 7'!$B$7:$B$13,'Activity 7'!U$7:U$13,\"N/A\",0,1)","v":"N/A"},{"$f":"_xlfn.XLOOKUP($E64,'Activity 7'!$B$7:$B$13,'Activity 7'!V$7:V$13,\"N/A\",0,1)","v":"N/A"},{"$f":"_xlfn.XLOOKUP($E64,'Activity 7'!$B$17:$B$23,'Activity 7'!E$17:E$23,\"N/A\",0,1)","v":"N/A"},{"$f":"_xlfn.XLOOKUP($E64,'Activity 7'!$B$17:$B$23,'Activity 7'!G$17:G$23,\"N/A\",0,1)","v":"N/A"},{"$f":"_xlfn.XLOOKUP($E64,'Activity 7'!$B$17:$B$23,'Activity 7'!I$17:I$23,\"N/A\",0,1)","v":"N/A"},{"$f":"_xlfn.XLOOKUP($E64,'Activity 7'!$B$17:$B$23,'Activity 7'!J$17:J$23,\"N/A\",0,1)","v":"N/A"},{"$f":"_xlfn.XLOOKUP($E64,'Activity 7'!$B$17:$B$23,'Activity 7'!K$17:K$23,\"N/A\",0,1)","v":"N/A"},{"$f":"_xlfn.XLOOKUP($E64,'Activity 7'!$B$17:$B$23,'Activity 7'!L$17:L$23,\"N/A\",0,1)","v":"N/A"},{"$f":"_xlfn.XLOOKUP($E64,'Activity 7'!$B$17:$B$23,'Activity 7'!M$17:M$23,\"N/A\",0,1)","v":"N/A"},{"$f":"_xlfn.XLOOKUP($E64,'Activity 7'!$B$17:$B$23,'Activity 7'!N$17:N$23,\"N/A\",0,1)","v":"N/A"},{"$f":"_xlfn.XLOOKUP($E64,'Activity 7'!$B$17:$B$23,'Activity 7'!P$17:P$23,\"N/A\",0,1)","v":"N/A"},{"$f":"_xlfn.XLOOKUP($E64,'Activity 8'!$B$7:$B$13,'Activity 8'!A$7:A$13,\"No\",0,1)","v":"No"},{"$f":"_xlfn.XLOOKUP($E64,'Activity 8'!$B$7:$B$13,'Activity 8'!I$7:I$13,\"N/A\",0,1)","v":"N/A"},{"$f":"_xlfn.XLOOKUP($E64,'Activity 8'!$B$7:$B$13,'Activity 8'!J$7:J$13,\"N/A\",0,1)","v":"N/A"},{"$f":"_xlfn.XLOOKUP($E64,'Activity 8'!$B$7:$B$13,'Activity 8'!K$7:K$13,\"N/A\",0,1)","v":"N/A"},{"$f":"_xlfn.XLOOKUP($E64,'Activity 8'!$B$7:$B$13,'Activity 8'!L$7:L$13,\"N/A\",0,1)","v":"N/A"},{"$f":"_xlfn.XLOOKUP($E64,'Activity 8'!$B$7:$B$13,'Activity 8'!M$7:M$13,\"N/A\",0,1)","v":"N/A"},{"$f":"_xlfn.XLOOKUP($E64,'Activity 8'!$B$7:$B$13,'Activity 8'!N$7:N$13,\"N/A\",0,1)","v":"N/A"},{"$f":"_xlfn.XLOOKUP($E64,'Activity 8'!$B$7:$B$13,'Activity 8'!O$7:O$13,\"N/A\",0,1)","v":"N/A"},{"$f":"_xlfn.XLOOKUP($E64,'Activity 8'!$B$7:$B$13,'Activity 8'!P$7:P$13,\"N/A\",0,1)","v":"N/A"},{"$f":"_xlfn.XLOOKUP($E64,'Activity 8'!$B$7:$B$13,'Activity 8'!Q$7:Q$13,\"N/A\",0,1)","v":"N/A"},{"$f":"_xlfn.XLOOKUP($E64,'Activity 8'!$B$7:$B$13,'Activity 8'!R$7:R$13,\"N/A\",0,1)","v":"N/A"},{"$f":"_xlfn.XLOOKUP($E64,'Activity 8'!$B$7:$B$13,'Activity 8'!S$7:S$13,\"N/A\",0,1)","v":"N/A"},{"$f":"_xlfn.XLOOKUP($E64,'Activity 8'!$B$7:$B$13,'Activity 8'!T$7:T$13,\"N/A\",0,1)","v":"N/A"},{"$f":"_xlfn.XLOOKUP($E64,'Activity 8'!$B$7:$B$13,'Activity 8'!U$7:U$13,\"N/A\",0,1)","v":"N/A"},{"$f":"_xlfn.XLOOKUP($E64,'Activity 8'!$B$7:$B$13,'Activity 8'!V$7:V$13,\"N/A\",0,1)","v":"N/A"},{"$f":"_xlfn.XLOOKUP($E64,'Activity 8'!$B$17:$B$23,'Activity 8'!D$17:D$23,\"N/A\",0,1)","v":"N/A"},{"$f":"_xlfn.XLOOKUP($E64,'Activity 8'!$B$17:$B$23,'Activity 8'!E$17:E$23,\"N/A\",0,1)","v":"N/A"},{"$f":"_xlfn.XLOOKUP($E64,'Activity 8'!$B$17:$B$23,'Activity 8'!F$17:F$23,\"N/A\",0,1)","v":"N/A"},{"$f":"_xlfn.XLOOKUP($E64,'Activity 8'!$B$17:$B$23,'Activity 8'!G$17:G$23,\"N/A\",0,1)","v":"N/A"},{"$f":"_xlfn.XLOOKUP($E64,'Activity 8'!$B$17:$B$23,'Activity 8'!H$17:H$23,\"N/A\",0,1)","v":"N/A"},{"$f":"_xlfn.XLOOKUP($E64,'Activity 8'!$B$17:$B$23,'Activity 8'!I$17:I$23,\"N/A\",0,1)","v":"N/A"},{"$f":"_xlfn.XLOOKUP($E64,'Activity 8'!$B$17:$B$23,'Activity 8'!J$17:J$23,\"N/A\",0,1)","v":"N/A"},{"$f":"_xlfn.XLOOKUP($E64,'Activity 8'!$B$17:$B$23,'Activity 8'!K$17:K$23,\"N/A\",0,1)","v":"N/A"},{"$f":"_xlfn.XLOOKUP($E64,'Activity 8'!$B$17:$B$23,'Activity 8'!L$17:L$23,\"N/A\",0,1)","v":"N/A"},{"$f":"_xlfn.XLOOKUP($E64,'Activity 8'!$B$17:$B$23,'Activity 8'!M$17:M$23,\"N/A\",0,1)","v":"N/A"},{"$f":"_xlfn.XLOOKUP($E64,'Activity 8'!$B$17:$B$23,'Activity 8'!N$17:N$23,\"N/A\",0,1)","v":"N/A"},{"$f":"_xlfn.XLOOKUP($E64,'Activity 8'!$B$17:$B$23,'Activity 8'!P$17:P$23,\"N/A\",0,1)","v":"N/A"},{"$f":"_xlfn.XLOOKUP(E64,'Activity 9'!$B$7:$B$13,'Activity 9'!$A$7:$A$13,\"No\",0,1)","v":"No"},{"$f":"_xlfn.XLOOKUP($E64,'Activity 9'!$B$7:$B$13,'Activity 9'!J$7:J$13,\"N/A\",0,1)","v":"N/A"},{"$f":"_xlfn.XLOOKUP($E64,'Activity 9'!$B$7:$B$13,'Activity 9'!K$7:K$13,\"N/A\",0,1)","v":"N/A"},{"$f":"_xlfn.XLOOKUP($E64,'Activity 9'!$B$7:$B$13,'Activity 9'!L$7:L$13,\"N/A\",0,1)","v":"N/A"},{"$f":"_xlfn.XLOOKUP($E64,'Activity 9'!$B$7:$B$13,'Activity 9'!M$7:M$13,\"N/A\",0,1)","v":"N/A"},{"$f":"_xlfn.XLOOKUP($E64,'Activity 9'!$B$7:$B$13,'Activity 9'!N$7:N$13,\"N/A\",0,1)","v":"N/A"},{"$f":"_xlfn.XLOOKUP($E64,'Activity 9'!$B$7:$B$13,'Activity 9'!O$7:O$13,\"N/A\",0,1)","v":"N/A"},{"$f":"_xlfn.XLOOKUP($E64,'Activity 9'!$B$7:$B$13,'Activity 9'!P$7:P$13,\"N/A\",0,1)","v":"N/A"},{"$f":"_xlfn.XLOOKUP($E64,'Activity 9'!$B$7:$B$13,'Activity 9'!Q$7:Q$13,\"N/A\",0,1)","v":"N/A"},{"$f":"_xlfn.XLOOKUP($E64,'Activity 9'!$B$7:$B$13,'Activity 9'!R$7:R$13,\"N/A\",0,1)","v":"N/A"},{"$f":"_xlfn.XLOOKUP($E64,'Activity 9'!$B$7:$B$13,'Activity 9'!S$7:S$13,\"N/A\",0,1)","v":"N/A"},{"$f":"_xlfn.XLOOKUP($E64,'Activity 9'!$B$7:$B$13,'Activity 9'!T$7:T$13,\"N/A\",0,1)","v":"N/A"},{"$f":"_xlfn.XLOOKUP($E64,'Activity 9'!$B$17:$B$23,'Activity 9'!E$17:E$23,\"N/A\",0,1)","v":"N/A"},{"$f":"_xlfn.XLOOKUP($E64,'Activity 9'!$B$17:$B$23,'Activity 9'!F$17:F$23,\"N/A\",0,1)","v":"N/A"},{"$f":"_xlfn.XLOOKUP($E64,'Activity 9'!$B$17:$B$23,'Activity 9'!G$17:G$23,\"N/A\",0,1)","v":"N/A"},{"$f":"_xlfn.XLOOKUP($E64,'Activity 9'!$B$17:$B$23,'Activity 9'!H$17:H$23,\"N/A\",0,1)","v":"N/A"},{"$f":"_xlfn.XLOOKUP($E64,'Activity 9'!$B$17:$B$23,'Activity 9'!I$17:I$23,\"N/A\",0,1)","v":"N/A"},{"$f":"_xlfn.XLOOKUP($E64,'Activity 9'!$B$17:$B$23,'Activity 9'!J$17:J$23,\"N/A\",0,1)","v":"N/A"},{"$f":"_xlfn.XLOOKUP($E64,'Activity 9'!$B$17:$B$23,'Activity 9'!K$17:K$23,\"N/A\",0,1)","v":"N/A"},{"$f":"_xlfn.XLOOKUP($E64,'Activity 9'!$B$17:$B$23,'Activity 9'!L$17:L$23,\"N/A\",0,1)","v":"N/A"},{"$f":"_xlfn.XLOOKUP($E64,'Activity 9'!$B$17:$B$23,'Activity 9'!N$17:N$23,\"N/A\",0,1)","v":"N/A"},{"$f":"_xlfn.XLOOKUP($E64,'Activity 9'!$B$17:$B$23,'Activity 9'!O$17:O$23,\"N/A\",0,1)","v":"N/A"},{"$f":"_xlfn.XLOOKUP($E64,'Activity 9'!$B$17:$B$23,'Activity 9'!Q$17:Q$23,\"N/A\",0,1)","v":"N/A"},{"$f":"_xlfn.XLOOKUP($E64,'Activity 10'!$B$7:$B$13,'Activity 10'!A$7:A$13,\"No\",0,1)","v":"No"},{"$f":"_xlfn.XLOOKUP($E64,'Activity 10'!$B$7:$B$13,'Activity 10'!J$7:J$13,\"N/A\",0,1)","v":"N/A"},{"$f":"_xlfn.XLOOKUP($E64,'Activity 10'!$B$7:$B$13,'Activity 10'!K$7:K$13,\"N/A\",0,1)","v":"N/A"},{"$f":"_xlfn.XLOOKUP($E64,'Activity 10'!$B$7:$B$13,'Activity 10'!L$7:L$13,\"N/A\",0,1)","v":"N/A"},{"$f":"_xlfn.XLOOKUP($E64,'Activity 10'!$B$7:$B$13,'Activity 10'!M$7:M$13,\"N/A\",0,1)","v":"N/A"},{"$f":"_xlfn.XLOOKUP($E64,'Activity 10'!$B$7:$B$13,'Activity 10'!N$7:N$13,\"N/A\",0,1)","v":"N/A"},{"$f":"_xlfn.XLOOKUP($E64,'Activity 10'!$B$7:$B$13,'Activity 10'!O$7:O$13,\"N/A\",0,1)","v":"N/A"},{"$f":"_xlfn.XLOOKUP($E64,'Activity 10'!$B$7:$B$13,'Activity 10'!P$7:P$13,\"N/A\",0,1)","v":"N/A"},{"$f":"_xlfn.XLOOKUP($E64,'Activity 10'!$B$7:$B$13,'Activity 10'!Q$7:Q$13,\"N/A\",0,1)","v":"N/A"},{"$f":"_xlfn.XLOOKUP($E64,'Activity 10'!$B$7:$B$13,'Activity 10'!R$7:R$13,\"N/A\",0,1)","v":"N/A"},{"$f":"_xlfn.XLOOKUP($E64,'Activity 10'!$B$7:$B$13,'Activity 10'!S$7:S$13,\"N/A\",0,1)","v":"N/A"},{"$f":"_xlfn.XLOOKUP($E64,'Activity 10'!$B$7:$B$13,'Activity 10'!T$7:T$13,\"N/A\",0,1)","v":"N/A"},{"$f":"_xlfn.XLOOKUP($E64,'Activity 10'!$B$7:$B$13,'Activity 10'!U$7:U$13,\"N/A\",0,1)","v":"N/A"},{"$f":"_xlfn.XLOOKUP($E64,'Activity 10'!$B$7:$B$13,'Activity 10'!V$7:V$13,\"N/A\",0,1)","v":"N/A"},{"$f":"_xlfn.XLOOKUP($E64,'Activity 10'!$B$17:$B$23,'Activity 10'!E$17:E$23,\"N/A\",0,1)","v":"N/A"},{"$f":"_xlfn.XLOOKUP($E64,'Activity 10'!$B$17:$B$23,'Activity 10'!F$17:F$23,\"N/A\",0,1)","v":"N/A"},{"$f":"_xlfn.XLOOKUP($E64,'Activity 10'!$B$17:$B$23,'Activity 10'!G$17:G$23,\"N/A\",0,1)","v":"N/A"},{"$f":"_xlfn.XLOOKUP($E64,'Activity 10'!$B$17:$B$23,'Activity 10'!H$17:H$23,\"N/A\",0,1)","v":"N/A"},{"$f":"_xlfn.XLOOKUP($E64,'Activity 10'!$B$17:$B$23,'Activity 10'!I$17:I$23,\"N/A\",0,1)","v":"N/A"},{"$f":"_xlfn.XLOOKUP($E64,'Activity 10'!$B$17:$B$23,'Activity 10'!J$17:J$23,\"N/A\",0,1)","v":"N/A"},{"$f":"_xlfn.XLOOKUP($E64,'Activity 10'!$B$17:$B$23,'Activity 10'!K$17:K$23,\"N/A\",0,1)","v":"N/A"},{"$f":"_xlfn.XLOOKUP($E64,'Activity 10'!$B$17:$B$23,'Activity 10'!L$17:L$23,\"N/A\",0,1)","v":"N/A"},{"$f":"_xlfn.XLOOKUP($E64,'Activity 10'!$B$17:$B$23,'Activity 10'!M$17:M$23,\"N/A\",0,1)","v":"N/A"},{"$f":"_xlfn.XLOOKUP($E64,'Activity 10'!$B$17:$B$23,'Activity 10'!N$17:N$23,\"N/A\",0,1)","v":"N/A"},{"$f":"_xlfn.XLOOKUP($E64,'Activity 10'!$B$17:$B$23,'Activity 10'!P$17:P$23,\"N/A\",0,1)","v":"N/A"},{"$f":"_xlfn.XLOOKUP($E64,'Competitive Activity 1'!B$7:B$13,'Competitive Activity 1'!A$7:A$13,\"No\",0,1)","v":"No"},{"$f":"_xlfn.XLOOKUP($E64,'Competitive Activity 1'!$B$7:$B$13,'Competitive Activity 1'!H$7:H$13,\"N/A\",0,1)","v":"N/A"},{"$f":"_xlfn.XLOOKUP($E64,'Competitive Activity 1'!$B$7:$B$13,'Competitive Activity 1'!I$7:I$13,\"N/A\",0,1)","v":"N/A"},{"$f":"_xlfn.XLOOKUP($E64,'Competitive Activity 1'!$B$7:$B$13,'Competitive Activity 1'!J$7:J$13,\"N/A\",0,1)","v":"N/A"},{"$f":"_xlfn.XLOOKUP($E64,'Competitive Activity 1'!$B$7:$B$13,'Competitive Activity 1'!K$7:K$13,\"N/A\",0,1)","v":"N/A"},{"$f":"_xlfn.XLOOKUP($E64,'Competitive Activity 1'!$B$7:$B$13,'Competitive Activity 1'!L$7:L$13,\"N/A\",0,1)","v":"N/A"},{"$f":"_xlfn.XLOOKUP($E64,'Competitive Activity 1'!$B$7:$B$13,'Competitive Activity 1'!M$7:M$13,\"N/A\",0,1)","v":"N/A"},{"$f":"_xlfn.XLOOKUP($E64,'Competitive Activity 1'!$B$7:$B$13,'Competitive Activity 1'!N$7:N$13,\"N/A\",0,1)","v":"N/A"},{"$f":"_xlfn.XLOOKUP($E64,'Competitive Activity 1'!$B$7:$B$13,'Competitive Activity 1'!O$7:O$13,\"N/A\",0,1)","v":"N/A"},{"$f":"_xlfn.XLOOKUP($E64,'Competitive Activity 1'!$B$7:$B$13,'Competitive Activity 1'!P$7:P$13,\"N/A\",0,1)","v":"N/A"},{"$f":"_xlfn.XLOOKUP($E64,'Competitive Activity 1'!$B$7:$B$13,'Competitive Activity 1'!Q$7:Q$13,\"N/A\",0,1)","v":"N/A"},{"$f":"_xlfn.XLOOKUP($E64,'Competitive Activity 1'!$B$7:$B$13,'Competitive Activity 1'!R$7:R$13,\"N/A\",0,1)","v":"N/A"},{"$f":"_xlfn.XLOOKUP($E64,'Competitive Activity 1'!$B$7:$B$13,'Competitive Activity 1'!S$7:S$13,\"N/A\",0,1)","v":"N/A"},{"$f":"_xlfn.XLOOKUP($E64,'Competitive Activity 1'!$B$7:$B$13,'Competitive Activity 1'!T$7:T$13,\"N/A\",0,1)","v":"N/A"},{"$f":"_xlfn.XLOOKUP($E64,'Competitive Activity 1'!$B$7:$B$13,'Competitive Activity 1'!U$7:U$13,\"N/A\",0,1)","v":"N/A"},{"$f":"_xlfn.XLOOKUP($E64,'Competitive Activity 1'!$B$17:$B$23,'Competitive Activity 1'!C$17:C$23,\"N/A\",0,1)","v":"N/A"},{"$f":"_xlfn.XLOOKUP($E64,'Competitive Activity 1'!$B$17:$B$23,'Competitive Activity 1'!D$17:D$23,\"N/A\",0,1)","v":"N/A"},{"$f":"_xlfn.XLOOKUP($E64,'Competitive Activity 1'!$B$17:$B$23,'Competitive Activity 1'!E$17:E$23,\"N/A\",0,1)","v":"N/A"},{"$f":"_xlfn.XLOOKUP($E64,'Competitive Activity 1'!$B$17:$B$23,'Competitive Activity 1'!F$17:F$23,\"N/A\",0,1)","v":"N/A"},{"$f":"_xlfn.XLOOKUP($E64,'Competitive Activity 1'!$B$17:$B$23,'Competitive Activity 1'!G$17:G$23,\"N/A\",0,1)","v":"N/A"},{"$f":"_xlfn.XLOOKUP($E64,'Competitive Activity 1'!$B$17:$B$23,'Competitive Activity 1'!H$17:H$23,\"N/A\",0,1)","v":"N/A"},{"$f":"_xlfn.XLOOKUP($E64,'Competitive Activity 1'!$B$17:$B$23,'Competitive Activity 1'!I$17:I$23,\"N/A\",0,1)","v":"N/A"},{"$f":"_xlfn.XLOOKUP($E64,'Competitive Activity 1'!$B$17:$B$23,'Competitive Activity 1'!J$17:J$23,\"N/A\",0,1)","v":"N/A"},{"$f":"_xlfn.XLOOKUP($E64,'Competitive Activity 1'!$B$17:$B$23,'Competitive Activity 1'!K$17:K$23,\"N/A\",0,1)","v":"N/A"},{"$f":"_xlfn.XLOOKUP($E64,'Competitive Activity 1'!$B$17:$B$23,'Competitive Activity 1'!M$17:M$23,\"N/A\",0,1)","v":"N/A"},{"$f":"_xlfn.XLOOKUP($E64,'Competitive Activity 1'!$B$17:$B$23,'Competitive Activity 1'!N$17:N$23,\"N/A\",0,1)","v":"N/A"},{"$f":"_xlfn.XLOOKUP($E64,'Competitive Activity 1'!$B$17:$B$23,'Competitive Activity 1'!P$17:P$23,\"N/A\",0,1)","v":"N/A"},{"$f":"_xlfn.XLOOKUP($E64,'Competitive Activity 2'!$B$7:$B$13,'Competitive Activity 2'!A$7:A$13,\"No\",0)","v":"No"},{"$f":"_xlfn.XLOOKUP($E64,'Competitive Activity 2'!$B$7:$B$13,'Competitive Activity 2'!L$7:L$13,\"N/A\",0)","v":"N/A"},{"$f":"_xlfn.XLOOKUP($E64,'Competitive Activity 2'!$B$7:$B$13,'Competitive Activity 2'!M$7:M$13,\"N/A\",0)","v":"N/A"},{"$f":"_xlfn.XLOOKUP($E64,'Competitive Activity 2'!$B$7:$B$13,'Competitive Activity 2'!N$7:N$13,\"N/A\",0)","v":"N/A"},{"$f":"_xlfn.XLOOKUP($E64,'Competitive Activity 2'!$B$7:$B$13,'Competitive Activity 2'!O$7:O$13,\"N/A\",0)","v":"N/A"},{"$f":"_xlfn.XLOOKUP($E64,'Competitive Activity 2'!$B$7:$B$13,'Competitive Activity 2'!P$7:P$13,\"N/A\",0)","v":"N/A"},{"$f":"_xlfn.XLOOKUP($E64,'Competitive Activity 2'!$B$7:$B$13,'Competitive Activity 2'!Q$7:Q$13,\"N/A\",0)","v":"N/A"},{"$f":"_xlfn.XLOOKUP($E64,'Competitive Activity 2'!$B$7:$B$13,'Competitive Activity 2'!R$7:R$13,\"N/A\",0)","v":"N/A"},{"$f":"_xlfn.XLOOKUP($E64,'Competitive Activity 2'!$B$7:$B$13,'Competitive Activity 2'!S$7:S$13,\"N/A\",0)","v":"N/A"},{"$f":"_xlfn.XLOOKUP($E64,'Competitive Activity 2'!$B$7:$B$13,'Competitive Activity 2'!T$7:T$13,\"N/A\",0)","v":"N/A"},{"$f":"_xlfn.XLOOKUP($E64,'Competitive Activity 2'!$B$7:$B$13,'Competitive Activity 2'!U$7:U$13,\"N/A\",0)","v":"N/A"},{"$f":"_xlfn.XLOOKUP($E64,'Competitive Activity 2'!$B$17:$B$23,'Competitive Activity 2'!D$17:D$23,\"N/A\",0)","v":"N/A"},{"$f":"_xlfn.XLOOKUP($E64,'Competitive Activity 2'!$B$17:$B$23,'Competitive Activity 2'!E$17:E$23,\"N/A\",0)","v":"N/A"},{"$f":"_xlfn.XLOOKUP($E64,'Competitive Activity 2'!$B$17:$B$23,'Competitive Activity 2'!F$17:F$23,\"N/A\",0)","v":"N/A"},{"$f":"_xlfn.XLOOKUP($E64,'Competitive Activity 2'!$B$17:$B$23,'Competitive Activity 2'!G$17:G$23,\"N/A\",0)","v":"N/A"},{"$f":"_xlfn.XLOOKUP($E64,'Competitive Activity 2'!$B$17:$B$23,'Competitive Activity 2'!H$17:H$23,\"N/A\",0)","v":"N/A"},{"$f":"_xlfn.XLOOKUP($E64,'Competitive Activity 2'!$B$17:$B$23,'Competitive Activity 2'!I$17:I$23,\"N/A\",0)","v":"N/A"},{"$f":"_xlfn.XLOOKUP($E64,'Competitive Activity 2'!$B$17:$B$23,'Competitive Activity 2'!J$17:J$23,\"N/A\",0)","v":"N/A"},{"$f":"_xlfn.XLOOKUP($E64,'Competitive Activity 2'!$B$17:$B$23,'Competitive Activity 2'!K$17:K$23,\"N/A\",0)","v":"N/A"},{"$f":"_xlfn.XLOOKUP($E64,'Competitive Activity 2'!$B$17:$B$23,'Competitive Activity 2'!L$17:L$23,\"N/A\",0)","v":"N/A"},{"$f":"_xlfn.XLOOKUP($E64,'Competitive Activity 2'!$B$17:$B$23,'Competitive Activity 2'!M$17:M$23,\"N/A\",0)","v":"N/A"},{"$f":"_xlfn.XLOOKUP($E64,'Competitive Activity 2'!$B$17:$B$23,'Competitive Activity 2'!N$17:N$23,\"N/A\",0)","v":"N/A"},{"$f":"_xlfn.XLOOKUP($E64,'Competitive Activity 2'!$B$27:$B$33,'Competitive Activity 2'!D$27:D$33,\"N/A\",0)","v":"N/A"},{"$f":"_xlfn.XLOOKUP($E64,'Competitive Activity 2'!$B$27:$B$33,'Competitive Activity 2'!E$27:E$33,\"N/A\",0)","v":"N/A"},{"$f":"_xlfn.XLOOKUP($E64,'Competitive Activity 2'!$B$27:$B$33,'Competitive Activity 2'!F$27:F$33,\"N/A\",0)","v":"N/A"},{"$f":"_xlfn.XLOOKUP($E64,'Competitive Activity 2'!$B$27:$B$33,'Competitive Activity 2'!G$27:G$33,\"N/A\",0)","v":"N/A"},{"$f":"_xlfn.XLOOKUP($E64,'Competitive Activity 2'!$B$27:$B$33,'Competitive Activity 2'!H$27:H$33,\"N/A\",0)","v":"N/A"},{"$f":"_xlfn.XLOOKUP($E64,'Competitive Activity 2'!$B$27:$B$33,'Competitive Activity 2'!I$27:I$33,\"N/A\",0)","v":"N/A"},{"$f":"_xlfn.XLOOKUP($E64,'Competitive Activity 2'!$B$27:$B$33,'Competitive Activity 2'!J$27:J$33,\"N/A\",0)","v":"N/A"},{"$f":"_xlfn.XLOOKUP($E64,'Competitive Activity 2'!$B$27:$B$33,'Competitive Activity 2'!K$27:K$33,\"N/A\",0)","v":"N/A"},{"$f":"_xlfn.XLOOKUP($E64,'Competitive Activity 2'!$B$27:$B$33,'Competitive Activity 2'!M$27:M$33,\"N/A\",0)","v":"N/A"}]
[{"$f":"'1-Cover Sheet'!$C$8","v":"Select One"},{"$f":"'1-Cover Sheet'!$F$8","v":"Select One"},{"$f":"'Summary Sheet'!$D$8","v":0},{"$f":"'Summary Sheet'!$D$10","v":0},{"$f":"'Drop Down Box'!B229","v":0},{"$f":"'Drop Down Box'!C229","v":0},{"$f":"'Drop Down Box'!D229","v":"Select One"},{"$f":"_xlfn.XLOOKUP(E65,'Drop Down Box'!$B$166:$B$249,'Drop Down Box'!$A$166:$A$249,\"Unknown\",0)","v":"Activity 1"},{"$f":"_xlfn.XLOOKUP($E65,'Activity 10'!$B$17:$B$23,'Activity 10'!$O$17:$O$23,\"N/A\",0)","v":"N/A"},{"$f":"_xlfn.XLOOKUP($E65,'Activity 10'!$B$17:$B$23,'Activity 10'!$Q$17:$Q$23,\"N/A\",0)","v":"N/A"},{"$f":"_xlfn.XLOOKUP($E65,'Activity 10'!$B$7:$B$13,'Activity 10'!G$7:G$13,\"N/A\",0)","v":"N/A"},{"$f":"_xlfn.XLOOKUP($E65,'Activity 10'!$B$7:$B$13,'Activity 10'!H$7:H$13,\"N/A\",0)","v":"N/A"},{"$f":"_xlfn.XLOOKUP($E65,'Activity 10'!$B$7:$B$13,'Activity 10'!I$7:I$13,\"N/A\",0)","v":"N/A"},{"$f":"_xlfn.XLOOKUP($E65,'Activity 1'!$B$7:$B$13,'Activity 1'!$A$7:$A$13,\"No\",0,1)","v":"No"},{"$f":"_xlfn.XLOOKUP($E65,'Activity 1'!$B$7:$B$13,'Activity 1'!$H$7:$H$13,\"N/A\",0,1)","v":"N/A"},{"$f":"_xlfn.XLOOKUP($E65,'Activity 1'!$B$7:$B$13,'Activity 1'!I$7:I$13,\"N/A\",0,1)","v":"N/A"},{"$f":"_xlfn.XLOOKUP($E65,'Activity 1'!$B$7:$B$13,'Activity 1'!J$7:J$13,\"N/A\",0,1)","v":"N/A"},{"$f":"_xlfn.XLOOKUP($E65,'Activity 1'!$B$7:$B$13,'Activity 1'!K$7:K$13,\"N/A\",0,1)","v":"N/A"},{"$f":"_xlfn.XLOOKUP($E65,'Activity 1'!$B$7:$B$13,'Activity 1'!L$7:L$13,\"N/A\",0,1)","v":"N/A"},{"$f":"_xlfn.XLOOKUP($E65,'Activity 1'!$B$7:$B$13,'Activity 1'!M$7:M$13,\"N/A\",0,1)","v":"N/A"},{"$f":"_xlfn.XLOOKUP($E65,'Activity 1'!$B$7:$B$13,'Activity 1'!N$7:N$13,\"N/A\",0,1)","v":"N/A"},0,{"$f":"_xlfn.XLOOKUP($E65,'Activity 1'!$B$7:$B$13,'Activity 1'!O$7:O$13,\"N/A\",0,1)","v":"N/A"},{"$f":"_xlfn.XLOOKUP($E65,'Activity 1'!$B$7:$B$13,'Activity 1'!P$7:P$13,\"N/A\",0,1)","v":"N/A"},{"$f":"_xlfn.XLOOKUP($E65,'Activity 1'!$B$7:$B$13,'Activity 1'!Q$7:Q$13,\"N/A\",0,1)","v":"N/A"},{"$f":"_xlfn.XLOOKUP($E65,'Activity 1'!$B$7:$B$13,'Activity 1'!R$7:R$13,\"N/A\",0,1)","v":"N/A"},{"$f":"_xlfn.XLOOKUP($E65,'Activity 1'!$B$7:$B$13,'Activity 1'!S$7:S$13,\"N/A\",0,1)","v":"N/A"},{"$f":"_xlfn.XLOOKUP($E65,'Activity 1'!$B$7:$B$13,'Activity 1'!T$7:T$13,\"N/A\",0,1)","v":"N/A"},{"$f":"_xlfn.XLOOKUP($E65,'Activity 1'!$B$7:$B$13,'Activity 1'!U$7:U$13,\"N/A\",0,1)","v":"N/A"},{"$f":"_xlfn.XLOOKUP($E65,'Activity 1'!$B$7:$B$13,'Activity 1'!V$7:V$13,\"N/A\",0,1)","v":"N/A"},{"$f":"_xlfn.XLOOKUP($E65,'Activity 1'!$B$17:$B$23,'Activity 1'!C$17:C$23,\"N/A\",0,1)","v":"N/A"},{"$f":"_xlfn.XLOOKUP($E65,'Activity 1'!$B$17:$B$23,'Activity 1'!D$17:D$23,\"N/A\",0,1)","v":"N/A"},{"$f":"_xlfn.XLOOKUP($E65,'Activity 1'!$B$17:$B$23,'Activity 1'!E$17:E$23,\"N/A\",0,1)","v":"N/A"},{"$f":"_xlfn.XLOOKUP($E65,'Activity 1'!$B$17:$B$23,'Activity 1'!F$17:F$23,\"N/A\",0,1)","v":"N/A"},{"$f":"_xlfn.XLOOKUP($E65,'Activity 1'!$B$17:$B$23,'Activity 1'!G$17:G$23,\"N/A\",0,1)","v":"N/A"},{"$f":"_xlfn.XLOOKUP($E65,'Activity 1'!$B$17:$B$23,'Activity 1'!H$17:H$23,\"N/A\",0,1)","v":"N/A"},{"$f":"_xlfn.XLOOKUP($E65,'Activity 1'!$B$17:$B$23,'Activity 1'!I$17:I$23,\"N/A\",0,1)","v":"N/A"},{"$f":"_xlfn.XLOOKUP($E65,'Activity 1'!$B$17:$B$23,'Activity 1'!J$17:J$23,\"N/A\",0,1)","v":"N/A"},{"$f":"_xlfn.XLOOKUP($E65,'Activity 1'!$B$17:$B$23,'Activity 1'!K$17:K$23,\"N/A\",0,1)","v":"N/A"},{"$f":"_xlfn.XLOOKUP($E65,'Activity 1'!$B$17:$B$23,'Activity 1'!L$17:L$23,\"N/A\",0,1)","v":"N/A"},{"$f":"_xlfn.XLOOKUP($E65,'Activity 1'!$B$17:$B$23,'Activity 1'!M$17:M$23,\"N/A\",0,1)","v":"N/A"},{"$f":"_xlfn.XLOOKUP($E65,'Activity 1'!$B$17:$B$23,'Activity 1'!O$17:O$23,\"N/A\",0,1)","v":"N/A"},{"$f":"_xlfn.XLOOKUP($E65,'Activity 1'!$B$17:$B$23,'Activity 1'!Q$17:Q$23,\"N/A\",0,1)","v":"N/A"},{"$f":"_xlfn.XLOOKUP($E65,'Activity 2'!$B$7:$B$13,'Activity 2'!$A$7:$A$13,\"No\",0,1)","v":"No"},{"$f":"_xlfn.XLOOKUP($E65,'Activity 2'!B$7:B$13,'Activity 2'!H$7:H$13,\"N/A\",0)","v":"N/A"},{"$f":"_xlfn.XLOOKUP($E65,'Activity 2'!C$7:C$13,'Activity 2'!I$7:I$13,\"N/A\",0)","v":"N/A"},{"$f":"_xlfn.XLOOKUP($E65,'Activity 2'!D$7:D$13,'Activity 2'!J$7:J$13,\"N/A\",0)","v":"N/A"},{"$f":"_xlfn.XLOOKUP($E65,'Activity 2'!E$7:E$13,'Activity 2'!K$7:K$13,\"N/A\",0)","v":"N/A"},{"$f":"_xlfn.XLOOKUP($E65,'Activity 2'!F$7:F$13,'Activity 2'!L$7:L$13,\"N/A\",0)","v":"N/A"},{"$f":"_xlfn.XLOOKUP($E65,'Activity 2'!G$7:G$13,'Activity 2'!M$7:M$13,\"N/A\",0)","v":"N/A"},{"$f":"_xlfn.XLOOKUP($E65,'Activity 2'!H$7:H$13,'Activity 2'!N$7:N$13,\"N/A\",0)","v":"N/A"},{"$f":"_xlfn.XLOOKUP($E65,'Activity 2'!I$7:I$13,'Activity 2'!O$7:O$13,\"N/A\",0)","v":"N/A"},{"$f":"_xlfn.XLOOKUP($E65,'Activity 2'!J$7:J$13,'Activity 2'!P$7:P$13,\"N/A\",0)","v":"N/A"},{"$f":"_xlfn.XLOOKUP($E65,'Activity 2'!K$7:K$13,'Activity 2'!Q$7:Q$13,\"N/A\",0)","v":"N/A"},{"$f":"_xlfn.XLOOKUP($E65,'Activity 2'!L$7:L$13,'Activity 2'!R$7:R$13,\"N/A\",0)","v":"N/A"},{"$f":"_xlfn.XLOOKUP($E65,'Activity 2'!M$7:M$13,'Activity 2'!S$7:S$13,\"N/A\",0)","v":"N/A"},{"$f":"_xlfn.XLOOKUP($E65,'Activity 2'!N$7:N$13,'Activity 2'!T$7:T$13,\"N/A\",0)","v":"N/A"},{"$f":"_xlfn.XLOOKUP($E65,'Activity 2'!O$7:O$13,'Activity 2'!U$7:U$13,\"N/A\",0)","v":"N/A"},{"$f":"_xlfn.XLOOKUP($E65,'Activity 2'!P$7:P$13,'Activity 2'!V$7:V$13,\"N/A\",0)","v":"N/A"},{"$f":"_xlfn.XLOOKUP($E65,'Activity 2'!$B$17:$B$23,'Activity 2'!C$17:C$23,\"N/A\",0,1)","v":"N/A"},{"$f":"_xlfn.XLOOKUP($E65,'Activity 2'!$B$17:$B$23,'Activity 2'!D$17:D$23,\"N/A\",0,1)","v":"N/A"},{"$f":"_xlfn.XLOOKUP($E65,'Activity 2'!$B$17:$B$23,'Activity 2'!E$17:E$23,\"N/A\",0,1)","v":"N/A"},{"$f":"_xlfn.XLOOKUP($E65,'Activity 2'!$B$17:$B$23,'Activity 2'!F$17:F$23,\"N/A\",0,1)","v":"N/A"},{"$f":"_xlfn.XLOOKUP($E65,'Activity 2'!$B$17:$B$23,'Activity 2'!G$17:G$23,\"N/A\",0,1)","v":"N/A"},{"$f":"_xlfn.XLOOKUP($E65,'Activity 2'!$B$17:$B$23,'Activity 2'!H$17:H$23,\"N/A\",0,1)","v":"N/A"},{"$f":"_xlfn.XLOOKUP($E65,'Activity 2'!$B$17:$B$23,'Activity 2'!I$17:I$23,\"N/A\",0,1)","v":"N/A"},{"$f":"_xlfn.XLOOKUP($E65,'Activity 2'!$B$17:$B$23,'Activity 2'!J$17:J$23,\"N/A\",0,1)","v":"N/A"},{"$f":"_xlfn.XLOOKUP($E65,'Activity 2'!$B$17:$B$23,'Activity 2'!K$17:K$23,\"N/A\",0,1)","v":"N/A"},{"$f":"_xlfn.XLOOKUP($E65,'Activity 2'!$B$17:$B$23,'Activity 2'!L$17:L$23,\"N/A\",0,1)","v":"N/A"},{"$f":"_xlfn.XLOOKUP($E65,'Activity 2'!$B$17:$B$23,'Activity 2'!M$17:M$23,\"N/A\",0,1)","v":"N/A"},{"$f":"_xlfn.XLOOKUP($E65,'Activity 2'!$B$17:$B$23,'Activity 2'!O$17:O$23,\"N/A\",0,1)","v":"N/A"},{"$f":"_xlfn.XLOOKUP($E65,'Activity 2'!$B$17:$B$23,'Activity 2'!Q$17:Q$23,\"N/A\",0,1)","v":"N/A"},null,{"$f":"_xlfn.XLOOKUP($E65,'Activity 3'!$B$8:$B$14,'Activity 3'!K$8:K$14,\"N/A\",0,1)","v":"N/A"},{"$f":"_xlfn.XLOOKUP($E65,'Activity 3'!$B$8:$B$14,'Activity 3'!L$8:L$14,\"N/A\",0,1)","v":"N/A"},{"$f":"_xlfn.XLOOKUP($E65,'Activity 3'!$B$8:$B$14,'Activity 3'!M$8:M$14,\"N/A\",0,1)","v":"N/A"},{"$f":"_xlfn.XLOOKUP($E65,'Activity 3'!$B$8:$B$14,'Activity 3'!N$8:N$14,\"N/A\",0,1)","v":"N/A"},{"$f":"_xlfn.XLOOKUP($E65,'Activity 3'!$B$8:$B$14,'Activity 3'!O$8:O$14,\"N/A\",0,1)","v":"N/A"},{"$f":"_xlfn.XLOOKUP($E65,'Activity 3'!$B$8:$B$14,'Activity 3'!R$8:R$14,\"N/A\",0,1)","v":"N/A"},{"$f":"_xlfn.XLOOKUP($E65,'Activity 4'!$B$8:$B$14,'Activity 4'!$A$8:$A$14,\"No\",0,1)","v":"No"},{"$f":"_xlfn.XLOOKUP($E65,'Activity 4'!$B$8:$B$14,'Activity 4'!L$8:L$14,\"N/A\",0,1)","v":"N/A"},{"$f":"_xlfn.XLOOKUP($E65,'Activity 4'!$B$8:$B$14,'Activity 4'!I$8:I$14,\"N/A\",0,1)","v":"N/A"},{"$f":"_xlfn.XLOOKUP($E65,'Activity 4'!$B$8:$B$14,'Activity 4'!M$8:M$14,\"N/A\",0,1)","v":"N/A"},{"$f":"_xlfn.XLOOKUP($E65,'Activity 5'!$B$8:$B$14,'Activity 5'!$A$8:$A$14,\"No\",0,1)","v":"No"},{"$f":"_xlfn.XLOOKUP($E65,'Activity 5'!$B$8:$B$14,'Activity 5'!J$8:J$14,\"N/A\",0,1)","v":"N/A"},{"$f":"_xlfn.XLOOKUP($E65,'Activity 5'!$B$8:$B$14,'Activity 5'!K$8:K$14,\"N/A\",0,1)","v":"N/A"},{"$f":"_xlfn.XLOOKUP($E65,'Activity 5'!$B$8:$B$14,'Activity 5'!N$8:N$14,\"N/A\",0,1)","v":"N/A"},{"$f":"_xlfn.XLOOKUP($E65,'Activity 5'!$B$8:$B$14,'Activity 5'!O$8:O$14,\"N/A\",0,1)","v":"N/A"},{"$f":"_xlfn.XLOOKUP($E65,'Activity 5'!$B$8:$B$14,'Activity 5'!P$8:P$14,\"N/A\",0,1)","v":"N/A"},{"$f":"_xlfn.XLOOKUP($E65,'Activity 5'!$B$8:$B$14,'Activity 5'!Q$8:Q$14,\"N/A\",0,1)","v":"N/A"},{"$f":"_xlfn.XLOOKUP($E65,'Activity 5'!$B$8:$B$14,'Activity 5'!R$8:R$14,\"N/A\",0,1)","v":"N/A"},{"$f":"_xlfn.XLOOKUP($E65,'Activity 6'!$B$7:$B$13,'Activity 6'!A$7:A$13,\"No\",0,1)","v":"No"},{"$f":"_xlfn.XLOOKUP($E65,'Activity 6'!$B$7:$B$13,'Activity 6'!K$7:K$13,\"N/A\",0,1)","v":"N/A"},{"$f":"_xlfn.XLOOKUP($E65,'Activity 6'!$B$7:$B$13,'Activity 6'!L$7:L$13,\"N/A\",0,1)","v":"N/A"},{"$f":"_xlfn.XLOOKUP($E65,'Activity 6'!$B$7:$B$13,'Activity 6'!M$7:M$13,\"N/A\",0,1)","v":"N/A"},{"$f":"_xlfn.XLOOKUP($E65,'Activity 6'!$B$7:$B$13,'Activity 6'!N$7:N$13,\"N/A\",0,1)","v":"N/A"},{"$f":"_xlfn.XLOOKUP($E65,'Activity 6'!$B$7:$B$13,'Activity 6'!O$7:O$13,\"N/A\",0,1)","v":"N/A"},{"$f":"_xlfn.XLOOKUP($E65,'Activity 6'!$B$7:$B$13,'Activity 6'!P$7:P$13,\"N/A\",0,1)","v":"N/A"},{"$f":"_xlfn.XLOOKUP($E65,'Activity 6'!$B$7:$B$13,'Activity 6'!Q$7:Q$13,\"N/A\",0,1)","v":"N/A"},{"$f":"_xlfn.XLOOKUP($E65,'Activity 6'!$B$7:$B$13,'Activity 6'!R$7:R$13,\"N/A\",0,1)","v":"N/A"},{"$f":"_xlfn.XLOOKUP($E65,'Activity 6'!$B$7:$B$13,'Activity 6'!S$7:S$13,\"N/A\",0,1)","v":"N/A"},{"$f":"_xlfn.XLOOKUP($E65,'Activity 6'!$B$7:$B$13,'Activity 6'!T$7:T$13,\"N/A\",0,1)","v":"N/A"},{"$f":"_xlfn.XLOOKUP($E65,'Activity 6'!$B$7:$B$13,'Activity 6'!U$7:U$13,\"N/A\",0,1)","v":"N/A"},{"$f":"_xlfn.XLOOKUP($E65,'Activity 6'!$B$22:$B$28,'Activity 6'!C$22:C$28,\"N/A\",0,1)","v":"N/A"},{"$f":"_xlfn.XLOOKUP($E65,'Activity 6'!$B$22:$B$28,'Activity 6'!D$22:D$28,\"N/A\",0,1)","v":"N/A"},{"$f":"_xlfn.XLOOKUP($E65,'Activity 6'!$B$22:$B$28,'Activity 6'!E$22:E$28,\"N/A\",0,1)","v":"N/A"},{"$f":"_xlfn.XLOOKUP($E65,'Activity 6'!$B$22:$B$28,'Activity 6'!F$22:F$28,\"N/A\",0,1)","v":"N/A"},{"$f":"_xlfn.XLOOKUP($E65,'Activity 6'!$B$22:$B$28,'Activity 6'!G$22:G$28,\"N/A\",0,1)","v":"N/A"},{"$f":"_xlfn.XLOOKUP($E65,'Activity 6'!$B$22:$B$28,'Activity 6'!H$22:H$28,\"N/A\",0,1)","v":"N/A"},{"$f":"_xlfn.XLOOKUP($E65,'Activity 6'!$B$22:$B$28,'Activity 6'!I$22:I$28,\"N/A\",0,1)","v":"N/A"},{"$f":"_xlfn.XLOOKUP($E65,'Activity 6'!$B$22:$B$28,'Activity 6'!J$22:J$28,\"N/A\",0,1)","v":"N/A"},{"$f":"_xlfn.XLOOKUP($E65,'Activity 6'!$B$22:$B$28,'Activity 6'!K$22:K$28,\"N/A\",0,1)","v":"N/A"},{"$f":"_xlfn.XLOOKUP($E65,'Activity 6'!$B$22:$B$28,'Activity 6'!L$22:L$28,\"N/A\",0,1)","v":"N/A"},{"$f":"_xlfn.XLOOKUP($E65,'Activity 6'!$B$22:$B$28,'Activity 6'!M$22:M$28,\"N/A\",0,1)","v":"N/A"},{"$f":"_xlfn.XLOOKUP($E65,'Activity 6'!$B$22:$B$28,'Activity 6'!N$22:N$28,\"N/A\",0,1)","v":"N/A"},{"$f":"_xlfn.XLOOKUP($E65,'Activity 6'!$B$32:$B$38,'Activity 6'!C$32:C$38,\"N/A\",0,1)","v":"N/A"},{"$f":"_xlfn.XLOOKUP($E65,'Activity 6'!$B$32:$B$38,'Activity 6'!D$32:D$38,\"N/A\",0,1)","v":"N/A"},{"$f":"_xlfn.XLOOKUP($E65,'Activity 6'!$B$32:$B$38,'Activity 6'!E$32:E$38,\"N/A\",0,1)","v":"N/A"},{"$f":"_xlfn.XLOOKUP($E65,'Activity 6'!$B$32:$B$38,'Activity 6'!F$32:F$38,\"N/A\",0,1)","v":"N/A"},{"$f":"_xlfn.XLOOKUP($E65,'Activity 6'!$B$32:$B$38,'Activity 6'!G$32:G$38,\"N/A\",0,1)","v":"N/A"},{"$f":"_xlfn.XLOOKUP($E65,'Activity 6'!$B$32:$B$38,'Activity 6'!H$32:H$38,\"N/A\",0,1)","v":"N/A"},{"$f":"_xlfn.XLOOKUP($E65,'Activity 6'!$B$32:$B$38,'Activity 6'!I$32:I$38,\"N/A\",0,1)","v":"N/A"},{"$f":"_xlfn.XLOOKUP($E65,'Activity 6'!$B$32:$B$38,'Activity 6'!J$32:J$38,\"N/A\",0,1)","v":"N/A"},{"$f":"_xlfn.XLOOKUP($E65,'Activity 6'!$B$32:$B$38,'Activity 6'!K$32:K$38,\"N/A\",0,1)","v":"N/A"},{"$f":"_xlfn.XLOOKUP($E65,'Activity 6'!$B$32:$B$38,'Activity 6'!M$32:M$38,\"N/A\",0,1)","v":"N/A"},{"$f":"_xlfn.XLOOKUP($E65,'Activity 7'!$B$7:$B$13,'Activity 7'!$A$7:$A$13,\"No\",0,1)","v":"No"},{"$f":"_xlfn.XLOOKUP($E65,'Activity 7'!$B$7:$B$13,'Activity 7'!M$7:M$13,\"N/A\",0,1)","v":"N/A"},{"$f":"_xlfn.XLOOKUP($E65,'Activity 7'!$B$7:$B$13,'Activity 7'!K$7:K$13,\"N/A\",0,1)","v":"N/A"},{"$f":"_xlfn.XLOOKUP($E65,'Activity 7'!$B$7:$B$13,'Activity 7'!N$7:N$13,\"N/A\",0,1)","v":"N/A"},{"$f":"_xlfn.XLOOKUP($E65,'Activity 7'!$B$7:$B$13,'Activity 7'!O$7:O$13,\"N/A\",0,1)","v":"N/A"},{"$f":"_xlfn.XLOOKUP($E65,'Activity 7'!$B$7:$B$13,'Activity 7'!P$7:P$13,\"N/A\",0,1)","v":"N/A"},{"$f":"_xlfn.XLOOKUP($E65,'Activity 7'!$B$7:$B$13,'Activity 7'!Q$7:Q$13,\"N/A\",0,1)","v":"N/A"},{"$f":"_xlfn.XLOOKUP($E65,'Activity 7'!$B$7:$B$13,'Activity 7'!R$7:R$13,\"N/A\",0,1)","v":"N/A"},{"$f":"_xlfn.XLOOKUP($E65,'Activity 7'!$B$7:$B$13,'Activity 7'!S$7:S$13,\"N/A\",0,1)","v":"N/A"},{"$f":"_xlfn.XLOOKUP($E65,'Activity 7'!$B$7:$B$13,'Activity 7'!T$7:T$13,\"N/A\",0,1)","v":"N/A"},{"$f":"_xlfn.XLOOKUP($E65,'Activity 7'!$B$7:$B$13,'Activity 7'!U$7:U$13,\"N/A\",0,1)","v":"N/A"},{"$f":"_xlfn.XLOOKUP($E65,'Activity 7'!$B$7:$B$13,'Activity 7'!V$7:V$13,\"N/A\",0,1)","v":"N/A"},{"$f":"_xlfn.XLOOKUP($E65,'Activity 7'!$B$17:$B$23,'Activity 7'!E$17:E$23,\"N/A\",0,1)","v":"N/A"},{"$f":"_xlfn.XLOOKUP($E65,'Activity 7'!$B$17:$B$23,'Activity 7'!G$17:G$23,\"N/A\",0,1)","v":"N/A"},{"$f":"_xlfn.XLOOKUP($E65,'Activity 7'!$B$17:$B$23,'Activity 7'!I$17:I$23,\"N/A\",0,1)","v":"N/A"},{"$f":"_xlfn.XLOOKUP($E65,'Activity 7'!$B$17:$B$23,'Activity 7'!J$17:J$23,\"N/A\",0,1)","v":"N/A"},{"$f":"_xlfn.XLOOKUP($E65,'Activity 7'!$B$17:$B$23,'Activity 7'!K$17:K$23,\"N/A\",0,1)","v":"N/A"},{"$f":"_xlfn.XLOOKUP($E65,'Activity 7'!$B$17:$B$23,'Activity 7'!L$17:L$23,\"N/A\",0,1)","v":"N/A"},{"$f":"_xlfn.XLOOKUP($E65,'Activity 7'!$B$17:$B$23,'Activity 7'!M$17:M$23,\"N/A\",0,1)","v":"N/A"},{"$f":"_xlfn.XLOOKUP($E65,'Activity 7'!$B$17:$B$23,'Activity 7'!N$17:N$23,\"N/A\",0,1)","v":"N/A"},{"$f":"_xlfn.XLOOKUP($E65,'Activity 7'!$B$17:$B$23,'Activity 7'!P$17:P$23,\"N/A\",0,1)","v":"N/A"},{"$f":"_xlfn.XLOOKUP($E65,'Activity 8'!$B$7:$B$13,'Activity 8'!A$7:A$13,\"No\",0,1)","v":"No"},{"$f":"_xlfn.XLOOKUP($E65,'Activity 8'!$B$7:$B$13,'Activity 8'!I$7:I$13,\"N/A\",0,1)","v":"N/A"},{"$f":"_xlfn.XLOOKUP($E65,'Activity 8'!$B$7:$B$13,'Activity 8'!J$7:J$13,\"N/A\",0,1)","v":"N/A"},{"$f":"_xlfn.XLOOKUP($E65,'Activity 8'!$B$7:$B$13,'Activity 8'!K$7:K$13,\"N/A\",0,1)","v":"N/A"},{"$f":"_xlfn.XLOOKUP($E65,'Activity 8'!$B$7:$B$13,'Activity 8'!L$7:L$13,\"N/A\",0,1)","v":"N/A"},{"$f":"_xlfn.XLOOKUP($E65,'Activity 8'!$B$7:$B$13,'Activity 8'!M$7:M$13,\"N/A\",0,1)","v":"N/A"},{"$f":"_xlfn.XLOOKUP($E65,'Activity 8'!$B$7:$B$13,'Activity 8'!N$7:N$13,\"N/A\",0,1)","v":"N/A"},{"$f":"_xlfn.XLOOKUP($E65,'Activity 8'!$B$7:$B$13,'Activity 8'!O$7:O$13,\"N/A\",0,1)","v":"N/A"},{"$f":"_xlfn.XLOOKUP($E65,'Activity 8'!$B$7:$B$13,'Activity 8'!P$7:P$13,\"N/A\",0,1)","v":"N/A"},{"$f":"_xlfn.XLOOKUP($E65,'Activity 8'!$B$7:$B$13,'Activity 8'!Q$7:Q$13,\"N/A\",0,1)","v":"N/A"},{"$f":"_xlfn.XLOOKUP($E65,'Activity 8'!$B$7:$B$13,'Activity 8'!R$7:R$13,\"N/A\",0,1)","v":"N/A"},{"$f":"_xlfn.XLOOKUP($E65,'Activity 8'!$B$7:$B$13,'Activity 8'!S$7:S$13,\"N/A\",0,1)","v":"N/A"},{"$f":"_xlfn.XLOOKUP($E65,'Activity 8'!$B$7:$B$13,'Activity 8'!T$7:T$13,\"N/A\",0,1)","v":"N/A"},{"$f":"_xlfn.XLOOKUP($E65,'Activity 8'!$B$7:$B$13,'Activity 8'!U$7:U$13,\"N/A\",0,1)","v":"N/A"},{"$f":"_xlfn.XLOOKUP($E65,'Activity 8'!$B$7:$B$13,'Activity 8'!V$7:V$13,\"N/A\",0,1)","v":"N/A"},{"$f":"_xlfn.XLOOKUP($E65,'Activity 8'!$B$17:$B$23,'Activity 8'!D$17:D$23,\"N/A\",0,1)","v":"N/A"},{"$f":"_xlfn.XLOOKUP($E65,'Activity 8'!$B$17:$B$23,'Activity 8'!E$17:E$23,\"N/A\",0,1)","v":"N/A"},{"$f":"_xlfn.XLOOKUP($E65,'Activity 8'!$B$17:$B$23,'Activity 8'!F$17:F$23,\"N/A\",0,1)","v":"N/A"},{"$f":"_xlfn.XLOOKUP($E65,'Activity 8'!$B$17:$B$23,'Activity 8'!G$17:G$23,\"N/A\",0,1)","v":"N/A"},{"$f":"_xlfn.XLOOKUP($E65,'Activity 8'!$B$17:$B$23,'Activity 8'!H$17:H$23,\"N/A\",0,1)","v":"N/A"},{"$f":"_xlfn.XLOOKUP($E65,'Activity 8'!$B$17:$B$23,'Activity 8'!I$17:I$23,\"N/A\",0,1)","v":"N/A"},{"$f":"_xlfn.XLOOKUP($E65,'Activity 8'!$B$17:$B$23,'Activity 8'!J$17:J$23,\"N/A\",0,1)","v":"N/A"},{"$f":"_xlfn.XLOOKUP($E65,'Activity 8'!$B$17:$B$23,'Activity 8'!K$17:K$23,\"N/A\",0,1)","v":"N/A"},{"$f":"_xlfn.XLOOKUP($E65,'Activity 8'!$B$17:$B$23,'Activity 8'!L$17:L$23,\"N/A\",0,1)","v":"N/A"},{"$f":"_xlfn.XLOOKUP($E65,'Activity 8'!$B$17:$B$23,'Activity 8'!M$17:M$23,\"N/A\",0,1)","v":"N/A"},{"$f":"_xlfn.XLOOKUP($E65,'Activity 8'!$B$17:$B$23,'Activity 8'!N$17:N$23,\"N/A\",0,1)","v":"N/A"},{"$f":"_xlfn.XLOOKUP($E65,'Activity 8'!$B$17:$B$23,'Activity 8'!P$17:P$23,\"N/A\",0,1)","v":"N/A"},{"$f":"_xlfn.XLOOKUP(E65,'Activity 9'!$B$7:$B$13,'Activity 9'!$A$7:$A$13,\"No\",0,1)","v":"No"},{"$f":"_xlfn.XLOOKUP($E65,'Activity 9'!$B$7:$B$13,'Activity 9'!J$7:J$13,\"N/A\",0,1)","v":"N/A"},{"$f":"_xlfn.XLOOKUP($E65,'Activity 9'!$B$7:$B$13,'Activity 9'!K$7:K$13,\"N/A\",0,1)","v":"N/A"},{"$f":"_xlfn.XLOOKUP($E65,'Activity 9'!$B$7:$B$13,'Activity 9'!L$7:L$13,\"N/A\",0,1)","v":"N/A"},{"$f":"_xlfn.XLOOKUP($E65,'Activity 9'!$B$7:$B$13,'Activity 9'!M$7:M$13,\"N/A\",0,1)","v":"N/A"},{"$f":"_xlfn.XLOOKUP($E65,'Activity 9'!$B$7:$B$13,'Activity 9'!N$7:N$13,\"N/A\",0,1)","v":"N/A"},{"$f":"_xlfn.XLOOKUP($E65,'Activity 9'!$B$7:$B$13,'Activity 9'!O$7:O$13,\"N/A\",0,1)","v":"N/A"},{"$f":"_xlfn.XLOOKUP($E65,'Activity 9'!$B$7:$B$13,'Activity 9'!P$7:P$13,\"N/A\",0,1)","v":"N/A"},{"$f":"_xlfn.XLOOKUP($E65,'Activity 9'!$B$7:$B$13,'Activity 9'!Q$7:Q$13,\"N/A\",0,1)","v":"N/A"},{"$f":"_xlfn.XLOOKUP($E65,'Activity 9'!$B$7:$B$13,'Activity 9'!R$7:R$13,\"N/A\",0,1)","v":"N/A"},{"$f":"_xlfn.XLOOKUP($E65,'Activity 9'!$B$7:$B$13,'Activity 9'!S$7:S$13,\"N/A\",0,1)","v":"N/A"},{"$f":"_xlfn.XLOOKUP($E65,'Activity 9'!$B$7:$B$13,'Activity 9'!T$7:T$13,\"N/A\",0,1)","v":"N/A"},{"$f":"_xlfn.XLOOKUP($E65,'Activity 9'!$B$17:$B$23,'Activity 9'!E$17:E$23,\"N/A\",0,1)","v":"N/A"},{"$f":"_xlfn.XLOOKUP($E65,'Activity 9'!$B$17:$B$23,'Activity 9'!F$17:F$23,\"N/A\",0,1)","v":"N/A"},{"$f":"_xlfn.XLOOKUP($E65,'Activity 9'!$B$17:$B$23,'Activity 9'!G$17:G$23,\"N/A\",0,1)","v":"N/A"},{"$f":"_xlfn.XLOOKUP($E65,'Activity 9'!$B$17:$B$23,'Activity 9'!H$17:H$23,\"N/A\",0,1)","v":"N/A"},{"$f":"_xlfn.XLOOKUP($E65,'Activity 9'!$B$17:$B$23,'Activity 9'!I$17:I$23,\"N/A\",0,1)","v":"N/A"},{"$f":"_xlfn.XLOOKUP($E65,'Activity 9'!$B$17:$B$23,'Activity 9'!J$17:J$23,\"N/A\",0,1)","v":"N/A"},{"$f":"_xlfn.XLOOKUP($E65,'Activity 9'!$B$17:$B$23,'Activity 9'!K$17:K$23,\"N/A\",0,1)","v":"N/A"},{"$f":"_xlfn.XLOOKUP($E65,'Activity 9'!$B$17:$B$23,'Activity 9'!L$17:L$23,\"N/A\",0,1)","v":"N/A"},{"$f":"_xlfn.XLOOKUP($E65,'Activity 9'!$B$17:$B$23,'Activity 9'!N$17:N$23,\"N/A\",0,1)","v":"N/A"},{"$f":"_xlfn.XLOOKUP($E65,'Activity 9'!$B$17:$B$23,'Activity 9'!O$17:O$23,\"N/A\",0,1)","v":"N/A"},{"$f":"_xlfn.XLOOKUP($E65,'Activity 9'!$B$17:$B$23,'Activity 9'!Q$17:Q$23,\"N/A\",0,1)","v":"N/A"},{"$f":"_xlfn.XLOOKUP($E65,'Activity 10'!$B$7:$B$13,'Activity 10'!A$7:A$13,\"No\",0,1)","v":"No"},{"$f":"_xlfn.XLOOKUP($E65,'Activity 10'!$B$7:$B$13,'Activity 10'!J$7:J$13,\"N/A\",0,1)","v":"N/A"},{"$f":"_xlfn.XLOOKUP($E65,'Activity 10'!$B$7:$B$13,'Activity 10'!K$7:K$13,\"N/A\",0,1)","v":"N/A"},{"$f":"_xlfn.XLOOKUP($E65,'Activity 10'!$B$7:$B$13,'Activity 10'!L$7:L$13,\"N/A\",0,1)","v":"N/A"},{"$f":"_xlfn.XLOOKUP($E65,'Activity 10'!$B$7:$B$13,'Activity 10'!M$7:M$13,\"N/A\",0,1)","v":"N/A"},{"$f":"_xlfn.XLOOKUP($E65,'Activity 10'!$B$7:$B$13,'Activity 10'!N$7:N$13,\"N/A\",0,1)","v":"N/A"},{"$f":"_xlfn.XLOOKUP($E65,'Activity 10'!$B$7:$B$13,'Activity 10'!O$7:O$13,\"N/A\",0,1)","v":"N/A"},{"$f":"_xlfn.XLOOKUP($E65,'Activity 10'!$B$7:$B$13,'Activity 10'!P$7:P$13,\"N/A\",0,1)","v":"N/A"},{"$f":"_xlfn.XLOOKUP($E65,'Activity 10'!$B$7:$B$13,'Activity 10'!Q$7:Q$13,\"N/A\",0,1)","v":"N/A"},{"$f":"_xlfn.XLOOKUP($E65,'Activity 10'!$B$7:$B$13,'Activity 10'!R$7:R$13,\"N/A\",0,1)","v":"N/A"},{"$f":"_xlfn.XLOOKUP($E65,'Activity 10'!$B$7:$B$13,'Activity 10'!S$7:S$13,\"N/A\",0,1)","v":"N/A"},{"$f":"_xlfn.XLOOKUP($E65,'Activity 10'!$B$7:$B$13,'Activity 10'!T$7:T$13,\"N/A\",0,1)","v":"N/A"},{"$f":"_xlfn.XLOOKUP($E65,'Activity 10'!$B$7:$B$13,'Activity 10'!U$7:U$13,\"N/A\",0,1)","v":"N/A"},{"$f":"_xlfn.XLOOKUP($E65,'Activity 10'!$B$7:$B$13,'Activity 10'!V$7:V$13,\"N/A\",0,1)","v":"N/A"},{"$f":"_xlfn.XLOOKUP($E65,'Activity 10'!$B$17:$B$23,'Activity 10'!E$17:E$23,\"N/A\",0,1)","v":"N/A"},{"$f":"_xlfn.XLOOKUP($E65,'Activity 10'!$B$17:$B$23,'Activity 10'!F$17:F$23,\"N/A\",0,1)","v":"N/A"},{"$f":"_xlfn.XLOOKUP($E65,'Activity 10'!$B$17:$B$23,'Activity 10'!G$17:G$23,\"N/A\",0,1)","v":"N/A"},{"$f":"_xlfn.XLOOKUP($E65,'Activity 10'!$B$17:$B$23,'Activity 10'!H$17:H$23,\"N/A\",0,1)","v":"N/A"},{"$f":"_xlfn.XLOOKUP($E65,'Activity 10'!$B$17:$B$23,'Activity 10'!I$17:I$23,\"N/A\",0,1)","v":"N/A"},{"$f":"_xlfn.XLOOKUP($E65,'Activity 10'!$B$17:$B$23,'Activity 10'!J$17:J$23,\"N/A\",0,1)","v":"N/A"},{"$f":"_xlfn.XLOOKUP($E65,'Activity 10'!$B$17:$B$23,'Activity 10'!K$17:K$23,\"N/A\",0,1)","v":"N/A"},{"$f":"_xlfn.XLOOKUP($E65,'Activity 10'!$B$17:$B$23,'Activity 10'!L$17:L$23,\"N/A\",0,1)","v":"N/A"},{"$f":"_xlfn.XLOOKUP($E65,'Activity 10'!$B$17:$B$23,'Activity 10'!M$17:M$23,\"N/A\",0,1)","v":"N/A"},{"$f":"_xlfn.XLOOKUP($E65,'Activity 10'!$B$17:$B$23,'Activity 10'!N$17:N$23,\"N/A\",0,1)","v":"N/A"},{"$f":"_xlfn.XLOOKUP($E65,'Activity 10'!$B$17:$B$23,'Activity 10'!P$17:P$23,\"N/A\",0,1)","v":"N/A"},{"$f":"_xlfn.XLOOKUP($E65,'Competitive Activity 1'!B$7:B$13,'Competitive Activity 1'!A$7:A$13,\"No\",0,1)","v":"No"},{"$f":"_xlfn.XLOOKUP($E65,'Competitive Activity 1'!$B$7:$B$13,'Competitive Activity 1'!H$7:H$13,\"N/A\",0,1)","v":"N/A"},{"$f":"_xlfn.XLOOKUP($E65,'Competitive Activity 1'!$B$7:$B$13,'Competitive Activity 1'!I$7:I$13,\"N/A\",0,1)","v":"N/A"},{"$f":"_xlfn.XLOOKUP($E65,'Competitive Activity 1'!$B$7:$B$13,'Competitive Activity 1'!J$7:J$13,\"N/A\",0,1)","v":"N/A"},{"$f":"_xlfn.XLOOKUP($E65,'Competitive Activity 1'!$B$7:$B$13,'Competitive Activity 1'!K$7:K$13,\"N/A\",0,1)","v":"N/A"},{"$f":"_xlfn.XLOOKUP($E65,'Competitive Activity 1'!$B$7:$B$13,'Competitive Activity 1'!L$7:L$13,\"N/A\",0,1)","v":"N/A"},{"$f":"_xlfn.XLOOKUP($E65,'Competitive Activity 1'!$B$7:$B$13,'Competitive Activity 1'!M$7:M$13,\"N/A\",0,1)","v":"N/A"},{"$f":"_xlfn.XLOOKUP($E65,'Competitive Activity 1'!$B$7:$B$13,'Competitive Activity 1'!N$7:N$13,\"N/A\",0,1)","v":"N/A"},{"$f":"_xlfn.XLOOKUP($E65,'Competitive Activity 1'!$B$7:$B$13,'Competitive Activity 1'!O$7:O$13,\"N/A\",0,1)","v":"N/A"},{"$f":"_xlfn.XLOOKUP($E65,'Competitive Activity 1'!$B$7:$B$13,'Competitive Activity 1'!P$7:P$13,\"N/A\",0,1)","v":"N/A"},{"$f":"_xlfn.XLOOKUP($E65,'Competitive Activity 1'!$B$7:$B$13,'Competitive Activity 1'!Q$7:Q$13,\"N/A\",0,1)","v":"N/A"},{"$f":"_xlfn.XLOOKUP($E65,'Competitive Activity 1'!$B$7:$B$13,'Competitive Activity 1'!R$7:R$13,\"N/A\",0,1)","v":"N/A"},{"$f":"_xlfn.XLOOKUP($E65,'Competitive Activity 1'!$B$7:$B$13,'Competitive Activity 1'!S$7:S$13,\"N/A\",0,1)","v":"N/A"},{"$f":"_xlfn.XLOOKUP($E65,'Competitive Activity 1'!$B$7:$B$13,'Competitive Activity 1'!T$7:T$13,\"N/A\",0,1)","v":"N/A"},{"$f":"_xlfn.XLOOKUP($E65,'Competitive Activity 1'!$B$7:$B$13,'Competitive Activity 1'!U$7:U$13,\"N/A\",0,1)","v":"N/A"},{"$f":"_xlfn.XLOOKUP($E65,'Competitive Activity 1'!$B$17:$B$23,'Competitive Activity 1'!C$17:C$23,\"N/A\",0,1)","v":"N/A"},{"$f":"_xlfn.XLOOKUP($E65,'Competitive Activity 1'!$B$17:$B$23,'Competitive Activity 1'!D$17:D$23,\"N/A\",0,1)","v":"N/A"},{"$f":"_xlfn.XLOOKUP($E65,'Competitive Activity 1'!$B$17:$B$23,'Competitive Activity 1'!E$17:E$23,\"N/A\",0,1)","v":"N/A"},{"$f":"_xlfn.XLOOKUP($E65,'Competitive Activity 1'!$B$17:$B$23,'Competitive Activity 1'!F$17:F$23,\"N/A\",0,1)","v":"N/A"},{"$f":"_xlfn.XLOOKUP($E65,'Competitive Activity 1'!$B$17:$B$23,'Competitive Activity 1'!G$17:G$23,\"N/A\",0,1)","v":"N/A"},{"$f":"_xlfn.XLOOKUP($E65,'Competitive Activity 1'!$B$17:$B$23,'Competitive Activity 1'!H$17:H$23,\"N/A\",0,1)","v":"N/A"},{"$f":"_xlfn.XLOOKUP($E65,'Competitive Activity 1'!$B$17:$B$23,'Competitive Activity 1'!I$17:I$23,\"N/A\",0,1)","v":"N/A"},{"$f":"_xlfn.XLOOKUP($E65,'Competitive Activity 1'!$B$17:$B$23,'Competitive Activity 1'!J$17:J$23,\"N/A\",0,1)","v":"N/A"},{"$f":"_xlfn.XLOOKUP($E65,'Competitive Activity 1'!$B$17:$B$23,'Competitive Activity 1'!K$17:K$23,\"N/A\",0,1)","v":"N/A"},{"$f":"_xlfn.XLOOKUP($E65,'Competitive Activity 1'!$B$17:$B$23,'Competitive Activity 1'!M$17:M$23,\"N/A\",0,1)","v":"N/A"},{"$f":"_xlfn.XLOOKUP($E65,'Competitive Activity 1'!$B$17:$B$23,'Competitive Activity 1'!N$17:N$23,\"N/A\",0,1)","v":"N/A"},{"$f":"_xlfn.XLOOKUP($E65,'Competitive Activity 1'!$B$17:$B$23,'Competitive Activity 1'!P$17:P$23,\"N/A\",0,1)","v":"N/A"},{"$f":"_xlfn.XLOOKUP($E65,'Competitive Activity 2'!$B$7:$B$13,'Competitive Activity 2'!A$7:A$13,\"No\",0)","v":"No"},{"$f":"_xlfn.XLOOKUP($E65,'Competitive Activity 2'!$B$7:$B$13,'Competitive Activity 2'!L$7:L$13,\"N/A\",0)","v":"N/A"},{"$f":"_xlfn.XLOOKUP($E65,'Competitive Activity 2'!$B$7:$B$13,'Competitive Activity 2'!M$7:M$13,\"N/A\",0)","v":"N/A"},{"$f":"_xlfn.XLOOKUP($E65,'Competitive Activity 2'!$B$7:$B$13,'Competitive Activity 2'!N$7:N$13,\"N/A\",0)","v":"N/A"},{"$f":"_xlfn.XLOOKUP($E65,'Competitive Activity 2'!$B$7:$B$13,'Competitive Activity 2'!O$7:O$13,\"N/A\",0)","v":"N/A"},{"$f":"_xlfn.XLOOKUP($E65,'Competitive Activity 2'!$B$7:$B$13,'Competitive Activity 2'!P$7:P$13,\"N/A\",0)","v":"N/A"},{"$f":"_xlfn.XLOOKUP($E65,'Competitive Activity 2'!$B$7:$B$13,'Competitive Activity 2'!Q$7:Q$13,\"N/A\",0)","v":"N/A"},{"$f":"_xlfn.XLOOKUP($E65,'Competitive Activity 2'!$B$7:$B$13,'Competitive Activity 2'!R$7:R$13,\"N/A\",0)","v":"N/A"},{"$f":"_xlfn.XLOOKUP($E65,'Competitive Activity 2'!$B$7:$B$13,'Competitive Activity 2'!S$7:S$13,\"N/A\",0)","v":"N/A"},{"$f":"_xlfn.XLOOKUP($E65,'Competitive Activity 2'!$B$7:$B$13,'Competitive Activity 2'!T$7:T$13,\"N/A\",0)","v":"N/A"},{"$f":"_xlfn.XLOOKUP($E65,'Competitive Activity 2'!$B$7:$B$13,'Competitive Activity 2'!U$7:U$13,\"N/A\",0)","v":"N/A"},{"$f":"_xlfn.XLOOKUP($E65,'Competitive Activity 2'!$B$17:$B$23,'Competitive Activity 2'!D$17:D$23,\"N/A\",0)","v":"N/A"},{"$f":"_xlfn.XLOOKUP($E65,'Competitive Activity 2'!$B$17:$B$23,'Competitive Activity 2'!E$17:E$23,\"N/A\",0)","v":"N/A"},{"$f":"_xlfn.XLOOKUP($E65,'Competitive Activity 2'!$B$17:$B$23,'Competitive Activity 2'!F$17:F$23,\"N/A\",0)","v":"N/A"},{"$f":"_xlfn.XLOOKUP($E65,'Competitive Activity 2'!$B$17:$B$23,'Competitive Activity 2'!G$17:G$23,\"N/A\",0)","v":"N/A"},{"$f":"_xlfn.XLOOKUP($E65,'Competitive Activity 2'!$B$17:$B$23,'Competitive Activity 2'!H$17:H$23,\"N/A\",0)","v":"N/A"},{"$f":"_xlfn.XLOOKUP($E65,'Competitive Activity 2'!$B$17:$B$23,'Competitive Activity 2'!I$17:I$23,\"N/A\",0)","v":"N/A"},{"$f":"_xlfn.XLOOKUP($E65,'Competitive Activity 2'!$B$17:$B$23,'Competitive Activity 2'!J$17:J$23,\"N/A\",0)","v":"N/A"},{"$f":"_xlfn.XLOOKUP($E65,'Competitive Activity 2'!$B$17:$B$23,'Competitive Activity 2'!K$17:K$23,\"N/A\",0)","v":"N/A"},{"$f":"_xlfn.XLOOKUP($E65,'Competitive Activity 2'!$B$17:$B$23,'Competitive Activity 2'!L$17:L$23,\"N/A\",0)","v":"N/A"},{"$f":"_xlfn.XLOOKUP($E65,'Competitive Activity 2'!$B$17:$B$23,'Competitive Activity 2'!M$17:M$23,\"N/A\",0)","v":"N/A"},{"$f":"_xlfn.XLOOKUP($E65,'Competitive Activity 2'!$B$17:$B$23,'Competitive Activity 2'!N$17:N$23,\"N/A\",0)","v":"N/A"},{"$f":"_xlfn.XLOOKUP($E65,'Competitive Activity 2'!$B$27:$B$33,'Competitive Activity 2'!D$27:D$33,\"N/A\",0)","v":"N/A"},{"$f":"_xlfn.XLOOKUP($E65,'Competitive Activity 2'!$B$27:$B$33,'Competitive Activity 2'!E$27:E$33,\"N/A\",0)","v":"N/A"},{"$f":"_xlfn.XLOOKUP($E65,'Competitive Activity 2'!$B$27:$B$33,'Competitive Activity 2'!F$27:F$33,\"N/A\",0)","v":"N/A"},{"$f":"_xlfn.XLOOKUP($E65,'Competitive Activity 2'!$B$27:$B$33,'Competitive Activity 2'!G$27:G$33,\"N/A\",0)","v":"N/A"},{"$f":"_xlfn.XLOOKUP($E65,'Competitive Activity 2'!$B$27:$B$33,'Competitive Activity 2'!H$27:H$33,\"N/A\",0)","v":"N/A"},{"$f":"_xlfn.XLOOKUP($E65,'Competitive Activity 2'!$B$27:$B$33,'Competitive Activity 2'!I$27:I$33,\"N/A\",0)","v":"N/A"},{"$f":"_xlfn.XLOOKUP($E65,'Competitive Activity 2'!$B$27:$B$33,'Competitive Activity 2'!J$27:J$33,\"N/A\",0)","v":"N/A"},{"$f":"_xlfn.XLOOKUP($E65,'Competitive Activity 2'!$B$27:$B$33,'Competitive Activity 2'!K$27:K$33,\"N/A\",0)","v":"N/A"},{"$f":"_xlfn.XLOOKUP($E65,'Competitive Activity 2'!$B$27:$B$33,'Competitive Activity 2'!M$27:M$33,\"N/A\",0)","v":"N/A"}]
[{"$f":"'1-Cover Sheet'!$C$8","v":"Select One"},{"$f":"'1-Cover Sheet'!$F$8","v":"Select One"},{"$f":"'Summary Sheet'!$D$8","v":0},{"$f":"'Summary Sheet'!$D$10","v":0},{"$f":"'Drop Down Box'!B230","v":0},{"$f":"'Drop Down Box'!C230","v":0},{"$f":"'Drop Down Box'!D230","v":"Select One"},{"$f":"_xlfn.XLOOKUP(E66,'Drop Down Box'!$B$166:$B$249,'Drop Down Box'!$A$166:$A$249,\"Unknown\",0)","v":"Activity 1"},{"$f":"_xlfn.XLOOKUP($E66,'Activity 10'!$B$17:$B$23,'Activity 10'!$O$17:$O$23,\"N/A\",0)","v":"N/A"},{"$f":"_xlfn.XLOOKUP($E66,'Activity 10'!$B$17:$B$23,'Activity 10'!$Q$17:$Q$23,\"N/A\",0)","v":"N/A"},{"$f":"_xlfn.XLOOKUP($E66,'Activity 10'!$B$7:$B$13,'Activity 10'!G$7:G$13,\"N/A\",0)","v":"N/A"},{"$f":"_xlfn.XLOOKUP($E66,'Activity 10'!$B$7:$B$13,'Activity 10'!H$7:H$13,\"N/A\",0)","v":"N/A"},{"$f":"_xlfn.XLOOKUP($E66,'Activity 10'!$B$7:$B$13,'Activity 10'!I$7:I$13,\"N/A\",0)","v":"N/A"},{"$f":"_xlfn.XLOOKUP($E66,'Activity 1'!$B$7:$B$13,'Activity 1'!$A$7:$A$13,\"No\",0,1)","v":"No"},{"$f":"_xlfn.XLOOKUP($E66,'Activity 1'!$B$7:$B$13,'Activity 1'!$H$7:$H$13,\"N/A\",0,1)","v":"N/A"},{"$f":"_xlfn.XLOOKUP($E66,'Activity 1'!$B$7:$B$13,'Activity 1'!I$7:I$13,\"N/A\",0,1)","v":"N/A"},{"$f":"_xlfn.XLOOKUP($E66,'Activity 1'!$B$7:$B$13,'Activity 1'!J$7:J$13,\"N/A\",0,1)","v":"N/A"},{"$f":"_xlfn.XLOOKUP($E66,'Activity 1'!$B$7:$B$13,'Activity 1'!K$7:K$13,\"N/A\",0,1)","v":"N/A"},{"$f":"_xlfn.XLOOKUP($E66,'Activity 1'!$B$7:$B$13,'Activity 1'!L$7:L$13,\"N/A\",0,1)","v":"N/A"},{"$f":"_xlfn.XLOOKUP($E66,'Activity 1'!$B$7:$B$13,'Activity 1'!M$7:M$13,\"N/A\",0,1)","v":"N/A"},{"$f":"_xlfn.XLOOKUP($E66,'Activity 1'!$B$7:$B$13,'Activity 1'!N$7:N$13,\"N/A\",0,1)","v":"N/A"},0,{"$f":"_xlfn.XLOOKUP($E66,'Activity 1'!$B$7:$B$13,'Activity 1'!O$7:O$13,\"N/A\",0,1)","v":"N/A"},{"$f":"_xlfn.XLOOKUP($E66,'Activity 1'!$B$7:$B$13,'Activity 1'!P$7:P$13,\"N/A\",0,1)","v":"N/A"},{"$f":"_xlfn.XLOOKUP($E66,'Activity 1'!$B$7:$B$13,'Activity 1'!Q$7:Q$13,\"N/A\",0,1)","v":"N/A"},{"$f":"_xlfn.XLOOKUP($E66,'Activity 1'!$B$7:$B$13,'Activity 1'!R$7:R$13,\"N/A\",0,1)","v":"N/A"},{"$f":"_xlfn.XLOOKUP($E66,'Activity 1'!$B$7:$B$13,'Activity 1'!S$7:S$13,\"N/A\",0,1)","v":"N/A"},{"$f":"_xlfn.XLOOKUP($E66,'Activity 1'!$B$7:$B$13,'Activity 1'!T$7:T$13,\"N/A\",0,1)","v":"N/A"},{"$f":"_xlfn.XLOOKUP($E66,'Activity 1'!$B$7:$B$13,'Activity 1'!U$7:U$13,\"N/A\",0,1)","v":"N/A"},{"$f":"_xlfn.XLOOKUP($E66,'Activity 1'!$B$7:$B$13,'Activity 1'!V$7:V$13,\"N/A\",0,1)","v":"N/A"},{"$f":"_xlfn.XLOOKUP($E66,'Activity 1'!$B$17:$B$23,'Activity 1'!C$17:C$23,\"N/A\",0,1)","v":"N/A"},{"$f":"_xlfn.XLOOKUP($E66,'Activity 1'!$B$17:$B$23,'Activity 1'!D$17:D$23,\"N/A\",0,1)","v":"N/A"},{"$f":"_xlfn.XLOOKUP($E66,'Activity 1'!$B$17:$B$23,'Activity 1'!E$17:E$23,\"N/A\",0,1)","v":"N/A"},{"$f":"_xlfn.XLOOKUP($E66,'Activity 1'!$B$17:$B$23,'Activity 1'!F$17:F$23,\"N/A\",0,1)","v":"N/A"},{"$f":"_xlfn.XLOOKUP($E66,'Activity 1'!$B$17:$B$23,'Activity 1'!G$17:G$23,\"N/A\",0,1)","v":"N/A"},{"$f":"_xlfn.XLOOKUP($E66,'Activity 1'!$B$17:$B$23,'Activity 1'!H$17:H$23,\"N/A\",0,1)","v":"N/A"},{"$f":"_xlfn.XLOOKUP($E66,'Activity 1'!$B$17:$B$23,'Activity 1'!I$17:I$23,\"N/A\",0,1)","v":"N/A"},{"$f":"_xlfn.XLOOKUP($E66,'Activity 1'!$B$17:$B$23,'Activity 1'!J$17:J$23,\"N/A\",0,1)","v":"N/A"},{"$f":"_xlfn.XLOOKUP($E66,'Activity 1'!$B$17:$B$23,'Activity 1'!K$17:K$23,\"N/A\",0,1)","v":"N/A"},{"$f":"_xlfn.XLOOKUP($E66,'Activity 1'!$B$17:$B$23,'Activity 1'!L$17:L$23,\"N/A\",0,1)","v":"N/A"},{"$f":"_xlfn.XLOOKUP($E66,'Activity 1'!$B$17:$B$23,'Activity 1'!M$17:M$23,\"N/A\",0,1)","v":"N/A"},{"$f":"_xlfn.XLOOKUP($E66,'Activity 1'!$B$17:$B$23,'Activity 1'!O$17:O$23,\"N/A\",0,1)","v":"N/A"},{"$f":"_xlfn.XLOOKUP($E66,'Activity 1'!$B$17:$B$23,'Activity 1'!Q$17:Q$23,\"N/A\",0,1)","v":"N/A"},{"$f":"_xlfn.XLOOKUP($E66,'Activity 2'!$B$7:$B$13,'Activity 2'!$A$7:$A$13,\"No\",0,1)","v":"No"},{"$f":"_xlfn.XLOOKUP($E66,'Activity 2'!B$7:B$13,'Activity 2'!H$7:H$13,\"N/A\",0)","v":"N/A"},{"$f":"_xlfn.XLOOKUP($E66,'Activity 2'!C$7:C$13,'Activity 2'!I$7:I$13,\"N/A\",0)","v":"N/A"},{"$f":"_xlfn.XLOOKUP($E66,'Activity 2'!D$7:D$13,'Activity 2'!J$7:J$13,\"N/A\",0)","v":"N/A"},{"$f":"_xlfn.XLOOKUP($E66,'Activity 2'!E$7:E$13,'Activity 2'!K$7:K$13,\"N/A\",0)","v":"N/A"},{"$f":"_xlfn.XLOOKUP($E66,'Activity 2'!F$7:F$13,'Activity 2'!L$7:L$13,\"N/A\",0)","v":"N/A"},{"$f":"_xlfn.XLOOKUP($E66,'Activity 2'!G$7:G$13,'Activity 2'!M$7:M$13,\"N/A\",0)","v":"N/A"},{"$f":"_xlfn.XLOOKUP($E66,'Activity 2'!H$7:H$13,'Activity 2'!N$7:N$13,\"N/A\",0)","v":"N/A"},{"$f":"_xlfn.XLOOKUP($E66,'Activity 2'!I$7:I$13,'Activity 2'!O$7:O$13,\"N/A\",0)","v":"N/A"},{"$f":"_xlfn.XLOOKUP($E66,'Activity 2'!J$7:J$13,'Activity 2'!P$7:P$13,\"N/A\",0)","v":"N/A"},{"$f":"_xlfn.XLOOKUP($E66,'Activity 2'!K$7:K$13,'Activity 2'!Q$7:Q$13,\"N/A\",0)","v":"N/A"},{"$f":"_xlfn.XLOOKUP($E66,'Activity 2'!L$7:L$13,'Activity 2'!R$7:R$13,\"N/A\",0)","v":"N/A"},{"$f":"_xlfn.XLOOKUP($E66,'Activity 2'!M$7:M$13,'Activity 2'!S$7:S$13,\"N/A\",0)","v":"N/A"},{"$f":"_xlfn.XLOOKUP($E66,'Activity 2'!N$7:N$13,'Activity 2'!T$7:T$13,\"N/A\",0)","v":"N/A"},{"$f":"_xlfn.XLOOKUP($E66,'Activity 2'!O$7:O$13,'Activity 2'!U$7:U$13,\"N/A\",0)","v":"N/A"},{"$f":"_xlfn.XLOOKUP($E66,'Activity 2'!P$7:P$13,'Activity 2'!V$7:V$13,\"N/A\",0)","v":"N/A"},{"$f":"_xlfn.XLOOKUP($E66,'Activity 2'!$B$17:$B$23,'Activity 2'!C$17:C$23,\"N/A\",0,1)","v":"N/A"},{"$f":"_xlfn.XLOOKUP($E66,'Activity 2'!$B$17:$B$23,'Activity 2'!D$17:D$23,\"N/A\",0,1)","v":"N/A"},{"$f":"_xlfn.XLOOKUP($E66,'Activity 2'!$B$17:$B$23,'Activity 2'!E$17:E$23,\"N/A\",0,1)","v":"N/A"},{"$f":"_xlfn.XLOOKUP($E66,'Activity 2'!$B$17:$B$23,'Activity 2'!F$17:F$23,\"N/A\",0,1)","v":"N/A"},{"$f":"_xlfn.XLOOKUP($E66,'Activity 2'!$B$17:$B$23,'Activity 2'!G$17:G$23,\"N/A\",0,1)","v":"N/A"},{"$f":"_xlfn.XLOOKUP($E66,'Activity 2'!$B$17:$B$23,'Activity 2'!H$17:H$23,\"N/A\",0,1)","v":"N/A"},{"$f":"_xlfn.XLOOKUP($E66,'Activity 2'!$B$17:$B$23,'Activity 2'!I$17:I$23,\"N/A\",0,1)","v":"N/A"},{"$f":"_xlfn.XLOOKUP($E66,'Activity 2'!$B$17:$B$23,'Activity 2'!J$17:J$23,\"N/A\",0,1)","v":"N/A"},{"$f":"_xlfn.XLOOKUP($E66,'Activity 2'!$B$17:$B$23,'Activity 2'!K$17:K$23,\"N/A\",0,1)","v":"N/A"},{"$f":"_xlfn.XLOOKUP($E66,'Activity 2'!$B$17:$B$23,'Activity 2'!L$17:L$23,\"N/A\",0,1)","v":"N/A"},{"$f":"_xlfn.XLOOKUP($E66,'Activity 2'!$B$17:$B$23,'Activity 2'!M$17:M$23,\"N/A\",0,1)","v":"N/A"},{"$f":"_xlfn.XLOOKUP($E66,'Activity 2'!$B$17:$B$23,'Activity 2'!O$17:O$23,\"N/A\",0,1)","v":"N/A"},{"$f":"_xlfn.XLOOKUP($E66,'Activity 2'!$B$17:$B$23,'Activity 2'!Q$17:Q$23,\"N/A\",0,1)","v":"N/A"},null,{"$f":"_xlfn.XLOOKUP($E66,'Activity 3'!$B$8:$B$14,'Activity 3'!K$8:K$14,\"N/A\",0,1)","v":"N/A"},{"$f":"_xlfn.XLOOKUP($E66,'Activity 3'!$B$8:$B$14,'Activity 3'!L$8:L$14,\"N/A\",0,1)","v":"N/A"},{"$f":"_xlfn.XLOOKUP($E66,'Activity 3'!$B$8:$B$14,'Activity 3'!M$8:M$14,\"N/A\",0,1)","v":"N/A"},{"$f":"_xlfn.XLOOKUP($E66,'Activity 3'!$B$8:$B$14,'Activity 3'!N$8:N$14,\"N/A\",0,1)","v":"N/A"},{"$f":"_xlfn.XLOOKUP($E66,'Activity 3'!$B$8:$B$14,'Activity 3'!O$8:O$14,\"N/A\",0,1)","v":"N/A"},{"$f":"_xlfn.XLOOKUP($E66,'Activity 3'!$B$8:$B$14,'Activity 3'!R$8:R$14,\"N/A\",0,1)","v":"N/A"},{"$f":"_xlfn.XLOOKUP($E66,'Activity 4'!$B$8:$B$14,'Activity 4'!$A$8:$A$14,\"No\",0,1)","v":"No"},{"$f":"_xlfn.XLOOKUP($E66,'Activity 4'!$B$8:$B$14,'Activity 4'!L$8:L$14,\"N/A\",0,1)","v":"N/A"},{"$f":"_xlfn.XLOOKUP($E66,'Activity 4'!$B$8:$B$14,'Activity 4'!I$8:I$14,\"N/A\",0,1)","v":"N/A"},{"$f":"_xlfn.XLOOKUP($E66,'Activity 4'!$B$8:$B$14,'Activity 4'!M$8:M$14,\"N/A\",0,1)","v":"N/A"},{"$f":"_xlfn.XLOOKUP($E66,'Activity 5'!$B$8:$B$14,'Activity 5'!$A$8:$A$14,\"No\",0,1)","v":"No"},{"$f":"_xlfn.XLOOKUP($E66,'Activity 5'!$B$8:$B$14,'Activity 5'!J$8:J$14,\"N/A\",0,1)","v":"N/A"},{"$f":"_xlfn.XLOOKUP($E66,'Activity 5'!$B$8:$B$14,'Activity 5'!K$8:K$14,\"N/A\",0,1)","v":"N/A"},{"$f":"_xlfn.XLOOKUP($E66,'Activity 5'!$B$8:$B$14,'Activity 5'!N$8:N$14,\"N/A\",0,1)","v":"N/A"},{"$f":"_xlfn.XLOOKUP($E66,'Activity 5'!$B$8:$B$14,'Activity 5'!O$8:O$14,\"N/A\",0,1)","v":"N/A"},{"$f":"_xlfn.XLOOKUP($E66,'Activity 5'!$B$8:$B$14,'Activity 5'!P$8:P$14,\"N/A\",0,1)","v":"N/A"},{"$f":"_xlfn.XLOOKUP($E66,'Activity 5'!$B$8:$B$14,'Activity 5'!Q$8:Q$14,\"N/A\",0,1)","v":"N/A"},{"$f":"_xlfn.XLOOKUP($E66,'Activity 5'!$B$8:$B$14,'Activity 5'!R$8:R$14,\"N/A\",0,1)","v":"N/A"},{"$f":"_xlfn.XLOOKUP($E66,'Activity 6'!$B$7:$B$13,'Activity 6'!A$7:A$13,\"No\",0,1)","v":"No"},{"$f":"_xlfn.XLOOKUP($E66,'Activity 6'!$B$7:$B$13,'Activity 6'!K$7:K$13,\"N/A\",0,1)","v":"N/A"},{"$f":"_xlfn.XLOOKUP($E66,'Activity 6'!$B$7:$B$13,'Activity 6'!L$7:L$13,\"N/A\",0,1)","v":"N/A"},{"$f":"_xlfn.XLOOKUP($E66,'Activity 6'!$B$7:$B$13,'Activity 6'!M$7:M$13,\"N/A\",0,1)","v":"N/A"},{"$f":"_xlfn.XLOOKUP($E66,'Activity 6'!$B$7:$B$13,'Activity 6'!N$7:N$13,\"N/A\",0,1)","v":"N/A"},{"$f":"_xlfn.XLOOKUP($E66,'Activity 6'!$B$7:$B$13,'Activity 6'!O$7:O$13,\"N/A\",0,1)","v":"N/A"},{"$f":"_xlfn.XLOOKUP($E66,'Activity 6'!$B$7:$B$13,'Activity 6'!P$7:P$13,\"N/A\",0,1)","v":"N/A"},{"$f":"_xlfn.XLOOKUP($E66,'Activity 6'!$B$7:$B$13,'Activity 6'!Q$7:Q$13,\"N/A\",0,1)","v":"N/A"},{"$f":"_xlfn.XLOOKUP($E66,'Activity 6'!$B$7:$B$13,'Activity 6'!R$7:R$13,\"N/A\",0,1)","v":"N/A"},{"$f":"_xlfn.XLOOKUP($E66,'Activity 6'!$B$7:$B$13,'Activity 6'!S$7:S$13,\"N/A\",0,1)","v":"N/A"},{"$f":"_xlfn.XLOOKUP($E66,'Activity 6'!$B$7:$B$13,'Activity 6'!T$7:T$13,\"N/A\",0,1)","v":"N/A"},{"$f":"_xlfn.XLOOKUP($E66,'Activity 6'!$B$7:$B$13,'Activity 6'!U$7:U$13,\"N/A\",0,1)","v":"N/A"},{"$f":"_xlfn.XLOOKUP($E66,'Activity 6'!$B$22:$B$28,'Activity 6'!C$22:C$28,\"N/A\",0,1)","v":"N/A"},{"$f":"_xlfn.XLOOKUP($E66,'Activity 6'!$B$22:$B$28,'Activity 6'!D$22:D$28,\"N/A\",0,1)","v":"N/A"},{"$f":"_xlfn.XLOOKUP($E66,'Activity 6'!$B$22:$B$28,'Activity 6'!E$22:E$28,\"N/A\",0,1)","v":"N/A"},{"$f":"_xlfn.XLOOKUP($E66,'Activity 6'!$B$22:$B$28,'Activity 6'!F$22:F$28,\"N/A\",0,1)","v":"N/A"},{"$f":"_xlfn.XLOOKUP($E66,'Activity 6'!$B$22:$B$28,'Activity 6'!G$22:G$28,\"N/A\",0,1)","v":"N/A"},{"$f":"_xlfn.XLOOKUP($E66,'Activity 6'!$B$22:$B$28,'Activity 6'!H$22:H$28,\"N/A\",0,1)","v":"N/A"},{"$f":"_xlfn.XLOOKUP($E66,'Activity 6'!$B$22:$B$28,'Activity 6'!I$22:I$28,\"N/A\",0,1)","v":"N/A"},{"$f":"_xlfn.XLOOKUP($E66,'Activity 6'!$B$22:$B$28,'Activity 6'!J$22:J$28,\"N/A\",0,1)","v":"N/A"},{"$f":"_xlfn.XLOOKUP($E66,'Activity 6'!$B$22:$B$28,'Activity 6'!K$22:K$28,\"N/A\",0,1)","v":"N/A"},{"$f":"_xlfn.XLOOKUP($E66,'Activity 6'!$B$22:$B$28,'Activity 6'!L$22:L$28,\"N/A\",0,1)","v":"N/A"},{"$f":"_xlfn.XLOOKUP($E66,'Activity 6'!$B$22:$B$28,'Activity 6'!M$22:M$28,\"N/A\",0,1)","v":"N/A"},{"$f":"_xlfn.XLOOKUP($E66,'Activity 6'!$B$22:$B$28,'Activity 6'!N$22:N$28,\"N/A\",0,1)","v":"N/A"},{"$f":"_xlfn.XLOOKUP($E66,'Activity 6'!$B$32:$B$38,'Activity 6'!C$32:C$38,\"N/A\",0,1)","v":"N/A"},{"$f":"_xlfn.XLOOKUP($E66,'Activity 6'!$B$32:$B$38,'Activity 6'!D$32:D$38,\"N/A\",0,1)","v":"N/A"},{"$f":"_xlfn.XLOOKUP($E66,'Activity 6'!$B$32:$B$38,'Activity 6'!E$32:E$38,\"N/A\",0,1)","v":"N/A"},{"$f":"_xlfn.XLOOKUP($E66,'Activity 6'!$B$32:$B$38,'Activity 6'!F$32:F$38,\"N/A\",0,1)","v":"N/A"},{"$f":"_xlfn.XLOOKUP($E66,'Activity 6'!$B$32:$B$38,'Activity 6'!G$32:G$38,\"N/A\",0,1)","v":"N/A"},{"$f":"_xlfn.XLOOKUP($E66,'Activity 6'!$B$32:$B$38,'Activity 6'!H$32:H$38,\"N/A\",0,1)","v":"N/A"},{"$f":"_xlfn.XLOOKUP($E66,'Activity 6'!$B$32:$B$38,'Activity 6'!I$32:I$38,\"N/A\",0,1)","v":"N/A"},{"$f":"_xlfn.XLOOKUP($E66,'Activity 6'!$B$32:$B$38,'Activity 6'!J$32:J$38,\"N/A\",0,1)","v":"N/A"},{"$f":"_xlfn.XLOOKUP($E66,'Activity 6'!$B$32:$B$38,'Activity 6'!K$32:K$38,\"N/A\",0,1)","v":"N/A"},{"$f":"_xlfn.XLOOKUP($E66,'Activity 6'!$B$32:$B$38,'Activity 6'!M$32:M$38,\"N/A\",0,1)","v":"N/A"},{"$f":"_xlfn.XLOOKUP($E66,'Activity 7'!$B$7:$B$13,'Activity 7'!$A$7:$A$13,\"No\",0,1)","v":"No"},{"$f":"_xlfn.XLOOKUP($E66,'Activity 7'!$B$7:$B$13,'Activity 7'!M$7:M$13,\"N/A\",0,1)","v":"N/A"},{"$f":"_xlfn.XLOOKUP($E66,'Activity 7'!$B$7:$B$13,'Activity 7'!K$7:K$13,\"N/A\",0,1)","v":"N/A"},{"$f":"_xlfn.XLOOKUP($E66,'Activity 7'!$B$7:$B$13,'Activity 7'!N$7:N$13,\"N/A\",0,1)","v":"N/A"},{"$f":"_xlfn.XLOOKUP($E66,'Activity 7'!$B$7:$B$13,'Activity 7'!O$7:O$13,\"N/A\",0,1)","v":"N/A"},{"$f":"_xlfn.XLOOKUP($E66,'Activity 7'!$B$7:$B$13,'Activity 7'!P$7:P$13,\"N/A\",0,1)","v":"N/A"},{"$f":"_xlfn.XLOOKUP($E66,'Activity 7'!$B$7:$B$13,'Activity 7'!Q$7:Q$13,\"N/A\",0,1)","v":"N/A"},{"$f":"_xlfn.XLOOKUP($E66,'Activity 7'!$B$7:$B$13,'Activity 7'!R$7:R$13,\"N/A\",0,1)","v":"N/A"},{"$f":"_xlfn.XLOOKUP($E66,'Activity 7'!$B$7:$B$13,'Activity 7'!S$7:S$13,\"N/A\",0,1)","v":"N/A"},{"$f":"_xlfn.XLOOKUP($E66,'Activity 7'!$B$7:$B$13,'Activity 7'!T$7:T$13,\"N/A\",0,1)","v":"N/A"},{"$f":"_xlfn.XLOOKUP($E66,'Activity 7'!$B$7:$B$13,'Activity 7'!U$7:U$13,\"N/A\",0,1)","v":"N/A"},{"$f":"_xlfn.XLOOKUP($E66,'Activity 7'!$B$7:$B$13,'Activity 7'!V$7:V$13,\"N/A\",0,1)","v":"N/A"},{"$f":"_xlfn.XLOOKUP($E66,'Activity 7'!$B$17:$B$23,'Activity 7'!E$17:E$23,\"N/A\",0,1)","v":"N/A"},{"$f":"_xlfn.XLOOKUP($E66,'Activity 7'!$B$17:$B$23,'Activity 7'!G$17:G$23,\"N/A\",0,1)","v":"N/A"},{"$f":"_xlfn.XLOOKUP($E66,'Activity 7'!$B$17:$B$23,'Activity 7'!I$17:I$23,\"N/A\",0,1)","v":"N/A"},{"$f":"_xlfn.XLOOKUP($E66,'Activity 7'!$B$17:$B$23,'Activity 7'!J$17:J$23,\"N/A\",0,1)","v":"N/A"},{"$f":"_xlfn.XLOOKUP($E66,'Activity 7'!$B$17:$B$23,'Activity 7'!K$17:K$23,\"N/A\",0,1)","v":"N/A"},{"$f":"_xlfn.XLOOKUP($E66,'Activity 7'!$B$17:$B$23,'Activity 7'!L$17:L$23,\"N/A\",0,1)","v":"N/A"},{"$f":"_xlfn.XLOOKUP($E66,'Activity 7'!$B$17:$B$23,'Activity 7'!M$17:M$23,\"N/A\",0,1)","v":"N/A"},{"$f":"_xlfn.XLOOKUP($E66,'Activity 7'!$B$17:$B$23,'Activity 7'!N$17:N$23,\"N/A\",0,1)","v":"N/A"},{"$f":"_xlfn.XLOOKUP($E66,'Activity 7'!$B$17:$B$23,'Activity 7'!P$17:P$23,\"N/A\",0,1)","v":"N/A"},{"$f":"_xlfn.XLOOKUP($E66,'Activity 8'!$B$7:$B$13,'Activity 8'!A$7:A$13,\"No\",0,1)","v":"No"},{"$f":"_xlfn.XLOOKUP($E66,'Activity 8'!$B$7:$B$13,'Activity 8'!I$7:I$13,\"N/A\",0,1)","v":"N/A"},{"$f":"_xlfn.XLOOKUP($E66,'Activity 8'!$B$7:$B$13,'Activity 8'!J$7:J$13,\"N/A\",0,1)","v":"N/A"},{"$f":"_xlfn.XLOOKUP($E66,'Activity 8'!$B$7:$B$13,'Activity 8'!K$7:K$13,\"N/A\",0,1)","v":"N/A"},{"$f":"_xlfn.XLOOKUP($E66,'Activity 8'!$B$7:$B$13,'Activity 8'!L$7:L$13,\"N/A\",0,1)","v":"N/A"},{"$f":"_xlfn.XLOOKUP($E66,'Activity 8'!$B$7:$B$13,'Activity 8'!M$7:M$13,\"N/A\",0,1)","v":"N/A"},{"$f":"_xlfn.XLOOKUP($E66,'Activity 8'!$B$7:$B$13,'Activity 8'!N$7:N$13,\"N/A\",0,1)","v":"N/A"},{"$f":"_xlfn.XLOOKUP($E66,'Activity 8'!$B$7:$B$13,'Activity 8'!O$7:O$13,\"N/A\",0,1)","v":"N/A"},{"$f":"_xlfn.XLOOKUP($E66,'Activity 8'!$B$7:$B$13,'Activity 8'!P$7:P$13,\"N/A\",0,1)","v":"N/A"},{"$f":"_xlfn.XLOOKUP($E66,'Activity 8'!$B$7:$B$13,'Activity 8'!Q$7:Q$13,\"N/A\",0,1)","v":"N/A"},{"$f":"_xlfn.XLOOKUP($E66,'Activity 8'!$B$7:$B$13,'Activity 8'!R$7:R$13,\"N/A\",0,1)","v":"N/A"},{"$f":"_xlfn.XLOOKUP($E66,'Activity 8'!$B$7:$B$13,'Activity 8'!S$7:S$13,\"N/A\",0,1)","v":"N/A"},{"$f":"_xlfn.XLOOKUP($E66,'Activity 8'!$B$7:$B$13,'Activity 8'!T$7:T$13,\"N/A\",0,1)","v":"N/A"},{"$f":"_xlfn.XLOOKUP($E66,'Activity 8'!$B$7:$B$13,'Activity 8'!U$7:U$13,\"N/A\",0,1)","v":"N/A"},{"$f":"_xlfn.XLOOKUP($E66,'Activity 8'!$B$7:$B$13,'Activity 8'!V$7:V$13,\"N/A\",0,1)","v":"N/A"},{"$f":"_xlfn.XLOOKUP($E66,'Activity 8'!$B$17:$B$23,'Activity 8'!D$17:D$23,\"N/A\",0,1)","v":"N/A"},{"$f":"_xlfn.XLOOKUP($E66,'Activity 8'!$B$17:$B$23,'Activity 8'!E$17:E$23,\"N/A\",0,1)","v":"N/A"},{"$f":"_xlfn.XLOOKUP($E66,'Activity 8'!$B$17:$B$23,'Activity 8'!F$17:F$23,\"N/A\",0,1)","v":"N/A"},{"$f":"_xlfn.XLOOKUP($E66,'Activity 8'!$B$17:$B$23,'Activity 8'!G$17:G$23,\"N/A\",0,1)","v":"N/A"},{"$f":"_xlfn.XLOOKUP($E66,'Activity 8'!$B$17:$B$23,'Activity 8'!H$17:H$23,\"N/A\",0,1)","v":"N/A"},{"$f":"_xlfn.XLOOKUP($E66,'Activity 8'!$B$17:$B$23,'Activity 8'!I$17:I$23,\"N/A\",0,1)","v":"N/A"},{"$f":"_xlfn.XLOOKUP($E66,'Activity 8'!$B$17:$B$23,'Activity 8'!J$17:J$23,\"N/A\",0,1)","v":"N/A"},{"$f":"_xlfn.XLOOKUP($E66,'Activity 8'!$B$17:$B$23,'Activity 8'!K$17:K$23,\"N/A\",0,1)","v":"N/A"},{"$f":"_xlfn.XLOOKUP($E66,'Activity 8'!$B$17:$B$23,'Activity 8'!L$17:L$23,\"N/A\",0,1)","v":"N/A"},{"$f":"_xlfn.XLOOKUP($E66,'Activity 8'!$B$17:$B$23,'Activity 8'!M$17:M$23,\"N/A\",0,1)","v":"N/A"},{"$f":"_xlfn.XLOOKUP($E66,'Activity 8'!$B$17:$B$23,'Activity 8'!N$17:N$23,\"N/A\",0,1)","v":"N/A"},{"$f":"_xlfn.XLOOKUP($E66,'Activity 8'!$B$17:$B$23,'Activity 8'!P$17:P$23,\"N/A\",0,1)","v":"N/A"},{"$f":"_xlfn.XLOOKUP(E66,'Activity 9'!$B$7:$B$13,'Activity 9'!$A$7:$A$13,\"No\",0,1)","v":"No"},{"$f":"_xlfn.XLOOKUP($E66,'Activity 9'!$B$7:$B$13,'Activity 9'!J$7:J$13,\"N/A\",0,1)","v":"N/A"},{"$f":"_xlfn.XLOOKUP($E66,'Activity 9'!$B$7:$B$13,'Activity 9'!K$7:K$13,\"N/A\",0,1)","v":"N/A"},{"$f":"_xlfn.XLOOKUP($E66,'Activity 9'!$B$7:$B$13,'Activity 9'!L$7:L$13,\"N/A\",0,1)","v":"N/A"},{"$f":"_xlfn.XLOOKUP($E66,'Activity 9'!$B$7:$B$13,'Activity 9'!M$7:M$13,\"N/A\",0,1)","v":"N/A"},{"$f":"_xlfn.XLOOKUP($E66,'Activity 9'!$B$7:$B$13,'Activity 9'!N$7:N$13,\"N/A\",0,1)","v":"N/A"},{"$f":"_xlfn.XLOOKUP($E66,'Activity 9'!$B$7:$B$13,'Activity 9'!O$7:O$13,\"N/A\",0,1)","v":"N/A"},{"$f":"_xlfn.XLOOKUP($E66,'Activity 9'!$B$7:$B$13,'Activity 9'!P$7:P$13,\"N/A\",0,1)","v":"N/A"},{"$f":"_xlfn.XLOOKUP($E66,'Activity 9'!$B$7:$B$13,'Activity 9'!Q$7:Q$13,\"N/A\",0,1)","v":"N/A"},{"$f":"_xlfn.XLOOKUP($E66,'Activity 9'!$B$7:$B$13,'Activity 9'!R$7:R$13,\"N/A\",0,1)","v":"N/A"},{"$f":"_xlfn.XLOOKUP($E66,'Activity 9'!$B$7:$B$13,'Activity 9'!S$7:S$13,\"N/A\",0,1)","v":"N/A"},{"$f":"_xlfn.XLOOKUP($E66,'Activity 9'!$B$7:$B$13,'Activity 9'!T$7:T$13,\"N/A\",0,1)","v":"N/A"},{"$f":"_xlfn.XLOOKUP($E66,'Activity 9'!$B$17:$B$23,'Activity 9'!E$17:E$23,\"N/A\",0,1)","v":"N/A"},{"$f":"_xlfn.XLOOKUP($E66,'Activity 9'!$B$17:$B$23,'Activity 9'!F$17:F$23,\"N/A\",0,1)","v":"N/A"},{"$f":"_xlfn.XLOOKUP($E66,'Activity 9'!$B$17:$B$23,'Activity 9'!G$17:G$23,\"N/A\",0,1)","v":"N/A"},{"$f":"_xlfn.XLOOKUP($E66,'Activity 9'!$B$17:$B$23,'Activity 9'!H$17:H$23,\"N/A\",0,1)","v":"N/A"},{"$f":"_xlfn.XLOOKUP($E66,'Activity 9'!$B$17:$B$23,'Activity 9'!I$17:I$23,\"N/A\",0,1)","v":"N/A"},{"$f":"_xlfn.XLOOKUP($E66,'Activity 9'!$B$17:$B$23,'Activity 9'!J$17:J$23,\"N/A\",0,1)","v":"N/A"},{"$f":"_xlfn.XLOOKUP($E66,'Activity 9'!$B$17:$B$23,'Activity 9'!K$17:K$23,\"N/A\",0,1)","v":"N/A"},{"$f":"_xlfn.XLOOKUP($E66,'Activity 9'!$B$17:$B$23,'Activity 9'!L$17:L$23,\"N/A\",0,1)","v":"N/A"},{"$f":"_xlfn.XLOOKUP($E66,'Activity 9'!$B$17:$B$23,'Activity 9'!N$17:N$23,\"N/A\",0,1)","v":"N/A"},{"$f":"_xlfn.XLOOKUP($E66,'Activity 9'!$B$17:$B$23,'Activity 9'!O$17:O$23,\"N/A\",0,1)","v":"N/A"},{"$f":"_xlfn.XLOOKUP($E66,'Activity 9'!$B$17:$B$23,'Activity 9'!Q$17:Q$23,\"N/A\",0,1)","v":"N/A"},{"$f":"_xlfn.XLOOKUP($E66,'Activity 10'!$B$7:$B$13,'Activity 10'!A$7:A$13,\"No\",0,1)","v":"No"},{"$f":"_xlfn.XLOOKUP($E66,'Activity 10'!$B$7:$B$13,'Activity 10'!J$7:J$13,\"N/A\",0,1)","v":"N/A"},{"$f":"_xlfn.XLOOKUP($E66,'Activity 10'!$B$7:$B$13,'Activity 10'!K$7:K$13,\"N/A\",0,1)","v":"N/A"},{"$f":"_xlfn.XLOOKUP($E66,'Activity 10'!$B$7:$B$13,'Activity 10'!L$7:L$13,\"N/A\",0,1)","v":"N/A"},{"$f":"_xlfn.XLOOKUP($E66,'Activity 10'!$B$7:$B$13,'Activity 10'!M$7:M$13,\"N/A\",0,1)","v":"N/A"},{"$f":"_xlfn.XLOOKUP($E66,'Activity 10'!$B$7:$B$13,'Activity 10'!N$7:N$13,\"N/A\",0,1)","v":"N/A"},{"$f":"_xlfn.XLOOKUP($E66,'Activity 10'!$B$7:$B$13,'Activity 10'!O$7:O$13,\"N/A\",0,1)","v":"N/A"},{"$f":"_xlfn.XLOOKUP($E66,'Activity 10'!$B$7:$B$13,'Activity 10'!P$7:P$13,\"N/A\",0,1)","v":"N/A"},{"$f":"_xlfn.XLOOKUP($E66,'Activity 10'!$B$7:$B$13,'Activity 10'!Q$7:Q$13,\"N/A\",0,1)","v":"N/A"},{"$f":"_xlfn.XLOOKUP($E66,'Activity 10'!$B$7:$B$13,'Activity 10'!R$7:R$13,\"N/A\",0,1)","v":"N/A"},{"$f":"_xlfn.XLOOKUP($E66,'Activity 10'!$B$7:$B$13,'Activity 10'!S$7:S$13,\"N/A\",0,1)","v":"N/A"},{"$f":"_xlfn.XLOOKUP($E66,'Activity 10'!$B$7:$B$13,'Activity 10'!T$7:T$13,\"N/A\",0,1)","v":"N/A"},{"$f":"_xlfn.XLOOKUP($E66,'Activity 10'!$B$7:$B$13,'Activity 10'!U$7:U$13,\"N/A\",0,1)","v":"N/A"},{"$f":"_xlfn.XLOOKUP($E66,'Activity 10'!$B$7:$B$13,'Activity 10'!V$7:V$13,\"N/A\",0,1)","v":"N/A"},{"$f":"_xlfn.XLOOKUP($E66,'Activity 10'!$B$17:$B$23,'Activity 10'!E$17:E$23,\"N/A\",0,1)","v":"N/A"},{"$f":"_xlfn.XLOOKUP($E66,'Activity 10'!$B$17:$B$23,'Activity 10'!F$17:F$23,\"N/A\",0,1)","v":"N/A"},{"$f":"_xlfn.XLOOKUP($E66,'Activity 10'!$B$17:$B$23,'Activity 10'!G$17:G$23,\"N/A\",0,1)","v":"N/A"},{"$f":"_xlfn.XLOOKUP($E66,'Activity 10'!$B$17:$B$23,'Activity 10'!H$17:H$23,\"N/A\",0,1)","v":"N/A"},{"$f":"_xlfn.XLOOKUP($E66,'Activity 10'!$B$17:$B$23,'Activity 10'!I$17:I$23,\"N/A\",0,1)","v":"N/A"},{"$f":"_xlfn.XLOOKUP($E66,'Activity 10'!$B$17:$B$23,'Activity 10'!J$17:J$23,\"N/A\",0,1)","v":"N/A"},{"$f":"_xlfn.XLOOKUP($E66,'Activity 10'!$B$17:$B$23,'Activity 10'!K$17:K$23,\"N/A\",0,1)","v":"N/A"},{"$f":"_xlfn.XLOOKUP($E66,'Activity 10'!$B$17:$B$23,'Activity 10'!L$17:L$23,\"N/A\",0,1)","v":"N/A"},{"$f":"_xlfn.XLOOKUP($E66,'Activity 10'!$B$17:$B$23,'Activity 10'!M$17:M$23,\"N/A\",0,1)","v":"N/A"},{"$f":"_xlfn.XLOOKUP($E66,'Activity 10'!$B$17:$B$23,'Activity 10'!N$17:N$23,\"N/A\",0,1)","v":"N/A"},{"$f":"_xlfn.XLOOKUP($E66,'Activity 10'!$B$17:$B$23,'Activity 10'!P$17:P$23,\"N/A\",0,1)","v":"N/A"},{"$f":"_xlfn.XLOOKUP($E66,'Competitive Activity 1'!B$7:B$13,'Competitive Activity 1'!A$7:A$13,\"No\",0,1)","v":"No"},{"$f":"_xlfn.XLOOKUP($E66,'Competitive Activity 1'!$B$7:$B$13,'Competitive Activity 1'!H$7:H$13,\"N/A\",0,1)","v":"N/A"},{"$f":"_xlfn.XLOOKUP($E66,'Competitive Activity 1'!$B$7:$B$13,'Competitive Activity 1'!I$7:I$13,\"N/A\",0,1)","v":"N/A"},{"$f":"_xlfn.XLOOKUP($E66,'Competitive Activity 1'!$B$7:$B$13,'Competitive Activity 1'!J$7:J$13,\"N/A\",0,1)","v":"N/A"},{"$f":"_xlfn.XLOOKUP($E66,'Competitive Activity 1'!$B$7:$B$13,'Competitive Activity 1'!K$7:K$13,\"N/A\",0,1)","v":"N/A"},{"$f":"_xlfn.XLOOKUP($E66,'Competitive Activity 1'!$B$7:$B$13,'Competitive Activity 1'!L$7:L$13,\"N/A\",0,1)","v":"N/A"},{"$f":"_xlfn.XLOOKUP($E66,'Competitive Activity 1'!$B$7:$B$13,'Competitive Activity 1'!M$7:M$13,\"N/A\",0,1)","v":"N/A"},{"$f":"_xlfn.XLOOKUP($E66,'Competitive Activity 1'!$B$7:$B$13,'Competitive Activity 1'!N$7:N$13,\"N/A\",0,1)","v":"N/A"},{"$f":"_xlfn.XLOOKUP($E66,'Competitive Activity 1'!$B$7:$B$13,'Competitive Activity 1'!O$7:O$13,\"N/A\",0,1)","v":"N/A"},{"$f":"_xlfn.XLOOKUP($E66,'Competitive Activity 1'!$B$7:$B$13,'Competitive Activity 1'!P$7:P$13,\"N/A\",0,1)","v":"N/A"},{"$f":"_xlfn.XLOOKUP($E66,'Competitive Activity 1'!$B$7:$B$13,'Competitive Activity 1'!Q$7:Q$13,\"N/A\",0,1)","v":"N/A"},{"$f":"_xlfn.XLOOKUP($E66,'Competitive Activity 1'!$B$7:$B$13,'Competitive Activity 1'!R$7:R$13,\"N/A\",0,1)","v":"N/A"},{"$f":"_xlfn.XLOOKUP($E66,'Competitive Activity 1'!$B$7:$B$13,'Competitive Activity 1'!S$7:S$13,\"N/A\",0,1)","v":"N/A"},{"$f":"_xlfn.XLOOKUP($E66,'Competitive Activity 1'!$B$7:$B$13,'Competitive Activity 1'!T$7:T$13,\"N/A\",0,1)","v":"N/A"},{"$f":"_xlfn.XLOOKUP($E66,'Competitive Activity 1'!$B$7:$B$13,'Competitive Activity 1'!U$7:U$13,\"N/A\",0,1)","v":"N/A"},{"$f":"_xlfn.XLOOKUP($E66,'Competitive Activity 1'!$B$17:$B$23,'Competitive Activity 1'!C$17:C$23,\"N/A\",0,1)","v":"N/A"},{"$f":"_xlfn.XLOOKUP($E66,'Competitive Activity 1'!$B$17:$B$23,'Competitive Activity 1'!D$17:D$23,\"N/A\",0,1)","v":"N/A"},{"$f":"_xlfn.XLOOKUP($E66,'Competitive Activity 1'!$B$17:$B$23,'Competitive Activity 1'!E$17:E$23,\"N/A\",0,1)","v":"N/A"},{"$f":"_xlfn.XLOOKUP($E66,'Competitive Activity 1'!$B$17:$B$23,'Competitive Activity 1'!F$17:F$23,\"N/A\",0,1)","v":"N/A"},{"$f":"_xlfn.XLOOKUP($E66,'Competitive Activity 1'!$B$17:$B$23,'Competitive Activity 1'!G$17:G$23,\"N/A\",0,1)","v":"N/A"},{"$f":"_xlfn.XLOOKUP($E66,'Competitive Activity 1'!$B$17:$B$23,'Competitive Activity 1'!H$17:H$23,\"N/A\",0,1)","v":"N/A"},{"$f":"_xlfn.XLOOKUP($E66,'Competitive Activity 1'!$B$17:$B$23,'Competitive Activity 1'!I$17:I$23,\"N/A\",0,1)","v":"N/A"},{"$f":"_xlfn.XLOOKUP($E66,'Competitive Activity 1'!$B$17:$B$23,'Competitive Activity 1'!J$17:J$23,\"N/A\",0,1)","v":"N/A"},{"$f":"_xlfn.XLOOKUP($E66,'Competitive Activity 1'!$B$17:$B$23,'Competitive Activity 1'!K$17:K$23,\"N/A\",0,1)","v":"N/A"},{"$f":"_xlfn.XLOOKUP($E66,'Competitive Activity 1'!$B$17:$B$23,'Competitive Activity 1'!M$17:M$23,\"N/A\",0,1)","v":"N/A"},{"$f":"_xlfn.XLOOKUP($E66,'Competitive Activity 1'!$B$17:$B$23,'Competitive Activity 1'!N$17:N$23,\"N/A\",0,1)","v":"N/A"},{"$f":"_xlfn.XLOOKUP($E66,'Competitive Activity 1'!$B$17:$B$23,'Competitive Activity 1'!P$17:P$23,\"N/A\",0,1)","v":"N/A"},{"$f":"_xlfn.XLOOKUP($E66,'Competitive Activity 2'!$B$7:$B$13,'Competitive Activity 2'!A$7:A$13,\"No\",0)","v":"No"},{"$f":"_xlfn.XLOOKUP($E66,'Competitive Activity 2'!$B$7:$B$13,'Competitive Activity 2'!L$7:L$13,\"N/A\",0)","v":"N/A"},{"$f":"_xlfn.XLOOKUP($E66,'Competitive Activity 2'!$B$7:$B$13,'Competitive Activity 2'!M$7:M$13,\"N/A\",0)","v":"N/A"},{"$f":"_xlfn.XLOOKUP($E66,'Competitive Activity 2'!$B$7:$B$13,'Competitive Activity 2'!N$7:N$13,\"N/A\",0)","v":"N/A"},{"$f":"_xlfn.XLOOKUP($E66,'Competitive Activity 2'!$B$7:$B$13,'Competitive Activity 2'!O$7:O$13,\"N/A\",0)","v":"N/A"},{"$f":"_xlfn.XLOOKUP($E66,'Competitive Activity 2'!$B$7:$B$13,'Competitive Activity 2'!P$7:P$13,\"N/A\",0)","v":"N/A"},{"$f":"_xlfn.XLOOKUP($E66,'Competitive Activity 2'!$B$7:$B$13,'Competitive Activity 2'!Q$7:Q$13,\"N/A\",0)","v":"N/A"},{"$f":"_xlfn.XLOOKUP($E66,'Competitive Activity 2'!$B$7:$B$13,'Competitive Activity 2'!R$7:R$13,\"N/A\",0)","v":"N/A"},{"$f":"_xlfn.XLOOKUP($E66,'Competitive Activity 2'!$B$7:$B$13,'Competitive Activity 2'!S$7:S$13,\"N/A\",0)","v":"N/A"},{"$f":"_xlfn.XLOOKUP($E66,'Competitive Activity 2'!$B$7:$B$13,'Competitive Activity 2'!T$7:T$13,\"N/A\",0)","v":"N/A"},{"$f":"_xlfn.XLOOKUP($E66,'Competitive Activity 2'!$B$7:$B$13,'Competitive Activity 2'!U$7:U$13,\"N/A\",0)","v":"N/A"},{"$f":"_xlfn.XLOOKUP($E66,'Competitive Activity 2'!$B$17:$B$23,'Competitive Activity 2'!D$17:D$23,\"N/A\",0)","v":"N/A"},{"$f":"_xlfn.XLOOKUP($E66,'Competitive Activity 2'!$B$17:$B$23,'Competitive Activity 2'!E$17:E$23,\"N/A\",0)","v":"N/A"},{"$f":"_xlfn.XLOOKUP($E66,'Competitive Activity 2'!$B$17:$B$23,'Competitive Activity 2'!F$17:F$23,\"N/A\",0)","v":"N/A"},{"$f":"_xlfn.XLOOKUP($E66,'Competitive Activity 2'!$B$17:$B$23,'Competitive Activity 2'!G$17:G$23,\"N/A\",0)","v":"N/A"},{"$f":"_xlfn.XLOOKUP($E66,'Competitive Activity 2'!$B$17:$B$23,'Competitive Activity 2'!H$17:H$23,\"N/A\",0)","v":"N/A"},{"$f":"_xlfn.XLOOKUP($E66,'Competitive Activity 2'!$B$17:$B$23,'Competitive Activity 2'!I$17:I$23,\"N/A\",0)","v":"N/A"},{"$f":"_xlfn.XLOOKUP($E66,'Competitive Activity 2'!$B$17:$B$23,'Competitive Activity 2'!J$17:J$23,\"N/A\",0)","v":"N/A"},{"$f":"_xlfn.XLOOKUP($E66,'Competitive Activity 2'!$B$17:$B$23,'Competitive Activity 2'!K$17:K$23,\"N/A\",0)","v":"N/A"},{"$f":"_xlfn.XLOOKUP($E66,'Competitive Activity 2'!$B$17:$B$23,'Competitive Activity 2'!L$17:L$23,\"N/A\",0)","v":"N/A"},{"$f":"_xlfn.XLOOKUP($E66,'Competitive Activity 2'!$B$17:$B$23,'Competitive Activity 2'!M$17:M$23,\"N/A\",0)","v":"N/A"},{"$f":"_xlfn.XLOOKUP($E66,'Competitive Activity 2'!$B$17:$B$23,'Competitive Activity 2'!N$17:N$23,\"N/A\",0)","v":"N/A"},{"$f":"_xlfn.XLOOKUP($E66,'Competitive Activity 2'!$B$27:$B$33,'Competitive Activity 2'!D$27:D$33,\"N/A\",0)","v":"N/A"},{"$f":"_xlfn.XLOOKUP($E66,'Competitive Activity 2'!$B$27:$B$33,'Competitive Activity 2'!E$27:E$33,\"N/A\",0)","v":"N/A"},{"$f":"_xlfn.XLOOKUP($E66,'Competitive Activity 2'!$B$27:$B$33,'Competitive Activity 2'!F$27:F$33,\"N/A\",0)","v":"N/A"},{"$f":"_xlfn.XLOOKUP($E66,'Competitive Activity 2'!$B$27:$B$33,'Competitive Activity 2'!G$27:G$33,\"N/A\",0)","v":"N/A"},{"$f":"_xlfn.XLOOKUP($E66,'Competitive Activity 2'!$B$27:$B$33,'Competitive Activity 2'!H$27:H$33,\"N/A\",0)","v":"N/A"},{"$f":"_xlfn.XLOOKUP($E66,'Competitive Activity 2'!$B$27:$B$33,'Competitive Activity 2'!I$27:I$33,\"N/A\",0)","v":"N/A"},{"$f":"_xlfn.XLOOKUP($E66,'Competitive Activity 2'!$B$27:$B$33,'Competitive Activity 2'!J$27:J$33,\"N/A\",0)","v":"N/A"},{"$f":"_xlfn.XLOOKUP($E66,'Competitive Activity 2'!$B$27:$B$33,'Competitive Activity 2'!K$27:K$33,\"N/A\",0)","v":"N/A"},{"$f":"_xlfn.XLOOKUP($E66,'Competitive Activity 2'!$B$27:$B$33,'Competitive Activity 2'!M$27:M$33,\"N/A\",0)","v":"N/A"}]
[{"$f":"'1-Cover Sheet'!$C$8","v":"Select One"},{"$f":"'1-Cover Sheet'!$F$8","v":"Select One"},{"$f":"'Summary Sheet'!$D$8","v":0},{"$f":"'Summary Sheet'!$D$10","v":0},{"$f":"'Drop Down Box'!B231","v":0},{"$f":"'Drop Down Box'!C231","v":0},{"$f":"'Drop Down Box'!D231","v":"Select One"},{"$f":"_xlfn.XLOOKUP(E67,'Drop Down Box'!$B$166:$B$249,'Drop Down Box'!$A$166:$A$249,\"Unknown\",0)","v":"Activity 1"},{"$f":"_xlfn.XLOOKUP($E67,'Activity 10'!$B$17:$B$23,'Activity 10'!$O$17:$O$23,\"N/A\",0)","v":"N/A"},{"$f":"_xlfn.XLOOKUP($E67,'Activity 10'!$B$17:$B$23,'Activity 10'!$Q$17:$Q$23,\"N/A\",0)","v":"N/A"},{"$f":"_xlfn.XLOOKUP($E67,'Activity 10'!$B$7:$B$13,'Activity 10'!G$7:G$13,\"N/A\",0)","v":"N/A"},{"$f":"_xlfn.XLOOKUP($E67,'Activity 10'!$B$7:$B$13,'Activity 10'!H$7:H$13,\"N/A\",0)","v":"N/A"},{"$f":"_xlfn.XLOOKUP($E67,'Activity 10'!$B$7:$B$13,'Activity 10'!I$7:I$13,\"N/A\",0)","v":"N/A"},{"$f":"_xlfn.XLOOKUP($E67,'Activity 1'!$B$7:$B$13,'Activity 1'!$A$7:$A$13,\"No\",0,1)","v":"No"},{"$f":"_xlfn.XLOOKUP($E67,'Activity 1'!$B$7:$B$13,'Activity 1'!$H$7:$H$13,\"N/A\",0,1)","v":"N/A"},{"$f":"_xlfn.XLOOKUP($E67,'Activity 1'!$B$7:$B$13,'Activity 1'!I$7:I$13,\"N/A\",0,1)","v":"N/A"},{"$f":"_xlfn.XLOOKUP($E67,'Activity 1'!$B$7:$B$13,'Activity 1'!J$7:J$13,\"N/A\",0,1)","v":"N/A"},{"$f":"_xlfn.XLOOKUP($E67,'Activity 1'!$B$7:$B$13,'Activity 1'!K$7:K$13,\"N/A\",0,1)","v":"N/A"},{"$f":"_xlfn.XLOOKUP($E67,'Activity 1'!$B$7:$B$13,'Activity 1'!L$7:L$13,\"N/A\",0,1)","v":"N/A"},{"$f":"_xlfn.XLOOKUP($E67,'Activity 1'!$B$7:$B$13,'Activity 1'!M$7:M$13,\"N/A\",0,1)","v":"N/A"},{"$f":"_xlfn.XLOOKUP($E67,'Activity 1'!$B$7:$B$13,'Activity 1'!N$7:N$13,\"N/A\",0,1)","v":"N/A"},0,{"$f":"_xlfn.XLOOKUP($E67,'Activity 1'!$B$7:$B$13,'Activity 1'!O$7:O$13,\"N/A\",0,1)","v":"N/A"},{"$f":"_xlfn.XLOOKUP($E67,'Activity 1'!$B$7:$B$13,'Activity 1'!P$7:P$13,\"N/A\",0,1)","v":"N/A"},{"$f":"_xlfn.XLOOKUP($E67,'Activity 1'!$B$7:$B$13,'Activity 1'!Q$7:Q$13,\"N/A\",0,1)","v":"N/A"},{"$f":"_xlfn.XLOOKUP($E67,'Activity 1'!$B$7:$B$13,'Activity 1'!R$7:R$13,\"N/A\",0,1)","v":"N/A"},{"$f":"_xlfn.XLOOKUP($E67,'Activity 1'!$B$7:$B$13,'Activity 1'!S$7:S$13,\"N/A\",0,1)","v":"N/A"},{"$f":"_xlfn.XLOOKUP($E67,'Activity 1'!$B$7:$B$13,'Activity 1'!T$7:T$13,\"N/A\",0,1)","v":"N/A"},{"$f":"_xlfn.XLOOKUP($E67,'Activity 1'!$B$7:$B$13,'Activity 1'!U$7:U$13,\"N/A\",0,1)","v":"N/A"},{"$f":"_xlfn.XLOOKUP($E67,'Activity 1'!$B$7:$B$13,'Activity 1'!V$7:V$13,\"N/A\",0,1)","v":"N/A"},{"$f":"_xlfn.XLOOKUP($E67,'Activity 1'!$B$17:$B$23,'Activity 1'!C$17:C$23,\"N/A\",0,1)","v":"N/A"},{"$f":"_xlfn.XLOOKUP($E67,'Activity 1'!$B$17:$B$23,'Activity 1'!D$17:D$23,\"N/A\",0,1)","v":"N/A"},{"$f":"_xlfn.XLOOKUP($E67,'Activity 1'!$B$17:$B$23,'Activity 1'!E$17:E$23,\"N/A\",0,1)","v":"N/A"},{"$f":"_xlfn.XLOOKUP($E67,'Activity 1'!$B$17:$B$23,'Activity 1'!F$17:F$23,\"N/A\",0,1)","v":"N/A"},{"$f":"_xlfn.XLOOKUP($E67,'Activity 1'!$B$17:$B$23,'Activity 1'!G$17:G$23,\"N/A\",0,1)","v":"N/A"},{"$f":"_xlfn.XLOOKUP($E67,'Activity 1'!$B$17:$B$23,'Activity 1'!H$17:H$23,\"N/A\",0,1)","v":"N/A"},{"$f":"_xlfn.XLOOKUP($E67,'Activity 1'!$B$17:$B$23,'Activity 1'!I$17:I$23,\"N/A\",0,1)","v":"N/A"},{"$f":"_xlfn.XLOOKUP($E67,'Activity 1'!$B$17:$B$23,'Activity 1'!J$17:J$23,\"N/A\",0,1)","v":"N/A"},{"$f":"_xlfn.XLOOKUP($E67,'Activity 1'!$B$17:$B$23,'Activity 1'!K$17:K$23,\"N/A\",0,1)","v":"N/A"},{"$f":"_xlfn.XLOOKUP($E67,'Activity 1'!$B$17:$B$23,'Activity 1'!L$17:L$23,\"N/A\",0,1)","v":"N/A"},{"$f":"_xlfn.XLOOKUP($E67,'Activity 1'!$B$17:$B$23,'Activity 1'!M$17:M$23,\"N/A\",0,1)","v":"N/A"},{"$f":"_xlfn.XLOOKUP($E67,'Activity 1'!$B$17:$B$23,'Activity 1'!O$17:O$23,\"N/A\",0,1)","v":"N/A"},{"$f":"_xlfn.XLOOKUP($E67,'Activity 1'!$B$17:$B$23,'Activity 1'!Q$17:Q$23,\"N/A\",0,1)","v":"N/A"},{"$f":"_xlfn.XLOOKUP($E67,'Activity 2'!$B$7:$B$13,'Activity 2'!$A$7:$A$13,\"No\",0,1)","v":"No"},{"$f":"_xlfn.XLOOKUP($E67,'Activity 2'!B$7:B$13,'Activity 2'!H$7:H$13,\"N/A\",0)","v":"N/A"},{"$f":"_xlfn.XLOOKUP($E67,'Activity 2'!C$7:C$13,'Activity 2'!I$7:I$13,\"N/A\",0)","v":"N/A"},{"$f":"_xlfn.XLOOKUP($E67,'Activity 2'!D$7:D$13,'Activity 2'!J$7:J$13,\"N/A\",0)","v":"N/A"},{"$f":"_xlfn.XLOOKUP($E67,'Activity 2'!E$7:E$13,'Activity 2'!K$7:K$13,\"N/A\",0)","v":"N/A"},{"$f":"_xlfn.XLOOKUP($E67,'Activity 2'!F$7:F$13,'Activity 2'!L$7:L$13,\"N/A\",0)","v":"N/A"},{"$f":"_xlfn.XLOOKUP($E67,'Activity 2'!G$7:G$13,'Activity 2'!M$7:M$13,\"N/A\",0)","v":"N/A"},{"$f":"_xlfn.XLOOKUP($E67,'Activity 2'!H$7:H$13,'Activity 2'!N$7:N$13,\"N/A\",0)","v":"N/A"},{"$f":"_xlfn.XLOOKUP($E67,'Activity 2'!I$7:I$13,'Activity 2'!O$7:O$13,\"N/A\",0)","v":"N/A"},{"$f":"_xlfn.XLOOKUP($E67,'Activity 2'!J$7:J$13,'Activity 2'!P$7:P$13,\"N/A\",0)","v":"N/A"},{"$f":"_xlfn.XLOOKUP($E67,'Activity 2'!K$7:K$13,'Activity 2'!Q$7:Q$13,\"N/A\",0)","v":"N/A"},{"$f":"_xlfn.XLOOKUP($E67,'Activity 2'!L$7:L$13,'Activity 2'!R$7:R$13,\"N/A\",0)","v":"N/A"},{"$f":"_xlfn.XLOOKUP($E67,'Activity 2'!M$7:M$13,'Activity 2'!S$7:S$13,\"N/A\",0)","v":"N/A"},{"$f":"_xlfn.XLOOKUP($E67,'Activity 2'!N$7:N$13,'Activity 2'!T$7:T$13,\"N/A\",0)","v":"N/A"},{"$f":"_xlfn.XLOOKUP($E67,'Activity 2'!O$7:O$13,'Activity 2'!U$7:U$13,\"N/A\",0)","v":"N/A"},{"$f":"_xlfn.XLOOKUP($E67,'Activity 2'!P$7:P$13,'Activity 2'!V$7:V$13,\"N/A\",0)","v":"N/A"},{"$f":"_xlfn.XLOOKUP($E67,'Activity 2'!$B$17:$B$23,'Activity 2'!C$17:C$23,\"N/A\",0,1)","v":"N/A"},{"$f":"_xlfn.XLOOKUP($E67,'Activity 2'!$B$17:$B$23,'Activity 2'!D$17:D$23,\"N/A\",0,1)","v":"N/A"},{"$f":"_xlfn.XLOOKUP($E67,'Activity 2'!$B$17:$B$23,'Activity 2'!E$17:E$23,\"N/A\",0,1)","v":"N/A"},{"$f":"_xlfn.XLOOKUP($E67,'Activity 2'!$B$17:$B$23,'Activity 2'!F$17:F$23,\"N/A\",0,1)","v":"N/A"},{"$f":"_xlfn.XLOOKUP($E67,'Activity 2'!$B$17:$B$23,'Activity 2'!G$17:G$23,\"N/A\",0,1)","v":"N/A"},{"$f":"_xlfn.XLOOKUP($E67,'Activity 2'!$B$17:$B$23,'Activity 2'!H$17:H$23,\"N/A\",0,1)","v":"N/A"},{"$f":"_xlfn.XLOOKUP($E67,'Activity 2'!$B$17:$B$23,'Activity 2'!I$17:I$23,\"N/A\",0,1)","v":"N/A"},{"$f":"_xlfn.XLOOKUP($E67,'Activity 2'!$B$17:$B$23,'Activity 2'!J$17:J$23,\"N/A\",0,1)","v":"N/A"},{"$f":"_xlfn.XLOOKUP($E67,'Activity 2'!$B$17:$B$23,'Activity 2'!K$17:K$23,\"N/A\",0,1)","v":"N/A"},{"$f":"_xlfn.XLOOKUP($E67,'Activity 2'!$B$17:$B$23,'Activity 2'!L$17:L$23,\"N/A\",0,1)","v":"N/A"},{"$f":"_xlfn.XLOOKUP($E67,'Activity 2'!$B$17:$B$23,'Activity 2'!M$17:M$23,\"N/A\",0,1)","v":"N/A"},{"$f":"_xlfn.XLOOKUP($E67,'Activity 2'!$B$17:$B$23,'Activity 2'!O$17:O$23,\"N/A\",0,1)","v":"N/A"},{"$f":"_xlfn.XLOOKUP($E67,'Activity 2'!$B$17:$B$23,'Activity 2'!Q$17:Q$23,\"N/A\",0,1)","v":"N/A"},null,{"$f":"_xlfn.XLOOKUP($E67,'Activity 3'!$B$8:$B$14,'Activity 3'!K$8:K$14,\"N/A\",0,1)","v":"N/A"},{"$f":"_xlfn.XLOOKUP($E67,'Activity 3'!$B$8:$B$14,'Activity 3'!L$8:L$14,\"N/A\",0,1)","v":"N/A"},{"$f":"_xlfn.XLOOKUP($E67,'Activity 3'!$B$8:$B$14,'Activity 3'!M$8:M$14,\"N/A\",0,1)","v":"N/A"},{"$f":"_xlfn.XLOOKUP($E67,'Activity 3'!$B$8:$B$14,'Activity 3'!N$8:N$14,\"N/A\",0,1)","v":"N/A"},{"$f":"_xlfn.XLOOKUP($E67,'Activity 3'!$B$8:$B$14,'Activity 3'!O$8:O$14,\"N/A\",0,1)","v":"N/A"},{"$f":"_xlfn.XLOOKUP($E67,'Activity 3'!$B$8:$B$14,'Activity 3'!R$8:R$14,\"N/A\",0,1)","v":"N/A"},{"$f":"_xlfn.XLOOKUP($E67,'Activity 4'!$B$8:$B$14,'Activity 4'!$A$8:$A$14,\"No\",0,1)","v":"No"},{"$f":"_xlfn.XLOOKUP($E67,'Activity 4'!$B$8:$B$14,'Activity 4'!L$8:L$14,\"N/A\",0,1)","v":"N/A"},{"$f":"_xlfn.XLOOKUP($E67,'Activity 4'!$B$8:$B$14,'Activity 4'!I$8:I$14,\"N/A\",0,1)","v":"N/A"},{"$f":"_xlfn.XLOOKUP($E67,'Activity 4'!$B$8:$B$14,'Activity 4'!M$8:M$14,\"N/A\",0,1)","v":"N/A"},{"$f":"_xlfn.XLOOKUP($E67,'Activity 5'!$B$8:$B$14,'Activity 5'!$A$8:$A$14,\"No\",0,1)","v":"No"},{"$f":"_xlfn.XLOOKUP($E67,'Activity 5'!$B$8:$B$14,'Activity 5'!J$8:J$14,\"N/A\",0,1)","v":"N/A"},{"$f":"_xlfn.XLOOKUP($E67,'Activity 5'!$B$8:$B$14,'Activity 5'!K$8:K$14,\"N/A\",0,1)","v":"N/A"},{"$f":"_xlfn.XLOOKUP($E67,'Activity 5'!$B$8:$B$14,'Activity 5'!N$8:N$14,\"N/A\",0,1)","v":"N/A"},{"$f":"_xlfn.XLOOKUP($E67,'Activity 5'!$B$8:$B$14,'Activity 5'!O$8:O$14,\"N/A\",0,1)","v":"N/A"},{"$f":"_xlfn.XLOOKUP($E67,'Activity 5'!$B$8:$B$14,'Activity 5'!P$8:P$14,\"N/A\",0,1)","v":"N/A"},{"$f":"_xlfn.XLOOKUP($E67,'Activity 5'!$B$8:$B$14,'Activity 5'!Q$8:Q$14,\"N/A\",0,1)","v":"N/A"},{"$f":"_xlfn.XLOOKUP($E67,'Activity 5'!$B$8:$B$14,'Activity 5'!R$8:R$14,\"N/A\",0,1)","v":"N/A"},{"$f":"_xlfn.XLOOKUP($E67,'Activity 6'!$B$7:$B$13,'Activity 6'!A$7:A$13,\"No\",0,1)","v":"No"},{"$f":"_xlfn.XLOOKUP($E67,'Activity 6'!$B$7:$B$13,'Activity 6'!K$7:K$13,\"N/A\",0,1)","v":"N/A"},{"$f":"_xlfn.XLOOKUP($E67,'Activity 6'!$B$7:$B$13,'Activity 6'!L$7:L$13,\"N/A\",0,1)","v":"N/A"},{"$f":"_xlfn.XLOOKUP($E67,'Activity 6'!$B$7:$B$13,'Activity 6'!M$7:M$13,\"N/A\",0,1)","v":"N/A"},{"$f":"_xlfn.XLOOKUP($E67,'Activity 6'!$B$7:$B$13,'Activity 6'!N$7:N$13,\"N/A\",0,1)","v":"N/A"},{"$f":"_xlfn.XLOOKUP($E67,'Activity 6'!$B$7:$B$13,'Activity 6'!O$7:O$13,\"N/A\",0,1)","v":"N/A"},{"$f":"_xlfn.XLOOKUP($E67,'Activity 6'!$B$7:$B$13,'Activity 6'!P$7:P$13,\"N/A\",0,1)","v":"N/A"},{"$f":"_xlfn.XLOOKUP($E67,'Activity 6'!$B$7:$B$13,'Activity 6'!Q$7:Q$13,\"N/A\",0,1)","v":"N/A"},{"$f":"_xlfn.XLOOKUP($E67,'Activity 6'!$B$7:$B$13,'Activity 6'!R$7:R$13,\"N/A\",0,1)","v":"N/A"},{"$f":"_xlfn.XLOOKUP($E67,'Activity 6'!$B$7:$B$13,'Activity 6'!S$7:S$13,\"N/A\",0,1)","v":"N/A"},{"$f":"_xlfn.XLOOKUP($E67,'Activity 6'!$B$7:$B$13,'Activity 6'!T$7:T$13,\"N/A\",0,1)","v":"N/A"},{"$f":"_xlfn.XLOOKUP($E67,'Activity 6'!$B$7:$B$13,'Activity 6'!U$7:U$13,\"N/A\",0,1)","v":"N/A"},{"$f":"_xlfn.XLOOKUP($E67,'Activity 6'!$B$22:$B$28,'Activity 6'!C$22:C$28,\"N/A\",0,1)","v":"N/A"},{"$f":"_xlfn.XLOOKUP($E67,'Activity 6'!$B$22:$B$28,'Activity 6'!D$22:D$28,\"N/A\",0,1)","v":"N/A"},{"$f":"_xlfn.XLOOKUP($E67,'Activity 6'!$B$22:$B$28,'Activity 6'!E$22:E$28,\"N/A\",0,1)","v":"N/A"},{"$f":"_xlfn.XLOOKUP($E67,'Activity 6'!$B$22:$B$28,'Activity 6'!F$22:F$28,\"N/A\",0,1)","v":"N/A"},{"$f":"_xlfn.XLOOKUP($E67,'Activity 6'!$B$22:$B$28,'Activity 6'!G$22:G$28,\"N/A\",0,1)","v":"N/A"},{"$f":"_xlfn.XLOOKUP($E67,'Activity 6'!$B$22:$B$28,'Activity 6'!H$22:H$28,\"N/A\",0,1)","v":"N/A"},{"$f":"_xlfn.XLOOKUP($E67,'Activity 6'!$B$22:$B$28,'Activity 6'!I$22:I$28,\"N/A\",0,1)","v":"N/A"},{"$f":"_xlfn.XLOOKUP($E67,'Activity 6'!$B$22:$B$28,'Activity 6'!J$22:J$28,\"N/A\",0,1)","v":"N/A"},{"$f":"_xlfn.XLOOKUP($E67,'Activity 6'!$B$22:$B$28,'Activity 6'!K$22:K$28,\"N/A\",0,1)","v":"N/A"},{"$f":"_xlfn.XLOOKUP($E67,'Activity 6'!$B$22:$B$28,'Activity 6'!L$22:L$28,\"N/A\",0,1)","v":"N/A"},{"$f":"_xlfn.XLOOKUP($E67,'Activity 6'!$B$22:$B$28,'Activity 6'!M$22:M$28,\"N/A\",0,1)","v":"N/A"},{"$f":"_xlfn.XLOOKUP($E67,'Activity 6'!$B$22:$B$28,'Activity 6'!N$22:N$28,\"N/A\",0,1)","v":"N/A"},{"$f":"_xlfn.XLOOKUP($E67,'Activity 6'!$B$32:$B$38,'Activity 6'!C$32:C$38,\"N/A\",0,1)","v":"N/A"},{"$f":"_xlfn.XLOOKUP($E67,'Activity 6'!$B$32:$B$38,'Activity 6'!D$32:D$38,\"N/A\",0,1)","v":"N/A"},{"$f":"_xlfn.XLOOKUP($E67,'Activity 6'!$B$32:$B$38,'Activity 6'!E$32:E$38,\"N/A\",0,1)","v":"N/A"},{"$f":"_xlfn.XLOOKUP($E67,'Activity 6'!$B$32:$B$38,'Activity 6'!F$32:F$38,\"N/A\",0,1)","v":"N/A"},{"$f":"_xlfn.XLOOKUP($E67,'Activity 6'!$B$32:$B$38,'Activity 6'!G$32:G$38,\"N/A\",0,1)","v":"N/A"},{"$f":"_xlfn.XLOOKUP($E67,'Activity 6'!$B$32:$B$38,'Activity 6'!H$32:H$38,\"N/A\",0,1)","v":"N/A"},{"$f":"_xlfn.XLOOKUP($E67,'Activity 6'!$B$32:$B$38,'Activity 6'!I$32:I$38,\"N/A\",0,1)","v":"N/A"},{"$f":"_xlfn.XLOOKUP($E67,'Activity 6'!$B$32:$B$38,'Activity 6'!J$32:J$38,\"N/A\",0,1)","v":"N/A"},{"$f":"_xlfn.XLOOKUP($E67,'Activity 6'!$B$32:$B$38,'Activity 6'!K$32:K$38,\"N/A\",0,1)","v":"N/A"},{"$f":"_xlfn.XLOOKUP($E67,'Activity 6'!$B$32:$B$38,'Activity 6'!M$32:M$38,\"N/A\",0,1)","v":"N/A"},{"$f":"_xlfn.XLOOKUP($E67,'Activity 7'!$B$7:$B$13,'Activity 7'!$A$7:$A$13,\"No\",0,1)","v":"No"},{"$f":"_xlfn.XLOOKUP($E67,'Activity 7'!$B$7:$B$13,'Activity 7'!M$7:M$13,\"N/A\",0,1)","v":"N/A"},{"$f":"_xlfn.XLOOKUP($E67,'Activity 7'!$B$7:$B$13,'Activity 7'!K$7:K$13,\"N/A\",0,1)","v":"N/A"},{"$f":"_xlfn.XLOOKUP($E67,'Activity 7'!$B$7:$B$13,'Activity 7'!N$7:N$13,\"N/A\",0,1)","v":"N/A"},{"$f":"_xlfn.XLOOKUP($E67,'Activity 7'!$B$7:$B$13,'Activity 7'!O$7:O$13,\"N/A\",0,1)","v":"N/A"},{"$f":"_xlfn.XLOOKUP($E67,'Activity 7'!$B$7:$B$13,'Activity 7'!P$7:P$13,\"N/A\",0,1)","v":"N/A"},{"$f":"_xlfn.XLOOKUP($E67,'Activity 7'!$B$7:$B$13,'Activity 7'!Q$7:Q$13,\"N/A\",0,1)","v":"N/A"},{"$f":"_xlfn.XLOOKUP($E67,'Activity 7'!$B$7:$B$13,'Activity 7'!R$7:R$13,\"N/A\",0,1)","v":"N/A"},{"$f":"_xlfn.XLOOKUP($E67,'Activity 7'!$B$7:$B$13,'Activity 7'!S$7:S$13,\"N/A\",0,1)","v":"N/A"},{"$f":"_xlfn.XLOOKUP($E67,'Activity 7'!$B$7:$B$13,'Activity 7'!T$7:T$13,\"N/A\",0,1)","v":"N/A"},{"$f":"_xlfn.XLOOKUP($E67,'Activity 7'!$B$7:$B$13,'Activity 7'!U$7:U$13,\"N/A\",0,1)","v":"N/A"},{"$f":"_xlfn.XLOOKUP($E67,'Activity 7'!$B$7:$B$13,'Activity 7'!V$7:V$13,\"N/A\",0,1)","v":"N/A"},{"$f":"_xlfn.XLOOKUP($E67,'Activity 7'!$B$17:$B$23,'Activity 7'!E$17:E$23,\"N/A\",0,1)","v":"N/A"},{"$f":"_xlfn.XLOOKUP($E67,'Activity 7'!$B$17:$B$23,'Activity 7'!G$17:G$23,\"N/A\",0,1)","v":"N/A"},{"$f":"_xlfn.XLOOKUP($E67,'Activity 7'!$B$17:$B$23,'Activity 7'!I$17:I$23,\"N/A\",0,1)","v":"N/A"},{"$f":"_xlfn.XLOOKUP($E67,'Activity 7'!$B$17:$B$23,'Activity 7'!J$17:J$23,\"N/A\",0,1)","v":"N/A"},{"$f":"_xlfn.XLOOKUP($E67,'Activity 7'!$B$17:$B$23,'Activity 7'!K$17:K$23,\"N/A\",0,1)","v":"N/A"},{"$f":"_xlfn.XLOOKUP($E67,'Activity 7'!$B$17:$B$23,'Activity 7'!L$17:L$23,\"N/A\",0,1)","v":"N/A"},{"$f":"_xlfn.XLOOKUP($E67,'Activity 7'!$B$17:$B$23,'Activity 7'!M$17:M$23,\"N/A\",0,1)","v":"N/A"},{"$f":"_xlfn.XLOOKUP($E67,'Activity 7'!$B$17:$B$23,'Activity 7'!N$17:N$23,\"N/A\",0,1)","v":"N/A"},{"$f":"_xlfn.XLOOKUP($E67,'Activity 7'!$B$17:$B$23,'Activity 7'!P$17:P$23,\"N/A\",0,1)","v":"N/A"},{"$f":"_xlfn.XLOOKUP($E67,'Activity 8'!$B$7:$B$13,'Activity 8'!A$7:A$13,\"No\",0,1)","v":"No"},{"$f":"_xlfn.XLOOKUP($E67,'Activity 8'!$B$7:$B$13,'Activity 8'!I$7:I$13,\"N/A\",0,1)","v":"N/A"},{"$f":"_xlfn.XLOOKUP($E67,'Activity 8'!$B$7:$B$13,'Activity 8'!J$7:J$13,\"N/A\",0,1)","v":"N/A"},{"$f":"_xlfn.XLOOKUP($E67,'Activity 8'!$B$7:$B$13,'Activity 8'!K$7:K$13,\"N/A\",0,1)","v":"N/A"},{"$f":"_xlfn.XLOOKUP($E67,'Activity 8'!$B$7:$B$13,'Activity 8'!L$7:L$13,\"N/A\",0,1)","v":"N/A"},{"$f":"_xlfn.XLOOKUP($E67,'Activity 8'!$B$7:$B$13,'Activity 8'!M$7:M$13,\"N/A\",0,1)","v":"N/A"},{"$f":"_xlfn.XLOOKUP($E67,'Activity 8'!$B$7:$B$13,'Activity 8'!N$7:N$13,\"N/A\",0,1)","v":"N/A"},{"$f":"_xlfn.XLOOKUP($E67,'Activity 8'!$B$7:$B$13,'Activity 8'!O$7:O$13,\"N/A\",0,1)","v":"N/A"},{"$f":"_xlfn.XLOOKUP($E67,'Activity 8'!$B$7:$B$13,'Activity 8'!P$7:P$13,\"N/A\",0,1)","v":"N/A"},{"$f":"_xlfn.XLOOKUP($E67,'Activity 8'!$B$7:$B$13,'Activity 8'!Q$7:Q$13,\"N/A\",0,1)","v":"N/A"},{"$f":"_xlfn.XLOOKUP($E67,'Activity 8'!$B$7:$B$13,'Activity 8'!R$7:R$13,\"N/A\",0,1)","v":"N/A"},{"$f":"_xlfn.XLOOKUP($E67,'Activity 8'!$B$7:$B$13,'Activity 8'!S$7:S$13,\"N/A\",0,1)","v":"N/A"},{"$f":"_xlfn.XLOOKUP($E67,'Activity 8'!$B$7:$B$13,'Activity 8'!T$7:T$13,\"N/A\",0,1)","v":"N/A"},{"$f":"_xlfn.XLOOKUP($E67,'Activity 8'!$B$7:$B$13,'Activity 8'!U$7:U$13,\"N/A\",0,1)","v":"N/A"},{"$f":"_xlfn.XLOOKUP($E67,'Activity 8'!$B$7:$B$13,'Activity 8'!V$7:V$13,\"N/A\",0,1)","v":"N/A"},{"$f":"_xlfn.XLOOKUP($E67,'Activity 8'!$B$17:$B$23,'Activity 8'!D$17:D$23,\"N/A\",0,1)","v":"N/A"},{"$f":"_xlfn.XLOOKUP($E67,'Activity 8'!$B$17:$B$23,'Activity 8'!E$17:E$23,\"N/A\",0,1)","v":"N/A"},{"$f":"_xlfn.XLOOKUP($E67,'Activity 8'!$B$17:$B$23,'Activity 8'!F$17:F$23,\"N/A\",0,1)","v":"N/A"},{"$f":"_xlfn.XLOOKUP($E67,'Activity 8'!$B$17:$B$23,'Activity 8'!G$17:G$23,\"N/A\",0,1)","v":"N/A"},{"$f":"_xlfn.XLOOKUP($E67,'Activity 8'!$B$17:$B$23,'Activity 8'!H$17:H$23,\"N/A\",0,1)","v":"N/A"},{"$f":"_xlfn.XLOOKUP($E67,'Activity 8'!$B$17:$B$23,'Activity 8'!I$17:I$23,\"N/A\",0,1)","v":"N/A"},{"$f":"_xlfn.XLOOKUP($E67,'Activity 8'!$B$17:$B$23,'Activity 8'!J$17:J$23,\"N/A\",0,1)","v":"N/A"},{"$f":"_xlfn.XLOOKUP($E67,'Activity 8'!$B$17:$B$23,'Activity 8'!K$17:K$23,\"N/A\",0,1)","v":"N/A"},{"$f":"_xlfn.XLOOKUP($E67,'Activity 8'!$B$17:$B$23,'Activity 8'!L$17:L$23,\"N/A\",0,1)","v":"N/A"},{"$f":"_xlfn.XLOOKUP($E67,'Activity 8'!$B$17:$B$23,'Activity 8'!M$17:M$23,\"N/A\",0,1)","v":"N/A"},{"$f":"_xlfn.XLOOKUP($E67,'Activity 8'!$B$17:$B$23,'Activity 8'!N$17:N$23,\"N/A\",0,1)","v":"N/A"},{"$f":"_xlfn.XLOOKUP($E67,'Activity 8'!$B$17:$B$23,'Activity 8'!P$17:P$23,\"N/A\",0,1)","v":"N/A"},{"$f":"_xlfn.XLOOKUP(E67,'Activity 9'!$B$7:$B$13,'Activity 9'!$A$7:$A$13,\"No\",0,1)","v":"No"},{"$f":"_xlfn.XLOOKUP($E67,'Activity 9'!$B$7:$B$13,'Activity 9'!J$7:J$13,\"N/A\",0,1)","v":"N/A"},{"$f":"_xlfn.XLOOKUP($E67,'Activity 9'!$B$7:$B$13,'Activity 9'!K$7:K$13,\"N/A\",0,1)","v":"N/A"},{"$f":"_xlfn.XLOOKUP($E67,'Activity 9'!$B$7:$B$13,'Activity 9'!L$7:L$13,\"N/A\",0,1)","v":"N/A"},{"$f":"_xlfn.XLOOKUP($E67,'Activity 9'!$B$7:$B$13,'Activity 9'!M$7:M$13,\"N/A\",0,1)","v":"N/A"},{"$f":"_xlfn.XLOOKUP($E67,'Activity 9'!$B$7:$B$13,'Activity 9'!N$7:N$13,\"N/A\",0,1)","v":"N/A"},{"$f":"_xlfn.XLOOKUP($E67,'Activity 9'!$B$7:$B$13,'Activity 9'!O$7:O$13,\"N/A\",0,1)","v":"N/A"},{"$f":"_xlfn.XLOOKUP($E67,'Activity 9'!$B$7:$B$13,'Activity 9'!P$7:P$13,\"N/A\",0,1)","v":"N/A"},{"$f":"_xlfn.XLOOKUP($E67,'Activity 9'!$B$7:$B$13,'Activity 9'!Q$7:Q$13,\"N/A\",0,1)","v":"N/A"},{"$f":"_xlfn.XLOOKUP($E67,'Activity 9'!$B$7:$B$13,'Activity 9'!R$7:R$13,\"N/A\",0,1)","v":"N/A"},{"$f":"_xlfn.XLOOKUP($E67,'Activity 9'!$B$7:$B$13,'Activity 9'!S$7:S$13,\"N/A\",0,1)","v":"N/A"},{"$f":"_xlfn.XLOOKUP($E67,'Activity 9'!$B$7:$B$13,'Activity 9'!T$7:T$13,\"N/A\",0,1)","v":"N/A"},{"$f":"_xlfn.XLOOKUP($E67,'Activity 9'!$B$17:$B$23,'Activity 9'!E$17:E$23,\"N/A\",0,1)","v":"N/A"},{"$f":"_xlfn.XLOOKUP($E67,'Activity 9'!$B$17:$B$23,'Activity 9'!F$17:F$23,\"N/A\",0,1)","v":"N/A"},{"$f":"_xlfn.XLOOKUP($E67,'Activity 9'!$B$17:$B$23,'Activity 9'!G$17:G$23,\"N/A\",0,1)","v":"N/A"},{"$f":"_xlfn.XLOOKUP($E67,'Activity 9'!$B$17:$B$23,'Activity 9'!H$17:H$23,\"N/A\",0,1)","v":"N/A"},{"$f":"_xlfn.XLOOKUP($E67,'Activity 9'!$B$17:$B$23,'Activity 9'!I$17:I$23,\"N/A\",0,1)","v":"N/A"},{"$f":"_xlfn.XLOOKUP($E67,'Activity 9'!$B$17:$B$23,'Activity 9'!J$17:J$23,\"N/A\",0,1)","v":"N/A"},{"$f":"_xlfn.XLOOKUP($E67,'Activity 9'!$B$17:$B$23,'Activity 9'!K$17:K$23,\"N/A\",0,1)","v":"N/A"},{"$f":"_xlfn.XLOOKUP($E67,'Activity 9'!$B$17:$B$23,'Activity 9'!L$17:L$23,\"N/A\",0,1)","v":"N/A"},{"$f":"_xlfn.XLOOKUP($E67,'Activity 9'!$B$17:$B$23,'Activity 9'!N$17:N$23,\"N/A\",0,1)","v":"N/A"},{"$f":"_xlfn.XLOOKUP($E67,'Activity 9'!$B$17:$B$23,'Activity 9'!O$17:O$23,\"N/A\",0,1)","v":"N/A"},{"$f":"_xlfn.XLOOKUP($E67,'Activity 9'!$B$17:$B$23,'Activity 9'!Q$17:Q$23,\"N/A\",0,1)","v":"N/A"},{"$f":"_xlfn.XLOOKUP($E67,'Activity 10'!$B$7:$B$13,'Activity 10'!A$7:A$13,\"No\",0,1)","v":"No"},{"$f":"_xlfn.XLOOKUP($E67,'Activity 10'!$B$7:$B$13,'Activity 10'!J$7:J$13,\"N/A\",0,1)","v":"N/A"},{"$f":"_xlfn.XLOOKUP($E67,'Activity 10'!$B$7:$B$13,'Activity 10'!K$7:K$13,\"N/A\",0,1)","v":"N/A"},{"$f":"_xlfn.XLOOKUP($E67,'Activity 10'!$B$7:$B$13,'Activity 10'!L$7:L$13,\"N/A\",0,1)","v":"N/A"},{"$f":"_xlfn.XLOOKUP($E67,'Activity 10'!$B$7:$B$13,'Activity 10'!M$7:M$13,\"N/A\",0,1)","v":"N/A"},{"$f":"_xlfn.XLOOKUP($E67,'Activity 10'!$B$7:$B$13,'Activity 10'!N$7:N$13,\"N/A\",0,1)","v":"N/A"},{"$f":"_xlfn.XLOOKUP($E67,'Activity 10'!$B$7:$B$13,'Activity 10'!O$7:O$13,\"N/A\",0,1)","v":"N/A"},{"$f":"_xlfn.XLOOKUP($E67,'Activity 10'!$B$7:$B$13,'Activity 10'!P$7:P$13,\"N/A\",0,1)","v":"N/A"},{"$f":"_xlfn.XLOOKUP($E67,'Activity 10'!$B$7:$B$13,'Activity 10'!Q$7:Q$13,\"N/A\",0,1)","v":"N/A"},{"$f":"_xlfn.XLOOKUP($E67,'Activity 10'!$B$7:$B$13,'Activity 10'!R$7:R$13,\"N/A\",0,1)","v":"N/A"},{"$f":"_xlfn.XLOOKUP($E67,'Activity 10'!$B$7:$B$13,'Activity 10'!S$7:S$13,\"N/A\",0,1)","v":"N/A"},{"$f":"_xlfn.XLOOKUP($E67,'Activity 10'!$B$7:$B$13,'Activity 10'!T$7:T$13,\"N/A\",0,1)","v":"N/A"},{"$f":"_xlfn.XLOOKUP($E67,'Activity 10'!$B$7:$B$13,'Activity 10'!U$7:U$13,\"N/A\",0,1)","v":"N/A"},{"$f":"_xlfn.XLOOKUP($E67,'Activity 10'!$B$7:$B$13,'Activity 10'!V$7:V$13,\"N/A\",0,1)","v":"N/A"},{"$f":"_xlfn.XLOOKUP($E67,'Activity 10'!$B$17:$B$23,'Activity 10'!E$17:E$23,\"N/A\",0,1)","v":"N/A"},{"$f":"_xlfn.XLOOKUP($E67,'Activity 10'!$B$17:$B$23,'Activity 10'!F$17:F$23,\"N/A\",0,1)","v":"N/A"},{"$f":"_xlfn.XLOOKUP($E67,'Activity 10'!$B$17:$B$23,'Activity 10'!G$17:G$23,\"N/A\",0,1)","v":"N/A"},{"$f":"_xlfn.XLOOKUP($E67,'Activity 10'!$B$17:$B$23,'Activity 10'!H$17:H$23,\"N/A\",0,1)","v":"N/A"},{"$f":"_xlfn.XLOOKUP($E67,'Activity 10'!$B$17:$B$23,'Activity 10'!I$17:I$23,\"N/A\",0,1)","v":"N/A"},{"$f":"_xlfn.XLOOKUP($E67,'Activity 10'!$B$17:$B$23,'Activity 10'!J$17:J$23,\"N/A\",0,1)","v":"N/A"},{"$f":"_xlfn.XLOOKUP($E67,'Activity 10'!$B$17:$B$23,'Activity 10'!K$17:K$23,\"N/A\",0,1)","v":"N/A"},{"$f":"_xlfn.XLOOKUP($E67,'Activity 10'!$B$17:$B$23,'Activity 10'!L$17:L$23,\"N/A\",0,1)","v":"N/A"},{"$f":"_xlfn.XLOOKUP($E67,'Activity 10'!$B$17:$B$23,'Activity 10'!M$17:M$23,\"N/A\",0,1)","v":"N/A"},{"$f":"_xlfn.XLOOKUP($E67,'Activity 10'!$B$17:$B$23,'Activity 10'!N$17:N$23,\"N/A\",0,1)","v":"N/A"},{"$f":"_xlfn.XLOOKUP($E67,'Activity 10'!$B$17:$B$23,'Activity 10'!P$17:P$23,\"N/A\",0,1)","v":"N/A"},{"$f":"_xlfn.XLOOKUP($E67,'Competitive Activity 1'!B$7:B$13,'Competitive Activity 1'!A$7:A$13,\"No\",0,1)","v":"No"},{"$f":"_xlfn.XLOOKUP($E67,'Competitive Activity 1'!$B$7:$B$13,'Competitive Activity 1'!H$7:H$13,\"N/A\",0,1)","v":"N/A"},{"$f":"_xlfn.XLOOKUP($E67,'Competitive Activity 1'!$B$7:$B$13,'Competitive Activity 1'!I$7:I$13,\"N/A\",0,1)","v":"N/A"},{"$f":"_xlfn.XLOOKUP($E67,'Competitive Activity 1'!$B$7:$B$13,'Competitive Activity 1'!J$7:J$13,\"N/A\",0,1)","v":"N/A"},{"$f":"_xlfn.XLOOKUP($E67,'Competitive Activity 1'!$B$7:$B$13,'Competitive Activity 1'!K$7:K$13,\"N/A\",0,1)","v":"N/A"},{"$f":"_xlfn.XLOOKUP($E67,'Competitive Activity 1'!$B$7:$B$13,'Competitive Activity 1'!L$7:L$13,\"N/A\",0,1)","v":"N/A"},{"$f":"_xlfn.XLOOKUP($E67,'Competitive Activity 1'!$B$7:$B$13,'Competitive Activity 1'!M$7:M$13,\"N/A\",0,1)","v":"N/A"},{"$f":"_xlfn.XLOOKUP($E67,'Competitive Activity 1'!$B$7:$B$13,'Competitive Activity 1'!N$7:N$13,\"N/A\",0,1)","v":"N/A"},{"$f":"_xlfn.XLOOKUP($E67,'Competitive Activity 1'!$B$7:$B$13,'Competitive Activity 1'!O$7:O$13,\"N/A\",0,1)","v":"N/A"},{"$f":"_xlfn.XLOOKUP($E67,'Competitive Activity 1'!$B$7:$B$13,'Competitive Activity 1'!P$7:P$13,\"N/A\",0,1)","v":"N/A"},{"$f":"_xlfn.XLOOKUP($E67,'Competitive Activity 1'!$B$7:$B$13,'Competitive Activity 1'!Q$7:Q$13,\"N/A\",0,1)","v":"N/A"},{"$f":"_xlfn.XLOOKUP($E67,'Competitive Activity 1'!$B$7:$B$13,'Competitive Activity 1'!R$7:R$13,\"N/A\",0,1)","v":"N/A"},{"$f":"_xlfn.XLOOKUP($E67,'Competitive Activity 1'!$B$7:$B$13,'Competitive Activity 1'!S$7:S$13,\"N/A\",0,1)","v":"N/A"},{"$f":"_xlfn.XLOOKUP($E67,'Competitive Activity 1'!$B$7:$B$13,'Competitive Activity 1'!T$7:T$13,\"N/A\",0,1)","v":"N/A"},{"$f":"_xlfn.XLOOKUP($E67,'Competitive Activity 1'!$B$7:$B$13,'Competitive Activity 1'!U$7:U$13,\"N/A\",0,1)","v":"N/A"},{"$f":"_xlfn.XLOOKUP($E67,'Competitive Activity 1'!$B$17:$B$23,'Competitive Activity 1'!C$17:C$23,\"N/A\",0,1)","v":"N/A"},{"$f":"_xlfn.XLOOKUP($E67,'Competitive Activity 1'!$B$17:$B$23,'Competitive Activity 1'!D$17:D$23,\"N/A\",0,1)","v":"N/A"},{"$f":"_xlfn.XLOOKUP($E67,'Competitive Activity 1'!$B$17:$B$23,'Competitive Activity 1'!E$17:E$23,\"N/A\",0,1)","v":"N/A"},{"$f":"_xlfn.XLOOKUP($E67,'Competitive Activity 1'!$B$17:$B$23,'Competitive Activity 1'!F$17:F$23,\"N/A\",0,1)","v":"N/A"},{"$f":"_xlfn.XLOOKUP($E67,'Competitive Activity 1'!$B$17:$B$23,'Competitive Activity 1'!G$17:G$23,\"N/A\",0,1)","v":"N/A"},{"$f":"_xlfn.XLOOKUP($E67,'Competitive Activity 1'!$B$17:$B$23,'Competitive Activity 1'!H$17:H$23,\"N/A\",0,1)","v":"N/A"},{"$f":"_xlfn.XLOOKUP($E67,'Competitive Activity 1'!$B$17:$B$23,'Competitive Activity 1'!I$17:I$23,\"N/A\",0,1)","v":"N/A"},{"$f":"_xlfn.XLOOKUP($E67,'Competitive Activity 1'!$B$17:$B$23,'Competitive Activity 1'!J$17:J$23,\"N/A\",0,1)","v":"N/A"},{"$f":"_xlfn.XLOOKUP($E67,'Competitive Activity 1'!$B$17:$B$23,'Competitive Activity 1'!K$17:K$23,\"N/A\",0,1)","v":"N/A"},{"$f":"_xlfn.XLOOKUP($E67,'Competitive Activity 1'!$B$17:$B$23,'Competitive Activity 1'!M$17:M$23,\"N/A\",0,1)","v":"N/A"},{"$f":"_xlfn.XLOOKUP($E67,'Competitive Activity 1'!$B$17:$B$23,'Competitive Activity 1'!N$17:N$23,\"N/A\",0,1)","v":"N/A"},{"$f":"_xlfn.XLOOKUP($E67,'Competitive Activity 1'!$B$17:$B$23,'Competitive Activity 1'!P$17:P$23,\"N/A\",0,1)","v":"N/A"},{"$f":"_xlfn.XLOOKUP($E67,'Competitive Activity 2'!$B$7:$B$13,'Competitive Activity 2'!A$7:A$13,\"No\",0)","v":"No"},{"$f":"_xlfn.XLOOKUP($E67,'Competitive Activity 2'!$B$7:$B$13,'Competitive Activity 2'!L$7:L$13,\"N/A\",0)","v":"N/A"},{"$f":"_xlfn.XLOOKUP($E67,'Competitive Activity 2'!$B$7:$B$13,'Competitive Activity 2'!M$7:M$13,\"N/A\",0)","v":"N/A"},{"$f":"_xlfn.XLOOKUP($E67,'Competitive Activity 2'!$B$7:$B$13,'Competitive Activity 2'!N$7:N$13,\"N/A\",0)","v":"N/A"},{"$f":"_xlfn.XLOOKUP($E67,'Competitive Activity 2'!$B$7:$B$13,'Competitive Activity 2'!O$7:O$13,\"N/A\",0)","v":"N/A"},{"$f":"_xlfn.XLOOKUP($E67,'Competitive Activity 2'!$B$7:$B$13,'Competitive Activity 2'!P$7:P$13,\"N/A\",0)","v":"N/A"},{"$f":"_xlfn.XLOOKUP($E67,'Competitive Activity 2'!$B$7:$B$13,'Competitive Activity 2'!Q$7:Q$13,\"N/A\",0)","v":"N/A"},{"$f":"_xlfn.XLOOKUP($E67,'Competitive Activity 2'!$B$7:$B$13,'Competitive Activity 2'!R$7:R$13,\"N/A\",0)","v":"N/A"},{"$f":"_xlfn.XLOOKUP($E67,'Competitive Activity 2'!$B$7:$B$13,'Competitive Activity 2'!S$7:S$13,\"N/A\",0)","v":"N/A"},{"$f":"_xlfn.XLOOKUP($E67,'Competitive Activity 2'!$B$7:$B$13,'Competitive Activity 2'!T$7:T$13,\"N/A\",0)","v":"N/A"},{"$f":"_xlfn.XLOOKUP($E67,'Competitive Activity 2'!$B$7:$B$13,'Competitive Activity 2'!U$7:U$13,\"N/A\",0)","v":"N/A"},{"$f":"_xlfn.XLOOKUP($E67,'Competitive Activity 2'!$B$17:$B$23,'Competitive Activity 2'!D$17:D$23,\"N/A\",0)","v":"N/A"},{"$f":"_xlfn.XLOOKUP($E67,'Competitive Activity 2'!$B$17:$B$23,'Competitive Activity 2'!E$17:E$23,\"N/A\",0)","v":"N/A"},{"$f":"_xlfn.XLOOKUP($E67,'Competitive Activity 2'!$B$17:$B$23,'Competitive Activity 2'!F$17:F$23,\"N/A\",0)","v":"N/A"},{"$f":"_xlfn.XLOOKUP($E67,'Competitive Activity 2'!$B$17:$B$23,'Competitive Activity 2'!G$17:G$23,\"N/A\",0)","v":"N/A"},{"$f":"_xlfn.XLOOKUP($E67,'Competitive Activity 2'!$B$17:$B$23,'Competitive Activity 2'!H$17:H$23,\"N/A\",0)","v":"N/A"},{"$f":"_xlfn.XLOOKUP($E67,'Competitive Activity 2'!$B$17:$B$23,'Competitive Activity 2'!I$17:I$23,\"N/A\",0)","v":"N/A"},{"$f":"_xlfn.XLOOKUP($E67,'Competitive Activity 2'!$B$17:$B$23,'Competitive Activity 2'!J$17:J$23,\"N/A\",0)","v":"N/A"},{"$f":"_xlfn.XLOOKUP($E67,'Competitive Activity 2'!$B$17:$B$23,'Competitive Activity 2'!K$17:K$23,\"N/A\",0)","v":"N/A"},{"$f":"_xlfn.XLOOKUP($E67,'Competitive Activity 2'!$B$17:$B$23,'Competitive Activity 2'!L$17:L$23,\"N/A\",0)","v":"N/A"},{"$f":"_xlfn.XLOOKUP($E67,'Competitive Activity 2'!$B$17:$B$23,'Competitive Activity 2'!M$17:M$23,\"N/A\",0)","v":"N/A"},{"$f":"_xlfn.XLOOKUP($E67,'Competitive Activity 2'!$B$17:$B$23,'Competitive Activity 2'!N$17:N$23,\"N/A\",0)","v":"N/A"},{"$f":"_xlfn.XLOOKUP($E67,'Competitive Activity 2'!$B$27:$B$33,'Competitive Activity 2'!D$27:D$33,\"N/A\",0)","v":"N/A"},{"$f":"_xlfn.XLOOKUP($E67,'Competitive Activity 2'!$B$27:$B$33,'Competitive Activity 2'!E$27:E$33,\"N/A\",0)","v":"N/A"},{"$f":"_xlfn.XLOOKUP($E67,'Competitive Activity 2'!$B$27:$B$33,'Competitive Activity 2'!F$27:F$33,\"N/A\",0)","v":"N/A"},{"$f":"_xlfn.XLOOKUP($E67,'Competitive Activity 2'!$B$27:$B$33,'Competitive Activity 2'!G$27:G$33,\"N/A\",0)","v":"N/A"},{"$f":"_xlfn.XLOOKUP($E67,'Competitive Activity 2'!$B$27:$B$33,'Competitive Activity 2'!H$27:H$33,\"N/A\",0)","v":"N/A"},{"$f":"_xlfn.XLOOKUP($E67,'Competitive Activity 2'!$B$27:$B$33,'Competitive Activity 2'!I$27:I$33,\"N/A\",0)","v":"N/A"},{"$f":"_xlfn.XLOOKUP($E67,'Competitive Activity 2'!$B$27:$B$33,'Competitive Activity 2'!J$27:J$33,\"N/A\",0)","v":"N/A"},{"$f":"_xlfn.XLOOKUP($E67,'Competitive Activity 2'!$B$27:$B$33,'Competitive Activity 2'!K$27:K$33,\"N/A\",0)","v":"N/A"},{"$f":"_xlfn.XLOOKUP($E67,'Competitive Activity 2'!$B$27:$B$33,'Competitive Activity 2'!M$27:M$33,\"N/A\",0)","v":"N/A"}]
[{"$f":"'1-Cover Sheet'!$C$8","v":"Select One"},{"$f":"'1-Cover Sheet'!$F$8","v":"Select One"},{"$f":"'Summary Sheet'!$D$8","v":0},{"$f":"'Summary Sheet'!$D$10","v":0},{"$f":"'Drop Down Box'!B232","v":0},{"$f":"'Drop Down Box'!C232","v":0},{"$f":"'Drop Down Box'!D232","v":"Select One"},{"$f":"_xlfn.XLOOKUP(E68,'Drop Down Box'!$B$166:$B$249,'Drop Down Box'!$A$166:$A$249,\"Unknown\",0)","v":"Activity 1"},{"$f":"_xlfn.XLOOKUP($E68,'Activity 10'!$B$17:$B$23,'Activity 10'!$O$17:$O$23,\"N/A\",0)","v":"N/A"},{"$f":"_xlfn.XLOOKUP($E68,'Activity 10'!$B$17:$B$23,'Activity 10'!$Q$17:$Q$23,\"N/A\",0)","v":"N/A"},{"$f":"_xlfn.XLOOKUP($E68,'Activity 10'!$B$7:$B$13,'Activity 10'!G$7:G$13,\"N/A\",0)","v":"N/A"},{"$f":"_xlfn.XLOOKUP($E68,'Activity 10'!$B$7:$B$13,'Activity 10'!H$7:H$13,\"N/A\",0)","v":"N/A"},{"$f":"_xlfn.XLOOKUP($E68,'Activity 10'!$B$7:$B$13,'Activity 10'!I$7:I$13,\"N/A\",0)","v":"N/A"},{"$f":"_xlfn.XLOOKUP($E68,'Activity 1'!$B$7:$B$13,'Activity 1'!$A$7:$A$13,\"No\",0,1)","v":"No"},{"$f":"_xlfn.XLOOKUP($E68,'Activity 1'!$B$7:$B$13,'Activity 1'!$H$7:$H$13,\"N/A\",0,1)","v":"N/A"},{"$f":"_xlfn.XLOOKUP($E68,'Activity 1'!$B$7:$B$13,'Activity 1'!I$7:I$13,\"N/A\",0,1)","v":"N/A"},{"$f":"_xlfn.XLOOKUP($E68,'Activity 1'!$B$7:$B$13,'Activity 1'!J$7:J$13,\"N/A\",0,1)","v":"N/A"},{"$f":"_xlfn.XLOOKUP($E68,'Activity 1'!$B$7:$B$13,'Activity 1'!K$7:K$13,\"N/A\",0,1)","v":"N/A"},{"$f":"_xlfn.XLOOKUP($E68,'Activity 1'!$B$7:$B$13,'Activity 1'!L$7:L$13,\"N/A\",0,1)","v":"N/A"},{"$f":"_xlfn.XLOOKUP($E68,'Activity 1'!$B$7:$B$13,'Activity 1'!M$7:M$13,\"N/A\",0,1)","v":"N/A"},{"$f":"_xlfn.XLOOKUP($E68,'Activity 1'!$B$7:$B$13,'Activity 1'!N$7:N$13,\"N/A\",0,1)","v":"N/A"},0,{"$f":"_xlfn.XLOOKUP($E68,'Activity 1'!$B$7:$B$13,'Activity 1'!O$7:O$13,\"N/A\",0,1)","v":"N/A"},{"$f":"_xlfn.XLOOKUP($E68,'Activity 1'!$B$7:$B$13,'Activity 1'!P$7:P$13,\"N/A\",0,1)","v":"N/A"},{"$f":"_xlfn.XLOOKUP($E68,'Activity 1'!$B$7:$B$13,'Activity 1'!Q$7:Q$13,\"N/A\",0,1)","v":"N/A"},{"$f":"_xlfn.XLOOKUP($E68,'Activity 1'!$B$7:$B$13,'Activity 1'!R$7:R$13,\"N/A\",0,1)","v":"N/A"},{"$f":"_xlfn.XLOOKUP($E68,'Activity 1'!$B$7:$B$13,'Activity 1'!S$7:S$13,\"N/A\",0,1)","v":"N/A"},{"$f":"_xlfn.XLOOKUP($E68,'Activity 1'!$B$7:$B$13,'Activity 1'!T$7:T$13,\"N/A\",0,1)","v":"N/A"},{"$f":"_xlfn.XLOOKUP($E68,'Activity 1'!$B$7:$B$13,'Activity 1'!U$7:U$13,\"N/A\",0,1)","v":"N/A"},{"$f":"_xlfn.XLOOKUP($E68,'Activity 1'!$B$7:$B$13,'Activity 1'!V$7:V$13,\"N/A\",0,1)","v":"N/A"},{"$f":"_xlfn.XLOOKUP($E68,'Activity 1'!$B$17:$B$23,'Activity 1'!C$17:C$23,\"N/A\",0,1)","v":"N/A"},{"$f":"_xlfn.XLOOKUP($E68,'Activity 1'!$B$17:$B$23,'Activity 1'!D$17:D$23,\"N/A\",0,1)","v":"N/A"},{"$f":"_xlfn.XLOOKUP($E68,'Activity 1'!$B$17:$B$23,'Activity 1'!E$17:E$23,\"N/A\",0,1)","v":"N/A"},{"$f":"_xlfn.XLOOKUP($E68,'Activity 1'!$B$17:$B$23,'Activity 1'!F$17:F$23,\"N/A\",0,1)","v":"N/A"},{"$f":"_xlfn.XLOOKUP($E68,'Activity 1'!$B$17:$B$23,'Activity 1'!G$17:G$23,\"N/A\",0,1)","v":"N/A"},{"$f":"_xlfn.XLOOKUP($E68,'Activity 1'!$B$17:$B$23,'Activity 1'!H$17:H$23,\"N/A\",0,1)","v":"N/A"},{"$f":"_xlfn.XLOOKUP($E68,'Activity 1'!$B$17:$B$23,'Activity 1'!I$17:I$23,\"N/A\",0,1)","v":"N/A"},{"$f":"_xlfn.XLOOKUP($E68,'Activity 1'!$B$17:$B$23,'Activity 1'!J$17:J$23,\"N/A\",0,1)","v":"N/A"},{"$f":"_xlfn.XLOOKUP($E68,'Activity 1'!$B$17:$B$23,'Activity 1'!K$17:K$23,\"N/A\",0,1)","v":"N/A"},{"$f":"_xlfn.XLOOKUP($E68,'Activity 1'!$B$17:$B$23,'Activity 1'!L$17:L$23,\"N/A\",0,1)","v":"N/A"},{"$f":"_xlfn.XLOOKUP($E68,'Activity 1'!$B$17:$B$23,'Activity 1'!M$17:M$23,\"N/A\",0,1)","v":"N/A"},{"$f":"_xlfn.XLOOKUP($E68,'Activity 1'!$B$17:$B$23,'Activity 1'!O$17:O$23,\"N/A\",0,1)","v":"N/A"},{"$f":"_xlfn.XLOOKUP($E68,'Activity 1'!$B$17:$B$23,'Activity 1'!Q$17:Q$23,\"N/A\",0,1)","v":"N/A"},{"$f":"_xlfn.XLOOKUP($E68,'Activity 2'!$B$7:$B$13,'Activity 2'!$A$7:$A$13,\"No\",0,1)","v":"No"},{"$f":"_xlfn.XLOOKUP($E68,'Activity 2'!B$7:B$13,'Activity 2'!H$7:H$13,\"N/A\",0)","v":"N/A"},{"$f":"_xlfn.XLOOKUP($E68,'Activity 2'!C$7:C$13,'Activity 2'!I$7:I$13,\"N/A\",0)","v":"N/A"},{"$f":"_xlfn.XLOOKUP($E68,'Activity 2'!D$7:D$13,'Activity 2'!J$7:J$13,\"N/A\",0)","v":"N/A"},{"$f":"_xlfn.XLOOKUP($E68,'Activity 2'!E$7:E$13,'Activity 2'!K$7:K$13,\"N/A\",0)","v":"N/A"},{"$f":"_xlfn.XLOOKUP($E68,'Activity 2'!F$7:F$13,'Activity 2'!L$7:L$13,\"N/A\",0)","v":"N/A"},{"$f":"_xlfn.XLOOKUP($E68,'Activity 2'!G$7:G$13,'Activity 2'!M$7:M$13,\"N/A\",0)","v":"N/A"},{"$f":"_xlfn.XLOOKUP($E68,'Activity 2'!H$7:H$13,'Activity 2'!N$7:N$13,\"N/A\",0)","v":"N/A"},{"$f":"_xlfn.XLOOKUP($E68,'Activity 2'!I$7:I$13,'Activity 2'!O$7:O$13,\"N/A\",0)","v":"N/A"},{"$f":"_xlfn.XLOOKUP($E68,'Activity 2'!J$7:J$13,'Activity 2'!P$7:P$13,\"N/A\",0)","v":"N/A"},{"$f":"_xlfn.XLOOKUP($E68,'Activity 2'!K$7:K$13,'Activity 2'!Q$7:Q$13,\"N/A\",0)","v":"N/A"},{"$f":"_xlfn.XLOOKUP($E68,'Activity 2'!L$7:L$13,'Activity 2'!R$7:R$13,\"N/A\",0)","v":"N/A"},{"$f":"_xlfn.XLOOKUP($E68,'Activity 2'!M$7:M$13,'Activity 2'!S$7:S$13,\"N/A\",0)","v":"N/A"},{"$f":"_xlfn.XLOOKUP($E68,'Activity 2'!N$7:N$13,'Activity 2'!T$7:T$13,\"N/A\",0)","v":"N/A"},{"$f":"_xlfn.XLOOKUP($E68,'Activity 2'!O$7:O$13,'Activity 2'!U$7:U$13,\"N/A\",0)","v":"N/A"},{"$f":"_xlfn.XLOOKUP($E68,'Activity 2'!P$7:P$13,'Activity 2'!V$7:V$13,\"N/A\",0)","v":"N/A"},{"$f":"_xlfn.XLOOKUP($E68,'Activity 2'!$B$17:$B$23,'Activity 2'!C$17:C$23,\"N/A\",0,1)","v":"N/A"},{"$f":"_xlfn.XLOOKUP($E68,'Activity 2'!$B$17:$B$23,'Activity 2'!D$17:D$23,\"N/A\",0,1)","v":"N/A"},{"$f":"_xlfn.XLOOKUP($E68,'Activity 2'!$B$17:$B$23,'Activity 2'!E$17:E$23,\"N/A\",0,1)","v":"N/A"},{"$f":"_xlfn.XLOOKUP($E68,'Activity 2'!$B$17:$B$23,'Activity 2'!F$17:F$23,\"N/A\",0,1)","v":"N/A"},{"$f":"_xlfn.XLOOKUP($E68,'Activity 2'!$B$17:$B$23,'Activity 2'!G$17:G$23,\"N/A\",0,1)","v":"N/A"},{"$f":"_xlfn.XLOOKUP($E68,'Activity 2'!$B$17:$B$23,'Activity 2'!H$17:H$23,\"N/A\",0,1)","v":"N/A"},{"$f":"_xlfn.XLOOKUP($E68,'Activity 2'!$B$17:$B$23,'Activity 2'!I$17:I$23,\"N/A\",0,1)","v":"N/A"},{"$f":"_xlfn.XLOOKUP($E68,'Activity 2'!$B$17:$B$23,'Activity 2'!J$17:J$23,\"N/A\",0,1)","v":"N/A"},{"$f":"_xlfn.XLOOKUP($E68,'Activity 2'!$B$17:$B$23,'Activity 2'!K$17:K$23,\"N/A\",0,1)","v":"N/A"},{"$f":"_xlfn.XLOOKUP($E68,'Activity 2'!$B$17:$B$23,'Activity 2'!L$17:L$23,\"N/A\",0,1)","v":"N/A"},{"$f":"_xlfn.XLOOKUP($E68,'Activity 2'!$B$17:$B$23,'Activity 2'!M$17:M$23,\"N/A\",0,1)","v":"N/A"},{"$f":"_xlfn.XLOOKUP($E68,'Activity 2'!$B$17:$B$23,'Activity 2'!O$17:O$23,\"N/A\",0,1)","v":"N/A"},{"$f":"_xlfn.XLOOKUP($E68,'Activity 2'!$B$17:$B$23,'Activity 2'!Q$17:Q$23,\"N/A\",0,1)","v":"N/A"},null,{"$f":"_xlfn.XLOOKUP($E68,'Activity 3'!$B$8:$B$14,'Activity 3'!K$8:K$14,\"N/A\",0,1)","v":"N/A"},{"$f":"_xlfn.XLOOKUP($E68,'Activity 3'!$B$8:$B$14,'Activity 3'!L$8:L$14,\"N/A\",0,1)","v":"N/A"},{"$f":"_xlfn.XLOOKUP($E68,'Activity 3'!$B$8:$B$14,'Activity 3'!M$8:M$14,\"N/A\",0,1)","v":"N/A"},{"$f":"_xlfn.XLOOKUP($E68,'Activity 3'!$B$8:$B$14,'Activity 3'!N$8:N$14,\"N/A\",0,1)","v":"N/A"},{"$f":"_xlfn.XLOOKUP($E68,'Activity 3'!$B$8:$B$14,'Activity 3'!O$8:O$14,\"N/A\",0,1)","v":"N/A"},{"$f":"_xlfn.XLOOKUP($E68,'Activity 3'!$B$8:$B$14,'Activity 3'!R$8:R$14,\"N/A\",0,1)","v":"N/A"},{"$f":"_xlfn.XLOOKUP($E68,'Activity 4'!$B$8:$B$14,'Activity 4'!$A$8:$A$14,\"No\",0,1)","v":"No"},{"$f":"_xlfn.XLOOKUP($E68,'Activity 4'!$B$8:$B$14,'Activity 4'!L$8:L$14,\"N/A\",0,1)","v":"N/A"},{"$f":"_xlfn.XLOOKUP($E68,'Activity 4'!$B$8:$B$14,'Activity 4'!I$8:I$14,\"N/A\",0,1)","v":"N/A"},{"$f":"_xlfn.XLOOKUP($E68,'Activity 4'!$B$8:$B$14,'Activity 4'!M$8:M$14,\"N/A\",0,1)","v":"N/A"},{"$f":"_xlfn.XLOOKUP($E68,'Activity 5'!$B$8:$B$14,'Activity 5'!$A$8:$A$14,\"No\",0,1)","v":"No"},{"$f":"_xlfn.XLOOKUP($E68,'Activity 5'!$B$8:$B$14,'Activity 5'!J$8:J$14,\"N/A\",0,1)","v":"N/A"},{"$f":"_xlfn.XLOOKUP($E68,'Activity 5'!$B$8:$B$14,'Activity 5'!K$8:K$14,\"N/A\",0,1)","v":"N/A"},{"$f":"_xlfn.XLOOKUP($E68,'Activity 5'!$B$8:$B$14,'Activity 5'!N$8:N$14,\"N/A\",0,1)","v":"N/A"},{"$f":"_xlfn.XLOOKUP($E68,'Activity 5'!$B$8:$B$14,'Activity 5'!O$8:O$14,\"N/A\",0,1)","v":"N/A"},{"$f":"_xlfn.XLOOKUP($E68,'Activity 5'!$B$8:$B$14,'Activity 5'!P$8:P$14,\"N/A\",0,1)","v":"N/A"},{"$f":"_xlfn.XLOOKUP($E68,'Activity 5'!$B$8:$B$14,'Activity 5'!Q$8:Q$14,\"N/A\",0,1)","v":"N/A"},{"$f":"_xlfn.XLOOKUP($E68,'Activity 5'!$B$8:$B$14,'Activity 5'!R$8:R$14,\"N/A\",0,1)","v":"N/A"},{"$f":"_xlfn.XLOOKUP($E68,'Activity 6'!$B$7:$B$13,'Activity 6'!A$7:A$13,\"No\",0,1)","v":"No"},{"$f":"_xlfn.XLOOKUP($E68,'Activity 6'!$B$7:$B$13,'Activity 6'!K$7:K$13,\"N/A\",0,1)","v":"N/A"},{"$f":"_xlfn.XLOOKUP($E68,'Activity 6'!$B$7:$B$13,'Activity 6'!L$7:L$13,\"N/A\",0,1)","v":"N/A"},{"$f":"_xlfn.XLOOKUP($E68,'Activity 6'!$B$7:$B$13,'Activity 6'!M$7:M$13,\"N/A\",0,1)","v":"N/A"},{"$f":"_xlfn.XLOOKUP($E68,'Activity 6'!$B$7:$B$13,'Activity 6'!N$7:N$13,\"N/A\",0,1)","v":"N/A"},{"$f":"_xlfn.XLOOKUP($E68,'Activity 6'!$B$7:$B$13,'Activity 6'!O$7:O$13,\"N/A\",0,1)","v":"N/A"},{"$f":"_xlfn.XLOOKUP($E68,'Activity 6'!$B$7:$B$13,'Activity 6'!P$7:P$13,\"N/A\",0,1)","v":"N/A"},{"$f":"_xlfn.XLOOKUP($E68,'Activity 6'!$B$7:$B$13,'Activity 6'!Q$7:Q$13,\"N/A\",0,1)","v":"N/A"},{"$f":"_xlfn.XLOOKUP($E68,'Activity 6'!$B$7:$B$13,'Activity 6'!R$7:R$13,\"N/A\",0,1)","v":"N/A"},{"$f":"_xlfn.XLOOKUP($E68,'Activity 6'!$B$7:$B$13,'Activity 6'!S$7:S$13,\"N/A\",0,1)","v":"N/A"},{"$f":"_xlfn.XLOOKUP($E68,'Activity 6'!$B$7:$B$13,'Activity 6'!T$7:T$13,\"N/A\",0,1)","v":"N/A"},{"$f":"_xlfn.XLOOKUP($E68,'Activity 6'!$B$7:$B$13,'Activity 6'!U$7:U$13,\"N/A\",0,1)","v":"N/A"},{"$f":"_xlfn.XLOOKUP($E68,'Activity 6'!$B$22:$B$28,'Activity 6'!C$22:C$28,\"N/A\",0,1)","v":"N/A"},{"$f":"_xlfn.XLOOKUP($E68,'Activity 6'!$B$22:$B$28,'Activity 6'!D$22:D$28,\"N/A\",0,1)","v":"N/A"},{"$f":"_xlfn.XLOOKUP($E68,'Activity 6'!$B$22:$B$28,'Activity 6'!E$22:E$28,\"N/A\",0,1)","v":"N/A"},{"$f":"_xlfn.XLOOKUP($E68,'Activity 6'!$B$22:$B$28,'Activity 6'!F$22:F$28,\"N/A\",0,1)","v":"N/A"},{"$f":"_xlfn.XLOOKUP($E68,'Activity 6'!$B$22:$B$28,'Activity 6'!G$22:G$28,\"N/A\",0,1)","v":"N/A"},{"$f":"_xlfn.XLOOKUP($E68,'Activity 6'!$B$22:$B$28,'Activity 6'!H$22:H$28,\"N/A\",0,1)","v":"N/A"},{"$f":"_xlfn.XLOOKUP($E68,'Activity 6'!$B$22:$B$28,'Activity 6'!I$22:I$28,\"N/A\",0,1)","v":"N/A"},{"$f":"_xlfn.XLOOKUP($E68,'Activity 6'!$B$22:$B$28,'Activity 6'!J$22:J$28,\"N/A\",0,1)","v":"N/A"},{"$f":"_xlfn.XLOOKUP($E68,'Activity 6'!$B$22:$B$28,'Activity 6'!K$22:K$28,\"N/A\",0,1)","v":"N/A"},{"$f":"_xlfn.XLOOKUP($E68,'Activity 6'!$B$22:$B$28,'Activity 6'!L$22:L$28,\"N/A\",0,1)","v":"N/A"},{"$f":"_xlfn.XLOOKUP($E68,'Activity 6'!$B$22:$B$28,'Activity 6'!M$22:M$28,\"N/A\",0,1)","v":"N/A"},{"$f":"_xlfn.XLOOKUP($E68,'Activity 6'!$B$22:$B$28,'Activity 6'!N$22:N$28,\"N/A\",0,1)","v":"N/A"},{"$f":"_xlfn.XLOOKUP($E68,'Activity 6'!$B$32:$B$38,'Activity 6'!C$32:C$38,\"N/A\",0,1)","v":"N/A"},{"$f":"_xlfn.XLOOKUP($E68,'Activity 6'!$B$32:$B$38,'Activity 6'!D$32:D$38,\"N/A\",0,1)","v":"N/A"},{"$f":"_xlfn.XLOOKUP($E68,'Activity 6'!$B$32:$B$38,'Activity 6'!E$32:E$38,\"N/A\",0,1)","v":"N/A"},{"$f":"_xlfn.XLOOKUP($E68,'Activity 6'!$B$32:$B$38,'Activity 6'!F$32:F$38,\"N/A\",0,1)","v":"N/A"},{"$f":"_xlfn.XLOOKUP($E68,'Activity 6'!$B$32:$B$38,'Activity 6'!G$32:G$38,\"N/A\",0,1)","v":"N/A"},{"$f":"_xlfn.XLOOKUP($E68,'Activity 6'!$B$32:$B$38,'Activity 6'!H$32:H$38,\"N/A\",0,1)","v":"N/A"},{"$f":"_xlfn.XLOOKUP($E68,'Activity 6'!$B$32:$B$38,'Activity 6'!I$32:I$38,\"N/A\",0,1)","v":"N/A"},{"$f":"_xlfn.XLOOKUP($E68,'Activity 6'!$B$32:$B$38,'Activity 6'!J$32:J$38,\"N/A\",0,1)","v":"N/A"},{"$f":"_xlfn.XLOOKUP($E68,'Activity 6'!$B$32:$B$38,'Activity 6'!K$32:K$38,\"N/A\",0,1)","v":"N/A"},{"$f":"_xlfn.XLOOKUP($E68,'Activity 6'!$B$32:$B$38,'Activity 6'!M$32:M$38,\"N/A\",0,1)","v":"N/A"},{"$f":"_xlfn.XLOOKUP($E68,'Activity 7'!$B$7:$B$13,'Activity 7'!$A$7:$A$13,\"No\",0,1)","v":"No"},{"$f":"_xlfn.XLOOKUP($E68,'Activity 7'!$B$7:$B$13,'Activity 7'!M$7:M$13,\"N/A\",0,1)","v":"N/A"},{"$f":"_xlfn.XLOOKUP($E68,'Activity 7'!$B$7:$B$13,'Activity 7'!K$7:K$13,\"N/A\",0,1)","v":"N/A"},{"$f":"_xlfn.XLOOKUP($E68,'Activity 7'!$B$7:$B$13,'Activity 7'!N$7:N$13,\"N/A\",0,1)","v":"N/A"},{"$f":"_xlfn.XLOOKUP($E68,'Activity 7'!$B$7:$B$13,'Activity 7'!O$7:O$13,\"N/A\",0,1)","v":"N/A"},{"$f":"_xlfn.XLOOKUP($E68,'Activity 7'!$B$7:$B$13,'Activity 7'!P$7:P$13,\"N/A\",0,1)","v":"N/A"},{"$f":"_xlfn.XLOOKUP($E68,'Activity 7'!$B$7:$B$13,'Activity 7'!Q$7:Q$13,\"N/A\",0,1)","v":"N/A"},{"$f":"_xlfn.XLOOKUP($E68,'Activity 7'!$B$7:$B$13,'Activity 7'!R$7:R$13,\"N/A\",0,1)","v":"N/A"},{"$f":"_xlfn.XLOOKUP($E68,'Activity 7'!$B$7:$B$13,'Activity 7'!S$7:S$13,\"N/A\",0,1)","v":"N/A"},{"$f":"_xlfn.XLOOKUP($E68,'Activity 7'!$B$7:$B$13,'Activity 7'!T$7:T$13,\"N/A\",0,1)","v":"N/A"},{"$f":"_xlfn.XLOOKUP($E68,'Activity 7'!$B$7:$B$13,'Activity 7'!U$7:U$13,\"N/A\",0,1)","v":"N/A"},{"$f":"_xlfn.XLOOKUP($E68,'Activity 7'!$B$7:$B$13,'Activity 7'!V$7:V$13,\"N/A\",0,1)","v":"N/A"},{"$f":"_xlfn.XLOOKUP($E68,'Activity 7'!$B$17:$B$23,'Activity 7'!E$17:E$23,\"N/A\",0,1)","v":"N/A"},{"$f":"_xlfn.XLOOKUP($E68,'Activity 7'!$B$17:$B$23,'Activity 7'!G$17:G$23,\"N/A\",0,1)","v":"N/A"},{"$f":"_xlfn.XLOOKUP($E68,'Activity 7'!$B$17:$B$23,'Activity 7'!I$17:I$23,\"N/A\",0,1)","v":"N/A"},{"$f":"_xlfn.XLOOKUP($E68,'Activity 7'!$B$17:$B$23,'Activity 7'!J$17:J$23,\"N/A\",0,1)","v":"N/A"},{"$f":"_xlfn.XLOOKUP($E68,'Activity 7'!$B$17:$B$23,'Activity 7'!K$17:K$23,\"N/A\",0,1)","v":"N/A"},{"$f":"_xlfn.XLOOKUP($E68,'Activity 7'!$B$17:$B$23,'Activity 7'!L$17:L$23,\"N/A\",0,1)","v":"N/A"},{"$f":"_xlfn.XLOOKUP($E68,'Activity 7'!$B$17:$B$23,'Activity 7'!M$17:M$23,\"N/A\",0,1)","v":"N/A"},{"$f":"_xlfn.XLOOKUP($E68,'Activity 7'!$B$17:$B$23,'Activity 7'!N$17:N$23,\"N/A\",0,1)","v":"N/A"},{"$f":"_xlfn.XLOOKUP($E68,'Activity 7'!$B$17:$B$23,'Activity 7'!P$17:P$23,\"N/A\",0,1)","v":"N/A"},{"$f":"_xlfn.XLOOKUP($E68,'Activity 8'!$B$7:$B$13,'Activity 8'!A$7:A$13,\"No\",0,1)","v":"No"},{"$f":"_xlfn.XLOOKUP($E68,'Activity 8'!$B$7:$B$13,'Activity 8'!I$7:I$13,\"N/A\",0,1)","v":"N/A"},{"$f":"_xlfn.XLOOKUP($E68,'Activity 8'!$B$7:$B$13,'Activity 8'!J$7:J$13,\"N/A\",0,1)","v":"N/A"},{"$f":"_xlfn.XLOOKUP($E68,'Activity 8'!$B$7:$B$13,'Activity 8'!K$7:K$13,\"N/A\",0,1)","v":"N/A"},{"$f":"_xlfn.XLOOKUP($E68,'Activity 8'!$B$7:$B$13,'Activity 8'!L$7:L$13,\"N/A\",0,1)","v":"N/A"},{"$f":"_xlfn.XLOOKUP($E68,'Activity 8'!$B$7:$B$13,'Activity 8'!M$7:M$13,\"N/A\",0,1)","v":"N/A"},{"$f":"_xlfn.XLOOKUP($E68,'Activity 8'!$B$7:$B$13,'Activity 8'!N$7:N$13,\"N/A\",0,1)","v":"N/A"},{"$f":"_xlfn.XLOOKUP($E68,'Activity 8'!$B$7:$B$13,'Activity 8'!O$7:O$13,\"N/A\",0,1)","v":"N/A"},{"$f":"_xlfn.XLOOKUP($E68,'Activity 8'!$B$7:$B$13,'Activity 8'!P$7:P$13,\"N/A\",0,1)","v":"N/A"},{"$f":"_xlfn.XLOOKUP($E68,'Activity 8'!$B$7:$B$13,'Activity 8'!Q$7:Q$13,\"N/A\",0,1)","v":"N/A"},{"$f":"_xlfn.XLOOKUP($E68,'Activity 8'!$B$7:$B$13,'Activity 8'!R$7:R$13,\"N/A\",0,1)","v":"N/A"},{"$f":"_xlfn.XLOOKUP($E68,'Activity 8'!$B$7:$B$13,'Activity 8'!S$7:S$13,\"N/A\",0,1)","v":"N/A"},{"$f":"_xlfn.XLOOKUP($E68,'Activity 8'!$B$7:$B$13,'Activity 8'!T$7:T$13,\"N/A\",0,1)","v":"N/A"},{"$f":"_xlfn.XLOOKUP($E68,'Activity 8'!$B$7:$B$13,'Activity 8'!U$7:U$13,\"N/A\",0,1)","v":"N/A"},{"$f":"_xlfn.XLOOKUP($E68,'Activity 8'!$B$7:$B$13,'Activity 8'!V$7:V$13,\"N/A\",0,1)","v":"N/A"},{"$f":"_xlfn.XLOOKUP($E68,'Activity 8'!$B$17:$B$23,'Activity 8'!D$17:D$23,\"N/A\",0,1)","v":"N/A"},{"$f":"_xlfn.XLOOKUP($E68,'Activity 8'!$B$17:$B$23,'Activity 8'!E$17:E$23,\"N/A\",0,1)","v":"N/A"},{"$f":"_xlfn.XLOOKUP($E68,'Activity 8'!$B$17:$B$23,'Activity 8'!F$17:F$23,\"N/A\",0,1)","v":"N/A"},{"$f":"_xlfn.XLOOKUP($E68,'Activity 8'!$B$17:$B$23,'Activity 8'!G$17:G$23,\"N/A\",0,1)","v":"N/A"},{"$f":"_xlfn.XLOOKUP($E68,'Activity 8'!$B$17:$B$23,'Activity 8'!H$17:H$23,\"N/A\",0,1)","v":"N/A"},{"$f":"_xlfn.XLOOKUP($E68,'Activity 8'!$B$17:$B$23,'Activity 8'!I$17:I$23,\"N/A\",0,1)","v":"N/A"},{"$f":"_xlfn.XLOOKUP($E68,'Activity 8'!$B$17:$B$23,'Activity 8'!J$17:J$23,\"N/A\",0,1)","v":"N/A"},{"$f":"_xlfn.XLOOKUP($E68,'Activity 8'!$B$17:$B$23,'Activity 8'!K$17:K$23,\"N/A\",0,1)","v":"N/A"},{"$f":"_xlfn.XLOOKUP($E68,'Activity 8'!$B$17:$B$23,'Activity 8'!L$17:L$23,\"N/A\",0,1)","v":"N/A"},{"$f":"_xlfn.XLOOKUP($E68,'Activity 8'!$B$17:$B$23,'Activity 8'!M$17:M$23,\"N/A\",0,1)","v":"N/A"},{"$f":"_xlfn.XLOOKUP($E68,'Activity 8'!$B$17:$B$23,'Activity 8'!N$17:N$23,\"N/A\",0,1)","v":"N/A"},{"$f":"_xlfn.XLOOKUP($E68,'Activity 8'!$B$17:$B$23,'Activity 8'!P$17:P$23,\"N/A\",0,1)","v":"N/A"},{"$f":"_xlfn.XLOOKUP(E68,'Activity 9'!$B$7:$B$13,'Activity 9'!$A$7:$A$13,\"No\",0,1)","v":"No"},{"$f":"_xlfn.XLOOKUP($E68,'Activity 9'!$B$7:$B$13,'Activity 9'!J$7:J$13,\"N/A\",0,1)","v":"N/A"},{"$f":"_xlfn.XLOOKUP($E68,'Activity 9'!$B$7:$B$13,'Activity 9'!K$7:K$13,\"N/A\",0,1)","v":"N/A"},{"$f":"_xlfn.XLOOKUP($E68,'Activity 9'!$B$7:$B$13,'Activity 9'!L$7:L$13,\"N/A\",0,1)","v":"N/A"},{"$f":"_xlfn.XLOOKUP($E68,'Activity 9'!$B$7:$B$13,'Activity 9'!M$7:M$13,\"N/A\",0,1)","v":"N/A"},{"$f":"_xlfn.XLOOKUP($E68,'Activity 9'!$B$7:$B$13,'Activity 9'!N$7:N$13,\"N/A\",0,1)","v":"N/A"},{"$f":"_xlfn.XLOOKUP($E68,'Activity 9'!$B$7:$B$13,'Activity 9'!O$7:O$13,\"N/A\",0,1)","v":"N/A"},{"$f":"_xlfn.XLOOKUP($E68,'Activity 9'!$B$7:$B$13,'Activity 9'!P$7:P$13,\"N/A\",0,1)","v":"N/A"},{"$f":"_xlfn.XLOOKUP($E68,'Activity 9'!$B$7:$B$13,'Activity 9'!Q$7:Q$13,\"N/A\",0,1)","v":"N/A"},{"$f":"_xlfn.XLOOKUP($E68,'Activity 9'!$B$7:$B$13,'Activity 9'!R$7:R$13,\"N/A\",0,1)","v":"N/A"},{"$f":"_xlfn.XLOOKUP($E68,'Activity 9'!$B$7:$B$13,'Activity 9'!S$7:S$13,\"N/A\",0,1)","v":"N/A"},{"$f":"_xlfn.XLOOKUP($E68,'Activity 9'!$B$7:$B$13,'Activity 9'!T$7:T$13,\"N/A\",0,1)","v":"N/A"},{"$f":"_xlfn.XLOOKUP($E68,'Activity 9'!$B$17:$B$23,'Activity 9'!E$17:E$23,\"N/A\",0,1)","v":"N/A"},{"$f":"_xlfn.XLOOKUP($E68,'Activity 9'!$B$17:$B$23,'Activity 9'!F$17:F$23,\"N/A\",0,1)","v":"N/A"},{"$f":"_xlfn.XLOOKUP($E68,'Activity 9'!$B$17:$B$23,'Activity 9'!G$17:G$23,\"N/A\",0,1)","v":"N/A"},{"$f":"_xlfn.XLOOKUP($E68,'Activity 9'!$B$17:$B$23,'Activity 9'!H$17:H$23,\"N/A\",0,1)","v":"N/A"},{"$f":"_xlfn.XLOOKUP($E68,'Activity 9'!$B$17:$B$23,'Activity 9'!I$17:I$23,\"N/A\",0,1)","v":"N/A"},{"$f":"_xlfn.XLOOKUP($E68,'Activity 9'!$B$17:$B$23,'Activity 9'!J$17:J$23,\"N/A\",0,1)","v":"N/A"},{"$f":"_xlfn.XLOOKUP($E68,'Activity 9'!$B$17:$B$23,'Activity 9'!K$17:K$23,\"N/A\",0,1)","v":"N/A"},{"$f":"_xlfn.XLOOKUP($E68,'Activity 9'!$B$17:$B$23,'Activity 9'!L$17:L$23,\"N/A\",0,1)","v":"N/A"},{"$f":"_xlfn.XLOOKUP($E68,'Activity 9'!$B$17:$B$23,'Activity 9'!N$17:N$23,\"N/A\",0,1)","v":"N/A"},{"$f":"_xlfn.XLOOKUP($E68,'Activity 9'!$B$17:$B$23,'Activity 9'!O$17:O$23,\"N/A\",0,1)","v":"N/A"},{"$f":"_xlfn.XLOOKUP($E68,'Activity 9'!$B$17:$B$23,'Activity 9'!Q$17:Q$23,\"N/A\",0,1)","v":"N/A"},{"$f":"_xlfn.XLOOKUP($E68,'Activity 10'!$B$7:$B$13,'Activity 10'!A$7:A$13,\"No\",0,1)","v":"No"},{"$f":"_xlfn.XLOOKUP($E68,'Activity 10'!$B$7:$B$13,'Activity 10'!J$7:J$13,\"N/A\",0,1)","v":"N/A"},{"$f":"_xlfn.XLOOKUP($E68,'Activity 10'!$B$7:$B$13,'Activity 10'!K$7:K$13,\"N/A\",0,1)","v":"N/A"},{"$f":"_xlfn.XLOOKUP($E68,'Activity 10'!$B$7:$B$13,'Activity 10'!L$7:L$13,\"N/A\",0,1)","v":"N/A"},{"$f":"_xlfn.XLOOKUP($E68,'Activity 10'!$B$7:$B$13,'Activity 10'!M$7:M$13,\"N/A\",0,1)","v":"N/A"},{"$f":"_xlfn.XLOOKUP($E68,'Activity 10'!$B$7:$B$13,'Activity 10'!N$7:N$13,\"N/A\",0,1)","v":"N/A"},{"$f":"_xlfn.XLOOKUP($E68,'Activity 10'!$B$7:$B$13,'Activity 10'!O$7:O$13,\"N/A\",0,1)","v":"N/A"},{"$f":"_xlfn.XLOOKUP($E68,'Activity 10'!$B$7:$B$13,'Activity 10'!P$7:P$13,\"N/A\",0,1)","v":"N/A"},{"$f":"_xlfn.XLOOKUP($E68,'Activity 10'!$B$7:$B$13,'Activity 10'!Q$7:Q$13,\"N/A\",0,1)","v":"N/A"},{"$f":"_xlfn.XLOOKUP($E68,'Activity 10'!$B$7:$B$13,'Activity 10'!R$7:R$13,\"N/A\",0,1)","v":"N/A"},{"$f":"_xlfn.XLOOKUP($E68,'Activity 10'!$B$7:$B$13,'Activity 10'!S$7:S$13,\"N/A\",0,1)","v":"N/A"},{"$f":"_xlfn.XLOOKUP($E68,'Activity 10'!$B$7:$B$13,'Activity 10'!T$7:T$13,\"N/A\",0,1)","v":"N/A"},{"$f":"_xlfn.XLOOKUP($E68,'Activity 10'!$B$7:$B$13,'Activity 10'!U$7:U$13,\"N/A\",0,1)","v":"N/A"},{"$f":"_xlfn.XLOOKUP($E68,'Activity 10'!$B$7:$B$13,'Activity 10'!V$7:V$13,\"N/A\",0,1)","v":"N/A"},{"$f":"_xlfn.XLOOKUP($E68,'Activity 10'!$B$17:$B$23,'Activity 10'!E$17:E$23,\"N/A\",0,1)","v":"N/A"},{"$f":"_xlfn.XLOOKUP($E68,'Activity 10'!$B$17:$B$23,'Activity 10'!F$17:F$23,\"N/A\",0,1)","v":"N/A"},{"$f":"_xlfn.XLOOKUP($E68,'Activity 10'!$B$17:$B$23,'Activity 10'!G$17:G$23,\"N/A\",0,1)","v":"N/A"},{"$f":"_xlfn.XLOOKUP($E68,'Activity 10'!$B$17:$B$23,'Activity 10'!H$17:H$23,\"N/A\",0,1)","v":"N/A"},{"$f":"_xlfn.XLOOKUP($E68,'Activity 10'!$B$17:$B$23,'Activity 10'!I$17:I$23,\"N/A\",0,1)","v":"N/A"},{"$f":"_xlfn.XLOOKUP($E68,'Activity 10'!$B$17:$B$23,'Activity 10'!J$17:J$23,\"N/A\",0,1)","v":"N/A"},{"$f":"_xlfn.XLOOKUP($E68,'Activity 10'!$B$17:$B$23,'Activity 10'!K$17:K$23,\"N/A\",0,1)","v":"N/A"},{"$f":"_xlfn.XLOOKUP($E68,'Activity 10'!$B$17:$B$23,'Activity 10'!L$17:L$23,\"N/A\",0,1)","v":"N/A"},{"$f":"_xlfn.XLOOKUP($E68,'Activity 10'!$B$17:$B$23,'Activity 10'!M$17:M$23,\"N/A\",0,1)","v":"N/A"},{"$f":"_xlfn.XLOOKUP($E68,'Activity 10'!$B$17:$B$23,'Activity 10'!N$17:N$23,\"N/A\",0,1)","v":"N/A"},{"$f":"_xlfn.XLOOKUP($E68,'Activity 10'!$B$17:$B$23,'Activity 10'!P$17:P$23,\"N/A\",0,1)","v":"N/A"},{"$f":"_xlfn.XLOOKUP($E68,'Competitive Activity 1'!B$7:B$13,'Competitive Activity 1'!A$7:A$13,\"No\",0,1)","v":"No"},{"$f":"_xlfn.XLOOKUP($E68,'Competitive Activity 1'!$B$7:$B$13,'Competitive Activity 1'!H$7:H$13,\"N/A\",0,1)","v":"N/A"},{"$f":"_xlfn.XLOOKUP($E68,'Competitive Activity 1'!$B$7:$B$13,'Competitive Activity 1'!I$7:I$13,\"N/A\",0,1)","v":"N/A"},{"$f":"_xlfn.XLOOKUP($E68,'Competitive Activity 1'!$B$7:$B$13,'Competitive Activity 1'!J$7:J$13,\"N/A\",0,1)","v":"N/A"},{"$f":"_xlfn.XLOOKUP($E68,'Competitive Activity 1'!$B$7:$B$13,'Competitive Activity 1'!K$7:K$13,\"N/A\",0,1)","v":"N/A"},{"$f":"_xlfn.XLOOKUP($E68,'Competitive Activity 1'!$B$7:$B$13,'Competitive Activity 1'!L$7:L$13,\"N/A\",0,1)","v":"N/A"},{"$f":"_xlfn.XLOOKUP($E68,'Competitive Activity 1'!$B$7:$B$13,'Competitive Activity 1'!M$7:M$13,\"N/A\",0,1)","v":"N/A"},{"$f":"_xlfn.XLOOKUP($E68,'Competitive Activity 1'!$B$7:$B$13,'Competitive Activity 1'!N$7:N$13,\"N/A\",0,1)","v":"N/A"},{"$f":"_xlfn.XLOOKUP($E68,'Competitive Activity 1'!$B$7:$B$13,'Competitive Activity 1'!O$7:O$13,\"N/A\",0,1)","v":"N/A"},{"$f":"_xlfn.XLOOKUP($E68,'Competitive Activity 1'!$B$7:$B$13,'Competitive Activity 1'!P$7:P$13,\"N/A\",0,1)","v":"N/A"},{"$f":"_xlfn.XLOOKUP($E68,'Competitive Activity 1'!$B$7:$B$13,'Competitive Activity 1'!Q$7:Q$13,\"N/A\",0,1)","v":"N/A"},{"$f":"_xlfn.XLOOKUP($E68,'Competitive Activity 1'!$B$7:$B$13,'Competitive Activity 1'!R$7:R$13,\"N/A\",0,1)","v":"N/A"},{"$f":"_xlfn.XLOOKUP($E68,'Competitive Activity 1'!$B$7:$B$13,'Competitive Activity 1'!S$7:S$13,\"N/A\",0,1)","v":"N/A"},{"$f":"_xlfn.XLOOKUP($E68,'Competitive Activity 1'!$B$7:$B$13,'Competitive Activity 1'!T$7:T$13,\"N/A\",0,1)","v":"N/A"},{"$f":"_xlfn.XLOOKUP($E68,'Competitive Activity 1'!$B$7:$B$13,'Competitive Activity 1'!U$7:U$13,\"N/A\",0,1)","v":"N/A"},{"$f":"_xlfn.XLOOKUP($E68,'Competitive Activity 1'!$B$17:$B$23,'Competitive Activity 1'!C$17:C$23,\"N/A\",0,1)","v":"N/A"},{"$f":"_xlfn.XLOOKUP($E68,'Competitive Activity 1'!$B$17:$B$23,'Competitive Activity 1'!D$17:D$23,\"N/A\",0,1)","v":"N/A"},{"$f":"_xlfn.XLOOKUP($E68,'Competitive Activity 1'!$B$17:$B$23,'Competitive Activity 1'!E$17:E$23,\"N/A\",0,1)","v":"N/A"},{"$f":"_xlfn.XLOOKUP($E68,'Competitive Activity 1'!$B$17:$B$23,'Competitive Activity 1'!F$17:F$23,\"N/A\",0,1)","v":"N/A"},{"$f":"_xlfn.XLOOKUP($E68,'Competitive Activity 1'!$B$17:$B$23,'Competitive Activity 1'!G$17:G$23,\"N/A\",0,1)","v":"N/A"},{"$f":"_xlfn.XLOOKUP($E68,'Competitive Activity 1'!$B$17:$B$23,'Competitive Activity 1'!H$17:H$23,\"N/A\",0,1)","v":"N/A"},{"$f":"_xlfn.XLOOKUP($E68,'Competitive Activity 1'!$B$17:$B$23,'Competitive Activity 1'!I$17:I$23,\"N/A\",0,1)","v":"N/A"},{"$f":"_xlfn.XLOOKUP($E68,'Competitive Activity 1'!$B$17:$B$23,'Competitive Activity 1'!J$17:J$23,\"N/A\",0,1)","v":"N/A"},{"$f":"_xlfn.XLOOKUP($E68,'Competitive Activity 1'!$B$17:$B$23,'Competitive Activity 1'!K$17:K$23,\"N/A\",0,1)","v":"N/A"},{"$f":"_xlfn.XLOOKUP($E68,'Competitive Activity 1'!$B$17:$B$23,'Competitive Activity 1'!M$17:M$23,\"N/A\",0,1)","v":"N/A"},{"$f":"_xlfn.XLOOKUP($E68,'Competitive Activity 1'!$B$17:$B$23,'Competitive Activity 1'!N$17:N$23,\"N/A\",0,1)","v":"N/A"},{"$f":"_xlfn.XLOOKUP($E68,'Competitive Activity 1'!$B$17:$B$23,'Competitive Activity 1'!P$17:P$23,\"N/A\",0,1)","v":"N/A"},{"$f":"_xlfn.XLOOKUP($E68,'Competitive Activity 2'!$B$7:$B$13,'Competitive Activity 2'!A$7:A$13,\"No\",0)","v":"No"},{"$f":"_xlfn.XLOOKUP($E68,'Competitive Activity 2'!$B$7:$B$13,'Competitive Activity 2'!L$7:L$13,\"N/A\",0)","v":"N/A"},{"$f":"_xlfn.XLOOKUP($E68,'Competitive Activity 2'!$B$7:$B$13,'Competitive Activity 2'!M$7:M$13,\"N/A\",0)","v":"N/A"},{"$f":"_xlfn.XLOOKUP($E68,'Competitive Activity 2'!$B$7:$B$13,'Competitive Activity 2'!N$7:N$13,\"N/A\",0)","v":"N/A"},{"$f":"_xlfn.XLOOKUP($E68,'Competitive Activity 2'!$B$7:$B$13,'Competitive Activity 2'!O$7:O$13,\"N/A\",0)","v":"N/A"},{"$f":"_xlfn.XLOOKUP($E68,'Competitive Activity 2'!$B$7:$B$13,'Competitive Activity 2'!P$7:P$13,\"N/A\",0)","v":"N/A"},{"$f":"_xlfn.XLOOKUP($E68,'Competitive Activity 2'!$B$7:$B$13,'Competitive Activity 2'!Q$7:Q$13,\"N/A\",0)","v":"N/A"},{"$f":"_xlfn.XLOOKUP($E68,'Competitive Activity 2'!$B$7:$B$13,'Competitive Activity 2'!R$7:R$13,\"N/A\",0)","v":"N/A"},{"$f":"_xlfn.XLOOKUP($E68,'Competitive Activity 2'!$B$7:$B$13,'Competitive Activity 2'!S$7:S$13,\"N/A\",0)","v":"N/A"},{"$f":"_xlfn.XLOOKUP($E68,'Competitive Activity 2'!$B$7:$B$13,'Competitive Activity 2'!T$7:T$13,\"N/A\",0)","v":"N/A"},{"$f":"_xlfn.XLOOKUP($E68,'Competitive Activity 2'!$B$7:$B$13,'Competitive Activity 2'!U$7:U$13,\"N/A\",0)","v":"N/A"},{"$f":"_xlfn.XLOOKUP($E68,'Competitive Activity 2'!$B$17:$B$23,'Competitive Activity 2'!D$17:D$23,\"N/A\",0)","v":"N/A"},{"$f":"_xlfn.XLOOKUP($E68,'Competitive Activity 2'!$B$17:$B$23,'Competitive Activity 2'!E$17:E$23,\"N/A\",0)","v":"N/A"},{"$f":"_xlfn.XLOOKUP($E68,'Competitive Activity 2'!$B$17:$B$23,'Competitive Activity 2'!F$17:F$23,\"N/A\",0)","v":"N/A"},{"$f":"_xlfn.XLOOKUP($E68,'Competitive Activity 2'!$B$17:$B$23,'Competitive Activity 2'!G$17:G$23,\"N/A\",0)","v":"N/A"},{"$f":"_xlfn.XLOOKUP($E68,'Competitive Activity 2'!$B$17:$B$23,'Competitive Activity 2'!H$17:H$23,\"N/A\",0)","v":"N/A"},{"$f":"_xlfn.XLOOKUP($E68,'Competitive Activity 2'!$B$17:$B$23,'Competitive Activity 2'!I$17:I$23,\"N/A\",0)","v":"N/A"},{"$f":"_xlfn.XLOOKUP($E68,'Competitive Activity 2'!$B$17:$B$23,'Competitive Activity 2'!J$17:J$23,\"N/A\",0)","v":"N/A"},{"$f":"_xlfn.XLOOKUP($E68,'Competitive Activity 2'!$B$17:$B$23,'Competitive Activity 2'!K$17:K$23,\"N/A\",0)","v":"N/A"},{"$f":"_xlfn.XLOOKUP($E68,'Competitive Activity 2'!$B$17:$B$23,'Competitive Activity 2'!L$17:L$23,\"N/A\",0)","v":"N/A"},{"$f":"_xlfn.XLOOKUP($E68,'Competitive Activity 2'!$B$17:$B$23,'Competitive Activity 2'!M$17:M$23,\"N/A\",0)","v":"N/A"},{"$f":"_xlfn.XLOOKUP($E68,'Competitive Activity 2'!$B$17:$B$23,'Competitive Activity 2'!N$17:N$23,\"N/A\",0)","v":"N/A"},{"$f":"_xlfn.XLOOKUP($E68,'Competitive Activity 2'!$B$27:$B$33,'Competitive Activity 2'!D$27:D$33,\"N/A\",0)","v":"N/A"},{"$f":"_xlfn.XLOOKUP($E68,'Competitive Activity 2'!$B$27:$B$33,'Competitive Activity 2'!E$27:E$33,\"N/A\",0)","v":"N/A"},{"$f":"_xlfn.XLOOKUP($E68,'Competitive Activity 2'!$B$27:$B$33,'Competitive Activity 2'!F$27:F$33,\"N/A\",0)","v":"N/A"},{"$f":"_xlfn.XLOOKUP($E68,'Competitive Activity 2'!$B$27:$B$33,'Competitive Activity 2'!G$27:G$33,\"N/A\",0)","v":"N/A"},{"$f":"_xlfn.XLOOKUP($E68,'Competitive Activity 2'!$B$27:$B$33,'Competitive Activity 2'!H$27:H$33,\"N/A\",0)","v":"N/A"},{"$f":"_xlfn.XLOOKUP($E68,'Competitive Activity 2'!$B$27:$B$33,'Competitive Activity 2'!I$27:I$33,\"N/A\",0)","v":"N/A"},{"$f":"_xlfn.XLOOKUP($E68,'Competitive Activity 2'!$B$27:$B$33,'Competitive Activity 2'!J$27:J$33,\"N/A\",0)","v":"N/A"},{"$f":"_xlfn.XLOOKUP($E68,'Competitive Activity 2'!$B$27:$B$33,'Competitive Activity 2'!K$27:K$33,\"N/A\",0)","v":"N/A"},{"$f":"_xlfn.XLOOKUP($E68,'Competitive Activity 2'!$B$27:$B$33,'Competitive Activity 2'!M$27:M$33,\"N/A\",0)","v":"N/A"}]
[{"$f":"'1-Cover Sheet'!$C$8","v":"Select One"},{"$f":"'1-Cover Sheet'!$F$8","v":"Select One"},{"$f":"'Summary Sheet'!$D$8","v":0},{"$f":"'Summary Sheet'!$D$10","v":0},{"$f":"'Drop Down Box'!B233","v":0},{"$f":"'Drop Down Box'!C233","v":0},{"$f":"'Drop Down Box'!D233","v":"Select One"},{"$f":"_xlfn.XLOOKUP(E69,'Drop Down Box'!$B$166:$B$249,'Drop Down Box'!$A$166:$A$249,\"Unknown\",0)","v":"Activity 1"},{"$f":"_xlfn.XLOOKUP($E69,'Activity 10'!$B$17:$B$23,'Activity 10'!$O$17:$O$23,\"N/A\",0)","v":"N/A"},{"$f":"_xlfn.XLOOKUP($E69,'Activity 10'!$B$17:$B$23,'Activity 10'!$Q$17:$Q$23,\"N/A\",0)","v":"N/A"},{"$f":"_xlfn.XLOOKUP($E69,'Activity 10'!$B$7:$B$13,'Activity 10'!G$7:G$13,\"N/A\",0)","v":"N/A"},{"$f":"_xlfn.XLOOKUP($E69,'Activity 10'!$B$7:$B$13,'Activity 10'!H$7:H$13,\"N/A\",0)","v":"N/A"},{"$f":"_xlfn.XLOOKUP($E69,'Activity 10'!$B$7:$B$13,'Activity 10'!I$7:I$13,\"N/A\",0)","v":"N/A"},{"$f":"_xlfn.XLOOKUP($E69,'Activity 1'!$B$7:$B$13,'Activity 1'!$A$7:$A$13,\"No\",0,1)","v":"No"},{"$f":"_xlfn.XLOOKUP($E69,'Activity 1'!$B$7:$B$13,'Activity 1'!$H$7:$H$13,\"N/A\",0,1)","v":"N/A"},{"$f":"_xlfn.XLOOKUP($E69,'Activity 1'!$B$7:$B$13,'Activity 1'!I$7:I$13,\"N/A\",0,1)","v":"N/A"},{"$f":"_xlfn.XLOOKUP($E69,'Activity 1'!$B$7:$B$13,'Activity 1'!J$7:J$13,\"N/A\",0,1)","v":"N/A"},{"$f":"_xlfn.XLOOKUP($E69,'Activity 1'!$B$7:$B$13,'Activity 1'!K$7:K$13,\"N/A\",0,1)","v":"N/A"},{"$f":"_xlfn.XLOOKUP($E69,'Activity 1'!$B$7:$B$13,'Activity 1'!L$7:L$13,\"N/A\",0,1)","v":"N/A"},{"$f":"_xlfn.XLOOKUP($E69,'Activity 1'!$B$7:$B$13,'Activity 1'!M$7:M$13,\"N/A\",0,1)","v":"N/A"},{"$f":"_xlfn.XLOOKUP($E69,'Activity 1'!$B$7:$B$13,'Activity 1'!N$7:N$13,\"N/A\",0,1)","v":"N/A"},0,{"$f":"_xlfn.XLOOKUP($E69,'Activity 1'!$B$7:$B$13,'Activity 1'!O$7:O$13,\"N/A\",0,1)","v":"N/A"},{"$f":"_xlfn.XLOOKUP($E69,'Activity 1'!$B$7:$B$13,'Activity 1'!P$7:P$13,\"N/A\",0,1)","v":"N/A"},{"$f":"_xlfn.XLOOKUP($E69,'Activity 1'!$B$7:$B$13,'Activity 1'!Q$7:Q$13,\"N/A\",0,1)","v":"N/A"},{"$f":"_xlfn.XLOOKUP($E69,'Activity 1'!$B$7:$B$13,'Activity 1'!R$7:R$13,\"N/A\",0,1)","v":"N/A"},{"$f":"_xlfn.XLOOKUP($E69,'Activity 1'!$B$7:$B$13,'Activity 1'!S$7:S$13,\"N/A\",0,1)","v":"N/A"},{"$f":"_xlfn.XLOOKUP($E69,'Activity 1'!$B$7:$B$13,'Activity 1'!T$7:T$13,\"N/A\",0,1)","v":"N/A"},{"$f":"_xlfn.XLOOKUP($E69,'Activity 1'!$B$7:$B$13,'Activity 1'!U$7:U$13,\"N/A\",0,1)","v":"N/A"},{"$f":"_xlfn.XLOOKUP($E69,'Activity 1'!$B$7:$B$13,'Activity 1'!V$7:V$13,\"N/A\",0,1)","v":"N/A"},{"$f":"_xlfn.XLOOKUP($E69,'Activity 1'!$B$17:$B$23,'Activity 1'!C$17:C$23,\"N/A\",0,1)","v":"N/A"},{"$f":"_xlfn.XLOOKUP($E69,'Activity 1'!$B$17:$B$23,'Activity 1'!D$17:D$23,\"N/A\",0,1)","v":"N/A"},{"$f":"_xlfn.XLOOKUP($E69,'Activity 1'!$B$17:$B$23,'Activity 1'!E$17:E$23,\"N/A\",0,1)","v":"N/A"},{"$f":"_xlfn.XLOOKUP($E69,'Activity 1'!$B$17:$B$23,'Activity 1'!F$17:F$23,\"N/A\",0,1)","v":"N/A"},{"$f":"_xlfn.XLOOKUP($E69,'Activity 1'!$B$17:$B$23,'Activity 1'!G$17:G$23,\"N/A\",0,1)","v":"N/A"},{"$f":"_xlfn.XLOOKUP($E69,'Activity 1'!$B$17:$B$23,'Activity 1'!H$17:H$23,\"N/A\",0,1)","v":"N/A"},{"$f":"_xlfn.XLOOKUP($E69,'Activity 1'!$B$17:$B$23,'Activity 1'!I$17:I$23,\"N/A\",0,1)","v":"N/A"},{"$f":"_xlfn.XLOOKUP($E69,'Activity 1'!$B$17:$B$23,'Activity 1'!J$17:J$23,\"N/A\",0,1)","v":"N/A"},{"$f":"_xlfn.XLOOKUP($E69,'Activity 1'!$B$17:$B$23,'Activity 1'!K$17:K$23,\"N/A\",0,1)","v":"N/A"},{"$f":"_xlfn.XLOOKUP($E69,'Activity 1'!$B$17:$B$23,'Activity 1'!L$17:L$23,\"N/A\",0,1)","v":"N/A"},{"$f":"_xlfn.XLOOKUP($E69,'Activity 1'!$B$17:$B$23,'Activity 1'!M$17:M$23,\"N/A\",0,1)","v":"N/A"},{"$f":"_xlfn.XLOOKUP($E69,'Activity 1'!$B$17:$B$23,'Activity 1'!O$17:O$23,\"N/A\",0,1)","v":"N/A"},{"$f":"_xlfn.XLOOKUP($E69,'Activity 1'!$B$17:$B$23,'Activity 1'!Q$17:Q$23,\"N/A\",0,1)","v":"N/A"},{"$f":"_xlfn.XLOOKUP($E69,'Activity 2'!$B$7:$B$13,'Activity 2'!$A$7:$A$13,\"No\",0,1)","v":"No"},{"$f":"_xlfn.XLOOKUP($E69,'Activity 2'!B$7:B$13,'Activity 2'!H$7:H$13,\"N/A\",0)","v":"N/A"},{"$f":"_xlfn.XLOOKUP($E69,'Activity 2'!C$7:C$13,'Activity 2'!I$7:I$13,\"N/A\",0)","v":"N/A"},{"$f":"_xlfn.XLOOKUP($E69,'Activity 2'!D$7:D$13,'Activity 2'!J$7:J$13,\"N/A\",0)","v":"N/A"},{"$f":"_xlfn.XLOOKUP($E69,'Activity 2'!E$7:E$13,'Activity 2'!K$7:K$13,\"N/A\",0)","v":"N/A"},{"$f":"_xlfn.XLOOKUP($E69,'Activity 2'!F$7:F$13,'Activity 2'!L$7:L$13,\"N/A\",0)","v":"N/A"},{"$f":"_xlfn.XLOOKUP($E69,'Activity 2'!G$7:G$13,'Activity 2'!M$7:M$13,\"N/A\",0)","v":"N/A"},{"$f":"_xlfn.XLOOKUP($E69,'Activity 2'!H$7:H$13,'Activity 2'!N$7:N$13,\"N/A\",0)","v":"N/A"},{"$f":"_xlfn.XLOOKUP($E69,'Activity 2'!I$7:I$13,'Activity 2'!O$7:O$13,\"N/A\",0)","v":"N/A"},{"$f":"_xlfn.XLOOKUP($E69,'Activity 2'!J$7:J$13,'Activity 2'!P$7:P$13,\"N/A\",0)","v":"N/A"},{"$f":"_xlfn.XLOOKUP($E69,'Activity 2'!K$7:K$13,'Activity 2'!Q$7:Q$13,\"N/A\",0)","v":"N/A"},{"$f":"_xlfn.XLOOKUP($E69,'Activity 2'!L$7:L$13,'Activity 2'!R$7:R$13,\"N/A\",0)","v":"N/A"},{"$f":"_xlfn.XLOOKUP($E69,'Activity 2'!M$7:M$13,'Activity 2'!S$7:S$13,\"N/A\",0)","v":"N/A"},{"$f":"_xlfn.XLOOKUP($E69,'Activity 2'!N$7:N$13,'Activity 2'!T$7:T$13,\"N/A\",0)","v":"N/A"},{"$f":"_xlfn.XLOOKUP($E69,'Activity 2'!O$7:O$13,'Activity 2'!U$7:U$13,\"N/A\",0)","v":"N/A"},{"$f":"_xlfn.XLOOKUP($E69,'Activity 2'!P$7:P$13,'Activity 2'!V$7:V$13,\"N/A\",0)","v":"N/A"},{"$f":"_xlfn.XLOOKUP($E69,'Activity 2'!$B$17:$B$23,'Activity 2'!C$17:C$23,\"N/A\",0,1)","v":"N/A"},{"$f":"_xlfn.XLOOKUP($E69,'Activity 2'!$B$17:$B$23,'Activity 2'!D$17:D$23,\"N/A\",0,1)","v":"N/A"},{"$f":"_xlfn.XLOOKUP($E69,'Activity 2'!$B$17:$B$23,'Activity 2'!E$17:E$23,\"N/A\",0,1)","v":"N/A"},{"$f":"_xlfn.XLOOKUP($E69,'Activity 2'!$B$17:$B$23,'Activity 2'!F$17:F$23,\"N/A\",0,1)","v":"N/A"},{"$f":"_xlfn.XLOOKUP($E69,'Activity 2'!$B$17:$B$23,'Activity 2'!G$17:G$23,\"N/A\",0,1)","v":"N/A"},{"$f":"_xlfn.XLOOKUP($E69,'Activity 2'!$B$17:$B$23,'Activity 2'!H$17:H$23,\"N/A\",0,1)","v":"N/A"},{"$f":"_xlfn.XLOOKUP($E69,'Activity 2'!$B$17:$B$23,'Activity 2'!I$17:I$23,\"N/A\",0,1)","v":"N/A"},{"$f":"_xlfn.XLOOKUP($E69,'Activity 2'!$B$17:$B$23,'Activity 2'!J$17:J$23,\"N/A\",0,1)","v":"N/A"},{"$f":"_xlfn.XLOOKUP($E69,'Activity 2'!$B$17:$B$23,'Activity 2'!K$17:K$23,\"N/A\",0,1)","v":"N/A"},{"$f":"_xlfn.XLOOKUP($E69,'Activity 2'!$B$17:$B$23,'Activity 2'!L$17:L$23,\"N/A\",0,1)","v":"N/A"},{"$f":"_xlfn.XLOOKUP($E69,'Activity 2'!$B$17:$B$23,'Activity 2'!M$17:M$23,\"N/A\",0,1)","v":"N/A"},{"$f":"_xlfn.XLOOKUP($E69,'Activity 2'!$B$17:$B$23,'Activity 2'!O$17:O$23,\"N/A\",0,1)","v":"N/A"},{"$f":"_xlfn.XLOOKUP($E69,'Activity 2'!$B$17:$B$23,'Activity 2'!Q$17:Q$23,\"N/A\",0,1)","v":"N/A"},null,{"$f":"_xlfn.XLOOKUP($E69,'Activity 3'!$B$8:$B$14,'Activity 3'!K$8:K$14,\"N/A\",0,1)","v":"N/A"},{"$f":"_xlfn.XLOOKUP($E69,'Activity 3'!$B$8:$B$14,'Activity 3'!L$8:L$14,\"N/A\",0,1)","v":"N/A"},{"$f":"_xlfn.XLOOKUP($E69,'Activity 3'!$B$8:$B$14,'Activity 3'!M$8:M$14,\"N/A\",0,1)","v":"N/A"},{"$f":"_xlfn.XLOOKUP($E69,'Activity 3'!$B$8:$B$14,'Activity 3'!N$8:N$14,\"N/A\",0,1)","v":"N/A"},{"$f":"_xlfn.XLOOKUP($E69,'Activity 3'!$B$8:$B$14,'Activity 3'!O$8:O$14,\"N/A\",0,1)","v":"N/A"},{"$f":"_xlfn.XLOOKUP($E69,'Activity 3'!$B$8:$B$14,'Activity 3'!R$8:R$14,\"N/A\",0,1)","v":"N/A"},{"$f":"_xlfn.XLOOKUP($E69,'Activity 4'!$B$8:$B$14,'Activity 4'!$A$8:$A$14,\"No\",0,1)","v":"No"},{"$f":"_xlfn.XLOOKUP($E69,'Activity 4'!$B$8:$B$14,'Activity 4'!L$8:L$14,\"N/A\",0,1)","v":"N/A"},{"$f":"_xlfn.XLOOKUP($E69,'Activity 4'!$B$8:$B$14,'Activity 4'!I$8:I$14,\"N/A\",0,1)","v":"N/A"},{"$f":"_xlfn.XLOOKUP($E69,'Activity 4'!$B$8:$B$14,'Activity 4'!M$8:M$14,\"N/A\",0,1)","v":"N/A"},{"$f":"_xlfn.XLOOKUP($E69,'Activity 5'!$B$8:$B$14,'Activity 5'!$A$8:$A$14,\"No\",0,1)","v":"No"},{"$f":"_xlfn.XLOOKUP($E69,'Activity 5'!$B$8:$B$14,'Activity 5'!J$8:J$14,\"N/A\",0,1)","v":"N/A"},{"$f":"_xlfn.XLOOKUP($E69,'Activity 5'!$B$8:$B$14,'Activity 5'!K$8:K$14,\"N/A\",0,1)","v":"N/A"},{"$f":"_xlfn.XLOOKUP($E69,'Activity 5'!$B$8:$B$14,'Activity 5'!N$8:N$14,\"N/A\",0,1)","v":"N/A"},{"$f":"_xlfn.XLOOKUP($E69,'Activity 5'!$B$8:$B$14,'Activity 5'!O$8:O$14,\"N/A\",0,1)","v":"N/A"},{"$f":"_xlfn.XLOOKUP($E69,'Activity 5'!$B$8:$B$14,'Activity 5'!P$8:P$14,\"N/A\",0,1)","v":"N/A"},{"$f":"_xlfn.XLOOKUP($E69,'Activity 5'!$B$8:$B$14,'Activity 5'!Q$8:Q$14,\"N/A\",0,1)","v":"N/A"},{"$f":"_xlfn.XLOOKUP($E69,'Activity 5'!$B$8:$B$14,'Activity 5'!R$8:R$14,\"N/A\",0,1)","v":"N/A"},{"$f":"_xlfn.XLOOKUP($E69,'Activity 6'!$B$7:$B$13,'Activity 6'!A$7:A$13,\"No\",0,1)","v":"No"},{"$f":"_xlfn.XLOOKUP($E69,'Activity 6'!$B$7:$B$13,'Activity 6'!K$7:K$13,\"N/A\",0,1)","v":"N/A"},{"$f":"_xlfn.XLOOKUP($E69,'Activity 6'!$B$7:$B$13,'Activity 6'!L$7:L$13,\"N/A\",0,1)","v":"N/A"},{"$f":"_xlfn.XLOOKUP($E69,'Activity 6'!$B$7:$B$13,'Activity 6'!M$7:M$13,\"N/A\",0,1)","v":"N/A"},{"$f":"_xlfn.XLOOKUP($E69,'Activity 6'!$B$7:$B$13,'Activity 6'!N$7:N$13,\"N/A\",0,1)","v":"N/A"},{"$f":"_xlfn.XLOOKUP($E69,'Activity 6'!$B$7:$B$13,'Activity 6'!O$7:O$13,\"N/A\",0,1)","v":"N/A"},{"$f":"_xlfn.XLOOKUP($E69,'Activity 6'!$B$7:$B$13,'Activity 6'!P$7:P$13,\"N/A\",0,1)","v":"N/A"},{"$f":"_xlfn.XLOOKUP($E69,'Activity 6'!$B$7:$B$13,'Activity 6'!Q$7:Q$13,\"N/A\",0,1)","v":"N/A"},{"$f":"_xlfn.XLOOKUP($E69,'Activity 6'!$B$7:$B$13,'Activity 6'!R$7:R$13,\"N/A\",0,1)","v":"N/A"},{"$f":"_xlfn.XLOOKUP($E69,'Activity 6'!$B$7:$B$13,'Activity 6'!S$7:S$13,\"N/A\",0,1)","v":"N/A"},{"$f":"_xlfn.XLOOKUP($E69,'Activity 6'!$B$7:$B$13,'Activity 6'!T$7:T$13,\"N/A\",0,1)","v":"N/A"},{"$f":"_xlfn.XLOOKUP($E69,'Activity 6'!$B$7:$B$13,'Activity 6'!U$7:U$13,\"N/A\",0,1)","v":"N/A"},{"$f":"_xlfn.XLOOKUP($E69,'Activity 6'!$B$22:$B$28,'Activity 6'!C$22:C$28,\"N/A\",0,1)","v":"N/A"},{"$f":"_xlfn.XLOOKUP($E69,'Activity 6'!$B$22:$B$28,'Activity 6'!D$22:D$28,\"N/A\",0,1)","v":"N/A"},{"$f":"_xlfn.XLOOKUP($E69,'Activity 6'!$B$22:$B$28,'Activity 6'!E$22:E$28,\"N/A\",0,1)","v":"N/A"},{"$f":"_xlfn.XLOOKUP($E69,'Activity 6'!$B$22:$B$28,'Activity 6'!F$22:F$28,\"N/A\",0,1)","v":"N/A"},{"$f":"_xlfn.XLOOKUP($E69,'Activity 6'!$B$22:$B$28,'Activity 6'!G$22:G$28,\"N/A\",0,1)","v":"N/A"},{"$f":"_xlfn.XLOOKUP($E69,'Activity 6'!$B$22:$B$28,'Activity 6'!H$22:H$28,\"N/A\",0,1)","v":"N/A"},{"$f":"_xlfn.XLOOKUP($E69,'Activity 6'!$B$22:$B$28,'Activity 6'!I$22:I$28,\"N/A\",0,1)","v":"N/A"},{"$f":"_xlfn.XLOOKUP($E69,'Activity 6'!$B$22:$B$28,'Activity 6'!J$22:J$28,\"N/A\",0,1)","v":"N/A"},{"$f":"_xlfn.XLOOKUP($E69,'Activity 6'!$B$22:$B$28,'Activity 6'!K$22:K$28,\"N/A\",0,1)","v":"N/A"},{"$f":"_xlfn.XLOOKUP($E69,'Activity 6'!$B$22:$B$28,'Activity 6'!L$22:L$28,\"N/A\",0,1)","v":"N/A"},{"$f":"_xlfn.XLOOKUP($E69,'Activity 6'!$B$22:$B$28,'Activity 6'!M$22:M$28,\"N/A\",0,1)","v":"N/A"},{"$f":"_xlfn.XLOOKUP($E69,'Activity 6'!$B$22:$B$28,'Activity 6'!N$22:N$28,\"N/A\",0,1)","v":"N/A"},{"$f":"_xlfn.XLOOKUP($E69,'Activity 6'!$B$32:$B$38,'Activity 6'!C$32:C$38,\"N/A\",0,1)","v":"N/A"},{"$f":"_xlfn.XLOOKUP($E69,'Activity 6'!$B$32:$B$38,'Activity 6'!D$32:D$38,\"N/A\",0,1)","v":"N/A"},{"$f":"_xlfn.XLOOKUP($E69,'Activity 6'!$B$32:$B$38,'Activity 6'!E$32:E$38,\"N/A\",0,1)","v":"N/A"},{"$f":"_xlfn.XLOOKUP($E69,'Activity 6'!$B$32:$B$38,'Activity 6'!F$32:F$38,\"N/A\",0,1)","v":"N/A"},{"$f":"_xlfn.XLOOKUP($E69,'Activity 6'!$B$32:$B$38,'Activity 6'!G$32:G$38,\"N/A\",0,1)","v":"N/A"},{"$f":"_xlfn.XLOOKUP($E69,'Activity 6'!$B$32:$B$38,'Activity 6'!H$32:H$38,\"N/A\",0,1)","v":"N/A"},{"$f":"_xlfn.XLOOKUP($E69,'Activity 6'!$B$32:$B$38,'Activity 6'!I$32:I$38,\"N/A\",0,1)","v":"N/A"},{"$f":"_xlfn.XLOOKUP($E69,'Activity 6'!$B$32:$B$38,'Activity 6'!J$32:J$38,\"N/A\",0,1)","v":"N/A"},{"$f":"_xlfn.XLOOKUP($E69,'Activity 6'!$B$32:$B$38,'Activity 6'!K$32:K$38,\"N/A\",0,1)","v":"N/A"},{"$f":"_xlfn.XLOOKUP($E69,'Activity 6'!$B$32:$B$38,'Activity 6'!M$32:M$38,\"N/A\",0,1)","v":"N/A"},{"$f":"_xlfn.XLOOKUP($E69,'Activity 7'!$B$7:$B$13,'Activity 7'!$A$7:$A$13,\"No\",0,1)","v":"No"},{"$f":"_xlfn.XLOOKUP($E69,'Activity 7'!$B$7:$B$13,'Activity 7'!M$7:M$13,\"N/A\",0,1)","v":"N/A"},{"$f":"_xlfn.XLOOKUP($E69,'Activity 7'!$B$7:$B$13,'Activity 7'!K$7:K$13,\"N/A\",0,1)","v":"N/A"},{"$f":"_xlfn.XLOOKUP($E69,'Activity 7'!$B$7:$B$13,'Activity 7'!N$7:N$13,\"N/A\",0,1)","v":"N/A"},{"$f":"_xlfn.XLOOKUP($E69,'Activity 7'!$B$7:$B$13,'Activity 7'!O$7:O$13,\"N/A\",0,1)","v":"N/A"},{"$f":"_xlfn.XLOOKUP($E69,'Activity 7'!$B$7:$B$13,'Activity 7'!P$7:P$13,\"N/A\",0,1)","v":"N/A"},{"$f":"_xlfn.XLOOKUP($E69,'Activity 7'!$B$7:$B$13,'Activity 7'!Q$7:Q$13,\"N/A\",0,1)","v":"N/A"},{"$f":"_xlfn.XLOOKUP($E69,'Activity 7'!$B$7:$B$13,'Activity 7'!R$7:R$13,\"N/A\",0,1)","v":"N/A"},{"$f":"_xlfn.XLOOKUP($E69,'Activity 7'!$B$7:$B$13,'Activity 7'!S$7:S$13,\"N/A\",0,1)","v":"N/A"},{"$f":"_xlfn.XLOOKUP($E69,'Activity 7'!$B$7:$B$13,'Activity 7'!T$7:T$13,\"N/A\",0,1)","v":"N/A"},{"$f":"_xlfn.XLOOKUP($E69,'Activity 7'!$B$7:$B$13,'Activity 7'!U$7:U$13,\"N/A\",0,1)","v":"N/A"},{"$f":"_xlfn.XLOOKUP($E69,'Activity 7'!$B$7:$B$13,'Activity 7'!V$7:V$13,\"N/A\",0,1)","v":"N/A"},{"$f":"_xlfn.XLOOKUP($E69,'Activity 7'!$B$17:$B$23,'Activity 7'!E$17:E$23,\"N/A\",0,1)","v":"N/A"},{"$f":"_xlfn.XLOOKUP($E69,'Activity 7'!$B$17:$B$23,'Activity 7'!G$17:G$23,\"N/A\",0,1)","v":"N/A"},{"$f":"_xlfn.XLOOKUP($E69,'Activity 7'!$B$17:$B$23,'Activity 7'!I$17:I$23,\"N/A\",0,1)","v":"N/A"},{"$f":"_xlfn.XLOOKUP($E69,'Activity 7'!$B$17:$B$23,'Activity 7'!J$17:J$23,\"N/A\",0,1)","v":"N/A"},{"$f":"_xlfn.XLOOKUP($E69,'Activity 7'!$B$17:$B$23,'Activity 7'!K$17:K$23,\"N/A\",0,1)","v":"N/A"},{"$f":"_xlfn.XLOOKUP($E69,'Activity 7'!$B$17:$B$23,'Activity 7'!L$17:L$23,\"N/A\",0,1)","v":"N/A"},{"$f":"_xlfn.XLOOKUP($E69,'Activity 7'!$B$17:$B$23,'Activity 7'!M$17:M$23,\"N/A\",0,1)","v":"N/A"},{"$f":"_xlfn.XLOOKUP($E69,'Activity 7'!$B$17:$B$23,'Activity 7'!N$17:N$23,\"N/A\",0,1)","v":"N/A"},{"$f":"_xlfn.XLOOKUP($E69,'Activity 7'!$B$17:$B$23,'Activity 7'!P$17:P$23,\"N/A\",0,1)","v":"N/A"},{"$f":"_xlfn.XLOOKUP($E69,'Activity 8'!$B$7:$B$13,'Activity 8'!A$7:A$13,\"No\",0,1)","v":"No"},{"$f":"_xlfn.XLOOKUP($E69,'Activity 8'!$B$7:$B$13,'Activity 8'!I$7:I$13,\"N/A\",0,1)","v":"N/A"},{"$f":"_xlfn.XLOOKUP($E69,'Activity 8'!$B$7:$B$13,'Activity 8'!J$7:J$13,\"N/A\",0,1)","v":"N/A"},{"$f":"_xlfn.XLOOKUP($E69,'Activity 8'!$B$7:$B$13,'Activity 8'!K$7:K$13,\"N/A\",0,1)","v":"N/A"},{"$f":"_xlfn.XLOOKUP($E69,'Activity 8'!$B$7:$B$13,'Activity 8'!L$7:L$13,\"N/A\",0,1)","v":"N/A"},{"$f":"_xlfn.XLOOKUP($E69,'Activity 8'!$B$7:$B$13,'Activity 8'!M$7:M$13,\"N/A\",0,1)","v":"N/A"},{"$f":"_xlfn.XLOOKUP($E69,'Activity 8'!$B$7:$B$13,'Activity 8'!N$7:N$13,\"N/A\",0,1)","v":"N/A"},{"$f":"_xlfn.XLOOKUP($E69,'Activity 8'!$B$7:$B$13,'Activity 8'!O$7:O$13,\"N/A\",0,1)","v":"N/A"},{"$f":"_xlfn.XLOOKUP($E69,'Activity 8'!$B$7:$B$13,'Activity 8'!P$7:P$13,\"N/A\",0,1)","v":"N/A"},{"$f":"_xlfn.XLOOKUP($E69,'Activity 8'!$B$7:$B$13,'Activity 8'!Q$7:Q$13,\"N/A\",0,1)","v":"N/A"},{"$f":"_xlfn.XLOOKUP($E69,'Activity 8'!$B$7:$B$13,'Activity 8'!R$7:R$13,\"N/A\",0,1)","v":"N/A"},{"$f":"_xlfn.XLOOKUP($E69,'Activity 8'!$B$7:$B$13,'Activity 8'!S$7:S$13,\"N/A\",0,1)","v":"N/A"},{"$f":"_xlfn.XLOOKUP($E69,'Activity 8'!$B$7:$B$13,'Activity 8'!T$7:T$13,\"N/A\",0,1)","v":"N/A"},{"$f":"_xlfn.XLOOKUP($E69,'Activity 8'!$B$7:$B$13,'Activity 8'!U$7:U$13,\"N/A\",0,1)","v":"N/A"},{"$f":"_xlfn.XLOOKUP($E69,'Activity 8'!$B$7:$B$13,'Activity 8'!V$7:V$13,\"N/A\",0,1)","v":"N/A"},{"$f":"_xlfn.XLOOKUP($E69,'Activity 8'!$B$17:$B$23,'Activity 8'!D$17:D$23,\"N/A\",0,1)","v":"N/A"},{"$f":"_xlfn.XLOOKUP($E69,'Activity 8'!$B$17:$B$23,'Activity 8'!E$17:E$23,\"N/A\",0,1)","v":"N/A"},{"$f":"_xlfn.XLOOKUP($E69,'Activity 8'!$B$17:$B$23,'Activity 8'!F$17:F$23,\"N/A\",0,1)","v":"N/A"},{"$f":"_xlfn.XLOOKUP($E69,'Activity 8'!$B$17:$B$23,'Activity 8'!G$17:G$23,\"N/A\",0,1)","v":"N/A"},{"$f":"_xlfn.XLOOKUP($E69,'Activity 8'!$B$17:$B$23,'Activity 8'!H$17:H$23,\"N/A\",0,1)","v":"N/A"},{"$f":"_xlfn.XLOOKUP($E69,'Activity 8'!$B$17:$B$23,'Activity 8'!I$17:I$23,\"N/A\",0,1)","v":"N/A"},{"$f":"_xlfn.XLOOKUP($E69,'Activity 8'!$B$17:$B$23,'Activity 8'!J$17:J$23,\"N/A\",0,1)","v":"N/A"},{"$f":"_xlfn.XLOOKUP($E69,'Activity 8'!$B$17:$B$23,'Activity 8'!K$17:K$23,\"N/A\",0,1)","v":"N/A"},{"$f":"_xlfn.XLOOKUP($E69,'Activity 8'!$B$17:$B$23,'Activity 8'!L$17:L$23,\"N/A\",0,1)","v":"N/A"},{"$f":"_xlfn.XLOOKUP($E69,'Activity 8'!$B$17:$B$23,'Activity 8'!M$17:M$23,\"N/A\",0,1)","v":"N/A"},{"$f":"_xlfn.XLOOKUP($E69,'Activity 8'!$B$17:$B$23,'Activity 8'!N$17:N$23,\"N/A\",0,1)","v":"N/A"},{"$f":"_xlfn.XLOOKUP($E69,'Activity 8'!$B$17:$B$23,'Activity 8'!P$17:P$23,\"N/A\",0,1)","v":"N/A"},{"$f":"_xlfn.XLOOKUP(E69,'Activity 9'!$B$7:$B$13,'Activity 9'!$A$7:$A$13,\"No\",0,1)","v":"No"},{"$f":"_xlfn.XLOOKUP($E69,'Activity 9'!$B$7:$B$13,'Activity 9'!J$7:J$13,\"N/A\",0,1)","v":"N/A"},{"$f":"_xlfn.XLOOKUP($E69,'Activity 9'!$B$7:$B$13,'Activity 9'!K$7:K$13,\"N/A\",0,1)","v":"N/A"},{"$f":"_xlfn.XLOOKUP($E69,'Activity 9'!$B$7:$B$13,'Activity 9'!L$7:L$13,\"N/A\",0,1)","v":"N/A"},{"$f":"_xlfn.XLOOKUP($E69,'Activity 9'!$B$7:$B$13,'Activity 9'!M$7:M$13,\"N/A\",0,1)","v":"N/A"},{"$f":"_xlfn.XLOOKUP($E69,'Activity 9'!$B$7:$B$13,'Activity 9'!N$7:N$13,\"N/A\",0,1)","v":"N/A"},{"$f":"_xlfn.XLOOKUP($E69,'Activity 9'!$B$7:$B$13,'Activity 9'!O$7:O$13,\"N/A\",0,1)","v":"N/A"},{"$f":"_xlfn.XLOOKUP($E69,'Activity 9'!$B$7:$B$13,'Activity 9'!P$7:P$13,\"N/A\",0,1)","v":"N/A"},{"$f":"_xlfn.XLOOKUP($E69,'Activity 9'!$B$7:$B$13,'Activity 9'!Q$7:Q$13,\"N/A\",0,1)","v":"N/A"},{"$f":"_xlfn.XLOOKUP($E69,'Activity 9'!$B$7:$B$13,'Activity 9'!R$7:R$13,\"N/A\",0,1)","v":"N/A"},{"$f":"_xlfn.XLOOKUP($E69,'Activity 9'!$B$7:$B$13,'Activity 9'!S$7:S$13,\"N/A\",0,1)","v":"N/A"},{"$f":"_xlfn.XLOOKUP($E69,'Activity 9'!$B$7:$B$13,'Activity 9'!T$7:T$13,\"N/A\",0,1)","v":"N/A"},{"$f":"_xlfn.XLOOKUP($E69,'Activity 9'!$B$17:$B$23,'Activity 9'!E$17:E$23,\"N/A\",0,1)","v":"N/A"},{"$f":"_xlfn.XLOOKUP($E69,'Activity 9'!$B$17:$B$23,'Activity 9'!F$17:F$23,\"N/A\",0,1)","v":"N/A"},{"$f":"_xlfn.XLOOKUP($E69,'Activity 9'!$B$17:$B$23,'Activity 9'!G$17:G$23,\"N/A\",0,1)","v":"N/A"},{"$f":"_xlfn.XLOOKUP($E69,'Activity 9'!$B$17:$B$23,'Activity 9'!H$17:H$23,\"N/A\",0,1)","v":"N/A"},{"$f":"_xlfn.XLOOKUP($E69,'Activity 9'!$B$17:$B$23,'Activity 9'!I$17:I$23,\"N/A\",0,1)","v":"N/A"},{"$f":"_xlfn.XLOOKUP($E69,'Activity 9'!$B$17:$B$23,'Activity 9'!J$17:J$23,\"N/A\",0,1)","v":"N/A"},{"$f":"_xlfn.XLOOKUP($E69,'Activity 9'!$B$17:$B$23,'Activity 9'!K$17:K$23,\"N/A\",0,1)","v":"N/A"},{"$f":"_xlfn.XLOOKUP($E69,'Activity 9'!$B$17:$B$23,'Activity 9'!L$17:L$23,\"N/A\",0,1)","v":"N/A"},{"$f":"_xlfn.XLOOKUP($E69,'Activity 9'!$B$17:$B$23,'Activity 9'!N$17:N$23,\"N/A\",0,1)","v":"N/A"},{"$f":"_xlfn.XLOOKUP($E69,'Activity 9'!$B$17:$B$23,'Activity 9'!O$17:O$23,\"N/A\",0,1)","v":"N/A"},{"$f":"_xlfn.XLOOKUP($E69,'Activity 9'!$B$17:$B$23,'Activity 9'!Q$17:Q$23,\"N/A\",0,1)","v":"N/A"},{"$f":"_xlfn.XLOOKUP($E69,'Activity 10'!$B$7:$B$13,'Activity 10'!A$7:A$13,\"No\",0,1)","v":"No"},{"$f":"_xlfn.XLOOKUP($E69,'Activity 10'!$B$7:$B$13,'Activity 10'!J$7:J$13,\"N/A\",0,1)","v":"N/A"},{"$f":"_xlfn.XLOOKUP($E69,'Activity 10'!$B$7:$B$13,'Activity 10'!K$7:K$13,\"N/A\",0,1)","v":"N/A"},{"$f":"_xlfn.XLOOKUP($E69,'Activity 10'!$B$7:$B$13,'Activity 10'!L$7:L$13,\"N/A\",0,1)","v":"N/A"},{"$f":"_xlfn.XLOOKUP($E69,'Activity 10'!$B$7:$B$13,'Activity 10'!M$7:M$13,\"N/A\",0,1)","v":"N/A"},{"$f":"_xlfn.XLOOKUP($E69,'Activity 10'!$B$7:$B$13,'Activity 10'!N$7:N$13,\"N/A\",0,1)","v":"N/A"},{"$f":"_xlfn.XLOOKUP($E69,'Activity 10'!$B$7:$B$13,'Activity 10'!O$7:O$13,\"N/A\",0,1)","v":"N/A"},{"$f":"_xlfn.XLOOKUP($E69,'Activity 10'!$B$7:$B$13,'Activity 10'!P$7:P$13,\"N/A\",0,1)","v":"N/A"},{"$f":"_xlfn.XLOOKUP($E69,'Activity 10'!$B$7:$B$13,'Activity 10'!Q$7:Q$13,\"N/A\",0,1)","v":"N/A"},{"$f":"_xlfn.XLOOKUP($E69,'Activity 10'!$B$7:$B$13,'Activity 10'!R$7:R$13,\"N/A\",0,1)","v":"N/A"},{"$f":"_xlfn.XLOOKUP($E69,'Activity 10'!$B$7:$B$13,'Activity 10'!S$7:S$13,\"N/A\",0,1)","v":"N/A"},{"$f":"_xlfn.XLOOKUP($E69,'Activity 10'!$B$7:$B$13,'Activity 10'!T$7:T$13,\"N/A\",0,1)","v":"N/A"},{"$f":"_xlfn.XLOOKUP($E69,'Activity 10'!$B$7:$B$13,'Activity 10'!U$7:U$13,\"N/A\",0,1)","v":"N/A"},{"$f":"_xlfn.XLOOKUP($E69,'Activity 10'!$B$7:$B$13,'Activity 10'!V$7:V$13,\"N/A\",0,1)","v":"N/A"},{"$f":"_xlfn.XLOOKUP($E69,'Activity 10'!$B$17:$B$23,'Activity 10'!E$17:E$23,\"N/A\",0,1)","v":"N/A"},{"$f":"_xlfn.XLOOKUP($E69,'Activity 10'!$B$17:$B$23,'Activity 10'!F$17:F$23,\"N/A\",0,1)","v":"N/A"},{"$f":"_xlfn.XLOOKUP($E69,'Activity 10'!$B$17:$B$23,'Activity 10'!G$17:G$23,\"N/A\",0,1)","v":"N/A"},{"$f":"_xlfn.XLOOKUP($E69,'Activity 10'!$B$17:$B$23,'Activity 10'!H$17:H$23,\"N/A\",0,1)","v":"N/A"},{"$f":"_xlfn.XLOOKUP($E69,'Activity 10'!$B$17:$B$23,'Activity 10'!I$17:I$23,\"N/A\",0,1)","v":"N/A"},{"$f":"_xlfn.XLOOKUP($E69,'Activity 10'!$B$17:$B$23,'Activity 10'!J$17:J$23,\"N/A\",0,1)","v":"N/A"},{"$f":"_xlfn.XLOOKUP($E69,'Activity 10'!$B$17:$B$23,'Activity 10'!K$17:K$23,\"N/A\",0,1)","v":"N/A"},{"$f":"_xlfn.XLOOKUP($E69,'Activity 10'!$B$17:$B$23,'Activity 10'!L$17:L$23,\"N/A\",0,1)","v":"N/A"},{"$f":"_xlfn.XLOOKUP($E69,'Activity 10'!$B$17:$B$23,'Activity 10'!M$17:M$23,\"N/A\",0,1)","v":"N/A"},{"$f":"_xlfn.XLOOKUP($E69,'Activity 10'!$B$17:$B$23,'Activity 10'!N$17:N$23,\"N/A\",0,1)","v":"N/A"},{"$f":"_xlfn.XLOOKUP($E69,'Activity 10'!$B$17:$B$23,'Activity 10'!P$17:P$23,\"N/A\",0,1)","v":"N/A"},{"$f":"_xlfn.XLOOKUP($E69,'Competitive Activity 1'!B$7:B$13,'Competitive Activity 1'!A$7:A$13,\"No\",0,1)","v":"No"},{"$f":"_xlfn.XLOOKUP($E69,'Competitive Activity 1'!$B$7:$B$13,'Competitive Activity 1'!H$7:H$13,\"N/A\",0,1)","v":"N/A"},{"$f":"_xlfn.XLOOKUP($E69,'Competitive Activity 1'!$B$7:$B$13,'Competitive Activity 1'!I$7:I$13,\"N/A\",0,1)","v":"N/A"},{"$f":"_xlfn.XLOOKUP($E69,'Competitive Activity 1'!$B$7:$B$13,'Competitive Activity 1'!J$7:J$13,\"N/A\",0,1)","v":"N/A"},{"$f":"_xlfn.XLOOKUP($E69,'Competitive Activity 1'!$B$7:$B$13,'Competitive Activity 1'!K$7:K$13,\"N/A\",0,1)","v":"N/A"},{"$f":"_xlfn.XLOOKUP($E69,'Competitive Activity 1'!$B$7:$B$13,'Competitive Activity 1'!L$7:L$13,\"N/A\",0,1)","v":"N/A"},{"$f":"_xlfn.XLOOKUP($E69,'Competitive Activity 1'!$B$7:$B$13,'Competitive Activity 1'!M$7:M$13,\"N/A\",0,1)","v":"N/A"},{"$f":"_xlfn.XLOOKUP($E69,'Competitive Activity 1'!$B$7:$B$13,'Competitive Activity 1'!N$7:N$13,\"N/A\",0,1)","v":"N/A"},{"$f":"_xlfn.XLOOKUP($E69,'Competitive Activity 1'!$B$7:$B$13,'Competitive Activity 1'!O$7:O$13,\"N/A\",0,1)","v":"N/A"},{"$f":"_xlfn.XLOOKUP($E69,'Competitive Activity 1'!$B$7:$B$13,'Competitive Activity 1'!P$7:P$13,\"N/A\",0,1)","v":"N/A"},{"$f":"_xlfn.XLOOKUP($E69,'Competitive Activity 1'!$B$7:$B$13,'Competitive Activity 1'!Q$7:Q$13,\"N/A\",0,1)","v":"N/A"},{"$f":"_xlfn.XLOOKUP($E69,'Competitive Activity 1'!$B$7:$B$13,'Competitive Activity 1'!R$7:R$13,\"N/A\",0,1)","v":"N/A"},{"$f":"_xlfn.XLOOKUP($E69,'Competitive Activity 1'!$B$7:$B$13,'Competitive Activity 1'!S$7:S$13,\"N/A\",0,1)","v":"N/A"},{"$f":"_xlfn.XLOOKUP($E69,'Competitive Activity 1'!$B$7:$B$13,'Competitive Activity 1'!T$7:T$13,\"N/A\",0,1)","v":"N/A"},{"$f":"_xlfn.XLOOKUP($E69,'Competitive Activity 1'!$B$7:$B$13,'Competitive Activity 1'!U$7:U$13,\"N/A\",0,1)","v":"N/A"},{"$f":"_xlfn.XLOOKUP($E69,'Competitive Activity 1'!$B$17:$B$23,'Competitive Activity 1'!C$17:C$23,\"N/A\",0,1)","v":"N/A"},{"$f":"_xlfn.XLOOKUP($E69,'Competitive Activity 1'!$B$17:$B$23,'Competitive Activity 1'!D$17:D$23,\"N/A\",0,1)","v":"N/A"},{"$f":"_xlfn.XLOOKUP($E69,'Competitive Activity 1'!$B$17:$B$23,'Competitive Activity 1'!E$17:E$23,\"N/A\",0,1)","v":"N/A"},{"$f":"_xlfn.XLOOKUP($E69,'Competitive Activity 1'!$B$17:$B$23,'Competitive Activity 1'!F$17:F$23,\"N/A\",0,1)","v":"N/A"},{"$f":"_xlfn.XLOOKUP($E69,'Competitive Activity 1'!$B$17:$B$23,'Competitive Activity 1'!G$17:G$23,\"N/A\",0,1)","v":"N/A"},{"$f":"_xlfn.XLOOKUP($E69,'Competitive Activity 1'!$B$17:$B$23,'Competitive Activity 1'!H$17:H$23,\"N/A\",0,1)","v":"N/A"},{"$f":"_xlfn.XLOOKUP($E69,'Competitive Activity 1'!$B$17:$B$23,'Competitive Activity 1'!I$17:I$23,\"N/A\",0,1)","v":"N/A"},{"$f":"_xlfn.XLOOKUP($E69,'Competitive Activity 1'!$B$17:$B$23,'Competitive Activity 1'!J$17:J$23,\"N/A\",0,1)","v":"N/A"},{"$f":"_xlfn.XLOOKUP($E69,'Competitive Activity 1'!$B$17:$B$23,'Competitive Activity 1'!K$17:K$23,\"N/A\",0,1)","v":"N/A"},{"$f":"_xlfn.XLOOKUP($E69,'Competitive Activity 1'!$B$17:$B$23,'Competitive Activity 1'!M$17:M$23,\"N/A\",0,1)","v":"N/A"},{"$f":"_xlfn.XLOOKUP($E69,'Competitive Activity 1'!$B$17:$B$23,'Competitive Activity 1'!N$17:N$23,\"N/A\",0,1)","v":"N/A"},{"$f":"_xlfn.XLOOKUP($E69,'Competitive Activity 1'!$B$17:$B$23,'Competitive Activity 1'!P$17:P$23,\"N/A\",0,1)","v":"N/A"},{"$f":"_xlfn.XLOOKUP($E69,'Competitive Activity 2'!$B$7:$B$13,'Competitive Activity 2'!A$7:A$13,\"No\",0)","v":"No"},{"$f":"_xlfn.XLOOKUP($E69,'Competitive Activity 2'!$B$7:$B$13,'Competitive Activity 2'!L$7:L$13,\"N/A\",0)","v":"N/A"},{"$f":"_xlfn.XLOOKUP($E69,'Competitive Activity 2'!$B$7:$B$13,'Competitive Activity 2'!M$7:M$13,\"N/A\",0)","v":"N/A"},{"$f":"_xlfn.XLOOKUP($E69,'Competitive Activity 2'!$B$7:$B$13,'Competitive Activity 2'!N$7:N$13,\"N/A\",0)","v":"N/A"},{"$f":"_xlfn.XLOOKUP($E69,'Competitive Activity 2'!$B$7:$B$13,'Competitive Activity 2'!O$7:O$13,\"N/A\",0)","v":"N/A"},{"$f":"_xlfn.XLOOKUP($E69,'Competitive Activity 2'!$B$7:$B$13,'Competitive Activity 2'!P$7:P$13,\"N/A\",0)","v":"N/A"},{"$f":"_xlfn.XLOOKUP($E69,'Competitive Activity 2'!$B$7:$B$13,'Competitive Activity 2'!Q$7:Q$13,\"N/A\",0)","v":"N/A"},{"$f":"_xlfn.XLOOKUP($E69,'Competitive Activity 2'!$B$7:$B$13,'Competitive Activity 2'!R$7:R$13,\"N/A\",0)","v":"N/A"},{"$f":"_xlfn.XLOOKUP($E69,'Competitive Activity 2'!$B$7:$B$13,'Competitive Activity 2'!S$7:S$13,\"N/A\",0)","v":"N/A"},{"$f":"_xlfn.XLOOKUP($E69,'Competitive Activity 2'!$B$7:$B$13,'Competitive Activity 2'!T$7:T$13,\"N/A\",0)","v":"N/A"},{"$f":"_xlfn.XLOOKUP($E69,'Competitive Activity 2'!$B$7:$B$13,'Competitive Activity 2'!U$7:U$13,\"N/A\",0)","v":"N/A"},{"$f":"_xlfn.XLOOKUP($E69,'Competitive Activity 2'!$B$17:$B$23,'Competitive Activity 2'!D$17:D$23,\"N/A\",0)","v":"N/A"},{"$f":"_xlfn.XLOOKUP($E69,'Competitive Activity 2'!$B$17:$B$23,'Competitive Activity 2'!E$17:E$23,\"N/A\",0)","v":"N/A"},{"$f":"_xlfn.XLOOKUP($E69,'Competitive Activity 2'!$B$17:$B$23,'Competitive Activity 2'!F$17:F$23,\"N/A\",0)","v":"N/A"},{"$f":"_xlfn.XLOOKUP($E69,'Competitive Activity 2'!$B$17:$B$23,'Competitive Activity 2'!G$17:G$23,\"N/A\",0)","v":"N/A"},{"$f":"_xlfn.XLOOKUP($E69,'Competitive Activity 2'!$B$17:$B$23,'Competitive Activity 2'!H$17:H$23,\"N/A\",0)","v":"N/A"},{"$f":"_xlfn.XLOOKUP($E69,'Competitive Activity 2'!$B$17:$B$23,'Competitive Activity 2'!I$17:I$23,\"N/A\",0)","v":"N/A"},{"$f":"_xlfn.XLOOKUP($E69,'Competitive Activity 2'!$B$17:$B$23,'Competitive Activity 2'!J$17:J$23,\"N/A\",0)","v":"N/A"},{"$f":"_xlfn.XLOOKUP($E69,'Competitive Activity 2'!$B$17:$B$23,'Competitive Activity 2'!K$17:K$23,\"N/A\",0)","v":"N/A"},{"$f":"_xlfn.XLOOKUP($E69,'Competitive Activity 2'!$B$17:$B$23,'Competitive Activity 2'!L$17:L$23,\"N/A\",0)","v":"N/A"},{"$f":"_xlfn.XLOOKUP($E69,'Competitive Activity 2'!$B$17:$B$23,'Competitive Activity 2'!M$17:M$23,\"N/A\",0)","v":"N/A"},{"$f":"_xlfn.XLOOKUP($E69,'Competitive Activity 2'!$B$17:$B$23,'Competitive Activity 2'!N$17:N$23,\"N/A\",0)","v":"N/A"},{"$f":"_xlfn.XLOOKUP($E69,'Competitive Activity 2'!$B$27:$B$33,'Competitive Activity 2'!D$27:D$33,\"N/A\",0)","v":"N/A"},{"$f":"_xlfn.XLOOKUP($E69,'Competitive Activity 2'!$B$27:$B$33,'Competitive Activity 2'!E$27:E$33,\"N/A\",0)","v":"N/A"},{"$f":"_xlfn.XLOOKUP($E69,'Competitive Activity 2'!$B$27:$B$33,'Competitive Activity 2'!F$27:F$33,\"N/A\",0)","v":"N/A"},{"$f":"_xlfn.XLOOKUP($E69,'Competitive Activity 2'!$B$27:$B$33,'Competitive Activity 2'!G$27:G$33,\"N/A\",0)","v":"N/A"},{"$f":"_xlfn.XLOOKUP($E69,'Competitive Activity 2'!$B$27:$B$33,'Competitive Activity 2'!H$27:H$33,\"N/A\",0)","v":"N/A"},{"$f":"_xlfn.XLOOKUP($E69,'Competitive Activity 2'!$B$27:$B$33,'Competitive Activity 2'!I$27:I$33,\"N/A\",0)","v":"N/A"},{"$f":"_xlfn.XLOOKUP($E69,'Competitive Activity 2'!$B$27:$B$33,'Competitive Activity 2'!J$27:J$33,\"N/A\",0)","v":"N/A"},{"$f":"_xlfn.XLOOKUP($E69,'Competitive Activity 2'!$B$27:$B$33,'Competitive Activity 2'!K$27:K$33,\"N/A\",0)","v":"N/A"},{"$f":"_xlfn.XLOOKUP($E69,'Competitive Activity 2'!$B$27:$B$33,'Competitive Activity 2'!M$27:M$33,\"N/A\",0)","v":"N/A"}]
[{"$f":"'1-Cover Sheet'!$C$8","v":"Select One"},{"$f":"'1-Cover Sheet'!$F$8","v":"Select One"},{"$f":"'Summary Sheet'!$D$8","v":0},{"$f":"'Summary Sheet'!$D$10","v":0},{"$f":"'Drop Down Box'!B234","v":0},{"$f":"'Drop Down Box'!C234","v":0},{"$f":"'Drop Down Box'!D234","v":"Select One"},{"$f":"_xlfn.XLOOKUP(E70,'Drop Down Box'!$B$166:$B$249,'Drop Down Box'!$A$166:$A$249,\"Unknown\",0)","v":"Activity 1"},{"$f":"_xlfn.XLOOKUP($E70,'Activity 10'!$B$17:$B$23,'Activity 10'!$O$17:$O$23,\"N/A\",0)","v":"N/A"},{"$f":"_xlfn.XLOOKUP($E70,'Activity 10'!$B$17:$B$23,'Activity 10'!$Q$17:$Q$23,\"N/A\",0)","v":"N/A"},{"$f":"_xlfn.XLOOKUP($E70,'Activity 10'!$B$7:$B$13,'Activity 10'!G$7:G$13,\"N/A\",0)","v":"N/A"},{"$f":"_xlfn.XLOOKUP($E70,'Activity 10'!$B$7:$B$13,'Activity 10'!H$7:H$13,\"N/A\",0)","v":"N/A"},{"$f":"_xlfn.XLOOKUP($E70,'Activity 10'!$B$7:$B$13,'Activity 10'!I$7:I$13,\"N/A\",0)","v":"N/A"},{"$f":"_xlfn.XLOOKUP($E70,'Activity 1'!$B$7:$B$13,'Activity 1'!$A$7:$A$13,\"No\",0,1)","v":"No"},{"$f":"_xlfn.XLOOKUP($E70,'Activity 1'!$B$7:$B$13,'Activity 1'!$H$7:$H$13,\"N/A\",0,1)","v":"N/A"},{"$f":"_xlfn.XLOOKUP($E70,'Activity 1'!$B$7:$B$13,'Activity 1'!I$7:I$13,\"N/A\",0,1)","v":"N/A"},{"$f":"_xlfn.XLOOKUP($E70,'Activity 1'!$B$7:$B$13,'Activity 1'!J$7:J$13,\"N/A\",0,1)","v":"N/A"},{"$f":"_xlfn.XLOOKUP($E70,'Activity 1'!$B$7:$B$13,'Activity 1'!K$7:K$13,\"N/A\",0,1)","v":"N/A"},{"$f":"_xlfn.XLOOKUP($E70,'Activity 1'!$B$7:$B$13,'Activity 1'!L$7:L$13,\"N/A\",0,1)","v":"N/A"},{"$f":"_xlfn.XLOOKUP($E70,'Activity 1'!$B$7:$B$13,'Activity 1'!M$7:M$13,\"N/A\",0,1)","v":"N/A"},{"$f":"_xlfn.XLOOKUP($E70,'Activity 1'!$B$7:$B$13,'Activity 1'!N$7:N$13,\"N/A\",0,1)","v":"N/A"},0,{"$f":"_xlfn.XLOOKUP($E70,'Activity 1'!$B$7:$B$13,'Activity 1'!O$7:O$13,\"N/A\",0,1)","v":"N/A"},{"$f":"_xlfn.XLOOKUP($E70,'Activity 1'!$B$7:$B$13,'Activity 1'!P$7:P$13,\"N/A\",0,1)","v":"N/A"},{"$f":"_xlfn.XLOOKUP($E70,'Activity 1'!$B$7:$B$13,'Activity 1'!Q$7:Q$13,\"N/A\",0,1)","v":"N/A"},{"$f":"_xlfn.XLOOKUP($E70,'Activity 1'!$B$7:$B$13,'Activity 1'!R$7:R$13,\"N/A\",0,1)","v":"N/A"},{"$f":"_xlfn.XLOOKUP($E70,'Activity 1'!$B$7:$B$13,'Activity 1'!S$7:S$13,\"N/A\",0,1)","v":"N/A"},{"$f":"_xlfn.XLOOKUP($E70,'Activity 1'!$B$7:$B$13,'Activity 1'!T$7:T$13,\"N/A\",0,1)","v":"N/A"},{"$f":"_xlfn.XLOOKUP($E70,'Activity 1'!$B$7:$B$13,'Activity 1'!U$7:U$13,\"N/A\",0,1)","v":"N/A"},{"$f":"_xlfn.XLOOKUP($E70,'Activity 1'!$B$7:$B$13,'Activity 1'!V$7:V$13,\"N/A\",0,1)","v":"N/A"},{"$f":"_xlfn.XLOOKUP($E70,'Activity 1'!$B$17:$B$23,'Activity 1'!C$17:C$23,\"N/A\",0,1)","v":"N/A"},{"$f":"_xlfn.XLOOKUP($E70,'Activity 1'!$B$17:$B$23,'Activity 1'!D$17:D$23,\"N/A\",0,1)","v":"N/A"},{"$f":"_xlfn.XLOOKUP($E70,'Activity 1'!$B$17:$B$23,'Activity 1'!E$17:E$23,\"N/A\",0,1)","v":"N/A"},{"$f":"_xlfn.XLOOKUP($E70,'Activity 1'!$B$17:$B$23,'Activity 1'!F$17:F$23,\"N/A\",0,1)","v":"N/A"},{"$f":"_xlfn.XLOOKUP($E70,'Activity 1'!$B$17:$B$23,'Activity 1'!G$17:G$23,\"N/A\",0,1)","v":"N/A"},{"$f":"_xlfn.XLOOKUP($E70,'Activity 1'!$B$17:$B$23,'Activity 1'!H$17:H$23,\"N/A\",0,1)","v":"N/A"},{"$f":"_xlfn.XLOOKUP($E70,'Activity 1'!$B$17:$B$23,'Activity 1'!I$17:I$23,\"N/A\",0,1)","v":"N/A"},{"$f":"_xlfn.XLOOKUP($E70,'Activity 1'!$B$17:$B$23,'Activity 1'!J$17:J$23,\"N/A\",0,1)","v":"N/A"},{"$f":"_xlfn.XLOOKUP($E70,'Activity 1'!$B$17:$B$23,'Activity 1'!K$17:K$23,\"N/A\",0,1)","v":"N/A"},{"$f":"_xlfn.XLOOKUP($E70,'Activity 1'!$B$17:$B$23,'Activity 1'!L$17:L$23,\"N/A\",0,1)","v":"N/A"},{"$f":"_xlfn.XLOOKUP($E70,'Activity 1'!$B$17:$B$23,'Activity 1'!M$17:M$23,\"N/A\",0,1)","v":"N/A"},{"$f":"_xlfn.XLOOKUP($E70,'Activity 1'!$B$17:$B$23,'Activity 1'!O$17:O$23,\"N/A\",0,1)","v":"N/A"},{"$f":"_xlfn.XLOOKUP($E70,'Activity 1'!$B$17:$B$23,'Activity 1'!Q$17:Q$23,\"N/A\",0,1)","v":"N/A"},{"$f":"_xlfn.XLOOKUP($E70,'Activity 2'!$B$7:$B$13,'Activity 2'!$A$7:$A$13,\"No\",0,1)","v":"No"},{"$f":"_xlfn.XLOOKUP($E70,'Activity 2'!B$7:B$13,'Activity 2'!H$7:H$13,\"N/A\",0)","v":"N/A"},{"$f":"_xlfn.XLOOKUP($E70,'Activity 2'!C$7:C$13,'Activity 2'!I$7:I$13,\"N/A\",0)","v":"N/A"},{"$f":"_xlfn.XLOOKUP($E70,'Activity 2'!D$7:D$13,'Activity 2'!J$7:J$13,\"N/A\",0)","v":"N/A"},{"$f":"_xlfn.XLOOKUP($E70,'Activity 2'!E$7:E$13,'Activity 2'!K$7:K$13,\"N/A\",0)","v":"N/A"},{"$f":"_xlfn.XLOOKUP($E70,'Activity 2'!F$7:F$13,'Activity 2'!L$7:L$13,\"N/A\",0)","v":"N/A"},{"$f":"_xlfn.XLOOKUP($E70,'Activity 2'!G$7:G$13,'Activity 2'!M$7:M$13,\"N/A\",0)","v":"N/A"},{"$f":"_xlfn.XLOOKUP($E70,'Activity 2'!H$7:H$13,'Activity 2'!N$7:N$13,\"N/A\",0)","v":"N/A"},{"$f":"_xlfn.XLOOKUP($E70,'Activity 2'!I$7:I$13,'Activity 2'!O$7:O$13,\"N/A\",0)","v":"N/A"},{"$f":"_xlfn.XLOOKUP($E70,'Activity 2'!J$7:J$13,'Activity 2'!P$7:P$13,\"N/A\",0)","v":"N/A"},{"$f":"_xlfn.XLOOKUP($E70,'Activity 2'!K$7:K$13,'Activity 2'!Q$7:Q$13,\"N/A\",0)","v":"N/A"},{"$f":"_xlfn.XLOOKUP($E70,'Activity 2'!L$7:L$13,'Activity 2'!R$7:R$13,\"N/A\",0)","v":"N/A"},{"$f":"_xlfn.XLOOKUP($E70,'Activity 2'!M$7:M$13,'Activity 2'!S$7:S$13,\"N/A\",0)","v":"N/A"},{"$f":"_xlfn.XLOOKUP($E70,'Activity 2'!N$7:N$13,'Activity 2'!T$7:T$13,\"N/A\",0)","v":"N/A"},{"$f":"_xlfn.XLOOKUP($E70,'Activity 2'!O$7:O$13,'Activity 2'!U$7:U$13,\"N/A\",0)","v":"N/A"},{"$f":"_xlfn.XLOOKUP($E70,'Activity 2'!P$7:P$13,'Activity 2'!V$7:V$13,\"N/A\",0)","v":"N/A"},{"$f":"_xlfn.XLOOKUP($E70,'Activity 2'!$B$17:$B$23,'Activity 2'!C$17:C$23,\"N/A\",0,1)","v":"N/A"},{"$f":"_xlfn.XLOOKUP($E70,'Activity 2'!$B$17:$B$23,'Activity 2'!D$17:D$23,\"N/A\",0,1)","v":"N/A"},{"$f":"_xlfn.XLOOKUP($E70,'Activity 2'!$B$17:$B$23,'Activity 2'!E$17:E$23,\"N/A\",0,1)","v":"N/A"},{"$f":"_xlfn.XLOOKUP($E70,'Activity 2'!$B$17:$B$23,'Activity 2'!F$17:F$23,\"N/A\",0,1)","v":"N/A"},{"$f":"_xlfn.XLOOKUP($E70,'Activity 2'!$B$17:$B$23,'Activity 2'!G$17:G$23,\"N/A\",0,1)","v":"N/A"},{"$f":"_xlfn.XLOOKUP($E70,'Activity 2'!$B$17:$B$23,'Activity 2'!H$17:H$23,\"N/A\",0,1)","v":"N/A"},{"$f":"_xlfn.XLOOKUP($E70,'Activity 2'!$B$17:$B$23,'Activity 2'!I$17:I$23,\"N/A\",0,1)","v":"N/A"},{"$f":"_xlfn.XLOOKUP($E70,'Activity 2'!$B$17:$B$23,'Activity 2'!J$17:J$23,\"N/A\",0,1)","v":"N/A"},{"$f":"_xlfn.XLOOKUP($E70,'Activity 2'!$B$17:$B$23,'Activity 2'!K$17:K$23,\"N/A\",0,1)","v":"N/A"},{"$f":"_xlfn.XLOOKUP($E70,'Activity 2'!$B$17:$B$23,'Activity 2'!L$17:L$23,\"N/A\",0,1)","v":"N/A"},{"$f":"_xlfn.XLOOKUP($E70,'Activity 2'!$B$17:$B$23,'Activity 2'!M$17:M$23,\"N/A\",0,1)","v":"N/A"},{"$f":"_xlfn.XLOOKUP($E70,'Activity 2'!$B$17:$B$23,'Activity 2'!O$17:O$23,\"N/A\",0,1)","v":"N/A"},{"$f":"_xlfn.XLOOKUP($E70,'Activity 2'!$B$17:$B$23,'Activity 2'!Q$17:Q$23,\"N/A\",0,1)","v":"N/A"},null,{"$f":"_xlfn.XLOOKUP($E70,'Activity 3'!$B$8:$B$14,'Activity 3'!K$8:K$14,\"N/A\",0,1)","v":"N/A"},{"$f":"_xlfn.XLOOKUP($E70,'Activity 3'!$B$8:$B$14,'Activity 3'!L$8:L$14,\"N/A\",0,1)","v":"N/A"},{"$f":"_xlfn.XLOOKUP($E70,'Activity 3'!$B$8:$B$14,'Activity 3'!M$8:M$14,\"N/A\",0,1)","v":"N/A"},{"$f":"_xlfn.XLOOKUP($E70,'Activity 3'!$B$8:$B$14,'Activity 3'!N$8:N$14,\"N/A\",0,1)","v":"N/A"},{"$f":"_xlfn.XLOOKUP($E70,'Activity 3'!$B$8:$B$14,'Activity 3'!O$8:O$14,\"N/A\",0,1)","v":"N/A"},{"$f":"_xlfn.XLOOKUP($E70,'Activity 3'!$B$8:$B$14,'Activity 3'!R$8:R$14,\"N/A\",0,1)","v":"N/A"},{"$f":"_xlfn.XLOOKUP($E70,'Activity 4'!$B$8:$B$14,'Activity 4'!$A$8:$A$14,\"No\",0,1)","v":"No"},{"$f":"_xlfn.XLOOKUP($E70,'Activity 4'!$B$8:$B$14,'Activity 4'!L$8:L$14,\"N/A\",0,1)","v":"N/A"},{"$f":"_xlfn.XLOOKUP($E70,'Activity 4'!$B$8:$B$14,'Activity 4'!I$8:I$14,\"N/A\",0,1)","v":"N/A"},{"$f":"_xlfn.XLOOKUP($E70,'Activity 4'!$B$8:$B$14,'Activity 4'!M$8:M$14,\"N/A\",0,1)","v":"N/A"},{"$f":"_xlfn.XLOOKUP($E70,'Activity 5'!$B$8:$B$14,'Activity 5'!$A$8:$A$14,\"No\",0,1)","v":"No"},{"$f":"_xlfn.XLOOKUP($E70,'Activity 5'!$B$8:$B$14,'Activity 5'!J$8:J$14,\"N/A\",0,1)","v":"N/A"},{"$f":"_xlfn.XLOOKUP($E70,'Activity 5'!$B$8:$B$14,'Activity 5'!K$8:K$14,\"N/A\",0,1)","v":"N/A"},{"$f":"_xlfn.XLOOKUP($E70,'Activity 5'!$B$8:$B$14,'Activity 5'!N$8:N$14,\"N/A\",0,1)","v":"N/A"},{"$f":"_xlfn.XLOOKUP($E70,'Activity 5'!$B$8:$B$14,'Activity 5'!O$8:O$14,\"N/A\",0,1)","v":"N/A"},{"$f":"_xlfn.XLOOKUP($E70,'Activity 5'!$B$8:$B$14,'Activity 5'!P$8:P$14,\"N/A\",0,1)","v":"N/A"},{"$f":"_xlfn.XLOOKUP($E70,'Activity 5'!$B$8:$B$14,'Activity 5'!Q$8:Q$14,\"N/A\",0,1)","v":"N/A"},{"$f":"_xlfn.XLOOKUP($E70,'Activity 5'!$B$8:$B$14,'Activity 5'!R$8:R$14,\"N/A\",0,1)","v":"N/A"},{"$f":"_xlfn.XLOOKUP($E70,'Activity 6'!$B$7:$B$13,'Activity 6'!A$7:A$13,\"No\",0,1)","v":"No"},{"$f":"_xlfn.XLOOKUP($E70,'Activity 6'!$B$7:$B$13,'Activity 6'!K$7:K$13,\"N/A\",0,1)","v":"N/A"},{"$f":"_xlfn.XLOOKUP($E70,'Activity 6'!$B$7:$B$13,'Activity 6'!L$7:L$13,\"N/A\",0,1)","v":"N/A"},{"$f":"_xlfn.XLOOKUP($E70,'Activity 6'!$B$7:$B$13,'Activity 6'!M$7:M$13,\"N/A\",0,1)","v":"N/A"},{"$f":"_xlfn.XLOOKUP($E70,'Activity 6'!$B$7:$B$13,'Activity 6'!N$7:N$13,\"N/A\",0,1)","v":"N/A"},{"$f":"_xlfn.XLOOKUP($E70,'Activity 6'!$B$7:$B$13,'Activity 6'!O$7:O$13,\"N/A\",0,1)","v":"N/A"},{"$f":"_xlfn.XLOOKUP($E70,'Activity 6'!$B$7:$B$13,'Activity 6'!P$7:P$13,\"N/A\",0,1)","v":"N/A"},{"$f":"_xlfn.XLOOKUP($E70,'Activity 6'!$B$7:$B$13,'Activity 6'!Q$7:Q$13,\"N/A\",0,1)","v":"N/A"},{"$f":"_xlfn.XLOOKUP($E70,'Activity 6'!$B$7:$B$13,'Activity 6'!R$7:R$13,\"N/A\",0,1)","v":"N/A"},{"$f":"_xlfn.XLOOKUP($E70,'Activity 6'!$B$7:$B$13,'Activity 6'!S$7:S$13,\"N/A\",0,1)","v":"N/A"},{"$f":"_xlfn.XLOOKUP($E70,'Activity 6'!$B$7:$B$13,'Activity 6'!T$7:T$13,\"N/A\",0,1)","v":"N/A"},{"$f":"_xlfn.XLOOKUP($E70,'Activity 6'!$B$7:$B$13,'Activity 6'!U$7:U$13,\"N/A\",0,1)","v":"N/A"},{"$f":"_xlfn.XLOOKUP($E70,'Activity 6'!$B$22:$B$28,'Activity 6'!C$22:C$28,\"N/A\",0,1)","v":"N/A"},{"$f":"_xlfn.XLOOKUP($E70,'Activity 6'!$B$22:$B$28,'Activity 6'!D$22:D$28,\"N/A\",0,1)","v":"N/A"},{"$f":"_xlfn.XLOOKUP($E70,'Activity 6'!$B$22:$B$28,'Activity 6'!E$22:E$28,\"N/A\",0,1)","v":"N/A"},{"$f":"_xlfn.XLOOKUP($E70,'Activity 6'!$B$22:$B$28,'Activity 6'!F$22:F$28,\"N/A\",0,1)","v":"N/A"},{"$f":"_xlfn.XLOOKUP($E70,'Activity 6'!$B$22:$B$28,'Activity 6'!G$22:G$28,\"N/A\",0,1)","v":"N/A"},{"$f":"_xlfn.XLOOKUP($E70,'Activity 6'!$B$22:$B$28,'Activity 6'!H$22:H$28,\"N/A\",0,1)","v":"N/A"},{"$f":"_xlfn.XLOOKUP($E70,'Activity 6'!$B$22:$B$28,'Activity 6'!I$22:I$28,\"N/A\",0,1)","v":"N/A"},{"$f":"_xlfn.XLOOKUP($E70,'Activity 6'!$B$22:$B$28,'Activity 6'!J$22:J$28,\"N/A\",0,1)","v":"N/A"},{"$f":"_xlfn.XLOOKUP($E70,'Activity 6'!$B$22:$B$28,'Activity 6'!K$22:K$28,\"N/A\",0,1)","v":"N/A"},{"$f":"_xlfn.XLOOKUP($E70,'Activity 6'!$B$22:$B$28,'Activity 6'!L$22:L$28,\"N/A\",0,1)","v":"N/A"},{"$f":"_xlfn.XLOOKUP($E70,'Activity 6'!$B$22:$B$28,'Activity 6'!M$22:M$28,\"N/A\",0,1)","v":"N/A"},{"$f":"_xlfn.XLOOKUP($E70,'Activity 6'!$B$22:$B$28,'Activity 6'!N$22:N$28,\"N/A\",0,1)","v":"N/A"},{"$f":"_xlfn.XLOOKUP($E70,'Activity 6'!$B$32:$B$38,'Activity 6'!C$32:C$38,\"N/A\",0,1)","v":"N/A"},{"$f":"_xlfn.XLOOKUP($E70,'Activity 6'!$B$32:$B$38,'Activity 6'!D$32:D$38,\"N/A\",0,1)","v":"N/A"},{"$f":"_xlfn.XLOOKUP($E70,'Activity 6'!$B$32:$B$38,'Activity 6'!E$32:E$38,\"N/A\",0,1)","v":"N/A"},{"$f":"_xlfn.XLOOKUP($E70,'Activity 6'!$B$32:$B$38,'Activity 6'!F$32:F$38,\"N/A\",0,1)","v":"N/A"},{"$f":"_xlfn.XLOOKUP($E70,'Activity 6'!$B$32:$B$38,'Activity 6'!G$32:G$38,\"N/A\",0,1)","v":"N/A"},{"$f":"_xlfn.XLOOKUP($E70,'Activity 6'!$B$32:$B$38,'Activity 6'!H$32:H$38,\"N/A\",0,1)","v":"N/A"},{"$f":"_xlfn.XLOOKUP($E70,'Activity 6'!$B$32:$B$38,'Activity 6'!I$32:I$38,\"N/A\",0,1)","v":"N/A"},{"$f":"_xlfn.XLOOKUP($E70,'Activity 6'!$B$32:$B$38,'Activity 6'!J$32:J$38,\"N/A\",0,1)","v":"N/A"},{"$f":"_xlfn.XLOOKUP($E70,'Activity 6'!$B$32:$B$38,'Activity 6'!K$32:K$38,\"N/A\",0,1)","v":"N/A"},{"$f":"_xlfn.XLOOKUP($E70,'Activity 6'!$B$32:$B$38,'Activity 6'!M$32:M$38,\"N/A\",0,1)","v":"N/A"},{"$f":"_xlfn.XLOOKUP($E70,'Activity 7'!$B$7:$B$13,'Activity 7'!$A$7:$A$13,\"No\",0,1)","v":"No"},{"$f":"_xlfn.XLOOKUP($E70,'Activity 7'!$B$7:$B$13,'Activity 7'!M$7:M$13,\"N/A\",0,1)","v":"N/A"},{"$f":"_xlfn.XLOOKUP($E70,'Activity 7'!$B$7:$B$13,'Activity 7'!K$7:K$13,\"N/A\",0,1)","v":"N/A"},{"$f":"_xlfn.XLOOKUP($E70,'Activity 7'!$B$7:$B$13,'Activity 7'!N$7:N$13,\"N/A\",0,1)","v":"N/A"},{"$f":"_xlfn.XLOOKUP($E70,'Activity 7'!$B$7:$B$13,'Activity 7'!O$7:O$13,\"N/A\",0,1)","v":"N/A"},{"$f":"_xlfn.XLOOKUP($E70,'Activity 7'!$B$7:$B$13,'Activity 7'!P$7:P$13,\"N/A\",0,1)","v":"N/A"},{"$f":"_xlfn.XLOOKUP($E70,'Activity 7'!$B$7:$B$13,'Activity 7'!Q$7:Q$13,\"N/A\",0,1)","v":"N/A"},{"$f":"_xlfn.XLOOKUP($E70,'Activity 7'!$B$7:$B$13,'Activity 7'!R$7:R$13,\"N/A\",0,1)","v":"N/A"},{"$f":"_xlfn.XLOOKUP($E70,'Activity 7'!$B$7:$B$13,'Activity 7'!S$7:S$13,\"N/A\",0,1)","v":"N/A"},{"$f":"_xlfn.XLOOKUP($E70,'Activity 7'!$B$7:$B$13,'Activity 7'!T$7:T$13,\"N/A\",0,1)","v":"N/A"},{"$f":"_xlfn.XLOOKUP($E70,'Activity 7'!$B$7:$B$13,'Activity 7'!U$7:U$13,\"N/A\",0,1)","v":"N/A"},{"$f":"_xlfn.XLOOKUP($E70,'Activity 7'!$B$7:$B$13,'Activity 7'!V$7:V$13,\"N/A\",0,1)","v":"N/A"},{"$f":"_xlfn.XLOOKUP($E70,'Activity 7'!$B$17:$B$23,'Activity 7'!E$17:E$23,\"N/A\",0,1)","v":"N/A"},{"$f":"_xlfn.XLOOKUP($E70,'Activity 7'!$B$17:$B$23,'Activity 7'!G$17:G$23,\"N/A\",0,1)","v":"N/A"},{"$f":"_xlfn.XLOOKUP($E70,'Activity 7'!$B$17:$B$23,'Activity 7'!I$17:I$23,\"N/A\",0,1)","v":"N/A"},{"$f":"_xlfn.XLOOKUP($E70,'Activity 7'!$B$17:$B$23,'Activity 7'!J$17:J$23,\"N/A\",0,1)","v":"N/A"},{"$f":"_xlfn.XLOOKUP($E70,'Activity 7'!$B$17:$B$23,'Activity 7'!K$17:K$23,\"N/A\",0,1)","v":"N/A"},{"$f":"_xlfn.XLOOKUP($E70,'Activity 7'!$B$17:$B$23,'Activity 7'!L$17:L$23,\"N/A\",0,1)","v":"N/A"},{"$f":"_xlfn.XLOOKUP($E70,'Activity 7'!$B$17:$B$23,'Activity 7'!M$17:M$23,\"N/A\",0,1)","v":"N/A"},{"$f":"_xlfn.XLOOKUP($E70,'Activity 7'!$B$17:$B$23,'Activity 7'!N$17:N$23,\"N/A\",0,1)","v":"N/A"},{"$f":"_xlfn.XLOOKUP($E70,'Activity 7'!$B$17:$B$23,'Activity 7'!P$17:P$23,\"N/A\",0,1)","v":"N/A"},{"$f":"_xlfn.XLOOKUP($E70,'Activity 8'!$B$7:$B$13,'Activity 8'!A$7:A$13,\"No\",0,1)","v":"No"},{"$f":"_xlfn.XLOOKUP($E70,'Activity 8'!$B$7:$B$13,'Activity 8'!I$7:I$13,\"N/A\",0,1)","v":"N/A"},{"$f":"_xlfn.XLOOKUP($E70,'Activity 8'!$B$7:$B$13,'Activity 8'!J$7:J$13,\"N/A\",0,1)","v":"N/A"},{"$f":"_xlfn.XLOOKUP($E70,'Activity 8'!$B$7:$B$13,'Activity 8'!K$7:K$13,\"N/A\",0,1)","v":"N/A"},{"$f":"_xlfn.XLOOKUP($E70,'Activity 8'!$B$7:$B$13,'Activity 8'!L$7:L$13,\"N/A\",0,1)","v":"N/A"},{"$f":"_xlfn.XLOOKUP($E70,'Activity 8'!$B$7:$B$13,'Activity 8'!M$7:M$13,\"N/A\",0,1)","v":"N/A"},{"$f":"_xlfn.XLOOKUP($E70,'Activity 8'!$B$7:$B$13,'Activity 8'!N$7:N$13,\"N/A\",0,1)","v":"N/A"},{"$f":"_xlfn.XLOOKUP($E70,'Activity 8'!$B$7:$B$13,'Activity 8'!O$7:O$13,\"N/A\",0,1)","v":"N/A"},{"$f":"_xlfn.XLOOKUP($E70,'Activity 8'!$B$7:$B$13,'Activity 8'!P$7:P$13,\"N/A\",0,1)","v":"N/A"},{"$f":"_xlfn.XLOOKUP($E70,'Activity 8'!$B$7:$B$13,'Activity 8'!Q$7:Q$13,\"N/A\",0,1)","v":"N/A"},{"$f":"_xlfn.XLOOKUP($E70,'Activity 8'!$B$7:$B$13,'Activity 8'!R$7:R$13,\"N/A\",0,1)","v":"N/A"},{"$f":"_xlfn.XLOOKUP($E70,'Activity 8'!$B$7:$B$13,'Activity 8'!S$7:S$13,\"N/A\",0,1)","v":"N/A"},{"$f":"_xlfn.XLOOKUP($E70,'Activity 8'!$B$7:$B$13,'Activity 8'!T$7:T$13,\"N/A\",0,1)","v":"N/A"},{"$f":"_xlfn.XLOOKUP($E70,'Activity 8'!$B$7:$B$13,'Activity 8'!U$7:U$13,\"N/A\",0,1)","v":"N/A"},{"$f":"_xlfn.XLOOKUP($E70,'Activity 8'!$B$7:$B$13,'Activity 8'!V$7:V$13,\"N/A\",0,1)","v":"N/A"},{"$f":"_xlfn.XLOOKUP($E70,'Activity 8'!$B$17:$B$23,'Activity 8'!D$17:D$23,\"N/A\",0,1)","v":"N/A"},{"$f":"_xlfn.XLOOKUP($E70,'Activity 8'!$B$17:$B$23,'Activity 8'!E$17:E$23,\"N/A\",0,1)","v":"N/A"},{"$f":"_xlfn.XLOOKUP($E70,'Activity 8'!$B$17:$B$23,'Activity 8'!F$17:F$23,\"N/A\",0,1)","v":"N/A"},{"$f":"_xlfn.XLOOKUP($E70,'Activity 8'!$B$17:$B$23,'Activity 8'!G$17:G$23,\"N/A\",0,1)","v":"N/A"},{"$f":"_xlfn.XLOOKUP($E70,'Activity 8'!$B$17:$B$23,'Activity 8'!H$17:H$23,\"N/A\",0,1)","v":"N/A"},{"$f":"_xlfn.XLOOKUP($E70,'Activity 8'!$B$17:$B$23,'Activity 8'!I$17:I$23,\"N/A\",0,1)","v":"N/A"},{"$f":"_xlfn.XLOOKUP($E70,'Activity 8'!$B$17:$B$23,'Activity 8'!J$17:J$23,\"N/A\",0,1)","v":"N/A"},{"$f":"_xlfn.XLOOKUP($E70,'Activity 8'!$B$17:$B$23,'Activity 8'!K$17:K$23,\"N/A\",0,1)","v":"N/A"},{"$f":"_xlfn.XLOOKUP($E70,'Activity 8'!$B$17:$B$23,'Activity 8'!L$17:L$23,\"N/A\",0,1)","v":"N/A"},{"$f":"_xlfn.XLOOKUP($E70,'Activity 8'!$B$17:$B$23,'Activity 8'!M$17:M$23,\"N/A\",0,1)","v":"N/A"},{"$f":"_xlfn.XLOOKUP($E70,'Activity 8'!$B$17:$B$23,'Activity 8'!N$17:N$23,\"N/A\",0,1)","v":"N/A"},{"$f":"_xlfn.XLOOKUP($E70,'Activity 8'!$B$17:$B$23,'Activity 8'!P$17:P$23,\"N/A\",0,1)","v":"N/A"},{"$f":"_xlfn.XLOOKUP(E70,'Activity 9'!$B$7:$B$13,'Activity 9'!$A$7:$A$13,\"No\",0,1)","v":"No"},{"$f":"_xlfn.XLOOKUP($E70,'Activity 9'!$B$7:$B$13,'Activity 9'!J$7:J$13,\"N/A\",0,1)","v":"N/A"},{"$f":"_xlfn.XLOOKUP($E70,'Activity 9'!$B$7:$B$13,'Activity 9'!K$7:K$13,\"N/A\",0,1)","v":"N/A"},{"$f":"_xlfn.XLOOKUP($E70,'Activity 9'!$B$7:$B$13,'Activity 9'!L$7:L$13,\"N/A\",0,1)","v":"N/A"},{"$f":"_xlfn.XLOOKUP($E70,'Activity 9'!$B$7:$B$13,'Activity 9'!M$7:M$13,\"N/A\",0,1)","v":"N/A"},{"$f":"_xlfn.XLOOKUP($E70,'Activity 9'!$B$7:$B$13,'Activity 9'!N$7:N$13,\"N/A\",0,1)","v":"N/A"},{"$f":"_xlfn.XLOOKUP($E70,'Activity 9'!$B$7:$B$13,'Activity 9'!O$7:O$13,\"N/A\",0,1)","v":"N/A"},{"$f":"_xlfn.XLOOKUP($E70,'Activity 9'!$B$7:$B$13,'Activity 9'!P$7:P$13,\"N/A\",0,1)","v":"N/A"},{"$f":"_xlfn.XLOOKUP($E70,'Activity 9'!$B$7:$B$13,'Activity 9'!Q$7:Q$13,\"N/A\",0,1)","v":"N/A"},{"$f":"_xlfn.XLOOKUP($E70,'Activity 9'!$B$7:$B$13,'Activity 9'!R$7:R$13,\"N/A\",0,1)","v":"N/A"},{"$f":"_xlfn.XLOOKUP($E70,'Activity 9'!$B$7:$B$13,'Activity 9'!S$7:S$13,\"N/A\",0,1)","v":"N/A"},{"$f":"_xlfn.XLOOKUP($E70,'Activity 9'!$B$7:$B$13,'Activity 9'!T$7:T$13,\"N/A\",0,1)","v":"N/A"},{"$f":"_xlfn.XLOOKUP($E70,'Activity 9'!$B$17:$B$23,'Activity 9'!E$17:E$23,\"N/A\",0,1)","v":"N/A"},{"$f":"_xlfn.XLOOKUP($E70,'Activity 9'!$B$17:$B$23,'Activity 9'!F$17:F$23,\"N/A\",0,1)","v":"N/A"},{"$f":"_xlfn.XLOOKUP($E70,'Activity 9'!$B$17:$B$23,'Activity 9'!G$17:G$23,\"N/A\",0,1)","v":"N/A"},{"$f":"_xlfn.XLOOKUP($E70,'Activity 9'!$B$17:$B$23,'Activity 9'!H$17:H$23,\"N/A\",0,1)","v":"N/A"},{"$f":"_xlfn.XLOOKUP($E70,'Activity 9'!$B$17:$B$23,'Activity 9'!I$17:I$23,\"N/A\",0,1)","v":"N/A"},{"$f":"_xlfn.XLOOKUP($E70,'Activity 9'!$B$17:$B$23,'Activity 9'!J$17:J$23,\"N/A\",0,1)","v":"N/A"},{"$f":"_xlfn.XLOOKUP($E70,'Activity 9'!$B$17:$B$23,'Activity 9'!K$17:K$23,\"N/A\",0,1)","v":"N/A"},{"$f":"_xlfn.XLOOKUP($E70,'Activity 9'!$B$17:$B$23,'Activity 9'!L$17:L$23,\"N/A\",0,1)","v":"N/A"},{"$f":"_xlfn.XLOOKUP($E70,'Activity 9'!$B$17:$B$23,'Activity 9'!N$17:N$23,\"N/A\",0,1)","v":"N/A"},{"$f":"_xlfn.XLOOKUP($E70,'Activity 9'!$B$17:$B$23,'Activity 9'!O$17:O$23,\"N/A\",0,1)","v":"N/A"},{"$f":"_xlfn.XLOOKUP($E70,'Activity 9'!$B$17:$B$23,'Activity 9'!Q$17:Q$23,\"N/A\",0,1)","v":"N/A"},{"$f":"_xlfn.XLOOKUP($E70,'Activity 10'!$B$7:$B$13,'Activity 10'!A$7:A$13,\"No\",0,1)","v":"No"},{"$f":"_xlfn.XLOOKUP($E70,'Activity 10'!$B$7:$B$13,'Activity 10'!J$7:J$13,\"N/A\",0,1)","v":"N/A"},{"$f":"_xlfn.XLOOKUP($E70,'Activity 10'!$B$7:$B$13,'Activity 10'!K$7:K$13,\"N/A\",0,1)","v":"N/A"},{"$f":"_xlfn.XLOOKUP($E70,'Activity 10'!$B$7:$B$13,'Activity 10'!L$7:L$13,\"N/A\",0,1)","v":"N/A"},{"$f":"_xlfn.XLOOKUP($E70,'Activity 10'!$B$7:$B$13,'Activity 10'!M$7:M$13,\"N/A\",0,1)","v":"N/A"},{"$f":"_xlfn.XLOOKUP($E70,'Activity 10'!$B$7:$B$13,'Activity 10'!N$7:N$13,\"N/A\",0,1)","v":"N/A"},{"$f":"_xlfn.XLOOKUP($E70,'Activity 10'!$B$7:$B$13,'Activity 10'!O$7:O$13,\"N/A\",0,1)","v":"N/A"},{"$f":"_xlfn.XLOOKUP($E70,'Activity 10'!$B$7:$B$13,'Activity 10'!P$7:P$13,\"N/A\",0,1)","v":"N/A"},{"$f":"_xlfn.XLOOKUP($E70,'Activity 10'!$B$7:$B$13,'Activity 10'!Q$7:Q$13,\"N/A\",0,1)","v":"N/A"},{"$f":"_xlfn.XLOOKUP($E70,'Activity 10'!$B$7:$B$13,'Activity 10'!R$7:R$13,\"N/A\",0,1)","v":"N/A"},{"$f":"_xlfn.XLOOKUP($E70,'Activity 10'!$B$7:$B$13,'Activity 10'!S$7:S$13,\"N/A\",0,1)","v":"N/A"},{"$f":"_xlfn.XLOOKUP($E70,'Activity 10'!$B$7:$B$13,'Activity 10'!T$7:T$13,\"N/A\",0,1)","v":"N/A"},{"$f":"_xlfn.XLOOKUP($E70,'Activity 10'!$B$7:$B$13,'Activity 10'!U$7:U$13,\"N/A\",0,1)","v":"N/A"},{"$f":"_xlfn.XLOOKUP($E70,'Activity 10'!$B$7:$B$13,'Activity 10'!V$7:V$13,\"N/A\",0,1)","v":"N/A"},{"$f":"_xlfn.XLOOKUP($E70,'Activity 10'!$B$17:$B$23,'Activity 10'!E$17:E$23,\"N/A\",0,1)","v":"N/A"},{"$f":"_xlfn.XLOOKUP($E70,'Activity 10'!$B$17:$B$23,'Activity 10'!F$17:F$23,\"N/A\",0,1)","v":"N/A"},{"$f":"_xlfn.XLOOKUP($E70,'Activity 10'!$B$17:$B$23,'Activity 10'!G$17:G$23,\"N/A\",0,1)","v":"N/A"},{"$f":"_xlfn.XLOOKUP($E70,'Activity 10'!$B$17:$B$23,'Activity 10'!H$17:H$23,\"N/A\",0,1)","v":"N/A"},{"$f":"_xlfn.XLOOKUP($E70,'Activity 10'!$B$17:$B$23,'Activity 10'!I$17:I$23,\"N/A\",0,1)","v":"N/A"},{"$f":"_xlfn.XLOOKUP($E70,'Activity 10'!$B$17:$B$23,'Activity 10'!J$17:J$23,\"N/A\",0,1)","v":"N/A"},{"$f":"_xlfn.XLOOKUP($E70,'Activity 10'!$B$17:$B$23,'Activity 10'!K$17:K$23,\"N/A\",0,1)","v":"N/A"},{"$f":"_xlfn.XLOOKUP($E70,'Activity 10'!$B$17:$B$23,'Activity 10'!L$17:L$23,\"N/A\",0,1)","v":"N/A"},{"$f":"_xlfn.XLOOKUP($E70,'Activity 10'!$B$17:$B$23,'Activity 10'!M$17:M$23,\"N/A\",0,1)","v":"N/A"},{"$f":"_xlfn.XLOOKUP($E70,'Activity 10'!$B$17:$B$23,'Activity 10'!N$17:N$23,\"N/A\",0,1)","v":"N/A"},{"$f":"_xlfn.XLOOKUP($E70,'Activity 10'!$B$17:$B$23,'Activity 10'!P$17:P$23,\"N/A\",0,1)","v":"N/A"},{"$f":"_xlfn.XLOOKUP($E70,'Competitive Activity 1'!B$7:B$13,'Competitive Activity 1'!A$7:A$13,\"No\",0,1)","v":"No"},{"$f":"_xlfn.XLOOKUP($E70,'Competitive Activity 1'!$B$7:$B$13,'Competitive Activity 1'!H$7:H$13,\"N/A\",0,1)","v":"N/A"},{"$f":"_xlfn.XLOOKUP($E70,'Competitive Activity 1'!$B$7:$B$13,'Competitive Activity 1'!I$7:I$13,\"N/A\",0,1)","v":"N/A"},{"$f":"_xlfn.XLOOKUP($E70,'Competitive Activity 1'!$B$7:$B$13,'Competitive Activity 1'!J$7:J$13,\"N/A\",0,1)","v":"N/A"},{"$f":"_xlfn.XLOOKUP($E70,'Competitive Activity 1'!$B$7:$B$13,'Competitive Activity 1'!K$7:K$13,\"N/A\",0,1)","v":"N/A"},{"$f":"_xlfn.XLOOKUP($E70,'Competitive Activity 1'!$B$7:$B$13,'Competitive Activity 1'!L$7:L$13,\"N/A\",0,1)","v":"N/A"},{"$f":"_xlfn.XLOOKUP($E70,'Competitive Activity 1'!$B$7:$B$13,'Competitive Activity 1'!M$7:M$13,\"N/A\",0,1)","v":"N/A"},{"$f":"_xlfn.XLOOKUP($E70,'Competitive Activity 1'!$B$7:$B$13,'Competitive Activity 1'!N$7:N$13,\"N/A\",0,1)","v":"N/A"},{"$f":"_xlfn.XLOOKUP($E70,'Competitive Activity 1'!$B$7:$B$13,'Competitive Activity 1'!O$7:O$13,\"N/A\",0,1)","v":"N/A"},{"$f":"_xlfn.XLOOKUP($E70,'Competitive Activity 1'!$B$7:$B$13,'Competitive Activity 1'!P$7:P$13,\"N/A\",0,1)","v":"N/A"},{"$f":"_xlfn.XLOOKUP($E70,'Competitive Activity 1'!$B$7:$B$13,'Competitive Activity 1'!Q$7:Q$13,\"N/A\",0,1)","v":"N/A"},{"$f":"_xlfn.XLOOKUP($E70,'Competitive Activity 1'!$B$7:$B$13,'Competitive Activity 1'!R$7:R$13,\"N/A\",0,1)","v":"N/A"},{"$f":"_xlfn.XLOOKUP($E70,'Competitive Activity 1'!$B$7:$B$13,'Competitive Activity 1'!S$7:S$13,\"N/A\",0,1)","v":"N/A"},{"$f":"_xlfn.XLOOKUP($E70,'Competitive Activity 1'!$B$7:$B$13,'Competitive Activity 1'!T$7:T$13,\"N/A\",0,1)","v":"N/A"},{"$f":"_xlfn.XLOOKUP($E70,'Competitive Activity 1'!$B$7:$B$13,'Competitive Activity 1'!U$7:U$13,\"N/A\",0,1)","v":"N/A"},{"$f":"_xlfn.XLOOKUP($E70,'Competitive Activity 1'!$B$17:$B$23,'Competitive Activity 1'!C$17:C$23,\"N/A\",0,1)","v":"N/A"},{"$f":"_xlfn.XLOOKUP($E70,'Competitive Activity 1'!$B$17:$B$23,'Competitive Activity 1'!D$17:D$23,\"N/A\",0,1)","v":"N/A"},{"$f":"_xlfn.XLOOKUP($E70,'Competitive Activity 1'!$B$17:$B$23,'Competitive Activity 1'!E$17:E$23,\"N/A\",0,1)","v":"N/A"},{"$f":"_xlfn.XLOOKUP($E70,'Competitive Activity 1'!$B$17:$B$23,'Competitive Activity 1'!F$17:F$23,\"N/A\",0,1)","v":"N/A"},{"$f":"_xlfn.XLOOKUP($E70,'Competitive Activity 1'!$B$17:$B$23,'Competitive Activity 1'!G$17:G$23,\"N/A\",0,1)","v":"N/A"},{"$f":"_xlfn.XLOOKUP($E70,'Competitive Activity 1'!$B$17:$B$23,'Competitive Activity 1'!H$17:H$23,\"N/A\",0,1)","v":"N/A"},{"$f":"_xlfn.XLOOKUP($E70,'Competitive Activity 1'!$B$17:$B$23,'Competitive Activity 1'!I$17:I$23,\"N/A\",0,1)","v":"N/A"},{"$f":"_xlfn.XLOOKUP($E70,'Competitive Activity 1'!$B$17:$B$23,'Competitive Activity 1'!J$17:J$23,\"N/A\",0,1)","v":"N/A"},{"$f":"_xlfn.XLOOKUP($E70,'Competitive Activity 1'!$B$17:$B$23,'Competitive Activity 1'!K$17:K$23,\"N/A\",0,1)","v":"N/A"},{"$f":"_xlfn.XLOOKUP($E70,'Competitive Activity 1'!$B$17:$B$23,'Competitive Activity 1'!M$17:M$23,\"N/A\",0,1)","v":"N/A"},{"$f":"_xlfn.XLOOKUP($E70,'Competitive Activity 1'!$B$17:$B$23,'Competitive Activity 1'!N$17:N$23,\"N/A\",0,1)","v":"N/A"},{"$f":"_xlfn.XLOOKUP($E70,'Competitive Activity 1'!$B$17:$B$23,'Competitive Activity 1'!P$17:P$23,\"N/A\",0,1)","v":"N/A"},{"$f":"_xlfn.XLOOKUP($E70,'Competitive Activity 2'!$B$7:$B$13,'Competitive Activity 2'!A$7:A$13,\"No\",0)","v":"No"},{"$f":"_xlfn.XLOOKUP($E70,'Competitive Activity 2'!$B$7:$B$13,'Competitive Activity 2'!L$7:L$13,\"N/A\",0)","v":"N/A"},{"$f":"_xlfn.XLOOKUP($E70,'Competitive Activity 2'!$B$7:$B$13,'Competitive Activity 2'!M$7:M$13,\"N/A\",0)","v":"N/A"},{"$f":"_xlfn.XLOOKUP($E70,'Competitive Activity 2'!$B$7:$B$13,'Competitive Activity 2'!N$7:N$13,\"N/A\",0)","v":"N/A"},{"$f":"_xlfn.XLOOKUP($E70,'Competitive Activity 2'!$B$7:$B$13,'Competitive Activity 2'!O$7:O$13,\"N/A\",0)","v":"N/A"},{"$f":"_xlfn.XLOOKUP($E70,'Competitive Activity 2'!$B$7:$B$13,'Competitive Activity 2'!P$7:P$13,\"N/A\",0)","v":"N/A"},{"$f":"_xlfn.XLOOKUP($E70,'Competitive Activity 2'!$B$7:$B$13,'Competitive Activity 2'!Q$7:Q$13,\"N/A\",0)","v":"N/A"},{"$f":"_xlfn.XLOOKUP($E70,'Competitive Activity 2'!$B$7:$B$13,'Competitive Activity 2'!R$7:R$13,\"N/A\",0)","v":"N/A"},{"$f":"_xlfn.XLOOKUP($E70,'Competitive Activity 2'!$B$7:$B$13,'Competitive Activity 2'!S$7:S$13,\"N/A\",0)","v":"N/A"},{"$f":"_xlfn.XLOOKUP($E70,'Competitive Activity 2'!$B$7:$B$13,'Competitive Activity 2'!T$7:T$13,\"N/A\",0)","v":"N/A"},{"$f":"_xlfn.XLOOKUP($E70,'Competitive Activity 2'!$B$7:$B$13,'Competitive Activity 2'!U$7:U$13,\"N/A\",0)","v":"N/A"},{"$f":"_xlfn.XLOOKUP($E70,'Competitive Activity 2'!$B$17:$B$23,'Competitive Activity 2'!D$17:D$23,\"N/A\",0)","v":"N/A"},{"$f":"_xlfn.XLOOKUP($E70,'Competitive Activity 2'!$B$17:$B$23,'Competitive Activity 2'!E$17:E$23,\"N/A\",0)","v":"N/A"},{"$f":"_xlfn.XLOOKUP($E70,'Competitive Activity 2'!$B$17:$B$23,'Competitive Activity 2'!F$17:F$23,\"N/A\",0)","v":"N/A"},{"$f":"_xlfn.XLOOKUP($E70,'Competitive Activity 2'!$B$17:$B$23,'Competitive Activity 2'!G$17:G$23,\"N/A\",0)","v":"N/A"},{"$f":"_xlfn.XLOOKUP($E70,'Competitive Activity 2'!$B$17:$B$23,'Competitive Activity 2'!H$17:H$23,\"N/A\",0)","v":"N/A"},{"$f":"_xlfn.XLOOKUP($E70,'Competitive Activity 2'!$B$17:$B$23,'Competitive Activity 2'!I$17:I$23,\"N/A\",0)","v":"N/A"},{"$f":"_xlfn.XLOOKUP($E70,'Competitive Activity 2'!$B$17:$B$23,'Competitive Activity 2'!J$17:J$23,\"N/A\",0)","v":"N/A"},{"$f":"_xlfn.XLOOKUP($E70,'Competitive Activity 2'!$B$17:$B$23,'Competitive Activity 2'!K$17:K$23,\"N/A\",0)","v":"N/A"},{"$f":"_xlfn.XLOOKUP($E70,'Competitive Activity 2'!$B$17:$B$23,'Competitive Activity 2'!L$17:L$23,\"N/A\",0)","v":"N/A"},{"$f":"_xlfn.XLOOKUP($E70,'Competitive Activity 2'!$B$17:$B$23,'Competitive Activity 2'!M$17:M$23,\"N/A\",0)","v":"N/A"},{"$f":"_xlfn.XLOOKUP($E70,'Competitive Activity 2'!$B$17:$B$23,'Competitive Activity 2'!N$17:N$23,\"N/A\",0)","v":"N/A"},{"$f":"_xlfn.XLOOKUP($E70,'Competitive Activity 2'!$B$27:$B$33,'Competitive Activity 2'!D$27:D$33,\"N/A\",0)","v":"N/A"},{"$f":"_xlfn.XLOOKUP($E70,'Competitive Activity 2'!$B$27:$B$33,'Competitive Activity 2'!E$27:E$33,\"N/A\",0)","v":"N/A"},{"$f":"_xlfn.XLOOKUP($E70,'Competitive Activity 2'!$B$27:$B$33,'Competitive Activity 2'!F$27:F$33,\"N/A\",0)","v":"N/A"},{"$f":"_xlfn.XLOOKUP($E70,'Competitive Activity 2'!$B$27:$B$33,'Competitive Activity 2'!G$27:G$33,\"N/A\",0)","v":"N/A"},{"$f":"_xlfn.XLOOKUP($E70,'Competitive Activity 2'!$B$27:$B$33,'Competitive Activity 2'!H$27:H$33,\"N/A\",0)","v":"N/A"},{"$f":"_xlfn.XLOOKUP($E70,'Competitive Activity 2'!$B$27:$B$33,'Competitive Activity 2'!I$27:I$33,\"N/A\",0)","v":"N/A"},{"$f":"_xlfn.XLOOKUP($E70,'Competitive Activity 2'!$B$27:$B$33,'Competitive Activity 2'!J$27:J$33,\"N/A\",0)","v":"N/A"},{"$f":"_xlfn.XLOOKUP($E70,'Competitive Activity 2'!$B$27:$B$33,'Competitive Activity 2'!K$27:K$33,\"N/A\",0)","v":"N/A"},{"$f":"_xlfn.XLOOKUP($E70,'Competitive Activity 2'!$B$27:$B$33,'Competitive Activity 2'!M$27:M$33,\"N/A\",0)","v":"N/A"}]
[{"$f":"'1-Cover Sheet'!$C$8","v":"Select One"},{"$f":"'1-Cover Sheet'!$F$8","v":"Select One"},{"$f":"'Summary Sheet'!$D$8","v":0},{"$f":"'Summary Sheet'!$D$10","v":0},{"$f":"'Drop Down Box'!B235","v":0},{"$f":"'Drop Down Box'!C235","v":0},{"$f":"'Drop Down Box'!D235","v":"Select One"},{"$f":"_xlfn.XLOOKUP(E71,'Drop Down Box'!$B$166:$B$249,'Drop Down Box'!$A$166:$A$249,\"Unknown\",0)","v":"Activity 1"},{"$f":"_xlfn.XLOOKUP($E71,'Activity 10'!$B$17:$B$23,'Activity 10'!$O$17:$O$23,\"N/A\",0)","v":"N/A"},{"$f":"_xlfn.XLOOKUP($E71,'Activity 10'!$B$17:$B$23,'Activity 10'!$Q$17:$Q$23,\"N/A\",0)","v":"N/A"},{"$f":"_xlfn.XLOOKUP($E71,'Activity 10'!$B$7:$B$13,'Activity 10'!G$7:G$13,\"N/A\",0)","v":"N/A"},{"$f":"_xlfn.XLOOKUP($E71,'Activity 10'!$B$7:$B$13,'Activity 10'!H$7:H$13,\"N/A\",0)","v":"N/A"},{"$f":"_xlfn.XLOOKUP($E71,'Activity 10'!$B$7:$B$13,'Activity 10'!I$7:I$13,\"N/A\",0)","v":"N/A"},{"$f":"_xlfn.XLOOKUP($E71,'Activity 1'!$B$7:$B$13,'Activity 1'!$A$7:$A$13,\"No\",0,1)","v":"No"},{"$f":"_xlfn.XLOOKUP($E71,'Activity 1'!$B$7:$B$13,'Activity 1'!$H$7:$H$13,\"N/A\",0,1)","v":"N/A"},{"$f":"_xlfn.XLOOKUP($E71,'Activity 1'!$B$7:$B$13,'Activity 1'!I$7:I$13,\"N/A\",0,1)","v":"N/A"},{"$f":"_xlfn.XLOOKUP($E71,'Activity 1'!$B$7:$B$13,'Activity 1'!J$7:J$13,\"N/A\",0,1)","v":"N/A"},{"$f":"_xlfn.XLOOKUP($E71,'Activity 1'!$B$7:$B$13,'Activity 1'!K$7:K$13,\"N/A\",0,1)","v":"N/A"},{"$f":"_xlfn.XLOOKUP($E71,'Activity 1'!$B$7:$B$13,'Activity 1'!L$7:L$13,\"N/A\",0,1)","v":"N/A"},{"$f":"_xlfn.XLOOKUP($E71,'Activity 1'!$B$7:$B$13,'Activity 1'!M$7:M$13,\"N/A\",0,1)","v":"N/A"},{"$f":"_xlfn.XLOOKUP($E71,'Activity 1'!$B$7:$B$13,'Activity 1'!N$7:N$13,\"N/A\",0,1)","v":"N/A"},0,{"$f":"_xlfn.XLOOKUP($E71,'Activity 1'!$B$7:$B$13,'Activity 1'!O$7:O$13,\"N/A\",0,1)","v":"N/A"},{"$f":"_xlfn.XLOOKUP($E71,'Activity 1'!$B$7:$B$13,'Activity 1'!P$7:P$13,\"N/A\",0,1)","v":"N/A"},{"$f":"_xlfn.XLOOKUP($E71,'Activity 1'!$B$7:$B$13,'Activity 1'!Q$7:Q$13,\"N/A\",0,1)","v":"N/A"},{"$f":"_xlfn.XLOOKUP($E71,'Activity 1'!$B$7:$B$13,'Activity 1'!R$7:R$13,\"N/A\",0,1)","v":"N/A"},{"$f":"_xlfn.XLOOKUP($E71,'Activity 1'!$B$7:$B$13,'Activity 1'!S$7:S$13,\"N/A\",0,1)","v":"N/A"},{"$f":"_xlfn.XLOOKUP($E71,'Activity 1'!$B$7:$B$13,'Activity 1'!T$7:T$13,\"N/A\",0,1)","v":"N/A"},{"$f":"_xlfn.XLOOKUP($E71,'Activity 1'!$B$7:$B$13,'Activity 1'!U$7:U$13,\"N/A\",0,1)","v":"N/A"},{"$f":"_xlfn.XLOOKUP($E71,'Activity 1'!$B$7:$B$13,'Activity 1'!V$7:V$13,\"N/A\",0,1)","v":"N/A"},{"$f":"_xlfn.XLOOKUP($E71,'Activity 1'!$B$17:$B$23,'Activity 1'!C$17:C$23,\"N/A\",0,1)","v":"N/A"},{"$f":"_xlfn.XLOOKUP($E71,'Activity 1'!$B$17:$B$23,'Activity 1'!D$17:D$23,\"N/A\",0,1)","v":"N/A"},{"$f":"_xlfn.XLOOKUP($E71,'Activity 1'!$B$17:$B$23,'Activity 1'!E$17:E$23,\"N/A\",0,1)","v":"N/A"},{"$f":"_xlfn.XLOOKUP($E71,'Activity 1'!$B$17:$B$23,'Activity 1'!F$17:F$23,\"N/A\",0,1)","v":"N/A"},{"$f":"_xlfn.XLOOKUP($E71,'Activity 1'!$B$17:$B$23,'Activity 1'!G$17:G$23,\"N/A\",0,1)","v":"N/A"},{"$f":"_xlfn.XLOOKUP($E71,'Activity 1'!$B$17:$B$23,'Activity 1'!H$17:H$23,\"N/A\",0,1)","v":"N/A"},{"$f":"_xlfn.XLOOKUP($E71,'Activity 1'!$B$17:$B$23,'Activity 1'!I$17:I$23,\"N/A\",0,1)","v":"N/A"},{"$f":"_xlfn.XLOOKUP($E71,'Activity 1'!$B$17:$B$23,'Activity 1'!J$17:J$23,\"N/A\",0,1)","v":"N/A"},{"$f":"_xlfn.XLOOKUP($E71,'Activity 1'!$B$17:$B$23,'Activity 1'!K$17:K$23,\"N/A\",0,1)","v":"N/A"},{"$f":"_xlfn.XLOOKUP($E71,'Activity 1'!$B$17:$B$23,'Activity 1'!L$17:L$23,\"N/A\",0,1)","v":"N/A"},{"$f":"_xlfn.XLOOKUP($E71,'Activity 1'!$B$17:$B$23,'Activity 1'!M$17:M$23,\"N/A\",0,1)","v":"N/A"},{"$f":"_xlfn.XLOOKUP($E71,'Activity 1'!$B$17:$B$23,'Activity 1'!O$17:O$23,\"N/A\",0,1)","v":"N/A"},{"$f":"_xlfn.XLOOKUP($E71,'Activity 1'!$B$17:$B$23,'Activity 1'!Q$17:Q$23,\"N/A\",0,1)","v":"N/A"},{"$f":"_xlfn.XLOOKUP($E71,'Activity 2'!$B$7:$B$13,'Activity 2'!$A$7:$A$13,\"No\",0,1)","v":"No"},{"$f":"_xlfn.XLOOKUP($E71,'Activity 2'!B$7:B$13,'Activity 2'!H$7:H$13,\"N/A\",0)","v":"N/A"},{"$f":"_xlfn.XLOOKUP($E71,'Activity 2'!C$7:C$13,'Activity 2'!I$7:I$13,\"N/A\",0)","v":"N/A"},{"$f":"_xlfn.XLOOKUP($E71,'Activity 2'!D$7:D$13,'Activity 2'!J$7:J$13,\"N/A\",0)","v":"N/A"},{"$f":"_xlfn.XLOOKUP($E71,'Activity 2'!E$7:E$13,'Activity 2'!K$7:K$13,\"N/A\",0)","v":"N/A"},{"$f":"_xlfn.XLOOKUP($E71,'Activity 2'!F$7:F$13,'Activity 2'!L$7:L$13,\"N/A\",0)","v":"N/A"},{"$f":"_xlfn.XLOOKUP($E71,'Activity 2'!G$7:G$13,'Activity 2'!M$7:M$13,\"N/A\",0)","v":"N/A"},{"$f":"_xlfn.XLOOKUP($E71,'Activity 2'!H$7:H$13,'Activity 2'!N$7:N$13,\"N/A\",0)","v":"N/A"},{"$f":"_xlfn.XLOOKUP($E71,'Activity 2'!I$7:I$13,'Activity 2'!O$7:O$13,\"N/A\",0)","v":"N/A"},{"$f":"_xlfn.XLOOKUP($E71,'Activity 2'!J$7:J$13,'Activity 2'!P$7:P$13,\"N/A\",0)","v":"N/A"},{"$f":"_xlfn.XLOOKUP($E71,'Activity 2'!K$7:K$13,'Activity 2'!Q$7:Q$13,\"N/A\",0)","v":"N/A"},{"$f":"_xlfn.XLOOKUP($E71,'Activity 2'!L$7:L$13,'Activity 2'!R$7:R$13,\"N/A\",0)","v":"N/A"},{"$f":"_xlfn.XLOOKUP($E71,'Activity 2'!M$7:M$13,'Activity 2'!S$7:S$13,\"N/A\",0)","v":"N/A"},{"$f":"_xlfn.XLOOKUP($E71,'Activity 2'!N$7:N$13,'Activity 2'!T$7:T$13,\"N/A\",0)","v":"N/A"},{"$f":"_xlfn.XLOOKUP($E71,'Activity 2'!O$7:O$13,'Activity 2'!U$7:U$13,\"N/A\",0)","v":"N/A"},{"$f":"_xlfn.XLOOKUP($E71,'Activity 2'!P$7:P$13,'Activity 2'!V$7:V$13,\"N/A\",0)","v":"N/A"},{"$f":"_xlfn.XLOOKUP($E71,'Activity 2'!$B$17:$B$23,'Activity 2'!C$17:C$23,\"N/A\",0,1)","v":"N/A"},{"$f":"_xlfn.XLOOKUP($E71,'Activity 2'!$B$17:$B$23,'Activity 2'!D$17:D$23,\"N/A\",0,1)","v":"N/A"},{"$f":"_xlfn.XLOOKUP($E71,'Activity 2'!$B$17:$B$23,'Activity 2'!E$17:E$23,\"N/A\",0,1)","v":"N/A"},{"$f":"_xlfn.XLOOKUP($E71,'Activity 2'!$B$17:$B$23,'Activity 2'!F$17:F$23,\"N/A\",0,1)","v":"N/A"},{"$f":"_xlfn.XLOOKUP($E71,'Activity 2'!$B$17:$B$23,'Activity 2'!G$17:G$23,\"N/A\",0,1)","v":"N/A"},{"$f":"_xlfn.XLOOKUP($E71,'Activity 2'!$B$17:$B$23,'Activity 2'!H$17:H$23,\"N/A\",0,1)","v":"N/A"},{"$f":"_xlfn.XLOOKUP($E71,'Activity 2'!$B$17:$B$23,'Activity 2'!I$17:I$23,\"N/A\",0,1)","v":"N/A"},{"$f":"_xlfn.XLOOKUP($E71,'Activity 2'!$B$17:$B$23,'Activity 2'!J$17:J$23,\"N/A\",0,1)","v":"N/A"},{"$f":"_xlfn.XLOOKUP($E71,'Activity 2'!$B$17:$B$23,'Activity 2'!K$17:K$23,\"N/A\",0,1)","v":"N/A"},{"$f":"_xlfn.XLOOKUP($E71,'Activity 2'!$B$17:$B$23,'Activity 2'!L$17:L$23,\"N/A\",0,1)","v":"N/A"},{"$f":"_xlfn.XLOOKUP($E71,'Activity 2'!$B$17:$B$23,'Activity 2'!M$17:M$23,\"N/A\",0,1)","v":"N/A"},{"$f":"_xlfn.XLOOKUP($E71,'Activity 2'!$B$17:$B$23,'Activity 2'!O$17:O$23,\"N/A\",0,1)","v":"N/A"},{"$f":"_xlfn.XLOOKUP($E71,'Activity 2'!$B$17:$B$23,'Activity 2'!Q$17:Q$23,\"N/A\",0,1)","v":"N/A"},null,{"$f":"_xlfn.XLOOKUP($E71,'Activity 3'!$B$8:$B$14,'Activity 3'!K$8:K$14,\"N/A\",0,1)","v":"N/A"},{"$f":"_xlfn.XLOOKUP($E71,'Activity 3'!$B$8:$B$14,'Activity 3'!L$8:L$14,\"N/A\",0,1)","v":"N/A"},{"$f":"_xlfn.XLOOKUP($E71,'Activity 3'!$B$8:$B$14,'Activity 3'!M$8:M$14,\"N/A\",0,1)","v":"N/A"},{"$f":"_xlfn.XLOOKUP($E71,'Activity 3'!$B$8:$B$14,'Activity 3'!N$8:N$14,\"N/A\",0,1)","v":"N/A"},{"$f":"_xlfn.XLOOKUP($E71,'Activity 3'!$B$8:$B$14,'Activity 3'!O$8:O$14,\"N/A\",0,1)","v":"N/A"},{"$f":"_xlfn.XLOOKUP($E71,'Activity 3'!$B$8:$B$14,'Activity 3'!R$8:R$14,\"N/A\",0,1)","v":"N/A"},{"$f":"_xlfn.XLOOKUP($E71,'Activity 4'!$B$8:$B$14,'Activity 4'!$A$8:$A$14,\"No\",0,1)","v":"No"},{"$f":"_xlfn.XLOOKUP($E71,'Activity 4'!$B$8:$B$14,'Activity 4'!L$8:L$14,\"N/A\",0,1)","v":"N/A"},{"$f":"_xlfn.XLOOKUP($E71,'Activity 4'!$B$8:$B$14,'Activity 4'!I$8:I$14,\"N/A\",0,1)","v":"N/A"},{"$f":"_xlfn.XLOOKUP($E71,'Activity 4'!$B$8:$B$14,'Activity 4'!M$8:M$14,\"N/A\",0,1)","v":"N/A"},{"$f":"_xlfn.XLOOKUP($E71,'Activity 5'!$B$8:$B$14,'Activity 5'!$A$8:$A$14,\"No\",0,1)","v":"No"},{"$f":"_xlfn.XLOOKUP($E71,'Activity 5'!$B$8:$B$14,'Activity 5'!J$8:J$14,\"N/A\",0,1)","v":"N/A"},{"$f":"_xlfn.XLOOKUP($E71,'Activity 5'!$B$8:$B$14,'Activity 5'!K$8:K$14,\"N/A\",0,1)","v":"N/A"},{"$f":"_xlfn.XLOOKUP($E71,'Activity 5'!$B$8:$B$14,'Activity 5'!N$8:N$14,\"N/A\",0,1)","v":"N/A"},{"$f":"_xlfn.XLOOKUP($E71,'Activity 5'!$B$8:$B$14,'Activity 5'!O$8:O$14,\"N/A\",0,1)","v":"N/A"},{"$f":"_xlfn.XLOOKUP($E71,'Activity 5'!$B$8:$B$14,'Activity 5'!P$8:P$14,\"N/A\",0,1)","v":"N/A"},{"$f":"_xlfn.XLOOKUP($E71,'Activity 5'!$B$8:$B$14,'Activity 5'!Q$8:Q$14,\"N/A\",0,1)","v":"N/A"},{"$f":"_xlfn.XLOOKUP($E71,'Activity 5'!$B$8:$B$14,'Activity 5'!R$8:R$14,\"N/A\",0,1)","v":"N/A"},{"$f":"_xlfn.XLOOKUP($E71,'Activity 6'!$B$7:$B$13,'Activity 6'!A$7:A$13,\"No\",0,1)","v":"No"},{"$f":"_xlfn.XLOOKUP($E71,'Activity 6'!$B$7:$B$13,'Activity 6'!K$7:K$13,\"N/A\",0,1)","v":"N/A"},{"$f":"_xlfn.XLOOKUP($E71,'Activity 6'!$B$7:$B$13,'Activity 6'!L$7:L$13,\"N/A\",0,1)","v":"N/A"},{"$f":"_xlfn.XLOOKUP($E71,'Activity 6'!$B$7:$B$13,'Activity 6'!M$7:M$13,\"N/A\",0,1)","v":"N/A"},{"$f":"_xlfn.XLOOKUP($E71,'Activity 6'!$B$7:$B$13,'Activity 6'!N$7:N$13,\"N/A\",0,1)","v":"N/A"},{"$f":"_xlfn.XLOOKUP($E71,'Activity 6'!$B$7:$B$13,'Activity 6'!O$7:O$13,\"N/A\",0,1)","v":"N/A"},{"$f":"_xlfn.XLOOKUP($E71,'Activity 6'!$B$7:$B$13,'Activity 6'!P$7:P$13,\"N/A\",0,1)","v":"N/A"},{"$f":"_xlfn.XLOOKUP($E71,'Activity 6'!$B$7:$B$13,'Activity 6'!Q$7:Q$13,\"N/A\",0,1)","v":"N/A"},{"$f":"_xlfn.XLOOKUP($E71,'Activity 6'!$B$7:$B$13,'Activity 6'!R$7:R$13,\"N/A\",0,1)","v":"N/A"},{"$f":"_xlfn.XLOOKUP($E71,'Activity 6'!$B$7:$B$13,'Activity 6'!S$7:S$13,\"N/A\",0,1)","v":"N/A"},{"$f":"_xlfn.XLOOKUP($E71,'Activity 6'!$B$7:$B$13,'Activity 6'!T$7:T$13,\"N/A\",0,1)","v":"N/A"},{"$f":"_xlfn.XLOOKUP($E71,'Activity 6'!$B$7:$B$13,'Activity 6'!U$7:U$13,\"N/A\",0,1)","v":"N/A"},{"$f":"_xlfn.XLOOKUP($E71,'Activity 6'!$B$22:$B$28,'Activity 6'!C$22:C$28,\"N/A\",0,1)","v":"N/A"},{"$f":"_xlfn.XLOOKUP($E71,'Activity 6'!$B$22:$B$28,'Activity 6'!D$22:D$28,\"N/A\",0,1)","v":"N/A"},{"$f":"_xlfn.XLOOKUP($E71,'Activity 6'!$B$22:$B$28,'Activity 6'!E$22:E$28,\"N/A\",0,1)","v":"N/A"},{"$f":"_xlfn.XLOOKUP($E71,'Activity 6'!$B$22:$B$28,'Activity 6'!F$22:F$28,\"N/A\",0,1)","v":"N/A"},{"$f":"_xlfn.XLOOKUP($E71,'Activity 6'!$B$22:$B$28,'Activity 6'!G$22:G$28,\"N/A\",0,1)","v":"N/A"},{"$f":"_xlfn.XLOOKUP($E71,'Activity 6'!$B$22:$B$28,'Activity 6'!H$22:H$28,\"N/A\",0,1)","v":"N/A"},{"$f":"_xlfn.XLOOKUP($E71,'Activity 6'!$B$22:$B$28,'Activity 6'!I$22:I$28,\"N/A\",0,1)","v":"N/A"},{"$f":"_xlfn.XLOOKUP($E71,'Activity 6'!$B$22:$B$28,'Activity 6'!J$22:J$28,\"N/A\",0,1)","v":"N/A"},{"$f":"_xlfn.XLOOKUP($E71,'Activity 6'!$B$22:$B$28,'Activity 6'!K$22:K$28,\"N/A\",0,1)","v":"N/A"},{"$f":"_xlfn.XLOOKUP($E71,'Activity 6'!$B$22:$B$28,'Activity 6'!L$22:L$28,\"N/A\",0,1)","v":"N/A"},{"$f":"_xlfn.XLOOKUP($E71,'Activity 6'!$B$22:$B$28,'Activity 6'!M$22:M$28,\"N/A\",0,1)","v":"N/A"},{"$f":"_xlfn.XLOOKUP($E71,'Activity 6'!$B$22:$B$28,'Activity 6'!N$22:N$28,\"N/A\",0,1)","v":"N/A"},{"$f":"_xlfn.XLOOKUP($E71,'Activity 6'!$B$32:$B$38,'Activity 6'!C$32:C$38,\"N/A\",0,1)","v":"N/A"},{"$f":"_xlfn.XLOOKUP($E71,'Activity 6'!$B$32:$B$38,'Activity 6'!D$32:D$38,\"N/A\",0,1)","v":"N/A"},{"$f":"_xlfn.XLOOKUP($E71,'Activity 6'!$B$32:$B$38,'Activity 6'!E$32:E$38,\"N/A\",0,1)","v":"N/A"},{"$f":"_xlfn.XLOOKUP($E71,'Activity 6'!$B$32:$B$38,'Activity 6'!F$32:F$38,\"N/A\",0,1)","v":"N/A"},{"$f":"_xlfn.XLOOKUP($E71,'Activity 6'!$B$32:$B$38,'Activity 6'!G$32:G$38,\"N/A\",0,1)","v":"N/A"},{"$f":"_xlfn.XLOOKUP($E71,'Activity 6'!$B$32:$B$38,'Activity 6'!H$32:H$38,\"N/A\",0,1)","v":"N/A"},{"$f":"_xlfn.XLOOKUP($E71,'Activity 6'!$B$32:$B$38,'Activity 6'!I$32:I$38,\"N/A\",0,1)","v":"N/A"},{"$f":"_xlfn.XLOOKUP($E71,'Activity 6'!$B$32:$B$38,'Activity 6'!J$32:J$38,\"N/A\",0,1)","v":"N/A"},{"$f":"_xlfn.XLOOKUP($E71,'Activity 6'!$B$32:$B$38,'Activity 6'!K$32:K$38,\"N/A\",0,1)","v":"N/A"},{"$f":"_xlfn.XLOOKUP($E71,'Activity 6'!$B$32:$B$38,'Activity 6'!M$32:M$38,\"N/A\",0,1)","v":"N/A"},{"$f":"_xlfn.XLOOKUP($E71,'Activity 7'!$B$7:$B$13,'Activity 7'!$A$7:$A$13,\"No\",0,1)","v":"No"},{"$f":"_xlfn.XLOOKUP($E71,'Activity 7'!$B$7:$B$13,'Activity 7'!M$7:M$13,\"N/A\",0,1)","v":"N/A"},{"$f":"_xlfn.XLOOKUP($E71,'Activity 7'!$B$7:$B$13,'Activity 7'!K$7:K$13,\"N/A\",0,1)","v":"N/A"},{"$f":"_xlfn.XLOOKUP($E71,'Activity 7'!$B$7:$B$13,'Activity 7'!N$7:N$13,\"N/A\",0,1)","v":"N/A"},{"$f":"_xlfn.XLOOKUP($E71,'Activity 7'!$B$7:$B$13,'Activity 7'!O$7:O$13,\"N/A\",0,1)","v":"N/A"},{"$f":"_xlfn.XLOOKUP($E71,'Activity 7'!$B$7:$B$13,'Activity 7'!P$7:P$13,\"N/A\",0,1)","v":"N/A"},{"$f":"_xlfn.XLOOKUP($E71,'Activity 7'!$B$7:$B$13,'Activity 7'!Q$7:Q$13,\"N/A\",0,1)","v":"N/A"},{"$f":"_xlfn.XLOOKUP($E71,'Activity 7'!$B$7:$B$13,'Activity 7'!R$7:R$13,\"N/A\",0,1)","v":"N/A"},{"$f":"_xlfn.XLOOKUP($E71,'Activity 7'!$B$7:$B$13,'Activity 7'!S$7:S$13,\"N/A\",0,1)","v":"N/A"},{"$f":"_xlfn.XLOOKUP($E71,'Activity 7'!$B$7:$B$13,'Activity 7'!T$7:T$13,\"N/A\",0,1)","v":"N/A"},{"$f":"_xlfn.XLOOKUP($E71,'Activity 7'!$B$7:$B$13,'Activity 7'!U$7:U$13,\"N/A\",0,1)","v":"N/A"},{"$f":"_xlfn.XLOOKUP($E71,'Activity 7'!$B$7:$B$13,'Activity 7'!V$7:V$13,\"N/A\",0,1)","v":"N/A"},{"$f":"_xlfn.XLOOKUP($E71,'Activity 7'!$B$17:$B$23,'Activity 7'!E$17:E$23,\"N/A\",0,1)","v":"N/A"},{"$f":"_xlfn.XLOOKUP($E71,'Activity 7'!$B$17:$B$23,'Activity 7'!G$17:G$23,\"N/A\",0,1)","v":"N/A"},{"$f":"_xlfn.XLOOKUP($E71,'Activity 7'!$B$17:$B$23,'Activity 7'!I$17:I$23,\"N/A\",0,1)","v":"N/A"},{"$f":"_xlfn.XLOOKUP($E71,'Activity 7'!$B$17:$B$23,'Activity 7'!J$17:J$23,\"N/A\",0,1)","v":"N/A"},{"$f":"_xlfn.XLOOKUP($E71,'Activity 7'!$B$17:$B$23,'Activity 7'!K$17:K$23,\"N/A\",0,1)","v":"N/A"},{"$f":"_xlfn.XLOOKUP($E71,'Activity 7'!$B$17:$B$23,'Activity 7'!L$17:L$23,\"N/A\",0,1)","v":"N/A"},{"$f":"_xlfn.XLOOKUP($E71,'Activity 7'!$B$17:$B$23,'Activity 7'!M$17:M$23,\"N/A\",0,1)","v":"N/A"},{"$f":"_xlfn.XLOOKUP($E71,'Activity 7'!$B$17:$B$23,'Activity 7'!N$17:N$23,\"N/A\",0,1)","v":"N/A"},{"$f":"_xlfn.XLOOKUP($E71,'Activity 7'!$B$17:$B$23,'Activity 7'!P$17:P$23,\"N/A\",0,1)","v":"N/A"},{"$f":"_xlfn.XLOOKUP($E71,'Activity 8'!$B$7:$B$13,'Activity 8'!A$7:A$13,\"No\",0,1)","v":"No"},{"$f":"_xlfn.XLOOKUP($E71,'Activity 8'!$B$7:$B$13,'Activity 8'!I$7:I$13,\"N/A\",0,1)","v":"N/A"},{"$f":"_xlfn.XLOOKUP($E71,'Activity 8'!$B$7:$B$13,'Activity 8'!J$7:J$13,\"N/A\",0,1)","v":"N/A"},{"$f":"_xlfn.XLOOKUP($E71,'Activity 8'!$B$7:$B$13,'Activity 8'!K$7:K$13,\"N/A\",0,1)","v":"N/A"},{"$f":"_xlfn.XLOOKUP($E71,'Activity 8'!$B$7:$B$13,'Activity 8'!L$7:L$13,\"N/A\",0,1)","v":"N/A"},{"$f":"_xlfn.XLOOKUP($E71,'Activity 8'!$B$7:$B$13,'Activity 8'!M$7:M$13,\"N/A\",0,1)","v":"N/A"},{"$f":"_xlfn.XLOOKUP($E71,'Activity 8'!$B$7:$B$13,'Activity 8'!N$7:N$13,\"N/A\",0,1)","v":"N/A"},{"$f":"_xlfn.XLOOKUP($E71,'Activity 8'!$B$7:$B$13,'Activity 8'!O$7:O$13,\"N/A\",0,1)","v":"N/A"},{"$f":"_xlfn.XLOOKUP($E71,'Activity 8'!$B$7:$B$13,'Activity 8'!P$7:P$13,\"N/A\",0,1)","v":"N/A"},{"$f":"_xlfn.XLOOKUP($E71,'Activity 8'!$B$7:$B$13,'Activity 8'!Q$7:Q$13,\"N/A\",0,1)","v":"N/A"},{"$f":"_xlfn.XLOOKUP($E71,'Activity 8'!$B$7:$B$13,'Activity 8'!R$7:R$13,\"N/A\",0,1)","v":"N/A"},{"$f":"_xlfn.XLOOKUP($E71,'Activity 8'!$B$7:$B$13,'Activity 8'!S$7:S$13,\"N/A\",0,1)","v":"N/A"},{"$f":"_xlfn.XLOOKUP($E71,'Activity 8'!$B$7:$B$13,'Activity 8'!T$7:T$13,\"N/A\",0,1)","v":"N/A"},{"$f":"_xlfn.XLOOKUP($E71,'Activity 8'!$B$7:$B$13,'Activity 8'!U$7:U$13,\"N/A\",0,1)","v":"N/A"},{"$f":"_xlfn.XLOOKUP($E71,'Activity 8'!$B$7:$B$13,'Activity 8'!V$7:V$13,\"N/A\",0,1)","v":"N/A"},{"$f":"_xlfn.XLOOKUP($E71,'Activity 8'!$B$17:$B$23,'Activity 8'!D$17:D$23,\"N/A\",0,1)","v":"N/A"},{"$f":"_xlfn.XLOOKUP($E71,'Activity 8'!$B$17:$B$23,'Activity 8'!E$17:E$23,\"N/A\",0,1)","v":"N/A"},{"$f":"_xlfn.XLOOKUP($E71,'Activity 8'!$B$17:$B$23,'Activity 8'!F$17:F$23,\"N/A\",0,1)","v":"N/A"},{"$f":"_xlfn.XLOOKUP($E71,'Activity 8'!$B$17:$B$23,'Activity 8'!G$17:G$23,\"N/A\",0,1)","v":"N/A"},{"$f":"_xlfn.XLOOKUP($E71,'Activity 8'!$B$17:$B$23,'Activity 8'!H$17:H$23,\"N/A\",0,1)","v":"N/A"},{"$f":"_xlfn.XLOOKUP($E71,'Activity 8'!$B$17:$B$23,'Activity 8'!I$17:I$23,\"N/A\",0,1)","v":"N/A"},{"$f":"_xlfn.XLOOKUP($E71,'Activity 8'!$B$17:$B$23,'Activity 8'!J$17:J$23,\"N/A\",0,1)","v":"N/A"},{"$f":"_xlfn.XLOOKUP($E71,'Activity 8'!$B$17:$B$23,'Activity 8'!K$17:K$23,\"N/A\",0,1)","v":"N/A"},{"$f":"_xlfn.XLOOKUP($E71,'Activity 8'!$B$17:$B$23,'Activity 8'!L$17:L$23,\"N/A\",0,1)","v":"N/A"},{"$f":"_xlfn.XLOOKUP($E71,'Activity 8'!$B$17:$B$23,'Activity 8'!M$17:M$23,\"N/A\",0,1)","v":"N/A"},{"$f":"_xlfn.XLOOKUP($E71,'Activity 8'!$B$17:$B$23,'Activity 8'!N$17:N$23,\"N/A\",0,1)","v":"N/A"},{"$f":"_xlfn.XLOOKUP($E71,'Activity 8'!$B$17:$B$23,'Activity 8'!P$17:P$23,\"N/A\",0,1)","v":"N/A"},{"$f":"_xlfn.XLOOKUP(E71,'Activity 9'!$B$7:$B$13,'Activity 9'!$A$7:$A$13,\"No\",0,1)","v":"No"},{"$f":"_xlfn.XLOOKUP($E71,'Activity 9'!$B$7:$B$13,'Activity 9'!J$7:J$13,\"N/A\",0,1)","v":"N/A"},{"$f":"_xlfn.XLOOKUP($E71,'Activity 9'!$B$7:$B$13,'Activity 9'!K$7:K$13,\"N/A\",0,1)","v":"N/A"},{"$f":"_xlfn.XLOOKUP($E71,'Activity 9'!$B$7:$B$13,'Activity 9'!L$7:L$13,\"N/A\",0,1)","v":"N/A"},{"$f":"_xlfn.XLOOKUP($E71,'Activity 9'!$B$7:$B$13,'Activity 9'!M$7:M$13,\"N/A\",0,1)","v":"N/A"},{"$f":"_xlfn.XLOOKUP($E71,'Activity 9'!$B$7:$B$13,'Activity 9'!N$7:N$13,\"N/A\",0,1)","v":"N/A"},{"$f":"_xlfn.XLOOKUP($E71,'Activity 9'!$B$7:$B$13,'Activity 9'!O$7:O$13,\"N/A\",0,1)","v":"N/A"},{"$f":"_xlfn.XLOOKUP($E71,'Activity 9'!$B$7:$B$13,'Activity 9'!P$7:P$13,\"N/A\",0,1)","v":"N/A"},{"$f":"_xlfn.XLOOKUP($E71,'Activity 9'!$B$7:$B$13,'Activity 9'!Q$7:Q$13,\"N/A\",0,1)","v":"N/A"},{"$f":"_xlfn.XLOOKUP($E71,'Activity 9'!$B$7:$B$13,'Activity 9'!R$7:R$13,\"N/A\",0,1)","v":"N/A"},{"$f":"_xlfn.XLOOKUP($E71,'Activity 9'!$B$7:$B$13,'Activity 9'!S$7:S$13,\"N/A\",0,1)","v":"N/A"},{"$f":"_xlfn.XLOOKUP($E71,'Activity 9'!$B$7:$B$13,'Activity 9'!T$7:T$13,\"N/A\",0,1)","v":"N/A"},{"$f":"_xlfn.XLOOKUP($E71,'Activity 9'!$B$17:$B$23,'Activity 9'!E$17:E$23,\"N/A\",0,1)","v":"N/A"},{"$f":"_xlfn.XLOOKUP($E71,'Activity 9'!$B$17:$B$23,'Activity 9'!F$17:F$23,\"N/A\",0,1)","v":"N/A"},{"$f":"_xlfn.XLOOKUP($E71,'Activity 9'!$B$17:$B$23,'Activity 9'!G$17:G$23,\"N/A\",0,1)","v":"N/A"},{"$f":"_xlfn.XLOOKUP($E71,'Activity 9'!$B$17:$B$23,'Activity 9'!H$17:H$23,\"N/A\",0,1)","v":"N/A"},{"$f":"_xlfn.XLOOKUP($E71,'Activity 9'!$B$17:$B$23,'Activity 9'!I$17:I$23,\"N/A\",0,1)","v":"N/A"},{"$f":"_xlfn.XLOOKUP($E71,'Activity 9'!$B$17:$B$23,'Activity 9'!J$17:J$23,\"N/A\",0,1)","v":"N/A"},{"$f":"_xlfn.XLOOKUP($E71,'Activity 9'!$B$17:$B$23,'Activity 9'!K$17:K$23,\"N/A\",0,1)","v":"N/A"},{"$f":"_xlfn.XLOOKUP($E71,'Activity 9'!$B$17:$B$23,'Activity 9'!L$17:L$23,\"N/A\",0,1)","v":"N/A"},{"$f":"_xlfn.XLOOKUP($E71,'Activity 9'!$B$17:$B$23,'Activity 9'!N$17:N$23,\"N/A\",0,1)","v":"N/A"},{"$f":"_xlfn.XLOOKUP($E71,'Activity 9'!$B$17:$B$23,'Activity 9'!O$17:O$23,\"N/A\",0,1)","v":"N/A"},{"$f":"_xlfn.XLOOKUP($E71,'Activity 9'!$B$17:$B$23,'Activity 9'!Q$17:Q$23,\"N/A\",0,1)","v":"N/A"},{"$f":"_xlfn.XLOOKUP($E71,'Activity 10'!$B$7:$B$13,'Activity 10'!A$7:A$13,\"No\",0,1)","v":"No"},{"$f":"_xlfn.XLOOKUP($E71,'Activity 10'!$B$7:$B$13,'Activity 10'!J$7:J$13,\"N/A\",0,1)","v":"N/A"},{"$f":"_xlfn.XLOOKUP($E71,'Activity 10'!$B$7:$B$13,'Activity 10'!K$7:K$13,\"N/A\",0,1)","v":"N/A"},{"$f":"_xlfn.XLOOKUP($E71,'Activity 10'!$B$7:$B$13,'Activity 10'!L$7:L$13,\"N/A\",0,1)","v":"N/A"},{"$f":"_xlfn.XLOOKUP($E71,'Activity 10'!$B$7:$B$13,'Activity 10'!M$7:M$13,\"N/A\",0,1)","v":"N/A"},{"$f":"_xlfn.XLOOKUP($E71,'Activity 10'!$B$7:$B$13,'Activity 10'!N$7:N$13,\"N/A\",0,1)","v":"N/A"},{"$f":"_xlfn.XLOOKUP($E71,'Activity 10'!$B$7:$B$13,'Activity 10'!O$7:O$13,\"N/A\",0,1)","v":"N/A"},{"$f":"_xlfn.XLOOKUP($E71,'Activity 10'!$B$7:$B$13,'Activity 10'!P$7:P$13,\"N/A\",0,1)","v":"N/A"},{"$f":"_xlfn.XLOOKUP($E71,'Activity 10'!$B$7:$B$13,'Activity 10'!Q$7:Q$13,\"N/A\",0,1)","v":"N/A"},{"$f":"_xlfn.XLOOKUP($E71,'Activity 10'!$B$7:$B$13,'Activity 10'!R$7:R$13,\"N/A\",0,1)","v":"N/A"},{"$f":"_xlfn.XLOOKUP($E71,'Activity 10'!$B$7:$B$13,'Activity 10'!S$7:S$13,\"N/A\",0,1)","v":"N/A"},{"$f":"_xlfn.XLOOKUP($E71,'Activity 10'!$B$7:$B$13,'Activity 10'!T$7:T$13,\"N/A\",0,1)","v":"N/A"},{"$f":"_xlfn.XLOOKUP($E71,'Activity 10'!$B$7:$B$13,'Activity 10'!U$7:U$13,\"N/A\",0,1)","v":"N/A"},{"$f":"_xlfn.XLOOKUP($E71,'Activity 10'!$B$7:$B$13,'Activity 10'!V$7:V$13,\"N/A\",0,1)","v":"N/A"},{"$f":"_xlfn.XLOOKUP($E71,'Activity 10'!$B$17:$B$23,'Activity 10'!E$17:E$23,\"N/A\",0,1)","v":"N/A"},{"$f":"_xlfn.XLOOKUP($E71,'Activity 10'!$B$17:$B$23,'Activity 10'!F$17:F$23,\"N/A\",0,1)","v":"N/A"},{"$f":"_xlfn.XLOOKUP($E71,'Activity 10'!$B$17:$B$23,'Activity 10'!G$17:G$23,\"N/A\",0,1)","v":"N/A"},{"$f":"_xlfn.XLOOKUP($E71,'Activity 10'!$B$17:$B$23,'Activity 10'!H$17:H$23,\"N/A\",0,1)","v":"N/A"},{"$f":"_xlfn.XLOOKUP($E71,'Activity 10'!$B$17:$B$23,'Activity 10'!I$17:I$23,\"N/A\",0,1)","v":"N/A"},{"$f":"_xlfn.XLOOKUP($E71,'Activity 10'!$B$17:$B$23,'Activity 10'!J$17:J$23,\"N/A\",0,1)","v":"N/A"},{"$f":"_xlfn.XLOOKUP($E71,'Activity 10'!$B$17:$B$23,'Activity 10'!K$17:K$23,\"N/A\",0,1)","v":"N/A"},{"$f":"_xlfn.XLOOKUP($E71,'Activity 10'!$B$17:$B$23,'Activity 10'!L$17:L$23,\"N/A\",0,1)","v":"N/A"},{"$f":"_xlfn.XLOOKUP($E71,'Activity 10'!$B$17:$B$23,'Activity 10'!M$17:M$23,\"N/A\",0,1)","v":"N/A"},{"$f":"_xlfn.XLOOKUP($E71,'Activity 10'!$B$17:$B$23,'Activity 10'!N$17:N$23,\"N/A\",0,1)","v":"N/A"},{"$f":"_xlfn.XLOOKUP($E71,'Activity 10'!$B$17:$B$23,'Activity 10'!P$17:P$23,\"N/A\",0,1)","v":"N/A"},{"$f":"_xlfn.XLOOKUP($E71,'Competitive Activity 1'!B$7:B$13,'Competitive Activity 1'!A$7:A$13,\"No\",0,1)","v":"No"},{"$f":"_xlfn.XLOOKUP($E71,'Competitive Activity 1'!$B$7:$B$13,'Competitive Activity 1'!H$7:H$13,\"N/A\",0,1)","v":"N/A"},{"$f":"_xlfn.XLOOKUP($E71,'Competitive Activity 1'!$B$7:$B$13,'Competitive Activity 1'!I$7:I$13,\"N/A\",0,1)","v":"N/A"},{"$f":"_xlfn.XLOOKUP($E71,'Competitive Activity 1'!$B$7:$B$13,'Competitive Activity 1'!J$7:J$13,\"N/A\",0,1)","v":"N/A"},{"$f":"_xlfn.XLOOKUP($E71,'Competitive Activity 1'!$B$7:$B$13,'Competitive Activity 1'!K$7:K$13,\"N/A\",0,1)","v":"N/A"},{"$f":"_xlfn.XLOOKUP($E71,'Competitive Activity 1'!$B$7:$B$13,'Competitive Activity 1'!L$7:L$13,\"N/A\",0,1)","v":"N/A"},{"$f":"_xlfn.XLOOKUP($E71,'Competitive Activity 1'!$B$7:$B$13,'Competitive Activity 1'!M$7:M$13,\"N/A\",0,1)","v":"N/A"},{"$f":"_xlfn.XLOOKUP($E71,'Competitive Activity 1'!$B$7:$B$13,'Competitive Activity 1'!N$7:N$13,\"N/A\",0,1)","v":"N/A"},{"$f":"_xlfn.XLOOKUP($E71,'Competitive Activity 1'!$B$7:$B$13,'Competitive Activity 1'!O$7:O$13,\"N/A\",0,1)","v":"N/A"},{"$f":"_xlfn.XLOOKUP($E71,'Competitive Activity 1'!$B$7:$B$13,'Competitive Activity 1'!P$7:P$13,\"N/A\",0,1)","v":"N/A"},{"$f":"_xlfn.XLOOKUP($E71,'Competitive Activity 1'!$B$7:$B$13,'Competitive Activity 1'!Q$7:Q$13,\"N/A\",0,1)","v":"N/A"},{"$f":"_xlfn.XLOOKUP($E71,'Competitive Activity 1'!$B$7:$B$13,'Competitive Activity 1'!R$7:R$13,\"N/A\",0,1)","v":"N/A"},{"$f":"_xlfn.XLOOKUP($E71,'Competitive Activity 1'!$B$7:$B$13,'Competitive Activity 1'!S$7:S$13,\"N/A\",0,1)","v":"N/A"},{"$f":"_xlfn.XLOOKUP($E71,'Competitive Activity 1'!$B$7:$B$13,'Competitive Activity 1'!T$7:T$13,\"N/A\",0,1)","v":"N/A"},{"$f":"_xlfn.XLOOKUP($E71,'Competitive Activity 1'!$B$7:$B$13,'Competitive Activity 1'!U$7:U$13,\"N/A\",0,1)","v":"N/A"},{"$f":"_xlfn.XLOOKUP($E71,'Competitive Activity 1'!$B$17:$B$23,'Competitive Activity 1'!C$17:C$23,\"N/A\",0,1)","v":"N/A"},{"$f":"_xlfn.XLOOKUP($E71,'Competitive Activity 1'!$B$17:$B$23,'Competitive Activity 1'!D$17:D$23,\"N/A\",0,1)","v":"N/A"},{"$f":"_xlfn.XLOOKUP($E71,'Competitive Activity 1'!$B$17:$B$23,'Competitive Activity 1'!E$17:E$23,\"N/A\",0,1)","v":"N/A"},{"$f":"_xlfn.XLOOKUP($E71,'Competitive Activity 1'!$B$17:$B$23,'Competitive Activity 1'!F$17:F$23,\"N/A\",0,1)","v":"N/A"},{"$f":"_xlfn.XLOOKUP($E71,'Competitive Activity 1'!$B$17:$B$23,'Competitive Activity 1'!G$17:G$23,\"N/A\",0,1)","v":"N/A"},{"$f":"_xlfn.XLOOKUP($E71,'Competitive Activity 1'!$B$17:$B$23,'Competitive Activity 1'!H$17:H$23,\"N/A\",0,1)","v":"N/A"},{"$f":"_xlfn.XLOOKUP($E71,'Competitive Activity 1'!$B$17:$B$23,'Competitive Activity 1'!I$17:I$23,\"N/A\",0,1)","v":"N/A"},{"$f":"_xlfn.XLOOKUP($E71,'Competitive Activity 1'!$B$17:$B$23,'Competitive Activity 1'!J$17:J$23,\"N/A\",0,1)","v":"N/A"},{"$f":"_xlfn.XLOOKUP($E71,'Competitive Activity 1'!$B$17:$B$23,'Competitive Activity 1'!K$17:K$23,\"N/A\",0,1)","v":"N/A"},{"$f":"_xlfn.XLOOKUP($E71,'Competitive Activity 1'!$B$17:$B$23,'Competitive Activity 1'!M$17:M$23,\"N/A\",0,1)","v":"N/A"},{"$f":"_xlfn.XLOOKUP($E71,'Competitive Activity 1'!$B$17:$B$23,'Competitive Activity 1'!N$17:N$23,\"N/A\",0,1)","v":"N/A"},{"$f":"_xlfn.XLOOKUP($E71,'Competitive Activity 1'!$B$17:$B$23,'Competitive Activity 1'!P$17:P$23,\"N/A\",0,1)","v":"N/A"},{"$f":"_xlfn.XLOOKUP($E71,'Competitive Activity 2'!$B$7:$B$13,'Competitive Activity 2'!A$7:A$13,\"No\",0)","v":"No"},{"$f":"_xlfn.XLOOKUP($E71,'Competitive Activity 2'!$B$7:$B$13,'Competitive Activity 2'!L$7:L$13,\"N/A\",0)","v":"N/A"},{"$f":"_xlfn.XLOOKUP($E71,'Competitive Activity 2'!$B$7:$B$13,'Competitive Activity 2'!M$7:M$13,\"N/A\",0)","v":"N/A"},{"$f":"_xlfn.XLOOKUP($E71,'Competitive Activity 2'!$B$7:$B$13,'Competitive Activity 2'!N$7:N$13,\"N/A\",0)","v":"N/A"},{"$f":"_xlfn.XLOOKUP($E71,'Competitive Activity 2'!$B$7:$B$13,'Competitive Activity 2'!O$7:O$13,\"N/A\",0)","v":"N/A"},{"$f":"_xlfn.XLOOKUP($E71,'Competitive Activity 2'!$B$7:$B$13,'Competitive Activity 2'!P$7:P$13,\"N/A\",0)","v":"N/A"},{"$f":"_xlfn.XLOOKUP($E71,'Competitive Activity 2'!$B$7:$B$13,'Competitive Activity 2'!Q$7:Q$13,\"N/A\",0)","v":"N/A"},{"$f":"_xlfn.XLOOKUP($E71,'Competitive Activity 2'!$B$7:$B$13,'Competitive Activity 2'!R$7:R$13,\"N/A\",0)","v":"N/A"},{"$f":"_xlfn.XLOOKUP($E71,'Competitive Activity 2'!$B$7:$B$13,'Competitive Activity 2'!S$7:S$13,\"N/A\",0)","v":"N/A"},{"$f":"_xlfn.XLOOKUP($E71,'Competitive Activity 2'!$B$7:$B$13,'Competitive Activity 2'!T$7:T$13,\"N/A\",0)","v":"N/A"},{"$f":"_xlfn.XLOOKUP($E71,'Competitive Activity 2'!$B$7:$B$13,'Competitive Activity 2'!U$7:U$13,\"N/A\",0)","v":"N/A"},{"$f":"_xlfn.XLOOKUP($E71,'Competitive Activity 2'!$B$17:$B$23,'Competitive Activity 2'!D$17:D$23,\"N/A\",0)","v":"N/A"},{"$f":"_xlfn.XLOOKUP($E71,'Competitive Activity 2'!$B$17:$B$23,'Competitive Activity 2'!E$17:E$23,\"N/A\",0)","v":"N/A"},{"$f":"_xlfn.XLOOKUP($E71,'Competitive Activity 2'!$B$17:$B$23,'Competitive Activity 2'!F$17:F$23,\"N/A\",0)","v":"N/A"},{"$f":"_xlfn.XLOOKUP($E71,'Competitive Activity 2'!$B$17:$B$23,'Competitive Activity 2'!G$17:G$23,\"N/A\",0)","v":"N/A"},{"$f":"_xlfn.XLOOKUP($E71,'Competitive Activity 2'!$B$17:$B$23,'Competitive Activity 2'!H$17:H$23,\"N/A\",0)","v":"N/A"},{"$f":"_xlfn.XLOOKUP($E71,'Competitive Activity 2'!$B$17:$B$23,'Competitive Activity 2'!I$17:I$23,\"N/A\",0)","v":"N/A"},{"$f":"_xlfn.XLOOKUP($E71,'Competitive Activity 2'!$B$17:$B$23,'Competitive Activity 2'!J$17:J$23,\"N/A\",0)","v":"N/A"},{"$f":"_xlfn.XLOOKUP($E71,'Competitive Activity 2'!$B$17:$B$23,'Competitive Activity 2'!K$17:K$23,\"N/A\",0)","v":"N/A"},{"$f":"_xlfn.XLOOKUP($E71,'Competitive Activity 2'!$B$17:$B$23,'Competitive Activity 2'!L$17:L$23,\"N/A\",0)","v":"N/A"},{"$f":"_xlfn.XLOOKUP($E71,'Competitive Activity 2'!$B$17:$B$23,'Competitive Activity 2'!M$17:M$23,\"N/A\",0)","v":"N/A"},{"$f":"_xlfn.XLOOKUP($E71,'Competitive Activity 2'!$B$17:$B$23,'Competitive Activity 2'!N$17:N$23,\"N/A\",0)","v":"N/A"},{"$f":"_xlfn.XLOOKUP($E71,'Competitive Activity 2'!$B$27:$B$33,'Competitive Activity 2'!D$27:D$33,\"N/A\",0)","v":"N/A"},{"$f":"_xlfn.XLOOKUP($E71,'Competitive Activity 2'!$B$27:$B$33,'Competitive Activity 2'!E$27:E$33,\"N/A\",0)","v":"N/A"},{"$f":"_xlfn.XLOOKUP($E71,'Competitive Activity 2'!$B$27:$B$33,'Competitive Activity 2'!F$27:F$33,\"N/A\",0)","v":"N/A"},{"$f":"_xlfn.XLOOKUP($E71,'Competitive Activity 2'!$B$27:$B$33,'Competitive Activity 2'!G$27:G$33,\"N/A\",0)","v":"N/A"},{"$f":"_xlfn.XLOOKUP($E71,'Competitive Activity 2'!$B$27:$B$33,'Competitive Activity 2'!H$27:H$33,\"N/A\",0)","v":"N/A"},{"$f":"_xlfn.XLOOKUP($E71,'Competitive Activity 2'!$B$27:$B$33,'Competitive Activity 2'!I$27:I$33,\"N/A\",0)","v":"N/A"},{"$f":"_xlfn.XLOOKUP($E71,'Competitive Activity 2'!$B$27:$B$33,'Competitive Activity 2'!J$27:J$33,\"N/A\",0)","v":"N/A"},{"$f":"_xlfn.XLOOKUP($E71,'Competitive Activity 2'!$B$27:$B$33,'Competitive Activity 2'!K$27:K$33,\"N/A\",0)","v":"N/A"},{"$f":"_xlfn.XLOOKUP($E71,'Competitive Activity 2'!$B$27:$B$33,'Competitive Activity 2'!M$27:M$33,\"N/A\",0)","v":"N/A"}]
[{"$f":"'1-Cover Sheet'!$C$8","v":"Select One"},{"$f":"'1-Cover Sheet'!$F$8","v":"Select One"},{"$f":"'Summary Sheet'!$D$8","v":0},{"$f":"'Summary Sheet'!$D$10","v":0},{"$f":"'Drop Down Box'!B236","v":0},{"$f":"'Drop Down Box'!C236","v":0},{"$f":"'Drop Down Box'!D236","v":"Select One"},{"$f":"_xlfn.XLOOKUP(E72,'Drop Down Box'!$B$166:$B$249,'Drop Down Box'!$A$166:$A$249,\"Unknown\",0)","v":"Activity 1"},{"$f":"_xlfn.XLOOKUP($E72,'Competitive Activity 1'!$B$17:$B$23,'Competitive Activity 1'!$L$17:$L$23,\"N/A\",0)","v":"N/A"},{"$f":"_xlfn.XLOOKUP($E72,'Competitive Activity 1'!$B$17:$B$23,'Competitive Activity 1'!$O$17:$O$23,\"N/A\",0)","v":"N/A"},{"$f":"_xlfn.XLOOKUP($E72,'Competitive Activity 1'!$B$7:$B$13,'Competitive Activity 1'!E$7:E$13,\"N/A\",0)","v":"N/A"},{"$f":"_xlfn.XLOOKUP($E72,'Competitive Activity 1'!$B$7:$B$13,'Competitive Activity 1'!F$7:F$13,\"N/A\",0)","v":"N/A"},{"$f":"_xlfn.XLOOKUP($E72,'Competitive Activity 1'!$B$7:$B$13,'Competitive Activity 1'!G$7:G$13,\"N/A\",0)","v":"N/A"},{"$f":"_xlfn.XLOOKUP($E72,'Activity 1'!$B$7:$B$13,'Activity 1'!$A$7:$A$13,\"No\",0,1)","v":"No"},{"$f":"_xlfn.XLOOKUP($E72,'Activity 1'!$B$7:$B$13,'Activity 1'!$H$7:$H$13,\"N/A\",0,1)","v":"N/A"},{"$f":"_xlfn.XLOOKUP($E72,'Activity 1'!$B$7:$B$13,'Activity 1'!I$7:I$13,\"N/A\",0,1)","v":"N/A"},{"$f":"_xlfn.XLOOKUP($E72,'Activity 1'!$B$7:$B$13,'Activity 1'!J$7:J$13,\"N/A\",0,1)","v":"N/A"},{"$f":"_xlfn.XLOOKUP($E72,'Activity 1'!$B$7:$B$13,'Activity 1'!K$7:K$13,\"N/A\",0,1)","v":"N/A"},{"$f":"_xlfn.XLOOKUP($E72,'Activity 1'!$B$7:$B$13,'Activity 1'!L$7:L$13,\"N/A\",0,1)","v":"N/A"},{"$f":"_xlfn.XLOOKUP($E72,'Activity 1'!$B$7:$B$13,'Activity 1'!M$7:M$13,\"N/A\",0,1)","v":"N/A"},{"$f":"_xlfn.XLOOKUP($E72,'Activity 1'!$B$7:$B$13,'Activity 1'!N$7:N$13,\"N/A\",0,1)","v":"N/A"},0,{"$f":"_xlfn.XLOOKUP($E72,'Activity 1'!$B$7:$B$13,'Activity 1'!O$7:O$13,\"N/A\",0,1)","v":"N/A"},{"$f":"_xlfn.XLOOKUP($E72,'Activity 1'!$B$7:$B$13,'Activity 1'!P$7:P$13,\"N/A\",0,1)","v":"N/A"},{"$f":"_xlfn.XLOOKUP($E72,'Activity 1'!$B$7:$B$13,'Activity 1'!Q$7:Q$13,\"N/A\",0,1)","v":"N/A"},{"$f":"_xlfn.XLOOKUP($E72,'Activity 1'!$B$7:$B$13,'Activity 1'!R$7:R$13,\"N/A\",0,1)","v":"N/A"},{"$f":"_xlfn.XLOOKUP($E72,'Activity 1'!$B$7:$B$13,'Activity 1'!S$7:S$13,\"N/A\",0,1)","v":"N/A"},{"$f":"_xlfn.XLOOKUP($E72,'Activity 1'!$B$7:$B$13,'Activity 1'!T$7:T$13,\"N/A\",0,1)","v":"N/A"},{"$f":"_xlfn.XLOOKUP($E72,'Activity 1'!$B$7:$B$13,'Activity 1'!U$7:U$13,\"N/A\",0,1)","v":"N/A"},{"$f":"_xlfn.XLOOKUP($E72,'Activity 1'!$B$7:$B$13,'Activity 1'!V$7:V$13,\"N/A\",0,1)","v":"N/A"},{"$f":"_xlfn.XLOOKUP($E72,'Activity 1'!$B$17:$B$23,'Activity 1'!C$17:C$23,\"N/A\",0,1)","v":"N/A"},{"$f":"_xlfn.XLOOKUP($E72,'Activity 1'!$B$17:$B$23,'Activity 1'!D$17:D$23,\"N/A\",0,1)","v":"N/A"},{"$f":"_xlfn.XLOOKUP($E72,'Activity 1'!$B$17:$B$23,'Activity 1'!E$17:E$23,\"N/A\",0,1)","v":"N/A"},{"$f":"_xlfn.XLOOKUP($E72,'Activity 1'!$B$17:$B$23,'Activity 1'!F$17:F$23,\"N/A\",0,1)","v":"N/A"},{"$f":"_xlfn.XLOOKUP($E72,'Activity 1'!$B$17:$B$23,'Activity 1'!G$17:G$23,\"N/A\",0,1)","v":"N/A"},{"$f":"_xlfn.XLOOKUP($E72,'Activity 1'!$B$17:$B$23,'Activity 1'!H$17:H$23,\"N/A\",0,1)","v":"N/A"},{"$f":"_xlfn.XLOOKUP($E72,'Activity 1'!$B$17:$B$23,'Activity 1'!I$17:I$23,\"N/A\",0,1)","v":"N/A"},{"$f":"_xlfn.XLOOKUP($E72,'Activity 1'!$B$17:$B$23,'Activity 1'!J$17:J$23,\"N/A\",0,1)","v":"N/A"},{"$f":"_xlfn.XLOOKUP($E72,'Activity 1'!$B$17:$B$23,'Activity 1'!K$17:K$23,\"N/A\",0,1)","v":"N/A"},{"$f":"_xlfn.XLOOKUP($E72,'Activity 1'!$B$17:$B$23,'Activity 1'!L$17:L$23,\"N/A\",0,1)","v":"N/A"},{"$f":"_xlfn.XLOOKUP($E72,'Activity 1'!$B$17:$B$23,'Activity 1'!M$17:M$23,\"N/A\",0,1)","v":"N/A"},{"$f":"_xlfn.XLOOKUP($E72,'Activity 1'!$B$17:$B$23,'Activity 1'!O$17:O$23,\"N/A\",0,1)","v":"N/A"},{"$f":"_xlfn.XLOOKUP($E72,'Activity 1'!$B$17:$B$23,'Activity 1'!Q$17:Q$23,\"N/A\",0,1)","v":"N/A"},{"$f":"_xlfn.XLOOKUP($E72,'Activity 2'!$B$7:$B$13,'Activity 2'!$A$7:$A$13,\"No\",0,1)","v":"No"},{"$f":"_xlfn.XLOOKUP($E72,'Activity 2'!B$7:B$13,'Activity 2'!H$7:H$13,\"N/A\",0)","v":"N/A"},{"$f":"_xlfn.XLOOKUP($E72,'Activity 2'!C$7:C$13,'Activity 2'!I$7:I$13,\"N/A\",0)","v":"N/A"},{"$f":"_xlfn.XLOOKUP($E72,'Activity 2'!D$7:D$13,'Activity 2'!J$7:J$13,\"N/A\",0)","v":"N/A"},{"$f":"_xlfn.XLOOKUP($E72,'Activity 2'!E$7:E$13,'Activity 2'!K$7:K$13,\"N/A\",0)","v":"N/A"},{"$f":"_xlfn.XLOOKUP($E72,'Activity 2'!F$7:F$13,'Activity 2'!L$7:L$13,\"N/A\",0)","v":"N/A"},{"$f":"_xlfn.XLOOKUP($E72,'Activity 2'!G$7:G$13,'Activity 2'!M$7:M$13,\"N/A\",0)","v":"N/A"},{"$f":"_xlfn.XLOOKUP($E72,'Activity 2'!H$7:H$13,'Activity 2'!N$7:N$13,\"N/A\",0)","v":"N/A"},{"$f":"_xlfn.XLOOKUP($E72,'Activity 2'!I$7:I$13,'Activity 2'!O$7:O$13,\"N/A\",0)","v":"N/A"},{"$f":"_xlfn.XLOOKUP($E72,'Activity 2'!J$7:J$13,'Activity 2'!P$7:P$13,\"N/A\",0)","v":"N/A"},{"$f":"_xlfn.XLOOKUP($E72,'Activity 2'!K$7:K$13,'Activity 2'!Q$7:Q$13,\"N/A\",0)","v":"N/A"},{"$f":"_xlfn.XLOOKUP($E72,'Activity 2'!L$7:L$13,'Activity 2'!R$7:R$13,\"N/A\",0)","v":"N/A"},{"$f":"_xlfn.XLOOKUP($E72,'Activity 2'!M$7:M$13,'Activity 2'!S$7:S$13,\"N/A\",0)","v":"N/A"},{"$f":"_xlfn.XLOOKUP($E72,'Activity 2'!N$7:N$13,'Activity 2'!T$7:T$13,\"N/A\",0)","v":"N/A"},{"$f":"_xlfn.XLOOKUP($E72,'Activity 2'!O$7:O$13,'Activity 2'!U$7:U$13,\"N/A\",0)","v":"N/A"},{"$f":"_xlfn.XLOOKUP($E72,'Activity 2'!P$7:P$13,'Activity 2'!V$7:V$13,\"N/A\",0)","v":"N/A"},{"$f":"_xlfn.XLOOKUP($E72,'Activity 2'!$B$17:$B$23,'Activity 2'!C$17:C$23,\"N/A\",0,1)","v":"N/A"},{"$f":"_xlfn.XLOOKUP($E72,'Activity 2'!$B$17:$B$23,'Activity 2'!D$17:D$23,\"N/A\",0,1)","v":"N/A"},{"$f":"_xlfn.XLOOKUP($E72,'Activity 2'!$B$17:$B$23,'Activity 2'!E$17:E$23,\"N/A\",0,1)","v":"N/A"},{"$f":"_xlfn.XLOOKUP($E72,'Activity 2'!$B$17:$B$23,'Activity 2'!F$17:F$23,\"N/A\",0,1)","v":"N/A"},{"$f":"_xlfn.XLOOKUP($E72,'Activity 2'!$B$17:$B$23,'Activity 2'!G$17:G$23,\"N/A\",0,1)","v":"N/A"},{"$f":"_xlfn.XLOOKUP($E72,'Activity 2'!$B$17:$B$23,'Activity 2'!H$17:H$23,\"N/A\",0,1)","v":"N/A"},{"$f":"_xlfn.XLOOKUP($E72,'Activity 2'!$B$17:$B$23,'Activity 2'!I$17:I$23,\"N/A\",0,1)","v":"N/A"},{"$f":"_xlfn.XLOOKUP($E72,'Activity 2'!$B$17:$B$23,'Activity 2'!J$17:J$23,\"N/A\",0,1)","v":"N/A"},{"$f":"_xlfn.XLOOKUP($E72,'Activity 2'!$B$17:$B$23,'Activity 2'!K$17:K$23,\"N/A\",0,1)","v":"N/A"},{"$f":"_xlfn.XLOOKUP($E72,'Activity 2'!$B$17:$B$23,'Activity 2'!L$17:L$23,\"N/A\",0,1)","v":"N/A"},{"$f":"_xlfn.XLOOKUP($E72,'Activity 2'!$B$17:$B$23,'Activity 2'!M$17:M$23,\"N/A\",0,1)","v":"N/A"},{"$f":"_xlfn.XLOOKUP($E72,'Activity 2'!$B$17:$B$23,'Activity 2'!O$17:O$23,\"N/A\",0,1)","v":"N/A"},{"$f":"_xlfn.XLOOKUP($E72,'Activity 2'!$B$17:$B$23,'Activity 2'!Q$17:Q$23,\"N/A\",0,1)","v":"N/A"},null,{"$f":"_xlfn.XLOOKUP($E72,'Activity 3'!$B$8:$B$14,'Activity 3'!K$8:K$14,\"N/A\",0,1)","v":"N/A"},{"$f":"_xlfn.XLOOKUP($E72,'Activity 3'!$B$8:$B$14,'Activity 3'!L$8:L$14,\"N/A\",0,1)","v":"N/A"},{"$f":"_xlfn.XLOOKUP($E72,'Activity 3'!$B$8:$B$14,'Activity 3'!M$8:M$14,\"N/A\",0,1)","v":"N/A"},{"$f":"_xlfn.XLOOKUP($E72,'Activity 3'!$B$8:$B$14,'Activity 3'!N$8:N$14,\"N/A\",0,1)","v":"N/A"},{"$f":"_xlfn.XLOOKUP($E72,'Activity 3'!$B$8:$B$14,'Activity 3'!O$8:O$14,\"N/A\",0,1)","v":"N/A"},{"$f":"_xlfn.XLOOKUP($E72,'Activity 3'!$B$8:$B$14,'Activity 3'!R$8:R$14,\"N/A\",0,1)","v":"N/A"},{"$f":"_xlfn.XLOOKUP($E72,'Activity 4'!$B$8:$B$14,'Activity 4'!$A$8:$A$14,\"No\",0,1)","v":"No"},{"$f":"_xlfn.XLOOKUP($E72,'Activity 4'!$B$8:$B$14,'Activity 4'!L$8:L$14,\"N/A\",0,1)","v":"N/A"},{"$f":"_xlfn.XLOOKUP($E72,'Activity 4'!$B$8:$B$14,'Activity 4'!I$8:I$14,\"N/A\",0,1)","v":"N/A"},{"$f":"_xlfn.XLOOKUP($E72,'Activity 4'!$B$8:$B$14,'Activity 4'!M$8:M$14,\"N/A\",0,1)","v":"N/A"},{"$f":"_xlfn.XLOOKUP($E72,'Activity 5'!$B$8:$B$14,'Activity 5'!$A$8:$A$14,\"No\",0,1)","v":"No"},{"$f":"_xlfn.XLOOKUP($E72,'Activity 5'!$B$8:$B$14,'Activity 5'!J$8:J$14,\"N/A\",0,1)","v":"N/A"},{"$f":"_xlfn.XLOOKUP($E72,'Activity 5'!$B$8:$B$14,'Activity 5'!K$8:K$14,\"N/A\",0,1)","v":"N/A"},{"$f":"_xlfn.XLOOKUP($E72,'Activity 5'!$B$8:$B$14,'Activity 5'!N$8:N$14,\"N/A\",0,1)","v":"N/A"},{"$f":"_xlfn.XLOOKUP($E72,'Activity 5'!$B$8:$B$14,'Activity 5'!O$8:O$14,\"N/A\",0,1)","v":"N/A"},{"$f":"_xlfn.XLOOKUP($E72,'Activity 5'!$B$8:$B$14,'Activity 5'!P$8:P$14,\"N/A\",0,1)","v":"N/A"},{"$f":"_xlfn.XLOOKUP($E72,'Activity 5'!$B$8:$B$14,'Activity 5'!Q$8:Q$14,\"N/A\",0,1)","v":"N/A"},{"$f":"_xlfn.XLOOKUP($E72,'Activity 5'!$B$8:$B$14,'Activity 5'!R$8:R$14,\"N/A\",0,1)","v":"N/A"},{"$f":"_xlfn.XLOOKUP($E72,'Activity 6'!$B$7:$B$13,'Activity 6'!A$7:A$13,\"No\",0,1)","v":"No"},{"$f":"_xlfn.XLOOKUP($E72,'Activity 6'!$B$7:$B$13,'Activity 6'!K$7:K$13,\"N/A\",0,1)","v":"N/A"},{"$f":"_xlfn.XLOOKUP($E72,'Activity 6'!$B$7:$B$13,'Activity 6'!L$7:L$13,\"N/A\",0,1)","v":"N/A"},{"$f":"_xlfn.XLOOKUP($E72,'Activity 6'!$B$7:$B$13,'Activity 6'!M$7:M$13,\"N/A\",0,1)","v":"N/A"},{"$f":"_xlfn.XLOOKUP($E72,'Activity 6'!$B$7:$B$13,'Activity 6'!N$7:N$13,\"N/A\",0,1)","v":"N/A"},{"$f":"_xlfn.XLOOKUP($E72,'Activity 6'!$B$7:$B$13,'Activity 6'!O$7:O$13,\"N/A\",0,1)","v":"N/A"},{"$f":"_xlfn.XLOOKUP($E72,'Activity 6'!$B$7:$B$13,'Activity 6'!P$7:P$13,\"N/A\",0,1)","v":"N/A"},{"$f":"_xlfn.XLOOKUP($E72,'Activity 6'!$B$7:$B$13,'Activity 6'!Q$7:Q$13,\"N/A\",0,1)","v":"N/A"},{"$f":"_xlfn.XLOOKUP($E72,'Activity 6'!$B$7:$B$13,'Activity 6'!R$7:R$13,\"N/A\",0,1)","v":"N/A"},{"$f":"_xlfn.XLOOKUP($E72,'Activity 6'!$B$7:$B$13,'Activity 6'!S$7:S$13,\"N/A\",0,1)","v":"N/A"},{"$f":"_xlfn.XLOOKUP($E72,'Activity 6'!$B$7:$B$13,'Activity 6'!T$7:T$13,\"N/A\",0,1)","v":"N/A"},{"$f":"_xlfn.XLOOKUP($E72,'Activity 6'!$B$7:$B$13,'Activity 6'!U$7:U$13,\"N/A\",0,1)","v":"N/A"},{"$f":"_xlfn.XLOOKUP($E72,'Activity 6'!$B$22:$B$28,'Activity 6'!C$22:C$28,\"N/A\",0,1)","v":"N/A"},{"$f":"_xlfn.XLOOKUP($E72,'Activity 6'!$B$22:$B$28,'Activity 6'!D$22:D$28,\"N/A\",0,1)","v":"N/A"},{"$f":"_xlfn.XLOOKUP($E72,'Activity 6'!$B$22:$B$28,'Activity 6'!E$22:E$28,\"N/A\",0,1)","v":"N/A"},{"$f":"_xlfn.XLOOKUP($E72,'Activity 6'!$B$22:$B$28,'Activity 6'!F$22:F$28,\"N/A\",0,1)","v":"N/A"},{"$f":"_xlfn.XLOOKUP($E72,'Activity 6'!$B$22:$B$28,'Activity 6'!G$22:G$28,\"N/A\",0,1)","v":"N/A"},{"$f":"_xlfn.XLOOKUP($E72,'Activity 6'!$B$22:$B$28,'Activity 6'!H$22:H$28,\"N/A\",0,1)","v":"N/A"},{"$f":"_xlfn.XLOOKUP($E72,'Activity 6'!$B$22:$B$28,'Activity 6'!I$22:I$28,\"N/A\",0,1)","v":"N/A"},{"$f":"_xlfn.XLOOKUP($E72,'Activity 6'!$B$22:$B$28,'Activity 6'!J$22:J$28,\"N/A\",0,1)","v":"N/A"},{"$f":"_xlfn.XLOOKUP($E72,'Activity 6'!$B$22:$B$28,'Activity 6'!K$22:K$28,\"N/A\",0,1)","v":"N/A"},{"$f":"_xlfn.XLOOKUP($E72,'Activity 6'!$B$22:$B$28,'Activity 6'!L$22:L$28,\"N/A\",0,1)","v":"N/A"},{"$f":"_xlfn.XLOOKUP($E72,'Activity 6'!$B$22:$B$28,'Activity 6'!M$22:M$28,\"N/A\",0,1)","v":"N/A"},{"$f":"_xlfn.XLOOKUP($E72,'Activity 6'!$B$22:$B$28,'Activity 6'!N$22:N$28,\"N/A\",0,1)","v":"N/A"},{"$f":"_xlfn.XLOOKUP($E72,'Activity 6'!$B$32:$B$38,'Activity 6'!C$32:C$38,\"N/A\",0,1)","v":"N/A"},{"$f":"_xlfn.XLOOKUP($E72,'Activity 6'!$B$32:$B$38,'Activity 6'!D$32:D$38,\"N/A\",0,1)","v":"N/A"},{"$f":"_xlfn.XLOOKUP($E72,'Activity 6'!$B$32:$B$38,'Activity 6'!E$32:E$38,\"N/A\",0,1)","v":"N/A"},{"$f":"_xlfn.XLOOKUP($E72,'Activity 6'!$B$32:$B$38,'Activity 6'!F$32:F$38,\"N/A\",0,1)","v":"N/A"},{"$f":"_xlfn.XLOOKUP($E72,'Activity 6'!$B$32:$B$38,'Activity 6'!G$32:G$38,\"N/A\",0,1)","v":"N/A"},{"$f":"_xlfn.XLOOKUP($E72,'Activity 6'!$B$32:$B$38,'Activity 6'!H$32:H$38,\"N/A\",0,1)","v":"N/A"},{"$f":"_xlfn.XLOOKUP($E72,'Activity 6'!$B$32:$B$38,'Activity 6'!I$32:I$38,\"N/A\",0,1)","v":"N/A"},{"$f":"_xlfn.XLOOKUP($E72,'Activity 6'!$B$32:$B$38,'Activity 6'!J$32:J$38,\"N/A\",0,1)","v":"N/A"},{"$f":"_xlfn.XLOOKUP($E72,'Activity 6'!$B$32:$B$38,'Activity 6'!K$32:K$38,\"N/A\",0,1)","v":"N/A"},{"$f":"_xlfn.XLOOKUP($E72,'Activity 6'!$B$32:$B$38,'Activity 6'!M$32:M$38,\"N/A\",0,1)","v":"N/A"},{"$f":"_xlfn.XLOOKUP($E72,'Activity 7'!$B$7:$B$13,'Activity 7'!$A$7:$A$13,\"No\",0,1)","v":"No"},{"$f":"_xlfn.XLOOKUP($E72,'Activity 7'!$B$7:$B$13,'Activity 7'!M$7:M$13,\"N/A\",0,1)","v":"N/A"},{"$f":"_xlfn.XLOOKUP($E72,'Activity 7'!$B$7:$B$13,'Activity 7'!K$7:K$13,\"N/A\",0,1)","v":"N/A"},{"$f":"_xlfn.XLOOKUP($E72,'Activity 7'!$B$7:$B$13,'Activity 7'!N$7:N$13,\"N/A\",0,1)","v":"N/A"},{"$f":"_xlfn.XLOOKUP($E72,'Activity 7'!$B$7:$B$13,'Activity 7'!O$7:O$13,\"N/A\",0,1)","v":"N/A"},{"$f":"_xlfn.XLOOKUP($E72,'Activity 7'!$B$7:$B$13,'Activity 7'!P$7:P$13,\"N/A\",0,1)","v":"N/A"},{"$f":"_xlfn.XLOOKUP($E72,'Activity 7'!$B$7:$B$13,'Activity 7'!Q$7:Q$13,\"N/A\",0,1)","v":"N/A"},{"$f":"_xlfn.XLOOKUP($E72,'Activity 7'!$B$7:$B$13,'Activity 7'!R$7:R$13,\"N/A\",0,1)","v":"N/A"},{"$f":"_xlfn.XLOOKUP($E72,'Activity 7'!$B$7:$B$13,'Activity 7'!S$7:S$13,\"N/A\",0,1)","v":"N/A"},{"$f":"_xlfn.XLOOKUP($E72,'Activity 7'!$B$7:$B$13,'Activity 7'!T$7:T$13,\"N/A\",0,1)","v":"N/A"},{"$f":"_xlfn.XLOOKUP($E72,'Activity 7'!$B$7:$B$13,'Activity 7'!U$7:U$13,\"N/A\",0,1)","v":"N/A"},{"$f":"_xlfn.XLOOKUP($E72,'Activity 7'!$B$7:$B$13,'Activity 7'!V$7:V$13,\"N/A\",0,1)","v":"N/A"},{"$f":"_xlfn.XLOOKUP($E72,'Activity 7'!$B$17:$B$23,'Activity 7'!E$17:E$23,\"N/A\",0,1)","v":"N/A"},{"$f":"_xlfn.XLOOKUP($E72,'Activity 7'!$B$17:$B$23,'Activity 7'!G$17:G$23,\"N/A\",0,1)","v":"N/A"},{"$f":"_xlfn.XLOOKUP($E72,'Activity 7'!$B$17:$B$23,'Activity 7'!I$17:I$23,\"N/A\",0,1)","v":"N/A"},{"$f":"_xlfn.XLOOKUP($E72,'Activity 7'!$B$17:$B$23,'Activity 7'!J$17:J$23,\"N/A\",0,1)","v":"N/A"},{"$f":"_xlfn.XLOOKUP($E72,'Activity 7'!$B$17:$B$23,'Activity 7'!K$17:K$23,\"N/A\",0,1)","v":"N/A"},{"$f":"_xlfn.XLOOKUP($E72,'Activity 7'!$B$17:$B$23,'Activity 7'!L$17:L$23,\"N/A\",0,1)","v":"N/A"},{"$f":"_xlfn.XLOOKUP($E72,'Activity 7'!$B$17:$B$23,'Activity 7'!M$17:M$23,\"N/A\",0,1)","v":"N/A"},{"$f":"_xlfn.XLOOKUP($E72,'Activity 7'!$B$17:$B$23,'Activity 7'!N$17:N$23,\"N/A\",0,1)","v":"N/A"},{"$f":"_xlfn.XLOOKUP($E72,'Activity 7'!$B$17:$B$23,'Activity 7'!P$17:P$23,\"N/A\",0,1)","v":"N/A"},{"$f":"_xlfn.XLOOKUP($E72,'Activity 8'!$B$7:$B$13,'Activity 8'!A$7:A$13,\"No\",0,1)","v":"No"},{"$f":"_xlfn.XLOOKUP($E72,'Activity 8'!$B$7:$B$13,'Activity 8'!I$7:I$13,\"N/A\",0,1)","v":"N/A"},{"$f":"_xlfn.XLOOKUP($E72,'Activity 8'!$B$7:$B$13,'Activity 8'!J$7:J$13,\"N/A\",0,1)","v":"N/A"},{"$f":"_xlfn.XLOOKUP($E72,'Activity 8'!$B$7:$B$13,'Activity 8'!K$7:K$13,\"N/A\",0,1)","v":"N/A"},{"$f":"_xlfn.XLOOKUP($E72,'Activity 8'!$B$7:$B$13,'Activity 8'!L$7:L$13,\"N/A\",0,1)","v":"N/A"},{"$f":"_xlfn.XLOOKUP($E72,'Activity 8'!$B$7:$B$13,'Activity 8'!M$7:M$13,\"N/A\",0,1)","v":"N/A"},{"$f":"_xlfn.XLOOKUP($E72,'Activity 8'!$B$7:$B$13,'Activity 8'!N$7:N$13,\"N/A\",0,1)","v":"N/A"},{"$f":"_xlfn.XLOOKUP($E72,'Activity 8'!$B$7:$B$13,'Activity 8'!O$7:O$13,\"N/A\",0,1)","v":"N/A"},{"$f":"_xlfn.XLOOKUP($E72,'Activity 8'!$B$7:$B$13,'Activity 8'!P$7:P$13,\"N/A\",0,1)","v":"N/A"},{"$f":"_xlfn.XLOOKUP($E72,'Activity 8'!$B$7:$B$13,'Activity 8'!Q$7:Q$13,\"N/A\",0,1)","v":"N/A"},{"$f":"_xlfn.XLOOKUP($E72,'Activity 8'!$B$7:$B$13,'Activity 8'!R$7:R$13,\"N/A\",0,1)","v":"N/A"},{"$f":"_xlfn.XLOOKUP($E72,'Activity 8'!$B$7:$B$13,'Activity 8'!S$7:S$13,\"N/A\",0,1)","v":"N/A"},{"$f":"_xlfn.XLOOKUP($E72,'Activity 8'!$B$7:$B$13,'Activity 8'!T$7:T$13,\"N/A\",0,1)","v":"N/A"},{"$f":"_xlfn.XLOOKUP($E72,'Activity 8'!$B$7:$B$13,'Activity 8'!U$7:U$13,\"N/A\",0,1)","v":"N/A"},{"$f":"_xlfn.XLOOKUP($E72,'Activity 8'!$B$7:$B$13,'Activity 8'!V$7:V$13,\"N/A\",0,1)","v":"N/A"},{"$f":"_xlfn.XLOOKUP($E72,'Activity 8'!$B$17:$B$23,'Activity 8'!D$17:D$23,\"N/A\",0,1)","v":"N/A"},{"$f":"_xlfn.XLOOKUP($E72,'Activity 8'!$B$17:$B$23,'Activity 8'!E$17:E$23,\"N/A\",0,1)","v":"N/A"},{"$f":"_xlfn.XLOOKUP($E72,'Activity 8'!$B$17:$B$23,'Activity 8'!F$17:F$23,\"N/A\",0,1)","v":"N/A"},{"$f":"_xlfn.XLOOKUP($E72,'Activity 8'!$B$17:$B$23,'Activity 8'!G$17:G$23,\"N/A\",0,1)","v":"N/A"},{"$f":"_xlfn.XLOOKUP($E72,'Activity 8'!$B$17:$B$23,'Activity 8'!H$17:H$23,\"N/A\",0,1)","v":"N/A"},{"$f":"_xlfn.XLOOKUP($E72,'Activity 8'!$B$17:$B$23,'Activity 8'!I$17:I$23,\"N/A\",0,1)","v":"N/A"},{"$f":"_xlfn.XLOOKUP($E72,'Activity 8'!$B$17:$B$23,'Activity 8'!J$17:J$23,\"N/A\",0,1)","v":"N/A"},{"$f":"_xlfn.XLOOKUP($E72,'Activity 8'!$B$17:$B$23,'Activity 8'!K$17:K$23,\"N/A\",0,1)","v":"N/A"},{"$f":"_xlfn.XLOOKUP($E72,'Activity 8'!$B$17:$B$23,'Activity 8'!L$17:L$23,\"N/A\",0,1)","v":"N/A"},{"$f":"_xlfn.XLOOKUP($E72,'Activity 8'!$B$17:$B$23,'Activity 8'!M$17:M$23,\"N/A\",0,1)","v":"N/A"},{"$f":"_xlfn.XLOOKUP($E72,'Activity 8'!$B$17:$B$23,'Activity 8'!N$17:N$23,\"N/A\",0,1)","v":"N/A"},{"$f":"_xlfn.XLOOKUP($E72,'Activity 8'!$B$17:$B$23,'Activity 8'!P$17:P$23,\"N/A\",0,1)","v":"N/A"},{"$f":"_xlfn.XLOOKUP(E72,'Activity 9'!$B$7:$B$13,'Activity 9'!$A$7:$A$13,\"No\",0,1)","v":"No"},{"$f":"_xlfn.XLOOKUP($E72,'Activity 9'!$B$7:$B$13,'Activity 9'!J$7:J$13,\"N/A\",0,1)","v":"N/A"},{"$f":"_xlfn.XLOOKUP($E72,'Activity 9'!$B$7:$B$13,'Activity 9'!K$7:K$13,\"N/A\",0,1)","v":"N/A"},{"$f":"_xlfn.XLOOKUP($E72,'Activity 9'!$B$7:$B$13,'Activity 9'!L$7:L$13,\"N/A\",0,1)","v":"N/A"},{"$f":"_xlfn.XLOOKUP($E72,'Activity 9'!$B$7:$B$13,'Activity 9'!M$7:M$13,\"N/A\",0,1)","v":"N/A"},{"$f":"_xlfn.XLOOKUP($E72,'Activity 9'!$B$7:$B$13,'Activity 9'!N$7:N$13,\"N/A\",0,1)","v":"N/A"},{"$f":"_xlfn.XLOOKUP($E72,'Activity 9'!$B$7:$B$13,'Activity 9'!O$7:O$13,\"N/A\",0,1)","v":"N/A"},{"$f":"_xlfn.XLOOKUP($E72,'Activity 9'!$B$7:$B$13,'Activity 9'!P$7:P$13,\"N/A\",0,1)","v":"N/A"},{"$f":"_xlfn.XLOOKUP($E72,'Activity 9'!$B$7:$B$13,'Activity 9'!Q$7:Q$13,\"N/A\",0,1)","v":"N/A"},{"$f":"_xlfn.XLOOKUP($E72,'Activity 9'!$B$7:$B$13,'Activity 9'!R$7:R$13,\"N/A\",0,1)","v":"N/A"},{"$f":"_xlfn.XLOOKUP($E72,'Activity 9'!$B$7:$B$13,'Activity 9'!S$7:S$13,\"N/A\",0,1)","v":"N/A"},{"$f":"_xlfn.XLOOKUP($E72,'Activity 9'!$B$7:$B$13,'Activity 9'!T$7:T$13,\"N/A\",0,1)","v":"N/A"},{"$f":"_xlfn.XLOOKUP($E72,'Activity 9'!$B$17:$B$23,'Activity 9'!E$17:E$23,\"N/A\",0,1)","v":"N/A"},{"$f":"_xlfn.XLOOKUP($E72,'Activity 9'!$B$17:$B$23,'Activity 9'!F$17:F$23,\"N/A\",0,1)","v":"N/A"},{"$f":"_xlfn.XLOOKUP($E72,'Activity 9'!$B$17:$B$23,'Activity 9'!G$17:G$23,\"N/A\",0,1)","v":"N/A"},{"$f":"_xlfn.XLOOKUP($E72,'Activity 9'!$B$17:$B$23,'Activity 9'!H$17:H$23,\"N/A\",0,1)","v":"N/A"},{"$f":"_xlfn.XLOOKUP($E72,'Activity 9'!$B$17:$B$23,'Activity 9'!I$17:I$23,\"N/A\",0,1)","v":"N/A"},{"$f":"_xlfn.XLOOKUP($E72,'Activity 9'!$B$17:$B$23,'Activity 9'!J$17:J$23,\"N/A\",0,1)","v":"N/A"},{"$f":"_xlfn.XLOOKUP($E72,'Activity 9'!$B$17:$B$23,'Activity 9'!K$17:K$23,\"N/A\",0,1)","v":"N/A"},{"$f":"_xlfn.XLOOKUP($E72,'Activity 9'!$B$17:$B$23,'Activity 9'!L$17:L$23,\"N/A\",0,1)","v":"N/A"},{"$f":"_xlfn.XLOOKUP($E72,'Activity 9'!$B$17:$B$23,'Activity 9'!N$17:N$23,\"N/A\",0,1)","v":"N/A"},{"$f":"_xlfn.XLOOKUP($E72,'Activity 9'!$B$17:$B$23,'Activity 9'!O$17:O$23,\"N/A\",0,1)","v":"N/A"},{"$f":"_xlfn.XLOOKUP($E72,'Activity 9'!$B$17:$B$23,'Activity 9'!Q$17:Q$23,\"N/A\",0,1)","v":"N/A"},{"$f":"_xlfn.XLOOKUP($E72,'Activity 10'!$B$7:$B$13,'Activity 10'!A$7:A$13,\"No\",0,1)","v":"No"},{"$f":"_xlfn.XLOOKUP($E72,'Activity 10'!$B$7:$B$13,'Activity 10'!J$7:J$13,\"N/A\",0,1)","v":"N/A"},{"$f":"_xlfn.XLOOKUP($E72,'Activity 10'!$B$7:$B$13,'Activity 10'!K$7:K$13,\"N/A\",0,1)","v":"N/A"},{"$f":"_xlfn.XLOOKUP($E72,'Activity 10'!$B$7:$B$13,'Activity 10'!L$7:L$13,\"N/A\",0,1)","v":"N/A"},{"$f":"_xlfn.XLOOKUP($E72,'Activity 10'!$B$7:$B$13,'Activity 10'!M$7:M$13,\"N/A\",0,1)","v":"N/A"},{"$f":"_xlfn.XLOOKUP($E72,'Activity 10'!$B$7:$B$13,'Activity 10'!N$7:N$13,\"N/A\",0,1)","v":"N/A"},{"$f":"_xlfn.XLOOKUP($E72,'Activity 10'!$B$7:$B$13,'Activity 10'!O$7:O$13,\"N/A\",0,1)","v":"N/A"},{"$f":"_xlfn.XLOOKUP($E72,'Activity 10'!$B$7:$B$13,'Activity 10'!P$7:P$13,\"N/A\",0,1)","v":"N/A"},{"$f":"_xlfn.XLOOKUP($E72,'Activity 10'!$B$7:$B$13,'Activity 10'!Q$7:Q$13,\"N/A\",0,1)","v":"N/A"},{"$f":"_xlfn.XLOOKUP($E72,'Activity 10'!$B$7:$B$13,'Activity 10'!R$7:R$13,\"N/A\",0,1)","v":"N/A"},{"$f":"_xlfn.XLOOKUP($E72,'Activity 10'!$B$7:$B$13,'Activity 10'!S$7:S$13,\"N/A\",0,1)","v":"N/A"},{"$f":"_xlfn.XLOOKUP($E72,'Activity 10'!$B$7:$B$13,'Activity 10'!T$7:T$13,\"N/A\",0,1)","v":"N/A"},{"$f":"_xlfn.XLOOKUP($E72,'Activity 10'!$B$7:$B$13,'Activity 10'!U$7:U$13,\"N/A\",0,1)","v":"N/A"},{"$f":"_xlfn.XLOOKUP($E72,'Activity 10'!$B$7:$B$13,'Activity 10'!V$7:V$13,\"N/A\",0,1)","v":"N/A"},{"$f":"_xlfn.XLOOKUP($E72,'Activity 10'!$B$17:$B$23,'Activity 10'!E$17:E$23,\"N/A\",0,1)","v":"N/A"},{"$f":"_xlfn.XLOOKUP($E72,'Activity 10'!$B$17:$B$23,'Activity 10'!F$17:F$23,\"N/A\",0,1)","v":"N/A"},{"$f":"_xlfn.XLOOKUP($E72,'Activity 10'!$B$17:$B$23,'Activity 10'!G$17:G$23,\"N/A\",0,1)","v":"N/A"},{"$f":"_xlfn.XLOOKUP($E72,'Activity 10'!$B$17:$B$23,'Activity 10'!H$17:H$23,\"N/A\",0,1)","v":"N/A"},{"$f":"_xlfn.XLOOKUP($E72,'Activity 10'!$B$17:$B$23,'Activity 10'!I$17:I$23,\"N/A\",0,1)","v":"N/A"},{"$f":"_xlfn.XLOOKUP($E72,'Activity 10'!$B$17:$B$23,'Activity 10'!J$17:J$23,\"N/A\",0,1)","v":"N/A"},{"$f":"_xlfn.XLOOKUP($E72,'Activity 10'!$B$17:$B$23,'Activity 10'!K$17:K$23,\"N/A\",0,1)","v":"N/A"},{"$f":"_xlfn.XLOOKUP($E72,'Activity 10'!$B$17:$B$23,'Activity 10'!L$17:L$23,\"N/A\",0,1)","v":"N/A"},{"$f":"_xlfn.XLOOKUP($E72,'Activity 10'!$B$17:$B$23,'Activity 10'!M$17:M$23,\"N/A\",0,1)","v":"N/A"},{"$f":"_xlfn.XLOOKUP($E72,'Activity 10'!$B$17:$B$23,'Activity 10'!N$17:N$23,\"N/A\",0,1)","v":"N/A"},{"$f":"_xlfn.XLOOKUP($E72,'Activity 10'!$B$17:$B$23,'Activity 10'!P$17:P$23,\"N/A\",0,1)","v":"N/A"},{"$f":"_xlfn.XLOOKUP($E72,'Competitive Activity 1'!B$7:B$13,'Competitive Activity 1'!A$7:A$13,\"No\",0,1)","v":"No"},{"$f":"_xlfn.XLOOKUP($E72,'Competitive Activity 1'!$B$7:$B$13,'Competitive Activity 1'!H$7:H$13,\"N/A\",0,1)","v":"N/A"},{"$f":"_xlfn.XLOOKUP($E72,'Competitive Activity 1'!$B$7:$B$13,'Competitive Activity 1'!I$7:I$13,\"N/A\",0,1)","v":"N/A"},{"$f":"_xlfn.XLOOKUP($E72,'Competitive Activity 1'!$B$7:$B$13,'Competitive Activity 1'!J$7:J$13,\"N/A\",0,1)","v":"N/A"},{"$f":"_xlfn.XLOOKUP($E72,'Competitive Activity 1'!$B$7:$B$13,'Competitive Activity 1'!K$7:K$13,\"N/A\",0,1)","v":"N/A"},{"$f":"_xlfn.XLOOKUP($E72,'Competitive Activity 1'!$B$7:$B$13,'Competitive Activity 1'!L$7:L$13,\"N/A\",0,1)","v":"N/A"},{"$f":"_xlfn.XLOOKUP($E72,'Competitive Activity 1'!$B$7:$B$13,'Competitive Activity 1'!M$7:M$13,\"N/A\",0,1)","v":"N/A"},{"$f":"_xlfn.XLOOKUP($E72,'Competitive Activity 1'!$B$7:$B$13,'Competitive Activity 1'!N$7:N$13,\"N/A\",0,1)","v":"N/A"},{"$f":"_xlfn.XLOOKUP($E72,'Competitive Activity 1'!$B$7:$B$13,'Competitive Activity 1'!O$7:O$13,\"N/A\",0,1)","v":"N/A"},{"$f":"_xlfn.XLOOKUP($E72,'Competitive Activity 1'!$B$7:$B$13,'Competitive Activity 1'!P$7:P$13,\"N/A\",0,1)","v":"N/A"},{"$f":"_xlfn.XLOOKUP($E72,'Competitive Activity 1'!$B$7:$B$13,'Competitive Activity 1'!Q$7:Q$13,\"N/A\",0,1)","v":"N/A"},{"$f":"_xlfn.XLOOKUP($E72,'Competitive Activity 1'!$B$7:$B$13,'Competitive Activity 1'!R$7:R$13,\"N/A\",0,1)","v":"N/A"},{"$f":"_xlfn.XLOOKUP($E72,'Competitive Activity 1'!$B$7:$B$13,'Competitive Activity 1'!S$7:S$13,\"N/A\",0,1)","v":"N/A"},{"$f":"_xlfn.XLOOKUP($E72,'Competitive Activity 1'!$B$7:$B$13,'Competitive Activity 1'!T$7:T$13,\"N/A\",0,1)","v":"N/A"},{"$f":"_xlfn.XLOOKUP($E72,'Competitive Activity 1'!$B$7:$B$13,'Competitive Activity 1'!U$7:U$13,\"N/A\",0,1)","v":"N/A"},{"$f":"_xlfn.XLOOKUP($E72,'Competitive Activity 1'!$B$17:$B$23,'Competitive Activity 1'!C$17:C$23,\"N/A\",0,1)","v":"N/A"},{"$f":"_xlfn.XLOOKUP($E72,'Competitive Activity 1'!$B$17:$B$23,'Competitive Activity 1'!D$17:D$23,\"N/A\",0,1)","v":"N/A"},{"$f":"_xlfn.XLOOKUP($E72,'Competitive Activity 1'!$B$17:$B$23,'Competitive Activity 1'!E$17:E$23,\"N/A\",0,1)","v":"N/A"},{"$f":"_xlfn.XLOOKUP($E72,'Competitive Activity 1'!$B$17:$B$23,'Competitive Activity 1'!F$17:F$23,\"N/A\",0,1)","v":"N/A"},{"$f":"_xlfn.XLOOKUP($E72,'Competitive Activity 1'!$B$17:$B$23,'Competitive Activity 1'!G$17:G$23,\"N/A\",0,1)","v":"N/A"},{"$f":"_xlfn.XLOOKUP($E72,'Competitive Activity 1'!$B$17:$B$23,'Competitive Activity 1'!H$17:H$23,\"N/A\",0,1)","v":"N/A"},{"$f":"_xlfn.XLOOKUP($E72,'Competitive Activity 1'!$B$17:$B$23,'Competitive Activity 1'!I$17:I$23,\"N/A\",0,1)","v":"N/A"},{"$f":"_xlfn.XLOOKUP($E72,'Competitive Activity 1'!$B$17:$B$23,'Competitive Activity 1'!J$17:J$23,\"N/A\",0,1)","v":"N/A"},{"$f":"_xlfn.XLOOKUP($E72,'Competitive Activity 1'!$B$17:$B$23,'Competitive Activity 1'!K$17:K$23,\"N/A\",0,1)","v":"N/A"},{"$f":"_xlfn.XLOOKUP($E72,'Competitive Activity 1'!$B$17:$B$23,'Competitive Activity 1'!M$17:M$23,\"N/A\",0,1)","v":"N/A"},{"$f":"_xlfn.XLOOKUP($E72,'Competitive Activity 1'!$B$17:$B$23,'Competitive Activity 1'!N$17:N$23,\"N/A\",0,1)","v":"N/A"},{"$f":"_xlfn.XLOOKUP($E72,'Competitive Activity 1'!$B$17:$B$23,'Competitive Activity 1'!P$17:P$23,\"N/A\",0,1)","v":"N/A"},{"$f":"_xlfn.XLOOKUP($E72,'Competitive Activity 2'!$B$7:$B$13,'Competitive Activity 2'!A$7:A$13,\"No\",0)","v":"No"},{"$f":"_xlfn.XLOOKUP($E72,'Competitive Activity 2'!$B$7:$B$13,'Competitive Activity 2'!L$7:L$13,\"N/A\",0)","v":"N/A"},{"$f":"_xlfn.XLOOKUP($E72,'Competitive Activity 2'!$B$7:$B$13,'Competitive Activity 2'!M$7:M$13,\"N/A\",0)","v":"N/A"},{"$f":"_xlfn.XLOOKUP($E72,'Competitive Activity 2'!$B$7:$B$13,'Competitive Activity 2'!N$7:N$13,\"N/A\",0)","v":"N/A"},{"$f":"_xlfn.XLOOKUP($E72,'Competitive Activity 2'!$B$7:$B$13,'Competitive Activity 2'!O$7:O$13,\"N/A\",0)","v":"N/A"},{"$f":"_xlfn.XLOOKUP($E72,'Competitive Activity 2'!$B$7:$B$13,'Competitive Activity 2'!P$7:P$13,\"N/A\",0)","v":"N/A"},{"$f":"_xlfn.XLOOKUP($E72,'Competitive Activity 2'!$B$7:$B$13,'Competitive Activity 2'!Q$7:Q$13,\"N/A\",0)","v":"N/A"},{"$f":"_xlfn.XLOOKUP($E72,'Competitive Activity 2'!$B$7:$B$13,'Competitive Activity 2'!R$7:R$13,\"N/A\",0)","v":"N/A"},{"$f":"_xlfn.XLOOKUP($E72,'Competitive Activity 2'!$B$7:$B$13,'Competitive Activity 2'!S$7:S$13,\"N/A\",0)","v":"N/A"},{"$f":"_xlfn.XLOOKUP($E72,'Competitive Activity 2'!$B$7:$B$13,'Competitive Activity 2'!T$7:T$13,\"N/A\",0)","v":"N/A"},{"$f":"_xlfn.XLOOKUP($E72,'Competitive Activity 2'!$B$7:$B$13,'Competitive Activity 2'!U$7:U$13,\"N/A\",0)","v":"N/A"},{"$f":"_xlfn.XLOOKUP($E72,'Competitive Activity 2'!$B$17:$B$23,'Competitive Activity 2'!D$17:D$23,\"N/A\",0)","v":"N/A"},{"$f":"_xlfn.XLOOKUP($E72,'Competitive Activity 2'!$B$17:$B$23,'Competitive Activity 2'!E$17:E$23,\"N/A\",0)","v":"N/A"},{"$f":"_xlfn.XLOOKUP($E72,'Competitive Activity 2'!$B$17:$B$23,'Competitive Activity 2'!F$17:F$23,\"N/A\",0)","v":"N/A"},{"$f":"_xlfn.XLOOKUP($E72,'Competitive Activity 2'!$B$17:$B$23,'Competitive Activity 2'!G$17:G$23,\"N/A\",0)","v":"N/A"},{"$f":"_xlfn.XLOOKUP($E72,'Competitive Activity 2'!$B$17:$B$23,'Competitive Activity 2'!H$17:H$23,\"N/A\",0)","v":"N/A"},{"$f":"_xlfn.XLOOKUP($E72,'Competitive Activity 2'!$B$17:$B$23,'Competitive Activity 2'!I$17:I$23,\"N/A\",0)","v":"N/A"},{"$f":"_xlfn.XLOOKUP($E72,'Competitive Activity 2'!$B$17:$B$23,'Competitive Activity 2'!J$17:J$23,\"N/A\",0)","v":"N/A"},{"$f":"_xlfn.XLOOKUP($E72,'Competitive Activity 2'!$B$17:$B$23,'Competitive Activity 2'!K$17:K$23,\"N/A\",0)","v":"N/A"},{"$f":"_xlfn.XLOOKUP($E72,'Competitive Activity 2'!$B$17:$B$23,'Competitive Activity 2'!L$17:L$23,\"N/A\",0)","v":"N/A"},{"$f":"_xlfn.XLOOKUP($E72,'Competitive Activity 2'!$B$17:$B$23,'Competitive Activity 2'!M$17:M$23,\"N/A\",0)","v":"N/A"},{"$f":"_xlfn.XLOOKUP($E72,'Competitive Activity 2'!$B$17:$B$23,'Competitive Activity 2'!N$17:N$23,\"N/A\",0)","v":"N/A"},{"$f":"_xlfn.XLOOKUP($E72,'Competitive Activity 2'!$B$27:$B$33,'Competitive Activity 2'!D$27:D$33,\"N/A\",0)","v":"N/A"},{"$f":"_xlfn.XLOOKUP($E72,'Competitive Activity 2'!$B$27:$B$33,'Competitive Activity 2'!E$27:E$33,\"N/A\",0)","v":"N/A"},{"$f":"_xlfn.XLOOKUP($E72,'Competitive Activity 2'!$B$27:$B$33,'Competitive Activity 2'!F$27:F$33,\"N/A\",0)","v":"N/A"},{"$f":"_xlfn.XLOOKUP($E72,'Competitive Activity 2'!$B$27:$B$33,'Competitive Activity 2'!G$27:G$33,\"N/A\",0)","v":"N/A"},{"$f":"_xlfn.XLOOKUP($E72,'Competitive Activity 2'!$B$27:$B$33,'Competitive Activity 2'!H$27:H$33,\"N/A\",0)","v":"N/A"},{"$f":"_xlfn.XLOOKUP($E72,'Competitive Activity 2'!$B$27:$B$33,'Competitive Activity 2'!I$27:I$33,\"N/A\",0)","v":"N/A"},{"$f":"_xlfn.XLOOKUP($E72,'Competitive Activity 2'!$B$27:$B$33,'Competitive Activity 2'!J$27:J$33,\"N/A\",0)","v":"N/A"},{"$f":"_xlfn.XLOOKUP($E72,'Competitive Activity 2'!$B$27:$B$33,'Competitive Activity 2'!K$27:K$33,\"N/A\",0)","v":"N/A"},{"$f":"_xlfn.XLOOKUP($E72,'Competitive Activity 2'!$B$27:$B$33,'Competitive Activity 2'!M$27:M$33,\"N/A\",0)","v":"N/A"}]
[{"$f":"'1-Cover Sheet'!$C$8","v":"Select One"},{"$f":"'1-Cover Sheet'!$F$8","v":"Select One"},{"$f":"'Summary Sheet'!$D$8","v":0},{"$f":"'Summary Sheet'!$D$10","v":0},{"$f":"'Drop Down Box'!B237","v":0},{"$f":"'Drop Down Box'!C237","v":0},{"$f":"'Drop Down Box'!D237","v":"Select One"},{"$f":"_xlfn.XLOOKUP(E73,'Drop Down Box'!$B$166:$B$249,'Drop Down Box'!$A$166:$A$249,\"Unknown\",0)","v":"Activity 1"},{"$f":"_xlfn.XLOOKUP($E73,'Competitive Activity 1'!$B$17:$B$23,'Competitive Activity 1'!$L$17:$L$23,\"N/A\",0)","v":"N/A"},{"$f":"_xlfn.XLOOKUP($E73,'Competitive Activity 1'!$B$17:$B$23,'Competitive Activity 1'!$O$17:$O$23,\"N/A\",0)","v":"N/A"},{"$f":"_xlfn.XLOOKUP($E73,'Competitive Activity 1'!$B$7:$B$13,'Competitive Activity 1'!E$7:E$13,\"N/A\",0)","v":"N/A"},{"$f":"_xlfn.XLOOKUP($E73,'Competitive Activity 1'!$B$7:$B$13,'Competitive Activity 1'!F$7:F$13,\"N/A\",0)","v":"N/A"},{"$f":"_xlfn.XLOOKUP($E73,'Competitive Activity 1'!$B$7:$B$13,'Competitive Activity 1'!G$7:G$13,\"N/A\",0)","v":"N/A"},{"$f":"_xlfn.XLOOKUP($E73,'Activity 1'!$B$7:$B$13,'Activity 1'!$A$7:$A$13,\"No\",0,1)","v":"No"},{"$f":"_xlfn.XLOOKUP($E73,'Activity 1'!$B$7:$B$13,'Activity 1'!$H$7:$H$13,\"N/A\",0,1)","v":"N/A"},{"$f":"_xlfn.XLOOKUP($E73,'Activity 1'!$B$7:$B$13,'Activity 1'!I$7:I$13,\"N/A\",0,1)","v":"N/A"},{"$f":"_xlfn.XLOOKUP($E73,'Activity 1'!$B$7:$B$13,'Activity 1'!J$7:J$13,\"N/A\",0,1)","v":"N/A"},{"$f":"_xlfn.XLOOKUP($E73,'Activity 1'!$B$7:$B$13,'Activity 1'!K$7:K$13,\"N/A\",0,1)","v":"N/A"},{"$f":"_xlfn.XLOOKUP($E73,'Activity 1'!$B$7:$B$13,'Activity 1'!L$7:L$13,\"N/A\",0,1)","v":"N/A"},{"$f":"_xlfn.XLOOKUP($E73,'Activity 1'!$B$7:$B$13,'Activity 1'!M$7:M$13,\"N/A\",0,1)","v":"N/A"},{"$f":"_xlfn.XLOOKUP($E73,'Activity 1'!$B$7:$B$13,'Activity 1'!N$7:N$13,\"N/A\",0,1)","v":"N/A"},0,{"$f":"_xlfn.XLOOKUP($E73,'Activity 1'!$B$7:$B$13,'Activity 1'!O$7:O$13,\"N/A\",0,1)","v":"N/A"},{"$f":"_xlfn.XLOOKUP($E73,'Activity 1'!$B$7:$B$13,'Activity 1'!P$7:P$13,\"N/A\",0,1)","v":"N/A"},{"$f":"_xlfn.XLOOKUP($E73,'Activity 1'!$B$7:$B$13,'Activity 1'!Q$7:Q$13,\"N/A\",0,1)","v":"N/A"},{"$f":"_xlfn.XLOOKUP($E73,'Activity 1'!$B$7:$B$13,'Activity 1'!R$7:R$13,\"N/A\",0,1)","v":"N/A"},{"$f":"_xlfn.XLOOKUP($E73,'Activity 1'!$B$7:$B$13,'Activity 1'!S$7:S$13,\"N/A\",0,1)","v":"N/A"},{"$f":"_xlfn.XLOOKUP($E73,'Activity 1'!$B$7:$B$13,'Activity 1'!T$7:T$13,\"N/A\",0,1)","v":"N/A"},{"$f":"_xlfn.XLOOKUP($E73,'Activity 1'!$B$7:$B$13,'Activity 1'!U$7:U$13,\"N/A\",0,1)","v":"N/A"},{"$f":"_xlfn.XLOOKUP($E73,'Activity 1'!$B$7:$B$13,'Activity 1'!V$7:V$13,\"N/A\",0,1)","v":"N/A"},{"$f":"_xlfn.XLOOKUP($E73,'Activity 1'!$B$17:$B$23,'Activity 1'!C$17:C$23,\"N/A\",0,1)","v":"N/A"},{"$f":"_xlfn.XLOOKUP($E73,'Activity 1'!$B$17:$B$23,'Activity 1'!D$17:D$23,\"N/A\",0,1)","v":"N/A"},{"$f":"_xlfn.XLOOKUP($E73,'Activity 1'!$B$17:$B$23,'Activity 1'!E$17:E$23,\"N/A\",0,1)","v":"N/A"},{"$f":"_xlfn.XLOOKUP($E73,'Activity 1'!$B$17:$B$23,'Activity 1'!F$17:F$23,\"N/A\",0,1)","v":"N/A"},{"$f":"_xlfn.XLOOKUP($E73,'Activity 1'!$B$17:$B$23,'Activity 1'!G$17:G$23,\"N/A\",0,1)","v":"N/A"},{"$f":"_xlfn.XLOOKUP($E73,'Activity 1'!$B$17:$B$23,'Activity 1'!H$17:H$23,\"N/A\",0,1)","v":"N/A"},{"$f":"_xlfn.XLOOKUP($E73,'Activity 1'!$B$17:$B$23,'Activity 1'!I$17:I$23,\"N/A\",0,1)","v":"N/A"},{"$f":"_xlfn.XLOOKUP($E73,'Activity 1'!$B$17:$B$23,'Activity 1'!J$17:J$23,\"N/A\",0,1)","v":"N/A"},{"$f":"_xlfn.XLOOKUP($E73,'Activity 1'!$B$17:$B$23,'Activity 1'!K$17:K$23,\"N/A\",0,1)","v":"N/A"},{"$f":"_xlfn.XLOOKUP($E73,'Activity 1'!$B$17:$B$23,'Activity 1'!L$17:L$23,\"N/A\",0,1)","v":"N/A"},{"$f":"_xlfn.XLOOKUP($E73,'Activity 1'!$B$17:$B$23,'Activity 1'!M$17:M$23,\"N/A\",0,1)","v":"N/A"},{"$f":"_xlfn.XLOOKUP($E73,'Activity 1'!$B$17:$B$23,'Activity 1'!O$17:O$23,\"N/A\",0,1)","v":"N/A"},{"$f":"_xlfn.XLOOKUP($E73,'Activity 1'!$B$17:$B$23,'Activity 1'!Q$17:Q$23,\"N/A\",0,1)","v":"N/A"},{"$f":"_xlfn.XLOOKUP($E73,'Activity 2'!$B$7:$B$13,'Activity 2'!$A$7:$A$13,\"No\",0,1)","v":"No"},{"$f":"_xlfn.XLOOKUP($E73,'Activity 2'!B$7:B$13,'Activity 2'!H$7:H$13,\"N/A\",0)","v":"N/A"},{"$f":"_xlfn.XLOOKUP($E73,'Activity 2'!C$7:C$13,'Activity 2'!I$7:I$13,\"N/A\",0)","v":"N/A"},{"$f":"_xlfn.XLOOKUP($E73,'Activity 2'!D$7:D$13,'Activity 2'!J$7:J$13,\"N/A\",0)","v":"N/A"},{"$f":"_xlfn.XLOOKUP($E73,'Activity 2'!E$7:E$13,'Activity 2'!K$7:K$13,\"N/A\",0)","v":"N/A"},{"$f":"_xlfn.XLOOKUP($E73,'Activity 2'!F$7:F$13,'Activity 2'!L$7:L$13,\"N/A\",0)","v":"N/A"},{"$f":"_xlfn.XLOOKUP($E73,'Activity 2'!G$7:G$13,'Activity 2'!M$7:M$13,\"N/A\",0)","v":"N/A"},{"$f":"_xlfn.XLOOKUP($E73,'Activity 2'!H$7:H$13,'Activity 2'!N$7:N$13,\"N/A\",0)","v":"N/A"},{"$f":"_xlfn.XLOOKUP($E73,'Activity 2'!I$7:I$13,'Activity 2'!O$7:O$13,\"N/A\",0)","v":"N/A"},{"$f":"_xlfn.XLOOKUP($E73,'Activity 2'!J$7:J$13,'Activity 2'!P$7:P$13,\"N/A\",0)","v":"N/A"},{"$f":"_xlfn.XLOOKUP($E73,'Activity 2'!K$7:K$13,'Activity 2'!Q$7:Q$13,\"N/A\",0)","v":"N/A"},{"$f":"_xlfn.XLOOKUP($E73,'Activity 2'!L$7:L$13,'Activity 2'!R$7:R$13,\"N/A\",0)","v":"N/A"},{"$f":"_xlfn.XLOOKUP($E73,'Activity 2'!M$7:M$13,'Activity 2'!S$7:S$13,\"N/A\",0)","v":"N/A"},{"$f":"_xlfn.XLOOKUP($E73,'Activity 2'!N$7:N$13,'Activity 2'!T$7:T$13,\"N/A\",0)","v":"N/A"},{"$f":"_xlfn.XLOOKUP($E73,'Activity 2'!O$7:O$13,'Activity 2'!U$7:U$13,\"N/A\",0)","v":"N/A"},{"$f":"_xlfn.XLOOKUP($E73,'Activity 2'!P$7:P$13,'Activity 2'!V$7:V$13,\"N/A\",0)","v":"N/A"},{"$f":"_xlfn.XLOOKUP($E73,'Activity 2'!$B$17:$B$23,'Activity 2'!C$17:C$23,\"N/A\",0,1)","v":"N/A"},{"$f":"_xlfn.XLOOKUP($E73,'Activity 2'!$B$17:$B$23,'Activity 2'!D$17:D$23,\"N/A\",0,1)","v":"N/A"},{"$f":"_xlfn.XLOOKUP($E73,'Activity 2'!$B$17:$B$23,'Activity 2'!E$17:E$23,\"N/A\",0,1)","v":"N/A"},{"$f":"_xlfn.XLOOKUP($E73,'Activity 2'!$B$17:$B$23,'Activity 2'!F$17:F$23,\"N/A\",0,1)","v":"N/A"},{"$f":"_xlfn.XLOOKUP($E73,'Activity 2'!$B$17:$B$23,'Activity 2'!G$17:G$23,\"N/A\",0,1)","v":"N/A"},{"$f":"_xlfn.XLOOKUP($E73,'Activity 2'!$B$17:$B$23,'Activity 2'!H$17:H$23,\"N/A\",0,1)","v":"N/A"},{"$f":"_xlfn.XLOOKUP($E73,'Activity 2'!$B$17:$B$23,'Activity 2'!I$17:I$23,\"N/A\",0,1)","v":"N/A"},{"$f":"_xlfn.XLOOKUP($E73,'Activity 2'!$B$17:$B$23,'Activity 2'!J$17:J$23,\"N/A\",0,1)","v":"N/A"},{"$f":"_xlfn.XLOOKUP($E73,'Activity 2'!$B$17:$B$23,'Activity 2'!K$17:K$23,\"N/A\",0,1)","v":"N/A"},{"$f":"_xlfn.XLOOKUP($E73,'Activity 2'!$B$17:$B$23,'Activity 2'!L$17:L$23,\"N/A\",0,1)","v":"N/A"},{"$f":"_xlfn.XLOOKUP($E73,'Activity 2'!$B$17:$B$23,'Activity 2'!M$17:M$23,\"N/A\",0,1)","v":"N/A"},{"$f":"_xlfn.XLOOKUP($E73,'Activity 2'!$B$17:$B$23,'Activity 2'!O$17:O$23,\"N/A\",0,1)","v":"N/A"},{"$f":"_xlfn.XLOOKUP($E73,'Activity 2'!$B$17:$B$23,'Activity 2'!Q$17:Q$23,\"N/A\",0,1)","v":"N/A"},null,{"$f":"_xlfn.XLOOKUP($E73,'Activity 3'!$B$8:$B$14,'Activity 3'!K$8:K$14,\"N/A\",0,1)","v":"N/A"},{"$f":"_xlfn.XLOOKUP($E73,'Activity 3'!$B$8:$B$14,'Activity 3'!L$8:L$14,\"N/A\",0,1)","v":"N/A"},{"$f":"_xlfn.XLOOKUP($E73,'Activity 3'!$B$8:$B$14,'Activity 3'!M$8:M$14,\"N/A\",0,1)","v":"N/A"},{"$f":"_xlfn.XLOOKUP($E73,'Activity 3'!$B$8:$B$14,'Activity 3'!N$8:N$14,\"N/A\",0,1)","v":"N/A"},{"$f":"_xlfn.XLOOKUP($E73,'Activity 3'!$B$8:$B$14,'Activity 3'!O$8:O$14,\"N/A\",0,1)","v":"N/A"},{"$f":"_xlfn.XLOOKUP($E73,'Activity 3'!$B$8:$B$14,'Activity 3'!R$8:R$14,\"N/A\",0,1)","v":"N/A"},{"$f":"_xlfn.XLOOKUP($E73,'Activity 4'!$B$8:$B$14,'Activity 4'!$A$8:$A$14,\"No\",0,1)","v":"No"},{"$f":"_xlfn.XLOOKUP($E73,'Activity 4'!$B$8:$B$14,'Activity 4'!L$8:L$14,\"N/A\",0,1)","v":"N/A"},{"$f":"_xlfn.XLOOKUP($E73,'Activity 4'!$B$8:$B$14,'Activity 4'!I$8:I$14,\"N/A\",0,1)","v":"N/A"},{"$f":"_xlfn.XLOOKUP($E73,'Activity 4'!$B$8:$B$14,'Activity 4'!M$8:M$14,\"N/A\",0,1)","v":"N/A"},{"$f":"_xlfn.XLOOKUP($E73,'Activity 5'!$B$8:$B$14,'Activity 5'!$A$8:$A$14,\"No\",0,1)","v":"No"},{"$f":"_xlfn.XLOOKUP($E73,'Activity 5'!$B$8:$B$14,'Activity 5'!J$8:J$14,\"N/A\",0,1)","v":"N/A"},{"$f":"_xlfn.XLOOKUP($E73,'Activity 5'!$B$8:$B$14,'Activity 5'!K$8:K$14,\"N/A\",0,1)","v":"N/A"},{"$f":"_xlfn.XLOOKUP($E73,'Activity 5'!$B$8:$B$14,'Activity 5'!N$8:N$14,\"N/A\",0,1)","v":"N/A"},{"$f":"_xlfn.XLOOKUP($E73,'Activity 5'!$B$8:$B$14,'Activity 5'!O$8:O$14,\"N/A\",0,1)","v":"N/A"},{"$f":"_xlfn.XLOOKUP($E73,'Activity 5'!$B$8:$B$14,'Activity 5'!P$8:P$14,\"N/A\",0,1)","v":"N/A"},{"$f":"_xlfn.XLOOKUP($E73,'Activity 5'!$B$8:$B$14,'Activity 5'!Q$8:Q$14,\"N/A\",0,1)","v":"N/A"},{"$f":"_xlfn.XLOOKUP($E73,'Activity 5'!$B$8:$B$14,'Activity 5'!R$8:R$14,\"N/A\",0,1)","v":"N/A"},{"$f":"_xlfn.XLOOKUP($E73,'Activity 6'!$B$7:$B$13,'Activity 6'!A$7:A$13,\"No\",0,1)","v":"No"},{"$f":"_xlfn.XLOOKUP($E73,'Activity 6'!$B$7:$B$13,'Activity 6'!K$7:K$13,\"N/A\",0,1)","v":"N/A"},{"$f":"_xlfn.XLOOKUP($E73,'Activity 6'!$B$7:$B$13,'Activity 6'!L$7:L$13,\"N/A\",0,1)","v":"N/A"},{"$f":"_xlfn.XLOOKUP($E73,'Activity 6'!$B$7:$B$13,'Activity 6'!M$7:M$13,\"N/A\",0,1)","v":"N/A"},{"$f":"_xlfn.XLOOKUP($E73,'Activity 6'!$B$7:$B$13,'Activity 6'!N$7:N$13,\"N/A\",0,1)","v":"N/A"},{"$f":"_xlfn.XLOOKUP($E73,'Activity 6'!$B$7:$B$13,'Activity 6'!O$7:O$13,\"N/A\",0,1)","v":"N/A"},{"$f":"_xlfn.XLOOKUP($E73,'Activity 6'!$B$7:$B$13,'Activity 6'!P$7:P$13,\"N/A\",0,1)","v":"N/A"},{"$f":"_xlfn.XLOOKUP($E73,'Activity 6'!$B$7:$B$13,'Activity 6'!Q$7:Q$13,\"N/A\",0,1)","v":"N/A"},{"$f":"_xlfn.XLOOKUP($E73,'Activity 6'!$B$7:$B$13,'Activity 6'!R$7:R$13,\"N/A\",0,1)","v":"N/A"},{"$f":"_xlfn.XLOOKUP($E73,'Activity 6'!$B$7:$B$13,'Activity 6'!S$7:S$13,\"N/A\",0,1)","v":"N/A"},{"$f":"_xlfn.XLOOKUP($E73,'Activity 6'!$B$7:$B$13,'Activity 6'!T$7:T$13,\"N/A\",0,1)","v":"N/A"},{"$f":"_xlfn.XLOOKUP($E73,'Activity 6'!$B$7:$B$13,'Activity 6'!U$7:U$13,\"N/A\",0,1)","v":"N/A"},{"$f":"_xlfn.XLOOKUP($E73,'Activity 6'!$B$22:$B$28,'Activity 6'!C$22:C$28,\"N/A\",0,1)","v":"N/A"},{"$f":"_xlfn.XLOOKUP($E73,'Activity 6'!$B$22:$B$28,'Activity 6'!D$22:D$28,\"N/A\",0,1)","v":"N/A"},{"$f":"_xlfn.XLOOKUP($E73,'Activity 6'!$B$22:$B$28,'Activity 6'!E$22:E$28,\"N/A\",0,1)","v":"N/A"},{"$f":"_xlfn.XLOOKUP($E73,'Activity 6'!$B$22:$B$28,'Activity 6'!F$22:F$28,\"N/A\",0,1)","v":"N/A"},{"$f":"_xlfn.XLOOKUP($E73,'Activity 6'!$B$22:$B$28,'Activity 6'!G$22:G$28,\"N/A\",0,1)","v":"N/A"},{"$f":"_xlfn.XLOOKUP($E73,'Activity 6'!$B$22:$B$28,'Activity 6'!H$22:H$28,\"N/A\",0,1)","v":"N/A"},{"$f":"_xlfn.XLOOKUP($E73,'Activity 6'!$B$22:$B$28,'Activity 6'!I$22:I$28,\"N/A\",0,1)","v":"N/A"},{"$f":"_xlfn.XLOOKUP($E73,'Activity 6'!$B$22:$B$28,'Activity 6'!J$22:J$28,\"N/A\",0,1)","v":"N/A"},{"$f":"_xlfn.XLOOKUP($E73,'Activity 6'!$B$22:$B$28,'Activity 6'!K$22:K$28,\"N/A\",0,1)","v":"N/A"},{"$f":"_xlfn.XLOOKUP($E73,'Activity 6'!$B$22:$B$28,'Activity 6'!L$22:L$28,\"N/A\",0,1)","v":"N/A"},{"$f":"_xlfn.XLOOKUP($E73,'Activity 6'!$B$22:$B$28,'Activity 6'!M$22:M$28,\"N/A\",0,1)","v":"N/A"},{"$f":"_xlfn.XLOOKUP($E73,'Activity 6'!$B$22:$B$28,'Activity 6'!N$22:N$28,\"N/A\",0,1)","v":"N/A"},{"$f":"_xlfn.XLOOKUP($E73,'Activity 6'!$B$32:$B$38,'Activity 6'!C$32:C$38,\"N/A\",0,1)","v":"N/A"},{"$f":"_xlfn.XLOOKUP($E73,'Activity 6'!$B$32:$B$38,'Activity 6'!D$32:D$38,\"N/A\",0,1)","v":"N/A"},{"$f":"_xlfn.XLOOKUP($E73,'Activity 6'!$B$32:$B$38,'Activity 6'!E$32:E$38,\"N/A\",0,1)","v":"N/A"},{"$f":"_xlfn.XLOOKUP($E73,'Activity 6'!$B$32:$B$38,'Activity 6'!F$32:F$38,\"N/A\",0,1)","v":"N/A"},{"$f":"_xlfn.XLOOKUP($E73,'Activity 6'!$B$32:$B$38,'Activity 6'!G$32:G$38,\"N/A\",0,1)","v":"N/A"},{"$f":"_xlfn.XLOOKUP($E73,'Activity 6'!$B$32:$B$38,'Activity 6'!H$32:H$38,\"N/A\",0,1)","v":"N/A"},{"$f":"_xlfn.XLOOKUP($E73,'Activity 6'!$B$32:$B$38,'Activity 6'!I$32:I$38,\"N/A\",0,1)","v":"N/A"},{"$f":"_xlfn.XLOOKUP($E73,'Activity 6'!$B$32:$B$38,'Activity 6'!J$32:J$38,\"N/A\",0,1)","v":"N/A"},{"$f":"_xlfn.XLOOKUP($E73,'Activity 6'!$B$32:$B$38,'Activity 6'!K$32:K$38,\"N/A\",0,1)","v":"N/A"},{"$f":"_xlfn.XLOOKUP($E73,'Activity 6'!$B$32:$B$38,'Activity 6'!M$32:M$38,\"N/A\",0,1)","v":"N/A"},{"$f":"_xlfn.XLOOKUP($E73,'Activity 7'!$B$7:$B$13,'Activity 7'!$A$7:$A$13,\"No\",0,1)","v":"No"},{"$f":"_xlfn.XLOOKUP($E73,'Activity 7'!$B$7:$B$13,'Activity 7'!M$7:M$13,\"N/A\",0,1)","v":"N/A"},{"$f":"_xlfn.XLOOKUP($E73,'Activity 7'!$B$7:$B$13,'Activity 7'!K$7:K$13,\"N/A\",0,1)","v":"N/A"},{"$f":"_xlfn.XLOOKUP($E73,'Activity 7'!$B$7:$B$13,'Activity 7'!N$7:N$13,\"N/A\",0,1)","v":"N/A"},{"$f":"_xlfn.XLOOKUP($E73,'Activity 7'!$B$7:$B$13,'Activity 7'!O$7:O$13,\"N/A\",0,1)","v":"N/A"},{"$f":"_xlfn.XLOOKUP($E73,'Activity 7'!$B$7:$B$13,'Activity 7'!P$7:P$13,\"N/A\",0,1)","v":"N/A"},{"$f":"_xlfn.XLOOKUP($E73,'Activity 7'!$B$7:$B$13,'Activity 7'!Q$7:Q$13,\"N/A\",0,1)","v":"N/A"},{"$f":"_xlfn.XLOOKUP($E73,'Activity 7'!$B$7:$B$13,'Activity 7'!R$7:R$13,\"N/A\",0,1)","v":"N/A"},{"$f":"_xlfn.XLOOKUP($E73,'Activity 7'!$B$7:$B$13,'Activity 7'!S$7:S$13,\"N/A\",0,1)","v":"N/A"},{"$f":"_xlfn.XLOOKUP($E73,'Activity 7'!$B$7:$B$13,'Activity 7'!T$7:T$13,\"N/A\",0,1)","v":"N/A"},{"$f":"_xlfn.XLOOKUP($E73,'Activity 7'!$B$7:$B$13,'Activity 7'!U$7:U$13,\"N/A\",0,1)","v":"N/A"},{"$f":"_xlfn.XLOOKUP($E73,'Activity 7'!$B$7:$B$13,'Activity 7'!V$7:V$13,\"N/A\",0,1)","v":"N/A"},{"$f":"_xlfn.XLOOKUP($E73,'Activity 7'!$B$17:$B$23,'Activity 7'!E$17:E$23,\"N/A\",0,1)","v":"N/A"},{"$f":"_xlfn.XLOOKUP($E73,'Activity 7'!$B$17:$B$23,'Activity 7'!G$17:G$23,\"N/A\",0,1)","v":"N/A"},{"$f":"_xlfn.XLOOKUP($E73,'Activity 7'!$B$17:$B$23,'Activity 7'!I$17:I$23,\"N/A\",0,1)","v":"N/A"},{"$f":"_xlfn.XLOOKUP($E73,'Activity 7'!$B$17:$B$23,'Activity 7'!J$17:J$23,\"N/A\",0,1)","v":"N/A"},{"$f":"_xlfn.XLOOKUP($E73,'Activity 7'!$B$17:$B$23,'Activity 7'!K$17:K$23,\"N/A\",0,1)","v":"N/A"},{"$f":"_xlfn.XLOOKUP($E73,'Activity 7'!$B$17:$B$23,'Activity 7'!L$17:L$23,\"N/A\",0,1)","v":"N/A"},{"$f":"_xlfn.XLOOKUP($E73,'Activity 7'!$B$17:$B$23,'Activity 7'!M$17:M$23,\"N/A\",0,1)","v":"N/A"},{"$f":"_xlfn.XLOOKUP($E73,'Activity 7'!$B$17:$B$23,'Activity 7'!N$17:N$23,\"N/A\",0,1)","v":"N/A"},{"$f":"_xlfn.XLOOKUP($E73,'Activity 7'!$B$17:$B$23,'Activity 7'!P$17:P$23,\"N/A\",0,1)","v":"N/A"},{"$f":"_xlfn.XLOOKUP($E73,'Activity 8'!$B$7:$B$13,'Activity 8'!A$7:A$13,\"No\",0,1)","v":"No"},{"$f":"_xlfn.XLOOKUP($E73,'Activity 8'!$B$7:$B$13,'Activity 8'!I$7:I$13,\"N/A\",0,1)","v":"N/A"},{"$f":"_xlfn.XLOOKUP($E73,'Activity 8'!$B$7:$B$13,'Activity 8'!J$7:J$13,\"N/A\",0,1)","v":"N/A"},{"$f":"_xlfn.XLOOKUP($E73,'Activity 8'!$B$7:$B$13,'Activity 8'!K$7:K$13,\"N/A\",0,1)","v":"N/A"},{"$f":"_xlfn.XLOOKUP($E73,'Activity 8'!$B$7:$B$13,'Activity 8'!L$7:L$13,\"N/A\",0,1)","v":"N/A"},{"$f":"_xlfn.XLOOKUP($E73,'Activity 8'!$B$7:$B$13,'Activity 8'!M$7:M$13,\"N/A\",0,1)","v":"N/A"},{"$f":"_xlfn.XLOOKUP($E73,'Activity 8'!$B$7:$B$13,'Activity 8'!N$7:N$13,\"N/A\",0,1)","v":"N/A"},{"$f":"_xlfn.XLOOKUP($E73,'Activity 8'!$B$7:$B$13,'Activity 8'!O$7:O$13,\"N/A\",0,1)","v":"N/A"},{"$f":"_xlfn.XLOOKUP($E73,'Activity 8'!$B$7:$B$13,'Activity 8'!P$7:P$13,\"N/A\",0,1)","v":"N/A"},{"$f":"_xlfn.XLOOKUP($E73,'Activity 8'!$B$7:$B$13,'Activity 8'!Q$7:Q$13,\"N/A\",0,1)","v":"N/A"},{"$f":"_xlfn.XLOOKUP($E73,'Activity 8'!$B$7:$B$13,'Activity 8'!R$7:R$13,\"N/A\",0,1)","v":"N/A"},{"$f":"_xlfn.XLOOKUP($E73,'Activity 8'!$B$7:$B$13,'Activity 8'!S$7:S$13,\"N/A\",0,1)","v":"N/A"},{"$f":"_xlfn.XLOOKUP($E73,'Activity 8'!$B$7:$B$13,'Activity 8'!T$7:T$13,\"N/A\",0,1)","v":"N/A"},{"$f":"_xlfn.XLOOKUP($E73,'Activity 8'!$B$7:$B$13,'Activity 8'!U$7:U$13,\"N/A\",0,1)","v":"N/A"},{"$f":"_xlfn.XLOOKUP($E73,'Activity 8'!$B$7:$B$13,'Activity 8'!V$7:V$13,\"N/A\",0,1)","v":"N/A"},{"$f":"_xlfn.XLOOKUP($E73,'Activity 8'!$B$17:$B$23,'Activity 8'!D$17:D$23,\"N/A\",0,1)","v":"N/A"},{"$f":"_xlfn.XLOOKUP($E73,'Activity 8'!$B$17:$B$23,'Activity 8'!E$17:E$23,\"N/A\",0,1)","v":"N/A"},{"$f":"_xlfn.XLOOKUP($E73,'Activity 8'!$B$17:$B$23,'Activity 8'!F$17:F$23,\"N/A\",0,1)","v":"N/A"},{"$f":"_xlfn.XLOOKUP($E73,'Activity 8'!$B$17:$B$23,'Activity 8'!G$17:G$23,\"N/A\",0,1)","v":"N/A"},{"$f":"_xlfn.XLOOKUP($E73,'Activity 8'!$B$17:$B$23,'Activity 8'!H$17:H$23,\"N/A\",0,1)","v":"N/A"},{"$f":"_xlfn.XLOOKUP($E73,'Activity 8'!$B$17:$B$23,'Activity 8'!I$17:I$23,\"N/A\",0,1)","v":"N/A"},{"$f":"_xlfn.XLOOKUP($E73,'Activity 8'!$B$17:$B$23,'Activity 8'!J$17:J$23,\"N/A\",0,1)","v":"N/A"},{"$f":"_xlfn.XLOOKUP($E73,'Activity 8'!$B$17:$B$23,'Activity 8'!K$17:K$23,\"N/A\",0,1)","v":"N/A"},{"$f":"_xlfn.XLOOKUP($E73,'Activity 8'!$B$17:$B$23,'Activity 8'!L$17:L$23,\"N/A\",0,1)","v":"N/A"},{"$f":"_xlfn.XLOOKUP($E73,'Activity 8'!$B$17:$B$23,'Activity 8'!M$17:M$23,\"N/A\",0,1)","v":"N/A"},{"$f":"_xlfn.XLOOKUP($E73,'Activity 8'!$B$17:$B$23,'Activity 8'!N$17:N$23,\"N/A\",0,1)","v":"N/A"},{"$f":"_xlfn.XLOOKUP($E73,'Activity 8'!$B$17:$B$23,'Activity 8'!P$17:P$23,\"N/A\",0,1)","v":"N/A"},{"$f":"_xlfn.XLOOKUP(E73,'Activity 9'!$B$7:$B$13,'Activity 9'!$A$7:$A$13,\"No\",0,1)","v":"No"},{"$f":"_xlfn.XLOOKUP($E73,'Activity 9'!$B$7:$B$13,'Activity 9'!J$7:J$13,\"N/A\",0,1)","v":"N/A"},{"$f":"_xlfn.XLOOKUP($E73,'Activity 9'!$B$7:$B$13,'Activity 9'!K$7:K$13,\"N/A\",0,1)","v":"N/A"},{"$f":"_xlfn.XLOOKUP($E73,'Activity 9'!$B$7:$B$13,'Activity 9'!L$7:L$13,\"N/A\",0,1)","v":"N/A"},{"$f":"_xlfn.XLOOKUP($E73,'Activity 9'!$B$7:$B$13,'Activity 9'!M$7:M$13,\"N/A\",0,1)","v":"N/A"},{"$f":"_xlfn.XLOOKUP($E73,'Activity 9'!$B$7:$B$13,'Activity 9'!N$7:N$13,\"N/A\",0,1)","v":"N/A"},{"$f":"_xlfn.XLOOKUP($E73,'Activity 9'!$B$7:$B$13,'Activity 9'!O$7:O$13,\"N/A\",0,1)","v":"N/A"},{"$f":"_xlfn.XLOOKUP($E73,'Activity 9'!$B$7:$B$13,'Activity 9'!P$7:P$13,\"N/A\",0,1)","v":"N/A"},{"$f":"_xlfn.XLOOKUP($E73,'Activity 9'!$B$7:$B$13,'Activity 9'!Q$7:Q$13,\"N/A\",0,1)","v":"N/A"},{"$f":"_xlfn.XLOOKUP($E73,'Activity 9'!$B$7:$B$13,'Activity 9'!R$7:R$13,\"N/A\",0,1)","v":"N/A"},{"$f":"_xlfn.XLOOKUP($E73,'Activity 9'!$B$7:$B$13,'Activity 9'!S$7:S$13,\"N/A\",0,1)","v":"N/A"},{"$f":"_xlfn.XLOOKUP($E73,'Activity 9'!$B$7:$B$13,'Activity 9'!T$7:T$13,\"N/A\",0,1)","v":"N/A"},{"$f":"_xlfn.XLOOKUP($E73,'Activity 9'!$B$17:$B$23,'Activity 9'!E$17:E$23,\"N/A\",0,1)","v":"N/A"},{"$f":"_xlfn.XLOOKUP($E73,'Activity 9'!$B$17:$B$23,'Activity 9'!F$17:F$23,\"N/A\",0,1)","v":"N/A"},{"$f":"_xlfn.XLOOKUP($E73,'Activity 9'!$B$17:$B$23,'Activity 9'!G$17:G$23,\"N/A\",0,1)","v":"N/A"},{"$f":"_xlfn.XLOOKUP($E73,'Activity 9'!$B$17:$B$23,'Activity 9'!H$17:H$23,\"N/A\",0,1)","v":"N/A"},{"$f":"_xlfn.XLOOKUP($E73,'Activity 9'!$B$17:$B$23,'Activity 9'!I$17:I$23,\"N/A\",0,1)","v":"N/A"},{"$f":"_xlfn.XLOOKUP($E73,'Activity 9'!$B$17:$B$23,'Activity 9'!J$17:J$23,\"N/A\",0,1)","v":"N/A"},{"$f":"_xlfn.XLOOKUP($E73,'Activity 9'!$B$17:$B$23,'Activity 9'!K$17:K$23,\"N/A\",0,1)","v":"N/A"},{"$f":"_xlfn.XLOOKUP($E73,'Activity 9'!$B$17:$B$23,'Activity 9'!L$17:L$23,\"N/A\",0,1)","v":"N/A"},{"$f":"_xlfn.XLOOKUP($E73,'Activity 9'!$B$17:$B$23,'Activity 9'!N$17:N$23,\"N/A\",0,1)","v":"N/A"},{"$f":"_xlfn.XLOOKUP($E73,'Activity 9'!$B$17:$B$23,'Activity 9'!O$17:O$23,\"N/A\",0,1)","v":"N/A"},{"$f":"_xlfn.XLOOKUP($E73,'Activity 9'!$B$17:$B$23,'Activity 9'!Q$17:Q$23,\"N/A\",0,1)","v":"N/A"},{"$f":"_xlfn.XLOOKUP($E73,'Activity 10'!$B$7:$B$13,'Activity 10'!A$7:A$13,\"No\",0,1)","v":"No"},{"$f":"_xlfn.XLOOKUP($E73,'Activity 10'!$B$7:$B$13,'Activity 10'!J$7:J$13,\"N/A\",0,1)","v":"N/A"},{"$f":"_xlfn.XLOOKUP($E73,'Activity 10'!$B$7:$B$13,'Activity 10'!K$7:K$13,\"N/A\",0,1)","v":"N/A"},{"$f":"_xlfn.XLOOKUP($E73,'Activity 10'!$B$7:$B$13,'Activity 10'!L$7:L$13,\"N/A\",0,1)","v":"N/A"},{"$f":"_xlfn.XLOOKUP($E73,'Activity 10'!$B$7:$B$13,'Activity 10'!M$7:M$13,\"N/A\",0,1)","v":"N/A"},{"$f":"_xlfn.XLOOKUP($E73,'Activity 10'!$B$7:$B$13,'Activity 10'!N$7:N$13,\"N/A\",0,1)","v":"N/A"},{"$f":"_xlfn.XLOOKUP($E73,'Activity 10'!$B$7:$B$13,'Activity 10'!O$7:O$13,\"N/A\",0,1)","v":"N/A"},{"$f":"_xlfn.XLOOKUP($E73,'Activity 10'!$B$7:$B$13,'Activity 10'!P$7:P$13,\"N/A\",0,1)","v":"N/A"},{"$f":"_xlfn.XLOOKUP($E73,'Activity 10'!$B$7:$B$13,'Activity 10'!Q$7:Q$13,\"N/A\",0,1)","v":"N/A"},{"$f":"_xlfn.XLOOKUP($E73,'Activity 10'!$B$7:$B$13,'Activity 10'!R$7:R$13,\"N/A\",0,1)","v":"N/A"},{"$f":"_xlfn.XLOOKUP($E73,'Activity 10'!$B$7:$B$13,'Activity 10'!S$7:S$13,\"N/A\",0,1)","v":"N/A"},{"$f":"_xlfn.XLOOKUP($E73,'Activity 10'!$B$7:$B$13,'Activity 10'!T$7:T$13,\"N/A\",0,1)","v":"N/A"},{"$f":"_xlfn.XLOOKUP($E73,'Activity 10'!$B$7:$B$13,'Activity 10'!U$7:U$13,\"N/A\",0,1)","v":"N/A"},{"$f":"_xlfn.XLOOKUP($E73,'Activity 10'!$B$7:$B$13,'Activity 10'!V$7:V$13,\"N/A\",0,1)","v":"N/A"},{"$f":"_xlfn.XLOOKUP($E73,'Activity 10'!$B$17:$B$23,'Activity 10'!E$17:E$23,\"N/A\",0,1)","v":"N/A"},{"$f":"_xlfn.XLOOKUP($E73,'Activity 10'!$B$17:$B$23,'Activity 10'!F$17:F$23,\"N/A\",0,1)","v":"N/A"},{"$f":"_xlfn.XLOOKUP($E73,'Activity 10'!$B$17:$B$23,'Activity 10'!G$17:G$23,\"N/A\",0,1)","v":"N/A"},{"$f":"_xlfn.XLOOKUP($E73,'Activity 10'!$B$17:$B$23,'Activity 10'!H$17:H$23,\"N/A\",0,1)","v":"N/A"},{"$f":"_xlfn.XLOOKUP($E73,'Activity 10'!$B$17:$B$23,'Activity 10'!I$17:I$23,\"N/A\",0,1)","v":"N/A"},{"$f":"_xlfn.XLOOKUP($E73,'Activity 10'!$B$17:$B$23,'Activity 10'!J$17:J$23,\"N/A\",0,1)","v":"N/A"},{"$f":"_xlfn.XLOOKUP($E73,'Activity 10'!$B$17:$B$23,'Activity 10'!K$17:K$23,\"N/A\",0,1)","v":"N/A"},{"$f":"_xlfn.XLOOKUP($E73,'Activity 10'!$B$17:$B$23,'Activity 10'!L$17:L$23,\"N/A\",0,1)","v":"N/A"},{"$f":"_xlfn.XLOOKUP($E73,'Activity 10'!$B$17:$B$23,'Activity 10'!M$17:M$23,\"N/A\",0,1)","v":"N/A"},{"$f":"_xlfn.XLOOKUP($E73,'Activity 10'!$B$17:$B$23,'Activity 10'!N$17:N$23,\"N/A\",0,1)","v":"N/A"},{"$f":"_xlfn.XLOOKUP($E73,'Activity 10'!$B$17:$B$23,'Activity 10'!P$17:P$23,\"N/A\",0,1)","v":"N/A"},{"$f":"_xlfn.XLOOKUP($E73,'Competitive Activity 1'!B$7:B$13,'Competitive Activity 1'!A$7:A$13,\"No\",0,1)","v":"No"},{"$f":"_xlfn.XLOOKUP($E73,'Competitive Activity 1'!$B$7:$B$13,'Competitive Activity 1'!H$7:H$13,\"N/A\",0,1)","v":"N/A"},{"$f":"_xlfn.XLOOKUP($E73,'Competitive Activity 1'!$B$7:$B$13,'Competitive Activity 1'!I$7:I$13,\"N/A\",0,1)","v":"N/A"},{"$f":"_xlfn.XLOOKUP($E73,'Competitive Activity 1'!$B$7:$B$13,'Competitive Activity 1'!J$7:J$13,\"N/A\",0,1)","v":"N/A"},{"$f":"_xlfn.XLOOKUP($E73,'Competitive Activity 1'!$B$7:$B$13,'Competitive Activity 1'!K$7:K$13,\"N/A\",0,1)","v":"N/A"},{"$f":"_xlfn.XLOOKUP($E73,'Competitive Activity 1'!$B$7:$B$13,'Competitive Activity 1'!L$7:L$13,\"N/A\",0,1)","v":"N/A"},{"$f":"_xlfn.XLOOKUP($E73,'Competitive Activity 1'!$B$7:$B$13,'Competitive Activity 1'!M$7:M$13,\"N/A\",0,1)","v":"N/A"},{"$f":"_xlfn.XLOOKUP($E73,'Competitive Activity 1'!$B$7:$B$13,'Competitive Activity 1'!N$7:N$13,\"N/A\",0,1)","v":"N/A"},{"$f":"_xlfn.XLOOKUP($E73,'Competitive Activity 1'!$B$7:$B$13,'Competitive Activity 1'!O$7:O$13,\"N/A\",0,1)","v":"N/A"},{"$f":"_xlfn.XLOOKUP($E73,'Competitive Activity 1'!$B$7:$B$13,'Competitive Activity 1'!P$7:P$13,\"N/A\",0,1)","v":"N/A"},{"$f":"_xlfn.XLOOKUP($E73,'Competitive Activity 1'!$B$7:$B$13,'Competitive Activity 1'!Q$7:Q$13,\"N/A\",0,1)","v":"N/A"},{"$f":"_xlfn.XLOOKUP($E73,'Competitive Activity 1'!$B$7:$B$13,'Competitive Activity 1'!R$7:R$13,\"N/A\",0,1)","v":"N/A"},{"$f":"_xlfn.XLOOKUP($E73,'Competitive Activity 1'!$B$7:$B$13,'Competitive Activity 1'!S$7:S$13,\"N/A\",0,1)","v":"N/A"},{"$f":"_xlfn.XLOOKUP($E73,'Competitive Activity 1'!$B$7:$B$13,'Competitive Activity 1'!T$7:T$13,\"N/A\",0,1)","v":"N/A"},{"$f":"_xlfn.XLOOKUP($E73,'Competitive Activity 1'!$B$7:$B$13,'Competitive Activity 1'!U$7:U$13,\"N/A\",0,1)","v":"N/A"},{"$f":"_xlfn.XLOOKUP($E73,'Competitive Activity 1'!$B$17:$B$23,'Competitive Activity 1'!C$17:C$23,\"N/A\",0,1)","v":"N/A"},{"$f":"_xlfn.XLOOKUP($E73,'Competitive Activity 1'!$B$17:$B$23,'Competitive Activity 1'!D$17:D$23,\"N/A\",0,1)","v":"N/A"},{"$f":"_xlfn.XLOOKUP($E73,'Competitive Activity 1'!$B$17:$B$23,'Competitive Activity 1'!E$17:E$23,\"N/A\",0,1)","v":"N/A"},{"$f":"_xlfn.XLOOKUP($E73,'Competitive Activity 1'!$B$17:$B$23,'Competitive Activity 1'!F$17:F$23,\"N/A\",0,1)","v":"N/A"},{"$f":"_xlfn.XLOOKUP($E73,'Competitive Activity 1'!$B$17:$B$23,'Competitive Activity 1'!G$17:G$23,\"N/A\",0,1)","v":"N/A"},{"$f":"_xlfn.XLOOKUP($E73,'Competitive Activity 1'!$B$17:$B$23,'Competitive Activity 1'!H$17:H$23,\"N/A\",0,1)","v":"N/A"},{"$f":"_xlfn.XLOOKUP($E73,'Competitive Activity 1'!$B$17:$B$23,'Competitive Activity 1'!I$17:I$23,\"N/A\",0,1)","v":"N/A"},{"$f":"_xlfn.XLOOKUP($E73,'Competitive Activity 1'!$B$17:$B$23,'Competitive Activity 1'!J$17:J$23,\"N/A\",0,1)","v":"N/A"},{"$f":"_xlfn.XLOOKUP($E73,'Competitive Activity 1'!$B$17:$B$23,'Competitive Activity 1'!K$17:K$23,\"N/A\",0,1)","v":"N/A"},{"$f":"_xlfn.XLOOKUP($E73,'Competitive Activity 1'!$B$17:$B$23,'Competitive Activity 1'!M$17:M$23,\"N/A\",0,1)","v":"N/A"},{"$f":"_xlfn.XLOOKUP($E73,'Competitive Activity 1'!$B$17:$B$23,'Competitive Activity 1'!N$17:N$23,\"N/A\",0,1)","v":"N/A"},{"$f":"_xlfn.XLOOKUP($E73,'Competitive Activity 1'!$B$17:$B$23,'Competitive Activity 1'!P$17:P$23,\"N/A\",0,1)","v":"N/A"},{"$f":"_xlfn.XLOOKUP($E73,'Competitive Activity 2'!$B$7:$B$13,'Competitive Activity 2'!A$7:A$13,\"No\",0)","v":"No"},{"$f":"_xlfn.XLOOKUP($E73,'Competitive Activity 2'!$B$7:$B$13,'Competitive Activity 2'!L$7:L$13,\"N/A\",0)","v":"N/A"},{"$f":"_xlfn.XLOOKUP($E73,'Competitive Activity 2'!$B$7:$B$13,'Competitive Activity 2'!M$7:M$13,\"N/A\",0)","v":"N/A"},{"$f":"_xlfn.XLOOKUP($E73,'Competitive Activity 2'!$B$7:$B$13,'Competitive Activity 2'!N$7:N$13,\"N/A\",0)","v":"N/A"},{"$f":"_xlfn.XLOOKUP($E73,'Competitive Activity 2'!$B$7:$B$13,'Competitive Activity 2'!O$7:O$13,\"N/A\",0)","v":"N/A"},{"$f":"_xlfn.XLOOKUP($E73,'Competitive Activity 2'!$B$7:$B$13,'Competitive Activity 2'!P$7:P$13,\"N/A\",0)","v":"N/A"},{"$f":"_xlfn.XLOOKUP($E73,'Competitive Activity 2'!$B$7:$B$13,'Competitive Activity 2'!Q$7:Q$13,\"N/A\",0)","v":"N/A"},{"$f":"_xlfn.XLOOKUP($E73,'Competitive Activity 2'!$B$7:$B$13,'Competitive Activity 2'!R$7:R$13,\"N/A\",0)","v":"N/A"},{"$f":"_xlfn.XLOOKUP($E73,'Competitive Activity 2'!$B$7:$B$13,'Competitive Activity 2'!S$7:S$13,\"N/A\",0)","v":"N/A"},{"$f":"_xlfn.XLOOKUP($E73,'Competitive Activity 2'!$B$7:$B$13,'Competitive Activity 2'!T$7:T$13,\"N/A\",0)","v":"N/A"},{"$f":"_xlfn.XLOOKUP($E73,'Competitive Activity 2'!$B$7:$B$13,'Competitive Activity 2'!U$7:U$13,\"N/A\",0)","v":"N/A"},{"$f":"_xlfn.XLOOKUP($E73,'Competitive Activity 2'!$B$17:$B$23,'Competitive Activity 2'!D$17:D$23,\"N/A\",0)","v":"N/A"},{"$f":"_xlfn.XLOOKUP($E73,'Competitive Activity 2'!$B$17:$B$23,'Competitive Activity 2'!E$17:E$23,\"N/A\",0)","v":"N/A"},{"$f":"_xlfn.XLOOKUP($E73,'Competitive Activity 2'!$B$17:$B$23,'Competitive Activity 2'!F$17:F$23,\"N/A\",0)","v":"N/A"},{"$f":"_xlfn.XLOOKUP($E73,'Competitive Activity 2'!$B$17:$B$23,'Competitive Activity 2'!G$17:G$23,\"N/A\",0)","v":"N/A"},{"$f":"_xlfn.XLOOKUP($E73,'Competitive Activity 2'!$B$17:$B$23,'Competitive Activity 2'!H$17:H$23,\"N/A\",0)","v":"N/A"},{"$f":"_xlfn.XLOOKUP($E73,'Competitive Activity 2'!$B$17:$B$23,'Competitive Activity 2'!I$17:I$23,\"N/A\",0)","v":"N/A"},{"$f":"_xlfn.XLOOKUP($E73,'Competitive Activity 2'!$B$17:$B$23,'Competitive Activity 2'!J$17:J$23,\"N/A\",0)","v":"N/A"},{"$f":"_xlfn.XLOOKUP($E73,'Competitive Activity 2'!$B$17:$B$23,'Competitive Activity 2'!K$17:K$23,\"N/A\",0)","v":"N/A"},{"$f":"_xlfn.XLOOKUP($E73,'Competitive Activity 2'!$B$17:$B$23,'Competitive Activity 2'!L$17:L$23,\"N/A\",0)","v":"N/A"},{"$f":"_xlfn.XLOOKUP($E73,'Competitive Activity 2'!$B$17:$B$23,'Competitive Activity 2'!M$17:M$23,\"N/A\",0)","v":"N/A"},{"$f":"_xlfn.XLOOKUP($E73,'Competitive Activity 2'!$B$17:$B$23,'Competitive Activity 2'!N$17:N$23,\"N/A\",0)","v":"N/A"},{"$f":"_xlfn.XLOOKUP($E73,'Competitive Activity 2'!$B$27:$B$33,'Competitive Activity 2'!D$27:D$33,\"N/A\",0)","v":"N/A"},{"$f":"_xlfn.XLOOKUP($E73,'Competitive Activity 2'!$B$27:$B$33,'Competitive Activity 2'!E$27:E$33,\"N/A\",0)","v":"N/A"},{"$f":"_xlfn.XLOOKUP($E73,'Competitive Activity 2'!$B$27:$B$33,'Competitive Activity 2'!F$27:F$33,\"N/A\",0)","v":"N/A"},{"$f":"_xlfn.XLOOKUP($E73,'Competitive Activity 2'!$B$27:$B$33,'Competitive Activity 2'!G$27:G$33,\"N/A\",0)","v":"N/A"},{"$f":"_xlfn.XLOOKUP($E73,'Competitive Activity 2'!$B$27:$B$33,'Competitive Activity 2'!H$27:H$33,\"N/A\",0)","v":"N/A"},{"$f":"_xlfn.XLOOKUP($E73,'Competitive Activity 2'!$B$27:$B$33,'Competitive Activity 2'!I$27:I$33,\"N/A\",0)","v":"N/A"},{"$f":"_xlfn.XLOOKUP($E73,'Competitive Activity 2'!$B$27:$B$33,'Competitive Activity 2'!J$27:J$33,\"N/A\",0)","v":"N/A"},{"$f":"_xlfn.XLOOKUP($E73,'Competitive Activity 2'!$B$27:$B$33,'Competitive Activity 2'!K$27:K$33,\"N/A\",0)","v":"N/A"},{"$f":"_xlfn.XLOOKUP($E73,'Competitive Activity 2'!$B$27:$B$33,'Competitive Activity 2'!M$27:M$33,\"N/A\",0)","v":"N/A"}]
[{"$f":"'1-Cover Sheet'!$C$8","v":"Select One"},{"$f":"'1-Cover Sheet'!$F$8","v":"Select One"},{"$f":"'Summary Sheet'!$D$8","v":0},{"$f":"'Summary Sheet'!$D$10","v":0},{"$f":"'Drop Down Box'!B238","v":0},{"$f":"'Drop Down Box'!C238","v":0},{"$f":"'Drop Down Box'!D238","v":"Select One"},{"$f":"_xlfn.XLOOKUP(E74,'Drop Down Box'!$B$166:$B$249,'Drop Down Box'!$A$166:$A$249,\"Unknown\",0)","v":"Activity 1"},{"$f":"_xlfn.XLOOKUP($E74,'Competitive Activity 1'!$B$17:$B$23,'Competitive Activity 1'!$L$17:$L$23,\"N/A\",0)","v":"N/A"},{"$f":"_xlfn.XLOOKUP($E74,'Competitive Activity 1'!$B$17:$B$23,'Competitive Activity 1'!$O$17:$O$23,\"N/A\",0)","v":"N/A"},{"$f":"_xlfn.XLOOKUP($E74,'Competitive Activity 1'!$B$7:$B$13,'Competitive Activity 1'!E$7:E$13,\"N/A\",0)","v":"N/A"},{"$f":"_xlfn.XLOOKUP($E74,'Competitive Activity 1'!$B$7:$B$13,'Competitive Activity 1'!F$7:F$13,\"N/A\",0)","v":"N/A"},{"$f":"_xlfn.XLOOKUP($E74,'Competitive Activity 1'!$B$7:$B$13,'Competitive Activity 1'!G$7:G$13,\"N/A\",0)","v":"N/A"},{"$f":"_xlfn.XLOOKUP($E74,'Activity 1'!$B$7:$B$13,'Activity 1'!$A$7:$A$13,\"No\",0,1)","v":"No"},{"$f":"_xlfn.XLOOKUP($E74,'Activity 1'!$B$7:$B$13,'Activity 1'!$H$7:$H$13,\"N/A\",0,1)","v":"N/A"},{"$f":"_xlfn.XLOOKUP($E74,'Activity 1'!$B$7:$B$13,'Activity 1'!I$7:I$13,\"N/A\",0,1)","v":"N/A"},{"$f":"_xlfn.XLOOKUP($E74,'Activity 1'!$B$7:$B$13,'Activity 1'!J$7:J$13,\"N/A\",0,1)","v":"N/A"},{"$f":"_xlfn.XLOOKUP($E74,'Activity 1'!$B$7:$B$13,'Activity 1'!K$7:K$13,\"N/A\",0,1)","v":"N/A"},{"$f":"_xlfn.XLOOKUP($E74,'Activity 1'!$B$7:$B$13,'Activity 1'!L$7:L$13,\"N/A\",0,1)","v":"N/A"},{"$f":"_xlfn.XLOOKUP($E74,'Activity 1'!$B$7:$B$13,'Activity 1'!M$7:M$13,\"N/A\",0,1)","v":"N/A"},{"$f":"_xlfn.XLOOKUP($E74,'Activity 1'!$B$7:$B$13,'Activity 1'!N$7:N$13,\"N/A\",0,1)","v":"N/A"},{"$f":"SUM(Q74:U74)","v":0},{"$f":"_xlfn.XLOOKUP($E74,'Activity 1'!$B$7:$B$13,'Activity 1'!O$7:O$13,\"N/A\",0,1)","v":"N/A"},{"$f":"_xlfn.XLOOKUP($E74,'Activity 1'!$B$7:$B$13,'Activity 1'!P$7:P$13,\"N/A\",0,1)","v":"N/A"},{"$f":"_xlfn.XLOOKUP($E74,'Activity 1'!$B$7:$B$13,'Activity 1'!Q$7:Q$13,\"N/A\",0,1)","v":"N/A"},{"$f":"_xlfn.XLOOKUP($E74,'Activity 1'!$B$7:$B$13,'Activity 1'!R$7:R$13,\"N/A\",0,1)","v":"N/A"},{"$f":"_xlfn.XLOOKUP($E74,'Activity 1'!$B$7:$B$13,'Activity 1'!S$7:S$13,\"N/A\",0,1)","v":"N/A"},{"$f":"_xlfn.XLOOKUP($E74,'Activity 1'!$B$7:$B$13,'Activity 1'!T$7:T$13,\"N/A\",0,1)","v":"N/A"},{"$f":"_xlfn.XLOOKUP($E74,'Activity 1'!$B$7:$B$13,'Activity 1'!U$7:U$13,\"N/A\",0,1)","v":"N/A"},{"$f":"_xlfn.XLOOKUP($E74,'Activity 1'!$B$7:$B$13,'Activity 1'!V$7:V$13,\"N/A\",0,1)","v":"N/A"},{"$f":"_xlfn.XLOOKUP($E74,'Activity 1'!$B$17:$B$23,'Activity 1'!C$17:C$23,\"N/A\",0,1)","v":"N/A"},{"$f":"_xlfn.XLOOKUP($E74,'Activity 1'!$B$17:$B$23,'Activity 1'!D$17:D$23,\"N/A\",0,1)","v":"N/A"},{"$f":"_xlfn.XLOOKUP($E74,'Activity 1'!$B$17:$B$23,'Activity 1'!E$17:E$23,\"N/A\",0,1)","v":"N/A"},{"$f":"_xlfn.XLOOKUP($E74,'Activity 1'!$B$17:$B$23,'Activity 1'!F$17:F$23,\"N/A\",0,1)","v":"N/A"},{"$f":"_xlfn.XLOOKUP($E74,'Activity 1'!$B$17:$B$23,'Activity 1'!G$17:G$23,\"N/A\",0,1)","v":"N/A"},{"$f":"_xlfn.XLOOKUP($E74,'Activity 1'!$B$17:$B$23,'Activity 1'!H$17:H$23,\"N/A\",0,1)","v":"N/A"},{"$f":"_xlfn.XLOOKUP($E74,'Activity 1'!$B$17:$B$23,'Activity 1'!I$17:I$23,\"N/A\",0,1)","v":"N/A"},{"$f":"_xlfn.XLOOKUP($E74,'Activity 1'!$B$17:$B$23,'Activity 1'!J$17:J$23,\"N/A\",0,1)","v":"N/A"},{"$f":"_xlfn.XLOOKUP($E74,'Activity 1'!$B$17:$B$23,'Activity 1'!K$17:K$23,\"N/A\",0,1)","v":"N/A"},{"$f":"_xlfn.XLOOKUP($E74,'Activity 1'!$B$17:$B$23,'Activity 1'!L$17:L$23,\"N/A\",0,1)","v":"N/A"},{"$f":"_xlfn.XLOOKUP($E74,'Activity 1'!$B$17:$B$23,'Activity 1'!M$17:M$23,\"N/A\",0,1)","v":"N/A"},{"$f":"_xlfn.XLOOKUP($E74,'Activity 1'!$B$17:$B$23,'Activity 1'!O$17:O$23,\"N/A\",0,1)","v":"N/A"},{"$f":"_xlfn.XLOOKUP($E74,'Activity 1'!$B$17:$B$23,'Activity 1'!Q$17:Q$23,\"N/A\",0,1)","v":"N/A"},{"$f":"_xlfn.XLOOKUP($E74,'Activity 2'!$B$7:$B$13,'Activity 2'!$A$7:$A$13,\"No\",0,1)","v":"No"},{"$f":"_xlfn.XLOOKUP($E74,'Activity 2'!B$7:B$13,'Activity 2'!H$7:H$13,\"N/A\",0)","v":"N/A"},{"$f":"_xlfn.XLOOKUP($E74,'Activity 2'!C$7:C$13,'Activity 2'!I$7:I$13,\"N/A\",0)","v":"N/A"},{"$f":"_xlfn.XLOOKUP($E74,'Activity 2'!D$7:D$13,'Activity 2'!J$7:J$13,\"N/A\",0)","v":"N/A"},{"$f":"_xlfn.XLOOKUP($E74,'Activity 2'!E$7:E$13,'Activity 2'!K$7:K$13,\"N/A\",0)","v":"N/A"},{"$f":"_xlfn.XLOOKUP($E74,'Activity 2'!F$7:F$13,'Activity 2'!L$7:L$13,\"N/A\",0)","v":"N/A"},{"$f":"_xlfn.XLOOKUP($E74,'Activity 2'!G$7:G$13,'Activity 2'!M$7:M$13,\"N/A\",0)","v":"N/A"},{"$f":"_xlfn.XLOOKUP($E74,'Activity 2'!H$7:H$13,'Activity 2'!N$7:N$13,\"N/A\",0)","v":"N/A"},{"$f":"_xlfn.XLOOKUP($E74,'Activity 2'!I$7:I$13,'Activity 2'!O$7:O$13,\"N/A\",0)","v":"N/A"},{"$f":"_xlfn.XLOOKUP($E74,'Activity 2'!J$7:J$13,'Activity 2'!P$7:P$13,\"N/A\",0)","v":"N/A"},{"$f":"_xlfn.XLOOKUP($E74,'Activity 2'!K$7:K$13,'Activity 2'!Q$7:Q$13,\"N/A\",0)","v":"N/A"},{"$f":"_xlfn.XLOOKUP($E74,'Activity 2'!L$7:L$13,'Activity 2'!R$7:R$13,\"N/A\",0)","v":"N/A"},{"$f":"_xlfn.XLOOKUP($E74,'Activity 2'!M$7:M$13,'Activity 2'!S$7:S$13,\"N/A\",0)","v":"N/A"},{"$f":"_xlfn.XLOOKUP($E74,'Activity 2'!N$7:N$13,'Activity 2'!T$7:T$13,\"N/A\",0)","v":"N/A"},{"$f":"_xlfn.XLOOKUP($E74,'Activity 2'!O$7:O$13,'Activity 2'!U$7:U$13,\"N/A\",0)","v":"N/A"},{"$f":"_xlfn.XLOOKUP($E74,'Activity 2'!P$7:P$13,'Activity 2'!V$7:V$13,\"N/A\",0)","v":"N/A"},{"$f":"_xlfn.XLOOKUP($E74,'Activity 2'!$B$17:$B$23,'Activity 2'!C$17:C$23,\"N/A\",0,1)","v":"N/A"},{"$f":"_xlfn.XLOOKUP($E74,'Activity 2'!$B$17:$B$23,'Activity 2'!D$17:D$23,\"N/A\",0,1)","v":"N/A"},{"$f":"_xlfn.XLOOKUP($E74,'Activity 2'!$B$17:$B$23,'Activity 2'!E$17:E$23,\"N/A\",0,1)","v":"N/A"},{"$f":"_xlfn.XLOOKUP($E74,'Activity 2'!$B$17:$B$23,'Activity 2'!F$17:F$23,\"N/A\",0,1)","v":"N/A"},{"$f":"_xlfn.XLOOKUP($E74,'Activity 2'!$B$17:$B$23,'Activity 2'!G$17:G$23,\"N/A\",0,1)","v":"N/A"},{"$f":"_xlfn.XLOOKUP($E74,'Activity 2'!$B$17:$B$23,'Activity 2'!H$17:H$23,\"N/A\",0,1)","v":"N/A"},{"$f":"_xlfn.XLOOKUP($E74,'Activity 2'!$B$17:$B$23,'Activity 2'!I$17:I$23,\"N/A\",0,1)","v":"N/A"},{"$f":"_xlfn.XLOOKUP($E74,'Activity 2'!$B$17:$B$23,'Activity 2'!J$17:J$23,\"N/A\",0,1)","v":"N/A"},{"$f":"_xlfn.XLOOKUP($E74,'Activity 2'!$B$17:$B$23,'Activity 2'!K$17:K$23,\"N/A\",0,1)","v":"N/A"},{"$f":"_xlfn.XLOOKUP($E74,'Activity 2'!$B$17:$B$23,'Activity 2'!L$17:L$23,\"N/A\",0,1)","v":"N/A"},{"$f":"_xlfn.XLOOKUP($E74,'Activity 2'!$B$17:$B$23,'Activity 2'!M$17:M$23,\"N/A\",0,1)","v":"N/A"},{"$f":"_xlfn.XLOOKUP($E74,'Activity 2'!$B$17:$B$23,'Activity 2'!O$17:O$23,\"N/A\",0,1)","v":"N/A"},{"$f":"_xlfn.XLOOKUP($E74,'Activity 2'!$B$17:$B$23,'Activity 2'!Q$17:Q$23,\"N/A\",0,1)","v":"N/A"},null,{"$f":"_xlfn.XLOOKUP($E74,'Activity 3'!$B$8:$B$14,'Activity 3'!K$8:K$14,\"N/A\",0,1)","v":"N/A"},{"$f":"_xlfn.XLOOKUP($E74,'Activity 3'!$B$8:$B$14,'Activity 3'!L$8:L$14,\"N/A\",0,1)","v":"N/A"},{"$f":"_xlfn.XLOOKUP($E74,'Activity 3'!$B$8:$B$14,'Activity 3'!M$8:M$14,\"N/A\",0,1)","v":"N/A"},{"$f":"_xlfn.XLOOKUP($E74,'Activity 3'!$B$8:$B$14,'Activity 3'!N$8:N$14,\"N/A\",0,1)","v":"N/A"},{"$f":"_xlfn.XLOOKUP($E74,'Activity 3'!$B$8:$B$14,'Activity 3'!O$8:O$14,\"N/A\",0,1)","v":"N/A"},{"$f":"_xlfn.XLOOKUP($E74,'Activity 3'!$B$8:$B$14,'Activity 3'!R$8:R$14,\"N/A\",0,1)","v":"N/A"},{"$f":"_xlfn.XLOOKUP($E74,'Activity 4'!$B$8:$B$14,'Activity 4'!$A$8:$A$14,\"No\",0,1)","v":"No"},{"$f":"_xlfn.XLOOKUP($E74,'Activity 4'!$B$8:$B$14,'Activity 4'!L$8:L$14,\"N/A\",0,1)","v":"N/A"},{"$f":"_xlfn.XLOOKUP($E74,'Activity 4'!$B$8:$B$14,'Activity 4'!I$8:I$14,\"N/A\",0,1)","v":"N/A"},{"$f":"_xlfn.XLOOKUP($E74,'Activity 4'!$B$8:$B$14,'Activity 4'!M$8:M$14,\"N/A\",0,1)","v":"N/A"},{"$f":"_xlfn.XLOOKUP($E74,'Activity 5'!$B$8:$B$14,'Activity 5'!$A$8:$A$14,\"No\",0,1)","v":"No"},{"$f":"_xlfn.XLOOKUP($E74,'Activity 5'!$B$8:$B$14,'Activity 5'!J$8:J$14,\"N/A\",0,1)","v":"N/A"},{"$f":"_xlfn.XLOOKUP($E74,'Activity 5'!$B$8:$B$14,'Activity 5'!K$8:K$14,\"N/A\",0,1)","v":"N/A"},{"$f":"_xlfn.XLOOKUP($E74,'Activity 5'!$B$8:$B$14,'Activity 5'!N$8:N$14,\"N/A\",0,1)","v":"N/A"},{"$f":"_xlfn.XLOOKUP($E74,'Activity 5'!$B$8:$B$14,'Activity 5'!O$8:O$14,\"N/A\",0,1)","v":"N/A"},{"$f":"_xlfn.XLOOKUP($E74,'Activity 5'!$B$8:$B$14,'Activity 5'!P$8:P$14,\"N/A\",0,1)","v":"N/A"},{"$f":"_xlfn.XLOOKUP($E74,'Activity 5'!$B$8:$B$14,'Activity 5'!Q$8:Q$14,\"N/A\",0,1)","v":"N/A"},{"$f":"_xlfn.XLOOKUP($E74,'Activity 5'!$B$8:$B$14,'Activity 5'!R$8:R$14,\"N/A\",0,1)","v":"N/A"},{"$f":"_xlfn.XLOOKUP($E74,'Activity 6'!$B$7:$B$13,'Activity 6'!A$7:A$13,\"No\",0,1)","v":"No"},{"$f":"_xlfn.XLOOKUP($E74,'Activity 6'!$B$7:$B$13,'Activity 6'!K$7:K$13,\"N/A\",0,1)","v":"N/A"},{"$f":"_xlfn.XLOOKUP($E74,'Activity 6'!$B$7:$B$13,'Activity 6'!L$7:L$13,\"N/A\",0,1)","v":"N/A"},{"$f":"_xlfn.XLOOKUP($E74,'Activity 6'!$B$7:$B$13,'Activity 6'!M$7:M$13,\"N/A\",0,1)","v":"N/A"},{"$f":"_xlfn.XLOOKUP($E74,'Activity 6'!$B$7:$B$13,'Activity 6'!N$7:N$13,\"N/A\",0,1)","v":"N/A"},{"$f":"_xlfn.XLOOKUP($E74,'Activity 6'!$B$7:$B$13,'Activity 6'!O$7:O$13,\"N/A\",0,1)","v":"N/A"},{"$f":"_xlfn.XLOOKUP($E74,'Activity 6'!$B$7:$B$13,'Activity 6'!P$7:P$13,\"N/A\",0,1)","v":"N/A"},{"$f":"_xlfn.XLOOKUP($E74,'Activity 6'!$B$7:$B$13,'Activity 6'!Q$7:Q$13,\"N/A\",0,1)","v":"N/A"},{"$f":"_xlfn.XLOOKUP($E74,'Activity 6'!$B$7:$B$13,'Activity 6'!R$7:R$13,\"N/A\",0,1)","v":"N/A"},{"$f":"_xlfn.XLOOKUP($E74,'Activity 6'!$B$7:$B$13,'Activity 6'!S$7:S$13,\"N/A\",0,1)","v":"N/A"},{"$f":"_xlfn.XLOOKUP($E74,'Activity 6'!$B$7:$B$13,'Activity 6'!T$7:T$13,\"N/A\",0,1)","v":"N/A"},{"$f":"_xlfn.XLOOKUP($E74,'Activity 6'!$B$7:$B$13,'Activity 6'!U$7:U$13,\"N/A\",0,1)","v":"N/A"},{"$f":"_xlfn.XLOOKUP($E74,'Activity 6'!$B$22:$B$28,'Activity 6'!C$22:C$28,\"N/A\",0,1)","v":"N/A"},{"$f":"_xlfn.XLOOKUP($E74,'Activity 6'!$B$22:$B$28,'Activity 6'!D$22:D$28,\"N/A\",0,1)","v":"N/A"},{"$f":"_xlfn.XLOOKUP($E74,'Activity 6'!$B$22:$B$28,'Activity 6'!E$22:E$28,\"N/A\",0,1)","v":"N/A"},{"$f":"_xlfn.XLOOKUP($E74,'Activity 6'!$B$22:$B$28,'Activity 6'!F$22:F$28,\"N/A\",0,1)","v":"N/A"},{"$f":"_xlfn.XLOOKUP($E74,'Activity 6'!$B$22:$B$28,'Activity 6'!G$22:G$28,\"N/A\",0,1)","v":"N/A"},{"$f":"_xlfn.XLOOKUP($E74,'Activity 6'!$B$22:$B$28,'Activity 6'!H$22:H$28,\"N/A\",0,1)","v":"N/A"},{"$f":"_xlfn.XLOOKUP($E74,'Activity 6'!$B$22:$B$28,'Activity 6'!I$22:I$28,\"N/A\",0,1)","v":"N/A"},{"$f":"_xlfn.XLOOKUP($E74,'Activity 6'!$B$22:$B$28,'Activity 6'!J$22:J$28,\"N/A\",0,1)","v":"N/A"},{"$f":"_xlfn.XLOOKUP($E74,'Activity 6'!$B$22:$B$28,'Activity 6'!K$22:K$28,\"N/A\",0,1)","v":"N/A"},{"$f":"_xlfn.XLOOKUP($E74,'Activity 6'!$B$22:$B$28,'Activity 6'!L$22:L$28,\"N/A\",0,1)","v":"N/A"},{"$f":"_xlfn.XLOOKUP($E74,'Activity 6'!$B$22:$B$28,'Activity 6'!M$22:M$28,\"N/A\",0,1)","v":"N/A"},{"$f":"_xlfn.XLOOKUP($E74,'Activity 6'!$B$22:$B$28,'Activity 6'!N$22:N$28,\"N/A\",0,1)","v":"N/A"},{"$f":"_xlfn.XLOOKUP($E74,'Activity 6'!$B$32:$B$38,'Activity 6'!C$32:C$38,\"N/A\",0,1)","v":"N/A"},{"$f":"_xlfn.XLOOKUP($E74,'Activity 6'!$B$32:$B$38,'Activity 6'!D$32:D$38,\"N/A\",0,1)","v":"N/A"},{"$f":"_xlfn.XLOOKUP($E74,'Activity 6'!$B$32:$B$38,'Activity 6'!E$32:E$38,\"N/A\",0,1)","v":"N/A"},{"$f":"_xlfn.XLOOKUP($E74,'Activity 6'!$B$32:$B$38,'Activity 6'!F$32:F$38,\"N/A\",0,1)","v":"N/A"},{"$f":"_xlfn.XLOOKUP($E74,'Activity 6'!$B$32:$B$38,'Activity 6'!G$32:G$38,\"N/A\",0,1)","v":"N/A"},{"$f":"_xlfn.XLOOKUP($E74,'Activity 6'!$B$32:$B$38,'Activity 6'!H$32:H$38,\"N/A\",0,1)","v":"N/A"},{"$f":"_xlfn.XLOOKUP($E74,'Activity 6'!$B$32:$B$38,'Activity 6'!I$32:I$38,\"N/A\",0,1)","v":"N/A"},{"$f":"_xlfn.XLOOKUP($E74,'Activity 6'!$B$32:$B$38,'Activity 6'!J$32:J$38,\"N/A\",0,1)","v":"N/A"},{"$f":"_xlfn.XLOOKUP($E74,'Activity 6'!$B$32:$B$38,'Activity 6'!K$32:K$38,\"N/A\",0,1)","v":"N/A"},{"$f":"_xlfn.XLOOKUP($E74,'Activity 6'!$B$32:$B$38,'Activity 6'!M$32:M$38,\"N/A\",0,1)","v":"N/A"},{"$f":"_xlfn.XLOOKUP($E74,'Activity 7'!$B$7:$B$13,'Activity 7'!$A$7:$A$13,\"No\",0,1)","v":"No"},{"$f":"_xlfn.XLOOKUP($E74,'Activity 7'!$B$7:$B$13,'Activity 7'!M$7:M$13,\"N/A\",0,1)","v":"N/A"},{"$f":"_xlfn.XLOOKUP($E74,'Activity 7'!$B$7:$B$13,'Activity 7'!K$7:K$13,\"N/A\",0,1)","v":"N/A"},{"$f":"_xlfn.XLOOKUP($E74,'Activity 7'!$B$7:$B$13,'Activity 7'!N$7:N$13,\"N/A\",0,1)","v":"N/A"},{"$f":"_xlfn.XLOOKUP($E74,'Activity 7'!$B$7:$B$13,'Activity 7'!O$7:O$13,\"N/A\",0,1)","v":"N/A"},{"$f":"_xlfn.XLOOKUP($E74,'Activity 7'!$B$7:$B$13,'Activity 7'!P$7:P$13,\"N/A\",0,1)","v":"N/A"},{"$f":"_xlfn.XLOOKUP($E74,'Activity 7'!$B$7:$B$13,'Activity 7'!Q$7:Q$13,\"N/A\",0,1)","v":"N/A"},{"$f":"_xlfn.XLOOKUP($E74,'Activity 7'!$B$7:$B$13,'Activity 7'!R$7:R$13,\"N/A\",0,1)","v":"N/A"},{"$f":"_xlfn.XLOOKUP($E74,'Activity 7'!$B$7:$B$13,'Activity 7'!S$7:S$13,\"N/A\",0,1)","v":"N/A"},{"$f":"_xlfn.XLOOKUP($E74,'Activity 7'!$B$7:$B$13,'Activity 7'!T$7:T$13,\"N/A\",0,1)","v":"N/A"},{"$f":"_xlfn.XLOOKUP($E74,'Activity 7'!$B$7:$B$13,'Activity 7'!U$7:U$13,\"N/A\",0,1)","v":"N/A"},{"$f":"_xlfn.XLOOKUP($E74,'Activity 7'!$B$7:$B$13,'Activity 7'!V$7:V$13,\"N/A\",0,1)","v":"N/A"},{"$f":"_xlfn.XLOOKUP($E74,'Activity 7'!$B$17:$B$23,'Activity 7'!E$17:E$23,\"N/A\",0,1)","v":"N/A"},{"$f":"_xlfn.XLOOKUP($E74,'Activity 7'!$B$17:$B$23,'Activity 7'!G$17:G$23,\"N/A\",0,1)","v":"N/A"},{"$f":"_xlfn.XLOOKUP($E74,'Activity 7'!$B$17:$B$23,'Activity 7'!I$17:I$23,\"N/A\",0,1)","v":"N/A"},{"$f":"_xlfn.XLOOKUP($E74,'Activity 7'!$B$17:$B$23,'Activity 7'!J$17:J$23,\"N/A\",0,1)","v":"N/A"},{"$f":"_xlfn.XLOOKUP($E74,'Activity 7'!$B$17:$B$23,'Activity 7'!K$17:K$23,\"N/A\",0,1)","v":"N/A"},{"$f":"_xlfn.XLOOKUP($E74,'Activity 7'!$B$17:$B$23,'Activity 7'!L$17:L$23,\"N/A\",0,1)","v":"N/A"},{"$f":"_xlfn.XLOOKUP($E74,'Activity 7'!$B$17:$B$23,'Activity 7'!M$17:M$23,\"N/A\",0,1)","v":"N/A"},{"$f":"_xlfn.XLOOKUP($E74,'Activity 7'!$B$17:$B$23,'Activity 7'!N$17:N$23,\"N/A\",0,1)","v":"N/A"},{"$f":"_xlfn.XLOOKUP($E74,'Activity 7'!$B$17:$B$23,'Activity 7'!P$17:P$23,\"N/A\",0,1)","v":"N/A"},{"$f":"_xlfn.XLOOKUP($E74,'Activity 8'!$B$7:$B$13,'Activity 8'!A$7:A$13,\"No\",0,1)","v":"No"},{"$f":"_xlfn.XLOOKUP($E74,'Activity 8'!$B$7:$B$13,'Activity 8'!I$7:I$13,\"N/A\",0,1)","v":"N/A"},{"$f":"_xlfn.XLOOKUP($E74,'Activity 8'!$B$7:$B$13,'Activity 8'!J$7:J$13,\"N/A\",0,1)","v":"N/A"},{"$f":"_xlfn.XLOOKUP($E74,'Activity 8'!$B$7:$B$13,'Activity 8'!K$7:K$13,\"N/A\",0,1)","v":"N/A"},{"$f":"_xlfn.XLOOKUP($E74,'Activity 8'!$B$7:$B$13,'Activity 8'!L$7:L$13,\"N/A\",0,1)","v":"N/A"},{"$f":"_xlfn.XLOOKUP($E74,'Activity 8'!$B$7:$B$13,'Activity 8'!M$7:M$13,\"N/A\",0,1)","v":"N/A"},{"$f":"_xlfn.XLOOKUP($E74,'Activity 8'!$B$7:$B$13,'Activity 8'!N$7:N$13,\"N/A\",0,1)","v":"N/A"},{"$f":"_xlfn.XLOOKUP($E74,'Activity 8'!$B$7:$B$13,'Activity 8'!O$7:O$13,\"N/A\",0,1)","v":"N/A"},{"$f":"_xlfn.XLOOKUP($E74,'Activity 8'!$B$7:$B$13,'Activity 8'!P$7:P$13,\"N/A\",0,1)","v":"N/A"},{"$f":"_xlfn.XLOOKUP($E74,'Activity 8'!$B$7:$B$13,'Activity 8'!Q$7:Q$13,\"N/A\",0,1)","v":"N/A"},{"$f":"_xlfn.XLOOKUP($E74,'Activity 8'!$B$7:$B$13,'Activity 8'!R$7:R$13,\"N/A\",0,1)","v":"N/A"},{"$f":"_xlfn.XLOOKUP($E74,'Activity 8'!$B$7:$B$13,'Activity 8'!S$7:S$13,\"N/A\",0,1)","v":"N/A"},{"$f":"_xlfn.XLOOKUP($E74,'Activity 8'!$B$7:$B$13,'Activity 8'!T$7:T$13,\"N/A\",0,1)","v":"N/A"},{"$f":"_xlfn.XLOOKUP($E74,'Activity 8'!$B$7:$B$13,'Activity 8'!U$7:U$13,\"N/A\",0,1)","v":"N/A"},{"$f":"_xlfn.XLOOKUP($E74,'Activity 8'!$B$7:$B$13,'Activity 8'!V$7:V$13,\"N/A\",0,1)","v":"N/A"},{"$f":"_xlfn.XLOOKUP($E74,'Activity 8'!$B$17:$B$23,'Activity 8'!D$17:D$23,\"N/A\",0,1)","v":"N/A"},{"$f":"_xlfn.XLOOKUP($E74,'Activity 8'!$B$17:$B$23,'Activity 8'!E$17:E$23,\"N/A\",0,1)","v":"N/A"},{"$f":"_xlfn.XLOOKUP($E74,'Activity 8'!$B$17:$B$23,'Activity 8'!F$17:F$23,\"N/A\",0,1)","v":"N/A"},{"$f":"_xlfn.XLOOKUP($E74,'Activity 8'!$B$17:$B$23,'Activity 8'!G$17:G$23,\"N/A\",0,1)","v":"N/A"},{"$f":"_xlfn.XLOOKUP($E74,'Activity 8'!$B$17:$B$23,'Activity 8'!H$17:H$23,\"N/A\",0,1)","v":"N/A"},{"$f":"_xlfn.XLOOKUP($E74,'Activity 8'!$B$17:$B$23,'Activity 8'!I$17:I$23,\"N/A\",0,1)","v":"N/A"},{"$f":"_xlfn.XLOOKUP($E74,'Activity 8'!$B$17:$B$23,'Activity 8'!J$17:J$23,\"N/A\",0,1)","v":"N/A"},{"$f":"_xlfn.XLOOKUP($E74,'Activity 8'!$B$17:$B$23,'Activity 8'!K$17:K$23,\"N/A\",0,1)","v":"N/A"},{"$f":"_xlfn.XLOOKUP($E74,'Activity 8'!$B$17:$B$23,'Activity 8'!L$17:L$23,\"N/A\",0,1)","v":"N/A"},{"$f":"_xlfn.XLOOKUP($E74,'Activity 8'!$B$17:$B$23,'Activity 8'!M$17:M$23,\"N/A\",0,1)","v":"N/A"},{"$f":"_xlfn.XLOOKUP($E74,'Activity 8'!$B$17:$B$23,'Activity 8'!N$17:N$23,\"N/A\",0,1)","v":"N/A"},{"$f":"_xlfn.XLOOKUP($E74,'Activity 8'!$B$17:$B$23,'Activity 8'!P$17:P$23,\"N/A\",0,1)","v":"N/A"},{"$f":"_xlfn.XLOOKUP(E74,'Activity 9'!$B$7:$B$13,'Activity 9'!$A$7:$A$13,\"No\",0,1)","v":"No"},{"$f":"_xlfn.XLOOKUP($E74,'Activity 9'!$B$7:$B$13,'Activity 9'!J$7:J$13,\"N/A\",0,1)","v":"N/A"},{"$f":"_xlfn.XLOOKUP($E74,'Activity 9'!$B$7:$B$13,'Activity 9'!K$7:K$13,\"N/A\",0,1)","v":"N/A"},{"$f":"_xlfn.XLOOKUP($E74,'Activity 9'!$B$7:$B$13,'Activity 9'!L$7:L$13,\"N/A\",0,1)","v":"N/A"},{"$f":"_xlfn.XLOOKUP($E74,'Activity 9'!$B$7:$B$13,'Activity 9'!M$7:M$13,\"N/A\",0,1)","v":"N/A"},{"$f":"_xlfn.XLOOKUP($E74,'Activity 9'!$B$7:$B$13,'Activity 9'!N$7:N$13,\"N/A\",0,1)","v":"N/A"},{"$f":"_xlfn.XLOOKUP($E74,'Activity 9'!$B$7:$B$13,'Activity 9'!O$7:O$13,\"N/A\",0,1)","v":"N/A"},{"$f":"_xlfn.XLOOKUP($E74,'Activity 9'!$B$7:$B$13,'Activity 9'!P$7:P$13,\"N/A\",0,1)","v":"N/A"},{"$f":"_xlfn.XLOOKUP($E74,'Activity 9'!$B$7:$B$13,'Activity 9'!Q$7:Q$13,\"N/A\",0,1)","v":"N/A"},{"$f":"_xlfn.XLOOKUP($E74,'Activity 9'!$B$7:$B$13,'Activity 9'!R$7:R$13,\"N/A\",0,1)","v":"N/A"},{"$f":"_xlfn.XLOOKUP($E74,'Activity 9'!$B$7:$B$13,'Activity 9'!S$7:S$13,\"N/A\",0,1)","v":"N/A"},{"$f":"_xlfn.XLOOKUP($E74,'Activity 9'!$B$7:$B$13,'Activity 9'!T$7:T$13,\"N/A\",0,1)","v":"N/A"},{"$f":"_xlfn.XLOOKUP($E74,'Activity 9'!$B$17:$B$23,'Activity 9'!E$17:E$23,\"N/A\",0,1)","v":"N/A"},{"$f":"_xlfn.XLOOKUP($E74,'Activity 9'!$B$17:$B$23,'Activity 9'!F$17:F$23,\"N/A\",0,1)","v":"N/A"},{"$f":"_xlfn.XLOOKUP($E74,'Activity 9'!$B$17:$B$23,'Activity 9'!G$17:G$23,\"N/A\",0,1)","v":"N/A"},{"$f":"_xlfn.XLOOKUP($E74,'Activity 9'!$B$17:$B$23,'Activity 9'!H$17:H$23,\"N/A\",0,1)","v":"N/A"},{"$f":"_xlfn.XLOOKUP($E74,'Activity 9'!$B$17:$B$23,'Activity 9'!I$17:I$23,\"N/A\",0,1)","v":"N/A"},{"$f":"_xlfn.XLOOKUP($E74,'Activity 9'!$B$17:$B$23,'Activity 9'!J$17:J$23,\"N/A\",0,1)","v":"N/A"},{"$f":"_xlfn.XLOOKUP($E74,'Activity 9'!$B$17:$B$23,'Activity 9'!K$17:K$23,\"N/A\",0,1)","v":"N/A"},{"$f":"_xlfn.XLOOKUP($E74,'Activity 9'!$B$17:$B$23,'Activity 9'!L$17:L$23,\"N/A\",0,1)","v":"N/A"},{"$f":"_xlfn.XLOOKUP($E74,'Activity 9'!$B$17:$B$23,'Activity 9'!N$17:N$23,\"N/A\",0,1)","v":"N/A"},{"$f":"_xlfn.XLOOKUP($E74,'Activity 9'!$B$17:$B$23,'Activity 9'!O$17:O$23,\"N/A\",0,1)","v":"N/A"},{"$f":"_xlfn.XLOOKUP($E74,'Activity 9'!$B$17:$B$23,'Activity 9'!Q$17:Q$23,\"N/A\",0,1)","v":"N/A"},{"$f":"_xlfn.XLOOKUP($E74,'Activity 10'!$B$7:$B$13,'Activity 10'!A$7:A$13,\"No\",0,1)","v":"No"},{"$f":"_xlfn.XLOOKUP($E74,'Activity 10'!$B$7:$B$13,'Activity 10'!J$7:J$13,\"N/A\",0,1)","v":"N/A"},{"$f":"_xlfn.XLOOKUP($E74,'Activity 10'!$B$7:$B$13,'Activity 10'!K$7:K$13,\"N/A\",0,1)","v":"N/A"},{"$f":"_xlfn.XLOOKUP($E74,'Activity 10'!$B$7:$B$13,'Activity 10'!L$7:L$13,\"N/A\",0,1)","v":"N/A"},{"$f":"_xlfn.XLOOKUP($E74,'Activity 10'!$B$7:$B$13,'Activity 10'!M$7:M$13,\"N/A\",0,1)","v":"N/A"},{"$f":"_xlfn.XLOOKUP($E74,'Activity 10'!$B$7:$B$13,'Activity 10'!N$7:N$13,\"N/A\",0,1)","v":"N/A"},{"$f":"_xlfn.XLOOKUP($E74,'Activity 10'!$B$7:$B$13,'Activity 10'!O$7:O$13,\"N/A\",0,1)","v":"N/A"},{"$f":"_xlfn.XLOOKUP($E74,'Activity 10'!$B$7:$B$13,'Activity 10'!P$7:P$13,\"N/A\",0,1)","v":"N/A"},{"$f":"_xlfn.XLOOKUP($E74,'Activity 10'!$B$7:$B$13,'Activity 10'!Q$7:Q$13,\"N/A\",0,1)","v":"N/A"},{"$f":"_xlfn.XLOOKUP($E74,'Activity 10'!$B$7:$B$13,'Activity 10'!R$7:R$13,\"N/A\",0,1)","v":"N/A"},{"$f":"_xlfn.XLOOKUP($E74,'Activity 10'!$B$7:$B$13,'Activity 10'!S$7:S$13,\"N/A\",0,1)","v":"N/A"},{"$f":"_xlfn.XLOOKUP($E74,'Activity 10'!$B$7:$B$13,'Activity 10'!T$7:T$13,\"N/A\",0,1)","v":"N/A"},{"$f":"_xlfn.XLOOKUP($E74,'Activity 10'!$B$7:$B$13,'Activity 10'!U$7:U$13,\"N/A\",0,1)","v":"N/A"},{"$f":"_xlfn.XLOOKUP($E74,'Activity 10'!$B$7:$B$13,'Activity 10'!V$7:V$13,\"N/A\",0,1)","v":"N/A"},{"$f":"_xlfn.XLOOKUP($E74,'Activity 10'!$B$17:$B$23,'Activity 10'!E$17:E$23,\"N/A\",0,1)","v":"N/A"},{"$f":"_xlfn.XLOOKUP($E74,'Activity 10'!$B$17:$B$23,'Activity 10'!F$17:F$23,\"N/A\",0,1)","v":"N/A"},{"$f":"_xlfn.XLOOKUP($E74,'Activity 10'!$B$17:$B$23,'Activity 10'!G$17:G$23,\"N/A\",0,1)","v":"N/A"},{"$f":"_xlfn.XLOOKUP($E74,'Activity 10'!$B$17:$B$23,'Activity 10'!H$17:H$23,\"N/A\",0,1)","v":"N/A"},{"$f":"_xlfn.XLOOKUP($E74,'Activity 10'!$B$17:$B$23,'Activity 10'!I$17:I$23,\"N/A\",0,1)","v":"N/A"},{"$f":"_xlfn.XLOOKUP($E74,'Activity 10'!$B$17:$B$23,'Activity 10'!J$17:J$23,\"N/A\",0,1)","v":"N/A"},{"$f":"_xlfn.XLOOKUP($E74,'Activity 10'!$B$17:$B$23,'Activity 10'!K$17:K$23,\"N/A\",0,1)","v":"N/A"},{"$f":"_xlfn.XLOOKUP($E74,'Activity 10'!$B$17:$B$23,'Activity 10'!L$17:L$23,\"N/A\",0,1)","v":"N/A"},{"$f":"_xlfn.XLOOKUP($E74,'Activity 10'!$B$17:$B$23,'Activity 10'!M$17:M$23,\"N/A\",0,1)","v":"N/A"},{"$f":"_xlfn.XLOOKUP($E74,'Activity 10'!$B$17:$B$23,'Activity 10'!N$17:N$23,\"N/A\",0,1)","v":"N/A"},{"$f":"_xlfn.XLOOKUP($E74,'Activity 10'!$B$17:$B$23,'Activity 10'!P$17:P$23,\"N/A\",0,1)","v":"N/A"},{"$f":"_xlfn.XLOOKUP($E74,'Competitive Activity 1'!B$7:B$13,'Competitive Activity 1'!A$7:A$13,\"No\",0,1)","v":"No"},{"$f":"_xlfn.XLOOKUP($E74,'Competitive Activity 1'!$B$7:$B$13,'Competitive Activity 1'!H$7:H$13,\"N/A\",0,1)","v":"N/A"},{"$f":"_xlfn.XLOOKUP($E74,'Competitive Activity 1'!$B$7:$B$13,'Competitive Activity 1'!I$7:I$13,\"N/A\",0,1)","v":"N/A"},{"$f":"_xlfn.XLOOKUP($E74,'Competitive Activity 1'!$B$7:$B$13,'Competitive Activity 1'!J$7:J$13,\"N/A\",0,1)","v":"N/A"},{"$f":"_xlfn.XLOOKUP($E74,'Competitive Activity 1'!$B$7:$B$13,'Competitive Activity 1'!K$7:K$13,\"N/A\",0,1)","v":"N/A"},{"$f":"_xlfn.XLOOKUP($E74,'Competitive Activity 1'!$B$7:$B$13,'Competitive Activity 1'!L$7:L$13,\"N/A\",0,1)","v":"N/A"},{"$f":"_xlfn.XLOOKUP($E74,'Competitive Activity 1'!$B$7:$B$13,'Competitive Activity 1'!M$7:M$13,\"N/A\",0,1)","v":"N/A"},{"$f":"_xlfn.XLOOKUP($E74,'Competitive Activity 1'!$B$7:$B$13,'Competitive Activity 1'!N$7:N$13,\"N/A\",0,1)","v":"N/A"},{"$f":"_xlfn.XLOOKUP($E74,'Competitive Activity 1'!$B$7:$B$13,'Competitive Activity 1'!O$7:O$13,\"N/A\",0,1)","v":"N/A"},{"$f":"_xlfn.XLOOKUP($E74,'Competitive Activity 1'!$B$7:$B$13,'Competitive Activity 1'!P$7:P$13,\"N/A\",0,1)","v":"N/A"},{"$f":"_xlfn.XLOOKUP($E74,'Competitive Activity 1'!$B$7:$B$13,'Competitive Activity 1'!Q$7:Q$13,\"N/A\",0,1)","v":"N/A"},{"$f":"_xlfn.XLOOKUP($E74,'Competitive Activity 1'!$B$7:$B$13,'Competitive Activity 1'!R$7:R$13,\"N/A\",0,1)","v":"N/A"},{"$f":"_xlfn.XLOOKUP($E74,'Competitive Activity 1'!$B$7:$B$13,'Competitive Activity 1'!S$7:S$13,\"N/A\",0,1)","v":"N/A"},{"$f":"_xlfn.XLOOKUP($E74,'Competitive Activity 1'!$B$7:$B$13,'Competitive Activity 1'!T$7:T$13,\"N/A\",0,1)","v":"N/A"},{"$f":"_xlfn.XLOOKUP($E74,'Competitive Activity 1'!$B$7:$B$13,'Competitive Activity 1'!U$7:U$13,\"N/A\",0,1)","v":"N/A"},{"$f":"_xlfn.XLOOKUP($E74,'Competitive Activity 1'!$B$17:$B$23,'Competitive Activity 1'!C$17:C$23,\"N/A\",0,1)","v":"N/A"},{"$f":"_xlfn.XLOOKUP($E74,'Competitive Activity 1'!$B$17:$B$23,'Competitive Activity 1'!D$17:D$23,\"N/A\",0,1)","v":"N/A"},{"$f":"_xlfn.XLOOKUP($E74,'Competitive Activity 1'!$B$17:$B$23,'Competitive Activity 1'!E$17:E$23,\"N/A\",0,1)","v":"N/A"},{"$f":"_xlfn.XLOOKUP($E74,'Competitive Activity 1'!$B$17:$B$23,'Competitive Activity 1'!F$17:F$23,\"N/A\",0,1)","v":"N/A"},{"$f":"_xlfn.XLOOKUP($E74,'Competitive Activity 1'!$B$17:$B$23,'Competitive Activity 1'!G$17:G$23,\"N/A\",0,1)","v":"N/A"},{"$f":"_xlfn.XLOOKUP($E74,'Competitive Activity 1'!$B$17:$B$23,'Competitive Activity 1'!H$17:H$23,\"N/A\",0,1)","v":"N/A"},{"$f":"_xlfn.XLOOKUP($E74,'Competitive Activity 1'!$B$17:$B$23,'Competitive Activity 1'!I$17:I$23,\"N/A\",0,1)","v":"N/A"},{"$f":"_xlfn.XLOOKUP($E74,'Competitive Activity 1'!$B$17:$B$23,'Competitive Activity 1'!J$17:J$23,\"N/A\",0,1)","v":"N/A"},{"$f":"_xlfn.XLOOKUP($E74,'Competitive Activity 1'!$B$17:$B$23,'Competitive Activity 1'!K$17:K$23,\"N/A\",0,1)","v":"N/A"},{"$f":"_xlfn.XLOOKUP($E74,'Competitive Activity 1'!$B$17:$B$23,'Competitive Activity 1'!M$17:M$23,\"N/A\",0,1)","v":"N/A"},{"$f":"_xlfn.XLOOKUP($E74,'Competitive Activity 1'!$B$17:$B$23,'Competitive Activity 1'!N$17:N$23,\"N/A\",0,1)","v":"N/A"},{"$f":"_xlfn.XLOOKUP($E74,'Competitive Activity 1'!$B$17:$B$23,'Competitive Activity 1'!P$17:P$23,\"N/A\",0,1)","v":"N/A"},{"$f":"_xlfn.XLOOKUP($E74,'Competitive Activity 2'!$B$7:$B$13,'Competitive Activity 2'!A$7:A$13,\"No\",0)","v":"No"},{"$f":"_xlfn.XLOOKUP($E74,'Competitive Activity 2'!$B$7:$B$13,'Competitive Activity 2'!L$7:L$13,\"N/A\",0)","v":"N/A"},{"$f":"_xlfn.XLOOKUP($E74,'Competitive Activity 2'!$B$7:$B$13,'Competitive Activity 2'!M$7:M$13,\"N/A\",0)","v":"N/A"},{"$f":"_xlfn.XLOOKUP($E74,'Competitive Activity 2'!$B$7:$B$13,'Competitive Activity 2'!N$7:N$13,\"N/A\",0)","v":"N/A"},{"$f":"_xlfn.XLOOKUP($E74,'Competitive Activity 2'!$B$7:$B$13,'Competitive Activity 2'!O$7:O$13,\"N/A\",0)","v":"N/A"},{"$f":"_xlfn.XLOOKUP($E74,'Competitive Activity 2'!$B$7:$B$13,'Competitive Activity 2'!P$7:P$13,\"N/A\",0)","v":"N/A"},{"$f":"_xlfn.XLOOKUP($E74,'Competitive Activity 2'!$B$7:$B$13,'Competitive Activity 2'!Q$7:Q$13,\"N/A\",0)","v":"N/A"},{"$f":"_xlfn.XLOOKUP($E74,'Competitive Activity 2'!$B$7:$B$13,'Competitive Activity 2'!R$7:R$13,\"N/A\",0)","v":"N/A"},{"$f":"_xlfn.XLOOKUP($E74,'Competitive Activity 2'!$B$7:$B$13,'Competitive Activity 2'!S$7:S$13,\"N/A\",0)","v":"N/A"},{"$f":"_xlfn.XLOOKUP($E74,'Competitive Activity 2'!$B$7:$B$13,'Competitive Activity 2'!T$7:T$13,\"N/A\",0)","v":"N/A"},{"$f":"_xlfn.XLOOKUP($E74,'Competitive Activity 2'!$B$7:$B$13,'Competitive Activity 2'!U$7:U$13,\"N/A\",0)","v":"N/A"},{"$f":"_xlfn.XLOOKUP($E74,'Competitive Activity 2'!$B$17:$B$23,'Competitive Activity 2'!D$17:D$23,\"N/A\",0)","v":"N/A"},{"$f":"_xlfn.XLOOKUP($E74,'Competitive Activity 2'!$B$17:$B$23,'Competitive Activity 2'!E$17:E$23,\"N/A\",0)","v":"N/A"},{"$f":"_xlfn.XLOOKUP($E74,'Competitive Activity 2'!$B$17:$B$23,'Competitive Activity 2'!F$17:F$23,\"N/A\",0)","v":"N/A"},{"$f":"_xlfn.XLOOKUP($E74,'Competitive Activity 2'!$B$17:$B$23,'Competitive Activity 2'!G$17:G$23,\"N/A\",0)","v":"N/A"},{"$f":"_xlfn.XLOOKUP($E74,'Competitive Activity 2'!$B$17:$B$23,'Competitive Activity 2'!H$17:H$23,\"N/A\",0)","v":"N/A"},{"$f":"_xlfn.XLOOKUP($E74,'Competitive Activity 2'!$B$17:$B$23,'Competitive Activity 2'!I$17:I$23,\"N/A\",0)","v":"N/A"},{"$f":"_xlfn.XLOOKUP($E74,'Competitive Activity 2'!$B$17:$B$23,'Competitive Activity 2'!J$17:J$23,\"N/A\",0)","v":"N/A"},{"$f":"_xlfn.XLOOKUP($E74,'Competitive Activity 2'!$B$17:$B$23,'Competitive Activity 2'!K$17:K$23,\"N/A\",0)","v":"N/A"},{"$f":"_xlfn.XLOOKUP($E74,'Competitive Activity 2'!$B$17:$B$23,'Competitive Activity 2'!L$17:L$23,\"N/A\",0)","v":"N/A"},{"$f":"_xlfn.XLOOKUP($E74,'Competitive Activity 2'!$B$17:$B$23,'Competitive Activity 2'!M$17:M$23,\"N/A\",0)","v":"N/A"},{"$f":"_xlfn.XLOOKUP($E74,'Competitive Activity 2'!$B$17:$B$23,'Competitive Activity 2'!N$17:N$23,\"N/A\",0)","v":"N/A"},{"$f":"_xlfn.XLOOKUP($E74,'Competitive Activity 2'!$B$27:$B$33,'Competitive Activity 2'!D$27:D$33,\"N/A\",0)","v":"N/A"},{"$f":"_xlfn.XLOOKUP($E74,'Competitive Activity 2'!$B$27:$B$33,'Competitive Activity 2'!E$27:E$33,\"N/A\",0)","v":"N/A"},{"$f":"_xlfn.XLOOKUP($E74,'Competitive Activity 2'!$B$27:$B$33,'Competitive Activity 2'!F$27:F$33,\"N/A\",0)","v":"N/A"},{"$f":"_xlfn.XLOOKUP($E74,'Competitive Activity 2'!$B$27:$B$33,'Competitive Activity 2'!G$27:G$33,\"N/A\",0)","v":"N/A"},{"$f":"_xlfn.XLOOKUP($E74,'Competitive Activity 2'!$B$27:$B$33,'Competitive Activity 2'!H$27:H$33,\"N/A\",0)","v":"N/A"},{"$f":"_xlfn.XLOOKUP($E74,'Competitive Activity 2'!$B$27:$B$33,'Competitive Activity 2'!I$27:I$33,\"N/A\",0)","v":"N/A"},{"$f":"_xlfn.XLOOKUP($E74,'Competitive Activity 2'!$B$27:$B$33,'Competitive Activity 2'!J$27:J$33,\"N/A\",0)","v":"N/A"},{"$f":"_xlfn.XLOOKUP($E74,'Competitive Activity 2'!$B$27:$B$33,'Competitive Activity 2'!K$27:K$33,\"N/A\",0)","v":"N/A"},{"$f":"_xlfn.XLOOKUP($E74,'Competitive Activity 2'!$B$27:$B$33,'Competitive Activity 2'!M$27:M$33,\"N/A\",0)","v":"N/A"}]
[{"$f":"'1-Cover Sheet'!$C$8","v":"Select One"},{"$f":"'1-Cover Sheet'!$F$8","v":"Select One"},{"$f":"'Summary Sheet'!$D$8","v":0},{"$f":"'Summary Sheet'!$D$10","v":0},{"$f":"'Drop Down Box'!B239","v":0},{"$f":"'Drop Down Box'!C239","v":0},{"$f":"'Drop Down Box'!D239","v":"Select One"},{"$f":"_xlfn.XLOOKUP(E75,'Drop Down Box'!$B$166:$B$249,'Drop Down Box'!$A$166:$A$249,\"Unknown\",0)","v":"Activity 1"},{"$f":"_xlfn.XLOOKUP($E75,'Competitive Activity 1'!$B$17:$B$23,'Competitive Activity 1'!$L$17:$L$23,\"N/A\",0)","v":"N/A"},{"$f":"_xlfn.XLOOKUP($E75,'Competitive Activity 1'!$B$17:$B$23,'Competitive Activity 1'!$O$17:$O$23,\"N/A\",0)","v":"N/A"},{"$f":"_xlfn.XLOOKUP($E75,'Competitive Activity 1'!$B$7:$B$13,'Competitive Activity 1'!E$7:E$13,\"N/A\",0)","v":"N/A"},{"$f":"_xlfn.XLOOKUP($E75,'Competitive Activity 1'!$B$7:$B$13,'Competitive Activity 1'!F$7:F$13,\"N/A\",0)","v":"N/A"},{"$f":"_xlfn.XLOOKUP($E75,'Competitive Activity 1'!$B$7:$B$13,'Competitive Activity 1'!G$7:G$13,\"N/A\",0)","v":"N/A"},{"$f":"_xlfn.XLOOKUP($E75,'Activity 1'!$B$7:$B$13,'Activity 1'!$A$7:$A$13,\"No\",0,1)","v":"No"},{"$f":"_xlfn.XLOOKUP($E75,'Activity 1'!$B$7:$B$13,'Activity 1'!$H$7:$H$13,\"N/A\",0,1)","v":"N/A"},{"$f":"_xlfn.XLOOKUP($E75,'Activity 1'!$B$7:$B$13,'Activity 1'!I$7:I$13,\"N/A\",0,1)","v":"N/A"},{"$f":"_xlfn.XLOOKUP($E75,'Activity 1'!$B$7:$B$13,'Activity 1'!J$7:J$13,\"N/A\",0,1)","v":"N/A"},{"$f":"_xlfn.XLOOKUP($E75,'Activity 1'!$B$7:$B$13,'Activity 1'!K$7:K$13,\"N/A\",0,1)","v":"N/A"},{"$f":"_xlfn.XLOOKUP($E75,'Activity 1'!$B$7:$B$13,'Activity 1'!L$7:L$13,\"N/A\",0,1)","v":"N/A"},{"$f":"_xlfn.XLOOKUP($E75,'Activity 1'!$B$7:$B$13,'Activity 1'!M$7:M$13,\"N/A\",0,1)","v":"N/A"},{"$f":"_xlfn.XLOOKUP($E75,'Activity 1'!$B$7:$B$13,'Activity 1'!N$7:N$13,\"N/A\",0,1)","v":"N/A"},0,{"$f":"_xlfn.XLOOKUP($E75,'Activity 1'!$B$7:$B$13,'Activity 1'!O$7:O$13,\"N/A\",0,1)","v":"N/A"},{"$f":"_xlfn.XLOOKUP($E75,'Activity 1'!$B$7:$B$13,'Activity 1'!P$7:P$13,\"N/A\",0,1)","v":"N/A"},{"$f":"_xlfn.XLOOKUP($E75,'Activity 1'!$B$7:$B$13,'Activity 1'!Q$7:Q$13,\"N/A\",0,1)","v":"N/A"},{"$f":"_xlfn.XLOOKUP($E75,'Activity 1'!$B$7:$B$13,'Activity 1'!R$7:R$13,\"N/A\",0,1)","v":"N/A"},{"$f":"_xlfn.XLOOKUP($E75,'Activity 1'!$B$7:$B$13,'Activity 1'!S$7:S$13,\"N/A\",0,1)","v":"N/A"},{"$f":"_xlfn.XLOOKUP($E75,'Activity 1'!$B$7:$B$13,'Activity 1'!T$7:T$13,\"N/A\",0,1)","v":"N/A"},{"$f":"_xlfn.XLOOKUP($E75,'Activity 1'!$B$7:$B$13,'Activity 1'!U$7:U$13,\"N/A\",0,1)","v":"N/A"},{"$f":"_xlfn.XLOOKUP($E75,'Activity 1'!$B$7:$B$13,'Activity 1'!V$7:V$13,\"N/A\",0,1)","v":"N/A"},{"$f":"_xlfn.XLOOKUP($E75,'Activity 1'!$B$17:$B$23,'Activity 1'!C$17:C$23,\"N/A\",0,1)","v":"N/A"},{"$f":"_xlfn.XLOOKUP($E75,'Activity 1'!$B$17:$B$23,'Activity 1'!D$17:D$23,\"N/A\",0,1)","v":"N/A"},{"$f":"_xlfn.XLOOKUP($E75,'Activity 1'!$B$17:$B$23,'Activity 1'!E$17:E$23,\"N/A\",0,1)","v":"N/A"},{"$f":"_xlfn.XLOOKUP($E75,'Activity 1'!$B$17:$B$23,'Activity 1'!F$17:F$23,\"N/A\",0,1)","v":"N/A"},{"$f":"_xlfn.XLOOKUP($E75,'Activity 1'!$B$17:$B$23,'Activity 1'!G$17:G$23,\"N/A\",0,1)","v":"N/A"},{"$f":"_xlfn.XLOOKUP($E75,'Activity 1'!$B$17:$B$23,'Activity 1'!H$17:H$23,\"N/A\",0,1)","v":"N/A"},{"$f":"_xlfn.XLOOKUP($E75,'Activity 1'!$B$17:$B$23,'Activity 1'!I$17:I$23,\"N/A\",0,1)","v":"N/A"},{"$f":"_xlfn.XLOOKUP($E75,'Activity 1'!$B$17:$B$23,'Activity 1'!J$17:J$23,\"N/A\",0,1)","v":"N/A"},{"$f":"_xlfn.XLOOKUP($E75,'Activity 1'!$B$17:$B$23,'Activity 1'!K$17:K$23,\"N/A\",0,1)","v":"N/A"},{"$f":"_xlfn.XLOOKUP($E75,'Activity 1'!$B$17:$B$23,'Activity 1'!L$17:L$23,\"N/A\",0,1)","v":"N/A"},{"$f":"_xlfn.XLOOKUP($E75,'Activity 1'!$B$17:$B$23,'Activity 1'!M$17:M$23,\"N/A\",0,1)","v":"N/A"},{"$f":"_xlfn.XLOOKUP($E75,'Activity 1'!$B$17:$B$23,'Activity 1'!O$17:O$23,\"N/A\",0,1)","v":"N/A"},{"$f":"_xlfn.XLOOKUP($E75,'Activity 1'!$B$17:$B$23,'Activity 1'!Q$17:Q$23,\"N/A\",0,1)","v":"N/A"},{"$f":"_xlfn.XLOOKUP($E75,'Activity 2'!$B$7:$B$13,'Activity 2'!$A$7:$A$13,\"No\",0,1)","v":"No"},{"$f":"_xlfn.XLOOKUP($E75,'Activity 2'!B$7:B$13,'Activity 2'!H$7:H$13,\"N/A\",0)","v":"N/A"},{"$f":"_xlfn.XLOOKUP($E75,'Activity 2'!C$7:C$13,'Activity 2'!I$7:I$13,\"N/A\",0)","v":"N/A"},{"$f":"_xlfn.XLOOKUP($E75,'Activity 2'!D$7:D$13,'Activity 2'!J$7:J$13,\"N/A\",0)","v":"N/A"},{"$f":"_xlfn.XLOOKUP($E75,'Activity 2'!E$7:E$13,'Activity 2'!K$7:K$13,\"N/A\",0)","v":"N/A"},{"$f":"_xlfn.XLOOKUP($E75,'Activity 2'!F$7:F$13,'Activity 2'!L$7:L$13,\"N/A\",0)","v":"N/A"},{"$f":"_xlfn.XLOOKUP($E75,'Activity 2'!G$7:G$13,'Activity 2'!M$7:M$13,\"N/A\",0)","v":"N/A"},{"$f":"_xlfn.XLOOKUP($E75,'Activity 2'!H$7:H$13,'Activity 2'!N$7:N$13,\"N/A\",0)","v":"N/A"},{"$f":"_xlfn.XLOOKUP($E75,'Activity 2'!I$7:I$13,'Activity 2'!O$7:O$13,\"N/A\",0)","v":"N/A"},{"$f":"_xlfn.XLOOKUP($E75,'Activity 2'!J$7:J$13,'Activity 2'!P$7:P$13,\"N/A\",0)","v":"N/A"},{"$f":"_xlfn.XLOOKUP($E75,'Activity 2'!K$7:K$13,'Activity 2'!Q$7:Q$13,\"N/A\",0)","v":"N/A"},{"$f":"_xlfn.XLOOKUP($E75,'Activity 2'!L$7:L$13,'Activity 2'!R$7:R$13,\"N/A\",0)","v":"N/A"},{"$f":"_xlfn.XLOOKUP($E75,'Activity 2'!M$7:M$13,'Activity 2'!S$7:S$13,\"N/A\",0)","v":"N/A"},{"$f":"_xlfn.XLOOKUP($E75,'Activity 2'!N$7:N$13,'Activity 2'!T$7:T$13,\"N/A\",0)","v":"N/A"},{"$f":"_xlfn.XLOOKUP($E75,'Activity 2'!O$7:O$13,'Activity 2'!U$7:U$13,\"N/A\",0)","v":"N/A"},{"$f":"_xlfn.XLOOKUP($E75,'Activity 2'!P$7:P$13,'Activity 2'!V$7:V$13,\"N/A\",0)","v":"N/A"},{"$f":"_xlfn.XLOOKUP($E75,'Activity 2'!$B$17:$B$23,'Activity 2'!C$17:C$23,\"N/A\",0,1)","v":"N/A"},{"$f":"_xlfn.XLOOKUP($E75,'Activity 2'!$B$17:$B$23,'Activity 2'!D$17:D$23,\"N/A\",0,1)","v":"N/A"},{"$f":"_xlfn.XLOOKUP($E75,'Activity 2'!$B$17:$B$23,'Activity 2'!E$17:E$23,\"N/A\",0,1)","v":"N/A"},{"$f":"_xlfn.XLOOKUP($E75,'Activity 2'!$B$17:$B$23,'Activity 2'!F$17:F$23,\"N/A\",0,1)","v":"N/A"},{"$f":"_xlfn.XLOOKUP($E75,'Activity 2'!$B$17:$B$23,'Activity 2'!G$17:G$23,\"N/A\",0,1)","v":"N/A"},{"$f":"_xlfn.XLOOKUP($E75,'Activity 2'!$B$17:$B$23,'Activity 2'!H$17:H$23,\"N/A\",0,1)","v":"N/A"},{"$f":"_xlfn.XLOOKUP($E75,'Activity 2'!$B$17:$B$23,'Activity 2'!I$17:I$23,\"N/A\",0,1)","v":"N/A"},{"$f":"_xlfn.XLOOKUP($E75,'Activity 2'!$B$17:$B$23,'Activity 2'!J$17:J$23,\"N/A\",0,1)","v":"N/A"},{"$f":"_xlfn.XLOOKUP($E75,'Activity 2'!$B$17:$B$23,'Activity 2'!K$17:K$23,\"N/A\",0,1)","v":"N/A"},{"$f":"_xlfn.XLOOKUP($E75,'Activity 2'!$B$17:$B$23,'Activity 2'!L$17:L$23,\"N/A\",0,1)","v":"N/A"},{"$f":"_xlfn.XLOOKUP($E75,'Activity 2'!$B$17:$B$23,'Activity 2'!M$17:M$23,\"N/A\",0,1)","v":"N/A"},{"$f":"_xlfn.XLOOKUP($E75,'Activity 2'!$B$17:$B$23,'Activity 2'!O$17:O$23,\"N/A\",0,1)","v":"N/A"},{"$f":"_xlfn.XLOOKUP($E75,'Activity 2'!$B$17:$B$23,'Activity 2'!Q$17:Q$23,\"N/A\",0,1)","v":"N/A"},null,{"$f":"_xlfn.XLOOKUP($E75,'Activity 3'!$B$8:$B$14,'Activity 3'!K$8:K$14,\"N/A\",0,1)","v":"N/A"},{"$f":"_xlfn.XLOOKUP($E75,'Activity 3'!$B$8:$B$14,'Activity 3'!L$8:L$14,\"N/A\",0,1)","v":"N/A"},{"$f":"_xlfn.XLOOKUP($E75,'Activity 3'!$B$8:$B$14,'Activity 3'!M$8:M$14,\"N/A\",0,1)","v":"N/A"},{"$f":"_xlfn.XLOOKUP($E75,'Activity 3'!$B$8:$B$14,'Activity 3'!N$8:N$14,\"N/A\",0,1)","v":"N/A"},{"$f":"_xlfn.XLOOKUP($E75,'Activity 3'!$B$8:$B$14,'Activity 3'!O$8:O$14,\"N/A\",0,1)","v":"N/A"},{"$f":"_xlfn.XLOOKUP($E75,'Activity 3'!$B$8:$B$14,'Activity 3'!R$8:R$14,\"N/A\",0,1)","v":"N/A"},{"$f":"_xlfn.XLOOKUP($E75,'Activity 4'!$B$8:$B$14,'Activity 4'!$A$8:$A$14,\"No\",0,1)","v":"No"},{"$f":"_xlfn.XLOOKUP($E75,'Activity 4'!$B$8:$B$14,'Activity 4'!L$8:L$14,\"N/A\",0,1)","v":"N/A"},{"$f":"_xlfn.XLOOKUP($E75,'Activity 4'!$B$8:$B$14,'Activity 4'!I$8:I$14,\"N/A\",0,1)","v":"N/A"},{"$f":"_xlfn.XLOOKUP($E75,'Activity 4'!$B$8:$B$14,'Activity 4'!M$8:M$14,\"N/A\",0,1)","v":"N/A"},{"$f":"_xlfn.XLOOKUP($E75,'Activity 5'!$B$8:$B$14,'Activity 5'!$A$8:$A$14,\"No\",0,1)","v":"No"},{"$f":"_xlfn.XLOOKUP($E75,'Activity 5'!$B$8:$B$14,'Activity 5'!J$8:J$14,\"N/A\",0,1)","v":"N/A"},{"$f":"_xlfn.XLOOKUP($E75,'Activity 5'!$B$8:$B$14,'Activity 5'!K$8:K$14,\"N/A\",0,1)","v":"N/A"},{"$f":"_xlfn.XLOOKUP($E75,'Activity 5'!$B$8:$B$14,'Activity 5'!N$8:N$14,\"N/A\",0,1)","v":"N/A"},{"$f":"_xlfn.XLOOKUP($E75,'Activity 5'!$B$8:$B$14,'Activity 5'!O$8:O$14,\"N/A\",0,1)","v":"N/A"},{"$f":"_xlfn.XLOOKUP($E75,'Activity 5'!$B$8:$B$14,'Activity 5'!P$8:P$14,\"N/A\",0,1)","v":"N/A"},{"$f":"_xlfn.XLOOKUP($E75,'Activity 5'!$B$8:$B$14,'Activity 5'!Q$8:Q$14,\"N/A\",0,1)","v":"N/A"},{"$f":"_xlfn.XLOOKUP($E75,'Activity 5'!$B$8:$B$14,'Activity 5'!R$8:R$14,\"N/A\",0,1)","v":"N/A"},{"$f":"_xlfn.XLOOKUP($E75,'Activity 6'!$B$7:$B$13,'Activity 6'!A$7:A$13,\"No\",0,1)","v":"No"},{"$f":"_xlfn.XLOOKUP($E75,'Activity 6'!$B$7:$B$13,'Activity 6'!K$7:K$13,\"N/A\",0,1)","v":"N/A"},{"$f":"_xlfn.XLOOKUP($E75,'Activity 6'!$B$7:$B$13,'Activity 6'!L$7:L$13,\"N/A\",0,1)","v":"N/A"},{"$f":"_xlfn.XLOOKUP($E75,'Activity 6'!$B$7:$B$13,'Activity 6'!M$7:M$13,\"N/A\",0,1)","v":"N/A"},{"$f":"_xlfn.XLOOKUP($E75,'Activity 6'!$B$7:$B$13,'Activity 6'!N$7:N$13,\"N/A\",0,1)","v":"N/A"},{"$f":"_xlfn.XLOOKUP($E75,'Activity 6'!$B$7:$B$13,'Activity 6'!O$7:O$13,\"N/A\",0,1)","v":"N/A"},{"$f":"_xlfn.XLOOKUP($E75,'Activity 6'!$B$7:$B$13,'Activity 6'!P$7:P$13,\"N/A\",0,1)","v":"N/A"},{"$f":"_xlfn.XLOOKUP($E75,'Activity 6'!$B$7:$B$13,'Activity 6'!Q$7:Q$13,\"N/A\",0,1)","v":"N/A"},{"$f":"_xlfn.XLOOKUP($E75,'Activity 6'!$B$7:$B$13,'Activity 6'!R$7:R$13,\"N/A\",0,1)","v":"N/A"},{"$f":"_xlfn.XLOOKUP($E75,'Activity 6'!$B$7:$B$13,'Activity 6'!S$7:S$13,\"N/A\",0,1)","v":"N/A"},{"$f":"_xlfn.XLOOKUP($E75,'Activity 6'!$B$7:$B$13,'Activity 6'!T$7:T$13,\"N/A\",0,1)","v":"N/A"},{"$f":"_xlfn.XLOOKUP($E75,'Activity 6'!$B$7:$B$13,'Activity 6'!U$7:U$13,\"N/A\",0,1)","v":"N/A"},{"$f":"_xlfn.XLOOKUP($E75,'Activity 6'!$B$22:$B$28,'Activity 6'!C$22:C$28,\"N/A\",0,1)","v":"N/A"},{"$f":"_xlfn.XLOOKUP($E75,'Activity 6'!$B$22:$B$28,'Activity 6'!D$22:D$28,\"N/A\",0,1)","v":"N/A"},{"$f":"_xlfn.XLOOKUP($E75,'Activity 6'!$B$22:$B$28,'Activity 6'!E$22:E$28,\"N/A\",0,1)","v":"N/A"},{"$f":"_xlfn.XLOOKUP($E75,'Activity 6'!$B$22:$B$28,'Activity 6'!F$22:F$28,\"N/A\",0,1)","v":"N/A"},{"$f":"_xlfn.XLOOKUP($E75,'Activity 6'!$B$22:$B$28,'Activity 6'!G$22:G$28,\"N/A\",0,1)","v":"N/A"},{"$f":"_xlfn.XLOOKUP($E75,'Activity 6'!$B$22:$B$28,'Activity 6'!H$22:H$28,\"N/A\",0,1)","v":"N/A"},{"$f":"_xlfn.XLOOKUP($E75,'Activity 6'!$B$22:$B$28,'Activity 6'!I$22:I$28,\"N/A\",0,1)","v":"N/A"},{"$f":"_xlfn.XLOOKUP($E75,'Activity 6'!$B$22:$B$28,'Activity 6'!J$22:J$28,\"N/A\",0,1)","v":"N/A"},{"$f":"_xlfn.XLOOKUP($E75,'Activity 6'!$B$22:$B$28,'Activity 6'!K$22:K$28,\"N/A\",0,1)","v":"N/A"},{"$f":"_xlfn.XLOOKUP($E75,'Activity 6'!$B$22:$B$28,'Activity 6'!L$22:L$28,\"N/A\",0,1)","v":"N/A"},{"$f":"_xlfn.XLOOKUP($E75,'Activity 6'!$B$22:$B$28,'Activity 6'!M$22:M$28,\"N/A\",0,1)","v":"N/A"},{"$f":"_xlfn.XLOOKUP($E75,'Activity 6'!$B$22:$B$28,'Activity 6'!N$22:N$28,\"N/A\",0,1)","v":"N/A"},{"$f":"_xlfn.XLOOKUP($E75,'Activity 6'!$B$32:$B$38,'Activity 6'!C$32:C$38,\"N/A\",0,1)","v":"N/A"},{"$f":"_xlfn.XLOOKUP($E75,'Activity 6'!$B$32:$B$38,'Activity 6'!D$32:D$38,\"N/A\",0,1)","v":"N/A"},{"$f":"_xlfn.XLOOKUP($E75,'Activity 6'!$B$32:$B$38,'Activity 6'!E$32:E$38,\"N/A\",0,1)","v":"N/A"},{"$f":"_xlfn.XLOOKUP($E75,'Activity 6'!$B$32:$B$38,'Activity 6'!F$32:F$38,\"N/A\",0,1)","v":"N/A"},{"$f":"_xlfn.XLOOKUP($E75,'Activity 6'!$B$32:$B$38,'Activity 6'!G$32:G$38,\"N/A\",0,1)","v":"N/A"},{"$f":"_xlfn.XLOOKUP($E75,'Activity 6'!$B$32:$B$38,'Activity 6'!H$32:H$38,\"N/A\",0,1)","v":"N/A"},{"$f":"_xlfn.XLOOKUP($E75,'Activity 6'!$B$32:$B$38,'Activity 6'!I$32:I$38,\"N/A\",0,1)","v":"N/A"},{"$f":"_xlfn.XLOOKUP($E75,'Activity 6'!$B$32:$B$38,'Activity 6'!J$32:J$38,\"N/A\",0,1)","v":"N/A"},{"$f":"_xlfn.XLOOKUP($E75,'Activity 6'!$B$32:$B$38,'Activity 6'!K$32:K$38,\"N/A\",0,1)","v":"N/A"},{"$f":"_xlfn.XLOOKUP($E75,'Activity 6'!$B$32:$B$38,'Activity 6'!M$32:M$38,\"N/A\",0,1)","v":"N/A"},{"$f":"_xlfn.XLOOKUP($E75,'Activity 7'!$B$7:$B$13,'Activity 7'!$A$7:$A$13,\"No\",0,1)","v":"No"},{"$f":"_xlfn.XLOOKUP($E75,'Activity 7'!$B$7:$B$13,'Activity 7'!M$7:M$13,\"N/A\",0,1)","v":"N/A"},{"$f":"_xlfn.XLOOKUP($E75,'Activity 7'!$B$7:$B$13,'Activity 7'!K$7:K$13,\"N/A\",0,1)","v":"N/A"},{"$f":"_xlfn.XLOOKUP($E75,'Activity 7'!$B$7:$B$13,'Activity 7'!N$7:N$13,\"N/A\",0,1)","v":"N/A"},{"$f":"_xlfn.XLOOKUP($E75,'Activity 7'!$B$7:$B$13,'Activity 7'!O$7:O$13,\"N/A\",0,1)","v":"N/A"},{"$f":"_xlfn.XLOOKUP($E75,'Activity 7'!$B$7:$B$13,'Activity 7'!P$7:P$13,\"N/A\",0,1)","v":"N/A"},{"$f":"_xlfn.XLOOKUP($E75,'Activity 7'!$B$7:$B$13,'Activity 7'!Q$7:Q$13,\"N/A\",0,1)","v":"N/A"},{"$f":"_xlfn.XLOOKUP($E75,'Activity 7'!$B$7:$B$13,'Activity 7'!R$7:R$13,\"N/A\",0,1)","v":"N/A"},{"$f":"_xlfn.XLOOKUP($E75,'Activity 7'!$B$7:$B$13,'Activity 7'!S$7:S$13,\"N/A\",0,1)","v":"N/A"},{"$f":"_xlfn.XLOOKUP($E75,'Activity 7'!$B$7:$B$13,'Activity 7'!T$7:T$13,\"N/A\",0,1)","v":"N/A"},{"$f":"_xlfn.XLOOKUP($E75,'Activity 7'!$B$7:$B$13,'Activity 7'!U$7:U$13,\"N/A\",0,1)","v":"N/A"},{"$f":"_xlfn.XLOOKUP($E75,'Activity 7'!$B$7:$B$13,'Activity 7'!V$7:V$13,\"N/A\",0,1)","v":"N/A"},{"$f":"_xlfn.XLOOKUP($E75,'Activity 7'!$B$17:$B$23,'Activity 7'!E$17:E$23,\"N/A\",0,1)","v":"N/A"},{"$f":"_xlfn.XLOOKUP($E75,'Activity 7'!$B$17:$B$23,'Activity 7'!G$17:G$23,\"N/A\",0,1)","v":"N/A"},{"$f":"_xlfn.XLOOKUP($E75,'Activity 7'!$B$17:$B$23,'Activity 7'!I$17:I$23,\"N/A\",0,1)","v":"N/A"},{"$f":"_xlfn.XLOOKUP($E75,'Activity 7'!$B$17:$B$23,'Activity 7'!J$17:J$23,\"N/A\",0,1)","v":"N/A"},{"$f":"_xlfn.XLOOKUP($E75,'Activity 7'!$B$17:$B$23,'Activity 7'!K$17:K$23,\"N/A\",0,1)","v":"N/A"},{"$f":"_xlfn.XLOOKUP($E75,'Activity 7'!$B$17:$B$23,'Activity 7'!L$17:L$23,\"N/A\",0,1)","v":"N/A"},{"$f":"_xlfn.XLOOKUP($E75,'Activity 7'!$B$17:$B$23,'Activity 7'!M$17:M$23,\"N/A\",0,1)","v":"N/A"},{"$f":"_xlfn.XLOOKUP($E75,'Activity 7'!$B$17:$B$23,'Activity 7'!N$17:N$23,\"N/A\",0,1)","v":"N/A"},{"$f":"_xlfn.XLOOKUP($E75,'Activity 7'!$B$17:$B$23,'Activity 7'!P$17:P$23,\"N/A\",0,1)","v":"N/A"},{"$f":"_xlfn.XLOOKUP($E75,'Activity 8'!$B$7:$B$13,'Activity 8'!A$7:A$13,\"No\",0,1)","v":"No"},{"$f":"_xlfn.XLOOKUP($E75,'Activity 8'!$B$7:$B$13,'Activity 8'!I$7:I$13,\"N/A\",0,1)","v":"N/A"},{"$f":"_xlfn.XLOOKUP($E75,'Activity 8'!$B$7:$B$13,'Activity 8'!J$7:J$13,\"N/A\",0,1)","v":"N/A"},{"$f":"_xlfn.XLOOKUP($E75,'Activity 8'!$B$7:$B$13,'Activity 8'!K$7:K$13,\"N/A\",0,1)","v":"N/A"},{"$f":"_xlfn.XLOOKUP($E75,'Activity 8'!$B$7:$B$13,'Activity 8'!L$7:L$13,\"N/A\",0,1)","v":"N/A"},{"$f":"_xlfn.XLOOKUP($E75,'Activity 8'!$B$7:$B$13,'Activity 8'!M$7:M$13,\"N/A\",0,1)","v":"N/A"},{"$f":"_xlfn.XLOOKUP($E75,'Activity 8'!$B$7:$B$13,'Activity 8'!N$7:N$13,\"N/A\",0,1)","v":"N/A"},{"$f":"_xlfn.XLOOKUP($E75,'Activity 8'!$B$7:$B$13,'Activity 8'!O$7:O$13,\"N/A\",0,1)","v":"N/A"},{"$f":"_xlfn.XLOOKUP($E75,'Activity 8'!$B$7:$B$13,'Activity 8'!P$7:P$13,\"N/A\",0,1)","v":"N/A"},{"$f":"_xlfn.XLOOKUP($E75,'Activity 8'!$B$7:$B$13,'Activity 8'!Q$7:Q$13,\"N/A\",0,1)","v":"N/A"},{"$f":"_xlfn.XLOOKUP($E75,'Activity 8'!$B$7:$B$13,'Activity 8'!R$7:R$13,\"N/A\",0,1)","v":"N/A"},{"$f":"_xlfn.XLOOKUP($E75,'Activity 8'!$B$7:$B$13,'Activity 8'!S$7:S$13,\"N/A\",0,1)","v":"N/A"},{"$f":"_xlfn.XLOOKUP($E75,'Activity 8'!$B$7:$B$13,'Activity 8'!T$7:T$13,\"N/A\",0,1)","v":"N/A"},{"$f":"_xlfn.XLOOKUP($E75,'Activity 8'!$B$7:$B$13,'Activity 8'!U$7:U$13,\"N/A\",0,1)","v":"N/A"},{"$f":"_xlfn.XLOOKUP($E75,'Activity 8'!$B$7:$B$13,'Activity 8'!V$7:V$13,\"N/A\",0,1)","v":"N/A"},{"$f":"_xlfn.XLOOKUP($E75,'Activity 8'!$B$17:$B$23,'Activity 8'!D$17:D$23,\"N/A\",0,1)","v":"N/A"},{"$f":"_xlfn.XLOOKUP($E75,'Activity 8'!$B$17:$B$23,'Activity 8'!E$17:E$23,\"N/A\",0,1)","v":"N/A"},{"$f":"_xlfn.XLOOKUP($E75,'Activity 8'!$B$17:$B$23,'Activity 8'!F$17:F$23,\"N/A\",0,1)","v":"N/A"},{"$f":"_xlfn.XLOOKUP($E75,'Activity 8'!$B$17:$B$23,'Activity 8'!G$17:G$23,\"N/A\",0,1)","v":"N/A"},{"$f":"_xlfn.XLOOKUP($E75,'Activity 8'!$B$17:$B$23,'Activity 8'!H$17:H$23,\"N/A\",0,1)","v":"N/A"},{"$f":"_xlfn.XLOOKUP($E75,'Activity 8'!$B$17:$B$23,'Activity 8'!I$17:I$23,\"N/A\",0,1)","v":"N/A"},{"$f":"_xlfn.XLOOKUP($E75,'Activity 8'!$B$17:$B$23,'Activity 8'!J$17:J$23,\"N/A\",0,1)","v":"N/A"},{"$f":"_xlfn.XLOOKUP($E75,'Activity 8'!$B$17:$B$23,'Activity 8'!K$17:K$23,\"N/A\",0,1)","v":"N/A"},{"$f":"_xlfn.XLOOKUP($E75,'Activity 8'!$B$17:$B$23,'Activity 8'!L$17:L$23,\"N/A\",0,1)","v":"N/A"},{"$f":"_xlfn.XLOOKUP($E75,'Activity 8'!$B$17:$B$23,'Activity 8'!M$17:M$23,\"N/A\",0,1)","v":"N/A"},{"$f":"_xlfn.XLOOKUP($E75,'Activity 8'!$B$17:$B$23,'Activity 8'!N$17:N$23,\"N/A\",0,1)","v":"N/A"},{"$f":"_xlfn.XLOOKUP($E75,'Activity 8'!$B$17:$B$23,'Activity 8'!P$17:P$23,\"N/A\",0,1)","v":"N/A"},{"$f":"_xlfn.XLOOKUP(E75,'Activity 9'!$B$7:$B$13,'Activity 9'!$A$7:$A$13,\"No\",0,1)","v":"No"},{"$f":"_xlfn.XLOOKUP($E75,'Activity 9'!$B$7:$B$13,'Activity 9'!J$7:J$13,\"N/A\",0,1)","v":"N/A"},{"$f":"_xlfn.XLOOKUP($E75,'Activity 9'!$B$7:$B$13,'Activity 9'!K$7:K$13,\"N/A\",0,1)","v":"N/A"},{"$f":"_xlfn.XLOOKUP($E75,'Activity 9'!$B$7:$B$13,'Activity 9'!L$7:L$13,\"N/A\",0,1)","v":"N/A"},{"$f":"_xlfn.XLOOKUP($E75,'Activity 9'!$B$7:$B$13,'Activity 9'!M$7:M$13,\"N/A\",0,1)","v":"N/A"},{"$f":"_xlfn.XLOOKUP($E75,'Activity 9'!$B$7:$B$13,'Activity 9'!N$7:N$13,\"N/A\",0,1)","v":"N/A"},{"$f":"_xlfn.XLOOKUP($E75,'Activity 9'!$B$7:$B$13,'Activity 9'!O$7:O$13,\"N/A\",0,1)","v":"N/A"},{"$f":"_xlfn.XLOOKUP($E75,'Activity 9'!$B$7:$B$13,'Activity 9'!P$7:P$13,\"N/A\",0,1)","v":"N/A"},{"$f":"_xlfn.XLOOKUP($E75,'Activity 9'!$B$7:$B$13,'Activity 9'!Q$7:Q$13,\"N/A\",0,1)","v":"N/A"},{"$f":"_xlfn.XLOOKUP($E75,'Activity 9'!$B$7:$B$13,'Activity 9'!R$7:R$13,\"N/A\",0,1)","v":"N/A"},{"$f":"_xlfn.XLOOKUP($E75,'Activity 9'!$B$7:$B$13,'Activity 9'!S$7:S$13,\"N/A\",0,1)","v":"N/A"},{"$f":"_xlfn.XLOOKUP($E75,'Activity 9'!$B$7:$B$13,'Activity 9'!T$7:T$13,\"N/A\",0,1)","v":"N/A"},{"$f":"_xlfn.XLOOKUP($E75,'Activity 9'!$B$17:$B$23,'Activity 9'!E$17:E$23,\"N/A\",0,1)","v":"N/A"},{"$f":"_xlfn.XLOOKUP($E75,'Activity 9'!$B$17:$B$23,'Activity 9'!F$17:F$23,\"N/A\",0,1)","v":"N/A"},{"$f":"_xlfn.XLOOKUP($E75,'Activity 9'!$B$17:$B$23,'Activity 9'!G$17:G$23,\"N/A\",0,1)","v":"N/A"},{"$f":"_xlfn.XLOOKUP($E75,'Activity 9'!$B$17:$B$23,'Activity 9'!H$17:H$23,\"N/A\",0,1)","v":"N/A"},{"$f":"_xlfn.XLOOKUP($E75,'Activity 9'!$B$17:$B$23,'Activity 9'!I$17:I$23,\"N/A\",0,1)","v":"N/A"},{"$f":"_xlfn.XLOOKUP($E75,'Activity 9'!$B$17:$B$23,'Activity 9'!J$17:J$23,\"N/A\",0,1)","v":"N/A"},{"$f":"_xlfn.XLOOKUP($E75,'Activity 9'!$B$17:$B$23,'Activity 9'!K$17:K$23,\"N/A\",0,1)","v":"N/A"},{"$f":"_xlfn.XLOOKUP($E75,'Activity 9'!$B$17:$B$23,'Activity 9'!L$17:L$23,\"N/A\",0,1)","v":"N/A"},{"$f":"_xlfn.XLOOKUP($E75,'Activity 9'!$B$17:$B$23,'Activity 9'!N$17:N$23,\"N/A\",0,1)","v":"N/A"},{"$f":"_xlfn.XLOOKUP($E75,'Activity 9'!$B$17:$B$23,'Activity 9'!O$17:O$23,\"N/A\",0,1)","v":"N/A"},{"$f":"_xlfn.XLOOKUP($E75,'Activity 9'!$B$17:$B$23,'Activity 9'!Q$17:Q$23,\"N/A\",0,1)","v":"N/A"},{"$f":"_xlfn.XLOOKUP($E75,'Activity 10'!$B$7:$B$13,'Activity 10'!A$7:A$13,\"No\",0,1)","v":"No"},{"$f":"_xlfn.XLOOKUP($E75,'Activity 10'!$B$7:$B$13,'Activity 10'!J$7:J$13,\"N/A\",0,1)","v":"N/A"},{"$f":"_xlfn.XLOOKUP($E75,'Activity 10'!$B$7:$B$13,'Activity 10'!K$7:K$13,\"N/A\",0,1)","v":"N/A"},{"$f":"_xlfn.XLOOKUP($E75,'Activity 10'!$B$7:$B$13,'Activity 10'!L$7:L$13,\"N/A\",0,1)","v":"N/A"},{"$f":"_xlfn.XLOOKUP($E75,'Activity 10'!$B$7:$B$13,'Activity 10'!M$7:M$13,\"N/A\",0,1)","v":"N/A"},{"$f":"_xlfn.XLOOKUP($E75,'Activity 10'!$B$7:$B$13,'Activity 10'!N$7:N$13,\"N/A\",0,1)","v":"N/A"},{"$f":"_xlfn.XLOOKUP($E75,'Activity 10'!$B$7:$B$13,'Activity 10'!O$7:O$13,\"N/A\",0,1)","v":"N/A"},{"$f":"_xlfn.XLOOKUP($E75,'Activity 10'!$B$7:$B$13,'Activity 10'!P$7:P$13,\"N/A\",0,1)","v":"N/A"},{"$f":"_xlfn.XLOOKUP($E75,'Activity 10'!$B$7:$B$13,'Activity 10'!Q$7:Q$13,\"N/A\",0,1)","v":"N/A"},{"$f":"_xlfn.XLOOKUP($E75,'Activity 10'!$B$7:$B$13,'Activity 10'!R$7:R$13,\"N/A\",0,1)","v":"N/A"},{"$f":"_xlfn.XLOOKUP($E75,'Activity 10'!$B$7:$B$13,'Activity 10'!S$7:S$13,\"N/A\",0,1)","v":"N/A"},{"$f":"_xlfn.XLOOKUP($E75,'Activity 10'!$B$7:$B$13,'Activity 10'!T$7:T$13,\"N/A\",0,1)","v":"N/A"},{"$f":"_xlfn.XLOOKUP($E75,'Activity 10'!$B$7:$B$13,'Activity 10'!U$7:U$13,\"N/A\",0,1)","v":"N/A"},{"$f":"_xlfn.XLOOKUP($E75,'Activity 10'!$B$7:$B$13,'Activity 10'!V$7:V$13,\"N/A\",0,1)","v":"N/A"},{"$f":"_xlfn.XLOOKUP($E75,'Activity 10'!$B$17:$B$23,'Activity 10'!E$17:E$23,\"N/A\",0,1)","v":"N/A"},{"$f":"_xlfn.XLOOKUP($E75,'Activity 10'!$B$17:$B$23,'Activity 10'!F$17:F$23,\"N/A\",0,1)","v":"N/A"},{"$f":"_xlfn.XLOOKUP($E75,'Activity 10'!$B$17:$B$23,'Activity 10'!G$17:G$23,\"N/A\",0,1)","v":"N/A"},{"$f":"_xlfn.XLOOKUP($E75,'Activity 10'!$B$17:$B$23,'Activity 10'!H$17:H$23,\"N/A\",0,1)","v":"N/A"},{"$f":"_xlfn.XLOOKUP($E75,'Activity 10'!$B$17:$B$23,'Activity 10'!I$17:I$23,\"N/A\",0,1)","v":"N/A"},{"$f":"_xlfn.XLOOKUP($E75,'Activity 10'!$B$17:$B$23,'Activity 10'!J$17:J$23,\"N/A\",0,1)","v":"N/A"},{"$f":"_xlfn.XLOOKUP($E75,'Activity 10'!$B$17:$B$23,'Activity 10'!K$17:K$23,\"N/A\",0,1)","v":"N/A"},{"$f":"_xlfn.XLOOKUP($E75,'Activity 10'!$B$17:$B$23,'Activity 10'!L$17:L$23,\"N/A\",0,1)","v":"N/A"},{"$f":"_xlfn.XLOOKUP($E75,'Activity 10'!$B$17:$B$23,'Activity 10'!M$17:M$23,\"N/A\",0,1)","v":"N/A"},{"$f":"_xlfn.XLOOKUP($E75,'Activity 10'!$B$17:$B$23,'Activity 10'!N$17:N$23,\"N/A\",0,1)","v":"N/A"},{"$f":"_xlfn.XLOOKUP($E75,'Activity 10'!$B$17:$B$23,'Activity 10'!P$17:P$23,\"N/A\",0,1)","v":"N/A"},{"$f":"_xlfn.XLOOKUP($E75,'Competitive Activity 1'!B$7:B$13,'Competitive Activity 1'!A$7:A$13,\"No\",0,1)","v":"No"},{"$f":"_xlfn.XLOOKUP($E75,'Competitive Activity 1'!$B$7:$B$13,'Competitive Activity 1'!H$7:H$13,\"N/A\",0,1)","v":"N/A"},{"$f":"_xlfn.XLOOKUP($E75,'Competitive Activity 1'!$B$7:$B$13,'Competitive Activity 1'!I$7:I$13,\"N/A\",0,1)","v":"N/A"},{"$f":"_xlfn.XLOOKUP($E75,'Competitive Activity 1'!$B$7:$B$13,'Competitive Activity 1'!J$7:J$13,\"N/A\",0,1)","v":"N/A"},{"$f":"_xlfn.XLOOKUP($E75,'Competitive Activity 1'!$B$7:$B$13,'Competitive Activity 1'!K$7:K$13,\"N/A\",0,1)","v":"N/A"},{"$f":"_xlfn.XLOOKUP($E75,'Competitive Activity 1'!$B$7:$B$13,'Competitive Activity 1'!L$7:L$13,\"N/A\",0,1)","v":"N/A"},{"$f":"_xlfn.XLOOKUP($E75,'Competitive Activity 1'!$B$7:$B$13,'Competitive Activity 1'!M$7:M$13,\"N/A\",0,1)","v":"N/A"},{"$f":"_xlfn.XLOOKUP($E75,'Competitive Activity 1'!$B$7:$B$13,'Competitive Activity 1'!N$7:N$13,\"N/A\",0,1)","v":"N/A"},{"$f":"_xlfn.XLOOKUP($E75,'Competitive Activity 1'!$B$7:$B$13,'Competitive Activity 1'!O$7:O$13,\"N/A\",0,1)","v":"N/A"},{"$f":"_xlfn.XLOOKUP($E75,'Competitive Activity 1'!$B$7:$B$13,'Competitive Activity 1'!P$7:P$13,\"N/A\",0,1)","v":"N/A"},{"$f":"_xlfn.XLOOKUP($E75,'Competitive Activity 1'!$B$7:$B$13,'Competitive Activity 1'!Q$7:Q$13,\"N/A\",0,1)","v":"N/A"},{"$f":"_xlfn.XLOOKUP($E75,'Competitive Activity 1'!$B$7:$B$13,'Competitive Activity 1'!R$7:R$13,\"N/A\",0,1)","v":"N/A"},{"$f":"_xlfn.XLOOKUP($E75,'Competitive Activity 1'!$B$7:$B$13,'Competitive Activity 1'!S$7:S$13,\"N/A\",0,1)","v":"N/A"},{"$f":"_xlfn.XLOOKUP($E75,'Competitive Activity 1'!$B$7:$B$13,'Competitive Activity 1'!T$7:T$13,\"N/A\",0,1)","v":"N/A"},{"$f":"_xlfn.XLOOKUP($E75,'Competitive Activity 1'!$B$7:$B$13,'Competitive Activity 1'!U$7:U$13,\"N/A\",0,1)","v":"N/A"},{"$f":"_xlfn.XLOOKUP($E75,'Competitive Activity 1'!$B$17:$B$23,'Competitive Activity 1'!C$17:C$23,\"N/A\",0,1)","v":"N/A"},{"$f":"_xlfn.XLOOKUP($E75,'Competitive Activity 1'!$B$17:$B$23,'Competitive Activity 1'!D$17:D$23,\"N/A\",0,1)","v":"N/A"},{"$f":"_xlfn.XLOOKUP($E75,'Competitive Activity 1'!$B$17:$B$23,'Competitive Activity 1'!E$17:E$23,\"N/A\",0,1)","v":"N/A"},{"$f":"_xlfn.XLOOKUP($E75,'Competitive Activity 1'!$B$17:$B$23,'Competitive Activity 1'!F$17:F$23,\"N/A\",0,1)","v":"N/A"},{"$f":"_xlfn.XLOOKUP($E75,'Competitive Activity 1'!$B$17:$B$23,'Competitive Activity 1'!G$17:G$23,\"N/A\",0,1)","v":"N/A"},{"$f":"_xlfn.XLOOKUP($E75,'Competitive Activity 1'!$B$17:$B$23,'Competitive Activity 1'!H$17:H$23,\"N/A\",0,1)","v":"N/A"},{"$f":"_xlfn.XLOOKUP($E75,'Competitive Activity 1'!$B$17:$B$23,'Competitive Activity 1'!I$17:I$23,\"N/A\",0,1)","v":"N/A"},{"$f":"_xlfn.XLOOKUP($E75,'Competitive Activity 1'!$B$17:$B$23,'Competitive Activity 1'!J$17:J$23,\"N/A\",0,1)","v":"N/A"},{"$f":"_xlfn.XLOOKUP($E75,'Competitive Activity 1'!$B$17:$B$23,'Competitive Activity 1'!K$17:K$23,\"N/A\",0,1)","v":"N/A"},{"$f":"_xlfn.XLOOKUP($E75,'Competitive Activity 1'!$B$17:$B$23,'Competitive Activity 1'!M$17:M$23,\"N/A\",0,1)","v":"N/A"},{"$f":"_xlfn.XLOOKUP($E75,'Competitive Activity 1'!$B$17:$B$23,'Competitive Activity 1'!N$17:N$23,\"N/A\",0,1)","v":"N/A"},{"$f":"_xlfn.XLOOKUP($E75,'Competitive Activity 1'!$B$17:$B$23,'Competitive Activity 1'!P$17:P$23,\"N/A\",0,1)","v":"N/A"},{"$f":"_xlfn.XLOOKUP($E75,'Competitive Activity 2'!$B$7:$B$13,'Competitive Activity 2'!A$7:A$13,\"No\",0)","v":"No"},{"$f":"_xlfn.XLOOKUP($E75,'Competitive Activity 2'!$B$7:$B$13,'Competitive Activity 2'!L$7:L$13,\"N/A\",0)","v":"N/A"},{"$f":"_xlfn.XLOOKUP($E75,'Competitive Activity 2'!$B$7:$B$13,'Competitive Activity 2'!M$7:M$13,\"N/A\",0)","v":"N/A"},{"$f":"_xlfn.XLOOKUP($E75,'Competitive Activity 2'!$B$7:$B$13,'Competitive Activity 2'!N$7:N$13,\"N/A\",0)","v":"N/A"},{"$f":"_xlfn.XLOOKUP($E75,'Competitive Activity 2'!$B$7:$B$13,'Competitive Activity 2'!O$7:O$13,\"N/A\",0)","v":"N/A"},{"$f":"_xlfn.XLOOKUP($E75,'Competitive Activity 2'!$B$7:$B$13,'Competitive Activity 2'!P$7:P$13,\"N/A\",0)","v":"N/A"},{"$f":"_xlfn.XLOOKUP($E75,'Competitive Activity 2'!$B$7:$B$13,'Competitive Activity 2'!Q$7:Q$13,\"N/A\",0)","v":"N/A"},{"$f":"_xlfn.XLOOKUP($E75,'Competitive Activity 2'!$B$7:$B$13,'Competitive Activity 2'!R$7:R$13,\"N/A\",0)","v":"N/A"},{"$f":"_xlfn.XLOOKUP($E75,'Competitive Activity 2'!$B$7:$B$13,'Competitive Activity 2'!S$7:S$13,\"N/A\",0)","v":"N/A"},{"$f":"_xlfn.XLOOKUP($E75,'Competitive Activity 2'!$B$7:$B$13,'Competitive Activity 2'!T$7:T$13,\"N/A\",0)","v":"N/A"},{"$f":"_xlfn.XLOOKUP($E75,'Competitive Activity 2'!$B$7:$B$13,'Competitive Activity 2'!U$7:U$13,\"N/A\",0)","v":"N/A"},{"$f":"_xlfn.XLOOKUP($E75,'Competitive Activity 2'!$B$17:$B$23,'Competitive Activity 2'!D$17:D$23,\"N/A\",0)","v":"N/A"},{"$f":"_xlfn.XLOOKUP($E75,'Competitive Activity 2'!$B$17:$B$23,'Competitive Activity 2'!E$17:E$23,\"N/A\",0)","v":"N/A"},{"$f":"_xlfn.XLOOKUP($E75,'Competitive Activity 2'!$B$17:$B$23,'Competitive Activity 2'!F$17:F$23,\"N/A\",0)","v":"N/A"},{"$f":"_xlfn.XLOOKUP($E75,'Competitive Activity 2'!$B$17:$B$23,'Competitive Activity 2'!G$17:G$23,\"N/A\",0)","v":"N/A"},{"$f":"_xlfn.XLOOKUP($E75,'Competitive Activity 2'!$B$17:$B$23,'Competitive Activity 2'!H$17:H$23,\"N/A\",0)","v":"N/A"},{"$f":"_xlfn.XLOOKUP($E75,'Competitive Activity 2'!$B$17:$B$23,'Competitive Activity 2'!I$17:I$23,\"N/A\",0)","v":"N/A"},{"$f":"_xlfn.XLOOKUP($E75,'Competitive Activity 2'!$B$17:$B$23,'Competitive Activity 2'!J$17:J$23,\"N/A\",0)","v":"N/A"},{"$f":"_xlfn.XLOOKUP($E75,'Competitive Activity 2'!$B$17:$B$23,'Competitive Activity 2'!K$17:K$23,\"N/A\",0)","v":"N/A"},{"$f":"_xlfn.XLOOKUP($E75,'Competitive Activity 2'!$B$17:$B$23,'Competitive Activity 2'!L$17:L$23,\"N/A\",0)","v":"N/A"},{"$f":"_xlfn.XLOOKUP($E75,'Competitive Activity 2'!$B$17:$B$23,'Competitive Activity 2'!M$17:M$23,\"N/A\",0)","v":"N/A"},{"$f":"_xlfn.XLOOKUP($E75,'Competitive Activity 2'!$B$17:$B$23,'Competitive Activity 2'!N$17:N$23,\"N/A\",0)","v":"N/A"},{"$f":"_xlfn.XLOOKUP($E75,'Competitive Activity 2'!$B$27:$B$33,'Competitive Activity 2'!D$27:D$33,\"N/A\",0)","v":"N/A"},{"$f":"_xlfn.XLOOKUP($E75,'Competitive Activity 2'!$B$27:$B$33,'Competitive Activity 2'!E$27:E$33,\"N/A\",0)","v":"N/A"},{"$f":"_xlfn.XLOOKUP($E75,'Competitive Activity 2'!$B$27:$B$33,'Competitive Activity 2'!F$27:F$33,\"N/A\",0)","v":"N/A"},{"$f":"_xlfn.XLOOKUP($E75,'Competitive Activity 2'!$B$27:$B$33,'Competitive Activity 2'!G$27:G$33,\"N/A\",0)","v":"N/A"},{"$f":"_xlfn.XLOOKUP($E75,'Competitive Activity 2'!$B$27:$B$33,'Competitive Activity 2'!H$27:H$33,\"N/A\",0)","v":"N/A"},{"$f":"_xlfn.XLOOKUP($E75,'Competitive Activity 2'!$B$27:$B$33,'Competitive Activity 2'!I$27:I$33,\"N/A\",0)","v":"N/A"},{"$f":"_xlfn.XLOOKUP($E75,'Competitive Activity 2'!$B$27:$B$33,'Competitive Activity 2'!J$27:J$33,\"N/A\",0)","v":"N/A"},{"$f":"_xlfn.XLOOKUP($E75,'Competitive Activity 2'!$B$27:$B$33,'Competitive Activity 2'!K$27:K$33,\"N/A\",0)","v":"N/A"},{"$f":"_xlfn.XLOOKUP($E75,'Competitive Activity 2'!$B$27:$B$33,'Competitive Activity 2'!M$27:M$33,\"N/A\",0)","v":"N/A"}]
[{"$f":"'1-Cover Sheet'!$C$8","v":"Select One"},{"$f":"'1-Cover Sheet'!$F$8","v":"Select One"},{"$f":"'Summary Sheet'!$D$8","v":0},{"$f":"'Summary Sheet'!$D$10","v":0},{"$f":"'Drop Down Box'!B240","v":0},{"$f":"'Drop Down Box'!C240","v":0},{"$f":"'Drop Down Box'!D240","v":"Select One"},{"$f":"_xlfn.XLOOKUP(E76,'Drop Down Box'!$B$166:$B$249,'Drop Down Box'!$A$166:$A$249,\"Unknown\",0)","v":"Activity 1"},{"$f":"_xlfn.XLOOKUP($E76,'Competitive Activity 1'!$B$17:$B$23,'Competitive Activity 1'!$L$17:$L$23,\"N/A\",0)","v":"N/A"},{"$f":"_xlfn.XLOOKUP($E76,'Competitive Activity 1'!$B$17:$B$23,'Competitive Activity 1'!$O$17:$O$23,\"N/A\",0)","v":"N/A"},{"$f":"_xlfn.XLOOKUP($E76,'Competitive Activity 1'!$B$7:$B$13,'Competitive Activity 1'!E$7:E$13,\"N/A\",0)","v":"N/A"},{"$f":"_xlfn.XLOOKUP($E76,'Competitive Activity 1'!$B$7:$B$13,'Competitive Activity 1'!F$7:F$13,\"N/A\",0)","v":"N/A"},{"$f":"_xlfn.XLOOKUP($E76,'Competitive Activity 1'!$B$7:$B$13,'Competitive Activity 1'!G$7:G$13,\"N/A\",0)","v":"N/A"},{"$f":"_xlfn.XLOOKUP($E76,'Activity 1'!$B$7:$B$13,'Activity 1'!$A$7:$A$13,\"No\",0,1)","v":"No"},{"$f":"_xlfn.XLOOKUP($E76,'Activity 1'!$B$7:$B$13,'Activity 1'!$H$7:$H$13,\"N/A\",0,1)","v":"N/A"},{"$f":"_xlfn.XLOOKUP($E76,'Activity 1'!$B$7:$B$13,'Activity 1'!I$7:I$13,\"N/A\",0,1)","v":"N/A"},{"$f":"_xlfn.XLOOKUP($E76,'Activity 1'!$B$7:$B$13,'Activity 1'!J$7:J$13,\"N/A\",0,1)","v":"N/A"},{"$f":"_xlfn.XLOOKUP($E76,'Activity 1'!$B$7:$B$13,'Activity 1'!K$7:K$13,\"N/A\",0,1)","v":"N/A"},{"$f":"_xlfn.XLOOKUP($E76,'Activity 1'!$B$7:$B$13,'Activity 1'!L$7:L$13,\"N/A\",0,1)","v":"N/A"},{"$f":"_xlfn.XLOOKUP($E76,'Activity 1'!$B$7:$B$13,'Activity 1'!M$7:M$13,\"N/A\",0,1)","v":"N/A"},{"$f":"_xlfn.XLOOKUP($E76,'Activity 1'!$B$7:$B$13,'Activity 1'!N$7:N$13,\"N/A\",0,1)","v":"N/A"},0,{"$f":"_xlfn.XLOOKUP($E76,'Activity 1'!$B$7:$B$13,'Activity 1'!O$7:O$13,\"N/A\",0,1)","v":"N/A"},{"$f":"_xlfn.XLOOKUP($E76,'Activity 1'!$B$7:$B$13,'Activity 1'!P$7:P$13,\"N/A\",0,1)","v":"N/A"},{"$f":"_xlfn.XLOOKUP($E76,'Activity 1'!$B$7:$B$13,'Activity 1'!Q$7:Q$13,\"N/A\",0,1)","v":"N/A"},{"$f":"_xlfn.XLOOKUP($E76,'Activity 1'!$B$7:$B$13,'Activity 1'!R$7:R$13,\"N/A\",0,1)","v":"N/A"},{"$f":"_xlfn.XLOOKUP($E76,'Activity 1'!$B$7:$B$13,'Activity 1'!S$7:S$13,\"N/A\",0,1)","v":"N/A"},{"$f":"_xlfn.XLOOKUP($E76,'Activity 1'!$B$7:$B$13,'Activity 1'!T$7:T$13,\"N/A\",0,1)","v":"N/A"},{"$f":"_xlfn.XLOOKUP($E76,'Activity 1'!$B$7:$B$13,'Activity 1'!U$7:U$13,\"N/A\",0,1)","v":"N/A"},{"$f":"_xlfn.XLOOKUP($E76,'Activity 1'!$B$7:$B$13,'Activity 1'!V$7:V$13,\"N/A\",0,1)","v":"N/A"},{"$f":"_xlfn.XLOOKUP($E76,'Activity 1'!$B$17:$B$23,'Activity 1'!C$17:C$23,\"N/A\",0,1)","v":"N/A"},{"$f":"_xlfn.XLOOKUP($E76,'Activity 1'!$B$17:$B$23,'Activity 1'!D$17:D$23,\"N/A\",0,1)","v":"N/A"},{"$f":"_xlfn.XLOOKUP($E76,'Activity 1'!$B$17:$B$23,'Activity 1'!E$17:E$23,\"N/A\",0,1)","v":"N/A"},{"$f":"_xlfn.XLOOKUP($E76,'Activity 1'!$B$17:$B$23,'Activity 1'!F$17:F$23,\"N/A\",0,1)","v":"N/A"},{"$f":"_xlfn.XLOOKUP($E76,'Activity 1'!$B$17:$B$23,'Activity 1'!G$17:G$23,\"N/A\",0,1)","v":"N/A"},{"$f":"_xlfn.XLOOKUP($E76,'Activity 1'!$B$17:$B$23,'Activity 1'!H$17:H$23,\"N/A\",0,1)","v":"N/A"},{"$f":"_xlfn.XLOOKUP($E76,'Activity 1'!$B$17:$B$23,'Activity 1'!I$17:I$23,\"N/A\",0,1)","v":"N/A"},{"$f":"_xlfn.XLOOKUP($E76,'Activity 1'!$B$17:$B$23,'Activity 1'!J$17:J$23,\"N/A\",0,1)","v":"N/A"},{"$f":"_xlfn.XLOOKUP($E76,'Activity 1'!$B$17:$B$23,'Activity 1'!K$17:K$23,\"N/A\",0,1)","v":"N/A"},{"$f":"_xlfn.XLOOKUP($E76,'Activity 1'!$B$17:$B$23,'Activity 1'!L$17:L$23,\"N/A\",0,1)","v":"N/A"},{"$f":"_xlfn.XLOOKUP($E76,'Activity 1'!$B$17:$B$23,'Activity 1'!M$17:M$23,\"N/A\",0,1)","v":"N/A"},{"$f":"_xlfn.XLOOKUP($E76,'Activity 1'!$B$17:$B$23,'Activity 1'!O$17:O$23,\"N/A\",0,1)","v":"N/A"},{"$f":"_xlfn.XLOOKUP($E76,'Activity 1'!$B$17:$B$23,'Activity 1'!Q$17:Q$23,\"N/A\",0,1)","v":"N/A"},{"$f":"_xlfn.XLOOKUP($E76,'Activity 2'!$B$7:$B$13,'Activity 2'!$A$7:$A$13,\"No\",0,1)","v":"No"},{"$f":"_xlfn.XLOOKUP($E76,'Activity 2'!B$7:B$13,'Activity 2'!H$7:H$13,\"N/A\",0)","v":"N/A"},{"$f":"_xlfn.XLOOKUP($E76,'Activity 2'!C$7:C$13,'Activity 2'!I$7:I$13,\"N/A\",0)","v":"N/A"},{"$f":"_xlfn.XLOOKUP($E76,'Activity 2'!D$7:D$13,'Activity 2'!J$7:J$13,\"N/A\",0)","v":"N/A"},{"$f":"_xlfn.XLOOKUP($E76,'Activity 2'!E$7:E$13,'Activity 2'!K$7:K$13,\"N/A\",0)","v":"N/A"},{"$f":"_xlfn.XLOOKUP($E76,'Activity 2'!F$7:F$13,'Activity 2'!L$7:L$13,\"N/A\",0)","v":"N/A"},{"$f":"_xlfn.XLOOKUP($E76,'Activity 2'!G$7:G$13,'Activity 2'!M$7:M$13,\"N/A\",0)","v":"N/A"},{"$f":"_xlfn.XLOOKUP($E76,'Activity 2'!H$7:H$13,'Activity 2'!N$7:N$13,\"N/A\",0)","v":"N/A"},{"$f":"_xlfn.XLOOKUP($E76,'Activity 2'!I$7:I$13,'Activity 2'!O$7:O$13,\"N/A\",0)","v":"N/A"},{"$f":"_xlfn.XLOOKUP($E76,'Activity 2'!J$7:J$13,'Activity 2'!P$7:P$13,\"N/A\",0)","v":"N/A"},{"$f":"_xlfn.XLOOKUP($E76,'Activity 2'!K$7:K$13,'Activity 2'!Q$7:Q$13,\"N/A\",0)","v":"N/A"},{"$f":"_xlfn.XLOOKUP($E76,'Activity 2'!L$7:L$13,'Activity 2'!R$7:R$13,\"N/A\",0)","v":"N/A"},{"$f":"_xlfn.XLOOKUP($E76,'Activity 2'!M$7:M$13,'Activity 2'!S$7:S$13,\"N/A\",0)","v":"N/A"},{"$f":"_xlfn.XLOOKUP($E76,'Activity 2'!N$7:N$13,'Activity 2'!T$7:T$13,\"N/A\",0)","v":"N/A"},{"$f":"_xlfn.XLOOKUP($E76,'Activity 2'!O$7:O$13,'Activity 2'!U$7:U$13,\"N/A\",0)","v":"N/A"},{"$f":"_xlfn.XLOOKUP($E76,'Activity 2'!P$7:P$13,'Activity 2'!V$7:V$13,\"N/A\",0)","v":"N/A"},{"$f":"_xlfn.XLOOKUP($E76,'Activity 2'!$B$17:$B$23,'Activity 2'!C$17:C$23,\"N/A\",0,1)","v":"N/A"},{"$f":"_xlfn.XLOOKUP($E76,'Activity 2'!$B$17:$B$23,'Activity 2'!D$17:D$23,\"N/A\",0,1)","v":"N/A"},{"$f":"_xlfn.XLOOKUP($E76,'Activity 2'!$B$17:$B$23,'Activity 2'!E$17:E$23,\"N/A\",0,1)","v":"N/A"},{"$f":"_xlfn.XLOOKUP($E76,'Activity 2'!$B$17:$B$23,'Activity 2'!F$17:F$23,\"N/A\",0,1)","v":"N/A"},{"$f":"_xlfn.XLOOKUP($E76,'Activity 2'!$B$17:$B$23,'Activity 2'!G$17:G$23,\"N/A\",0,1)","v":"N/A"},{"$f":"_xlfn.XLOOKUP($E76,'Activity 2'!$B$17:$B$23,'Activity 2'!H$17:H$23,\"N/A\",0,1)","v":"N/A"},{"$f":"_xlfn.XLOOKUP($E76,'Activity 2'!$B$17:$B$23,'Activity 2'!I$17:I$23,\"N/A\",0,1)","v":"N/A"},{"$f":"_xlfn.XLOOKUP($E76,'Activity 2'!$B$17:$B$23,'Activity 2'!J$17:J$23,\"N/A\",0,1)","v":"N/A"},{"$f":"_xlfn.XLOOKUP($E76,'Activity 2'!$B$17:$B$23,'Activity 2'!K$17:K$23,\"N/A\",0,1)","v":"N/A"},{"$f":"_xlfn.XLOOKUP($E76,'Activity 2'!$B$17:$B$23,'Activity 2'!L$17:L$23,\"N/A\",0,1)","v":"N/A"},{"$f":"_xlfn.XLOOKUP($E76,'Activity 2'!$B$17:$B$23,'Activity 2'!M$17:M$23,\"N/A\",0,1)","v":"N/A"},{"$f":"_xlfn.XLOOKUP($E76,'Activity 2'!$B$17:$B$23,'Activity 2'!O$17:O$23,\"N/A\",0,1)","v":"N/A"},{"$f":"_xlfn.XLOOKUP($E76,'Activity 2'!$B$17:$B$23,'Activity 2'!Q$17:Q$23,\"N/A\",0,1)","v":"N/A"},null,{"$f":"_xlfn.XLOOKUP($E76,'Activity 3'!$B$8:$B$14,'Activity 3'!K$8:K$14,\"N/A\",0,1)","v":"N/A"},{"$f":"_xlfn.XLOOKUP($E76,'Activity 3'!$B$8:$B$14,'Activity 3'!L$8:L$14,\"N/A\",0,1)","v":"N/A"},{"$f":"_xlfn.XLOOKUP($E76,'Activity 3'!$B$8:$B$14,'Activity 3'!M$8:M$14,\"N/A\",0,1)","v":"N/A"},{"$f":"_xlfn.XLOOKUP($E76,'Activity 3'!$B$8:$B$14,'Activity 3'!N$8:N$14,\"N/A\",0,1)","v":"N/A"},{"$f":"_xlfn.XLOOKUP($E76,'Activity 3'!$B$8:$B$14,'Activity 3'!O$8:O$14,\"N/A\",0,1)","v":"N/A"},{"$f":"_xlfn.XLOOKUP($E76,'Activity 3'!$B$8:$B$14,'Activity 3'!R$8:R$14,\"N/A\",0,1)","v":"N/A"},{"$f":"_xlfn.XLOOKUP($E76,'Activity 4'!$B$8:$B$14,'Activity 4'!$A$8:$A$14,\"No\",0,1)","v":"No"},{"$f":"_xlfn.XLOOKUP($E76,'Activity 4'!$B$8:$B$14,'Activity 4'!L$8:L$14,\"N/A\",0,1)","v":"N/A"},{"$f":"_xlfn.XLOOKUP($E76,'Activity 4'!$B$8:$B$14,'Activity 4'!I$8:I$14,\"N/A\",0,1)","v":"N/A"},{"$f":"_xlfn.XLOOKUP($E76,'Activity 4'!$B$8:$B$14,'Activity 4'!M$8:M$14,\"N/A\",0,1)","v":"N/A"},{"$f":"_xlfn.XLOOKUP($E76,'Activity 5'!$B$8:$B$14,'Activity 5'!$A$8:$A$14,\"No\",0,1)","v":"No"},{"$f":"_xlfn.XLOOKUP($E76,'Activity 5'!$B$8:$B$14,'Activity 5'!J$8:J$14,\"N/A\",0,1)","v":"N/A"},{"$f":"_xlfn.XLOOKUP($E76,'Activity 5'!$B$8:$B$14,'Activity 5'!K$8:K$14,\"N/A\",0,1)","v":"N/A"},{"$f":"_xlfn.XLOOKUP($E76,'Activity 5'!$B$8:$B$14,'Activity 5'!N$8:N$14,\"N/A\",0,1)","v":"N/A"},{"$f":"_xlfn.XLOOKUP($E76,'Activity 5'!$B$8:$B$14,'Activity 5'!O$8:O$14,\"N/A\",0,1)","v":"N/A"},{"$f":"_xlfn.XLOOKUP($E76,'Activity 5'!$B$8:$B$14,'Activity 5'!P$8:P$14,\"N/A\",0,1)","v":"N/A"},{"$f":"_xlfn.XLOOKUP($E76,'Activity 5'!$B$8:$B$14,'Activity 5'!Q$8:Q$14,\"N/A\",0,1)","v":"N/A"},{"$f":"_xlfn.XLOOKUP($E76,'Activity 5'!$B$8:$B$14,'Activity 5'!R$8:R$14,\"N/A\",0,1)","v":"N/A"},{"$f":"_xlfn.XLOOKUP($E76,'Activity 6'!$B$7:$B$13,'Activity 6'!A$7:A$13,\"No\",0,1)","v":"No"},{"$f":"_xlfn.XLOOKUP($E76,'Activity 6'!$B$7:$B$13,'Activity 6'!K$7:K$13,\"N/A\",0,1)","v":"N/A"},{"$f":"_xlfn.XLOOKUP($E76,'Activity 6'!$B$7:$B$13,'Activity 6'!L$7:L$13,\"N/A\",0,1)","v":"N/A"},{"$f":"_xlfn.XLOOKUP($E76,'Activity 6'!$B$7:$B$13,'Activity 6'!M$7:M$13,\"N/A\",0,1)","v":"N/A"},{"$f":"_xlfn.XLOOKUP($E76,'Activity 6'!$B$7:$B$13,'Activity 6'!N$7:N$13,\"N/A\",0,1)","v":"N/A"},{"$f":"_xlfn.XLOOKUP($E76,'Activity 6'!$B$7:$B$13,'Activity 6'!O$7:O$13,\"N/A\",0,1)","v":"N/A"},{"$f":"_xlfn.XLOOKUP($E76,'Activity 6'!$B$7:$B$13,'Activity 6'!P$7:P$13,\"N/A\",0,1)","v":"N/A"},{"$f":"_xlfn.XLOOKUP($E76,'Activity 6'!$B$7:$B$13,'Activity 6'!Q$7:Q$13,\"N/A\",0,1)","v":"N/A"},{"$f":"_xlfn.XLOOKUP($E76,'Activity 6'!$B$7:$B$13,'Activity 6'!R$7:R$13,\"N/A\",0,1)","v":"N/A"},{"$f":"_xlfn.XLOOKUP($E76,'Activity 6'!$B$7:$B$13,'Activity 6'!S$7:S$13,\"N/A\",0,1)","v":"N/A"},{"$f":"_xlfn.XLOOKUP($E76,'Activity 6'!$B$7:$B$13,'Activity 6'!T$7:T$13,\"N/A\",0,1)","v":"N/A"},{"$f":"_xlfn.XLOOKUP($E76,'Activity 6'!$B$7:$B$13,'Activity 6'!U$7:U$13,\"N/A\",0,1)","v":"N/A"},{"$f":"_xlfn.XLOOKUP($E76,'Activity 6'!$B$22:$B$28,'Activity 6'!C$22:C$28,\"N/A\",0,1)","v":"N/A"},{"$f":"_xlfn.XLOOKUP($E76,'Activity 6'!$B$22:$B$28,'Activity 6'!D$22:D$28,\"N/A\",0,1)","v":"N/A"},{"$f":"_xlfn.XLOOKUP($E76,'Activity 6'!$B$22:$B$28,'Activity 6'!E$22:E$28,\"N/A\",0,1)","v":"N/A"},{"$f":"_xlfn.XLOOKUP($E76,'Activity 6'!$B$22:$B$28,'Activity 6'!F$22:F$28,\"N/A\",0,1)","v":"N/A"},{"$f":"_xlfn.XLOOKUP($E76,'Activity 6'!$B$22:$B$28,'Activity 6'!G$22:G$28,\"N/A\",0,1)","v":"N/A"},{"$f":"_xlfn.XLOOKUP($E76,'Activity 6'!$B$22:$B$28,'Activity 6'!H$22:H$28,\"N/A\",0,1)","v":"N/A"},{"$f":"_xlfn.XLOOKUP($E76,'Activity 6'!$B$22:$B$28,'Activity 6'!I$22:I$28,\"N/A\",0,1)","v":"N/A"},{"$f":"_xlfn.XLOOKUP($E76,'Activity 6'!$B$22:$B$28,'Activity 6'!J$22:J$28,\"N/A\",0,1)","v":"N/A"},{"$f":"_xlfn.XLOOKUP($E76,'Activity 6'!$B$22:$B$28,'Activity 6'!K$22:K$28,\"N/A\",0,1)","v":"N/A"},{"$f":"_xlfn.XLOOKUP($E76,'Activity 6'!$B$22:$B$28,'Activity 6'!L$22:L$28,\"N/A\",0,1)","v":"N/A"},{"$f":"_xlfn.XLOOKUP($E76,'Activity 6'!$B$22:$B$28,'Activity 6'!M$22:M$28,\"N/A\",0,1)","v":"N/A"},{"$f":"_xlfn.XLOOKUP($E76,'Activity 6'!$B$22:$B$28,'Activity 6'!N$22:N$28,\"N/A\",0,1)","v":"N/A"},{"$f":"_xlfn.XLOOKUP($E76,'Activity 6'!$B$32:$B$38,'Activity 6'!C$32:C$38,\"N/A\",0,1)","v":"N/A"},{"$f":"_xlfn.XLOOKUP($E76,'Activity 6'!$B$32:$B$38,'Activity 6'!D$32:D$38,\"N/A\",0,1)","v":"N/A"},{"$f":"_xlfn.XLOOKUP($E76,'Activity 6'!$B$32:$B$38,'Activity 6'!E$32:E$38,\"N/A\",0,1)","v":"N/A"},{"$f":"_xlfn.XLOOKUP($E76,'Activity 6'!$B$32:$B$38,'Activity 6'!F$32:F$38,\"N/A\",0,1)","v":"N/A"},{"$f":"_xlfn.XLOOKUP($E76,'Activity 6'!$B$32:$B$38,'Activity 6'!G$32:G$38,\"N/A\",0,1)","v":"N/A"},{"$f":"_xlfn.XLOOKUP($E76,'Activity 6'!$B$32:$B$38,'Activity 6'!H$32:H$38,\"N/A\",0,1)","v":"N/A"},{"$f":"_xlfn.XLOOKUP($E76,'Activity 6'!$B$32:$B$38,'Activity 6'!I$32:I$38,\"N/A\",0,1)","v":"N/A"},{"$f":"_xlfn.XLOOKUP($E76,'Activity 6'!$B$32:$B$38,'Activity 6'!J$32:J$38,\"N/A\",0,1)","v":"N/A"},{"$f":"_xlfn.XLOOKUP($E76,'Activity 6'!$B$32:$B$38,'Activity 6'!K$32:K$38,\"N/A\",0,1)","v":"N/A"},{"$f":"_xlfn.XLOOKUP($E76,'Activity 6'!$B$32:$B$38,'Activity 6'!M$32:M$38,\"N/A\",0,1)","v":"N/A"},{"$f":"_xlfn.XLOOKUP($E76,'Activity 7'!$B$7:$B$13,'Activity 7'!$A$7:$A$13,\"No\",0,1)","v":"No"},{"$f":"_xlfn.XLOOKUP($E76,'Activity 7'!$B$7:$B$13,'Activity 7'!M$7:M$13,\"N/A\",0,1)","v":"N/A"},{"$f":"_xlfn.XLOOKUP($E76,'Activity 7'!$B$7:$B$13,'Activity 7'!K$7:K$13,\"N/A\",0,1)","v":"N/A"},{"$f":"_xlfn.XLOOKUP($E76,'Activity 7'!$B$7:$B$13,'Activity 7'!N$7:N$13,\"N/A\",0,1)","v":"N/A"},{"$f":"_xlfn.XLOOKUP($E76,'Activity 7'!$B$7:$B$13,'Activity 7'!O$7:O$13,\"N/A\",0,1)","v":"N/A"},{"$f":"_xlfn.XLOOKUP($E76,'Activity 7'!$B$7:$B$13,'Activity 7'!P$7:P$13,\"N/A\",0,1)","v":"N/A"},{"$f":"_xlfn.XLOOKUP($E76,'Activity 7'!$B$7:$B$13,'Activity 7'!Q$7:Q$13,\"N/A\",0,1)","v":"N/A"},{"$f":"_xlfn.XLOOKUP($E76,'Activity 7'!$B$7:$B$13,'Activity 7'!R$7:R$13,\"N/A\",0,1)","v":"N/A"},{"$f":"_xlfn.XLOOKUP($E76,'Activity 7'!$B$7:$B$13,'Activity 7'!S$7:S$13,\"N/A\",0,1)","v":"N/A"},{"$f":"_xlfn.XLOOKUP($E76,'Activity 7'!$B$7:$B$13,'Activity 7'!T$7:T$13,\"N/A\",0,1)","v":"N/A"},{"$f":"_xlfn.XLOOKUP($E76,'Activity 7'!$B$7:$B$13,'Activity 7'!U$7:U$13,\"N/A\",0,1)","v":"N/A"},{"$f":"_xlfn.XLOOKUP($E76,'Activity 7'!$B$7:$B$13,'Activity 7'!V$7:V$13,\"N/A\",0,1)","v":"N/A"},{"$f":"_xlfn.XLOOKUP($E76,'Activity 7'!$B$17:$B$23,'Activity 7'!E$17:E$23,\"N/A\",0,1)","v":"N/A"},{"$f":"_xlfn.XLOOKUP($E76,'Activity 7'!$B$17:$B$23,'Activity 7'!G$17:G$23,\"N/A\",0,1)","v":"N/A"},{"$f":"_xlfn.XLOOKUP($E76,'Activity 7'!$B$17:$B$23,'Activity 7'!I$17:I$23,\"N/A\",0,1)","v":"N/A"},{"$f":"_xlfn.XLOOKUP($E76,'Activity 7'!$B$17:$B$23,'Activity 7'!J$17:J$23,\"N/A\",0,1)","v":"N/A"},{"$f":"_xlfn.XLOOKUP($E76,'Activity 7'!$B$17:$B$23,'Activity 7'!K$17:K$23,\"N/A\",0,1)","v":"N/A"},{"$f":"_xlfn.XLOOKUP($E76,'Activity 7'!$B$17:$B$23,'Activity 7'!L$17:L$23,\"N/A\",0,1)","v":"N/A"},{"$f":"_xlfn.XLOOKUP($E76,'Activity 7'!$B$17:$B$23,'Activity 7'!M$17:M$23,\"N/A\",0,1)","v":"N/A"},{"$f":"_xlfn.XLOOKUP($E76,'Activity 7'!$B$17:$B$23,'Activity 7'!N$17:N$23,\"N/A\",0,1)","v":"N/A"},{"$f":"_xlfn.XLOOKUP($E76,'Activity 7'!$B$17:$B$23,'Activity 7'!P$17:P$23,\"N/A\",0,1)","v":"N/A"},{"$f":"_xlfn.XLOOKUP($E76,'Activity 8'!$B$7:$B$13,'Activity 8'!A$7:A$13,\"No\",0,1)","v":"No"},{"$f":"_xlfn.XLOOKUP($E76,'Activity 8'!$B$7:$B$13,'Activity 8'!I$7:I$13,\"N/A\",0,1)","v":"N/A"},{"$f":"_xlfn.XLOOKUP($E76,'Activity 8'!$B$7:$B$13,'Activity 8'!J$7:J$13,\"N/A\",0,1)","v":"N/A"},{"$f":"_xlfn.XLOOKUP($E76,'Activity 8'!$B$7:$B$13,'Activity 8'!K$7:K$13,\"N/A\",0,1)","v":"N/A"},{"$f":"_xlfn.XLOOKUP($E76,'Activity 8'!$B$7:$B$13,'Activity 8'!L$7:L$13,\"N/A\",0,1)","v":"N/A"},{"$f":"_xlfn.XLOOKUP($E76,'Activity 8'!$B$7:$B$13,'Activity 8'!M$7:M$13,\"N/A\",0,1)","v":"N/A"},{"$f":"_xlfn.XLOOKUP($E76,'Activity 8'!$B$7:$B$13,'Activity 8'!N$7:N$13,\"N/A\",0,1)","v":"N/A"},{"$f":"_xlfn.XLOOKUP($E76,'Activity 8'!$B$7:$B$13,'Activity 8'!O$7:O$13,\"N/A\",0,1)","v":"N/A"},{"$f":"_xlfn.XLOOKUP($E76,'Activity 8'!$B$7:$B$13,'Activity 8'!P$7:P$13,\"N/A\",0,1)","v":"N/A"},{"$f":"_xlfn.XLOOKUP($E76,'Activity 8'!$B$7:$B$13,'Activity 8'!Q$7:Q$13,\"N/A\",0,1)","v":"N/A"},{"$f":"_xlfn.XLOOKUP($E76,'Activity 8'!$B$7:$B$13,'Activity 8'!R$7:R$13,\"N/A\",0,1)","v":"N/A"},{"$f":"_xlfn.XLOOKUP($E76,'Activity 8'!$B$7:$B$13,'Activity 8'!S$7:S$13,\"N/A\",0,1)","v":"N/A"},{"$f":"_xlfn.XLOOKUP($E76,'Activity 8'!$B$7:$B$13,'Activity 8'!T$7:T$13,\"N/A\",0,1)","v":"N/A"},{"$f":"_xlfn.XLOOKUP($E76,'Activity 8'!$B$7:$B$13,'Activity 8'!U$7:U$13,\"N/A\",0,1)","v":"N/A"},{"$f":"_xlfn.XLOOKUP($E76,'Activity 8'!$B$7:$B$13,'Activity 8'!V$7:V$13,\"N/A\",0,1)","v":"N/A"},{"$f":"_xlfn.XLOOKUP($E76,'Activity 8'!$B$17:$B$23,'Activity 8'!D$17:D$23,\"N/A\",0,1)","v":"N/A"},{"$f":"_xlfn.XLOOKUP($E76,'Activity 8'!$B$17:$B$23,'Activity 8'!E$17:E$23,\"N/A\",0,1)","v":"N/A"},{"$f":"_xlfn.XLOOKUP($E76,'Activity 8'!$B$17:$B$23,'Activity 8'!F$17:F$23,\"N/A\",0,1)","v":"N/A"},{"$f":"_xlfn.XLOOKUP($E76,'Activity 8'!$B$17:$B$23,'Activity 8'!G$17:G$23,\"N/A\",0,1)","v":"N/A"},{"$f":"_xlfn.XLOOKUP($E76,'Activity 8'!$B$17:$B$23,'Activity 8'!H$17:H$23,\"N/A\",0,1)","v":"N/A"},{"$f":"_xlfn.XLOOKUP($E76,'Activity 8'!$B$17:$B$23,'Activity 8'!I$17:I$23,\"N/A\",0,1)","v":"N/A"},{"$f":"_xlfn.XLOOKUP($E76,'Activity 8'!$B$17:$B$23,'Activity 8'!J$17:J$23,\"N/A\",0,1)","v":"N/A"},{"$f":"_xlfn.XLOOKUP($E76,'Activity 8'!$B$17:$B$23,'Activity 8'!K$17:K$23,\"N/A\",0,1)","v":"N/A"},{"$f":"_xlfn.XLOOKUP($E76,'Activity 8'!$B$17:$B$23,'Activity 8'!L$17:L$23,\"N/A\",0,1)","v":"N/A"},{"$f":"_xlfn.XLOOKUP($E76,'Activity 8'!$B$17:$B$23,'Activity 8'!M$17:M$23,\"N/A\",0,1)","v":"N/A"},{"$f":"_xlfn.XLOOKUP($E76,'Activity 8'!$B$17:$B$23,'Activity 8'!N$17:N$23,\"N/A\",0,1)","v":"N/A"},{"$f":"_xlfn.XLOOKUP($E76,'Activity 8'!$B$17:$B$23,'Activity 8'!P$17:P$23,\"N/A\",0,1)","v":"N/A"},{"$f":"_xlfn.XLOOKUP(E76,'Activity 9'!$B$7:$B$13,'Activity 9'!$A$7:$A$13,\"No\",0,1)","v":"No"},{"$f":"_xlfn.XLOOKUP($E76,'Activity 9'!$B$7:$B$13,'Activity 9'!J$7:J$13,\"N/A\",0,1)","v":"N/A"},{"$f":"_xlfn.XLOOKUP($E76,'Activity 9'!$B$7:$B$13,'Activity 9'!K$7:K$13,\"N/A\",0,1)","v":"N/A"},{"$f":"_xlfn.XLOOKUP($E76,'Activity 9'!$B$7:$B$13,'Activity 9'!L$7:L$13,\"N/A\",0,1)","v":"N/A"},{"$f":"_xlfn.XLOOKUP($E76,'Activity 9'!$B$7:$B$13,'Activity 9'!M$7:M$13,\"N/A\",0,1)","v":"N/A"},{"$f":"_xlfn.XLOOKUP($E76,'Activity 9'!$B$7:$B$13,'Activity 9'!N$7:N$13,\"N/A\",0,1)","v":"N/A"},{"$f":"_xlfn.XLOOKUP($E76,'Activity 9'!$B$7:$B$13,'Activity 9'!O$7:O$13,\"N/A\",0,1)","v":"N/A"},{"$f":"_xlfn.XLOOKUP($E76,'Activity 9'!$B$7:$B$13,'Activity 9'!P$7:P$13,\"N/A\",0,1)","v":"N/A"},{"$f":"_xlfn.XLOOKUP($E76,'Activity 9'!$B$7:$B$13,'Activity 9'!Q$7:Q$13,\"N/A\",0,1)","v":"N/A"},{"$f":"_xlfn.XLOOKUP($E76,'Activity 9'!$B$7:$B$13,'Activity 9'!R$7:R$13,\"N/A\",0,1)","v":"N/A"},{"$f":"_xlfn.XLOOKUP($E76,'Activity 9'!$B$7:$B$13,'Activity 9'!S$7:S$13,\"N/A\",0,1)","v":"N/A"},{"$f":"_xlfn.XLOOKUP($E76,'Activity 9'!$B$7:$B$13,'Activity 9'!T$7:T$13,\"N/A\",0,1)","v":"N/A"},{"$f":"_xlfn.XLOOKUP($E76,'Activity 9'!$B$17:$B$23,'Activity 9'!E$17:E$23,\"N/A\",0,1)","v":"N/A"},{"$f":"_xlfn.XLOOKUP($E76,'Activity 9'!$B$17:$B$23,'Activity 9'!F$17:F$23,\"N/A\",0,1)","v":"N/A"},{"$f":"_xlfn.XLOOKUP($E76,'Activity 9'!$B$17:$B$23,'Activity 9'!G$17:G$23,\"N/A\",0,1)","v":"N/A"},{"$f":"_xlfn.XLOOKUP($E76,'Activity 9'!$B$17:$B$23,'Activity 9'!H$17:H$23,\"N/A\",0,1)","v":"N/A"},{"$f":"_xlfn.XLOOKUP($E76,'Activity 9'!$B$17:$B$23,'Activity 9'!I$17:I$23,\"N/A\",0,1)","v":"N/A"},{"$f":"_xlfn.XLOOKUP($E76,'Activity 9'!$B$17:$B$23,'Activity 9'!J$17:J$23,\"N/A\",0,1)","v":"N/A"},{"$f":"_xlfn.XLOOKUP($E76,'Activity 9'!$B$17:$B$23,'Activity 9'!K$17:K$23,\"N/A\",0,1)","v":"N/A"},{"$f":"_xlfn.XLOOKUP($E76,'Activity 9'!$B$17:$B$23,'Activity 9'!L$17:L$23,\"N/A\",0,1)","v":"N/A"},{"$f":"_xlfn.XLOOKUP($E76,'Activity 9'!$B$17:$B$23,'Activity 9'!N$17:N$23,\"N/A\",0,1)","v":"N/A"},{"$f":"_xlfn.XLOOKUP($E76,'Activity 9'!$B$17:$B$23,'Activity 9'!O$17:O$23,\"N/A\",0,1)","v":"N/A"},{"$f":"_xlfn.XLOOKUP($E76,'Activity 9'!$B$17:$B$23,'Activity 9'!Q$17:Q$23,\"N/A\",0,1)","v":"N/A"},{"$f":"_xlfn.XLOOKUP($E76,'Activity 10'!$B$7:$B$13,'Activity 10'!A$7:A$13,\"No\",0,1)","v":"No"},{"$f":"_xlfn.XLOOKUP($E76,'Activity 10'!$B$7:$B$13,'Activity 10'!J$7:J$13,\"N/A\",0,1)","v":"N/A"},{"$f":"_xlfn.XLOOKUP($E76,'Activity 10'!$B$7:$B$13,'Activity 10'!K$7:K$13,\"N/A\",0,1)","v":"N/A"},{"$f":"_xlfn.XLOOKUP($E76,'Activity 10'!$B$7:$B$13,'Activity 10'!L$7:L$13,\"N/A\",0,1)","v":"N/A"},{"$f":"_xlfn.XLOOKUP($E76,'Activity 10'!$B$7:$B$13,'Activity 10'!M$7:M$13,\"N/A\",0,1)","v":"N/A"},{"$f":"_xlfn.XLOOKUP($E76,'Activity 10'!$B$7:$B$13,'Activity 10'!N$7:N$13,\"N/A\",0,1)","v":"N/A"},{"$f":"_xlfn.XLOOKUP($E76,'Activity 10'!$B$7:$B$13,'Activity 10'!O$7:O$13,\"N/A\",0,1)","v":"N/A"},{"$f":"_xlfn.XLOOKUP($E76,'Activity 10'!$B$7:$B$13,'Activity 10'!P$7:P$13,\"N/A\",0,1)","v":"N/A"},{"$f":"_xlfn.XLOOKUP($E76,'Activity 10'!$B$7:$B$13,'Activity 10'!Q$7:Q$13,\"N/A\",0,1)","v":"N/A"},{"$f":"_xlfn.XLOOKUP($E76,'Activity 10'!$B$7:$B$13,'Activity 10'!R$7:R$13,\"N/A\",0,1)","v":"N/A"},{"$f":"_xlfn.XLOOKUP($E76,'Activity 10'!$B$7:$B$13,'Activity 10'!S$7:S$13,\"N/A\",0,1)","v":"N/A"},{"$f":"_xlfn.XLOOKUP($E76,'Activity 10'!$B$7:$B$13,'Activity 10'!T$7:T$13,\"N/A\",0,1)","v":"N/A"},{"$f":"_xlfn.XLOOKUP($E76,'Activity 10'!$B$7:$B$13,'Activity 10'!U$7:U$13,\"N/A\",0,1)","v":"N/A"},{"$f":"_xlfn.XLOOKUP($E76,'Activity 10'!$B$7:$B$13,'Activity 10'!V$7:V$13,\"N/A\",0,1)","v":"N/A"},{"$f":"_xlfn.XLOOKUP($E76,'Activity 10'!$B$17:$B$23,'Activity 10'!E$17:E$23,\"N/A\",0,1)","v":"N/A"},{"$f":"_xlfn.XLOOKUP($E76,'Activity 10'!$B$17:$B$23,'Activity 10'!F$17:F$23,\"N/A\",0,1)","v":"N/A"},{"$f":"_xlfn.XLOOKUP($E76,'Activity 10'!$B$17:$B$23,'Activity 10'!G$17:G$23,\"N/A\",0,1)","v":"N/A"},{"$f":"_xlfn.XLOOKUP($E76,'Activity 10'!$B$17:$B$23,'Activity 10'!H$17:H$23,\"N/A\",0,1)","v":"N/A"},{"$f":"_xlfn.XLOOKUP($E76,'Activity 10'!$B$17:$B$23,'Activity 10'!I$17:I$23,\"N/A\",0,1)","v":"N/A"},{"$f":"_xlfn.XLOOKUP($E76,'Activity 10'!$B$17:$B$23,'Activity 10'!J$17:J$23,\"N/A\",0,1)","v":"N/A"},{"$f":"_xlfn.XLOOKUP($E76,'Activity 10'!$B$17:$B$23,'Activity 10'!K$17:K$23,\"N/A\",0,1)","v":"N/A"},{"$f":"_xlfn.XLOOKUP($E76,'Activity 10'!$B$17:$B$23,'Activity 10'!L$17:L$23,\"N/A\",0,1)","v":"N/A"},{"$f":"_xlfn.XLOOKUP($E76,'Activity 10'!$B$17:$B$23,'Activity 10'!M$17:M$23,\"N/A\",0,1)","v":"N/A"},{"$f":"_xlfn.XLOOKUP($E76,'Activity 10'!$B$17:$B$23,'Activity 10'!N$17:N$23,\"N/A\",0,1)","v":"N/A"},{"$f":"_xlfn.XLOOKUP($E76,'Activity 10'!$B$17:$B$23,'Activity 10'!P$17:P$23,\"N/A\",0,1)","v":"N/A"},{"$f":"_xlfn.XLOOKUP($E76,'Competitive Activity 1'!B$7:B$13,'Competitive Activity 1'!A$7:A$13,\"No\",0,1)","v":"No"},{"$f":"_xlfn.XLOOKUP($E76,'Competitive Activity 1'!$B$7:$B$13,'Competitive Activity 1'!H$7:H$13,\"N/A\",0,1)","v":"N/A"},{"$f":"_xlfn.XLOOKUP($E76,'Competitive Activity 1'!$B$7:$B$13,'Competitive Activity 1'!I$7:I$13,\"N/A\",0,1)","v":"N/A"},{"$f":"_xlfn.XLOOKUP($E76,'Competitive Activity 1'!$B$7:$B$13,'Competitive Activity 1'!J$7:J$13,\"N/A\",0,1)","v":"N/A"},{"$f":"_xlfn.XLOOKUP($E76,'Competitive Activity 1'!$B$7:$B$13,'Competitive Activity 1'!K$7:K$13,\"N/A\",0,1)","v":"N/A"},{"$f":"_xlfn.XLOOKUP($E76,'Competitive Activity 1'!$B$7:$B$13,'Competitive Activity 1'!L$7:L$13,\"N/A\",0,1)","v":"N/A"},{"$f":"_xlfn.XLOOKUP($E76,'Competitive Activity 1'!$B$7:$B$13,'Competitive Activity 1'!M$7:M$13,\"N/A\",0,1)","v":"N/A"},{"$f":"_xlfn.XLOOKUP($E76,'Competitive Activity 1'!$B$7:$B$13,'Competitive Activity 1'!N$7:N$13,\"N/A\",0,1)","v":"N/A"},{"$f":"_xlfn.XLOOKUP($E76,'Competitive Activity 1'!$B$7:$B$13,'Competitive Activity 1'!O$7:O$13,\"N/A\",0,1)","v":"N/A"},{"$f":"_xlfn.XLOOKUP($E76,'Competitive Activity 1'!$B$7:$B$13,'Competitive Activity 1'!P$7:P$13,\"N/A\",0,1)","v":"N/A"},{"$f":"_xlfn.XLOOKUP($E76,'Competitive Activity 1'!$B$7:$B$13,'Competitive Activity 1'!Q$7:Q$13,\"N/A\",0,1)","v":"N/A"},{"$f":"_xlfn.XLOOKUP($E76,'Competitive Activity 1'!$B$7:$B$13,'Competitive Activity 1'!R$7:R$13,\"N/A\",0,1)","v":"N/A"},{"$f":"_xlfn.XLOOKUP($E76,'Competitive Activity 1'!$B$7:$B$13,'Competitive Activity 1'!S$7:S$13,\"N/A\",0,1)","v":"N/A"},{"$f":"_xlfn.XLOOKUP($E76,'Competitive Activity 1'!$B$7:$B$13,'Competitive Activity 1'!T$7:T$13,\"N/A\",0,1)","v":"N/A"},{"$f":"_xlfn.XLOOKUP($E76,'Competitive Activity 1'!$B$7:$B$13,'Competitive Activity 1'!U$7:U$13,\"N/A\",0,1)","v":"N/A"},{"$f":"_xlfn.XLOOKUP($E76,'Competitive Activity 1'!$B$17:$B$23,'Competitive Activity 1'!C$17:C$23,\"N/A\",0,1)","v":"N/A"},{"$f":"_xlfn.XLOOKUP($E76,'Competitive Activity 1'!$B$17:$B$23,'Competitive Activity 1'!D$17:D$23,\"N/A\",0,1)","v":"N/A"},{"$f":"_xlfn.XLOOKUP($E76,'Competitive Activity 1'!$B$17:$B$23,'Competitive Activity 1'!E$17:E$23,\"N/A\",0,1)","v":"N/A"},{"$f":"_xlfn.XLOOKUP($E76,'Competitive Activity 1'!$B$17:$B$23,'Competitive Activity 1'!F$17:F$23,\"N/A\",0,1)","v":"N/A"},{"$f":"_xlfn.XLOOKUP($E76,'Competitive Activity 1'!$B$17:$B$23,'Competitive Activity 1'!G$17:G$23,\"N/A\",0,1)","v":"N/A"},{"$f":"_xlfn.XLOOKUP($E76,'Competitive Activity 1'!$B$17:$B$23,'Competitive Activity 1'!H$17:H$23,\"N/A\",0,1)","v":"N/A"},{"$f":"_xlfn.XLOOKUP($E76,'Competitive Activity 1'!$B$17:$B$23,'Competitive Activity 1'!I$17:I$23,\"N/A\",0,1)","v":"N/A"},{"$f":"_xlfn.XLOOKUP($E76,'Competitive Activity 1'!$B$17:$B$23,'Competitive Activity 1'!J$17:J$23,\"N/A\",0,1)","v":"N/A"},{"$f":"_xlfn.XLOOKUP($E76,'Competitive Activity 1'!$B$17:$B$23,'Competitive Activity 1'!K$17:K$23,\"N/A\",0,1)","v":"N/A"},{"$f":"_xlfn.XLOOKUP($E76,'Competitive Activity 1'!$B$17:$B$23,'Competitive Activity 1'!M$17:M$23,\"N/A\",0,1)","v":"N/A"},{"$f":"_xlfn.XLOOKUP($E76,'Competitive Activity 1'!$B$17:$B$23,'Competitive Activity 1'!N$17:N$23,\"N/A\",0,1)","v":"N/A"},{"$f":"_xlfn.XLOOKUP($E76,'Competitive Activity 1'!$B$17:$B$23,'Competitive Activity 1'!P$17:P$23,\"N/A\",0,1)","v":"N/A"},{"$f":"_xlfn.XLOOKUP($E76,'Competitive Activity 2'!$B$7:$B$13,'Competitive Activity 2'!A$7:A$13,\"No\",0)","v":"No"},{"$f":"_xlfn.XLOOKUP($E76,'Competitive Activity 2'!$B$7:$B$13,'Competitive Activity 2'!L$7:L$13,\"N/A\",0)","v":"N/A"},{"$f":"_xlfn.XLOOKUP($E76,'Competitive Activity 2'!$B$7:$B$13,'Competitive Activity 2'!M$7:M$13,\"N/A\",0)","v":"N/A"},{"$f":"_xlfn.XLOOKUP($E76,'Competitive Activity 2'!$B$7:$B$13,'Competitive Activity 2'!N$7:N$13,\"N/A\",0)","v":"N/A"},{"$f":"_xlfn.XLOOKUP($E76,'Competitive Activity 2'!$B$7:$B$13,'Competitive Activity 2'!O$7:O$13,\"N/A\",0)","v":"N/A"},{"$f":"_xlfn.XLOOKUP($E76,'Competitive Activity 2'!$B$7:$B$13,'Competitive Activity 2'!P$7:P$13,\"N/A\",0)","v":"N/A"},{"$f":"_xlfn.XLOOKUP($E76,'Competitive Activity 2'!$B$7:$B$13,'Competitive Activity 2'!Q$7:Q$13,\"N/A\",0)","v":"N/A"},{"$f":"_xlfn.XLOOKUP($E76,'Competitive Activity 2'!$B$7:$B$13,'Competitive Activity 2'!R$7:R$13,\"N/A\",0)","v":"N/A"},{"$f":"_xlfn.XLOOKUP($E76,'Competitive Activity 2'!$B$7:$B$13,'Competitive Activity 2'!S$7:S$13,\"N/A\",0)","v":"N/A"},{"$f":"_xlfn.XLOOKUP($E76,'Competitive Activity 2'!$B$7:$B$13,'Competitive Activity 2'!T$7:T$13,\"N/A\",0)","v":"N/A"},{"$f":"_xlfn.XLOOKUP($E76,'Competitive Activity 2'!$B$7:$B$13,'Competitive Activity 2'!U$7:U$13,\"N/A\",0)","v":"N/A"},{"$f":"_xlfn.XLOOKUP($E76,'Competitive Activity 2'!$B$17:$B$23,'Competitive Activity 2'!D$17:D$23,\"N/A\",0)","v":"N/A"},{"$f":"_xlfn.XLOOKUP($E76,'Competitive Activity 2'!$B$17:$B$23,'Competitive Activity 2'!E$17:E$23,\"N/A\",0)","v":"N/A"},{"$f":"_xlfn.XLOOKUP($E76,'Competitive Activity 2'!$B$17:$B$23,'Competitive Activity 2'!F$17:F$23,\"N/A\",0)","v":"N/A"},{"$f":"_xlfn.XLOOKUP($E76,'Competitive Activity 2'!$B$17:$B$23,'Competitive Activity 2'!G$17:G$23,\"N/A\",0)","v":"N/A"},{"$f":"_xlfn.XLOOKUP($E76,'Competitive Activity 2'!$B$17:$B$23,'Competitive Activity 2'!H$17:H$23,\"N/A\",0)","v":"N/A"},{"$f":"_xlfn.XLOOKUP($E76,'Competitive Activity 2'!$B$17:$B$23,'Competitive Activity 2'!I$17:I$23,\"N/A\",0)","v":"N/A"},{"$f":"_xlfn.XLOOKUP($E76,'Competitive Activity 2'!$B$17:$B$23,'Competitive Activity 2'!J$17:J$23,\"N/A\",0)","v":"N/A"},{"$f":"_xlfn.XLOOKUP($E76,'Competitive Activity 2'!$B$17:$B$23,'Competitive Activity 2'!K$17:K$23,\"N/A\",0)","v":"N/A"},{"$f":"_xlfn.XLOOKUP($E76,'Competitive Activity 2'!$B$17:$B$23,'Competitive Activity 2'!L$17:L$23,\"N/A\",0)","v":"N/A"},{"$f":"_xlfn.XLOOKUP($E76,'Competitive Activity 2'!$B$17:$B$23,'Competitive Activity 2'!M$17:M$23,\"N/A\",0)","v":"N/A"},{"$f":"_xlfn.XLOOKUP($E76,'Competitive Activity 2'!$B$17:$B$23,'Competitive Activity 2'!N$17:N$23,\"N/A\",0)","v":"N/A"},{"$f":"_xlfn.XLOOKUP($E76,'Competitive Activity 2'!$B$27:$B$33,'Competitive Activity 2'!D$27:D$33,\"N/A\",0)","v":"N/A"},{"$f":"_xlfn.XLOOKUP($E76,'Competitive Activity 2'!$B$27:$B$33,'Competitive Activity 2'!E$27:E$33,\"N/A\",0)","v":"N/A"},{"$f":"_xlfn.XLOOKUP($E76,'Competitive Activity 2'!$B$27:$B$33,'Competitive Activity 2'!F$27:F$33,\"N/A\",0)","v":"N/A"},{"$f":"_xlfn.XLOOKUP($E76,'Competitive Activity 2'!$B$27:$B$33,'Competitive Activity 2'!G$27:G$33,\"N/A\",0)","v":"N/A"},{"$f":"_xlfn.XLOOKUP($E76,'Competitive Activity 2'!$B$27:$B$33,'Competitive Activity 2'!H$27:H$33,\"N/A\",0)","v":"N/A"},{"$f":"_xlfn.XLOOKUP($E76,'Competitive Activity 2'!$B$27:$B$33,'Competitive Activity 2'!I$27:I$33,\"N/A\",0)","v":"N/A"},{"$f":"_xlfn.XLOOKUP($E76,'Competitive Activity 2'!$B$27:$B$33,'Competitive Activity 2'!J$27:J$33,\"N/A\",0)","v":"N/A"},{"$f":"_xlfn.XLOOKUP($E76,'Competitive Activity 2'!$B$27:$B$33,'Competitive Activity 2'!K$27:K$33,\"N/A\",0)","v":"N/A"},{"$f":"_xlfn.XLOOKUP($E76,'Competitive Activity 2'!$B$27:$B$33,'Competitive Activity 2'!M$27:M$33,\"N/A\",0)","v":"N/A"}]
[{"$f":"'1-Cover Sheet'!$C$8","v":"Select One"},{"$f":"'1-Cover Sheet'!$F$8","v":"Select One"},{"$f":"'Summary Sheet'!$D$8","v":0},{"$f":"'Summary Sheet'!$D$10","v":0},{"$f":"'Drop Down Box'!B241","v":0},{"$f":"'Drop Down Box'!C241","v":0},{"$f":"'Drop Down Box'!D241","v":"Select One"},{"$f":"_xlfn.XLOOKUP(E77,'Drop Down Box'!$B$166:$B$249,'Drop Down Box'!$A$166:$A$249,\"Unknown\",0)","v":"Activity 1"},{"$f":"_xlfn.XLOOKUP($E77,'Competitive Activity 1'!$B$17:$B$23,'Competitive Activity 1'!$L$17:$L$23,\"N/A\",0)","v":"N/A"},{"$f":"_xlfn.XLOOKUP($E77,'Competitive Activity 1'!$B$17:$B$23,'Competitive Activity 1'!$O$17:$O$23,\"N/A\",0)","v":"N/A"},{"$f":"_xlfn.XLOOKUP($E77,'Competitive Activity 1'!$B$7:$B$13,'Competitive Activity 1'!E$7:E$13,\"N/A\",0)","v":"N/A"},{"$f":"_xlfn.XLOOKUP($E77,'Competitive Activity 1'!$B$7:$B$13,'Competitive Activity 1'!F$7:F$13,\"N/A\",0)","v":"N/A"},{"$f":"_xlfn.XLOOKUP($E77,'Competitive Activity 1'!$B$7:$B$13,'Competitive Activity 1'!G$7:G$13,\"N/A\",0)","v":"N/A"},{"$f":"_xlfn.XLOOKUP($E77,'Activity 1'!$B$7:$B$13,'Activity 1'!$A$7:$A$13,\"No\",0,1)","v":"No"},{"$f":"_xlfn.XLOOKUP($E77,'Activity 1'!$B$7:$B$13,'Activity 1'!$H$7:$H$13,\"N/A\",0,1)","v":"N/A"},{"$f":"_xlfn.XLOOKUP($E77,'Activity 1'!$B$7:$B$13,'Activity 1'!I$7:I$13,\"N/A\",0,1)","v":"N/A"},{"$f":"_xlfn.XLOOKUP($E77,'Activity 1'!$B$7:$B$13,'Activity 1'!J$7:J$13,\"N/A\",0,1)","v":"N/A"},{"$f":"_xlfn.XLOOKUP($E77,'Activity 1'!$B$7:$B$13,'Activity 1'!K$7:K$13,\"N/A\",0,1)","v":"N/A"},{"$f":"_xlfn.XLOOKUP($E77,'Activity 1'!$B$7:$B$13,'Activity 1'!L$7:L$13,\"N/A\",0,1)","v":"N/A"},{"$f":"_xlfn.XLOOKUP($E77,'Activity 1'!$B$7:$B$13,'Activity 1'!M$7:M$13,\"N/A\",0,1)","v":"N/A"},{"$f":"_xlfn.XLOOKUP($E77,'Activity 1'!$B$7:$B$13,'Activity 1'!N$7:N$13,\"N/A\",0,1)","v":"N/A"},0,{"$f":"_xlfn.XLOOKUP($E77,'Activity 1'!$B$7:$B$13,'Activity 1'!O$7:O$13,\"N/A\",0,1)","v":"N/A"},{"$f":"_xlfn.XLOOKUP($E77,'Activity 1'!$B$7:$B$13,'Activity 1'!P$7:P$13,\"N/A\",0,1)","v":"N/A"},{"$f":"_xlfn.XLOOKUP($E77,'Activity 1'!$B$7:$B$13,'Activity 1'!Q$7:Q$13,\"N/A\",0,1)","v":"N/A"},{"$f":"_xlfn.XLOOKUP($E77,'Activity 1'!$B$7:$B$13,'Activity 1'!R$7:R$13,\"N/A\",0,1)","v":"N/A"},{"$f":"_xlfn.XLOOKUP($E77,'Activity 1'!$B$7:$B$13,'Activity 1'!S$7:S$13,\"N/A\",0,1)","v":"N/A"},{"$f":"_xlfn.XLOOKUP($E77,'Activity 1'!$B$7:$B$13,'Activity 1'!T$7:T$13,\"N/A\",0,1)","v":"N/A"},{"$f":"_xlfn.XLOOKUP($E77,'Activity 1'!$B$7:$B$13,'Activity 1'!U$7:U$13,\"N/A\",0,1)","v":"N/A"},{"$f":"_xlfn.XLOOKUP($E77,'Activity 1'!$B$7:$B$13,'Activity 1'!V$7:V$13,\"N/A\",0,1)","v":"N/A"},{"$f":"_xlfn.XLOOKUP($E77,'Activity 1'!$B$17:$B$23,'Activity 1'!C$17:C$23,\"N/A\",0,1)","v":"N/A"},{"$f":"_xlfn.XLOOKUP($E77,'Activity 1'!$B$17:$B$23,'Activity 1'!D$17:D$23,\"N/A\",0,1)","v":"N/A"},{"$f":"_xlfn.XLOOKUP($E77,'Activity 1'!$B$17:$B$23,'Activity 1'!E$17:E$23,\"N/A\",0,1)","v":"N/A"},{"$f":"_xlfn.XLOOKUP($E77,'Activity 1'!$B$17:$B$23,'Activity 1'!F$17:F$23,\"N/A\",0,1)","v":"N/A"},{"$f":"_xlfn.XLOOKUP($E77,'Activity 1'!$B$17:$B$23,'Activity 1'!G$17:G$23,\"N/A\",0,1)","v":"N/A"},{"$f":"_xlfn.XLOOKUP($E77,'Activity 1'!$B$17:$B$23,'Activity 1'!H$17:H$23,\"N/A\",0,1)","v":"N/A"},{"$f":"_xlfn.XLOOKUP($E77,'Activity 1'!$B$17:$B$23,'Activity 1'!I$17:I$23,\"N/A\",0,1)","v":"N/A"},{"$f":"_xlfn.XLOOKUP($E77,'Activity 1'!$B$17:$B$23,'Activity 1'!J$17:J$23,\"N/A\",0,1)","v":"N/A"},{"$f":"_xlfn.XLOOKUP($E77,'Activity 1'!$B$17:$B$23,'Activity 1'!K$17:K$23,\"N/A\",0,1)","v":"N/A"},{"$f":"_xlfn.XLOOKUP($E77,'Activity 1'!$B$17:$B$23,'Activity 1'!L$17:L$23,\"N/A\",0,1)","v":"N/A"},{"$f":"_xlfn.XLOOKUP($E77,'Activity 1'!$B$17:$B$23,'Activity 1'!M$17:M$23,\"N/A\",0,1)","v":"N/A"},{"$f":"_xlfn.XLOOKUP($E77,'Activity 1'!$B$17:$B$23,'Activity 1'!O$17:O$23,\"N/A\",0,1)","v":"N/A"},{"$f":"_xlfn.XLOOKUP($E77,'Activity 1'!$B$17:$B$23,'Activity 1'!Q$17:Q$23,\"N/A\",0,1)","v":"N/A"},{"$f":"_xlfn.XLOOKUP($E77,'Activity 2'!$B$7:$B$13,'Activity 2'!$A$7:$A$13,\"No\",0,1)","v":"No"},{"$f":"_xlfn.XLOOKUP($E77,'Activity 2'!B$7:B$13,'Activity 2'!H$7:H$13,\"N/A\",0)","v":"N/A"},{"$f":"_xlfn.XLOOKUP($E77,'Activity 2'!C$7:C$13,'Activity 2'!I$7:I$13,\"N/A\",0)","v":"N/A"},{"$f":"_xlfn.XLOOKUP($E77,'Activity 2'!D$7:D$13,'Activity 2'!J$7:J$13,\"N/A\",0)","v":"N/A"},{"$f":"_xlfn.XLOOKUP($E77,'Activity 2'!E$7:E$13,'Activity 2'!K$7:K$13,\"N/A\",0)","v":"N/A"},{"$f":"_xlfn.XLOOKUP($E77,'Activity 2'!F$7:F$13,'Activity 2'!L$7:L$13,\"N/A\",0)","v":"N/A"},{"$f":"_xlfn.XLOOKUP($E77,'Activity 2'!G$7:G$13,'Activity 2'!M$7:M$13,\"N/A\",0)","v":"N/A"},{"$f":"_xlfn.XLOOKUP($E77,'Activity 2'!H$7:H$13,'Activity 2'!N$7:N$13,\"N/A\",0)","v":"N/A"},{"$f":"_xlfn.XLOOKUP($E77,'Activity 2'!I$7:I$13,'Activity 2'!O$7:O$13,\"N/A\",0)","v":"N/A"},{"$f":"_xlfn.XLOOKUP($E77,'Activity 2'!J$7:J$13,'Activity 2'!P$7:P$13,\"N/A\",0)","v":"N/A"},{"$f":"_xlfn.XLOOKUP($E77,'Activity 2'!K$7:K$13,'Activity 2'!Q$7:Q$13,\"N/A\",0)","v":"N/A"},{"$f":"_xlfn.XLOOKUP($E77,'Activity 2'!L$7:L$13,'Activity 2'!R$7:R$13,\"N/A\",0)","v":"N/A"},{"$f":"_xlfn.XLOOKUP($E77,'Activity 2'!M$7:M$13,'Activity 2'!S$7:S$13,\"N/A\",0)","v":"N/A"},{"$f":"_xlfn.XLOOKUP($E77,'Activity 2'!N$7:N$13,'Activity 2'!T$7:T$13,\"N/A\",0)","v":"N/A"},{"$f":"_xlfn.XLOOKUP($E77,'Activity 2'!O$7:O$13,'Activity 2'!U$7:U$13,\"N/A\",0)","v":"N/A"},{"$f":"_xlfn.XLOOKUP($E77,'Activity 2'!P$7:P$13,'Activity 2'!V$7:V$13,\"N/A\",0)","v":"N/A"},{"$f":"_xlfn.XLOOKUP($E77,'Activity 2'!$B$17:$B$23,'Activity 2'!C$17:C$23,\"N/A\",0,1)","v":"N/A"},{"$f":"_xlfn.XLOOKUP($E77,'Activity 2'!$B$17:$B$23,'Activity 2'!D$17:D$23,\"N/A\",0,1)","v":"N/A"},{"$f":"_xlfn.XLOOKUP($E77,'Activity 2'!$B$17:$B$23,'Activity 2'!E$17:E$23,\"N/A\",0,1)","v":"N/A"},{"$f":"_xlfn.XLOOKUP($E77,'Activity 2'!$B$17:$B$23,'Activity 2'!F$17:F$23,\"N/A\",0,1)","v":"N/A"},{"$f":"_xlfn.XLOOKUP($E77,'Activity 2'!$B$17:$B$23,'Activity 2'!G$17:G$23,\"N/A\",0,1)","v":"N/A"},{"$f":"_xlfn.XLOOKUP($E77,'Activity 2'!$B$17:$B$23,'Activity 2'!H$17:H$23,\"N/A\",0,1)","v":"N/A"},{"$f":"_xlfn.XLOOKUP($E77,'Activity 2'!$B$17:$B$23,'Activity 2'!I$17:I$23,\"N/A\",0,1)","v":"N/A"},{"$f":"_xlfn.XLOOKUP($E77,'Activity 2'!$B$17:$B$23,'Activity 2'!J$17:J$23,\"N/A\",0,1)","v":"N/A"},{"$f":"_xlfn.XLOOKUP($E77,'Activity 2'!$B$17:$B$23,'Activity 2'!K$17:K$23,\"N/A\",0,1)","v":"N/A"},{"$f":"_xlfn.XLOOKUP($E77,'Activity 2'!$B$17:$B$23,'Activity 2'!L$17:L$23,\"N/A\",0,1)","v":"N/A"},{"$f":"_xlfn.XLOOKUP($E77,'Activity 2'!$B$17:$B$23,'Activity 2'!M$17:M$23,\"N/A\",0,1)","v":"N/A"},{"$f":"_xlfn.XLOOKUP($E77,'Activity 2'!$B$17:$B$23,'Activity 2'!O$17:O$23,\"N/A\",0,1)","v":"N/A"},{"$f":"_xlfn.XLOOKUP($E77,'Activity 2'!$B$17:$B$23,'Activity 2'!Q$17:Q$23,\"N/A\",0,1)","v":"N/A"},null,{"$f":"_xlfn.XLOOKUP($E77,'Activity 3'!$B$8:$B$14,'Activity 3'!K$8:K$14,\"N/A\",0,1)","v":"N/A"},{"$f":"_xlfn.XLOOKUP($E77,'Activity 3'!$B$8:$B$14,'Activity 3'!L$8:L$14,\"N/A\",0,1)","v":"N/A"},{"$f":"_xlfn.XLOOKUP($E77,'Activity 3'!$B$8:$B$14,'Activity 3'!M$8:M$14,\"N/A\",0,1)","v":"N/A"},{"$f":"_xlfn.XLOOKUP($E77,'Activity 3'!$B$8:$B$14,'Activity 3'!N$8:N$14,\"N/A\",0,1)","v":"N/A"},{"$f":"_xlfn.XLOOKUP($E77,'Activity 3'!$B$8:$B$14,'Activity 3'!O$8:O$14,\"N/A\",0,1)","v":"N/A"},{"$f":"_xlfn.XLOOKUP($E77,'Activity 3'!$B$8:$B$14,'Activity 3'!R$8:R$14,\"N/A\",0,1)","v":"N/A"},{"$f":"_xlfn.XLOOKUP($E77,'Activity 4'!$B$8:$B$14,'Activity 4'!$A$8:$A$14,\"No\",0,1)","v":"No"},{"$f":"_xlfn.XLOOKUP($E77,'Activity 4'!$B$8:$B$14,'Activity 4'!L$8:L$14,\"N/A\",0,1)","v":"N/A"},{"$f":"_xlfn.XLOOKUP($E77,'Activity 4'!$B$8:$B$14,'Activity 4'!I$8:I$14,\"N/A\",0,1)","v":"N/A"},{"$f":"_xlfn.XLOOKUP($E77,'Activity 4'!$B$8:$B$14,'Activity 4'!M$8:M$14,\"N/A\",0,1)","v":"N/A"},{"$f":"_xlfn.XLOOKUP($E77,'Activity 5'!$B$8:$B$14,'Activity 5'!$A$8:$A$14,\"No\",0,1)","v":"No"},{"$f":"_xlfn.XLOOKUP($E77,'Activity 5'!$B$8:$B$14,'Activity 5'!J$8:J$14,\"N/A\",0,1)","v":"N/A"},{"$f":"_xlfn.XLOOKUP($E77,'Activity 5'!$B$8:$B$14,'Activity 5'!K$8:K$14,\"N/A\",0,1)","v":"N/A"},{"$f":"_xlfn.XLOOKUP($E77,'Activity 5'!$B$8:$B$14,'Activity 5'!N$8:N$14,\"N/A\",0,1)","v":"N/A"},{"$f":"_xlfn.XLOOKUP($E77,'Activity 5'!$B$8:$B$14,'Activity 5'!O$8:O$14,\"N/A\",0,1)","v":"N/A"},{"$f":"_xlfn.XLOOKUP($E77,'Activity 5'!$B$8:$B$14,'Activity 5'!P$8:P$14,\"N/A\",0,1)","v":"N/A"},{"$f":"_xlfn.XLOOKUP($E77,'Activity 5'!$B$8:$B$14,'Activity 5'!Q$8:Q$14,\"N/A\",0,1)","v":"N/A"},{"$f":"_xlfn.XLOOKUP($E77,'Activity 5'!$B$8:$B$14,'Activity 5'!R$8:R$14,\"N/A\",0,1)","v":"N/A"},{"$f":"_xlfn.XLOOKUP($E77,'Activity 6'!$B$7:$B$13,'Activity 6'!A$7:A$13,\"No\",0,1)","v":"No"},{"$f":"_xlfn.XLOOKUP($E77,'Activity 6'!$B$7:$B$13,'Activity 6'!K$7:K$13,\"N/A\",0,1)","v":"N/A"},{"$f":"_xlfn.XLOOKUP($E77,'Activity 6'!$B$7:$B$13,'Activity 6'!L$7:L$13,\"N/A\",0,1)","v":"N/A"},{"$f":"_xlfn.XLOOKUP($E77,'Activity 6'!$B$7:$B$13,'Activity 6'!M$7:M$13,\"N/A\",0,1)","v":"N/A"},{"$f":"_xlfn.XLOOKUP($E77,'Activity 6'!$B$7:$B$13,'Activity 6'!N$7:N$13,\"N/A\",0,1)","v":"N/A"},{"$f":"_xlfn.XLOOKUP($E77,'Activity 6'!$B$7:$B$13,'Activity 6'!O$7:O$13,\"N/A\",0,1)","v":"N/A"},{"$f":"_xlfn.XLOOKUP($E77,'Activity 6'!$B$7:$B$13,'Activity 6'!P$7:P$13,\"N/A\",0,1)","v":"N/A"},{"$f":"_xlfn.XLOOKUP($E77,'Activity 6'!$B$7:$B$13,'Activity 6'!Q$7:Q$13,\"N/A\",0,1)","v":"N/A"},{"$f":"_xlfn.XLOOKUP($E77,'Activity 6'!$B$7:$B$13,'Activity 6'!R$7:R$13,\"N/A\",0,1)","v":"N/A"},{"$f":"_xlfn.XLOOKUP($E77,'Activity 6'!$B$7:$B$13,'Activity 6'!S$7:S$13,\"N/A\",0,1)","v":"N/A"},{"$f":"_xlfn.XLOOKUP($E77,'Activity 6'!$B$7:$B$13,'Activity 6'!T$7:T$13,\"N/A\",0,1)","v":"N/A"},{"$f":"_xlfn.XLOOKUP($E77,'Activity 6'!$B$7:$B$13,'Activity 6'!U$7:U$13,\"N/A\",0,1)","v":"N/A"},{"$f":"_xlfn.XLOOKUP($E77,'Activity 6'!$B$22:$B$28,'Activity 6'!C$22:C$28,\"N/A\",0,1)","v":"N/A"},{"$f":"_xlfn.XLOOKUP($E77,'Activity 6'!$B$22:$B$28,'Activity 6'!D$22:D$28,\"N/A\",0,1)","v":"N/A"},{"$f":"_xlfn.XLOOKUP($E77,'Activity 6'!$B$22:$B$28,'Activity 6'!E$22:E$28,\"N/A\",0,1)","v":"N/A"},{"$f":"_xlfn.XLOOKUP($E77,'Activity 6'!$B$22:$B$28,'Activity 6'!F$22:F$28,\"N/A\",0,1)","v":"N/A"},{"$f":"_xlfn.XLOOKUP($E77,'Activity 6'!$B$22:$B$28,'Activity 6'!G$22:G$28,\"N/A\",0,1)","v":"N/A"},{"$f":"_xlfn.XLOOKUP($E77,'Activity 6'!$B$22:$B$28,'Activity 6'!H$22:H$28,\"N/A\",0,1)","v":"N/A"},{"$f":"_xlfn.XLOOKUP($E77,'Activity 6'!$B$22:$B$28,'Activity 6'!I$22:I$28,\"N/A\",0,1)","v":"N/A"},{"$f":"_xlfn.XLOOKUP($E77,'Activity 6'!$B$22:$B$28,'Activity 6'!J$22:J$28,\"N/A\",0,1)","v":"N/A"},{"$f":"_xlfn.XLOOKUP($E77,'Activity 6'!$B$22:$B$28,'Activity 6'!K$22:K$28,\"N/A\",0,1)","v":"N/A"},{"$f":"_xlfn.XLOOKUP($E77,'Activity 6'!$B$22:$B$28,'Activity 6'!L$22:L$28,\"N/A\",0,1)","v":"N/A"},{"$f":"_xlfn.XLOOKUP($E77,'Activity 6'!$B$22:$B$28,'Activity 6'!M$22:M$28,\"N/A\",0,1)","v":"N/A"},{"$f":"_xlfn.XLOOKUP($E77,'Activity 6'!$B$22:$B$28,'Activity 6'!N$22:N$28,\"N/A\",0,1)","v":"N/A"},{"$f":"_xlfn.XLOOKUP($E77,'Activity 6'!$B$32:$B$38,'Activity 6'!C$32:C$38,\"N/A\",0,1)","v":"N/A"},{"$f":"_xlfn.XLOOKUP($E77,'Activity 6'!$B$32:$B$38,'Activity 6'!D$32:D$38,\"N/A\",0,1)","v":"N/A"},{"$f":"_xlfn.XLOOKUP($E77,'Activity 6'!$B$32:$B$38,'Activity 6'!E$32:E$38,\"N/A\",0,1)","v":"N/A"},{"$f":"_xlfn.XLOOKUP($E77,'Activity 6'!$B$32:$B$38,'Activity 6'!F$32:F$38,\"N/A\",0,1)","v":"N/A"},{"$f":"_xlfn.XLOOKUP($E77,'Activity 6'!$B$32:$B$38,'Activity 6'!G$32:G$38,\"N/A\",0,1)","v":"N/A"},{"$f":"_xlfn.XLOOKUP($E77,'Activity 6'!$B$32:$B$38,'Activity 6'!H$32:H$38,\"N/A\",0,1)","v":"N/A"},{"$f":"_xlfn.XLOOKUP($E77,'Activity 6'!$B$32:$B$38,'Activity 6'!I$32:I$38,\"N/A\",0,1)","v":"N/A"},{"$f":"_xlfn.XLOOKUP($E77,'Activity 6'!$B$32:$B$38,'Activity 6'!J$32:J$38,\"N/A\",0,1)","v":"N/A"},{"$f":"_xlfn.XLOOKUP($E77,'Activity 6'!$B$32:$B$38,'Activity 6'!K$32:K$38,\"N/A\",0,1)","v":"N/A"},{"$f":"_xlfn.XLOOKUP($E77,'Activity 6'!$B$32:$B$38,'Activity 6'!M$32:M$38,\"N/A\",0,1)","v":"N/A"},{"$f":"_xlfn.XLOOKUP($E77,'Activity 7'!$B$7:$B$13,'Activity 7'!$A$7:$A$13,\"No\",0,1)","v":"No"},{"$f":"_xlfn.XLOOKUP($E77,'Activity 7'!$B$7:$B$13,'Activity 7'!M$7:M$13,\"N/A\",0,1)","v":"N/A"},{"$f":"_xlfn.XLOOKUP($E77,'Activity 7'!$B$7:$B$13,'Activity 7'!K$7:K$13,\"N/A\",0,1)","v":"N/A"},{"$f":"_xlfn.XLOOKUP($E77,'Activity 7'!$B$7:$B$13,'Activity 7'!N$7:N$13,\"N/A\",0,1)","v":"N/A"},{"$f":"_xlfn.XLOOKUP($E77,'Activity 7'!$B$7:$B$13,'Activity 7'!O$7:O$13,\"N/A\",0,1)","v":"N/A"},{"$f":"_xlfn.XLOOKUP($E77,'Activity 7'!$B$7:$B$13,'Activity 7'!P$7:P$13,\"N/A\",0,1)","v":"N/A"},{"$f":"_xlfn.XLOOKUP($E77,'Activity 7'!$B$7:$B$13,'Activity 7'!Q$7:Q$13,\"N/A\",0,1)","v":"N/A"},{"$f":"_xlfn.XLOOKUP($E77,'Activity 7'!$B$7:$B$13,'Activity 7'!R$7:R$13,\"N/A\",0,1)","v":"N/A"},{"$f":"_xlfn.XLOOKUP($E77,'Activity 7'!$B$7:$B$13,'Activity 7'!S$7:S$13,\"N/A\",0,1)","v":"N/A"},{"$f":"_xlfn.XLOOKUP($E77,'Activity 7'!$B$7:$B$13,'Activity 7'!T$7:T$13,\"N/A\",0,1)","v":"N/A"},{"$f":"_xlfn.XLOOKUP($E77,'Activity 7'!$B$7:$B$13,'Activity 7'!U$7:U$13,\"N/A\",0,1)","v":"N/A"},{"$f":"_xlfn.XLOOKUP($E77,'Activity 7'!$B$7:$B$13,'Activity 7'!V$7:V$13,\"N/A\",0,1)","v":"N/A"},{"$f":"_xlfn.XLOOKUP($E77,'Activity 7'!$B$17:$B$23,'Activity 7'!E$17:E$23,\"N/A\",0,1)","v":"N/A"},{"$f":"_xlfn.XLOOKUP($E77,'Activity 7'!$B$17:$B$23,'Activity 7'!G$17:G$23,\"N/A\",0,1)","v":"N/A"},{"$f":"_xlfn.XLOOKUP($E77,'Activity 7'!$B$17:$B$23,'Activity 7'!I$17:I$23,\"N/A\",0,1)","v":"N/A"},{"$f":"_xlfn.XLOOKUP($E77,'Activity 7'!$B$17:$B$23,'Activity 7'!J$17:J$23,\"N/A\",0,1)","v":"N/A"},{"$f":"_xlfn.XLOOKUP($E77,'Activity 7'!$B$17:$B$23,'Activity 7'!K$17:K$23,\"N/A\",0,1)","v":"N/A"},{"$f":"_xlfn.XLOOKUP($E77,'Activity 7'!$B$17:$B$23,'Activity 7'!L$17:L$23,\"N/A\",0,1)","v":"N/A"},{"$f":"_xlfn.XLOOKUP($E77,'Activity 7'!$B$17:$B$23,'Activity 7'!M$17:M$23,\"N/A\",0,1)","v":"N/A"},{"$f":"_xlfn.XLOOKUP($E77,'Activity 7'!$B$17:$B$23,'Activity 7'!N$17:N$23,\"N/A\",0,1)","v":"N/A"},{"$f":"_xlfn.XLOOKUP($E77,'Activity 7'!$B$17:$B$23,'Activity 7'!P$17:P$23,\"N/A\",0,1)","v":"N/A"},{"$f":"_xlfn.XLOOKUP($E77,'Activity 8'!$B$7:$B$13,'Activity 8'!A$7:A$13,\"No\",0,1)","v":"No"},{"$f":"_xlfn.XLOOKUP($E77,'Activity 8'!$B$7:$B$13,'Activity 8'!I$7:I$13,\"N/A\",0,1)","v":"N/A"},{"$f":"_xlfn.XLOOKUP($E77,'Activity 8'!$B$7:$B$13,'Activity 8'!J$7:J$13,\"N/A\",0,1)","v":"N/A"},{"$f":"_xlfn.XLOOKUP($E77,'Activity 8'!$B$7:$B$13,'Activity 8'!K$7:K$13,\"N/A\",0,1)","v":"N/A"},{"$f":"_xlfn.XLOOKUP($E77,'Activity 8'!$B$7:$B$13,'Activity 8'!L$7:L$13,\"N/A\",0,1)","v":"N/A"},{"$f":"_xlfn.XLOOKUP($E77,'Activity 8'!$B$7:$B$13,'Activity 8'!M$7:M$13,\"N/A\",0,1)","v":"N/A"},{"$f":"_xlfn.XLOOKUP($E77,'Activity 8'!$B$7:$B$13,'Activity 8'!N$7:N$13,\"N/A\",0,1)","v":"N/A"},{"$f":"_xlfn.XLOOKUP($E77,'Activity 8'!$B$7:$B$13,'Activity 8'!O$7:O$13,\"N/A\",0,1)","v":"N/A"},{"$f":"_xlfn.XLOOKUP($E77,'Activity 8'!$B$7:$B$13,'Activity 8'!P$7:P$13,\"N/A\",0,1)","v":"N/A"},{"$f":"_xlfn.XLOOKUP($E77,'Activity 8'!$B$7:$B$13,'Activity 8'!Q$7:Q$13,\"N/A\",0,1)","v":"N/A"},{"$f":"_xlfn.XLOOKUP($E77,'Activity 8'!$B$7:$B$13,'Activity 8'!R$7:R$13,\"N/A\",0,1)","v":"N/A"},{"$f":"_xlfn.XLOOKUP($E77,'Activity 8'!$B$7:$B$13,'Activity 8'!S$7:S$13,\"N/A\",0,1)","v":"N/A"},{"$f":"_xlfn.XLOOKUP($E77,'Activity 8'!$B$7:$B$13,'Activity 8'!T$7:T$13,\"N/A\",0,1)","v":"N/A"},{"$f":"_xlfn.XLOOKUP($E77,'Activity 8'!$B$7:$B$13,'Activity 8'!U$7:U$13,\"N/A\",0,1)","v":"N/A"},{"$f":"_xlfn.XLOOKUP($E77,'Activity 8'!$B$7:$B$13,'Activity 8'!V$7:V$13,\"N/A\",0,1)","v":"N/A"},{"$f":"_xlfn.XLOOKUP($E77,'Activity 8'!$B$17:$B$23,'Activity 8'!D$17:D$23,\"N/A\",0,1)","v":"N/A"},{"$f":"_xlfn.XLOOKUP($E77,'Activity 8'!$B$17:$B$23,'Activity 8'!E$17:E$23,\"N/A\",0,1)","v":"N/A"},{"$f":"_xlfn.XLOOKUP($E77,'Activity 8'!$B$17:$B$23,'Activity 8'!F$17:F$23,\"N/A\",0,1)","v":"N/A"},{"$f":"_xlfn.XLOOKUP($E77,'Activity 8'!$B$17:$B$23,'Activity 8'!G$17:G$23,\"N/A\",0,1)","v":"N/A"},{"$f":"_xlfn.XLOOKUP($E77,'Activity 8'!$B$17:$B$23,'Activity 8'!H$17:H$23,\"N/A\",0,1)","v":"N/A"},{"$f":"_xlfn.XLOOKUP($E77,'Activity 8'!$B$17:$B$23,'Activity 8'!I$17:I$23,\"N/A\",0,1)","v":"N/A"},{"$f":"_xlfn.XLOOKUP($E77,'Activity 8'!$B$17:$B$23,'Activity 8'!J$17:J$23,\"N/A\",0,1)","v":"N/A"},{"$f":"_xlfn.XLOOKUP($E77,'Activity 8'!$B$17:$B$23,'Activity 8'!K$17:K$23,\"N/A\",0,1)","v":"N/A"},{"$f":"_xlfn.XLOOKUP($E77,'Activity 8'!$B$17:$B$23,'Activity 8'!L$17:L$23,\"N/A\",0,1)","v":"N/A"},{"$f":"_xlfn.XLOOKUP($E77,'Activity 8'!$B$17:$B$23,'Activity 8'!M$17:M$23,\"N/A\",0,1)","v":"N/A"},{"$f":"_xlfn.XLOOKUP($E77,'Activity 8'!$B$17:$B$23,'Activity 8'!N$17:N$23,\"N/A\",0,1)","v":"N/A"},{"$f":"_xlfn.XLOOKUP($E77,'Activity 8'!$B$17:$B$23,'Activity 8'!P$17:P$23,\"N/A\",0,1)","v":"N/A"},{"$f":"_xlfn.XLOOKUP(E77,'Activity 9'!$B$7:$B$13,'Activity 9'!$A$7:$A$13,\"No\",0,1)","v":"No"},{"$f":"_xlfn.XLOOKUP($E77,'Activity 9'!$B$7:$B$13,'Activity 9'!J$7:J$13,\"N/A\",0,1)","v":"N/A"},{"$f":"_xlfn.XLOOKUP($E77,'Activity 9'!$B$7:$B$13,'Activity 9'!K$7:K$13,\"N/A\",0,1)","v":"N/A"},{"$f":"_xlfn.XLOOKUP($E77,'Activity 9'!$B$7:$B$13,'Activity 9'!L$7:L$13,\"N/A\",0,1)","v":"N/A"},{"$f":"_xlfn.XLOOKUP($E77,'Activity 9'!$B$7:$B$13,'Activity 9'!M$7:M$13,\"N/A\",0,1)","v":"N/A"},{"$f":"_xlfn.XLOOKUP($E77,'Activity 9'!$B$7:$B$13,'Activity 9'!N$7:N$13,\"N/A\",0,1)","v":"N/A"},{"$f":"_xlfn.XLOOKUP($E77,'Activity 9'!$B$7:$B$13,'Activity 9'!O$7:O$13,\"N/A\",0,1)","v":"N/A"},{"$f":"_xlfn.XLOOKUP($E77,'Activity 9'!$B$7:$B$13,'Activity 9'!P$7:P$13,\"N/A\",0,1)","v":"N/A"},{"$f":"_xlfn.XLOOKUP($E77,'Activity 9'!$B$7:$B$13,'Activity 9'!Q$7:Q$13,\"N/A\",0,1)","v":"N/A"},{"$f":"_xlfn.XLOOKUP($E77,'Activity 9'!$B$7:$B$13,'Activity 9'!R$7:R$13,\"N/A\",0,1)","v":"N/A"},{"$f":"_xlfn.XLOOKUP($E77,'Activity 9'!$B$7:$B$13,'Activity 9'!S$7:S$13,\"N/A\",0,1)","v":"N/A"},{"$f":"_xlfn.XLOOKUP($E77,'Activity 9'!$B$7:$B$13,'Activity 9'!T$7:T$13,\"N/A\",0,1)","v":"N/A"},{"$f":"_xlfn.XLOOKUP($E77,'Activity 9'!$B$17:$B$23,'Activity 9'!E$17:E$23,\"N/A\",0,1)","v":"N/A"},{"$f":"_xlfn.XLOOKUP($E77,'Activity 9'!$B$17:$B$23,'Activity 9'!F$17:F$23,\"N/A\",0,1)","v":"N/A"},{"$f":"_xlfn.XLOOKUP($E77,'Activity 9'!$B$17:$B$23,'Activity 9'!G$17:G$23,\"N/A\",0,1)","v":"N/A"},{"$f":"_xlfn.XLOOKUP($E77,'Activity 9'!$B$17:$B$23,'Activity 9'!H$17:H$23,\"N/A\",0,1)","v":"N/A"},{"$f":"_xlfn.XLOOKUP($E77,'Activity 9'!$B$17:$B$23,'Activity 9'!I$17:I$23,\"N/A\",0,1)","v":"N/A"},{"$f":"_xlfn.XLOOKUP($E77,'Activity 9'!$B$17:$B$23,'Activity 9'!J$17:J$23,\"N/A\",0,1)","v":"N/A"},{"$f":"_xlfn.XLOOKUP($E77,'Activity 9'!$B$17:$B$23,'Activity 9'!K$17:K$23,\"N/A\",0,1)","v":"N/A"},{"$f":"_xlfn.XLOOKUP($E77,'Activity 9'!$B$17:$B$23,'Activity 9'!L$17:L$23,\"N/A\",0,1)","v":"N/A"},{"$f":"_xlfn.XLOOKUP($E77,'Activity 9'!$B$17:$B$23,'Activity 9'!N$17:N$23,\"N/A\",0,1)","v":"N/A"},{"$f":"_xlfn.XLOOKUP($E77,'Activity 9'!$B$17:$B$23,'Activity 9'!O$17:O$23,\"N/A\",0,1)","v":"N/A"},{"$f":"_xlfn.XLOOKUP($E77,'Activity 9'!$B$17:$B$23,'Activity 9'!Q$17:Q$23,\"N/A\",0,1)","v":"N/A"},{"$f":"_xlfn.XLOOKUP($E77,'Activity 10'!$B$7:$B$13,'Activity 10'!A$7:A$13,\"No\",0,1)","v":"No"},{"$f":"_xlfn.XLOOKUP($E77,'Activity 10'!$B$7:$B$13,'Activity 10'!J$7:J$13,\"N/A\",0,1)","v":"N/A"},{"$f":"_xlfn.XLOOKUP($E77,'Activity 10'!$B$7:$B$13,'Activity 10'!K$7:K$13,\"N/A\",0,1)","v":"N/A"},{"$f":"_xlfn.XLOOKUP($E77,'Activity 10'!$B$7:$B$13,'Activity 10'!L$7:L$13,\"N/A\",0,1)","v":"N/A"},{"$f":"_xlfn.XLOOKUP($E77,'Activity 10'!$B$7:$B$13,'Activity 10'!M$7:M$13,\"N/A\",0,1)","v":"N/A"},{"$f":"_xlfn.XLOOKUP($E77,'Activity 10'!$B$7:$B$13,'Activity 10'!N$7:N$13,\"N/A\",0,1)","v":"N/A"},{"$f":"_xlfn.XLOOKUP($E77,'Activity 10'!$B$7:$B$13,'Activity 10'!O$7:O$13,\"N/A\",0,1)","v":"N/A"},{"$f":"_xlfn.XLOOKUP($E77,'Activity 10'!$B$7:$B$13,'Activity 10'!P$7:P$13,\"N/A\",0,1)","v":"N/A"},{"$f":"_xlfn.XLOOKUP($E77,'Activity 10'!$B$7:$B$13,'Activity 10'!Q$7:Q$13,\"N/A\",0,1)","v":"N/A"},{"$f":"_xlfn.XLOOKUP($E77,'Activity 10'!$B$7:$B$13,'Activity 10'!R$7:R$13,\"N/A\",0,1)","v":"N/A"},{"$f":"_xlfn.XLOOKUP($E77,'Activity 10'!$B$7:$B$13,'Activity 10'!S$7:S$13,\"N/A\",0,1)","v":"N/A"},{"$f":"_xlfn.XLOOKUP($E77,'Activity 10'!$B$7:$B$13,'Activity 10'!T$7:T$13,\"N/A\",0,1)","v":"N/A"},{"$f":"_xlfn.XLOOKUP($E77,'Activity 10'!$B$7:$B$13,'Activity 10'!U$7:U$13,\"N/A\",0,1)","v":"N/A"},{"$f":"_xlfn.XLOOKUP($E77,'Activity 10'!$B$7:$B$13,'Activity 10'!V$7:V$13,\"N/A\",0,1)","v":"N/A"},{"$f":"_xlfn.XLOOKUP($E77,'Activity 10'!$B$17:$B$23,'Activity 10'!E$17:E$23,\"N/A\",0,1)","v":"N/A"},{"$f":"_xlfn.XLOOKUP($E77,'Activity 10'!$B$17:$B$23,'Activity 10'!F$17:F$23,\"N/A\",0,1)","v":"N/A"},{"$f":"_xlfn.XLOOKUP($E77,'Activity 10'!$B$17:$B$23,'Activity 10'!G$17:G$23,\"N/A\",0,1)","v":"N/A"},{"$f":"_xlfn.XLOOKUP($E77,'Activity 10'!$B$17:$B$23,'Activity 10'!H$17:H$23,\"N/A\",0,1)","v":"N/A"},{"$f":"_xlfn.XLOOKUP($E77,'Activity 10'!$B$17:$B$23,'Activity 10'!I$17:I$23,\"N/A\",0,1)","v":"N/A"},{"$f":"_xlfn.XLOOKUP($E77,'Activity 10'!$B$17:$B$23,'Activity 10'!J$17:J$23,\"N/A\",0,1)","v":"N/A"},{"$f":"_xlfn.XLOOKUP($E77,'Activity 10'!$B$17:$B$23,'Activity 10'!K$17:K$23,\"N/A\",0,1)","v":"N/A"},{"$f":"_xlfn.XLOOKUP($E77,'Activity 10'!$B$17:$B$23,'Activity 10'!L$17:L$23,\"N/A\",0,1)","v":"N/A"},{"$f":"_xlfn.XLOOKUP($E77,'Activity 10'!$B$17:$B$23,'Activity 10'!M$17:M$23,\"N/A\",0,1)","v":"N/A"},{"$f":"_xlfn.XLOOKUP($E77,'Activity 10'!$B$17:$B$23,'Activity 10'!N$17:N$23,\"N/A\",0,1)","v":"N/A"},{"$f":"_xlfn.XLOOKUP($E77,'Activity 10'!$B$17:$B$23,'Activity 10'!P$17:P$23,\"N/A\",0,1)","v":"N/A"},{"$f":"_xlfn.XLOOKUP($E77,'Competitive Activity 1'!B$7:B$13,'Competitive Activity 1'!A$7:A$13,\"No\",0,1)","v":"No"},{"$f":"_xlfn.XLOOKUP($E77,'Competitive Activity 1'!$B$7:$B$13,'Competitive Activity 1'!H$7:H$13,\"N/A\",0,1)","v":"N/A"},{"$f":"_xlfn.XLOOKUP($E77,'Competitive Activity 1'!$B$7:$B$13,'Competitive Activity 1'!I$7:I$13,\"N/A\",0,1)","v":"N/A"},{"$f":"_xlfn.XLOOKUP($E77,'Competitive Activity 1'!$B$7:$B$13,'Competitive Activity 1'!J$7:J$13,\"N/A\",0,1)","v":"N/A"},{"$f":"_xlfn.XLOOKUP($E77,'Competitive Activity 1'!$B$7:$B$13,'Competitive Activity 1'!K$7:K$13,\"N/A\",0,1)","v":"N/A"},{"$f":"_xlfn.XLOOKUP($E77,'Competitive Activity 1'!$B$7:$B$13,'Competitive Activity 1'!L$7:L$13,\"N/A\",0,1)","v":"N/A"},{"$f":"_xlfn.XLOOKUP($E77,'Competitive Activity 1'!$B$7:$B$13,'Competitive Activity 1'!M$7:M$13,\"N/A\",0,1)","v":"N/A"},{"$f":"_xlfn.XLOOKUP($E77,'Competitive Activity 1'!$B$7:$B$13,'Competitive Activity 1'!N$7:N$13,\"N/A\",0,1)","v":"N/A"},{"$f":"_xlfn.XLOOKUP($E77,'Competitive Activity 1'!$B$7:$B$13,'Competitive Activity 1'!O$7:O$13,\"N/A\",0,1)","v":"N/A"},{"$f":"_xlfn.XLOOKUP($E77,'Competitive Activity 1'!$B$7:$B$13,'Competitive Activity 1'!P$7:P$13,\"N/A\",0,1)","v":"N/A"},{"$f":"_xlfn.XLOOKUP($E77,'Competitive Activity 1'!$B$7:$B$13,'Competitive Activity 1'!Q$7:Q$13,\"N/A\",0,1)","v":"N/A"},{"$f":"_xlfn.XLOOKUP($E77,'Competitive Activity 1'!$B$7:$B$13,'Competitive Activity 1'!R$7:R$13,\"N/A\",0,1)","v":"N/A"},{"$f":"_xlfn.XLOOKUP($E77,'Competitive Activity 1'!$B$7:$B$13,'Competitive Activity 1'!S$7:S$13,\"N/A\",0,1)","v":"N/A"},{"$f":"_xlfn.XLOOKUP($E77,'Competitive Activity 1'!$B$7:$B$13,'Competitive Activity 1'!T$7:T$13,\"N/A\",0,1)","v":"N/A"},{"$f":"_xlfn.XLOOKUP($E77,'Competitive Activity 1'!$B$7:$B$13,'Competitive Activity 1'!U$7:U$13,\"N/A\",0,1)","v":"N/A"},{"$f":"_xlfn.XLOOKUP($E77,'Competitive Activity 1'!$B$17:$B$23,'Competitive Activity 1'!C$17:C$23,\"N/A\",0,1)","v":"N/A"},{"$f":"_xlfn.XLOOKUP($E77,'Competitive Activity 1'!$B$17:$B$23,'Competitive Activity 1'!D$17:D$23,\"N/A\",0,1)","v":"N/A"},{"$f":"_xlfn.XLOOKUP($E77,'Competitive Activity 1'!$B$17:$B$23,'Competitive Activity 1'!E$17:E$23,\"N/A\",0,1)","v":"N/A"},{"$f":"_xlfn.XLOOKUP($E77,'Competitive Activity 1'!$B$17:$B$23,'Competitive Activity 1'!F$17:F$23,\"N/A\",0,1)","v":"N/A"},{"$f":"_xlfn.XLOOKUP($E77,'Competitive Activity 1'!$B$17:$B$23,'Competitive Activity 1'!G$17:G$23,\"N/A\",0,1)","v":"N/A"},{"$f":"_xlfn.XLOOKUP($E77,'Competitive Activity 1'!$B$17:$B$23,'Competitive Activity 1'!H$17:H$23,\"N/A\",0,1)","v":"N/A"},{"$f":"_xlfn.XLOOKUP($E77,'Competitive Activity 1'!$B$17:$B$23,'Competitive Activity 1'!I$17:I$23,\"N/A\",0,1)","v":"N/A"},{"$f":"_xlfn.XLOOKUP($E77,'Competitive Activity 1'!$B$17:$B$23,'Competitive Activity 1'!J$17:J$23,\"N/A\",0,1)","v":"N/A"},{"$f":"_xlfn.XLOOKUP($E77,'Competitive Activity 1'!$B$17:$B$23,'Competitive Activity 1'!K$17:K$23,\"N/A\",0,1)","v":"N/A"},{"$f":"_xlfn.XLOOKUP($E77,'Competitive Activity 1'!$B$17:$B$23,'Competitive Activity 1'!M$17:M$23,\"N/A\",0,1)","v":"N/A"},{"$f":"_xlfn.XLOOKUP($E77,'Competitive Activity 1'!$B$17:$B$23,'Competitive Activity 1'!N$17:N$23,\"N/A\",0,1)","v":"N/A"},{"$f":"_xlfn.XLOOKUP($E77,'Competitive Activity 1'!$B$17:$B$23,'Competitive Activity 1'!P$17:P$23,\"N/A\",0,1)","v":"N/A"},{"$f":"_xlfn.XLOOKUP($E77,'Competitive Activity 2'!$B$7:$B$13,'Competitive Activity 2'!A$7:A$13,\"No\",0)","v":"No"},{"$f":"_xlfn.XLOOKUP($E77,'Competitive Activity 2'!$B$7:$B$13,'Competitive Activity 2'!L$7:L$13,\"N/A\",0)","v":"N/A"},{"$f":"_xlfn.XLOOKUP($E77,'Competitive Activity 2'!$B$7:$B$13,'Competitive Activity 2'!M$7:M$13,\"N/A\",0)","v":"N/A"},{"$f":"_xlfn.XLOOKUP($E77,'Competitive Activity 2'!$B$7:$B$13,'Competitive Activity 2'!N$7:N$13,\"N/A\",0)","v":"N/A"},{"$f":"_xlfn.XLOOKUP($E77,'Competitive Activity 2'!$B$7:$B$13,'Competitive Activity 2'!O$7:O$13,\"N/A\",0)","v":"N/A"},{"$f":"_xlfn.XLOOKUP($E77,'Competitive Activity 2'!$B$7:$B$13,'Competitive Activity 2'!P$7:P$13,\"N/A\",0)","v":"N/A"},{"$f":"_xlfn.XLOOKUP($E77,'Competitive Activity 2'!$B$7:$B$13,'Competitive Activity 2'!Q$7:Q$13,\"N/A\",0)","v":"N/A"},{"$f":"_xlfn.XLOOKUP($E77,'Competitive Activity 2'!$B$7:$B$13,'Competitive Activity 2'!R$7:R$13,\"N/A\",0)","v":"N/A"},{"$f":"_xlfn.XLOOKUP($E77,'Competitive Activity 2'!$B$7:$B$13,'Competitive Activity 2'!S$7:S$13,\"N/A\",0)","v":"N/A"},{"$f":"_xlfn.XLOOKUP($E77,'Competitive Activity 2'!$B$7:$B$13,'Competitive Activity 2'!T$7:T$13,\"N/A\",0)","v":"N/A"},{"$f":"_xlfn.XLOOKUP($E77,'Competitive Activity 2'!$B$7:$B$13,'Competitive Activity 2'!U$7:U$13,\"N/A\",0)","v":"N/A"},{"$f":"_xlfn.XLOOKUP($E77,'Competitive Activity 2'!$B$17:$B$23,'Competitive Activity 2'!D$17:D$23,\"N/A\",0)","v":"N/A"},{"$f":"_xlfn.XLOOKUP($E77,'Competitive Activity 2'!$B$17:$B$23,'Competitive Activity 2'!E$17:E$23,\"N/A\",0)","v":"N/A"},{"$f":"_xlfn.XLOOKUP($E77,'Competitive Activity 2'!$B$17:$B$23,'Competitive Activity 2'!F$17:F$23,\"N/A\",0)","v":"N/A"},{"$f":"_xlfn.XLOOKUP($E77,'Competitive Activity 2'!$B$17:$B$23,'Competitive Activity 2'!G$17:G$23,\"N/A\",0)","v":"N/A"},{"$f":"_xlfn.XLOOKUP($E77,'Competitive Activity 2'!$B$17:$B$23,'Competitive Activity 2'!H$17:H$23,\"N/A\",0)","v":"N/A"},{"$f":"_xlfn.XLOOKUP($E77,'Competitive Activity 2'!$B$17:$B$23,'Competitive Activity 2'!I$17:I$23,\"N/A\",0)","v":"N/A"},{"$f":"_xlfn.XLOOKUP($E77,'Competitive Activity 2'!$B$17:$B$23,'Competitive Activity 2'!J$17:J$23,\"N/A\",0)","v":"N/A"},{"$f":"_xlfn.XLOOKUP($E77,'Competitive Activity 2'!$B$17:$B$23,'Competitive Activity 2'!K$17:K$23,\"N/A\",0)","v":"N/A"},{"$f":"_xlfn.XLOOKUP($E77,'Competitive Activity 2'!$B$17:$B$23,'Competitive Activity 2'!L$17:L$23,\"N/A\",0)","v":"N/A"},{"$f":"_xlfn.XLOOKUP($E77,'Competitive Activity 2'!$B$17:$B$23,'Competitive Activity 2'!M$17:M$23,\"N/A\",0)","v":"N/A"},{"$f":"_xlfn.XLOOKUP($E77,'Competitive Activity 2'!$B$17:$B$23,'Competitive Activity 2'!N$17:N$23,\"N/A\",0)","v":"N/A"},{"$f":"_xlfn.XLOOKUP($E77,'Competitive Activity 2'!$B$27:$B$33,'Competitive Activity 2'!D$27:D$33,\"N/A\",0)","v":"N/A"},{"$f":"_xlfn.XLOOKUP($E77,'Competitive Activity 2'!$B$27:$B$33,'Competitive Activity 2'!E$27:E$33,\"N/A\",0)","v":"N/A"},{"$f":"_xlfn.XLOOKUP($E77,'Competitive Activity 2'!$B$27:$B$33,'Competitive Activity 2'!F$27:F$33,\"N/A\",0)","v":"N/A"},{"$f":"_xlfn.XLOOKUP($E77,'Competitive Activity 2'!$B$27:$B$33,'Competitive Activity 2'!G$27:G$33,\"N/A\",0)","v":"N/A"},{"$f":"_xlfn.XLOOKUP($E77,'Competitive Activity 2'!$B$27:$B$33,'Competitive Activity 2'!H$27:H$33,\"N/A\",0)","v":"N/A"},{"$f":"_xlfn.XLOOKUP($E77,'Competitive Activity 2'!$B$27:$B$33,'Competitive Activity 2'!I$27:I$33,\"N/A\",0)","v":"N/A"},{"$f":"_xlfn.XLOOKUP($E77,'Competitive Activity 2'!$B$27:$B$33,'Competitive Activity 2'!J$27:J$33,\"N/A\",0)","v":"N/A"},{"$f":"_xlfn.XLOOKUP($E77,'Competitive Activity 2'!$B$27:$B$33,'Competitive Activity 2'!K$27:K$33,\"N/A\",0)","v":"N/A"},{"$f":"_xlfn.XLOOKUP($E77,'Competitive Activity 2'!$B$27:$B$33,'Competitive Activity 2'!M$27:M$33,\"N/A\",0)","v":"N/A"}]
[{"$f":"'1-Cover Sheet'!$C$8","v":"Select One"},{"$f":"'1-Cover Sheet'!$F$8","v":"Select One"},{"$f":"'Summary Sheet'!$D$8","v":0},{"$f":"'Summary Sheet'!$D$10","v":0},{"$f":"'Drop Down Box'!B242","v":0},{"$f":"'Drop Down Box'!C242","v":0},{"$f":"'Drop Down Box'!D242","v":"Select One"},{"$f":"_xlfn.XLOOKUP(E78,'Drop Down Box'!$B$166:$B$249,'Drop Down Box'!$A$166:$A$249,\"Unknown\",0)","v":"Activity 1"},{"$f":"_xlfn.XLOOKUP($E78,'Competitive Activity 1'!$B$17:$B$23,'Competitive Activity 1'!$L$17:$L$23,\"N/A\",0)","v":"N/A"},{"$f":"_xlfn.XLOOKUP($E78,'Competitive Activity 1'!$B$17:$B$23,'Competitive Activity 1'!$O$17:$O$23,\"N/A\",0)","v":"N/A"},{"$f":"_xlfn.XLOOKUP($E78,'Competitive Activity 1'!$B$7:$B$13,'Competitive Activity 1'!E$7:E$13,\"N/A\",0)","v":"N/A"},{"$f":"_xlfn.XLOOKUP($E78,'Competitive Activity 1'!$B$7:$B$13,'Competitive Activity 1'!F$7:F$13,\"N/A\",0)","v":"N/A"},{"$f":"_xlfn.XLOOKUP($E78,'Competitive Activity 1'!$B$7:$B$13,'Competitive Activity 1'!G$7:G$13,\"N/A\",0)","v":"N/A"},{"$f":"_xlfn.XLOOKUP($E78,'Activity 1'!$B$7:$B$13,'Activity 1'!$A$7:$A$13,\"No\",0,1)","v":"No"},{"$f":"_xlfn.XLOOKUP($E78,'Activity 1'!$B$7:$B$13,'Activity 1'!$H$7:$H$13,\"N/A\",0,1)","v":"N/A"},{"$f":"_xlfn.XLOOKUP($E78,'Activity 1'!$B$7:$B$13,'Activity 1'!I$7:I$13,\"N/A\",0,1)","v":"N/A"},{"$f":"_xlfn.XLOOKUP($E78,'Activity 1'!$B$7:$B$13,'Activity 1'!J$7:J$13,\"N/A\",0,1)","v":"N/A"},{"$f":"_xlfn.XLOOKUP($E78,'Activity 1'!$B$7:$B$13,'Activity 1'!K$7:K$13,\"N/A\",0,1)","v":"N/A"},{"$f":"_xlfn.XLOOKUP($E78,'Activity 1'!$B$7:$B$13,'Activity 1'!L$7:L$13,\"N/A\",0,1)","v":"N/A"},{"$f":"_xlfn.XLOOKUP($E78,'Activity 1'!$B$7:$B$13,'Activity 1'!M$7:M$13,\"N/A\",0,1)","v":"N/A"},{"$f":"_xlfn.XLOOKUP($E78,'Activity 1'!$B$7:$B$13,'Activity 1'!N$7:N$13,\"N/A\",0,1)","v":"N/A"},0,{"$f":"_xlfn.XLOOKUP($E78,'Activity 1'!$B$7:$B$13,'Activity 1'!O$7:O$13,\"N/A\",0,1)","v":"N/A"},{"$f":"_xlfn.XLOOKUP($E78,'Activity 1'!$B$7:$B$13,'Activity 1'!P$7:P$13,\"N/A\",0,1)","v":"N/A"},{"$f":"_xlfn.XLOOKUP($E78,'Activity 1'!$B$7:$B$13,'Activity 1'!Q$7:Q$13,\"N/A\",0,1)","v":"N/A"},{"$f":"_xlfn.XLOOKUP($E78,'Activity 1'!$B$7:$B$13,'Activity 1'!R$7:R$13,\"N/A\",0,1)","v":"N/A"},{"$f":"_xlfn.XLOOKUP($E78,'Activity 1'!$B$7:$B$13,'Activity 1'!S$7:S$13,\"N/A\",0,1)","v":"N/A"},{"$f":"_xlfn.XLOOKUP($E78,'Activity 1'!$B$7:$B$13,'Activity 1'!T$7:T$13,\"N/A\",0,1)","v":"N/A"},{"$f":"_xlfn.XLOOKUP($E78,'Activity 1'!$B$7:$B$13,'Activity 1'!U$7:U$13,\"N/A\",0,1)","v":"N/A"},{"$f":"_xlfn.XLOOKUP($E78,'Activity 1'!$B$7:$B$13,'Activity 1'!V$7:V$13,\"N/A\",0,1)","v":"N/A"},{"$f":"_xlfn.XLOOKUP($E78,'Activity 1'!$B$17:$B$23,'Activity 1'!C$17:C$23,\"N/A\",0,1)","v":"N/A"},{"$f":"_xlfn.XLOOKUP($E78,'Activity 1'!$B$17:$B$23,'Activity 1'!D$17:D$23,\"N/A\",0,1)","v":"N/A"},{"$f":"_xlfn.XLOOKUP($E78,'Activity 1'!$B$17:$B$23,'Activity 1'!E$17:E$23,\"N/A\",0,1)","v":"N/A"},{"$f":"_xlfn.XLOOKUP($E78,'Activity 1'!$B$17:$B$23,'Activity 1'!F$17:F$23,\"N/A\",0,1)","v":"N/A"},{"$f":"_xlfn.XLOOKUP($E78,'Activity 1'!$B$17:$B$23,'Activity 1'!G$17:G$23,\"N/A\",0,1)","v":"N/A"},{"$f":"_xlfn.XLOOKUP($E78,'Activity 1'!$B$17:$B$23,'Activity 1'!H$17:H$23,\"N/A\",0,1)","v":"N/A"},{"$f":"_xlfn.XLOOKUP($E78,'Activity 1'!$B$17:$B$23,'Activity 1'!I$17:I$23,\"N/A\",0,1)","v":"N/A"},{"$f":"_xlfn.XLOOKUP($E78,'Activity 1'!$B$17:$B$23,'Activity 1'!J$17:J$23,\"N/A\",0,1)","v":"N/A"},{"$f":"_xlfn.XLOOKUP($E78,'Activity 1'!$B$17:$B$23,'Activity 1'!K$17:K$23,\"N/A\",0,1)","v":"N/A"},{"$f":"_xlfn.XLOOKUP($E78,'Activity 1'!$B$17:$B$23,'Activity 1'!L$17:L$23,\"N/A\",0,1)","v":"N/A"},{"$f":"_xlfn.XLOOKUP($E78,'Activity 1'!$B$17:$B$23,'Activity 1'!M$17:M$23,\"N/A\",0,1)","v":"N/A"},{"$f":"_xlfn.XLOOKUP($E78,'Activity 1'!$B$17:$B$23,'Activity 1'!O$17:O$23,\"N/A\",0,1)","v":"N/A"},{"$f":"_xlfn.XLOOKUP($E78,'Activity 1'!$B$17:$B$23,'Activity 1'!Q$17:Q$23,\"N/A\",0,1)","v":"N/A"},{"$f":"_xlfn.XLOOKUP($E78,'Activity 2'!$B$7:$B$13,'Activity 2'!$A$7:$A$13,\"No\",0,1)","v":"No"},{"$f":"_xlfn.XLOOKUP($E78,'Activity 2'!B$7:B$13,'Activity 2'!H$7:H$13,\"N/A\",0)","v":"N/A"},{"$f":"_xlfn.XLOOKUP($E78,'Activity 2'!C$7:C$13,'Activity 2'!I$7:I$13,\"N/A\",0)","v":"N/A"},{"$f":"_xlfn.XLOOKUP($E78,'Activity 2'!D$7:D$13,'Activity 2'!J$7:J$13,\"N/A\",0)","v":"N/A"},{"$f":"_xlfn.XLOOKUP($E78,'Activity 2'!E$7:E$13,'Activity 2'!K$7:K$13,\"N/A\",0)","v":"N/A"},{"$f":"_xlfn.XLOOKUP($E78,'Activity 2'!F$7:F$13,'Activity 2'!L$7:L$13,\"N/A\",0)","v":"N/A"},{"$f":"_xlfn.XLOOKUP($E78,'Activity 2'!G$7:G$13,'Activity 2'!M$7:M$13,\"N/A\",0)","v":"N/A"},{"$f":"_xlfn.XLOOKUP($E78,'Activity 2'!H$7:H$13,'Activity 2'!N$7:N$13,\"N/A\",0)","v":"N/A"},{"$f":"_xlfn.XLOOKUP($E78,'Activity 2'!I$7:I$13,'Activity 2'!O$7:O$13,\"N/A\",0)","v":"N/A"},{"$f":"_xlfn.XLOOKUP($E78,'Activity 2'!J$7:J$13,'Activity 2'!P$7:P$13,\"N/A\",0)","v":"N/A"},{"$f":"_xlfn.XLOOKUP($E78,'Activity 2'!K$7:K$13,'Activity 2'!Q$7:Q$13,\"N/A\",0)","v":"N/A"},{"$f":"_xlfn.XLOOKUP($E78,'Activity 2'!L$7:L$13,'Activity 2'!R$7:R$13,\"N/A\",0)","v":"N/A"},{"$f":"_xlfn.XLOOKUP($E78,'Activity 2'!M$7:M$13,'Activity 2'!S$7:S$13,\"N/A\",0)","v":"N/A"},{"$f":"_xlfn.XLOOKUP($E78,'Activity 2'!N$7:N$13,'Activity 2'!T$7:T$13,\"N/A\",0)","v":"N/A"},{"$f":"_xlfn.XLOOKUP($E78,'Activity 2'!O$7:O$13,'Activity 2'!U$7:U$13,\"N/A\",0)","v":"N/A"},{"$f":"_xlfn.XLOOKUP($E78,'Activity 2'!P$7:P$13,'Activity 2'!V$7:V$13,\"N/A\",0)","v":"N/A"},{"$f":"_xlfn.XLOOKUP($E78,'Activity 2'!$B$17:$B$23,'Activity 2'!C$17:C$23,\"N/A\",0,1)","v":"N/A"},{"$f":"_xlfn.XLOOKUP($E78,'Activity 2'!$B$17:$B$23,'Activity 2'!D$17:D$23,\"N/A\",0,1)","v":"N/A"},{"$f":"_xlfn.XLOOKUP($E78,'Activity 2'!$B$17:$B$23,'Activity 2'!E$17:E$23,\"N/A\",0,1)","v":"N/A"},{"$f":"_xlfn.XLOOKUP($E78,'Activity 2'!$B$17:$B$23,'Activity 2'!F$17:F$23,\"N/A\",0,1)","v":"N/A"},{"$f":"_xlfn.XLOOKUP($E78,'Activity 2'!$B$17:$B$23,'Activity 2'!G$17:G$23,\"N/A\",0,1)","v":"N/A"},{"$f":"_xlfn.XLOOKUP($E78,'Activity 2'!$B$17:$B$23,'Activity 2'!H$17:H$23,\"N/A\",0,1)","v":"N/A"},{"$f":"_xlfn.XLOOKUP($E78,'Activity 2'!$B$17:$B$23,'Activity 2'!I$17:I$23,\"N/A\",0,1)","v":"N/A"},{"$f":"_xlfn.XLOOKUP($E78,'Activity 2'!$B$17:$B$23,'Activity 2'!J$17:J$23,\"N/A\",0,1)","v":"N/A"},{"$f":"_xlfn.XLOOKUP($E78,'Activity 2'!$B$17:$B$23,'Activity 2'!K$17:K$23,\"N/A\",0,1)","v":"N/A"},{"$f":"_xlfn.XLOOKUP($E78,'Activity 2'!$B$17:$B$23,'Activity 2'!L$17:L$23,\"N/A\",0,1)","v":"N/A"},{"$f":"_xlfn.XLOOKUP($E78,'Activity 2'!$B$17:$B$23,'Activity 2'!M$17:M$23,\"N/A\",0,1)","v":"N/A"},{"$f":"_xlfn.XLOOKUP($E78,'Activity 2'!$B$17:$B$23,'Activity 2'!O$17:O$23,\"N/A\",0,1)","v":"N/A"},{"$f":"_xlfn.XLOOKUP($E78,'Activity 2'!$B$17:$B$23,'Activity 2'!Q$17:Q$23,\"N/A\",0,1)","v":"N/A"},null,{"$f":"_xlfn.XLOOKUP($E78,'Activity 3'!$B$8:$B$14,'Activity 3'!K$8:K$14,\"N/A\",0,1)","v":"N/A"},{"$f":"_xlfn.XLOOKUP($E78,'Activity 3'!$B$8:$B$14,'Activity 3'!L$8:L$14,\"N/A\",0,1)","v":"N/A"},{"$f":"_xlfn.XLOOKUP($E78,'Activity 3'!$B$8:$B$14,'Activity 3'!M$8:M$14,\"N/A\",0,1)","v":"N/A"},{"$f":"_xlfn.XLOOKUP($E78,'Activity 3'!$B$8:$B$14,'Activity 3'!N$8:N$14,\"N/A\",0,1)","v":"N/A"},{"$f":"_xlfn.XLOOKUP($E78,'Activity 3'!$B$8:$B$14,'Activity 3'!O$8:O$14,\"N/A\",0,1)","v":"N/A"},{"$f":"_xlfn.XLOOKUP($E78,'Activity 3'!$B$8:$B$14,'Activity 3'!R$8:R$14,\"N/A\",0,1)","v":"N/A"},{"$f":"_xlfn.XLOOKUP($E78,'Activity 4'!$B$8:$B$14,'Activity 4'!$A$8:$A$14,\"No\",0,1)","v":"No"},{"$f":"_xlfn.XLOOKUP($E78,'Activity 4'!$B$8:$B$14,'Activity 4'!L$8:L$14,\"N/A\",0,1)","v":"N/A"},{"$f":"_xlfn.XLOOKUP($E78,'Activity 4'!$B$8:$B$14,'Activity 4'!I$8:I$14,\"N/A\",0,1)","v":"N/A"},{"$f":"_xlfn.XLOOKUP($E78,'Activity 4'!$B$8:$B$14,'Activity 4'!M$8:M$14,\"N/A\",0,1)","v":"N/A"},{"$f":"_xlfn.XLOOKUP($E78,'Activity 5'!$B$8:$B$14,'Activity 5'!$A$8:$A$14,\"No\",0,1)","v":"No"},{"$f":"_xlfn.XLOOKUP($E78,'Activity 5'!$B$8:$B$14,'Activity 5'!J$8:J$14,\"N/A\",0,1)","v":"N/A"},{"$f":"_xlfn.XLOOKUP($E78,'Activity 5'!$B$8:$B$14,'Activity 5'!K$8:K$14,\"N/A\",0,1)","v":"N/A"},{"$f":"_xlfn.XLOOKUP($E78,'Activity 5'!$B$8:$B$14,'Activity 5'!N$8:N$14,\"N/A\",0,1)","v":"N/A"},{"$f":"_xlfn.XLOOKUP($E78,'Activity 5'!$B$8:$B$14,'Activity 5'!O$8:O$14,\"N/A\",0,1)","v":"N/A"},{"$f":"_xlfn.XLOOKUP($E78,'Activity 5'!$B$8:$B$14,'Activity 5'!P$8:P$14,\"N/A\",0,1)","v":"N/A"},{"$f":"_xlfn.XLOOKUP($E78,'Activity 5'!$B$8:$B$14,'Activity 5'!Q$8:Q$14,\"N/A\",0,1)","v":"N/A"},{"$f":"_xlfn.XLOOKUP($E78,'Activity 5'!$B$8:$B$14,'Activity 5'!R$8:R$14,\"N/A\",0,1)","v":"N/A"},{"$f":"_xlfn.XLOOKUP($E78,'Activity 6'!$B$7:$B$13,'Activity 6'!A$7:A$13,\"No\",0,1)","v":"No"},{"$f":"_xlfn.XLOOKUP($E78,'Activity 6'!$B$7:$B$13,'Activity 6'!K$7:K$13,\"N/A\",0,1)","v":"N/A"},{"$f":"_xlfn.XLOOKUP($E78,'Activity 6'!$B$7:$B$13,'Activity 6'!L$7:L$13,\"N/A\",0,1)","v":"N/A"},{"$f":"_xlfn.XLOOKUP($E78,'Activity 6'!$B$7:$B$13,'Activity 6'!M$7:M$13,\"N/A\",0,1)","v":"N/A"},{"$f":"_xlfn.XLOOKUP($E78,'Activity 6'!$B$7:$B$13,'Activity 6'!N$7:N$13,\"N/A\",0,1)","v":"N/A"},{"$f":"_xlfn.XLOOKUP($E78,'Activity 6'!$B$7:$B$13,'Activity 6'!O$7:O$13,\"N/A\",0,1)","v":"N/A"},{"$f":"_xlfn.XLOOKUP($E78,'Activity 6'!$B$7:$B$13,'Activity 6'!P$7:P$13,\"N/A\",0,1)","v":"N/A"},{"$f":"_xlfn.XLOOKUP($E78,'Activity 6'!$B$7:$B$13,'Activity 6'!Q$7:Q$13,\"N/A\",0,1)","v":"N/A"},{"$f":"_xlfn.XLOOKUP($E78,'Activity 6'!$B$7:$B$13,'Activity 6'!R$7:R$13,\"N/A\",0,1)","v":"N/A"},{"$f":"_xlfn.XLOOKUP($E78,'Activity 6'!$B$7:$B$13,'Activity 6'!S$7:S$13,\"N/A\",0,1)","v":"N/A"},{"$f":"_xlfn.XLOOKUP($E78,'Activity 6'!$B$7:$B$13,'Activity 6'!T$7:T$13,\"N/A\",0,1)","v":"N/A"},{"$f":"_xlfn.XLOOKUP($E78,'Activity 6'!$B$7:$B$13,'Activity 6'!U$7:U$13,\"N/A\",0,1)","v":"N/A"},{"$f":"_xlfn.XLOOKUP($E78,'Activity 6'!$B$22:$B$28,'Activity 6'!C$22:C$28,\"N/A\",0,1)","v":"N/A"},{"$f":"_xlfn.XLOOKUP($E78,'Activity 6'!$B$22:$B$28,'Activity 6'!D$22:D$28,\"N/A\",0,1)","v":"N/A"},{"$f":"_xlfn.XLOOKUP($E78,'Activity 6'!$B$22:$B$28,'Activity 6'!E$22:E$28,\"N/A\",0,1)","v":"N/A"},{"$f":"_xlfn.XLOOKUP($E78,'Activity 6'!$B$22:$B$28,'Activity 6'!F$22:F$28,\"N/A\",0,1)","v":"N/A"},{"$f":"_xlfn.XLOOKUP($E78,'Activity 6'!$B$22:$B$28,'Activity 6'!G$22:G$28,\"N/A\",0,1)","v":"N/A"},{"$f":"_xlfn.XLOOKUP($E78,'Activity 6'!$B$22:$B$28,'Activity 6'!H$22:H$28,\"N/A\",0,1)","v":"N/A"},{"$f":"_xlfn.XLOOKUP($E78,'Activity 6'!$B$22:$B$28,'Activity 6'!I$22:I$28,\"N/A\",0,1)","v":"N/A"},{"$f":"_xlfn.XLOOKUP($E78,'Activity 6'!$B$22:$B$28,'Activity 6'!J$22:J$28,\"N/A\",0,1)","v":"N/A"},{"$f":"_xlfn.XLOOKUP($E78,'Activity 6'!$B$22:$B$28,'Activity 6'!K$22:K$28,\"N/A\",0,1)","v":"N/A"},{"$f":"_xlfn.XLOOKUP($E78,'Activity 6'!$B$22:$B$28,'Activity 6'!L$22:L$28,\"N/A\",0,1)","v":"N/A"},{"$f":"_xlfn.XLOOKUP($E78,'Activity 6'!$B$22:$B$28,'Activity 6'!M$22:M$28,\"N/A\",0,1)","v":"N/A"},{"$f":"_xlfn.XLOOKUP($E78,'Activity 6'!$B$22:$B$28,'Activity 6'!N$22:N$28,\"N/A\",0,1)","v":"N/A"},{"$f":"_xlfn.XLOOKUP($E78,'Activity 6'!$B$32:$B$38,'Activity 6'!C$32:C$38,\"N/A\",0,1)","v":"N/A"},{"$f":"_xlfn.XLOOKUP($E78,'Activity 6'!$B$32:$B$38,'Activity 6'!D$32:D$38,\"N/A\",0,1)","v":"N/A"},{"$f":"_xlfn.XLOOKUP($E78,'Activity 6'!$B$32:$B$38,'Activity 6'!E$32:E$38,\"N/A\",0,1)","v":"N/A"},{"$f":"_xlfn.XLOOKUP($E78,'Activity 6'!$B$32:$B$38,'Activity 6'!F$32:F$38,\"N/A\",0,1)","v":"N/A"},{"$f":"_xlfn.XLOOKUP($E78,'Activity 6'!$B$32:$B$38,'Activity 6'!G$32:G$38,\"N/A\",0,1)","v":"N/A"},{"$f":"_xlfn.XLOOKUP($E78,'Activity 6'!$B$32:$B$38,'Activity 6'!H$32:H$38,\"N/A\",0,1)","v":"N/A"},{"$f":"_xlfn.XLOOKUP($E78,'Activity 6'!$B$32:$B$38,'Activity 6'!I$32:I$38,\"N/A\",0,1)","v":"N/A"},{"$f":"_xlfn.XLOOKUP($E78,'Activity 6'!$B$32:$B$38,'Activity 6'!J$32:J$38,\"N/A\",0,1)","v":"N/A"},{"$f":"_xlfn.XLOOKUP($E78,'Activity 6'!$B$32:$B$38,'Activity 6'!K$32:K$38,\"N/A\",0,1)","v":"N/A"},{"$f":"_xlfn.XLOOKUP($E78,'Activity 6'!$B$32:$B$38,'Activity 6'!M$32:M$38,\"N/A\",0,1)","v":"N/A"},{"$f":"_xlfn.XLOOKUP($E78,'Activity 7'!$B$7:$B$13,'Activity 7'!$A$7:$A$13,\"No\",0,1)","v":"No"},{"$f":"_xlfn.XLOOKUP($E78,'Activity 7'!$B$7:$B$13,'Activity 7'!M$7:M$13,\"N/A\",0,1)","v":"N/A"},{"$f":"_xlfn.XLOOKUP($E78,'Activity 7'!$B$7:$B$13,'Activity 7'!K$7:K$13,\"N/A\",0,1)","v":"N/A"},{"$f":"_xlfn.XLOOKUP($E78,'Activity 7'!$B$7:$B$13,'Activity 7'!N$7:N$13,\"N/A\",0,1)","v":"N/A"},{"$f":"_xlfn.XLOOKUP($E78,'Activity 7'!$B$7:$B$13,'Activity 7'!O$7:O$13,\"N/A\",0,1)","v":"N/A"},{"$f":"_xlfn.XLOOKUP($E78,'Activity 7'!$B$7:$B$13,'Activity 7'!P$7:P$13,\"N/A\",0,1)","v":"N/A"},{"$f":"_xlfn.XLOOKUP($E78,'Activity 7'!$B$7:$B$13,'Activity 7'!Q$7:Q$13,\"N/A\",0,1)","v":"N/A"},{"$f":"_xlfn.XLOOKUP($E78,'Activity 7'!$B$7:$B$13,'Activity 7'!R$7:R$13,\"N/A\",0,1)","v":"N/A"},{"$f":"_xlfn.XLOOKUP($E78,'Activity 7'!$B$7:$B$13,'Activity 7'!S$7:S$13,\"N/A\",0,1)","v":"N/A"},{"$f":"_xlfn.XLOOKUP($E78,'Activity 7'!$B$7:$B$13,'Activity 7'!T$7:T$13,\"N/A\",0,1)","v":"N/A"},{"$f":"_xlfn.XLOOKUP($E78,'Activity 7'!$B$7:$B$13,'Activity 7'!U$7:U$13,\"N/A\",0,1)","v":"N/A"},{"$f":"_xlfn.XLOOKUP($E78,'Activity 7'!$B$7:$B$13,'Activity 7'!V$7:V$13,\"N/A\",0,1)","v":"N/A"},{"$f":"_xlfn.XLOOKUP($E78,'Activity 7'!$B$17:$B$23,'Activity 7'!E$17:E$23,\"N/A\",0,1)","v":"N/A"},{"$f":"_xlfn.XLOOKUP($E78,'Activity 7'!$B$17:$B$23,'Activity 7'!G$17:G$23,\"N/A\",0,1)","v":"N/A"},{"$f":"_xlfn.XLOOKUP($E78,'Activity 7'!$B$17:$B$23,'Activity 7'!I$17:I$23,\"N/A\",0,1)","v":"N/A"},{"$f":"_xlfn.XLOOKUP($E78,'Activity 7'!$B$17:$B$23,'Activity 7'!J$17:J$23,\"N/A\",0,1)","v":"N/A"},{"$f":"_xlfn.XLOOKUP($E78,'Activity 7'!$B$17:$B$23,'Activity 7'!K$17:K$23,\"N/A\",0,1)","v":"N/A"},{"$f":"_xlfn.XLOOKUP($E78,'Activity 7'!$B$17:$B$23,'Activity 7'!L$17:L$23,\"N/A\",0,1)","v":"N/A"},{"$f":"_xlfn.XLOOKUP($E78,'Activity 7'!$B$17:$B$23,'Activity 7'!M$17:M$23,\"N/A\",0,1)","v":"N/A"},{"$f":"_xlfn.XLOOKUP($E78,'Activity 7'!$B$17:$B$23,'Activity 7'!N$17:N$23,\"N/A\",0,1)","v":"N/A"},{"$f":"_xlfn.XLOOKUP($E78,'Activity 7'!$B$17:$B$23,'Activity 7'!P$17:P$23,\"N/A\",0,1)","v":"N/A"},{"$f":"_xlfn.XLOOKUP($E78,'Activity 8'!$B$7:$B$13,'Activity 8'!A$7:A$13,\"No\",0,1)","v":"No"},{"$f":"_xlfn.XLOOKUP($E78,'Activity 8'!$B$7:$B$13,'Activity 8'!I$7:I$13,\"N/A\",0,1)","v":"N/A"},{"$f":"_xlfn.XLOOKUP($E78,'Activity 8'!$B$7:$B$13,'Activity 8'!J$7:J$13,\"N/A\",0,1)","v":"N/A"},{"$f":"_xlfn.XLOOKUP($E78,'Activity 8'!$B$7:$B$13,'Activity 8'!K$7:K$13,\"N/A\",0,1)","v":"N/A"},{"$f":"_xlfn.XLOOKUP($E78,'Activity 8'!$B$7:$B$13,'Activity 8'!L$7:L$13,\"N/A\",0,1)","v":"N/A"},{"$f":"_xlfn.XLOOKUP($E78,'Activity 8'!$B$7:$B$13,'Activity 8'!M$7:M$13,\"N/A\",0,1)","v":"N/A"},{"$f":"_xlfn.XLOOKUP($E78,'Activity 8'!$B$7:$B$13,'Activity 8'!N$7:N$13,\"N/A\",0,1)","v":"N/A"},{"$f":"_xlfn.XLOOKUP($E78,'Activity 8'!$B$7:$B$13,'Activity 8'!O$7:O$13,\"N/A\",0,1)","v":"N/A"},{"$f":"_xlfn.XLOOKUP($E78,'Activity 8'!$B$7:$B$13,'Activity 8'!P$7:P$13,\"N/A\",0,1)","v":"N/A"},{"$f":"_xlfn.XLOOKUP($E78,'Activity 8'!$B$7:$B$13,'Activity 8'!Q$7:Q$13,\"N/A\",0,1)","v":"N/A"},{"$f":"_xlfn.XLOOKUP($E78,'Activity 8'!$B$7:$B$13,'Activity 8'!R$7:R$13,\"N/A\",0,1)","v":"N/A"},{"$f":"_xlfn.XLOOKUP($E78,'Activity 8'!$B$7:$B$13,'Activity 8'!S$7:S$13,\"N/A\",0,1)","v":"N/A"},{"$f":"_xlfn.XLOOKUP($E78,'Activity 8'!$B$7:$B$13,'Activity 8'!T$7:T$13,\"N/A\",0,1)","v":"N/A"},{"$f":"_xlfn.XLOOKUP($E78,'Activity 8'!$B$7:$B$13,'Activity 8'!U$7:U$13,\"N/A\",0,1)","v":"N/A"},{"$f":"_xlfn.XLOOKUP($E78,'Activity 8'!$B$7:$B$13,'Activity 8'!V$7:V$13,\"N/A\",0,1)","v":"N/A"},{"$f":"_xlfn.XLOOKUP($E78,'Activity 8'!$B$17:$B$23,'Activity 8'!D$17:D$23,\"N/A\",0,1)","v":"N/A"},{"$f":"_xlfn.XLOOKUP($E78,'Activity 8'!$B$17:$B$23,'Activity 8'!E$17:E$23,\"N/A\",0,1)","v":"N/A"},{"$f":"_xlfn.XLOOKUP($E78,'Activity 8'!$B$17:$B$23,'Activity 8'!F$17:F$23,\"N/A\",0,1)","v":"N/A"},{"$f":"_xlfn.XLOOKUP($E78,'Activity 8'!$B$17:$B$23,'Activity 8'!G$17:G$23,\"N/A\",0,1)","v":"N/A"},{"$f":"_xlfn.XLOOKUP($E78,'Activity 8'!$B$17:$B$23,'Activity 8'!H$17:H$23,\"N/A\",0,1)","v":"N/A"},{"$f":"_xlfn.XLOOKUP($E78,'Activity 8'!$B$17:$B$23,'Activity 8'!I$17:I$23,\"N/A\",0,1)","v":"N/A"},{"$f":"_xlfn.XLOOKUP($E78,'Activity 8'!$B$17:$B$23,'Activity 8'!J$17:J$23,\"N/A\",0,1)","v":"N/A"},{"$f":"_xlfn.XLOOKUP($E78,'Activity 8'!$B$17:$B$23,'Activity 8'!K$17:K$23,\"N/A\",0,1)","v":"N/A"},{"$f":"_xlfn.XLOOKUP($E78,'Activity 8'!$B$17:$B$23,'Activity 8'!L$17:L$23,\"N/A\",0,1)","v":"N/A"},{"$f":"_xlfn.XLOOKUP($E78,'Activity 8'!$B$17:$B$23,'Activity 8'!M$17:M$23,\"N/A\",0,1)","v":"N/A"},{"$f":"_xlfn.XLOOKUP($E78,'Activity 8'!$B$17:$B$23,'Activity 8'!N$17:N$23,\"N/A\",0,1)","v":"N/A"},{"$f":"_xlfn.XLOOKUP($E78,'Activity 8'!$B$17:$B$23,'Activity 8'!P$17:P$23,\"N/A\",0,1)","v":"N/A"},{"$f":"_xlfn.XLOOKUP(E78,'Activity 9'!$B$7:$B$13,'Activity 9'!$A$7:$A$13,\"No\",0,1)","v":"No"},{"$f":"_xlfn.XLOOKUP($E78,'Activity 9'!$B$7:$B$13,'Activity 9'!J$7:J$13,\"N/A\",0,1)","v":"N/A"},{"$f":"_xlfn.XLOOKUP($E78,'Activity 9'!$B$7:$B$13,'Activity 9'!K$7:K$13,\"N/A\",0,1)","v":"N/A"},{"$f":"_xlfn.XLOOKUP($E78,'Activity 9'!$B$7:$B$13,'Activity 9'!L$7:L$13,\"N/A\",0,1)","v":"N/A"},{"$f":"_xlfn.XLOOKUP($E78,'Activity 9'!$B$7:$B$13,'Activity 9'!M$7:M$13,\"N/A\",0,1)","v":"N/A"},{"$f":"_xlfn.XLOOKUP($E78,'Activity 9'!$B$7:$B$13,'Activity 9'!N$7:N$13,\"N/A\",0,1)","v":"N/A"},{"$f":"_xlfn.XLOOKUP($E78,'Activity 9'!$B$7:$B$13,'Activity 9'!O$7:O$13,\"N/A\",0,1)","v":"N/A"},{"$f":"_xlfn.XLOOKUP($E78,'Activity 9'!$B$7:$B$13,'Activity 9'!P$7:P$13,\"N/A\",0,1)","v":"N/A"},{"$f":"_xlfn.XLOOKUP($E78,'Activity 9'!$B$7:$B$13,'Activity 9'!Q$7:Q$13,\"N/A\",0,1)","v":"N/A"},{"$f":"_xlfn.XLOOKUP($E78,'Activity 9'!$B$7:$B$13,'Activity 9'!R$7:R$13,\"N/A\",0,1)","v":"N/A"},{"$f":"_xlfn.XLOOKUP($E78,'Activity 9'!$B$7:$B$13,'Activity 9'!S$7:S$13,\"N/A\",0,1)","v":"N/A"},{"$f":"_xlfn.XLOOKUP($E78,'Activity 9'!$B$7:$B$13,'Activity 9'!T$7:T$13,\"N/A\",0,1)","v":"N/A"},{"$f":"_xlfn.XLOOKUP($E78,'Activity 9'!$B$17:$B$23,'Activity 9'!E$17:E$23,\"N/A\",0,1)","v":"N/A"},{"$f":"_xlfn.XLOOKUP($E78,'Activity 9'!$B$17:$B$23,'Activity 9'!F$17:F$23,\"N/A\",0,1)","v":"N/A"},{"$f":"_xlfn.XLOOKUP($E78,'Activity 9'!$B$17:$B$23,'Activity 9'!G$17:G$23,\"N/A\",0,1)","v":"N/A"},{"$f":"_xlfn.XLOOKUP($E78,'Activity 9'!$B$17:$B$23,'Activity 9'!H$17:H$23,\"N/A\",0,1)","v":"N/A"},{"$f":"_xlfn.XLOOKUP($E78,'Activity 9'!$B$17:$B$23,'Activity 9'!I$17:I$23,\"N/A\",0,1)","v":"N/A"},{"$f":"_xlfn.XLOOKUP($E78,'Activity 9'!$B$17:$B$23,'Activity 9'!J$17:J$23,\"N/A\",0,1)","v":"N/A"},{"$f":"_xlfn.XLOOKUP($E78,'Activity 9'!$B$17:$B$23,'Activity 9'!K$17:K$23,\"N/A\",0,1)","v":"N/A"},{"$f":"_xlfn.XLOOKUP($E78,'Activity 9'!$B$17:$B$23,'Activity 9'!L$17:L$23,\"N/A\",0,1)","v":"N/A"},{"$f":"_xlfn.XLOOKUP($E78,'Activity 9'!$B$17:$B$23,'Activity 9'!N$17:N$23,\"N/A\",0,1)","v":"N/A"},{"$f":"_xlfn.XLOOKUP($E78,'Activity 9'!$B$17:$B$23,'Activity 9'!O$17:O$23,\"N/A\",0,1)","v":"N/A"},{"$f":"_xlfn.XLOOKUP($E78,'Activity 9'!$B$17:$B$23,'Activity 9'!Q$17:Q$23,\"N/A\",0,1)","v":"N/A"},{"$f":"_xlfn.XLOOKUP($E78,'Activity 10'!$B$7:$B$13,'Activity 10'!A$7:A$13,\"No\",0,1)","v":"No"},{"$f":"_xlfn.XLOOKUP($E78,'Activity 10'!$B$7:$B$13,'Activity 10'!J$7:J$13,\"N/A\",0,1)","v":"N/A"},{"$f":"_xlfn.XLOOKUP($E78,'Activity 10'!$B$7:$B$13,'Activity 10'!K$7:K$13,\"N/A\",0,1)","v":"N/A"},{"$f":"_xlfn.XLOOKUP($E78,'Activity 10'!$B$7:$B$13,'Activity 10'!L$7:L$13,\"N/A\",0,1)","v":"N/A"},{"$f":"_xlfn.XLOOKUP($E78,'Activity 10'!$B$7:$B$13,'Activity 10'!M$7:M$13,\"N/A\",0,1)","v":"N/A"},{"$f":"_xlfn.XLOOKUP($E78,'Activity 10'!$B$7:$B$13,'Activity 10'!N$7:N$13,\"N/A\",0,1)","v":"N/A"},{"$f":"_xlfn.XLOOKUP($E78,'Activity 10'!$B$7:$B$13,'Activity 10'!O$7:O$13,\"N/A\",0,1)","v":"N/A"},{"$f":"_xlfn.XLOOKUP($E78,'Activity 10'!$B$7:$B$13,'Activity 10'!P$7:P$13,\"N/A\",0,1)","v":"N/A"},{"$f":"_xlfn.XLOOKUP($E78,'Activity 10'!$B$7:$B$13,'Activity 10'!Q$7:Q$13,\"N/A\",0,1)","v":"N/A"},{"$f":"_xlfn.XLOOKUP($E78,'Activity 10'!$B$7:$B$13,'Activity 10'!R$7:R$13,\"N/A\",0,1)","v":"N/A"},{"$f":"_xlfn.XLOOKUP($E78,'Activity 10'!$B$7:$B$13,'Activity 10'!S$7:S$13,\"N/A\",0,1)","v":"N/A"},{"$f":"_xlfn.XLOOKUP($E78,'Activity 10'!$B$7:$B$13,'Activity 10'!T$7:T$13,\"N/A\",0,1)","v":"N/A"},{"$f":"_xlfn.XLOOKUP($E78,'Activity 10'!$B$7:$B$13,'Activity 10'!U$7:U$13,\"N/A\",0,1)","v":"N/A"},{"$f":"_xlfn.XLOOKUP($E78,'Activity 10'!$B$7:$B$13,'Activity 10'!V$7:V$13,\"N/A\",0,1)","v":"N/A"},{"$f":"_xlfn.XLOOKUP($E78,'Activity 10'!$B$17:$B$23,'Activity 10'!E$17:E$23,\"N/A\",0,1)","v":"N/A"},{"$f":"_xlfn.XLOOKUP($E78,'Activity 10'!$B$17:$B$23,'Activity 10'!F$17:F$23,\"N/A\",0,1)","v":"N/A"},{"$f":"_xlfn.XLOOKUP($E78,'Activity 10'!$B$17:$B$23,'Activity 10'!G$17:G$23,\"N/A\",0,1)","v":"N/A"},{"$f":"_xlfn.XLOOKUP($E78,'Activity 10'!$B$17:$B$23,'Activity 10'!H$17:H$23,\"N/A\",0,1)","v":"N/A"},{"$f":"_xlfn.XLOOKUP($E78,'Activity 10'!$B$17:$B$23,'Activity 10'!I$17:I$23,\"N/A\",0,1)","v":"N/A"},{"$f":"_xlfn.XLOOKUP($E78,'Activity 10'!$B$17:$B$23,'Activity 10'!J$17:J$23,\"N/A\",0,1)","v":"N/A"},{"$f":"_xlfn.XLOOKUP($E78,'Activity 10'!$B$17:$B$23,'Activity 10'!K$17:K$23,\"N/A\",0,1)","v":"N/A"},{"$f":"_xlfn.XLOOKUP($E78,'Activity 10'!$B$17:$B$23,'Activity 10'!L$17:L$23,\"N/A\",0,1)","v":"N/A"},{"$f":"_xlfn.XLOOKUP($E78,'Activity 10'!$B$17:$B$23,'Activity 10'!M$17:M$23,\"N/A\",0,1)","v":"N/A"},{"$f":"_xlfn.XLOOKUP($E78,'Activity 10'!$B$17:$B$23,'Activity 10'!N$17:N$23,\"N/A\",0,1)","v":"N/A"},{"$f":"_xlfn.XLOOKUP($E78,'Activity 10'!$B$17:$B$23,'Activity 10'!P$17:P$23,\"N/A\",0,1)","v":"N/A"},{"$f":"_xlfn.XLOOKUP($E78,'Competitive Activity 1'!B$7:B$13,'Competitive Activity 1'!A$7:A$13,\"No\",0,1)","v":"No"},{"$f":"_xlfn.XLOOKUP($E78,'Competitive Activity 1'!$B$7:$B$13,'Competitive Activity 1'!H$7:H$13,\"N/A\",0,1)","v":"N/A"},{"$f":"_xlfn.XLOOKUP($E78,'Competitive Activity 1'!$B$7:$B$13,'Competitive Activity 1'!I$7:I$13,\"N/A\",0,1)","v":"N/A"},{"$f":"_xlfn.XLOOKUP($E78,'Competitive Activity 1'!$B$7:$B$13,'Competitive Activity 1'!J$7:J$13,\"N/A\",0,1)","v":"N/A"},{"$f":"_xlfn.XLOOKUP($E78,'Competitive Activity 1'!$B$7:$B$13,'Competitive Activity 1'!K$7:K$13,\"N/A\",0,1)","v":"N/A"},{"$f":"_xlfn.XLOOKUP($E78,'Competitive Activity 1'!$B$7:$B$13,'Competitive Activity 1'!L$7:L$13,\"N/A\",0,1)","v":"N/A"},{"$f":"_xlfn.XLOOKUP($E78,'Competitive Activity 1'!$B$7:$B$13,'Competitive Activity 1'!M$7:M$13,\"N/A\",0,1)","v":"N/A"},{"$f":"_xlfn.XLOOKUP($E78,'Competitive Activity 1'!$B$7:$B$13,'Competitive Activity 1'!N$7:N$13,\"N/A\",0,1)","v":"N/A"},{"$f":"_xlfn.XLOOKUP($E78,'Competitive Activity 1'!$B$7:$B$13,'Competitive Activity 1'!O$7:O$13,\"N/A\",0,1)","v":"N/A"},{"$f":"_xlfn.XLOOKUP($E78,'Competitive Activity 1'!$B$7:$B$13,'Competitive Activity 1'!P$7:P$13,\"N/A\",0,1)","v":"N/A"},{"$f":"_xlfn.XLOOKUP($E78,'Competitive Activity 1'!$B$7:$B$13,'Competitive Activity 1'!Q$7:Q$13,\"N/A\",0,1)","v":"N/A"},{"$f":"_xlfn.XLOOKUP($E78,'Competitive Activity 1'!$B$7:$B$13,'Competitive Activity 1'!R$7:R$13,\"N/A\",0,1)","v":"N/A"},{"$f":"_xlfn.XLOOKUP($E78,'Competitive Activity 1'!$B$7:$B$13,'Competitive Activity 1'!S$7:S$13,\"N/A\",0,1)","v":"N/A"},{"$f":"_xlfn.XLOOKUP($E78,'Competitive Activity 1'!$B$7:$B$13,'Competitive Activity 1'!T$7:T$13,\"N/A\",0,1)","v":"N/A"},{"$f":"_xlfn.XLOOKUP($E78,'Competitive Activity 1'!$B$7:$B$13,'Competitive Activity 1'!U$7:U$13,\"N/A\",0,1)","v":"N/A"},{"$f":"_xlfn.XLOOKUP($E78,'Competitive Activity 1'!$B$17:$B$23,'Competitive Activity 1'!C$17:C$23,\"N/A\",0,1)","v":"N/A"},{"$f":"_xlfn.XLOOKUP($E78,'Competitive Activity 1'!$B$17:$B$23,'Competitive Activity 1'!D$17:D$23,\"N/A\",0,1)","v":"N/A"},{"$f":"_xlfn.XLOOKUP($E78,'Competitive Activity 1'!$B$17:$B$23,'Competitive Activity 1'!E$17:E$23,\"N/A\",0,1)","v":"N/A"},{"$f":"_xlfn.XLOOKUP($E78,'Competitive Activity 1'!$B$17:$B$23,'Competitive Activity 1'!F$17:F$23,\"N/A\",0,1)","v":"N/A"},{"$f":"_xlfn.XLOOKUP($E78,'Competitive Activity 1'!$B$17:$B$23,'Competitive Activity 1'!G$17:G$23,\"N/A\",0,1)","v":"N/A"},{"$f":"_xlfn.XLOOKUP($E78,'Competitive Activity 1'!$B$17:$B$23,'Competitive Activity 1'!H$17:H$23,\"N/A\",0,1)","v":"N/A"},{"$f":"_xlfn.XLOOKUP($E78,'Competitive Activity 1'!$B$17:$B$23,'Competitive Activity 1'!I$17:I$23,\"N/A\",0,1)","v":"N/A"},{"$f":"_xlfn.XLOOKUP($E78,'Competitive Activity 1'!$B$17:$B$23,'Competitive Activity 1'!J$17:J$23,\"N/A\",0,1)","v":"N/A"},{"$f":"_xlfn.XLOOKUP($E78,'Competitive Activity 1'!$B$17:$B$23,'Competitive Activity 1'!K$17:K$23,\"N/A\",0,1)","v":"N/A"},{"$f":"_xlfn.XLOOKUP($E78,'Competitive Activity 1'!$B$17:$B$23,'Competitive Activity 1'!M$17:M$23,\"N/A\",0,1)","v":"N/A"},{"$f":"_xlfn.XLOOKUP($E78,'Competitive Activity 1'!$B$17:$B$23,'Competitive Activity 1'!N$17:N$23,\"N/A\",0,1)","v":"N/A"},{"$f":"_xlfn.XLOOKUP($E78,'Competitive Activity 1'!$B$17:$B$23,'Competitive Activity 1'!P$17:P$23,\"N/A\",0,1)","v":"N/A"},{"$f":"_xlfn.XLOOKUP($E78,'Competitive Activity 2'!$B$7:$B$13,'Competitive Activity 2'!A$7:A$13,\"No\",0)","v":"No"},{"$f":"_xlfn.XLOOKUP($E78,'Competitive Activity 2'!$B$7:$B$13,'Competitive Activity 2'!L$7:L$13,\"N/A\",0)","v":"N/A"},{"$f":"_xlfn.XLOOKUP($E78,'Competitive Activity 2'!$B$7:$B$13,'Competitive Activity 2'!M$7:M$13,\"N/A\",0)","v":"N/A"},{"$f":"_xlfn.XLOOKUP($E78,'Competitive Activity 2'!$B$7:$B$13,'Competitive Activity 2'!N$7:N$13,\"N/A\",0)","v":"N/A"},{"$f":"_xlfn.XLOOKUP($E78,'Competitive Activity 2'!$B$7:$B$13,'Competitive Activity 2'!O$7:O$13,\"N/A\",0)","v":"N/A"},{"$f":"_xlfn.XLOOKUP($E78,'Competitive Activity 2'!$B$7:$B$13,'Competitive Activity 2'!P$7:P$13,\"N/A\",0)","v":"N/A"},{"$f":"_xlfn.XLOOKUP($E78,'Competitive Activity 2'!$B$7:$B$13,'Competitive Activity 2'!Q$7:Q$13,\"N/A\",0)","v":"N/A"},{"$f":"_xlfn.XLOOKUP($E78,'Competitive Activity 2'!$B$7:$B$13,'Competitive Activity 2'!R$7:R$13,\"N/A\",0)","v":"N/A"},{"$f":"_xlfn.XLOOKUP($E78,'Competitive Activity 2'!$B$7:$B$13,'Competitive Activity 2'!S$7:S$13,\"N/A\",0)","v":"N/A"},{"$f":"_xlfn.XLOOKUP($E78,'Competitive Activity 2'!$B$7:$B$13,'Competitive Activity 2'!T$7:T$13,\"N/A\",0)","v":"N/A"},{"$f":"_xlfn.XLOOKUP($E78,'Competitive Activity 2'!$B$7:$B$13,'Competitive Activity 2'!U$7:U$13,\"N/A\",0)","v":"N/A"},{"$f":"_xlfn.XLOOKUP($E78,'Competitive Activity 2'!$B$17:$B$23,'Competitive Activity 2'!D$17:D$23,\"N/A\",0)","v":"N/A"},{"$f":"_xlfn.XLOOKUP($E78,'Competitive Activity 2'!$B$17:$B$23,'Competitive Activity 2'!E$17:E$23,\"N/A\",0)","v":"N/A"},{"$f":"_xlfn.XLOOKUP($E78,'Competitive Activity 2'!$B$17:$B$23,'Competitive Activity 2'!F$17:F$23,\"N/A\",0)","v":"N/A"},{"$f":"_xlfn.XLOOKUP($E78,'Competitive Activity 2'!$B$17:$B$23,'Competitive Activity 2'!G$17:G$23,\"N/A\",0)","v":"N/A"},{"$f":"_xlfn.XLOOKUP($E78,'Competitive Activity 2'!$B$17:$B$23,'Competitive Activity 2'!H$17:H$23,\"N/A\",0)","v":"N/A"},{"$f":"_xlfn.XLOOKUP($E78,'Competitive Activity 2'!$B$17:$B$23,'Competitive Activity 2'!I$17:I$23,\"N/A\",0)","v":"N/A"},{"$f":"_xlfn.XLOOKUP($E78,'Competitive Activity 2'!$B$17:$B$23,'Competitive Activity 2'!J$17:J$23,\"N/A\",0)","v":"N/A"},{"$f":"_xlfn.XLOOKUP($E78,'Competitive Activity 2'!$B$17:$B$23,'Competitive Activity 2'!K$17:K$23,\"N/A\",0)","v":"N/A"},{"$f":"_xlfn.XLOOKUP($E78,'Competitive Activity 2'!$B$17:$B$23,'Competitive Activity 2'!L$17:L$23,\"N/A\",0)","v":"N/A"},{"$f":"_xlfn.XLOOKUP($E78,'Competitive Activity 2'!$B$17:$B$23,'Competitive Activity 2'!M$17:M$23,\"N/A\",0)","v":"N/A"},{"$f":"_xlfn.XLOOKUP($E78,'Competitive Activity 2'!$B$17:$B$23,'Competitive Activity 2'!N$17:N$23,\"N/A\",0)","v":"N/A"},{"$f":"_xlfn.XLOOKUP($E78,'Competitive Activity 2'!$B$27:$B$33,'Competitive Activity 2'!D$27:D$33,\"N/A\",0)","v":"N/A"},{"$f":"_xlfn.XLOOKUP($E78,'Competitive Activity 2'!$B$27:$B$33,'Competitive Activity 2'!E$27:E$33,\"N/A\",0)","v":"N/A"},{"$f":"_xlfn.XLOOKUP($E78,'Competitive Activity 2'!$B$27:$B$33,'Competitive Activity 2'!F$27:F$33,\"N/A\",0)","v":"N/A"},{"$f":"_xlfn.XLOOKUP($E78,'Competitive Activity 2'!$B$27:$B$33,'Competitive Activity 2'!G$27:G$33,\"N/A\",0)","v":"N/A"},{"$f":"_xlfn.XLOOKUP($E78,'Competitive Activity 2'!$B$27:$B$33,'Competitive Activity 2'!H$27:H$33,\"N/A\",0)","v":"N/A"},{"$f":"_xlfn.XLOOKUP($E78,'Competitive Activity 2'!$B$27:$B$33,'Competitive Activity 2'!I$27:I$33,\"N/A\",0)","v":"N/A"},{"$f":"_xlfn.XLOOKUP($E78,'Competitive Activity 2'!$B$27:$B$33,'Competitive Activity 2'!J$27:J$33,\"N/A\",0)","v":"N/A"},{"$f":"_xlfn.XLOOKUP($E78,'Competitive Activity 2'!$B$27:$B$33,'Competitive Activity 2'!K$27:K$33,\"N/A\",0)","v":"N/A"},{"$f":"_xlfn.XLOOKUP($E78,'Competitive Activity 2'!$B$27:$B$33,'Competitive Activity 2'!M$27:M$33,\"N/A\",0)","v":"N/A"}]
[{"$f":"'1-Cover Sheet'!$C$8","v":"Select One"},{"$f":"'1-Cover Sheet'!$F$8","v":"Select One"},{"$f":"'Summary Sheet'!$D$8","v":0},{"$f":"'Summary Sheet'!$D$10","v":0},{"$f":"'Drop Down Box'!B243","v":0},{"$f":"'Drop Down Box'!C243","v":0},{"$f":"'Drop Down Box'!D243","v":"Select One"},{"$f":"_xlfn.XLOOKUP(E79,'Drop Down Box'!$B$166:$B$249,'Drop Down Box'!$A$166:$A$249,\"Unknown\",0)","v":"Activity 1"},{"$f":"_xlfn.XLOOKUP($E79,'Competitive Activity 2'!$B$27:$B$33,'Competitive Activity 2'!$L$32:$L$38,\"N/A\",0)","v":"N/A"},{"$f":"_xlfn.XLOOKUP($E79,'Competitive Activity 2'!$B$27:$B$33,'Competitive Activity 2'!$N$32:$N$38,\"N/A\",0)","v":"N/A"},{"$f":"_xlfn.XLOOKUP($E79,'Competitive Activity 2'!$B$7:$B$13,'Competitive Activity 2'!H$7:H$13,\"N/A\",0)","v":"N/A"},{"$f":"_xlfn.XLOOKUP($E79,'Competitive Activity 2'!$B$7:$B$13,'Competitive Activity 2'!I$7:I$13,\"N/A\",0)","v":"N/A"},{"$f":"_xlfn.XLOOKUP($E79,'Competitive Activity 2'!$B$7:$B$13,'Competitive Activity 2'!J$7:J$13,\"N/A\",0)","v":"N/A"},{"$f":"_xlfn.XLOOKUP($E79,'Activity 1'!$B$7:$B$13,'Activity 1'!$A$7:$A$13,\"No\",0,1)","v":"No"},{"$f":"_xlfn.XLOOKUP($E79,'Activity 1'!$B$7:$B$13,'Activity 1'!$H$7:$H$13,\"N/A\",0,1)","v":"N/A"},{"$f":"_xlfn.XLOOKUP($E79,'Activity 1'!$B$7:$B$13,'Activity 1'!I$7:I$13,\"N/A\",0,1)","v":"N/A"},{"$f":"_xlfn.XLOOKUP($E79,'Activity 1'!$B$7:$B$13,'Activity 1'!J$7:J$13,\"N/A\",0,1)","v":"N/A"},{"$f":"_xlfn.XLOOKUP($E79,'Activity 1'!$B$7:$B$13,'Activity 1'!K$7:K$13,\"N/A\",0,1)","v":"N/A"},{"$f":"_xlfn.XLOOKUP($E79,'Activity 1'!$B$7:$B$13,'Activity 1'!L$7:L$13,\"N/A\",0,1)","v":"N/A"},{"$f":"_xlfn.XLOOKUP($E79,'Activity 1'!$B$7:$B$13,'Activity 1'!M$7:M$13,\"N/A\",0,1)","v":"N/A"},{"$f":"_xlfn.XLOOKUP($E79,'Activity 1'!$B$7:$B$13,'Activity 1'!N$7:N$13,\"N/A\",0,1)","v":"N/A"},0,{"$f":"_xlfn.XLOOKUP($E79,'Activity 1'!$B$7:$B$13,'Activity 1'!O$7:O$13,\"N/A\",0,1)","v":"N/A"},{"$f":"_xlfn.XLOOKUP($E79,'Activity 1'!$B$7:$B$13,'Activity 1'!P$7:P$13,\"N/A\",0,1)","v":"N/A"},{"$f":"_xlfn.XLOOKUP($E79,'Activity 1'!$B$7:$B$13,'Activity 1'!Q$7:Q$13,\"N/A\",0,1)","v":"N/A"},{"$f":"_xlfn.XLOOKUP($E79,'Activity 1'!$B$7:$B$13,'Activity 1'!R$7:R$13,\"N/A\",0,1)","v":"N/A"},{"$f":"_xlfn.XLOOKUP($E79,'Activity 1'!$B$7:$B$13,'Activity 1'!S$7:S$13,\"N/A\",0,1)","v":"N/A"},{"$f":"_xlfn.XLOOKUP($E79,'Activity 1'!$B$7:$B$13,'Activity 1'!T$7:T$13,\"N/A\",0,1)","v":"N/A"},{"$f":"_xlfn.XLOOKUP($E79,'Activity 1'!$B$7:$B$13,'Activity 1'!U$7:U$13,\"N/A\",0,1)","v":"N/A"},{"$f":"_xlfn.XLOOKUP($E79,'Activity 1'!$B$7:$B$13,'Activity 1'!V$7:V$13,\"N/A\",0,1)","v":"N/A"},{"$f":"_xlfn.XLOOKUP($E79,'Activity 1'!$B$17:$B$23,'Activity 1'!C$17:C$23,\"N/A\",0,1)","v":"N/A"},{"$f":"_xlfn.XLOOKUP($E79,'Activity 1'!$B$17:$B$23,'Activity 1'!D$17:D$23,\"N/A\",0,1)","v":"N/A"},{"$f":"_xlfn.XLOOKUP($E79,'Activity 1'!$B$17:$B$23,'Activity 1'!E$17:E$23,\"N/A\",0,1)","v":"N/A"},{"$f":"_xlfn.XLOOKUP($E79,'Activity 1'!$B$17:$B$23,'Activity 1'!F$17:F$23,\"N/A\",0,1)","v":"N/A"},{"$f":"_xlfn.XLOOKUP($E79,'Activity 1'!$B$17:$B$23,'Activity 1'!G$17:G$23,\"N/A\",0,1)","v":"N/A"},{"$f":"_xlfn.XLOOKUP($E79,'Activity 1'!$B$17:$B$23,'Activity 1'!H$17:H$23,\"N/A\",0,1)","v":"N/A"},{"$f":"_xlfn.XLOOKUP($E79,'Activity 1'!$B$17:$B$23,'Activity 1'!I$17:I$23,\"N/A\",0,1)","v":"N/A"},{"$f":"_xlfn.XLOOKUP($E79,'Activity 1'!$B$17:$B$23,'Activity 1'!J$17:J$23,\"N/A\",0,1)","v":"N/A"},{"$f":"_xlfn.XLOOKUP($E79,'Activity 1'!$B$17:$B$23,'Activity 1'!K$17:K$23,\"N/A\",0,1)","v":"N/A"},{"$f":"_xlfn.XLOOKUP($E79,'Activity 1'!$B$17:$B$23,'Activity 1'!L$17:L$23,\"N/A\",0,1)","v":"N/A"},{"$f":"_xlfn.XLOOKUP($E79,'Activity 1'!$B$17:$B$23,'Activity 1'!M$17:M$23,\"N/A\",0,1)","v":"N/A"},{"$f":"_xlfn.XLOOKUP($E79,'Activity 1'!$B$17:$B$23,'Activity 1'!O$17:O$23,\"N/A\",0,1)","v":"N/A"},{"$f":"_xlfn.XLOOKUP($E79,'Activity 1'!$B$17:$B$23,'Activity 1'!Q$17:Q$23,\"N/A\",0,1)","v":"N/A"},{"$f":"_xlfn.XLOOKUP($E79,'Activity 2'!$B$7:$B$13,'Activity 2'!$A$7:$A$13,\"No\",0,1)","v":"No"},{"$f":"_xlfn.XLOOKUP($E79,'Activity 2'!B$7:B$13,'Activity 2'!H$7:H$13,\"N/A\",0)","v":"N/A"},{"$f":"_xlfn.XLOOKUP($E79,'Activity 2'!C$7:C$13,'Activity 2'!I$7:I$13,\"N/A\",0)","v":"N/A"},{"$f":"_xlfn.XLOOKUP($E79,'Activity 2'!D$7:D$13,'Activity 2'!J$7:J$13,\"N/A\",0)","v":"N/A"},{"$f":"_xlfn.XLOOKUP($E79,'Activity 2'!E$7:E$13,'Activity 2'!K$7:K$13,\"N/A\",0)","v":"N/A"},{"$f":"_xlfn.XLOOKUP($E79,'Activity 2'!F$7:F$13,'Activity 2'!L$7:L$13,\"N/A\",0)","v":"N/A"},{"$f":"_xlfn.XLOOKUP($E79,'Activity 2'!G$7:G$13,'Activity 2'!M$7:M$13,\"N/A\",0)","v":"N/A"},{"$f":"_xlfn.XLOOKUP($E79,'Activity 2'!H$7:H$13,'Activity 2'!N$7:N$13,\"N/A\",0)","v":"N/A"},{"$f":"_xlfn.XLOOKUP($E79,'Activity 2'!I$7:I$13,'Activity 2'!O$7:O$13,\"N/A\",0)","v":"N/A"},{"$f":"_xlfn.XLOOKUP($E79,'Activity 2'!J$7:J$13,'Activity 2'!P$7:P$13,\"N/A\",0)","v":"N/A"},{"$f":"_xlfn.XLOOKUP($E79,'Activity 2'!K$7:K$13,'Activity 2'!Q$7:Q$13,\"N/A\",0)","v":"N/A"},{"$f":"_xlfn.XLOOKUP($E79,'Activity 2'!L$7:L$13,'Activity 2'!R$7:R$13,\"N/A\",0)","v":"N/A"},{"$f":"_xlfn.XLOOKUP($E79,'Activity 2'!M$7:M$13,'Activity 2'!S$7:S$13,\"N/A\",0)","v":"N/A"},{"$f":"_xlfn.XLOOKUP($E79,'Activity 2'!N$7:N$13,'Activity 2'!T$7:T$13,\"N/A\",0)","v":"N/A"},{"$f":"_xlfn.XLOOKUP($E79,'Activity 2'!O$7:O$13,'Activity 2'!U$7:U$13,\"N/A\",0)","v":"N/A"},{"$f":"_xlfn.XLOOKUP($E79,'Activity 2'!P$7:P$13,'Activity 2'!V$7:V$13,\"N/A\",0)","v":"N/A"},{"$f":"_xlfn.XLOOKUP($E79,'Activity 2'!$B$17:$B$23,'Activity 2'!C$17:C$23,\"N/A\",0,1)","v":"N/A"},{"$f":"_xlfn.XLOOKUP($E79,'Activity 2'!$B$17:$B$23,'Activity 2'!D$17:D$23,\"N/A\",0,1)","v":"N/A"},{"$f":"_xlfn.XLOOKUP($E79,'Activity 2'!$B$17:$B$23,'Activity 2'!E$17:E$23,\"N/A\",0,1)","v":"N/A"},{"$f":"_xlfn.XLOOKUP($E79,'Activity 2'!$B$17:$B$23,'Activity 2'!F$17:F$23,\"N/A\",0,1)","v":"N/A"},{"$f":"_xlfn.XLOOKUP($E79,'Activity 2'!$B$17:$B$23,'Activity 2'!G$17:G$23,\"N/A\",0,1)","v":"N/A"},{"$f":"_xlfn.XLOOKUP($E79,'Activity 2'!$B$17:$B$23,'Activity 2'!H$17:H$23,\"N/A\",0,1)","v":"N/A"},{"$f":"_xlfn.XLOOKUP($E79,'Activity 2'!$B$17:$B$23,'Activity 2'!I$17:I$23,\"N/A\",0,1)","v":"N/A"},{"$f":"_xlfn.XLOOKUP($E79,'Activity 2'!$B$17:$B$23,'Activity 2'!J$17:J$23,\"N/A\",0,1)","v":"N/A"},{"$f":"_xlfn.XLOOKUP($E79,'Activity 2'!$B$17:$B$23,'Activity 2'!K$17:K$23,\"N/A\",0,1)","v":"N/A"},{"$f":"_xlfn.XLOOKUP($E79,'Activity 2'!$B$17:$B$23,'Activity 2'!L$17:L$23,\"N/A\",0,1)","v":"N/A"},{"$f":"_xlfn.XLOOKUP($E79,'Activity 2'!$B$17:$B$23,'Activity 2'!M$17:M$23,\"N/A\",0,1)","v":"N/A"},{"$f":"_xlfn.XLOOKUP($E79,'Activity 2'!$B$17:$B$23,'Activity 2'!O$17:O$23,\"N/A\",0,1)","v":"N/A"},{"$f":"_xlfn.XLOOKUP($E79,'Activity 2'!$B$17:$B$23,'Activity 2'!Q$17:Q$23,\"N/A\",0,1)","v":"N/A"},null,{"$f":"_xlfn.XLOOKUP($E79,'Activity 3'!$B$8:$B$14,'Activity 3'!K$8:K$14,\"N/A\",0,1)","v":"N/A"},{"$f":"_xlfn.XLOOKUP($E79,'Activity 3'!$B$8:$B$14,'Activity 3'!L$8:L$14,\"N/A\",0,1)","v":"N/A"},{"$f":"_xlfn.XLOOKUP($E79,'Activity 3'!$B$8:$B$14,'Activity 3'!M$8:M$14,\"N/A\",0,1)","v":"N/A"},{"$f":"_xlfn.XLOOKUP($E79,'Activity 3'!$B$8:$B$14,'Activity 3'!N$8:N$14,\"N/A\",0,1)","v":"N/A"},{"$f":"_xlfn.XLOOKUP($E79,'Activity 3'!$B$8:$B$14,'Activity 3'!O$8:O$14,\"N/A\",0,1)","v":"N/A"},{"$f":"_xlfn.XLOOKUP($E79,'Activity 3'!$B$8:$B$14,'Activity 3'!R$8:R$14,\"N/A\",0,1)","v":"N/A"},{"$f":"_xlfn.XLOOKUP($E79,'Activity 4'!$B$8:$B$14,'Activity 4'!$A$8:$A$14,\"No\",0,1)","v":"No"},{"$f":"_xlfn.XLOOKUP($E79,'Activity 4'!$B$8:$B$14,'Activity 4'!L$8:L$14,\"N/A\",0,1)","v":"N/A"},{"$f":"_xlfn.XLOOKUP($E79,'Activity 4'!$B$8:$B$14,'Activity 4'!I$8:I$14,\"N/A\",0,1)","v":"N/A"},{"$f":"_xlfn.XLOOKUP($E79,'Activity 4'!$B$8:$B$14,'Activity 4'!M$8:M$14,\"N/A\",0,1)","v":"N/A"},{"$f":"_xlfn.XLOOKUP($E79,'Activity 5'!$B$8:$B$14,'Activity 5'!$A$8:$A$14,\"No\",0,1)","v":"No"},{"$f":"_xlfn.XLOOKUP($E79,'Activity 5'!$B$8:$B$14,'Activity 5'!J$8:J$14,\"N/A\",0,1)","v":"N/A"},{"$f":"_xlfn.XLOOKUP($E79,'Activity 5'!$B$8:$B$14,'Activity 5'!K$8:K$14,\"N/A\",0,1)","v":"N/A"},{"$f":"_xlfn.XLOOKUP($E79,'Activity 5'!$B$8:$B$14,'Activity 5'!N$8:N$14,\"N/A\",0,1)","v":"N/A"},{"$f":"_xlfn.XLOOKUP($E79,'Activity 5'!$B$8:$B$14,'Activity 5'!O$8:O$14,\"N/A\",0,1)","v":"N/A"},{"$f":"_xlfn.XLOOKUP($E79,'Activity 5'!$B$8:$B$14,'Activity 5'!P$8:P$14,\"N/A\",0,1)","v":"N/A"},{"$f":"_xlfn.XLOOKUP($E79,'Activity 5'!$B$8:$B$14,'Activity 5'!Q$8:Q$14,\"N/A\",0,1)","v":"N/A"},{"$f":"_xlfn.XLOOKUP($E79,'Activity 5'!$B$8:$B$14,'Activity 5'!R$8:R$14,\"N/A\",0,1)","v":"N/A"},{"$f":"_xlfn.XLOOKUP($E79,'Activity 6'!$B$7:$B$13,'Activity 6'!A$7:A$13,\"No\",0,1)","v":"No"},{"$f":"_xlfn.XLOOKUP($E79,'Activity 6'!$B$7:$B$13,'Activity 6'!K$7:K$13,\"N/A\",0,1)","v":"N/A"},{"$f":"_xlfn.XLOOKUP($E79,'Activity 6'!$B$7:$B$13,'Activity 6'!L$7:L$13,\"N/A\",0,1)","v":"N/A"},{"$f":"_xlfn.XLOOKUP($E79,'Activity 6'!$B$7:$B$13,'Activity 6'!M$7:M$13,\"N/A\",0,1)","v":"N/A"},{"$f":"_xlfn.XLOOKUP($E79,'Activity 6'!$B$7:$B$13,'Activity 6'!N$7:N$13,\"N/A\",0,1)","v":"N/A"},{"$f":"_xlfn.XLOOKUP($E79,'Activity 6'!$B$7:$B$13,'Activity 6'!O$7:O$13,\"N/A\",0,1)","v":"N/A"},{"$f":"_xlfn.XLOOKUP($E79,'Activity 6'!$B$7:$B$13,'Activity 6'!P$7:P$13,\"N/A\",0,1)","v":"N/A"},{"$f":"_xlfn.XLOOKUP($E79,'Activity 6'!$B$7:$B$13,'Activity 6'!Q$7:Q$13,\"N/A\",0,1)","v":"N/A"},{"$f":"_xlfn.XLOOKUP($E79,'Activity 6'!$B$7:$B$13,'Activity 6'!R$7:R$13,\"N/A\",0,1)","v":"N/A"},{"$f":"_xlfn.XLOOKUP($E79,'Activity 6'!$B$7:$B$13,'Activity 6'!S$7:S$13,\"N/A\",0,1)","v":"N/A"},{"$f":"_xlfn.XLOOKUP($E79,'Activity 6'!$B$7:$B$13,'Activity 6'!T$7:T$13,\"N/A\",0,1)","v":"N/A"},{"$f":"_xlfn.XLOOKUP($E79,'Activity 6'!$B$7:$B$13,'Activity 6'!U$7:U$13,\"N/A\",0,1)","v":"N/A"},{"$f":"_xlfn.XLOOKUP($E79,'Activity 6'!$B$22:$B$28,'Activity 6'!C$22:C$28,\"N/A\",0,1)","v":"N/A"},{"$f":"_xlfn.XLOOKUP($E79,'Activity 6'!$B$22:$B$28,'Activity 6'!D$22:D$28,\"N/A\",0,1)","v":"N/A"},{"$f":"_xlfn.XLOOKUP($E79,'Activity 6'!$B$22:$B$28,'Activity 6'!E$22:E$28,\"N/A\",0,1)","v":"N/A"},{"$f":"_xlfn.XLOOKUP($E79,'Activity 6'!$B$22:$B$28,'Activity 6'!F$22:F$28,\"N/A\",0,1)","v":"N/A"},{"$f":"_xlfn.XLOOKUP($E79,'Activity 6'!$B$22:$B$28,'Activity 6'!G$22:G$28,\"N/A\",0,1)","v":"N/A"},{"$f":"_xlfn.XLOOKUP($E79,'Activity 6'!$B$22:$B$28,'Activity 6'!H$22:H$28,\"N/A\",0,1)","v":"N/A"},{"$f":"_xlfn.XLOOKUP($E79,'Activity 6'!$B$22:$B$28,'Activity 6'!I$22:I$28,\"N/A\",0,1)","v":"N/A"},{"$f":"_xlfn.XLOOKUP($E79,'Activity 6'!$B$22:$B$28,'Activity 6'!J$22:J$28,\"N/A\",0,1)","v":"N/A"},{"$f":"_xlfn.XLOOKUP($E79,'Activity 6'!$B$22:$B$28,'Activity 6'!K$22:K$28,\"N/A\",0,1)","v":"N/A"},{"$f":"_xlfn.XLOOKUP($E79,'Activity 6'!$B$22:$B$28,'Activity 6'!L$22:L$28,\"N/A\",0,1)","v":"N/A"},{"$f":"_xlfn.XLOOKUP($E79,'Activity 6'!$B$22:$B$28,'Activity 6'!M$22:M$28,\"N/A\",0,1)","v":"N/A"},{"$f":"_xlfn.XLOOKUP($E79,'Activity 6'!$B$22:$B$28,'Activity 6'!N$22:N$28,\"N/A\",0,1)","v":"N/A"},{"$f":"_xlfn.XLOOKUP($E79,'Activity 6'!$B$32:$B$38,'Activity 6'!C$32:C$38,\"N/A\",0,1)","v":"N/A"},{"$f":"_xlfn.XLOOKUP($E79,'Activity 6'!$B$32:$B$38,'Activity 6'!D$32:D$38,\"N/A\",0,1)","v":"N/A"},{"$f":"_xlfn.XLOOKUP($E79,'Activity 6'!$B$32:$B$38,'Activity 6'!E$32:E$38,\"N/A\",0,1)","v":"N/A"},{"$f":"_xlfn.XLOOKUP($E79,'Activity 6'!$B$32:$B$38,'Activity 6'!F$32:F$38,\"N/A\",0,1)","v":"N/A"},{"$f":"_xlfn.XLOOKUP($E79,'Activity 6'!$B$32:$B$38,'Activity 6'!G$32:G$38,\"N/A\",0,1)","v":"N/A"},{"$f":"_xlfn.XLOOKUP($E79,'Activity 6'!$B$32:$B$38,'Activity 6'!H$32:H$38,\"N/A\",0,1)","v":"N/A"},{"$f":"_xlfn.XLOOKUP($E79,'Activity 6'!$B$32:$B$38,'Activity 6'!I$32:I$38,\"N/A\",0,1)","v":"N/A"},{"$f":"_xlfn.XLOOKUP($E79,'Activity 6'!$B$32:$B$38,'Activity 6'!J$32:J$38,\"N/A\",0,1)","v":"N/A"},{"$f":"_xlfn.XLOOKUP($E79,'Activity 6'!$B$32:$B$38,'Activity 6'!K$32:K$38,\"N/A\",0,1)","v":"N/A"},{"$f":"_xlfn.XLOOKUP($E79,'Activity 6'!$B$32:$B$38,'Activity 6'!M$32:M$38,\"N/A\",0,1)","v":"N/A"},{"$f":"_xlfn.XLOOKUP($E79,'Activity 7'!$B$7:$B$13,'Activity 7'!$A$7:$A$13,\"No\",0,1)","v":"No"},{"$f":"_xlfn.XLOOKUP($E79,'Activity 7'!$B$7:$B$13,'Activity 7'!M$7:M$13,\"N/A\",0,1)","v":"N/A"},{"$f":"_xlfn.XLOOKUP($E79,'Activity 7'!$B$7:$B$13,'Activity 7'!K$7:K$13,\"N/A\",0,1)","v":"N/A"},{"$f":"_xlfn.XLOOKUP($E79,'Activity 7'!$B$7:$B$13,'Activity 7'!N$7:N$13,\"N/A\",0,1)","v":"N/A"},{"$f":"_xlfn.XLOOKUP($E79,'Activity 7'!$B$7:$B$13,'Activity 7'!O$7:O$13,\"N/A\",0,1)","v":"N/A"},{"$f":"_xlfn.XLOOKUP($E79,'Activity 7'!$B$7:$B$13,'Activity 7'!P$7:P$13,\"N/A\",0,1)","v":"N/A"},{"$f":"_xlfn.XLOOKUP($E79,'Activity 7'!$B$7:$B$13,'Activity 7'!Q$7:Q$13,\"N/A\",0,1)","v":"N/A"},{"$f":"_xlfn.XLOOKUP($E79,'Activity 7'!$B$7:$B$13,'Activity 7'!R$7:R$13,\"N/A\",0,1)","v":"N/A"},{"$f":"_xlfn.XLOOKUP($E79,'Activity 7'!$B$7:$B$13,'Activity 7'!S$7:S$13,\"N/A\",0,1)","v":"N/A"},{"$f":"_xlfn.XLOOKUP($E79,'Activity 7'!$B$7:$B$13,'Activity 7'!T$7:T$13,\"N/A\",0,1)","v":"N/A"},{"$f":"_xlfn.XLOOKUP($E79,'Activity 7'!$B$7:$B$13,'Activity 7'!U$7:U$13,\"N/A\",0,1)","v":"N/A"},{"$f":"_xlfn.XLOOKUP($E79,'Activity 7'!$B$7:$B$13,'Activity 7'!V$7:V$13,\"N/A\",0,1)","v":"N/A"},{"$f":"_xlfn.XLOOKUP($E79,'Activity 7'!$B$17:$B$23,'Activity 7'!E$17:E$23,\"N/A\",0,1)","v":"N/A"},{"$f":"_xlfn.XLOOKUP($E79,'Activity 7'!$B$17:$B$23,'Activity 7'!G$17:G$23,\"N/A\",0,1)","v":"N/A"},{"$f":"_xlfn.XLOOKUP($E79,'Activity 7'!$B$17:$B$23,'Activity 7'!I$17:I$23,\"N/A\",0,1)","v":"N/A"},{"$f":"_xlfn.XLOOKUP($E79,'Activity 7'!$B$17:$B$23,'Activity 7'!J$17:J$23,\"N/A\",0,1)","v":"N/A"},{"$f":"_xlfn.XLOOKUP($E79,'Activity 7'!$B$17:$B$23,'Activity 7'!K$17:K$23,\"N/A\",0,1)","v":"N/A"},{"$f":"_xlfn.XLOOKUP($E79,'Activity 7'!$B$17:$B$23,'Activity 7'!L$17:L$23,\"N/A\",0,1)","v":"N/A"},{"$f":"_xlfn.XLOOKUP($E79,'Activity 7'!$B$17:$B$23,'Activity 7'!M$17:M$23,\"N/A\",0,1)","v":"N/A"},{"$f":"_xlfn.XLOOKUP($E79,'Activity 7'!$B$17:$B$23,'Activity 7'!N$17:N$23,\"N/A\",0,1)","v":"N/A"},{"$f":"_xlfn.XLOOKUP($E79,'Activity 7'!$B$17:$B$23,'Activity 7'!P$17:P$23,\"N/A\",0,1)","v":"N/A"},{"$f":"_xlfn.XLOOKUP($E79,'Activity 8'!$B$7:$B$13,'Activity 8'!A$7:A$13,\"No\",0,1)","v":"No"},{"$f":"_xlfn.XLOOKUP($E79,'Activity 8'!$B$7:$B$13,'Activity 8'!I$7:I$13,\"N/A\",0,1)","v":"N/A"},{"$f":"_xlfn.XLOOKUP($E79,'Activity 8'!$B$7:$B$13,'Activity 8'!J$7:J$13,\"N/A\",0,1)","v":"N/A"},{"$f":"_xlfn.XLOOKUP($E79,'Activity 8'!$B$7:$B$13,'Activity 8'!K$7:K$13,\"N/A\",0,1)","v":"N/A"},{"$f":"_xlfn.XLOOKUP($E79,'Activity 8'!$B$7:$B$13,'Activity 8'!L$7:L$13,\"N/A\",0,1)","v":"N/A"},{"$f":"_xlfn.XLOOKUP($E79,'Activity 8'!$B$7:$B$13,'Activity 8'!M$7:M$13,\"N/A\",0,1)","v":"N/A"},{"$f":"_xlfn.XLOOKUP($E79,'Activity 8'!$B$7:$B$13,'Activity 8'!N$7:N$13,\"N/A\",0,1)","v":"N/A"},{"$f":"_xlfn.XLOOKUP($E79,'Activity 8'!$B$7:$B$13,'Activity 8'!O$7:O$13,\"N/A\",0,1)","v":"N/A"},{"$f":"_xlfn.XLOOKUP($E79,'Activity 8'!$B$7:$B$13,'Activity 8'!P$7:P$13,\"N/A\",0,1)","v":"N/A"},{"$f":"_xlfn.XLOOKUP($E79,'Activity 8'!$B$7:$B$13,'Activity 8'!Q$7:Q$13,\"N/A\",0,1)","v":"N/A"},{"$f":"_xlfn.XLOOKUP($E79,'Activity 8'!$B$7:$B$13,'Activity 8'!R$7:R$13,\"N/A\",0,1)","v":"N/A"},{"$f":"_xlfn.XLOOKUP($E79,'Activity 8'!$B$7:$B$13,'Activity 8'!S$7:S$13,\"N/A\",0,1)","v":"N/A"},{"$f":"_xlfn.XLOOKUP($E79,'Activity 8'!$B$7:$B$13,'Activity 8'!T$7:T$13,\"N/A\",0,1)","v":"N/A"},{"$f":"_xlfn.XLOOKUP($E79,'Activity 8'!$B$7:$B$13,'Activity 8'!U$7:U$13,\"N/A\",0,1)","v":"N/A"},{"$f":"_xlfn.XLOOKUP($E79,'Activity 8'!$B$7:$B$13,'Activity 8'!V$7:V$13,\"N/A\",0,1)","v":"N/A"},{"$f":"_xlfn.XLOOKUP($E79,'Activity 8'!$B$17:$B$23,'Activity 8'!D$17:D$23,\"N/A\",0,1)","v":"N/A"},{"$f":"_xlfn.XLOOKUP($E79,'Activity 8'!$B$17:$B$23,'Activity 8'!E$17:E$23,\"N/A\",0,1)","v":"N/A"},{"$f":"_xlfn.XLOOKUP($E79,'Activity 8'!$B$17:$B$23,'Activity 8'!F$17:F$23,\"N/A\",0,1)","v":"N/A"},{"$f":"_xlfn.XLOOKUP($E79,'Activity 8'!$B$17:$B$23,'Activity 8'!G$17:G$23,\"N/A\",0,1)","v":"N/A"},{"$f":"_xlfn.XLOOKUP($E79,'Activity 8'!$B$17:$B$23,'Activity 8'!H$17:H$23,\"N/A\",0,1)","v":"N/A"},{"$f":"_xlfn.XLOOKUP($E79,'Activity 8'!$B$17:$B$23,'Activity 8'!I$17:I$23,\"N/A\",0,1)","v":"N/A"},{"$f":"_xlfn.XLOOKUP($E79,'Activity 8'!$B$17:$B$23,'Activity 8'!J$17:J$23,\"N/A\",0,1)","v":"N/A"},{"$f":"_xlfn.XLOOKUP($E79,'Activity 8'!$B$17:$B$23,'Activity 8'!K$17:K$23,\"N/A\",0,1)","v":"N/A"},{"$f":"_xlfn.XLOOKUP($E79,'Activity 8'!$B$17:$B$23,'Activity 8'!L$17:L$23,\"N/A\",0,1)","v":"N/A"},{"$f":"_xlfn.XLOOKUP($E79,'Activity 8'!$B$17:$B$23,'Activity 8'!M$17:M$23,\"N/A\",0,1)","v":"N/A"},{"$f":"_xlfn.XLOOKUP($E79,'Activity 8'!$B$17:$B$23,'Activity 8'!N$17:N$23,\"N/A\",0,1)","v":"N/A"},{"$f":"_xlfn.XLOOKUP($E79,'Activity 8'!$B$17:$B$23,'Activity 8'!P$17:P$23,\"N/A\",0,1)","v":"N/A"},{"$f":"_xlfn.XLOOKUP(E79,'Activity 9'!$B$7:$B$13,'Activity 9'!$A$7:$A$13,\"No\",0,1)","v":"No"},{"$f":"_xlfn.XLOOKUP($E79,'Activity 9'!$B$7:$B$13,'Activity 9'!J$7:J$13,\"N/A\",0,1)","v":"N/A"},{"$f":"_xlfn.XLOOKUP($E79,'Activity 9'!$B$7:$B$13,'Activity 9'!K$7:K$13,\"N/A\",0,1)","v":"N/A"},{"$f":"_xlfn.XLOOKUP($E79,'Activity 9'!$B$7:$B$13,'Activity 9'!L$7:L$13,\"N/A\",0,1)","v":"N/A"},{"$f":"_xlfn.XLOOKUP($E79,'Activity 9'!$B$7:$B$13,'Activity 9'!M$7:M$13,\"N/A\",0,1)","v":"N/A"},{"$f":"_xlfn.XLOOKUP($E79,'Activity 9'!$B$7:$B$13,'Activity 9'!N$7:N$13,\"N/A\",0,1)","v":"N/A"},{"$f":"_xlfn.XLOOKUP($E79,'Activity 9'!$B$7:$B$13,'Activity 9'!O$7:O$13,\"N/A\",0,1)","v":"N/A"},{"$f":"_xlfn.XLOOKUP($E79,'Activity 9'!$B$7:$B$13,'Activity 9'!P$7:P$13,\"N/A\",0,1)","v":"N/A"},{"$f":"_xlfn.XLOOKUP($E79,'Activity 9'!$B$7:$B$13,'Activity 9'!Q$7:Q$13,\"N/A\",0,1)","v":"N/A"},{"$f":"_xlfn.XLOOKUP($E79,'Activity 9'!$B$7:$B$13,'Activity 9'!R$7:R$13,\"N/A\",0,1)","v":"N/A"},{"$f":"_xlfn.XLOOKUP($E79,'Activity 9'!$B$7:$B$13,'Activity 9'!S$7:S$13,\"N/A\",0,1)","v":"N/A"},{"$f":"_xlfn.XLOOKUP($E79,'Activity 9'!$B$7:$B$13,'Activity 9'!T$7:T$13,\"N/A\",0,1)","v":"N/A"},{"$f":"_xlfn.XLOOKUP($E79,'Activity 9'!$B$17:$B$23,'Activity 9'!E$17:E$23,\"N/A\",0,1)","v":"N/A"},{"$f":"_xlfn.XLOOKUP($E79,'Activity 9'!$B$17:$B$23,'Activity 9'!F$17:F$23,\"N/A\",0,1)","v":"N/A"},{"$f":"_xlfn.XLOOKUP($E79,'Activity 9'!$B$17:$B$23,'Activity 9'!G$17:G$23,\"N/A\",0,1)","v":"N/A"},{"$f":"_xlfn.XLOOKUP($E79,'Activity 9'!$B$17:$B$23,'Activity 9'!H$17:H$23,\"N/A\",0,1)","v":"N/A"},{"$f":"_xlfn.XLOOKUP($E79,'Activity 9'!$B$17:$B$23,'Activity 9'!I$17:I$23,\"N/A\",0,1)","v":"N/A"},{"$f":"_xlfn.XLOOKUP($E79,'Activity 9'!$B$17:$B$23,'Activity 9'!J$17:J$23,\"N/A\",0,1)","v":"N/A"},{"$f":"_xlfn.XLOOKUP($E79,'Activity 9'!$B$17:$B$23,'Activity 9'!K$17:K$23,\"N/A\",0,1)","v":"N/A"},{"$f":"_xlfn.XLOOKUP($E79,'Activity 9'!$B$17:$B$23,'Activity 9'!L$17:L$23,\"N/A\",0,1)","v":"N/A"},{"$f":"_xlfn.XLOOKUP($E79,'Activity 9'!$B$17:$B$23,'Activity 9'!N$17:N$23,\"N/A\",0,1)","v":"N/A"},{"$f":"_xlfn.XLOOKUP($E79,'Activity 9'!$B$17:$B$23,'Activity 9'!O$17:O$23,\"N/A\",0,1)","v":"N/A"},{"$f":"_xlfn.XLOOKUP($E79,'Activity 9'!$B$17:$B$23,'Activity 9'!Q$17:Q$23,\"N/A\",0,1)","v":"N/A"},{"$f":"_xlfn.XLOOKUP($E79,'Activity 10'!$B$7:$B$13,'Activity 10'!A$7:A$13,\"No\",0,1)","v":"No"},{"$f":"_xlfn.XLOOKUP($E79,'Activity 10'!$B$7:$B$13,'Activity 10'!J$7:J$13,\"N/A\",0,1)","v":"N/A"},{"$f":"_xlfn.XLOOKUP($E79,'Activity 10'!$B$7:$B$13,'Activity 10'!K$7:K$13,\"N/A\",0,1)","v":"N/A"},{"$f":"_xlfn.XLOOKUP($E79,'Activity 10'!$B$7:$B$13,'Activity 10'!L$7:L$13,\"N/A\",0,1)","v":"N/A"},{"$f":"_xlfn.XLOOKUP($E79,'Activity 10'!$B$7:$B$13,'Activity 10'!M$7:M$13,\"N/A\",0,1)","v":"N/A"},{"$f":"_xlfn.XLOOKUP($E79,'Activity 10'!$B$7:$B$13,'Activity 10'!N$7:N$13,\"N/A\",0,1)","v":"N/A"},{"$f":"_xlfn.XLOOKUP($E79,'Activity 10'!$B$7:$B$13,'Activity 10'!O$7:O$13,\"N/A\",0,1)","v":"N/A"},{"$f":"_xlfn.XLOOKUP($E79,'Activity 10'!$B$7:$B$13,'Activity 10'!P$7:P$13,\"N/A\",0,1)","v":"N/A"},{"$f":"_xlfn.XLOOKUP($E79,'Activity 10'!$B$7:$B$13,'Activity 10'!Q$7:Q$13,\"N/A\",0,1)","v":"N/A"},{"$f":"_xlfn.XLOOKUP($E79,'Activity 10'!$B$7:$B$13,'Activity 10'!R$7:R$13,\"N/A\",0,1)","v":"N/A"},{"$f":"_xlfn.XLOOKUP($E79,'Activity 10'!$B$7:$B$13,'Activity 10'!S$7:S$13,\"N/A\",0,1)","v":"N/A"},{"$f":"_xlfn.XLOOKUP($E79,'Activity 10'!$B$7:$B$13,'Activity 10'!T$7:T$13,\"N/A\",0,1)","v":"N/A"},{"$f":"_xlfn.XLOOKUP($E79,'Activity 10'!$B$7:$B$13,'Activity 10'!U$7:U$13,\"N/A\",0,1)","v":"N/A"},{"$f":"_xlfn.XLOOKUP($E79,'Activity 10'!$B$7:$B$13,'Activity 10'!V$7:V$13,\"N/A\",0,1)","v":"N/A"},{"$f":"_xlfn.XLOOKUP($E79,'Activity 10'!$B$17:$B$23,'Activity 10'!E$17:E$23,\"N/A\",0,1)","v":"N/A"},{"$f":"_xlfn.XLOOKUP($E79,'Activity 10'!$B$17:$B$23,'Activity 10'!F$17:F$23,\"N/A\",0,1)","v":"N/A"},{"$f":"_xlfn.XLOOKUP($E79,'Activity 10'!$B$17:$B$23,'Activity 10'!G$17:G$23,\"N/A\",0,1)","v":"N/A"},{"$f":"_xlfn.XLOOKUP($E79,'Activity 10'!$B$17:$B$23,'Activity 10'!H$17:H$23,\"N/A\",0,1)","v":"N/A"},{"$f":"_xlfn.XLOOKUP($E79,'Activity 10'!$B$17:$B$23,'Activity 10'!I$17:I$23,\"N/A\",0,1)","v":"N/A"},{"$f":"_xlfn.XLOOKUP($E79,'Activity 10'!$B$17:$B$23,'Activity 10'!J$17:J$23,\"N/A\",0,1)","v":"N/A"},{"$f":"_xlfn.XLOOKUP($E79,'Activity 10'!$B$17:$B$23,'Activity 10'!K$17:K$23,\"N/A\",0,1)","v":"N/A"},{"$f":"_xlfn.XLOOKUP($E79,'Activity 10'!$B$17:$B$23,'Activity 10'!L$17:L$23,\"N/A\",0,1)","v":"N/A"},{"$f":"_xlfn.XLOOKUP($E79,'Activity 10'!$B$17:$B$23,'Activity 10'!M$17:M$23,\"N/A\",0,1)","v":"N/A"},{"$f":"_xlfn.XLOOKUP($E79,'Activity 10'!$B$17:$B$23,'Activity 10'!N$17:N$23,\"N/A\",0,1)","v":"N/A"},{"$f":"_xlfn.XLOOKUP($E79,'Activity 10'!$B$17:$B$23,'Activity 10'!P$17:P$23,\"N/A\",0,1)","v":"N/A"},{"$f":"_xlfn.XLOOKUP($E79,'Competitive Activity 1'!B$7:B$13,'Competitive Activity 1'!A$7:A$13,\"No\",0,1)","v":"No"},{"$f":"_xlfn.XLOOKUP($E79,'Competitive Activity 1'!$B$7:$B$13,'Competitive Activity 1'!H$7:H$13,\"N/A\",0,1)","v":"N/A"},{"$f":"_xlfn.XLOOKUP($E79,'Competitive Activity 1'!$B$7:$B$13,'Competitive Activity 1'!I$7:I$13,\"N/A\",0,1)","v":"N/A"},{"$f":"_xlfn.XLOOKUP($E79,'Competitive Activity 1'!$B$7:$B$13,'Competitive Activity 1'!J$7:J$13,\"N/A\",0,1)","v":"N/A"},{"$f":"_xlfn.XLOOKUP($E79,'Competitive Activity 1'!$B$7:$B$13,'Competitive Activity 1'!K$7:K$13,\"N/A\",0,1)","v":"N/A"},{"$f":"_xlfn.XLOOKUP($E79,'Competitive Activity 1'!$B$7:$B$13,'Competitive Activity 1'!L$7:L$13,\"N/A\",0,1)","v":"N/A"},{"$f":"_xlfn.XLOOKUP($E79,'Competitive Activity 1'!$B$7:$B$13,'Competitive Activity 1'!M$7:M$13,\"N/A\",0,1)","v":"N/A"},{"$f":"_xlfn.XLOOKUP($E79,'Competitive Activity 1'!$B$7:$B$13,'Competitive Activity 1'!N$7:N$13,\"N/A\",0,1)","v":"N/A"},{"$f":"_xlfn.XLOOKUP($E79,'Competitive Activity 1'!$B$7:$B$13,'Competitive Activity 1'!O$7:O$13,\"N/A\",0,1)","v":"N/A"},{"$f":"_xlfn.XLOOKUP($E79,'Competitive Activity 1'!$B$7:$B$13,'Competitive Activity 1'!P$7:P$13,\"N/A\",0,1)","v":"N/A"},{"$f":"_xlfn.XLOOKUP($E79,'Competitive Activity 1'!$B$7:$B$13,'Competitive Activity 1'!Q$7:Q$13,\"N/A\",0,1)","v":"N/A"},{"$f":"_xlfn.XLOOKUP($E79,'Competitive Activity 1'!$B$7:$B$13,'Competitive Activity 1'!R$7:R$13,\"N/A\",0,1)","v":"N/A"},{"$f":"_xlfn.XLOOKUP($E79,'Competitive Activity 1'!$B$7:$B$13,'Competitive Activity 1'!S$7:S$13,\"N/A\",0,1)","v":"N/A"},{"$f":"_xlfn.XLOOKUP($E79,'Competitive Activity 1'!$B$7:$B$13,'Competitive Activity 1'!T$7:T$13,\"N/A\",0,1)","v":"N/A"},{"$f":"_xlfn.XLOOKUP($E79,'Competitive Activity 1'!$B$7:$B$13,'Competitive Activity 1'!U$7:U$13,\"N/A\",0,1)","v":"N/A"},{"$f":"_xlfn.XLOOKUP($E79,'Competitive Activity 1'!$B$17:$B$23,'Competitive Activity 1'!C$17:C$23,\"N/A\",0,1)","v":"N/A"},{"$f":"_xlfn.XLOOKUP($E79,'Competitive Activity 1'!$B$17:$B$23,'Competitive Activity 1'!D$17:D$23,\"N/A\",0,1)","v":"N/A"},{"$f":"_xlfn.XLOOKUP($E79,'Competitive Activity 1'!$B$17:$B$23,'Competitive Activity 1'!E$17:E$23,\"N/A\",0,1)","v":"N/A"},{"$f":"_xlfn.XLOOKUP($E79,'Competitive Activity 1'!$B$17:$B$23,'Competitive Activity 1'!F$17:F$23,\"N/A\",0,1)","v":"N/A"},{"$f":"_xlfn.XLOOKUP($E79,'Competitive Activity 1'!$B$17:$B$23,'Competitive Activity 1'!G$17:G$23,\"N/A\",0,1)","v":"N/A"},{"$f":"_xlfn.XLOOKUP($E79,'Competitive Activity 1'!$B$17:$B$23,'Competitive Activity 1'!H$17:H$23,\"N/A\",0,1)","v":"N/A"},{"$f":"_xlfn.XLOOKUP($E79,'Competitive Activity 1'!$B$17:$B$23,'Competitive Activity 1'!I$17:I$23,\"N/A\",0,1)","v":"N/A"},{"$f":"_xlfn.XLOOKUP($E79,'Competitive Activity 1'!$B$17:$B$23,'Competitive Activity 1'!J$17:J$23,\"N/A\",0,1)","v":"N/A"},{"$f":"_xlfn.XLOOKUP($E79,'Competitive Activity 1'!$B$17:$B$23,'Competitive Activity 1'!K$17:K$23,\"N/A\",0,1)","v":"N/A"},{"$f":"_xlfn.XLOOKUP($E79,'Competitive Activity 1'!$B$17:$B$23,'Competitive Activity 1'!M$17:M$23,\"N/A\",0,1)","v":"N/A"},{"$f":"_xlfn.XLOOKUP($E79,'Competitive Activity 1'!$B$17:$B$23,'Competitive Activity 1'!N$17:N$23,\"N/A\",0,1)","v":"N/A"},{"$f":"_xlfn.XLOOKUP($E79,'Competitive Activity 1'!$B$17:$B$23,'Competitive Activity 1'!P$17:P$23,\"N/A\",0,1)","v":"N/A"},{"$f":"_xlfn.XLOOKUP($E79,'Competitive Activity 2'!$B$7:$B$13,'Competitive Activity 2'!A$7:A$13,\"No\",0)","v":"No"},{"$f":"_xlfn.XLOOKUP($E79,'Competitive Activity 2'!$B$7:$B$13,'Competitive Activity 2'!L$7:L$13,\"N/A\",0)","v":"N/A"},{"$f":"_xlfn.XLOOKUP($E79,'Competitive Activity 2'!$B$7:$B$13,'Competitive Activity 2'!M$7:M$13,\"N/A\",0)","v":"N/A"},{"$f":"_xlfn.XLOOKUP($E79,'Competitive Activity 2'!$B$7:$B$13,'Competitive Activity 2'!N$7:N$13,\"N/A\",0)","v":"N/A"},{"$f":"_xlfn.XLOOKUP($E79,'Competitive Activity 2'!$B$7:$B$13,'Competitive Activity 2'!O$7:O$13,\"N/A\",0)","v":"N/A"},{"$f":"_xlfn.XLOOKUP($E79,'Competitive Activity 2'!$B$7:$B$13,'Competitive Activity 2'!P$7:P$13,\"N/A\",0)","v":"N/A"},{"$f":"_xlfn.XLOOKUP($E79,'Competitive Activity 2'!$B$7:$B$13,'Competitive Activity 2'!Q$7:Q$13,\"N/A\",0)","v":"N/A"},{"$f":"_xlfn.XLOOKUP($E79,'Competitive Activity 2'!$B$7:$B$13,'Competitive Activity 2'!R$7:R$13,\"N/A\",0)","v":"N/A"},{"$f":"_xlfn.XLOOKUP($E79,'Competitive Activity 2'!$B$7:$B$13,'Competitive Activity 2'!S$7:S$13,\"N/A\",0)","v":"N/A"},{"$f":"_xlfn.XLOOKUP($E79,'Competitive Activity 2'!$B$7:$B$13,'Competitive Activity 2'!T$7:T$13,\"N/A\",0)","v":"N/A"},{"$f":"_xlfn.XLOOKUP($E79,'Competitive Activity 2'!$B$7:$B$13,'Competitive Activity 2'!U$7:U$13,\"N/A\",0)","v":"N/A"},{"$f":"_xlfn.XLOOKUP($E79,'Competitive Activity 2'!$B$17:$B$23,'Competitive Activity 2'!D$17:D$23,\"N/A\",0)","v":"N/A"},{"$f":"_xlfn.XLOOKUP($E79,'Competitive Activity 2'!$B$17:$B$23,'Competitive Activity 2'!E$17:E$23,\"N/A\",0)","v":"N/A"},{"$f":"_xlfn.XLOOKUP($E79,'Competitive Activity 2'!$B$17:$B$23,'Competitive Activity 2'!F$17:F$23,\"N/A\",0)","v":"N/A"},{"$f":"_xlfn.XLOOKUP($E79,'Competitive Activity 2'!$B$17:$B$23,'Competitive Activity 2'!G$17:G$23,\"N/A\",0)","v":"N/A"},{"$f":"_xlfn.XLOOKUP($E79,'Competitive Activity 2'!$B$17:$B$23,'Competitive Activity 2'!H$17:H$23,\"N/A\",0)","v":"N/A"},{"$f":"_xlfn.XLOOKUP($E79,'Competitive Activity 2'!$B$17:$B$23,'Competitive Activity 2'!I$17:I$23,\"N/A\",0)","v":"N/A"},{"$f":"_xlfn.XLOOKUP($E79,'Competitive Activity 2'!$B$17:$B$23,'Competitive Activity 2'!J$17:J$23,\"N/A\",0)","v":"N/A"},{"$f":"_xlfn.XLOOKUP($E79,'Competitive Activity 2'!$B$17:$B$23,'Competitive Activity 2'!K$17:K$23,\"N/A\",0)","v":"N/A"},{"$f":"_xlfn.XLOOKUP($E79,'Competitive Activity 2'!$B$17:$B$23,'Competitive Activity 2'!L$17:L$23,\"N/A\",0)","v":"N/A"},{"$f":"_xlfn.XLOOKUP($E79,'Competitive Activity 2'!$B$17:$B$23,'Competitive Activity 2'!M$17:M$23,\"N/A\",0)","v":"N/A"},{"$f":"_xlfn.XLOOKUP($E79,'Competitive Activity 2'!$B$17:$B$23,'Competitive Activity 2'!N$17:N$23,\"N/A\",0)","v":"N/A"},{"$f":"_xlfn.XLOOKUP($E79,'Competitive Activity 2'!$B$27:$B$33,'Competitive Activity 2'!D$27:D$33,\"N/A\",0)","v":"N/A"},{"$f":"_xlfn.XLOOKUP($E79,'Competitive Activity 2'!$B$27:$B$33,'Competitive Activity 2'!E$27:E$33,\"N/A\",0)","v":"N/A"},{"$f":"_xlfn.XLOOKUP($E79,'Competitive Activity 2'!$B$27:$B$33,'Competitive Activity 2'!F$27:F$33,\"N/A\",0)","v":"N/A"},{"$f":"_xlfn.XLOOKUP($E79,'Competitive Activity 2'!$B$27:$B$33,'Competitive Activity 2'!G$27:G$33,\"N/A\",0)","v":"N/A"},{"$f":"_xlfn.XLOOKUP($E79,'Competitive Activity 2'!$B$27:$B$33,'Competitive Activity 2'!H$27:H$33,\"N/A\",0)","v":"N/A"},{"$f":"_xlfn.XLOOKUP($E79,'Competitive Activity 2'!$B$27:$B$33,'Competitive Activity 2'!I$27:I$33,\"N/A\",0)","v":"N/A"},{"$f":"_xlfn.XLOOKUP($E79,'Competitive Activity 2'!$B$27:$B$33,'Competitive Activity 2'!J$27:J$33,\"N/A\",0)","v":"N/A"},{"$f":"_xlfn.XLOOKUP($E79,'Competitive Activity 2'!$B$27:$B$33,'Competitive Activity 2'!K$27:K$33,\"N/A\",0)","v":"N/A"},{"$f":"_xlfn.XLOOKUP($E79,'Competitive Activity 2'!$B$27:$B$33,'Competitive Activity 2'!M$27:M$33,\"N/A\",0)","v":"N/A"}]
[{"$f":"'1-Cover Sheet'!$C$8","v":"Select One"},{"$f":"'1-Cover Sheet'!$F$8","v":"Select One"},{"$f":"'Summary Sheet'!$D$8","v":0},{"$f":"'Summary Sheet'!$D$10","v":0},{"$f":"'Drop Down Box'!B244","v":0},{"$f":"'Drop Down Box'!C244","v":0},{"$f":"'Drop Down Box'!D244","v":"Select One"},{"$f":"_xlfn.XLOOKUP(E80,'Drop Down Box'!$B$166:$B$249,'Drop Down Box'!$A$166:$A$249,\"Unknown\",0)","v":"Activity 1"},{"$f":"_xlfn.XLOOKUP($E80,'Competitive Activity 2'!$B$27:$B$33,'Competitive Activity 2'!$L$32:$L$38,\"N/A\",0)","v":"N/A"},{"$f":"_xlfn.XLOOKUP($E80,'Competitive Activity 2'!$B$27:$B$33,'Competitive Activity 2'!$N$32:$N$38,\"N/A\",0)","v":"N/A"},{"$f":"_xlfn.XLOOKUP($E80,'Competitive Activity 2'!$B$7:$B$13,'Competitive Activity 2'!H$7:H$13,\"N/A\",0)","v":"N/A"},{"$f":"_xlfn.XLOOKUP($E80,'Competitive Activity 2'!$B$7:$B$13,'Competitive Activity 2'!I$7:I$13,\"N/A\",0)","v":"N/A"},{"$f":"_xlfn.XLOOKUP($E80,'Competitive Activity 2'!$B$7:$B$13,'Competitive Activity 2'!J$7:J$13,\"N/A\",0)","v":"N/A"},{"$f":"_xlfn.XLOOKUP($E80,'Activity 1'!$B$7:$B$13,'Activity 1'!$A$7:$A$13,\"No\",0,1)","v":"No"},{"$f":"_xlfn.XLOOKUP($E80,'Activity 1'!$B$7:$B$13,'Activity 1'!$H$7:$H$13,\"N/A\",0,1)","v":"N/A"},{"$f":"_xlfn.XLOOKUP($E80,'Activity 1'!$B$7:$B$13,'Activity 1'!I$7:I$13,\"N/A\",0,1)","v":"N/A"},{"$f":"_xlfn.XLOOKUP($E80,'Activity 1'!$B$7:$B$13,'Activity 1'!J$7:J$13,\"N/A\",0,1)","v":"N/A"},{"$f":"_xlfn.XLOOKUP($E80,'Activity 1'!$B$7:$B$13,'Activity 1'!K$7:K$13,\"N/A\",0,1)","v":"N/A"},{"$f":"_xlfn.XLOOKUP($E80,'Activity 1'!$B$7:$B$13,'Activity 1'!L$7:L$13,\"N/A\",0,1)","v":"N/A"},{"$f":"_xlfn.XLOOKUP($E80,'Activity 1'!$B$7:$B$13,'Activity 1'!M$7:M$13,\"N/A\",0,1)","v":"N/A"},{"$f":"_xlfn.XLOOKUP($E80,'Activity 1'!$B$7:$B$13,'Activity 1'!N$7:N$13,\"N/A\",0,1)","v":"N/A"},0,{"$f":"_xlfn.XLOOKUP($E80,'Activity 1'!$B$7:$B$13,'Activity 1'!O$7:O$13,\"N/A\",0,1)","v":"N/A"},{"$f":"_xlfn.XLOOKUP($E80,'Activity 1'!$B$7:$B$13,'Activity 1'!P$7:P$13,\"N/A\",0,1)","v":"N/A"},{"$f":"_xlfn.XLOOKUP($E80,'Activity 1'!$B$7:$B$13,'Activity 1'!Q$7:Q$13,\"N/A\",0,1)","v":"N/A"},{"$f":"_xlfn.XLOOKUP($E80,'Activity 1'!$B$7:$B$13,'Activity 1'!R$7:R$13,\"N/A\",0,1)","v":"N/A"},{"$f":"_xlfn.XLOOKUP($E80,'Activity 1'!$B$7:$B$13,'Activity 1'!S$7:S$13,\"N/A\",0,1)","v":"N/A"},{"$f":"_xlfn.XLOOKUP($E80,'Activity 1'!$B$7:$B$13,'Activity 1'!T$7:T$13,\"N/A\",0,1)","v":"N/A"},{"$f":"_xlfn.XLOOKUP($E80,'Activity 1'!$B$7:$B$13,'Activity 1'!U$7:U$13,\"N/A\",0,1)","v":"N/A"},{"$f":"_xlfn.XLOOKUP($E80,'Activity 1'!$B$7:$B$13,'Activity 1'!V$7:V$13,\"N/A\",0,1)","v":"N/A"},{"$f":"_xlfn.XLOOKUP($E80,'Activity 1'!$B$17:$B$23,'Activity 1'!C$17:C$23,\"N/A\",0,1)","v":"N/A"},{"$f":"_xlfn.XLOOKUP($E80,'Activity 1'!$B$17:$B$23,'Activity 1'!D$17:D$23,\"N/A\",0,1)","v":"N/A"},{"$f":"_xlfn.XLOOKUP($E80,'Activity 1'!$B$17:$B$23,'Activity 1'!E$17:E$23,\"N/A\",0,1)","v":"N/A"},{"$f":"_xlfn.XLOOKUP($E80,'Activity 1'!$B$17:$B$23,'Activity 1'!F$17:F$23,\"N/A\",0,1)","v":"N/A"},{"$f":"_xlfn.XLOOKUP($E80,'Activity 1'!$B$17:$B$23,'Activity 1'!G$17:G$23,\"N/A\",0,1)","v":"N/A"},{"$f":"_xlfn.XLOOKUP($E80,'Activity 1'!$B$17:$B$23,'Activity 1'!H$17:H$23,\"N/A\",0,1)","v":"N/A"},{"$f":"_xlfn.XLOOKUP($E80,'Activity 1'!$B$17:$B$23,'Activity 1'!I$17:I$23,\"N/A\",0,1)","v":"N/A"},{"$f":"_xlfn.XLOOKUP($E80,'Activity 1'!$B$17:$B$23,'Activity 1'!J$17:J$23,\"N/A\",0,1)","v":"N/A"},{"$f":"_xlfn.XLOOKUP($E80,'Activity 1'!$B$17:$B$23,'Activity 1'!K$17:K$23,\"N/A\",0,1)","v":"N/A"},{"$f":"_xlfn.XLOOKUP($E80,'Activity 1'!$B$17:$B$23,'Activity 1'!L$17:L$23,\"N/A\",0,1)","v":"N/A"},{"$f":"_xlfn.XLOOKUP($E80,'Activity 1'!$B$17:$B$23,'Activity 1'!M$17:M$23,\"N/A\",0,1)","v":"N/A"},{"$f":"_xlfn.XLOOKUP($E80,'Activity 1'!$B$17:$B$23,'Activity 1'!O$17:O$23,\"N/A\",0,1)","v":"N/A"},{"$f":"_xlfn.XLOOKUP($E80,'Activity 1'!$B$17:$B$23,'Activity 1'!Q$17:Q$23,\"N/A\",0,1)","v":"N/A"},{"$f":"_xlfn.XLOOKUP($E80,'Activity 2'!$B$7:$B$13,'Activity 2'!$A$7:$A$13,\"No\",0,1)","v":"No"},{"$f":"_xlfn.XLOOKUP($E80,'Activity 2'!B$7:B$13,'Activity 2'!H$7:H$13,\"N/A\",0)","v":"N/A"},{"$f":"_xlfn.XLOOKUP($E80,'Activity 2'!C$7:C$13,'Activity 2'!I$7:I$13,\"N/A\",0)","v":"N/A"},{"$f":"_xlfn.XLOOKUP($E80,'Activity 2'!D$7:D$13,'Activity 2'!J$7:J$13,\"N/A\",0)","v":"N/A"},{"$f":"_xlfn.XLOOKUP($E80,'Activity 2'!E$7:E$13,'Activity 2'!K$7:K$13,\"N/A\",0)","v":"N/A"},{"$f":"_xlfn.XLOOKUP($E80,'Activity 2'!F$7:F$13,'Activity 2'!L$7:L$13,\"N/A\",0)","v":"N/A"},{"$f":"_xlfn.XLOOKUP($E80,'Activity 2'!G$7:G$13,'Activity 2'!M$7:M$13,\"N/A\",0)","v":"N/A"},{"$f":"_xlfn.XLOOKUP($E80,'Activity 2'!H$7:H$13,'Activity 2'!N$7:N$13,\"N/A\",0)","v":"N/A"},{"$f":"_xlfn.XLOOKUP($E80,'Activity 2'!I$7:I$13,'Activity 2'!O$7:O$13,\"N/A\",0)","v":"N/A"},{"$f":"_xlfn.XLOOKUP($E80,'Activity 2'!J$7:J$13,'Activity 2'!P$7:P$13,\"N/A\",0)","v":"N/A"},{"$f":"_xlfn.XLOOKUP($E80,'Activity 2'!K$7:K$13,'Activity 2'!Q$7:Q$13,\"N/A\",0)","v":"N/A"},{"$f":"_xlfn.XLOOKUP($E80,'Activity 2'!L$7:L$13,'Activity 2'!R$7:R$13,\"N/A\",0)","v":"N/A"},{"$f":"_xlfn.XLOOKUP($E80,'Activity 2'!M$7:M$13,'Activity 2'!S$7:S$13,\"N/A\",0)","v":"N/A"},{"$f":"_xlfn.XLOOKUP($E80,'Activity 2'!N$7:N$13,'Activity 2'!T$7:T$13,\"N/A\",0)","v":"N/A"},{"$f":"_xlfn.XLOOKUP($E80,'Activity 2'!O$7:O$13,'Activity 2'!U$7:U$13,\"N/A\",0)","v":"N/A"},{"$f":"_xlfn.XLOOKUP($E80,'Activity 2'!P$7:P$13,'Activity 2'!V$7:V$13,\"N/A\",0)","v":"N/A"},{"$f":"_xlfn.XLOOKUP($E80,'Activity 2'!$B$17:$B$23,'Activity 2'!C$17:C$23,\"N/A\",0,1)","v":"N/A"},{"$f":"_xlfn.XLOOKUP($E80,'Activity 2'!$B$17:$B$23,'Activity 2'!D$17:D$23,\"N/A\",0,1)","v":"N/A"},{"$f":"_xlfn.XLOOKUP($E80,'Activity 2'!$B$17:$B$23,'Activity 2'!E$17:E$23,\"N/A\",0,1)","v":"N/A"},{"$f":"_xlfn.XLOOKUP($E80,'Activity 2'!$B$17:$B$23,'Activity 2'!F$17:F$23,\"N/A\",0,1)","v":"N/A"},{"$f":"_xlfn.XLOOKUP($E80,'Activity 2'!$B$17:$B$23,'Activity 2'!G$17:G$23,\"N/A\",0,1)","v":"N/A"},{"$f":"_xlfn.XLOOKUP($E80,'Activity 2'!$B$17:$B$23,'Activity 2'!H$17:H$23,\"N/A\",0,1)","v":"N/A"},{"$f":"_xlfn.XLOOKUP($E80,'Activity 2'!$B$17:$B$23,'Activity 2'!I$17:I$23,\"N/A\",0,1)","v":"N/A"},{"$f":"_xlfn.XLOOKUP($E80,'Activity 2'!$B$17:$B$23,'Activity 2'!J$17:J$23,\"N/A\",0,1)","v":"N/A"},{"$f":"_xlfn.XLOOKUP($E80,'Activity 2'!$B$17:$B$23,'Activity 2'!K$17:K$23,\"N/A\",0,1)","v":"N/A"},{"$f":"_xlfn.XLOOKUP($E80,'Activity 2'!$B$17:$B$23,'Activity 2'!L$17:L$23,\"N/A\",0,1)","v":"N/A"},{"$f":"_xlfn.XLOOKUP($E80,'Activity 2'!$B$17:$B$23,'Activity 2'!M$17:M$23,\"N/A\",0,1)","v":"N/A"},{"$f":"_xlfn.XLOOKUP($E80,'Activity 2'!$B$17:$B$23,'Activity 2'!O$17:O$23,\"N/A\",0,1)","v":"N/A"},{"$f":"_xlfn.XLOOKUP($E80,'Activity 2'!$B$17:$B$23,'Activity 2'!Q$17:Q$23,\"N/A\",0,1)","v":"N/A"},null,{"$f":"_xlfn.XLOOKUP($E80,'Activity 3'!$B$8:$B$14,'Activity 3'!K$8:K$14,\"N/A\",0,1)","v":"N/A"},{"$f":"_xlfn.XLOOKUP($E80,'Activity 3'!$B$8:$B$14,'Activity 3'!L$8:L$14,\"N/A\",0,1)","v":"N/A"},{"$f":"_xlfn.XLOOKUP($E80,'Activity 3'!$B$8:$B$14,'Activity 3'!M$8:M$14,\"N/A\",0,1)","v":"N/A"},{"$f":"_xlfn.XLOOKUP($E80,'Activity 3'!$B$8:$B$14,'Activity 3'!N$8:N$14,\"N/A\",0,1)","v":"N/A"},{"$f":"_xlfn.XLOOKUP($E80,'Activity 3'!$B$8:$B$14,'Activity 3'!O$8:O$14,\"N/A\",0,1)","v":"N/A"},{"$f":"_xlfn.XLOOKUP($E80,'Activity 3'!$B$8:$B$14,'Activity 3'!R$8:R$14,\"N/A\",0,1)","v":"N/A"},{"$f":"_xlfn.XLOOKUP($E80,'Activity 4'!$B$8:$B$14,'Activity 4'!$A$8:$A$14,\"No\",0,1)","v":"No"},{"$f":"_xlfn.XLOOKUP($E80,'Activity 4'!$B$8:$B$14,'Activity 4'!L$8:L$14,\"N/A\",0,1)","v":"N/A"},{"$f":"_xlfn.XLOOKUP($E80,'Activity 4'!$B$8:$B$14,'Activity 4'!I$8:I$14,\"N/A\",0,1)","v":"N/A"},{"$f":"_xlfn.XLOOKUP($E80,'Activity 4'!$B$8:$B$14,'Activity 4'!M$8:M$14,\"N/A\",0,1)","v":"N/A"},{"$f":"_xlfn.XLOOKUP($E80,'Activity 5'!$B$8:$B$14,'Activity 5'!$A$8:$A$14,\"No\",0,1)","v":"No"},{"$f":"_xlfn.XLOOKUP($E80,'Activity 5'!$B$8:$B$14,'Activity 5'!J$8:J$14,\"N/A\",0,1)","v":"N/A"},{"$f":"_xlfn.XLOOKUP($E80,'Activity 5'!$B$8:$B$14,'Activity 5'!K$8:K$14,\"N/A\",0,1)","v":"N/A"},{"$f":"_xlfn.XLOOKUP($E80,'Activity 5'!$B$8:$B$14,'Activity 5'!N$8:N$14,\"N/A\",0,1)","v":"N/A"},{"$f":"_xlfn.XLOOKUP($E80,'Activity 5'!$B$8:$B$14,'Activity 5'!O$8:O$14,\"N/A\",0,1)","v":"N/A"},{"$f":"_xlfn.XLOOKUP($E80,'Activity 5'!$B$8:$B$14,'Activity 5'!P$8:P$14,\"N/A\",0,1)","v":"N/A"},{"$f":"_xlfn.XLOOKUP($E80,'Activity 5'!$B$8:$B$14,'Activity 5'!Q$8:Q$14,\"N/A\",0,1)","v":"N/A"},{"$f":"_xlfn.XLOOKUP($E80,'Activity 5'!$B$8:$B$14,'Activity 5'!R$8:R$14,\"N/A\",0,1)","v":"N/A"},{"$f":"_xlfn.XLOOKUP($E80,'Activity 6'!$B$7:$B$13,'Activity 6'!A$7:A$13,\"No\",0,1)","v":"No"},{"$f":"_xlfn.XLOOKUP($E80,'Activity 6'!$B$7:$B$13,'Activity 6'!K$7:K$13,\"N/A\",0,1)","v":"N/A"},{"$f":"_xlfn.XLOOKUP($E80,'Activity 6'!$B$7:$B$13,'Activity 6'!L$7:L$13,\"N/A\",0,1)","v":"N/A"},{"$f":"_xlfn.XLOOKUP($E80,'Activity 6'!$B$7:$B$13,'Activity 6'!M$7:M$13,\"N/A\",0,1)","v":"N/A"},{"$f":"_xlfn.XLOOKUP($E80,'Activity 6'!$B$7:$B$13,'Activity 6'!N$7:N$13,\"N/A\",0,1)","v":"N/A"},{"$f":"_xlfn.XLOOKUP($E80,'Activity 6'!$B$7:$B$13,'Activity 6'!O$7:O$13,\"N/A\",0,1)","v":"N/A"},{"$f":"_xlfn.XLOOKUP($E80,'Activity 6'!$B$7:$B$13,'Activity 6'!P$7:P$13,\"N/A\",0,1)","v":"N/A"},{"$f":"_xlfn.XLOOKUP($E80,'Activity 6'!$B$7:$B$13,'Activity 6'!Q$7:Q$13,\"N/A\",0,1)","v":"N/A"},{"$f":"_xlfn.XLOOKUP($E80,'Activity 6'!$B$7:$B$13,'Activity 6'!R$7:R$13,\"N/A\",0,1)","v":"N/A"},{"$f":"_xlfn.XLOOKUP($E80,'Activity 6'!$B$7:$B$13,'Activity 6'!S$7:S$13,\"N/A\",0,1)","v":"N/A"},{"$f":"_xlfn.XLOOKUP($E80,'Activity 6'!$B$7:$B$13,'Activity 6'!T$7:T$13,\"N/A\",0,1)","v":"N/A"},{"$f":"_xlfn.XLOOKUP($E80,'Activity 6'!$B$7:$B$13,'Activity 6'!U$7:U$13,\"N/A\",0,1)","v":"N/A"},{"$f":"_xlfn.XLOOKUP($E80,'Activity 6'!$B$22:$B$28,'Activity 6'!C$22:C$28,\"N/A\",0,1)","v":"N/A"},{"$f":"_xlfn.XLOOKUP($E80,'Activity 6'!$B$22:$B$28,'Activity 6'!D$22:D$28,\"N/A\",0,1)","v":"N/A"},{"$f":"_xlfn.XLOOKUP($E80,'Activity 6'!$B$22:$B$28,'Activity 6'!E$22:E$28,\"N/A\",0,1)","v":"N/A"},{"$f":"_xlfn.XLOOKUP($E80,'Activity 6'!$B$22:$B$28,'Activity 6'!F$22:F$28,\"N/A\",0,1)","v":"N/A"},{"$f":"_xlfn.XLOOKUP($E80,'Activity 6'!$B$22:$B$28,'Activity 6'!G$22:G$28,\"N/A\",0,1)","v":"N/A"},{"$f":"_xlfn.XLOOKUP($E80,'Activity 6'!$B$22:$B$28,'Activity 6'!H$22:H$28,\"N/A\",0,1)","v":"N/A"},{"$f":"_xlfn.XLOOKUP($E80,'Activity 6'!$B$22:$B$28,'Activity 6'!I$22:I$28,\"N/A\",0,1)","v":"N/A"},{"$f":"_xlfn.XLOOKUP($E80,'Activity 6'!$B$22:$B$28,'Activity 6'!J$22:J$28,\"N/A\",0,1)","v":"N/A"},{"$f":"_xlfn.XLOOKUP($E80,'Activity 6'!$B$22:$B$28,'Activity 6'!K$22:K$28,\"N/A\",0,1)","v":"N/A"},{"$f":"_xlfn.XLOOKUP($E80,'Activity 6'!$B$22:$B$28,'Activity 6'!L$22:L$28,\"N/A\",0,1)","v":"N/A"},{"$f":"_xlfn.XLOOKUP($E80,'Activity 6'!$B$22:$B$28,'Activity 6'!M$22:M$28,\"N/A\",0,1)","v":"N/A"},{"$f":"_xlfn.XLOOKUP($E80,'Activity 6'!$B$22:$B$28,'Activity 6'!N$22:N$28,\"N/A\",0,1)","v":"N/A"},{"$f":"_xlfn.XLOOKUP($E80,'Activity 6'!$B$32:$B$38,'Activity 6'!C$32:C$38,\"N/A\",0,1)","v":"N/A"},{"$f":"_xlfn.XLOOKUP($E80,'Activity 6'!$B$32:$B$38,'Activity 6'!D$32:D$38,\"N/A\",0,1)","v":"N/A"},{"$f":"_xlfn.XLOOKUP($E80,'Activity 6'!$B$32:$B$38,'Activity 6'!E$32:E$38,\"N/A\",0,1)","v":"N/A"},{"$f":"_xlfn.XLOOKUP($E80,'Activity 6'!$B$32:$B$38,'Activity 6'!F$32:F$38,\"N/A\",0,1)","v":"N/A"},{"$f":"_xlfn.XLOOKUP($E80,'Activity 6'!$B$32:$B$38,'Activity 6'!G$32:G$38,\"N/A\",0,1)","v":"N/A"},{"$f":"_xlfn.XLOOKUP($E80,'Activity 6'!$B$32:$B$38,'Activity 6'!H$32:H$38,\"N/A\",0,1)","v":"N/A"},{"$f":"_xlfn.XLOOKUP($E80,'Activity 6'!$B$32:$B$38,'Activity 6'!I$32:I$38,\"N/A\",0,1)","v":"N/A"},{"$f":"_xlfn.XLOOKUP($E80,'Activity 6'!$B$32:$B$38,'Activity 6'!J$32:J$38,\"N/A\",0,1)","v":"N/A"},{"$f":"_xlfn.XLOOKUP($E80,'Activity 6'!$B$32:$B$38,'Activity 6'!K$32:K$38,\"N/A\",0,1)","v":"N/A"},{"$f":"_xlfn.XLOOKUP($E80,'Activity 6'!$B$32:$B$38,'Activity 6'!M$32:M$38,\"N/A\",0,1)","v":"N/A"},{"$f":"_xlfn.XLOOKUP($E80,'Activity 7'!$B$7:$B$13,'Activity 7'!$A$7:$A$13,\"No\",0,1)","v":"No"},{"$f":"_xlfn.XLOOKUP($E80,'Activity 7'!$B$7:$B$13,'Activity 7'!M$7:M$13,\"N/A\",0,1)","v":"N/A"},{"$f":"_xlfn.XLOOKUP($E80,'Activity 7'!$B$7:$B$13,'Activity 7'!K$7:K$13,\"N/A\",0,1)","v":"N/A"},{"$f":"_xlfn.XLOOKUP($E80,'Activity 7'!$B$7:$B$13,'Activity 7'!N$7:N$13,\"N/A\",0,1)","v":"N/A"},{"$f":"_xlfn.XLOOKUP($E80,'Activity 7'!$B$7:$B$13,'Activity 7'!O$7:O$13,\"N/A\",0,1)","v":"N/A"},{"$f":"_xlfn.XLOOKUP($E80,'Activity 7'!$B$7:$B$13,'Activity 7'!P$7:P$13,\"N/A\",0,1)","v":"N/A"},{"$f":"_xlfn.XLOOKUP($E80,'Activity 7'!$B$7:$B$13,'Activity 7'!Q$7:Q$13,\"N/A\",0,1)","v":"N/A"},{"$f":"_xlfn.XLOOKUP($E80,'Activity 7'!$B$7:$B$13,'Activity 7'!R$7:R$13,\"N/A\",0,1)","v":"N/A"},{"$f":"_xlfn.XLOOKUP($E80,'Activity 7'!$B$7:$B$13,'Activity 7'!S$7:S$13,\"N/A\",0,1)","v":"N/A"},{"$f":"_xlfn.XLOOKUP($E80,'Activity 7'!$B$7:$B$13,'Activity 7'!T$7:T$13,\"N/A\",0,1)","v":"N/A"},{"$f":"_xlfn.XLOOKUP($E80,'Activity 7'!$B$7:$B$13,'Activity 7'!U$7:U$13,\"N/A\",0,1)","v":"N/A"},{"$f":"_xlfn.XLOOKUP($E80,'Activity 7'!$B$7:$B$13,'Activity 7'!V$7:V$13,\"N/A\",0,1)","v":"N/A"},{"$f":"_xlfn.XLOOKUP($E80,'Activity 7'!$B$17:$B$23,'Activity 7'!E$17:E$23,\"N/A\",0,1)","v":"N/A"},{"$f":"_xlfn.XLOOKUP($E80,'Activity 7'!$B$17:$B$23,'Activity 7'!G$17:G$23,\"N/A\",0,1)","v":"N/A"},{"$f":"_xlfn.XLOOKUP($E80,'Activity 7'!$B$17:$B$23,'Activity 7'!I$17:I$23,\"N/A\",0,1)","v":"N/A"},{"$f":"_xlfn.XLOOKUP($E80,'Activity 7'!$B$17:$B$23,'Activity 7'!J$17:J$23,\"N/A\",0,1)","v":"N/A"},{"$f":"_xlfn.XLOOKUP($E80,'Activity 7'!$B$17:$B$23,'Activity 7'!K$17:K$23,\"N/A\",0,1)","v":"N/A"},{"$f":"_xlfn.XLOOKUP($E80,'Activity 7'!$B$17:$B$23,'Activity 7'!L$17:L$23,\"N/A\",0,1)","v":"N/A"},{"$f":"_xlfn.XLOOKUP($E80,'Activity 7'!$B$17:$B$23,'Activity 7'!M$17:M$23,\"N/A\",0,1)","v":"N/A"},{"$f":"_xlfn.XLOOKUP($E80,'Activity 7'!$B$17:$B$23,'Activity 7'!N$17:N$23,\"N/A\",0,1)","v":"N/A"},{"$f":"_xlfn.XLOOKUP($E80,'Activity 7'!$B$17:$B$23,'Activity 7'!P$17:P$23,\"N/A\",0,1)","v":"N/A"},{"$f":"_xlfn.XLOOKUP($E80,'Activity 8'!$B$7:$B$13,'Activity 8'!A$7:A$13,\"No\",0,1)","v":"No"},{"$f":"_xlfn.XLOOKUP($E80,'Activity 8'!$B$7:$B$13,'Activity 8'!I$7:I$13,\"N/A\",0,1)","v":"N/A"},{"$f":"_xlfn.XLOOKUP($E80,'Activity 8'!$B$7:$B$13,'Activity 8'!J$7:J$13,\"N/A\",0,1)","v":"N/A"},{"$f":"_xlfn.XLOOKUP($E80,'Activity 8'!$B$7:$B$13,'Activity 8'!K$7:K$13,\"N/A\",0,1)","v":"N/A"},{"$f":"_xlfn.XLOOKUP($E80,'Activity 8'!$B$7:$B$13,'Activity 8'!L$7:L$13,\"N/A\",0,1)","v":"N/A"},{"$f":"_xlfn.XLOOKUP($E80,'Activity 8'!$B$7:$B$13,'Activity 8'!M$7:M$13,\"N/A\",0,1)","v":"N/A"},{"$f":"_xlfn.XLOOKUP($E80,'Activity 8'!$B$7:$B$13,'Activity 8'!N$7:N$13,\"N/A\",0,1)","v":"N/A"},{"$f":"_xlfn.XLOOKUP($E80,'Activity 8'!$B$7:$B$13,'Activity 8'!O$7:O$13,\"N/A\",0,1)","v":"N/A"},{"$f":"_xlfn.XLOOKUP($E80,'Activity 8'!$B$7:$B$13,'Activity 8'!P$7:P$13,\"N/A\",0,1)","v":"N/A"},{"$f":"_xlfn.XLOOKUP($E80,'Activity 8'!$B$7:$B$13,'Activity 8'!Q$7:Q$13,\"N/A\",0,1)","v":"N/A"},{"$f":"_xlfn.XLOOKUP($E80,'Activity 8'!$B$7:$B$13,'Activity 8'!R$7:R$13,\"N/A\",0,1)","v":"N/A"},{"$f":"_xlfn.XLOOKUP($E80,'Activity 8'!$B$7:$B$13,'Activity 8'!S$7:S$13,\"N/A\",0,1)","v":"N/A"},{"$f":"_xlfn.XLOOKUP($E80,'Activity 8'!$B$7:$B$13,'Activity 8'!T$7:T$13,\"N/A\",0,1)","v":"N/A"},{"$f":"_xlfn.XLOOKUP($E80,'Activity 8'!$B$7:$B$13,'Activity 8'!U$7:U$13,\"N/A\",0,1)","v":"N/A"},{"$f":"_xlfn.XLOOKUP($E80,'Activity 8'!$B$7:$B$13,'Activity 8'!V$7:V$13,\"N/A\",0,1)","v":"N/A"},{"$f":"_xlfn.XLOOKUP($E80,'Activity 8'!$B$17:$B$23,'Activity 8'!D$17:D$23,\"N/A\",0,1)","v":"N/A"},{"$f":"_xlfn.XLOOKUP($E80,'Activity 8'!$B$17:$B$23,'Activity 8'!E$17:E$23,\"N/A\",0,1)","v":"N/A"},{"$f":"_xlfn.XLOOKUP($E80,'Activity 8'!$B$17:$B$23,'Activity 8'!F$17:F$23,\"N/A\",0,1)","v":"N/A"},{"$f":"_xlfn.XLOOKUP($E80,'Activity 8'!$B$17:$B$23,'Activity 8'!G$17:G$23,\"N/A\",0,1)","v":"N/A"},{"$f":"_xlfn.XLOOKUP($E80,'Activity 8'!$B$17:$B$23,'Activity 8'!H$17:H$23,\"N/A\",0,1)","v":"N/A"},{"$f":"_xlfn.XLOOKUP($E80,'Activity 8'!$B$17:$B$23,'Activity 8'!I$17:I$23,\"N/A\",0,1)","v":"N/A"},{"$f":"_xlfn.XLOOKUP($E80,'Activity 8'!$B$17:$B$23,'Activity 8'!J$17:J$23,\"N/A\",0,1)","v":"N/A"},{"$f":"_xlfn.XLOOKUP($E80,'Activity 8'!$B$17:$B$23,'Activity 8'!K$17:K$23,\"N/A\",0,1)","v":"N/A"},{"$f":"_xlfn.XLOOKUP($E80,'Activity 8'!$B$17:$B$23,'Activity 8'!L$17:L$23,\"N/A\",0,1)","v":"N/A"},{"$f":"_xlfn.XLOOKUP($E80,'Activity 8'!$B$17:$B$23,'Activity 8'!M$17:M$23,\"N/A\",0,1)","v":"N/A"},{"$f":"_xlfn.XLOOKUP($E80,'Activity 8'!$B$17:$B$23,'Activity 8'!N$17:N$23,\"N/A\",0,1)","v":"N/A"},{"$f":"_xlfn.XLOOKUP($E80,'Activity 8'!$B$17:$B$23,'Activity 8'!P$17:P$23,\"N/A\",0,1)","v":"N/A"},{"$f":"_xlfn.XLOOKUP(E80,'Activity 9'!$B$7:$B$13,'Activity 9'!$A$7:$A$13,\"No\",0,1)","v":"No"},{"$f":"_xlfn.XLOOKUP($E80,'Activity 9'!$B$7:$B$13,'Activity 9'!J$7:J$13,\"N/A\",0,1)","v":"N/A"},{"$f":"_xlfn.XLOOKUP($E80,'Activity 9'!$B$7:$B$13,'Activity 9'!K$7:K$13,\"N/A\",0,1)","v":"N/A"},{"$f":"_xlfn.XLOOKUP($E80,'Activity 9'!$B$7:$B$13,'Activity 9'!L$7:L$13,\"N/A\",0,1)","v":"N/A"},{"$f":"_xlfn.XLOOKUP($E80,'Activity 9'!$B$7:$B$13,'Activity 9'!M$7:M$13,\"N/A\",0,1)","v":"N/A"},{"$f":"_xlfn.XLOOKUP($E80,'Activity 9'!$B$7:$B$13,'Activity 9'!N$7:N$13,\"N/A\",0,1)","v":"N/A"},{"$f":"_xlfn.XLOOKUP($E80,'Activity 9'!$B$7:$B$13,'Activity 9'!O$7:O$13,\"N/A\",0,1)","v":"N/A"},{"$f":"_xlfn.XLOOKUP($E80,'Activity 9'!$B$7:$B$13,'Activity 9'!P$7:P$13,\"N/A\",0,1)","v":"N/A"},{"$f":"_xlfn.XLOOKUP($E80,'Activity 9'!$B$7:$B$13,'Activity 9'!Q$7:Q$13,\"N/A\",0,1)","v":"N/A"},{"$f":"_xlfn.XLOOKUP($E80,'Activity 9'!$B$7:$B$13,'Activity 9'!R$7:R$13,\"N/A\",0,1)","v":"N/A"},{"$f":"_xlfn.XLOOKUP($E80,'Activity 9'!$B$7:$B$13,'Activity 9'!S$7:S$13,\"N/A\",0,1)","v":"N/A"},{"$f":"_xlfn.XLOOKUP($E80,'Activity 9'!$B$7:$B$13,'Activity 9'!T$7:T$13,\"N/A\",0,1)","v":"N/A"},{"$f":"_xlfn.XLOOKUP($E80,'Activity 9'!$B$17:$B$23,'Activity 9'!E$17:E$23,\"N/A\",0,1)","v":"N/A"},{"$f":"_xlfn.XLOOKUP($E80,'Activity 9'!$B$17:$B$23,'Activity 9'!F$17:F$23,\"N/A\",0,1)","v":"N/A"},{"$f":"_xlfn.XLOOKUP($E80,'Activity 9'!$B$17:$B$23,'Activity 9'!G$17:G$23,\"N/A\",0,1)","v":"N/A"},{"$f":"_xlfn.XLOOKUP($E80,'Activity 9'!$B$17:$B$23,'Activity 9'!H$17:H$23,\"N/A\",0,1)","v":"N/A"},{"$f":"_xlfn.XLOOKUP($E80,'Activity 9'!$B$17:$B$23,'Activity 9'!I$17:I$23,\"N/A\",0,1)","v":"N/A"},{"$f":"_xlfn.XLOOKUP($E80,'Activity 9'!$B$17:$B$23,'Activity 9'!J$17:J$23,\"N/A\",0,1)","v":"N/A"},{"$f":"_xlfn.XLOOKUP($E80,'Activity 9'!$B$17:$B$23,'Activity 9'!K$17:K$23,\"N/A\",0,1)","v":"N/A"},{"$f":"_xlfn.XLOOKUP($E80,'Activity 9'!$B$17:$B$23,'Activity 9'!L$17:L$23,\"N/A\",0,1)","v":"N/A"},{"$f":"_xlfn.XLOOKUP($E80,'Activity 9'!$B$17:$B$23,'Activity 9'!N$17:N$23,\"N/A\",0,1)","v":"N/A"},{"$f":"_xlfn.XLOOKUP($E80,'Activity 9'!$B$17:$B$23,'Activity 9'!O$17:O$23,\"N/A\",0,1)","v":"N/A"},{"$f":"_xlfn.XLOOKUP($E80,'Activity 9'!$B$17:$B$23,'Activity 9'!Q$17:Q$23,\"N/A\",0,1)","v":"N/A"},{"$f":"_xlfn.XLOOKUP($E80,'Activity 10'!$B$7:$B$13,'Activity 10'!A$7:A$13,\"No\",0,1)","v":"No"},{"$f":"_xlfn.XLOOKUP($E80,'Activity 10'!$B$7:$B$13,'Activity 10'!J$7:J$13,\"N/A\",0,1)","v":"N/A"},{"$f":"_xlfn.XLOOKUP($E80,'Activity 10'!$B$7:$B$13,'Activity 10'!K$7:K$13,\"N/A\",0,1)","v":"N/A"},{"$f":"_xlfn.XLOOKUP($E80,'Activity 10'!$B$7:$B$13,'Activity 10'!L$7:L$13,\"N/A\",0,1)","v":"N/A"},{"$f":"_xlfn.XLOOKUP($E80,'Activity 10'!$B$7:$B$13,'Activity 10'!M$7:M$13,\"N/A\",0,1)","v":"N/A"},{"$f":"_xlfn.XLOOKUP($E80,'Activity 10'!$B$7:$B$13,'Activity 10'!N$7:N$13,\"N/A\",0,1)","v":"N/A"},{"$f":"_xlfn.XLOOKUP($E80,'Activity 10'!$B$7:$B$13,'Activity 10'!O$7:O$13,\"N/A\",0,1)","v":"N/A"},{"$f":"_xlfn.XLOOKUP($E80,'Activity 10'!$B$7:$B$13,'Activity 10'!P$7:P$13,\"N/A\",0,1)","v":"N/A"},{"$f":"_xlfn.XLOOKUP($E80,'Activity 10'!$B$7:$B$13,'Activity 10'!Q$7:Q$13,\"N/A\",0,1)","v":"N/A"},{"$f":"_xlfn.XLOOKUP($E80,'Activity 10'!$B$7:$B$13,'Activity 10'!R$7:R$13,\"N/A\",0,1)","v":"N/A"},{"$f":"_xlfn.XLOOKUP($E80,'Activity 10'!$B$7:$B$13,'Activity 10'!S$7:S$13,\"N/A\",0,1)","v":"N/A"},{"$f":"_xlfn.XLOOKUP($E80,'Activity 10'!$B$7:$B$13,'Activity 10'!T$7:T$13,\"N/A\",0,1)","v":"N/A"},{"$f":"_xlfn.XLOOKUP($E80,'Activity 10'!$B$7:$B$13,'Activity 10'!U$7:U$13,\"N/A\",0,1)","v":"N/A"},{"$f":"_xlfn.XLOOKUP($E80,'Activity 10'!$B$7:$B$13,'Activity 10'!V$7:V$13,\"N/A\",0,1)","v":"N/A"},{"$f":"_xlfn.XLOOKUP($E80,'Activity 10'!$B$17:$B$23,'Activity 10'!E$17:E$23,\"N/A\",0,1)","v":"N/A"},{"$f":"_xlfn.XLOOKUP($E80,'Activity 10'!$B$17:$B$23,'Activity 10'!F$17:F$23,\"N/A\",0,1)","v":"N/A"},{"$f":"_xlfn.XLOOKUP($E80,'Activity 10'!$B$17:$B$23,'Activity 10'!G$17:G$23,\"N/A\",0,1)","v":"N/A"},{"$f":"_xlfn.XLOOKUP($E80,'Activity 10'!$B$17:$B$23,'Activity 10'!H$17:H$23,\"N/A\",0,1)","v":"N/A"},{"$f":"_xlfn.XLOOKUP($E80,'Activity 10'!$B$17:$B$23,'Activity 10'!I$17:I$23,\"N/A\",0,1)","v":"N/A"},{"$f":"_xlfn.XLOOKUP($E80,'Activity 10'!$B$17:$B$23,'Activity 10'!J$17:J$23,\"N/A\",0,1)","v":"N/A"},{"$f":"_xlfn.XLOOKUP($E80,'Activity 10'!$B$17:$B$23,'Activity 10'!K$17:K$23,\"N/A\",0,1)","v":"N/A"},{"$f":"_xlfn.XLOOKUP($E80,'Activity 10'!$B$17:$B$23,'Activity 10'!L$17:L$23,\"N/A\",0,1)","v":"N/A"},{"$f":"_xlfn.XLOOKUP($E80,'Activity 10'!$B$17:$B$23,'Activity 10'!M$17:M$23,\"N/A\",0,1)","v":"N/A"},{"$f":"_xlfn.XLOOKUP($E80,'Activity 10'!$B$17:$B$23,'Activity 10'!N$17:N$23,\"N/A\",0,1)","v":"N/A"},{"$f":"_xlfn.XLOOKUP($E80,'Activity 10'!$B$17:$B$23,'Activity 10'!P$17:P$23,\"N/A\",0,1)","v":"N/A"},{"$f":"_xlfn.XLOOKUP($E80,'Competitive Activity 1'!B$7:B$13,'Competitive Activity 1'!A$7:A$13,\"No\",0,1)","v":"No"},{"$f":"_xlfn.XLOOKUP($E80,'Competitive Activity 1'!$B$7:$B$13,'Competitive Activity 1'!H$7:H$13,\"N/A\",0,1)","v":"N/A"},{"$f":"_xlfn.XLOOKUP($E80,'Competitive Activity 1'!$B$7:$B$13,'Competitive Activity 1'!I$7:I$13,\"N/A\",0,1)","v":"N/A"},{"$f":"_xlfn.XLOOKUP($E80,'Competitive Activity 1'!$B$7:$B$13,'Competitive Activity 1'!J$7:J$13,\"N/A\",0,1)","v":"N/A"},{"$f":"_xlfn.XLOOKUP($E80,'Competitive Activity 1'!$B$7:$B$13,'Competitive Activity 1'!K$7:K$13,\"N/A\",0,1)","v":"N/A"},{"$f":"_xlfn.XLOOKUP($E80,'Competitive Activity 1'!$B$7:$B$13,'Competitive Activity 1'!L$7:L$13,\"N/A\",0,1)","v":"N/A"},{"$f":"_xlfn.XLOOKUP($E80,'Competitive Activity 1'!$B$7:$B$13,'Competitive Activity 1'!M$7:M$13,\"N/A\",0,1)","v":"N/A"},{"$f":"_xlfn.XLOOKUP($E80,'Competitive Activity 1'!$B$7:$B$13,'Competitive Activity 1'!N$7:N$13,\"N/A\",0,1)","v":"N/A"},{"$f":"_xlfn.XLOOKUP($E80,'Competitive Activity 1'!$B$7:$B$13,'Competitive Activity 1'!O$7:O$13,\"N/A\",0,1)","v":"N/A"},{"$f":"_xlfn.XLOOKUP($E80,'Competitive Activity 1'!$B$7:$B$13,'Competitive Activity 1'!P$7:P$13,\"N/A\",0,1)","v":"N/A"},{"$f":"_xlfn.XLOOKUP($E80,'Competitive Activity 1'!$B$7:$B$13,'Competitive Activity 1'!Q$7:Q$13,\"N/A\",0,1)","v":"N/A"},{"$f":"_xlfn.XLOOKUP($E80,'Competitive Activity 1'!$B$7:$B$13,'Competitive Activity 1'!R$7:R$13,\"N/A\",0,1)","v":"N/A"},{"$f":"_xlfn.XLOOKUP($E80,'Competitive Activity 1'!$B$7:$B$13,'Competitive Activity 1'!S$7:S$13,\"N/A\",0,1)","v":"N/A"},{"$f":"_xlfn.XLOOKUP($E80,'Competitive Activity 1'!$B$7:$B$13,'Competitive Activity 1'!T$7:T$13,\"N/A\",0,1)","v":"N/A"},{"$f":"_xlfn.XLOOKUP($E80,'Competitive Activity 1'!$B$7:$B$13,'Competitive Activity 1'!U$7:U$13,\"N/A\",0,1)","v":"N/A"},{"$f":"_xlfn.XLOOKUP($E80,'Competitive Activity 1'!$B$17:$B$23,'Competitive Activity 1'!C$17:C$23,\"N/A\",0,1)","v":"N/A"},{"$f":"_xlfn.XLOOKUP($E80,'Competitive Activity 1'!$B$17:$B$23,'Competitive Activity 1'!D$17:D$23,\"N/A\",0,1)","v":"N/A"},{"$f":"_xlfn.XLOOKUP($E80,'Competitive Activity 1'!$B$17:$B$23,'Competitive Activity 1'!E$17:E$23,\"N/A\",0,1)","v":"N/A"},{"$f":"_xlfn.XLOOKUP($E80,'Competitive Activity 1'!$B$17:$B$23,'Competitive Activity 1'!F$17:F$23,\"N/A\",0,1)","v":"N/A"},{"$f":"_xlfn.XLOOKUP($E80,'Competitive Activity 1'!$B$17:$B$23,'Competitive Activity 1'!G$17:G$23,\"N/A\",0,1)","v":"N/A"},{"$f":"_xlfn.XLOOKUP($E80,'Competitive Activity 1'!$B$17:$B$23,'Competitive Activity 1'!H$17:H$23,\"N/A\",0,1)","v":"N/A"},{"$f":"_xlfn.XLOOKUP($E80,'Competitive Activity 1'!$B$17:$B$23,'Competitive Activity 1'!I$17:I$23,\"N/A\",0,1)","v":"N/A"},{"$f":"_xlfn.XLOOKUP($E80,'Competitive Activity 1'!$B$17:$B$23,'Competitive Activity 1'!J$17:J$23,\"N/A\",0,1)","v":"N/A"},{"$f":"_xlfn.XLOOKUP($E80,'Competitive Activity 1'!$B$17:$B$23,'Competitive Activity 1'!K$17:K$23,\"N/A\",0,1)","v":"N/A"},{"$f":"_xlfn.XLOOKUP($E80,'Competitive Activity 1'!$B$17:$B$23,'Competitive Activity 1'!M$17:M$23,\"N/A\",0,1)","v":"N/A"},{"$f":"_xlfn.XLOOKUP($E80,'Competitive Activity 1'!$B$17:$B$23,'Competitive Activity 1'!N$17:N$23,\"N/A\",0,1)","v":"N/A"},{"$f":"_xlfn.XLOOKUP($E80,'Competitive Activity 1'!$B$17:$B$23,'Competitive Activity 1'!P$17:P$23,\"N/A\",0,1)","v":"N/A"},{"$f":"_xlfn.XLOOKUP($E80,'Competitive Activity 2'!$B$7:$B$13,'Competitive Activity 2'!A$7:A$13,\"No\",0)","v":"No"},{"$f":"_xlfn.XLOOKUP($E80,'Competitive Activity 2'!$B$7:$B$13,'Competitive Activity 2'!L$7:L$13,\"N/A\",0)","v":"N/A"},{"$f":"_xlfn.XLOOKUP($E80,'Competitive Activity 2'!$B$7:$B$13,'Competitive Activity 2'!M$7:M$13,\"N/A\",0)","v":"N/A"},{"$f":"_xlfn.XLOOKUP($E80,'Competitive Activity 2'!$B$7:$B$13,'Competitive Activity 2'!N$7:N$13,\"N/A\",0)","v":"N/A"},{"$f":"_xlfn.XLOOKUP($E80,'Competitive Activity 2'!$B$7:$B$13,'Competitive Activity 2'!O$7:O$13,\"N/A\",0)","v":"N/A"},{"$f":"_xlfn.XLOOKUP($E80,'Competitive Activity 2'!$B$7:$B$13,'Competitive Activity 2'!P$7:P$13,\"N/A\",0)","v":"N/A"},{"$f":"_xlfn.XLOOKUP($E80,'Competitive Activity 2'!$B$7:$B$13,'Competitive Activity 2'!Q$7:Q$13,\"N/A\",0)","v":"N/A"},{"$f":"_xlfn.XLOOKUP($E80,'Competitive Activity 2'!$B$7:$B$13,'Competitive Activity 2'!R$7:R$13,\"N/A\",0)","v":"N/A"},{"$f":"_xlfn.XLOOKUP($E80,'Competitive Activity 2'!$B$7:$B$13,'Competitive Activity 2'!S$7:S$13,\"N/A\",0)","v":"N/A"},{"$f":"_xlfn.XLOOKUP($E80,'Competitive Activity 2'!$B$7:$B$13,'Competitive Activity 2'!T$7:T$13,\"N/A\",0)","v":"N/A"},{"$f":"_xlfn.XLOOKUP($E80,'Competitive Activity 2'!$B$7:$B$13,'Competitive Activity 2'!U$7:U$13,\"N/A\",0)","v":"N/A"},{"$f":"_xlfn.XLOOKUP($E80,'Competitive Activity 2'!$B$17:$B$23,'Competitive Activity 2'!D$17:D$23,\"N/A\",0)","v":"N/A"},{"$f":"_xlfn.XLOOKUP($E80,'Competitive Activity 2'!$B$17:$B$23,'Competitive Activity 2'!E$17:E$23,\"N/A\",0)","v":"N/A"},{"$f":"_xlfn.XLOOKUP($E80,'Competitive Activity 2'!$B$17:$B$23,'Competitive Activity 2'!F$17:F$23,\"N/A\",0)","v":"N/A"},{"$f":"_xlfn.XLOOKUP($E80,'Competitive Activity 2'!$B$17:$B$23,'Competitive Activity 2'!G$17:G$23,\"N/A\",0)","v":"N/A"},{"$f":"_xlfn.XLOOKUP($E80,'Competitive Activity 2'!$B$17:$B$23,'Competitive Activity 2'!H$17:H$23,\"N/A\",0)","v":"N/A"},{"$f":"_xlfn.XLOOKUP($E80,'Competitive Activity 2'!$B$17:$B$23,'Competitive Activity 2'!I$17:I$23,\"N/A\",0)","v":"N/A"},{"$f":"_xlfn.XLOOKUP($E80,'Competitive Activity 2'!$B$17:$B$23,'Competitive Activity 2'!J$17:J$23,\"N/A\",0)","v":"N/A"},{"$f":"_xlfn.XLOOKUP($E80,'Competitive Activity 2'!$B$17:$B$23,'Competitive Activity 2'!K$17:K$23,\"N/A\",0)","v":"N/A"},{"$f":"_xlfn.XLOOKUP($E80,'Competitive Activity 2'!$B$17:$B$23,'Competitive Activity 2'!L$17:L$23,\"N/A\",0)","v":"N/A"},{"$f":"_xlfn.XLOOKUP($E80,'Competitive Activity 2'!$B$17:$B$23,'Competitive Activity 2'!M$17:M$23,\"N/A\",0)","v":"N/A"},{"$f":"_xlfn.XLOOKUP($E80,'Competitive Activity 2'!$B$17:$B$23,'Competitive Activity 2'!N$17:N$23,\"N/A\",0)","v":"N/A"},{"$f":"_xlfn.XLOOKUP($E80,'Competitive Activity 2'!$B$27:$B$33,'Competitive Activity 2'!D$27:D$33,\"N/A\",0)","v":"N/A"},{"$f":"_xlfn.XLOOKUP($E80,'Competitive Activity 2'!$B$27:$B$33,'Competitive Activity 2'!E$27:E$33,\"N/A\",0)","v":"N/A"},{"$f":"_xlfn.XLOOKUP($E80,'Competitive Activity 2'!$B$27:$B$33,'Competitive Activity 2'!F$27:F$33,\"N/A\",0)","v":"N/A"},{"$f":"_xlfn.XLOOKUP($E80,'Competitive Activity 2'!$B$27:$B$33,'Competitive Activity 2'!G$27:G$33,\"N/A\",0)","v":"N/A"},{"$f":"_xlfn.XLOOKUP($E80,'Competitive Activity 2'!$B$27:$B$33,'Competitive Activity 2'!H$27:H$33,\"N/A\",0)","v":"N/A"},{"$f":"_xlfn.XLOOKUP($E80,'Competitive Activity 2'!$B$27:$B$33,'Competitive Activity 2'!I$27:I$33,\"N/A\",0)","v":"N/A"},{"$f":"_xlfn.XLOOKUP($E80,'Competitive Activity 2'!$B$27:$B$33,'Competitive Activity 2'!J$27:J$33,\"N/A\",0)","v":"N/A"},{"$f":"_xlfn.XLOOKUP($E80,'Competitive Activity 2'!$B$27:$B$33,'Competitive Activity 2'!K$27:K$33,\"N/A\",0)","v":"N/A"},{"$f":"_xlfn.XLOOKUP($E80,'Competitive Activity 2'!$B$27:$B$33,'Competitive Activity 2'!M$27:M$33,\"N/A\",0)","v":"N/A"}]
[{"$f":"'1-Cover Sheet'!$C$8","v":"Select One"},{"$f":"'1-Cover Sheet'!$F$8","v":"Select One"},{"$f":"'Summary Sheet'!$D$8","v":0},{"$f":"'Summary Sheet'!$D$10","v":0},{"$f":"'Drop Down Box'!B245","v":0},{"$f":"'Drop Down Box'!C245","v":0},{"$f":"'Drop Down Box'!D245","v":"Select One"},{"$f":"_xlfn.XLOOKUP(E81,'Drop Down Box'!$B$166:$B$249,'Drop Down Box'!$A$166:$A$249,\"Unknown\",0)","v":"Activity 1"},{"$f":"_xlfn.XLOOKUP($E81,'Competitive Activity 2'!$B$27:$B$33,'Competitive Activity 2'!$L$32:$L$38,\"N/A\",0)","v":"N/A"},{"$f":"_xlfn.XLOOKUP($E81,'Competitive Activity 2'!$B$27:$B$33,'Competitive Activity 2'!$N$32:$N$38,\"N/A\",0)","v":"N/A"},{"$f":"_xlfn.XLOOKUP($E81,'Competitive Activity 2'!$B$7:$B$13,'Competitive Activity 2'!H$7:H$13,\"N/A\",0)","v":"N/A"},{"$f":"_xlfn.XLOOKUP($E81,'Competitive Activity 2'!$B$7:$B$13,'Competitive Activity 2'!I$7:I$13,\"N/A\",0)","v":"N/A"},{"$f":"_xlfn.XLOOKUP($E81,'Competitive Activity 2'!$B$7:$B$13,'Competitive Activity 2'!J$7:J$13,\"N/A\",0)","v":"N/A"},{"$f":"_xlfn.XLOOKUP($E81,'Activity 1'!$B$7:$B$13,'Activity 1'!$A$7:$A$13,\"No\",0,1)","v":"No"},{"$f":"_xlfn.XLOOKUP($E81,'Activity 1'!$B$7:$B$13,'Activity 1'!$H$7:$H$13,\"N/A\",0,1)","v":"N/A"},{"$f":"_xlfn.XLOOKUP($E81,'Activity 1'!$B$7:$B$13,'Activity 1'!I$7:I$13,\"N/A\",0,1)","v":"N/A"},{"$f":"_xlfn.XLOOKUP($E81,'Activity 1'!$B$7:$B$13,'Activity 1'!J$7:J$13,\"N/A\",0,1)","v":"N/A"},{"$f":"_xlfn.XLOOKUP($E81,'Activity 1'!$B$7:$B$13,'Activity 1'!K$7:K$13,\"N/A\",0,1)","v":"N/A"},{"$f":"_xlfn.XLOOKUP($E81,'Activity 1'!$B$7:$B$13,'Activity 1'!L$7:L$13,\"N/A\",0,1)","v":"N/A"},{"$f":"_xlfn.XLOOKUP($E81,'Activity 1'!$B$7:$B$13,'Activity 1'!M$7:M$13,\"N/A\",0,1)","v":"N/A"},{"$f":"_xlfn.XLOOKUP($E81,'Activity 1'!$B$7:$B$13,'Activity 1'!N$7:N$13,\"N/A\",0,1)","v":"N/A"},0,{"$f":"_xlfn.XLOOKUP($E81,'Activity 1'!$B$7:$B$13,'Activity 1'!O$7:O$13,\"N/A\",0,1)","v":"N/A"},{"$f":"_xlfn.XLOOKUP($E81,'Activity 1'!$B$7:$B$13,'Activity 1'!P$7:P$13,\"N/A\",0,1)","v":"N/A"},{"$f":"_xlfn.XLOOKUP($E81,'Activity 1'!$B$7:$B$13,'Activity 1'!Q$7:Q$13,\"N/A\",0,1)","v":"N/A"},{"$f":"_xlfn.XLOOKUP($E81,'Activity 1'!$B$7:$B$13,'Activity 1'!R$7:R$13,\"N/A\",0,1)","v":"N/A"},{"$f":"_xlfn.XLOOKUP($E81,'Activity 1'!$B$7:$B$13,'Activity 1'!S$7:S$13,\"N/A\",0,1)","v":"N/A"},{"$f":"_xlfn.XLOOKUP($E81,'Activity 1'!$B$7:$B$13,'Activity 1'!T$7:T$13,\"N/A\",0,1)","v":"N/A"},{"$f":"_xlfn.XLOOKUP($E81,'Activity 1'!$B$7:$B$13,'Activity 1'!U$7:U$13,\"N/A\",0,1)","v":"N/A"},{"$f":"_xlfn.XLOOKUP($E81,'Activity 1'!$B$7:$B$13,'Activity 1'!V$7:V$13,\"N/A\",0,1)","v":"N/A"},{"$f":"_xlfn.XLOOKUP($E81,'Activity 1'!$B$17:$B$23,'Activity 1'!C$17:C$23,\"N/A\",0,1)","v":"N/A"},{"$f":"_xlfn.XLOOKUP($E81,'Activity 1'!$B$17:$B$23,'Activity 1'!D$17:D$23,\"N/A\",0,1)","v":"N/A"},{"$f":"_xlfn.XLOOKUP($E81,'Activity 1'!$B$17:$B$23,'Activity 1'!E$17:E$23,\"N/A\",0,1)","v":"N/A"},{"$f":"_xlfn.XLOOKUP($E81,'Activity 1'!$B$17:$B$23,'Activity 1'!F$17:F$23,\"N/A\",0,1)","v":"N/A"},{"$f":"_xlfn.XLOOKUP($E81,'Activity 1'!$B$17:$B$23,'Activity 1'!G$17:G$23,\"N/A\",0,1)","v":"N/A"},{"$f":"_xlfn.XLOOKUP($E81,'Activity 1'!$B$17:$B$23,'Activity 1'!H$17:H$23,\"N/A\",0,1)","v":"N/A"},{"$f":"_xlfn.XLOOKUP($E81,'Activity 1'!$B$17:$B$23,'Activity 1'!I$17:I$23,\"N/A\",0,1)","v":"N/A"},{"$f":"_xlfn.XLOOKUP($E81,'Activity 1'!$B$17:$B$23,'Activity 1'!J$17:J$23,\"N/A\",0,1)","v":"N/A"},{"$f":"_xlfn.XLOOKUP($E81,'Activity 1'!$B$17:$B$23,'Activity 1'!K$17:K$23,\"N/A\",0,1)","v":"N/A"},{"$f":"_xlfn.XLOOKUP($E81,'Activity 1'!$B$17:$B$23,'Activity 1'!L$17:L$23,\"N/A\",0,1)","v":"N/A"},{"$f":"_xlfn.XLOOKUP($E81,'Activity 1'!$B$17:$B$23,'Activity 1'!M$17:M$23,\"N/A\",0,1)","v":"N/A"},{"$f":"_xlfn.XLOOKUP($E81,'Activity 1'!$B$17:$B$23,'Activity 1'!O$17:O$23,\"N/A\",0,1)","v":"N/A"},{"$f":"_xlfn.XLOOKUP($E81,'Activity 1'!$B$17:$B$23,'Activity 1'!Q$17:Q$23,\"N/A\",0,1)","v":"N/A"},{"$f":"_xlfn.XLOOKUP($E81,'Activity 2'!$B$7:$B$13,'Activity 2'!$A$7:$A$13,\"No\",0,1)","v":"No"},{"$f":"_xlfn.XLOOKUP($E81,'Activity 2'!B$7:B$13,'Activity 2'!H$7:H$13,\"N/A\",0)","v":"N/A"},{"$f":"_xlfn.XLOOKUP($E81,'Activity 2'!C$7:C$13,'Activity 2'!I$7:I$13,\"N/A\",0)","v":"N/A"},{"$f":"_xlfn.XLOOKUP($E81,'Activity 2'!D$7:D$13,'Activity 2'!J$7:J$13,\"N/A\",0)","v":"N/A"},{"$f":"_xlfn.XLOOKUP($E81,'Activity 2'!E$7:E$13,'Activity 2'!K$7:K$13,\"N/A\",0)","v":"N/A"},{"$f":"_xlfn.XLOOKUP($E81,'Activity 2'!F$7:F$13,'Activity 2'!L$7:L$13,\"N/A\",0)","v":"N/A"},{"$f":"_xlfn.XLOOKUP($E81,'Activity 2'!G$7:G$13,'Activity 2'!M$7:M$13,\"N/A\",0)","v":"N/A"},{"$f":"_xlfn.XLOOKUP($E81,'Activity 2'!H$7:H$13,'Activity 2'!N$7:N$13,\"N/A\",0)","v":"N/A"},{"$f":"_xlfn.XLOOKUP($E81,'Activity 2'!I$7:I$13,'Activity 2'!O$7:O$13,\"N/A\",0)","v":"N/A"},{"$f":"_xlfn.XLOOKUP($E81,'Activity 2'!J$7:J$13,'Activity 2'!P$7:P$13,\"N/A\",0)","v":"N/A"},{"$f":"_xlfn.XLOOKUP($E81,'Activity 2'!K$7:K$13,'Activity 2'!Q$7:Q$13,\"N/A\",0)","v":"N/A"},{"$f":"_xlfn.XLOOKUP($E81,'Activity 2'!L$7:L$13,'Activity 2'!R$7:R$13,\"N/A\",0)","v":"N/A"},{"$f":"_xlfn.XLOOKUP($E81,'Activity 2'!M$7:M$13,'Activity 2'!S$7:S$13,\"N/A\",0)","v":"N/A"},{"$f":"_xlfn.XLOOKUP($E81,'Activity 2'!N$7:N$13,'Activity 2'!T$7:T$13,\"N/A\",0)","v":"N/A"},{"$f":"_xlfn.XLOOKUP($E81,'Activity 2'!O$7:O$13,'Activity 2'!U$7:U$13,\"N/A\",0)","v":"N/A"},{"$f":"_xlfn.XLOOKUP($E81,'Activity 2'!P$7:P$13,'Activity 2'!V$7:V$13,\"N/A\",0)","v":"N/A"},{"$f":"_xlfn.XLOOKUP($E81,'Activity 2'!$B$17:$B$23,'Activity 2'!C$17:C$23,\"N/A\",0,1)","v":"N/A"},{"$f":"_xlfn.XLOOKUP($E81,'Activity 2'!$B$17:$B$23,'Activity 2'!D$17:D$23,\"N/A\",0,1)","v":"N/A"},{"$f":"_xlfn.XLOOKUP($E81,'Activity 2'!$B$17:$B$23,'Activity 2'!E$17:E$23,\"N/A\",0,1)","v":"N/A"},{"$f":"_xlfn.XLOOKUP($E81,'Activity 2'!$B$17:$B$23,'Activity 2'!F$17:F$23,\"N/A\",0,1)","v":"N/A"},{"$f":"_xlfn.XLOOKUP($E81,'Activity 2'!$B$17:$B$23,'Activity 2'!G$17:G$23,\"N/A\",0,1)","v":"N/A"},{"$f":"_xlfn.XLOOKUP($E81,'Activity 2'!$B$17:$B$23,'Activity 2'!H$17:H$23,\"N/A\",0,1)","v":"N/A"},{"$f":"_xlfn.XLOOKUP($E81,'Activity 2'!$B$17:$B$23,'Activity 2'!I$17:I$23,\"N/A\",0,1)","v":"N/A"},{"$f":"_xlfn.XLOOKUP($E81,'Activity 2'!$B$17:$B$23,'Activity 2'!J$17:J$23,\"N/A\",0,1)","v":"N/A"},{"$f":"_xlfn.XLOOKUP($E81,'Activity 2'!$B$17:$B$23,'Activity 2'!K$17:K$23,\"N/A\",0,1)","v":"N/A"},{"$f":"_xlfn.XLOOKUP($E81,'Activity 2'!$B$17:$B$23,'Activity 2'!L$17:L$23,\"N/A\",0,1)","v":"N/A"},{"$f":"_xlfn.XLOOKUP($E81,'Activity 2'!$B$17:$B$23,'Activity 2'!M$17:M$23,\"N/A\",0,1)","v":"N/A"},{"$f":"_xlfn.XLOOKUP($E81,'Activity 2'!$B$17:$B$23,'Activity 2'!O$17:O$23,\"N/A\",0,1)","v":"N/A"},{"$f":"_xlfn.XLOOKUP($E81,'Activity 2'!$B$17:$B$23,'Activity 2'!Q$17:Q$23,\"N/A\",0,1)","v":"N/A"},null,{"$f":"_xlfn.XLOOKUP($E81,'Activity 3'!$B$8:$B$14,'Activity 3'!K$8:K$14,\"N/A\",0,1)","v":"N/A"},{"$f":"_xlfn.XLOOKUP($E81,'Activity 3'!$B$8:$B$14,'Activity 3'!L$8:L$14,\"N/A\",0,1)","v":"N/A"},{"$f":"_xlfn.XLOOKUP($E81,'Activity 3'!$B$8:$B$14,'Activity 3'!M$8:M$14,\"N/A\",0,1)","v":"N/A"},{"$f":"_xlfn.XLOOKUP($E81,'Activity 3'!$B$8:$B$14,'Activity 3'!N$8:N$14,\"N/A\",0,1)","v":"N/A"},{"$f":"_xlfn.XLOOKUP($E81,'Activity 3'!$B$8:$B$14,'Activity 3'!O$8:O$14,\"N/A\",0,1)","v":"N/A"},{"$f":"_xlfn.XLOOKUP($E81,'Activity 3'!$B$8:$B$14,'Activity 3'!R$8:R$14,\"N/A\",0,1)","v":"N/A"},{"$f":"_xlfn.XLOOKUP($E81,'Activity 4'!$B$8:$B$14,'Activity 4'!$A$8:$A$14,\"No\",0,1)","v":"No"},{"$f":"_xlfn.XLOOKUP($E81,'Activity 4'!$B$8:$B$14,'Activity 4'!L$8:L$14,\"N/A\",0,1)","v":"N/A"},{"$f":"_xlfn.XLOOKUP($E81,'Activity 4'!$B$8:$B$14,'Activity 4'!I$8:I$14,\"N/A\",0,1)","v":"N/A"},{"$f":"_xlfn.XLOOKUP($E81,'Activity 4'!$B$8:$B$14,'Activity 4'!M$8:M$14,\"N/A\",0,1)","v":"N/A"},{"$f":"_xlfn.XLOOKUP($E81,'Activity 5'!$B$8:$B$14,'Activity 5'!$A$8:$A$14,\"No\",0,1)","v":"No"},{"$f":"_xlfn.XLOOKUP($E81,'Activity 5'!$B$8:$B$14,'Activity 5'!J$8:J$14,\"N/A\",0,1)","v":"N/A"},{"$f":"_xlfn.XLOOKUP($E81,'Activity 5'!$B$8:$B$14,'Activity 5'!K$8:K$14,\"N/A\",0,1)","v":"N/A"},{"$f":"_xlfn.XLOOKUP($E81,'Activity 5'!$B$8:$B$14,'Activity 5'!N$8:N$14,\"N/A\",0,1)","v":"N/A"},{"$f":"_xlfn.XLOOKUP($E81,'Activity 5'!$B$8:$B$14,'Activity 5'!O$8:O$14,\"N/A\",0,1)","v":"N/A"},{"$f":"_xlfn.XLOOKUP($E81,'Activity 5'!$B$8:$B$14,'Activity 5'!P$8:P$14,\"N/A\",0,1)","v":"N/A"},{"$f":"_xlfn.XLOOKUP($E81,'Activity 5'!$B$8:$B$14,'Activity 5'!Q$8:Q$14,\"N/A\",0,1)","v":"N/A"},{"$f":"_xlfn.XLOOKUP($E81,'Activity 5'!$B$8:$B$14,'Activity 5'!R$8:R$14,\"N/A\",0,1)","v":"N/A"},{"$f":"_xlfn.XLOOKUP($E81,'Activity 6'!$B$7:$B$13,'Activity 6'!A$7:A$13,\"No\",0,1)","v":"No"},{"$f":"_xlfn.XLOOKUP($E81,'Activity 6'!$B$7:$B$13,'Activity 6'!K$7:K$13,\"N/A\",0,1)","v":"N/A"},{"$f":"_xlfn.XLOOKUP($E81,'Activity 6'!$B$7:$B$13,'Activity 6'!L$7:L$13,\"N/A\",0,1)","v":"N/A"},{"$f":"_xlfn.XLOOKUP($E81,'Activity 6'!$B$7:$B$13,'Activity 6'!M$7:M$13,\"N/A\",0,1)","v":"N/A"},{"$f":"_xlfn.XLOOKUP($E81,'Activity 6'!$B$7:$B$13,'Activity 6'!N$7:N$13,\"N/A\",0,1)","v":"N/A"},{"$f":"_xlfn.XLOOKUP($E81,'Activity 6'!$B$7:$B$13,'Activity 6'!O$7:O$13,\"N/A\",0,1)","v":"N/A"},{"$f":"_xlfn.XLOOKUP($E81,'Activity 6'!$B$7:$B$13,'Activity 6'!P$7:P$13,\"N/A\",0,1)","v":"N/A"},{"$f":"_xlfn.XLOOKUP($E81,'Activity 6'!$B$7:$B$13,'Activity 6'!Q$7:Q$13,\"N/A\",0,1)","v":"N/A"},{"$f":"_xlfn.XLOOKUP($E81,'Activity 6'!$B$7:$B$13,'Activity 6'!R$7:R$13,\"N/A\",0,1)","v":"N/A"},{"$f":"_xlfn.XLOOKUP($E81,'Activity 6'!$B$7:$B$13,'Activity 6'!S$7:S$13,\"N/A\",0,1)","v":"N/A"},{"$f":"_xlfn.XLOOKUP($E81,'Activity 6'!$B$7:$B$13,'Activity 6'!T$7:T$13,\"N/A\",0,1)","v":"N/A"},{"$f":"_xlfn.XLOOKUP($E81,'Activity 6'!$B$7:$B$13,'Activity 6'!U$7:U$13,\"N/A\",0,1)","v":"N/A"},{"$f":"_xlfn.XLOOKUP($E81,'Activity 6'!$B$22:$B$28,'Activity 6'!C$22:C$28,\"N/A\",0,1)","v":"N/A"},{"$f":"_xlfn.XLOOKUP($E81,'Activity 6'!$B$22:$B$28,'Activity 6'!D$22:D$28,\"N/A\",0,1)","v":"N/A"},{"$f":"_xlfn.XLOOKUP($E81,'Activity 6'!$B$22:$B$28,'Activity 6'!E$22:E$28,\"N/A\",0,1)","v":"N/A"},{"$f":"_xlfn.XLOOKUP($E81,'Activity 6'!$B$22:$B$28,'Activity 6'!F$22:F$28,\"N/A\",0,1)","v":"N/A"},{"$f":"_xlfn.XLOOKUP($E81,'Activity 6'!$B$22:$B$28,'Activity 6'!G$22:G$28,\"N/A\",0,1)","v":"N/A"},{"$f":"_xlfn.XLOOKUP($E81,'Activity 6'!$B$22:$B$28,'Activity 6'!H$22:H$28,\"N/A\",0,1)","v":"N/A"},{"$f":"_xlfn.XLOOKUP($E81,'Activity 6'!$B$22:$B$28,'Activity 6'!I$22:I$28,\"N/A\",0,1)","v":"N/A"},{"$f":"_xlfn.XLOOKUP($E81,'Activity 6'!$B$22:$B$28,'Activity 6'!J$22:J$28,\"N/A\",0,1)","v":"N/A"},{"$f":"_xlfn.XLOOKUP($E81,'Activity 6'!$B$22:$B$28,'Activity 6'!K$22:K$28,\"N/A\",0,1)","v":"N/A"},{"$f":"_xlfn.XLOOKUP($E81,'Activity 6'!$B$22:$B$28,'Activity 6'!L$22:L$28,\"N/A\",0,1)","v":"N/A"},{"$f":"_xlfn.XLOOKUP($E81,'Activity 6'!$B$22:$B$28,'Activity 6'!M$22:M$28,\"N/A\",0,1)","v":"N/A"},{"$f":"_xlfn.XLOOKUP($E81,'Activity 6'!$B$22:$B$28,'Activity 6'!N$22:N$28,\"N/A\",0,1)","v":"N/A"},{"$f":"_xlfn.XLOOKUP($E81,'Activity 6'!$B$32:$B$38,'Activity 6'!C$32:C$38,\"N/A\",0,1)","v":"N/A"},{"$f":"_xlfn.XLOOKUP($E81,'Activity 6'!$B$32:$B$38,'Activity 6'!D$32:D$38,\"N/A\",0,1)","v":"N/A"},{"$f":"_xlfn.XLOOKUP($E81,'Activity 6'!$B$32:$B$38,'Activity 6'!E$32:E$38,\"N/A\",0,1)","v":"N/A"},{"$f":"_xlfn.XLOOKUP($E81,'Activity 6'!$B$32:$B$38,'Activity 6'!F$32:F$38,\"N/A\",0,1)","v":"N/A"},{"$f":"_xlfn.XLOOKUP($E81,'Activity 6'!$B$32:$B$38,'Activity 6'!G$32:G$38,\"N/A\",0,1)","v":"N/A"},{"$f":"_xlfn.XLOOKUP($E81,'Activity 6'!$B$32:$B$38,'Activity 6'!H$32:H$38,\"N/A\",0,1)","v":"N/A"},{"$f":"_xlfn.XLOOKUP($E81,'Activity 6'!$B$32:$B$38,'Activity 6'!I$32:I$38,\"N/A\",0,1)","v":"N/A"},{"$f":"_xlfn.XLOOKUP($E81,'Activity 6'!$B$32:$B$38,'Activity 6'!J$32:J$38,\"N/A\",0,1)","v":"N/A"},{"$f":"_xlfn.XLOOKUP($E81,'Activity 6'!$B$32:$B$38,'Activity 6'!K$32:K$38,\"N/A\",0,1)","v":"N/A"},{"$f":"_xlfn.XLOOKUP($E81,'Activity 6'!$B$32:$B$38,'Activity 6'!M$32:M$38,\"N/A\",0,1)","v":"N/A"},{"$f":"_xlfn.XLOOKUP($E81,'Activity 7'!$B$7:$B$13,'Activity 7'!$A$7:$A$13,\"No\",0,1)","v":"No"},{"$f":"_xlfn.XLOOKUP($E81,'Activity 7'!$B$7:$B$13,'Activity 7'!M$7:M$13,\"N/A\",0,1)","v":"N/A"},{"$f":"_xlfn.XLOOKUP($E81,'Activity 7'!$B$7:$B$13,'Activity 7'!K$7:K$13,\"N/A\",0,1)","v":"N/A"},{"$f":"_xlfn.XLOOKUP($E81,'Activity 7'!$B$7:$B$13,'Activity 7'!N$7:N$13,\"N/A\",0,1)","v":"N/A"},{"$f":"_xlfn.XLOOKUP($E81,'Activity 7'!$B$7:$B$13,'Activity 7'!O$7:O$13,\"N/A\",0,1)","v":"N/A"},{"$f":"_xlfn.XLOOKUP($E81,'Activity 7'!$B$7:$B$13,'Activity 7'!P$7:P$13,\"N/A\",0,1)","v":"N/A"},{"$f":"_xlfn.XLOOKUP($E81,'Activity 7'!$B$7:$B$13,'Activity 7'!Q$7:Q$13,\"N/A\",0,1)","v":"N/A"},{"$f":"_xlfn.XLOOKUP($E81,'Activity 7'!$B$7:$B$13,'Activity 7'!R$7:R$13,\"N/A\",0,1)","v":"N/A"},{"$f":"_xlfn.XLOOKUP($E81,'Activity 7'!$B$7:$B$13,'Activity 7'!S$7:S$13,\"N/A\",0,1)","v":"N/A"},{"$f":"_xlfn.XLOOKUP($E81,'Activity 7'!$B$7:$B$13,'Activity 7'!T$7:T$13,\"N/A\",0,1)","v":"N/A"},{"$f":"_xlfn.XLOOKUP($E81,'Activity 7'!$B$7:$B$13,'Activity 7'!U$7:U$13,\"N/A\",0,1)","v":"N/A"},{"$f":"_xlfn.XLOOKUP($E81,'Activity 7'!$B$7:$B$13,'Activity 7'!V$7:V$13,\"N/A\",0,1)","v":"N/A"},{"$f":"_xlfn.XLOOKUP($E81,'Activity 7'!$B$17:$B$23,'Activity 7'!E$17:E$23,\"N/A\",0,1)","v":"N/A"},{"$f":"_xlfn.XLOOKUP($E81,'Activity 7'!$B$17:$B$23,'Activity 7'!G$17:G$23,\"N/A\",0,1)","v":"N/A"},{"$f":"_xlfn.XLOOKUP($E81,'Activity 7'!$B$17:$B$23,'Activity 7'!I$17:I$23,\"N/A\",0,1)","v":"N/A"},{"$f":"_xlfn.XLOOKUP($E81,'Activity 7'!$B$17:$B$23,'Activity 7'!J$17:J$23,\"N/A\",0,1)","v":"N/A"},{"$f":"_xlfn.XLOOKUP($E81,'Activity 7'!$B$17:$B$23,'Activity 7'!K$17:K$23,\"N/A\",0,1)","v":"N/A"},{"$f":"_xlfn.XLOOKUP($E81,'Activity 7'!$B$17:$B$23,'Activity 7'!L$17:L$23,\"N/A\",0,1)","v":"N/A"},{"$f":"_xlfn.XLOOKUP($E81,'Activity 7'!$B$17:$B$23,'Activity 7'!M$17:M$23,\"N/A\",0,1)","v":"N/A"},{"$f":"_xlfn.XLOOKUP($E81,'Activity 7'!$B$17:$B$23,'Activity 7'!N$17:N$23,\"N/A\",0,1)","v":"N/A"},{"$f":"_xlfn.XLOOKUP($E81,'Activity 7'!$B$17:$B$23,'Activity 7'!P$17:P$23,\"N/A\",0,1)","v":"N/A"},{"$f":"_xlfn.XLOOKUP($E81,'Activity 8'!$B$7:$B$13,'Activity 8'!A$7:A$13,\"No\",0,1)","v":"No"},{"$f":"_xlfn.XLOOKUP($E81,'Activity 8'!$B$7:$B$13,'Activity 8'!I$7:I$13,\"N/A\",0,1)","v":"N/A"},{"$f":"_xlfn.XLOOKUP($E81,'Activity 8'!$B$7:$B$13,'Activity 8'!J$7:J$13,\"N/A\",0,1)","v":"N/A"},{"$f":"_xlfn.XLOOKUP($E81,'Activity 8'!$B$7:$B$13,'Activity 8'!K$7:K$13,\"N/A\",0,1)","v":"N/A"},{"$f":"_xlfn.XLOOKUP($E81,'Activity 8'!$B$7:$B$13,'Activity 8'!L$7:L$13,\"N/A\",0,1)","v":"N/A"},{"$f":"_xlfn.XLOOKUP($E81,'Activity 8'!$B$7:$B$13,'Activity 8'!M$7:M$13,\"N/A\",0,1)","v":"N/A"},{"$f":"_xlfn.XLOOKUP($E81,'Activity 8'!$B$7:$B$13,'Activity 8'!N$7:N$13,\"N/A\",0,1)","v":"N/A"},{"$f":"_xlfn.XLOOKUP($E81,'Activity 8'!$B$7:$B$13,'Activity 8'!O$7:O$13,\"N/A\",0,1)","v":"N/A"},{"$f":"_xlfn.XLOOKUP($E81,'Activity 8'!$B$7:$B$13,'Activity 8'!P$7:P$13,\"N/A\",0,1)","v":"N/A"},{"$f":"_xlfn.XLOOKUP($E81,'Activity 8'!$B$7:$B$13,'Activity 8'!Q$7:Q$13,\"N/A\",0,1)","v":"N/A"},{"$f":"_xlfn.XLOOKUP($E81,'Activity 8'!$B$7:$B$13,'Activity 8'!R$7:R$13,\"N/A\",0,1)","v":"N/A"},{"$f":"_xlfn.XLOOKUP($E81,'Activity 8'!$B$7:$B$13,'Activity 8'!S$7:S$13,\"N/A\",0,1)","v":"N/A"},{"$f":"_xlfn.XLOOKUP($E81,'Activity 8'!$B$7:$B$13,'Activity 8'!T$7:T$13,\"N/A\",0,1)","v":"N/A"},{"$f":"_xlfn.XLOOKUP($E81,'Activity 8'!$B$7:$B$13,'Activity 8'!U$7:U$13,\"N/A\",0,1)","v":"N/A"},{"$f":"_xlfn.XLOOKUP($E81,'Activity 8'!$B$7:$B$13,'Activity 8'!V$7:V$13,\"N/A\",0,1)","v":"N/A"},{"$f":"_xlfn.XLOOKUP($E81,'Activity 8'!$B$17:$B$23,'Activity 8'!D$17:D$23,\"N/A\",0,1)","v":"N/A"},{"$f":"_xlfn.XLOOKUP($E81,'Activity 8'!$B$17:$B$23,'Activity 8'!E$17:E$23,\"N/A\",0,1)","v":"N/A"},{"$f":"_xlfn.XLOOKUP($E81,'Activity 8'!$B$17:$B$23,'Activity 8'!F$17:F$23,\"N/A\",0,1)","v":"N/A"},{"$f":"_xlfn.XLOOKUP($E81,'Activity 8'!$B$17:$B$23,'Activity 8'!G$17:G$23,\"N/A\",0,1)","v":"N/A"},{"$f":"_xlfn.XLOOKUP($E81,'Activity 8'!$B$17:$B$23,'Activity 8'!H$17:H$23,\"N/A\",0,1)","v":"N/A"},{"$f":"_xlfn.XLOOKUP($E81,'Activity 8'!$B$17:$B$23,'Activity 8'!I$17:I$23,\"N/A\",0,1)","v":"N/A"},{"$f":"_xlfn.XLOOKUP($E81,'Activity 8'!$B$17:$B$23,'Activity 8'!J$17:J$23,\"N/A\",0,1)","v":"N/A"},{"$f":"_xlfn.XLOOKUP($E81,'Activity 8'!$B$17:$B$23,'Activity 8'!K$17:K$23,\"N/A\",0,1)","v":"N/A"},{"$f":"_xlfn.XLOOKUP($E81,'Activity 8'!$B$17:$B$23,'Activity 8'!L$17:L$23,\"N/A\",0,1)","v":"N/A"},{"$f":"_xlfn.XLOOKUP($E81,'Activity 8'!$B$17:$B$23,'Activity 8'!M$17:M$23,\"N/A\",0,1)","v":"N/A"},{"$f":"_xlfn.XLOOKUP($E81,'Activity 8'!$B$17:$B$23,'Activity 8'!N$17:N$23,\"N/A\",0,1)","v":"N/A"},{"$f":"_xlfn.XLOOKUP($E81,'Activity 8'!$B$17:$B$23,'Activity 8'!P$17:P$23,\"N/A\",0,1)","v":"N/A"},{"$f":"_xlfn.XLOOKUP(E81,'Activity 9'!$B$7:$B$13,'Activity 9'!$A$7:$A$13,\"No\",0,1)","v":"No"},{"$f":"_xlfn.XLOOKUP($E81,'Activity 9'!$B$7:$B$13,'Activity 9'!J$7:J$13,\"N/A\",0,1)","v":"N/A"},{"$f":"_xlfn.XLOOKUP($E81,'Activity 9'!$B$7:$B$13,'Activity 9'!K$7:K$13,\"N/A\",0,1)","v":"N/A"},{"$f":"_xlfn.XLOOKUP($E81,'Activity 9'!$B$7:$B$13,'Activity 9'!L$7:L$13,\"N/A\",0,1)","v":"N/A"},{"$f":"_xlfn.XLOOKUP($E81,'Activity 9'!$B$7:$B$13,'Activity 9'!M$7:M$13,\"N/A\",0,1)","v":"N/A"},{"$f":"_xlfn.XLOOKUP($E81,'Activity 9'!$B$7:$B$13,'Activity 9'!N$7:N$13,\"N/A\",0,1)","v":"N/A"},{"$f":"_xlfn.XLOOKUP($E81,'Activity 9'!$B$7:$B$13,'Activity 9'!O$7:O$13,\"N/A\",0,1)","v":"N/A"},{"$f":"_xlfn.XLOOKUP($E81,'Activity 9'!$B$7:$B$13,'Activity 9'!P$7:P$13,\"N/A\",0,1)","v":"N/A"},{"$f":"_xlfn.XLOOKUP($E81,'Activity 9'!$B$7:$B$13,'Activity 9'!Q$7:Q$13,\"N/A\",0,1)","v":"N/A"},{"$f":"_xlfn.XLOOKUP($E81,'Activity 9'!$B$7:$B$13,'Activity 9'!R$7:R$13,\"N/A\",0,1)","v":"N/A"},{"$f":"_xlfn.XLOOKUP($E81,'Activity 9'!$B$7:$B$13,'Activity 9'!S$7:S$13,\"N/A\",0,1)","v":"N/A"},{"$f":"_xlfn.XLOOKUP($E81,'Activity 9'!$B$7:$B$13,'Activity 9'!T$7:T$13,\"N/A\",0,1)","v":"N/A"},{"$f":"_xlfn.XLOOKUP($E81,'Activity 9'!$B$17:$B$23,'Activity 9'!E$17:E$23,\"N/A\",0,1)","v":"N/A"},{"$f":"_xlfn.XLOOKUP($E81,'Activity 9'!$B$17:$B$23,'Activity 9'!F$17:F$23,\"N/A\",0,1)","v":"N/A"},{"$f":"_xlfn.XLOOKUP($E81,'Activity 9'!$B$17:$B$23,'Activity 9'!G$17:G$23,\"N/A\",0,1)","v":"N/A"},{"$f":"_xlfn.XLOOKUP($E81,'Activity 9'!$B$17:$B$23,'Activity 9'!H$17:H$23,\"N/A\",0,1)","v":"N/A"},{"$f":"_xlfn.XLOOKUP($E81,'Activity 9'!$B$17:$B$23,'Activity 9'!I$17:I$23,\"N/A\",0,1)","v":"N/A"},{"$f":"_xlfn.XLOOKUP($E81,'Activity 9'!$B$17:$B$23,'Activity 9'!J$17:J$23,\"N/A\",0,1)","v":"N/A"},{"$f":"_xlfn.XLOOKUP($E81,'Activity 9'!$B$17:$B$23,'Activity 9'!K$17:K$23,\"N/A\",0,1)","v":"N/A"},{"$f":"_xlfn.XLOOKUP($E81,'Activity 9'!$B$17:$B$23,'Activity 9'!L$17:L$23,\"N/A\",0,1)","v":"N/A"},{"$f":"_xlfn.XLOOKUP($E81,'Activity 9'!$B$17:$B$23,'Activity 9'!N$17:N$23,\"N/A\",0,1)","v":"N/A"},{"$f":"_xlfn.XLOOKUP($E81,'Activity 9'!$B$17:$B$23,'Activity 9'!O$17:O$23,\"N/A\",0,1)","v":"N/A"},{"$f":"_xlfn.XLOOKUP($E81,'Activity 9'!$B$17:$B$23,'Activity 9'!Q$17:Q$23,\"N/A\",0,1)","v":"N/A"},{"$f":"_xlfn.XLOOKUP($E81,'Activity 10'!$B$7:$B$13,'Activity 10'!A$7:A$13,\"No\",0,1)","v":"No"},{"$f":"_xlfn.XLOOKUP($E81,'Activity 10'!$B$7:$B$13,'Activity 10'!J$7:J$13,\"N/A\",0,1)","v":"N/A"},{"$f":"_xlfn.XLOOKUP($E81,'Activity 10'!$B$7:$B$13,'Activity 10'!K$7:K$13,\"N/A\",0,1)","v":"N/A"},{"$f":"_xlfn.XLOOKUP($E81,'Activity 10'!$B$7:$B$13,'Activity 10'!L$7:L$13,\"N/A\",0,1)","v":"N/A"},{"$f":"_xlfn.XLOOKUP($E81,'Activity 10'!$B$7:$B$13,'Activity 10'!M$7:M$13,\"N/A\",0,1)","v":"N/A"},{"$f":"_xlfn.XLOOKUP($E81,'Activity 10'!$B$7:$B$13,'Activity 10'!N$7:N$13,\"N/A\",0,1)","v":"N/A"},{"$f":"_xlfn.XLOOKUP($E81,'Activity 10'!$B$7:$B$13,'Activity 10'!O$7:O$13,\"N/A\",0,1)","v":"N/A"},{"$f":"_xlfn.XLOOKUP($E81,'Activity 10'!$B$7:$B$13,'Activity 10'!P$7:P$13,\"N/A\",0,1)","v":"N/A"},{"$f":"_xlfn.XLOOKUP($E81,'Activity 10'!$B$7:$B$13,'Activity 10'!Q$7:Q$13,\"N/A\",0,1)","v":"N/A"},{"$f":"_xlfn.XLOOKUP($E81,'Activity 10'!$B$7:$B$13,'Activity 10'!R$7:R$13,\"N/A\",0,1)","v":"N/A"},{"$f":"_xlfn.XLOOKUP($E81,'Activity 10'!$B$7:$B$13,'Activity 10'!S$7:S$13,\"N/A\",0,1)","v":"N/A"},{"$f":"_xlfn.XLOOKUP($E81,'Activity 10'!$B$7:$B$13,'Activity 10'!T$7:T$13,\"N/A\",0,1)","v":"N/A"},{"$f":"_xlfn.XLOOKUP($E81,'Activity 10'!$B$7:$B$13,'Activity 10'!U$7:U$13,\"N/A\",0,1)","v":"N/A"},{"$f":"_xlfn.XLOOKUP($E81,'Activity 10'!$B$7:$B$13,'Activity 10'!V$7:V$13,\"N/A\",0,1)","v":"N/A"},{"$f":"_xlfn.XLOOKUP($E81,'Activity 10'!$B$17:$B$23,'Activity 10'!E$17:E$23,\"N/A\",0,1)","v":"N/A"},{"$f":"_xlfn.XLOOKUP($E81,'Activity 10'!$B$17:$B$23,'Activity 10'!F$17:F$23,\"N/A\",0,1)","v":"N/A"},{"$f":"_xlfn.XLOOKUP($E81,'Activity 10'!$B$17:$B$23,'Activity 10'!G$17:G$23,\"N/A\",0,1)","v":"N/A"},{"$f":"_xlfn.XLOOKUP($E81,'Activity 10'!$B$17:$B$23,'Activity 10'!H$17:H$23,\"N/A\",0,1)","v":"N/A"},{"$f":"_xlfn.XLOOKUP($E81,'Activity 10'!$B$17:$B$23,'Activity 10'!I$17:I$23,\"N/A\",0,1)","v":"N/A"},{"$f":"_xlfn.XLOOKUP($E81,'Activity 10'!$B$17:$B$23,'Activity 10'!J$17:J$23,\"N/A\",0,1)","v":"N/A"},{"$f":"_xlfn.XLOOKUP($E81,'Activity 10'!$B$17:$B$23,'Activity 10'!K$17:K$23,\"N/A\",0,1)","v":"N/A"},{"$f":"_xlfn.XLOOKUP($E81,'Activity 10'!$B$17:$B$23,'Activity 10'!L$17:L$23,\"N/A\",0,1)","v":"N/A"},{"$f":"_xlfn.XLOOKUP($E81,'Activity 10'!$B$17:$B$23,'Activity 10'!M$17:M$23,\"N/A\",0,1)","v":"N/A"},{"$f":"_xlfn.XLOOKUP($E81,'Activity 10'!$B$17:$B$23,'Activity 10'!N$17:N$23,\"N/A\",0,1)","v":"N/A"},{"$f":"_xlfn.XLOOKUP($E81,'Activity 10'!$B$17:$B$23,'Activity 10'!P$17:P$23,\"N/A\",0,1)","v":"N/A"},{"$f":"_xlfn.XLOOKUP($E81,'Competitive Activity 1'!B$7:B$13,'Competitive Activity 1'!A$7:A$13,\"No\",0,1)","v":"No"},{"$f":"_xlfn.XLOOKUP($E81,'Competitive Activity 1'!$B$7:$B$13,'Competitive Activity 1'!H$7:H$13,\"N/A\",0,1)","v":"N/A"},{"$f":"_xlfn.XLOOKUP($E81,'Competitive Activity 1'!$B$7:$B$13,'Competitive Activity 1'!I$7:I$13,\"N/A\",0,1)","v":"N/A"},{"$f":"_xlfn.XLOOKUP($E81,'Competitive Activity 1'!$B$7:$B$13,'Competitive Activity 1'!J$7:J$13,\"N/A\",0,1)","v":"N/A"},{"$f":"_xlfn.XLOOKUP($E81,'Competitive Activity 1'!$B$7:$B$13,'Competitive Activity 1'!K$7:K$13,\"N/A\",0,1)","v":"N/A"},{"$f":"_xlfn.XLOOKUP($E81,'Competitive Activity 1'!$B$7:$B$13,'Competitive Activity 1'!L$7:L$13,\"N/A\",0,1)","v":"N/A"},{"$f":"_xlfn.XLOOKUP($E81,'Competitive Activity 1'!$B$7:$B$13,'Competitive Activity 1'!M$7:M$13,\"N/A\",0,1)","v":"N/A"},{"$f":"_xlfn.XLOOKUP($E81,'Competitive Activity 1'!$B$7:$B$13,'Competitive Activity 1'!N$7:N$13,\"N/A\",0,1)","v":"N/A"},{"$f":"_xlfn.XLOOKUP($E81,'Competitive Activity 1'!$B$7:$B$13,'Competitive Activity 1'!O$7:O$13,\"N/A\",0,1)","v":"N/A"},{"$f":"_xlfn.XLOOKUP($E81,'Competitive Activity 1'!$B$7:$B$13,'Competitive Activity 1'!P$7:P$13,\"N/A\",0,1)","v":"N/A"},{"$f":"_xlfn.XLOOKUP($E81,'Competitive Activity 1'!$B$7:$B$13,'Competitive Activity 1'!Q$7:Q$13,\"N/A\",0,1)","v":"N/A"},{"$f":"_xlfn.XLOOKUP($E81,'Competitive Activity 1'!$B$7:$B$13,'Competitive Activity 1'!R$7:R$13,\"N/A\",0,1)","v":"N/A"},{"$f":"_xlfn.XLOOKUP($E81,'Competitive Activity 1'!$B$7:$B$13,'Competitive Activity 1'!S$7:S$13,\"N/A\",0,1)","v":"N/A"},{"$f":"_xlfn.XLOOKUP($E81,'Competitive Activity 1'!$B$7:$B$13,'Competitive Activity 1'!T$7:T$13,\"N/A\",0,1)","v":"N/A"},{"$f":"_xlfn.XLOOKUP($E81,'Competitive Activity 1'!$B$7:$B$13,'Competitive Activity 1'!U$7:U$13,\"N/A\",0,1)","v":"N/A"},{"$f":"_xlfn.XLOOKUP($E81,'Competitive Activity 1'!$B$17:$B$23,'Competitive Activity 1'!C$17:C$23,\"N/A\",0,1)","v":"N/A"},{"$f":"_xlfn.XLOOKUP($E81,'Competitive Activity 1'!$B$17:$B$23,'Competitive Activity 1'!D$17:D$23,\"N/A\",0,1)","v":"N/A"},{"$f":"_xlfn.XLOOKUP($E81,'Competitive Activity 1'!$B$17:$B$23,'Competitive Activity 1'!E$17:E$23,\"N/A\",0,1)","v":"N/A"},{"$f":"_xlfn.XLOOKUP($E81,'Competitive Activity 1'!$B$17:$B$23,'Competitive Activity 1'!F$17:F$23,\"N/A\",0,1)","v":"N/A"},{"$f":"_xlfn.XLOOKUP($E81,'Competitive Activity 1'!$B$17:$B$23,'Competitive Activity 1'!G$17:G$23,\"N/A\",0,1)","v":"N/A"},{"$f":"_xlfn.XLOOKUP($E81,'Competitive Activity 1'!$B$17:$B$23,'Competitive Activity 1'!H$17:H$23,\"N/A\",0,1)","v":"N/A"},{"$f":"_xlfn.XLOOKUP($E81,'Competitive Activity 1'!$B$17:$B$23,'Competitive Activity 1'!I$17:I$23,\"N/A\",0,1)","v":"N/A"},{"$f":"_xlfn.XLOOKUP($E81,'Competitive Activity 1'!$B$17:$B$23,'Competitive Activity 1'!J$17:J$23,\"N/A\",0,1)","v":"N/A"},{"$f":"_xlfn.XLOOKUP($E81,'Competitive Activity 1'!$B$17:$B$23,'Competitive Activity 1'!K$17:K$23,\"N/A\",0,1)","v":"N/A"},{"$f":"_xlfn.XLOOKUP($E81,'Competitive Activity 1'!$B$17:$B$23,'Competitive Activity 1'!M$17:M$23,\"N/A\",0,1)","v":"N/A"},{"$f":"_xlfn.XLOOKUP($E81,'Competitive Activity 1'!$B$17:$B$23,'Competitive Activity 1'!N$17:N$23,\"N/A\",0,1)","v":"N/A"},{"$f":"_xlfn.XLOOKUP($E81,'Competitive Activity 1'!$B$17:$B$23,'Competitive Activity 1'!P$17:P$23,\"N/A\",0,1)","v":"N/A"},{"$f":"_xlfn.XLOOKUP($E81,'Competitive Activity 2'!$B$7:$B$13,'Competitive Activity 2'!A$7:A$13,\"No\",0)","v":"No"},{"$f":"_xlfn.XLOOKUP($E81,'Competitive Activity 2'!$B$7:$B$13,'Competitive Activity 2'!L$7:L$13,\"N/A\",0)","v":"N/A"},{"$f":"_xlfn.XLOOKUP($E81,'Competitive Activity 2'!$B$7:$B$13,'Competitive Activity 2'!M$7:M$13,\"N/A\",0)","v":"N/A"},{"$f":"_xlfn.XLOOKUP($E81,'Competitive Activity 2'!$B$7:$B$13,'Competitive Activity 2'!N$7:N$13,\"N/A\",0)","v":"N/A"},{"$f":"_xlfn.XLOOKUP($E81,'Competitive Activity 2'!$B$7:$B$13,'Competitive Activity 2'!O$7:O$13,\"N/A\",0)","v":"N/A"},{"$f":"_xlfn.XLOOKUP($E81,'Competitive Activity 2'!$B$7:$B$13,'Competitive Activity 2'!P$7:P$13,\"N/A\",0)","v":"N/A"},{"$f":"_xlfn.XLOOKUP($E81,'Competitive Activity 2'!$B$7:$B$13,'Competitive Activity 2'!Q$7:Q$13,\"N/A\",0)","v":"N/A"},{"$f":"_xlfn.XLOOKUP($E81,'Competitive Activity 2'!$B$7:$B$13,'Competitive Activity 2'!R$7:R$13,\"N/A\",0)","v":"N/A"},{"$f":"_xlfn.XLOOKUP($E81,'Competitive Activity 2'!$B$7:$B$13,'Competitive Activity 2'!S$7:S$13,\"N/A\",0)","v":"N/A"},{"$f":"_xlfn.XLOOKUP($E81,'Competitive Activity 2'!$B$7:$B$13,'Competitive Activity 2'!T$7:T$13,\"N/A\",0)","v":"N/A"},{"$f":"_xlfn.XLOOKUP($E81,'Competitive Activity 2'!$B$7:$B$13,'Competitive Activity 2'!U$7:U$13,\"N/A\",0)","v":"N/A"},{"$f":"_xlfn.XLOOKUP($E81,'Competitive Activity 2'!$B$17:$B$23,'Competitive Activity 2'!D$17:D$23,\"N/A\",0)","v":"N/A"},{"$f":"_xlfn.XLOOKUP($E81,'Competitive Activity 2'!$B$17:$B$23,'Competitive Activity 2'!E$17:E$23,\"N/A\",0)","v":"N/A"},{"$f":"_xlfn.XLOOKUP($E81,'Competitive Activity 2'!$B$17:$B$23,'Competitive Activity 2'!F$17:F$23,\"N/A\",0)","v":"N/A"},{"$f":"_xlfn.XLOOKUP($E81,'Competitive Activity 2'!$B$17:$B$23,'Competitive Activity 2'!G$17:G$23,\"N/A\",0)","v":"N/A"},{"$f":"_xlfn.XLOOKUP($E81,'Competitive Activity 2'!$B$17:$B$23,'Competitive Activity 2'!H$17:H$23,\"N/A\",0)","v":"N/A"},{"$f":"_xlfn.XLOOKUP($E81,'Competitive Activity 2'!$B$17:$B$23,'Competitive Activity 2'!I$17:I$23,\"N/A\",0)","v":"N/A"},{"$f":"_xlfn.XLOOKUP($E81,'Competitive Activity 2'!$B$17:$B$23,'Competitive Activity 2'!J$17:J$23,\"N/A\",0)","v":"N/A"},{"$f":"_xlfn.XLOOKUP($E81,'Competitive Activity 2'!$B$17:$B$23,'Competitive Activity 2'!K$17:K$23,\"N/A\",0)","v":"N/A"},{"$f":"_xlfn.XLOOKUP($E81,'Competitive Activity 2'!$B$17:$B$23,'Competitive Activity 2'!L$17:L$23,\"N/A\",0)","v":"N/A"},{"$f":"_xlfn.XLOOKUP($E81,'Competitive Activity 2'!$B$17:$B$23,'Competitive Activity 2'!M$17:M$23,\"N/A\",0)","v":"N/A"},{"$f":"_xlfn.XLOOKUP($E81,'Competitive Activity 2'!$B$17:$B$23,'Competitive Activity 2'!N$17:N$23,\"N/A\",0)","v":"N/A"},{"$f":"_xlfn.XLOOKUP($E81,'Competitive Activity 2'!$B$27:$B$33,'Competitive Activity 2'!D$27:D$33,\"N/A\",0)","v":"N/A"},{"$f":"_xlfn.XLOOKUP($E81,'Competitive Activity 2'!$B$27:$B$33,'Competitive Activity 2'!E$27:E$33,\"N/A\",0)","v":"N/A"},{"$f":"_xlfn.XLOOKUP($E81,'Competitive Activity 2'!$B$27:$B$33,'Competitive Activity 2'!F$27:F$33,\"N/A\",0)","v":"N/A"},{"$f":"_xlfn.XLOOKUP($E81,'Competitive Activity 2'!$B$27:$B$33,'Competitive Activity 2'!G$27:G$33,\"N/A\",0)","v":"N/A"},{"$f":"_xlfn.XLOOKUP($E81,'Competitive Activity 2'!$B$27:$B$33,'Competitive Activity 2'!H$27:H$33,\"N/A\",0)","v":"N/A"},{"$f":"_xlfn.XLOOKUP($E81,'Competitive Activity 2'!$B$27:$B$33,'Competitive Activity 2'!I$27:I$33,\"N/A\",0)","v":"N/A"},{"$f":"_xlfn.XLOOKUP($E81,'Competitive Activity 2'!$B$27:$B$33,'Competitive Activity 2'!J$27:J$33,\"N/A\",0)","v":"N/A"},{"$f":"_xlfn.XLOOKUP($E81,'Competitive Activity 2'!$B$27:$B$33,'Competitive Activity 2'!K$27:K$33,\"N/A\",0)","v":"N/A"},{"$f":"_xlfn.XLOOKUP($E81,'Competitive Activity 2'!$B$27:$B$33,'Competitive Activity 2'!M$27:M$33,\"N/A\",0)","v":"N/A"}]
[{"$f":"'1-Cover Sheet'!$C$8","v":"Select One"},{"$f":"'1-Cover Sheet'!$F$8","v":"Select One"},{"$f":"'Summary Sheet'!$D$8","v":0},{"$f":"'Summary Sheet'!$D$10","v":0},{"$f":"'Drop Down Box'!B246","v":0},{"$f":"'Drop Down Box'!C246","v":0},{"$f":"'Drop Down Box'!D246","v":"Select One"},{"$f":"_xlfn.XLOOKUP(E82,'Drop Down Box'!$B$166:$B$249,'Drop Down Box'!$A$166:$A$249,\"Unknown\",0)","v":"Activity 1"},{"$f":"_xlfn.XLOOKUP($E82,'Competitive Activity 2'!$B$27:$B$33,'Competitive Activity 2'!$L$32:$L$38,\"N/A\",0)","v":"N/A"},{"$f":"_xlfn.XLOOKUP($E82,'Competitive Activity 2'!$B$27:$B$33,'Competitive Activity 2'!$N$32:$N$38,\"N/A\",0)","v":"N/A"},{"$f":"_xlfn.XLOOKUP($E82,'Competitive Activity 2'!$B$7:$B$13,'Competitive Activity 2'!H$7:H$13,\"N/A\",0)","v":"N/A"},{"$f":"_xlfn.XLOOKUP($E82,'Competitive Activity 2'!$B$7:$B$13,'Competitive Activity 2'!I$7:I$13,\"N/A\",0)","v":"N/A"},{"$f":"_xlfn.XLOOKUP($E82,'Competitive Activity 2'!$B$7:$B$13,'Competitive Activity 2'!J$7:J$13,\"N/A\",0)","v":"N/A"},{"$f":"_xlfn.XLOOKUP($E82,'Activity 1'!$B$7:$B$13,'Activity 1'!$A$7:$A$13,\"No\",0,1)","v":"No"},{"$f":"_xlfn.XLOOKUP($E82,'Activity 1'!$B$7:$B$13,'Activity 1'!$H$7:$H$13,\"N/A\",0,1)","v":"N/A"},{"$f":"_xlfn.XLOOKUP($E82,'Activity 1'!$B$7:$B$13,'Activity 1'!I$7:I$13,\"N/A\",0,1)","v":"N/A"},{"$f":"_xlfn.XLOOKUP($E82,'Activity 1'!$B$7:$B$13,'Activity 1'!J$7:J$13,\"N/A\",0,1)","v":"N/A"},{"$f":"_xlfn.XLOOKUP($E82,'Activity 1'!$B$7:$B$13,'Activity 1'!K$7:K$13,\"N/A\",0,1)","v":"N/A"},{"$f":"_xlfn.XLOOKUP($E82,'Activity 1'!$B$7:$B$13,'Activity 1'!L$7:L$13,\"N/A\",0,1)","v":"N/A"},{"$f":"_xlfn.XLOOKUP($E82,'Activity 1'!$B$7:$B$13,'Activity 1'!M$7:M$13,\"N/A\",0,1)","v":"N/A"},{"$f":"_xlfn.XLOOKUP($E82,'Activity 1'!$B$7:$B$13,'Activity 1'!N$7:N$13,\"N/A\",0,1)","v":"N/A"},0,{"$f":"_xlfn.XLOOKUP($E82,'Activity 1'!$B$7:$B$13,'Activity 1'!O$7:O$13,\"N/A\",0,1)","v":"N/A"},{"$f":"_xlfn.XLOOKUP($E82,'Activity 1'!$B$7:$B$13,'Activity 1'!P$7:P$13,\"N/A\",0,1)","v":"N/A"},{"$f":"_xlfn.XLOOKUP($E82,'Activity 1'!$B$7:$B$13,'Activity 1'!Q$7:Q$13,\"N/A\",0,1)","v":"N/A"},{"$f":"_xlfn.XLOOKUP($E82,'Activity 1'!$B$7:$B$13,'Activity 1'!R$7:R$13,\"N/A\",0,1)","v":"N/A"},{"$f":"_xlfn.XLOOKUP($E82,'Activity 1'!$B$7:$B$13,'Activity 1'!S$7:S$13,\"N/A\",0,1)","v":"N/A"},{"$f":"_xlfn.XLOOKUP($E82,'Activity 1'!$B$7:$B$13,'Activity 1'!T$7:T$13,\"N/A\",0,1)","v":"N/A"},{"$f":"_xlfn.XLOOKUP($E82,'Activity 1'!$B$7:$B$13,'Activity 1'!U$7:U$13,\"N/A\",0,1)","v":"N/A"},{"$f":"_xlfn.XLOOKUP($E82,'Activity 1'!$B$7:$B$13,'Activity 1'!V$7:V$13,\"N/A\",0,1)","v":"N/A"},{"$f":"_xlfn.XLOOKUP($E82,'Activity 1'!$B$17:$B$23,'Activity 1'!C$17:C$23,\"N/A\",0,1)","v":"N/A"},{"$f":"_xlfn.XLOOKUP($E82,'Activity 1'!$B$17:$B$23,'Activity 1'!D$17:D$23,\"N/A\",0,1)","v":"N/A"},{"$f":"_xlfn.XLOOKUP($E82,'Activity 1'!$B$17:$B$23,'Activity 1'!E$17:E$23,\"N/A\",0,1)","v":"N/A"},{"$f":"_xlfn.XLOOKUP($E82,'Activity 1'!$B$17:$B$23,'Activity 1'!F$17:F$23,\"N/A\",0,1)","v":"N/A"},{"$f":"_xlfn.XLOOKUP($E82,'Activity 1'!$B$17:$B$23,'Activity 1'!G$17:G$23,\"N/A\",0,1)","v":"N/A"},{"$f":"_xlfn.XLOOKUP($E82,'Activity 1'!$B$17:$B$23,'Activity 1'!H$17:H$23,\"N/A\",0,1)","v":"N/A"},{"$f":"_xlfn.XLOOKUP($E82,'Activity 1'!$B$17:$B$23,'Activity 1'!I$17:I$23,\"N/A\",0,1)","v":"N/A"},{"$f":"_xlfn.XLOOKUP($E82,'Activity 1'!$B$17:$B$23,'Activity 1'!J$17:J$23,\"N/A\",0,1)","v":"N/A"},{"$f":"_xlfn.XLOOKUP($E82,'Activity 1'!$B$17:$B$23,'Activity 1'!K$17:K$23,\"N/A\",0,1)","v":"N/A"},{"$f":"_xlfn.XLOOKUP($E82,'Activity 1'!$B$17:$B$23,'Activity 1'!L$17:L$23,\"N/A\",0,1)","v":"N/A"},{"$f":"_xlfn.XLOOKUP($E82,'Activity 1'!$B$17:$B$23,'Activity 1'!M$17:M$23,\"N/A\",0,1)","v":"N/A"},{"$f":"_xlfn.XLOOKUP($E82,'Activity 1'!$B$17:$B$23,'Activity 1'!O$17:O$23,\"N/A\",0,1)","v":"N/A"},{"$f":"_xlfn.XLOOKUP($E82,'Activity 1'!$B$17:$B$23,'Activity 1'!Q$17:Q$23,\"N/A\",0,1)","v":"N/A"},{"$f":"_xlfn.XLOOKUP($E82,'Activity 2'!$B$7:$B$13,'Activity 2'!$A$7:$A$13,\"No\",0,1)","v":"No"},{"$f":"_xlfn.XLOOKUP($E82,'Activity 2'!B$7:B$13,'Activity 2'!H$7:H$13,\"N/A\",0)","v":"N/A"},{"$f":"_xlfn.XLOOKUP($E82,'Activity 2'!C$7:C$13,'Activity 2'!I$7:I$13,\"N/A\",0)","v":"N/A"},{"$f":"_xlfn.XLOOKUP($E82,'Activity 2'!D$7:D$13,'Activity 2'!J$7:J$13,\"N/A\",0)","v":"N/A"},{"$f":"_xlfn.XLOOKUP($E82,'Activity 2'!E$7:E$13,'Activity 2'!K$7:K$13,\"N/A\",0)","v":"N/A"},{"$f":"_xlfn.XLOOKUP($E82,'Activity 2'!F$7:F$13,'Activity 2'!L$7:L$13,\"N/A\",0)","v":"N/A"},{"$f":"_xlfn.XLOOKUP($E82,'Activity 2'!G$7:G$13,'Activity 2'!M$7:M$13,\"N/A\",0)","v":"N/A"},{"$f":"_xlfn.XLOOKUP($E82,'Activity 2'!H$7:H$13,'Activity 2'!N$7:N$13,\"N/A\",0)","v":"N/A"},{"$f":"_xlfn.XLOOKUP($E82,'Activity 2'!I$7:I$13,'Activity 2'!O$7:O$13,\"N/A\",0)","v":"N/A"},{"$f":"_xlfn.XLOOKUP($E82,'Activity 2'!J$7:J$13,'Activity 2'!P$7:P$13,\"N/A\",0)","v":"N/A"},{"$f":"_xlfn.XLOOKUP($E82,'Activity 2'!K$7:K$13,'Activity 2'!Q$7:Q$13,\"N/A\",0)","v":"N/A"},{"$f":"_xlfn.XLOOKUP($E82,'Activity 2'!L$7:L$13,'Activity 2'!R$7:R$13,\"N/A\",0)","v":"N/A"},{"$f":"_xlfn.XLOOKUP($E82,'Activity 2'!M$7:M$13,'Activity 2'!S$7:S$13,\"N/A\",0)","v":"N/A"},{"$f":"_xlfn.XLOOKUP($E82,'Activity 2'!N$7:N$13,'Activity 2'!T$7:T$13,\"N/A\",0)","v":"N/A"},{"$f":"_xlfn.XLOOKUP($E82,'Activity 2'!O$7:O$13,'Activity 2'!U$7:U$13,\"N/A\",0)","v":"N/A"},{"$f":"_xlfn.XLOOKUP($E82,'Activity 2'!P$7:P$13,'Activity 2'!V$7:V$13,\"N/A\",0)","v":"N/A"},{"$f":"_xlfn.XLOOKUP($E82,'Activity 2'!$B$17:$B$23,'Activity 2'!C$17:C$23,\"N/A\",0,1)","v":"N/A"},{"$f":"_xlfn.XLOOKUP($E82,'Activity 2'!$B$17:$B$23,'Activity 2'!D$17:D$23,\"N/A\",0,1)","v":"N/A"},{"$f":"_xlfn.XLOOKUP($E82,'Activity 2'!$B$17:$B$23,'Activity 2'!E$17:E$23,\"N/A\",0,1)","v":"N/A"},{"$f":"_xlfn.XLOOKUP($E82,'Activity 2'!$B$17:$B$23,'Activity 2'!F$17:F$23,\"N/A\",0,1)","v":"N/A"},{"$f":"_xlfn.XLOOKUP($E82,'Activity 2'!$B$17:$B$23,'Activity 2'!G$17:G$23,\"N/A\",0,1)","v":"N/A"},{"$f":"_xlfn.XLOOKUP($E82,'Activity 2'!$B$17:$B$23,'Activity 2'!H$17:H$23,\"N/A\",0,1)","v":"N/A"},{"$f":"_xlfn.XLOOKUP($E82,'Activity 2'!$B$17:$B$23,'Activity 2'!I$17:I$23,\"N/A\",0,1)","v":"N/A"},{"$f":"_xlfn.XLOOKUP($E82,'Activity 2'!$B$17:$B$23,'Activity 2'!J$17:J$23,\"N/A\",0,1)","v":"N/A"},{"$f":"_xlfn.XLOOKUP($E82,'Activity 2'!$B$17:$B$23,'Activity 2'!K$17:K$23,\"N/A\",0,1)","v":"N/A"},{"$f":"_xlfn.XLOOKUP($E82,'Activity 2'!$B$17:$B$23,'Activity 2'!L$17:L$23,\"N/A\",0,1)","v":"N/A"},{"$f":"_xlfn.XLOOKUP($E82,'Activity 2'!$B$17:$B$23,'Activity 2'!M$17:M$23,\"N/A\",0,1)","v":"N/A"},{"$f":"_xlfn.XLOOKUP($E82,'Activity 2'!$B$17:$B$23,'Activity 2'!O$17:O$23,\"N/A\",0,1)","v":"N/A"},{"$f":"_xlfn.XLOOKUP($E82,'Activity 2'!$B$17:$B$23,'Activity 2'!Q$17:Q$23,\"N/A\",0,1)","v":"N/A"},null,{"$f":"_xlfn.XLOOKUP($E82,'Activity 3'!$B$8:$B$14,'Activity 3'!K$8:K$14,\"N/A\",0,1)","v":"N/A"},{"$f":"_xlfn.XLOOKUP($E82,'Activity 3'!$B$8:$B$14,'Activity 3'!L$8:L$14,\"N/A\",0,1)","v":"N/A"},{"$f":"_xlfn.XLOOKUP($E82,'Activity 3'!$B$8:$B$14,'Activity 3'!M$8:M$14,\"N/A\",0,1)","v":"N/A"},{"$f":"_xlfn.XLOOKUP($E82,'Activity 3'!$B$8:$B$14,'Activity 3'!N$8:N$14,\"N/A\",0,1)","v":"N/A"},{"$f":"_xlfn.XLOOKUP($E82,'Activity 3'!$B$8:$B$14,'Activity 3'!O$8:O$14,\"N/A\",0,1)","v":"N/A"},{"$f":"_xlfn.XLOOKUP($E82,'Activity 3'!$B$8:$B$14,'Activity 3'!R$8:R$14,\"N/A\",0,1)","v":"N/A"},{"$f":"_xlfn.XLOOKUP($E82,'Activity 4'!$B$8:$B$14,'Activity 4'!$A$8:$A$14,\"No\",0,1)","v":"No"},{"$f":"_xlfn.XLOOKUP($E82,'Activity 4'!$B$8:$B$14,'Activity 4'!L$8:L$14,\"N/A\",0,1)","v":"N/A"},{"$f":"_xlfn.XLOOKUP($E82,'Activity 4'!$B$8:$B$14,'Activity 4'!I$8:I$14,\"N/A\",0,1)","v":"N/A"},{"$f":"_xlfn.XLOOKUP($E82,'Activity 4'!$B$8:$B$14,'Activity 4'!M$8:M$14,\"N/A\",0,1)","v":"N/A"},{"$f":"_xlfn.XLOOKUP($E82,'Activity 5'!$B$8:$B$14,'Activity 5'!$A$8:$A$14,\"No\",0,1)","v":"No"},{"$f":"_xlfn.XLOOKUP($E82,'Activity 5'!$B$8:$B$14,'Activity 5'!J$8:J$14,\"N/A\",0,1)","v":"N/A"},{"$f":"_xlfn.XLOOKUP($E82,'Activity 5'!$B$8:$B$14,'Activity 5'!K$8:K$14,\"N/A\",0,1)","v":"N/A"},{"$f":"_xlfn.XLOOKUP($E82,'Activity 5'!$B$8:$B$14,'Activity 5'!N$8:N$14,\"N/A\",0,1)","v":"N/A"},{"$f":"_xlfn.XLOOKUP($E82,'Activity 5'!$B$8:$B$14,'Activity 5'!O$8:O$14,\"N/A\",0,1)","v":"N/A"},{"$f":"_xlfn.XLOOKUP($E82,'Activity 5'!$B$8:$B$14,'Activity 5'!P$8:P$14,\"N/A\",0,1)","v":"N/A"},{"$f":"_xlfn.XLOOKUP($E82,'Activity 5'!$B$8:$B$14,'Activity 5'!Q$8:Q$14,\"N/A\",0,1)","v":"N/A"},{"$f":"_xlfn.XLOOKUP($E82,'Activity 5'!$B$8:$B$14,'Activity 5'!R$8:R$14,\"N/A\",0,1)","v":"N/A"},{"$f":"_xlfn.XLOOKUP($E82,'Activity 6'!$B$7:$B$13,'Activity 6'!A$7:A$13,\"No\",0,1)","v":"No"},{"$f":"_xlfn.XLOOKUP($E82,'Activity 6'!$B$7:$B$13,'Activity 6'!K$7:K$13,\"N/A\",0,1)","v":"N/A"},{"$f":"_xlfn.XLOOKUP($E82,'Activity 6'!$B$7:$B$13,'Activity 6'!L$7:L$13,\"N/A\",0,1)","v":"N/A"},{"$f":"_xlfn.XLOOKUP($E82,'Activity 6'!$B$7:$B$13,'Activity 6'!M$7:M$13,\"N/A\",0,1)","v":"N/A"},{"$f":"_xlfn.XLOOKUP($E82,'Activity 6'!$B$7:$B$13,'Activity 6'!N$7:N$13,\"N/A\",0,1)","v":"N/A"},{"$f":"_xlfn.XLOOKUP($E82,'Activity 6'!$B$7:$B$13,'Activity 6'!O$7:O$13,\"N/A\",0,1)","v":"N/A"},{"$f":"_xlfn.XLOOKUP($E82,'Activity 6'!$B$7:$B$13,'Activity 6'!P$7:P$13,\"N/A\",0,1)","v":"N/A"},{"$f":"_xlfn.XLOOKUP($E82,'Activity 6'!$B$7:$B$13,'Activity 6'!Q$7:Q$13,\"N/A\",0,1)","v":"N/A"},{"$f":"_xlfn.XLOOKUP($E82,'Activity 6'!$B$7:$B$13,'Activity 6'!R$7:R$13,\"N/A\",0,1)","v":"N/A"},{"$f":"_xlfn.XLOOKUP($E82,'Activity 6'!$B$7:$B$13,'Activity 6'!S$7:S$13,\"N/A\",0,1)","v":"N/A"},{"$f":"_xlfn.XLOOKUP($E82,'Activity 6'!$B$7:$B$13,'Activity 6'!T$7:T$13,\"N/A\",0,1)","v":"N/A"},{"$f":"_xlfn.XLOOKUP($E82,'Activity 6'!$B$7:$B$13,'Activity 6'!U$7:U$13,\"N/A\",0,1)","v":"N/A"},{"$f":"_xlfn.XLOOKUP($E82,'Activity 6'!$B$22:$B$28,'Activity 6'!C$22:C$28,\"N/A\",0,1)","v":"N/A"},{"$f":"_xlfn.XLOOKUP($E82,'Activity 6'!$B$22:$B$28,'Activity 6'!D$22:D$28,\"N/A\",0,1)","v":"N/A"},{"$f":"_xlfn.XLOOKUP($E82,'Activity 6'!$B$22:$B$28,'Activity 6'!E$22:E$28,\"N/A\",0,1)","v":"N/A"},{"$f":"_xlfn.XLOOKUP($E82,'Activity 6'!$B$22:$B$28,'Activity 6'!F$22:F$28,\"N/A\",0,1)","v":"N/A"},{"$f":"_xlfn.XLOOKUP($E82,'Activity 6'!$B$22:$B$28,'Activity 6'!G$22:G$28,\"N/A\",0,1)","v":"N/A"},{"$f":"_xlfn.XLOOKUP($E82,'Activity 6'!$B$22:$B$28,'Activity 6'!H$22:H$28,\"N/A\",0,1)","v":"N/A"},{"$f":"_xlfn.XLOOKUP($E82,'Activity 6'!$B$22:$B$28,'Activity 6'!I$22:I$28,\"N/A\",0,1)","v":"N/A"},{"$f":"_xlfn.XLOOKUP($E82,'Activity 6'!$B$22:$B$28,'Activity 6'!J$22:J$28,\"N/A\",0,1)","v":"N/A"},{"$f":"_xlfn.XLOOKUP($E82,'Activity 6'!$B$22:$B$28,'Activity 6'!K$22:K$28,\"N/A\",0,1)","v":"N/A"},{"$f":"_xlfn.XLOOKUP($E82,'Activity 6'!$B$22:$B$28,'Activity 6'!L$22:L$28,\"N/A\",0,1)","v":"N/A"},{"$f":"_xlfn.XLOOKUP($E82,'Activity 6'!$B$22:$B$28,'Activity 6'!M$22:M$28,\"N/A\",0,1)","v":"N/A"},{"$f":"_xlfn.XLOOKUP($E82,'Activity 6'!$B$22:$B$28,'Activity 6'!N$22:N$28,\"N/A\",0,1)","v":"N/A"},{"$f":"_xlfn.XLOOKUP($E82,'Activity 6'!$B$32:$B$38,'Activity 6'!C$32:C$38,\"N/A\",0,1)","v":"N/A"},{"$f":"_xlfn.XLOOKUP($E82,'Activity 6'!$B$32:$B$38,'Activity 6'!D$32:D$38,\"N/A\",0,1)","v":"N/A"},{"$f":"_xlfn.XLOOKUP($E82,'Activity 6'!$B$32:$B$38,'Activity 6'!E$32:E$38,\"N/A\",0,1)","v":"N/A"},{"$f":"_xlfn.XLOOKUP($E82,'Activity 6'!$B$32:$B$38,'Activity 6'!F$32:F$38,\"N/A\",0,1)","v":"N/A"},{"$f":"_xlfn.XLOOKUP($E82,'Activity 6'!$B$32:$B$38,'Activity 6'!G$32:G$38,\"N/A\",0,1)","v":"N/A"},{"$f":"_xlfn.XLOOKUP($E82,'Activity 6'!$B$32:$B$38,'Activity 6'!H$32:H$38,\"N/A\",0,1)","v":"N/A"},{"$f":"_xlfn.XLOOKUP($E82,'Activity 6'!$B$32:$B$38,'Activity 6'!I$32:I$38,\"N/A\",0,1)","v":"N/A"},{"$f":"_xlfn.XLOOKUP($E82,'Activity 6'!$B$32:$B$38,'Activity 6'!J$32:J$38,\"N/A\",0,1)","v":"N/A"},{"$f":"_xlfn.XLOOKUP($E82,'Activity 6'!$B$32:$B$38,'Activity 6'!K$32:K$38,\"N/A\",0,1)","v":"N/A"},{"$f":"_xlfn.XLOOKUP($E82,'Activity 6'!$B$32:$B$38,'Activity 6'!M$32:M$38,\"N/A\",0,1)","v":"N/A"},{"$f":"_xlfn.XLOOKUP($E82,'Activity 7'!$B$7:$B$13,'Activity 7'!$A$7:$A$13,\"No\",0,1)","v":"No"},{"$f":"_xlfn.XLOOKUP($E82,'Activity 7'!$B$7:$B$13,'Activity 7'!M$7:M$13,\"N/A\",0,1)","v":"N/A"},{"$f":"_xlfn.XLOOKUP($E82,'Activity 7'!$B$7:$B$13,'Activity 7'!K$7:K$13,\"N/A\",0,1)","v":"N/A"},{"$f":"_xlfn.XLOOKUP($E82,'Activity 7'!$B$7:$B$13,'Activity 7'!N$7:N$13,\"N/A\",0,1)","v":"N/A"},{"$f":"_xlfn.XLOOKUP($E82,'Activity 7'!$B$7:$B$13,'Activity 7'!O$7:O$13,\"N/A\",0,1)","v":"N/A"},{"$f":"_xlfn.XLOOKUP($E82,'Activity 7'!$B$7:$B$13,'Activity 7'!P$7:P$13,\"N/A\",0,1)","v":"N/A"},{"$f":"_xlfn.XLOOKUP($E82,'Activity 7'!$B$7:$B$13,'Activity 7'!Q$7:Q$13,\"N/A\",0,1)","v":"N/A"},{"$f":"_xlfn.XLOOKUP($E82,'Activity 7'!$B$7:$B$13,'Activity 7'!R$7:R$13,\"N/A\",0,1)","v":"N/A"},{"$f":"_xlfn.XLOOKUP($E82,'Activity 7'!$B$7:$B$13,'Activity 7'!S$7:S$13,\"N/A\",0,1)","v":"N/A"},{"$f":"_xlfn.XLOOKUP($E82,'Activity 7'!$B$7:$B$13,'Activity 7'!T$7:T$13,\"N/A\",0,1)","v":"N/A"},{"$f":"_xlfn.XLOOKUP($E82,'Activity 7'!$B$7:$B$13,'Activity 7'!U$7:U$13,\"N/A\",0,1)","v":"N/A"},{"$f":"_xlfn.XLOOKUP($E82,'Activity 7'!$B$7:$B$13,'Activity 7'!V$7:V$13,\"N/A\",0,1)","v":"N/A"},{"$f":"_xlfn.XLOOKUP($E82,'Activity 7'!$B$17:$B$23,'Activity 7'!E$17:E$23,\"N/A\",0,1)","v":"N/A"},{"$f":"_xlfn.XLOOKUP($E82,'Activity 7'!$B$17:$B$23,'Activity 7'!G$17:G$23,\"N/A\",0,1)","v":"N/A"},{"$f":"_xlfn.XLOOKUP($E82,'Activity 7'!$B$17:$B$23,'Activity 7'!I$17:I$23,\"N/A\",0,1)","v":"N/A"},{"$f":"_xlfn.XLOOKUP($E82,'Activity 7'!$B$17:$B$23,'Activity 7'!J$17:J$23,\"N/A\",0,1)","v":"N/A"},{"$f":"_xlfn.XLOOKUP($E82,'Activity 7'!$B$17:$B$23,'Activity 7'!K$17:K$23,\"N/A\",0,1)","v":"N/A"},{"$f":"_xlfn.XLOOKUP($E82,'Activity 7'!$B$17:$B$23,'Activity 7'!L$17:L$23,\"N/A\",0,1)","v":"N/A"},{"$f":"_xlfn.XLOOKUP($E82,'Activity 7'!$B$17:$B$23,'Activity 7'!M$17:M$23,\"N/A\",0,1)","v":"N/A"},{"$f":"_xlfn.XLOOKUP($E82,'Activity 7'!$B$17:$B$23,'Activity 7'!N$17:N$23,\"N/A\",0,1)","v":"N/A"},{"$f":"_xlfn.XLOOKUP($E82,'Activity 7'!$B$17:$B$23,'Activity 7'!P$17:P$23,\"N/A\",0,1)","v":"N/A"},{"$f":"_xlfn.XLOOKUP($E82,'Activity 8'!$B$7:$B$13,'Activity 8'!A$7:A$13,\"No\",0,1)","v":"No"},{"$f":"_xlfn.XLOOKUP($E82,'Activity 8'!$B$7:$B$13,'Activity 8'!I$7:I$13,\"N/A\",0,1)","v":"N/A"},{"$f":"_xlfn.XLOOKUP($E82,'Activity 8'!$B$7:$B$13,'Activity 8'!J$7:J$13,\"N/A\",0,1)","v":"N/A"},{"$f":"_xlfn.XLOOKUP($E82,'Activity 8'!$B$7:$B$13,'Activity 8'!K$7:K$13,\"N/A\",0,1)","v":"N/A"},{"$f":"_xlfn.XLOOKUP($E82,'Activity 8'!$B$7:$B$13,'Activity 8'!L$7:L$13,\"N/A\",0,1)","v":"N/A"},{"$f":"_xlfn.XLOOKUP($E82,'Activity 8'!$B$7:$B$13,'Activity 8'!M$7:M$13,\"N/A\",0,1)","v":"N/A"},{"$f":"_xlfn.XLOOKUP($E82,'Activity 8'!$B$7:$B$13,'Activity 8'!N$7:N$13,\"N/A\",0,1)","v":"N/A"},{"$f":"_xlfn.XLOOKUP($E82,'Activity 8'!$B$7:$B$13,'Activity 8'!O$7:O$13,\"N/A\",0,1)","v":"N/A"},{"$f":"_xlfn.XLOOKUP($E82,'Activity 8'!$B$7:$B$13,'Activity 8'!P$7:P$13,\"N/A\",0,1)","v":"N/A"},{"$f":"_xlfn.XLOOKUP($E82,'Activity 8'!$B$7:$B$13,'Activity 8'!Q$7:Q$13,\"N/A\",0,1)","v":"N/A"},{"$f":"_xlfn.XLOOKUP($E82,'Activity 8'!$B$7:$B$13,'Activity 8'!R$7:R$13,\"N/A\",0,1)","v":"N/A"},{"$f":"_xlfn.XLOOKUP($E82,'Activity 8'!$B$7:$B$13,'Activity 8'!S$7:S$13,\"N/A\",0,1)","v":"N/A"},{"$f":"_xlfn.XLOOKUP($E82,'Activity 8'!$B$7:$B$13,'Activity 8'!T$7:T$13,\"N/A\",0,1)","v":"N/A"},{"$f":"_xlfn.XLOOKUP($E82,'Activity 8'!$B$7:$B$13,'Activity 8'!U$7:U$13,\"N/A\",0,1)","v":"N/A"},{"$f":"_xlfn.XLOOKUP($E82,'Activity 8'!$B$7:$B$13,'Activity 8'!V$7:V$13,\"N/A\",0,1)","v":"N/A"},{"$f":"_xlfn.XLOOKUP($E82,'Activity 8'!$B$17:$B$23,'Activity 8'!D$17:D$23,\"N/A\",0,1)","v":"N/A"},{"$f":"_xlfn.XLOOKUP($E82,'Activity 8'!$B$17:$B$23,'Activity 8'!E$17:E$23,\"N/A\",0,1)","v":"N/A"},{"$f":"_xlfn.XLOOKUP($E82,'Activity 8'!$B$17:$B$23,'Activity 8'!F$17:F$23,\"N/A\",0,1)","v":"N/A"},{"$f":"_xlfn.XLOOKUP($E82,'Activity 8'!$B$17:$B$23,'Activity 8'!G$17:G$23,\"N/A\",0,1)","v":"N/A"},{"$f":"_xlfn.XLOOKUP($E82,'Activity 8'!$B$17:$B$23,'Activity 8'!H$17:H$23,\"N/A\",0,1)","v":"N/A"},{"$f":"_xlfn.XLOOKUP($E82,'Activity 8'!$B$17:$B$23,'Activity 8'!I$17:I$23,\"N/A\",0,1)","v":"N/A"},{"$f":"_xlfn.XLOOKUP($E82,'Activity 8'!$B$17:$B$23,'Activity 8'!J$17:J$23,\"N/A\",0,1)","v":"N/A"},{"$f":"_xlfn.XLOOKUP($E82,'Activity 8'!$B$17:$B$23,'Activity 8'!K$17:K$23,\"N/A\",0,1)","v":"N/A"},{"$f":"_xlfn.XLOOKUP($E82,'Activity 8'!$B$17:$B$23,'Activity 8'!L$17:L$23,\"N/A\",0,1)","v":"N/A"},{"$f":"_xlfn.XLOOKUP($E82,'Activity 8'!$B$17:$B$23,'Activity 8'!M$17:M$23,\"N/A\",0,1)","v":"N/A"},{"$f":"_xlfn.XLOOKUP($E82,'Activity 8'!$B$17:$B$23,'Activity 8'!N$17:N$23,\"N/A\",0,1)","v":"N/A"},{"$f":"_xlfn.XLOOKUP($E82,'Activity 8'!$B$17:$B$23,'Activity 8'!P$17:P$23,\"N/A\",0,1)","v":"N/A"},{"$f":"_xlfn.XLOOKUP(E82,'Activity 9'!$B$7:$B$13,'Activity 9'!$A$7:$A$13,\"No\",0,1)","v":"No"},{"$f":"_xlfn.XLOOKUP($E82,'Activity 9'!$B$7:$B$13,'Activity 9'!J$7:J$13,\"N/A\",0,1)","v":"N/A"},{"$f":"_xlfn.XLOOKUP($E82,'Activity 9'!$B$7:$B$13,'Activity 9'!K$7:K$13,\"N/A\",0,1)","v":"N/A"},{"$f":"_xlfn.XLOOKUP($E82,'Activity 9'!$B$7:$B$13,'Activity 9'!L$7:L$13,\"N/A\",0,1)","v":"N/A"},{"$f":"_xlfn.XLOOKUP($E82,'Activity 9'!$B$7:$B$13,'Activity 9'!M$7:M$13,\"N/A\",0,1)","v":"N/A"},{"$f":"_xlfn.XLOOKUP($E82,'Activity 9'!$B$7:$B$13,'Activity 9'!N$7:N$13,\"N/A\",0,1)","v":"N/A"},{"$f":"_xlfn.XLOOKUP($E82,'Activity 9'!$B$7:$B$13,'Activity 9'!O$7:O$13,\"N/A\",0,1)","v":"N/A"},{"$f":"_xlfn.XLOOKUP($E82,'Activity 9'!$B$7:$B$13,'Activity 9'!P$7:P$13,\"N/A\",0,1)","v":"N/A"},{"$f":"_xlfn.XLOOKUP($E82,'Activity 9'!$B$7:$B$13,'Activity 9'!Q$7:Q$13,\"N/A\",0,1)","v":"N/A"},{"$f":"_xlfn.XLOOKUP($E82,'Activity 9'!$B$7:$B$13,'Activity 9'!R$7:R$13,\"N/A\",0,1)","v":"N/A"},{"$f":"_xlfn.XLOOKUP($E82,'Activity 9'!$B$7:$B$13,'Activity 9'!S$7:S$13,\"N/A\",0,1)","v":"N/A"},{"$f":"_xlfn.XLOOKUP($E82,'Activity 9'!$B$7:$B$13,'Activity 9'!T$7:T$13,\"N/A\",0,1)","v":"N/A"},{"$f":"_xlfn.XLOOKUP($E82,'Activity 9'!$B$17:$B$23,'Activity 9'!E$17:E$23,\"N/A\",0,1)","v":"N/A"},{"$f":"_xlfn.XLOOKUP($E82,'Activity 9'!$B$17:$B$23,'Activity 9'!F$17:F$23,\"N/A\",0,1)","v":"N/A"},{"$f":"_xlfn.XLOOKUP($E82,'Activity 9'!$B$17:$B$23,'Activity 9'!G$17:G$23,\"N/A\",0,1)","v":"N/A"},{"$f":"_xlfn.XLOOKUP($E82,'Activity 9'!$B$17:$B$23,'Activity 9'!H$17:H$23,\"N/A\",0,1)","v":"N/A"},{"$f":"_xlfn.XLOOKUP($E82,'Activity 9'!$B$17:$B$23,'Activity 9'!I$17:I$23,\"N/A\",0,1)","v":"N/A"},{"$f":"_xlfn.XLOOKUP($E82,'Activity 9'!$B$17:$B$23,'Activity 9'!J$17:J$23,\"N/A\",0,1)","v":"N/A"},{"$f":"_xlfn.XLOOKUP($E82,'Activity 9'!$B$17:$B$23,'Activity 9'!K$17:K$23,\"N/A\",0,1)","v":"N/A"},{"$f":"_xlfn.XLOOKUP($E82,'Activity 9'!$B$17:$B$23,'Activity 9'!L$17:L$23,\"N/A\",0,1)","v":"N/A"},{"$f":"_xlfn.XLOOKUP($E82,'Activity 9'!$B$17:$B$23,'Activity 9'!N$17:N$23,\"N/A\",0,1)","v":"N/A"},{"$f":"_xlfn.XLOOKUP($E82,'Activity 9'!$B$17:$B$23,'Activity 9'!O$17:O$23,\"N/A\",0,1)","v":"N/A"},{"$f":"_xlfn.XLOOKUP($E82,'Activity 9'!$B$17:$B$23,'Activity 9'!Q$17:Q$23,\"N/A\",0,1)","v":"N/A"},{"$f":"_xlfn.XLOOKUP($E82,'Activity 10'!$B$7:$B$13,'Activity 10'!A$7:A$13,\"No\",0,1)","v":"No"},{"$f":"_xlfn.XLOOKUP($E82,'Activity 10'!$B$7:$B$13,'Activity 10'!J$7:J$13,\"N/A\",0,1)","v":"N/A"},{"$f":"_xlfn.XLOOKUP($E82,'Activity 10'!$B$7:$B$13,'Activity 10'!K$7:K$13,\"N/A\",0,1)","v":"N/A"},{"$f":"_xlfn.XLOOKUP($E82,'Activity 10'!$B$7:$B$13,'Activity 10'!L$7:L$13,\"N/A\",0,1)","v":"N/A"},{"$f":"_xlfn.XLOOKUP($E82,'Activity 10'!$B$7:$B$13,'Activity 10'!M$7:M$13,\"N/A\",0,1)","v":"N/A"},{"$f":"_xlfn.XLOOKUP($E82,'Activity 10'!$B$7:$B$13,'Activity 10'!N$7:N$13,\"N/A\",0,1)","v":"N/A"},{"$f":"_xlfn.XLOOKUP($E82,'Activity 10'!$B$7:$B$13,'Activity 10'!O$7:O$13,\"N/A\",0,1)","v":"N/A"},{"$f":"_xlfn.XLOOKUP($E82,'Activity 10'!$B$7:$B$13,'Activity 10'!P$7:P$13,\"N/A\",0,1)","v":"N/A"},{"$f":"_xlfn.XLOOKUP($E82,'Activity 10'!$B$7:$B$13,'Activity 10'!Q$7:Q$13,\"N/A\",0,1)","v":"N/A"},{"$f":"_xlfn.XLOOKUP($E82,'Activity 10'!$B$7:$B$13,'Activity 10'!R$7:R$13,\"N/A\",0,1)","v":"N/A"},{"$f":"_xlfn.XLOOKUP($E82,'Activity 10'!$B$7:$B$13,'Activity 10'!S$7:S$13,\"N/A\",0,1)","v":"N/A"},{"$f":"_xlfn.XLOOKUP($E82,'Activity 10'!$B$7:$B$13,'Activity 10'!T$7:T$13,\"N/A\",0,1)","v":"N/A"},{"$f":"_xlfn.XLOOKUP($E82,'Activity 10'!$B$7:$B$13,'Activity 10'!U$7:U$13,\"N/A\",0,1)","v":"N/A"},{"$f":"_xlfn.XLOOKUP($E82,'Activity 10'!$B$7:$B$13,'Activity 10'!V$7:V$13,\"N/A\",0,1)","v":"N/A"},{"$f":"_xlfn.XLOOKUP($E82,'Activity 10'!$B$17:$B$23,'Activity 10'!E$17:E$23,\"N/A\",0,1)","v":"N/A"},{"$f":"_xlfn.XLOOKUP($E82,'Activity 10'!$B$17:$B$23,'Activity 10'!F$17:F$23,\"N/A\",0,1)","v":"N/A"},{"$f":"_xlfn.XLOOKUP($E82,'Activity 10'!$B$17:$B$23,'Activity 10'!G$17:G$23,\"N/A\",0,1)","v":"N/A"},{"$f":"_xlfn.XLOOKUP($E82,'Activity 10'!$B$17:$B$23,'Activity 10'!H$17:H$23,\"N/A\",0,1)","v":"N/A"},{"$f":"_xlfn.XLOOKUP($E82,'Activity 10'!$B$17:$B$23,'Activity 10'!I$17:I$23,\"N/A\",0,1)","v":"N/A"},{"$f":"_xlfn.XLOOKUP($E82,'Activity 10'!$B$17:$B$23,'Activity 10'!J$17:J$23,\"N/A\",0,1)","v":"N/A"},{"$f":"_xlfn.XLOOKUP($E82,'Activity 10'!$B$17:$B$23,'Activity 10'!K$17:K$23,\"N/A\",0,1)","v":"N/A"},{"$f":"_xlfn.XLOOKUP($E82,'Activity 10'!$B$17:$B$23,'Activity 10'!L$17:L$23,\"N/A\",0,1)","v":"N/A"},{"$f":"_xlfn.XLOOKUP($E82,'Activity 10'!$B$17:$B$23,'Activity 10'!M$17:M$23,\"N/A\",0,1)","v":"N/A"},{"$f":"_xlfn.XLOOKUP($E82,'Activity 10'!$B$17:$B$23,'Activity 10'!N$17:N$23,\"N/A\",0,1)","v":"N/A"},{"$f":"_xlfn.XLOOKUP($E82,'Activity 10'!$B$17:$B$23,'Activity 10'!P$17:P$23,\"N/A\",0,1)","v":"N/A"},{"$f":"_xlfn.XLOOKUP($E82,'Competitive Activity 1'!B$7:B$13,'Competitive Activity 1'!A$7:A$13,\"No\",0,1)","v":"No"},{"$f":"_xlfn.XLOOKUP($E82,'Competitive Activity 1'!$B$7:$B$13,'Competitive Activity 1'!H$7:H$13,\"N/A\",0,1)","v":"N/A"},{"$f":"_xlfn.XLOOKUP($E82,'Competitive Activity 1'!$B$7:$B$13,'Competitive Activity 1'!I$7:I$13,\"N/A\",0,1)","v":"N/A"},{"$f":"_xlfn.XLOOKUP($E82,'Competitive Activity 1'!$B$7:$B$13,'Competitive Activity 1'!J$7:J$13,\"N/A\",0,1)","v":"N/A"},{"$f":"_xlfn.XLOOKUP($E82,'Competitive Activity 1'!$B$7:$B$13,'Competitive Activity 1'!K$7:K$13,\"N/A\",0,1)","v":"N/A"},{"$f":"_xlfn.XLOOKUP($E82,'Competitive Activity 1'!$B$7:$B$13,'Competitive Activity 1'!L$7:L$13,\"N/A\",0,1)","v":"N/A"},{"$f":"_xlfn.XLOOKUP($E82,'Competitive Activity 1'!$B$7:$B$13,'Competitive Activity 1'!M$7:M$13,\"N/A\",0,1)","v":"N/A"},{"$f":"_xlfn.XLOOKUP($E82,'Competitive Activity 1'!$B$7:$B$13,'Competitive Activity 1'!N$7:N$13,\"N/A\",0,1)","v":"N/A"},{"$f":"_xlfn.XLOOKUP($E82,'Competitive Activity 1'!$B$7:$B$13,'Competitive Activity 1'!O$7:O$13,\"N/A\",0,1)","v":"N/A"},{"$f":"_xlfn.XLOOKUP($E82,'Competitive Activity 1'!$B$7:$B$13,'Competitive Activity 1'!P$7:P$13,\"N/A\",0,1)","v":"N/A"},{"$f":"_xlfn.XLOOKUP($E82,'Competitive Activity 1'!$B$7:$B$13,'Competitive Activity 1'!Q$7:Q$13,\"N/A\",0,1)","v":"N/A"},{"$f":"_xlfn.XLOOKUP($E82,'Competitive Activity 1'!$B$7:$B$13,'Competitive Activity 1'!R$7:R$13,\"N/A\",0,1)","v":"N/A"},{"$f":"_xlfn.XLOOKUP($E82,'Competitive Activity 1'!$B$7:$B$13,'Competitive Activity 1'!S$7:S$13,\"N/A\",0,1)","v":"N/A"},{"$f":"_xlfn.XLOOKUP($E82,'Competitive Activity 1'!$B$7:$B$13,'Competitive Activity 1'!T$7:T$13,\"N/A\",0,1)","v":"N/A"},{"$f":"_xlfn.XLOOKUP($E82,'Competitive Activity 1'!$B$7:$B$13,'Competitive Activity 1'!U$7:U$13,\"N/A\",0,1)","v":"N/A"},{"$f":"_xlfn.XLOOKUP($E82,'Competitive Activity 1'!$B$17:$B$23,'Competitive Activity 1'!C$17:C$23,\"N/A\",0,1)","v":"N/A"},{"$f":"_xlfn.XLOOKUP($E82,'Competitive Activity 1'!$B$17:$B$23,'Competitive Activity 1'!D$17:D$23,\"N/A\",0,1)","v":"N/A"},{"$f":"_xlfn.XLOOKUP($E82,'Competitive Activity 1'!$B$17:$B$23,'Competitive Activity 1'!E$17:E$23,\"N/A\",0,1)","v":"N/A"},{"$f":"_xlfn.XLOOKUP($E82,'Competitive Activity 1'!$B$17:$B$23,'Competitive Activity 1'!F$17:F$23,\"N/A\",0,1)","v":"N/A"},{"$f":"_xlfn.XLOOKUP($E82,'Competitive Activity 1'!$B$17:$B$23,'Competitive Activity 1'!G$17:G$23,\"N/A\",0,1)","v":"N/A"},{"$f":"_xlfn.XLOOKUP($E82,'Competitive Activity 1'!$B$17:$B$23,'Competitive Activity 1'!H$17:H$23,\"N/A\",0,1)","v":"N/A"},{"$f":"_xlfn.XLOOKUP($E82,'Competitive Activity 1'!$B$17:$B$23,'Competitive Activity 1'!I$17:I$23,\"N/A\",0,1)","v":"N/A"},{"$f":"_xlfn.XLOOKUP($E82,'Competitive Activity 1'!$B$17:$B$23,'Competitive Activity 1'!J$17:J$23,\"N/A\",0,1)","v":"N/A"},{"$f":"_xlfn.XLOOKUP($E82,'Competitive Activity 1'!$B$17:$B$23,'Competitive Activity 1'!K$17:K$23,\"N/A\",0,1)","v":"N/A"},{"$f":"_xlfn.XLOOKUP($E82,'Competitive Activity 1'!$B$17:$B$23,'Competitive Activity 1'!M$17:M$23,\"N/A\",0,1)","v":"N/A"},{"$f":"_xlfn.XLOOKUP($E82,'Competitive Activity 1'!$B$17:$B$23,'Competitive Activity 1'!N$17:N$23,\"N/A\",0,1)","v":"N/A"},{"$f":"_xlfn.XLOOKUP($E82,'Competitive Activity 1'!$B$17:$B$23,'Competitive Activity 1'!P$17:P$23,\"N/A\",0,1)","v":"N/A"},{"$f":"_xlfn.XLOOKUP($E82,'Competitive Activity 2'!$B$7:$B$13,'Competitive Activity 2'!A$7:A$13,\"No\",0)","v":"No"},{"$f":"_xlfn.XLOOKUP($E82,'Competitive Activity 2'!$B$7:$B$13,'Competitive Activity 2'!L$7:L$13,\"N/A\",0)","v":"N/A"},{"$f":"_xlfn.XLOOKUP($E82,'Competitive Activity 2'!$B$7:$B$13,'Competitive Activity 2'!M$7:M$13,\"N/A\",0)","v":"N/A"},{"$f":"_xlfn.XLOOKUP($E82,'Competitive Activity 2'!$B$7:$B$13,'Competitive Activity 2'!N$7:N$13,\"N/A\",0)","v":"N/A"},{"$f":"_xlfn.XLOOKUP($E82,'Competitive Activity 2'!$B$7:$B$13,'Competitive Activity 2'!O$7:O$13,\"N/A\",0)","v":"N/A"},{"$f":"_xlfn.XLOOKUP($E82,'Competitive Activity 2'!$B$7:$B$13,'Competitive Activity 2'!P$7:P$13,\"N/A\",0)","v":"N/A"},{"$f":"_xlfn.XLOOKUP($E82,'Competitive Activity 2'!$B$7:$B$13,'Competitive Activity 2'!Q$7:Q$13,\"N/A\",0)","v":"N/A"},{"$f":"_xlfn.XLOOKUP($E82,'Competitive Activity 2'!$B$7:$B$13,'Competitive Activity 2'!R$7:R$13,\"N/A\",0)","v":"N/A"},{"$f":"_xlfn.XLOOKUP($E82,'Competitive Activity 2'!$B$7:$B$13,'Competitive Activity 2'!S$7:S$13,\"N/A\",0)","v":"N/A"},{"$f":"_xlfn.XLOOKUP($E82,'Competitive Activity 2'!$B$7:$B$13,'Competitive Activity 2'!T$7:T$13,\"N/A\",0)","v":"N/A"},{"$f":"_xlfn.XLOOKUP($E82,'Competitive Activity 2'!$B$7:$B$13,'Competitive Activity 2'!U$7:U$13,\"N/A\",0)","v":"N/A"},{"$f":"_xlfn.XLOOKUP($E82,'Competitive Activity 2'!$B$17:$B$23,'Competitive Activity 2'!D$17:D$23,\"N/A\",0)","v":"N/A"},{"$f":"_xlfn.XLOOKUP($E82,'Competitive Activity 2'!$B$17:$B$23,'Competitive Activity 2'!E$17:E$23,\"N/A\",0)","v":"N/A"},{"$f":"_xlfn.XLOOKUP($E82,'Competitive Activity 2'!$B$17:$B$23,'Competitive Activity 2'!F$17:F$23,\"N/A\",0)","v":"N/A"},{"$f":"_xlfn.XLOOKUP($E82,'Competitive Activity 2'!$B$17:$B$23,'Competitive Activity 2'!G$17:G$23,\"N/A\",0)","v":"N/A"},{"$f":"_xlfn.XLOOKUP($E82,'Competitive Activity 2'!$B$17:$B$23,'Competitive Activity 2'!H$17:H$23,\"N/A\",0)","v":"N/A"},{"$f":"_xlfn.XLOOKUP($E82,'Competitive Activity 2'!$B$17:$B$23,'Competitive Activity 2'!I$17:I$23,\"N/A\",0)","v":"N/A"},{"$f":"_xlfn.XLOOKUP($E82,'Competitive Activity 2'!$B$17:$B$23,'Competitive Activity 2'!J$17:J$23,\"N/A\",0)","v":"N/A"},{"$f":"_xlfn.XLOOKUP($E82,'Competitive Activity 2'!$B$17:$B$23,'Competitive Activity 2'!K$17:K$23,\"N/A\",0)","v":"N/A"},{"$f":"_xlfn.XLOOKUP($E82,'Competitive Activity 2'!$B$17:$B$23,'Competitive Activity 2'!L$17:L$23,\"N/A\",0)","v":"N/A"},{"$f":"_xlfn.XLOOKUP($E82,'Competitive Activity 2'!$B$17:$B$23,'Competitive Activity 2'!M$17:M$23,\"N/A\",0)","v":"N/A"},{"$f":"_xlfn.XLOOKUP($E82,'Competitive Activity 2'!$B$17:$B$23,'Competitive Activity 2'!N$17:N$23,\"N/A\",0)","v":"N/A"},{"$f":"_xlfn.XLOOKUP($E82,'Competitive Activity 2'!$B$27:$B$33,'Competitive Activity 2'!D$27:D$33,\"N/A\",0)","v":"N/A"},{"$f":"_xlfn.XLOOKUP($E82,'Competitive Activity 2'!$B$27:$B$33,'Competitive Activity 2'!E$27:E$33,\"N/A\",0)","v":"N/A"},{"$f":"_xlfn.XLOOKUP($E82,'Competitive Activity 2'!$B$27:$B$33,'Competitive Activity 2'!F$27:F$33,\"N/A\",0)","v":"N/A"},{"$f":"_xlfn.XLOOKUP($E82,'Competitive Activity 2'!$B$27:$B$33,'Competitive Activity 2'!G$27:G$33,\"N/A\",0)","v":"N/A"},{"$f":"_xlfn.XLOOKUP($E82,'Competitive Activity 2'!$B$27:$B$33,'Competitive Activity 2'!H$27:H$33,\"N/A\",0)","v":"N/A"},{"$f":"_xlfn.XLOOKUP($E82,'Competitive Activity 2'!$B$27:$B$33,'Competitive Activity 2'!I$27:I$33,\"N/A\",0)","v":"N/A"},{"$f":"_xlfn.XLOOKUP($E82,'Competitive Activity 2'!$B$27:$B$33,'Competitive Activity 2'!J$27:J$33,\"N/A\",0)","v":"N/A"},{"$f":"_xlfn.XLOOKUP($E82,'Competitive Activity 2'!$B$27:$B$33,'Competitive Activity 2'!K$27:K$33,\"N/A\",0)","v":"N/A"},{"$f":"_xlfn.XLOOKUP($E82,'Competitive Activity 2'!$B$27:$B$33,'Competitive Activity 2'!M$27:M$33,\"N/A\",0)","v":"N/A"}]
[{"$f":"'1-Cover Sheet'!$C$8","v":"Select One"},{"$f":"'1-Cover Sheet'!$F$8","v":"Select One"},{"$f":"'Summary Sheet'!$D$8","v":0},{"$f":"'Summary Sheet'!$D$10","v":0},{"$f":"'Drop Down Box'!B247","v":0},{"$f":"'Drop Down Box'!C247","v":0},{"$f":"'Drop Down Box'!D247","v":"Select One"},{"$f":"_xlfn.XLOOKUP(E83,'Drop Down Box'!$B$166:$B$249,'Drop Down Box'!$A$166:$A$249,\"Unknown\",0)","v":"Activity 1"},{"$f":"_xlfn.XLOOKUP($E83,'Competitive Activity 2'!$B$27:$B$33,'Competitive Activity 2'!$L$32:$L$38,\"N/A\",0)","v":"N/A"},{"$f":"_xlfn.XLOOKUP($E83,'Competitive Activity 2'!$B$27:$B$33,'Competitive Activity 2'!$N$32:$N$38,\"N/A\",0)","v":"N/A"},{"$f":"_xlfn.XLOOKUP($E83,'Competitive Activity 2'!$B$7:$B$13,'Competitive Activity 2'!H$7:H$13,\"N/A\",0)","v":"N/A"},{"$f":"_xlfn.XLOOKUP($E83,'Competitive Activity 2'!$B$7:$B$13,'Competitive Activity 2'!I$7:I$13,\"N/A\",0)","v":"N/A"},{"$f":"_xlfn.XLOOKUP($E83,'Competitive Activity 2'!$B$7:$B$13,'Competitive Activity 2'!J$7:J$13,\"N/A\",0)","v":"N/A"},{"$f":"_xlfn.XLOOKUP($E83,'Activity 1'!$B$7:$B$13,'Activity 1'!$A$7:$A$13,\"No\",0,1)","v":"No"},{"$f":"_xlfn.XLOOKUP($E83,'Activity 1'!$B$7:$B$13,'Activity 1'!$H$7:$H$13,\"N/A\",0,1)","v":"N/A"},{"$f":"_xlfn.XLOOKUP($E83,'Activity 1'!$B$7:$B$13,'Activity 1'!I$7:I$13,\"N/A\",0,1)","v":"N/A"},{"$f":"_xlfn.XLOOKUP($E83,'Activity 1'!$B$7:$B$13,'Activity 1'!J$7:J$13,\"N/A\",0,1)","v":"N/A"},{"$f":"_xlfn.XLOOKUP($E83,'Activity 1'!$B$7:$B$13,'Activity 1'!K$7:K$13,\"N/A\",0,1)","v":"N/A"},{"$f":"_xlfn.XLOOKUP($E83,'Activity 1'!$B$7:$B$13,'Activity 1'!L$7:L$13,\"N/A\",0,1)","v":"N/A"},{"$f":"_xlfn.XLOOKUP($E83,'Activity 1'!$B$7:$B$13,'Activity 1'!M$7:M$13,\"N/A\",0,1)","v":"N/A"},{"$f":"_xlfn.XLOOKUP($E83,'Activity 1'!$B$7:$B$13,'Activity 1'!N$7:N$13,\"N/A\",0,1)","v":"N/A"},0,{"$f":"_xlfn.XLOOKUP($E83,'Activity 1'!$B$7:$B$13,'Activity 1'!O$7:O$13,\"N/A\",0,1)","v":"N/A"},{"$f":"_xlfn.XLOOKUP($E83,'Activity 1'!$B$7:$B$13,'Activity 1'!P$7:P$13,\"N/A\",0,1)","v":"N/A"},{"$f":"_xlfn.XLOOKUP($E83,'Activity 1'!$B$7:$B$13,'Activity 1'!Q$7:Q$13,\"N/A\",0,1)","v":"N/A"},{"$f":"_xlfn.XLOOKUP($E83,'Activity 1'!$B$7:$B$13,'Activity 1'!R$7:R$13,\"N/A\",0,1)","v":"N/A"},{"$f":"_xlfn.XLOOKUP($E83,'Activity 1'!$B$7:$B$13,'Activity 1'!S$7:S$13,\"N/A\",0,1)","v":"N/A"},{"$f":"_xlfn.XLOOKUP($E83,'Activity 1'!$B$7:$B$13,'Activity 1'!T$7:T$13,\"N/A\",0,1)","v":"N/A"},{"$f":"_xlfn.XLOOKUP($E83,'Activity 1'!$B$7:$B$13,'Activity 1'!U$7:U$13,\"N/A\",0,1)","v":"N/A"},{"$f":"_xlfn.XLOOKUP($E83,'Activity 1'!$B$7:$B$13,'Activity 1'!V$7:V$13,\"N/A\",0,1)","v":"N/A"},{"$f":"_xlfn.XLOOKUP($E83,'Activity 1'!$B$17:$B$23,'Activity 1'!C$17:C$23,\"N/A\",0,1)","v":"N/A"},{"$f":"_xlfn.XLOOKUP($E83,'Activity 1'!$B$17:$B$23,'Activity 1'!D$17:D$23,\"N/A\",0,1)","v":"N/A"},{"$f":"_xlfn.XLOOKUP($E83,'Activity 1'!$B$17:$B$23,'Activity 1'!E$17:E$23,\"N/A\",0,1)","v":"N/A"},{"$f":"_xlfn.XLOOKUP($E83,'Activity 1'!$B$17:$B$23,'Activity 1'!F$17:F$23,\"N/A\",0,1)","v":"N/A"},{"$f":"_xlfn.XLOOKUP($E83,'Activity 1'!$B$17:$B$23,'Activity 1'!G$17:G$23,\"N/A\",0,1)","v":"N/A"},{"$f":"_xlfn.XLOOKUP($E83,'Activity 1'!$B$17:$B$23,'Activity 1'!H$17:H$23,\"N/A\",0,1)","v":"N/A"},{"$f":"_xlfn.XLOOKUP($E83,'Activity 1'!$B$17:$B$23,'Activity 1'!I$17:I$23,\"N/A\",0,1)","v":"N/A"},{"$f":"_xlfn.XLOOKUP($E83,'Activity 1'!$B$17:$B$23,'Activity 1'!J$17:J$23,\"N/A\",0,1)","v":"N/A"},{"$f":"_xlfn.XLOOKUP($E83,'Activity 1'!$B$17:$B$23,'Activity 1'!K$17:K$23,\"N/A\",0,1)","v":"N/A"},{"$f":"_xlfn.XLOOKUP($E83,'Activity 1'!$B$17:$B$23,'Activity 1'!L$17:L$23,\"N/A\",0,1)","v":"N/A"},{"$f":"_xlfn.XLOOKUP($E83,'Activity 1'!$B$17:$B$23,'Activity 1'!M$17:M$23,\"N/A\",0,1)","v":"N/A"},{"$f":"_xlfn.XLOOKUP($E83,'Activity 1'!$B$17:$B$23,'Activity 1'!O$17:O$23,\"N/A\",0,1)","v":"N/A"},{"$f":"_xlfn.XLOOKUP($E83,'Activity 1'!$B$17:$B$23,'Activity 1'!Q$17:Q$23,\"N/A\",0,1)","v":"N/A"},{"$f":"_xlfn.XLOOKUP($E83,'Activity 2'!$B$7:$B$13,'Activity 2'!$A$7:$A$13,\"No\",0,1)","v":"No"},{"$f":"_xlfn.XLOOKUP($E83,'Activity 2'!B$7:B$13,'Activity 2'!H$7:H$13,\"N/A\",0)","v":"N/A"},{"$f":"_xlfn.XLOOKUP($E83,'Activity 2'!C$7:C$13,'Activity 2'!I$7:I$13,\"N/A\",0)","v":"N/A"},{"$f":"_xlfn.XLOOKUP($E83,'Activity 2'!D$7:D$13,'Activity 2'!J$7:J$13,\"N/A\",0)","v":"N/A"},{"$f":"_xlfn.XLOOKUP($E83,'Activity 2'!E$7:E$13,'Activity 2'!K$7:K$13,\"N/A\",0)","v":"N/A"},{"$f":"_xlfn.XLOOKUP($E83,'Activity 2'!F$7:F$13,'Activity 2'!L$7:L$13,\"N/A\",0)","v":"N/A"},{"$f":"_xlfn.XLOOKUP($E83,'Activity 2'!G$7:G$13,'Activity 2'!M$7:M$13,\"N/A\",0)","v":"N/A"},{"$f":"_xlfn.XLOOKUP($E83,'Activity 2'!H$7:H$13,'Activity 2'!N$7:N$13,\"N/A\",0)","v":"N/A"},{"$f":"_xlfn.XLOOKUP($E83,'Activity 2'!I$7:I$13,'Activity 2'!O$7:O$13,\"N/A\",0)","v":"N/A"},{"$f":"_xlfn.XLOOKUP($E83,'Activity 2'!J$7:J$13,'Activity 2'!P$7:P$13,\"N/A\",0)","v":"N/A"},{"$f":"_xlfn.XLOOKUP($E83,'Activity 2'!K$7:K$13,'Activity 2'!Q$7:Q$13,\"N/A\",0)","v":"N/A"},{"$f":"_xlfn.XLOOKUP($E83,'Activity 2'!L$7:L$13,'Activity 2'!R$7:R$13,\"N/A\",0)","v":"N/A"},{"$f":"_xlfn.XLOOKUP($E83,'Activity 2'!M$7:M$13,'Activity 2'!S$7:S$13,\"N/A\",0)","v":"N/A"},{"$f":"_xlfn.XLOOKUP($E83,'Activity 2'!N$7:N$13,'Activity 2'!T$7:T$13,\"N/A\",0)","v":"N/A"},{"$f":"_xlfn.XLOOKUP($E83,'Activity 2'!O$7:O$13,'Activity 2'!U$7:U$13,\"N/A\",0)","v":"N/A"},{"$f":"_xlfn.XLOOKUP($E83,'Activity 2'!P$7:P$13,'Activity 2'!V$7:V$13,\"N/A\",0)","v":"N/A"},{"$f":"_xlfn.XLOOKUP($E83,'Activity 2'!$B$17:$B$23,'Activity 2'!C$17:C$23,\"N/A\",0,1)","v":"N/A"},{"$f":"_xlfn.XLOOKUP($E83,'Activity 2'!$B$17:$B$23,'Activity 2'!D$17:D$23,\"N/A\",0,1)","v":"N/A"},{"$f":"_xlfn.XLOOKUP($E83,'Activity 2'!$B$17:$B$23,'Activity 2'!E$17:E$23,\"N/A\",0,1)","v":"N/A"},{"$f":"_xlfn.XLOOKUP($E83,'Activity 2'!$B$17:$B$23,'Activity 2'!F$17:F$23,\"N/A\",0,1)","v":"N/A"},{"$f":"_xlfn.XLOOKUP($E83,'Activity 2'!$B$17:$B$23,'Activity 2'!G$17:G$23,\"N/A\",0,1)","v":"N/A"},{"$f":"_xlfn.XLOOKUP($E83,'Activity 2'!$B$17:$B$23,'Activity 2'!H$17:H$23,\"N/A\",0,1)","v":"N/A"},{"$f":"_xlfn.XLOOKUP($E83,'Activity 2'!$B$17:$B$23,'Activity 2'!I$17:I$23,\"N/A\",0,1)","v":"N/A"},{"$f":"_xlfn.XLOOKUP($E83,'Activity 2'!$B$17:$B$23,'Activity 2'!J$17:J$23,\"N/A\",0,1)","v":"N/A"},{"$f":"_xlfn.XLOOKUP($E83,'Activity 2'!$B$17:$B$23,'Activity 2'!K$17:K$23,\"N/A\",0,1)","v":"N/A"},{"$f":"_xlfn.XLOOKUP($E83,'Activity 2'!$B$17:$B$23,'Activity 2'!L$17:L$23,\"N/A\",0,1)","v":"N/A"},{"$f":"_xlfn.XLOOKUP($E83,'Activity 2'!$B$17:$B$23,'Activity 2'!M$17:M$23,\"N/A\",0,1)","v":"N/A"},{"$f":"_xlfn.XLOOKUP($E83,'Activity 2'!$B$17:$B$23,'Activity 2'!O$17:O$23,\"N/A\",0,1)","v":"N/A"},{"$f":"_xlfn.XLOOKUP($E83,'Activity 2'!$B$17:$B$23,'Activity 2'!Q$17:Q$23,\"N/A\",0,1)","v":"N/A"},null,{"$f":"_xlfn.XLOOKUP($E83,'Activity 3'!$B$8:$B$14,'Activity 3'!K$8:K$14,\"N/A\",0,1)","v":"N/A"},{"$f":"_xlfn.XLOOKUP($E83,'Activity 3'!$B$8:$B$14,'Activity 3'!L$8:L$14,\"N/A\",0,1)","v":"N/A"},{"$f":"_xlfn.XLOOKUP($E83,'Activity 3'!$B$8:$B$14,'Activity 3'!M$8:M$14,\"N/A\",0,1)","v":"N/A"},{"$f":"_xlfn.XLOOKUP($E83,'Activity 3'!$B$8:$B$14,'Activity 3'!N$8:N$14,\"N/A\",0,1)","v":"N/A"},{"$f":"_xlfn.XLOOKUP($E83,'Activity 3'!$B$8:$B$14,'Activity 3'!O$8:O$14,\"N/A\",0,1)","v":"N/A"},{"$f":"_xlfn.XLOOKUP($E83,'Activity 3'!$B$8:$B$14,'Activity 3'!R$8:R$14,\"N/A\",0,1)","v":"N/A"},{"$f":"_xlfn.XLOOKUP($E83,'Activity 4'!$B$8:$B$14,'Activity 4'!$A$8:$A$14,\"No\",0,1)","v":"No"},{"$f":"_xlfn.XLOOKUP($E83,'Activity 4'!$B$8:$B$14,'Activity 4'!L$8:L$14,\"N/A\",0,1)","v":"N/A"},{"$f":"_xlfn.XLOOKUP($E83,'Activity 4'!$B$8:$B$14,'Activity 4'!I$8:I$14,\"N/A\",0,1)","v":"N/A"},{"$f":"_xlfn.XLOOKUP($E83,'Activity 4'!$B$8:$B$14,'Activity 4'!M$8:M$14,\"N/A\",0,1)","v":"N/A"},{"$f":"_xlfn.XLOOKUP($E83,'Activity 5'!$B$8:$B$14,'Activity 5'!$A$8:$A$14,\"No\",0,1)","v":"No"},{"$f":"_xlfn.XLOOKUP($E83,'Activity 5'!$B$8:$B$14,'Activity 5'!J$8:J$14,\"N/A\",0,1)","v":"N/A"},{"$f":"_xlfn.XLOOKUP($E83,'Activity 5'!$B$8:$B$14,'Activity 5'!K$8:K$14,\"N/A\",0,1)","v":"N/A"},{"$f":"_xlfn.XLOOKUP($E83,'Activity 5'!$B$8:$B$14,'Activity 5'!N$8:N$14,\"N/A\",0,1)","v":"N/A"},{"$f":"_xlfn.XLOOKUP($E83,'Activity 5'!$B$8:$B$14,'Activity 5'!O$8:O$14,\"N/A\",0,1)","v":"N/A"},{"$f":"_xlfn.XLOOKUP($E83,'Activity 5'!$B$8:$B$14,'Activity 5'!P$8:P$14,\"N/A\",0,1)","v":"N/A"},{"$f":"_xlfn.XLOOKUP($E83,'Activity 5'!$B$8:$B$14,'Activity 5'!Q$8:Q$14,\"N/A\",0,1)","v":"N/A"},{"$f":"_xlfn.XLOOKUP($E83,'Activity 5'!$B$8:$B$14,'Activity 5'!R$8:R$14,\"N/A\",0,1)","v":"N/A"},{"$f":"_xlfn.XLOOKUP($E83,'Activity 6'!$B$7:$B$13,'Activity 6'!A$7:A$13,\"No\",0,1)","v":"No"},{"$f":"_xlfn.XLOOKUP($E83,'Activity 6'!$B$7:$B$13,'Activity 6'!K$7:K$13,\"N/A\",0,1)","v":"N/A"},{"$f":"_xlfn.XLOOKUP($E83,'Activity 6'!$B$7:$B$13,'Activity 6'!L$7:L$13,\"N/A\",0,1)","v":"N/A"},{"$f":"_xlfn.XLOOKUP($E83,'Activity 6'!$B$7:$B$13,'Activity 6'!M$7:M$13,\"N/A\",0,1)","v":"N/A"},{"$f":"_xlfn.XLOOKUP($E83,'Activity 6'!$B$7:$B$13,'Activity 6'!N$7:N$13,\"N/A\",0,1)","v":"N/A"},{"$f":"_xlfn.XLOOKUP($E83,'Activity 6'!$B$7:$B$13,'Activity 6'!O$7:O$13,\"N/A\",0,1)","v":"N/A"},{"$f":"_xlfn.XLOOKUP($E83,'Activity 6'!$B$7:$B$13,'Activity 6'!P$7:P$13,\"N/A\",0,1)","v":"N/A"},{"$f":"_xlfn.XLOOKUP($E83,'Activity 6'!$B$7:$B$13,'Activity 6'!Q$7:Q$13,\"N/A\",0,1)","v":"N/A"},{"$f":"_xlfn.XLOOKUP($E83,'Activity 6'!$B$7:$B$13,'Activity 6'!R$7:R$13,\"N/A\",0,1)","v":"N/A"},{"$f":"_xlfn.XLOOKUP($E83,'Activity 6'!$B$7:$B$13,'Activity 6'!S$7:S$13,\"N/A\",0,1)","v":"N/A"},{"$f":"_xlfn.XLOOKUP($E83,'Activity 6'!$B$7:$B$13,'Activity 6'!T$7:T$13,\"N/A\",0,1)","v":"N/A"},{"$f":"_xlfn.XLOOKUP($E83,'Activity 6'!$B$7:$B$13,'Activity 6'!U$7:U$13,\"N/A\",0,1)","v":"N/A"},{"$f":"_xlfn.XLOOKUP($E83,'Activity 6'!$B$22:$B$28,'Activity 6'!C$22:C$28,\"N/A\",0,1)","v":"N/A"},{"$f":"_xlfn.XLOOKUP($E83,'Activity 6'!$B$22:$B$28,'Activity 6'!D$22:D$28,\"N/A\",0,1)","v":"N/A"},{"$f":"_xlfn.XLOOKUP($E83,'Activity 6'!$B$22:$B$28,'Activity 6'!E$22:E$28,\"N/A\",0,1)","v":"N/A"},{"$f":"_xlfn.XLOOKUP($E83,'Activity 6'!$B$22:$B$28,'Activity 6'!F$22:F$28,\"N/A\",0,1)","v":"N/A"},{"$f":"_xlfn.XLOOKUP($E83,'Activity 6'!$B$22:$B$28,'Activity 6'!G$22:G$28,\"N/A\",0,1)","v":"N/A"},{"$f":"_xlfn.XLOOKUP($E83,'Activity 6'!$B$22:$B$28,'Activity 6'!H$22:H$28,\"N/A\",0,1)","v":"N/A"},{"$f":"_xlfn.XLOOKUP($E83,'Activity 6'!$B$22:$B$28,'Activity 6'!I$22:I$28,\"N/A\",0,1)","v":"N/A"},{"$f":"_xlfn.XLOOKUP($E83,'Activity 6'!$B$22:$B$28,'Activity 6'!J$22:J$28,\"N/A\",0,1)","v":"N/A"},{"$f":"_xlfn.XLOOKUP($E83,'Activity 6'!$B$22:$B$28,'Activity 6'!K$22:K$28,\"N/A\",0,1)","v":"N/A"},{"$f":"_xlfn.XLOOKUP($E83,'Activity 6'!$B$22:$B$28,'Activity 6'!L$22:L$28,\"N/A\",0,1)","v":"N/A"},{"$f":"_xlfn.XLOOKUP($E83,'Activity 6'!$B$22:$B$28,'Activity 6'!M$22:M$28,\"N/A\",0,1)","v":"N/A"},{"$f":"_xlfn.XLOOKUP($E83,'Activity 6'!$B$22:$B$28,'Activity 6'!N$22:N$28,\"N/A\",0,1)","v":"N/A"},{"$f":"_xlfn.XLOOKUP($E83,'Activity 6'!$B$32:$B$38,'Activity 6'!C$32:C$38,\"N/A\",0,1)","v":"N/A"},{"$f":"_xlfn.XLOOKUP($E83,'Activity 6'!$B$32:$B$38,'Activity 6'!D$32:D$38,\"N/A\",0,1)","v":"N/A"},{"$f":"_xlfn.XLOOKUP($E83,'Activity 6'!$B$32:$B$38,'Activity 6'!E$32:E$38,\"N/A\",0,1)","v":"N/A"},{"$f":"_xlfn.XLOOKUP($E83,'Activity 6'!$B$32:$B$38,'Activity 6'!F$32:F$38,\"N/A\",0,1)","v":"N/A"},{"$f":"_xlfn.XLOOKUP($E83,'Activity 6'!$B$32:$B$38,'Activity 6'!G$32:G$38,\"N/A\",0,1)","v":"N/A"},{"$f":"_xlfn.XLOOKUP($E83,'Activity 6'!$B$32:$B$38,'Activity 6'!H$32:H$38,\"N/A\",0,1)","v":"N/A"},{"$f":"_xlfn.XLOOKUP($E83,'Activity 6'!$B$32:$B$38,'Activity 6'!I$32:I$38,\"N/A\",0,1)","v":"N/A"},{"$f":"_xlfn.XLOOKUP($E83,'Activity 6'!$B$32:$B$38,'Activity 6'!J$32:J$38,\"N/A\",0,1)","v":"N/A"},{"$f":"_xlfn.XLOOKUP($E83,'Activity 6'!$B$32:$B$38,'Activity 6'!K$32:K$38,\"N/A\",0,1)","v":"N/A"},{"$f":"_xlfn.XLOOKUP($E83,'Activity 6'!$B$32:$B$38,'Activity 6'!M$32:M$38,\"N/A\",0,1)","v":"N/A"},{"$f":"_xlfn.XLOOKUP($E83,'Activity 7'!$B$7:$B$13,'Activity 7'!$A$7:$A$13,\"No\",0,1)","v":"No"},{"$f":"_xlfn.XLOOKUP($E83,'Activity 7'!$B$7:$B$13,'Activity 7'!M$7:M$13,\"N/A\",0,1)","v":"N/A"},{"$f":"_xlfn.XLOOKUP($E83,'Activity 7'!$B$7:$B$13,'Activity 7'!K$7:K$13,\"N/A\",0,1)","v":"N/A"},{"$f":"_xlfn.XLOOKUP($E83,'Activity 7'!$B$7:$B$13,'Activity 7'!N$7:N$13,\"N/A\",0,1)","v":"N/A"},{"$f":"_xlfn.XLOOKUP($E83,'Activity 7'!$B$7:$B$13,'Activity 7'!O$7:O$13,\"N/A\",0,1)","v":"N/A"},{"$f":"_xlfn.XLOOKUP($E83,'Activity 7'!$B$7:$B$13,'Activity 7'!P$7:P$13,\"N/A\",0,1)","v":"N/A"},{"$f":"_xlfn.XLOOKUP($E83,'Activity 7'!$B$7:$B$13,'Activity 7'!Q$7:Q$13,\"N/A\",0,1)","v":"N/A"},{"$f":"_xlfn.XLOOKUP($E83,'Activity 7'!$B$7:$B$13,'Activity 7'!R$7:R$13,\"N/A\",0,1)","v":"N/A"},{"$f":"_xlfn.XLOOKUP($E83,'Activity 7'!$B$7:$B$13,'Activity 7'!S$7:S$13,\"N/A\",0,1)","v":"N/A"},{"$f":"_xlfn.XLOOKUP($E83,'Activity 7'!$B$7:$B$13,'Activity 7'!T$7:T$13,\"N/A\",0,1)","v":"N/A"},{"$f":"_xlfn.XLOOKUP($E83,'Activity 7'!$B$7:$B$13,'Activity 7'!U$7:U$13,\"N/A\",0,1)","v":"N/A"},{"$f":"_xlfn.XLOOKUP($E83,'Activity 7'!$B$7:$B$13,'Activity 7'!V$7:V$13,\"N/A\",0,1)","v":"N/A"},{"$f":"_xlfn.XLOOKUP($E83,'Activity 7'!$B$17:$B$23,'Activity 7'!E$17:E$23,\"N/A\",0,1)","v":"N/A"},{"$f":"_xlfn.XLOOKUP($E83,'Activity 7'!$B$17:$B$23,'Activity 7'!G$17:G$23,\"N/A\",0,1)","v":"N/A"},{"$f":"_xlfn.XLOOKUP($E83,'Activity 7'!$B$17:$B$23,'Activity 7'!I$17:I$23,\"N/A\",0,1)","v":"N/A"},{"$f":"_xlfn.XLOOKUP($E83,'Activity 7'!$B$17:$B$23,'Activity 7'!J$17:J$23,\"N/A\",0,1)","v":"N/A"},{"$f":"_xlfn.XLOOKUP($E83,'Activity 7'!$B$17:$B$23,'Activity 7'!K$17:K$23,\"N/A\",0,1)","v":"N/A"},{"$f":"_xlfn.XLOOKUP($E83,'Activity 7'!$B$17:$B$23,'Activity 7'!L$17:L$23,\"N/A\",0,1)","v":"N/A"},{"$f":"_xlfn.XLOOKUP($E83,'Activity 7'!$B$17:$B$23,'Activity 7'!M$17:M$23,\"N/A\",0,1)","v":"N/A"},{"$f":"_xlfn.XLOOKUP($E83,'Activity 7'!$B$17:$B$23,'Activity 7'!N$17:N$23,\"N/A\",0,1)","v":"N/A"},{"$f":"_xlfn.XLOOKUP($E83,'Activity 7'!$B$17:$B$23,'Activity 7'!P$17:P$23,\"N/A\",0,1)","v":"N/A"},{"$f":"_xlfn.XLOOKUP($E83,'Activity 8'!$B$7:$B$13,'Activity 8'!A$7:A$13,\"No\",0,1)","v":"No"},{"$f":"_xlfn.XLOOKUP($E83,'Activity 8'!$B$7:$B$13,'Activity 8'!I$7:I$13,\"N/A\",0,1)","v":"N/A"},{"$f":"_xlfn.XLOOKUP($E83,'Activity 8'!$B$7:$B$13,'Activity 8'!J$7:J$13,\"N/A\",0,1)","v":"N/A"},{"$f":"_xlfn.XLOOKUP($E83,'Activity 8'!$B$7:$B$13,'Activity 8'!K$7:K$13,\"N/A\",0,1)","v":"N/A"},{"$f":"_xlfn.XLOOKUP($E83,'Activity 8'!$B$7:$B$13,'Activity 8'!L$7:L$13,\"N/A\",0,1)","v":"N/A"},{"$f":"_xlfn.XLOOKUP($E83,'Activity 8'!$B$7:$B$13,'Activity 8'!M$7:M$13,\"N/A\",0,1)","v":"N/A"},{"$f":"_xlfn.XLOOKUP($E83,'Activity 8'!$B$7:$B$13,'Activity 8'!N$7:N$13,\"N/A\",0,1)","v":"N/A"},{"$f":"_xlfn.XLOOKUP($E83,'Activity 8'!$B$7:$B$13,'Activity 8'!O$7:O$13,\"N/A\",0,1)","v":"N/A"},{"$f":"_xlfn.XLOOKUP($E83,'Activity 8'!$B$7:$B$13,'Activity 8'!P$7:P$13,\"N/A\",0,1)","v":"N/A"},{"$f":"_xlfn.XLOOKUP($E83,'Activity 8'!$B$7:$B$13,'Activity 8'!Q$7:Q$13,\"N/A\",0,1)","v":"N/A"},{"$f":"_xlfn.XLOOKUP($E83,'Activity 8'!$B$7:$B$13,'Activity 8'!R$7:R$13,\"N/A\",0,1)","v":"N/A"},{"$f":"_xlfn.XLOOKUP($E83,'Activity 8'!$B$7:$B$13,'Activity 8'!S$7:S$13,\"N/A\",0,1)","v":"N/A"},{"$f":"_xlfn.XLOOKUP($E83,'Activity 8'!$B$7:$B$13,'Activity 8'!T$7:T$13,\"N/A\",0,1)","v":"N/A"},{"$f":"_xlfn.XLOOKUP($E83,'Activity 8'!$B$7:$B$13,'Activity 8'!U$7:U$13,\"N/A\",0,1)","v":"N/A"},{"$f":"_xlfn.XLOOKUP($E83,'Activity 8'!$B$7:$B$13,'Activity 8'!V$7:V$13,\"N/A\",0,1)","v":"N/A"},{"$f":"_xlfn.XLOOKUP($E83,'Activity 8'!$B$17:$B$23,'Activity 8'!D$17:D$23,\"N/A\",0,1)","v":"N/A"},{"$f":"_xlfn.XLOOKUP($E83,'Activity 8'!$B$17:$B$23,'Activity 8'!E$17:E$23,\"N/A\",0,1)","v":"N/A"},{"$f":"_xlfn.XLOOKUP($E83,'Activity 8'!$B$17:$B$23,'Activity 8'!F$17:F$23,\"N/A\",0,1)","v":"N/A"},{"$f":"_xlfn.XLOOKUP($E83,'Activity 8'!$B$17:$B$23,'Activity 8'!G$17:G$23,\"N/A\",0,1)","v":"N/A"},{"$f":"_xlfn.XLOOKUP($E83,'Activity 8'!$B$17:$B$23,'Activity 8'!H$17:H$23,\"N/A\",0,1)","v":"N/A"},{"$f":"_xlfn.XLOOKUP($E83,'Activity 8'!$B$17:$B$23,'Activity 8'!I$17:I$23,\"N/A\",0,1)","v":"N/A"},{"$f":"_xlfn.XLOOKUP($E83,'Activity 8'!$B$17:$B$23,'Activity 8'!J$17:J$23,\"N/A\",0,1)","v":"N/A"},{"$f":"_xlfn.XLOOKUP($E83,'Activity 8'!$B$17:$B$23,'Activity 8'!K$17:K$23,\"N/A\",0,1)","v":"N/A"},{"$f":"_xlfn.XLOOKUP($E83,'Activity 8'!$B$17:$B$23,'Activity 8'!L$17:L$23,\"N/A\",0,1)","v":"N/A"},{"$f":"_xlfn.XLOOKUP($E83,'Activity 8'!$B$17:$B$23,'Activity 8'!M$17:M$23,\"N/A\",0,1)","v":"N/A"},{"$f":"_xlfn.XLOOKUP($E83,'Activity 8'!$B$17:$B$23,'Activity 8'!N$17:N$23,\"N/A\",0,1)","v":"N/A"},{"$f":"_xlfn.XLOOKUP($E83,'Activity 8'!$B$17:$B$23,'Activity 8'!P$17:P$23,\"N/A\",0,1)","v":"N/A"},{"$f":"_xlfn.XLOOKUP(E83,'Activity 9'!$B$7:$B$13,'Activity 9'!$A$7:$A$13,\"No\",0,1)","v":"No"},{"$f":"_xlfn.XLOOKUP($E83,'Activity 9'!$B$7:$B$13,'Activity 9'!J$7:J$13,\"N/A\",0,1)","v":"N/A"},{"$f":"_xlfn.XLOOKUP($E83,'Activity 9'!$B$7:$B$13,'Activity 9'!K$7:K$13,\"N/A\",0,1)","v":"N/A"},{"$f":"_xlfn.XLOOKUP($E83,'Activity 9'!$B$7:$B$13,'Activity 9'!L$7:L$13,\"N/A\",0,1)","v":"N/A"},{"$f":"_xlfn.XLOOKUP($E83,'Activity 9'!$B$7:$B$13,'Activity 9'!M$7:M$13,\"N/A\",0,1)","v":"N/A"},{"$f":"_xlfn.XLOOKUP($E83,'Activity 9'!$B$7:$B$13,'Activity 9'!N$7:N$13,\"N/A\",0,1)","v":"N/A"},{"$f":"_xlfn.XLOOKUP($E83,'Activity 9'!$B$7:$B$13,'Activity 9'!O$7:O$13,\"N/A\",0,1)","v":"N/A"},{"$f":"_xlfn.XLOOKUP($E83,'Activity 9'!$B$7:$B$13,'Activity 9'!P$7:P$13,\"N/A\",0,1)","v":"N/A"},{"$f":"_xlfn.XLOOKUP($E83,'Activity 9'!$B$7:$B$13,'Activity 9'!Q$7:Q$13,\"N/A\",0,1)","v":"N/A"},{"$f":"_xlfn.XLOOKUP($E83,'Activity 9'!$B$7:$B$13,'Activity 9'!R$7:R$13,\"N/A\",0,1)","v":"N/A"},{"$f":"_xlfn.XLOOKUP($E83,'Activity 9'!$B$7:$B$13,'Activity 9'!S$7:S$13,\"N/A\",0,1)","v":"N/A"},{"$f":"_xlfn.XLOOKUP($E83,'Activity 9'!$B$7:$B$13,'Activity 9'!T$7:T$13,\"N/A\",0,1)","v":"N/A"},{"$f":"_xlfn.XLOOKUP($E83,'Activity 9'!$B$17:$B$23,'Activity 9'!E$17:E$23,\"N/A\",0,1)","v":"N/A"},{"$f":"_xlfn.XLOOKUP($E83,'Activity 9'!$B$17:$B$23,'Activity 9'!F$17:F$23,\"N/A\",0,1)","v":"N/A"},{"$f":"_xlfn.XLOOKUP($E83,'Activity 9'!$B$17:$B$23,'Activity 9'!G$17:G$23,\"N/A\",0,1)","v":"N/A"},{"$f":"_xlfn.XLOOKUP($E83,'Activity 9'!$B$17:$B$23,'Activity 9'!H$17:H$23,\"N/A\",0,1)","v":"N/A"},{"$f":"_xlfn.XLOOKUP($E83,'Activity 9'!$B$17:$B$23,'Activity 9'!I$17:I$23,\"N/A\",0,1)","v":"N/A"},{"$f":"_xlfn.XLOOKUP($E83,'Activity 9'!$B$17:$B$23,'Activity 9'!J$17:J$23,\"N/A\",0,1)","v":"N/A"},{"$f":"_xlfn.XLOOKUP($E83,'Activity 9'!$B$17:$B$23,'Activity 9'!K$17:K$23,\"N/A\",0,1)","v":"N/A"},{"$f":"_xlfn.XLOOKUP($E83,'Activity 9'!$B$17:$B$23,'Activity 9'!L$17:L$23,\"N/A\",0,1)","v":"N/A"},{"$f":"_xlfn.XLOOKUP($E83,'Activity 9'!$B$17:$B$23,'Activity 9'!N$17:N$23,\"N/A\",0,1)","v":"N/A"},{"$f":"_xlfn.XLOOKUP($E83,'Activity 9'!$B$17:$B$23,'Activity 9'!O$17:O$23,\"N/A\",0,1)","v":"N/A"},{"$f":"_xlfn.XLOOKUP($E83,'Activity 9'!$B$17:$B$23,'Activity 9'!Q$17:Q$23,\"N/A\",0,1)","v":"N/A"},{"$f":"_xlfn.XLOOKUP($E83,'Activity 10'!$B$7:$B$13,'Activity 10'!A$7:A$13,\"No\",0,1)","v":"No"},{"$f":"_xlfn.XLOOKUP($E83,'Activity 10'!$B$7:$B$13,'Activity 10'!J$7:J$13,\"N/A\",0,1)","v":"N/A"},{"$f":"_xlfn.XLOOKUP($E83,'Activity 10'!$B$7:$B$13,'Activity 10'!K$7:K$13,\"N/A\",0,1)","v":"N/A"},{"$f":"_xlfn.XLOOKUP($E83,'Activity 10'!$B$7:$B$13,'Activity 10'!L$7:L$13,\"N/A\",0,1)","v":"N/A"},{"$f":"_xlfn.XLOOKUP($E83,'Activity 10'!$B$7:$B$13,'Activity 10'!M$7:M$13,\"N/A\",0,1)","v":"N/A"},{"$f":"_xlfn.XLOOKUP($E83,'Activity 10'!$B$7:$B$13,'Activity 10'!N$7:N$13,\"N/A\",0,1)","v":"N/A"},{"$f":"_xlfn.XLOOKUP($E83,'Activity 10'!$B$7:$B$13,'Activity 10'!O$7:O$13,\"N/A\",0,1)","v":"N/A"},{"$f":"_xlfn.XLOOKUP($E83,'Activity 10'!$B$7:$B$13,'Activity 10'!P$7:P$13,\"N/A\",0,1)","v":"N/A"},{"$f":"_xlfn.XLOOKUP($E83,'Activity 10'!$B$7:$B$13,'Activity 10'!Q$7:Q$13,\"N/A\",0,1)","v":"N/A"},{"$f":"_xlfn.XLOOKUP($E83,'Activity 10'!$B$7:$B$13,'Activity 10'!R$7:R$13,\"N/A\",0,1)","v":"N/A"},{"$f":"_xlfn.XLOOKUP($E83,'Activity 10'!$B$7:$B$13,'Activity 10'!S$7:S$13,\"N/A\",0,1)","v":"N/A"},{"$f":"_xlfn.XLOOKUP($E83,'Activity 10'!$B$7:$B$13,'Activity 10'!T$7:T$13,\"N/A\",0,1)","v":"N/A"},{"$f":"_xlfn.XLOOKUP($E83,'Activity 10'!$B$7:$B$13,'Activity 10'!U$7:U$13,\"N/A\",0,1)","v":"N/A"},{"$f":"_xlfn.XLOOKUP($E83,'Activity 10'!$B$7:$B$13,'Activity 10'!V$7:V$13,\"N/A\",0,1)","v":"N/A"},{"$f":"_xlfn.XLOOKUP($E83,'Activity 10'!$B$17:$B$23,'Activity 10'!E$17:E$23,\"N/A\",0,1)","v":"N/A"},{"$f":"_xlfn.XLOOKUP($E83,'Activity 10'!$B$17:$B$23,'Activity 10'!F$17:F$23,\"N/A\",0,1)","v":"N/A"},{"$f":"_xlfn.XLOOKUP($E83,'Activity 10'!$B$17:$B$23,'Activity 10'!G$17:G$23,\"N/A\",0,1)","v":"N/A"},{"$f":"_xlfn.XLOOKUP($E83,'Activity 10'!$B$17:$B$23,'Activity 10'!H$17:H$23,\"N/A\",0,1)","v":"N/A"},{"$f":"_xlfn.XLOOKUP($E83,'Activity 10'!$B$17:$B$23,'Activity 10'!I$17:I$23,\"N/A\",0,1)","v":"N/A"},{"$f":"_xlfn.XLOOKUP($E83,'Activity 10'!$B$17:$B$23,'Activity 10'!J$17:J$23,\"N/A\",0,1)","v":"N/A"},{"$f":"_xlfn.XLOOKUP($E83,'Activity 10'!$B$17:$B$23,'Activity 10'!K$17:K$23,\"N/A\",0,1)","v":"N/A"},{"$f":"_xlfn.XLOOKUP($E83,'Activity 10'!$B$17:$B$23,'Activity 10'!L$17:L$23,\"N/A\",0,1)","v":"N/A"},{"$f":"_xlfn.XLOOKUP($E83,'Activity 10'!$B$17:$B$23,'Activity 10'!M$17:M$23,\"N/A\",0,1)","v":"N/A"},{"$f":"_xlfn.XLOOKUP($E83,'Activity 10'!$B$17:$B$23,'Activity 10'!N$17:N$23,\"N/A\",0,1)","v":"N/A"},{"$f":"_xlfn.XLOOKUP($E83,'Activity 10'!$B$17:$B$23,'Activity 10'!P$17:P$23,\"N/A\",0,1)","v":"N/A"},{"$f":"_xlfn.XLOOKUP($E83,'Competitive Activity 1'!B$7:B$13,'Competitive Activity 1'!A$7:A$13,\"No\",0,1)","v":"No"},{"$f":"_xlfn.XLOOKUP($E83,'Competitive Activity 1'!$B$7:$B$13,'Competitive Activity 1'!H$7:H$13,\"N/A\",0,1)","v":"N/A"},{"$f":"_xlfn.XLOOKUP($E83,'Competitive Activity 1'!$B$7:$B$13,'Competitive Activity 1'!I$7:I$13,\"N/A\",0,1)","v":"N/A"},{"$f":"_xlfn.XLOOKUP($E83,'Competitive Activity 1'!$B$7:$B$13,'Competitive Activity 1'!J$7:J$13,\"N/A\",0,1)","v":"N/A"},{"$f":"_xlfn.XLOOKUP($E83,'Competitive Activity 1'!$B$7:$B$13,'Competitive Activity 1'!K$7:K$13,\"N/A\",0,1)","v":"N/A"},{"$f":"_xlfn.XLOOKUP($E83,'Competitive Activity 1'!$B$7:$B$13,'Competitive Activity 1'!L$7:L$13,\"N/A\",0,1)","v":"N/A"},{"$f":"_xlfn.XLOOKUP($E83,'Competitive Activity 1'!$B$7:$B$13,'Competitive Activity 1'!M$7:M$13,\"N/A\",0,1)","v":"N/A"},{"$f":"_xlfn.XLOOKUP($E83,'Competitive Activity 1'!$B$7:$B$13,'Competitive Activity 1'!N$7:N$13,\"N/A\",0,1)","v":"N/A"},{"$f":"_xlfn.XLOOKUP($E83,'Competitive Activity 1'!$B$7:$B$13,'Competitive Activity 1'!O$7:O$13,\"N/A\",0,1)","v":"N/A"},{"$f":"_xlfn.XLOOKUP($E83,'Competitive Activity 1'!$B$7:$B$13,'Competitive Activity 1'!P$7:P$13,\"N/A\",0,1)","v":"N/A"},{"$f":"_xlfn.XLOOKUP($E83,'Competitive Activity 1'!$B$7:$B$13,'Competitive Activity 1'!Q$7:Q$13,\"N/A\",0,1)","v":"N/A"},{"$f":"_xlfn.XLOOKUP($E83,'Competitive Activity 1'!$B$7:$B$13,'Competitive Activity 1'!R$7:R$13,\"N/A\",0,1)","v":"N/A"},{"$f":"_xlfn.XLOOKUP($E83,'Competitive Activity 1'!$B$7:$B$13,'Competitive Activity 1'!S$7:S$13,\"N/A\",0,1)","v":"N/A"},{"$f":"_xlfn.XLOOKUP($E83,'Competitive Activity 1'!$B$7:$B$13,'Competitive Activity 1'!T$7:T$13,\"N/A\",0,1)","v":"N/A"},{"$f":"_xlfn.XLOOKUP($E83,'Competitive Activity 1'!$B$7:$B$13,'Competitive Activity 1'!U$7:U$13,\"N/A\",0,1)","v":"N/A"},{"$f":"_xlfn.XLOOKUP($E83,'Competitive Activity 1'!$B$17:$B$23,'Competitive Activity 1'!C$17:C$23,\"N/A\",0,1)","v":"N/A"},{"$f":"_xlfn.XLOOKUP($E83,'Competitive Activity 1'!$B$17:$B$23,'Competitive Activity 1'!D$17:D$23,\"N/A\",0,1)","v":"N/A"},{"$f":"_xlfn.XLOOKUP($E83,'Competitive Activity 1'!$B$17:$B$23,'Competitive Activity 1'!E$17:E$23,\"N/A\",0,1)","v":"N/A"},{"$f":"_xlfn.XLOOKUP($E83,'Competitive Activity 1'!$B$17:$B$23,'Competitive Activity 1'!F$17:F$23,\"N/A\",0,1)","v":"N/A"},{"$f":"_xlfn.XLOOKUP($E83,'Competitive Activity 1'!$B$17:$B$23,'Competitive Activity 1'!G$17:G$23,\"N/A\",0,1)","v":"N/A"},{"$f":"_xlfn.XLOOKUP($E83,'Competitive Activity 1'!$B$17:$B$23,'Competitive Activity 1'!H$17:H$23,\"N/A\",0,1)","v":"N/A"},{"$f":"_xlfn.XLOOKUP($E83,'Competitive Activity 1'!$B$17:$B$23,'Competitive Activity 1'!I$17:I$23,\"N/A\",0,1)","v":"N/A"},{"$f":"_xlfn.XLOOKUP($E83,'Competitive Activity 1'!$B$17:$B$23,'Competitive Activity 1'!J$17:J$23,\"N/A\",0,1)","v":"N/A"},{"$f":"_xlfn.XLOOKUP($E83,'Competitive Activity 1'!$B$17:$B$23,'Competitive Activity 1'!K$17:K$23,\"N/A\",0,1)","v":"N/A"},{"$f":"_xlfn.XLOOKUP($E83,'Competitive Activity 1'!$B$17:$B$23,'Competitive Activity 1'!M$17:M$23,\"N/A\",0,1)","v":"N/A"},{"$f":"_xlfn.XLOOKUP($E83,'Competitive Activity 1'!$B$17:$B$23,'Competitive Activity 1'!N$17:N$23,\"N/A\",0,1)","v":"N/A"},{"$f":"_xlfn.XLOOKUP($E83,'Competitive Activity 1'!$B$17:$B$23,'Competitive Activity 1'!P$17:P$23,\"N/A\",0,1)","v":"N/A"},{"$f":"_xlfn.XLOOKUP($E83,'Competitive Activity 2'!$B$7:$B$13,'Competitive Activity 2'!A$7:A$13,\"No\",0)","v":"No"},{"$f":"_xlfn.XLOOKUP($E83,'Competitive Activity 2'!$B$7:$B$13,'Competitive Activity 2'!L$7:L$13,\"N/A\",0)","v":"N/A"},{"$f":"_xlfn.XLOOKUP($E83,'Competitive Activity 2'!$B$7:$B$13,'Competitive Activity 2'!M$7:M$13,\"N/A\",0)","v":"N/A"},{"$f":"_xlfn.XLOOKUP($E83,'Competitive Activity 2'!$B$7:$B$13,'Competitive Activity 2'!N$7:N$13,\"N/A\",0)","v":"N/A"},{"$f":"_xlfn.XLOOKUP($E83,'Competitive Activity 2'!$B$7:$B$13,'Competitive Activity 2'!O$7:O$13,\"N/A\",0)","v":"N/A"},{"$f":"_xlfn.XLOOKUP($E83,'Competitive Activity 2'!$B$7:$B$13,'Competitive Activity 2'!P$7:P$13,\"N/A\",0)","v":"N/A"},{"$f":"_xlfn.XLOOKUP($E83,'Competitive Activity 2'!$B$7:$B$13,'Competitive Activity 2'!Q$7:Q$13,\"N/A\",0)","v":"N/A"},{"$f":"_xlfn.XLOOKUP($E83,'Competitive Activity 2'!$B$7:$B$13,'Competitive Activity 2'!R$7:R$13,\"N/A\",0)","v":"N/A"},{"$f":"_xlfn.XLOOKUP($E83,'Competitive Activity 2'!$B$7:$B$13,'Competitive Activity 2'!S$7:S$13,\"N/A\",0)","v":"N/A"},{"$f":"_xlfn.XLOOKUP($E83,'Competitive Activity 2'!$B$7:$B$13,'Competitive Activity 2'!T$7:T$13,\"N/A\",0)","v":"N/A"},{"$f":"_xlfn.XLOOKUP($E83,'Competitive Activity 2'!$B$7:$B$13,'Competitive Activity 2'!U$7:U$13,\"N/A\",0)","v":"N/A"},{"$f":"_xlfn.XLOOKUP($E83,'Competitive Activity 2'!$B$17:$B$23,'Competitive Activity 2'!D$17:D$23,\"N/A\",0)","v":"N/A"},{"$f":"_xlfn.XLOOKUP($E83,'Competitive Activity 2'!$B$17:$B$23,'Competitive Activity 2'!E$17:E$23,\"N/A\",0)","v":"N/A"},{"$f":"_xlfn.XLOOKUP($E83,'Competitive Activity 2'!$B$17:$B$23,'Competitive Activity 2'!F$17:F$23,\"N/A\",0)","v":"N/A"},{"$f":"_xlfn.XLOOKUP($E83,'Competitive Activity 2'!$B$17:$B$23,'Competitive Activity 2'!G$17:G$23,\"N/A\",0)","v":"N/A"},{"$f":"_xlfn.XLOOKUP($E83,'Competitive Activity 2'!$B$17:$B$23,'Competitive Activity 2'!H$17:H$23,\"N/A\",0)","v":"N/A"},{"$f":"_xlfn.XLOOKUP($E83,'Competitive Activity 2'!$B$17:$B$23,'Competitive Activity 2'!I$17:I$23,\"N/A\",0)","v":"N/A"},{"$f":"_xlfn.XLOOKUP($E83,'Competitive Activity 2'!$B$17:$B$23,'Competitive Activity 2'!J$17:J$23,\"N/A\",0)","v":"N/A"},{"$f":"_xlfn.XLOOKUP($E83,'Competitive Activity 2'!$B$17:$B$23,'Competitive Activity 2'!K$17:K$23,\"N/A\",0)","v":"N/A"},{"$f":"_xlfn.XLOOKUP($E83,'Competitive Activity 2'!$B$17:$B$23,'Competitive Activity 2'!L$17:L$23,\"N/A\",0)","v":"N/A"},{"$f":"_xlfn.XLOOKUP($E83,'Competitive Activity 2'!$B$17:$B$23,'Competitive Activity 2'!M$17:M$23,\"N/A\",0)","v":"N/A"},{"$f":"_xlfn.XLOOKUP($E83,'Competitive Activity 2'!$B$17:$B$23,'Competitive Activity 2'!N$17:N$23,\"N/A\",0)","v":"N/A"},{"$f":"_xlfn.XLOOKUP($E83,'Competitive Activity 2'!$B$27:$B$33,'Competitive Activity 2'!D$27:D$33,\"N/A\",0)","v":"N/A"},{"$f":"_xlfn.XLOOKUP($E83,'Competitive Activity 2'!$B$27:$B$33,'Competitive Activity 2'!E$27:E$33,\"N/A\",0)","v":"N/A"},{"$f":"_xlfn.XLOOKUP($E83,'Competitive Activity 2'!$B$27:$B$33,'Competitive Activity 2'!F$27:F$33,\"N/A\",0)","v":"N/A"},{"$f":"_xlfn.XLOOKUP($E83,'Competitive Activity 2'!$B$27:$B$33,'Competitive Activity 2'!G$27:G$33,\"N/A\",0)","v":"N/A"},{"$f":"_xlfn.XLOOKUP($E83,'Competitive Activity 2'!$B$27:$B$33,'Competitive Activity 2'!H$27:H$33,\"N/A\",0)","v":"N/A"},{"$f":"_xlfn.XLOOKUP($E83,'Competitive Activity 2'!$B$27:$B$33,'Competitive Activity 2'!I$27:I$33,\"N/A\",0)","v":"N/A"},{"$f":"_xlfn.XLOOKUP($E83,'Competitive Activity 2'!$B$27:$B$33,'Competitive Activity 2'!J$27:J$33,\"N/A\",0)","v":"N/A"},{"$f":"_xlfn.XLOOKUP($E83,'Competitive Activity 2'!$B$27:$B$33,'Competitive Activity 2'!K$27:K$33,\"N/A\",0)","v":"N/A"},{"$f":"_xlfn.XLOOKUP($E83,'Competitive Activity 2'!$B$27:$B$33,'Competitive Activity 2'!M$27:M$33,\"N/A\",0)","v":"N/A"}]
[{"$f":"'1-Cover Sheet'!$C$8","v":"Select One"},{"$f":"'1-Cover Sheet'!$F$8","v":"Select One"},{"$f":"'Summary Sheet'!$D$8","v":0},{"$f":"'Summary Sheet'!$D$10","v":0},{"$f":"'Drop Down Box'!B248","v":0},{"$f":"'Drop Down Box'!C248","v":0},{"$f":"'Drop Down Box'!D248","v":"Select One"},{"$f":"_xlfn.XLOOKUP(E84,'Drop Down Box'!$B$166:$B$249,'Drop Down Box'!$A$166:$A$249,\"Unknown\",0)","v":"Activity 1"},{"$f":"_xlfn.XLOOKUP($E84,'Competitive Activity 2'!$B$27:$B$33,'Competitive Activity 2'!$L$32:$L$38,\"N/A\",0)","v":"N/A"},{"$f":"_xlfn.XLOOKUP($E84,'Competitive Activity 2'!$B$27:$B$33,'Competitive Activity 2'!$N$32:$N$38,\"N/A\",0)","v":"N/A"},{"$f":"_xlfn.XLOOKUP($E84,'Competitive Activity 2'!$B$7:$B$13,'Competitive Activity 2'!H$7:H$13,\"N/A\",0)","v":"N/A"},{"$f":"_xlfn.XLOOKUP($E84,'Competitive Activity 2'!$B$7:$B$13,'Competitive Activity 2'!I$7:I$13,\"N/A\",0)","v":"N/A"},{"$f":"_xlfn.XLOOKUP($E84,'Competitive Activity 2'!$B$7:$B$13,'Competitive Activity 2'!J$7:J$13,\"N/A\",0)","v":"N/A"},{"$f":"_xlfn.XLOOKUP($E84,'Activity 1'!$B$7:$B$13,'Activity 1'!$A$7:$A$13,\"No\",0,1)","v":"No"},{"$f":"_xlfn.XLOOKUP($E84,'Activity 1'!$B$7:$B$13,'Activity 1'!$H$7:$H$13,\"N/A\",0,1)","v":"N/A"},{"$f":"_xlfn.XLOOKUP($E84,'Activity 1'!$B$7:$B$13,'Activity 1'!I$7:I$13,\"N/A\",0,1)","v":"N/A"},{"$f":"_xlfn.XLOOKUP($E84,'Activity 1'!$B$7:$B$13,'Activity 1'!J$7:J$13,\"N/A\",0,1)","v":"N/A"},{"$f":"_xlfn.XLOOKUP($E84,'Activity 1'!$B$7:$B$13,'Activity 1'!K$7:K$13,\"N/A\",0,1)","v":"N/A"},{"$f":"_xlfn.XLOOKUP($E84,'Activity 1'!$B$7:$B$13,'Activity 1'!L$7:L$13,\"N/A\",0,1)","v":"N/A"},{"$f":"_xlfn.XLOOKUP($E84,'Activity 1'!$B$7:$B$13,'Activity 1'!M$7:M$13,\"N/A\",0,1)","v":"N/A"},{"$f":"_xlfn.XLOOKUP($E84,'Activity 1'!$B$7:$B$13,'Activity 1'!N$7:N$13,\"N/A\",0,1)","v":"N/A"},0,{"$f":"_xlfn.XLOOKUP($E84,'Activity 1'!$B$7:$B$13,'Activity 1'!O$7:O$13,\"N/A\",0,1)","v":"N/A"},{"$f":"_xlfn.XLOOKUP($E84,'Activity 1'!$B$7:$B$13,'Activity 1'!P$7:P$13,\"N/A\",0,1)","v":"N/A"},{"$f":"_xlfn.XLOOKUP($E84,'Activity 1'!$B$7:$B$13,'Activity 1'!Q$7:Q$13,\"N/A\",0,1)","v":"N/A"},{"$f":"_xlfn.XLOOKUP($E84,'Activity 1'!$B$7:$B$13,'Activity 1'!R$7:R$13,\"N/A\",0,1)","v":"N/A"},{"$f":"_xlfn.XLOOKUP($E84,'Activity 1'!$B$7:$B$13,'Activity 1'!S$7:S$13,\"N/A\",0,1)","v":"N/A"},{"$f":"_xlfn.XLOOKUP($E84,'Activity 1'!$B$7:$B$13,'Activity 1'!T$7:T$13,\"N/A\",0,1)","v":"N/A"},{"$f":"_xlfn.XLOOKUP($E84,'Activity 1'!$B$7:$B$13,'Activity 1'!U$7:U$13,\"N/A\",0,1)","v":"N/A"},{"$f":"_xlfn.XLOOKUP($E84,'Activity 1'!$B$7:$B$13,'Activity 1'!V$7:V$13,\"N/A\",0,1)","v":"N/A"},{"$f":"_xlfn.XLOOKUP($E84,'Activity 1'!$B$17:$B$23,'Activity 1'!C$17:C$23,\"N/A\",0,1)","v":"N/A"},{"$f":"_xlfn.XLOOKUP($E84,'Activity 1'!$B$17:$B$23,'Activity 1'!D$17:D$23,\"N/A\",0,1)","v":"N/A"},{"$f":"_xlfn.XLOOKUP($E84,'Activity 1'!$B$17:$B$23,'Activity 1'!E$17:E$23,\"N/A\",0,1)","v":"N/A"},{"$f":"_xlfn.XLOOKUP($E84,'Activity 1'!$B$17:$B$23,'Activity 1'!F$17:F$23,\"N/A\",0,1)","v":"N/A"},{"$f":"_xlfn.XLOOKUP($E84,'Activity 1'!$B$17:$B$23,'Activity 1'!G$17:G$23,\"N/A\",0,1)","v":"N/A"},{"$f":"_xlfn.XLOOKUP($E84,'Activity 1'!$B$17:$B$23,'Activity 1'!H$17:H$23,\"N/A\",0,1)","v":"N/A"},{"$f":"_xlfn.XLOOKUP($E84,'Activity 1'!$B$17:$B$23,'Activity 1'!I$17:I$23,\"N/A\",0,1)","v":"N/A"},{"$f":"_xlfn.XLOOKUP($E84,'Activity 1'!$B$17:$B$23,'Activity 1'!J$17:J$23,\"N/A\",0,1)","v":"N/A"},{"$f":"_xlfn.XLOOKUP($E84,'Activity 1'!$B$17:$B$23,'Activity 1'!K$17:K$23,\"N/A\",0,1)","v":"N/A"},{"$f":"_xlfn.XLOOKUP($E84,'Activity 1'!$B$17:$B$23,'Activity 1'!L$17:L$23,\"N/A\",0,1)","v":"N/A"},{"$f":"_xlfn.XLOOKUP($E84,'Activity 1'!$B$17:$B$23,'Activity 1'!M$17:M$23,\"N/A\",0,1)","v":"N/A"},{"$f":"_xlfn.XLOOKUP($E84,'Activity 1'!$B$17:$B$23,'Activity 1'!O$17:O$23,\"N/A\",0,1)","v":"N/A"},{"$f":"_xlfn.XLOOKUP($E84,'Activity 1'!$B$17:$B$23,'Activity 1'!Q$17:Q$23,\"N/A\",0,1)","v":"N/A"},{"$f":"_xlfn.XLOOKUP($E84,'Activity 2'!$B$7:$B$13,'Activity 2'!$A$7:$A$13,\"No\",0,1)","v":"No"},{"$f":"_xlfn.XLOOKUP($E84,'Activity 2'!B$7:B$13,'Activity 2'!H$7:H$13,\"N/A\",0)","v":"N/A"},{"$f":"_xlfn.XLOOKUP($E84,'Activity 2'!C$7:C$13,'Activity 2'!I$7:I$13,\"N/A\",0)","v":"N/A"},{"$f":"_xlfn.XLOOKUP($E84,'Activity 2'!D$7:D$13,'Activity 2'!J$7:J$13,\"N/A\",0)","v":"N/A"},{"$f":"_xlfn.XLOOKUP($E84,'Activity 2'!E$7:E$13,'Activity 2'!K$7:K$13,\"N/A\",0)","v":"N/A"},{"$f":"_xlfn.XLOOKUP($E84,'Activity 2'!F$7:F$13,'Activity 2'!L$7:L$13,\"N/A\",0)","v":"N/A"},{"$f":"_xlfn.XLOOKUP($E84,'Activity 2'!G$7:G$13,'Activity 2'!M$7:M$13,\"N/A\",0)","v":"N/A"},{"$f":"_xlfn.XLOOKUP($E84,'Activity 2'!H$7:H$13,'Activity 2'!N$7:N$13,\"N/A\",0)","v":"N/A"},{"$f":"_xlfn.XLOOKUP($E84,'Activity 2'!I$7:I$13,'Activity 2'!O$7:O$13,\"N/A\",0)","v":"N/A"},{"$f":"_xlfn.XLOOKUP($E84,'Activity 2'!J$7:J$13,'Activity 2'!P$7:P$13,\"N/A\",0)","v":"N/A"},{"$f":"_xlfn.XLOOKUP($E84,'Activity 2'!K$7:K$13,'Activity 2'!Q$7:Q$13,\"N/A\",0)","v":"N/A"},{"$f":"_xlfn.XLOOKUP($E84,'Activity 2'!L$7:L$13,'Activity 2'!R$7:R$13,\"N/A\",0)","v":"N/A"},{"$f":"_xlfn.XLOOKUP($E84,'Activity 2'!M$7:M$13,'Activity 2'!S$7:S$13,\"N/A\",0)","v":"N/A"},{"$f":"_xlfn.XLOOKUP($E84,'Activity 2'!N$7:N$13,'Activity 2'!T$7:T$13,\"N/A\",0)","v":"N/A"},{"$f":"_xlfn.XLOOKUP($E84,'Activity 2'!O$7:O$13,'Activity 2'!U$7:U$13,\"N/A\",0)","v":"N/A"},{"$f":"_xlfn.XLOOKUP($E84,'Activity 2'!P$7:P$13,'Activity 2'!V$7:V$13,\"N/A\",0)","v":"N/A"},{"$f":"_xlfn.XLOOKUP($E84,'Activity 2'!$B$17:$B$23,'Activity 2'!C$17:C$23,\"N/A\",0,1)","v":"N/A"},{"$f":"_xlfn.XLOOKUP($E84,'Activity 2'!$B$17:$B$23,'Activity 2'!D$17:D$23,\"N/A\",0,1)","v":"N/A"},{"$f":"_xlfn.XLOOKUP($E84,'Activity 2'!$B$17:$B$23,'Activity 2'!E$17:E$23,\"N/A\",0,1)","v":"N/A"},{"$f":"_xlfn.XLOOKUP($E84,'Activity 2'!$B$17:$B$23,'Activity 2'!F$17:F$23,\"N/A\",0,1)","v":"N/A"},{"$f":"_xlfn.XLOOKUP($E84,'Activity 2'!$B$17:$B$23,'Activity 2'!G$17:G$23,\"N/A\",0,1)","v":"N/A"},{"$f":"_xlfn.XLOOKUP($E84,'Activity 2'!$B$17:$B$23,'Activity 2'!H$17:H$23,\"N/A\",0,1)","v":"N/A"},{"$f":"_xlfn.XLOOKUP($E84,'Activity 2'!$B$17:$B$23,'Activity 2'!I$17:I$23,\"N/A\",0,1)","v":"N/A"},{"$f":"_xlfn.XLOOKUP($E84,'Activity 2'!$B$17:$B$23,'Activity 2'!J$17:J$23,\"N/A\",0,1)","v":"N/A"},{"$f":"_xlfn.XLOOKUP($E84,'Activity 2'!$B$17:$B$23,'Activity 2'!K$17:K$23,\"N/A\",0,1)","v":"N/A"},{"$f":"_xlfn.XLOOKUP($E84,'Activity 2'!$B$17:$B$23,'Activity 2'!L$17:L$23,\"N/A\",0,1)","v":"N/A"},{"$f":"_xlfn.XLOOKUP($E84,'Activity 2'!$B$17:$B$23,'Activity 2'!M$17:M$23,\"N/A\",0,1)","v":"N/A"},{"$f":"_xlfn.XLOOKUP($E84,'Activity 2'!$B$17:$B$23,'Activity 2'!O$17:O$23,\"N/A\",0,1)","v":"N/A"},{"$f":"_xlfn.XLOOKUP($E84,'Activity 2'!$B$17:$B$23,'Activity 2'!Q$17:Q$23,\"N/A\",0,1)","v":"N/A"},null,{"$f":"_xlfn.XLOOKUP($E84,'Activity 3'!$B$8:$B$14,'Activity 3'!K$8:K$14,\"N/A\",0,1)","v":"N/A"},{"$f":"_xlfn.XLOOKUP($E84,'Activity 3'!$B$8:$B$14,'Activity 3'!L$8:L$14,\"N/A\",0,1)","v":"N/A"},{"$f":"_xlfn.XLOOKUP($E84,'Activity 3'!$B$8:$B$14,'Activity 3'!M$8:M$14,\"N/A\",0,1)","v":"N/A"},{"$f":"_xlfn.XLOOKUP($E84,'Activity 3'!$B$8:$B$14,'Activity 3'!N$8:N$14,\"N/A\",0,1)","v":"N/A"},{"$f":"_xlfn.XLOOKUP($E84,'Activity 3'!$B$8:$B$14,'Activity 3'!O$8:O$14,\"N/A\",0,1)","v":"N/A"},{"$f":"_xlfn.XLOOKUP($E84,'Activity 3'!$B$8:$B$14,'Activity 3'!R$8:R$14,\"N/A\",0,1)","v":"N/A"},{"$f":"_xlfn.XLOOKUP($E84,'Activity 4'!$B$8:$B$14,'Activity 4'!$A$8:$A$14,\"No\",0,1)","v":"No"},{"$f":"_xlfn.XLOOKUP($E84,'Activity 4'!$B$8:$B$14,'Activity 4'!L$8:L$14,\"N/A\",0,1)","v":"N/A"},{"$f":"_xlfn.XLOOKUP($E84,'Activity 4'!$B$8:$B$14,'Activity 4'!I$8:I$14,\"N/A\",0,1)","v":"N/A"},{"$f":"_xlfn.XLOOKUP($E84,'Activity 4'!$B$8:$B$14,'Activity 4'!M$8:M$14,\"N/A\",0,1)","v":"N/A"},{"$f":"_xlfn.XLOOKUP($E84,'Activity 5'!$B$8:$B$14,'Activity 5'!$A$8:$A$14,\"No\",0,1)","v":"No"},{"$f":"_xlfn.XLOOKUP($E84,'Activity 5'!$B$8:$B$14,'Activity 5'!J$8:J$14,\"N/A\",0,1)","v":"N/A"},{"$f":"_xlfn.XLOOKUP($E84,'Activity 5'!$B$8:$B$14,'Activity 5'!K$8:K$14,\"N/A\",0,1)","v":"N/A"},{"$f":"_xlfn.XLOOKUP($E84,'Activity 5'!$B$8:$B$14,'Activity 5'!N$8:N$14,\"N/A\",0,1)","v":"N/A"},{"$f":"_xlfn.XLOOKUP($E84,'Activity 5'!$B$8:$B$14,'Activity 5'!O$8:O$14,\"N/A\",0,1)","v":"N/A"},{"$f":"_xlfn.XLOOKUP($E84,'Activity 5'!$B$8:$B$14,'Activity 5'!P$8:P$14,\"N/A\",0,1)","v":"N/A"},{"$f":"_xlfn.XLOOKUP($E84,'Activity 5'!$B$8:$B$14,'Activity 5'!Q$8:Q$14,\"N/A\",0,1)","v":"N/A"},{"$f":"_xlfn.XLOOKUP($E84,'Activity 5'!$B$8:$B$14,'Activity 5'!R$8:R$14,\"N/A\",0,1)","v":"N/A"},{"$f":"_xlfn.XLOOKUP($E84,'Activity 6'!$B$7:$B$13,'Activity 6'!A$7:A$13,\"No\",0,1)","v":"No"},{"$f":"_xlfn.XLOOKUP($E84,'Activity 6'!$B$7:$B$13,'Activity 6'!K$7:K$13,\"N/A\",0,1)","v":"N/A"},{"$f":"_xlfn.XLOOKUP($E84,'Activity 6'!$B$7:$B$13,'Activity 6'!L$7:L$13,\"N/A\",0,1)","v":"N/A"},{"$f":"_xlfn.XLOOKUP($E84,'Activity 6'!$B$7:$B$13,'Activity 6'!M$7:M$13,\"N/A\",0,1)","v":"N/A"},{"$f":"_xlfn.XLOOKUP($E84,'Activity 6'!$B$7:$B$13,'Activity 6'!N$7:N$13,\"N/A\",0,1)","v":"N/A"},{"$f":"_xlfn.XLOOKUP($E84,'Activity 6'!$B$7:$B$13,'Activity 6'!O$7:O$13,\"N/A\",0,1)","v":"N/A"},{"$f":"_xlfn.XLOOKUP($E84,'Activity 6'!$B$7:$B$13,'Activity 6'!P$7:P$13,\"N/A\",0,1)","v":"N/A"},{"$f":"_xlfn.XLOOKUP($E84,'Activity 6'!$B$7:$B$13,'Activity 6'!Q$7:Q$13,\"N/A\",0,1)","v":"N/A"},{"$f":"_xlfn.XLOOKUP($E84,'Activity 6'!$B$7:$B$13,'Activity 6'!R$7:R$13,\"N/A\",0,1)","v":"N/A"},{"$f":"_xlfn.XLOOKUP($E84,'Activity 6'!$B$7:$B$13,'Activity 6'!S$7:S$13,\"N/A\",0,1)","v":"N/A"},{"$f":"_xlfn.XLOOKUP($E84,'Activity 6'!$B$7:$B$13,'Activity 6'!T$7:T$13,\"N/A\",0,1)","v":"N/A"},{"$f":"_xlfn.XLOOKUP($E84,'Activity 6'!$B$7:$B$13,'Activity 6'!U$7:U$13,\"N/A\",0,1)","v":"N/A"},{"$f":"_xlfn.XLOOKUP($E84,'Activity 6'!$B$22:$B$28,'Activity 6'!C$22:C$28,\"N/A\",0,1)","v":"N/A"},{"$f":"_xlfn.XLOOKUP($E84,'Activity 6'!$B$22:$B$28,'Activity 6'!D$22:D$28,\"N/A\",0,1)","v":"N/A"},{"$f":"_xlfn.XLOOKUP($E84,'Activity 6'!$B$22:$B$28,'Activity 6'!E$22:E$28,\"N/A\",0,1)","v":"N/A"},{"$f":"_xlfn.XLOOKUP($E84,'Activity 6'!$B$22:$B$28,'Activity 6'!F$22:F$28,\"N/A\",0,1)","v":"N/A"},{"$f":"_xlfn.XLOOKUP($E84,'Activity 6'!$B$22:$B$28,'Activity 6'!G$22:G$28,\"N/A\",0,1)","v":"N/A"},{"$f":"_xlfn.XLOOKUP($E84,'Activity 6'!$B$22:$B$28,'Activity 6'!H$22:H$28,\"N/A\",0,1)","v":"N/A"},{"$f":"_xlfn.XLOOKUP($E84,'Activity 6'!$B$22:$B$28,'Activity 6'!I$22:I$28,\"N/A\",0,1)","v":"N/A"},{"$f":"_xlfn.XLOOKUP($E84,'Activity 6'!$B$22:$B$28,'Activity 6'!J$22:J$28,\"N/A\",0,1)","v":"N/A"},{"$f":"_xlfn.XLOOKUP($E84,'Activity 6'!$B$22:$B$28,'Activity 6'!K$22:K$28,\"N/A\",0,1)","v":"N/A"},{"$f":"_xlfn.XLOOKUP($E84,'Activity 6'!$B$22:$B$28,'Activity 6'!L$22:L$28,\"N/A\",0,1)","v":"N/A"},{"$f":"_xlfn.XLOOKUP($E84,'Activity 6'!$B$22:$B$28,'Activity 6'!M$22:M$28,\"N/A\",0,1)","v":"N/A"},{"$f":"_xlfn.XLOOKUP($E84,'Activity 6'!$B$22:$B$28,'Activity 6'!N$22:N$28,\"N/A\",0,1)","v":"N/A"},{"$f":"_xlfn.XLOOKUP($E84,'Activity 6'!$B$32:$B$38,'Activity 6'!C$32:C$38,\"N/A\",0,1)","v":"N/A"},{"$f":"_xlfn.XLOOKUP($E84,'Activity 6'!$B$32:$B$38,'Activity 6'!D$32:D$38,\"N/A\",0,1)","v":"N/A"},{"$f":"_xlfn.XLOOKUP($E84,'Activity 6'!$B$32:$B$38,'Activity 6'!E$32:E$38,\"N/A\",0,1)","v":"N/A"},{"$f":"_xlfn.XLOOKUP($E84,'Activity 6'!$B$32:$B$38,'Activity 6'!F$32:F$38,\"N/A\",0,1)","v":"N/A"},{"$f":"_xlfn.XLOOKUP($E84,'Activity 6'!$B$32:$B$38,'Activity 6'!G$32:G$38,\"N/A\",0,1)","v":"N/A"},{"$f":"_xlfn.XLOOKUP($E84,'Activity 6'!$B$32:$B$38,'Activity 6'!H$32:H$38,\"N/A\",0,1)","v":"N/A"},{"$f":"_xlfn.XLOOKUP($E84,'Activity 6'!$B$32:$B$38,'Activity 6'!I$32:I$38,\"N/A\",0,1)","v":"N/A"},{"$f":"_xlfn.XLOOKUP($E84,'Activity 6'!$B$32:$B$38,'Activity 6'!J$32:J$38,\"N/A\",0,1)","v":"N/A"},{"$f":"_xlfn.XLOOKUP($E84,'Activity 6'!$B$32:$B$38,'Activity 6'!K$32:K$38,\"N/A\",0,1)","v":"N/A"},{"$f":"_xlfn.XLOOKUP($E84,'Activity 6'!$B$32:$B$38,'Activity 6'!M$32:M$38,\"N/A\",0,1)","v":"N/A"},{"$f":"_xlfn.XLOOKUP($E84,'Activity 7'!$B$7:$B$13,'Activity 7'!$A$7:$A$13,\"No\",0,1)","v":"No"},{"$f":"_xlfn.XLOOKUP($E84,'Activity 7'!$B$7:$B$13,'Activity 7'!M$7:M$13,\"N/A\",0,1)","v":"N/A"},{"$f":"_xlfn.XLOOKUP($E84,'Activity 7'!$B$7:$B$13,'Activity 7'!K$7:K$13,\"N/A\",0,1)","v":"N/A"},{"$f":"_xlfn.XLOOKUP($E84,'Activity 7'!$B$7:$B$13,'Activity 7'!N$7:N$13,\"N/A\",0,1)","v":"N/A"},{"$f":"_xlfn.XLOOKUP($E84,'Activity 7'!$B$7:$B$13,'Activity 7'!O$7:O$13,\"N/A\",0,1)","v":"N/A"},{"$f":"_xlfn.XLOOKUP($E84,'Activity 7'!$B$7:$B$13,'Activity 7'!P$7:P$13,\"N/A\",0,1)","v":"N/A"},{"$f":"_xlfn.XLOOKUP($E84,'Activity 7'!$B$7:$B$13,'Activity 7'!Q$7:Q$13,\"N/A\",0,1)","v":"N/A"},{"$f":"_xlfn.XLOOKUP($E84,'Activity 7'!$B$7:$B$13,'Activity 7'!R$7:R$13,\"N/A\",0,1)","v":"N/A"},{"$f":"_xlfn.XLOOKUP($E84,'Activity 7'!$B$7:$B$13,'Activity 7'!S$7:S$13,\"N/A\",0,1)","v":"N/A"},{"$f":"_xlfn.XLOOKUP($E84,'Activity 7'!$B$7:$B$13,'Activity 7'!T$7:T$13,\"N/A\",0,1)","v":"N/A"},{"$f":"_xlfn.XLOOKUP($E84,'Activity 7'!$B$7:$B$13,'Activity 7'!U$7:U$13,\"N/A\",0,1)","v":"N/A"},{"$f":"_xlfn.XLOOKUP($E84,'Activity 7'!$B$7:$B$13,'Activity 7'!V$7:V$13,\"N/A\",0,1)","v":"N/A"},{"$f":"_xlfn.XLOOKUP($E84,'Activity 7'!$B$17:$B$23,'Activity 7'!E$17:E$23,\"N/A\",0,1)","v":"N/A"},{"$f":"_xlfn.XLOOKUP($E84,'Activity 7'!$B$17:$B$23,'Activity 7'!G$17:G$23,\"N/A\",0,1)","v":"N/A"},{"$f":"_xlfn.XLOOKUP($E84,'Activity 7'!$B$17:$B$23,'Activity 7'!I$17:I$23,\"N/A\",0,1)","v":"N/A"},{"$f":"_xlfn.XLOOKUP($E84,'Activity 7'!$B$17:$B$23,'Activity 7'!J$17:J$23,\"N/A\",0,1)","v":"N/A"},{"$f":"_xlfn.XLOOKUP($E84,'Activity 7'!$B$17:$B$23,'Activity 7'!K$17:K$23,\"N/A\",0,1)","v":"N/A"},{"$f":"_xlfn.XLOOKUP($E84,'Activity 7'!$B$17:$B$23,'Activity 7'!L$17:L$23,\"N/A\",0,1)","v":"N/A"},{"$f":"_xlfn.XLOOKUP($E84,'Activity 7'!$B$17:$B$23,'Activity 7'!M$17:M$23,\"N/A\",0,1)","v":"N/A"},{"$f":"_xlfn.XLOOKUP($E84,'Activity 7'!$B$17:$B$23,'Activity 7'!N$17:N$23,\"N/A\",0,1)","v":"N/A"},{"$f":"_xlfn.XLOOKUP($E84,'Activity 7'!$B$17:$B$23,'Activity 7'!P$17:P$23,\"N/A\",0,1)","v":"N/A"},{"$f":"_xlfn.XLOOKUP($E84,'Activity 8'!$B$7:$B$13,'Activity 8'!A$7:A$13,\"No\",0,1)","v":"No"},{"$f":"_xlfn.XLOOKUP($E84,'Activity 8'!$B$7:$B$13,'Activity 8'!I$7:I$13,\"N/A\",0,1)","v":"N/A"},{"$f":"_xlfn.XLOOKUP($E84,'Activity 8'!$B$7:$B$13,'Activity 8'!J$7:J$13,\"N/A\",0,1)","v":"N/A"},{"$f":"_xlfn.XLOOKUP($E84,'Activity 8'!$B$7:$B$13,'Activity 8'!K$7:K$13,\"N/A\",0,1)","v":"N/A"},{"$f":"_xlfn.XLOOKUP($E84,'Activity 8'!$B$7:$B$13,'Activity 8'!L$7:L$13,\"N/A\",0,1)","v":"N/A"},{"$f":"_xlfn.XLOOKUP($E84,'Activity 8'!$B$7:$B$13,'Activity 8'!M$7:M$13,\"N/A\",0,1)","v":"N/A"},{"$f":"_xlfn.XLOOKUP($E84,'Activity 8'!$B$7:$B$13,'Activity 8'!N$7:N$13,\"N/A\",0,1)","v":"N/A"},{"$f":"_xlfn.XLOOKUP($E84,'Activity 8'!$B$7:$B$13,'Activity 8'!O$7:O$13,\"N/A\",0,1)","v":"N/A"},{"$f":"_xlfn.XLOOKUP($E84,'Activity 8'!$B$7:$B$13,'Activity 8'!P$7:P$13,\"N/A\",0,1)","v":"N/A"},{"$f":"_xlfn.XLOOKUP($E84,'Activity 8'!$B$7:$B$13,'Activity 8'!Q$7:Q$13,\"N/A\",0,1)","v":"N/A"},{"$f":"_xlfn.XLOOKUP($E84,'Activity 8'!$B$7:$B$13,'Activity 8'!R$7:R$13,\"N/A\",0,1)","v":"N/A"},{"$f":"_xlfn.XLOOKUP($E84,'Activity 8'!$B$7:$B$13,'Activity 8'!S$7:S$13,\"N/A\",0,1)","v":"N/A"},{"$f":"_xlfn.XLOOKUP($E84,'Activity 8'!$B$7:$B$13,'Activity 8'!T$7:T$13,\"N/A\",0,1)","v":"N/A"},{"$f":"_xlfn.XLOOKUP($E84,'Activity 8'!$B$7:$B$13,'Activity 8'!U$7:U$13,\"N/A\",0,1)","v":"N/A"},{"$f":"_xlfn.XLOOKUP($E84,'Activity 8'!$B$7:$B$13,'Activity 8'!V$7:V$13,\"N/A\",0,1)","v":"N/A"},{"$f":"_xlfn.XLOOKUP($E84,'Activity 8'!$B$17:$B$23,'Activity 8'!D$17:D$23,\"N/A\",0,1)","v":"N/A"},{"$f":"_xlfn.XLOOKUP($E84,'Activity 8'!$B$17:$B$23,'Activity 8'!E$17:E$23,\"N/A\",0,1)","v":"N/A"},{"$f":"_xlfn.XLOOKUP($E84,'Activity 8'!$B$17:$B$23,'Activity 8'!F$17:F$23,\"N/A\",0,1)","v":"N/A"},{"$f":"_xlfn.XLOOKUP($E84,'Activity 8'!$B$17:$B$23,'Activity 8'!G$17:G$23,\"N/A\",0,1)","v":"N/A"},{"$f":"_xlfn.XLOOKUP($E84,'Activity 8'!$B$17:$B$23,'Activity 8'!H$17:H$23,\"N/A\",0,1)","v":"N/A"},{"$f":"_xlfn.XLOOKUP($E84,'Activity 8'!$B$17:$B$23,'Activity 8'!I$17:I$23,\"N/A\",0,1)","v":"N/A"},{"$f":"_xlfn.XLOOKUP($E84,'Activity 8'!$B$17:$B$23,'Activity 8'!J$17:J$23,\"N/A\",0,1)","v":"N/A"},{"$f":"_xlfn.XLOOKUP($E84,'Activity 8'!$B$17:$B$23,'Activity 8'!K$17:K$23,\"N/A\",0,1)","v":"N/A"},{"$f":"_xlfn.XLOOKUP($E84,'Activity 8'!$B$17:$B$23,'Activity 8'!L$17:L$23,\"N/A\",0,1)","v":"N/A"},{"$f":"_xlfn.XLOOKUP($E84,'Activity 8'!$B$17:$B$23,'Activity 8'!M$17:M$23,\"N/A\",0,1)","v":"N/A"},{"$f":"_xlfn.XLOOKUP($E84,'Activity 8'!$B$17:$B$23,'Activity 8'!N$17:N$23,\"N/A\",0,1)","v":"N/A"},{"$f":"_xlfn.XLOOKUP($E84,'Activity 8'!$B$17:$B$23,'Activity 8'!P$17:P$23,\"N/A\",0,1)","v":"N/A"},{"$f":"_xlfn.XLOOKUP(E84,'Activity 9'!$B$7:$B$13,'Activity 9'!$A$7:$A$13,\"No\",0,1)","v":"No"},{"$f":"_xlfn.XLOOKUP($E84,'Activity 9'!$B$7:$B$13,'Activity 9'!J$7:J$13,\"N/A\",0,1)","v":"N/A"},{"$f":"_xlfn.XLOOKUP($E84,'Activity 9'!$B$7:$B$13,'Activity 9'!K$7:K$13,\"N/A\",0,1)","v":"N/A"},{"$f":"_xlfn.XLOOKUP($E84,'Activity 9'!$B$7:$B$13,'Activity 9'!L$7:L$13,\"N/A\",0,1)","v":"N/A"},{"$f":"_xlfn.XLOOKUP($E84,'Activity 9'!$B$7:$B$13,'Activity 9'!M$7:M$13,\"N/A\",0,1)","v":"N/A"},{"$f":"_xlfn.XLOOKUP($E84,'Activity 9'!$B$7:$B$13,'Activity 9'!N$7:N$13,\"N/A\",0,1)","v":"N/A"},{"$f":"_xlfn.XLOOKUP($E84,'Activity 9'!$B$7:$B$13,'Activity 9'!O$7:O$13,\"N/A\",0,1)","v":"N/A"},{"$f":"_xlfn.XLOOKUP($E84,'Activity 9'!$B$7:$B$13,'Activity 9'!P$7:P$13,\"N/A\",0,1)","v":"N/A"},{"$f":"_xlfn.XLOOKUP($E84,'Activity 9'!$B$7:$B$13,'Activity 9'!Q$7:Q$13,\"N/A\",0,1)","v":"N/A"},{"$f":"_xlfn.XLOOKUP($E84,'Activity 9'!$B$7:$B$13,'Activity 9'!R$7:R$13,\"N/A\",0,1)","v":"N/A"},{"$f":"_xlfn.XLOOKUP($E84,'Activity 9'!$B$7:$B$13,'Activity 9'!S$7:S$13,\"N/A\",0,1)","v":"N/A"},{"$f":"_xlfn.XLOOKUP($E84,'Activity 9'!$B$7:$B$13,'Activity 9'!T$7:T$13,\"N/A\",0,1)","v":"N/A"},{"$f":"_xlfn.XLOOKUP($E84,'Activity 9'!$B$17:$B$23,'Activity 9'!E$17:E$23,\"N/A\",0,1)","v":"N/A"},{"$f":"_xlfn.XLOOKUP($E84,'Activity 9'!$B$17:$B$23,'Activity 9'!F$17:F$23,\"N/A\",0,1)","v":"N/A"},{"$f":"_xlfn.XLOOKUP($E84,'Activity 9'!$B$17:$B$23,'Activity 9'!G$17:G$23,\"N/A\",0,1)","v":"N/A"},{"$f":"_xlfn.XLOOKUP($E84,'Activity 9'!$B$17:$B$23,'Activity 9'!H$17:H$23,\"N/A\",0,1)","v":"N/A"},{"$f":"_xlfn.XLOOKUP($E84,'Activity 9'!$B$17:$B$23,'Activity 9'!I$17:I$23,\"N/A\",0,1)","v":"N/A"},{"$f":"_xlfn.XLOOKUP($E84,'Activity 9'!$B$17:$B$23,'Activity 9'!J$17:J$23,\"N/A\",0,1)","v":"N/A"},{"$f":"_xlfn.XLOOKUP($E84,'Activity 9'!$B$17:$B$23,'Activity 9'!K$17:K$23,\"N/A\",0,1)","v":"N/A"},{"$f":"_xlfn.XLOOKUP($E84,'Activity 9'!$B$17:$B$23,'Activity 9'!L$17:L$23,\"N/A\",0,1)","v":"N/A"},{"$f":"_xlfn.XLOOKUP($E84,'Activity 9'!$B$17:$B$23,'Activity 9'!N$17:N$23,\"N/A\",0,1)","v":"N/A"},{"$f":"_xlfn.XLOOKUP($E84,'Activity 9'!$B$17:$B$23,'Activity 9'!O$17:O$23,\"N/A\",0,1)","v":"N/A"},{"$f":"_xlfn.XLOOKUP($E84,'Activity 9'!$B$17:$B$23,'Activity 9'!Q$17:Q$23,\"N/A\",0,1)","v":"N/A"},{"$f":"_xlfn.XLOOKUP($E84,'Activity 10'!$B$7:$B$13,'Activity 10'!A$7:A$13,\"No\",0,1)","v":"No"},{"$f":"_xlfn.XLOOKUP($E84,'Activity 10'!$B$7:$B$13,'Activity 10'!J$7:J$13,\"N/A\",0,1)","v":"N/A"},{"$f":"_xlfn.XLOOKUP($E84,'Activity 10'!$B$7:$B$13,'Activity 10'!K$7:K$13,\"N/A\",0,1)","v":"N/A"},{"$f":"_xlfn.XLOOKUP($E84,'Activity 10'!$B$7:$B$13,'Activity 10'!L$7:L$13,\"N/A\",0,1)","v":"N/A"},{"$f":"_xlfn.XLOOKUP($E84,'Activity 10'!$B$7:$B$13,'Activity 10'!M$7:M$13,\"N/A\",0,1)","v":"N/A"},{"$f":"_xlfn.XLOOKUP($E84,'Activity 10'!$B$7:$B$13,'Activity 10'!N$7:N$13,\"N/A\",0,1)","v":"N/A"},{"$f":"_xlfn.XLOOKUP($E84,'Activity 10'!$B$7:$B$13,'Activity 10'!O$7:O$13,\"N/A\",0,1)","v":"N/A"},{"$f":"_xlfn.XLOOKUP($E84,'Activity 10'!$B$7:$B$13,'Activity 10'!P$7:P$13,\"N/A\",0,1)","v":"N/A"},{"$f":"_xlfn.XLOOKUP($E84,'Activity 10'!$B$7:$B$13,'Activity 10'!Q$7:Q$13,\"N/A\",0,1)","v":"N/A"},{"$f":"_xlfn.XLOOKUP($E84,'Activity 10'!$B$7:$B$13,'Activity 10'!R$7:R$13,\"N/A\",0,1)","v":"N/A"},{"$f":"_xlfn.XLOOKUP($E84,'Activity 10'!$B$7:$B$13,'Activity 10'!S$7:S$13,\"N/A\",0,1)","v":"N/A"},{"$f":"_xlfn.XLOOKUP($E84,'Activity 10'!$B$7:$B$13,'Activity 10'!T$7:T$13,\"N/A\",0,1)","v":"N/A"},{"$f":"_xlfn.XLOOKUP($E84,'Activity 10'!$B$7:$B$13,'Activity 10'!U$7:U$13,\"N/A\",0,1)","v":"N/A"},{"$f":"_xlfn.XLOOKUP($E84,'Activity 10'!$B$7:$B$13,'Activity 10'!V$7:V$13,\"N/A\",0,1)","v":"N/A"},{"$f":"_xlfn.XLOOKUP($E84,'Activity 10'!$B$17:$B$23,'Activity 10'!E$17:E$23,\"N/A\",0,1)","v":"N/A"},{"$f":"_xlfn.XLOOKUP($E84,'Activity 10'!$B$17:$B$23,'Activity 10'!F$17:F$23,\"N/A\",0,1)","v":"N/A"},{"$f":"_xlfn.XLOOKUP($E84,'Activity 10'!$B$17:$B$23,'Activity 10'!G$17:G$23,\"N/A\",0,1)","v":"N/A"},{"$f":"_xlfn.XLOOKUP($E84,'Activity 10'!$B$17:$B$23,'Activity 10'!H$17:H$23,\"N/A\",0,1)","v":"N/A"},{"$f":"_xlfn.XLOOKUP($E84,'Activity 10'!$B$17:$B$23,'Activity 10'!I$17:I$23,\"N/A\",0,1)","v":"N/A"},{"$f":"_xlfn.XLOOKUP($E84,'Activity 10'!$B$17:$B$23,'Activity 10'!J$17:J$23,\"N/A\",0,1)","v":"N/A"},{"$f":"_xlfn.XLOOKUP($E84,'Activity 10'!$B$17:$B$23,'Activity 10'!K$17:K$23,\"N/A\",0,1)","v":"N/A"},{"$f":"_xlfn.XLOOKUP($E84,'Activity 10'!$B$17:$B$23,'Activity 10'!L$17:L$23,\"N/A\",0,1)","v":"N/A"},{"$f":"_xlfn.XLOOKUP($E84,'Activity 10'!$B$17:$B$23,'Activity 10'!M$17:M$23,\"N/A\",0,1)","v":"N/A"},{"$f":"_xlfn.XLOOKUP($E84,'Activity 10'!$B$17:$B$23,'Activity 10'!N$17:N$23,\"N/A\",0,1)","v":"N/A"},{"$f":"_xlfn.XLOOKUP($E84,'Activity 10'!$B$17:$B$23,'Activity 10'!P$17:P$23,\"N/A\",0,1)","v":"N/A"},{"$f":"_xlfn.XLOOKUP($E84,'Competitive Activity 1'!B$7:B$13,'Competitive Activity 1'!A$7:A$13,\"No\",0,1)","v":"No"},{"$f":"_xlfn.XLOOKUP($E84,'Competitive Activity 1'!$B$7:$B$13,'Competitive Activity 1'!H$7:H$13,\"N/A\",0,1)","v":"N/A"},{"$f":"_xlfn.XLOOKUP($E84,'Competitive Activity 1'!$B$7:$B$13,'Competitive Activity 1'!I$7:I$13,\"N/A\",0,1)","v":"N/A"},{"$f":"_xlfn.XLOOKUP($E84,'Competitive Activity 1'!$B$7:$B$13,'Competitive Activity 1'!J$7:J$13,\"N/A\",0,1)","v":"N/A"},{"$f":"_xlfn.XLOOKUP($E84,'Competitive Activity 1'!$B$7:$B$13,'Competitive Activity 1'!K$7:K$13,\"N/A\",0,1)","v":"N/A"},{"$f":"_xlfn.XLOOKUP($E84,'Competitive Activity 1'!$B$7:$B$13,'Competitive Activity 1'!L$7:L$13,\"N/A\",0,1)","v":"N/A"},{"$f":"_xlfn.XLOOKUP($E84,'Competitive Activity 1'!$B$7:$B$13,'Competitive Activity 1'!M$7:M$13,\"N/A\",0,1)","v":"N/A"},{"$f":"_xlfn.XLOOKUP($E84,'Competitive Activity 1'!$B$7:$B$13,'Competitive Activity 1'!N$7:N$13,\"N/A\",0,1)","v":"N/A"},{"$f":"_xlfn.XLOOKUP($E84,'Competitive Activity 1'!$B$7:$B$13,'Competitive Activity 1'!O$7:O$13,\"N/A\",0,1)","v":"N/A"},{"$f":"_xlfn.XLOOKUP($E84,'Competitive Activity 1'!$B$7:$B$13,'Competitive Activity 1'!P$7:P$13,\"N/A\",0,1)","v":"N/A"},{"$f":"_xlfn.XLOOKUP($E84,'Competitive Activity 1'!$B$7:$B$13,'Competitive Activity 1'!Q$7:Q$13,\"N/A\",0,1)","v":"N/A"},{"$f":"_xlfn.XLOOKUP($E84,'Competitive Activity 1'!$B$7:$B$13,'Competitive Activity 1'!R$7:R$13,\"N/A\",0,1)","v":"N/A"},{"$f":"_xlfn.XLOOKUP($E84,'Competitive Activity 1'!$B$7:$B$13,'Competitive Activity 1'!S$7:S$13,\"N/A\",0,1)","v":"N/A"},{"$f":"_xlfn.XLOOKUP($E84,'Competitive Activity 1'!$B$7:$B$13,'Competitive Activity 1'!T$7:T$13,\"N/A\",0,1)","v":"N/A"},{"$f":"_xlfn.XLOOKUP($E84,'Competitive Activity 1'!$B$7:$B$13,'Competitive Activity 1'!U$7:U$13,\"N/A\",0,1)","v":"N/A"},{"$f":"_xlfn.XLOOKUP($E84,'Competitive Activity 1'!$B$17:$B$23,'Competitive Activity 1'!C$17:C$23,\"N/A\",0,1)","v":"N/A"},{"$f":"_xlfn.XLOOKUP($E84,'Competitive Activity 1'!$B$17:$B$23,'Competitive Activity 1'!D$17:D$23,\"N/A\",0,1)","v":"N/A"},{"$f":"_xlfn.XLOOKUP($E84,'Competitive Activity 1'!$B$17:$B$23,'Competitive Activity 1'!E$17:E$23,\"N/A\",0,1)","v":"N/A"},{"$f":"_xlfn.XLOOKUP($E84,'Competitive Activity 1'!$B$17:$B$23,'Competitive Activity 1'!F$17:F$23,\"N/A\",0,1)","v":"N/A"},{"$f":"_xlfn.XLOOKUP($E84,'Competitive Activity 1'!$B$17:$B$23,'Competitive Activity 1'!G$17:G$23,\"N/A\",0,1)","v":"N/A"},{"$f":"_xlfn.XLOOKUP($E84,'Competitive Activity 1'!$B$17:$B$23,'Competitive Activity 1'!H$17:H$23,\"N/A\",0,1)","v":"N/A"},{"$f":"_xlfn.XLOOKUP($E84,'Competitive Activity 1'!$B$17:$B$23,'Competitive Activity 1'!I$17:I$23,\"N/A\",0,1)","v":"N/A"},{"$f":"_xlfn.XLOOKUP($E84,'Competitive Activity 1'!$B$17:$B$23,'Competitive Activity 1'!J$17:J$23,\"N/A\",0,1)","v":"N/A"},{"$f":"_xlfn.XLOOKUP($E84,'Competitive Activity 1'!$B$17:$B$23,'Competitive Activity 1'!K$17:K$23,\"N/A\",0,1)","v":"N/A"},{"$f":"_xlfn.XLOOKUP($E84,'Competitive Activity 1'!$B$17:$B$23,'Competitive Activity 1'!M$17:M$23,\"N/A\",0,1)","v":"N/A"},{"$f":"_xlfn.XLOOKUP($E84,'Competitive Activity 1'!$B$17:$B$23,'Competitive Activity 1'!N$17:N$23,\"N/A\",0,1)","v":"N/A"},{"$f":"_xlfn.XLOOKUP($E84,'Competitive Activity 1'!$B$17:$B$23,'Competitive Activity 1'!P$17:P$23,\"N/A\",0,1)","v":"N/A"},{"$f":"_xlfn.XLOOKUP($E84,'Competitive Activity 2'!$B$7:$B$13,'Competitive Activity 2'!A$7:A$13,\"No\",0)","v":"No"},{"$f":"_xlfn.XLOOKUP($E84,'Competitive Activity 2'!$B$7:$B$13,'Competitive Activity 2'!L$7:L$13,\"N/A\",0)","v":"N/A"},{"$f":"_xlfn.XLOOKUP($E84,'Competitive Activity 2'!$B$7:$B$13,'Competitive Activity 2'!M$7:M$13,\"N/A\",0)","v":"N/A"},{"$f":"_xlfn.XLOOKUP($E84,'Competitive Activity 2'!$B$7:$B$13,'Competitive Activity 2'!N$7:N$13,\"N/A\",0)","v":"N/A"},{"$f":"_xlfn.XLOOKUP($E84,'Competitive Activity 2'!$B$7:$B$13,'Competitive Activity 2'!O$7:O$13,\"N/A\",0)","v":"N/A"},{"$f":"_xlfn.XLOOKUP($E84,'Competitive Activity 2'!$B$7:$B$13,'Competitive Activity 2'!P$7:P$13,\"N/A\",0)","v":"N/A"},{"$f":"_xlfn.XLOOKUP($E84,'Competitive Activity 2'!$B$7:$B$13,'Competitive Activity 2'!Q$7:Q$13,\"N/A\",0)","v":"N/A"},{"$f":"_xlfn.XLOOKUP($E84,'Competitive Activity 2'!$B$7:$B$13,'Competitive Activity 2'!R$7:R$13,\"N/A\",0)","v":"N/A"},{"$f":"_xlfn.XLOOKUP($E84,'Competitive Activity 2'!$B$7:$B$13,'Competitive Activity 2'!S$7:S$13,\"N/A\",0)","v":"N/A"},{"$f":"_xlfn.XLOOKUP($E84,'Competitive Activity 2'!$B$7:$B$13,'Competitive Activity 2'!T$7:T$13,\"N/A\",0)","v":"N/A"},{"$f":"_xlfn.XLOOKUP($E84,'Competitive Activity 2'!$B$7:$B$13,'Competitive Activity 2'!U$7:U$13,\"N/A\",0)","v":"N/A"},{"$f":"_xlfn.XLOOKUP($E84,'Competitive Activity 2'!$B$17:$B$23,'Competitive Activity 2'!D$17:D$23,\"N/A\",0)","v":"N/A"},{"$f":"_xlfn.XLOOKUP($E84,'Competitive Activity 2'!$B$17:$B$23,'Competitive Activity 2'!E$17:E$23,\"N/A\",0)","v":"N/A"},{"$f":"_xlfn.XLOOKUP($E84,'Competitive Activity 2'!$B$17:$B$23,'Competitive Activity 2'!F$17:F$23,\"N/A\",0)","v":"N/A"},{"$f":"_xlfn.XLOOKUP($E84,'Competitive Activity 2'!$B$17:$B$23,'Competitive Activity 2'!G$17:G$23,\"N/A\",0)","v":"N/A"},{"$f":"_xlfn.XLOOKUP($E84,'Competitive Activity 2'!$B$17:$B$23,'Competitive Activity 2'!H$17:H$23,\"N/A\",0)","v":"N/A"},{"$f":"_xlfn.XLOOKUP($E84,'Competitive Activity 2'!$B$17:$B$23,'Competitive Activity 2'!I$17:I$23,\"N/A\",0)","v":"N/A"},{"$f":"_xlfn.XLOOKUP($E84,'Competitive Activity 2'!$B$17:$B$23,'Competitive Activity 2'!J$17:J$23,\"N/A\",0)","v":"N/A"},{"$f":"_xlfn.XLOOKUP($E84,'Competitive Activity 2'!$B$17:$B$23,'Competitive Activity 2'!K$17:K$23,\"N/A\",0)","v":"N/A"},{"$f":"_xlfn.XLOOKUP($E84,'Competitive Activity 2'!$B$17:$B$23,'Competitive Activity 2'!L$17:L$23,\"N/A\",0)","v":"N/A"},{"$f":"_xlfn.XLOOKUP($E84,'Competitive Activity 2'!$B$17:$B$23,'Competitive Activity 2'!M$17:M$23,\"N/A\",0)","v":"N/A"},{"$f":"_xlfn.XLOOKUP($E84,'Competitive Activity 2'!$B$17:$B$23,'Competitive Activity 2'!N$17:N$23,\"N/A\",0)","v":"N/A"},{"$f":"_xlfn.XLOOKUP($E84,'Competitive Activity 2'!$B$27:$B$33,'Competitive Activity 2'!D$27:D$33,\"N/A\",0)","v":"N/A"},{"$f":"_xlfn.XLOOKUP($E84,'Competitive Activity 2'!$B$27:$B$33,'Competitive Activity 2'!E$27:E$33,\"N/A\",0)","v":"N/A"},{"$f":"_xlfn.XLOOKUP($E84,'Competitive Activity 2'!$B$27:$B$33,'Competitive Activity 2'!F$27:F$33,\"N/A\",0)","v":"N/A"},{"$f":"_xlfn.XLOOKUP($E84,'Competitive Activity 2'!$B$27:$B$33,'Competitive Activity 2'!G$27:G$33,\"N/A\",0)","v":"N/A"},{"$f":"_xlfn.XLOOKUP($E84,'Competitive Activity 2'!$B$27:$B$33,'Competitive Activity 2'!H$27:H$33,\"N/A\",0)","v":"N/A"},{"$f":"_xlfn.XLOOKUP($E84,'Competitive Activity 2'!$B$27:$B$33,'Competitive Activity 2'!I$27:I$33,\"N/A\",0)","v":"N/A"},{"$f":"_xlfn.XLOOKUP($E84,'Competitive Activity 2'!$B$27:$B$33,'Competitive Activity 2'!J$27:J$33,\"N/A\",0)","v":"N/A"},{"$f":"_xlfn.XLOOKUP($E84,'Competitive Activity 2'!$B$27:$B$33,'Competitive Activity 2'!K$27:K$33,\"N/A\",0)","v":"N/A"},{"$f":"_xlfn.XLOOKUP($E84,'Competitive Activity 2'!$B$27:$B$33,'Competitive Activity 2'!M$27:M$33,\"N/A\",0)","v":"N/A"}]
[{"$f":"'1-Cover Sheet'!$C$8","v":"Select One"},{"$f":"'1-Cover Sheet'!$F$8","v":"Select One"},{"$f":"'Summary Sheet'!$D$8","v":0},{"$f":"'Summary Sheet'!$D$10","v":0},{"$f":"'Drop Down Box'!B249","v":0},{"$f":"'Drop Down Box'!C249","v":0},{"$f":"'Drop Down Box'!D249","v":"Select One"},{"$f":"_xlfn.XLOOKUP(E85,'Drop Down Box'!$B$166:$B$249,'Drop Down Box'!$A$166:$A$249,\"Unknown\",0)","v":"Activity 1"},{"$f":"_xlfn.XLOOKUP($E85,'Competitive Activity 2'!$B$27:$B$33,'Competitive Activity 2'!$L$32:$L$38,\"N/A\",0)","v":"N/A"},{"$f":"_xlfn.XLOOKUP($E85,'Competitive Activity 2'!$B$27:$B$33,'Competitive Activity 2'!$N$32:$N$38,\"N/A\",0)","v":"N/A"},{"$f":"_xlfn.XLOOKUP($E85,'Competitive Activity 2'!$B$7:$B$13,'Competitive Activity 2'!H$7:H$13,\"N/A\",0)","v":"N/A"},{"$f":"_xlfn.XLOOKUP($E85,'Competitive Activity 2'!$B$7:$B$13,'Competitive Activity 2'!I$7:I$13,\"N/A\",0)","v":"N/A"},{"$f":"_xlfn.XLOOKUP($E85,'Competitive Activity 2'!$B$7:$B$13,'Competitive Activity 2'!J$7:J$13,\"N/A\",0)","v":"N/A"},{"$f":"_xlfn.XLOOKUP($E85,'Activity 1'!$B$7:$B$13,'Activity 1'!$A$7:$A$13,\"No\",0,1)","v":"No"},{"$f":"_xlfn.XLOOKUP($E85,'Activity 1'!$B$7:$B$13,'Activity 1'!$H$7:$H$13,\"N/A\",0,1)","v":"N/A"},{"$f":"_xlfn.XLOOKUP($E85,'Activity 1'!$B$7:$B$13,'Activity 1'!I$7:I$13,\"N/A\",0,1)","v":"N/A"},{"$f":"_xlfn.XLOOKUP($E85,'Activity 1'!$B$7:$B$13,'Activity 1'!J$7:J$13,\"N/A\",0,1)","v":"N/A"},{"$f":"_xlfn.XLOOKUP($E85,'Activity 1'!$B$7:$B$13,'Activity 1'!K$7:K$13,\"N/A\",0,1)","v":"N/A"},{"$f":"_xlfn.XLOOKUP($E85,'Activity 1'!$B$7:$B$13,'Activity 1'!L$7:L$13,\"N/A\",0,1)","v":"N/A"},{"$f":"_xlfn.XLOOKUP($E85,'Activity 1'!$B$7:$B$13,'Activity 1'!M$7:M$13,\"N/A\",0,1)","v":"N/A"},{"$f":"_xlfn.XLOOKUP($E85,'Activity 1'!$B$7:$B$13,'Activity 1'!N$7:N$13,\"N/A\",0,1)","v":"N/A"},0,{"$f":"_xlfn.XLOOKUP($E85,'Activity 1'!$B$7:$B$13,'Activity 1'!O$7:O$13,\"N/A\",0,1)","v":"N/A"},{"$f":"_xlfn.XLOOKUP($E85,'Activity 1'!$B$7:$B$13,'Activity 1'!P$7:P$13,\"N/A\",0,1)","v":"N/A"},{"$f":"_xlfn.XLOOKUP($E85,'Activity 1'!$B$7:$B$13,'Activity 1'!Q$7:Q$13,\"N/A\",0,1)","v":"N/A"},{"$f":"_xlfn.XLOOKUP($E85,'Activity 1'!$B$7:$B$13,'Activity 1'!R$7:R$13,\"N/A\",0,1)","v":"N/A"},{"$f":"_xlfn.XLOOKUP($E85,'Activity 1'!$B$7:$B$13,'Activity 1'!S$7:S$13,\"N/A\",0,1)","v":"N/A"},{"$f":"_xlfn.XLOOKUP($E85,'Activity 1'!$B$7:$B$13,'Activity 1'!T$7:T$13,\"N/A\",0,1)","v":"N/A"},{"$f":"_xlfn.XLOOKUP($E85,'Activity 1'!$B$7:$B$13,'Activity 1'!U$7:U$13,\"N/A\",0,1)","v":"N/A"},{"$f":"_xlfn.XLOOKUP($E85,'Activity 1'!$B$7:$B$13,'Activity 1'!V$7:V$13,\"N/A\",0,1)","v":"N/A"},{"$f":"_xlfn.XLOOKUP($E85,'Activity 1'!$B$17:$B$23,'Activity 1'!C$17:C$23,\"N/A\",0,1)","v":"N/A"},{"$f":"_xlfn.XLOOKUP($E85,'Activity 1'!$B$17:$B$23,'Activity 1'!D$17:D$23,\"N/A\",0,1)","v":"N/A"},{"$f":"_xlfn.XLOOKUP($E85,'Activity 1'!$B$17:$B$23,'Activity 1'!E$17:E$23,\"N/A\",0,1)","v":"N/A"},{"$f":"_xlfn.XLOOKUP($E85,'Activity 1'!$B$17:$B$23,'Activity 1'!F$17:F$23,\"N/A\",0,1)","v":"N/A"},{"$f":"_xlfn.XLOOKUP($E85,'Activity 1'!$B$17:$B$23,'Activity 1'!G$17:G$23,\"N/A\",0,1)","v":"N/A"},{"$f":"_xlfn.XLOOKUP($E85,'Activity 1'!$B$17:$B$23,'Activity 1'!H$17:H$23,\"N/A\",0,1)","v":"N/A"},{"$f":"_xlfn.XLOOKUP($E85,'Activity 1'!$B$17:$B$23,'Activity 1'!I$17:I$23,\"N/A\",0,1)","v":"N/A"},{"$f":"_xlfn.XLOOKUP($E85,'Activity 1'!$B$17:$B$23,'Activity 1'!J$17:J$23,\"N/A\",0,1)","v":"N/A"},{"$f":"_xlfn.XLOOKUP($E85,'Activity 1'!$B$17:$B$23,'Activity 1'!K$17:K$23,\"N/A\",0,1)","v":"N/A"},{"$f":"_xlfn.XLOOKUP($E85,'Activity 1'!$B$17:$B$23,'Activity 1'!L$17:L$23,\"N/A\",0,1)","v":"N/A"},{"$f":"_xlfn.XLOOKUP($E85,'Activity 1'!$B$17:$B$23,'Activity 1'!M$17:M$23,\"N/A\",0,1)","v":"N/A"},{"$f":"_xlfn.XLOOKUP($E85,'Activity 1'!$B$17:$B$23,'Activity 1'!O$17:O$23,\"N/A\",0,1)","v":"N/A"},{"$f":"_xlfn.XLOOKUP($E85,'Activity 1'!$B$17:$B$23,'Activity 1'!Q$17:Q$23,\"N/A\",0,1)","v":"N/A"},{"$f":"_xlfn.XLOOKUP($E85,'Activity 2'!$B$7:$B$13,'Activity 2'!$A$7:$A$13,\"No\",0,1)","v":"No"},{"$f":"_xlfn.XLOOKUP($E85,'Activity 2'!B$7:B$13,'Activity 2'!H$7:H$13,\"N/A\",0)","v":"N/A"},{"$f":"_xlfn.XLOOKUP($E85,'Activity 2'!C$7:C$13,'Activity 2'!I$7:I$13,\"N/A\",0)","v":"N/A"},{"$f":"_xlfn.XLOOKUP($E85,'Activity 2'!D$7:D$13,'Activity 2'!J$7:J$13,\"N/A\",0)","v":"N/A"},{"$f":"_xlfn.XLOOKUP($E85,'Activity 2'!E$7:E$13,'Activity 2'!K$7:K$13,\"N/A\",0)","v":"N/A"},{"$f":"_xlfn.XLOOKUP($E85,'Activity 2'!F$7:F$13,'Activity 2'!L$7:L$13,\"N/A\",0)","v":"N/A"},{"$f":"_xlfn.XLOOKUP($E85,'Activity 2'!G$7:G$13,'Activity 2'!M$7:M$13,\"N/A\",0)","v":"N/A"},{"$f":"_xlfn.XLOOKUP($E85,'Activity 2'!H$7:H$13,'Activity 2'!N$7:N$13,\"N/A\",0)","v":"N/A"},{"$f":"_xlfn.XLOOKUP($E85,'Activity 2'!I$7:I$13,'Activity 2'!O$7:O$13,\"N/A\",0)","v":"N/A"},{"$f":"_xlfn.XLOOKUP($E85,'Activity 2'!J$7:J$13,'Activity 2'!P$7:P$13,\"N/A\",0)","v":"N/A"},{"$f":"_xlfn.XLOOKUP($E85,'Activity 2'!K$7:K$13,'Activity 2'!Q$7:Q$13,\"N/A\",0)","v":"N/A"},{"$f":"_xlfn.XLOOKUP($E85,'Activity 2'!L$7:L$13,'Activity 2'!R$7:R$13,\"N/A\",0)","v":"N/A"},{"$f":"_xlfn.XLOOKUP($E85,'Activity 2'!M$7:M$13,'Activity 2'!S$7:S$13,\"N/A\",0)","v":"N/A"},{"$f":"_xlfn.XLOOKUP($E85,'Activity 2'!N$7:N$13,'Activity 2'!T$7:T$13,\"N/A\",0)","v":"N/A"},{"$f":"_xlfn.XLOOKUP($E85,'Activity 2'!O$7:O$13,'Activity 2'!U$7:U$13,\"N/A\",0)","v":"N/A"},{"$f":"_xlfn.XLOOKUP($E85,'Activity 2'!P$7:P$13,'Activity 2'!V$7:V$13,\"N/A\",0)","v":"N/A"},{"$f":"_xlfn.XLOOKUP($E85,'Activity 2'!$B$17:$B$23,'Activity 2'!C$17:C$23,\"N/A\",0,1)","v":"N/A"},{"$f":"_xlfn.XLOOKUP($E85,'Activity 2'!$B$17:$B$23,'Activity 2'!D$17:D$23,\"N/A\",0,1)","v":"N/A"},{"$f":"_xlfn.XLOOKUP($E85,'Activity 2'!$B$17:$B$23,'Activity 2'!E$17:E$23,\"N/A\",0,1)","v":"N/A"},{"$f":"_xlfn.XLOOKUP($E85,'Activity 2'!$B$17:$B$23,'Activity 2'!F$17:F$23,\"N/A\",0,1)","v":"N/A"},{"$f":"_xlfn.XLOOKUP($E85,'Activity 2'!$B$17:$B$23,'Activity 2'!G$17:G$23,\"N/A\",0,1)","v":"N/A"},{"$f":"_xlfn.XLOOKUP($E85,'Activity 2'!$B$17:$B$23,'Activity 2'!H$17:H$23,\"N/A\",0,1)","v":"N/A"},{"$f":"_xlfn.XLOOKUP($E85,'Activity 2'!$B$17:$B$23,'Activity 2'!I$17:I$23,\"N/A\",0,1)","v":"N/A"},{"$f":"_xlfn.XLOOKUP($E85,'Activity 2'!$B$17:$B$23,'Activity 2'!J$17:J$23,\"N/A\",0,1)","v":"N/A"},{"$f":"_xlfn.XLOOKUP($E85,'Activity 2'!$B$17:$B$23,'Activity 2'!K$17:K$23,\"N/A\",0,1)","v":"N/A"},{"$f":"_xlfn.XLOOKUP($E85,'Activity 2'!$B$17:$B$23,'Activity 2'!L$17:L$23,\"N/A\",0,1)","v":"N/A"},{"$f":"_xlfn.XLOOKUP($E85,'Activity 2'!$B$17:$B$23,'Activity 2'!M$17:M$23,\"N/A\",0,1)","v":"N/A"},{"$f":"_xlfn.XLOOKUP($E85,'Activity 2'!$B$17:$B$23,'Activity 2'!O$17:O$23,\"N/A\",0,1)","v":"N/A"},{"$f":"_xlfn.XLOOKUP($E85,'Activity 2'!$B$17:$B$23,'Activity 2'!Q$17:Q$23,\"N/A\",0,1)","v":"N/A"},null,{"$f":"_xlfn.XLOOKUP($E85,'Activity 3'!$B$8:$B$14,'Activity 3'!K$8:K$14,\"N/A\",0,1)","v":"N/A"},{"$f":"_xlfn.XLOOKUP($E85,'Activity 3'!$B$8:$B$14,'Activity 3'!L$8:L$14,\"N/A\",0,1)","v":"N/A"},{"$f":"_xlfn.XLOOKUP($E85,'Activity 3'!$B$8:$B$14,'Activity 3'!M$8:M$14,\"N/A\",0,1)","v":"N/A"},{"$f":"_xlfn.XLOOKUP($E85,'Activity 3'!$B$8:$B$14,'Activity 3'!N$8:N$14,\"N/A\",0,1)","v":"N/A"},{"$f":"_xlfn.XLOOKUP($E85,'Activity 3'!$B$8:$B$14,'Activity 3'!O$8:O$14,\"N/A\",0,1)","v":"N/A"},{"$f":"_xlfn.XLOOKUP($E85,'Activity 3'!$B$8:$B$14,'Activity 3'!R$8:R$14,\"N/A\",0,1)","v":"N/A"},{"$f":"_xlfn.XLOOKUP($E85,'Activity 4'!$B$8:$B$14,'Activity 4'!$A$8:$A$14,\"No\",0,1)","v":"No"},{"$f":"_xlfn.XLOOKUP($E85,'Activity 4'!$B$8:$B$14,'Activity 4'!L$8:L$14,\"N/A\",0,1)","v":"N/A"},{"$f":"_xlfn.XLOOKUP($E85,'Activity 4'!$B$8:$B$14,'Activity 4'!I$8:I$14,\"N/A\",0,1)","v":"N/A"},{"$f":"_xlfn.XLOOKUP($E85,'Activity 4'!$B$8:$B$14,'Activity 4'!M$8:M$14,\"N/A\",0,1)","v":"N/A"},{"$f":"_xlfn.XLOOKUP($E85,'Activity 5'!$B$8:$B$14,'Activity 5'!$A$8:$A$14,\"No\",0,1)","v":"No"},{"$f":"_xlfn.XLOOKUP($E85,'Activity 5'!$B$8:$B$14,'Activity 5'!J$8:J$14,\"N/A\",0,1)","v":"N/A"},{"$f":"_xlfn.XLOOKUP($E85,'Activity 5'!$B$8:$B$14,'Activity 5'!K$8:K$14,\"N/A\",0,1)","v":"N/A"},{"$f":"_xlfn.XLOOKUP($E85,'Activity 5'!$B$8:$B$14,'Activity 5'!N$8:N$14,\"N/A\",0,1)","v":"N/A"},{"$f":"_xlfn.XLOOKUP($E85,'Activity 5'!$B$8:$B$14,'Activity 5'!O$8:O$14,\"N/A\",0,1)","v":"N/A"},{"$f":"_xlfn.XLOOKUP($E85,'Activity 5'!$B$8:$B$14,'Activity 5'!P$8:P$14,\"N/A\",0,1)","v":"N/A"},{"$f":"_xlfn.XLOOKUP($E85,'Activity 5'!$B$8:$B$14,'Activity 5'!Q$8:Q$14,\"N/A\",0,1)","v":"N/A"},{"$f":"_xlfn.XLOOKUP($E85,'Activity 5'!$B$8:$B$14,'Activity 5'!R$8:R$14,\"N/A\",0,1)","v":"N/A"},{"$f":"_xlfn.XLOOKUP($E85,'Activity 6'!$B$7:$B$13,'Activity 6'!A$7:A$13,\"No\",0,1)","v":"No"},{"$f":"_xlfn.XLOOKUP($E85,'Activity 6'!$B$7:$B$13,'Activity 6'!K$7:K$13,\"N/A\",0,1)","v":"N/A"},{"$f":"_xlfn.XLOOKUP($E85,'Activity 6'!$B$7:$B$13,'Activity 6'!L$7:L$13,\"N/A\",0,1)","v":"N/A"},{"$f":"_xlfn.XLOOKUP($E85,'Activity 6'!$B$7:$B$13,'Activity 6'!M$7:M$13,\"N/A\",0,1)","v":"N/A"},{"$f":"_xlfn.XLOOKUP($E85,'Activity 6'!$B$7:$B$13,'Activity 6'!N$7:N$13,\"N/A\",0,1)","v":"N/A"},{"$f":"_xlfn.XLOOKUP($E85,'Activity 6'!$B$7:$B$13,'Activity 6'!O$7:O$13,\"N/A\",0,1)","v":"N/A"},{"$f":"_xlfn.XLOOKUP($E85,'Activity 6'!$B$7:$B$13,'Activity 6'!P$7:P$13,\"N/A\",0,1)","v":"N/A"},{"$f":"_xlfn.XLOOKUP($E85,'Activity 6'!$B$7:$B$13,'Activity 6'!Q$7:Q$13,\"N/A\",0,1)","v":"N/A"},{"$f":"_xlfn.XLOOKUP($E85,'Activity 6'!$B$7:$B$13,'Activity 6'!R$7:R$13,\"N/A\",0,1)","v":"N/A"},{"$f":"_xlfn.XLOOKUP($E85,'Activity 6'!$B$7:$B$13,'Activity 6'!S$7:S$13,\"N/A\",0,1)","v":"N/A"},{"$f":"_xlfn.XLOOKUP($E85,'Activity 6'!$B$7:$B$13,'Activity 6'!T$7:T$13,\"N/A\",0,1)","v":"N/A"},{"$f":"_xlfn.XLOOKUP($E85,'Activity 6'!$B$7:$B$13,'Activity 6'!U$7:U$13,\"N/A\",0,1)","v":"N/A"},{"$f":"_xlfn.XLOOKUP($E85,'Activity 6'!$B$22:$B$28,'Activity 6'!C$22:C$28,\"N/A\",0,1)","v":"N/A"},{"$f":"_xlfn.XLOOKUP($E85,'Activity 6'!$B$22:$B$28,'Activity 6'!D$22:D$28,\"N/A\",0,1)","v":"N/A"},{"$f":"_xlfn.XLOOKUP($E85,'Activity 6'!$B$22:$B$28,'Activity 6'!E$22:E$28,\"N/A\",0,1)","v":"N/A"},{"$f":"_xlfn.XLOOKUP($E85,'Activity 6'!$B$22:$B$28,'Activity 6'!F$22:F$28,\"N/A\",0,1)","v":"N/A"},{"$f":"_xlfn.XLOOKUP($E85,'Activity 6'!$B$22:$B$28,'Activity 6'!G$22:G$28,\"N/A\",0,1)","v":"N/A"},{"$f":"_xlfn.XLOOKUP($E85,'Activity 6'!$B$22:$B$28,'Activity 6'!H$22:H$28,\"N/A\",0,1)","v":"N/A"},{"$f":"_xlfn.XLOOKUP($E85,'Activity 6'!$B$22:$B$28,'Activity 6'!I$22:I$28,\"N/A\",0,1)","v":"N/A"},{"$f":"_xlfn.XLOOKUP($E85,'Activity 6'!$B$22:$B$28,'Activity 6'!J$22:J$28,\"N/A\",0,1)","v":"N/A"},{"$f":"_xlfn.XLOOKUP($E85,'Activity 6'!$B$22:$B$28,'Activity 6'!K$22:K$28,\"N/A\",0,1)","v":"N/A"},{"$f":"_xlfn.XLOOKUP($E85,'Activity 6'!$B$22:$B$28,'Activity 6'!L$22:L$28,\"N/A\",0,1)","v":"N/A"},{"$f":"_xlfn.XLOOKUP($E85,'Activity 6'!$B$22:$B$28,'Activity 6'!M$22:M$28,\"N/A\",0,1)","v":"N/A"},{"$f":"_xlfn.XLOOKUP($E85,'Activity 6'!$B$22:$B$28,'Activity 6'!N$22:N$28,\"N/A\",0,1)","v":"N/A"},{"$f":"_xlfn.XLOOKUP($E85,'Activity 6'!$B$32:$B$38,'Activity 6'!C$32:C$38,\"N/A\",0,1)","v":"N/A"},{"$f":"_xlfn.XLOOKUP($E85,'Activity 6'!$B$32:$B$38,'Activity 6'!D$32:D$38,\"N/A\",0,1)","v":"N/A"},{"$f":"_xlfn.XLOOKUP($E85,'Activity 6'!$B$32:$B$38,'Activity 6'!E$32:E$38,\"N/A\",0,1)","v":"N/A"},{"$f":"_xlfn.XLOOKUP($E85,'Activity 6'!$B$32:$B$38,'Activity 6'!F$32:F$38,\"N/A\",0,1)","v":"N/A"},{"$f":"_xlfn.XLOOKUP($E85,'Activity 6'!$B$32:$B$38,'Activity 6'!G$32:G$38,\"N/A\",0,1)","v":"N/A"},{"$f":"_xlfn.XLOOKUP($E85,'Activity 6'!$B$32:$B$38,'Activity 6'!H$32:H$38,\"N/A\",0,1)","v":"N/A"},{"$f":"_xlfn.XLOOKUP($E85,'Activity 6'!$B$32:$B$38,'Activity 6'!I$32:I$38,\"N/A\",0,1)","v":"N/A"},{"$f":"_xlfn.XLOOKUP($E85,'Activity 6'!$B$32:$B$38,'Activity 6'!J$32:J$38,\"N/A\",0,1)","v":"N/A"},{"$f":"_xlfn.XLOOKUP($E85,'Activity 6'!$B$32:$B$38,'Activity 6'!K$32:K$38,\"N/A\",0,1)","v":"N/A"},{"$f":"_xlfn.XLOOKUP($E85,'Activity 6'!$B$32:$B$38,'Activity 6'!M$32:M$38,\"N/A\",0,1)","v":"N/A"},{"$f":"_xlfn.XLOOKUP($E85,'Activity 7'!$B$7:$B$13,'Activity 7'!$A$7:$A$13,\"No\",0,1)","v":"No"},{"$f":"_xlfn.XLOOKUP($E85,'Activity 7'!$B$7:$B$13,'Activity 7'!M$7:M$13,\"N/A\",0,1)","v":"N/A"},{"$f":"_xlfn.XLOOKUP($E85,'Activity 7'!$B$7:$B$13,'Activity 7'!K$7:K$13,\"N/A\",0,1)","v":"N/A"},{"$f":"_xlfn.XLOOKUP($E85,'Activity 7'!$B$7:$B$13,'Activity 7'!N$7:N$13,\"N/A\",0,1)","v":"N/A"},{"$f":"_xlfn.XLOOKUP($E85,'Activity 7'!$B$7:$B$13,'Activity 7'!O$7:O$13,\"N/A\",0,1)","v":"N/A"},{"$f":"_xlfn.XLOOKUP($E85,'Activity 7'!$B$7:$B$13,'Activity 7'!P$7:P$13,\"N/A\",0,1)","v":"N/A"},{"$f":"_xlfn.XLOOKUP($E85,'Activity 7'!$B$7:$B$13,'Activity 7'!Q$7:Q$13,\"N/A\",0,1)","v":"N/A"},{"$f":"_xlfn.XLOOKUP($E85,'Activity 7'!$B$7:$B$13,'Activity 7'!R$7:R$13,\"N/A\",0,1)","v":"N/A"},{"$f":"_xlfn.XLOOKUP($E85,'Activity 7'!$B$7:$B$13,'Activity 7'!S$7:S$13,\"N/A\",0,1)","v":"N/A"},{"$f":"_xlfn.XLOOKUP($E85,'Activity 7'!$B$7:$B$13,'Activity 7'!T$7:T$13,\"N/A\",0,1)","v":"N/A"},{"$f":"_xlfn.XLOOKUP($E85,'Activity 7'!$B$7:$B$13,'Activity 7'!U$7:U$13,\"N/A\",0,1)","v":"N/A"},{"$f":"_xlfn.XLOOKUP($E85,'Activity 7'!$B$7:$B$13,'Activity 7'!V$7:V$13,\"N/A\",0,1)","v":"N/A"},{"$f":"_xlfn.XLOOKUP($E85,'Activity 7'!$B$17:$B$23,'Activity 7'!E$17:E$23,\"N/A\",0,1)","v":"N/A"},{"$f":"_xlfn.XLOOKUP($E85,'Activity 7'!$B$17:$B$23,'Activity 7'!G$17:G$23,\"N/A\",0,1)","v":"N/A"},{"$f":"_xlfn.XLOOKUP($E85,'Activity 7'!$B$17:$B$23,'Activity 7'!I$17:I$23,\"N/A\",0,1)","v":"N/A"},{"$f":"_xlfn.XLOOKUP($E85,'Activity 7'!$B$17:$B$23,'Activity 7'!J$17:J$23,\"N/A\",0,1)","v":"N/A"},{"$f":"_xlfn.XLOOKUP($E85,'Activity 7'!$B$17:$B$23,'Activity 7'!K$17:K$23,\"N/A\",0,1)","v":"N/A"},{"$f":"_xlfn.XLOOKUP($E85,'Activity 7'!$B$17:$B$23,'Activity 7'!L$17:L$23,\"N/A\",0,1)","v":"N/A"},{"$f":"_xlfn.XLOOKUP($E85,'Activity 7'!$B$17:$B$23,'Activity 7'!M$17:M$23,\"N/A\",0,1)","v":"N/A"},{"$f":"_xlfn.XLOOKUP($E85,'Activity 7'!$B$17:$B$23,'Activity 7'!N$17:N$23,\"N/A\",0,1)","v":"N/A"},{"$f":"_xlfn.XLOOKUP($E85,'Activity 7'!$B$17:$B$23,'Activity 7'!P$17:P$23,\"N/A\",0,1)","v":"N/A"},{"$f":"_xlfn.XLOOKUP($E85,'Activity 8'!$B$7:$B$13,'Activity 8'!A$7:A$13,\"No\",0,1)","v":"No"},{"$f":"_xlfn.XLOOKUP($E85,'Activity 8'!$B$7:$B$13,'Activity 8'!I$7:I$13,\"N/A\",0,1)","v":"N/A"},{"$f":"_xlfn.XLOOKUP($E85,'Activity 8'!$B$7:$B$13,'Activity 8'!J$7:J$13,\"N/A\",0,1)","v":"N/A"},{"$f":"_xlfn.XLOOKUP($E85,'Activity 8'!$B$7:$B$13,'Activity 8'!K$7:K$13,\"N/A\",0,1)","v":"N/A"},{"$f":"_xlfn.XLOOKUP($E85,'Activity 8'!$B$7:$B$13,'Activity 8'!L$7:L$13,\"N/A\",0,1)","v":"N/A"},{"$f":"_xlfn.XLOOKUP($E85,'Activity 8'!$B$7:$B$13,'Activity 8'!M$7:M$13,\"N/A\",0,1)","v":"N/A"},{"$f":"_xlfn.XLOOKUP($E85,'Activity 8'!$B$7:$B$13,'Activity 8'!N$7:N$13,\"N/A\",0,1)","v":"N/A"},{"$f":"_xlfn.XLOOKUP($E85,'Activity 8'!$B$7:$B$13,'Activity 8'!O$7:O$13,\"N/A\",0,1)","v":"N/A"},{"$f":"_xlfn.XLOOKUP($E85,'Activity 8'!$B$7:$B$13,'Activity 8'!P$7:P$13,\"N/A\",0,1)","v":"N/A"},{"$f":"_xlfn.XLOOKUP($E85,'Activity 8'!$B$7:$B$13,'Activity 8'!Q$7:Q$13,\"N/A\",0,1)","v":"N/A"},{"$f":"_xlfn.XLOOKUP($E85,'Activity 8'!$B$7:$B$13,'Activity 8'!R$7:R$13,\"N/A\",0,1)","v":"N/A"},{"$f":"_xlfn.XLOOKUP($E85,'Activity 8'!$B$7:$B$13,'Activity 8'!S$7:S$13,\"N/A\",0,1)","v":"N/A"},{"$f":"_xlfn.XLOOKUP($E85,'Activity 8'!$B$7:$B$13,'Activity 8'!T$7:T$13,\"N/A\",0,1)","v":"N/A"},{"$f":"_xlfn.XLOOKUP($E85,'Activity 8'!$B$7:$B$13,'Activity 8'!U$7:U$13,\"N/A\",0,1)","v":"N/A"},{"$f":"_xlfn.XLOOKUP($E85,'Activity 8'!$B$7:$B$13,'Activity 8'!V$7:V$13,\"N/A\",0,1)","v":"N/A"},{"$f":"_xlfn.XLOOKUP($E85,'Activity 8'!$B$17:$B$23,'Activity 8'!D$17:D$23,\"N/A\",0,1)","v":"N/A"},{"$f":"_xlfn.XLOOKUP($E85,'Activity 8'!$B$17:$B$23,'Activity 8'!E$17:E$23,\"N/A\",0,1)","v":"N/A"},{"$f":"_xlfn.XLOOKUP($E85,'Activity 8'!$B$17:$B$23,'Activity 8'!F$17:F$23,\"N/A\",0,1)","v":"N/A"},{"$f":"_xlfn.XLOOKUP($E85,'Activity 8'!$B$17:$B$23,'Activity 8'!G$17:G$23,\"N/A\",0,1)","v":"N/A"},{"$f":"_xlfn.XLOOKUP($E85,'Activity 8'!$B$17:$B$23,'Activity 8'!H$17:H$23,\"N/A\",0,1)","v":"N/A"},{"$f":"_xlfn.XLOOKUP($E85,'Activity 8'!$B$17:$B$23,'Activity 8'!I$17:I$23,\"N/A\",0,1)","v":"N/A"},{"$f":"_xlfn.XLOOKUP($E85,'Activity 8'!$B$17:$B$23,'Activity 8'!J$17:J$23,\"N/A\",0,1)","v":"N/A"},{"$f":"_xlfn.XLOOKUP($E85,'Activity 8'!$B$17:$B$23,'Activity 8'!K$17:K$23,\"N/A\",0,1)","v":"N/A"},{"$f":"_xlfn.XLOOKUP($E85,'Activity 8'!$B$17:$B$23,'Activity 8'!L$17:L$23,\"N/A\",0,1)","v":"N/A"},{"$f":"_xlfn.XLOOKUP($E85,'Activity 8'!$B$17:$B$23,'Activity 8'!M$17:M$23,\"N/A\",0,1)","v":"N/A"},{"$f":"_xlfn.XLOOKUP($E85,'Activity 8'!$B$17:$B$23,'Activity 8'!N$17:N$23,\"N/A\",0,1)","v":"N/A"},{"$f":"_xlfn.XLOOKUP($E85,'Activity 8'!$B$17:$B$23,'Activity 8'!P$17:P$23,\"N/A\",0,1)","v":"N/A"},{"$f":"_xlfn.XLOOKUP(E85,'Activity 9'!$B$7:$B$13,'Activity 9'!$A$7:$A$13,\"No\",0,1)","v":"No"},{"$f":"_xlfn.XLOOKUP($E85,'Activity 9'!$B$7:$B$13,'Activity 9'!J$7:J$13,\"N/A\",0,1)","v":"N/A"},{"$f":"_xlfn.XLOOKUP($E85,'Activity 9'!$B$7:$B$13,'Activity 9'!K$7:K$13,\"N/A\",0,1)","v":"N/A"},{"$f":"_xlfn.XLOOKUP($E85,'Activity 9'!$B$7:$B$13,'Activity 9'!L$7:L$13,\"N/A\",0,1)","v":"N/A"},{"$f":"_xlfn.XLOOKUP($E85,'Activity 9'!$B$7:$B$13,'Activity 9'!M$7:M$13,\"N/A\",0,1)","v":"N/A"},{"$f":"_xlfn.XLOOKUP($E85,'Activity 9'!$B$7:$B$13,'Activity 9'!N$7:N$13,\"N/A\",0,1)","v":"N/A"},{"$f":"_xlfn.XLOOKUP($E85,'Activity 9'!$B$7:$B$13,'Activity 9'!O$7:O$13,\"N/A\",0,1)","v":"N/A"},{"$f":"_xlfn.XLOOKUP($E85,'Activity 9'!$B$7:$B$13,'Activity 9'!P$7:P$13,\"N/A\",0,1)","v":"N/A"},{"$f":"_xlfn.XLOOKUP($E85,'Activity 9'!$B$7:$B$13,'Activity 9'!Q$7:Q$13,\"N/A\",0,1)","v":"N/A"},{"$f":"_xlfn.XLOOKUP($E85,'Activity 9'!$B$7:$B$13,'Activity 9'!R$7:R$13,\"N/A\",0,1)","v":"N/A"},{"$f":"_xlfn.XLOOKUP($E85,'Activity 9'!$B$7:$B$13,'Activity 9'!S$7:S$13,\"N/A\",0,1)","v":"N/A"},{"$f":"_xlfn.XLOOKUP($E85,'Activity 9'!$B$7:$B$13,'Activity 9'!T$7:T$13,\"N/A\",0,1)","v":"N/A"},{"$f":"_xlfn.XLOOKUP($E85,'Activity 9'!$B$17:$B$23,'Activity 9'!E$17:E$23,\"N/A\",0,1)","v":"N/A"},{"$f":"_xlfn.XLOOKUP($E85,'Activity 9'!$B$17:$B$23,'Activity 9'!F$17:F$23,\"N/A\",0,1)","v":"N/A"},{"$f":"_xlfn.XLOOKUP($E85,'Activity 9'!$B$17:$B$23,'Activity 9'!G$17:G$23,\"N/A\",0,1)","v":"N/A"},{"$f":"_xlfn.XLOOKUP($E85,'Activity 9'!$B$17:$B$23,'Activity 9'!H$17:H$23,\"N/A\",0,1)","v":"N/A"},{"$f":"_xlfn.XLOOKUP($E85,'Activity 9'!$B$17:$B$23,'Activity 9'!I$17:I$23,\"N/A\",0,1)","v":"N/A"},{"$f":"_xlfn.XLOOKUP($E85,'Activity 9'!$B$17:$B$23,'Activity 9'!J$17:J$23,\"N/A\",0,1)","v":"N/A"},{"$f":"_xlfn.XLOOKUP($E85,'Activity 9'!$B$17:$B$23,'Activity 9'!K$17:K$23,\"N/A\",0,1)","v":"N/A"},{"$f":"_xlfn.XLOOKUP($E85,'Activity 9'!$B$17:$B$23,'Activity 9'!L$17:L$23,\"N/A\",0,1)","v":"N/A"},{"$f":"_xlfn.XLOOKUP($E85,'Activity 9'!$B$17:$B$23,'Activity 9'!N$17:N$23,\"N/A\",0,1)","v":"N/A"},{"$f":"_xlfn.XLOOKUP($E85,'Activity 9'!$B$17:$B$23,'Activity 9'!O$17:O$23,\"N/A\",0,1)","v":"N/A"},{"$f":"_xlfn.XLOOKUP($E85,'Activity 9'!$B$17:$B$23,'Activity 9'!Q$17:Q$23,\"N/A\",0,1)","v":"N/A"},{"$f":"_xlfn.XLOOKUP($E85,'Activity 10'!$B$7:$B$13,'Activity 10'!A$7:A$13,\"No\",0,1)","v":"No"},{"$f":"_xlfn.XLOOKUP($E85,'Activity 10'!$B$7:$B$13,'Activity 10'!J$7:J$13,\"N/A\",0,1)","v":"N/A"},{"$f":"_xlfn.XLOOKUP($E85,'Activity 10'!$B$7:$B$13,'Activity 10'!K$7:K$13,\"N/A\",0,1)","v":"N/A"},{"$f":"_xlfn.XLOOKUP($E85,'Activity 10'!$B$7:$B$13,'Activity 10'!L$7:L$13,\"N/A\",0,1)","v":"N/A"},{"$f":"_xlfn.XLOOKUP($E85,'Activity 10'!$B$7:$B$13,'Activity 10'!M$7:M$13,\"N/A\",0,1)","v":"N/A"},{"$f":"_xlfn.XLOOKUP($E85,'Activity 10'!$B$7:$B$13,'Activity 10'!N$7:N$13,\"N/A\",0,1)","v":"N/A"},{"$f":"_xlfn.XLOOKUP($E85,'Activity 10'!$B$7:$B$13,'Activity 10'!O$7:O$13,\"N/A\",0,1)","v":"N/A"},{"$f":"_xlfn.XLOOKUP($E85,'Activity 10'!$B$7:$B$13,'Activity 10'!P$7:P$13,\"N/A\",0,1)","v":"N/A"},{"$f":"_xlfn.XLOOKUP($E85,'Activity 10'!$B$7:$B$13,'Activity 10'!Q$7:Q$13,\"N/A\",0,1)","v":"N/A"},{"$f":"_xlfn.XLOOKUP($E85,'Activity 10'!$B$7:$B$13,'Activity 10'!R$7:R$13,\"N/A\",0,1)","v":"N/A"},{"$f":"_xlfn.XLOOKUP($E85,'Activity 10'!$B$7:$B$13,'Activity 10'!S$7:S$13,\"N/A\",0,1)","v":"N/A"},{"$f":"_xlfn.XLOOKUP($E85,'Activity 10'!$B$7:$B$13,'Activity 10'!T$7:T$13,\"N/A\",0,1)","v":"N/A"},{"$f":"_xlfn.XLOOKUP($E85,'Activity 10'!$B$7:$B$13,'Activity 10'!U$7:U$13,\"N/A\",0,1)","v":"N/A"},{"$f":"_xlfn.XLOOKUP($E85,'Activity 10'!$B$7:$B$13,'Activity 10'!V$7:V$13,\"N/A\",0,1)","v":"N/A"},{"$f":"_xlfn.XLOOKUP($E85,'Activity 10'!$B$17:$B$23,'Activity 10'!E$17:E$23,\"N/A\",0,1)","v":"N/A"},{"$f":"_xlfn.XLOOKUP($E85,'Activity 10'!$B$17:$B$23,'Activity 10'!F$17:F$23,\"N/A\",0,1)","v":"N/A"},{"$f":"_xlfn.XLOOKUP($E85,'Activity 10'!$B$17:$B$23,'Activity 10'!G$17:G$23,\"N/A\",0,1)","v":"N/A"},{"$f":"_xlfn.XLOOKUP($E85,'Activity 10'!$B$17:$B$23,'Activity 10'!H$17:H$23,\"N/A\",0,1)","v":"N/A"},{"$f":"_xlfn.XLOOKUP($E85,'Activity 10'!$B$17:$B$23,'Activity 10'!I$17:I$23,\"N/A\",0,1)","v":"N/A"},{"$f":"_xlfn.XLOOKUP($E85,'Activity 10'!$B$17:$B$23,'Activity 10'!J$17:J$23,\"N/A\",0,1)","v":"N/A"},{"$f":"_xlfn.XLOOKUP($E85,'Activity 10'!$B$17:$B$23,'Activity 10'!K$17:K$23,\"N/A\",0,1)","v":"N/A"},{"$f":"_xlfn.XLOOKUP($E85,'Activity 10'!$B$17:$B$23,'Activity 10'!L$17:L$23,\"N/A\",0,1)","v":"N/A"},{"$f":"_xlfn.XLOOKUP($E85,'Activity 10'!$B$17:$B$23,'Activity 10'!M$17:M$23,\"N/A\",0,1)","v":"N/A"},{"$f":"_xlfn.XLOOKUP($E85,'Activity 10'!$B$17:$B$23,'Activity 10'!N$17:N$23,\"N/A\",0,1)","v":"N/A"},{"$f":"_xlfn.XLOOKUP($E85,'Activity 10'!$B$17:$B$23,'Activity 10'!P$17:P$23,\"N/A\",0,1)","v":"N/A"},{"$f":"_xlfn.XLOOKUP($E85,'Competitive Activity 1'!B$7:B$13,'Competitive Activity 1'!A$7:A$13,\"No\",0,1)","v":"No"},{"$f":"_xlfn.XLOOKUP($E85,'Competitive Activity 1'!$B$7:$B$13,'Competitive Activity 1'!H$7:H$13,\"N/A\",0,1)","v":"N/A"},{"$f":"_xlfn.XLOOKUP($E85,'Competitive Activity 1'!$B$7:$B$13,'Competitive Activity 1'!I$7:I$13,\"N/A\",0,1)","v":"N/A"},{"$f":"_xlfn.XLOOKUP($E85,'Competitive Activity 1'!$B$7:$B$13,'Competitive Activity 1'!J$7:J$13,\"N/A\",0,1)","v":"N/A"},{"$f":"_xlfn.XLOOKUP($E85,'Competitive Activity 1'!$B$7:$B$13,'Competitive Activity 1'!K$7:K$13,\"N/A\",0,1)","v":"N/A"},{"$f":"_xlfn.XLOOKUP($E85,'Competitive Activity 1'!$B$7:$B$13,'Competitive Activity 1'!L$7:L$13,\"N/A\",0,1)","v":"N/A"},{"$f":"_xlfn.XLOOKUP($E85,'Competitive Activity 1'!$B$7:$B$13,'Competitive Activity 1'!M$7:M$13,\"N/A\",0,1)","v":"N/A"},{"$f":"_xlfn.XLOOKUP($E85,'Competitive Activity 1'!$B$7:$B$13,'Competitive Activity 1'!N$7:N$13,\"N/A\",0,1)","v":"N/A"},{"$f":"_xlfn.XLOOKUP($E85,'Competitive Activity 1'!$B$7:$B$13,'Competitive Activity 1'!O$7:O$13,\"N/A\",0,1)","v":"N/A"},{"$f":"_xlfn.XLOOKUP($E85,'Competitive Activity 1'!$B$7:$B$13,'Competitive Activity 1'!P$7:P$13,\"N/A\",0,1)","v":"N/A"},{"$f":"_xlfn.XLOOKUP($E85,'Competitive Activity 1'!$B$7:$B$13,'Competitive Activity 1'!Q$7:Q$13,\"N/A\",0,1)","v":"N/A"},{"$f":"_xlfn.XLOOKUP($E85,'Competitive Activity 1'!$B$7:$B$13,'Competitive Activity 1'!R$7:R$13,\"N/A\",0,1)","v":"N/A"},{"$f":"_xlfn.XLOOKUP($E85,'Competitive Activity 1'!$B$7:$B$13,'Competitive Activity 1'!S$7:S$13,\"N/A\",0,1)","v":"N/A"},{"$f":"_xlfn.XLOOKUP($E85,'Competitive Activity 1'!$B$7:$B$13,'Competitive Activity 1'!T$7:T$13,\"N/A\",0,1)","v":"N/A"},{"$f":"_xlfn.XLOOKUP($E85,'Competitive Activity 1'!$B$7:$B$13,'Competitive Activity 1'!U$7:U$13,\"N/A\",0,1)","v":"N/A"},{"$f":"_xlfn.XLOOKUP($E85,'Competitive Activity 1'!$B$17:$B$23,'Competitive Activity 1'!C$17:C$23,\"N/A\",0,1)","v":"N/A"},{"$f":"_xlfn.XLOOKUP($E85,'Competitive Activity 1'!$B$17:$B$23,'Competitive Activity 1'!D$17:D$23,\"N/A\",0,1)","v":"N/A"},{"$f":"_xlfn.XLOOKUP($E85,'Competitive Activity 1'!$B$17:$B$23,'Competitive Activity 1'!E$17:E$23,\"N/A\",0,1)","v":"N/A"},{"$f":"_xlfn.XLOOKUP($E85,'Competitive Activity 1'!$B$17:$B$23,'Competitive Activity 1'!F$17:F$23,\"N/A\",0,1)","v":"N/A"},{"$f":"_xlfn.XLOOKUP($E85,'Competitive Activity 1'!$B$17:$B$23,'Competitive Activity 1'!G$17:G$23,\"N/A\",0,1)","v":"N/A"},{"$f":"_xlfn.XLOOKUP($E85,'Competitive Activity 1'!$B$17:$B$23,'Competitive Activity 1'!H$17:H$23,\"N/A\",0,1)","v":"N/A"},{"$f":"_xlfn.XLOOKUP($E85,'Competitive Activity 1'!$B$17:$B$23,'Competitive Activity 1'!I$17:I$23,\"N/A\",0,1)","v":"N/A"},{"$f":"_xlfn.XLOOKUP($E85,'Competitive Activity 1'!$B$17:$B$23,'Competitive Activity 1'!J$17:J$23,\"N/A\",0,1)","v":"N/A"},{"$f":"_xlfn.XLOOKUP($E85,'Competitive Activity 1'!$B$17:$B$23,'Competitive Activity 1'!K$17:K$23,\"N/A\",0,1)","v":"N/A"},{"$f":"_xlfn.XLOOKUP($E85,'Competitive Activity 1'!$B$17:$B$23,'Competitive Activity 1'!M$17:M$23,\"N/A\",0,1)","v":"N/A"},{"$f":"_xlfn.XLOOKUP($E85,'Competitive Activity 1'!$B$17:$B$23,'Competitive Activity 1'!N$17:N$23,\"N/A\",0,1)","v":"N/A"},{"$f":"_xlfn.XLOOKUP($E85,'Competitive Activity 1'!$B$17:$B$23,'Competitive Activity 1'!P$17:P$23,\"N/A\",0,1)","v":"N/A"},{"$f":"_xlfn.XLOOKUP($E85,'Competitive Activity 2'!$B$7:$B$13,'Competitive Activity 2'!A$7:A$13,\"No\",0)","v":"No"},{"$f":"_xlfn.XLOOKUP($E85,'Competitive Activity 2'!$B$7:$B$13,'Competitive Activity 2'!L$7:L$13,\"N/A\",0)","v":"N/A"},{"$f":"_xlfn.XLOOKUP($E85,'Competitive Activity 2'!$B$7:$B$13,'Competitive Activity 2'!M$7:M$13,\"N/A\",0)","v":"N/A"},{"$f":"_xlfn.XLOOKUP($E85,'Competitive Activity 2'!$B$7:$B$13,'Competitive Activity 2'!N$7:N$13,\"N/A\",0)","v":"N/A"},{"$f":"_xlfn.XLOOKUP($E85,'Competitive Activity 2'!$B$7:$B$13,'Competitive Activity 2'!O$7:O$13,\"N/A\",0)","v":"N/A"},{"$f":"_xlfn.XLOOKUP($E85,'Competitive Activity 2'!$B$7:$B$13,'Competitive Activity 2'!P$7:P$13,\"N/A\",0)","v":"N/A"},{"$f":"_xlfn.XLOOKUP($E85,'Competitive Activity 2'!$B$7:$B$13,'Competitive Activity 2'!Q$7:Q$13,\"N/A\",0)","v":"N/A"},{"$f":"_xlfn.XLOOKUP($E85,'Competitive Activity 2'!$B$7:$B$13,'Competitive Activity 2'!R$7:R$13,\"N/A\",0)","v":"N/A"},{"$f":"_xlfn.XLOOKUP($E85,'Competitive Activity 2'!$B$7:$B$13,'Competitive Activity 2'!S$7:S$13,\"N/A\",0)","v":"N/A"},{"$f":"_xlfn.XLOOKUP($E85,'Competitive Activity 2'!$B$7:$B$13,'Competitive Activity 2'!T$7:T$13,\"N/A\",0)","v":"N/A"},{"$f":"_xlfn.XLOOKUP($E85,'Competitive Activity 2'!$B$7:$B$13,'Competitive Activity 2'!U$7:U$13,\"N/A\",0)","v":"N/A"},{"$f":"_xlfn.XLOOKUP($E85,'Competitive Activity 2'!$B$17:$B$23,'Competitive Activity 2'!D$17:D$23,\"N/A\",0)","v":"N/A"},{"$f":"_xlfn.XLOOKUP($E85,'Competitive Activity 2'!$B$17:$B$23,'Competitive Activity 2'!E$17:E$23,\"N/A\",0)","v":"N/A"},{"$f":"_xlfn.XLOOKUP($E85,'Competitive Activity 2'!$B$17:$B$23,'Competitive Activity 2'!F$17:F$23,\"N/A\",0)","v":"N/A"},{"$f":"_xlfn.XLOOKUP($E85,'Competitive Activity 2'!$B$17:$B$23,'Competitive Activity 2'!G$17:G$23,\"N/A\",0)","v":"N/A"},{"$f":"_xlfn.XLOOKUP($E85,'Competitive Activity 2'!$B$17:$B$23,'Competitive Activity 2'!H$17:H$23,\"N/A\",0)","v":"N/A"},{"$f":"_xlfn.XLOOKUP($E85,'Competitive Activity 2'!$B$17:$B$23,'Competitive Activity 2'!I$17:I$23,\"N/A\",0)","v":"N/A"},{"$f":"_xlfn.XLOOKUP($E85,'Competitive Activity 2'!$B$17:$B$23,'Competitive Activity 2'!J$17:J$23,\"N/A\",0)","v":"N/A"},{"$f":"_xlfn.XLOOKUP($E85,'Competitive Activity 2'!$B$17:$B$23,'Competitive Activity 2'!K$17:K$23,\"N/A\",0)","v":"N/A"},{"$f":"_xlfn.XLOOKUP($E85,'Competitive Activity 2'!$B$17:$B$23,'Competitive Activity 2'!L$17:L$23,\"N/A\",0)","v":"N/A"},{"$f":"_xlfn.XLOOKUP($E85,'Competitive Activity 2'!$B$17:$B$23,'Competitive Activity 2'!M$17:M$23,\"N/A\",0)","v":"N/A"},{"$f":"_xlfn.XLOOKUP($E85,'Competitive Activity 2'!$B$17:$B$23,'Competitive Activity 2'!N$17:N$23,\"N/A\",0)","v":"N/A"},{"$f":"_xlfn.XLOOKUP($E85,'Competitive Activity 2'!$B$27:$B$33,'Competitive Activity 2'!D$27:D$33,\"N/A\",0)","v":"N/A"},{"$f":"_xlfn.XLOOKUP($E85,'Competitive Activity 2'!$B$27:$B$33,'Competitive Activity 2'!E$27:E$33,\"N/A\",0)","v":"N/A"},{"$f":"_xlfn.XLOOKUP($E85,'Competitive Activity 2'!$B$27:$B$33,'Competitive Activity 2'!F$27:F$33,\"N/A\",0)","v":"N/A"},{"$f":"_xlfn.XLOOKUP($E85,'Competitive Activity 2'!$B$27:$B$33,'Competitive Activity 2'!G$27:G$33,\"N/A\",0)","v":"N/A"},{"$f":"_xlfn.XLOOKUP($E85,'Competitive Activity 2'!$B$27:$B$33,'Competitive Activity 2'!H$27:H$33,\"N/A\",0)","v":"N/A"},{"$f":"_xlfn.XLOOKUP($E85,'Competitive Activity 2'!$B$27:$B$33,'Competitive Activity 2'!I$27:I$33,\"N/A\",0)","v":"N/A"},{"$f":"_xlfn.XLOOKUP($E85,'Competitive Activity 2'!$B$27:$B$33,'Competitive Activity 2'!J$27:J$33,\"N/A\",0)","v":"N/A"},{"$f":"_xlfn.XLOOKUP($E85,'Competitive Activity 2'!$B$27:$B$33,'Competitive Activity 2'!K$27:K$33,\"N/A\",0)","v":"N/A"},{"$f":"_xlfn.XLOOKUP($E85,'Competitive Activity 2'!$B$27:$B$33,'Competitive Activity 2'!M$27:M$33,\"N/A\",0)","v":"N/A"}]

{"sheet":"Drop Down Box","index":20,"n_rows":311,"n_cols":7,"rows_kept":311,"cut":false,"hidden":true,"merged":[]}
["Reporting Period Due Date",null,null,null,"Primary Contractor Name","County","Contract Number"]
["Select One",null,null,null,"Select One","Select One","Select One"]
[null,null,null,null,"Butte County","Alameda County","20-PLHA-15086"]
["July 1, 2024- June 30, 2025, Due July 31, 2025",null,null,null,"Calaveras County","Alpine County","20-PLHA-15087"]
["July 1, 2025- June 30, 2026, Due July 31, 2026",null,null,null,"City and County of San Francisco","Amador County","20-PLHA-15088"]
["July 1, 2026- June 30, 2027, Due July 31, 2027",null,null,null,"City of Alameda","Butte County","20-PLHA-15089"]
["July 1, 2027- June 30, 2028, Due July 31, 2028",null,null,null,"City of Alhambra","Calaveras County","20-PLHA-15090"]
["July 1, 2028- June 30, 2029, Due July 31, 2029",null,null,null,"City of Aliso Viejo","Colusa County","20-PLHA-15091"]
["July 1, 2029- June 30, 2030, Due July 31, 2030",null,null,null,"City of Anaheim","Contra Costa County","20-PLHA-15092"]
[null,null,null,null,"City of Antioch","Del Norte County","20-PLHA-15093"]
[null,null,null,null,"City of Arcata","El Dorado County","20-PLHA-15094"]
[null,null,null,null,"City of Arvin","Fresno County","20-PLHA-15095"]
[null,null,null,null,"City of Atwater","Glenn County","20-PLHA-15096"]
["Allocation Type","Project Type per Guidelines Section 301","Project Type per Guidelines Section 401",null,"City of Avenal","Humboldt County","20-PLHA-15097"]
["Select One","Select All that Apply","Select One",null,"City of Bakersfield","Imperial County","20-PLHA-15098"]
["Formula","Activity 1","Competitive Activity 1",null,"City of Baldwin Park","Inyo County","20-PLHA-15099"]
["Competitive","Activity 2","Competitive Activity 2",null,"City of Bellflower","Kern County","20-PLHA-15100"]
[null,"Activity 3",null,null,"City of Benicia","Kings County","20-PLHA-15101"]
[null,"Activity 4",null,null,"City of Berkeley","Lake County","20-PLHA-15102"]
[null,"Activity 5",null,null,"City of Bishop","Lassen County","20-PLHA-15103"]
[null,"Activity 6",null,null,"City of Brawley","Los Angeles County","20-PLHA-15104"]
[null,"Activity 7",null,null,"City of Buena Park","Madera County","20-PLHA-15105"]
[null,"Activity 8",null,null,"City of Burbank","Marin County","20-PLHA-15106"]
[null,"Activity 9",null,null,"City of Calipatria","Mariposa County","20-PLHA-15107"]
[null,"Activity 10",null,null,"City of Camarillo","Mendocino County","20-PLHA-15108"]
[null,null,null,null,"City of Capitola","Merced County","20-PLHA-15109"]
["Type of Loan",null,null,null,"City of Carlsbad","Modoc County","20-PLHA-15110"]
["Construction Loan",null,null,null,"City of Carson","Mono County","20-PLHA-15111"]
["Permanent Financing Loan",null,null,null,"City of Chico","Monterey County","20-PLHA-15112"]
["Both Const/Perm",null,null,null,"City of Chino Hills","Napa County","20-PLHA-15141"]
[null,null,null,null,"City of Chowchilla","Nevada County","20-PLHA-15142"]
["Project Type's Guidelines 301 & 401","Sheet Reference",null,null,"City of Chula Vista","Orange County","20-PLHA-15143"]
["Select One","N/A",null,null,"City of Citrus Heights","Placer County","20-PLHA-15144"]
["1. Predevelopment, Development, Acquisition, Rehabilitation, and Preservation of Multifamily Rental Housing","Activity 1",null,null,"City of Clearlake","Plumas County","20-PLHA-15145"]
["2. Predevelopment, Development, Acquisition, Rehabilitation, and Preservation of Affordable Rental and Ownership Housing Including ADU's/JDU's","Activity 2",null,null,"City of Clovis","Riverside County","20-PLHA-15146"]
["3. Matching Portion of Funds placed into Local or Regional HTF","Activity 3",null,null,"City of Coalinga","Sacramento County","20-PLHA-15147"]
["4. Matching Portion of Funds for Low and Moderate Income Housing Asset Fund","Activity 4",null,null,"City of Concord","San Benito County","20-PLHA-15148"]
["5. Capitalized Reserves for the Preservation and Creation of New Permanent Supportive Housing","Activity 5",null,null,"City of Corcoran","San Bernardino County","20-PLHA-15149"]
["6. Assisting Persons who are Experiencing or at Risk of Homelessness","Activity 6",null,null,"City of Corona","San Diego County","20-PLHA-15150"]
["7. Accessibility Modifications in Lower-Income and Owner-Occupied Housing","Activity 7",null,null,"City of Costa Mesa","San Francisco County","20-PLHA-15151"]
["8. Acquiring and Rehabilitation of Foreclosed or Vacant Homes and Apartments","Activity 8",null,null,"City of Crescent City","San Joaquin County","20-PLHA-15152"]
["9. Homeownership Opportunities","Activity 9",null,null,"City of Daly City","San Luis Obispo County","20-PLHA-15154"]
["10. Fiscal Incentives Made by a County to a City within the County in the Form of a Grant or Low-Interest Loan","Activity 10",null,null,"City of Davis"," San Mateo County","20-PLHA-15155"]
["Development of New or Substantial Rehabilitation of Multi-Family Rental Housing at or Below 60% AMI","Competitive Activity 1",null,null,"City of Delano","Santa Barbara County","20-PLHA-15156"]
["Assistance to Persons who are Homeless or at Risk of Becoming Homeless","Competitive Activity 2",null,null,"City of Dinuba","Santa Clara County","20-PLHA-15157"]
["Property Type",null,null,null,"City of Downey","Santa Cruz County","20-PLHA-15158"]
["Select One",null,null,null,"City of El Cajon","Shasta County","20-PLHA-15159"]
["Accessory Dwelling Units (ADU's)",null,null,null,"City of El Centro","Sierra County","20-PLHA-15160"]
["Apartment",null,null,null,"City of El Monte","Siskiyou County","20-PLHA-15161"]
["Emergency Shelter",null,null,null,"City of Elk Grove","Solano County","20-PLHA-15162"]
["Navigation Center",null,null,null,"City of Encinitas","Sonoma County","20-PLHA-15163"]
["Owner Occupied Housing",null,null,null,"City of Eureka","Stanislaus County","20-PLHA-15164"]
["Permanent Supportive Housing",null,null,null,"City of Fairfield","Sutter County","20-PLHA-15165"]
["Rapid Rehousing",null,null,null,"City of Farmersville","Tehama County","20-PLHA-15166"]
["Rental Housing",null,null,null,"City of Fontana","Trinity County","20-PLHA-15167"]
["Transitional Housing",null,null,null,"City of Fort Bragg","Tulare County","20-PLHA-15168"]
[null,null,null,null,"City of Fountain Valley","Tuolumne County","20-PLHA-15169"]
["Answer",null,null,null,"City of Fowler","Ventura County","20-PLHA-15170"]
["Select One",null,null,null,"City of Fremont","Yolo County","20-PLHA-15171"]
["Yes",null,null,null,"City of Fresno","Yuba County","20-PLHA-15172"]
["No",null,null,null,"City of Fullerton",null,"20-PLHA-15173"]
[null,null,null,null,"City of Garden Grove",null,"20-PLHA-15174"]
["Financial Incentive Type",null,null,null,"City of Gardena",null,"20-PLHA-15175"]
["Select One",null,null,null,"City of Glendale",null,"20-PLHA-15176"]
["Grant",null,null,null,"City of Glendora",null,"20-PLHA-15177"]
["Low-Interest Loan",null,null,null,"City of Grover Beach",null,"20-PLHA-15178"]
[null,null,null,null,"City of Gustine",null,"20-PLHA-15179"]
["Matching Fund",null,null,null,"City of Hanford",null,"20-PLHA-15180"]
["LHTF/RHTF",null,null,null,"City of Hawthorne",null,"20-PLHA-15181"]
["LMIHAF",null,null,null,"City of Hayward",null,"20-PLHA-15182"]
[null,null,null,null,"City of Hollister",null,"20-PLHA-15183"]
["Select One","High Cost? ",null,null,"City of Holtville",null,"20-PLHA-15184"]
["Alameda County","Yes",null,null,"City of Huntington Beach",null,"20-PLHA-15185"]
["Alpine County","No",null,null,"City of Huntington Park",null,"20-PLHA-15186"]
["Amador County","No",null,null,"City of Huron",null,"20-PLHA-15187"]
["Butte County","Yes",null,null,"City of Imperial",null,"20-PLHA-15188"]
["Calaveras County","No",null,null,"City of Inglewood",null,"20-PLHA-15189"]
["Colusa County","No",null,null,"City of Irvine",null,"20-PLHA-15190"]
["Contra Costa County","Yes",null,null,"City of King",null,"20-PLHA-15191"]
["Del Norte County","No",null,null,"City of La Habra",null,"20-PLHA-15192"]
["El Dorado County","Under Review",null,null,"City of La Mesa",null,"20-PLHA-15193"]
["Fresno County","No",null,null,"City of Laguna Niguel",null,"20-PLHA-15194"]
["Glenn County","No",null,null,"City of Lake Forest",null,"20-PLHA-15195"]
["Humboldt County","No",null,null,"City of Lakeport",null,"20-PLHA-15196"]
["Imperial County","Yes",null,null,"City of Lakewood",null,"20-PLHA-15197"]
["Inyo County","No",null,null,"City of Lancaster",null,"20-PLHA-15198"]
["Kern County","No",null,null,"City of Livermore",null,"20-PLHA-15199"]
["Kings County","No",null,null,"City of Livingston",null,"20-PLHA-15200"]
["Lake County","No",null,null,"City of Lodi",null,"20-PLHA-15201"]
["Lassen County","No",null,null,"City of Long Beach",null,"20-PLHA-15202"]
["Los Angeles County","Yes",null,null,"City of Los Angeles",null,"20-PLHA-15203"]
["Madera County","Yes",null,null,"City of Los Banos",null,"20-PLHA-15204"]
["Marin County","Yes",null,null,"City of Lynwood",null,"20-PLHA-15205"]
["Mariposa County","Yes",null,null,"City of Madera",null,"20-PLHA-15206"]
["Mendocino County","Yes",null,null,"City of Marina",null,"20-PLHA-15207"]
["Merced County","Under Review",null,null,"City of Marysville",null,"20-PLHA-15208"]
["Modoc County","No",null,null,"City of McFarland",null,"20-PLHA-15209"]
["Mono County","No",null,null,"City of Menifee",null,"20-PLHA-15211"]
["Monterey County","Yes",null,null,"City of Merced",null,"20-PLHA-15212"]
["Napa County","Yes",null,null,"City of Milpitas",null,"20-PLHA-15213"]
["Nevada County","No",null,null,"City of Mission Viejo",null,"20-PLHA-15214"]
["Orange County","Yes",null,null,"City of Modesto",null,"20-PLHA-15481"]
["Placer County","Under Review",null,null,"City of Montebello",null,"20-PLHA-15524"]
["Plumas County","No",null,null,"City of Monterey",null,"20-PLHA-15525"]
["Riverside County","Yes",null,null,"City of Monterey Park",null,"20-PLHA-15526"]
["Sacramento County","Under Review",null,null,"City of Mount Shasta",null,"20-PLHA-15527"]
["San Benito County","Yes",null,null,"City of Mountain View",null,"20-PLHA-15528"]
["San Bernardino County","Yes",null,null,"City of Napa",null,"20-PLHA-15529"]
["San Diego County","Yes",null,null,"City of National City",null,"20-PLHA-15530"]
["San Francisco County","Yes",null,null,"City of Nevada City",null,"20-PLHA-15531"]
["San Joaquin County","Yes",null,null,"City of Newport Beach",null,"20-PLHA-15532"]
["San Luis Obispo County","Under Review",null,null,"City of Oceanside",null,"20-PLHA-15533"]
["San Mateo County","Yes",null,null,"City of Ontario",null,"20-PLHA-15534"]
["Santa Barbara County","Yes",null,null,"City of Orange",null,"20-PLHA-15535"]
["Santa Clara County","Yes",null,null,"City of Orange Cove",null,"20-PLHA-15536"]
["Santa Cruz County","Yes",null,null,"City of Oroville",null,"20-PLHA-15537"]
["Shasta County","Yes",null,null,"City of Oxnard ",null,"20-PLHA-15538"]
["Sierra County","No",null,null,"City of Pacific Grove",null,"20-PLHA-15539"]
["Siskiyou County","No",null,null,"City of Palm Desert",null,"20-PLHA-15540"]
["Solano County","Under Review",null,null,"City of Palmdale",null,"20-PLHA-15541"]
["Sonoma County","Yes",null,null,"City of Palo Alto",null,"20-PLHA-15542"]
["Stanislaus County","Yes",null,null,"City of Paramount",null,"20-PLHA-15543"]
["Sutter County","No",null,null,"City of Parlier",null,"20-PLHA-15544"]
["Tehama County","Yes",null,null,"City of Pasadena",null,"20-PLHA-15545"]
["Trinity County","No",null,null,"City of Perris",null,"20-PLHA-15547"]
["Tulare County","Under Review",null,null,"City of Petaluma",null,"20-PLHA-15548"]
["Tuolumne County","No",null,null,"City of Pico Rivera",null,"20-PLHA-15549"]
["Ventura County","Yes",null,null,"City of Pittsburg",null,"20-PLHA-15550"]
["Yolo County","Under Review",null,null,"City of Placentia",null,"20-PLHA-15551"]
["Yuba County","No",null,null,"City of Placerville",null,"20-PLHA-15552"]
[null,null,null,null,"City of Pleasanton",null,"20-PLHA-15553"]
["Target Populations ",null,null,null,"City of Point Arena",null,"20-PLHA-15554"]
["Families with Children",null,null,null,"City of Pomona",null,"20-PLHA-15555"]
["Formerly Homeless Persons",null,null,null,"City of Porterville",null,"20-PLHA-15556"]
["Seniors (65+)",null,null,null,"City of Rancho Cordova",null,"20-PLHA-15557"]
["Transition Age Youth (18-24)",null,null,null,"City of Rancho Cucamonga",null,"20-PLHA-15624"]
["Veterans",null,null,null,"City of Rancho Mirage",null,"20-PLHA-15625"]
["Disabled Persons",null,null,null,"City of Rancho Santa Margarita",null,"20-PLHA-15626"]
["Farmworkers",null,null,null,"City of Redding",null,"20-PLHA-15628"]
["Foster Youth",null,null,null,"City of Redondo Beach",null,"20-PLHA-15629"]
["Workforce",null,null,null,"City of Redwood City",null,"20-PLHA-15630"]
["No Specific Target Population",null,null,null,"City of Riverbank",null,"20-PLHA-15631"]
["Other",null,null,null,"City of Riverside",null,"20-PLHA-15632"]
[null,null,null,null,"City of Rosemead",null,"20-PLHA-15633"]
["Type of Project",null,null,null,"City of Roseville",null,"20-PLHA-15793"]
["Select One",null,null,null,"City of Salinas",null,"20-PLHA-15794"]
["Rental Housing Projects including Permanent Supportive Housing",null,null,null,"City of San Bernardino",null,"20-PLHA-15795"]
["Emergency Shelter or Transitional Housing",null,null,null,"City of San Buenaventura",null,"20-PLHA-15796"]
["Homeownership Projects",null,null,null,"City of San Clemente",null,"20-PLHA-16043"]
["ADU/JADU",null,null,null,"City of San Diego",null,"20-PLHA-16044"]
[null,null,null,null,"City of San Jose",null,"20-PLHA-16045"]
[null,null,null,null,"City of San Juan Bautista",null,"20-PLHA-16046"]
[null,null,null,null,"City of San Juan Capistrano",null,"20-PLHA-16047"]
[null,null,null,null,"City of San Leandro",null,"20-PLHA-16048"]
["Activity 8 Property Types",null,null,null,"City of San Marcos",null,"20-PLHA-16049"]
["Select One",null,null,null,"City of San Mateo",null,"20-PLHA-16050"]
["Multifamily Rental - Acquisition",null,null,null,"City of Sand City",null,"20-PLHA-16051"]
["Multifamily Rental - Ownership",null,null,null,"City of Santa Ana",null,"20-PLHA-16052"]
["Single Family Home - Acquisition",null,null,null,"City of Santa Barbara",null,"20-PLHA-16053"]
["Single Family Home - Ownership",null,null,null,"City of Santa Cruz",null,"20-PLHA-16054"]
["Mobile Home - Acquisition",null,null,null,"City of Santa Monica",null,"20-PLHA-16055"]
["Mobile Home - Ownership",null,null,null,"City of Santa Rosa",null,"20-PLHA-16245"]
["Manufactured - Acquisition",null,null,null,"City of Scotts Valley",null,"20-PLHA-16247"]
["Manufactured - Ownership",null,null,null,"City of Seaside",null,"20-PLHACOM-15957"]
[null,"Name","Address",null,"City of Shasta Lake",null,"20-PLHACOM-15984"]
["Activity 1",{"$f":"'Activity 1'!B7","v":0},{"$f":"'Activity 1'!C7","v":0},{"$f":"'Activity 1'!D7","v":"Select One"},"City of Simi Valley",null,"20-PLHACOM-15986"]
["Activity 1",{"$f":"'Activity 1'!B8","v":0},{"$f":"'Activity 1'!C8","v":0},{"$f":"'Activity 1'!D8","v":"Select One"},"City of South Gate",null,"20-PLHACOM-15987"]
["Activity 1",{"$f":"'Activity 1'!B9","v":0},{"$f":"'Activity 1'!C9","v":0},{"$f":"'Activity 1'!D9","v":"Select One"},"City of South Lake Tahoe",null,"20-PLHACOM-15988"]
["Activity 1",{"$f":"'Activity 1'!B10","v":0},{"$f":"'Activity 1'!C10","v":0},{"$f":"'Activity 1'!D10","v":"Select One"},"City of South San Francisco",null,"21-PLHA-16622"]
["Activity 1",{"$f":"'Activity 1'!B11","v":0},{"$f":"'Activity 1'!C11","v":0},{"$f":"'Activity 1'!D11","v":"Select One"},"City of Stockton",null,"21-PLHA-16662"]
["Activity 1",{"$f":"'Activity 1'!B12","v":0},{"$f":"'Activity 1'!C12","v":0},{"$f":"'Activity 1'!D12","v":"Select One"},"City of Sunnyvale",null,"21-PLHA-16663"]
["Activity 1",{"$f":"'Activity 1'!B13","v":0},{"$f":"'Activity 1'!C13","v":0},{"$f":"'Activity 1'!D13","v":"Select One"},"City of Susanville",null,"21-PLHA-16939"]
["Activity 2",{"$f":"'Activity 2'!B7","v":0},{"$f":"'Activity 2'!C7","v":0},{"$f":"'Activity 2'!D7","v":"Select One"},"City of Torrance",null,"21-PLHA-17080"]
["Activity 2",{"$f":"'Activity 2'!B8","v":0},{"$f":"'Activity 2'!C8","v":0},{"$f":"'Activity 2'!D8","v":"Select One"},"City of Tulare",null,"21-PLHA-17146"]
["Activity 2",{"$f":"'Activity 2'!B9","v":0},{"$f":"'Activity 2'!C9","v":0},{"$f":"'Activity 2'!D9","v":"Select One"},"City of Tulelake",null,"21-PLHA-17147"]
["Activity 2",{"$f":"'Activity 2'!B10","v":0},{"$f":"'Activity 2'!C10","v":0},{"$f":"'Activity 2'!D10","v":"Select One"},"City of Turlock",null,"21-PLHA-17148"]
["Activity 2",{"$f":"'Activity 2'!B11","v":0},{"$f":"'Activity 2'!C11","v":0},{"$f":"'Activity 2'!D11","v":"Select One"},"City of Tustin",null,"21-PLHA-17150"]
["Activity 2",{"$f":"'Activity 2'!B12","v":0},{"$f":"'Activity 2'!C12","v":0},{"$f":"'Activity 2'!D12","v":"Select One"},"City of Ukiah",null,"21-PLHA-17151"]
["Activity 2",{"$f":"'Activity 2'!B13","v":0},{"$f":"'Activity 2'!C13","v":0},{"$f":"'Activity 2'!D13","v":"Select One"},"City of Union City",null,"21-PLHA-17152"]
["Activity 3",{"$f":"'Activity 3'!B8","v":0},{"$f":"'Activity 3'!C8","v":0},{"$f":"'Activity 3'!F8","v":"Select One"},"City of Upland",null,"21-PLHA-17153"]
["Activity 3",{"$f":"'Activity 3'!B9","v":0},{"$f":"'Activity 3'!C9","v":0},{"$f":"'Activity 3'!F9","v":"Select One"},"City of Vacaville",null,"21-PLHA-17154"]
["Activity 3",{"$f":"'Activity 3'!B10","v":0},{"$f":"'Activity 3'!C10","v":0},{"$f":"'Activity 3'!F10","v":"Select One"},"City of Vallejo",null,"21-PLHA-17155"]
["Activity 3",{"$f":"'Activity 3'!B11","v":0},{"$f":"'Activity 3'!C11","v":0},{"$f":"'Activity 3'!F11","v":"Select One"},"City of Victorville",null,"21-PLHA-17156"]
["Activity 3",{"$f":"'Activity 3'!B12","v":0},{"$f":"'Activity 3'!C12","v":0},{"$f":"'Activity 3'!F12","v":"Select One"},"City of Visalia",null,"21-PLHA-17157"]
["Activity 3",{"$f":"'Activity 3'!B13","v":0},{"$f":"'Activity 3'!C13","v":0},{"$f":"'Activity 3'!F13","v":"Select One"},"City of Vista",null,"21-PLHA-17158"]
["Activity 3",{"$f":"'Activity 3'!B14","v":0},{"$f":"'Activity 3'!C14","v":0},{"$f":"'Activity 3'!F14","v":"Select One"},"City of Walnut Creek",null,"21-PLHA-17174"]
["Activity 4",{"$f":"'Activity 4'!B8","v":0},{"$f":"'Activity 4'!C8","v":0},{"$f":"'Activity 4'!E8","v":"Select One"},"City of Wasco",null,"21-PLHA-17197"]
["Activity 4",{"$f":"'Activity 4'!B9","v":0},{"$f":"'Activity 4'!C9","v":0},{"$f":"'Activity 4'!E9","v":"Select One"},"City of Watsonville",null,"21-PLHA-17199"]
["Activity 4",{"$f":"'Activity 4'!B10","v":0},{"$f":"'Activity 4'!C10","v":0},{"$f":"'Activity 4'!E10","v":"Select One"},"City of Westminster",null,"21-PLHA-17200"]
["Activity 4",{"$f":"'Activity 4'!B11","v":0},{"$f":"'Activity 4'!C11","v":0},{"$f":"'Activity 4'!E11","v":"Select One"},"City of Whittier",null,"21-PLHA-17201"]
["Activity 4",{"$f":"'Activity 4'!B12","v":0},{"$f":"'Activity 4'!C12","v":0},{"$f":"'Activity 4'!E12","v":"Select One"},"City of Willits",null,"21-PLHA-17205"]
["Activity 4",{"$f":"'Activity 4'!B13","v":0},{"$f":"'Activity 4'!C13","v":0},{"$f":"'Activity 4'!E13","v":"Select One"},"City of Winters",null,"21-PLHA-17207"]
["Activity 4",{"$f":"'Activity 4'!B14","v":0},{"$f":"'Activity 4'!C14","v":0},{"$f":"'Activity 4'!E14","v":"Select One"},"City of Woodlake",null,"21-PLHA-17219"]
["Activity 5",{"$f":"'Activity 5'!B8","v":0},{"$f":"'Activity 5'!C8","v":0},{"$f":"'Activity 5'!F8","v":"Select One"},"City of Woodland",null,"21-PLHACOM-17070"]
["Activity 5",{"$f":"'Activity 5'!B9","v":0},{"$f":"'Activity 5'!C9","v":0},{"$f":"'Activity 5'!F9","v":"Select One"},"City of Yorba Linda",null,"21-PLHACOM-17071"]
["Activity 5",{"$f":"'Activity 5'!B10","v":0},{"$f":"'Activity 5'!C10","v":0},{"$f":"'Activity 5'!F10","v":"Select One"},"City of Yuba City",null,"21-PLHACOM-17072"]
["Activity 5",{"$f":"'Activity 5'!B11","v":0},{"$f":"'Activity 5'!C11","v":0},{"$f":"'Activity 5'!F11","v":"Select One"},"Contra Costa County",null,"21-PLHACOM-17073"]
["Activity 5",{"$f":"'Activity 5'!B12","v":0},{"$f":"'Activity 5'!C12","v":0},{"$f":"'Activity 5'!F12","v":"Select One"},"County of Alameda",null,"21-PLHACOM-17074"]
["Activity 5",{"$f":"'Activity 5'!B13","v":0},{"$f":"'Activity 5'!C13","v":0},{"$f":"'Activity 5'!F13","v":"Select One"},"County of Del Norte",null,"21-PLHACOM-17075"]
["Activity 5",{"$f":"'Activity 5'!B14","v":0},{"$f":"'Activity 5'!C14","v":0},{"$f":"'Activity 5'!F14","v":"Select One"},"County of El Dorado",null,"21-PLHACOM-17078"]
["Activity 6",{"$f":"'Activity 6'!B7","v":0},{"$f":"'Activity 6'!C7","v":0},{"$f":"'Activity 6'!F7","v":"Select One"},"County of Fresno",null,"21-PLHACOM-17084"]
["Activity 6",{"$f":"'Activity 6'!B8","v":0},{"$f":"'Activity 6'!C8","v":0},{"$f":"'Activity 6'!F8","v":"Select One"},"County of Glenn",null,"21-PLHACOM-17149"]
["Activity 6",{"$f":"'Activity 6'!B9","v":0},{"$f":"'Activity 6'!C9","v":0},{"$f":"'Activity 6'!F9","v":"Select One"},"County of Humboldt",null,"22-PLHA-17550"]
["Activity 6",{"$f":"'Activity 6'!B10","v":0},{"$f":"'Activity 6'!C10","v":0},{"$f":"'Activity 6'!F10","v":"Select One"},"County of Inyo",null,"22-PLHA-17551"]
["Activity 6",{"$f":"'Activity 6'!B11","v":0},{"$f":"'Activity 6'!C11","v":0},{"$f":"'Activity 6'!F11","v":"Select One"},"County of Kern",null,"22-PLHA-17554"]
["Activity 6",{"$f":"'Activity 6'!B12","v":0},{"$f":"'Activity 6'!C12","v":0},{"$f":"'Activity 6'!F12","v":"Select One"},"County of Kings",null,"22-PLHA-17555"]
["Activity 6",{"$f":"'Activity 6'!B13","v":0},{"$f":"'Activity 6'!C13","v":0},{"$f":"'Activity 6'!F13","v":"Select One"},"County of Lake",null,"22-PLHA-17652"]
["Activity 7",{"$f":"'Activity 7'!B7","v":0},{"$f":"'Activity 7'!C7","v":0},{"$f":"'Activity 7'!F7","v":"Select One"},"County of Lassen",null,"22-PLHA-17653"]
["Activity 7",{"$f":"'Activity 7'!B8","v":0},{"$f":"'Activity 7'!C8","v":0},{"$f":"'Activity 7'!F8","v":"Select One"},"County of Madera",null,"22-PLHA-17654"]
["Activity 7",{"$f":"'Activity 7'!B9","v":0},{"$f":"'Activity 7'!C9","v":0},{"$f":"'Activity 7'!F9","v":"Select One"},"County of Marin",null,"22-PLHA-17655"]
["Activity 7",{"$f":"'Activity 7'!B10","v":0},{"$f":"'Activity 7'!C10","v":0},{"$f":"'Activity 7'!F10","v":"Select One"},"County of Mariposa",null,"22-PLHA-17656"]
["Activity 7",{"$f":"'Activity 7'!B11","v":0},{"$f":"'Activity 7'!C11","v":0},{"$f":"'Activity 7'!F11","v":"Select One"},"County of Mendocino",null,"22-PLHA-17658"]
["Activity 7",{"$f":"'Activity 7'!B12","v":0},{"$f":"'Activity 7'!C12","v":0},{"$f":"'Activity 7'!F12","v":"Select One"},"County of Merced",null,"22-PLHA-17659"]
["Activity 7",{"$f":"'Activity 7'!B13","v":0},{"$f":"'Activity 7'!C13","v":0},{"$f":"'Activity 7'!F13","v":"Select One"},"County of Mono",null,"22-PLHA-17660"]
["Activity 8",{"$f":"'Activity 8'!B7","v":0},{"$f":"'Activity 8'!C7","v":0},{"$f":"'Activity 8'!E7","v":"Select One"},"County of Monterey",null,"22-PLHA-17661"]
["Activity 8",{"$f":"'Activity 8'!B8","v":0},{"$f":"'Activity 8'!C8","v":0},{"$f":"'Activity 8'!E8","v":"Select One"},"County of Napa",null,"22-PLHA-17662"]
["Activity 8",{"$f":"'Activity 8'!B9","v":0},{"$f":"'Activity 8'!C9","v":0},{"$f":"'Activity 8'!E9","v":"Select One"},"County of Nevada",null,"22-PLHA-17663"]
["Activity 8",{"$f":"'Activity 8'!B10","v":0},{"$f":"'Activity 8'!C10","v":0},{"$f":"'Activity 8'!E10","v":"Select One"},"County of Orange",null,"22-PLHA-17664"]
["Activity 8",{"$f":"'Activity 8'!B11","v":0},{"$f":"'Activity 8'!C11","v":0},{"$f":"'Activity 8'!E11","v":"Select One"},"County of Placer",null,"22-PLHA-17665"]
["Activity 8",{"$f":"'Activity 8'!B12","v":0},{"$f":"'Activity 8'!C12","v":0},{"$f":"'Activity 8'!E12","v":"Select One"},"County of Plumas",null,"22-PLHA-17666"]
["Activity 8",{"$f":"'Activity 8'!B13","v":0},{"$f":"'Activity 8'!C13","v":0},{"$f":"'Activity 8'!E13","v":"Select One"},"County of Riverside",null,"22-PLHA-17667"]
["Activity 9",{"$f":"'Activity 9'!B7","v":0},{"$f":"'Activity 9'!C7","v":0},{"$f":"'Activity 9'!F7","v":"Select One"},"County of Sacramento",null,"22-PLHA-17668"]
["Activity 9",{"$f":"'Activity 9'!B8","v":0},{"$f":"'Activity 9'!C8","v":0},{"$f":"'Activity 9'!F8","v":"Select One"},"County of San Benito",null,"22-PLHA-17669"]
["Activity 9",{"$f":"'Activity 9'!B9","v":0},{"$f":"'Activity 9'!C9","v":0},{"$f":"'Activity 9'!F9","v":"Select One"},"County of San Bernardino",null,"22-PLHA-17670"]
["Activity 9",{"$f":"'Activity 9'!B10","v":0},{"$f":"'Activity 9'!C10","v":0},{"$f":"'Activity 9'!F10","v":"Select One"},"County of San Diego",null,"22-PLHA-17671"]
["Activity 9",{"$f":"'Activity 9'!B11","v":0},{"$f":"'Activity 9'!C11","v":0},{"$f":"'Activity 9'!F11","v":"Select One"},"County of San Luis Obispo",null,"22-PLHA-17672"]
["Activity 9",{"$f":"'Activity 9'!B12","v":0},{"$f":"'Activity 9'!C12","v":0},{"$f":"'Activity 9'!F12","v":"Select One"},"County of San Mateo",null,"22-PLHA-17673"]
["Activity 9",{"$f":"'Activity 9'!B13","v":0},{"$f":"'Activity 9'!C13","v":0},{"$f":"'Activity 9'!F13","v":"Select One"},"County of Santa Barbara",null,"22-PLHA-17674"]
["Activity 10",{"$f":"'Activity 10'!B7","v":0},{"$f":"'Activity 10'!C7","v":0},{"$f":"'Activity 10'!F7","v":"Select One"},"County of Santa Clara",null,"22-PLHA-17675"]
["Activity 10",{"$f":"'Activity 10'!B8","v":0},{"$f":"'Activity 10'!C8","v":0},{"$f":"'Activity 10'!F8","v":"Select One"},"County of Santa Cruz",null,"22-PLHA-17676"]
["Activity 10",{"$f":"'Activity 10'!B9","v":0},{"$f":"'Activity 10'!C9","v":0},{"$f":"'Activity 10'!F9","v":"Select One"},"County of Shasta",null,"22-PLHA-17677"]
["Activity 10",{"$f":"'Activity 10'!B10","v":0},{"$f":"'Activity 10'!C10","v":0},{"$f":"'Activity 10'!F10","v":"Select One"},"County of Sierra",null,"22-PLHA-17678"]
["Activity 10",{"$f":"'Activity 10'!B11","v":0},{"$f":"'Activity 10'!C11","v":0},{"$f":"'Activity 10'!F11","v":"Select One"},"County of Siskiyou",null,"22-PLHA-17679"]
["Activity 10",{"$f":"'Activity 10'!B12","v":0},{"$f":"'Activity 10'!C12","v":0},{"$f":"'Activity 10'!F12","v":"Select One"},"County of Solano",null,"22-PLHA-17680"]
["Activity 10",{"$f":"'Activity 10'!B13","v":0},{"$f":"'Activity 10'!C13","v":0},{"$f":"'Activity 10'!F13","v":"Select One"},"County of Sonoma",null,"22-PLHA-17681"]
["Competitive Activity 1",{"$f":"'Competitive Activity 1'!B7","v":0},{"$f":"'Competitive Activity 1'!C7","v":0},{"$f":"'Competitive Activity 1'!D7","v":"Select One"},"County of Stanislaus",null,"22-PLHA-17682"]
["Competitive Activity 1",{"$f":"'Competitive Activity 1'!B8","v":0},{"$f":"'Competitive Activity 1'!C8","v":0},{"$f":"'Competitive Activity 1'!D8","v":"Select One"},"County of Tehama",null,"22-PLHA-17770"]
["Competitive Activity 1",{"$f":"'Competitive Activity 1'!B9","v":0},{"$f":"'Competitive Activity 1'!C9","v":0},{"$f":"'Competitive Activity 1'!D9","v":"Select One"},"County of Trinity",null,"22-PLHA-17771"]
["Competitive Activity 1",{"$f":"'Competitive Activity 1'!B10","v":0},{"$f":"'Competitive Activity 1'!C10","v":0},{"$f":"'Competitive Activity 1'!D10","v":"Select One"},"County of Tulare",null,"22-PLHA-17772"]
["Competitive Activity 1",{"$f":"'Competitive Activity 1'!B11","v":0},{"$f":"'Competitive Activity 1'!C11","v":0},{"$f":"'Competitive Activity 1'!D11","v":"Select One"},"County of Tuolumne",null,"22-PLHA-17773"]
["Competitive Activity 1",{"$f":"'Competitive Activity 1'!B12","v":0},{"$f":"'Competitive Activity 1'!C12","v":0},{"$f":"'Competitive Activity 1'!D12","v":"Select One"},"County of Ventura",null,"22-PLHA-17774"]
["Competitive Activity 1",{"$f":"'Competitive Activity 1'!B13","v":0},{"$f":"'Competitive Activity 1'!C13","v":0},{"$f":"'Competitive Activity 1'!D13","v":"Select One"},"County of Yolo",null,"22-PLHA-17775"]
["Competitive Activity 2",{"$f":"'Competitive Activity 2'!B7","v":0},{"$f":"'Competitive Activity 2'!C7","v":0},{"$f":"'Competitive Activity 2'!F7","v":"Select One"},"County of Yuba",null,"22-PLHA-17776"]
["Competitive Activity 2",{"$f":"'Competitive Activity 2'!B8","v":0},{"$f":"'Competitive Activity 2'!C8","v":0},{"$f":"'Competitive Activity 2'!F8","v":"Select One"},"Los Angeles County Development Authority",null,"22-PLHA-17777"]
["Competitive Activity 2",{"$f":"'Competitive Activity 2'!B9","v":0},{"$f":"'Competitive Activity 2'!C9","v":0},{"$f":"'Competitive Activity 2'!F9","v":"Select One"},"Sacramento Housing and Redevelopment Agency",null,"22-PLHA-17778"]
["Competitive Activity 2",{"$f":"'Competitive Activity 2'!B10","v":0},{"$f":"'Competitive Activity 2'!C10","v":0},{"$f":"'Competitive Activity 2'!F10","v":"Select One"},"San Joaquin County",null,"22-PLHA-17779"]
["Competitive Activity 2",{"$f":"'Competitive Activity 2'!B11","v":0},{"$f":"'Competitive Activity 2'!C11","v":0},{"$f":"'Competitive Activity 2'!F11","v":"Select One"},"Sutter County",null,"22-PLHA-17780"]
["Competitive Activity 2",{"$f":"'Competitive Activity 2'!B12","v":0},{"$f":"'Competitive Activity 2'!C12","v":0},{"$f":"'Competitive Activity 2'!F12","v":"Select One"},"Town of Apple Valley",null,"22-PLHA-17781"]
["Competitive Activity 2",{"$f":"'Competitive Activity 2'!B13","v":0},{"$f":"'Competitive Activity 2'!C13","v":0},{"$f":"'Competitive Activity 2'!F13","v":"Select One"},"Town of Mammoth Lakes",null,"22-PLHA-17782"]
[null,null,null,null,"Town of Paradise",null,"22-PLHA-17783"]
[null,null,null,null,"Town of Truckee",null,"22-PLHA-17784"]
[null,null,null,null,null,null,"22-PLHA-17785"]
[null,null,null,null,null,null,"22-PLHA-17786"]
[null,null,null,null,null,null,"22-PLHA-17787"]
[null,null,null,null,null,null,"22-PLHA-17788"]
[null,null,null,null,null,null,"22-PLHA-17789"]
[null,null,null,null,null,null,"22-PLHA-17790"]
[null,null,null,null,null,null,"22-PLHA-17791"]
[null,null,null,null,null,null,"22-PLHA-17792"]
[null,null,null,null,null,null,"22-PLHA-17793"]
[null,null,null,null,null,null,"22-PLHA-17794"]
[null,null,null,null,null,null,"22-PLHA-17800"]
[null,null,null,null,null,null,"22-PLHA-17801"]
[null,null,null,null,null,null,"22-PLHA-17802"]
[null,null,null,null,null,null,"22-PLHA-17803"]
[null,null,null,null,null,null,"22-PLHA-17804"]
[null,null,null,null,null,null,"22-PLHA-17805"]
[null,null,null,null,null,null,"22-PLHA-17806"]
[null,null,null,null,null,null,"22-PLHA-17807"]
[null,null,null,null,null,null,"22-PLHA-17808"]
[null,null,null,null,null,null,"22-PLHA-17812"]
[null,null,null,null,null,null,"22-PLHA-17853"]
[null,null,null,null,null,null,"22-PLHA-17854"]
[null,null,null,null,null,null,"22-PLHA-17855"]
[null,null,null,null,null,null,"22-PLHA-17856"]
[null,null,null,null,null,null,"22-PLHA-17858"]
[null,null,null,null,null,null,"22-PLHA-17860"]
[null,null,null,null,null,null,"22-PLHA-17861"]
[null,null,null,null,null,null,"22-PLHA-17864"]
[null,null,null,null,null,null,"22-PLHA-17879"]
[null,null,null,null,null,null,"22-PLHA-17880"]
[null,null,null,null,null,null,"22-PLHA-17881"]
[null,null,null,null,null,null,"22-PLHA-17882"]
[null,null,null,null,null,null,"22-PLHA-17883"]
[null,null,null,null,null,null,"22-PLHA-17884"]
[null,null,null,null,null,null,"22-PLHA-17885"]
[null,null,null,null,null,null,"22-PLHA-17886"]
[null,null,null,null,null,null,"22-PLHA-17887"]
[null,null,null,null,null,null,"22-PLHA-17888"]
[null,null,null,null,null,null,"22-PLHA-17889"]
[null,null,null,null,null,null,"22-PLHA-17890"]
[null,null,null,null,null,null,"22-PLHA-17891"]
[null,null,null,null,null,null,"22-PLHA-17892"]
[null,null,null,null,null,null,"22-PLHACOM-17810"]
[null,null,null,null,null,null,"22-PLHACOM-17811"]
[null,null,null,null,null,null,"22-PLHACOM-17819"]
[null,null,null,null,null,null,"22-PLHACOM-17820"]
[null,null,null,null,null,null,"22-PLHACOM-17821"]
[null,null,null,null,null,null,"22-PLHACOM-17822"]
[null,null,null,null,null,null,"22-PLHACOM-17823"]
[null,null,null,null,null,null,"23-PLHA-18293"]
[null,null,null,null,null,null,"23-PLHA-18294"]
[null,null,null,null,null,null,"23-PLHA-18295"]
[null,null,null,null,null,null,"23-PLHA-18296"]
[null,null,null,null,null,null,"23-PLHA-18471"]
[null,null,null,null,null,null,"23-PLHA-18472"]
[null,null,null,null,null,null,"23-PLHA-18495"]
[null,null,null,null,null,null,"23-PLHA-18496"]
[null,null,null,null,null,null,"23-PLHA-18497"]
[null,null,null,null,null,null,"23-PLHA-18498"]
[null,null,null,null,null,null,"23-PLHA-18499"]